{"text_format":"1","workbook":"xlsx","n_sheets":89,"sheets":["Sheet1","Raw_SA4","Raw_SA5","Raw_SA6","Raw_SA36","Raw_SA37","Raw_SA38","Raw_SA18NC","Raw_SA18NO","Raw_SA18PC","Raw_SA18PO","Raw_SA18DC","Raw_SA18DO","Raw_SA18OC","Raw_SA18OO","Raw_SA19NC","Raw_SA19NO","Raw_SA19PC","Raw_SA19PO","Raw_SA19DC","Raw_SA19DO","Raw_SA19OC","Raw_SA19OO","NFD","Template names","Lookup and lists","START","Instructions","Org structure","Contacts","A1-Sum","A2-FinPerf SC","A2A","A3-FinPerf V","A3A","A4-FinPerf RE","A5-Capex","A5A","A6-FinPos","A7-CFlow","A8-ResRecon","Sheet2","A9-Asset","A10-SerDel","SA1","SA2","SA3","SA4","SA5","SA6","SA7","SA8","SA9","SA10","SA11","SA12a","SA12b","SA13a","SA13b","SA14","SA16","SA15","SA17","SA18","SA19","SA20","SA21","SA22","SA23","SA24","SA25","SA26","SA27","SA28","SA29","SA30","SA31","SA32","SA33","SA34a","SA34b","SA34c","SA34d","SA34e","SA35","SA36","SA37","SA38","LGDB_EXPORT"],"not_rendered":{"charts":0,"images":20,"macros":1,"external_links":3,"defined_names":2399,"comments":0,"pivot_tables":0},"unopened":[],"bounds":{"document_bytes":16777216,"sheet_cells":100000,"rows_first":2000,"rows_last":500,"rows_between":2000,"halvings":0,"cell_chars":16384,"cell_head_chars":4096},"cells_cut":0,"cells_raw":0,"read":"whole","date_system":"1900"}

{"sheet":"Sheet1","index":0,"n_rows":6772,"n_cols":87,"rows_kept":1125,"cut":true,"hidden":true,"merged":[],"bounds":{"rows_first":500,"rows_last":125,"rows_between":500,"halvings":2}}
["S71_Account","S71_AccountExtAccount","S71_AccountExtensionID","S71_AccountLink","S71_ItemSCOAAccount","S71_A4Code","S71_A4Description","S71_A4SubCode","S71_A4SubDescription","S71_SA1SubCode","S71_SA1SubDescription","S71_A2Code","S71_A2Description","S71_A2SubCode","S71_A2SubDescription","S71_A5CapexCode","S71_A5GCode","S71_A5GDescription","S71_ProjectType","S71_ItemType","S71_A6Code","S71_A6Description","S71_A6SubCode","S71_A6SubDescription","S71_A7Code","S71_A7Description","S71_A7SubCode","S71_A7SubDescription","S71_A7CodePayments","S71_A7DescriptionPayments","S71_A7SubCodePayments","S71_A7SubDescriptionPayments","S71_A9Code","S71_A9Description","S71_A9SubCode","S71_A9SubDescription","S71_WIPCode","S71_SA3Code","S71_SA3Description","S71_SA3SubCode","S71_SA3SubDescription","S71_SA30FDSubCode","S71_SA30FDSubDescription","S71_CFCode","S71_SA34aCode","S71_SA34aCode_2","S71_SA34aDescription","S71_SA34aSubDescription","S71_SA34bSubCode","S71_SA34bSubDescription","S71_SA34cCode","S71_SA34cDescription","S71_SA34Code","S71_SA34cSubCode","S71_SA34cSubDescription","S71_RepMaintCode","S71_SA34dCode","S71_SA34dDescription","S71_SA34Description","S71_SA34dSubCode","S71_SA34dSubDescription","S71_DepCode","S71_SA34eCode","S71_SA34eDescription","S71_SA34eSubCode","S71_SA34eSubDescription","S71_StaffCode","S71_MasterVoteMunicipal","S71_SubMunicipalVoteNo","S71_FxVoteDescription","S71_MasterVoteDescription","S71_SA15Ref","S71_SA17Ref","S71_PYearAmount","S71_PPYearAmount","S71_PPPYearAmount","S71_OriginalBudAmnt","S71_AdjustmentBudAmnt","S71_ASBudgetAmount","S71_OY1BudgetAmount","S71_OY2BudgetAmount","S71_PreAuditActual","S71_ConsDepositsCode","S71_NonCurrentInvCode","S71_NonCurrentRecCode","S71_WIPOPBalance","FundType"]
["O1299-2/-1/F0041/X051/R0229/001/6103","O1299-2/-1/F0041/X051/R0229/001/6103",120302,10186,"Capital:Non-infrastructure:New:Intangible Assets:Licences and Rights:Computer Software and Applications",4100,"Expenditure / Operational costs",2904,"Expenditure / Operational costs",2904,"Operational Costs ",1200,"Finance and administration",1206,"Human Resources","_"," _"," _","O","IE"," _ "," _ "," _ "," _ "," _ "," _ ","_","_"," _ "," _ "," _ "," _ "," _ "," _ "," _ "," _ ",null," _ "," _ "," _ "," _ ",null,null,null," _ "," _ "," _ "," _ "," _ "," _ "," _ "," _ "," _ "," _ "," _ ",null," _ "," _ "," _ "," _ "," _ ",null," _ "," _ "," _ "," _ ",null,3,34,"Human Resources","Finance & Administration",null,null,0,0,0,0,0,200000,210000,220000,0,"_","_","_","_"]
["O1370-4/IE00681/F0041/X032/R0038/001/6707","O1370-4/IE00681/F0041/X032/R0038/001/6707",30563,1796,"Expenditure:Contracted Services:Outsourced Services:Electrical",3800,"Expenditure / Contracted services",2701,"Expenditure / Contracted services",2701,"Contracted Services ",4100,"Energy sources",4101,"Electricity","_"," _"," _","O","IE"," _ "," _ "," _ "," _ "," _ "," _ ","_","_"," _ "," _ "," _ "," _ "," _ "," _ "," _ "," _ ",null," _ "," _ "," _ "," _ ",null,null,null," _ "," _ "," _ "," _ "," _ "," _ "," _ "," _ "," _ "," _ "," _ ",null," _ "," _ "," _ "," _ "," _ ",null," _ "," _ "," _ "," _ ",null,1,11,"Electricity"," Energy Sources",null,null,0,0,0,0,0,0,0,0,0,"_","_","_","_"]
["O1370-4/IE00681/F0045/X032/R0028/001/6707","O1370-4/IE00681/F0045/X032/R0028/001/6707",30565,1798,"Expenditure:Contracted Services:Outsourced Services:Electrical",3800,"Expenditure / Contracted services",2701,"Expenditure / Contracted services",2701,"Contracted Services ",4100,"Energy sources",4101,"Electricity","_"," _"," _","O","IE"," _ "," _ "," _ "," _ "," _ "," _ ","_","_"," _ "," _ "," _ "," _ "," _ "," _ "," _ "," _ ",null," _ "," _ "," _ "," _ ",null,null,null," _ "," _ "," _ "," _ "," _ "," _ "," _ "," _ "," _ "," _ "," _ ",null," _ "," _ "," _ "," _ "," _ ",null," _ "," _ "," _ "," _ ",null,1,11,"Electricity"," Energy Sources",null,null,0,0,0,0,0,0,0,0,0,"_","_","_","_"]
["O1370-4/IE00681/F0045/X032/R0036/001/6707","O1370-4/IE00681/F0045/X032/R0036/001/6707",30562,1795,"Expenditure:Contracted Services:Outsourced Services:Electrical",3800,"Expenditure / Contracted services",2701,"Expenditure / Contracted services",2701,"Contracted Services ",4100,"Energy sources",4101,"Electricity","_"," _"," _","O","IE"," _ "," _ "," _ "," _ "," _ "," _ ","_","_"," _ "," _ "," _ "," _ "," _ "," _ "," _ "," _ ",null," _ "," _ "," _ "," _ ",null,null,null," _ "," _ "," _ "," _ "," _ "," _ "," _ "," _ "," _ "," _ "," _ ",null," _ "," _ "," _ "," _ "," _ ",null," _ "," _ "," _ "," _ ",null,1,11,"Electricity"," Energy Sources",null,null,0,0,0,0,0,0,0,0,0,"_","_","_","_"]
["O1370-4/IE00681/F2496/X032/R0035/001/6707","O1370-4/IE00681/F2496/X032/R0035/001/6707",30564,1797,"Expenditure:Contracted Services:Outsourced Services:Electrical",3800,"Expenditure / Contracted services",2701,"Expenditure / Contracted services",2701,"Contracted Services ",4100,"Energy sources",4101,"Electricity","_"," _"," _","O","IE"," _ "," _ "," _ "," _ "," _ "," _ ","_","_"," _ "," _ "," _ "," _ "," _ "," _ "," _ "," _ ",null," _ "," _ "," _ "," _ ",null,null,null," _ "," _ "," _ "," _ "," _ "," _ "," _ "," _ "," _ "," _ "," _ ",null," _ "," _ "," _ "," _ "," _ ",null," _ "," _ "," _ "," _ ",null,1,11,"Electricity"," Energy Sources",null,null,0,0,0,0,0,0,0,0,0,"_","_","_","_"]
["O1370-8/IA10375/F13530/X032/R0034/001/CONTRA","O1370-8/IA10375/F13530/X032/R0034/001/CONTRA",123302,0,"Assets:Current Assets:VAT Receivable:Input Tax Accrual:Recognised"," _"," _"," _ "," _ "," _ "," _ ",4100,"Energy sources",4101,"Electricity","_"," _"," _","O","IA",170,"Current assets / VAT",170,"VAT"," _ "," _ ","_","_"," _ "," _ "," _ "," _ "," _ "," _ "," _ "," _ ",null," _ "," _ "," _ "," _ ",null,null,null," _ "," _ "," _ "," _ "," _ "," _ "," _ "," _ "," _ "," _ "," _ ",null," _ "," _ "," _ "," _ "," _ ",null," _ "," _ "," _ "," _ ",null,1,11,"Electricity"," Energy Sources",null,null,0,0,0,0,0,0,0,0,0,"_","_","_","_"]
["O1370-4/IA10375/F2496/X032/R0035/001/CONTRA","O1370-4/IA10375/F2496/X032/R0035/001/CONTRA",121777,0,"Assets:Current Assets:VAT Receivable:Input Tax Accrual:Recognised"," _"," _"," _ "," _ "," _ "," _ ",4100,"Energy sources",4101,"Electricity","_"," _"," _","O","IA",170,"Current assets / VAT",170,"VAT"," _ "," _ ","_","_"," _ "," _ "," _ "," _ "," _ "," _ "," _ "," _ ",null," _ "," _ "," _ "," _ ",null,null,null," _ "," _ "," _ "," _ "," _ "," _ "," _ "," _ "," _ "," _ "," _ ",null," _ "," _ "," _ "," _ "," _ ",null," _ "," _ "," _ "," _ ",null,1,11,"Electricity"," Energy Sources",null,null,0,0,0,0,0,0,0,0,0,"_","_","_","_"]
["O1370-5/IA10375/F0045/X032/R0039/001/CONTRA","O1370-5/IA10375/F0045/X032/R0039/001/CONTRA",121819,0,"Assets:Current Assets:VAT Receivable:Input Tax Accrual:Recognised"," _"," _"," _ "," _ "," _ "," _ ",4100,"Energy sources",4101,"Electricity","_"," _"," _","O","IA",170,"Current assets / VAT",170,"VAT"," _ "," _ ","_","_"," _ "," _ "," _ "," _ "," _ "," _ "," _ "," _ ",null," _ "," _ "," _ "," _ ",null,null,null," _ "," _ "," _ "," _ "," _ "," _ "," _ "," _ "," _ "," _ "," _ ",null," _ "," _ "," _ "," _ "," _ ",null," _ "," _ "," _ "," _ ",null,1,11,"Electricity"," Energy Sources",null,null,0,0,0,0,0,0,0,0,0,"_","_","_","_"]
["O1370-5/IA10375/F0045/X032/R0038/001/CONTRA","O1370-5/IA10375/F0045/X032/R0038/001/CONTRA",121815,0,"Assets:Current Assets:VAT Receivable:Input Tax Accrual:Recognised"," _"," _"," _ "," _ "," _ "," _ ",4100,"Energy sources",4101,"Electricity","_"," _"," _","O","IA",170,"Current assets / VAT",170,"VAT"," _ "," _ ","_","_"," _ "," _ "," _ "," _ "," _ "," _ "," _ "," _ ",null," _ "," _ "," _ "," _ ",null,null,null," _ "," _ "," _ "," _ "," _ "," _ "," _ "," _ "," _ "," _ "," _ ",null," _ "," _ "," _ "," _ "," _ ",null," _ "," _ "," _ "," _ ",null,1,11,"Electricity"," Energy Sources",null,null,0,0,0,0,0,0,0,0,0,"_","_","_","_"]
["O1370-5/IA10375/F0045/X032/R0032/001/CONTRA","O1370-5/IA10375/F0045/X032/R0032/001/CONTRA",121811,0,"Assets:Current Assets:VAT Receivable:Input Tax Accrual:Recognised"," _"," _"," _ "," _ "," _ "," _ ",4100,"Energy sources",4101,"Electricity","_"," _"," _","O","IA",170,"Current assets / VAT",170,"VAT"," _ "," _ ","_","_"," _ "," _ "," _ "," _ "," _ "," _ "," _ "," _ ",null," _ "," _ "," _ "," _ ",null,null,null," _ "," _ "," _ "," _ "," _ "," _ "," _ "," _ "," _ "," _ "," _ ",null," _ "," _ "," _ "," _ "," _ ",null," _ "," _ "," _ "," _ ",null,1,11,"Electricity"," Energy Sources",null,null,0,0,0,0,0,0,0,0,0,"_","_","_","_"]
["O1370-7/IA10375/F0045/X035/R0033/001/CONTRA","O1370-7/IA10375/F0045/X035/R0033/001/CONTRA",122926,0,"Assets:Current Assets:VAT Receivable:Input Tax Accrual:Recognised"," _"," _"," _ "," _ "," _ "," _ ",4100,"Energy sources",4101,"Electricity","_"," _"," _","O","IA",170,"Current assets / VAT",170,"VAT"," _ "," _ ","_","_"," _ "," _ "," _ "," _ "," _ "," _ "," _ "," _ ",null," _ "," _ "," _ "," _ ",null,null,null," _ "," _ "," _ "," _ "," _ "," _ "," _ "," _ "," _ "," _ "," _ ",null," _ "," _ "," _ "," _ "," _ ",null," _ "," _ "," _ "," _ ",null,1,11,"Electricity"," Energy Sources",null,null,0,0,0,0,0,0,0,0,0,"_","_","_","_"]
["O1370-6/IA10375/F0045/X032/R0039/001/CONTRA","O1370-6/IA10375/F0045/X032/R0039/001/CONTRA",121898,0,"Assets:Current Assets:VAT Receivable:Input Tax Accrual:Recognised"," _"," _"," _ "," _ "," _ "," _ ",4100,"Energy sources",4101,"Electricity","_"," _"," _","O","IA",170,"Current assets / VAT",170,"VAT"," _ "," _ ","_","_"," _ "," _ "," _ "," _ "," _ "," _ "," _ "," _ ",null," _ "," _ "," _ "," _ ",null,null,null," _ "," _ "," _ "," _ "," _ "," _ "," _ "," _ "," _ "," _ "," _ ",null," _ "," _ "," _ "," _ "," _ ",null," _ "," _ "," _ "," _ ",null,1,11,"Electricity"," Energy Sources",null,null,0,0,0,0,0,0,0,0,0,"_","_","_","_"]
["O1370-6/IA10375/F0045/X032/R0032/001/CONTRA","O1370-6/IA10375/F0045/X032/R0032/001/CONTRA",121894,0,"Assets:Current Assets:VAT Receivable:Input Tax Accrual:Recognised"," _"," _"," _ "," _ "," _ "," _ ",4100,"Energy sources",4101,"Electricity","_"," _"," _","O","IA",170,"Current assets / VAT",170,"VAT"," _ "," _ ","_","_"," _ "," _ "," _ "," _ "," _ "," _ "," _ "," _ ",null," _ "," _ "," _ "," _ ",null,null,null," _ "," _ "," _ "," _ "," _ "," _ "," _ "," _ "," _ "," _ "," _ ",null," _ "," _ "," _ "," _ "," _ ",null," _ "," _ "," _ "," _ ",null,1,11,"Electricity"," Energy Sources",null,null,0,0,0,0,0,0,0,0,0,"_","_","_","_"]
["O1370-4/IA10375/F0045/X032/R0036/001/CONTRA","O1370-4/IA10375/F0045/X032/R0036/001/CONTRA",121773,0,"Assets:Current Assets:VAT Receivable:Input Tax Accrual:Recognised"," _"," _"," _ "," _ "," _ "," _ ",4100,"Energy sources",4101,"Electricity","_"," _"," _","O","IA",170,"Current assets / VAT",170,"VAT"," _ "," _ ","_","_"," _ "," _ "," _ "," _ "," _ "," _ "," _ "," _ ",null," _ "," _ "," _ "," _ ",null,null,null," _ "," _ "," _ "," _ "," _ "," _ "," _ "," _ "," _ "," _ "," _ ",null," _ "," _ "," _ "," _ "," _ ",null," _ "," _ "," _ "," _ ",null,1,11,"Electricity"," Energy Sources",null,null,0,0,0,0,0,0,0,0,0,"_","_","_","_"]
["O1370-4/IA10375/F0045/X032/R0028/001/CONTRA","O1370-4/IA10375/F0045/X032/R0028/001/CONTRA",121769,0,"Assets:Current Assets:VAT Receivable:Input Tax Accrual:Recognised"," _"," _"," _ "," _ "," _ "," _ ",4100,"Energy sources",4101,"Electricity","_"," _"," _","O","IA",170,"Current assets / VAT",170,"VAT"," _ "," _ ","_","_"," _ "," _ "," _ "," _ "," _ "," _ "," _ "," _ ",null," _ "," _ "," _ "," _ ",null,null,null," _ "," _ "," _ "," _ "," _ "," _ "," _ "," _ "," _ "," _ "," _ ",null," _ "," _ "," _ "," _ "," _ ",null," _ "," _ "," _ "," _ ",null,1,11,"Electricity"," Energy Sources",null,null,0,0,0,0,0,0,0,0,0,"_","_","_","_"]
["O1370-2/IA10375/F0045/X032/R0044/001/CONTRA","O1370-2/IA10375/F0045/X032/R0044/001/CONTRA",121602,0,"Assets:Current Assets:VAT Receivable:Input Tax Accrual:Recognised"," _"," _"," _ "," _ "," _ "," _ ",4100,"Energy sources",4101,"Electricity","_"," _"," _","O","IA",170,"Current assets / VAT",170,"VAT"," _ "," _ ","_","_"," _ "," _ "," _ "," _ "," _ "," _ "," _ "," _ ",null," _ "," _ "," _ "," _ ",null,null,null," _ "," _ "," _ "," _ "," _ "," _ "," _ "," _ "," _ "," _ "," _ ",null," _ "," _ "," _ "," _ "," _ ",null," _ "," _ "," _ "," _ ",null,1,11,"Electricity"," Energy Sources",null,null,0,0,0,0,0,0,0,0,0,"_","_","_","_"]
["O1370-2/IA10375/F0045/X032/R0043/001/CONTRA","O1370-2/IA10375/F0045/X032/R0043/001/CONTRA",121598,0,"Assets:Current Assets:VAT Receivable:Input Tax Accrual:Recognised"," _"," _"," _ "," _ "," _ "," _ ",4100,"Energy sources",4101,"Electricity","_"," _"," _","O","IA",170,"Current assets / VAT",170,"VAT"," _ "," _ ","_","_"," _ "," _ "," _ "," _ "," _ "," _ "," _ "," _ ",null," _ "," _ "," _ "," _ ",null,null,null," _ "," _ "," _ "," _ "," _ "," _ "," _ "," _ "," _ "," _ "," _ ",null," _ "," _ "," _ "," _ "," _ ",null," _ "," _ "," _ "," _ ",null,1,11,"Electricity"," Energy Sources",null,null,0,0,0,0,0,0,0,0,0,"_","_","_","_"]
["O1370-2/IA10375/F0045/X032/R0019/001/CONTRA","O1370-2/IA10375/F0045/X032/R0019/001/CONTRA",121594,0,"Assets:Current Assets:VAT Receivable:Input Tax Accrual:Recognised"," _"," _"," _ "," _ "," _ "," _ ",4100,"Energy sources",4101,"Electricity","_"," _"," _","O","IA",170,"Current assets / VAT",170,"VAT"," _ "," _ ","_","_"," _ "," _ "," _ "," _ "," _ "," _ "," _ "," _ ",null," _ "," _ "," _ "," _ ",null,null,null," _ "," _ "," _ "," _ "," _ "," _ "," _ "," _ "," _ "," _ "," _ ",null," _ "," _ "," _ "," _ "," _ ",null," _ "," _ "," _ "," _ ",null,1,11,"Electricity"," Energy Sources",null,null,0,0,0,0,0,0,0,0,0,"_","_","_","_"]
["O1370-1/IA10375/F0045/X032/R0035/001/CONTRA","O1370-1/IA10375/F0045/X032/R0035/001/CONTRA",121578,0,"Assets:Current Assets:VAT Receivable:Input Tax Accrual:Recognised"," _"," _"," _ "," _ "," _ "," _ ",4100,"Energy sources",4101,"Electricity","_"," _"," _","O","IA",170,"Current assets / VAT",170,"VAT"," _ "," _ ","_","_"," _ "," _ "," _ "," _ "," _ "," _ "," _ "," _ ",null," _ "," _ "," _ "," _ ",null,null,null," _ "," _ "," _ "," _ "," _ "," _ "," _ "," _ "," _ "," _ "," _ ",null," _ "," _ "," _ "," _ "," _ ",null," _ "," _ "," _ "," _ ",null,1,11,"Electricity"," Energy Sources",null,null,0,0,0,0,0,0,0,0,0,"_","_","_","_"]
["O1370-3/IA10375/F0048/X032/R0040/001/CONTRA","O1370-3/IA10375/F0048/X032/R0040/001/CONTRA",121634,0,"Assets:Current Assets:VAT Receivable:Input Tax Accrual:Recognised"," _"," _"," _ "," _ "," _ "," _ ",4100,"Energy sources",4101,"Electricity","_"," _"," _","O","IA",170,"Current assets / VAT",170,"VAT"," _ "," _ ","_","_"," _ "," _ "," _ "," _ "," _ "," _ "," _ "," _ ",null," _ "," _ "," _ "," _ ",null,null,null," _ "," _ "," _ "," _ "," _ "," _ "," _ "," _ "," _ "," _ "," _ ",null," _ "," _ "," _ "," _ "," _ ",null," _ "," _ "," _ "," _ ",null,1,11,"Electricity"," Energy Sources",null,null,0,0,0,0,0,0,0,0,0,"_","_","_","_"]
["O1370-8/IA10375/F0041/X032/R0034/001/CONTRA","O1370-8/IA10375/F0041/X032/R0034/001/CONTRA",123298,0,"Assets:Current Assets:VAT Receivable:Input Tax Accrual:Recognised"," _"," _"," _ "," _ "," _ "," _ ",4100,"Energy sources",4101,"Electricity","_"," _"," _","O","IA",170,"Current assets / VAT",170,"VAT"," _ "," _ ","_","_"," _ "," _ "," _ "," _ "," _ "," _ "," _ "," _ ",null," _ "," _ "," _ "," _ ",null,null,null," _ "," _ "," _ "," _ "," _ "," _ "," _ "," _ "," _ "," _ "," _ ",null," _ "," _ "," _ "," _ "," _ ",null," _ "," _ "," _ "," _ ",null,1,11,"Electricity"," Energy Sources",null,null,0,0,0,0,0,0,0,0,0,"_","_","_","_"]
["O1370-6/IA10375/F0041/X032/R0025/001/CONTRA","O1370-6/IA10375/F0041/X032/R0025/001/CONTRA",121890,0,"Assets:Current Assets:VAT Receivable:Input Tax Accrual:Recognised"," _"," _"," _ "," _ "," _ "," _ ",4100,"Energy sources",4101,"Electricity","_"," _"," _","O","IA",170,"Current assets / VAT",170,"VAT"," _ "," _ ","_","_"," _ "," _ "," _ "," _ "," _ "," _ "," _ "," _ ",null," _ "," _ "," _ "," _ ",null,null,null," _ "," _ "," _ "," _ "," _ "," _ "," _ "," _ "," _ "," _ "," _ ",null," _ "," _ "," _ "," _ "," _ ",null," _ "," _ "," _ "," _ ",null,1,11,"Electricity"," Energy Sources",null,null,0,0,0,0,0,0,0,0,0,"_","_","_","_"]
["O1370-3/IA10375/F0041/X032/R0042/001/CONTRA","O1370-3/IA10375/F0041/X032/R0042/001/CONTRA",121630,0,"Assets:Current Assets:VAT Receivable:Input Tax Accrual:Recognised"," _"," _"," _ "," _ "," _ "," _ ",4100,"Energy sources",4101,"Electricity","_"," _"," _","O","IA",170,"Current assets / VAT",170,"VAT"," _ "," _ ","_","_"," _ "," _ "," _ "," _ "," _ "," _ "," _ "," _ ",null," _ "," _ "," _ "," _ ",null,null,null," _ "," _ "," _ "," _ "," _ "," _ "," _ "," _ "," _ "," _ "," _ ",null," _ "," _ "," _ "," _ "," _ ",null," _ "," _ "," _ "," _ ",null,1,11,"Electricity"," Energy Sources",null,null,0,0,0,0,0,0,0,0,0,"_","_","_","_"]
["O1370-3/IA10375/F0041/X032/R0033/001/CONTRA","O1370-3/IA10375/F0041/X032/R0033/001/CONTRA",121626,0,"Assets:Current Assets:VAT Receivable:Input Tax Accrual:Recognised"," _"," _"," _ "," _ "," _ "," _ ",4100,"Energy sources",4101,"Electricity","_"," _"," _","O","IA",170,"Current assets / VAT",170,"VAT"," _ "," _ ","_","_"," _ "," _ "," _ "," _ "," _ "," _ "," _ "," _ ",null," _ "," _ "," _ "," _ ",null,null,null," _ "," _ "," _ "," _ "," _ "," _ "," _ "," _ "," _ "," _ "," _ ",null," _ "," _ "," _ "," _ "," _ ",null," _ "," _ "," _ "," _ ",null,1,11,"Electricity"," Energy Sources",null,null,0,0,0,0,0,0,0,0,0,"_","_","_","_"]
["O1370-3/IA10375/F0041/X032/R0025/001/CONTRA","O1370-3/IA10375/F0041/X032/R0025/001/CONTRA",121622,0,"Assets:Current Assets:VAT Receivable:Input Tax Accrual:Recognised"," _"," _"," _ "," _ "," _ "," _ ",4100,"Energy sources",4101,"Electricity","_"," _"," _","O","IA",170,"Current assets / VAT",170,"VAT"," _ "," _ ","_","_"," _ "," _ "," _ "," _ "," _ "," _ "," _ "," _ ",null," _ "," _ "," _ "," _ ",null,null,null," _ "," _ "," _ "," _ "," _ "," _ "," _ "," _ "," _ "," _ "," _ ",null," _ "," _ "," _ "," _ "," _ ",null," _ "," _ "," _ "," _ ",null,1,11,"Electricity"," Energy Sources",null,null,0,0,0,0,0,0,0,0,0,"_","_","_","_"]
["O1370-7/IA10375/F0041/X035/R0034/001/CONTRA","O1370-7/IA10375/F0041/X035/R0034/001/CONTRA",122922,0,"Assets:Current Assets:VAT Receivable:Input Tax Accrual:Recognised"," _"," _"," _ "," _ "," _ "," _ ",4100,"Energy sources",4101,"Electricity","_"," _"," _","O","IA",170,"Current assets / VAT",170,"VAT"," _ "," _ ","_","_"," _ "," _ "," _ "," _ "," _ "," _ "," _ "," _ ",null," _ "," _ "," _ "," _ ",null,null,null," _ "," _ "," _ "," _ "," _ "," _ "," _ "," _ "," _ "," _ "," _ ",null," _ "," _ "," _ "," _ "," _ ",null," _ "," _ "," _ "," _ ",null,1,11,"Electricity"," Energy Sources",null,null,0,0,0,0,0,0,0,0,0,"_","_","_","_"]
["O1370-4/IA10375/F0041/X032/R0038/001/CONTRA","O1370-4/IA10375/F0041/X032/R0038/001/CONTRA",121765,0,"Assets:Current Assets:VAT Receivable:Input Tax Accrual:Recognised"," _"," _"," _ "," _ "," _ "," _ ",4100,"Energy sources",4101,"Electricity","_"," _"," _","O","IA",170,"Current assets / VAT",170,"VAT"," _ "," _ ","_","_"," _ "," _ "," _ "," _ "," _ "," _ "," _ "," _ ",null," _ "," _ "," _ "," _ ",null,null,null," _ "," _ "," _ "," _ "," _ "," _ "," _ "," _ "," _ "," _ "," _ ",null," _ "," _ "," _ "," _ "," _ ",null," _ "," _ "," _ "," _ ",null,1,11,"Electricity"," Energy Sources",null,null,0,0,0,0,0,0,0,0,0,"_","_","_","_"]
["O1370-5/IE00634/F0045/X032/R0038/001/6707","O1370-5/IE00634/F0045/X032/R0038/001/6707",30614,1862,"Expenditure:Contracted Services:Contractors:Electrical",3800,"Expenditure / Contracted services",2703,"Expenditure / Contracted services",2703,"Contracted Services ",4100,"Energy sources",4101,"Electricity","_"," _"," _","O","IE"," _ "," _ "," _ "," _ "," _ "," _ ","_","_"," _ "," _ "," _ "," _ "," _ "," _ "," _ "," _ ",null," _ "," _ "," _ "," _ ",null,null,null," _ "," _ "," _ "," _ "," _ "," _ "," _ "," _ "," _ "," _ "," _ ",null," _ "," _ "," _ "," _ "," _ ",null," _ "," _ "," _ "," _ ",null,1,11,"Electricity"," Energy Sources",null,null,0,0,0,0,0,0,0,0,0,"_","_","_","_"]
["O1370-5/IE00634/F0045/X032/R0039/001/6707","O1370-5/IE00634/F0045/X032/R0039/001/6707",30615,1863,"Expenditure:Contracted Services:Contractors:Electrical",3800,"Expenditure / Contracted services",2703,"Expenditure / Contracted services",2703,"Contracted Services ",4100,"Energy sources",4101,"Electricity","_"," _"," _","O","IE"," _ "," _ "," _ "," _ "," _ "," _ ","_","_"," _ "," _ "," _ "," _ "," _ "," _ "," _ "," _ ",null," _ "," _ "," _ "," _ ",null,null,null," _ "," _ "," _ "," _ "," _ "," _ "," _ "," _ "," _ "," _ "," _ ",null," _ "," _ "," _ "," _ "," _ ",null," _ "," _ "," _ "," _ ",null,1,11,"Electricity"," Energy Sources",null,null,0,0,0,0,0,0,0,0,0,"_","_","_","_"]
["O1370-5/IE00634/F0045/X032/R0032/001/6707","O1370-5/IE00634/F0045/X032/R0032/001/6707",30616,1864,"Expenditure:Contracted Services:Contractors:Electrical",3800,"Expenditure / Contracted services",2703,"Expenditure / Contracted services",2703,"Contracted Services ",4100,"Energy sources",4101,"Electricity","_"," _"," _","O","IE"," _ "," _ "," _ "," _ "," _ "," _ ","_","_"," _ "," _ "," _ "," _ "," _ "," _ "," _ "," _ ",null," _ "," _ "," _ "," _ ",null,null,null," _ "," _ "," _ "," _ "," _ "," _ "," _ "," _ "," _ "," _ "," _ ",null," _ "," _ "," _ "," _ "," _ ",null," _ "," _ "," _ "," _ ",null,1,11,"Electricity"," Energy Sources",null,null,0,0,0,0,0,0,0,0,0,"_","_","_","_"]
["O1370-6/IE00634/F0045/X032/R0039/001/6707","O1370-6/IE00634/F0045/X032/R0039/001/6707",30626,1868,"Expenditure:Contracted Services:Contractors:Electrical",3800,"Expenditure / Contracted services",2703,"Expenditure / Contracted services",2703,"Contracted Services ",4100,"Energy sources",4101,"Electricity","_"," _"," _","O","IE"," _ "," _ "," _ "," _ "," _ "," _ ","_","_"," _ "," _ "," _ "," _ "," _ "," _ "," _ "," _ ",null," _ "," _ "," _ "," _ ",null,null,null," _ "," _ "," _ "," _ "," _ "," _ "," _ "," _ "," _ "," _ "," _ ",null," _ "," _ "," _ "," _ "," _ ",null," _ "," _ "," _ "," _ ",null,1,11,"Electricity"," Energy Sources",null,null,0,0,0,0,0,0,0,0,0,"_","_","_","_"]
["O1370-6/IE00634/F0045/X032/R0032/001/6707","O1370-6/IE00634/F0045/X032/R0032/001/6707",30627,1869,"Expenditure:Contracted Services:Contractors:Electrical",3800,"Expenditure / Contracted services",2703,"Expenditure / Contracted services",2703,"Contracted Services ",4100,"Energy sources",4101,"Electricity","_"," _"," _","O","IE"," _ "," _ "," _ "," _ "," _ "," _ ","_","_"," _ "," _ "," _ "," _ "," _ "," _ "," _ "," _ ",null," _ "," _ "," _ "," _ ",null,null,null," _ "," _ "," _ "," _ "," _ "," _ "," _ "," _ "," _ "," _ "," _ ",null," _ "," _ "," _ "," _ "," _ ",null," _ "," _ "," _ "," _ ",null,1,11,"Electricity"," Energy Sources",null,null,0,0,0,0,0,0,0,0,0,"_","_","_","_"]
["O1370-3/IE00634/F0048/X032/R0040/001/6707","O1370-3/IE00634/F0048/X032/R0040/001/6707",30549,1855,"Expenditure:Contracted Services:Contractors:Electrical",3800,"Expenditure / Contracted services",2703,"Expenditure / Contracted services",2703,"Contracted Services ",4100,"Energy sources",4101,"Electricity","_"," _"," _","O","IE"," _ "," _ "," _ "," _ "," _ "," _ ","_","_"," _ "," _ "," _ "," _ "," _ "," _ "," _ "," _ ",null," _ "," _ "," _ "," _ ",null,null,null," _ "," _ "," _ "," _ "," _ "," _ "," _ "," _ "," _ "," _ "," _ ",null," _ "," _ "," _ "," _ "," _ ",null," _ "," _ "," _ "," _ ",null,1,11,"Electricity"," Energy Sources",null,null,0,0,0,0,0,0,0,0,0,"_","_","_","_"]
["O1370-3/IE00634/F0041/X032/R0042/001/6707","O1370-3/IE00634/F0041/X032/R0042/001/6707",30550,1856,"Expenditure:Contracted Services:Contractors:Electrical",3800,"Expenditure / Contracted services",2703,"Expenditure / Contracted services",2703,"Contracted Services ",4100,"Energy sources",4101,"Electricity","_"," _"," _","O","IE"," _ "," _ "," _ "," _ "," _ "," _ ","_","_"," _ "," _ "," _ "," _ "," _ "," _ "," _ "," _ ",null," _ "," _ "," _ "," _ ",null,null,null," _ "," _ "," _ "," _ "," _ "," _ "," _ "," _ "," _ "," _ "," _ ",null," _ "," _ "," _ "," _ "," _ ",null," _ "," _ "," _ "," _ ",null,1,11,"Electricity"," Energy Sources",null,null,0,0,0,0,0,0,0,0,0,"_","_","_","_"]
["O1370-3/IE00634/F0041/X032/R0033/001/6707","O1370-3/IE00634/F0041/X032/R0033/001/6707",30551,1857,"Expenditure:Contracted Services:Contractors:Electrical",3800,"Expenditure / Contracted services",2703,"Expenditure / Contracted services",2703,"Contracted Services ",4100,"Energy sources",4101,"Electricity","_"," _"," _","O","IE"," _ "," _ "," _ "," _ "," _ "," _ ","_","_"," _ "," _ "," _ "," _ "," _ "," _ "," _ "," _ ",null," _ "," _ "," _ "," _ ",null,null,null," _ "," _ "," _ "," _ "," _ "," _ "," _ "," _ "," _ "," _ "," _ ",null," _ "," _ "," _ "," _ "," _ ",null," _ "," _ "," _ "," _ ",null,1,11,"Electricity"," Energy Sources",null,null,0,0,0,0,0,0,0,0,0,"_","_","_","_"]
["O1370-3/IE00634/F0041/X032/R0025/001/6707","O1370-3/IE00634/F0041/X032/R0025/001/6707",30552,1858,"Expenditure:Contracted Services:Contractors:Electrical",3800,"Expenditure / Contracted services",2703,"Expenditure / Contracted services",2703,"Contracted Services ",4100,"Energy sources",4101,"Electricity","_"," _"," _","O","IE"," _ "," _ "," _ "," _ "," _ "," _ ","_","_"," _ "," _ "," _ "," _ "," _ "," _ "," _ "," _ ",null," _ "," _ "," _ "," _ ",null,null,null," _ "," _ "," _ "," _ "," _ "," _ "," _ "," _ "," _ "," _ "," _ ",null," _ "," _ "," _ "," _ "," _ ",null," _ "," _ "," _ "," _ ",null,1,11,"Electricity"," Energy Sources",null,null,0,0,0,0,0,0,0,0,0,"_","_","_","_"]
["O1370-7/IE00634/F0045/X035/R0033/001/6707","O1370-7/IE00634/F0045/X035/R0033/001/6707",69496,4377,"Expenditure:Contracted Services:Contractors:Electrical",3800,"Expenditure / Contracted services",2703,"Expenditure / Contracted services",2703,"Contracted Services ",4100,"Energy sources",4101,"Electricity","_"," _"," _","O","IE"," _ "," _ "," _ "," _ "," _ "," _ ","_","_"," _ "," _ "," _ "," _ "," _ "," _ "," _ "," _ ",null," _ "," _ "," _ "," _ ",null,null,null," _ "," _ "," _ "," _ "," _ "," _ "," _ "," _ "," _ "," _ "," _ ",null," _ "," _ "," _ "," _ "," _ ",null," _ "," _ "," _ "," _ ",null,1,11,"Electricity"," Energy Sources",null,null,0,0,0,0,0,0,0,0,0,"_","_","_","_"]
["O1370-6/IE00634/F0041/X032/R0025/001/6707","O1370-6/IE00634/F0041/X032/R0025/001/6707",30628,1870,"Expenditure:Contracted Services:Contractors:Electrical",3800,"Expenditure / Contracted services",2703,"Expenditure / Contracted services",2703,"Contracted Services ",4100,"Energy sources",4101,"Electricity","_"," _"," _","O","IE"," _ "," _ "," _ "," _ "," _ "," _ ","_","_"," _ "," _ "," _ "," _ "," _ "," _ "," _ "," _ ",null," _ "," _ "," _ "," _ ",null,null,null," _ "," _ "," _ "," _ "," _ "," _ "," _ "," _ "," _ "," _ "," _ ",null," _ "," _ "," _ "," _ "," _ ",null," _ "," _ "," _ "," _ ",null,1,11,"Electricity"," Energy Sources",null,null,0,0,0,0,0,0,0,0,0,"_","_","_","_"]
["O1370-8/IE00634/F13530/X032/R0034/001/6707","O1370-8/IE00634/F13530/X032/R0034/001/6707",120269,10153,"Expenditure:Contracted Services:Contractors:Electrical",3800,"Expenditure / Contracted services",2703,"Expenditure / Contracted services",2703,"Contracted Services ",4100,"Energy sources",4101,"Electricity","_"," _"," _","O","IE"," _ "," _ "," _ "," _ "," _ "," _ ","_","_"," _ "," _ "," _ "," _ "," _ "," _ "," _ "," _ ",null," _ "," _ "," _ "," _ ",null,null,null," _ "," _ "," _ "," _ "," _ "," _ "," _ "," _ "," _ "," _ "," _ ",null," _ "," _ "," _ "," _ "," _ ",null," _ "," _ "," _ "," _ ",null,1,11,"Electricity"," Energy Sources",null,null,0,0,0,3000000,7000000,0,0,0,8745147,"_","_","_","_"]
["O1370-1/IE00634/F0045/X032/R0035/001/6707","O1370-1/IE00634/F0045/X032/R0035/001/6707",30448,1844,"Expenditure:Contracted Services:Contractors:Electrical",3800,"Expenditure / Contracted services",2703,"Expenditure / Contracted services",2703,"Contracted Services ",4100,"Energy sources",4101,"Electricity","_"," _"," _","O","IE"," _ "," _ "," _ "," _ "," _ "," _ ","_","_"," _ "," _ "," _ "," _ "," _ "," _ "," _ "," _ ",null," _ "," _ "," _ "," _ ",null,null,null," _ "," _ "," _ "," _ "," _ "," _ "," _ "," _ "," _ "," _ "," _ ",null," _ "," _ "," _ "," _ "," _ ",null," _ "," _ "," _ "," _ ",null,1,11,"Electricity"," Energy Sources",null,null,0,0,0,0,0,0,0,0,0,"_","_","_","_"]
["O1370-2/IE00634/F0045/X032/R0043/001/6707","O1370-2/IE00634/F0045/X032/R0043/001/6707",30454,1848,"Expenditure:Contracted Services:Contractors:Electrical",3800,"Expenditure / Contracted services",2703,"Expenditure / Contracted services",2703,"Contracted Services ",4100,"Energy sources",4101,"Electricity","_"," _"," _","O","IE"," _ "," _ "," _ "," _ "," _ "," _ ","_","_"," _ "," _ "," _ "," _ "," _ "," _ "," _ "," _ ",null," _ "," _ "," _ "," _ ",null,null,null," _ "," _ "," _ "," _ "," _ "," _ "," _ "," _ "," _ "," _ "," _ ",null," _ "," _ "," _ "," _ "," _ ",null," _ "," _ "," _ "," _ ",null,1,11,"Electricity"," Energy Sources",null,null,0,0,0,0,0,0,0,0,0,"_","_","_","_"]
["O1370-2/IE00634/F0045/X032/R0044/001/6707","O1370-2/IE00634/F0045/X032/R0044/001/6707",30455,1849,"Expenditure:Contracted Services:Contractors:Electrical",3800,"Expenditure / Contracted services",2703,"Expenditure / Contracted services",2703,"Contracted Services ",4100,"Energy sources",4101,"Electricity","_"," _"," _","O","IE"," _ "," _ "," _ "," _ "," _ "," _ ","_","_"," _ "," _ "," _ "," _ "," _ "," _ "," _ "," _ ",null," _ "," _ "," _ "," _ ",null,null,null," _ "," _ "," _ "," _ "," _ "," _ "," _ "," _ "," _ "," _ "," _ ",null," _ "," _ "," _ "," _ "," _ ",null," _ "," _ "," _ "," _ ",null,1,11,"Electricity"," Energy Sources",null,null,0,0,-109920,0,0,0,0,0,0,"_","_","_","_"]
["O1370-2/IE00634/F0045/X032/R0019/001/6707","O1370-2/IE00634/F0045/X032/R0019/001/6707",30456,1850,"Expenditure:Contracted Services:Contractors:Electrical",3800,"Expenditure / Contracted services",2703,"Expenditure / Contracted services",2703,"Contracted Services ",4100,"Energy sources",4101,"Electricity","_"," _"," _","O","IE"," _ "," _ "," _ "," _ "," _ "," _ ","_","_"," _ "," _ "," _ "," _ "," _ "," _ "," _ "," _ ",null," _ "," _ "," _ "," _ ",null,null,null," _ "," _ "," _ "," _ "," _ "," _ "," _ "," _ "," _ "," _ "," _ ",null," _ "," _ "," _ "," _ "," _ ",null," _ "," _ "," _ "," _ ",null,1,11,"Electricity"," Energy Sources",null,null,0,0,0,0,0,0,0,0,0,"_","_","_","_"]
["O1370-7/IE00634/F0041/X035/R0034/001/6707","O1370-7/IE00634/F0041/X035/R0034/001/6707",69494,4375,"Expenditure:Contracted Services:Contractors:Electrical",3800,"Expenditure / Contracted services",2703,"Expenditure / Contracted services",2703,"Contracted Services ",4100,"Energy sources",4101,"Electricity","_"," _"," _","O","IE"," _ "," _ "," _ "," _ "," _ "," _ ","_","_"," _ "," _ "," _ "," _ "," _ "," _ "," _ "," _ ",null," _ "," _ "," _ "," _ ",null,null,null," _ "," _ "," _ "," _ "," _ "," _ "," _ "," _ "," _ "," _ "," _ ",null," _ "," _ "," _ "," _ "," _ ",null," _ "," _ "," _ "," _ ",null,1,11,"Electricity"," Energy Sources",null,null,0,0,0,0,0,0,0,0,0,"_","_","_","_"]
["O1370-8/IE00634/F0041/X032/R0034/001/6707","O1370-8/IE00634/F0041/X032/R0034/001/6707",120268,10152,"Expenditure:Contracted Services:Contractors:Electrical",3800,"Expenditure / Contracted services",2703,"Expenditure / Contracted services",2703,"Contracted Services ",4100,"Energy sources",4101,"Electricity","_"," _"," _","O","IE"," _ "," _ "," _ "," _ "," _ "," _ ","_","_"," _ "," _ "," _ "," _ "," _ "," _ "," _ "," _ ",null," _ "," _ "," _ "," _ ",null,null,null," _ "," _ "," _ "," _ "," _ "," _ "," _ "," _ "," _ "," _ "," _ ",null," _ "," _ "," _ "," _ "," _ ",null," _ "," _ "," _ "," _ ",null,1,11,"Electricity"," Energy Sources",null,null,0,0,0,100000,3720710,0,0,0,0,"_","_","_","_"]
["O1370-7/IA02108/F0045/X035/R0033/001/CONTRA","O1370-7/IA02108/F0045/X035/R0033/001/CONTRA",122925,0,"Assets:Current Assets:Cash and Cash Equivalents:Cash at Bank:Bank Account:Specify (replace with account description):Withdrawals"," _"," _"," _ "," _ "," _ "," _ ",4100,"Energy sources",4101,"Electricity","_"," _"," _","O","IA",120,"Current assets / Cash and cash equivalents",120,"Cash and cash equivalents","0140W","CASH FLOW FROM OPERATING ACTIVITIES / Receipts / Other revenue","0140W","CASH FLOW FROM OPERATING ACTIVITIES / Receipts / Other revenue"," _ "," _ "," _ "," _ "," _ "," _ "," _ "," _ ",null," _ "," _ "," _ "," _ ",250,"Cash Receipts By Source / Other revenue","W"," _ "," _ "," _ "," _ "," _ "," _ "," _ "," _ "," _ "," _ "," _ ",null," _ "," _ "," _ "," _ "," _ ",null," _ "," _ "," _ "," _ ",null,1,11,"Electricity"," Energy Sources",null,null,0,0,0,0,0,0,0,0,0,"_","_","_","_"]
["O1370-6/IA02108/F0045/X032/R0032/001/CONTRA","O1370-6/IA02108/F0045/X032/R0032/001/CONTRA",121893,0,"Assets:Current Assets:Cash and Cash Equivalents:Cash at Bank:Bank Account:Specify (replace with account description):Withdrawals"," _"," _"," _ "," _ "," _ "," _ ",4100,"Energy sources",4101,"Electricity","_"," _"," _","O","IA",120,"Current assets / Cash and cash equivalents",120,"Cash and cash equivalents","0140W","CASH FLOW FROM OPERATING ACTIVITIES / Receipts / Other revenue","0140W","CASH FLOW FROM OPERATING ACTIVITIES / Receipts / Other revenue"," _ "," _ "," _ "," _ "," _ "," _ "," _ "," _ ",null," _ "," _ "," _ "," _ ",250,"Cash Receipts By Source / Other revenue","W"," _ "," _ "," _ "," _ "," _ "," _ "," _ "," _ "," _ "," _ "," _ ",null," _ "," _ "," _ "," _ "," _ ",null," _ "," _ "," _ "," _ ",null,1,11,"Electricity"," Energy Sources",null,null,0,0,0,0,0,0,0,0,0,"_","_","_","_"]
["O1370-6/IA02108/F0045/X032/R0039/001/CONTRA","O1370-6/IA02108/F0045/X032/R0039/001/CONTRA",121897,0,"Assets:Current Assets:Cash and Cash Equivalents:Cash at Bank:Bank Account:Specify (replace with account description):Withdrawals"," _"," _"," _ "," _ "," _ "," _ ",4100,"Energy sources",4101,"Electricity","_"," _"," _","O","IA",120,"Current assets / Cash and cash equivalents",120,"Cash and cash equivalents","0140W","CASH FLOW FROM OPERATING ACTIVITIES / Receipts / Other revenue","0140W","CASH FLOW FROM OPERATING ACTIVITIES / Receipts / Other revenue"," _ "," _ "," _ "," _ "," _ "," _ "," _ "," _ ",null," _ "," _ "," _ "," _ ",250,"Cash Receipts By Source / Other revenue","W"," _ "," _ "," _ "," _ "," _ "," _ "," _ "," _ "," _ "," _ "," _ ",null," _ "," _ "," _ "," _ "," _ ",null," _ "," _ "," _ "," _ ",null,1,11,"Electricity"," Energy Sources",null,null,0,0,0,0,0,0,0,0,0,"_","_","_","_"]
["O1370-5/IA02108/F0045/X032/R0032/001/CONTRA","O1370-5/IA02108/F0045/X032/R0032/001/CONTRA",121810,0,"Assets:Current Assets:Cash and Cash Equivalents:Cash at Bank:Bank Account:Specify (replace with account description):Withdrawals"," _"," _"," _ "," _ "," _ "," _ ",4100,"Energy sources",4101,"Electricity","_"," _"," _","O","IA",120,"Current assets / Cash and cash equivalents",120,"Cash and cash equivalents","0140W","CASH FLOW FROM OPERATING ACTIVITIES / Receipts / Other revenue","0140W","CASH FLOW FROM OPERATING ACTIVITIES / Receipts / Other revenue"," _ "," _ "," _ "," _ "," _ "," _ "," _ "," _ ",null," _ "," _ "," _ "," _ ",250,"Cash Receipts By Source / Other revenue","W"," _ "," _ "," _ "," _ "," _ "," _ "," _ "," _ "," _ "," _ "," _ ",null," _ "," _ "," _ "," _ "," _ ",null," _ "," _ "," _ "," _ ",null,1,11,"Electricity"," Energy Sources",null,null,0,0,0,0,0,0,0,0,0,"_","_","_","_"]
["O1370-5/IA02108/F0045/X032/R0038/001/CONTRA","O1370-5/IA02108/F0045/X032/R0038/001/CONTRA",121814,0,"Assets:Current Assets:Cash and Cash Equivalents:Cash at Bank:Bank Account:Specify (replace with account description):Withdrawals"," _"," _"," _ "," _ "," _ "," _ ",4100,"Energy sources",4101,"Electricity","_"," _"," _","O","IA",120,"Current assets / Cash and cash equivalents",120,"Cash and cash equivalents","0140W","CASH FLOW FROM OPERATING ACTIVITIES / Receipts / Other revenue","0140W","CASH FLOW FROM OPERATING ACTIVITIES / Receipts / Other revenue"," _ "," _ "," _ "," _ "," _ "," _ "," _ "," _ ",null," _ "," _ "," _ "," _ ",250,"Cash Receipts By Source / Other revenue","W"," _ "," _ "," _ "," _ "," _ "," _ "," _ "," _ "," _ "," _ "," _ ",null," _ "," _ "," _ "," _ "," _ ",null," _ "," _ "," _ "," _ ",null,1,11,"Electricity"," Energy Sources",null,null,0,0,0,0,0,0,0,0,0,"_","_","_","_"]
["O1370-5/IA02108/F0045/X032/R0039/001/CONTRA","O1370-5/IA02108/F0045/X032/R0039/001/CONTRA",121818,0,"Assets:Current Assets:Cash and Cash Equivalents:Cash at Bank:Bank Account:Specify (replace with account description):Withdrawals"," _"," _"," _ "," _ "," _ "," _ ",4100,"Energy sources",4101,"Electricity","_"," _"," _","O","IA",120,"Current assets / Cash and cash equivalents",120,"Cash and cash equivalents","0140W","CASH FLOW FROM OPERATING ACTIVITIES / Receipts / Other revenue","0140W","CASH FLOW FROM OPERATING ACTIVITIES / Receipts / Other revenue"," _ "," _ "," _ "," _ "," _ "," _ "," _ "," _ ",null," _ "," _ "," _ "," _ ",250,"Cash Receipts By Source / Other revenue","W"," _ "," _ "," _ "," _ "," _ "," _ "," _ "," _ "," _ "," _ "," _ ",null," _ "," _ "," _ "," _ "," _ ",null," _ "," _ "," _ "," _ ",null,1,11,"Electricity"," Energy Sources",null,null,0,0,0,0,0,0,0,0,0,"_","_","_","_"]
["O1370-4/IA02108/F0045/X032/R0028/001/CONTRA","O1370-4/IA02108/F0045/X032/R0028/001/CONTRA",121768,0,"Assets:Current Assets:Cash and Cash Equivalents:Cash at Bank:Bank Account:Specify (replace with account description):Withdrawals"," _"," _"," _ "," _ "," _ "," _ ",4100,"Energy sources",4101,"Electricity","_"," _"," _","O","IA",120,"Current assets / Cash and cash equivalents",120,"Cash and cash equivalents","0140W","CASH FLOW FROM OPERATING ACTIVITIES / Receipts / Other revenue","0140W","CASH FLOW FROM OPERATING ACTIVITIES / Receipts / Other revenue"," _ "," _ "," _ "," _ "," _ "," _ "," _ "," _ ",null," _ "," _ "," _ "," _ ",250,"Cash Receipts By Source / Other revenue","W"," _ "," _ "," _ "," _ "," _ "," _ "," _ "," _ "," _ "," _ "," _ ",null," _ "," _ "," _ "," _ "," _ ",null," _ "," _ "," _ "," _ ",null,1,11,"Electricity"," Energy Sources",null,null,0,0,0,0,0,0,0,0,0,"_","_","_","_"]
["O1370-4/IA02108/F0045/X032/R0036/001/CONTRA","O1370-4/IA02108/F0045/X032/R0036/001/CONTRA",121772,0,"Assets:Current Assets:Cash and Cash Equivalents:Cash at Bank:Bank Account:Specify (replace with account description):Withdrawals"," _"," _"," _ "," _ "," _ "," _ ",4100,"Energy sources",4101,"Electricity","_"," _"," _","O","IA",120,"Current assets / Cash and cash equivalents",120,"Cash and cash equivalents","0140W","CASH FLOW FROM OPERATING ACTIVITIES / Receipts / Other revenue","0140W","CASH FLOW FROM OPERATING ACTIVITIES / Receipts / Other revenue"," _ "," _ "," _ "," _ "," _ "," _ "," _ "," _ ",null," _ "," _ "," _ "," _ ",250,"Cash Receipts By Source / Other revenue","W"," _ "," _ "," _ "," _ "," _ "," _ "," _ "," _ "," _ "," _ "," _ ",null," _ "," _ "," _ "," _ "," _ ",null," _ "," _ "," _ "," _ ",null,1,11,"Electricity"," Energy Sources",null,null,0,0,0,0,0,0,0,0,0,"_","_","_","_"]
["O1370-4/IA02108/F2496/X032/R0035/001/CONTRA","O1370-4/IA02108/F2496/X032/R0035/001/CONTRA",121776,0,"Assets:Current Assets:Cash and Cash Equivalents:Cash at Bank:Bank Account:Specify (replace with account description):Withdrawals"," _"," _"," _ "," _ "," _ "," _ ",4100,"Energy sources",4101,"Electricity","_"," _"," _","O","IA",120,"Current assets / Cash and cash equivalents",120,"Cash and cash equivalents","0120W","CASH FLOW FROM OPERATING ACTIVITIES / Receipts / Property rates","0120W","CASH FLOW FROM OPERATING ACTIVITIES / Receipts / Property rates"," _ "," _ "," _ "," _ "," _ "," _ "," _ "," _ ",null," _ "," _ "," _ "," _ ",110,"Cash Receipts By Source / Property rates","W"," _ "," _ "," _ "," _ "," _ "," _ "," _ "," _ "," _ "," _ "," _ ",null," _ "," _ "," _ "," _ "," _ ",null," _ "," _ "," _ "," _ ",null,1,11,"Electricity"," Energy Sources",null,null,0,0,0,0,0,0,0,0,0,"_","_","_","_"]
["O1370-1/IA02108/F0045/X032/R0035/001/CONTRA","O1370-1/IA02108/F0045/X032/R0035/001/CONTRA",121577,0,"Assets:Current Assets:Cash and Cash Equivalents:Cash at Bank:Bank Account:Specify (replace with account description):Withdrawals"," _"," _"," _ "," _ "," _ "," _ ",4100,"Energy sources",4101,"Electricity","_"," _"," _","O","IA",120,"Current assets / Cash and cash equivalents",120,"Cash and cash equivalents","0140W","CASH FLOW FROM OPERATING ACTIVITIES / Receipts / Other revenue","0140W","CASH FLOW FROM OPERATING ACTIVITIES / Receipts / Other revenue"," _ "," _ "," _ "," _ "," _ "," _ "," _ "," _ ",null," _ "," _ "," _ "," _ ",250,"Cash Receipts By Source / Other revenue","W"," _ "," _ "," _ "," _ "," _ "," _ "," _ "," _ "," _ "," _ "," _ ",null," _ "," _ "," _ "," _ "," _ ",null," _ "," _ "," _ "," _ ",null,1,11,"Electricity"," Energy Sources",null,null,0,0,0,0,0,0,0,0,0,"_","_","_","_"]
["O1370-2/IA02108/F0045/X032/R0019/001/CONTRA","O1370-2/IA02108/F0045/X032/R0019/001/CONTRA",121593,0,"Assets:Current Assets:Cash and Cash Equivalents:Cash at Bank:Bank Account:Specify (replace with account description):Withdrawals"," _"," _"," _ "," _ "," _ "," _ ",4100,"Energy sources",4101,"Electricity","_"," _"," _","O","IA",120,"Current assets / Cash and cash equivalents",120,"Cash and cash equivalents","0140W","CASH FLOW FROM OPERATING ACTIVITIES / Receipts / Other revenue","0140W","CASH FLOW FROM OPERATING ACTIVITIES / Receipts / Other revenue"," _ "," _ "," _ "," _ "," _ "," _ "," _ "," _ ",null," _ "," _ "," _ "," _ ",250,"Cash Receipts By Source / Other revenue","W"," _ "," _ "," _ "," _ "," _ "," _ "," _ "," _ "," _ "," _ "," _ ",null," _ "," _ "," _ "," _ "," _ ",null," _ "," _ "," _ "," _ ",null,1,11,"Electricity"," Energy Sources",null,null,0,0,0,0,0,0,0,0,0,"_","_","_","_"]
["O1370-2/IA02108/F0045/X032/R0043/001/CONTRA","O1370-2/IA02108/F0045/X032/R0043/001/CONTRA",121597,0,"Assets:Current Assets:Cash and Cash Equivalents:Cash at Bank:Bank Account:Specify (replace with account description):Withdrawals"," _"," _"," _ "," _ "," _ "," _ ",4100,"Energy sources",4101,"Electricity","_"," _"," _","O","IA",120,"Current assets / Cash and cash equivalents",120,"Cash and cash equivalents","0140W","CASH FLOW FROM OPERATING ACTIVITIES / Receipts / Other revenue","0140W","CASH FLOW FROM OPERATING ACTIVITIES / Receipts / Other revenue"," _ "," _ "," _ "," _ "," _ "," _ "," _ "," _ ",null," _ "," _ "," _ "," _ ",250,"Cash Receipts By Source / Other revenue","W"," _ "," _ "," _ "," _ "," _ "," _ "," _ "," _ "," _ "," _ "," _ ",null," _ "," _ "," _ "," _ "," _ ",null," _ "," _ "," _ "," _ ",null,1,11,"Electricity"," Energy Sources",null,null,0,0,0,0,0,0,0,0,0,"_","_","_","_"]
["O1370-2/IA02108/F0045/X032/R0044/001/CONTRA","O1370-2/IA02108/F0045/X032/R0044/001/CONTRA",121601,0,"Assets:Current Assets:Cash and Cash Equivalents:Cash at Bank:Bank Account:Specify (replace with account description):Withdrawals"," _"," _"," _ "," _ "," _ "," _ ",4100,"Energy sources",4101,"Electricity","_"," _"," _","O","IA",120,"Current assets / Cash and cash equivalents",120,"Cash and cash equivalents","0140W","CASH FLOW FROM OPERATING ACTIVITIES / Receipts / Other revenue","0140W","CASH FLOW FROM OPERATING ACTIVITIES / Receipts / Other revenue"," _ "," _ "," _ "," _ "," _ "," _ "," _ "," _ ",null," _ "," _ "," _ "," _ ",250,"Cash Receipts By Source / Other revenue","W"," _ "," _ "," _ "," _ "," _ "," _ "," _ "," _ "," _ "," _ "," _ ",null," _ "," _ "," _ "," _ "," _ ",null," _ "," _ "," _ "," _ ",null,1,11,"Electricity"," Energy Sources",null,null,0,0,0,0,0,0,0,0,0,"_","_","_","_"]
["O1370-6/IA02108/F0041/X032/R0025/001/CONTRA","O1370-6/IA02108/F0041/X032/R0025/001/CONTRA",121889,0,"Assets:Current Assets:Cash and Cash Equivalents:Cash at Bank:Bank Account:Specify (replace with account description):Withdrawals"," _"," _"," _ "," _ "," _ "," _ ",4100,"Energy sources",4101,"Electricity","_"," _"," _","O","IA",120,"Current assets / Cash and cash equivalents",120,"Cash and cash equivalents","0150W","CASH FLOW FROM OPERATING ACTIVITIES / Receipts / Transfers and Subsidies - Operational","0150W","CASH FLOW FROM OPERATING ACTIVITIES / Receipts / Transfers and Subsidies - Operational"," _ "," _ "," _ "," _ "," _ "," _ "," _ "," _ ",null," _ "," _ "," _ "," _ ",240,"Cash Receipts By Source / Transfers and Subsidies - Operational","W"," _ "," _ "," _ "," _ "," _ "," _ "," _ "," _ "," _ "," _ "," _ ",null," _ "," _ "," _ "," _ "," _ ",null," _ "," _ "," _ "," _ ",null,1,11,"Electricity"," Energy Sources",null,null,0,0,0,0,0,0,0,0,0,"_","_","_","_"]
["O1370-7/IA02108/F0041/X035/R0034/001/CONTRA","O1370-7/IA02108/F0041/X035/R0034/001/CONTRA",122921,0,"Assets:Current Assets:Cash and Cash Equivalents:Cash at Bank:Bank Account:Specify (replace with account description):Withdrawals"," _"," _"," _ "," _ "," _ "," _ ",4100,"Energy sources",4101,"Electricity","_"," _"," _","O","IA",120,"Current assets / Cash and cash equivalents",120,"Cash and cash equivalents","0150W","CASH FLOW FROM OPERATING ACTIVITIES / Receipts / Transfers and Subsidies - Operational","0150W","CASH FLOW FROM OPERATING ACTIVITIES / Receipts / Transfers and Subsidies - Operational"," _ "," _ "," _ "," _ "," _ "," _ "," _ "," _ ",null," _ "," _ "," _ "," _ ",240,"Cash Receipts By Source / Transfers and Subsidies - Operational","W"," _ "," _ "," _ "," _ "," _ "," _ "," _ "," _ "," _ "," _ "," _ ",null," _ "," _ "," _ "," _ "," _ ",null," _ "," _ "," _ "," _ ",null,1,11,"Electricity"," Energy Sources",null,null,0,0,0,0,0,0,0,0,0,"_","_","_","_"]
["O1370-3/IA02108/F0041/X032/R0025/001/CONTRA","O1370-3/IA02108/F0041/X032/R0025/001/CONTRA",121621,0,"Assets:Current Assets:Cash and Cash Equivalents:Cash at Bank:Bank Account:Specify (replace with account description):Withdrawals"," _"," _"," _ "," _ "," _ "," _ ",4100,"Energy sources",4101,"Electricity","_"," _"," _","O","IA",120,"Current assets / Cash and cash equivalents",120,"Cash and cash equivalents","0150W","CASH FLOW FROM OPERATING ACTIVITIES / Receipts / Transfers and Subsidies - Operational","0150W","CASH FLOW FROM OPERATING ACTIVITIES / Receipts / Transfers and Subsidies - Operational"," _ "," _ "," _ "," _ "," _ "," _ "," _ "," _ ",null," _ "," _ "," _ "," _ ",240,"Cash Receipts By Source / Transfers and Subsidies - Operational","W"," _ "," _ "," _ "," _ "," _ "," _ "," _ "," _ "," _ "," _ "," _ ",null," _ "," _ "," _ "," _ "," _ ",null," _ "," _ "," _ "," _ ",null,1,11,"Electricity"," Energy Sources",null,null,0,0,0,0,0,0,0,0,0,"_","_","_","_"]
["O1370-3/IA02108/F0041/X032/R0033/001/CONTRA","O1370-3/IA02108/F0041/X032/R0033/001/CONTRA",121625,0,"Assets:Current Assets:Cash and Cash Equivalents:Cash at Bank:Bank Account:Specify (replace with account description):Withdrawals"," _"," _"," _ "," _ "," _ "," _ ",4100,"Energy sources",4101,"Electricity","_"," _"," _","O","IA",120,"Current assets / Cash and cash equivalents",120,"Cash and cash equivalents","0150W","CASH FLOW FROM OPERATING ACTIVITIES / Receipts / Transfers and Subsidies - Operational","0150W","CASH FLOW FROM OPERATING ACTIVITIES / Receipts / Transfers and Subsidies - Operational"," _ "," _ "," _ "," _ "," _ "," _ "," _ "," _ ",null," _ "," _ "," _ "," _ ",240,"Cash Receipts By Source / Transfers and Subsidies - Operational","W"," _ "," _ "," _ "," _ "," _ "," _ "," _ "," _ "," _ "," _ "," _ ",null," _ "," _ "," _ "," _ "," _ ",null," _ "," _ "," _ "," _ ",null,1,11,"Electricity"," Energy Sources",null,null,0,0,0,0,0,0,0,0,0,"_","_","_","_"]
["O1370-3/IA02108/F0041/X032/R0042/001/CONTRA","O1370-3/IA02108/F0041/X032/R0042/001/CONTRA",121629,0,"Assets:Current Assets:Cash and Cash Equivalents:Cash at Bank:Bank Account:Specify (replace with account description):Withdrawals"," _"," _"," _ "," _ "," _ "," _ ",4100,"Energy sources",4101,"Electricity","_"," _"," _","O","IA",120,"Current assets / Cash and cash equivalents",120,"Cash and cash equivalents","0150W","CASH FLOW FROM OPERATING ACTIVITIES / Receipts / Transfers and Subsidies - Operational","0150W","CASH FLOW FROM OPERATING ACTIVITIES / Receipts / Transfers and Subsidies - Operational"," _ "," _ "," _ "," _ "," _ "," _ "," _ "," _ ",null," _ "," _ "," _ "," _ ",240,"Cash Receipts By Source / Transfers and Subsidies - Operational","W"," _ "," _ "," _ "," _ "," _ "," _ "," _ "," _ "," _ "," _ "," _ ",null," _ "," _ "," _ "," _ "," _ ",null," _ "," _ "," _ "," _ ",null,1,11,"Electricity"," Energy Sources",null,null,0,0,0,0,0,0,0,0,0,"_","_","_","_"]
["O1370-4/IA02108/F0041/X032/R0038/001/CONTRA","O1370-4/IA02108/F0041/X032/R0038/001/CONTRA",121764,0,"Assets:Current Assets:Cash and Cash Equivalents:Cash at Bank:Bank Account:Specify (replace with account description):Withdrawals"," _"," _"," _ "," _ "," _ "," _ ",4100,"Energy sources",4101,"Electricity","_"," _"," _","O","IA",120,"Current assets / Cash and cash equivalents",120,"Cash and cash equivalents","0150W","CASH FLOW FROM OPERATING ACTIVITIES / Receipts / Transfers and Subsidies - Operational","0150W","CASH FLOW FROM OPERATING ACTIVITIES / Receipts / Transfers and Subsidies - Operational"," _ "," _ "," _ "," _ "," _ "," _ "," _ "," _ ",null," _ "," _ "," _ "," _ ",240,"Cash Receipts By Source / Transfers and Subsidies - Operational","W"," _ "," _ "," _ "," _ "," _ "," _ "," _ "," _ "," _ "," _ "," _ ",null," _ "," _ "," _ "," _ "," _ ",null," _ "," _ "," _ "," _ ",null,1,11,"Electricity"," Energy Sources",null,null,0,0,0,0,0,0,0,0,0,"_","_","_","_"]
["O1370-3/IA02108/F0048/X032/R0040/001/CONTRA","O1370-3/IA02108/F0048/X032/R0040/001/CONTRA",121633,0,"Assets:Current Assets:Cash and Cash Equivalents:Cash at Bank:Bank Account:Specify (replace with account description):Withdrawals"," _"," _"," _ "," _ "," _ "," _ ",4100,"Energy sources",4101,"Electricity","_"," _"," _","O","IA",120,"Current assets / Cash and cash equivalents",120,"Cash and cash equivalents"," _ "," _ ","_","_"," _ "," _ "," _ "," _ "," _ "," _ "," _ "," _ ",null," _ "," _ "," _ "," _ ",null,null,"W"," _ "," _ "," _ "," _ "," _ "," _ "," _ "," _ "," _ "," _ "," _ ",null," _ "," _ "," _ "," _ "," _ ",null," _ "," _ "," _ "," _ ",null,1,11,"Electricity"," Energy Sources",null,null,0,0,0,0,0,0,0,0,0,"_","_","_","_"]
["O1370-8/IA02108/F13530/X032/R0034/001/CONTRA","O1370-8/IA02108/F13530/X032/R0034/001/CONTRA",123301,0,"Assets:Current Assets:Cash and Cash Equivalents:Cash at Bank:Bank Account:Specify (replace with account description):Withdrawals"," _"," _"," _ "," _ "," _ "," _ ",4100,"Energy sources",4101,"Electricity","_"," _"," _","O","IA",120,"Current assets / Cash and cash equivalents",120,"Cash and cash equivalents","0150W","CASH FLOW FROM OPERATING ACTIVITIES / Receipts / Transfers and Subsidies - Operational","0150W","CASH FLOW FROM OPERATING ACTIVITIES / Receipts / Transfers and Subsidies - Operational"," _ "," _ "," _ "," _ "," _ "," _ "," _ "," _ ",null," _ "," _ "," _ "," _ ",240,"Cash Receipts By Source / Transfers and Subsidies - Operational","W"," _ "," _ "," _ "," _ "," _ "," _ "," _ "," _ "," _ "," _ "," _ ",null," _ "," _ "," _ "," _ "," _ ",null," _ "," _ "," _ "," _ ",null,1,11,"Electricity"," Energy Sources",null,null,0,0,0,0,0,0,0,0,0,"_","_","_","_"]
["O1370-8/IA02108/F0041/X032/R0034/001/CONTRA","O1370-8/IA02108/F0041/X032/R0034/001/CONTRA",123297,0,"Assets:Current Assets:Cash and Cash Equivalents:Cash at Bank:Bank Account:Specify (replace with account description):Withdrawals"," _"," _"," _ "," _ "," _ "," _ ",4100,"Energy sources",4101,"Electricity","_"," _"," _","O","IA",120,"Current assets / Cash and cash equivalents",120,"Cash and cash equivalents","0150W","CASH FLOW FROM OPERATING ACTIVITIES / Receipts / Transfers and Subsidies - Operational","0150W","CASH FLOW FROM OPERATING ACTIVITIES / Receipts / Transfers and Subsidies - Operational"," _ "," _ "," _ "," _ "," _ "," _ "," _ "," _ ",null," _ "," _ "," _ "," _ ",240,"Cash Receipts By Source / Transfers and Subsidies - Operational","W"," _ "," _ "," _ "," _ "," _ "," _ "," _ "," _ "," _ "," _ "," _ ",null," _ "," _ "," _ "," _ "," _ ",null," _ "," _ "," _ "," _ ",null,1,11,"Electricity"," Energy Sources",null,null,0,0,0,0,0,0,0,0,0,"_","_","_","_"]
["O1370-5/IL65531/F0045/X032/R0039/001/CONTRA","O1370-5/IL65531/F0045/X032/R0039/001/CONTRA",121821,0,"Liabilities:Current Liabilities:Trade and Other Payable Exchange Transactions:Payables and Accruals : Contractors:Withdrawals"," _"," _"," _ "," _ "," _ "," _ ",4100,"Energy sources",4101,"Electricity","_"," _"," _","O","IL",380,"Current liabilities / Trade and other payables from exchange transactions","_","_"," _ "," _ ","_","_",200,"Cash Payments by Type / Contracted Services",450,"Cash Payments by Type / Contracted Services"," _ "," _ "," _ "," _ ",null,361,"Trade and other payables / Trade and other payables from exchange transactions",361,"Trade and other payables / Trade and other payables from exchange transactions",null,null,null," _ "," _ "," _ "," _ "," _ "," _ "," _ "," _ "," _ "," _ "," _ ",null," _ "," _ "," _ "," _ "," _ ",null," _ "," _ "," _ "," _ ",null,1,11,"Electricity"," Energy Sources",null,null,0,0,0,0,0,0,0,0,0,"_","_","_","_"]
["O1370-4/IL65531/F0045/X032/R0036/001/CONTRA","O1370-4/IL65531/F0045/X032/R0036/001/CONTRA",121775,0,"Liabilities:Current Liabilities:Trade and Other Payable Exchange Transactions:Payables and Accruals : Contractors:Withdrawals"," _"," _"," _ "," _ "," _ "," _ ",4100,"Energy sources",4101,"Electricity","_"," _"," _","O","IL",380,"Current liabilities / Trade and other payables from exchange transactions","_","_"," _ "," _ ","_","_",200,"Cash Payments by Type / Contracted Services",450,"Cash Payments by Type / Contracted Services"," _ "," _ "," _ "," _ ",null,361,"Trade and other payables / Trade and other payables from exchange transactions",361,"Trade and other payables / Trade and other payables from exchange transactions",null,null,null," _ "," _ "," _ "," _ "," _ "," _ "," _ "," _ "," _ "," _ "," _ ",null," _ "," _ "," _ "," _ "," _ ",null," _ "," _ "," _ "," _ ",null,1,11,"Electricity"," Energy Sources",null,null,0,0,0,0,0,0,0,0,0,"_","_","_","_"]
["O1370-4/IL65531/F0045/X032/R0028/001/CONTRA","O1370-4/IL65531/F0045/X032/R0028/001/CONTRA",121771,0,"Liabilities:Current Liabilities:Trade and Other Payable Exchange Transactions:Payables and Accruals : Contractors:Withdrawals"," _"," _"," _ "," _ "," _ "," _ ",4100,"Energy sources",4101,"Electricity","_"," _"," _","O","IL",380,"Current liabilities / Trade and other payables from exchange transactions","_","_"," _ "," _ ","_","_",200,"Cash Payments by Type / Contracted Services",450,"Cash Payments by Type / Contracted Services"," _ "," _ "," _ "," _ ",null,361,"Trade and other payables / Trade and other payables from exchange transactions",361,"Trade and other payables / Trade and other payables from exchange transactions",null,null,null," _ "," _ "," _ "," _ "," _ "," _ "," _ "," _ "," _ "," _ "," _ ",null," _ "," _ "," _ "," _ "," _ ",null," _ "," _ "," _ "," _ ",null,1,11,"Electricity"," Energy Sources",null,null,0,0,0,0,0,0,0,0,0,"_","_","_","_"]
["O1370-6/IL65531/F0045/X032/R0039/001/CONTRA","O1370-6/IL65531/F0045/X032/R0039/001/CONTRA",121900,0,"Liabilities:Current Liabilities:Trade and Other Payable Exchange Transactions:Payables and Accruals : Contractors:Withdrawals"," _"," _"," _ "," _ "," _ "," _ ",4100,"Energy sources",4101,"Electricity","_"," _"," _","O","IL",380,"Current liabilities / Trade and other payables from exchange transactions","_","_"," _ "," _ ","_","_",200,"Cash Payments by Type / Contracted Services",450,"Cash Payments by Type / Contracted Services"," _ "," _ "," _ "," _ ",null,361,"Trade and other payables / Trade and other payables from exchange transactions",361,"Trade and other payables / Trade and other payables from exchange transactions",null,null,null," _ "," _ "," _ "," _ "," _ "," _ "," _ "," _ "," _ "," _ "," _ ",null," _ "," _ "," _ "," _ "," _ ",null," _ "," _ "," _ "," _ ",null,1,11,"Electricity"," Energy Sources",null,null,0,0,0,0,0,0,0,0,0,"_","_","_","_"]
["O1370-7/IL65531/F0045/X035/R0033/001/CONTRA","O1370-7/IL65531/F0045/X035/R0033/001/CONTRA",122928,0,"Liabilities:Current Liabilities:Trade and Other Payable Exchange Transactions:Payables and Accruals : Contractors:Withdrawals"," _"," _"," _ "," _ "," _ "," _ ",4100,"Energy sources",4101,"Electricity","_"," _"," _","O","IL",380,"Current liabilities / Trade and other payables from exchange transactions","_","_"," _ "," _ ","_","_",200,"Cash Payments by Type / Contracted Services",450,"Cash Payments by Type / Contracted Services"," _ "," _ "," _ "," _ ",null,361,"Trade and other payables / Trade and other payables from exchange transactions",361,"Trade and other payables / Trade and other payables from exchange transactions",null,null,null," _ "," _ "," _ "," _ "," _ "," _ "," _ "," _ "," _ "," _ "," _ ",null," _ "," _ "," _ "," _ "," _ ",null," _ "," _ "," _ "," _ ",null,1,11,"Electricity"," Energy Sources",null,null,0,0,0,0,0,0,0,0,0,"_","_","_","_"]
["O1370-5/IL65531/F0045/X032/R0038/001/CONTRA","O1370-5/IL65531/F0045/X032/R0038/001/CONTRA",121817,0,"Liabilities:Current Liabilities:Trade and Other Payable Exchange Transactions:Payables and Accruals : Contractors:Withdrawals"," _"," _"," _ "," _ "," _ "," _ ",4100,"Energy sources",4101,"Electricity","_"," _"," _","O","IL",380,"Current liabilities / Trade and other payables from exchange transactions","_","_"," _ "," _ ","_","_",200,"Cash Payments by Type / Contracted Services",450,"Cash Payments by Type / Contracted Services"," _ "," _ "," _ "," _ ",null,361,"Trade and other payables / Trade and other payables from exchange transactions",361,"Trade and other payables / Trade and other payables from exchange transactions",null,null,null," _ "," _ "," _ "," _ "," _ "," _ "," _ "," _ "," _ "," _ "," _ ",null," _ "," _ "," _ "," _ "," _ ",null," _ "," _ "," _ "," _ ",null,1,11,"Electricity"," Energy Sources",null,null,0,0,0,0,0,0,0,0,0,"_","_","_","_"]
["O1370-5/IL65531/F0045/X032/R0032/001/CONTRA","O1370-5/IL65531/F0045/X032/R0032/001/CONTRA",121813,0,"Liabilities:Current Liabilities:Trade and Other Payable Exchange Transactions:Payables and Accruals : Contractors:Withdrawals"," _"," _"," _ "," _ "," _ "," _ ",4100,"Energy sources",4101,"Electricity","_"," _"," _","O","IL",380,"Current liabilities / Trade and other payables from exchange transactions","_","_"," _ "," _ ","_","_",200,"Cash Payments by Type / Contracted Services",450,"Cash Payments by Type / Contracted Services"," _ "," _ "," _ "," _ ",null,361,"Trade and other payables / Trade and other payables from exchange transactions",361,"Trade and other payables / Trade and other payables from exchange transactions",null,null,null," _ "," _ "," _ "," _ "," _ "," _ "," _ "," _ "," _ "," _ "," _ ",null," _ "," _ "," _ "," _ "," _ ",null," _ "," _ "," _ "," _ ",null,1,11,"Electricity"," Energy Sources",null,null,0,0,0,0,0,0,0,0,0,"_","_","_","_"]
["O1370-2/IL65531/F0045/X032/R0044/001/CONTRA","O1370-2/IL65531/F0045/X032/R0044/001/CONTRA",121604,0,"Liabilities:Current Liabilities:Trade and Other Payable Exchange Transactions:Payables and Accruals : Contractors:Withdrawals"," _"," _"," _ "," _ "," _ "," _ ",4100,"Energy sources",4101,"Electricity","_"," _"," _","O","IL",380,"Current liabilities / Trade and other payables from exchange transactions","_","_"," _ "," _ ","_","_",200,"Cash Payments by Type / Contracted Services",450,"Cash Payments by Type / Contracted Services"," _ "," _ "," _ "," _ ",null,361,"Trade and other payables / Trade and other payables from exchange transactions",361,"Trade and other payables / Trade and other payables from exchange transactions",null,null,null," _ "," _ "," _ "," _ "," _ "," _ "," _ "," _ "," _ "," _ "," _ ",null," _ "," _ "," _ "," _ "," _ ",null," _ "," _ "," _ "," _ ",null,1,11,"Electricity"," Energy Sources",null,null,0,0,0,0,0,0,0,0,0,"_","_","_","_"]
["O1370-2/IL65531/F0045/X032/R0043/001/CONTRA","O1370-2/IL65531/F0045/X032/R0043/001/CONTRA",121600,0,"Liabilities:Current Liabilities:Trade and Other Payable Exchange Transactions:Payables and Accruals : Contractors:Withdrawals"," _"," _"," _ "," _ "," _ "," _ ",4100,"Energy sources",4101,"Electricity","_"," _"," _","O","IL",380,"Current liabilities / Trade and other payables from exchange transactions","_","_"," _ "," _ ","_","_",200,"Cash Payments by Type / Contracted Services",450,"Cash Payments by Type / Contracted Services"," _ "," _ "," _ "," _ ",null,361,"Trade and other payables / Trade and other payables from exchange transactions",361,"Trade and other payables / Trade and other payables from exchange transactions",null,null,null," _ "," _ "," _ "," _ "," _ "," _ "," _ "," _ "," _ "," _ "," _ ",null," _ "," _ "," _ "," _ "," _ ",null," _ "," _ "," _ "," _ ",null,1,11,"Electricity"," Energy Sources",null,null,0,0,0,0,0,0,0,0,0,"_","_","_","_"]
["O1370-2/IL65531/F0045/X032/R0019/001/CONTRA","O1370-2/IL65531/F0045/X032/R0019/001/CONTRA",121596,0,"Liabilities:Current Liabilities:Trade and Other Payable Exchange Transactions:Payables and Accruals : Contractors:Withdrawals"," _"," _"," _ "," _ "," _ "," _ ",4100,"Energy sources",4101,"Electricity","_"," _"," _","O","IL",380,"Current liabilities / Trade and other payables from exchange transactions","_","_"," _ "," _ ","_","_",200,"Cash Payments by Type / Contracted Services",450,"Cash Payments by Type / Contracted Services"," _ "," _ "," _ "," _ ",null,361,"Trade and other payables / Trade and other payables from exchange transactions",361,"Trade and other payables / Trade and other payables from exchange transactions",null,null,null," _ "," _ "," _ "," _ "," _ "," _ "," _ "," _ "," _ "," _ "," _ ",null," _ "," _ "," _ "," _ "," _ ",null," _ "," _ "," _ "," _ ",null,1,11,"Electricity"," Energy Sources",null,null,0,0,0,0,0,0,0,0,0,"_","_","_","_"]
["O1370-6/IL65531/F0045/X032/R0032/001/CONTRA","O1370-6/IL65531/F0045/X032/R0032/001/CONTRA",121896,0,"Liabilities:Current Liabilities:Trade and Other Payable Exchange Transactions:Payables and Accruals : Contractors:Withdrawals"," _"," _"," _ "," _ "," _ "," _ ",4100,"Energy sources",4101,"Electricity","_"," _"," _","O","IL",380,"Current liabilities / Trade and other payables from exchange transactions","_","_"," _ "," _ ","_","_",200,"Cash Payments by Type / Contracted Services",450,"Cash Payments by Type / Contracted Services"," _ "," _ "," _ "," _ ",null,361,"Trade and other payables / Trade and other payables from exchange transactions",361,"Trade and other payables / Trade and other payables from exchange transactions",null,null,null," _ "," _ "," _ "," _ "," _ "," _ "," _ "," _ "," _ "," _ "," _ ",null," _ "," _ "," _ "," _ "," _ ",null," _ "," _ "," _ "," _ ",null,1,11,"Electricity"," Energy Sources",null,null,0,0,0,0,0,0,0,0,0,"_","_","_","_"]
["O1370-1/IL65531/F0045/X032/R0035/001/CONTRA","O1370-1/IL65531/F0045/X032/R0035/001/CONTRA",121580,0,"Liabilities:Current Liabilities:Trade and Other Payable Exchange Transactions:Payables and Accruals : Contractors:Withdrawals"," _"," _"," _ "," _ "," _ "," _ ",4100,"Energy sources",4101,"Electricity","_"," _"," _","O","IL",380,"Current liabilities / Trade and other payables from exchange transactions","_","_"," _ "," _ ","_","_",200,"Cash Payments by Type / Contracted Services",450,"Cash Payments by Type / Contracted Services"," _ "," _ "," _ "," _ ",null,361,"Trade and other payables / Trade and other payables from exchange transactions",361,"Trade and other payables / Trade and other payables from exchange transactions",null,null,null," _ "," _ "," _ "," _ "," _ "," _ "," _ "," _ "," _ "," _ "," _ ",null," _ "," _ "," _ "," _ "," _ ",null," _ "," _ "," _ "," _ ",null,1,11,"Electricity"," Energy Sources",null,null,0,0,0,0,0,0,0,0,0,"_","_","_","_"]
["O1370-8/IL65531/F13530/X032/R0034/001/CONTRA","O1370-8/IL65531/F13530/X032/R0034/001/CONTRA",123304,0,"Liabilities:Current Liabilities:Trade and Other Payable Exchange Transactions:Payables and Accruals : Contractors:Withdrawals"," _"," _"," _ "," _ "," _ "," _ ",4100,"Energy sources",4101,"Electricity","_"," _"," _","O","IL",380,"Current liabilities / Trade and other payables from exchange transactions","_","_"," _ "," _ ","_","_",200,"Cash Payments by Type / Contracted Services",450,"Cash Payments by Type / Contracted Services"," _ "," _ "," _ "," _ ",null,361,"Trade and other payables / Trade and other payables from exchange transactions",361,"Trade and other payables / Trade and other payables from exchange transactions",null,null,null," _ "," _ "," _ "," _ "," _ "," _ "," _ "," _ "," _ "," _ "," _ ",null," _ "," _ "," _ "," _ "," _ ",null," _ "," _ "," _ "," _ ",null,1,11,"Electricity"," Energy Sources",null,null,0,0,0,0,0,0,0,0,0,"_","_","_","_"]
["O1370-4/IL65531/F2496/X032/R0035/001/CONTRA","O1370-4/IL65531/F2496/X032/R0035/001/CONTRA",121779,0,"Liabilities:Current Liabilities:Trade and Other Payable Exchange Transactions:Payables and Accruals : Contractors:Withdrawals"," _"," _"," _ "," _ "," _ "," _ ",4100,"Energy sources",4101,"Electricity","_"," _"," _","O","IL",380,"Current liabilities / Trade and other payables from exchange transactions","_","_"," _ "," _ ","_","_",200,"Cash Payments by Type / Contracted Services",450,"Cash Payments by Type / Contracted Services"," _ "," _ "," _ "," _ ",null,361,"Trade and other payables / Trade and other payables from exchange transactions",361,"Trade and other payables / Trade and other payables from exchange transactions",null,null,null," _ "," _ "," _ "," _ "," _ "," _ "," _ "," _ "," _ "," _ "," _ ",null," _ "," _ "," _ "," _ "," _ ",null," _ "," _ "," _ "," _ ",null,1,11,"Electricity"," Energy Sources",null,null,0,0,0,0,0,0,0,0,0,"_","_","_","_"]
["O1370-3/IL65531/F0041/X032/R0042/001/CONTRA","O1370-3/IL65531/F0041/X032/R0042/001/CONTRA",121632,0,"Liabilities:Current Liabilities:Trade and Other Payable Exchange Transactions:Payables and Accruals : Contractors:Withdrawals"," _"," _"," _ "," _ "," _ "," _ ",4100,"Energy sources",4101,"Electricity","_"," _"," _","O","IL",380,"Current liabilities / Trade and other payables from exchange transactions","_","_"," _ "," _ ","_","_",200,"Cash Payments by Type / Contracted Services",450,"Cash Payments by Type / Contracted Services"," _ "," _ "," _ "," _ ",null,361,"Trade and other payables / Trade and other payables from exchange transactions",361,"Trade and other payables / Trade and other payables from exchange transactions",null,null,null," _ "," _ "," _ "," _ "," _ "," _ "," _ "," _ "," _ "," _ "," _ ",null," _ "," _ "," _ "," _ "," _ ",null," _ "," _ "," _ "," _ ",null,1,11,"Electricity"," Energy Sources",null,null,0,0,0,0,0,0,0,0,0,"_","_","_","_"]
["O1370-3/IL65531/F0041/X032/R0033/001/CONTRA","O1370-3/IL65531/F0041/X032/R0033/001/CONTRA",121628,0,"Liabilities:Current Liabilities:Trade and Other Payable Exchange Transactions:Payables and Accruals : Contractors:Withdrawals"," _"," _"," _ "," _ "," _ "," _ ",4100,"Energy sources",4101,"Electricity","_"," _"," _","O","IL",380,"Current liabilities / Trade and other payables from exchange transactions","_","_"," _ "," _ ","_","_",200,"Cash Payments by Type / Contracted Services",450,"Cash Payments by Type / Contracted Services"," _ "," _ "," _ "," _ ",null,361,"Trade and other payables / Trade and other payables from exchange transactions",361,"Trade and other payables / Trade and other payables from exchange transactions",null,null,null," _ "," _ "," _ "," _ "," _ "," _ "," _ "," _ "," _ "," _ "," _ ",null," _ "," _ "," _ "," _ "," _ ",null," _ "," _ "," _ "," _ ",null,1,11,"Electricity"," Energy Sources",null,null,0,0,0,0,0,0,0,0,0,"_","_","_","_"]
["O1370-3/IL65531/F0041/X032/R0025/001/CONTRA","O1370-3/IL65531/F0041/X032/R0025/001/CONTRA",121624,0,"Liabilities:Current Liabilities:Trade and Other Payable Exchange Transactions:Payables and Accruals : Contractors:Withdrawals"," _"," _"," _ "," _ "," _ "," _ ",4100,"Energy sources",4101,"Electricity","_"," _"," _","O","IL",380,"Current liabilities / Trade and other payables from exchange transactions","_","_"," _ "," _ ","_","_",200,"Cash Payments by Type / Contracted Services",450,"Cash Payments by Type / Contracted Services"," _ "," _ "," _ "," _ ",null,361,"Trade and other payables / Trade and other payables from exchange transactions",361,"Trade and other payables / Trade and other payables from exchange transactions",null,null,null," _ "," _ "," _ "," _ "," _ "," _ "," _ "," _ "," _ "," _ "," _ ",null," _ "," _ "," _ "," _ "," _ ",null," _ "," _ "," _ "," _ ",null,1,11,"Electricity"," Energy Sources",null,null,0,0,0,0,0,0,0,0,0,"_","_","_","_"]
["O1370-7/IL65531/F0041/X035/R0034/001/CONTRA","O1370-7/IL65531/F0041/X035/R0034/001/CONTRA",122924,0,"Liabilities:Current Liabilities:Trade and Other Payable Exchange Transactions:Payables and Accruals : Contractors:Withdrawals"," _"," _"," _ "," _ "," _ "," _ ",4100,"Energy sources",4101,"Electricity","_"," _"," _","O","IL",380,"Current liabilities / Trade and other payables from exchange transactions","_","_"," _ "," _ ","_","_",200,"Cash Payments by Type / Contracted Services",450,"Cash Payments by Type / Contracted Services"," _ "," _ "," _ "," _ ",null,361,"Trade and other payables / Trade and other payables from exchange transactions",361,"Trade and other payables / Trade and other payables from exchange transactions",null,null,null," _ "," _ "," _ "," _ "," _ "," _ "," _ "," _ "," _ "," _ "," _ ",null," _ "," _ "," _ "," _ "," _ ",null," _ "," _ "," _ "," _ ",null,1,11,"Electricity"," Energy Sources",null,null,0,0,0,0,0,0,0,0,0,"_","_","_","_"]
["O1370-6/IL65531/F0041/X032/R0025/001/CONTRA","O1370-6/IL65531/F0041/X032/R0025/001/CONTRA",121892,0,"Liabilities:Current Liabilities:Trade and Other Payable Exchange Transactions:Payables and Accruals : Contractors:Withdrawals"," _"," _"," _ "," _ "," _ "," _ ",4100,"Energy sources",4101,"Electricity","_"," _"," _","O","IL",380,"Current liabilities / Trade and other payables from exchange transactions","_","_"," _ "," _ ","_","_",200,"Cash Payments by Type / Contracted Services",450,"Cash Payments by Type / Contracted Services"," _ "," _ "," _ "," _ ",null,361,"Trade and other payables / Trade and other payables from exchange transactions",361,"Trade and other payables / Trade and other payables from exchange transactions",null,null,null," _ "," _ "," _ "," _ "," _ "," _ "," _ "," _ "," _ "," _ "," _ ",null," _ "," _ "," _ "," _ "," _ ",null," _ "," _ "," _ "," _ ",null,1,11,"Electricity"," Energy Sources",null,null,0,0,0,0,0,0,0,0,0,"_","_","_","_"]
["O1370-4/IL65531/F0041/X032/R0038/001/CONTRA","O1370-4/IL65531/F0041/X032/R0038/001/CONTRA",121767,0,"Liabilities:Current Liabilities:Trade and Other Payable Exchange Transactions:Payables and Accruals : Contractors:Withdrawals"," _"," _"," _ "," _ "," _ "," _ ",4100,"Energy sources",4101,"Electricity","_"," _"," _","O","IL",380,"Current liabilities / Trade and other payables from exchange transactions","_","_"," _ "," _ ","_","_",200,"Cash Payments by Type / Contracted Services",450,"Cash Payments by Type / Contracted Services"," _ "," _ "," _ "," _ ",null,361,"Trade and other payables / Trade and other payables from exchange transactions",361,"Trade and other payables / Trade and other payables from exchange transactions",null,null,null," _ "," _ "," _ "," _ "," _ "," _ "," _ "," _ "," _ "," _ "," _ ",null," _ "," _ "," _ "," _ "," _ ",null," _ "," _ "," _ "," _ ",null,1,11,"Electricity"," Energy Sources",null,null,0,0,0,0,0,0,0,0,0,"_","_","_","_"]
["O1370-8/IL65531/F0041/X032/R0034/001/CONTRA","O1370-8/IL65531/F0041/X032/R0034/001/CONTRA",123300,0,"Liabilities:Current Liabilities:Trade and Other Payable Exchange Transactions:Payables and Accruals : Contractors:Withdrawals"," _"," _"," _ "," _ "," _ "," _ ",4100,"Energy sources",4101,"Electricity","_"," _"," _","O","IL",380,"Current liabilities / Trade and other payables from exchange transactions","_","_"," _ "," _ ","_","_",200,"Cash Payments by Type / Contracted Services",450,"Cash Payments by Type / Contracted Services"," _ "," _ "," _ "," _ ",null,361,"Trade and other payables / Trade and other payables from exchange transactions",361,"Trade and other payables / Trade and other payables from exchange transactions",null,null,null," _ "," _ "," _ "," _ "," _ "," _ "," _ "," _ "," _ "," _ "," _ ",null," _ "," _ "," _ "," _ "," _ ",null," _ "," _ "," _ "," _ ",null,1,11,"Electricity"," Energy Sources",null,null,0,0,0,0,0,0,0,0,0,"_","_","_","_"]
["O1370-3/IL65531/F0048/X032/R0040/001/CONTRA","O1370-3/IL65531/F0048/X032/R0040/001/CONTRA",121636,0,"Liabilities:Current Liabilities:Trade and Other Payable Exchange Transactions:Payables and Accruals : Contractors:Withdrawals"," _"," _"," _ "," _ "," _ "," _ ",4100,"Energy sources",4101,"Electricity","_"," _"," _","O","IL",380,"Current liabilities / Trade and other payables from exchange transactions","_","_"," _ "," _ ","_","_",200,"Cash Payments by Type / Contracted Services",450,"Cash Payments by Type / Contracted Services"," _ "," _ "," _ "," _ ",null,361,"Trade and other payables / Trade and other payables from exchange transactions",361,"Trade and other payables / Trade and other payables from exchange transactions",null,null,null," _ "," _ "," _ "," _ "," _ "," _ "," _ "," _ "," _ "," _ "," _ ",null," _ "," _ "," _ "," _ "," _ ",null," _ "," _ "," _ "," _ ",null,1,11,"Electricity"," Energy Sources",null,null,0,0,0,0,0,0,0,0,0,"_","_","_","_"]
["O1370-1/IL65530/F0045/X032/R0035/001/CONTRA","O1370-1/IL65530/F0045/X032/R0035/001/CONTRA",121579,0,"Liabilities:Current Liabilities:Trade and Other Payable Exchange Transactions:Payables and Accruals : Contractors:Deposits"," _"," _"," _ "," _ "," _ "," _ ",4100,"Energy sources",4101,"Electricity","_"," _"," _","O","IL",380,"Current liabilities / Trade and other payables from exchange transactions","_","_"," _ "," _ ","_","_"," _ "," _ "," _ "," _ "," _ "," _ "," _ "," _ ",null,361,"Trade and other payables / Trade and other payables from exchange transactions",361,"Trade and other payables / Trade and other payables from exchange transactions",null,null,null," _ "," _ "," _ "," _ "," _ "," _ "," _ "," _ "," _ "," _ "," _ ",null," _ "," _ "," _ "," _ "," _ ",null," _ "," _ "," _ "," _ ",null,1,11,"Electricity"," Energy Sources",null,null,0,0,0,0,0,0,0,0,0,"_","_","_","_"]
["O1370-5/IL65530/F0045/X032/R0039/001/CONTRA","O1370-5/IL65530/F0045/X032/R0039/001/CONTRA",121820,0,"Liabilities:Current Liabilities:Trade and Other Payable Exchange Transactions:Payables and Accruals : Contractors:Deposits"," _"," _"," _ "," _ "," _ "," _ ",4100,"Energy sources",4101,"Electricity","_"," _"," _","O","IL",380,"Current liabilities / Trade and other payables from exchange transactions","_","_"," _ "," _ ","_","_"," _ "," _ "," _ "," _ "," _ "," _ "," _ "," _ ",null,361,"Trade and other payables / Trade and other payables from exchange transactions",361,"Trade and other payables / Trade and other payables from exchange transactions",null,null,null," _ "," _ "," _ "," _ "," _ "," _ "," _ "," _ "," _ "," _ "," _ ",null," _ "," _ "," _ "," _ "," _ ",null," _ "," _ "," _ "," _ ",null,1,11,"Electricity"," Energy Sources",null,null,0,0,0,0,0,0,0,0,0,"_","_","_","_"]
["O1370-6/IL65530/F0045/X032/R0032/001/CONTRA","O1370-6/IL65530/F0045/X032/R0032/001/CONTRA",121895,0,"Liabilities:Current Liabilities:Trade and Other Payable Exchange Transactions:Payables and Accruals : Contractors:Deposits"," _"," _"," _ "," _ "," _ "," _ ",4100,"Energy sources",4101,"Electricity","_"," _"," _","O","IL",380,"Current liabilities / Trade and other payables from exchange transactions","_","_"," _ "," _ ","_","_"," _ "," _ "," _ "," _ "," _ "," _ "," _ "," _ ",null,361,"Trade and other payables / Trade and other payables from exchange transactions",361,"Trade and other payables / Trade and other payables from exchange transactions",null,null,null," _ "," _ "," _ "," _ "," _ "," _ "," _ "," _ "," _ "," _ "," _ ",null," _ "," _ "," _ "," _ "," _ ",null," _ "," _ "," _ "," _ ",null,1,11,"Electricity"," Energy Sources",null,null,0,0,0,0,0,0,0,0,0,"_","_","_","_"]
["O1370-2/IL65530/F0045/X032/R0019/001/CONTRA","O1370-2/IL65530/F0045/X032/R0019/001/CONTRA",121595,0,"Liabilities:Current Liabilities:Trade and Other Payable Exchange Transactions:Payables and Accruals : Contractors:Deposits"," _"," _"," _ "," _ "," _ "," _ ",4100,"Energy sources",4101,"Electricity","_"," _"," _","O","IL",380,"Current liabilities / Trade and other payables from exchange transactions","_","_"," _ "," _ ","_","_"," _ "," _ "," _ "," _ "," _ "," _ "," _ "," _ ",null,361,"Trade and other payables / Trade and other payables from exchange transactions",361,"Trade and other payables / Trade and other payables from exchange transactions",null,null,null," _ "," _ "," _ "," _ "," _ "," _ "," _ "," _ "," _ "," _ "," _ ",null," _ "," _ "," _ "," _ "," _ ",null," _ "," _ "," _ "," _ ",null,1,11,"Electricity"," Energy Sources",null,null,0,0,0,0,0,0,0,0,0,"_","_","_","_"]
["O1370-2/IL65530/F0045/X032/R0043/001/CONTRA","O1370-2/IL65530/F0045/X032/R0043/001/CONTRA",121599,0,"Liabilities:Current Liabilities:Trade and Other Payable Exchange Transactions:Payables and Accruals : Contractors:Deposits"," _"," _"," _ "," _ "," _ "," _ ",4100,"Energy sources",4101,"Electricity","_"," _"," _","O","IL",380,"Current liabilities / Trade and other payables from exchange transactions","_","_"," _ "," _ ","_","_"," _ "," _ "," _ "," _ "," _ "," _ "," _ "," _ ",null,361,"Trade and other payables / Trade and other payables from exchange transactions",361,"Trade and other payables / Trade and other payables from exchange transactions",null,null,null," _ "," _ "," _ "," _ "," _ "," _ "," _ "," _ "," _ "," _ "," _ ",null," _ "," _ "," _ "," _ "," _ ",null," _ "," _ "," _ "," _ ",null,1,11,"Electricity"," Energy Sources",null,null,0,0,0,0,0,0,0,0,0,"_","_","_","_"]
["O1370-2/IL65530/F0045/X032/R0044/001/CONTRA","O1370-2/IL65530/F0045/X032/R0044/001/CONTRA",121603,0,"Liabilities:Current Liabilities:Trade and Other Payable Exchange Transactions:Payables and Accruals : Contractors:Deposits"," _"," _"," _ "," _ "," _ "," _ ",4100,"Energy sources",4101,"Electricity","_"," _"," _","O","IL",380,"Current liabilities / Trade and other payables from exchange transactions","_","_"," _ "," _ ","_","_"," _ "," _ "," _ "," _ "," _ "," _ "," _ "," _ ",null,361,"Trade and other payables / Trade and other payables from exchange transactions",361,"Trade and other payables / Trade and other payables from exchange transactions",null,null,null," _ "," _ "," _ "," _ "," _ "," _ "," _ "," _ "," _ "," _ "," _ ",null," _ "," _ "," _ "," _ "," _ ",null," _ "," _ "," _ "," _ ",null,1,11,"Electricity"," Energy Sources",null,null,0,0,0,0,0,0,0,0,0,"_","_","_","_"]
["O1370-5/IL65530/F0045/X032/R0032/001/CONTRA","O1370-5/IL65530/F0045/X032/R0032/001/CONTRA",121812,0,"Liabilities:Current Liabilities:Trade and Other Payable Exchange Transactions:Payables and Accruals : Contractors:Deposits"," _"," _"," _ "," _ "," _ "," _ ",4100,"Energy sources",4101,"Electricity","_"," _"," _","O","IL",380,"Current liabilities / Trade and other payables from exchange transactions","_","_"," _ "," _ ","_","_"," _ "," _ "," _ "," _ "," _ "," _ "," _ "," _ ",null,361,"Trade and other payables / Trade and other payables from exchange transactions",361,"Trade and other payables / Trade and other payables from exchange transactions",null,null,null," _ "," _ "," _ "," _ "," _ "," _ "," _ "," _ "," _ "," _ "," _ ",null," _ "," _ "," _ "," _ "," _ ",null," _ "," _ "," _ "," _ ",null,1,11,"Electricity"," Energy Sources",null,null,0,0,0,0,0,0,0,0,0,"_","_","_","_"]
["O1370-5/IL65530/F0045/X032/R0038/001/CONTRA","O1370-5/IL65530/F0045/X032/R0038/001/CONTRA",121816,0,"Liabilities:Current Liabilities:Trade and Other Payable Exchange Transactions:Payables and Accruals : Contractors:Deposits"," _"," _"," _ "," _ "," _ "," _ ",4100,"Energy sources",4101,"Electricity","_"," _"," _","O","IL",380,"Current liabilities / Trade and other payables from exchange transactions","_","_"," _ "," _ ","_","_"," _ "," _ "," _ "," _ "," _ "," _ "," _ "," _ ",null,361,"Trade and other payables / Trade and other payables from exchange transactions",361,"Trade and other payables / Trade and other payables from exchange transactions",null,null,null," _ "," _ "," _ "," _ "," _ "," _ "," _ "," _ "," _ "," _ "," _ ",null," _ "," _ "," _ "," _ "," _ ",null," _ "," _ "," _ "," _ ",null,1,11,"Electricity"," Energy Sources",null,null,0,0,0,0,0,0,0,0,0,"_","_","_","_"]
["O1370-7/IL65530/F0045/X035/R0033/001/CONTRA","O1370-7/IL65530/F0045/X035/R0033/001/CONTRA",122927,0,"Liabilities:Current Liabilities:Trade and Other Payable Exchange Transactions:Payables and Accruals : Contractors:Deposits"," _"," _"," _ "," _ "," _ "," _ ",4100,"Energy sources",4101,"Electricity","_"," _"," _","O","IL",380,"Current liabilities / Trade and other payables from exchange transactions","_","_"," _ "," _ ","_","_"," _ "," _ "," _ "," _ "," _ "," _ "," _ "," _ ",null,361,"Trade and other payables / Trade and other payables from exchange transactions",361,"Trade and other payables / Trade and other payables from exchange transactions",null,null,null," _ "," _ "," _ "," _ "," _ "," _ "," _ "," _ "," _ "," _ "," _ ",null," _ "," _ "," _ "," _ "," _ ",null," _ "," _ "," _ "," _ ",null,1,11,"Electricity"," Energy Sources",null,null,0,0,0,0,0,0,0,0,0,"_","_","_","_"]
["O1370-6/IL65530/F0045/X032/R0039/001/CONTRA","O1370-6/IL65530/F0045/X032/R0039/001/CONTRA",121899,0,"Liabilities:Current Liabilities:Trade and Other Payable Exchange Transactions:Payables and Accruals : Contractors:Deposits"," _"," _"," _ "," _ "," _ "," _ ",4100,"Energy sources",4101,"Electricity","_"," _"," _","O","IL",380,"Current liabilities / Trade and other payables from exchange transactions","_","_"," _ "," _ ","_","_"," _ "," _ "," _ "," _ "," _ "," _ "," _ "," _ ",null,361,"Trade and other payables / Trade and other payables from exchange transactions",361,"Trade and other payables / Trade and other payables from exchange transactions",null,null,null," _ "," _ "," _ "," _ "," _ "," _ "," _ "," _ "," _ "," _ "," _ ",null," _ "," _ "," _ "," _ "," _ ",null," _ "," _ "," _ "," _ ",null,1,11,"Electricity"," Energy Sources",null,null,0,0,0,0,0,0,0,0,0,"_","_","_","_"]
["O1370-4/IL65530/F0045/X032/R0028/001/CONTRA","O1370-4/IL65530/F0045/X032/R0028/001/CONTRA",121770,0,"Liabilities:Current Liabilities:Trade and Other Payable Exchange Transactions:Payables and Accruals : Contractors:Deposits"," _"," _"," _ "," _ "," _ "," _ ",4100,"Energy sources",4101,"Electricity","_"," _"," _","O","IL",380,"Current liabilities / Trade and other payables from exchange transactions","_","_"," _ "," _ ","_","_"," _ "," _ "," _ "," _ "," _ "," _ "," _ "," _ ",null,361,"Trade and other payables / Trade and other payables from exchange transactions",361,"Trade and other payables / Trade and other payables from exchange transactions",null,null,null," _ "," _ "," _ "," _ "," _ "," _ "," _ "," _ "," _ "," _ "," _ ",null," _ "," _ "," _ "," _ "," _ ",null," _ "," _ "," _ "," _ ",null,1,11,"Electricity"," Energy Sources",null,null,0,0,0,0,0,0,0,0,0,"_","_","_","_"]
["O1370-4/IL65530/F0045/X032/R0036/001/CONTRA","O1370-4/IL65530/F0045/X032/R0036/001/CONTRA",121774,0,"Liabilities:Current Liabilities:Trade and Other Payable Exchange Transactions:Payables and Accruals : Contractors:Deposits"," _"," _"," _ "," _ "," _ "," _ ",4100,"Energy sources",4101,"Electricity","_"," _"," _","O","IL",380,"Current liabilities / Trade and other payables from exchange transactions","_","_"," _ "," _ ","_","_"," _ "," _ "," _ "," _ "," _ "," _ "," _ "," _ ",null,361,"Trade and other payables / Trade and other payables from exchange transactions",361,"Trade and other payables / Trade and other payables from exchange transactions",null,null,null," _ "," _ "," _ "," _ "," _ "," _ "," _ "," _ "," _ "," _ "," _ ",null," _ "," _ "," _ "," _ "," _ ",null," _ "," _ "," _ "," _ ",null,1,11,"Electricity"," Energy Sources",null,null,0,0,0,0,0,0,0,0,0,"_","_","_","_"]
["O1370-3/IL65530/F0048/X032/R0040/001/CONTRA","O1370-3/IL65530/F0048/X032/R0040/001/CONTRA",121635,0,"Liabilities:Current Liabilities:Trade and Other Payable Exchange Transactions:Payables and Accruals : Contractors:Deposits"," _"," _"," _ "," _ "," _ "," _ ",4100,"Energy sources",4101,"Electricity","_"," _"," _","O","IL",380,"Current liabilities / Trade and other payables from exchange transactions","_","_"," _ "," _ ","_","_"," _ "," _ "," _ "," _ "," _ "," _ "," _ "," _ ",null,361,"Trade and other payables / Trade and other payables from exchange transactions",361,"Trade and other payables / Trade and other payables from exchange transactions",null,null,null," _ "," _ "," _ "," _ "," _ "," _ "," _ "," _ "," _ "," _ "," _ ",null," _ "," _ "," _ "," _ "," _ ",null," _ "," _ "," _ "," _ ",null,1,11,"Electricity"," Energy Sources",null,null,0,0,0,0,0,0,0,0,0,"_","_","_","_"]
["O1370-4/IL65530/F2496/X032/R0035/001/CONTRA","O1370-4/IL65530/F2496/X032/R0035/001/CONTRA",121778,0,"Liabilities:Current Liabilities:Trade and Other Payable Exchange Transactions:Payables and Accruals : Contractors:Deposits"," _"," _"," _ "," _ "," _ "," _ ",4100,"Energy sources",4101,"Electricity","_"," _"," _","O","IL",380,"Current liabilities / Trade and other payables from exchange transactions","_","_"," _ "," _ ","_","_"," _ "," _ "," _ "," _ "," _ "," _ "," _ "," _ ",null,361,"Trade and other payables / Trade and other payables from exchange transactions",361,"Trade and other payables / Trade and other payables from exchange transactions",null,null,null," _ "," _ "," _ "," _ "," _ "," _ "," _ "," _ "," _ "," _ "," _ ",null," _ "," _ "," _ "," _ "," _ ",null," _ "," _ "," _ "," _ ",null,1,11,"Electricity"," Energy Sources",null,null,0,0,0,0,0,0,0,0,0,"_","_","_","_"]
["O1370-8/IL65530/F0041/X032/R0034/001/CONTRA","O1370-8/IL65530/F0041/X032/R0034/001/CONTRA",123299,0,"Liabilities:Current Liabilities:Trade and Other Payable Exchange Transactions:Payables and Accruals : Contractors:Deposits"," _"," _"," _ "," _ "," _ "," _ ",4100,"Energy sources",4101,"Electricity","_"," _"," _","O","IL",380,"Current liabilities / Trade and other payables from exchange transactions","_","_"," _ "," _ ","_","_"," _ "," _ "," _ "," _ "," _ "," _ "," _ "," _ ",null,361,"Trade and other payables / Trade and other payables from exchange transactions",361,"Trade and other payables / Trade and other payables from exchange transactions",null,null,null," _ "," _ "," _ "," _ "," _ "," _ "," _ "," _ "," _ "," _ "," _ ",null," _ "," _ "," _ "," _ "," _ ",null," _ "," _ "," _ "," _ ",null,1,11,"Electricity"," Energy Sources",null,null,0,0,0,0,0,0,0,0,0,"_","_","_","_"]
["O1370-4/IL65530/F0041/X032/R0038/001/CONTRA","O1370-4/IL65530/F0041/X032/R0038/001/CONTRA",121766,0,"Liabilities:Current Liabilities:Trade and Other Payable Exchange Transactions:Payables and Accruals : Contractors:Deposits"," _"," _"," _ "," _ "," _ "," _ ",4100,"Energy sources",4101,"Electricity","_"," _"," _","O","IL",380,"Current liabilities / Trade and other payables from exchange transactions","_","_"," _ "," _ ","_","_"," _ "," _ "," _ "," _ "," _ "," _ "," _ "," _ ",null,361,"Trade and other payables / Trade and other payables from exchange transactions",361,"Trade and other payables / Trade and other payables from exchange transactions",null,null,null," _ "," _ "," _ "," _ "," _ "," _ "," _ "," _ "," _ "," _ "," _ ",null," _ "," _ "," _ "," _ "," _ ",null," _ "," _ "," _ "," _ ",null,1,11,"Electricity"," Energy Sources",null,null,0,0,0,0,0,0,0,0,0,"_","_","_","_"]
["O1370-6/IL65530/F0041/X032/R0025/001/CONTRA","O1370-6/IL65530/F0041/X032/R0025/001/CONTRA",121891,0,"Liabilities:Current Liabilities:Trade and Other Payable Exchange Transactions:Payables and Accruals : Contractors:Deposits"," _"," _"," _ "," _ "," _ "," _ ",4100,"Energy sources",4101,"Electricity","_"," _"," _","O","IL",380,"Current liabilities / Trade and other payables from exchange transactions","_","_"," _ "," _ ","_","_"," _ "," _ "," _ "," _ "," _ "," _ "," _ "," _ ",null,361,"Trade and other payables / Trade and other payables from exchange transactions",361,"Trade and other payables / Trade and other payables from exchange transactions",null,null,null," _ "," _ "," _ "," _ "," _ "," _ "," _ "," _ "," _ "," _ "," _ ",null," _ "," _ "," _ "," _ "," _ ",null," _ "," _ "," _ "," _ ",null,1,11,"Electricity"," Energy Sources",null,null,0,0,0,0,0,0,0,0,0,"_","_","_","_"]
["O1370-3/IL65530/F0041/X032/R0025/001/CONTRA","O1370-3/IL65530/F0041/X032/R0025/001/CONTRA",121623,0,"Liabilities:Current Liabilities:Trade and Other Payable Exchange Transactions:Payables and Accruals : Contractors:Deposits"," _"," _"," _ "," _ "," _ "," _ ",4100,"Energy sources",4101,"Electricity","_"," _"," _","O","IL",380,"Current liabilities / Trade and other payables from exchange transactions","_","_"," _ "," _ ","_","_"," _ "," _ "," _ "," _ "," _ "," _ "," _ "," _ ",null,361,"Trade and other payables / Trade and other payables from exchange transactions",361,"Trade and other payables / Trade and other payables from exchange transactions",null,null,null," _ "," _ "," _ "," _ "," _ "," _ "," _ "," _ "," _ "," _ "," _ ",null," _ "," _ "," _ "," _ "," _ ",null," _ "," _ "," _ "," _ ",null,1,11,"Electricity"," Energy Sources",null,null,0,0,0,0,0,0,0,0,0,"_","_","_","_"]
["O1370-3/IL65530/F0041/X032/R0033/001/CONTRA","O1370-3/IL65530/F0041/X032/R0033/001/CONTRA",121627,0,"Liabilities:Current Liabilities:Trade and Other Payable Exchange Transactions:Payables and Accruals : Contractors:Deposits"," _"," _"," _ "," _ "," _ "," _ ",4100,"Energy sources",4101,"Electricity","_"," _"," _","O","IL",380,"Current liabilities / Trade and other payables from exchange transactions","_","_"," _ "," _ ","_","_"," _ "," _ "," _ "," _ "," _ "," _ "," _ "," _ ",null,361,"Trade and other payables / Trade and other payables from exchange transactions",361,"Trade and other payables / Trade and other payables from exchange transactions",null,null,null," _ "," _ "," _ "," _ "," _ "," _ "," _ "," _ "," _ "," _ "," _ ",null," _ "," _ "," _ "," _ "," _ ",null," _ "," _ "," _ "," _ ",null,1,11,"Electricity"," Energy Sources",null,null,0,0,0,0,0,0,0,0,0,"_","_","_","_"]
["O1370-3/IL65530/F0041/X032/R0042/001/CONTRA","O1370-3/IL65530/F0041/X032/R0042/001/CONTRA",121631,0,"Liabilities:Current Liabilities:Trade and Other Payable Exchange Transactions:Payables and Accruals : Contractors:Deposits"," _"," _"," _ "," _ "," _ "," _ ",4100,"Energy sources",4101,"Electricity","_"," _"," _","O","IL",380,"Current liabilities / Trade and other payables from exchange transactions","_","_"," _ "," _ ","_","_"," _ "," _ "," _ "," _ "," _ "," _ "," _ "," _ ",null,361,"Trade and other payables / Trade and other payables from exchange transactions",361,"Trade and other payables / Trade and other payables from exchange transactions",null,null,null," _ "," _ "," _ "," _ "," _ "," _ "," _ "," _ "," _ "," _ "," _ ",null," _ "," _ "," _ "," _ "," _ ",null," _ "," _ "," _ "," _ ",null,1,11,"Electricity"," Energy Sources",null,null,0,0,0,0,0,0,0,0,0,"_","_","_","_"]
["O1370-7/IL65530/F0041/X035/R0034/001/CONTRA","O1370-7/IL65530/F0041/X035/R0034/001/CONTRA",122923,0,"Liabilities:Current Liabilities:Trade and Other Payable Exchange Transactions:Payables and Accruals : Contractors:Deposits"," _"," _"," _ "," _ "," _ "," _ ",4100,"Energy sources",4101,"Electricity","_"," _"," _","O","IL",380,"Current liabilities / Trade and other payables from exchange transactions","_","_"," _ "," _ ","_","_"," _ "," _ "," _ "," _ "," _ "," _ "," _ "," _ ",null,361,"Trade and other payables / Trade and other payables from exchange transactions",361,"Trade and other payables / Trade and other payables from exchange transactions",null,null,null," _ "," _ "," _ "," _ "," _ "," _ "," _ "," _ "," _ "," _ "," _ ",null," _ "," _ "," _ "," _ "," _ ",null," _ "," _ "," _ "," _ ",null,1,11,"Electricity"," Energy Sources",null,null,0,0,0,0,0,0,0,0,0,"_","_","_","_"]
["O1370-8/IL65530/F13530/X032/R0034/001/CONTRA","O1370-8/IL65530/F13530/X032/R0034/001/CONTRA",123303,0,"Liabilities:Current Liabilities:Trade and Other Payable Exchange Transactions:Payables and Accruals : Contractors:Deposits"," _"," _"," _ "," _ "," _ "," _ ",4100,"Energy sources",4101,"Electricity","_"," _"," _","O","IL",380,"Current liabilities / Trade and other payables from exchange transactions","_","_"," _ "," _ ","_","_"," _ "," _ "," _ "," _ "," _ "," _ "," _ "," _ ",null,361,"Trade and other payables / Trade and other payables from exchange transactions",361,"Trade and other payables / Trade and other payables from exchange transactions",null,null,null," _ "," _ "," _ "," _ "," _ "," _ "," _ "," _ "," _ "," _ "," _ ",null," _ "," _ "," _ "," _ "," _ ",null," _ "," _ "," _ "," _ ",null,1,11,"Electricity"," Energy Sources",null,null,0,0,0,0,0,0,0,0,0,"_","_","_","_"]
["O1250-1/IE00782/F0041/X044/R0230/001/6803","O1250-1/IE00782/F0041/X044/R0230/001/6803",30588,1722,"Expenditure:Operational Cost:Entertainment:Executive Mayor",4100,"Expenditure / Operational costs",2904,"Expenditure / Operational costs",2904,"Operational Costs ",1100,"Executive and council",1110,"Mayor and Council","_"," _"," _","O","IE"," _ "," _ "," _ "," _ "," _ "," _ ","_","_"," _ "," _ "," _ "," _ "," _ "," _ "," _ "," _ ",null," _ "," _ "," _ "," _ ",null,null,null," _ "," _ "," _ "," _ "," _ "," _ "," _ "," _ "," _ "," _ "," _ ",null," _ "," _ "," _ "," _ "," _ ",null," _ "," _ "," _ "," _ ",null,5,52,"Mayor and Council","Executive & Council",null,null,0,0,0,0,0,0,0,0,0,"_","_","_","_"]
["O1250-1/IL53821/F0041/X044/R0230/001/CONTRA","O1250-1/IL53821/F0041/X044/R0230/001/CONTRA",121797,0,"Liabilities:Current Liabilities:Trade and Other Payable Exchange Transactions:Payables and Accruals : General:Withdrawals"," _"," _"," _ "," _ "," _ "," _ ",1100,"Executive and council",1110,"Mayor and Council","_"," _"," _","O","IL",380,"Current liabilities / Trade and other payables from exchange transactions","_","_"," _ "," _ ","_","_",200,"Cash Payments by Type / Other expenditure",480,"Other expenditure"," _ "," _ "," _ "," _ ",null,361,"Trade and other payables / Trade and other payables from exchange transactions",361,"Trade and other payables / Trade and other payables from exchange transactions",null,null,null," _ "," _ "," _ "," _ "," _ "," _ "," _ "," _ "," _ "," _ "," _ ",null," _ "," _ "," _ "," _ "," _ ",null," _ "," _ "," _ "," _ ",null,5,52,"Mayor and Council","Executive & Council",null,null,0,0,0,0,0,0,0,0,0,"_","_","_","_"]
["O1250-1/IA02108/F0041/X044/R0230/001/CONTRA","O1250-1/IA02108/F0041/X044/R0230/001/CONTRA",121794,0,"Assets:Current Assets:Cash and Cash Equivalents:Cash at Bank:Bank Account:Specify (replace with account description):Withdrawals"," _"," _"," _ "," _ "," _ "," _ ",1100,"Executive and council",1110,"Mayor and Council","_"," _"," _","O","IA",120,"Current assets / Cash and cash equivalents",120,"Cash and cash equivalents","0150W","CASH FLOW FROM OPERATING ACTIVITIES / Receipts / Transfers and Subsidies - Operational","0150W","CASH FLOW FROM OPERATING ACTIVITIES / Receipts / Transfers and Subsidies - Operational"," _ "," _ "," _ "," _ "," _ "," _ "," _ "," _ ",null," _ "," _ "," _ "," _ ",240,"Cash Receipts By Source / Transfers and Subsidies - Operational","W"," _ "," _ "," _ "," _ "," _ "," _ "," _ "," _ "," _ "," _ "," _ ",null," _ "," _ "," _ "," _ "," _ ",null," _ "," _ "," _ "," _ ",null,5,52,"Mayor and Council","Executive & Council",null,null,0,0,0,0,0,0,0,0,0,"_","_","_","_"]
["O1250-1/IA10375/F0041/X044/R0230/001/CONTRA","O1250-1/IA10375/F0041/X044/R0230/001/CONTRA",121795,0,"Assets:Current Assets:VAT Receivable:Input Tax Accrual:Recognised"," _"," _"," _ "," _ "," _ "," _ ",1100,"Executive and council",1110,"Mayor and Council","_"," _"," _","O","IA",170,"Current assets / VAT",170,"VAT"," _ "," _ ","_","_"," _ "," _ "," _ "," _ "," _ "," _ "," _ "," _ ",null," _ "," _ "," _ "," _ ",null,null,null," _ "," _ "," _ "," _ "," _ "," _ "," _ "," _ "," _ "," _ "," _ ",null," _ "," _ "," _ "," _ "," _ ",null," _ "," _ "," _ "," _ ",null,5,52,"Mayor and Council","Executive & Council",null,null,0,0,0,0,0,0,0,0,0,"_","_","_","_"]
["O1250-1/IL53820/F0041/X044/R0230/001/CONTRA","O1250-1/IL53820/F0041/X044/R0230/001/CONTRA",121796,0,"Liabilities:Current Liabilities:Trade and Other Payable Exchange Transactions:Payables and Accruals : General:Deposits"," _"," _"," _ "," _ "," _ "," _ ",1100,"Executive and council",1110,"Mayor and Council","_"," _"," _","O","IL",380,"Current liabilities / Trade and other payables from exchange transactions","_","_"," _ "," _ ","_","_"," _ "," _ "," _ "," _ "," _ "," _ "," _ "," _ ",null,361,"Trade and other payables / Trade and other payables from exchange transactions",361,"Trade and other payables / Trade and other payables from exchange transactions",null,null,null," _ "," _ "," _ "," _ "," _ "," _ "," _ "," _ "," _ "," _ "," _ ",null," _ "," _ "," _ "," _ "," _ ",null," _ "," _ "," _ "," _ ",null,5,52,"Mayor and Council","Executive & Council",null,null,0,0,0,0,0,0,0,0,0,"_","_","_","_"]
["O1299-2/IL53820/F0041/X051/R0229/001/CONTRA","O1299-2/IL53820/F0041/X051/R0229/001/CONTRA",121416,0,"Liabilities:Current Liabilities:Trade and Other Payable Exchange Transactions:Payables and Accruals : General:Deposits"," _"," _"," _ "," _ "," _ "," _ ",1200,"Finance and administration",1206,"Human Resources","_"," _"," _","O","IL",380,"Current liabilities / Trade and other payables from exchange transactions","_","_"," _ "," _ ","_","_"," _ "," _ "," _ "," _ "," _ "," _ "," _ "," _ ",null,361,"Trade and other payables / Trade and other payables from exchange transactions",361,"Trade and other payables / Trade and other payables from exchange transactions",null,null,null," _ "," _ "," _ "," _ "," _ "," _ "," _ "," _ "," _ "," _ "," _ ",null," _ "," _ "," _ "," _ "," _ ",null," _ "," _ "," _ "," _ ",null,3,34,"Human Resources","Finance & Administration",null,null,0,0,0,0,0,-200000,-210000,-220000,0,"_","_","_","_"]
["O1299-1/IA10375/F0041/X051/R0229/001/CONTRA","O1299-1/IA10375/F0041/X051/R0229/001/CONTRA",121558,0,"Assets:Current Assets:VAT Receivable:Input Tax Accrual:Recognised"," _"," _"," _ "," _ "," _ "," _ ",1200,"Finance and administration",1206,"Human Resources","_"," _"," _","O","IA",170,"Current assets / VAT",170,"VAT"," _ "," _ ","_","_"," _ "," _ "," _ "," _ "," _ "," _ "," _ "," _ ",null," _ "," _ "," _ "," _ ",null,null,null," _ "," _ "," _ "," _ "," _ "," _ "," _ "," _ "," _ "," _ "," _ ",null," _ "," _ "," _ "," _ "," _ ",null," _ "," _ "," _ "," _ ",null,3,34,"Human Resources","Finance & Administration",null,null,0,0,0,0,0,10500,10800,10800,0,"_","_","_","_"]
["O1299-2/IA10375/F0041/X051/R0229/001/CONTRA","O1299-2/IA10375/F0041/X051/R0229/001/CONTRA",121415,0,"Assets:Current Assets:VAT Receivable:Input Tax Accrual:Recognised"," _"," _"," _ "," _ "," _ "," _ ",1200,"Finance and administration",1206,"Human Resources","_"," _"," _","O","IA",170,"Current assets / VAT",170,"VAT"," _ "," _ ","_","_"," _ "," _ "," _ "," _ "," _ "," _ "," _ "," _ ",null," _ "," _ "," _ "," _ ",null,null,null," _ "," _ "," _ "," _ "," _ "," _ "," _ "," _ "," _ "," _ "," _ ",null," _ "," _ "," _ "," _ "," _ ",null," _ "," _ "," _ "," _ ",null,3,34,"Human Resources","Finance & Administration",null,null,0,0,0,0,0,0,0,0,0,"_","_","_","_"]
["O1299-1/IE00840/F0041/X051/R0229/001/6104","O1299-1/IE00840/F0041/X051/R0229/001/6104",120301,10185,"Expenditure:Contracted Services:Consultants and Professional Services:Business and Advisory:Human Resources",3800,"Expenditure / Contracted services",2702,"Expenditure / Contracted services",2702,"Contracted Services ",1200,"Finance and administration",1206,"Human Resources","_"," _"," _","O","IE"," _ "," _ "," _ "," _ "," _ "," _ ","_","_"," _ "," _ "," _ "," _ "," _ "," _ "," _ "," _ ",null," _ "," _ "," _ "," _ ",null,null,null," _ "," _ "," _ "," _ "," _ "," _ "," _ "," _ "," _ "," _ "," _ ",null," _ "," _ "," _ "," _ "," _ ",null," _ "," _ "," _ "," _ ",null,3,34,"Human Resources","Finance & Administration",null,null,0,0,0,70000,70000,70000,72000,72000,0,"_","_","_","_"]
["O1299-2/IA02108/F0041/X051/R0229/001/CONTRA","O1299-2/IA02108/F0041/X051/R0229/001/CONTRA",121414,0,"Assets:Current Assets:Cash and Cash Equivalents:Cash at Bank:Bank Account:Specify (replace with account description):Withdrawals"," _"," _"," _ "," _ "," _ "," _ ",1200,"Finance and administration",1206,"Human Resources","_"," _"," _","O","IA",120,"Current assets / Cash and cash equivalents",120,"Cash and cash equivalents","0150W","CASH FLOW FROM OPERATING ACTIVITIES / Receipts / Transfers and Subsidies - Operational","0150W","CASH FLOW FROM OPERATING ACTIVITIES / Receipts / Transfers and Subsidies - Operational"," _ "," _ "," _ "," _ "," _ "," _ "," _ "," _ ",null," _ "," _ "," _ "," _ ",240,"Cash Receipts By Source / Transfers and Subsidies - Operational","W"," _ "," _ "," _ "," _ "," _ "," _ "," _ "," _ "," _ "," _ "," _ ",null," _ "," _ "," _ "," _ "," _ ",null," _ "," _ "," _ "," _ ",null,3,34,"Human Resources","Finance & Administration",null,null,0,0,0,0,0,-200000,-210000,-220000,0,"_","_","_","_"]
["O1299-1/IA02108/F0041/X051/R0229/001/CONTRA","O1299-1/IA02108/F0041/X051/R0229/001/CONTRA",121557,0,"Assets:Current Assets:Cash and Cash Equivalents:Cash at Bank:Bank Account:Specify (replace with account description):Withdrawals"," _"," _"," _ "," _ "," _ "," _ ",1200,"Finance and administration",1206,"Human Resources","_"," _"," _","O","IA",120,"Current assets / Cash and cash equivalents",120,"Cash and cash equivalents","0150W","CASH FLOW FROM OPERATING ACTIVITIES / Receipts / Transfers and Subsidies - Operational","0150W","CASH FLOW FROM OPERATING ACTIVITIES / Receipts / Transfers and Subsidies - Operational"," _ "," _ "," _ "," _ "," _ "," _ "," _ "," _ ",null," _ "," _ "," _ "," _ ",240,"Cash Receipts By Source / Transfers and Subsidies - Operational","W"," _ "," _ "," _ "," _ "," _ "," _ "," _ "," _ "," _ "," _ "," _ ",null," _ "," _ "," _ "," _ "," _ ",null," _ "," _ "," _ "," _ ",null,3,34,"Human Resources","Finance & Administration",null,null,0,0,0,0,0,-80500,-82800,-82800,0,"_","_","_","_"]
["O1299-2/IL75626/F0041/X051/R0229/001/CONTRA","O1299-2/IL75626/F0041/X051/R0229/001/CONTRA",121417,0,"Liabilities:Current Liabilities:Trade and Other Payable Non-exchange Transactions:Transfers and Subsidies Payable:Operational:Monetary Allocations:Households:Other Transfers (Cash):Unspecified:Withdrawals"," _"," _"," _ "," _ "," _ "," _ ",1200,"Finance and administration",1206,"Human Resources","_"," _"," _","O","IL"," _ "," _ "," _ "," _ "," _ "," _ ","_","_"," _ "," _ "," _ "," _ "," _ "," _ "," _ "," _ ",null," _ "," _ "," _ "," _ ",null,null,null," _ "," _ "," _ "," _ "," _ "," _ "," _ "," _ "," _ "," _ "," _ ",null," _ "," _ "," _ "," _ "," _ ",null," _ "," _ "," _ "," _ ",null,3,34,"Human Resources","Finance & Administration",null,null,0,0,0,0,0,200000,210000,220000,0,"_","_","_","_"]
["O1299-1/IL65531/F0041/X051/R0229/001/CONTRA","O1299-1/IL65531/F0041/X051/R0229/001/CONTRA",121560,0,"Liabilities:Current Liabilities:Trade and Other Payable Exchange Transactions:Payables and Accruals : Contractors:Withdrawals"," _"," _"," _ "," _ "," _ "," _ ",1200,"Finance and administration",1206,"Human Resources","_"," _"," _","O","IL",380,"Current liabilities / Trade and other payables from exchange transactions","_","_"," _ "," _ ","_","_",200,"Cash Payments by Type / Contracted Services",450,"Cash Payments by Type / Contracted Services"," _ "," _ "," _ "," _ ",null,361,"Trade and other payables / Trade and other payables from exchange transactions",361,"Trade and other payables / Trade and other payables from exchange transactions",null,null,null," _ "," _ "," _ "," _ "," _ "," _ "," _ "," _ "," _ "," _ "," _ ",null," _ "," _ "," _ "," _ "," _ ",null," _ "," _ "," _ "," _ ",null,3,34,"Human Resources","Finance & Administration",null,null,0,0,0,0,0,80500,82800,82800,0,"_","_","_","_"]
["O1299-1/IL65530/F0041/X051/R0229/001/CONTRA","O1299-1/IL65530/F0041/X051/R0229/001/CONTRA",121559,0,"Liabilities:Current Liabilities:Trade and Other Payable Exchange Transactions:Payables and Accruals : Contractors:Deposits"," _"," _"," _ "," _ "," _ "," _ ",1200,"Finance and administration",1206,"Human Resources","_"," _"," _","O","IL",380,"Current liabilities / Trade and other payables from exchange transactions","_","_"," _ "," _ ","_","_"," _ "," _ "," _ "," _ "," _ "," _ "," _ "," _ ",null,361,"Trade and other payables / Trade and other payables from exchange transactions",361,"Trade and other payables / Trade and other payables from exchange transactions",null,null,null," _ "," _ "," _ "," _ "," _ "," _ "," _ "," _ "," _ "," _ "," _ ",null," _ "," _ "," _ "," _ "," _ ",null," _ "," _ "," _ "," _ ",null,3,34,"Human Resources","Finance & Administration",null,null,0,0,0,0,0,-80500,-82800,-82800,0,"_","_","_","_"]
["O0425-1/IL65530/F2496/X132/R0230/001/CONTRA","O0425-1/IL65530/F2496/X132/R0230/001/CONTRA",122224,0,"Liabilities:Current Liabilities:Trade and Other Payable Exchange Transactions:Payables and Accruals : Contractors:Deposits"," _"," _"," _ "," _ "," _ "," _ ",4400,"Waste management",4403,"Solid Waste Removal","_"," _"," _","O","IL",380,"Current liabilities / Trade and other payables from exchange transactions","_","_"," _ "," _ ","_","_"," _ "," _ "," _ "," _ "," _ "," _ "," _ "," _ ",null,361,"Trade and other payables / Trade and other payables from exchange transactions",361,"Trade and other payables / Trade and other payables from exchange transactions",null,null,null," _ "," _ "," _ "," _ "," _ "," _ ",490,"Infrastructure / Solid Waste Infrastructure / Landfill Sites"," _ ",490,"Infrastructure / Solid Waste Infrastructure / Landfill Sites",null," _ "," _ "," _ "," _ "," _ ",null," _ "," _ "," _ "," _ ",null,9,93,"Solid Waste Removal","Waste Management",null,null,0,0,0,0,0,-287500,-293250,-299000,0,"_","_","_","_"]
["O0425-1/IL65531/F2496/X132/R0230/001/CONTRA","O0425-1/IL65531/F2496/X132/R0230/001/CONTRA",122225,0,"Liabilities:Current Liabilities:Trade and Other Payable Exchange Transactions:Payables and Accruals : Contractors:Withdrawals"," _"," _"," _ "," _ "," _ "," _ ",4400,"Waste management",4403,"Solid Waste Removal","_"," _"," _","O","IL",380,"Current liabilities / Trade and other payables from exchange transactions","_","_"," _ "," _ ","_","_",200,"Cash Payments by Type / Contracted Services",450,"Cash Payments by Type / Contracted Services"," _ "," _ "," _ "," _ ",null,361,"Trade and other payables / Trade and other payables from exchange transactions",361,"Trade and other payables / Trade and other payables from exchange transactions",null,null,null," _ "," _ "," _ "," _ "," _ "," _ ",490,"Infrastructure / Solid Waste Infrastructure / Landfill Sites"," _ ",490,"Infrastructure / Solid Waste Infrastructure / Landfill Sites",null," _ "," _ "," _ "," _ "," _ ",null," _ "," _ "," _ "," _ ",null,9,93,"Solid Waste Removal","Waste Management",null,null,0,0,0,0,0,287500,293250,299000,0,"_","_","_","_"]
["O0425-1/IA02108/F2496/X132/R0230/001/CONTRA","O0425-1/IA02108/F2496/X132/R0230/001/CONTRA",122222,0,"Assets:Current Assets:Cash and Cash Equivalents:Cash at Bank:Bank Account:Specify (replace with account description):Withdrawals"," _"," _"," _ "," _ "," _ "," _ ",4400,"Waste management",4403,"Solid Waste Removal","_"," _"," _","O","IA",120,"Current assets / Cash and cash equivalents",120,"Cash and cash equivalents","0120W","CASH FLOW FROM OPERATING ACTIVITIES / Receipts / Property rates","0120W","CASH FLOW FROM OPERATING ACTIVITIES / Receipts / Property rates"," _ "," _ "," _ "," _ "," _ "," _ "," _ "," _ ",null," _ "," _ "," _ "," _ ",110,"Cash Receipts By Source / Property rates","W"," _ "," _ "," _ "," _ "," _ "," _ ",490,"Infrastructure / Solid Waste Infrastructure / Landfill Sites"," _ ",490,"Infrastructure / Solid Waste Infrastructure / Landfill Sites",null," _ "," _ "," _ "," _ "," _ ",null," _ "," _ "," _ "," _ ",null,9,93,"Solid Waste Removal","Waste Management",null,null,0,0,0,0,0,-287500,-293250,-299000,0,"_","_","_","_"]
["O0425-1/IA10375/F2496/X132/R0230/001/CONTRA","O0425-1/IA10375/F2496/X132/R0230/001/CONTRA",122223,0,"Assets:Current Assets:VAT Receivable:Input Tax Accrual:Recognised"," _"," _"," _ "," _ "," _ "," _ ",4400,"Waste management",4403,"Solid Waste Removal","_"," _"," _","O","IA",170,"Current assets / VAT",170,"VAT"," _ "," _ ","_","_"," _ "," _ "," _ "," _ "," _ "," _ "," _ "," _ ",null," _ "," _ "," _ "," _ ",null,null,null," _ "," _ "," _ "," _ "," _ "," _ ",490,"Infrastructure / Solid Waste Infrastructure / Landfill Sites"," _ ",490,"Infrastructure / Solid Waste Infrastructure / Landfill Sites",null," _ "," _ "," _ "," _ "," _ ",null," _ "," _ "," _ "," _ ",null,9,93,"Solid Waste Removal","Waste Management",null,null,0,0,0,0,0,37500,38250,39000,0,"_","_","_","_"]
["O0425-1/IE00651/F2496/X132/R0230/001/6501","O0425-1/IE00651/F2496/X132/R0230/001/6501",30893,1686,"Expenditure:Contracted Services:Contractors:Maintenance of Unspecified Assets",3800,"Expenditure / Contracted services",2703,"Expenditure / Contracted services",2703,"Contracted Services ",4400,"Waste management",4403,"Solid Waste Removal","_"," _"," _","O","IE"," _ "," _ "," _ "," _ "," _ "," _ ","_","_"," _ "," _ "," _ "," _ "," _ "," _ "," _ "," _ ",null," _ "," _ "," _ "," _ ",null,null,null," _ "," _ "," _ "," _ "," _ "," _ ",490,"Infrastructure / Solid Waste Infrastructure / Landfill Sites"," _ ",490,"Infrastructure / Solid Waste Infrastructure / Landfill Sites","RM"," _ "," _ "," _ "," _ "," _ ",null," _ "," _ "," _ "," _ ",null,9,93,"Solid Waste Removal","Waste Management",null,null,140041,148211,247846,200000,200000,250000,255000,260000,355827,"_","_","_","_"]
["C0003-3/IA06543/F0002/X047/R0230/001/6114","C0003-3/IA06543/F0002/X047/R0230/001/6114",61367,4089,"Assets:Non-current Assets:Property, Plant and Equipment:Leased Assets:Computer Equipment:In-use:Accumulated Depreciation:Depreciation"," _"," _"," _ "," _ "," _ "," _ ",1200,"Finance and administration",1202,"Asset Management","_",2080,"Funded by Internally generated funds","C","IA",230,"Non current assets / Property, plant and equipment",233,"Land: Adjustments"," _ "," _ ","_","_"," _ "," _ "," _ "," _ ",1470,"Computer Equipment",1470,"Computer Equipment",null,243,"Property, plant and equipment (PPE) / Less: Accumulated depreciation",243,"Property, plant and equipment (PPE) / Less: Accumulated depreciation",null,null,null,1470,1470,"Computer Equipment","Computer Equipment"," _ "," _ "," _ "," _ "," _ "," _ "," _ ",null," _ "," _ "," _ "," _ "," _ ",null," _ "," _ "," _ "," _ ",null,3,33,"Asset Management","Finance & Administration",null,null,0,0,-887107,0,0,0,0,0,0,"_","_","_","_"]
["C0003-4/IA06193/F0002/X047/R0230/001/6114","C0003-4/IA06193/F0002/X047/R0230/001/6114",61368,4090,"Assets:Non-current Assets:Property, Plant and Equipment:Cost Model:Computer Equipment:In-use:Cost:Acquisitions"," _"," _"," _ "," _ "," _ "," _ ",1200,"Finance and administration",1202,"Asset Management","CE",2080,"Funded by Internally generated funds","C","IA",230,"Non current assets / Property, plant and equipment",231,"Land: Acquisitions"," _ "," _ ","_","_"," _ "," _ "," _ "," _ ",1470,"Computer Equipment",1470,"Computer Equipment",null,241,"Property, plant and equipment (PPE) / PPE at cost/valuation (excl. finance leases)",241,"Property, plant and equipment (PPE) / PPE at cost/valuation (excl. finance leases)",null,null,null,1470,1470,"Computer Equipment","Computer Equipment"," _ "," _ "," _ "," _ "," _ "," _ "," _ ",null," _ "," _ "," _ "," _ "," _ ",null," _ "," _ "," _ "," _ ",null,3,33,"Asset Management","Finance & Administration",null,null,9666688,8769754,4373145,0,0,0,0,0,9666688,"_","_","_","_"]
["C0003-4/IA06191/F0002/X047/R0230/001/6114","C0003-4/IA06191/F0002/X047/R0230/001/6114",69523,4414,"Assets:Non-current Assets:Property, Plant and Equipment:Cost Model:Computer Equipment:In-use:Accumulated Impairment:Impairment"," _"," _"," _ "," _ "," _ "," _ ",1200,"Finance and administration",1202,"Asset Management","_",2080,"Funded by Internally generated funds","C","IA",230,"Non current assets / Property, plant and equipment",231,"Land: Acquisitions"," _ "," _ ","_","_"," _ "," _ "," _ "," _ ",1470,"Computer Equipment",1470,"Computer Equipment",null,241,"Property, plant and equipment (PPE) / PPE at cost/valuation (excl. finance leases)",241,"Property, plant and equipment (PPE) / PPE at cost/valuation (excl. finance leases)",null,null,null,1470,1470,"Computer Equipment","Computer Equipment"," _ "," _ "," _ "," _ "," _ "," _ "," _ ",null," _ "," _ "," _ "," _ "," _ ",null," _ "," _ "," _ "," _ ",null,3,33,"Asset Management","Finance & Administration",null,null,-12631,-3615,-4999,0,0,0,0,0,-12631,"_","_","_","_"]
["C0003-2/IA02105/F0791/X099/R0229/001/CONTRA","C0003-2/IA02105/F0791/X099/R0229/001/CONTRA",121358,0,"Assets:Current Assets:Cash and Cash Equivalents:Cash at Bank:Bank Account:Specify (replace with account description):Deposits"," _"," _"," _ "," _ "," _ "," _ ",3100,"Planning and development",3108,"Project Management Unit","_",2010,"Funded by National Government","C","IA",120,"Current assets / Cash and cash equivalents",120,"Cash and cash equivalents","0160D","CASH FLOW FROM OPERATING ACTIVITIES / Receipts / Transfers and Subsidies - Capital",0,"Transfers - National, Provincial, District Municipalities ",null,"Recepts - Cash and Cash Equivalents","0510","Recepts - Cash and Cash Equivalents"," _ "," _ "," _ "," _ ",null," _ "," _ "," _ "," _ ",280,"Other Cash Flows by Source / Transfers and subsidies - capital (monetary allocations) (National / Provincial and District)","D",1470,1470,"Computer Equipment","Computer Equipment"," _ "," _ "," _ "," _ "," _ "," _ "," _ ",null," _ "," _ "," _ "," _ "," _ ",null," _ "," _ "," _ "," _ ",null,4,44,"Project Management Unit","Planning and Development",null,null,0,0,0,0,0,0,0,0,0,"_","_","_","_"]
["C0003-6/IA02105/F9412/X049/R0229/001/CONTRA","C0003-6/IA02105/F9412/X049/R0229/001/CONTRA",121054,0,"Assets:Current Assets:Cash and Cash Equivalents:Cash at Bank:Bank Account:Specify (replace with account description):Deposits"," _"," _"," _ "," _ "," _ "," _ ",1200,"Finance and administration",1204,"Finance","_",2010,"Funded by National Government","C","IA",120,"Current assets / Cash and cash equivalents",120,"Cash and cash equivalents","0160D","CASH FLOW FROM OPERATING ACTIVITIES / Receipts / Transfers and Subsidies - Capital",0,"Transfers - National, Provincial, District Municipalities "," _ "," _ ","0510"," _ "," _ "," _ "," _ "," _ ",null," _ "," _ "," _ "," _ ",280,"Other Cash Flows by Source / Transfers and subsidies - capital (monetary allocations) (National / Provincial and District)","D",1470,1470,"Computer Equipment","Computer Equipment"," _ "," _ "," _ "," _ "," _ "," _ "," _ ",null," _ "," _ "," _ "," _ "," _ ",null," _ "," _ "," _ "," _ ",null,3,32,"Finance","Finance & Administration",null,null,0,0,0,0,0,-764750,0,0,0,"_","_","_","_"]
["C0003-1/IA02105/F0002/X052/R0229/001/CONTRA","C0003-1/IA02105/F0002/X052/R0229/001/CONTRA",121481,0,"Assets:Current Assets:Cash and Cash Equivalents:Cash at Bank:Bank Account:Specify (replace with account description):Deposits"," _"," _"," _ "," _ "," _ "," _ ",1200,"Finance and administration",1207,"Information Technology","_",2080,"Funded by Internally generated funds","C","IA",120,"Current assets / Cash and cash equivalents",120,"Cash and cash equivalents"," _ "," _ ","_","_",null,"Recepts - Cash and Cash Equivalents","0510","Recepts - Cash and Cash Equivalents"," _ "," _ "," _ "," _ ",null," _ "," _ "," _ "," _ ",null,null,"D",1470,1470,"Computer Equipment","Computer Equipment"," _ "," _ "," _ "," _ "," _ "," _ "," _ ",null," _ "," _ "," _ "," _ "," _ ",null," _ "," _ "," _ "," _ ",null,14,143,"Information Technology","Finance & Administration 2",null,null,0,0,0,0,0,-690000,-701500,-713000,0,"_","_","_","_"]
["C0003-5/IA02105/F0002/X052/R0230/001/CONTRA","C0003-5/IA02105/F0002/X052/R0230/001/CONTRA",121485,0,"Assets:Current Assets:Cash and Cash Equivalents:Cash at Bank:Bank Account:Specify (replace with account description):Deposits"," _"," _"," _ "," _ "," _ "," _ ",1200,"Finance and administration",1207,"Information Technology","_",2080,"Funded by Internally generated funds","C","IA",120,"Current assets / Cash and cash equivalents",120,"Cash and cash equivalents"," _ "," _ ","_","_",null,"Recepts - Cash and Cash Equivalents","0510","Recepts - Cash and Cash Equivalents"," _ "," _ "," _ "," _ ",null," _ "," _ "," _ "," _ ",null,null,"D",1470,1470,"Computer Equipment","Computer Equipment"," _ "," _ "," _ "," _ "," _ "," _ "," _ ",null," _ "," _ "," _ "," _ "," _ ",null," _ "," _ "," _ "," _ ",null,14,143,"Information Technology","Finance & Administration 2",null,null,0,0,0,0,0,-2300000,-2415000,-2530000,0,"_","_","_","_"]
["C0003-3/IA02105/F0002/X047/R0230/001/CONTRA","C0003-3/IA02105/F0002/X047/R0230/001/CONTRA",122626,0,"Assets:Current Assets:Cash and Cash Equivalents:Cash at Bank:Bank Account:Specify (replace with account description):Deposits"," _"," _"," _ "," _ "," _ "," _ ",1200,"Finance and administration",1202,"Asset Management","_",2080,"Funded by Internally generated funds","C","IA",120,"Current assets / Cash and cash equivalents",120,"Cash and cash equivalents"," _ "," _ ","_","_",null,"Recepts - Cash and Cash Equivalents","0510","Recepts - Cash and Cash Equivalents"," _ "," _ "," _ "," _ ",null," _ "," _ "," _ "," _ ",null,null,"D",1470,1470,"Computer Equipment","Computer Equipment"," _ "," _ "," _ "," _ "," _ "," _ "," _ ",null," _ "," _ "," _ "," _ "," _ ",null," _ "," _ "," _ "," _ ",null,3,33,"Asset Management","Finance & Administration",null,null,0,0,0,0,0,0,0,0,0,"_","_","_","_"]
["C0003-4/IA02105/F0002/X047/R0230/001/CONTRA","C0003-4/IA02105/F0002/X047/R0230/001/CONTRA",122630,0,"Assets:Current Assets:Cash and Cash Equivalents:Cash at Bank:Bank Account:Specify (replace with account description):Deposits"," _"," _"," _ "," _ "," _ "," _ ",1200,"Finance and administration",1202,"Asset Management","_",2080,"Funded by Internally generated funds","C","IA",120,"Current assets / Cash and cash equivalents",120,"Cash and cash equivalents"," _ "," _ ","_","_",null,"Recepts - Cash and Cash Equivalents","0510","Recepts - Cash and Cash Equivalents"," _ "," _ "," _ "," _ ",null," _ "," _ "," _ "," _ ",null,null,"D",1470,1470,"Computer Equipment","Computer Equipment"," _ "," _ "," _ "," _ "," _ "," _ "," _ ",null," _ "," _ "," _ "," _ "," _ ",null," _ "," _ "," _ "," _ ",null,3,33,"Asset Management","Finance & Administration",null,null,0,0,0,0,0,0,0,0,0,"_","_","_","_"]
["C0003-6/IA06173/F0002/X049/R0229/001/6119","C0003-6/IA06173/F0002/X049/R0229/001/6119",120581,11454,"Assets:Non-current Assets:Property, Plant and Equipment:Cost Model:Computer Equipment:Future Use:Cost:Acquisitions"," _"," _"," _ "," _ "," _ "," _ ",1200,"Finance and administration",1204,"Finance","CE",2080,"Funded by Internally generated funds","C","IA",230,"Non current assets / Property, plant and equipment",231,"Land: Acquisitions"," _ "," _ ","_","_"," _ "," _ "," _ "," _ ",1470,"Computer Equipment",1470,"Computer Equipment",null,241,"Property, plant and equipment (PPE) / PPE at cost/valuation (excl. finance leases)",241,"Property, plant and equipment (PPE) / PPE at cost/valuation (excl. finance leases)",null,null,null,1470,1470,"Computer Equipment","Computer Equipment"," _ "," _ "," _ "," _ "," _ "," _ "," _ ",null," _ "," _ "," _ "," _ "," _ ",null," _ "," _ "," _ "," _ ",null,3,32,"Finance","Finance & Administration",null,null,0,0,0,0,0,665000,0,0,0,"_","_","_","_"]
["C0003-1/IA06173/F0002/X052/R0229/001/6105","C0003-1/IA06173/F0002/X052/R0229/001/6105",30635,1045,"Assets:Non-current Assets:Property, Plant and Equipment:Cost Model:Computer Equipment:Future Use:Cost:Acquisitions"," _"," _"," _ "," _ "," _ "," _ ",1200,"Finance and administration",1207,"Information Technology","CE",2080,"Funded by Internally generated funds","C","IA",230,"Non current assets / Property, plant and equipment",231,"Land: Acquisitions"," _ "," _ ","_","_"," _ "," _ "," _ "," _ ",1470,"Computer Equipment",1470,"Computer Equipment",null,241,"Property, plant and equipment (PPE) / PPE at cost/valuation (excl. finance leases)",241,"Property, plant and equipment (PPE) / PPE at cost/valuation (excl. finance leases)",null,null,null,1470,1470,"Computer Equipment","Computer Equipment"," _ "," _ "," _ "," _ "," _ "," _ "," _ ",null," _ "," _ "," _ "," _ "," _ ",null," _ "," _ "," _ "," _ ",null,14,143,"Information Technology","Finance & Administration 2",null,null,0,0,0,500000,300000,600000,610000,620000,35173,"_","_","_","_"]
["C0003-2/IA06173/F0791/X099/R0229/001/6055","C0003-2/IA06173/F0791/X099/R0229/001/6055",31130,1402,"Assets:Non-current Assets:Property, Plant and Equipment:Cost Model:Computer Equipment:Future Use:Cost:Acquisitions"," _"," _"," _ "," _ "," _ "," _ ",3100,"Planning and development",3108,"Project Management Unit","CE",2010,"Funded by National Government","C","IA",230,"Non current assets / Property, plant and equipment",231,"Land: Acquisitions"," _ "," _ ","_","_"," _ "," _ "," _ "," _ ",1470,"Computer Equipment",1470,"Computer Equipment",null,241,"Property, plant and equipment (PPE) / PPE at cost/valuation (excl. finance leases)",241,"Property, plant and equipment (PPE) / PPE at cost/valuation (excl. finance leases)",null,null,null,1470,1470,"Computer Equipment","Computer Equipment"," _ "," _ "," _ "," _ "," _ "," _ "," _ ",null," _ "," _ "," _ "," _ "," _ ",null," _ "," _ "," _ "," _ ",null,4,44,"Project Management Unit","Planning and Development",null,null,0,0,0,0,0,0,0,0,0,"_","_","_","_"]
["C0003-4/IA06183/F0002/X047/R0230/001/6114","C0003-4/IA06183/F0002/X047/R0230/001/6114",61370,4092,"Assets:Non-current Assets:Property, Plant and Equipment:Cost Model:Computer Equipment:In-use:Accumulated Depreciation:Depreciation"," _"," _"," _ "," _ "," _ "," _ ",1200,"Finance and administration",1202,"Asset Management","_",2080,"Funded by Internally generated funds","C","IA",230,"Non current assets / Property, plant and equipment",233,"Land: Adjustments"," _ "," _ ","_","_"," _ "," _ "," _ "," _ ",1470,"Computer Equipment",1470,"Computer Equipment",null,243,"Property, plant and equipment (PPE) / Less: Accumulated depreciation",243,"Property, plant and equipment (PPE) / Less: Accumulated depreciation",null,null,null,1470,1470,"Computer Equipment","Computer Equipment"," _ "," _ "," _ "," _ "," _ "," _ "," _ ",null," _ "," _ "," _ "," _ "," _ ",null," _ "," _ "," _ "," _ ",null,3,33,"Asset Management","Finance & Administration",null,null,-4440946,-3920214,-2517716,0,0,0,0,0,-4440946,"_","_","_","_"]
["C0003-1/IA02108/F0002/X052/R0229/001/CONTRA","C0003-1/IA02108/F0002/X052/R0229/001/CONTRA",124472,0,"Assets:Current Assets:Cash and Cash Equivalents:Cash at Bank:Bank Account:Specify (replace with account description):Withdrawals"," _"," _"," _ "," _ "," _ "," _ ",1200,"Finance and administration",1207,"Information Technology","_",2080,"Funded by Internally generated funds","C","IA",120,"Current assets / Cash and cash equivalents",120,"Cash and cash equivalents"," _ "," _ ","_","_",310,"Other Cash Flows/Payments by Type / Capital assets",510,"Capital assets"," _ "," _ "," _ "," _ ",null," _ "," _ "," _ "," _ ",null,null,"W",1470,1470,"Computer Equipment","Computer Equipment"," _ "," _ "," _ "," _ "," _ "," _ "," _ ",null," _ "," _ "," _ "," _ "," _ ",null," _ "," _ "," _ "," _ ",null,14,143,"Information Technology","Finance & Administration 2",null,null,0,0,0,0,0,0,0,0,0,"_","_","_","_"]
["C0003-3/IA02108/F0002/X047/R0230/001/CONTRA","C0003-3/IA02108/F0002/X047/R0230/001/CONTRA",124512,0,"Assets:Current Assets:Cash and Cash Equivalents:Cash at Bank:Bank Account:Specify (replace with account description):Withdrawals"," _"," _"," _ "," _ "," _ "," _ ",1200,"Finance and administration",1202,"Asset Management","_",2080,"Funded by Internally generated funds","C","IA",120,"Current assets / Cash and cash equivalents",120,"Cash and cash equivalents"," _ "," _ ","_","_",310,"Other Cash Flows/Payments by Type / Capital assets",510,"Capital assets"," _ "," _ "," _ "," _ ",null," _ "," _ "," _ "," _ ",null,null,"W",1470,1470,"Computer Equipment","Computer Equipment"," _ "," _ "," _ "," _ "," _ "," _ "," _ ",null," _ "," _ "," _ "," _ "," _ ",null," _ "," _ "," _ "," _ ",null,3,33,"Asset Management","Finance & Administration",null,null,0,0,0,0,0,0,0,0,0,"_","_","_","_"]
["C0003-4/IA02108/F0002/X047/R0230/001/CONTRA","C0003-4/IA02108/F0002/X047/R0230/001/CONTRA",124513,0,"Assets:Current Assets:Cash and Cash Equivalents:Cash at Bank:Bank Account:Specify (replace with account description):Withdrawals"," _"," _"," _ "," _ "," _ "," _ ",1200,"Finance and administration",1202,"Asset Management","_",2080,"Funded by Internally generated funds","C","IA",120,"Current assets / Cash and cash equivalents",120,"Cash and cash equivalents"," _ "," _ ","_","_",310,"Other Cash Flows/Payments by Type / Capital assets",510,"Capital assets"," _ "," _ "," _ "," _ ",null," _ "," _ "," _ "," _ ",null,null,"W",1470,1470,"Computer Equipment","Computer Equipment"," _ "," _ "," _ "," _ "," _ "," _ "," _ ",null," _ "," _ "," _ "," _ "," _ ",null," _ "," _ "," _ "," _ ",null,3,33,"Asset Management","Finance & Administration",null,null,0,0,0,0,0,0,0,0,0,"_","_","_","_"]
["C0003-5/IA02108/F0002/X052/R0230/001/CONTRA","C0003-5/IA02108/F0002/X052/R0230/001/CONTRA",124473,0,"Assets:Current Assets:Cash and Cash Equivalents:Cash at Bank:Bank Account:Specify (replace with account description):Withdrawals"," _"," _"," _ "," _ "," _ "," _ ",1200,"Finance and administration",1207,"Information Technology","_",2080,"Funded by Internally generated funds","C","IA",120,"Current assets / Cash and cash equivalents",120,"Cash and cash equivalents"," _ "," _ ","_","_",310,"Other Cash Flows/Payments by Type / Capital assets",510,"Capital assets"," _ "," _ "," _ "," _ ",null," _ "," _ "," _ "," _ ",null,null,"W",1470,1470,"Computer Equipment","Computer Equipment"," _ "," _ "," _ "," _ "," _ "," _ "," _ ",null," _ "," _ "," _ "," _ "," _ ",null," _ "," _ "," _ "," _ ",null,14,143,"Information Technology","Finance & Administration 2",null,null,0,0,0,0,0,0,0,0,0,"_","_","_","_"]
["C0003-6/IA02108/F0002/X049/R0229/001/CONTRA","C0003-6/IA02108/F0002/X049/R0229/001/CONTRA",124708,0,"Assets:Current Assets:Cash and Cash Equivalents:Cash at Bank:Bank Account:Specify (replace with account description):Withdrawals"," _"," _"," _ "," _ "," _ "," _ ",1200,"Finance and administration",1204,"Finance","_",2080,"Funded by Internally generated funds","C","IA",120,"Current assets / Cash and cash equivalents",120,"Cash and cash equivalents"," _ "," _ ","_","_",310,"Other Cash Flows/Payments by Type / Capital assets",510,"Capital assets"," _ "," _ "," _ "," _ ",null," _ "," _ "," _ "," _ ",null,null,"W",1470,1470,"Computer Equipment","Computer Equipment"," _ "," _ "," _ "," _ "," _ "," _ "," _ ",null," _ "," _ "," _ "," _ "," _ ",null," _ "," _ "," _ "," _ ",null,3,32,"Finance","Finance & Administration",null,null,0,0,0,0,0,0,0,0,0,"_","_","_","_"]
["C0003-6/IA02108/F9412/X049/R0229/001/CONTRA","C0003-6/IA02108/F9412/X049/R0229/001/CONTRA",124395,0,"Assets:Current Assets:Cash and Cash Equivalents:Cash at Bank:Bank Account:Specify (replace with account description):Withdrawals"," _"," _"," _ "," _ "," _ "," _ ",1200,"Finance and administration",1204,"Finance","_",2010,"Funded by National Government","C","IA",120,"Current assets / Cash and cash equivalents",120,"Cash and cash equivalents","0160W","CASH FLOW FROM OPERATING ACTIVITIES / Receipts / Transfers and Subsidies - Capital","0160W","CASH FLOW FROM OPERATING ACTIVITIES / Receipts / Transfers and Subsidies - Capital"," _ "," _ "," _ "," _ "," _ "," _ "," _ "," _ ",null," _ "," _ "," _ "," _ ",280,"Other Cash Flows by Source / Transfers and subsidies - capital (monetary allocations) (National / Provincial and District)","W",1470,1470,"Computer Equipment","Computer Equipment"," _ "," _ "," _ "," _ "," _ "," _ "," _ ",null," _ "," _ "," _ "," _ "," _ ",null," _ "," _ "," _ "," _ ",null,3,32,"Finance","Finance & Administration",null,null,0,0,0,0,0,0,0,0,0,"_","_","_","_"]
["C0003-2/IA02108/F0791/X099/R0229/001/CONTRA","C0003-2/IA02108/F0791/X099/R0229/001/CONTRA",124431,0,"Assets:Current Assets:Cash and Cash Equivalents:Cash at Bank:Bank Account:Specify (replace with account description):Withdrawals"," _"," _"," _ "," _ "," _ "," _ ",3100,"Planning and development",3108,"Project Management Unit","_",2010,"Funded by National Government","C","IA",120,"Current assets / Cash and cash equivalents",120,"Cash and cash equivalents","0160W","CASH FLOW FROM OPERATING ACTIVITIES / Receipts / Transfers and Subsidies - Capital","0160W","CASH FLOW FROM OPERATING ACTIVITIES / Receipts / Transfers and Subsidies - Capital",310,"Other Cash Flows/Payments by Type / Capital assets",510,"Capital assets"," _ "," _ "," _ "," _ ",null," _ "," _ "," _ "," _ ",280,"Other Cash Flows by Source / Transfers and subsidies - capital (monetary allocations) (National / Provincial and District)","W",1470,1470,"Computer Equipment","Computer Equipment"," _ "," _ "," _ "," _ "," _ "," _ "," _ ",null," _ "," _ "," _ "," _ "," _ ",null," _ "," _ "," _ "," _ ",null,4,44,"Project Management Unit","Planning and Development",null,null,0,0,0,0,0,0,0,0,0,"_","_","_","_"]
["C0003-6/IA02108/F1177/X049/R0229/001/CONTRA","C0003-6/IA02108/F1177/X049/R0229/001/CONTRA",124692,0,"Assets:Current Assets:Cash and Cash Equivalents:Cash at Bank:Bank Account:Specify (replace with account description):Withdrawals"," _"," _"," _ "," _ "," _ "," _ ",1200,"Finance and administration",1204,"Finance","_"," _"," _","C","IA",120,"Current assets / Cash and cash equivalents",120,"Cash and cash equivalents","0150W","CASH FLOW FROM OPERATING ACTIVITIES / Receipts / Transfers and Subsidies - Operational","0150W","CASH FLOW FROM OPERATING ACTIVITIES / Receipts / Transfers and Subsidies - Operational",310,"Other Cash Flows/Payments by Type / Capital assets",510,"Capital assets"," _ "," _ "," _ "," _ ",null," _ "," _ "," _ "," _ ",240,"Cash Receipts By Source / Transfers and Subsidies - Operational","W",1470,1470,"Computer Equipment","Computer Equipment"," _ "," _ "," _ "," _ "," _ "," _ "," _ ",null," _ "," _ "," _ "," _ "," _ ",null," _ "," _ "," _ "," _ ",null,3,32,"Finance","Finance & Administration",null,null,0,0,0,0,0,0,0,0,0,"_","_","_","_"]
["C0003-6/IA10370/F1177/X049/R0229/001/CONTRA","C0003-6/IA10370/F1177/X049/R0229/001/CONTRA",124693,0,"Assets:Current Assets:VAT Receivable:Input Tax Capital:Recognised"," _"," _"," _ "," _ "," _ "," _ ",1200,"Finance and administration",1204,"Finance","_"," _"," _","C","IA",170,"Current assets / VAT",170,"VAT"," _ "," _ ","_","_"," _ "," _ "," _ "," _ "," _ "," _ "," _ "," _ ",null," _ "," _ "," _ "," _ ",null,null,null,1470,1470,"Computer Equipment","Computer Equipment"," _ "," _ "," _ "," _ "," _ "," _ "," _ ",null," _ "," _ "," _ "," _ "," _ ",null," _ "," _ "," _ "," _ ",null,3,32,"Finance","Finance & Administration",null,null,0,0,0,0,0,0,0,0,0,"_","_","_","_"]
["C0003-6/IA10370/F9412/X049/R0229/001/CONTRA","C0003-6/IA10370/F9412/X049/R0229/001/CONTRA",121055,0,"Assets:Current Assets:VAT Receivable:Input Tax Capital:Recognised"," _"," _"," _ "," _ "," _ "," _ ",1200,"Finance and administration",1204,"Finance","_",2010,"Funded by National Government","C","IA",170,"Current assets / VAT",170,"VAT"," _ "," _ ","_","_"," _ "," _ "," _ "," _ "," _ "," _ "," _ "," _ ",null," _ "," _ "," _ "," _ ",null,null,null,1470,1470,"Computer Equipment","Computer Equipment"," _ "," _ "," _ "," _ "," _ "," _ "," _ ",null," _ "," _ "," _ "," _ "," _ ",null," _ "," _ "," _ "," _ ",null,3,32,"Finance","Finance & Administration",null,null,0,0,0,0,0,99750,0,0,0,"_","_","_","_"]
["C0003-2/IA10370/F0791/X099/R0229/001/CONTRA","C0003-2/IA10370/F0791/X099/R0229/001/CONTRA",121359,0,"Assets:Current Assets:VAT Receivable:Input Tax Capital:Recognised"," _"," _"," _ "," _ "," _ "," _ ",3100,"Planning and development",3108,"Project Management Unit","_",2010,"Funded by National Government","C","IA",170,"Current assets / VAT",170,"VAT"," _ "," _ ","_","_"," _ "," _ "," _ "," _ "," _ "," _ "," _ "," _ ",null," _ "," _ "," _ "," _ ",null,null,null,1470,1470,"Computer Equipment","Computer Equipment"," _ "," _ "," _ "," _ "," _ "," _ "," _ ",null," _ "," _ "," _ "," _ "," _ ",null," _ "," _ "," _ "," _ ",null,4,44,"Project Management Unit","Planning and Development",null,null,0,0,0,0,0,0,0,0,0,"_","_","_","_"]
["C0003-3/IA10370/F0002/X047/R0230/001/CONTRA","C0003-3/IA10370/F0002/X047/R0230/001/CONTRA",122627,0,"Assets:Current Assets:VAT Receivable:Input Tax Capital:Recognised"," _"," _"," _ "," _ "," _ "," _ ",1200,"Finance and administration",1202,"Asset Management","_",2080,"Funded by Internally generated funds","C","IA",170,"Current assets / VAT",170,"VAT"," _ "," _ ","_","_"," _ "," _ "," _ "," _ "," _ "," _ "," _ "," _ ",null," _ "," _ "," _ "," _ ",null,null,null,1470,1470,"Computer Equipment","Computer Equipment"," _ "," _ "," _ "," _ "," _ "," _ "," _ ",null," _ "," _ "," _ "," _ "," _ ",null," _ "," _ "," _ "," _ ",null,3,33,"Asset Management","Finance & Administration",null,null,0,0,0,0,0,0,0,0,0,"_","_","_","_"]
["C0003-4/IA10370/F0002/X047/R0230/001/CONTRA","C0003-4/IA10370/F0002/X047/R0230/001/CONTRA",122631,0,"Assets:Current Assets:VAT Receivable:Input Tax Capital:Recognised"," _"," _"," _ "," _ "," _ "," _ ",1200,"Finance and administration",1202,"Asset Management","_",2080,"Funded by Internally generated funds","C","IA",170,"Current assets / VAT",170,"VAT"," _ "," _ ","_","_"," _ "," _ "," _ "," _ "," _ "," _ "," _ "," _ ",null," _ "," _ "," _ "," _ ",null,null,null,1470,1470,"Computer Equipment","Computer Equipment"," _ "," _ "," _ "," _ "," _ "," _ "," _ ",null," _ "," _ "," _ "," _ "," _ ",null," _ "," _ "," _ "," _ ",null,3,33,"Asset Management","Finance & Administration",null,null,0,0,0,0,0,0,0,0,0,"_","_","_","_"]
["C0003-1/IA10370/F0002/X052/R0229/001/CONTRA","C0003-1/IA10370/F0002/X052/R0229/001/CONTRA",121482,0,"Assets:Current Assets:VAT Receivable:Input Tax Capital:Recognised"," _"," _"," _ "," _ "," _ "," _ ",1200,"Finance and administration",1207,"Information Technology","_",2080,"Funded by Internally generated funds","C","IA",170,"Current assets / VAT",170,"VAT"," _ "," _ ","_","_"," _ "," _ "," _ "," _ "," _ "," _ "," _ "," _ ",null," _ "," _ "," _ "," _ ",null,null,null,1470,1470,"Computer Equipment","Computer Equipment"," _ "," _ "," _ "," _ "," _ "," _ "," _ ",null," _ "," _ "," _ "," _ "," _ ",null," _ "," _ "," _ "," _ ",null,14,143,"Information Technology","Finance & Administration 2",null,null,0,0,0,0,0,90000,91500,93000,0,"_","_","_","_"]
["C0003-6/IA10370/F0002/X049/R0229/001/CONTRA","C0003-6/IA10370/F0002/X049/R0229/001/CONTRA",124709,0,"Assets:Current Assets:VAT Receivable:Input Tax Capital:Recognised"," _"," _"," _ "," _ "," _ "," _ ",1200,"Finance and administration",1204,"Finance","_",2080,"Funded by Internally generated funds","C","IA",170,"Current assets / VAT",170,"VAT"," _ "," _ ","_","_"," _ "," _ "," _ "," _ "," _ "," _ "," _ "," _ ",null," _ "," _ "," _ "," _ ",null,null,null,1470,1470,"Computer Equipment","Computer Equipment"," _ "," _ "," _ "," _ "," _ "," _ "," _ ",null," _ "," _ "," _ "," _ "," _ ",null," _ "," _ "," _ "," _ ",null,3,32,"Finance","Finance & Administration",null,null,0,0,0,0,0,0,0,0,0,"_","_","_","_"]
["C0003-5/IA10370/F0002/X052/R0230/001/CONTRA","C0003-5/IA10370/F0002/X052/R0230/001/CONTRA",121486,0,"Assets:Current Assets:VAT Receivable:Input Tax Capital:Recognised"," _"," _"," _ "," _ "," _ "," _ ",1200,"Finance and administration",1207,"Information Technology","_",2080,"Funded by Internally generated funds","C","IA",170,"Current assets / VAT",170,"VAT"," _ "," _ ","_","_"," _ "," _ "," _ "," _ "," _ "," _ "," _ "," _ ",null," _ "," _ "," _ "," _ ",null,null,null,1470,1470,"Computer Equipment","Computer Equipment"," _ "," _ "," _ "," _ "," _ "," _ "," _ ",null," _ "," _ "," _ "," _ "," _ ",null," _ "," _ "," _ "," _ ",null,14,143,"Information Technology","Finance & Administration 2",null,null,0,0,0,0,0,300000,315000,330000,0,"_","_","_","_"]
["C0003-3/IL65531/F0002/X047/R0230/001/CONTRA","C0003-3/IL65531/F0002/X047/R0230/001/CONTRA",122629,0,"Liabilities:Current Liabilities:Trade and Other Payable Exchange Transactions:Payables and Accruals : Contractors:Withdrawals"," _"," _"," _ "," _ "," _ "," _ ",1200,"Finance and administration",1202,"Asset Management","_",2080,"Funded by Internally generated funds","C","IL",380,"Current liabilities / Trade and other payables from exchange transactions","_","_"," _ "," _ ","_","_",200,"Cash Payments by Type / Contracted Services",450,"Cash Payments by Type / Contracted Services"," _ "," _ "," _ "," _ ",null,361,"Trade and other payables / Trade and other payables from exchange transactions",361,"Trade and other payables / Trade and other payables from exchange transactions",null,null,null,1470,1470,"Computer Equipment","Computer Equipment"," _ "," _ "," _ "," _ "," _ "," _ "," _ ",null," _ "," _ "," _ "," _ "," _ ",null," _ "," _ "," _ "," _ ",null,3,33,"Asset Management","Finance & Administration",null,null,0,0,0,0,0,0,0,0,0,"_","_","_","_"]
["C0003-4/IL65531/F0002/X047/R0230/001/CONTRA","C0003-4/IL65531/F0002/X047/R0230/001/CONTRA",122633,0,"Liabilities:Current Liabilities:Trade and Other Payable Exchange Transactions:Payables and Accruals : Contractors:Withdrawals"," _"," _"," _ "," _ "," _ "," _ ",1200,"Finance and administration",1202,"Asset Management","_",2080,"Funded by Internally generated funds","C","IL",380,"Current liabilities / Trade and other payables from exchange transactions","_","_"," _ "," _ ","_","_",200,"Cash Payments by Type / Contracted Services",450,"Cash Payments by Type / Contracted Services"," _ "," _ "," _ "," _ ",null,361,"Trade and other payables / Trade and other payables from exchange transactions",361,"Trade and other payables / Trade and other payables from exchange transactions",null,null,null,1470,1470,"Computer Equipment","Computer Equipment"," _ "," _ "," _ "," _ "," _ "," _ "," _ ",null," _ "," _ "," _ "," _ "," _ ",null," _ "," _ "," _ "," _ ",null,3,33,"Asset Management","Finance & Administration",null,null,0,0,0,0,0,0,0,0,0,"_","_","_","_"]
["C0003-1/IL65531/F0002/X052/R0229/001/CONTRA","C0003-1/IL65531/F0002/X052/R0229/001/CONTRA",121484,0,"Liabilities:Current Liabilities:Trade and Other Payable Exchange Transactions:Payables and Accruals : Contractors:Withdrawals"," _"," _"," _ "," _ "," _ "," _ ",1200,"Finance and administration",1207,"Information Technology","_",2080,"Funded by Internally generated funds","C","IL",380,"Current liabilities / Trade and other payables from exchange transactions","_","_"," _ "," _ ","_","_",200,"Cash Payments by Type / Contracted Services",450,"Cash Payments by Type / Contracted Services"," _ "," _ "," _ "," _ ",null,361,"Trade and other payables / Trade and other payables from exchange transactions",361,"Trade and other payables / Trade and other payables from exchange transactions",null,null,null,1470,1470,"Computer Equipment","Computer Equipment"," _ "," _ "," _ "," _ "," _ "," _ "," _ ",null," _ "," _ "," _ "," _ "," _ ",null," _ "," _ "," _ "," _ ",null,14,143,"Information Technology","Finance & Administration 2",null,null,0,0,0,0,0,690000,701500,713000,0,"_","_","_","_"]
["C0003-5/IL65531/F0002/X052/R0230/001/CONTRA","C0003-5/IL65531/F0002/X052/R0230/001/CONTRA",121488,0,"Liabilities:Current Liabilities:Trade and Other Payable Exchange Transactions:Payables and Accruals : Contractors:Withdrawals"," _"," _"," _ "," _ "," _ "," _ ",1200,"Finance and administration",1207,"Information Technology","_",2080,"Funded by Internally generated funds","C","IL",380,"Current liabilities / Trade and other payables from exchange transactions","_","_"," _ "," _ ","_","_",200,"Cash Payments by Type / Contracted Services",450,"Cash Payments by Type / Contracted Services"," _ "," _ "," _ "," _ ",null,361,"Trade and other payables / Trade and other payables from exchange transactions",361,"Trade and other payables / Trade and other payables from exchange transactions",null,null,null,1470,1470,"Computer Equipment","Computer Equipment"," _ "," _ "," _ "," _ "," _ "," _ "," _ ",null," _ "," _ "," _ "," _ "," _ ",null," _ "," _ "," _ "," _ ",null,14,143,"Information Technology","Finance & Administration 2",null,null,0,0,0,0,0,2300000,2415000,2530000,0,"_","_","_","_"]
["C0003-6/IL65531/F0002/X049/R0229/001/CONTRA","C0003-6/IL65531/F0002/X049/R0229/001/CONTRA",124711,0,"Liabilities:Current Liabilities:Trade and Other Payable Exchange Transactions:Payables and Accruals : Contractors:Withdrawals"," _"," _"," _ "," _ "," _ "," _ ",1200,"Finance and administration",1204,"Finance","_",2080,"Funded by Internally generated funds","C","IL",380,"Current liabilities / Trade and other payables from exchange transactions","_","_"," _ "," _ ","_","_",200,"Cash Payments by Type / Contracted Services",450,"Cash Payments by Type / Contracted Services"," _ "," _ "," _ "," _ ",null,361,"Trade and other payables / Trade and other payables from exchange transactions",361,"Trade and other payables / Trade and other payables from exchange transactions",null,null,null,1470,1470,"Computer Equipment","Computer Equipment"," _ "," _ "," _ "," _ "," _ "," _ "," _ ",null," _ "," _ "," _ "," _ "," _ ",null," _ "," _ "," _ "," _ ",null,3,32,"Finance","Finance & Administration",null,null,0,0,0,0,0,0,0,0,0,"_","_","_","_"]
["C0003-2/IL65531/F0791/X099/R0229/001/CONTRA","C0003-2/IL65531/F0791/X099/R0229/001/CONTRA",121361,0,"Liabilities:Current Liabilities:Trade and Other Payable Exchange Transactions:Payables and Accruals : Contractors:Withdrawals"," _"," _"," _ "," _ "," _ "," _ ",3100,"Planning and development",3108,"Project Management Unit","_",2010,"Funded by National Government","C","IL",380,"Current liabilities / Trade and other payables from exchange transactions","_","_"," _ "," _ ","_","_",200,"Cash Payments by Type / Contracted Services",450,"Cash Payments by Type / Contracted Services"," _ "," _ "," _ "," _ ",null,361,"Trade and other payables / Trade and other payables from exchange transactions",361,"Trade and other payables / Trade and other payables from exchange transactions",null,null,null,1470,1470,"Computer Equipment","Computer Equipment"," _ "," _ "," _ "," _ "," _ "," _ "," _ ",null," _ "," _ "," _ "," _ "," _ ",null," _ "," _ "," _ "," _ ",null,4,44,"Project Management Unit","Planning and Development",null,null,0,0,0,0,0,0,0,0,0,"_","_","_","_"]
["C0003-6/IL65531/F9412/X049/R0229/001/CONTRA","C0003-6/IL65531/F9412/X049/R0229/001/CONTRA",121057,0,"Liabilities:Current Liabilities:Trade and Other Payable Exchange Transactions:Payables and Accruals : Contractors:Withdrawals"," _"," _"," _ "," _ "," _ "," _ ",1200,"Finance and administration",1204,"Finance","_",2010,"Funded by National Government","C","IL",380,"Current liabilities / Trade and other payables from exchange transactions","_","_"," _ "," _ ","_","_"," _ "," _ "," _ "," _ "," _ "," _ "," _ "," _ ",null,361,"Trade and other payables / Trade and other payables from exchange transactions",361,"Trade and other payables / Trade and other payables from exchange transactions",null,null,null,1470,1470,"Computer Equipment","Computer Equipment"," _ "," _ "," _ "," _ "," _ "," _ "," _ ",null," _ "," _ "," _ "," _ "," _ ",null," _ "," _ "," _ "," _ ",null,3,32,"Finance","Finance & Administration",null,null,0,0,0,0,0,764750,0,0,0,"_","_","_","_"]
["C0003-6/IL65531/F1177/X049/R0229/001/CONTRA","C0003-6/IL65531/F1177/X049/R0229/001/CONTRA",124695,0,"Liabilities:Current Liabilities:Trade and Other Payable Exchange Transactions:Payables and Accruals : Contractors:Withdrawals"," _"," _"," _ "," _ "," _ "," _ ",1200,"Finance and administration",1204,"Finance","_"," _"," _","C","IL",380,"Current liabilities / Trade and other payables from exchange transactions","_","_"," _ "," _ ","_","_",200,"Cash Payments by Type / Contracted Services",450,"Cash Payments by Type / Contracted Services"," _ "," _ "," _ "," _ ",null,361,"Trade and other payables / Trade and other payables from exchange transactions",361,"Trade and other payables / Trade and other payables from exchange transactions",null,null,null,1470,1470,"Computer Equipment","Computer Equipment"," _ "," _ "," _ "," _ "," _ "," _ "," _ ",null," _ "," _ "," _ "," _ "," _ ",null," _ "," _ "," _ "," _ ",null,3,32,"Finance","Finance & Administration",null,null,0,0,0,0,0,0,0,0,0,"_","_","_","_"]
["C0003-4/IA06196/F0002/X047/R0230/001/6114","C0003-4/IA06196/F0002/X047/R0230/001/6114",61369,4091,"Assets:Non-current Assets:Property, Plant and Equipment:Cost Model:Computer Equipment:In-use:Cost:Correction of Error"," _"," _"," _ "," _ "," _ "," _ ",1200,"Finance and administration",1202,"Asset Management","_",2080,"Funded by Internally generated funds","C","IA",230,"Non current assets / Property, plant and equipment",231,"Land: Acquisitions"," _ "," _ ","_","_"," _ "," _ "," _ "," _ ",1470,"Computer Equipment",1470,"Computer Equipment",null,241,"Property, plant and equipment (PPE) / PPE at cost/valuation (excl. finance leases)",241,"Property, plant and equipment (PPE) / PPE at cost/valuation (excl. finance leases)",null,null,null,1470,1470,"Computer Equipment","Computer Equipment"," _ "," _ "," _ "," _ "," _ "," _ "," _ ",null," _ "," _ "," _ "," _ "," _ ",null," _ "," _ "," _ "," _ ",null,3,33,"Asset Management","Finance & Administration",null,null,0,0,0,0,0,0,0,0,0,"_","_","_","_"]
["C0003-2/IL65530/F0791/X099/R0229/001/CONTRA","C0003-2/IL65530/F0791/X099/R0229/001/CONTRA",121360,0,"Liabilities:Current Liabilities:Trade and Other Payable Exchange Transactions:Payables and Accruals : Contractors:Deposits"," _"," _"," _ "," _ "," _ "," _ ",3100,"Planning and development",3108,"Project Management Unit","_",2010,"Funded by National Government","C","IL",380,"Current liabilities / Trade and other payables from exchange transactions","_","_"," _ "," _ ","_","_"," _ "," _ "," _ "," _ "," _ "," _ "," _ "," _ ",null,361,"Trade and other payables / Trade and other payables from exchange transactions",361,"Trade and other payables / Trade and other payables from exchange transactions",null,null,null,1470,1470,"Computer Equipment","Computer Equipment"," _ "," _ "," _ "," _ "," _ "," _ "," _ ",null," _ "," _ "," _ "," _ "," _ ",null," _ "," _ "," _ "," _ ",null,4,44,"Project Management Unit","Planning and Development",null,null,0,0,0,0,0,0,0,0,0,"_","_","_","_"]
["C0003-6/IL65530/F9412/X049/R0229/001/CONTRA","C0003-6/IL65530/F9412/X049/R0229/001/CONTRA",121056,0,"Liabilities:Current Liabilities:Trade and Other Payable Exchange Transactions:Payables and Accruals : Contractors:Deposits"," _"," _"," _ "," _ "," _ "," _ ",1200,"Finance and administration",1204,"Finance","_",2010,"Funded by National Government","C","IL",380,"Current liabilities / Trade and other payables from exchange transactions","_","_"," _ "," _ ","_","_"," _ "," _ "," _ "," _ "," _ "," _ "," _ "," _ ",null,361,"Trade and other payables / Trade and other payables from exchange transactions",361,"Trade and other payables / Trade and other payables from exchange transactions",null,null,null,1470,1470,"Computer Equipment","Computer Equipment"," _ "," _ "," _ "," _ "," _ "," _ "," _ ",null," _ "," _ "," _ "," _ "," _ ",null," _ "," _ "," _ "," _ ",null,3,32,"Finance","Finance & Administration",null,null,0,0,0,0,0,-764750,0,0,0,"_","_","_","_"]
["C0003-6/IL65530/F1177/X049/R0229/001/CONTRA","C0003-6/IL65530/F1177/X049/R0229/001/CONTRA",124694,0,"Liabilities:Current Liabilities:Trade and Other Payable Exchange Transactions:Payables and Accruals : Contractors:Deposits"," _"," _"," _ "," _ "," _ "," _ ",1200,"Finance and administration",1204,"Finance","_"," _"," _","C","IL",380,"Current liabilities / Trade and other payables from exchange transactions","_","_"," _ "," _ ","_","_"," _ "," _ "," _ "," _ "," _ "," _ "," _ "," _ ",null,361,"Trade and other payables / Trade and other payables from exchange transactions",361,"Trade and other payables / Trade and other payables from exchange transactions",null,null,null,1470,1470,"Computer Equipment","Computer Equipment"," _ "," _ "," _ "," _ "," _ "," _ "," _ ",null," _ "," _ "," _ "," _ "," _ ",null," _ "," _ "," _ "," _ ",null,3,32,"Finance","Finance & Administration",null,null,0,0,0,0,0,0,0,0,0,"_","_","_","_"]
["C0003-1/IL65530/F0002/X052/R0229/001/CONTRA","C0003-1/IL65530/F0002/X052/R0229/001/CONTRA",121483,0,"Liabilities:Current Liabilities:Trade and Other Payable Exchange Transactions:Payables and Accruals : Contractors:Deposits"," _"," _"," _ "," _ "," _ "," _ ",1200,"Finance and administration",1207,"Information Technology","_",2080,"Funded by Internally generated funds","C","IL",380,"Current liabilities / Trade and other payables from exchange transactions","_","_"," _ "," _ ","_","_"," _ "," _ "," _ "," _ "," _ "," _ "," _ "," _ ",null,361,"Trade and other payables / Trade and other payables from exchange transactions",361,"Trade and other payables / Trade and other payables from exchange transactions",null,null,null,1470,1470,"Computer Equipment","Computer Equipment"," _ "," _ "," _ "," _ "," _ "," _ "," _ ",null," _ "," _ "," _ "," _ "," _ ",null," _ "," _ "," _ "," _ ",null,14,143,"Information Technology","Finance & Administration 2",null,null,0,0,0,0,0,-690000,-701500,-713000,0,"_","_","_","_"]
["C0003-4/IL65530/F0002/X047/R0230/001/CONTRA","C0003-4/IL65530/F0002/X047/R0230/001/CONTRA",122632,0,"Liabilities:Current Liabilities:Trade and Other Payable Exchange Transactions:Payables and Accruals : Contractors:Deposits"," _"," _"," _ "," _ "," _ "," _ ",1200,"Finance and administration",1202,"Asset Management","_",2080,"Funded by Internally generated funds","C","IL",380,"Current liabilities / Trade and other payables from exchange transactions","_","_"," _ "," _ ","_","_"," _ "," _ "," _ "," _ "," _ "," _ "," _ "," _ ",null,361,"Trade and other payables / Trade and other payables from exchange transactions",361,"Trade and other payables / Trade and other payables from exchange transactions",null,null,null,1470,1470,"Computer Equipment","Computer Equipment"," _ "," _ "," _ "," _ "," _ "," _ "," _ ",null," _ "," _ "," _ "," _ "," _ ",null," _ "," _ "," _ "," _ ",null,3,33,"Asset Management","Finance & Administration",null,null,0,0,0,0,0,0,0,0,0,"_","_","_","_"]
["C0003-3/IL65530/F0002/X047/R0230/001/CONTRA","C0003-3/IL65530/F0002/X047/R0230/001/CONTRA",122628,0,"Liabilities:Current Liabilities:Trade and Other Payable Exchange Transactions:Payables and Accruals : Contractors:Deposits"," _"," _"," _ "," _ "," _ "," _ ",1200,"Finance and administration",1202,"Asset Management","_",2080,"Funded by Internally generated funds","C","IL",380,"Current liabilities / Trade and other payables from exchange transactions","_","_"," _ "," _ ","_","_"," _ "," _ "," _ "," _ "," _ "," _ "," _ "," _ ",null,361,"Trade and other payables / Trade and other payables from exchange transactions",361,"Trade and other payables / Trade and other payables from exchange transactions",null,null,null,1470,1470,"Computer Equipment","Computer Equipment"," _ "," _ "," _ "," _ "," _ "," _ "," _ ",null," _ "," _ "," _ "," _ "," _ ",null," _ "," _ "," _ "," _ ",null,3,33,"Asset Management","Finance & Administration",null,null,0,0,0,0,0,0,0,0,0,"_","_","_","_"]
["C0003-6/IL65530/F0002/X049/R0229/001/CONTRA","C0003-6/IL65530/F0002/X049/R0229/001/CONTRA",124710,0,"Liabilities:Current Liabilities:Trade and Other Payable Exchange Transactions:Payables and Accruals : Contractors:Deposits"," _"," _"," _ "," _ "," _ "," _ ",1200,"Finance and administration",1204,"Finance","_",2080,"Funded by Internally generated funds","C","IL",380,"Current liabilities / Trade and other payables from exchange transactions","_","_"," _ "," _ ","_","_"," _ "," _ "," _ "," _ "," _ "," _ "," _ "," _ ",null,361,"Trade and other payables / Trade and other payables from exchange transactions",361,"Trade and other payables / Trade and other payables from exchange transactions",null,null,null,1470,1470,"Computer Equipment","Computer Equipment"," _ "," _ "," _ "," _ "," _ "," _ "," _ ",null," _ "," _ "," _ "," _ "," _ ",null," _ "," _ "," _ "," _ ",null,3,32,"Finance","Finance & Administration",null,null,0,0,0,0,0,0,0,0,0,"_","_","_","_"]
["C0003-5/IL65530/F0002/X052/R0230/001/CONTRA","C0003-5/IL65530/F0002/X052/R0230/001/CONTRA",121487,0,"Liabilities:Current Liabilities:Trade and Other Payable Exchange Transactions:Payables and Accruals : Contractors:Deposits"," _"," _"," _ "," _ "," _ "," _ ",1200,"Finance and administration",1207,"Information Technology","_",2080,"Funded by Internally generated funds","C","IL",380,"Current liabilities / Trade and other payables from exchange transactions","_","_"," _ "," _ ","_","_"," _ "," _ "," _ "," _ "," _ "," _ "," _ "," _ ",null,361,"Trade and other payables / Trade and other payables from exchange transactions",361,"Trade and other payables / Trade and other payables from exchange transactions",null,null,null,1470,1470,"Computer Equipment","Computer Equipment"," _ "," _ "," _ "," _ "," _ "," _ "," _ ",null," _ "," _ "," _ "," _ "," _ ",null," _ "," _ "," _ "," _ ",null,14,143,"Information Technology","Finance & Administration 2",null,null,0,0,0,0,0,-2300000,-2415000,-2530000,0,"_","_","_","_"]
["C0003-5/IA06553/F0002/X052/R0230/001/6105","C0003-5/IA06553/F0002/X052/R0230/001/6105",69450,4316,"Assets:Non-current Assets:Property, Plant and Equipment:Leased Assets:Computer Equipment:In-use:Cost:Acquisitions"," _"," _"," _ "," _ "," _ "," _ ",1200,"Finance and administration",1207,"Information Technology","CE",2080,"Funded by Internally generated funds","C","IA",230,"Non current assets / Property, plant and equipment",232,"Land: Sales"," _ "," _ ","_","_"," _ "," _ "," _ "," _ ",1470,"Computer Equipment",1470,"Computer Equipment",null,242,"Property, plant and equipment (PPE) / Leases recognised as PPE",242,"Property, plant and equipment (PPE) / Leases recognised as PPE",null,null,null,1470,1470,"Computer Equipment","Computer Equipment"," _ "," _ "," _ "," _ "," _ "," _ "," _ ",null," _ "," _ "," _ "," _ "," _ ",null," _ "," _ "," _ "," _ ",null,14,143,"Information Technology","Finance & Administration 2",null,null,0,0,0,1500000,300000,2000000,2100000,2200000,70622,"_","_","_","_"]
["C0003-3/IA06553/F0002/X047/R0230/001/6114","C0003-3/IA06553/F0002/X047/R0230/001/6114",61366,4088,"Assets:Non-current Assets:Property, Plant and Equipment:Leased Assets:Computer Equipment:In-use:Cost:Acquisitions"," _"," _"," _ "," _ "," _ "," _ ",1200,"Finance and administration",1202,"Asset Management","CE",2080,"Funded by Internally generated funds","C","IA",230,"Non current assets / Property, plant and equipment",232,"Land: Sales"," _ "," _ ","_","_"," _ "," _ "," _ "," _ ",1470,"Computer Equipment",1470,"Computer Equipment",null,242,"Property, plant and equipment (PPE) / Leases recognised as PPE",242,"Property, plant and equipment (PPE) / Leases recognised as PPE",null,null,null,1470,1470,"Computer Equipment","Computer Equipment"," _ "," _ "," _ "," _ "," _ "," _ "," _ ",null," _ "," _ "," _ "," _ "," _ ",null," _ "," _ "," _ "," _ ",null,3,33,"Asset Management","Finance & Administration",null,null,0,0,0,0,0,0,0,0,0,"_","_","_","_"]
["O1401-1/IL65530/F0041/X132/R0230/001/CONTRA","O1401-1/IL65530/F0041/X132/R0230/001/CONTRA",122228,0,"Liabilities:Current Liabilities:Trade and Other Payable Exchange Transactions:Payables and Accruals : Contractors:Deposits"," _"," _"," _ "," _ "," _ "," _ ",4400,"Waste management",4403,"Solid Waste Removal","_"," _"," _","O","IL",380,"Current liabilities / Trade and other payables from exchange transactions","_","_"," _ "," _ ","_","_"," _ "," _ "," _ "," _ "," _ "," _ "," _ "," _ ",null,361,"Trade and other payables / Trade and other payables from exchange transactions",361,"Trade and other payables / Trade and other payables from exchange transactions",null,null,null," _ "," _ "," _ "," _ "," _ "," _ "," _ "," _ "," _ "," _ "," _ ",null," _ "," _ "," _ "," _ "," _ ",null," _ "," _ "," _ "," _ ",null,9,93,"Solid Waste Removal","Waste Management",null,null,0,0,0,0,0,-3450000,-3680000,-3910000,0,"_","_","_","_"]
["O1401-1/IL65531/F0041/X132/R0230/001/CONTRA","O1401-1/IL65531/F0041/X132/R0230/001/CONTRA",122229,0,"Liabilities:Current Liabilities:Trade and Other Payable Exchange Transactions:Payables and Accruals : Contractors:Withdrawals"," _"," _"," _ "," _ "," _ "," _ ",4400,"Waste management",4403,"Solid Waste Removal","_"," _"," _","O","IL",380,"Current liabilities / Trade and other payables from exchange transactions","_","_"," _ "," _ ","_","_",200,"Cash Payments by Type / Contracted Services",450,"Cash Payments by Type / Contracted Services"," _ "," _ "," _ "," _ ",null,361,"Trade and other payables / Trade and other payables from exchange transactions",361,"Trade and other payables / Trade and other payables from exchange transactions",null,null,null," _ "," _ "," _ "," _ "," _ "," _ "," _ "," _ "," _ "," _ "," _ ",null," _ "," _ "," _ "," _ "," _ ",null," _ "," _ "," _ "," _ ",null,9,93,"Solid Waste Removal","Waste Management",null,null,0,0,0,0,0,3450000,3680000,3910000,0,"_","_","_","_"]
["O1401-1/IA02108/F0041/X132/R0230/001/CONTRA","O1401-1/IA02108/F0041/X132/R0230/001/CONTRA",122226,0,"Assets:Current Assets:Cash and Cash Equivalents:Cash at Bank:Bank Account:Specify (replace with account description):Withdrawals"," _"," _"," _ "," _ "," _ "," _ ",4400,"Waste management",4403,"Solid Waste Removal","_"," _"," _","O","IA",120,"Current assets / Cash and cash equivalents",120,"Cash and cash equivalents","0150W","CASH FLOW FROM OPERATING ACTIVITIES / Receipts / Transfers and Subsidies - Operational","0150W","CASH FLOW FROM OPERATING ACTIVITIES / Receipts / Transfers and Subsidies - Operational"," _ "," _ "," _ "," _ "," _ "," _ "," _ "," _ ",null," _ "," _ "," _ "," _ ",240,"Cash Receipts By Source / Transfers and Subsidies - Operational","W"," _ "," _ "," _ "," _ "," _ "," _ "," _ "," _ "," _ "," _ "," _ ",null," _ "," _ "," _ "," _ "," _ ",null," _ "," _ "," _ "," _ ",null,9,93,"Solid Waste Removal","Waste Management",null,null,0,0,0,0,0,-3450000,-3680000,-3910000,0,"_","_","_","_"]
["O1401-1/IE00080/F0041/X132/R0230/001/6501","O1401-1/IE00080/F0041/X132/R0230/001/6501",69054,4299,"Expenditure:Contracted Services:Consultants and Professional Services:Infrastructure and Planning:Engineering:Civil",3800,"Expenditure / Contracted services",2702,"Expenditure / Contracted services",2702,"Contracted Services ",4400,"Waste management",4403,"Solid Waste Removal","_"," _"," _","O","IE"," _ "," _ "," _ "," _ "," _ "," _ ","_","_"," _ "," _ "," _ "," _ "," _ "," _ "," _ "," _ ",null," _ "," _ "," _ "," _ ",null,null,null," _ "," _ "," _ "," _ "," _ "," _ "," _ "," _ "," _ "," _ "," _ ",null," _ "," _ "," _ "," _ "," _ ",null," _ "," _ "," _ "," _ ",null,9,93,"Solid Waste Removal","Waste Management",null,null,0,0,0,2200000,5000,3000000,3200000,3400000,0,"_","_","_","_"]
["O1401-1/IA10375/F0041/X132/R0230/001/CONTRA","O1401-1/IA10375/F0041/X132/R0230/001/CONTRA",122227,0,"Assets:Current Assets:VAT Receivable:Input Tax Accrual:Recognised"," _"," _"," _ "," _ "," _ "," _ ",4400,"Waste management",4403,"Solid Waste Removal","_"," _"," _","O","IA",170,"Current assets / VAT",170,"VAT"," _ "," _ ","_","_"," _ "," _ "," _ "," _ "," _ "," _ "," _ "," _ ",null," _ "," _ "," _ "," _ ",null,null,null," _ "," _ "," _ "," _ "," _ "," _ "," _ "," _ "," _ "," _ "," _ ",null," _ "," _ "," _ "," _ "," _ ",null," _ "," _ "," _ "," _ ",null,9,93,"Solid Waste Removal","Waste Management",null,null,0,0,0,0,0,450000,480000,510000,0,"_","_","_","_"]
["O1255-1/IA10375/F0041/X024/R0230/001/CONTRA","O1255-1/IA10375/F0041/X024/R0230/001/CONTRA",122408,0,"Assets:Current Assets:VAT Receivable:Input Tax Accrual:Recognised"," _"," _"," _ "," _ "," _ "," _ ",2100,"Community and social services",2114,"Libraries and Archives","_"," _"," _","O","IA",170,"Current assets / VAT",170,"VAT"," _ "," _ ","_","_"," _ "," _ "," _ "," _ "," _ "," _ "," _ "," _ ",null," _ "," _ "," _ "," _ ",null,null,null," _ "," _ "," _ "," _ "," _ "," _ "," _ "," _ "," _ "," _ "," _ ",null," _ "," _ "," _ "," _ "," _ ",null," _ "," _ "," _ "," _ ",null,2,23,"Libraries and Archives","Community and Social Services",null,null,0,0,0,0,0,37500,39000,40500,0,"_","_","_","_"]
["O1255-1/IL53820/F0041/X024/R0230/001/CONTRA","O1255-1/IL53820/F0041/X024/R0230/001/CONTRA",122409,0,"Liabilities:Current Liabilities:Trade and Other Payable Exchange Transactions:Payables and Accruals : General:Deposits"," _"," _"," _ "," _ "," _ "," _ ",2100,"Community and social services",2114,"Libraries and Archives","_"," _"," _","O","IL",380,"Current liabilities / Trade and other payables from exchange transactions","_","_"," _ "," _ ","_","_"," _ "," _ "," _ "," _ "," _ "," _ "," _ "," _ ",null,361,"Trade and other payables / Trade and other payables from exchange transactions",361,"Trade and other payables / Trade and other payables from exchange transactions",null,null,null," _ "," _ "," _ "," _ "," _ "," _ "," _ "," _ "," _ "," _ "," _ ",null," _ "," _ "," _ "," _ "," _ ",null," _ "," _ "," _ "," _ ",null,2,23,"Libraries and Archives","Community and Social Services",null,null,0,0,0,0,0,-287500,-299000,-310500,0,"_","_","_","_"]
["O1255-1/IA02108/F0041/X024/R0230/001/CONTRA","O1255-1/IA02108/F0041/X024/R0230/001/CONTRA",122407,0,"Assets:Current Assets:Cash and Cash Equivalents:Cash at Bank:Bank Account:Specify (replace with account description):Withdrawals"," _"," _"," _ "," _ "," _ "," _ ",2100,"Community and social services",2114,"Libraries and Archives","_"," _"," _","O","IA",120,"Current assets / Cash and cash equivalents",120,"Cash and cash equivalents","0150W","CASH FLOW FROM OPERATING ACTIVITIES / Receipts / Transfers and Subsidies - Operational","0150W","CASH FLOW FROM OPERATING ACTIVITIES / Receipts / Transfers and Subsidies - Operational"," _ "," _ "," _ "," _ "," _ "," _ "," _ "," _ ",null," _ "," _ "," _ "," _ ",240,"Cash Receipts By Source / Transfers and Subsidies - Operational","W"," _ "," _ "," _ "," _ "," _ "," _ "," _ "," _ "," _ "," _ "," _ ",null," _ "," _ "," _ "," _ "," _ ",null," _ "," _ "," _ "," _ ",null,2,23,"Libraries and Archives","Community and Social Services",null,null,0,0,0,0,0,-287500,-299000,-310500,0,"_","_","_","_"]
["O1255-1/IL53821/F0041/X024/R0230/001/CONTRA","O1255-1/IL53821/F0041/X024/R0230/001/CONTRA",122410,0,"Liabilities:Current Liabilities:Trade and Other Payable Exchange Transactions:Payables and Accruals : General:Withdrawals"," _"," _"," _ "," _ "," _ "," _ ",2100,"Community and social services",2114,"Libraries and Archives","_"," _"," _","O","IL",380,"Current liabilities / Trade and other payables from exchange transactions","_","_"," _ "," _ ","_","_",200,"Cash Payments by Type / Other expenditure",480,"Other expenditure"," _ "," _ "," _ "," _ ",null,361,"Trade and other payables / Trade and other payables from exchange transactions",361,"Trade and other payables / Trade and other payables from exchange transactions",null,null,null," _ "," _ "," _ "," _ "," _ "," _ "," _ "," _ "," _ "," _ "," _ ",null," _ "," _ "," _ "," _ "," _ ",null," _ "," _ "," _ "," _ ",null,2,23,"Libraries and Archives","Community and Social Services",null,null,0,0,0,0,0,287500,299000,310500,0,"_","_","_","_"]
["O1255-1/IE00754/F0041/X024/R0230/001/6251","O1255-1/IE00754/F0041/X024/R0230/001/6251",31061,1978,"Expenditure:Operational Cost:Advertising, Publicity and Marketing:Gifts and Promotional Items",4100,"Expenditure / Operational costs",2904,"Expenditure / Operational costs",2904,"Operational Costs ",2100,"Community and social services",2114,"Libraries and Archives","_"," _"," _","O","IE"," _ "," _ "," _ "," _ "," _ "," _ ","_","_"," _ "," _ "," _ "," _ "," _ "," _ "," _ "," _ ",null," _ "," _ "," _ "," _ ",null,null,null," _ "," _ "," _ "," _ "," _ "," _ "," _ "," _ "," _ "," _ "," _ ",null," _ "," _ "," _ "," _ "," _ ",null," _ "," _ "," _ "," _ ",null,2,23,"Libraries and Archives","Community and Social Services",null,null,0,0,0,150000,150000,250000,260000,270000,0,"_","_","_","_"]
["O1249-1/IL53821/F0041/X098/R0230/001/CONTRA","O1249-1/IL53821/F0041/X098/R0230/001/CONTRA",122314,0,"Liabilities:Current Liabilities:Trade and Other Payable Exchange Transactions:Payables and Accruals : General:Withdrawals"," _"," _"," _ "," _ "," _ "," _ ",3100,"Planning and development",3105,"Planning","_"," _"," _","O","IL",380,"Current liabilities / Trade and other payables from exchange transactions","_","_"," _ "," _ ","_","_",200,"Cash Payments by Type / Other expenditure",480,"Other expenditure"," _ "," _ "," _ "," _ ",null,361,"Trade and other payables / Trade and other payables from exchange transactions",361,"Trade and other payables / Trade and other payables from exchange transactions",null,null,null," _ "," _ "," _ "," _ "," _ "," _ "," _ "," _ "," _ "," _ "," _ ",null," _ "," _ "," _ "," _ "," _ ",null," _ "," _ "," _ "," _ ",null,4,43,"Economic Development/Planning","Planning and Development",null,null,0,0,0,0,0,810000,840000,870000,0,"_","_","_","_"]
["O1249-1/IE00677/F0041/X098/R0230/001/6057","O1249-1/IE00677/F0041/X098/R0230/001/6057",30963,1969,"Expenditure:Contracted Services:Outsourced Services:Catering Services",3800,"Expenditure / Contracted services",2701,"Expenditure / Contracted services",2701,"Contracted Services ",3100,"Planning and development",3105,"Planning","_"," _"," _","O","IE"," _ "," _ "," _ "," _ "," _ "," _ ","_","_"," _ "," _ "," _ "," _ "," _ "," _ "," _ "," _ ",null," _ "," _ "," _ "," _ ",null,null,null," _ "," _ "," _ "," _ "," _ "," _ "," _ "," _ "," _ "," _ "," _ ",null," _ "," _ "," _ "," _ "," _ ",null," _ "," _ "," _ "," _ ",null,4,43,"Economic Development/Planning","Planning and Development",null,null,0,0,9500,25000,72000,80000,100000,120000,34930,"_","_","_","_"]
["O1249-1/IL65530/F0041/X098/R0230/001/CONTRA","O1249-1/IL65530/F0041/X098/R0230/001/CONTRA",122315,0,"Liabilities:Current Liabilities:Trade and Other Payable Exchange Transactions:Payables and Accruals : Contractors:Deposits"," _"," _"," _ "," _ "," _ "," _ ",3100,"Planning and development",3105,"Planning","_"," _"," _","O","IL",380,"Current liabilities / Trade and other payables from exchange transactions","_","_"," _ "," _ ","_","_"," _ "," _ "," _ "," _ "," _ "," _ "," _ "," _ ",null,361,"Trade and other payables / Trade and other payables from exchange transactions",361,"Trade and other payables / Trade and other payables from exchange transactions",null,null,null," _ "," _ "," _ "," _ "," _ "," _ "," _ "," _ "," _ "," _ "," _ ",null," _ "," _ "," _ "," _ "," _ ",null," _ "," _ "," _ "," _ ",null,4,43,"Economic Development/Planning","Planning and Development",null,null,0,0,0,0,0,-92000,-115000,-138000,0,"_","_","_","_"]
["O1249-1/IA02108/F0041/X098/R0230/001/CONTRA","O1249-1/IA02108/F0041/X098/R0230/001/CONTRA",122311,0,"Assets:Current Assets:Cash and Cash Equivalents:Cash at Bank:Bank Account:Specify (replace with account description):Withdrawals"," _"," _"," _ "," _ "," _ "," _ ",3100,"Planning and development",3105,"Planning","_"," _"," _","O","IA",120,"Current assets / Cash and cash equivalents",120,"Cash and cash equivalents","0150W","CASH FLOW FROM OPERATING ACTIVITIES / Receipts / Transfers and Subsidies - Operational","0150W","CASH FLOW FROM OPERATING ACTIVITIES / Receipts / Transfers and Subsidies - Operational"," _ "," _ "," _ "," _ "," _ "," _ "," _ "," _ ",null," _ "," _ "," _ "," _ ",240,"Cash Receipts By Source / Transfers and Subsidies - Operational","W"," _ "," _ "," _ "," _ "," _ "," _ "," _ "," _ "," _ "," _ "," _ ",null," _ "," _ "," _ "," _ "," _ ",null," _ "," _ "," _ "," _ ",null,4,43,"Economic Development/Planning","Planning and Development",null,null,0,0,0,0,0,-902000,-955000,-1008000,0,"_","_","_","_"]
["O1249-1/IL65531/F0041/X098/R0230/001/CONTRA","O1249-1/IL65531/F0041/X098/R0230/001/CONTRA",122316,0,"Liabilities:Current Liabilities:Trade and Other Payable Exchange Transactions:Payables and Accruals : Contractors:Withdrawals"," _"," _"," _ "," _ "," _ "," _ ",3100,"Planning and development",3105,"Planning","_"," _"," _","O","IL",380,"Current liabilities / Trade and other payables from exchange transactions","_","_"," _ "," _ ","_","_",200,"Cash Payments by Type / Contracted Services",450,"Cash Payments by Type / Contracted Services"," _ "," _ "," _ "," _ ",null,361,"Trade and other payables / Trade and other payables from exchange transactions",361,"Trade and other payables / Trade and other payables from exchange transactions",null,null,null," _ "," _ "," _ "," _ "," _ "," _ "," _ "," _ "," _ "," _ "," _ ",null," _ "," _ "," _ "," _ "," _ ",null," _ "," _ "," _ "," _ ",null,4,43,"Economic Development/Planning","Planning and Development",null,null,0,0,0,0,0,92000,115000,138000,0,"_","_","_","_"]
["O1249-1/IL53820/F0041/X098/R0230/001/CONTRA","O1249-1/IL53820/F0041/X098/R0230/001/CONTRA",122313,0,"Liabilities:Current Liabilities:Trade and Other Payable Exchange Transactions:Payables and Accruals : General:Deposits"," _"," _"," _ "," _ "," _ "," _ ",3100,"Planning and development",3105,"Planning","_"," _"," _","O","IL",380,"Current liabilities / Trade and other payables from exchange transactions","_","_"," _ "," _ ","_","_"," _ "," _ "," _ "," _ "," _ "," _ "," _ "," _ ",null,361,"Trade and other payables / Trade and other payables from exchange transactions",361,"Trade and other payables / Trade and other payables from exchange transactions",null,null,null," _ "," _ "," _ "," _ "," _ "," _ "," _ "," _ "," _ "," _ "," _ ",null," _ "," _ "," _ "," _ "," _ ",null," _ "," _ "," _ "," _ ",null,4,43,"Economic Development/Planning","Planning and Development",null,null,0,0,0,0,0,-810000,-840000,-870000,0,"_","_","_","_"]
["O1249-1/IA10375/F0041/X098/R0230/001/CONTRA","O1249-1/IA10375/F0041/X098/R0230/001/CONTRA",122312,0,"Assets:Current Assets:VAT Receivable:Input Tax Accrual:Recognised"," _"," _"," _ "," _ "," _ "," _ ",3100,"Planning and development",3105,"Planning","_"," _"," _","O","IA",170,"Current assets / VAT",170,"VAT"," _ "," _ ","_","_"," _ "," _ "," _ "," _ "," _ "," _ "," _ "," _ ",null," _ "," _ "," _ "," _ ",null,null,null," _ "," _ "," _ "," _ "," _ "," _ "," _ "," _ "," _ "," _ "," _ ",null," _ "," _ "," _ "," _ "," _ ",null," _ "," _ "," _ "," _ ",null,4,43,"Economic Development/Planning","Planning and Development",null,null,0,0,0,0,0,12000,15000,18000,0,"_","_","_","_"]
["O1249-1/IE00549/F0041/X098/R0230/001/6057","O1249-1/IE00549/F0041/X098/R0230/001/6057",30962,1968,"Expenditure:Operational Cost:Achievements and Awards",4100,"Expenditure / Operational costs",2904,"Expenditure / Operational costs",2904,"Operational Costs ",3100,"Planning and development",3105,"Planning","_"," _"," _","O","IE"," _ "," _ "," _ "," _ "," _ "," _ ","_","_"," _ "," _ "," _ "," _ "," _ "," _ "," _ "," _ ",null," _ "," _ "," _ "," _ ",null,null,null," _ "," _ "," _ "," _ "," _ "," _ "," _ "," _ "," _ "," _ "," _ ",null," _ "," _ "," _ "," _ "," _ ",null," _ "," _ "," _ "," _ ",null,4,43,"Economic Development/Planning","Planning and Development",null,null,0,0,80000,220000,675000,810000,840000,870000,220300,"_","_","_","_"]
["C0056-2/IA02105/F0002/X116/R0230/001/CONTRA","C0056-2/IA02105/F0002/X116/R0230/001/CONTRA",124232,0,"Assets:Current Assets:Cash and Cash Equivalents:Cash at Bank:Bank Account:Specify (replace with account description):Deposits"," _"," _"," _ "," _ "," _ "," _ ",3200,"Road transport",3205,"Roads","_",2080,"Funded by Internally generated funds","C","IA",120,"Current assets / Cash and cash equivalents",120,"Cash and cash equivalents"," _ "," _ ","_","_",null,"Recepts - Cash and Cash Equivalents","0510","Recepts - Cash and Cash Equivalents"," _ "," _ "," _ "," _ ",null," _ "," _ "," _ "," _ ",null,null,"D",180,180,"Infrastructure / Storm water Infrastructure / Storm water Conveyance","Infrastructure / Storm water Infrastructure / Storm water Conveyance"," _ "," _ "," _ "," _ "," _ "," _ "," _ ",null," _ "," _ "," _ "," _ "," _ ",null," _ "," _ "," _ "," _ ",null,7,74,"Roads","Road Transport",null,null,0,0,0,0,0,0,0,0,0,"_","_","_","_"]
["C0056-2/IL65531/F0002/X116/R0230/001/CONTRA","C0056-2/IL65531/F0002/X116/R0230/001/CONTRA",124235,0,"Liabilities:Current Liabilities:Trade and Other Payable Exchange Transactions:Payables and Accruals : Contractors:Withdrawals"," _"," _"," _ "," _ "," _ "," _ ",3200,"Road transport",3205,"Roads","_",2080,"Funded by Internally generated funds","C","IL",380,"Current liabilities / Trade and other payables from exchange transactions","_","_"," _ "," _ ","_","_",200,"Cash Payments by Type / Contracted Services",450,"Cash Payments by Type / Contracted Services"," _ "," _ "," _ "," _ ",null,361,"Trade and other payables / Trade and other payables from exchange transactions",361,"Trade and other payables / Trade and other payables from exchange transactions",null,null,null,180,180,"Infrastructure / Storm water Infrastructure / Storm water Conveyance","Infrastructure / Storm water Infrastructure / Storm water Conveyance"," _ "," _ "," _ "," _ "," _ "," _ "," _ ",null," _ "," _ "," _ "," _ "," _ ",null," _ "," _ "," _ "," _ ",null,7,74,"Roads","Road Transport",null,null,0,0,0,0,0,0,0,0,0,"_","_","_","_"]
["C0056-2/IA01952/F0002/X116/R0230/001/6601","C0056-2/IA01952/F0002/X116/R0230/001/6601",110246,9130,"Assets:Non-current Assets:Construction Work-in-progress:Acquisitions:Outsourced"," _"," _"," _ "," _ "," _ "," _ ",3200,"Road transport",3205,"Roads","CE",2080,"Funded by Internally generated funds","C","IA",230,"Non current assets / Property, plant and equipment",231,"Land: Acquisitions"," _ "," _ ","_","_"," _ "," _ "," _ "," _ "," _ "," _ "," _ "," _ ",180,241,"Property, plant and equipment (PPE) / PPE at cost/valuation (excl. finance leases)",241,"Property, plant and equipment (PPE) / PPE at cost/valuation (excl. finance leases)",null,null,null,180,180,"Infrastructure / Storm water Infrastructure / Storm water Conveyance","Infrastructure / Storm water Infrastructure / Storm water Conveyance"," _ "," _ "," _ "," _ "," _ "," _ "," _ ",null," _ "," _ "," _ "," _ "," _ ",null," _ "," _ "," _ "," _ ",null,7,74,"Roads","Road Transport",null,null,0,0,0,0,0,0,0,0,0,"_","_","_","_"]
["C0056-2/IA02108/F0002/X116/R0230/001/CONTRA","C0056-2/IA02108/F0002/X116/R0230/001/CONTRA",124642,0,"Assets:Current Assets:Cash and Cash Equivalents:Cash at Bank:Bank Account:Specify (replace with account description):Withdrawals"," _"," _"," _ "," _ "," _ "," _ ",3200,"Road transport",3205,"Roads","_",2080,"Funded by Internally generated funds","C","IA",120,"Current assets / Cash and cash equivalents",120,"Cash and cash equivalents"," _ "," _ ","_","_",310,"Other Cash Flows/Payments by Type / Capital assets",510,"Capital assets"," _ "," _ "," _ "," _ ",null," _ "," _ "," _ "," _ ",null,null,"W",180,180,"Infrastructure / Storm water Infrastructure / Storm water Conveyance","Infrastructure / Storm water Infrastructure / Storm water Conveyance"," _ "," _ "," _ "," _ "," _ "," _ "," _ ",null," _ "," _ "," _ "," _ "," _ ",null," _ "," _ "," _ "," _ ",null,7,74,"Roads","Road Transport",null,null,0,0,0,0,0,0,0,0,0,"_","_","_","_"]
["C0056-2/IA10370/F0002/X116/R0230/001/CONTRA","C0056-2/IA10370/F0002/X116/R0230/001/CONTRA",124233,0,"Assets:Current Assets:VAT Receivable:Input Tax Capital:Recognised"," _"," _"," _ "," _ "," _ "," _ ",3200,"Road transport",3205,"Roads","_",2080,"Funded by Internally generated funds","C","IA",170,"Current assets / VAT",170,"VAT"," _ "," _ ","_","_"," _ "," _ "," _ "," _ "," _ "," _ "," _ "," _ ",null," _ "," _ "," _ "," _ ",null,null,null,180,180,"Infrastructure / Storm water Infrastructure / Storm water Conveyance","Infrastructure / Storm water Infrastructure / Storm water Conveyance"," _ "," _ "," _ "," _ "," _ "," _ "," _ ",null," _ "," _ "," _ "," _ "," _ ",null," _ "," _ "," _ "," _ ",null,7,74,"Roads","Road Transport",null,null,0,0,0,0,0,0,0,0,0,"_","_","_","_"]
["C0056-2/IL65530/F0002/X116/R0230/001/CONTRA","C0056-2/IL65530/F0002/X116/R0230/001/CONTRA",124234,0,"Liabilities:Current Liabilities:Trade and Other Payable Exchange Transactions:Payables and Accruals : Contractors:Deposits"," _"," _"," _ "," _ "," _ "," _ ",3200,"Road transport",3205,"Roads","_",2080,"Funded by Internally generated funds","C","IL",380,"Current liabilities / Trade and other payables from exchange transactions","_","_"," _ "," _ ","_","_"," _ "," _ "," _ "," _ "," _ "," _ "," _ "," _ ",null,361,"Trade and other payables / Trade and other payables from exchange transactions",361,"Trade and other payables / Trade and other payables from exchange transactions",null,null,null,180,180,"Infrastructure / Storm water Infrastructure / Storm water Conveyance","Infrastructure / Storm water Infrastructure / Storm water Conveyance"," _ "," _ "," _ "," _ "," _ "," _ "," _ ",null," _ "," _ "," _ "," _ "," _ ",null," _ "," _ "," _ "," _ ",null,7,74,"Roads","Road Transport",null,null,0,0,0,0,0,0,0,0,0,"_","_","_","_"]
["C0071-1/IL65530/F0002/X047/R0230/001/CONTRA","C0071-1/IL65530/F0002/X047/R0230/001/CONTRA",122683,0,"Liabilities:Current Liabilities:Trade and Other Payable Exchange Transactions:Payables and Accruals : Contractors:Deposits"," _"," _"," _ "," _ "," _ "," _ ",1200,"Finance and administration",1202,"Asset Management","_",2080,"Funded by Internally generated funds","C","IL",380,"Current liabilities / Trade and other payables from exchange transactions","_","_"," _ "," _ ","_","_"," _ "," _ "," _ "," _ "," _ "," _ "," _ "," _ ",null,361,"Trade and other payables / Trade and other payables from exchange transactions",361,"Trade and other payables / Trade and other payables from exchange transactions",null,null,null," _ "," _ "," _ "," _ ",1510,"Machinery and Equipment"," _ "," _ ",1510," _ "," _ ",null," _ "," _ ","Machinery and Equipment"," _ "," _ ",null," _ "," _ "," _ "," _ ",null,3,33,"Asset Management","Finance & Administration",null,null,0,0,0,0,0,0,0,0,0,"_","_","_","_"]
["C0071-1/IA10370/F0002/X047/R0230/001/CONTRA","C0071-1/IA10370/F0002/X047/R0230/001/CONTRA",122680,0,"Assets:Current Assets:VAT Receivable:Input Tax Capital:Recognised"," _"," _"," _ "," _ "," _ "," _ ",1200,"Finance and administration",1202,"Asset Management","_",2080,"Funded by Internally generated funds","C","IA",170,"Current assets / VAT",170,"VAT"," _ "," _ ","_","_"," _ "," _ "," _ "," _ "," _ "," _ "," _ "," _ ",null," _ "," _ "," _ "," _ ",null,null,null," _ "," _ "," _ "," _ ",1510,"Machinery and Equipment"," _ "," _ ",1510," _ "," _ ",null," _ "," _ ","Machinery and Equipment"," _ "," _ ",null," _ "," _ "," _ "," _ ",null,3,33,"Asset Management","Finance & Administration",null,null,0,0,0,0,0,0,0,0,0,"_","_","_","_"]
["C0071-1/IE00715/F0002/X047/R0230/001/CONTRA","C0071-1/IE00715/F0002/X047/R0230/001/CONTRA",122682,0,"Expenditure:Depreciation and Amortisation:Depreciation:Machinery and Equipment",3600,"Expenditure / Depreciation and amortisation",2301,"Expenditure / Depreciation and amortisation",2301,"Depreciation and asset impairment ",1200,"Finance and administration",1202,"Asset Management","_",2080,"Funded by Internally generated funds","C","IE"," _ "," _ "," _ "," _ "," _ "," _ ","_","_"," _ "," _ "," _ "," _ "," _ "," _ "," _ "," _ ",null," _ "," _ "," _ "," _ ",null,null,null," _ "," _ "," _ "," _ ",1510,"Machinery and Equipment"," _ "," _ ",1510," _ "," _ ",null,1510,"Machinery and Equipment","Machinery and Equipment",1510,"Machinery and Equipment","DP"," _ "," _ "," _ "," _ ",null,3,33,"Asset Management","Finance & Administration",null,null,0,0,0,0,0,0,0,0,0,"_","_","_","_"]
["C0071-1/IA02108/F0002/X047/R0230/001/CONTRA","C0071-1/IA02108/F0002/X047/R0230/001/CONTRA",122679,0,"Assets:Current Assets:Cash and Cash Equivalents:Cash at Bank:Bank Account:Specify (replace with account description):Withdrawals"," _"," _"," _ "," _ "," _ "," _ ",1200,"Finance and administration",1202,"Asset Management","_",2080,"Funded by Internally generated funds","C","IA",120,"Current assets / Cash and cash equivalents",120,"Cash and cash equivalents"," _ "," _ ","_","_",310,"Other Cash Flows/Payments by Type / Capital assets",510,"Capital assets"," _ "," _ "," _ "," _ ",null," _ "," _ "," _ "," _ ",null,null,"W"," _ "," _ "," _ "," _ ",1510,"Machinery and Equipment"," _ "," _ ",1510," _ "," _ ",null," _ "," _ ","Machinery and Equipment"," _ "," _ ",null," _ "," _ "," _ "," _ ",null,3,33,"Asset Management","Finance & Administration",null,null,0,0,0,0,0,0,0,0,0,"_","_","_","_"]
["C0071-1/IA06313/F0002/X047/R0230/001/6114","C0071-1/IA06313/F0002/X047/R0230/001/6114",61489,4208,"Assets:Non-current Assets:Property, Plant and Equipment:Cost Model:Machinery and Equipment:In-use:Cost:Acquisitions"," _"," _"," _ "," _ "," _ "," _ ",1200,"Finance and administration",1202,"Asset Management","CE",2080,"Funded by Internally generated funds","C","IA",230,"Non current assets / Property, plant and equipment",231,"Land: Acquisitions"," _ "," _ ","_","_"," _ "," _ "," _ "," _ ",1510,"Machinery and Equipment",1510,"Machinery and Equipment",null,241,"Property, plant and equipment (PPE) / PPE at cost/valuation (excl. finance leases)",241,"Property, plant and equipment (PPE) / PPE at cost/valuation (excl. finance leases)",null,null,null," _ "," _ "," _ "," _ ",1510,"Machinery and Equipment"," _ "," _ ",1510," _ "," _ ",null," _ "," _ ","Machinery and Equipment"," _ "," _ ",null," _ "," _ "," _ "," _ ",null,3,33,"Asset Management","Finance & Administration",null,null,0,0,0,0,0,0,0,0,0,"_","_","_","_"]
["C0071-1/IA05860/F0002/X047/R0230/001/6114","C0071-1/IA05860/F0002/X047/R0230/001/6114",61491,4210,"Assets:Non-current Assets:Property, Plant and Equipment:Leased Assets:Machinery and Equipment:In-use:Accumulated Impairment:Impairment"," _"," _"," _ "," _ "," _ "," _ ",1200,"Finance and administration",1202,"Asset Management","_",2080,"Funded by Internally generated funds","C","IA",230,"Non current assets / Property, plant and equipment",232,"Land: Sales"," _ "," _ ","_","_"," _ "," _ "," _ "," _ ",1510,"Machinery and Equipment",1510,"Machinery and Equipment",null,242,"Property, plant and equipment (PPE) / Leases recognised as PPE",242,"Property, plant and equipment (PPE) / Leases recognised as PPE",null,null,null," _ "," _ "," _ "," _ ",1510,"Machinery and Equipment"," _ "," _ ",1510," _ "," _ ",null," _ "," _ ","Machinery and Equipment"," _ "," _ ",null," _ "," _ "," _ "," _ ",null,3,33,"Asset Management","Finance & Administration",null,null,0,0,0,0,0,0,0,0,0,"_","_","_","_"]
["C0071-1/IL65531/F0002/X047/R0230/001/CONTRA","C0071-1/IL65531/F0002/X047/R0230/001/CONTRA",122684,0,"Liabilities:Current Liabilities:Trade and Other Payable Exchange Transactions:Payables and Accruals : Contractors:Withdrawals"," _"," _"," _ "," _ "," _ "," _ ",1200,"Finance and administration",1202,"Asset Management","_",2080,"Funded by Internally generated funds","C","IL",380,"Current liabilities / Trade and other payables from exchange transactions","_","_"," _ "," _ ","_","_",200,"Cash Payments by Type / Contracted Services",450,"Cash Payments by Type / Contracted Services"," _ "," _ "," _ "," _ ",null,361,"Trade and other payables / Trade and other payables from exchange transactions",361,"Trade and other payables / Trade and other payables from exchange transactions",null,null,null," _ "," _ "," _ "," _ ",1510,"Machinery and Equipment"," _ "," _ ",1510," _ "," _ ",null," _ "," _ ","Machinery and Equipment"," _ "," _ ",null," _ "," _ "," _ "," _ ",null,3,33,"Asset Management","Finance & Administration",null,null,0,0,0,0,0,0,0,0,0,"_","_","_","_"]
["C0071-1/IA06311/F0002/X047/R0230/001/6114","C0071-1/IA06311/F0002/X047/R0230/001/6114",61488,4207,"Assets:Non-current Assets:Property, Plant and Equipment:Cost Model:Machinery and Equipment:In-use:Accumulated Impairment:Impairment"," _"," _"," _ "," _ "," _ "," _ ",1200,"Finance and administration",1202,"Asset Management","_",2080,"Funded by Internally generated funds","C","IA",230,"Non current assets / Property, plant and equipment",231,"Land: Acquisitions"," _ "," _ ","_","_"," _ "," _ "," _ "," _ ",1510,"Machinery and Equipment",1510,"Machinery and Equipment",null,241,"Property, plant and equipment (PPE) / PPE at cost/valuation (excl. finance leases)",241,"Property, plant and equipment (PPE) / PPE at cost/valuation (excl. finance leases)",null,null,null," _ "," _ "," _ "," _ ",1510,"Machinery and Equipment"," _ "," _ ",1510," _ "," _ ",null," _ "," _ ","Machinery and Equipment"," _ "," _ ",null," _ "," _ "," _ "," _ ",null,3,33,"Asset Management","Finance & Administration",null,null,0,0,0,0,0,0,0,0,0,"_","_","_","_"]
["C0071-1/IA06303/F0002/X047/R0230/001/6114","C0071-1/IA06303/F0002/X047/R0230/001/6114",61487,4206,"Assets:Non-current Assets:Property, Plant and Equipment:Cost Model:Machinery and Equipment:In-use:Accumulated Depreciation:Depreciation"," _"," _"," _ "," _ "," _ "," _ ",1200,"Finance and administration",1202,"Asset Management","_",2080,"Funded by Internally generated funds","C","IA",230,"Non current assets / Property, plant and equipment",233,"Land: Adjustments"," _ "," _ ","_","_"," _ "," _ "," _ "," _ ",1510,"Machinery and Equipment",1510,"Machinery and Equipment",null,243,"Property, plant and equipment (PPE) / Less: Accumulated depreciation",243,"Property, plant and equipment (PPE) / Less: Accumulated depreciation",null,null,null," _ "," _ "," _ "," _ ",1510,"Machinery and Equipment"," _ "," _ ",1510," _ "," _ ",null," _ "," _ ","Machinery and Equipment"," _ "," _ ",null," _ "," _ "," _ "," _ ",null,3,33,"Asset Management","Finance & Administration",null,null,0,0,0,0,0,0,0,0,0,"_","_","_","_"]
["C0071-1/IA06303/F0002/X047/R0230/001/CONTRA","C0071-1/IA06303/F0002/X047/R0230/001/CONTRA",123862,0,"Assets:Non-current Assets:Property, Plant and Equipment:Cost Model:Machinery and Equipment:In-use:Accumulated Depreciation:Depreciation"," _"," _"," _ "," _ "," _ "," _ ",1200,"Finance and administration",1202,"Asset Management","_",2080,"Funded by Internally generated funds","C","IA",230,"Non current assets / Property, plant and equipment",233,"Land: Adjustments"," _ "," _ ","_","_"," _ "," _ "," _ "," _ ",1510,"Machinery and Equipment",1510,"Machinery and Equipment",null,243,"Property, plant and equipment (PPE) / Less: Accumulated depreciation",243,"Property, plant and equipment (PPE) / Less: Accumulated depreciation",null,null,null," _ "," _ "," _ "," _ ",1510,"Machinery and Equipment"," _ "," _ ",1510," _ "," _ ",null," _ "," _ ","Machinery and Equipment"," _ "," _ ",null," _ "," _ "," _ "," _ ",null,3,33,"Asset Management","Finance & Administration",null,null,0,0,0,0,0,0,0,0,0,"_","_","_","_"]
["C0071-1/IA02105/F0002/X047/R0230/001/CONTRA","C0071-1/IA02105/F0002/X047/R0230/001/CONTRA",122678,0,"Assets:Current Assets:Cash and Cash Equivalents:Cash at Bank:Bank Account:Specify (replace with account description):Deposits"," _"," _"," _ "," _ "," _ "," _ ",1200,"Finance and administration",1202,"Asset Management","_",2080,"Funded by Internally generated funds","C","IA",120,"Current assets / Cash and cash equivalents",120,"Cash and cash equivalents"," _ "," _ ","_","_",null,"Recepts - Cash and Cash Equivalents","0510","Recepts - Cash and Cash Equivalents"," _ "," _ "," _ "," _ ",null," _ "," _ "," _ "," _ ",null,null,"D"," _ "," _ "," _ "," _ ",1510,"Machinery and Equipment"," _ "," _ ",1510," _ "," _ ",null," _ "," _ ","Machinery and Equipment"," _ "," _ ",null," _ "," _ "," _ "," _ ",null,3,33,"Asset Management","Finance & Administration",null,null,0,0,0,0,0,0,0,0,0,"_","_","_","_"]
["C0071-1/IA10375/F0002/X047/R0230/001/CONTRA","C0071-1/IA10375/F0002/X047/R0230/001/CONTRA",122681,0,"Assets:Current Assets:VAT Receivable:Input Tax Accrual:Recognised"," _"," _"," _ "," _ "," _ "," _ ",1200,"Finance and administration",1202,"Asset Management","_",2080,"Funded by Internally generated funds","C","IA",170,"Current assets / VAT",170,"VAT"," _ "," _ ","_","_"," _ "," _ "," _ "," _ "," _ "," _ "," _ "," _ ",null," _ "," _ "," _ "," _ ",null,null,null," _ "," _ "," _ "," _ ",1510,"Machinery and Equipment"," _ "," _ ",1510," _ "," _ ",null," _ "," _ ","Machinery and Equipment"," _ "," _ ",null," _ "," _ "," _ "," _ ",null,3,33,"Asset Management","Finance & Administration",null,null,0,0,0,0,0,0,0,0,0,"_","_","_","_"]
["C0071-1/IA05862/F0002/X047/R0230/001/6114","C0071-1/IA05862/F0002/X047/R0230/001/6114",61492,4211,"Assets:Non-current Assets:Property, Plant and Equipment:Leased Assets:Machinery and Equipment:In-use:Cost:Acquisitions"," _"," _"," _ "," _ "," _ "," _ ",1200,"Finance and administration",1202,"Asset Management","CE",2080,"Funded by Internally generated funds","C","IA",230,"Non current assets / Property, plant and equipment",232,"Land: Sales"," _ "," _ ","_","_"," _ "," _ "," _ "," _ ",1510,"Machinery and Equipment",1510,"Machinery and Equipment",null,242,"Property, plant and equipment (PPE) / Leases recognised as PPE",242,"Property, plant and equipment (PPE) / Leases recognised as PPE",null,null,null," _ "," _ "," _ "," _ ",1510,"Machinery and Equipment"," _ "," _ ",1510," _ "," _ ",null," _ "," _ ","Machinery and Equipment"," _ "," _ ",null," _ "," _ "," _ "," _ ",null,3,33,"Asset Management","Finance & Administration",null,null,0,0,0,0,0,0,0,0,0,"_","_","_","_"]
["C0071-1/IA05852/F0002/X047/R0230/001/6114","C0071-1/IA05852/F0002/X047/R0230/001/6114",61490,4209,"Assets:Non-current Assets:Property, Plant and Equipment:Leased Assets:Machinery and Equipment:In-use:Accumulated Depreciation:Depreciation"," _"," _"," _ "," _ "," _ "," _ ",1200,"Finance and administration",1202,"Asset Management","_",2080,"Funded by Internally generated funds","C","IA",230,"Non current assets / Property, plant and equipment",233,"Land: Adjustments"," _ "," _ ","_","_"," _ "," _ "," _ "," _ ",1510,"Machinery and Equipment",1510,"Machinery and Equipment",null,243,"Property, plant and equipment (PPE) / Less: Accumulated depreciation",243,"Property, plant and equipment (PPE) / Less: Accumulated depreciation",null,null,null," _ "," _ "," _ "," _ ",1510,"Machinery and Equipment"," _ "," _ ",1510," _ "," _ ",null," _ "," _ ","Machinery and Equipment"," _ "," _ ",null," _ "," _ "," _ "," _ ",null,3,33,"Asset Management","Finance & Administration",null,null,0,0,0,0,0,0,0,0,0,"_","_","_","_"]
["O0016-1/IA10375/F0041/X125/R0230/001/CONTRA","O0016-1/IA10375/F0041/X125/R0230/001/CONTRA",122450,0,"Assets:Current Assets:VAT Receivable:Input Tax Accrual:Recognised"," _"," _"," _ "," _ "," _ "," _ ",2200,"Sport and recreation",2205,"Sports Grounds and Stadiums","_"," _"," _","O","IA",170,"Current assets / VAT",170,"VAT"," _ "," _ ","_","_"," _ "," _ "," _ "," _ "," _ "," _ "," _ "," _ ",null," _ "," _ "," _ "," _ ",null,null,null," _ "," _ "," _ "," _ "," _ "," _ "," _ "," _ "," _ "," _ "," _ ",null," _ "," _ "," _ "," _ "," _ ",null," _ "," _ "," _ "," _ ",null,10,102,"Sports Grounds and Stadiums","Sports & Recreation",null,null,0,0,0,0,0,0,0,0,0,"_","_","_","_"]
["O0016-1/IE00059/F0041/X125/R0230/001/6401","O0016-1/IE00059/F0041/X125/R0230/001/6401",69624,4515,"Expenditure:Operational Cost:Registration Fees:Seminars, Conferences, Workshops and Events:National",4100,"Expenditure / Operational costs",2904,"Expenditure / Operational costs",2904,"Operational Costs ",2200,"Sport and recreation",2205,"Sports Grounds and Stadiums","_"," _"," _","O","IE"," _ "," _ "," _ "," _ "," _ "," _ ","_","_"," _ "," _ "," _ "," _ "," _ "," _ "," _ "," _ ",null," _ "," _ "," _ "," _ ",null,null,null," _ "," _ "," _ "," _ "," _ "," _ "," _ "," _ "," _ "," _ "," _ ",null," _ "," _ "," _ "," _ "," _ ",null," _ "," _ "," _ "," _ ",null,10,102,"Sports Grounds and Stadiums","Sports & Recreation",null,null,0,0,0,0,0,0,0,0,0,"_","_","_","_"]
["O0016-1/IL53820/F0041/X125/R0230/001/CONTRA","O0016-1/IL53820/F0041/X125/R0230/001/CONTRA",122451,0,"Liabilities:Current Liabilities:Trade and Other Payable Exchange Transactions:Payables and Accruals : General:Deposits"," _"," _"," _ "," _ "," _ "," _ ",2200,"Sport and recreation",2205,"Sports Grounds and Stadiums","_"," _"," _","O","IL",380,"Current liabilities / Trade and other payables from exchange transactions","_","_"," _ "," _ ","_","_"," _ "," _ "," _ "," _ "," _ "," _ "," _ "," _ ",null,361,"Trade and other payables / Trade and other payables from exchange transactions",361,"Trade and other payables / Trade and other payables from exchange transactions",null,null,null," _ "," _ "," _ "," _ "," _ "," _ "," _ "," _ "," _ "," _ "," _ ",null," _ "," _ "," _ "," _ "," _ ",null," _ "," _ "," _ "," _ ",null,10,102,"Sports Grounds and Stadiums","Sports & Recreation",null,null,0,0,0,0,0,0,0,0,0,"_","_","_","_"]
["O0016-1/IA02108/F0041/X125/R0230/001/CONTRA","O0016-1/IA02108/F0041/X125/R0230/001/CONTRA",122449,0,"Assets:Current Assets:Cash and Cash Equivalents:Cash at Bank:Bank Account:Specify (replace with account description):Withdrawals"," _"," _"," _ "," _ "," _ "," _ ",2200,"Sport and recreation",2205,"Sports Grounds and Stadiums","_"," _"," _","O","IA",120,"Current assets / Cash and cash equivalents",120,"Cash and cash equivalents","0150W","CASH FLOW FROM OPERATING ACTIVITIES / Receipts / Transfers and Subsidies - Operational","0150W","CASH FLOW FROM OPERATING ACTIVITIES / Receipts / Transfers and Subsidies - Operational"," _ "," _ "," _ "," _ "," _ "," _ "," _ "," _ ",null," _ "," _ "," _ "," _ ",240,"Cash Receipts By Source / Transfers and Subsidies - Operational","W"," _ "," _ "," _ "," _ "," _ "," _ "," _ "," _ "," _ "," _ "," _ ",null," _ "," _ "," _ "," _ "," _ ",null," _ "," _ "," _ "," _ ",null,10,102,"Sports Grounds and Stadiums","Sports & Recreation",null,null,0,0,0,0,0,0,0,0,0,"_","_","_","_"]
["O0016-1/IL53821/F0041/X125/R0230/001/CONTRA","O0016-1/IL53821/F0041/X125/R0230/001/CONTRA",122452,0,"Liabilities:Current Liabilities:Trade and Other Payable Exchange Transactions:Payables and Accruals : General:Withdrawals"," _"," _"," _ "," _ "," _ "," _ ",2200,"Sport and recreation",2205,"Sports Grounds and Stadiums","_"," _"," _","O","IL",380,"Current liabilities / Trade and other payables from exchange transactions","_","_"," _ "," _ ","_","_",200,"Cash Payments by Type / Other expenditure",480,"Other expenditure"," _ "," _ "," _ "," _ ",null,361,"Trade and other payables / Trade and other payables from exchange transactions",361,"Trade and other payables / Trade and other payables from exchange transactions",null,null,null," _ "," _ "," _ "," _ "," _ "," _ "," _ "," _ "," _ "," _ "," _ ",null," _ "," _ "," _ "," _ "," _ ",null," _ "," _ "," _ "," _ ",null,10,102,"Sports Grounds and Stadiums","Sports & Recreation",null,null,0,0,0,0,0,0,0,0,0,"_","_","_","_"]
["O0025-9/IL65530/F0041/X101/R0416/001/CONTRA","O0025-9/IL65530/F0041/X101/R0416/001/CONTRA",122895,0,"Liabilities:Current Liabilities:Trade and Other Payable Exchange Transactions:Payables and Accruals : Contractors:Deposits"," _"," _"," _ "," _ "," _ "," _ ",3100,"Planning and development",3107,"Town Planning, Building Regulations and Enforcement, and City Engineer","_"," _"," _","O","IL",380,"Current liabilities / Trade and other payables from exchange transactions","_","_"," _ "," _ ","_","_"," _ "," _ "," _ "," _ "," _ "," _ "," _ "," _ ",null,361,"Trade and other payables / Trade and other payables from exchange transactions",361,"Trade and other payables / Trade and other payables from exchange transactions",null,null,null," _ "," _ "," _ "," _ "," _ "," _ "," _ "," _ "," _ "," _ "," _ ",null," _ "," _ "," _ "," _ "," _ ",null," _ "," _ "," _ "," _ ",null,4,41,"Town Planning, Building Regulations and Enforcement, and City Engineer","Planning and Development",null,null,0,0,0,0,0,-805000,-862500,-920000,0,"_","_","_","_"]
["O0025-14/IL65530/F0041/X055/R0043/001/CONTRA","O0025-14/IL65530/F0041/X055/R0043/001/CONTRA",123251,0,"Liabilities:Current Liabilities:Trade and Other Payable Exchange Transactions:Payables and Accruals : Contractors:Deposits"," _"," _"," _ "," _ "," _ "," _ ",1200,"Finance and administration",1210,"Property Services","_"," _"," _","O","IL",380,"Current liabilities / Trade and other payables from exchange transactions","_","_"," _ "," _ ","_","_"," _ "," _ "," _ "," _ "," _ "," _ "," _ "," _ ",null,361,"Trade and other payables / Trade and other payables from exchange transactions",361,"Trade and other payables / Trade and other payables from exchange transactions",null,null,null," _ "," _ "," _ "," _ "," _ "," _ "," _ "," _ "," _ "," _ "," _ ",null," _ "," _ "," _ "," _ "," _ ",null," _ "," _ "," _ "," _ ",null,3,36,"Property Services","Finance & Administration",null,null,0,0,0,0,0,0,0,0,0,"_","_","_","_"]
["O0025-15/IL65530/F0041/X055/R0230/001/CONTRA","O0025-15/IL65530/F0041/X055/R0230/001/CONTRA",123247,0,"Liabilities:Current Liabilities:Trade and Other Payable Exchange Transactions:Payables and Accruals : Contractors:Deposits"," _"," _"," _ "," _ "," _ "," _ ",1200,"Finance and administration",1210,"Property Services","_"," _"," _","O","IL",380,"Current liabilities / Trade and other payables from exchange transactions","_","_"," _ "," _ ","_","_"," _ "," _ "," _ "," _ "," _ "," _ "," _ "," _ ",null,361,"Trade and other payables / Trade and other payables from exchange transactions",361,"Trade and other payables / Trade and other payables from exchange transactions",null,null,null," _ "," _ "," _ "," _ "," _ "," _ "," _ "," _ "," _ "," _ "," _ ",null," _ "," _ "," _ "," _ "," _ ",null," _ "," _ "," _ "," _ ",null,3,36,"Property Services","Finance & Administration",null,null,0,0,0,0,0,0,0,0,0,"_","_","_","_"]
["O0025-12/IL65530/F0041/X101/R0230/001/CONTRA","O0025-12/IL65530/F0041/X101/R0230/001/CONTRA",122939,0,"Liabilities:Current Liabilities:Trade and Other Payable Exchange Transactions:Payables and Accruals : Contractors:Deposits"," _"," _"," _ "," _ "," _ "," _ ",3100,"Planning and development",3107,"Town Planning, Building Regulations and Enforcement, and City Engineer","_"," _"," _","O","IL",380,"Current liabilities / Trade and other payables from exchange transactions","_","_"," _ "," _ ","_","_"," _ "," _ "," _ "," _ "," _ "," _ "," _ "," _ ",null,361,"Trade and other payables / Trade and other payables from exchange transactions",361,"Trade and other payables / Trade and other payables from exchange transactions",null,null,null," _ "," _ "," _ "," _ "," _ "," _ "," _ "," _ "," _ "," _ "," _ ",null," _ "," _ "," _ "," _ "," _ ",null," _ "," _ "," _ "," _ ",null,4,41,"Town Planning, Building Regulations and Enforcement, and City Engineer","Planning and Development",null,null,0,0,0,0,0,-690000,-805000,-920000,0,"_","_","_","_"]
["O0025-14/IL65530/F0041/X101/R0042/001/CONTRA","O0025-14/IL65530/F0041/X101/R0042/001/CONTRA",123221,0,"Liabilities:Current Liabilities:Trade and Other Payable Exchange Transactions:Payables and Accruals : Contractors:Deposits"," _"," _"," _ "," _ "," _ "," _ ",3100,"Planning and development",3107,"Town Planning, Building Regulations and Enforcement, and City Engineer","_"," _"," _","O","IL",380,"Current liabilities / Trade and other payables from exchange transactions","_","_"," _ "," _ ","_","_"," _ "," _ "," _ "," _ "," _ "," _ "," _ "," _ ",null,361,"Trade and other payables / Trade and other payables from exchange transactions",361,"Trade and other payables / Trade and other payables from exchange transactions",null,null,null," _ "," _ "," _ "," _ "," _ "," _ "," _ "," _ "," _ "," _ "," _ ",null," _ "," _ "," _ "," _ "," _ ",null," _ "," _ "," _ "," _ ",null,4,41,"Town Planning, Building Regulations and Enforcement, and City Engineer","Planning and Development",null,null,0,0,0,0,0,0,0,0,0,"_","_","_","_"]
["O0025-14/IL65530/F0041/X101/R0043/001/CONTRA","O0025-14/IL65530/F0041/X101/R0043/001/CONTRA",123225,0,"Liabilities:Current Liabilities:Trade and Other Payable Exchange Transactions:Payables and Accruals : Contractors:Deposits"," _"," _"," _ "," _ "," _ "," _ ",3100,"Planning and development",3107,"Town Planning, Building Regulations and Enforcement, and City Engineer","_"," _"," _","O","IL",380,"Current liabilities / Trade and other payables from exchange transactions","_","_"," _ "," _ ","_","_"," _ "," _ "," _ "," _ "," _ "," _ "," _ "," _ ",null,361,"Trade and other payables / Trade and other payables from exchange transactions",361,"Trade and other payables / Trade and other payables from exchange transactions",null,null,null," _ "," _ "," _ "," _ "," _ "," _ "," _ "," _ "," _ "," _ "," _ ",null," _ "," _ "," _ "," _ "," _ ",null," _ "," _ "," _ "," _ ",null,4,41,"Town Planning, Building Regulations and Enforcement, and City Engineer","Planning and Development",null,null,0,0,0,0,0,0,0,0,0,"_","_","_","_"]
["O0025-11/IL65530/F0041/X101/R0230/001/CONTRA","O0025-11/IL65530/F0041/X101/R0230/001/CONTRA",122935,0,"Liabilities:Current Liabilities:Trade and Other Payable Exchange Transactions:Payables and Accruals : Contractors:Deposits"," _"," _"," _ "," _ "," _ "," _ ",3100,"Planning and development",3107,"Town Planning, Building Regulations and Enforcement, and City Engineer","_"," _"," _","O","IL",380,"Current liabilities / Trade and other payables from exchange transactions","_","_"," _ "," _ ","_","_"," _ "," _ "," _ "," _ "," _ "," _ "," _ "," _ ",null,361,"Trade and other payables / Trade and other payables from exchange transactions",361,"Trade and other payables / Trade and other payables from exchange transactions",null,null,null," _ "," _ "," _ "," _ "," _ "," _ "," _ "," _ "," _ "," _ "," _ ",null," _ "," _ "," _ "," _ "," _ ",null," _ "," _ "," _ "," _ ",null,4,41,"Town Planning, Building Regulations and Enforcement, and City Engineer","Planning and Development",null,null,0,0,0,0,0,-345000,-460000,-575000,0,"_","_","_","_"]
["O0025-1/IL65530/F0041/X101/R0230/001/CONTRA","O0025-1/IL65530/F0041/X101/R0230/001/CONTRA",121044,0,"Liabilities:Current Liabilities:Trade and Other Payable Exchange Transactions:Payables and Accruals : Contractors:Deposits"," _"," _"," _ "," _ "," _ "," _ ",3100,"Planning and development",3107,"Town Planning, Building Regulations and Enforcement, and City Engineer","_"," _"," _","O","IL",380,"Current liabilities / Trade and other payables from exchange transactions","_","_"," _ "," _ ","_","_"," _ "," _ "," _ "," _ "," _ "," _ "," _ "," _ ",null,361,"Trade and other payables / Trade and other payables from exchange transactions",361,"Trade and other payables / Trade and other payables from exchange transactions",null,null,null," _ "," _ "," _ "," _ "," _ "," _ "," _ "," _ "," _ "," _ "," _ ",null," _ "," _ "," _ "," _ "," _ ",null," _ "," _ "," _ "," _ ",null,4,41,"Town Planning, Building Regulations and Enforcement, and City Engineer","Planning and Development",null,null,0,0,0,0,0,0,0,0,0,"_","_","_","_"]
["O0025-10/IL65530/F0041/X101/R0022/001/CONTRA","O0025-10/IL65530/F0041/X101/R0022/001/CONTRA",122931,0,"Liabilities:Current Liabilities:Trade and Other Payable Exchange Transactions:Payables and Accruals : Contractors:Deposits"," _"," _"," _ "," _ "," _ "," _ ",3100,"Planning and development",3107,"Town Planning, Building Regulations and Enforcement, and City Engineer","_"," _"," _","O","IL",380,"Current liabilities / Trade and other payables from exchange transactions","_","_"," _ "," _ ","_","_"," _ "," _ "," _ "," _ "," _ "," _ "," _ "," _ ",null,361,"Trade and other payables / Trade and other payables from exchange transactions",361,"Trade and other payables / Trade and other payables from exchange transactions",null,null,null," _ "," _ "," _ "," _ "," _ "," _ "," _ "," _ "," _ "," _ "," _ ",null," _ "," _ "," _ "," _ "," _ ",null," _ "," _ "," _ "," _ ",null,4,41,"Town Planning, Building Regulations and Enforcement, and City Engineer","Planning and Development",null,null,0,0,0,0,0,-345000,-460000,-575000,0,"_","_","_","_"]
["O0025-8/IL65530/F0041/X101/R0230/001/CONTRA","O0025-8/IL65530/F0041/X101/R0230/001/CONTRA",122887,0,"Liabilities:Current Liabilities:Trade and Other Payable Exchange Transactions:Payables and Accruals : Contractors:Deposits"," _"," _"," _ "," _ "," _ "," _ ",3100,"Planning and development",3107,"Town Planning, Building Regulations and Enforcement, and City Engineer","_"," _"," _","O","IL",380,"Current liabilities / Trade and other payables from exchange transactions","_","_"," _ "," _ ","_","_"," _ "," _ "," _ "," _ "," _ "," _ "," _ "," _ ",null,361,"Trade and other payables / Trade and other payables from exchange transactions",361,"Trade and other payables / Trade and other payables from exchange transactions",null,null,null," _ "," _ "," _ "," _ "," _ "," _ "," _ "," _ "," _ "," _ "," _ ",null," _ "," _ "," _ "," _ "," _ ",null," _ "," _ "," _ "," _ ",null,4,41,"Town Planning, Building Regulations and Enforcement, and City Engineer","Planning and Development",null,null,0,0,0,0,0,-805000,-920000,-977500,0,"_","_","_","_"]
["O0025-6/IL65530/F0041/X101/R0230/001/CONTRA","O0025-6/IL65530/F0041/X101/R0230/001/CONTRA",122879,0,"Liabilities:Current Liabilities:Trade and Other Payable Exchange Transactions:Payables and Accruals : Contractors:Deposits"," _"," _"," _ "," _ "," _ "," _ ",3100,"Planning and development",3107,"Town Planning, Building Regulations and Enforcement, and City Engineer","_"," _"," _","O","IL",380,"Current liabilities / Trade and other payables from exchange transactions","_","_"," _ "," _ ","_","_"," _ "," _ "," _ "," _ "," _ "," _ "," _ "," _ ",null,361,"Trade and other payables / Trade and other payables from exchange transactions",361,"Trade and other payables / Trade and other payables from exchange transactions",null,null,null," _ "," _ "," _ "," _ "," _ "," _ "," _ "," _ "," _ "," _ "," _ ",null," _ "," _ "," _ "," _ "," _ ",null," _ "," _ "," _ "," _ ",null,4,41,"Town Planning, Building Regulations and Enforcement, and City Engineer","Planning and Development",null,null,0,0,0,0,0,-575000,-690000,-805000,0,"_","_","_","_"]
["O0025-7/IL65530/F0041/X101/R0230/001/CONTRA","O0025-7/IL65530/F0041/X101/R0230/001/CONTRA",122883,0,"Liabilities:Current Liabilities:Trade and Other Payable Exchange Transactions:Payables and Accruals : Contractors:Deposits"," _"," _"," _ "," _ "," _ "," _ ",3100,"Planning and development",3107,"Town Planning, Building Regulations and Enforcement, and City Engineer","_"," _"," _","O","IL",380,"Current liabilities / Trade and other payables from exchange transactions","_","_"," _ "," _ ","_","_"," _ "," _ "," _ "," _ "," _ "," _ "," _ "," _ ",null,361,"Trade and other payables / Trade and other payables from exchange transactions",361,"Trade and other payables / Trade and other payables from exchange transactions",null,null,null," _ "," _ "," _ "," _ "," _ "," _ "," _ "," _ "," _ "," _ "," _ ",null," _ "," _ "," _ "," _ "," _ ",null," _ "," _ "," _ "," _ ",null,4,41,"Town Planning, Building Regulations and Enforcement, and City Engineer","Planning and Development",null,null,0,0,0,0,0,-575000,-690000,-805000,0,"_","_","_","_"]
["O0025-5/IL65530/F0041/X101/R0230/001/CONTRA","O0025-5/IL65530/F0041/X101/R0230/001/CONTRA",122875,0,"Liabilities:Current Liabilities:Trade and Other Payable Exchange Transactions:Payables and Accruals : Contractors:Deposits"," _"," _"," _ "," _ "," _ "," _ ",3100,"Planning and development",3107,"Town Planning, Building Regulations and Enforcement, and City Engineer","_"," _"," _","O","IL",380,"Current liabilities / Trade and other payables from exchange transactions","_","_"," _ "," _ ","_","_"," _ "," _ "," _ "," _ "," _ "," _ "," _ "," _ ",null,361,"Trade and other payables / Trade and other payables from exchange transactions",361,"Trade and other payables / Trade and other payables from exchange transactions",null,null,null," _ "," _ "," _ "," _ "," _ "," _ "," _ "," _ "," _ "," _ "," _ ",null," _ "," _ "," _ "," _ "," _ ",null," _ "," _ "," _ "," _ ",null,4,41,"Town Planning, Building Regulations and Enforcement, and City Engineer","Planning and Development",null,null,0,0,0,0,0,-345000,-460000,-575000,0,"_","_","_","_"]
["O0025-3/IL65530/F0041/X101/R0230/001/CONTRA","O0025-3/IL65530/F0041/X101/R0230/001/CONTRA",122867,0,"Liabilities:Current Liabilities:Trade and Other Payable Exchange Transactions:Payables and Accruals : Contractors:Deposits"," _"," _"," _ "," _ "," _ "," _ ",3100,"Planning and development",3107,"Town Planning, Building Regulations and Enforcement, and City Engineer","_"," _"," _","O","IL",380,"Current liabilities / Trade and other payables from exchange transactions","_","_"," _ "," _ ","_","_"," _ "," _ "," _ "," _ "," _ "," _ "," _ "," _ ",null,361,"Trade and other payables / Trade and other payables from exchange transactions",361,"Trade and other payables / Trade and other payables from exchange transactions",null,null,null," _ "," _ "," _ "," _ "," _ "," _ "," _ "," _ "," _ "," _ "," _ ",null," _ "," _ "," _ "," _ "," _ ",null," _ "," _ "," _ "," _ ",null,4,41,"Town Planning, Building Regulations and Enforcement, and City Engineer","Planning and Development",null,null,0,0,0,0,0,-345000,-460000,-575000,0,"_","_","_","_"]
["O0025-4/IL65530/F0041/X101/R0230/001/CONTRA","O0025-4/IL65530/F0041/X101/R0230/001/CONTRA",122871,0,"Liabilities:Current Liabilities:Trade and Other Payable Exchange Transactions:Payables and Accruals : Contractors:Deposits"," _"," _"," _ "," _ "," _ "," _ ",3100,"Planning and development",3107,"Town Planning, Building Regulations and Enforcement, and City Engineer","_"," _"," _","O","IL",380,"Current liabilities / Trade and other payables from exchange transactions","_","_"," _ "," _ ","_","_"," _ "," _ "," _ "," _ "," _ "," _ "," _ "," _ ",null,361,"Trade and other payables / Trade and other payables from exchange transactions",361,"Trade and other payables / Trade and other payables from exchange transactions",null,null,null," _ "," _ "," _ "," _ "," _ "," _ "," _ "," _ "," _ "," _ "," _ ",null," _ "," _ "," _ "," _ "," _ ",null," _ "," _ "," _ "," _ ",null,4,41,"Town Planning, Building Regulations and Enforcement, and City Engineer","Planning and Development",null,null,0,0,0,0,0,-805000,-920000,-1035000,0,"_","_","_","_"]
["O0025-20/IL65530/F0041/X101/R0032/001/CONTRA","O0025-20/IL65530/F0041/X101/R0032/001/CONTRA",123623,0,"Liabilities:Current Liabilities:Trade and Other Payable Exchange Transactions:Payables and Accruals : Contractors:Deposits"," _"," _"," _ "," _ "," _ "," _ ",3100,"Planning and development",3107,"Town Planning, Building Regulations and Enforcement, and City Engineer","_"," _"," _","O","IL",380,"Current liabilities / Trade and other payables from exchange transactions","_","_"," _ "," _ ","_","_"," _ "," _ "," _ "," _ "," _ "," _ "," _ "," _ ",null,361,"Trade and other payables / Trade and other payables from exchange transactions",361,"Trade and other payables / Trade and other payables from exchange transactions",null,null,null," _ "," _ "," _ "," _ "," _ "," _ "," _ "," _ "," _ "," _ "," _ ",null," _ "," _ "," _ "," _ "," _ ",null," _ "," _ "," _ "," _ ",null,4,41,"Town Planning, Building Regulations and Enforcement, and City Engineer","Planning and Development",null,null,0,0,0,0,0,-805000,-920000,-1035000,0,"_","_","_","_"]
["O0025-21/IL65530/F0041/X101/R0040/001/CONTRA","O0025-21/IL65530/F0041/X101/R0040/001/CONTRA",123627,0,"Liabilities:Current Liabilities:Trade and Other Payable Exchange Transactions:Payables and Accruals : Contractors:Deposits"," _"," _"," _ "," _ "," _ "," _ ",3100,"Planning and development",3107,"Town Planning, Building Regulations and Enforcement, and City Engineer","_"," _"," _","O","IL",380,"Current liabilities / Trade and other payables from exchange transactions","_","_"," _ "," _ ","_","_"," _ "," _ "," _ "," _ "," _ "," _ "," _ "," _ ",null,361,"Trade and other payables / Trade and other payables from exchange transactions",361,"Trade and other payables / Trade and other payables from exchange transactions",null,null,null," _ "," _ "," _ "," _ "," _ "," _ "," _ "," _ "," _ "," _ "," _ ",null," _ "," _ "," _ "," _ "," _ ",null," _ "," _ "," _ "," _ ",null,4,41,"Town Planning, Building Regulations and Enforcement, and City Engineer","Planning and Development",null,null,0,0,0,0,0,-345000,-460000,-575000,0,"_","_","_","_"]
["O0025-22/IL65530/F0041/X101/R0041/001/CONTRA","O0025-22/IL65530/F0041/X101/R0041/001/CONTRA",123291,0,"Liabilities:Current Liabilities:Trade and Other Payable Exchange Transactions:Payables and Accruals : Contractors:Deposits"," _"," _"," _ "," _ "," _ "," _ ",3100,"Planning and development",3107,"Town Planning, Building Regulations and Enforcement, and City Engineer","_"," _"," _","O","IL",380,"Current liabilities / Trade and other payables from exchange transactions","_","_"," _ "," _ ","_","_"," _ "," _ "," _ "," _ "," _ "," _ "," _ "," _ ",null,361,"Trade and other payables / Trade and other payables from exchange transactions",361,"Trade and other payables / Trade and other payables from exchange transactions",null,null,null," _ "," _ "," _ "," _ "," _ "," _ "," _ "," _ "," _ "," _ "," _ ",null," _ "," _ "," _ "," _ "," _ ",null," _ "," _ "," _ "," _ ",null,4,41,"Town Planning, Building Regulations and Enforcement, and City Engineer","Planning and Development",null,null,0,0,0,0,0,-345000,-460000,-575000,0,"_","_","_","_"]
["O0025-22/IL65530/F0041/X101/R0230/001/CONTRA","O0025-22/IL65530/F0041/X101/R0230/001/CONTRA",123295,0,"Liabilities:Current Liabilities:Trade and Other Payable Exchange Transactions:Payables and Accruals : Contractors:Deposits"," _"," _"," _ "," _ "," _ "," _ ",3100,"Planning and development",3107,"Town Planning, Building Regulations and Enforcement, and City Engineer","_"," _"," _","O","IL",380,"Current liabilities / Trade and other payables from exchange transactions","_","_"," _ "," _ ","_","_"," _ "," _ "," _ "," _ "," _ "," _ "," _ "," _ ",null,361,"Trade and other payables / Trade and other payables from exchange transactions",361,"Trade and other payables / Trade and other payables from exchange transactions",null,null,null," _ "," _ "," _ "," _ "," _ "," _ "," _ "," _ "," _ "," _ "," _ ",null," _ "," _ "," _ "," _ "," _ ",null," _ "," _ "," _ "," _ ",null,4,41,"Town Planning, Building Regulations and Enforcement, and City Engineer","Planning and Development",null,null,0,0,0,0,0,-575000,-690000,-805000,0,"_","_","_","_"]
["O0025-18/IL65530/F0041/X101/R0041/001/CONTRA","O0025-18/IL65530/F0041/X101/R0041/001/CONTRA",123283,0,"Liabilities:Current Liabilities:Trade and Other Payable Exchange Transactions:Payables and Accruals : Contractors:Deposits"," _"," _"," _ "," _ "," _ "," _ ",3100,"Planning and development",3107,"Town Planning, Building Regulations and Enforcement, and City Engineer","_"," _"," _","O","IL",380,"Current liabilities / Trade and other payables from exchange transactions","_","_"," _ "," _ ","_","_"," _ "," _ "," _ "," _ "," _ "," _ "," _ "," _ ",null,361,"Trade and other payables / Trade and other payables from exchange transactions",361,"Trade and other payables / Trade and other payables from exchange transactions",null,null,null," _ "," _ "," _ "," _ "," _ "," _ "," _ "," _ "," _ "," _ "," _ ",null," _ "," _ "," _ "," _ "," _ ",null," _ "," _ "," _ "," _ ",null,4,41,"Town Planning, Building Regulations and Enforcement, and City Engineer","Planning and Development",null,null,0,0,0,0,0,-575000,-690000,-805000,0,"_","_","_","_"]
["O0025-15/IL65530/F0041/X099/R0230/001/CONTRA","O0025-15/IL65530/F0041/X099/R0230/001/CONTRA",121410,0,"Liabilities:Current Liabilities:Trade and Other Payable Exchange Transactions:Payables and Accruals : Contractors:Deposits"," _"," _"," _ "," _ "," _ "," _ ",3100,"Planning and development",3108,"Project Management Unit","_"," _"," _","O","IL",380,"Current liabilities / Trade and other payables from exchange transactions","_","_"," _ "," _ ","_","_"," _ "," _ "," _ "," _ "," _ "," _ "," _ "," _ ",null,361,"Trade and other payables / Trade and other payables from exchange transactions",361,"Trade and other payables / Trade and other payables from exchange transactions",null,null,null," _ "," _ "," _ "," _ "," _ "," _ "," _ "," _ "," _ "," _ "," _ ",null," _ "," _ "," _ "," _ "," _ ",null," _ "," _ "," _ "," _ ",null,4,44,"Project Management Unit","Planning and Development",null,null,0,0,0,0,0,0,0,0,0,"_","_","_","_"]
["O0025-16/IL65530/F0041/X101/R0041/001/CONTRA","O0025-16/IL65530/F0041/X101/R0041/001/CONTRA",123279,0,"Liabilities:Current Liabilities:Trade and Other Payable Exchange Transactions:Payables and Accruals : Contractors:Deposits"," _"," _"," _ "," _ "," _ "," _ ",3100,"Planning and development",3107,"Town Planning, Building Regulations and Enforcement, and City Engineer","_"," _"," _","O","IL",380,"Current liabilities / Trade and other payables from exchange transactions","_","_"," _ "," _ ","_","_"," _ "," _ "," _ "," _ "," _ "," _ "," _ "," _ ",null,361,"Trade and other payables / Trade and other payables from exchange transactions",361,"Trade and other payables / Trade and other payables from exchange transactions",null,null,null," _ "," _ "," _ "," _ "," _ "," _ "," _ "," _ "," _ "," _ "," _ ",null," _ "," _ "," _ "," _ "," _ ",null," _ "," _ "," _ "," _ ",null,4,41,"Town Planning, Building Regulations and Enforcement, and City Engineer","Planning and Development",null,null,0,0,0,0,0,-575000,-690000,-805000,0,"_","_","_","_"]
["O0025-20/IL65530/F0041/X101/R0021/001/CONTRA","O0025-20/IL65530/F0041/X101/R0021/001/CONTRA",123287,0,"Liabilities:Current Liabilities:Trade and Other Payable Exchange Transactions:Payables and Accruals : Contractors:Deposits"," _"," _"," _ "," _ "," _ "," _ ",3100,"Planning and development",3107,"Town Planning, Building Regulations and Enforcement, and City Engineer","_"," _"," _","O","IL",380,"Current liabilities / Trade and other payables from exchange transactions","_","_"," _ "," _ ","_","_"," _ "," _ "," _ "," _ "," _ "," _ "," _ "," _ ",null,361,"Trade and other payables / Trade and other payables from exchange transactions",361,"Trade and other payables / Trade and other payables from exchange transactions",null,null,null," _ "," _ "," _ "," _ "," _ "," _ "," _ "," _ "," _ "," _ "," _ ",null," _ "," _ "," _ "," _ "," _ ",null," _ "," _ "," _ "," _ ",null,4,41,"Town Planning, Building Regulations and Enforcement, and City Engineer","Planning and Development",null,null,0,0,0,0,0,-345000,-460000,-575000,0,"_","_","_","_"]
["O0025-19/IL65530/F0041/X101/R0230/001/CONTRA","O0025-19/IL65530/F0041/X101/R0230/001/CONTRA",123427,0,"Liabilities:Current Liabilities:Trade and Other Payable Exchange Transactions:Payables and Accruals : Contractors:Deposits"," _"," _"," _ "," _ "," _ "," _ ",3100,"Planning and development",3107,"Town Planning, Building Regulations and Enforcement, and City Engineer","_"," _"," _","O","IL",380,"Current liabilities / Trade and other payables from exchange transactions","_","_"," _ "," _ ","_","_"," _ "," _ "," _ "," _ "," _ "," _ "," _ "," _ ",null,361,"Trade and other payables / Trade and other payables from exchange transactions",361,"Trade and other payables / Trade and other payables from exchange transactions",null,null,null," _ "," _ "," _ "," _ "," _ "," _ "," _ "," _ "," _ "," _ "," _ ",null," _ "," _ "," _ "," _ "," _ ",null," _ "," _ "," _ "," _ ",null,4,41,"Town Planning, Building Regulations and Enforcement, and City Engineer","Planning and Development",null,null,0,0,0,0,0,0,0,0,0,"_","_","_","_"]
["O0025-2/IL65530/F0041/X101/R0025/001/CONTRA","O0025-2/IL65530/F0041/X101/R0025/001/CONTRA",122863,0,"Liabilities:Current Liabilities:Trade and Other Payable Exchange Transactions:Payables and Accruals : Contractors:Deposits"," _"," _"," _ "," _ "," _ "," _ ",3100,"Planning and development",3107,"Town Planning, Building Regulations and Enforcement, and City Engineer","_"," _"," _","O","IL",380,"Current liabilities / Trade and other payables from exchange transactions","_","_"," _ "," _ ","_","_"," _ "," _ "," _ "," _ "," _ "," _ "," _ "," _ ",null,361,"Trade and other payables / Trade and other payables from exchange transactions",361,"Trade and other payables / Trade and other payables from exchange transactions",null,null,null," _ "," _ "," _ "," _ "," _ "," _ "," _ "," _ "," _ "," _ "," _ ",null," _ "," _ "," _ "," _ "," _ ",null," _ "," _ "," _ "," _ ",null,4,41,"Town Planning, Building Regulations and Enforcement, and City Engineer","Planning and Development",null,null,0,0,0,0,0,-690000,-805000,-920000,0,"_","_","_","_"]
["O0025-14/IL65530/F1182/X101/R0042/001/CONTRA","O0025-14/IL65530/F1182/X101/R0042/001/CONTRA",123229,0,"Liabilities:Current Liabilities:Trade and Other Payable Exchange Transactions:Payables and Accruals : Contractors:Deposits"," _"," _"," _ "," _ "," _ "," _ ",3100,"Planning and development",3107,"Town Planning, Building Regulations and Enforcement, and City Engineer","_"," _"," _","O","IL",380,"Current liabilities / Trade and other payables from exchange transactions","_","_"," _ "," _ ","_","_"," _ "," _ "," _ "," _ "," _ "," _ "," _ "," _ ",null,361,"Trade and other payables / Trade and other payables from exchange transactions",361,"Trade and other payables / Trade and other payables from exchange transactions",null,null,null," _ "," _ "," _ "," _ "," _ "," _ "," _ "," _ "," _ "," _ "," _ ",null," _ "," _ "," _ "," _ "," _ ",null," _ "," _ "," _ "," _ ",null,4,41,"Town Planning, Building Regulations and Enforcement, and City Engineer","Planning and Development",null,null,0,0,0,0,0,0,0,0,0,"_","_","_","_"]
["O0025-14/IL65530/F1182/X101/R0043/001/CONTRA","O0025-14/IL65530/F1182/X101/R0043/001/CONTRA",123233,0,"Liabilities:Current Liabilities:Trade and Other Payable Exchange Transactions:Payables and Accruals : Contractors:Deposits"," _"," _"," _ "," _ "," _ "," _ ",3100,"Planning and development",3107,"Town Planning, Building Regulations and Enforcement, and City Engineer","_"," _"," _","O","IL",380,"Current liabilities / Trade and other payables from exchange transactions","_","_"," _ "," _ ","_","_"," _ "," _ "," _ "," _ "," _ "," _ "," _ "," _ ",null,361,"Trade and other payables / Trade and other payables from exchange transactions",361,"Trade and other payables / Trade and other payables from exchange transactions",null,null,null," _ "," _ "," _ "," _ "," _ "," _ "," _ "," _ "," _ "," _ "," _ ",null," _ "," _ "," _ "," _ "," _ ",null," _ "," _ "," _ "," _ ",null,4,41,"Town Planning, Building Regulations and Enforcement, and City Engineer","Planning and Development",null,null,0,0,0,0,0,0,0,0,0,"_","_","_","_"]
["O0025-1/IA02108/F0041/X101/R0230/001/CONTRA","O0025-1/IA02108/F0041/X101/R0230/001/CONTRA",121042,0,"Assets:Current Assets:Cash and Cash Equivalents:Cash at Bank:Bank Account:Specify (replace with account description):Withdrawals"," _"," _"," _ "," _ "," _ "," _ ",3100,"Planning and development",3107,"Town Planning, Building Regulations and Enforcement, and City Engineer","_"," _"," _","O","IA",120,"Current assets / Cash and cash equivalents",120,"Cash and cash equivalents","0150W","CASH FLOW FROM OPERATING ACTIVITIES / Receipts / Transfers and Subsidies - Operational","0150W","CASH FLOW FROM OPERATING ACTIVITIES / Receipts / Transfers and Subsidies - Operational"," _ "," _ "," _ "," _ "," _ "," _ "," _ "," _ ",null," _ "," _ "," _ "," _ ",240,"Cash Receipts By Source / Transfers and Subsidies - Operational","W"," _ "," _ "," _ "," _ "," _ "," _ "," _ "," _ "," _ "," _ "," _ ",null," _ "," _ "," _ "," _ "," _ ",null," _ "," _ "," _ "," _ ",null,4,41,"Town Planning, Building Regulations and Enforcement, and City Engineer","Planning and Development",null,null,0,0,0,0,0,0,0,0,0,"_","_","_","_"]
["O0025-10/IA02108/F0041/X101/R0022/001/CONTRA","O0025-10/IA02108/F0041/X101/R0022/001/CONTRA",122929,0,"Assets:Current Assets:Cash and Cash Equivalents:Cash at Bank:Bank Account:Specify (replace with account description):Withdrawals"," _"," _"," _ "," _ "," _ "," _ ",3100,"Planning and development",3107,"Town Planning, Building Regulations and Enforcement, and City Engineer","_"," _"," _","O","IA",120,"Current assets / Cash and cash equivalents",120,"Cash and cash equivalents","0150W","CASH FLOW FROM OPERATING ACTIVITIES / Receipts / Transfers and Subsidies - Operational","0150W","CASH FLOW FROM OPERATING ACTIVITIES / Receipts / Transfers and Subsidies - Operational"," _ "," _ "," _ "," _ "," _ "," _ "," _ "," _ ",null," _ "," _ "," _ "," _ ",240,"Cash Receipts By Source / Transfers and Subsidies - Operational","W"," _ "," _ "," _ "," _ "," _ "," _ "," _ "," _ "," _ "," _ "," _ ",null," _ "," _ "," _ "," _ "," _ ",null," _ "," _ "," _ "," _ ",null,4,41,"Town Planning, Building Regulations and Enforcement, and City Engineer","Planning and Development",null,null,0,0,0,0,0,-345000,-460000,-575000,0,"_","_","_","_"]
["O0025-11/IA02108/F0041/X101/R0230/001/CONTRA","O0025-11/IA02108/F0041/X101/R0230/001/CONTRA",122933,0,"Assets:Current Assets:Cash and Cash Equivalents:Cash at Bank:Bank Account:Specify (replace with account description):Withdrawals"," _"," _"," _ "," _ "," _ "," _ ",3100,"Planning and development",3107,"Town Planning, Building Regulations and Enforcement, and City Engineer","_"," _"," _","O","IA",120,"Current assets / Cash and cash equivalents",120,"Cash and cash equivalents","0150W","CASH FLOW FROM OPERATING ACTIVITIES / Receipts / Transfers and Subsidies - Operational","0150W","CASH FLOW FROM OPERATING ACTIVITIES / Receipts / Transfers and Subsidies - Operational"," _ "," _ "," _ "," _ "," _ "," _ "," _ "," _ ",null," _ "," _ "," _ "," _ ",240,"Cash Receipts By Source / Transfers and Subsidies - Operational","W"," _ "," _ "," _ "," _ "," _ "," _ "," _ "," _ "," _ "," _ "," _ ",null," _ "," _ "," _ "," _ "," _ ",null," _ "," _ "," _ "," _ ",null,4,41,"Town Planning, Building Regulations and Enforcement, and City Engineer","Planning and Development",null,null,0,0,0,0,0,-345000,-460000,-575000,0,"_","_","_","_"]
["O0025-12/IA02108/F0041/X101/R0230/001/CONTRA","O0025-12/IA02108/F0041/X101/R0230/001/CONTRA",122937,0,"Assets:Current Assets:Cash and Cash Equivalents:Cash at Bank:Bank Account:Specify (replace with account description):Withdrawals"," _"," _"," _ "," _ "," _ "," _ ",3100,"Planning and development",3107,"Town Planning, Building Regulations and Enforcement, and City Engineer","_"," _"," _","O","IA",120,"Current assets / Cash and cash equivalents",120,"Cash and cash equivalents","0150W","CASH FLOW FROM OPERATING ACTIVITIES / Receipts / Transfers and Subsidies - Operational","0150W","CASH FLOW FROM OPERATING ACTIVITIES / Receipts / Transfers and Subsidies - Operational"," _ "," _ "," _ "," _ "," _ "," _ "," _ "," _ ",null," _ "," _ "," _ "," _ ",240,"Cash Receipts By Source / Transfers and Subsidies - Operational","W"," _ "," _ "," _ "," _ "," _ "," _ "," _ "," _ "," _ "," _ "," _ ",null," _ "," _ "," _ "," _ "," _ ",null," _ "," _ "," _ "," _ ",null,4,41,"Town Planning, Building Regulations and Enforcement, and City Engineer","Planning and Development",null,null,0,0,0,0,0,-690000,-805000,-920000,0,"_","_","_","_"]
["O0025-14/IA02108/F0041/X101/R0042/001/CONTRA","O0025-14/IA02108/F0041/X101/R0042/001/CONTRA",123219,0,"Assets:Current Assets:Cash and Cash Equivalents:Cash at Bank:Bank Account:Specify (replace with account description):Withdrawals"," _"," _"," _ "," _ "," _ "," _ ",3100,"Planning and development",3107,"Town Planning, Building Regulations and Enforcement, and City Engineer","_"," _"," _","O","IA",120,"Current assets / Cash and cash equivalents",120,"Cash and cash equivalents","0150W","CASH FLOW FROM OPERATING ACTIVITIES / Receipts / Transfers and Subsidies - Operational","0150W","CASH FLOW FROM OPERATING ACTIVITIES / Receipts / Transfers and Subsidies - Operational"," _ "," _ "," _ "," _ "," _ "," _ "," _ "," _ ",null," _ "," _ "," _ "," _ ",240,"Cash Receipts By Source / Transfers and Subsidies - Operational","W"," _ "," _ "," _ "," _ "," _ "," _ "," _ "," _ "," _ "," _ "," _ ",null," _ "," _ "," _ "," _ "," _ ",null," _ "," _ "," _ "," _ ",null,4,41,"Town Planning, Building Regulations and Enforcement, and City Engineer","Planning and Development",null,null,0,0,0,0,0,0,0,0,0,"_","_","_","_"]
["O0025-14/IA02108/F0041/X101/R0043/001/CONTRA","O0025-14/IA02108/F0041/X101/R0043/001/CONTRA",123223,0,"Assets:Current Assets:Cash and Cash Equivalents:Cash at Bank:Bank Account:Specify (replace with account description):Withdrawals"," _"," _"," _ "," _ "," _ "," _ ",3100,"Planning and development",3107,"Town Planning, Building Regulations and Enforcement, and City Engineer","_"," _"," _","O","IA",120,"Current assets / Cash and cash equivalents",120,"Cash and cash equivalents","0150W","CASH FLOW FROM OPERATING ACTIVITIES / Receipts / Transfers and Subsidies - Operational","0150W","CASH FLOW FROM OPERATING ACTIVITIES / Receipts / Transfers and Subsidies - Operational"," _ "," _ "," _ "," _ "," _ "," _ "," _ "," _ ",null," _ "," _ "," _ "," _ ",240,"Cash Receipts By Source / Transfers and Subsidies - Operational","W"," _ "," _ "," _ "," _ "," _ "," _ "," _ "," _ "," _ "," _ "," _ ",null," _ "," _ "," _ "," _ "," _ ",null," _ "," _ "," _ "," _ ",null,4,41,"Town Planning, Building Regulations and Enforcement, and City Engineer","Planning and Development",null,null,0,0,0,0,0,0,0,0,0,"_","_","_","_"]
["O0025-14/IA02108/F0041/X055/R0043/001/CONTRA","O0025-14/IA02108/F0041/X055/R0043/001/CONTRA",123249,0,"Assets:Current Assets:Cash and Cash Equivalents:Cash at Bank:Bank Account:Specify (replace with account description):Withdrawals"," _"," _"," _ "," _ "," _ "," _ ",1200,"Finance and administration",1210,"Property Services","_"," _"," _","O","IA",120,"Current assets / Cash and cash equivalents",120,"Cash and cash equivalents","0150W","CASH FLOW FROM OPERATING ACTIVITIES / Receipts / Transfers and Subsidies - Operational","0150W","CASH FLOW FROM OPERATING ACTIVITIES / Receipts / Transfers and Subsidies - Operational"," _ "," _ "," _ "," _ "," _ "," _ "," _ "," _ ",null," _ "," _ "," _ "," _ ",240,"Cash Receipts By Source / Transfers and Subsidies - Operational","W"," _ "," _ "," _ "," _ "," _ "," _ "," _ "," _ "," _ "," _ "," _ ",null," _ "," _ "," _ "," _ "," _ ",null," _ "," _ "," _ "," _ ",null,3,36,"Property Services","Finance & Administration",null,null,0,0,0,0,0,0,0,0,0,"_","_","_","_"]
["O0025-15/IA02108/F0041/X055/R0230/001/CONTRA","O0025-15/IA02108/F0041/X055/R0230/001/CONTRA",123245,0,"Assets:Current Assets:Cash and Cash Equivalents:Cash at Bank:Bank Account:Specify (replace with account description):Withdrawals"," _"," _"," _ "," _ "," _ "," _ ",1200,"Finance and administration",1210,"Property Services","_"," _"," _","O","IA",120,"Current assets / Cash and cash equivalents",120,"Cash and cash equivalents","0150W","CASH FLOW FROM OPERATING ACTIVITIES / Receipts / Transfers and Subsidies - Operational","0150W","CASH FLOW FROM OPERATING ACTIVITIES / Receipts / Transfers and Subsidies - Operational"," _ "," _ "," _ "," _ "," _ "," _ "," _ "," _ ",null," _ "," _ "," _ "," _ ",240,"Cash Receipts By Source / Transfers and Subsidies - Operational","W"," _ "," _ "," _ "," _ "," _ "," _ "," _ "," _ "," _ "," _ "," _ ",null," _ "," _ "," _ "," _ "," _ ",null," _ "," _ "," _ "," _ ",null,3,36,"Property Services","Finance & Administration",null,null,0,0,0,0,0,0,0,0,0,"_","_","_","_"]
["O0025-15/IA02108/F0041/X099/R0230/001/CONTRA","O0025-15/IA02108/F0041/X099/R0230/001/CONTRA",121408,0,"Assets:Current Assets:Cash and Cash Equivalents:Cash at Bank:Bank Account:Specify (replace with account description):Withdrawals"," _"," _"," _ "," _ "," _ "," _ ",3100,"Planning and development",3108,"Project Management Unit","_"," _"," _","O","IA",120,"Current assets / Cash and cash equivalents",120,"Cash and cash equivalents","0150W","CASH FLOW FROM OPERATING ACTIVITIES / Receipts / Transfers and Subsidies - Operational","0150W","CASH FLOW FROM OPERATING ACTIVITIES / Receipts / Transfers and Subsidies - Operational"," _ "," _ "," _ "," _ "," _ "," _ "," _ "," _ ",null," _ "," _ "," _ "," _ ",240,"Cash Receipts By Source / Transfers and Subsidies - Operational","W"," _ "," _ "," _ "," _ "," _ "," _ "," _ "," _ "," _ "," _ "," _ ",null," _ "," _ "," _ "," _ "," _ ",null," _ "," _ "," _ "," _ ",null,4,44,"Project Management Unit","Planning and Development",null,null,0,0,0,0,0,0,0,0,0,"_","_","_","_"]
["O0025-16/IA02108/F0041/X101/R0041/001/CONTRA","O0025-16/IA02108/F0041/X101/R0041/001/CONTRA",123277,0,"Assets:Current Assets:Cash and Cash Equivalents:Cash at Bank:Bank Account:Specify (replace with account description):Withdrawals"," _"," _"," _ "," _ "," _ "," _ ",3100,"Planning and development",3107,"Town Planning, Building Regulations and Enforcement, and City Engineer","_"," _"," _","O","IA",120,"Current assets / Cash and cash equivalents",120,"Cash and cash equivalents","0150W","CASH FLOW FROM OPERATING ACTIVITIES / Receipts / Transfers and Subsidies - Operational","0150W","CASH FLOW FROM OPERATING ACTIVITIES / Receipts / Transfers and Subsidies - Operational"," _ "," _ "," _ "," _ "," _ "," _ "," _ "," _ ",null," _ "," _ "," _ "," _ ",240,"Cash Receipts By Source / Transfers and Subsidies - Operational","W"," _ "," _ "," _ "," _ "," _ "," _ "," _ "," _ "," _ "," _ "," _ ",null," _ "," _ "," _ "," _ "," _ ",null," _ "," _ "," _ "," _ ",null,4,41,"Town Planning, Building Regulations and Enforcement, and City Engineer","Planning and Development",null,null,0,0,0,0,0,-575000,-690000,-805000,0,"_","_","_","_"]
["O0025-18/IA02108/F0041/X101/R0041/001/CONTRA","O0025-18/IA02108/F0041/X101/R0041/001/CONTRA",123281,0,"Assets:Current Assets:Cash and Cash Equivalents:Cash at Bank:Bank Account:Specify (replace with account description):Withdrawals"," _"," _"," _ "," _ "," _ "," _ ",3100,"Planning and development",3107,"Town Planning, Building Regulations and Enforcement, and City Engineer","_"," _"," _","O","IA",120,"Current assets / Cash and cash equivalents",120,"Cash and cash equivalents","0150W","CASH FLOW FROM OPERATING ACTIVITIES / Receipts / Transfers and Subsidies - Operational","0150W","CASH FLOW FROM OPERATING ACTIVITIES / Receipts / Transfers and Subsidies - Operational"," _ "," _ "," _ "," _ "," _ "," _ "," _ "," _ ",null," _ "," _ "," _ "," _ ",240,"Cash Receipts By Source / Transfers and Subsidies - Operational","W"," _ "," _ "," _ "," _ "," _ "," _ "," _ "," _ "," _ "," _ "," _ ",null," _ "," _ "," _ "," _ "," _ ",null," _ "," _ "," _ "," _ ",null,4,41,"Town Planning, Building Regulations and Enforcement, and City Engineer","Planning and Development",null,null,0,0,0,0,0,-575000,-690000,-805000,0,"_","_","_","_"]
["O0025-19/IA02108/F0041/X101/R0230/001/CONTRA","O0025-19/IA02108/F0041/X101/R0230/001/CONTRA",123425,0,"Assets:Current Assets:Cash and Cash Equivalents:Cash at Bank:Bank Account:Specify (replace with account description):Withdrawals"," _"," _"," _ "," _ "," _ "," _ ",3100,"Planning and development",3107,"Town Planning, Building Regulations and Enforcement, and City Engineer","_"," _"," _","O","IA",120,"Current assets / Cash and cash equivalents",120,"Cash and cash equivalents","0150W","CASH FLOW FROM OPERATING ACTIVITIES / Receipts / Transfers and Subsidies - Operational","0150W","CASH FLOW FROM OPERATING ACTIVITIES / Receipts / Transfers and Subsidies - Operational"," _ "," _ "," _ "," _ "," _ "," _ "," _ "," _ ",null," _ "," _ "," _ "," _ ",240,"Cash Receipts By Source / Transfers and Subsidies - Operational","W"," _ "," _ "," _ "," _ "," _ "," _ "," _ "," _ "," _ "," _ "," _ ",null," _ "," _ "," _ "," _ "," _ ",null," _ "," _ "," _ "," _ ",null,4,41,"Town Planning, Building Regulations and Enforcement, and City Engineer","Planning and Development",null,null,0,0,0,0,0,0,0,0,0,"_","_","_","_"]
["O0025-2/IA02108/F0041/X101/R0025/001/CONTRA","O0025-2/IA02108/F0041/X101/R0025/001/CONTRA",122861,0,"Assets:Current Assets:Cash and Cash Equivalents:Cash at Bank:Bank Account:Specify (replace with account description):Withdrawals"," _"," _"," _ "," _ "," _ "," _ ",3100,"Planning and development",3107,"Town Planning, Building Regulations and Enforcement, and City Engineer","_"," _"," _","O","IA",120,"Current assets / Cash and cash equivalents",120,"Cash and cash equivalents","0150W","CASH FLOW FROM OPERATING ACTIVITIES / Receipts / Transfers and Subsidies - Operational","0150W","CASH FLOW FROM OPERATING ACTIVITIES / Receipts / Transfers and Subsidies - Operational"," _ "," _ "," _ "," _ "," _ "," _ "," _ "," _ ",null," _ "," _ "," _ "," _ ",240,"Cash Receipts By Source / Transfers and Subsidies - Operational","W"," _ "," _ "," _ "," _ "," _ "," _ "," _ "," _ "," _ "," _ "," _ ",null," _ "," _ "," _ "," _ "," _ ",null," _ "," _ "," _ "," _ ",null,4,41,"Town Planning, Building Regulations and Enforcement, and City Engineer","Planning and Development",null,null,0,0,0,0,0,-690000,-805000,-920000,0,"_","_","_","_"]
["O0025-20/IA02108/F0041/X101/R0021/001/CONTRA","O0025-20/IA02108/F0041/X101/R0021/001/CONTRA",123285,0,"Assets:Current Assets:Cash and Cash Equivalents:Cash at Bank:Bank Account:Specify (replace with account description):Withdrawals"," _"," _"," _ "," _ "," _ "," _ ",3100,"Planning and development",3107,"Town Planning, Building Regulations and Enforcement, and City Engineer","_"," _"," _","O","IA",120,"Current assets / Cash and cash equivalents",120,"Cash and cash equivalents","0150W","CASH FLOW FROM OPERATING ACTIVITIES / Receipts / Transfers and Subsidies - Operational","0150W","CASH FLOW FROM OPERATING ACTIVITIES / Receipts / Transfers and Subsidies - Operational"," _ "," _ "," _ "," _ "," _ "," _ "," _ "," _ ",null," _ "," _ "," _ "," _ ",240,"Cash Receipts By Source / Transfers and Subsidies - Operational","W"," _ "," _ "," _ "," _ "," _ "," _ "," _ "," _ "," _ "," _ "," _ ",null," _ "," _ "," _ "," _ "," _ ",null," _ "," _ "," _ "," _ ",null,4,41,"Town Planning, Building Regulations and Enforcement, and City Engineer","Planning and Development",null,null,0,0,0,0,0,-345000,-460000,-575000,0,"_","_","_","_"]
["O0025-20/IA02108/F0041/X101/R0032/001/CONTRA","O0025-20/IA02108/F0041/X101/R0032/001/CONTRA",123621,0,"Assets:Current Assets:Cash and Cash Equivalents:Cash at Bank:Bank Account:Specify (replace with account description):Withdrawals"," _"," _"," _ "," _ "," _ "," _ ",3100,"Planning and development",3107,"Town Planning, Building Regulations and Enforcement, and City Engineer","_"," _"," _","O","IA",120,"Current assets / Cash and cash equivalents",120,"Cash and cash equivalents","0150W","CASH FLOW FROM OPERATING ACTIVITIES / Receipts / Transfers and Subsidies - Operational","0150W","CASH FLOW FROM OPERATING ACTIVITIES / Receipts / Transfers and Subsidies - Operational"," _ "," _ "," _ "," _ "," _ "," _ "," _ "," _ ",null," _ "," _ "," _ "," _ ",240,"Cash Receipts By Source / Transfers and Subsidies - Operational","W"," _ "," _ "," _ "," _ "," _ "," _ "," _ "," _ "," _ "," _ "," _ ",null," _ "," _ "," _ "," _ "," _ ",null," _ "," _ "," _ "," _ ",null,4,41,"Town Planning, Building Regulations and Enforcement, and City Engineer","Planning and Development",null,null,0,0,0,0,0,-805000,-920000,-1035000,0,"_","_","_","_"]
["O0025-21/IA02108/F0041/X101/R0040/001/CONTRA","O0025-21/IA02108/F0041/X101/R0040/001/CONTRA",123625,0,"Assets:Current Assets:Cash and Cash Equivalents:Cash at Bank:Bank Account:Specify (replace with account description):Withdrawals"," _"," _"," _ "," _ "," _ "," _ ",3100,"Planning and development",3107,"Town Planning, Building Regulations and Enforcement, and City Engineer","_"," _"," _","O","IA",120,"Current assets / Cash and cash equivalents",120,"Cash and cash equivalents","0150W","CASH FLOW FROM OPERATING ACTIVITIES / Receipts / Transfers and Subsidies - Operational","0150W","CASH FLOW FROM OPERATING ACTIVITIES / Receipts / Transfers and Subsidies - Operational"," _ "," _ "," _ "," _ "," _ "," _ "," _ "," _ ",null," _ "," _ "," _ "," _ ",240,"Cash Receipts By Source / Transfers and Subsidies - Operational","W"," _ "," _ "," _ "," _ "," _ "," _ "," _ "," _ "," _ "," _ "," _ ",null," _ "," _ "," _ "," _ "," _ ",null," _ "," _ "," _ "," _ ",null,4,41,"Town Planning, Building Regulations and Enforcement, and City Engineer","Planning and Development",null,null,0,0,0,0,0,-345000,-460000,-575000,0,"_","_","_","_"]
["O0025-22/IA02108/F0041/X101/R0041/001/CONTRA","O0025-22/IA02108/F0041/X101/R0041/001/CONTRA",123289,0,"Assets:Current Assets:Cash and Cash Equivalents:Cash at Bank:Bank Account:Specify (replace with account description):Withdrawals"," _"," _"," _ "," _ "," _ "," _ ",3100,"Planning and development",3107,"Town Planning, Building Regulations and Enforcement, and City Engineer","_"," _"," _","O","IA",120,"Current assets / Cash and cash equivalents",120,"Cash and cash equivalents","0150W","CASH FLOW FROM OPERATING ACTIVITIES / Receipts / Transfers and Subsidies - Operational","0150W","CASH FLOW FROM OPERATING ACTIVITIES / Receipts / Transfers and Subsidies - Operational"," _ "," _ "," _ "," _ "," _ "," _ "," _ "," _ ",null," _ "," _ "," _ "," _ ",240,"Cash Receipts By Source / Transfers and Subsidies - Operational","W"," _ "," _ "," _ "," _ "," _ "," _ "," _ "," _ "," _ "," _ "," _ ",null," _ "," _ "," _ "," _ "," _ ",null," _ "," _ "," _ "," _ ",null,4,41,"Town Planning, Building Regulations and Enforcement, and City Engineer","Planning and Development",null,null,0,0,0,0,0,-345000,-460000,-575000,0,"_","_","_","_"]
["O0025-22/IA02108/F0041/X101/R0230/001/CONTRA","O0025-22/IA02108/F0041/X101/R0230/001/CONTRA",123293,0,"Assets:Current Assets:Cash and Cash Equivalents:Cash at Bank:Bank Account:Specify (replace with account description):Withdrawals"," _"," _"," _ "," _ "," _ "," _ ",3100,"Planning and development",3107,"Town Planning, Building Regulations and Enforcement, and City Engineer","_"," _"," _","O","IA",120,"Current assets / Cash and cash equivalents",120,"Cash and cash equivalents","0150W","CASH FLOW FROM OPERATING ACTIVITIES / Receipts / Transfers and Subsidies - Operational","0150W","CASH FLOW FROM OPERATING ACTIVITIES / Receipts / Transfers and Subsidies - Operational"," _ "," _ "," _ "," _ "," _ "," _ "," _ "," _ ",null," _ "," _ "," _ "," _ ",240,"Cash Receipts By Source / Transfers and Subsidies - Operational","W"," _ "," _ "," _ "," _ "," _ "," _ "," _ "," _ "," _ "," _ "," _ ",null," _ "," _ "," _ "," _ "," _ ",null," _ "," _ "," _ "," _ ",null,4,41,"Town Planning, Building Regulations and Enforcement, and City Engineer","Planning and Development",null,null,0,0,0,0,0,-575000,-690000,-805000,0,"_","_","_","_"]
["O0025-3/IA02108/F0041/X101/R0230/001/CONTRA","O0025-3/IA02108/F0041/X101/R0230/001/CONTRA",122865,0,"Assets:Current Assets:Cash and Cash Equivalents:Cash at Bank:Bank Account:Specify (replace with account description):Withdrawals"," _"," _"," _ "," _ "," _ "," _ ",3100,"Planning and development",3107,"Town Planning, Building Regulations and Enforcement, and City Engineer","_"," _"," _","O","IA",120,"Current assets / Cash and cash equivalents",120,"Cash and cash equivalents","0150W","CASH FLOW FROM OPERATING ACTIVITIES / Receipts / Transfers and Subsidies - Operational","0150W","CASH FLOW FROM OPERATING ACTIVITIES / Receipts / Transfers and Subsidies - Operational"," _ "," _ "," _ "," _ "," _ "," _ "," _ "," _ ",null," _ "," _ "," _ "," _ ",240,"Cash Receipts By Source / Transfers and Subsidies - Operational","W"," _ "," _ "," _ "," _ "," _ "," _ "," _ "," _ "," _ "," _ "," _ ",null," _ "," _ "," _ "," _ "," _ ",null," _ "," _ "," _ "," _ ",null,4,41,"Town Planning, Building Regulations and Enforcement, and City Engineer","Planning and Development",null,null,0,0,0,0,0,-345000,-460000,-575000,0,"_","_","_","_"]
["O0025-4/IA02108/F0041/X101/R0230/001/CONTRA","O0025-4/IA02108/F0041/X101/R0230/001/CONTRA",122869,0,"Assets:Current Assets:Cash and Cash Equivalents:Cash at Bank:Bank Account:Specify (replace with account description):Withdrawals"," _"," _"," _ "," _ "," _ "," _ ",3100,"Planning and development",3107,"Town Planning, Building Regulations and Enforcement, and City Engineer","_"," _"," _","O","IA",120,"Current assets / Cash and cash equivalents",120,"Cash and cash equivalents","0150W","CASH FLOW FROM OPERATING ACTIVITIES / Receipts / Transfers and Subsidies - Operational","0150W","CASH FLOW FROM OPERATING ACTIVITIES / Receipts / Transfers and Subsidies - Operational"," _ "," _ "," _ "," _ "," _ "," _ "," _ "," _ ",null," _ "," _ "," _ "," _ ",240,"Cash Receipts By Source / Transfers and Subsidies - Operational","W"," _ "," _ "," _ "," _ "," _ "," _ "," _ "," _ "," _ "," _ "," _ ",null," _ "," _ "," _ "," _ "," _ ",null," _ "," _ "," _ "," _ ",null,4,41,"Town Planning, Building Regulations and Enforcement, and City Engineer","Planning and Development",null,null,0,0,0,0,0,-805000,-920000,-1035000,0,"_","_","_","_"]
["O0025-5/IA02108/F0041/X101/R0230/001/CONTRA","O0025-5/IA02108/F0041/X101/R0230/001/CONTRA",122873,0,"Assets:Current Assets:Cash and Cash Equivalents:Cash at Bank:Bank Account:Specify (replace with account description):Withdrawals"," _"," _"," _ "," _ "," _ "," _ ",3100,"Planning and development",3107,"Town Planning, Building Regulations and Enforcement, and City Engineer","_"," _"," _","O","IA",120,"Current assets / Cash and cash equivalents",120,"Cash and cash equivalents","0150W","CASH FLOW FROM OPERATING ACTIVITIES / Receipts / Transfers and Subsidies - Operational","0150W","CASH FLOW FROM OPERATING ACTIVITIES / Receipts / Transfers and Subsidies - Operational"," _ "," _ "," _ "," _ "," _ "," _ "," _ "," _ ",null," _ "," _ "," _ "," _ ",240,"Cash Receipts By Source / Transfers and Subsidies - Operational","W"," _ "," _ "," _ "," _ "," _ "," _ "," _ "," _ "," _ "," _ "," _ ",null," _ "," _ "," _ "," _ "," _ ",null," _ "," _ "," _ "," _ ",null,4,41,"Town Planning, Building Regulations and Enforcement, and City Engineer","Planning and Development",null,null,0,0,0,0,0,-345000,-460000,-575000,0,"_","_","_","_"]
["O0025-6/IA02108/F0041/X101/R0230/001/CONTRA","O0025-6/IA02108/F0041/X101/R0230/001/CONTRA",122877,0,"Assets:Current Assets:Cash and Cash Equivalents:Cash at Bank:Bank Account:Specify (replace with account description):Withdrawals"," _"," _"," _ "," _ "," _ "," _ ",3100,"Planning and development",3107,"Town Planning, Building Regulations and Enforcement, and City Engineer","_"," _"," _","O","IA",120,"Current assets / Cash and cash equivalents",120,"Cash and cash equivalents","0150W","CASH FLOW FROM OPERATING ACTIVITIES / Receipts / Transfers and Subsidies - Operational","0150W","CASH FLOW FROM OPERATING ACTIVITIES / Receipts / Transfers and Subsidies - Operational"," _ "," _ "," _ "," _ "," _ "," _ "," _ "," _ ",null," _ "," _ "," _ "," _ ",240,"Cash Receipts By Source / Transfers and Subsidies - Operational","W"," _ "," _ "," _ "," _ "," _ "," _ "," _ "," _ "," _ "," _ "," _ ",null," _ "," _ "," _ "," _ "," _ ",null," _ "," _ "," _ "," _ ",null,4,41,"Town Planning, Building Regulations and Enforcement, and City Engineer","Planning and Development",null,null,0,0,0,0,0,-575000,-690000,-805000,0,"_","_","_","_"]
["O0025-7/IA02108/F0041/X101/R0230/001/CONTRA","O0025-7/IA02108/F0041/X101/R0230/001/CONTRA",122881,0,"Assets:Current Assets:Cash and Cash Equivalents:Cash at Bank:Bank Account:Specify (replace with account description):Withdrawals"," _"," _"," _ "," _ "," _ "," _ ",3100,"Planning and development",3107,"Town Planning, Building Regulations and Enforcement, and City Engineer","_"," _"," _","O","IA",120,"Current assets / Cash and cash equivalents",120,"Cash and cash equivalents","0150W","CASH FLOW FROM OPERATING ACTIVITIES / Receipts / Transfers and Subsidies - Operational","0150W","CASH FLOW FROM OPERATING ACTIVITIES / Receipts / Transfers and Subsidies - Operational"," _ "," _ "," _ "," _ "," _ "," _ "," _ "," _ ",null," _ "," _ "," _ "," _ ",240,"Cash Receipts By Source / Transfers and Subsidies - Operational","W"," _ "," _ "," _ "," _ "," _ "," _ "," _ "," _ "," _ "," _ "," _ ",null," _ "," _ "," _ "," _ "," _ ",null," _ "," _ "," _ "," _ ",null,4,41,"Town Planning, Building Regulations and Enforcement, and City Engineer","Planning and Development",null,null,0,0,0,0,0,-575000,-690000,-805000,0,"_","_","_","_"]
["O0025-8/IA02108/F0041/X101/R0230/001/CONTRA","O0025-8/IA02108/F0041/X101/R0230/001/CONTRA",122885,0,"Assets:Current Assets:Cash and Cash Equivalents:Cash at Bank:Bank Account:Specify (replace with account description):Withdrawals"," _"," _"," _ "," _ "," _ "," _ ",3100,"Planning and development",3107,"Town Planning, Building Regulations and Enforcement, and City Engineer","_"," _"," _","O","IA",120,"Current assets / Cash and cash equivalents",120,"Cash and cash equivalents","0150W","CASH FLOW FROM OPERATING ACTIVITIES / Receipts / Transfers and Subsidies - Operational","0150W","CASH FLOW FROM OPERATING ACTIVITIES / Receipts / Transfers and Subsidies - Operational"," _ "," _ "," _ "," _ "," _ "," _ "," _ "," _ ",null," _ "," _ "," _ "," _ ",240,"Cash Receipts By Source / Transfers and Subsidies - Operational","W"," _ "," _ "," _ "," _ "," _ "," _ "," _ "," _ "," _ "," _ "," _ ",null," _ "," _ "," _ "," _ "," _ ",null," _ "," _ "," _ "," _ ",null,4,41,"Town Planning, Building Regulations and Enforcement, and City Engineer","Planning and Development",null,null,0,0,0,0,0,-805000,-920000,-977500,0,"_","_","_","_"]
["O0025-9/IA02108/F0041/X101/R0416/001/CONTRA","O0025-9/IA02108/F0041/X101/R0416/001/CONTRA",122893,0,"Assets:Current Assets:Cash and Cash Equivalents:Cash at Bank:Bank Account:Specify (replace with account description):Withdrawals"," _"," _"," _ "," _ "," _ "," _ ",3100,"Planning and development",3107,"Town Planning, Building Regulations and Enforcement, and City Engineer","_"," _"," _","O","IA",120,"Current assets / Cash and cash equivalents",120,"Cash and cash equivalents","0150W","CASH FLOW FROM OPERATING ACTIVITIES / Receipts / Transfers and Subsidies - Operational","0150W","CASH FLOW FROM OPERATING ACTIVITIES / Receipts / Transfers and Subsidies - Operational"," _ "," _ "," _ "," _ "," _ "," _ "," _ "," _ ",null," _ "," _ "," _ "," _ ",240,"Cash Receipts By Source / Transfers and Subsidies - Operational","W"," _ "," _ "," _ "," _ "," _ "," _ "," _ "," _ "," _ "," _ "," _ ",null," _ "," _ "," _ "," _ "," _ ",null," _ "," _ "," _ "," _ ",null,4,41,"Town Planning, Building Regulations and Enforcement, and City Engineer","Planning and Development",null,null,0,0,0,0,0,-805000,-862500,-920000,0,"_","_","_","_"]
["O0025-14/IA02108/F1182/X101/R0042/001/CONTRA","O0025-14/IA02108/F1182/X101/R0042/001/CONTRA",123227,0,"Assets:Current Assets:Cash and Cash Equivalents:Cash at Bank:Bank Account:Specify (replace with account description):Withdrawals"," _"," _"," _ "," _ "," _ "," _ ",3100,"Planning and development",3107,"Town Planning, Building Regulations and Enforcement, and City Engineer","_"," _"," _","O","IA",120,"Current assets / Cash and cash equivalents",120,"Cash and cash equivalents","0150W","CASH FLOW FROM OPERATING ACTIVITIES / Receipts / Transfers and Subsidies - Operational","0150W","CASH FLOW FROM OPERATING ACTIVITIES / Receipts / Transfers and Subsidies - Operational"," _ "," _ "," _ "," _ "," _ "," _ "," _ "," _ ",null," _ "," _ "," _ "," _ ",240,"Cash Receipts By Source / Transfers and Subsidies - Operational","W"," _ "," _ "," _ "," _ "," _ "," _ "," _ "," _ "," _ "," _ "," _ ",null," _ "," _ "," _ "," _ "," _ ",null," _ "," _ "," _ "," _ ",null,4,41,"Town Planning, Building Regulations and Enforcement, and City Engineer","Planning and Development",null,null,0,0,0,0,0,0,0,0,0,"_","_","_","_"]
["O0025-14/IA02108/F1182/X101/R0043/001/CONTRA","O0025-14/IA02108/F1182/X101/R0043/001/CONTRA",123231,0,"Assets:Current Assets:Cash and Cash Equivalents:Cash at Bank:Bank Account:Specify (replace with account description):Withdrawals"," _"," _"," _ "," _ "," _ "," _ ",3100,"Planning and development",3107,"Town Planning, Building Regulations and Enforcement, and City Engineer","_"," _"," _","O","IA",120,"Current assets / Cash and cash equivalents",120,"Cash and cash equivalents","0150W","CASH FLOW FROM OPERATING ACTIVITIES / Receipts / Transfers and Subsidies - Operational","0150W","CASH FLOW FROM OPERATING ACTIVITIES / Receipts / Transfers and Subsidies - Operational"," _ "," _ "," _ "," _ "," _ "," _ "," _ "," _ ",null," _ "," _ "," _ "," _ ",240,"Cash Receipts By Source / Transfers and Subsidies - Operational","W"," _ "," _ "," _ "," _ "," _ "," _ "," _ "," _ "," _ "," _ "," _ ",null," _ "," _ "," _ "," _ "," _ ",null," _ "," _ "," _ "," _ ",null,4,41,"Town Planning, Building Regulations and Enforcement, and City Engineer","Planning and Development",null,null,0,0,0,0,0,0,0,0,0,"_","_","_","_"]
["O0025-10/IL65531/F0041/X101/R0022/001/CONTRA","O0025-10/IL65531/F0041/X101/R0022/001/CONTRA",122932,0,"Liabilities:Current Liabilities:Trade and Other Payable Exchange Transactions:Payables and Accruals : Contractors:Withdrawals"," _"," _"," _ "," _ "," _ "," _ ",3100,"Planning and development",3107,"Town Planning, Building Regulations and Enforcement, and City Engineer","_"," _"," _","O","IL",380,"Current liabilities / Trade and other payables from exchange transactions","_","_"," _ "," _ ","_","_",200,"Cash Payments by Type / Contracted Services",450,"Cash Payments by Type / Contracted Services"," _ "," _ "," _ "," _ ",null,361,"Trade and other payables / Trade and other payables from exchange transactions",361,"Trade and other payables / Trade and other payables from exchange transactions",null,null,null," _ "," _ "," _ "," _ "," _ "," _ "," _ "," _ "," _ "," _ "," _ ",null," _ "," _ "," _ "," _ "," _ ",null," _ "," _ "," _ "," _ ",null,4,41,"Town Planning, Building Regulations and Enforcement, and City Engineer","Planning and Development",null,null,0,0,0,0,0,345000,460000,575000,0,"_","_","_","_"]
["O0025-1/IL65531/F0041/X101/R0230/001/CONTRA","O0025-1/IL65531/F0041/X101/R0230/001/CONTRA",121045,0,"Liabilities:Current Liabilities:Trade and Other Payable Exchange Transactions:Payables and Accruals : Contractors:Withdrawals"," _"," _"," _ "," _ "," _ "," _ ",3100,"Planning and development",3107,"Town Planning, Building Regulations and Enforcement, and City Engineer","_"," _"," _","O","IL",380,"Current liabilities / Trade and other payables from exchange transactions","_","_"," _ "," _ ","_","_",200,"Cash Payments by Type / Contracted Services",450,"Cash Payments by Type / Contracted Services"," _ "," _ "," _ "," _ ",null,361,"Trade and other payables / Trade and other payables from exchange transactions",361,"Trade and other payables / Trade and other payables from exchange transactions",null,null,null," _ "," _ "," _ "," _ "," _ "," _ "," _ "," _ "," _ "," _ "," _ ",null," _ "," _ "," _ "," _ "," _ ",null," _ "," _ "," _ "," _ ",null,4,41,"Town Planning, Building Regulations and Enforcement, and City Engineer","Planning and Development",null,null,0,0,0,0,0,0,0,0,0,"_","_","_","_"]
["O0025-11/IL65531/F0041/X101/R0230/001/CONTRA","O0025-11/IL65531/F0041/X101/R0230/001/CONTRA",122936,0,"Liabilities:Current Liabilities:Trade and Other Payable Exchange Transactions:Payables and Accruals : Contractors:Withdrawals"," _"," _"," _ "," _ "," _ "," _ ",3100,"Planning and development",3107,"Town Planning, Building Regulations and Enforcement, and City Engineer","_"," _"," _","O","IL",380,"Current liabilities / Trade and other payables from exchange transactions","_","_"," _ "," _ ","_","_",200,"Cash Payments by Type / Contracted Services",450,"Cash Payments by Type / Contracted Services"," _ "," _ "," _ "," _ ",null,361,"Trade and other payables / Trade and other payables from exchange transactions",361,"Trade and other payables / Trade and other payables from exchange transactions",null,null,null," _ "," _ "," _ "," _ "," _ "," _ "," _ "," _ "," _ "," _ "," _ ",null," _ "," _ "," _ "," _ "," _ ",null," _ "," _ "," _ "," _ ",null,4,41,"Town Planning, Building Regulations and Enforcement, and City Engineer","Planning and Development",null,null,0,0,0,0,0,345000,460000,575000,0,"_","_","_","_"]
["O0025-14/IL65531/F0041/X101/R0043/001/CONTRA","O0025-14/IL65531/F0041/X101/R0043/001/CONTRA",123226,0,"Liabilities:Current Liabilities:Trade and Other Payable Exchange Transactions:Payables and Accruals : Contractors:Withdrawals"," _"," _"," _ "," _ "," _ "," _ ",3100,"Planning and development",3107,"Town Planning, Building Regulations and Enforcement, and City Engineer","_"," _"," _","O","IL",380,"Current liabilities / Trade and other payables from exchange transactions","_","_"," _ "," _ ","_","_",200,"Cash Payments by Type / Contracted Services",450,"Cash Payments by Type / Contracted Services"," _ "," _ "," _ "," _ ",null,361,"Trade and other payables / Trade and other payables from exchange transactions",361,"Trade and other payables / Trade and other payables from exchange transactions",null,null,null," _ "," _ "," _ "," _ "," _ "," _ "," _ "," _ "," _ "," _ "," _ ",null," _ "," _ "," _ "," _ "," _ ",null," _ "," _ "," _ "," _ ",null,4,41,"Town Planning, Building Regulations and Enforcement, and City Engineer","Planning and Development",null,null,0,0,0,0,0,0,0,0,0,"_","_","_","_"]
["O0025-14/IL65531/F0041/X101/R0042/001/CONTRA","O0025-14/IL65531/F0041/X101/R0042/001/CONTRA",123222,0,"Liabilities:Current Liabilities:Trade and Other Payable Exchange Transactions:Payables and Accruals : Contractors:Withdrawals"," _"," _"," _ "," _ "," _ "," _ ",3100,"Planning and development",3107,"Town Planning, Building Regulations and Enforcement, and City Engineer","_"," _"," _","O","IL",380,"Current liabilities / Trade and other payables from exchange transactions","_","_"," _ "," _ ","_","_",200,"Cash Payments by Type / Contracted Services",450,"Cash Payments by Type / Contracted Services"," _ "," _ "," _ "," _ ",null,361,"Trade and other payables / Trade and other payables from exchange transactions",361,"Trade and other payables / Trade and other payables from exchange transactions",null,null,null," _ "," _ "," _ "," _ "," _ "," _ "," _ "," _ "," _ "," _ "," _ ",null," _ "," _ "," _ "," _ "," _ ",null," _ "," _ "," _ "," _ ",null,4,41,"Town Planning, Building Regulations and Enforcement, and City Engineer","Planning and Development",null,null,0,0,0,0,0,0,0,0,0,"_","_","_","_"]
["O0025-12/IL65531/F0041/X101/R0230/001/CONTRA","O0025-12/IL65531/F0041/X101/R0230/001/CONTRA",122940,0,"Liabilities:Current Liabilities:Trade and Other Payable Exchange Transactions:Payables and Accruals : Contractors:Withdrawals"," _"," _"," _ "," _ "," _ "," _ ",3100,"Planning and development",3107,"Town Planning, Building Regulations and Enforcement, and City Engineer","_"," _"," _","O","IL",380,"Current liabilities / Trade and other payables from exchange transactions","_","_"," _ "," _ ","_","_",200,"Cash Payments by Type / Contracted Services",450,"Cash Payments by Type / Contracted Services"," _ "," _ "," _ "," _ ",null,361,"Trade and other payables / Trade and other payables from exchange transactions",361,"Trade and other payables / Trade and other payables from exchange transactions",null,null,null," _ "," _ "," _ "," _ "," _ "," _ "," _ "," _ "," _ "," _ "," _ ",null," _ "," _ "," _ "," _ "," _ ",null," _ "," _ "," _ "," _ ",null,4,41,"Town Planning, Building Regulations and Enforcement, and City Engineer","Planning and Development",null,null,0,0,0,0,0,690000,805000,920000,0,"_","_","_","_"]
["O0025-15/IL65531/F0041/X055/R0230/001/CONTRA","O0025-15/IL65531/F0041/X055/R0230/001/CONTRA",123248,0,"Liabilities:Current Liabilities:Trade and Other Payable Exchange Transactions:Payables and Accruals : Contractors:Withdrawals"," _"," _"," _ "," _ "," _ "," _ ",1200,"Finance and administration",1210,"Property Services","_"," _"," _","O","IL",380,"Current liabilities / Trade and other payables from exchange transactions","_","_"," _ "," _ ","_","_",200,"Cash Payments by Type / Contracted Services",450,"Cash Payments by Type / Contracted Services"," _ "," _ "," _ "," _ ",null,361,"Trade and other payables / Trade and other payables from exchange transactions",361,"Trade and other payables / Trade and other payables from exchange transactions",null,null,null," _ "," _ "," _ "," _ "," _ "," _ "," _ "," _ "," _ "," _ "," _ ",null," _ "," _ "," _ "," _ "," _ ",null," _ "," _ "," _ "," _ ",null,3,36,"Property Services","Finance & Administration",null,null,0,0,0,0,0,0,0,0,0,"_","_","_","_"]
["O0025-14/IL65531/F0041/X055/R0043/001/CONTRA","O0025-14/IL65531/F0041/X055/R0043/001/CONTRA",123252,0,"Liabilities:Current Liabilities:Trade and Other Payable Exchange Transactions:Payables and Accruals : Contractors:Withdrawals"," _"," _"," _ "," _ "," _ "," _ ",1200,"Finance and administration",1210,"Property Services","_"," _"," _","O","IL",380,"Current liabilities / Trade and other payables from exchange transactions","_","_"," _ "," _ ","_","_",200,"Cash Payments by Type / Contracted Services",450,"Cash Payments by Type / Contracted Services"," _ "," _ "," _ "," _ ",null,361,"Trade and other payables / Trade and other payables from exchange transactions",361,"Trade and other payables / Trade and other payables from exchange transactions",null,null,null," _ "," _ "," _ "," _ "," _ "," _ "," _ "," _ "," _ "," _ "," _ ",null," _ "," _ "," _ "," _ "," _ ",null," _ "," _ "," _ "," _ ",null,3,36,"Property Services","Finance & Administration",null,null,0,0,0,0,0,0,0,0,0,"_","_","_","_"]
["O0025-9/IL65531/F0041/X101/R0416/001/CONTRA","O0025-9/IL65531/F0041/X101/R0416/001/CONTRA",122896,0,"Liabilities:Current Liabilities:Trade and Other Payable Exchange Transactions:Payables and Accruals : Contractors:Withdrawals"," _"," _"," _ "," _ "," _ "," _ ",3100,"Planning and development",3107,"Town Planning, Building Regulations and Enforcement, and City Engineer","_"," _"," _","O","IL",380,"Current liabilities / Trade and other payables from exchange transactions","_","_"," _ "," _ ","_","_",200,"Cash Payments by Type / Contracted Services",450,"Cash Payments by Type / Contracted Services"," _ "," _ "," _ "," _ ",null,361,"Trade and other payables / Trade and other payables from exchange transactions",361,"Trade and other payables / Trade and other payables from exchange transactions",null,null,null," _ "," _ "," _ "," _ "," _ "," _ "," _ "," _ "," _ "," _ "," _ ",null," _ "," _ "," _ "," _ "," _ ",null," _ "," _ "," _ "," _ ",null,4,41,"Town Planning, Building Regulations and Enforcement, and City Engineer","Planning and Development",null,null,0,0,0,0,0,805000,862500,920000,0,"_","_","_","_"]
["O0025-2/IL65531/F0041/X101/R0025/001/CONTRA","O0025-2/IL65531/F0041/X101/R0025/001/CONTRA",122864,0,"Liabilities:Current Liabilities:Trade and Other Payable Exchange Transactions:Payables and Accruals : Contractors:Withdrawals"," _"," _"," _ "," _ "," _ "," _ ",3100,"Planning and development",3107,"Town Planning, Building Regulations and Enforcement, and City Engineer","_"," _"," _","O","IL",380,"Current liabilities / Trade and other payables from exchange transactions","_","_"," _ "," _ ","_","_",200,"Cash Payments by Type / Contracted Services",450,"Cash Payments by Type / Contracted Services"," _ "," _ "," _ "," _ ",null,361,"Trade and other payables / Trade and other payables from exchange transactions",361,"Trade and other payables / Trade and other payables from exchange transactions",null,null,null," _ "," _ "," _ "," _ "," _ "," _ "," _ "," _ "," _ "," _ "," _ ",null," _ "," _ "," _ "," _ "," _ ",null," _ "," _ "," _ "," _ ",null,4,41,"Town Planning, Building Regulations and Enforcement, and City Engineer","Planning and Development",null,null,0,0,0,0,0,690000,805000,920000,0,"_","_","_","_"]
["O0025-19/IL65531/F0041/X101/R0230/001/CONTRA","O0025-19/IL65531/F0041/X101/R0230/001/CONTRA",123428,0,"Liabilities:Current Liabilities:Trade and Other Payable Exchange Transactions:Payables and Accruals : Contractors:Withdrawals"," _"," _"," _ "," _ "," _ "," _ ",3100,"Planning and development",3107,"Town Planning, Building Regulations and Enforcement, and City Engineer","_"," _"," _","O","IL",380,"Current liabilities / Trade and other payables from exchange transactions","_","_"," _ "," _ ","_","_",200,"Cash Payments by Type / Contracted Services",450,"Cash Payments by Type / Contracted Services"," _ "," _ "," _ "," _ ",null,361,"Trade and other payables / Trade and other payables from exchange transactions",361,"Trade and other payables / Trade and other payables from exchange transactions",null,null,null," _ "," _ "," _ "," _ "," _ "," _ "," _ "," _ "," _ "," _ "," _ ",null," _ "," _ "," _ "," _ "," _ ",null," _ "," _ "," _ "," _ ",null,4,41,"Town Planning, Building Regulations and Enforcement, and City Engineer","Planning and Development",null,null,0,0,0,0,0,0,0,0,0,"_","_","_","_"]
["O0025-20/IL65531/F0041/X101/R0021/001/CONTRA","O0025-20/IL65531/F0041/X101/R0021/001/CONTRA",123288,0,"Liabilities:Current Liabilities:Trade and Other Payable Exchange Transactions:Payables and Accruals : Contractors:Withdrawals"," _"," _"," _ "," _ "," _ "," _ ",3100,"Planning and development",3107,"Town Planning, Building Regulations and Enforcement, and City Engineer","_"," _"," _","O","IL",380,"Current liabilities / Trade and other payables from exchange transactions","_","_"," _ "," _ ","_","_",200,"Cash Payments by Type / Contracted Services",450,"Cash Payments by Type / Contracted Services"," _ "," _ "," _ "," _ ",null,361,"Trade and other payables / Trade and other payables from exchange transactions",361,"Trade and other payables / Trade and other payables from exchange transactions",null,null,null," _ "," _ "," _ "," _ "," _ "," _ "," _ "," _ "," _ "," _ "," _ ",null," _ "," _ "," _ "," _ "," _ ",null," _ "," _ "," _ "," _ ",null,4,41,"Town Planning, Building Regulations and Enforcement, and City Engineer","Planning and Development",null,null,0,0,0,0,0,345000,460000,575000,0,"_","_","_","_"]
["O0025-16/IL65531/F0041/X101/R0041/001/CONTRA","O0025-16/IL65531/F0041/X101/R0041/001/CONTRA",123280,0,"Liabilities:Current Liabilities:Trade and Other Payable Exchange Transactions:Payables and Accruals : Contractors:Withdrawals"," _"," _"," _ "," _ "," _ "," _ ",3100,"Planning and development",3107,"Town Planning, Building Regulations and Enforcement, and City Engineer","_"," _"," _","O","IL",380,"Current liabilities / Trade and other payables from exchange transactions","_","_"," _ "," _ ","_","_",200,"Cash Payments by Type / Contracted Services",450,"Cash Payments by Type / Contracted Services"," _ "," _ "," _ "," _ ",null,361,"Trade and other payables / Trade and other payables from exchange transactions",361,"Trade and other payables / Trade and other payables from exchange transactions",null,null,null," _ "," _ "," _ "," _ "," _ "," _ "," _ "," _ "," _ "," _ "," _ ",null," _ "," _ "," _ "," _ "," _ ",null," _ "," _ "," _ "," _ ",null,4,41,"Town Planning, Building Regulations and Enforcement, and City Engineer","Planning and Development",null,null,0,0,0,0,0,575000,690000,805000,0,"_","_","_","_"]
["O0025-15/IL65531/F0041/X099/R0230/001/CONTRA","O0025-15/IL65531/F0041/X099/R0230/001/CONTRA",121411,0,"Liabilities:Current Liabilities:Trade and Other Payable Exchange Transactions:Payables and Accruals : Contractors:Withdrawals"," _"," _"," _ "," _ "," _ "," _ ",3100,"Planning and development",3108,"Project Management Unit","_"," _"," _","O","IL",380,"Current liabilities / Trade and other payables from exchange transactions","_","_"," _ "," _ ","_","_",200,"Cash Payments by Type / Contracted Services",450,"Cash Payments by Type / Contracted Services"," _ "," _ "," _ "," _ ",null,361,"Trade and other payables / Trade and other payables from exchange transactions",361,"Trade and other payables / Trade and other payables from exchange transactions",null,null,null," _ "," _ "," _ "," _ "," _ "," _ "," _ "," _ "," _ "," _ "," _ ",null," _ "," _ "," _ "," _ "," _ ",null," _ "," _ "," _ "," _ ",null,4,44,"Project Management Unit","Planning and Development",null,null,0,0,0,0,0,0,0,0,0,"_","_","_","_"]
["O0025-18/IL65531/F0041/X101/R0041/001/CONTRA","O0025-18/IL65531/F0041/X101/R0041/001/CONTRA",123284,0,"Liabilities:Current Liabilities:Trade and Other Payable Exchange Transactions:Payables and Accruals : Contractors:Withdrawals"," _"," _"," _ "," _ "," _ "," _ ",3100,"Planning and development",3107,"Town Planning, Building Regulations and Enforcement, and City Engineer","_"," _"," _","O","IL",380,"Current liabilities / Trade and other payables from exchange transactions","_","_"," _ "," _ ","_","_",200,"Cash Payments by Type / Contracted Services",450,"Cash Payments by Type / Contracted Services"," _ "," _ "," _ "," _ ",null,361,"Trade and other payables / Trade and other payables from exchange transactions",361,"Trade and other payables / Trade and other payables from exchange transactions",null,null,null," _ "," _ "," _ "," _ "," _ "," _ "," _ "," _ "," _ "," _ "," _ ",null," _ "," _ "," _ "," _ "," _ ",null," _ "," _ "," _ "," _ ",null,4,41,"Town Planning, Building Regulations and Enforcement, and City Engineer","Planning and Development",null,null,0,0,0,0,0,575000,690000,805000,0,"_","_","_","_"]
["O0025-22/IL65531/F0041/X101/R0230/001/CONTRA","O0025-22/IL65531/F0041/X101/R0230/001/CONTRA",123296,0,"Liabilities:Current Liabilities:Trade and Other Payable Exchange Transactions:Payables and Accruals : Contractors:Withdrawals"," _"," _"," _ "," _ "," _ "," _ ",3100,"Planning and development",3107,"Town Planning, Building Regulations and Enforcement, and City Engineer","_"," _"," _","O","IL",380,"Current liabilities / Trade and other payables from exchange transactions","_","_"," _ "," _ ","_","_",200,"Cash Payments by Type / Contracted Services",450,"Cash Payments by Type / Contracted Services"," _ "," _ "," _ "," _ ",null,361,"Trade and other payables / Trade and other payables from exchange transactions",361,"Trade and other payables / Trade and other payables from exchange transactions",null,null,null," _ "," _ "," _ "," _ "," _ "," _ "," _ "," _ "," _ "," _ "," _ ",null," _ "," _ "," _ "," _ "," _ ",null," _ "," _ "," _ "," _ ",null,4,41,"Town Planning, Building Regulations and Enforcement, and City Engineer","Planning and Development",null,null,0,0,0,0,0,575000,690000,805000,0,"_","_","_","_"]
["O0025-22/IL65531/F0041/X101/R0041/001/CONTRA","O0025-22/IL65531/F0041/X101/R0041/001/CONTRA",123292,0,"Liabilities:Current Liabilities:Trade and Other Payable Exchange Transactions:Payables and Accruals : Contractors:Withdrawals"," _"," _"," _ "," _ "," _ "," _ ",3100,"Planning and development",3107,"Town Planning, Building Regulations and Enforcement, and City Engineer","_"," _"," _","O","IL",380,"Current liabilities / Trade and other payables from exchange transactions","_","_"," _ "," _ ","_","_",200,"Cash Payments by Type / Contracted Services",450,"Cash Payments by Type / Contracted Services"," _ "," _ "," _ "," _ ",null,361,"Trade and other payables / Trade and other payables from exchange transactions",361,"Trade and other payables / Trade and other payables from exchange transactions",null,null,null," _ "," _ "," _ "," _ "," _ "," _ "," _ "," _ "," _ "," _ "," _ ",null," _ "," _ "," _ "," _ "," _ ",null," _ "," _ "," _ "," _ ",null,4,41,"Town Planning, Building Regulations and Enforcement, and City Engineer","Planning and Development",null,null,0,0,0,0,0,345000,460000,575000,0,"_","_","_","_"]
["O0025-21/IL65531/F0041/X101/R0040/001/CONTRA","O0025-21/IL65531/F0041/X101/R0040/001/CONTRA",123628,0,"Liabilities:Current Liabilities:Trade and Other Payable Exchange Transactions:Payables and Accruals : Contractors:Withdrawals"," _"," _"," _ "," _ "," _ "," _ ",3100,"Planning and development",3107,"Town Planning, Building Regulations and Enforcement, and City Engineer","_"," _"," _","O","IL",380,"Current liabilities / Trade and other payables from exchange transactions","_","_"," _ "," _ ","_","_",200,"Cash Payments by Type / Contracted Services",450,"Cash Payments by Type / Contracted Services"," _ "," _ "," _ "," _ ",null,361,"Trade and other payables / Trade and other payables from exchange transactions",361,"Trade and other payables / Trade and other payables from exchange transactions",null,null,null," _ "," _ "," _ "," _ "," _ "," _ "," _ "," _ "," _ "," _ "," _ ",null," _ "," _ "," _ "," _ "," _ ",null," _ "," _ "," _ "," _ ",null,4,41,"Town Planning, Building Regulations and Enforcement, and City Engineer","Planning and Development",null,null,0,0,0,0,0,345000,460000,575000,0,"_","_","_","_"]
["O0025-20/IL65531/F0041/X101/R0032/001/CONTRA","O0025-20/IL65531/F0041/X101/R0032/001/CONTRA",123624,0,"Liabilities:Current Liabilities:Trade and Other Payable Exchange Transactions:Payables and Accruals : Contractors:Withdrawals"," _"," _"," _ "," _ "," _ "," _ ",3100,"Planning and development",3107,"Town Planning, Building Regulations and Enforcement, and City Engineer","_"," _"," _","O","IL",380,"Current liabilities / Trade and other payables from exchange transactions","_","_"," _ "," _ ","_","_",200,"Cash Payments by Type / Contracted Services",450,"Cash Payments by Type / Contracted Services"," _ "," _ "," _ "," _ ",null,361,"Trade and other payables / Trade and other payables from exchange transactions",361,"Trade and other payables / Trade and other payables from exchange transactions",null,null,null," _ "," _ "," _ "," _ "," _ "," _ "," _ "," _ "," _ "," _ "," _ ",null," _ "," _ "," _ "," _ "," _ ",null," _ "," _ "," _ "," _ ",null,4,41,"Town Planning, Building Regulations and Enforcement, and City Engineer","Planning and Development",null,null,0,0,0,0,0,805000,920000,1035000,0,"_","_","_","_"]
["O0025-4/IL65531/F0041/X101/R0230/001/CONTRA","O0025-4/IL65531/F0041/X101/R0230/001/CONTRA",122872,0,"Liabilities:Current Liabilities:Trade and Other Payable Exchange Transactions:Payables and Accruals : Contractors:Withdrawals"," _"," _"," _ "," _ "," _ "," _ ",3100,"Planning and development",3107,"Town Planning, Building Regulations and Enforcement, and City Engineer","_"," _"," _","O","IL",380,"Current liabilities / Trade and other payables from exchange transactions","_","_"," _ "," _ ","_","_",200,"Cash Payments by Type / Contracted Services",450,"Cash Payments by Type / Contracted Services"," _ "," _ "," _ "," _ ",null,361,"Trade and other payables / Trade and other payables from exchange transactions",361,"Trade and other payables / Trade and other payables from exchange transactions",null,null,null," _ "," _ "," _ "," _ "," _ "," _ "," _ "," _ "," _ "," _ "," _ ",null," _ "," _ "," _ "," _ "," _ ",null," _ "," _ "," _ "," _ ",null,4,41,"Town Planning, Building Regulations and Enforcement, and City Engineer","Planning and Development",null,null,0,0,0,0,0,805000,920000,1035000,0,"_","_","_","_"]
["O0025-3/IL65531/F0041/X101/R0230/001/CONTRA","O0025-3/IL65531/F0041/X101/R0230/001/CONTRA",122868,0,"Liabilities:Current Liabilities:Trade and Other Payable Exchange Transactions:Payables and Accruals : Contractors:Withdrawals"," _"," _"," _ "," _ "," _ "," _ ",3100,"Planning and development",3107,"Town Planning, Building Regulations and Enforcement, and City Engineer","_"," _"," _","O","IL",380,"Current liabilities / Trade and other payables from exchange transactions","_","_"," _ "," _ ","_","_",200,"Cash Payments by Type / Contracted Services",450,"Cash Payments by Type / Contracted Services"," _ "," _ "," _ "," _ ",null,361,"Trade and other payables / Trade and other payables from exchange transactions",361,"Trade and other payables / Trade and other payables from exchange transactions",null,null,null," _ "," _ "," _ "," _ "," _ "," _ "," _ "," _ "," _ "," _ "," _ ",null," _ "," _ "," _ "," _ "," _ ",null," _ "," _ "," _ "," _ ",null,4,41,"Town Planning, Building Regulations and Enforcement, and City Engineer","Planning and Development",null,null,0,0,0,0,0,345000,460000,575000,0,"_","_","_","_"]
["O0025-5/IL65531/F0041/X101/R0230/001/CONTRA","O0025-5/IL65531/F0041/X101/R0230/001/CONTRA",122876,0,"Liabilities:Current Liabilities:Trade and Other Payable Exchange Transactions:Payables and Accruals : Contractors:Withdrawals"," _"," _"," _ "," _ "," _ "," _ ",3100,"Planning and development",3107,"Town Planning, Building Regulations and Enforcement, and City Engineer","_"," _"," _","O","IL",380,"Current liabilities / Trade and other payables from exchange transactions","_","_"," _ "," _ ","_","_",200,"Cash Payments by Type / Contracted Services",450,"Cash Payments by Type / Contracted Services"," _ "," _ "," _ "," _ ",null,361,"Trade and other payables / Trade and other payables from exchange transactions",361,"Trade and other payables / Trade and other payables from exchange transactions",null,null,null," _ "," _ "," _ "," _ "," _ "," _ "," _ "," _ "," _ "," _ "," _ ",null," _ "," _ "," _ "," _ "," _ ",null," _ "," _ "," _ "," _ ",null,4,41,"Town Planning, Building Regulations and Enforcement, and City Engineer","Planning and Development",null,null,0,0,0,0,0,345000,460000,575000,0,"_","_","_","_"]
["O0025-7/IL65531/F0041/X101/R0230/001/CONTRA","O0025-7/IL65531/F0041/X101/R0230/001/CONTRA",122884,0,"Liabilities:Current Liabilities:Trade and Other Payable Exchange Transactions:Payables and Accruals : Contractors:Withdrawals"," _"," _"," _ "," _ "," _ "," _ ",3100,"Planning and development",3107,"Town Planning, Building Regulations and Enforcement, and City Engineer","_"," _"," _","O","IL",380,"Current liabilities / Trade and other payables from exchange transactions","_","_"," _ "," _ ","_","_",200,"Cash Payments by Type / Contracted Services",450,"Cash Payments by Type / Contracted Services"," _ "," _ "," _ "," _ ",null,361,"Trade and other payables / Trade and other payables from exchange transactions",361,"Trade and other payables / Trade and other payables from exchange transactions",null,null,null," _ "," _ "," _ "," _ "," _ "," _ "," _ "," _ "," _ "," _ "," _ ",null," _ "," _ "," _ "," _ "," _ ",null," _ "," _ "," _ "," _ ",null,4,41,"Town Planning, Building Regulations and Enforcement, and City Engineer","Planning and Development",null,null,0,0,0,0,0,575000,690000,805000,0,"_","_","_","_"]
["O0025-6/IL65531/F0041/X101/R0230/001/CONTRA","O0025-6/IL65531/F0041/X101/R0230/001/CONTRA",122880,0,"Liabilities:Current Liabilities:Trade and Other Payable Exchange Transactions:Payables and Accruals : Contractors:Withdrawals"," _"," _"," _ "," _ "," _ "," _ ",3100,"Planning and development",3107,"Town Planning, Building Regulations and Enforcement, and City Engineer","_"," _"," _","O","IL",380,"Current liabilities / Trade and other payables from exchange transactions","_","_"," _ "," _ ","_","_",200,"Cash Payments by Type / Contracted Services",450,"Cash Payments by Type / Contracted Services"," _ "," _ "," _ "," _ ",null,361,"Trade and other payables / Trade and other payables from exchange transactions",361,"Trade and other payables / Trade and other payables from exchange transactions",null,null,null," _ "," _ "," _ "," _ "," _ "," _ "," _ "," _ "," _ "," _ "," _ ",null," _ "," _ "," _ "," _ "," _ ",null," _ "," _ "," _ "," _ ",null,4,41,"Town Planning, Building Regulations and Enforcement, and City Engineer","Planning and Development",null,null,0,0,0,0,0,575000,690000,805000,0,"_","_","_","_"]
["O0025-8/IL65531/F0041/X101/R0230/001/CONTRA","O0025-8/IL65531/F0041/X101/R0230/001/CONTRA",122888,0,"Liabilities:Current Liabilities:Trade and Other Payable Exchange Transactions:Payables and Accruals : Contractors:Withdrawals"," _"," _"," _ "," _ "," _ "," _ ",3100,"Planning and development",3107,"Town Planning, Building Regulations and Enforcement, and City Engineer","_"," _"," _","O","IL",380,"Current liabilities / Trade and other payables from exchange transactions","_","_"," _ "," _ ","_","_",200,"Cash Payments by Type / Contracted Services",450,"Cash Payments by Type / Contracted Services"," _ "," _ "," _ "," _ ",null,361,"Trade and other payables / Trade and other payables from exchange transactions",361,"Trade and other payables / Trade and other payables from exchange transactions",null,null,null," _ "," _ "," _ "," _ "," _ "," _ "," _ "," _ "," _ "," _ "," _ ",null," _ "," _ "," _ "," _ "," _ ",null," _ "," _ "," _ "," _ ",null,4,41,"Town Planning, Building Regulations and Enforcement, and City Engineer","Planning and Development",null,null,0,0,0,0,0,805000,920000,977500,0,"_","_","_","_"]
["O0025-14/IL65531/F1182/X101/R0042/001/CONTRA","O0025-14/IL65531/F1182/X101/R0042/001/CONTRA",123230,0,"Liabilities:Current Liabilities:Trade and Other Payable Exchange Transactions:Payables and Accruals : Contractors:Withdrawals"," _"," _"," _ "," _ "," _ "," _ ",3100,"Planning and development",3107,"Town Planning, Building Regulations and Enforcement, and City Engineer","_"," _"," _","O","IL",380,"Current liabilities / Trade and other payables from exchange transactions","_","_"," _ "," _ ","_","_",200,"Cash Payments by Type / Contracted Services",450,"Cash Payments by Type / Contracted Services"," _ "," _ "," _ "," _ ",null,361,"Trade and other payables / Trade and other payables from exchange transactions",361,"Trade and other payables / Trade and other payables from exchange transactions",null,null,null," _ "," _ "," _ "," _ "," _ "," _ "," _ "," _ "," _ "," _ "," _ ",null," _ "," _ "," _ "," _ "," _ ",null," _ "," _ "," _ "," _ ",null,4,41,"Town Planning, Building Regulations and Enforcement, and City Engineer","Planning and Development",null,null,0,0,0,0,0,0,0,0,0,"_","_","_","_"]
["O0025-14/IL65531/F1182/X101/R0043/001/CONTRA","O0025-14/IL65531/F1182/X101/R0043/001/CONTRA",123234,0,"Liabilities:Current Liabilities:Trade and Other Payable Exchange Transactions:Payables and Accruals : Contractors:Withdrawals"," _"," _"," _ "," _ "," _ "," _ ",3100,"Planning and development",3107,"Town Planning, Building Regulations and Enforcement, and City Engineer","_"," _"," _","O","IL",380,"Current liabilities / Trade and other payables from exchange transactions","_","_"," _ "," _ ","_","_",200,"Cash Payments by Type / Contracted Services",450,"Cash Payments by Type / Contracted Services"," _ "," _ "," _ "," _ ",null,361,"Trade and other payables / Trade and other payables from exchange transactions",361,"Trade and other payables / Trade and other payables from exchange transactions",null,null,null," _ "," _ "," _ "," _ "," _ "," _ "," _ "," _ "," _ "," _ "," _ ",null," _ "," _ "," _ "," _ "," _ ",null," _ "," _ "," _ "," _ ",null,4,41,"Town Planning, Building Regulations and Enforcement, and City Engineer","Planning and Development",null,null,0,0,0,0,0,0,0,0,0,"_","_","_","_"]
["O0025-8/IE00853/F0041/X101/R0230/001/6155","O0025-8/IE00853/F0041/X101/R0230/001/6155",69049,4294,"Expenditure:Contracted Services:Consultants and Professional Services:Infrastructure and Planning:Geoinformatic Services",3800,"Expenditure / Contracted services",2702,"Expenditure / Contracted services",2702,"Contracted Services ",3100,"Planning and development",3107,"Town Planning, Building Regulations and Enforcement, and City Engineer","_"," _"," _","O","IE"," _ "," _ "," _ "," _ "," _ "," _ ","_","_"," _ "," _ "," _ "," _ "," _ "," _ "," _ "," _ ",null," _ "," _ "," _ "," _ ",null,null,null," _ "," _ "," _ "," _ "," _ "," _ "," _ "," _ "," _ "," _ "," _ ",null," _ "," _ "," _ "," _ "," _ ",null," _ "," _ "," _ "," _ ",null,4,41,"Town Planning, Building Regulations and Enforcement, and City Engineer","Planning and Development",null,null,0,0,0,600000,50000,700000,800000,850000,0,"_","_","_","_"]
["O0025-11/IA10375/F0041/X101/R0230/001/CONTRA","O0025-11/IA10375/F0041/X101/R0230/001/CONTRA",122934,0,"Assets:Current Assets:VAT Receivable:Input Tax Accrual:Recognised"," _"," _"," _ "," _ "," _ "," _ ",3100,"Planning and development",3107,"Town Planning, Building Regulations and Enforcement, and City Engineer","_"," _"," _","O","IA",170,"Current assets / VAT",170,"VAT"," _ "," _ ","_","_"," _ "," _ "," _ "," _ "," _ "," _ "," _ "," _ ",null," _ "," _ "," _ "," _ ",null,null,null," _ "," _ "," _ "," _ "," _ "," _ "," _ "," _ "," _ "," _ "," _ ",null," _ "," _ "," _ "," _ "," _ ",null," _ "," _ "," _ "," _ ",null,4,41,"Town Planning, Building Regulations and Enforcement, and City Engineer","Planning and Development",null,null,0,0,0,0,0,45000,60000,75000,0,"_","_","_","_"]
["O0025-10/IA10375/F0041/X101/R0022/001/CONTRA","O0025-10/IA10375/F0041/X101/R0022/001/CONTRA",122930,0,"Assets:Current Assets:VAT Receivable:Input Tax Accrual:Recognised"," _"," _"," _ "," _ "," _ "," _ ",3100,"Planning and development",3107,"Town Planning, Building Regulations and Enforcement, and City Engineer","_"," _"," _","O","IA",170,"Current assets / VAT",170,"VAT"," _ "," _ ","_","_"," _ "," _ "," _ "," _ "," _ "," _ "," _ "," _ ",null," _ "," _ "," _ "," _ ",null,null,null," _ "," _ "," _ "," _ "," _ "," _ "," _ "," _ "," _ "," _ "," _ ",null," _ "," _ "," _ "," _ "," _ ",null," _ "," _ "," _ "," _ ",null,4,41,"Town Planning, Building Regulations and Enforcement, and City Engineer","Planning and Development",null,null,0,0,0,0,0,45000,60000,75000,0,"_","_","_","_"]
["O0025-1/IA10375/F0041/X101/R0230/001/CONTRA","O0025-1/IA10375/F0041/X101/R0230/001/CONTRA",121043,0,"Assets:Current Assets:VAT Receivable:Input Tax Accrual:Recognised"," _"," _"," _ "," _ "," _ "," _ ",3100,"Planning and development",3107,"Town Planning, Building Regulations and Enforcement, and City Engineer","_"," _"," _","O","IA",170,"Current assets / VAT",170,"VAT"," _ "," _ ","_","_"," _ "," _ "," _ "," _ "," _ "," _ "," _ "," _ ",null," _ "," _ "," _ "," _ ",null,null,null," _ "," _ "," _ "," _ "," _ "," _ "," _ "," _ "," _ "," _ "," _ ",null," _ "," _ "," _ "," _ "," _ ",null," _ "," _ "," _ "," _ ",null,4,41,"Town Planning, Building Regulations and Enforcement, and City Engineer","Planning and Development",null,null,0,0,0,0,0,0,0,0,0,"_","_","_","_"]
["O0025-14/IA10375/F0041/X101/R0043/001/CONTRA","O0025-14/IA10375/F0041/X101/R0043/001/CONTRA",123224,0,"Assets:Current Assets:VAT Receivable:Input Tax Accrual:Recognised"," _"," _"," _ "," _ "," _ "," _ ",3100,"Planning and development",3107,"Town Planning, Building Regulations and Enforcement, and City Engineer","_"," _"," _","O","IA",170,"Current assets / VAT",170,"VAT"," _ "," _ ","_","_"," _ "," _ "," _ "," _ "," _ "," _ "," _ "," _ ",null," _ "," _ "," _ "," _ ",null,null,null," _ "," _ "," _ "," _ "," _ "," _ "," _ "," _ "," _ "," _ "," _ ",null," _ "," _ "," _ "," _ "," _ ",null," _ "," _ "," _ "," _ ",null,4,41,"Town Planning, Building Regulations and Enforcement, and City Engineer","Planning and Development",null,null,0,0,0,0,0,0,0,0,0,"_","_","_","_"]
["O0025-14/IA10375/F0041/X101/R0042/001/CONTRA","O0025-14/IA10375/F0041/X101/R0042/001/CONTRA",123220,0,"Assets:Current Assets:VAT Receivable:Input Tax Accrual:Recognised"," _"," _"," _ "," _ "," _ "," _ ",3100,"Planning and development",3107,"Town Planning, Building Regulations and Enforcement, and City Engineer","_"," _"," _","O","IA",170,"Current assets / VAT",170,"VAT"," _ "," _ ","_","_"," _ "," _ "," _ "," _ "," _ "," _ "," _ "," _ ",null," _ "," _ "," _ "," _ ",null,null,null," _ "," _ "," _ "," _ "," _ "," _ "," _ "," _ "," _ "," _ "," _ ",null," _ "," _ "," _ "," _ "," _ ",null," _ "," _ "," _ "," _ ",null,4,41,"Town Planning, Building Regulations and Enforcement, and City Engineer","Planning and Development",null,null,0,0,0,0,0,0,0,0,0,"_","_","_","_"]
["O0025-12/IA10375/F0041/X101/R0230/001/CONTRA","O0025-12/IA10375/F0041/X101/R0230/001/CONTRA",122938,0,"Assets:Current Assets:VAT Receivable:Input Tax Accrual:Recognised"," _"," _"," _ "," _ "," _ "," _ ",3100,"Planning and development",3107,"Town Planning, Building Regulations and Enforcement, and City Engineer","_"," _"," _","O","IA",170,"Current assets / VAT",170,"VAT"," _ "," _ ","_","_"," _ "," _ "," _ "," _ "," _ "," _ "," _ "," _ ",null," _ "," _ "," _ "," _ ",null,null,null," _ "," _ "," _ "," _ "," _ "," _ "," _ "," _ "," _ "," _ "," _ ",null," _ "," _ "," _ "," _ "," _ ",null," _ "," _ "," _ "," _ ",null,4,41,"Town Planning, Building Regulations and Enforcement, and City Engineer","Planning and Development",null,null,0,0,0,0,0,90000,105000,120000,0,"_","_","_","_"]
["O0025-9/IA10375/F0041/X101/R0416/001/CONTRA","O0025-9/IA10375/F0041/X101/R0416/001/CONTRA",122894,0,"Assets:Current Assets:VAT Receivable:Input Tax Accrual:Recognised"," _"," _"," _ "," _ "," _ "," _ ",3100,"Planning and development",3107,"Town Planning, Building Regulations and Enforcement, and City Engineer","_"," _"," _","O","IA",170,"Current assets / VAT",170,"VAT"," _ "," _ ","_","_"," _ "," _ "," _ "," _ "," _ "," _ "," _ "," _ ",null," _ "," _ "," _ "," _ ",null,null,null," _ "," _ "," _ "," _ "," _ "," _ "," _ "," _ "," _ "," _ "," _ ",null," _ "," _ "," _ "," _ "," _ ",null," _ "," _ "," _ "," _ ",null,4,41,"Town Planning, Building Regulations and Enforcement, and City Engineer","Planning and Development",null,null,0,0,0,0,0,105000,112500,120000,0,"_","_","_","_"]
["O0025-8/IA10375/F0041/X101/R0230/001/CONTRA","O0025-8/IA10375/F0041/X101/R0230/001/CONTRA",122886,0,"Assets:Current Assets:VAT Receivable:Input Tax Accrual:Recognised"," _"," _"," _ "," _ "," _ "," _ ",3100,"Planning and development",3107,"Town Planning, Building Regulations and Enforcement, and City Engineer","_"," _"," _","O","IA",170,"Current assets / VAT",170,"VAT"," _ "," _ ","_","_"," _ "," _ "," _ "," _ "," _ "," _ "," _ "," _ ",null," _ "," _ "," _ "," _ ",null,null,null," _ "," _ "," _ "," _ "," _ "," _ "," _ "," _ "," _ "," _ "," _ ",null," _ "," _ "," _ "," _ "," _ ",null," _ "," _ "," _ "," _ ",null,4,41,"Town Planning, Building Regulations and Enforcement, and City Engineer","Planning and Development",null,null,0,0,0,0,0,105000,120000,127500,0,"_","_","_","_"]
["O0025-7/IA10375/F0041/X101/R0230/001/CONTRA","O0025-7/IA10375/F0041/X101/R0230/001/CONTRA",122882,0,"Assets:Current Assets:VAT Receivable:Input Tax Accrual:Recognised"," _"," _"," _ "," _ "," _ "," _ ",3100,"Planning and development",3107,"Town Planning, Building Regulations and Enforcement, and City Engineer","_"," _"," _","O","IA",170,"Current assets / VAT",170,"VAT"," _ "," _ ","_","_"," _ "," _ "," _ "," _ "," _ "," _ "," _ "," _ ",null," _ "," _ "," _ "," _ ",null,null,null," _ "," _ "," _ "," _ "," _ "," _ "," _ "," _ "," _ "," _ "," _ ",null," _ "," _ "," _ "," _ "," _ ",null," _ "," _ "," _ "," _ ",null,4,41,"Town Planning, Building Regulations and Enforcement, and City Engineer","Planning and Development",null,null,0,0,0,0,0,75000,90000,105000,0,"_","_","_","_"]
["O0025-6/IA10375/F0041/X101/R0230/001/CONTRA","O0025-6/IA10375/F0041/X101/R0230/001/CONTRA",122878,0,"Assets:Current Assets:VAT Receivable:Input Tax Accrual:Recognised"," _"," _"," _ "," _ "," _ "," _ ",3100,"Planning and development",3107,"Town Planning, Building Regulations and Enforcement, and City Engineer","_"," _"," _","O","IA",170,"Current assets / VAT",170,"VAT"," _ "," _ ","_","_"," _ "," _ "," _ "," _ "," _ "," _ "," _ "," _ ",null," _ "," _ "," _ "," _ ",null,null,null," _ "," _ "," _ "," _ "," _ "," _ "," _ "," _ "," _ "," _ "," _ ",null," _ "," _ "," _ "," _ "," _ ",null," _ "," _ "," _ "," _ ",null,4,41,"Town Planning, Building Regulations and Enforcement, and City Engineer","Planning and Development",null,null,0,0,0,0,0,75000,90000,105000,0,"_","_","_","_"]
["O0025-5/IA10375/F0041/X101/R0230/001/CONTRA","O0025-5/IA10375/F0041/X101/R0230/001/CONTRA",122874,0,"Assets:Current Assets:VAT Receivable:Input Tax Accrual:Recognised"," _"," _"," _ "," _ "," _ "," _ ",3100,"Planning and development",3107,"Town Planning, Building Regulations and Enforcement, and City Engineer","_"," _"," _","O","IA",170,"Current assets / VAT",170,"VAT"," _ "," _ ","_","_"," _ "," _ "," _ "," _ "," _ "," _ "," _ "," _ ",null," _ "," _ "," _ "," _ ",null,null,null," _ "," _ "," _ "," _ "," _ "," _ "," _ "," _ "," _ "," _ "," _ ",null," _ "," _ "," _ "," _ "," _ ",null," _ "," _ "," _ "," _ ",null,4,41,"Town Planning, Building Regulations and Enforcement, and City Engineer","Planning and Development",null,null,0,0,0,0,0,45000,60000,75000,0,"_","_","_","_"]
["O0025-4/IA10375/F0041/X101/R0230/001/CONTRA","O0025-4/IA10375/F0041/X101/R0230/001/CONTRA",122870,0,"Assets:Current Assets:VAT Receivable:Input Tax Accrual:Recognised"," _"," _"," _ "," _ "," _ "," _ ",3100,"Planning and development",3107,"Town Planning, Building Regulations and Enforcement, and City Engineer","_"," _"," _","O","IA",170,"Current assets / VAT",170,"VAT"," _ "," _ ","_","_"," _ "," _ "," _ "," _ "," _ "," _ "," _ "," _ ",null," _ "," _ "," _ "," _ ",null,null,null," _ "," _ "," _ "," _ "," _ "," _ "," _ "," _ "," _ "," _ "," _ ",null," _ "," _ "," _ "," _ "," _ ",null," _ "," _ "," _ "," _ ",null,4,41,"Town Planning, Building Regulations and Enforcement, and City Engineer","Planning and Development",null,null,0,0,0,0,0,105000,120000,135000,0,"_","_","_","_"]
["O0025-3/IA10375/F0041/X101/R0230/001/CONTRA","O0025-3/IA10375/F0041/X101/R0230/001/CONTRA",122866,0,"Assets:Current Assets:VAT Receivable:Input Tax Accrual:Recognised"," _"," _"," _ "," _ "," _ "," _ ",3100,"Planning and development",3107,"Town Planning, Building Regulations and Enforcement, and City Engineer","_"," _"," _","O","IA",170,"Current assets / VAT",170,"VAT"," _ "," _ ","_","_"," _ "," _ "," _ "," _ "," _ "," _ "," _ "," _ ",null," _ "," _ "," _ "," _ ",null,null,null," _ "," _ "," _ "," _ "," _ "," _ "," _ "," _ "," _ "," _ "," _ ",null," _ "," _ "," _ "," _ "," _ ",null," _ "," _ "," _ "," _ ",null,4,41,"Town Planning, Building Regulations and Enforcement, and City Engineer","Planning and Development",null,null,0,0,0,0,0,45000,60000,75000,0,"_","_","_","_"]
["O0025-22/IA10375/F0041/X101/R0230/001/CONTRA","O0025-22/IA10375/F0041/X101/R0230/001/CONTRA",123294,0,"Assets:Current Assets:VAT Receivable:Input Tax Accrual:Recognised"," _"," _"," _ "," _ "," _ "," _ ",3100,"Planning and development",3107,"Town Planning, Building Regulations and Enforcement, and City Engineer","_"," _"," _","O","IA",170,"Current assets / VAT",170,"VAT"," _ "," _ ","_","_"," _ "," _ "," _ "," _ "," _ "," _ "," _ "," _ ",null," _ "," _ "," _ "," _ ",null,null,null," _ "," _ "," _ "," _ "," _ "," _ "," _ "," _ "," _ "," _ "," _ ",null," _ "," _ "," _ "," _ "," _ ",null," _ "," _ "," _ "," _ ",null,4,41,"Town Planning, Building Regulations and Enforcement, and City Engineer","Planning and Development",null,null,0,0,0,0,0,75000,90000,105000,0,"_","_","_","_"]
["O0025-22/IA10375/F0041/X101/R0041/001/CONTRA","O0025-22/IA10375/F0041/X101/R0041/001/CONTRA",123290,0,"Assets:Current Assets:VAT Receivable:Input Tax Accrual:Recognised"," _"," _"," _ "," _ "," _ "," _ ",3100,"Planning and development",3107,"Town Planning, Building Regulations and Enforcement, and City Engineer","_"," _"," _","O","IA",170,"Current assets / VAT",170,"VAT"," _ "," _ ","_","_"," _ "," _ "," _ "," _ "," _ "," _ "," _ "," _ ",null," _ "," _ "," _ "," _ ",null,null,null," _ "," _ "," _ "," _ "," _ "," _ "," _ "," _ "," _ "," _ "," _ ",null," _ "," _ "," _ "," _ "," _ ",null," _ "," _ "," _ "," _ ",null,4,41,"Town Planning, Building Regulations and Enforcement, and City Engineer","Planning and Development",null,null,0,0,0,0,0,45000,60000,75000,0,"_","_","_","_"]
["O0025-21/IA10375/F0041/X101/R0040/001/CONTRA","O0025-21/IA10375/F0041/X101/R0040/001/CONTRA",123626,0,"Assets:Current Assets:VAT Receivable:Input Tax Accrual:Recognised"," _"," _"," _ "," _ "," _ "," _ ",3100,"Planning and development",3107,"Town Planning, Building Regulations and Enforcement, and City Engineer","_"," _"," _","O","IA",170,"Current assets / VAT",170,"VAT"," _ "," _ ","_","_"," _ "," _ "," _ "," _ "," _ "," _ "," _ "," _ ",null," _ "," _ "," _ "," _ ",null,null,null," _ "," _ "," _ "," _ "," _ "," _ "," _ "," _ "," _ "," _ "," _ ",null," _ "," _ "," _ "," _ "," _ ",null," _ "," _ "," _ "," _ ",null,4,41,"Town Planning, Building Regulations and Enforcement, and City Engineer","Planning and Development",null,null,0,0,0,0,0,45000,60000,75000,0,"_","_","_","_"]
["O0025-20/IA10375/F0041/X101/R0032/001/CONTRA","O0025-20/IA10375/F0041/X101/R0032/001/CONTRA",123622,0,"Assets:Current Assets:VAT Receivable:Input Tax Accrual:Recognised"," _"," _"," _ "," _ "," _ "," _ ",3100,"Planning and development",3107,"Town Planning, Building Regulations and Enforcement, and City Engineer","_"," _"," _","O","IA",170,"Current assets / VAT",170,"VAT"," _ "," _ ","_","_"," _ "," _ "," _ "," _ "," _ "," _ "," _ "," _ ",null," _ "," _ "," _ "," _ ",null,null,null," _ "," _ "," _ "," _ "," _ "," _ "," _ "," _ "," _ "," _ "," _ ",null," _ "," _ "," _ "," _ "," _ ",null," _ "," _ "," _ "," _ ",null,4,41,"Town Planning, Building Regulations and Enforcement, and City Engineer","Planning and Development",null,null,0,0,0,0,0,105000,120000,135000,0,"_","_","_","_"]
["O0025-20/IA10375/F0041/X101/R0021/001/CONTRA","O0025-20/IA10375/F0041/X101/R0021/001/CONTRA",123286,0,"Assets:Current Assets:VAT Receivable:Input Tax Accrual:Recognised"," _"," _"," _ "," _ "," _ "," _ ",3100,"Planning and development",3107,"Town Planning, Building Regulations and Enforcement, and City Engineer","_"," _"," _","O","IA",170,"Current assets / VAT",170,"VAT"," _ "," _ ","_","_"," _ "," _ "," _ "," _ "," _ "," _ "," _ "," _ ",null," _ "," _ "," _ "," _ ",null,null,null," _ "," _ "," _ "," _ "," _ "," _ "," _ "," _ "," _ "," _ "," _ ",null," _ "," _ "," _ "," _ "," _ ",null," _ "," _ "," _ "," _ ",null,4,41,"Town Planning, Building Regulations and Enforcement, and City Engineer","Planning and Development",null,null,0,0,0,0,0,45000,60000,75000,0,"_","_","_","_"]
["O0025-2/IA10375/F0041/X101/R0025/001/CONTRA","O0025-2/IA10375/F0041/X101/R0025/001/CONTRA",122862,0,"Assets:Current Assets:VAT Receivable:Input Tax Accrual:Recognised"," _"," _"," _ "," _ "," _ "," _ ",3100,"Planning and development",3107,"Town Planning, Building Regulations and Enforcement, and City Engineer","_"," _"," _","O","IA",170,"Current assets / VAT",170,"VAT"," _ "," _ ","_","_"," _ "," _ "," _ "," _ "," _ "," _ "," _ "," _ ",null," _ "," _ "," _ "," _ ",null,null,null," _ "," _ "," _ "," _ "," _ "," _ "," _ "," _ "," _ "," _ "," _ ",null," _ "," _ "," _ "," _ "," _ ",null," _ "," _ "," _ "," _ ",null,4,41,"Town Planning, Building Regulations and Enforcement, and City Engineer","Planning and Development",null,null,0,0,0,0,0,90000,105000,120000,0,"_","_","_","_"]
["O0025-19/IA10375/F0041/X101/R0230/001/CONTRA","O0025-19/IA10375/F0041/X101/R0230/001/CONTRA",123426,0,"Assets:Current Assets:VAT Receivable:Input Tax Accrual:Recognised"," _"," _"," _ "," _ "," _ "," _ ",3100,"Planning and development",3107,"Town Planning, Building Regulations and Enforcement, and City Engineer","_"," _"," _","O","IA",170,"Current assets / VAT",170,"VAT"," _ "," _ ","_","_"," _ "," _ "," _ "," _ "," _ "," _ "," _ "," _ ",null," _ "," _ "," _ "," _ ",null,null,null," _ "," _ "," _ "," _ "," _ "," _ "," _ "," _ "," _ "," _ "," _ ",null," _ "," _ "," _ "," _ "," _ ",null," _ "," _ "," _ "," _ ",null,4,41,"Town Planning, Building Regulations and Enforcement, and City Engineer","Planning and Development",null,null,0,0,0,0,0,0,0,0,0,"_","_","_","_"]
["O0025-18/IA10375/F0041/X101/R0041/001/CONTRA","O0025-18/IA10375/F0041/X101/R0041/001/CONTRA",123282,0,"Assets:Current Assets:VAT Receivable:Input Tax Accrual:Recognised"," _"," _"," _ "," _ "," _ "," _ ",3100,"Planning and development",3107,"Town Planning, Building Regulations and Enforcement, and City Engineer","_"," _"," _","O","IA",170,"Current assets / VAT",170,"VAT"," _ "," _ ","_","_"," _ "," _ "," _ "," _ "," _ "," _ "," _ "," _ ",null," _ "," _ "," _ "," _ ",null,null,null," _ "," _ "," _ "," _ "," _ "," _ "," _ "," _ "," _ "," _ "," _ ",null," _ "," _ "," _ "," _ "," _ ",null," _ "," _ "," _ "," _ ",null,4,41,"Town Planning, Building Regulations and Enforcement, and City Engineer","Planning and Development",null,null,0,0,0,0,0,75000,90000,105000,0,"_","_","_","_"]
["O0025-16/IA10375/F0041/X101/R0041/001/CONTRA","O0025-16/IA10375/F0041/X101/R0041/001/CONTRA",123278,0,"Assets:Current Assets:VAT Receivable:Input Tax Accrual:Recognised"," _"," _"," _ "," _ "," _ "," _ ",3100,"Planning and development",3107,"Town Planning, Building Regulations and Enforcement, and City Engineer","_"," _"," _","O","IA",170,"Current assets / VAT",170,"VAT"," _ "," _ ","_","_"," _ "," _ "," _ "," _ "," _ "," _ "," _ "," _ ",null," _ "," _ "," _ "," _ ",null,null,null," _ "," _ "," _ "," _ "," _ "," _ "," _ "," _ "," _ "," _ "," _ ",null," _ "," _ "," _ "," _ "," _ ",null," _ "," _ "," _ "," _ ",null,4,41,"Town Planning, Building Regulations and Enforcement, and City Engineer","Planning and Development",null,null,0,0,0,0,0,75000,90000,105000,0,"_","_","_","_"]
["O0025-15/IA10375/F0041/X099/R0230/001/CONTRA","O0025-15/IA10375/F0041/X099/R0230/001/CONTRA",121409,0,"Assets:Current Assets:VAT Receivable:Input Tax Accrual:Recognised"," _"," _"," _ "," _ "," _ "," _ ",3100,"Planning and development",3108,"Project Management Unit","_"," _"," _","O","IA",170,"Current assets / VAT",170,"VAT"," _ "," _ ","_","_"," _ "," _ "," _ "," _ "," _ "," _ "," _ "," _ ",null," _ "," _ "," _ "," _ ",null,null,null," _ "," _ "," _ "," _ "," _ "," _ "," _ "," _ "," _ "," _ "," _ ",null," _ "," _ "," _ "," _ "," _ ",null," _ "," _ "," _ "," _ ",null,4,44,"Project Management Unit","Planning and Development",null,null,0,0,0,0,0,0,0,0,0,"_","_","_","_"]
["O0025-15/IA10375/F0041/X055/R0230/001/CONTRA","O0025-15/IA10375/F0041/X055/R0230/001/CONTRA",123246,0,"Assets:Current Assets:VAT Receivable:Input Tax Accrual:Recognised"," _"," _"," _ "," _ "," _ "," _ ",1200,"Finance and administration",1210,"Property Services","_"," _"," _","O","IA",170,"Current assets / VAT",170,"VAT"," _ "," _ ","_","_"," _ "," _ "," _ "," _ "," _ "," _ "," _ "," _ ",null," _ "," _ "," _ "," _ ",null,null,null," _ "," _ "," _ "," _ "," _ "," _ "," _ "," _ "," _ "," _ "," _ ",null," _ "," _ "," _ "," _ "," _ ",null," _ "," _ "," _ "," _ ",null,3,36,"Property Services","Finance & Administration",null,null,0,0,0,0,0,0,0,0,0,"_","_","_","_"]
["O0025-14/IA10375/F0041/X055/R0043/001/CONTRA","O0025-14/IA10375/F0041/X055/R0043/001/CONTRA",123250,0,"Assets:Current Assets:VAT Receivable:Input Tax Accrual:Recognised"," _"," _"," _ "," _ "," _ "," _ ",1200,"Finance and administration",1210,"Property Services","_"," _"," _","O","IA",170,"Current assets / VAT",170,"VAT"," _ "," _ ","_","_"," _ "," _ "," _ "," _ "," _ "," _ "," _ "," _ ",null," _ "," _ "," _ "," _ ",null,null,null," _ "," _ "," _ "," _ "," _ "," _ "," _ "," _ "," _ "," _ "," _ ",null," _ "," _ "," _ "," _ "," _ ",null," _ "," _ "," _ "," _ ",null,3,36,"Property Services","Finance & Administration",null,null,0,0,0,0,0,0,0,0,0,"_","_","_","_"]
["O0025-14/IA10375/F1182/X101/R0043/001/CONTRA","O0025-14/IA10375/F1182/X101/R0043/001/CONTRA",123232,0,"Assets:Current Assets:VAT Receivable:Input Tax Accrual:Recognised"," _"," _"," _ "," _ "," _ "," _ ",3100,"Planning and development",3107,"Town Planning, Building Regulations and Enforcement, and City Engineer","_"," _"," _","O","IA",170,"Current assets / VAT",170,"VAT"," _ "," _ ","_","_"," _ "," _ "," _ "," _ "," _ "," _ "," _ "," _ ",null," _ "," _ "," _ "," _ ",null,null,null," _ "," _ "," _ "," _ "," _ "," _ "," _ "," _ "," _ "," _ "," _ ",null," _ "," _ "," _ "," _ "," _ ",null," _ "," _ "," _ "," _ ",null,4,41,"Town Planning, Building Regulations and Enforcement, and City Engineer","Planning and Development",null,null,0,0,0,0,0,0,0,0,0,"_","_","_","_"]
["O0025-14/IA10375/F1182/X101/R0042/001/CONTRA","O0025-14/IA10375/F1182/X101/R0042/001/CONTRA",123228,0,"Assets:Current Assets:VAT Receivable:Input Tax Accrual:Recognised"," _"," _"," _ "," _ "," _ "," _ ",3100,"Planning and development",3107,"Town Planning, Building Regulations and Enforcement, and City Engineer","_"," _"," _","O","IA",170,"Current assets / VAT",170,"VAT"," _ "," _ ","_","_"," _ "," _ "," _ "," _ "," _ "," _ "," _ "," _ ",null," _ "," _ "," _ "," _ ",null,null,null," _ "," _ "," _ "," _ "," _ "," _ "," _ "," _ "," _ "," _ "," _ ",null," _ "," _ "," _ "," _ "," _ ",null," _ "," _ "," _ "," _ ",null,4,41,"Town Planning, Building Regulations and Enforcement, and City Engineer","Planning and Development",null,null,0,0,0,0,0,0,0,0,0,"_","_","_","_"]
["O0025-14/IE00001/F1182/X101/R0042/001/6155","O0025-14/IE00001/F1182/X101/R0042/001/6155",99776,7661,"Expenditure:Contracted Services:Consultants and Professional Services:Infrastructure and Planning:Town Planner",3800,"Expenditure / Contracted services",2702,"Expenditure / Contracted services",2702,"Contracted Services ",3100,"Planning and development",3107,"Town Planning, Building Regulations and Enforcement, and City Engineer","_"," _"," _","O","IE"," _ "," _ "," _ "," _ "," _ "," _ ","_","_"," _ "," _ "," _ "," _ "," _ "," _ "," _ "," _ ",null," _ "," _ "," _ "," _ ",null,null,null," _ "," _ "," _ "," _ "," _ "," _ "," _ "," _ "," _ "," _ "," _ ",null," _ "," _ "," _ "," _ "," _ ",null," _ "," _ "," _ "," _ ",null,4,41,"Town Planning, Building Regulations and Enforcement, and City Engineer","Planning and Development",null,null,0,0,0,0,0,0,0,0,0,"_","_","_","_"]
["O0025-14/IE00001/F1182/X101/R0043/001/6155","O0025-14/IE00001/F1182/X101/R0043/001/6155",99777,7662,"Expenditure:Contracted Services:Consultants and Professional Services:Infrastructure and Planning:Town Planner",3800,"Expenditure / Contracted services",2702,"Expenditure / Contracted services",2702,"Contracted Services ",3100,"Planning and development",3107,"Town Planning, Building Regulations and Enforcement, and City Engineer","_"," _"," _","O","IE"," _ "," _ "," _ "," _ "," _ "," _ ","_","_"," _ "," _ "," _ "," _ "," _ "," _ "," _ "," _ ",null," _ "," _ "," _ "," _ ",null,null,null," _ "," _ "," _ "," _ "," _ "," _ "," _ "," _ "," _ "," _ "," _ ",null," _ "," _ "," _ "," _ "," _ ",null," _ "," _ "," _ "," _ ",null,4,41,"Town Planning, Building Regulations and Enforcement, and City Engineer","Planning and Development",null,null,0,0,0,0,0,0,0,0,0,"_","_","_","_"]
["O0025-14/IE00001/F0041/X101/R0042/001/6155","O0025-14/IE00001/F0041/X101/R0042/001/6155",99774,7659,"Expenditure:Contracted Services:Consultants and Professional Services:Infrastructure and Planning:Town Planner",3800,"Expenditure / Contracted services",2702,"Expenditure / Contracted services",2702,"Contracted Services ",3100,"Planning and development",3107,"Town Planning, Building Regulations and Enforcement, and City Engineer","_"," _"," _","O","IE"," _ "," _ "," _ "," _ "," _ "," _ ","_","_"," _ "," _ "," _ "," _ "," _ "," _ "," _ "," _ ",null," _ "," _ "," _ "," _ ",null,null,null," _ "," _ "," _ "," _ "," _ "," _ "," _ "," _ "," _ "," _ "," _ ",null," _ "," _ "," _ "," _ "," _ ",null," _ "," _ "," _ "," _ ",null,4,41,"Town Planning, Building Regulations and Enforcement, and City Engineer","Planning and Development",null,null,0,0,0,0,0,0,0,0,0,"_","_","_","_"]
["O0025-14/IE00001/F0041/X101/R0043/001/6155","O0025-14/IE00001/F0041/X101/R0043/001/6155",99775,7660,"Expenditure:Contracted Services:Consultants and Professional Services:Infrastructure and Planning:Town Planner",3800,"Expenditure / Contracted services",2702,"Expenditure / Contracted services",2702,"Contracted Services ",3100,"Planning and development",3107,"Town Planning, Building Regulations and Enforcement, and City Engineer","_"," _"," _","O","IE"," _ "," _ "," _ "," _ "," _ "," _ ","_","_"," _ "," _ "," _ "," _ "," _ "," _ "," _ "," _ ",null," _ "," _ "," _ "," _ ",null,null,null," _ "," _ "," _ "," _ "," _ "," _ "," _ "," _ "," _ "," _ "," _ ",null," _ "," _ "," _ "," _ "," _ ",null," _ "," _ "," _ "," _ ",null,4,41,"Town Planning, Building Regulations and Enforcement, and City Engineer","Planning and Development",null,null,0,0,0,0,0,0,0,0,0,"_","_","_","_"]
["O0025-15/IE00001/F0041/X055/R0230/001/6107","O0025-15/IE00001/F0041/X055/R0230/001/6107",99841,7726,"Expenditure:Contracted Services:Consultants and Professional Services:Infrastructure and Planning:Town Planner",3800,"Expenditure / Contracted services",2702,"Expenditure / Contracted services",2702,"Contracted Services ",1200,"Finance and administration",1210,"Property Services","_"," _"," _","O","IE"," _ "," _ "," _ "," _ "," _ "," _ ","_","_"," _ "," _ "," _ "," _ "," _ "," _ "," _ "," _ ",null," _ "," _ "," _ "," _ ",null,null,null," _ "," _ "," _ "," _ "," _ "," _ "," _ "," _ "," _ "," _ "," _ ",null," _ "," _ "," _ "," _ "," _ ",null," _ "," _ "," _ "," _ ",null,3,36,"Property Services","Finance & Administration",null,null,798938,0,0,600000,100000,0,0,0,0,"_","_","_","_"]
["O0025-14/IE00001/F0041/X055/R0043/001/6107","O0025-14/IE00001/F0041/X055/R0043/001/6107",99842,7727,"Expenditure:Contracted Services:Consultants and Professional Services:Infrastructure and Planning:Town Planner",3800,"Expenditure / Contracted services",2702,"Expenditure / Contracted services",2702,"Contracted Services ",1200,"Finance and administration",1210,"Property Services","_"," _"," _","O","IE"," _ "," _ "," _ "," _ "," _ "," _ ","_","_"," _ "," _ "," _ "," _ "," _ "," _ "," _ "," _ ",null," _ "," _ "," _ "," _ ",null,null,null," _ "," _ "," _ "," _ "," _ "," _ "," _ "," _ "," _ "," _ "," _ ",null," _ "," _ "," _ "," _ "," _ ",null," _ "," _ "," _ "," _ ",null,3,36,"Property Services","Finance & Administration",null,null,0,0,0,500000,0,0,0,0,0,"_","_","_","_"]
["O0025-1/IE00001/F0041/X101/R0230/001/6155","O0025-1/IE00001/F0041/X101/R0230/001/6155",30224,1804,"Expenditure:Contracted Services:Consultants and Professional Services:Infrastructure and Planning:Town Planner",3800,"Expenditure / Contracted services",2702,"Expenditure / Contracted services",2702,"Contracted Services ",3100,"Planning and development",3107,"Town Planning, Building Regulations and Enforcement, and City Engineer","_"," _"," _","O","IE"," _ "," _ "," _ "," _ "," _ "," _ ","_","_"," _ "," _ "," _ "," _ "," _ "," _ "," _ "," _ ",null," _ "," _ "," _ "," _ ",null,null,null," _ "," _ "," _ "," _ "," _ "," _ "," _ "," _ "," _ "," _ "," _ ",null," _ "," _ "," _ "," _ "," _ ",null," _ "," _ "," _ "," _ ",null,4,41,"Town Planning, Building Regulations and Enforcement, and City Engineer","Planning and Development",null,null,0,0,0,0,0,0,0,0,0,"_","_","_","_"]
["O0025-10/IE00001/F0041/X101/R0022/001/6155","O0025-10/IE00001/F0041/X101/R0022/001/6155",69598,4489,"Expenditure:Contracted Services:Consultants and Professional Services:Infrastructure and Planning:Town Planner",3800,"Expenditure / Contracted services",2702,"Expenditure / Contracted services",2702,"Contracted Services ",3100,"Planning and development",3107,"Town Planning, Building Regulations and Enforcement, and City Engineer","_"," _"," _","O","IE"," _ "," _ "," _ "," _ "," _ "," _ ","_","_"," _ "," _ "," _ "," _ "," _ "," _ "," _ "," _ ",null," _ "," _ "," _ "," _ ",null,null,null," _ "," _ "," _ "," _ "," _ "," _ "," _ "," _ "," _ "," _ "," _ ",null," _ "," _ "," _ "," _ "," _ ",null," _ "," _ "," _ "," _ ",null,4,41,"Town Planning, Building Regulations and Enforcement, and City Engineer","Planning and Development",null,null,0,0,0,600000,800000,300000,400000,500000,316720,"_","_","_","_"]
["O0025-11/IE00001/F0041/X101/R0230/001/6155","O0025-11/IE00001/F0041/X101/R0230/001/6155",69599,4490,"Expenditure:Contracted Services:Consultants and Professional Services:Infrastructure and Planning:Town Planner",3800,"Expenditure / Contracted services",2702,"Expenditure / Contracted services",2702,"Contracted Services ",3100,"Planning and development",3107,"Town Planning, Building Regulations and Enforcement, and City Engineer","_"," _"," _","O","IE"," _ "," _ "," _ "," _ "," _ "," _ ","_","_"," _ "," _ "," _ "," _ "," _ "," _ "," _ "," _ ",null," _ "," _ "," _ "," _ ",null,null,null," _ "," _ "," _ "," _ "," _ "," _ "," _ "," _ "," _ "," _ "," _ ",null," _ "," _ "," _ "," _ "," _ ",null," _ "," _ "," _ "," _ ",null,4,41,"Town Planning, Building Regulations and Enforcement, and City Engineer","Planning and Development",null,null,225000,112500,0,600000,700000,300000,400000,500000,187500,"_","_","_","_"]
["O0025-12/IE00001/F0041/X101/R0230/001/6155","O0025-12/IE00001/F0041/X101/R0230/001/6155",69600,4491,"Expenditure:Contracted Services:Consultants and Professional Services:Infrastructure and Planning:Town Planner",3800,"Expenditure / Contracted services",2702,"Expenditure / Contracted services",2702,"Contracted Services ",3100,"Planning and development",3107,"Town Planning, Building Regulations and Enforcement, and City Engineer","_"," _"," _","O","IE"," _ "," _ "," _ "," _ "," _ "," _ ","_","_"," _ "," _ "," _ "," _ "," _ "," _ "," _ "," _ ",null," _ "," _ "," _ "," _ ",null,null,null," _ "," _ "," _ "," _ "," _ "," _ "," _ "," _ "," _ "," _ "," _ ",null," _ "," _ "," _ "," _ "," _ ",null," _ "," _ "," _ "," _ ",null,4,41,"Town Planning, Building Regulations and Enforcement, and City Engineer","Planning and Development",null,null,240000,120000,400000,500000,500000,600000,700000,800000,200000,"_","_","_","_"]
["O0025-16/IE00001/F0041/X101/R0041/001/6155","O0025-16/IE00001/F0041/X101/R0041/001/6155",120260,10144,"Expenditure:Contracted Services:Consultants and Professional Services:Infrastructure and Planning:Town Planner",3800,"Expenditure / Contracted services",2702,"Expenditure / Contracted services",2702,"Contracted Services ",3100,"Planning and development",3107,"Town Planning, Building Regulations and Enforcement, and City Engineer","_"," _"," _","O","IE"," _ "," _ "," _ "," _ "," _ "," _ ","_","_"," _ "," _ "," _ "," _ "," _ "," _ "," _ "," _ ",null," _ "," _ "," _ "," _ ",null,null,null," _ "," _ "," _ "," _ "," _ "," _ "," _ "," _ "," _ "," _ "," _ ",null," _ "," _ "," _ "," _ "," _ ",null," _ "," _ "," _ "," _ ",null,4,41,"Town Planning, Building Regulations and Enforcement, and City Engineer","Planning and Development",null,null,0,0,0,500000,50000,500000,600000,700000,0,"_","_","_","_"]
["O0025-18/IE00001/F0041/X101/R0041/001/6155","O0025-18/IE00001/F0041/X101/R0041/001/6155",120261,10145,"Expenditure:Contracted Services:Consultants and Professional Services:Infrastructure and Planning:Town Planner",3800,"Expenditure / Contracted services",2702,"Expenditure / Contracted services",2702,"Contracted Services ",3100,"Planning and development",3107,"Town Planning, Building Regulations and Enforcement, and City Engineer","_"," _"," _","O","IE"," _ "," _ "," _ "," _ "," _ "," _ ","_","_"," _ "," _ "," _ "," _ "," _ "," _ "," _ "," _ ",null," _ "," _ "," _ "," _ ",null,null,null," _ "," _ "," _ "," _ "," _ "," _ "," _ "," _ "," _ "," _ "," _ ",null," _ "," _ "," _ "," _ "," _ ",null," _ "," _ "," _ "," _ ",null,4,41,"Town Planning, Building Regulations and Enforcement, and City Engineer","Planning and Development",null,null,0,0,0,500000,300000,500000,600000,700000,300000,"_","_","_","_"]
["O0025-19/IE00001/F0041/X101/R0230/001/6155","O0025-19/IE00001/F0041/X101/R0230/001/6155",120306,10190,"Expenditure:Contracted Services:Consultants and Professional Services:Infrastructure and Planning:Town Planner",3800,"Expenditure / Contracted services",2702,"Expenditure / Contracted services",2702,"Contracted Services ",3100,"Planning and development",3107,"Town Planning, Building Regulations and Enforcement, and City Engineer","_"," _"," _","O","IE"," _ "," _ "," _ "," _ "," _ "," _ ","_","_"," _ "," _ "," _ "," _ "," _ "," _ "," _ "," _ ",null," _ "," _ "," _ "," _ ",null,null,null," _ "," _ "," _ "," _ "," _ "," _ "," _ "," _ "," _ "," _ "," _ ",null," _ "," _ "," _ "," _ "," _ ",null," _ "," _ "," _ "," _ ",null,4,41,"Town Planning, Building Regulations and Enforcement, and City Engineer","Planning and Development",null,null,0,0,0,500000,700000,0,0,0,290000,"_","_","_","_"]
["O0025-2/IE00001/F0041/X101/R0025/001/6155","O0025-2/IE00001/F0041/X101/R0025/001/6155",69037,4284,"Expenditure:Contracted Services:Consultants and Professional Services:Infrastructure and Planning:Town Planner",3800,"Expenditure / Contracted services",2702,"Expenditure / Contracted services",2702,"Contracted Services ",3100,"Planning and development",3107,"Town Planning, Building Regulations and Enforcement, and City Engineer","_"," _"," _","O","IE"," _ "," _ "," _ "," _ "," _ "," _ ","_","_"," _ "," _ "," _ "," _ "," _ "," _ "," _ "," _ ",null," _ "," _ "," _ "," _ ",null,null,null," _ "," _ "," _ "," _ "," _ "," _ "," _ "," _ "," _ "," _ "," _ ",null," _ "," _ "," _ "," _ "," _ ",null," _ "," _ "," _ "," _ ",null,4,41,"Town Planning, Building Regulations and Enforcement, and City Engineer","Planning and Development",null,null,0,555750,494000,500000,500000,600000,700000,800000,0,"_","_","_","_"]
["O0025-20/IE00001/F0041/X101/R0032/001/6155","O0025-20/IE00001/F0041/X101/R0032/001/6155",120630,11514,"Expenditure:Contracted Services:Consultants and Professional Services:Infrastructure and Planning:Town Planner",3800,"Expenditure / Contracted services",2702,"Expenditure / Contracted services",2702,"Contracted Services ",3100,"Planning and development",3107,"Town Planning, Building Regulations and Enforcement, and City Engineer","_"," _"," _","O","IE"," _ "," _ "," _ "," _ "," _ "," _ ","_","_"," _ "," _ "," _ "," _ "," _ "," _ "," _ "," _ ",null," _ "," _ "," _ "," _ ",null,null,null," _ "," _ "," _ "," _ "," _ "," _ "," _ "," _ "," _ "," _ "," _ ",null," _ "," _ "," _ "," _ "," _ ",null," _ "," _ "," _ "," _ ",null,4,41,"Town Planning, Building Regulations and Enforcement, and City Engineer","Planning and Development",null,null,0,0,0,0,0,700000,800000,900000,0,"_","_","_","_"]
["O0025-20/IE00001/F0041/X101/R0021/001/6155","O0025-20/IE00001/F0041/X101/R0021/001/6155",120262,10146,"Expenditure:Contracted Services:Consultants and Professional Services:Infrastructure and Planning:Town Planner",3800,"Expenditure / Contracted services",2702,"Expenditure / Contracted services",2702,"Contracted Services ",3100,"Planning and development",3107,"Town Planning, Building Regulations and Enforcement, and City Engineer","_"," _"," _","O","IE"," _ "," _ "," _ "," _ "," _ "," _ ","_","_"," _ "," _ "," _ "," _ "," _ "," _ "," _ "," _ ",null," _ "," _ "," _ "," _ ",null,null,null," _ "," _ "," _ "," _ "," _ "," _ "," _ "," _ "," _ "," _ "," _ ",null," _ "," _ "," _ "," _ "," _ ",null," _ "," _ "," _ "," _ ",null,4,41,"Town Planning, Building Regulations and Enforcement, and City Engineer","Planning and Development",null,null,0,0,0,600000,600000,300000,400000,500000,172400,"_","_","_","_"]
["O0025-22/IE00001/F0041/X101/R0041/001/6155","O0025-22/IE00001/F0041/X101/R0041/001/6155",120263,10147,"Expenditure:Contracted Services:Consultants and Professional Services:Infrastructure and Planning:Town Planner",3800,"Expenditure / Contracted services",2702,"Expenditure / Contracted services",2702,"Contracted Services ",3100,"Planning and development",3107,"Town Planning, Building Regulations and Enforcement, and City Engineer","_"," _"," _","O","IE"," _ "," _ "," _ "," _ "," _ "," _ ","_","_"," _ "," _ "," _ "," _ "," _ "," _ "," _ "," _ ",null," _ "," _ "," _ "," _ ",null,null,null," _ "," _ "," _ "," _ "," _ "," _ "," _ "," _ "," _ "," _ "," _ ",null," _ "," _ "," _ "," _ "," _ ",null," _ "," _ "," _ "," _ ",null,4,41,"Town Planning, Building Regulations and Enforcement, and City Engineer","Planning and Development",null,null,0,0,0,500000,800000,300000,400000,500000,521300,"_","_","_","_"]
["O0025-22/IE00001/F0041/X101/R0230/001/6155","O0025-22/IE00001/F0041/X101/R0230/001/6155",120300,10184,"Expenditure:Contracted Services:Consultants and Professional Services:Infrastructure and Planning:Town Planner",3800,"Expenditure / Contracted services",2702,"Expenditure / Contracted services",2702,"Contracted Services ",3100,"Planning and development",3107,"Town Planning, Building Regulations and Enforcement, and City Engineer","_"," _"," _","O","IE"," _ "," _ "," _ "," _ "," _ "," _ ","_","_"," _ "," _ "," _ "," _ "," _ "," _ "," _ "," _ ",null," _ "," _ "," _ "," _ ",null,null,null," _ "," _ "," _ "," _ "," _ "," _ "," _ "," _ "," _ "," _ "," _ ",null," _ "," _ "," _ "," _ "," _ ",null," _ "," _ "," _ "," _ ",null,4,41,"Town Planning, Building Regulations and Enforcement, and City Engineer","Planning and Development",null,null,0,0,0,500000,500000,500000,600000,700000,138075,"_","_","_","_"]
["O0025-3/IE00001/F0041/X101/R0230/001/6155","O0025-3/IE00001/F0041/X101/R0230/001/6155",69038,4285,"Expenditure:Contracted Services:Consultants and Professional Services:Infrastructure and Planning:Town Planner",3800,"Expenditure / Contracted services",2702,"Expenditure / Contracted services",2702,"Contracted Services ",3100,"Planning and development",3107,"Town Planning, Building Regulations and Enforcement, and City Engineer","_"," _"," _","O","IE"," _ "," _ "," _ "," _ "," _ "," _ ","_","_"," _ "," _ "," _ "," _ "," _ "," _ "," _ "," _ ",null," _ "," _ "," _ "," _ ",null,null,null," _ "," _ "," _ "," _ "," _ "," _ "," _ "," _ "," _ "," _ "," _ ",null," _ "," _ "," _ "," _ "," _ ",null," _ "," _ "," _ "," _ ",null,4,41,"Town Planning, Building Regulations and Enforcement, and City Engineer","Planning and Development",null,null,118770,0,142500,1000000,1000000,300000,400000,500000,0,"_","_","_","_"]
["O0025-21/IE00001/F0041/X101/R0040/001/6155","O0025-21/IE00001/F0041/X101/R0040/001/6155",120631,11515,"Expenditure:Contracted Services:Consultants and Professional Services:Infrastructure and Planning:Town Planner",3800,"Expenditure / Contracted services",2702,"Expenditure / Contracted services",2702,"Contracted Services ",3100,"Planning and development",3107,"Town Planning, Building Regulations and Enforcement, and City Engineer","_"," _"," _","O","IE"," _ "," _ "," _ "," _ "," _ "," _ ","_","_"," _ "," _ "," _ "," _ "," _ "," _ "," _ "," _ ",null," _ "," _ "," _ "," _ ",null,null,null," _ "," _ "," _ "," _ "," _ "," _ "," _ "," _ "," _ "," _ "," _ ",null," _ "," _ "," _ "," _ "," _ ",null," _ "," _ "," _ "," _ ",null,4,41,"Town Planning, Building Regulations and Enforcement, and City Engineer","Planning and Development",null,null,0,0,0,0,0,300000,400000,500000,0,"_","_","_","_"]
["O0025-6/IE00001/F0041/X101/R0230/001/6155","O0025-6/IE00001/F0041/X101/R0230/001/6155",69047,4292,"Expenditure:Contracted Services:Consultants and Professional Services:Infrastructure and Planning:Town Planner",3800,"Expenditure / Contracted services",2702,"Expenditure / Contracted services",2702,"Contracted Services ",3100,"Planning and development",3107,"Town Planning, Building Regulations and Enforcement, and City Engineer","_"," _"," _","O","IE"," _ "," _ "," _ "," _ "," _ "," _ ","_","_"," _ "," _ "," _ "," _ "," _ "," _ "," _ "," _ ",null," _ "," _ "," _ "," _ ",null,null,null," _ "," _ "," _ "," _ "," _ "," _ "," _ "," _ "," _ "," _ "," _ ",null," _ "," _ "," _ "," _ "," _ ",null," _ "," _ "," _ "," _ ",null,4,41,"Town Planning, Building Regulations and Enforcement, and City Engineer","Planning and Development",null,null,0,0,214100,500000,50000,500000,600000,700000,0,"_","_","_","_"]
["O0025-7/IE00001/F0041/X101/R0230/001/6155","O0025-7/IE00001/F0041/X101/R0230/001/6155",69048,4293,"Expenditure:Contracted Services:Consultants and Professional Services:Infrastructure and Planning:Town Planner",3800,"Expenditure / Contracted services",2702,"Expenditure / Contracted services",2702,"Contracted Services ",3100,"Planning and development",3107,"Town Planning, Building Regulations and Enforcement, and City Engineer","_"," _"," _","O","IE"," _ "," _ "," _ "," _ "," _ "," _ ","_","_"," _ "," _ "," _ "," _ "," _ "," _ "," _ "," _ ",null," _ "," _ "," _ "," _ ",null,null,null," _ "," _ "," _ "," _ "," _ "," _ "," _ "," _ "," _ "," _ "," _ ",null," _ "," _ "," _ "," _ "," _ ",null," _ "," _ "," _ "," _ ",null,4,41,"Town Planning, Building Regulations and Enforcement, and City Engineer","Planning and Development",null,null,132545,173900,0,500000,250000,500000,600000,700000,0,"_","_","_","_"]
["O0025-5/IE00001/F0041/X101/R0230/001/6155","O0025-5/IE00001/F0041/X101/R0230/001/6155",69046,4291,"Expenditure:Contracted Services:Consultants and Professional Services:Infrastructure and Planning:Town Planner",3800,"Expenditure / Contracted services",2702,"Expenditure / Contracted services",2702,"Contracted Services ",3100,"Planning and development",3107,"Town Planning, Building Regulations and Enforcement, and City Engineer","_"," _"," _","O","IE"," _ "," _ "," _ "," _ "," _ "," _ ","_","_"," _ "," _ "," _ "," _ "," _ "," _ "," _ "," _ ",null," _ "," _ "," _ "," _ ",null,null,null," _ "," _ "," _ "," _ "," _ "," _ "," _ "," _ "," _ "," _ "," _ ",null," _ "," _ "," _ "," _ "," _ ",null," _ "," _ "," _ "," _ ",null,4,41,"Town Planning, Building Regulations and Enforcement, and City Engineer","Planning and Development",null,null,0,0,0,400000,400000,300000,400000,500000,0,"_","_","_","_"]
["O0025-9/IE00001/F0041/X101/R0416/001/6155","O0025-9/IE00001/F0041/X101/R0416/001/6155",69056,4301,"Expenditure:Contracted Services:Consultants and Professional Services:Infrastructure and Planning:Town Planner",3800,"Expenditure / Contracted services",2702,"Expenditure / Contracted services",2702,"Contracted Services ",3100,"Planning and development",3107,"Town Planning, Building Regulations and Enforcement, and City Engineer","_"," _"," _","O","IE"," _ "," _ "," _ "," _ "," _ "," _ ","_","_"," _ "," _ "," _ "," _ "," _ "," _ "," _ "," _ ",null," _ "," _ "," _ "," _ ",null,null,null," _ "," _ "," _ "," _ "," _ "," _ "," _ "," _ "," _ "," _ "," _ ",null," _ "," _ "," _ "," _ "," _ ",null," _ "," _ "," _ "," _ ",null,4,41,"Town Planning, Building Regulations and Enforcement, and City Engineer","Planning and Development",null,null,0,0,0,700000,50000,700000,750000,800000,0,"_","_","_","_"]
["O0025-15/IE00855/F0041/X099/R0230/001/6055","O0025-15/IE00855/F0041/X099/R0230/001/6055",120254,10138,"Expenditure:Contracted Services:Consultants and Professional Services:Infrastructure and Planning:Land and Quantity Surveyors",3800,"Expenditure / Contracted services",2702,"Expenditure / Contracted services",2702,"Contracted Services ",3100,"Planning and development",3108,"Project Management Unit","_"," _"," _","O","IE"," _ "," _ "," _ "," _ "," _ "," _ ","_","_"," _ "," _ "," _ "," _ "," _ "," _ "," _ "," _ ",null," _ "," _ "," _ "," _ ",null,null,null," _ "," _ "," _ "," _ "," _ "," _ "," _ "," _ "," _ "," _ "," _ ",null," _ "," _ "," _ "," _ "," _ ",null," _ "," _ "," _ "," _ ",null,4,44,"Project Management Unit","Planning and Development",null,null,0,0,0,4129056,4129056,0,0,0,3516089,"_","_","_","_"]
["O0025-4/IE00855/F0041/X101/R0230/001/6155","O0025-4/IE00855/F0041/X101/R0230/001/6155",69039,4286,"Expenditure:Contracted Services:Consultants and Professional Services:Infrastructure and Planning:Land and Quantity Surveyors",3800,"Expenditure / Contracted services",2702,"Expenditure / Contracted services",2702,"Contracted Services ",3100,"Planning and development",3107,"Town Planning, Building Regulations and Enforcement, and City Engineer","_"," _"," _","O","IE"," _ "," _ "," _ "," _ "," _ "," _ ","_","_"," _ "," _ "," _ "," _ "," _ "," _ "," _ "," _ ",null," _ "," _ "," _ "," _ ",null,null,null," _ "," _ "," _ "," _ "," _ "," _ "," _ "," _ "," _ "," _ "," _ ",null," _ "," _ "," _ "," _ "," _ ",null," _ "," _ "," _ "," _ ",null,4,41,"Town Planning, Building Regulations and Enforcement, and City Engineer","Planning and Development",null,null,-1541928,-5837928,2228391,700000,50000,700000,800000,900000,0,"_","_","_","_"]
["C0020-1/IA02105/F0002/X032/R0230/001/CONTRA","C0020-1/IA02105/F0002/X032/R0230/001/CONTRA",123900,0,"Assets:Current Assets:Cash and Cash Equivalents:Cash at Bank:Bank Account:Specify (replace with account description):Deposits"," _"," _"," _ "," _ "," _ "," _ ",4100,"Energy sources",4101,"Electricity","_",2080,"Funded by Internally generated funds","C","IA",120,"Current assets / Cash and cash equivalents",120,"Cash and cash equivalents"," _ "," _ ","_","_",null,"Recepts - Cash and Cash Equivalents","0510","Recepts - Cash and Cash Equivalents"," _ "," _ "," _ "," _ ",null," _ "," _ "," _ "," _ ",null,null,"D",270,270,"Infrastructure / Electrical Infrastructure / MV Networks","Infrastructure / Electrical Infrastructure / MV Networks"," _ "," _ "," _ "," _ "," _ "," _ "," _ ",null," _ "," _ "," _ "," _ "," _ ",null," _ "," _ "," _ "," _ ",null,1,11,"Electricity"," Energy Sources",null,null,0,0,0,0,0,0,0,0,0,"_","_","_","_"]
["C0020-2/IA02105/F0002/X032/R0230/001/CONTRA","C0020-2/IA02105/F0002/X032/R0230/001/CONTRA",122901,0,"Assets:Current Assets:Cash and Cash Equivalents:Cash at Bank:Bank Account:Specify (replace with account description):Deposits"," _"," _"," _ "," _ "," _ "," _ ",4100,"Energy sources",4101,"Electricity","_",2080,"Funded by Internally generated funds","C","IA",120,"Current assets / Cash and cash equivalents",120,"Cash and cash equivalents"," _ "," _ ","_","_",null,"Recepts - Cash and Cash Equivalents","0510","Recepts - Cash and Cash Equivalents"," _ "," _ "," _ "," _ ",null," _ "," _ "," _ "," _ ",null,null,"D",270,270,"Infrastructure / Electrical Infrastructure / MV Networks","Infrastructure / Electrical Infrastructure / MV Networks"," _ "," _ "," _ "," _ "," _ "," _ "," _ ",null," _ "," _ "," _ "," _ "," _ ",null," _ "," _ "," _ "," _ ",null,1,11,"Electricity"," Energy Sources",null,null,0,0,0,0,0,0,0,0,0,"_","_","_","_"]
["C0020-2/IA07120/F0002/X032/R0230/001/6707","C0020-2/IA07120/F0002/X032/R0230/001/6707",69502,4393,"Assets:Non-current Assets:Property, Plant and Equipment:Cost Model:Electrical Infrastructure:Future Use:MV Networks:Cost:Acquisitions"," _"," _"," _ "," _ "," _ "," _ ",4100,"Energy sources",4101,"Electricity","CE",2080,"Funded by Internally generated funds","C","IA",230,"Non current assets / Property, plant and equipment",231,"Land: Acquisitions"," _ "," _ ","_","_"," _ "," _ "," _ "," _ ",200,"Infrastructure / Electrical Infrastructure",200,"Infrastructure / Electrical Infrastructure",null,241,"Property, plant and equipment (PPE) / PPE at cost/valuation (excl. finance leases)",241,"Property, plant and equipment (PPE) / PPE at cost/valuation (excl. finance leases)",null,null,null,270,270,"Infrastructure / Electrical Infrastructure / MV Networks","Infrastructure / Electrical Infrastructure / MV Networks"," _ "," _ "," _ "," _ "," _ "," _ "," _ ",null," _ "," _ "," _ "," _ "," _ ",null," _ "," _ "," _ "," _ ",null,1,11,"Electricity"," Energy Sources",null,null,0,0,0,0,0,0,0,0,0,"_","_","_","_"]
["C0020-1/IA01952/F0002/X032/R0230/001/6707","C0020-1/IA01952/F0002/X032/R0230/001/6707",69500,4381,"Assets:Non-current Assets:Construction Work-in-progress:Acquisitions:Outsourced"," _"," _"," _ "," _ "," _ "," _ ",4100,"Energy sources",4101,"Electricity","CE",2080,"Funded by Internally generated funds","C","IA",230,"Non current assets / Property, plant and equipment",231,"Land: Acquisitions"," _ "," _ ","_","_"," _ "," _ "," _ "," _ "," _ "," _ "," _ "," _ ",270,241,"Property, plant and equipment (PPE) / PPE at cost/valuation (excl. finance leases)",241,"Property, plant and equipment (PPE) / PPE at cost/valuation (excl. finance leases)",null,null,null,270,270,"Infrastructure / Electrical Infrastructure / MV Networks","Infrastructure / Electrical Infrastructure / MV Networks"," _ "," _ "," _ "," _ "," _ "," _ "," _ ",null," _ "," _ "," _ "," _ "," _ ",null," _ "," _ "," _ "," _ ",null,1,11,"Electricity"," Energy Sources",null,null,0,0,0,0,0,0,0,0,0,"_","_","_","_"]
["C0020-2/IL65531/F0002/X032/R0230/001/CONTRA","C0020-2/IL65531/F0002/X032/R0230/001/CONTRA",122904,0,"Liabilities:Current Liabilities:Trade and Other Payable Exchange Transactions:Payables and Accruals : Contractors:Withdrawals"," _"," _"," _ "," _ "," _ "," _ ",4100,"Energy sources",4101,"Electricity","_",2080,"Funded by Internally generated funds","C","IL",380,"Current liabilities / Trade and other payables from exchange transactions","_","_"," _ "," _ ","_","_",200,"Cash Payments by Type / Contracted Services",450,"Cash Payments by Type / Contracted Services"," _ "," _ "," _ "," _ ",null,361,"Trade and other payables / Trade and other payables from exchange transactions",361,"Trade and other payables / Trade and other payables from exchange transactions",null,null,null,270,270,"Infrastructure / Electrical Infrastructure / MV Networks","Infrastructure / Electrical Infrastructure / MV Networks"," _ "," _ "," _ "," _ "," _ "," _ "," _ ",null," _ "," _ "," _ "," _ "," _ ",null," _ "," _ "," _ "," _ ",null,1,11,"Electricity"," Energy Sources",null,null,0,0,0,0,0,0,0,0,0,"_","_","_","_"]
["C0020-1/IL65531/F0002/X032/R0230/001/CONTRA","C0020-1/IL65531/F0002/X032/R0230/001/CONTRA",123903,0,"Liabilities:Current Liabilities:Trade and Other Payable Exchange Transactions:Payables and Accruals : Contractors:Withdrawals"," _"," _"," _ "," _ "," _ "," _ ",4100,"Energy sources",4101,"Electricity","_",2080,"Funded by Internally generated funds","C","IL",380,"Current liabilities / Trade and other payables from exchange transactions","_","_"," _ "," _ ","_","_",200,"Cash Payments by Type / Contracted Services",450,"Cash Payments by Type / Contracted Services"," _ "," _ "," _ "," _ ",null,361,"Trade and other payables / Trade and other payables from exchange transactions",361,"Trade and other payables / Trade and other payables from exchange transactions",null,null,null,270,270,"Infrastructure / Electrical Infrastructure / MV Networks","Infrastructure / Electrical Infrastructure / MV Networks"," _ "," _ "," _ "," _ "," _ "," _ "," _ ",null," _ "," _ "," _ "," _ "," _ ",null," _ "," _ "," _ "," _ ",null,1,11,"Electricity"," Energy Sources",null,null,0,0,0,0,0,0,0,0,0,"_","_","_","_"]
["C0020-2/IA02108/F0002/X032/R0230/001/CONTRA","C0020-2/IA02108/F0002/X032/R0230/001/CONTRA",124555,0,"Assets:Current Assets:Cash and Cash Equivalents:Cash at Bank:Bank Account:Specify (replace with account description):Withdrawals"," _"," _"," _ "," _ "," _ "," _ ",4100,"Energy sources",4101,"Electricity","_",2080,"Funded by Internally generated funds","C","IA",120,"Current assets / Cash and cash equivalents",120,"Cash and cash equivalents"," _ "," _ ","_","_",310,"Other Cash Flows/Payments by Type / Capital assets",510,"Capital assets"," _ "," _ "," _ "," _ ",null," _ "," _ "," _ "," _ ",null,null,"W",270,270,"Infrastructure / Electrical Infrastructure / MV Networks","Infrastructure / Electrical Infrastructure / MV Networks"," _ "," _ "," _ "," _ "," _ "," _ "," _ ",null," _ "," _ "," _ "," _ "," _ ",null," _ "," _ "," _ "," _ ",null,1,11,"Electricity"," Energy Sources",null,null,0,0,0,0,0,0,0,0,0,"_","_","_","_"]
["C0020-1/IA02108/F0002/X032/R0230/001/CONTRA","C0020-1/IA02108/F0002/X032/R0230/001/CONTRA",124554,0,"Assets:Current Assets:Cash and Cash Equivalents:Cash at Bank:Bank Account:Specify (replace with account description):Withdrawals"," _"," _"," _ "," _ "," _ "," _ ",4100,"Energy sources",4101,"Electricity","_",2080,"Funded by Internally generated funds","C","IA",120,"Current assets / Cash and cash equivalents",120,"Cash and cash equivalents"," _ "," _ ","_","_",310,"Other Cash Flows/Payments by Type / Capital assets",510,"Capital assets"," _ "," _ "," _ "," _ ",null," _ "," _ "," _ "," _ ",null,null,"W",270,270,"Infrastructure / Electrical Infrastructure / MV Networks","Infrastructure / Electrical Infrastructure / MV Networks"," _ "," _ "," _ "," _ "," _ "," _ "," _ ",null," _ "," _ "," _ "," _ "," _ ",null," _ "," _ "," _ "," _ ",null,1,11,"Electricity"," Energy Sources",null,null,0,0,0,0,0,0,0,0,0,"_","_","_","_"]
["C0020-1/IA10370/F0002/X032/R0230/001/CONTRA","C0020-1/IA10370/F0002/X032/R0230/001/CONTRA",123901,0,"Assets:Current Assets:VAT Receivable:Input Tax Capital:Recognised"," _"," _"," _ "," _ "," _ "," _ ",4100,"Energy sources",4101,"Electricity","_",2080,"Funded by Internally generated funds","C","IA",170,"Current assets / VAT",170,"VAT"," _ "," _ ","_","_"," _ "," _ "," _ "," _ "," _ "," _ "," _ "," _ ",null," _ "," _ "," _ "," _ ",null,null,null,270,270,"Infrastructure / Electrical Infrastructure / MV Networks","Infrastructure / Electrical Infrastructure / MV Networks"," _ "," _ "," _ "," _ "," _ "," _ "," _ ",null," _ "," _ "," _ "," _ "," _ ",null," _ "," _ "," _ "," _ ",null,1,11,"Electricity"," Energy Sources",null,null,0,0,0,0,0,0,0,0,0,"_","_","_","_"]
["C0020-2/IA10370/F0002/X032/R0230/001/CONTRA","C0020-2/IA10370/F0002/X032/R0230/001/CONTRA",122902,0,"Assets:Current Assets:VAT Receivable:Input Tax Capital:Recognised"," _"," _"," _ "," _ "," _ "," _ ",4100,"Energy sources",4101,"Electricity","_",2080,"Funded by Internally generated funds","C","IA",170,"Current assets / VAT",170,"VAT"," _ "," _ ","_","_"," _ "," _ "," _ "," _ "," _ "," _ "," _ "," _ ",null," _ "," _ "," _ "," _ ",null,null,null,270,270,"Infrastructure / Electrical Infrastructure / MV Networks","Infrastructure / Electrical Infrastructure / MV Networks"," _ "," _ "," _ "," _ "," _ "," _ "," _ ",null," _ "," _ "," _ "," _ "," _ ",null," _ "," _ "," _ "," _ ",null,1,11,"Electricity"," Energy Sources",null,null,0,0,0,0,0,0,0,0,0,"_","_","_","_"]
["C0020-1/IL65530/F0002/X032/R0230/001/CONTRA","C0020-1/IL65530/F0002/X032/R0230/001/CONTRA",123902,0,"Liabilities:Current Liabilities:Trade and Other Payable Exchange Transactions:Payables and Accruals : Contractors:Deposits"," _"," _"," _ "," _ "," _ "," _ ",4100,"Energy sources",4101,"Electricity","_",2080,"Funded by Internally generated funds","C","IL",380,"Current liabilities / Trade and other payables from exchange transactions","_","_"," _ "," _ ","_","_"," _ "," _ "," _ "," _ "," _ "," _ "," _ "," _ ",null,361,"Trade and other payables / Trade and other payables from exchange transactions",361,"Trade and other payables / Trade and other payables from exchange transactions",null,null,null,270,270,"Infrastructure / Electrical Infrastructure / MV Networks","Infrastructure / Electrical Infrastructure / MV Networks"," _ "," _ "," _ "," _ "," _ "," _ "," _ ",null," _ "," _ "," _ "," _ "," _ ",null," _ "," _ "," _ "," _ ",null,1,11,"Electricity"," Energy Sources",null,null,0,0,0,0,0,0,0,0,0,"_","_","_","_"]
["C0020-2/IL65530/F0002/X032/R0230/001/CONTRA","C0020-2/IL65530/F0002/X032/R0230/001/CONTRA",122903,0,"Liabilities:Current Liabilities:Trade and Other Payable Exchange Transactions:Payables and Accruals : Contractors:Deposits"," _"," _"," _ "," _ "," _ "," _ ",4100,"Energy sources",4101,"Electricity","_",2080,"Funded by Internally generated funds","C","IL",380,"Current liabilities / Trade and other payables from exchange transactions","_","_"," _ "," _ ","_","_"," _ "," _ "," _ "," _ "," _ "," _ "," _ "," _ ",null,361,"Trade and other payables / Trade and other payables from exchange transactions",361,"Trade and other payables / Trade and other payables from exchange transactions",null,null,null,270,270,"Infrastructure / Electrical Infrastructure / MV Networks","Infrastructure / Electrical Infrastructure / MV Networks"," _ "," _ "," _ "," _ "," _ "," _ "," _ ",null," _ "," _ "," _ "," _ "," _ ",null," _ "," _ "," _ "," _ ",null,1,11,"Electricity"," Energy Sources",null,null,0,0,0,0,0,0,0,0,0,"_","_","_","_"]
["C0244-1/IL65530/F0791/X125/R0028/001/CONTRA","C0244-1/IL65530/F0791/X125/R0028/001/CONTRA",123779,0,"Liabilities:Current Liabilities:Trade and Other Payable Exchange Transactions:Payables and Accruals : Contractors:Deposits"," _"," _"," _ "," _ "," _ "," _ ",2200,"Sport and recreation",2205,"Sports Grounds and Stadiums","_",2010,"Funded by National Government","C","IL",380,"Current liabilities / Trade and other payables from exchange transactions","_","_"," _ "," _ ","_","_"," _ "," _ "," _ "," _ "," _ "," _ "," _ "," _ ",null,361,"Trade and other payables / Trade and other payables from exchange transactions",361,"Trade and other payables / Trade and other payables from exchange transactions",null,null,null,1020,1020,"Community Assets / Sport and Recreation Facilities / Indoor Facilities","Community Assets / Sport and Recreation Facilities / Indoor Facilities"," _ "," _ "," _ "," _ "," _ "," _ "," _ ",null," _ "," _ "," _ "," _ "," _ ",null," _ "," _ "," _ "," _ ",null,10,102,"Sports Grounds and Stadiums","Sports & Recreation",null,null,0,0,0,0,0,-11055731,0,0,0,"_","_","_","_"]
["C0244-1/IL65530/F0002/X125/R0029/001/CONTRA","C0244-1/IL65530/F0002/X125/R0029/001/CONTRA",123775,0,"Liabilities:Current Liabilities:Trade and Other Payable Exchange Transactions:Payables and Accruals : Contractors:Deposits"," _"," _"," _ "," _ "," _ "," _ ",2200,"Sport and recreation",2205,"Sports Grounds and Stadiums","_",2080,"Funded by Internally generated funds","C","IL",380,"Current liabilities / Trade and other payables from exchange transactions","_","_"," _ "," _ ","_","_"," _ "," _ "," _ "," _ "," _ "," _ "," _ "," _ ",null,361,"Trade and other payables / Trade and other payables from exchange transactions",361,"Trade and other payables / Trade and other payables from exchange transactions",null,null,null,1020,1020,"Community Assets / Sport and Recreation Facilities / Indoor Facilities","Community Assets / Sport and Recreation Facilities / Indoor Facilities"," _ "," _ "," _ "," _ "," _ "," _ "," _ ",null," _ "," _ "," _ "," _ "," _ ",null," _ "," _ "," _ "," _ ",null,10,102,"Sports Grounds and Stadiums","Sports & Recreation",null,null,0,0,0,0,0,0,0,0,0,"_","_","_","_"]
["C0244-2/IL65530/F0002/X049/R0230/001/CONTRA","C0244-2/IL65530/F0002/X049/R0230/001/CONTRA",122753,0,"Liabilities:Current Liabilities:Trade and Other Payable Exchange Transactions:Payables and Accruals : Contractors:Deposits"," _"," _"," _ "," _ "," _ "," _ ",1200,"Finance and administration",1204,"Finance","_",2080,"Funded by Internally generated funds","C","IL",380,"Current liabilities / Trade and other payables from exchange transactions","_","_"," _ "," _ ","_","_"," _ "," _ "," _ "," _ "," _ "," _ "," _ "," _ ",null,361,"Trade and other payables / Trade and other payables from exchange transactions",361,"Trade and other payables / Trade and other payables from exchange transactions",null,null,null,1020,1020,"Community Assets / Sport and Recreation Facilities / Indoor Facilities","Community Assets / Sport and Recreation Facilities / Indoor Facilities"," _ "," _ "," _ "," _ "," _ "," _ "," _ ",null," _ "," _ "," _ "," _ "," _ ",null," _ "," _ "," _ "," _ ",null,3,32,"Finance","Finance & Administration",null,null,0,0,0,0,0,0,0,0,0,"_","_","_","_"]
["C0244-3/IL65530/F0002/X047/R0230/001/CONTRA","C0244-3/IL65530/F0002/X047/R0230/001/CONTRA",123737,0,"Liabilities:Current Liabilities:Trade and Other Payable Exchange Transactions:Payables and Accruals : Contractors:Deposits"," _"," _"," _ "," _ "," _ "," _ ",1200,"Finance and administration",1202,"Asset Management","_",2080,"Funded by Internally generated funds","C","IL",380,"Current liabilities / Trade and other payables from exchange transactions","_","_"," _ "," _ ","_","_"," _ "," _ "," _ "," _ "," _ "," _ "," _ "," _ ",null,361,"Trade and other payables / Trade and other payables from exchange transactions",361,"Trade and other payables / Trade and other payables from exchange transactions",null,null,null,1020,1020,"Community Assets / Sport and Recreation Facilities / Indoor Facilities","Community Assets / Sport and Recreation Facilities / Indoor Facilities"," _ "," _ "," _ "," _ "," _ "," _ "," _ ",null," _ "," _ "," _ "," _ "," _ ",null," _ "," _ "," _ "," _ ",null,3,33,"Asset Management","Finance & Administration",null,null,0,0,0,0,0,0,0,0,0,"_","_","_","_"]
["C0244-1/IA10370/F0791/X125/R0028/001/CONTRA","C0244-1/IA10370/F0791/X125/R0028/001/CONTRA",123778,0,"Assets:Current Assets:VAT Receivable:Input Tax Capital:Recognised"," _"," _"," _ "," _ "," _ "," _ ",2200,"Sport and recreation",2205,"Sports Grounds and Stadiums","_",2010,"Funded by National Government","C","IA",170,"Current assets / VAT",170,"VAT"," _ "," _ ","_","_"," _ "," _ "," _ "," _ "," _ "," _ "," _ "," _ ",null," _ "," _ "," _ "," _ ",null,null,null,1020,1020,"Community Assets / Sport and Recreation Facilities / Indoor Facilities","Community Assets / Sport and Recreation Facilities / Indoor Facilities"," _ "," _ "," _ "," _ "," _ "," _ "," _ ",null," _ "," _ "," _ "," _ "," _ ",null," _ "," _ "," _ "," _ ",null,10,102,"Sports Grounds and Stadiums","Sports & Recreation",null,null,0,0,0,0,0,1442052,0,0,0,"_","_","_","_"]
["C0244-3/IA10370/F0002/X047/R0230/001/CONTRA","C0244-3/IA10370/F0002/X047/R0230/001/CONTRA",123736,0,"Assets:Current Assets:VAT Receivable:Input Tax Capital:Recognised"," _"," _"," _ "," _ "," _ "," _ ",1200,"Finance and administration",1202,"Asset Management","_",2080,"Funded by Internally generated funds","C","IA",170,"Current assets / VAT",170,"VAT"," _ "," _ ","_","_"," _ "," _ "," _ "," _ "," _ "," _ "," _ "," _ ",null," _ "," _ "," _ "," _ ",null,null,null,1020,1020,"Community Assets / Sport and Recreation Facilities / Indoor Facilities","Community Assets / Sport and Recreation Facilities / Indoor Facilities"," _ "," _ "," _ "," _ "," _ "," _ "," _ ",null," _ "," _ "," _ "," _ "," _ ",null," _ "," _ "," _ "," _ ",null,3,33,"Asset Management","Finance & Administration",null,null,0,0,0,0,0,0,0,0,0,"_","_","_","_"]
["C0244-2/IA10370/F0002/X049/R0230/001/CONTRA","C0244-2/IA10370/F0002/X049/R0230/001/CONTRA",122752,0,"Assets:Current Assets:VAT Receivable:Input Tax Capital:Recognised"," _"," _"," _ "," _ "," _ "," _ ",1200,"Finance and administration",1204,"Finance","_",2080,"Funded by Internally generated funds","C","IA",170,"Current assets / VAT",170,"VAT"," _ "," _ ","_","_"," _ "," _ "," _ "," _ "," _ "," _ "," _ "," _ ",null," _ "," _ "," _ "," _ ",null,null,null,1020,1020,"Community Assets / Sport and Recreation Facilities / Indoor Facilities","Community Assets / Sport and Recreation Facilities / Indoor Facilities"," _ "," _ "," _ "," _ "," _ "," _ "," _ ",null," _ "," _ "," _ "," _ "," _ ",null," _ "," _ "," _ "," _ ",null,3,32,"Finance","Finance & Administration",null,null,0,0,0,0,0,0,0,0,0,"_","_","_","_"]
["C0244-1/IA10370/F0002/X125/R0029/001/CONTRA","C0244-1/IA10370/F0002/X125/R0029/001/CONTRA",123774,0,"Assets:Current Assets:VAT Receivable:Input Tax Capital:Recognised"," _"," _"," _ "," _ "," _ "," _ ",2200,"Sport and recreation",2205,"Sports Grounds and Stadiums","_",2080,"Funded by Internally generated funds","C","IA",170,"Current assets / VAT",170,"VAT"," _ "," _ ","_","_"," _ "," _ "," _ "," _ "," _ "," _ "," _ "," _ ",null," _ "," _ "," _ "," _ ",null,null,null,1020,1020,"Community Assets / Sport and Recreation Facilities / Indoor Facilities","Community Assets / Sport and Recreation Facilities / Indoor Facilities"," _ "," _ "," _ "," _ "," _ "," _ "," _ ",null," _ "," _ "," _ "," _ "," _ ",null," _ "," _ "," _ "," _ ",null,10,102,"Sports Grounds and Stadiums","Sports & Recreation",null,null,0,0,0,0,0,0,0,0,0,"_","_","_","_"]
["C0244-3/IA02108/F0002/X047/R0230/001/CONTRA","C0244-3/IA02108/F0002/X047/R0230/001/CONTRA",124447,0,"Assets:Current Assets:Cash and Cash Equivalents:Cash at Bank:Bank Account:Specify (replace with account description):Withdrawals"," _"," _"," _ "," _ "," _ "," _ ",1200,"Finance and administration",1202,"Asset Management","_",2080,"Funded by Internally generated funds","C","IA",120,"Current assets / Cash and cash equivalents",120,"Cash and cash equivalents"," _ "," _ ","_","_",310,"Other Cash Flows/Payments by Type / Capital assets",510,"Capital assets"," _ "," _ "," _ "," _ ",null," _ "," _ "," _ "," _ ",null,null,"W",1020,1020,"Community Assets / Sport and Recreation Facilities / Indoor Facilities","Community Assets / Sport and Recreation Facilities / Indoor Facilities"," _ "," _ "," _ "," _ "," _ "," _ "," _ ",null," _ "," _ "," _ "," _ "," _ ",null," _ "," _ "," _ "," _ ",null,3,33,"Asset Management","Finance & Administration",null,null,0,0,0,0,0,0,0,0,0,"_","_","_","_"]
["C0244-2/IA02108/F0002/X049/R0230/001/CONTRA","C0244-2/IA02108/F0002/X049/R0230/001/CONTRA",124531,0,"Assets:Current Assets:Cash and Cash Equivalents:Cash at Bank:Bank Account:Specify (replace with account description):Withdrawals"," _"," _"," _ "," _ "," _ "," _ ",1200,"Finance and administration",1204,"Finance","_",2080,"Funded by Internally generated funds","C","IA",120,"Current assets / Cash and cash equivalents",120,"Cash and cash equivalents"," _ "," _ ","_","_",310,"Other Cash Flows/Payments by Type / Capital assets",510,"Capital assets"," _ "," _ "," _ "," _ ",null," _ "," _ "," _ "," _ ",null,null,"W",1020,1020,"Community Assets / Sport and Recreation Facilities / Indoor Facilities","Community Assets / Sport and Recreation Facilities / Indoor Facilities"," _ "," _ "," _ "," _ "," _ "," _ "," _ ",null," _ "," _ "," _ "," _ "," _ ",null," _ "," _ "," _ "," _ ",null,3,32,"Finance","Finance & Administration",null,null,0,0,0,0,0,0,0,0,0,"_","_","_","_"]
["C0244-1/IA02108/F0002/X125/R0029/001/CONTRA","C0244-1/IA02108/F0002/X125/R0029/001/CONTRA",124470,0,"Assets:Current Assets:Cash and Cash Equivalents:Cash at Bank:Bank Account:Specify (replace with account description):Withdrawals"," _"," _"," _ "," _ "," _ "," _ ",2200,"Sport and recreation",2205,"Sports Grounds and Stadiums","_",2080,"Funded by Internally generated funds","C","IA",120,"Current assets / Cash and cash equivalents",120,"Cash and cash equivalents"," _ "," _ ","_","_",310,"Other Cash Flows/Payments by Type / Capital assets",510,"Capital assets"," _ "," _ "," _ "," _ ",null," _ "," _ "," _ "," _ ",null,null,"W",1020,1020,"Community Assets / Sport and Recreation Facilities / Indoor Facilities","Community Assets / Sport and Recreation Facilities / Indoor Facilities"," _ "," _ "," _ "," _ "," _ "," _ "," _ ",null," _ "," _ "," _ "," _ "," _ ",null," _ "," _ "," _ "," _ ",null,10,102,"Sports Grounds and Stadiums","Sports & Recreation",null,null,0,0,0,0,0,0,0,0,0,"_","_","_","_"]
["C0244-1/IA02108/F0791/X125/R0028/001/CONTRA","C0244-1/IA02108/F0791/X125/R0028/001/CONTRA",124471,0,"Assets:Current Assets:Cash and Cash Equivalents:Cash at Bank:Bank Account:Specify (replace with account description):Withdrawals"," _"," _"," _ "," _ "," _ "," _ ",2200,"Sport and recreation",2205,"Sports Grounds and Stadiums","_",2010,"Funded by National Government","C","IA",120,"Current assets / Cash and cash equivalents",120,"Cash and cash equivalents","0160W","CASH FLOW FROM OPERATING ACTIVITIES / Receipts / Transfers and Subsidies - Capital","0160W","CASH FLOW FROM OPERATING ACTIVITIES / Receipts / Transfers and Subsidies - Capital",310,"Other Cash Flows/Payments by Type / Capital assets",510,"Capital assets"," _ "," _ "," _ "," _ ",null," _ "," _ "," _ "," _ ",280,"Other Cash Flows by Source / Transfers and subsidies - capital (monetary allocations) (National / Provincial and District)","W",1020,1020,"Community Assets / Sport and Recreation Facilities / Indoor Facilities","Community Assets / Sport and Recreation Facilities / Indoor Facilities"," _ "," _ "," _ "," _ "," _ "," _ "," _ ",null," _ "," _ "," _ "," _ "," _ ",null," _ "," _ "," _ "," _ ",null,10,102,"Sports Grounds and Stadiums","Sports & Recreation",null,null,0,0,0,0,0,0,0,0,0,"_","_","_","_"]
["C0244-1/IL65531/F0791/X125/R0028/001/CONTRA","C0244-1/IL65531/F0791/X125/R0028/001/CONTRA",123780,0,"Liabilities:Current Liabilities:Trade and Other Payable Exchange Transactions:Payables and Accruals : Contractors:Withdrawals"," _"," _"," _ "," _ "," _ "," _ ",2200,"Sport and recreation",2205,"Sports Grounds and Stadiums","_",2010,"Funded by National Government","C","IL",380,"Current liabilities / Trade and other payables from exchange transactions","_","_"," _ "," _ ","_","_",200,"Cash Payments by Type / Contracted Services",450,"Cash Payments by Type / Contracted Services"," _ "," _ "," _ "," _ ",null,361,"Trade and other payables / Trade and other payables from exchange transactions",361,"Trade and other payables / Trade and other payables from exchange transactions",null,null,null,1020,1020,"Community Assets / Sport and Recreation Facilities / Indoor Facilities","Community Assets / Sport and Recreation Facilities / Indoor Facilities"," _ "," _ "," _ "," _ "," _ "," _ "," _ ",null," _ "," _ "," _ "," _ "," _ ",null," _ "," _ "," _ "," _ ",null,10,102,"Sports Grounds and Stadiums","Sports & Recreation",null,null,0,0,0,0,0,11055731,0,0,0,"_","_","_","_"]
["C0244-3/IL65531/F0002/X047/R0230/001/CONTRA","C0244-3/IL65531/F0002/X047/R0230/001/CONTRA",123738,0,"Liabilities:Current Liabilities:Trade and Other Payable Exchange Transactions:Payables and Accruals : Contractors:Withdrawals"," _"," _"," _ "," _ "," _ "," _ ",1200,"Finance and administration",1202,"Asset Management","_",2080,"Funded by Internally generated funds","C","IL",380,"Current liabilities / Trade and other payables from exchange transactions","_","_"," _ "," _ ","_","_",200,"Cash Payments by Type / Contracted Services",450,"Cash Payments by Type / Contracted Services"," _ "," _ "," _ "," _ ",null,361,"Trade and other payables / Trade and other payables from exchange transactions",361,"Trade and other payables / Trade and other payables from exchange transactions",null,null,null,1020,1020,"Community Assets / Sport and Recreation Facilities / Indoor Facilities","Community Assets / Sport and Recreation Facilities / Indoor Facilities"," _ "," _ "," _ "," _ "," _ "," _ "," _ ",null," _ "," _ "," _ "," _ "," _ ",null," _ "," _ "," _ "," _ ",null,3,33,"Asset Management","Finance & Administration",null,null,0,0,0,0,0,0,0,0,0,"_","_","_","_"]
["C0244-1/IL65531/F0002/X125/R0029/001/CONTRA","C0244-1/IL65531/F0002/X125/R0029/001/CONTRA",123776,0,"Liabilities:Current Liabilities:Trade and Other Payable Exchange Transactions:Payables and Accruals : Contractors:Withdrawals"," _"," _"," _ "," _ "," _ "," _ ",2200,"Sport and recreation",2205,"Sports Grounds and Stadiums","_",2080,"Funded by Internally generated funds","C","IL",380,"Current liabilities / Trade and other payables from exchange transactions","_","_"," _ "," _ ","_","_",200,"Cash Payments by Type / Contracted Services",450,"Cash Payments by Type / Contracted Services"," _ "," _ "," _ "," _ ",null,361,"Trade and other payables / Trade and other payables from exchange transactions",361,"Trade and other payables / Trade and other payables from exchange transactions",null,null,null,1020,1020,"Community Assets / Sport and Recreation Facilities / Indoor Facilities","Community Assets / Sport and Recreation Facilities / Indoor Facilities"," _ "," _ "," _ "," _ "," _ "," _ "," _ ",null," _ "," _ "," _ "," _ "," _ ",null," _ "," _ "," _ "," _ ",null,10,102,"Sports Grounds and Stadiums","Sports & Recreation",null,null,0,0,0,0,0,0,0,0,0,"_","_","_","_"]
["C0244-2/IL65531/F0002/X049/R0230/001/CONTRA","C0244-2/IL65531/F0002/X049/R0230/001/CONTRA",122754,0,"Liabilities:Current Liabilities:Trade and Other Payable Exchange Transactions:Payables and Accruals : Contractors:Withdrawals"," _"," _"," _ "," _ "," _ "," _ ",1200,"Finance and administration",1204,"Finance","_",2080,"Funded by Internally generated funds","C","IL",380,"Current liabilities / Trade and other payables from exchange transactions","_","_"," _ "," _ ","_","_",200,"Cash Payments by Type / Contracted Services",450,"Cash Payments by Type / Contracted Services"," _ "," _ "," _ "," _ ",null,361,"Trade and other payables / Trade and other payables from exchange transactions",361,"Trade and other payables / Trade and other payables from exchange transactions",null,null,null,1020,1020,"Community Assets / Sport and Recreation Facilities / Indoor Facilities","Community Assets / Sport and Recreation Facilities / Indoor Facilities"," _ "," _ "," _ "," _ "," _ "," _ "," _ ",null," _ "," _ "," _ "," _ "," _ ",null," _ "," _ "," _ "," _ ",null,3,32,"Finance","Finance & Administration",null,null,0,0,0,0,0,0,0,0,0,"_","_","_","_"]
["C0244-2/IA00035/F0002/X049/R0230/001/6114","C0244-2/IA00035/F0002/X049/R0230/001/6114",61383,4105,"Assets:Non-current Assets:Property, Plant and Equipment:Cost Model:Community Assets:Cost:Correction of Error"," _"," _"," _ "," _ "," _ "," _ ",1200,"Finance and administration",1204,"Finance","_",2080,"Funded by Internally generated funds","C","IA",230,"Non current assets / Property, plant and equipment",231,"Land: Acquisitions"," _ "," _ ","_","_"," _ "," _ "," _ "," _ ",770,"Community Assets",770,"Community Assets",null,241,"Property, plant and equipment (PPE) / PPE at cost/valuation (excl. finance leases)",241,"Property, plant and equipment (PPE) / PPE at cost/valuation (excl. finance leases)",null,null,null,1020,1020,"Community Assets / Sport and Recreation Facilities / Indoor Facilities","Community Assets / Sport and Recreation Facilities / Indoor Facilities"," _ "," _ "," _ "," _ "," _ "," _ "," _ ",null," _ "," _ "," _ "," _ "," _ ",null," _ "," _ "," _ "," _ ",null,3,32,"Finance","Finance & Administration",null,null,0,0,0,0,0,0,0,0,0,"_","_","_","_"]
["C0244-1/IA01952/F0791/X125/R0028/001/6401","C0244-1/IA01952/F0791/X125/R0028/001/6401",30393,1836,"Assets:Non-current Assets:Construction Work-in-progress:Acquisitions:Outsourced"," _"," _"," _ "," _ "," _ "," _ ",2200,"Sport and recreation",2205,"Sports Grounds and Stadiums","CE",2010,"Funded by National Government","C","IA",230,"Non current assets / Property, plant and equipment",231,"Land: Acquisitions"," _ "," _ ","_","_"," _ "," _ "," _ "," _ "," _ "," _ "," _ "," _ ",1020,241,"Property, plant and equipment (PPE) / PPE at cost/valuation (excl. finance leases)",241,"Property, plant and equipment (PPE) / PPE at cost/valuation (excl. finance leases)",null,null,null,1020,1020,"Community Assets / Sport and Recreation Facilities / Indoor Facilities","Community Assets / Sport and Recreation Facilities / Indoor Facilities"," _ "," _ "," _ "," _ "," _ "," _ "," _ ",null," _ "," _ "," _ "," _ "," _ ",null," _ "," _ "," _ "," _ ",null,10,102,"Sports Grounds and Stadiums","Sports & Recreation",null,null,0,0,0,21457650,11726504,9613679,0,0,4894015,"_","_","_","_"]
["C0244-3/IA01952/F0002/X047/R0230/001/6114","C0244-3/IA01952/F0002/X047/R0230/001/6114",69509,4400,"Assets:Non-current Assets:Construction Work-in-progress:Acquisitions:Outsourced"," _"," _"," _ "," _ "," _ "," _ ",1200,"Finance and administration",1202,"Asset Management","CE",2080,"Funded by Internally generated funds","C","IA",230,"Non current assets / Property, plant and equipment",231,"Land: Acquisitions"," _ "," _ ","_","_"," _ "," _ "," _ "," _ "," _ "," _ "," _ "," _ ",1020,241,"Property, plant and equipment (PPE) / PPE at cost/valuation (excl. finance leases)",241,"Property, plant and equipment (PPE) / PPE at cost/valuation (excl. finance leases)",null,null,null,1020,1020,"Community Assets / Sport and Recreation Facilities / Indoor Facilities","Community Assets / Sport and Recreation Facilities / Indoor Facilities"," _ "," _ "," _ "," _ "," _ "," _ "," _ ",null," _ "," _ "," _ "," _ "," _ ",null," _ "," _ "," _ "," _ ",null,3,33,"Asset Management","Finance & Administration",null,null,0,0,0,0,0,0,0,0,0,"_","_","_","_"]
["C0244-1/IA01952/F0002/X125/R0029/001/6401","C0244-1/IA01952/F0002/X125/R0029/001/6401",99845,7730,"Assets:Non-current Assets:Construction Work-in-progress:Acquisitions:Outsourced"," _"," _"," _ "," _ "," _ "," _ ",2200,"Sport and recreation",2205,"Sports Grounds and Stadiums","CE",2080,"Funded by Internally generated funds","C","IA",230,"Non current assets / Property, plant and equipment",231,"Land: Acquisitions"," _ "," _ ","_","_"," _ "," _ "," _ "," _ "," _ "," _ "," _ "," _ ",1020,241,"Property, plant and equipment (PPE) / PPE at cost/valuation (excl. finance leases)",241,"Property, plant and equipment (PPE) / PPE at cost/valuation (excl. finance leases)",null,null,null,1020,1020,"Community Assets / Sport and Recreation Facilities / Indoor Facilities","Community Assets / Sport and Recreation Facilities / Indoor Facilities"," _ "," _ "," _ "," _ "," _ "," _ "," _ ",null," _ "," _ "," _ "," _ "," _ ",null," _ "," _ "," _ "," _ ",null,10,102,"Sports Grounds and Stadiums","Sports & Recreation",null,null,1712722,0,0,0,0,0,0,0,1712722,"_","_","_","_"]
["C0244-2/IA02105/F0002/X049/R0230/001/CONTRA","C0244-2/IA02105/F0002/X049/R0230/001/CONTRA",122751,0,"Assets:Current Assets:Cash and Cash Equivalents:Cash at Bank:Bank Account:Specify (replace with account description):Deposits"," _"," _"," _ "," _ "," _ "," _ ",1200,"Finance and administration",1204,"Finance","_",2080,"Funded by Internally generated funds","C","IA",120,"Current assets / Cash and cash equivalents",120,"Cash and cash equivalents"," _ "," _ ","_","_",null,"Recepts - Cash and Cash Equivalents","0510","Recepts - Cash and Cash Equivalents"," _ "," _ "," _ "," _ ",null," _ "," _ "," _ "," _ ",null,null,"D",1020,1020,"Community Assets / Sport and Recreation Facilities / Indoor Facilities","Community Assets / Sport and Recreation Facilities / Indoor Facilities"," _ "," _ "," _ "," _ "," _ "," _ "," _ ",null," _ "," _ "," _ "," _ "," _ ",null," _ "," _ "," _ "," _ ",null,3,32,"Finance","Finance & Administration",null,null,0,0,0,0,0,0,0,0,0,"_","_","_","_"]
["C0244-1/IA02105/F0002/X125/R0029/001/CONTRA","C0244-1/IA02105/F0002/X125/R0029/001/CONTRA",123773,0,"Assets:Current Assets:Cash and Cash Equivalents:Cash at Bank:Bank Account:Specify (replace with account description):Deposits"," _"," _"," _ "," _ "," _ "," _ ",2200,"Sport and recreation",2205,"Sports Grounds and Stadiums","_",2080,"Funded by Internally generated funds","C","IA",120,"Current assets / Cash and cash equivalents",120,"Cash and cash equivalents"," _ "," _ ","_","_",null,"Recepts - Cash and Cash Equivalents","0510","Recepts - Cash and Cash Equivalents"," _ "," _ "," _ "," _ ",null," _ "," _ "," _ "," _ ",null,null,"D",1020,1020,"Community Assets / Sport and Recreation Facilities / Indoor Facilities","Community Assets / Sport and Recreation Facilities / Indoor Facilities"," _ "," _ "," _ "," _ "," _ "," _ "," _ ",null," _ "," _ "," _ "," _ "," _ ",null," _ "," _ "," _ "," _ ",null,10,102,"Sports Grounds and Stadiums","Sports & Recreation",null,null,0,0,0,0,0,0,0,0,0,"_","_","_","_"]
["C0244-3/IA02105/F0002/X047/R0230/001/CONTRA","C0244-3/IA02105/F0002/X047/R0230/001/CONTRA",123735,0,"Assets:Current Assets:Cash and Cash Equivalents:Cash at Bank:Bank Account:Specify (replace with account description):Deposits"," _"," _"," _ "," _ "," _ "," _ ",1200,"Finance and administration",1202,"Asset Management","_",2080,"Funded by Internally generated funds","C","IA",120,"Current assets / Cash and cash equivalents",120,"Cash and cash equivalents"," _ "," _ ","_","_",null,"Recepts - Cash and Cash Equivalents","0510","Recepts - Cash and Cash Equivalents"," _ "," _ "," _ "," _ ",null," _ "," _ "," _ "," _ ",null,null,"D",1020,1020,"Community Assets / Sport and Recreation Facilities / Indoor Facilities","Community Assets / Sport and Recreation Facilities / Indoor Facilities"," _ "," _ "," _ "," _ "," _ "," _ "," _ ",null," _ "," _ "," _ "," _ "," _ ",null," _ "," _ "," _ "," _ ",null,3,33,"Asset Management","Finance & Administration",null,null,0,0,0,0,0,0,0,0,0,"_","_","_","_"]
["C0244-1/IA02105/F0791/X125/R0028/001/CONTRA","C0244-1/IA02105/F0791/X125/R0028/001/CONTRA",123777,0,"Assets:Current Assets:Cash and Cash Equivalents:Cash at Bank:Bank Account:Specify (replace with account description):Deposits"," _"," _"," _ "," _ "," _ "," _ ",2200,"Sport and recreation",2205,"Sports Grounds and Stadiums","_",2010,"Funded by National Government","C","IA",120,"Current assets / Cash and cash equivalents",120,"Cash and cash equivalents","0160D","CASH FLOW FROM OPERATING ACTIVITIES / Receipts / Transfers and Subsidies - Capital",0,"Transfers - National, Provincial, District Municipalities ",null,"Recepts - Cash and Cash Equivalents","0510","Recepts - Cash and Cash Equivalents"," _ "," _ "," _ "," _ ",null," _ "," _ "," _ "," _ ",280,"Other Cash Flows by Source / Transfers and subsidies - capital (monetary allocations) (National / Provincial and District)","D",1020,1020,"Community Assets / Sport and Recreation Facilities / Indoor Facilities","Community Assets / Sport and Recreation Facilities / Indoor Facilities"," _ "," _ "," _ "," _ "," _ "," _ "," _ ",null," _ "," _ "," _ "," _ "," _ ",null," _ "," _ "," _ "," _ ",null,10,102,"Sports Grounds and Stadiums","Sports & Recreation",null,null,0,0,0,0,0,-11055731,0,0,0,"_","_","_","_"]
["C0244-2/IA00022/F0002/X049/R0230/001/6114","C0244-2/IA00022/F0002/X049/R0230/001/6114",61385,4107,"Assets:Non-current Assets:Property, Plant and Equipment:Cost Model:Community Assets:Accumulated Depreciation:Depreciation"," _"," _"," _ "," _ "," _ "," _ ",1200,"Finance and administration",1204,"Finance","_",2080,"Funded by Internally generated funds","C","IA",230,"Non current assets / Property, plant and equipment",233,"Land: Adjustments"," _ "," _ ","_","_"," _ "," _ "," _ "," _ ",770,"Community Assets",770,"Community Assets",null,243,"Property, plant and equipment (PPE) / Less: Accumulated depreciation",243,"Property, plant and equipment (PPE) / Less: Accumulated depreciation",null,null,null,1020,1020,"Community Assets / Sport and Recreation Facilities / Indoor Facilities","Community Assets / Sport and Recreation Facilities / Indoor Facilities"," _ "," _ "," _ "," _ "," _ "," _ "," _ ",null," _ "," _ "," _ "," _ "," _ ",null," _ "," _ "," _ "," _ ",null,3,32,"Finance","Finance & Administration",null,null,4148788,4148788,4148788,0,0,0,0,0,4148788,"_","_","_","_"]
["C0244-2/IA00032/F0002/X049/R0230/001/6114","C0244-2/IA00032/F0002/X049/R0230/001/6114",61384,4106,"Assets:Non-current Assets:Property, Plant and Equipment:Cost Model:Community Assets:Cost:Acquisitions"," _"," _"," _ "," _ "," _ "," _ ",1200,"Finance and administration",1204,"Finance","CE",2080,"Funded by Internally generated funds","C","IA",230,"Non current assets / Property, plant and equipment",231,"Land: Acquisitions"," _ "," _ ","_","_"," _ "," _ "," _ "," _ ",770,"Community Assets",770,"Community Assets",null,241,"Property, plant and equipment (PPE) / PPE at cost/valuation (excl. finance leases)",241,"Property, plant and equipment (PPE) / PPE at cost/valuation (excl. finance leases)",null,null,null,1020,1020,"Community Assets / Sport and Recreation Facilities / Indoor Facilities","Community Assets / Sport and Recreation Facilities / Indoor Facilities"," _ "," _ "," _ "," _ "," _ "," _ "," _ ",null," _ "," _ "," _ "," _ "," _ ",null," _ "," _ "," _ "," _ ",null,3,32,"Finance","Finance & Administration",null,null,0,0,0,0,0,0,0,0,0,"_","_","_","_"]
["O0029-1/IA10375/F0041/X052/R0230/001/CONTRA","O0029-1/IA10375/F0041/X052/R0230/001/CONTRA",122942,0,"Assets:Current Assets:VAT Receivable:Input Tax Accrual:Recognised"," _"," _"," _ "," _ "," _ "," _ ",1200,"Finance and administration",1207,"Information Technology","_"," _"," _","O","IA",170,"Current assets / VAT",170,"VAT"," _ "," _ ","_","_"," _ "," _ "," _ "," _ "," _ "," _ "," _ "," _ ",null," _ "," _ "," _ "," _ ",null,null,null," _ "," _ "," _ "," _ "," _ "," _ "," _ "," _ "," _ "," _ "," _ ",null," _ "," _ "," _ "," _ "," _ ",null," _ "," _ "," _ "," _ ",null,14,143,"Information Technology","Finance & Administration 2",null,null,0,0,0,0,0,0,0,0,0,"_","_","_","_"]
["O0029-1/IL53820/F0041/X052/R0230/001/CONTRA","O0029-1/IL53820/F0041/X052/R0230/001/CONTRA",122943,0,"Liabilities:Current Liabilities:Trade and Other Payable Exchange Transactions:Payables and Accruals : General:Deposits"," _"," _"," _ "," _ "," _ "," _ ",1200,"Finance and administration",1207,"Information Technology","_"," _"," _","O","IL",380,"Current liabilities / Trade and other payables from exchange transactions","_","_"," _ "," _ ","_","_"," _ "," _ "," _ "," _ "," _ "," _ "," _ "," _ ",null,361,"Trade and other payables / Trade and other payables from exchange transactions",361,"Trade and other payables / Trade and other payables from exchange transactions",null,null,null," _ "," _ "," _ "," _ "," _ "," _ "," _ "," _ "," _ "," _ "," _ ",null," _ "," _ "," _ "," _ "," _ ",null," _ "," _ "," _ "," _ ",null,14,143,"Information Technology","Finance & Administration 2",null,null,0,0,0,0,0,0,0,0,0,"_","_","_","_"]
["O0029-1/IA02108/F0041/X052/R0230/001/CONTRA","O0029-1/IA02108/F0041/X052/R0230/001/CONTRA",122941,0,"Assets:Current Assets:Cash and Cash Equivalents:Cash at Bank:Bank Account:Specify (replace with account description):Withdrawals"," _"," _"," _ "," _ "," _ "," _ ",1200,"Finance and administration",1207,"Information Technology","_"," _"," _","O","IA",120,"Current assets / Cash and cash equivalents",120,"Cash and cash equivalents","0150W","CASH FLOW FROM OPERATING ACTIVITIES / Receipts / Transfers and Subsidies - Operational","0150W","CASH FLOW FROM OPERATING ACTIVITIES / Receipts / Transfers and Subsidies - Operational"," _ "," _ "," _ "," _ "," _ "," _ "," _ "," _ ",null," _ "," _ "," _ "," _ ",240,"Cash Receipts By Source / Transfers and Subsidies - Operational","W"," _ "," _ "," _ "," _ "," _ "," _ "," _ "," _ "," _ "," _ "," _ ",null," _ "," _ "," _ "," _ "," _ ",null," _ "," _ "," _ "," _ ",null,14,143,"Information Technology","Finance & Administration 2",null,null,0,0,0,0,0,0,0,0,0,"_","_","_","_"]
["O0029-1/IE00795/F0041/X052/R0230/001/6105","O0029-1/IE00795/F0041/X052/R0230/001/6105",69602,4493,"Expenditure:Operational Cost:External Computer Service:System Development",4100,"Expenditure / Operational costs",2904,"Expenditure / Operational costs",2904,"Operational Costs ",1200,"Finance and administration",1207,"Information Technology","_"," _"," _","O","IE"," _ "," _ "," _ "," _ "," _ "," _ ","_","_"," _ "," _ "," _ "," _ "," _ "," _ "," _ "," _ ",null," _ "," _ "," _ "," _ ",null,null,null," _ "," _ "," _ "," _ "," _ "," _ "," _ "," _ "," _ "," _ "," _ ",null," _ "," _ "," _ "," _ "," _ ",null," _ "," _ "," _ "," _ ",null,14,143,"Information Technology","Finance & Administration 2",null,null,0,0,0,0,0,0,0,0,0,"_","_","_","_"]
["O0029-1/IL53821/F0041/X052/R0230/001/CONTRA","O0029-1/IL53821/F0041/X052/R0230/001/CONTRA",122944,0,"Liabilities:Current Liabilities:Trade and Other Payable Exchange Transactions:Payables and Accruals : General:Withdrawals"," _"," _"," _ "," _ "," _ "," _ ",1200,"Finance and administration",1207,"Information Technology","_"," _"," _","O","IL",380,"Current liabilities / Trade and other payables from exchange transactions","_","_"," _ "," _ ","_","_",200,"Cash Payments by Type / Other expenditure",480,"Other expenditure"," _ "," _ "," _ "," _ ",null,361,"Trade and other payables / Trade and other payables from exchange transactions",361,"Trade and other payables / Trade and other payables from exchange transactions",null,null,null," _ "," _ "," _ "," _ "," _ "," _ "," _ "," _ "," _ "," _ "," _ ",null," _ "," _ "," _ "," _ "," _ ",null," _ "," _ "," _ "," _ ",null,14,143,"Information Technology","Finance & Administration 2",null,null,0,0,0,0,0,0,0,0,0,"_","_","_","_"]
["O1335-1/IL53821/F0041/X044/R0230/001/CONTRA","O1335-1/IL53821/F0041/X044/R0230/001/CONTRA",121988,0,"Liabilities:Current Liabilities:Trade and Other Payable Exchange Transactions:Payables and Accruals : General:Withdrawals"," _"," _"," _ "," _ "," _ "," _ ",1100,"Executive and council",1110,"Mayor and Council","_"," _"," _","O","IL",380,"Current liabilities / Trade and other payables from exchange transactions","_","_"," _ "," _ ","_","_",200,"Cash Payments by Type / Other expenditure",480,"Other expenditure"," _ "," _ "," _ "," _ ",null,361,"Trade and other payables / Trade and other payables from exchange transactions",361,"Trade and other payables / Trade and other payables from exchange transactions",null,null,null," _ "," _ "," _ "," _ "," _ "," _ "," _ "," _ "," _ "," _ "," _ ",null," _ "," _ "," _ "," _ "," _ ",null," _ "," _ "," _ "," _ ",null,5,52,"Mayor and Council","Executive & Council",null,null,0,0,0,0,0,1115500,1132750,1150000,0,"_","_","_","_"]
["O1335-1/IE00060/F0041/X044/R0230/001/6057","O1335-1/IE00060/F0041/X044/R0230/001/6057",30682,1913,"Expenditure:Operational Cost:Travel and Subsistence:Domestic:Accommodation",4100,"Expenditure / Operational costs",2904,"Expenditure / Operational costs",2904,"Operational Costs ",1100,"Executive and council",1110,"Mayor and Council","_"," _"," _","O","IE"," _ "," _ "," _ "," _ "," _ "," _ ","_","_"," _ "," _ "," _ "," _ "," _ "," _ "," _ "," _ ",null," _ "," _ "," _ "," _ ",null,null,null," _ "," _ "," _ "," _ "," _ "," _ "," _ "," _ "," _ "," _ "," _ ",null," _ "," _ "," _ "," _ "," _ ",null," _ "," _ "," _ "," _ ",null,5,52,"Mayor and Council","Executive & Council",null,null,0,0,0,0,0,0,0,0,0,"_","_","_","_"]
["O1335-1/IE00677/F0041/X044/R0230/001/6057","O1335-1/IE00677/F0041/X044/R0230/001/6057",30685,1916,"Expenditure:Contracted Services:Outsourced Services:Catering Services",3800,"Expenditure / Contracted services",2701,"Expenditure / Contracted services",2701,"Contracted Services ",1100,"Executive and council",1110,"Mayor and Council","_"," _"," _","O","IE"," _ "," _ "," _ "," _ "," _ "," _ ","_","_"," _ "," _ "," _ "," _ "," _ "," _ "," _ "," _ ",null," _ "," _ "," _ "," _ ",null,null,null," _ "," _ "," _ "," _ "," _ "," _ "," _ "," _ "," _ "," _ "," _ ",null," _ "," _ "," _ "," _ "," _ ",null," _ "," _ "," _ "," _ ",null,5,52,"Mayor and Council","Executive & Council",null,null,0,0,0,150000,100000,140000,150000,150000,0,"_","_","_","_"]
["O1335-1/IE00754/F0041/X044/R0230/001/6057","O1335-1/IE00754/F0041/X044/R0230/001/6057",30683,1914,"Expenditure:Operational Cost:Advertising, Publicity and Marketing:Gifts and Promotional Items",4100,"Expenditure / Operational costs",2904,"Expenditure / Operational costs",2904,"Operational Costs ",1100,"Executive and council",1110,"Mayor and Council","_"," _"," _","O","IE"," _ "," _ "," _ "," _ "," _ "," _ ","_","_"," _ "," _ "," _ "," _ "," _ "," _ "," _ "," _ ",null," _ "," _ "," _ "," _ ",null,null,null," _ "," _ "," _ "," _ "," _ "," _ "," _ "," _ "," _ "," _ "," _ ",null," _ "," _ "," _ "," _ "," _ ",null," _ "," _ "," _ "," _ ",null,5,52,"Mayor and Council","Executive & Council",null,null,0,0,0,600000,650000,800000,800000,800000,0,"_","_","_","_"]
["O1335-1/IL65530/F0041/X044/R0230/001/CONTRA","O1335-1/IL65530/F0041/X044/R0230/001/CONTRA",121989,0,"Liabilities:Current Liabilities:Trade and Other Payable Exchange Transactions:Payables and Accruals : Contractors:Deposits"," _"," _"," _ "," _ "," _ "," _ ",1100,"Executive and council",1110,"Mayor and Council","_"," _"," _","O","IL",380,"Current liabilities / Trade and other payables from exchange transactions","_","_"," _ "," _ ","_","_"," _ "," _ "," _ "," _ "," _ "," _ "," _ "," _ ",null,361,"Trade and other payables / Trade and other payables from exchange transactions",361,"Trade and other payables / Trade and other payables from exchange transactions",null,null,null," _ "," _ "," _ "," _ "," _ "," _ "," _ "," _ "," _ "," _ "," _ ",null," _ "," _ "," _ "," _ "," _ ",null," _ "," _ "," _ "," _ ",null,5,52,"Mayor and Council","Executive & Council",null,null,0,0,0,0,0,-161000,-172500,-172500,0,"_","_","_","_"]
["O1335-1/IA02108/F0041/X044/R0230/001/CONTRA","O1335-1/IA02108/F0041/X044/R0230/001/CONTRA",121985,0,"Assets:Current Assets:Cash and Cash Equivalents:Cash at Bank:Bank Account:Specify (replace with account description):Withdrawals"," _"," _"," _ "," _ "," _ "," _ ",1100,"Executive and council",1110,"Mayor and Council","_"," _"," _","O","IA",120,"Current assets / Cash and cash equivalents",120,"Cash and cash equivalents","0150W","CASH FLOW FROM OPERATING ACTIVITIES / Receipts / Transfers and Subsidies - Operational","0150W","CASH FLOW FROM OPERATING ACTIVITIES / Receipts / Transfers and Subsidies - Operational"," _ "," _ "," _ "," _ "," _ "," _ "," _ "," _ ",null," _ "," _ "," _ "," _ ",240,"Cash Receipts By Source / Transfers and Subsidies - Operational","W"," _ "," _ "," _ "," _ "," _ "," _ "," _ "," _ "," _ "," _ "," _ ",null," _ "," _ "," _ "," _ "," _ ",null," _ "," _ "," _ "," _ ",null,5,52,"Mayor and Council","Executive & Council",null,null,0,0,0,0,0,-1276500,-1305250,-1322500,0,"_","_","_","_"]
["O1335-1/IE00572/F0041/X044/R0230/001/6057","O1335-1/IE00572/F0041/X044/R0230/001/6057",99700,7590,"Expenditure:Operational Cost:Honoraria (Voluntarily Workers)",4100,"Expenditure / Operational costs",2904,"Expenditure / Operational costs",2904,"Operational Costs ",1100,"Executive and council",1110,"Mayor and Council","_"," _"," _","O","IE"," _ "," _ "," _ "," _ "," _ "," _ ","_","_"," _ "," _ "," _ "," _ "," _ "," _ "," _ "," _ ",null," _ "," _ "," _ "," _ ",null,null,null," _ "," _ "," _ "," _ "," _ "," _ "," _ "," _ "," _ "," _ "," _ ",null," _ "," _ "," _ "," _ "," _ ",null," _ "," _ "," _ "," _ ",null,5,52,"Mayor and Council","Executive & Council",null,null,0,0,0,20000,20000,30000,35000,40000,0,"_","_","_","_"]
["O1335-1/IE00703/F0041/X044/R0230/001/6057","O1335-1/IE00703/F0041/X044/R0230/001/6057",30686,1917,"Expenditure:Contracted Services:Outsourced Services:Transport Services",3800,"Expenditure / Contracted services",2701,"Expenditure / Contracted services",2701,"Contracted Services ",1100,"Executive and council",1110,"Mayor and Council","_"," _"," _","O","IE"," _ "," _ "," _ "," _ "," _ "," _ ","_","_"," _ "," _ "," _ "," _ "," _ "," _ "," _ "," _ ",null," _ "," _ "," _ "," _ ",null,null,null," _ "," _ "," _ "," _ "," _ "," _ "," _ "," _ "," _ "," _ "," _ ",null," _ "," _ "," _ "," _ "," _ ",null," _ "," _ "," _ "," _ ",null,5,52,"Mayor and Council","Executive & Council",null,null,0,0,0,0,0,0,0,0,0,"_","_","_","_"]
["O1335-1/IL65531/F0041/X044/R0230/001/CONTRA","O1335-1/IL65531/F0041/X044/R0230/001/CONTRA",121990,0,"Liabilities:Current Liabilities:Trade and Other Payable Exchange Transactions:Payables and Accruals : Contractors:Withdrawals"," _"," _"," _ "," _ "," _ "," _ ",1100,"Executive and council",1110,"Mayor and Council","_"," _"," _","O","IL",380,"Current liabilities / Trade and other payables from exchange transactions","_","_"," _ "," _ ","_","_",200,"Cash Payments by Type / Contracted Services",450,"Cash Payments by Type / Contracted Services"," _ "," _ "," _ "," _ ",null,361,"Trade and other payables / Trade and other payables from exchange transactions",361,"Trade and other payables / Trade and other payables from exchange transactions",null,null,null," _ "," _ "," _ "," _ "," _ "," _ "," _ "," _ "," _ "," _ "," _ ",null," _ "," _ "," _ "," _ "," _ ",null," _ "," _ "," _ "," _ ",null,5,52,"Mayor and Council","Executive & Council",null,null,0,0,0,0,0,161000,172500,172500,0,"_","_","_","_"]
["O1335-1/IL53820/F0041/X044/R0230/001/CONTRA","O1335-1/IL53820/F0041/X044/R0230/001/CONTRA",121987,0,"Liabilities:Current Liabilities:Trade and Other Payable Exchange Transactions:Payables and Accruals : General:Deposits"," _"," _"," _ "," _ "," _ "," _ ",1100,"Executive and council",1110,"Mayor and Council","_"," _"," _","O","IL",380,"Current liabilities / Trade and other payables from exchange transactions","_","_"," _ "," _ ","_","_"," _ "," _ "," _ "," _ "," _ "," _ "," _ "," _ ",null,361,"Trade and other payables / Trade and other payables from exchange transactions",361,"Trade and other payables / Trade and other payables from exchange transactions",null,null,null," _ "," _ "," _ "," _ "," _ "," _ "," _ "," _ "," _ "," _ "," _ ",null," _ "," _ "," _ "," _ "," _ ",null," _ "," _ "," _ "," _ ",null,5,52,"Mayor and Council","Executive & Council",null,null,0,0,0,0,0,-1115500,-1132750,-1150000,0,"_","_","_","_"]
["O1335-1/IA10375/F0041/X044/R0230/001/CONTRA","O1335-1/IA10375/F0041/X044/R0230/001/CONTRA",121986,0,"Assets:Current Assets:VAT Receivable:Input Tax Accrual:Recognised"," _"," _"," _ "," _ "," _ "," _ ",1100,"Executive and council",1110,"Mayor and Council","_"," _"," _","O","IA",170,"Current assets / VAT",170,"VAT"," _ "," _ ","_","_"," _ "," _ "," _ "," _ "," _ "," _ "," _ "," _ ",null," _ "," _ "," _ "," _ ",null,null,null," _ "," _ "," _ "," _ "," _ "," _ "," _ "," _ "," _ "," _ "," _ ",null," _ "," _ "," _ "," _ "," _ ",null," _ "," _ "," _ "," _ ",null,5,52,"Mayor and Council","Executive & Council",null,null,0,0,0,0,0,166500,170250,172500,0,"_","_","_","_"]
["O1335-1/IE00571/F0041/X044/R0230/001/6057","O1335-1/IE00571/F0041/X044/R0230/001/6057",30684,1915,"Expenditure:Operational Cost:Hire Charges",4100,"Expenditure / Operational costs",2904,"Expenditure / Operational costs",2904,"Operational Costs ",1100,"Executive and council",1110,"Mayor and Council","_"," _"," _","O","IE"," _ "," _ "," _ "," _ "," _ "," _ ","_","_"," _ "," _ "," _ "," _ "," _ "," _ "," _ "," _ ",null," _ "," _ "," _ "," _ ",null,null,null," _ "," _ "," _ "," _ "," _ "," _ "," _ "," _ "," _ "," _ "," _ ",null," _ "," _ "," _ "," _ "," _ ",null," _ "," _ "," _ "," _ ",null,5,52,"Mayor and Council","Executive & Council",null,null,0,0,0,130000,130000,140000,150000,160000,0,"_","_","_","_"]
["C0019-1/IA10375/F0002/X047/R0230/001/CONTRA","C0019-1/IA10375/F0002/X047/R0230/001/CONTRA",122518,0,"Assets:Current Assets:VAT Receivable:Input Tax Accrual:Recognised"," _"," _"," _ "," _ "," _ "," _ ",1200,"Finance and administration",1202,"Asset Management","_",2080,"Funded by Internally generated funds","C","IA",170,"Current assets / VAT",170,"VAT"," _ "," _ ","_","_"," _ "," _ "," _ "," _ "," _ "," _ "," _ "," _ ",null," _ "," _ "," _ "," _ ",null,null,null,280,280,"Infrastructure / Electrical Infrastructure / LV Networks","Infrastructure / Electrical Infrastructure / LV Networks"," _ "," _ "," _ "," _ "," _ "," _ "," _ ",null," _ "," _ "," _ "," _ "," _ ",null," _ "," _ "," _ "," _ ",null,3,33,"Asset Management","Finance & Administration",null,null,0,0,0,0,0,0,0,0,0,"_","_","_","_"]
["C0019-1/IE07553/F0002/X047/R0230/001/CONTRA","C0019-1/IE07553/F0002/X047/R0230/001/CONTRA",122519,0,"Expenditure:Depreciation and Amortisation:Depreciation:Electrical Infrastructure:LV Networks",3600,"Expenditure / Depreciation and amortisation",2301,"Expenditure / Depreciation and amortisation",2301,"Depreciation and asset impairment ",1200,"Finance and administration",1202,"Asset Management","_",2080,"Funded by Internally generated funds","C","IE"," _ "," _ "," _ "," _ "," _ "," _ ","_","_"," _ "," _ "," _ "," _ "," _ "," _ "," _ "," _ ",null," _ "," _ "," _ "," _ ",null,null,null,280,280,"Infrastructure / Electrical Infrastructure / LV Networks","Infrastructure / Electrical Infrastructure / LV Networks"," _ "," _ "," _ "," _ "," _ "," _ "," _ ",null,280,"Infrastructure / Electrical Infrastructure / LV Networks"," _ ",280,"Infrastructure / Electrical Infrastructure / LV Networks","DP"," _ "," _ "," _ "," _ ",null,3,33,"Asset Management","Finance & Administration",null,null,0,0,0,0,0,0,0,0,0,"_","_","_","_"]
["C0019-1/IA07280/F0002/X047/R0230/001/6114","C0019-1/IA07280/F0002/X047/R0230/001/6114",69536,4427,"Assets:Non-current Assets:Property, Plant and Equipment:Cost Model:Electrical Infrastructure:In-use:LV Networks:Cost:Acquisitions"," _"," _"," _ "," _ "," _ "," _ ",1200,"Finance and administration",1202,"Asset Management","CE",2080,"Funded by Internally generated funds","C","IA",230,"Non current assets / Property, plant and equipment",231,"Land: Acquisitions"," _ "," _ ","_","_"," _ "," _ "," _ "," _ ",200,"Infrastructure / Electrical Infrastructure",200,"Infrastructure / Electrical Infrastructure",null,241,"Property, plant and equipment (PPE) / PPE at cost/valuation (excl. finance leases)",241,"Property, plant and equipment (PPE) / PPE at cost/valuation (excl. finance leases)",null,null,null,280,280,"Infrastructure / Electrical Infrastructure / LV Networks","Infrastructure / Electrical Infrastructure / LV Networks"," _ "," _ "," _ "," _ "," _ "," _ "," _ ",null," _ "," _ "," _ "," _ "," _ ",null," _ "," _ "," _ "," _ ",null,3,33,"Asset Management","Finance & Administration",null,null,0,0,0,0,0,0,0,0,10938407,"_","_","_","_"]
["C0019-9/IA02105/F0002/X032/R0230/001/CONTRA","C0019-9/IA02105/F0002/X032/R0230/001/CONTRA",124060,0,"Assets:Current Assets:Cash and Cash Equivalents:Cash at Bank:Bank Account:Specify (replace with account description):Deposits"," _"," _"," _ "," _ "," _ "," _ ",4100,"Energy sources",4101,"Electricity","_",2080,"Funded by Internally generated funds","C","IA",120,"Current assets / Cash and cash equivalents",120,"Cash and cash equivalents"," _ "," _ ","_","_",null,"Recepts - Cash and Cash Equivalents","0510","Recepts - Cash and Cash Equivalents"," _ "," _ "," _ "," _ ",null," _ "," _ "," _ "," _ ",null,null,"D",280,280,"Infrastructure / Electrical Infrastructure / LV Networks","Infrastructure / Electrical Infrastructure / LV Networks"," _ "," _ "," _ "," _ "," _ "," _ "," _ ",null," _ "," _ "," _ "," _ "," _ ",null," _ "," _ "," _ "," _ ",null,1,11,"Electricity"," Energy Sources",null,null,0,0,0,0,0,0,0,0,0,"_","_","_","_"]
["C0019-7/IA02105/F0002/X032/R0230/001/CONTRA","C0019-7/IA02105/F0002/X032/R0230/001/CONTRA",124052,0,"Assets:Current Assets:Cash and Cash Equivalents:Cash at Bank:Bank Account:Specify (replace with account description):Deposits"," _"," _"," _ "," _ "," _ "," _ ",4100,"Energy sources",4101,"Electricity","_",2080,"Funded by Internally generated funds","C","IA",120,"Current assets / Cash and cash equivalents",120,"Cash and cash equivalents"," _ "," _ ","_","_",null,"Recepts - Cash and Cash Equivalents","0510","Recepts - Cash and Cash Equivalents"," _ "," _ "," _ "," _ ",null," _ "," _ "," _ "," _ ",null,null,"D",280,280,"Infrastructure / Electrical Infrastructure / LV Networks","Infrastructure / Electrical Infrastructure / LV Networks"," _ "," _ "," _ "," _ "," _ "," _ "," _ ",null," _ "," _ "," _ "," _ "," _ ",null," _ "," _ "," _ "," _ ",null,1,11,"Electricity"," Energy Sources",null,null,0,0,0,0,0,0,0,0,0,"_","_","_","_"]
["C0019-8/IA02105/F0002/X032/R0230/001/CONTRA","C0019-8/IA02105/F0002/X032/R0230/001/CONTRA",124056,0,"Assets:Current Assets:Cash and Cash Equivalents:Cash at Bank:Bank Account:Specify (replace with account description):Deposits"," _"," _"," _ "," _ "," _ "," _ ",4100,"Energy sources",4101,"Electricity","_",2080,"Funded by Internally generated funds","C","IA",120,"Current assets / Cash and cash equivalents",120,"Cash and cash equivalents"," _ "," _ ","_","_",null,"Recepts - Cash and Cash Equivalents","0510","Recepts - Cash and Cash Equivalents"," _ "," _ "," _ "," _ ",null," _ "," _ "," _ "," _ ",null,null,"D",280,280,"Infrastructure / Electrical Infrastructure / LV Networks","Infrastructure / Electrical Infrastructure / LV Networks"," _ "," _ "," _ "," _ "," _ "," _ "," _ ",null," _ "," _ "," _ "," _ "," _ ",null," _ "," _ "," _ "," _ ",null,1,11,"Electricity"," Energy Sources",null,null,0,0,0,0,0,0,0,0,0,"_","_","_","_"]
["C0019-4/IA02105/F0002/X032/R0230/001/CONTRA","C0019-4/IA02105/F0002/X032/R0230/001/CONTRA",124040,0,"Assets:Current Assets:Cash and Cash Equivalents:Cash at Bank:Bank Account:Specify (replace with account description):Deposits"," _"," _"," _ "," _ "," _ "," _ ",4100,"Energy sources",4101,"Electricity","_",2080,"Funded by Internally generated funds","C","IA",120,"Current assets / Cash and cash equivalents",120,"Cash and cash equivalents"," _ "," _ ","_","_",null,"Recepts - Cash and Cash Equivalents","0510","Recepts - Cash and Cash Equivalents"," _ "," _ "," _ "," _ ",null," _ "," _ "," _ "," _ ",null,null,"D",280,280,"Infrastructure / Electrical Infrastructure / LV Networks","Infrastructure / Electrical Infrastructure / LV Networks"," _ "," _ "," _ "," _ "," _ "," _ "," _ ",null," _ "," _ "," _ "," _ "," _ ",null," _ "," _ "," _ "," _ ",null,1,11,"Electricity"," Energy Sources",null,null,0,0,0,0,0,0,0,0,0,"_","_","_","_"]
["C0019-5/IA02105/F0002/X032/R0230/001/CONTRA","C0019-5/IA02105/F0002/X032/R0230/001/CONTRA",124044,0,"Assets:Current Assets:Cash and Cash Equivalents:Cash at Bank:Bank Account:Specify (replace with account description):Deposits"," _"," _"," _ "," _ "," _ "," _ ",4100,"Energy sources",4101,"Electricity","_",2080,"Funded by Internally generated funds","C","IA",120,"Current assets / Cash and cash equivalents",120,"Cash and cash equivalents"," _ "," _ ","_","_",null,"Recepts - Cash and Cash Equivalents","0510","Recepts - Cash and Cash Equivalents"," _ "," _ "," _ "," _ ",null," _ "," _ "," _ "," _ ",null,null,"D",280,280,"Infrastructure / Electrical Infrastructure / LV Networks","Infrastructure / Electrical Infrastructure / LV Networks"," _ "," _ "," _ "," _ "," _ "," _ "," _ ",null," _ "," _ "," _ "," _ "," _ ",null," _ "," _ "," _ "," _ ",null,1,11,"Electricity"," Energy Sources",null,null,0,0,0,0,0,0,0,0,0,"_","_","_","_"]
["C0019-6/IA02105/F0002/X032/R0230/001/CONTRA","C0019-6/IA02105/F0002/X032/R0230/001/CONTRA",124048,0,"Assets:Current Assets:Cash and Cash Equivalents:Cash at Bank:Bank Account:Specify (replace with account description):Deposits"," _"," _"," _ "," _ "," _ "," _ ",4100,"Energy sources",4101,"Electricity","_",2080,"Funded by Internally generated funds","C","IA",120,"Current assets / Cash and cash equivalents",120,"Cash and cash equivalents"," _ "," _ ","_","_",null,"Recepts - Cash and Cash Equivalents","0510","Recepts - Cash and Cash Equivalents"," _ "," _ "," _ "," _ ",null," _ "," _ "," _ "," _ ",null,null,"D",280,280,"Infrastructure / Electrical Infrastructure / LV Networks","Infrastructure / Electrical Infrastructure / LV Networks"," _ "," _ "," _ "," _ "," _ "," _ "," _ ",null," _ "," _ "," _ "," _ "," _ ",null," _ "," _ "," _ "," _ ",null,1,11,"Electricity"," Energy Sources",null,null,0,0,0,0,0,0,0,0,0,"_","_","_","_"]
["C0019-3/IA02105/F0002/X032/R0230/001/CONTRA","C0019-3/IA02105/F0002/X032/R0230/001/CONTRA",124036,0,"Assets:Current Assets:Cash and Cash Equivalents:Cash at Bank:Bank Account:Specify (replace with account description):Deposits"," _"," _"," _ "," _ "," _ "," _ ",4100,"Energy sources",4101,"Electricity","_",2080,"Funded by Internally generated funds","C","IA",120,"Current assets / Cash and cash equivalents",120,"Cash and cash equivalents"," _ "," _ ","_","_",null,"Recepts - Cash and Cash Equivalents","0510","Recepts - Cash and Cash Equivalents"," _ "," _ "," _ "," _ ",null," _ "," _ "," _ "," _ ",null,null,"D",280,280,"Infrastructure / Electrical Infrastructure / LV Networks","Infrastructure / Electrical Infrastructure / LV Networks"," _ "," _ "," _ "," _ "," _ "," _ "," _ ",null," _ "," _ "," _ "," _ "," _ ",null," _ "," _ "," _ "," _ ",null,1,11,"Electricity"," Energy Sources",null,null,0,0,0,0,0,0,0,0,0,"_","_","_","_"]
["C0019-15/IA02105/F0002/X032/R0230/001/CONTRA","C0019-15/IA02105/F0002/X032/R0230/001/CONTRA",124028,0,"Assets:Current Assets:Cash and Cash Equivalents:Cash at Bank:Bank Account:Specify (replace with account description):Deposits"," _"," _"," _ "," _ "," _ "," _ ",4100,"Energy sources",4101,"Electricity","_",2080,"Funded by Internally generated funds","C","IA",120,"Current assets / Cash and cash equivalents",120,"Cash and cash equivalents"," _ "," _ ","_","_",null,"Recepts - Cash and Cash Equivalents","0510","Recepts - Cash and Cash Equivalents"," _ "," _ "," _ "," _ ",null," _ "," _ "," _ "," _ ",null,null,"D",280,280,"Infrastructure / Electrical Infrastructure / LV Networks","Infrastructure / Electrical Infrastructure / LV Networks"," _ "," _ "," _ "," _ "," _ "," _ "," _ ",null," _ "," _ "," _ "," _ "," _ ",null," _ "," _ "," _ "," _ ",null,1,11,"Electricity"," Energy Sources",null,null,0,0,0,0,0,0,0,0,0,"_","_","_","_"]
["C0019-16/IA02105/F0002/X116/R0230/001/CONTRA","C0019-16/IA02105/F0002/X116/R0230/001/CONTRA",124032,0,"Assets:Current Assets:Cash and Cash Equivalents:Cash at Bank:Bank Account:Specify (replace with account description):Deposits"," _"," _"," _ "," _ "," _ "," _ ",3200,"Road transport",3205,"Roads","_",2080,"Funded by Internally generated funds","C","IA",120,"Current assets / Cash and cash equivalents",120,"Cash and cash equivalents"," _ "," _ ","_","_",null,"Recepts - Cash and Cash Equivalents","0510","Recepts - Cash and Cash Equivalents"," _ "," _ "," _ "," _ ",null," _ "," _ "," _ "," _ ",null,null,"D",280,280,"Infrastructure / Electrical Infrastructure / LV Networks","Infrastructure / Electrical Infrastructure / LV Networks"," _ "," _ "," _ "," _ "," _ "," _ "," _ ",null," _ "," _ "," _ "," _ "," _ ",null," _ "," _ "," _ "," _ ",null,7,74,"Roads","Road Transport",null,null,0,0,0,0,0,0,0,0,0,"_","_","_","_"]
["C0019-14/IA02105/F0002/X032/R0230/001/CONTRA","C0019-14/IA02105/F0002/X032/R0230/001/CONTRA",124024,0,"Assets:Current Assets:Cash and Cash Equivalents:Cash at Bank:Bank Account:Specify (replace with account description):Deposits"," _"," _"," _ "," _ "," _ "," _ ",4100,"Energy sources",4101,"Electricity","_",2080,"Funded by Internally generated funds","C","IA",120,"Current assets / Cash and cash equivalents",120,"Cash and cash equivalents"," _ "," _ ","_","_",null,"Recepts - Cash and Cash Equivalents","0510","Recepts - Cash and Cash Equivalents"," _ "," _ "," _ "," _ ",null," _ "," _ "," _ "," _ ",null,null,"D",280,280,"Infrastructure / Electrical Infrastructure / LV Networks","Infrastructure / Electrical Infrastructure / LV Networks"," _ "," _ "," _ "," _ "," _ "," _ "," _ ",null," _ "," _ "," _ "," _ "," _ ",null," _ "," _ "," _ "," _ ",null,1,11,"Electricity"," Energy Sources",null,null,0,0,0,0,0,0,0,0,0,"_","_","_","_"]
["C0019-12/IA02105/F0002/X032/R0230/001/CONTRA","C0019-12/IA02105/F0002/X032/R0230/001/CONTRA",124016,0,"Assets:Current Assets:Cash and Cash Equivalents:Cash at Bank:Bank Account:Specify (replace with account description):Deposits"," _"," _"," _ "," _ "," _ "," _ ",4100,"Energy sources",4101,"Electricity","_",2080,"Funded by Internally generated funds","C","IA",120,"Current assets / Cash and cash equivalents",120,"Cash and cash equivalents"," _ "," _ ","_","_",null,"Recepts - Cash and Cash Equivalents","0510","Recepts - Cash and Cash Equivalents"," _ "," _ "," _ "," _ ",null," _ "," _ "," _ "," _ ",null,null,"D",280,280,"Infrastructure / Electrical Infrastructure / LV Networks","Infrastructure / Electrical Infrastructure / LV Networks"," _ "," _ "," _ "," _ "," _ "," _ "," _ ",null," _ "," _ "," _ "," _ "," _ ",null," _ "," _ "," _ "," _ ",null,1,11,"Electricity"," Energy Sources",null,null,0,0,0,0,0,0,0,0,0,"_","_","_","_"]
["C0019-13/IA02105/F0002/X032/R0230/001/CONTRA","C0019-13/IA02105/F0002/X032/R0230/001/CONTRA",124020,0,"Assets:Current Assets:Cash and Cash Equivalents:Cash at Bank:Bank Account:Specify (replace with account description):Deposits"," _"," _"," _ "," _ "," _ "," _ ",4100,"Energy sources",4101,"Electricity","_",2080,"Funded by Internally generated funds","C","IA",120,"Current assets / Cash and cash equivalents",120,"Cash and cash equivalents"," _ "," _ ","_","_",null,"Recepts - Cash and Cash Equivalents","0510","Recepts - Cash and Cash Equivalents"," _ "," _ "," _ "," _ ",null," _ "," _ "," _ "," _ ",null,null,"D",280,280,"Infrastructure / Electrical Infrastructure / LV Networks","Infrastructure / Electrical Infrastructure / LV Networks"," _ "," _ "," _ "," _ "," _ "," _ "," _ ",null," _ "," _ "," _ "," _ "," _ ",null," _ "," _ "," _ "," _ ",null,1,11,"Electricity"," Energy Sources",null,null,0,0,0,0,0,0,0,0,0,"_","_","_","_"]
["C0019-11/IA02105/F0002/X032/R0230/001/CONTRA","C0019-11/IA02105/F0002/X032/R0230/001/CONTRA",124012,0,"Assets:Current Assets:Cash and Cash Equivalents:Cash at Bank:Bank Account:Specify (replace with account description):Deposits"," _"," _"," _ "," _ "," _ "," _ ",4100,"Energy sources",4101,"Electricity","_",2080,"Funded by Internally generated funds","C","IA",120,"Current assets / Cash and cash equivalents",120,"Cash and cash equivalents"," _ "," _ ","_","_",null,"Recepts - Cash and Cash Equivalents","0510","Recepts - Cash and Cash Equivalents"," _ "," _ "," _ "," _ ",null," _ "," _ "," _ "," _ ",null,null,"D",280,280,"Infrastructure / Electrical Infrastructure / LV Networks","Infrastructure / Electrical Infrastructure / LV Networks"," _ "," _ "," _ "," _ "," _ "," _ "," _ ",null," _ "," _ "," _ "," _ "," _ ",null," _ "," _ "," _ "," _ ",null,1,11,"Electricity"," Energy Sources",null,null,0,0,0,0,0,0,0,0,0,"_","_","_","_"]
["C0019-1/IA02105/F0002/X047/R0230/001/CONTRA","C0019-1/IA02105/F0002/X047/R0230/001/CONTRA",122515,0,"Assets:Current Assets:Cash and Cash Equivalents:Cash at Bank:Bank Account:Specify (replace with account description):Deposits"," _"," _"," _ "," _ "," _ "," _ ",1200,"Finance and administration",1202,"Asset Management","_",2080,"Funded by Internally generated funds","C","IA",120,"Current assets / Cash and cash equivalents",120,"Cash and cash equivalents"," _ "," _ ","_","_",null,"Recepts - Cash and Cash Equivalents","0510","Recepts - Cash and Cash Equivalents"," _ "," _ "," _ "," _ ",null," _ "," _ "," _ "," _ ",null,null,"D",280,280,"Infrastructure / Electrical Infrastructure / LV Networks","Infrastructure / Electrical Infrastructure / LV Networks"," _ "," _ "," _ "," _ "," _ "," _ "," _ ",null," _ "," _ "," _ "," _ "," _ ",null," _ "," _ "," _ "," _ ",null,3,33,"Asset Management","Finance & Administration",null,null,0,0,0,0,0,0,0,0,0,"_","_","_","_"]
["C0019-10/IA02105/F0002/X032/R0230/001/CONTRA","C0019-10/IA02105/F0002/X032/R0230/001/CONTRA",124008,0,"Assets:Current Assets:Cash and Cash Equivalents:Cash at Bank:Bank Account:Specify (replace with account description):Deposits"," _"," _"," _ "," _ "," _ "," _ ",4100,"Energy sources",4101,"Electricity","_",2080,"Funded by Internally generated funds","C","IA",120,"Current assets / Cash and cash equivalents",120,"Cash and cash equivalents"," _ "," _ ","_","_",null,"Recepts - Cash and Cash Equivalents","0510","Recepts - Cash and Cash Equivalents"," _ "," _ "," _ "," _ ",null," _ "," _ "," _ "," _ ",null,null,"D",280,280,"Infrastructure / Electrical Infrastructure / LV Networks","Infrastructure / Electrical Infrastructure / LV Networks"," _ "," _ "," _ "," _ "," _ "," _ "," _ ",null," _ "," _ "," _ "," _ "," _ ",null," _ "," _ "," _ "," _ ",null,1,11,"Electricity"," Energy Sources",null,null,0,0,0,0,0,0,0,0,0,"_","_","_","_"]
["C0019-1/IA07270/F0002/X047/R0230/001/CONTRA","C0019-1/IA07270/F0002/X047/R0230/001/CONTRA",123801,0,"Assets:Non-current Assets:Property, Plant and Equipment:Cost Model:Electrical Infrastructure:In-use:LV Networks:Accumulated Depreciation:Depreciation"," _"," _"," _ "," _ "," _ "," _ ",1200,"Finance and administration",1202,"Asset Management","_",2080,"Funded by Internally generated funds","C","IA",230,"Non current assets / Property, plant and equipment",233,"Land: Adjustments"," _ "," _ ","_","_"," _ "," _ "," _ "," _ ",200,"Infrastructure / Electrical Infrastructure",200,"Infrastructure / Electrical Infrastructure",null,243,"Property, plant and equipment (PPE) / Less: Accumulated depreciation",243,"Property, plant and equipment (PPE) / Less: Accumulated depreciation",null,null,null,280,280,"Infrastructure / Electrical Infrastructure / LV Networks","Infrastructure / Electrical Infrastructure / LV Networks"," _ "," _ "," _ "," _ "," _ "," _ "," _ ",null," _ "," _ "," _ "," _ "," _ ",null," _ "," _ "," _ "," _ ",null,3,33,"Asset Management","Finance & Administration",null,null,0,0,0,0,0,0,0,0,0,"_","_","_","_"]
["C0019-1/IA07270/F0002/X047/R0230/001/6114","C0019-1/IA07270/F0002/X047/R0230/001/6114",69535,4426,"Assets:Non-current Assets:Property, Plant and Equipment:Cost Model:Electrical Infrastructure:In-use:LV Networks:Accumulated Depreciation:Depreciation"," _"," _"," _ "," _ "," _ "," _ ",1200,"Finance and administration",1202,"Asset Management","_",2080,"Funded by Internally generated funds","C","IA",230,"Non current assets / Property, plant and equipment",233,"Land: Adjustments"," _ "," _ ","_","_"," _ "," _ "," _ "," _ ",200,"Infrastructure / Electrical Infrastructure",200,"Infrastructure / Electrical Infrastructure",null,243,"Property, plant and equipment (PPE) / Less: Accumulated depreciation",243,"Property, plant and equipment (PPE) / Less: Accumulated depreciation",null,null,null,280,280,"Infrastructure / Electrical Infrastructure / LV Networks","Infrastructure / Electrical Infrastructure / LV Networks"," _ "," _ "," _ "," _ "," _ "," _ "," _ ",null," _ "," _ "," _ "," _ "," _ ",null," _ "," _ "," _ "," _ ",null,3,33,"Asset Management","Finance & Administration",null,null,0,0,0,0,0,0,0,0,0,"_","_","_","_"]
["C0019-10/IA01952/F0002/X032/R0230/001/6707","C0019-10/IA01952/F0002/X032/R0230/001/6707",110224,9108,"Assets:Non-current Assets:Construction Work-in-progress:Acquisitions:Outsourced"," _"," _"," _ "," _ "," _ "," _ ",4100,"Energy sources",4101,"Electricity","CE",2080,"Funded by Internally generated funds","C","IA",230,"Non current assets / Property, plant and equipment",231,"Land: Acquisitions"," _ "," _ ","_","_"," _ "," _ "," _ "," _ "," _ "," _ "," _ "," _ ",280,241,"Property, plant and equipment (PPE) / PPE at cost/valuation (excl. finance leases)",241,"Property, plant and equipment (PPE) / PPE at cost/valuation (excl. finance leases)",null,null,null,280,280,"Infrastructure / Electrical Infrastructure / LV Networks","Infrastructure / Electrical Infrastructure / LV Networks"," _ "," _ "," _ "," _ "," _ "," _ "," _ ",null," _ "," _ "," _ "," _ "," _ ",null," _ "," _ "," _ "," _ ",null,1,11,"Electricity"," Energy Sources",null,null,0,0,0,0,0,0,0,0,0,"_","_","_","_"]
["C0019-11/IA01952/F0002/X032/R0230/001/6707","C0019-11/IA01952/F0002/X032/R0230/001/6707",110225,9109,"Assets:Non-current Assets:Construction Work-in-progress:Acquisitions:Outsourced"," _"," _"," _ "," _ "," _ "," _ ",4100,"Energy sources",4101,"Electricity","CE",2080,"Funded by Internally generated funds","C","IA",230,"Non current assets / Property, plant and equipment",231,"Land: Acquisitions"," _ "," _ ","_","_"," _ "," _ "," _ "," _ "," _ "," _ "," _ "," _ ",280,241,"Property, plant and equipment (PPE) / PPE at cost/valuation (excl. finance leases)",241,"Property, plant and equipment (PPE) / PPE at cost/valuation (excl. finance leases)",null,null,null,280,280,"Infrastructure / Electrical Infrastructure / LV Networks","Infrastructure / Electrical Infrastructure / LV Networks"," _ "," _ "," _ "," _ "," _ "," _ "," _ ",null," _ "," _ "," _ "," _ "," _ ",null," _ "," _ "," _ "," _ ",null,1,11,"Electricity"," Energy Sources",null,null,0,2692148,0,0,0,0,0,0,0,"_","_","_","_"]
["C0019-12/IA01952/F0002/X032/R0230/001/6707","C0019-12/IA01952/F0002/X032/R0230/001/6707",110226,9113,"Assets:Non-current Assets:Construction Work-in-progress:Acquisitions:Outsourced"," _"," _"," _ "," _ "," _ "," _ ",4100,"Energy sources",4101,"Electricity","CE",2080,"Funded by Internally generated funds","C","IA",230,"Non current assets / Property, plant and equipment",231,"Land: Acquisitions"," _ "," _ ","_","_"," _ "," _ "," _ "," _ "," _ "," _ "," _ "," _ ",280,241,"Property, plant and equipment (PPE) / PPE at cost/valuation (excl. finance leases)",241,"Property, plant and equipment (PPE) / PPE at cost/valuation (excl. finance leases)",null,null,null,280,280,"Infrastructure / Electrical Infrastructure / LV Networks","Infrastructure / Electrical Infrastructure / LV Networks"," _ "," _ "," _ "," _ "," _ "," _ "," _ ",null," _ "," _ "," _ "," _ "," _ ",null," _ "," _ "," _ "," _ ",null,1,11,"Electricity"," Energy Sources",null,null,0,0,0,0,0,0,0,0,0,"_","_","_","_"]
["C0019-13/IA01952/F0002/X032/R0230/001/6707","C0019-13/IA01952/F0002/X032/R0230/001/6707",110227,9115,"Assets:Non-current Assets:Construction Work-in-progress:Acquisitions:Outsourced"," _"," _"," _ "," _ "," _ "," _ ",4100,"Energy sources",4101,"Electricity","CE",2080,"Funded by Internally generated funds","C","IA",230,"Non current assets / Property, plant and equipment",231,"Land: Acquisitions"," _ "," _ ","_","_"," _ "," _ "," _ "," _ "," _ "," _ "," _ "," _ ",280,241,"Property, plant and equipment (PPE) / PPE at cost/valuation (excl. finance leases)",241,"Property, plant and equipment (PPE) / PPE at cost/valuation (excl. finance leases)",null,null,null,280,280,"Infrastructure / Electrical Infrastructure / LV Networks","Infrastructure / Electrical Infrastructure / LV Networks"," _ "," _ "," _ "," _ "," _ "," _ "," _ ",null," _ "," _ "," _ "," _ "," _ ",null," _ "," _ "," _ "," _ ",null,1,11,"Electricity"," Energy Sources",null,null,0,0,0,0,0,0,0,0,0,"_","_","_","_"]
["C0019-14/IA01952/F0002/X032/R0230/001/6707","C0019-14/IA01952/F0002/X032/R0230/001/6707",110228,9116,"Assets:Non-current Assets:Construction Work-in-progress:Acquisitions:Outsourced"," _"," _"," _ "," _ "," _ "," _ ",4100,"Energy sources",4101,"Electricity","CE",2080,"Funded by Internally generated funds","C","IA",230,"Non current assets / Property, plant and equipment",231,"Land: Acquisitions"," _ "," _ ","_","_"," _ "," _ "," _ "," _ "," _ "," _ "," _ "," _ ",280,241,"Property, plant and equipment (PPE) / PPE at cost/valuation (excl. finance leases)",241,"Property, plant and equipment (PPE) / PPE at cost/valuation (excl. finance leases)",null,null,null,280,280,"Infrastructure / Electrical Infrastructure / LV Networks","Infrastructure / Electrical Infrastructure / LV Networks"," _ "," _ "," _ "," _ "," _ "," _ "," _ ",null," _ "," _ "," _ "," _ "," _ ",null," _ "," _ "," _ "," _ ",null,1,11,"Electricity"," Energy Sources",null,null,0,3610279,0,0,0,0,0,0,0,"_","_","_","_"]
["C0019-15/IA01952/F0002/X032/R0230/001/6707","C0019-15/IA01952/F0002/X032/R0230/001/6707",110229,9112,"Assets:Non-current Assets:Construction Work-in-progress:Acquisitions:Outsourced"," _"," _"," _ "," _ "," _ "," _ ",4100,"Energy sources",4101,"Electricity","CE",2080,"Funded by Internally generated funds","C","IA",230,"Non current assets / Property, plant and equipment",231,"Land: Acquisitions"," _ "," _ ","_","_"," _ "," _ "," _ "," _ "," _ "," _ "," _ "," _ ",280,241,"Property, plant and equipment (PPE) / PPE at cost/valuation (excl. finance leases)",241,"Property, plant and equipment (PPE) / PPE at cost/valuation (excl. finance leases)",null,null,null,280,280,"Infrastructure / Electrical Infrastructure / LV Networks","Infrastructure / Electrical Infrastructure / LV Networks"," _ "," _ "," _ "," _ "," _ "," _ "," _ ",null," _ "," _ "," _ "," _ "," _ ",null," _ "," _ "," _ "," _ ",null,1,11,"Electricity"," Energy Sources",null,null,0,2245475,0,0,0,0,0,0,0,"_","_","_","_"]
["C0019-16/IA01952/F0002/X116/R0230/001/6707","C0019-16/IA01952/F0002/X116/R0230/001/6707",120336,11219,"Assets:Non-current Assets:Construction Work-in-progress:Acquisitions:Outsourced"," _"," _"," _ "," _ "," _ "," _ ",3200,"Road transport",3205,"Roads","CE",2080,"Funded by Internally generated funds","C","IA",230,"Non current assets / Property, plant and equipment",231,"Land: Acquisitions"," _ "," _ ","_","_"," _ "," _ "," _ "," _ "," _ "," _ "," _ "," _ ",280,241,"Property, plant and equipment (PPE) / PPE at cost/valuation (excl. finance leases)",241,"Property, plant and equipment (PPE) / PPE at cost/valuation (excl. finance leases)",null,null,null,280,280,"Infrastructure / Electrical Infrastructure / LV Networks","Infrastructure / Electrical Infrastructure / LV Networks"," _ "," _ "," _ "," _ "," _ "," _ "," _ ",null," _ "," _ "," _ "," _ "," _ ",null," _ "," _ "," _ "," _ ",null,7,74,"Roads","Road Transport",null,null,2608696,0,0,0,0,0,0,0,2608696,"_","_","_","_"]
["C0019-3/IA01952/F0002/X032/R0230/001/6707","C0019-3/IA01952/F0002/X032/R0230/001/6707",99863,7748,"Assets:Non-current Assets:Construction Work-in-progress:Acquisitions:Outsourced"," _"," _"," _ "," _ "," _ "," _ ",4100,"Energy sources",4101,"Electricity","CE",2080,"Funded by Internally generated funds","C","IA",230,"Non current assets / Property, plant and equipment",231,"Land: Acquisitions"," _ "," _ ","_","_"," _ "," _ "," _ "," _ "," _ "," _ "," _ "," _ ",280,241,"Property, plant and equipment (PPE) / PPE at cost/valuation (excl. finance leases)",241,"Property, plant and equipment (PPE) / PPE at cost/valuation (excl. finance leases)",null,null,null,280,280,"Infrastructure / Electrical Infrastructure / LV Networks","Infrastructure / Electrical Infrastructure / LV Networks"," _ "," _ "," _ "," _ "," _ "," _ "," _ ",null," _ "," _ "," _ "," _ "," _ ",null," _ "," _ "," _ "," _ ",null,1,11,"Electricity"," Energy Sources",null,null,0,0,-10516881,0,0,0,0,0,0,"_","_","_","_"]
["C0019-4/IA01952/F0002/X032/R0230/001/6707","C0019-4/IA01952/F0002/X032/R0230/001/6707",99864,7749,"Assets:Non-current Assets:Construction Work-in-progress:Acquisitions:Outsourced"," _"," _"," _ "," _ "," _ "," _ ",4100,"Energy sources",4101,"Electricity","CE",2080,"Funded by Internally generated funds","C","IA",230,"Non current assets / Property, plant and equipment",231,"Land: Acquisitions"," _ "," _ ","_","_"," _ "," _ "," _ "," _ "," _ "," _ "," _ "," _ ",280,241,"Property, plant and equipment (PPE) / PPE at cost/valuation (excl. finance leases)",241,"Property, plant and equipment (PPE) / PPE at cost/valuation (excl. finance leases)",null,null,null,280,280,"Infrastructure / Electrical Infrastructure / LV Networks","Infrastructure / Electrical Infrastructure / LV Networks"," _ "," _ "," _ "," _ "," _ "," _ "," _ ",null," _ "," _ "," _ "," _ "," _ ",null," _ "," _ "," _ "," _ ",null,1,11,"Electricity"," Energy Sources",null,null,0,0,10432438,0,0,0,0,0,0,"_","_","_","_"]
["C0019-5/IA01952/F0002/X032/R0230/001/6707","C0019-5/IA01952/F0002/X032/R0230/001/6707",99865,7750,"Assets:Non-current Assets:Construction Work-in-progress:Acquisitions:Outsourced"," _"," _"," _ "," _ "," _ "," _ ",4100,"Energy sources",4101,"Electricity","CE",2080,"Funded by Internally generated funds","C","IA",230,"Non current assets / Property, plant and equipment",231,"Land: Acquisitions"," _ "," _ ","_","_"," _ "," _ "," _ "," _ "," _ "," _ "," _ "," _ ",280,241,"Property, plant and equipment (PPE) / PPE at cost/valuation (excl. finance leases)",241,"Property, plant and equipment (PPE) / PPE at cost/valuation (excl. finance leases)",null,null,null,280,280,"Infrastructure / Electrical Infrastructure / LV Networks","Infrastructure / Electrical Infrastructure / LV Networks"," _ "," _ "," _ "," _ "," _ "," _ "," _ ",null," _ "," _ "," _ "," _ "," _ ",null," _ "," _ "," _ "," _ ",null,1,11,"Electricity"," Energy Sources",null,null,0,0,0,0,0,0,0,0,0,"_","_","_","_"]
["C0019-6/IA01952/F0002/X032/R0230/001/6707","C0019-6/IA01952/F0002/X032/R0230/001/6707",99866,7751,"Assets:Non-current Assets:Construction Work-in-progress:Acquisitions:Outsourced"," _"," _"," _ "," _ "," _ "," _ ",4100,"Energy sources",4101,"Electricity","CE",2080,"Funded by Internally generated funds","C","IA",230,"Non current assets / Property, plant and equipment",231,"Land: Acquisitions"," _ "," _ ","_","_"," _ "," _ "," _ "," _ "," _ "," _ "," _ "," _ ",280,241,"Property, plant and equipment (PPE) / PPE at cost/valuation (excl. finance leases)",241,"Property, plant and equipment (PPE) / PPE at cost/valuation (excl. finance leases)",null,null,null,280,280,"Infrastructure / Electrical Infrastructure / LV Networks","Infrastructure / Electrical Infrastructure / LV Networks"," _ "," _ "," _ "," _ "," _ "," _ "," _ ",null," _ "," _ "," _ "," _ "," _ ",null," _ "," _ "," _ "," _ ",null,1,11,"Electricity"," Energy Sources",null,null,0,0,0,0,0,0,0,0,0,"_","_","_","_"]
["C0019-7/IA01952/F0002/X032/R0230/001/6707","C0019-7/IA01952/F0002/X032/R0230/001/6707",99867,7752,"Assets:Non-current Assets:Construction Work-in-progress:Acquisitions:Outsourced"," _"," _"," _ "," _ "," _ "," _ ",4100,"Energy sources",4101,"Electricity","CE",2080,"Funded by Internally generated funds","C","IA",230,"Non current assets / Property, plant and equipment",231,"Land: Acquisitions"," _ "," _ ","_","_"," _ "," _ "," _ "," _ "," _ "," _ "," _ "," _ ",280,241,"Property, plant and equipment (PPE) / PPE at cost/valuation (excl. finance leases)",241,"Property, plant and equipment (PPE) / PPE at cost/valuation (excl. finance leases)",null,null,null,280,280,"Infrastructure / Electrical Infrastructure / LV Networks","Infrastructure / Electrical Infrastructure / LV Networks"," _ "," _ "," _ "," _ "," _ "," _ "," _ ",null," _ "," _ "," _ "," _ "," _ ",null," _ "," _ "," _ "," _ ",null,1,11,"Electricity"," Energy Sources",null,null,0,0,0,0,0,0,0,0,0,"_","_","_","_"]
["C0019-8/IA01952/F0002/X032/R0230/001/6707","C0019-8/IA01952/F0002/X032/R0230/001/6707",99868,7753,"Assets:Non-current Assets:Construction Work-in-progress:Acquisitions:Outsourced"," _"," _"," _ "," _ "," _ "," _ ",4100,"Energy sources",4101,"Electricity","CE",2080,"Funded by Internally generated funds","C","IA",230,"Non current assets / Property, plant and equipment",231,"Land: Acquisitions"," _ "," _ ","_","_"," _ "," _ "," _ "," _ "," _ "," _ "," _ "," _ ",280,241,"Property, plant and equipment (PPE) / PPE at cost/valuation (excl. finance leases)",241,"Property, plant and equipment (PPE) / PPE at cost/valuation (excl. finance leases)",null,null,null,280,280,"Infrastructure / Electrical Infrastructure / LV Networks","Infrastructure / Electrical Infrastructure / LV Networks"," _ "," _ "," _ "," _ "," _ "," _ "," _ ",null," _ "," _ "," _ "," _ "," _ ",null," _ "," _ "," _ "," _ ",null,1,11,"Electricity"," Energy Sources",null,null,0,0,0,0,0,0,0,0,0,"_","_","_","_"]
["C0019-9/IA01952/F0002/X032/R0230/001/6707","C0019-9/IA01952/F0002/X032/R0230/001/6707",99869,7754,"Assets:Non-current Assets:Construction Work-in-progress:Acquisitions:Outsourced"," _"," _"," _ "," _ "," _ "," _ ",4100,"Energy sources",4101,"Electricity","CE",2080,"Funded by Internally generated funds","C","IA",230,"Non current assets / Property, plant and equipment",231,"Land: Acquisitions"," _ "," _ ","_","_"," _ "," _ "," _ "," _ "," _ "," _ "," _ "," _ ",280,241,"Property, plant and equipment (PPE) / PPE at cost/valuation (excl. finance leases)",241,"Property, plant and equipment (PPE) / PPE at cost/valuation (excl. finance leases)",null,null,null,280,280,"Infrastructure / Electrical Infrastructure / LV Networks","Infrastructure / Electrical Infrastructure / LV Networks"," _ "," _ "," _ "," _ "," _ "," _ "," _ ",null," _ "," _ "," _ "," _ "," _ ",null," _ "," _ "," _ "," _ ",null,1,11,"Electricity"," Energy Sources",null,null,0,0,84444,0,0,0,0,0,0,"_","_","_","_"]
["C0019-11/IL65531/F0002/X032/R0230/001/CONTRA","C0019-11/IL65531/F0002/X032/R0230/001/CONTRA",124015,0,"Liabilities:Current Liabilities:Trade and Other Payable Exchange Transactions:Payables and Accruals : Contractors:Withdrawals"," _"," _"," _ "," _ "," _ "," _ ",4100,"Energy sources",4101,"Electricity","_",2080,"Funded by Internally generated funds","C","IL",380,"Current liabilities / Trade and other payables from exchange transactions","_","_"," _ "," _ ","_","_",200,"Cash Payments by Type / Contracted Services",450,"Cash Payments by Type / Contracted Services"," _ "," _ "," _ "," _ ",null,361,"Trade and other payables / Trade and other payables from exchange transactions",361,"Trade and other payables / Trade and other payables from exchange transactions",null,null,null,280,280,"Infrastructure / Electrical Infrastructure / LV Networks","Infrastructure / Electrical Infrastructure / LV Networks"," _ "," _ "," _ "," _ "," _ "," _ "," _ ",null," _ "," _ "," _ "," _ "," _ ",null," _ "," _ "," _ "," _ ",null,1,11,"Electricity"," Energy Sources",null,null,0,0,0,0,0,0,0,0,0,"_","_","_","_"]
["C0019-10/IL65531/F0002/X032/R0230/001/CONTRA","C0019-10/IL65531/F0002/X032/R0230/001/CONTRA",124011,0,"Liabilities:Current Liabilities:Trade and Other Payable Exchange Transactions:Payables and Accruals : Contractors:Withdrawals"," _"," _"," _ "," _ "," _ "," _ ",4100,"Energy sources",4101,"Electricity","_",2080,"Funded by Internally generated funds","C","IL",380,"Current liabilities / Trade and other payables from exchange transactions","_","_"," _ "," _ ","_","_",200,"Cash Payments by Type / Contracted Services",450,"Cash Payments by Type / Contracted Services"," _ "," _ "," _ "," _ ",null,361,"Trade and other payables / Trade and other payables from exchange transactions",361,"Trade and other payables / Trade and other payables from exchange transactions",null,null,null,280,280,"Infrastructure / Electrical Infrastructure / LV Networks","Infrastructure / Electrical Infrastructure / LV Networks"," _ "," _ "," _ "," _ "," _ "," _ "," _ ",null," _ "," _ "," _ "," _ "," _ ",null," _ "," _ "," _ "," _ ",null,1,11,"Electricity"," Energy Sources",null,null,0,0,0,0,0,0,0,0,0,"_","_","_","_"]
["C0019-1/IL65531/F0002/X047/R0230/001/CONTRA","C0019-1/IL65531/F0002/X047/R0230/001/CONTRA",122521,0,"Liabilities:Current Liabilities:Trade and Other Payable Exchange Transactions:Payables and Accruals : Contractors:Withdrawals"," _"," _"," _ "," _ "," _ "," _ ",1200,"Finance and administration",1202,"Asset Management","_",2080,"Funded by Internally generated funds","C","IL",380,"Current liabilities / Trade and other payables from exchange transactions","_","_"," _ "," _ ","_","_",200,"Cash Payments by Type / Contracted Services",450,"Cash Payments by Type / Contracted Services"," _ "," _ "," _ "," _ ",null,361,"Trade and other payables / Trade and other payables from exchange transactions",361,"Trade and other payables / Trade and other payables from exchange transactions",null,null,null,280,280,"Infrastructure / Electrical Infrastructure / LV Networks","Infrastructure / Electrical Infrastructure / LV Networks"," _ "," _ "," _ "," _ "," _ "," _ "," _ ",null," _ "," _ "," _ "," _ "," _ ",null," _ "," _ "," _ "," _ ",null,3,33,"Asset Management","Finance & Administration",null,null,0,0,0,0,0,0,0,0,0,"_","_","_","_"]
["C0019-9/IL65531/F0002/X032/R0230/001/CONTRA","C0019-9/IL65531/F0002/X032/R0230/001/CONTRA",124063,0,"Liabilities:Current Liabilities:Trade and Other Payable Exchange Transactions:Payables and Accruals : Contractors:Withdrawals"," _"," _"," _ "," _ "," _ "," _ ",4100,"Energy sources",4101,"Electricity","_",2080,"Funded by Internally generated funds","C","IL",380,"Current liabilities / Trade and other payables from exchange transactions","_","_"," _ "," _ ","_","_",200,"Cash Payments by Type / Contracted Services",450,"Cash Payments by Type / Contracted Services"," _ "," _ "," _ "," _ ",null,361,"Trade and other payables / Trade and other payables from exchange transactions",361,"Trade and other payables / Trade and other payables from exchange transactions",null,null,null,280,280,"Infrastructure / Electrical Infrastructure / LV Networks","Infrastructure / Electrical Infrastructure / LV Networks"," _ "," _ "," _ "," _ "," _ "," _ "," _ ",null," _ "," _ "," _ "," _ "," _ ",null," _ "," _ "," _ "," _ ",null,1,11,"Electricity"," Energy Sources",null,null,0,0,0,0,0,0,0,0,0,"_","_","_","_"]
["C0019-8/IL65531/F0002/X032/R0230/001/CONTRA","C0019-8/IL65531/F0002/X032/R0230/001/CONTRA",124059,0,"Liabilities:Current Liabilities:Trade and Other Payable Exchange Transactions:Payables and Accruals : Contractors:Withdrawals"," _"," _"," _ "," _ "," _ "," _ ",4100,"Energy sources",4101,"Electricity","_",2080,"Funded by Internally generated funds","C","IL",380,"Current liabilities / Trade and other payables from exchange transactions","_","_"," _ "," _ ","_","_",200,"Cash Payments by Type / Contracted Services",450,"Cash Payments by Type / Contracted Services"," _ "," _ "," _ "," _ ",null,361,"Trade and other payables / Trade and other payables from exchange transactions",361,"Trade and other payables / Trade and other payables from exchange transactions",null,null,null,280,280,"Infrastructure / Electrical Infrastructure / LV Networks","Infrastructure / Electrical Infrastructure / LV Networks"," _ "," _ "," _ "," _ "," _ "," _ "," _ ",null," _ "," _ "," _ "," _ "," _ ",null," _ "," _ "," _ "," _ ",null,1,11,"Electricity"," Energy Sources",null,null,0,0,0,0,0,0,0,0,0,"_","_","_","_"]
["C0019-7/IL65531/F0002/X032/R0230/001/CONTRA","C0019-7/IL65531/F0002/X032/R0230/001/CONTRA",124055,0,"Liabilities:Current Liabilities:Trade and Other Payable Exchange Transactions:Payables and Accruals : Contractors:Withdrawals"," _"," _"," _ "," _ "," _ "," _ ",4100,"Energy sources",4101,"Electricity","_",2080,"Funded by Internally generated funds","C","IL",380,"Current liabilities / Trade and other payables from exchange transactions","_","_"," _ "," _ ","_","_",200,"Cash Payments by Type / Contracted Services",450,"Cash Payments by Type / Contracted Services"," _ "," _ "," _ "," _ ",null,361,"Trade and other payables / Trade and other payables from exchange transactions",361,"Trade and other payables / Trade and other payables from exchange transactions",null,null,null,280,280,"Infrastructure / Electrical Infrastructure / LV Networks","Infrastructure / Electrical Infrastructure / LV Networks"," _ "," _ "," _ "," _ "," _ "," _ "," _ ",null," _ "," _ "," _ "," _ "," _ ",null," _ "," _ "," _ "," _ ",null,1,11,"Electricity"," Energy Sources",null,null,0,0,0,0,0,0,0,0,0,"_","_","_","_"]
["C0019-4/IL65531/F0002/X032/R0230/001/CONTRA","C0019-4/IL65531/F0002/X032/R0230/001/CONTRA",124043,0,"Liabilities:Current Liabilities:Trade and Other Payable Exchange Transactions:Payables and Accruals : Contractors:Withdrawals"," _"," _"," _ "," _ "," _ "," _ ",4100,"Energy sources",4101,"Electricity","_",2080,"Funded by Internally generated funds","C","IL",380,"Current liabilities / Trade and other payables from exchange transactions","_","_"," _ "," _ ","_","_",200,"Cash Payments by Type / Contracted Services",450,"Cash Payments by Type / Contracted Services"," _ "," _ "," _ "," _ ",null,361,"Trade and other payables / Trade and other payables from exchange transactions",361,"Trade and other payables / Trade and other payables from exchange transactions",null,null,null,280,280,"Infrastructure / Electrical Infrastructure / LV Networks","Infrastructure / Electrical Infrastructure / LV Networks"," _ "," _ "," _ "," _ "," _ "," _ "," _ ",null," _ "," _ "," _ "," _ "," _ ",null," _ "," _ "," _ "," _ ",null,1,11,"Electricity"," Energy Sources",null,null,0,0,0,0,0,0,0,0,0,"_","_","_","_"]
["C0019-6/IL65531/F0002/X032/R0230/001/CONTRA","C0019-6/IL65531/F0002/X032/R0230/001/CONTRA",124051,0,"Liabilities:Current Liabilities:Trade and Other Payable Exchange Transactions:Payables and Accruals : Contractors:Withdrawals"," _"," _"," _ "," _ "," _ "," _ ",4100,"Energy sources",4101,"Electricity","_",2080,"Funded by Internally generated funds","C","IL",380,"Current liabilities / Trade and other payables from exchange transactions","_","_"," _ "," _ ","_","_",200,"Cash Payments by Type / Contracted Services",450,"Cash Payments by Type / Contracted Services"," _ "," _ "," _ "," _ ",null,361,"Trade and other payables / Trade and other payables from exchange transactions",361,"Trade and other payables / Trade and other payables from exchange transactions",null,null,null,280,280,"Infrastructure / Electrical Infrastructure / LV Networks","Infrastructure / Electrical Infrastructure / LV Networks"," _ "," _ "," _ "," _ "," _ "," _ "," _ ",null," _ "," _ "," _ "," _ "," _ ",null," _ "," _ "," _ "," _ ",null,1,11,"Electricity"," Energy Sources",null,null,0,0,0,0,0,0,0,0,0,"_","_","_","_"]
["C0019-5/IL65531/F0002/X032/R0230/001/CONTRA","C0019-5/IL65531/F0002/X032/R0230/001/CONTRA",124047,0,"Liabilities:Current Liabilities:Trade and Other Payable Exchange Transactions:Payables and Accruals : Contractors:Withdrawals"," _"," _"," _ "," _ "," _ "," _ ",4100,"Energy sources",4101,"Electricity","_",2080,"Funded by Internally generated funds","C","IL",380,"Current liabilities / Trade and other payables from exchange transactions","_","_"," _ "," _ ","_","_",200,"Cash Payments by Type / Contracted Services",450,"Cash Payments by Type / Contracted Services"," _ "," _ "," _ "," _ ",null,361,"Trade and other payables / Trade and other payables from exchange transactions",361,"Trade and other payables / Trade and other payables from exchange transactions",null,null,null,280,280,"Infrastructure / Electrical Infrastructure / LV Networks","Infrastructure / Electrical Infrastructure / LV Networks"," _ "," _ "," _ "," _ "," _ "," _ "," _ ",null," _ "," _ "," _ "," _ "," _ ",null," _ "," _ "," _ "," _ ",null,1,11,"Electricity"," Energy Sources",null,null,0,0,0,0,0,0,0,0,0,"_","_","_","_"]
["C0019-3/IL65531/F0002/X032/R0230/001/CONTRA","C0019-3/IL65531/F0002/X032/R0230/001/CONTRA",124039,0,"Liabilities:Current Liabilities:Trade and Other Payable Exchange Transactions:Payables and Accruals : Contractors:Withdrawals"," _"," _"," _ "," _ "," _ "," _ ",4100,"Energy sources",4101,"Electricity","_",2080,"Funded by Internally generated funds","C","IL",380,"Current liabilities / Trade and other payables from exchange transactions","_","_"," _ "," _ ","_","_",200,"Cash Payments by Type / Contracted Services",450,"Cash Payments by Type / Contracted Services"," _ "," _ "," _ "," _ ",null,361,"Trade and other payables / Trade and other payables from exchange transactions",361,"Trade and other payables / Trade and other payables from exchange transactions",null,null,null,280,280,"Infrastructure / Electrical Infrastructure / LV Networks","Infrastructure / Electrical Infrastructure / LV Networks"," _ "," _ "," _ "," _ "," _ "," _ "," _ ",null," _ "," _ "," _ "," _ "," _ ",null," _ "," _ "," _ "," _ ",null,1,11,"Electricity"," Energy Sources",null,null,0,0,0,0,0,0,0,0,0,"_","_","_","_"]
["C0019-16/IL65531/F0002/X116/R0230/001/CONTRA","C0019-16/IL65531/F0002/X116/R0230/001/CONTRA",124035,0,"Liabilities:Current Liabilities:Trade and Other Payable Exchange Transactions:Payables and Accruals : Contractors:Withdrawals"," _"," _"," _ "," _ "," _ "," _ ",3200,"Road transport",3205,"Roads","_",2080,"Funded by Internally generated funds","C","IL",380,"Current liabilities / Trade and other payables from exchange transactions","_","_"," _ "," _ ","_","_",200,"Cash Payments by Type / Contracted Services",450,"Cash Payments by Type / Contracted Services"," _ "," _ "," _ "," _ ",null,361,"Trade and other payables / Trade and other payables from exchange transactions",361,"Trade and other payables / Trade and other payables from exchange transactions",null,null,null,280,280,"Infrastructure / Electrical Infrastructure / LV Networks","Infrastructure / Electrical Infrastructure / LV Networks"," _ "," _ "," _ "," _ "," _ "," _ "," _ ",null," _ "," _ "," _ "," _ "," _ ",null," _ "," _ "," _ "," _ ",null,7,74,"Roads","Road Transport",null,null,0,0,0,0,0,0,0,0,0,"_","_","_","_"]
["C0019-15/IL65531/F0002/X032/R0230/001/CONTRA","C0019-15/IL65531/F0002/X032/R0230/001/CONTRA",124031,0,"Liabilities:Current Liabilities:Trade and Other Payable Exchange Transactions:Payables and Accruals : Contractors:Withdrawals"," _"," _"," _ "," _ "," _ "," _ ",4100,"Energy sources",4101,"Electricity","_",2080,"Funded by Internally generated funds","C","IL",380,"Current liabilities / Trade and other payables from exchange transactions","_","_"," _ "," _ ","_","_",200,"Cash Payments by Type / Contracted Services",450,"Cash Payments by Type / Contracted Services"," _ "," _ "," _ "," _ ",null,361,"Trade and other payables / Trade and other payables from exchange transactions",361,"Trade and other payables / Trade and other payables from exchange transactions",null,null,null,280,280,"Infrastructure / Electrical Infrastructure / LV Networks","Infrastructure / Electrical Infrastructure / LV Networks"," _ "," _ "," _ "," _ "," _ "," _ "," _ ",null," _ "," _ "," _ "," _ "," _ ",null," _ "," _ "," _ "," _ ",null,1,11,"Electricity"," Energy Sources",null,null,0,0,0,0,0,0,0,0,0,"_","_","_","_"]
["C0019-14/IL65531/F0002/X032/R0230/001/CONTRA","C0019-14/IL65531/F0002/X032/R0230/001/CONTRA",124027,0,"Liabilities:Current Liabilities:Trade and Other Payable Exchange Transactions:Payables and Accruals : Contractors:Withdrawals"," _"," _"," _ "," _ "," _ "," _ ",4100,"Energy sources",4101,"Electricity","_",2080,"Funded by Internally generated funds","C","IL",380,"Current liabilities / Trade and other payables from exchange transactions","_","_"," _ "," _ ","_","_",200,"Cash Payments by Type / Contracted Services",450,"Cash Payments by Type / Contracted Services"," _ "," _ "," _ "," _ ",null,361,"Trade and other payables / Trade and other payables from exchange transactions",361,"Trade and other payables / Trade and other payables from exchange transactions",null,null,null,280,280,"Infrastructure / Electrical Infrastructure / LV Networks","Infrastructure / Electrical Infrastructure / LV Networks"," _ "," _ "," _ "," _ "," _ "," _ "," _ ",null," _ "," _ "," _ "," _ "," _ ",null," _ "," _ "," _ "," _ ",null,1,11,"Electricity"," Energy Sources",null,null,0,0,0,0,0,0,0,0,0,"_","_","_","_"]
["C0019-13/IL65531/F0002/X032/R0230/001/CONTRA","C0019-13/IL65531/F0002/X032/R0230/001/CONTRA",124023,0,"Liabilities:Current Liabilities:Trade and Other Payable Exchange Transactions:Payables and Accruals : Contractors:Withdrawals"," _"," _"," _ "," _ "," _ "," _ ",4100,"Energy sources",4101,"Electricity","_",2080,"Funded by Internally generated funds","C","IL",380,"Current liabilities / Trade and other payables from exchange transactions","_","_"," _ "," _ ","_","_",200,"Cash Payments by Type / Contracted Services",450,"Cash Payments by Type / Contracted Services"," _ "," _ "," _ "," _ ",null,361,"Trade and other payables / Trade and other payables from exchange transactions",361,"Trade and other payables / Trade and other payables from exchange transactions",null,null,null,280,280,"Infrastructure / Electrical Infrastructure / LV Networks","Infrastructure / Electrical Infrastructure / LV Networks"," _ "," _ "," _ "," _ "," _ "," _ "," _ ",null," _ "," _ "," _ "," _ "," _ ",null," _ "," _ "," _ "," _ ",null,1,11,"Electricity"," Energy Sources",null,null,0,0,0,0,0,0,0,0,0,"_","_","_","_"]
["C0019-12/IL65531/F0002/X032/R0230/001/CONTRA","C0019-12/IL65531/F0002/X032/R0230/001/CONTRA",124019,0,"Liabilities:Current Liabilities:Trade and Other Payable Exchange Transactions:Payables and Accruals : Contractors:Withdrawals"," _"," _"," _ "," _ "," _ "," _ ",4100,"Energy sources",4101,"Electricity","_",2080,"Funded by Internally generated funds","C","IL",380,"Current liabilities / Trade and other payables from exchange transactions","_","_"," _ "," _ ","_","_",200,"Cash Payments by Type / Contracted Services",450,"Cash Payments by Type / Contracted Services"," _ "," _ "," _ "," _ ",null,361,"Trade and other payables / Trade and other payables from exchange transactions",361,"Trade and other payables / Trade and other payables from exchange transactions",null,null,null,280,280,"Infrastructure / Electrical Infrastructure / LV Networks","Infrastructure / Electrical Infrastructure / LV Networks"," _ "," _ "," _ "," _ "," _ "," _ "," _ ",null," _ "," _ "," _ "," _ "," _ ",null," _ "," _ "," _ "," _ ",null,1,11,"Electricity"," Energy Sources",null,null,0,0,0,0,0,0,0,0,0,"_","_","_","_"]
["C0019-9/IA10370/F0002/X032/R0230/001/CONTRA","C0019-9/IA10370/F0002/X032/R0230/001/CONTRA",124061,0,"Assets:Current Assets:VAT Receivable:Input Tax Capital:Recognised"," _"," _"," _ "," _ "," _ "," _ ",4100,"Energy sources",4101,"Electricity","_",2080,"Funded by Internally generated funds","C","IA",170,"Current assets / VAT",170,"VAT"," _ "," _ ","_","_"," _ "," _ "," _ "," _ "," _ "," _ "," _ "," _ ",null," _ "," _ "," _ "," _ ",null,null,null,280,280,"Infrastructure / Electrical Infrastructure / LV Networks","Infrastructure / Electrical Infrastructure / LV Networks"," _ "," _ "," _ "," _ "," _ "," _ "," _ ",null," _ "," _ "," _ "," _ "," _ ",null," _ "," _ "," _ "," _ ",null,1,11,"Electricity"," Energy Sources",null,null,0,0,0,0,0,0,0,0,0,"_","_","_","_"]
["C0019-8/IA10370/F0002/X032/R0230/001/CONTRA","C0019-8/IA10370/F0002/X032/R0230/001/CONTRA",124057,0,"Assets:Current Assets:VAT Receivable:Input Tax Capital:Recognised"," _"," _"," _ "," _ "," _ "," _ ",4100,"Energy sources",4101,"Electricity","_",2080,"Funded by Internally generated funds","C","IA",170,"Current assets / VAT",170,"VAT"," _ "," _ ","_","_"," _ "," _ "," _ "," _ "," _ "," _ "," _ "," _ ",null," _ "," _ "," _ "," _ ",null,null,null,280,280,"Infrastructure / Electrical Infrastructure / LV Networks","Infrastructure / Electrical Infrastructure / LV Networks"," _ "," _ "," _ "," _ "," _ "," _ "," _ ",null," _ "," _ "," _ "," _ "," _ ",null," _ "," _ "," _ "," _ ",null,1,11,"Electricity"," Energy Sources",null,null,0,0,0,0,0,0,0,0,0,"_","_","_","_"]
["C0019-7/IA10370/F0002/X032/R0230/001/CONTRA","C0019-7/IA10370/F0002/X032/R0230/001/CONTRA",124053,0,"Assets:Current Assets:VAT Receivable:Input Tax Capital:Recognised"," _"," _"," _ "," _ "," _ "," _ ",4100,"Energy sources",4101,"Electricity","_",2080,"Funded by Internally generated funds","C","IA",170,"Current assets / VAT",170,"VAT"," _ "," _ ","_","_"," _ "," _ "," _ "," _ "," _ "," _ "," _ "," _ ",null," _ "," _ "," _ "," _ ",null,null,null,280,280,"Infrastructure / Electrical Infrastructure / LV Networks","Infrastructure / Electrical Infrastructure / LV Networks"," _ "," _ "," _ "," _ "," _ "," _ "," _ ",null," _ "," _ "," _ "," _ "," _ ",null," _ "," _ "," _ "," _ ",null,1,11,"Electricity"," Energy Sources",null,null,0,0,0,0,0,0,0,0,0,"_","_","_","_"]
["C0019-4/IA10370/F0002/X032/R0230/001/CONTRA","C0019-4/IA10370/F0002/X032/R0230/001/CONTRA",124041,0,"Assets:Current Assets:VAT Receivable:Input Tax Capital:Recognised"," _"," _"," _ "," _ "," _ "," _ ",4100,"Energy sources",4101,"Electricity","_",2080,"Funded by Internally generated funds","C","IA",170,"Current assets / VAT",170,"VAT"," _ "," _ ","_","_"," _ "," _ "," _ "," _ "," _ "," _ "," _ "," _ ",null," _ "," _ "," _ "," _ ",null,null,null,280,280,"Infrastructure / Electrical Infrastructure / LV Networks","Infrastructure / Electrical Infrastructure / LV Networks"," _ "," _ "," _ "," _ "," _ "," _ "," _ ",null," _ "," _ "," _ "," _ "," _ ",null," _ "," _ "," _ "," _ ",null,1,11,"Electricity"," Energy Sources",null,null,0,0,0,0,0,0,0,0,0,"_","_","_","_"]
["C0019-6/IA10370/F0002/X032/R0230/001/CONTRA","C0019-6/IA10370/F0002/X032/R0230/001/CONTRA",124049,0,"Assets:Current Assets:VAT Receivable:Input Tax Capital:Recognised"," _"," _"," _ "," _ "," _ "," _ ",4100,"Energy sources",4101,"Electricity","_",2080,"Funded by Internally generated funds","C","IA",170,"Current assets / VAT",170,"VAT"," _ "," _ ","_","_"," _ "," _ "," _ "," _ "," _ "," _ "," _ "," _ ",null," _ "," _ "," _ "," _ ",null,null,null,280,280,"Infrastructure / Electrical Infrastructure / LV Networks","Infrastructure / Electrical Infrastructure / LV Networks"," _ "," _ "," _ "," _ "," _ "," _ "," _ ",null," _ "," _ "," _ "," _ "," _ ",null," _ "," _ "," _ "," _ ",null,1,11,"Electricity"," Energy Sources",null,null,0,0,0,0,0,0,0,0,0,"_","_","_","_"]
["C0019-5/IA10370/F0002/X032/R0230/001/CONTRA","C0019-5/IA10370/F0002/X032/R0230/001/CONTRA",124045,0,"Assets:Current Assets:VAT Receivable:Input Tax Capital:Recognised"," _"," _"," _ "," _ "," _ "," _ ",4100,"Energy sources",4101,"Electricity","_",2080,"Funded by Internally generated funds","C","IA",170,"Current assets / VAT",170,"VAT"," _ "," _ ","_","_"," _ "," _ "," _ "," _ "," _ "," _ "," _ "," _ ",null," _ "," _ "," _ "," _ ",null,null,null,280,280,"Infrastructure / Electrical Infrastructure / LV Networks","Infrastructure / Electrical Infrastructure / LV Networks"," _ "," _ "," _ "," _ "," _ "," _ "," _ ",null," _ "," _ "," _ "," _ "," _ ",null," _ "," _ "," _ "," _ ",null,1,11,"Electricity"," Energy Sources",null,null,0,0,0,0,0,0,0,0,0,"_","_","_","_"]
["C0019-3/IA10370/F0002/X032/R0230/001/CONTRA","C0019-3/IA10370/F0002/X032/R0230/001/CONTRA",124037,0,"Assets:Current Assets:VAT Receivable:Input Tax Capital:Recognised"," _"," _"," _ "," _ "," _ "," _ ",4100,"Energy sources",4101,"Electricity","_",2080,"Funded by Internally generated funds","C","IA",170,"Current assets / VAT",170,"VAT"," _ "," _ ","_","_"," _ "," _ "," _ "," _ "," _ "," _ "," _ "," _ ",null," _ "," _ "," _ "," _ ",null,null,null,280,280,"Infrastructure / Electrical Infrastructure / LV Networks","Infrastructure / Electrical Infrastructure / LV Networks"," _ "," _ "," _ "," _ "," _ "," _ "," _ ",null," _ "," _ "," _ "," _ "," _ ",null," _ "," _ "," _ "," _ ",null,1,11,"Electricity"," Energy Sources",null,null,0,0,0,0,0,0,0,0,0,"_","_","_","_"]
["C0019-16/IA10370/F0002/X116/R0230/001/CONTRA","C0019-16/IA10370/F0002/X116/R0230/001/CONTRA",124033,0,"Assets:Current Assets:VAT Receivable:Input Tax Capital:Recognised"," _"," _"," _ "," _ "," _ "," _ ",3200,"Road transport",3205,"Roads","_",2080,"Funded by Internally generated funds","C","IA",170,"Current assets / VAT",170,"VAT"," _ "," _ ","_","_"," _ "," _ "," _ "," _ "," _ "," _ "," _ "," _ ",null," _ "," _ "," _ "," _ ",null,null,null,280,280,"Infrastructure / Electrical Infrastructure / LV Networks","Infrastructure / Electrical Infrastructure / LV Networks"," _ "," _ "," _ "," _ "," _ "," _ "," _ ",null," _ "," _ "," _ "," _ "," _ ",null," _ "," _ "," _ "," _ ",null,7,74,"Roads","Road Transport",null,null,0,0,0,0,0,0,0,0,0,"_","_","_","_"]
["C0019-15/IA10370/F0002/X032/R0230/001/CONTRA","C0019-15/IA10370/F0002/X032/R0230/001/CONTRA",124029,0,"Assets:Current Assets:VAT Receivable:Input Tax Capital:Recognised"," _"," _"," _ "," _ "," _ "," _ ",4100,"Energy sources",4101,"Electricity","_",2080,"Funded by Internally generated funds","C","IA",170,"Current assets / VAT",170,"VAT"," _ "," _ ","_","_"," _ "," _ "," _ "," _ "," _ "," _ "," _ "," _ ",null," _ "," _ "," _ "," _ ",null,null,null,280,280,"Infrastructure / Electrical Infrastructure / LV Networks","Infrastructure / Electrical Infrastructure / LV Networks"," _ "," _ "," _ "," _ "," _ "," _ "," _ ",null," _ "," _ "," _ "," _ "," _ ",null," _ "," _ "," _ "," _ ",null,1,11,"Electricity"," Energy Sources",null,null,0,0,0,0,0,0,0,0,0,"_","_","_","_"]
["C0019-14/IA10370/F0002/X032/R0230/001/CONTRA","C0019-14/IA10370/F0002/X032/R0230/001/CONTRA",124025,0,"Assets:Current Assets:VAT Receivable:Input Tax Capital:Recognised"," _"," _"," _ "," _ "," _ "," _ ",4100,"Energy sources",4101,"Electricity","_",2080,"Funded by Internally generated funds","C","IA",170,"Current assets / VAT",170,"VAT"," _ "," _ ","_","_"," _ "," _ "," _ "," _ "," _ "," _ "," _ "," _ ",null," _ "," _ "," _ "," _ ",null,null,null,280,280,"Infrastructure / Electrical Infrastructure / LV Networks","Infrastructure / Electrical Infrastructure / LV Networks"," _ "," _ "," _ "," _ "," _ "," _ "," _ ",null," _ "," _ "," _ "," _ "," _ ",null," _ "," _ "," _ "," _ ",null,1,11,"Electricity"," Energy Sources",null,null,0,0,0,0,0,0,0,0,0,"_","_","_","_"]
["C0019-13/IA10370/F0002/X032/R0230/001/CONTRA","C0019-13/IA10370/F0002/X032/R0230/001/CONTRA",124021,0,"Assets:Current Assets:VAT Receivable:Input Tax Capital:Recognised"," _"," _"," _ "," _ "," _ "," _ ",4100,"Energy sources",4101,"Electricity","_",2080,"Funded by Internally generated funds","C","IA",170,"Current assets / VAT",170,"VAT"," _ "," _ ","_","_"," _ "," _ "," _ "," _ "," _ "," _ "," _ "," _ ",null," _ "," _ "," _ "," _ ",null,null,null,280,280,"Infrastructure / Electrical Infrastructure / LV Networks","Infrastructure / Electrical Infrastructure / LV Networks"," _ "," _ "," _ "," _ "," _ "," _ "," _ ",null," _ "," _ "," _ "," _ "," _ ",null," _ "," _ "," _ "," _ ",null,1,11,"Electricity"," Energy Sources",null,null,0,0,0,0,0,0,0,0,0,"_","_","_","_"]
["C0019-12/IA10370/F0002/X032/R0230/001/CONTRA","C0019-12/IA10370/F0002/X032/R0230/001/CONTRA",124017,0,"Assets:Current Assets:VAT Receivable:Input Tax Capital:Recognised"," _"," _"," _ "," _ "," _ "," _ ",4100,"Energy sources",4101,"Electricity","_",2080,"Funded by Internally generated funds","C","IA",170,"Current assets / VAT",170,"VAT"," _ "," _ ","_","_"," _ "," _ "," _ "," _ "," _ "," _ "," _ "," _ ",null," _ "," _ "," _ "," _ ",null,null,null,280,280,"Infrastructure / Electrical Infrastructure / LV Networks","Infrastructure / Electrical Infrastructure / LV Networks"," _ "," _ "," _ "," _ "," _ "," _ "," _ ",null," _ "," _ "," _ "," _ "," _ ",null," _ "," _ "," _ "," _ ",null,1,11,"Electricity"," Energy Sources",null,null,0,0,0,0,0,0,0,0,0,"_","_","_","_"]
["C0019-11/IA10370/F0002/X032/R0230/001/CONTRA","C0019-11/IA10370/F0002/X032/R0230/001/CONTRA",124013,0,"Assets:Current Assets:VAT Receivable:Input Tax Capital:Recognised"," _"," _"," _ "," _ "," _ "," _ ",4100,"Energy sources",4101,"Electricity","_",2080,"Funded by Internally generated funds","C","IA",170,"Current assets / VAT",170,"VAT"," _ "," _ ","_","_"," _ "," _ "," _ "," _ "," _ "," _ "," _ "," _ ",null," _ "," _ "," _ "," _ ",null,null,null,280,280,"Infrastructure / Electrical Infrastructure / LV Networks","Infrastructure / Electrical Infrastructure / LV Networks"," _ "," _ "," _ "," _ "," _ "," _ "," _ ",null," _ "," _ "," _ "," _ "," _ ",null," _ "," _ "," _ "," _ ",null,1,11,"Electricity"," Energy Sources",null,null,0,0,0,0,0,0,0,0,0,"_","_","_","_"]
["C0019-1/IA10370/F0002/X047/R0230/001/CONTRA","C0019-1/IA10370/F0002/X047/R0230/001/CONTRA",122517,0,"Assets:Current Assets:VAT Receivable:Input Tax Capital:Recognised"," _"," _"," _ "," _ "," _ "," _ ",1200,"Finance and administration",1202,"Asset Management","_",2080,"Funded by Internally generated funds","C","IA",170,"Current assets / VAT",170,"VAT"," _ "," _ ","_","_"," _ "," _ "," _ "," _ "," _ "," _ "," _ "," _ ",null," _ "," _ "," _ "," _ ",null,null,null,280,280,"Infrastructure / Electrical Infrastructure / LV Networks","Infrastructure / Electrical Infrastructure / LV Networks"," _ "," _ "," _ "," _ "," _ "," _ "," _ ",null," _ "," _ "," _ "," _ "," _ ",null," _ "," _ "," _ "," _ ",null,3,33,"Asset Management","Finance & Administration",null,null,0,0,0,0,0,0,0,0,0,"_","_","_","_"]
["C0019-10/IA10370/F0002/X032/R0230/001/CONTRA","C0019-10/IA10370/F0002/X032/R0230/001/CONTRA",124009,0,"Assets:Current Assets:VAT Receivable:Input Tax Capital:Recognised"," _"," _"," _ "," _ "," _ "," _ ",4100,"Energy sources",4101,"Electricity","_",2080,"Funded by Internally generated funds","C","IA",170,"Current assets / VAT",170,"VAT"," _ "," _ ","_","_"," _ "," _ "," _ "," _ "," _ "," _ "," _ "," _ ",null," _ "," _ "," _ "," _ ",null,null,null,280,280,"Infrastructure / Electrical Infrastructure / LV Networks","Infrastructure / Electrical Infrastructure / LV Networks"," _ "," _ "," _ "," _ "," _ "," _ "," _ ",null," _ "," _ "," _ "," _ "," _ ",null," _ "," _ "," _ "," _ ",null,1,11,"Electricity"," Energy Sources",null,null,0,0,0,0,0,0,0,0,0,"_","_","_","_"]
["C0019-9/IA02108/F0002/X032/R0230/001/CONTRA","C0019-9/IA02108/F0002/X032/R0230/001/CONTRA",124599,0,"Assets:Current Assets:Cash and Cash Equivalents:Cash at Bank:Bank Account:Specify (replace with account description):Withdrawals"," _"," _"," _ "," _ "," _ "," _ ",4100,"Energy sources",4101,"Electricity","_",2080,"Funded by Internally generated funds","C","IA",120,"Current assets / Cash and cash equivalents",120,"Cash and cash equivalents"," _ "," _ ","_","_",310,"Other Cash Flows/Payments by Type / Capital assets",510,"Capital assets"," _ "," _ "," _ "," _ ",null," _ "," _ "," _ "," _ ",null,null,"W",280,280,"Infrastructure / Electrical Infrastructure / LV Networks","Infrastructure / Electrical Infrastructure / LV Networks"," _ "," _ "," _ "," _ "," _ "," _ "," _ ",null," _ "," _ "," _ "," _ "," _ ",null," _ "," _ "," _ "," _ ",null,1,11,"Electricity"," Energy Sources",null,null,0,0,0,0,0,0,0,0,0,"_","_","_","_"]
["C0019-1/IA02108/F0002/X047/R0230/001/CONTRA","C0019-1/IA02108/F0002/X047/R0230/001/CONTRA",122516,0,"Assets:Current Assets:Cash and Cash Equivalents:Cash at Bank:Bank Account:Specify (replace with account description):Withdrawals"," _"," _"," _ "," _ "," _ "," _ ",1200,"Finance and administration",1202,"Asset Management","_",2080,"Funded by Internally generated funds","C","IA",120,"Current assets / Cash and cash equivalents",120,"Cash and cash equivalents"," _ "," _ ","_","_",310,"Other Cash Flows/Payments by Type / Capital assets",510,"Capital assets"," _ "," _ "," _ "," _ ",null," _ "," _ "," _ "," _ ",null,null,"W",280,280,"Infrastructure / Electrical Infrastructure / LV Networks","Infrastructure / Electrical Infrastructure / LV Networks"," _ "," _ "," _ "," _ "," _ "," _ "," _ ",null," _ "," _ "," _ "," _ "," _ ",null," _ "," _ "," _ "," _ ",null,3,33,"Asset Management","Finance & Administration",null,null,0,0,0,0,0,0,0,0,0,"_","_","_","_"]
["C0019-11/IA02108/F0002/X032/R0230/001/CONTRA","C0019-11/IA02108/F0002/X032/R0230/001/CONTRA",124587,0,"Assets:Current Assets:Cash and Cash Equivalents:Cash at Bank:Bank Account:Specify (replace with account description):Withdrawals"," _"," _"," _ "," _ "," _ "," _ ",4100,"Energy sources",4101,"Electricity","_",2080,"Funded by Internally generated funds","C","IA",120,"Current assets / Cash and cash equivalents",120,"Cash and cash equivalents"," _ "," _ ","_","_",310,"Other Cash Flows/Payments by Type / Capital assets",510,"Capital assets"," _ "," _ "," _ "," _ ",null," _ "," _ "," _ "," _ ",null,null,"W",280,280,"Infrastructure / Electrical Infrastructure / LV Networks","Infrastructure / Electrical Infrastructure / LV Networks"," _ "," _ "," _ "," _ "," _ "," _ "," _ ",null," _ "," _ "," _ "," _ "," _ ",null," _ "," _ "," _ "," _ ",null,1,11,"Electricity"," Energy Sources",null,null,0,0,0,0,0,0,0,0,0,"_","_","_","_"]
["C0019-10/IA02108/F0002/X032/R0230/001/CONTRA","C0019-10/IA02108/F0002/X032/R0230/001/CONTRA",124586,0,"Assets:Current Assets:Cash and Cash Equivalents:Cash at Bank:Bank Account:Specify (replace with account description):Withdrawals"," _"," _"," _ "," _ "," _ "," _ ",4100,"Energy sources",4101,"Electricity","_",2080,"Funded by Internally generated funds","C","IA",120,"Current assets / Cash and cash equivalents",120,"Cash and cash equivalents"," _ "," _ ","_","_",310,"Other Cash Flows/Payments by Type / Capital assets",510,"Capital assets"," _ "," _ "," _ "," _ ",null," _ "," _ "," _ "," _ ",null,null,"W",280,280,"Infrastructure / Electrical Infrastructure / LV Networks","Infrastructure / Electrical Infrastructure / LV Networks"," _ "," _ "," _ "," _ "," _ "," _ "," _ ",null," _ "," _ "," _ "," _ "," _ ",null," _ "," _ "," _ "," _ ",null,1,11,"Electricity"," Energy Sources",null,null,0,0,0,0,0,0,0,0,0,"_","_","_","_"]
["C0019-13/IA02108/F0002/X032/R0230/001/CONTRA","C0019-13/IA02108/F0002/X032/R0230/001/CONTRA",124589,0,"Assets:Current Assets:Cash and Cash Equivalents:Cash at Bank:Bank Account:Specify (replace with account description):Withdrawals"," _"," _"," _ "," _ "," _ "," _ ",4100,"Energy sources",4101,"Electricity","_",2080,"Funded by Internally generated funds","C","IA",120,"Current assets / Cash and cash equivalents",120,"Cash and cash equivalents"," _ "," _ ","_","_",310,"Other Cash Flows/Payments by Type / Capital assets",510,"Capital assets"," _ "," _ "," _ "," _ ",null," _ "," _ "," _ "," _ ",null,null,"W",280,280,"Infrastructure / Electrical Infrastructure / LV Networks","Infrastructure / Electrical Infrastructure / LV Networks"," _ "," _ "," _ "," _ "," _ "," _ "," _ ",null," _ "," _ "," _ "," _ "," _ ",null," _ "," _ "," _ "," _ ",null,1,11,"Electricity"," Energy Sources",null,null,0,0,0,0,0,0,0,0,0,"_","_","_","_"]
["C0019-12/IA02108/F0002/X032/R0230/001/CONTRA","C0019-12/IA02108/F0002/X032/R0230/001/CONTRA",124588,0,"Assets:Current Assets:Cash and Cash Equivalents:Cash at Bank:Bank Account:Specify (replace with account description):Withdrawals"," _"," _"," _ "," _ "," _ "," _ ",4100,"Energy sources",4101,"Electricity","_",2080,"Funded by Internally generated funds","C","IA",120,"Current assets / Cash and cash equivalents",120,"Cash and cash equivalents"," _ "," _ ","_","_",310,"Other Cash Flows/Payments by Type / Capital assets",510,"Capital assets"," _ "," _ "," _ "," _ ",null," _ "," _ "," _ "," _ ",null,null,"W",280,280,"Infrastructure / Electrical Infrastructure / LV Networks","Infrastructure / Electrical Infrastructure / LV Networks"," _ "," _ "," _ "," _ "," _ "," _ "," _ ",null," _ "," _ "," _ "," _ "," _ ",null," _ "," _ "," _ "," _ ",null,1,11,"Electricity"," Energy Sources",null,null,0,0,0,0,0,0,0,0,0,"_","_","_","_"]
["C0019-14/IA02108/F0002/X032/R0230/001/CONTRA","C0019-14/IA02108/F0002/X032/R0230/001/CONTRA",124590,0,"Assets:Current Assets:Cash and Cash Equivalents:Cash at Bank:Bank Account:Specify (replace with account description):Withdrawals"," _"," _"," _ "," _ "," _ "," _ ",4100,"Energy sources",4101,"Electricity","_",2080,"Funded by Internally generated funds","C","IA",120,"Current assets / Cash and cash equivalents",120,"Cash and cash equivalents"," _ "," _ ","_","_",310,"Other Cash Flows/Payments by Type / Capital assets",510,"Capital assets"," _ "," _ "," _ "," _ ",null," _ "," _ "," _ "," _ ",null,null,"W",280,280,"Infrastructure / Electrical Infrastructure / LV Networks","Infrastructure / Electrical Infrastructure / LV Networks"," _ "," _ "," _ "," _ "," _ "," _ "," _ ",null," _ "," _ "," _ "," _ "," _ ",null," _ "," _ "," _ "," _ ",null,1,11,"Electricity"," Energy Sources",null,null,0,0,0,0,0,0,0,0,0,"_","_","_","_"]
["C0019-3/IA02108/F0002/X032/R0230/001/CONTRA","C0019-3/IA02108/F0002/X032/R0230/001/CONTRA",124593,0,"Assets:Current Assets:Cash and Cash Equivalents:Cash at Bank:Bank Account:Specify (replace with account description):Withdrawals"," _"," _"," _ "," _ "," _ "," _ ",4100,"Energy sources",4101,"Electricity","_",2080,"Funded by Internally generated funds","C","IA",120,"Current assets / Cash and cash equivalents",120,"Cash and cash equivalents"," _ "," _ ","_","_",310,"Other Cash Flows/Payments by Type / Capital assets",510,"Capital assets"," _ "," _ "," _ "," _ ",null," _ "," _ "," _ "," _ ",null,null,"W",280,280,"Infrastructure / Electrical Infrastructure / LV Networks","Infrastructure / Electrical Infrastructure / LV Networks"," _ "," _ "," _ "," _ "," _ "," _ "," _ ",null," _ "," _ "," _ "," _ "," _ ",null," _ "," _ "," _ "," _ ",null,1,11,"Electricity"," Energy Sources",null,null,0,0,0,0,0,0,0,0,0,"_","_","_","_"]
["C0019-15/IA02108/F0002/X032/R0230/001/CONTRA","C0019-15/IA02108/F0002/X032/R0230/001/CONTRA",124591,0,"Assets:Current Assets:Cash and Cash Equivalents:Cash at Bank:Bank Account:Specify (replace with account description):Withdrawals"," _"," _"," _ "," _ "," _ "," _ ",4100,"Energy sources",4101,"Electricity","_",2080,"Funded by Internally generated funds","C","IA",120,"Current assets / Cash and cash equivalents",120,"Cash and cash equivalents"," _ "," _ ","_","_",310,"Other Cash Flows/Payments by Type / Capital assets",510,"Capital assets"," _ "," _ "," _ "," _ ",null," _ "," _ "," _ "," _ ",null,null,"W",280,280,"Infrastructure / Electrical Infrastructure / LV Networks","Infrastructure / Electrical Infrastructure / LV Networks"," _ "," _ "," _ "," _ "," _ "," _ "," _ ",null," _ "," _ "," _ "," _ "," _ ",null," _ "," _ "," _ "," _ ",null,1,11,"Electricity"," Energy Sources",null,null,0,0,0,0,0,0,0,0,0,"_","_","_","_"]
["C0019-5/IA02108/F0002/X032/R0230/001/CONTRA","C0019-5/IA02108/F0002/X032/R0230/001/CONTRA",124595,0,"Assets:Current Assets:Cash and Cash Equivalents:Cash at Bank:Bank Account:Specify (replace with account description):Withdrawals"," _"," _"," _ "," _ "," _ "," _ ",4100,"Energy sources",4101,"Electricity","_",2080,"Funded by Internally generated funds","C","IA",120,"Current assets / Cash and cash equivalents",120,"Cash and cash equivalents"," _ "," _ ","_","_",310,"Other Cash Flows/Payments by Type / Capital assets",510,"Capital assets"," _ "," _ "," _ "," _ ",null," _ "," _ "," _ "," _ ",null,null,"W",280,280,"Infrastructure / Electrical Infrastructure / LV Networks","Infrastructure / Electrical Infrastructure / LV Networks"," _ "," _ "," _ "," _ "," _ "," _ "," _ ",null," _ "," _ "," _ "," _ "," _ ",null," _ "," _ "," _ "," _ ",null,1,11,"Electricity"," Energy Sources",null,null,0,0,0,0,0,0,0,0,0,"_","_","_","_"]
["C0019-16/IA02108/F0002/X116/R0230/001/CONTRA","C0019-16/IA02108/F0002/X116/R0230/001/CONTRA",124592,0,"Assets:Current Assets:Cash and Cash Equivalents:Cash at Bank:Bank Account:Specify (replace with account description):Withdrawals"," _"," _"," _ "," _ "," _ "," _ ",3200,"Road transport",3205,"Roads","_",2080,"Funded by Internally generated funds","C","IA",120,"Current assets / Cash and cash equivalents",120,"Cash and cash equivalents"," _ "," _ ","_","_",310,"Other Cash Flows/Payments by Type / Capital assets",510,"Capital assets"," _ "," _ "," _ "," _ ",null," _ "," _ "," _ "," _ ",null,null,"W",280,280,"Infrastructure / Electrical Infrastructure / LV Networks","Infrastructure / Electrical Infrastructure / LV Networks"," _ "," _ "," _ "," _ "," _ "," _ "," _ ",null," _ "," _ "," _ "," _ "," _ ",null," _ "," _ "," _ "," _ ",null,7,74,"Roads","Road Transport",null,null,0,0,0,0,0,0,0,0,0,"_","_","_","_"]
["C0019-4/IA02108/F0002/X032/R0230/001/CONTRA","C0019-4/IA02108/F0002/X032/R0230/001/CONTRA",124594,0,"Assets:Current Assets:Cash and Cash Equivalents:Cash at Bank:Bank Account:Specify (replace with account description):Withdrawals"," _"," _"," _ "," _ "," _ "," _ ",4100,"Energy sources",4101,"Electricity","_",2080,"Funded by Internally generated funds","C","IA",120,"Current assets / Cash and cash equivalents",120,"Cash and cash equivalents"," _ "," _ ","_","_",310,"Other Cash Flows/Payments by Type / Capital assets",510,"Capital assets"," _ "," _ "," _ "," _ ",null," _ "," _ "," _ "," _ ",null,null,"W",280,280,"Infrastructure / Electrical Infrastructure / LV Networks","Infrastructure / Electrical Infrastructure / LV Networks"," _ "," _ "," _ "," _ "," _ "," _ "," _ ",null," _ "," _ "," _ "," _ "," _ ",null," _ "," _ "," _ "," _ ",null,1,11,"Electricity"," Energy Sources",null,null,0,0,0,0,0,0,0,0,0,"_","_","_","_"]
["C0019-7/IA02108/F0002/X032/R0230/001/CONTRA","C0019-7/IA02108/F0002/X032/R0230/001/CONTRA",124597,0,"Assets:Current Assets:Cash and Cash Equivalents:Cash at Bank:Bank Account:Specify (replace with account description):Withdrawals"," _"," _"," _ "," _ "," _ "," _ ",4100,"Energy sources",4101,"Electricity","_",2080,"Funded by Internally generated funds","C","IA",120,"Current assets / Cash and cash equivalents",120,"Cash and cash equivalents"," _ "," _ ","_","_",310,"Other Cash Flows/Payments by Type / Capital assets",510,"Capital assets"," _ "," _ "," _ "," _ ",null," _ "," _ "," _ "," _ ",null,null,"W",280,280,"Infrastructure / Electrical Infrastructure / LV Networks","Infrastructure / Electrical Infrastructure / LV Networks"," _ "," _ "," _ "," _ "," _ "," _ "," _ ",null," _ "," _ "," _ "," _ "," _ ",null," _ "," _ "," _ "," _ ",null,1,11,"Electricity"," Energy Sources",null,null,0,0,0,0,0,0,0,0,0,"_","_","_","_"]
["C0019-6/IA02108/F0002/X032/R0230/001/CONTRA","C0019-6/IA02108/F0002/X032/R0230/001/CONTRA",124596,0,"Assets:Current Assets:Cash and Cash Equivalents:Cash at Bank:Bank Account:Specify (replace with account description):Withdrawals"," _"," _"," _ "," _ "," _ "," _ ",4100,"Energy sources",4101,"Electricity","_",2080,"Funded by Internally generated funds","C","IA",120,"Current assets / Cash and cash equivalents",120,"Cash and cash equivalents"," _ "," _ ","_","_",310,"Other Cash Flows/Payments by Type / Capital assets",510,"Capital assets"," _ "," _ "," _ "," _ ",null," _ "," _ "," _ "," _ ",null,null,"W",280,280,"Infrastructure / Electrical Infrastructure / LV Networks","Infrastructure / Electrical Infrastructure / LV Networks"," _ "," _ "," _ "," _ "," _ "," _ "," _ ",null," _ "," _ "," _ "," _ "," _ ",null," _ "," _ "," _ "," _ ",null,1,11,"Electricity"," Energy Sources",null,null,0,0,0,0,0,0,0,0,0,"_","_","_","_"]
["C0019-8/IA02108/F0002/X032/R0230/001/CONTRA","C0019-8/IA02108/F0002/X032/R0230/001/CONTRA",124598,0,"Assets:Current Assets:Cash and Cash Equivalents:Cash at Bank:Bank Account:Specify (replace with account description):Withdrawals"," _"," _"," _ "," _ "," _ "," _ ",4100,"Energy sources",4101,"Electricity","_",2080,"Funded by Internally generated funds","C","IA",120,"Current assets / Cash and cash equivalents",120,"Cash and cash equivalents"," _ "," _ ","_","_",310,"Other Cash Flows/Payments by Type / Capital assets",510,"Capital assets"," _ "," _ "," _ "," _ ",null," _ "," _ "," _ "," _ ",null,null,"W",280,280,"Infrastructure / Electrical Infrastructure / LV Networks","Infrastructure / Electrical Infrastructure / LV Networks"," _ "," _ "," _ "," _ "," _ "," _ "," _ ",null," _ "," _ "," _ "," _ "," _ ",null," _ "," _ "," _ "," _ ",null,1,11,"Electricity"," Energy Sources",null,null,0,0,0,0,0,0,0,0,0,"_","_","_","_"]
["C0019-1/IL65530/F0002/X047/R0230/001/CONTRA","C0019-1/IL65530/F0002/X047/R0230/001/CONTRA",122520,0,"Liabilities:Current Liabilities:Trade and Other Payable Exchange Transactions:Payables and Accruals : Contractors:Deposits"," _"," _"," _ "," _ "," _ "," _ ",1200,"Finance and administration",1202,"Asset Management","_",2080,"Funded by Internally generated funds","C","IL",380,"Current liabilities / Trade and other payables from exchange transactions","_","_"," _ "," _ ","_","_"," _ "," _ "," _ "," _ "," _ "," _ "," _ "," _ ",null,361,"Trade and other payables / Trade and other payables from exchange transactions",361,"Trade and other payables / Trade and other payables from exchange transactions",null,null,null,280,280,"Infrastructure / Electrical Infrastructure / LV Networks","Infrastructure / Electrical Infrastructure / LV Networks"," _ "," _ "," _ "," _ "," _ "," _ "," _ ",null," _ "," _ "," _ "," _ "," _ ",null," _ "," _ "," _ "," _ ",null,3,33,"Asset Management","Finance & Administration",null,null,0,0,0,0,0,0,0,0,0,"_","_","_","_"]
["C0019-10/IL65530/F0002/X032/R0230/001/CONTRA","C0019-10/IL65530/F0002/X032/R0230/001/CONTRA",124010,0,"Liabilities:Current Liabilities:Trade and Other Payable Exchange Transactions:Payables and Accruals : Contractors:Deposits"," _"," _"," _ "," _ "," _ "," _ ",4100,"Energy sources",4101,"Electricity","_",2080,"Funded by Internally generated funds","C","IL",380,"Current liabilities / Trade and other payables from exchange transactions","_","_"," _ "," _ ","_","_"," _ "," _ "," _ "," _ "," _ "," _ "," _ "," _ ",null,361,"Trade and other payables / Trade and other payables from exchange transactions",361,"Trade and other payables / Trade and other payables from exchange transactions",null,null,null,280,280,"Infrastructure / Electrical Infrastructure / LV Networks","Infrastructure / Electrical Infrastructure / LV Networks"," _ "," _ "," _ "," _ "," _ "," _ "," _ ",null," _ "," _ "," _ "," _ "," _ ",null," _ "," _ "," _ "," _ ",null,1,11,"Electricity"," Energy Sources",null,null,0,0,0,0,0,0,0,0,0,"_","_","_","_"]
["C0019-11/IL65530/F0002/X032/R0230/001/CONTRA","C0019-11/IL65530/F0002/X032/R0230/001/CONTRA",124014,0,"Liabilities:Current Liabilities:Trade and Other Payable Exchange Transactions:Payables and Accruals : Contractors:Deposits"," _"," _"," _ "," _ "," _ "," _ ",4100,"Energy sources",4101,"Electricity","_",2080,"Funded by Internally generated funds","C","IL",380,"Current liabilities / Trade and other payables from exchange transactions","_","_"," _ "," _ ","_","_"," _ "," _ "," _ "," _ "," _ "," _ "," _ "," _ ",null,361,"Trade and other payables / Trade and other payables from exchange transactions",361,"Trade and other payables / Trade and other payables from exchange transactions",null,null,null,280,280,"Infrastructure / Electrical Infrastructure / LV Networks","Infrastructure / Electrical Infrastructure / LV Networks"," _ "," _ "," _ "," _ "," _ "," _ "," _ ",null," _ "," _ "," _ "," _ "," _ ",null," _ "," _ "," _ "," _ ",null,1,11,"Electricity"," Energy Sources",null,null,0,0,0,0,0,0,0,0,0,"_","_","_","_"]
["C0019-12/IL65530/F0002/X032/R0230/001/CONTRA","C0019-12/IL65530/F0002/X032/R0230/001/CONTRA",124018,0,"Liabilities:Current Liabilities:Trade and Other Payable Exchange Transactions:Payables and Accruals : Contractors:Deposits"," _"," _"," _ "," _ "," _ "," _ ",4100,"Energy sources",4101,"Electricity","_",2080,"Funded by Internally generated funds","C","IL",380,"Current liabilities / Trade and other payables from exchange transactions","_","_"," _ "," _ ","_","_"," _ "," _ "," _ "," _ "," _ "," _ "," _ "," _ ",null,361,"Trade and other payables / Trade and other payables from exchange transactions",361,"Trade and other payables / Trade and other payables from exchange transactions",null,null,null,280,280,"Infrastructure / Electrical Infrastructure / LV Networks","Infrastructure / Electrical Infrastructure / LV Networks"," _ "," _ "," _ "," _ "," _ "," _ "," _ ",null," _ "," _ "," _ "," _ "," _ ",null," _ "," _ "," _ "," _ ",null,1,11,"Electricity"," Energy Sources",null,null,0,0,0,0,0,0,0,0,0,"_","_","_","_"]
["C0019-13/IL65530/F0002/X032/R0230/001/CONTRA","C0019-13/IL65530/F0002/X032/R0230/001/CONTRA",124022,0,"Liabilities:Current Liabilities:Trade and Other Payable Exchange Transactions:Payables and Accruals : Contractors:Deposits"," _"," _"," _ "," _ "," _ "," _ ",4100,"Energy sources",4101,"Electricity","_",2080,"Funded by Internally generated funds","C","IL",380,"Current liabilities / Trade and other payables from exchange transactions","_","_"," _ "," _ ","_","_"," _ "," _ "," _ "," _ "," _ "," _ "," _ "," _ ",null,361,"Trade and other payables / Trade and other payables from exchange transactions",361,"Trade and other payables / Trade and other payables from exchange transactions",null,null,null,280,280,"Infrastructure / Electrical Infrastructure / LV Networks","Infrastructure / Electrical Infrastructure / LV Networks"," _ "," _ "," _ "," _ "," _ "," _ "," _ ",null," _ "," _ "," _ "," _ "," _ ",null," _ "," _ "," _ "," _ ",null,1,11,"Electricity"," Energy Sources",null,null,0,0,0,0,0,0,0,0,0,"_","_","_","_"]
["C0019-14/IL65530/F0002/X032/R0230/001/CONTRA","C0019-14/IL65530/F0002/X032/R0230/001/CONTRA",124026,0,"Liabilities:Current Liabilities:Trade and Other Payable Exchange Transactions:Payables and Accruals : Contractors:Deposits"," _"," _"," _ "," _ "," _ "," _ ",4100,"Energy sources",4101,"Electricity","_",2080,"Funded by Internally generated funds","C","IL",380,"Current liabilities / Trade and other payables from exchange transactions","_","_"," _ "," _ ","_","_"," _ "," _ "," _ "," _ "," _ "," _ "," _ "," _ ",null,361,"Trade and other payables / Trade and other payables from exchange transactions",361,"Trade and other payables / Trade and other payables from exchange transactions",null,null,null,280,280,"Infrastructure / Electrical Infrastructure / LV Networks","Infrastructure / Electrical Infrastructure / LV Networks"," _ "," _ "," _ "," _ "," _ "," _ "," _ ",null," _ "," _ "," _ "," _ "," _ ",null," _ "," _ "," _ "," _ ",null,1,11,"Electricity"," Energy Sources",null,null,0,0,0,0,0,0,0,0,0,"_","_","_","_"]
["C0019-15/IL65530/F0002/X032/R0230/001/CONTRA","C0019-15/IL65530/F0002/X032/R0230/001/CONTRA",124030,0,"Liabilities:Current Liabilities:Trade and Other Payable Exchange Transactions:Payables and Accruals : Contractors:Deposits"," _"," _"," _ "," _ "," _ "," _ ",4100,"Energy sources",4101,"Electricity","_",2080,"Funded by Internally generated funds","C","IL",380,"Current liabilities / Trade and other payables from exchange transactions","_","_"," _ "," _ ","_","_"," _ "," _ "," _ "," _ "," _ "," _ "," _ "," _ ",null,361,"Trade and other payables / Trade and other payables from exchange transactions",361,"Trade and other payables / Trade and other payables from exchange transactions",null,null,null,280,280,"Infrastructure / Electrical Infrastructure / LV Networks","Infrastructure / Electrical Infrastructure / LV Networks"," _ "," _ "," _ "," _ "," _ "," _ "," _ ",null," _ "," _ "," _ "," _ "," _ ",null," _ "," _ "," _ "," _ ",null,1,11,"Electricity"," Energy Sources",null,null,0,0,0,0,0,0,0,0,0,"_","_","_","_"]
["C0019-16/IL65530/F0002/X116/R0230/001/CONTRA","C0019-16/IL65530/F0002/X116/R0230/001/CONTRA",124034,0,"Liabilities:Current Liabilities:Trade and Other Payable Exchange Transactions:Payables and Accruals : Contractors:Deposits"," _"," _"," _ "," _ "," _ "," _ ",3200,"Road transport",3205,"Roads","_",2080,"Funded by Internally generated funds","C","IL",380,"Current liabilities / Trade and other payables from exchange transactions","_","_"," _ "," _ ","_","_"," _ "," _ "," _ "," _ "," _ "," _ "," _ "," _ ",null,361,"Trade and other payables / Trade and other payables from exchange transactions",361,"Trade and other payables / Trade and other payables from exchange transactions",null,null,null,280,280,"Infrastructure / Electrical Infrastructure / LV Networks","Infrastructure / Electrical Infrastructure / LV Networks"," _ "," _ "," _ "," _ "," _ "," _ "," _ ",null," _ "," _ "," _ "," _ "," _ ",null," _ "," _ "," _ "," _ ",null,7,74,"Roads","Road Transport",null,null,0,0,0,0,0,0,0,0,0,"_","_","_","_"]
["C0019-3/IL65530/F0002/X032/R0230/001/CONTRA","C0019-3/IL65530/F0002/X032/R0230/001/CONTRA",124038,0,"Liabilities:Current Liabilities:Trade and Other Payable Exchange Transactions:Payables and Accruals : Contractors:Deposits"," _"," _"," _ "," _ "," _ "," _ ",4100,"Energy sources",4101,"Electricity","_",2080,"Funded by Internally generated funds","C","IL",380,"Current liabilities / Trade and other payables from exchange transactions","_","_"," _ "," _ ","_","_"," _ "," _ "," _ "," _ "," _ "," _ "," _ "," _ ",null,361,"Trade and other payables / Trade and other payables from exchange transactions",361,"Trade and other payables / Trade and other payables from exchange transactions",null,null,null,280,280,"Infrastructure / Electrical Infrastructure / LV Networks","Infrastructure / Electrical Infrastructure / LV Networks"," _ "," _ "," _ "," _ "," _ "," _ "," _ ",null," _ "," _ "," _ "," _ "," _ ",null," _ "," _ "," _ "," _ ",null,1,11,"Electricity"," Energy Sources",null,null,0,0,0,0,0,0,0,0,0,"_","_","_","_"]
["C0049-1/IA02108/F0791/X131/R0230/001/CONTRA","C0049-1/IA02108/F0791/X131/R0230/001/CONTRA",124384,0,"Assets:Current Assets:Cash and Cash Equivalents:Cash at Bank:Bank Account:Specify (replace with account description):Withdrawals"," _"," _"," _ "," _ "," _ "," _ ",4400,"Waste management",4402,"Solid Waste Disposal (Landfill Sites)","_",2010,"Funded by National Government","C","IA",120,"Current assets / Cash and cash equivalents",120,"Cash and cash equivalents","0160W","CASH FLOW FROM OPERATING ACTIVITIES / Receipts / Transfers and Subsidies - Capital","0160W","CASH FLOW FROM OPERATING ACTIVITIES / Receipts / Transfers and Subsidies - Capital",310,"Other Cash Flows/Payments by Type / Capital assets",510,"Capital assets"," _ "," _ "," _ "," _ ",null," _ "," _ "," _ "," _ ",280,"Other Cash Flows by Source / Transfers and subsidies - capital (monetary allocations) (National / Provincial and District)","W",490,490,"Infrastructure / Solid Waste Infrastructure / Landfill Sites","Infrastructure / Solid Waste Infrastructure / Landfill Sites"," _ "," _ "," _ "," _ "," _ "," _ "," _ ",null," _ "," _ "," _ "," _ "," _ ",null," _ "," _ "," _ "," _ ",null,9,92,"Solid Waste Disposal (Landfill Sites)","Waste Management",null,null,0,0,0,0,0,0,0,0,0,"_","_","_","_"]
["C0177-2/IA02105/F0002/X116/R0044/001/CONTRA","C0177-2/IA02105/F0002/X116/R0044/001/CONTRA",123876,0,"Assets:Current Assets:Cash and Cash Equivalents:Cash at Bank:Bank Account:Specify (replace with account description):Deposits"," _"," _"," _ "," _ "," _ "," _ ",3200,"Road transport",3205,"Roads","_",2080,"Funded by Internally generated funds","C","IA",120,"Current assets / Cash and cash equivalents",120,"Cash and cash equivalents"," _ "," _ ","_","_",null,"Recepts - Cash and Cash Equivalents","0510","Recepts - Cash and Cash Equivalents"," _ "," _ "," _ "," _ ",null," _ "," _ "," _ "," _ ",null,null,"D"," _ "," _ "," _ "," _ "," _ "," _ "," _ "," _ "," _ "," _ "," _ ",null," _ "," _ "," _ "," _ "," _ ",null,120,"Infrastructure / Roads Infrastructure / Roads",120,"Infrastructure / Roads Infrastructure / Roads",null,7,74,"Roads","Road Transport",null,null,0,0,0,0,0,0,0,0,0,"_","_","_","_"]
["C0177-1/IL65531/F0791/X116/R0230/001/CONTRA","C0177-1/IL65531/F0791/X116/R0230/001/CONTRA",123722,0,"Liabilities:Current Liabilities:Trade and Other Payable Exchange Transactions:Payables and Accruals : Contractors:Withdrawals"," _"," _"," _ "," _ "," _ "," _ ",3200,"Road transport",3205,"Roads","_",2010,"Funded by National Government","C","IL",380,"Current liabilities / Trade and other payables from exchange transactions","_","_"," _ "," _ ","_","_",200,"Cash Payments by Type / Contracted Services",450,"Cash Payments by Type / Contracted Services"," _ "," _ "," _ "," _ ",null,361,"Trade and other payables / Trade and other payables from exchange transactions",361,"Trade and other payables / Trade and other payables from exchange transactions",null,null,null," _ "," _ "," _ "," _ "," _ "," _ "," _ "," _ "," _ "," _ "," _ ",null," _ "," _ "," _ "," _ "," _ ",null,120,"Infrastructure / Roads Infrastructure / Roads",120,"Infrastructure / Roads Infrastructure / Roads",null,7,74,"Roads","Road Transport",null,null,0,0,0,0,0,0,0,0,0,"_","_","_","_"]
["C0177-2/IA02108/F0002/X116/R0016/001/CONTRA","C0177-2/IA02108/F0002/X116/R0016/001/CONTRA",124546,0,"Assets:Current Assets:Cash and Cash Equivalents:Cash at Bank:Bank Account:Specify (replace with account description):Withdrawals"," _"," _"," _ "," _ "," _ "," _ ",3200,"Road transport",3205,"Roads","_",2080,"Funded by Internally generated funds","C","IA",120,"Current assets / Cash and cash equivalents",120,"Cash and cash equivalents"," _ "," _ ","_","_",310,"Other Cash Flows/Payments by Type / Capital assets",510,"Capital assets"," _ "," _ "," _ "," _ ",null," _ "," _ "," _ "," _ ",null,null,"W"," _ "," _ "," _ "," _ "," _ "," _ "," _ "," _ "," _ "," _ "," _ ",null," _ "," _ "," _ "," _ "," _ ",null,120,"Infrastructure / Roads Infrastructure / Roads",120,"Infrastructure / Roads Infrastructure / Roads",null,7,74,"Roads","Road Transport",null,null,0,0,0,0,0,0,0,0,0,"_","_","_","_"]
["O1235-2/IE00677/F0041/X106/R0230/001/6273","O1235-2/IE00677/F0041/X106/R0230/001/6273",68989,4235,"Expenditure:Contracted Services:Outsourced Services:Catering Services",3800,"Expenditure / Contracted services",2701,"Expenditure / Contracted services",2701,"Contracted Services ",2300,"Public safety",2302,"Cleansing","_"," _"," _","O","IE"," _ "," _ "," _ "," _ "," _ "," _ ","_","_"," _ "," _ "," _ "," _ "," _ "," _ "," _ "," _ ",null," _ "," _ "," _ "," _ ",null,null,null," _ "," _ "," _ "," _ "," _ "," _ "," _ "," _ "," _ "," _ "," _ ",null," _ "," _ "," _ "," _ "," _ ",null," _ "," _ "," _ "," _ ",null,8,81,"Cleansing","Public Safety",null,null,0,0,0,0,0,0,0,0,0,"_","_","_","_"]
["O1235-1/IE00583/F0041/X044/R0230/001/6057","O1235-1/IE00583/F0041/X044/R0230/001/6057",30860,3025,"Expenditure:Operational Cost:Printing, Publications and Books",4100,"Expenditure / Operational costs",2904,"Expenditure / Operational costs",2904,"Operational Costs ",1100,"Executive and council",1110,"Mayor and Council","_"," _"," _","O","IE"," _ "," _ "," _ "," _ "," _ "," _ ","_","_"," _ "," _ "," _ "," _ "," _ "," _ "," _ "," _ ",null," _ "," _ "," _ "," _ ",null,null,null," _ "," _ "," _ "," _ "," _ "," _ "," _ "," _ "," _ "," _ "," _ ",null," _ "," _ "," _ "," _ "," _ ",null," _ "," _ "," _ "," _ ",null,5,52,"Mayor and Council","Executive & Council",null,null,562123,404800,0,550000,600000,610000,620000,630000,535835,"_","_","_","_"]
["O1265-2/IL53821/F0041/X019/R0230/001/CONTRA","O1265-2/IL53821/F0041/X019/R0230/001/CONTRA",122442,0,"Liabilities:Current Liabilities:Trade and Other Payable Exchange Transactions:Payables and Accruals : General:Withdrawals"," _"," _"," _ "," _ "," _ "," _ ",2100,"Community and social services",2109,"Disaster Management","_"," _"," _","O","IL",380,"Current liabilities / Trade and other payables from exchange transactions","_","_"," _ "," _ ","_","_",200,"Cash Payments by Type / Other expenditure",480,"Other expenditure"," _ "," _ "," _ "," _ ",null,361,"Trade and other payables / Trade and other payables from exchange transactions",361,"Trade and other payables / Trade and other payables from exchange transactions",null,null,null," _ "," _ "," _ "," _ "," _ "," _ "," _ "," _ "," _ "," _ "," _ ",null," _ "," _ "," _ "," _ "," _ ",null," _ "," _ "," _ "," _ ",null,2,25,"Disaster Management","Community and Social Services",null,null,0,0,0,0,0,172500,184000,195500,0,"_","_","_","_"]
["O1265-2/IE00754/F0041/X019/R0230/001/6353","O1265-2/IE00754/F0041/X019/R0230/001/6353",31082,3026,"Expenditure:Operational Cost:Advertising, Publicity and Marketing:Gifts and Promotional Items",4100,"Expenditure / Operational costs",2904,"Expenditure / Operational costs",2904,"Operational Costs ",2100,"Community and social services",2109,"Disaster Management","_"," _"," _","O","IE"," _ "," _ "," _ "," _ "," _ "," _ ","_","_"," _ "," _ "," _ "," _ "," _ "," _ "," _ "," _ ",null," _ "," _ "," _ "," _ ",null,null,null," _ "," _ "," _ "," _ "," _ "," _ "," _ "," _ "," _ "," _ "," _ ",null," _ "," _ "," _ "," _ "," _ ",null," _ "," _ "," _ "," _ ",null,2,25,"Disaster Management","Community and Social Services",null,null,0,0,0,100000,100000,150000,160000,170000,0,"_","_","_","_"]
["C0336-1/IA02105/F0002/X125/R0230/001/CONTRA","C0336-1/IA02105/F0002/X125/R0230/001/CONTRA",123723,0,"Assets:Current Assets:Cash and Cash Equivalents:Cash at Bank:Bank Account:Specify (replace with account description):Deposits"," _"," _"," _ "," _ "," _ "," _ ",2200,"Sport and recreation",2205,"Sports Grounds and Stadiums","_",2080,"Funded by Internally generated funds","C","IA",120,"Current assets / Cash and cash equivalents",120,"Cash and cash equivalents"," _ "," _ ","_","_",null,"Recepts - Cash and Cash Equivalents","0510","Recepts - Cash and Cash Equivalents"," _ "," _ "," _ "," _ ",null," _ "," _ "," _ "," _ ",null,null,"D"," _ "," _ "," _ "," _ "," _ "," _ "," _ "," _ "," _ "," _ "," _ ",null," _ "," _ "," _ "," _ "," _ ",null,1030,"Community Assets / Sport and Recreation Facilities / Outdoor Facilities",1030,"Community Assets / Sport and Recreation Facilities / Outdoor Facilities",null,10,102,"Sports Grounds and Stadiums","Sports & Recreation",null,null,0,0,0,0,0,0,0,0,0,"_","_","_","_"]
["C0336-4/IA02108/F0791/X124/R0036/001/CONTRA","C0336-4/IA02108/F0791/X124/R0036/001/CONTRA",124505,0,"Assets:Current Assets:Cash and Cash Equivalents:Cash at Bank:Bank Account:Specify (replace with account description):Withdrawals"," _"," _"," _ "," _ "," _ "," _ ",2200,"Sport and recreation",2204,"Recreational Facilities","_",2010,"Funded by National Government","C","IA",120,"Current assets / Cash and cash equivalents",120,"Cash and cash equivalents","0160W","CASH FLOW FROM OPERATING ACTIVITIES / Receipts / Transfers and Subsidies - Capital","0160W","CASH FLOW FROM OPERATING ACTIVITIES / Receipts / Transfers and Subsidies - Capital",310,"Other Cash Flows/Payments by Type / Capital assets",510,"Capital assets"," _ "," _ "," _ "," _ ",null," _ "," _ "," _ "," _ ",280,"Other Cash Flows by Source / Transfers and subsidies - capital (monetary allocations) (National / Provincial and District)","W"," _ "," _ "," _ "," _ "," _ "," _ "," _ "," _ "," _ "," _ "," _ ",null," _ "," _ "," _ "," _ "," _ ",null,1030,"Community Assets / Sport and Recreation Facilities / Outdoor Facilities",1030,"Community Assets / Sport and Recreation Facilities / Outdoor Facilities",null,10,101,"Recreational Facilities","Sports & Recreation",null,null,0,0,0,0,0,0,0,0,0,"_","_","_","_"]
["C0336-3/IL65530/F0791/X124/R0038/001/CONTRA","C0336-3/IL65530/F0791/X124/R0038/001/CONTRA",123828,0,"Liabilities:Current Liabilities:Trade and Other Payable Exchange Transactions:Payables and Accruals : Contractors:Deposits"," _"," _"," _ "," _ "," _ "," _ ",2200,"Sport and recreation",2204,"Recreational Facilities","_",2010,"Funded by National Government","C","IL",380,"Current liabilities / Trade and other payables from exchange transactions","_","_"," _ "," _ ","_","_"," _ "," _ "," _ "," _ "," _ "," _ "," _ "," _ ",null,361,"Trade and other payables / Trade and other payables from exchange transactions",361,"Trade and other payables / Trade and other payables from exchange transactions",null,null,null," _ "," _ "," _ "," _ "," _ "," _ "," _ "," _ "," _ "," _ "," _ ",null," _ "," _ "," _ "," _ "," _ ",null,1030,"Community Assets / Sport and Recreation Facilities / Outdoor Facilities",1030,"Community Assets / Sport and Recreation Facilities / Outdoor Facilities",null,10,101,"Recreational Facilities","Sports & Recreation",null,null,0,0,0,0,0,0,0,0,0,"_","_","_","_"]
["C0357-2/IA02105/F0002/X108/R0022/001/CONTRA","C0357-2/IA02105/F0002/X108/R0022/001/CONTRA",123838,0,"Assets:Current Assets:Cash and Cash Equivalents:Cash at Bank:Bank Account:Specify (replace with account description):Deposits"," _"," _"," _ "," _ "," _ "," _ ",2300,"Public safety",2304,"Fencing and Fences","_",2080,"Funded by Internally generated funds","C","IA",120,"Current assets / Cash and cash equivalents",120,"Cash and cash equivalents"," _ "," _ ","_","_",null,"Recepts - Cash and Cash Equivalents","0510","Recepts - Cash and Cash Equivalents"," _ "," _ "," _ "," _ ",null," _ "," _ "," _ "," _ ",null,null,"D"," _ "," _ "," _ "," _ "," _ "," _ "," _ "," _ "," _ "," _ "," _ ",null," _ "," _ "," _ "," _ "," _ ",null,1240,"Other assets / Operational Buildings / Yards",1240,"Other assets / Operational Buildings / Yards",null,8,82,"Fencing and Fences","Public Safety",null,null,0,0,0,0,0,-1495000,0,0,0,"_","_","_","_"]
["C0357-2/IA10370/F0002/X108/R0022/001/CONTRA","C0357-2/IA10370/F0002/X108/R0022/001/CONTRA",123839,0,"Assets:Current Assets:VAT Receivable:Input Tax Capital:Recognised"," _"," _"," _ "," _ "," _ "," _ ",2300,"Public safety",2304,"Fencing and Fences","_",2080,"Funded by Internally generated funds","C","IA",170,"Current assets / VAT",170,"VAT"," _ "," _ ","_","_"," _ "," _ "," _ "," _ "," _ "," _ "," _ "," _ ",null," _ "," _ "," _ "," _ ",null,null,null," _ "," _ "," _ "," _ "," _ "," _ "," _ "," _ "," _ "," _ "," _ ",null," _ "," _ "," _ "," _ "," _ ",null,1240,"Other assets / Operational Buildings / Yards",1240,"Other assets / Operational Buildings / Yards",null,8,82,"Fencing and Fences","Public Safety",null,null,0,0,0,0,0,195000,0,0,0,"_","_","_","_"]
["C0072-1/IA01357/F0002/X047/R0230/001/6114","C0072-1/IA01357/F0002/X047/R0230/001/6114",61496,4215,"Assets:Non-current Assets:Property, Plant and Equipment:Cost Model:Transport Assets:Owned and In-use:Accumulated Depreciation:Depreciation"," _"," _"," _ "," _ "," _ "," _ ",1200,"Finance and administration",1202,"Asset Management","_",2080,"Funded by Internally generated funds","C","IA",230,"Non current assets / Property, plant and equipment",233,"Land: Adjustments"," _ "," _ ","_","_"," _ "," _ "," _ "," _ ",1530,"Transport Assets",1530,"Transport Assets",null,243,"Property, plant and equipment (PPE) / Less: Accumulated depreciation",243,"Property, plant and equipment (PPE) / Less: Accumulated depreciation",null,null,null," _ "," _ "," _ "," _ ",1530,"Transport Assets"," _ "," _ ",1530," _ "," _ ",null," _ "," _ ","Transport Assets"," _ "," _ ",null," _ "," _ "," _ "," _ ",null,3,33,"Asset Management","Finance & Administration",null,null,0,0,0,0,0,0,0,0,0,"_","_","_","_"]
["O1245-1/IE00677/F0041/X044/R0230/001/6057","O1245-1/IE00677/F0041/X044/R0230/001/6057",30726,1931,"Expenditure:Contracted Services:Outsourced Services:Catering Services",3800,"Expenditure / Contracted services",2701,"Expenditure / Contracted services",2701,"Contracted Services ",1100,"Executive and council",1110,"Mayor and Council","_"," _"," _","O","IE"," _ "," _ "," _ "," _ "," _ "," _ ","_","_"," _ "," _ "," _ "," _ "," _ "," _ "," _ "," _ ",null," _ "," _ "," _ "," _ ",null,null,null," _ "," _ "," _ "," _ "," _ "," _ "," _ "," _ "," _ "," _ "," _ ",null," _ "," _ "," _ "," _ "," _ ",null," _ "," _ "," _ "," _ ",null,5,52,"Mayor and Council","Executive & Council",null,null,26174,0,28150,130000,249000,180000,190000,200000,121004,"_","_","_","_"]
["O1369-8/IA10375/F0041/X032/R0044/001/CONTRA","O1369-8/IA10375/F0041/X032/R0044/001/CONTRA",122559,0,"Assets:Current Assets:VAT Receivable:Input Tax Accrual:Recognised"," _"," _"," _ "," _ "," _ "," _ ",4100,"Energy sources",4101,"Electricity","_"," _"," _","O","IA",170,"Current assets / VAT",170,"VAT"," _ "," _ ","_","_"," _ "," _ "," _ "," _ "," _ "," _ "," _ "," _ ",null," _ "," _ "," _ "," _ ",null,null,null," _ "," _ "," _ "," _ "," _ "," _ "," _ "," _ "," _ "," _ "," _ ",null," _ "," _ "," _ "," _ "," _ ",null," _ "," _ "," _ "," _ ",null,1,11,"Electricity"," Energy Sources",null,null,0,0,0,0,0,0,0,0,0,"_","_","_","_"]
["O1369-66/IA10375/F0041/X032/R0031/001/CONTRA","O1369-66/IA10375/F0041/X032/R0031/001/CONTRA",123518,0,"Assets:Current Assets:VAT Receivable:Input Tax Accrual:Recognised"," _"," _"," _ "," _ "," _ "," _ ","4100","Energy sources","4101","Electricity","_"," _"," _","O","IA","0170","Current assets / VAT","0170","VAT"," _ "," _ ","_","_"," _ "," _ "," _ "," _ "," _ "," _ "," _ "," _ ",null," _ "," _ "," _ "," _ ","",null,null," _ "," _ "," _ "," _ "," _ "," _ "," _ "," _ "," _ "," _ "," _ ",null," _ "," _ "," _ "," _ "," _ ",null," _ "," _ "," _ "," _ ",null,1,11,"Electricity"," Energy Sources",null,null,0,0,0,0,0,0,0,0,0,"_","_","_","_"]
["O1369-48/IA10375/F0041/X032/R0036/001/CONTRA","O1369-48/IA10375/F0041/X032/R0036/001/CONTRA",123370,0,"Assets:Current Assets:VAT Receivable:Input Tax Accrual:Recognised"," _"," _"," _ "," _ "," _ "," _ ",4100,"Energy sources",4101,"Electricity","_"," _"," _","O","IA",170,"Current assets / VAT",170,"VAT"," _ "," _ ","_","_"," _ "," _ "," _ "," _ "," _ "," _ "," _ "," _ ",null," _ "," _ "," _ "," _ ",null,null,null," _ "," _ "," _ "," _ "," _ "," _ "," _ "," _ "," _ "," _ "," _ ",null," _ "," _ "," _ "," _ "," _ ",null," _ "," _ "," _ "," _ ",null,1,11,"Electricity"," Energy Sources",null,null,0,0,0,0,0,15000,0,0,0,"_","_","_","_"]
["O1369-2/IA10375/F0048/X032/R0019/001/CONTRA","O1369-2/IA10375/F0048/X032/R0019/001/CONTRA",121582,0,"Assets:Current Assets:VAT Receivable:Input Tax Accrual:Recognised"," _"," _"," _ "," _ "," _ "," _ ",4100,"Energy sources",4101,"Electricity","_"," _"," _","O","IA",170,"Current assets / VAT",170,"VAT"," _ "," _ ","_","_"," _ "," _ "," _ "," _ "," _ "," _ "," _ "," _ ",null," _ "," _ "," _ "," _ ",null,null,null," _ "," _ "," _ "," _ "," _ "," _ "," _ "," _ "," _ "," _ "," _ ",null," _ "," _ "," _ "," _ "," _ ",null," _ "," _ "," _ "," _ ",null,1,11,"Electricity"," Energy Sources",null,null,0,0,0,0,0,0,0,0,0,"_","_","_","_"]
["O1369-13/IA10375/F0041/X032/R0038/001/CONTRA","O1369-13/IA10375/F0041/X032/R0038/001/CONTRA",123004,0,"Assets:Current Assets:VAT Receivable:Input Tax Accrual:Recognised"," _"," _"," _ "," _ "," _ "," _ ",4100,"Energy sources",4101,"Electricity","_"," _"," _","O","IA",170,"Current assets / VAT",170,"VAT"," _ "," _ ","_","_"," _ "," _ "," _ "," _ "," _ "," _ "," _ "," _ ",null," _ "," _ "," _ "," _ ",null,null,null," _ "," _ "," _ "," _ "," _ "," _ "," _ "," _ "," _ "," _ "," _ ",null," _ "," _ "," _ "," _ "," _ ",null," _ "," _ "," _ "," _ ",null,1,11,"Electricity"," Energy Sources",null,null,0,0,0,0,0,0,0,0,0,"_","_","_","_"]
["O1369-45/IA10375/F0041/X032/R0230/001/CONTRA","O1369-45/IA10375/F0041/X032/R0230/001/CONTRA",123346,0,"Assets:Current Assets:VAT Receivable:Input Tax Accrual:Recognised"," _"," _"," _ "," _ "," _ "," _ ",4100,"Energy sources",4101,"Electricity","_"," _"," _","O","IA",170,"Current assets / VAT",170,"VAT"," _ "," _ ","_","_"," _ "," _ "," _ "," _ "," _ "," _ "," _ "," _ ",null," _ "," _ "," _ "," _ ",null,null,null," _ "," _ "," _ "," _ "," _ "," _ "," _ "," _ "," _ "," _ "," _ ",null," _ "," _ "," _ "," _ "," _ ",null," _ "," _ "," _ "," _ ",null,1,11,"Electricity"," Energy Sources",null,null,0,0,0,0,0,0,0,0,0,"_","_","_","_"]
["O1369-38/IA10375/F0041/X032/R0043/001/CONTRA","O1369-38/IA10375/F0041/X032/R0043/001/CONTRA",123262,0,"Assets:Current Assets:VAT Receivable:Input Tax Accrual:Recognised"," _"," _"," _ "," _ "," _ "," _ ",4100,"Energy sources",4101,"Electricity","_"," _"," _","O","IA",170,"Current assets / VAT",170,"VAT"," _ "," _ ","_","_"," _ "," _ "," _ "," _ "," _ "," _ "," _ "," _ ",null," _ "," _ "," _ "," _ ",null,null,null," _ "," _ "," _ "," _ "," _ "," _ "," _ "," _ "," _ "," _ "," _ ",null," _ "," _ "," _ "," _ "," _ ",null," _ "," _ "," _ "," _ ",null,1,11,"Electricity"," Energy Sources",null,null,0,0,0,0,0,0,0,0,0,"_","_","_","_"]
["O1369-3/IA10375/F2496/X032/R0042/001/CONTRA","O1369-3/IA10375/F2496/X032/R0042/001/CONTRA",121618,0,"Assets:Current Assets:VAT Receivable:Input Tax Accrual:Recognised"," _"," _"," _ "," _ "," _ "," _ ",4100,"Energy sources",4101,"Electricity","_"," _"," _","O","IA",170,"Current assets / VAT",170,"VAT"," _ "," _ ","_","_"," _ "," _ "," _ "," _ "," _ "," _ "," _ "," _ ",null," _ "," _ "," _ "," _ ",null,null,null," _ "," _ "," _ "," _ "," _ "," _ "," _ "," _ "," _ "," _ "," _ ",null," _ "," _ "," _ "," _ "," _ ",null," _ "," _ "," _ "," _ ",null,1,11,"Electricity"," Energy Sources",null,null,0,0,0,0,0,0,0,0,0,"_","_","_","_"]
["O1369-56/IA10375/F13530/X032/R0026/001/CONTRA","O1369-56/IA10375/F13530/X032/R0026/001/CONTRA",123442,0,"Assets:Current Assets:VAT Receivable:Input Tax Accrual:Recognised"," _"," _"," _ "," _ "," _ "," _ ",4100,"Energy sources",4101,"Electricity","_"," _"," _","O","IA",170,"Current assets / VAT",170,"VAT"," _ "," _ ","_","_"," _ "," _ "," _ "," _ "," _ "," _ "," _ "," _ ",null," _ "," _ "," _ "," _ ",null,null,null," _ "," _ "," _ "," _ "," _ "," _ "," _ "," _ "," _ "," _ "," _ ",null," _ "," _ "," _ "," _ "," _ ",null," _ "," _ "," _ "," _ ",null,1,11,"Electricity"," Energy Sources",null,null,0,0,0,0,0,450000,0,0,0,"_","_","_","_"]
["O1369-66/IA10375/F13530/X032/R0031/001/CONTRA","O1369-66/IA10375/F13530/X032/R0031/001/CONTRA",123522,0,"Assets:Current Assets:VAT Receivable:Input Tax Accrual:Recognised"," _"," _"," _ "," _ "," _ "," _ ",4100,"Energy sources",4101,"Electricity","_"," _"," _","O","IA",170,"Current assets / VAT",170,"VAT"," _ "," _ ","_","_"," _ "," _ "," _ "," _ "," _ "," _ "," _ "," _ ",null," _ "," _ "," _ "," _ ",null,null,null," _ "," _ "," _ "," _ "," _ "," _ "," _ "," _ "," _ "," _ "," _ ",null," _ "," _ "," _ "," _ "," _ ",null," _ "," _ "," _ "," _ ",null,1,11,"Electricity"," Energy Sources",null,null,0,0,0,0,0,0,0,450000,0,"_","_","_","_"]
["O1369-34/IA10375/F13530/X032/R0021/001/CONTRA","O1369-34/IA10375/F13530/X032/R0021/001/CONTRA",123184,0,"Assets:Current Assets:VAT Receivable:Input Tax Accrual:Recognised"," _"," _"," _ "," _ "," _ "," _ ",4100,"Energy sources",4101,"Electricity","_"," _"," _","O","IA",170,"Current assets / VAT",170,"VAT"," _ "," _ ","_","_"," _ "," _ "," _ "," _ "," _ "," _ "," _ "," _ ",null," _ "," _ "," _ "," _ ",null,null,null," _ "," _ "," _ "," _ "," _ "," _ "," _ "," _ "," _ "," _ "," _ ",null," _ "," _ "," _ "," _ "," _ ",null," _ "," _ "," _ "," _ ",null,1,11,"Electricity"," Energy Sources",null,null,0,0,0,0,0,0,0,0,0,"_","_","_","_"]
["O1369-14/IA10375/F13530/X032/R0038/001/CONTRA","O1369-14/IA10375/F13530/X032/R0038/001/CONTRA",123012,0,"Assets:Current Assets:VAT Receivable:Input Tax Accrual:Recognised"," _"," _"," _ "," _ "," _ "," _ ",4100,"Energy sources",4101,"Electricity","_"," _"," _","O","IA",170,"Current assets / VAT",170,"VAT"," _ "," _ ","_","_"," _ "," _ "," _ "," _ "," _ "," _ "," _ "," _ ",null," _ "," _ "," _ "," _ ",null,null,null," _ "," _ "," _ "," _ "," _ "," _ "," _ "," _ "," _ "," _ "," _ ",null," _ "," _ "," _ "," _ "," _ ",null," _ "," _ "," _ "," _ ",null,1,11,"Electricity"," Energy Sources",null,null,0,0,0,0,0,0,0,0,0,"_","_","_","_"]
["O1369-31/IA10375/F13530/X032/R0040/001/CONTRA","O1369-31/IA10375/F13530/X032/R0040/001/CONTRA",123148,0,"Assets:Current Assets:VAT Receivable:Input Tax Accrual:Recognised"," _"," _"," _ "," _ "," _ "," _ ",4100,"Energy sources",4101,"Electricity","_"," _"," _","O","IA",170,"Current assets / VAT",170,"VAT"," _ "," _ ","_","_"," _ "," _ "," _ "," _ "," _ "," _ "," _ "," _ ",null," _ "," _ "," _ "," _ ",null,null,null," _ "," _ "," _ "," _ "," _ "," _ "," _ "," _ "," _ "," _ "," _ ",null," _ "," _ "," _ "," _ "," _ ",null," _ "," _ "," _ "," _ ",null,1,11,"Electricity"," Energy Sources",null,null,0,0,0,0,0,0,0,0,0,"_","_","_","_"]
["O1369-4/IE00681/F0048/X032/R0028/001/6707","O1369-4/IE00681/F0048/X032/R0028/001/6707",30561,1794,"Expenditure:Contracted Services:Outsourced Services:Electrical",3800,"Expenditure / Contracted services",2701,"Expenditure / Contracted services",2701,"Contracted Services ",4100,"Energy sources",4101,"Electricity","_"," _"," _","O","IE"," _ "," _ "," _ "," _ "," _ "," _ ","_","_"," _ "," _ "," _ "," _ "," _ "," _ "," _ "," _ ",null," _ "," _ "," _ "," _ ",null,null,null," _ "," _ "," _ "," _ "," _ "," _ "," _ "," _ "," _ "," _ "," _ ",null," _ "," _ "," _ "," _ "," _ ",null," _ "," _ "," _ "," _ ",null,1,11,"Electricity"," Energy Sources",null,null,0,0,0,0,0,0,0,0,0,"_","_","_","_"]
["O1369-22/IL65531/F13530/X032/R0030/001/CONTRA","O1369-22/IL65531/F13530/X032/R0030/001/CONTRA",123070,0,"Liabilities:Current Liabilities:Trade and Other Payable Exchange Transactions:Payables and Accruals : Contractors:Withdrawals"," _"," _"," _ "," _ "," _ "," _ ",4100,"Energy sources",4101,"Electricity","_"," _"," _","O","IL",380,"Current liabilities / Trade and other payables from exchange transactions","_","_"," _ "," _ ","_","_",200,"Cash Payments by Type / Contracted Services",450,"Cash Payments by Type / Contracted Services"," _ "," _ "," _ "," _ ",null,361,"Trade and other payables / Trade and other payables from exchange transactions",361,"Trade and other payables / Trade and other payables from exchange transactions",null,null,null," _ "," _ "," _ "," _ "," _ "," _ "," _ "," _ "," _ "," _ "," _ ",null," _ "," _ "," _ "," _ "," _ ",null," _ "," _ "," _ "," _ ",null,1,11,"Electricity"," Energy Sources",null,null,0,0,0,0,0,0,0,0,0,"_","_","_","_"]
["O1369-32/IL65531/F13530/X032/R0035/001/CONTRA","O1369-32/IL65531/F13530/X032/R0035/001/CONTRA",123162,0,"Liabilities:Current Liabilities:Trade and Other Payable Exchange Transactions:Payables and Accruals : Contractors:Withdrawals"," _"," _"," _ "," _ "," _ "," _ ",4100,"Energy sources",4101,"Electricity","_"," _"," _","O","IL",380,"Current liabilities / Trade and other payables from exchange transactions","_","_"," _ "," _ ","_","_",200,"Cash Payments by Type / Contracted Services",450,"Cash Payments by Type / Contracted Services"," _ "," _ "," _ "," _ ",null,361,"Trade and other payables / Trade and other payables from exchange transactions",361,"Trade and other payables / Trade and other payables from exchange transactions",null,null,null," _ "," _ "," _ "," _ "," _ "," _ "," _ "," _ "," _ "," _ "," _ ",null," _ "," _ "," _ "," _ "," _ ",null," _ "," _ "," _ "," _ ",null,1,11,"Electricity"," Energy Sources",null,null,0,0,0,0,0,0,0,0,0,"_","_","_","_"]
["O1369-51/IL65531/F13530/X032/R0026/001/CONTRA","O1369-51/IL65531/F13530/X032/R0026/001/CONTRA",123400,0,"Liabilities:Current Liabilities:Trade and Other Payable Exchange Transactions:Payables and Accruals : Contractors:Withdrawals"," _"," _"," _ "," _ "," _ "," _ ",4100,"Energy sources",4101,"Electricity","_"," _"," _","O","IL",380,"Current liabilities / Trade and other payables from exchange transactions","_","_"," _ "," _ ","_","_",200,"Cash Payments by Type / Contracted Services",450,"Cash Payments by Type / Contracted Services"," _ "," _ "," _ "," _ ",null,361,"Trade and other payables / Trade and other payables from exchange transactions",361,"Trade and other payables / Trade and other payables from exchange transactions",null,null,null," _ "," _ "," _ "," _ "," _ "," _ "," _ "," _ "," _ "," _ "," _ ",null," _ "," _ "," _ "," _ "," _ ",null," _ "," _ "," _ "," _ ",null,1,11,"Electricity"," Energy Sources",null,null,0,0,0,0,0,3450000,0,0,0,"_","_","_","_"]
["O1369-5/IL65531/F0048/X032/R0032/001/CONTRA","O1369-5/IL65531/F0048/X032/R0032/001/CONTRA",121801,0,"Liabilities:Current Liabilities:Trade and Other Payable Exchange Transactions:Payables and Accruals : Contractors:Withdrawals"," _"," _"," _ "," _ "," _ "," _ ",4100,"Energy sources",4101,"Electricity","_"," _"," _","O","IL",380,"Current liabilities / Trade and other payables from exchange transactions","_","_"," _ "," _ ","_","_",200,"Cash Payments by Type / Contracted Services",450,"Cash Payments by Type / Contracted Services"," _ "," _ "," _ "," _ ",null,361,"Trade and other payables / Trade and other payables from exchange transactions",361,"Trade and other payables / Trade and other payables from exchange transactions",null,null,null," _ "," _ "," _ "," _ "," _ "," _ "," _ "," _ "," _ "," _ "," _ ",null," _ "," _ "," _ "," _ "," _ ",null," _ "," _ "," _ "," _ ",null,1,11,"Electricity"," Energy Sources",null,null,0,0,0,0,0,0,0,0,0,"_","_","_","_"]
["O1369-59/IL65531/F13530/X032/R0016/001/CONTRA","O1369-59/IL65531/F13530/X032/R0016/001/CONTRA",123468,0,"Liabilities:Current Liabilities:Trade and Other Payable Exchange Transactions:Payables and Accruals : Contractors:Withdrawals"," _"," _"," _ "," _ "," _ "," _ ",4100,"Energy sources",4101,"Electricity","_"," _"," _","O","IL",380,"Current liabilities / Trade and other payables from exchange transactions","_","_"," _ "," _ ","_","_",200,"Cash Payments by Type / Contracted Services",450,"Cash Payments by Type / Contracted Services"," _ "," _ "," _ "," _ ",null,361,"Trade and other payables / Trade and other payables from exchange transactions",361,"Trade and other payables / Trade and other payables from exchange transactions",null,null,null," _ "," _ "," _ "," _ "," _ "," _ "," _ "," _ "," _ "," _ "," _ ",null," _ "," _ "," _ "," _ "," _ ",null," _ "," _ "," _ "," _ ",null,1,11,"Electricity"," Energy Sources",null,null,0,0,0,0,0,207000,5750000,0,0,"_","_","_","_"]
["O1369-76/IL65531/F13530/X032/R0039/001/CONTRA","O1369-76/IL65531/F13530/X032/R0039/001/CONTRA",123608,0,"Liabilities:Current Liabilities:Trade and Other Payable Exchange Transactions:Payables and Accruals : Contractors:Withdrawals"," _"," _"," _ "," _ "," _ "," _ ",4100,"Energy sources",4101,"Electricity","_"," _"," _","O","IL",380,"Current liabilities / Trade and other payables from exchange transactions","_","_"," _ "," _ ","_","_",200,"Cash Payments by Type / Contracted Services",450,"Cash Payments by Type / Contracted Services"," _ "," _ "," _ "," _ ",null,361,"Trade and other payables / Trade and other payables from exchange transactions",361,"Trade and other payables / Trade and other payables from exchange transactions",null,null,null," _ "," _ "," _ "," _ "," _ "," _ "," _ "," _ "," _ "," _ "," _ ",null," _ "," _ "," _ "," _ "," _ ",null," _ "," _ "," _ "," _ ",null,1,11,"Electricity"," Energy Sources",null,null,0,0,0,0,0,0,0,2300000,0,"_","_","_","_"]
["O1369-65/IL65531/F13530/X032/R0032/001/CONTRA","O1369-65/IL65531/F13530/X032/R0032/001/CONTRA",123516,0,"Liabilities:Current Liabilities:Trade and Other Payable Exchange Transactions:Payables and Accruals : Contractors:Withdrawals"," _"," _"," _ "," _ "," _ "," _ ",4100,"Energy sources",4101,"Electricity","_"," _"," _","O","IL",380,"Current liabilities / Trade and other payables from exchange transactions","_","_"," _ "," _ ","_","_",200,"Cash Payments by Type / Contracted Services",450,"Cash Payments by Type / Contracted Services"," _ "," _ "," _ "," _ ",null,361,"Trade and other payables / Trade and other payables from exchange transactions",361,"Trade and other payables / Trade and other payables from exchange transactions",null,null,null," _ "," _ "," _ "," _ "," _ "," _ "," _ "," _ "," _ "," _ "," _ ",null," _ "," _ "," _ "," _ "," _ ",null," _ "," _ "," _ "," _ ",null,1,11,"Electricity"," Energy Sources",null,null,0,0,0,0,0,0,0,2300000,0,"_","_","_","_"]
["O1369-13/IL65531/F0041/X032/R0038/001/CONTRA","O1369-13/IL65531/F0041/X032/R0038/001/CONTRA",123006,0,"Liabilities:Current Liabilities:Trade and Other Payable Exchange Transactions:Payables and Accruals : Contractors:Withdrawals"," _"," _"," _ "," _ "," _ "," _ ",4100,"Energy sources",4101,"Electricity","_"," _"," _","O","IL",380,"Current liabilities / Trade and other payables from exchange transactions","_","_"," _ "," _ ","_","_",200,"Cash Payments by Type / Contracted Services",450,"Cash Payments by Type / Contracted Services"," _ "," _ "," _ "," _ ",null,361,"Trade and other payables / Trade and other payables from exchange transactions",361,"Trade and other payables / Trade and other payables from exchange transactions",null,null,null," _ "," _ "," _ "," _ "," _ "," _ "," _ "," _ "," _ "," _ "," _ ",null," _ "," _ "," _ "," _ "," _ ",null," _ "," _ "," _ "," _ ",null,1,11,"Electricity"," Energy Sources",null,null,0,0,0,0,0,0,0,0,0,"_","_","_","_"]
["O1369-55/IL65531/F0041/X032/R0017/001/CONTRA","O1369-55/IL65531/F0041/X032/R0017/001/CONTRA",123432,0,"Liabilities:Current Liabilities:Trade and Other Payable Exchange Transactions:Payables and Accruals : Contractors:Withdrawals"," _"," _"," _ "," _ "," _ "," _ ",4100,"Energy sources",4101,"Electricity","_"," _"," _","O","IL",380,"Current liabilities / Trade and other payables from exchange transactions","_","_"," _ "," _ ","_","_",200,"Cash Payments by Type / Contracted Services",450,"Cash Payments by Type / Contracted Services"," _ "," _ "," _ "," _ ",null,361,"Trade and other payables / Trade and other payables from exchange transactions",361,"Trade and other payables / Trade and other payables from exchange transactions",null,null,null," _ "," _ "," _ "," _ "," _ "," _ "," _ "," _ "," _ "," _ "," _ ",null," _ "," _ "," _ "," _ "," _ ",null," _ "," _ "," _ "," _ ",null,1,11,"Electricity"," Energy Sources",null,null,0,0,0,0,0,115000,0,0,0,"_","_","_","_"]
["O1369-6/IL65531/F0041/X032/R0039/001/CONTRA","O1369-6/IL65531/F0041/X032/R0039/001/CONTRA",121880,0,"Liabilities:Current Liabilities:Trade and Other Payable Exchange Transactions:Payables and Accruals : Contractors:Withdrawals"," _"," _"," _ "," _ "," _ "," _ ",4100,"Energy sources",4101,"Electricity","_"," _"," _","O","IL",380,"Current liabilities / Trade and other payables from exchange transactions","_","_"," _ "," _ ","_","_",200,"Cash Payments by Type / Contracted Services",450,"Cash Payments by Type / Contracted Services"," _ "," _ "," _ "," _ ",null,361,"Trade and other payables / Trade and other payables from exchange transactions",361,"Trade and other payables / Trade and other payables from exchange transactions",null,null,null," _ "," _ "," _ "," _ "," _ "," _ "," _ "," _ "," _ "," _ "," _ ",null," _ "," _ "," _ "," _ "," _ ",null," _ "," _ "," _ "," _ ",null,1,11,"Electricity"," Energy Sources",null,null,0,0,0,0,0,0,0,0,0,"_","_","_","_"]
["O1369-69/IL65531/F0041/X032/R0025/001/CONTRA","O1369-69/IL65531/F0041/X032/R0025/001/CONTRA",123544,0,"Liabilities:Current Liabilities:Trade and Other Payable Exchange Transactions:Payables and Accruals : Contractors:Withdrawals"," _"," _"," _ "," _ "," _ "," _ ",4100,"Energy sources",4101,"Electricity","_"," _"," _","O","IL",380,"Current liabilities / Trade and other payables from exchange transactions","_","_"," _ "," _ ","_","_",200,"Cash Payments by Type / Contracted Services",450,"Cash Payments by Type / Contracted Services"," _ "," _ "," _ "," _ ",null,361,"Trade and other payables / Trade and other payables from exchange transactions",361,"Trade and other payables / Trade and other payables from exchange transactions",null,null,null," _ "," _ "," _ "," _ "," _ "," _ "," _ "," _ "," _ "," _ "," _ ",null," _ "," _ "," _ "," _ "," _ ",null," _ "," _ "," _ "," _ ",null,1,11,"Electricity"," Energy Sources",null,null,0,0,0,0,0,0,0,0,0,"_","_","_","_"]
["O1369-48/IL65531/F0041/X032/R0036/001/CONTRA","O1369-48/IL65531/F0041/X032/R0036/001/CONTRA",123372,0,"Liabilities:Current Liabilities:Trade and Other Payable Exchange Transactions:Payables and Accruals : Contractors:Withdrawals"," _"," _"," _ "," _ "," _ "," _ ",4100,"Energy sources",4101,"Electricity","_"," _"," _","O","IL",380,"Current liabilities / Trade and other payables from exchange transactions","_","_"," _ "," _ ","_","_",200,"Cash Payments by Type / Contracted Services",450,"Cash Payments by Type / Contracted Services"," _ "," _ "," _ "," _ ",null,361,"Trade and other payables / Trade and other payables from exchange transactions",361,"Trade and other payables / Trade and other payables from exchange transactions",null,null,null," _ "," _ "," _ "," _ "," _ "," _ "," _ "," _ "," _ "," _ "," _ ",null," _ "," _ "," _ "," _ "," _ ",null," _ "," _ "," _ "," _ ",null,1,11,"Electricity"," Energy Sources",null,null,0,0,0,0,0,115000,0,0,0,"_","_","_","_"]
["O1369-31/IA02108/F0041/X032/R0040/001/CONTRA","O1369-31/IA02108/F0041/X032/R0040/001/CONTRA",123139,0,"Assets:Current Assets:Cash and Cash Equivalents:Cash at Bank:Bank Account:Specify (replace with account description):Withdrawals"," _"," _"," _ "," _ "," _ "," _ ",4100,"Energy sources",4101,"Electricity","_"," _"," _","O","IA",120,"Current assets / Cash and cash equivalents",120,"Cash and cash equivalents","0150W","CASH FLOW FROM OPERATING ACTIVITIES / Receipts / Transfers and Subsidies - Operational","0150W","CASH FLOW FROM OPERATING ACTIVITIES / Receipts / Transfers and Subsidies - Operational"," _ "," _ "," _ "," _ "," _ "," _ "," _ "," _ ",null," _ "," _ "," _ "," _ ",240,"Cash Receipts By Source / Transfers and Subsidies - Operational","W"," _ "," _ "," _ "," _ "," _ "," _ "," _ "," _ "," _ "," _ "," _ ",null," _ "," _ "," _ "," _ "," _ ",null," _ "," _ "," _ "," _ ",null,1,11,"Electricity"," Energy Sources",null,null,0,0,0,0,0,0,0,0,0,"_","_","_","_"]
["O1369-10/IA02108/F0041/X032/R0230/001/CONTRA","O1369-10/IA02108/F0041/X032/R0230/001/CONTRA",122969,0,"Assets:Current Assets:Cash and Cash Equivalents:Cash at Bank:Bank Account:Specify (replace with account description):Withdrawals"," _"," _"," _ "," _ "," _ "," _ ",4100,"Energy sources",4101,"Electricity","_"," _"," _","O","IA",120,"Current assets / Cash and cash equivalents",120,"Cash and cash equivalents","0150W","CASH FLOW FROM OPERATING ACTIVITIES / Receipts / Transfers and Subsidies - Operational","0150W","CASH FLOW FROM OPERATING ACTIVITIES / Receipts / Transfers and Subsidies - Operational"," _ "," _ "," _ "," _ "," _ "," _ "," _ "," _ ",null," _ "," _ "," _ "," _ ",240,"Cash Receipts By Source / Transfers and Subsidies - Operational","W"," _ "," _ "," _ "," _ "," _ "," _ "," _ "," _ "," _ "," _ "," _ ",null," _ "," _ "," _ "," _ "," _ ",null," _ "," _ "," _ "," _ ",null,1,11,"Electricity"," Energy Sources",null,null,0,0,0,0,0,0,0,0,0,"_","_","_","_"]
["O1369-43/IA02108/F0041/X032/R0020/001/CONTRA","O1369-43/IA02108/F0041/X032/R0020/001/CONTRA",123329,0,"Assets:Current Assets:Cash and Cash Equivalents:Cash at Bank:Bank Account:Specify (replace with account description):Withdrawals"," _"," _"," _ "," _ "," _ "," _ ",4100,"Energy sources",4101,"Electricity","_"," _"," _","O","IA",120,"Current assets / Cash and cash equivalents",120,"Cash and cash equivalents","0150W","CASH FLOW FROM OPERATING ACTIVITIES / Receipts / Transfers and Subsidies - Operational","0150W","CASH FLOW FROM OPERATING ACTIVITIES / Receipts / Transfers and Subsidies - Operational"," _ "," _ "," _ "," _ "," _ "," _ "," _ "," _ ",null," _ "," _ "," _ "," _ ",240,"Cash Receipts By Source / Transfers and Subsidies - Operational","W"," _ "," _ "," _ "," _ "," _ "," _ "," _ "," _ "," _ "," _ "," _ ",null," _ "," _ "," _ "," _ "," _ ",null," _ "," _ "," _ "," _ ",null,1,11,"Electricity"," Energy Sources",null,null,0,0,0,0,0,0,0,0,0,"_","_","_","_"]
["O1369-48/IA02108/F0041/X032/R0036/001/CONTRA","O1369-48/IA02108/F0041/X032/R0036/001/CONTRA",123369,0,"Assets:Current Assets:Cash and Cash Equivalents:Cash at Bank:Bank Account:Specify (replace with account description):Withdrawals"," _"," _"," _ "," _ "," _ "," _ ",4100,"Energy sources",4101,"Electricity","_"," _"," _","O","IA",120,"Current assets / Cash and cash equivalents",120,"Cash and cash equivalents","0150W","CASH FLOW FROM OPERATING ACTIVITIES / Receipts / Transfers and Subsidies - Operational","0150W","CASH FLOW FROM OPERATING ACTIVITIES / Receipts / Transfers and Subsidies - Operational"," _ "," _ "," _ "," _ "," _ "," _ "," _ "," _ ",null," _ "," _ "," _ "," _ ",240,"Cash Receipts By Source / Transfers and Subsidies - Operational","W"," _ "," _ "," _ "," _ "," _ "," _ "," _ "," _ "," _ "," _ "," _ ",null," _ "," _ "," _ "," _ "," _ ",null," _ "," _ "," _ "," _ ",null,1,11,"Electricity"," Energy Sources",null,null,0,0,0,0,0,-115000,0,0,0,"_","_","_","_"]
["O1369-65/IA02108/F0041/X032/R0032/001/CONTRA","O1369-65/IA02108/F0041/X032/R0032/001/CONTRA",123509,0,"Assets:Current Assets:Cash and Cash Equivalents:Cash at Bank:Bank Account:Specify (replace with account description):Withdrawals"," _"," _"," _ "," _ "," _ "," _ ",4100,"Energy sources",4101,"Electricity","_"," _"," _","O","IA",120,"Current assets / Cash and cash equivalents",120,"Cash and cash equivalents","0150W","CASH FLOW FROM OPERATING ACTIVITIES / Receipts / Transfers and Subsidies - Operational","0150W","CASH FLOW FROM OPERATING ACTIVITIES / Receipts / Transfers and Subsidies - Operational"," _ "," _ "," _ "," _ "," _ "," _ "," _ "," _ ",null," _ "," _ "," _ "," _ ",240,"Cash Receipts By Source / Transfers and Subsidies - Operational","W"," _ "," _ "," _ "," _ "," _ "," _ "," _ "," _ "," _ "," _ "," _ ",null," _ "," _ "," _ "," _ "," _ ",null," _ "," _ "," _ "," _ ",null,1,11,"Electricity"," Energy Sources",null,null,0,0,0,0,0,0,0,0,0,"_","_","_","_"]
["O1369-73/IA02108/F0041/X032/R0037/001/CONTRA","O1369-73/IA02108/F0041/X032/R0037/001/CONTRA",123573,0,"Assets:Current Assets:Cash and Cash Equivalents:Cash at Bank:Bank Account:Specify (replace with account description):Withdrawals"," _"," _"," _ "," _ "," _ "," _ ",4100,"Energy sources",4101,"Electricity","_"," _"," _","O","IA",120,"Current assets / Cash and cash equivalents",120,"Cash and cash equivalents","0150W","CASH FLOW FROM OPERATING ACTIVITIES / Receipts / Transfers and Subsidies - Operational","0150W","CASH FLOW FROM OPERATING ACTIVITIES / Receipts / Transfers and Subsidies - Operational"," _ "," _ "," _ "," _ "," _ "," _ "," _ "," _ ",null," _ "," _ "," _ "," _ ",240,"Cash Receipts By Source / Transfers and Subsidies - Operational","W"," _ "," _ "," _ "," _ "," _ "," _ "," _ "," _ "," _ "," _ "," _ ",null," _ "," _ "," _ "," _ "," _ ",null," _ "," _ "," _ "," _ ",null,1,11,"Electricity"," Energy Sources",null,null,0,0,0,0,0,0,0,0,0,"_","_","_","_"]
["O1369-75/IA02108/F13530/X032/R0038/001/CONTRA","O1369-75/IA02108/F13530/X032/R0038/001/CONTRA",123597,0,"Assets:Current Assets:Cash and Cash Equivalents:Cash at Bank:Bank Account:Specify (replace with account description):Withdrawals"," _"," _"," _ "," _ "," _ "," _ ",4100,"Energy sources",4101,"Electricity","_"," _"," _","O","IA",120,"Current assets / Cash and cash equivalents",120,"Cash and cash equivalents","0150W","CASH FLOW FROM OPERATING ACTIVITIES / Receipts / Transfers and Subsidies - Operational","0150W","CASH FLOW FROM OPERATING ACTIVITIES / Receipts / Transfers and Subsidies - Operational"," _ "," _ "," _ "," _ "," _ "," _ "," _ "," _ ",null," _ "," _ "," _ "," _ ",240,"Cash Receipts By Source / Transfers and Subsidies - Operational","W"," _ "," _ "," _ "," _ "," _ "," _ "," _ "," _ "," _ "," _ "," _ ",null," _ "," _ "," _ "," _ "," _ ",null," _ "," _ "," _ "," _ ",null,1,11,"Electricity"," Energy Sources",null,null,0,0,0,0,0,0,0,-2300000,0,"_","_","_","_"]
["O1369-66/IA02108/F13530/X032/R0031/001/CONTRA","O1369-66/IA02108/F13530/X032/R0031/001/CONTRA",123521,0,"Assets:Current Assets:Cash and Cash Equivalents:Cash at Bank:Bank Account:Specify (replace with account description):Withdrawals"," _"," _"," _ "," _ "," _ "," _ ",4100,"Energy sources",4101,"Electricity","_"," _"," _","O","IA",120,"Current assets / Cash and cash equivalents",120,"Cash and cash equivalents","0150W","CASH FLOW FROM OPERATING ACTIVITIES / Receipts / Transfers and Subsidies - Operational","0150W","CASH FLOW FROM OPERATING ACTIVITIES / Receipts / Transfers and Subsidies - Operational"," _ "," _ "," _ "," _ "," _ "," _ "," _ "," _ ",null," _ "," _ "," _ "," _ ",240,"Cash Receipts By Source / Transfers and Subsidies - Operational","W"," _ "," _ "," _ "," _ "," _ "," _ "," _ "," _ "," _ "," _ "," _ ",null," _ "," _ "," _ "," _ "," _ ",null," _ "," _ "," _ "," _ ",null,1,11,"Electricity"," Energy Sources",null,null,0,0,0,0,0,0,0,-3450000,0,"_","_","_","_"]
["O1369-55/IA02108/F13530/X032/R0017/001/CONTRA","O1369-55/IA02108/F13530/X032/R0017/001/CONTRA",123433,0,"Assets:Current Assets:Cash and Cash Equivalents:Cash at Bank:Bank Account:Specify (replace with account description):Withdrawals"," _"," _"," _ "," _ "," _ "," _ ",4100,"Energy sources",4101,"Electricity","_"," _"," _","O","IA",120,"Current assets / Cash and cash equivalents",120,"Cash and cash equivalents","0150W","CASH FLOW FROM OPERATING ACTIVITIES / Receipts / Transfers and Subsidies - Operational","0150W","CASH FLOW FROM OPERATING ACTIVITIES / Receipts / Transfers and Subsidies - Operational"," _ "," _ "," _ "," _ "," _ "," _ "," _ "," _ ",null," _ "," _ "," _ "," _ ",240,"Cash Receipts By Source / Transfers and Subsidies - Operational","W"," _ "," _ "," _ "," _ "," _ "," _ "," _ "," _ "," _ "," _ "," _ ",null," _ "," _ "," _ "," _ "," _ ",null," _ "," _ "," _ "," _ ",null,1,11,"Electricity"," Energy Sources",null,null,0,0,0,0,0,-2760000,0,0,0,"_","_","_","_"]
["O1369-15/IA02108/F13530/X032/R0230/001/CONTRA","O1369-15/IA02108/F13530/X032/R0230/001/CONTRA",123019,0,"Assets:Current Assets:Cash and Cash Equivalents:Cash at Bank:Bank Account:Specify (replace with account description):Withdrawals"," _"," _"," _ "," _ "," _ "," _ ",4100,"Energy sources",4101,"Electricity","_"," _"," _","O","IA",120,"Current assets / Cash and cash equivalents",120,"Cash and cash equivalents","0150W","CASH FLOW FROM OPERATING ACTIVITIES / Receipts / Transfers and Subsidies - Operational","0150W","CASH FLOW FROM OPERATING ACTIVITIES / Receipts / Transfers and Subsidies - Operational"," _ "," _ "," _ "," _ "," _ "," _ "," _ "," _ ",null," _ "," _ "," _ "," _ ",240,"Cash Receipts By Source / Transfers and Subsidies - Operational","W"," _ "," _ "," _ "," _ "," _ "," _ "," _ "," _ "," _ "," _ "," _ ",null," _ "," _ "," _ "," _ "," _ ",null," _ "," _ "," _ "," _ ",null,1,11,"Electricity"," Energy Sources",null,null,0,0,0,0,0,0,0,0,0,"_","_","_","_"]
["O1369-24/IA02108/F13530/X032/R0031/001/CONTRA","O1369-24/IA02108/F13530/X032/R0031/001/CONTRA",123083,0,"Assets:Current Assets:Cash and Cash Equivalents:Cash at Bank:Bank Account:Specify (replace with account description):Withdrawals"," _"," _"," _ "," _ "," _ "," _ ",4100,"Energy sources",4101,"Electricity","_"," _"," _","O","IA",120,"Current assets / Cash and cash equivalents",120,"Cash and cash equivalents","0150W","CASH FLOW FROM OPERATING ACTIVITIES / Receipts / Transfers and Subsidies - Operational","0150W","CASH FLOW FROM OPERATING ACTIVITIES / Receipts / Transfers and Subsidies - Operational"," _ "," _ "," _ "," _ "," _ "," _ "," _ "," _ ",null," _ "," _ "," _ "," _ ",240,"Cash Receipts By Source / Transfers and Subsidies - Operational","W"," _ "," _ "," _ "," _ "," _ "," _ "," _ "," _ "," _ "," _ "," _ ",null," _ "," _ "," _ "," _ "," _ ",null," _ "," _ "," _ "," _ ",null,1,11,"Electricity"," Energy Sources",null,null,0,0,0,0,0,0,0,0,0,"_","_","_","_"]
["O1369-26/IA02108/F13530/X032/R0032/001/CONTRA","O1369-26/IA02108/F13530/X032/R0032/001/CONTRA",123103,0,"Assets:Current Assets:Cash and Cash Equivalents:Cash at Bank:Bank Account:Specify (replace with account description):Withdrawals"," _"," _"," _ "," _ "," _ "," _ ",4100,"Energy sources",4101,"Electricity","_"," _"," _","O","IA",120,"Current assets / Cash and cash equivalents",120,"Cash and cash equivalents","0150W","CASH FLOW FROM OPERATING ACTIVITIES / Receipts / Transfers and Subsidies - Operational","0150W","CASH FLOW FROM OPERATING ACTIVITIES / Receipts / Transfers and Subsidies - Operational"," _ "," _ "," _ "," _ "," _ "," _ "," _ "," _ ",null," _ "," _ "," _ "," _ ",240,"Cash Receipts By Source / Transfers and Subsidies - Operational","W"," _ "," _ "," _ "," _ "," _ "," _ "," _ "," _ "," _ "," _ "," _ ",null," _ "," _ "," _ "," _ "," _ ",null," _ "," _ "," _ "," _ ",null,1,11,"Electricity"," Energy Sources",null,null,0,0,0,0,0,0,0,0,0,"_","_","_","_"]
["O1369-4/IA02108/F0048/X032/R0028/001/CONTRA","O1369-4/IA02108/F0048/X032/R0028/001/CONTRA",121748,0,"Assets:Current Assets:Cash and Cash Equivalents:Cash at Bank:Bank Account:Specify (replace with account description):Withdrawals"," _"," _"," _ "," _ "," _ "," _ ",4100,"Energy sources",4101,"Electricity","_"," _"," _","O","IA",120,"Current assets / Cash and cash equivalents",120,"Cash and cash equivalents"," _ "," _ ","_","_"," _ "," _ "," _ "," _ "," _ "," _ "," _ "," _ ",null," _ "," _ "," _ "," _ ",null,null,"W"," _ "," _ "," _ "," _ "," _ "," _ "," _ "," _ "," _ "," _ "," _ ",null," _ "," _ "," _ "," _ "," _ ",null," _ "," _ "," _ "," _ ",null,1,11,"Electricity"," Energy Sources",null,null,0,0,0,0,0,0,0,0,0,"_","_","_","_"]
["O1369-34/IA02108/F13530/X032/R0023/001/CONTRA","O1369-34/IA02108/F13530/X032/R0023/001/CONTRA",123191,0,"Assets:Current Assets:Cash and Cash Equivalents:Cash at Bank:Bank Account:Specify (replace with account description):Withdrawals"," _"," _"," _ "," _ "," _ "," _ ",4100,"Energy sources",4101,"Electricity","_"," _"," _","O","IA",120,"Current assets / Cash and cash equivalents",120,"Cash and cash equivalents","0150W","CASH FLOW FROM OPERATING ACTIVITIES / Receipts / Transfers and Subsidies - Operational","0150W","CASH FLOW FROM OPERATING ACTIVITIES / Receipts / Transfers and Subsidies - Operational"," _ "," _ "," _ "," _ "," _ "," _ "," _ "," _ ",null," _ "," _ "," _ "," _ ",240,"Cash Receipts By Source / Transfers and Subsidies - Operational","W"," _ "," _ "," _ "," _ "," _ "," _ "," _ "," _ "," _ "," _ "," _ ",null," _ "," _ "," _ "," _ "," _ ",null," _ "," _ "," _ "," _ ",null,1,11,"Electricity"," Energy Sources",null,null,0,0,0,0,0,0,0,0,0,"_","_","_","_"]
["O1369-28/IE00634/F13530/X032/R0028/001/6707","O1369-28/IE00634/F13530/X032/R0028/001/6707",99734,7619,"Expenditure:Contracted Services:Contractors:Electrical",3800,"Expenditure / Contracted services",2703,"Expenditure / Contracted services",2703,"Contracted Services ",4100,"Energy sources",4101,"Electricity","_"," _"," _","O","IE"," _ "," _ "," _ "," _ "," _ "," _ ","_","_"," _ "," _ "," _ "," _ "," _ "," _ "," _ "," _ ",null," _ "," _ "," _ "," _ ",null,null,null," _ "," _ "," _ "," _ "," _ "," _ "," _ "," _ "," _ "," _ "," _ ",null," _ "," _ "," _ "," _ "," _ ",null," _ "," _ "," _ "," _ ",null,1,11,"Electricity"," Energy Sources",null,null,0,0,0,0,0,0,0,0,0,"_","_","_","_"]
["O1369-20/IE00634/F13530/X032/R0024/001/6707","O1369-20/IE00634/F13530/X032/R0024/001/6707",99718,7603,"Expenditure:Contracted Services:Contractors:Electrical",3800,"Expenditure / Contracted services",2703,"Expenditure / Contracted services",2703,"Contracted Services ",4100,"Energy sources",4101,"Electricity","_"," _"," _","O","IE"," _ "," _ "," _ "," _ "," _ "," _ ","_","_"," _ "," _ "," _ "," _ "," _ "," _ "," _ "," _ ",null," _ "," _ "," _ "," _ ",null,null,null," _ "," _ "," _ "," _ "," _ "," _ "," _ "," _ "," _ "," _ "," _ ",null," _ "," _ "," _ "," _ "," _ ",null," _ "," _ "," _ "," _ ",null,1,11,"Electricity"," Energy Sources",null,null,0,2250000,0,0,0,0,0,0,0,"_","_","_","_"]
["O1369-66/IE00634/F13530/X032/R0031/001/6707","O1369-66/IE00634/F13530/X032/R0031/001/6707",120586,11477,"Expenditure:Contracted Services:Contractors:Electrical",3800,"Expenditure / Contracted services",2703,"Expenditure / Contracted services",2703,"Contracted Services ",4100,"Energy sources",4101,"Electricity","_"," _"," _","O","IE"," _ "," _ "," _ "," _ "," _ "," _ ","_","_"," _ "," _ "," _ "," _ "," _ "," _ "," _ "," _ ",null," _ "," _ "," _ "," _ ",null,null,null," _ "," _ "," _ "," _ "," _ "," _ "," _ "," _ "," _ "," _ "," _ ",null," _ "," _ "," _ "," _ "," _ ",null," _ "," _ "," _ "," _ ",null,1,11,"Electricity"," Energy Sources",null,null,0,0,0,0,0,0,0,3000000,0,"_","_","_","_"]
["O1369-48/IE00634/F13530/X032/R0036/001/6707","O1369-48/IE00634/F13530/X032/R0036/001/6707",120286,10170,"Expenditure:Contracted Services:Contractors:Electrical",3800,"Expenditure / Contracted services",2703,"Expenditure / Contracted services",2703,"Contracted Services ",4100,"Energy sources",4101,"Electricity","_"," _"," _","O","IE"," _ "," _ "," _ "," _ "," _ "," _ ","_","_"," _ "," _ "," _ "," _ "," _ "," _ "," _ "," _ ",null," _ "," _ "," _ "," _ ",null,null,null," _ "," _ "," _ "," _ "," _ "," _ "," _ "," _ "," _ "," _ "," _ ",null," _ "," _ "," _ "," _ "," _ ",null," _ "," _ "," _ "," _ ",null,1,11,"Electricity"," Energy Sources",null,null,0,0,0,0,0,4000000,0,0,0,"_","_","_","_"]
["O1369-17/IE00634/F13530/X032/R0040/001/6707","O1369-17/IE00634/F13530/X032/R0040/001/6707",69621,4512,"Expenditure:Contracted Services:Contractors:Electrical",3800,"Expenditure / Contracted services",2703,"Expenditure / Contracted services",2703,"Contracted Services ",4100,"Energy sources",4101,"Electricity","_"," _"," _","O","IE"," _ "," _ "," _ "," _ "," _ "," _ ","_","_"," _ "," _ "," _ "," _ "," _ "," _ "," _ "," _ ",null," _ "," _ "," _ "," _ ",null,null,null," _ "," _ "," _ "," _ "," _ "," _ "," _ "," _ "," _ "," _ "," _ ",null," _ "," _ "," _ "," _ "," _ ",null," _ "," _ "," _ "," _ ",null,1,11,"Electricity"," Energy Sources",null,null,0,0,0,0,0,0,0,0,0,"_","_","_","_"]
["O1369-34/IE00634/F13530/X032/R0023/001/6707","O1369-34/IE00634/F13530/X032/R0023/001/6707",99749,7634,"Expenditure:Contracted Services:Contractors:Electrical",3800,"Expenditure / Contracted services",2703,"Expenditure / Contracted services",2703,"Contracted Services ",4100,"Energy sources",4101,"Electricity","_"," _"," _","O","IE"," _ "," _ "," _ "," _ "," _ "," _ ","_","_"," _ "," _ "," _ "," _ "," _ "," _ "," _ "," _ ",null," _ "," _ "," _ "," _ ",null,null,null," _ "," _ "," _ "," _ "," _ "," _ "," _ "," _ "," _ "," _ "," _ ",null," _ "," _ "," _ "," _ "," _ ",null," _ "," _ "," _ "," _ ",null,1,11,"Electricity"," Energy Sources",null,null,0,0,0,0,0,0,0,0,0,"_","_","_","_"]
["O1369-1/IE00634/F0045/X032/R0035/001/6707","O1369-1/IE00634/F0045/X032/R0035/001/6707",30447,1843,"Expenditure:Contracted Services:Contractors:Electrical",3800,"Expenditure / Contracted services",2703,"Expenditure / Contracted services",2703,"Contracted Services ",4100,"Energy sources",4101,"Electricity","_"," _"," _","O","IE"," _ "," _ "," _ "," _ "," _ "," _ ","_","_"," _ "," _ "," _ "," _ "," _ "," _ "," _ "," _ ",null," _ "," _ "," _ "," _ ",null,null,null," _ "," _ "," _ "," _ "," _ "," _ "," _ "," _ "," _ "," _ "," _ ",null," _ "," _ "," _ "," _ "," _ ",null," _ "," _ "," _ "," _ ",null,1,11,"Electricity"," Energy Sources",null,null,0,0,0,0,0,0,0,0,0,"_","_","_","_"]
["O1369-35/IE00634/F0041/X032/R0230/001/6707","O1369-35/IE00634/F0041/X032/R0230/001/6707",99755,7640,"Expenditure:Contracted Services:Contractors:Electrical",3800,"Expenditure / Contracted services",2703,"Expenditure / Contracted services",2703,"Contracted Services ",4100,"Energy sources",4101,"Electricity","_"," _"," _","O","IE"," _ "," _ "," _ "," _ "," _ "," _ ","_","_"," _ "," _ "," _ "," _ "," _ "," _ "," _ "," _ ",null," _ "," _ "," _ "," _ ",null,null,null," _ "," _ "," _ "," _ "," _ "," _ "," _ "," _ "," _ "," _ "," _ ",null," _ "," _ "," _ "," _ "," _ ",null," _ "," _ "," _ "," _ ",null,1,11,"Electricity"," Energy Sources",null,null,240197,40456,0,1000000,1480000,2500000,3000000,400000,755180,"_","_","_","_"]
["O1369-49/IE00634/F0041/X032/R0037/001/6707","O1369-49/IE00634/F0041/X032/R0037/001/6707",120288,10172,"Expenditure:Contracted Services:Contractors:Electrical",3800,"Expenditure / Contracted services",2703,"Expenditure / Contracted services",2703,"Contracted Services ",4100,"Energy sources",4101,"Electricity","_"," _"," _","O","IE"," _ "," _ "," _ "," _ "," _ "," _ ","_","_"," _ "," _ "," _ "," _ "," _ "," _ "," _ "," _ ",null," _ "," _ "," _ "," _ ",null,null,null," _ "," _ "," _ "," _ "," _ "," _ "," _ "," _ "," _ "," _ "," _ ",null," _ "," _ "," _ "," _ "," _ ",null," _ "," _ "," _ "," _ ",null,1,11,"Electricity"," Energy Sources",null,null,0,0,0,0,0,100000,0,0,0,"_","_","_","_"]
["O1369-60/IE00634/F0041/X032/R0016/001/6707","O1369-60/IE00634/F0041/X032/R0016/001/6707",120571,11465,"Expenditure:Contracted Services:Contractors:Electrical",3800,"Expenditure / Contracted services",2703,"Expenditure / Contracted services",2703,"Contracted Services ",4100,"Energy sources",4101,"Electricity","_"," _"," _","O","IE"," _ "," _ "," _ "," _ "," _ "," _ ","_","_"," _ "," _ "," _ "," _ "," _ "," _ "," _ "," _ ",null," _ "," _ "," _ "," _ ",null,null,null," _ "," _ "," _ "," _ "," _ "," _ "," _ "," _ "," _ "," _ "," _ ",null," _ "," _ "," _ "," _ "," _ ",null," _ "," _ "," _ "," _ ",null,1,11,"Electricity"," Energy Sources",null,null,0,0,0,0,0,50000,100000,0,0,"_","_","_","_"]
["O1369-11/IE00634/F0002/X032/R0230/001/6707","O1369-11/IE00634/F0002/X032/R0230/001/6707",110193,9057,"Expenditure:Contracted Services:Contractors:Electrical",3800,"Expenditure / Contracted services",2703,"Expenditure / Contracted services",2703,"Contracted Services ",4100,"Energy sources",4101,"Electricity","_",2080,"Funded by Internally generated funds","O","IE"," _ "," _ "," _ "," _ "," _ "," _ ","_","_"," _ "," _ "," _ "," _ "," _ "," _ "," _ "," _ ",null," _ "," _ "," _ "," _ ",null,null,null," _ "," _ "," _ "," _ "," _ "," _ "," _ "," _ "," _ "," _ "," _ ",null," _ "," _ "," _ "," _ "," _ ",null," _ "," _ "," _ "," _ ",null,1,11,"Electricity"," Energy Sources",null,null,0,961259,0,0,0,0,0,0,0,"_","_","_","_"]
["O1369-3/IE00634/F0041/X032/R0040/001/6707","O1369-3/IE00634/F0041/X032/R0040/001/6707",30545,1851,"Expenditure:Contracted Services:Contractors:Electrical",3800,"Expenditure / Contracted services",2703,"Expenditure / Contracted services",2703,"Contracted Services ",4100,"Energy sources",4101,"Electricity","_"," _"," _","O","IE"," _ "," _ "," _ "," _ "," _ "," _ ","_","_"," _ "," _ "," _ "," _ "," _ "," _ "," _ "," _ ",null," _ "," _ "," _ "," _ ",null,null,null," _ "," _ "," _ "," _ "," _ "," _ "," _ "," _ "," _ "," _ "," _ ",null," _ "," _ "," _ "," _ "," _ ",null," _ "," _ "," _ "," _ ",null,1,11,"Electricity"," Energy Sources",null,null,0,0,0,0,0,0,0,0,0,"_","_","_","_"]
["O1369-35/IE00670/F0041/X032/R0230/001/6707","O1369-35/IE00670/F0041/X032/R0230/001/6707",99757,7642,"Expenditure:Contracted Services:Contractors:Traffic and Street Lights",3800,"Expenditure / Contracted services",2703,"Expenditure / Contracted services",2703,"Contracted Services ",4100,"Energy sources",4101,"Electricity","_"," _"," _","O","IE"," _ "," _ "," _ "," _ "," _ "," _ ","_","_"," _ "," _ "," _ "," _ "," _ "," _ "," _ "," _ ",null," _ "," _ "," _ "," _ ",null,null,null," _ "," _ "," _ "," _ "," _ "," _ "," _ "," _ "," _ "," _ "," _ ",null," _ "," _ "," _ "," _ "," _ ",null," _ "," _ "," _ "," _ ",null,1,11,"Electricity"," Energy Sources",null,null,0,0,0,0,0,0,0,0,0,"_","_","_","_"]
["O1369-46/IL65530/F13530/X032/R0032/001/CONTRA","O1369-46/IL65530/F13530/X032/R0032/001/CONTRA",123359,0,"Liabilities:Current Liabilities:Trade and Other Payable Exchange Transactions:Payables and Accruals : Contractors:Deposits"," _"," _"," _ "," _ "," _ "," _ ",4100,"Energy sources",4101,"Electricity","_"," _"," _","O","IL",380,"Current liabilities / Trade and other payables from exchange transactions","_","_"," _ "," _ ","_","_"," _ "," _ "," _ "," _ "," _ "," _ "," _ "," _ ",null,361,"Trade and other payables / Trade and other payables from exchange transactions",361,"Trade and other payables / Trade and other payables from exchange transactions",null,null,null," _ "," _ "," _ "," _ "," _ "," _ "," _ "," _ "," _ "," _ "," _ ",null," _ "," _ "," _ "," _ "," _ ",null," _ "," _ "," _ "," _ ",null,1,11,"Electricity"," Energy Sources",null,null,0,0,0,0,0,0,0,0,0,"_","_","_","_"]
["O1369-58/IL65530/F13530/X032/R0038/001/CONTRA","O1369-58/IL65530/F13530/X032/R0038/001/CONTRA",123459,0,"Liabilities:Current Liabilities:Trade and Other Payable Exchange Transactions:Payables and Accruals : Contractors:Deposits"," _"," _"," _ "," _ "," _ "," _ ",4100,"Energy sources",4101,"Electricity","_"," _"," _","O","IL",380,"Current liabilities / Trade and other payables from exchange transactions","_","_"," _ "," _ ","_","_"," _ "," _ "," _ "," _ "," _ "," _ "," _ "," _ ",null,361,"Trade and other payables / Trade and other payables from exchange transactions",361,"Trade and other payables / Trade and other payables from exchange transactions",null,null,null," _ "," _ "," _ "," _ "," _ "," _ "," _ "," _ "," _ "," _ "," _ ",null," _ "," _ "," _ "," _ "," _ ",null," _ "," _ "," _ "," _ ",null,1,11,"Electricity"," Energy Sources",null,null,0,0,0,0,0,-3450000,0,0,0,"_","_","_","_"]
["O1369-61/IL65530/F13530/X032/R0039/001/CONTRA","O1369-61/IL65530/F13530/X032/R0039/001/CONTRA",123483,0,"Liabilities:Current Liabilities:Trade and Other Payable Exchange Transactions:Payables and Accruals : Contractors:Deposits"," _"," _"," _ "," _ "," _ "," _ ",4100,"Energy sources",4101,"Electricity","_"," _"," _","O","IL",380,"Current liabilities / Trade and other payables from exchange transactions","_","_"," _ "," _ ","_","_"," _ "," _ "," _ "," _ "," _ "," _ "," _ "," _ ",null,361,"Trade and other payables / Trade and other payables from exchange transactions",361,"Trade and other payables / Trade and other payables from exchange transactions",null,null,null," _ "," _ "," _ "," _ "," _ "," _ "," _ "," _ "," _ "," _ "," _ ",null," _ "," _ "," _ "," _ "," _ ",null," _ "," _ "," _ "," _ ",null,1,11,"Electricity"," Energy Sources",null,null,0,0,0,0,0,-207000,-4600000,0,0,"_","_","_","_"]
["O1369-50/IL65530/F13530/X032/R0027/001/CONTRA","O1369-50/IL65530/F13530/X032/R0027/001/CONTRA",123391,0,"Liabilities:Current Liabilities:Trade and Other Payable Exchange Transactions:Payables and Accruals : Contractors:Deposits"," _"," _"," _ "," _ "," _ "," _ ",4100,"Energy sources",4101,"Electricity","_"," _"," _","O","IL",380,"Current liabilities / Trade and other payables from exchange transactions","_","_"," _ "," _ ","_","_"," _ "," _ "," _ "," _ "," _ "," _ "," _ "," _ ",null,361,"Trade and other payables / Trade and other payables from exchange transactions",361,"Trade and other payables / Trade and other payables from exchange transactions",null,null,null," _ "," _ "," _ "," _ "," _ "," _ "," _ "," _ "," _ "," _ "," _ ",null," _ "," _ "," _ "," _ "," _ ",null," _ "," _ "," _ "," _ ",null,1,11,"Electricity"," Energy Sources",null,null,0,0,0,0,0,0,0,0,0,"_","_","_","_"]
["O1369-12/IL65530/F13530/X032/R0035/001/CONTRA","O1369-12/IL65530/F13530/X032/R0035/001/CONTRA",123001,0,"Liabilities:Current Liabilities:Trade and Other Payable Exchange Transactions:Payables and Accruals : Contractors:Deposits"," _"," _"," _ "," _ "," _ "," _ ",4100,"Energy sources",4101,"Electricity","_"," _"," _","O","IL",380,"Current liabilities / Trade and other payables from exchange transactions","_","_"," _ "," _ ","_","_"," _ "," _ "," _ "," _ "," _ "," _ "," _ "," _ ",null,361,"Trade and other payables / Trade and other payables from exchange transactions",361,"Trade and other payables / Trade and other payables from exchange transactions",null,null,null," _ "," _ "," _ "," _ "," _ "," _ "," _ "," _ "," _ "," _ "," _ ",null," _ "," _ "," _ "," _ "," _ ",null," _ "," _ "," _ "," _ ",null,1,11,"Electricity"," Energy Sources",null,null,0,0,0,0,0,0,0,0,0,"_","_","_","_"]
["O1369-31/IL65530/F13530/X032/R0041/001/CONTRA","O1369-31/IL65530/F13530/X032/R0041/001/CONTRA",123153,0,"Liabilities:Current Liabilities:Trade and Other Payable Exchange Transactions:Payables and Accruals : Contractors:Deposits"," _"," _"," _ "," _ "," _ "," _ ",4100,"Energy sources",4101,"Electricity","_"," _"," _","O","IL",380,"Current liabilities / Trade and other payables from exchange transactions","_","_"," _ "," _ ","_","_"," _ "," _ "," _ "," _ "," _ "," _ "," _ "," _ ",null,361,"Trade and other payables / Trade and other payables from exchange transactions",361,"Trade and other payables / Trade and other payables from exchange transactions",null,null,null," _ "," _ "," _ "," _ "," _ "," _ "," _ "," _ "," _ "," _ "," _ ",null," _ "," _ "," _ "," _ "," _ ",null," _ "," _ "," _ "," _ ",null,1,11,"Electricity"," Energy Sources",null,null,0,0,0,0,0,0,0,0,0,"_","_","_","_"]
["O1369-30/IL65530/F0041/X032/R0020/001/CONTRA","O1369-30/IL65530/F0041/X032/R0020/001/CONTRA",123133,0,"Liabilities:Current Liabilities:Trade and Other Payable Exchange Transactions:Payables and Accruals : Contractors:Deposits"," _"," _"," _ "," _ "," _ "," _ ",4100,"Energy sources",4101,"Electricity","_"," _"," _","O","IL",380,"Current liabilities / Trade and other payables from exchange transactions","_","_"," _ "," _ ","_","_"," _ "," _ "," _ "," _ "," _ "," _ "," _ "," _ ",null,361,"Trade and other payables / Trade and other payables from exchange transactions",361,"Trade and other payables / Trade and other payables from exchange transactions",null,null,null," _ "," _ "," _ "," _ "," _ "," _ "," _ "," _ "," _ "," _ "," _ ",null," _ "," _ "," _ "," _ "," _ ",null," _ "," _ "," _ "," _ ",null,1,11,"Electricity"," Energy Sources",null,null,0,0,0,0,0,0,0,0,0,"_","_","_","_"]
["O1369-40/IL65530/F0041/X032/R0044/001/CONTRA","O1369-40/IL65530/F0041/X032/R0044/001/CONTRA",123307,0,"Liabilities:Current Liabilities:Trade and Other Payable Exchange Transactions:Payables and Accruals : Contractors:Deposits"," _"," _"," _ "," _ "," _ "," _ ",4100,"Energy sources",4101,"Electricity","_"," _"," _","O","IL",380,"Current liabilities / Trade and other payables from exchange transactions","_","_"," _ "," _ ","_","_"," _ "," _ "," _ "," _ "," _ "," _ "," _ "," _ ",null,361,"Trade and other payables / Trade and other payables from exchange transactions",361,"Trade and other payables / Trade and other payables from exchange transactions",null,null,null," _ "," _ "," _ "," _ "," _ "," _ "," _ "," _ "," _ "," _ "," _ ",null," _ "," _ "," _ "," _ "," _ ",null," _ "," _ "," _ "," _ ",null,1,11,"Electricity"," Energy Sources",null,null,0,0,0,0,0,0,0,0,0,"_","_","_","_"]
["O1369-47/IL65530/F0041/X032/R0023/001/CONTRA","O1369-47/IL65530/F0041/X032/R0023/001/CONTRA",123363,0,"Liabilities:Current Liabilities:Trade and Other Payable Exchange Transactions:Payables and Accruals : Contractors:Deposits"," _"," _"," _ "," _ "," _ "," _ ",4100,"Energy sources",4101,"Electricity","_"," _"," _","O","IL",380,"Current liabilities / Trade and other payables from exchange transactions","_","_"," _ "," _ ","_","_"," _ "," _ "," _ "," _ "," _ "," _ "," _ "," _ ",null,361,"Trade and other payables / Trade and other payables from exchange transactions",361,"Trade and other payables / Trade and other payables from exchange transactions",null,null,null," _ "," _ "," _ "," _ "," _ "," _ "," _ "," _ "," _ "," _ "," _ ",null," _ "," _ "," _ "," _ "," _ ",null," _ "," _ "," _ "," _ ",null,1,11,"Electricity"," Energy Sources",null,null,0,0,0,0,0,0,0,0,0,"_","_","_","_"]
["O1369-75/IL65530/F0041/X032/R0038/001/CONTRA","O1369-75/IL65530/F0041/X032/R0038/001/CONTRA",123595,0,"Liabilities:Current Liabilities:Trade and Other Payable Exchange Transactions:Payables and Accruals : Contractors:Deposits"," _"," _"," _ "," _ "," _ "," _ ",4100,"Energy sources",4101,"Electricity","_"," _"," _","O","IL",380,"Current liabilities / Trade and other payables from exchange transactions","_","_"," _ "," _ ","_","_"," _ "," _ "," _ "," _ "," _ "," _ "," _ "," _ ",null,361,"Trade and other payables / Trade and other payables from exchange transactions",361,"Trade and other payables / Trade and other payables from exchange transactions",null,null,null," _ "," _ "," _ "," _ "," _ "," _ "," _ "," _ "," _ "," _ "," _ ",null," _ "," _ "," _ "," _ "," _ ",null," _ "," _ "," _ "," _ ",null,1,11,"Electricity"," Energy Sources",null,null,0,0,0,0,0,0,0,0,0,"_","_","_","_"]
["O1369-64/IL65530/F0041/X032/R0016/001/CONTRA","O1369-64/IL65530/F0041/X032/R0016/001/CONTRA",123503,0,"Liabilities:Current Liabilities:Trade and Other Payable Exchange Transactions:Payables and Accruals : Contractors:Deposits"," _"," _"," _ "," _ "," _ "," _ ",4100,"Energy sources",4101,"Electricity","_"," _"," _","O","IL",380,"Current liabilities / Trade and other payables from exchange transactions","_","_"," _ "," _ ","_","_"," _ "," _ "," _ "," _ "," _ "," _ "," _ "," _ ",null,361,"Trade and other payables / Trade and other payables from exchange transactions",361,"Trade and other payables / Trade and other payables from exchange transactions",null,null,null," _ "," _ "," _ "," _ "," _ "," _ "," _ "," _ "," _ "," _ "," _ ",null," _ "," _ "," _ "," _ "," _ ",null," _ "," _ "," _ "," _ ",null,1,11,"Electricity"," Energy Sources",null,null,0,0,0,0,0,-57500,-115000,0,0,"_","_","_","_"]
["O1369-4/IL65530/F0048/X032/R0035/001/CONTRA","O1369-4/IL65530/F0048/X032/R0035/001/CONTRA",121754,0,"Liabilities:Current Liabilities:Trade and Other Payable Exchange Transactions:Payables and Accruals : Contractors:Deposits"," _"," _"," _ "," _ "," _ "," _ ",4100,"Energy sources",4101,"Electricity","_"," _"," _","O","IL",380,"Current liabilities / Trade and other payables from exchange transactions","_","_"," _ "," _ ","_","_"," _ "," _ "," _ "," _ "," _ "," _ "," _ "," _ ",null,361,"Trade and other payables / Trade and other payables from exchange transactions",361,"Trade and other payables / Trade and other payables from exchange transactions",null,null,null," _ "," _ "," _ "," _ "," _ "," _ "," _ "," _ "," _ "," _ "," _ ",null," _ "," _ "," _ "," _ "," _ ",null," _ "," _ "," _ "," _ ",null,1,11,"Electricity"," Energy Sources",null,null,0,0,0,0,0,0,0,0,0,"_","_","_","_"]
["O1369-3/IL65530/F0048/X032/R0025/001/CONTRA","O1369-3/IL65530/F0048/X032/R0025/001/CONTRA",121611,0,"Liabilities:Current Liabilities:Trade and Other Payable Exchange Transactions:Payables and Accruals : Contractors:Deposits"," _"," _"," _ "," _ "," _ "," _ ",4100,"Energy sources",4101,"Electricity","_"," _"," _","O","IL",380,"Current liabilities / Trade and other payables from exchange transactions","_","_"," _ "," _ ","_","_"," _ "," _ "," _ "," _ "," _ "," _ "," _ "," _ ",null,361,"Trade and other payables / Trade and other payables from exchange transactions",361,"Trade and other payables / Trade and other payables from exchange transactions",null,null,null," _ "," _ "," _ "," _ "," _ "," _ "," _ "," _ "," _ "," _ "," _ ",null," _ "," _ "," _ "," _ "," _ ",null," _ "," _ "," _ "," _ ",null,1,11,"Electricity"," Energy Sources",null,null,0,0,0,0,0,0,0,0,0,"_","_","_","_"]
["O1440-1/IL65531/F0041/X044/R0230/001/CONTRA","O1440-1/IL65531/F0041/X044/R0230/001/CONTRA",121984,0,"Liabilities:Current Liabilities:Trade and Other Payable Exchange Transactions:Payables and Accruals : Contractors:Withdrawals"," _"," _"," _ "," _ "," _ "," _ ",1100,"Executive and council",1110,"Mayor and Council","_"," _"," _","O","IL",380,"Current liabilities / Trade and other payables from exchange transactions","_","_"," _ "," _ ","_","_",200,"Cash Payments by Type / Contracted Services",450,"Cash Payments by Type / Contracted Services"," _ "," _ "," _ "," _ ",null,361,"Trade and other payables / Trade and other payables from exchange transactions",361,"Trade and other payables / Trade and other payables from exchange transactions",null,null,null," _ "," _ "," _ "," _ "," _ "," _ "," _ "," _ "," _ "," _ "," _ ",null," _ "," _ "," _ "," _ "," _ ",null," _ "," _ "," _ "," _ ",null,5,52,"Mayor and Council","Executive & Council",null,null,0,0,0,0,0,460000,483000,506000,0,"_","_","_","_"]
["C0245-1/IL65531/F0002/X125/R0016/001/CONTRA","C0245-1/IL65531/F0002/X125/R0016/001/CONTRA",123813,0,"Liabilities:Current Liabilities:Trade and Other Payable Exchange Transactions:Payables and Accruals : Contractors:Withdrawals"," _"," _"," _ "," _ "," _ "," _ ",2200,"Sport and recreation",2205,"Sports Grounds and Stadiums","_",2080,"Funded by Internally generated funds","C","IL",380,"Current liabilities / Trade and other payables from exchange transactions","_","_"," _ "," _ ","_","_",200,"Cash Payments by Type / Contracted Services",450,"Cash Payments by Type / Contracted Services"," _ "," _ "," _ "," _ ",null,361,"Trade and other payables / Trade and other payables from exchange transactions",361,"Trade and other payables / Trade and other payables from exchange transactions",null,null,null,1030,1030,"Community Assets / Sport and Recreation Facilities / Outdoor Facilities","Community Assets / Sport and Recreation Facilities / Outdoor Facilities"," _ "," _ "," _ "," _ "," _ "," _ "," _ ",null," _ "," _ "," _ "," _ "," _ ",null," _ "," _ "," _ "," _ ",null,10,102,"Sports Grounds and Stadiums","Sports & Recreation",null,null,0,0,0,0,0,2300000,0,0,0,"_","_","_","_"]
["C0245-1/IA02108/F0791/X125/R0016/001/CONTRA","C0245-1/IA02108/F0791/X125/R0016/001/CONTRA",124500,0,"Assets:Current Assets:Cash and Cash Equivalents:Cash at Bank:Bank Account:Specify (replace with account description):Withdrawals"," _"," _"," _ "," _ "," _ "," _ ",2200,"Sport and recreation",2205,"Sports Grounds and Stadiums","_",2010,"Funded by National Government","C","IA",120,"Current assets / Cash and cash equivalents",120,"Cash and cash equivalents","0160W","CASH FLOW FROM OPERATING ACTIVITIES / Receipts / Transfers and Subsidies - Capital","0160W","CASH FLOW FROM OPERATING ACTIVITIES / Receipts / Transfers and Subsidies - Capital",310,"Other Cash Flows/Payments by Type / Capital assets",510,"Capital assets"," _ "," _ "," _ "," _ ",null," _ "," _ "," _ "," _ ",280,"Other Cash Flows by Source / Transfers and subsidies - capital (monetary allocations) (National / Provincial and District)","W",1030,1030,"Community Assets / Sport and Recreation Facilities / Outdoor Facilities","Community Assets / Sport and Recreation Facilities / Outdoor Facilities"," _ "," _ "," _ "," _ "," _ "," _ "," _ ",null," _ "," _ "," _ "," _ "," _ ",null," _ "," _ "," _ "," _ ",null,10,102,"Sports Grounds and Stadiums","Sports & Recreation",null,null,0,0,0,0,0,0,0,0,0,"_","_","_","_"]
["C0245-2/IL65530/F0002/X125/R0021/001/CONTRA","C0245-2/IL65530/F0002/X125/R0021/001/CONTRA",123856,0,"Liabilities:Current Liabilities:Trade and Other Payable Exchange Transactions:Payables and Accruals : Contractors:Deposits"," _"," _"," _ "," _ "," _ "," _ ",2200,"Sport and recreation",2205,"Sports Grounds and Stadiums","_",2080,"Funded by Internally generated funds","C","IL",380,"Current liabilities / Trade and other payables from exchange transactions","_","_"," _ "," _ ","_","_"," _ "," _ "," _ "," _ "," _ "," _ "," _ "," _ ",null,361,"Trade and other payables / Trade and other payables from exchange transactions",361,"Trade and other payables / Trade and other payables from exchange transactions",null,null,null,1030,1030,"Community Assets / Sport and Recreation Facilities / Outdoor Facilities","Community Assets / Sport and Recreation Facilities / Outdoor Facilities"," _ "," _ "," _ "," _ "," _ "," _ "," _ ",null," _ "," _ "," _ "," _ "," _ ",null," _ "," _ "," _ "," _ ",null,10,102,"Sports Grounds and Stadiums","Sports & Recreation",null,null,0,0,0,0,0,0,0,0,0,"_","_","_","_"]
["C0099-1/IA07271/F0002/X032/R0230/001/6707","C0099-1/IA07271/F0002/X032/R0230/001/6707",61412,4131,"Assets:Non-current Assets:Property, Plant and Equipment:Cost Model:Electrical Infrastructure:In-use:LV Networks:Accumulated Depreciation:Disposals"," _"," _"," _ "," _ "," _ "," _ ",4100,"Energy sources",4101,"Electricity","_",2080,"Funded by Internally generated funds","C","IA",230,"Non current assets / Property, plant and equipment",233,"Land: Adjustments"," _ "," _ ","_","_"," _ "," _ "," _ "," _ ",200,"Infrastructure / Electrical Infrastructure",200,"Infrastructure / Electrical Infrastructure",null,243,"Property, plant and equipment (PPE) / Less: Accumulated depreciation",243,"Property, plant and equipment (PPE) / Less: Accumulated depreciation",null,null,null," _ "," _ "," _ "," _ ",280,"Infrastructure / Electrical Infrastructure / LV Networks"," _ "," _ ",280," _ "," _ ",null," _ "," _ ","Infrastructure / Electrical Infrastructure / LV Networks"," _ "," _ ",null," _ "," _ "," _ "," _ ",null,1,11,"Electricity"," Energy Sources",null,null,0,0,0,0,0,0,0,0,0,"_","_","_","_"]
["C0099-1/IA07287/F0002/X032/R0230/001/6707","C0099-1/IA07287/F0002/X032/R0230/001/6707",61417,4136,"Assets:Non-current Assets:Property, Plant and Equipment:Cost Model:Electrical Infrastructure:In-use:LV Networks:Cost:Transfers Made"," _"," _"," _ "," _ "," _ "," _ ",4100,"Energy sources",4101,"Electricity","_",2080,"Funded by Internally generated funds","C","IA",230,"Non current assets / Property, plant and equipment",231,"Land: Acquisitions"," _ "," _ ","_","_"," _ "," _ "," _ "," _ ",200,"Infrastructure / Electrical Infrastructure",200,"Infrastructure / Electrical Infrastructure",null,241,"Property, plant and equipment (PPE) / PPE at cost/valuation (excl. finance leases)",241,"Property, plant and equipment (PPE) / PPE at cost/valuation (excl. finance leases)",null,null,null," _ "," _ "," _ "," _ ",280,"Infrastructure / Electrical Infrastructure / LV Networks"," _ "," _ ",280," _ "," _ ",null," _ "," _ ","Infrastructure / Electrical Infrastructure / LV Networks"," _ "," _ ",null," _ "," _ "," _ "," _ ",null,1,11,"Electricity"," Energy Sources",null,null,0,0,0,0,0,0,0,0,0,"_","_","_","_"]
["O1439-1/IA10375/F2496/X101/R0230/001/CONTRA","O1439-1/IA10375/F2496/X101/R0230/001/CONTRA",121355,0,"Assets:Current Assets:VAT Receivable:Input Tax Accrual:Recognised"," _"," _"," _ "," _ "," _ "," _ ",3100,"Planning and development",3107,"Town Planning, Building Regulations and Enforcement, and City Engineer","_"," _"," _","O","IA",170,"Current assets / VAT",170,"VAT"," _ "," _ ","_","_"," _ "," _ "," _ "," _ "," _ "," _ "," _ "," _ ",null," _ "," _ "," _ "," _ ",null,null,null," _ "," _ "," _ "," _ "," _ "," _ "," _ "," _ "," _ "," _ "," _ ",null," _ "," _ "," _ "," _ "," _ ",null," _ "," _ "," _ "," _ ",null,4,41,"Town Planning, Building Regulations and Enforcement, and City Engineer","Planning and Development",null,null,0,0,0,0,0,0,0,0,0,"_","_","_","_"]
["O1444-1/IE00703/F0041/X044/R0230/001/6057","O1444-1/IE00703/F0041/X044/R0230/001/6057",30652,1902,"Expenditure:Contracted Services:Outsourced Services:Transport Services",3800,"Expenditure / Contracted services",2701,"Expenditure / Contracted services",2701,"Contracted Services ",1100,"Executive and council",1110,"Mayor and Council","_"," _"," _","O","IE"," _ "," _ "," _ "," _ "," _ "," _ ","_","_"," _ "," _ "," _ "," _ "," _ "," _ "," _ "," _ ",null," _ "," _ "," _ "," _ ",null,null,null," _ "," _ "," _ "," _ "," _ "," _ "," _ "," _ "," _ "," _ "," _ ",null," _ "," _ "," _ "," _ "," _ ",null," _ "," _ "," _ "," _ ",null,5,52,"Mayor and Council","Executive & Council",null,null,0,0,0,50000,20000,80000,100000,110000,0,"_","_","_","_"]
["O0011-1/IL53821/F0041/X032/R0230/001/CONTRA","O0011-1/IL53821/F0041/X032/R0230/001/CONTRA",122392,0,"Liabilities:Current Liabilities:Trade and Other Payable Exchange Transactions:Payables and Accruals : General:Withdrawals"," _"," _"," _ "," _ "," _ "," _ ",4100,"Energy sources",4101,"Electricity","_"," _"," _","O","IL",380,"Current liabilities / Trade and other payables from exchange transactions","_","_"," _ "," _ ","_","_",200,"Cash Payments by Type / Other expenditure",480,"Other expenditure"," _ "," _ "," _ "," _ ",null,361,"Trade and other payables / Trade and other payables from exchange transactions",361,"Trade and other payables / Trade and other payables from exchange transactions",null,null,null," _ "," _ "," _ "," _ "," _ "," _ "," _ "," _ "," _ "," _ "," _ ",null," _ "," _ "," _ "," _ "," _ ",null," _ "," _ "," _ "," _ ",null,1,11,"Electricity"," Energy Sources",null,null,0,0,0,0,0,10350000,11500000,11500000,0,"_","_","_","_"]
["C0086-3/IA02105/F0002/X096/R0229/001/CONTRA","C0086-3/IA02105/F0002/X096/R0229/001/CONTRA",122961,0,"Assets:Current Assets:Cash and Cash Equivalents:Cash at Bank:Bank Account:Specify (replace with account description):Deposits"," _"," _"," _ "," _ "," _ "," _ ",3100,"Planning and development",3102,"Corporate Wide Strategic Planning (IDPs, LEDs)","_",2080,"Funded by Internally generated funds","C","IA",120,"Current assets / Cash and cash equivalents",120,"Cash and cash equivalents"," _ "," _ ","_","_",null,"Recepts - Cash and Cash Equivalents","0510","Recepts - Cash and Cash Equivalents"," _ "," _ "," _ "," _ ",null," _ "," _ "," _ "," _ ",null,null,"D",1430,1430,"Intangible Assets / Licences and Rights / Computer Software and Applications","Intangible Assets / Licences and Rights / Computer Software and Applications"," _ "," _ "," _ "," _ "," _ "," _ "," _ ",null," _ "," _ "," _ "," _ "," _ ",null," _ "," _ "," _ "," _ ",null,4,42,"Corporate Wide Strategic Planning (IDPs, LEDs)","Planning and Development",null,null,0,0,0,0,0,0,0,0,0,"_","_","_","_"]
["C0086-6/IA02108/F0041/X081/R0229/001/CONTRA","C0086-6/IA02108/F0041/X081/R0229/001/CONTRA",124674,0,"Assets:Current Assets:Cash and Cash Equivalents:Cash at Bank:Bank Account:Specify (replace with account description):Withdrawals"," _"," _"," _ "," _ "," _ "," _ ",1300,"Internal audit",1301,"Governance Function","_"," _"," _","C","IA",120,"Current assets / Cash and cash equivalents",120,"Cash and cash equivalents","0150W","CASH FLOW FROM OPERATING ACTIVITIES / Receipts / Transfers and Subsidies - Operational","0150W","CASH FLOW FROM OPERATING ACTIVITIES / Receipts / Transfers and Subsidies - Operational",310,"Other Cash Flows/Payments by Type / Capital assets",510,"Capital assets"," _ "," _ "," _ "," _ ",null," _ "," _ "," _ "," _ ",240,"Cash Receipts By Source / Transfers and Subsidies - Operational","W",1430,1430,"Intangible Assets / Licences and Rights / Computer Software and Applications","Intangible Assets / Licences and Rights / Computer Software and Applications"," _ "," _ "," _ "," _ "," _ "," _ "," _ ",null," _ "," _ "," _ "," _ "," _ ",null," _ "," _ "," _ "," _ ",null,6,61,"Governance Function","Internal Audit",null,null,0,0,0,0,0,0,0,0,0,"_","_","_","_"]
["C0086-6/IA10370/F0002/X081/R0229/001/CONTRA","C0086-6/IA10370/F0002/X081/R0229/001/CONTRA",124701,0,"Assets:Current Assets:VAT Receivable:Input Tax Capital:Recognised"," _"," _"," _ "," _ "," _ "," _ ",1300,"Internal audit",1301,"Governance Function","_",2080,"Funded by Internally generated funds","C","IA",170,"Current assets / VAT",170,"VAT"," _ "," _ ","_","_"," _ "," _ "," _ "," _ "," _ "," _ "," _ "," _ ",null," _ "," _ "," _ "," _ ",null,null,null,1430,1430,"Intangible Assets / Licences and Rights / Computer Software and Applications","Intangible Assets / Licences and Rights / Computer Software and Applications"," _ "," _ "," _ "," _ "," _ "," _ "," _ ",null," _ "," _ "," _ "," _ "," _ ",null," _ "," _ "," _ "," _ ",null,6,61,"Governance Function","Internal Audit",null,null,0,0,0,0,0,0,0,0,0,"_","_","_","_"]
["C0086-4/IA04957/F0002/X081/R0229/001/6059","C0086-4/IA04957/F0002/X081/R0229/001/6059",99778,7663,"Assets:Non-current Assets:Intangible Assets:Cost:Other:Future Use:Computer Software:Acquisitions"," _"," _"," _ "," _ "," _ "," _ ",1300,"Internal audit",1301,"Governance Function","CE",2080,"Funded by Internally generated funds","C","IA",270,"Non current assets / Intangible assets",270,"Intangible assets"," _ "," _ ","_","_"," _ "," _ "," _ "," _ ",1370,"Intangible Assets",1370,"Intangible Assets",null," _ "," _ "," _ "," _ ",null,null,null,1430,1430,"Intangible Assets / Licences and Rights / Computer Software and Applications","Intangible Assets / Licences and Rights / Computer Software and Applications"," _ "," _ "," _ "," _ "," _ "," _ "," _ ",null," _ "," _ "," _ "," _ "," _ ",null," _ "," _ "," _ "," _ ",null,6,61,"Governance Function","Internal Audit",null,null,0,0,0,0,0,0,0,0,0,"_","_","_","_"]
["C0086-3/IL65530/F0002/X052/R0229/001/CONTRA","C0086-3/IL65530/F0002/X052/R0229/001/CONTRA",122959,0,"Liabilities:Current Liabilities:Trade and Other Payable Exchange Transactions:Payables and Accruals : Contractors:Deposits"," _"," _"," _ "," _ "," _ "," _ ",1200,"Finance and administration",1207,"Information Technology","_",2080,"Funded by Internally generated funds","C","IL",380,"Current liabilities / Trade and other payables from exchange transactions","_","_"," _ "," _ ","_","_"," _ "," _ "," _ "," _ "," _ "," _ "," _ "," _ ",null,361,"Trade and other payables / Trade and other payables from exchange transactions",361,"Trade and other payables / Trade and other payables from exchange transactions",null,null,null,1430,1430,"Intangible Assets / Licences and Rights / Computer Software and Applications","Intangible Assets / Licences and Rights / Computer Software and Applications"," _ "," _ "," _ "," _ "," _ "," _ "," _ ",null," _ "," _ "," _ "," _ "," _ ",null," _ "," _ "," _ "," _ ",null,14,143,"Information Technology","Finance & Administration 2",null,null,0,0,0,0,0,0,0,0,0,"_","_","_","_"]
["O0001/IL53963/F0041/X046/R0229/001/CONTRA","O0001/IL53963/F0041/X046/R0229/001/CONTRA",120884,0,"Liabilities:Current Liabilities:Trade and Other Payable Exchange Transactions:Accrued Interest:Withdrawals"," _"," _"," _ "," _ "," _ "," _ ",1200,"Finance and administration",1201,"Administrative and Corporate Support","_"," _"," _","O","IL",380,"Current liabilities / Trade and other payables from exchange transactions","_","_"," _ "," _ ","_","_",210,"Cash Payments by Type / Finance charges",410,"Finance charges"," _ "," _ "," _ "," _ ",null,361,"Trade and other payables / Trade and other payables from exchange transactions",361,"Trade and other payables / Trade and other payables from exchange transactions",null,null,null," _ "," _ "," _ "," _ "," _ "," _ "," _ "," _ "," _ "," _ "," _ ",null," _ "," _ "," _ "," _ "," _ ",null," _ "," _ "," _ "," _ ",null,14,142,"Administrative and Corporate Support","Finance & Administration 2",null,null,0,0,0,0,0,0,0,0,0,"_","_","_","_"]
["O0001/IL53998/F0041/X119/R0229/001/CONTRA","O0001/IL53998/F0041/X119/R0229/001/CONTRA",121736,0,"Liabilities:Current Liabilities:Trade and Other Payable Exchange Transactions:Control, Clearing and Interface Accounts:Salary Clearing and Control:Skills Control:Withdrawals"," _"," _"," _ "," _ "," _ "," _ ",3200,"Road transport",3204,"Road and Traffic Regulation","_"," _"," _","O","IL",380,"Current liabilities / Trade and other payables from exchange transactions","_","_"," _ "," _ ","_","_",200,"Cash Payments by Type / Employee related costs",390,"Employee related costs"," _ "," _ "," _ "," _ ",null,361,"Trade and other payables / Trade and other payables from exchange transactions",361,"Trade and other payables / Trade and other payables from exchange transactions",null,null,null," _ "," _ "," _ "," _ "," _ "," _ "," _ "," _ "," _ "," _ "," _ ",null," _ "," _ "," _ "," _ "," _ ",null," _ "," _ "," _ "," _ ",null,7,72,"Road and Traffic Regulation","Road Transport",null,null,0,0,0,0,0,139108,145924,152783,0,"_","_","_","_"]
["O0001/IL53998/F0041/X032/R0229/001/CONTRA","O0001/IL53998/F0041/X032/R0229/001/CONTRA",121658,0,"Liabilities:Current Liabilities:Trade and Other Payable Exchange Transactions:Control, Clearing and Interface Accounts:Salary Clearing and Control:Skills Control:Withdrawals"," _"," _"," _ "," _ "," _ "," _ ",4100,"Energy sources",4101,"Electricity","_"," _"," _","O","IL",380,"Current liabilities / Trade and other payables from exchange transactions","_","_"," _ "," _ ","_","_",200,"Cash Payments by Type / Employee related costs",390,"Employee related costs"," _ "," _ "," _ "," _ ",null,361,"Trade and other payables / Trade and other payables from exchange transactions",361,"Trade and other payables / Trade and other payables from exchange transactions",null,null,null," _ "," _ "," _ "," _ "," _ "," _ "," _ "," _ "," _ "," _ "," _ ",null," _ "," _ "," _ "," _ "," _ ",null," _ "," _ "," _ "," _ ",null,1,11,"Electricity"," Energy Sources",null,null,0,0,0,0,0,22663,23774,24891,0,"_","_","_","_"]
["O0001/IL53857/F1182/X099/R0229/001/CONTRA","O0001/IL53857/F1182/X099/R0229/001/CONTRA",121389,0,"Liabilities:Current Liabilities:Trade and Other Payable Exchange Transactions:Overtime:Withdrawals"," _"," _"," _ "," _ "," _ "," _ ",3100,"Planning and development",3108,"Project Management Unit","_"," _"," _","O","IL",380,"Current liabilities / Trade and other payables from exchange transactions","_","_"," _ "," _ ","_","_",200,"Cash Payments by Type / Employee related costs",390,"Employee related costs"," _ "," _ "," _ "," _ ",null,361,"Trade and other payables / Trade and other payables from exchange transactions",361,"Trade and other payables / Trade and other payables from exchange transactions",null,null,null," _ "," _ "," _ "," _ "," _ "," _ "," _ "," _ "," _ "," _ "," _ ",null," _ "," _ "," _ "," _ "," _ ",null," _ "," _ "," _ "," _ ",null,4,44,"Project Management Unit","Planning and Development",null,null,0,0,0,0,0,0,0,0,0,"_","_","_","_"]
["O0001/IL53857/F0041/X096/R0229/001/CONTRA","O0001/IL53857/F0041/X096/R0229/001/CONTRA",120925,0,"Liabilities:Current Liabilities:Trade and Other Payable Exchange Transactions:Overtime:Withdrawals"," _"," _"," _ "," _ "," _ "," _ ",3100,"Planning and development",3102,"Corporate Wide Strategic Planning (IDPs, LEDs)","_"," _"," _","O","IL",380,"Current liabilities / Trade and other payables from exchange transactions","_","_"," _ "," _ ","_","_",200,"Cash Payments by Type / Employee related costs",390,"Employee related costs"," _ "," _ "," _ "," _ ",null,361,"Trade and other payables / Trade and other payables from exchange transactions",361,"Trade and other payables / Trade and other payables from exchange transactions",null,null,null," _ "," _ "," _ "," _ "," _ "," _ "," _ "," _ "," _ "," _ "," _ ",null," _ "," _ "," _ "," _ "," _ ",null," _ "," _ "," _ "," _ ",null,4,42,"Corporate Wide Strategic Planning (IDPs, LEDs)","Planning and Development",null,null,0,0,0,0,0,20000,25000,30000,0,"_","_","_","_"]
["O0001/IL53857/F0041/X139/R0229/001/CONTRA","O0001/IL53857/F0041/X139/R0229/001/CONTRA",122848,0,"Liabilities:Current Liabilities:Trade and Other Payable Exchange Transactions:Overtime:Withdrawals"," _"," _"," _ "," _ "," _ "," _ ",4300,"Waste water management",4302,"Sewerage","_"," _"," _","O","IL",380,"Current liabilities / Trade and other payables from exchange transactions","_","_"," _ "," _ ","_","_",200,"Cash Payments by Type / Employee related costs",390,"Employee related costs"," _ "," _ "," _ "," _ ",null,361,"Trade and other payables / Trade and other payables from exchange transactions",361,"Trade and other payables / Trade and other payables from exchange transactions",null,null,null," _ "," _ "," _ "," _ "," _ "," _ "," _ "," _ "," _ "," _ "," _ ",null," _ "," _ "," _ "," _ "," _ ",null," _ "," _ "," _ "," _ ",null,12,121,"Sewerage","Waste Water Management",null,null,0,0,0,0,0,0,0,0,0,"_","_","_","_"]
["O0001/IE00063/F0041/X098/R0229/001/6053","O0001/IE00063/F0041/X098/R0229/001/6053",79670,5561,"Expenditure:Operational Cost:Travel and Subsistence:Domestic:Incidental Cost",4100,"Expenditure / Operational costs",2904,"Expenditure / Operational costs",2904,"Operational Costs ",3100,"Planning and development",3105,"Planning","_"," _"," _","O","IE"," _ "," _ "," _ "," _ "," _ "," _ ","_","_"," _ "," _ "," _ "," _ "," _ "," _ "," _ "," _ ",null," _ "," _ "," _ "," _ ",null,null,null," _ "," _ "," _ "," _ "," _ "," _ "," _ "," _ "," _ "," _ "," _ ",null," _ "," _ "," _ "," _ "," _ ",null," _ "," _ "," _ "," _ ",null,4,43,"Economic Development/Planning","Planning and Development",null,null,0,-3170,0,0,0,0,0,0,0,"_","_","_","_"]
["O0001/IE00063/F0041/X050/R0229/001/6111","O0001/IE00063/F0041/X050/R0229/001/6111",30308,1141,"Expenditure:Operational Cost:Travel and Subsistence:Domestic:Incidental Cost",4100,"Expenditure / Operational costs",2904,"Expenditure / Operational costs",2904,"Operational Costs ",1200,"Finance and administration",1205,"Fleet Management","_"," _"," _","O","IE"," _ "," _ "," _ "," _ "," _ "," _ ","_","_"," _ "," _ "," _ "," _ "," _ "," _ "," _ "," _ ",null," _ "," _ "," _ "," _ ",null,null,null," _ "," _ "," _ "," _ "," _ "," _ "," _ "," _ "," _ "," _ "," _ ",null," _ "," _ "," _ "," _ "," _ ",null," _ "," _ "," _ "," _ ",null,3,31,"Fleet Management","Finance & Administration",null,null,0,0,0,0,0,0,0,0,242,"_","_","_","_"]
["O0001/IE00063/F0041/X096/R0229/001/6151","O0001/IE00063/F0041/X096/R0229/001/6151",30250,1895,"Expenditure:Operational Cost:Travel and Subsistence:Domestic:Incidental Cost",4100,"Expenditure / Operational costs",2904,"Expenditure / Operational costs",2904,"Operational Costs ",3100,"Planning and development",3102,"Corporate Wide Strategic Planning (IDPs, LEDs)","_"," _"," _","O","IE"," _ "," _ "," _ "," _ "," _ "," _ ","_","_"," _ "," _ "," _ "," _ "," _ "," _ "," _ "," _ ",null," _ "," _ "," _ "," _ ",null,null,null," _ "," _ "," _ "," _ "," _ "," _ "," _ "," _ "," _ "," _ "," _ ",null," _ "," _ "," _ "," _ "," _ ",null," _ "," _ "," _ "," _ ",null,4,42,"Corporate Wide Strategic Planning (IDPs, LEDs)","Planning and Development",null,null,1953,3753,1608,4000,4000,4000,4100,4200,0,"_","_","_","_"]
["O0001/IE00063/F0041/X079/R0229/001/6301","O0001/IE00063/F0041/X079/R0229/001/6301",30882,1613,"Expenditure:Operational Cost:Travel and Subsistence:Domestic:Incidental Cost",4100,"Expenditure / Operational costs",2904,"Expenditure / Operational costs",2904,"Operational Costs ",2400,"Housing",2401,"Housing","_"," _"," _","O","IE"," _ "," _ "," _ "," _ "," _ "," _ ","_","_"," _ "," _ "," _ "," _ "," _ "," _ "," _ "," _ ",null," _ "," _ "," _ "," _ ",null,null,null," _ "," _ "," _ "," _ "," _ "," _ "," _ "," _ "," _ "," _ "," _ ",null," _ "," _ "," _ "," _ "," _ ",null," _ "," _ "," _ "," _ ",null,13,131,"Housing","Housing",null,null,1943,1251,2610,3500,1500,1700,1800,1900,0,"_","_","_","_"]
["O0001/IL53820/F0041/X051/R0231/001/CONTRA","O0001/IL53820/F0041/X051/R0231/001/CONTRA",121541,0,"Liabilities:Current Liabilities:Trade and Other Payable Exchange Transactions:Payables and Accruals : General:Deposits"," _"," _"," _ "," _ "," _ "," _ ",1200,"Finance and administration",1206,"Human Resources","_"," _"," _","O","IL",380,"Current liabilities / Trade and other payables from exchange transactions","_","_"," _ "," _ ","_","_"," _ "," _ "," _ "," _ "," _ "," _ "," _ "," _ ",null,361,"Trade and other payables / Trade and other payables from exchange transactions",361,"Trade and other payables / Trade and other payables from exchange transactions",null,null,null," _ "," _ "," _ "," _ "," _ "," _ "," _ "," _ "," _ "," _ "," _ ",null," _ "," _ "," _ "," _ "," _ ",null," _ "," _ "," _ "," _ ",null,3,34,"Human Resources","Finance & Administration",null,null,0,0,0,0,0,0,0,0,0,"_","_","_","_"]
["O0001/IL53820/F0041/X116/R0229/001/CONTRA","O0001/IL53820/F0041/X116/R0229/001/CONTRA",122141,0,"Liabilities:Current Liabilities:Trade and Other Payable Exchange Transactions:Payables and Accruals : General:Deposits"," _"," _"," _ "," _ "," _ "," _ ",3200,"Road transport",3205,"Roads","_"," _"," _","O","IL",380,"Current liabilities / Trade and other payables from exchange transactions","_","_"," _ "," _ ","_","_"," _ "," _ "," _ "," _ "," _ "," _ "," _ "," _ ",null,361,"Trade and other payables / Trade and other payables from exchange transactions",361,"Trade and other payables / Trade and other payables from exchange transactions",null,null,null," _ "," _ "," _ "," _ "," _ "," _ "," _ "," _ "," _ "," _ "," _ ",null," _ "," _ "," _ "," _ "," _ ",null," _ "," _ "," _ "," _ ",null,7,74,"Roads","Road Transport",null,null,0,0,0,0,0,-855200,-904750,-939240,0,"_","_","_","_"]
["O0001/IL53820/F0041/X046/R0229/001/CONTRA","O0001/IL53820/F0041/X046/R0229/001/CONTRA",121950,0,"Liabilities:Current Liabilities:Trade and Other Payable Exchange Transactions:Payables and Accruals : General:Deposits"," _"," _"," _ "," _ "," _ "," _ ",1200,"Finance and administration",1201,"Administrative and Corporate Support","_"," _"," _","O","IL",380,"Current liabilities / Trade and other payables from exchange transactions","_","_"," _ "," _ ","_","_"," _ "," _ "," _ "," _ "," _ "," _ "," _ "," _ ",null,361,"Trade and other payables / Trade and other payables from exchange transactions",361,"Trade and other payables / Trade and other payables from exchange transactions",null,null,null," _ "," _ "," _ "," _ "," _ "," _ "," _ "," _ "," _ "," _ "," _ ",null," _ "," _ "," _ "," _ "," _ ",null," _ "," _ "," _ "," _ ",null,14,142,"Administrative and Corporate Support","Finance & Administration 2",null,null,0,0,0,0,0,-5369250,-5902500,-6388140,0,"_","_","_","_"]
["O0001/IL54010/F1177/X049/R0229/001/CONTRA","O0001/IL54010/F1177/X049/R0229/001/CONTRA",121090,0,"Liabilities:Current Liabilities:Trade and Other Payable Exchange Transactions:Control, Clearing and Interface Accounts:Salary Clearing and Control:Unions Control:Deposits"," _"," _"," _ "," _ "," _ "," _ ",1200,"Finance and administration",1204,"Finance","_"," _"," _","O","IL",380,"Current liabilities / Trade and other payables from exchange transactions","_","_"," _ "," _ ","_","_"," _ "," _ "," _ "," _ "," _ "," _ "," _ "," _ ",null,361,"Trade and other payables / Trade and other payables from exchange transactions",361,"Trade and other payables / Trade and other payables from exchange transactions",null,null,null," _ "," _ "," _ "," _ "," _ "," _ "," _ "," _ "," _ "," _ "," _ ",null," _ "," _ "," _ "," _ "," _ ",null," _ "," _ "," _ "," _ ",null,3,32,"Finance","Finance & Administration",null,null,0,0,0,0,0,0,0,0,0,"_","_","_","_"]
["O0001/IL54010/F0041/X004/R0229/001/CONTRA","O0001/IL54010/F0041/X004/R0229/001/CONTRA",121862,0,"Liabilities:Current Liabilities:Trade and Other Payable Exchange Transactions:Control, Clearing and Interface Accounts:Salary Clearing and Control:Unions Control:Deposits"," _"," _"," _ "," _ "," _ "," _ ",2100,"Community and social services",2104,"Cemeteries, Funeral Parlours and Crematoriums","_"," _"," _","O","IL",380,"Current liabilities / Trade and other payables from exchange transactions","_","_"," _ "," _ ","_","_"," _ "," _ "," _ "," _ "," _ "," _ "," _ "," _ ",null,361,"Trade and other payables / Trade and other payables from exchange transactions",361,"Trade and other payables / Trade and other payables from exchange transactions",null,null,null," _ "," _ "," _ "," _ "," _ "," _ "," _ "," _ "," _ "," _ "," _ ",null," _ "," _ "," _ "," _ "," _ ",null," _ "," _ "," _ "," _ ",null,2,24,"Cemeteries, Funeral Parlours and Crematoriums","Community and Social Services",null,null,0,0,0,0,0,-1685,-1767,-1850,0,"_","_","_","_"]
["O0001/IL54010/F0041/X101/R0229/001/CONTRA","O0001/IL54010/F0041/X101/R0229/001/CONTRA",120996,0,"Liabilities:Current Liabilities:Trade and Other Payable Exchange Transactions:Control, Clearing and Interface Accounts:Salary Clearing and Control:Unions Control:Deposits"," _"," _"," _ "," _ "," _ "," _ ",3100,"Planning and development",3107,"Town Planning, Building Regulations and Enforcement, and City Engineer","_"," _"," _","O","IL",380,"Current liabilities / Trade and other payables from exchange transactions","_","_"," _ "," _ ","_","_"," _ "," _ "," _ "," _ "," _ "," _ "," _ "," _ ",null,361,"Trade and other payables / Trade and other payables from exchange transactions",361,"Trade and other payables / Trade and other payables from exchange transactions",null,null,null," _ "," _ "," _ "," _ "," _ "," _ "," _ "," _ "," _ "," _ "," _ ",null," _ "," _ "," _ "," _ "," _ ",null," _ "," _ "," _ "," _ ",null,4,41,"Town Planning, Building Regulations and Enforcement, and City Engineer","Planning and Development",null,null,0,0,0,0,0,-907,-952,-996,0,"_","_","_","_"]
["O0001/IL54010/F0041/X116/R0229/001/CONTRA","O0001/IL54010/F0041/X116/R0229/001/CONTRA",122335,0,"Liabilities:Current Liabilities:Trade and Other Payable Exchange Transactions:Control, Clearing and Interface Accounts:Salary Clearing and Control:Unions Control:Deposits"," _"," _"," _ "," _ "," _ "," _ ",3200,"Road transport",3205,"Roads","_"," _"," _","O","IL",380,"Current liabilities / Trade and other payables from exchange transactions","_","_"," _ "," _ ","_","_"," _ "," _ "," _ "," _ "," _ "," _ "," _ "," _ ",null,361,"Trade and other payables / Trade and other payables from exchange transactions",361,"Trade and other payables / Trade and other payables from exchange transactions",null,null,null," _ "," _ "," _ "," _ "," _ "," _ "," _ "," _ "," _ "," _ "," _ ",null," _ "," _ "," _ "," _ "," _ ",null," _ "," _ "," _ "," _ ",null,7,74,"Roads","Road Transport",null,null,0,0,0,0,0,-4277,-4486,-4697,0,"_","_","_","_"]
["O0001/IL53996/F0041/X079/R0229/001/CONTRA","O0001/IL53996/F0041/X079/R0229/001/CONTRA",121020,0,"Liabilities:Current Liabilities:Trade and Other Payable Exchange Transactions:Control, Clearing and Interface Accounts:Salary Clearing and Control:UIF Control:Withdrawals"," _"," _"," _ "," _ "," _ "," _ ",2400,"Housing",2401,"Housing","_"," _"," _","O","IL",380,"Current liabilities / Trade and other payables from exchange transactions","_","_"," _ "," _ ","_","_",200,"Cash Payments by Type / Employee related costs",390,"Employee related costs"," _ "," _ "," _ "," _ ",null,361,"Trade and other payables / Trade and other payables from exchange transactions",361,"Trade and other payables / Trade and other payables from exchange transactions",null,null,null," _ "," _ "," _ "," _ "," _ "," _ "," _ "," _ "," _ "," _ "," _ ",null," _ "," _ "," _ "," _ "," _ ",null," _ "," _ "," _ "," _ ",null,13,131,"Housing","Housing",null,null,0,0,0,0,0,69021,72403,75805,0,"_","_","_","_"]
["O0001/IL53996/F0041/X146/R0229/001/CONTRA","O0001/IL53996/F0041/X146/R0229/001/CONTRA",122613,0,"Liabilities:Current Liabilities:Trade and Other Payable Exchange Transactions:Control, Clearing and Interface Accounts:Salary Clearing and Control:UIF Control:Withdrawals"," _"," _"," _ "," _ "," _ "," _ ",4200,"Water management",4202,"Water Distribution","_"," _"," _","O","IL",380,"Current liabilities / Trade and other payables from exchange transactions","_","_"," _ "," _ ","_","_",200,"Cash Payments by Type / Employee related costs",390,"Employee related costs"," _ "," _ "," _ "," _ ",null,361,"Trade and other payables / Trade and other payables from exchange transactions",361,"Trade and other payables / Trade and other payables from exchange transactions",null,null,null," _ "," _ "," _ "," _ "," _ "," _ "," _ "," _ "," _ "," _ "," _ ",null," _ "," _ "," _ "," _ "," _ ",null," _ "," _ "," _ "," _ ",null,11,111,"Water Distribution","Water Management",null,null,0,0,0,0,0,0,0,0,0,"_","_","_","_"]
["O0001/IE00594/F0041/X006/R0230/001/6273","O0001/IE00594/F0041/X006/R0230/001/6273",99729,7614,"Expenditure:Operational Cost:Signage",4100,"Expenditure / Operational costs",2904,"Expenditure / Operational costs",2904,"Operational Costs ",2100,"Community and social services",2106,"Community Halls and Facilities","_"," _"," _","O","IE"," _ "," _ "," _ "," _ "," _ "," _ ","_","_"," _ "," _ "," _ "," _ "," _ "," _ "," _ "," _ ",null," _ "," _ "," _ "," _ ",null,null,null," _ "," _ "," _ "," _ "," _ "," _ "," _ "," _ "," _ "," _ "," _ ",null," _ "," _ "," _ "," _ "," _ ",null," _ "," _ "," _ "," _ ",null,2,22,"Community Halls and Facilities","Community and Social Services",null,null,0,0,0,20000,20000,20000,25000,30000,0,"_","_","_","_"]
["O0001/IE00059/F0041/X051/R0229/001/6104","O0001/IE00059/F0041/X051/R0229/001/6104",30498,1022,"Expenditure:Operational Cost:Registration Fees:Seminars, Conferences, Workshops and Events:National",4100,"Expenditure / Operational costs",2904,"Expenditure / Operational costs",2904,"Operational Costs ",1200,"Finance and administration",1206,"Human Resources","_"," _"," _","O","IE"," _ "," _ "," _ "," _ "," _ "," _ ","_","_"," _ "," _ "," _ "," _ "," _ "," _ "," _ "," _ ",null," _ "," _ "," _ "," _ ",null,null,null," _ "," _ "," _ "," _ "," _ "," _ "," _ "," _ "," _ "," _ "," _ ",null," _ "," _ "," _ "," _ "," _ ",null," _ "," _ "," _ "," _ ",null,3,34,"Human Resources","Finance & Administration",null,null,873278,30250,332834,800000,1600000,1800000,1820000,1830000,1300055,"_","_","_","_"]
["O0001/IE01521/F0041/X146/R0229/001/6651","O0001/IE01521/F0041/X146/R0229/001/6651",61349,4064,"Expenditure:Employee Related Cost:Municipal Staff:Salaries, Wages and Allowances:Allowances:Housing Benefits and Incidental:Housing Benefits",3100,"Expenditure / Employee related costs",2008,"Expenditure / Employee related costs",2008,"Employee related costs / Housing Allowances",4200,"Water management",4202,"Water Distribution","_"," _"," _","O","IE"," _ "," _ "," _ "," _ "," _ "," _ ","_","_"," _ "," _ "," _ "," _ "," _ "," _ "," _ "," _ ",null," _ "," _ "," _ "," _ ",null,null,null," _ "," _ "," _ "," _ "," _ "," _ "," _ "," _ "," _ "," _ "," _ ",null," _ "," _ "," _ "," _ "," _ ",null," _ "," _ "," _ "," _ ","MS",11,111,"Water Distribution","Water Management",null,null,0,0,0,0,0,0,0,0,0,"_","_","_","_"]
["O0001/IE01521/F0041/X049/R0229/001/6119","O0001/IE01521/F0041/X049/R0229/001/6119",30264,1245,"Expenditure:Employee Related Cost:Municipal Staff:Salaries, Wages and Allowances:Allowances:Housing Benefits and Incidental:Housing Benefits",3100,"Expenditure / Employee related costs",2008,"Expenditure / Employee related costs",2008,"Employee related costs / Housing Allowances",1200,"Finance and administration",1204,"Finance","_"," _"," _","O","IE"," _ "," _ "," _ "," _ "," _ "," _ ","_","_"," _ "," _ "," _ "," _ "," _ "," _ "," _ "," _ ",null," _ "," _ "," _ "," _ ",null,null,null," _ "," _ "," _ "," _ "," _ "," _ "," _ "," _ "," _ "," _ "," _ ",null," _ "," _ "," _ "," _ "," _ ",null," _ "," _ "," _ "," _ ","MS",3,32,"Finance","Finance & Administration",null,null,11574,11574,10893,12141,12141,12785,13411,14042,9106,"_","_","_","_"]
["O0001/IE07223/F0041/X044/R0229/001/6803","O0001/IE07223/F0041/X044/R0229/001/6803",30567,1712,"Expenditure:Remuneration of Councillors:Executive Mayor:Allowances and Service Related Benefits:Motor Vehicle Allowance",3200,"Expenditure / Remuneration of councillors",210004,"Expenditure / Remuneration of councillors"," _ "," _ ",1100,"Executive and council",1110,"Mayor and Council","_"," _"," _","O","IE"," _ "," _ "," _ "," _ "," _ "," _ ","_","_"," _ "," _ "," _ "," _ "," _ "," _ "," _ "," _ ",null," _ "," _ "," _ "," _ ",null,null,null," _ "," _ "," _ "," _ "," _ "," _ "," _ "," _ "," _ "," _ "," _ ",null," _ "," _ "," _ "," _ "," _ ",null," _ "," _ "," _ "," _ ",null,5,52,"Mayor and Council","Executive & Council",null,null,234824,215215,207627,225760,221133,233420,244857,256366,165715,"_","_","_","_"]
["O0001/IA10375/F2496/X049/R0229/001/CONTRA","O0001/IA10375/F2496/X049/R0229/001/CONTRA",120675,0,"Assets:Current Assets:VAT Receivable:Input Tax Accrual:Recognised"," _"," _"," _ "," _ "," _ "," _ ",1200,"Finance and administration",1204,"Finance","_"," _"," _","O","IA",170,"Current assets / VAT",170,"VAT"," _ "," _ ","_","_"," _ "," _ "," _ "," _ "," _ "," _ "," _ "," _ ",null," _ "," _ "," _ "," _ ",null,null,null," _ "," _ "," _ "," _ "," _ "," _ "," _ "," _ "," _ "," _ "," _ ",null," _ "," _ "," _ "," _ "," _ ",null," _ "," _ "," _ "," _ ",null,3,32,"Finance","Finance & Administration",null,null,0,0,0,0,0,0,0,0,0,"_","_","_","_"]
["O0001/IA10375/F0045/X101/R0229/001/CONTRA","O0001/IA10375/F0045/X101/R0229/001/CONTRA",121077,0,"Assets:Current Assets:VAT Receivable:Input Tax Accrual:Recognised"," _"," _"," _ "," _ "," _ "," _ ",3100,"Planning and development",3107,"Town Planning, Building Regulations and Enforcement, and City Engineer","_"," _"," _","O","IA",170,"Current assets / VAT",170,"VAT"," _ "," _ ","_","_"," _ "," _ "," _ "," _ "," _ "," _ "," _ "," _ ",null," _ "," _ "," _ "," _ ",null,null,null," _ "," _ "," _ "," _ "," _ "," _ "," _ "," _ "," _ "," _ "," _ ",null," _ "," _ "," _ "," _ "," _ ",null," _ "," _ "," _ "," _ ",null,4,41,"Town Planning, Building Regulations and Enforcement, and City Engineer","Planning and Development",null,null,0,0,0,0,0,0,0,0,0,"_","_","_","_"]
["O0001/IA10375/F0041/X046/R0229/001/CONTRA","O0001/IA10375/F0041/X046/R0229/001/CONTRA",120882,0,"Assets:Current Assets:VAT Receivable:Input Tax Accrual:Recognised"," _"," _"," _ "," _ "," _ "," _ ",1200,"Finance and administration",1201,"Administrative and Corporate Support","_"," _"," _","O","IA",170,"Current assets / VAT",170,"VAT"," _ "," _ ","_","_"," _ "," _ "," _ "," _ "," _ "," _ "," _ "," _ ",null," _ "," _ "," _ "," _ ",null,null,null," _ "," _ "," _ "," _ "," _ "," _ "," _ "," _ "," _ "," _ "," _ ",null," _ "," _ "," _ "," _ "," _ ",null," _ "," _ "," _ "," _ ",null,14,142,"Administrative and Corporate Support","Finance & Administration 2",null,null,0,0,0,0,0,776250,851400,921840,0,"_","_","_","_"]
["O0001/IA10375/F0041/X131/R0229/001/CONTRA","O0001/IA10375/F0041/X131/R0229/001/CONTRA",122184,0,"Assets:Current Assets:VAT Receivable:Input Tax Accrual:Recognised"," _"," _"," _ "," _ "," _ "," _ ",4400,"Waste management",4402,"Solid Waste Disposal (Landfill Sites)","_"," _"," _","O","IA",170,"Current assets / VAT",170,"VAT"," _ "," _ ","_","_"," _ "," _ "," _ "," _ "," _ "," _ "," _ "," _ ",null," _ "," _ "," _ "," _ ",null,null,null," _ "," _ "," _ "," _ "," _ "," _ "," _ "," _ "," _ "," _ "," _ ",null," _ "," _ "," _ "," _ "," _ ",null," _ "," _ "," _ "," _ ",null,9,92,"Solid Waste Disposal (Landfill Sites)","Waste Management",null,null,0,0,0,0,0,0,0,0,0,"_","_","_","_"]
["O0001/IA10375/F0041/X045/R0415/001/CONTRA","O0001/IA10375/F0041/X045/R0415/001/CONTRA",122126,0,"Assets:Current Assets:VAT Receivable:Input Tax Accrual:Recognised"," _"," _"," _ "," _ "," _ "," _ ",1100,"Executive and council",1120,"Municipal Manager, Town Secretary and Chief Executive","_"," _"," _","O","IA",170,"Current assets / VAT",170,"VAT"," _ "," _ ","_","_"," _ "," _ "," _ "," _ "," _ "," _ "," _ "," _ ",null," _ "," _ "," _ "," _ ",null,null,null," _ "," _ "," _ "," _ "," _ "," _ "," _ "," _ "," _ "," _ "," _ ",null," _ "," _ "," _ "," _ "," _ ",null," _ "," _ "," _ "," _ ",null,5,51,"Municipal Manager, Town Secretary and Chief Executive","Executive & Council",null,null,0,0,0,0,0,0,0,0,0,"_","_","_","_"]
["O0001/IA10375/F1177/X052/R0229/001/CONTRA","O0001/IA10375/F1177/X052/R0229/001/CONTRA",121527,0,"Assets:Current Assets:VAT Receivable:Input Tax Accrual:Recognised"," _"," _"," _ "," _ "," _ "," _ ",1200,"Finance and administration",1207,"Information Technology","_"," _"," _","O","IA",170,"Current assets / VAT",170,"VAT"," _ "," _ ","_","_"," _ "," _ "," _ "," _ "," _ "," _ "," _ "," _ ",null," _ "," _ "," _ "," _ ",null,null,null," _ "," _ "," _ "," _ "," _ "," _ "," _ "," _ "," _ "," _ "," _ ",null," _ "," _ "," _ "," _ "," _ ",null," _ "," _ "," _ "," _ ",null,14,143,"Information Technology","Finance & Administration 2",null,null,0,0,0,0,0,82500,84000,85500,0,"_","_","_","_"]
["O0001/IA10375/F1177/X058/R0229/001/CONTRA","O0001/IA10375/F1177/X058/R0229/001/CONTRA",120874,0,"Assets:Current Assets:VAT Receivable:Input Tax Accrual:Recognised"," _"," _"," _ "," _ "," _ "," _ ",1200,"Finance and administration",1213,"Supply Chain Management","_"," _"," _","O","IA",170,"Current assets / VAT",170,"VAT"," _ "," _ ","_","_"," _ "," _ "," _ "," _ "," _ "," _ "," _ "," _ ",null," _ "," _ "," _ "," _ ",null,null,null," _ "," _ "," _ "," _ "," _ "," _ "," _ "," _ "," _ "," _ "," _ ",null," _ "," _ "," _ "," _ "," _ ",null," _ "," _ "," _ "," _ ",null,3,38,"Supply Chain Management","Finance & Administration",null,null,0,0,0,0,0,0,0,0,0,"_","_","_","_"]
["O0001/IL54030/F0041/X055/R0229/001/CONTRA","O0001/IL54030/F0041/X055/R0229/001/CONTRA",120791,0,"Liabilities:Current Liabilities:Trade and Other Payable Exchange Transactions:Long Service Award:Deposits"," _"," _"," _ "," _ "," _ "," _ ",1200,"Finance and administration",1210,"Property Services","_"," _"," _","O","IL",380,"Current liabilities / Trade and other payables from exchange transactions","_","_"," _ "," _ ","_","_"," _ "," _ "," _ "," _ "," _ "," _ "," _ "," _ ",null,361,"Trade and other payables / Trade and other payables from exchange transactions",361,"Trade and other payables / Trade and other payables from exchange transactions",null,null,null," _ "," _ "," _ "," _ "," _ "," _ "," _ "," _ "," _ "," _ "," _ ",null," _ "," _ "," _ "," _ "," _ ",null," _ "," _ "," _ "," _ ",null,3,36,"Property Services","Finance & Administration",null,null,0,0,0,0,0,-199151,0,0,0,"_","_","_","_"]
["O0001/IL54030/F0041/X079/R0229/001/CONTRA","O0001/IL54030/F0041/X079/R0229/001/CONTRA",121029,0,"Liabilities:Current Liabilities:Trade and Other Payable Exchange Transactions:Long Service Award:Deposits"," _"," _"," _ "," _ "," _ "," _ ",2400,"Housing",2401,"Housing","_"," _"," _","O","IL",380,"Current liabilities / Trade and other payables from exchange transactions","_","_"," _ "," _ ","_","_"," _ "," _ "," _ "," _ "," _ "," _ "," _ "," _ ",null,361,"Trade and other payables / Trade and other payables from exchange transactions",361,"Trade and other payables / Trade and other payables from exchange transactions",null,null,null," _ "," _ "," _ "," _ "," _ "," _ "," _ "," _ "," _ "," _ "," _ ",null," _ "," _ "," _ "," _ "," _ ",null," _ "," _ "," _ "," _ ",null,13,131,"Housing","Housing",null,null,0,0,0,0,0,0,0,0,0,"_","_","_","_"]
["O0001/IL54039/F0041/X046/R0229/001/CONTRA","O0001/IL54039/F0041/X046/R0229/001/CONTRA",121972,0,"Liabilities:Current Liabilities:Trade and Other Payable Exchange Transactions:Standby:Withdrawals"," _"," _"," _ "," _ "," _ "," _ ",1200,"Finance and administration",1201,"Administrative and Corporate Support","_"," _"," _","O","IL",380,"Current liabilities / Trade and other payables from exchange transactions","_","_"," _ "," _ ","_","_",200,"Cash Payments by Type / Employee related costs",390,"Employee related costs"," _ "," _ "," _ "," _ ",null,361,"Trade and other payables / Trade and other payables from exchange transactions",361,"Trade and other payables / Trade and other payables from exchange transactions",null,null,null," _ "," _ "," _ "," _ "," _ "," _ "," _ "," _ "," _ "," _ "," _ ",null," _ "," _ "," _ "," _ "," _ ",null," _ "," _ "," _ "," _ ",null,14,142,"Administrative and Corporate Support","Finance & Administration 2",null,null,0,0,0,0,0,0,0,0,0,"_","_","_","_"]
["O0001/IE00144/F0041/X051/R0229/001/6104","O0001/IE00144/F0041/X051/R0229/001/6104",69549,4440,"Expenditure:Operational Cost:Travel and Subsistence:Domestic:Transport without Operator:Own Transport",4100,"Expenditure / Operational costs",2904,"Expenditure / Operational costs",2904,"Operational Costs ",1200,"Finance and administration",1206,"Human Resources","_"," _"," _","O","IE"," _ "," _ "," _ "," _ "," _ "," _ ","_","_"," _ "," _ "," _ "," _ "," _ "," _ "," _ "," _ ",null," _ "," _ "," _ "," _ ",null,null,null," _ "," _ "," _ "," _ "," _ "," _ "," _ "," _ "," _ "," _ "," _ ",null," _ "," _ "," _ "," _ "," _ ",null," _ "," _ "," _ "," _ ",null,3,34,"Human Resources","Finance & Administration",null,null,26308,12092,36642,50000,50000,51000,51000,52000,28765,"_","_","_","_"]
["O0001/IE00144/F0041/X006/R0229/001/6053","O0001/IE00144/F0041/X006/R0229/001/6053",31169,1465,"Expenditure:Operational Cost:Travel and Subsistence:Domestic:Transport without Operator:Own Transport",4100,"Expenditure / Operational costs",2904,"Expenditure / Operational costs",2904,"Operational Costs ",2100,"Community and social services",2106,"Community Halls and Facilities","_"," _"," _","O","IE"," _ "," _ "," _ "," _ "," _ "," _ ","_","_"," _ "," _ "," _ "," _ "," _ "," _ "," _ "," _ ",null," _ "," _ "," _ "," _ ",null,null,null," _ "," _ "," _ "," _ "," _ "," _ "," _ "," _ "," _ "," _ "," _ ",null," _ "," _ "," _ "," _ "," _ ",null," _ "," _ "," _ "," _ ",null,2,22,"Community Halls and Facilities","Community and Social Services",null,null,6019,3701,40121,15000,25000,50000,55000,60000,23874,"_","_","_","_"]
["O0001/IE00144/F0041/X099/R0229/001/6055","O0001/IE00144/F0041/X099/R0229/001/6055",69058,4303,"Expenditure:Operational Cost:Travel and Subsistence:Domestic:Transport without Operator:Own Transport",4100,"Expenditure / Operational costs",2904,"Expenditure / Operational costs",2904,"Operational Costs ",3100,"Planning and development",3108,"Project Management Unit","_"," _"," _","O","IE"," _ "," _ "," _ "," _ "," _ "," _ ","_","_"," _ "," _ "," _ "," _ "," _ "," _ "," _ "," _ ",null," _ "," _ "," _ "," _ ",null,null,null," _ "," _ "," _ "," _ "," _ "," _ "," _ "," _ "," _ "," _ "," _ ",null," _ "," _ "," _ "," _ "," _ ",null," _ "," _ "," _ "," _ ",null,4,44,"Project Management Unit","Planning and Development",null,null,840,58249,0,60000,110000,120000,130000,140000,0,"_","_","_","_"]
["O0001/IE00144/F0041/X049/R0229/001/6117","O0001/IE00144/F0041/X049/R0229/001/6117",30067,1221,"Expenditure:Operational Cost:Travel and Subsistence:Domestic:Transport without Operator:Own Transport",4100,"Expenditure / Operational costs",2904,"Expenditure / Operational costs",2904,"Operational Costs ",1200,"Finance and administration",1204,"Finance","_"," _"," _","O","IE"," _ "," _ "," _ "," _ "," _ "," _ ","_","_"," _ "," _ "," _ "," _ "," _ "," _ "," _ "," _ ",null," _ "," _ "," _ "," _ ",null,null,null," _ "," _ "," _ "," _ "," _ "," _ "," _ "," _ "," _ "," _ "," _ ",null," _ "," _ "," _ "," _ "," _ ",null," _ "," _ "," _ "," _ ",null,3,32,"Finance","Finance & Administration",null,null,16782,21052,2215,20000,26000,77000,78000,79000,42857,"_","_","_","_"]
["O0001/IL53991/F0041/X132/R0229/001/CONTRA","O0001/IL53991/F0041/X132/R0229/001/CONTRA",122202,0,"Liabilities:Current Liabilities:Trade and Other Payable Exchange Transactions:Control, Clearing and Interface Accounts:Salary Clearing and Control:Leave Control:Deposits"," _"," _"," _ "," _ "," _ "," _ ",4400,"Waste management",4403,"Solid Waste Removal","_"," _"," _","O","IL",380,"Current liabilities / Trade and other payables from exchange transactions","_","_"," _ "," _ ","_","_"," _ "," _ "," _ "," _ "," _ "," _ "," _ "," _ ",null,361,"Trade and other payables / Trade and other payables from exchange transactions",361,"Trade and other payables / Trade and other payables from exchange transactions",null,null,null," _ "," _ "," _ "," _ "," _ "," _ "," _ "," _ "," _ "," _ "," _ ",null," _ "," _ "," _ "," _ "," _ ",null," _ "," _ "," _ "," _ ",null,9,93,"Solid Waste Removal","Waste Management",null,null,0,0,0,0,0,-109579,0,0,0,"_","_","_","_"]
["O0001/IE00121/F0041/X049/R0229/001/6117","O0001/IE00121/F0041/X049/R0229/001/6117",69242,4329,"Expenditure:Employee Related Cost:Municipal Staff:Salaries, Wages and Allowances:Allowances:Cellular and Telephone",3100,"Expenditure / Employee related costs",2007,"Expenditure / Employee related costs",2007,"Employee related costs / Cellphone Allowance",1200,"Finance and administration",1204,"Finance","_"," _"," _","O","IE"," _ "," _ "," _ "," _ "," _ "," _ ","_","_"," _ "," _ "," _ "," _ "," _ "," _ "," _ "," _ ",null," _ "," _ "," _ "," _ ",null,null,null," _ "," _ "," _ "," _ "," _ "," _ "," _ "," _ "," _ "," _ "," _ ",null," _ "," _ "," _ "," _ "," _ ",null," _ "," _ "," _ "," _ ","MS",3,32,"Finance","Finance & Administration",null,null,23782,18379,15975,25158,25158,26492,27790,29096,18869,"_","_","_","_"]
["O0001/IE00121/F0041/X119/R0229/001/6607","O0001/IE00121/F0041/X119/R0229/001/6607",69247,4334,"Expenditure:Employee Related Cost:Municipal Staff:Salaries, Wages and Allowances:Allowances:Cellular and Telephone",3100,"Expenditure / Employee related costs",2007,"Expenditure / Employee related costs",2007,"Employee related costs / Cellphone Allowance",3200,"Road transport",3204,"Road and Traffic Regulation","_"," _"," _","O","IE"," _ "," _ "," _ "," _ "," _ "," _ ","_","_"," _ "," _ "," _ "," _ "," _ "," _ "," _ "," _ ",null," _ "," _ "," _ "," _ ",null,null,null," _ "," _ "," _ "," _ "," _ "," _ "," _ "," _ "," _ "," _ "," _ ",null," _ "," _ "," _ "," _ "," _ ",null," _ "," _ "," _ "," _ ","MS",7,72,"Road and Traffic Regulation","Road Transport",null,null,166578,158477,119124,164409,174263,173126,181609,190144,131861,"_","_","_","_"]
["O0001/IE00121/F0041/X032/R0229/001/6707","O0001/IE00121/F0041/X032/R0229/001/6707",69245,4332,"Expenditure:Employee Related Cost:Municipal Staff:Salaries, Wages and Allowances:Allowances:Cellular and Telephone",3100,"Expenditure / Employee related costs",2007,"Expenditure / Employee related costs",2007,"Employee related costs / Cellphone Allowance",4100,"Energy sources",4101,"Electricity","_"," _"," _","O","IE"," _ "," _ "," _ "," _ "," _ "," _ ","_","_"," _ "," _ "," _ "," _ "," _ "," _ "," _ "," _ ",null," _ "," _ "," _ "," _ ",null,null,null," _ "," _ "," _ "," _ "," _ "," _ "," _ "," _ "," _ "," _ "," _ ",null," _ "," _ "," _ "," _ "," _ ",null," _ "," _ "," _ "," _ ","MS",1,11,"Electricity"," Energy Sources",null,null,0,5432,1704,11791,5895,12416,13024,13636,0,"_","_","_","_"]
["O0001/IE01581/F0041/X044/R0229/001/6803","O0001/IE01581/F0041/X044/R0229/001/6803",30603,1736,"Expenditure:Operational Cost:Travel and Subsistence:Domestic:Transport with Operator:Public Transport:Air Transport",4100,"Expenditure / Operational costs",2904,"Expenditure / Operational costs",2904,"Operational Costs ",1100,"Executive and council",1110,"Mayor and Council","_"," _"," _","O","IE"," _ "," _ "," _ "," _ "," _ "," _ ","_","_"," _ "," _ "," _ "," _ "," _ "," _ "," _ "," _ ",null," _ "," _ "," _ "," _ ",null,null,null," _ "," _ "," _ "," _ "," _ "," _ "," _ "," _ "," _ "," _ "," _ ",null," _ "," _ "," _ "," _ "," _ ",null," _ "," _ "," _ "," _ ",null,5,52,"Mayor and Council","Executive & Council",null,null,13404,0,28849,15000,42000,43000,44000,46000,22692,"_","_","_","_"]
["O0001/IE01581/F0041/X055/R0229/001/6107","O0001/IE01581/F0041/X055/R0229/001/6107",30111,1063,"Expenditure:Operational Cost:Travel and Subsistence:Domestic:Transport with Operator:Public Transport:Air Transport",4100,"Expenditure / Operational costs",2904,"Expenditure / Operational costs",2904,"Operational Costs ",1200,"Finance and administration",1210,"Property Services","_"," _"," _","O","IE"," _ "," _ "," _ "," _ "," _ "," _ ","_","_"," _ "," _ "," _ "," _ "," _ "," _ "," _ "," _ ",null," _ "," _ "," _ "," _ ",null,null,null," _ "," _ "," _ "," _ "," _ "," _ "," _ "," _ "," _ "," _ "," _ ",null," _ "," _ "," _ "," _ "," _ ",null," _ "," _ "," _ "," _ ",null,3,36,"Property Services","Finance & Administration",null,null,0,0,0,0,0,0,0,0,0,"_","_","_","_"]
["O0001/IE01581/F0041/X116/R0229/001/6053","O0001/IE01581/F0041/X116/R0229/001/6053",30941,1430,"Expenditure:Operational Cost:Travel and Subsistence:Domestic:Transport with Operator:Public Transport:Air Transport",4100,"Expenditure / Operational costs",2904,"Expenditure / Operational costs",2904,"Operational Costs ",3200,"Road transport",3205,"Roads","_"," _"," _","O","IE"," _ "," _ "," _ "," _ "," _ "," _ ","_","_"," _ "," _ "," _ "," _ "," _ "," _ "," _ "," _ ",null," _ "," _ "," _ "," _ ",null,null,null," _ "," _ "," _ "," _ "," _ "," _ "," _ "," _ "," _ "," _ "," _ ",null," _ "," _ "," _ "," _ "," _ ",null," _ "," _ "," _ "," _ ",null,7,74,"Roads","Road Transport",null,null,0,0,0,2000,15000,10000,11000,12000,11675,"_","_","_","_"]
["O0001/IE06194/F0041/X116/R0229/001/6053","O0001/IE06194/F0041/X116/R0229/001/6053",30918,1424,"Expenditure:Employee Related Cost:Senior Management:Designation:Social Contributions:Medical",3100,"Expenditure / Employee related costs",2003,"Expenditure / Employee related costs",2003,"Employee related costs / Medical Aid Contributions",3200,"Road transport",3205,"Roads","_"," _"," _","O","IE"," _ "," _ "," _ "," _ "," _ "," _ ","_","_"," _ "," _ "," _ "," _ "," _ "," _ "," _ "," _ ",null," _ "," _ "," _ "," _ ",null,null,null," _ "," _ "," _ "," _ "," _ "," _ "," _ "," _ "," _ "," _ "," _ ",null," _ "," _ "," _ "," _ "," _ ",null," _ "," _ "," _ "," _ ","SM",7,74,"Roads","Road Transport",null,null,0,0,0,99252,0,0,0,0,0,"_","_","_","_"]
["O0001/IL53989/F0041/X052/R0229/001/CONTRA","O0001/IL53989/F0041/X052/R0229/001/CONTRA",121507,0,"Liabilities:Current Liabilities:Trade and Other Payable Exchange Transactions:Control, Clearing and Interface Accounts:Salary Clearing and Control:Travel Control:Deposits"," _"," _"," _ "," _ "," _ "," _ ",1200,"Finance and administration",1207,"Information Technology","_"," _"," _","O","IL",380,"Current liabilities / Trade and other payables from exchange transactions","_","_"," _ "," _ ","_","_"," _ "," _ "," _ "," _ "," _ "," _ "," _ "," _ ",null,361,"Trade and other payables / Trade and other payables from exchange transactions",361,"Trade and other payables / Trade and other payables from exchange transactions",null,null,null," _ "," _ "," _ "," _ "," _ "," _ "," _ "," _ "," _ "," _ "," _ ",null," _ "," _ "," _ "," _ "," _ ",null," _ "," _ "," _ "," _ ",null,14,143,"Information Technology","Finance & Administration 2",null,null,0,0,0,0,0,-573084,-601165,-629419,0,"_","_","_","_"]
["O0001/IL53989/F0041/X045/R0229/001/CONTRA","O0001/IL53989/F0041/X045/R0229/001/CONTRA",122115,0,"Liabilities:Current Liabilities:Trade and Other Payable Exchange Transactions:Control, Clearing and Interface Accounts:Salary Clearing and Control:Travel Control:Deposits"," _"," _"," _ "," _ "," _ "," _ ",1100,"Executive and council",1120,"Municipal Manager, Town Secretary and Chief Executive","_"," _"," _","O","IL",380,"Current liabilities / Trade and other payables from exchange transactions","_","_"," _ "," _ ","_","_"," _ "," _ "," _ "," _ "," _ "," _ "," _ "," _ ",null,361,"Trade and other payables / Trade and other payables from exchange transactions",361,"Trade and other payables / Trade and other payables from exchange transactions",null,null,null," _ "," _ "," _ "," _ "," _ "," _ "," _ "," _ "," _ "," _ "," _ ",null," _ "," _ "," _ "," _ "," _ ",null," _ "," _ "," _ "," _ ",null,5,51,"Municipal Manager, Town Secretary and Chief Executive","Executive & Council",null,null,0,0,0,0,0,-133745,-140298,-146892,0,"_","_","_","_"]
["O0001/IE00584/F0041/X051/R0229/001/6103","O0001/IE00584/F0041/X051/R0229/001/6103",30450,996,"Expenditure:Operational Cost:Professional Bodies, Membership and Subscription",4100,"Expenditure / Operational costs",2904,"Expenditure / Operational costs",2904,"Operational Costs ",1200,"Finance and administration",1206,"Human Resources","_"," _"," _","O","IE"," _ "," _ "," _ "," _ "," _ "," _ ","_","_"," _ "," _ "," _ "," _ "," _ "," _ "," _ "," _ ",null," _ "," _ "," _ "," _ ",null,null,null," _ "," _ "," _ "," _ "," _ "," _ "," _ "," _ "," _ "," _ "," _ ",null," _ "," _ "," _ "," _ "," _ ",null," _ "," _ "," _ "," _ ",null,3,34,"Human Resources","Finance & Administration",null,null,2063034,1826890,1772760,2300000,2300000,2600000,2800000,2900000,2286701,"_","_","_","_"]
["O0001/IE03969/F0041/X101/R0229/001/6155","O0001/IE03969/F0041/X101/R0229/001/6155",68988,4234,"Expenditure:Employee Related Cost:Municipal Staff:Salaries, Wages and Allowances:Allowances:Service Related Benefits:Overtime:Non Structured",3100,"Expenditure / Employee related costs",2004,"Expenditure / Employee related costs",2004,"Employee related costs / Overtime",3100,"Planning and development",3107,"Town Planning, Building Regulations and Enforcement, and City Engineer","_"," _"," _","O","IE"," _ "," _ "," _ "," _ "," _ "," _ ","_","_"," _ "," _ "," _ "," _ "," _ "," _ "," _ "," _ ",null," _ "," _ "," _ "," _ ",null,null,null," _ "," _ "," _ "," _ "," _ "," _ "," _ "," _ "," _ "," _ "," _ ",null," _ "," _ "," _ "," _ "," _ ",null," _ "," _ "," _ "," _ ","MS",4,41,"Town Planning, Building Regulations and Enforcement, and City Engineer","Planning and Development",null,null,64143,14332,61536,50000,20000,40000,50000,60000,5943,"_","_","_","_"]
["O0001/IE03969/F0041/X099/R0229/001/6055","O0001/IE03969/F0041/X099/R0229/001/6055",120252,10136,"Expenditure:Employee Related Cost:Municipal Staff:Salaries, Wages and Allowances:Allowances:Service Related Benefits:Overtime:Non Structured",3100,"Expenditure / Employee related costs",2004,"Expenditure / Employee related costs",2004,"Employee related costs / Overtime",3100,"Planning and development",3108,"Project Management Unit","_"," _"," _","O","IE"," _ "," _ "," _ "," _ "," _ "," _ ","_","_"," _ "," _ "," _ "," _ "," _ "," _ "," _ "," _ ",null," _ "," _ "," _ "," _ ",null,null,null," _ "," _ "," _ "," _ "," _ "," _ "," _ "," _ "," _ "," _ "," _ ",null," _ "," _ "," _ "," _ "," _ ",null," _ "," _ "," _ "," _ ","MS",4,44,"Project Management Unit","Planning and Development",null,null,0,0,0,60000,40000,40000,50000,60000,0,"_","_","_","_"]
["O0001/IE03969/F0041/X051/R0229/001/6103","O0001/IE03969/F0041/X051/R0229/001/6103",30359,990,"Expenditure:Employee Related Cost:Municipal Staff:Salaries, Wages and Allowances:Allowances:Service Related Benefits:Overtime:Non Structured",3100,"Expenditure / Employee related costs",2004,"Expenditure / Employee related costs",2004,"Employee related costs / Overtime",1200,"Finance and administration",1206,"Human Resources","_"," _"," _","O","IE"," _ "," _ "," _ "," _ "," _ "," _ ","_","_"," _ "," _ "," _ "," _ "," _ "," _ "," _ "," _ ",null," _ "," _ "," _ "," _ ",null,null,null," _ "," _ "," _ "," _ "," _ "," _ "," _ "," _ "," _ "," _ "," _ ",null," _ "," _ "," _ "," _ "," _ ",null," _ "," _ "," _ "," _ ","MS",3,34,"Human Resources","Finance & Administration",null,null,53065,28100,127931,30000,80000,65000,70000,75000,42557,"_","_","_","_"]
["O0001/IE00609/F0041/X051/R0229/001/6104","O0001/IE00609/F0041/X051/R0229/001/6104",69464,4355,"Expenditure:Operational Cost:Workmen's Compensation Fund",4100,"Expenditure / Operational costs",2904,"Expenditure / Operational costs",2904,"Operational Costs ",1200,"Finance and administration",1206,"Human Resources","_"," _"," _","O","IE"," _ "," _ "," _ "," _ "," _ "," _ ","_","_"," _ "," _ "," _ "," _ "," _ "," _ "," _ "," _ ",null," _ "," _ "," _ "," _ ",null,null,null," _ "," _ "," _ "," _ "," _ "," _ "," _ "," _ "," _ "," _ "," _ ",null," _ "," _ "," _ "," _ "," _ ",null," _ "," _ "," _ "," _ ",null,3,34,"Human Resources","Finance & Administration",null,null,0,0,874186,0,0,0,0,0,0,"_","_","_","_"]
["O0001/IE06766/F0041/X049/R0229/001/6053","O0001/IE06766/F0041/X049/R0229/001/6053",69258,4306,"Expenditure:Employee Related Cost:Senior Management:Chief Financial Officer:Salaries and Allowances:Allowance:Cellular and Telephone",3100,"Expenditure / Employee related costs",2007,"Expenditure / Employee related costs",2007,"Employee related costs / Cellphone Allowance",1200,"Finance and administration",1204,"Finance","_"," _"," _","O","IE"," _ "," _ "," _ "," _ "," _ "," _ ","_","_"," _ "," _ "," _ "," _ "," _ "," _ "," _ "," _ ",null," _ "," _ "," _ "," _ ",null,null,null," _ "," _ "," _ "," _ "," _ "," _ "," _ "," _ "," _ "," _ "," _ ",null," _ "," _ "," _ "," _ "," _ ",null," _ "," _ "," _ "," _ ","SM",3,32,"Finance","Finance & Administration",null,null,12600,16800,9800,17623,7343,18557,19467,20381,2800,"_","_","_","_"]
["O0001/IE00143/F1177/X058/R0229/001/6113","O0001/IE00143/F1177/X058/R0229/001/6113",31100,1171,"Expenditure:Operational Cost:Travel and Subsistence:Domestic:Transport without Operator:Car Rental",4100,"Expenditure / Operational costs",2904,"Expenditure / Operational costs",2904,"Operational Costs ",1200,"Finance and administration",1213,"Supply Chain Management","_"," _"," _","O","IE"," _ "," _ "," _ "," _ "," _ "," _ ","_","_"," _ "," _ "," _ "," _ "," _ "," _ "," _ "," _ ",null," _ "," _ "," _ "," _ ",null,null,null," _ "," _ "," _ "," _ "," _ "," _ "," _ "," _ "," _ "," _ "," _ ",null," _ "," _ "," _ "," _ "," _ ",null," _ "," _ "," _ "," _ ",null,3,38,"Supply Chain Management","Finance & Administration",null,null,0,0,0,2000,2000,0,0,0,0,"_","_","_","_"]
["O0001/IE00143/F0041/X116/R0229/001/6053","O0001/IE00143/F0041/X116/R0229/001/6053",30939,1428,"Expenditure:Operational Cost:Travel and Subsistence:Domestic:Transport without Operator:Car Rental",4100,"Expenditure / Operational costs",2904,"Expenditure / Operational costs",2904,"Operational Costs ",3200,"Road transport",3205,"Roads","_"," _"," _","O","IE"," _ "," _ "," _ "," _ "," _ "," _ ","_","_"," _ "," _ "," _ "," _ "," _ "," _ "," _ "," _ ",null," _ "," _ "," _ "," _ ",null,null,null," _ "," _ "," _ "," _ "," _ "," _ "," _ "," _ "," _ "," _ "," _ ",null," _ "," _ "," _ "," _ "," _ ",null," _ "," _ "," _ "," _ ",null,7,74,"Roads","Road Transport",null,null,0,0,0,2000,2000,5000,5500,6000,0,"_","_","_","_"]
["O0001/IE00143/F0041/X132/R0229/001/6501","O0001/IE00143/F0041/X132/R0229/001/6501",30836,1665,"Expenditure:Operational Cost:Travel and Subsistence:Domestic:Transport without Operator:Car Rental",4100,"Expenditure / Operational costs",2904,"Expenditure / Operational costs",2904,"Operational Costs ",4400,"Waste management",4403,"Solid Waste Removal","_"," _"," _","O","IE"," _ "," _ "," _ "," _ "," _ "," _ ","_","_"," _ "," _ "," _ "," _ "," _ "," _ "," _ "," _ ",null," _ "," _ "," _ "," _ ",null,null,null," _ "," _ "," _ "," _ "," _ "," _ "," _ "," _ "," _ "," _ "," _ ",null," _ "," _ "," _ "," _ "," _ ",null," _ "," _ "," _ "," _ ",null,9,93,"Solid Waste Removal","Waste Management",null,null,0,0,2414,0,0,0,0,0,0,"_","_","_","_"]
["O0001/IE00143/F0041/X049/R0229/001/6119","O0001/IE00143/F0041/X049/R0229/001/6119",30267,1248,"Expenditure:Operational Cost:Travel and Subsistence:Domestic:Transport without Operator:Car Rental",4100,"Expenditure / Operational costs",2904,"Expenditure / Operational costs",2904,"Operational Costs ",1200,"Finance and administration",1204,"Finance","_"," _"," _","O","IE"," _ "," _ "," _ "," _ "," _ "," _ ","_","_"," _ "," _ "," _ "," _ "," _ "," _ "," _ "," _ ",null," _ "," _ "," _ "," _ ",null,null,null," _ "," _ "," _ "," _ "," _ "," _ "," _ "," _ "," _ "," _ "," _ ",null," _ "," _ "," _ "," _ "," _ ",null," _ "," _ "," _ "," _ ",null,3,32,"Finance","Finance & Administration",null,null,0,0,0,0,0,0,0,0,0,"_","_","_","_"]
["O0001/IE00040/F0041/X057/R0229/001/6351","O0001/IE00040/F0041/X057/R0229/001/6351",30994,1626,"Expenditure:Employee Related Cost:Municipal Staff:Social Contributions:Bargaining Council",3100,"Expenditure / Employee related costs",2009,"Expenditure / Employee related costs",2009,"Employee related costs / Other benefits and allowances",1200,"Finance and administration",1212,"Security Services","_"," _"," _","O","IE"," _ "," _ "," _ "," _ "," _ "," _ ","_","_"," _ "," _ "," _ "," _ "," _ "," _ "," _ "," _ ",null," _ "," _ "," _ "," _ ",null,null,null," _ "," _ "," _ "," _ "," _ "," _ "," _ "," _ "," _ "," _ "," _ ",null," _ "," _ "," _ "," _ "," _ ",null," _ "," _ "," _ "," _ ","MS",14,141,"Security Services","Finance & Administration 2",null,null,5243,5128,4893,5562,5486,5962,6254,6548,3985,"_","_","_","_"]
["O0001/IE00040/F0041/X050/R0229/001/6111","O0001/IE00040/F0041/X050/R0229/001/6111",30276,1124,"Expenditure:Employee Related Cost:Municipal Staff:Social Contributions:Bargaining Council",3100,"Expenditure / Employee related costs",2009,"Expenditure / Employee related costs",2009,"Employee related costs / Other benefits and allowances",1200,"Finance and administration",1205,"Fleet Management","_"," _"," _","O","IE"," _ "," _ "," _ "," _ "," _ "," _ ","_","_"," _ "," _ "," _ "," _ "," _ "," _ "," _ "," _ ",null," _ "," _ "," _ "," _ ",null,null,null," _ "," _ "," _ "," _ "," _ "," _ "," _ "," _ "," _ "," _ "," _ ",null," _ "," _ "," _ "," _ "," _ ",null," _ "," _ "," _ "," _ ","MS",3,31,"Fleet Management","Finance & Administration",null,null,494,475,75,494,518,518,544,569,389,"_","_","_","_"]
["O0001/IE00040/F0041/X046/R0229/001/6109","O0001/IE00040/F0041/X046/R0229/001/6109",30656,1094,"Expenditure:Employee Related Cost:Municipal Staff:Social Contributions:Bargaining Council",3100,"Expenditure / Employee related costs",2009,"Expenditure / Employee related costs",2009,"Employee related costs / Other benefits and allowances",1200,"Finance and administration",1201,"Administrative and Corporate Support","_"," _"," _","O","IE"," _ "," _ "," _ "," _ "," _ "," _ ","_","_"," _ "," _ "," _ "," _ "," _ "," _ "," _ "," _ ",null," _ "," _ "," _ "," _ ",null,null,null," _ "," _ "," _ "," _ "," _ "," _ "," _ "," _ "," _ "," _ "," _ ",null," _ "," _ "," _ "," _ "," _ ",null," _ "," _ "," _ "," _ ","MS",14,142,"Administrative and Corporate Support","Finance & Administration 2",null,null,2565,2495,2423,3955,2776,3758,3943,4128,1782,"_","_","_","_"]
["O0001/IE01525/F0041/X046/R0229/001/6109","O0001/IE01525/F0041/X046/R0229/001/6109",120323,11210,"Expenditure:Employee Related Cost:Municipal Staff:Salaries, Wages and Allowances:Allowances:Service Related Benefits:Acting and Post Related Allowances",3100,"Expenditure / Employee related costs",2015,"Expenditure / Employee related costs",2015,"Employee related costs / Acting and post related allowance",1200,"Finance and administration",1201,"Administrative and Corporate Support","_"," _"," _","O","IE"," _ "," _ "," _ "," _ "," _ "," _ ","_","_"," _ "," _ "," _ "," _ "," _ "," _ "," _ "," _ ",null," _ "," _ "," _ "," _ ",null,null,null," _ "," _ "," _ "," _ "," _ "," _ "," _ "," _ "," _ "," _ "," _ ",null," _ "," _ "," _ "," _ "," _ ",null," _ "," _ "," _ "," _ ","MS",14,142,"Administrative and Corporate Support","Finance & Administration 2",null,null,2383,0,0,0,0,0,0,0,0,"_","_","_","_"]
["O0001/IE01525/F0041/X032/R0229/001/6707","O0001/IE01525/F0041/X032/R0229/001/6707",30872,1697,"Expenditure:Employee Related Cost:Municipal Staff:Salaries, Wages and Allowances:Allowances:Service Related Benefits:Acting and Post Related Allowances",3100,"Expenditure / Employee related costs",2015,"Expenditure / Employee related costs",2015,"Employee related costs / Acting and post related allowance",4100,"Energy sources",4101,"Electricity","_"," _"," _","O","IE"," _ "," _ "," _ "," _ "," _ "," _ ","_","_"," _ "," _ "," _ "," _ "," _ "," _ "," _ "," _ ",null," _ "," _ "," _ "," _ ",null,null,null," _ "," _ "," _ "," _ "," _ "," _ "," _ "," _ "," _ "," _ "," _ ",null," _ "," _ "," _ "," _ "," _ ",null," _ "," _ "," _ "," _ ","MS",1,11,"Electricity"," Energy Sources",null,null,0,36556,0,0,0,0,0,0,0,"_","_","_","_"]
["O0001/IL53994/F0041/X053/R0229/001/CONTRA","O0001/IL53994/F0041/X053/R0229/001/CONTRA",120819,0,"Liabilities:Current Liabilities:Trade and Other Payable Exchange Transactions:Control, Clearing and Interface Accounts:Salary Clearing and Control:Tax Control:Withdrawals"," _"," _"," _ "," _ "," _ "," _ ",1200,"Finance and administration",1208,"Legal Services","_"," _"," _","O","IL",380,"Current liabilities / Trade and other payables from exchange transactions","_","_"," _ "," _ ","_","_",200,"Cash Payments by Type / Employee related costs",390,"Employee related costs"," _ "," _ "," _ "," _ ",null,361,"Trade and other payables / Trade and other payables from exchange transactions",361,"Trade and other payables / Trade and other payables from exchange transactions",null,null,null," _ "," _ "," _ "," _ "," _ "," _ "," _ "," _ "," _ "," _ "," _ ",null," _ "," _ "," _ "," _ "," _ ",null," _ "," _ "," _ "," _ ",null,3,35,"Legal Services","Finance & Administration",null,null,0,0,0,0,0,247910,260058,272281,0,"_","_","_","_"]
["O0001/IL53994/F0041/X058/R0229/001/CONTRA","O0001/IL53994/F0041/X058/R0229/001/CONTRA",120856,0,"Liabilities:Current Liabilities:Trade and Other Payable Exchange Transactions:Control, Clearing and Interface Accounts:Salary Clearing and Control:Tax Control:Withdrawals"," _"," _"," _ "," _ "," _ "," _ ",1200,"Finance and administration",1213,"Supply Chain Management","_"," _"," _","O","IL",380,"Current liabilities / Trade and other payables from exchange transactions","_","_"," _ "," _ ","_","_",200,"Cash Payments by Type / Employee related costs",390,"Employee related costs"," _ "," _ "," _ "," _ ",null,361,"Trade and other payables / Trade and other payables from exchange transactions",361,"Trade and other payables / Trade and other payables from exchange transactions",null,null,null," _ "," _ "," _ "," _ "," _ "," _ "," _ "," _ "," _ "," _ "," _ ",null," _ "," _ "," _ "," _ "," _ ",null," _ "," _ "," _ "," _ ",null,3,38,"Supply Chain Management","Finance & Administration",null,null,0,0,0,0,0,772726,810589,848687,0,"_","_","_","_"]
["O0001/IL53714/F0041/X125/R0229/001/CONTRA","O0001/IL53714/F0041/X125/R0229/001/CONTRA",122263,0,"Liabilities:Current Liabilities:Trade and Other Payable Exchange Transactions:Bonus:Deposits"," _"," _"," _ "," _ "," _ "," _ ",2200,"Sport and recreation",2205,"Sports Grounds and Stadiums","_"," _"," _","O","IL",380,"Current liabilities / Trade and other payables from exchange transactions","_","_"," _ "," _ ","_","_"," _ "," _ "," _ "," _ "," _ "," _ "," _ "," _ ",null,361,"Trade and other payables / Trade and other payables from exchange transactions",361,"Trade and other payables / Trade and other payables from exchange transactions",null,null,null," _ "," _ "," _ "," _ "," _ "," _ "," _ "," _ "," _ "," _ "," _ ",null," _ "," _ "," _ "," _ "," _ ",null," _ "," _ "," _ "," _ ",null,10,102,"Sports Grounds and Stadiums","Sports & Recreation",null,null,0,0,0,0,0,-344821,-361717,-378718,0,"_","_","_","_"]
["O0001/IL53714/F0041/X055/R0229/001/CONTRA","O0001/IL53714/F0041/X055/R0229/001/CONTRA",120770,0,"Liabilities:Current Liabilities:Trade and Other Payable Exchange Transactions:Bonus:Deposits"," _"," _"," _ "," _ "," _ "," _ ",1200,"Finance and administration",1210,"Property Services","_"," _"," _","O","IL",380,"Current liabilities / Trade and other payables from exchange transactions","_","_"," _ "," _ ","_","_"," _ "," _ "," _ "," _ "," _ "," _ "," _ "," _ ",null,361,"Trade and other payables / Trade and other payables from exchange transactions",361,"Trade and other payables / Trade and other payables from exchange transactions",null,null,null," _ "," _ "," _ "," _ "," _ "," _ "," _ "," _ "," _ "," _ "," _ ",null," _ "," _ "," _ "," _ "," _ ",null," _ "," _ "," _ "," _ ",null,3,36,"Property Services","Finance & Administration",null,null,0,0,0,0,0,-584938,-613600,-642440,0,"_","_","_","_"]
["O0001/IE00835/F1177/X052/R0229/001/6105","O0001/IE00835/F1177/X052/R0229/001/6105",30621,1042,"Expenditure:Contracted Services:Consultants and Professional Services:Business and Advisory:Business and Financial Management",3800,"Expenditure / Contracted services",2702,"Expenditure / Contracted services",2702,"Contracted Services ",1200,"Finance and administration",1207,"Information Technology","_"," _"," _","O","IE"," _ "," _ "," _ "," _ "," _ "," _ ","_","_"," _ "," _ "," _ "," _ "," _ "," _ "," _ "," _ ",null," _ "," _ "," _ "," _ ",null,null,null," _ "," _ "," _ "," _ "," _ "," _ "," _ "," _ "," _ "," _ "," _ ",null," _ "," _ "," _ "," _ "," _ ",null," _ "," _ "," _ "," _ ",null,14,143,"Information Technology","Finance & Administration 2",null,null,422972,495301,550000,535300,610000,550000,560000,570000,485432,"_","_","_","_"]
["O0001/IE00835/F2496/X052/R0229/001/6105","O0001/IE00835/F2496/X052/R0229/001/6105",31138,1047,"Expenditure:Contracted Services:Consultants and Professional Services:Business and Advisory:Business and Financial Management",3800,"Expenditure / Contracted services",2702,"Expenditure / Contracted services",2702,"Contracted Services ",1200,"Finance and administration",1207,"Information Technology","_"," _"," _","O","IE"," _ "," _ "," _ "," _ "," _ "," _ ","_","_"," _ "," _ "," _ "," _ "," _ "," _ "," _ "," _ ",null," _ "," _ "," _ "," _ ",null,null,null," _ "," _ "," _ "," _ "," _ "," _ "," _ "," _ "," _ "," _ "," _ ",null," _ "," _ "," _ "," _ "," _ ",null," _ "," _ "," _ "," _ ",null,14,143,"Information Technology","Finance & Administration 2",null,null,0,-48600,0,0,0,0,0,0,0,"_","_","_","_"]
["O0001/IE00036/F0041/X019/R0229/001/6353","O0001/IE00036/F0041/X019/R0229/001/6353",30791,1606,"Expenditure:Employee Related Cost:Municipal Staff:Salaries, Wages and Allowances:Basic Salary and Wages",3100,"Expenditure / Employee related costs",2001,"Expenditure / Employee related costs",2001,"Employee related costs / Basic Salaries and Wages",2100,"Community and social services",2109,"Disaster Management","_"," _"," _","O","IE"," _ "," _ "," _ "," _ "," _ "," _ ","_","_"," _ "," _ "," _ "," _ "," _ "," _ "," _ "," _ ",null," _ "," _ "," _ "," _ ",null,null,null," _ "," _ "," _ "," _ "," _ "," _ "," _ "," _ "," _ "," _ "," _ ",null," _ "," _ "," _ "," _ "," _ ",null," _ "," _ "," _ "," _ ","MS",2,25,"Disaster Management","Community and Social Services",null,null,405583,387371,364585,988717,467920,1041119,1092134,1143465,318431,"_","_","_","_"]
["O0001/IE00036/F0041/X051/R0229/001/6104","O0001/IE00036/F0041/X051/R0229/001/6104",69062,4321,"Expenditure:Employee Related Cost:Municipal Staff:Salaries, Wages and Allowances:Basic Salary and Wages",3100,"Expenditure / Employee related costs",2001,"Expenditure / Employee related costs",2001,"Employee related costs / Basic Salaries and Wages",1200,"Finance and administration",1206,"Human Resources","_"," _"," _","O","IE"," _ "," _ "," _ "," _ "," _ "," _ ","_","_"," _ "," _ "," _ "," _ "," _ "," _ "," _ "," _ ",null," _ "," _ "," _ "," _ ",null,null,null," _ "," _ "," _ "," _ "," _ "," _ "," _ "," _ "," _ "," _ "," _ ",null," _ "," _ "," _ "," _ "," _ ",null," _ "," _ "," _ "," _ ","MS",3,34,"Human Resources","Finance & Administration",null,null,493376,472209,598785,1563464,962773,1223442,1283391,1343710,384513,"_","_","_","_"]
["O0001/IE00036/F0041/X046/R0229/001/6109","O0001/IE00036/F0041/X046/R0229/001/6109",30667,1105,"Expenditure:Employee Related Cost:Municipal Staff:Salaries, Wages and Allowances:Basic Salary and Wages",3100,"Expenditure / Employee related costs",2001,"Expenditure / Employee related costs",2001,"Employee related costs / Basic Salaries and Wages",1200,"Finance and administration",1201,"Administrative and Corporate Support","_"," _"," _","O","IE"," _ "," _ "," _ "," _ "," _ "," _ ","_","_"," _ "," _ "," _ "," _ "," _ "," _ "," _ "," _ ",null," _ "," _ "," _ "," _ ",null,null,null," _ "," _ "," _ "," _ "," _ "," _ "," _ "," _ "," _ "," _ "," _ ",null," _ "," _ "," _ "," _ "," _ ",null," _ "," _ "," _ "," _ ","MS",14,142,"Administrative and Corporate Support","Finance & Administration 2",null,null,4797352,4622017,4621425,8243761,5021029,7239467,7594200,7951128,2939555,"_","_","_","_"]
["O0001/IE00062/F0041/X049/R0229/001/6117","O0001/IE00062/F0041/X049/R0229/001/6117",30074,1228,"Expenditure:Operational Cost:Travel and Subsistence:Domestic:Food and Beverage (Served)",4100,"Expenditure / Operational costs",2904,"Expenditure / Operational costs",2904,"Operational Costs ",1200,"Finance and administration",1204,"Finance","_"," _"," _","O","IE"," _ "," _ "," _ "," _ "," _ "," _ ","_","_"," _ "," _ "," _ "," _ "," _ "," _ "," _ "," _ ",null," _ "," _ "," _ "," _ ",null,null,null," _ "," _ "," _ "," _ "," _ "," _ "," _ "," _ "," _ "," _ "," _ ",null," _ "," _ "," _ "," _ "," _ ",null," _ "," _ "," _ "," _ ",null,3,32,"Finance","Finance & Administration",null,null,5320,1722,4052,15000,15000,20000,23500,25500,5500,"_","_","_","_"]
["O0001/IE00062/F0041/X047/R0229/001/6114","O0001/IE00062/F0041/X047/R0229/001/6114",30405,1185,"Expenditure:Operational Cost:Travel and Subsistence:Domestic:Food and Beverage (Served)",4100,"Expenditure / Operational costs",2904,"Expenditure / Operational costs",2904,"Operational Costs ",1200,"Finance and administration",1202,"Asset Management","_"," _"," _","O","IE"," _ "," _ "," _ "," _ "," _ "," _ ","_","_"," _ "," _ "," _ "," _ "," _ "," _ "," _ "," _ ",null," _ "," _ "," _ "," _ ",null,null,null," _ "," _ "," _ "," _ "," _ "," _ "," _ "," _ "," _ "," _ "," _ ",null," _ "," _ "," _ "," _ "," _ ",null," _ "," _ "," _ "," _ ",null,3,33,"Asset Management","Finance & Administration",null,null,3522,1235,3050,15000,15000,20000,20000,20000,8391,"_","_","_","_"]
["O0001/IE00062/F0041/X098/R0229/001/6053","O0001/IE00062/F0041/X098/R0229/001/6053",79683,5574,"Expenditure:Operational Cost:Travel and Subsistence:Domestic:Food and Beverage (Served)",4100,"Expenditure / Operational costs",2904,"Expenditure / Operational costs",2904,"Operational Costs ",3100,"Planning and development",3105,"Planning","_"," _"," _","O","IE"," _ "," _ "," _ "," _ "," _ "," _ ","_","_"," _ "," _ "," _ "," _ "," _ "," _ "," _ "," _ ",null," _ "," _ "," _ "," _ ",null,null,null," _ "," _ "," _ "," _ "," _ "," _ "," _ "," _ "," _ "," _ "," _ ",null," _ "," _ "," _ "," _ "," _ ",null," _ "," _ "," _ "," _ ",null,4,43,"Economic Development/Planning","Planning and Development",null,null,0,0,0,0,0,0,0,0,0,"_","_","_","_"]
["O0001/IE00062/F0041/X055/R0229/001/6107","O0001/IE00062/F0041/X055/R0229/001/6107",30113,1065,"Expenditure:Operational Cost:Travel and Subsistence:Domestic:Food and Beverage (Served)",4100,"Expenditure / Operational costs",2904,"Expenditure / Operational costs",2904,"Operational Costs ",1200,"Finance and administration",1210,"Property Services","_"," _"," _","O","IE"," _ "," _ "," _ "," _ "," _ "," _ ","_","_"," _ "," _ "," _ "," _ "," _ "," _ "," _ "," _ ",null," _ "," _ "," _ "," _ ",null,null,null," _ "," _ "," _ "," _ "," _ "," _ "," _ "," _ "," _ "," _ "," _ ",null," _ "," _ "," _ "," _ "," _ ",null," _ "," _ "," _ "," _ ",null,3,36,"Property Services","Finance & Administration",null,null,20757,42877,3340,20000,30000,30000,32000,33000,18422,"_","_","_","_"]
["O0001/IE01532/F0041/X055/R0229/001/6107","O0001/IE01532/F0041/X055/R0229/001/6107",120247,10131,"Expenditure:Employee Related Cost:Municipal Staff:Salaries, Wages and Allowances:Allowances:Service Related Benefits:Lifeguard/Duty Squads",3100,"Expenditure / Employee related costs",2009,"Expenditure / Employee related costs",2009,"Employee related costs / Other benefits and allowances",1200,"Finance and administration",1210,"Property Services","_"," _"," _","O","IE"," _ "," _ "," _ "," _ "," _ "," _ ","_","_"," _ "," _ "," _ "," _ "," _ "," _ "," _ "," _ ",null," _ "," _ "," _ "," _ ",null,null,null," _ "," _ "," _ "," _ "," _ "," _ "," _ "," _ "," _ "," _ "," _ ",null," _ "," _ "," _ "," _ "," _ ",null," _ "," _ "," _ "," _ ","MS",3,36,"Property Services","Finance & Administration",null,null,20000,0,0,18000,9441,19883,20857,21837,0,"_","_","_","_"]
["O0001/IL53987/F0041/X098/R0229/001/CONTRA","O0001/IL53987/F0041/X098/R0229/001/CONTRA",121119,0,"Liabilities:Current Liabilities:Trade and Other Payable Exchange Transactions:Control, Clearing and Interface Accounts:Salary Clearing and Control:Salary Control - Employee Related Costs:Deposits"," _"," _"," _ "," _ "," _ "," _ ",3100,"Planning and development",3105,"Planning","_"," _"," _","O","IL",380,"Current liabilities / Trade and other payables from exchange transactions","_","_"," _ "," _ ","_","_"," _ "," _ "," _ "," _ "," _ "," _ "," _ "," _ ",null,361,"Trade and other payables / Trade and other payables from exchange transactions",361,"Trade and other payables / Trade and other payables from exchange transactions",null,null,null," _ "," _ "," _ "," _ "," _ "," _ "," _ "," _ "," _ "," _ "," _ ",null," _ "," _ "," _ "," _ "," _ ",null," _ "," _ "," _ "," _ ",null,4,43,"Economic Development/Planning","Planning and Development",null,null,0,0,0,0,0,-320901,-336625,-352447,0,"_","_","_","_"]
["O0001/IL53987/F0041/X046/R0229/001/CONTRA","O0001/IL53987/F0041/X046/R0229/001/CONTRA",121954,0,"Liabilities:Current Liabilities:Trade and Other Payable Exchange Transactions:Control, Clearing and Interface Accounts:Salary Clearing and Control:Salary Control - Employee Related Costs:Deposits"," _"," _"," _ "," _ "," _ "," _ ",1200,"Finance and administration",1201,"Administrative and Corporate Support","_"," _"," _","O","IL",380,"Current liabilities / Trade and other payables from exchange transactions","_","_"," _ "," _ ","_","_"," _ "," _ "," _ "," _ "," _ "," _ "," _ "," _ ",null,361,"Trade and other payables / Trade and other payables from exchange transactions",361,"Trade and other payables / Trade and other payables from exchange transactions",null,null,null," _ "," _ "," _ "," _ "," _ "," _ "," _ "," _ "," _ "," _ "," _ ",null," _ "," _ "," _ "," _ "," _ ",null," _ "," _ "," _ "," _ ",null,14,142,"Administrative and Corporate Support","Finance & Administration 2",null,null,0,0,0,0,0,-8250560,-8654837,-9061614,0,"_","_","_","_"]
["O0001/IE00583/F0041/X053/R0229/001/6108","O0001/IE00583/F0041/X053/R0229/001/6108",30138,1092,"Expenditure:Operational Cost:Printing, Publications and Books",4100,"Expenditure / Operational costs",2904,"Expenditure / Operational costs",2904,"Operational Costs ",1200,"Finance and administration",1208,"Legal Services","_"," _"," _","O","IE"," _ "," _ "," _ "," _ "," _ "," _ ","_","_"," _ "," _ "," _ "," _ "," _ "," _ "," _ "," _ ",null," _ "," _ "," _ "," _ ",null,null,null," _ "," _ "," _ "," _ "," _ "," _ "," _ "," _ "," _ "," _ "," _ ",null," _ "," _ "," _ "," _ "," _ ",null," _ "," _ "," _ "," _ ",null,3,35,"Legal Services","Finance & Administration",null,null,87330,12328,22848,60000,60000,120000,130000,140000,49326,"_","_","_","_"]
["O0001/IE06076/F0041/X006/R0229/001/6053","O0001/IE06076/F0041/X006/R0229/001/6053",31176,1472,"Expenditure:Employee Related Cost:Senior Management:Designation:Salaries and Allowances:Basic Salary",3100,"Expenditure / Employee related costs",2001,"Expenditure / Employee related costs",2001,"Employee related costs / Basic Salaries and Wages",2100,"Community and social services",2106,"Community Halls and Facilities","_"," _"," _","O","IE"," _ "," _ "," _ "," _ "," _ "," _ ","_","_"," _ "," _ "," _ "," _ "," _ "," _ "," _ "," _ ",null," _ "," _ "," _ "," _ ",null,null,null," _ "," _ "," _ "," _ "," _ "," _ "," _ "," _ "," _ "," _ "," _ ",null," _ "," _ "," _ "," _ "," _ ",null," _ "," _ "," _ "," _ ","SM",2,22,"Community Halls and Facilities","Community and Social Services",null,null,0,45684,771107,712660,643100,812621,852440,892504,464152,"_","_","_","_"]
["O0001/IE00830/F2496/X049/R0229/001/6117","O0001/IE00830/F2496/X049/R0229/001/6117",31141,1235,"Expenditure:Contracted Services:Consultants and Professional Services:Business and Advisory:Accounting and Auditing",3800,"Expenditure / Contracted services",2702,"Expenditure / Contracted services",2702,"Contracted Services ",1200,"Finance and administration",1204,"Finance","_"," _"," _","O","IE"," _ "," _ "," _ "," _ "," _ "," _ ","_","_"," _ "," _ "," _ "," _ "," _ "," _ "," _ "," _ ",null," _ "," _ "," _ "," _ ",null,null,null," _ "," _ "," _ "," _ "," _ "," _ "," _ "," _ "," _ "," _ "," _ ",null," _ "," _ "," _ "," _ "," _ ",null," _ "," _ "," _ "," _ ",null,3,32,"Finance","Finance & Administration",null,null,0,0,0,0,0,0,0,0,0,"_","_","_","_"]
["O0001/IL53997/F1177/X081/R0229/001/CONTRA","O0001/IL53997/F1177/X081/R0229/001/CONTRA",120757,0,"Liabilities:Current Liabilities:Trade and Other Payable Exchange Transactions:Control, Clearing and Interface Accounts:Salary Clearing and Control:Skills Control:Deposits"," _"," _"," _ "," _ "," _ "," _ ",1300,"Internal audit",1301,"Governance Function","_"," _"," _","O","IL",380,"Current liabilities / Trade and other payables from exchange transactions","_","_"," _ "," _ ","_","_"," _ "," _ "," _ "," _ "," _ "," _ "," _ "," _ ",null,361,"Trade and other payables / Trade and other payables from exchange transactions",361,"Trade and other payables / Trade and other payables from exchange transactions",null,null,null," _ "," _ "," _ "," _ "," _ "," _ "," _ "," _ "," _ "," _ "," _ ",null," _ "," _ "," _ "," _ "," _ ",null," _ "," _ "," _ "," _ ",null,6,61,"Governance Function","Internal Audit",null,null,0,0,0,0,0,0,0,0,0,"_","_","_","_"]
["O0001/IL53997/F0041/X045/R0229/001/CONTRA","O0001/IL53997/F0041/X045/R0229/001/CONTRA",122119,0,"Liabilities:Current Liabilities:Trade and Other Payable Exchange Transactions:Control, Clearing and Interface Accounts:Salary Clearing and Control:Skills Control:Deposits"," _"," _"," _ "," _ "," _ "," _ ",1100,"Executive and council",1120,"Municipal Manager, Town Secretary and Chief Executive","_"," _"," _","O","IL",380,"Current liabilities / Trade and other payables from exchange transactions","_","_"," _ "," _ ","_","_"," _ "," _ "," _ "," _ "," _ "," _ "," _ "," _ ",null,361,"Trade and other payables / Trade and other payables from exchange transactions",361,"Trade and other payables / Trade and other payables from exchange transactions",null,null,null," _ "," _ "," _ "," _ "," _ "," _ "," _ "," _ "," _ "," _ "," _ ",null," _ "," _ "," _ "," _ "," _ ",null," _ "," _ "," _ "," _ ",null,5,51,"Municipal Manager, Town Secretary and Chief Executive","Executive & Council",null,null,0,0,0,0,0,-12037,-12627,-13220,0,"_","_","_","_"]
["O0001/IL53997/F0041/X132/R0229/001/CONTRA","O0001/IL53997/F0041/X132/R0229/001/CONTRA",122207,0,"Liabilities:Current Liabilities:Trade and Other Payable Exchange Transactions:Control, Clearing and Interface Accounts:Salary Clearing and Control:Skills Control:Deposits"," _"," _"," _ "," _ "," _ "," _ ",4400,"Waste management",4403,"Solid Waste Removal","_"," _"," _","O","IL",380,"Current liabilities / Trade and other payables from exchange transactions","_","_"," _ "," _ ","_","_"," _ "," _ "," _ "," _ "," _ "," _ "," _ "," _ ",null,361,"Trade and other payables / Trade and other payables from exchange transactions",361,"Trade and other payables / Trade and other payables from exchange transactions",null,null,null," _ "," _ "," _ "," _ "," _ "," _ "," _ "," _ "," _ "," _ "," _ ",null," _ "," _ "," _ "," _ "," _ ",null," _ "," _ "," _ "," _ ",null,9,93,"Solid Waste Removal","Waste Management",null,null,0,0,0,0,0,-73913,-77535,-81179,0,"_","_","_","_"]
["O0001/IE00848/F0045/X101/R0229/001/6155","O0001/IE00848/F0045/X101/R0229/001/6155",61501,4078,"Expenditure:Contracted Services:Consultants and Professional Services:Business and Advisory:Valuer and Assessors",3800,"Expenditure / Contracted services",2702,"Expenditure / Contracted services",2702,"Contracted Services ",3100,"Planning and development",3107,"Town Planning, Building Regulations and Enforcement, and City Engineer","_"," _"," _","O","IE"," _ "," _ "," _ "," _ "," _ "," _ ","_","_"," _ "," _ "," _ "," _ "," _ "," _ "," _ "," _ ",null," _ "," _ "," _ "," _ ",null,null,null," _ "," _ "," _ "," _ "," _ "," _ "," _ "," _ "," _ "," _ "," _ ",null," _ "," _ "," _ "," _ "," _ ",null," _ "," _ "," _ "," _ ",null,4,41,"Town Planning, Building Regulations and Enforcement, and City Engineer","Planning and Development",null,null,0,0,0,0,0,0,0,0,0,"_","_","_","_"]
["O0001/IL53856/F0041/X047/R0229/001/CONTRA","O0001/IL53856/F0041/X047/R0229/001/CONTRA",121435,0,"Liabilities:Current Liabilities:Trade and Other Payable Exchange Transactions:Overtime:Deposits"," _"," _"," _ "," _ "," _ "," _ ",1200,"Finance and administration",1202,"Asset Management","_"," _"," _","O","IL",380,"Current liabilities / Trade and other payables from exchange transactions","_","_"," _ "," _ ","_","_"," _ "," _ "," _ "," _ "," _ "," _ "," _ "," _ ",null,361,"Trade and other payables / Trade and other payables from exchange transactions",361,"Trade and other payables / Trade and other payables from exchange transactions",null,null,null," _ "," _ "," _ "," _ "," _ "," _ "," _ "," _ "," _ "," _ "," _ ",null," _ "," _ "," _ "," _ "," _ ",null," _ "," _ "," _ "," _ ",null,3,33,"Asset Management","Finance & Administration",null,null,0,0,0,0,0,-65000,-70000,-75000,0,"_","_","_","_"]
["O0001/IL53856/F0041/X058/R0229/001/CONTRA","O0001/IL53856/F0041/X058/R0229/001/CONTRA",120849,0,"Liabilities:Current Liabilities:Trade and Other Payable Exchange Transactions:Overtime:Deposits"," _"," _"," _ "," _ "," _ "," _ ",1200,"Finance and administration",1213,"Supply Chain Management","_"," _"," _","O","IL",380,"Current liabilities / Trade and other payables from exchange transactions","_","_"," _ "," _ ","_","_"," _ "," _ "," _ "," _ "," _ "," _ "," _ "," _ ",null,361,"Trade and other payables / Trade and other payables from exchange transactions",361,"Trade and other payables / Trade and other payables from exchange transactions",null,null,null," _ "," _ "," _ "," _ "," _ "," _ "," _ "," _ "," _ "," _ "," _ ",null," _ "," _ "," _ "," _ "," _ ",null," _ "," _ "," _ "," _ ",null,3,38,"Supply Chain Management","Finance & Administration",null,null,0,0,0,0,0,-100000,-110000,-120000,0,"_","_","_","_"]
["O0001/IL53856/F0041/X115/R0229/001/CONTRA","O0001/IL53856/F0041/X115/R0229/001/CONTRA",122077,0,"Liabilities:Current Liabilities:Trade and Other Payable Exchange Transactions:Overtime:Deposits"," _"," _"," _ "," _ "," _ "," _ ",3200,"Road transport",3203,"Public Transport","_"," _"," _","O","IL",380,"Current liabilities / Trade and other payables from exchange transactions","_","_"," _ "," _ ","_","_"," _ "," _ "," _ "," _ "," _ "," _ "," _ "," _ ",null,361,"Trade and other payables / Trade and other payables from exchange transactions",361,"Trade and other payables / Trade and other payables from exchange transactions",null,null,null," _ "," _ "," _ "," _ "," _ "," _ "," _ "," _ "," _ "," _ "," _ ",null," _ "," _ "," _ "," _ "," _ ",null," _ "," _ "," _ "," _ ",null,7,73,"Public Transport","Road Transport",null,null,0,0,0,0,0,-70000,-72000,-74000,0,"_","_","_","_"]
["O0001/IA02108/F0041/X047/R0229/001/CONTRA","O0001/IA02108/F0041/X047/R0229/001/CONTRA",120837,0,"Assets:Current Assets:Cash and Cash Equivalents:Cash at Bank:Bank Account:Specify (replace with account description):Withdrawals"," _"," _"," _ "," _ "," _ "," _ ",1200,"Finance and administration",1202,"Asset Management","_"," _"," _","O","IA",120,"Current assets / Cash and cash equivalents",120,"Cash and cash equivalents","0150W","CASH FLOW FROM OPERATING ACTIVITIES / Receipts / Transfers and Subsidies - Operational","0150W","CASH FLOW FROM OPERATING ACTIVITIES / Receipts / Transfers and Subsidies - Operational"," _ "," _ "," _ "," _ "," _ "," _ "," _ "," _ ",null," _ "," _ "," _ "," _ ",240,"Cash Receipts By Source / Transfers and Subsidies - Operational","W"," _ "," _ "," _ "," _ "," _ "," _ "," _ "," _ "," _ "," _ "," _ ",null," _ "," _ "," _ "," _ "," _ ",null," _ "," _ "," _ "," _ ",null,3,33,"Asset Management","Finance & Administration",null,null,0,0,0,0,0,-5542573,-5786800,-6029449,0,"_","_","_","_"]
["O0001/IA10370/F1177/X049/R0229/001/BSB","O0001/IA10370/F1177/X049/R0229/001/BSB",120510,11265,"Assets:Current Assets:VAT Receivable:Input Tax Capital:Recognised"," _"," _"," _ "," _ "," _ "," _ ",1200,"Finance and administration",1204,"Finance","_"," _"," _","O","IA",170,"Current assets / VAT",170,"VAT"," _ "," _ ","_","_"," _ "," _ "," _ "," _ "," _ "," _ "," _ "," _ ",null," _ "," _ "," _ "," _ ",null,null,null," _ "," _ "," _ "," _ "," _ "," _ "," _ "," _ "," _ "," _ "," _ ",null," _ "," _ "," _ "," _ "," _ ",null," _ "," _ "," _ "," _ ",null,3,32,"Finance","Finance & Administration",null,null,0,0,0,0,0,0,0,0,0,"_","_","_","_"]
["O0001/IA10370/F9412/X116/R0229/001/BSB","O0001/IA10370/F9412/X116/R0229/001/BSB",120507,11401,"Assets:Current Assets:VAT Receivable:Input Tax Capital:Recognised"," _"," _"," _ "," _ "," _ "," _ ",3200,"Road transport",3205,"Roads","_",2010,"Funded by National Government","O","IA",170,"Current assets / VAT",170,"VAT"," _ "," _ ","_","_"," _ "," _ "," _ "," _ "," _ "," _ "," _ "," _ ",null," _ "," _ "," _ "," _ ",null,null,null," _ "," _ "," _ "," _ "," _ "," _ "," _ "," _ "," _ "," _ "," _ ",null," _ "," _ "," _ "," _ "," _ ",null," _ "," _ "," _ "," _ ",null,7,74,"Roads","Road Transport",null,null,0,0,0,0,0,0,0,0,0,"_","_","_","_"]
["O0001/IA02108/F1177/X052/R0229/001/CONTRA","O0001/IA02108/F1177/X052/R0229/001/CONTRA",121526,0,"Assets:Current Assets:Cash and Cash Equivalents:Cash at Bank:Bank Account:Specify (replace with account description):Withdrawals"," _"," _"," _ "," _ "," _ "," _ ",1200,"Finance and administration",1207,"Information Technology","_"," _"," _","O","IA",120,"Current assets / Cash and cash equivalents",120,"Cash and cash equivalents","0150W","CASH FLOW FROM OPERATING ACTIVITIES / Receipts / Transfers and Subsidies - Operational","0150W","CASH FLOW FROM OPERATING ACTIVITIES / Receipts / Transfers and Subsidies - Operational"," _ "," _ "," _ "," _ "," _ "," _ "," _ "," _ ",null," _ "," _ "," _ "," _ ",240,"Cash Receipts By Source / Transfers and Subsidies - Operational","W"," _ "," _ "," _ "," _ "," _ "," _ "," _ "," _ "," _ "," _ "," _ ",null," _ "," _ "," _ "," _ "," _ ",null," _ "," _ "," _ "," _ ",null,14,143,"Information Technology","Finance & Administration 2",null,null,0,0,0,0,0,-632500,-644000,-655500,0,"_","_","_","_"]
["O0001/IA02108/F0041/X051/R0231/001/CONTRA","O0001/IA02108/F0041/X051/R0231/001/CONTRA",121539,0,"Assets:Current Assets:Cash and Cash Equivalents:Cash at Bank:Bank Account:Specify (replace with account description):Withdrawals"," _"," _"," _ "," _ "," _ "," _ ",1200,"Finance and administration",1206,"Human Resources","_"," _"," _","O","IA",120,"Current assets / Cash and cash equivalents",120,"Cash and cash equivalents","0150W","CASH FLOW FROM OPERATING ACTIVITIES / Receipts / Transfers and Subsidies - Operational","0150W","CASH FLOW FROM OPERATING ACTIVITIES / Receipts / Transfers and Subsidies - Operational"," _ "," _ "," _ "," _ "," _ "," _ "," _ "," _ ",null," _ "," _ "," _ "," _ ",240,"Cash Receipts By Source / Transfers and Subsidies - Operational","W"," _ "," _ "," _ "," _ "," _ "," _ "," _ "," _ "," _ "," _ "," _ ",null," _ "," _ "," _ "," _ "," _ ",null," _ "," _ "," _ "," _ ",null,3,34,"Human Resources","Finance & Administration",null,null,0,0,0,0,0,0,0,0,0,"_","_","_","_"]
["O0001/IA02108/F0041/X058/R0229/001/CONTRA","O0001/IA02108/F0041/X058/R0229/001/CONTRA",120841,0,"Assets:Current Assets:Cash and Cash Equivalents:Cash at Bank:Bank Account:Specify (replace with account description):Withdrawals"," _"," _"," _ "," _ "," _ "," _ ",1200,"Finance and administration",1213,"Supply Chain Management","_"," _"," _","O","IA",120,"Current assets / Cash and cash equivalents",120,"Cash and cash equivalents","0150W","CASH FLOW FROM OPERATING ACTIVITIES / Receipts / Transfers and Subsidies - Operational","0150W","CASH FLOW FROM OPERATING ACTIVITIES / Receipts / Transfers and Subsidies - Operational"," _ "," _ "," _ "," _ "," _ "," _ "," _ "," _ ",null," _ "," _ "," _ "," _ ",240,"Cash Receipts By Source / Transfers and Subsidies - Operational","W"," _ "," _ "," _ "," _ "," _ "," _ "," _ "," _ "," _ "," _ "," _ ",null," _ "," _ "," _ "," _ "," _ ",null," _ "," _ "," _ "," _ ",null,3,38,"Supply Chain Management","Finance & Administration",null,null,0,0,0,0,0,-9389087,-9891444,-10378753,0,"_","_","_","_"]
["O0001/IA02108/F0041/X132/R0229/001/CONTRA","O0001/IA02108/F0041/X132/R0229/001/CONTRA",122191,0,"Assets:Current Assets:Cash and Cash Equivalents:Cash at Bank:Bank Account:Specify (replace with account description):Withdrawals"," _"," _"," _ "," _ "," _ "," _ ",4400,"Waste management",4403,"Solid Waste Removal","_"," _"," _","O","IA",120,"Current assets / Cash and cash equivalents",120,"Cash and cash equivalents","0150W","CASH FLOW FROM OPERATING ACTIVITIES / Receipts / Transfers and Subsidies - Operational","0150W","CASH FLOW FROM OPERATING ACTIVITIES / Receipts / Transfers and Subsidies - Operational"," _ "," _ "," _ "," _ "," _ "," _ "," _ "," _ ",null," _ "," _ "," _ "," _ ",240,"Cash Receipts By Source / Transfers and Subsidies - Operational","W"," _ "," _ "," _ "," _ "," _ "," _ "," _ "," _ "," _ "," _ "," _ ",null," _ "," _ "," _ "," _ "," _ ",null," _ "," _ "," _ "," _ ",null,9,93,"Solid Waste Removal","Waste Management",null,null,0,0,0,0,0,-11926102,-12248383,-12814881,0,"_","_","_","_"]
["O0001/IA02108/F0041/X003/R0229/001/CONTRA","O0001/IA02108/F0041/X003/R0229/001/CONTRA",122009,0,"Assets:Current Assets:Cash and Cash Equivalents:Cash at Bank:Bank Account:Specify (replace with account description):Withdrawals"," _"," _"," _ "," _ "," _ "," _ ",2100,"Community and social services",2103,"Animal Care and Diseases","_"," _"," _","O","IA",120,"Current assets / Cash and cash equivalents",120,"Cash and cash equivalents","0150W","CASH FLOW FROM OPERATING ACTIVITIES / Receipts / Transfers and Subsidies - Operational","0150W","CASH FLOW FROM OPERATING ACTIVITIES / Receipts / Transfers and Subsidies - Operational"," _ "," _ "," _ "," _ "," _ "," _ "," _ "," _ ",null," _ "," _ "," _ "," _ ",240,"Cash Receipts By Source / Transfers and Subsidies - Operational","W"," _ "," _ "," _ "," _ "," _ "," _ "," _ "," _ "," _ "," _ "," _ ",null," _ "," _ "," _ "," _ "," _ ",null," _ "," _ "," _ "," _ ",null,2,21,"Animal Care and Diseases","Community and Social Services",null,null,0,0,0,0,0,-531047,-556670,-582449,0,"_","_","_","_"]
["O0001/IL65531/F2496/X116/R0229/001/CONTRA","O0001/IL65531/F2496/X116/R0229/001/CONTRA",121480,0,"Liabilities:Current Liabilities:Trade and Other Payable Exchange Transactions:Payables and Accruals : Contractors:Withdrawals"," _"," _"," _ "," _ "," _ "," _ ",3200,"Road transport",3205,"Roads","_"," _"," _","O","IL",380,"Current liabilities / Trade and other payables from exchange transactions","_","_"," _ "," _ ","_","_",200,"Cash Payments by Type / Contracted Services",450,"Cash Payments by Type / Contracted Services"," _ "," _ "," _ "," _ ",null,361,"Trade and other payables / Trade and other payables from exchange transactions",361,"Trade and other payables / Trade and other payables from exchange transactions",null,null,null," _ "," _ "," _ "," _ "," _ "," _ "," _ "," _ "," _ "," _ "," _ ",null," _ "," _ "," _ "," _ "," _ ",null," _ "," _ "," _ "," _ ",null,7,74,"Roads","Road Transport",null,null,0,0,0,0,0,0,0,0,0,"_","_","_","_"]
["O0001/IL65531/F0041/X053/R0229/001/CONTRA","O0001/IL65531/F0041/X053/R0229/001/CONTRA",120832,0,"Liabilities:Current Liabilities:Trade and Other Payable Exchange Transactions:Payables and Accruals : Contractors:Withdrawals"," _"," _"," _ "," _ "," _ "," _ ",1200,"Finance and administration",1208,"Legal Services","_"," _"," _","O","IL",380,"Current liabilities / Trade and other payables from exchange transactions","_","_"," _ "," _ ","_","_",200,"Cash Payments by Type / Contracted Services",450,"Cash Payments by Type / Contracted Services"," _ "," _ "," _ "," _ ",null,361,"Trade and other payables / Trade and other payables from exchange transactions",361,"Trade and other payables / Trade and other payables from exchange transactions",null,null,null," _ "," _ "," _ "," _ "," _ "," _ "," _ "," _ "," _ "," _ "," _ ",null," _ "," _ "," _ "," _ "," _ ",null," _ "," _ "," _ "," _ ",null,3,35,"Legal Services","Finance & Administration",null,null,0,0,0,0,0,11500000,12650000,13800000,0,"_","_","_","_"]
["O0001/IL65531/F0041/X046/R0229/001/CONTRA","O0001/IL65531/F0041/X046/R0229/001/CONTRA",121974,0,"Liabilities:Current Liabilities:Trade and Other Payable Exchange Transactions:Payables and Accruals : Contractors:Withdrawals"," _"," _"," _ "," _ "," _ "," _ ",1200,"Finance and administration",1201,"Administrative and Corporate Support","_"," _"," _","O","IL",380,"Current liabilities / Trade and other payables from exchange transactions","_","_"," _ "," _ ","_","_",200,"Cash Payments by Type / Contracted Services",450,"Cash Payments by Type / Contracted Services"," _ "," _ "," _ "," _ ",null,361,"Trade and other payables / Trade and other payables from exchange transactions",361,"Trade and other payables / Trade and other payables from exchange transactions",null,null,null," _ "," _ "," _ "," _ "," _ "," _ "," _ "," _ "," _ "," _ "," _ ",null," _ "," _ "," _ "," _ "," _ ",null," _ "," _ "," _ "," _ ",null,14,142,"Administrative and Corporate Support","Finance & Administration 2",null,null,0,0,0,0,0,644000,690000,747500,0,"_","_","_","_"]
["O0001/IL65531/F2496/X050/R0229/001/CONTRA","O0001/IL65531/F2496/X050/R0229/001/CONTRA",123752,0,"Liabilities:Current Liabilities:Trade and Other Payable Exchange Transactions:Payables and Accruals : Contractors:Withdrawals"," _"," _"," _ "," _ "," _ "," _ ","1200","Finance and administration","1205","Fleet Management","_"," _"," _","O","IL","0380","Current liabilities / Trade and other payables from exchange transactions","_","_"," _ "," _ ","_","_","0200","Cash Payments by Type / Contracted Services","0450","Cash Payments by Type / Contracted Services"," _ "," _ "," _ "," _ ",null,361,"Trade and other payables / Trade and other payables from exchange transactions",361,"Trade and other payables / Trade and other payables from exchange transactions","",null,null," _ "," _ "," _ "," _ "," _ "," _ "," _ "," _ "," _ "," _ "," _ ",null," _ "," _ "," _ "," _ "," _ ",null," _ "," _ "," _ "," _ ",null,3,31,"Fleet Management","Finance & Administration",null,null,0,0,0,0,0,19550065.149999976,{"$f":"CA2898*1.049","v":20508018.342349973},{"$f":"CB2898*1.047","v":21471895.204440419},0,"_","_","_","_"]
["O0001/IE01530/F0041/X055/R0229/001/6107","O0001/IE01530/F0041/X055/R0229/001/6107",69567,4457,"Expenditure:Employee Related Cost:Municipal Staff:Salaries, Wages and Allowances:Allowances:Service Related Benefits:Leave Pay",3100,"Expenditure / Employee related costs",2010,"Expenditure / Employee related costs",2010,"Employee related costs / Payments in lieu of leave",1200,"Finance and administration",1210,"Property Services","_"," _"," _","O","IE"," _ "," _ "," _ "," _ "," _ "," _ ","_","_"," _ "," _ "," _ "," _ "," _ "," _ "," _ "," _ ",null," _ "," _ "," _ "," _ ",null,null,null," _ "," _ "," _ "," _ "," _ "," _ "," _ "," _ "," _ "," _ "," _ ",null," _ "," _ "," _ "," _ "," _ ",null," _ "," _ "," _ "," _ ","MS",3,36,"Property Services","Finance & Administration",null,null,53922,0,110876,96050,55247,33806,0,0,55247,"_","_","_","_"]
["O0001/IE01530/F0041/X049/R0229/001/6115","O0001/IE01530/F0041/X049/R0229/001/6115",110195,9059,"Expenditure:Employee Related Cost:Municipal Staff:Salaries, Wages and Allowances:Allowances:Service Related Benefits:Leave Pay",3100,"Expenditure / Employee related costs",2010,"Expenditure / Employee related costs",2010,"Employee related costs / Payments in lieu of leave",1200,"Finance and administration",1204,"Finance","_"," _"," _","O","IE"," _ "," _ "," _ "," _ "," _ "," _ ","_","_"," _ "," _ "," _ "," _ "," _ "," _ "," _ "," _ ",null," _ "," _ "," _ "," _ ",null,null,null," _ "," _ "," _ "," _ "," _ "," _ "," _ "," _ "," _ "," _ "," _ ",null," _ "," _ "," _ "," _ "," _ ",null," _ "," _ "," _ "," _ ","MS",3,32,"Finance","Finance & Administration",null,null,0,0,0,45997,45997,48675,0,0,0,"_","_","_","_"]
["O0001/IL54005/F0041/X047/R0229/001/CONTRA","O0001/IL54005/F0041/X047/R0229/001/CONTRA",121446,0,"Liabilities:Current Liabilities:Trade and Other Payable Exchange Transactions:Control, Clearing and Interface Accounts:Salary Clearing and Control:Medical Aid Control:Withdrawals"," _"," _"," _ "," _ "," _ "," _ ",1200,"Finance and administration",1202,"Asset Management","_"," _"," _","O","IL",380,"Current liabilities / Trade and other payables from exchange transactions","_","_"," _ "," _ ","_","_",200,"Cash Payments by Type / Employee related costs",390,"Employee related costs"," _ "," _ "," _ "," _ ",null,361,"Trade and other payables / Trade and other payables from exchange transactions",361,"Trade and other payables / Trade and other payables from exchange transactions",null,null,null," _ "," _ "," _ "," _ "," _ "," _ "," _ "," _ "," _ "," _ "," _ ",null," _ "," _ "," _ "," _ "," _ ",null," _ "," _ "," _ "," _ ",null,3,33,"Asset Management","Finance & Administration",null,null,0,0,0,0,0,93614,98202,102817,0,"_","_","_","_"]
["O0001/IL54005/F0041/X132/R0229/001/CONTRA","O0001/IL54005/F0041/X132/R0229/001/CONTRA",122212,0,"Liabilities:Current Liabilities:Trade and Other Payable Exchange Transactions:Control, Clearing and Interface Accounts:Salary Clearing and Control:Medical Aid Control:Withdrawals"," _"," _"," _ "," _ "," _ "," _ ","4400","Waste management","4403","Solid Waste Removal","_"," _"," _","O","IL","0380","Current liabilities / Trade and other payables from exchange transactions","_","_"," _ "," _ ","_","_","0200","Cash Payments by Type / Employee related costs","0390","Employee related costs"," _ "," _ "," _ "," _ ",null,361,"Trade and other payables / Trade and other payables from exchange transactions",361,"Trade and other payables / Trade and other payables from exchange transactions","",null,null," _ "," _ "," _ "," _ "," _ "," _ "," _ "," _ "," _ "," _ "," _ ",null," _ "," _ "," _ "," _ "," _ ",null," _ "," _ "," _ "," _ ",null,9,93,"Solid Waste Removal","Waste Management",null,null,0,0,0,0,0,557158,584458,611928,0,"_","_","_","_"]
["O0001/IL54005/F0041/X051/R0229/001/CONTRA","O0001/IL54005/F0041/X051/R0229/001/CONTRA",120906,0,"Liabilities:Current Liabilities:Trade and Other Payable Exchange Transactions:Control, Clearing and Interface Accounts:Salary Clearing and Control:Medical Aid Control:Withdrawals"," _"," _"," _ "," _ "," _ "," _ ",1200,"Finance and administration",1206,"Human Resources","_"," _"," _","O","IL",380,"Current liabilities / Trade and other payables from exchange transactions","_","_"," _ "," _ ","_","_",200,"Cash Payments by Type / Employee related costs",390,"Employee related costs"," _ "," _ "," _ "," _ ",null,361,"Trade and other payables / Trade and other payables from exchange transactions",361,"Trade and other payables / Trade and other payables from exchange transactions",null,null,null," _ "," _ "," _ "," _ "," _ "," _ "," _ "," _ "," _ "," _ "," _ ",null," _ "," _ "," _ "," _ "," _ ",null," _ "," _ "," _ "," _ ",null,3,34,"Human Resources","Finance & Administration",null,null,0,0,0,0,0,553472,580591,607879,0,"_","_","_","_"]
["O0001/IE00045/F0041/X024/R0229/001/6251","O0001/IE00045/F0041/X024/R0229/001/6251",30197,1279,"Expenditure:Employee Related Cost:Municipal Staff:Social Contributions:Unemployment Insurance",3100,"Expenditure / Employee related costs",2002,"Expenditure / Employee related costs",2002,"Employee related costs / Pension, UIF and Group life Contributions",2100,"Community and social services",2114,"Libraries and Archives","_"," _"," _","O","IE"," _ "," _ "," _ "," _ "," _ "," _ ","_","_"," _ "," _ "," _ "," _ "," _ "," _ "," _ "," _ ",null," _ "," _ "," _ "," _ ",null,null,null," _ "," _ "," _ "," _ "," _ "," _ "," _ "," _ "," _ "," _ "," _ ",null," _ "," _ "," _ "," _ "," _ ",null," _ "," _ "," _ "," _ ","MS",2,23,"Libraries and Archives","Community and Social Services",null,null,0,297,1785,1497,1450,1497,1571,1645,0,"_","_","_","_"]
["O0001/IE00045/F1177/X056/R0229/001/6057","O0001/IE00045/F1177/X056/R0229/001/6057",31073,1347,"Expenditure:Employee Related Cost:Municipal Staff:Social Contributions:Unemployment Insurance",3100,"Expenditure / Employee related costs",2002,"Expenditure / Employee related costs",2002,"Employee related costs / Pension, UIF and Group life Contributions","1200","Finance and administration","1211","Risk Management","_"," _"," _","O","IE"," _ "," _ "," _ "," _ "," _ "," _ ","_","_"," _ "," _ "," _ "," _ "," _ "," _ "," _ "," _ ",null," _ "," _ "," _ "," _ ","",null,null," _ "," _ "," _ "," _ "," _ "," _ "," _ "," _ "," _ "," _ "," _ ",null," _ "," _ "," _ "," _ "," _ ",null," _ "," _ "," _ "," _ ","MS",3,37,"Risk Management","Finance & Administration",null,null,0,0,0,0,0,0,0,0,0,"_","_","_","_"]
["O0001/IE00045/F0041/X046/R0229/001/6109","O0001/IE00045/F0041/X046/R0229/001/6109",30659,1097,"Expenditure:Employee Related Cost:Municipal Staff:Social Contributions:Unemployment Insurance",3100,"Expenditure / Employee related costs",2002,"Expenditure / Employee related costs",2002,"Employee related costs / Pension, UIF and Group life Contributions","1200","Finance and administration","1201","Administrative and Corporate Support","_"," _"," _","O","IE"," _ "," _ "," _ "," _ "," _ "," _ ","_","_"," _ "," _ "," _ "," _ "," _ "," _ "," _ "," _ ",null," _ "," _ "," _ "," _ ","",null,null," _ "," _ "," _ "," _ "," _ "," _ "," _ "," _ "," _ "," _ "," _ ",null," _ "," _ "," _ "," _ "," _ ",null," _ "," _ "," _ "," _ ","MS",14,142,"Administrative and Corporate Support","Finance & Administration 2",null,null,42927,37412,38298,47890,45109,43423,45551,47692,28772,"_","_","_","_"]
["O0001/IE00534/F0041/X099/R0229/001/6055","O0001/IE00534/F0041/X099/R0229/001/6055",99699,7589,"Expenditure:Inventory Consumed:Materials and Supplies",3400,"Expenditure / Inventory consumed",6002,"Expenditure / Inventory consumed",6002,"Inventory Consumed - Other",3100,"Planning and development",3108,"Project Management Unit","_"," _"," _","O","IE"," _ "," _ "," _ "," _ "," _ "," _ ","_","_"," _ "," _ "," _ "," _ "," _ "," _ "," _ "," _ ",null," _ "," _ "," _ "," _ ",null,null,null," _ "," _ "," _ "," _ "," _ "," _ "," _ "," _ "," _ "," _ "," _ ",null," _ "," _ "," _ "," _ "," _ ",null," _ "," _ "," _ "," _ ",null,4,44,"Project Management Unit","Planning and Development",null,null,34500,0,0,0,0,0,0,0,0,"_","_","_","_"]
["O0001/IE01533/F0041/X101/R0229/001/6155","O0001/IE01533/F0041/X101/R0229/001/6155",30212,1559,"Expenditure:Employee Related Cost:Municipal Staff:Salaries, Wages and Allowances:Allowances:Service Related Benefits:Long Service Award",3100,"Expenditure / Employee related costs",2011,"Expenditure / Employee related costs",2011,"Employee related costs / Long service awards",3100,"Planning and development",3107,"Town Planning, Building Regulations and Enforcement, and City Engineer","_"," _"," _","O","IE"," _ "," _ "," _ "," _ "," _ "," _ ","_","_"," _ "," _ "," _ "," _ "," _ "," _ "," _ "," _ ",null," _ "," _ "," _ "," _ ",null,null,null," _ "," _ "," _ "," _ "," _ "," _ "," _ "," _ "," _ "," _ "," _ ",null," _ "," _ "," _ "," _ "," _ ",null," _ "," _ "," _ "," _ ","MS",4,41,"Town Planning, Building Regulations and Enforcement, and City Engineer","Planning and Development",null,null,41493,0,0,0,0,58677,0,0,0,"_","_","_","_"]
["O0001/IE01533/F0041/X125/R0229/001/6401","O0001/IE01533/F0041/X125/R0229/001/6401",30936,1660,"Expenditure:Employee Related Cost:Municipal Staff:Salaries, Wages and Allowances:Allowances:Service Related Benefits:Long Service Award",3100,"Expenditure / Employee related costs",2011,"Expenditure / Employee related costs",2011,"Employee related costs / Long service awards",2200,"Sport and recreation",2205,"Sports Grounds and Stadiums","_"," _"," _","O","IE"," _ "," _ "," _ "," _ "," _ "," _ ","_","_"," _ "," _ "," _ "," _ "," _ "," _ "," _ "," _ ",null," _ "," _ "," _ "," _ ",null,null,null," _ "," _ "," _ "," _ "," _ "," _ "," _ "," _ "," _ "," _ "," _ ",null," _ "," _ "," _ "," _ "," _ ",null," _ "," _ "," _ "," _ ","MS",10,102,"Sports Grounds and Stadiums","Sports & Recreation",null,null,22118,103825,0,61464,61464,63133,0,0,61523,"_","_","_","_"]
["O0001/IE01533/F0041/X051/R0229/001/6104","O0001/IE01533/F0041/X051/R0229/001/6104",30425,1016,"Expenditure:Employee Related Cost:Municipal Staff:Salaries, Wages and Allowances:Allowances:Service Related Benefits:Long Service Award",3100,"Expenditure / Employee related costs",2011,"Expenditure / Employee related costs",2011,"Employee related costs / Long service awards",1200,"Finance and administration",1206,"Human Resources","_"," _"," _","O","IE"," _ "," _ "," _ "," _ "," _ "," _ ","_","_"," _ "," _ "," _ "," _ "," _ "," _ "," _ "," _ ",null," _ "," _ "," _ "," _ ",null,null,null," _ "," _ "," _ "," _ "," _ "," _ "," _ "," _ "," _ "," _ "," _ ",null," _ "," _ "," _ "," _ "," _ ",null," _ "," _ "," _ "," _ ","MS",3,34,"Human Resources","Finance & Administration",null,null,18288,0,0,61464,61464,17715,0,0,0,"_","_","_","_"]
["O0001/IE00595/F0041/X096/R0229/001/6053","O0001/IE00595/F0041/X096/R0229/001/6053",31040,1459,"Expenditure:Operational Cost:Skills Development Fund Levy",4100,"Expenditure / Operational costs",2904,"Expenditure / Operational costs",2904,"Operational Costs ",3100,"Planning and development",3102,"Corporate Wide Strategic Planning (IDPs, LEDs)","_"," _"," _","O","IE"," _ "," _ "," _ "," _ "," _ "," _ ","_","_"," _ "," _ "," _ "," _ "," _ "," _ "," _ "," _ ",null," _ "," _ "," _ "," _ ",null,null,null," _ "," _ "," _ "," _ "," _ "," _ "," _ "," _ "," _ "," _ "," _ ",null," _ "," _ "," _ "," _ "," _ ",null," _ "," _ "," _ "," _ ",null,4,42,"Corporate Wide Strategic Planning (IDPs, LEDs)","Planning and Development",null,null,8054,6724,0,7119,8180,6467,6784,7103,8468,"_","_","_","_"]
["O0001/IE00595/F1177/X081/R0229/001/6059","O0001/IE00595/F1177/X081/R0229/001/6059",31067,1375,"Expenditure:Operational Cost:Skills Development Fund Levy",4100,"Expenditure / Operational costs",2904,"Expenditure / Operational costs",2904,"Operational Costs ",1300,"Internal audit",1301,"Governance Function","_"," _"," _","O","IE"," _ "," _ "," _ "," _ "," _ "," _ ","_","_"," _ "," _ "," _ "," _ "," _ "," _ "," _ "," _ ",null," _ "," _ "," _ "," _ ",null,null,null," _ "," _ "," _ "," _ "," _ "," _ "," _ "," _ "," _ "," _ "," _ ",null," _ "," _ "," _ "," _ "," _ ",null," _ "," _ "," _ "," _ ",null,6,61,"Governance Function","Internal Audit",null,null,0,0,0,0,0,0,0,0,0,"_","_","_","_"]
["O0001/IE00595/F0041/X125/R0229/001/6401","O0001/IE00595/F0041/X125/R0229/001/6401",30929,1653,"Expenditure:Operational Cost:Skills Development Fund Levy",4100,"Expenditure / Operational costs",2904,"Expenditure / Operational costs",2904,"Operational Costs ",2200,"Sport and recreation",2205,"Sports Grounds and Stadiums","_"," _"," _","O","IE"," _ "," _ "," _ "," _ "," _ "," _ ","_","_"," _ "," _ "," _ "," _ "," _ "," _ "," _ "," _ ",null," _ "," _ "," _ "," _ ",null,null,null," _ "," _ "," _ "," _ "," _ "," _ "," _ "," _ "," _ "," _ "," _ ",null," _ "," _ "," _ "," _ "," _ ",null," _ "," _ "," _ "," _ ",null,10,102,"Sports Grounds and Stadiums","Sports & Recreation",null,null,88051,70335,61275,44645,63676,41378,43406,45446,71558,"_","_","_","_"]
["O0001/IE00595/F0041/X139/R0229/001/6551","O0001/IE00595/F0041/X139/R0229/001/6551",61341,4056,"Expenditure:Operational Cost:Skills Development Fund Levy",4100,"Expenditure / Operational costs",2904,"Expenditure / Operational costs",2904,"Operational Costs ",4300,"Waste water management",4302,"Sewerage","_"," _"," _","O","IE"," _ "," _ "," _ "," _ "," _ "," _ ","_","_"," _ "," _ "," _ "," _ "," _ "," _ "," _ "," _ ",null," _ "," _ "," _ "," _ ",null,null,null," _ "," _ "," _ "," _ "," _ "," _ "," _ "," _ "," _ "," _ "," _ ",null," _ "," _ "," _ "," _ "," _ ",null," _ "," _ "," _ "," _ ",null,12,121,"Sewerage","Waste Water Management",null,null,0,0,0,0,0,0,0,0,0,"_","_","_","_"]
["O0001/IE07591/F0001/X047/R0230/001/6114","O0001/IE07591/F0001/X047/R0230/001/6114",61408,4085,"Expenditure:Depreciation and Amortisation:Depreciation:Storm water Infrastructure:Drainage Collection",3600,"Expenditure / Depreciation and amortisation",2301,"Expenditure / Depreciation and amortisation",2301,"Depreciation and asset impairment ",1200,"Finance and administration",1202,"Asset Management","_"," _"," _","O","IE"," _ "," _ "," _ "," _ "," _ "," _ ","_","_"," _ "," _ "," _ "," _ "," _ "," _ "," _ "," _ ",null," _ "," _ "," _ "," _ ",null,null,null," _ "," _ "," _ "," _ "," _ "," _ "," _ "," _ "," _ "," _ "," _ ",null,170,"Infrastructure / Storm water Infrastructure / Drainage Collection"," _ ",170,"Infrastructure / Storm water Infrastructure / Drainage Collection","DP"," _ "," _ "," _ "," _ ",null,3,33,"Asset Management","Finance & Administration",null,null,0,0,0,0,0,0,0,0,0,"_","_","_","_"]
["O0001/IL43222/F0041/X058/R0229/001/CONTRA","O0001/IL43222/F0041/X058/R0229/001/CONTRA",120845,0,"Liabilities:Current Liabilities:Trade and Other Payable Exchange Transactions:Long Service Award:Withdrawals"," _"," _"," _ "," _ "," _ "," _ ",1200,"Finance and administration",1213,"Supply Chain Management","_"," _"," _","O","IL",380,"Current liabilities / Trade and other payables from exchange transactions","_","_"," _ "," _ ","_","_"," _ "," _ "," _ "," _ "," _ "," _ "," _ "," _ ",null,361,"Trade and other payables / Trade and other payables from exchange transactions",361,"Trade and other payables / Trade and other payables from exchange transactions",null,null,null," _ "," _ "," _ "," _ "," _ "," _ "," _ "," _ "," _ "," _ "," _ ",null," _ "," _ "," _ "," _ "," _ ",null," _ "," _ "," _ "," _ ",null,3,38,"Supply Chain Management","Finance & Administration",null,null,0,0,0,0,0,0,0,0,0,"_","_","_","_"]
["O0001/IL43222/F0041/X019/R0229/001/CONTRA","O0001/IL43222/F0041/X019/R0229/001/CONTRA",122038,0,"Liabilities:Current Liabilities:Trade and Other Payable Exchange Transactions:Long Service Award:Withdrawals"," _"," _"," _ "," _ "," _ "," _ ","2100","Community and social services","2109","Disaster Management","_"," _"," _","O","IL","0380","Current liabilities / Trade and other payables from exchange transactions","_","_"," _ "," _ ","_","_"," _ "," _ "," _ "," _ "," _ "," _ "," _ "," _ ",null,361,"Trade and other payables / Trade and other payables from exchange transactions",361,"Trade and other payables / Trade and other payables from exchange transactions","",null,null," _ "," _ "," _ "," _ "," _ "," _ "," _ "," _ "," _ "," _ "," _ ",null," _ "," _ "," _ "," _ "," _ ",null," _ "," _ "," _ "," _ ",null,2,25,"Disaster Management","Community and Social Services",null,null,0,0,0,0,0,53144,0,0,0,"_","_","_","_"]
["O0001/IE00044/F0041/X049/R0229/001/6117","O0001/IE00044/F0041/X049/R0229/001/6117",30061,1215,"Expenditure:Employee Related Cost:Municipal Staff:Social Contributions:Pension",3100,"Expenditure / Employee related costs",2002,"Expenditure / Employee related costs",2002,"Employee related costs / Pension, UIF and Group life Contributions",1200,"Finance and administration",1204,"Finance","_"," _"," _","O","IE"," _ "," _ "," _ "," _ "," _ "," _ ","_","_"," _ "," _ "," _ "," _ "," _ "," _ "," _ "," _ ",null," _ "," _ "," _ "," _ ",null,null,null," _ "," _ "," _ "," _ "," _ "," _ "," _ "," _ "," _ "," _ "," _ ",null," _ "," _ "," _ "," _ "," _ ",null," _ "," _ "," _ "," _ ","MS",3,32,"Finance","Finance & Administration",null,null,287995,278988,290228,431028,345574,451373,473491,495745,229078,"_","_","_","_"]
["O0001/IE00044/F0041/X079/R0229/001/6301","O0001/IE00044/F0041/X079/R0229/001/6301",30886,1617,"Expenditure:Employee Related Cost:Municipal Staff:Social Contributions:Pension",3100,"Expenditure / Employee related costs",2002,"Expenditure / Employee related costs",2002,"Employee related costs / Pension, UIF and Group life Contributions",2400,"Housing",2401,"Housing","_"," _"," _","O","IE"," _ "," _ "," _ "," _ "," _ "," _ ","_","_"," _ "," _ "," _ "," _ "," _ "," _ "," _ "," _ ",null," _ "," _ "," _ "," _ ",null,null,null," _ "," _ "," _ "," _ "," _ "," _ "," _ "," _ "," _ "," _ "," _ ",null," _ "," _ "," _ "," _ "," _ ",null," _ "," _ "," _ "," _ ","MS",13,131,"Housing","Housing",null,null,156469,152466,143498,165535,165535,174308,182849,191443,124151,"_","_","_","_"]
["O0001/IE00043/F0041/X047/R0229/001/6114","O0001/IE00043/F0041/X047/R0229/001/6114",31203,1203,"Expenditure:Employee Related Cost:Municipal Staff:Social Contributions:Medical",3100,"Expenditure / Employee related costs",2003,"Expenditure / Employee related costs",2003,"Employee related costs / Medical Aid Contributions",1200,"Finance and administration",1202,"Asset Management","_"," _"," _","O","IE"," _ "," _ "," _ "," _ "," _ "," _ ","_","_"," _ "," _ "," _ "," _ "," _ "," _ "," _ "," _ ",null," _ "," _ "," _ "," _ ",null,null,null," _ "," _ "," _ "," _ "," _ "," _ "," _ "," _ "," _ "," _ "," _ ",null," _ "," _ "," _ "," _ "," _ ",null," _ "," _ "," _ "," _ ","MS",3,33,"Asset Management","Finance & Administration",null,null,233313,176659,274048,99425,183582,93614,98202,102817,203920,"_","_","_","_"]
["O0001/IE00043/F1182/X099/R0229/001/6055","O0001/IE00043/F1182/X099/R0229/001/6055",30521,1392,"Expenditure:Employee Related Cost:Municipal Staff:Social Contributions:Medical",3100,"Expenditure / Employee related costs",2003,"Expenditure / Employee related costs",2003,"Employee related costs / Medical Aid Contributions",3100,"Planning and development",3108,"Project Management Unit","_"," _"," _","O","IE"," _ "," _ "," _ "," _ "," _ "," _ ","_","_"," _ "," _ "," _ "," _ "," _ "," _ "," _ "," _ ",null," _ "," _ "," _ "," _ ",null,null,null," _ "," _ "," _ "," _ "," _ "," _ "," _ "," _ "," _ "," _ "," _ ",null," _ "," _ "," _ "," _ "," _ ",null," _ "," _ "," _ "," _ ","MS",4,44,"Project Management Unit","Planning and Development",null,null,162916,111627,149609,156465,182441,201989,211886,221845,144253,"_","_","_","_"]
["O0001/IE00043/F0041/X052/R0229/001/6105","O0001/IE00043/F0041/X052/R0229/001/6105",30433,1026,"Expenditure:Employee Related Cost:Municipal Staff:Social Contributions:Medical",3100,"Expenditure / Employee related costs",2003,"Expenditure / Employee related costs",2003,"Employee related costs / Medical Aid Contributions",1200,"Finance and administration",1207,"Information Technology","_"," _"," _","O","IE"," _ "," _ "," _ "," _ "," _ "," _ ","_","_"," _ "," _ "," _ "," _ "," _ "," _ "," _ "," _ ",null," _ "," _ "," _ "," _ ",null,null,null," _ "," _ "," _ "," _ "," _ "," _ "," _ "," _ "," _ "," _ "," _ ",null," _ "," _ "," _ "," _ "," _ ",null," _ "," _ "," _ "," _ ","MS",14,143,"Information Technology","Finance & Administration 2",null,null,199194,153141,101104,158734,185155,100217,105127,110068,160880,"_","_","_","_"]
["O0001/IE00043/F0041/X032/R0229/001/6707","O0001/IE00043/F0041/X032/R0229/001/6707",30869,1694,"Expenditure:Employee Related Cost:Municipal Staff:Social Contributions:Medical","3100","Expenditure / Employee related costs","2003","Expenditure / Employee related costs","2003","Employee related costs / Medical Aid Contributions",4100,"Energy sources",4101,"Electricity","_"," _"," _","O","IE"," _ "," _ "," _ "," _ "," _ "," _ ","_","_"," _ "," _ "," _ "," _ "," _ "," _ "," _ "," _ ",null," _ "," _ "," _ "," _ ",null,null,null," _ "," _ "," _ "," _ "," _ "," _ "," _ "," _ "," _ "," _ "," _ ",null," _ "," _ "," _ "," _ "," _ ",null," _ "," _ "," _ "," _ ","MS",1,11,"Electricity"," Energy Sources",null,null,18662,14657,13255,110894,69498,119700,125565,131467,14954,"_","_","_","_"]
["O0001/IL54000/F0041/X047/R0229/001/CONTRA","O0001/IL54000/F0041/X047/R0229/001/CONTRA",121444,0,"Liabilities:Current Liabilities:Trade and Other Payable Exchange Transactions:Control, Clearing and Interface Accounts:Salary Clearing and Control:Pension Control:Withdrawals"," _"," _"," _ "," _ "," _ "," _ ","1200","Finance and administration","1202","Asset Management","_"," _"," _","O","IL","0380","Current liabilities / Trade and other payables from exchange transactions","_","_"," _ "," _ ","_","_","0200","Cash Payments by Type / Employee related costs","0390","Employee related costs"," _ "," _ "," _ "," _ ",null,"0361","Trade and other payables / Trade and other payables from exchange transactions","0361","Trade and other payables / Trade and other payables from exchange transactions","",null,null," _ "," _ "," _ "," _ "," _ "," _ "," _ "," _ "," _ "," _ "," _ ",null," _ "," _ "," _ "," _ "," _ ",null," _ "," _ "," _ "," _ ",null,3,33,"Asset Management","Finance & Administration",null,null,0,0,0,0,0,346309,363279,380353,0,"_","_","_","_"]
["O0001/IL54000/F0041/X139/R0229/001/CONTRA","O0001/IL54000/F0041/X139/R0229/001/CONTRA",122856,0,"Liabilities:Current Liabilities:Trade and Other Payable Exchange Transactions:Control, Clearing and Interface Accounts:Salary Clearing and Control:Pension Control:Withdrawals"," _"," _"," _ "," _ "," _ "," _ ","4300","Waste water management","4302","Sewerage","_"," _"," _","O","IL","0380","Current liabilities / Trade and other payables from exchange transactions","_","_"," _ "," _ ","_","_","0200","Cash Payments by Type / Employee related costs","0390","Employee related costs"," _ "," _ "," _ "," _ ",null,"0361","Trade and other payables / Trade and other payables from exchange transactions","0361","Trade and other payables / Trade and other payables from exchange transactions","",null,null," _ "," _ "," _ "," _ "," _ "," _ "," _ "," _ "," _ "," _ "," _ ",null," _ "," _ "," _ "," _ "," _ ",null," _ "," _ "," _ "," _ ",null,12,121,"Sewerage","Waste Water Management",null,null,0,0,0,0,0,0,0,0,0,"_","_","_","_"]
["O0001/IL53821/F1177/X049/R0229/001/CONTRA","O0001/IL53821/F1177/X049/R0229/001/CONTRA",120673,0,"Liabilities:Current Liabilities:Trade and Other Payable Exchange Transactions:Payables and Accruals : General:Withdrawals"," _"," _"," _ "," _ "," _ "," _ ","1200","Finance and administration","1204","Finance","_"," _"," _","O","IL","0380","Current liabilities / Trade and other payables from exchange transactions","_","_"," _ "," _ ","_","_","0200","Cash Payments by Type / Other expenditure","0480","Other expenditure"," _ "," _ "," _ "," _ ",null,"0361","Trade and other payables / Trade and other payables from exchange transactions","0361","Trade and other payables / Trade and other payables from exchange transactions","",null,null," _ "," _ "," _ "," _ "," _ "," _ "," _ "," _ "," _ "," _ "," _ ",null," _ "," _ "," _ "," _ "," _ ",null," _ "," _ "," _ "," _ ",null,3,32,"Finance","Finance & Administration",null,null,0,0,0,0,0,156050,181100,200830,0,"_","_","_","_"]
["O0001/IL53821/F0041/X058/R0229/001/CONTRA","O0001/IL53821/F0041/X058/R0229/001/CONTRA",120848,0,"Liabilities:Current Liabilities:Trade and Other Payable Exchange Transactions:Payables and Accruals : General:Withdrawals"," _"," _"," _ "," _ "," _ "," _ ","1200","Finance and administration","1213","Supply Chain Management","_"," _"," _","O","IL","0380","Current liabilities / Trade and other payables from exchange transactions","_","_"," _ "," _ ","_","_","0200","Cash Payments by Type / Other expenditure","0480","Other expenditure"," _ "," _ "," _ "," _ ",null,"0361","Trade and other payables / Trade and other payables from exchange transactions","0361","Trade and other payables / Trade and other payables from exchange transactions","",null,null," _ "," _ "," _ "," _ "," _ "," _ "," _ "," _ "," _ "," _ "," _ ",null," _ "," _ "," _ "," _ "," _ ",null," _ "," _ "," _ "," _ ",null,3,38,"Supply Chain Management","Finance & Administration",null,null,0,0,0,0,0,677500,700050,717000,0,"_","_","_","_"]
["O0001/IL53821/F0041/X116/R0230/001/CONTRA","O0001/IL53821/F0041/X116/R0230/001/CONTRA",121720,0,"Liabilities:Current Liabilities:Trade and Other Payable Exchange Transactions:Payables and Accruals : General:Withdrawals"," _"," _"," _ "," _ "," _ "," _ ","3200","Road transport","3205","Roads","_"," _"," _","O","IL","0380","Current liabilities / Trade and other payables from exchange transactions","_","_"," _ "," _ ","_","_","0200","Cash Payments by Type / Other expenditure","0480","Other expenditure"," _ "," _ "," _ "," _ ",null,"0361","Trade and other payables / Trade and other payables from exchange transactions","0361","Trade and other payables / Trade and other payables from exchange transactions","",null,null," _ "," _ "," _ "," _ "," _ "," _ "," _ "," _ "," _ "," _ "," _ ",null," _ "," _ "," _ "," _ "," _ ",null," _ "," _ "," _ "," _ ",null,7,74,"Roads","Road Transport",null,null,0,0,0,0,0,80500,85100,89700,0,"_","_","_","_"]
["O0001/IL53821/F0041/X006/R0230/001/CONTRA","O0001/IL53821/F0041/X006/R0230/001/CONTRA",123098,0,"Liabilities:Current Liabilities:Trade and Other Payable Exchange Transactions:Payables and Accruals : General:Withdrawals"," _"," _"," _ "," _ "," _ "," _ ","2100","Community and social services","2106","Community Halls and Facilities","_"," _"," _","O","IL","0380","Current liabilities / Trade and other payables from exchange transactions","_","_"," _ "," _ ","_","_","0200","Cash Payments by Type / Other expenditure","0480","Other expenditure"," _ "," _ "," _ "," _ ",null,"0361","Trade and other payables / Trade and other payables from exchange transactions","0361","Trade and other payables / Trade and other payables from exchange transactions","",null,null," _ "," _ "," _ "," _ "," _ "," _ "," _ "," _ "," _ "," _ "," _ ",null," _ "," _ "," _ "," _ "," _ ",null," _ "," _ "," _ "," _ ",null,2,22,"Community Halls and Facilities","Community and Social Services",null,null,0,0,0,0,0,23000,28750,34500,0,"_","_","_","_"]
["O0001/IL53821/F0041/X081/R0229/001/CONTRA","O0001/IL53821/F0041/X081/R0229/001/CONTRA",120725,0,"Liabilities:Current Liabilities:Trade and Other Payable Exchange Transactions:Payables and Accruals : General:Withdrawals"," _"," _"," _ "," _ "," _ "," _ ","1300","Internal audit","1301","Governance Function","_"," _"," _","O","IL","0380","Current liabilities / Trade and other payables from exchange transactions","_","_"," _ "," _ ","_","_","0200","Cash Payments by Type / Other expenditure","0480","Other expenditure"," _ "," _ "," _ "," _ ",null,"0361","Trade and other payables / Trade and other payables from exchange transactions","0361","Trade and other payables / Trade and other payables from exchange transactions","",null,null," _ "," _ "," _ "," _ "," _ "," _ "," _ "," _ "," _ "," _ "," _ ",null," _ "," _ "," _ "," _ "," _ ",null," _ "," _ "," _ "," _ ",null,6,61,"Governance Function","Internal Audit",null,null,0,0,0,0,0,219900,236200,252040,0,"_","_","_","_"]
["O0001/IL53988/F1177/X081/R0229/001/CONTRA","O0001/IL53988/F1177/X081/R0229/001/CONTRA",120754,0,"Liabilities:Current Liabilities:Trade and Other Payable Exchange Transactions:Control, Clearing and Interface Accounts:Salary Clearing and Control:Salary Control - Employee Related Costs:Withdrawals"," _"," _"," _ "," _ "," _ "," _ ","1300","Internal audit","1301","Governance Function","_"," _"," _","O","IL","0380","Current liabilities / Trade and other payables from exchange transactions","_","_"," _ "," _ ","_","_","0200","Cash Payments by Type / Employee related costs","0390","Employee related costs"," _ "," _ "," _ "," _ ",null,"0361","Trade and other payables / Trade and other payables from exchange transactions","0361","Trade and other payables / Trade and other payables from exchange transactions","",null,null," _ "," _ "," _ "," _ "," _ "," _ "," _ "," _ "," _ "," _ "," _ ",null," _ "," _ "," _ "," _ "," _ ",null," _ "," _ "," _ "," _ ",null,6,61,"Governance Function","Internal Audit",null,null,0,0,0,0,0,0,0,0,0,"_","_","_","_"]
["O0001/IL53988/F0041/X119/R0229/001/CONTRA","O0001/IL53988/F0041/X119/R0229/001/CONTRA",121730,0,"Liabilities:Current Liabilities:Trade and Other Payable Exchange Transactions:Control, Clearing and Interface Accounts:Salary Clearing and Control:Salary Control - Employee Related Costs:Withdrawals"," _"," _"," _ "," _ "," _ "," _ ","3200","Road transport","3204","Road and Traffic Regulation","_"," _"," _","O","IL","0380","Current liabilities / Trade and other payables from exchange transactions","_","_"," _ "," _ ","_","_","0200","Cash Payments by Type / Employee related costs","0390","Employee related costs"," _ "," _ "," _ "," _ ",null,"0361","Trade and other payables / Trade and other payables from exchange transactions","0361","Trade and other payables / Trade and other payables from exchange transactions","",null,null," _ "," _ "," _ "," _ "," _ "," _ "," _ "," _ "," _ "," _ "," _ ",null," _ "," _ "," _ "," _ "," _ ",null," _ "," _ "," _ "," _ ",null,7,72,"Road and Traffic Regulation","Road Transport",null,null,0,0,0,0,0,14283026,14982444,15686175,0,"_","_","_","_"]
["O0001/IL53988/F0041/X055/R0229/001/CONTRA","O0001/IL53988/F0041/X055/R0229/001/CONTRA",120776,0,"Liabilities:Current Liabilities:Trade and Other Payable Exchange Transactions:Control, Clearing and Interface Accounts:Salary Clearing and Control:Salary Control - Employee Related Costs:Withdrawals"," _"," _"," _ "," _ "," _ "," _ ","1200","Finance and administration","1210","Property Services","_"," _"," _","O","IL","0380","Current liabilities / Trade and other payables from exchange transactions","_","_"," _ "," _ ","_","_","0200","Cash Payments by Type / Employee related costs","0390","Employee related costs"," _ "," _ "," _ "," _ ",null,"0361","Trade and other payables / Trade and other payables from exchange transactions","0361","Trade and other payables / Trade and other payables from exchange transactions","",null,null," _ "," _ "," _ "," _ "," _ "," _ "," _ "," _ "," _ "," _ "," _ ",null," _ "," _ "," _ "," _ "," _ ",null," _ "," _ "," _ "," _ ",null,3,36,"Property Services","Finance & Administration",null,null,0,0,0,0,0,7074953,7421625,7770441,0,"_","_","_","_"]
["O0001/IL54011/F0041/X056/R0229/001/CONTRA","O0001/IL54011/F0041/X056/R0229/001/CONTRA",120701,0,"Liabilities:Current Liabilities:Trade and Other Payable Exchange Transactions:Control, Clearing and Interface Accounts:Salary Clearing and Control:Unions Control:Withdrawals"," _"," _"," _ "," _ "," _ "," _ ","1200","Finance and administration","1211","Risk Management","_"," _"," _","O","IL","0380","Current liabilities / Trade and other payables from exchange transactions","_","_"," _ "," _ ","_","_","0200","Cash Payments by Type / Employee related costs","0390","Employee related costs"," _ "," _ "," _ "," _ ",null,"0361","Trade and other payables / Trade and other payables from exchange transactions","0361","Trade and other payables / Trade and other payables from exchange transactions","",null,null," _ "," _ "," _ "," _ "," _ "," _ "," _ "," _ "," _ "," _ "," _ ",null," _ "," _ "," _ "," _ "," _ ",null," _ "," _ "," _ "," _ ",null,3,37,"Risk Management","Finance & Administration",null,null,0,0,0,0,0,2722,2855,2989,0,"_","_","_","_"]
["O0001/IL54011/F0041/X050/R0229/001/CONTRA","O0001/IL54011/F0041/X050/R0229/001/CONTRA",121331,0,"Liabilities:Current Liabilities:Trade and Other Payable Exchange Transactions:Control, Clearing and Interface Accounts:Salary Clearing and Control:Unions Control:Withdrawals"," _"," _"," _ "," _ "," _ "," _ ","1200","Finance and administration","1205","Fleet Management","_"," _"," _","O","IL","0380","Current liabilities / Trade and other payables from exchange transactions","_","_"," _ "," _ ","_","_","0200","Cash Payments by Type / Employee related costs","0390","Employee related costs"," _ "," _ "," _ "," _ ",null,"0361","Trade and other payables / Trade and other payables from exchange transactions","0361","Trade and other payables / Trade and other payables from exchange transactions","",null,null," _ "," _ "," _ "," _ "," _ "," _ "," _ "," _ "," _ "," _ "," _ ",null," _ "," _ "," _ "," _ "," _ ",null," _ "," _ "," _ "," _ ",null,3,31,"Fleet Management","Finance & Administration",null,null,0,0,0,0,0,518,544,569,0,"_","_","_","_"]
["O0001/IL54011/F0041/X046/R0229/001/CONTRA","O0001/IL54011/F0041/X046/R0229/001/CONTRA",121969,0,"Liabilities:Current Liabilities:Trade and Other Payable Exchange Transactions:Control, Clearing and Interface Accounts:Salary Clearing and Control:Unions Control:Withdrawals"," _"," _"," _ "," _ "," _ "," _ ","1200","Finance and administration","1201","Administrative and Corporate Support","_"," _"," _","O","IL","0380","Current liabilities / Trade and other payables from exchange transactions","_","_"," _ "," _ ","_","_","0200","Cash Payments by Type / Employee related costs","0390","Employee related costs"," _ "," _ "," _ "," _ ",null,"0361","Trade and other payables / Trade and other payables from exchange transactions","0361","Trade and other payables / Trade and other payables from exchange transactions","",null,null," _ "," _ "," _ "," _ "," _ "," _ "," _ "," _ "," _ "," _ "," _ ",null," _ "," _ "," _ "," _ "," _ ",null," _ "," _ "," _ "," _ ",null,14,142,"Administrative and Corporate Support","Finance & Administration 2",null,null,0,0,0,0,0,3758,3943,4128,0,"_","_","_","_"]
["O0001/IL54001/F0041/X045/R0229/001/CONTRA","O0001/IL54001/F0041/X045/R0229/001/CONTRA",122123,0,"Liabilities:Current Liabilities:Trade and Other Payable Exchange Transactions:Control, Clearing and Interface Accounts:Salary Clearing and Control:Medical Aid Control:Deposits"," _"," _"," _ "," _ "," _ "," _ ","1100","Executive and council","1120","Municipal Manager, Town Secretary and Chief Executive","_"," _"," _","O","IL","0380","Current liabilities / Trade and other payables from exchange transactions","_","_"," _ "," _ ","_","_"," _ "," _ "," _ "," _ "," _ "," _ "," _ "," _ ",null,"0361","Trade and other payables / Trade and other payables from exchange transactions","0361","Trade and other payables / Trade and other payables from exchange transactions","",null,null," _ "," _ "," _ "," _ "," _ "," _ "," _ "," _ "," _ "," _ "," _ ",null," _ "," _ "," _ "," _ "," _ ",null," _ "," _ "," _ "," _ ",null,5,51,"Municipal Manager, Town Secretary and Chief Executive","Executive & Council",null,null,0,0,0,0,0,0,0,0,0,"_","_","_","_"]
["O0001/IL54001/F0041/X132/R0229/001/CONTRA","O0001/IL54001/F0041/X132/R0229/001/CONTRA",122211,0,"Liabilities:Current Liabilities:Trade and Other Payable Exchange Transactions:Control, Clearing and Interface Accounts:Salary Clearing and Control:Medical Aid Control:Deposits"," _"," _"," _ "," _ "," _ "," _ ","4400","Waste management","4403","Solid Waste Removal","_"," _"," _","O","IL","0380","Current liabilities / Trade and other payables from exchange transactions","_","_"," _ "," _ ","_","_"," _ "," _ "," _ "," _ "," _ "," _ "," _ "," _ ",null,"0361","Trade and other payables / Trade and other payables from exchange transactions","0361","Trade and other payables / Trade and other payables from exchange transactions","",null,null," _ "," _ "," _ "," _ "," _ "," _ "," _ "," _ "," _ "," _ "," _ ",null," _ "," _ "," _ "," _ "," _ ",null," _ "," _ "," _ "," _ ",null,9,93,"Solid Waste Removal","Waste Management",null,null,0,0,0,0,0,-557158,-584458,-611928,0,"_","_","_","_"]
["O0001/IL54001/F1182/X099/R0229/001/CONTRA","O0001/IL54001/F1182/X099/R0229/001/CONTRA",121402,0,"Liabilities:Current Liabilities:Trade and Other Payable Exchange Transactions:Control, Clearing and Interface Accounts:Salary Clearing and Control:Medical Aid Control:Deposits"," _"," _"," _ "," _ "," _ "," _ ","3100","Planning and development","3108","Project Management Unit","_"," _"," _","O","IL","0380","Current liabilities / Trade and other payables from exchange transactions","_","_"," _ "," _ ","_","_"," _ "," _ "," _ "," _ "," _ "," _ "," _ "," _ ",null,"0361","Trade and other payables / Trade and other payables from exchange transactions","0361","Trade and other payables / Trade and other payables from exchange transactions","",null,null," _ "," _ "," _ "," _ "," _ "," _ "," _ "," _ "," _ "," _ "," _ ",null," _ "," _ "," _ "," _ "," _ ",null," _ "," _ "," _ "," _ ",null,4,44,"Project Management Unit","Planning and Development",null,null,0,0,0,0,0,-201989,-211886,-221845,0,"_","_","_","_"]
["O0001/IE00126/F0041/X116/R0229/001/6601","O0001/IE00126/F0041/X116/R0229/001/6601",31199,1520,"Expenditure:Employee Related Cost:Municipal Staff:Salaries, Wages and Allowances:Allowances:Travel or Motor Vehicle","3100","Expenditure / Employee related costs","2006","Expenditure / Employee related costs","2006","Employee related costs / Motor Vehicle Allowance","3200","Road transport","3205","Roads","_"," _"," _","O","IE"," _ "," _ "," _ "," _ "," _ "," _ ","_","_"," _ "," _ "," _ "," _ "," _ "," _ "," _ "," _ ",null," _ "," _ "," _ "," _ ","",null,null," _ "," _ "," _ "," _ "," _ "," _ "," _ "," _ "," _ "," _ "," _ ",null," _ "," _ "," _ "," _ "," _ ",null," _ "," _ "," _ "," _ ","MS",7,74,"Roads","Road Transport",null,null,413096,391605,211534,424719,176844,437918,459376,480967,102949,"_","_","_","_"]
["O0001/IE00126/F0041/X052/R0229/001/6105","O0001/IE00126/F0041/X052/R0229/001/6105",30440,1033,"Expenditure:Employee Related Cost:Municipal Staff:Salaries, Wages and Allowances:Allowances:Travel or Motor Vehicle","3100","Expenditure / Employee related costs","2006","Expenditure / Employee related costs","2006","Employee related costs / Motor Vehicle Allowance","1200","Finance and administration","1207","Information Technology","_"," _"," _","O","IE"," _ "," _ "," _ "," _ "," _ "," _ ","_","_"," _ "," _ "," _ "," _ "," _ "," _ "," _ "," _ ",null," _ "," _ "," _ "," _ ","",null,null," _ "," _ "," _ "," _ "," _ "," _ "," _ "," _ "," _ "," _ "," _ ",null," _ "," _ "," _ "," _ "," _ ",null," _ "," _ "," _ "," _ ","MS",14,143,"Information Technology","Finance & Administration 2",null,null,696143,677848,611709,544239,640095,573084,601165,629419,551963,"_","_","_","_"]
["O0001/IL70023/F0041/X044/R0229/001/CONTRA","O0001/IL70023/F0041/X044/R0229/001/CONTRA",121789,0,"Liabilities:Current Liabilities:Trade and Other Payable Exchange Transactions:Control, Clearing and Interface Accounts:Salary Clearing and Control:Salary Control - Remuneration of Councillors:Withdrawals"," _"," _"," _ "," _ "," _ "," _ ","1100","Executive and council","1110","Mayor and Council","_"," _"," _","O","IL"," _ "," _ "," _ "," _ "," _ "," _ ","_","_"," _ "," _ "," _ "," _ "," _ "," _ "," _ "," _ ",null," _ "," _ "," _ "," _ ","",null,null," _ "," _ "," _ "," _ "," _ "," _ "," _ "," _ "," _ "," _ "," _ ",null," _ "," _ "," _ "," _ "," _ ",null," _ "," _ "," _ "," _ ",null,5,52,"Mayor and Council","Executive & Council",null,null,0,0,0,0,0,24892324,26112048,27339314,0,"_","_","_","_"]
["O0001/IE00060/F0041/X051/R0229/001/6103","O0001/IE00060/F0041/X051/R0229/001/6103",30351,983,"Expenditure:Operational Cost:Travel and Subsistence:Domestic:Accommodation","4100","Expenditure / Operational costs","2904","Expenditure / Operational costs","2904","Operational Costs ","1200","Finance and administration","1206","Human Resources","_"," _"," _","O","IE"," _ "," _ "," _ "," _ "," _ "," _ ","_","_"," _ "," _ "," _ "," _ "," _ "," _ "," _ "," _ ",null," _ "," _ "," _ "," _ ","",null,null," _ "," _ "," _ "," _ "," _ "," _ "," _ "," _ "," _ "," _ "," _ ",null," _ "," _ "," _ "," _ "," _ ",null," _ "," _ "," _ "," _ ",null,3,34,"Human Resources","Finance & Administration",null,null,40839,31462,76368,70000,110000,110000,111000,111000,141155,"_","_","_","_"]
["O0001/IE00060/F0041/X049/R0229/001/6117","O0001/IE00060/F0041/X049/R0229/001/6117",30073,1227,"Expenditure:Operational Cost:Travel and Subsistence:Domestic:Accommodation","4100","Expenditure / Operational costs","2904","Expenditure / Operational costs","2904","Operational Costs ","1200","Finance and administration","1204","Finance","_"," _"," _","O","IE"," _ "," _ "," _ "," _ "," _ "," _ ","_","_"," _ "," _ "," _ "," _ "," _ "," _ "," _ "," _ ",null," _ "," _ "," _ "," _ ","",null,null," _ "," _ "," _ "," _ "," _ "," _ "," _ "," _ "," _ "," _ "," _ ",null," _ "," _ "," _ "," _ "," _ ",null," _ "," _ "," _ "," _ ",null,3,32,"Finance","Finance & Administration",null,null,3391,6417,2903,31500,31000,48000,51500,55100,20417,"_","_","_","_"]
["O0001/IE00060/F0041/X044/R0230/001/6801","O0001/IE00060/F0041/X044/R0230/001/6801",61503,4045,"Expenditure:Operational Cost:Travel and Subsistence:Domestic:Accommodation","4100","Expenditure / Operational costs","2904","Expenditure / Operational costs","2904","Operational Costs ","1100","Executive and council","1110","Mayor and Council","_"," _"," _","O","IE"," _ "," _ "," _ "," _ "," _ "," _ ","_","_"," _ "," _ "," _ "," _ "," _ "," _ "," _ "," _ ",null," _ "," _ "," _ "," _ ","",null,null," _ "," _ "," _ "," _ "," _ "," _ "," _ "," _ "," _ "," _ "," _ ",null," _ "," _ "," _ "," _ "," _ ",null," _ "," _ "," _ "," _ ",null,5,52,"Mayor and Council","Executive & Council",null,null,0,0,0,0,0,0,0,0,8334,"_","_","_","_"]
["O0001/IE00060/F0041/X019/R0229/001/6353","O0001/IE00060/F0041/X019/R0229/001/6353",30779,1594,"Expenditure:Operational Cost:Travel and Subsistence:Domestic:Accommodation","4100","Expenditure / Operational costs","2904","Expenditure / Operational costs","2904","Operational Costs ","2100","Community and social services","2109","Disaster Management","_"," _"," _","O","IE"," _ "," _ "," _ "," _ "," _ "," _ ","_","_"," _ "," _ "," _ "," _ "," _ "," _ "," _ "," _ ",null," _ "," _ "," _ "," _ ","",null,null," _ "," _ "," _ "," _ "," _ "," _ "," _ "," _ "," _ "," _ "," _ ",null," _ "," _ "," _ "," _ "," _ ",null," _ "," _ "," _ "," _ ",null,2,25,"Disaster Management","Community and Social Services",null,null,2530,0,0,2000,12000,15000,15500,16000,930,"_","_","_","_"]
["O0001/IE07587/F2496/X116/R0229/001/6114","O0001/IE07587/F2496/X116/R0229/001/6114",31163,1198,"Expenditure:Depreciation and Amortisation:Depreciation:Roads Infrastructure:Roads","3600","Expenditure / Depreciation and amortisation","2301","Expenditure / Depreciation and amortisation","2301","Depreciation and asset impairment ","3200","Road transport","3205","Roads","_"," _"," _","O","IE"," _ "," _ "," _ "," _ "," _ "," _ ","_","_"," _ "," _ "," _ "," _ "," _ "," _ "," _ "," _ ",null," _ "," _ "," _ "," _ ","",null,null," _ "," _ "," _ "," _ "," _ "," _ "," _ "," _ "," _ "," _ "," _ ",null,"0120","Infrastructure / Roads Infrastructure / Roads"," _ ","0120","Infrastructure / Roads Infrastructure / Roads","DP"," _ "," _ "," _ "," _ ",null,7,74,"Roads","Road Transport",null,null,79149196,76972153,74972616,0,0,0,0,0,0,"_","_","_","_"]
["O0001/IL65530/F0041/X019/R0230/001/CONTRA","O0001/IL65530/F0041/X019/R0230/001/CONTRA",122065,0,"Liabilities:Current Liabilities:Trade and Other Payable Exchange Transactions:Payables and Accruals : Contractors:Deposits"," _"," _"," _ "," _ "," _ "," _ ","2100","Community and social services","2109","Disaster Management","_"," _"," _","O","IL","0380","Current liabilities / Trade and other payables from exchange transactions","_","_"," _ "," _ ","_","_"," _ "," _ "," _ "," _ "," _ "," _ "," _ "," _ ",null,"0361","Trade and other payables / Trade and other payables from exchange transactions","0361","Trade and other payables / Trade and other payables from exchange transactions","",null,null," _ "," _ "," _ "," _ "," _ "," _ "," _ "," _ "," _ "," _ "," _ ",null," _ "," _ "," _ "," _ "," _ ",null," _ "," _ "," _ "," _ ",null,2,25,"Disaster Management","Community and Social Services",null,null,0,0,0,0,0,0,0,0,0,"_","_","_","_"]
["O0001/IL65530/F1177/X052/R0229/001/CONTRA","O0001/IL65530/F1177/X052/R0229/001/CONTRA",121528,0,"Liabilities:Current Liabilities:Trade and Other Payable Exchange Transactions:Payables and Accruals : Contractors:Deposits"," _"," _"," _ "," _ "," _ "," _ ","1200","Finance and administration","1207","Information Technology","_"," _"," _","O","IL","0380","Current liabilities / Trade and other payables from exchange transactions","_","_"," _ "," _ ","_","_"," _ "," _ "," _ "," _ "," _ "," _ "," _ "," _ ",null,"0361","Trade and other payables / Trade and other payables from exchange transactions","0361","Trade and other payables / Trade and other payables from exchange transactions","",null,null," _ "," _ "," _ "," _ "," _ "," _ "," _ "," _ "," _ "," _ "," _ ",null," _ "," _ "," _ "," _ "," _ ",null," _ "," _ "," _ "," _ ",null,14,143,"Information Technology","Finance & Administration 2",null,null,0,0,0,0,0,-632500,-644000,-655500,0,"_","_","_","_"]
["O0001/IL53995/F1177/X049/R0229/001/CONTRA","O0001/IL53995/F1177/X049/R0229/001/CONTRA",121086,0,"Liabilities:Current Liabilities:Trade and Other Payable Exchange Transactions:Control, Clearing and Interface Accounts:Salary Clearing and Control:UIF Control:Deposits"," _"," _"," _ "," _ "," _ "," _ ","1200","Finance and administration","1204","Finance","_"," _"," _","O","IL","0380","Current liabilities / Trade and other payables from exchange transactions","_","_"," _ "," _ ","_","_"," _ "," _ "," _ "," _ "," _ "," _ "," _ "," _ ",null,"0361","Trade and other payables / Trade and other payables from exchange transactions","0361","Trade and other payables / Trade and other payables from exchange transactions","",null,null," _ "," _ "," _ "," _ "," _ "," _ "," _ "," _ "," _ "," _ "," _ ",null," _ "," _ "," _ "," _ "," _ ",null," _ "," _ "," _ "," _ ",null,3,32,"Finance","Finance & Administration",null,null,0,0,0,0,0,-10000,-10490,-10983,0,"_","_","_","_"]
["O0001/IL53995/F0041/X004/R0229/001/CONTRA","O0001/IL53995/F0041/X004/R0229/001/CONTRA",121854,0,"Liabilities:Current Liabilities:Trade and Other Payable Exchange Transactions:Control, Clearing and Interface Accounts:Salary Clearing and Control:UIF Control:Deposits"," _"," _"," _ "," _ "," _ "," _ ","2100","Community and social services","2104","Cemeteries, Funeral Parlours and Crematoriums","_"," _"," _","O","IL","0380","Current liabilities / Trade and other payables from exchange transactions","_","_"," _ "," _ ","_","_"," _ "," _ "," _ "," _ "," _ "," _ "," _ "," _ ",null,"0361","Trade and other payables / Trade and other payables from exchange transactions","0361","Trade and other payables / Trade and other payables from exchange transactions","",null,null," _ "," _ "," _ "," _ "," _ "," _ "," _ "," _ "," _ "," _ "," _ ",null," _ "," _ "," _ "," _ "," _ ",null," _ "," _ "," _ "," _ ",null,2,24,"Cemeteries, Funeral Parlours and Crematoriums","Community and Social Services",null,null,0,0,0,0,0,-19466,-20419,-21379,0,"_","_","_","_"]
["O0001/IL53995/F0041/X024/R0229/001/CONTRA","O0001/IL53995/F0041/X024/R0229/001/CONTRA",120955,0,"Liabilities:Current Liabilities:Trade and Other Payable Exchange Transactions:Control, Clearing and Interface Accounts:Salary Clearing and Control:UIF Control:Deposits"," _"," _"," _ "," _ "," _ "," _ ","2100","Community and social services","2114","Libraries and Archives","_"," _"," _","O","IL","0380","Current liabilities / Trade and other payables from exchange transactions","_","_"," _ "," _ ","_","_"," _ "," _ "," _ "," _ "," _ "," _ "," _ "," _ ",null,"0361","Trade and other payables / Trade and other payables from exchange transactions","0361","Trade and other payables / Trade and other payables from exchange transactions","",null,null," _ "," _ "," _ "," _ "," _ "," _ "," _ "," _ "," _ "," _ "," _ ",null," _ "," _ "," _ "," _ "," _ ",null," _ "," _ "," _ "," _ ",null,2,23,"Libraries and Archives","Community and Social Services",null,null,0,0,0,0,0,-1497,-1571,-1645,0,"_","_","_","_"]
["O0001/IL53995/F1182/X099/R0229/001/CONTRA","O0001/IL53995/F1182/X099/R0229/001/CONTRA",121396,0,"Liabilities:Current Liabilities:Trade and Other Payable Exchange Transactions:Control, Clearing and Interface Accounts:Salary Clearing and Control:UIF Control:Deposits"," _"," _"," _ "," _ "," _ "," _ ","3100","Planning and development","3108","Project Management Unit","_"," _"," _","O","IL","0380","Current liabilities / Trade and other payables from exchange transactions","_","_"," _ "," _ ","_","_"," _ "," _ "," _ "," _ "," _ "," _ "," _ "," _ ",null,"0361","Trade and other payables / Trade and other payables from exchange transactions","0361","Trade and other payables / Trade and other payables from exchange transactions","",null,null," _ "," _ "," _ "," _ "," _ "," _ "," _ "," _ "," _ "," _ "," _ ",null," _ "," _ "," _ "," _ "," _ ",null," _ "," _ "," _ "," _ ",null,4,44,"Project Management Unit","Planning and Development",null,null,0,0,0,0,0,-10984,-11522,-12064,0,"_","_","_","_"]
["O0001/IE01526/F0041/X079/R0229/001/6301","O0001/IE01526/F0041/X079/R0229/001/6301",30889,1620,"Expenditure:Employee Related Cost:Municipal Staff:Salaries, Wages and Allowances:Allowances:Service Related Benefits:Bonus","3100","Expenditure / Employee related costs","2005","Expenditure / Employee related costs","2005","Employee related costs / Performance Bonus","2400","Housing","2401","Housing","_"," _"," _","O","IE"," _ "," _ "," _ "," _ "," _ "," _ ","_","_"," _ "," _ "," _ "," _ "," _ "," _ "," _ "," _ ",null," _ "," _ "," _ "," _ ","",null,null," _ "," _ "," _ "," _ "," _ "," _ "," _ "," _ "," _ "," _ "," _ ",null," _ "," _ "," _ "," _ "," _ ",null," _ "," _ "," _ "," _ ","MS",13,131,"Housing","Housing",null,null,59774,57752,54355,62703,62703,66026,69261,72516,62703,"_","_","_","_"]
["O0001/IE01526/F0041/X050/R0229/001/6111","O0001/IE01526/F0041/X050/R0229/001/6111",30282,1130,"Expenditure:Employee Related Cost:Municipal Staff:Salaries, Wages and Allowances:Allowances:Service Related Benefits:Bonus","3100","Expenditure / Employee related costs","2005","Expenditure / Employee related costs","2005","Employee related costs / Performance Bonus","1200","Finance and administration","1205","Fleet Management","_"," _"," _","O","IE"," _ "," _ "," _ "," _ "," _ "," _ ","_","_"," _ "," _ "," _ "," _ "," _ "," _ "," _ "," _ ",null," _ "," _ "," _ "," _ ","",null,null," _ "," _ "," _ "," _ "," _ "," _ "," _ "," _ "," _ "," _ "," _ ",null," _ "," _ "," _ "," _ "," _ ",null," _ "," _ "," _ "," _ ","MS",3,31,"Fleet Management","Finance & Administration",null,null,115709,90847,0,121379,121379,127812,134075,140376,101400,"_","_","_","_"]
["O0001/IL53992/F0041/X058/R0229/001/CONTRA","O0001/IL53992/F0041/X058/R0229/001/CONTRA",120855,0,"Liabilities:Current Liabilities:Trade and Other Payable Exchange Transactions:Control, Clearing and Interface Accounts:Salary Clearing and Control:Leave Control:Withdrawals"," _"," _"," _ "," _ "," _ "," _ ","1200","Finance and administration","1213","Supply Chain Management","_"," _"," _","O","IL","0380","Current liabilities / Trade and other payables from exchange transactions","_","_"," _ "," _ ","_","_","0200","Cash Payments by Type / Employee related costs","0390","Employee related costs"," _ "," _ "," _ "," _ ",null,"0361","Trade and other payables / Trade and other payables from exchange transactions","0361","Trade and other payables / Trade and other payables from exchange transactions","",null,null," _ "," _ "," _ "," _ "," _ "," _ "," _ "," _ "," _ "," _ "," _ ",null," _ "," _ "," _ "," _ "," _ ",null," _ "," _ "," _ "," _ ",null,3,38,"Supply Chain Management","Finance & Administration",null,null,0,0,0,0,0,85370,89553,93762,0,"_","_","_","_"]
["O0001/IL53992/F0041/X125/R0229/001/CONTRA","O0001/IL53992/F0041/X125/R0229/001/CONTRA",122272,0,"Liabilities:Current Liabilities:Trade and Other Payable Exchange Transactions:Control, Clearing and Interface Accounts:Salary Clearing and Control:Leave Control:Withdrawals"," _"," _"," _ "," _ "," _ "," _ ","2200","Sport and recreation","2205","Sports Grounds and Stadiums","_"," _"," _","O","IL","0380","Current liabilities / Trade and other payables from exchange transactions","_","_"," _ "," _ ","_","_","0200","Cash Payments by Type / Employee related costs","0390","Employee related costs"," _ "," _ "," _ "," _ ",null,"0361","Trade and other payables / Trade and other payables from exchange transactions","0361","Trade and other payables / Trade and other payables from exchange transactions","",null,null," _ "," _ "," _ "," _ "," _ "," _ "," _ "," _ "," _ "," _ "," _ ",null," _ "," _ "," _ "," _ "," _ ",null," _ "," _ "," _ "," _ ",null,10,102,"Sports Grounds and Stadiums","Sports & Recreation",null,null,0,0,0,0,0,33806,0,0,0,"_","_","_","_"]
["O0001/IL53999/F0041/X049/R0229/001/CONTRA","O0001/IL53999/F0041/X049/R0229/001/CONTRA",120655,0,"Liabilities:Current Liabilities:Trade and Other Payable Exchange Transactions:Control, Clearing and Interface Accounts:Salary Clearing and Control:Pension Control:Deposits"," _"," _"," _ "," _ "," _ "," _ ","1200","Finance and administration","1204","Finance","_"," _"," _","O","IL","0380","Current liabilities / Trade and other payables from exchange transactions","_","_"," _ "," _ ","_","_"," _ "," _ "," _ "," _ "," _ "," _ "," _ "," _ ",null,"0361","Trade and other payables / Trade and other payables from exchange transactions","0361","Trade and other payables / Trade and other payables from exchange transactions","",null,null," _ "," _ "," _ "," _ "," _ "," _ "," _ "," _ "," _ "," _ "," _ ",null," _ "," _ "," _ "," _ "," _ ",null," _ "," _ "," _ "," _ ",null,3,32,"Finance","Finance & Administration",null,null,0,0,0,0,0,-2939183,-3083204,-3228114,0,"_","_","_","_"]
["O0001/IL53999/F0041/X119/R0229/001/CONTRA","O0001/IL53999/F0041/X119/R0229/001/CONTRA",121737,0,"Liabilities:Current Liabilities:Trade and Other Payable Exchange Transactions:Control, Clearing and Interface Accounts:Salary Clearing and Control:Pension Control:Deposits"," _"," _"," _ "," _ "," _ "," _ ","3200","Road transport","3204","Road and Traffic Regulation","_"," _"," _","O","IL","0380","Current liabilities / Trade and other payables from exchange transactions","_","_"," _ "," _ ","_","_"," _ "," _ "," _ "," _ "," _ "," _ "," _ "," _ ",null,"0361","Trade and other payables / Trade and other payables from exchange transactions","0361","Trade and other payables / Trade and other payables from exchange transactions","",null,null," _ "," _ "," _ "," _ "," _ "," _ "," _ "," _ "," _ "," _ "," _ ",null," _ "," _ "," _ "," _ "," _ ",null," _ "," _ "," _ "," _ ",null,7,72,"Road and Traffic Regulation","Road Transport",null,null,0,0,0,0,0,-3060379,-3210338,-3361223,0,"_","_","_","_"]
["O0001/IL53999/F0041/X056/R0229/001/CONTRA","O0001/IL53999/F0041/X056/R0229/001/CONTRA",120696,0,"Liabilities:Current Liabilities:Trade and Other Payable Exchange Transactions:Control, Clearing and Interface Accounts:Salary Clearing and Control:Pension Control:Deposits"," _"," _"," _ "," _ "," _ "," _ ","1200","Finance and administration","1211","Risk Management","_"," _"," _","O","IL","0380","Current liabilities / Trade and other payables from exchange transactions","_","_"," _ "," _ ","_","_"," _ "," _ "," _ "," _ "," _ "," _ "," _ "," _ ",null,"0361","Trade and other payables / Trade and other payables from exchange transactions","0361","Trade and other payables / Trade and other payables from exchange transactions","",null,null," _ "," _ "," _ "," _ "," _ "," _ "," _ "," _ "," _ "," _ "," _ ",null," _ "," _ "," _ "," _ "," _ ",null," _ "," _ "," _ "," _ ",null,3,37,"Risk Management","Finance & Administration",null,null,0,0,0,0,0,-1743805,-1829252,-1915226,0,"_","_","_","_"]
["O0001/IE00061/F0041/X096/R0229/001/6153","O0001/IE00061/F0041/X096/R0229/001/6153",30800,1583,"Expenditure:Operational Cost:Travel and Subsistence:Domestic:Daily Allowance","4100","Expenditure / Operational costs","2904","Expenditure / Operational costs","2904","Operational Costs ","3100","Planning and development","3102","Corporate Wide Strategic Planning (IDPs, LEDs)","_"," _"," _","O","IE"," _ "," _ "," _ "," _ "," _ "," _ ","_","_"," _ "," _ "," _ "," _ "," _ "," _ "," _ "," _ ",null," _ "," _ "," _ "," _ ","",null,null," _ "," _ "," _ "," _ "," _ "," _ "," _ "," _ "," _ "," _ "," _ ",null," _ "," _ "," _ "," _ "," _ ",null," _ "," _ "," _ "," _ ",null,4,42,"Corporate Wide Strategic Planning (IDPs, LEDs)","Planning and Development",null,null,4508,0,0,2000,4500,4600,4700,4800,2897,"_","_","_","_"]
["O0001/IE00061/F0041/X049/R0229/001/6115","O0001/IE00061/F0041/X049/R0229/001/6115",30371,872,"Expenditure:Operational Cost:Travel and Subsistence:Domestic:Daily Allowance","4100","Expenditure / Operational costs","2904","Expenditure / Operational costs","2904","Operational Costs ","1200","Finance and administration","1204","Finance","_"," _"," _","O","IE"," _ "," _ "," _ "," _ "," _ "," _ ","_","_"," _ "," _ "," _ "," _ "," _ "," _ "," _ "," _ ",null," _ "," _ "," _ "," _ ","",null,null," _ "," _ "," _ "," _ "," _ "," _ "," _ "," _ "," _ "," _ "," _ ",null," _ "," _ "," _ "," _ "," _ ",null," _ "," _ "," _ "," _ ",null,3,32,"Finance","Finance & Administration",null,null,11757,0,1670,3000,25000,10000,11000,12000,15952,"_","_","_","_"]
["O0001/IE00061/F0041/X051/R0229/001/6103","O0001/IE00061/F0041/X051/R0229/001/6103",30347,979,"Expenditure:Operational Cost:Travel and Subsistence:Domestic:Daily Allowance","4100","Expenditure / Operational costs","2904","Expenditure / Operational costs","2904","Operational Costs ","1200","Finance and administration","1206","Human Resources","_"," _"," _","O","IE"," _ "," _ "," _ "," _ "," _ "," _ ","_","_"," _ "," _ "," _ "," _ "," _ "," _ "," _ "," _ ",null," _ "," _ "," _ "," _ ","",null,null," _ "," _ "," _ "," _ "," _ "," _ "," _ "," _ "," _ "," _ "," _ ",null," _ "," _ "," _ "," _ "," _ ",null," _ "," _ "," _ "," _ ",null,3,34,"Human Resources","Finance & Administration",null,null,2205,695,2791,12000,12000,12000,13000,13000,3648,"_","_","_","_"]
["O0001/IE00061/F0041/X116/R0229/001/6601","O0001/IE00061/F0041/X116/R0229/001/6601",31187,1508,"Expenditure:Operational Cost:Travel and Subsistence:Domestic:Daily Allowance","4100","Expenditure / Operational costs","2904","Expenditure / Operational costs","2904","Operational Costs ","3200","Road transport","3205","Roads","_"," _"," _","O","IE"," _ "," _ "," _ "," _ "," _ "," _ ","_","_"," _ "," _ "," _ "," _ "," _ "," _ "," _ "," _ ",null," _ "," _ "," _ "," _ ","",null,null," _ "," _ "," _ "," _ "," _ "," _ "," _ "," _ "," _ "," _ "," _ ",null," _ "," _ "," _ "," _ "," _ ",null," _ "," _ "," _ "," _ ",null,7,74,"Roads","Road Transport",null,null,112320,11056,29136,15000,350000,400000,420000,430000,255261,"_","_","_","_"]
["C0006-8/IA02105/F0002/X019/R0230/001/CONTRA","C0006-8/IA02105/F0002/X019/R0230/001/CONTRA",122411,0,"Assets:Current Assets:Cash and Cash Equivalents:Cash at Bank:Bank Account:Specify (replace with account description):Deposits"," _"," _"," _ "," _ "," _ "," _ ","2100","Community and social services","2109","Disaster Management","_",2080,"Funded by Internally generated funds","C","IA","0120","Current assets / Cash and cash equivalents","0120","Cash and cash equivalents"," _ "," _ ","_","_","","Recepts - Cash and Cash Equivalents","0510","Recepts - Cash and Cash Equivalents"," _ "," _ "," _ "," _ ",null," _ "," _ "," _ "," _ ","",null,"D","1510","1510","Machinery and Equipment","Machinery and Equipment"," _ "," _ "," _ "," _ "," _ "," _ "," _ ",null," _ "," _ "," _ "," _ "," _ ",null," _ "," _ "," _ "," _ ",null,2,25,"Disaster Management","Community and Social Services",null,null,0,0,0,0,0,0,0,0,0,"_","_","_","_"]
["C0006-3/IA06282/F0002/X132/R0230/001/6501","C0006-3/IA06282/F0002/X132/R0230/001/6501",30895,1687,"Assets:Non-current Assets:Property, Plant and Equipment:Cost Model:Machinery and Equipment:Future Use:Cost:Acquisitions"," _"," _"," _ "," _ "," _ "," _ ","4400","Waste management","4403","Solid Waste Removal","CE",2080,"Funded by Internally generated funds","C","IA","0230","Non current assets / Property, plant and equipment","0231","Land: Acquisitions"," _ "," _ ","_","_"," _ "," _ "," _ "," _ ","1510","Machinery and Equipment",1510,"Machinery and Equipment",null,"0241","Property, plant and equipment (PPE) / PPE at cost/valuation (excl. finance leases)","0241","Property, plant and equipment (PPE) / PPE at cost/valuation (excl. finance leases)","",null,null,"1510","1510","Machinery and Equipment","Machinery and Equipment"," _ "," _ "," _ "," _ "," _ "," _ "," _ ",null," _ "," _ "," _ "," _ "," _ ",null," _ "," _ "," _ "," _ ",null,9,93,"Solid Waste Removal","Waste Management",null,null,0,0,0,250000,350000,2000000,2100000,2200000,0,"_","_","_","_"]
["C0006-13/IA02108/F0002/X057/R0229/001/CONTRA","C0006-13/IA02108/F0002/X057/R0229/001/CONTRA",124696,0,"Assets:Current Assets:Cash and Cash Equivalents:Cash at Bank:Bank Account:Specify (replace with account description):Withdrawals"," _"," _"," _ "," _ "," _ "," _ ","1200","Finance and administration","1212","Security Services","_",2080,"Funded by Internally generated funds","C","IA","0120","Current assets / Cash and cash equivalents","0120","Cash and cash equivalents"," _ "," _ ","_","_","0310","Other Cash Flows/Payments by Type / Capital assets","0510","Capital assets"," _ "," _ "," _ "," _ ",null," _ "," _ "," _ "," _ ","",null,"W","1510","1510","Machinery and Equipment","Machinery and Equipment"," _ "," _ "," _ "," _ "," _ "," _ "," _ ",null," _ "," _ "," _ "," _ "," _ ",null," _ "," _ "," _ "," _ ",null,14,141,"Security Services","Finance & Administration 2",null,null,0,0,0,0,0,0,0,0,0,"_","_","_","_"]
["C0006-4/IA10370/F0002/X057/R0229/001/CONTRA","C0006-4/IA10370/F0002/X057/R0229/001/CONTRA",122351,0,"Assets:Current Assets:VAT Receivable:Input Tax Capital:Recognised"," _"," _"," _ "," _ "," _ "," _ ","1200","Finance and administration","1212","Security Services","_",2080,"Funded by Internally generated funds","C","IA","0170","Current assets / VAT","0170","VAT"," _ "," _ ","_","_"," _ "," _ "," _ "," _ "," _ "," _ "," _ "," _ ",null," _ "," _ "," _ "," _ ","",null,null,"1510","1510","Machinery and Equipment","Machinery and Equipment"," _ "," _ "," _ "," _ "," _ "," _ "," _ ",null," _ "," _ "," _ "," _ "," _ ",null," _ "," _ "," _ "," _ ",null,14,141,"Security Services","Finance & Administration 2",null,null,0,0,0,0,0,75000,75000,82500,0,"_","_","_","_"]
["C0006-6/IA10370/F0002/X119/R0230/001/CONTRA","C0006-6/IA10370/F0002/X119/R0230/001/CONTRA",121691,0,"Assets:Current Assets:VAT Receivable:Input Tax Capital:Recognised"," _"," _"," _ "," _ "," _ "," _ ","3200","Road transport","3204","Road and Traffic Regulation","_",2080,"Funded by Internally generated funds","C","IA","0170","Current assets / VAT","0170","VAT"," _ "," _ ","_","_"," _ "," _ "," _ "," _ "," _ "," _ "," _ "," _ ",null," _ "," _ "," _ "," _ ","",null,null,"1510","1510","Machinery and Equipment","Machinery and Equipment"," _ "," _ "," _ "," _ "," _ "," _ "," _ ",null," _ "," _ "," _ "," _ "," _ ",null," _ "," _ "," _ "," _ ",null,7,72,"Road and Traffic Regulation","Road Transport",null,null,0,0,0,0,0,75000,90000,90000,0,"_","_","_","_"]
["C0006-6/IL65531/F0002/X119/R0230/001/CONTRA","C0006-6/IL65531/F0002/X119/R0230/001/CONTRA",121693,0,"Liabilities:Current Liabilities:Trade and Other Payable Exchange Transactions:Payables and Accruals : Contractors:Withdrawals"," _"," _"," _ "," _ "," _ "," _ ","3200","Road transport","3204","Road and Traffic Regulation","_",2080,"Funded by Internally generated funds","C","IL","0380","Current liabilities / Trade and other payables from exchange transactions","_","_"," _ "," _ ","_","_","0200","Cash Payments by Type / Contracted Services","0450","Cash Payments by Type / Contracted Services"," _ "," _ "," _ "," _ ",null,"0361","Trade and other payables / Trade and other payables from exchange transactions","0361","Trade and other payables / Trade and other payables from exchange transactions","",null,null,"1510","1510","Machinery and Equipment","Machinery and Equipment"," _ "," _ "," _ "," _ "," _ "," _ "," _ ",null," _ "," _ "," _ "," _ "," _ ",null," _ "," _ "," _ "," _ ",null,7,72,"Road and Traffic Regulation","Road Transport",null,null,0,0,0,0,0,575000,690000,690000,0,"_","_","_","_"]
["C0006-4/IL65530/F0002/X057/R0229/001/CONTRA","C0006-4/IL65530/F0002/X057/R0229/001/CONTRA",122352,0,"Liabilities:Current Liabilities:Trade and Other Payable Exchange Transactions:Payables and Accruals : Contractors:Deposits"," _"," _"," _ "," _ "," _ "," _ ","1200","Finance and administration","1212","Security Services","_",2080,"Funded by Internally generated funds","C","IL","0380","Current liabilities / Trade and other payables from exchange transactions","_","_"," _ "," _ ","_","_"," _ "," _ "," _ "," _ "," _ "," _ "," _ "," _ ",null,"0361","Trade and other payables / Trade and other payables from exchange transactions","0361","Trade and other payables / Trade and other payables from exchange transactions","",null,null,"1510","1510","Machinery and Equipment","Machinery and Equipment"," _ "," _ "," _ "," _ "," _ "," _ "," _ ",null," _ "," _ "," _ "," _ "," _ ",null," _ "," _ "," _ "," _ ",null,14,141,"Security Services","Finance & Administration 2",null,null,0,0,0,0,0,-575000,-575000,-632500,0,"_","_","_","_"]
["O1548-1/IA10375/F2496/X046/R0229/001/CONTRA","O1548-1/IA10375/F2496/X046/R0229/001/CONTRA",121976,0,"Assets:Current Assets:VAT Receivable:Input Tax Accrual:Recognised"," _"," _"," _ "," _ "," _ "," _ ","1200","Finance and administration","1201","Administrative and Corporate Support","_"," _"," _","O","IA","0170","Current assets / VAT","0170","VAT"," _ "," _ ","_","_"," _ "," _ "," _ "," _ "," _ "," _ "," _ "," _ ",null," _ "," _ "," _ "," _ ","",null,null," _ "," _ "," _ "," _ "," _ "," _ ","1490","Furniture and Office Equipment"," _ ","1490","Furniture and Office Equipment",null," _ "," _ "," _ "," _ "," _ ",null," _ "," _ "," _ "," _ ",null,14,142,"Administrative and Corporate Support","Finance & Administration 2",null,null,0,0,0,0,0,10500,10500,12750,0,"_","_","_","_"]
["O1540-1/IE00650/F2496/X052/R0229/001/6105","O1540-1/IE00650/F2496/X052/R0229/001/6105",31136,1046,"Expenditure:Contracted Services:Contractors:Maintenance of Equipment","3800","Expenditure / Contracted services","2703","Expenditure / Contracted services","2703","Contracted Services ","1200","Finance and administration","1207","Information Technology","_"," _"," _","O","IE"," _ "," _ "," _ "," _ "," _ "," _ ","_","_"," _ "," _ "," _ "," _ "," _ "," _ "," _ "," _ ",null," _ "," _ "," _ "," _ ","",null,null," _ "," _ "," _ "," _ "," _ "," _ ","1470","Computer Equipment"," _ ","1470","Computer Equipment","RM"," _ "," _ "," _ "," _ "," _ ",null," _ "," _ "," _ "," _ ",null,14,143,"Information Technology","Finance & Administration 2",null,null,26882,7901,16552,300000,150000,300000,320000,330000,0,"_","_","_","_"]
["C0134-1/IL65530/F0791/X116/R0230/001/CONTRA","C0134-1/IL65530/F0791/X116/R0230/001/CONTRA",122717,0,"Liabilities:Current Liabilities:Trade and Other Payable Exchange Transactions:Payables and Accruals : Contractors:Deposits"," _"," _"," _ "," _ "," _ "," _ ","3200","Road transport","3205","Roads","_",2010,"Funded by National Government","C","IL","0380","Current liabilities / Trade and other payables from exchange transactions","_","_"," _ "," _ ","_","_"," _ "," _ "," _ "," _ "," _ "," _ "," _ "," _ ",null,"0361","Trade and other payables / Trade and other payables from exchange transactions","0361","Trade and other payables / Trade and other payables from exchange transactions","",null,null," _ "," _ "," _ "," _ ","0190","Infrastructure / Storm water Infrastructure / Attenuation"," _ "," _ ","0190"," _ "," _ ",null," _ "," _ ","Infrastructure / Storm water Infrastructure / Attenuation"," _ "," _ ",null," _ "," _ "," _ "," _ ",null,7,74,"Roads","Road Transport",null,null,0,0,0,0,0,0,0,0,0,"_","_","_","_"]
["C0134-1/IA02105/F0791/X116/R0230/001/CONTRA","C0134-1/IA02105/F0791/X116/R0230/001/CONTRA",122715,0,"Assets:Current Assets:Cash and Cash Equivalents:Cash at Bank:Bank Account:Specify (replace with account description):Deposits"," _"," _"," _ "," _ "," _ "," _ ","3200","Road transport","3205","Roads","_",2010,"Funded by National Government","C","IA","0120","Current assets / Cash and cash equivalents","0120","Cash and cash equivalents","0","CASH FLOW FROM OPERATING ACTIVITIES / Receipts / Transfers and Subsidies - Capital","0","Transfers - National, Provincial, District Municipalities ","","Recepts - Cash and Cash Equivalents","0510","Recepts - Cash and Cash Equivalents"," _ "," _ "," _ "," _ ",null," _ "," _ "," _ "," _ ","0280","Other Cash Flows by Source / Transfers and subsidies - capital (monetary allocations) (National / Provincial and District)","D"," _ "," _ "," _ "," _ ","0190","Infrastructure / Storm water Infrastructure / Attenuation"," _ "," _ ","0190"," _ "," _ ",null," _ "," _ ","Infrastructure / Storm water Infrastructure / Attenuation"," _ "," _ ",null," _ "," _ "," _ "," _ ",null,7,74,"Roads","Road Transport",null,null,0,0,0,0,0,0,0,0,0,"_","_","_","_"]
["D0001/IA02438/F0001/X049/R0230/001/6114","D0001/IA02438/F0001/X049/R0230/001/6114",109921,8805,"Assets:Non-current Assets:Construction Work-in-progress:Opening Balance"," _"," _"," _ "," _ "," _ "," _ ","1200","Finance and administration","1204","Finance","_"," _"," _","D","IA","0230","Non current assets / Property, plant and equipment","0231","Land: Acquisitions"," _ "," _ ","_","_"," _ "," _ "," _ "," _ "," _ "," _ "," _ "," _ ",null,"0241","Property, plant and equipment (PPE) / PPE at cost/valuation (excl. finance leases)","0241","Property, plant and equipment (PPE) / PPE at cost/valuation (excl. finance leases)","",null,null," _ "," _ "," _ "," _ "," _ "," _ "," _ "," _ "," _ "," _ "," _ ",null," _ "," _ "," _ "," _ "," _ ",null," _ "," _ "," _ "," _ ",null,3,32,"Finance","Finance & Administration",null,null,0,0,0,0,122772590,0,0,0,0,"_","_","_","WIP"]
["D0001/IA10094/F0001/X049/R0230/001/6115","D0001/IA10094/F0001/X049/R0230/001/6115",110105,8989,"Assets:Current Assets:Cash and Cash Equivalents:Cash at Bank:Bank Account:Specify (replace with account description):Opening Balance"," _"," _"," _ "," _ "," _ "," _ ","1200","Finance and administration","1204","Finance","_"," _"," _","D","IA","0120","Current assets / Cash and cash equivalents","0120","Cash and cash equivalents"," _ "," _ ","_","_","0420","Cash/cash equivalents at the month/year begin:","0560","Cash/cash equivalents at the month/year begin:"," _ "," _ "," _ "," _ ",null," _ "," _ "," _ "," _ ","",null,null," _ "," _ "," _ "," _ "," _ "," _ "," _ "," _ "," _ "," _ "," _ ",null," _ "," _ "," _ "," _ "," _ ",null," _ "," _ "," _ "," _ ",null,3,32,"Finance","Finance & Administration",null,null,0,0,0,0,0,0,0,0,0,"_","_","_","_"]
["D0001/IA06288/F0001/X047/R0230/001/6114","D0001/IA06288/F0001/X047/R0230/001/6114",109933,8817,"Assets:Non-current Assets:Property, Plant and Equipment:Cost Model:Machinery and Equipment:Future Use:Cost:Opening Balance"," _"," _"," _ "," _ "," _ "," _ ","1200","Finance and administration","1202","Asset Management","_"," _"," _","D","IA","0230","Non current assets / Property, plant and equipment","0231","Land: Acquisitions"," _ "," _ ","_","_"," _ "," _ "," _ "," _ ","1510","Machinery and Equipment",1510,"Machinery and Equipment",null,"0241","Property, plant and equipment (PPE) / PPE at cost/valuation (excl. finance leases)","0241","Property, plant and equipment (PPE) / PPE at cost/valuation (excl. finance leases)","",null,null," _ "," _ "," _ "," _ "," _ "," _ "," _ "," _ "," _ "," _ "," _ ",null," _ "," _ "," _ "," _ "," _ ",null," _ "," _ "," _ "," _ ",null,3,33,"Asset Management","Finance & Administration",null,null,0,0,0,0,0,0,0,0,0,"_","_","_","_"]
["D0001/IL65530/F0001/X049/R0230/001/CONTRA","D0001/IL65530/F0001/X049/R0230/001/CONTRA",123866,0,"Liabilities:Current Liabilities:Trade and Other Payable Exchange Transactions:Payables and Accruals : Contractors:Deposits"," _"," _"," _ "," _ "," _ "," _ ","1200","Finance and administration","1204","Finance","_"," _"," _","D","IL","0380","Current liabilities / Trade and other payables from exchange transactions","_","_"," _ "," _ ","_","_"," _ "," _ "," _ "," _ "," _ "," _ "," _ "," _ ",null,"0361","Trade and other payables / Trade and other payables from exchange transactions","0361","Trade and other payables / Trade and other payables from exchange transactions","",null,null," _ "," _ "," _ "," _ "," _ "," _ "," _ "," _ "," _ "," _ "," _ ",null," _ "," _ "," _ "," _ "," _ ",null," _ "," _ "," _ "," _ ",null,3,32,"Finance","Finance & Administration",null,null,0,0,0,0,0,0,0,0,0,"_","_","_","_"]
["D0001/IA00038/F0001/X047/R0029/001/6114","D0001/IA00038/F0001/X047/R0029/001/6114",69697,4588,"Assets:Non-current Assets:Property, Plant and Equipment:Cost Model:Community Assets:Cost:Opening Balance"," _"," _"," _ "," _ "," _ "," _ ","1200","Finance and administration","1202","Asset Management","_"," _"," _","D","IA","0230","Non current assets / Property, plant and equipment","0231","Land: Acquisitions"," _ "," _ ","_","_"," _ "," _ "," _ "," _ ","0770","Community Assets",770,"Community Assets",null,"0241","Property, plant and equipment (PPE) / PPE at cost/valuation (excl. finance leases)","0241","Property, plant and equipment (PPE) / PPE at cost/valuation (excl. finance leases)","",null,null," _ "," _ "," _ "," _ "," _ "," _ "," _ "," _ "," _ "," _ "," _ ",null," _ "," _ "," _ "," _ "," _ ",null," _ "," _ "," _ "," _ ",null,3,33,"Asset Management","Finance & Administration",null,null,0,0,0,0,0,0,0,0,0,"_","_","_","_"]
["D0001/IA010644/F2496/X049/R0023/001/CONTRA","D0001/IA010644/F2496/X049/R0023/001/CONTRA",121204,0,"Assets:Current Assets:Receivables from Non-exchange Transactions:Property Rates by Usage:Industrial Properties:Monthly Billing"," _"," _"," _ "," _ "," _ "," _ ","1200","Finance and administration","1204","Finance","_"," _"," _","D","IA","0140","Current assets / Receivables from non-exchange transactions","0141","Property rates"," _ "," _ ","_","_"," _ "," _ "," _ "," _ "," _ "," _ "," _ "," _ ",null,"0126","Receivables from non-exchange transactions / Property rates","0126","Receivables from non-exchange transactions / Property rates","",null,null," _ "," _ "," _ "," _ "," _ "," _ "," _ "," _ "," _ "," _ "," _ ",null," _ "," _ "," _ "," _ "," _ ",null," _ "," _ "," _ "," _ ",null,3,32,"Finance","Finance & Administration",null,null,0,0,0,0,0,0,0,0,0,"_","_","_","_"]
["D0001/IL09096/F15762/X006/R0229/001/6353","D0001/IL09096/F15762/X006/R0229/001/6353",99834,7719,"Liabilities:Current Liabilities:Trade and Other Payable Non-exchange Transactions:Transfers and Subsidies Unspent:Operational:Monetary Allocations:National Government:Municipal Disaster Response Grant:Receipts"," _"," _"," _ "," _ "," _ "," _ ","2100","Community and social services","2106","Community Halls and Facilities","_"," _"," _","D","IL","0390","Current liabilities / Trade and other payables from non-exchange transactions","_","_"," _ "," _ ","_","_"," _ "," _ "," _ "," _ "," _ "," _ "," _ "," _ ",null,"0363","Trade and other payables / Trade payables from Non-exchange transactions: Unspent conditional Grants","0363","Trade and other payables / Trade payables from Non-exchange transactions: Unspent conditional Grants","",null,null," _ "," _ "," _ "," _ "," _ "," _ "," _ "," _ "," _ "," _ "," _ ",null," _ "," _ "," _ "," _ "," _ ",null," _ "," _ "," _ "," _ ",null,2,22,"Community Halls and Facilities","Community and Social Services",null,null,0,0,0,0,0,0,0,0,0,"_","_","_","_"]
["D0001/IA09751/F0001/X049/R0230/001/6119","D0001/IA09751/F0001/X049/R0230/001/6119",61355,4070,"Assets:Current Assets:Cash and Cash Equivalents:Cash at Bank:Bank Account:Specify (replace with account description):Withdrawals"," _"," _"," _ "," _ "," _ "," _ ","1200","Finance and administration","1204","Finance","_"," _"," _","D","IA","0120","Current assets / Cash and cash equivalents","0120","Cash and cash equivalents"," _ "," _ ","_","_"," _ "," _ "," _ "," _ "," _ "," _ "," _ "," _ ",null," _ "," _ "," _ "," _ ","",null,"W"," _ "," _ "," _ "," _ "," _ "," _ "," _ "," _ "," _ "," _ "," _ ",null," _ "," _ "," _ "," _ "," _ ",null," _ "," _ "," _ "," _ ",null,3,32,"Finance","Finance & Administration",null,null,0,0,0,0,0,0,0,0,0,"_","_","_","_"]
["D0001/IA010634/F0001/X049/R0230/001/CONTRA","D0001/IA010634/F0001/X049/R0230/001/CONTRA",122537,0,"Assets:Current Assets:Receivables from Non-exchange Transactions:Property Rates by Usage:Business and Commercial Properties:Collections"," _"," _"," _ "," _ "," _ "," _ ","1200","Finance and administration","1204","Finance","_"," _"," _","D","IA","0140","Current assets / Receivables from non-exchange transactions","0141","Property rates"," _ "," _ ","_","_"," _ "," _ "," _ "," _ "," _ "," _ "," _ "," _ ",null,"0126","Receivables from non-exchange transactions / Property rates","0126","Receivables from non-exchange transactions / Property rates","",null,null," _ "," _ "," _ "," _ "," _ "," _ "," _ "," _ "," _ "," _ "," _ ",null," _ "," _ "," _ "," _ "," _ ",null," _ "," _ "," _ "," _ ",null,3,32,"Finance","Finance & Administration",null,null,0,0,0,0,0,0,0,0,0,"_","_","_","_"]
["D0001/IA02355/F0001/X049/R0230/001/6115","D0001/IA02355/F0001/X049/R0230/001/6115",79690,5581,"Assets:Current Assets:Trade and other Receivables from Exchange Transactions:Trading Service and Customer Service Debtors:Property Rental Debtors:Debt Write-off"," _"," _"," _ "," _ "," _ "," _ ","1200","Finance and administration","1204","Finance","_"," _"," _","D","IA","0130","Current assets / Trade and other receivables from exchange transactions","_","_"," _ "," _ ","_","_"," _ "," _ "," _ "," _ "," _ "," _ "," _ "," _ ",null,"0115","Trade and other receivables from exchange transactions / Other trade receivables from exchange transactions","0115","Trade and other receivables from exchange transactions / Other trade receivables from exchange transactions","",null,null," _ "," _ "," _ "," _ "," _ "," _ "," _ "," _ "," _ "," _ "," _ ",null," _ "," _ "," _ "," _ "," _ ",null," _ "," _ "," _ "," _ ",null,3,32,"Finance","Finance & Administration",null,null,0,0,0,0,0,0,0,0,0,"_","_","_","_"]
["D0001/IL00735/F0001/X049/R0230/001/6115","D0001/IL00735/F0001/X049/R0230/001/6115",109951,8835,"Liabilities:Current Liabilities:Provision:Ex-gratia Pension:Opening Balance"," _"," _"," _ "," _ "," _ "," _ ","1200","Finance and administration","1204","Finance","_"," _"," _","D","IL","0400","Current liabilities / Provision","0400","Provision"," _ "," _ ","_","_"," _ "," _ "," _ "," _ "," _ "," _ "," _ "," _ ",null," _ "," _ "," _ "," _ ","",null,null," _ "," _ "," _ "," _ "," _ "," _ "," _ "," _ "," _ "," _ "," _ ",null," _ "," _ "," _ "," _ "," _ ",null," _ "," _ "," _ "," _ ",null,3,32,"Finance","Finance & Administration",null,null,0,0,0,0,0,0,0,0,0,"_","_","_","_"]
["D0001/IA10101/F0001/X049/R0230/001/6115","D0001/IA10101/F0001/X049/R0230/001/6115",110118,9002,"Assets:Current Assets:Cash and Cash Equivalents:Cash at Bank:Bank Account:Specify (replace with account description):Opening Balance"," _"," _"," _ "," _ "," _ "," _ ","1200","Finance and administration","1204","Finance","_"," _"," _","D","IA","0120","Current assets / Cash and cash equivalents","0120","Cash and cash equivalents"," _ "," _ ","_","_","0420","Cash/cash equivalents at the month/year begin:","0560","Cash/cash equivalents at the month/year begin:"," _ "," _ "," _ "," _ ",null," _ "," _ "," _ "," _ ","",null,null," _ "," _ "," _ "," _ "," _ "," _ "," _ "," _ "," _ "," _ "," _ ",null," _ "," _ "," _ "," _ "," _ ",null," _ "," _ "," _ "," _ ",null,3,32,"Finance","Finance & Administration",null,null,0,0,0,0,0,0,0,0,0,"_","_","_","_"]
["D0001/IL54000/F0001/X049/R0229/001/6121","D0001/IL54000/F0001/X049/R0229/001/6121",120343,11228,"Liabilities:Current Liabilities:Trade and Other Payable Exchange Transactions:Control, Clearing and Interface Accounts:Salary Clearing and Control:Pension Control:Withdrawals"," _"," _"," _ "," _ "," _ "," _ ","1200","Finance and administration","1204","Finance","_"," _"," _","D","IL","0380","Current liabilities / Trade and other payables from exchange transactions","_","_"," _ "," _ ","_","_"," _ "," _ "," _ "," _ "," _ "," _ "," _ "," _ ",null,"0361","Trade and other payables / Trade and other payables from exchange transactions","0361","Trade and other payables / Trade and other payables from exchange transactions","",null,null," _ "," _ "," _ "," _ "," _ "," _ "," _ "," _ "," _ "," _ "," _ ",null," _ "," _ "," _ "," _ "," _ ",null," _ "," _ "," _ "," _ ",null,3,32,"Finance","Finance & Administration",null,null,0,0,0,0,0,0,0,0,-2508571,"_","_","_","_"]
["D0001/IL53821/F0041/X056/R0229/001/BSB","D0001/IL53821/F0041/X056/R0229/001/BSB",120455,11334,"Liabilities:Current Liabilities:Trade and Other Payable Exchange Transactions:Payables and Accruals : General:Withdrawals"," _"," _"," _ "," _ "," _ "," _ ","1200","Finance and administration","1211","Risk Management","_"," _"," _","D","IL","0380","Current liabilities / Trade and other payables from exchange transactions","_","_"," _ "," _ ","_","_","0200","Cash Payments by Type / Other expenditure","0480","Other expenditure"," _ "," _ "," _ "," _ ",null,"0361","Trade and other payables / Trade and other payables from exchange transactions","0361","Trade and other payables / Trade and other payables from exchange transactions","",null,null," _ "," _ "," _ "," _ "," _ "," _ "," _ "," _ "," _ "," _ "," _ ",null," _ "," _ "," _ "," _ "," _ ",null," _ "," _ "," _ "," _ ",null,3,37,"Risk Management","Finance & Administration",null,null,0,0,0,0,1649195,0,0,0,0,"_","_","_","_"]
["D0001/IL53821/F0041/X051/R0229/001/BSB","D0001/IL53821/F0041/X051/R0229/001/BSB",120464,11279,"Liabilities:Current Liabilities:Trade and Other Payable Exchange Transactions:Payables and Accruals : General:Withdrawals"," _"," _"," _ "," _ "," _ "," _ ","1200","Finance and administration","1206","Human Resources","_"," _"," _","D","IL","0380","Current liabilities / Trade and other payables from exchange transactions","_","_"," _ "," _ ","_","_","0200","Cash Payments by Type / Other expenditure","0480","Other expenditure"," _ "," _ "," _ "," _ ",null,"0361","Trade and other payables / Trade and other payables from exchange transactions","0361","Trade and other payables / Trade and other payables from exchange transactions","",null,null," _ "," _ "," _ "," _ "," _ "," _ "," _ "," _ "," _ "," _ "," _ ",null," _ "," _ "," _ "," _ "," _ ",null," _ "," _ "," _ "," _ ",null,3,34,"Human Resources","Finance & Administration",null,null,0,0,0,0,10573968,0,0,0,0,"_","_","_","_"]
["D0001/IL53821/F0041/X006/R0229/001/BSB","D0001/IL53821/F0041/X006/R0229/001/BSB",120477,11252,"Liabilities:Current Liabilities:Trade and Other Payable Exchange Transactions:Payables and Accruals : General:Withdrawals"," _"," _"," _ "," _ "," _ "," _ ","2100","Community and social services","2106","Community Halls and Facilities","_"," _"," _","D","IL","0380","Current liabilities / Trade and other payables from exchange transactions","_","_"," _ "," _ ","_","_","0200","Cash Payments by Type / Other expenditure","0480","Other expenditure"," _ "," _ "," _ "," _ ",null,"0361","Trade and other payables / Trade and other payables from exchange transactions","0361","Trade and other payables / Trade and other payables from exchange transactions","",null,null," _ "," _ "," _ "," _ "," _ "," _ "," _ "," _ "," _ "," _ "," _ ",null," _ "," _ "," _ "," _ "," _ ",null," _ "," _ "," _ "," _ ",null,2,22,"Community Halls and Facilities","Community and Social Services",null,null,0,0,0,0,224748,0,0,0,0,"_","_","_","_"]
["D0001/IL53821/F0041/X132/R0229/001/BSB","D0001/IL53821/F0041/X132/R0229/001/BSB",120481,11315,"Liabilities:Current Liabilities:Trade and Other Payable Exchange Transactions:Payables and Accruals : General:Withdrawals"," _"," _"," _ "," _ "," _ "," _ ","4400","Waste management","4403","Solid Waste Removal","_"," _"," _","D","IL","0380","Current liabilities / Trade and other payables from exchange transactions","_","_"," _ "," _ ","_","_","0200","Cash Payments by Type / Other expenditure","0480","Other expenditure"," _ "," _ "," _ "," _ ",null,"0361","Trade and other payables / Trade and other payables from exchange transactions","0361","Trade and other payables / Trade and other payables from exchange transactions","",null,null," _ "," _ "," _ "," _ "," _ "," _ "," _ "," _ "," _ "," _ "," _ ",null," _ "," _ "," _ "," _ "," _ ",null," _ "," _ "," _ "," _ ",null,9,93,"Solid Waste Removal","Waste Management",null,null,0,0,0,0,1513906,0,0,0,0,"_","_","_","_"]
["D0001/IA02095/F0001/X049/R0230/001/6117","D0001/IA02095/F0001/X049/R0230/001/6117",110157,9041,"Assets:Current Assets:Cash and Cash Equivalents:Call Deposits and Investments:Special Deposit for the Payment of Dividend:Specify (replace with account description):Opening Balance"," _"," _"," _ "," _ "," _ "," _ ","1200","Finance and administration","1204","Finance","_"," _"," _","D","IA","0120","Current assets / Cash and cash equivalents","0120","Cash and cash equivalents"," _ "," _ ","_","_","0420","Cash/cash equivalents at the month/year begin:","0560","Cash/cash equivalents at the month/year begin:"," _ "," _ "," _ "," _ ",null," _ "," _ "," _ "," _ ","",null,null," _ "," _ "," _ "," _ "," _ "," _ "," _ "," _ "," _ "," _ "," _ ",null," _ "," _ "," _ "," _ "," _ ",null," _ "," _ "," _ "," _ ",null,3,32,"Finance","Finance & Administration",null,null,0,0,0,0,0,0,0,0,0,"_","_","_","_"]
["D0001/IA010654/F2496/X059/R0230/001/6115","D0001/IA010654/F2496/X059/R0230/001/6115",31236,966,"Assets:Current Assets:Receivables from Non-exchange Transactions:Property Rates by Usage:Public Benefit Organisations:Monthly Billing"," _"," _"," _ "," _ "," _ "," _ ","1200","Finance and administration","1214","Valuation Service","_"," _"," _","D","IA","0140","Current assets / Receivables from non-exchange transactions","0141","Property rates"," _ "," _ ","_","_"," _ "," _ "," _ "," _ "," _ "," _ "," _ "," _ ",null,"0126","Receivables from non-exchange transactions / Property rates","0126","Receivables from non-exchange transactions / Property rates","",null,null," _ "," _ "," _ "," _ "," _ "," _ "," _ "," _ "," _ "," _ "," _ ",null," _ "," _ "," _ "," _ "," _ ",null," _ "," _ "," _ "," _ ",null,null,0,"Valuation Service"," _ ",null,null,248556,248556,238115,0,1429,0,0,0,249270,"_","_","_","_"]
["D0001/IA01965/F0001/X047/R0229/001/6114","D0001/IA01965/F0001/X047/R0229/001/6114",120358,11245,"Assets:Non-current Assets:Investment Property:Fair Value Model:Opening Balance"," _"," _"," _ "," _ "," _ "," _ ","1200","Finance and administration","1202","Asset Management","_"," _"," _","D","IA","0220","Non current assets / Investment property","0220","Investment property"," _ "," _ ","_","_"," _ "," _ "," _ "," _ ","1110","Investment properties",1110,"Investment properties",null," _ "," _ "," _ "," _ ","",null,null," _ "," _ "," _ "," _ "," _ "," _ "," _ "," _ "," _ "," _ "," _ ",null," _ "," _ "," _ "," _ "," _ ",null," _ "," _ "," _ "," _ ",null,3,33,"Asset Management","Finance & Administration",null,null,0,0,0,0,0,0,0,0,0,"_","_","_","_"]
["D0001/IL65531/F0001/X052/R0230/001/CONTRA","D0001/IL65531/F0001/X052/R0230/001/CONTRA",122827,0,"Liabilities:Current Liabilities:Trade and Other Payable Exchange Transactions:Payables and Accruals : Contractors:Withdrawals"," _"," _"," _ "," _ "," _ "," _ ","1200","Finance and administration","1207","Information Technology","_"," _"," _","D","IL","0380","Current liabilities / Trade and other payables from exchange transactions","_","_"," _ "," _ ","_","_"," _ "," _ "," _ "," _ "," _ "," _ "," _ "," _ ",null,"0361","Trade and other payables / Trade and other payables from exchange transactions","0361","Trade and other payables / Trade and other payables from exchange transactions","",null,null," _ "," _ "," _ "," _ "," _ "," _ "," _ "," _ "," _ "," _ "," _ ",null," _ "," _ "," _ "," _ "," _ ",null," _ "," _ "," _ "," _ ",null,14,143,"Information Technology","Finance & Administration 2",null,null,0,0,0,0,0,0,0,0,0,"_","_","_","_"]
["D0001/IR00992/F0930/X132/R0230/001/6501","D0001/IR00992/F0930/X132/R0230/001/6501",41291,1775,"Revenue:Exchange Revenue:Service Charges:Waste Management:Refuse Removal","0600","Exchange Revenue / Service charges - Waste Management","0600","Exchange Revenue / Service charges - Waste Management"," _ "," _ ","4400","Waste management","4403","Solid Waste Removal","_"," _"," _","D","IR"," _ "," _ "," _ "," _ "," _ "," _ ","_","_"," _ "," _ "," _ "," _ "," _ "," _ "," _ "," _ ",null," _ "," _ "," _ "," _ ","",null,null," _ "," _ "," _ "," _ "," _ "," _ "," _ "," _ "," _ "," _ "," _ ",null," _ "," _ "," _ "," _ "," _ ",null," _ "," _ "," _ "," _ ",null,9,93,"Solid Waste Removal","Waste Management",null,null,1113169,1507769,1064623,-3000000,-1300000,1368900,1435976,1503467,848778,"_","_","_","_"]
["D0001/IA010705/F2496/X049/R0021/001/CONTRA","D0001/IA010705/F2496/X049/R0021/001/CONTRA",121186,0,"Assets:Current Assets:Receivables from Non-exchange Transactions:Property Rates by Usage:Business and Commercial Properties:Monthly Billing"," _"," _"," _ "," _ "," _ "," _ ","1200","Finance and administration","1204","Finance","_"," _"," _","D","IA","0140","Current assets / Receivables from non-exchange transactions","0141","Property rates"," _ "," _ ","_","_"," _ "," _ "," _ "," _ "," _ "," _ "," _ "," _ ",null,"0126","Receivables from non-exchange transactions / Property rates","0126","Receivables from non-exchange transactions / Property rates","",null,null," _ "," _ "," _ "," _ "," _ "," _ "," _ "," _ "," _ "," _ "," _ ",null," _ "," _ "," _ "," _ "," _ ",null," _ "," _ "," _ "," _ ",null,3,32,"Finance","Finance & Administration",null,null,0,0,0,0,0,-6208103,-6512300,-6818378,0,"_","_","_","_"]
["D0001/IR01415/F0041/X049/R0229/001/6115","D0001/IR01415/F0041/X049/R0229/001/6115",120245,10129,"Revenue:Exchange Revenue:Operational Revenue:Breakages and Losses Recovered","1600","Exchange Revenue / Operational Revenue","1600","Exchange Revenue / Operational Revenue"," _ "," _ ","1200","Finance and administration","1204","Finance","_"," _"," _","D","IR"," _ "," _ "," _ "," _ "," _ "," _ ","_","_"," _ "," _ "," _ "," _ "," _ "," _ "," _ "," _ ",null," _ "," _ "," _ "," _ ","",null,null," _ "," _ "," _ "," _ "," _ "," _ "," _ "," _ "," _ "," _ "," _ ",null," _ "," _ "," _ "," _ "," _ ",null," _ "," _ "," _ "," _ ",null,3,32,"Finance","Finance & Administration",null,null,34882,0,0,0,0,0,0,0,0,"_","_","_","_"]
["D0001/IL39588/F0932/X146/R0041/001/CONTRA","D0001/IL39588/F0932/X146/R0041/001/CONTRA",122601,0,"Liabilities:Current Liabilities:VAT Credit:  Output Tax Accrual:Recognised"," _"," _"," _ "," _ "," _ "," _ ","4200","Water management","4202","Water Distribution","_"," _"," _","D","IL","0410","Current liabilities / VAT","_","_"," _ "," _ ","_","_"," _ "," _ "," _ "," _ "," _ "," _ "," _ "," _ ",null,"0365","Trade and other payables / VAT","0365","Trade and other payables / VAT","",null,null," _ "," _ "," _ "," _ "," _ "," _ "," _ "," _ "," _ "," _ "," _ ",null," _ "," _ "," _ "," _ "," _ ",null," _ "," _ "," _ "," _ ",null,11,111,"Water Distribution","Water Management",null,null,0,0,0,0,0,0,0,0,0,"_","_","_","_"]
["D0001/IL39588/F2496/X049/R0041/001/CONTRA","D0001/IL39588/F2496/X049/R0041/001/CONTRA",121229,0,"Liabilities:Current Liabilities:VAT Credit:  Output Tax Accrual:Recognised"," _"," _"," _ "," _ "," _ "," _ ","1200","Finance and administration","1204","Finance","_"," _"," _","D","IL","0410","Current liabilities / VAT","_","_"," _ "," _ ","_","_"," _ "," _ "," _ "," _ "," _ "," _ "," _ "," _ ",null,"0365","Trade and other payables / VAT","0365","Trade and other payables / VAT","",null,null," _ "," _ "," _ "," _ "," _ "," _ "," _ "," _ "," _ "," _ "," _ ",null," _ "," _ "," _ "," _ "," _ ",null," _ "," _ "," _ "," _ ",null,3,32,"Finance","Finance & Administration",null,null,0,0,0,0,0,0,0,0,0,"_","_","_","_"]
["D0001/IL39588/F2494/X055/R0230/001/CONTRA","D0001/IL39588/F2494/X055/R0230/001/CONTRA",121165,0,"Liabilities:Current Liabilities:VAT Credit:  Output Tax Accrual:Recognised"," _"," _"," _ "," _ "," _ "," _ ","1200","Finance and administration","1210","Property Services","_"," _"," _","D","IL","0410","Current liabilities / VAT","_","_"," _ "," _ ","_","_"," _ "," _ "," _ "," _ "," _ "," _ "," _ "," _ ",null,"0365","Trade and other payables / VAT","0365","Trade and other payables / VAT","",null,null," _ "," _ "," _ "," _ "," _ "," _ "," _ "," _ "," _ "," _ "," _ ",null," _ "," _ "," _ "," _ "," _ ",null," _ "," _ "," _ "," _ ",null,3,36,"Property Services","Finance & Administration",null,null,0,0,0,0,0,0,0,0,0,"_","_","_","_"]
["D0001/IL39588/F0047/X004/R0229/001/CONTRA","D0001/IL39588/F0047/X004/R0229/001/CONTRA",121841,0,"Liabilities:Current Liabilities:VAT Credit:  Output Tax Accrual:Recognised"," _"," _"," _ "," _ "," _ "," _ ","2100","Community and social services","2104","Cemeteries, Funeral Parlours and Crematoriums","_"," _"," _","D","IL","0410","Current liabilities / VAT","_","_"," _ "," _ ","_","_"," _ "," _ "," _ "," _ "," _ "," _ "," _ "," _ ",null,"0365","Trade and other payables / VAT","0365","Trade and other payables / VAT","",null,null," _ "," _ "," _ "," _ "," _ "," _ "," _ "," _ "," _ "," _ "," _ ",null," _ "," _ "," _ "," _ "," _ ",null," _ "," _ "," _ "," _ ",null,2,24,"Cemeteries, Funeral Parlours and Crematoriums","Community and Social Services",null,null,0,0,0,0,0,30000,31470,32949,0,"_","_","_","_"]
["D0001/IL39588/F0042/X116/R0230/001/CONTRA","D0001/IL39588/F0042/X116/R0230/001/CONTRA",121701,0,"Liabilities:Current Liabilities:VAT Credit:  Output Tax Accrual:Recognised"," _"," _"," _ "," _ "," _ "," _ ","3200","Road transport","3205","Roads","_"," _"," _","D","IL","0410","Current liabilities / VAT","_","_"," _ "," _ ","_","_"," _ "," _ "," _ "," _ "," _ "," _ "," _ "," _ ",null,"0365","Trade and other payables / VAT","0365","Trade and other payables / VAT","",null,null," _ "," _ "," _ "," _ "," _ "," _ "," _ "," _ "," _ "," _ "," _ ",null," _ "," _ "," _ "," _ "," _ ",null," _ "," _ "," _ "," _ ",null,7,74,"Roads","Road Transport",null,null,0,0,0,0,0,0,0,0,0,"_","_","_","_"]
["D0001/IA09985/F0001/X049/R0230/001/6115","D0001/IA09985/F0001/X049/R0230/001/6115",110045,8929,"Assets:Current Assets:Cash and Cash Equivalents:Cash at Bank:Bank Account:Specify (replace with account description):Opening Balance"," _"," _"," _ "," _ "," _ "," _ ","1200","Finance and administration","1204","Finance","_"," _"," _","D","IA","0120","Current assets / Cash and cash equivalents","0120","Cash and cash equivalents"," _ "," _ ","_","_","0420","Cash/cash equivalents at the month/year begin:","0560","Cash/cash equivalents at the month/year begin:"," _ "," _ "," _ "," _ ",null," _ "," _ "," _ "," _ ","",null,null," _ "," _ "," _ "," _ "," _ "," _ "," _ "," _ "," _ "," _ "," _ ",null," _ "," _ "," _ "," _ "," _ ",null," _ "," _ "," _ "," _ ",null,3,32,"Finance","Finance & Administration",null,null,0,0,0,0,0,0,0,0,0,"_","_","_","_"]
["D0001/IZ00037/F0001/X051/R0229/001/CONTRA","D0001/IZ00037/F0001/X051/R0229/001/CONTRA",124436,0,"Gains and Losses:Fair Value Adjustment:Investment Property:Losses","4300","Expenditure / Other Losses","2904","Expenditure / Other Losses","2904","Operational Costs ","1200","Finance and administration","1206","Human Resources","_"," _"," _","D","IE"," _ "," _ "," _ "," _ "," _ "," _ ","_","_"," _ "," _ "," _ "," _ "," _ "," _ "," _ "," _ ",null," _ "," _ "," _ "," _ ","",null,null," _ "," _ "," _ "," _ "," _ "," _ "," _ "," _ "," _ "," _ "," _ ",null," _ "," _ "," _ "," _ "," _ ",null," _ "," _ "," _ "," _ ",null,3,34,"Human Resources","Finance & Administration",null,null,0,0,0,0,0,0,0,0,0,"_","_","_","_"]
["D0001/IA09327/F0001/X049/R0416/001/6119","D0001/IA09327/F0001/X049/R0416/001/6119",61322,4029,"Assets:Current Assets:Cash and Cash Equivalents:Call Deposits and Investments:Special Deposit for the Payment of Interest:Specify (replace with account description):Deposits"," _"," _"," _ "," _ "," _ "," _ ","1200","Finance and administration","1204","Finance","_"," _"," _","D","IA","0120","Current assets / Cash and cash equivalents","0120","Cash and cash equivalents"," _ "," _ ","_","_"," _ "," _ "," _ "," _ "," _ "," _ "," _ "," _ ",null," _ "," _ "," _ "," _ ","",null,null," _ "," _ "," _ "," _ "," _ "," _ "," _ "," _ "," _ "," _ "," _ ",null," _ "," _ "," _ "," _ "," _ ",null," _ "," _ "," _ "," _ ",null,3,32,"Finance","Finance & Administration",null,null,98729376,66099806,41114479,0,0,0,0,0,133132038,"_","_","_","_"]
["D0001/IA10133/F0001/X049/R0230/001/6115","D0001/IA10133/F0001/X049/R0230/001/6115",110150,9034,"Assets:Current Assets:Cash and Cash Equivalents:Cash at Bank:Bank Account:Specify (replace with account description):Opening Balance"," _"," _"," _ "," _ "," _ "," _ ","1200","Finance and administration","1204","Finance","_"," _"," _","D","IA","0120","Current assets / Cash and cash equivalents","0120","Cash and cash equivalents"," _ "," _ ","_","_","0420","Cash/cash equivalents at the month/year begin:","0560","Cash/cash equivalents at the month/year begin:"," _ "," _ "," _ "," _ ",null," _ "," _ "," _ "," _ ","",null,null," _ "," _ "," _ "," _ "," _ "," _ "," _ "," _ "," _ "," _ "," _ ",null," _ "," _ "," _ "," _ "," _ ",null," _ "," _ "," _ "," _ ",null,3,32,"Finance","Finance & Administration",null,null,0,0,0,0,0,0,0,0,0,"_","_","_","_"]
["D0001/IR007141/F2496/X049/R0041/001/6115","D0001/IR007141/F2496/X049/R0041/001/6115",30489,899,"Revenue:Non-exchange Revenue:Property Rates by Usage:Business and Commercial Properties","1800","Non-Exchange Revenue / Property rates","1800","Non-Exchange Revenue / Property rates"," _ "," _ ","1200","Finance and administration","1204","Finance","_"," _"," _","D","IR"," _ "," _ "," _ "," _ "," _ "," _ ","_","_"," _ "," _ "," _ "," _ "," _ "," _ "," _ "," _ ",null," _ "," _ "," _ "," _ ","",null,null," _ "," _ "," _ "," _ "," _ "," _ "," _ "," _ "," _ "," _ "," _ ",null," _ "," _ "," _ "," _ "," _ ",null," _ "," _ "," _ "," _ ",null,3,32,"Finance","Finance & Administration",null,null,0,0,0,0,0,582538,611083,639803,0,"_","_","_","_"]
["D0001/IA10117/F0001/X049/R0230/001/6115","D0001/IA10117/F0001/X049/R0230/001/6115",110129,9013,"Assets:Current Assets:Cash and Cash Equivalents:Cash at Bank:Bank Account:Specify (replace with account description):Opening Balance"," _"," _"," _ "," _ "," _ "," _ ","1200","Finance and administration","1204","Finance","_"," _"," _","D","IA","0120","Current assets / Cash and cash equivalents","0120","Cash and cash equivalents"," _ "," _ ","_","_","0420","Cash/cash equivalents at the month/year begin:","0560","Cash/cash equivalents at the month/year begin:"," _ "," _ "," _ "," _ ",null," _ "," _ "," _ "," _ ","",null,null," _ "," _ "," _ "," _ "," _ "," _ "," _ "," _ "," _ "," _ "," _ ",null," _ "," _ "," _ "," _ "," _ ",null," _ "," _ "," _ "," _ ",null,3,32,"Finance","Finance & Administration",null,null,0,0,0,0,0,0,0,0,0,"_","_","_","_"]
["D0001/IR01435/F0047/X049/R0230/001/6115","D0001/IR01435/F0047/X049/R0230/001/6115",30533,919,"Revenue:Exchange Revenue:Sales of Goods and Rendering of Services:Clearance Certificates","0700","Exchange Revenue / Sale of Goods and Rendering of Services","0700","Exchange Revenue / Sale of Goods and Rendering of Services"," _ "," _ ","1200","Finance and administration","1204","Finance","_"," _"," _","D","IR"," _ "," _ "," _ "," _ "," _ "," _ ","_","_"," _ "," _ "," _ "," _ "," _ "," _ "," _ "," _ ",null," _ "," _ "," _ "," _ ","",null,null," _ "," _ "," _ "," _ "," _ "," _ "," _ "," _ "," _ "," _ "," _ ",null," _ "," _ "," _ "," _ "," _ ",null," _ "," _ "," _ "," _ ",null,3,32,"Finance","Finance & Administration",null,null,14477,9963,11998,-33280,-15000,15795,16569,17348,9973,"_","_","_","_"]
["D0001/IR01671/F0791/X049/R0230/001/6115","D0001/IR01671/F0791/X049/R0230/001/6115",30555,929,"Revenue:Non-exchange Revenue:Transfers and Subsidies:Capital:Monetary Allocations:National Government:Municipal Infrastructure Grant","4600","Non-Exchange Revenue / Transfers and subsidies - capital (monetary allocations)","4600","Non-Exchange Revenue / Transfers and subsidies - capital (monetary allocations)"," _ "," _ ","1200","Finance and administration","1204","Finance","_",2010,"Funded by National Government","D","IR"," _ "," _ "," _ "," _ "," _ "," _ ","_","_"," _ "," _ "," _ "," _ "," _ "," _ "," _ "," _ ",null," _ "," _ "," _ "," _ ","",null,null," _ "," _ "," _ "," _ "," _ "," _ "," _ "," _ "," _ "," _ "," _ ",null," _ "," _ "," _ "," _ "," _ ",null," _ "," _ "," _ "," _ ",null,3,32,"Finance","Finance & Administration",null,null,55157907,71567000,60688000,-69261000,-78211604,72329000,75594000,78997000,24323526,"_","_","_","_"]
["D0001/IL092599/F0001/X032/R0229/001/6707","D0001/IL092599/F0001/X032/R0229/001/6707",120356,11242,"Liabilities:Current Liabilities:Trade and Other Payable Non-exchange Transactions:Transfers and Subsidies Unspent:Operational:Monetary Allocations:National Government:Integrated National Electrification Programme Grant:Opening Balance"," _"," _"," _ "," _ "," _ "," _ ","4100","Energy sources","4101","Electricity","_"," _"," _","D","IL","0390","Current liabilities / Trade and other payables from non-exchange transactions","_","_"," _ "," _ ","_","_"," _ "," _ "," _ "," _ "," _ "," _ "," _ "," _ ",null,"0363","Trade and other payables / Trade payables from Non-exchange transactions: Unspent conditional Grants","0363","Trade and other payables / Trade payables from Non-exchange transactions: Unspent conditional Grants","",null,null," _ "," _ "," _ "," _ "," _ "," _ "," _ "," _ "," _ "," _ "," _ ",null," _ "," _ "," _ "," _ "," _ ",null," _ "," _ "," _ "," _ ",null,1,11,"Electricity"," Energy Sources",null,null,0,0,0,0,0,0,0,0,0,"_","_","_","_"]
["D0001/IA09975/F0001/X049/R0230/001/6115","D0001/IA09975/F0001/X049/R0230/001/6115",110005,8889,"Assets:Current Assets:Cash and Cash Equivalents:Cash at Bank:Bank Account:Specify (replace with account description):Opening Balance"," _"," _"," _ "," _ "," _ "," _ ","1200","Finance and administration","1204","Finance","_"," _"," _","D","IA","0120","Current assets / Cash and cash equivalents","0120","Cash and cash equivalents"," _ "," _ ","_","_","0420","Cash/cash equivalents at the month/year begin:","0560","Cash/cash equivalents at the month/year begin:"," _ "," _ "," _ "," _ ",null," _ "," _ "," _ "," _ ","",null,null," _ "," _ "," _ "," _ "," _ "," _ "," _ "," _ "," _ "," _ "," _ ",null," _ "," _ "," _ "," _ "," _ ",null," _ "," _ "," _ "," _ ",null,3,32,"Finance","Finance & Administration",null,null,0,0,0,0,0,0,0,0,0,"_","_","_","_"]
["D0001/IA08427/F0001/X049/R0230/001/6115","D0001/IA08427/F0001/X049/R0230/001/6115",41307,2004,"Assets:Current Assets:Trade and other Receivables from Exchange Transactions:Prepayments and Advances:Taxes and Levies other than Income Tax:Interest Charge"," _"," _"," _ "," _ "," _ "," _ ","1200","Finance and administration","1204","Finance","_"," _"," _","D","IA","0130","Current assets / Trade and other receivables from exchange transactions","_","_"," _ "," _ ","_","_"," _ "," _ "," _ "," _ "," _ "," _ "," _ "," _ ",null,"0115","Trade and other receivables from exchange transactions / Other trade receivables from exchange transactions","0115","Trade and other receivables from exchange transactions / Other trade receivables from exchange transactions","",null,null," _ "," _ "," _ "," _ "," _ "," _ "," _ "," _ "," _ "," _ "," _ ",null," _ "," _ "," _ "," _ "," _ ",null," _ "," _ "," _ "," _ ",null,3,32,"Finance","Finance & Administration",null,null,14446533,14326994,14219676,0,0,0,0,0,14540332,"_","_","_","_"]
["D0001/IA02108/F0001/X049/R0230/001/CONTRA","D0001/IA02108/F0001/X049/R0230/001/CONTRA",121126,0,"Assets:Current Assets:Cash and Cash Equivalents:Cash at Bank:Bank Account:Specify (replace with account description):Withdrawals"," _"," _"," _ "," _ "," _ "," _ ","1200","Finance and administration","1204","Finance","_"," _"," _","D","IA","0120","Current assets / Cash and cash equivalents","0120","Cash and cash equivalents"," _ "," _ ","_","_"," _ "," _ "," _ "," _ "," _ "," _ "," _ "," _ ",null," _ "," _ "," _ "," _ ","",null,"W"," _ "," _ "," _ "," _ "," _ "," _ "," _ "," _ "," _ "," _ "," _ ",null," _ "," _ "," _ "," _ "," _ ",null," _ "," _ "," _ "," _ ",null,3,32,"Finance","Finance & Administration",null,null,0,0,0,0,0,0,0,0,0,"_","_","_","_"]
["D0001/IA10370/F0791/X049/R0229/001/BSB","D0001/IA10370/F0791/X049/R0229/001/BSB",120530,11422,"Assets:Current Assets:VAT Receivable:Input Tax Capital:Recognised"," _"," _"," _ "," _ "," _ "," _ ","1200","Finance and administration","1204","Finance","_",2010,"Funded by National Government","D","IA","0170","Current assets / VAT","0170","VAT"," _ "," _ ","_","_"," _ "," _ "," _ "," _ "," _ "," _ "," _ "," _ ",null," _ "," _ "," _ "," _ ","",null,null," _ "," _ "," _ "," _ "," _ "," _ "," _ "," _ "," _ "," _ "," _ ",null," _ "," _ "," _ "," _ "," _ ",null," _ "," _ "," _ "," _ ",null,3,32,"Finance","Finance & Administration",null,null,0,0,0,0,0,0,0,0,0,"_","_","_","_"]
["D0001/IA09351/F0001/X049/R0416/001/6119","D0001/IA09351/F0001/X049/R0416/001/6119",61323,4030,"Assets:Current Assets:Cash and Cash Equivalents:Call Deposits and Investments:Special Deposit for the Payment of Interest:Specify (replace with account description):Withdrawals"," _"," _"," _ "," _ "," _ "," _ ","1200","Finance and administration","1204","Finance","_"," _"," _","D","IA","0120","Current assets / Cash and cash equivalents","0120","Cash and cash equivalents"," _ "," _ ","_","_"," _ "," _ "," _ "," _ "," _ "," _ "," _ "," _ ",null," _ "," _ "," _ "," _ ","",null,null," _ "," _ "," _ "," _ "," _ "," _ "," _ "," _ "," _ "," _ "," _ ",null," _ "," _ "," _ "," _ "," _ ",null," _ "," _ "," _ "," _ ",null,3,32,"Finance","Finance & Administration",null,null,0,0,0,0,0,0,0,0,0,"_","_","_","_"]
["D0001/IA02367/F0047/X132/R0230/001/CONTRA","D0001/IA02367/F0047/X132/R0230/001/CONTRA",122160,0,"Assets:Current Assets:Trade and other Receivables from Exchange Transactions:Trading Service and Customer Service Debtors:Service Charges:Collections"," _"," _"," _ "," _ "," _ "," _ ","4400","Waste management","4403","Solid Waste Removal","_"," _"," _","D","IA","0130","Current assets / Trade and other receivables from exchange transactions","_","_"," _ "," _ ","_","_"," _ "," _ "," _ "," _ "," _ "," _ "," _ "," _ ",null,"0115","Trade and other receivables from exchange transactions / Other trade receivables from exchange transactions","0115","Trade and other receivables from exchange transactions / Other trade receivables from exchange transactions","",null,null," _ "," _ "," _ "," _ "," _ "," _ "," _ "," _ "," _ "," _ "," _ ",null," _ "," _ "," _ "," _ "," _ ",null," _ "," _ "," _ "," _ ",null,9,93,"Solid Waste Removal","Waste Management",null,null,0,0,0,0,0,69000,72381,75783,0,"_","_","_","_"]
["D0001/IA02367/F0047/X050/R0229/001/CONTRA","D0001/IA02367/F0047/X050/R0229/001/CONTRA",121306,0,"Assets:Current Assets:Trade and other Receivables from Exchange Transactions:Trading Service and Customer Service Debtors:Service Charges:Collections"," _"," _"," _ "," _ "," _ "," _ ","1200","Finance and administration","1205","Fleet Management","_"," _"," _","D","IA","0130","Current assets / Trade and other receivables from exchange transactions","_","_"," _ "," _ ","_","_"," _ "," _ "," _ "," _ "," _ "," _ "," _ "," _ ",null,"0115","Trade and other receivables from exchange transactions / Other trade receivables from exchange transactions","0115","Trade and other receivables from exchange transactions / Other trade receivables from exchange transactions","",null,null," _ "," _ "," _ "," _ "," _ "," _ "," _ "," _ "," _ "," _ "," _ ",null," _ "," _ "," _ "," _ "," _ ",null," _ "," _ "," _ "," _ ",null,3,31,"Fleet Management","Finance & Administration",null,null,0,0,0,0,0,6900,7590,8280,0,"_","_","_","_"]
["D0001/IA02367/F0001/X116/R0230/001/CONTRA","D0001/IA02367/F0001/X116/R0230/001/CONTRA",122328,0,"Assets:Current Assets:Trade and other Receivables from Exchange Transactions:Trading Service and Customer Service Debtors:Service Charges:Collections"," _"," _"," _ "," _ "," _ "," _ ","3200","Road transport","3205","Roads","_"," _"," _","D","IA","0130","Current assets / Trade and other receivables from exchange transactions","_","_"," _ "," _ ","_","_"," _ "," _ "," _ "," _ "," _ "," _ "," _ "," _ ",null,"0115","Trade and other receivables from exchange transactions / Other trade receivables from exchange transactions","0115","Trade and other receivables from exchange transactions / Other trade receivables from exchange transactions","",null,null," _ "," _ "," _ "," _ "," _ "," _ "," _ "," _ "," _ "," _ "," _ ",null," _ "," _ "," _ "," _ "," _ ",null," _ "," _ "," _ "," _ ",null,7,74,"Roads","Road Transport",null,null,0,0,0,0,0,34500,36191,37891,0,"_","_","_","_"]
["D0001/IA10088/F0001/X049/R0230/001/6115","D0001/IA10088/F0001/X049/R0230/001/6115",110100,8984,"Assets:Current Assets:Cash and Cash Equivalents:Cash at Bank:Bank Account:Specify (replace with account description):Opening Balance"," _"," _"," _ "," _ "," _ "," _ ","1200","Finance and administration","1204","Finance","_"," _"," _","D","IA","0120","Current assets / Cash and cash equivalents","0120","Cash and cash equivalents"," _ "," _ ","_","_","0420","Cash/cash equivalents at the month/year begin:","0560","Cash/cash equivalents at the month/year begin:"," _ "," _ "," _ "," _ ",null," _ "," _ "," _ "," _ ","",null,null," _ "," _ "," _ "," _ "," _ "," _ "," _ "," _ "," _ "," _ "," _ ",null," _ "," _ "," _ "," _ "," _ ",null," _ "," _ "," _ "," _ ",null,3,32,"Finance","Finance & Administration",null,null,0,0,0,0,0,0,0,0,0,"_","_","_","_"]
["D0001/IL54014/F0001/X049/R0229/001/6121","D0001/IL54014/F0001/X049/R0229/001/6121",120339,11226,"Liabilities:Current Liabilities:Trade and Other Payable Exchange Transactions:Control, Clearing and Interface Accounts:Salary Clearing and Control:Employee Deductions FICS:Withdrawals"," _"," _"," _ "," _ "," _ "," _ ","1200","Finance and administration","1204","Finance","_"," _"," _","D","IL","0380","Current liabilities / Trade and other payables from exchange transactions","_","_"," _ "," _ ","_","_"," _ "," _ "," _ "," _ "," _ "," _ "," _ "," _ ",null,"0361","Trade and other payables / Trade and other payables from exchange transactions","0361","Trade and other payables / Trade and other payables from exchange transactions","",null,null," _ "," _ "," _ "," _ "," _ "," _ "," _ "," _ "," _ "," _ "," _ ",null," _ "," _ "," _ "," _ "," _ ",null," _ "," _ "," _ "," _ ",null,3,32,"Finance","Finance & Administration",null,null,0,0,0,0,0,0,0,0,-824391,"_","_","_","_"]
["D0001/IR007147/F2496/X059/R0230/001/6115","D0001/IR007147/F2496/X059/R0230/001/6115",41287,1771,"Revenue:Non-exchange Revenue:Property Rates by Usage:Public Service Purposes Properties","1800","Non-Exchange Revenue / Property rates","1800","Non-Exchange Revenue / Property rates"," _ "," _ ","1200","Finance and administration","1214","Valuation Service","_"," _"," _","D","IR"," _ "," _ "," _ "," _ "," _ "," _ ","_","_"," _ "," _ "," _ "," _ "," _ "," _ "," _ "," _ ",null," _ "," _ "," _ "," _ ","",null,null," _ "," _ "," _ "," _ "," _ "," _ "," _ "," _ "," _ "," _ "," _ ",null," _ "," _ "," _ "," _ "," _ ",null," _ "," _ "," _ "," _ ",null,null,32,"Valuation Service"," _ ",null,null,-165059,-3033068,-6564859,-555466,-555466,584906,613566,642404,257244,"_","_","_","_"]
["D0001/IA010694/F2496/X049/R0021/001/CONTRA","D0001/IA010694/F2496/X049/R0021/001/CONTRA",121184,0,"Assets:Current Assets:Receivables from Non-exchange Transactions:Property Rates by Usage:Agricultural Properties:Collections"," _"," _"," _ "," _ "," _ "," _ ","1200","Finance and administration","1204","Finance","_"," _"," _","D","IA","0140","Current assets / Receivables from non-exchange transactions","0141","Property rates"," _ "," _ ","_","_"," _ "," _ "," _ "," _ "," _ "," _ "," _ "," _ ",null,"0126","Receivables from non-exchange transactions / Property rates","0126","Receivables from non-exchange transactions / Property rates","",null,null," _ "," _ "," _ "," _ "," _ "," _ "," _ "," _ "," _ "," _ "," _ ",null," _ "," _ "," _ "," _ "," _ ",null," _ "," _ "," _ "," _ ",null,3,32,"Finance","Finance & Administration",null,null,0,0,0,0,0,0,0,0,0,"_","_","_","_"]
["D0001/IR007146/F2496/X049/R0021/001/6115","D0001/IR007146/F2496/X049/R0021/001/6115",30486,896,"Revenue:Non-exchange Revenue:Property Rates by Usage:Public Benefit Organisations","1800","Non-Exchange Revenue / Property rates","1800","Non-Exchange Revenue / Property rates"," _ "," _ ","1200","Finance and administration","1204","Finance","_"," _"," _","D","IR"," _ "," _ "," _ "," _ "," _ "," _ ","_","_"," _ "," _ "," _ "," _ "," _ "," _ "," _ "," _ ",null," _ "," _ "," _ "," _ ","",null,null," _ "," _ "," _ "," _ "," _ "," _ "," _ "," _ "," _ "," _ "," _ ",null," _ "," _ "," _ "," _ "," _ ",null," _ "," _ "," _ "," _ ",null,3,32,"Finance","Finance & Administration",null,null,0,0,0,0,0,0,0,0,0,"_","_","_","_"]
["D0001/IA10118/F0001/X049/R0230/001/6115","D0001/IA10118/F0001/X049/R0230/001/6115",110131,9015,"Assets:Current Assets:Cash and Cash Equivalents:Cash at Bank:Bank Account:Specify (replace with account description):Opening Balance"," _"," _"," _ "," _ "," _ "," _ ","1200","Finance and administration","1204","Finance","_"," _"," _","D","IA","0120","Current assets / Cash and cash equivalents","0120","Cash and cash equivalents"," _ "," _ ","_","_","0420","Cash/cash equivalents at the month/year begin:","0560","Cash/cash equivalents at the month/year begin:"," _ "," _ "," _ "," _ ",null," _ "," _ "," _ "," _ ","",null,null," _ "," _ "," _ "," _ "," _ "," _ "," _ "," _ "," _ "," _ "," _ ",null," _ "," _ "," _ "," _ "," _ ",null," _ "," _ "," _ "," _ ",null,3,32,"Finance","Finance & Administration",null,null,0,0,0,0,0,0,0,0,0,"_","_","_","_"]
["D0001/IA010663/F0001/X049/R0230/001/6115","D0001/IA010663/F0001/X049/R0230/001/6115",41303,2000,"Assets:Current Assets:Receivables from Non-exchange Transactions:Property Rates by Usage:Public Service Purposes Properties:Collections"," _"," _"," _ "," _ "," _ "," _ ","1200","Finance and administration","1204","Finance","_"," _"," _","D","IA","0140","Current assets / Receivables from non-exchange transactions","0141","Property rates"," _ "," _ ","_","_"," _ "," _ "," _ "," _ "," _ "," _ "," _ "," _ ",null,"0126","Receivables from non-exchange transactions / Property rates","0126","Receivables from non-exchange transactions / Property rates","",null,null," _ "," _ "," _ "," _ "," _ "," _ "," _ "," _ "," _ "," _ "," _ ",null," _ "," _ "," _ "," _ "," _ ",null," _ "," _ "," _ "," _ ",null,3,32,"Finance","Finance & Administration",null,null,-18801428,-14240102,-11579327,0,0,0,0,0,-20928785,"_","_","_","_"]
["D0001/IA06198/F0001/X047/R0230/001/CONTRA","D0001/IA06198/F0001/X047/R0230/001/CONTRA",124454,0,"Assets:Non-current Assets:Property, Plant and Equipment:Cost Model:Computer Equipment:In-use:Cost:Disposals"," _"," _"," _ "," _ "," _ "," _ ","1200","Finance and administration","1202","Asset Management","_"," _"," _","D","IA","0230","Non current assets / Property, plant and equipment","0231","Land: Acquisitions"," _ "," _ ","_","_"," _ "," _ "," _ "," _ ","1470","Computer Equipment",1470,"Computer Equipment",null,"0241","Property, plant and equipment (PPE) / PPE at cost/valuation (excl. finance leases)","0241","Property, plant and equipment (PPE) / PPE at cost/valuation (excl. finance leases)","",null,null," _ "," _ "," _ "," _ "," _ "," _ "," _ "," _ "," _ "," _ "," _ ",null," _ "," _ "," _ "," _ "," _ ",null," _ "," _ "," _ "," _ ",null,3,33,"Asset Management","Finance & Administration",null,null,0,0,0,0,0,0,0,0,0,"_","_","_","_"]
["D0001/IA02369/F0046/X125/R0230/001/CONTRA","D0001/IA02369/F0046/X125/R0230/001/CONTRA",122258,0,"Assets:Current Assets:Trade and other Receivables from Exchange Transactions:Trading Service and Customer Service Debtors:Service Charges:Monthly Billing"," _"," _"," _ "," _ "," _ "," _ ","2200","Sport and recreation","2205","Sports Grounds and Stadiums","_"," _"," _","D","IA","0130","Current assets / Trade and other receivables from exchange transactions","_","_"," _ "," _ ","_","_"," _ "," _ "," _ "," _ "," _ "," _ "," _ "," _ ",null,"0115","Trade and other receivables from exchange transactions / Other trade receivables from exchange transactions","0115","Trade and other receivables from exchange transactions / Other trade receivables from exchange transactions","",null,null," _ "," _ "," _ "," _ "," _ "," _ "," _ "," _ "," _ "," _ "," _ ",null," _ "," _ "," _ "," _ "," _ ",null," _ "," _ "," _ "," _ ",null,10,102,"Sports Grounds and Stadiums","Sports & Recreation",null,null,0,0,0,0,0,-517500,-542858,-568372,0,"_","_","_","_"]
["D0001/IA02369/F0047/X004/R0229/001/CONTRA","D0001/IA02369/F0047/X004/R0229/001/CONTRA",121840,0,"Assets:Current Assets:Trade and other Receivables from Exchange Transactions:Trading Service and Customer Service Debtors:Service Charges:Monthly Billing"," _"," _"," _ "," _ "," _ "," _ ","2100","Community and social services","2104","Cemeteries, Funeral Parlours and Crematoriums","_"," _"," _","D","IA","0130","Current assets / Trade and other receivables from exchange transactions","_","_"," _ "," _ ","_","_"," _ "," _ "," _ "," _ "," _ "," _ "," _ "," _ ",null,"0115","Trade and other receivables from exchange transactions / Other trade receivables from exchange transactions","0115","Trade and other receivables from exchange transactions / Other trade receivables from exchange transactions","",null,null," _ "," _ "," _ "," _ "," _ "," _ "," _ "," _ "," _ "," _ "," _ ",null," _ "," _ "," _ "," _ "," _ ",null," _ "," _ "," _ "," _ ",null,2,24,"Cemeteries, Funeral Parlours and Crematoriums","Community and Social Services",null,null,0,0,0,0,0,-230000,-241270,-252610,0,"_","_","_","_"]
["D0001/IA02369/F0041/X049/R0230/001/CONTRA","D0001/IA02369/F0041/X049/R0230/001/CONTRA",121141,0,"Assets:Current Assets:Trade and other Receivables from Exchange Transactions:Trading Service and Customer Service Debtors:Service Charges:Monthly Billing"," _"," _"," _ "," _ "," _ "," _ ","1200","Finance and administration","1204","Finance","_"," _"," _","D","IA","0130","Current assets / Trade and other receivables from exchange transactions","_","_"," _ "," _ ","_","_"," _ "," _ "," _ "," _ "," _ "," _ "," _ "," _ ",null,"0115","Trade and other receivables from exchange transactions / Other trade receivables from exchange transactions","0115","Trade and other receivables from exchange transactions / Other trade receivables from exchange transactions","",null,null," _ "," _ "," _ "," _ "," _ "," _ "," _ "," _ "," _ "," _ "," _ ",null," _ "," _ "," _ "," _ "," _ ",null," _ "," _ "," _ "," _ ",null,3,32,"Finance","Finance & Administration",null,null,0,0,0,0,0,0,0,0,0,"_","_","_","_"]
["D0001/IZ00102/F0040/X058/R0230/001/CONTRA","D0001/IZ00102/F0040/X058/R0230/001/CONTRA",124382,0,"Gains and Losses:Disposal of Fixed and Intangible Assets:Property, Plant and Equipment:Machinery and Equipment:Gains","2600","Non-Exchange Revenue / Gains on disposal of Assets","2600","Non-Exchange Revenue / Gains on disposal of Assets"," _ "," _ ","1200","Finance and administration","1213","Supply Chain Management","_"," _"," _","D","IR"," _ "," _ "," _ "," _ "," _ "," _ ","_","_"," _ "," _ "," _ "," _ "," _ "," _ "," _ "," _ ",null," _ "," _ "," _ "," _ ","",null,null," _ "," _ "," _ "," _ "," _ "," _ "," _ "," _ "," _ "," _ "," _ ",null," _ "," _ "," _ "," _ "," _ ",null," _ "," _ "," _ "," _ ",null,3,38,"Supply Chain Management","Finance & Administration",null,null,0,0,0,0,0,0,0,0,0,"_","_","_","_"]
["D0001/IA10042/F0001/X049/R0230/001/6115","D0001/IA10042/F0001/X049/R0230/001/6115",110029,8913,"Assets:Current Assets:Cash and Cash Equivalents:Call Deposits and Investments:Special Deposit for the Payment of Dividend:Specify (replace with account description):Opening Balance"," _"," _"," _ "," _ "," _ "," _ ","1200","Finance and administration","1204","Finance","_"," _"," _","D","IA","0120","Current assets / Cash and cash equivalents","0120","Cash and cash equivalents"," _ "," _ ","_","_","0420","Cash/cash equivalents at the month/year begin:","0560","Cash/cash equivalents at the month/year begin:"," _ "," _ "," _ "," _ ",null," _ "," _ "," _ "," _ ","",null,null," _ "," _ "," _ "," _ "," _ "," _ "," _ "," _ "," _ "," _ "," _ ",null," _ "," _ "," _ "," _ "," _ ",null," _ "," _ "," _ "," _ ",null,3,32,"Finance","Finance & Administration",null,null,0,0,0,0,141362588,0,0,0,0,"_","_","_","_"]
["D0001/IL00997/F0001/X049/R0230/001/6119","D0001/IL00997/F0001/X049/R0230/001/6119",69469,4360,"Liabilities:Current Liabilities:Provision:Decommissioning, Restoration and Similar Liabilities:Landfill Sites:Increases"," _"," _"," _ "," _ "," _ "," _ ","1200","Finance and administration","1204","Finance","_"," _"," _","D","IL","0400","Current liabilities / Provision","0400","Provision"," _ "," _ ","_","_"," _ "," _ "," _ "," _ "," _ "," _ "," _ "," _ ",null," _ "," _ "," _ "," _ ","",null,null," _ "," _ "," _ "," _ "," _ "," _ "," _ "," _ "," _ "," _ "," _ ",null," _ "," _ "," _ "," _ "," _ ",null," _ "," _ "," _ "," _ ",null,3,32,"Finance","Finance & Administration",null,null,36772098,35127919,37024088,0,0,0,0,0,36772098,"_","_","_","_"]
["D0001/IA10070/F0001/X049/R0230/001/6115","D0001/IA10070/F0001/X049/R0230/001/6115",110083,8967,"Assets:Current Assets:Cash and Cash Equivalents:Cash at Bank:Bank Account:Specify (replace with account description):Opening Balance"," _"," _"," _ "," _ "," _ "," _ ","1200","Finance and administration","1204","Finance","_"," _"," _","D","IA","0120","Current assets / Cash and cash equivalents","0120","Cash and cash equivalents"," _ "," _ ","_","_","0420","Cash/cash equivalents at the month/year begin:","0560","Cash/cash equivalents at the month/year begin:"," _ "," _ "," _ "," _ ",null," _ "," _ "," _ "," _ ","",null,null," _ "," _ "," _ "," _ "," _ "," _ "," _ "," _ "," _ "," _ "," _ ",null," _ "," _ "," _ "," _ "," _ ",null," _ "," _ "," _ "," _ ",null,3,32,"Finance","Finance & Administration",null,null,0,0,0,0,0,0,0,0,0,"_","_","_","_"]
["D0001/IA010641/F2496/X059/R0041/001/CONTRA","D0001/IA010641/F2496/X059/R0041/001/CONTRA",121268,0,"Assets:Current Assets:Receivables from Non-exchange Transactions:Property Rates by Usage:Public Service Purposes Properties:Monthly Billing"," _"," _"," _ "," _ "," _ "," _ ","1200","Finance and administration","1214","Valuation Service","_"," _"," _","D","IA","0140","Current assets / Receivables from non-exchange transactions","0141","Property rates"," _ "," _ ","_","_"," _ "," _ "," _ "," _ "," _ "," _ "," _ "," _ ",null,"0126","Receivables from non-exchange transactions / Property rates","0126","Receivables from non-exchange transactions / Property rates","",null,null," _ "," _ "," _ "," _ "," _ "," _ "," _ "," _ "," _ "," _ "," _ ",null," _ "," _ "," _ "," _ "," _ ",null," _ "," _ "," _ "," _ ",null,null,0,"Valuation Service"," _ ",null,null,0,0,0,0,0,-2729322,-2863059,-2997622,0,"_","_","_","_"]
["D0001/IA00318/F0001/X049/R0230/001/6119","D0001/IA00318/F0001/X049/R0230/001/6119",99802,7687,"Assets:Non-current Assets:Property, Plant and Equipment:Leased Assets:Other Assets:Cost:Opening Balance"," _"," _"," _ "," _ "," _ "," _ ","1200","Finance and administration","1204","Finance","_"," _"," _","D","IA","0230","Non current assets / Property, plant and equipment","0232","Land: Sales"," _ "," _ ","_","_"," _ "," _ "," _ "," _ ","1180","Other assets",1180,"Other assets",null,"0242","Property, plant and equipment (PPE) / Leases recognised as PPE","0242","Property, plant and equipment (PPE) / Leases recognised as PPE","",null,null," _ "," _ "," _ "," _ "," _ "," _ "," _ "," _ "," _ "," _ "," _ ",null," _ "," _ "," _ "," _ "," _ ",null," _ "," _ "," _ "," _ ",null,3,32,"Finance","Finance & Administration",null,null,0,0,0,0,0,0,0,0,0,"_","_","_","_"]
["D0001/IA010649/F0001/X049/R0230/001/6114","D0001/IA010649/F0001/X049/R0230/001/6114",109964,8848,"Assets:Current Assets:Receivables from Non-exchange Transactions:Property Rates by Usage:Residential Properties:Impairment:Opening Balance"," _"," _"," _ "," _ "," _ "," _ ","1200","Finance and administration","1204","Finance","_"," _"," _","D","IA","0140","Current assets / Receivables from non-exchange transactions","0142","Impairment of Property rates"," _ "," _ ","_","_"," _ "," _ "," _ "," _ "," _ "," _ "," _ "," _ ",null,"0127","Receivables from non-exchange transactions / Less: Impairment of Property rates","0127","Receivables from non-exchange transactions / Less: Impairment of Property rates","",null,null," _ "," _ "," _ "," _ "," _ "," _ "," _ "," _ "," _ "," _ "," _ ",null," _ "," _ "," _ "," _ "," _ ",null," _ "," _ "," _ "," _ ",null,3,32,"Finance","Finance & Administration",null,null,0,0,0,0,-174682393,-203682393,{"$f":"CA4642","v":-203682393},{"$f":"CB4642","v":-203682393},0,"_","_","_","_"]
["D0001/IA01958/F0001/X055/R0230/001/6107","D0001/IA01958/F0001/X055/R0230/001/6107",99811,7714,"Assets:Non-current Assets:Investment Property:Cost Model:Opening Balance"," _"," _"," _ "," _ "," _ "," _ ","1200","Finance and administration","1210","Property Services","_"," _"," _","D","IA","0220","Non current assets / Investment property","0220","Investment property"," _ "," _ ","_","_"," _ "," _ "," _ "," _ ","1110","Investment properties",1110,"Investment properties",null," _ "," _ "," _ "," _ ","",null,null," _ "," _ "," _ "," _ "," _ "," _ "," _ "," _ "," _ "," _ "," _ ",null," _ "," _ "," _ "," _ "," _ ",null," _ "," _ "," _ "," _ ",null,3,36,"Property Services","Finance & Administration",null,null,0,0,0,25935570,26199580,25599820,25599820,25599820,0,"_","_","_","_"]
["D0001/IA02814/F0001/X049/R0230/001/6115","D0001/IA02814/F0001/X049/R0230/001/6115",109965,8849,"Assets:Current Assets:Trade and other Receivables from Exchange Transactions:Trading Service and Customer Service Debtors:Waste Water Management:Impairment:Opening Balance"," _"," _"," _ "," _ "," _ "," _ ","1200","Finance and administration","1204","Finance","_"," _"," _","D","IA","0130","Current assets / Trade and other receivables from exchange transactions","_","_"," _ "," _ ","_","_"," _ "," _ "," _ "," _ "," _ "," _ "," _ "," _ ",null,"0121","Trade and other receivables from exchange transactions / Impairment for Waste Water","0121","Trade and other receivables from exchange transactions / Impairment for Waste Water","",null,null," _ "," _ "," _ "," _ "," _ "," _ "," _ "," _ "," _ "," _ "," _ ",null," _ "," _ "," _ "," _ "," _ ",null," _ "," _ "," _ "," _ ",null,3,32,"Finance","Finance & Administration",null,null,0,0,0,0,0,0,0,0,0,"_","_","_","_"]
["D0001/IL53820/F0041/X053/R0229/001/BSB","D0001/IL53820/F0041/X053/R0229/001/BSB",120416,11343,"Liabilities:Current Liabilities:Trade and Other Payable Exchange Transactions:Payables and Accruals : General:Deposits"," _"," _"," _ "," _ "," _ "," _ ","1200","Finance and administration","1208","Legal Services","_"," _"," _","D","IL","0380","Current liabilities / Trade and other payables from exchange transactions","_","_"," _ "," _ ","_","_"," _ "," _ "," _ "," _ "," _ "," _ "," _ "," _ ",null,"0361","Trade and other payables / Trade and other payables from exchange transactions","0361","Trade and other payables / Trade and other payables from exchange transactions","",null,null," _ "," _ "," _ "," _ "," _ "," _ "," _ "," _ "," _ "," _ "," _ ",null," _ "," _ "," _ "," _ "," _ ",null," _ "," _ "," _ "," _ ",null,3,35,"Legal Services","Finance & Administration",null,null,0,0,0,0,-14034217,0,0,0,0,"_","_","_","_"]
["D0001/IL53820/F0041/X099/R0229/001/BSB","D0001/IL53820/F0041/X099/R0229/001/BSB",120433,11336,"Liabilities:Current Liabilities:Trade and Other Payable Exchange Transactions:Payables and Accruals : General:Deposits"," _"," _"," _ "," _ "," _ "," _ ","3100","Planning and development","3108","Project Management Unit","_"," _"," _","D","IL","0380","Current liabilities / Trade and other payables from exchange transactions","_","_"," _ "," _ ","_","_"," _ "," _ "," _ "," _ "," _ "," _ "," _ "," _ ",null,"0361","Trade and other payables / Trade and other payables from exchange transactions","0361","Trade and other payables / Trade and other payables from exchange transactions","",null,null," _ "," _ "," _ "," _ "," _ "," _ "," _ "," _ "," _ "," _ "," _ ",null," _ "," _ "," _ "," _ "," _ ",null," _ "," _ "," _ "," _ ",null,4,44,"Project Management Unit","Planning and Development",null,null,0,0,0,0,-5051281,0,0,0,0,"_","_","_","_"]
["D0001/IL53820/F0041/X132/R0229/001/BSB","D0001/IL53820/F0041/X132/R0229/001/BSB",120439,11314,"Liabilities:Current Liabilities:Trade and Other Payable Exchange Transactions:Payables and Accruals : General:Deposits"," _"," _"," _ "," _ "," _ "," _ ","4400","Waste management","4403","Solid Waste Removal","_"," _"," _","D","IL","0380","Current liabilities / Trade and other payables from exchange transactions","_","_"," _ "," _ ","_","_"," _ "," _ "," _ "," _ "," _ "," _ "," _ "," _ ",null,"0361","Trade and other payables / Trade and other payables from exchange transactions","0361","Trade and other payables / Trade and other payables from exchange transactions","",null,null," _ "," _ "," _ "," _ "," _ "," _ "," _ "," _ "," _ "," _ "," _ ",null," _ "," _ "," _ "," _ "," _ ",null," _ "," _ "," _ "," _ ",null,9,93,"Solid Waste Removal","Waste Management",null,null,0,0,0,0,-1513906,0,0,0,0,"_","_","_","_"]
["D0001/IR01137/F0932/X146/R0041/001/6651","D0001/IR01137/F0932/X146/R0041/001/6651",41272,1758,"Revenue:Exchange Revenue:Service Charges:Water:Sale:Conventional","0400","Exchange Revenue / Service charges - Water","0400","Exchange Revenue / Service charges - Water"," _ "," _ ","4200","Water management","4202","Water Distribution","_"," _"," _","D","IR"," _ "," _ "," _ "," _ "," _ "," _ ","_","_"," _ "," _ "," _ "," _ "," _ "," _ "," _ "," _ ",null," _ "," _ "," _ "," _ ","",null,null," _ "," _ "," _ "," _ "," _ "," _ "," _ "," _ "," _ "," _ "," _ ",null," _ "," _ "," _ "," _ "," _ ",null," _ "," _ "," _ "," _ ",null,11,111,"Water Distribution","Water Management",null,null,0,0,0,0,0,0,0,0,0,"_","_","_","_"]
["D0001/IA09982/F0001/X049/R0230/001/6115","D0001/IA09982/F0001/X049/R0230/001/6115",110037,8921,"Assets:Current Assets:Cash and Cash Equivalents:Cash at Bank:Bank Account:Specify (replace with account description):Opening Balance"," _"," _"," _ "," _ "," _ "," _ ","1200","Finance and administration","1204","Finance","_"," _"," _","D","IA","0120","Current assets / Cash and cash equivalents","0120","Cash and cash equivalents"," _ "," _ ","_","_","0420","Cash/cash equivalents at the month/year begin:","0560","Cash/cash equivalents at the month/year begin:"," _ "," _ "," _ "," _ ",null," _ "," _ "," _ "," _ ","",null,null," _ "," _ "," _ "," _ "," _ "," _ "," _ "," _ "," _ "," _ "," _ ",null," _ "," _ "," _ "," _ "," _ ",null," _ "," _ "," _ "," _ ",null,3,32,"Finance","Finance & Administration",null,null,0,0,0,0,0,0,0,0,0,"_","_","_","_"]
["D0001/IA00138/F0001/X047/R0230/001/6114","D0001/IA00138/F0001/X047/R0230/001/6114",109938,8822,"Assets:Non-current Assets:Property, Plant and Equipment:Cost Model:Roads Infrastructure:Cost:Opening Balance"," _"," _"," _ "," _ "," _ "," _ ","1200","Finance and administration","1202","Asset Management","_"," _"," _","D","IA","0230","Non current assets / Property, plant and equipment","0231","Land: Acquisitions"," _ "," _ ","_","_"," _ "," _ "," _ "," _ ","0110","Infrastructure / Roads Infrastructure",110,"Infrastructure / Roads Infrastructure",null,"0241","Property, plant and equipment (PPE) / PPE at cost/valuation (excl. finance leases)","0241","Property, plant and equipment (PPE) / PPE at cost/valuation (excl. finance leases)","",null,null," _ "," _ "," _ "," _ "," _ "," _ "," _ "," _ "," _ "," _ "," _ ",null," _ "," _ "," _ "," _ "," _ ",null," _ "," _ "," _ "," _ ",null,3,33,"Asset Management","Finance & Administration",null,null,0,0,0,622365829,604341575,604341575,{"$f":"CA4739","v":604341575},{"$f":"CB4739","v":604341575},0,"_","_","_","_"]
["D0001/IA02105/F0001/X053/R0230/001/CONTRA","D0001/IA02105/F0001/X053/R0230/001/CONTRA",124494,0,"Assets:Current Assets:Cash and Cash Equivalents:Cash at Bank:Bank Account:Specify (replace with account description):Deposits"," _"," _"," _ "," _ "," _ "," _ ","1200","Finance and administration","1208","Legal Services","_"," _"," _","D","IA","0120","Current assets / Cash and cash equivalents","0120","Cash and cash equivalents"," _ "," _ ","_","_"," _ "," _ "," _ "," _ "," _ "," _ "," _ "," _ ",null," _ "," _ "," _ "," _ ","",null,"D"," _ "," _ "," _ "," _ "," _ "," _ "," _ "," _ "," _ "," _ "," _ ",null," _ "," _ "," _ "," _ "," _ ",null," _ "," _ "," _ "," _ ",null,3,35,"Legal Services","Finance & Administration",null,null,0,0,0,0,0,0,0,0,0,"_","_","_","_"]
["D0001/IA02105/F0041/X119/R0230/001/CONTRA","D0001/IA02105/F0041/X119/R0230/001/CONTRA",121694,0,"Assets:Current Assets:Cash and Cash Equivalents:Cash at Bank:Bank Account:Specify (replace with account description):Deposits"," _"," _"," _ "," _ "," _ "," _ ","3200","Road transport","3204","Road and Traffic Regulation","_"," _"," _","D","IA","0120","Current assets / Cash and cash equivalents","0120","Cash and cash equivalents","0150D","CASH FLOW FROM OPERATING ACTIVITIES / Receipts / Transfers and Subsidies - Operational","0150D","CASH FLOW FROM OPERATING ACTIVITIES / Receipts / Transfers and Subsidies - Operational","","Recepts - Cash and Cash Equivalents","","Recepts - Cash and Cash Equivalents"," _ "," _ "," _ "," _ ",null," _ "," _ "," _ "," _ ","0240","Cash Receipts By Source / Transfers and Subsidies - Operational","D"," _ "," _ "," _ "," _ "," _ "," _ "," _ "," _ "," _ "," _ "," _ ",null," _ "," _ "," _ "," _ "," _ ",null," _ "," _ "," _ "," _ ",null,7,72,"Road and Traffic Regulation","Road Transport",null,null,0,0,0,0,0,0,0,0,0,"_","_","_","_"]
["D0001/IA02105/F0001/X047/R0230/001/CONTRA","D0001/IA02105/F0001/X047/R0230/001/CONTRA",122531,0,"Assets:Current Assets:Cash and Cash Equivalents:Cash at Bank:Bank Account:Specify (replace with account description):Deposits"," _"," _"," _ "," _ "," _ "," _ ","1200","Finance and administration","1202","Asset Management","_"," _"," _","D","IA","0120","Current assets / Cash and cash equivalents","0120","Cash and cash equivalents"," _ "," _ ","_","_"," _ "," _ "," _ "," _ "," _ "," _ "," _ "," _ ",null," _ "," _ "," _ "," _ ","",null,"D"," _ "," _ "," _ "," _ "," _ "," _ "," _ "," _ "," _ "," _ "," _ ",null," _ "," _ "," _ "," _ "," _ ",null," _ "," _ "," _ "," _ ",null,3,33,"Asset Management","Finance & Administration",null,null,0,0,0,0,0,0,0,0,0,"_","_","_","_"]
["D0001/IA02105/F1177/X049/R0230/001/6119","D0001/IA02105/F1177/X049/R0230/001/6119",99824,7706,"Assets:Current Assets:Cash and Cash Equivalents:Cash at Bank:Bank Account:Specify (replace with account description):Deposits"," _"," _"," _ "," _ "," _ "," _ ","1200","Finance and administration","1204","Finance","_"," _"," _","D","IA","0120","Current assets / Cash and cash equivalents","0120","Cash and cash equivalents","0150D","CASH FLOW FROM OPERATING ACTIVITIES / Receipts / Transfers and Subsidies - Operational","0150D","CASH FLOW FROM OPERATING ACTIVITIES / Receipts / Transfers and Subsidies - Operational","","Recepts - Cash and Cash Equivalents","","Recepts - Cash and Cash Equivalents"," _ "," _ "," _ "," _ ",null," _ "," _ "," _ "," _ ","0240","Cash Receipts By Source / Transfers and Subsidies - Operational","D"," _ "," _ "," _ "," _ "," _ "," _ "," _ "," _ "," _ "," _ "," _ ",null," _ "," _ "," _ "," _ "," _ ",null," _ "," _ "," _ "," _ ",null,3,32,"Finance","Finance & Administration",null,null,0,0,0,2400000,2400000,0,0,0,2400000,"_","_","_","_"]
["D0001/IA02105/F0044/X049/R0229/001/6115","D0001/IA02105/F0044/X049/R0229/001/6115",110180,10202,"Assets:Current Assets:Cash and Cash Equivalents:Cash at Bank:Bank Account:Specify (replace with account description):Deposits"," _"," _"," _ "," _ "," _ "," _ ","1200","Finance and administration","1204","Finance","_"," _"," _","D","IA","0120","Current assets / Cash and cash equivalents","0120","Cash and cash equivalents","0140D","CASH FLOW FROM OPERATING ACTIVITIES / Receipts / Other revenue","0220","Licences and permits","","Recepts - Cash and Cash Equivalents","","Recepts - Cash and Cash Equivalents"," _ "," _ "," _ "," _ ",null," _ "," _ "," _ "," _ ","0220","Cash Receipts By Source / Licences and permits","D"," _ "," _ "," _ "," _ "," _ "," _ "," _ "," _ "," _ "," _ "," _ ",null," _ "," _ "," _ "," _ "," _ ",null," _ "," _ "," _ "," _ ",null,3,32,"Finance","Finance & Administration",null,null,0,0,0,0,7720000,0,0,0,0,"_","_","_","_"]
["D0001/IA02105/F2496/X059/R0023/001/CONTRA","D0001/IA02105/F2496/X059/R0023/001/CONTRA",121265,0,"Assets:Current Assets:Cash and Cash Equivalents:Cash at Bank:Bank Account:Specify (replace with account description):Deposits"," _"," _"," _ "," _ "," _ "," _ ","1200","Finance and administration","1214","Valuation Service","_"," _"," _","D","IA","0120","Current assets / Cash and cash equivalents","0120","Cash and cash equivalents","0120D","CASH FLOW FROM OPERATING ACTIVITIES / Receipts / Property rates","0120D","CASH FLOW FROM OPERATING ACTIVITIES / Receipts / Property rates","","Recepts - Cash and Cash Equivalents","","Recepts - Cash and Cash Equivalents"," _ "," _ "," _ "," _ ",null," _ "," _ "," _ "," _ ","0110","Cash Receipts By Source / Property rates","D"," _ "," _ "," _ "," _ "," _ "," _ "," _ "," _ "," _ "," _ "," _ ",null," _ "," _ "," _ "," _ "," _ ",null," _ "," _ "," _ "," _ ",null,null,0,"Valuation Service"," _ ",null,null,0,0,0,0,0,565657,593374,621263,0,"_","_","_","_"]
["D0001/IA02105/F2496/X059/R0230/001/CONTRA","D0001/IA02105/F2496/X059/R0230/001/CONTRA",121281,0,"Assets:Current Assets:Cash and Cash Equivalents:Cash at Bank:Bank Account:Specify (replace with account description):Deposits"," _"," _"," _ "," _ "," _ "," _ ","1200","Finance and administration","1214","Valuation Service","_"," _"," _","D","IA","0120","Current assets / Cash and cash equivalents","0120","Cash and cash equivalents","0120D","CASH FLOW FROM OPERATING ACTIVITIES / Receipts / Property rates","0120D","CASH FLOW FROM OPERATING ACTIVITIES / Receipts / Property rates","","Recepts - Cash and Cash Equivalents","","Recepts - Cash and Cash Equivalents"," _ "," _ "," _ "," _ ",null," _ "," _ "," _ "," _ ","0110","Cash Receipts By Source / Property rates","D"," _ "," _ "," _ "," _ "," _ "," _ "," _ "," _ "," _ "," _ "," _ ",null," _ "," _ "," _ "," _ "," _ ",null," _ "," _ "," _ "," _ ",null,null,0,"Valuation Service"," _ ",null,null,0,0,0,0,0,10561996,11079534,11600272,0,"_","_","_","_"]
["D0001/IA02105/F0932/X146/R0023/001/CONTRA","D0001/IA02105/F0932/X146/R0023/001/CONTRA",122594,0,"Assets:Current Assets:Cash and Cash Equivalents:Cash at Bank:Bank Account:Specify (replace with account description):Deposits"," _"," _"," _ "," _ "," _ "," _ ","4200","Water management","4202","Water Distribution","_"," _"," _","D","IA","0120","Current assets / Cash and cash equivalents","0120","Cash and cash equivalents","0130D","CASH FLOW FROM OPERATING ACTIVITIES / Receipts / Service charges","0130","Service charges - water revenue","","Recepts - Cash and Cash Equivalents","","Recepts - Cash and Cash Equivalents"," _ "," _ "," _ "," _ ",null," _ "," _ "," _ "," _ ","0130","Cash Receipts By Source / Service charges - water revenue","D"," _ "," _ "," _ "," _ "," _ "," _ "," _ "," _ "," _ "," _ "," _ ",null," _ "," _ "," _ "," _ "," _ ",null," _ "," _ "," _ "," _ ",null,11,111,"Water Distribution","Water Management",null,null,0,0,0,0,0,0,0,0,0,"_","_","_","_"]
["D0001/IA02105/F0931/X139/R0041/001/CONTRA","D0001/IA02105/F0931/X139/R0041/001/CONTRA",122578,0,"Assets:Current Assets:Cash and Cash Equivalents:Cash at Bank:Bank Account:Specify (replace with account description):Deposits"," _"," _"," _ "," _ "," _ "," _ ","4300","Waste water management","4302","Sewerage","_"," _"," _","D","IA","0120","Current assets / Cash and cash equivalents","0120","Cash and cash equivalents","0130D","CASH FLOW FROM OPERATING ACTIVITIES / Receipts / Service charges","0140","Service charges - sanitation revenue","","Recepts - Cash and Cash Equivalents","","Recepts - Cash and Cash Equivalents"," _ "," _ "," _ "," _ ",null," _ "," _ "," _ "," _ ","0140","Cash Receipts By Source / Service charges - sanitation revenue","D"," _ "," _ "," _ "," _ "," _ "," _ "," _ "," _ "," _ "," _ "," _ ",null," _ "," _ "," _ "," _ "," _ ",null," _ "," _ "," _ "," _ ",null,12,121,"Sewerage","Waste Water Management",null,null,0,0,0,0,0,0,0,0,0,"_","_","_","_"]
["D0001/IA02105/F0042/X059/R0229/001/BSB","D0001/IA02105/F0042/X059/R0229/001/BSB",120551,11430,"Assets:Current Assets:Cash and Cash Equivalents:Cash at Bank:Bank Account:Specify (replace with account description):Deposits"," _"," _"," _ "," _ "," _ "," _ ","1200","Finance and administration","1214","Valuation Service","_"," _"," _","D","IA","0120","Current assets / Cash and cash equivalents","0120","Cash and cash equivalents","0140D","CASH FLOW FROM OPERATING ACTIVITIES / Receipts / Other revenue","0210","Fines, penalties and forfeits","","Recepts - Cash and Cash Equivalents","","Recepts - Cash and Cash Equivalents"," _ "," _ "," _ "," _ ",null," _ "," _ "," _ "," _ ","0210","Cash Receipts By Source / Fines, penalties and forfeits","D"," _ "," _ "," _ "," _ "," _ "," _ "," _ "," _ "," _ "," _ "," _ ",null," _ "," _ "," _ "," _ "," _ ",null," _ "," _ "," _ "," _ ",null,null,0,"Valuation Service"," _ ",null,null,0,0,0,0,0,0,0,0,0,"_","_","_","_"]
["D0001/IA02105/F2494/X055/R0229/001/BSB","D0001/IA02105/F2494/X055/R0229/001/BSB",120548,11445,"Assets:Current Assets:Cash and Cash Equivalents:Cash at Bank:Bank Account:Specify (replace with account description):Deposits"," _"," _"," _ "," _ "," _ "," _ ","1200","Finance and administration","1210","Property Services","_"," _"," _","D","IA","0120","Current assets / Cash and cash equivalents","0120","Cash and cash equivalents","0170D","CASH FLOW FROM OPERATING ACTIVITIES / Receipts / Interest","0170D","CASH FLOW FROM OPERATING ACTIVITIES / Receipts / Interest","","Recepts - Cash and Cash Equivalents","","Recepts - Cash and Cash Equivalents"," _ "," _ "," _ "," _ ",null," _ "," _ "," _ "," _ ","0180","Cash Receipts By Source / Interest earned - external investments","D"," _ "," _ "," _ "," _ "," _ "," _ "," _ "," _ "," _ "," _ "," _ ",null," _ "," _ "," _ "," _ "," _ ",null," _ "," _ "," _ "," _ ",null,3,36,"Property Services","Finance & Administration",null,null,0,0,0,0,0,0,0,0,0,"_","_","_","_"]
["D0001/IA02105/F0044/X096/R0230/001/CONTRA","D0001/IA02105/F0044/X096/R0230/001/CONTRA",121106,0,"Assets:Current Assets:Cash and Cash Equivalents:Cash at Bank:Bank Account:Specify (replace with account description):Deposits"," _"," _"," _ "," _ "," _ "," _ ","3100","Planning and development","3102","Corporate Wide Strategic Planning (IDPs, LEDs)","_"," _"," _","D","IA","0120","Current assets / Cash and cash equivalents","0120","Cash and cash equivalents","0140D","CASH FLOW FROM OPERATING ACTIVITIES / Receipts / Other revenue","0220","Licences and permits","","Recepts - Cash and Cash Equivalents","","Recepts - Cash and Cash Equivalents"," _ "," _ "," _ "," _ ",null," _ "," _ "," _ "," _ ","0220","Cash Receipts By Source / Licences and permits","D"," _ "," _ "," _ "," _ "," _ "," _ "," _ "," _ "," _ "," _ "," _ ",null," _ "," _ "," _ "," _ "," _ ",null," _ "," _ "," _ "," _ ",null,4,42,"Corporate Wide Strategic Planning (IDPs, LEDs)","Planning and Development",null,null,0,0,0,0,0,69000,72381,75783,0,"_","_","_","_"]
["D0001/IA10019/F0001/X049/R0230/001/6115","D0001/IA10019/F0001/X049/R0230/001/6115",110044,8928,"Assets:Current Assets:Cash and Cash Equivalents:Cash at Bank:Bank Account:Specify (replace with account description):Opening Balance"," _"," _"," _ "," _ "," _ "," _ ","1200","Finance and administration","1204","Finance","_"," _"," _","D","IA","0120","Current assets / Cash and cash equivalents","0120","Cash and cash equivalents"," _ "," _ ","_","_","0420","Cash/cash equivalents at the month/year begin:","0560","Cash/cash equivalents at the month/year begin:"," _ "," _ "," _ "," _ ",null," _ "," _ "," _ "," _ ","",null,null," _ "," _ "," _ "," _ "," _ "," _ "," _ "," _ "," _ "," _ "," _ ",null," _ "," _ "," _ "," _ "," _ ",null," _ "," _ "," _ "," _ ",null,3,32,"Finance","Finance & Administration",null,null,0,0,0,0,0,0,0,0,0,"_","_","_","_"]
["D0001/IA02354/F0041/X049/R0229/001/CONTRA","D0001/IA02354/F0041/X049/R0229/001/CONTRA",121134,0,"Assets:Current Assets:Trade and other Receivables from Exchange Transactions:Trading Service and Customer Service Debtors:Property Rental Debtors:Collections"," _"," _"," _ "," _ "," _ "," _ ","1200","Finance and administration","1204","Finance","_"," _"," _","D","IA","0130","Current assets / Trade and other receivables from exchange transactions","_","_"," _ "," _ ","_","_"," _ "," _ "," _ "," _ "," _ "," _ "," _ "," _ ",null,"0115","Trade and other receivables from exchange transactions / Other trade receivables from exchange transactions","0115","Trade and other receivables from exchange transactions / Other trade receivables from exchange transactions","",null,null," _ "," _ "," _ "," _ "," _ "," _ "," _ "," _ "," _ "," _ "," _ ",null," _ "," _ "," _ "," _ "," _ ",null," _ "," _ "," _ "," _ ",null,3,32,"Finance","Finance & Administration",null,null,0,0,0,0,0,0,0,0,0,"_","_","_","_"]
["D0001/IA02354/F0041/X049/R0230/001/CONTRA","D0001/IA02354/F0041/X049/R0230/001/CONTRA",121140,0,"Assets:Current Assets:Trade and other Receivables from Exchange Transactions:Trading Service and Customer Service Debtors:Property Rental Debtors:Collections"," _"," _"," _ "," _ "," _ "," _ ","1200","Finance and administration","1204","Finance","_"," _"," _","D","IA","0130","Current assets / Trade and other receivables from exchange transactions","_","_"," _ "," _ ","_","_"," _ "," _ "," _ "," _ "," _ "," _ "," _ "," _ ",null,"0115","Trade and other receivables from exchange transactions / Other trade receivables from exchange transactions","0115","Trade and other receivables from exchange transactions / Other trade receivables from exchange transactions","",null,null," _ "," _ "," _ "," _ "," _ "," _ "," _ "," _ "," _ "," _ "," _ ",null," _ "," _ "," _ "," _ "," _ ",null," _ "," _ "," _ "," _ ",null,3,32,"Finance","Finance & Administration",null,null,0,0,0,0,0,0,0,0,0,"_","_","_","_"]
["D0001/IA01946/F0001/X049/R0230/001/CONTRA","D0001/IA01946/F0001/X049/R0230/001/CONTRA",122539,0,"Assets:Current Assets:Trade and other Receivables from Exchange Transactions:Affiliated/Related Parties/Associated Companies:Collections"," _"," _"," _ "," _ "," _ "," _ ","1200","Finance and administration","1204","Finance","_"," _"," _","D","IA","0130","Current assets / Trade and other receivables from exchange transactions","_","_"," _ "," _ ","_","_"," _ "," _ "," _ "," _ "," _ "," _ "," _ "," _ ",null,"0115","Trade and other receivables from exchange transactions / Other trade receivables from exchange transactions","0115","Trade and other receivables from exchange transactions / Other trade receivables from exchange transactions","",null,null," _ "," _ "," _ "," _ "," _ "," _ "," _ "," _ "," _ "," _ "," _ ",null," _ "," _ "," _ "," _ "," _ ",null," _ "," _ "," _ "," _ ",null,3,32,"Finance","Finance & Administration",null,null,0,0,0,0,0,0,0,0,0,"_","_","_","_"]
["D0001/IL14035/F2766/X049/R0230/001/6115","D0001/IL14035/F2766/X049/R0230/001/6115",120315,10198,"Liabilities:Current Liabilities:Trade and Other Payable Non-exchange Transactions:Transfers and Subsidies Unspent:Capital:Monetary Allocations:Departmental Agencies and Accounts:National Departmental Agencies:Local Government, Water and Related Service SE"," _"," _"," _ "," _ "," _ "," _ ","1200","Finance and administration","1204","Finance","_"," _"," _","D","IL","0390","Current liabilities / Trade and other payables from non-exchange transactions","_","_"," _ "," _ ","_","_"," _ "," _ "," _ "," _ "," _ "," _ "," _ "," _ ",null,"0363","Trade and other payables / Trade payables from Non-exchange transactions: Unspent conditional Grants","0363","Trade and other payables / Trade payables from Non-exchange transactions: Unspent conditional Grants","",null,null," _ "," _ "," _ "," _ "," _ "," _ "," _ "," _ "," _ "," _ "," _ ",null," _ "," _ "," _ "," _ "," _ ",null," _ "," _ "," _ "," _ ",null,3,32,"Finance","Finance & Administration",null,null,0,0,0,0,310000,0,0,0,0,"_","_","_","_"]
["D0001/IA010692/F2496/X049/R0023/001/CONTRA","D0001/IA010692/F2496/X049/R0023/001/CONTRA",121208,0,"Assets:Current Assets:Receivables from Non-exchange Transactions:Property Rates by Usage:Agricultural Properties:Monthly Billing"," _"," _"," _ "," _ "," _ "," _ ","1200","Finance and administration","1204","Finance","_"," _"," _","D","IA","0140","Current assets / Receivables from non-exchange transactions","0141","Property rates"," _ "," _ ","_","_"," _ "," _ "," _ "," _ "," _ "," _ "," _ "," _ ",null,"0126","Receivables from non-exchange transactions / Property rates","0126","Receivables from non-exchange transactions / Property rates","",null,null," _ "," _ "," _ "," _ "," _ "," _ "," _ "," _ "," _ "," _ "," _ ",null," _ "," _ "," _ "," _ "," _ ",null," _ "," _ "," _ "," _ ",null,3,32,"Finance","Finance & Administration",null,null,0,0,0,0,0,0,0,0,0,"_","_","_","_"]
["D0001/IA08437/F2494/X132/R0230/001/CONTRA","D0001/IA08437/F2494/X132/R0230/001/CONTRA",121172,0,"Assets:Current Assets:Trade and other Receivables from Exchange Transactions:Trading Service and Customer Service Debtors:Waste Management:Interest Charge"," _"," _"," _ "," _ "," _ "," _ ","4400","Waste management","4403","Solid Waste Removal","_"," _"," _","D","IA","0130","Current assets / Trade and other receivables from exchange transactions","_","_"," _ "," _ ","_","_"," _ "," _ "," _ "," _ "," _ "," _ "," _ "," _ ",null,"0113","Trade and other receivables from exchange transactions / Waste","0113","Trade and other receivables from exchange transactions / Waste","",null,null," _ "," _ "," _ "," _ "," _ "," _ "," _ "," _ "," _ "," _ "," _ ",null," _ "," _ "," _ "," _ "," _ ",null," _ "," _ "," _ "," _ ",null,9,93,"Solid Waste Removal","Waste Management",null,null,0,0,0,0,0,-3124345,-3277438,-3431478,0,"_","_","_","_"]
["D0001/IA02229/F0041/X049/R0229/001/6115","D0001/IA02229/F0041/X049/R0229/001/6115",120324,11211,"Assets:Current Assets:Trade and other Receivables from Exchange Transactions:Prepayments and Advances:Annual Licence Fees:Monthly Billing"," _"," _"," _ "," _ "," _ "," _ ","1200","Finance and administration","1204","Finance","_"," _"," _","D","IA","0130","Current assets / Trade and other receivables from exchange transactions","_","_"," _ "," _ ","_","_"," _ "," _ "," _ "," _ "," _ "," _ "," _ "," _ ",null,"0115","Trade and other receivables from exchange transactions / Other trade receivables from exchange transactions","0115","Trade and other receivables from exchange transactions / Other trade receivables from exchange transactions","",null,null," _ "," _ "," _ "," _ "," _ "," _ "," _ "," _ "," _ "," _ "," _ ",null," _ "," _ "," _ "," _ "," _ ",null," _ "," _ "," _ "," _ ",null,3,32,"Finance","Finance & Administration",null,null,0,0,0,0,0,0,0,0,0,"_","_","_","_"]
["D0001/IA10363/F0001/X047/R0230/001/6114","D0001/IA10363/F0001/X047/R0230/001/6114",99902,7787,"Assets:Current Assets:Inventory:Land:Opening Balance"," _"," _"," _ "," _ "," _ "," _ ","1200","Finance and administration","1202","Asset Management","_"," _"," _","D","IA","0160","Current assets / Inventory","_","_"," _ "," _ ","_","_"," _ "," _ "," _ "," _ "," _ "," _ "," _ "," _ ",null,"0230","Land / Opening Balance","0230","Land / Opening Balance","",null,null," _ "," _ "," _ "," _ "," _ "," _ "," _ "," _ "," _ "," _ "," _ ",null," _ "," _ "," _ "," _ "," _ ",null," _ "," _ "," _ "," _ ",null,3,33,"Asset Management","Finance & Administration",null,null,31085000,31085000,31085000,0,31085000,0,0,0,31085000,"_","_","_","_"]
["D0001/IZ00118/F0001/X050/R0229/001/6111","D0001/IZ00118/F0001/X050/R0229/001/6111",120250,10134,"Gains and Losses:Disposal of Fixed and Intangible Assets:Property, Plant and Equipment:Transport Assets:Gains","2600","Non-Exchange Revenue / Gains on disposal of Assets","2600","Non-Exchange Revenue / Gains on disposal of Assets"," _ "," _ ","1200","Finance and administration","1205","Fleet Management","_"," _"," _","D","IR"," _ "," _ "," _ "," _ "," _ "," _ ","_","_"," _ "," _ "," _ "," _ "," _ "," _ "," _ "," _ ",null," _ "," _ "," _ "," _ ","",null,null," _ "," _ "," _ "," _ "," _ "," _ "," _ "," _ "," _ "," _ "," _ ",null," _ "," _ "," _ "," _ "," _ ",null," _ "," _ "," _ "," _ ",null,3,31,"Fleet Management","Finance & Administration",null,null,0,0,0,0,0,0,0,0,0,"_","_","_","_"]
["D0001/IL01044/F0001/X049/R0230/001/6119","D0001/IL01044/F0001/X049/R0230/001/6119",99815,7697,"Liabilities:Non-current Liabilities:Provisions:Decommissioning, Restoration and Similar Liabilities:Landfill Sites:Opening Balance"," _"," _"," _ "," _ "," _ "," _ ","1200","Finance and administration","1204","Finance","_"," _"," _","D","IL","0460","Non current liabilities / Provision","0462","Accumulated Surplus/(Deficit) / GRAP adjustments"," _ "," _ ","_","_"," _ "," _ "," _ "," _ "," _ "," _ "," _ "," _ ",null,"0412","Provisions - non-current / Refuse landfill site rehabilitation","0412","Provisions - non-current / Refuse landfill site rehabilitation","",null,null," _ "," _ "," _ "," _ "," _ "," _ "," _ "," _ "," _ "," _ "," _ ",null," _ "," _ "," _ "," _ "," _ ",null," _ "," _ "," _ "," _ ",null,3,32,"Finance","Finance & Administration",null,null,0,0,0,-39005018,-39005018,-39005018,-39005018,-39005018,0,"_","_","_","_"]
["D0001/IR007144/F2496/X049/R0021/001/6115","D0001/IR007144/F2496/X049/R0021/001/6115",30470,880,"Revenue:Non-exchange Revenue:Property Rates by Usage:Residential Properties","1800","Non-Exchange Revenue / Property rates","1800","Non-Exchange Revenue / Property rates"," _ "," _ ","1200","Finance and administration","1204","Finance","_"," _"," _","D","IR"," _ "," _ "," _ "," _ "," _ "," _ ","_","_"," _ "," _ "," _ "," _ "," _ "," _ "," _ "," _ ",null," _ "," _ "," _ "," _ ","",null,null," _ "," _ "," _ "," _ "," _ "," _ "," _ "," _ "," _ "," _ "," _ ",null," _ "," _ "," _ "," _ "," _ ",null," _ "," _ "," _ "," _ ",null,3,32,"Finance","Finance & Administration",null,null,0,0,0,0,0,8109119,8506466,8906269,0,"_","_","_","_"]
["D0001/IZ00091/F0001/X047/R0230/001/CONTRA","D0001/IZ00091/F0001/X047/R0230/001/CONTRA",124459,0,"Gains and Losses:Disposal of Fixed and Intangible Assets:Property, Plant and Equipment:Computer Equipment:Losses","4200","Expenditure / Losses on disposal of Assets","4200","Expenditure / Losses on disposal of Assets"," _ "," _ ","1200","Finance and administration","1202","Asset Management","_"," _"," _","D","IE"," _ "," _ "," _ "," _ "," _ "," _ ","_","_"," _ "," _ "," _ "," _ "," _ "," _ "," _ "," _ ",null," _ "," _ "," _ "," _ ","",null,null," _ "," _ "," _ "," _ "," _ "," _ "," _ "," _ "," _ "," _ "," _ ",null," _ "," _ "," _ "," _ "," _ ",null," _ "," _ "," _ "," _ ",null,3,33,"Asset Management","Finance & Administration",null,null,0,0,0,0,0,0,0,0,0,"_","_","_","_"]
["D0001/IZ00008/F0001/X047/R0230/001/6114","D0001/IZ00008/F0001/X047/R0230/001/6114",99901,7786,"Gains and Losses:Impairment Loss:Investment Property","3600","Expenditure / Depreciation and amortisation","2303","Expenditure / Depreciation and amortisation","2303","Depreciation and asset impairment ","1200","Finance and administration","1202","Asset Management","_"," _"," _","D","IE"," _ "," _ "," _ "," _ "," _ "," _ ","_","_"," _ "," _ "," _ "," _ "," _ "," _ "," _ "," _ ",null," _ "," _ "," _ "," _ ","",null,null," _ "," _ "," _ "," _ "," _ "," _ "," _ "," _ "," _ "," _ "," _ ",null," _ "," _ "," _ "," _ "," _ ",null," _ "," _ "," _ "," _ ",null,3,33,"Asset Management","Finance & Administration",null,null,0,0,122408,0,0,0,0,0,0,"_","_","_","_"]
["D0001/IA00031/F0002/X047/R0229/001/6114","D0001/IA00031/F0002/X047/R0229/001/6114",69684,4575,"Assets:Non-current Assets:Property, Plant and Equipment:Cost Model:Community Assets:Accumulated Impairment:Opening Balance"," _"," _"," _ "," _ "," _ "," _ ","1200","Finance and administration","1202","Asset Management","_",2080,"Funded by Internally generated funds","D","IA","0230","Non current assets / Property, plant and equipment","0231","Land: Acquisitions"," _ "," _ ","_","_"," _ "," _ "," _ "," _ ","0770","Community Assets",770,"Community Assets",null,"0241","Property, plant and equipment (PPE) / PPE at cost/valuation (excl. finance leases)","0241","Property, plant and equipment (PPE) / PPE at cost/valuation (excl. finance leases)","",null,null," _ "," _ "," _ "," _ "," _ "," _ "," _ "," _ "," _ "," _ "," _ ",null," _ "," _ "," _ "," _ "," _ ",null," _ "," _ "," _ "," _ ",null,3,33,"Asset Management","Finance & Administration",null,null,0,0,0,0,0,0,0,0,0,"_","_","_","_"]
["D0001/IR01006/F0932/X146/R0230/001/6651","D0001/IR01006/F0932/X146/R0230/001/6651",51322,3029,"Revenue:Exchange Revenue:Service Charges:Water:Connection/Disconnection","0400","Exchange Revenue / Service charges - Water","0400","Exchange Revenue / Service charges - Water"," _ "," _ ","4200","Water management","4202","Water Distribution","_"," _"," _","D","IR"," _ "," _ "," _ "," _ "," _ "," _ ","_","_"," _ "," _ "," _ "," _ "," _ "," _ "," _ "," _ ",null," _ "," _ "," _ "," _ ","",null,null," _ "," _ "," _ "," _ "," _ "," _ "," _ "," _ "," _ "," _ "," _ ",null," _ "," _ "," _ "," _ "," _ ",null," _ "," _ "," _ "," _ ",null,11,111,"Water Distribution","Water Management",null,null,0,7620,0,0,0,0,0,0,0,"_","_","_","_"]
["D0001/IA10220/F0001/X049/R0230/001/6115","D0001/IA10220/F0001/X049/R0230/001/6115",109909,8793,"Assets:Current Assets:Construction Contracts and Receivables:Receivables Due:Opening Balance"," _"," _"," _ "," _ "," _ "," _ ","1200","Finance and administration","1204","Finance","_"," _"," _","D","IA","0180","Current assets / Other current assets","0180","Other current assets"," _ "," _ ","_","_"," _ "," _ "," _ "," _ "," _ "," _ "," _ "," _ ",null," _ "," _ "," _ "," _ ","",null,null," _ "," _ "," _ "," _ "," _ "," _ "," _ "," _ "," _ "," _ "," _ ",null," _ "," _ "," _ "," _ "," _ ",null," _ "," _ "," _ "," _ ",null,3,32,"Finance","Finance & Administration",null,null,0,0,0,0,0,0,0,0,0,"_","_","_","_"]
["D0001/IA02522/F0931/X139/R0022/001/CONTRA","D0001/IA02522/F0931/X139/R0022/001/CONTRA",122572,0,"Assets:Current Assets:Trade and other Receivables from Exchange Transactions:Trading Service and Customer Service Debtors:Waste Water Management:Monthly Billing"," _"," _"," _ "," _ "," _ "," _ ","4300","Waste water management","4302","Sewerage","_"," _"," _","D","IA","0130","Current assets / Trade and other receivables from exchange transactions","_","_"," _ "," _ ","_","_"," _ "," _ "," _ "," _ "," _ "," _ "," _ "," _ ",null,"0114","Trade and other receivables from exchange transactions / Waste Water","0114","Trade and other receivables from exchange transactions / Waste Water","",null,null," _ "," _ "," _ "," _ "," _ "," _ "," _ "," _ "," _ "," _ "," _ ",null," _ "," _ "," _ "," _ "," _ ",null," _ "," _ "," _ "," _ ",null,12,121,"Sewerage","Waste Water Management",null,null,0,0,0,0,0,0,0,0,0,"_","_","_","_"]
["D0001/IA00024/F0002/X047/R0230/001/6114","D0001/IA00024/F0002/X047/R0230/001/6114",69678,4569,"Assets:Non-current Assets:Property, Plant and Equipment:Cost Model:Community Assets:Accumulated Depreciation:Opening Balance"," _"," _"," _ "," _ "," _ "," _ ","1200","Finance and administration","1202","Asset Management","_",2080,"Funded by Internally generated funds","D","IA","0230","Non current assets / Property, plant and equipment","0233","Land: Adjustments"," _ "," _ ","_","_"," _ "," _ "," _ "," _ ","0770","Community Assets",770,"Community Assets",null,"0243","Property, plant and equipment (PPE) / Less: Accumulated depreciation","0243","Property, plant and equipment (PPE) / Less: Accumulated depreciation","",null,null," _ "," _ "," _ "," _ "," _ "," _ "," _ "," _ "," _ "," _ "," _ ",null," _ "," _ "," _ "," _ "," _ ",null," _ "," _ "," _ "," _ ",null,3,33,"Asset Management","Finance & Administration",null,null,0,0,0,0,0,0,0,0,0,"_","_","_","_"]
["D0001/LN00006/F0001/X009/R0229/001/CONTRA","D0001/LN00006/F0001/X009/R0229/001/CONTRA",122524,0,"Net Assets:Accumulated Surplus/(Deficit):Opening Balance"," _"," _"," _ "," _ "," _ "," _ ","2100","Community and social services","2117","Museums and Art Galleries","_"," _"," _","D","LN","0530","COMMUNITY WEALTH/EQUITY / Accumulated surplus/(deficit)","_","_"," _ "," _ ","_","_"," _ "," _ "," _ "," _ "," _ "," _ "," _ "," _ ",null,"0461","Accumulated Surplus/(Deficit) / Accumulated Surplus/(Deficit) - opening balance","0461","Accumulated Surplus/(Deficit) / Accumulated Surplus/(Deficit) - opening balance","",null,null," _ "," _ "," _ "," _ "," _ "," _ "," _ "," _ "," _ "," _ "," _ ",null," _ "," _ "," _ "," _ "," _ ",null," _ "," _ "," _ "," _ ",null,null,0,"Museums and Art Galleries"," _ ",null,null,0,0,0,0,0,0,0,0,0,"_","_","_","_"]
["D0001/LN00006/F0001/X047/R0029/001/CONTRA","D0001/LN00006/F0001/X047/R0029/001/CONTRA",122825,0,"Net Assets:Accumulated Surplus/(Deficit):Opening Balance"," _"," _"," _ "," _ "," _ "," _ ","1200","Finance and administration","1202","Asset Management","_"," _"," _","D","LN","0530","COMMUNITY WEALTH/EQUITY / Accumulated surplus/(deficit)","_","_"," _ "," _ ","_","_"," _ "," _ "," _ "," _ "," _ "," _ "," _ "," _ ",null,"0461","Accumulated Surplus/(Deficit) / Accumulated Surplus/(Deficit) - opening balance","0461","Accumulated Surplus/(Deficit) / Accumulated Surplus/(Deficit) - opening balance","",null,null," _ "," _ "," _ "," _ "," _ "," _ "," _ "," _ "," _ "," _ "," _ ",null," _ "," _ "," _ "," _ "," _ ",null," _ "," _ "," _ "," _ ",null,3,33,"Asset Management","Finance & Administration",null,null,0,0,0,0,0,0,0,0,0,"_","_","_","_"]
["D0001/IA10129/F0001/X049/R0230/001/6115","D0001/IA10129/F0001/X049/R0230/001/6115",110139,9023,"Assets:Current Assets:Cash and Cash Equivalents:Cash at Bank:Bank Account:Specify (replace with account description):Opening Balance"," _"," _"," _ "," _ "," _ "," _ ","1200","Finance and administration","1204","Finance","_"," _"," _","D","IA","0120","Current assets / Cash and cash equivalents","0120","Cash and cash equivalents"," _ "," _ ","_","_","0420","Cash/cash equivalents at the month/year begin:","0560","Cash/cash equivalents at the month/year begin:"," _ "," _ "," _ "," _ ",null," _ "," _ "," _ "," _ ","",null,null," _ "," _ "," _ "," _ "," _ "," _ "," _ "," _ "," _ "," _ "," _ ",null," _ "," _ "," _ "," _ "," _ ",null," _ "," _ "," _ "," _ ",null,3,32,"Finance","Finance & Administration",null,null,0,0,0,0,0,0,0,0,0,"_","_","_","_"]
["D0001/IR007142/F2496/X049/R0041/001/6115","D0001/IR007142/F2496/X049/R0041/001/6115",30481,891,"Revenue:Non-exchange Revenue:Property Rates by Usage:Industrial Properties","1800","Non-Exchange Revenue / Property rates","1800","Non-Exchange Revenue / Property rates"," _ "," _ ","1200","Finance and administration","1204","Finance","_"," _"," _","D","IR"," _ "," _ "," _ "," _ "," _ "," _ ","_","_"," _ "," _ "," _ "," _ "," _ "," _ "," _ "," _ ",null," _ "," _ "," _ "," _ ","",null,null," _ "," _ "," _ "," _ "," _ "," _ "," _ "," _ "," _ "," _ "," _ ",null," _ "," _ "," _ "," _ "," _ ",null," _ "," _ "," _ "," _ ",null,3,32,"Finance","Finance & Administration",null,null,0,0,0,0,0,0,0,0,0,"_","_","_","_"]
["D0001/IA10378/F0041/X124/R0229/001/BSB","D0001/IA10378/F0041/X124/R0229/001/BSB",120496,11403,"Assets:Current Assets:VAT Receivable:Input Tax General:Recognised"," _"," _"," _ "," _ "," _ "," _ ","2200","Sport and recreation","2204","Recreational Facilities","_"," _"," _","D","IA","0170","Current assets / VAT","0170","VAT"," _ "," _ ","_","_"," _ "," _ "," _ "," _ "," _ "," _ "," _ "," _ ",null," _ "," _ "," _ "," _ ","",null,null," _ "," _ "," _ "," _ "," _ "," _ "," _ "," _ "," _ "," _ "," _ ",null," _ "," _ "," _ "," _ "," _ ",null," _ "," _ "," _ "," _ ",null,10,101,"Recreational Facilities","Sports & Recreation",null,null,0,0,0,0,0,0,0,0,0,"_","_","_","_"]
["D0001/IA10378/F0041/X116/R0229/001/BSB","D0001/IA10378/F0041/X116/R0229/001/BSB",120376,11412,"Assets:Current Assets:VAT Receivable:Input Tax General:Recognised"," _"," _"," _ "," _ "," _ "," _ ","3200","Road transport","3205","Roads","_"," _"," _","D","IA","0170","Current assets / VAT","0170","VAT"," _ "," _ ","_","_"," _ "," _ "," _ "," _ "," _ "," _ "," _ "," _ ",null," _ "," _ "," _ "," _ ","",null,null," _ "," _ "," _ "," _ "," _ "," _ "," _ "," _ "," _ "," _ "," _ ",null," _ "," _ "," _ "," _ "," _ ",null," _ "," _ "," _ "," _ ",null,7,74,"Roads","Road Transport",null,null,0,0,0,0,8471100,0,0,0,0,"_","_","_","_"]
["D0001/IA10378/F0041/X132/R0229/001/BSB","D0001/IA10378/F0041/X132/R0229/001/BSB",120397,11375,"Assets:Current Assets:VAT Receivable:Input Tax General:Recognised"," _"," _"," _ "," _ "," _ "," _ ","4400","Waste management","4403","Solid Waste Removal","_"," _"," _","D","IA","0170","Current assets / VAT","0170","VAT"," _ "," _ ","_","_"," _ "," _ "," _ "," _ "," _ "," _ "," _ "," _ ",null," _ "," _ "," _ "," _ ","",null,null," _ "," _ "," _ "," _ "," _ "," _ "," _ "," _ "," _ "," _ "," _ ",null," _ "," _ "," _ "," _ "," _ ",null," _ "," _ "," _ "," _ ",null,9,93,"Solid Waste Removal","Waste Management",null,null,0,0,0,0,180488,0,0,0,0,"_","_","_","_"]
["D0001/IA10378/F0041/X032/R0229/001/BSB","D0001/IA10378/F0041/X032/R0229/001/BSB",120398,11378,"Assets:Current Assets:VAT Receivable:Input Tax General:Recognised"," _"," _"," _ "," _ "," _ "," _ ","4100","Energy sources","4101","Electricity","_"," _"," _","D","IA","0170","Current assets / VAT","0170","VAT"," _ "," _ ","_","_"," _ "," _ "," _ "," _ "," _ "," _ "," _ "," _ ",null," _ "," _ "," _ "," _ ","",null,null," _ "," _ "," _ "," _ "," _ "," _ "," _ "," _ "," _ "," _ "," _ ",null," _ "," _ "," _ "," _ "," _ ",null," _ "," _ "," _ "," _ ",null,1,11,"Electricity"," Energy Sources",null,null,0,0,0,0,6489839,0,0,0,0,"_","_","_","_"]
["O1256-1/IE00059/F0041/X046/R0229/001/6057","O1256-1/IE00059/F0041/X046/R0229/001/6057",30910,1952,"Expenditure:Operational Cost:Registration Fees:Seminars, Conferences, Workshops and Events:National","4100","Expenditure / Operational costs","2904","Expenditure / Operational costs","2904","Operational Costs ","1200","Finance and administration","1201","Administrative and Corporate Support","_"," _"," _","O","IE"," _ "," _ "," _ "," _ "," _ "," _ ","_","_"," _ "," _ "," _ "," _ "," _ "," _ "," _ "," _ ",null," _ "," _ "," _ "," _ ","",null,null," _ "," _ "," _ "," _ "," _ "," _ "," _ "," _ "," _ "," _ "," _ ",null," _ "," _ "," _ "," _ "," _ ",null," _ "," _ "," _ "," _ ",null,14,142,"Administrative and Corporate Support","Finance & Administration 2",null,null,0,0,0,0,0,75000,75000,75000,0,"_","_","_","_"]
["C0175-1/IA02105/F0002/X116/R0230/001/CONTRA","C0175-1/IA02105/F0002/X116/R0230/001/CONTRA",123711,0,"Assets:Current Assets:Cash and Cash Equivalents:Cash at Bank:Bank Account:Specify (replace with account description):Deposits"," _"," _"," _ "," _ "," _ "," _ ","3200","Road transport","3205","Roads","_",2080,"Funded by Internally generated funds","C","IA","0120","Current assets / Cash and cash equivalents","0120","Cash and cash equivalents"," _ "," _ ","_","_","","Recepts - Cash and Cash Equivalents","0510","Recepts - Cash and Cash Equivalents"," _ "," _ "," _ "," _ ",null," _ "," _ "," _ "," _ ","",null,"D"," _ "," _ "," _ "," _ "," _ "," _ "," _ "," _ "," _ "," _ "," _ ",null," _ "," _ "," _ "," _ "," _ ",null,"0140","Infrastructure / Roads Infrastructure / Road Furniture","0140","Infrastructure / Roads Infrastructure / Road Furniture",null,7,74,"Roads","Road Transport",null,null,0,0,0,0,0,0,0,0,0,"_","_","_","_"]
["C0175-2/IL65530/F0002/X034/R0230/001/CONTRA","C0175-2/IL65530/F0002/X034/R0230/001/CONTRA",123852,0,"Liabilities:Current Liabilities:Trade and Other Payable Exchange Transactions:Payables and Accruals : Contractors:Deposits"," _"," _"," _ "," _ "," _ "," _ ","4100","Energy sources","4102","Street Lighting and Signal Systems","_",2080,"Funded by Internally generated funds","C","IL","0380","Current liabilities / Trade and other payables from exchange transactions","_","_"," _ "," _ ","_","_"," _ "," _ "," _ "," _ "," _ "," _ "," _ "," _ ",null,"0361","Trade and other payables / Trade and other payables from exchange transactions","0361","Trade and other payables / Trade and other payables from exchange transactions","",null,null," _ "," _ "," _ "," _ "," _ "," _ "," _ "," _ "," _ "," _ "," _ ",null," _ "," _ "," _ "," _ "," _ ",null,"0140","Infrastructure / Roads Infrastructure / Road Furniture","0140","Infrastructure / Roads Infrastructure / Road Furniture",null,1,12,"Street Lighting and Signal Systems"," Energy Sources",null,null,0,0,0,0,0,0,0,0,0,"_","_","_","_"]
["C0271-3/IA10370/F0002/X006/R0230/001/CONTRA","C0271-3/IA10370/F0002/X006/R0230/001/CONTRA",122772,0,"Assets:Current Assets:VAT Receivable:Input Tax Capital:Recognised"," _"," _"," _ "," _ "," _ "," _ ","2100","Community and social services","2106","Community Halls and Facilities","_",2080,"Funded by Internally generated funds","C","IA","0170","Current assets / VAT","0170","VAT"," _ "," _ ","_","_"," _ "," _ "," _ "," _ "," _ "," _ "," _ "," _ ",null," _ "," _ "," _ "," _ ","",null,null," _ "," _ "," _ "," _ ","0800","Community Assets / Community Facilities / Centres"," _ "," _ ","0800"," _ "," _ ",null," _ "," _ ","Community Assets / Community Facilities / Centres"," _ "," _ ",null," _ "," _ "," _ "," _ ",null,2,22,"Community Halls and Facilities","Community and Social Services",null,null,0,0,0,0,0,0,0,0,0,"_","_","_","_"]
["O1303-1/IA10375/F0045/X098/R0230/001/CONTRA","O1303-1/IA10375/F0045/X098/R0230/001/CONTRA",122302,0,"Assets:Current Assets:VAT Receivable:Input Tax Accrual:Recognised"," _"," _"," _ "," _ "," _ "," _ ","3100","Planning and development","3105","Planning","_"," _"," _","O","IA","0170","Current assets / VAT","0170","VAT"," _ "," _ ","_","_"," _ "," _ "," _ "," _ "," _ "," _ "," _ "," _ ",null," _ "," _ "," _ "," _ ","",null,null," _ "," _ "," _ "," _ "," _ "," _ "," _ "," _ "," _ "," _ "," _ ",null," _ "," _ "," _ "," _ "," _ ",null," _ "," _ "," _ "," _ ",null,4,43,"Economic Development/Planning","Planning and Development",null,null,0,0,0,0,0,0,0,0,0,"_","_","_","_"]
["C0261-3/IA02108/F0791/X116/R0229/001/CONTRA","C0261-3/IA02108/F0791/X116/R0229/001/CONTRA",124661,0,"Assets:Current Assets:Cash and Cash Equivalents:Cash at Bank:Bank Account:Specify (replace with account description):Withdrawals"," _"," _"," _ "," _ "," _ "," _ ","3200","Road transport","3205","Roads","_",2010,"Funded by National Government","C","IA","0120","Current assets / Cash and cash equivalents","0120","Cash and cash equivalents","0160W","CASH FLOW FROM OPERATING ACTIVITIES / Receipts / Transfers and Subsidies - Capital","0160W","CASH FLOW FROM OPERATING ACTIVITIES / Receipts / Transfers and Subsidies - Capital","0310","Other Cash Flows/Payments by Type / Capital assets","0510","Capital assets"," _ "," _ "," _ "," _ ",null," _ "," _ "," _ "," _ ","0280","Other Cash Flows by Source / Transfers and subsidies - capital (monetary allocations) (National / Provincial and District)","W","1200","1200","Other assets / Operational Buildings / Municipal Offices","Other assets / Operational Buildings / Municipal Offices"," _ "," _ "," _ "," _ "," _ "," _ "," _ ",null," _ "," _ "," _ "," _ "," _ ",null," _ "," _ "," _ "," _ ",null,7,74,"Roads","Road Transport",null,null,0,0,0,0,0,0,0,0,0,"_","_","_","_"]
["C0261-3/IA02105/F0791/X116/R0229/001/CONTRA","C0261-3/IA02105/F0791/X116/R0229/001/CONTRA",124304,0,"Assets:Current Assets:Cash and Cash Equivalents:Cash at Bank:Bank Account:Specify (replace with account description):Deposits"," _"," _"," _ "," _ "," _ "," _ ","3200","Road transport","3205","Roads","_",2010,"Funded by National Government","C","IA","0120","Current assets / Cash and cash equivalents","0120","Cash and cash equivalents","0","CASH FLOW FROM OPERATING ACTIVITIES / Receipts / Transfers and Subsidies - Capital","0","Transfers - National, Provincial, District Municipalities ","","Recepts - Cash and Cash Equivalents","0510","Recepts - Cash and Cash Equivalents"," _ "," _ "," _ "," _ ",null," _ "," _ "," _ "," _ ","0280","Other Cash Flows by Source / Transfers and subsidies - capital (monetary allocations) (National / Provincial and District)","D","1200","1200","Other assets / Operational Buildings / Municipal Offices","Other assets / Operational Buildings / Municipal Offices"," _ "," _ "," _ "," _ "," _ "," _ "," _ ",null," _ "," _ "," _ "," _ "," _ ",null," _ "," _ "," _ "," _ ",null,7,74,"Roads","Road Transport",null,null,0,0,0,0,0,0,0,0,0,"_","_","_","_"]
["O1334-1/IL53820/F0041/X124/R0230/001/CONTRA","O1334-1/IL53820/F0041/X124/R0230/001/CONTRA",122455,0,"Liabilities:Current Liabilities:Trade and Other Payable Exchange Transactions:Payables and Accruals : General:Deposits"," _"," _"," _ "," _ "," _ "," _ ","2200","Sport and recreation","2204","Recreational Facilities","_"," _"," _","O","IL","0380","Current liabilities / Trade and other payables from exchange transactions","_","_"," _ "," _ ","_","_"," _ "," _ "," _ "," _ "," _ "," _ "," _ "," _ ",null,"0361","Trade and other payables / Trade and other payables from exchange transactions","0361","Trade and other payables / Trade and other payables from exchange transactions","",null,null," _ "," _ "," _ "," _ "," _ "," _ "," _ "," _ "," _ "," _ "," _ ",null," _ "," _ "," _ "," _ "," _ ",null," _ "," _ "," _ "," _ ",null,10,101,"Recreational Facilities","Sports & Recreation",null,null,0,0,0,0,0,-402500,-414000,-425500,0,"_","_","_","_"]
["C0241-1/IA00022/F0002/X047/R0230/001/6114","C0241-1/IA00022/F0002/X047/R0230/001/6114",61394,4116,"Assets:Non-current Assets:Property, Plant and Equipment:Cost Model:Community Assets:Accumulated Depreciation:Depreciation"," _"," _"," _ "," _ "," _ "," _ ","1200","Finance and administration","1202","Asset Management","_",2080,"Funded by Internally generated funds","C","IA","0230","Non current assets / Property, plant and equipment","0233","Land: Adjustments"," _ "," _ ","_","_"," _ "," _ "," _ "," _ ","0770","Community Assets",770,"Community Assets",null,"0243","Property, plant and equipment (PPE) / Less: Accumulated depreciation","0243","Property, plant and equipment (PPE) / Less: Accumulated depreciation","",null,null,"0840","0840","Community Assets / Community Facilities / Testing Stations","Community Assets / Community Facilities / Testing Stations"," _ "," _ "," _ "," _ "," _ "," _ "," _ ",null," _ "," _ "," _ "," _ "," _ ",null," _ "," _ "," _ "," _ ",null,3,33,"Asset Management","Finance & Administration",null,null,0,0,0,0,0,0,0,0,0,"_","_","_","_"]
["C0120-2/IL65531/F0791/X116/R0029/001/CONTRA","C0120-2/IL65531/F0791/X116/R0029/001/CONTRA",123911,0,"Liabilities:Current Liabilities:Trade and Other Payable Exchange Transactions:Payables and Accruals : Contractors:Withdrawals"," _"," _"," _ "," _ "," _ "," _ ","3200","Road transport","3205","Roads","_",2010,"Funded by National Government","C","IL","0380","Current liabilities / Trade and other payables from exchange transactions","_","_"," _ "," _ ","_","_","0200","Cash Payments by Type / Contracted Services","0450","Cash Payments by Type / Contracted Services"," _ "," _ "," _ "," _ ",null,"0361","Trade and other payables / Trade and other payables from exchange transactions","0361","Trade and other payables / Trade and other payables from exchange transactions","",null,null," _ "," _ "," _ "," _ ","0120","Infrastructure / Roads Infrastructure / Roads"," _ "," _ ","0120"," _ "," _ ",null," _ "," _ ","Infrastructure / Roads Infrastructure / Roads"," _ "," _ ",null," _ "," _ "," _ "," _ ",null,7,74,"Roads","Road Transport",null,null,0,0,0,0,0,0,0,0,0,"_","_","_","_"]
["O1520-1/IA10375/F0041/X132/R0230/001/CONTRA","O1520-1/IA10375/F0041/X132/R0230/001/CONTRA",123610,0,"Assets:Current Assets:VAT Receivable:Input Tax Accrual:Recognised"," _"," _"," _ "," _ "," _ "," _ ","4400","Waste management","4403","Solid Waste Removal","_"," _"," _","O","IA","0170","Current assets / VAT","0170","VAT"," _ "," _ ","_","_"," _ "," _ "," _ "," _ "," _ "," _ "," _ "," _ ",null," _ "," _ "," _ "," _ ","",null,null," _ "," _ "," _ "," _ "," _ "," _ "," _ "," _ "," _ "," _ "," _ ",null," _ "," _ "," _ "," _ "," _ ",null," _ "," _ "," _ "," _ ",null,9,93,"Solid Waste Removal","Waste Management",null,null,0,0,0,0,0,22500,24000,25500,0,"_","_","_","_"]
["O1274-1/IA10375/F0041/X003/R0230/001/CONTRA","O1274-1/IA10375/F0041/X003/R0230/001/CONTRA",121095,0,"Assets:Current Assets:VAT Receivable:Input Tax Accrual:Recognised"," _"," _"," _ "," _ "," _ "," _ ","2100","Community and social services","2103","Animal Care and Diseases","_"," _"," _","O","IA","0170","Current assets / VAT","0170","VAT"," _ "," _ ","_","_"," _ "," _ "," _ "," _ "," _ "," _ "," _ "," _ ",null," _ "," _ "," _ "," _ ","",null,null," _ "," _ "," _ "," _ "," _ "," _ "," _ "," _ "," _ "," _ "," _ ",null," _ "," _ "," _ "," _ "," _ ",null," _ "," _ "," _ "," _ ",null,2,21,"Animal Care and Diseases","Community and Social Services",null,null,0,0,0,0,0,54000,57750,61500,0,"_","_","_","_"]
["O3614/IA010690/F2496/X049/R0230/001/CONTRA","O3614/IA010690/F2496/X049/R0230/001/CONTRA",121293,0,"Assets:Current Assets:Receivables from Non-exchange Transactions:Property Rates by Usage:Residential Properties:Monthly Billing"," _"," _"," _ "," _ "," _ "," _ ","1200","Finance and administration","1204","Finance","_"," _"," _","O","IA","0140","Current assets / Receivables from non-exchange transactions","0141","Property rates"," _ "," _ ","_","_"," _ "," _ "," _ "," _ "," _ "," _ "," _ "," _ ",null,"0126","Receivables from non-exchange transactions / Property rates","0126","Receivables from non-exchange transactions / Property rates","",null,null," _ "," _ "," _ "," _ "," _ "," _ "," _ "," _ "," _ "," _ "," _ ",null," _ "," _ "," _ "," _ "," _ ",null," _ "," _ "," _ "," _ ",null,3,32,"Finance","Finance & Administration",null,null,0,0,0,0,0,0,0,0,0,"_","_","_","_"]
["C0240-1/IA01952/F0002/X117/R0017/001/6603","C0240-1/IA01952/F0002/X117/R0017/001/6603",69607,4498,"Assets:Non-current Assets:Construction Work-in-progress:Acquisitions:Outsourced"," _"," _"," _ "," _ "," _ "," _ ","3200","Road transport","3206","Taxi Ranks","CE",2080,"Funded by Internally generated funds","C","IA","0230","Non current assets / Property, plant and equipment","0231","Land: Acquisitions"," _ "," _ ","_","_"," _ "," _ "," _ "," _ "," _ "," _ "," _ "," _ ","0990","0241","Property, plant and equipment (PPE) / PPE at cost/valuation (excl. finance leases)","0241","Property, plant and equipment (PPE) / PPE at cost/valuation (excl. finance leases)","",null,null,"0990","0990","Community Assets / Community Facilities / Taxi Ranks/Bus Terminals","Community Assets / Community Facilities / Taxi Ranks/Bus Terminals"," _ "," _ "," _ "," _ "," _ "," _ "," _ ",null," _ "," _ "," _ "," _ "," _ ",null," _ "," _ "," _ "," _ ",null,7,71,"Taxi Ranks","Road Transport",null,null,0,0,0,0,0,0,0,0,0,"_","_","_","_"]
["C0240-2/IL65530/F0002/X047/R0230/001/CONTRA","C0240-2/IL65530/F0002/X047/R0230/001/CONTRA",122745,0,"Liabilities:Current Liabilities:Trade and Other Payable Exchange Transactions:Payables and Accruals : Contractors:Deposits"," _"," _"," _ "," _ "," _ "," _ ","1200","Finance and administration","1202","Asset Management","_",2080,"Funded by Internally generated funds","C","IL","0380","Current liabilities / Trade and other payables from exchange transactions","_","_"," _ "," _ ","_","_"," _ "," _ "," _ "," _ "," _ "," _ "," _ "," _ ",null,"0361","Trade and other payables / Trade and other payables from exchange transactions","0361","Trade and other payables / Trade and other payables from exchange transactions","",null,null,"0990","0990","Community Assets / Community Facilities / Taxi Ranks/Bus Terminals","Community Assets / Community Facilities / Taxi Ranks/Bus Terminals"," _ "," _ "," _ "," _ "," _ "," _ "," _ ",null," _ "," _ "," _ "," _ "," _ ",null," _ "," _ "," _ "," _ ",null,3,33,"Asset Management","Finance & Administration",null,null,0,0,0,0,0,0,0,0,0,"_","_","_","_"]
["C0352-1/IA02105/F0002/X055/R0229/001/CONTRA","C0352-1/IA02105/F0002/X055/R0229/001/CONTRA",123691,0,"Assets:Current Assets:Cash and Cash Equivalents:Cash at Bank:Bank Account:Specify (replace with account description):Deposits"," _"," _"," _ "," _ "," _ "," _ ","1200","Finance and administration","1210","Property Services","_",2080,"Funded by Internally generated funds","C","IA","0120","Current assets / Cash and cash equivalents","0120","Cash and cash equivalents"," _ "," _ ","_","_","","Recepts - Cash and Cash Equivalents","0510","Recepts - Cash and Cash Equivalents"," _ "," _ "," _ "," _ ",null," _ "," _ "," _ "," _ ","",null,"D"," _ "," _ "," _ "," _ "," _ "," _ "," _ "," _ "," _ "," _ "," _ ",null," _ "," _ "," _ "," _ "," _ ",null,"1200","Other assets / Operational Buildings / Municipal Offices","1200","Other assets / Operational Buildings / Municipal Offices",null,3,36,"Property Services","Finance & Administration",null,null,0,0,0,0,0,0,0,0,0,"_","_","_","_"]
["O1292-1/IA02108/F0041/X124/R0230/001/CONTRA","O1292-1/IA02108/F0041/X124/R0230/001/CONTRA",122443,0,"Assets:Current Assets:Cash and Cash Equivalents:Cash at Bank:Bank Account:Specify (replace with account description):Withdrawals"," _"," _"," _ "," _ "," _ "," _ ","2200","Sport and recreation","2204","Recreational Facilities","_"," _"," _","O","IA","0120","Current assets / Cash and cash equivalents","0120","Cash and cash equivalents","0150W","CASH FLOW FROM OPERATING ACTIVITIES / Receipts / Transfers and Subsidies - Operational","0150W","CASH FLOW FROM OPERATING ACTIVITIES / Receipts / Transfers and Subsidies - Operational"," _ "," _ "," _ "," _ "," _ "," _ "," _ "," _ ",null," _ "," _ "," _ "," _ ","0240","Cash Receipts By Source / Transfers and Subsidies - Operational","W"," _ "," _ "," _ "," _ "," _ "," _ "," _ "," _ "," _ "," _ "," _ ",null," _ "," _ "," _ "," _ "," _ ",null," _ "," _ "," _ "," _ ",null,10,101,"Recreational Facilities","Sports & Recreation",null,null,0,0,0,0,0,-402500,-416300,-428950,0,"_","_","_","_"]
["O1336-1/IL53820/F0041/X096/R0229/001/CONTRA","O1336-1/IL53820/F0041/X096/R0229/001/CONTRA",122319,0,"Liabilities:Current Liabilities:Trade and Other Payable Exchange Transactions:Payables and Accruals : General:Deposits"," _"," _"," _ "," _ "," _ "," _ ","3100","Planning and development","3102","Corporate Wide Strategic Planning (IDPs, LEDs)","_"," _"," _","O","IL","0380","Current liabilities / Trade and other payables from exchange transactions","_","_"," _ "," _ ","_","_"," _ "," _ "," _ "," _ "," _ "," _ "," _ "," _ ",null,"0361","Trade and other payables / Trade and other payables from exchange transactions","0361","Trade and other payables / Trade and other payables from exchange transactions","",null,null," _ "," _ "," _ "," _ "," _ "," _ "," _ "," _ "," _ "," _ "," _ ",null," _ "," _ "," _ "," _ "," _ ",null," _ "," _ "," _ "," _ ",null,4,42,"Corporate Wide Strategic Planning (IDPs, LEDs)","Planning and Development",null,null,0,0,0,0,0,-149500,-218500,-241500,0,"_","_","_","_"]
["C0276-1/IA02105/F0002/X006/R0230/001/CONTRA","C0276-1/IA02105/F0002/X006/R0230/001/CONTRA",122779,0,"Assets:Current Assets:Cash and Cash Equivalents:Cash at Bank:Bank Account:Specify (replace with account description):Deposits"," _"," _"," _ "," _ "," _ "," _ ","2100","Community and social services","2106","Community Halls and Facilities","_",2080,"Funded by Internally generated funds","C","IA","0120","Current assets / Cash and cash equivalents","0120","Cash and cash equivalents"," _ "," _ ","_","_","","Recepts - Cash and Cash Equivalents","0510","Recepts - Cash and Cash Equivalents"," _ "," _ "," _ "," _ ",null," _ "," _ "," _ "," _ ","",null,"D"," _ "," _ "," _ "," _ ","0790","Community Assets / Community Facilities / Halls"," _ "," _ ","0790"," _ "," _ ",null," _ "," _ ","Community Assets / Community Facilities / Halls"," _ "," _ ",null," _ "," _ "," _ "," _ ",null,2,22,"Community Halls and Facilities","Community and Social Services",null,null,0,0,0,0,0,0,0,0,0,"_","_","_","_"]
["C0291-1/IL65531/F0002/X006/R0230/001/CONTRA","C0291-1/IL65531/F0002/X006/R0230/001/CONTRA",122798,0,"Liabilities:Current Liabilities:Trade and Other Payable Exchange Transactions:Payables and Accruals : Contractors:Withdrawals"," _"," _"," _ "," _ "," _ "," _ ","2100","Community and social services","2106","Community Halls and Facilities","_",2080,"Funded by Internally generated funds","C","IL","0380","Current liabilities / Trade and other payables from exchange transactions","_","_"," _ "," _ ","_","_","0200","Cash Payments by Type / Contracted Services","0450","Cash Payments by Type / Contracted Services"," _ "," _ "," _ "," _ ",null,"0361","Trade and other payables / Trade and other payables from exchange transactions","0361","Trade and other payables / Trade and other payables from exchange transactions","",null,null," _ "," _ "," _ "," _ ","1030","Community Assets / Sport and Recreation Facilities / Outdoor Facilities"," _ "," _ ","1030"," _ "," _ ",null," _ "," _ ","Community Assets / Sport and Recreation Facilities / Outdoor Facilities"," _ "," _ ",null," _ "," _ "," _ "," _ ",null,2,22,"Community Halls and Facilities","Community and Social Services",null,null,0,0,0,0,0,0,0,0,0,"_","_","_","_"]
["C0135-1/IA00189/F0002/X116/R0230/001/6601","C0135-1/IA00189/F0002/X116/R0230/001/6601",61437,4156,"Assets:Non-current Assets:Property, Plant and Equipment:Cost Model:Storm water Infrastructure:Accumulated Impairment:Disposals/Transfers Out"," _"," _"," _ "," _ "," _ "," _ ","3200","Road transport","3205","Roads","_",2080,"Funded by Internally generated funds","C","IA","0230","Non current assets / Property, plant and equipment","0231","Land: Acquisitions"," _ "," _ ","_","_"," _ "," _ "," _ "," _ ","0160","Infrastructure / Storm water Infrastructure",160,"Infrastructure / Storm water Infrastructure",null,"0241","Property, plant and equipment (PPE) / PPE at cost/valuation (excl. finance leases)","0241","Property, plant and equipment (PPE) / PPE at cost/valuation (excl. finance leases)","",null,null," _ "," _ "," _ "," _ ","0170","Infrastructure / Storm water Infrastructure / Drainage Collection"," _ "," _ ","0170"," _ "," _ ",null," _ "," _ ","Infrastructure / Storm water Infrastructure / Drainage Collection"," _ "," _ ",null," _ "," _ "," _ "," _ ",null,7,74,"Roads","Road Transport",null,null,0,0,0,0,0,0,0,0,0,"_","_","_","_"]
["C0230-2/IL65530/F0002/X006/R0230/001/CONTRA","C0230-2/IL65530/F0002/X006/R0230/001/CONTRA",123791,0,"Liabilities:Current Liabilities:Trade and Other Payable Exchange Transactions:Payables and Accruals : Contractors:Deposits"," _"," _"," _ "," _ "," _ "," _ ","2100","Community and social services","2106","Community Halls and Facilities","_",2080,"Funded by Internally generated funds","C","IL","0380","Current liabilities / Trade and other payables from exchange transactions","_","_"," _ "," _ ","_","_"," _ "," _ "," _ "," _ "," _ "," _ "," _ "," _ ",null,"0361","Trade and other payables / Trade and other payables from exchange transactions","0361","Trade and other payables / Trade and other payables from exchange transactions","",null,null,"0790","0790","Community Assets / Community Facilities / Halls","Community Assets / Community Facilities / Halls"," _ "," _ "," _ "," _ "," _ "," _ "," _ ",null," _ "," _ "," _ "," _ "," _ ",null," _ "," _ "," _ "," _ ",null,2,22,"Community Halls and Facilities","Community and Social Services",null,null,0,0,0,0,0,0,0,0,0,"_","_","_","_"]
["C0230-2/IA10370/F0791/X006/R0230/001/CONTRA","C0230-2/IA10370/F0791/X006/R0230/001/CONTRA",123794,0,"Assets:Current Assets:VAT Receivable:Input Tax Capital:Recognised"," _"," _"," _ "," _ "," _ "," _ ","2100","Community and social services","2106","Community Halls and Facilities","_",2010,"Funded by National Government","C","IA","0170","Current assets / VAT","0170","VAT"," _ "," _ ","_","_"," _ "," _ "," _ "," _ "," _ "," _ "," _ "," _ ",null," _ "," _ "," _ "," _ ","",null,null,"0790","0790","Community Assets / Community Facilities / Halls","Community Assets / Community Facilities / Halls"," _ "," _ "," _ "," _ "," _ "," _ "," _ ",null," _ "," _ "," _ "," _ "," _ ",null," _ "," _ "," _ "," _ ",null,2,22,"Community Halls and Facilities","Community and Social Services",null,null,0,0,0,0,0,0,0,0,0,"_","_","_","_"]
["C0230-1/IA02108/F0002/X006/R0230/001/CONTRA","C0230-1/IA02108/F0002/X006/R0230/001/CONTRA",124476,0,"Assets:Current Assets:Cash and Cash Equivalents:Cash at Bank:Bank Account:Specify (replace with account description):Withdrawals"," _"," _"," _ "," _ "," _ "," _ ","2100","Community and social services","2106","Community Halls and Facilities","_",2080,"Funded by Internally generated funds","C","IA","0120","Current assets / Cash and cash equivalents","0120","Cash and cash equivalents"," _ "," _ ","_","_","0310","Other Cash Flows/Payments by Type / Capital assets","0510","Capital assets"," _ "," _ "," _ "," _ ",null," _ "," _ "," _ "," _ ","",null,"W","0790","0790","Community Assets / Community Facilities / Halls","Community Assets / Community Facilities / Halls"," _ "," _ "," _ "," _ "," _ "," _ "," _ ",null," _ "," _ "," _ "," _ "," _ ",null," _ "," _ "," _ "," _ ",null,2,22,"Community Halls and Facilities","Community and Social Services",null,null,0,0,0,0,0,0,0,0,0,"_","_","_","_"]
["C0230-3/IA00032/F0002/X047/R0230/001/6114","C0230-3/IA00032/F0002/X047/R0230/001/6114",61372,4094,"Assets:Non-current Assets:Property, Plant and Equipment:Cost Model:Community Assets:Cost:Acquisitions"," _"," _"," _ "," _ "," _ "," _ ","1200","Finance and administration","1202","Asset Management","CE",2080,"Funded by Internally generated funds","C","IA","0230","Non current assets / Property, plant and equipment","0231","Land: Acquisitions"," _ "," _ ","_","_"," _ "," _ "," _ "," _ ","0770","Community Assets",770,"Community Assets",null,"0241","Property, plant and equipment (PPE) / PPE at cost/valuation (excl. finance leases)","0241","Property, plant and equipment (PPE) / PPE at cost/valuation (excl. finance leases)","",null,null,"0790","0790","Community Assets / Community Facilities / Halls","Community Assets / Community Facilities / Halls"," _ "," _ "," _ "," _ "," _ "," _ "," _ ",null," _ "," _ "," _ "," _ "," _ ",null," _ "," _ "," _ "," _ ",null,3,33,"Asset Management","Finance & Administration",null,null,0,0,0,0,0,0,0,0,0,"_","_","_","_"]
["O1293-2/IA10375/F0041/X098/R0229/001/CONTRA","O1293-2/IA10375/F0041/X098/R0229/001/CONTRA",122308,0,"Assets:Current Assets:VAT Receivable:Input Tax Accrual:Recognised"," _"," _"," _ "," _ "," _ "," _ ","3100","Planning and development","3105","Planning","_"," _"," _","O","IA","0170","Current assets / VAT","0170","VAT"," _ "," _ ","_","_"," _ "," _ "," _ "," _ "," _ "," _ "," _ "," _ ",null," _ "," _ "," _ "," _ ","",null,null," _ "," _ "," _ "," _ "," _ "," _ "," _ "," _ "," _ "," _ "," _ ",null," _ "," _ "," _ "," _ "," _ ",null," _ "," _ "," _ "," _ ",null,4,43,"Economic Development/Planning","Planning and Development",null,null,0,0,0,0,0,15450,18600,21750,0,"_","_","_","_"]
["O1293-3/IL65531/F0041/X096/R0229/001/CONTRA","O1293-3/IL65531/F0041/X096/R0229/001/CONTRA",123642,0,"Liabilities:Current Liabilities:Trade and Other Payable Exchange Transactions:Payables and Accruals : Contractors:Withdrawals"," _"," _"," _ "," _ "," _ "," _ ","3100","Planning and development","3102","Corporate Wide Strategic Planning (IDPs, LEDs)","_"," _"," _","O","IL","0380","Current liabilities / Trade and other payables from exchange transactions","_","_"," _ "," _ ","_","_","0200","Cash Payments by Type / Contracted Services","0450","Cash Payments by Type / Contracted Services"," _ "," _ "," _ "," _ ",null,"0361","Trade and other payables / Trade and other payables from exchange transactions","0361","Trade and other payables / Trade and other payables from exchange transactions","",null,null," _ "," _ "," _ "," _ "," _ "," _ "," _ "," _ "," _ "," _ "," _ ",null," _ "," _ "," _ "," _ "," _ ",null," _ "," _ "," _ "," _ ",null,4,42,"Corporate Wide Strategic Planning (IDPs, LEDs)","Planning and Development",null,null,0,0,0,0,0,115000,126500,138000,0,"_","_","_","_"]
["O1293-1/IE00677/F0041/X124/R0230/001/6401","O1293-1/IE00677/F0041/X124/R0230/001/6401",31108,1986,"Expenditure:Contracted Services:Outsourced Services:Catering Services","3800","Expenditure / Contracted services","2701","Expenditure / Contracted services","2701","Contracted Services ","2200","Sport and recreation","2204","Recreational Facilities","_"," _"," _","O","IE"," _ "," _ "," _ "," _ "," _ "," _ ","_","_"," _ "," _ "," _ "," _ "," _ "," _ "," _ "," _ ",null," _ "," _ "," _ "," _ ","",null,null," _ "," _ "," _ "," _ "," _ "," _ "," _ "," _ "," _ "," _ "," _ ",null," _ "," _ "," _ "," _ "," _ ",null," _ "," _ "," _ "," _ ",null,10,101,"Recreational Facilities","Sports & Recreation",null,null,0,0,0,150000,150000,200000,210000,220000,82000,"_","_","_","_"]
["C0069-1/IL65530/F0002/X047/R0230/001/CONTRA","C0069-1/IL65530/F0002/X047/R0230/001/CONTRA",122676,0,"Liabilities:Current Liabilities:Trade and Other Payable Exchange Transactions:Payables and Accruals : Contractors:Deposits"," _"," _"," _ "," _ "," _ "," _ ","1200","Finance and administration","1202","Asset Management","_",2080,"Funded by Internally generated funds","C","IL","0380","Current liabilities / Trade and other payables from exchange transactions","_","_"," _ "," _ ","_","_"," _ "," _ "," _ "," _ "," _ "," _ "," _ "," _ ",null,"0361","Trade and other payables / Trade and other payables from exchange transactions","0361","Trade and other payables / Trade and other payables from exchange transactions","",null,null," _ "," _ "," _ "," _ ","1490","Furniture and Office Equipment"," _ "," _ ","1490"," _ "," _ ",null," _ "," _ ","Furniture and Office Equipment"," _ "," _ ",null," _ "," _ "," _ "," _ ",null,3,33,"Asset Management","Finance & Administration",null,null,0,0,0,0,0,0,0,0,0,"_","_","_","_"]
["C0069-1/IA06246/F0002/X047/R0230/001/6114","C0069-1/IA06246/F0002/X047/R0230/001/6114",61452,4171,"Assets:Non-current Assets:Property, Plant and Equipment:Cost Model:Furniture and Office Equipment:In-use:Accumulated Depreciation:Other Changes"," _"," _"," _ "," _ "," _ "," _ ","1200","Finance and administration","1202","Asset Management","_",2080,"Funded by Internally generated funds","C","IA","0230","Non current assets / Property, plant and equipment","0233","Land: Adjustments"," _ "," _ ","_","_"," _ "," _ "," _ "," _ ","1490","Furniture and Office Equipment",1490,"Furniture and Office Equipment",null,"0243","Property, plant and equipment (PPE) / Less: Accumulated depreciation","0243","Property, plant and equipment (PPE) / Less: Accumulated depreciation","",null,null," _ "," _ "," _ "," _ ","1490","Furniture and Office Equipment"," _ "," _ ","1490"," _ "," _ ",null," _ "," _ ","Furniture and Office Equipment"," _ "," _ ",null," _ "," _ "," _ "," _ ",null,3,33,"Asset Management","Finance & Administration",null,null,-732161,-622783,-535164,0,0,0,0,0,-732161,"_","_","_","_"]
["O1242-2/IE00754/F0041/X044/R0230/001/6057","O1242-2/IE00754/F0041/X044/R0230/001/6057",30691,1919,"Expenditure:Operational Cost:Advertising, Publicity and Marketing:Gifts and Promotional Items","4100","Expenditure / Operational costs","2904","Expenditure / Operational costs","2904","Operational Costs ","1100","Executive and council","1110","Mayor and Council","_"," _"," _","O","IE"," _ "," _ "," _ "," _ "," _ "," _ ","_","_"," _ "," _ "," _ "," _ "," _ "," _ "," _ "," _ ",null," _ "," _ "," _ "," _ ","",null,null," _ "," _ "," _ "," _ "," _ "," _ "," _ "," _ "," _ "," _ "," _ ",null," _ "," _ "," _ "," _ "," _ ",null," _ "," _ "," _ "," _ ",null,5,52,"Mayor and Council","Executive & Council",null,null,0,0,0,0,0,100000,110000,120000,0,"_","_","_","_"]
["C0039-2/IL65530/F0791/X034/R0230/001/CONTRA","C0039-2/IL65530/F0791/X034/R0230/001/CONTRA",123882,0,"Liabilities:Current Liabilities:Trade and Other Payable Exchange Transactions:Payables and Accruals : Contractors:Deposits"," _"," _"," _ "," _ "," _ "," _ ","4100","Energy sources","4102","Street Lighting and Signal Systems","_",2010,"Funded by National Government","C","IL","0380","Current liabilities / Trade and other payables from exchange transactions","_","_"," _ "," _ ","_","_"," _ "," _ "," _ "," _ "," _ "," _ "," _ "," _ ",null,"0361","Trade and other payables / Trade and other payables from exchange transactions","0361","Trade and other payables / Trade and other payables from exchange transactions","",null,null,"0130","0130","Infrastructure / Roads Infrastructure / Road Structures","Infrastructure / Roads Infrastructure / Road Structures"," _ "," _ "," _ "," _ "," _ "," _ "," _ ",null," _ "," _ "," _ "," _ "," _ ",null," _ "," _ "," _ "," _ ",null,1,12,"Street Lighting and Signal Systems"," Energy Sources",null,null,0,0,0,0,0,0,0,0,0,"_","_","_","_"]
["C0039-16/IL65530/F0002/X116/R0230/001/CONTRA","C0039-16/IL65530/F0002/X116/R0230/001/CONTRA",124090,0,"Liabilities:Current Liabilities:Trade and Other Payable Exchange Transactions:Payables and Accruals : Contractors:Deposits"," _"," _"," _ "," _ "," _ "," _ ","3200","Road transport","3205","Roads","_",2080,"Funded by Internally generated funds","C","IL","0380","Current liabilities / Trade and other payables from exchange transactions","_","_"," _ "," _ ","_","_"," _ "," _ "," _ "," _ "," _ "," _ "," _ "," _ ",null,"0361","Trade and other payables / Trade and other payables from exchange transactions","0361","Trade and other payables / Trade and other payables from exchange transactions","",null,null,"0130","0130","Infrastructure / Roads Infrastructure / Road Structures","Infrastructure / Roads Infrastructure / Road Structures"," _ "," _ "," _ "," _ "," _ "," _ "," _ ",null," _ "," _ "," _ "," _ "," _ ",null," _ "," _ "," _ "," _ ",null,7,74,"Roads","Road Transport",null,null,0,0,0,0,0,0,0,0,0,"_","_","_","_"]
["C0039-10/IL65530/F0002/X116/R0230/001/CONTRA","C0039-10/IL65530/F0002/X116/R0230/001/CONTRA",124066,0,"Liabilities:Current Liabilities:Trade and Other Payable Exchange Transactions:Payables and Accruals : Contractors:Deposits"," _"," _"," _ "," _ "," _ "," _ ","3200","Road transport","3205","Roads","_",2080,"Funded by Internally generated funds","C","IL","0380","Current liabilities / Trade and other payables from exchange transactions","_","_"," _ "," _ ","_","_"," _ "," _ "," _ "," _ "," _ "," _ "," _ "," _ ",null,"0361","Trade and other payables / Trade and other payables from exchange transactions","0361","Trade and other payables / Trade and other payables from exchange transactions","",null,null,"0130","0130","Infrastructure / Roads Infrastructure / Road Structures","Infrastructure / Roads Infrastructure / Road Structures"," _ "," _ "," _ "," _ "," _ "," _ "," _ ",null," _ "," _ "," _ "," _ "," _ ",null," _ "," _ "," _ "," _ ",null,7,74,"Roads","Road Transport",null,null,0,0,0,0,0,0,0,0,0,"_","_","_","_"]
["C0039-10/IA10370/F0002/X116/R0230/001/CONTRA","C0039-10/IA10370/F0002/X116/R0230/001/CONTRA",124065,0,"Assets:Current Assets:VAT Receivable:Input Tax Capital:Recognised"," _"," _"," _ "," _ "," _ "," _ ","3200","Road transport","3205","Roads","_",2080,"Funded by Internally generated funds","C","IA","0170","Current assets / VAT","0170","VAT"," _ "," _ ","_","_"," _ "," _ "," _ "," _ "," _ "," _ "," _ "," _ ",null," _ "," _ "," _ "," _ ","",null,null,"0130","0130","Infrastructure / Roads Infrastructure / Road Structures","Infrastructure / Roads Infrastructure / Road Structures"," _ "," _ "," _ "," _ "," _ "," _ "," _ ",null," _ "," _ "," _ "," _ "," _ ",null," _ "," _ "," _ "," _ ",null,7,74,"Roads","Road Transport",null,null,0,0,0,0,0,0,0,0,0,"_","_","_","_"]
["C0039-17/IA10370/F0002/X116/R0230/001/CONTRA","C0039-17/IA10370/F0002/X116/R0230/001/CONTRA",124093,0,"Assets:Current Assets:VAT Receivable:Input Tax Capital:Recognised"," _"," _"," _ "," _ "," _ "," _ ","3200","Road transport","3205","Roads","_",2080,"Funded by Internally generated funds","C","IA","0170","Current assets / VAT","0170","VAT"," _ "," _ ","_","_"," _ "," _ "," _ "," _ "," _ "," _ "," _ "," _ ",null," _ "," _ "," _ "," _ ","",null,null,"0130","0130","Infrastructure / Roads Infrastructure / Road Structures","Infrastructure / Roads Infrastructure / Road Structures"," _ "," _ "," _ "," _ "," _ "," _ "," _ ",null," _ "," _ "," _ "," _ "," _ ",null," _ "," _ "," _ "," _ ",null,7,74,"Roads","Road Transport",null,null,0,0,0,0,0,0,0,0,0,"_","_","_","_"]
["C0039-31/IA10370/F0002/X116/R0230/001/CONTRA","C0039-31/IA10370/F0002/X116/R0230/001/CONTRA",124149,0,"Assets:Current Assets:VAT Receivable:Input Tax Capital:Recognised"," _"," _"," _ "," _ "," _ "," _ ","3200","Road transport","3205","Roads","_",2080,"Funded by Internally generated funds","C","IA","0170","Current assets / VAT","0170","VAT"," _ "," _ ","_","_"," _ "," _ "," _ "," _ "," _ "," _ "," _ "," _ ",null," _ "," _ "," _ "," _ ","",null,null,"0130","0130","Infrastructure / Roads Infrastructure / Road Structures","Infrastructure / Roads Infrastructure / Road Structures"," _ "," _ "," _ "," _ "," _ "," _ "," _ ",null," _ "," _ "," _ "," _ "," _ ",null," _ "," _ "," _ "," _ ",null,7,74,"Roads","Road Transport",null,null,0,0,0,0,0,0,0,0,0,"_","_","_","_"]
["C0039-34/IA02108/F0002/X116/R0230/001/CONTRA","C0039-34/IA02108/F0002/X116/R0230/001/CONTRA",124624,0,"Assets:Current Assets:Cash and Cash Equivalents:Cash at Bank:Bank Account:Specify (replace with account description):Withdrawals"," _"," _"," _ "," _ "," _ "," _ ","3200","Road transport","3205","Roads","_",2080,"Funded by Internally generated funds","C","IA","0120","Current assets / Cash and cash equivalents","0120","Cash and cash equivalents"," _ "," _ ","_","_","0310","Other Cash Flows/Payments by Type / Capital assets","0510","Capital assets"," _ "," _ "," _ "," _ ",null," _ "," _ "," _ "," _ ","",null,"W","0130","0130","Infrastructure / Roads Infrastructure / Road Structures","Infrastructure / Roads Infrastructure / Road Structures"," _ "," _ "," _ "," _ "," _ "," _ "," _ ",null," _ "," _ "," _ "," _ "," _ ",null," _ "," _ "," _ "," _ ",null,7,74,"Roads","Road Transport",null,null,0,0,0,0,0,0,0,0,0,"_","_","_","_"]
["C0039-15/IA02108/F0002/X116/R0230/001/CONTRA","C0039-15/IA02108/F0002/X116/R0230/001/CONTRA",124605,0,"Assets:Current Assets:Cash and Cash Equivalents:Cash at Bank:Bank Account:Specify (replace with account description):Withdrawals"," _"," _"," _ "," _ "," _ "," _ ","3200","Road transport","3205","Roads","_",2080,"Funded by Internally generated funds","C","IA","0120","Current assets / Cash and cash equivalents","0120","Cash and cash equivalents"," _ "," _ ","_","_","0310","Other Cash Flows/Payments by Type / Capital assets","0510","Capital assets"," _ "," _ "," _ "," _ ",null," _ "," _ "," _ "," _ ","",null,"W","0130","0130","Infrastructure / Roads Infrastructure / Road Structures","Infrastructure / Roads Infrastructure / Road Structures"," _ "," _ "," _ "," _ "," _ "," _ "," _ ",null," _ "," _ "," _ "," _ "," _ ",null," _ "," _ "," _ "," _ ",null,7,74,"Roads","Road Transport",null,null,0,0,0,0,0,0,0,0,0,"_","_","_","_"]
["C0039-9/IA02108/F0002/X116/R0230/001/CONTRA","C0039-9/IA02108/F0002/X116/R0230/001/CONTRA",124631,0,"Assets:Current Assets:Cash and Cash Equivalents:Cash at Bank:Bank Account:Specify (replace with account description):Withdrawals"," _"," _"," _ "," _ "," _ "," _ ","3200","Road transport","3205","Roads","_",2080,"Funded by Internally generated funds","C","IA","0120","Current assets / Cash and cash equivalents","0120","Cash and cash equivalents"," _ "," _ ","_","_","0310","Other Cash Flows/Payments by Type / Capital assets","0510","Capital assets"," _ "," _ "," _ "," _ ",null," _ "," _ "," _ "," _ ","",null,"W","0130","0130","Infrastructure / Roads Infrastructure / Road Structures","Infrastructure / Roads Infrastructure / Road Structures"," _ "," _ "," _ "," _ "," _ "," _ "," _ ",null," _ "," _ "," _ "," _ "," _ ",null," _ "," _ "," _ "," _ ",null,7,74,"Roads","Road Transport",null,null,0,0,0,0,0,0,0,0,0,"_","_","_","_"]
["C0039-25/IL65531/F0002/X116/R0230/001/CONTRA","C0039-25/IL65531/F0002/X116/R0230/001/CONTRA",124127,0,"Liabilities:Current Liabilities:Trade and Other Payable Exchange Transactions:Payables and Accruals : Contractors:Withdrawals"," _"," _"," _ "," _ "," _ "," _ ","3200","Road transport","3205","Roads","_",2080,"Funded by Internally generated funds","C","IL","0380","Current liabilities / Trade and other payables from exchange transactions","_","_"," _ "," _ ","_","_","0200","Cash Payments by Type / Contracted Services","0450","Cash Payments by Type / Contracted Services"," _ "," _ "," _ "," _ ",null,"0361","Trade and other payables / Trade and other payables from exchange transactions","0361","Trade and other payables / Trade and other payables from exchange transactions","",null,null,"0130","0130","Infrastructure / Roads Infrastructure / Road Structures","Infrastructure / Roads Infrastructure / Road Structures"," _ "," _ "," _ "," _ "," _ "," _ "," _ ",null," _ "," _ "," _ "," _ "," _ ",null," _ "," _ "," _ "," _ ",null,7,74,"Roads","Road Transport",null,null,0,0,0,0,0,0,0,0,0,"_","_","_","_"]
["C0039-16/IL65531/F0002/X116/R0230/001/CONTRA","C0039-16/IL65531/F0002/X116/R0230/001/CONTRA",124091,0,"Liabilities:Current Liabilities:Trade and Other Payable Exchange Transactions:Payables and Accruals : Contractors:Withdrawals"," _"," _"," _ "," _ "," _ "," _ ","3200","Road transport","3205","Roads","_",2080,"Funded by Internally generated funds","C","IL","0380","Current liabilities / Trade and other payables from exchange transactions","_","_"," _ "," _ ","_","_","0200","Cash Payments by Type / Contracted Services","0450","Cash Payments by Type / Contracted Services"," _ "," _ "," _ "," _ ",null,"0361","Trade and other payables / Trade and other payables from exchange transactions","0361","Trade and other payables / Trade and other payables from exchange transactions","",null,null,"0130","0130","Infrastructure / Roads Infrastructure / Road Structures","Infrastructure / Roads Infrastructure / Road Structures"," _ "," _ "," _ "," _ "," _ "," _ "," _ ",null," _ "," _ "," _ "," _ "," _ ",null," _ "," _ "," _ "," _ ",null,7,74,"Roads","Road Transport",null,null,0,0,0,0,0,0,0,0,0,"_","_","_","_"]
["C0039-6/IL65531/F0002/X116/R0230/001/CONTRA","C0039-6/IL65531/F0002/X116/R0230/001/CONTRA",124179,0,"Liabilities:Current Liabilities:Trade and Other Payable Exchange Transactions:Payables and Accruals : Contractors:Withdrawals"," _"," _"," _ "," _ "," _ "," _ ","3200","Road transport","3205","Roads","_",2080,"Funded by Internally generated funds","C","IL","0380","Current liabilities / Trade and other payables from exchange transactions","_","_"," _ "," _ ","_","_","0200","Cash Payments by Type / Contracted Services","0450","Cash Payments by Type / Contracted Services"," _ "," _ "," _ "," _ ",null,"0361","Trade and other payables / Trade and other payables from exchange transactions","0361","Trade and other payables / Trade and other payables from exchange transactions","",null,null,"0130","0130","Infrastructure / Roads Infrastructure / Road Structures","Infrastructure / Roads Infrastructure / Road Structures"," _ "," _ "," _ "," _ "," _ "," _ "," _ ",null," _ "," _ "," _ "," _ "," _ ",null," _ "," _ "," _ "," _ ",null,7,74,"Roads","Road Transport",null,null,0,0,0,0,0,0,0,0,0,"_","_","_","_"]
["C0039-8/IA01952/F0002/X116/R0230/001/6601","C0039-8/IA01952/F0002/X116/R0230/001/6601",99876,7761,"Assets:Non-current Assets:Construction Work-in-progress:Acquisitions:Outsourced"," _"," _"," _ "," _ "," _ "," _ ","3200","Road transport","3205","Roads","CE",2080,"Funded by Internally generated funds","C","IA","0230","Non current assets / Property, plant and equipment","0231","Land: Acquisitions"," _ "," _ ","_","_"," _ "," _ "," _ "," _ "," _ "," _ "," _ "," _ ","0130","0241","Property, plant and equipment (PPE) / PPE at cost/valuation (excl. finance leases)","0241","Property, plant and equipment (PPE) / PPE at cost/valuation (excl. finance leases)","",null,null,"0130","0130","Infrastructure / Roads Infrastructure / Road Structures","Infrastructure / Roads Infrastructure / Road Structures"," _ "," _ "," _ "," _ "," _ "," _ "," _ ",null," _ "," _ "," _ "," _ "," _ ",null," _ "," _ "," _ "," _ ",null,7,74,"Roads","Road Transport",null,null,0,0,0,0,0,0,0,0,0,"_","_","_","_"]
["C0039-36/IA01952/F0002/X116/R0230/001/6601","C0039-36/IA01952/F0002/X116/R0230/001/6601",120333,11220,"Assets:Non-current Assets:Construction Work-in-progress:Acquisitions:Outsourced"," _"," _"," _ "," _ "," _ "," _ ","3200","Road transport","3205","Roads","CE",2080,"Funded by Internally generated funds","C","IA","0230","Non current assets / Property, plant and equipment","0231","Land: Acquisitions"," _ "," _ ","_","_"," _ "," _ "," _ "," _ "," _ "," _ "," _ "," _ ","0130","0241","Property, plant and equipment (PPE) / PPE at cost/valuation (excl. finance leases)","0241","Property, plant and equipment (PPE) / PPE at cost/valuation (excl. finance leases)","",null,null,"0130","0130","Infrastructure / Roads Infrastructure / Road Structures","Infrastructure / Roads Infrastructure / Road Structures"," _ "," _ "," _ "," _ "," _ "," _ "," _ ",null," _ "," _ "," _ "," _ "," _ ",null," _ "," _ "," _ "," _ ",null,7,74,"Roads","Road Transport",null,null,448345,0,0,0,0,0,0,0,448345,"_","_","_","_"]
["C0039-15/IA01952/F0002/X116/R0230/001/6601","C0039-15/IA01952/F0002/X116/R0230/001/6601",99883,7768,"Assets:Non-current Assets:Construction Work-in-progress:Acquisitions:Outsourced"," _"," _"," _ "," _ "," _ "," _ ","3200","Road transport","3205","Roads","CE",2080,"Funded by Internally generated funds","C","IA","0230","Non current assets / Property, plant and equipment","0231","Land: Acquisitions"," _ "," _ ","_","_"," _ "," _ "," _ "," _ "," _ "," _ "," _ "," _ ","0130","0241","Property, plant and equipment (PPE) / PPE at cost/valuation (excl. finance leases)","0241","Property, plant and equipment (PPE) / PPE at cost/valuation (excl. finance leases)","",null,null,"0130","0130","Infrastructure / Roads Infrastructure / Road Structures","Infrastructure / Roads Infrastructure / Road Structures"," _ "," _ "," _ "," _ "," _ "," _ "," _ ",null," _ "," _ "," _ "," _ "," _ ",null," _ "," _ "," _ "," _ ",null,7,74,"Roads","Road Transport",null,null,0,0,0,0,0,0,0,0,0,"_","_","_","_"]
["C0039-11/IA02105/F0002/X116/R0230/001/CONTRA","C0039-11/IA02105/F0002/X116/R0230/001/CONTRA",124068,0,"Assets:Current Assets:Cash and Cash Equivalents:Cash at Bank:Bank Account:Specify (replace with account description):Deposits"," _"," _"," _ "," _ "," _ "," _ ","3200","Road transport","3205","Roads","_",2080,"Funded by Internally generated funds","C","IA","0120","Current assets / Cash and cash equivalents","0120","Cash and cash equivalents"," _ "," _ ","_","_","","Recepts - Cash and Cash Equivalents","0510","Recepts - Cash and Cash Equivalents"," _ "," _ "," _ "," _ ",null," _ "," _ "," _ "," _ ","",null,"D","0130","0130","Infrastructure / Roads Infrastructure / Road Structures","Infrastructure / Roads Infrastructure / Road Structures"," _ "," _ "," _ "," _ "," _ "," _ "," _ ",null," _ "," _ "," _ "," _ "," _ ",null," _ "," _ "," _ "," _ ",null,7,74,"Roads","Road Transport",null,null,0,0,0,0,0,0,0,0,0,"_","_","_","_"]
["C0039-24/IA02105/F0002/X116/R0230/001/CONTRA","C0039-24/IA02105/F0002/X116/R0230/001/CONTRA",124120,0,"Assets:Current Assets:Cash and Cash Equivalents:Cash at Bank:Bank Account:Specify (replace with account description):Deposits"," _"," _"," _ "," _ "," _ "," _ ","3200","Road transport","3205","Roads","_",2080,"Funded by Internally generated funds","C","IA","0120","Current assets / Cash and cash equivalents","0120","Cash and cash equivalents"," _ "," _ ","_","_","","Recepts - Cash and Cash Equivalents","0510","Recepts - Cash and Cash Equivalents"," _ "," _ "," _ "," _ ",null," _ "," _ "," _ "," _ ","",null,"D","0130","0130","Infrastructure / Roads Infrastructure / Road Structures","Infrastructure / Roads Infrastructure / Road Structures"," _ "," _ "," _ "," _ "," _ "," _ "," _ ",null," _ "," _ "," _ "," _ "," _ ",null," _ "," _ "," _ "," _ ",null,7,74,"Roads","Road Transport",null,null,0,0,0,0,0,0,0,0,0,"_","_","_","_"]
["C0039-22/IA02105/F0002/X116/R0230/001/CONTRA","C0039-22/IA02105/F0002/X116/R0230/001/CONTRA",124112,0,"Assets:Current Assets:Cash and Cash Equivalents:Cash at Bank:Bank Account:Specify (replace with account description):Deposits"," _"," _"," _ "," _ "," _ "," _ ","3200","Road transport","3205","Roads","_",2080,"Funded by Internally generated funds","C","IA","0120","Current assets / Cash and cash equivalents","0120","Cash and cash equivalents"," _ "," _ ","_","_","","Recepts - Cash and Cash Equivalents","0510","Recepts - Cash and Cash Equivalents"," _ "," _ "," _ "," _ ",null," _ "," _ "," _ "," _ ","",null,"D","0130","0130","Infrastructure / Roads Infrastructure / Road Structures","Infrastructure / Roads Infrastructure / Road Structures"," _ "," _ "," _ "," _ "," _ "," _ "," _ ",null," _ "," _ "," _ "," _ "," _ ",null," _ "," _ "," _ "," _ ",null,7,74,"Roads","Road Transport",null,null,0,0,0,0,0,0,0,0,0,"_","_","_","_"]
["O1304-1/IL65531/F0041/X096/R0230/001/CONTRA","O1304-1/IL65531/F0041/X096/R0230/001/CONTRA",122306,0,"Liabilities:Current Liabilities:Trade and Other Payable Exchange Transactions:Payables and Accruals : Contractors:Withdrawals"," _"," _"," _ "," _ "," _ "," _ ","3100","Planning and development","3102","Corporate Wide Strategic Planning (IDPs, LEDs)","_"," _"," _","O","IL","0380","Current liabilities / Trade and other payables from exchange transactions","_","_"," _ "," _ ","_","_","0200","Cash Payments by Type / Contracted Services","0450","Cash Payments by Type / Contracted Services"," _ "," _ "," _ "," _ ",null,"0361","Trade and other payables / Trade and other payables from exchange transactions","0361","Trade and other payables / Trade and other payables from exchange transactions","",null,null," _ "," _ "," _ "," _ "," _ "," _ "," _ "," _ "," _ "," _ "," _ ",null," _ "," _ "," _ "," _ "," _ ",null," _ "," _ "," _ "," _ ",null,4,42,"Corporate Wide Strategic Planning (IDPs, LEDs)","Planning and Development",null,null,0,0,0,0,0,69000,80500,92000,0,"_","_","_","_"]
["O1304-2/IE00060/F0041/X098/R0229/001/6153","O1304-2/IE00060/F0041/X098/R0229/001/6153",69627,4518,"Expenditure:Operational Cost:Travel and Subsistence:Domestic:Accommodation","4100","Expenditure / Operational costs","2904","Expenditure / Operational costs","2904","Operational Costs ","3100","Planning and development","3105","Planning","_"," _"," _","O","IE"," _ "," _ "," _ "," _ "," _ "," _ ","_","_"," _ "," _ "," _ "," _ "," _ "," _ "," _ "," _ ",null," _ "," _ "," _ "," _ ","",null,null," _ "," _ "," _ "," _ "," _ "," _ "," _ "," _ "," _ "," _ "," _ ",null," _ "," _ "," _ "," _ "," _ ",null," _ "," _ "," _ "," _ ",null,4,43,"Economic Development/Planning","Planning and Development",null,null,0,0,0,35000,35000,40000,50000,60000,0,"_","_","_","_"]
["C0068-1/IA06186/F0002/X047/R0230/001/6114","C0068-1/IA06186/F0002/X047/R0230/001/6114",61444,4163,"Assets:Non-current Assets:Property, Plant and Equipment:Cost Model:Computer Equipment:In-use:Accumulated Depreciation:Other Changes"," _"," _"," _ "," _ "," _ "," _ ","1200","Finance and administration","1202","Asset Management","_",2080,"Funded by Internally generated funds","C","IA","0230","Non current assets / Property, plant and equipment","0233","Land: Adjustments"," _ "," _ ","_","_"," _ "," _ "," _ "," _ ","1470","Computer Equipment",1470,"Computer Equipment",null,"0243","Property, plant and equipment (PPE) / Less: Accumulated depreciation","0243","Property, plant and equipment (PPE) / Less: Accumulated depreciation","",null,null," _ "," _ "," _ "," _ ","1470","Computer Equipment"," _ "," _ ","1470"," _ "," _ ",null," _ "," _ ","Computer Equipment"," _ "," _ ",null," _ "," _ "," _ "," _ ",null,3,33,"Asset Management","Finance & Administration",null,null,0,0,0,0,0,0,0,0,0,"_","_","_","_"]
["O1302-3/IL65530/F0041/X101/R0230/001/CONTRA","O1302-3/IL65530/F0041/X101/R0230/001/CONTRA",121040,0,"Liabilities:Current Liabilities:Trade and Other Payable Exchange Transactions:Payables and Accruals : Contractors:Deposits"," _"," _"," _ "," _ "," _ "," _ ","3100","Planning and development","3107","Town Planning, Building Regulations and Enforcement, and City Engineer","_"," _"," _","O","IL","0380","Current liabilities / Trade and other payables from exchange transactions","_","_"," _ "," _ ","_","_"," _ "," _ "," _ "," _ "," _ "," _ "," _ "," _ ",null,"0361","Trade and other payables / Trade and other payables from exchange transactions","0361","Trade and other payables / Trade and other payables from exchange transactions","",null,null," _ "," _ "," _ "," _ "," _ "," _ "," _ "," _ "," _ "," _ "," _ ",null," _ "," _ "," _ "," _ "," _ ",null," _ "," _ "," _ "," _ ",null,4,41,"Town Planning, Building Regulations and Enforcement, and City Engineer","Planning and Development",null,null,0,0,0,0,0,0,0,0,0,"_","_","_","_"]
["O1302-4/IL65531/F0041/X101/R0041/001/CONTRA","O1302-4/IL65531/F0041/X101/R0041/001/CONTRA",121049,0,"Liabilities:Current Liabilities:Trade and Other Payable Exchange Transactions:Payables and Accruals : Contractors:Withdrawals"," _"," _"," _ "," _ "," _ "," _ ","3100","Planning and development","3107","Town Planning, Building Regulations and Enforcement, and City Engineer","_"," _"," _","O","IL","0380","Current liabilities / Trade and other payables from exchange transactions","_","_"," _ "," _ ","_","_","0200","Cash Payments by Type / Contracted Services","0450","Cash Payments by Type / Contracted Services"," _ "," _ "," _ "," _ ",null,"0361","Trade and other payables / Trade and other payables from exchange transactions","0361","Trade and other payables / Trade and other payables from exchange transactions","",null,null," _ "," _ "," _ "," _ "," _ "," _ "," _ "," _ "," _ "," _ "," _ ",null," _ "," _ "," _ "," _ "," _ ",null," _ "," _ "," _ "," _ ",null,4,41,"Town Planning, Building Regulations and Enforcement, and City Engineer","Planning and Development",null,null,0,0,0,0,0,0,0,0,0,"_","_","_","_"]
["C0118-1/IA00126/F0002/X116/R0230/001/6601","C0118-1/IA00126/F0002/X116/R0230/001/6601",61429,4148,"Assets:Non-current Assets:Property, Plant and Equipment:Cost Model:Roads Infrastructure:Accumulated Depreciation:Transfers"," _"," _"," _ "," _ "," _ "," _ ","3200","Road transport","3205","Roads","_",2080,"Funded by Internally generated funds","C","IA","0230","Non current assets / Property, plant and equipment","0233","Land: Adjustments"," _ "," _ ","_","_"," _ "," _ "," _ "," _ ","0110","Infrastructure / Roads Infrastructure",110,"Infrastructure / Roads Infrastructure",null,"0243","Property, plant and equipment (PPE) / Less: Accumulated depreciation","0243","Property, plant and equipment (PPE) / Less: Accumulated depreciation","",null,null," _ "," _ "," _ "," _ ","0140","Infrastructure / Roads Infrastructure / Road Furniture"," _ "," _ ","0140"," _ "," _ ",null," _ "," _ ","Infrastructure / Roads Infrastructure / Road Furniture"," _ "," _ ",null," _ "," _ "," _ "," _ ",null,7,74,"Roads","Road Transport",null,null,0,0,0,0,0,0,0,0,0,"_","_","_","_"]
["C0118-1/IA02108/F0791/X116/R0230/001/CONTRA","C0118-1/IA02108/F0791/X116/R0230/001/CONTRA",124520,0,"Assets:Current Assets:Cash and Cash Equivalents:Cash at Bank:Bank Account:Specify (replace with account description):Withdrawals"," _"," _"," _ "," _ "," _ "," _ ","3200","Road transport","3205","Roads","_",2010,"Funded by National Government","C","IA","0120","Current assets / Cash and cash equivalents","0120","Cash and cash equivalents","0160W","CASH FLOW FROM OPERATING ACTIVITIES / Receipts / Transfers and Subsidies - Capital","0160W","CASH FLOW FROM OPERATING ACTIVITIES / Receipts / Transfers and Subsidies - Capital","0310","Other Cash Flows/Payments by Type / Capital assets","0510","Capital assets"," _ "," _ "," _ "," _ ",null," _ "," _ "," _ "," _ ","0280","Other Cash Flows by Source / Transfers and subsidies - capital (monetary allocations) (National / Provincial and District)","W"," _ "," _ "," _ "," _ ","0140","Infrastructure / Roads Infrastructure / Road Furniture"," _ "," _ ","0140"," _ "," _ ",null," _ "," _ ","Infrastructure / Roads Infrastructure / Road Furniture"," _ "," _ ",null," _ "," _ "," _ "," _ ",null,7,74,"Roads","Road Transport",null,null,0,0,0,0,0,0,0,0,0,"_","_","_","_"]
["O1264-1/IE00793/F0041/X052/R0230/001/6105","O1264-1/IE00793/F0041/X052/R0230/001/6105",69604,4495,"Expenditure:Operational Cost:External Computer Service:Specialised Computer Service","4100","Expenditure / Operational costs","2904","Expenditure / Operational costs","2904","Operational Costs ","1200","Finance and administration","1207","Information Technology","_"," _"," _","O","IE"," _ "," _ "," _ "," _ "," _ "," _ ","_","_"," _ "," _ "," _ "," _ "," _ "," _ "," _ "," _ ",null," _ "," _ "," _ "," _ ","",null,null," _ "," _ "," _ "," _ "," _ "," _ "," _ "," _ "," _ "," _ "," _ ",null," _ "," _ "," _ "," _ "," _ ",null," _ "," _ "," _ "," _ ",null,14,143,"Information Technology","Finance & Administration 2",null,null,0,0,0,0,0,0,0,0,0,"_","_","_","_"]
["O1346-1/IL65530/F0041/X052/R0229/001/CONTRA","O1346-1/IL65530/F0041/X052/R0229/001/CONTRA",122947,0,"Liabilities:Current Liabilities:Trade and Other Payable Exchange Transactions:Payables and Accruals : Contractors:Deposits"," _"," _"," _ "," _ "," _ "," _ ","1200","Finance and administration","1207","Information Technology","_"," _"," _","O","IL","0380","Current liabilities / Trade and other payables from exchange transactions","_","_"," _ "," _ ","_","_"," _ "," _ "," _ "," _ "," _ "," _ "," _ "," _ ",null,"0361","Trade and other payables / Trade and other payables from exchange transactions","0361","Trade and other payables / Trade and other payables from exchange transactions","",null,null," _ "," _ "," _ "," _ "," _ "," _ "," _ "," _ "," _ "," _ "," _ ",null," _ "," _ "," _ "," _ "," _ ",null," _ "," _ "," _ "," _ ",null,14,143,"Information Technology","Finance & Administration 2",null,null,0,0,0,0,0,0,0,0,0,"_","_","_","_"]
["C0119-1/IL65531/F0791/X116/R0230/001/CONTRA","C0119-1/IL65531/F0791/X116/R0230/001/CONTRA",122714,0,"Liabilities:Current Liabilities:Trade and Other Payable Exchange Transactions:Payables and Accruals : Contractors:Withdrawals"," _"," _"," _ "," _ "," _ "," _ ","3200","Road transport","3205","Roads","_",2010,"Funded by National Government","C","IL","0380","Current liabilities / Trade and other payables from exchange transactions","_","_"," _ "," _ ","_","_","0200","Cash Payments by Type / Contracted Services","0450","Cash Payments by Type / Contracted Services"," _ "," _ "," _ "," _ ",null,"0361","Trade and other payables / Trade and other payables from exchange transactions","0361","Trade and other payables / Trade and other payables from exchange transactions","",null,null," _ "," _ "," _ "," _ ","0130","Infrastructure / Roads Infrastructure / Road Structures"," _ "," _ ","0130"," _ "," _ ",null," _ "," _ ","Infrastructure / Roads Infrastructure / Road Structures"," _ "," _ ",null," _ "," _ "," _ "," _ ",null,7,74,"Roads","Road Transport",null,null,0,0,0,0,0,0,0,0,0,"_","_","_","_"]
["O1252-1/IE00703/F0041/X044/R0230/001/6057","O1252-1/IE00703/F0041/X044/R0230/001/6057",30672,1907,"Expenditure:Contracted Services:Outsourced Services:Transport Services","3800","Expenditure / Contracted services","2701","Expenditure / Contracted services","2701","Contracted Services ","1100","Executive and council","1110","Mayor and Council","_"," _"," _","O","IE"," _ "," _ "," _ "," _ "," _ "," _ ","_","_"," _ "," _ "," _ "," _ "," _ "," _ "," _ "," _ ",null," _ "," _ "," _ "," _ ","",null,null," _ "," _ "," _ "," _ "," _ "," _ "," _ "," _ "," _ "," _ "," _ ",null," _ "," _ "," _ "," _ "," _ ",null," _ "," _ "," _ "," _ ",null,5,52,"Mayor and Council","Executive & Council",null,null,0,0,0,30000,78000,170000,180000,190000,112550,"_","_","_","_"]
["C0007-2/IL65530/F0002/X047/R0230/001/CONTRA","C0007-2/IL65530/F0002/X047/R0230/001/CONTRA",122653,0,"Liabilities:Current Liabilities:Trade and Other Payable Exchange Transactions:Payables and Accruals : Contractors:Deposits"," _"," _"," _ "," _ "," _ "," _ ","1200","Finance and administration","1202","Asset Management","_",2080,"Funded by Internally generated funds","C","IL","0380","Current liabilities / Trade and other payables from exchange transactions","_","_"," _ "," _ ","_","_"," _ "," _ "," _ "," _ "," _ "," _ "," _ "," _ ",null,"0361","Trade and other payables / Trade and other payables from exchange transactions","0361","Trade and other payables / Trade and other payables from exchange transactions","",null,null,"1530","1530","Transport Assets","Transport Assets"," _ "," _ "," _ "," _ "," _ "," _ "," _ ",null," _ "," _ "," _ "," _ "," _ ",null," _ "," _ "," _ "," _ ",null,3,33,"Asset Management","Finance & Administration",null,null,0,0,0,0,0,0,0,0,0,"_","_","_","_"]
["O3201-1/IA10375/F0041/X004/R0230/001/CONTRA","O3201-1/IA10375/F0041/X004/R0230/001/CONTRA",121870,0,"Assets:Current Assets:VAT Receivable:Input Tax Accrual:Recognised"," _"," _"," _ "," _ "," _ "," _ ","2100","Community and social services","2104","Cemeteries, Funeral Parlours and Crematoriums","_"," _"," _","O","IA","0170","Current assets / VAT","0170","VAT"," _ "," _ ","_","_"," _ "," _ "," _ "," _ "," _ "," _ "," _ "," _ ",null," _ "," _ "," _ "," _ ","",null,null," _ "," _ "," _ "," _ "," _ "," _ ","0890","Community Assets / Community Facilities / Cemeteries/Crematoria"," _ ","0890","Community Assets / Community Facilities / Cemeteries/Crematoria",null," _ "," _ "," _ "," _ "," _ ",null," _ "," _ "," _ "," _ ",null,2,24,"Cemeteries, Funeral Parlours and Crematoriums","Community and Social Services",null,null,0,0,0,0,0,120000,121500,123000,0,"_","_","_","_"]
["O3201-1/IL65531/F0930/X004/R0230/001/CONTRA","O3201-1/IL65531/F0930/X004/R0230/001/CONTRA",121876,0,"Liabilities:Current Liabilities:Trade and Other Payable Exchange Transactions:Payables and Accruals : Contractors:Withdrawals"," _"," _"," _ "," _ "," _ "," _ ","2100","Community and social services","2104","Cemeteries, Funeral Parlours and Crematoriums","_"," _"," _","O","IL","0380","Current liabilities / Trade and other payables from exchange transactions","_","_"," _ "," _ ","_","_","0200","Cash Payments by Type / Contracted Services","0450","Cash Payments by Type / Contracted Services"," _ "," _ "," _ "," _ ",null,"0361","Trade and other payables / Trade and other payables from exchange transactions","0361","Trade and other payables / Trade and other payables from exchange transactions","",null,null," _ "," _ "," _ "," _ "," _ "," _ ","0890","Community Assets / Community Facilities / Cemeteries/Crematoria"," _ ","0890","Community Assets / Community Facilities / Cemeteries/Crematoria",null," _ "," _ "," _ "," _ "," _ ",null," _ "," _ "," _ "," _ ",null,2,24,"Cemeteries, Funeral Parlours and Crematoriums","Community and Social Services",null,null,0,0,0,0,0,0,0,0,0,"_","_","_","_"]
["C0305-1/IA02105/F0002/X047/R0230/001/CONTRA","C0305-1/IA02105/F0002/X047/R0230/001/CONTRA",122799,0,"Assets:Current Assets:Cash and Cash Equivalents:Cash at Bank:Bank Account:Specify (replace with account description):Deposits"," _"," _"," _ "," _ "," _ "," _ ","1200","Finance and administration","1202","Asset Management","_",2080,"Funded by Internally generated funds","C","IA","0120","Current assets / Cash and cash equivalents","0120","Cash and cash equivalents"," _ "," _ ","_","_","","Recepts - Cash and Cash Equivalents","0510","Recepts - Cash and Cash Equivalents"," _ "," _ "," _ "," _ ",null," _ "," _ "," _ "," _ ","",null,"D"," _ "," _ "," _ "," _ ","1280","Other assets / Operational Buildings / Manufacturing Plant"," _ "," _ ","1280"," _ "," _ ",null," _ "," _ ","Other assets / Operational Buildings / Manufacturing Plant"," _ "," _ ",null," _ "," _ "," _ "," _ ",null,3,33,"Asset Management","Finance & Administration",null,null,0,0,0,0,0,0,0,0,0,"_","_","_","_"]
["C0231-1/IA10370/F0791/X047/R0230/001/CONTRA","C0231-1/IA10370/F0791/X047/R0230/001/CONTRA",122736,0,"Assets:Current Assets:VAT Receivable:Input Tax Capital:Recognised"," _"," _"," _ "," _ "," _ "," _ ","1200","Finance and administration","1202","Asset Management","_",2010,"Funded by National Government","C","IA","0170","Current assets / VAT","0170","VAT"," _ "," _ ","_","_"," _ "," _ "," _ "," _ "," _ "," _ "," _ "," _ ",null," _ "," _ "," _ "," _ ","",null,null,"0880","0880","Community Assets / Community Facilities / Libraries","Community Assets / Community Facilities / Libraries"," _ "," _ "," _ "," _ "," _ "," _ "," _ ",null," _ "," _ "," _ "," _ "," _ ",null," _ "," _ "," _ "," _ ",null,3,33,"Asset Management","Finance & Administration",null,null,0,0,0,0,0,0,0,0,0,"_","_","_","_"]
["O1273-1/IA10375/F0041/X106/R0230/001/CONTRA","O1273-1/IA10375/F0041/X106/R0230/001/CONTRA",122398,0,"Assets:Current Assets:VAT Receivable:Input Tax Accrual:Recognised"," _"," _"," _ "," _ "," _ "," _ ","2300","Public safety","2302","Cleansing","_"," _"," _","O","IA","0170","Current assets / VAT","0170","VAT"," _ "," _ ","_","_"," _ "," _ "," _ "," _ "," _ "," _ "," _ "," _ ",null," _ "," _ "," _ "," _ ","",null,null," _ "," _ "," _ "," _ "," _ "," _ "," _ "," _ "," _ "," _ "," _ ",null," _ "," _ "," _ "," _ "," _ ",null," _ "," _ "," _ "," _ ",null,8,81,"Cleansing","Public Safety",null,null,0,0,0,0,0,0,0,0,0,"_","_","_","_"]
["O1350-1/IL65530/F0041/X056/R0229/001/CONTRA","O1350-1/IL65530/F0041/X056/R0229/001/CONTRA",122299,0,"Liabilities:Current Liabilities:Trade and Other Payable Exchange Transactions:Payables and Accruals : Contractors:Deposits"," _"," _"," _ "," _ "," _ "," _ ","1200","Finance and administration","1211","Risk Management","_"," _"," _","O","IL","0380","Current liabilities / Trade and other payables from exchange transactions","_","_"," _ "," _ ","_","_"," _ "," _ "," _ "," _ "," _ "," _ "," _ "," _ ",null,"0361","Trade and other payables / Trade and other payables from exchange transactions","0361","Trade and other payables / Trade and other payables from exchange transactions","",null,null," _ "," _ "," _ "," _ "," _ "," _ "," _ "," _ "," _ "," _ "," _ ",null," _ "," _ "," _ "," _ "," _ ",null," _ "," _ "," _ "," _ ",null,3,37,"Risk Management","Finance & Administration",null,null,0,0,0,0,0,0,0,0,0,"_","_","_","_"]
["O1550-3/IE00650/F2496/X057/R0229/001/6351","O1550-3/IE00650/F2496/X057/R0229/001/6351",31046,1644,"Expenditure:Contracted Services:Contractors:Maintenance of Equipment","3800","Expenditure / Contracted services","2703","Expenditure / Contracted services","2703","Contracted Services ","1200","Finance and administration","1212","Security Services","_"," _"," _","O","IE"," _ "," _ "," _ "," _ "," _ "," _ ","_","_"," _ "," _ "," _ "," _ "," _ "," _ "," _ "," _ ",null," _ "," _ "," _ "," _ ","",null,null," _ "," _ "," _ "," _ "," _ "," _ ","1510","Machinery and Equipment"," _ ","1510","Machinery and Equipment","RM"," _ "," _ "," _ "," _ "," _ ",null," _ "," _ "," _ "," _ ",null,14,141,"Security Services","Finance & Administration 2",null,null,0,4450,0,150000,100000,150000,200000,250000,0,"_","_","_","_"]
["C0308-1/IA00092/F0002/X047/R0230/001/6114","C0308-1/IA00092/F0002/X047/R0230/001/6114",61468,4187,"Assets:Non-current Assets:Property, Plant and Equipment:Cost Model:Other Assets:Cost:Acquisitions"," _"," _"," _ "," _ "," _ "," _ ","1200","Finance and administration","1202","Asset Management","CE",2080,"Funded by Internally generated funds","C","IA","0230","Non current assets / Property, plant and equipment","0231","Land: Acquisitions"," _ "," _ ","_","_"," _ "," _ "," _ "," _ ","1180","Other assets",1180,"Other assets",null,"0241","Property, plant and equipment (PPE) / PPE at cost/valuation (excl. finance leases)","0241","Property, plant and equipment (PPE) / PPE at cost/valuation (excl. finance leases)","",null,null," _ "," _ "," _ "," _ ","1250","Other assets / Operational Buildings / Stores"," _ "," _ ","1250"," _ "," _ ",null," _ "," _ ","Other assets / Operational Buildings / Stores"," _ "," _ ",null," _ "," _ "," _ "," _ ",null,3,33,"Asset Management","Finance & Administration",null,null,0,0,0,0,0,0,0,0,0,"_","_","_","_"]
["O1278-1/IL53987/F0041/X116/R0230/001/CONTRA","O1278-1/IL53987/F0041/X116/R0230/001/CONTRA",122481,0,"Liabilities:Current Liabilities:Trade and Other Payable Exchange Transactions:Control, Clearing and Interface Accounts:Salary Clearing and Control:Salary Control - Employee Related Costs:Deposits"," _"," _"," _ "," _ "," _ "," _ ","3200","Road transport","3205","Roads","_"," _"," _","O","IL","0380","Current liabilities / Trade and other payables from exchange transactions","_","_"," _ "," _ ","_","_"," _ "," _ "," _ "," _ "," _ "," _ "," _ "," _ ",null,"0361","Trade and other payables / Trade and other payables from exchange transactions","0361","Trade and other payables / Trade and other payables from exchange transactions","",null,null," _ "," _ "," _ "," _ "," _ "," _ "," _ "," _ "," _ "," _ "," _ ",null," _ "," _ "," _ "," _ "," _ ",null," _ "," _ "," _ "," _ ",null,7,74,"Roads","Road Transport",null,null,0,0,0,0,0,-3849000,-3960000,-4070000,0,"_","_","_","_"]
["O1278-1/IL53996/F1169/X116/R0230/001/CONTRA","O1278-1/IL53996/F1169/X116/R0230/001/CONTRA",122496,0,"Liabilities:Current Liabilities:Trade and Other Payable Exchange Transactions:Control, Clearing and Interface Accounts:Salary Clearing and Control:UIF Control:Withdrawals"," _"," _"," _ "," _ "," _ "," _ ","3200","Road transport","3205","Roads","_"," _"," _","O","IL","0380","Current liabilities / Trade and other payables from exchange transactions","_","_"," _ "," _ ","_","_","0200","Cash Payments by Type / Employee related costs","0390","Employee related costs"," _ "," _ "," _ "," _ ",null,"0361","Trade and other payables / Trade and other payables from exchange transactions","0361","Trade and other payables / Trade and other payables from exchange transactions","",null,null," _ "," _ "," _ "," _ "," _ "," _ "," _ "," _ "," _ "," _ "," _ ",null," _ "," _ "," _ "," _ "," _ ",null," _ "," _ "," _ "," _ ",null,7,74,"Roads","Road Transport",null,null,0,0,0,0,0,0,0,0,0,"_","_","_","_"]
["O1278-1/IA10375/F0041/X116/R0230/001/CONTRA","O1278-1/IA10375/F0041/X116/R0230/001/CONTRA",122476,0,"Assets:Current Assets:VAT Receivable:Input Tax Accrual:Recognised"," _"," _"," _ "," _ "," _ "," _ ","3200","Road transport","3205","Roads","_"," _"," _","O","IA","0170","Current assets / VAT","0170","VAT"," _ "," _ ","_","_"," _ "," _ "," _ "," _ "," _ "," _ "," _ "," _ ",null," _ "," _ "," _ "," _ ","",null,null," _ "," _ "," _ "," _ "," _ "," _ "," _ "," _ "," _ "," _ "," _ ",null," _ "," _ "," _ "," _ "," _ ",null," _ "," _ "," _ "," _ ",null,7,74,"Roads","Road Transport",null,null,0,0,0,0,0,187500,191250,195000,0,"_","_","_","_"]
["O1278-1/IA02108/F1169/X116/R0230/001/CONTRA","O1278-1/IA02108/F1169/X116/R0230/001/CONTRA",122489,0,"Assets:Current Assets:Cash and Cash Equivalents:Cash at Bank:Bank Account:Specify (replace with account description):Withdrawals"," _"," _"," _ "," _ "," _ "," _ ","3200","Road transport","3205","Roads","_"," _"," _","O","IA","0120","Current assets / Cash and cash equivalents","0120","Cash and cash equivalents","0150W","CASH FLOW FROM OPERATING ACTIVITIES / Receipts / Transfers and Subsidies - Operational","0150W","CASH FLOW FROM OPERATING ACTIVITIES / Receipts / Transfers and Subsidies - Operational"," _ "," _ "," _ "," _ "," _ "," _ "," _ "," _ ",null," _ "," _ "," _ "," _ ","0240","Cash Receipts By Source / Transfers and Subsidies - Operational","W"," _ "," _ "," _ "," _ "," _ "," _ "," _ "," _ "," _ "," _ "," _ ",null," _ "," _ "," _ "," _ "," _ ",null," _ "," _ "," _ "," _ ",null,7,74,"Roads","Road Transport",null,null,0,0,0,0,0,-3000000,0,0,0,"_","_","_","_"]
["O1278-1/IL53821/F1169/X116/R0229/001/CONTRA","O1278-1/IL53821/F1169/X116/R0229/001/CONTRA",122486,0,"Liabilities:Current Liabilities:Trade and Other Payable Exchange Transactions:Payables and Accruals : General:Withdrawals"," _"," _"," _ "," _ "," _ "," _ ","3200","Road transport","3205","Roads","_"," _"," _","O","IL","0380","Current liabilities / Trade and other payables from exchange transactions","_","_"," _ "," _ ","_","_","0200","Cash Payments by Type / Other expenditure","0480","Other expenditure"," _ "," _ "," _ "," _ ",null,"0361","Trade and other payables / Trade and other payables from exchange transactions","0361","Trade and other payables / Trade and other payables from exchange transactions","",null,null," _ "," _ "," _ "," _ "," _ "," _ "," _ "," _ "," _ "," _ "," _ ",null," _ "," _ "," _ "," _ "," _ ",null," _ "," _ "," _ "," _ ",null,7,74,"Roads","Road Transport",null,null,0,0,0,0,0,0,0,0,0,"_","_","_","_"]
["O1278-1/IE00677/F0041/X116/R0229/001/6601","O1278-1/IE00677/F0041/X116/R0229/001/6601",99708,7596,"Expenditure:Contracted Services:Outsourced Services:Catering Services","3800","Expenditure / Contracted services","2701","Expenditure / Contracted services","2701","Contracted Services ","3200","Road transport","3205","Roads","_"," _"," _","O","IE"," _ "," _ "," _ "," _ "," _ "," _ ","_","_"," _ "," _ "," _ "," _ "," _ "," _ "," _ "," _ ",null," _ "," _ "," _ "," _ ","",null,null," _ "," _ "," _ "," _ "," _ "," _ "," _ "," _ "," _ "," _ "," _ ",null," _ "," _ "," _ "," _ "," _ ",null," _ "," _ "," _ "," _ ",null,7,74,"Roads","Road Transport",null,null,0,0,0,30000,30000,30000,32000,33000,0,"_","_","_","_"]
["O2385-1/IA02108/F0930/X032/R0230/001/CONTRA","O2385-1/IA02108/F0930/X032/R0230/001/CONTRA",121674,0,"Assets:Current Assets:Cash and Cash Equivalents:Cash at Bank:Bank Account:Specify (replace with account description):Withdrawals"," _"," _"," _ "," _ "," _ "," _ ","4100","Energy sources","4101","Electricity","_"," _"," _","O","IA","0120","Current assets / Cash and cash equivalents","0120","Cash and cash equivalents","0130W","CASH FLOW FROM OPERATING ACTIVITIES / Receipts / Service charges","0130W","Service charges - refuse revenue"," _ "," _ "," _ "," _ "," _ "," _ "," _ "," _ ",null," _ "," _ "," _ "," _ ","0150","Cash Receipts By Source / Service charges - refuse revenue","W"," _ "," _ "," _ "," _ "," _ "," _ ","0140","Infrastructure / Roads Infrastructure / Road Furniture"," _ ","0140","Infrastructure / Roads Infrastructure / Road Furniture",null," _ "," _ "," _ "," _ "," _ ",null," _ "," _ "," _ "," _ ",null,1,11,"Electricity"," Energy Sources",null,null,0,0,0,0,0,-4600000,-4600000,-4600000,0,"_","_","_","_"]
["C0004-2/IA10375/F0002/X047/R0230/001/CONTRA","C0004-2/IA10375/F0002/X047/R0230/001/CONTRA",122637,0,"Assets:Current Assets:VAT Receivable:Input Tax Accrual:Recognised"," _"," _"," _ "," _ "," _ "," _ ","1200","Finance and administration","1202","Asset Management","_",2080,"Funded by Internally generated funds","C","IA","0170","Current assets / VAT","0170","VAT"," _ "," _ ","_","_"," _ "," _ "," _ "," _ "," _ "," _ "," _ "," _ ",null," _ "," _ "," _ "," _ ","",null,null,"1490","1490","Furniture and Office Equipment","Furniture and Office Equipment"," _ "," _ "," _ "," _ "," _ "," _ "," _ ",null," _ "," _ "," _ "," _ "," _ ",null," _ "," _ "," _ "," _ ",null,3,33,"Asset Management","Finance & Administration",null,null,0,0,0,0,0,0,0,0,0,"_","_","_","_"]
["C0004-1/IL65531/F0002/X046/R0229/001/CONTRA","C0004-1/IL65531/F0002/X046/R0229/001/CONTRA",121943,0,"Liabilities:Current Liabilities:Trade and Other Payable Exchange Transactions:Payables and Accruals : Contractors:Withdrawals"," _"," _"," _ "," _ "," _ "," _ ","1200","Finance and administration","1201","Administrative and Corporate Support","_",2080,"Funded by Internally generated funds","C","IL","0380","Current liabilities / Trade and other payables from exchange transactions","_","_"," _ "," _ ","_","_","0200","Cash Payments by Type / Contracted Services","0450","Cash Payments by Type / Contracted Services"," _ "," _ "," _ "," _ ",null,"0361","Trade and other payables / Trade and other payables from exchange transactions","0361","Trade and other payables / Trade and other payables from exchange transactions","",null,null,"1490","1490","Furniture and Office Equipment","Furniture and Office Equipment"," _ "," _ "," _ "," _ "," _ "," _ "," _ ",null," _ "," _ "," _ "," _ "," _ ",null," _ "," _ "," _ "," _ ",null,14,142,"Administrative and Corporate Support","Finance & Administration 2",null,null,0,0,0,0,0,1380000,1495000,1495000,0,"_","_","_","_"]
["O1240-2/IL53821/F0930/X044/R0230/001/CONTRA","O1240-2/IL53821/F0930/X044/R0230/001/CONTRA",122253,0,"Liabilities:Current Liabilities:Trade and Other Payable Exchange Transactions:Payables and Accruals : General:Withdrawals"," _"," _"," _ "," _ "," _ "," _ ","1100","Executive and council","1110","Mayor and Council","_"," _"," _","O","IL","0380","Current liabilities / Trade and other payables from exchange transactions","_","_"," _ "," _ ","_","_","0200","Cash Payments by Type / Other expenditure","0480","Other expenditure"," _ "," _ "," _ "," _ ",null,"0361","Trade and other payables / Trade and other payables from exchange transactions","0361","Trade and other payables / Trade and other payables from exchange transactions","",null,null," _ "," _ "," _ "," _ "," _ "," _ "," _ "," _ "," _ "," _ "," _ ",null," _ "," _ "," _ "," _ "," _ ",null," _ "," _ "," _ "," _ ",null,5,52,"Mayor and Council","Executive & Council",null,null,0,0,0,0,0,0,0,0,0,"_","_","_","_"]
["O1240-1/IL53821/F0930/X044/R0230/001/CONTRA","O1240-1/IL53821/F0930/X044/R0230/001/CONTRA",122247,0,"Liabilities:Current Liabilities:Trade and Other Payable Exchange Transactions:Payables and Accruals : General:Withdrawals"," _"," _"," _ "," _ "," _ "," _ ","1100","Executive and council","1110","Mayor and Council","_"," _"," _","O","IL","0380","Current liabilities / Trade and other payables from exchange transactions","_","_"," _ "," _ ","_","_","0200","Cash Payments by Type / Other expenditure","0480","Other expenditure"," _ "," _ "," _ "," _ ",null,"0361","Trade and other payables / Trade and other payables from exchange transactions","0361","Trade and other payables / Trade and other payables from exchange transactions","",null,null," _ "," _ "," _ "," _ "," _ "," _ "," _ "," _ "," _ "," _ "," _ ",null," _ "," _ "," _ "," _ "," _ ",null," _ "," _ "," _ "," _ ",null,5,52,"Mayor and Council","Executive & Council",null,null,0,0,0,0,0,575000,609500,632500,0,"_","_","_","_"]
["C0306-1/IA00090/F0002/X047/R0230/001/6114","C0306-1/IA00090/F0002/X047/R0230/001/6114",61464,4183,"Assets:Non-current Assets:Property, Plant and Equipment:Cost Model:Other Assets:Accumulated Impairment:Impairment"," _"," _"," _ "," _ "," _ "," _ ","1200","Finance and administration","1202","Asset Management","_",2080,"Funded by Internally generated funds","C","IA","0230","Non current assets / Property, plant and equipment","0231","Land: Acquisitions"," _ "," _ ","_","_"," _ "," _ "," _ "," _ ","1180","Other assets",1180,"Other assets",null,"0241","Property, plant and equipment (PPE) / PPE at cost/valuation (excl. finance leases)","0241","Property, plant and equipment (PPE) / PPE at cost/valuation (excl. finance leases)","",null,null," _ "," _ "," _ "," _ ","1200","Other assets / Operational Buildings / Municipal Offices"," _ "," _ ","1200"," _ "," _ ",null," _ "," _ ","Other assets / Operational Buildings / Municipal Offices"," _ "," _ ",null," _ "," _ "," _ "," _ ",null,3,33,"Asset Management","Finance & Administration",null,null,0,0,0,0,0,0,0,0,0,"_","_","_","_"]
["C0038-1/IA10370/F0002/X115/R0230/001/CONTRA","C0038-1/IA10370/F0002/X115/R0230/001/CONTRA",123843,0,"Assets:Current Assets:VAT Receivable:Input Tax Capital:Recognised"," _"," _"," _ "," _ "," _ "," _ ","3200","Road transport","3203","Public Transport","_",2080,"Funded by Internally generated funds","C","IA","0170","Current assets / VAT","0170","VAT"," _ "," _ ","_","_"," _ "," _ "," _ "," _ "," _ "," _ "," _ "," _ ",null," _ "," _ "," _ "," _ ","",null,null,"0140","0140","Infrastructure / Roads Infrastructure / Road Furniture","Infrastructure / Roads Infrastructure / Road Furniture"," _ "," _ "," _ "," _ "," _ "," _ "," _ ",null," _ "," _ "," _ "," _ "," _ ",null," _ "," _ "," _ "," _ ",null,7,73,"Public Transport","Road Transport",null,null,0,0,0,0,0,0,0,0,0,"_","_","_","_"]
["C0040-15/IA02105/F0791/X116/R0021/001/CONTRA","C0040-15/IA02105/F0791/X116/R0021/001/CONTRA",123956,0,"Assets:Current Assets:Cash and Cash Equivalents:Cash at Bank:Bank Account:Specify (replace with account description):Deposits"," _"," _"," _ "," _ "," _ "," _ ","3200","Road transport","3205","Roads","_",2010,"Funded by National Government","C","IA","0120","Current assets / Cash and cash equivalents","0120","Cash and cash equivalents","0","CASH FLOW FROM OPERATING ACTIVITIES / Receipts / Transfers and Subsidies - Capital","0","Transfers - National, Provincial, District Municipalities ","","Recepts - Cash and Cash Equivalents","0510","Recepts - Cash and Cash Equivalents"," _ "," _ "," _ "," _ ",null," _ "," _ "," _ "," _ ","0280","Other Cash Flows by Source / Transfers and subsidies - capital (monetary allocations) (National / Provincial and District)","D","0120","0120","Infrastructure / Roads Infrastructure / Roads","Infrastructure / Roads Infrastructure / Roads"," _ "," _ "," _ "," _ "," _ "," _ "," _ ",null," _ "," _ "," _ "," _ "," _ ",null," _ "," _ "," _ "," _ ",null,7,74,"Roads","Road Transport",null,null,0,0,0,0,0,0,0,0,0,"_","_","_","_"]
["C0040-35/IA02105/F0791/X116/R0042/001/CONTRA","C0040-35/IA02105/F0791/X116/R0042/001/CONTRA",124288,0,"Assets:Current Assets:Cash and Cash Equivalents:Cash at Bank:Bank Account:Specify (replace with account description):Deposits"," _"," _"," _ "," _ "," _ "," _ ","3200","Road transport","3205","Roads","_",2010,"Funded by National Government","C","IA","0120","Current assets / Cash and cash equivalents","0120","Cash and cash equivalents","0","CASH FLOW FROM OPERATING ACTIVITIES / Receipts / Transfers and Subsidies - Capital","0","Transfers - National, Provincial, District Municipalities ","","Recepts - Cash and Cash Equivalents","0510","Recepts - Cash and Cash Equivalents"," _ "," _ "," _ "," _ ",null," _ "," _ "," _ "," _ ","0280","Other Cash Flows by Source / Transfers and subsidies - capital (monetary allocations) (National / Provincial and District)","D","0120","0120","Infrastructure / Roads Infrastructure / Roads","Infrastructure / Roads Infrastructure / Roads"," _ "," _ "," _ "," _ "," _ "," _ "," _ ",null," _ "," _ "," _ "," _ "," _ ",null," _ "," _ "," _ "," _ ",null,7,74,"Roads","Road Transport",null,null,0,0,0,0,0,0,-26450000,-5750000,0,"_","_","_","_"]
["C0040-37/IA02105/F0002/X116/R0032/001/CONTRA","C0040-37/IA02105/F0002/X116/R0032/001/CONTRA",124316,0,"Assets:Current Assets:Cash and Cash Equivalents:Cash at Bank:Bank Account:Specify (replace with account description):Deposits"," _"," _"," _ "," _ "," _ "," _ ","3200","Road transport","3205","Roads","_",2080,"Funded by Internally generated funds","C","IA","0120","Current assets / Cash and cash equivalents","0120","Cash and cash equivalents"," _ "," _ ","_","_","","Recepts - Cash and Cash Equivalents","0510","Recepts - Cash and Cash Equivalents"," _ "," _ "," _ "," _ ",null," _ "," _ "," _ "," _ ","",null,"D","0120","0120","Infrastructure / Roads Infrastructure / Roads","Infrastructure / Roads Infrastructure / Roads"," _ "," _ "," _ "," _ "," _ "," _ "," _ ",null," _ "," _ "," _ "," _ "," _ ",null," _ "," _ "," _ "," _ ",null,7,74,"Roads","Road Transport",null,null,0,0,0,0,0,-575000,0,0,0,"_","_","_","_"]
["C0040-21/IA02105/F0002/X101/R0230/001/CONTRA","C0040-21/IA02105/F0002/X101/R0230/001/CONTRA",124004,0,"Assets:Current Assets:Cash and Cash Equivalents:Cash at Bank:Bank Account:Specify (replace with account description):Deposits"," _"," _"," _ "," _ "," _ "," _ ","3100","Planning and development","3107","Town Planning, Building Regulations and Enforcement, and City Engineer","_",2080,"Funded by Internally generated funds","C","IA","0120","Current assets / Cash and cash equivalents","0120","Cash and cash equivalents"," _ "," _ ","_","_","","Recepts - Cash and Cash Equivalents","0510","Recepts - Cash and Cash Equivalents"," _ "," _ "," _ "," _ ",null," _ "," _ "," _ "," _ ","",null,"D","0120","0120","Infrastructure / Roads Infrastructure / Roads","Infrastructure / Roads Infrastructure / Roads"," _ "," _ "," _ "," _ "," _ "," _ "," _ ",null," _ "," _ "," _ "," _ "," _ ",null," _ "," _ "," _ "," _ ",null,4,41,"Town Planning, Building Regulations and Enforcement, and City Engineer","Planning and Development",null,null,0,0,0,0,0,-1150000,0,0,0,"_","_","_","_"]
["C0040-15/IA02105/F0002/X116/R0022/001/CONTRA","C0040-15/IA02105/F0002/X116/R0022/001/CONTRA",123948,0,"Assets:Current Assets:Cash and Cash Equivalents:Cash at Bank:Bank Account:Specify (replace with account description):Deposits"," _"," _"," _ "," _ "," _ "," _ ","3200","Road transport","3205","Roads","_",2080,"Funded by Internally generated funds","C","IA","0120","Current assets / Cash and cash equivalents","0120","Cash and cash equivalents"," _ "," _ ","_","_","","Recepts - Cash and Cash Equivalents","0510","Recepts - Cash and Cash Equivalents"," _ "," _ "," _ "," _ ",null," _ "," _ "," _ "," _ ","",null,"D","0120","0120","Infrastructure / Roads Infrastructure / Roads","Infrastructure / Roads Infrastructure / Roads"," _ "," _ "," _ "," _ "," _ "," _ "," _ ",null," _ "," _ "," _ "," _ "," _ ",null," _ "," _ "," _ "," _ ",null,7,74,"Roads","Road Transport",null,null,0,0,0,0,0,0,0,0,0,"_","_","_","_"]
["C0040-40/IA02105/F0002/X116/R0033/001/CONTRA","C0040-40/IA02105/F0002/X116/R0033/001/CONTRA",124332,0,"Assets:Current Assets:Cash and Cash Equivalents:Cash at Bank:Bank Account:Specify (replace with account description):Deposits"," _"," _"," _ "," _ "," _ "," _ ","3200","Road transport","3205","Roads","_",2080,"Funded by Internally generated funds","C","IA","0120","Current assets / Cash and cash equivalents","0120","Cash and cash equivalents"," _ "," _ ","_","_","","Recepts - Cash and Cash Equivalents","0510","Recepts - Cash and Cash Equivalents"," _ "," _ "," _ "," _ ",null," _ "," _ "," _ "," _ ","",null,"D","0120","0120","Infrastructure / Roads Infrastructure / Roads","Infrastructure / Roads Infrastructure / Roads"," _ "," _ "," _ "," _ "," _ "," _ "," _ ",null," _ "," _ "," _ "," _ "," _ ",null," _ "," _ "," _ "," _ ",null,7,74,"Roads","Road Transport",null,null,0,0,0,0,0,-575000,0,0,0,"_","_","_","_"]
["C0040-35/IA02108/F0791/X116/R0042/001/CONTRA","C0040-35/IA02108/F0791/X116/R0042/001/CONTRA",124657,0,"Assets:Current Assets:Cash and Cash Equivalents:Cash at Bank:Bank Account:Specify (replace with account description):Withdrawals"," _"," _"," _ "," _ "," _ "," _ ","3200","Road transport","3205","Roads","_",2010,"Funded by National Government","C","IA","0120","Current assets / Cash and cash equivalents","0120","Cash and cash equivalents","0160W","CASH FLOW FROM OPERATING ACTIVITIES / Receipts / Transfers and Subsidies - Capital","0160W","CASH FLOW FROM OPERATING ACTIVITIES / Receipts / Transfers and Subsidies - Capital","0310","Other Cash Flows/Payments by Type / Capital assets","0510","Capital assets"," _ "," _ "," _ "," _ ",null," _ "," _ "," _ "," _ ","0280","Other Cash Flows by Source / Transfers and subsidies - capital (monetary allocations) (National / Provincial and District)","W","0120","0120","Infrastructure / Roads Infrastructure / Roads","Infrastructure / Roads Infrastructure / Roads"," _ "," _ "," _ "," _ "," _ "," _ "," _ ",null," _ "," _ "," _ "," _ "," _ ",null," _ "," _ "," _ "," _ ",null,7,74,"Roads","Road Transport",null,null,0,0,0,0,0,0,0,0,0,"_","_","_","_"]
["C0040-8/IA02108/F0791/X116/R0021/001/CONTRA","C0040-8/IA02108/F0791/X116/R0021/001/CONTRA",124498,0,"Assets:Current Assets:Cash and Cash Equivalents:Cash at Bank:Bank Account:Specify (replace with account description):Withdrawals"," _"," _"," _ "," _ "," _ "," _ ","3200","Road transport","3205","Roads","_",2010,"Funded by National Government","C","IA","0120","Current assets / Cash and cash equivalents","0120","Cash and cash equivalents","0160W","CASH FLOW FROM OPERATING ACTIVITIES / Receipts / Transfers and Subsidies - Capital","0160W","CASH FLOW FROM OPERATING ACTIVITIES / Receipts / Transfers and Subsidies - Capital","0310","Other Cash Flows/Payments by Type / Capital assets","0510","Capital assets"," _ "," _ "," _ "," _ ",null," _ "," _ "," _ "," _ ","0280","Other Cash Flows by Source / Transfers and subsidies - capital (monetary allocations) (National / Provincial and District)","W","0120","0120","Infrastructure / Roads Infrastructure / Roads","Infrastructure / Roads Infrastructure / Roads"," _ "," _ "," _ "," _ "," _ "," _ "," _ ",null," _ "," _ "," _ "," _ "," _ ",null," _ "," _ "," _ "," _ ",null,7,74,"Roads","Road Transport",null,null,0,0,0,0,0,0,0,0,0,"_","_","_","_"]
["C0040-7/IA02108/F0002/X116/R0044/001/CONTRA","C0040-7/IA02108/F0002/X116/R0044/001/CONTRA",124469,0,"Assets:Current Assets:Cash and Cash Equivalents:Cash at Bank:Bank Account:Specify (replace with account description):Withdrawals"," _"," _"," _ "," _ "," _ "," _ ","3200","Road transport","3205","Roads","_",2080,"Funded by Internally generated funds","C","IA","0120","Current assets / Cash and cash equivalents","0120","Cash and cash equivalents"," _ "," _ ","_","_","0310","Other Cash Flows/Payments by Type / Capital assets","0510","Capital assets"," _ "," _ "," _ "," _ ",null," _ "," _ "," _ "," _ ","",null,"W","0120","0120","Infrastructure / Roads Infrastructure / Roads","Infrastructure / Roads Infrastructure / Roads"," _ "," _ "," _ "," _ "," _ "," _ "," _ ",null," _ "," _ "," _ "," _ "," _ ",null," _ "," _ "," _ "," _ ",null,7,74,"Roads","Road Transport",null,null,0,0,0,0,0,0,0,0,0,"_","_","_","_"]
["C0040-2/IA02108/F0002/X116/R0026/001/CONTRA","C0040-2/IA02108/F0002/X116/R0026/001/CONTRA",124387,0,"Assets:Current Assets:Cash and Cash Equivalents:Cash at Bank:Bank Account:Specify (replace with account description):Withdrawals"," _"," _"," _ "," _ "," _ "," _ ","3200","Road transport","3205","Roads","_",2080,"Funded by Internally generated funds","C","IA","0120","Current assets / Cash and cash equivalents","0120","Cash and cash equivalents"," _ "," _ ","_","_","0310","Other Cash Flows/Payments by Type / Capital assets","0510","Capital assets"," _ "," _ "," _ "," _ ",null," _ "," _ "," _ "," _ ","",null,"W","0120","0120","Infrastructure / Roads Infrastructure / Roads","Infrastructure / Roads Infrastructure / Roads"," _ "," _ "," _ "," _ "," _ "," _ "," _ ",null," _ "," _ "," _ "," _ "," _ ",null," _ "," _ "," _ "," _ ",null,7,74,"Roads","Road Transport",null,null,0,0,0,0,0,0,0,0,0,"_","_","_","_"]
["C0040-33/IA02108/F0002/X116/R0039/001/CONTRA","C0040-33/IA02108/F0002/X116/R0039/001/CONTRA",124652,0,"Assets:Current Assets:Cash and Cash Equivalents:Cash at Bank:Bank Account:Specify (replace with account description):Withdrawals"," _"," _"," _ "," _ "," _ "," _ ","3200","Road transport","3205","Roads","_",2080,"Funded by Internally generated funds","C","IA","0120","Current assets / Cash and cash equivalents","0120","Cash and cash equivalents"," _ "," _ ","_","_","0310","Other Cash Flows/Payments by Type / Capital assets","0510","Capital assets"," _ "," _ "," _ "," _ ",null," _ "," _ "," _ "," _ ","",null,"W","0120","0120","Infrastructure / Roads Infrastructure / Roads","Infrastructure / Roads Infrastructure / Roads"," _ "," _ "," _ "," _ "," _ "," _ "," _ ",null," _ "," _ "," _ "," _ "," _ ",null," _ "," _ "," _ "," _ ",null,7,74,"Roads","Road Transport",null,null,0,0,0,0,0,0,0,0,0,"_","_","_","_"]
["C0040-36/IA02108/F0002/X116/R0023/001/CONTRA","C0040-36/IA02108/F0002/X116/R0023/001/CONTRA",124662,0,"Assets:Current Assets:Cash and Cash Equivalents:Cash at Bank:Bank Account:Specify (replace with account description):Withdrawals"," _"," _"," _ "," _ "," _ "," _ ","3200","Road transport","3205","Roads","_",2080,"Funded by Internally generated funds","C","IA","0120","Current assets / Cash and cash equivalents","0120","Cash and cash equivalents"," _ "," _ ","_","_","0310","Other Cash Flows/Payments by Type / Capital assets","0510","Capital assets"," _ "," _ "," _ "," _ ",null," _ "," _ "," _ "," _ ","",null,"W","0120","0120","Infrastructure / Roads Infrastructure / Roads","Infrastructure / Roads Infrastructure / Roads"," _ "," _ "," _ "," _ "," _ "," _ "," _ ",null," _ "," _ "," _ "," _ "," _ ",null," _ "," _ "," _ "," _ ",null,7,74,"Roads","Road Transport",null,null,0,0,0,0,0,0,0,0,0,"_","_","_","_"]
["C0040-33/IA10370/F0002/X116/R0230/001/CONTRA","C0040-33/IA10370/F0002/X116/R0230/001/CONTRA",124221,0,"Assets:Current Assets:VAT Receivable:Input Tax Capital:Recognised"," _"," _"," _ "," _ "," _ "," _ ","3200","Road transport","3205","Roads","_",2080,"Funded by Internally generated funds","C","IA","0170","Current assets / VAT","0170","VAT"," _ "," _ ","_","_"," _ "," _ "," _ "," _ "," _ "," _ "," _ "," _ ",null," _ "," _ "," _ "," _ ","",null,null,"0120","0120","Infrastructure / Roads Infrastructure / Roads","Infrastructure / Roads Infrastructure / Roads"," _ "," _ "," _ "," _ "," _ "," _ "," _ ",null," _ "," _ "," _ "," _ "," _ ",null," _ "," _ "," _ "," _ ",null,7,74,"Roads","Road Transport",null,null,0,0,0,0,0,0,0,0,0,"_","_","_","_"]
["C0040-33/IA10370/F0002/X116/R0042/001/CONTRA","C0040-33/IA10370/F0002/X116/R0042/001/CONTRA",124277,0,"Assets:Current Assets:VAT Receivable:Input Tax Capital:Recognised"," _"," _"," _ "," _ "," _ "," _ ","3200","Road transport","3205","Roads","_",2080,"Funded by Internally generated funds","C","IA","0170","Current assets / VAT","0170","VAT"," _ "," _ ","_","_"," _ "," _ "," _ "," _ "," _ "," _ "," _ "," _ ",null," _ "," _ "," _ "," _ ","",null,null,"0120","0120","Infrastructure / Roads Infrastructure / Roads","Infrastructure / Roads Infrastructure / Roads"," _ "," _ "," _ "," _ "," _ "," _ "," _ ",null," _ "," _ "," _ "," _ "," _ ",null," _ "," _ "," _ "," _ ",null,7,74,"Roads","Road Transport",null,null,0,0,0,0,0,900000,0,0,0,"_","_","_","_"]
["C0040-21/IA10370/F0002/X101/R0230/001/CONTRA","C0040-21/IA10370/F0002/X101/R0230/001/CONTRA",124005,0,"Assets:Current Assets:VAT Receivable:Input Tax Capital:Recognised"," _"," _"," _ "," _ "," _ "," _ ","3100","Planning and development","3107","Town Planning, Building Regulations and Enforcement, and City Engineer","_",2080,"Funded by Internally generated funds","C","IA","0170","Current assets / VAT","0170","VAT"," _ "," _ ","_","_"," _ "," _ "," _ "," _ "," _ "," _ "," _ "," _ ",null," _ "," _ "," _ "," _ ","",null,null,"0120","0120","Infrastructure / Roads Infrastructure / Roads","Infrastructure / Roads Infrastructure / Roads"," _ "," _ "," _ "," _ "," _ "," _ "," _ ",null," _ "," _ "," _ "," _ "," _ ",null," _ "," _ "," _ "," _ ",null,4,41,"Town Planning, Building Regulations and Enforcement, and City Engineer","Planning and Development",null,null,0,0,0,0,0,150000,0,0,0,"_","_","_","_"]
["C0040-15/IA10370/F0791/X116/R0021/001/CONTRA","C0040-15/IA10370/F0791/X116/R0021/001/CONTRA",123957,0,"Assets:Current Assets:VAT Receivable:Input Tax Capital:Recognised"," _"," _"," _ "," _ "," _ "," _ ","3200","Road transport","3205","Roads","_",2010,"Funded by National Government","C","IA","0170","Current assets / VAT","0170","VAT"," _ "," _ ","_","_"," _ "," _ "," _ "," _ "," _ "," _ "," _ "," _ ",null," _ "," _ "," _ "," _ ","",null,null,"0120","0120","Infrastructure / Roads Infrastructure / Roads","Infrastructure / Roads Infrastructure / Roads"," _ "," _ "," _ "," _ "," _ "," _ "," _ ",null," _ "," _ "," _ "," _ "," _ ",null," _ "," _ "," _ "," _ ",null,7,74,"Roads","Road Transport",null,null,0,0,0,0,0,0,0,0,0,"_","_","_","_"]
["C0040-5/IA10370/F0791/X116/R0025/001/CONTRA","C0040-5/IA10370/F0791/X116/R0025/001/CONTRA",123684,0,"Assets:Current Assets:VAT Receivable:Input Tax Capital:Recognised"," _"," _"," _ "," _ "," _ "," _ ","3200","Road transport","3205","Roads","_",2010,"Funded by National Government","C","IA","0170","Current assets / VAT","0170","VAT"," _ "," _ ","_","_"," _ "," _ "," _ "," _ "," _ "," _ "," _ "," _ ",null," _ "," _ "," _ "," _ ","",null,null,"0120","0120","Infrastructure / Roads Infrastructure / Roads","Infrastructure / Roads Infrastructure / Roads"," _ "," _ "," _ "," _ "," _ "," _ "," _ ",null," _ "," _ "," _ "," _ "," _ ",null," _ "," _ "," _ "," _ ",null,7,74,"Roads","Road Transport",null,null,0,0,0,0,0,0,0,0,0,"_","_","_","_"]
["C0040-35/IA10370/F0791/X116/R0042/001/CONTRA","C0040-35/IA10370/F0791/X116/R0042/001/CONTRA",124289,0,"Assets:Current Assets:VAT Receivable:Input Tax Capital:Recognised"," _"," _"," _ "," _ "," _ "," _ ","3200","Road transport","3205","Roads","_",2010,"Funded by National Government","C","IA","0170","Current assets / VAT","0170","VAT"," _ "," _ ","_","_"," _ "," _ "," _ "," _ "," _ "," _ "," _ "," _ ",null," _ "," _ "," _ "," _ ","",null,null,"0120","0120","Infrastructure / Roads Infrastructure / Roads","Infrastructure / Roads Infrastructure / Roads"," _ "," _ "," _ "," _ "," _ "," _ "," _ ",null," _ "," _ "," _ "," _ "," _ ",null," _ "," _ "," _ "," _ ",null,7,74,"Roads","Road Transport",null,null,0,0,0,0,0,0,3450000,750000,0,"_","_","_","_"]
["C0040-8/IL65531/F0791/X116/R0021/001/CONTRA","C0040-8/IL65531/F0791/X116/R0021/001/CONTRA",123809,0,"Liabilities:Current Liabilities:Trade and Other Payable Exchange Transactions:Payables and Accruals : Contractors:Withdrawals"," _"," _"," _ "," _ "," _ "," _ ","3200","Road transport","3205","Roads","_",2010,"Funded by National Government","C","IL","0380","Current liabilities / Trade and other payables from exchange transactions","_","_"," _ "," _ ","_","_","0200","Cash Payments by Type / Contracted Services","0450","Cash Payments by Type / Contracted Services"," _ "," _ "," _ "," _ ",null,"0361","Trade and other payables / Trade and other payables from exchange transactions","0361","Trade and other payables / Trade and other payables from exchange transactions","",null,null,"0120","0120","Infrastructure / Roads Infrastructure / Roads","Infrastructure / Roads Infrastructure / Roads"," _ "," _ "," _ "," _ "," _ "," _ "," _ ",null," _ "," _ "," _ "," _ "," _ ",null," _ "," _ "," _ "," _ ",null,7,74,"Roads","Road Transport",null,null,0,0,0,0,0,0,0,0,0,"_","_","_","_"]
["C0040-20/IL65531/F0791/X116/R0035/001/CONTRA","C0040-20/IL65531/F0791/X116/R0035/001/CONTRA",124003,0,"Liabilities:Current Liabilities:Trade and Other Payable Exchange Transactions:Payables and Accruals : Contractors:Withdrawals"," _"," _"," _ "," _ "," _ "," _ ","3200","Road transport","3205","Roads","_",2010,"Funded by National Government","C","IL","0380","Current liabilities / Trade and other payables from exchange transactions","_","_"," _ "," _ ","_","_","0200","Cash Payments by Type / Contracted Services","0450","Cash Payments by Type / Contracted Services"," _ "," _ "," _ "," _ ",null,"0361","Trade and other payables / Trade and other payables from exchange transactions","0361","Trade and other payables / Trade and other payables from exchange transactions","",null,null,"0120","0120","Infrastructure / Roads Infrastructure / Roads","Infrastructure / Roads Infrastructure / Roads"," _ "," _ "," _ "," _ "," _ "," _ "," _ ",null," _ "," _ "," _ "," _ "," _ ",null," _ "," _ "," _ "," _ ",null,7,74,"Roads","Road Transport",null,null,0,0,0,0,0,0,0,0,0,"_","_","_","_"]
["C0040-35/IL65531/F0791/X116/R0042/001/CONTRA","C0040-35/IL65531/F0791/X116/R0042/001/CONTRA",124291,0,"Liabilities:Current Liabilities:Trade and Other Payable Exchange Transactions:Payables and Accruals : Contractors:Withdrawals"," _"," _"," _ "," _ "," _ "," _ ","3200","Road transport","3205","Roads","_",2010,"Funded by National Government","C","IL","0380","Current liabilities / Trade and other payables from exchange transactions","_","_"," _ "," _ ","_","_","0200","Cash Payments by Type / Contracted Services","0450","Cash Payments by Type / Contracted Services"," _ "," _ "," _ "," _ ",null,"0361","Trade and other payables / Trade and other payables from exchange transactions","0361","Trade and other payables / Trade and other payables from exchange transactions","",null,null,"0120","0120","Infrastructure / Roads Infrastructure / Roads","Infrastructure / Roads Infrastructure / Roads"," _ "," _ "," _ "," _ "," _ "," _ "," _ ",null," _ "," _ "," _ "," _ "," _ ",null," _ "," _ "," _ "," _ ",null,7,74,"Roads","Road Transport",null,null,0,0,0,0,0,0,26450000,5750000,0,"_","_","_","_"]
["C0040-35/IA01952/F0791/X116/R0042/001/6601","C0040-35/IA01952/F0791/X116/R0042/001/6601",120259,10142,"Assets:Non-current Assets:Construction Work-in-progress:Acquisitions:Outsourced"," _"," _"," _ "," _ "," _ "," _ ","3200","Road transport","3205","Roads","CE",2010,"Funded by National Government","C","IA","0230","Non current assets / Property, plant and equipment","0231","Land: Acquisitions"," _ "," _ ","_","_"," _ "," _ "," _ "," _ "," _ "," _ "," _ "," _ ","0120","0241","Property, plant and equipment (PPE) / PPE at cost/valuation (excl. finance leases)","0241","Property, plant and equipment (PPE) / PPE at cost/valuation (excl. finance leases)","",null,null,"0120","0120","Infrastructure / Roads Infrastructure / Roads","Infrastructure / Roads Infrastructure / Roads"," _ "," _ "," _ "," _ "," _ "," _ "," _ ",null," _ "," _ "," _ "," _ "," _ ",null," _ "," _ "," _ "," _ ",null,7,74,"Roads","Road Transport",null,null,0,0,0,0,0,0,23000000,5000000,0,"_","_","_","_"]
["C0040-38/IA01952/F0791/X116/R0018/001/6601","C0040-38/IA01952/F0791/X116/R0018/001/6601",120623,11507,"Assets:Non-current Assets:Construction Work-in-progress:Acquisitions:Outsourced"," _"," _"," _ "," _ "," _ "," _ ","3200","Road transport","3205","Roads","CE",2010,"Funded by National Government","C","IA","0230","Non current assets / Property, plant and equipment","0231","Land: Acquisitions"," _ "," _ ","_","_"," _ "," _ "," _ "," _ "," _ "," _ "," _ "," _ ","0120","0241","Property, plant and equipment (PPE) / PPE at cost/valuation (excl. finance leases)","0241","Property, plant and equipment (PPE) / PPE at cost/valuation (excl. finance leases)","",null,null,"0120","0120","Infrastructure / Roads Infrastructure / Roads","Infrastructure / Roads Infrastructure / Roads"," _ "," _ "," _ "," _ "," _ "," _ "," _ ",null," _ "," _ "," _ "," _ "," _ ",null," _ "," _ "," _ "," _ ",null,7,74,"Roads","Road Transport",null,null,0,0,0,0,0,0,0,17163560,0,"_","_","_","_"]
["C0040-33/IA01952/F0002/X116/R0042/001/6601","C0040-33/IA01952/F0002/X116/R0042/001/6601",120257,10140,"Assets:Non-current Assets:Construction Work-in-progress:Acquisitions:Outsourced"," _"," _"," _ "," _ "," _ "," _ ","3200","Road transport","3205","Roads","CE",2080,"Funded by Internally generated funds","C","IA","0230","Non current assets / Property, plant and equipment","0231","Land: Acquisitions"," _ "," _ ","_","_"," _ "," _ "," _ "," _ "," _ "," _ "," _ "," _ ","0120","0241","Property, plant and equipment (PPE) / PPE at cost/valuation (excl. finance leases)","0241","Property, plant and equipment (PPE) / PPE at cost/valuation (excl. finance leases)","",null,null,"0120","0120","Infrastructure / Roads Infrastructure / Roads","Infrastructure / Roads Infrastructure / Roads"," _ "," _ "," _ "," _ "," _ "," _ "," _ ",null," _ "," _ "," _ "," _ "," _ ",null," _ "," _ "," _ "," _ ",null,7,74,"Roads","Road Transport",null,null,0,0,0,1000000,0,6000000,0,0,0,"_","_","_","_"]
["C0040-2/IA01952/F0002/X116/R0026/001/6601","C0040-2/IA01952/F0002/X116/R0026/001/6601",30231,1811,"Assets:Non-current Assets:Construction Work-in-progress:Acquisitions:Outsourced"," _"," _"," _ "," _ "," _ "," _ ","3200","Road transport","3205","Roads","CE",2080,"Funded by Internally generated funds","C","IA","0230","Non current assets / Property, plant and equipment","0231","Land: Acquisitions"," _ "," _ ","_","_"," _ "," _ "," _ "," _ "," _ "," _ "," _ "," _ ","0120","0241","Property, plant and equipment (PPE) / PPE at cost/valuation (excl. finance leases)","0241","Property, plant and equipment (PPE) / PPE at cost/valuation (excl. finance leases)","",null,null,"0120","0120","Infrastructure / Roads Infrastructure / Roads","Infrastructure / Roads Infrastructure / Roads"," _ "," _ "," _ "," _ "," _ "," _ "," _ ",null," _ "," _ "," _ "," _ "," _ ",null," _ "," _ "," _ "," _ ",null,7,74,"Roads","Road Transport",null,null,0,0,4910257,0,0,0,0,0,0,"_","_","_","_"]
["C0040-32/IA01952/F0002/X116/R0230/001/6601","C0040-32/IA01952/F0002/X116/R0230/001/6601",110244,9127,"Assets:Non-current Assets:Construction Work-in-progress:Acquisitions:Outsourced"," _"," _"," _ "," _ "," _ "," _ ","3200","Road transport","3205","Roads","CE",2080,"Funded by Internally generated funds","C","IA","0230","Non current assets / Property, plant and equipment","0231","Land: Acquisitions"," _ "," _ ","_","_"," _ "," _ "," _ "," _ "," _ "," _ "," _ "," _ ","0120","0241","Property, plant and equipment (PPE) / PPE at cost/valuation (excl. finance leases)","0241","Property, plant and equipment (PPE) / PPE at cost/valuation (excl. finance leases)","",null,null,"0120","0120","Infrastructure / Roads Infrastructure / Roads","Infrastructure / Roads Infrastructure / Roads"," _ "," _ "," _ "," _ "," _ "," _ "," _ ",null," _ "," _ "," _ "," _ "," _ ",null," _ "," _ "," _ "," _ ",null,7,74,"Roads","Road Transport",null,null,0,3283899,0,0,0,0,0,0,0,"_","_","_","_"]
["C0040-13/IL65531/F0002/X116/R0230/001/CONTRA","C0040-13/IL65531/F0002/X116/R0230/001/CONTRA",123931,0,"Liabilities:Current Liabilities:Trade and Other Payable Exchange Transactions:Payables and Accruals : Contractors:Withdrawals"," _"," _"," _ "," _ "," _ "," _ ","3200","Road transport","3205","Roads","_",2080,"Funded by Internally generated funds","C","IL","0380","Current liabilities / Trade and other payables from exchange transactions","_","_"," _ "," _ ","_","_","0200","Cash Payments by Type / Contracted Services","0450","Cash Payments by Type / Contracted Services"," _ "," _ "," _ "," _ ",null,"0361","Trade and other payables / Trade and other payables from exchange transactions","0361","Trade and other payables / Trade and other payables from exchange transactions","",null,null,"0120","0120","Infrastructure / Roads Infrastructure / Roads","Infrastructure / Roads Infrastructure / Roads"," _ "," _ "," _ "," _ "," _ "," _ "," _ ",null," _ "," _ "," _ "," _ "," _ ",null," _ "," _ "," _ "," _ ",null,7,74,"Roads","Road Transport",null,null,0,0,0,0,0,0,0,0,0,"_","_","_","_"]
["C0040-27/IL65531/F0002/X116/R0035/001/CONTRA","C0040-27/IL65531/F0002/X116/R0035/001/CONTRA",124239,0,"Liabilities:Current Liabilities:Trade and Other Payable Exchange Transactions:Payables and Accruals : Contractors:Withdrawals"," _"," _"," _ "," _ "," _ "," _ ","3200","Road transport","3205","Roads","_",2080,"Funded by Internally generated funds","C","IL","0380","Current liabilities / Trade and other payables from exchange transactions","_","_"," _ "," _ ","_","_","0200","Cash Payments by Type / Contracted Services","0450","Cash Payments by Type / Contracted Services"," _ "," _ "," _ "," _ ",null,"0361","Trade and other payables / Trade and other payables from exchange transactions","0361","Trade and other payables / Trade and other payables from exchange transactions","",null,null,"0120","0120","Infrastructure / Roads Infrastructure / Roads","Infrastructure / Roads Infrastructure / Roads"," _ "," _ "," _ "," _ "," _ "," _ "," _ ",null," _ "," _ "," _ "," _ "," _ ",null," _ "," _ "," _ "," _ ",null,7,74,"Roads","Road Transport",null,null,0,0,0,0,0,0,0,0,0,"_","_","_","_"]
["C0040-20/IL65531/F0002/X116/R0035/001/CONTRA","C0040-20/IL65531/F0002/X116/R0035/001/CONTRA",123999,0,"Liabilities:Current Liabilities:Trade and Other Payable Exchange Transactions:Payables and Accruals : Contractors:Withdrawals"," _"," _"," _ "," _ "," _ "," _ ","3200","Road transport","3205","Roads","_",2080,"Funded by Internally generated funds","C","IL","0380","Current liabilities / Trade and other payables from exchange transactions","_","_"," _ "," _ ","_","_","0200","Cash Payments by Type / Contracted Services","0450","Cash Payments by Type / Contracted Services"," _ "," _ "," _ "," _ ",null,"0361","Trade and other payables / Trade and other payables from exchange transactions","0361","Trade and other payables / Trade and other payables from exchange transactions","",null,null,"0120","0120","Infrastructure / Roads Infrastructure / Roads","Infrastructure / Roads Infrastructure / Roads"," _ "," _ "," _ "," _ "," _ "," _ "," _ ",null," _ "," _ "," _ "," _ "," _ ",null," _ "," _ "," _ "," _ ",null,7,74,"Roads","Road Transport",null,null,0,0,0,0,0,0,0,0,0,"_","_","_","_"]
["C0040-37/IL65531/F0002/X116/R0021/001/CONTRA","C0040-37/IL65531/F0002/X116/R0021/001/CONTRA",124295,0,"Liabilities:Current Liabilities:Trade and Other Payable Exchange Transactions:Payables and Accruals : Contractors:Withdrawals"," _"," _"," _ "," _ "," _ "," _ ","3200","Road transport","3205","Roads","_",2080,"Funded by Internally generated funds","C","IL","0380","Current liabilities / Trade and other payables from exchange transactions","_","_"," _ "," _ ","_","_","0200","Cash Payments by Type / Contracted Services","0450","Cash Payments by Type / Contracted Services"," _ "," _ "," _ "," _ ",null,"0361","Trade and other payables / Trade and other payables from exchange transactions","0361","Trade and other payables / Trade and other payables from exchange transactions","",null,null,"0120","0120","Infrastructure / Roads Infrastructure / Roads","Infrastructure / Roads Infrastructure / Roads"," _ "," _ "," _ "," _ "," _ "," _ "," _ ",null," _ "," _ "," _ "," _ "," _ ",null," _ "," _ "," _ "," _ ",null,7,74,"Roads","Road Transport",null,null,0,0,0,0,0,575000,23000000,23000000,0,"_","_","_","_"]
["C0040-3/IL65530/F0791/X116/R0027/001/CONTRA","C0040-3/IL65530/F0791/X116/R0027/001/CONTRA",123677,0,"Liabilities:Current Liabilities:Trade and Other Payable Exchange Transactions:Payables and Accruals : Contractors:Deposits"," _"," _"," _ "," _ "," _ "," _ ","3200","Road transport","3205","Roads","_",2010,"Funded by National Government","C","IL","0380","Current liabilities / Trade and other payables from exchange transactions","_","_"," _ "," _ ","_","_"," _ "," _ "," _ "," _ "," _ "," _ "," _ "," _ ",null,"0361","Trade and other payables / Trade and other payables from exchange transactions","0361","Trade and other payables / Trade and other payables from exchange transactions","",null,null,"0120","0120","Infrastructure / Roads Infrastructure / Roads","Infrastructure / Roads Infrastructure / Roads"," _ "," _ "," _ "," _ "," _ "," _ "," _ ",null," _ "," _ "," _ "," _ "," _ ",null," _ "," _ "," _ "," _ ",null,7,74,"Roads","Road Transport",null,null,0,0,0,0,0,0,0,0,0,"_","_","_","_"]
["C0040-1/IL65530/F0791/X116/R0044/001/CONTRA","C0040-1/IL65530/F0791/X116/R0044/001/CONTRA",123657,0,"Liabilities:Current Liabilities:Trade and Other Payable Exchange Transactions:Payables and Accruals : Contractors:Deposits"," _"," _"," _ "," _ "," _ "," _ ","3200","Road transport","3205","Roads","_",2010,"Funded by National Government","C","IL","0380","Current liabilities / Trade and other payables from exchange transactions","_","_"," _ "," _ ","_","_"," _ "," _ "," _ "," _ "," _ "," _ "," _ "," _ ",null,"0361","Trade and other payables / Trade and other payables from exchange transactions","0361","Trade and other payables / Trade and other payables from exchange transactions","",null,null,"0120","0120","Infrastructure / Roads Infrastructure / Roads","Infrastructure / Roads Infrastructure / Roads"," _ "," _ "," _ "," _ "," _ "," _ "," _ ",null," _ "," _ "," _ "," _ "," _ ",null," _ "," _ "," _ "," _ ",null,7,74,"Roads","Road Transport",null,null,0,0,0,0,0,0,0,0,0,"_","_","_","_"]
["C0040-15/IL65530/F0002/X116/R0023/001/CONTRA","C0040-15/IL65530/F0002/X116/R0023/001/CONTRA",123954,0,"Liabilities:Current Liabilities:Trade and Other Payable Exchange Transactions:Payables and Accruals : Contractors:Deposits"," _"," _"," _ "," _ "," _ "," _ ","3200","Road transport","3205","Roads","_",2080,"Funded by Internally generated funds","C","IL","0380","Current liabilities / Trade and other payables from exchange transactions","_","_"," _ "," _ ","_","_"," _ "," _ "," _ "," _ "," _ "," _ "," _ "," _ ",null,"0361","Trade and other payables / Trade and other payables from exchange transactions","0361","Trade and other payables / Trade and other payables from exchange transactions","",null,null,"0120","0120","Infrastructure / Roads Infrastructure / Roads","Infrastructure / Roads Infrastructure / Roads"," _ "," _ "," _ "," _ "," _ "," _ "," _ ",null," _ "," _ "," _ "," _ "," _ ",null," _ "," _ "," _ "," _ ",null,7,74,"Roads","Road Transport",null,null,0,0,0,0,0,0,0,0,0,"_","_","_","_"]
["C0040-25/IL65530/F0002/X116/R0230/001/CONTRA","C0040-25/IL65530/F0002/X116/R0230/001/CONTRA",124206,0,"Liabilities:Current Liabilities:Trade and Other Payable Exchange Transactions:Payables and Accruals : Contractors:Deposits"," _"," _"," _ "," _ "," _ "," _ ","3200","Road transport","3205","Roads","_",2080,"Funded by Internally generated funds","C","IL","0380","Current liabilities / Trade and other payables from exchange transactions","_","_"," _ "," _ ","_","_"," _ "," _ "," _ "," _ "," _ "," _ "," _ "," _ ",null,"0361","Trade and other payables / Trade and other payables from exchange transactions","0361","Trade and other payables / Trade and other payables from exchange transactions","",null,null,"0120","0120","Infrastructure / Roads Infrastructure / Roads","Infrastructure / Roads Infrastructure / Roads"," _ "," _ "," _ "," _ "," _ "," _ "," _ ",null," _ "," _ "," _ "," _ "," _ ",null," _ "," _ "," _ "," _ ",null,7,74,"Roads","Road Transport",null,null,0,0,0,0,0,0,0,0,0,"_","_","_","_"]
["C0040-28/IL65530/F0002/X116/R0025/001/CONTRA","C0040-28/IL65530/F0002/X116/R0025/001/CONTRA",124246,0,"Liabilities:Current Liabilities:Trade and Other Payable Exchange Transactions:Payables and Accruals : Contractors:Deposits"," _"," _"," _ "," _ "," _ "," _ ","3200","Road transport","3205","Roads","_",2080,"Funded by Internally generated funds","C","IL","0380","Current liabilities / Trade and other payables from exchange transactions","_","_"," _ "," _ ","_","_"," _ "," _ "," _ "," _ "," _ "," _ "," _ "," _ ",null,"0361","Trade and other payables / Trade and other payables from exchange transactions","0361","Trade and other payables / Trade and other payables from exchange transactions","",null,null,"0120","0120","Infrastructure / Roads Infrastructure / Roads","Infrastructure / Roads Infrastructure / Roads"," _ "," _ "," _ "," _ "," _ "," _ "," _ ",null," _ "," _ "," _ "," _ "," _ ",null," _ "," _ "," _ "," _ ",null,7,74,"Roads","Road Transport",null,null,0,0,0,0,0,0,0,0,0,"_","_","_","_"]
["C0040-2/IL65530/F0002/X116/R0026/001/CONTRA","C0040-2/IL65530/F0002/X116/R0026/001/CONTRA",123661,0,"Liabilities:Current Liabilities:Trade and Other Payable Exchange Transactions:Payables and Accruals : Contractors:Deposits"," _"," _"," _ "," _ "," _ "," _ ","3200","Road transport","3205","Roads","_",2080,"Funded by Internally generated funds","C","IL","0380","Current liabilities / Trade and other payables from exchange transactions","_","_"," _ "," _ ","_","_"," _ "," _ "," _ "," _ "," _ "," _ "," _ "," _ ",null,"0361","Trade and other payables / Trade and other payables from exchange transactions","0361","Trade and other payables / Trade and other payables from exchange transactions","",null,null,"0120","0120","Infrastructure / Roads Infrastructure / Roads","Infrastructure / Roads Infrastructure / Roads"," _ "," _ "," _ "," _ "," _ "," _ "," _ ",null," _ "," _ "," _ "," _ "," _ ",null," _ "," _ "," _ "," _ ",null,7,74,"Roads","Road Transport",null,null,0,0,0,0,0,0,0,0,0,"_","_","_","_"]
["C0040-20/IL65530/F0002/X116/R0035/001/CONTRA","C0040-20/IL65530/F0002/X116/R0035/001/CONTRA",123998,0,"Liabilities:Current Liabilities:Trade and Other Payable Exchange Transactions:Payables and Accruals : Contractors:Deposits"," _"," _"," _ "," _ "," _ "," _ ","3200","Road transport","3205","Roads","_",2080,"Funded by Internally generated funds","C","IL","0380","Current liabilities / Trade and other payables from exchange transactions","_","_"," _ "," _ ","_","_"," _ "," _ "," _ "," _ "," _ "," _ "," _ "," _ ",null,"0361","Trade and other payables / Trade and other payables from exchange transactions","0361","Trade and other payables / Trade and other payables from exchange transactions","",null,null,"0120","0120","Infrastructure / Roads Infrastructure / Roads","Infrastructure / Roads Infrastructure / Roads"," _ "," _ "," _ "," _ "," _ "," _ "," _ ",null," _ "," _ "," _ "," _ "," _ ",null," _ "," _ "," _ "," _ ",null,7,74,"Roads","Road Transport",null,null,0,0,0,0,0,0,0,0,0,"_","_","_","_"]
["C0040-29/IL65530/F0002/X116/R0027/001/CONTRA","C0040-29/IL65530/F0002/X116/R0027/001/CONTRA",124254,0,"Liabilities:Current Liabilities:Trade and Other Payable Exchange Transactions:Payables and Accruals : Contractors:Deposits"," _"," _"," _ "," _ "," _ "," _ ","3200","Road transport","3205","Roads","_",2080,"Funded by Internally generated funds","C","IL","0380","Current liabilities / Trade and other payables from exchange transactions","_","_"," _ "," _ ","_","_"," _ "," _ "," _ "," _ "," _ "," _ "," _ "," _ ",null,"0361","Trade and other payables / Trade and other payables from exchange transactions","0361","Trade and other payables / Trade and other payables from exchange transactions","",null,null,"0120","0120","Infrastructure / Roads Infrastructure / Roads","Infrastructure / Roads Infrastructure / Roads"," _ "," _ "," _ "," _ "," _ "," _ "," _ ",null," _ "," _ "," _ "," _ "," _ ",null," _ "," _ "," _ "," _ ",null,7,74,"Roads","Road Transport",null,null,0,0,0,0,0,-1150000,0,0,0,"_","_","_","_"]
["C0040-30/IL65530/F0002/X116/R0230/001/CONTRA","C0040-30/IL65530/F0002/X116/R0230/001/CONTRA",124210,0,"Liabilities:Current Liabilities:Trade and Other Payable Exchange Transactions:Payables and Accruals : Contractors:Deposits"," _"," _"," _ "," _ "," _ "," _ ","3200","Road transport","3205","Roads","_",2080,"Funded by Internally generated funds","C","IL","0380","Current liabilities / Trade and other payables from exchange transactions","_","_"," _ "," _ ","_","_"," _ "," _ "," _ "," _ "," _ "," _ "," _ "," _ ",null,"0361","Trade and other payables / Trade and other payables from exchange transactions","0361","Trade and other payables / Trade and other payables from exchange transactions","",null,null,"0120","0120","Infrastructure / Roads Infrastructure / Roads","Infrastructure / Roads Infrastructure / Roads"," _ "," _ "," _ "," _ "," _ "," _ "," _ ",null," _ "," _ "," _ "," _ "," _ ",null," _ "," _ "," _ "," _ ",null,7,74,"Roads","Road Transport",null,null,0,0,0,0,0,0,0,0,0,"_","_","_","_"]
["C0040-31/IL65530/F0002/X116/R0230/001/CONTRA","C0040-31/IL65530/F0002/X116/R0230/001/CONTRA",124214,0,"Liabilities:Current Liabilities:Trade and Other Payable Exchange Transactions:Payables and Accruals : Contractors:Deposits"," _"," _"," _ "," _ "," _ "," _ ","3200","Road transport","3205","Roads","_",2080,"Funded by Internally generated funds","C","IL","0380","Current liabilities / Trade and other payables from exchange transactions","_","_"," _ "," _ ","_","_"," _ "," _ "," _ "," _ "," _ "," _ "," _ "," _ ",null,"0361","Trade and other payables / Trade and other payables from exchange transactions","0361","Trade and other payables / Trade and other payables from exchange transactions","",null,null,"0120","0120","Infrastructure / Roads Infrastructure / Roads","Infrastructure / Roads Infrastructure / Roads"," _ "," _ "," _ "," _ "," _ "," _ "," _ ",null," _ "," _ "," _ "," _ "," _ ",null," _ "," _ "," _ "," _ ",null,7,74,"Roads","Road Transport",null,null,0,0,0,0,0,0,0,0,0,"_","_","_","_"]
["C0040-32/IL65530/F0002/X116/R0230/001/CONTRA","C0040-32/IL65530/F0002/X116/R0230/001/CONTRA",124218,0,"Liabilities:Current Liabilities:Trade and Other Payable Exchange Transactions:Payables and Accruals : Contractors:Deposits"," _"," _"," _ "," _ "," _ "," _ ","3200","Road transport","3205","Roads","_",2080,"Funded by Internally generated funds","C","IL","0380","Current liabilities / Trade and other payables from exchange transactions","_","_"," _ "," _ ","_","_"," _ "," _ "," _ "," _ "," _ "," _ "," _ "," _ ",null,"0361","Trade and other payables / Trade and other payables from exchange transactions","0361","Trade and other payables / Trade and other payables from exchange transactions","",null,null,"0120","0120","Infrastructure / Roads Infrastructure / Roads","Infrastructure / Roads Infrastructure / Roads"," _ "," _ "," _ "," _ "," _ "," _ "," _ ",null," _ "," _ "," _ "," _ "," _ ",null," _ "," _ "," _ "," _ ",null,7,74,"Roads","Road Transport",null,null,0,0,0,0,0,0,0,0,0,"_","_","_","_"]
["C0040-33/IL65530/F0002/X116/R0039/001/CONTRA","C0040-33/IL65530/F0002/X116/R0039/001/CONTRA",124270,0,"Liabilities:Current Liabilities:Trade and Other Payable Exchange Transactions:Payables and Accruals : Contractors:Deposits"," _"," _"," _ "," _ "," _ "," _ ","3200","Road transport","3205","Roads","_",2080,"Funded by Internally generated funds","C","IL","0380","Current liabilities / Trade and other payables from exchange transactions","_","_"," _ "," _ ","_","_"," _ "," _ "," _ "," _ "," _ "," _ "," _ "," _ ",null,"0361","Trade and other payables / Trade and other payables from exchange transactions","0361","Trade and other payables / Trade and other payables from exchange transactions","",null,null,"0120","0120","Infrastructure / Roads Infrastructure / Roads","Infrastructure / Roads Infrastructure / Roads"," _ "," _ "," _ "," _ "," _ "," _ "," _ ",null," _ "," _ "," _ "," _ "," _ ",null," _ "," _ "," _ "," _ ",null,7,74,"Roads","Road Transport",null,null,0,0,0,0,0,-575000,0,0,0,"_","_","_","_"]
["C0040-29/IL65530/F0002/X116/R0230/001/CONTRA","C0040-29/IL65530/F0002/X116/R0230/001/CONTRA",124266,0,"Liabilities:Current Liabilities:Trade and Other Payable Exchange Transactions:Payables and Accruals : Contractors:Deposits"," _"," _"," _ "," _ "," _ "," _ ","3200","Road transport","3205","Roads","_",2080,"Funded by Internally generated funds","C","IL","0380","Current liabilities / Trade and other payables from exchange transactions","_","_"," _ "," _ ","_","_"," _ "," _ "," _ "," _ "," _ "," _ "," _ "," _ ",null,"0361","Trade and other payables / Trade and other payables from exchange transactions","0361","Trade and other payables / Trade and other payables from exchange transactions","",null,null,"0120","0120","Infrastructure / Roads Infrastructure / Roads","Infrastructure / Roads Infrastructure / Roads"," _ "," _ "," _ "," _ "," _ "," _ "," _ ",null," _ "," _ "," _ "," _ "," _ ",null," _ "," _ "," _ "," _ ",null,7,74,"Roads","Road Transport",null,null,0,0,0,0,0,-57500,0,0,0,"_","_","_","_"]
["C0040-3/IL65530/F0002/X116/R0027/001/CONTRA","C0040-3/IL65530/F0002/X116/R0027/001/CONTRA",123673,0,"Liabilities:Current Liabilities:Trade and Other Payable Exchange Transactions:Payables and Accruals : Contractors:Deposits"," _"," _"," _ "," _ "," _ "," _ ","3200","Road transport","3205","Roads","_",2080,"Funded by Internally generated funds","C","IL","0380","Current liabilities / Trade and other payables from exchange transactions","_","_"," _ "," _ ","_","_"," _ "," _ "," _ "," _ "," _ "," _ "," _ "," _ ",null,"0361","Trade and other payables / Trade and other payables from exchange transactions","0361","Trade and other payables / Trade and other payables from exchange transactions","",null,null,"0120","0120","Infrastructure / Roads Infrastructure / Roads","Infrastructure / Roads Infrastructure / Roads"," _ "," _ "," _ "," _ "," _ "," _ "," _ ",null," _ "," _ "," _ "," _ "," _ ",null," _ "," _ "," _ "," _ ",null,7,74,"Roads","Road Transport",null,null,0,0,0,0,0,0,0,0,0,"_","_","_","_"]
["C0040-33/IL65530/F0002/X116/R0042/001/CONTRA","C0040-33/IL65530/F0002/X116/R0042/001/CONTRA",124278,0,"Liabilities:Current Liabilities:Trade and Other Payable Exchange Transactions:Payables and Accruals : Contractors:Deposits"," _"," _"," _ "," _ "," _ "," _ ","3200","Road transport","3205","Roads","_",2080,"Funded by Internally generated funds","C","IL","0380","Current liabilities / Trade and other payables from exchange transactions","_","_"," _ "," _ ","_","_"," _ "," _ "," _ "," _ "," _ "," _ "," _ "," _ ",null,"0361","Trade and other payables / Trade and other payables from exchange transactions","0361","Trade and other payables / Trade and other payables from exchange transactions","",null,null,"0120","0120","Infrastructure / Roads Infrastructure / Roads","Infrastructure / Roads Infrastructure / Roads"," _ "," _ "," _ "," _ "," _ "," _ "," _ ",null," _ "," _ "," _ "," _ "," _ ",null," _ "," _ "," _ "," _ ",null,7,74,"Roads","Road Transport",null,null,0,0,0,0,0,-6900000,0,0,0,"_","_","_","_"]
["C0040-36/IL65530/F0002/X116/R0023/001/CONTRA","C0040-36/IL65530/F0002/X116/R0023/001/CONTRA",124310,0,"Liabilities:Current Liabilities:Trade and Other Payable Exchange Transactions:Payables and Accruals : Contractors:Deposits"," _"," _"," _ "," _ "," _ "," _ ","3200","Road transport","3205","Roads","_",2080,"Funded by Internally generated funds","C","IL","0380","Current liabilities / Trade and other payables from exchange transactions","_","_"," _ "," _ ","_","_"," _ "," _ "," _ "," _ "," _ "," _ "," _ "," _ ",null,"0361","Trade and other payables / Trade and other payables from exchange transactions","0361","Trade and other payables / Trade and other payables from exchange transactions","",null,null,"0120","0120","Infrastructure / Roads Infrastructure / Roads","Infrastructure / Roads Infrastructure / Roads"," _ "," _ "," _ "," _ "," _ "," _ "," _ ",null," _ "," _ "," _ "," _ "," _ ",null," _ "," _ "," _ "," _ ",null,7,74,"Roads","Road Transport",null,null,0,0,0,0,0,-575000,0,0,0,"_","_","_","_"]
["C0040-15/IL65530/F0002/X116/R0021/001/CONTRA","C0040-15/IL65530/F0002/X116/R0021/001/CONTRA",123946,0,"Liabilities:Current Liabilities:Trade and Other Payable Exchange Transactions:Payables and Accruals : Contractors:Deposits"," _"," _"," _ "," _ "," _ "," _ ","3200","Road transport","3205","Roads","_",2080,"Funded by Internally generated funds","C","IL","0380","Current liabilities / Trade and other payables from exchange transactions","_","_"," _ "," _ ","_","_"," _ "," _ "," _ "," _ "," _ "," _ "," _ "," _ ",null,"0361","Trade and other payables / Trade and other payables from exchange transactions","0361","Trade and other payables / Trade and other payables from exchange transactions","",null,null,"0120","0120","Infrastructure / Roads Infrastructure / Roads","Infrastructure / Roads Infrastructure / Roads"," _ "," _ "," _ "," _ "," _ "," _ "," _ ",null," _ "," _ "," _ "," _ "," _ ",null," _ "," _ "," _ "," _ ",null,7,74,"Roads","Road Transport",null,null,0,0,0,0,0,0,0,0,0,"_","_","_","_"]
["C0040-13/IL65530/F0002/X116/R0230/001/CONTRA","C0040-13/IL65530/F0002/X116/R0230/001/CONTRA",123930,0,"Liabilities:Current Liabilities:Trade and Other Payable Exchange Transactions:Payables and Accruals : Contractors:Deposits"," _"," _"," _ "," _ "," _ "," _ ","3200","Road transport","3205","Roads","_",2080,"Funded by Internally generated funds","C","IL","0380","Current liabilities / Trade and other payables from exchange transactions","_","_"," _ "," _ ","_","_"," _ "," _ "," _ "," _ "," _ "," _ "," _ "," _ ",null,"0361","Trade and other payables / Trade and other payables from exchange transactions","0361","Trade and other payables / Trade and other payables from exchange transactions","",null,null,"0120","0120","Infrastructure / Roads Infrastructure / Roads","Infrastructure / Roads Infrastructure / Roads"," _ "," _ "," _ "," _ "," _ "," _ "," _ ",null," _ "," _ "," _ "," _ "," _ ",null," _ "," _ "," _ "," _ ",null,7,74,"Roads","Road Transport",null,null,0,0,0,0,0,0,0,0,0,"_","_","_","_"]
["C0040-1/IL65530/F0002/X116/R0044/001/CONTRA","C0040-1/IL65530/F0002/X116/R0044/001/CONTRA",123653,0,"Liabilities:Current Liabilities:Trade and Other Payable Exchange Transactions:Payables and Accruals : Contractors:Deposits"," _"," _"," _ "," _ "," _ "," _ ","3200","Road transport","3205","Roads","_",2080,"Funded by Internally generated funds","C","IL","0380","Current liabilities / Trade and other payables from exchange transactions","_","_"," _ "," _ ","_","_"," _ "," _ "," _ "," _ "," _ "," _ "," _ "," _ ",null,"0361","Trade and other payables / Trade and other payables from exchange transactions","0361","Trade and other payables / Trade and other payables from exchange transactions","",null,null,"0120","0120","Infrastructure / Roads Infrastructure / Roads","Infrastructure / Roads Infrastructure / Roads"," _ "," _ "," _ "," _ "," _ "," _ "," _ ",null," _ "," _ "," _ "," _ "," _ ",null," _ "," _ "," _ "," _ ",null,7,74,"Roads","Road Transport",null,null,0,0,0,0,0,0,0,0,0,"_","_","_","_"]
["C0040-13/IL65530/F0002/X116/R0035/001/CONTRA","C0040-13/IL65530/F0002/X116/R0035/001/CONTRA",123926,0,"Liabilities:Current Liabilities:Trade and Other Payable Exchange Transactions:Payables and Accruals : Contractors:Deposits"," _"," _"," _ "," _ "," _ "," _ ","3200","Road transport","3205","Roads","_",2080,"Funded by Internally generated funds","C","IL","0380","Current liabilities / Trade and other payables from exchange transactions","_","_"," _ "," _ ","_","_"," _ "," _ "," _ "," _ "," _ "," _ "," _ "," _ ",null,"0361","Trade and other payables / Trade and other payables from exchange transactions","0361","Trade and other payables / Trade and other payables from exchange transactions","",null,null,"0120","0120","Infrastructure / Roads Infrastructure / Roads","Infrastructure / Roads Infrastructure / Roads"," _ "," _ "," _ "," _ "," _ "," _ "," _ ",null," _ "," _ "," _ "," _ "," _ ",null," _ "," _ "," _ "," _ ",null,7,74,"Roads","Road Transport",null,null,0,0,0,0,0,0,0,0,0,"_","_","_","_"]
["C0040-12/IL65530/F0002/X047/R0230/001/CONTRA","C0040-12/IL65530/F0002/X047/R0230/001/CONTRA",123729,0,"Liabilities:Current Liabilities:Trade and Other Payable Exchange Transactions:Payables and Accruals : Contractors:Deposits"," _"," _"," _ "," _ "," _ "," _ ","1200","Finance and administration","1202","Asset Management","_",2080,"Funded by Internally generated funds","C","IL","0380","Current liabilities / Trade and other payables from exchange transactions","_","_"," _ "," _ ","_","_"," _ "," _ "," _ "," _ "," _ "," _ "," _ "," _ ",null,"0361","Trade and other payables / Trade and other payables from exchange transactions","0361","Trade and other payables / Trade and other payables from exchange transactions","",null,null,"0120","0120","Infrastructure / Roads Infrastructure / Roads","Infrastructure / Roads Infrastructure / Roads"," _ "," _ "," _ "," _ "," _ "," _ "," _ ",null," _ "," _ "," _ "," _ "," _ ",null," _ "," _ "," _ "," _ ",null,3,33,"Asset Management","Finance & Administration",null,null,0,0,0,0,0,0,0,0,0,"_","_","_","_"]
["C0040-10/IL65530/F0002/X116/R0230/001/CONTRA","C0040-10/IL65530/F0002/X116/R0230/001/CONTRA",123886,0,"Liabilities:Current Liabilities:Trade and Other Payable Exchange Transactions:Payables and Accruals : Contractors:Deposits"," _"," _"," _ "," _ "," _ "," _ ","3200","Road transport","3205","Roads","_",2080,"Funded by Internally generated funds","C","IL","0380","Current liabilities / Trade and other payables from exchange transactions","_","_"," _ "," _ ","_","_"," _ "," _ "," _ "," _ "," _ "," _ "," _ "," _ ",null,"0361","Trade and other payables / Trade and other payables from exchange transactions","0361","Trade and other payables / Trade and other payables from exchange transactions","",null,null,"0120","0120","Infrastructure / Roads Infrastructure / Roads","Infrastructure / Roads Infrastructure / Roads"," _ "," _ "," _ "," _ "," _ "," _ "," _ ",null," _ "," _ "," _ "," _ "," _ ",null," _ "," _ "," _ "," _ ",null,7,74,"Roads","Road Transport",null,null,0,0,0,0,0,-57500,-57500,0,0,"_","_","_","_"]
["C0040-36/IL65530/F0002/X116/R0230/001/CONTRA","C0040-36/IL65530/F0002/X116/R0230/001/CONTRA",124230,0,"Liabilities:Current Liabilities:Trade and Other Payable Exchange Transactions:Payables and Accruals : Contractors:Deposits"," _"," _"," _ "," _ "," _ "," _ ","3200","Road transport","3205","Roads","_",2080,"Funded by Internally generated funds","C","IL","0380","Current liabilities / Trade and other payables from exchange transactions","_","_"," _ "," _ ","_","_"," _ "," _ "," _ "," _ "," _ "," _ "," _ "," _ ",null,"0361","Trade and other payables / Trade and other payables from exchange transactions","0361","Trade and other payables / Trade and other payables from exchange transactions","",null,null,"0120","0120","Infrastructure / Roads Infrastructure / Roads","Infrastructure / Roads Infrastructure / Roads"," _ "," _ "," _ "," _ "," _ "," _ "," _ ",null," _ "," _ "," _ "," _ "," _ ",null," _ "," _ "," _ "," _ ",null,7,74,"Roads","Road Transport",null,null,0,0,0,0,0,0,0,0,0,"_","_","_","_"]
["C0040-37/IL65530/F0002/X116/R0032/001/CONTRA","C0040-37/IL65530/F0002/X116/R0032/001/CONTRA",124318,0,"Liabilities:Current Liabilities:Trade and Other Payable Exchange Transactions:Payables and Accruals : Contractors:Deposits"," _"," _"," _ "," _ "," _ "," _ ","3200","Road transport","3205","Roads","_",2080,"Funded by Internally generated funds","C","IL","0380","Current liabilities / Trade and other payables from exchange transactions","_","_"," _ "," _ ","_","_"," _ "," _ "," _ "," _ "," _ "," _ "," _ "," _ ",null,"0361","Trade and other payables / Trade and other payables from exchange transactions","0361","Trade and other payables / Trade and other payables from exchange transactions","",null,null,"0120","0120","Infrastructure / Roads Infrastructure / Roads","Infrastructure / Roads Infrastructure / Roads"," _ "," _ "," _ "," _ "," _ "," _ "," _ ",null," _ "," _ "," _ "," _ "," _ ",null," _ "," _ "," _ "," _ ",null,7,74,"Roads","Road Transport",null,null,0,0,0,0,0,-575000,0,0,0,"_","_","_","_"]
["C0040-9/IA00130/F0002/X047/R0230/001/6114","C0040-9/IA00130/F0002/X047/R0230/001/6114",69526,4417,"Assets:Non-current Assets:Property, Plant and Equipment:Cost Model:Roads Infrastructure:Accumulated Impairment:Impairment"," _"," _"," _ "," _ "," _ "," _ ","1200","Finance and administration","1202","Asset Management","_",2080,"Funded by Internally generated funds","C","IA","0230","Non current assets / Property, plant and equipment","0231","Land: Acquisitions"," _ "," _ ","_","_"," _ "," _ "," _ "," _ ","0110","Infrastructure / Roads Infrastructure",110,"Infrastructure / Roads Infrastructure",null,"0241","Property, plant and equipment (PPE) / PPE at cost/valuation (excl. finance leases)","0241","Property, plant and equipment (PPE) / PPE at cost/valuation (excl. finance leases)","",null,null,"0120","0120","Infrastructure / Roads Infrastructure / Roads","Infrastructure / Roads Infrastructure / Roads"," _ "," _ "," _ "," _ "," _ "," _ "," _ ",null," _ "," _ "," _ "," _ "," _ ",null," _ "," _ "," _ "," _ ",null,3,33,"Asset Management","Finance & Administration",null,null,-7517925,-6580654,-3067392,0,0,0,0,0,-7517925,"_","_","_","_"]
["C0316-1/IL65530/F0002/X006/R0230/001/CONTRA","C0316-1/IL65530/F0002/X006/R0230/001/CONTRA",123898,0,"Liabilities:Current Liabilities:Trade and Other Payable Exchange Transactions:Payables and Accruals : Contractors:Deposits"," _"," _"," _ "," _ "," _ "," _ ","2100","Community and social services","2106","Community Halls and Facilities","_",2080,"Funded by Internally generated funds","C","IL","0380","Current liabilities / Trade and other payables from exchange transactions","_","_"," _ "," _ ","_","_"," _ "," _ "," _ "," _ "," _ "," _ "," _ "," _ ",null,"0361","Trade and other payables / Trade and other payables from exchange transactions","0361","Trade and other payables / Trade and other payables from exchange transactions","",null,null," _ "," _ "," _ "," _ "," _ "," _ "," _ "," _ "," _ "," _ "," _ ",null," _ "," _ "," _ "," _ "," _ ",null,"0800","Community Assets / Community Facilities / Centres","0800","Community Assets / Community Facilities / Centres",null,2,22,"Community Halls and Facilities","Community and Social Services",null,null,0,0,0,0,0,-1150000,-1265000,-1380000,0,"_","_","_","_"]
["C0316-1/IA01952/F0002/X006/R0230/001/6255","C0316-1/IA01952/F0002/X006/R0230/001/6255",69451,4319,"Assets:Non-current Assets:Construction Work-in-progress:Acquisitions:Outsourced"," _"," _"," _ "," _ "," _ "," _ ","2100","Community and social services","2106","Community Halls and Facilities","CE",2080,"Funded by Internally generated funds","C","IA","0230","Non current assets / Property, plant and equipment","0231","Land: Acquisitions"," _ "," _ ","_","_"," _ "," _ "," _ "," _ "," _ "," _ "," _ "," _ ","0800","0241","Property, plant and equipment (PPE) / PPE at cost/valuation (excl. finance leases)","0241","Property, plant and equipment (PPE) / PPE at cost/valuation (excl. finance leases)","",null,null," _ "," _ "," _ "," _ "," _ "," _ "," _ "," _ "," _ "," _ "," _ ",null," _ "," _ "," _ "," _ "," _ ",null,"0800","Community Assets / Community Facilities / Centres","0800","Community Assets / Community Facilities / Centres",null,2,22,"Community Halls and Facilities","Community and Social Services",null,null,0,0,0,600000,300000,1000000,1100000,1200000,0,"_","_","_","_"]
["C0316-1/IL65531/F0002/X006/R0230/001/CONTRA","C0316-1/IL65531/F0002/X006/R0230/001/CONTRA",123899,0,"Liabilities:Current Liabilities:Trade and Other Payable Exchange Transactions:Payables and Accruals : Contractors:Withdrawals"," _"," _"," _ "," _ "," _ "," _ ","2100","Community and social services","2106","Community Halls and Facilities","_",2080,"Funded by Internally generated funds","C","IL","0380","Current liabilities / Trade and other payables from exchange transactions","_","_"," _ "," _ ","_","_","0200","Cash Payments by Type / Contracted Services","0450","Cash Payments by Type / Contracted Services"," _ "," _ "," _ "," _ ",null,"0361","Trade and other payables / Trade and other payables from exchange transactions","0361","Trade and other payables / Trade and other payables from exchange transactions","",null,null," _ "," _ "," _ "," _ "," _ "," _ "," _ "," _ "," _ "," _ "," _ ",null," _ "," _ "," _ "," _ "," _ ",null,"0800","Community Assets / Community Facilities / Centres","0800","Community Assets / Community Facilities / Centres",null,2,22,"Community Halls and Facilities","Community and Social Services",null,null,0,0,0,0,0,1150000,1265000,1380000,0,"_","_","_","_"]
["C0316-1/IA10370/F0002/X006/R0230/001/CONTRA","C0316-1/IA10370/F0002/X006/R0230/001/CONTRA",123897,0,"Assets:Current Assets:VAT Receivable:Input Tax Capital:Recognised"," _"," _"," _ "," _ "," _ "," _ ","2100","Community and social services","2106","Community Halls and Facilities","_",2080,"Funded by Internally generated funds","C","IA","0170","Current assets / VAT","0170","VAT"," _ "," _ ","_","_"," _ "," _ "," _ "," _ "," _ "," _ "," _ "," _ ",null," _ "," _ "," _ "," _ ","",null,null," _ "," _ "," _ "," _ "," _ "," _ "," _ "," _ "," _ "," _ "," _ ",null," _ "," _ "," _ "," _ "," _ ",null,"0800","Community Assets / Community Facilities / Centres","0800","Community Assets / Community Facilities / Centres",null,2,22,"Community Halls and Facilities","Community and Social Services",null,null,0,0,0,0,0,150000,165000,180000,0,"_","_","_","_"]
["C0316-1/IA02108/F0002/X006/R0230/001/CONTRA","C0316-1/IA02108/F0002/X006/R0230/001/CONTRA",124553,0,"Assets:Current Assets:Cash and Cash Equivalents:Cash at Bank:Bank Account:Specify (replace with account description):Withdrawals"," _"," _"," _ "," _ "," _ "," _ ","2100","Community and social services","2106","Community Halls and Facilities","_",2080,"Funded by Internally generated funds","C","IA","0120","Current assets / Cash and cash equivalents","0120","Cash and cash equivalents"," _ "," _ ","_","_","0310","Other Cash Flows/Payments by Type / Capital assets","0510","Capital assets"," _ "," _ "," _ "," _ ",null," _ "," _ "," _ "," _ ","",null,"W"," _ "," _ "," _ "," _ "," _ "," _ "," _ "," _ "," _ "," _ "," _ ",null," _ "," _ "," _ "," _ "," _ ",null,"0800","Community Assets / Community Facilities / Centres","0800","Community Assets / Community Facilities / Centres",null,2,22,"Community Halls and Facilities","Community and Social Services",null,null,0,0,0,0,0,0,0,0,0,"_","_","_","_"]
["C0316-1/IA02105/F0002/X006/R0230/001/CONTRA","C0316-1/IA02105/F0002/X006/R0230/001/CONTRA",123896,0,"Assets:Current Assets:Cash and Cash Equivalents:Cash at Bank:Bank Account:Specify (replace with account description):Deposits"," _"," _"," _ "," _ "," _ "," _ ","2100","Community and social services","2106","Community Halls and Facilities","_",2080,"Funded by Internally generated funds","C","IA","0120","Current assets / Cash and cash equivalents","0120","Cash and cash equivalents"," _ "," _ ","_","_","","Recepts - Cash and Cash Equivalents","0510","Recepts - Cash and Cash Equivalents"," _ "," _ "," _ "," _ ",null," _ "," _ "," _ "," _ ","",null,"D"," _ "," _ "," _ "," _ "," _ "," _ "," _ "," _ "," _ "," _ "," _ ",null," _ "," _ "," _ "," _ "," _ ",null,"0800","Community Assets / Community Facilities / Centres","0800","Community Assets / Community Facilities / Centres",null,2,22,"Community Halls and Facilities","Community and Social Services",null,null,0,0,0,0,0,-1150000,-1265000,-1380000,0,"_","_","_","_"]
["O0017-1/IL53820/F0041/X006/R0230/001/CONTRA","O0017-1/IL53820/F0041/X006/R0230/001/CONTRA",122899,0,"Liabilities:Current Liabilities:Trade and Other Payable Exchange Transactions:Payables and Accruals : General:Deposits"," _"," _"," _ "," _ "," _ "," _ ","2100","Community and social services","2106","Community Halls and Facilities","_"," _"," _","O","IL","0380","Current liabilities / Trade and other payables from exchange transactions","_","_"," _ "," _ ","_","_"," _ "," _ "," _ "," _ "," _ "," _ "," _ "," _ ",null,"0361","Trade and other payables / Trade and other payables from exchange transactions","0361","Trade and other payables / Trade and other payables from exchange transactions","",null,null," _ "," _ "," _ "," _ "," _ "," _ "," _ "," _ "," _ "," _ "," _ ",null," _ "," _ "," _ "," _ "," _ ",null," _ "," _ "," _ "," _ ",null,2,22,"Community Halls and Facilities","Community and Social Services",null,null,0,0,0,0,0,-115000,-126500,-138000,0,"_","_","_","_"]
["O0017-1/IA10375/F0041/X006/R0230/001/CONTRA","O0017-1/IA10375/F0041/X006/R0230/001/CONTRA",122898,0,"Assets:Current Assets:VAT Receivable:Input Tax Accrual:Recognised"," _"," _"," _ "," _ "," _ "," _ ","2100","Community and social services","2106","Community Halls and Facilities","_"," _"," _","O","IA","0170","Current assets / VAT","0170","VAT"," _ "," _ ","_","_"," _ "," _ "," _ "," _ "," _ "," _ "," _ "," _ ",null," _ "," _ "," _ "," _ ","",null,null," _ "," _ "," _ "," _ "," _ "," _ "," _ "," _ "," _ "," _ "," _ ",null," _ "," _ "," _ "," _ "," _ ",null," _ "," _ "," _ "," _ ",null,2,22,"Community Halls and Facilities","Community and Social Services",null,null,0,0,0,0,0,15000,16500,18000,0,"_","_","_","_"]
["O0017-1/IA02108/F0041/X006/R0230/001/CONTRA","O0017-1/IA02108/F0041/X006/R0230/001/CONTRA",122897,0,"Assets:Current Assets:Cash and Cash Equivalents:Cash at Bank:Bank Account:Specify (replace with account description):Withdrawals"," _"," _"," _ "," _ "," _ "," _ ","2100","Community and social services","2106","Community Halls and Facilities","_"," _"," _","O","IA","0120","Current assets / Cash and cash equivalents","0120","Cash and cash equivalents","0150W","CASH FLOW FROM OPERATING ACTIVITIES / Receipts / Transfers and Subsidies - Operational","0150W","CASH FLOW FROM OPERATING ACTIVITIES / Receipts / Transfers and Subsidies - Operational"," _ "," _ "," _ "," _ "," _ "," _ "," _ "," _ ",null," _ "," _ "," _ "," _ ","0240","Cash Receipts By Source / Transfers and Subsidies - Operational","W"," _ "," _ "," _ "," _ "," _ "," _ "," _ "," _ "," _ "," _ "," _ ",null," _ "," _ "," _ "," _ "," _ ",null," _ "," _ "," _ "," _ ",null,2,22,"Community Halls and Facilities","Community and Social Services",null,null,0,0,0,0,0,-115000,-126500,-138000,0,"_","_","_","_"]
["O0017-1/IE00575/F0041/X006/R0230/001/6255","O0017-1/IE00575/F0041/X006/R0230/001/6255",69057,4302,"Expenditure:Operational Cost:Land Alienation Costs","4100","Expenditure / Operational costs","2904","Expenditure / Operational costs","2904","Operational Costs ","2100","Community and social services","2106","Community Halls and Facilities","_"," _"," _","O","IE"," _ "," _ "," _ "," _ "," _ "," _ ","_","_"," _ "," _ "," _ "," _ "," _ "," _ "," _ "," _ ",null," _ "," _ "," _ "," _ ","",null,null," _ "," _ "," _ "," _ "," _ "," _ "," _ "," _ "," _ "," _ "," _ ",null," _ "," _ "," _ "," _ "," _ ",null," _ "," _ "," _ "," _ ",null,2,22,"Community Halls and Facilities","Community and Social Services",null,null,0,0,0,80000,80000,100000,110000,120000,0,"_","_","_","_"]
["O0017-1/IL53821/F0041/X006/R0230/001/CONTRA","O0017-1/IL53821/F0041/X006/R0230/001/CONTRA",122900,0,"Liabilities:Current Liabilities:Trade and Other Payable Exchange Transactions:Payables and Accruals : General:Withdrawals"," _"," _"," _ "," _ "," _ "," _ ","2100","Community and social services","2106","Community Halls and Facilities","_"," _"," _","O","IL","0380","Current liabilities / Trade and other payables from exchange transactions","_","_"," _ "," _ ","_","_","0200","Cash Payments by Type / Other expenditure","0480","Other expenditure"," _ "," _ "," _ "," _ ",null,"0361","Trade and other payables / Trade and other payables from exchange transactions","0361","Trade and other payables / Trade and other payables from exchange transactions","",null,null," _ "," _ "," _ "," _ "," _ "," _ "," _ "," _ "," _ "," _ "," _ ",null," _ "," _ "," _ "," _ "," _ ",null," _ "," _ "," _ "," _ ",null,2,22,"Community Halls and Facilities","Community and Social Services",null,null,0,0,0,0,0,115000,126500,138000,0,"_","_","_","_"]
["O1436-3/IL53821/F0041/X052/R0229/001/CONTRA","O1436-3/IL53821/F0041/X052/R0229/001/CONTRA",122956,0,"Liabilities:Current Liabilities:Trade and Other Payable Exchange Transactions:Payables and Accruals : General:Withdrawals"," _"," _"," _ "," _ "," _ "," _ ","1200","Finance and administration","1207","Information Technology","_"," _"," _","O","IL","0380","Current liabilities / Trade and other payables from exchange transactions","_","_"," _ "," _ ","_","_","0200","Cash Payments by Type / Other expenditure","0480","Other expenditure"," _ "," _ "," _ "," _ ",null,"0361","Trade and other payables / Trade and other payables from exchange transactions","0361","Trade and other payables / Trade and other payables from exchange transactions","",null,null," _ "," _ "," _ "," _ "," _ "," _ "," _ "," _ "," _ "," _ "," _ ",null," _ "," _ "," _ "," _ "," _ ",null," _ "," _ "," _ "," _ ",null,14,143,"Information Technology","Finance & Administration 2",null,null,0,0,0,0,0,0,0,0,0,"_","_","_","_"]
["O1436-3/IA02108/F0041/X052/R0229/001/CONTRA","O1436-3/IA02108/F0041/X052/R0229/001/CONTRA",122953,0,"Assets:Current Assets:Cash and Cash Equivalents:Cash at Bank:Bank Account:Specify (replace with account description):Withdrawals"," _"," _"," _ "," _ "," _ "," _ ","1200","Finance and administration","1207","Information Technology","_"," _"," _","O","IA","0120","Current assets / Cash and cash equivalents","0120","Cash and cash equivalents","0150W","CASH FLOW FROM OPERATING ACTIVITIES / Receipts / Transfers and Subsidies - Operational","0150W","CASH FLOW FROM OPERATING ACTIVITIES / Receipts / Transfers and Subsidies - Operational"," _ "," _ "," _ "," _ "," _ "," _ "," _ "," _ ",null," _ "," _ "," _ "," _ ","0240","Cash Receipts By Source / Transfers and Subsidies - Operational","W"," _ "," _ "," _ "," _ "," _ "," _ "," _ "," _ "," _ "," _ "," _ ",null," _ "," _ "," _ "," _ "," _ ",null," _ "," _ "," _ "," _ ",null,14,143,"Information Technology","Finance & Administration 2",null,null,0,0,0,0,0,0,0,0,0,"_","_","_","_"]
["O1436-3/IE00598/F0041/X052/R0229/001/6105","O1436-3/IE00598/F0041/X052/R0229/001/6105",69605,4496,"Expenditure:Operational Cost:Storage of Files (Archiving)","4100","Expenditure / Operational costs","2904","Expenditure / Operational costs","2904","Operational Costs ","1200","Finance and administration","1207","Information Technology","_"," _"," _","O","IE"," _ "," _ "," _ "," _ "," _ "," _ ","_","_"," _ "," _ "," _ "," _ "," _ "," _ "," _ "," _ ",null," _ "," _ "," _ "," _ ","",null,null," _ "," _ "," _ "," _ "," _ "," _ "," _ "," _ "," _ "," _ "," _ ",null," _ "," _ "," _ "," _ "," _ ",null," _ "," _ "," _ "," _ ",null,14,143,"Information Technology","Finance & Administration 2",null,null,0,0,0,0,0,0,0,0,0,"_","_","_","_"]
["O1436-3/IA10375/F0041/X052/R0229/001/CONTRA","O1436-3/IA10375/F0041/X052/R0229/001/CONTRA",122954,0,"Assets:Current Assets:VAT Receivable:Input Tax Accrual:Recognised"," _"," _"," _ "," _ "," _ "," _ ","1200","Finance and administration","1207","Information Technology","_"," _"," _","O","IA","0170","Current assets / VAT","0170","VAT"," _ "," _ ","_","_"," _ "," _ "," _ "," _ "," _ "," _ "," _ "," _ ",null," _ "," _ "," _ "," _ ","",null,null," _ "," _ "," _ "," _ "," _ "," _ "," _ "," _ "," _ "," _ "," _ ",null," _ "," _ "," _ "," _ "," _ ",null," _ "," _ "," _ "," _ ",null,14,143,"Information Technology","Finance & Administration 2",null,null,0,0,0,0,0,0,0,0,0,"_","_","_","_"]
["O1436-3/IL53820/F0041/X052/R0229/001/CONTRA","O1436-3/IL53820/F0041/X052/R0229/001/CONTRA",122955,0,"Liabilities:Current Liabilities:Trade and Other Payable Exchange Transactions:Payables and Accruals : General:Deposits"," _"," _"," _ "," _ "," _ "," _ ","1200","Finance and administration","1207","Information Technology","_"," _"," _","O","IL","0380","Current liabilities / Trade and other payables from exchange transactions","_","_"," _ "," _ ","_","_"," _ "," _ "," _ "," _ "," _ "," _ "," _ "," _ ",null,"0361","Trade and other payables / Trade and other payables from exchange transactions","0361","Trade and other payables / Trade and other payables from exchange transactions","",null,null," _ "," _ "," _ "," _ "," _ "," _ "," _ "," _ "," _ "," _ "," _ ",null," _ "," _ "," _ "," _ "," _ ",null," _ "," _ "," _ "," _ ",null,14,143,"Information Technology","Finance & Administration 2",null,null,0,0,0,0,0,0,0,0,0,"_","_","_","_"]
["C0136-1/IA02105/F0791/X116/R0230/001/CONTRA","C0136-1/IA02105/F0791/X116/R0230/001/CONTRA",122723,0,"Assets:Current Assets:Cash and Cash Equivalents:Cash at Bank:Bank Account:Specify (replace with account description):Deposits"," _"," _"," _ "," _ "," _ "," _ ","3200","Road transport","3205","Roads","_",2010,"Funded by National Government","C","IA","0120","Current assets / Cash and cash equivalents","0120","Cash and cash equivalents","0","CASH FLOW FROM OPERATING ACTIVITIES / Receipts / Transfers and Subsidies - Capital","0","Transfers - National, Provincial, District Municipalities ","","Recepts - Cash and Cash Equivalents","0510","Recepts - Cash and Cash Equivalents"," _ "," _ "," _ "," _ ",null," _ "," _ "," _ "," _ ","0280","Other Cash Flows by Source / Transfers and subsidies - capital (monetary allocations) (National / Provincial and District)","D"," _ "," _ "," _ "," _ ","0180","Infrastructure / Storm water Infrastructure / Storm water Conveyance"," _ "," _ ","0180"," _ "," _ ",null," _ "," _ ","Infrastructure / Storm water Infrastructure / Storm water Conveyance"," _ "," _ ",null," _ "," _ "," _ "," _ ",null,7,74,"Roads","Road Transport",null,null,0,0,0,0,0,0,0,0,0,"_","_","_","_"]
["C0136-1/IA10370/F0791/X116/R0230/001/CONTRA","C0136-1/IA10370/F0791/X116/R0230/001/CONTRA",122724,0,"Assets:Current Assets:VAT Receivable:Input Tax Capital:Recognised"," _"," _"," _ "," _ "," _ "," _ ","3200","Road transport","3205","Roads","_",2010,"Funded by National Government","C","IA","0170","Current assets / VAT","0170","VAT"," _ "," _ ","_","_"," _ "," _ "," _ "," _ "," _ "," _ "," _ "," _ ",null," _ "," _ "," _ "," _ ","",null,null," _ "," _ "," _ "," _ ","0180","Infrastructure / Storm water Infrastructure / Storm water Conveyance"," _ "," _ ","0180"," _ "," _ ",null," _ "," _ ","Infrastructure / Storm water Infrastructure / Storm water Conveyance"," _ "," _ ",null," _ "," _ "," _ "," _ ",null,7,74,"Roads","Road Transport",null,null,0,0,0,0,0,0,0,0,0,"_","_","_","_"]
["C0136-1/IA02108/F0791/X116/R0230/001/CONTRA","C0136-1/IA02108/F0791/X116/R0230/001/CONTRA",124524,0,"Assets:Current Assets:Cash and Cash Equivalents:Cash at Bank:Bank Account:Specify (replace with account description):Withdrawals"," _"," _"," _ "," _ "," _ "," _ ","3200","Road transport","3205","Roads","_",2010,"Funded by National Government","C","IA","0120","Current assets / Cash and cash equivalents","0120","Cash and cash equivalents","0160W","CASH FLOW FROM OPERATING ACTIVITIES / Receipts / Transfers and Subsidies - Capital","0160W","CASH FLOW FROM OPERATING ACTIVITIES / Receipts / Transfers and Subsidies - Capital","0310","Other Cash Flows/Payments by Type / Capital assets","0510","Capital assets"," _ "," _ "," _ "," _ ",null," _ "," _ "," _ "," _ ","0280","Other Cash Flows by Source / Transfers and subsidies - capital (monetary allocations) (National / Provincial and District)","W"," _ "," _ "," _ "," _ ","0180","Infrastructure / Storm water Infrastructure / Storm water Conveyance"," _ "," _ ","0180"," _ "," _ ",null," _ "," _ ","Infrastructure / Storm water Infrastructure / Storm water Conveyance"," _ "," _ ",null," _ "," _ "," _ "," _ ",null,7,74,"Roads","Road Transport",null,null,0,0,0,0,0,0,0,0,0,"_","_","_","_"]
["C0136-1/IL65531/F0791/X116/R0230/001/CONTRA","C0136-1/IL65531/F0791/X116/R0230/001/CONTRA",122726,0,"Liabilities:Current Liabilities:Trade and Other Payable Exchange Transactions:Payables and Accruals : Contractors:Withdrawals"," _"," _"," _ "," _ "," _ "," _ ","3200","Road transport","3205","Roads","_",2010,"Funded by National Government","C","IL","0380","Current liabilities / Trade and other payables from exchange transactions","_","_"," _ "," _ ","_","_","0200","Cash Payments by Type / Contracted Services","0450","Cash Payments by Type / Contracted Services"," _ "," _ "," _ "," _ ",null,"0361","Trade and other payables / Trade and other payables from exchange transactions","0361","Trade and other payables / Trade and other payables from exchange transactions","",null,null," _ "," _ "," _ "," _ ","0180","Infrastructure / Storm water Infrastructure / Storm water Conveyance"," _ "," _ ","0180"," _ "," _ ",null," _ "," _ ","Infrastructure / Storm water Infrastructure / Storm water Conveyance"," _ "," _ ",null," _ "," _ "," _ "," _ ",null,7,74,"Roads","Road Transport",null,null,0,0,0,0,0,0,0,0,0,"_","_","_","_"]
["C0136-1/IL65530/F0791/X116/R0230/001/CONTRA","C0136-1/IL65530/F0791/X116/R0230/001/CONTRA",122725,0,"Liabilities:Current Liabilities:Trade and Other Payable Exchange Transactions:Payables and Accruals : Contractors:Deposits"," _"," _"," _ "," _ "," _ "," _ ","3200","Road transport","3205","Roads","_",2010,"Funded by National Government","C","IL","0380","Current liabilities / Trade and other payables from exchange transactions","_","_"," _ "," _ ","_","_"," _ "," _ "," _ "," _ "," _ "," _ "," _ "," _ ",null,"0361","Trade and other payables / Trade and other payables from exchange transactions","0361","Trade and other payables / Trade and other payables from exchange transactions","",null,null," _ "," _ "," _ "," _ ","0180","Infrastructure / Storm water Infrastructure / Storm water Conveyance"," _ "," _ ","0180"," _ "," _ ",null," _ "," _ ","Infrastructure / Storm water Infrastructure / Storm water Conveyance"," _ "," _ ",null," _ "," _ "," _ "," _ ",null,7,74,"Roads","Road Transport",null,null,0,0,0,0,0,0,0,0,0,"_","_","_","_"]
["C0136-1/IA00192/F0791/X116/R0230/001/6601","C0136-1/IA00192/F0791/X116/R0230/001/6601",61431,4150,"Assets:Non-current Assets:Property, Plant and Equipment:Cost Model:Storm water Infrastructure:Cost:Acquisitions"," _"," _"," _ "," _ "," _ "," _ ","3200","Road transport","3205","Roads","CE",2010,"Funded by National Government","C","IA","0230","Non current assets / Property, plant and equipment","0231","Land: Acquisitions"," _ "," _ ","_","_"," _ "," _ "," _ "," _ ","0160","Infrastructure / Storm water Infrastructure",160,"Infrastructure / Storm water Infrastructure",null,"0241","Property, plant and equipment (PPE) / PPE at cost/valuation (excl. finance leases)","0241","Property, plant and equipment (PPE) / PPE at cost/valuation (excl. finance leases)","",null,null," _ "," _ "," _ "," _ ","0180","Infrastructure / Storm water Infrastructure / Storm water Conveyance"," _ "," _ ","0180"," _ "," _ ",null," _ "," _ ","Infrastructure / Storm water Infrastructure / Storm water Conveyance"," _ "," _ ",null," _ "," _ "," _ "," _ ",null,7,74,"Roads","Road Transport",null,null,0,0,0,0,0,0,0,0,0,"_","_","_","_"]
["O1291-1/IE00754/F0930/X044/R0230/001/6057","O1291-1/IE00754/F0930/X044/R0230/001/6057",30825,1935,"Expenditure:Operational Cost:Advertising, Publicity and Marketing:Gifts and Promotional Items","4100","Expenditure / Operational costs","2904","Expenditure / Operational costs","2904","Operational Costs ","1100","Executive and council","1110","Mayor and Council","_"," _"," _","O","IE"," _ "," _ "," _ "," _ "," _ "," _ ","_","_"," _ "," _ "," _ "," _ "," _ "," _ "," _ "," _ ",null," _ "," _ "," _ "," _ ","",null,null," _ "," _ "," _ "," _ "," _ "," _ "," _ "," _ "," _ "," _ "," _ ",null," _ "," _ "," _ "," _ "," _ ",null," _ "," _ "," _ "," _ ",null,5,52,"Mayor and Council","Executive & Council",null,null,0,0,0,50000,0,50000,50000,50000,0,"_","_","_","_"]
["O1291-1/IL53821/F0930/X044/R0230/001/CONTRA","O1291-1/IL53821/F0930/X044/R0230/001/CONTRA",122103,0,"Liabilities:Current Liabilities:Trade and Other Payable Exchange Transactions:Payables and Accruals : General:Withdrawals"," _"," _"," _ "," _ "," _ "," _ ","1100","Executive and council","1110","Mayor and Council","_"," _"," _","O","IL","0380","Current liabilities / Trade and other payables from exchange transactions","_","_"," _ "," _ ","_","_","0200","Cash Payments by Type / Other expenditure","0480","Other expenditure"," _ "," _ "," _ "," _ ",null,"0361","Trade and other payables / Trade and other payables from exchange transactions","0361","Trade and other payables / Trade and other payables from exchange transactions","",null,null," _ "," _ "," _ "," _ "," _ "," _ "," _ "," _ "," _ "," _ "," _ ",null," _ "," _ "," _ "," _ "," _ ",null," _ "," _ "," _ "," _ ",null,5,52,"Mayor and Council","Executive & Council",null,null,0,0,0,0,0,460000,471500,483000,0,"_","_","_","_"]
["O1291-1/IE00677/F0930/X044/R0230/001/6057","O1291-1/IE00677/F0930/X044/R0230/001/6057",30827,1937,"Expenditure:Contracted Services:Outsourced Services:Catering Services","3800","Expenditure / Contracted services","2701","Expenditure / Contracted services","2701","Contracted Services ","1100","Executive and council","1110","Mayor and Council","_"," _"," _","O","IE"," _ "," _ "," _ "," _ "," _ "," _ ","_","_"," _ "," _ "," _ "," _ "," _ "," _ "," _ "," _ ",null," _ "," _ "," _ "," _ ","",null,null," _ "," _ "," _ "," _ "," _ "," _ "," _ "," _ "," _ "," _ "," _ ",null," _ "," _ "," _ "," _ "," _ ",null," _ "," _ "," _ "," _ ",null,5,52,"Mayor and Council","Executive & Council",null,null,67000,0,133050,200000,755000,400000,410000,420000,600098,"_","_","_","_"]
["O1291-1/IE00060/F0930/X044/R0230/001/6057","O1291-1/IE00060/F0930/X044/R0230/001/6057",30824,1934,"Expenditure:Operational Cost:Travel and Subsistence:Domestic:Accommodation","4100","Expenditure / Operational costs","2904","Expenditure / Operational costs","2904","Operational Costs ","1100","Executive and council","1110","Mayor and Council","_"," _"," _","O","IE"," _ "," _ "," _ "," _ "," _ "," _ ","_","_"," _ "," _ "," _ "," _ "," _ "," _ "," _ "," _ ",null," _ "," _ "," _ "," _ ","",null,null," _ "," _ "," _ "," _ "," _ "," _ "," _ "," _ "," _ "," _ "," _ ",null," _ "," _ "," _ "," _ "," _ ",null," _ "," _ "," _ "," _ ",null,5,52,"Mayor and Council","Executive & Council",null,null,477566,0,0,100000,0,0,0,0,0,"_","_","_","_"]
["O1291-1/IL65530/F0930/X044/R0230/001/CONTRA","O1291-1/IL65530/F0930/X044/R0230/001/CONTRA",122104,0,"Liabilities:Current Liabilities:Trade and Other Payable Exchange Transactions:Payables and Accruals : Contractors:Deposits"," _"," _"," _ "," _ "," _ "," _ ","1100","Executive and council","1110","Mayor and Council","_"," _"," _","O","IL","0380","Current liabilities / Trade and other payables from exchange transactions","_","_"," _ "," _ ","_","_"," _ "," _ "," _ "," _ "," _ "," _ "," _ "," _ ",null,"0361","Trade and other payables / Trade and other payables from exchange transactions","0361","Trade and other payables / Trade and other payables from exchange transactions","",null,null," _ "," _ "," _ "," _ "," _ "," _ "," _ "," _ "," _ "," _ "," _ ",null," _ "," _ "," _ "," _ "," _ ",null," _ "," _ "," _ "," _ ",null,5,52,"Mayor and Council","Executive & Council",null,null,0,0,0,0,0,-690000,-724500,-747500,0,"_","_","_","_"]
["O1291-1/IL65531/F0930/X044/R0230/001/CONTRA","O1291-1/IL65531/F0930/X044/R0230/001/CONTRA",122105,0,"Liabilities:Current Liabilities:Trade and Other Payable Exchange Transactions:Payables and Accruals : Contractors:Withdrawals"," _"," _"," _ "," _ "," _ "," _ ","1100","Executive and council","1110","Mayor and Council","_"," _"," _","O","IL","0380","Current liabilities / Trade and other payables from exchange transactions","_","_"," _ "," _ ","_","_","0200","Cash Payments by Type / Contracted Services","0450","Cash Payments by Type / Contracted Services"," _ "," _ "," _ "," _ ",null,"0361","Trade and other payables / Trade and other payables from exchange transactions","0361","Trade and other payables / Trade and other payables from exchange transactions","",null,null," _ "," _ "," _ "," _ "," _ "," _ "," _ "," _ "," _ "," _ "," _ ",null," _ "," _ "," _ "," _ "," _ ",null," _ "," _ "," _ "," _ ",null,5,52,"Mayor and Council","Executive & Council",null,null,0,0,0,0,0,690000,724500,747500,0,"_","_","_","_"]
["O1291-1/IE00703/F0930/X044/R0230/001/6057","O1291-1/IE00703/F0930/X044/R0230/001/6057",30828,1938,"Expenditure:Contracted Services:Outsourced Services:Transport Services","3800","Expenditure / Contracted services","2701","Expenditure / Contracted services","2701","Contracted Services ","1100","Executive and council","1110","Mayor and Council","_"," _"," _","O","IE"," _ "," _ "," _ "," _ "," _ "," _ ","_","_"," _ "," _ "," _ "," _ "," _ "," _ "," _ "," _ ",null," _ "," _ "," _ "," _ ","",null,null," _ "," _ "," _ "," _ "," _ "," _ "," _ "," _ "," _ "," _ "," _ ",null," _ "," _ "," _ "," _ "," _ ",null," _ "," _ "," _ "," _ ",null,5,52,"Mayor and Council","Executive & Council",null,null,24000,0,2500,150000,300000,200000,220000,230000,173743,"_","_","_","_"]
["O1291-1/IA02108/F0930/X044/R0230/001/CONTRA","O1291-1/IA02108/F0930/X044/R0230/001/CONTRA",122100,0,"Assets:Current Assets:Cash and Cash Equivalents:Cash at Bank:Bank Account:Specify (replace with account description):Withdrawals"," _"," _"," _ "," _ "," _ "," _ ","1100","Executive and council","1110","Mayor and Council","_"," _"," _","O","IA","0120","Current assets / Cash and cash equivalents","0120","Cash and cash equivalents","0130W","CASH FLOW FROM OPERATING ACTIVITIES / Receipts / Service charges","0130W","Service charges - refuse revenue"," _ "," _ "," _ "," _ "," _ "," _ "," _ "," _ ",null," _ "," _ "," _ "," _ ","0150","Cash Receipts By Source / Service charges - refuse revenue","W"," _ "," _ "," _ "," _ "," _ "," _ "," _ "," _ "," _ "," _ "," _ ",null," _ "," _ "," _ "," _ "," _ ",null," _ "," _ "," _ "," _ ",null,5,52,"Mayor and Council","Executive & Council",null,null,0,0,0,0,0,-1150000,-1196000,-1230500,0,"_","_","_","_"]
["O1291-1/IL53820/F0930/X044/R0230/001/CONTRA","O1291-1/IL53820/F0930/X044/R0230/001/CONTRA",122102,0,"Liabilities:Current Liabilities:Trade and Other Payable Exchange Transactions:Payables and Accruals : General:Deposits"," _"," _"," _ "," _ "," _ "," _ ","1100","Executive and council","1110","Mayor and Council","_"," _"," _","O","IL","0380","Current liabilities / Trade and other payables from exchange transactions","_","_"," _ "," _ ","_","_"," _ "," _ "," _ "," _ "," _ "," _ "," _ "," _ ",null,"0361","Trade and other payables / Trade and other payables from exchange transactions","0361","Trade and other payables / Trade and other payables from exchange transactions","",null,null," _ "," _ "," _ "," _ "," _ "," _ "," _ "," _ "," _ "," _ "," _ ",null," _ "," _ "," _ "," _ "," _ ",null," _ "," _ "," _ "," _ ",null,5,52,"Mayor and Council","Executive & Council",null,null,0,0,0,0,0,-460000,-471500,-483000,0,"_","_","_","_"]
["O1291-1/IA10375/F0930/X044/R0230/001/CONTRA","O1291-1/IA10375/F0930/X044/R0230/001/CONTRA",122101,0,"Assets:Current Assets:VAT Receivable:Input Tax Accrual:Recognised"," _"," _"," _ "," _ "," _ "," _ ","1100","Executive and council","1110","Mayor and Council","_"," _"," _","O","IA","0170","Current assets / VAT","0170","VAT"," _ "," _ ","_","_"," _ "," _ "," _ "," _ "," _ "," _ "," _ "," _ ",null," _ "," _ "," _ "," _ ","",null,null," _ "," _ "," _ "," _ "," _ "," _ "," _ "," _ "," _ "," _ "," _ ",null," _ "," _ "," _ "," _ "," _ ",null," _ "," _ "," _ "," _ ",null,5,52,"Mayor and Council","Executive & Council",null,null,0,0,0,0,0,150000,156000,160500,0,"_","_","_","_"]
["O1291-1/IE00571/F0930/X044/R0230/001/6057","O1291-1/IE00571/F0930/X044/R0230/001/6057",30826,1936,"Expenditure:Operational Cost:Hire Charges","4100","Expenditure / Operational costs","2904","Expenditure / Operational costs","2904","Operational Costs ","1100","Executive and council","1110","Mayor and Council","_"," _"," _","O","IE"," _ "," _ "," _ "," _ "," _ "," _ ","_","_"," _ "," _ "," _ "," _ "," _ "," _ "," _ "," _ ",null," _ "," _ "," _ "," _ ","",null,null," _ "," _ "," _ "," _ "," _ "," _ "," _ "," _ "," _ "," _ "," _ ",null," _ "," _ "," _ "," _ "," _ ",null," _ "," _ "," _ "," _ ",null,5,52,"Mayor and Council","Executive & Council",null,null,0,0,156951,200000,300000,350000,360000,370000,220780,"_","_","_","_"]
["C0207-1/IA02105/F0002/X044/R0230/001/CONTRA","C0207-1/IA02105/F0002/X044/R0230/001/CONTRA",122727,0,"Assets:Current Assets:Cash and Cash Equivalents:Cash at Bank:Bank Account:Specify (replace with account description):Deposits"," _"," _"," _ "," _ "," _ "," _ ","1100","Executive and council","1110","Mayor and Council","_",2080,"Funded by Internally generated funds","C","IA","0120","Current assets / Cash and cash equivalents","0120","Cash and cash equivalents"," _ "," _ ","_","_","","Recepts - Cash and Cash Equivalents","0510","Recepts - Cash and Cash Equivalents"," _ "," _ "," _ "," _ ",null," _ "," _ "," _ "," _ ","",null,"D"," _ "," _ "," _ "," _ ","1100","Heritage assets / Other Heritage"," _ "," _ ","1100"," _ "," _ ",null," _ "," _ ","Heritage assets / Other Heritage"," _ "," _ ",null," _ "," _ "," _ "," _ ",null,5,52,"Mayor and Council","Executive & Council",null,null,0,0,0,0,0,0,0,0,0,"_","_","_","_"]
["C0207-1/IA02894/F0002/X044/R0230/001/6803","C0207-1/IA02894/F0002/X044/R0230/001/6803",61494,4213,"Assets:Non-current Assets:Heritage Assets:Cost Model:Other Heritage Assets:Municipal Jewellery Impairment:Impairment"," _"," _"," _ "," _ "," _ "," _ ","1100","Executive and council","1110","Mayor and Council","_",2080,"Funded by Internally generated funds","C","IA","0260","Non current assets / Heritage assets","0260","Heritage assets"," _ "," _ ","_","_"," _ "," _ "," _ "," _ ","1050","Heritage assets",1050,"Heritage assets",null," _ "," _ "," _ "," _ ","",null,null," _ "," _ "," _ "," _ ","1100","Heritage assets / Other Heritage"," _ "," _ ","1100"," _ "," _ ",null," _ "," _ ","Heritage assets / Other Heritage"," _ "," _ ",null," _ "," _ "," _ "," _ ",null,5,52,"Mayor and Council","Executive & Council",null,null,0,0,0,0,0,0,0,0,0,"_","_","_","_"]
["C0207-1/IA10370/F0002/X044/R0230/001/CONTRA","C0207-1/IA10370/F0002/X044/R0230/001/CONTRA",122728,0,"Assets:Current Assets:VAT Receivable:Input Tax Capital:Recognised"," _"," _"," _ "," _ "," _ "," _ ","1100","Executive and council","1110","Mayor and Council","_",2080,"Funded by Internally generated funds","C","IA","0170","Current assets / VAT","0170","VAT"," _ "," _ ","_","_"," _ "," _ "," _ "," _ "," _ "," _ "," _ "," _ ",null," _ "," _ "," _ "," _ ","",null,null," _ "," _ "," _ "," _ ","1100","Heritage assets / Other Heritage"," _ "," _ ","1100"," _ "," _ ",null," _ "," _ ","Heritage assets / Other Heritage"," _ "," _ ",null," _ "," _ "," _ "," _ ",null,5,52,"Mayor and Council","Executive & Council",null,null,0,0,0,0,0,0,0,0,0,"_","_","_","_"]
["C0207-1/IA02108/F0002/X044/R0230/001/CONTRA","C0207-1/IA02108/F0002/X044/R0230/001/CONTRA",124525,0,"Assets:Current Assets:Cash and Cash Equivalents:Cash at Bank:Bank Account:Specify (replace with account description):Withdrawals"," _"," _"," _ "," _ "," _ "," _ ","1100","Executive and council","1110","Mayor and Council","_",2080,"Funded by Internally generated funds","C","IA","0120","Current assets / Cash and cash equivalents","0120","Cash and cash equivalents"," _ "," _ ","_","_","0310","Other Cash Flows/Payments by Type / Capital assets","0510","Capital assets"," _ "," _ "," _ "," _ ",null," _ "," _ "," _ "," _ ","",null,"W"," _ "," _ "," _ "," _ ","1100","Heritage assets / Other Heritage"," _ "," _ ","1100"," _ "," _ ",null," _ "," _ ","Heritage assets / Other Heritage"," _ "," _ ",null," _ "," _ "," _ "," _ ",null,5,52,"Mayor and Council","Executive & Council",null,null,0,0,0,0,0,0,0,0,0,"_","_","_","_"]
["C0207-1/IL65531/F0002/X044/R0230/001/CONTRA","C0207-1/IL65531/F0002/X044/R0230/001/CONTRA",122730,0,"Liabilities:Current Liabilities:Trade and Other Payable Exchange Transactions:Payables and Accruals : Contractors:Withdrawals"," _"," _"," _ "," _ "," _ "," _ ","1100","Executive and council","1110","Mayor and Council","_",2080,"Funded by Internally generated funds","C","IL","0380","Current liabilities / Trade and other payables from exchange transactions","_","_"," _ "," _ ","_","_","0200","Cash Payments by Type / Contracted Services","0450","Cash Payments by Type / Contracted Services"," _ "," _ "," _ "," _ ",null,"0361","Trade and other payables / Trade and other payables from exchange transactions","0361","Trade and other payables / Trade and other payables from exchange transactions","",null,null," _ "," _ "," _ "," _ ","1100","Heritage assets / Other Heritage"," _ "," _ ","1100"," _ "," _ ",null," _ "," _ ","Heritage assets / Other Heritage"," _ "," _ ",null," _ "," _ "," _ "," _ ",null,5,52,"Mayor and Council","Executive & Council",null,null,0,0,0,0,0,0,0,0,0,"_","_","_","_"]
["C0207-1/IA02885/F0002/X044/R0230/001/6803","C0207-1/IA02885/F0002/X044/R0230/001/6803",61493,4212,"Assets:Non-current Assets:Heritage Assets:Cost Model:Other Heritage Assets:Municipal Jewellery Cost:Acquisitions"," _"," _"," _ "," _ "," _ "," _ ","1100","Executive and council","1110","Mayor and Council","CE",2080,"Funded by Internally generated funds","C","IA","0260","Non current assets / Heritage assets","0260","Heritage assets"," _ "," _ ","_","_"," _ "," _ "," _ "," _ ","1050","Heritage assets",1050,"Heritage assets",null," _ "," _ "," _ "," _ ","",null,null," _ "," _ "," _ "," _ ","1100","Heritage assets / Other Heritage"," _ "," _ ","1100"," _ "," _ ",null," _ "," _ ","Heritage assets / Other Heritage"," _ "," _ ",null," _ "," _ "," _ "," _ ",null,5,52,"Mayor and Council","Executive & Council",null,null,0,0,0,0,0,0,0,0,0,"_","_","_","_"]
["C0207-1/IL65530/F0002/X044/R0230/001/CONTRA","C0207-1/IL65530/F0002/X044/R0230/001/CONTRA",122729,0,"Liabilities:Current Liabilities:Trade and Other Payable Exchange Transactions:Payables and Accruals : Contractors:Deposits"," _"," _"," _ "," _ "," _ "," _ ","1100","Executive and council","1110","Mayor and Council","_",2080,"Funded by Internally generated funds","C","IL","0380","Current liabilities / Trade and other payables from exchange transactions","_","_"," _ "," _ ","_","_"," _ "," _ "," _ "," _ "," _ "," _ "," _ "," _ ",null,"0361","Trade and other payables / Trade and other payables from exchange transactions","0361","Trade and other payables / Trade and other payables from exchange transactions","",null,null," _ "," _ "," _ "," _ ","1100","Heritage assets / Other Heritage"," _ "," _ ","1100"," _ "," _ ",null," _ "," _ ","Heritage assets / Other Heritage"," _ "," _ ",null," _ "," _ "," _ "," _ ",null,5,52,"Mayor and Council","Executive & Council",null,null,0,0,0,0,0,0,0,0,0,"_","_","_","_"]
["O1248-1/IL65530/F0041/X044/R0230/001/CONTRA","O1248-1/IL65530/F0041/X044/R0230/001/CONTRA",122001,0,"Liabilities:Current Liabilities:Trade and Other Payable Exchange Transactions:Payables and Accruals : Contractors:Deposits"," _"," _"," _ "," _ "," _ "," _ ","1100","Executive and council","1110","Mayor and Council","_"," _"," _","O","IL","0380","Current liabilities / Trade and other payables from exchange transactions","_","_"," _ "," _ ","_","_"," _ "," _ "," _ "," _ "," _ "," _ "," _ "," _ ",null,"0361","Trade and other payables / Trade and other payables from exchange transactions","0361","Trade and other payables / Trade and other payables from exchange transactions","",null,null," _ "," _ "," _ "," _ "," _ "," _ "," _ "," _ "," _ "," _ "," _ ",null," _ "," _ "," _ "," _ "," _ ",null," _ "," _ "," _ "," _ ",null,5,52,"Mayor and Council","Executive & Council",null,null,0,0,0,0,0,-437000,-460000,-483000,0,"_","_","_","_"]
["O1248-1/IE00754/F0041/X044/R0230/001/6057","O1248-1/IE00754/F0041/X044/R0230/001/6057",30696,1924,"Expenditure:Operational Cost:Advertising, Publicity and Marketing:Gifts and Promotional Items","4100","Expenditure / Operational costs","2904","Expenditure / Operational costs","2904","Operational Costs ","1100","Executive and council","1110","Mayor and Council","_"," _"," _","O","IE"," _ "," _ "," _ "," _ "," _ "," _ ","_","_"," _ "," _ "," _ "," _ "," _ "," _ "," _ "," _ ",null," _ "," _ "," _ "," _ ","",null,null," _ "," _ "," _ "," _ "," _ "," _ "," _ "," _ "," _ "," _ "," _ ",null," _ "," _ "," _ "," _ "," _ ",null," _ "," _ "," _ "," _ ",null,5,52,"Mayor and Council","Executive & Council",null,null,0,0,0,0,0,0,0,0,0,"_","_","_","_"]
["O1248-1/IE00060/F0041/X044/R0230/001/6057","O1248-1/IE00060/F0041/X044/R0230/001/6057",30695,1923,"Expenditure:Operational Cost:Travel and Subsistence:Domestic:Accommodation","4100","Expenditure / Operational costs","2904","Expenditure / Operational costs","2904","Operational Costs ","1100","Executive and council","1110","Mayor and Council","_"," _"," _","O","IE"," _ "," _ "," _ "," _ "," _ "," _ ","_","_"," _ "," _ "," _ "," _ "," _ "," _ "," _ "," _ ",null," _ "," _ "," _ "," _ ","",null,null," _ "," _ "," _ "," _ "," _ "," _ "," _ "," _ "," _ "," _ "," _ ",null," _ "," _ "," _ "," _ "," _ ",null," _ "," _ "," _ "," _ ",null,5,52,"Mayor and Council","Executive & Council",null,null,0,0,0,0,0,0,0,0,0,"_","_","_","_"]
["O1248-1/IE00677/F0041/X044/R0230/001/6057","O1248-1/IE00677/F0041/X044/R0230/001/6057",30698,1926,"Expenditure:Contracted Services:Outsourced Services:Catering Services","3800","Expenditure / Contracted services","2701","Expenditure / Contracted services","2701","Contracted Services ","1100","Executive and council","1110","Mayor and Council","_"," _"," _","O","IE"," _ "," _ "," _ "," _ "," _ "," _ ","_","_"," _ "," _ "," _ "," _ "," _ "," _ "," _ "," _ ",null," _ "," _ "," _ "," _ ","",null,null," _ "," _ "," _ "," _ "," _ "," _ "," _ "," _ "," _ "," _ "," _ ",null," _ "," _ "," _ "," _ "," _ ",null," _ "," _ "," _ "," _ ",null,5,52,"Mayor and Council","Executive & Council",null,null,0,0,0,75000,100000,200000,210000,220000,8700,"_","_","_","_"]
["O1248-1/IL53821/F0041/X044/R0230/001/CONTRA","O1248-1/IL53821/F0041/X044/R0230/001/CONTRA",122000,0,"Liabilities:Current Liabilities:Trade and Other Payable Exchange Transactions:Payables and Accruals : General:Withdrawals"," _"," _"," _ "," _ "," _ "," _ ","1100","Executive and council","1110","Mayor and Council","_"," _"," _","O","IL","0380","Current liabilities / Trade and other payables from exchange transactions","_","_"," _ "," _ ","_","_","0200","Cash Payments by Type / Other expenditure","0480","Other expenditure"," _ "," _ "," _ "," _ ",null,"0361","Trade and other payables / Trade and other payables from exchange transactions","0361","Trade and other payables / Trade and other payables from exchange transactions","",null,null," _ "," _ "," _ "," _ "," _ "," _ "," _ "," _ "," _ "," _ "," _ ",null," _ "," _ "," _ "," _ "," _ ",null," _ "," _ "," _ "," _ ",null,5,52,"Mayor and Council","Executive & Council",null,null,0,0,0,0,0,0,0,0,0,"_","_","_","_"]
["O1248-1/IL65531/F0041/X044/R0230/001/CONTRA","O1248-1/IL65531/F0041/X044/R0230/001/CONTRA",122002,0,"Liabilities:Current Liabilities:Trade and Other Payable Exchange Transactions:Payables and Accruals : Contractors:Withdrawals"," _"," _"," _ "," _ "," _ "," _ ","1100","Executive and council","1110","Mayor and Council","_"," _"," _","O","IL","0380","Current liabilities / Trade and other payables from exchange transactions","_","_"," _ "," _ ","_","_","0200","Cash Payments by Type / Contracted Services","0450","Cash Payments by Type / Contracted Services"," _ "," _ "," _ "," _ ",null,"0361","Trade and other payables / Trade and other payables from exchange transactions","0361","Trade and other payables / Trade and other payables from exchange transactions","",null,null," _ "," _ "," _ "," _ "," _ "," _ "," _ "," _ "," _ "," _ "," _ ",null," _ "," _ "," _ "," _ "," _ ",null," _ "," _ "," _ "," _ ",null,5,52,"Mayor and Council","Executive & Council",null,null,0,0,0,0,0,437000,460000,483000,0,"_","_","_","_"]
["O1248-1/IA02108/F0041/X044/R0230/001/CONTRA","O1248-1/IA02108/F0041/X044/R0230/001/CONTRA",121997,0,"Assets:Current Assets:Cash and Cash Equivalents:Cash at Bank:Bank Account:Specify (replace with account description):Withdrawals"," _"," _"," _ "," _ "," _ "," _ ","1100","Executive and council","1110","Mayor and Council","_"," _"," _","O","IA","0120","Current assets / Cash and cash equivalents","0120","Cash and cash equivalents","0150W","CASH FLOW FROM OPERATING ACTIVITIES / Receipts / Transfers and Subsidies - Operational","0150W","CASH FLOW FROM OPERATING ACTIVITIES / Receipts / Transfers and Subsidies - Operational"," _ "," _ "," _ "," _ "," _ "," _ "," _ "," _ ",null," _ "," _ "," _ "," _ ","0240","Cash Receipts By Source / Transfers and Subsidies - Operational","W"," _ "," _ "," _ "," _ "," _ "," _ "," _ "," _ "," _ "," _ "," _ ",null," _ "," _ "," _ "," _ "," _ ",null," _ "," _ "," _ "," _ ",null,5,52,"Mayor and Council","Executive & Council",null,null,0,0,0,0,0,-437000,-460000,-483000,0,"_","_","_","_"]
["O1248-1/IE00703/F0041/X044/R0230/001/6057","O1248-1/IE00703/F0041/X044/R0230/001/6057",30699,1927,"Expenditure:Contracted Services:Outsourced Services:Transport Services","3800","Expenditure / Contracted services","2701","Expenditure / Contracted services","2701","Contracted Services ","1100","Executive and council","1110","Mayor and Council","_"," _"," _","O","IE"," _ "," _ "," _ "," _ "," _ "," _ ","_","_"," _ "," _ "," _ "," _ "," _ "," _ "," _ "," _ ",null," _ "," _ "," _ "," _ ","",null,null," _ "," _ "," _ "," _ "," _ "," _ "," _ "," _ "," _ "," _ "," _ ",null," _ "," _ "," _ "," _ "," _ ",null," _ "," _ "," _ "," _ ",null,5,52,"Mayor and Council","Executive & Council",null,null,0,0,0,15000,100000,180000,190000,200000,19500,"_","_","_","_"]
["O1248-1/IE00571/F0041/X044/R0230/001/6057","O1248-1/IE00571/F0041/X044/R0230/001/6057",30697,1925,"Expenditure:Operational Cost:Hire Charges","4100","Expenditure / Operational costs","2904","Expenditure / Operational costs","2904","Operational Costs ","1100","Executive and council","1110","Mayor and Council","_"," _"," _","O","IE"," _ "," _ "," _ "," _ "," _ "," _ ","_","_"," _ "," _ "," _ "," _ "," _ "," _ "," _ "," _ ",null," _ "," _ "," _ "," _ ","",null,null," _ "," _ "," _ "," _ "," _ "," _ "," _ "," _ "," _ "," _ "," _ ",null," _ "," _ "," _ "," _ "," _ ",null," _ "," _ "," _ "," _ ",null,5,52,"Mayor and Council","Executive & Council",null,null,0,0,0,0,0,0,0,0,0,"_","_","_","_"]
["O1248-1/IA10375/F0041/X044/R0230/001/CONTRA","O1248-1/IA10375/F0041/X044/R0230/001/CONTRA",121998,0,"Assets:Current Assets:VAT Receivable:Input Tax Accrual:Recognised"," _"," _"," _ "," _ "," _ "," _ ","1100","Executive and council","1110","Mayor and Council","_"," _"," _","O","IA","0170","Current assets / VAT","0170","VAT"," _ "," _ ","_","_"," _ "," _ "," _ "," _ "," _ "," _ "," _ "," _ ",null," _ "," _ "," _ "," _ ","",null,null," _ "," _ "," _ "," _ "," _ "," _ "," _ "," _ "," _ "," _ "," _ ",null," _ "," _ "," _ "," _ "," _ ",null," _ "," _ "," _ "," _ ",null,5,52,"Mayor and Council","Executive & Council",null,null,0,0,0,0,0,57000,60000,63000,0,"_","_","_","_"]
["O1248-1/IL53820/F0041/X044/R0230/001/CONTRA","O1248-1/IL53820/F0041/X044/R0230/001/CONTRA",121999,0,"Liabilities:Current Liabilities:Trade and Other Payable Exchange Transactions:Payables and Accruals : General:Deposits"," _"," _"," _ "," _ "," _ "," _ ","1100","Executive and council","1110","Mayor and Council","_"," _"," _","O","IL","0380","Current liabilities / Trade and other payables from exchange transactions","_","_"," _ "," _ ","_","_"," _ "," _ "," _ "," _ "," _ "," _ "," _ "," _ ",null,"0361","Trade and other payables / Trade and other payables from exchange transactions","0361","Trade and other payables / Trade and other payables from exchange transactions","",null,null," _ "," _ "," _ "," _ "," _ "," _ "," _ "," _ "," _ "," _ "," _ ",null," _ "," _ "," _ "," _ "," _ ",null," _ "," _ "," _ "," _ ",null,5,52,"Mayor and Council","Executive & Council",null,null,0,0,0,0,0,0,0,0,0,"_","_","_","_"]
["O1270-1/IL53820/F0041/X132/R0229/001/CONTRA","O1270-1/IL53820/F0041/X132/R0229/001/CONTRA",123583,0,"Liabilities:Current Liabilities:Trade and Other Payable Exchange Transactions:Payables and Accruals : General:Deposits"," _"," _"," _ "," _ "," _ "," _ ","4400","Waste management","4403","Solid Waste Removal","_"," _"," _","O","IL","0380","Current liabilities / Trade and other payables from exchange transactions","_","_"," _ "," _ ","_","_"," _ "," _ "," _ "," _ "," _ "," _ "," _ "," _ ",null,"0361","Trade and other payables / Trade and other payables from exchange transactions","0361","Trade and other payables / Trade and other payables from exchange transactions","",null,null," _ "," _ "," _ "," _ "," _ "," _ "," _ "," _ "," _ "," _ "," _ ",null," _ "," _ "," _ "," _ "," _ ",null," _ "," _ "," _ "," _ ",null,9,93,"Solid Waste Removal","Waste Management",null,null,0,0,0,0,0,-105800,-109825,-113850,0,"_","_","_","_"]
["O1270-1/IA10375/F0041/X132/R0229/001/CONTRA","O1270-1/IA10375/F0041/X132/R0229/001/CONTRA",123582,0,"Assets:Current Assets:VAT Receivable:Input Tax Accrual:Recognised"," _"," _"," _ "," _ "," _ "," _ ","4400","Waste management","4403","Solid Waste Removal","_"," _"," _","O","IA","0170","Current assets / VAT","0170","VAT"," _ "," _ ","_","_"," _ "," _ "," _ "," _ "," _ "," _ "," _ "," _ ",null," _ "," _ "," _ "," _ ","",null,null," _ "," _ "," _ "," _ "," _ "," _ "," _ "," _ "," _ "," _ "," _ ",null," _ "," _ "," _ "," _ "," _ ",null," _ "," _ "," _ "," _ ",null,9,93,"Solid Waste Removal","Waste Management",null,null,0,0,0,0,0,13800,14325,14850,0,"_","_","_","_"]
["O1270-1/IE00059/F0041/X132/R0229/001/6501","O1270-1/IE00059/F0041/X132/R0229/001/6501",120603,11449,"Expenditure:Operational Cost:Registration Fees:Seminars, Conferences, Workshops and Events:National","4100","Expenditure / Operational costs","2904","Expenditure / Operational costs","2904","Operational Costs ","4400","Waste management","4403","Solid Waste Removal","_"," _"," _","O","IE"," _ "," _ "," _ "," _ "," _ "," _ ","_","_"," _ "," _ "," _ "," _ "," _ "," _ "," _ "," _ ",null," _ "," _ "," _ "," _ ","",null,null," _ "," _ "," _ "," _ "," _ "," _ "," _ "," _ "," _ "," _ "," _ ",null," _ "," _ "," _ "," _ "," _ ",null," _ "," _ "," _ "," _ ",null,9,93,"Solid Waste Removal","Waste Management",null,null,0,0,0,0,0,60000,61000,62000,0,"_","_","_","_"]
["O1270-1/IE01581/F0041/X132/R0229/001/6501","O1270-1/IE01581/F0041/X132/R0229/001/6501",120606,11448,"Expenditure:Operational Cost:Travel and Subsistence:Domestic:Transport with Operator:Public Transport:Air Transport","4100","Expenditure / Operational costs","2904","Expenditure / Operational costs","2904","Operational Costs ","4400","Waste management","4403","Solid Waste Removal","_"," _"," _","O","IE"," _ "," _ "," _ "," _ "," _ "," _ ","_","_"," _ "," _ "," _ "," _ "," _ "," _ "," _ "," _ ",null," _ "," _ "," _ "," _ ","",null,null," _ "," _ "," _ "," _ "," _ "," _ "," _ "," _ "," _ "," _ "," _ ",null," _ "," _ "," _ "," _ "," _ ",null," _ "," _ "," _ "," _ ",null,9,93,"Solid Waste Removal","Waste Management",null,null,0,0,0,0,0,10000,11000,12000,0,"_","_","_","_"]
["O1270-1/IE00143/F0041/X132/R0229/001/6501","O1270-1/IE00143/F0041/X132/R0229/001/6501",120605,11450,"Expenditure:Operational Cost:Travel and Subsistence:Domestic:Transport without Operator:Car Rental","4100","Expenditure / Operational costs","2904","Expenditure / Operational costs","2904","Operational Costs ","4400","Waste management","4403","Solid Waste Removal","_"," _"," _","O","IE"," _ "," _ "," _ "," _ "," _ "," _ ","_","_"," _ "," _ "," _ "," _ "," _ "," _ "," _ "," _ ",null," _ "," _ "," _ "," _ ","",null,null," _ "," _ "," _ "," _ "," _ "," _ "," _ "," _ "," _ "," _ "," _ ",null," _ "," _ "," _ "," _ "," _ ",null," _ "," _ "," _ "," _ ",null,9,93,"Solid Waste Removal","Waste Management",null,null,0,0,0,0,0,2000,2500,3000,0,"_","_","_","_"]
["O1270-1/IA02108/F0041/X132/R0229/001/CONTRA","O1270-1/IA02108/F0041/X132/R0229/001/CONTRA",123581,0,"Assets:Current Assets:Cash and Cash Equivalents:Cash at Bank:Bank Account:Specify (replace with account description):Withdrawals"," _"," _"," _ "," _ "," _ "," _ ","4400","Waste management","4403","Solid Waste Removal","_"," _"," _","O","IA","0120","Current assets / Cash and cash equivalents","0120","Cash and cash equivalents","0150W","CASH FLOW FROM OPERATING ACTIVITIES / Receipts / Transfers and Subsidies - Operational","0150W","CASH FLOW FROM OPERATING ACTIVITIES / Receipts / Transfers and Subsidies - Operational"," _ "," _ "," _ "," _ "," _ "," _ "," _ "," _ ",null," _ "," _ "," _ "," _ ","0240","Cash Receipts By Source / Transfers and Subsidies - Operational","W"," _ "," _ "," _ "," _ "," _ "," _ "," _ "," _ "," _ "," _ "," _ ",null," _ "," _ "," _ "," _ "," _ ",null," _ "," _ "," _ "," _ ",null,9,93,"Solid Waste Removal","Waste Management",null,null,0,0,0,0,0,-105800,-109825,-113850,0,"_","_","_","_"]
["O1270-1/IL53821/F0041/X132/R0229/001/CONTRA","O1270-1/IL53821/F0041/X132/R0229/001/CONTRA",123584,0,"Liabilities:Current Liabilities:Trade and Other Payable Exchange Transactions:Payables and Accruals : General:Withdrawals"," _"," _"," _ "," _ "," _ "," _ ","4400","Waste management","4403","Solid Waste Removal","_"," _"," _","O","IL","0380","Current liabilities / Trade and other payables from exchange transactions","_","_"," _ "," _ ","_","_","0200","Cash Payments by Type / Other expenditure","0480","Other expenditure"," _ "," _ "," _ "," _ ",null,"0361","Trade and other payables / Trade and other payables from exchange transactions","0361","Trade and other payables / Trade and other payables from exchange transactions","",null,null," _ "," _ "," _ "," _ "," _ "," _ "," _ "," _ "," _ "," _ "," _ ",null," _ "," _ "," _ "," _ "," _ ",null," _ "," _ "," _ "," _ ",null,9,93,"Solid Waste Removal","Waste Management",null,null,0,0,0,0,0,105800,109825,113850,0,"_","_","_","_"]
["O1270-1/IE00060/F0041/X132/R0229/001/6501","O1270-1/IE00060/F0041/X132/R0229/001/6501",120604,11447,"Expenditure:Operational Cost:Travel and Subsistence:Domestic:Accommodation","4100","Expenditure / Operational costs","2904","Expenditure / Operational costs","2904","Operational Costs ","4400","Waste management","4403","Solid Waste Removal","_"," _"," _","O","IE"," _ "," _ "," _ "," _ "," _ "," _ ","_","_"," _ "," _ "," _ "," _ "," _ "," _ "," _ "," _ ",null," _ "," _ "," _ "," _ ","",null,null," _ "," _ "," _ "," _ "," _ "," _ "," _ "," _ "," _ "," _ "," _ ",null," _ "," _ "," _ "," _ "," _ ",null," _ "," _ "," _ "," _ ",null,9,93,"Solid Waste Removal","Waste Management",null,null,0,0,0,0,0,20000,21000,22000,0,"_","_","_","_"]
["C0025-1/IL65530/F0002/X052/R0229/001/CONTRA","C0025-1/IL65530/F0002/X052/R0229/001/CONTRA",121491,0,"Liabilities:Current Liabilities:Trade and Other Payable Exchange Transactions:Payables and Accruals : Contractors:Deposits"," _"," _"," _ "," _ "," _ "," _ ","1200","Finance and administration","1207","Information Technology","_",2080,"Funded by Internally generated funds","C","IL","0380","Current liabilities / Trade and other payables from exchange transactions","_","_"," _ "," _ ","_","_"," _ "," _ "," _ "," _ "," _ "," _ "," _ "," _ ",null,"0361","Trade and other payables / Trade and other payables from exchange transactions","0361","Trade and other payables / Trade and other payables from exchange transactions","",null,null,"0740","0740","Infrastructure / Information and Communication Infrastructure / Core Layers","Infrastructure / Information and Communication Infrastructure / Core Layers"," _ "," _ "," _ "," _ "," _ "," _ "," _ ",null," _ "," _ "," _ "," _ "," _ ",null," _ "," _ "," _ "," _ ",null,14,143,"Information Technology","Finance & Administration 2",null,null,0,0,0,0,0,0,0,0,0,"_","_","_","_"]
["C0025-1/IA02108/F0002/X052/R0229/001/CONTRA","C0025-1/IA02108/F0002/X052/R0229/001/CONTRA",124474,0,"Assets:Current Assets:Cash and Cash Equivalents:Cash at Bank:Bank Account:Specify (replace with account description):Withdrawals"," _"," _"," _ "," _ "," _ "," _ ","1200","Finance and administration","1207","Information Technology","_",2080,"Funded by Internally generated funds","C","IA","0120","Current assets / Cash and cash equivalents","0120","Cash and cash equivalents"," _ "," _ ","_","_","0310","Other Cash Flows/Payments by Type / Capital assets","0510","Capital assets"," _ "," _ "," _ "," _ ",null," _ "," _ "," _ "," _ ","",null,"W","0740","0740","Infrastructure / Information and Communication Infrastructure / Core Layers","Infrastructure / Information and Communication Infrastructure / Core Layers"," _ "," _ "," _ "," _ "," _ "," _ "," _ ",null," _ "," _ "," _ "," _ "," _ ",null," _ "," _ "," _ "," _ ",null,14,143,"Information Technology","Finance & Administration 2",null,null,0,0,0,0,0,0,0,0,0,"_","_","_","_"]
["C0025-1/IA10370/F0002/X052/R0229/001/CONTRA","C0025-1/IA10370/F0002/X052/R0229/001/CONTRA",121490,0,"Assets:Current Assets:VAT Receivable:Input Tax Capital:Recognised"," _"," _"," _ "," _ "," _ "," _ ","1200","Finance and administration","1207","Information Technology","_",2080,"Funded by Internally generated funds","C","IA","0170","Current assets / VAT","0170","VAT"," _ "," _ ","_","_"," _ "," _ "," _ "," _ "," _ "," _ "," _ "," _ ",null," _ "," _ "," _ "," _ ","",null,null,"0740","0740","Infrastructure / Information and Communication Infrastructure / Core Layers","Infrastructure / Information and Communication Infrastructure / Core Layers"," _ "," _ "," _ "," _ "," _ "," _ "," _ ",null," _ "," _ "," _ "," _ "," _ ",null," _ "," _ "," _ "," _ ",null,14,143,"Information Technology","Finance & Administration 2",null,null,0,0,0,0,0,0,0,0,0,"_","_","_","_"]
["C0025-1/IL65531/F0002/X052/R0229/001/CONTRA","C0025-1/IL65531/F0002/X052/R0229/001/CONTRA",121492,0,"Liabilities:Current Liabilities:Trade and Other Payable Exchange Transactions:Payables and Accruals : Contractors:Withdrawals"," _"," _"," _ "," _ "," _ "," _ ","1200","Finance and administration","1207","Information Technology","_",2080,"Funded by Internally generated funds","C","IL","0380","Current liabilities / Trade and other payables from exchange transactions","_","_"," _ "," _ ","_","_","0200","Cash Payments by Type / Contracted Services","0450","Cash Payments by Type / Contracted Services"," _ "," _ "," _ "," _ ",null,"0361","Trade and other payables / Trade and other payables from exchange transactions","0361","Trade and other payables / Trade and other payables from exchange transactions","",null,null,"0740","0740","Infrastructure / Information and Communication Infrastructure / Core Layers","Infrastructure / Information and Communication Infrastructure / Core Layers"," _ "," _ "," _ "," _ "," _ "," _ "," _ ",null," _ "," _ "," _ "," _ "," _ ",null," _ "," _ "," _ "," _ ",null,14,143,"Information Technology","Finance & Administration 2",null,null,0,0,0,0,0,0,0,0,0,"_","_","_","_"]
["C0025-1/IA00052/F0002/X052/R0229/001/6105","C0025-1/IA00052/F0002/X052/R0229/001/6105",69036,4283,"Assets:Non-current Assets:Property, Plant and Equipment:Cost Model:Information and Communication Infrastructure:Cost:Acquisitions"," _"," _"," _ "," _ "," _ "," _ ","1200","Finance and administration","1207","Information Technology","CE",2080,"Funded by Internally generated funds","C","IA","0230","Non current assets / Property, plant and equipment","0231","Land: Acquisitions"," _ "," _ ","_","_"," _ "," _ "," _ "," _ ","0720","Infrastructure / Information and Communication Infrastructure",720,"Infrastructure / Information and Communication Infrastructure",null,"0241","Property, plant and equipment (PPE) / PPE at cost/valuation (excl. finance leases)","0241","Property, plant and equipment (PPE) / PPE at cost/valuation (excl. finance leases)","",null,null,"0740","0740","Infrastructure / Information and Communication Infrastructure / Core Layers","Infrastructure / Information and Communication Infrastructure / Core Layers"," _ "," _ "," _ "," _ "," _ "," _ "," _ ",null," _ "," _ "," _ "," _ "," _ ",null," _ "," _ "," _ "," _ ",null,14,143,"Information Technology","Finance & Administration 2",null,null,0,0,0,0,0,0,0,0,0,"_","_","_","_"]
["C0025-1/IA02105/F0002/X052/R0229/001/CONTRA","C0025-1/IA02105/F0002/X052/R0229/001/CONTRA",121489,0,"Assets:Current Assets:Cash and Cash Equivalents:Cash at Bank:Bank Account:Specify (replace with account description):Deposits"," _"," _"," _ "," _ "," _ "," _ ","1200","Finance and administration","1207","Information Technology","_",2080,"Funded by Internally generated funds","C","IA","0120","Current assets / Cash and cash equivalents","0120","Cash and cash equivalents"," _ "," _ ","_","_","","Recepts - Cash and Cash Equivalents","0510","Recepts - Cash and Cash Equivalents"," _ "," _ "," _ "," _ ",null," _ "," _ "," _ "," _ ","",null,"D","0740","0740","Infrastructure / Information and Communication Infrastructure / Core Layers","Infrastructure / Information and Communication Infrastructure / Core Layers"," _ "," _ "," _ "," _ "," _ "," _ "," _ ",null," _ "," _ "," _ "," _ "," _ ",null," _ "," _ "," _ "," _ ",null,14,143,"Information Technology","Finance & Administration 2",null,null,0,0,0,0,0,0,0,0,0,"_","_","_","_"]
["O1300-1/IE00840/F0041/X051/R0229/001/6103","O1300-1/IE00840/F0041/X051/R0229/001/6103",69611,4502,"Expenditure:Contracted Services:Consultants and Professional Services:Business and Advisory:Human Resources","3800","Expenditure / Contracted services","2702","Expenditure / Contracted services","2702","Contracted Services ","1200","Finance and administration","1206","Human Resources","_"," _"," _","O","IE"," _ "," _ "," _ "," _ "," _ "," _ ","_","_"," _ "," _ "," _ "," _ "," _ "," _ "," _ "," _ ",null," _ "," _ "," _ "," _ ","",null,null," _ "," _ "," _ "," _ "," _ "," _ "," _ "," _ "," _ "," _ "," _ ",null," _ "," _ "," _ "," _ "," _ ",null," _ "," _ "," _ "," _ ",null,3,34,"Human Resources","Finance & Administration",null,null,0,0,0,0,0,0,0,0,0,"_","_","_","_"]
["O1300-1/IA10375/F0041/X051/R0229/001/CONTRA","O1300-1/IA10375/F0041/X051/R0229/001/CONTRA",122966,0,"Assets:Current Assets:VAT Receivable:Input Tax Accrual:Recognised"," _"," _"," _ "," _ "," _ "," _ ","1200","Finance and administration","1206","Human Resources","_"," _"," _","O","IA","0170","Current assets / VAT","0170","VAT"," _ "," _ ","_","_"," _ "," _ "," _ "," _ "," _ "," _ "," _ "," _ ",null," _ "," _ "," _ "," _ ","",null,null," _ "," _ "," _ "," _ "," _ "," _ "," _ "," _ "," _ "," _ "," _ ",null," _ "," _ "," _ "," _ "," _ ",null," _ "," _ "," _ "," _ ",null,3,34,"Human Resources","Finance & Administration",null,null,0,0,0,0,0,0,0,0,0,"_","_","_","_"]
["O1300-1/IL65531/F0041/X051/R0229/001/CONTRA","O1300-1/IL65531/F0041/X051/R0229/001/CONTRA",122968,0,"Liabilities:Current Liabilities:Trade and Other Payable Exchange Transactions:Payables and Accruals : Contractors:Withdrawals"," _"," _"," _ "," _ "," _ "," _ ","1200","Finance and administration","1206","Human Resources","_"," _"," _","O","IL","0380","Current liabilities / Trade and other payables from exchange transactions","_","_"," _ "," _ ","_","_","0200","Cash Payments by Type / Contracted Services","0450","Cash Payments by Type / Contracted Services"," _ "," _ "," _ "," _ ",null,"0361","Trade and other payables / Trade and other payables from exchange transactions","0361","Trade and other payables / Trade and other payables from exchange transactions","",null,null," _ "," _ "," _ "," _ "," _ "," _ "," _ "," _ "," _ "," _ "," _ ",null," _ "," _ "," _ "," _ "," _ ",null," _ "," _ "," _ "," _ ",null,3,34,"Human Resources","Finance & Administration",null,null,0,0,0,0,0,0,0,0,0,"_","_","_","_"]
["O1300-1/IA02108/F0041/X051/R0229/001/CONTRA","O1300-1/IA02108/F0041/X051/R0229/001/CONTRA",122965,0,"Assets:Current Assets:Cash and Cash Equivalents:Cash at Bank:Bank Account:Specify (replace with account description):Withdrawals"," _"," _"," _ "," _ "," _ "," _ ","1200","Finance and administration","1206","Human Resources","_"," _"," _","O","IA","0120","Current assets / Cash and cash equivalents","0120","Cash and cash equivalents","0150W","CASH FLOW FROM OPERATING ACTIVITIES / Receipts / Transfers and Subsidies - Operational","0150W","CASH FLOW FROM OPERATING ACTIVITIES / Receipts / Transfers and Subsidies - Operational"," _ "," _ "," _ "," _ "," _ "," _ "," _ "," _ ",null," _ "," _ "," _ "," _ ","0240","Cash Receipts By Source / Transfers and Subsidies - Operational","W"," _ "," _ "," _ "," _ "," _ "," _ "," _ "," _ "," _ "," _ "," _ ",null," _ "," _ "," _ "," _ "," _ ",null," _ "," _ "," _ "," _ ",null,3,34,"Human Resources","Finance & Administration",null,null,0,0,0,0,0,0,0,0,0,"_","_","_","_"]
["O1300-1/IL65530/F0041/X051/R0229/001/CONTRA","O1300-1/IL65530/F0041/X051/R0229/001/CONTRA",122967,0,"Liabilities:Current Liabilities:Trade and Other Payable Exchange Transactions:Payables and Accruals : Contractors:Deposits"," _"," _"," _ "," _ "," _ "," _ ","1200","Finance and administration","1206","Human Resources","_"," _"," _","O","IL","0380","Current liabilities / Trade and other payables from exchange transactions","_","_"," _ "," _ ","_","_"," _ "," _ "," _ "," _ "," _ "," _ "," _ "," _ ",null,"0361","Trade and other payables / Trade and other payables from exchange transactions","0361","Trade and other payables / Trade and other payables from exchange transactions","",null,null," _ "," _ "," _ "," _ "," _ "," _ "," _ "," _ "," _ "," _ "," _ ",null," _ "," _ "," _ "," _ "," _ ",null," _ "," _ "," _ "," _ ",null,3,34,"Human Resources","Finance & Administration",null,null,0,0,0,0,0,0,0,0,0,"_","_","_","_"]
["O0021-2/IE00754/F0041/X108/R0230/001/6273","O0021-2/IE00754/F0041/X108/R0230/001/6273",69053,4298,"Expenditure:Operational Cost:Advertising, Publicity and Marketing:Gifts and Promotional Items","4100","Expenditure / Operational costs","2904","Expenditure / Operational costs","2904","Operational Costs ","2300","Public safety","2304","Fencing and Fences","_"," _"," _","O","IE"," _ "," _ "," _ "," _ "," _ "," _ ","_","_"," _ "," _ "," _ "," _ "," _ "," _ "," _ "," _ ",null," _ "," _ "," _ "," _ ","",null,null," _ "," _ "," _ "," _ "," _ "," _ "," _ "," _ "," _ "," _ "," _ ",null," _ "," _ "," _ "," _ "," _ ",null," _ "," _ "," _ "," _ ",null,8,82,"Fencing and Fences","Public Safety",null,null,0,0,0,0,0,0,0,0,0,"_","_","_","_"]
["O0021-2/IL53821/F0041/X108/R0230/001/CONTRA","O0021-2/IL53821/F0041/X108/R0230/001/CONTRA",122035,0,"Liabilities:Current Liabilities:Trade and Other Payable Exchange Transactions:Payables and Accruals : General:Withdrawals"," _"," _"," _ "," _ "," _ "," _ ","2300","Public safety","2304","Fencing and Fences","_"," _"," _","O","IL","0380","Current liabilities / Trade and other payables from exchange transactions","_","_"," _ "," _ ","_","_","0200","Cash Payments by Type / Other expenditure","0480","Other expenditure"," _ "," _ "," _ "," _ ",null,"0361","Trade and other payables / Trade and other payables from exchange transactions","0361","Trade and other payables / Trade and other payables from exchange transactions","",null,null," _ "," _ "," _ "," _ "," _ "," _ "," _ "," _ "," _ "," _ "," _ ",null," _ "," _ "," _ "," _ "," _ ",null," _ "," _ "," _ "," _ ",null,8,82,"Fencing and Fences","Public Safety",null,null,0,0,0,0,0,0,0,0,0,"_","_","_","_"]
["O0021-1/IA02108/F0041/X108/R0230/001/CONTRA","O0021-1/IA02108/F0041/X108/R0230/001/CONTRA",122028,0,"Assets:Current Assets:Cash and Cash Equivalents:Cash at Bank:Bank Account:Specify (replace with account description):Withdrawals"," _"," _"," _ "," _ "," _ "," _ ","2300","Public safety","2304","Fencing and Fences","_"," _"," _","O","IA","0120","Current assets / Cash and cash equivalents","0120","Cash and cash equivalents","0150W","CASH FLOW FROM OPERATING ACTIVITIES / Receipts / Transfers and Subsidies - Operational","0150W","CASH FLOW FROM OPERATING ACTIVITIES / Receipts / Transfers and Subsidies - Operational"," _ "," _ "," _ "," _ "," _ "," _ "," _ "," _ ",null," _ "," _ "," _ "," _ ","0240","Cash Receipts By Source / Transfers and Subsidies - Operational","W"," _ "," _ "," _ "," _ "," _ "," _ "," _ "," _ "," _ "," _ "," _ ",null," _ "," _ "," _ "," _ "," _ ",null," _ "," _ "," _ "," _ ",null,8,82,"Fencing and Fences","Public Safety",null,null,0,0,0,0,0,-345000,-402500,-460000,0,"_","_","_","_"]
["O0021-2/IA02108/F0041/X108/R0230/001/CONTRA","O0021-2/IA02108/F0041/X108/R0230/001/CONTRA",122032,0,"Assets:Current Assets:Cash and Cash Equivalents:Cash at Bank:Bank Account:Specify (replace with account description):Withdrawals"," _"," _"," _ "," _ "," _ "," _ ","2300","Public safety","2304","Fencing and Fences","_"," _"," _","O","IA","0120","Current assets / Cash and cash equivalents","0120","Cash and cash equivalents","0150W","CASH FLOW FROM OPERATING ACTIVITIES / Receipts / Transfers and Subsidies - Operational","0150W","CASH FLOW FROM OPERATING ACTIVITIES / Receipts / Transfers and Subsidies - Operational"," _ "," _ "," _ "," _ "," _ "," _ "," _ "," _ ",null," _ "," _ "," _ "," _ ","0240","Cash Receipts By Source / Transfers and Subsidies - Operational","W"," _ "," _ "," _ "," _ "," _ "," _ "," _ "," _ "," _ "," _ "," _ ",null," _ "," _ "," _ "," _ "," _ ",null," _ "," _ "," _ "," _ ",null,8,82,"Fencing and Fences","Public Safety",null,null,0,0,0,0,0,0,0,0,0,"_","_","_","_"]
["O0021-1/IA10338/F0041/X108/R0230/001/CONTRA","O0021-1/IA10338/F0041/X108/R0230/001/CONTRA",122029,0,"Assets:Current Assets:Inventory:Consumables:Standard Rated:Issues"," _"," _"," _ "," _ "," _ "," _ ","2300","Public safety","2304","Fencing and Fences","_"," _"," _","O","IA","0160","Current assets / Inventory","0186","Agricultural: Adjustments"," _ "," _ ","_","_"," _ "," _ "," _ "," _ "," _ "," _ "," _ "," _ ",null,"0193","Consumables Standard Rated / Issues","0193","Consumables Standard Rated / Issues","",null,null," _ "," _ "," _ "," _ "," _ "," _ "," _ "," _ "," _ "," _ "," _ ",null," _ "," _ "," _ "," _ "," _ ",null," _ "," _ "," _ "," _ ",null,8,82,"Fencing and Fences","Public Safety",null,null,0,0,0,0,0,-300000,-350000,-400000,0,"_","_","_","_"]
["O0021-1/IA10375/F0041/X108/R0230/001/CONTRA","O0021-1/IA10375/F0041/X108/R0230/001/CONTRA",122030,0,"Assets:Current Assets:VAT Receivable:Input Tax Accrual:Recognised"," _"," _"," _ "," _ "," _ "," _ ","2300","Public safety","2304","Fencing and Fences","_"," _"," _","O","IA","0170","Current assets / VAT","0170","VAT"," _ "," _ ","_","_"," _ "," _ "," _ "," _ "," _ "," _ "," _ "," _ ",null," _ "," _ "," _ "," _ ","",null,null," _ "," _ "," _ "," _ "," _ "," _ "," _ "," _ "," _ "," _ "," _ ",null," _ "," _ "," _ "," _ "," _ ",null," _ "," _ "," _ "," _ ",null,8,82,"Fencing and Fences","Public Safety",null,null,0,0,0,0,0,0,0,0,0,"_","_","_","_"]
["O0021-2/IA10375/F0041/X108/R0230/001/CONTRA","O0021-2/IA10375/F0041/X108/R0230/001/CONTRA",122033,0,"Assets:Current Assets:VAT Receivable:Input Tax Accrual:Recognised"," _"," _"," _ "," _ "," _ "," _ ","2300","Public safety","2304","Fencing and Fences","_"," _"," _","O","IA","0170","Current assets / VAT","0170","VAT"," _ "," _ ","_","_"," _ "," _ "," _ "," _ "," _ "," _ "," _ "," _ ",null," _ "," _ "," _ "," _ ","",null,null," _ "," _ "," _ "," _ "," _ "," _ "," _ "," _ "," _ "," _ "," _ ",null," _ "," _ "," _ "," _ "," _ ",null," _ "," _ "," _ "," _ ",null,8,82,"Fencing and Fences","Public Safety",null,null,0,0,0,0,0,0,0,0,0,"_","_","_","_"]
["O0021-2/IL53820/F0041/X108/R0230/001/CONTRA","O0021-2/IL53820/F0041/X108/R0230/001/CONTRA",122034,0,"Liabilities:Current Liabilities:Trade and Other Payable Exchange Transactions:Payables and Accruals : General:Deposits"," _"," _"," _ "," _ "," _ "," _ ","2300","Public safety","2304","Fencing and Fences","_"," _"," _","O","IL","0380","Current liabilities / Trade and other payables from exchange transactions","_","_"," _ "," _ ","_","_"," _ "," _ "," _ "," _ "," _ "," _ "," _ "," _ ",null,"0361","Trade and other payables / Trade and other payables from exchange transactions","0361","Trade and other payables / Trade and other payables from exchange transactions","",null,null," _ "," _ "," _ "," _ "," _ "," _ "," _ "," _ "," _ "," _ "," _ ",null," _ "," _ "," _ "," _ "," _ ",null," _ "," _ "," _ "," _ ",null,8,82,"Fencing and Fences","Public Safety",null,null,0,0,0,0,0,0,0,0,0,"_","_","_","_"]
["O0021-1/IE00738/F0041/X108/R0230/001/6273","O0021-1/IE00738/F0041/X108/R0230/001/6273",69052,4297,"Expenditure:Inventory Consumed:Consumables:Standard Rated","3400","Expenditure / Inventory consumed","6002","Expenditure / Inventory consumed","6002","Inventory Consumed - Other","2300","Public safety","2304","Fencing and Fences","_"," _"," _","O","IE"," _ "," _ "," _ "," _ "," _ "," _ ","_","_"," _ "," _ "," _ "," _ "," _ "," _ "," _ "," _ ",null," _ "," _ "," _ "," _ ","",null,null," _ "," _ "," _ "," _ "," _ "," _ "," _ "," _ "," _ "," _ "," _ ",null," _ "," _ "," _ "," _ "," _ ",null," _ "," _ "," _ "," _ ",null,8,82,"Fencing and Fences","Public Safety",null,null,130570,201975,170050,450000,100000,300000,350000,400000,0,"_","_","_","_"]
["O0021-1/IL65528/F0041/X108/R0230/001/CONTRA","O0021-1/IL65528/F0041/X108/R0230/001/CONTRA",122031,0,"Liabilities:Current Liabilities:Trade and Other Payable Exchange Transactions:Payables and Accruals : Inventory:Withdrawals"," _"," _"," _ "," _ "," _ "," _ ","2300","Public safety","2304","Fencing and Fences","_"," _"," _","O","IL","0380","Current liabilities / Trade and other payables from exchange transactions","_","_"," _ "," _ ","_","_","0200","Cash Payments by Type / Water & Inventory","0430","Cash Payments by Type / Water & Inventory"," _ "," _ "," _ "," _ ",null,"0361","Trade and other payables / Trade and other payables from exchange transactions","0361","Trade and other payables / Trade and other payables from exchange transactions","",null,null," _ "," _ "," _ "," _ "," _ "," _ "," _ "," _ "," _ "," _ "," _ ",null," _ "," _ "," _ "," _ "," _ ",null," _ "," _ "," _ "," _ ",null,8,82,"Fencing and Fences","Public Safety",null,null,0,0,0,0,0,345000,402500,460000,0,"_","_","_","_"]
["C0055-2/IA02105/F0791/X116/R0022/001/CONTRA","C0055-2/IA02105/F0791/X116/R0022/001/CONTRA",124352,0,"Assets:Current Assets:Cash and Cash Equivalents:Cash at Bank:Bank Account:Specify (replace with account description):Deposits"," _"," _"," _ "," _ "," _ "," _ ","3200","Road transport","3205","Roads","_",2010,"Funded by National Government","C","IA","0120","Current assets / Cash and cash equivalents","0120","Cash and cash equivalents","0","CASH FLOW FROM OPERATING ACTIVITIES / Receipts / Transfers and Subsidies - Capital","0","Transfers - National, Provincial, District Municipalities ","","Recepts - Cash and Cash Equivalents","0510","Recepts - Cash and Cash Equivalents"," _ "," _ "," _ "," _ ",null," _ "," _ "," _ "," _ ","0280","Other Cash Flows by Source / Transfers and subsidies - capital (monetary allocations) (National / Provincial and District)","D","0170","0170","Infrastructure / Storm water Infrastructure / Drainage Collection","Infrastructure / Storm water Infrastructure / Drainage Collection"," _ "," _ "," _ "," _ "," _ "," _ "," _ ",null," _ "," _ "," _ "," _ "," _ ",null," _ "," _ "," _ "," _ ",null,7,74,"Roads","Road Transport",null,null,0,0,0,0,0,0,0,0,0,"_","_","_","_"]
["C0055-1/IA02105/F0791/X116/R0023/001/CONTRA","C0055-1/IA02105/F0791/X116/R0023/001/CONTRA",124344,0,"Assets:Current Assets:Cash and Cash Equivalents:Cash at Bank:Bank Account:Specify (replace with account description):Deposits"," _"," _"," _ "," _ "," _ "," _ ","3200","Road transport","3205","Roads","_",2010,"Funded by National Government","C","IA","0120","Current assets / Cash and cash equivalents","0120","Cash and cash equivalents","0","CASH FLOW FROM OPERATING ACTIVITIES / Receipts / Transfers and Subsidies - Capital","0","Transfers - National, Provincial, District Municipalities ","","Recepts - Cash and Cash Equivalents","0510","Recepts - Cash and Cash Equivalents"," _ "," _ "," _ "," _ ",null," _ "," _ "," _ "," _ ","0280","Other Cash Flows by Source / Transfers and subsidies - capital (monetary allocations) (National / Provincial and District)","D","0170","0170","Infrastructure / Storm water Infrastructure / Drainage Collection","Infrastructure / Storm water Infrastructure / Drainage Collection"," _ "," _ "," _ "," _ "," _ "," _ "," _ ",null," _ "," _ "," _ "," _ "," _ ",null," _ "," _ "," _ "," _ ",null,7,74,"Roads","Road Transport",null,null,0,0,0,0,0,0,0,0,0,"_","_","_","_"]
["C0055-2/IA02105/F0002/X116/R0022/001/CONTRA","C0055-2/IA02105/F0002/X116/R0022/001/CONTRA",124348,0,"Assets:Current Assets:Cash and Cash Equivalents:Cash at Bank:Bank Account:Specify (replace with account description):Deposits"," _"," _"," _ "," _ "," _ "," _ ","3200","Road transport","3205","Roads","_",2080,"Funded by Internally generated funds","C","IA","0120","Current assets / Cash and cash equivalents","0120","Cash and cash equivalents"," _ "," _ ","_","_","","Recepts - Cash and Cash Equivalents","0510","Recepts - Cash and Cash Equivalents"," _ "," _ "," _ "," _ ",null," _ "," _ "," _ "," _ ","",null,"D","0170","0170","Infrastructure / Storm water Infrastructure / Drainage Collection","Infrastructure / Storm water Infrastructure / Drainage Collection"," _ "," _ "," _ "," _ "," _ "," _ "," _ ",null," _ "," _ "," _ "," _ "," _ ",null," _ "," _ "," _ "," _ ",null,7,74,"Roads","Road Transport",null,null,0,0,0,0,0,-11150113,-10350000,-23566240,0,"_","_","_","_"]
["C0055-1/IA02105/F0002/X116/R0023/001/CONTRA","C0055-1/IA02105/F0002/X116/R0023/001/CONTRA",124340,0,"Assets:Current Assets:Cash and Cash Equivalents:Cash at Bank:Bank Account:Specify (replace with account description):Deposits"," _"," _"," _ "," _ "," _ "," _ ","3200","Road transport","3205","Roads","_",2080,"Funded by Internally generated funds","C","IA","0120","Current assets / Cash and cash equivalents","0120","Cash and cash equivalents"," _ "," _ ","_","_","","Recepts - Cash and Cash Equivalents","0510","Recepts - Cash and Cash Equivalents"," _ "," _ "," _ "," _ ",null," _ "," _ "," _ "," _ ","",null,"D","0170","0170","Infrastructure / Storm water Infrastructure / Drainage Collection","Infrastructure / Storm water Infrastructure / Drainage Collection"," _ "," _ "," _ "," _ "," _ "," _ "," _ ",null," _ "," _ "," _ "," _ "," _ ",null," _ "," _ "," _ "," _ ",null,7,74,"Roads","Road Transport",null,null,0,0,0,0,0,-13605433,-11500000,-16724824,0,"_","_","_","_"]
["C0055-2/IA10370/F0791/X116/R0022/001/CONTRA","C0055-2/IA10370/F0791/X116/R0022/001/CONTRA",124353,0,"Assets:Current Assets:VAT Receivable:Input Tax Capital:Recognised"," _"," _"," _ "," _ "," _ "," _ ","3200","Road transport","3205","Roads","_",2010,"Funded by National Government","C","IA","0170","Current assets / VAT","0170","VAT"," _ "," _ ","_","_"," _ "," _ "," _ "," _ "," _ "," _ "," _ "," _ ",null," _ "," _ "," _ "," _ ","",null,null,"0170","0170","Infrastructure / Storm water Infrastructure / Drainage Collection","Infrastructure / Storm water Infrastructure / Drainage Collection"," _ "," _ "," _ "," _ "," _ "," _ "," _ ",null," _ "," _ "," _ "," _ "," _ ",null," _ "," _ "," _ "," _ ",null,7,74,"Roads","Road Transport",null,null,0,0,0,0,0,0,0,0,0,"_","_","_","_"]
["C0055-1/IA10370/F0791/X116/R0023/001/CONTRA","C0055-1/IA10370/F0791/X116/R0023/001/CONTRA",124345,0,"Assets:Current Assets:VAT Receivable:Input Tax Capital:Recognised"," _"," _"," _ "," _ "," _ "," _ ","3200","Road transport","3205","Roads","_",2010,"Funded by National Government","C","IA","0170","Current assets / VAT","0170","VAT"," _ "," _ ","_","_"," _ "," _ "," _ "," _ "," _ "," _ "," _ "," _ ",null," _ "," _ "," _ "," _ ","",null,null,"0170","0170","Infrastructure / Storm water Infrastructure / Drainage Collection","Infrastructure / Storm water Infrastructure / Drainage Collection"," _ "," _ "," _ "," _ "," _ "," _ "," _ ",null," _ "," _ "," _ "," _ "," _ ",null," _ "," _ "," _ "," _ ",null,7,74,"Roads","Road Transport",null,null,0,0,0,0,0,0,0,0,0,"_","_","_","_"]
["C0055-1/IA10370/F0002/X116/R0023/001/CONTRA","C0055-1/IA10370/F0002/X116/R0023/001/CONTRA",124341,0,"Assets:Current Assets:VAT Receivable:Input Tax Capital:Recognised"," _"," _"," _ "," _ "," _ "," _ ","3200","Road transport","3205","Roads","_",2080,"Funded by Internally generated funds","C","IA","0170","Current assets / VAT","0170","VAT"," _ "," _ ","_","_"," _ "," _ "," _ "," _ "," _ "," _ "," _ "," _ ",null," _ "," _ "," _ "," _ ","",null,null,"0170","0170","Infrastructure / Storm water Infrastructure / Drainage Collection","Infrastructure / Storm water Infrastructure / Drainage Collection"," _ "," _ "," _ "," _ "," _ "," _ "," _ ",null," _ "," _ "," _ "," _ "," _ ",null," _ "," _ "," _ "," _ ",null,7,74,"Roads","Road Transport",null,null,0,0,0,0,0,1774622,1500000,2181499,0,"_","_","_","_"]
["C0055-2/IA10370/F0002/X116/R0022/001/CONTRA","C0055-2/IA10370/F0002/X116/R0022/001/CONTRA",124349,0,"Assets:Current Assets:VAT Receivable:Input Tax Capital:Recognised"," _"," _"," _ "," _ "," _ "," _ ","3200","Road transport","3205","Roads","_",2080,"Funded by Internally generated funds","C","IA","0170","Current assets / VAT","0170","VAT"," _ "," _ ","_","_"," _ "," _ "," _ "," _ "," _ "," _ "," _ "," _ ",null," _ "," _ "," _ "," _ ","",null,null,"0170","0170","Infrastructure / Storm water Infrastructure / Drainage Collection","Infrastructure / Storm water Infrastructure / Drainage Collection"," _ "," _ "," _ "," _ "," _ "," _ "," _ ",null," _ "," _ "," _ "," _ "," _ ",null," _ "," _ "," _ "," _ ",null,7,74,"Roads","Road Transport",null,null,0,0,0,0,0,1454363,1350000,3073857,0,"_","_","_","_"]
["C0055-2/IA02108/F0002/X116/R0022/001/CONTRA","C0055-2/IA02108/F0002/X116/R0022/001/CONTRA",124672,0,"Assets:Current Assets:Cash and Cash Equivalents:Cash at Bank:Bank Account:Specify (replace with account description):Withdrawals"," _"," _"," _ "," _ "," _ "," _ ","3200","Road transport","3205","Roads","_",2080,"Funded by Internally generated funds","C","IA","0120","Current assets / Cash and cash equivalents","0120","Cash and cash equivalents"," _ "," _ ","_","_","0310","Other Cash Flows/Payments by Type / Capital assets","0510","Capital assets"," _ "," _ "," _ "," _ ",null," _ "," _ "," _ "," _ ","",null,"W","0170","0170","Infrastructure / Storm water Infrastructure / Drainage Collection","Infrastructure / Storm water Infrastructure / Drainage Collection"," _ "," _ "," _ "," _ "," _ "," _ "," _ ",null," _ "," _ "," _ "," _ "," _ ",null," _ "," _ "," _ "," _ ",null,7,74,"Roads","Road Transport",null,null,0,0,0,0,0,0,0,0,0,"_","_","_","_"]
["C0055-1/IA02108/F0002/X116/R0023/001/CONTRA","C0055-1/IA02108/F0002/X116/R0023/001/CONTRA",124670,0,"Assets:Current Assets:Cash and Cash Equivalents:Cash at Bank:Bank Account:Specify (replace with account description):Withdrawals"," _"," _"," _ "," _ "," _ "," _ ","3200","Road transport","3205","Roads","_",2080,"Funded by Internally generated funds","C","IA","0120","Current assets / Cash and cash equivalents","0120","Cash and cash equivalents"," _ "," _ ","_","_","0310","Other Cash Flows/Payments by Type / Capital assets","0510","Capital assets"," _ "," _ "," _ "," _ ",null," _ "," _ "," _ "," _ ","",null,"W","0170","0170","Infrastructure / Storm water Infrastructure / Drainage Collection","Infrastructure / Storm water Infrastructure / Drainage Collection"," _ "," _ "," _ "," _ "," _ "," _ "," _ ",null," _ "," _ "," _ "," _ "," _ ",null," _ "," _ "," _ "," _ ",null,7,74,"Roads","Road Transport",null,null,0,0,0,0,0,0,0,0,0,"_","_","_","_"]
["C0055-1/IA02108/F0791/X116/R0023/001/CONTRA","C0055-1/IA02108/F0791/X116/R0023/001/CONTRA",124671,0,"Assets:Current Assets:Cash and Cash Equivalents:Cash at Bank:Bank Account:Specify (replace with account description):Withdrawals"," _"," _"," _ "," _ "," _ "," _ ","3200","Road transport","3205","Roads","_",2010,"Funded by National Government","C","IA","0120","Current assets / Cash and cash equivalents","0120","Cash and cash equivalents","0160W","CASH FLOW FROM OPERATING ACTIVITIES / Receipts / Transfers and Subsidies - Capital","0160W","CASH FLOW FROM OPERATING ACTIVITIES / Receipts / Transfers and Subsidies - Capital","0310","Other Cash Flows/Payments by Type / Capital assets","0510","Capital assets"," _ "," _ "," _ "," _ ",null," _ "," _ "," _ "," _ ","0280","Other Cash Flows by Source / Transfers and subsidies - capital (monetary allocations) (National / Provincial and District)","W","0170","0170","Infrastructure / Storm water Infrastructure / Drainage Collection","Infrastructure / Storm water Infrastructure / Drainage Collection"," _ "," _ "," _ "," _ "," _ "," _ "," _ ",null," _ "," _ "," _ "," _ "," _ ",null," _ "," _ "," _ "," _ ",null,7,74,"Roads","Road Transport",null,null,0,0,0,0,0,0,0,0,0,"_","_","_","_"]
["C0055-2/IA02108/F0791/X116/R0022/001/CONTRA","C0055-2/IA02108/F0791/X116/R0022/001/CONTRA",124673,0,"Assets:Current Assets:Cash and Cash Equivalents:Cash at Bank:Bank Account:Specify (replace with account description):Withdrawals"," _"," _"," _ "," _ "," _ "," _ ","3200","Road transport","3205","Roads","_",2010,"Funded by National Government","C","IA","0120","Current assets / Cash and cash equivalents","0120","Cash and cash equivalents","0160W","CASH FLOW FROM OPERATING ACTIVITIES / Receipts / Transfers and Subsidies - Capital","0160W","CASH FLOW FROM OPERATING ACTIVITIES / Receipts / Transfers and Subsidies - Capital","0310","Other Cash Flows/Payments by Type / Capital assets","0510","Capital assets"," _ "," _ "," _ "," _ ",null," _ "," _ "," _ "," _ ","0280","Other Cash Flows by Source / Transfers and subsidies - capital (monetary allocations) (National / Provincial and District)","W","0170","0170","Infrastructure / Storm water Infrastructure / Drainage Collection","Infrastructure / Storm water Infrastructure / Drainage Collection"," _ "," _ "," _ "," _ "," _ "," _ "," _ ",null," _ "," _ "," _ "," _ "," _ ",null," _ "," _ "," _ "," _ ",null,7,74,"Roads","Road Transport",null,null,0,0,0,0,0,0,0,0,0,"_","_","_","_"]
["C0055-2/IL65531/F0791/X116/R0022/001/CONTRA","C0055-2/IL65531/F0791/X116/R0022/001/CONTRA",124355,0,"Liabilities:Current Liabilities:Trade and Other Payable Exchange Transactions:Payables and Accruals : Contractors:Withdrawals"," _"," _"," _ "," _ "," _ "," _ ","3200","Road transport","3205","Roads","_",2010,"Funded by National Government","C","IL","0380","Current liabilities / Trade and other payables from exchange transactions","_","_"," _ "," _ ","_","_","0200","Cash Payments by Type / Contracted Services","0450","Cash Payments by Type / Contracted Services"," _ "," _ "," _ "," _ ",null,"0361","Trade and other payables / Trade and other payables from exchange transactions","0361","Trade and other payables / Trade and other payables from exchange transactions","",null,null,"0170","0170","Infrastructure / Storm water Infrastructure / Drainage Collection","Infrastructure / Storm water Infrastructure / Drainage Collection"," _ "," _ "," _ "," _ "," _ "," _ "," _ ",null," _ "," _ "," _ "," _ "," _ ",null," _ "," _ "," _ "," _ ",null,7,74,"Roads","Road Transport",null,null,0,0,0,0,0,0,0,0,0,"_","_","_","_"]
["C0055-1/IL65531/F0791/X116/R0023/001/CONTRA","C0055-1/IL65531/F0791/X116/R0023/001/CONTRA",124347,0,"Liabilities:Current Liabilities:Trade and Other Payable Exchange Transactions:Payables and Accruals : Contractors:Withdrawals"," _"," _"," _ "," _ "," _ "," _ ","3200","Road transport","3205","Roads","_",2010,"Funded by National Government","C","IL","0380","Current liabilities / Trade and other payables from exchange transactions","_","_"," _ "," _ ","_","_","0200","Cash Payments by Type / Contracted Services","0450","Cash Payments by Type / Contracted Services"," _ "," _ "," _ "," _ ",null,"0361","Trade and other payables / Trade and other payables from exchange transactions","0361","Trade and other payables / Trade and other payables from exchange transactions","",null,null,"0170","0170","Infrastructure / Storm water Infrastructure / Drainage Collection","Infrastructure / Storm water Infrastructure / Drainage Collection"," _ "," _ "," _ "," _ "," _ "," _ "," _ ",null," _ "," _ "," _ "," _ "," _ ",null," _ "," _ "," _ "," _ ",null,7,74,"Roads","Road Transport",null,null,0,0,0,0,0,0,0,0,0,"_","_","_","_"]
["C0055-2/IL65531/F0002/X116/R0022/001/CONTRA","C0055-2/IL65531/F0002/X116/R0022/001/CONTRA",124351,0,"Liabilities:Current Liabilities:Trade and Other Payable Exchange Transactions:Payables and Accruals : Contractors:Withdrawals"," _"," _"," _ "," _ "," _ "," _ ","3200","Road transport","3205","Roads","_",2080,"Funded by Internally generated funds","C","IL","0380","Current liabilities / Trade and other payables from exchange transactions","_","_"," _ "," _ ","_","_","0200","Cash Payments by Type / Contracted Services","0450","Cash Payments by Type / Contracted Services"," _ "," _ "," _ "," _ ",null,"0361","Trade and other payables / Trade and other payables from exchange transactions","0361","Trade and other payables / Trade and other payables from exchange transactions","",null,null,"0170","0170","Infrastructure / Storm water Infrastructure / Drainage Collection","Infrastructure / Storm water Infrastructure / Drainage Collection"," _ "," _ "," _ "," _ "," _ "," _ "," _ ",null," _ "," _ "," _ "," _ "," _ ",null," _ "," _ "," _ "," _ ",null,7,74,"Roads","Road Transport",null,null,0,0,0,0,0,11150113,10350000,23566240,0,"_","_","_","_"]
["C0055-1/IL65531/F0002/X116/R0023/001/CONTRA","C0055-1/IL65531/F0002/X116/R0023/001/CONTRA",124343,0,"Liabilities:Current Liabilities:Trade and Other Payable Exchange Transactions:Payables and Accruals : Contractors:Withdrawals"," _"," _"," _ "," _ "," _ "," _ ","3200","Road transport","3205","Roads","_",2080,"Funded by Internally generated funds","C","IL","0380","Current liabilities / Trade and other payables from exchange transactions","_","_"," _ "," _ ","_","_","0200","Cash Payments by Type / Contracted Services","0450","Cash Payments by Type / Contracted Services"," _ "," _ "," _ "," _ ",null,"0361","Trade and other payables / Trade and other payables from exchange transactions","0361","Trade and other payables / Trade and other payables from exchange transactions","",null,null,"0170","0170","Infrastructure / Storm water Infrastructure / Drainage Collection","Infrastructure / Storm water Infrastructure / Drainage Collection"," _ "," _ "," _ "," _ "," _ "," _ "," _ ",null," _ "," _ "," _ "," _ "," _ ",null," _ "," _ "," _ "," _ ",null,7,74,"Roads","Road Transport",null,null,0,0,0,0,0,13605433,11500000,16724824,0,"_","_","_","_"]
["C0055-2/IA01952/F0002/X116/R0022/001/6601","C0055-2/IA01952/F0002/X116/R0022/001/6601",120629,11513,"Assets:Non-current Assets:Construction Work-in-progress:Acquisitions:Outsourced"," _"," _"," _ "," _ "," _ "," _ ","3200","Road transport","3205","Roads","CE",2080,"Funded by Internally generated funds","C","IA","0230","Non current assets / Property, plant and equipment","0231","Land: Acquisitions"," _ "," _ ","_","_"," _ "," _ "," _ "," _ "," _ "," _ "," _ "," _ ","0170","0241","Property, plant and equipment (PPE) / PPE at cost/valuation (excl. finance leases)","0241","Property, plant and equipment (PPE) / PPE at cost/valuation (excl. finance leases)","",null,null,"0170","0170","Infrastructure / Storm water Infrastructure / Drainage Collection","Infrastructure / Storm water Infrastructure / Drainage Collection"," _ "," _ "," _ "," _ "," _ "," _ "," _ ",null," _ "," _ "," _ "," _ "," _ ",null," _ "," _ "," _ "," _ ",null,7,74,"Roads","Road Transport",null,null,0,0,0,0,0,9695750,9000000,20492383,0,"_","_","_","_"]
["C0055-1/IA01952/F0791/X116/R0023/001/6601","C0055-1/IA01952/F0791/X116/R0023/001/6601",120627,11511,"Assets:Non-current Assets:Construction Work-in-progress:Acquisitions:Outsourced"," _"," _"," _ "," _ "," _ "," _ ","3200","Road transport","3205","Roads","CE",2010,"Funded by National Government","C","IA","0230","Non current assets / Property, plant and equipment","0231","Land: Acquisitions"," _ "," _ ","_","_"," _ "," _ "," _ "," _ "," _ "," _ "," _ "," _ ","0170","0241","Property, plant and equipment (PPE) / PPE at cost/valuation (excl. finance leases)","0241","Property, plant and equipment (PPE) / PPE at cost/valuation (excl. finance leases)","",null,null,"0170","0170","Infrastructure / Storm water Infrastructure / Drainage Collection","Infrastructure / Storm water Infrastructure / Drainage Collection"," _ "," _ "," _ "," _ "," _ "," _ "," _ ",null," _ "," _ "," _ "," _ "," _ ",null," _ "," _ "," _ "," _ ",null,7,74,"Roads","Road Transport",null,null,0,0,0,0,0,0,0,0,0,"_","_","_","_"]
["C0055-2/IA01952/F0791/X116/R0022/001/6601","C0055-2/IA01952/F0791/X116/R0022/001/6601",120628,11512,"Assets:Non-current Assets:Construction Work-in-progress:Acquisitions:Outsourced"," _"," _"," _ "," _ "," _ "," _ ","3200","Road transport","3205","Roads","CE",2010,"Funded by National Government","C","IA","0230","Non current assets / Property, plant and equipment","0231","Land: Acquisitions"," _ "," _ ","_","_"," _ "," _ "," _ "," _ "," _ "," _ "," _ "," _ ","0170","0241","Property, plant and equipment (PPE) / PPE at cost/valuation (excl. finance leases)","0241","Property, plant and equipment (PPE) / PPE at cost/valuation (excl. finance leases)","",null,null,"0170","0170","Infrastructure / Storm water Infrastructure / Drainage Collection","Infrastructure / Storm water Infrastructure / Drainage Collection"," _ "," _ "," _ "," _ "," _ "," _ "," _ ",null," _ "," _ "," _ "," _ "," _ ",null," _ "," _ "," _ "," _ ",null,7,74,"Roads","Road Transport",null,null,0,0,0,0,0,0,0,0,0,"_","_","_","_"]
["C0055-1/IA01952/F0002/X116/R0023/001/6601","C0055-1/IA01952/F0002/X116/R0023/001/6601",120626,11510,"Assets:Non-current Assets:Construction Work-in-progress:Acquisitions:Outsourced"," _"," _"," _ "," _ "," _ "," _ ","3200","Road transport","3205","Roads","CE",2080,"Funded by Internally generated funds","C","IA","0230","Non current assets / Property, plant and equipment","0231","Land: Acquisitions"," _ "," _ ","_","_"," _ "," _ "," _ "," _ "," _ "," _ "," _ "," _ ","0170","0241","Property, plant and equipment (PPE) / PPE at cost/valuation (excl. finance leases)","0241","Property, plant and equipment (PPE) / PPE at cost/valuation (excl. finance leases)","",null,null,"0170","0170","Infrastructure / Storm water Infrastructure / Drainage Collection","Infrastructure / Storm water Infrastructure / Drainage Collection"," _ "," _ "," _ "," _ "," _ "," _ "," _ ",null," _ "," _ "," _ "," _ "," _ ",null," _ "," _ "," _ "," _ ",null,7,74,"Roads","Road Transport",null,null,0,0,0,0,0,11830811,10000000,14543325,0,"_","_","_","_"]
["C0055-2/IL65530/F0791/X116/R0022/001/CONTRA","C0055-2/IL65530/F0791/X116/R0022/001/CONTRA",124354,0,"Liabilities:Current Liabilities:Trade and Other Payable Exchange Transactions:Payables and Accruals : Contractors:Deposits"," _"," _"," _ "," _ "," _ "," _ ","3200","Road transport","3205","Roads","_",2010,"Funded by National Government","C","IL","0380","Current liabilities / Trade and other payables from exchange transactions","_","_"," _ "," _ ","_","_"," _ "," _ "," _ "," _ "," _ "," _ "," _ "," _ ",null,"0361","Trade and other payables / Trade and other payables from exchange transactions","0361","Trade and other payables / Trade and other payables from exchange transactions","",null,null,"0170","0170","Infrastructure / Storm water Infrastructure / Drainage Collection","Infrastructure / Storm water Infrastructure / Drainage Collection"," _ "," _ "," _ "," _ "," _ "," _ "," _ ",null," _ "," _ "," _ "," _ "," _ ",null," _ "," _ "," _ "," _ ",null,7,74,"Roads","Road Transport",null,null,0,0,0,0,0,0,0,0,0,"_","_","_","_"]
["C0055-1/IL65530/F0791/X116/R0023/001/CONTRA","C0055-1/IL65530/F0791/X116/R0023/001/CONTRA",124346,0,"Liabilities:Current Liabilities:Trade and Other Payable Exchange Transactions:Payables and Accruals : Contractors:Deposits"," _"," _"," _ "," _ "," _ "," _ ","3200","Road transport","3205","Roads","_",2010,"Funded by National Government","C","IL","0380","Current liabilities / Trade and other payables from exchange transactions","_","_"," _ "," _ ","_","_"," _ "," _ "," _ "," _ "," _ "," _ "," _ "," _ ",null,"0361","Trade and other payables / Trade and other payables from exchange transactions","0361","Trade and other payables / Trade and other payables from exchange transactions","",null,null,"0170","0170","Infrastructure / Storm water Infrastructure / Drainage Collection","Infrastructure / Storm water Infrastructure / Drainage Collection"," _ "," _ "," _ "," _ "," _ "," _ "," _ ",null," _ "," _ "," _ "," _ "," _ ",null," _ "," _ "," _ "," _ ",null,7,74,"Roads","Road Transport",null,null,0,0,0,0,0,0,0,0,0,"_","_","_","_"]
["C0055-1/IL65530/F0002/X116/R0023/001/CONTRA","C0055-1/IL65530/F0002/X116/R0023/001/CONTRA",124342,0,"Liabilities:Current Liabilities:Trade and Other Payable Exchange Transactions:Payables and Accruals : Contractors:Deposits"," _"," _"," _ "," _ "," _ "," _ ","3200","Road transport","3205","Roads","_",2080,"Funded by Internally generated funds","C","IL","0380","Current liabilities / Trade and other payables from exchange transactions","_","_"," _ "," _ ","_","_"," _ "," _ "," _ "," _ "," _ "," _ "," _ "," _ ",null,"0361","Trade and other payables / Trade and other payables from exchange transactions","0361","Trade and other payables / Trade and other payables from exchange transactions","",null,null,"0170","0170","Infrastructure / Storm water Infrastructure / Drainage Collection","Infrastructure / Storm water Infrastructure / Drainage Collection"," _ "," _ "," _ "," _ "," _ "," _ "," _ ",null," _ "," _ "," _ "," _ "," _ ",null," _ "," _ "," _ "," _ ",null,7,74,"Roads","Road Transport",null,null,0,0,0,0,0,-13605433,-11500000,-16724824,0,"_","_","_","_"]
["C0055-2/IL65530/F0002/X116/R0022/001/CONTRA","C0055-2/IL65530/F0002/X116/R0022/001/CONTRA",124350,0,"Liabilities:Current Liabilities:Trade and Other Payable Exchange Transactions:Payables and Accruals : Contractors:Deposits"," _"," _"," _ "," _ "," _ "," _ ","3200","Road transport","3205","Roads","_",2080,"Funded by Internally generated funds","C","IL","0380","Current liabilities / Trade and other payables from exchange transactions","_","_"," _ "," _ ","_","_"," _ "," _ "," _ "," _ "," _ "," _ "," _ "," _ ",null,"0361","Trade and other payables / Trade and other payables from exchange transactions","0361","Trade and other payables / Trade and other payables from exchange transactions","",null,null,"0170","0170","Infrastructure / Storm water Infrastructure / Drainage Collection","Infrastructure / Storm water Infrastructure / Drainage Collection"," _ "," _ "," _ "," _ "," _ "," _ "," _ ",null," _ "," _ "," _ "," _ "," _ ",null," _ "," _ "," _ "," _ ",null,7,74,"Roads","Road Transport",null,null,0,0,0,0,0,-11150113,-10350000,-23566240,0,"_","_","_","_"]

{"sheet":"Raw_SA4","index":1,"n_rows":5,"n_cols":13,"rows_kept":5,"cut":false,"hidden":true,"merged":[]}
["StrategicObjective","Goal","GoalCode","ref","S71_PPPYearAmount","S71_PPYearAmount","S71_PYearAmount","S71_OriginalBudAmnt","S71_AdjustmentBudAmnt","S71_ForecastAmnt","S71_ASBudgetAmount","S71_OY1BudgetAmount","S71_OY2BudgetAmount"]
["Financial Viability","Responsive, accountable, effective and efficient local government",9,"_",449813167,556407882,510283278,-569556802,-578345589,-578345589,612336536,639168623,639903262]
["Infrastructure Development and Basic Service Delivery","Responsive, accountable, effective and efficient local government",9,"_",19187862,22089579,16767556,-21540000,-18496000,-18496000,19833989,20805856,21783727]
["Institutional Development and Transformation","Responsive, accountable, effective and efficient local government",9,"_",-1121818,-2909350,8718943,-8460000,-2616480,-2616480,8365000,8475000,8585000]
["Local Economic Development","Responsive, accountable, effective and efficient local government",9,"_",352646,182515,219519,-606600,-336600,-336600,421600,442258,463044]

{"sheet":"Raw_SA5","index":2,"n_rows":29,"n_cols":13,"rows_kept":29,"cut":false,"hidden":true,"merged":[]}
["StrategicObjective","Goal","GoalCode","ref","S71_PPPYearAmount","S71_PPYearAmount","S71_PYearAmount","S71_OriginalBudAmnt","S71_AdjustmentBudAmnt","S71_ForecastAmnt","S71_ASBudgetAmount","S71_OY1BudgetAmount","S71_OY2BudgetAmount"]
["Financial Viability","An efficient, effective and development-oriented public service",12,"_",4659684,5481689,5808312,4400000,8550000,8550000,8550000,8700000,8900000]
["Financial Viability","Protect and enhance our environmental assets and natural resources",10,"_",0,0,0,0,0,0,100000,110000,120000]
["Financial Viability","Responsive, accountable, effective and efficient local government",9,"_",36626726,58931108,18115991,29000000,0,0,-29000000,-30000000,-31000000]
["Financial Viability","Sustainable human settlements and improved quality of household life",8,"_",126896687,140582937,147555913,155373536,151479376,151479376,160897614,161746980,165201315]
["Good Governance and Public Participation","A comprehensive, responsive and sustainable social protection system",13,"_",304540,28500,74124,1495000,2944000,2944000,5060000,5370000,5660000]
["Good Governance and Public Participation","A long and healthy life for all South Africans",2,"_",8400,0,150960,200000,575000,575000,800000,850000,900000]
["Good Governance and Public Participation","An efficient, competitive and responsive economic infrastructure network",6,"_",0,-892148,2692148,0,0,0,0,0,0]
["Good Governance and Public Participation","An efficient, effective and development-oriented public service",12,"_",1035831,120000,1607504,3070000,3325000,3325000,3630000,3845000,4050000]
["Good Governance and Public Participation","Protect and enhance our environmental assets and natural resources",10,"_",0,0,0,80000,80000,80000,100000,110000,120000]
["Good Governance and Public Participation","Responsive, accountable, effective and efficient local government",9,"_",24500,63550,130450,350000,350000,350000,430000,450000,470000]
["Good Governance and Public Participation","Sustainable human settlements and improved quality of household life",8,"_",59773208,61080468,65285524,77762577,74288992,74288992,81249645,85028131,88890386]
["Infrastructure Development and Basic Service Delivery","A comprehensive, responsive and sustainable social protection system",13,"_",617667,578884,171772,1750000,1640000,1640000,2510000,2592000,2634000]
["Infrastructure Development and Basic Service Delivery","All people in South Africa are and feel safe",3,"_",170050,201975,130570,450000,100000,100000,300000,350000,400000]
["Infrastructure Development and Basic Service Delivery","An efficient, competitive and responsive economic infrastructure network",6,"_",2769504,12687186,38225032,72684000,99272230,99272230,121250000,147455000,148190000]
["Infrastructure Development and Basic Service Delivery","An efficient, effective and development-oriented public service",12,"_",7391823,8715924,8662632,21157056,20247056,20247056,18075000,16349500,17772000]
["Infrastructure Development and Basic Service Delivery","Protect and enhance our environmental assets and natural resources",10,"_",0,0,0,260000,260000,260000,260000,275000,290000]
["Infrastructure Development and Basic Service Delivery","Responsive, accountable, effective and efficient local government",9,"_",13687838,15804200,15417438,12000000,7000000,7000000,9000000,10000000,10000000]
["Infrastructure Development and Basic Service Delivery","Sustainable human settlements and improved quality of household life",8,"_",80683345,62594223,67248497,72047028,63544220,63544220,77417393,80013988,83965175]
["Institutional Development and Transformation","An efficient, competitive and responsive economic infrastructure network",6,"_",1837,7114338,10671681,6000000,6000000,6000000,10000000,10000000,10000000]
["Institutional Development and Transformation","An efficient, effective and development-oriented public service",12,"_",1100300,2243684,2975528,5265000,4581000,4581000,8540000,8987000,9308000]
["Institutional Development and Transformation","Responsive, accountable, effective and efficient local government",9,"_",474608,338248,55096,150000,100000,100000,200000,262000,282000]
["Institutional Development and Transformation","Sustainable human settlements and improved quality of household life",8,"_",44479265,50405706,57354645,74793677,74373775,74373775,83840927,88938797,92795781]
["Local Economic Development","An efficient, competitive and responsive economic infrastructure network",6,"_",0,0,0,0,0,0,150000,160000,170000]
["Local Economic Development","An efficient, effective and development-oriented public service",12,"_",618777,955000,612000,918000,1148000,1148000,2693000,3034000,3375000]
["Local Economic Development","Protect and enhance our environmental assets and natural resources",10,"_",0,0,0,0,0,0,92000,95500,99000]
["Local Economic Development","Sustainable human settlements and improved quality of household life",8,"_",2657220,2551235,2731489,2929638,2819591,2819591,3194417,3353974,3514428]
["To develop an effective spatial framework that promotes integrated and sustainable development","An efficient, effective and development-oriented public service",12,"_",3848730,-5282178,-1423158,5200000,2150000,2150000,4600000,5350000,6050000]
["To develop an effective spatial framework that promotes integrated and sustainable development","Sustainable human settlements and improved quality of household life",8,"_",1520859,1046427,1148556,2075463,1189485,1189485,1361420,1445381,1529723]

{"sheet":"Raw_SA6","index":3,"n_rows":12,"n_cols":13,"rows_kept":12,"cut":false,"hidden":true,"merged":[]}
["StrategicObjective","Goal","GoalCode","ref","S71_PPPYearAmount","S71_PPYearAmount","S71_PYearAmount","S71_OriginalBudAmnt","S71_AdjustmentBudAmnt","S71_ForecastAmnt","S71_ASBudgetAmount","S71_OY1BudgetAmount","S71_OY2BudgetAmount"]
["Financial Viability","A long and healthy life for all South Africans",2,"_",69647658,105595165,104241843,0,0,0,0,0,0]
["Financial Viability","An efficient, competitive and responsive economic infrastructure network",6,"_",876787714,962498411,1050157594,0,0,0,0,0,0]
["Financial Viability","An efficient, effective and development-oriented public service",12,"_",106951952,231693568,242825017,10000000,14000000,14000000,14665000,14200000,14400000]
["Financial Viability","Create a better South Africa and contribute to a better Africa and a better world",11,"_",206303,206303,206303,0,0,0,0,0,0]
["Good Governance and Public Participation","An efficient, effective and development-oriented public service",12,"_",0,0,0,1000000,1000000,1000000,1750000,1300000,1300000]
["Infrastructure Development and Basic Service Delivery","A long and healthy life for all South Africans",2,"_",72078959,36346817,42081718,31957650,22280759,22280759,19113679,13500000,0]
["Infrastructure Development and Basic Service Delivery","An efficient, competitive and responsive economic infrastructure network",6,"_",103178188,133836547,102124755,37379622,58373046,58373046,156518120,201084088,352227568]
["Infrastructure Development and Basic Service Delivery","An efficient, effective and development-oriented public service",12,"_",85598357,11346274,39566587,65534957,47302548,47302548,29578599,24820000,4940000]
["Institutional Development and Transformation","An efficient, effective and development-oriented public service",12,"_",0,0,0,4200000,2200000,2200000,7810000,8440000,8720000]
["To develop an effective spatial framework that promotes integrated and sustainable development","An efficient, competitive and responsive economic infrastructure network",6,"_",2608696,2976618,2976618,0,0,0,0,0,0]
["To develop an effective spatial framework that promotes integrated and sustainable development","An efficient, effective and development-oriented public service",12,"_",0,0,0,600000,300000,300000,1000000,1100000,1200000]

{"sheet":"Raw_SA36","index":4,"n_rows":116,"n_cols":17,"rows_kept":116,"cut":false,"hidden":true,"merged":[]}
["Function","ProjectDescription","ProjectNumber","Type","MTSFServiceOutcome","IUDF","OwnStrategicObjective","AssetClass","AssetSubClass","WardLocation","GPSLongitude","GPSLatitude","S71_PYearAmount","S71_ASBudgetAmount","S71_OY1BudgetAmount","S71_OY2BudgetAmount","S71_ForecastAmnt"]
["028ec562-fa32-4462-9c8f-90ca38ed33ae","SOLID WASTE","PC002003009000000000000000000000000000_00003","_","An efficient, effective and development-oriented public service","Growth","Infrastructure Development and Basic Service Delivery","Machinery and Equipment","Machinery and Equipment","0d0b8def-631d-4fda-b03e-71f01db572fa",30.445989608764648,-23.245990753173828,0,6000000,6300000,6600000,1050000]
["044f82e1-bbb4-4190-b772-2ff5020adecc","Upgrading of Parking Lot","PC002002002003001005000000000000000000_00002","_","An efficient, effective and development-oriented public service","Governance","Infrastructure Development and Basic Service Delivery",null,null,"9f3b39a1-4676-432f-a8b5-6c951f798106",30.413181304931641,23.183664321899414,2435125.02,1300000,0,0,0]
["044f82e1-bbb4-4190-b772-2ff5020adecc","Upgrading of Parking Lot","PC002002002003001005000000000000000000_00002","_","An efficient, effective and development-oriented public service","Governance","Infrastructure Development and Basic Service Delivery","Operational Buildings","Yards","9f3b39a1-4676-432f-a8b5-6c951f798106",30.413181304931641,23.183664321899414,7305375.0600000005,3900000,0,0,0]
["0e51e5d3-5805-402b-a5dc-3b94852c29c0","Balance Sheet Budget Accounts","PC001002001008000000000000000000000000_00001","_","An efficient, competitive and responsive economic infrastructure network","Growth","Financial Viability","Electrical Infrastructure","LV Networks","0d0b8def-631d-4fda-b03e-71f01db572fa",30.445989608764648,-23.245990753173828,32815222.140000001,0,0,0,0]
["0e51e5d3-5805-402b-a5dc-3b94852c29c0","PPE Take On Accounts","PC001002006001000000000000000000000000_00009","_","An efficient, competitive and responsive economic infrastructure network","Growth","Financial Viability","Roads Infrastructure","Roads","0d0b8def-631d-4fda-b03e-71f01db572fa",30.445989608764648,-23.245990753173828,3117657561.7799997,0,0,0,0]
["0e51e5d3-5805-402b-a5dc-3b94852c29c0","PPE Take On Accounts","PC002001000000000000000000000000000000_00001","_","An efficient, effective and development-oriented public service","Spatial integration","Financial Viability","Land","Land","0d0b8def-631d-4fda-b03e-71f01db572fa",30.445989608764648,-23.245990753173828,90810105.870000005,0,0,0,0]
["0e51e5d3-5805-402b-a5dc-3b94852c29c0","PPE Take On Accounts","PC002002001005000000000000000000000000_00001","_","An efficient, effective and development-oriented public service","Governance","Financial Viability",null,null,"0d0b8def-631d-4fda-b03e-71f01db572fa",30.445989608764648,-23.245990753173828,3740536.23,0,0,0,0]
["0e51e5d3-5805-402b-a5dc-3b94852c29c0","PPE Take On Accounts","PC002002001005000000000000000000000000_00001","_","An efficient, effective and development-oriented public service","Governance","Financial Viability","Furniture and Office Equipment","Furniture and Office Equipment","0d0b8def-631d-4fda-b03e-71f01db572fa",30.445989608764648,-23.245990753173828,11221608.689999999,0,0,0,0]
["0e51e5d3-5805-402b-a5dc-3b94852c29c0","PPE Take On Accounts","PC002003002002002000000000000000000000_00003","_","A long and healthy life for all South Africans","Growth","Financial Viability","Sport and Recreation Facilities","Outdoor Facilities","0d0b8def-631d-4fda-b03e-71f01db572fa",30.445989608764648,-23.245990753173828,312725530.5,0,0,0,0]
["0e51e5d3-5805-402b-a5dc-3b94852c29c0","PPE Take On Accounts","PC002003003001001000000000000000000000_00001","_","An efficient, effective and development-oriented public service","Growth","Financial Viability","Operational Buildings","Municipal Offices","0d0b8def-631d-4fda-b03e-71f01db572fa",30.445989608764648,-23.245990753173828,387390309.29999995,0,0,0,0]
["0e51e5d3-5805-402b-a5dc-3b94852c29c0","PPE Take On Accounts","PC002003004000000000000000000000000000_00003","_","An efficient, effective and development-oriented public service","Growth","Financial Viability","Computer Equipment","Computer Equipment","0d0b8def-631d-4fda-b03e-71f01db572fa",30.445989608764648,-23.245990753173828,1.23,0,0,0,0]
["0e51e5d3-5805-402b-a5dc-3b94852c29c0","PPE Take On Accounts","PC002003004000000000000000000000000000_00004","_","An efficient, effective and development-oriented public service","Growth","Financial Viability","Computer Equipment","Computer Equipment","0d0b8def-631d-4fda-b03e-71f01db572fa",30.445989608764648,-23.245990753173828,29000064.900000002,0,0,0,0]
["0e51e5d3-5805-402b-a5dc-3b94852c29c0","PPE Take On Accounts","PC002003005000000000000000000000000000_00002","_","An efficient, effective and development-oriented public service","Growth","Financial Viability","Furniture and Office Equipment","Furniture and Office Equipment","0d0b8def-631d-4fda-b03e-71f01db572fa",30.445989608764648,-23.245990753173828,20034134.759999998,0,0,0,0]
["0e51e5d3-5805-402b-a5dc-3b94852c29c0","PPE Take On Accounts","PC002003006005000000000000000000000000_00001","_","Create a better South Africa and contribute to a better Africa and a better world","Growth","Financial Viability","Heritage Assets","Other Heritage","0d0b8def-631d-4fda-b03e-71f01db572fa",30.445989608764648,-23.245990753173828,618907.89,0,0,0,0]
["0e51e5d3-5805-402b-a5dc-3b94852c29c0","PPE Take On Accounts","PC002003007002004000000000000000000000_00002","_","An efficient, effective and development-oriented public service","Growth","Financial Viability","Licences and Rights","Computer Software and Applications","0d0b8def-631d-4fda-b03e-71f01db572fa",30.445989608764648,-23.245990753173828,29022944.609999999,0,0,0,0]
["0e51e5d3-5805-402b-a5dc-3b94852c29c0","PPE Take On Accounts","PC002003009000000000000000000000000000_00005","_","An efficient, effective and development-oriented public service","Growth","Financial Viability","Machinery and Equipment","Machinery and Equipment","0d0b8def-631d-4fda-b03e-71f01db572fa",30.445989608764648,-23.245990753173828,108133096.71000001,0,0,0,0]
["0e51e5d3-5805-402b-a5dc-3b94852c29c0","PPE Take On Accounts","PC002003010000000000000000000000000000_00002","_","An efficient, effective and development-oriented public service","Growth","Financial Viability","Transport Assets","Transport Assets","0d0b8def-631d-4fda-b03e-71f01db572fa",30.445989608764648,-23.245990753173828,52862787.689999998,0,0,0,0]
["0f52d9e5-907f-4d9f-934f-57dc012524d6","Administration","PC002003005000000000000000000000000000_00001","_","An efficient, effective and development-oriented public service","Growth","Good Governance and Public Participation","Furniture and Office Equipment","Furniture and Office Equipment","42510af3-3838-4a32-862e-379660192785",30.445989608764648,-23.245990753173828,0,3600000,3900000,3900000,3000000]
["15e72a49-cac8-46a3-a850-5352163e5772","Internal Audit System","PC002003007002004000000000000000000000_00006","_","An efficient, effective and development-oriented public service","Growth","Good Governance and Public Participation","Licences and Rights","Computer Software and Applications","42510af3-3838-4a32-862e-379660192785",5,4,0,1650000,0,0,0]
["1ba26e54-d30e-49dd-8bce-2657f8290afb","Ndhambi Taxi Rank","PC002003002001021000000000000000000000_00001","_","An efficient, effective and development-oriented public service","Growth","Infrastructure Development and Basic Service Delivery","Community Facilities","Taxi Ranks/Bus Terminals","a6f1a052-aca9-4a66-8430-6e5757c5867f",30.423599243164063,-23.343994140625,18110849.91,0,0,0,18584298]
["35f914ed-b099-4a36-890d-69e60fc0e57c","Giyani Section E Sports Precinct","PC002002002002002002000000000000000000_00001","_","A long and healthy life for all South Africans","Inclusion and access","Infrastructure Development and Basic Service Delivery",null,null,"0d0b8def-631d-4fda-b03e-71f01db572fa",30.414649963378906,23.181238174438477,2375624.3199999998,0,0,0,0]
["35f914ed-b099-4a36-890d-69e60fc0e57c","Giyani Section E Sports Precinct","PC002002002002002002000000000000000000_00001","_","A long and healthy life for all South Africans","Inclusion and access","Infrastructure Development and Basic Service Delivery","Sport and Recreation Facilities","Outdoor Facilities","0d0b8def-631d-4fda-b03e-71f01db572fa",30.414649963378906,23.181238174438477,7126872.959999999,0,0,0,0]
["35f914ed-b099-4a36-890d-69e60fc0e57c","Homu14B Sports centre","PC002003002002002000000000000000000000_00005","_","A long and healthy life for all South Africans","Growth","Infrastructure Development and Basic Service Delivery","Sport and Recreation Facilities","Outdoor Facilities","78a4cf9a-667c-43cd-a0b8-6d9569d88d8c",222233,11111111,10175297.52,0,0,0,21000000]
["35f914ed-b099-4a36-890d-69e60fc0e57c","Mageva Sports Centre","PC002003002002002000000000000000000000_00001","_","A long and healthy life for all South Africans","Growth","Infrastructure Development and Basic Service Delivery","Sport and Recreation Facilities","Outdoor Facilities","04bc482d-a10f-4148-ad06-3315145fe8ea",30.433280944824219,-23.32512092590332,0,6000000,0,0,0]
["35f914ed-b099-4a36-890d-69e60fc0e57c","Mavalani Indoor Sports Centre","PC002003002002001000000000000000000000_00001","_","A long and healthy life for all South Africans","Growth","Infrastructure Development and Basic Service Delivery","Sport and Recreation Facilities","Indoor Facilities","72b09a64-68be-427f-9cbf-273e930b11b3",30.422607421875,23.123525619506836,0,28841037,0,0,35179512]
["35f914ed-b099-4a36-890d-69e60fc0e57c","Mavalani Indoor Sports Centre","PC002003002002001000000000000000000000_00001","_","A long and healthy life for all South Africans","Growth","Infrastructure Development and Basic Service Delivery","Sport and Recreation Facilities","Indoor Facilities","f7c962df-61b9-4b59-aab9-0cc9d246df9a",30.422607421875,23.123525619506836,5138167.0200000005,0,0,0,0]
["35f914ed-b099-4a36-890d-69e60fc0e57c","Refurbishment of Giyani Stadium & Section A Tennis Court","PC002002002002002002000000000000000000_00002","_","A long and healthy life for all South Africans","Inclusion and access","Infrastructure Development and Basic Service Delivery",null,null,"9f3b39a1-4676-432f-a8b5-6c951f798106",30.420839309692383,-23.192020416259766,1800822.58,0,0,0,0]
["35f914ed-b099-4a36-890d-69e60fc0e57c","Refurbishment of Giyani Stadium & Section A Tennis Court","PC002002002002002002000000000000000000_00002","_","A long and healthy life for all South Africans","Inclusion and access","Infrastructure Development and Basic Service Delivery","Sport and Recreation Facilities","Outdoor Facilities","9f3b39a1-4676-432f-a8b5-6c951f798106",30.420839309692383,-23.192020416259766,5402467.7400000002,0,0,0,0]
["35f914ed-b099-4a36-890d-69e60fc0e57c","Refurbishment of Giyani Stadium & Section A Tennis Court","PC002002002002002002000000000000000000_00005","_","A long and healthy life for all South Africans","Inclusion and access","Infrastructure Development and Basic Service Delivery",null,null,"0d0b8def-631d-4fda-b03e-71f01db572fa",30.445989608764648,-23.245990753173828,0,3500000,13500000,0,100000]
["35f914ed-b099-4a36-890d-69e60fc0e57c","Refurbishment of Giyani Stadium & Section A Tennis Court","PC002002002002002002000000000000000000_00005","_","A long and healthy life for all South Africans","Inclusion and access","Infrastructure Development and Basic Service Delivery","Sport and Recreation Facilities","Outdoor Facilities","0d0b8def-631d-4fda-b03e-71f01db572fa",30.445989608764648,-23.245990753173828,0,10500000,40500000,0,300000]
["35f914ed-b099-4a36-890d-69e60fc0e57c","Section E Sports Centre","PC002003002002002000000000000000000000_00002","_","A long and healthy life for all South Africans","Growth","Infrastructure Development and Basic Service Delivery","Sport and Recreation Facilities","Outdoor Facilities","8127b5b5-a3d3-4509-bade-f900f57d222b",30.414649963378906,23.181238174438477,69262364.849999994,0,0,0,0]
["57eb57f7-9f9a-43e8-a53f-0e222f65a66d","Security  Services","PC002003009000000000000000000000000000_00004","_","An efficient, effective and development-oriented public service","Growth","Institutional Development and Transformation","Machinery and Equipment","Machinery and Equipment","42510af3-3838-4a32-862e-379660192785",30.445989608764648,-23.245990753173828,0,1500000,1500000,1650000,1500000]
["57eb57f7-9f9a-43e8-a53f-0e222f65a66d","Security  Services","PC002003009000000000000000000000000000_00007","_","An efficient, effective and development-oriented public service","Growth","Institutional Development and Transformation","Machinery and Equipment","Machinery and Equipment","42510af3-3838-4a32-862e-379660192785",30.445989608764648,-23.245990753173828,0,3000000,3300000,3600000,900000]
["57eb57f7-9f9a-43e8-a53f-0e222f65a66d","Security  Services","PC002003009000000000000000000000000000_00013","_","An efficient, effective and development-oriented public service","Growth","Institutional Development and Transformation","Machinery and Equipment","Machinery and Equipment","42510af3-3838-4a32-862e-379660192785",30.445989608764648,-23.245990753173828,0,1800000,0,0,0]
["5efb28bb-c786-49af-8a50-44a8b229bf7f","51 High Mast Lights in Crime Prone Areas","PC001002006002000000000000000000000000_00002","_","An efficient, competitive and responsive economic infrastructure network","Growth","Infrastructure Development and Basic Service Delivery","Roads Infrastructure","Road Structures","0d0b8def-631d-4fda-b03e-71f01db572fa",30.431600570678711,-23.181659698486328,19094620.710000001,0,0,0,0]
["5efb28bb-c786-49af-8a50-44a8b229bf7f","Upgrading of Traffic Lights & R81 Lighting","PC001001002006003000000000000000000000_00002","_","An efficient, competitive and responsive economic infrastructure network","Inclusion and access","Infrastructure Development and Basic Service Delivery",null,null,"0d0b8def-631d-4fda-b03e-71f01db572fa",30.413053512573242,23.183811187744141,768170.46,0,0,0,0]
["5efb28bb-c786-49af-8a50-44a8b229bf7f","Upgrading of Traffic Lights & R81 Lighting","PC001001002006003000000000000000000000_00002","_","An efficient, competitive and responsive economic infrastructure network","Inclusion and access","Infrastructure Development and Basic Service Delivery","Roads Infrastructure","Road Furniture","0d0b8def-631d-4fda-b03e-71f01db572fa",30.413053512573242,23.183811187744141,2304511.38,0,0,0,0]
["600af0bf-7b13-4030-8d6a-6496e24eb507","Civic Centre Building Phase 3 and 4","PC002002002003001001000000000000000000_00004","_","An efficient, effective and development-oriented public service","Governance","Infrastructure Development and Basic Service Delivery",null,null,"42510af3-3838-4a32-862e-379660192785",30.41328239440918,23.18376350402832,8321599.5700000003,13269189,0,0,14339275]
["600af0bf-7b13-4030-8d6a-6496e24eb507","Civic Centre Building Phase 3 and 4","PC002002002003001001000000000000000000_00004","_","An efficient, effective and development-oriented public service","Governance","Infrastructure Development and Basic Service Delivery","Operational Buildings","Municipal Offices","42510af3-3838-4a32-862e-379660192785",30.41328239440918,23.18376350402832,24964798.710000001,39807567,0,0,43017825]
["67347610-1db2-421f-a89a-f87e772911eb","Budget & Reporting","PC002003004000000000000000000000000000_00006","_","An efficient, effective and development-oriented public service","Growth","Financial Viability","Computer Equipment","Computer Equipment","42510af3-3838-4a32-862e-379660192785",30.445989608764648,-23.245990753173828,0,1995000,0,0,0]
["6fa14a15-a164-42cb-a263-a0b007852bc5","GOLF COURSE DEVELOPMENT","PC002002002002001002000000000000000000_00001","_","An efficient, effective and development-oriented public service","Inclusion and access","To develop an effective spatial framework that promotes integrated and sustainable development",null,null,"0d0b8def-631d-4fda-b03e-71f01db572fa",30.445989608764648,-23.245990753173828,0,1000000,1100000,1200000,300000]
["6fa14a15-a164-42cb-a263-a0b007852bc5","GOLF COURSE DEVELOPMENT","PC002002002002001002000000000000000000_00001","_","An efficient, effective and development-oriented public service","Inclusion and access","To develop an effective spatial framework that promotes integrated and sustainable development","Community Facilities","Centres","0d0b8def-631d-4fda-b03e-71f01db572fa",30.445989608764648,-23.245990753173828,0,3000000,3300000,3600000,900000]
["6fa14a15-a164-42cb-a263-a0b007852bc5","Jim-Nghalalume Community Hall","PC002003002001001000000000000000000000_00001","_","An efficient, effective and development-oriented public service","Growth","Infrastructure Development and Basic Service Delivery","Community Facilities","Halls","0d0b8def-631d-4fda-b03e-71f01db572fa",30.36387825012207,23.141061782836914,4766579.4000000004,21028230,0,0,41146719]
["6fa14a15-a164-42cb-a263-a0b007852bc5","N'wadzekudzeku Community Hall","PC002003002001001000000000000000000000_00002","_","An efficient, effective and development-oriented public service","Growth","Infrastructure Development and Basic Service Delivery","Community Facilities","Halls","0d0b8def-631d-4fda-b03e-71f01db572fa",30.433935165405273,23.0654296875,21630168.629999999,0,0,0,35693802]
["6fa14a15-a164-42cb-a263-a0b007852bc5","Refurbishment of Giyani Arts & Culture Centre","PC002002001002001002000000000000000000_00001","_","An efficient, effective and development-oriented public service","Inclusion and access","Infrastructure Development and Basic Service Delivery",null,null,"0d0b8def-631d-4fda-b03e-71f01db572fa",30.405937194824219,23.183698654174805,1066420.01,0,0,0,0]
["6fa14a15-a164-42cb-a263-a0b007852bc5","Refurbishment of Giyani Arts & Culture Centre","PC002002001002001002000000000000000000_00001","_","An efficient, effective and development-oriented public service","Inclusion and access","Infrastructure Development and Basic Service Delivery","Community Facilities","Centres","0d0b8def-631d-4fda-b03e-71f01db572fa",30.405937194824219,23.183698654174805,3199260.0300000003,0,0,0,0]
["6fa14a15-a164-42cb-a263-a0b007852bc5","SIYANDHANI-JIM NGHALALUME (ACCESS TO TOMU) REGRAVELLING & CULVERT BRIDGE","PC002003002001002000000000000000000000_00001","_","An efficient, effective and development-oriented public service","Growth","Infrastructure Development and Basic Service Delivery","Community Facilities","Centres","0d0b8def-631d-4fda-b03e-71f01db572fa",30.445989608764648,-23.245990753173828,1684153.38,0,0,0,0]
["7bfc7c06-9b62-4cad-816b-78ab18ec23e3","Civic Centre Building Phase 3 and 4","PC002002002003001001000000000000000000_00001","_","An efficient, effective and development-oriented public service","Governance","Infrastructure Development and Basic Service Delivery",null,null,"42510af3-3838-4a32-862e-379660192785",30.41328239440918,23.18376350402832,4110048.09,0,0,0,0]
["7bfc7c06-9b62-4cad-816b-78ab18ec23e3","Civic Centre Building Phase 3 and 4","PC002002002003001001000000000000000000_00001","_","An efficient, effective and development-oriented public service","Governance","Infrastructure Development and Basic Service Delivery","Operational Buildings","Municipal Offices","42510af3-3838-4a32-862e-379660192785",30.41328239440918,23.18376350402832,12330144.27,0,0,0,0]
["7bfc7c06-9b62-4cad-816b-78ab18ec23e3","SIYANDHANI-JIM NGHALALUME (ACCESS TO TOMU) REGRAVELLING & CULVERT BRIDGE","PC002002002003001001000000000000000000_00002","_","An efficient, effective and development-oriented public service","Governance","Infrastructure Development and Basic Service Delivery",null,null,"0d0b8def-631d-4fda-b03e-71f01db572fa",30.445989608764648,-23.245990753173828,3303089.7,0,0,0,0]
["7bfc7c06-9b62-4cad-816b-78ab18ec23e3","SIYANDHANI-JIM NGHALALUME (ACCESS TO TOMU) REGRAVELLING & CULVERT BRIDGE","PC002002002003001001000000000000000000_00002","_","An efficient, effective and development-oriented public service","Governance","Infrastructure Development and Basic Service Delivery","Operational Buildings","Municipal Offices","0d0b8def-631d-4fda-b03e-71f01db572fa",30.445989608764648,-23.245990753173828,9909269.1000000015,0,0,0,0]
["81e26025-8a7e-485a-b96d-814b817bc7e2","Vehicle Lisencing & Reg","PC002003009000000000000000000000000000_00005","_","An efficient, effective and development-oriented public service","Growth","Infrastructure Development and Basic Service Delivery","Machinery and Equipment","Machinery and Equipment","0d0b8def-631d-4fda-b03e-71f01db572fa",30.445989608764648,-23.245990753173828,0.03,300000,360000,420000,1350000]
["81e26025-8a7e-485a-b96d-814b817bc7e2","Vehicle Lisencing & Reg","PC002003009000000000000000000000000000_00006","_","An efficient, effective and development-oriented public service","Growth","Infrastructure Development and Basic Service Delivery","Machinery and Equipment","Machinery and Equipment","0d0b8def-631d-4fda-b03e-71f01db572fa",30.445989608764648,-23.245990753173828,0,1500000,1800000,1800000,900000]
["84c380c3-3b7f-4f6e-b3e1-ca680365dc85","Waste Disposal Site Development","PC001002002001000000000000000000000000_00001","_","An efficient, competitive and responsive economic infrastructure network","Growth","Infrastructure Development and Basic Service Delivery","Solid Waste Infrastructure","Landfill Sites","0d0b8def-631d-4fda-b03e-71f01db572fa",30.392440795898438,-23.211053848266602,183355230.87000003,0,0,0,0]
["a0417e64-ef9b-4d7d-8721-6fd6b304450d","Risk Management System","PC002003007002004000000000000000000000_00006","_","An efficient, effective and development-oriented public service","Growth","Institutional Development and Transformation","Licences and Rights","Computer Software and Applications","42510af3-3838-4a32-862e-379660192785",9,5,0,1500000,1500000,1500000,0]
["be26bea6-58e3-4497-b52c-0bf597208207","4.9km Section F Upgrading of stormwater Phase 1","PC001002007001000000000000000000000000_00001","_","An efficient, competitive and responsive economic infrastructure network","Growth","Infrastructure Development and Basic Service Delivery","Storm Water Infrastructure",null,"470cadee-ff6c-46d4-a0d2-f0017ec375fc",1,5,0,106477299,90000000,130889925,0]
["be26bea6-58e3-4497-b52c-0bf597208207","Access Roads to Tribal Offices","PC001002006001000000000000000000000000_00007","_","An efficient, competitive and responsive economic infrastructure network","Growth","Infrastructure Development and Basic Service Delivery","Roads Infrastructure","Roads","3e530dd7-b913-492b-b632-d971cd9e4fa5",30.471889495849609,23.145221710205078,2069867.0100000002,0,0,0,0]
["be26bea6-58e3-4497-b52c-0bf597208207","Access Roads to Tribal Offices","PC001002006001000000000000000000000000_00007","_","An efficient, competitive and responsive economic infrastructure network","Growth","Infrastructure Development and Basic Service Delivery","Roads Infrastructure","Roads","3f1af2a7-52e6-431e-9b29-97b1fa96fb03",30.471889495849609,23.145221710205078,2994526.98,0,0,0,0]
["be26bea6-58e3-4497-b52c-0bf597208207","Access Roads to Tribal Offices","PC001002006001000000000000000000000000_00007","_","An efficient, competitive and responsive economic infrastructure network","Growth","Infrastructure Development and Basic Service Delivery","Roads Infrastructure","Roads","87d619e1-38cf-4dee-b6ec-8419521faca7",30.471889495849609,23.145221710205078,1678809.48,0,0,0,0]
["be26bea6-58e3-4497-b52c-0bf597208207","Access Roads to Tribal Offices","PC001002006001000000000000000000000000_00007","_","An efficient, competitive and responsive economic infrastructure network","Growth","Infrastructure Development and Basic Service Delivery","Roads Infrastructure","Roads","96b769bf-5ccc-47cb-a4a2-472e5a88f53e",30.471889495849609,23.145221710205078,850192.14,0,0,0,0]
["be26bea6-58e3-4497-b52c-0bf597208207","Access Roads to Tribal Offices","PC001002006001000000000000000000000000_00007","_","An efficient, competitive and responsive economic infrastructure network","Growth","Infrastructure Development and Basic Service Delivery","Roads Infrastructure","Roads","c92bf118-48c8-4d9a-88e5-02ee82bc8c35",30.471889495849609,23.145221710205078,1352901.48,0,0,0,0]
["be26bea6-58e3-4497-b52c-0bf597208207","ALTERNATIVE ROAD TO GIYANI FROM R81","PC001002006001000000000000000000000000_00010","_","An efficient, competitive and responsive economic infrastructure network","Growth","Infrastructure Development and Basic Service Delivery","Roads Infrastructure","Roads","0d0b8def-631d-4fda-b03e-71f01db572fa",30.445989608764648,-23.245990753173828,10825036.41,150000,150000,0,5400000]
["be26bea6-58e3-4497-b52c-0bf597208207","Alternative route from Elim Road R578 to Giyani via Siyandhani","PC001002006001000000000000000000000000_00029","_","An efficient, competitive and responsive economic infrastructure network","Growth","Infrastructure Development and Basic Service Delivery","Roads Infrastructure","Roads","0d0b8def-631d-4fda-b03e-71f01db572fa",1257333,1112548,0,150000,0,0,0]
["be26bea6-58e3-4497-b52c-0bf597208207","Babangu Internal Streets Upgrading from gravel to paving","PC001002006001000000000000000000000000_00037","_","An efficient, competitive and responsive economic infrastructure network","Growth","Infrastructure Development and Basic Service Delivery","Roads Infrastructure","Roads","6de1a2d4-dd63-4032-83d0-2b90e54659c6",-0.230712890625,5.9051502496004105E-2,0,4500000,0,208216323,0]
["be26bea6-58e3-4497-b52c-0bf597208207","Bode Paving of Internal Streets","PC001002006001000000000000000000000000_00005","_","An efficient, competitive and responsive economic infrastructure network","Growth","Infrastructure Development and Basic Service Delivery","Roads Infrastructure","Roads","61e4bf4d-bea3-45e9-8728-0c9c929a5e19",30.37445068359375,-23.20277214050293,0.03,0,0,0,0]
["be26bea6-58e3-4497-b52c-0bf597208207","Construction of Car Pots (Civic centre ,Unigaz ,Testing Station and brick yard)","PC002003003001001000000000000000000000_00003","_","An efficient, effective and development-oriented public service","Growth","Infrastructure Development and Basic Service Delivery","Operational Buildings","Municipal Offices","42510af3-3838-4a32-862e-379660192785",2,1,0,1500000,0,0,0]
["be26bea6-58e3-4497-b52c-0bf597208207","Giyani Section F Streets Phase 3","PC001002006001000000000000000000000000_00004","_","An efficient, competitive and responsive economic infrastructure network","Growth","Infrastructure Development and Basic Service Delivery","Roads Infrastructure","Roads","470cadee-ff6c-46d4-a0d2-f0017ec375fc",30.422449111938477,-23.172901153564453,-0.15000000000000002,0,0,0,0]
["be26bea6-58e3-4497-b52c-0bf597208207","Hlomela upgrading from Gravel to Paving","PC001002006001000000000000000000000000_00033","_","An efficient, competitive and responsive economic infrastructure network","Growth","Infrastructure Development and Basic Service Delivery","Roads Infrastructure","Roads","0d0b8def-631d-4fda-b03e-71f01db572fa",123,12,0,7581477,54818523,0,0]
["be26bea6-58e3-4497-b52c-0bf597208207","Hlomela upgrading from Gravel to Paving","PC001002006001000000000000000000000000_00033","_","An efficient, competitive and responsive economic infrastructure network","Growth","Infrastructure Development and Basic Service Delivery","Roads Infrastructure","Roads","69a68dda-1a43-48a9-ba87-da9a2ee10f58",123,12,0,1500000,0,0,1500000]
["be26bea6-58e3-4497-b52c-0bf597208207","Homu 14B to 14A Upgrading from Gravel to Tar","PC001002006001000000000000000000000000_00002","_","An efficient, competitive and responsive economic infrastructure network","Growth","Infrastructure Development and Basic Service Delivery","Roads Infrastructure","Roads","78a4cf9a-667c-43cd-a0b8-6d9569d88d8c",30.474020004272461,-23.191303253173828,0.03,0,0,0,0]
["be26bea6-58e3-4497-b52c-0bf597208207","Makosha phase 2 upgrading from gravel to paving","PC001002006001000000000000000000000000_00029","_","An efficient, competitive and responsive economic infrastructure network","Growth","Infrastructure Development and Basic Service Delivery","Roads Infrastructure","Roads","0c756f5f-d7c4-4594-b90e-49be9e655e85",-0.230712890625,5.9051502496004105E-2,0,3000000,73756701,15000000,1500000]
["be26bea6-58e3-4497-b52c-0bf597208207","Makosha Upgrading from Gravel to Paving","PC001002006001000000000000000000000000_00003","_","An efficient, competitive and responsive economic infrastructure network","Growth","Infrastructure Development and Basic Service Delivery","Roads Infrastructure","Roads","0c756f5f-d7c4-4594-b90e-49be9e655e85",30.444568634033203,-23.150848388671875,-0.09,0,0,0,0]
["be26bea6-58e3-4497-b52c-0bf597208207","Rehabilitation of Streets in All Sections","PC001001001006001000000000000000000000_00001","_","An efficient, competitive and responsive economic infrastructure network","Inclusion and access","Infrastructure Development and Basic Service Delivery",null,null,"0d0b8def-631d-4fda-b03e-71f01db572fa",30.413181304931641,23.183664321899414,696000,0,0,0,0]
["be26bea6-58e3-4497-b52c-0bf597208207","Rehabilitation of Streets in All Sections","PC001001001006001000000000000000000000_00001","_","An efficient, competitive and responsive economic infrastructure network","Inclusion and access","Infrastructure Development and Basic Service Delivery","Roads Infrastructure","Roads","0d0b8def-631d-4fda-b03e-71f01db572fa",30.413181304931641,23.183664321899414,2088000,0,0,0,0]
["be26bea6-58e3-4497-b52c-0bf597208207","Section A Upgrading of Stormwater Phase 1","PC001002007001000000000000000000000000_00002","_","An efficient, competitive and responsive economic infrastructure network","Growth","Infrastructure Development and Basic Service Delivery","Storm Water Infrastructure",null,"9f3b39a1-4676-432f-a8b5-6c951f798106",5,4,0,87261750,81000000,184431447,0]
["be26bea6-58e3-4497-b52c-0bf597208207","Section E FROM GRAVEL TO TARR","PC001002006001000000000000000000000000_00014","_","An efficient, competitive and responsive economic infrastructure network","Growth","Infrastructure Development and Basic Service Delivery","Roads Infrastructure","Roads","8127b5b5-a3d3-4509-bade-f900f57d222b",0.2354000061750412,-0.2354000061750412,70977353.340000004,0,0,0,49500000]
["be26bea6-58e3-4497-b52c-0bf597208207","Section E upgrading of 13km from gravel to paving","PC001002006001000000000000000000000000_00037","_","An efficient, competitive and responsive economic infrastructure network","Growth","Infrastructure Development and Basic Service Delivery","Roads Infrastructure","Roads","8127b5b5-a3d3-4509-bade-f900f57d222b",3,2,0,3000000,120000000,120000000,300000]
["be26bea6-58e3-4497-b52c-0bf597208207","Selawa upgrading of roads from gravel to paving","PC001002006001000000000000000000000000_00027","_","An efficient, competitive and responsive economic infrastructure network","Growth","Infrastructure Development and Basic Service Delivery","Roads Infrastructure","Roads","c08bed4f-8360-4232-ba26-d81bcbaf81c3",5568,2223,2200300.86,300000,0,0,45900000]
["be26bea6-58e3-4497-b52c-0bf597208207","Shawela Upgrading from gravel to paving","PC001002006001000000000000000000000000_00035","_","An efficient, competitive and responsive economic infrastructure network","Growth","Infrastructure Development and Basic Service Delivery","Roads Infrastructure","Roads","ec418d3a-6552-40f1-b432-7714d64b556c",1,1,0,6000000,138000000,30000000,3000000]
["be26bea6-58e3-4497-b52c-0bf597208207","Shikhumba Upgrading from gravel to paving","PC001002006001000000000000000000000000_00033","_","An efficient, competitive and responsive economic infrastructure network","Growth","Infrastructure Development and Basic Service Delivery","Roads Infrastructure","Roads","ec418d3a-6552-40f1-b432-7714d64b556c",-0.230712890625,5.9051502496004105E-2,0,138546528,0,0,40190916]
["be26bea6-58e3-4497-b52c-0bf597208207","Shimange Upgrading from gravel to paving","PC001002006001000000000000000000000000_00020","_","An efficient, competitive and responsive economic infrastructure network","Growth","Infrastructure Development and Basic Service Delivery","Roads Infrastructure","Roads","c08bed4f-8360-4232-ba26-d81bcbaf81c3",75412,5897,0,0,0,0,8267514]
["be26bea6-58e3-4497-b52c-0bf597208207","Siyandhani Ring Road","PC001002006001000000000000000000000000_00028","_","An efficient, competitive and responsive economic infrastructure network","Growth","Infrastructure Development and Basic Service Delivery","Roads Infrastructure","Roads","61e4bf4d-bea3-45e9-8728-0c9c929a5e19",-0.230712890625,5.9051502496004105E-2,0,94587306,0,0,19560708]
["be26bea6-58e3-4497-b52c-0bf597208207","SIYANDHANI-JIM NGHALALUME (ACCESS TO TOMU) REGRAVELLING & CULVERT BRIDGE","PC001002006001000000000000000000000000_00011","_","An efficient, competitive and responsive economic infrastructure network","Growth","Infrastructure Development and Basic Service Delivery","Roads Infrastructure","Roads","63828785-97c9-4eb6-90c2-107c84431b07",30.445989608764648,-23.245990753173828,-0.03,0,0,0,0]
["be26bea6-58e3-4497-b52c-0bf597208207","Upgrading from gravel to paving Giyani Section F via Golele to risinga view to Bright star primary shool junction","PC001002006001000000000000000000000000_00040","_","An efficient, competitive and responsive economic infrastructure network","Growth","Infrastructure Development and Basic Service Delivery","Roads Infrastructure","Roads","7b1e38d0-2b6f-483e-9801-a6337eae7f9e",1,5,0,4500000,0,0,0]
["be26bea6-58e3-4497-b52c-0bf597208207","Upgrading from gravel to paving Ngobe to Sikhunyani Road","PC001002006001000000000000000000000000_00038","_","An efficient, competitive and responsive economic infrastructure network","Growth","Infrastructure Development and Basic Service Delivery","Roads Infrastructure","Roads","63828785-97c9-4eb6-90c2-107c84431b07",8,8,0,4500000,0,154472040,0]
["be26bea6-58e3-4497-b52c-0bf597208207","Upgrading of Giyani Section F - Section View Internal Streets to Paving","PC001002006001000000000000000000000000_00036","_","An efficient, competitive and responsive economic infrastructure network","Growth","Infrastructure Development and Basic Service Delivery","Roads Infrastructure","Roads","470cadee-ff6c-46d4-a0d2-f0017ec375fc",11,1,0,4500000,45527040,213672969,0]
["be26bea6-58e3-4497-b52c-0bf597208207","Upgrading of Nkhensani Access","PC001001002006003000000000000000000000_00001","_","An efficient, competitive and responsive economic infrastructure network","Inclusion and access","Infrastructure Development and Basic Service Delivery",null,null,"0d0b8def-631d-4fda-b03e-71f01db572fa",30.423929214477539,-23.190595626831055,436800,0,0,0,0]
["be26bea6-58e3-4497-b52c-0bf597208207","Upgrading of Nkhensani Access","PC001001002006003000000000000000000000_00001","_","An efficient, competitive and responsive economic infrastructure network","Inclusion and access","Infrastructure Development and Basic Service Delivery","Roads Infrastructure","Road Furniture","0d0b8def-631d-4fda-b03e-71f01db572fa",30.423929214477539,-23.190595626831055,1310400,0,0,0,0]
["be26bea6-58e3-4497-b52c-0bf597208207","Upgrading of Nkhensani Access","PC002003002001018000000000000000000000_00001","_","An efficient, effective and development-oriented public service","Growth","Infrastructure Development and Basic Service Delivery","Community Facilities","Stalls","0d0b8def-631d-4fda-b03e-71f01db572fa",30.423929214477539,-23.190595626831055,0,2700000,60000000,0,150000]
["be26bea6-58e3-4497-b52c-0bf597208207","WIP ACCOUNTS","PC001002001008000000000000000000000000_00016","_","An efficient, effective and development-oriented public service","Growth","Infrastructure Development and Basic Service Delivery","Electrical Infrastructure","LV Networks","0d0b8def-631d-4fda-b03e-71f01db572fa",12435,55552,7826086.9499999993,0,0,0,0]
["be26bea6-58e3-4497-b52c-0bf597208207","WIP ACCOUNTS","PC001002006001000000000000000000000000_00031","_","An efficient, competitive and responsive economic infrastructure network","Growth","Infrastructure Development and Basic Service Delivery","Roads Infrastructure","Roads","0d0b8def-631d-4fda-b03e-71f01db572fa",12435,55552,-0.03,0,0,0,0]
["be26bea6-58e3-4497-b52c-0bf597208207","WIP ACCOUNTS","PC001002006002000000000000000000000000_00032","_","An efficient, effective and development-oriented public service","Growth","Infrastructure Development and Basic Service Delivery","Roads Infrastructure","Road Structures","0d0b8def-631d-4fda-b03e-71f01db572fa",12435,55552,2520885.9899999998,0,0,0,0]
["be26bea6-58e3-4497-b52c-0bf597208207","WIP ACCOUNTS","PC001002006002000000000000000000000000_00033","_","An efficient, effective and development-oriented public service","Growth","Infrastructure Development and Basic Service Delivery","Roads Infrastructure","Road Structures","0d0b8def-631d-4fda-b03e-71f01db572fa",12435,55552,2706858.69,0,0,0,0]
["be26bea6-58e3-4497-b52c-0bf597208207","WIP ACCOUNTS","PC001002006002000000000000000000000000_00034","_","An efficient, effective and development-oriented public service","Growth","Infrastructure Development and Basic Service Delivery","Roads Infrastructure","Road Structures","0d0b8def-631d-4fda-b03e-71f01db572fa",12435,55552,400297.02,0,0,0,0]
["be26bea6-58e3-4497-b52c-0bf597208207","WIP ACCOUNTS","PC001002006002000000000000000000000000_00036","_","An efficient, effective and development-oriented public service","Growth","Infrastructure Development and Basic Service Delivery","Roads Infrastructure","Road Structures","0d0b8def-631d-4fda-b03e-71f01db572fa",12435,55552,1345035.75,0,0,0,0]
["be26bea6-58e3-4497-b52c-0bf597208207","Xikukwane Gravel To TARR(RAL)(D3804 & D3805)","PC001001002006001000000000000000000000_00003","_","An efficient, competitive and responsive economic infrastructure network","Inclusion and access","To develop an effective spatial framework that promotes integrated and sustainable development",null,null,"0c756f5f-d7c4-4594-b90e-49be9e655e85",30.423040390014648,-23.135786056518555,2976618.3,0,0,0,0]
["be26bea6-58e3-4497-b52c-0bf597208207","Xikukwane Gravel To TARR(RAL)(D3804 & D3805)","PC001001002006001000000000000000000000_00003","_","An efficient, competitive and responsive economic infrastructure network","Inclusion and access","To develop an effective spatial framework that promotes integrated and sustainable development","Roads Infrastructure","Roads","0c756f5f-d7c4-4594-b90e-49be9e655e85",30.423040390014648,-23.135786056518555,8929854.8999999985,0,0,0,0]
["c57d4368-34c4-4b96-8470-2264a2fa849c","Fleet and Machinery","PC002003009000000000000000000000000000_00001","_","An efficient, effective and development-oriented public service","Growth","Financial Viability","Machinery and Equipment","Machinery and Equipment","42510af3-3838-4a32-862e-379660192785",30.445989608764648,-23.245990753173828,0,36000000,36300000,36600000,36000000]
["c57d4368-34c4-4b96-8470-2264a2fa849c","Fleet and Machinery","PC002003010000000000000000000000000000_00001","_","An efficient, effective and development-oriented public service","Growth","Financial Viability","Transport Assets","Transport Assets","42510af3-3838-4a32-862e-379660192785",30.445989608764648,-23.245990753173828,0,6000000,6300000,6600000,6000000]
["c91683cc-ca5a-4118-b55f-132ec0c3bf1e","Refurbishment of Shivulani Sports Centre","PC002002002002002002000000000000000000_00004","_","A long and healthy life for all South Africans","Inclusion and access","Infrastructure Development and Basic Service Delivery",null,null,"7dbf5cb6-c47a-4c39-ae12-ca7e2aab8f77",30.424520492553711,23.075927734375,5475160.5599999996,0,0,0,3454255]
["c91683cc-ca5a-4118-b55f-132ec0c3bf1e","Refurbishment of Shivulani Sports Centre","PC002002002002002002000000000000000000_00004","_","A long and healthy life for all South Africans","Inclusion and access","Infrastructure Development and Basic Service Delivery","Sport and Recreation Facilities","Outdoor Facilities","7dbf5cb6-c47a-4c39-ae12-ca7e2aab8f77",30.424520492553711,23.075927734375,16425481.68,0,0,0,10362765]
["c91683cc-ca5a-4118-b55f-132ec0c3bf1e","Refurbishment of Sporting Facilities (Gawula)","PC002002002002002002000000000000000000_00003","_","A long and healthy life for all South Africans","Inclusion and access","Infrastructure Development and Basic Service Delivery",null,null,"87d619e1-38cf-4dee-b6ec-8419521faca7",30.532768249511719,23.184122085571289,4238166.99,4000000,0,0,0]
["c91683cc-ca5a-4118-b55f-132ec0c3bf1e","Refurbishment of Sporting Facilities (Gawula)","PC002002002002002002000000000000000000_00003","_","A long and healthy life for all South Africans","Inclusion and access","Infrastructure Development and Basic Service Delivery","Sport and Recreation Facilities","Outdoor Facilities","87d619e1-38cf-4dee-b6ec-8419521faca7",30.532768249511719,23.184122085571289,12714500.970000001,12000000,0,0,0]
["d001b930-0f88-4eb0-bcde-e8736dbf200e","Legal ","PC002003007002006000000000000000000000_00001","_","An efficient, effective and development-oriented public service","Growth","Institutional Development and Transformation","Licences and Rights","Unspecified","0d0b8def-631d-4fda-b03e-71f01db572fa",30.445989608764648,-23.245990753173828,0,330000,360000,390000,300000]
["d0a8c200-23d4-4309-8ea5-97922584a36d","Budget & Reporting","PC002003005000000000000000000000000000_00002","_","An efficient, effective and development-oriented public service","Growth","Financial Viability","Furniture and Office Equipment","Furniture and Office Equipment","0d0b8def-631d-4fda-b03e-71f01db572fa",30.445989608764648,-23.245990753173828,0.27,0,0,0,0]
["d0a8c200-23d4-4309-8ea5-97922584a36d","Electricity Operations ","PC002003005000000000000000000000000000_00003","_","An efficient, effective and development-oriented public service","Growth","Institutional Development and Transformation","Furniture and Office Equipment","Furniture and Office Equipment","42510af3-3838-4a32-862e-379660192785",30.445989608764648,-23.245990753173828,0,6000000,9000000,9000000,1200000]
["d0a8c200-23d4-4309-8ea5-97922584a36d","Generator","PC002003009000000000000000000000000000_00013","_","An efficient, effective and development-oriented public service","Growth","Infrastructure Development and Basic Service Delivery","Machinery and Equipment","Machinery and Equipment","42510af3-3838-4a32-862e-379660192785",55555,12365,0,12000000,6000000,6000000,15000]
["d0a8c200-23d4-4309-8ea5-97922584a36d","SIYANDHANI-JIM NGHALALUME (ACCESS TO TOMU) REGRAVELLING & CULVERT BRIDGE","PC001002001007000000000000000000000000_00001","_","An efficient, competitive and responsive economic infrastructure network","Growth","Infrastructure Development and Basic Service Delivery","Electrical Infrastructure","MV Networks","0d0b8def-631d-4fda-b03e-71f01db572fa",30.445989608764648,-23.245990753173828,-0.03,0,0,0,0]
["d0a8c200-23d4-4309-8ea5-97922584a36d","WIP ACCOUNTS","PC001002001008000000000000000000000000_00005","_","An efficient, competitive and responsive economic infrastructure network","Growth","Infrastructure Development and Basic Service Delivery","Electrical Infrastructure","LV Networks","0d0b8def-631d-4fda-b03e-71f01db572fa",12435,55552,0.03,0,0,0,0]
["d0a8c200-23d4-4309-8ea5-97922584a36d","WIP ACCOUNTS","PC001002001008000000000000000000000000_00009","_","An efficient, competitive and responsive economic infrastructure network","Growth","Infrastructure Development and Basic Service Delivery","Electrical Infrastructure","LV Networks","0d0b8def-631d-4fda-b03e-71f01db572fa",12435,55552,-0.21000000000000002,0,0,0,0]
["e65f548d-c3fb-4eb6-b042-e507e9eec386","Servicing of 539 sites","PC001002006001000000000000000000000000_00021","_","An efficient, competitive and responsive economic infrastructure network","Growth","Infrastructure Development and Basic Service Delivery","Roads Infrastructure","Roads","0d0b8def-631d-4fda-b03e-71f01db572fa",7899445,222222336,5272515.2700000005,3000000,0,0,0]
["f3a9aaa9-529a-40d1-b981-722b2f743267","Information Technology","PC001002009002000000000000000000000000_00001","_","An efficient, competitive and responsive economic infrastructure network","Growth","Institutional Development and Transformation","Information and Communication Infrastructure","Core Layers","42510af3-3838-4a32-862e-379660192785",30.445989608764648,-23.245990753173828,0.30000000000000004,0,0,0,0]
["f3a9aaa9-529a-40d1-b981-722b2f743267","Information Technology","PC002003004000000000000000000000000000_00001","_","An efficient, effective and development-oriented public service","Growth","Institutional Development and Transformation","Computer Equipment","Computer Equipment","42510af3-3838-4a32-862e-379660192785",30.445989608764648,-23.245990753173828,0,1800000,1830000,1860000,900000]
["f3a9aaa9-529a-40d1-b981-722b2f743267","Information Technology","PC002003004000000000000000000000000000_00005","_","An efficient, effective and development-oriented public service","Growth","Institutional Development and Transformation","Computer Equipment","Computer Equipment","0d0b8def-631d-4fda-b03e-71f01db572fa",30.445989608764648,-23.245990753173828,0,6000000,6300000,6600000,900000]
["f3a9aaa9-529a-40d1-b981-722b2f743267","Information Technology","PC002003007002004000000000000000000000_00001","_","An efficient, effective and development-oriented public service","Growth","Institutional Development and Transformation","Licences and Rights","Computer Software and Applications","0d0b8def-631d-4fda-b03e-71f01db572fa",30.445989608764648,-23.245990753173828,0,1500000,1530000,1560000,900000]

{"sheet":"Raw_SA37","index":5,"n_rows":138,"n_cols":17,"rows_kept":138,"cut":false,"hidden":true,"merged":[]}
["Function","ProjectDescription","ProjectNumber","Type","MTSFServiceOutcome","IUDF","OwnStrategicObjective","AssetClass","AssetSubClass","GPSLongitude","GPSLatitude","WardLocation","S71_PYearAmount","S71_ASBudgetAmount","S71_OY1BudgetAmount","S71_OY2BudgetAmount","S71_ForecastAmnt"]
["028ec562-fa32-4462-9c8f-90ca38ed33ae","SOLID WASTE","PC002003009000000000000000000000000000_00003","_","An efficient, effective and development-oriented public service","Growth","Infrastructure Development and Basic Service Delivery","Machinery and Equipment","Machinery and Equipment",30.445989608764648,-23.245990753173828,"0d0b8def-631d-4fda-b03e-71f01db572fa",0,30000000,31500000,33000000,7350000]
["044f82e1-bbb4-4190-b772-2ff5020adecc","Upgrading of Parking Lot","PC002002002003001005000000000000000000_00002","_","An efficient, effective and development-oriented public service","Governance","Infrastructure Development and Basic Service Delivery",null,null,30.413181304931641,23.183664321899414,"9f3b39a1-4676-432f-a8b5-6c951f798106",17045875.140000001,6500000,0,0,0]
["044f82e1-bbb4-4190-b772-2ff5020adecc","Upgrading of Parking Lot","PC002002002003001005000000000000000000_00002","_","An efficient, effective and development-oriented public service","Governance","Infrastructure Development and Basic Service Delivery","Operational Buildings","Yards",30.413181304931641,23.183664321899414,"9f3b39a1-4676-432f-a8b5-6c951f798106",51137625.420000024,19500000,0,0,0]
["0e51e5d3-5805-402b-a5dc-3b94852c29c0","Assets Management","PC001002006001000000000000000000000000_00009","_","An efficient, competitive and responsive economic infrastructure network","Growth","Financial Viability","Roads Infrastructure","Roads",30.445989608764648,-23.245990753173828,"0d0b8def-631d-4fda-b03e-71f01db572fa",-157876427.09999993,0,0,0,0]
["0e51e5d3-5805-402b-a5dc-3b94852c29c0","Assets Management","PC002003003001001000000000000000000000_00001","_","An efficient, effective and development-oriented public service","Growth","Financial Viability","Operational Buildings","Municipal Offices",30.445989608764648,-23.245990753173828,"0d0b8def-631d-4fda-b03e-71f01db572fa",-670622.40000000026,0,0,0,0]
["0e51e5d3-5805-402b-a5dc-3b94852c29c0","Assets Management","PC002003004000000000000000000000000000_00004","_","An efficient, effective and development-oriented public service","Growth","Financial Viability","Computer Equipment","Computer Equipment",30.445989608764648,-23.245990753173828,"0d0b8def-631d-4fda-b03e-71f01db572fa",-265248.48000000004,0,0,0,0]
["0e51e5d3-5805-402b-a5dc-3b94852c29c0","Assets Management","PC002003005000000000000000000000000000_00002","_","An efficient, effective and development-oriented public service","Growth","Financial Viability","Furniture and Office Equipment","Furniture and Office Equipment",30.445989608764648,-23.245990753173828,"0d0b8def-631d-4fda-b03e-71f01db572fa",-64439.550000000025,0,0,0,0]
["0e51e5d3-5805-402b-a5dc-3b94852c29c0","Balance Sheet Budget Accounts","PC001002001008000000000000000000000000_00001","_","An efficient, competitive and responsive economic infrastructure network","Growth","Financial Viability","Electrical Infrastructure","LV Networks",30.445989608764648,-23.245990753173828,"0d0b8def-631d-4fda-b03e-71f01db572fa",229706554.97999996,0,0,0,0]
["0e51e5d3-5805-402b-a5dc-3b94852c29c0","PPE Take On Accounts",null,"_",null,null,"Financial Viability",null,null,30.445989608764648,-23.245990753173828,"0d0b8def-631d-4fda-b03e-71f01db572fa",2805774.06,234149266,0,0,295744266]
["0e51e5d3-5805-402b-a5dc-3b94852c29c0","PPE Take On Accounts",null,"_","A comprehensive, responsive and sustainable social protection system","Growth","Financial Viability",null,null,30.445989608764648,-23.245990753173828,"0d0b8def-631d-4fda-b03e-71f01db572fa",0,-157804744,0,0,201678942]
["0e51e5d3-5805-402b-a5dc-3b94852c29c0","PPE Take On Accounts",null,"_","An efficient, effective and development-oriented public service","Growth","Financial Viability",null,null,30.445989608764648,-23.245990753173828,"0d0b8def-631d-4fda-b03e-71f01db572fa",0,626103276,0,0,389809590]
["0e51e5d3-5805-402b-a5dc-3b94852c29c0","PPE Take On Accounts","PC001002006001000000000000000000000000_00009","_","An efficient, competitive and responsive economic infrastructure network","Growth","Financial Viability","Roads Infrastructure","Roads",30.445989608764648,-23.245990753173828,"0d0b8def-631d-4fda-b03e-71f01db572fa",11485132701.209995,4711100976,0,0,4711100976]
["0e51e5d3-5805-402b-a5dc-3b94852c29c0","PPE Take On Accounts","PC002001000000000000000000000000000000_00001","_","An efficient, effective and development-oriented public service","Spatial integration","Financial Viability","Land","Land",30.445989608764648,-23.245990753173828,"0d0b8def-631d-4fda-b03e-71f01db572fa",635670741.09000003,0,0,0,0]
["0e51e5d3-5805-402b-a5dc-3b94852c29c0","PPE Take On Accounts","PC002002001004000000000000000000000000_00001","_","An efficient, effective and development-oriented public service","Governance","Financial Viability",null,null,30.445989608764648,-23.245990753173828,"0d0b8def-631d-4fda-b03e-71f01db572fa",-23040.15,0,0,0,0]
["0e51e5d3-5805-402b-a5dc-3b94852c29c0","PPE Take On Accounts","PC002002001004000000000000000000000000_00001","_","An efficient, effective and development-oriented public service","Governance","Financial Viability","Computer Equipment","Computer Equipment",30.445989608764648,-23.245990753173828,"0d0b8def-631d-4fda-b03e-71f01db572fa",-69120.449999999968,0,0,0,0]
["0e51e5d3-5805-402b-a5dc-3b94852c29c0","PPE Take On Accounts","PC002002001005000000000000000000000000_00001","_","An efficient, effective and development-oriented public service","Governance","Financial Viability",null,null,30.445989608764648,-23.245990753173828,"0d0b8def-631d-4fda-b03e-71f01db572fa",16834644.360000007,0,0,0,0]
["0e51e5d3-5805-402b-a5dc-3b94852c29c0","PPE Take On Accounts","PC002002001005000000000000000000000000_00001","_","An efficient, effective and development-oriented public service","Governance","Financial Viability","Furniture and Office Equipment","Furniture and Office Equipment",30.445989608764648,-23.245990753173828,"0d0b8def-631d-4fda-b03e-71f01db572fa",50503933.079999968,0,0,0,0]
["0e51e5d3-5805-402b-a5dc-3b94852c29c0","PPE Take On Accounts","PC002003002002002000000000000000000000_00003","_","A long and healthy life for all South Africans","Growth","Financial Viability","Sport and Recreation Facilities","Outdoor Facilities",30.445989608764648,-23.245990753173828,"0d0b8def-631d-4fda-b03e-71f01db572fa",1670861158.8899984,0,0,0,0]
["0e51e5d3-5805-402b-a5dc-3b94852c29c0","PPE Take On Accounts","PC002003003001001000000000000000000000_00001","_","An efficient, effective and development-oriented public service","Growth","Financial Viability","Operational Buildings","Municipal Offices",30.445989608764648,-23.245990753173828,"0d0b8def-631d-4fda-b03e-71f01db572fa",2086361290.4399981,1124445078,0,0,1218945078]
["0e51e5d3-5805-402b-a5dc-3b94852c29c0","PPE Take On Accounts","PC002003004000000000000000000000000000_00003","_","An efficient, effective and development-oriented public service","Growth","Financial Viability","Computer Equipment","Computer Equipment",30.445989608764648,-23.245990753173828,"0d0b8def-631d-4fda-b03e-71f01db572fa",8.6100000000000012,0,0,0,0]
["0e51e5d3-5805-402b-a5dc-3b94852c29c0","PPE Take On Accounts","PC002003004000000000000000000000000000_00004","_","An efficient, effective and development-oriented public service","Growth","Financial Viability","Computer Equipment","Computer Equipment",30.445989608764648,-23.245990753173828,"0d0b8def-631d-4fda-b03e-71f01db572fa",109740586.41,0,0,0,0]
["0e51e5d3-5805-402b-a5dc-3b94852c29c0","PPE Take On Accounts","PC002003005000000000000000000000000000_00002","_","An efficient, effective and development-oriented public service","Growth","Financial Viability","Furniture and Office Equipment","Furniture and Office Equipment",30.445989608764648,-23.245990753173828,"0d0b8def-631d-4fda-b03e-71f01db572fa",95323196.010000005,75279636,0,0,62679636]
["0e51e5d3-5805-402b-a5dc-3b94852c29c0","PPE Take On Accounts","PC002003006005000000000000000000000000_00001","_","Create a better South Africa and contribute to a better Africa and a better world","Growth","Financial Viability","Heritage Assets","Other Heritage",30.445989608764648,-23.245990753173828,"0d0b8def-631d-4fda-b03e-71f01db572fa",4332355.2299999986,0,0,0,1856727]
["0e51e5d3-5805-402b-a5dc-3b94852c29c0","PPE Take On Accounts","PC002003007002004000000000000000000000_00002","_","An efficient, effective and development-oriented public service","Growth","Financial Viability","Licences and Rights","Computer Software and Applications",30.445989608764648,-23.245990753173828,"0d0b8def-631d-4fda-b03e-71f01db572fa",18926733.629999973,78957378,0,0,78957378]
["0e51e5d3-5805-402b-a5dc-3b94852c29c0","PPE Take On Accounts","PC002003008001001000000000000000000000_00001","_","An efficient, effective and development-oriented public service","Growth","Financial Viability",null,"Improved Property",30.445989608764648,-23.245990753173828,"0d0b8def-631d-4fda-b03e-71f01db572fa",550191170.34000015,0,0,0,0]
["0e51e5d3-5805-402b-a5dc-3b94852c29c0","PPE Take On Accounts","PC002003009000000000000000000000000000_00005","_","An efficient, effective and development-oriented public service","Growth","Financial Viability","Machinery and Equipment","Machinery and Equipment",30.445989608764648,-23.245990753173828,"0d0b8def-631d-4fda-b03e-71f01db572fa",488434146.47999984,0,0,0,0]
["0e51e5d3-5805-402b-a5dc-3b94852c29c0","PPE Take On Accounts","PC002003010000000000000000000000000000_00002","_","An efficient, effective and development-oriented public service","Growth","Financial Viability","Transport Assets","Transport Assets",30.445989608764648,-23.245990753173828,"0d0b8def-631d-4fda-b03e-71f01db572fa",177003072.32999989,87638283,0,0,69638283]
["0f52d9e5-907f-4d9f-934f-57dc012524d6","Administration","PC002003005000000000000000000000000000_00001","_","An efficient, effective and development-oriented public service","Growth","Good Governance and Public Participation","Furniture and Office Equipment","Furniture and Office Equipment",30.445989608764648,-23.245990753173828,"42510af3-3838-4a32-862e-379660192785",0,18000000,19500000,19500000,21000000]
["1ba26e54-d30e-49dd-8bce-2657f8290afb","Ndhambi Taxi Rank","PC002003002001021000000000000000000000_00001","_","An efficient, effective and development-oriented public service","Growth","Infrastructure Development and Basic Service Delivery","Community Facilities","Taxi Ranks/Bus Terminals",30.423599243164063,-23.343994140625,"a6f1a052-aca9-4a66-8430-6e5757c5867f",126775949.36999999,0,0,0,130090086]
["35f914ed-b099-4a36-890d-69e60fc0e57c","Giyani Section E Sports Precinct","PC002002002002002002000000000000000000_00001","_","A long and healthy life for all South Africans","Inclusion and access","Infrastructure Development and Basic Service Delivery",null,null,30.414649963378906,23.181238174438477,"0d0b8def-631d-4fda-b03e-71f01db572fa",16629370.24,0,0,0,0]
["35f914ed-b099-4a36-890d-69e60fc0e57c","Giyani Section E Sports Precinct","PC002002002002002002000000000000000000_00001","_","A long and healthy life for all South Africans","Inclusion and access","Infrastructure Development and Basic Service Delivery","Sport and Recreation Facilities","Outdoor Facilities",30.414649963378906,23.181238174438477,"0d0b8def-631d-4fda-b03e-71f01db572fa",49888110.719999999,0,0,0,0]
["35f914ed-b099-4a36-890d-69e60fc0e57c","Homu14B Sports centre",null,"_",null,null,"Infrastructure Development and Basic Service Delivery",null,null,222233,11111111,"78a4cf9a-667c-43cd-a0b8-6d9569d88d8c",3391765.84,0,0,0,7000000]
["35f914ed-b099-4a36-890d-69e60fc0e57c","Homu14B Sports centre","PC002003002002002000000000000000000000_00005","_","A long and healthy life for all South Africans","Growth","Infrastructure Development and Basic Service Delivery","Sport and Recreation Facilities","Outdoor Facilities",222233,11111111,"78a4cf9a-667c-43cd-a0b8-6d9569d88d8c",50876487.600000009,0,0,0,105000000]
["35f914ed-b099-4a36-890d-69e60fc0e57c","Mageva Sports Centre","PC002003002002002000000000000000000000_00001","_","A long and healthy life for all South Africans","Growth","Infrastructure Development and Basic Service Delivery","Sport and Recreation Facilities","Outdoor Facilities",30.433280944824219,-23.32512092590332,"04bc482d-a10f-4148-ad06-3315145fe8ea",0,30000000,0,0,0]
["35f914ed-b099-4a36-890d-69e60fc0e57c","Mavalani Indoor Sports Centre","PC002003002002001000000000000000000000_00001","_","A long and healthy life for all South Africans","Growth","Infrastructure Development and Basic Service Delivery","Sport and Recreation Facilities","Indoor Facilities",30.422607421875,23.123525619506836,"72b09a64-68be-427f-9cbf-273e930b11b3",0,144205185,0,0,246256584]
["35f914ed-b099-4a36-890d-69e60fc0e57c","Mavalani Indoor Sports Centre","PC002003002002001000000000000000000000_00001","_","A long and healthy life for all South Africans","Growth","Infrastructure Development and Basic Service Delivery","Sport and Recreation Facilities","Indoor Facilities",30.422607421875,23.123525619506836,"f7c962df-61b9-4b59-aab9-0cc9d246df9a",35967169.140000008,0,0,0,0]
["35f914ed-b099-4a36-890d-69e60fc0e57c","Refurbishment of Giyani Stadium & Section A Tennis Court","PC002002002002002002000000000000000000_00002","_","A long and healthy life for all South Africans","Inclusion and access","Infrastructure Development and Basic Service Delivery",null,null,30.420839309692383,-23.192020416259766,"9f3b39a1-4676-432f-a8b5-6c951f798106",12605758.060000001,0,0,0,0]
["35f914ed-b099-4a36-890d-69e60fc0e57c","Refurbishment of Giyani Stadium & Section A Tennis Court","PC002002002002002002000000000000000000_00002","_","A long and healthy life for all South Africans","Inclusion and access","Infrastructure Development and Basic Service Delivery","Sport and Recreation Facilities","Outdoor Facilities",30.420839309692383,-23.192020416259766,"9f3b39a1-4676-432f-a8b5-6c951f798106",37817274.179999985,0,0,0,0]
["35f914ed-b099-4a36-890d-69e60fc0e57c","Refurbishment of Giyani Stadium & Section A Tennis Court","PC002002002002002002000000000000000000_00005","_","A long and healthy life for all South Africans","Inclusion and access","Infrastructure Development and Basic Service Delivery",null,null,30.445989608764648,-23.245990753173828,"0d0b8def-631d-4fda-b03e-71f01db572fa",0,14000000,54000000,0,600000]
["35f914ed-b099-4a36-890d-69e60fc0e57c","Refurbishment of Giyani Stadium & Section A Tennis Court","PC002002002002002002000000000000000000_00005","_","A long and healthy life for all South Africans","Inclusion and access","Infrastructure Development and Basic Service Delivery","Sport and Recreation Facilities","Outdoor Facilities",30.445989608764648,-23.245990753173828,"0d0b8def-631d-4fda-b03e-71f01db572fa",0,42000000,162000000,0,1800000]
["35f914ed-b099-4a36-890d-69e60fc0e57c","Refurbishment of Shivulani Sports Centre","PC002002002002002002000000000000000000_00004","_","A long and healthy life for all South Africans","Inclusion and access","Infrastructure Development and Basic Service Delivery",null,null,30.424520492553711,23.075927734375,"7dbf5cb6-c47a-4c39-ae12-ca7e2aab8f77",4844748.0599999996,0,0,0,0]
["35f914ed-b099-4a36-890d-69e60fc0e57c","Refurbishment of Shivulani Sports Centre","PC002002002002002002000000000000000000_00004","_","A long and healthy life for all South Africans","Inclusion and access","Infrastructure Development and Basic Service Delivery","Sport and Recreation Facilities","Outdoor Facilities",30.424520492553711,23.075927734375,"7dbf5cb6-c47a-4c39-ae12-ca7e2aab8f77",14534244.18,0,0,0,0]
["35f914ed-b099-4a36-890d-69e60fc0e57c","Refurbishment of Sporting Facilities (Gawula)","PC002002002002002002000000000000000000_00003","_","A long and healthy life for all South Africans","Inclusion and access","Infrastructure Development and Basic Service Delivery",null,null,30.532768249511719,23.184122085571289,"87d619e1-38cf-4dee-b6ec-8419521faca7",4238166.99,0,0,0,0]
["35f914ed-b099-4a36-890d-69e60fc0e57c","Refurbishment of Sporting Facilities (Gawula)","PC002002002002002002000000000000000000_00003","_","A long and healthy life for all South Africans","Inclusion and access","Infrastructure Development and Basic Service Delivery","Sport and Recreation Facilities","Outdoor Facilities",30.532768249511719,23.184122085571289,"87d619e1-38cf-4dee-b6ec-8419521faca7",12714500.970000001,0,0,0,0]
["35f914ed-b099-4a36-890d-69e60fc0e57c","Section E Sports Centre","PC002003002002002000000000000000000000_00002","_","A long and healthy life for all South Africans","Growth","Infrastructure Development and Basic Service Delivery","Sport and Recreation Facilities","Outdoor Facilities",30.414649963378906,23.181238174438477,"8127b5b5-a3d3-4509-bade-f900f57d222b",484836553.94999981,0,0,0,0]
["57eb57f7-9f9a-43e8-a53f-0e222f65a66d","Security  Services","PC002003009000000000000000000000000000_00004","_","An efficient, effective and development-oriented public service","Growth","Institutional Development and Transformation","Machinery and Equipment","Machinery and Equipment",30.445989608764648,-23.245990753173828,"42510af3-3838-4a32-862e-379660192785",0,7500000,7500000,8250000,10500000]
["57eb57f7-9f9a-43e8-a53f-0e222f65a66d","Security  Services","PC002003009000000000000000000000000000_00007","_","An efficient, effective and development-oriented public service","Growth","Institutional Development and Transformation","Machinery and Equipment","Machinery and Equipment",30.445989608764648,-23.245990753173828,"42510af3-3838-4a32-862e-379660192785",0,12000000,13200000,14400000,5400000]
["5efb28bb-c786-49af-8a50-44a8b229bf7f","51 High Mast Lights in Crime Prone Areas","PC001002006002000000000000000000000000_00002","_","An efficient, competitive and responsive economic infrastructure network","Growth","Infrastructure Development and Basic Service Delivery","Roads Infrastructure","Road Structures",30.431600570678711,-23.181659698486328,"0d0b8def-631d-4fda-b03e-71f01db572fa",133662344.96999994,0,0,0,0]
["5efb28bb-c786-49af-8a50-44a8b229bf7f","Upgrading of Traffic Lights & R81 Lighting","PC001001002006003000000000000000000000_00002","_","An efficient, competitive and responsive economic infrastructure network","Inclusion and access","Infrastructure Development and Basic Service Delivery",null,null,30.413053512573242,23.183811187744141,"0d0b8def-631d-4fda-b03e-71f01db572fa",5377193.2199999997,0,0,0,0]
["5efb28bb-c786-49af-8a50-44a8b229bf7f","Upgrading of Traffic Lights & R81 Lighting","PC001001002006003000000000000000000000_00002","_","An efficient, competitive and responsive economic infrastructure network","Inclusion and access","Infrastructure Development and Basic Service Delivery","Roads Infrastructure","Road Furniture",30.413053512573242,23.183811187744141,"0d0b8def-631d-4fda-b03e-71f01db572fa",16131579.660000008,0,0,0,0]
["600af0bf-7b13-4030-8d6a-6496e24eb507","Civic Centre Building Phase 3 and 4","PC002002002003001001000000000000000000_00001","_","An efficient, effective and development-oriented public service","Governance","Infrastructure Development and Basic Service Delivery",null,null,30.41328239440918,23.18376350402832,"42510af3-3838-4a32-862e-379660192785",16643199.140000001,26538378,0,0,28678550]
["600af0bf-7b13-4030-8d6a-6496e24eb507","Civic Centre Building Phase 3 and 4","PC002002002003001001000000000000000000_00001","_","An efficient, effective and development-oriented public service","Governance","Infrastructure Development and Basic Service Delivery","Operational Buildings","Municipal Offices",30.41328239440918,23.18376350402832,"42510af3-3838-4a32-862e-379660192785",49929597.420000002,79615134,0,0,86035650]
["600af0bf-7b13-4030-8d6a-6496e24eb507","Civic Centre Building Phase 3 and 4","PC002002002003001001000000000000000000_00004","_","An efficient, effective and development-oriented public service","Governance","Infrastructure Development and Basic Service Delivery",null,null,30.41328239440918,23.18376350402832,"42510af3-3838-4a32-862e-379660192785",41607997.850000001,39807567,0,0,71696375]
["600af0bf-7b13-4030-8d6a-6496e24eb507","Civic Centre Building Phase 3 and 4","PC002002002003001001000000000000000000_00004","_","An efficient, effective and development-oriented public service","Governance","Infrastructure Development and Basic Service Delivery","Operational Buildings","Municipal Offices",30.41328239440918,23.18376350402832,"42510af3-3838-4a32-862e-379660192785",124823993.54999995,119422701,0,0,215089125]
["67347610-1db2-421f-a89a-f87e772911eb","Balance Sheet Budget Accounts",null,"_",null,null,"Financial Viability",null,null,30.445989608764648,-23.245990753173828,"0d0b8def-631d-4fda-b03e-71f01db572fa",0,0,0,0,-138207867]
["67347610-1db2-421f-a89a-f87e772911eb","Balance Sheet Budget Accounts","PC001002006001000000000000000000000000_00019","_","An efficient, competitive and responsive economic infrastructure network","Growth","Financial Viability","Roads Infrastructure","Roads",30.445989608764648,-23.245990753173828,"0d0b8def-631d-4fda-b03e-71f01db572fa",0,0,0,0,-2073118005]
["67347610-1db2-421f-a89a-f87e772911eb","PPE Take On Accounts","PC001002006001000000000000000000000000_00009","_","An efficient, competitive and responsive economic infrastructure network","Growth","Financial Viability","Roads Infrastructure","Roads",30.445989608764648,-23.245990753173828,"0d0b8def-631d-4fda-b03e-71f01db572fa",0,0,0,0,1104953310]
["67347610-1db2-421f-a89a-f87e772911eb","PPE Take On Accounts","PC002003002002001000000000000000000000_00002","_","A long and healthy life for all South Africans","Growth","Financial Viability","Sport and Recreation Facilities","Indoor Facilities",30.445989608764648,-23.245990753173828,"0d0b8def-631d-4fda-b03e-71f01db572fa",87124542.75,0,0,0,0]
["67347610-1db2-421f-a89a-f87e772911eb","Section E FROM GRAVEL TO TARR","PC001002006001000000000000000000000000_00014","_","An efficient, competitive and responsive economic infrastructure network","Growth","Infrastructure Development and Basic Service Delivery","Roads Infrastructure","Roads",0.2354000061750412,-0.2354000061750412,"8127b5b5-a3d3-4509-bade-f900f57d222b",70977353.340000004,0,0,0,49500000]
["67347610-1db2-421f-a89a-f87e772911eb","Shimange Upgrading from gravel to paving",null,"_",null,null,"Infrastructure Development and Basic Service Delivery",null,null,75412,5897,"c08bed4f-8360-4232-ba26-d81bcbaf81c3",0,0,0,0,2755838]
["6fa14a15-a164-42cb-a263-a0b007852bc5","GOLF COURSE DEVELOPMENT","PC002002002002001002000000000000000000_00001","_","An efficient, effective and development-oriented public service","Inclusion and access","To develop an effective spatial framework that promotes integrated and sustainable development",null,null,30.445989608764648,-23.245990753173828,"0d0b8def-631d-4fda-b03e-71f01db572fa",0,4000000,4400000,4800000,1800000]
["6fa14a15-a164-42cb-a263-a0b007852bc5","GOLF COURSE DEVELOPMENT","PC002002002002001002000000000000000000_00001","_","An efficient, effective and development-oriented public service","Inclusion and access","To develop an effective spatial framework that promotes integrated and sustainable development","Community Facilities","Centres",30.445989608764648,-23.245990753173828,"0d0b8def-631d-4fda-b03e-71f01db572fa",0,12000000,13200000,14400000,5400000]
["6fa14a15-a164-42cb-a263-a0b007852bc5","Jim-Nghalalume Community Hall","PC002003002001001000000000000000000000_00001","_","An efficient, effective and development-oriented public service","Growth","Infrastructure Development and Basic Service Delivery","Community Facilities","Halls",30.36387825012207,23.141061782836914,"0d0b8def-631d-4fda-b03e-71f01db572fa",33366055.800000012,105141150,0,0,288027033]
["6fa14a15-a164-42cb-a263-a0b007852bc5","N'wadzekudzeku Community Hall","PC002003002001001000000000000000000000_00002","_","An efficient, effective and development-oriented public service","Growth","Infrastructure Development and Basic Service Delivery","Community Facilities","Halls",30.433935165405273,23.0654296875,"0d0b8def-631d-4fda-b03e-71f01db572fa",151411180.40999997,0,0,0,249856614]
["6fa14a15-a164-42cb-a263-a0b007852bc5","PPE Take On Accounts","PC002002001002001011000000000000000000_00001","_","A comprehensive, responsive and sustainable social protection system","Inclusion and access","Financial Viability",null,null,30.445989608764648,-23.245990753173828,"0d0b8def-631d-4fda-b03e-71f01db572fa",-24067144.850000001,0,0,0,0]
["6fa14a15-a164-42cb-a263-a0b007852bc5","PPE Take On Accounts","PC002002001002001011000000000000000000_00001","_","A comprehensive, responsive and sustainable social protection system","Inclusion and access","Financial Viability","Community Facilities","Cemeteries/Crematoria",30.445989608764648,-23.245990753173828,"0d0b8def-631d-4fda-b03e-71f01db572fa",-72201434.549999967,0,0,0,0]
["6fa14a15-a164-42cb-a263-a0b007852bc5","Refurbishment of Giyani Arts & Culture Centre","PC002002001002001002000000000000000000_00001","_","An efficient, effective and development-oriented public service","Inclusion and access","Infrastructure Development and Basic Service Delivery",null,null,30.405937194824219,23.183698654174805,"0d0b8def-631d-4fda-b03e-71f01db572fa",7464940.0699999994,0,0,0,0]
["6fa14a15-a164-42cb-a263-a0b007852bc5","Refurbishment of Giyani Arts & Culture Centre","PC002002001002001002000000000000000000_00001","_","An efficient, effective and development-oriented public service","Inclusion and access","Infrastructure Development and Basic Service Delivery","Community Facilities","Centres",30.405937194824219,23.183698654174805,"0d0b8def-631d-4fda-b03e-71f01db572fa",22394820.210000008,0,0,0,0]
["6fa14a15-a164-42cb-a263-a0b007852bc5","SIYANDHANI-JIM NGHALALUME (ACCESS TO TOMU) REGRAVELLING & CULVERT BRIDGE","PC002003002001002000000000000000000000_00001","_","An efficient, effective and development-oriented public service","Growth","Infrastructure Development and Basic Service Delivery","Community Facilities","Centres",30.445989608764648,-23.245990753173828,"0d0b8def-631d-4fda-b03e-71f01db572fa",11789073.660000004,0,0,0,0]
["7bfc7c06-9b62-4cad-816b-78ab18ec23e3","Civic Centre Building Phase 3 and 4","PC002002002003001001000000000000000000_00001","_","An efficient, effective and development-oriented public service","Governance","Infrastructure Development and Basic Service Delivery",null,null,30.41328239440918,23.18376350402832,"42510af3-3838-4a32-862e-379660192785",28770336.629999999,0,0,0,0]
["7bfc7c06-9b62-4cad-816b-78ab18ec23e3","Civic Centre Building Phase 3 and 4","PC002002002003001001000000000000000000_00001","_","An efficient, effective and development-oriented public service","Governance","Infrastructure Development and Basic Service Delivery","Operational Buildings","Municipal Offices",30.41328239440918,23.18376350402832,"42510af3-3838-4a32-862e-379660192785",86311009.890000045,0,0,0,0]
["7bfc7c06-9b62-4cad-816b-78ab18ec23e3","PPE Take On Accounts","PC002003008001001000000000000000000000_00001","_","An efficient, effective and development-oriented public service","Growth","Financial Viability",null,"Improved Property",30.445989608764648,-23.245990753173828,"0d0b8def-631d-4fda-b03e-71f01db572fa",0,230398380,0,0,235796220]
["7bfc7c06-9b62-4cad-816b-78ab18ec23e3","SIYANDHANI-JIM NGHALALUME (ACCESS TO TOMU) REGRAVELLING & CULVERT BRIDGE","PC002002002003001001000000000000000000_00002","_","An efficient, effective and development-oriented public service","Governance","Infrastructure Development and Basic Service Delivery",null,null,30.445989608764648,-23.245990753173828,"0d0b8def-631d-4fda-b03e-71f01db572fa",23121627.899999999,0,0,0,0]
["7bfc7c06-9b62-4cad-816b-78ab18ec23e3","SIYANDHANI-JIM NGHALALUME (ACCESS TO TOMU) REGRAVELLING & CULVERT BRIDGE","PC002002002003001001000000000000000000_00002","_","An efficient, effective and development-oriented public service","Governance","Infrastructure Development and Basic Service Delivery","Operational Buildings","Municipal Offices",30.445989608764648,-23.245990753173828,"0d0b8def-631d-4fda-b03e-71f01db572fa",69364883.700000018,0,0,0,0]
["81e26025-8a7e-485a-b96d-814b817bc7e2","Vehicle Lisencing & Reg","PC002003009000000000000000000000000000_00005","_","An efficient, effective and development-oriented public service","Growth","Infrastructure Development and Basic Service Delivery","Machinery and Equipment","Machinery and Equipment",30.445989608764648,-23.245990753173828,"0d0b8def-631d-4fda-b03e-71f01db572fa",0.21000000000000005,1500000,1800000,2100000,9450000]
["81e26025-8a7e-485a-b96d-814b817bc7e2","Vehicle Lisencing & Reg","PC002003009000000000000000000000000000_00006","_","An efficient, effective and development-oriented public service","Growth","Infrastructure Development and Basic Service Delivery","Machinery and Equipment","Machinery and Equipment",30.445989608764648,-23.245990753173828,"0d0b8def-631d-4fda-b03e-71f01db572fa",0,7500000,9000000,9000000,6300000]
["84c380c3-3b7f-4f6e-b3e1-ca680365dc85","Waste Disposal Site Development","PC001002002001000000000000000000000000_00001","_","An efficient, competitive and responsive economic infrastructure network","Growth","Infrastructure Development and Basic Service Delivery","Solid Waste Infrastructure","Landfill Sites",30.392440795898438,-23.211053848266602,"0d0b8def-631d-4fda-b03e-71f01db572fa",1283486616.0900002,0,0,0,0]
["be26bea6-58e3-4497-b52c-0bf597208207","Access Roads to Tribal Offices","PC001002006001000000000000000000000000_00007","_","An efficient, competitive and responsive economic infrastructure network","Growth","Infrastructure Development and Basic Service Delivery","Roads Infrastructure","Roads",30.471889495849609,23.145221710205078,"3e530dd7-b913-492b-b632-d971cd9e4fa5",14489069.07,0,0,0,0]
["be26bea6-58e3-4497-b52c-0bf597208207","Access Roads to Tribal Offices","PC001002006001000000000000000000000000_00007","_","An efficient, competitive and responsive economic infrastructure network","Growth","Infrastructure Development and Basic Service Delivery","Roads Infrastructure","Roads",30.471889495849609,23.145221710205078,"3f1af2a7-52e6-431e-9b29-97b1fa96fb03",20961688.860000003,0,0,0,0]
["be26bea6-58e3-4497-b52c-0bf597208207","Access Roads to Tribal Offices","PC001002006001000000000000000000000000_00007","_","An efficient, competitive and responsive economic infrastructure network","Growth","Infrastructure Development and Basic Service Delivery","Roads Infrastructure","Roads",30.471889495849609,23.145221710205078,"87d619e1-38cf-4dee-b6ec-8419521faca7",11751666.360000001,0,0,0,0]
["be26bea6-58e3-4497-b52c-0bf597208207","Access Roads to Tribal Offices","PC001002006001000000000000000000000000_00007","_","An efficient, competitive and responsive economic infrastructure network","Growth","Infrastructure Development and Basic Service Delivery","Roads Infrastructure","Roads",30.471889495849609,23.145221710205078,"96b769bf-5ccc-47cb-a4a2-472e5a88f53e",5951344.9799999986,0,0,0,0]
["be26bea6-58e3-4497-b52c-0bf597208207","Access Roads to Tribal Offices","PC001002006001000000000000000000000000_00007","_","An efficient, competitive and responsive economic infrastructure network","Growth","Infrastructure Development and Basic Service Delivery","Roads Infrastructure","Roads",30.471889495849609,23.145221710205078,"c92bf118-48c8-4d9a-88e5-02ee82bc8c35",9470310.3600000013,0,0,0,0]
["be26bea6-58e3-4497-b52c-0bf597208207","ALTERNATIVE ROAD TO GIYANI FROM R81","PC001002006001000000000000000000000000_00010","_","An efficient, competitive and responsive economic infrastructure network","Growth","Infrastructure Development and Basic Service Delivery","Roads Infrastructure","Roads",30.445989608764648,-23.245990753173828,"0d0b8def-631d-4fda-b03e-71f01db572fa",75775254.86999999,750000,750000,0,37800000]
["be26bea6-58e3-4497-b52c-0bf597208207","Alternative route from Elim Road R578 to Giyani via Siyandhani","PC001002006001000000000000000000000000_00029","_","An efficient, competitive and responsive economic infrastructure network","Growth","Infrastructure Development and Basic Service Delivery","Roads Infrastructure","Roads",1257333,1112548,"0d0b8def-631d-4fda-b03e-71f01db572fa",0,600000,0,0,0]
["be26bea6-58e3-4497-b52c-0bf597208207","Bode Paving of Internal Streets","PC001002006001000000000000000000000000_00005","_","An efficient, competitive and responsive economic infrastructure network","Growth","Infrastructure Development and Basic Service Delivery","Roads Infrastructure","Roads",30.37445068359375,-23.20277214050293,"61e4bf4d-bea3-45e9-8728-0c9c929a5e19",0.21000000000000005,0,0,0,0]
["be26bea6-58e3-4497-b52c-0bf597208207","Construction of Car Pots (Civic centre ,Unigaz ,Testing Station and brick yard)","PC002003003001001000000000000000000000_00003","_","An efficient, effective and development-oriented public service","Growth","Infrastructure Development and Basic Service Delivery","Operational Buildings","Municipal Offices",2,1,"42510af3-3838-4a32-862e-379660192785",0,6000000,0,0,0]
["be26bea6-58e3-4497-b52c-0bf597208207","Giyani Section F Streets Phase 3","PC001002006001000000000000000000000000_00004","_","An efficient, competitive and responsive economic infrastructure network","Growth","Infrastructure Development and Basic Service Delivery","Roads Infrastructure","Roads",30.422449111938477,-23.172901153564453,"470cadee-ff6c-46d4-a0d2-f0017ec375fc",-1.0500000000000003,0,0,0,0]
["be26bea6-58e3-4497-b52c-0bf597208207","Hlomela upgrading from Gravel to Paving","PC001002006001000000000000000000000000_00033","_","An efficient, competitive and responsive economic infrastructure network","Growth","Infrastructure Development and Basic Service Delivery","Roads Infrastructure","Roads",123,12,"0d0b8def-631d-4fda-b03e-71f01db572fa",0,30325908,219274092,0,0]
["be26bea6-58e3-4497-b52c-0bf597208207","Hlomela upgrading from Gravel to Paving","PC001002006001000000000000000000000000_00033","_","An efficient, competitive and responsive economic infrastructure network","Growth","Infrastructure Development and Basic Service Delivery","Roads Infrastructure","Roads",123,12,"69a68dda-1a43-48a9-ba87-da9a2ee10f58",0,6000000,0,0,9000000]
["be26bea6-58e3-4497-b52c-0bf597208207","Homu 14B to 14A Upgrading from Gravel to Tar","PC001002006001000000000000000000000000_00002","_","An efficient, competitive and responsive economic infrastructure network","Growth","Infrastructure Development and Basic Service Delivery","Roads Infrastructure","Roads",30.474020004272461,-23.191303253173828,"78a4cf9a-667c-43cd-a0b8-6d9569d88d8c",0.21000000000000005,0,0,0,0]
["be26bea6-58e3-4497-b52c-0bf597208207","Makosha phase 2 upgrading from gravel to paving","PC001002006001000000000000000000000000_00029","_","An efficient, competitive and responsive economic infrastructure network","Growth","Infrastructure Development and Basic Service Delivery","Roads Infrastructure","Roads",-0.230712890625,5.9051502496004105E-2,"0c756f5f-d7c4-4594-b90e-49be9e655e85",0,12000000,295026804,60000000,9000000]
["be26bea6-58e3-4497-b52c-0bf597208207","Makosha Upgrading from Gravel to Paving","PC001002006001000000000000000000000000_00003","_","An efficient, competitive and responsive economic infrastructure network","Growth","Infrastructure Development and Basic Service Delivery","Roads Infrastructure","Roads",30.444568634033203,-23.150848388671875,"0c756f5f-d7c4-4594-b90e-49be9e655e85",-0.63000000000000034,0,0,0,0]
["be26bea6-58e3-4497-b52c-0bf597208207","Rehabilitation of Streets in All Sections","PC001001001006001000000000000000000000_00001","_","An efficient, competitive and responsive economic infrastructure network","Inclusion and access","Infrastructure Development and Basic Service Delivery",null,null,30.413181304931641,23.183664321899414,"0d0b8def-631d-4fda-b03e-71f01db572fa",4872000,0,0,0,0]
["be26bea6-58e3-4497-b52c-0bf597208207","Rehabilitation of Streets in All Sections","PC001001001006001000000000000000000000_00001","_","An efficient, competitive and responsive economic infrastructure network","Inclusion and access","Infrastructure Development and Basic Service Delivery","Roads Infrastructure","Roads",30.413181304931641,23.183664321899414,"0d0b8def-631d-4fda-b03e-71f01db572fa",14616000,0,0,0,0]
["be26bea6-58e3-4497-b52c-0bf597208207","Section E FROM GRAVEL TO TARR","PC001002006001000000000000000000000000_00014","_","An efficient, competitive and responsive economic infrastructure network","Growth","Infrastructure Development and Basic Service Delivery","Roads Infrastructure","Roads",0.2354000061750412,-0.2354000061750412,"8127b5b5-a3d3-4509-bade-f900f57d222b",354886766.69999993,0,0,0,247500000]
["be26bea6-58e3-4497-b52c-0bf597208207","Section E upgrading of 13km from gravel to paving","PC001002006001000000000000000000000000_00037","_","An efficient, competitive and responsive economic infrastructure network","Growth","Infrastructure Development and Basic Service Delivery","Roads Infrastructure","Roads",3,2,"8127b5b5-a3d3-4509-bade-f900f57d222b",0,12000000,480000000,480000000,1800000]
["be26bea6-58e3-4497-b52c-0bf597208207","Selawa upgrading of roads from gravel to paving","PC001002006001000000000000000000000000_00027","_","An efficient, competitive and responsive economic infrastructure network","Growth","Infrastructure Development and Basic Service Delivery","Roads Infrastructure","Roads",5568,2223,"c08bed4f-8360-4232-ba26-d81bcbaf81c3",13201805.159999995,1200000,0,0,275400000]
["be26bea6-58e3-4497-b52c-0bf597208207","Shawela Upgrading from gravel to paving","PC001002006001000000000000000000000000_00035","_","An efficient, competitive and responsive economic infrastructure network","Growth","Infrastructure Development and Basic Service Delivery","Roads Infrastructure","Roads",1,1,"ec418d3a-6552-40f1-b432-7714d64b556c",0,24000000,552000000,120000000,18000000]
["be26bea6-58e3-4497-b52c-0bf597208207","Shikhumba Upgrading from gravel to paving","PC001002006001000000000000000000000000_00033","_","An efficient, competitive and responsive economic infrastructure network","Growth","Infrastructure Development and Basic Service Delivery","Roads Infrastructure","Roads",-0.230712890625,5.9051502496004105E-2,"ec418d3a-6552-40f1-b432-7714d64b556c",0,554186112,0,0,241145496]
["be26bea6-58e3-4497-b52c-0bf597208207","Shimange Upgrading from gravel to paving","PC001002006001000000000000000000000000_00020","_","An efficient, competitive and responsive economic infrastructure network","Growth","Infrastructure Development and Basic Service Delivery","Roads Infrastructure","Roads",75412,5897,"c08bed4f-8360-4232-ba26-d81bcbaf81c3",0,0,0,0,41337570]
["be26bea6-58e3-4497-b52c-0bf597208207","Siyandhani Ring Road","PC001002006001000000000000000000000000_00028","_","An efficient, competitive and responsive economic infrastructure network","Growth","Infrastructure Development and Basic Service Delivery","Roads Infrastructure","Roads",-0.230712890625,5.9051502496004105E-2,"61e4bf4d-bea3-45e9-8728-0c9c929a5e19",0,378349224,0,0,117364248]
["be26bea6-58e3-4497-b52c-0bf597208207","SIYANDHANI-JIM NGHALALUME (ACCESS TO TOMU) REGRAVELLING & CULVERT BRIDGE","PC001002006001000000000000000000000000_00011","_","An efficient, competitive and responsive economic infrastructure network","Growth","Infrastructure Development and Basic Service Delivery","Roads Infrastructure","Roads",30.445989608764648,-23.245990753173828,"63828785-97c9-4eb6-90c2-107c84431b07",-0.21000000000000005,0,0,0,0]
["be26bea6-58e3-4497-b52c-0bf597208207","Upgrading of Nkhensani Access","PC001001002006003000000000000000000000_00001","_","An efficient, competitive and responsive economic infrastructure network","Inclusion and access","Infrastructure Development and Basic Service Delivery",null,null,30.423929214477539,-23.190595626831055,"0d0b8def-631d-4fda-b03e-71f01db572fa",3057600,0,0,0,0]
["be26bea6-58e3-4497-b52c-0bf597208207","Upgrading of Nkhensani Access","PC001001002006003000000000000000000000_00001","_","An efficient, competitive and responsive economic infrastructure network","Inclusion and access","Infrastructure Development and Basic Service Delivery","Roads Infrastructure","Road Furniture",30.423929214477539,-23.190595626831055,"0d0b8def-631d-4fda-b03e-71f01db572fa",9172800,0,0,0,0]
["be26bea6-58e3-4497-b52c-0bf597208207","Upgrading of Nkhensani Access","PC002003002001018000000000000000000000_00001","_","An efficient, effective and development-oriented public service","Growth","Infrastructure Development and Basic Service Delivery","Community Facilities","Stalls",30.423929214477539,-23.190595626831055,"0d0b8def-631d-4fda-b03e-71f01db572fa",0,13500000,300000000,0,1050000]
["be26bea6-58e3-4497-b52c-0bf597208207","WIP ACCOUNTS","PC001002001008000000000000000000000000_00016","_","An efficient, effective and development-oriented public service","Growth","Infrastructure Development and Basic Service Delivery","Electrical Infrastructure","LV Networks",12435,55552,"0d0b8def-631d-4fda-b03e-71f01db572fa",46956521.699999988,0,0,0,0]
["be26bea6-58e3-4497-b52c-0bf597208207","WIP ACCOUNTS","PC001002006001000000000000000000000000_00031","_","An efficient, competitive and responsive economic infrastructure network","Growth","Infrastructure Development and Basic Service Delivery","Roads Infrastructure","Roads",12435,55552,"0d0b8def-631d-4fda-b03e-71f01db572fa",-0.18000000000000002,0,0,0,0]
["be26bea6-58e3-4497-b52c-0bf597208207","WIP ACCOUNTS","PC001002006002000000000000000000000000_00032","_","An efficient, effective and development-oriented public service","Growth","Infrastructure Development and Basic Service Delivery","Roads Infrastructure","Road Structures",12435,55552,"0d0b8def-631d-4fda-b03e-71f01db572fa",15125315.939999999,0,0,0,0]
["be26bea6-58e3-4497-b52c-0bf597208207","WIP ACCOUNTS","PC001002006002000000000000000000000000_00033","_","An efficient, effective and development-oriented public service","Growth","Infrastructure Development and Basic Service Delivery","Roads Infrastructure","Road Structures",12435,55552,"0d0b8def-631d-4fda-b03e-71f01db572fa",16241152.140000006,0,0,0,0]
["be26bea6-58e3-4497-b52c-0bf597208207","WIP ACCOUNTS","PC001002006002000000000000000000000000_00034","_","An efficient, effective and development-oriented public service","Growth","Infrastructure Development and Basic Service Delivery","Roads Infrastructure","Road Structures",12435,55552,"0d0b8def-631d-4fda-b03e-71f01db572fa",2401782.12,0,0,0,0]
["be26bea6-58e3-4497-b52c-0bf597208207","WIP ACCOUNTS","PC001002006002000000000000000000000000_00036","_","An efficient, effective and development-oriented public service","Growth","Infrastructure Development and Basic Service Delivery","Roads Infrastructure","Road Structures",12435,55552,"0d0b8def-631d-4fda-b03e-71f01db572fa",8070214.5,0,0,0,0]
["be26bea6-58e3-4497-b52c-0bf597208207","Xikukwane Gravel To TARR(RAL)(D3804 & D3805)","PC001001002006001000000000000000000000_00003","_","An efficient, competitive and responsive economic infrastructure network","Inclusion and access","To develop an effective spatial framework that promotes integrated and sustainable development",null,null,30.423040390014648,-23.135786056518555,"0c756f5f-d7c4-4594-b90e-49be9e655e85",20836328.100000001,0,0,0,0]
["be26bea6-58e3-4497-b52c-0bf597208207","Xikukwane Gravel To TARR(RAL)(D3804 & D3805)","PC001001002006001000000000000000000000_00003","_","An efficient, competitive and responsive economic infrastructure network","Inclusion and access","To develop an effective spatial framework that promotes integrated and sustainable development","Roads Infrastructure","Roads",30.423040390014648,-23.135786056518555,"0c756f5f-d7c4-4594-b90e-49be9e655e85",62508984.299999975,0,0,0,0]
["c57d4368-34c4-4b96-8470-2264a2fa849c","Fleet and Machinery","PC002003009000000000000000000000000000_00001","_","An efficient, effective and development-oriented public service","Growth","Financial Viability","Machinery and Equipment","Machinery and Equipment",30.445989608764648,-23.245990753173828,"42510af3-3838-4a32-862e-379660192785",0,180000000,181500000,183000000,252000000]
["c57d4368-34c4-4b96-8470-2264a2fa849c","Fleet and Machinery","PC002003010000000000000000000000000000_00001","_","An efficient, effective and development-oriented public service","Growth","Financial Viability","Transport Assets","Transport Assets",30.445989608764648,-23.245990753173828,"42510af3-3838-4a32-862e-379660192785",0,30000000,31500000,33000000,42000000]
["c80f9188-81ce-4ffe-8a38-098a987032df","Shimange Upgrading from gravel to paving",null,"_",null,null,"Infrastructure Development and Basic Service Delivery",null,null,75412,5897,"c08bed4f-8360-4232-ba26-d81bcbaf81c3",0,0,0,0,2755838]
["c91683cc-ca5a-4118-b55f-132ec0c3bf1e","Refurbishment of Shivulani Sports Centre","PC002002002002002002000000000000000000_00004","_","A long and healthy life for all South Africans","Inclusion and access","Infrastructure Development and Basic Service Delivery",null,null,30.424520492553711,23.075927734375,"7dbf5cb6-c47a-4c39-ae12-ca7e2aab8f77",33481375.859999996,0,0,0,24179785]
["c91683cc-ca5a-4118-b55f-132ec0c3bf1e","Refurbishment of Shivulani Sports Centre","PC002002002002002002000000000000000000_00004","_","A long and healthy life for all South Africans","Inclusion and access","Infrastructure Development and Basic Service Delivery","Sport and Recreation Facilities","Outdoor Facilities",30.424520492553711,23.075927734375,"7dbf5cb6-c47a-4c39-ae12-ca7e2aab8f77",100444127.58000003,0,0,0,72539355]
["c91683cc-ca5a-4118-b55f-132ec0c3bf1e","Refurbishment of Sporting Facilities (Gawula)","PC002002002002002002000000000000000000_00003","_","A long and healthy life for all South Africans","Inclusion and access","Infrastructure Development and Basic Service Delivery",null,null,30.532768249511719,23.184122085571289,"87d619e1-38cf-4dee-b6ec-8419521faca7",25429001.940000005,20000000,0,0,0]
["c91683cc-ca5a-4118-b55f-132ec0c3bf1e","Refurbishment of Sporting Facilities (Gawula)","PC002002002002002002000000000000000000_00003","_","A long and healthy life for all South Africans","Inclusion and access","Infrastructure Development and Basic Service Delivery","Sport and Recreation Facilities","Outdoor Facilities",30.532768249511719,23.184122085571289,"87d619e1-38cf-4dee-b6ec-8419521faca7",76287005.820000008,60000000,0,0,0]
["d001b930-0f88-4eb0-bcde-e8736dbf200e","Legal ","PC002003007002006000000000000000000000_00001","_","An efficient, effective and development-oriented public service","Growth","Institutional Development and Transformation","Licences and Rights","Unspecified",30.445989608764648,-23.245990753173828,"0d0b8def-631d-4fda-b03e-71f01db572fa",0,1650000,1800000,1950000,2100000]
["d0a8c200-23d4-4309-8ea5-97922584a36d","Budget & Reporting","PC002003005000000000000000000000000000_00002","_","An efficient, effective and development-oriented public service","Growth","Financial Viability","Furniture and Office Equipment","Furniture and Office Equipment",30.445989608764648,-23.245990753173828,"0d0b8def-631d-4fda-b03e-71f01db572fa",1.8900000000000006,0,0,0,0]
["d0a8c200-23d4-4309-8ea5-97922584a36d","Electricity Operations ","PC002003005000000000000000000000000000_00003","_","An efficient, effective and development-oriented public service","Growth","Institutional Development and Transformation","Furniture and Office Equipment","Furniture and Office Equipment",30.445989608764648,-23.245990753173828,"42510af3-3838-4a32-862e-379660192785",0,30000000,45000000,45000000,8400000]
["d0a8c200-23d4-4309-8ea5-97922584a36d","Generator","PC002003009000000000000000000000000000_00013","_","An efficient, effective and development-oriented public service","Growth","Infrastructure Development and Basic Service Delivery","Machinery and Equipment","Machinery and Equipment",55555,12365,"42510af3-3838-4a32-862e-379660192785",0,48000000,24000000,24000000,90000]
["d0a8c200-23d4-4309-8ea5-97922584a36d","SIYANDHANI-JIM NGHALALUME (ACCESS TO TOMU) REGRAVELLING & CULVERT BRIDGE","PC001002001007000000000000000000000000_00001","_","An efficient, competitive and responsive economic infrastructure network","Growth","Infrastructure Development and Basic Service Delivery","Electrical Infrastructure","MV Networks",30.445989608764648,-23.245990753173828,"0d0b8def-631d-4fda-b03e-71f01db572fa",-0.21000000000000005,0,0,0,0]
["d0a8c200-23d4-4309-8ea5-97922584a36d","WIP ACCOUNTS","PC001002001008000000000000000000000000_00005","_","An efficient, competitive and responsive economic infrastructure network","Growth","Infrastructure Development and Basic Service Delivery","Electrical Infrastructure","LV Networks",12435,55552,"0d0b8def-631d-4fda-b03e-71f01db572fa",0.15,0,0,0,0]
["d0a8c200-23d4-4309-8ea5-97922584a36d","WIP ACCOUNTS","PC001002001008000000000000000000000000_00009","_","An efficient, competitive and responsive economic infrastructure network","Growth","Infrastructure Development and Basic Service Delivery","Electrical Infrastructure","LV Networks",12435,55552,"0d0b8def-631d-4fda-b03e-71f01db572fa",-1.0500000000000005,0,0,0,0]
["d0a8c200-23d4-4309-8ea5-97922584a36d","WIP ACCOUNTS","PC001002001008000000000000000000000000_00011","_","An efficient, competitive and responsive economic infrastructure network","Growth","Infrastructure Development and Basic Service Delivery","Electrical Infrastructure","LV Networks",12435,55552,"0d0b8def-631d-4fda-b03e-71f01db572fa",0.03,0,0,0,0]
["d0a8c200-23d4-4309-8ea5-97922584a36d","WIP ACCOUNTS","PC001002001008000000000000000000000000_00014","_","An efficient, competitive and responsive economic infrastructure network","Growth","Infrastructure Development and Basic Service Delivery","Electrical Infrastructure","LV Networks",12435,55552,"0d0b8def-631d-4fda-b03e-71f01db572fa",-0.21000000000000002,0,0,0,0]
["e65f548d-c3fb-4eb6-b042-e507e9eec386","Servicing of 539 sites",null,"_",null,null,"Infrastructure Development and Basic Service Delivery",null,null,7899445,222222336,"0d0b8def-631d-4fda-b03e-71f01db572fa",1757505.09,1000000,0,0,0]
["e65f548d-c3fb-4eb6-b042-e507e9eec386","Servicing of 539 sites","PC001002006001000000000000000000000000_00021","_","An efficient, competitive and responsive economic infrastructure network","Growth","Infrastructure Development and Basic Service Delivery","Roads Infrastructure","Roads",7899445,222222336,"0d0b8def-631d-4fda-b03e-71f01db572fa",26362576.350000001,9000000,0,0,0]
["f3a9aaa9-529a-40d1-b981-722b2f743267","Information Technology","PC001002009002000000000000000000000000_00001","_","An efficient, competitive and responsive economic infrastructure network","Growth","Institutional Development and Transformation","Information and Communication Infrastructure","Core Layers",30.445989608764648,-23.245990753173828,"42510af3-3838-4a32-862e-379660192785",2.1000000000000005,0,0,0,0]
["f3a9aaa9-529a-40d1-b981-722b2f743267","Information Technology","PC002003004000000000000000000000000000_00001","_","An efficient, effective and development-oriented public service","Growth","Institutional Development and Transformation","Computer Equipment","Computer Equipment",30.445989608764648,-23.245990753173828,"42510af3-3838-4a32-862e-379660192785",0,9000000,9150000,9300000,6300000]
["f3a9aaa9-529a-40d1-b981-722b2f743267","Information Technology","PC002003004000000000000000000000000000_00005","_","An efficient, effective and development-oriented public service","Growth","Institutional Development and Transformation","Computer Equipment","Computer Equipment",30.445989608764648,-23.245990753173828,"0d0b8def-631d-4fda-b03e-71f01db572fa",0,24000000,25200000,26400000,5400000]
["f3a9aaa9-529a-40d1-b981-722b2f743267","Information Technology","PC002003007002004000000000000000000000_00001","_","An efficient, effective and development-oriented public service","Growth","Institutional Development and Transformation","Licences and Rights","Computer Software and Applications",30.445989608764648,-23.245990753173828,"0d0b8def-631d-4fda-b03e-71f01db572fa",0,6000000,6120000,6240000,5400000]
["f3a9aaa9-529a-40d1-b981-722b2f743267","PPE Take On Accounts","PC002003004000000000000000000000000000_00004","_","An efficient, effective and development-oriented public service","Growth","Financial Viability","Computer Equipment","Computer Equipment",30.445989608764648,-23.245990753173828,"0d0b8def-631d-4fda-b03e-71f01db572fa",0,-6139287,0,0,33460713]
["f3a9aaa9-529a-40d1-b981-722b2f743267","PPE Take On Accounts","PC002003007002004000000000000000000000_00002","_","An efficient, effective and development-oriented public service","Growth","Financial Viability","Licences and Rights","Computer Software and Applications",30.445989608764648,-23.245990753173828,"0d0b8def-631d-4fda-b03e-71f01db572fa",0,11711457,0,0,8111457]

{"sheet":"Raw_SA38","index":6,"n_rows":213,"n_cols":17,"rows_kept":213,"cut":false,"hidden":true,"merged":[]}
["Function","ProjectDescription","ProjectNumber","Type","MTSFServiceOutcome","IUDF","OwnStrategicObjective","AssetClass","AssetSubClass","WardLocation","GPSLongitude","GPSLatitude","S71_PYearAmount","S71_ASBudgetAmount","S71_OY1BudgetAmount","S71_OY2BudgetAmount","S71_ForecastAmnt"]
["028ec562-fa32-4462-9c8f-90ca38ed33ae","Beautification of Gateway (Welcome to Giyani)","PO004001001002003000000000000000000000_00001","_","An efficient, competitive and responsive economic infrastructure network","Inclusion and access","Local Economic Development",null,null,"0d0b8def-631d-4fda-b03e-71f01db572fa",8,4,0,150000,160000,170000,0]
["028ec562-fa32-4462-9c8f-90ca38ed33ae","Environmental Education Association of Southern Africa","PO003015002000000000000000000000000000_00001","_","Protect and enhance our environmental assets and natural resources","Spatial integration","Local Economic Development",null,null,"42510af3-3838-4a32-862e-379660192785",7,6,0,92000,95500,99000,0]
["028ec562-fa32-4462-9c8f-90ca38ed33ae","EPWP ENVIRONMENT & CULTURE","PO003016001000000000000000000000000000_00001","_","An efficient, effective and development-oriented public service","Inclusion and access","Infrastructure Development and Basic Service Delivery",null,null,"0d0b8def-631d-4fda-b03e-71f01db572fa",30.445989608764648,-23.245990753173828,3563680,3930000,4044000,4158000,4325000]
["028ec562-fa32-4462-9c8f-90ca38ed33ae","EPWP ENVIRONMENT & CULTURE","PO003016001000000000000000000000000000_00001","_","An efficient, effective and development-oriented public service","Inclusion and access","Infrastructure Development and Basic Service Delivery",null,null,"42510af3-3838-4a32-862e-379660192785",30.445989608764648,-23.245990753173828,0,70000,76000,82000,70000]
["028ec562-fa32-4462-9c8f-90ca38ed33ae","SOLID WASTE","PO001001001001004001005000000000000000_00001","_","An efficient, competitive and responsive economic infrastructure network","Inclusion and access","Infrastructure Development and Basic Service Delivery",null,null,"0d0b8def-631d-4fda-b03e-71f01db572fa",30.445989608764648,-23.245990753173828,140040.91,250000,255000,260000,200000]
["028ec562-fa32-4462-9c8f-90ca38ed33ae","SOLID WASTE","PO001001001001004001005000000000000000_00001","_","An efficient, competitive and responsive economic infrastructure network","Inclusion and access","Infrastructure Development and Basic Service Delivery","Solid Waste Infrastructure","Landfill Sites","0d0b8def-631d-4fda-b03e-71f01db572fa",30.445989608764648,-23.245990753173828,420122.73,750000,765000,780000,600000]
["028ec562-fa32-4462-9c8f-90ca38ed33ae","SOLID WASTE","PO002000000000000000000000000000000000","_","Sustainable human settlements and improved quality of household life","Governance","Infrastructure Development and Basic Service Delivery",null,null,"0d0b8def-631d-4fda-b03e-71f01db572fa",30.445989608764648,-23.245990753173828,172882.6,900000,1000000,1100000,850000]
["028ec562-fa32-4462-9c8f-90ca38ed33ae","SOLID WASTE","PO002000000000000000000000000000000000","_","Sustainable human settlements and improved quality of household life","Governance","Infrastructure Development and Basic Service Delivery",null,null,"42510af3-3838-4a32-862e-379660192785",30.445989608764648,-23.245990753173828,6307163.2999999998,11904952,12226167,12791601,8808583]
["028ec562-fa32-4462-9c8f-90ca38ed33ae","SOLID WASTE","PO004002004003000000000000000000000000_00001","_","An efficient, competitive and responsive economic infrastructure network","Growth","Infrastructure Development and Basic Service Delivery",null,null,"0d0b8def-631d-4fda-b03e-71f01db572fa",30.445989608764648,-23.245990753173828,0,3000000,3200000,3400000,5000]
["044f82e1-bbb4-4190-b772-2ff5020adecc","Community other","PO003038000000000000000000000000000000_00001","_","All people in South Africa are and feel safe","Inclusion and access","Infrastructure Development and Basic Service Delivery",null,null,"0d0b8def-631d-4fda-b03e-71f01db572fa",30.445989608764648,-23.245990753173828,130570,300000,350000,400000,100000]
["0e51e5d3-5805-402b-a5dc-3b94852c29c0","Assets Management","PO002000000000000000000000000000000000","_","Sustainable human settlements and improved quality of household life","Governance","Financial Viability",null,null,"0d0b8def-631d-4fda-b03e-71f01db572fa",30.445989608764648,-23.245990753173828,3202416.07,0,0,0,0]
["0e51e5d3-5805-402b-a5dc-3b94852c29c0","Assets Management","PO002000000000000000000000000000000000","_","Sustainable human settlements and improved quality of household life","Governance","Financial Viability",null,null,"42510af3-3838-4a32-862e-379660192785",30.445989608764648,-23.245990753173828,14092478.779999997,14830482,15958264,16384760,82939906]
["0e51e5d3-5805-402b-a5dc-3b94852c29c0","Balance Sheet Budget Accounts","PO002000000000000000000000000000000000","_","Sustainable human settlements and improved quality of household life","Governance","Financial Viability",null,null,"0d0b8def-631d-4fda-b03e-71f01db572fa",30.445989608764648,-23.245990753173828,90749.85,0,0,0,0]
["0e51e5d3-5805-402b-a5dc-3b94852c29c0","PPE Take On Accounts","PO002000000000000000000000000000000000","_","Sustainable human settlements and improved quality of household life","Governance","Financial Viability",null,null,"0d0b8def-631d-4fda-b03e-71f01db572fa",30.445989608764648,-23.245990753173828,3402372.33,0,0,0,0]
["0e51e5d3-5805-402b-a5dc-3b94852c29c0","Supply Chain Management","PO002000000000000000000000000000000000","_","Sustainable human settlements and improved quality of household life","Governance","Financial Viability",null,null,"42510af3-3838-4a32-862e-379660192785",30.445989608764648,-23.245990753173828,13929.99,12416,13024,13636,16091]
["0f52d9e5-907f-4d9f-934f-57dc012524d6","Administration","PO001002002001005000000000000000000000_00001","_","An efficient, effective and development-oriented public service","Governance","Good Governance and Public Participation",null,null,"42510af3-3838-4a32-862e-379660192785",30.445989608764648,-23.245990753173828,0,70000,70000,85000,50000]
["0f52d9e5-907f-4d9f-934f-57dc012524d6","Administration","PO001002002001005000000000000000000000_00001","_","An efficient, effective and development-oriented public service","Governance","Good Governance and Public Participation","Furniture and Office Equipment","Furniture and Office Equipment","42510af3-3838-4a32-862e-379660192785",30.445989608764648,-23.245990753173828,0,210000,210000,255000,150000]
["0f52d9e5-907f-4d9f-934f-57dc012524d6","Administration","PO002000000000000000000000000000000000","_","Sustainable human settlements and improved quality of household life","Governance","Good Governance and Public Participation",null,null,"42510af3-3838-4a32-862e-379660192785",30.445989608764648,-23.245990753173828,10636486.030000001,16104983,16970453,17968220,12488926]
["0f52d9e5-907f-4d9f-934f-57dc012524d6","Assets Management","PO002000000000000000000000000000000000","_","Sustainable human settlements and improved quality of household life","Governance","Financial Viability",null,null,"42510af3-3838-4a32-862e-379660192785",30.445989608764648,-23.245990753173828,5451743.3700000001,8800000,9200000,9600000,3000000]
["0f52d9e5-907f-4d9f-934f-57dc012524d6","Senior Management","PO002000000000000000000000000000000000","_","Sustainable human settlements and improved quality of household life","Governance","Good Governance and Public Participation",null,null,"42510af3-3838-4a32-862e-379660192785",30.445989608764648,-23.245990753173828,1150945.79,1241231,1307655,1374008,1133983]
["0f52d9e5-907f-4d9f-934f-57dc012524d6","Wellness Administration","PO003007016000000000000000000000000000_00001","_","A comprehensive, responsive and sustainable social protection system","Inclusion and access","Good Governance and Public Participation",null,null,"42510af3-3838-4a32-862e-379660192785",30.445989608764648,-23.245990753173828,0,400000,410000,420000,0]
["15e72a49-cac8-46a3-a850-5352163e5772","Internal Audit","PO002000000000000000000000000000000000","_","Sustainable human settlements and improved quality of household life","Governance","Good Governance and Public Participation",null,null,"42510af3-3838-4a32-862e-379660192785",30.445989608764648,-23.245990753173828,2556492.5499999998,3007269,3131966,3283421,2977183]
["15e7fc9a-7613-41bd-b0e9-57024945d7d9","Project Management Unit","PO002000000000000000000000000000000000","_","Sustainable human settlements and improved quality of household life","Governance","Infrastructure Development and Basic Service Delivery",null,null,"42510af3-3838-4a32-862e-379660192785",30.445989608764648,-23.245990753173828,3398801.3099999996,4781563,5025033,5269853,3689268]
["15e7fc9a-7613-41bd-b0e9-57024945d7d9","Project Management Unit","PO003042000000000000000000000000000000_00015","_","An efficient, effective and development-oriented public service","Spatial integration","Infrastructure Development and Basic Service Delivery",null,null,"0d0b8def-631d-4fda-b03e-71f01db572fa",30.445989608764648,-23.245990753173828,0,0,0,0,4129056]
["35f914ed-b099-4a36-890d-69e60fc0e57c","SPORT & RECREATION","PO002000000000000000000000000000000000","_","Sustainable human settlements and improved quality of household life","Governance","Infrastructure Development and Basic Service Delivery",null,null,"42510af3-3838-4a32-862e-379660192785",30.445989608764648,-23.245990753173828,10454636.01,7023738,7243467,7562044,8570562]
["379cbd5c-2c82-42fa-a8c1-3adcf97210b5","Budget & Reporting","PO003015011000000000000000000000000000_00001","_","Protect and enhance our environmental assets and natural resources","Spatial integration","Financial Viability",null,null,"0d0b8def-631d-4fda-b03e-71f01db572fa",30.445989608764648,-23.245990753173828,0,100000,110000,120000,0]
["379cbd5c-2c82-42fa-a8c1-3adcf97210b5","Community other","PO002000000000000000000000000000000000","_","Sustainable human settlements and improved quality of household life","Governance","Infrastructure Development and Basic Service Delivery",null,null,"42510af3-3838-4a32-862e-379660192785",30.445989608764648,-23.245990753173828,0,530147,555740,581490,77524]
["379cbd5c-2c82-42fa-a8c1-3adcf97210b5","ENVIRONMENT AWARENESS (WED)","PO003015011000000000000000000000000000_00001","_","Protect and enhance our environmental assets and natural resources","Spatial integration","Infrastructure Development and Basic Service Delivery",null,null,"0d0b8def-631d-4fda-b03e-71f01db572fa",30.445989608764648,-23.245990753173828,0,260000,275000,290000,260000]
["379cbd5c-2c82-42fa-a8c1-3adcf97210b5","INDIGENT SUPPORT","PO003021000000000000000000000000000000_00001","_","Responsive, accountable, effective and efficient local government","Inclusion and access","Good Governance and Public Participation",null,null,"0d0b8def-631d-4fda-b03e-71f01db572fa",30.445989608764648,-23.245990753173828,130450,280000,290000,300000,220000]
["39043a95-c08d-4bfc-bce2-b4e1763b0d24","DISASTER EDUCATION & AWARENESS","PO003014003000000000000000000000000000_00002","_","A comprehensive, responsive and sustainable social protection system","Governance","Good Governance and Public Participation",null,null,"0d0b8def-631d-4fda-b03e-71f01db572fa",30.445989608764648,-23.245990753173828,0,150000,160000,170000,100000]
["39043a95-c08d-4bfc-bce2-b4e1763b0d24","DISASTER MANAGEMENT","PO002000000000000000000000000000000000","_","Sustainable human settlements and improved quality of household life","Governance","Infrastructure Development and Basic Service Delivery",null,null,"42510af3-3838-4a32-862e-379660192785",30.445989608764648,-23.245990753173828,649633.38,1957129,1906937,1995791,885191]
["39043a95-c08d-4bfc-bce2-b4e1763b0d24","DISASTER RESPONSE & RECOVERY","PO003014002000000000000000000000000000_00008","_","A comprehensive, responsive and sustainable social protection system","Governance","Infrastructure Development and Basic Service Delivery",null,null,"0d0b8def-631d-4fda-b03e-71f01db572fa",30.445989608764648,-23.245990753173828,171771.5,1400000,1460000,1480000,1200000]
["39043a95-c08d-4bfc-bce2-b4e1763b0d24","DISASTER RESPONSE & RECOVERY","PO003014002000000000000000000000000000_00008","_","A comprehensive, responsive and sustainable social protection system","Governance","Infrastructure Development and Basic Service Delivery",null,null,"42510af3-3838-4a32-862e-379660192785",30.445989608764648,-23.245990753173828,0,10000,12000,14000,20000]
["57eb57f7-9f9a-43e8-a53f-0e222f65a66d","Security  Services","PO001002002001009000000000000000000000_00003","_","An efficient, effective and development-oriented public service","Governance","Institutional Development and Transformation",null,null,"42510af3-3838-4a32-862e-379660192785",30.445989608764648,-23.245990753173828,0,150000,200000,250000,100000]
["57eb57f7-9f9a-43e8-a53f-0e222f65a66d","Security  Services","PO001002002001009000000000000000000000_00003","_","An efficient, effective and development-oriented public service","Governance","Institutional Development and Transformation","Machinery and Equipment","Machinery and Equipment","42510af3-3838-4a32-862e-379660192785",30.445989608764648,-23.245990753173828,0,450000,600000,750000,300000]
["57eb57f7-9f9a-43e8-a53f-0e222f65a66d","Security  Services","PO002000000000000000000000000000000000","_","Sustainable human settlements and improved quality of household life","Governance","Institutional Development and Transformation",null,null,"42510af3-3838-4a32-862e-379660192785",30.445989608764648,-23.245990753173828,16623388.800000001,19435560,20462151,21404976,17061385]
["5efb28bb-c786-49af-8a50-44a8b229bf7f","Installation of energy saving street lights","PO004002001008000000000000000000000000_00037","_","An efficient, competitive and responsive economic infrastructure network","Growth","Infrastructure Development and Basic Service Delivery",null,null,"0d0b8def-631d-4fda-b03e-71f01db572fa",0,0,2608695.65,7000000,7000000,7000000,6300000]
["5efb28bb-c786-49af-8a50-44a8b229bf7f","Installation of Traffic lights in Giyani township ","PO004002001008000000000000000000000000_00036","_","An efficient, competitive and responsive economic infrastructure network","Growth","Infrastructure Development and Basic Service Delivery",null,null,"0d0b8def-631d-4fda-b03e-71f01db572fa",0,0,0,2500000,2500000,2500000,1200000]
["67347610-1db2-421f-a89a-f87e772911eb","Assets Management","PO002000000000000000000000000000000000","_","Sustainable human settlements and improved quality of household life","Governance","Financial Viability",null,null,"42510af3-3838-4a32-862e-379660192785",30.445989608764648,-23.245990753173828,0,0,0,0,15000]
["67347610-1db2-421f-a89a-f87e772911eb","Budget & Reporting","PO002000000000000000000000000000000000","_","Sustainable human settlements and improved quality of household life","Governance","Financial Viability",null,null,"42510af3-3838-4a32-862e-379660192785",30.445989608764648,-23.245990753173828,10558532.83,16121980,16719094,17313200,14661621]
["67347610-1db2-421f-a89a-f87e772911eb","Expenditure ","PO002000000000000000000000000000000000","_","Sustainable human settlements and improved quality of household life","Governance","Financial Viability",null,null,"42510af3-3838-4a32-862e-379660192785",30.445989608764648,-23.245990753173828,6830347.3100000005,6951624,4120637,4305967,7850824]
["67347610-1db2-421f-a89a-f87e772911eb","Revenue Management","PO002000000000000000000000000000000000","_","Sustainable human settlements and improved quality of household life","Governance","Financial Viability",null,null,"42510af3-3838-4a32-862e-379660192785",30.445989608764648,-23.245990753173828,7936370.1899999985,13521987,13865537,14514268,10159774]
["67347610-1db2-421f-a89a-f87e772911eb","Senior Management","PO002000000000000000000000000000000000","_","Sustainable human settlements and improved quality of household life","Governance","Good Governance and Public Participation",null,null,"42510af3-3838-4a32-862e-379660192785",30.445989608764648,-23.245990753173828,847890.92999999993,1322643,1393056,1463423,755910]
["6dc327fd-c352-440b-9366-63fce6a71335","Human Resource Management","PO002000000000000000000000000000000000","_","Sustainable human settlements and improved quality of household life","Governance","Institutional Development and Transformation",null,null,"42510af3-3838-4a32-862e-379660192785",30.445989608764648,-23.245990753173828,6303145.8099999996,9880740,9981246,10371840,7886101]
["6dc327fd-c352-440b-9366-63fce6a71335","Human Resources Development","PO001002001002009000000000000000000000_00001","_","An efficient, effective and development-oriented public service","Governance","Institutional Development and Transformation",null,null,"42510af3-3838-4a32-862e-379660192785",30.445989608764648,-23.245990753173828,96100,140000,155000,155000,165000]
["6dc327fd-c352-440b-9366-63fce6a71335","Human Resources Development","PO001002001002009000000000000000000000_00001","_","An efficient, effective and development-oriented public service","Governance","Institutional Development and Transformation","Machinery and Equipment","Machinery and Equipment","42510af3-3838-4a32-862e-379660192785",30.445989608764648,-23.245990753173828,288300,420000,465000,465000,495000]
["6dc327fd-c352-440b-9366-63fce6a71335","Human Resources Development","PO002000000000000000000000000000000000","_","Sustainable human settlements and improved quality of household life","Governance","Institutional Development and Transformation",null,null,"0d0b8def-631d-4fda-b03e-71f01db572fa",30.445989608764648,-23.245990753173828,235984.15,315000,320000,325000,310000]
["6dc327fd-c352-440b-9366-63fce6a71335","Human Resources Development","PO002000000000000000000000000000000000","_","Sustainable human settlements and improved quality of household life","Governance","Institutional Development and Transformation",null,null,"42510af3-3838-4a32-862e-379660192785",30.445989608764648,-23.245990753173828,2859243.09,8371616,9892926,10153583,7527610]
["6dc327fd-c352-440b-9366-63fce6a71335","Human Resources Development","PO003020002000000000000000000000000000_00001","_","Responsive, accountable, effective and efficient local government","Governance","Institutional Development and Transformation",null,null,"42510af3-3838-4a32-862e-379660192785",30.445989608764648,-23.245990753173828,0,70000,72000,72000,70000]
["6dc327fd-c352-440b-9366-63fce6a71335","Payroll Administration","PO002000000000000000000000000000000000","_","Sustainable human settlements and improved quality of household life","Governance","Institutional Development and Transformation",null,null,"42510af3-3838-4a32-862e-379660192785",30.445989608764648,-23.245990753173828,2213999.56,2475276,2598475,2721685,2361369]
["6fa14a15-a164-42cb-a263-a0b007852bc5","Assets Management","PO002000000000000000000000000000000000","_","Sustainable human settlements and improved quality of household life","Governance","Financial Viability",null,null,"42510af3-3838-4a32-862e-379660192785",30.445989608764648,-23.245990753173828,0,2200000,2300000,2400000,4000000]
["6fa14a15-a164-42cb-a263-a0b007852bc5","COMMUNITY FACILITIES","PO002000000000000000000000000000000000","_","Sustainable human settlements and improved quality of household life","Governance","Infrastructure Development and Basic Service Delivery",null,null,"42510af3-3838-4a32-862e-379660192785",30.445989608764648,-23.245990753173828,2491475.94,3008395,3103367,3254055,2130897]
["6fa14a15-a164-42cb-a263-a0b007852bc5","Landscaping (Maintenance of Parks)","PO003033000000000000000000000000000000_00001","_","Protect and enhance our environmental assets and natural resources","Inclusion and access","Good Governance and Public Participation",null,null,"0d0b8def-631d-4fda-b03e-71f01db572fa",30.445989608764648,-23.245990753173828,0,100000,110000,120000,80000]
["6fa14a15-a164-42cb-a263-a0b007852bc5","Municipal internal Sinage","PO002000000000000000000000000000000000","_","Sustainable human settlements and improved quality of household life","Governance","Infrastructure Development and Basic Service Delivery",null,null,"0d0b8def-631d-4fda-b03e-71f01db572fa",0,0,0,20000,25000,30000,20000]
["6fa14a15-a164-42cb-a263-a0b007852bc5","Senior Management","PO002000000000000000000000000000000000","_","Sustainable human settlements and improved quality of household life","Governance","Good Governance and Public Participation",null,null,"42510af3-3838-4a32-862e-379660192785",30.445989608764648,-23.245990753173828,26844.74,1157654,1219983,1282215,856750]
["7bfc7c06-9b62-4cad-816b-78ab18ec23e3","Property Services","PO001002002001003001001002000000000000_00001","_","An efficient, effective and development-oriented public service","Governance","Institutional Development and Transformation",null,null,"42510af3-3838-4a32-862e-379660192785",30.445989608764648,-23.245990753173828,1836350.23,6600000,6900000,7100000,3500000]
["7bfc7c06-9b62-4cad-816b-78ab18ec23e3","Property Services","PO001002002001003001001002000000000000_00001","_","An efficient, effective and development-oriented public service","Governance","Institutional Development and Transformation","Operational Buildings","Municipal Offices","42510af3-3838-4a32-862e-379660192785",30.445989608764648,-23.245990753173828,5509050.6899999995,19800000,20700000,21300000,10500000]
["7bfc7c06-9b62-4cad-816b-78ab18ec23e3","Property Services","PO002000000000000000000000000000000000","_","Sustainable human settlements and improved quality of household life","Governance","Institutional Development and Transformation",null,null,"42510af3-3838-4a32-862e-379660192785",30.445989608764648,-23.245990753173828,7305724.7400000002,10483774,10783064,11307314,8216449]
["7bfc7c06-9b62-4cad-816b-78ab18ec23e3","Subdivision & Rezoning of remainder 1946 Giyani F","PO003042000000000000000000000000000000_00015","_","An efficient, effective and development-oriented public service","Spatial integration","Good Governance and Public Participation",null,null,"0d0b8def-631d-4fda-b03e-71f01db572fa",522,22,798938.3,0,0,0,100000]
["81e26025-8a7e-485a-b96d-814b817bc7e2","Payroll Administration","PO002000000000000000000000000000000000","_","Sustainable human settlements and improved quality of household life","Governance","Institutional Development and Transformation",null,null,"42510af3-3838-4a32-862e-379660192785",30.445989608764648,-23.245990753173828,68744.160000000003,206536,0,0,112725]
["81e26025-8a7e-485a-b96d-814b817bc7e2","Vehicle Lisencing & Reg","PO001002002001009000000000000000000000_00002","_","An efficient, effective and development-oriented public service","Governance","Infrastructure Development and Basic Service Delivery",null,null,"42510af3-3838-4a32-862e-379660192785",30.445989608764648,-23.245990753173828,203095.67999999999,500000,510000,520000,500000]
["81e26025-8a7e-485a-b96d-814b817bc7e2","Vehicle Lisencing & Reg","PO001002002001009000000000000000000000_00002","_","An efficient, effective and development-oriented public service","Governance","Infrastructure Development and Basic Service Delivery","Machinery and Equipment","Machinery and Equipment","42510af3-3838-4a32-862e-379660192785",30.445989608764648,-23.245990753173828,609287.04,1500000,1530000,1560000,1500000]
["81e26025-8a7e-485a-b96d-814b817bc7e2","Vehicle Lisencing & Reg","PO002000000000000000000000000000000000","_","Sustainable human settlements and improved quality of household life","Governance","Infrastructure Development and Basic Service Delivery",null,null,"42510af3-3838-4a32-862e-379660192785",30.445989608764648,-23.245990753173828,20394030.43,22388646,23297478,24440941,19945220]
["84c380c3-3b7f-4f6e-b3e1-ca680365dc85","SOLID WASTE","PO002000000000000000000000000000000000","_","Sustainable human settlements and improved quality of household life","Governance","Infrastructure Development and Basic Service Delivery",null,null,"0d0b8def-631d-4fda-b03e-71f01db572fa",30.445989608764648,-23.245990753173828,3877099,0,0,0,0]
["84c380c3-3b7f-4f6e-b3e1-ca680365dc85","SOLID WASTE","PO002000000000000000000000000000000000","_","Sustainable human settlements and improved quality of household life","Governance","Infrastructure Development and Basic Service Delivery",null,null,"42510af3-3838-4a32-862e-379660192785",30.445989608764648,-23.245990753173828,2793037.27,0,0,0,0]
["883643f9-8ff9-482c-9c37-1e3cfdbb22ec","IDP Programme","PO003044001000000000000000000000000000_00001","_","Responsive, accountable, effective and efficient local government","Spatial integration","Institutional Development and Transformation",null,null,"42510af3-3838-4a32-862e-379660192785",30.445989608764648,-23.245990753173828,55095.65,130000,190000,210000,30000]
["883643f9-8ff9-482c-9c37-1e3cfdbb22ec","LED Supports","PO003023003000000000000000000000000000_00001","_","An efficient, effective and development-oriented public service","Spatial integration","Local Economic Development",null,null,"0d0b8def-631d-4fda-b03e-71f01db572fa",30.445989608764648,-23.245990753173828,12000,90000,110000,130000,70000]
["883643f9-8ff9-482c-9c37-1e3cfdbb22ec","Local Economic Develeopment","PO002000000000000000000000000000000000","_","Sustainable human settlements and improved quality of household life","Governance","Local Economic Development",null,null,"42510af3-3838-4a32-862e-379660192785",30.445989608764648,-23.245990753173828,2731487.8499999996,2695342,2832231,2969885,2568862]
["883643f9-8ff9-482c-9c37-1e3cfdbb22ec","Review Of LED Strategy","PO002000000000000000000000000000000000","_","Sustainable human settlements and improved quality of household life","Governance","Good Governance and Public Participation",null,null,"0d0b8def-631d-4fda-b03e-71f01db572fa",30.445989608764648,-23.245990753173828,0,0,0,0,700000]
["883643f9-8ff9-482c-9c37-1e3cfdbb22ec","Senior Management","PO002000000000000000000000000000000000","_","Sustainable human settlements and improved quality of household life","Governance","Good Governance and Public Participation",null,null,"42510af3-3838-4a32-862e-379660192785",30.445989608764648,-23.245990753173828,1116496.3700000001,1551560,1633117,1714696,1463488]
["883643f9-8ff9-482c-9c37-1e3cfdbb22ec","Strategic Planning","PO002000000000000000000000000000000000","_","Sustainable human settlements and improved quality of household life","Governance","To develop an effective spatial framework that promotes integrated and sustainable development",null,null,"42510af3-3838-4a32-862e-379660192785",30.445989608764648,-23.245990753173828,1148555.33,1361420,1445381,1529723,1189485]
["883643f9-8ff9-482c-9c37-1e3cfdbb22ec","Tourism banquet Night","PO003017005000000000000000000000000000_00003","_","An efficient, effective and development-oriented public service","Inclusion and access","Institutional Development and Transformation",null,null,"42510af3-3838-4a32-862e-379660192785",-0.230712890625,5.9051502496004105E-2,0,450000,480000,510000,0]
["89aa6d98-8ca6-4416-8143-f6f22ef86160","Supply Chain Management","PO002000000000000000000000000000000000","_","Sustainable human settlements and improved quality of household life","Governance","Financial Viability",null,null,"42510af3-3838-4a32-862e-379660192785",30.445989608764648,-23.245990753173828,5610105.1500000004,10766587,11348392,11917253,8738398]
["92aebb43-91da-45ab-a98d-95be1511fb78","LIBRARY OUTREACH'","PO003007014000000000000000000000000000_00001","_","A comprehensive, responsive and sustainable social protection system","Inclusion and access","Good Governance and Public Participation",null,null,"0d0b8def-631d-4fda-b03e-71f01db572fa",30.445989608764648,-23.245990753173828,0,250000,260000,270000,150000]
["92aebb43-91da-45ab-a98d-95be1511fb78","Library Services","PO002000000000000000000000000000000000","_","Sustainable human settlements and improved quality of household life","Governance","Local Economic Development",null,null,"42510af3-3838-4a32-862e-379660192785",30.445989608764648,-23.245990753173828,0,499075,521743,544543,250729]
["a0417e64-ef9b-4d7d-8721-6fd6b304450d","Municipal Public Account","PO002000000000000000000000000000000000","_","Sustainable human settlements and improved quality of household life","Governance","Infrastructure Development and Basic Service Delivery",null,null,"0d0b8def-631d-4fda-b03e-71f01db572fa",0,0,2000,160000,170000,180000,140000]
["a0417e64-ef9b-4d7d-8721-6fd6b304450d","Municipal Public Account","PO002000000000000000000000000000000000","_","Sustainable human settlements and improved quality of household life","Governance","Infrastructure Development and Basic Service Delivery",null,null,"42510af3-3838-4a32-862e-379660192785",0,0,97436.25,248000,259000,275000,137000]
["a0417e64-ef9b-4d7d-8721-6fd6b304450d","PMS Programme","PO003044015000000000000000000000000000_00001","_","Responsive, accountable, effective and efficient local government","Inclusion and access","Good Governance and Public Participation",null,null,"42510af3-3838-4a32-862e-379660192785",30.445989608764648,-23.245990753173828,0,150000,160000,170000,130000]
["a0417e64-ef9b-4d7d-8721-6fd6b304450d","Risk Management","PO002000000000000000000000000000000000","_","Sustainable human settlements and improved quality of household life","Governance","Good Governance and Public Participation",null,null,"42510af3-3838-4a32-862e-379660192785",30.445989608764648,-23.245990753173828,12133165.74,13868758,14515803,15188284,13770058]
["a3247f45-2fa8-40df-bdd1-70640148bada","Human Resources Development","PO002000000000000000000000000000000000","_","Sustainable human settlements and improved quality of household life","Governance","Institutional Development and Transformation",null,null,"42510af3-3838-4a32-862e-379660192785",30.445989608764648,-23.245990753173828,-487,2000,3000,3000,2000]
["ba7a3e30-8c47-498d-a65a-3b5b9b1a77d7","CEMETERIES","PO001002002001002001011005000000000000_00001","_","A comprehensive, responsive and sustainable social protection system","Inclusion and access","Infrastructure Development and Basic Service Delivery",null,null,"0d0b8def-631d-4fda-b03e-71f01db572fa",30.445989608764648,-23.245990753173828,0,800000,810000,820000,400000]
["ba7a3e30-8c47-498d-a65a-3b5b9b1a77d7","CEMETERIES","PO001002002001002001011005000000000000_00001","_","A comprehensive, responsive and sustainable social protection system","Inclusion and access","Infrastructure Development and Basic Service Delivery","Community Facilities","Cemeteries/Crematoria","0d0b8def-631d-4fda-b03e-71f01db572fa",30.445989608764648,-23.245990753173828,0,2400000,2430000,2460000,1200000]
["ba7a3e30-8c47-498d-a65a-3b5b9b1a77d7","CEMETERIES","PO002000000000000000000000000000000000","_","Sustainable human settlements and improved quality of household life","Governance","Infrastructure Development and Basic Service Delivery",null,null,"42510af3-3838-4a32-862e-379660192785",30.445989608764648,-23.245990753173828,2349685.0499999998,3157993,3290858,3445659,2294172]
["ba7a3e30-8c47-498d-a65a-3b5b9b1a77d7","CEMETERIES","PO003007013000000000000000000000000000_00001","_","A comprehensive, responsive and sustainable social protection system","Inclusion and access","Infrastructure Development and Basic Service Delivery",null,null,"0d0b8def-631d-4fda-b03e-71f01db572fa",30.445989608764648,-23.245990753173828,0,300000,310000,320000,20000]
["be26bea6-58e3-4497-b52c-0bf597208207","Assets Management","PO002000000000000000000000000000000000","_","Sustainable human settlements and improved quality of household life","Governance","Financial Viability",null,null,"42510af3-3838-4a32-862e-379660192785",30.445989608764648,-23.245990753173828,79149195.519999996,0,0,0,0]
["be26bea6-58e3-4497-b52c-0bf597208207","EPWP ENVIRONMENT & CULTURE","PO003016001000000000000000000000000000_00001","_","An efficient, effective and development-oriented public service","Inclusion and access","Infrastructure Development and Basic Service Delivery",null,null,"42510af3-3838-4a32-862e-379660192785",30.445989608764648,-23.245990753173828,0,100000,110000,120000,0]
["be26bea6-58e3-4497-b52c-0bf597208207","EPWP SOCIAL","PO003016001000000000000000000000000000_00001","_","An efficient, effective and development-oriented public service","Inclusion and access","Infrastructure Development and Basic Service Delivery",null,null,"0d0b8def-631d-4fda-b03e-71f01db572fa",30.445989608764648,-23.245990753173828,4538310.96,8129000,5267000,5403000,5468000]
["be26bea6-58e3-4497-b52c-0bf597208207","EPWP SOCIAL","PO003016001000000000000000000000000000_00001","_","An efficient, effective and development-oriented public service","Inclusion and access","Infrastructure Development and Basic Service Delivery",null,null,"42510af3-3838-4a32-862e-379660192785",30.445989608764648,-23.245990753173828,0,686000,547500,559000,535000]
["be26bea6-58e3-4497-b52c-0bf597208207","Roads Operations","PO001001002001002001002000000000000000_00001","_","An efficient, competitive and responsive economic infrastructure network","Inclusion and access","Infrastructure Development and Basic Service Delivery",null,null,"0d0b8def-631d-4fda-b03e-71f01db572fa",30.445989608764648,-23.245990753173828,13754992.33,45000000,48200000,49500000,55200000]
["be26bea6-58e3-4497-b52c-0bf597208207","Roads Operations","PO001001002001002001002000000000000000_00001","_","An efficient, competitive and responsive economic infrastructure network","Inclusion and access","Infrastructure Development and Basic Service Delivery","Roads Infrastructure","Roads","0d0b8def-631d-4fda-b03e-71f01db572fa",30.445989608764648,-23.245990753173828,41264976.990000002,135000000,144600000,148500000,165600000]
["be26bea6-58e3-4497-b52c-0bf597208207","Roads Operations","PO002000000000000000000000000000000000","_","Sustainable human settlements and improved quality of household life","Governance","Infrastructure Development and Basic Service Delivery",null,null,"42510af3-3838-4a32-862e-379660192785",30.445989608764648,-23.245990753173828,8488688.8200000003,12468944,12794492,13368764,9035885]
["be26bea6-58e3-4497-b52c-0bf597208207","Senior Management","PO002000000000000000000000000000000000","_","Sustainable human settlements and improved quality of household life","Governance","Good Governance and Public Participation",null,null,"42510af3-3838-4a32-862e-379660192785",30.445989608764648,-23.245990753173828,1119789.55,1244815,1311343,1377798,1217720]
["be26bea6-58e3-4497-b52c-0bf597208207","Vehicle Lisencing & Reg","PO002000000000000000000000000000000000","_","Sustainable human settlements and improved quality of household life","Governance","Infrastructure Development and Basic Service Delivery",null,null,"0d0b8def-631d-4fda-b03e-71f01db572fa",30.445989608764648,-23.245990753173828,0,1070000,1174000,1278000,110000]
["c57d4368-34c4-4b96-8470-2264a2fa849c","Assets Management","PO002000000000000000000000000000000000","_","Sustainable human settlements and improved quality of household life","Governance","Financial Viability",null,null,"42510af3-3838-4a32-862e-379660192785",30.445989608764648,-23.245990753173828,3727032.8200000003,77400000,77600000,77800000,7500000]
["c57d4368-34c4-4b96-8470-2264a2fa849c","Fleet and Machinery","PO001002002001009000000000000000000000_00001","_","An efficient, effective and development-oriented public service","Governance","Financial Viability",null,null,"42510af3-3838-4a32-862e-379660192785",30.445989608764648,-23.245990753173828,2976358.24,5550000,5600000,5700000,3000000]
["c57d4368-34c4-4b96-8470-2264a2fa849c","Fleet and Machinery","PO001002002001009000000000000000000000_00001","_","An efficient, effective and development-oriented public service","Governance","Financial Viability","Machinery and Equipment","Machinery and Equipment","42510af3-3838-4a32-862e-379660192785",30.445989608764648,-23.245990753173828,8929074.7200000007,16650000,16800000,17100000,9000000]
["c57d4368-34c4-4b96-8470-2264a2fa849c","Fleet and Machinery","PO001002002001010000000000000000000000_00001","_","An efficient, effective and development-oriented public service","Governance","Financial Viability",null,null,"42510af3-3838-4a32-862e-379660192785",30.445989608764648,-23.245990753173828,2831954.08,3000000,3100000,3200000,5550000]
["c57d4368-34c4-4b96-8470-2264a2fa849c","Fleet and Machinery","PO001002002001010000000000000000000000_00001","_","An efficient, effective and development-oriented public service","Governance","Financial Viability","Transport Assets","Transport Assets","42510af3-3838-4a32-862e-379660192785",30.445989608764648,-23.245990753173828,8495862.2400000002,9000000,9300000,9600000,16650000]
["c57d4368-34c4-4b96-8470-2264a2fa849c","Fleet and Machinery","PO002000000000000000000000000000000000","_","Sustainable human settlements and improved quality of household life","Governance","Financial Viability",null,null,"42510af3-3838-4a32-862e-379660192785",30.445989608764648,-23.245990753173828,6237391.8800000008,8092538,8322032,8552231,7597762]
["c793f283-651d-4e97-b55c-9ded321b521e","Public Transport","PO002000000000000000000000000000000000","_","Sustainable human settlements and improved quality of household life","Governance","Infrastructure Development and Basic Service Delivery",null,null,"42510af3-3838-4a32-862e-379660192785",30.445989608764648,-23.245990753173828,911126.58000000007,753770,741024,774468,886362]
["c91683cc-ca5a-4118-b55f-132ec0c3bf1e","HERITAGE DAY CELEBRATION","PO003017005000000000000000000000000000_00001","_","An efficient, effective and development-oriented public service","Inclusion and access","Institutional Development and Transformation",null,null,"0d0b8def-631d-4fda-b03e-71f01db572fa",30.445989608764648,-23.245990753173828,0,200000,210000,220000,150000]
["c91683cc-ca5a-4118-b55f-132ec0c3bf1e","INDIGENOUS GAMES","PO003017004000000000000000000000000000_00001","_","An efficient, effective and development-oriented public service","Inclusion and access","Institutional Development and Transformation",null,null,"0d0b8def-631d-4fda-b03e-71f01db572fa",30.445989608764648,-23.245990753173828,0,350000,362000,373000,216000]
["c91683cc-ca5a-4118-b55f-132ec0c3bf1e","SPORT, ARTS & CULTURE SUPPORT'","PO003017001000000000000000000000000000_00001","_","An efficient, effective and development-oriented public service","Inclusion and access","Good Governance and Public Participation",null,null,"0d0b8def-631d-4fda-b03e-71f01db572fa",30.445989608764648,-23.245990753173828,0,400000,410000,420000,220000]
["c91683cc-ca5a-4118-b55f-132ec0c3bf1e","SPORTS DEVELOPMENT","PO003043003000000000000000000000000000_00001","_","An efficient, effective and development-oriented public service","Inclusion and access","Institutional Development and Transformation",null,null,"0d0b8def-631d-4fda-b03e-71f01db572fa",30.445989608764648,-23.245990753173828,0,350000,360000,370000,300000]
["d001b930-0f88-4eb0-bcde-e8736dbf200e","Legal ","PO002000000000000000000000000000000000","_","Sustainable human settlements and improved quality of household life","Governance","Institutional Development and Transformation",null,null,"42510af3-3838-4a32-862e-379660192785",30.445989608764648,-23.245990753173828,11743190.099999998,11483169,12574439,13666069,14295664]
["d0a8c200-23d4-4309-8ea5-97922584a36d","Electrfication of Gawula Village (150 units /stands)","PO004002001008000000000000000000000000_00057","_","An efficient, competitive and responsive economic infrastructure network","Growth","Infrastructure Development and Basic Service Delivery",null,null,"78a4cf9a-667c-43cd-a0b8-6d9569d88d8c",2,75,0,9300000,0,0,0]
["d0a8c200-23d4-4309-8ea5-97922584a36d","Electrfication of Homu 14B extension (150 units /stands)","PO004002001008000000000000000000000000_00056","_","An efficient, competitive and responsive economic infrastructure network","Growth","Infrastructure Development and Basic Service Delivery",null,null,"78a4cf9a-667c-43cd-a0b8-6d9569d88d8c",1,1,0,9300000,0,0,0]
["d0a8c200-23d4-4309-8ea5-97922584a36d","Electrfication of Khakhala Village (150 units /stands)","PO004002001008000000000000000000000000_00058","_","An efficient, competitive and responsive economic infrastructure network","Growth","Infrastructure Development and Basic Service Delivery",null,null,"87d619e1-38cf-4dee-b6ec-8419521faca7",1,1,0,9300000,0,0,0]
["d0a8c200-23d4-4309-8ea5-97922584a36d","Electrfication of loloka Village (150 units /stands)","PO004002001008000000000000000000000000_00059","_","An efficient, competitive and responsive economic infrastructure network","Growth","Infrastructure Development and Basic Service Delivery",null,null,"04bc482d-a10f-4148-ad06-3315145fe8ea",1,1,0,690000,15300000,0,0]
["d0a8c200-23d4-4309-8ea5-97922584a36d","Electrfication of Mageva Village (150 units /stands)","PO004002001008000000000000000000000000_00060","_","An efficient, competitive and responsive economic infrastructure network","Growth","Infrastructure Development and Basic Service Delivery",null,null,"04bc482d-a10f-4148-ad06-3315145fe8ea",1,1,0,690000,18300000,0,0]
["d0a8c200-23d4-4309-8ea5-97922584a36d","Electrfication of Mahlathi Village (150 units /stands)","PO004002001008000000000000000000000000_00061","_","An efficient, competitive and responsive economic infrastructure network","Growth","Infrastructure Development and Basic Service Delivery",null,null,"69a68dda-1a43-48a9-ba87-da9a2ee10f58",1,1,0,690000,12300000,0,0]
["d0a8c200-23d4-4309-8ea5-97922584a36d","Electrfication of Maswanganyi Village (250 units /stands)","PO004002001008000000000000000000000000_00067","_","An efficient, competitive and responsive economic infrastructure network","Growth","Infrastructure Development and Basic Service Delivery",null,null,"7b1e38d0-2b6f-483e-9801-a6337eae7f9e",1,1,0,0,0,6000000,0]
["d0a8c200-23d4-4309-8ea5-97922584a36d","Electrfication of Matsotsosela Village (150 units /stands)","PO004002001008000000000000000000000000_00062","_","An efficient, competitive and responsive economic infrastructure network","Growth","Infrastructure Development and Basic Service Delivery",null,null,"91441d35-775d-4871-8d0c-ae315ed32927",1,1,0,690000,12300000,0,0]
["d0a8c200-23d4-4309-8ea5-97922584a36d","Electrfication of Mbhedhe Village (150 units /stands)","PO004002001008000000000000000000000000_00063","_","An efficient, competitive and responsive economic infrastructure network","Growth","Infrastructure Development and Basic Service Delivery",null,null,"3e5c1bd8-0d44-48a1-8388-c44f75ad07f8",1,1,0,690000,12300000,0,0]
["d0a8c200-23d4-4309-8ea5-97922584a36d","Electrfication of Mnghonghoma Village (200 units /stands)","PO004002001008000000000000000000000000_00064","_","An efficient, competitive and responsive economic infrastructure network","Growth","Infrastructure Development and Basic Service Delivery",null,null,"04bc482d-a10f-4148-ad06-3315145fe8ea",1,1,0,870000,12300000,0,0]
["d0a8c200-23d4-4309-8ea5-97922584a36d","Electrfication of Ntshuxi Village (100 units /stands)","PO004002001008000000000000000000000000_00065","_","An efficient, competitive and responsive economic infrastructure network","Growth","Infrastructure Development and Basic Service Delivery",null,null,"6de1a2d4-dd63-4032-83d0-2b90e54659c6",1,1,0,0,0,6000000,0]
["d0a8c200-23d4-4309-8ea5-97922584a36d","Electrfication of Nwamankena Village (200 units /stands)","PO004002001008000000000000000000000000_00068","_","An efficient, competitive and responsive economic infrastructure network","Growth","Infrastructure Development and Basic Service Delivery",null,null,"7b1e38d0-2b6f-483e-9801-a6337eae7f9e",1,1,0,0,0,9315000,0]
["d0a8c200-23d4-4309-8ea5-97922584a36d","Electrfication of Phikela Village (100 units /stands)","PO004002001008000000000000000000000000_00066","_","An efficient, competitive and responsive economic infrastructure network","Growth","Infrastructure Development and Basic Service Delivery",null,null,"eefab216-8074-4a10-9d50-b494c1cc1ec5",1,1,0,0,0,9000000,0]
["d0a8c200-23d4-4309-8ea5-97922584a36d","Electricity Operations ","PO001001002001002003001000000000000000_00001","_","An efficient, competitive and responsive economic infrastructure network","Inclusion and access","Institutional Development and Transformation",null,null,"0d0b8def-631d-4fda-b03e-71f01db572fa",30.445989608764648,-23.245990753173828,290911.77,4000000,4000000,4000000,3000000]
["d0a8c200-23d4-4309-8ea5-97922584a36d","Electricity Operations ","PO001001002001002003001000000000000000_00001","_","An efficient, competitive and responsive economic infrastructure network","Inclusion and access","Institutional Development and Transformation","Roads Infrastructure","Road Furniture","0d0b8def-631d-4fda-b03e-71f01db572fa",30.445989608764648,-23.245990753173828,872735.31,12000000,12000000,12000000,9000000]
["d0a8c200-23d4-4309-8ea5-97922584a36d","Electricity Operations ","PO001001002001002003001000000000000000_00002","_","An efficient, competitive and responsive economic infrastructure network","Inclusion and access","Institutional Development and Transformation",null,null,"42510af3-3838-4a32-862e-379660192785",30.445989608764648,-23.245990753173828,3094461.27,6000000,6000000,6000000,3000000]
["d0a8c200-23d4-4309-8ea5-97922584a36d","Electricity Operations ","PO001001002001002003001000000000000000_00002","_","An efficient, competitive and responsive economic infrastructure network","Inclusion and access","Institutional Development and Transformation","Roads Infrastructure","Road Furniture","42510af3-3838-4a32-862e-379660192785",30.445989608764648,-23.245990753173828,9283383.8100000005,18000000,18000000,18000000,9000000]
["d0a8c200-23d4-4309-8ea5-97922584a36d","Electricity Operations ","PO001002002001003001001002000000000000_00002","_","An efficient, effective and development-oriented public service","Governance","Institutional Development and Transformation",null,null,"0d0b8def-631d-4fda-b03e-71f01db572fa",30.445989608764648,-23.245990753173828,1016195.85,0,0,0,0]
["d0a8c200-23d4-4309-8ea5-97922584a36d","Electricity Operations ","PO001002002001003001001002000000000000_00002","_","An efficient, effective and development-oriented public service","Governance","Institutional Development and Transformation","Operational Buildings","Municipal Offices","0d0b8def-631d-4fda-b03e-71f01db572fa",30.445989608764648,-23.245990753173828,3048587.55,0,0,0,0]
["d0a8c200-23d4-4309-8ea5-97922584a36d","Electricity Operations ","PO002000000000000000000000000000000000","_","Sustainable human settlements and improved quality of household life","Governance","Institutional Development and Transformation",null,null,"0d0b8def-631d-4fda-b03e-71f01db572fa",30.445989608764648,-23.245990753173828,0,500000,300000,300000,5000]
["d0a8c200-23d4-4309-8ea5-97922584a36d","Electricity Operations ","PO002000000000000000000000000000000000","_","Sustainable human settlements and improved quality of household life","Governance","Institutional Development and Transformation",null,null,"42510af3-3838-4a32-862e-379660192785",30.445989608764648,-23.245990753173828,2951284.41,6873701,7842676,8020600,4628346]
["d0a8c200-23d4-4309-8ea5-97922584a36d","Electrification Mninginisi block 3 (200 units /stands)","PO004002001008000000000000000000000000_00049","_","An efficient, competitive and responsive economic infrastructure network","Growth","Infrastructure Development and Basic Service Delivery",null,null,"2c32b6a3-8de3-41b6-81ff-4e308e4a9f97",-0.230712890625,5.9051502496004105E-2,0,3780000,0,0,0]
["d0a8c200-23d4-4309-8ea5-97922584a36d","Electrification of Babangu village","PO004002001008000000000000000000000000_00026","_","An efficient, competitive and responsive economic infrastructure network","Growth","Infrastructure Development and Basic Service Delivery",null,null,"6de1a2d4-dd63-4032-83d0-2b90e54659c6",0,0,1509607.83,0,0,0,0]
["d0a8c200-23d4-4309-8ea5-97922584a36d","Electrification of Blinkwater village","PO004002001008000000000000000000000000_00022","_","An efficient, competitive and responsive economic infrastructure network","Growth","Institutional Development and Transformation",null,null,"96b769bf-5ccc-47cb-a4a2-472e5a88f53e",0,0,2244130.4300000002,0,0,0,0]
["d0a8c200-23d4-4309-8ea5-97922584a36d","Electrification of Bode extension (200 units / stands)","PO004002001008000000000000000000000000_00052","_","An efficient, competitive and responsive economic infrastructure network","Growth","Infrastructure Development and Basic Service Delivery",null,null,"61e4bf4d-bea3-45e9-8728-0c9c929a5e19",-0.230712890625,5.9051502496004105E-2,0,4100000,0,0,0]
["d0a8c200-23d4-4309-8ea5-97922584a36d","Electrification of Botshabelo village (150 units /stands)","PO004002001008000000000000000000000000_00070","_","An efficient, competitive and responsive economic infrastructure network","Growth","Infrastructure Development and Basic Service Delivery",null,null,"61e4bf4d-bea3-45e9-8728-0c9c929a5e19",1,1,0,0,0,6000000,0]
["d0a8c200-23d4-4309-8ea5-97922584a36d","Electrification of Church View village (200 units /stands)","PO004002001008000000000000000000000000_00045","_","An efficient, competitive and responsive economic infrastructure network","Growth","Infrastructure Development and Basic Service Delivery",null,null,"0d0b8def-631d-4fda-b03e-71f01db572fa",-0.230712890625,5.9051502496004105E-2,0,0,0,0,4346800]
["d0a8c200-23d4-4309-8ea5-97922584a36d","Electrification of Daniel Rabalela village (120 units / stands)","PO004002001008000000000000000000000000_00055","_","An efficient, competitive and responsive economic infrastructure network","Growth","Infrastructure Development and Basic Service Delivery",null,null,"a6f1a052-aca9-4a66-8430-6e5757c5867f",1,1,0,7500000,0,0,0]
["d0a8c200-23d4-4309-8ea5-97922584a36d","Electrification of Gon'on'o village ","PO004002001008000000000000000000000000_00027","_","An efficient, competitive and responsive economic infrastructure network","Growth","Institutional Development and Transformation",null,null,"3ac24315-ee2d-4b6d-94cf-8c071baa7841",0,0,1431899.45,0,0,0,0]
["d0a8c200-23d4-4309-8ea5-97922584a36d","Electrification of Hlaneki village (150 units / stands)","PO004002001007000000000000000000000000_00008","_","An efficient, competitive and responsive economic infrastructure network","Growth","Infrastructure Development and Basic Service Delivery",null,null,"3ac24315-ee2d-4b6d-94cf-8c071baa7841",3,2,0,0,0,0,10720710]
["d0a8c200-23d4-4309-8ea5-97922584a36d","Electrification of Hlomela, Siyandhani, Babangu & Ntshuxi Villages","PO004002001008000000000000000000000000_00006","_","An efficient, competitive and responsive economic infrastructure network","Growth","Infrastructure Development and Basic Service Delivery",null,null,"69a68dda-1a43-48a9-ba87-da9a2ee10f58",30.573469161987305,-23.230865478515625,598695.65,0,0,0,0]
["d0a8c200-23d4-4309-8ea5-97922584a36d","Electrification of Homu 14A extension (200 units /stands)","PO004002001008000000000000000000000000_00051","_","An efficient, competitive and responsive economic infrastructure network","Growth","Infrastructure Development and Basic Service Delivery",null,null,"78a4cf9a-667c-43cd-a0b8-6d9569d88d8c",-0.230712890625,5.9051502496004105E-2,0,3100000,0,0,0]
["d0a8c200-23d4-4309-8ea5-97922584a36d","Electrification of Makhuva village (200 units /stands)","PO004002001008000000000000000000000000_00040","_","An efficient, competitive and responsive economic infrastructure network","Growth","Infrastructure Development and Basic Service Delivery",null,null,"3f1af2a7-52e6-431e-9b29-97b1fa96fb03",-0.230712890625,5.9051502496004105E-2,0,0,0,0,6504028]
["d0a8c200-23d4-4309-8ea5-97922584a36d","Electrification of Makoxa village (100 units /stands)","PO004002001008000000000000000000000000_00074","_","An efficient, competitive and responsive economic infrastructure network","Growth","Infrastructure Development and Basic Service Delivery",null,null,"0c756f5f-d7c4-4594-b90e-49be9e655e85",1,1,0,0,0,6000000,0]
["d0a8c200-23d4-4309-8ea5-97922584a36d","Electrification of Manómbe village (100 units /stands)","PO004002001008000000000000000000000000_00073","_","An efficient, competitive and responsive economic infrastructure network","Growth","Infrastructure Development and Basic Service Delivery",null,null,"2c32b6a3-8de3-41b6-81ff-4e308e4a9f97",1,1,0,0,0,3000000,0]
["d0a8c200-23d4-4309-8ea5-97922584a36d","Electrification of Mapeyeni village (190 units / stands)","PO004002001008000000000000000000000000_00054","_","An efficient, competitive and responsive economic infrastructure network","Growth","Infrastructure Development and Basic Service Delivery",null,null,"f7c962df-61b9-4b59-aab9-0cc9d246df9a",-0.230712890625,5.9051502496004105E-2,0,3100000,0,0,0]
["d0a8c200-23d4-4309-8ea5-97922584a36d","Electrification of Maphata village (200 units / stands)","PO004002001008000000000000000000000000_00042","_","An efficient, competitive and responsive economic infrastructure network","Growth","Infrastructure Development and Basic Service Delivery",null,null,"63828785-97c9-4eb6-90c2-107c84431b07",-0.230712890625,5.9051502496004105E-2,0,0,0,0,2694600]
["d0a8c200-23d4-4309-8ea5-97922584a36d","Electrification of Mashavela village","PO004002001008000000000000000000000000_00024","_","An efficient, competitive and responsive economic infrastructure network","Growth","Infrastructure Development and Basic Service Delivery",null,null,"eefab216-8074-4a10-9d50-b494c1cc1ec5",0,0,2245474.77,0,0,0,0]
["d0a8c200-23d4-4309-8ea5-97922584a36d","Electrification of Mavalani village ","PO004002001008000000000000000000000000_00025","_","An efficient, competitive and responsive economic infrastructure network","Growth","Infrastructure Development and Basic Service Delivery",null,null,"72b09a64-68be-427f-9cbf-273e930b11b3",0,0,6289434.7999999998,0,0,0,0]
["d0a8c200-23d4-4309-8ea5-97922584a36d","Electrification of Mavhusa village","PO004002001008000000000000000000000000_00010","_","An efficient, competitive and responsive economic infrastructure network","Growth","Infrastructure Development and Basic Service Delivery",null,null,"eefab216-8074-4a10-9d50-b494c1cc1ec5",30.445989608764648,-23.245990753173828,1496552.98,0,0,0,0]
["d0a8c200-23d4-4309-8ea5-97922584a36d","Electrification of Mninginisi B2 village (150 units /stands)","PO004002001008000000000000000000000000_00072","_","An efficient, competitive and responsive economic infrastructure network","Growth","Infrastructure Development and Basic Service Delivery",null,null,"2c32b6a3-8de3-41b6-81ff-4e308e4a9f97",1,1,0,0,0,6000000,0]
["d0a8c200-23d4-4309-8ea5-97922584a36d","Electrification of Ndengeza village","PO004002001008000000000000000000000000_00019","_","An efficient, competitive and responsive economic infrastructure network","Growth","Infrastructure Development and Basic Service Delivery",null,null,"6de1a2d4-dd63-4032-83d0-2b90e54659c6",30.445989608764648,-23.245990753173828,3666280.47,0,0,0,0]
["d0a8c200-23d4-4309-8ea5-97922584a36d","Electrification of Ndhambi village (100 units /stands)","PO004002001008000000000000000000000000_00077","_","An efficient, competitive and responsive economic infrastructure network","Growth","Infrastructure Development and Basic Service Delivery",null,null,"a6f1a052-aca9-4a66-8430-6e5757c5867f",1,1,0,0,0,6000000,0]
["d0a8c200-23d4-4309-8ea5-97922584a36d","Electrification of Ndindani village (100 units /stands)","PO004002001008000000000000000000000000_00076","_","An efficient, competitive and responsive economic infrastructure network","Growth","Infrastructure Development and Basic Service Delivery",null,null,"69a68dda-1a43-48a9-ba87-da9a2ee10f58",1,1,0,0,0,6000000,0]
["d0a8c200-23d4-4309-8ea5-97922584a36d","Electrification of Ngove village (100 units /stands)","PO004002001008000000000000000000000000_00071","_","An efficient, competitive and responsive economic infrastructure network","Growth","Infrastructure Development and Basic Service Delivery",null,null,"701393f0-744e-4039-8f42-6cd6978c0cff",1,1,0,0,0,6000000,0]
["d0a8c200-23d4-4309-8ea5-97922584a36d","Electrification of Noblehook village ","PO004002001008000000000000000000000000_00023","_","An efficient, competitive and responsive economic infrastructure network","Growth","Institutional Development and Transformation",null,null,"96b769bf-5ccc-47cb-a4a2-472e5a88f53e",0,0,3610278.81,0,0,0,0]
["d0a8c200-23d4-4309-8ea5-97922584a36d","Electrification of Nsavulani village (200 units /stands)","PO004002001008000000000000000000000000_00044","_","An efficient, competitive and responsive economic infrastructure network","Growth","Infrastructure Development and Basic Service Delivery",null,null,"3e5c1bd8-0d44-48a1-8388-c44f75ad07f8",-0.230712890625,5.9051502496004105E-2,0,0,0,0,4157217]
["d0a8c200-23d4-4309-8ea5-97922584a36d","Electrification of Nwadzekudzeku village (200 units /stands)","PO004002001008000000000000000000000000_00041","_","An efficient, competitive and responsive economic infrastructure network","Growth","Infrastructure Development and Basic Service Delivery",null,null,"7dbf5cb6-c47a-4c39-ae12-ca7e2aab8f77",-0.230712890625,5.9051502496004105E-2,0,0,0,0,6463875]
["d0a8c200-23d4-4309-8ea5-97922584a36d","Electrification of Section F (539 units /stands)","PO004002001008000000000000000000000000_00047","_","An efficient, competitive and responsive economic infrastructure network","Growth","Infrastructure Development and Basic Service Delivery",null,null,"470cadee-ff6c-46d4-a0d2-f0017ec375fc",-0.230712890625,5.9051502496004105E-2,0,1000000,500000,500000,0]
["d0a8c200-23d4-4309-8ea5-97922584a36d","Electrification of Shimange village","PO004002001008000000000000000000000000_00012","_","An efficient, competitive and responsive economic infrastructure network","Growth","Good Governance and Public Participation",null,null,"c08bed4f-8360-4232-ba26-d81bcbaf81c3",30.445989608764648,-23.245990753173828,2692148.45,0,0,0,0]
["d0a8c200-23d4-4309-8ea5-97922584a36d","Electrification of Shivulani village (200 units /stands)","PO004002001008000000000000000000000000_00048","_","An efficient, competitive and responsive economic infrastructure network","Growth","Infrastructure Development and Basic Service Delivery",null,null,"7dbf5cb6-c47a-4c39-ae12-ca7e2aab8f77",-0.230712890625,5.9051502496004105E-2,0,4100000,0,0,0]
["d0a8c200-23d4-4309-8ea5-97922584a36d","Electrification of Sifasonke village","PO004002001008000000000000000000000000_00015","_","An efficient, competitive and responsive economic infrastructure network","Growth","Infrastructure Development and Basic Service Delivery",null,null,"0d0b8def-631d-4fda-b03e-71f01db572fa",30.445989608764648,-23.245990753173828,3273319.99,0,0,0,0]
["d0a8c200-23d4-4309-8ea5-97922584a36d","Electrification of Sikhunyani village (200 units / stands)","PO004002001008000000000000000000000000_00053","_","An efficient, competitive and responsive economic infrastructure network","Growth","Infrastructure Development and Basic Service Delivery",null,null,"63828785-97c9-4eb6-90c2-107c84431b07",-0.230712890625,5.9051502496004105E-2,0,2100000,0,0,0]
["d0a8c200-23d4-4309-8ea5-97922584a36d","Electrification of Siyandhani village (450 units /stands)","PO004002001008000000000000000000000000_00069","_","An efficient, competitive and responsive economic infrastructure network","Growth","Infrastructure Development and Basic Service Delivery",null,null,"61e4bf4d-bea3-45e9-8728-0c9c929a5e19",1,1,0,0,0,9315000,0]
["d0a8c200-23d4-4309-8ea5-97922584a36d","Electrification of Thomo village (250 units /stands)","PO004002001008000000000000000000000000_00075","_","An efficient, competitive and responsive economic infrastructure network","Growth","Infrastructure Development and Basic Service Delivery",null,null,"87d619e1-38cf-4dee-b6ec-8419521faca7",1,1,0,0,0,6000000,0]
["d0a8c200-23d4-4309-8ea5-97922584a36d","Electrification of Tomu village","PO004002001008000000000000000000000000_00013","_","An efficient, competitive and responsive economic infrastructure network","Growth","Infrastructure Development and Basic Service Delivery",null,null,"f7c962df-61b9-4b59-aab9-0cc9d246df9a",30.445989608764648,-23.245990753173828,2401739.13,0,0,0,0]
["d0a8c200-23d4-4309-8ea5-97922584a36d","Free Basic Electricity","PO003021000000000000000000000000000000_00001","_","Responsive, accountable, effective and efficient local government","Inclusion and access","Infrastructure Development and Basic Service Delivery",null,null,"0d0b8def-631d-4fda-b03e-71f01db572fa",30.445989608764648,-23.245990753173828,15417438.23,9000000,10000000,10000000,7000000]
["d0a8c200-23d4-4309-8ea5-97922584a36d","Installation of High mast in 93 villages (CBD)","PO004002001008000000000000000000000000_00035","_","An efficient, competitive and responsive economic infrastructure network","Growth","Infrastructure Development and Basic Service Delivery",null,null,"0d0b8def-631d-4fda-b03e-71f01db572fa",0,0,240196.8,2500000,3000000,400000,1480000]
["d322a6d8-8a77-4f3e-b409-e49df0b85989","Bursaries","PO003007005000000000000000000000000000_00002","_","A comprehensive, responsive and sustainable social protection system","Inclusion and access","Good Governance and Public Participation",null,null,"0d0b8def-631d-4fda-b03e-71f01db572fa",30.445989608764648,-23.245990753173828,0,500000,520000,530000,100000]
["d322a6d8-8a77-4f3e-b409-e49df0b85989","Child & Oldage Support","PO003007001000000000000000000000000000_00002","_","A comprehensive, responsive and sustainable social protection system","Inclusion and access","Good Governance and Public Participation",null,null,"0d0b8def-631d-4fda-b03e-71f01db572fa",30.445989608764648,-23.245990753173828,0,400000,430000,460000,150000]
["d322a6d8-8a77-4f3e-b409-e49df0b85989","Child & Oldage Support","PO003007007000000000000000000000000000_00001","_","A comprehensive, responsive and sustainable social protection system","Inclusion and access","Good Governance and Public Participation",null,null,"0d0b8def-631d-4fda-b03e-71f01db572fa",30.445989608764648,-23.245990753173828,0,380000,400000,420000,200000]
["d322a6d8-8a77-4f3e-b409-e49df0b85989","Communications Related","PO003006001000000000000000000000000000_00001","_","Sustainable human settlements and improved quality of household life","Inclusion and access","Good Governance and Public Participation",null,null,"0d0b8def-631d-4fda-b03e-71f01db572fa",30.445989608764648,-23.245990753173828,1131662.8400000001,1910000,1930000,1950000,1300000]
["d322a6d8-8a77-4f3e-b409-e49df0b85989","Council Services","PO002000000000000000000000000000000000","_","Sustainable human settlements and improved quality of household life","Governance","Good Governance and Public Participation",null,null,"0d0b8def-631d-4fda-b03e-71f01db572fa",30.445989608764648,-23.245990753173828,4965339.12,8150000,8157000,8164000,6140000]
["d322a6d8-8a77-4f3e-b409-e49df0b85989","Council Services","PO002000000000000000000000000000000000","_","Sustainable human settlements and improved quality of household life","Governance","Good Governance and Public Participation",null,null,"42510af3-3838-4a32-862e-379660192785",30.445989608764648,-23.245990753173828,27519601.050000001,29182750,30803055,32332454,29076616]
["d322a6d8-8a77-4f3e-b409-e49df0b85989","Disability Support","PO003007004000000000000000000000000000_00001","_","A comprehensive, responsive and sustainable social protection system","Inclusion and access","Good Governance and Public Participation",null,null,"0d0b8def-631d-4fda-b03e-71f01db572fa",30.445989608764648,-23.245990753173828,37173.910000000003,720000,770000,820000,516000]
["d322a6d8-8a77-4f3e-b409-e49df0b85989","Event Management","PO003017003000000000000000000000000000_00001","_","An efficient, effective and development-oriented public service","Inclusion and access","Good Governance and Public Participation",null,null,"0d0b8def-631d-4fda-b03e-71f01db572fa",30.445989608764648,-23.245990753173828,568566.29,1000000,1040000,1070000,1355000]
["d322a6d8-8a77-4f3e-b409-e49df0b85989","Excellent Awards","PO003007002000000000000000000000000000_00002","_","A comprehensive, responsive and sustainable social protection system","Inclusion and access","Good Governance and Public Participation",null,null,"0d0b8def-631d-4fda-b03e-71f01db572fa",30.445989608764648,-23.245990753173828,0,100000,100000,100000,150000]
["d322a6d8-8a77-4f3e-b409-e49df0b85989","Gender Support","PO003007011000000000000000000000000000_00001","_","A comprehensive, responsive and sustainable social protection system","Inclusion and access","Good Governance and Public Participation",null,null,"0d0b8def-631d-4fda-b03e-71f01db572fa",30.445989608764648,-23.245990753173828,0,640000,690000,740000,411000]
["d322a6d8-8a77-4f3e-b409-e49df0b85989","HIV/Candle Lighting","PO003002002001000000000000000000000000_00001","_","A long and healthy life for all South Africans","Inclusion and access","Good Governance and Public Participation",null,null,"0d0b8def-631d-4fda-b03e-71f01db572fa",30.445989608764648,-23.245990753173828,150959.23000000001,800000,850000,900000,575000]
["d322a6d8-8a77-4f3e-b409-e49df0b85989","Mayor's Tournament","PO003043004000000000000000000000000000_00001","_","An efficient, effective and development-oriented public service","Inclusion and access","Good Governance and Public Participation",null,null,"0d0b8def-631d-4fda-b03e-71f01db572fa",30.445989608764648,-23.245990753173828,0,1110000,1135000,1150000,900000]
["d322a6d8-8a77-4f3e-b409-e49df0b85989","Public Meetings and Campaings","PO003006006000000000000000000000000000_00001","_","Sustainable human settlements and improved quality of household life","Inclusion and access","Good Governance and Public Participation",null,null,"0d0b8def-631d-4fda-b03e-71f01db572fa",30.445989608764648,-23.245990753173828,637985.94999999995,860000,920000,970000,800000]
["d322a6d8-8a77-4f3e-b409-e49df0b85989","Traditional Authority Support","PO003017005000000000000000000000000000_00001","_","An efficient, effective and development-oriented public service","Inclusion and access","Good Governance and Public Participation",null,null,"0d0b8def-631d-4fda-b03e-71f01db572fa",30.445989608764648,-23.245990753173828,0,450000,490000,525000,200000]
["d322a6d8-8a77-4f3e-b409-e49df0b85989","Youth Support","PO003007017002000000000000000000000000_00001","_","A comprehensive, responsive and sustainable social protection system","Inclusion and access","Good Governance and Public Participation",null,null,"0d0b8def-631d-4fda-b03e-71f01db572fa",30.445989608764648,-23.245990753173828,36950,630000,690000,740000,420000]
["db25977d-5db7-4f77-9525-1e345d214a0a","Housing Administration","PO002000000000000000000000000000000000","_","Sustainable human settlements and improved quality of household life","Governance","Infrastructure Development and Basic Service Delivery",null,null,"42510af3-3838-4a32-862e-379660192785",30.445989608764648,-23.245990753173828,1284822.44,1545923,1513277,1585109,1378830]
["e38be026-aa91-4710-9bdc-3b0f3755cc1a","African Travel Indaba","PO003017005000000000000000000000000000_00002","_","An efficient, effective and development-oriented public service","Inclusion and access","Local Economic Development",null,null,"42510af3-3838-4a32-862e-379660192785",30.445989608764648,-23.245990753173828,0,103000,124000,145000,78000]
["e38be026-aa91-4710-9bdc-3b0f3755cc1a","AMARULA SHOW","PO003023003000000000000000000000000000_00002","_","An efficient, effective and development-oriented public service","Spatial integration","Infrastructure Development and Basic Service Delivery",null,null,"42510af3-3838-4a32-862e-379660192785",30.445989608764648,-23.245990753173828,0,90000,110000,130000,80000]
["e38be026-aa91-4710-9bdc-3b0f3755cc1a","Female Enterpreneur","PO003007008000000000000000000000000000_00001","_","A comprehensive, responsive and sustainable social protection system","Inclusion and access","Good Governance and Public Participation",null,null,"0d0b8def-631d-4fda-b03e-71f01db572fa",30.445989608764648,-23.245990753173828,0,890000,940000,990000,747000]
["e38be026-aa91-4710-9bdc-3b0f3755cc1a","LED Supports","PO003023002000000000000000000000000000_00001","_","An efficient, effective and development-oriented public service","Spatial integration","Local Economic Development",null,null,"0d0b8def-631d-4fda-b03e-71f01db572fa",30.445989608764648,-23.245990753173828,600000,1500000,1600000,1700000,1000000]
["e38be026-aa91-4710-9bdc-3b0f3755cc1a","RAND EASTER SHOW","PO003023003000000000000000000000000000_00003","_","An efficient, effective and development-oriented public service","Spatial integration","Infrastructure Development and Basic Service Delivery",null,null,"42510af3-3838-4a32-862e-379660192785",30.445989608764648,-23.245990753173828,0,70000,85000,100000,40000]
["e65f548d-c3fb-4eb6-b042-e507e9eec386","Deeds Registration Of Sites","PO003042000000000000000000000000000000_00007","_","An efficient, effective and development-oriented public service","Spatial integration","Infrastructure Development and Basic Service Delivery",null,null,"0d0b8def-631d-4fda-b03e-71f01db572fa",30.423620223999023,-23.174989700317383,132545,500000,600000,700000,250000]
["e65f548d-c3fb-4eb6-b042-e507e9eec386","Formalisation of Church View","PO003042000000000000000000000000000000_00005","_","An efficient, effective and development-oriented public service","Spatial integration","To develop an effective spatial framework that promotes integrated and sustainable development",null,null,"0d0b8def-631d-4fda-b03e-71f01db572fa",30.411260604858398,-23.171699523925781,0,300000,400000,500000,400000]
["e65f548d-c3fb-4eb6-b042-e507e9eec386","Formalisation of Makosha Risinga Externsion","PO003023001000000000000000000000000000_00002","_","An efficient, effective and development-oriented public service","Spatial integration","Infrastructure Development and Basic Service Delivery",null,null,"470cadee-ff6c-46d4-a0d2-f0017ec375fc",30.425600051879883,-23.160400390625,0,300000,400000,500000,50000]
["e65f548d-c3fb-4eb6-b042-e507e9eec386","GIS Upgrade","PO003042000000000000000000000000000000_00008","_","An efficient, effective and development-oriented public service","Spatial integration","To develop an effective spatial framework that promotes integrated and sustainable development",null,null,"0d0b8def-631d-4fda-b03e-71f01db572fa",30.445989608764648,-23.245990753173828,0,700000,800000,850000,50000]
["e65f548d-c3fb-4eb6-b042-e507e9eec386","Mahumani Presinct Plan","PO003042000000000000000000000000000000_00022","_","An efficient, effective and development-oriented public service","Spatial integration","Infrastructure Development and Basic Service Delivery",null,null,"0d0b8def-631d-4fda-b03e-71f01db572fa",-0.230712890625,5.9051502496004105E-2,0,500000,600000,700000,500000]
["e65f548d-c3fb-4eb6-b042-e507e9eec386","Proclamation Programme","PO003042000000000000000000000000000000_00006","_","An efficient, effective and development-oriented public service","Spatial integration","To develop an effective spatial framework that promotes integrated and sustainable development",null,null,"0d0b8def-631d-4fda-b03e-71f01db572fa",30.411260604858398,-23.17388916015625,0,500000,600000,700000,50000]
["e65f548d-c3fb-4eb6-b042-e507e9eec386","Rezoning and Subdivision of Parks","PO003042000000000000000000000000000000_00009","_","An efficient, effective and development-oriented public service","Spatial integration","To develop an effective spatial framework that promotes integrated and sustainable development",null,null,"d8981d56-15d6-40a2-8eb3-456263eb54dc",30.430170059204102,-23.173809051513672,0,700000,750000,800000,50000]
["e65f548d-c3fb-4eb6-b042-e507e9eec386","Site Demarcation in Villages","PO003042000000000000000000000000000000_00004","_","An efficient, effective and development-oriented public service","Spatial integration","To develop an effective spatial framework that promotes integrated and sustainable development",null,null,"0d0b8def-631d-4fda-b03e-71f01db572fa",30.39579963684082,-23.180099487304688,-1541928,700000,800000,900000,50000]
["e65f548d-c3fb-4eb6-b042-e507e9eec386","Street Naming (Including Registration)","PO003042000000000000000000000000000000_00003","_","An efficient, effective and development-oriented public service","Spatial integration","To develop an effective spatial framework that promotes integrated and sustainable development",null,null,"0d0b8def-631d-4fda-b03e-71f01db572fa",30.431159973144531,-23.180620193481445,118770,300000,400000,500000,1000000]
["e65f548d-c3fb-4eb6-b042-e507e9eec386","Street naming Giyani BA & Giyani C","PO003042000000000000000000000000000000_00011","_","An efficient, effective and development-oriented public service","Spatial integration","Infrastructure Development and Basic Service Delivery",null,null,"0d0b8def-631d-4fda-b03e-71f01db572fa",30.445989608764648,-23.245990753173828,225000,300000,400000,500000,700000]
["e65f548d-c3fb-4eb6-b042-e507e9eec386","Street Naming Giyani E","PO003042000000000000000000000000000000_00020","_","An efficient, effective and development-oriented public service","Spatial integration","Infrastructure Development and Basic Service Delivery",null,null,"8127b5b5-a3d3-4509-bade-f900f57d222b",2,1,0,300000,400000,500000,600000]
["e65f548d-c3fb-4eb6-b042-e507e9eec386","Street naming Giyani section A","PO003042000000000000000000000000000000_00010","_","An efficient, effective and development-oriented public service","Spatial integration","Infrastructure Development and Basic Service Delivery",null,null,"9f3b39a1-4676-432f-a8b5-6c951f798106",30.445989608764648,-23.245990753173828,0,300000,400000,500000,800000]
["e65f548d-c3fb-4eb6-b042-e507e9eec386","Street Naming Kremetart","PO003042000000000000000000000000000000_00022","_","An efficient, effective and development-oriented public service","Spatial integration","Infrastructure Development and Basic Service Delivery",null,null,"c92bf118-48c8-4d9a-88e5-02ee82bc8c35",-0.230712890625,5.9051502496004105E-2,0,300000,400000,500000,800000]
["e65f548d-c3fb-4eb6-b042-e507e9eec386","Subdivision, Rezoning & Registration of municipal properties in villages","PO003042000000000000000000000000000000_00012","_","An efficient, effective and development-oriented public service","Spatial integration","Good Governance and Public Participation",null,null,"0d0b8def-631d-4fda-b03e-71f01db572fa",30.445989608764648,-23.245990753173828,240000,600000,700000,800000,500000]
["e65f548d-c3fb-4eb6-b042-e507e9eec386","Town Expanstion (Ngove Village)","PO003023001000000000000000000000000000_00004","_","An efficient, effective and development-oriented public service","Spatial integration","To develop an effective spatial framework that promotes integrated and sustainable development",null,null,"42510af3-3838-4a32-862e-379660192785",30.399999618530273,-23.190700531005859,0,800000,900000,1000000,50000]
["e65f548d-c3fb-4eb6-b042-e507e9eec386","Town Planning Administration ","PO002000000000000000000000000000000000","_","Sustainable human settlements and improved quality of household life","Governance","Infrastructure Development and Basic Service Delivery",null,null,"0d0b8def-631d-4fda-b03e-71f01db572fa",30.445989608764648,-23.245990753173828,63211.08,700000,800000,900000,600000]
["e65f548d-c3fb-4eb6-b042-e507e9eec386","Town Planning Administration ","PO002000000000000000000000000000000000","_","Sustainable human settlements and improved quality of household life","Governance","Infrastructure Development and Basic Service Delivery",null,null,"42510af3-3838-4a32-862e-379660192785",30.445989608764648,-23.245990753173828,3512760.8900000006,4798193,4888148,5132400,3984726]
["e65f548d-c3fb-4eb6-b042-e507e9eec386","Township Establishhment Dzingidzingi","PO003042000000000000000000000000000000_00016","_","An efficient, effective and development-oriented public service","Spatial integration","Infrastructure Development and Basic Service Delivery",null,null,"c92bf118-48c8-4d9a-88e5-02ee82bc8c35",-0.230712890625,5.9051502496004105E-2,0,1000000,1200000,1400000,100000]
["e65f548d-c3fb-4eb6-b042-e507e9eec386","Township establishment Ndengeza 500 sites","PO003042000000000000000000000000000000_00019","_","An efficient, effective and development-oriented public service","Spatial integration","Infrastructure Development and Basic Service Delivery",null,null,"0d0b8def-631d-4fda-b03e-71f01db572fa",-0.230712890625,5.9051502496004105E-2,0,0,0,0,700000]
["e65f548d-c3fb-4eb6-b042-e507e9eec386","Township establishment Ndengeza 500 sites","PO003042000000000000000000000000000000_00020","_","An efficient, effective and development-oriented public service","Spatial integration","Local Economic Development",null,null,"6de1a2d4-dd63-4032-83d0-2b90e54659c6",5,5,0,700000,800000,900000,0]
["e65f548d-c3fb-4eb6-b042-e507e9eec386","Township Establishment Ngove Village","PO003042000000000000000000000000000000_00021","_","An efficient, effective and development-oriented public service","Spatial integration","Local Economic Development",null,null,"701393f0-744e-4039-8f42-6cd6978c0cff",-0.230712890625,5.9051502496004105E-2,0,300000,400000,500000,0]
["e65f548d-c3fb-4eb6-b042-e507e9eec386","Township Establishment Siyandhani","PO003042000000000000000000000000000000_00002","_","An efficient, effective and development-oriented public service","Spatial integration","To develop an effective spatial framework that promotes integrated and sustainable development",null,null,"61e4bf4d-bea3-45e9-8728-0c9c929a5e19",30.39579963684082,-23.180099487304688,0,600000,700000,800000,500000]
["e65f548d-c3fb-4eb6-b042-e507e9eec386","Township Establishment Skhunyani","PO003042000000000000000000000000000000_00018","_","An efficient, effective and development-oriented public service","Spatial integration","Infrastructure Development and Basic Service Delivery",null,null,"c92bf118-48c8-4d9a-88e5-02ee82bc8c35",2,1,0,1000000,1200000,1400000,600000]
["f3333fef-376f-4d03-b158-f7050b66056d","Senior Management","PO002000000000000000000000000000000000","_","Sustainable human settlements and improved quality of household life","Governance","Good Governance and Public Participation",null,null,"42510af3-3838-4a32-862e-379660192785",30.445989608764648,-23.245990753173828,1442825.98,1647982,1734700,1821867,1608358]
["f3a9aaa9-529a-40d1-b981-722b2f743267","Assets Management","PO002000000000000000000000000000000000","_","Sustainable human settlements and improved quality of household life","Governance","Financial Viability",null,null,"42510af3-3838-4a32-862e-379660192785",30.445989608764648,-23.245990753173828,1253247.6200000001,2200000,2300000,2400000,5000000]
["f3a9aaa9-529a-40d1-b981-722b2f743267","Information Technology","PO001002002002004000000000000000000000_00001","_","An efficient, effective and development-oriented public service","Governance","Institutional Development and Transformation",null,null,"42510af3-3838-4a32-862e-379660192785",30.445989608764648,-23.245990753173828,26882,300000,320000,330000,150000]
["f3a9aaa9-529a-40d1-b981-722b2f743267","Information Technology","PO001002002002004000000000000000000000_00001","_","An efficient, effective and development-oriented public service","Governance","Institutional Development and Transformation","Computer Equipment","Computer Equipment","42510af3-3838-4a32-862e-379660192785",30.445989608764648,-23.245990753173828,80646,900000,960000,990000,450000]
["f3a9aaa9-529a-40d1-b981-722b2f743267","Information Technology","PO002000000000000000000000000000000000","_","Sustainable human settlements and improved quality of household life","Governance","Institutional Development and Transformation",null,null,"42510af3-3838-4a32-862e-379660192785",30.445989608764648,-23.245990753173828,7050422.6700000009,13813555,14180820,14521714,11967126]

{"sheet":"Raw_SA18NC","index":7,"n_rows":3,"n_cols":11,"rows_kept":3,"cut":false,"hidden":true,"merged":[]}
["StandardName","Ref","S71_PPPYearAmount","S71_PPYearAmount","S71_PYearAmount","S71_OriginalBudAmnt","S71_AdjustmentBudAmnt","S71_ForecastAmount","S71_ASBudgetAmount","S71_OY1BudgetAmount","S71_OY2BudgetAmount"]
[" Municipal Infrastructure Grant (MIG)","_",0,0,8947093,0,74487578,74487578,-72329000,-75594000,-78997000]
["Integrated National Electrification Programme Grant","_",0,0,1644640,0,22228640,22228640,-35371000,-27000000,-28210000]

{"sheet":"Raw_SA18NO","index":8,"n_rows":4,"n_cols":11,"rows_kept":4,"cut":false,"hidden":true,"merged":[]}
["StandardName","Ref","S71_PPPYearAmount","S71_PPYearAmount","S71_PYearAmount","S71_OriginalBudAmnt","S71_AdjustmentBudAmnt","S71_ForecastAmount","S71_ASBudgetAmount","S71_OY1BudgetAmount","S71_OY2BudgetAmount"]
["EPWP Incentive","_",0,0,0,0,4035000,4035000,0,0,0]
["Finance Management ","_",0,0,0,0,2400000,2400000,-2400000,-2400000,-2500000]
["Municipal Infrastructure Grant","_",0,0,0,0,3724026,3724026,0,0,0]

{"sheet":"Raw_SA18PC","index":9,"n_rows":1,"n_cols":11,"rows_kept":1,"cut":false,"hidden":true,"merged":[]}
["StandardName","Ref","S71_PPPYearAmount","S71_PPYearAmount","S71_PYearAmount","S71_OriginalBudAmnt","S71_AdjustmentBudAmnt","S71_ForecastAmount","S71_ASBudgetAmount","S71_OY1BudgetAmount","S71_OY2BudgetAmount"]

{"sheet":"Raw_SA18PO","index":10,"n_rows":1,"n_cols":11,"rows_kept":1,"cut":false,"hidden":true,"merged":[]}
["StandardName","Ref","S71_PPPYearAmount","S71_PPYearAmount","S71_PYearAmount","S71_OriginalBudAmnt","S71_AdjustmentBudAmnt","S71_ForecastAmount","S71_ASBudgetAmount","S71_OY1BudgetAmount","S71_OY2BudgetAmount"]

{"sheet":"Raw_SA18DC","index":11,"n_rows":1,"n_cols":11,"rows_kept":1,"cut":false,"hidden":true,"merged":[]}
["StandardName","Ref","S71_PPPYearAmount","S71_PPYearAmount","S71_PYearAmount","S71_OriginalBudAmnt","S71_AdjustmentBudAmnt","S71_ForecastAmount","S71_ASBudgetAmount","S71_OY1BudgetAmount","S71_OY2BudgetAmount"]

{"sheet":"Raw_SA18DO","index":12,"n_rows":1,"n_cols":11,"rows_kept":1,"cut":false,"hidden":true,"merged":[]}
["StandardName","Ref","S71_PPPYearAmount","S71_PPYearAmount","S71_PYearAmount","S71_OriginalBudAmnt","S71_AdjustmentBudAmnt","S71_ForecastAmount","S71_ASBudgetAmount","S71_OY1BudgetAmount","S71_OY2BudgetAmount"]

{"sheet":"Raw_SA18OC","index":13,"n_rows":1,"n_cols":11,"rows_kept":1,"cut":false,"hidden":true,"merged":[]}
["StandardName","Ref","S71_PPPYearAmount","S71_PPYearAmount","S71_PYearAmount","S71_OriginalBudAmnt","S71_AdjustmentBudAmnt","S71_ForecastAmount","S71_ASBudgetAmount","S71_OY1BudgetAmount","S71_OY2BudgetAmount"]

{"sheet":"Raw_SA18OO","index":14,"n_rows":1,"n_cols":11,"rows_kept":1,"cut":false,"hidden":true,"merged":[]}
["StandardName","Ref","S71_PPPYearAmount","S71_PPYearAmount","S71_PYearAmount","S71_OriginalBudAmnt","S71_AdjustmentBudAmnt","S71_ForecastAmount","S71_ASBudgetAmount","S71_OY1BudgetAmount","S71_OY2BudgetAmount"]

{"sheet":"Raw_SA19NC","index":15,"n_rows":3,"n_cols":11,"rows_kept":3,"cut":false,"hidden":true,"merged":[]}
["StandardName","Ref","S71_PPPYearAmount","S71_PPYearAmount","S71_PYearAmount","S71_OriginalBudAmnt","S71_AdjustmentBudAmnt","S71_ForecastAmount","S71_ASBudgetAmount","S71_OY1BudgetAmount","S71_OY2BudgetAmount"]
["Integrated National Electrification Programme Grant","_",0,0,0,0,0,0,-35371000,-27000000,-28210000]
["Municipal Infrastructure Grant","_",0,0,0,0,74487578,74487578,-72329000,-75594000,-78997000]

{"sheet":"Raw_SA19NO","index":16,"n_rows":5,"n_cols":11,"rows_kept":5,"cut":false,"hidden":true,"merged":[]}
["StandardName","Ref","S71_PPPYearAmount","S71_PPYearAmount","S71_PYearAmount","S71_OriginalBudAmnt","S71_AdjustmentBudAmnt","S71_ForecastAmount","S71_ASBudgetAmount","S71_OY1BudgetAmount","S71_OY2BudgetAmount"]
["Expanded Public Works Programme Integrated Grant","_",0,0,0,0,4035000,4035000,0,0,0]
["Integrated National Electrification Programme Grant","_",0,0,0,0,22228640,22228640,0,0,0]
["Local Government Financial Management Grant","_",0,0,0,0,2400000,2400000,-2400000,-2400000,-2500000]
["Municipal Infrastructure Grant","_",0,0,0,0,3724026,3724026,0,0,0]

{"sheet":"Raw_SA19PC","index":17,"n_rows":1,"n_cols":11,"rows_kept":1,"cut":false,"hidden":true,"merged":[]}
["StandardName","Ref","S71_PPPYearAmount","S71_PPYearAmount","S71_PYearAmount","S71_OriginalBudAmnt","S71_AdjustmentBudAmnt","S71_ForecastAmount","S71_ASBudgetAmount","S71_OY1BudgetAmount","S71_OY2BudgetAmount"]

{"sheet":"Raw_SA19PO","index":18,"n_rows":1,"n_cols":11,"rows_kept":1,"cut":false,"hidden":true,"merged":[]}
["StandardName","Ref","S71_PPPYearAmount","S71_PPYearAmount","S71_PYearAmount","S71_OriginalBudAmnt","S71_AdjustmentBudAmnt","S71_ForecastAmount","S71_ASBudgetAmount","S71_OY1BudgetAmount","S71_OY2BudgetAmount"]

{"sheet":"Raw_SA19DC","index":19,"n_rows":1,"n_cols":11,"rows_kept":1,"cut":false,"hidden":true,"merged":[]}
["StandardName","Ref","S71_PPPYearAmount","S71_PPYearAmount","S71_PYearAmount","S71_OriginalBudAmnt","S71_AdjustmentBudAmnt","S71_ForecastAmount","S71_ASBudgetAmount","S71_OY1BudgetAmount","S71_OY2BudgetAmount"]

{"sheet":"Raw_SA19DO","index":20,"n_rows":1,"n_cols":11,"rows_kept":1,"cut":false,"hidden":true,"merged":[]}
["StandardName","Ref","S71_PPPYearAmount","S71_PPYearAmount","S71_PYearAmount","S71_OriginalBudAmnt","S71_AdjustmentBudAmnt","S71_ForecastAmount","S71_ASBudgetAmount","S71_OY1BudgetAmount","S71_OY2BudgetAmount"]

{"sheet":"Raw_SA19OC","index":21,"n_rows":1,"n_cols":11,"rows_kept":1,"cut":false,"hidden":true,"merged":[]}
["StandardName","Ref","S71_PPPYearAmount","S71_PPYearAmount","S71_PYearAmount","S71_OriginalBudAmnt","S71_AdjustmentBudAmnt","S71_ForecastAmount","S71_ASBudgetAmount","S71_OY1BudgetAmount","S71_OY2BudgetAmount"]

{"sheet":"Raw_SA19OO","index":22,"n_rows":1,"n_cols":11,"rows_kept":1,"cut":false,"hidden":true,"merged":[]}
["StandardName","Ref","S71_PPPYearAmount","S71_PPYearAmount","S71_PYearAmount","S71_OriginalBudAmnt","S71_AdjustmentBudAmnt","S71_ForecastAmount","S71_ASBudgetAmount","S71_OY1BudgetAmount","S71_OY2BudgetAmount"]

{"sheet":"NFD","index":23,"n_rows":20,"n_cols":17,"rows_kept":20,"cut":false,"hidden":true,"merged":[]}
["FORM","YEAR END","MUNCDE","ITEMCODE","SEQ","DESCRIPTION","PY3AUD","PY2AUD","PY1AUD","ORGB","ADJB","FCAST","NY1BUD","NY2BUD","NY3BUD","ExtraHeader1","ExtraHeader2"]
["A10",2024,"A101505",1505,50,"Informal Settlements",0,0,0,0,0,0,0,0,0]
["SA8",2024,"SA86014",6014,65,"Water Volumes :System input: Water treatment works",0,0,0,0,0,0,0,0,0,0]
["SA8",2024,"SA86015",6015,66,"Water Volumes :System input: Natural sources",0,0,0,0,0,0,0,0,0,0]
["SA8",2024,"SA86016",6016,67,"Volume Water Distribution Losses",0,0,0,0,0,0,0,0,0,0]
["SA8",2024,"SA86017",6017,68,"Cost Water Distribution Losses",0,0,0,0,0,0,0,0,0,0]
["SA13",2024,"SA131312",1312,79,"Meter - IBT Block 4 (c/kwh)",0,0,0,0,0,0,0]
["SA13",2024,"SA131313",1313,80,"Meter - IBT Block 5 (c/kwh)",0,0,0,0,0,0,0]
["SA13",2024,"SA131314",1314,81,"Prepaid - IBT Block 1 (c/kwh)",0,0,0,0,0,0,0]
["SA13",2024,"SA131315",1315,82,"Prepaid - IBT Block 2 (c/kwh)",0,0,0,0,0,0,0]
["SA13",2024,"SA131316",1316,83,"Prepaid - IBT Block 3 (c/kwh)",0,0,0,0,0,0,0]
["SA13",2024,"SA131317",1317,84,"Prepaid - IBT Block 4 (c/kwh)",0,0,0,0,0,0,0]
["SA13",2024,"SA131318",1318,85,"Prepaid - IBT Block 5 (c/kwh)",0,0,0,0,0,0,0]
["SA13",2024,"SA131319",1319,86,"Other",0,0,0,0,0,0,0]
["SA13",2024,"SA131400",1400,87,"Waste management tariffs",0,0,0,0,0,0,0]
["SA13",2024,"SA131401",1401,88,"Domestic",0,0,0,0,0,0,0]
["SA13",2024,"SA131402",1402,89,"Street cleaning charge",0,0,0,0,0,0,0]
["SA13",2024,"SA131403",1403,90,"Basic charge/fixed fee",0,0,0,0,0,0,0]
["SA13",2024,"SA131404",1404,91,"80l bin - once a week",0,0,0,0,0,0,0]
["SA13",2024,"SA131405",1405,92,"250l bin - once a week",0,0,0,0,0,0,0]

{"sheet":"Template names","index":24,"n_rows":179,"n_cols":6,"rows_kept":179,"cut":false,"hidden":true,"merged":[[0,0,0,3],[86,0,86,1],[109,0,109,1],[98,0,98,1],[91,0,91,3]]}
["Common sheet headings"]
["Head1",{"$f":"HLOOKUP(MTREF,Headings,2)","v":"2021/22"},"Prior year -1"]
["Head1A",{"$f":"HLOOKUP(MTREF,Headings,3)","v":"2020/21"},"Prior year -2"]
["Head1B",{"$f":"HLOOKUP(MTREF,Headings,4)","v":"2019/20"},"Prior year -3"]
["Head2",{"$f":"HLOOKUP(MTREF,Headings,5)","v":"Current Year 2022/23"},"Year in which budget is being prepared"]
["Head2A",{"$f":"HLOOKUP(MTREF,Headings,6)","v":"2022/23"},"Year in which budget is being prepared"]
["Head3",{"$f":"HLOOKUP(MTREF,Headings,7)","v":"2023/24 Medium Term Revenue & Expenditure Framework"},"MTREF name"]
["Head4","LTFS","Long term financial strategy"]
["Head5","Audited Outcome"]
["Head5A","Outcome"]
["Head5B","Pre-audit outcome"]
["Head6","Original Budget"]
["Head7","Adjusted Budget"]
["Head8","Full Year Forecast"]
["Head9",{"$f":"HLOOKUP(MTREF,Headings,8)","v":"Budget Year 2023/24"},"1st year of MTREF","Year1"]
["Head10",{"$f":"HLOOKUP(MTREF,Headings,9)","v":"Budget Year +1 2024/25"},"2nd year of MTREF","Year2"]
["Head11",{"$f":"HLOOKUP(MTREF,Headings,10)","v":"Budget Year +2 2025/26"},"3rd year of MTREF","Year3"]
["Head12",{"$f":"HLOOKUP(MTREF,Headings,11)","v":"Forecast 2026/27"},"1st yr of long term forecast","Year4"]
["Head13",{"$f":"HLOOKUP(MTREF,Headings,12)","v":"Forecast 2027/28"},"Next yr of long term forecast","Year5"]
["Head14",{"$f":"HLOOKUP(MTREF,Headings,13)","v":"Forecast 2028/29"},"Next yr of long term forecast","Year6"]
["Head15",{"$f":"HLOOKUP(MTREF,Headings,14)","v":"Forecast 2029/30"},"Next yr of long term forecast","Year7"]
["Head16",{"$f":"HLOOKUP(MTREF,Headings,15)","v":"Forecast 2030/31"},"Next yr of long term forecast","Year8"]
["Head17",{"$f":"HLOOKUP(MTREF,Headings,16)","v":"Forecast 2031/32"},"Next yr of long term forecast","Year9"]
["Head18",{"$f":"HLOOKUP(MTREF,Headings,17)","v":"Forecast 2032/33"},"Next yr of long term forecast","Year10"]
["Head19",{"$f":"HLOOKUP(MTREF,Headings,18)","v":"Forecast 2033/34"},"Next yr of long term forecast","Year11"]
["Head20",{"$f":"HLOOKUP(MTREF,Headings,19)","v":"Forecast 2034/35"},"Next yr of long term forecast","Year12"]
["Head21",{"$f":"HLOOKUP(MTREF,Headings,20)","v":"Forecast 2035/36"},"Next yr of long term forecast","Year13"]
["Head22",{"$f":"HLOOKUP(MTREF,Headings,21)","v":"Forecast 2036/37"},"Next yr of long term forecast","Year14"]
["Head23",{"$f":"HLOOKUP(MTREF,Headings,22)","v":"Forecast 2037/38"},"Next yr of long term forecast","Year15"]
["Head24","Description"]
["Head25"]
["Head26","Vote Description"]
["Head27","Ref"]
["Head27a","References"]
["Head28","Surplus/(Deficit) for the year",null,"Result"]
["Head29",{"$f":"HLOOKUP(MTREF,Headings,23)","v":"Annual target 2023/24"}]
["Head30",{"$f":"HLOOKUP(MTREF,Headings,24)","v":"Revised target 2023/24"}]
["Head31","Quarter ended 30 September"]
["Head32","Quarter ended 31 December"]
["Head33","Quarter ended 31 March"]
["Head34","Quarter ended 30 June"]
["Head35","Variance explanation"]
["Head36","YTD  Actual 31 Dec"]
["Head37","YTD  Budget 31 Dec"]
["Head38","Monthly actual"]
["Head39","YTD actual"]
["Head40","YTD budget"]
["Head41","YTD variance"]
["Head42","Surplus/ (Deficit) for the yr/period"]
["Head43",{"$f":"Head3&\" Summary\"","v":"2023/24 Medium Term Revenue & Expenditure Framework Summary"}]
["Head44","2001 Census"]
["Head45","2011 Census"]
["Head46"," - Adjustments Budget - January 2007"]
["Head47","Previous target year to complete"]
["Head48","Present value"]
["Head49"]
["Head50","Other Adjusts."]
["Head51","Accum. Funds"]
["Head52","Multi-year capital"]
["Head53","Unfore. Unavoid."]
["Head54","Prior Adjusted"]
["Head55","Nat. or Prov. Govt"]
["Head56","Total Adjusts."]
["SFPerf1","Budgeted Financial Performance"]
["SFPerf2","Forecast Financial Performance"]
["SFPos1","Budgeted Financial Position"]
["SFPos2","Forecast Financial Position"]
["Cash1","Budget Cash Flow"]
["Cash2","Forecast Cash Flow"]
["RandM","Expenditure includes repairs & maintenance of R'000"]
["Depart1","Department 1 - ",null,"DEP1"]
["Depart2","Department 2 - ",null,"DEP2"]
["Depart3","Department 3 - ",null,"DEP3"]
["Depart4","Department 4 - ",null,"DEP4"]
["Depart5","Department 5 - ",null,"DEP5"]
["Depart6","Department 6 - ",null,"DEP6"]
["Depart7","Department 7 - ",null,"DEP7"]
["Depart8","Department 8 - ",null,"DEP8"]
["Depart9","Department 9 - ",null,"DEP9"]
["Depart10","Department 10 - ",null,"DEP10"]
["Depart11","Department 11 - ",null,"DEP11"]
["Depart12","Department 12 - ",null,"DEP12"]
["Depart13","Department 13 - ",null,"DEP13"]
["Depart14","Department 14 - ",null,"DEP14"]
[]
[]
["Base year of forecast column selection names"]
["Choose","ACT"]
[null,"APP"]
[null,"ADJ"]
[]
["Standard nomenclature"]
["Muni",{"$f":"'Lookup and lists'!B28","v":"LIM331 Greater Giyani"}]
["Municipal Entities",2,"Type of report:",1]
[{"$f":"IF((MuniEntities=1)*(MuniType=2),\"YES\",\"NO\")","v":"NO"},"Does this municipality have entities (consolidated budget and entity budgets required)? YES/NO"]
["Entity 1","(Pty) Ltd Example 1 - Municipal entity - ",null,"Ent1"]
["Entity 2","(Pty) Ltd Example 2 - Municipal entity - ",null,"Ent2"]
["Entity 3","Municipal Entity Example 3",null,"Ent3"]
["Budget approval tables",null,"Chart x-ref","Sch/Tab/Ch","Alternative for municipalities without entities","Alternative for municipalities without entities"]
[null,{"$f":"IF(Consolques=\"YES\",E100,F100)","v":"Table A1 Budget Summary"},null,"Table A1 ",{"$f":"D100&\"Consolidated Budget Summary\"","v":"Table A1 Consolidated Budget Summary"},{"$f":"D100&\"Budget Summary\"","v":"Table A1 Budget Summary"}]
[null,"Table A2 Budgeted Financial Performance (revenue and expenditure by functional classification)","Charts 5, 6","Table A2 ",{"$f":"D101&\"Consolidated Budgeted Financial Performance (revenue and expenditure by functional classification)\"","v":"Table A2 Consolidated Budgeted Financial Performance (revenue and expenditure by functional classification)"},{"$f":"D101&\"Budgeted Financial Performance (revenue and expenditure by functional classification)\"","v":"Table A2 Budgeted Financial Performance (revenue and expenditure by functional classification)"}]
[null,"Table A3 Budgeted Financial Performance (revenue and expenditure by municipal vote)",null,"Table A3 ",{"$f":"D102&\"Consolidated Budgeted Financial Performance (revenue and expenditure by municipal vote)\"","v":"Table A3 Consolidated Budgeted Financial Performance (revenue and expenditure by municipal vote)"},{"$f":"D102&\"Budgeted Financial Performance (revenue and expenditure by municipal vote)\"","v":"Table A3 Budgeted Financial Performance (revenue and expenditure by municipal vote)"}]
[null,"Table A4 Budgeted Financial Performance (revenue and expenditure)","Charts 1, 2, 3, 4","Table A4 ",{"$f":"D103&\"Consolidated Budgeted Financial Performance (revenue and expenditure)\"","v":"Table A4 Consolidated Budgeted Financial Performance (revenue and expenditure)"},{"$f":"D103&\"Budgeted Financial Performance (revenue and expenditure)\"","v":"Table A4 Budgeted Financial Performance (revenue and expenditure)"}]
[null,"Table A5 Budgeted Capital Expenditure by vote, functional classification and funding","Charts 7, 8, 9, 10, 20","Table A5 ",{"$f":"D104&\"Consolidated Budgeted Capital Expenditure by vote, functional classification and funding\"","v":"Table A5 Consolidated Budgeted Capital Expenditure by vote, functional classification and funding"},{"$f":"D104&\"Budgeted Capital Expenditure by vote, functional classification and funding\"","v":"Table A5 Budgeted Capital Expenditure by vote, functional classification and funding"}]
[null,"Table A6 Budgeted Financial Position",null,"Table A6 ",{"$f":"D105&\"Consolidated Budgeted Financial Position\"","v":"Table A6 Consolidated Budgeted Financial Position"},{"$f":"D105&\"Budgeted Financial Position\"","v":"Table A6 Budgeted Financial Position"}]
[null,"Table A7 Budgeted Cash Flows",null,"Table A7 ",{"$f":"D106&\"Consolidated Budgeted Cash Flows\"","v":"Table A7 Consolidated Budgeted Cash Flows"},{"$f":"D106&\"Budgeted Cash Flows\"","v":"Table A7 Budgeted Cash Flows"}]
[null,"Table A8 Cash backed reserves/accumulated surplus reconciliation",null,"Table A8 ",{"$f":"D107&\"Consolidated Cash backed reserves/accumulated surplus reconciliation\"","v":"Table A8 Consolidated Cash backed reserves/accumulated surplus reconciliation"},{"$f":"D107&\"Cash backed reserves/accumulated surplus reconciliation\"","v":"Table A8 Cash backed reserves/accumulated surplus reconciliation"}]
[null,"Table A9 Asset Management",null,"Table A9 ",{"$f":"D108&\"Consolidated Asset Management\"","v":"Table A9 Consolidated Asset Management"},{"$f":"D108&\"Asset Management\"","v":"Table A9 Asset Management"}]
[null,"Table A10 Basic service delivery measurement",null,"Table A10 ",{"$f":"D109&\"Consolidated basic service delivery measurement\"","v":"Table A10 Consolidated basic service delivery measurement"},{"$f":"D109&\"Basic service delivery measurement\"","v":"Table A10 Basic service delivery measurement"}]
["Supportinging Tables to the Budget Approval Tables",null,{"$f":"$C$99","v":"Chart x-ref"},{"$f":"$D$99","v":"Sch/Tab/Ch"}]
["Supporting Table SA1",{"$f":"A111&\" Supportinging detail to 'Budgeted Financial Performance'\"","v":"Supporting Table SA1 Supportinging detail to 'Budgeted Financial Performance'"}]
["Supporting Table SA2 ",{"$f":"IF(Consolques=\"YES\",E112,F112)","v":"Supporting Table SA2 Matrix Financial Performance Budget (revenue source/expenditure type and dept.)"},null,null,{"$f":"A112&\"Consolidated Matrix Financial Performance Budget (revenue source/expenditure type & dept.)\"","v":"Supporting Table SA2 Consolidated Matrix Financial Performance Budget (revenue source/expenditure type & dept.)"},{"$f":"A112&\"Matrix Financial Performance Budget (revenue source/expenditure type and dept.)\"","v":"Supporting Table SA2 Matrix Financial Performance Budget (revenue source/expenditure type and dept.)"}]
["Supporting Table SA3 ",{"$f":"A113&\"Supportinging detail to 'Budgeted Financial Position'\"","v":"Supporting Table SA3 Supportinging detail to 'Budgeted Financial Position'"}]
["Supporting Table SA4 ",{"$f":"A114&\"Reconciliation of IDP strategic objectives and budget (revenue)\"","v":"Supporting Table SA4 Reconciliation of IDP strategic objectives and budget (revenue)"},"Chart 11"]
["Supporting Table SA5 ",{"$f":"A115&\"Reconciliation of IDP strategic objectives and budget (operating expenditure)\"","v":"Supporting Table SA5 Reconciliation of IDP strategic objectives and budget (operating expenditure)"},"Chart 12"]
["Supporting Table SA6 ",{"$f":"A116&\"Reconciliation of IDP strategic objectives and budget (capital expenditure)\"","v":"Supporting Table SA6 Reconciliation of IDP strategic objectives and budget (capital expenditure)"},"Chart 13"]
["Supporting Table SA7",{"$f":"A117&\" Measureable performance objectives\"","v":"Supporting Table SA7 Measureable performance objectives"}]
["Supporting Table SA8",{"$f":"A118&\" Performance indicators and benchmarks\"","v":"Supporting Table SA8 Performance indicators and benchmarks"},"Chts 15-19"]
["Supporting Table SA9",{"$f":"A119&\" Social, economic and demographic statistics and assumptions\"","v":"Supporting Table SA9 Social, economic and demographic statistics and assumptions"}]
["Supporting Table SA10",{"$f":"A120&\" Funding measurement\"","v":"Supporting Table SA10 Funding measurement"},"Chart 14"]
["Supporting Table SA11",{"$f":"A121&\" Property rates summary\"","v":"Supporting Table SA11 Property rates summary"}]
["Supporting Table SA12a",{"$f":"A122&\" Property rates by category (current year)\"","v":"Supporting Table SA12a Property rates by category (current year)"}]
["Supporting Table SA12b",{"$f":"A123&\" Property rates by category (budget year)\"","v":"Supporting Table SA12b Property rates by category (budget year)"}]
["Supporting Table SA13a",{"$f":"A124&\" Service Tariffs by category\"","v":"Supporting Table SA13a Service Tariffs by category"}]
["Supporting Table SA13b",{"$f":"A125&\" Service Tariffs by category - explanatory\"","v":"Supporting Table SA13b Service Tariffs by category - explanatory"}]
["Supporting Table SA14",{"$f":"A126&\" Household bills\"","v":"Supporting Table SA14 Household bills"}]
["Supporting Table SA15",{"$f":"A127&\" Investment particulars by type\"","v":"Supporting Table SA15 Investment particulars by type"}]
["Supporting Table SA16",{"$f":"A128&\" Investment particulars by maturity\"","v":"Supporting Table SA16 Investment particulars by maturity"}]
["Supporting Table SA17",{"$f":"A129&\" Borrowing\"","v":"Supporting Table SA17 Borrowing"}]
["Supporting Table SA18",{"$f":"A130&\" Transfers and grant receipts\"","v":"Supporting Table SA18 Transfers and grant receipts"}]
["Supporting Table SA19",{"$f":"A131&\" Expenditure on transfers and grant programme\"","v":"Supporting Table SA19 Expenditure on transfers and grant programme"}]
["Supporting Table SA20",{"$f":"A132&\" Reconciliation of transfers, grant receipts and unspent funds\"","v":"Supporting Table SA20 Reconciliation of transfers, grant receipts and unspent funds"}]
["Supporting Table SA21",{"$f":"A133&\" Transfers and grants made by the municipality\"","v":"Supporting Table SA21 Transfers and grants made by the municipality"}]
["Supporting Table SA22",{"$f":"A134&\" Summary councillor and staff benefits\"","v":"Supporting Table SA22 Summary councillor and staff benefits"}]
["Supporting Table SA23",{"$f":"A135&\" Salaries, allowances & benefits (political office bearers/councillors/senior managers)\"","v":"Supporting Table SA23 Salaries, allowances & benefits (political office bearers/councillors/senior managers)"}]
["Supporting Table SA24",{"$f":"A136&\" Summary of personnel numbers\"","v":"Supporting Table SA24 Summary of personnel numbers"}]
["Supporting Table SA25",{"$f":"IF(Consolques=\"YES\",E137,F137)","v":"Supporting Table SA25 Budgeted monthly revenue and expenditure"},null,null,{"$f":"A137&\" Consolidated budgeted monthly revenue and expenditure\"","v":"Supporting Table SA25 Consolidated budgeted monthly revenue and expenditure"},{"$f":"A137&\" Budgeted monthly revenue and expenditure\"","v":"Supporting Table SA25 Budgeted monthly revenue and expenditure"}]
["Supporting Table SA26","Supporting Table SA26 Budgeted monthly revenue and expenditure (municipal vote)",null,null,{"$f":"A138&\" Consolidated budgeted monthly revenue and expenditure (municipal vote)\"","v":"Supporting Table SA26 Consolidated budgeted monthly revenue and expenditure (municipal vote)"},{"$f":"A138&\" Budgeted monthly revenue and expenditure (municipal vote)\"","v":"Supporting Table SA26 Budgeted monthly revenue and expenditure (municipal vote)"}]
["Supporting Table SA27","Supporting Table SA27 Budgeted monthly revenue and expenditure (functional classification)",null,null,{"$f":"A139&\" Consolidated budgeted monthly revenue and expenditure (functional classification)\"","v":"Supporting Table SA27 Consolidated budgeted monthly revenue and expenditure (functional classification)"},{"$f":"A139&\" Budgeted monthly revenue and expenditure (functional classification)\"","v":"Supporting Table SA27 Budgeted monthly revenue and expenditure (functional classification)"}]
["Supporting Table SA28","Supporting Table SA28 Budgeted monthly capital expenditure (municipal vote)",null,null,{"$f":"A140&\" Consolidated budgeted monthly capital expenditure (municipal vote)\"","v":"Supporting Table SA28 Consolidated budgeted monthly capital expenditure (municipal vote)"},{"$f":"A140&\" Budgeted monthly capital expenditure (municipal vote)\"","v":"Supporting Table SA28 Budgeted monthly capital expenditure (municipal vote)"}]
["Supporting Table SA29","Supporting Table SA29 Budgeted monthly capital expenditure (functional classification)",null,null,{"$f":"A141&\" Consolidated budgeted monthly capital expenditure (functional classification)\"","v":"Supporting Table SA29 Consolidated budgeted monthly capital expenditure (functional classification)"},{"$f":"A141&\" Budgeted monthly capital expenditure (functional classification)\"","v":"Supporting Table SA29 Budgeted monthly capital expenditure (functional classification)"}]
["Supporting Table SA30","Supporting Table SA30 Budgeted monthly cash flow",null,null,{"$f":"A142&\" Consolidated budgeted monthly cash flow\"","v":"Supporting Table SA30 Consolidated budgeted monthly cash flow"},{"$f":"A142&\" Budgeted monthly cash flow\"","v":"Supporting Table SA30 Budgeted monthly cash flow"}]
["Supporting Table SA31","NOT REQUIRED - municipality does not have entities",null,null,{"$f":"A143&\" Aggregated entity budget\"","v":"Supporting Table SA31 Aggregated entity budget"},"NOT REQUIRED - municipality does not have entities"]
["Supporting Table SA32",{"$f":"A144&\" List of external mechanisms\"","v":"Supporting Table SA32 List of external mechanisms"}]
["Supporting Table SA33",{"$f":"A145&\" Contracts having future budgetary implications\"","v":"Supporting Table SA33 Contracts having future budgetary implications"}]
["Supporting Table SA34a",{"$f":"IF(Consolques=\"YES\",E146,F146)","v":"Supporting Table SA34a Capital expenditure on new assets by asset class"},null,null,{"$f":"A146&\" Consolidated capital expenditure on new assets by asset class\"","v":"Supporting Table SA34a Consolidated capital expenditure on new assets by asset class"},{"$f":"A146&\" Capital expenditure on new assets by asset class\"","v":"Supporting Table SA34a Capital expenditure on new assets by asset class"}]
["Supporting Table SA34b","Supporting Table SA34b Capital expenditure on the renewal of existing assets by asset class",null,null,{"$f":"A147&\" Consolidated capital expenditure on the renewal of existing assets by asset class\"","v":"Supporting Table SA34b Consolidated capital expenditure on the renewal of existing assets by asset class"},{"$f":"A147&\" Capital expenditure on the renewal of existing assets by asset class\"","v":"Supporting Table SA34b Capital expenditure on the renewal of existing assets by asset class"}]
["Supporting Table SA34c","Supporting Table SA34c Repairs and maintenance expenditure by asset class",null,null,{"$f":"A148&\" Consolidated repairs and maintenance by asset class\"","v":"Supporting Table SA34c Consolidated repairs and maintenance by asset class"},{"$f":"A148&\" Repairs and maintenance expenditure by asset class\"","v":"Supporting Table SA34c Repairs and maintenance expenditure by asset class"}]
["Supporting Table SA34d",{"$f":"IF(Consolques=\"YES\",E149,F149)","v":"Supporting Table SA34d Depreciation by asset class"},null,null,{"$f":"A149&\" Consolidated Depreciation by asset class\"","v":"Supporting Table SA34d Consolidated Depreciation by asset class"},{"$f":"A149&\" Depreciation by asset class\"","v":"Supporting Table SA34d Depreciation by asset class"}]
["Supporting Table SA34e",{"$f":"IF(Consolques=\"YES\",E150,F150)","v":"Supporting Table SA34e Capital expenditure on the upgrading of existing assets by asset class"},null,null,{"$f":"A150&\" Consolidated capital expenditure on the upgrading of existing assets by asset class\"","v":"Supporting Table SA34e Consolidated capital expenditure on the upgrading of existing assets by asset class"},{"$f":"A150&\" Capital expenditure on the upgrading of existing assets by asset class\"","v":"Supporting Table SA34e Capital expenditure on the upgrading of existing assets by asset class"}]
["Supporting Table SA35","Supporting Table SA35 Future financial implications of the capital budget",null,null,{"$f":"A151&\" Consolidated future financial implications of the capital budget\"","v":"Supporting Table SA35 Consolidated future financial implications of the capital budget"},{"$f":"A151& \" Future financial implications of the capital budget\"","v":"Supporting Table SA35 Future financial implications of the capital budget"}]
["Supporting Table SA36","Supporting Table SA36 Detailed capital budget",null,null,{"$f":"A152&\" Consolidated detailed capital budget\"","v":"Supporting Table SA36 Consolidated detailed capital budget"},{"$f":"A152& \" Detailed capital budget\"","v":"Supporting Table SA36 Detailed capital budget"}]
["Supporting Table SA37","Supporting Table SA37 Projects delayed from previous financial year/s",null,null,{"$f":"A153&\" Consolidated projects delayed from previous financial year/s\"","v":"Supporting Table SA37 Consolidated projects delayed from previous financial year/s"},{"$f":"A153& \" Projects delayed from previous financial year/s\"","v":"Supporting Table SA37 Projects delayed from previous financial year/s"}]
["Supporting Table SA38",{"$f":"IF(Consolques=\"YES\",E154,F154)","v":"Supporting Table SA38 Detailed operational projects"},null,null,{"$f":"A154&\" Consolidated detailed operational projects\"","v":"Supporting Table SA38 Consolidated detailed operational projects"},{"$f":"A154& \" Detailed operational projects\"","v":"Supporting Table SA38 Detailed operational projects"}]
[]
["Budget Charts","Charts","Cross reference"]
["Chart A1 ",{"$f":"A157&\"Revenue by Municipal Vote\"","v":"Chart A1 Revenue by Municipal Vote"}]
["Chart A2 ",{"$f":"A158&\"Expenditure by Municipal Vote\"","v":"Chart A2 Expenditure by Municipal Vote"}]
["Chart A3 ",{"$f":"A159&\"Revenue by Standard Classification\"","v":"Chart A3 Revenue by Standard Classification"},"A2"]
["Chart A4 ",{"$f":"A160&\"Expenditure by Standard Classification\"","v":"Chart A4 Expenditure by Standard Classification"},"A2"]
["Chart A5 ",{"$f":"A161&\"Revenue by Major Source (refer 'Minor' source for 'Other Revenue' allocation\"","v":"Chart A5 Revenue by Major Source (refer 'Minor' source for 'Other Revenue' allocation"},"A3"]
["Chart A6 ",{"$f":"A162&\"Revenue by Minor Source (Other)\"","v":"Chart A6 Revenue by Minor Source (Other)"},"A3"]
["Chart A7 ",{"$f":"A163&\"Expenditure by Major Type\"","v":"Chart A7 Expenditure by Major Type"},"A3"]
["Chart A8 ",{"$f":"A164&\"Expenditure by Minor Type (Other)\"","v":"Chart A8 Expenditure by Minor Type (Other)"},"A3"]
["Chart A9 ",{"$f":"A165&\"Capital Expenditure by Municipal Vote/Appropriation (Major)\"","v":"Chart A9 Capital Expenditure by Municipal Vote/Appropriation (Major)"},"A5"]
["Chart A10 ",{"$f":"A166&\"Capital Expenditure by Municipal Vote/Appropriation (Minor)\"","v":"Chart A10 Capital Expenditure by Municipal Vote/Appropriation (Minor)"},"A5"]
["Chart A11 ",{"$f":"A166&\"Capital Expenditure by Standard Classification\"","v":"Chart A10 Capital Expenditure by Standard Classification"},"A5"]
["Chart A12 ",{"$f":"A168&\"Capital expenditure performance trend\"","v":"Chart A12 Capital expenditure performance trend"},"A5"]
["Chart A13 ",{"$f":"A169&\"Capital funding by Source\"","v":"Chart A13 Capital funding by Source"},"A5"]
["Chart A14 ",{"$f":"A170&\"Cash flow trend\"","v":"Chart A14 Cash flow trend"},"A7"]
["Chart A15 ",{"$f":"A171&\"IDP Strategic Objective - Revenue\"","v":"Chart A15 IDP Strategic Objective - Revenue"},"Table A4"]
["Chart A16 ",{"$f":"A172&\"IDP Strategic Objective - Expenditure\"","v":"Chart A16 IDP Strategic Objective - Expenditure"},"Table A5"]
["Chart A17 ",{"$f":"A173&\"IDP Strategic Objective - Capital Expenditure\"","v":"Chart A17 IDP Strategic Objective - Capital Expenditure"},"Table A6"]
["Chart A18 ",{"$f":"A174&\"Debt (borrowing to Total Revenue)\"","v":"Chart A18 Debt (borrowing to Total Revenue)"},"Table A8"]
["Chart A19 ",{"$f":"A175&\"Debtors' trend analysis\"","v":"Chart A19 Debtors' trend analysis"},"Table A8"]
["Chart A20 ",{"$f":"A176&\"Distribution losses\"","v":"Chart A20 Distribution losses"},"Table A8"]
["Chart A21 ",{"$f":"A177&\"Borrowed funding of capital expenditure\"","v":"Chart A21 Borrowed funding of capital expenditure"},"Table A8"]
["Chart A22 ",{"$f":"A178&\"Expenditure analysis (% of Revenue)\"","v":"Chart A22 Expenditure analysis (% of Revenue)"},"Table A8"]
["Chart A23 ",{"$f":"A179&\"Increases in service charges\"","v":"Chart A23 Increases in service charges"},"Table A10"]

{"sheet":"Lookup and lists","index":25,"n_rows":308,"n_cols":30,"rows_kept":308,"cut":false,"hidden":true,"merged":[]}
["Description",2013,2014,2015,2016,2017,2018,2019,2020,2021,2022,2023,2024,2025,2026,null,"Lists",null,null,null,null,null,null,null,"Grants:","National - opex","Provincial - opex","National - capex","Provincial - capex"]
[{"$f":"'Template names'!C2","v":"Prior year -1"},{"$f":"B1-2&\"/\"&RIGHT(B1,2)-1","v":"2011/12"},"2012/13","2013/14","2014/15","2015/16","2016/17","2017/18","2018/19",{"$f":"J1-2&\"/\"&RIGHT(J1,2)-1","v":"2019/20"},"2020/21","2021/22","2022/23","2023/24","2024/25",null,"Yes","<1","<4","Market","Land & impr.","Yes","Uniform","Yrs",null,"Local Government Equitable Share","Health subsidy"," Municipal Infrastructure Grant (MIG)","Agriculture"]
[{"$f":"'Template names'!C3","v":"Prior year -2"},{"$f":"B1-3&\"/\"&RIGHT(B1,2)-2","v":"2010/11"},"2011/12","2012/13","2013/14","2014/15","2015/16","2016/17","2017/18",{"$f":"J1-3&\"/\"&RIGHT(J1,2)-2","v":"2018/19"},"2019/20","2020/21","2021/22","2022/23","2023/24",null,"No",1,4,"Dep.Replace","Land only","No","Variable","Mths",null,"RSC Levy Replacement ","Ambulance subsidy"," Public Transport and Systems","Education"]
[{"$f":"'Template names'!C4","v":"Prior year -3"},{"$f":"B1-4&\"/\"&RIGHT(B1,2)-3","v":"2009/10"},"2010/11","2011/12","2012/13","2013/14","2014/15","2015/16","2016/17",{"$f":"J1-4&\"/\"&RIGHT(J1,2)-3","v":"2017/18"},"2018/19","2019/20","2020/21","2021/22","2022/23",null,null,2,5,"Other","Other",null,null,null,null,"Finance Management ","Housing","Rural Transport Services and Infrastructure","Health"]
[{"$f":"'Template names'!C5","v":"Year in which budget is being prepared"},{"$f":"\"Current Year \"& B1-1&\"/\"&RIGHT(B1,2)","v":"Current Year 2012/13"},"Current Year 2013/14","Current Year 2014/15","Current Year 2015/16","Current Year 2016/17","Current Year 2017/18","Current Year 2018/19","Current Year 2019/20",{"$f":"\"Current Year \"& J1-1&\"/\"&RIGHT(J1,2)","v":"Current Year 2020/21"},"Current Year 2021/22","Current Year 2022/23","Current Year 2023/24","Current Year 2024/25","Current Year 2025/26",null,null,3,6,null,null,null,null,null,null,"Municipal Systems Improvement","Sport and Recreation","Regional Bulk Infrastructure","Housing and Local Government "]
[{"$f":"'Template names'!C6","v":"Year in which budget is being prepared"},{"$f":"B1-1&\"/\"&RIGHT(B1,2)","v":"2012/13"},"2013/14","2014/15","2015/16","2016/17","2017/18","2018/19","2019/20",{"$f":"J1-1&\"/\"&RIGHT(J1,2)","v":"2020/21"},"2021/22","2022/23","2023/24","2024/25","2025/26",null,null,4,"6-10",null,null,null,null,null,null,"Water Services Operating Subsidy ",null,"Rural Households Infrastructure ","Other Departments"]
[{"$f":"'Template names'!C7","v":"MTREF name"},{"$f":"B1&\"/\"&RIGHT(B1,2)+1&\" Medium Term Revenue & Expenditure Framework\"","v":"2013/14 Medium Term Revenue & Expenditure Framework"},"2014/15 Medium Term Revenue & Expenditure Framework","2015/16 Medium Term Revenue & Expenditure Framework","2016/17 Medium Term Revenue & Expenditure Framework","2017/18 Medium Term Revenue & Expenditure Framework","2018/19 Medium Term Revenue & Expenditure Framework","2019/20 Medium Term Revenue & Expenditure Framework","2020/21 Medium Term Revenue & Expenditure Framework",{"$f":"J1&\"/\"&RIGHT(J1,2)+1&\" Medium Term Revenue & Expenditure Framework\"","v":"2021/22 Medium Term Revenue & Expenditure Framework"},"2022/23 Medium Term Revenue & Expenditure Framework","2023/24 Medium Term Revenue & Expenditure Framework","2024/25 Medium Term Revenue & Expenditure Framework","2025/26 Medium Term Revenue & Expenditure Framework","2026/27 Medium Term Revenue & Expenditure Framework",null,null,5,">10",null,null,null,null,null,null,"Energy Efficiency  and Demand Management",null,"Neighbourhood Development Partnership","Public Works, Roads, Transport "]
[{"$f":"'Template names'!C15","v":"1st year of MTREF"},{"$f":"\"Budget Year \"&B1&\"/\"&RIGHT(B1,2)+1","v":"Budget Year 2013/14"},"Budget Year 2014/15","Budget Year 2015/16","Budget Year 2016/17","Budget Year 2017/18","Budget Year 2018/19","Budget Year 2019/20","Budget Year 2020/21",{"$f":"\"Budget Year \"&J1&\"/\"&RIGHT(J1,2)+1","v":"Budget Year 2021/22"},"Budget Year 2022/23","Budget Year 2023/24","Budget Year 2024/25","Budget Year 2025/26","Budget Year 2026/27",null,null,">5",null,null,null,null,null,null,null,"Integrated National Electrification Programme",null,"2010 FIFA World Cup Stadiums Development","Sport and Recreation"]
[{"$f":"'Template names'!C16","v":"2nd year of MTREF"},{"$f":"\"Budget Year +1 \"&B1+1&\"/\"&RIGHT(B1,2)+2","v":"Budget Year +1 2014/15"},"Budget Year +1 2015/16","Budget Year +1 2016/17","Budget Year +1 2017/18","Budget Year +1 2018/19","Budget Year +1 2019/20","Budget Year +1 2020/21","Budget Year +1 2021/22",{"$f":"\"Budget Year +1 \"&J1+1&\"/\"&RIGHT(J1,2)+2","v":"Budget Year +1 2022/23"},"Budget Year +1 2023/24","Budget Year +1 2024/25","Budget Year +1 2025/26","Budget Year +1 2026/27","Budget Year +1 2027/28",null,null,null,null,null,null,null,null,null,null,"Municipal Drought Relief "]
[{"$f":"'Template names'!C17","v":"3rd year of MTREF"},{"$f":"\"Budget Year +2 \"&B1+2&\"/\"&RIGHT(B1,2)+3","v":"Budget Year +2 2015/16"},"Budget Year +2 2016/17","Budget Year +2 2017/18","Budget Year +2 2018/19","Budget Year +2 2019/20","Budget Year +2 2020/21","Budget Year +2 2021/22","Budget Year +2 2022/23",{"$f":"\"Budget Year +2 \"&J1+2&\"/\"&RIGHT(J1,2)+3","v":"Budget Year +2 2023/24"},"Budget Year +2 2024/25","Budget Year +2 2025/26","Budget Year +2 2026/27","Budget Year +2 2027/28","Budget Year +2 2028/29",null,null,null,null,null,null,null,null,null,null,"2010 FIFA World Cup Operating"]
[{"$f":"'Template names'!C18","v":"1st yr of long term forecast"},{"$f":"\"Forecast \"&B1+3&\"/\"&RIGHT(B1,2)+4","v":"Forecast 2016/17"},"Forecast 2017/18","Forecast 2018/19","Forecast 2019/20","Forecast 2020/21","Forecast 2021/22","Forecast 2022/23","Forecast 2023/24",{"$f":"\"Forecast \"&J1+3&\"/\"&RIGHT(J1,2)+4","v":"Forecast 2024/25"},"Forecast 2025/26","Forecast 2026/27","Forecast 2027/28","Forecast 2028/29","Forecast 2029/30",null,null,null,null,null,null,null,null,null,null,"Electricity Demand Side Management"]
[{"$f":"'Template names'!C19","v":"Next yr of long term forecast"},{"$f":"\"Forecast \"&B1+4&\"/\"&RIGHT(B1,2)+5","v":"Forecast 2017/18"},"Forecast 2018/19","Forecast 2019/20","Forecast 2020/21","Forecast 2021/22","Forecast 2022/23","Forecast 2023/24","Forecast 2024/25",{"$f":"\"Forecast \"&J1+4&\"/\"&RIGHT(J1,2)+5","v":"Forecast 2025/26"},"Forecast 2026/27","Forecast 2027/28","Forecast 2028/29","Forecast 2029/30","Forecast 2030/31",null,null,null,null,null,null,null,null,null,null,"EPWP Incentive"]
[{"$f":"'Template names'!C20","v":"Next yr of long term forecast"},{"$f":"\"Forecast \"&B1+5&\"/\"&RIGHT(B1,2)+6","v":"Forecast 2018/19"},"Forecast 2019/20","Forecast 2020/21","Forecast 2021/22","Forecast 2022/23","Forecast 2023/24","Forecast 2024/25","Forecast 2025/26",{"$f":"\"Forecast \"&J1+5&\"/\"&RIGHT(J1,2)+6","v":"Forecast 2026/27"},"Forecast 2027/28","Forecast 2028/29","Forecast 2029/30","Forecast 2030/31","Forecast 2031/32"]
[{"$f":"'Template names'!C21","v":"Next yr of long term forecast"},{"$f":"\"Forecast \"&B1+6&\"/\"&RIGHT(B1,2)+7","v":"Forecast 2019/20"},"Forecast 2020/21","Forecast 2021/22","Forecast 2022/23","Forecast 2023/24","Forecast 2024/25","Forecast 2025/26","Forecast 2026/27",{"$f":"\"Forecast \"&J1+6&\"/\"&RIGHT(J1,2)+7","v":"Forecast 2027/28"},"Forecast 2028/29","Forecast 2029/30","Forecast 2030/31","Forecast 2031/32","Forecast 2032/33",null,null,null,null,null,null,null,null,null,null,"Asset Class","Asset sub-class old","Asset sub-class","IUDF","MTSF"]
[{"$f":"'Template names'!C22","v":"Next yr of long term forecast"},{"$f":"\"Forecast \"&B1+7&\"/\"&RIGHT(B1,2)+8","v":"Forecast 2020/21"},"Forecast 2021/22","Forecast 2022/23","Forecast 2023/24","Forecast 2024/25","Forecast 2025/26","Forecast 2026/27","Forecast 2027/28",{"$f":"\"Forecast \"&J1+7&\"/\"&RIGHT(J1,2)+8","v":"Forecast 2028/29"},"Forecast 2029/30","Forecast 2030/31","Forecast 2031/32","Forecast 2032/33","Forecast 2033/34"]
[{"$f":"'Template names'!C23","v":"Next yr of long term forecast"},{"$f":"\"Forecast \"&B1+8&\"/\"&RIGHT(B1,2)+9","v":"Forecast 2021/22"},"Forecast 2022/23","Forecast 2023/24","Forecast 2024/25","Forecast 2025/26","Forecast 2026/27","Forecast 2027/28","Forecast 2028/29",{"$f":"\"Forecast \"&J1+8&\"/\"&RIGHT(J1,2)+9","v":"Forecast 2029/30"},"Forecast 2030/31","Forecast 2031/32","Forecast 2032/33","Forecast 2033/34","Forecast 2034/35",null,null,null,null,null,null,null,null,null,null,"Roads Infrastructure","Roads, Pavements & Bridges","Roads","Spatial integration","Quality basic education"]
[{"$f":"'Template names'!C24","v":"Next yr of long term forecast"},{"$f":"\"Forecast \"&B1+9&\"/\"&RIGHT(B1,2)+10","v":"Forecast 2022/23"},"Forecast 2023/24","Forecast 2024/25","Forecast 2025/26","Forecast 2026/27","Forecast 2027/28","Forecast 2028/29","Forecast 2029/30",{"$f":"\"Forecast \"&J1+9&\"/\"&RIGHT(J1,2)+10","v":"Forecast 2030/31"},"Forecast 2031/32","Forecast 2032/33","Forecast 2033/34","Forecast 2034/35","Forecast 2035/36",null,null,null,null,null,null,null,null,null,null,"Storm water Infrastructure","Storm water","Road Structures","Inclusion and access","A long and healthy life for all South Africans"]
[{"$f":"'Template names'!C25","v":"Next yr of long term forecast"},{"$f":"\"Forecast \"&B1+10&\"/\"&RIGHT(B1,2)+11","v":"Forecast 2023/24"},"Forecast 2024/25","Forecast 2025/26","Forecast 2026/27","Forecast 2027/28","Forecast 2028/29","Forecast 2029/30","Forecast 2030/31",{"$f":"\"Forecast \"&J1+10&\"/\"&RIGHT(J1,2)+11","v":"Forecast 2031/32"},"Forecast 2032/33","Forecast 2033/34","Forecast 2034/35","Forecast 2035/36","Forecast 2036/37",null,null,null,null,null,null,null,null,null,null,"Electrical Infrastructure","Generation","Road Furniture","Growth","All people in South Africa are and feel safe"]
[{"$f":"'Template names'!C26","v":"Next yr of long term forecast"},{"$f":"\"Forecast \"&B1+11&\"/\"&RIGHT(B1,2)+12","v":"Forecast 2024/25"},"Forecast 2025/26","Forecast 2026/27","Forecast 2027/28","Forecast 2028/29","Forecast 2029/30","Forecast 2030/31","Forecast 2031/32",{"$f":"\"Forecast \"&J1+11&\"/\"&RIGHT(J1,2)+12","v":"Forecast 2032/33"},"Forecast 2033/34","Forecast 2034/35","Forecast 2035/36","Forecast 2036/37","Forecast 2037/38",null,null,null,null,null,null,null,null,null,null,"Water Supply Infrastructure","Transmission & Reticulation","Capital Spares","Governance","Decent employment through inclusive growth"]
[{"$f":"'Template names'!C27","v":"Next yr of long term forecast"},{"$f":"\"Forecast \"&B1+12&\"/\"&RIGHT(B1,2)+13","v":"Forecast 2025/26"},"Forecast 2026/27","Forecast 2027/28","Forecast 2028/29","Forecast 2029/30","Forecast 2030/31","Forecast 2031/32","Forecast 2032/33",{"$f":"\"Forecast \"&J1+12&\"/\"&RIGHT(J1,2)+13","v":"Forecast 2033/34"},"Forecast 2034/35","Forecast 2035/36","Forecast 2036/37","Forecast 2037/38","Forecast 2038/39",null,null,null,null,null,null,null,null,null,null,"Sanitation Infrastructure","Street Lighting","Drainage Collection",null,"A skilled and capable workforce to support an inclusive growth path"]
[{"$f":"'Template names'!C28","v":"Next yr of long term forecast"},{"$f":"\"Forecast \"&B1+13&\"/\"&RIGHT(B1,2)+14","v":"Forecast 2026/27"},"Forecast 2027/28","Forecast 2028/29","Forecast 2029/30","Forecast 2030/31","Forecast 2031/32","Forecast 2032/33","Forecast 2033/34",{"$f":"\"Forecast \"&J1+13&\"/\"&RIGHT(J1,2)+14","v":"Forecast 2034/35"},"Forecast 2035/36","Forecast 2036/37","Forecast 2037/38","Forecast 2038/39","Forecast 2039/40",null,null,null,null,null,null,null,null,null,null,"Solid Waste Infrastructure","Dams & Reservoirs","Storm water Conveyance",null,"An efficient, competitive and responsive economic infrastructure network"]
[{"$f":"'Template names'!C29","v":"Next yr of long term forecast"},{"$f":"\"Forecast \"&B1+14&\"/\"&RIGHT(B1,2)+15","v":"Forecast 2027/28"},"Forecast 2028/29","Forecast 2029/30","Forecast 2030/31","Forecast 2031/32","Forecast 2032/33","Forecast 2033/34","Forecast 2034/35",{"$f":"\"Forecast \"&J1+14&\"/\"&RIGHT(J1,2)+15","v":"Forecast 2035/36"},"Forecast 2036/37","Forecast 2037/38","Forecast 2038/39","Forecast 2039/40","Forecast 2040/41",null,null,null,null,null,null,null,null,null,null,"Rail Infrastructure","Water purification","Attenuation",null,"Vibrant, equitable, sustainable rural communities contributing towards food security for all"]
["Adjustments Budget",{"$f":"\"Annual target \" & B1&\"/\"&RIGHT(B1,2)+1","v":"Annual target 2013/14"},"Annual target 2014/15","Annual target 2015/16","Annual target 2016/17","Annual target 2017/18","Annual target 2018/19","Annual target 2019/20","Annual target 2020/21",{"$f":"\"Annual target \" & J1&\"/\"&RIGHT(J1,2)+1","v":"Annual target 2021/22"},"Annual target 2022/23","Annual target 2023/24","Annual target 2024/25","Annual target 2025/26","Annual target 2026/27",null,null,null,null,null,null,null,null,null,null,"Coastal Infrastructure","Reticulation","Power Plants",null,"Sustainable human settlements and improved quality of household life"]
[{"$f":"A23","v":"Adjustments Budget"},{"$f":"\"Revised target \"& B1&\"/\"&RIGHT(B1,2)+1","v":"Revised target 2013/14"},"Revised target 2014/15","Revised target 2015/16","Revised target 2016/17","Revised target 2017/18","Revised target 2018/19","Revised target 2019/20","Revised target 2020/21",{"$f":"\"Revised target \"& J1&\"/\"&RIGHT(J1,2)+1","v":"Revised target 2021/22"},"Revised target 2022/23","Revised target 2023/24","Revised target 2024/25","Revised target 2025/26","Revised target 2026/27",null,null,null,null,null,null,null,null,null,null,"Information and Communication Infrastructure","Sewerage purification","HV Substations",null,"Responsive, accountable, effective and efficient local government"]
["NOTE: This sheet should not be directly amended - select headings from sheet 'S'",null,null,null,null,null,null,null,null,null,null,null,null,null,null,null,null,null,null,null,null,null,null,null,null,"Community Facilities","Waste Management","HV Switching Station",null,"Protect and enhance our environmental assets and natural resources"]
[null,null,null,null,null,null,null,null,null,null,null,null,null,null,null,null,null,null,null,null,null,null,null,null,null,"Sport and Recreation Facilities","Transportation","HV Transmission Conductors",null,"Create a better South Africa and contribute to a better Africa and a better world"]
["Name link",129,null,null,null,null,null,null,null,null,null,null,null,null,null,null,null,null,null,null,null,null,null,null,null,"Heritage assets","Gas","MV Substations",null,"An efficient, effective and development-oriented public service"]
["Name of Muni",{"$f":"INDEX(B29:B307,B27,1)","v":"LIM331 Greater Giyani"},null,null,null,null,null,null,null,null,null,null,null,null,null,null,null,null,null,null,null,null,null,null,null,"Revenue Generating","Parks & gardens","MV Switching Stations",null,"A comprehensive, responsive and sustainable social protection system"]
[null,"Choose name from list","Set name on 'Instructions' sheet",null,null,null,null,null,null,null,null,null,null,null,null,null,null,null,null,null,null,null,null,null,null,"Non-revenue Generating","Sportsfields & stadia","MV Networks",null,"A diverse, socially cohesive society with a common national identity"]
[null,"BUF Buffalo City","EC EASTERN CAPE",null,null,null,null,null,null,null,null,null,null,null,null,null,null,null,null,null,null,null,null,null,null,"Operational Buildings","Swimming pools","LV Networks"]
[null,"NMA Nelson Mandela Bay","EC EASTERN CAPE",null,null,null,null,null,null,null,null,null,null,null,null,null,null,null,null,null,null,null,null,null,null,"Housing","Community halls","Capital Spares"]
[null,"EC101 Dr Beyers Naude","EC EASTERN CAPE",null,null,null,null,null,null,null,null,null,null,null,null,null,null,null,null,null,null,null,null,null,null,"Biological or Cultivated Assets","Libraries","Dams and Weirs"]
[null,"EC102 Blue Crane Route","EC EASTERN CAPE",null,null,null,null,null,null,null,null,null,null,null,null,null,null,null,null,null,null,null,null,null,null,"Servitudes","Recreational facilities","Boreholes"]
[null,"EC104 Makana","EC EASTERN CAPE",null,null,null,null,null,null,null,null,null,null,null,null,null,null,null,null,null,null,null,null,null,null,"Licences and Rights","Fire, safety & emergency","Reservoirs"]
[null,"EC105 Ndlambe","EC EASTERN CAPE",null,null,null,null,null,null,null,null,null,null,null,null,null,null,null,null,null,null,null,null,null,null,"Computer Equipment","Security and policing","Pump Stations"]
[null,"EC106 Sundays River Valley","EC EASTERN CAPE",null,null,null,null,null,null,null,null,null,null,null,null,null,null,null,null,null,null,null,null,null,null,"Furniture and Office Equipment","Buses","Water Treatment Works"]
[null,"EC108 Kouga","EC EASTERN CAPE",null,null,null,null,null,null,null,null,null,null,null,null,null,null,null,null,null,null,null,null,null,null,"Machinery and Equipment","Clinics","Bulk Mains"]
[null,"EC109 Kou-Kamma","EC EASTERN CAPE",null,null,null,null,null,null,null,null,null,null,null,null,null,null,null,null,null,null,null,null,null,null,"Transport Assets","Museums & Art Galleries","Distribution"]
[null,"DC10 Sarah Baartman","EC EASTERN CAPE",null,null,null,null,null,null,null,null,null,null,null,null,null,null,null,null,null,null,null,null,null,null,"Land","Cemeteries","Distribution Points"]
[null,"EC121 Mbhashe","EC EASTERN CAPE",null,null,null,null,null,null,null,null,null,null,null,null,null,null,null,null,null,null,null,null,null,null,"Zoo's, Marine and Non-biological Animals","Social rental housing","PRV Stations"]
[null,"EC122 Mnquma","EC EASTERN CAPE",null,null,null,null,null,null,null,null,null,null,null,null,null,null,null,null,null,null,null,null,null,null,null,"Buildings","Capital Spares"]
[null,"EC123 Great Kei","EC EASTERN CAPE",null,null,null,null,null,null,null,null,null,null,null,null,null,null,null,null,null,null,null,null,null,null,null,"Housing development","Pump Station"]
[null,"EC124 Amahlathi","EC EASTERN CAPE",null,null,null,null,null,null,null,null,null,null,null,null,null,null,null,null,null,null,null,null,null,null,null,"General vehicles","Reticulation"]
[null,"EC126 Ngqushwa","EC EASTERN CAPE",null,null,null,null,null,null,null,null,null,null,null,null,null,null,null,null,null,null,null,null,null,null,null,"Specialised vehicles - Refuse","Waste Water Treatment Works"]
[null,"EC129 Raymond Mhlaba","EC EASTERN CAPE",null,null,null,null,null,null,null,null,null,null,null,null,null,null,null,null,null,null,null,null,null,null,null,"Specialised vehicles - Fire","Outfall Sewers"]
[null,"DC12 Amathole","EC EASTERN CAPE",null,null,null,null,null,null,null,null,null,null,null,null,null,null,null,null,null,null,null,null,null,null,null,"Specialised vehicles - Conservancy","Toilet Facilities"]
[null,"EC131 Inxuba Yethemba","EC EASTERN CAPE",null,null,null,null,null,null,null,null,null,null,null,null,null,null,null,null,null,null,null,null,null,null,null,"Specialised vehicles - Ambulances","Capital Spares"]
[null,"EC135 Intsika Yethu","EC EASTERN CAPE",null,null,null,null,null,null,null,null,null,null,null,null,null,null,null,null,null,null,null,null,null,null,null,"Plant & equipment","Landfill Sites"]
[null,"EC136 Emalahleni (Ec)","EC EASTERN CAPE",null,null,null,null,null,null,null,null,null,null,null,null,null,null,null,null,null,null,null,null,null,null,null,"Computers - hardware/equipment","Waste Transfer Stations"]
[null,"EC137 Engcobo","EC EASTERN CAPE",null,null,null,null,null,null,null,null,null,null,null,null,null,null,null,null,null,null,null,null,null,null,null,"Furniture and other office equipment","Waste Processing Facilities"]
[null,"EC138 Sakhisizwe","EC EASTERN CAPE",null,null,null,null,null,null,null,null,null,null,null,null,null,null,null,null,null,null,null,null,null,null,null,"Abattoirs","Waste Drop-off Points"]
[null,"EC139 Enoch Mgijima","EC EASTERN CAPE",null,null,null,null,null,null,null,null,null,null,null,null,null,null,null,null,null,null,null,null,null,null,null,"Markets","Waste Separation Facilities"]
[null,"DC13 Chris Hani","EC EASTERN CAPE",null,null,null,null,null,null,null,null,null,null,null,null,null,null,null,null,null,null,null,null,null,null,null,"Civic Land and Buildings","Electricity Generation Facilities"]
[null,"EC141 Elundini","EC EASTERN CAPE",null,null,null,null,null,null,null,null,null,null,null,null,null,null,null,null,null,null,null,null,null,null,null,"Other Buildings","Capital Spares"]
[null,"EC142 Senqu","EC EASTERN CAPE",null,null,null,null,null,null,null,null,null,null,null,null,null,null,null,null,null,null,null,null,null,null,null,"Other Land","Rail Lines"]
[null,"EC145 Walter Sisulu","EC EASTERN CAPE",null,null,null,null,null,null,null,null,null,null,null,null,null,null,null,null,null,null,null,null,null,null,null,"Surplus Assets - (Investment or Inventory)","Rail Structures"]
[null,"DC14 Joe Gqabi","EC EASTERN CAPE",null,null,null,null,null,null,null,null,null,null,null,null,null,null,null,null,null,null,null,null,null,null,null,"Computers - software & programming","Rail Furniture"]
[null,"EC153 Ngquza Hills","EC EASTERN CAPE",null,null,null,null,null,null,null,null,null,null,null,null,null,null,null,null,null,null,null,null,null,null,null,"Other","Drainage Collection"]
[null,"EC154 Port St Johns","EC EASTERN CAPE",null,null,null,null,null,null,null,null,null,null,null,null,null,null,null,null,null,null,null,null,null,null,null,null,"Storm water Conveyance"]
[null,"EC155 Nyandeni","EC EASTERN CAPE",null,null,null,null,null,null,null,null,null,null,null,null,null,null,null,null,null,null,null,null,null,null,"SA16 - Investments",null,"Attenuation"]
[null,"EC156 Mhlontlo","EC EASTERN CAPE",null,null,null,null,null,null,null,null,null,null,null,null,null,null,null,null,null,null,null,null,null,null,"Security","Interest rate","MV Substations"]
[null,"EC157 King Sabata Dalindyebo","EC EASTERN CAPE",null,null,null,null,null,null,null,null,null,null,null,null,null,null,null,null,null,null,null,null,null,null,"Yes","Fixed","LV Networks"]
[null,"DC15 O .R. Tambo","EC EASTERN CAPE",null,null,null,null,null,null,null,null,null,null,null,null,null,null,null,null,null,null,null,null,null,null,"No","Variable","Capital Spares"]
[null,"EC441 Matatiele","EC EASTERN CAPE",null,null,null,null,null,null,null,null,null,null,null,null,null,null,null,null,null,null,null,null,null,null,null,null,"Sand Pumps"]
[null,"EC442 Umzimvubu","EC EASTERN CAPE",null,null,null,null,null,null,null,null,null,null,null,null,null,null,null,null,null,null,null,null,null,null,null,null,"Piers"]
[null,"EC443 Winnie Madikizela Mandela","EC EASTERN CAPE",null,null,null,null,null,null,null,null,null,null,null,null,null,null,null,null,null,null,null,null,null,null,"SA36, SA37 - Capital projects",null,"Revetments"]
[null,"EC444 Ntabankulu","EC EASTERN CAPE",null,null,null,null,null,null,null,null,null,null,null,null,null,null,null,null,null,null,null,null,null,null,"Yes",null,"Promenades"]
[null,"DC44 Alfred Nzo","EC EASTERN CAPE",null,null,null,null,null,null,null,null,null,null,null,null,null,null,null,null,null,null,null,null,null,null,"No",null,"Capital Spares"]
[null,"MAN Mangaung","FS FREE STATE",null,null,null,null,null,null,null,null,null,null,null,null,null,null,null,null,null,null,null,null,null,null,null,null,"Data Centres"]
[null,"FS161 Letsemeng","FS FREE STATE",null,null,null,null,null,null,null,null,null,null,null,null,null,null,null,null,null,null,null,null,null,null,null,null,"Core Layers"]
[null,"FS162 Kopanong","FS FREE STATE",null,null,null,null,null,null,null,null,null,null,null,null,null,null,null,null,null,null,null,null,null,null,null,null,"Distribution Layers"]
[null,"FS163 Mohokare","FS FREE STATE",null,null,null,null,null,null,null,null,null,null,null,null,null,null,null,null,null,null,null,null,null,null,null,null,"Capital Spares"]
[null,"DC16 Xhariep","FS FREE STATE",null,null,null,null,null,null,null,null,null,null,null,null,null,null,null,null,null,null,null,null,null,null,null,null,"Halls"]
[null,"FS181 Masilonyana","FS FREE STATE",null,null,null,null,null,null,null,null,null,null,null,null,null,null,null,null,null,null,null,null,null,null,null,null,"Centres"]
[null,"FS182 Tokologo","FS FREE STATE",null,null,null,null,null,null,null,null,null,null,null,null,null,null,null,null,null,null,null,null,null,null,null,null,"Crèches"]
[null,"FS183 Tswelopele","FS FREE STATE",null,null,null,null,null,null,null,null,null,null,null,null,null,null,null,null,null,null,null,null,null,null,null,null,"Clinics/Care Centres"]
[null,"FS184 Matjhabeng","FS FREE STATE",null,null,null,null,null,null,null,null,null,null,null,null,null,null,null,null,null,null,null,null,null,null,null,null,"Fire/Ambulance Stations"]
[null,"FS185 Nala","FS FREE STATE",null,null,null,null,null,null,null,null,null,null,null,null,null,null,null,null,null,null,null,null,null,null,null,null,"Testing Stations"]
[null,"DC18 Lejweleputswa","FS FREE STATE",null,null,null,null,null,null,null,null,null,null,null,null,null,null,null,null,null,null,null,null,null,null,null,null,"Museums"]
[null,"FS191 Setsoto","FS FREE STATE",null,null,null,null,null,null,null,null,null,null,null,null,null,null,null,null,null,null,null,null,null,null,null,null,"Galleries"]
[null,"FS192 Dihlabeng","FS FREE STATE",null,null,null,null,null,null,null,null,null,null,null,null,null,null,null,null,null,null,null,null,null,null,null,null,"Theatres"]
[null,"FS193 Nketoana","FS FREE STATE",null,null,null,null,null,null,null,null,null,null,null,null,null,null,null,null,null,null,null,null,null,null,null,null,"Libraries"]
[null,"FS194 Maluti-a-Phofung","FS FREE STATE",null,null,null,null,null,null,null,null,null,null,null,null,null,null,null,null,null,null,null,null,null,null,null,null,"Cemeteries/Crematoria"]
[null,"FS195 Phumelela","FS FREE STATE",null,null,null,null,null,null,null,null,null,null,null,null,null,null,null,null,null,null,null,null,null,null,null,null,"Police"]
[null,"FS196 Mantsopa","FS FREE STATE",null,null,null,null,null,null,null,null,null,null,null,null,null,null,null,null,null,null,null,null,null,null,null,null,"Purls"]
[null,"DC19 Thabo Mofutsanyana","FS FREE STATE",null,null,null,null,null,null,null,null,null,null,null,null,null,null,null,null,null,null,null,null,null,null,null,null,"Public Open Space"]
[null,"FS201 Moqhaka","FS FREE STATE",null,null,null,null,null,null,null,null,null,null,null,null,null,null,null,null,null,null,null,null,null,null,null,null,"Nature Reserves"]
[null,"FS203 Ngwathe","FS FREE STATE",null,null,null,null,null,null,null,null,null,null,null,null,null,null,null,null,null,null,null,null,null,null,null,null,"Public Ablution Facilities"]
[null,"FS204 Metsimaholo","FS FREE STATE",null,null,null,null,null,null,null,null,null,null,null,null,null,null,null,null,null,null,null,null,null,null,null,null,"Markets"]
[null,"FS205 Mafube","FS FREE STATE",null,null,null,null,null,null,null,null,null,null,null,null,null,null,null,null,null,null,null,null,null,null,null,null,"Stalls"]
[null,"DC20 Fezile Dabi","FS FREE STATE",null,null,null,null,null,null,null,null,null,null,null,null,null,null,null,null,null,null,null,null,null,null,null,null,"Abattoirs"]
[null,"EKU City of Ekurhuleni","GT GAUTENG",null,null,null,null,null,null,null,null,null,null,null,null,null,null,null,null,null,null,null,null,null,null,null,null,"Airports"]
[null,"JHB City Of Johannesburg","GT GAUTENG",null,null,null,null,null,null,null,null,null,null,null,null,null,null,null,null,null,null,null,null,null,null,null,null,"Taxi Ranks/Bus Terminals"]
[null,"TSH City Of Tshwane","GT GAUTENG",null,null,null,null,null,null,null,null,null,null,null,null,null,null,null,null,null,null,null,null,null,null,null,null,"Capital Spares"]
[null,"GT421 Emfuleni","GT GAUTENG",null,null,null,null,null,null,null,null,null,null,null,null,null,null,null,null,null,null,null,null,null,null,null,null,"Indoor Facilities"]
[null,"GT422 Midvaal","GT GAUTENG",null,null,null,null,null,null,null,null,null,null,null,null,null,null,null,null,null,null,null,null,null,null,null,null,"Outdoor Facilities"]
[null,"GT423 Lesedi","GT GAUTENG",null,null,null,null,null,null,null,null,null,null,null,null,null,null,null,null,null,null,null,null,null,null,null,null,"Capital Spares"]
[null,"DC42 Sedibeng","GT GAUTENG",null,null,null,null,null,null,null,null,null,null,null,null,null,null,null,null,null,null,null,null,null,null,null,null,"Monuments"]
[null,"GT481 Mogale City","GT GAUTENG",null,null,null,null,null,null,null,null,null,null,null,null,null,null,null,null,null,null,null,null,null,null,null,null,"Historic Buildings"]
[null,"GT484 Merafong City","GT GAUTENG",null,null,null,null,null,null,null,null,null,null,null,null,null,null,null,null,null,null,null,null,null,null,null,null,"Works of Art"]
[null,"GT485 Rand West City","GT GAUTENG",null,null,null,null,null,null,null,null,null,null,null,null,null,null,null,null,null,null,null,null,null,null,null,null,"Conservation Areas"]
[null,"DC48 West Rand","GT GAUTENG",null,null,null,null,null,null,null,null,null,null,null,null,null,null,null,null,null,null,null,null,null,null,null,null,"Other Heritage"]
[null,"ETH eThekwini","KZN KWAZULU-NATAL",null,null,null,null,null,null,null,null,null,null,null,null,null,null,null,null,null,null,null,null,null,null,null,null,"Improved Property"]
[null,"KZN212 Umdoni","KZN KWAZULU-NATAL",null,null,null,null,null,null,null,null,null,null,null,null,null,null,null,null,null,null,null,null,null,null,null,null,"Unimproved Property"]
[null,"KZN213 Umzumbe","KZN KWAZULU-NATAL",null,null,null,null,null,null,null,null,null,null,null,null,null,null,null,null,null,null,null,null,null,null,null,null,"Municipal Offices"]
[null,"KZN214 uMuziwabantu","KZN KWAZULU-NATAL",null,null,null,null,null,null,null,null,null,null,null,null,null,null,null,null,null,null,null,null,null,null,null,null,"Pay/Enquiry Points"]
[null,"KZN216 Ray Nkonyeni","KZN KWAZULU-NATAL",null,null,null,null,null,null,null,null,null,null,null,null,null,null,null,null,null,null,null,null,null,null,null,null,"Building Plan Offices"]
[null,"DC21 Ugu","KZN KWAZULU-NATAL",null,null,null,null,null,null,null,null,null,null,null,null,null,null,null,null,null,null,null,null,null,null,null,null,"Workshops"]
[null,"KZN221 uMshwathi","KZN KWAZULU-NATAL",null,null,null,null,null,null,null,null,null,null,null,null,null,null,null,null,null,null,null,null,null,null,null,null,"Yards"]
[null,"KZN222 uMngeni","KZN KWAZULU-NATAL",null,null,null,null,null,null,null,null,null,null,null,null,null,null,null,null,null,null,null,null,null,null,null,null,"Stores"]
[null,"KZN223 Mpofana","KZN KWAZULU-NATAL",null,null,null,null,null,null,null,null,null,null,null,null,null,null,null,null,null,null,null,null,null,null,null,null,"Laboratories"]
[null,"KZN224 Impendle","KZN KWAZULU-NATAL",null,null,null,null,null,null,null,null,null,null,null,null,null,null,null,null,null,null,null,null,null,null,null,null,"Training Centres"]
[null,"KZN225 Msunduzi","KZN KWAZULU-NATAL",null,null,null,null,null,null,null,null,null,null,null,null,null,null,null,null,null,null,null,null,null,null,null,null,"Manufacturing Plant"]
[null,"KZN226 Mkhambathini","KZN KWAZULU-NATAL",null,null,null,null,null,null,null,null,null,null,null,null,null,null,null,null,null,null,null,null,null,null,null,null,"Depots"]
[null,"KZN227 Richmond","KZN KWAZULU-NATAL",null,null,null,null,null,null,null,null,null,null,null,null,null,null,null,null,null,null,null,null,null,null,null,null,"Capital Spares"]
[null,"DC22 uMgungundlovu","KZN KWAZULU-NATAL",null,null,null,null,null,null,null,null,null,null,null,null,null,null,null,null,null,null,null,null,null,null,null,null,"Staff Housing"]
[null,"KZN235 Okhahlamba","KZN KWAZULU-NATAL",null,null,null,null,null,null,null,null,null,null,null,null,null,null,null,null,null,null,null,null,null,null,null,null,"Social Housing"]
[null,"KZN237 Inkosi Langalibalele","KZN KWAZULU-NATAL",null,null,null,null,null,null,null,null,null,null,null,null,null,null,null,null,null,null,null,null,null,null,null,null,"Capital Spares"]
[null,"KZN238 Alfred Duma","KZN KWAZULU-NATAL",null,null,null,null,null,null,null,null,null,null,null,null,null,null,null,null,null,null,null,null,null,null,null,null,"Water Rights"]
[null,"DC23 Uthukela","KZN KWAZULU-NATAL",null,null,null,null,null,null,null,null,null,null,null,null,null,null,null,null,null,null,null,null,null,null,null,null,"Effluent Licenses"]
[null,"KZN241 Endumeni","KZN KWAZULU-NATAL",null,null,null,null,null,null,null,null,null,null,null,null,null,null,null,null,null,null,null,null,null,null,null,null,"Solid Waste Licenses"]
[null,"KZN242 Nquthu","KZN KWAZULU-NATAL",null,null,null,null,null,null,null,null,null,null,null,null,null,null,null,null,null,null,null,null,null,null,null,null,"Computer Software and Applications"]
[null,"KZN244 Msinga","KZN KWAZULU-NATAL",null,null,null,null,null,null,null,null,null,null,null,null,null,null,null,null,null,null,null,null,null,null,null,null,"Load Settlement Software Applications"]
[null,"KZN245 Umvoti","KZN KWAZULU-NATAL",null,null,null,null,null,null,null,null,null,null,null,null,null,null,null,null,null,null,null,null,null,null,null,null,"Unspecified"]
[null,"DC24 Umzinyathi","KZN KWAZULU-NATAL"]
[null,"KZN252 Newcastle","KZN KWAZULU-NATAL"]
[null,"KZN253 Emadlangeni","KZN KWAZULU-NATAL"]
[null,"KZN254 Dannhauser","KZN KWAZULU-NATAL"]
[null,"DC25 Amajuba","KZN KWAZULU-NATAL"]
[null,"KZN261 eDumbe","KZN KWAZULU-NATAL"]
[null,"KZN262 uPhongolo","KZN KWAZULU-NATAL"]
[null,"KZN263 Abaqulusi","KZN KWAZULU-NATAL"]
[null,"KZN265 Nongoma","KZN KWAZULU-NATAL"]
[null,"KZN266 Ulundi","KZN KWAZULU-NATAL"]
[null,"DC26 Zululand","KZN KWAZULU-NATAL"]
[null,"KZN271 Umhlabuyalingana","KZN KWAZULU-NATAL"]
[null,"KZN272 Jozini","KZN KWAZULU-NATAL"]
[null,"KZN275 Mtubatuba","KZN KWAZULU-NATAL"]
[null,"KZN276 Hlabisa Big Five","KZN KWAZULU-NATAL"]
[null,"DC27 Umkhanyakude","KZN KWAZULU-NATAL"]
[null,"KZN281 Mfolozi","KZN KWAZULU-NATAL"]
[null,"KZN282 uMhlathuze","KZN KWAZULU-NATAL"]
[null,"KZN284 uMlalazi","KZN KWAZULU-NATAL"]
[null,"KZN285 Mthonjaneni","KZN KWAZULU-NATAL"]
[null,"KZN286 Nkandla","KZN KWAZULU-NATAL"]
[null,"DC28 King Cetshwayo","KZN KWAZULU-NATAL"]
[null,"KZN291 Mandeni","KZN KWAZULU-NATAL"]
[null,"KZN292 KwaDukuza","KZN KWAZULU-NATAL"]
[null,"KZN293 Ndwedwe","KZN KWAZULU-NATAL"]
[null,"KZN294 Maphumulo","KZN KWAZULU-NATAL"]
[null,"DC29 iLembe","KZN KWAZULU-NATAL"]
[null,"KZN433 Greater Kokstad","KZN KWAZULU-NATAL"]
[null,"KZN434 Ubuhlebezwe","KZN KWAZULU-NATAL"]
[null,"KZN435 Umzimkhulu","KZN KWAZULU-NATAL"]
[null,"KZN436 Dr Nkosazana Dlamini Zuma","KZN KWAZULU-NATAL"]
[null,"DC43 Harry Gwala","KZN KWAZULU-NATAL"]
[null,"LIM331 Greater Giyani","LIM LIMPOPO"]
[null,"LIM332 Greater Letaba","LIM LIMPOPO"]
[null,"LIM333 Greater Tzaneen","LIM LIMPOPO"]
[null,"LIM334 Ba-Phalaborwa","LIM LIMPOPO"]
[null,"LIM335 Maruleng","LIM LIMPOPO"]
[null,"DC33 Mopani","LIM LIMPOPO"]
[null,"LIM341 Musina","LIM LIMPOPO"]
[null,"LIM343 Thulamela","LIM LIMPOPO"]
[null,"LIM344 Makhado","LIM LIMPOPO"]
[null,"LIM345 Collins Chabane","LIM LIMPOPO"]
[null,"DC34 Vhembe","LIM LIMPOPO"]
[null,"LIM351 Blouberg","LIM LIMPOPO"]
[null,"LIM353 Molemole","LIM LIMPOPO"]
[null,"LIM354 Polokwane","LIM LIMPOPO"]
[null,"LIM355 Lepelle-Nkumpi","LIM LIMPOPO"]
[null,"DC35 Capricorn","LIM LIMPOPO"]
[null,"LIM361 Thabazimbi","LIM LIMPOPO"]
[null,"LIM362 Lephalale","LIM LIMPOPO"]
[null,"LIM366 Bela Bela","LIM LIMPOPO"]
[null,"LIM367 Mogalakwena","LIM LIMPOPO"]
[null,"LIM368 Modimolle-Mookgopong","LIM LIMPOPO"]
[null,"DC36 Waterberg","LIM LIMPOPO"]
[null,"LIM471 Ephraim Mogale","LIM LIMPOPO"]
[null,"LIM472 Elias Motsoaledi","LIM LIMPOPO"]
[null,"LIM473 Makhuduthamaga","LIM LIMPOPO"]
[null,"LIM476 Tubatse Fetakgomo","LIM LIMPOPO"]
[null,"DC47 Sekhukhune","LIM LIMPOPO"]
[null,"MP301 Albert Luthuli","MP MPUMALANGA"]
[null,"MP302 Msukaligwa","MP MPUMALANGA"]
[null,"MP303 Mkhondo","MP MPUMALANGA"]
[null,"MP304 Pixley Ka Seme (MP)","MP MPUMALANGA"]
[null,"MP305 Lekwa","MP MPUMALANGA"]
[null,"MP306 Dipaleseng","MP MPUMALANGA"]
[null,"MP307 Govan Mbeki","MP MPUMALANGA"]
[null,"DC30 Gert Sibande","MP MPUMALANGA"]
[null,"MP311 Victor Khanye","MP MPUMALANGA"]
[null,"MP312 Emalahleni (Mp)","MP MPUMALANGA"]
[null,"MP313 Steve Tshwete","MP MPUMALANGA"]
[null,"MP314 Emakhazeni","MP MPUMALANGA"]
[null,"MP315 Thembisile Hani","MP MPUMALANGA"]
[null,"MP316 Dr J.S. Moroka","MP MPUMALANGA"]
[null,"DC31 Nkangala","MP MPUMALANGA"]
[null,"MP321 Thaba Chweu","MP MPUMALANGA"]
[null,"MP324 Nkomazi","MP MPUMALANGA"]
[null,"MP325 Bushbuckridge","MP MPUMALANGA"]
[null,"MP326 City of Mbombela","MP MPUMALANGA"]
[null,"DC32 Ehlanzeni","MP MPUMALANGA"]
[null,"NC451 Joe Morolong","NC NORTHERN CAPE"]
[null,"NC452 Ga-Segonyana","NC NORTHERN CAPE"]
[null,"NC453 Gamagara","NC NORTHERN CAPE"]
[null,"DC45 John Taolo Gaetsewe","NC NORTHERN CAPE"]
[null,"NC061 Richtersveld","NC NORTHERN CAPE"]
[null,"NC062 Nama Khoi","NC NORTHERN CAPE"]
[null,"NC064 Kamiesberg","NC NORTHERN CAPE"]
[null,"NC065 Hantam","NC NORTHERN CAPE"]
[null,"NC066 Karoo Hoogland","NC NORTHERN CAPE"]
[null,"NC067 Khai-Ma","NC NORTHERN CAPE"]
[null,"DC6 Namakwa","NC NORTHERN CAPE"]
[null,"NC071 Ubuntu","NC NORTHERN CAPE"]
[null,"NC072 Umsobomvu","NC NORTHERN CAPE"]
[null,"NC073 Emthanjeni","NC NORTHERN CAPE"]
[null,"NC074 Kareeberg","NC NORTHERN CAPE"]
[null,"NC075 Renosterberg","NC NORTHERN CAPE"]
[null,"NC076 Thembelihle","NC NORTHERN CAPE"]
[null,"NC077 Siyathemba","NC NORTHERN CAPE"]
[null,"NC078 Siyancuma","NC NORTHERN CAPE"]
[null,"DC7 Pixley Ka Seme (Nc)","NC NORTHERN CAPE"]
[null,"NC082 !Kai! Garib","NC NORTHERN CAPE"]
[null,"NC084 !Kheis","NC NORTHERN CAPE"]
[null,"NC085 Tsantsabane","NC NORTHERN CAPE"]
[null,"NC086 Kgatelopele","NC NORTHERN CAPE"]
[null,"NC087 Dawid Kruiper","NC NORTHERN CAPE"]
[null,"DC8 Z F Mgcawu","NC NORTHERN CAPE"]
[null,"NC091 Sol Plaatje","NC NORTHERN CAPE"]
[null,"NC092 Dikgatlong","NC NORTHERN CAPE"]
[null,"NC093 Magareng","NC NORTHERN CAPE"]
[null,"NC094 Phokwane","NC NORTHERN CAPE"]
[null,"DC9 Frances Baard","NC NORTHERN CAPE"]
[null,"NW371 Moretele","NW NORTH WEST"]
[null,"NW372 Madibeng","NW NORTH WEST"]
[null,"NW373 Rustenburg","NW NORTH WEST"]
[null,"NW374 Kgetlengrivier","NW NORTH WEST"]
[null,"NW375 Moses Kotane","NW NORTH WEST"]
[null,"DC37 Bojanala Platinum","NW NORTH WEST"]
[null,"NW381 Ratlou","NW NORTH WEST"]
[null,"NW382 Tswaing","NW NORTH WEST"]
[null,"NW383 Mafikeng","NW NORTH WEST"]
[null,"NW384 Ditsobotla","NW NORTH WEST"]
[null,"NW385 Ramotshere Moiloa","NW NORTH WEST"]
[null,"DC38 Ngaka Modiri Molema","NW NORTH WEST"]
[null,"NW392 Naledi (Nw)","NW NORTH WEST"]
[null,"NW393 Mamusa","NW NORTH WEST"]
[null,"NW394 Greater Taung","NW NORTH WEST"]
[null,"NW396 Lekwa-Teemane","NW NORTH WEST"]
[null,"NW397 Kagisano-Molopo","NW NORTH WEST"]
[null,"DC39 Dr Ruth Segomotsi Mompati","NW NORTH WEST"]
[null,"NW403 City Of Matlosana","NW NORTH WEST"]
[null,"NW404 Maquassi Hills","NW NORTH WEST"]
[null,"NW405 J B Marks","NW NORTH WEST"]
[null,"DC40 Dr Kenneth Kaunda","NW NORTH WEST"]
[null,"CPT Cape Town","WC WESTERN CAPE"]
[null,"WC011 Matzikama","WC WESTERN CAPE"]
[null,"WC012 Cederberg","WC WESTERN CAPE"]
[null,"WC013 Bergrivier","WC WESTERN CAPE"]
[null,"WC014 Saldanha Bay","WC WESTERN CAPE"]
[null,"WC015 Swartland","WC WESTERN CAPE"]
[null,"DC1 West Coast","WC WESTERN CAPE"]
[null,"WC022 Witzenberg","WC WESTERN CAPE"]
[null,"WC023 Drakenstein","WC WESTERN CAPE"]
[null,"WC024 Stellenbosch","WC WESTERN CAPE"]
[null,"WC025 Breede Valley","WC WESTERN CAPE"]
[null,"WC026 Langeberg","WC WESTERN CAPE"]
[null,"DC2 Cape Winelands DM","WC WESTERN CAPE"]
[null,"WC031 Theewaterskloof","WC WESTERN CAPE"]
[null,"WC032 Overstrand","WC WESTERN CAPE"]
[null,"WC033 Cape Agulhas","WC WESTERN CAPE"]
[null,"WC034 Swellendam","WC WESTERN CAPE"]
[null,"DC3 Overberg","WC WESTERN CAPE"]
[null,"WC041 Kannaland","WC WESTERN CAPE"]
[null,"WC042 Hessequa","WC WESTERN CAPE"]
[null,"WC043 Mossel Bay","WC WESTERN CAPE"]
[null,"WC044 George","WC WESTERN CAPE"]
[null,"WC045 Oudtshoorn","WC WESTERN CAPE"]
[null,"WC047 Bitou","WC WESTERN CAPE"]
[null,"WC048 Knysna","WC WESTERN CAPE"]
[null,"DC4 Garden Route","WC WESTERN CAPE"]
[null,"WC051 Laingsburg","WC WESTERN CAPE"]
[null,"WC052 Prince Albert","WC WESTERN CAPE"]
[null,"WC053 Beaufort West","WC WESTERN CAPE"]
[null,"DC5 Central Karoo","WC WESTERN CAPE"]
[]
[]
[]
[]
[]
[]
[]
[]
[]
[]
[]
[]
[]
[]
[]
[]
[]
[]
[]
[]
[]
[null,{"$f":"COUNTA(B30:B307)","v":257}]

{"sheet":"START","index":26,"n_rows":0,"n_cols":0,"rows_kept":0,"cut":false,"hidden":false,"merged":[]}

{"sheet":"Instructions","index":27,"n_rows":77,"n_cols":24,"rows_kept":77,"cut":false,"hidden":false,"merged":[]}
[]
[null,null,null,2020]
[]
[null,null,null,null,null,null,null,null,null,null,null,null,null,null,null,null,null,null,null,null,null,null,null,"Yes"]
[null,null,null,null,null,null,null,null,null,null,null,null,null,null,null,null,null,null,null,null,null,null,null,"No"]
[]
[null,null,null,null,null,null,null,null,null,null,null,null,null,null,null,null,null,null,null,null,null,null,"Type of Entities Range:"]
[null,null,null,null,null,null,null,null,null,null,null,null,null,null,null,null,null,null,null,null,null,null,null,"Parent Municipality"]
[null,null,null,null,null,null,null,null,null,null,null,null,null,null,null,null,null,null,null,null,null,null,null,"Consolidated Information"]
[]
[]
[]
[]
[null,null,null,null,null,"START"]
[null,null,null,null,null,"Instructions"]
[null,null,null,null,null,"Template names"]
[null,null,null,null,null,"Lookup and lists",null,null,null,null,null,null,null,null,null,null,null,null,null,null,null,null,"MTREF Range:",2013]
[null,null,null,null,null,"Org structure",null,null,null,null,null,null,null,null,null,null,null,null,null,null,null,null,null,2014]
[null,null,null,null,null,"Contacts",null,null,null,null,null,null,null,null,null,null,null,null,null,null,null,null,null,2015]
[null,null,null,null,null,"A1-Sum",null,null,null,null,null,null,null,null,null,null,null,null,null,null,null,null,null,2016]
[null,null,null,null,null,"A2-FinPerf SC",null,null,null,null,null,null,null,null,null,null,null,null,null,null,null,null,null,2017]
[null,null,null,null,null,"A2A",null,null,null,null,null,null,null,null,null,null,null,null,null,null,null,null,null,2018]
[null,null,null,null,null,"A3-FinPerf V",null,null,null,null,null,null,null,null,null,null,null,null,null,null,null,null,null,2019]
[null,null,null,null,null,"A3A",null,null,null,null,null,null,null,null,null,null,null,null,null,null,null,null,null,2020]
[null,null,null,null,null,"A4-FinPerf RE",null,null,null,null,null,null,null,null,null,null,null,null,null,null,null,null,null,2021]
[null,null,null,null,null,"A5-Capex",null,null,null,null,null,null,null,null,null,null,null,null,null,null,null,null,null,2022]
[null,null,null,null,null,"A5A",null,null,null,null,null,null,null,null,null,null,null,null,null,null,null,null,null,2023]
[null,null,null,null,null,"A6-FinPos",null,null,null,null,null,null,null,null,null,null,null,null,null,null,null,null,null,2024]
[null,null,null,null,null,"A7-CFlow",null,null,null,null,null,null,null,null,null,null,null,null,null,null,null,null,null,2025]
[null,null,null,null,null,"A8-ResRecon",null,null,null,null,null,null,null,null,null,null,null,null,null,null,null,null,null,2026]
[null,null,null,null,null,"A9-Asset",null,null,null,null,null,null,null,null,null,null,null,null,null,null,null,null,null,2027]
[null,null,null,null,null,"A10-SerDel"]
[null,null,null,null,null,"SA1",null,null,null,null,null,null,null,null,null,null,null,null,null,null,null,null,"MTREF Linked:",11]
[null,null,null,null,null,"SA2",null,null,null,null,null,null,null,null,null,null,null,null,null,null,null,null,"MTREF:",{"$f":"INDEX(X17:X31,X33,1)","v":2023}]
[null,null,null,null,null,"SA3"]
[null,null,null,null,null,"SA4",null,null,null,null,null,null,null,null,null,null,null,null,null,null,null,null,"Fin Year:",{"$f":"MTREF&\"/\"&RIGHT(MTREF,2)+1","v":"2023/24"}]
[null,null,null,null,null,"SA5"]
[null,null,null,null,null,"SA6"]
[null,null,null,null,null,"SA7"]
[null,null,null,null,null,"SA8"]
[null,null,null,null,null,"SA9"]
[null,null,null,null,null,"SA10"]
[null,null,null,null,null,"SA11"]
[null,null,null,null,null,"SA12a"]
[null,null,null,null,null,"SA12b"]
[null,null,null,null,null,"SA13a"]
[null,null,null,null,null,"SA13b"]
[null,null,null,null,null,"SA14"]
[null,null,null,null,null,"SA15"]
[null,null,null,null,null,"SA16"]
[null,null,null,null,null,"SA17"]
[null,null,null,null,null,"SA18"]
[null,null,null,null,null,"SA19"]
[null,null,null,null,null,"SA20"]
[null,null,null,null,null,"SA21"]
[null,null,null,null,null,"SA22"]
[null,null,null,null,null,"SA23"]
[null,null,null,null,null,"SA24"]
[null,null,null,null,null,"SA25"]
[null,null,null,null,null,"SA26"]
[null,null,null,null,null,"SA27"]
[null,null,null,null,null,"SA28"]
[null,null,null,null,null,"SA29"]
[null,null,null,null,null,"SA30"]
[null,null,null,null,null,"SA31"]
[null,null,null,null,null,"SA32"]
[null,null,null,null,null,"SA33"]
[null,null,null,null,null,"SA34a"]
[null,null,null,null,null,"SA34b"]
[null,null,null,null,null,"SA34c"]
[null,null,null,null,null,"SA34d"]
[null,null,null,null,null,"SA34e"]
[null,null,null,null,null,"SA35"]
[null,null,null,null,null,"SA36"]
[null,null,null,null,null,"SA37"]
[null,null,null,null,null,"SA38"]
[null,null,null,null,null,"LGDB_EXPORT"]

{"sheet":"Org structure","index":28,"n_rows":166,"n_cols":8,"rows_kept":166,"cut":false,"hidden":false,"merged":[]}
["Organisational Structure Votes",null,"Organisational Structure Sub-Votes",null,"Display Sub-Votes"]
[{"$f":"B2&\" - \"&C2","v":"Vote 1 -  Energy Sources"},"Vote 1",{"$f":"IFERROR(VLOOKUP($H2,MainMunicipalVote,4,0),\"[NAME OF VOTE \"&H2&\"]\")","v":" Energy Sources"},null,null,null,null,1]
[{"$f":"B13&\" - \"& C13","v":"Vote 2 - Community and Social Services"},1.1000000000000001,{"$f":"IFERROR(VLOOKUP($H3,SubMunicipalVote,2,0),\"[Name of sub-vote]\")","v":"Electricity"},{"$f":"CONCATENATE(B3, \" - \", C3)","v":"1.1 - Electricity"},{"$f":"CONCATENATE(B3, \" - \", C3)","v":"1.1 - Electricity"},null,null,11]
[{"$f":"B24&\" - \"&C24","v":"Vote 3 - Finance & Administration"},1.2,"Street Lighting and Signal Systems","1.2 - Street Lighting and Signal Systems",{"$f":"CONCATENATE(B4, \" - \", C4)","v":"1.2 - Street Lighting and Signal Systems"},null,null,12]
[{"$f":"B35&\" - \"&C35","v":"Vote 4 - Planning and Development"},1.3,"[Name of sub-vote]","1.3 - [Name of sub-vote]","1.3 - [Name of sub-vote]",null,null,13]
[{"$f":"B46&\" - \"&C46","v":"Vote 5 - Executive & Council"},1.4,"[Name of sub-vote]","1.4 - [Name of sub-vote]","1.4 - [Name of sub-vote]",null,null,14]
[{"$f":"B57&\" - \"&C57","v":"Vote 6 - Internal Audit"},1.5,"[Name of sub-vote]","1.5 - [Name of sub-vote]","1.5 - [Name of sub-vote]",null,null,15]
[{"$f":"B68&\" - \"&C68","v":"Vote 7 - Road Transport"},1.6,"[Name of sub-vote]","1.6 - [Name of sub-vote]","1.6 - [Name of sub-vote]",null,null,16]
[{"$f":"B79&\" - \"&C79","v":"Vote 8 - Public Safety"},1.7,"[Name of sub-vote]","1.7 - [Name of sub-vote]","1.7 - [Name of sub-vote]",null,null,17]
[{"$f":"B90&\" - \"&C90","v":"Vote 9 - Waste Management"},1.8,"[Name of sub-vote]","1.8 - [Name of sub-vote]","1.8 - [Name of sub-vote]",null,null,18]
[{"$f":"B101&\" - \"&C101","v":"Vote 10 - Sports & Recreation"},1.9,"[Name of sub-vote]","1.9 - [Name of sub-vote]","1.9 - [Name of sub-vote]",null,null,19]
[{"$f":"B112&\" - \"&C112","v":"Vote 11 - Water Management"},"1.10","[Name of sub-vote]","1.10 - [Name of sub-vote]","1.10 - [Name of sub-vote]",null,null,110]
[{"$f":"B123&\" - \"&C123","v":"Vote 12 - Waste Water Management"},"Vote 2",{"$f":"IFERROR(VLOOKUP($H13,MainMunicipalVote,4,0),\"[NAME OF VOTE \"&H13&\"]\")","v":"Community and Social Services"},null,null,null,null,2]
[{"$f":"B134&\" - \"&C134","v":"Vote 13 - Housing"},2.1,{"$f":"IFERROR(VLOOKUP($H14,SubMunicipalVote,2,0),\"[Name of sub-vote]\")","v":"Animal Care and Diseases"},{"$f":"CONCATENATE(B14, \" - \", C14)","v":"2.1 - Animal Care and Diseases"},{"$f":"CONCATENATE(B14, \" - \", C14)","v":"2.1 - Animal Care and Diseases"},null,null,21]
[{"$f":"B145&\" - \"&C145","v":"Vote 14 - Finance & Administration 2"},2.2000000000000002,"Community Halls and Facilities","2.2 - Community Halls and Facilities","2.2 - Community Halls and Facilities",null,null,22]
[{"$f":"B156&\" - \"&C156","v":"Vote 15 - [NAME OF VOTE 15]"},2.2999999999999998,"Libraries and Archives","2.3 - Libraries and Archives","2.3 - Libraries and Archives",null,null,23]
[null,2.4,"Cemeteries, Funeral Parlours and Crematoriums","2.4 - Cemeteries, Funeral Parlours and Crematoriums","2.4 - Cemeteries, Funeral Parlours and Crematoriums",null,null,24]
[null,2.5,"Disaster Management","2.5 - Disaster Management","2.5 - Disaster Management",null,null,25]
[null,2.6,"[Name of sub-vote]","2.6 - [Name of sub-vote]","2.6 - [Name of sub-vote]",null,null,26]
[null,2.7,"[Name of sub-vote]","2.7 - [Name of sub-vote]","2.7 - [Name of sub-vote]",null,null,27]
[null,2.8,"[Name of sub-vote]","2.8 - [Name of sub-vote]","2.8 - [Name of sub-vote]",null,null,28]
[null,2.9,"[Name of sub-vote]","2.9 - [Name of sub-vote]","2.9 - [Name of sub-vote]",null,null,29]
[null,"2.10","[Name of sub-vote]","2.10 - [Name of sub-vote]","2.10 - [Name of sub-vote]",null,null,210]
[null,"Vote 3",{"$f":"IFERROR(VLOOKUP($H24,MainMunicipalVote,4,0),\"[NAME OF VOTE \"&H24&\"]\")","v":"Finance & Administration"},null,null,null,null,3]
[null,3.1,{"$f":"IFERROR(VLOOKUP($H25,SubMunicipalVote,2,0),\"[Name of sub-vote]\")","v":"Fleet Management"},{"$f":"CONCATENATE(B25, \" - \", C25)","v":"3.1 - Fleet Management"},{"$f":"CONCATENATE(B25, \" - \", C25)","v":"3.1 - Fleet Management"},null,null,31]
[null,3.2,"Finance","3.2 - Finance","3.2 - Finance",null,null,32]
[null,3.3,"Asset Management","3.3 - Asset Management","3.3 - Asset Management",null,null,33]
[null,3.4,"Human Resources","3.4 - Human Resources","3.4 - Human Resources",null,null,34]
[null,3.5,"Legal Services","3.5 - Legal Services","3.5 - Legal Services",null,null,35]
[null,3.6,"Property Services","3.6 - Property Services","3.6 - Property Services",null,null,36]
[null,3.7,"Risk Management","3.7 - Risk Management","3.7 - Risk Management",null,null,37]
[null,3.8,"Supply Chain Management","3.8 - Supply Chain Management","3.8 - Supply Chain Management",null,null,38]
[null,3.9,"[Name of sub-vote]","3.9 - [Name of sub-vote]","3.9 - [Name of sub-vote]",null,null,39]
[null,"3.10","[Name of sub-vote]","3.10 - [Name of sub-vote]","3.10 - [Name of sub-vote]",null,null,310]
[null,"Vote 4",{"$f":"IFERROR(VLOOKUP($H35,MainMunicipalVote,4,0),\"[NAME OF VOTE \"&H35&\"]\")","v":"Planning and Development"},null,null,null,null,4]
[null,4.0999999999999996,{"$f":"IFERROR(VLOOKUP($H36,SubMunicipalVote,2,0),\"[Name of sub-vote]\")","v":"Town Planning, Building Regulations and Enforcement, and City Engineer"},{"$f":"CONCATENATE(B36, \" - \", C36)","v":"4.1 - Town Planning, Building Regulations and Enforcement, and City Engineer"},{"$f":"CONCATENATE(B36, \" - \", C36)","v":"4.1 - Town Planning, Building Regulations and Enforcement, and City Engineer"},null,null,41]
[null,4.2,"Corporate Wide Strategic Planning (IDPs, LEDs)","4.2 - Corporate Wide Strategic Planning (IDPs, LEDs)","4.2 - Corporate Wide Strategic Planning (IDPs, LEDs)",null,null,42]
[null,4.3,"Economic Development/Planning","4.3 - Economic Development/Planning","4.3 - Economic Development/Planning",null,null,43]
[null,4.4000000000000004,"Project Management Unit","4.4 - Project Management Unit","4.4 - Project Management Unit",null,null,44]
[null,4.5,"[Name of sub-vote]","4.5 - [Name of sub-vote]","4.5 - [Name of sub-vote]",null,null,45]
[null,4.5999999999999996,"[Name of sub-vote]","4.6 - [Name of sub-vote]","4.6 - [Name of sub-vote]",null,null,46]
[null,4.7,"[Name of sub-vote]","4.7 - [Name of sub-vote]","4.7 - [Name of sub-vote]",null,null,47]
[null,4.8,"[Name of sub-vote]","4.8 - [Name of sub-vote]","4.8 - [Name of sub-vote]",null,null,48]
[null,4.9000000000000004,"[Name of sub-vote]","4.9 - [Name of sub-vote]","4.9 - [Name of sub-vote]",null,null,49]
[null,"4.10","[Name of sub-vote]","4.10 - [Name of sub-vote]","4.10 - [Name of sub-vote]",null,null,410]
[null,"Vote 5",{"$f":"IFERROR(VLOOKUP($H46,MainMunicipalVote,4,0),\"[NAME OF VOTE \"&H46&\"]\")","v":"Executive & Council"},null,null,null,null,5]
[null,5.0999999999999996,{"$f":"IFERROR(VLOOKUP($H47,SubMunicipalVote,2,0),\"[Name of sub-vote]\")","v":"Municipal Manager, Town Secretary and Chief Executive"},{"$f":"CONCATENATE(B47, \" - \", C47)","v":"5.1 - Municipal Manager, Town Secretary and Chief Executive"},{"$f":"CONCATENATE(B47, \" - \", C47)","v":"5.1 - Municipal Manager, Town Secretary and Chief Executive"},null,null,51]
[null,5.2,"Mayor and Council","5.2 - Mayor and Council","5.2 - Mayor and Council",null,null,52]
[null,5.3,"[Name of sub-vote]","5.3 - [Name of sub-vote]","5.3 - [Name of sub-vote]",null,null,53]
[null,5.4,"[Name of sub-vote]","5.4 - [Name of sub-vote]","5.4 - [Name of sub-vote]",null,null,54]
[null,5.5,"[Name of sub-vote]","5.5 - [Name of sub-vote]","5.5 - [Name of sub-vote]",null,null,55]
[null,5.6,"[Name of sub-vote]","5.6 - [Name of sub-vote]","5.6 - [Name of sub-vote]",null,null,56]
[null,5.7,"[Name of sub-vote]","5.7 - [Name of sub-vote]","5.7 - [Name of sub-vote]",null,null,57]
[null,5.8,"[Name of sub-vote]","5.8 - [Name of sub-vote]","5.8 - [Name of sub-vote]",null,null,58]
[null,5.9,"[Name of sub-vote]","5.9 - [Name of sub-vote]","5.9 - [Name of sub-vote]",null,null,59]
[null,"5.10","[Name of sub-vote]","5.10 - [Name of sub-vote]","5.10 - [Name of sub-vote]",null,null,510]
[null,"Vote 6",{"$f":"IFERROR(VLOOKUP($H57,MainMunicipalVote,4,0),\"[NAME OF VOTE \"&H57&\"]\")","v":"Internal Audit"},null,null,null,null,6]
[null,6.1,{"$f":"IFERROR(VLOOKUP($H58,SubMunicipalVote,2,0),\"[Name of sub-vote]\")","v":"Governance Function"},{"$f":"CONCATENATE(B58, \" - \", C58)","v":"6.1 - Governance Function"},{"$f":"CONCATENATE(B58, \" - \", C58)","v":"6.1 - Governance Function"},null,null,61]
[null,6.2,"[Name of sub-vote]","6.2 - [Name of sub-vote]","6.2 - [Name of sub-vote]",null,null,62]
[null,6.3,"[Name of sub-vote]","6.3 - [Name of sub-vote]","6.3 - [Name of sub-vote]",null,null,63]
[null,6.4,"[Name of sub-vote]","6.4 - [Name of sub-vote]","6.4 - [Name of sub-vote]",null,null,64]
[null,6.5,"[Name of sub-vote]","6.5 - [Name of sub-vote]","6.5 - [Name of sub-vote]",null,null,65]
[null,6.6,"[Name of sub-vote]","6.6 - [Name of sub-vote]","6.6 - [Name of sub-vote]",null,null,66]
[null,6.7,"[Name of sub-vote]","6.7 - [Name of sub-vote]","6.7 - [Name of sub-vote]",null,null,67]
[null,6.8,"[Name of sub-vote]","6.8 - [Name of sub-vote]","6.8 - [Name of sub-vote]",null,null,68]
[null,6.9,"[Name of sub-vote]","6.9 - [Name of sub-vote]","6.9 - [Name of sub-vote]",null,null,69]
[null,"6.10","[Name of sub-vote]","6.10 - [Name of sub-vote]","6.10 - [Name of sub-vote]",null,null,610]
[null,"Vote 7",{"$f":"IFERROR(VLOOKUP($H68,MainMunicipalVote,4,0),\"[NAME OF VOTE \"&H68&\"]\")","v":"Road Transport"},null,null,null,null,7]
[null,7.1,{"$f":"IFERROR(VLOOKUP($H69,SubMunicipalVote,2,0),\"[Name of sub-vote]\")","v":"Taxi Ranks"},{"$f":"CONCATENATE(B69, \" - \", C69)","v":"7.1 - Taxi Ranks"},{"$f":"CONCATENATE(B69, \" - \", C69)","v":"7.1 - Taxi Ranks"},null,null,71]
[null,7.2,"Road and Traffic Regulation","7.2 - Road and Traffic Regulation","7.2 - Road and Traffic Regulation",null,null,72]
[null,7.3,"Public Transport","7.3 - Public Transport","7.3 - Public Transport",null,null,73]
[null,7.4,"Roads","7.4 - Roads","7.4 - Roads",null,null,74]
[null,7.5,"[Name of sub-vote]","7.5 - [Name of sub-vote]","7.5 - [Name of sub-vote]",null,null,75]
[null,7.6,"[Name of sub-vote]","7.6 - [Name of sub-vote]","7.6 - [Name of sub-vote]",null,null,76]
[null,7.7,"[Name of sub-vote]","7.7 - [Name of sub-vote]","7.7 - [Name of sub-vote]",null,null,77]
[null,7.8,"[Name of sub-vote]","7.8 - [Name of sub-vote]","7.8 - [Name of sub-vote]",null,null,78]
[null,7.9,"[Name of sub-vote]","7.9 - [Name of sub-vote]","7.9 - [Name of sub-vote]",null,null,79]
[null,"7.10","[Name of sub-vote]","7.10 - [Name of sub-vote]","7.10 - [Name of sub-vote]",null,null,710]
[null,"Vote 8",{"$f":"IFERROR(VLOOKUP($H79,MainMunicipalVote,4,0),\"[NAME OF VOTE \"&H79&\"]\")","v":"Public Safety"},null,null,null,null,8]
[null,8.1,{"$f":"IFERROR(VLOOKUP($H80,SubMunicipalVote,2,0),\"[Name of sub-vote]\")","v":"Cleansing"},{"$f":"CONCATENATE(B80, \" - \", C80)","v":"8.1 - Cleansing"},{"$f":"CONCATENATE(B80, \" - \", C80)","v":"8.1 - Cleansing"},null,null,81]
[null,8.1999999999999993,"Fencing and Fences","8.2 - Fencing and Fences","8.2 - Fencing and Fences",null,null,82]
[null,8.3000000000000007,"[Name of sub-vote]","8.3 - [Name of sub-vote]","8.3 - [Name of sub-vote]",null,null,83]
[null,8.4,"[Name of sub-vote]","8.4 - [Name of sub-vote]","8.4 - [Name of sub-vote]",null,null,84]
[null,8.5,"[Name of sub-vote]","8.5 - [Name of sub-vote]","8.5 - [Name of sub-vote]",null,null,85]
[null,8.6,"[Name of sub-vote]","8.6 - [Name of sub-vote]","8.6 - [Name of sub-vote]",null,null,86]
[null,8.6999999999999993,"[Name of sub-vote]","8.7 - [Name of sub-vote]","8.7 - [Name of sub-vote]",null,null,87]
[null,8.8000000000000007,"[Name of sub-vote]","8.8 - [Name of sub-vote]","8.8 - [Name of sub-vote]",null,null,88]
[null,8.9,"[Name of sub-vote]","8.9 - [Name of sub-vote]","8.9 - [Name of sub-vote]",null,null,89]
[null,"8.10","[Name of sub-vote]","8.10 - [Name of sub-vote]","8.10 - [Name of sub-vote]",null,null,810]
[null,"Vote 9",{"$f":"IFERROR(VLOOKUP($H90,MainMunicipalVote,4,0),\"[NAME OF VOTE \"&H90&\"]\")","v":"Waste Management"},null,null,null,null,9]
[null,9.1,{"$f":"IFERROR(VLOOKUP($H91,SubMunicipalVote,2,0),\"[Name of sub-vote]\")","v":"[Name of sub-vote]"},{"$f":"CONCATENATE(B91, \" - \", C91)","v":"9.1 - [Name of sub-vote]"},{"$f":"CONCATENATE(B91, \" - \", C91)","v":"9.1 - [Name of sub-vote]"},null,null,91]
[null,9.1999999999999993,"Solid Waste Disposal (Landfill Sites)","9.2 - Solid Waste Disposal (Landfill Sites)","9.2 - Solid Waste Disposal (Landfill Sites)",null,null,92]
[null,9.3000000000000007,"Solid Waste Removal","9.3 - Solid Waste Removal","9.3 - Solid Waste Removal",null,null,93]
[null,9.4,"[Name of sub-vote]","9.4 - [Name of sub-vote]","9.4 - [Name of sub-vote]",null,null,94]
[null,9.5,"[Name of sub-vote]","9.5 - [Name of sub-vote]","9.5 - [Name of sub-vote]",null,null,95]
[null,9.6,"[Name of sub-vote]","9.6 - [Name of sub-vote]","9.6 - [Name of sub-vote]",null,null,96]
[null,9.6999999999999993,"[Name of sub-vote]","9.7 - [Name of sub-vote]","9.7 - [Name of sub-vote]",null,null,97]
[null,9.8000000000000007,"[Name of sub-vote]","9.8 - [Name of sub-vote]","9.8 - [Name of sub-vote]",null,null,98]
[null,9.9,"[Name of sub-vote]","9.9 - [Name of sub-vote]","9.9 - [Name of sub-vote]",null,null,99]
[null,"9.10","[Name of sub-vote]","9.10 - [Name of sub-vote]","9.10 - [Name of sub-vote]",null,null,910]
[null,"Vote 10",{"$f":"IFERROR(VLOOKUP($H101,MainMunicipalVote,4,0),\"[NAME OF VOTE \"&H101&\"]\")","v":"Sports & Recreation"},null,null,null,null,10]
[null,10.1,"[Name of sub-vote]",{"$f":"CONCATENATE(B102, \" - \", C102)","v":"10.1 - [Name of sub-vote]"},{"$f":"CONCATENATE(B102, \" - \", C102)","v":"10.1 - [Name of sub-vote]"},null,null,101]
[null,10.199999999999999,{"$f":"IFERROR(VLOOKUP($H103,SubMunicipalVote,2,0),\"[Name of sub-vote]\")","v":"Sports Grounds and Stadiums"},"10.2 - Sports Grounds and Stadiums","10.2 - Sports Grounds and Stadiums",null,null,102]
[null,10.3,"[Name of sub-vote]","10.3 - [Name of sub-vote]","10.3 - [Name of sub-vote]",null,null,103]
[null,10.4,"[Name of sub-vote]","10.4 - [Name of sub-vote]","10.4 - [Name of sub-vote]",null,null,104]
[null,10.5,"[Name of sub-vote]","10.5 - [Name of sub-vote]","10.5 - [Name of sub-vote]",null,null,105]
[null,10.6,"[Name of sub-vote]","10.6 - [Name of sub-vote]","10.6 - [Name of sub-vote]",null,null,106]
[null,10.7,"[Name of sub-vote]","10.7 - [Name of sub-vote]","10.7 - [Name of sub-vote]",null,null,107]
[null,10.8,"[Name of sub-vote]","10.8 - [Name of sub-vote]","10.8 - [Name of sub-vote]",null,null,108]
[null,10.9,"[Name of sub-vote]","10.9 - [Name of sub-vote]","10.9 - [Name of sub-vote]",null,null,109]
[null,"10.10","[Name of sub-vote]","10.10 - [Name of sub-vote]","10.10 - [Name of sub-vote]",null,null,1010]
[null,"Vote 11",{"$f":"IFERROR(VLOOKUP($H112,MainMunicipalVote,4,0),\"[NAME OF VOTE \"&H112&\"]\")","v":"Water Management"},null,null,null,null,11]
[null,11.1,{"$f":"IFERROR(VLOOKUP($H113,SubMunicipalVote,2,0),\"[Name of sub-vote]\")","v":"Water Distribution"},{"$f":"CONCATENATE(B113, \" - \", C113)","v":"11.1 - Water Distribution"},{"$f":"CONCATENATE(B113, \" - \", C113)","v":"11.1 - Water Distribution"},null,null,111]
[null,11.2,"[Name of sub-vote]","11.2 - [Name of sub-vote]","11.2 - [Name of sub-vote]",null,null,112]
[null,11.3,"[Name of sub-vote]","11.3 - [Name of sub-vote]","11.3 - [Name of sub-vote]",null,null,113]
[null,11.4,"[Name of sub-vote]","11.4 - [Name of sub-vote]","11.4 - [Name of sub-vote]",null,null,114]
[null,11.5,"[Name of sub-vote]","11.5 - [Name of sub-vote]","11.5 - [Name of sub-vote]",null,null,115]
[null,11.6,"[Name of sub-vote]","11.6 - [Name of sub-vote]","11.6 - [Name of sub-vote]",null,null,116]
[null,11.7,"[Name of sub-vote]","11.7 - [Name of sub-vote]","11.7 - [Name of sub-vote]",null,null,117]
[null,11.8,"[Name of sub-vote]","11.8 - [Name of sub-vote]","11.8 - [Name of sub-vote]",null,null,118]
[null,11.9,"[Name of sub-vote]","11.9 - [Name of sub-vote]","11.9 - [Name of sub-vote]",null,null,119]
[null,"11.10","[Name of sub-vote]","11.10 - [Name of sub-vote]","11.10 - [Name of sub-vote]",null,null,1110]
[null,"Vote 12",{"$f":"IFERROR(VLOOKUP($H123,MainMunicipalVote,4,0),\"[NAME OF VOTE \"&H123&\"]\")","v":"Waste Water Management"},null,null,null,null,12]
[null,12.1,{"$f":"IFERROR(VLOOKUP($H124,SubMunicipalVote,2,0),\"[Name of sub-vote]\")","v":"Sewerage"},{"$f":"CONCATENATE(B124, \" - \", C124)","v":"12.1 - Sewerage"},{"$f":"CONCATENATE(B124, \" - \", C124)","v":"12.1 - Sewerage"},null,null,121]
[null,12.2,"[Name of sub-vote]","12.2 - [Name of sub-vote]","12.2 - [Name of sub-vote]",null,null,122]
[null,12.3,"[Name of sub-vote]","12.3 - [Name of sub-vote]","12.3 - [Name of sub-vote]",null,null,123]
[null,12.4,"[Name of sub-vote]","12.4 - [Name of sub-vote]","12.4 - [Name of sub-vote]",null,null,124]
[null,12.5,"[Name of sub-vote]","12.5 - [Name of sub-vote]","12.5 - [Name of sub-vote]",null,null,125]
[null,12.6,"[Name of sub-vote]","12.6 - [Name of sub-vote]","12.6 - [Name of sub-vote]",null,null,126]
[null,12.7,"[Name of sub-vote]","12.7 - [Name of sub-vote]","12.7 - [Name of sub-vote]",null,null,127]
[null,12.8,"[Name of sub-vote]","12.8 - [Name of sub-vote]","12.8 - [Name of sub-vote]",null,null,128]
[null,12.9,"[Name of sub-vote]","12.9 - [Name of sub-vote]","12.9 - [Name of sub-vote]",null,null,129]
[null,"12.10","[Name of sub-vote]","12.10 - [Name of sub-vote]","12.10 - [Name of sub-vote]",null,null,1210]
[null,"Vote 13",{"$f":"IFERROR(VLOOKUP($H134,MainMunicipalVote,4,0),\"[NAME OF VOTE \"&H134&\"]\")","v":"Housing"},null,null,null,null,13]
[null,13.1,{"$f":"IFERROR(VLOOKUP($H135,SubMunicipalVote,2,0),\"[Name of sub-vote]\")","v":"Housing"},{"$f":"CONCATENATE(B135, \" - \", C135)","v":"13.1 - Housing"},{"$f":"CONCATENATE(B135, \" - \", C135)","v":"13.1 - Housing"},null,null,131]
[null,13.2,"[Name of sub-vote]","13.2 - [Name of sub-vote]","13.2 - [Name of sub-vote]",null,null,132]
[null,13.3,"[Name of sub-vote]","13.3 - [Name of sub-vote]","13.3 - [Name of sub-vote]",null,null,133]
[null,13.4,"[Name of sub-vote]","13.4 - [Name of sub-vote]","13.4 - [Name of sub-vote]",null,null,134]
[null,13.5,"[Name of sub-vote]","13.5 - [Name of sub-vote]","13.5 - [Name of sub-vote]",null,null,135]
[null,13.6,"[Name of sub-vote]","13.6 - [Name of sub-vote]","13.6 - [Name of sub-vote]",null,null,136]
[null,13.7,"[Name of sub-vote]","13.7 - [Name of sub-vote]","13.7 - [Name of sub-vote]",null,null,137]
[null,13.8,"[Name of sub-vote]","13.8 - [Name of sub-vote]","13.8 - [Name of sub-vote]",null,null,138]
[null,13.9,"[Name of sub-vote]","13.9 - [Name of sub-vote]","13.9 - [Name of sub-vote]",null,null,139]
[null,"13.10","[Name of sub-vote]","13.10 - [Name of sub-vote]","13.10 - [Name of sub-vote]",null,null,1310]
[null,"Vote 14",{"$f":"IFERROR(VLOOKUP($H145,MainMunicipalVote,4,0),\"[NAME OF VOTE \"&H145&\"]\")","v":"Finance & Administration 2"},null,null,null,null,14]
[null,14.1,{"$f":"IFERROR(VLOOKUP($H146,SubMunicipalVote,2,0),\"[Name of sub-vote]\")","v":"Security Services"},{"$f":"CONCATENATE(B146, \" - \", C146)","v":"14.1 - Security Services"},{"$f":"CONCATENATE(B146, \" - \", C146)","v":"14.1 - Security Services"},null,null,141]
[null,14.2,"Administrative and Corporate Support","14.2 - Administrative and Corporate Support","14.2 - Administrative and Corporate Support",null,null,142]
[null,14.3,"Information Technology","14.3 - Information Technology","14.3 - Information Technology",null,null,143]
[null,14.4,"[Name of sub-vote]","14.4 - [Name of sub-vote]","14.4 - [Name of sub-vote]",null,null,144]
[null,14.5,"[Name of sub-vote]","14.5 - [Name of sub-vote]","14.5 - [Name of sub-vote]",null,null,145]
[null,14.6,"[Name of sub-vote]","14.6 - [Name of sub-vote]","14.6 - [Name of sub-vote]",null,null,146]
[null,14.7,"[Name of sub-vote]","14.7 - [Name of sub-vote]","14.7 - [Name of sub-vote]",null,null,147]
[null,14.8,"[Name of sub-vote]","14.8 - [Name of sub-vote]","14.8 - [Name of sub-vote]",null,null,148]
[null,14.9,"[Name of sub-vote]","14.9 - [Name of sub-vote]","14.9 - [Name of sub-vote]",null,null,149]
[null,"14.10","[Name of sub-vote]","14.10 - [Name of sub-vote]","14.10 - [Name of sub-vote]",null,null,1410]
[null,"Vote 15",{"$f":"IFERROR(VLOOKUP($H156,MainMunicipalVote,4,0),\"[NAME OF VOTE \"&H156&\"]\")","v":"[NAME OF VOTE 15]"},null,null,null,null,15]
[null,15.1,{"$f":"IFERROR(VLOOKUP($H157,SubMunicipalVote,2,0),\"[Name of sub-vote]\")","v":"[Name of sub-vote]"},{"$f":"CONCATENATE(B157, \" - \", C157)","v":"15.1 - [Name of sub-vote]"},{"$f":"CONCATENATE(B157, \" - \", C157)","v":"15.1 - [Name of sub-vote]"},null,null,151]
[null,15.2,"[Name of sub-vote]","15.2 - [Name of sub-vote]","15.2 - [Name of sub-vote]",null,null,152]
[null,15.3,"[Name of sub-vote]","15.3 - [Name of sub-vote]","15.3 - [Name of sub-vote]",null,null,153]
[null,15.4,"[Name of sub-vote]","15.4 - [Name of sub-vote]","15.4 - [Name of sub-vote]",null,null,154]
[null,15.5,"[Name of sub-vote]","15.5 - [Name of sub-vote]","15.5 - [Name of sub-vote]",null,null,155]
[null,15.6,"[Name of sub-vote]","15.6 - [Name of sub-vote]","15.6 - [Name of sub-vote]",null,null,156]
[null,15.7,"[Name of sub-vote]","15.7 - [Name of sub-vote]","15.7 - [Name of sub-vote]",null,null,157]
[null,15.8,"[Name of sub-vote]","15.8 - [Name of sub-vote]","15.8 - [Name of sub-vote]",null,null,158]
[null,15.9,"[Name of sub-vote]","15.9 - [Name of sub-vote]","15.9 - [Name of sub-vote]",null,null,159]
[null,"15.10","[Name of sub-vote]","15.10 - [Name of sub-vote]","15.10 - [Name of sub-vote]",null,null,1510]

{"sheet":"Contacts","index":29,"n_rows":140,"n_cols":3,"rows_kept":140,"cut":false,"hidden":false,"merged":[[7,2,7,3],[13,0,13,1],[29,0,29,1],[10,2,10,3],[12,2,12,3],[84,2,84,3],[30,2,30,3],[29,2,29,3],[48,0,48,1],[100,2,100,3],[39,2,39,3],[48,2,48,3],[57,2,57,3],[92,0,92,1],[39,0,39,1],[132,0,132,1],[132,2,132,3],[76,0,76,1],[57,0,57,1],[76,2,76,3],[92,2,92,3],[67,2,67,3],[124,0,124,1],[124,2,124,3],[116,0,116,1],[116,2,116,3],[108,0,108,1],[108,2,108,3],[100,0,100,1],[58,2,58,3],[84,0,84,1]]}
[{"$f":"muni&\" - \"&\" Contact Information\"","v":"LIM331 Greater Giyani -  Contact Information"}]
[]
["A. GENERAL INFORMATION"]
["Municipality",{"$f":"muni","v":"LIM331 Greater Giyani"},{"$f":"IF(B4=\"Choose name from List\",\"Set name on 'Instructions' sheet\", \"\")","v":""}]
[]
["Grade",null,"1 Grade in terms of the Remuneration of Public Office Bearers Act."]
[]
["Province",{"$f":"IF(B4>\" \",VLOOKUP(B4,'Lookup and lists'!B29:C307,2, FALSE),\" \")","v":"LIM LIMPOPO"}]
[]
["Web Address"]
[]
["e-mail Address"]
[]
["B. CONTACT INFORMATION"]
["Postal address:"]
["P.O. Box"]
["City / Town"]
["Postal Code"]
[]
["Street address"]
["Building"]
["Street No. & Name"]
["City / Town"]
["Postal Code"]
[]
["General Contacts"]
["Telephone number"]
["Fax number"]
[]
["C. POLITICAL LEADERSHIP"]
["Speaker:",null,"Secretary/PA to the Speaker:"]
["ID Number",null,"ID Number"]
["Title",null,"Title"]
["Name",null,"Name"]
["Telephone number",null,"Telephone number"]
["Cell number",null,"Cell number"]
["Fax number",null,"Fax number"]
["E-mail address",null,"E-mail address"]
[]
["Mayor/Executive Mayor:",null,"Secretary/PA to the Mayor/Executive Mayor:"]
["ID Number",null,"ID Number"]
["Title",null,"Title"]
["Name",null,"Name"]
["Telephone number",null,"Telephone number"]
["Cell number",null,"Cell number"]
["Fax number",null,"Fax number"]
["E-mail address",null,"E-mail address"]
[]
["Deputy Mayor/Executive Mayor:",null,"Secretary/PA to the Deputy Mayor/Executive Mayor:"]
["ID Number",null,"ID Number"]
["Title",null,"Title"]
["Name",null,"Name"]
["Telephone number",null,"Telephone number"]
["Cell number",null,"Cell number"]
["Fax number",null,"Fax number"]
["E-mail address",null,"E-mail address"]
[]
["D. MANAGEMENT LEADERSHIP"]
["Municipal Manager:",null,"Secretary/PA to the Municipal Manager:"]
["ID Number",null,"ID Number"]
["Title",null,"Title"]
["Name",null,"Name"]
["Telephone number",null,"Telephone number"]
["Cell number",null,"Cell number"]
["Fax number",null,"Fax number"]
["E-mail address",null,"E-mail address"]
[]
["Chief Financial Officer",null,"Secretary/PA to the Chief Financial Officer"]
["ID Number",null,"ID Number"]
["Title",null,"Title"]
["Name","","Name"]
["Telephone number",null,"Telephone number"]
["Cell number",null,"Cell number"]
["Fax number",null,"Fax number"]
["E-mail address",null,"E-mail address"]
[]
["Official responsible for submitting financial information",null,"Official responsible for submitting financial information"]
["ID Number",null,"ID Number"]
["Title",null,"Title"]
["Name",null,"Name"]
["Telephone number",null,"Telephone number"]
["Cell number",null,"Cell number"]
["Fax number",null,"Fax number"]
["E-mail address",null,"E-mail address"]
["Official responsible for submitting financial information",null,"Official responsible for submitting financial information"]
["ID Number",null,"ID Number"]
["Title",null,"Title"]
["Name",null,"Name"]
["Telephone number",null,"Telephone number"]
["Cell number",null,"Cell number"]
["Fax number",null,"Fax number"]
["E-mail address",null,"E-mail address"]
["Official responsible for submitting financial information",null,"Official responsible for submitting financial information"]
["ID Number",null,"ID Number"]
["Title",null,"Title"]
["Name",null,"Name"]
["Telephone number",null,"Telephone number"]
["Cell number",null,"Cell number"]
["Fax number",null,"Fax number"]
["E-mail address",null,"E-mail address"]
["Official responsible for submitting financial information",null,"Official responsible for submitting financial information"]
["ID Number",null,"ID Number"]
["Title",null,"Title"]
["Name",null,"Name"]
["Telephone number",null,"Telephone number"]
["Cell number",null,"Cell number"]
["Fax number",null,"Fax number"]
["E-mail address",null,"E-mail address"]
["Official responsible for submitting financial information",null,"Official responsible for submitting financial information"]
["ID Number",null,"ID Number"]
["Title",null,"Title"]
["Name",null,"Name"]
["Telephone number",null,"Telephone number"]
["Cell number",null,"Cell number"]
["Fax number",null,"Fax number"]
["E-mail address",null,"E-mail address"]
["Official responsible for submitting financial information",null,"Official responsible for submitting financial information"]
["ID Number",null,"ID Number"]
["Title",null,"Title"]
["Name",null,"Name"]
["Telephone number",null,"Telephone number"]
["Cell number",null,"Cell number"]
["Fax number",null,"Fax number"]
["E-mail address",null,"E-mail address"]
["Official responsible for submitting financial information",null,"Official responsible for submitting financial information"]
["ID Number",null,"ID Number"]
["Title",null,"Title"]
["Name",null,"Name"]
["Telephone number",null,"Telephone number"]
["Cell number",null,"Cell number"]
["Fax number",null,"Fax number"]
["E-mail address",null,"E-mail address"]
["Official responsible for submitting financial information"]
["ID Number"]
["Title"]
["Name"]
["Telephone number"]
["Cell number"]
["Fax number"]
["E-mail address"]

{"sheet":"A1-Sum","index":30,"n_rows":61,"n_cols":11,"rows_kept":61,"cut":false,"hidden":false,"merged":[[1,8,1,10],[1,4,1,7],[0,0,0,2]]}
[{"$f":"muni&\" - \"&Approve1","v":"LIM331 Greater Giyani - Table A1 Budget Summary"}]
[{"$f":"desc","v":"Description"},{"$f":"head1b","v":"2019/20"},{"$f":"head1A","v":"2020/21"},{"$f":"Head1","v":"2021/22"},{"$f":"Head2","v":"Current Year 2022/23"},null,null,null,{"$f":"Head3","v":"2023/24 Medium Term Revenue & Expenditure Framework"}]
["R thousands",{"$f":"Head5","v":"Audited Outcome"},{"$f":"Head5","v":"Audited Outcome"},{"$f":"Head5","v":"Audited Outcome"},{"$f":"Head6","v":"Original Budget"},{"$f":"Head7","v":"Adjusted Budget"},{"$f":"Head8","v":"Full Year Forecast"},{"$f":"Head5b","v":"Pre-audit outcome"},{"$f":"Head9","v":"Budget Year 2023/24"},{"$f":"Head10","v":"Budget Year +1 2024/25"},{"$f":"Head11","v":"Budget Year +2 2025/26"}]
["Financial Performance"]
["Property rates",{"$f":"'A4-FinPerf RE'!C21","v":57482800},{"$f":"'A4-FinPerf RE'!D21","v":67066301},{"$f":"'A4-FinPerf RE'!E21","v":66778018},{"$f":"'A4-FinPerf RE'!F21","v":79881822},{"$f":"'A4-FinPerf RE'!G21","v":75324368},{"$f":"'A4-FinPerf RE'!H21","v":75324368},{"$f":"'A4-FinPerf RE'!I21","v":75324368},{"$f":"'A4-FinPerf RE'!J21","v":79316562},{"$f":"'A4-FinPerf RE'!K21","v":83203074},{"$f":"'A4-FinPerf RE'!L21","v":87113617}]
["Service charges",{"$f":"SUM('A4-FinPerf RE'!C6:C9)","v":6396249},{"$f":"SUM('A4-FinPerf RE'!D6:D9)","v":7814771},{"$f":"SUM('A4-FinPerf RE'!E6:E9)","v":7972320},{"$f":"SUM('A4-FinPerf RE'!F6:F9)","v":11100000},{"$f":"SUM('A4-FinPerf RE'!G6:G9)","v":8950000},{"$f":"SUM('A4-FinPerf RE'!H6:H9)","v":8950000},{"$f":"SUM('A4-FinPerf RE'!I6:I9)","v":8950000},{"$f":"SUM('A4-FinPerf RE'!J6:J9)","v":9424350},{"$f":"SUM('A4-FinPerf RE'!K6:K9)","v":9886144},{"$f":"SUM('A4-FinPerf RE'!L6:L9)","v":10350792}]
["Investment revenue",{"$f":"'A4-FinPerf RE'!C14","v":5915603},{"$f":"'A4-FinPerf RE'!D14","v":5844276},{"$f":"'A4-FinPerf RE'!E14","v":8150056},{"$f":"'A4-FinPerf RE'!F14","v":9005790},{"$f":"'A4-FinPerf RE'!G14","v":11633388},{"$f":"'A4-FinPerf RE'!H14","v":11633388},{"$f":"'A4-FinPerf RE'!I14","v":11633388},{"$f":"'A4-FinPerf RE'!J14","v":12249957},{"$f":"'A4-FinPerf RE'!K14","v":12850205},{"$f":"'A4-FinPerf RE'!L14","v":13454165}]
["Transfer and subsidies - Operational",{"$f":"'A4-FinPerf RE'!C25","v":308176296},{"$f":"'A4-FinPerf RE'!D25","v":386921580},{"$f":"'A4-FinPerf RE'!E25","v":352183035},{"$f":"'A4-FinPerf RE'!F25","v":379532000},{"$f":"'A4-FinPerf RE'!G25","v":381176640},{"$f":"'A4-FinPerf RE'!H25","v":381176640},{"$f":"'A4-FinPerf RE'!I25","v":381176640},{"$f":"'A4-FinPerf RE'!J25","v":382352000},{"$f":"'A4-FinPerf RE'!K25","v":405170000},{"$f":"'A4-FinPerf RE'!L25","v":395085000}]
["Other own revenue",{"$f":"'A4-FinPerf RE'!C32-SUM(B5:B8)","v":28460625},{"$f":"'A4-FinPerf RE'!D32-SUM(C5:C8)","v":28721280},{"$f":"'A4-FinPerf RE'!E32-SUM(D5:D8)","v":44593144},{"$f":"'A4-FinPerf RE'!F32-SUM(E5:E8)","v":51382790},{"$f":"'A4-FinPerf RE'!G32-SUM(F5:F8)","v":44498669},{"$f":"'A4-FinPerf RE'!H32-SUM(G5:G8)","v":44498669},{"$f":"'A4-FinPerf RE'!I32-SUM(H5:H8)","v":44498669},{"$f":"'A4-FinPerf RE'!J32-SUM(I5:I8)","v":52965256},{"$f":"'A4-FinPerf RE'!K32-SUM(J5:J8)","v":55188314},{"$f":"'A4-FinPerf RE'!L32-SUM(K5:K8)","v":57524459}]
[{"$f":"'A4-FinPerf RE'!A32","v":"Total Revenue (excluding capital transfers and contributions)"},{"$f":"SUM(B5:B9)","v":406431573},{"$f":"SUM(C5:C9)","v":496368208},479676573,530902402,521583065,521583065,521583065,536308125,566297737,563528033]
["Employee costs",{"$f":"'A4-FinPerf RE'!C34","v":87916824},{"$f":"'A4-FinPerf RE'!D34","v":146466707},{"$f":"'A4-FinPerf RE'!E34","v":153332486},{"$f":"'A4-FinPerf RE'!F34","v":189700725},{"$f":"'A4-FinPerf RE'!G34","v":165941148},{"$f":"'A4-FinPerf RE'!H34","v":165941148},{"$f":"'A4-FinPerf RE'!I34","v":165941148},{"$f":"'A4-FinPerf RE'!J34","v":199815991},{"$f":"'A4-FinPerf RE'!K34","v":203130370},{"$f":"'A4-FinPerf RE'!L34","v":212604528}]
["Remuneration of councillors",{"$f":"'A4-FinPerf RE'!C35","v":23566009},{"$f":"'A4-FinPerf RE'!D35","v":23581098},{"$f":"'A4-FinPerf RE'!E35","v":23870870},{"$f":"'A4-FinPerf RE'!F35","v":24024710},{"$f":"'A4-FinPerf RE'!G35","v":24932744},{"$f":"'A4-FinPerf RE'!H35","v":24932744},{"$f":"'A4-FinPerf RE'!I35","v":24932744},{"$f":"'A4-FinPerf RE'!J35","v":24892324},{"$f":"'A4-FinPerf RE'!K35","v":26112047},{"$f":"'A4-FinPerf RE'!L35","v":27339315}]
["Depreciation and amortisation",{"$f":"'A4-FinPerf RE'!C39","v":0},{"$f":"'A4-FinPerf RE'!D39","v":97084412},{"$f":"'A4-FinPerf RE'!E39","v":101963531},{"$f":"'A4-FinPerf RE'!F39","v":91000000},{"$f":"'A4-FinPerf RE'!G39","v":91000000},{"$f":"'A4-FinPerf RE'!H39","v":91000000},{"$f":"'A4-FinPerf RE'!I39","v":91000000},{"$f":"'A4-FinPerf RE'!J39","v":95000000},{"$f":"'A4-FinPerf RE'!K39","v":96000000},{"$f":"'A4-FinPerf RE'!L39","v":97000000}]
["Finance charges",{"$f":"'A4-FinPerf RE'!C40","v":1855934},{"$f":"'A4-FinPerf RE'!D40","v":3941143},{"$f":"'A4-FinPerf RE'!E40","v":6670136},{"$f":"'A4-FinPerf RE'!F40","v":0},{"$f":"'A4-FinPerf RE'!G40","v":0},{"$f":"'A4-FinPerf RE'!H40","v":0},{"$f":"'A4-FinPerf RE'!I40","v":0},{"$f":"'A4-FinPerf RE'!J40","v":0},{"$f":"'A4-FinPerf RE'!K40","v":0},{"$f":"'A4-FinPerf RE'!L40","v":0}]
["Inventory consumed and bulk purchases",{"$f":"'A4-FinPerf RE'!C36+'A4-FinPerf RE'!C37","v":0},{"$f":"'A4-FinPerf RE'!D36+'A4-FinPerf RE'!D37","v":0},{"$f":"'A4-FinPerf RE'!E36+'A4-FinPerf RE'!E37","v":0},{"$f":"'A4-FinPerf RE'!F36+'A4-FinPerf RE'!F37","v":10500000},{"$f":"'A4-FinPerf RE'!G36+'A4-FinPerf RE'!G37","v":11150000},{"$f":"'A4-FinPerf RE'!H36+'A4-FinPerf RE'!H37","v":11150000},{"$f":"'A4-FinPerf RE'!I36+'A4-FinPerf RE'!I37","v":11150000},{"$f":"'A4-FinPerf RE'!J36+'A4-FinPerf RE'!J37","v":13200000},{"$f":"'A4-FinPerf RE'!K36+'A4-FinPerf RE'!K37","v":13820000},{"$f":"'A4-FinPerf RE'!L36+'A4-FinPerf RE'!L37","v":14490000}]
["Transfers and subsidies",{"$f":"'A4-FinPerf RE'!C42","v":600000},{"$f":"'A4-FinPerf RE'!D42","v":955000},{"$f":"'A4-FinPerf RE'!E42","v":600000},{"$f":"'A4-FinPerf RE'!F42","v":1000000},{"$f":"'A4-FinPerf RE'!G42","v":1200000},{"$f":"'A4-FinPerf RE'!H42","v":1200000},{"$f":"'A4-FinPerf RE'!I42","v":1200000},{"$f":"'A4-FinPerf RE'!J42","v":1500000},{"$f":"'A4-FinPerf RE'!K42","v":1600000},{"$f":"'A4-FinPerf RE'!L42","v":1700000}]
["Other expenditure",{"$f":"'A4-FinPerf RE'!C47-SUM(B11:B16)","v":32711226},{"$f":"'A4-FinPerf RE'!D47-SUM(C11:C16)","v":145696177},{"$f":"'A4-FinPerf RE'!E47-SUM(D11:D16)","v":156980175},{"$f":"'A4-FinPerf RE'!F47-SUM(E11:E16)","v":232385540},{"$f":"'A4-FinPerf RE'!G47-SUM(F11:F16)","v":260443833},{"$f":"'A4-FinPerf RE'!H47-SUM(G11:G16)","v":260443833},{"$f":"'A4-FinPerf RE'!I47-SUM(H11:H16)","v":260443833},{"$f":"'A4-FinPerf RE'!J47-SUM(I11:I16)","v":271613101},{"$f":"'A4-FinPerf RE'!K47-SUM(J11:J16)","v":278019834},{"$f":"'A4-FinPerf RE'!L47-SUM(K11:K16)","v":284952965}]
[{"$f":"'A4-FinPerf RE'!A47","v":"Total Expenditure"},{"$f":"SUM(B11:B17)","v":146649993},{"$f":"SUM(C11:C17)","v":417724537},443417198,548610975,554667725,554667725,554667725,606021416,618682251,638086808]
[{"$f":"'A4-FinPerf RE'!A48","v":"Surplus/(Deficit)"},{"$f":"B10-B18","v":259781580},{"$f":"C10-C18","v":78643671},36259375,-17708573,-33084660,-33084660,-33084660,-69713291,-52384514,-74558775]
[{"$f":"'A4-FinPerf RE'!A49","v":"Transfers and subsidies - capital (monetary allocations)"},{"$f":"'A4-FinPerf RE'!C49","v":60688000},{"$f":"'A4-FinPerf RE'!D49","v":71567000},{"$f":"'A4-FinPerf RE'!E49","v":55157907},{"$f":"'A4-FinPerf RE'!F49","v":69261000},{"$f":"'A4-FinPerf RE'!G49","v":78211604},{"$f":"'A4-FinPerf RE'!H49","v":78211604},{"$f":"'A4-FinPerf RE'!I49","v":78211604},{"$f":"'A4-FinPerf RE'!J49","v":104549000},{"$f":"'A4-FinPerf RE'!K49","v":102594000},{"$f":"'A4-FinPerf RE'!L49","v":107207000}]
[{"$f":"'A4-FinPerf RE'!A50","v":"Transfers and subsidies - capital (in-kind)"},{"$f":"'A4-FinPerf RE'!C50","v":0},{"$f":"'A4-FinPerf RE'!D50","v":6038305},{"$f":"'A4-FinPerf RE'!E50","v":0},{"$f":"'A4-FinPerf RE'!F50","v":0},{"$f":"'A4-FinPerf RE'!G50","v":0},{"$f":"'A4-FinPerf RE'!H50","v":0},{"$f":"'A4-FinPerf RE'!I50","v":0},{"$f":"'A4-FinPerf RE'!J50","v":0},{"$f":"'A4-FinPerf RE'!K50","v":0},{"$f":"'A4-FinPerf RE'!L50","v":0}]
[{"$f":"'A4-FinPerf RE'!A51","v":"Surplus/(Deficit) after capital transfers & contributions"},{"$f":"B19+SUM(B20:B21)","v":320469580},{"$f":"C19+SUM(C20:C21)","v":156248976},91417282,51552427,45126944,45126944,45126944,34835709,50209486,32648225]
[{"$f":"'A4-FinPerf RE'!A57","v":"Share of Surplus/Deficit attributable to Associate"},{"$f":"'A4-FinPerf RE'!C57","v":0},{"$f":"'A4-FinPerf RE'!D57","v":0},{"$f":"'A4-FinPerf RE'!E57","v":0},{"$f":"'A4-FinPerf RE'!F57","v":0},{"$f":"'A4-FinPerf RE'!G57","v":0},{"$f":"'A4-FinPerf RE'!H57","v":0},{"$f":"'A4-FinPerf RE'!I57","v":0},{"$f":"'A4-FinPerf RE'!J57","v":0},{"$f":"'A4-FinPerf RE'!K57","v":0},{"$f":"'A4-FinPerf RE'!L57","v":0}]
[{"$f":"'A4-FinPerf RE'!A59","v":"Surplus/(Deficit) for the year"},{"$f":"B22+B23","v":320469580},{"$f":"C22+C23","v":156248976},91417282,51552427,45126944,45126944,45126944,34835709,50209486,32648225]
["Capital expenditure & funds sources"]
["Capital expenditure",{"$f":"'A5-Capex'!C63","v":114943552},{"$f":"'A5-Capex'!D63","v":111803196},{"$f":"'A5-Capex'!E63","v":114943552},{"$f":"'A5-Capex'!F63","v":148172229},{"$f":"'A5-Capex'!G63","v":138207867},{"$f":"'A5-Capex'!H63","v":138207867},{"$f":"'A5-Capex'!I63","v":138207867},{"$f":"'A5-Capex'!J63","v":158791188},{"$f":"'A5-Capex'!K63","v":173326968},{"$f":"'A5-Capex'!L63","v":159635856}]
["Transfers recognised - capital",{"$f":"'A5-Capex'!C70","v":30495618},{"$f":"'A5-Capex'!D70","v":34691777},{"$f":"'A5-Capex'!E70","v":30495618},{"$f":"'A5-Capex'!F70","v":65536974},{"$f":"'A5-Capex'!G70","v":74809337},{"$f":"'A5-Capex'!H70","v":74809337},{"$f":"'A5-Capex'!I70","v":74809337},{"$f":"'A5-Capex'!J70","v":67870438},{"$f":"'A5-Capex'!K70","v":70916968},{"$f":"'A5-Capex'!L70","v":74040148}]
[]
[{"$f":"'A5-Capex'!A72","v":"Borrowing"},{"$f":"'A5-Capex'!C72","v":0},{"$f":"'A5-Capex'!D72","v":0},{"$f":"'A5-Capex'!E72","v":0},{"$f":"'A5-Capex'!F72","v":0},{"$f":"'A5-Capex'!G72","v":0},{"$f":"'A5-Capex'!H72","v":0},{"$f":"'A5-Capex'!I72","v":0},{"$f":"'A5-Capex'!J72","v":0},{"$f":"'A5-Capex'!K72","v":0},{"$f":"'A5-Capex'!L72","v":0}]
[{"$f":"'A5-Capex'!A73","v":"Internally generated funds"},{"$f":"'A5-Capex'!C73","v":84447934},{"$f":"'A5-Capex'!D73","v":77111419},{"$f":"'A5-Capex'!E73","v":84447934},{"$f":"'A5-Capex'!F73","v":82635255},{"$f":"'A5-Capex'!G73","v":63398530},{"$f":"'A5-Capex'!H73","v":63398530},{"$f":"'A5-Capex'!I73","v":63398530},{"$f":"'A5-Capex'!J73","v":90920750},{"$f":"'A5-Capex'!K73","v":102410000},{"$f":"'A5-Capex'!L73","v":85595708}]
["Total sources of capital funds",{"$f":"+B27+B29+B30","v":114943552},{"$f":"+C27+C29+C30","v":111803196},114943552,148172229,138207867,138207867,138207867,158791188,173326968,159635856]
["Financial position"]
[{"$f":"'A6-FinPos'!A13","v":"Total current assets"},{"$f":"'A6-FinPos'!C13","v":552179523},{"$f":"'A6-FinPos'!D13","v":674929846},{"$f":"'A6-FinPos'!E13","v":769059542},{"$f":"'A6-FinPos'!F13","v":256586050},{"$f":"'A6-FinPos'!G13","v":697362405.82012796},{"$f":"'A6-FinPos'!H13","v":697362405.82012796},{"$f":"'A6-FinPos'!I13","v":697362405.82012796},{"$f":"'A6-FinPos'!J13","v":338043774.20679462},{"$f":"'A6-FinPos'!K13","v":272209638.06444466},{"$f":"'A6-FinPos'!L13","v":221022958.46000436}]
[{"$f":"'A6-FinPos'!A25","v":"Total non current assets"},{"$f":"'A6-FinPos'!C25","v":-235202180},{"$f":"'A6-FinPos'!D25","v":-373301631},{"$f":"'A6-FinPos'!E25","v":-451344955},{"$f":"'A6-FinPos'!F25","v":2208069630},{"$f":"'A6-FinPos'!G25","v":1183519015},{"$f":"'A6-FinPos'!H25","v":1183519015},{"$f":"'A6-FinPos'!I25","v":1183519015},{"$f":"'A6-FinPos'!J25","v":999328443},{"$f":"'A6-FinPos'!K25","v":1012964223},{"$f":"'A6-FinPos'!L25","v":998273111}]
[{"$f":"'A6-FinPos'!A37","v":"Total current liabilities"},{"$f":"'A6-FinPos'!C37","v":212435787},{"$f":"'A6-FinPos'!D37","v":240733105},{"$f":"'A6-FinPos'!E37","v":286142810},{"$f":"'A6-FinPos'!F37","v":160071243},{"$f":"'A6-FinPos'!G37","v":150899383},{"$f":"'A6-FinPos'!H37","v":150899383},{"$f":"'A6-FinPos'!I37","v":150899383},{"$f":"'A6-FinPos'!J37","v":139128040.85000002},{"$f":"'A6-FinPos'!K37","v":136814278.65765002},{"$f":"'A6-FinPos'!L37","v":154437914.79555959}]
[{"$f":"'A6-FinPos'!A43","v":"Total non current liabilities"},{"$f":"'A6-FinPos'!C43","v":0},{"$f":"'A6-FinPos'!D43","v":0},{"$f":"'A6-FinPos'!E43","v":0},{"$f":"'A6-FinPos'!F43","v":39005018},{"$f":"'A6-FinPos'!G43","v":39005018},{"$f":"'A6-FinPos'!H43","v":39005018},{"$f":"'A6-FinPos'!I43","v":39005018},{"$f":"'A6-FinPos'!J43","v":39005018},{"$f":"'A6-FinPos'!K43","v":39005018},{"$f":"'A6-FinPos'!L43","v":39005018}]
["Community wealth/Equity",{"$f":"'A6-FinPos'!C50","v":104541556},{"$f":"'A6-FinPos'!D50","v":60895110},{"$f":"'A6-FinPos'!E50","v":31571777},{"$f":"'A6-FinPos'!F50","v":2265579419},{"$f":"'A6-FinPos'!G50","v":1690977019.820128},{"$f":"'A6-FinPos'!H50","v":1690977019.820128},{"$f":"'A6-FinPos'!I50","v":1690977019.820128},{"$f":"'A6-FinPos'!J50","v":1159239158.3567948},{"$f":"'A6-FinPos'!K50","v":1109354564.4067945},{"$f":"'A6-FinPos'!L50","v":1025853136.6644447}]
["Cash flows"]
["Net cash from (used) operating",{"$f":"'A7-CFlow'!C17","v":0},{"$f":"'A7-CFlow'!D17","v":0},{"$f":"'A7-CFlow'!E17","v":0},{"$f":"'A7-CFlow'!F17","v":111770269},{"$f":"'A7-CFlow'!G17","v":121176111},{"$f":"'A7-CFlow'!H17","v":121176111},{"$f":"'A7-CFlow'!I17","v":121176111},{"$f":"'A7-CFlow'!J17","v":121593614.25},{"$f":"'A7-CFlow'!K17","v":135668583.85765004},{"$f":"'A7-CFlow'!L17","v":134789739.39555961}]
["Net cash from (used) investing",{"$f":"'A7-CFlow'!C26","v":0},{"$f":"'A7-CFlow'!D26","v":0},{"$f":"'A7-CFlow'!E26","v":0},{"$f":"'A7-CFlow'!F26","v":-148172229},{"$f":"'A7-CFlow'!G26","v":-138107867},{"$f":"'A7-CFlow'!H26","v":-138107867},{"$f":"'A7-CFlow'!I26","v":-138107867},{"$f":"'A7-CFlow'!J26","v":-182609867},{"$f":"'A7-CFlow'!K26","v":-199326013},{"$f":"'A7-CFlow'!L26","v":-183581234}]
["Net cash from (used) financing",{"$f":"'A7-CFlow'!C35","v":0},{"$f":"'A7-CFlow'!D35","v":0},{"$f":"'A7-CFlow'!E35","v":0},{"$f":"'A7-CFlow'!F35","v":0},{"$f":"'A7-CFlow'!G35","v":0},{"$f":"'A7-CFlow'!H35","v":0},{"$f":"'A7-CFlow'!I35","v":0},{"$f":"'A7-CFlow'!J35","v":0},{"$f":"'A7-CFlow'!K35","v":0},{"$f":"'A7-CFlow'!L35","v":0}]
[{"$f":"LEFT('A7-CFlow'!A39,37)","v":"Cash/cash equivalents at the year end"},{"$f":"'A7-CFlow'!C39","v":0},{"$f":"'A7-CFlow'!D39","v":0},{"$f":"'A7-CFlow'!E39","v":0},{"$f":"'A7-CFlow'!F39","v":183648993},{"$f":"'A7-CFlow'!G39","v":185262204.91666678},{"$f":"'A7-CFlow'!H39","v":185262204.91666678},{"$f":"'A7-CFlow'!I39","v":185262204.91666678},{"$f":"'A7-CFlow'!J39","v":124245952.16666678},{"$f":"'A7-CFlow'!K39","v":60588523.024316818},{"$f":"'A7-CFlow'!L39","v":11797028.419876426}]
[]
["Cash backing/surplus reconciliation"]
[{"$f":"'A8-ResRecon'!A4","v":"Cash and investments available"},{"$f":"'A8-ResRecon'!C8","v":63465224},{"$f":"'A8-ResRecon'!D8","v":27663596},{"$f":"'A8-ResRecon'!E8","v":15447455},{"$f":"'A8-ResRecon'!F8","v":2325886252},{"$f":"'A8-ResRecon'!G8","v":1455973368.820128},{"$f":"'A8-ResRecon'!H8","v":1455973368.820128},{"$f":"'A8-ResRecon'!I8","v":1455973368.820128},{"$f":"'A8-ResRecon'!J8","v":1092059228.2067947},{"$f":"'A8-ResRecon'!K8","v":1041474590.0644447},{"$f":"'A8-ResRecon'!L8","v":976820185.46000433}]
[{"$f":"'A8-ResRecon'!A10","v":"Application of cash and investments"},{"$f":"'A8-ResRecon'!C18","v":120463902},{"$f":"'A8-ResRecon'!D18","v":141352740},{"$f":"'A8-ResRecon'!E18","v":166300374},{"$f":"'A8-ResRecon'!F18","v":-155651975},{"$f":"'A8-ResRecon'!G18","v":111314365},{"$f":"'A8-ResRecon'!H18","v":111314365},{"$f":"'A8-ResRecon'!I18","v":111314365},{"$f":"'A8-ResRecon'!J18","v":48782299.850000024},{"$f":"'A8-ResRecon'!K18","v":46544344.657650024},{"$f":"'A8-ResRecon'!L18","v":65100976.795559585}]
["Balance - surplus (shortfall)",{"$f":"B45-B46","v":-56998678},{"$f":"C45-C46","v":-113689144},-150852919,2481538227,1344659003.820128,1344659003.820128,1344659003.820128,1043276928.3567947,994930245.40679467,911719208.66444468]
["Asset management"]
["Asset register summary (WDV)",{"$f":"'A9-Asset'!C180","v":-372699471},{"$f":"'A9-Asset'!D180","v":-476335073},{"$f":"'A9-Asset'!E180","v":-556621819},{"$f":"'A9-Asset'!F180","v":2077447401},{"$f":"'A9-Asset'!G180","v":940843558},{"$f":"'A9-Asset'!H180","v":940843558},{"$f":"'A9-Asset'!I180","v":871362255},{"$f":"'A9-Asset'!J180","v":868397255},{"$f":"'A9-Asset'!K180","v":867997255},{"$f":"'A9-Asset'!L180","v":0}]
[{"$f":"'A9-Asset'!A183","v":"Depreciation"},{"$f":"'A9-Asset'!C183","v":85214519},{"$f":"'A9-Asset'!D183","v":90769641},{"$f":"'A9-Asset'!E183","v":96276758},{"$f":"'A9-Asset'!F183","v":91000000},{"$f":"'A9-Asset'!G183","v":91000000},{"$f":"'A9-Asset'!H183","v":91000000},{"$f":"'A9-Asset'!I183","v":95000000},{"$f":"'A9-Asset'!J183","v":96000000},{"$f":"'A9-Asset'!K183","v":97000000},{"$f":"'A9-Asset'!L183","v":0}]
["Renewal and Upgrading of Existing Assets",{"$f":"'A9-Asset'!C40+'A9-Asset'!C75","v":19905061},{"$f":"'A9-Asset'!D40+'A9-Asset'!D75","v":20916862},{"$f":"'A9-Asset'!E40+'A9-Asset'!E75","v":30590508},{"$f":"'A9-Asset'!F40+'A9-Asset'!F75","v":23143541},{"$f":"'A9-Asset'!G40+'A9-Asset'!G75","v":18193530},{"$f":"'A9-Asset'!H40+'A9-Asset'!H75","v":18193530},{"$f":"'A9-Asset'!I40+'A9-Asset'!I75","v":23069189},{"$f":"'A9-Asset'!J40+'A9-Asset'!J75","v":14600000},{"$f":"'A9-Asset'!K40+'A9-Asset'!K75","v":1200000},{"$f":"'A9-Asset'!L40+'A9-Asset'!L75","v":0}]
["Repairs and Maintenance",{"$f":"'A9-Asset'!C184","v":5698752},{"$f":"'A9-Asset'!D184","v":7162471},{"$f":"'A9-Asset'!E184","v":20762933},{"$f":"'A9-Asset'!F184","v":45700000},{"$f":"'A9-Asset'!G184","v":66650000},{"$f":"'A9-Asset'!H184","v":66650000},{"$f":"'A9-Asset'!I184","v":62620000},{"$f":"'A9-Asset'!J184","v":66065000},{"$f":"'A9-Asset'!K184","v":67465000},{"$f":"'A9-Asset'!L184","v":0}]
[]
["Free services"]
["Cost of Free Basic Services provided",{"$f":"'A10-SerDel'!C60","v":0},{"$f":"'A10-SerDel'!D60","v":0},{"$f":"'A10-SerDel'!E60","v":0},{"$f":"'A10-SerDel'!F60","v":0},{"$f":"'A10-SerDel'!G60","v":0},{"$f":"'A10-SerDel'!H60","v":0},{"$f":"'A10-SerDel'!I60","v":0},{"$f":"'A10-SerDel'!J60","v":0},{"$f":"'A10-SerDel'!K60","v":0},{"$f":"'A10-SerDel'!L60","v":0}]
["Revenue cost of free services provided",{"$f":"'A10-SerDel'!C79","v":0},{"$f":"'A10-SerDel'!D79","v":0},{"$f":"'A10-SerDel'!E79","v":0},{"$f":"'A10-SerDel'!F79","v":0},{"$f":"'A10-SerDel'!G79","v":0},{"$f":"'A10-SerDel'!H79","v":0},{"$f":"'A10-SerDel'!I79","v":0},{"$f":"'A10-SerDel'!J79","v":0},{"$f":"'A10-SerDel'!K79","v":0},{"$f":"'A10-SerDel'!L79","v":0}]
["Households below minimum service level"]
[{"$f":"'A10-SerDel'!A5","v":"Water:"},{"$f":"'A10-SerDel'!C14","v":0},{"$f":"'A10-SerDel'!D14","v":0},{"$f":"'A10-SerDel'!E14","v":0},{"$f":"'A10-SerDel'!F14","v":0},{"$f":"'A10-SerDel'!G14","v":0},{"$f":"'A10-SerDel'!H14","v":0},{"$f":"'A10-SerDel'!I14","v":0},{"$f":"'A10-SerDel'!J14","v":0},{"$f":"'A10-SerDel'!K14","v":0},{"$f":"'A10-SerDel'!L14","v":0}]
[{"$f":"'A10-SerDel'!A16","v":"Sanitation/sewerage:"},{"$f":"'A10-SerDel'!C26","v":0},{"$f":"'A10-SerDel'!D26","v":0},{"$f":"'A10-SerDel'!E26","v":0},{"$f":"'A10-SerDel'!F26","v":0},{"$f":"'A10-SerDel'!G26","v":0},{"$f":"'A10-SerDel'!H26","v":0},{"$f":"'A10-SerDel'!I26","v":0},{"$f":"'A10-SerDel'!J26","v":0},{"$f":"'A10-SerDel'!K26","v":0},{"$f":"'A10-SerDel'!L26","v":0}]
[{"$f":"'A10-SerDel'!A28","v":"Energy:"},{"$f":"'A10-SerDel'!C35","v":0},{"$f":"'A10-SerDel'!D35","v":0},{"$f":"'A10-SerDel'!E35","v":0},{"$f":"'A10-SerDel'!F35","v":0},{"$f":"'A10-SerDel'!G35","v":0},{"$f":"'A10-SerDel'!H35","v":0},{"$f":"'A10-SerDel'!I35","v":0},{"$f":"'A10-SerDel'!J35","v":0},{"$f":"'A10-SerDel'!K35","v":0},{"$f":"'A10-SerDel'!L35","v":0}]
[{"$f":"'A10-SerDel'!A37","v":"Refuse:"},{"$f":"'A10-SerDel'!C45","v":0},{"$f":"'A10-SerDel'!D45","v":0},{"$f":"'A10-SerDel'!E45","v":0},{"$f":"'A10-SerDel'!F45","v":0},{"$f":"'A10-SerDel'!G45","v":0},{"$f":"'A10-SerDel'!H45","v":0},{"$f":"'A10-SerDel'!I45","v":0},{"$f":"'A10-SerDel'!J45","v":0},{"$f":"'A10-SerDel'!K45","v":0},{"$f":"'A10-SerDel'!L45","v":0}]

{"sheet":"A2-FinPerf SC","index":31,"n_rows":58,"n_cols":11,"rows_kept":58,"cut":false,"hidden":false,"merged":[[53,0,53,10],[1,5,1,7],[1,8,1,10]]}
[{"$f":"muni&\" - \"&Approve3","v":"LIM331 Greater Giyani - Table A2 Budgeted Financial Performance (revenue and expenditure by functional classification)"}]
[{"$f":"\"Functional Classification \"&desc","v":"Functional Classification Description"},{"$f":"head27","v":"Ref"},{"$f":"head1b","v":"2019/20"},{"$f":"head1A","v":"2020/21"},{"$f":"Head1","v":"2021/22"},{"$f":"Head2","v":"Current Year 2022/23"},null,null,{"$f":"Head3","v":"2023/24 Medium Term Revenue & Expenditure Framework"}]
["R thousand",1,{"$f":"Head5","v":"Audited Outcome"},{"$f":"Head5","v":"Audited Outcome"},{"$f":"Head5","v":"Audited Outcome"},{"$f":"Head6","v":"Original Budget"},{"$f":"Head7","v":"Adjusted Budget"},{"$f":"Head8","v":"Full Year Forecast"},{"$f":"Head9","v":"Budget Year 2023/24"},{"$f":"Head10","v":"Budget Year +1 2024/25"},{"$f":"Head11","v":"Budget Year +2 2025/26"}]
["Revenue - Functional"]
["Governance and administration",null,{"$f":"SUM(C6:C8)","v":576134872},{"$f":"SUM(D6:D8)","v":576134872},576134872,576134872,578159979,578159979,617622491,644518605,645216367]
["Executive and council",null,{"$f":"A2A!C6","v":0},{"$f":"A2A!D6","v":0},{"$f":"A2A!E6","v":0},{"$f":"A2A!F6","v":0},{"$f":"A2A!G6","v":0},{"$f":"A2A!H6","v":0},{"$f":"A2A!I6","v":0},{"$f":"A2A!J6","v":0},{"$f":"A2A!K6","v":0}]
["Finance and administration",null,{"$f":"A2A!C9","v":576134872},{"$f":"A2A!D9","v":576134872},{"$f":"A2A!E9","v":576134872},{"$f":"A2A!F9","v":576134872},{"$f":"A2A!G9","v":578159979},{"$f":"A2A!H9","v":578159979},{"$f":"A2A!I9","v":617622491},{"$f":"A2A!J9","v":644518605},{"$f":"A2A!K9","v":645216367}]
["Internal audit",null,{"$f":"A2A!C23","v":0},{"$f":"A2A!D23","v":0},{"$f":"A2A!E23","v":0},{"$f":"A2A!F23","v":0},{"$f":"A2A!G23","v":0},{"$f":"A2A!H23","v":0},{"$f":"A2A!I23","v":0},{"$f":"A2A!J23","v":0},{"$f":"A2A!K23","v":0}]
["Community and public safety",null,{"$f":"SUM(C10:C14)","v":741600},{"$f":"SUM(D10:D14)","v":741600},741600,741600,947600,947600,1015939,1065720,1115807]
["Community and social services",null,{"$f":"A2A!C26","v":691600},{"$f":"A2A!D26","v":691600},{"$f":"A2A!E26","v":691600},{"$f":"A2A!F26","v":691600},{"$f":"A2A!G26","v":497600},{"$f":"A2A!H26","v":497600},{"$f":"A2A!I26","v":565939},{"$f":"A2A!J26","v":593670},{"$f":"A2A!K26","v":621571}]
["Sport and recreation",null,{"$f":"A2A!C48","v":50000},{"$f":"A2A!D48","v":50000},{"$f":"A2A!E48","v":50000},{"$f":"A2A!F48","v":50000},{"$f":"A2A!G48","v":450000},{"$f":"A2A!H48","v":450000},{"$f":"A2A!I48","v":450000},{"$f":"A2A!J48","v":472050},{"$f":"A2A!K48","v":494236}]
["Public safety",null,{"$f":"A2A!C54","v":0},{"$f":"A2A!D54","v":0},{"$f":"A2A!E54","v":0},{"$f":"A2A!F54","v":0},{"$f":"A2A!G54","v":0},{"$f":"A2A!H54","v":0},{"$f":"A2A!I54","v":0},{"$f":"A2A!J54","v":0},{"$f":"A2A!K54","v":0}]
["Housing",null,{"$f":"A2A!C63","v":0},{"$f":"A2A!D63","v":0},{"$f":"A2A!E63","v":0},{"$f":"A2A!F63","v":0},{"$f":"A2A!G63","v":0},{"$f":"A2A!H63","v":0},{"$f":"A2A!I63","v":0},{"$f":"A2A!J63","v":0},{"$f":"A2A!K63","v":0}]
["Health",null,{"$f":"A2A!C66","v":0},{"$f":"A2A!D66","v":0},{"$f":"A2A!E66","v":0},{"$f":"A2A!F66","v":0},{"$f":"A2A!G66","v":0},{"$f":"A2A!H66","v":0},{"$f":"A2A!I66","v":0},{"$f":"A2A!J66","v":0},{"$f":"A2A!K66","v":0}]
["Economic and environmental services",null,{"$f":"SUM(C16:C18)","v":9470000},{"$f":"SUM(D16:D18)","v":9470000},9470000,9470000,8680000,8680000,9570000,10038930,10510759]
["Planning and development",null,{"$f":"A2A!C75","v":1020000},{"$f":"A2A!D75","v":1020000},{"$f":"A2A!E75","v":1020000},{"$f":"A2A!F75","v":1020000},{"$f":"A2A!G75","v":670000},{"$f":"A2A!H75","v":670000},{"$f":"A2A!I75","v":820000},{"$f":"A2A!J75","v":860180},{"$f":"A2A!K75","v":900608}]
["Road transport",null,{"$f":"A2A!C86","v":8450000},{"$f":"A2A!D86","v":8450000},{"$f":"A2A!E86","v":8450000},{"$f":"A2A!F86","v":8450000},{"$f":"A2A!G86","v":8010000},{"$f":"A2A!H86","v":8010000},{"$f":"A2A!I86","v":8750000},{"$f":"A2A!J86","v":9178750},{"$f":"A2A!K86","v":9610151}]
["Environmental protection",null,{"$f":"A2A!C91","v":0},{"$f":"A2A!D91","v":0},{"$f":"A2A!E91","v":0},{"$f":"A2A!F91","v":0},{"$f":"A2A!G91","v":0},{"$f":"A2A!H91","v":0},{"$f":"A2A!I91","v":0},{"$f":"A2A!J91","v":0},{"$f":"A2A!K91","v":0}]
["Trading services",null,{"$f":"SUM(C20:C23)","v":13816930},{"$f":"SUM(D20:D23)","v":13816930},13816930,13816930,12007090,12007090,12648695,{"$f":"SUM(J20:J23)","v":13268482},13892100]
["Energy sources",null,{"$f":"A2A!C99","v":0},{"$f":"A2A!D99","v":0},{"$f":"A2A!E99","v":0},{"$f":"A2A!F99","v":0},{"$f":"A2A!G99","v":0},{"$f":"A2A!H99","v":0},{"$f":"A2A!I99","v":0},{"$f":"A2A!J99","v":0},{"$f":"A2A!K99","v":0}]
["Water management",null,{"$f":"A2A!C103","v":0},{"$f":"A2A!D103","v":0},{"$f":"A2A!E103","v":0},{"$f":"A2A!F103","v":0},{"$f":"A2A!G103","v":0},{"$f":"A2A!H103","v":0},{"$f":"A2A!I103","v":0},{"$f":"A2A!J103","v":0},{"$f":"A2A!K103","v":0}]
["Waste water management",null,{"$f":"A2A!C107","v":0},{"$f":"A2A!D107","v":0},{"$f":"A2A!E107","v":0},{"$f":"A2A!F107","v":0},{"$f":"A2A!G107","v":0},{"$f":"A2A!H107","v":0},{"$f":"A2A!I107","v":0},{"$f":"A2A!J107","v":0},{"$f":"A2A!K107","v":0}]
["Waste management",null,{"$f":"A2A!C112","v":13816930},{"$f":"A2A!D112","v":13816930},{"$f":"A2A!E112","v":13816930},{"$f":"A2A!F112","v":13816930},{"$f":"A2A!G112","v":12007090},{"$f":"A2A!H112","v":12007090},{"$f":"A2A!I112","v":12648695},{"$f":"A2A!J112","v":13268482},{"$f":"A2A!K112","v":13892100}]
["Other",4,{"$f":"A2A!C117","v":0},{"$f":"A2A!D117","v":0},{"$f":"A2A!E117","v":0},{"$f":"A2A!F117","v":0},{"$f":"A2A!G117","v":0},{"$f":"A2A!H117","v":0},{"$f":"A2A!I117","v":0},{"$f":"A2A!J117","v":0},{"$f":"A2A!K117","v":0}]
[{"$f":"\"Total \"&A4","v":"Total Revenue - Functional"},2,{"$f":"C5+C9+C15+C19+C24","v":600163402},{"$f":"D5+D9+D15+D19+D24","v":600163402},{"$f":"E5+E9+E15+E19+E24","v":600163402},600163402,599794669,599794669,{"$f":"I5+I9+I15+I19+I24","v":640857125},668891737,670735033]
[]
["Expenditure - Functional"]
["Governance and administration",null,{"$f":"SUM(C29:C31)","v":335100425},{"$f":"SUM(D29:D31)","v":335100425},335100425,335100425,334195630,334195630,365021920,375847789,388404173]
["Executive and council",null,{"$f":"A2A!C128","v":41143288},{"$f":"A2A!D128","v":41143288},{"$f":"A2A!E128","v":41143288},{"$f":"A2A!F128","v":41143288},{"$f":"A2A!G128","v":43901974},{"$f":"A2A!H128","v":43901974},{"$f":"A2A!I128","v":48480732},{"$f":"A2A!J128","v":50659755},{"$f":"A2A!K128","v":52693321}]
["Finance and administration",null,{"$f":"A2A!C131","v":291050291},{"$f":"A2A!D131","v":291050291},{"$f":"A2A!E131","v":291050291},{"$f":"A2A!F131","v":291050291},{"$f":"A2A!G131","v":287316473},{"$f":"A2A!H131","v":287316473},{"$f":"A2A!I131","v":313533919},{"$f":"A2A!J131","v":322056068},{"$f":"A2A!K131","v":332427431}]
["Internal audit",null,{"$f":"A2A!C145","v":2906846},{"$f":"A2A!D145","v":2906846},{"$f":"A2A!E145","v":2906846},{"$f":"A2A!F145","v":2906846},{"$f":"A2A!G145","v":2977183},{"$f":"A2A!H145","v":2977183},{"$f":"A2A!I145","v":3007269},{"$f":"A2A!J145","v":3131966},{"$f":"A2A!K145","v":3283421}]
["Community and public safety",null,{"$f":"SUM(C33:C37)","v":27131756},{"$f":"SUM(D33:D37)","v":27131756},27131756,27131756,23900655,23900655,26350054,27169372,28367906]
["Community and social services",null,{"$f":"A2A!C148","v":17296087},{"$f":"A2A!D148","v":17296087},{"$f":"A2A!E148","v":17296087},{"$f":"A2A!F148","v":17296087},{"$f":"A2A!G148","v":12965263},{"$f":"A2A!H148","v":12965263},{"$f":"A2A!I148","v":16180393},{"$f":"A2A!J148","v":16720628},{"$f":"A2A!K148","v":17437753}]
["Sport and recreation",null,{"$f":"A2A!C170","v":7927234},{"$f":"A2A!D170","v":7927234},{"$f":"A2A!E170","v":7927234},{"$f":"A2A!F170","v":7927234},{"$f":"A2A!G170","v":9456562},{"$f":"A2A!H170","v":9456562},{"$f":"A2A!I170","v":8323738},{"$f":"A2A!J170","v":8585467},{"$f":"A2A!K170","v":8945044}]
["Public safety",null,{"$f":"A2A!C176","v":450000},{"$f":"A2A!D176","v":450000},{"$f":"A2A!E176","v":450000},{"$f":"A2A!F176","v":450000},{"$f":"A2A!G176","v":100000},{"$f":"A2A!H176","v":100000},{"$f":"A2A!I176","v":300000},{"$f":"A2A!J176","v":350000},{"$f":"A2A!K176","v":400000}]
["Housing",null,{"$f":"A2A!C185","v":1458435},{"$f":"A2A!D185","v":1458435},{"$f":"A2A!E185","v":1458435},{"$f":"A2A!F185","v":1458435},{"$f":"A2A!G185","v":1378830},{"$f":"A2A!H185","v":1378830},{"$f":"A2A!I185","v":1545923},{"$f":"A2A!J185","v":1513277},{"$f":"A2A!K185","v":1585109}]
["Health",null,{"$f":"A2A!C188","v":0},{"$f":"A2A!D188","v":0},{"$f":"A2A!E188","v":0},{"$f":"A2A!F188","v":0},{"$f":"A2A!G188","v":0},{"$f":"A2A!H188","v":0},{"$f":"A2A!I188","v":0},{"$f":"A2A!J188","v":0},{"$f":"A2A!K188","v":0}]
["Economic and environmental services",null,{"$f":"SUM(C39:C41)","v":110192109},{"$f":"SUM(D39:D41)","v":110192109},110192109,110192109,120812281,120812281,121458789,125865747,132323528]
["Planning and development",null,{"$f":"A2A!C197","v":31772469},{"$f":"A2A!D197","v":31772469},{"$f":"A2A!E197","v":31772469},{"$f":"A2A!F197","v":31772469},{"$f":"A2A!G197","v":27809434},{"$f":"A2A!H197","v":27809434},{"$f":"A2A!I197","v":28911078},{"$f":"A2A!J197","v":31912910},{"$f":"A2A!K197","v":34981557}]
["Road transport",null,{"$f":"A2A!C208","v":78419640},{"$f":"A2A!D208","v":78419640},{"$f":"A2A!E208","v":78419640},{"$f":"A2A!F208","v":78419640},{"$f":"A2A!G208","v":93002847},{"$f":"A2A!H208","v":93002847},{"$f":"A2A!I208","v":92547711},{"$f":"A2A!J208","v":93952837},{"$f":"A2A!K208","v":97341971}]
["Environmental protection",null,{"$f":"A2A!C213","v":0},{"$f":"A2A!D213","v":0},{"$f":"A2A!E213","v":0},{"$f":"A2A!F213","v":0},{"$f":"A2A!G213","v":0},{"$f":"A2A!H213","v":0},{"$f":"A2A!I213","v":0},{"$f":"A2A!J213","v":0},{"$f":"A2A!K213","v":0}]
["Trading services",null,{"$f":"SUM(C43:C46)","v":76186685},{"$f":"SUM(D43:D46)","v":76186685},76186685,{"$f":"SUM(F43:F46)","v":76186685},75759159,75759159,93190653,89799343,{"$f":"SUM(K43:K46)","v":88991201}]
["Energy sources",null,{"$f":"A2A!C221","v":57331169},{"$f":"A2A!D221","v":57331169},{"$f":"A2A!E221","v":57331169},{"$f":"A2A!F221","v":57331169},{"$f":"A2A!G221","v":61500576},{"$f":"A2A!H221","v":61500576},{"$f":"A2A!I221","v":72893701},{"$f":"A2A!J221","v":68742676},{"$f":"A2A!K221","v":66930600}]
["Water management",null,{"$f":"A2A!C225","v":0},{"$f":"A2A!D225","v":0},{"$f":"A2A!E225","v":0},{"$f":"A2A!F225","v":0},{"$f":"A2A!G225","v":0},{"$f":"A2A!H225","v":0},{"$f":"A2A!I225","v":0},{"$f":"A2A!J225","v":0},{"$f":"A2A!K225","v":0}]
["Waste water management",null,{"$f":"A2A!C229","v":0},{"$f":"A2A!D229","v":0},{"$f":"A2A!E229","v":0},{"$f":"A2A!F229","v":0},{"$f":"A2A!G229","v":0},{"$f":"A2A!H229","v":0},{"$f":"A2A!I229","v":0},{"$f":"A2A!J229","v":0},{"$f":"A2A!K229","v":0}]
["Waste management",null,{"$f":"A2A!C234","v":18855516},{"$f":"A2A!D234","v":18855516},{"$f":"A2A!E234","v":18855516},{"$f":"A2A!F234","v":18855516},{"$f":"A2A!G234","v":14258583},{"$f":"A2A!H234","v":14258583},{"$f":"A2A!I234","v":20296952},{"$f":"A2A!J234","v":21056667},{"$f":"A2A!K234","v":22060601}]
["Other",4,{"$f":"A2A!C239","v":0},{"$f":"A2A!D239","v":0},{"$f":"A2A!E239","v":0},{"$f":"A2A!F239","v":0},{"$f":"A2A!G239","v":0},{"$f":"A2A!H239","v":0},{"$f":"A2A!I239","v":0},{"$f":"A2A!J239","v":0},{"$f":"A2A!K239","v":0}]
[{"$f":"\"Total \"&A27","v":"Total Expenditure - Functional"},3,{"$f":"C28+C32+C38+C42+C47","v":548610975},{"$f":"D28+D32+D38+D42+D47","v":548610975},{"$f":"E28+E32+E38+E42+E47","v":548610975},{"$f":"F28+F32+F38+F42+F47","v":548610975},554667725,554667725,606021416,618682251,638086808]
[{"$f":"result","v":"Surplus/(Deficit) for the year"},null,{"$f":"C25-C48","v":51552427},{"$f":"D25-D48","v":51552427},51552427,51552427,45126944,45126944,34835709,50209486,32648225]
[{"$f":"head27a","v":"References"}]
["1. Government Finance Statistics Functions and Sub-functions are standardised to assist the compilation of national and international accounts for comparison purposes"]
["2. Total Revenue by functional classification must reconcile to Total Operating Revenue shown in Budgeted Financial Performance (revenue and expenditure)"]
["3. Total Expenditure by Functional Classification must reconcile to Total Operating Expenditure shown in Budgeted Financial Performance (revenue and expenditure)"]
["4. All amounts must be classified under a functional classification . The GFS function 'Other' is only for Abbatoirs, Air Transport,  Forestry, Licensing and Regulation, Markets and Tourism - and if used must be supported by footnotes. Nothing else may be placed under 'Other'. Assign associate share to relevant classification."]
[]
[]
["check oprev balance",null,{"$f":"C25-'A4-FinPerf RE'!C32","v":193731829},{"$f":"D25-'A4-FinPerf RE'!D32","v":103795194},{"$f":"E25-'A4-FinPerf RE'!E32","v":120486829},{"$f":"F25-'A4-FinPerf RE'!F32","v":69261000},{"$f":"G25-'A4-FinPerf RE'!G32","v":78211604},{"$f":"H25-'A4-FinPerf RE'!H32","v":78211604},{"$f":"I25-'A4-FinPerf RE'!I32","v":119274060},{"$f":"J25-'A4-FinPerf RE'!J32","v":132583612},{"$f":"K25-'A4-FinPerf RE'!K32","v":104437296}]
["check opexp balance",null,{"$f":"C48-'A4-FinPerf RE'!C47","v":401960982},{"$f":"D48-'A4-FinPerf RE'!D47","v":130886438},{"$f":"E48-'A4-FinPerf RE'!E47","v":105193777},{"$f":"F48-'A4-FinPerf RE'!F47","v":0},{"$f":"G48-'A4-FinPerf RE'!G47","v":0},{"$f":"H48-'A4-FinPerf RE'!H47","v":0},{"$f":"I48-'A4-FinPerf RE'!J47","v":0},{"$f":"J48-'A4-FinPerf RE'!K47","v":0},{"$f":"K48-'A4-FinPerf RE'!L47","v":0}]

{"sheet":"A2A","index":32,"n_rows":256,"n_cols":30,"rows_kept":256,"cut":false,"hidden":false,"merged":[[1,5,1,7],[1,8,1,10],[251,0,251,10]]}
[{"$f":"muni&\" - \"&Approve3","v":"LIM331 Greater Giyani - Table A2 Budgeted Financial Performance (revenue and expenditure by functional classification)"}]
[{"$f":"\"Functional Classification \"&desc","v":"Functional Classification Description"},{"$f":"head27","v":"Ref"},{"$f":"head1b","v":"2019/20"},{"$f":"head1A","v":"2020/21"},{"$f":"Head1","v":"2021/22"},{"$f":"Head2","v":"Current Year 2022/23"},null,null,{"$f":"Head3","v":"2023/24 Medium Term Revenue & Expenditure Framework"}]
["R thousand",1,{"$f":"Head5","v":"Audited Outcome"},{"$f":"Head5","v":"Audited Outcome"},{"$f":"Head5","v":"Audited Outcome"},{"$f":"Head6","v":"Original Budget"},{"$f":"Head7","v":"Adjusted Budget"},{"$f":"Head8","v":"Full Year Forecast"},{"$f":"Head9","v":"Budget Year 2023/24"},{"$f":"Head10","v":"Budget Year +1 2024/25"},{"$f":"Head11","v":"Budget Year +2 2025/26"}]
["Revenue - Functional"]
["Municipal governance and administration",null,{"$f":"C6+C9+C23","v":576134872},576134872,576134872,576134872,578159979,578159979,617622491,644518605,645216367]
["Executive and council",null,{"$f":"SUM(C7:C8)","v":0},{"$f":"SUM(D7:D8)","v":0},0,0,0,0,0,0,0]
["Mayor and Council",null,{"$f":"-SUMIFS(Sheet1!S71_OriginalBudAmnt,Sheet1!S71_A2SubCode,$AC:$AC,Sheet1!S71_ItemType,$AD:$AD)","v":0},{"$f":"-SUMIFS(Sheet1!S71_OriginalBudAmnt,Sheet1!S71_A2SubCode,$AC:$AC,Sheet1!S71_ItemType,$AD:$AD)","v":0},{"$f":"-SUMIFS(Sheet1!S71_OriginalBudAmnt,Sheet1!S71_A2SubCode,$AC:$AC,Sheet1!S71_ItemType,$AD:$AD)","v":0},{"$f":"-SUMIFS(Sheet1!S71_OriginalBudAmnt,Sheet1!S71_A2SubCode,$AC:$AC,Sheet1!S71_ItemType,$AD:$AD)","v":0},{"$f":"-SUMIFS(Sheet1!S71_AdjustmentBudAmnt,Sheet1!S71_A2SubCode,$AC:$AC,Sheet1!S71_ItemType,$AD:$AD)","v":0},{"$f":"-SUMIFS(Sheet1!S71_AdjustmentBudAmnt,Sheet1!S71_A2SubCode,$AC:$AC,Sheet1!S71_ItemType,$AD:$AD)","v":0},{"$f":"SUMIFS(Sheet1!S71_ASBudgetAmount,Sheet1!S71_A2SubCode,$AC:$AC,Sheet1!S71_ItemType,$AD:$AD)","v":0},{"$f":"SUMIFS(Sheet1!S71_OY1BudgetAmount,Sheet1!S71_A2SubCode,$AC:$AC,Sheet1!S71_ItemType,$AD:$AD)","v":0},{"$f":"SUMIFS(Sheet1!S71_OY2BudgetAmount,Sheet1!S71_A2SubCode,$AC:$AC,Sheet1!S71_ItemType,$AD:$AD)","v":0},null,null,null,null,null,null,null,null,null,null,null,null,null,null,null,null,null,"1110","IR"]
["Municipal Manager, Town Secretary and Chief Executive",null,{"$f":"-SUMIFS(Sheet1!S71_OriginalBudAmnt,Sheet1!S71_A2SubCode,$AC:$AC,Sheet1!S71_ItemType,$AD:$AD)","v":0},{"$f":"-SUMIFS(Sheet1!S71_OriginalBudAmnt,Sheet1!S71_A2SubCode,$AC:$AC,Sheet1!S71_ItemType,$AD:$AD)","v":0},{"$f":"-SUMIFS(Sheet1!S71_OriginalBudAmnt,Sheet1!S71_A2SubCode,$AC:$AC,Sheet1!S71_ItemType,$AD:$AD)","v":0},{"$f":"-SUMIFS(Sheet1!S71_OriginalBudAmnt,Sheet1!S71_A2SubCode,$AC:$AC,Sheet1!S71_ItemType,$AD:$AD)","v":0},{"$f":"-SUMIFS(Sheet1!S71_AdjustmentBudAmnt,Sheet1!S71_A2SubCode,$AC:$AC,Sheet1!S71_ItemType,$AD:$AD)","v":0},{"$f":"-SUMIFS(Sheet1!S71_AdjustmentBudAmnt,Sheet1!S71_A2SubCode,$AC:$AC,Sheet1!S71_ItemType,$AD:$AD)","v":0},{"$f":"SUMIFS(Sheet1!S71_ASBudgetAmount,Sheet1!S71_A2SubCode,$AC:$AC,Sheet1!S71_ItemType,$AD:$AD)","v":0},{"$f":"SUMIFS(Sheet1!S71_OY1BudgetAmount,Sheet1!S71_A2SubCode,$AC:$AC,Sheet1!S71_ItemType,$AD:$AD)","v":0},{"$f":"SUMIFS(Sheet1!S71_OY2BudgetAmount,Sheet1!S71_A2SubCode,$AC:$AC,Sheet1!S71_ItemType,$AD:$AD)","v":0},null,null,null,null,null,null,null,null,null,null,null,null,null,null,null,null,null,"1120","IR"]
["Finance and administration",null,{"$f":"SUM(C10:C22)","v":576134872},576134872,576134872,576134872,578159979,578159979,617622491,644518605,645216367,null,null,null,null,null,null,null,null,null,null,null,null,null,null,null,null,null,null,"IR"]
["Administrative and Corporate Support",null,{"$f":"-SUMIFS(Sheet1!S71_OriginalBudAmnt,Sheet1!S71_A2SubCode,$AC:$AC,Sheet1!S71_ItemType,$AD:$AD)","v":0},{"$f":"-SUMIFS(Sheet1!S71_OriginalBudAmnt,Sheet1!S71_A2SubCode,$AC:$AC,Sheet1!S71_ItemType,$AD:$AD)","v":0},{"$f":"-SUMIFS(Sheet1!S71_OriginalBudAmnt,Sheet1!S71_A2SubCode,$AC:$AC,Sheet1!S71_ItemType,$AD:$AD)","v":0},{"$f":"-SUMIFS(Sheet1!S71_OriginalBudAmnt,Sheet1!S71_A2SubCode,$AC:$AC,Sheet1!S71_ItemType,$AD:$AD)","v":0},{"$f":"-SUMIFS(Sheet1!S71_AdjustmentBudAmnt,Sheet1!S71_A2SubCode,$AC:$AC,Sheet1!S71_ItemType,$AD:$AD)","v":0},{"$f":"-SUMIFS(Sheet1!S71_AdjustmentBudAmnt,Sheet1!S71_A2SubCode,$AC:$AC,Sheet1!S71_ItemType,$AD:$AD)","v":0},{"$f":"SUMIFS(Sheet1!S71_ASBudgetAmount,Sheet1!S71_A2SubCode,$AC:$AC,Sheet1!S71_ItemType,$AD:$AD)","v":0},{"$f":"SUMIFS(Sheet1!S71_OY1BudgetAmount,Sheet1!S71_A2SubCode,$AC:$AC,Sheet1!S71_ItemType,$AD:$AD)","v":0},{"$f":"SUMIFS(Sheet1!S71_OY2BudgetAmount,Sheet1!S71_A2SubCode,$AC:$AC,Sheet1!S71_ItemType,$AD:$AD)","v":0},null,null,null,null,null,null,null,null,null,null,null,null,null,null,null,null,null,"1201","IR"]
["Asset Management",null,{"$f":"-SUMIFS(Sheet1!S71_OriginalBudAmnt,Sheet1!S71_A2SubCode,$AC:$AC,Sheet1!S71_ItemType,$AD:$AD)","v":0},{"$f":"-SUMIFS(Sheet1!S71_OriginalBudAmnt,Sheet1!S71_A2SubCode,$AC:$AC,Sheet1!S71_ItemType,$AD:$AD)","v":0},{"$f":"-SUMIFS(Sheet1!S71_OriginalBudAmnt,Sheet1!S71_A2SubCode,$AC:$AC,Sheet1!S71_ItemType,$AD:$AD)","v":0},{"$f":"-SUMIFS(Sheet1!S71_OriginalBudAmnt,Sheet1!S71_A2SubCode,$AC:$AC,Sheet1!S71_ItemType,$AD:$AD)","v":0},{"$f":"-SUMIFS(Sheet1!S71_AdjustmentBudAmnt,Sheet1!S71_A2SubCode,$AC:$AC,Sheet1!S71_ItemType,$AD:$AD)","v":100000},{"$f":"-SUMIFS(Sheet1!S71_AdjustmentBudAmnt,Sheet1!S71_A2SubCode,$AC:$AC,Sheet1!S71_ItemType,$AD:$AD)","v":100000},{"$f":"SUMIFS(Sheet1!S71_ASBudgetAmount,Sheet1!S71_A2SubCode,$AC:$AC,Sheet1!S71_ItemType,$AD:$AD)","v":100000},{"$f":"SUMIFS(Sheet1!S71_OY1BudgetAmount,Sheet1!S71_A2SubCode,$AC:$AC,Sheet1!S71_ItemType,$AD:$AD)","v":0},{"$f":"SUMIFS(Sheet1!S71_OY2BudgetAmount,Sheet1!S71_A2SubCode,$AC:$AC,Sheet1!S71_ItemType,$AD:$AD)","v":0},null,null,null,null,null,null,null,null,null,null,null,null,null,null,null,null,null,"1202","IR"]
["Finance",null,{"$f":"-SUMIFS(Sheet1!S71_OriginalBudAmnt,Sheet1!S71_A2SubCode,$AC:$AC,Sheet1!S71_ItemType,$AD:$AD)","v":465834057},{"$f":"-SUMIFS(Sheet1!S71_OriginalBudAmnt,Sheet1!S71_A2SubCode,$AC:$AC,Sheet1!S71_ItemType,$AD:$AD)","v":465834057},{"$f":"-SUMIFS(Sheet1!S71_OriginalBudAmnt,Sheet1!S71_A2SubCode,$AC:$AC,Sheet1!S71_ItemType,$AD:$AD)","v":465834057},{"$f":"-SUMIFS(Sheet1!S71_OriginalBudAmnt,Sheet1!S71_A2SubCode,$AC:$AC,Sheet1!S71_ItemType,$AD:$AD)","v":465834057},{"$f":"-SUMIFS(Sheet1!S71_AdjustmentBudAmnt,Sheet1!S71_A2SubCode,$AC:$AC,Sheet1!S71_ItemType,$AD:$AD)","v":476747638},{"$f":"-SUMIFS(Sheet1!S71_AdjustmentBudAmnt,Sheet1!S71_A2SubCode,$AC:$AC,Sheet1!S71_ItemType,$AD:$AD)","v":476747638},{"$f":"SUMIFS(Sheet1!S71_ASBudgetAmount,Sheet1!S71_A2SubCode,$AC:$AC,Sheet1!S71_ItemType,$AD:$AD)","v":547120792},{"$f":"SUMIFS(Sheet1!S71_OY1BudgetAmount,Sheet1!S71_A2SubCode,$AC:$AC,Sheet1!S71_ItemType,$AD:$AD)","v":570944998},{"$f":"SUMIFS(Sheet1!S71_OY2BudgetAmount,Sheet1!S71_A2SubCode,$AC:$AC,Sheet1!S71_ItemType,$AD:$AD)","v":568452544},null,null,null,null,null,null,null,null,null,null,null,null,null,null,null,null,null,"1204","IR"]
["Fleet Management",null,{"$f":"-SUMIFS(Sheet1!S71_OriginalBudAmnt,Sheet1!S71_A2SubCode,$AC:$AC,Sheet1!S71_ItemType,$AD:$AD)","v":7500},{"$f":"-SUMIFS(Sheet1!S71_OriginalBudAmnt,Sheet1!S71_A2SubCode,$AC:$AC,Sheet1!S71_ItemType,$AD:$AD)","v":7500},{"$f":"-SUMIFS(Sheet1!S71_OriginalBudAmnt,Sheet1!S71_A2SubCode,$AC:$AC,Sheet1!S71_ItemType,$AD:$AD)","v":7500},{"$f":"-SUMIFS(Sheet1!S71_OriginalBudAmnt,Sheet1!S71_A2SubCode,$AC:$AC,Sheet1!S71_ItemType,$AD:$AD)","v":7500},{"$f":"-SUMIFS(Sheet1!S71_AdjustmentBudAmnt,Sheet1!S71_A2SubCode,$AC:$AC,Sheet1!S71_ItemType,$AD:$AD)","v":10000},{"$f":"-SUMIFS(Sheet1!S71_AdjustmentBudAmnt,Sheet1!S71_A2SubCode,$AC:$AC,Sheet1!S71_ItemType,$AD:$AD)","v":10000},{"$f":"SUMIFS(Sheet1!S71_ASBudgetAmount,Sheet1!S71_A2SubCode,$AC:$AC,Sheet1!S71_ItemType,$AD:$AD)","v":10000},{"$f":"SUMIFS(Sheet1!S71_OY1BudgetAmount,Sheet1!S71_A2SubCode,$AC:$AC,Sheet1!S71_ItemType,$AD:$AD)","v":11000},{"$f":"SUMIFS(Sheet1!S71_OY2BudgetAmount,Sheet1!S71_A2SubCode,$AC:$AC,Sheet1!S71_ItemType,$AD:$AD)","v":12000},null,null,null,null,null,null,null,null,null,null,null,null,null,null,null,null,null,"1205","IR"]
["Human Resources",null,{"$f":"-SUMIFS(Sheet1!S71_OriginalBudAmnt,Sheet1!S71_A2SubCode,$AC:$AC,Sheet1!S71_ItemType,$AD:$AD)","v":310000},{"$f":"-SUMIFS(Sheet1!S71_OriginalBudAmnt,Sheet1!S71_A2SubCode,$AC:$AC,Sheet1!S71_ItemType,$AD:$AD)","v":310000},{"$f":"-SUMIFS(Sheet1!S71_OriginalBudAmnt,Sheet1!S71_A2SubCode,$AC:$AC,Sheet1!S71_ItemType,$AD:$AD)","v":310000},{"$f":"-SUMIFS(Sheet1!S71_OriginalBudAmnt,Sheet1!S71_A2SubCode,$AC:$AC,Sheet1!S71_ItemType,$AD:$AD)","v":310000},{"$f":"-SUMIFS(Sheet1!S71_AdjustmentBudAmnt,Sheet1!S71_A2SubCode,$AC:$AC,Sheet1!S71_ItemType,$AD:$AD)","v":310000},{"$f":"-SUMIFS(Sheet1!S71_AdjustmentBudAmnt,Sheet1!S71_A2SubCode,$AC:$AC,Sheet1!S71_ItemType,$AD:$AD)","v":310000},{"$f":"SUMIFS(Sheet1!S71_ASBudgetAmount,Sheet1!S71_A2SubCode,$AC:$AC,Sheet1!S71_ItemType,$AD:$AD)","v":315000},{"$f":"SUMIFS(Sheet1!S71_OY1BudgetAmount,Sheet1!S71_A2SubCode,$AC:$AC,Sheet1!S71_ItemType,$AD:$AD)","v":320000},{"$f":"SUMIFS(Sheet1!S71_OY2BudgetAmount,Sheet1!S71_A2SubCode,$AC:$AC,Sheet1!S71_ItemType,$AD:$AD)","v":325000},null,null,null,null,null,null,null,null,null,null,null,null,null,null,null,null,null,"1206","IR"]
["Information Technology",null,{"$f":"-SUMIFS(Sheet1!S71_OriginalBudAmnt,Sheet1!S71_A2SubCode,$AC:$AC,Sheet1!S71_ItemType,$AD:$AD)","v":0},{"$f":"-SUMIFS(Sheet1!S71_OriginalBudAmnt,Sheet1!S71_A2SubCode,$AC:$AC,Sheet1!S71_ItemType,$AD:$AD)","v":0},{"$f":"-SUMIFS(Sheet1!S71_OriginalBudAmnt,Sheet1!S71_A2SubCode,$AC:$AC,Sheet1!S71_ItemType,$AD:$AD)","v":0},{"$f":"-SUMIFS(Sheet1!S71_OriginalBudAmnt,Sheet1!S71_A2SubCode,$AC:$AC,Sheet1!S71_ItemType,$AD:$AD)","v":0},{"$f":"-SUMIFS(Sheet1!S71_AdjustmentBudAmnt,Sheet1!S71_A2SubCode,$AC:$AC,Sheet1!S71_ItemType,$AD:$AD)","v":0},{"$f":"-SUMIFS(Sheet1!S71_AdjustmentBudAmnt,Sheet1!S71_A2SubCode,$AC:$AC,Sheet1!S71_ItemType,$AD:$AD)","v":0},{"$f":"SUMIFS(Sheet1!S71_ASBudgetAmount,Sheet1!S71_A2SubCode,$AC:$AC,Sheet1!S71_ItemType,$AD:$AD)","v":0},{"$f":"SUMIFS(Sheet1!S71_OY1BudgetAmount,Sheet1!S71_A2SubCode,$AC:$AC,Sheet1!S71_ItemType,$AD:$AD)","v":0},{"$f":"SUMIFS(Sheet1!S71_OY2BudgetAmount,Sheet1!S71_A2SubCode,$AC:$AC,Sheet1!S71_ItemType,$AD:$AD)","v":0},null,null,null,null,null,null,null,null,null,null,null,null,null,null,null,null,null,"1207","IR"]
["Legal Services",null,{"$f":"-SUMIFS(Sheet1!S71_OriginalBudAmnt,Sheet1!S71_A2SubCode,$AC:$AC,Sheet1!S71_ItemType,$AD:$AD)","v":0},{"$f":"-SUMIFS(Sheet1!S71_OriginalBudAmnt,Sheet1!S71_A2SubCode,$AC:$AC,Sheet1!S71_ItemType,$AD:$AD)","v":0},{"$f":"-SUMIFS(Sheet1!S71_OriginalBudAmnt,Sheet1!S71_A2SubCode,$AC:$AC,Sheet1!S71_ItemType,$AD:$AD)","v":0},{"$f":"-SUMIFS(Sheet1!S71_OriginalBudAmnt,Sheet1!S71_A2SubCode,$AC:$AC,Sheet1!S71_ItemType,$AD:$AD)","v":0},{"$f":"-SUMIFS(Sheet1!S71_AdjustmentBudAmnt,Sheet1!S71_A2SubCode,$AC:$AC,Sheet1!S71_ItemType,$AD:$AD)","v":0},{"$f":"-SUMIFS(Sheet1!S71_AdjustmentBudAmnt,Sheet1!S71_A2SubCode,$AC:$AC,Sheet1!S71_ItemType,$AD:$AD)","v":0},{"$f":"SUMIFS(Sheet1!S71_ASBudgetAmount,Sheet1!S71_A2SubCode,$AC:$AC,Sheet1!S71_ItemType,$AD:$AD)","v":0},{"$f":"SUMIFS(Sheet1!S71_OY1BudgetAmount,Sheet1!S71_A2SubCode,$AC:$AC,Sheet1!S71_ItemType,$AD:$AD)","v":0},{"$f":"SUMIFS(Sheet1!S71_OY2BudgetAmount,Sheet1!S71_A2SubCode,$AC:$AC,Sheet1!S71_ItemType,$AD:$AD)","v":0},null,null,null,null,null,null,null,null,null,null,null,null,null,null,null,null,null,"1208","IR"]
["Marketing, Customer Relations, Publicity and Media Co-ordination",null,{"$f":"-SUMIFS(Sheet1!S71_OriginalBudAmnt,Sheet1!S71_A2SubCode,$AC:$AC,Sheet1!S71_ItemType,$AD:$AD)","v":0},{"$f":"-SUMIFS(Sheet1!S71_OriginalBudAmnt,Sheet1!S71_A2SubCode,$AC:$AC,Sheet1!S71_ItemType,$AD:$AD)","v":0},{"$f":"-SUMIFS(Sheet1!S71_OriginalBudAmnt,Sheet1!S71_A2SubCode,$AC:$AC,Sheet1!S71_ItemType,$AD:$AD)","v":0},{"$f":"-SUMIFS(Sheet1!S71_OriginalBudAmnt,Sheet1!S71_A2SubCode,$AC:$AC,Sheet1!S71_ItemType,$AD:$AD)","v":0},{"$f":"-SUMIFS(Sheet1!S71_AdjustmentBudAmnt,Sheet1!S71_A2SubCode,$AC:$AC,Sheet1!S71_ItemType,$AD:$AD)","v":0},{"$f":"-SUMIFS(Sheet1!S71_AdjustmentBudAmnt,Sheet1!S71_A2SubCode,$AC:$AC,Sheet1!S71_ItemType,$AD:$AD)","v":0},{"$f":"SUMIFS(Sheet1!S71_ASBudgetAmount,Sheet1!S71_A2SubCode,$AC:$AC,Sheet1!S71_ItemType,$AD:$AD)","v":0},{"$f":"SUMIFS(Sheet1!S71_OY1BudgetAmount,Sheet1!S71_A2SubCode,$AC:$AC,Sheet1!S71_ItemType,$AD:$AD)","v":0},{"$f":"SUMIFS(Sheet1!S71_OY2BudgetAmount,Sheet1!S71_A2SubCode,$AC:$AC,Sheet1!S71_ItemType,$AD:$AD)","v":0},null,null,null,null,null,null,null,null,null,null,null,null,null,null,null,null,null,"1209","IR"]
["Property Services",null,{"$f":"-SUMIFS(Sheet1!S71_OriginalBudAmnt,Sheet1!S71_A2SubCode,$AC:$AC,Sheet1!S71_ItemType,$AD:$AD)","v":9167099},{"$f":"-SUMIFS(Sheet1!S71_OriginalBudAmnt,Sheet1!S71_A2SubCode,$AC:$AC,Sheet1!S71_ItemType,$AD:$AD)","v":9167099},{"$f":"-SUMIFS(Sheet1!S71_OriginalBudAmnt,Sheet1!S71_A2SubCode,$AC:$AC,Sheet1!S71_ItemType,$AD:$AD)","v":9167099},{"$f":"-SUMIFS(Sheet1!S71_OriginalBudAmnt,Sheet1!S71_A2SubCode,$AC:$AC,Sheet1!S71_ItemType,$AD:$AD)","v":9167099},{"$f":"-SUMIFS(Sheet1!S71_AdjustmentBudAmnt,Sheet1!S71_A2SubCode,$AC:$AC,Sheet1!S71_ItemType,$AD:$AD)","v":2733579},{"$f":"-SUMIFS(Sheet1!S71_AdjustmentBudAmnt,Sheet1!S71_A2SubCode,$AC:$AC,Sheet1!S71_ItemType,$AD:$AD)","v":2733579},{"$f":"SUMIFS(Sheet1!S71_ASBudgetAmount,Sheet1!S71_A2SubCode,$AC:$AC,Sheet1!S71_ItemType,$AD:$AD)","v":8518640},{"$f":"SUMIFS(Sheet1!S71_OY1BudgetAmount,Sheet1!S71_A2SubCode,$AC:$AC,Sheet1!S71_ItemType,$AD:$AD)","v":8646604},{"$f":"SUMIFS(Sheet1!S71_OY2BudgetAmount,Sheet1!S71_A2SubCode,$AC:$AC,Sheet1!S71_ItemType,$AD:$AD)","v":8774708},null,null,null,null,null,null,null,null,null,null,null,null,null,null,null,null,null,"1210","IR"]
["Risk Management",null,{"$f":"-SUMIFS(Sheet1!S71_OriginalBudAmnt,Sheet1!S71_A2SubCode,$AC:$AC,Sheet1!S71_ItemType,$AD:$AD)","v":0},{"$f":"-SUMIFS(Sheet1!S71_OriginalBudAmnt,Sheet1!S71_A2SubCode,$AC:$AC,Sheet1!S71_ItemType,$AD:$AD)","v":0},{"$f":"-SUMIFS(Sheet1!S71_OriginalBudAmnt,Sheet1!S71_A2SubCode,$AC:$AC,Sheet1!S71_ItemType,$AD:$AD)","v":0},{"$f":"-SUMIFS(Sheet1!S71_OriginalBudAmnt,Sheet1!S71_A2SubCode,$AC:$AC,Sheet1!S71_ItemType,$AD:$AD)","v":0},{"$f":"-SUMIFS(Sheet1!S71_AdjustmentBudAmnt,Sheet1!S71_A2SubCode,$AC:$AC,Sheet1!S71_ItemType,$AD:$AD)","v":0},{"$f":"-SUMIFS(Sheet1!S71_AdjustmentBudAmnt,Sheet1!S71_A2SubCode,$AC:$AC,Sheet1!S71_ItemType,$AD:$AD)","v":0},{"$f":"SUMIFS(Sheet1!S71_ASBudgetAmount,Sheet1!S71_A2SubCode,$AC:$AC,Sheet1!S71_ItemType,$AD:$AD)","v":0},{"$f":"SUMIFS(Sheet1!S71_OY1BudgetAmount,Sheet1!S71_A2SubCode,$AC:$AC,Sheet1!S71_ItemType,$AD:$AD)","v":0},{"$f":"SUMIFS(Sheet1!S71_OY2BudgetAmount,Sheet1!S71_A2SubCode,$AC:$AC,Sheet1!S71_ItemType,$AD:$AD)","v":0},null,null,null,null,null,null,null,null,null,null,null,null,null,null,null,null,null,"1211","IR"]
["Security Services",null,{"$f":"-SUMIFS(Sheet1!S71_OriginalBudAmnt,Sheet1!S71_A2SubCode,$AC:$AC,Sheet1!S71_ItemType,$AD:$AD)","v":0},{"$f":"-SUMIFS(Sheet1!S71_OriginalBudAmnt,Sheet1!S71_A2SubCode,$AC:$AC,Sheet1!S71_ItemType,$AD:$AD)","v":0},{"$f":"-SUMIFS(Sheet1!S71_OriginalBudAmnt,Sheet1!S71_A2SubCode,$AC:$AC,Sheet1!S71_ItemType,$AD:$AD)","v":0},{"$f":"-SUMIFS(Sheet1!S71_OriginalBudAmnt,Sheet1!S71_A2SubCode,$AC:$AC,Sheet1!S71_ItemType,$AD:$AD)","v":0},{"$f":"-SUMIFS(Sheet1!S71_AdjustmentBudAmnt,Sheet1!S71_A2SubCode,$AC:$AC,Sheet1!S71_ItemType,$AD:$AD)","v":0},{"$f":"-SUMIFS(Sheet1!S71_AdjustmentBudAmnt,Sheet1!S71_A2SubCode,$AC:$AC,Sheet1!S71_ItemType,$AD:$AD)","v":0},{"$f":"SUMIFS(Sheet1!S71_ASBudgetAmount,Sheet1!S71_A2SubCode,$AC:$AC,Sheet1!S71_ItemType,$AD:$AD)","v":0},{"$f":"SUMIFS(Sheet1!S71_OY1BudgetAmount,Sheet1!S71_A2SubCode,$AC:$AC,Sheet1!S71_ItemType,$AD:$AD)","v":0},{"$f":"SUMIFS(Sheet1!S71_OY2BudgetAmount,Sheet1!S71_A2SubCode,$AC:$AC,Sheet1!S71_ItemType,$AD:$AD)","v":0},null,null,null,null,null,null,null,null,null,null,null,null,null,null,null,null,null,"1212","IR"]
["Supply Chain Management ",null,{"$f":"-SUMIFS(Sheet1!S71_OriginalBudAmnt,Sheet1!S71_A2SubCode,$AC:$AC,Sheet1!S71_ItemType,$AD:$AD)","v":1500000},{"$f":"-SUMIFS(Sheet1!S71_OriginalBudAmnt,Sheet1!S71_A2SubCode,$AC:$AC,Sheet1!S71_ItemType,$AD:$AD)","v":1500000},{"$f":"-SUMIFS(Sheet1!S71_OriginalBudAmnt,Sheet1!S71_A2SubCode,$AC:$AC,Sheet1!S71_ItemType,$AD:$AD)","v":1500000},{"$f":"-SUMIFS(Sheet1!S71_OriginalBudAmnt,Sheet1!S71_A2SubCode,$AC:$AC,Sheet1!S71_ItemType,$AD:$AD)","v":1500000},{"$f":"-SUMIFS(Sheet1!S71_AdjustmentBudAmnt,Sheet1!S71_A2SubCode,$AC:$AC,Sheet1!S71_ItemType,$AD:$AD)","v":1500000},{"$f":"-SUMIFS(Sheet1!S71_AdjustmentBudAmnt,Sheet1!S71_A2SubCode,$AC:$AC,Sheet1!S71_ItemType,$AD:$AD)","v":1500000},{"$f":"SUMIFS(Sheet1!S71_ASBudgetAmount,Sheet1!S71_A2SubCode,$AC:$AC,Sheet1!S71_ItemType,$AD:$AD)","v":1600000},{"$f":"SUMIFS(Sheet1!S71_OY1BudgetAmount,Sheet1!S71_A2SubCode,$AC:$AC,Sheet1!S71_ItemType,$AD:$AD)","v":1700000},{"$f":"SUMIFS(Sheet1!S71_OY2BudgetAmount,Sheet1!S71_A2SubCode,$AC:$AC,Sheet1!S71_ItemType,$AD:$AD)","v":1800000},null,null,null,null,null,null,null,null,null,null,null,null,null,null,null,null,null,"1213","IR"]
["Valuation Service",null,{"$f":"-SUMIFS(Sheet1!S71_OriginalBudAmnt,Sheet1!S71_A2SubCode,$AC:$AC,Sheet1!S71_ItemType,$AD:$AD)","v":99316216},{"$f":"-SUMIFS(Sheet1!S71_OriginalBudAmnt,Sheet1!S71_A2SubCode,$AC:$AC,Sheet1!S71_ItemType,$AD:$AD)","v":99316216},{"$f":"-SUMIFS(Sheet1!S71_OriginalBudAmnt,Sheet1!S71_A2SubCode,$AC:$AC,Sheet1!S71_ItemType,$AD:$AD)","v":99316216},{"$f":"-SUMIFS(Sheet1!S71_OriginalBudAmnt,Sheet1!S71_A2SubCode,$AC:$AC,Sheet1!S71_ItemType,$AD:$AD)","v":99316216},{"$f":"-SUMIFS(Sheet1!S71_AdjustmentBudAmnt,Sheet1!S71_A2SubCode,$AC:$AC,Sheet1!S71_ItemType,$AD:$AD)","v":96758762},{"$f":"-SUMIFS(Sheet1!S71_AdjustmentBudAmnt,Sheet1!S71_A2SubCode,$AC:$AC,Sheet1!S71_ItemType,$AD:$AD)","v":96758762},{"$f":"SUMIFS(Sheet1!S71_ASBudgetAmount,Sheet1!S71_A2SubCode,$AC:$AC,Sheet1!S71_ItemType,$AD:$AD)","v":59958059},{"$f":"SUMIFS(Sheet1!S71_OY1BudgetAmount,Sheet1!S71_A2SubCode,$AC:$AC,Sheet1!S71_ItemType,$AD:$AD)","v":62896003},{"$f":"SUMIFS(Sheet1!S71_OY2BudgetAmount,Sheet1!S71_A2SubCode,$AC:$AC,Sheet1!S71_ItemType,$AD:$AD)","v":65852115},null,null,null,null,null,null,null,null,null,null,null,null,null,null,null,null,null,"1214","IR"]
["Internal audit",null,{"$f":"SUM(C24:C24)","v":0},0,0,0,0,0,0,0,0,null,null,null,null,null,null,null,null,null,null,null,null,null,null,null,null,null,null,"IR"]
["Governance Function",null,{"$f":"-SUMIFS(Sheet1!S71_OriginalBudAmnt,Sheet1!S71_A2SubCode,$AC:$AC,Sheet1!S71_ItemType,$AD:$AD)","v":0},{"$f":"-SUMIFS(Sheet1!S71_OriginalBudAmnt,Sheet1!S71_A2SubCode,$AC:$AC,Sheet1!S71_ItemType,$AD:$AD)","v":0},{"$f":"-SUMIFS(Sheet1!S71_OriginalBudAmnt,Sheet1!S71_A2SubCode,$AC:$AC,Sheet1!S71_ItemType,$AD:$AD)","v":0},{"$f":"-SUMIFS(Sheet1!S71_OriginalBudAmnt,Sheet1!S71_A2SubCode,$AC:$AC,Sheet1!S71_ItemType,$AD:$AD)","v":0},{"$f":"-SUMIFS(Sheet1!S71_AdjustmentBudAmnt,Sheet1!S71_A2SubCode,$AC:$AC,Sheet1!S71_ItemType,$AD:$AD)","v":0},{"$f":"-SUMIFS(Sheet1!S71_AdjustmentBudAmnt,Sheet1!S71_A2SubCode,$AC:$AC,Sheet1!S71_ItemType,$AD:$AD)","v":0},{"$f":"-SUMIFS(Sheet1!S71_ASBudgetAmount,Sheet1!S71_A2SubCode,$AC:$AC,Sheet1!S71_ItemType,$AD:$AD)","v":0},{"$f":"SUMIFS(Sheet1!S71_OY1BudgetAmount,Sheet1!S71_A2SubCode,$AC:$AC,Sheet1!S71_ItemType,$AD:$AD)","v":0},{"$f":"SUMIFS(Sheet1!S71_OY2BudgetAmount,Sheet1!S71_A2SubCode,$AC:$AC,Sheet1!S71_ItemType,$AD:$AD)","v":0},null,null,null,null,null,null,null,null,null,null,null,null,null,null,null,null,null,"1301","IR"]
["Community and public safety",null,{"$f":"C26+C48+C54+C63+C66","v":741600},741600,741600,741600,947600,947600,1015939,1065720,1115807,null,null,null,null,null,null,null,null,null,null,null,null,null,null,null,null,null,null,"IR"]
["Community and social services",null,{"$f":"SUM(C27:C47)","v":691600},{"$f":"SUM(D27:D47)","v":691600},691600,691600,497600,497600,565939,593670,621571,null,null,null,null,null,null,null,null,null,null,null,null,null,null,null,null,null,null,"IR"]
["Aged Care",null,{"$f":"-SUMIFS(Sheet1!S71_OriginalBudAmnt,Sheet1!S71_A2SubCode,$AC:$AC,Sheet1!S71_ItemType,$AD:$AD)","v":0},{"$f":"-SUMIFS(Sheet1!S71_OriginalBudAmnt,Sheet1!S71_A2SubCode,$AC:$AC,Sheet1!S71_ItemType,$AD:$AD)","v":0},{"$f":"-SUMIFS(Sheet1!S71_OriginalBudAmnt,Sheet1!S71_A2SubCode,$AC:$AC,Sheet1!S71_ItemType,$AD:$AD)","v":0},{"$f":"-SUMIFS(Sheet1!S71_OriginalBudAmnt,Sheet1!S71_A2SubCode,$AC:$AC,Sheet1!S71_ItemType,$AD:$AD)","v":0},{"$f":"-SUMIFS(Sheet1!S71_AdjustmentBudAmnt,Sheet1!S71_A2SubCode,$AC:$AC,Sheet1!S71_ItemType,$AD:$AD)","v":0},{"$f":"-SUMIFS(Sheet1!S71_AdjustmentBudAmnt,Sheet1!S71_A2SubCode,$AC:$AC,Sheet1!S71_ItemType,$AD:$AD)","v":0},{"$f":"SUMIFS(Sheet1!S71_ASBudgetAmount,Sheet1!S71_A2SubCode,$AC:$AC,Sheet1!S71_ItemType,$AD:$AD)","v":0},{"$f":"SUMIFS(Sheet1!S71_OY1BudgetAmount,Sheet1!S71_A2SubCode,$AC:$AC,Sheet1!S71_ItemType,$AD:$AD)","v":0},{"$f":"SUMIFS(Sheet1!S71_OY2BudgetAmount,Sheet1!S71_A2SubCode,$AC:$AC,Sheet1!S71_ItemType,$AD:$AD)","v":0},null,null,null,null,null,null,null,null,null,null,null,null,null,null,null,null,null,"2101","IR"]
["Agricultural",null,{"$f":"-SUMIFS(Sheet1!S71_OriginalBudAmnt,Sheet1!S71_A2SubCode,$AC:$AC,Sheet1!S71_ItemType,$AD:$AD)","v":0},{"$f":"-SUMIFS(Sheet1!S71_OriginalBudAmnt,Sheet1!S71_A2SubCode,$AC:$AC,Sheet1!S71_ItemType,$AD:$AD)","v":0},{"$f":"-SUMIFS(Sheet1!S71_OriginalBudAmnt,Sheet1!S71_A2SubCode,$AC:$AC,Sheet1!S71_ItemType,$AD:$AD)","v":0},{"$f":"-SUMIFS(Sheet1!S71_OriginalBudAmnt,Sheet1!S71_A2SubCode,$AC:$AC,Sheet1!S71_ItemType,$AD:$AD)","v":0},{"$f":"-SUMIFS(Sheet1!S71_AdjustmentBudAmnt,Sheet1!S71_A2SubCode,$AC:$AC,Sheet1!S71_ItemType,$AD:$AD)","v":0},{"$f":"-SUMIFS(Sheet1!S71_AdjustmentBudAmnt,Sheet1!S71_A2SubCode,$AC:$AC,Sheet1!S71_ItemType,$AD:$AD)","v":0},{"$f":"SUMIFS(Sheet1!S71_ASBudgetAmount,Sheet1!S71_A2SubCode,$AC:$AC,Sheet1!S71_ItemType,$AD:$AD)","v":0},{"$f":"SUMIFS(Sheet1!S71_OY1BudgetAmount,Sheet1!S71_A2SubCode,$AC:$AC,Sheet1!S71_ItemType,$AD:$AD)","v":0},{"$f":"SUMIFS(Sheet1!S71_OY2BudgetAmount,Sheet1!S71_A2SubCode,$AC:$AC,Sheet1!S71_ItemType,$AD:$AD)","v":0},null,null,null,null,null,null,null,null,null,null,null,null,null,null,null,null,null,"2102","IR"]
["Animal Care and Diseases",null,{"$f":"-SUMIFS(Sheet1!S71_OriginalBudAmnt,Sheet1!S71_A2SubCode,$AC:$AC,Sheet1!S71_ItemType,$AD:$AD)","v":0},{"$f":"-SUMIFS(Sheet1!S71_OriginalBudAmnt,Sheet1!S71_A2SubCode,$AC:$AC,Sheet1!S71_ItemType,$AD:$AD)","v":0},{"$f":"-SUMIFS(Sheet1!S71_OriginalBudAmnt,Sheet1!S71_A2SubCode,$AC:$AC,Sheet1!S71_ItemType,$AD:$AD)","v":0},{"$f":"-SUMIFS(Sheet1!S71_OriginalBudAmnt,Sheet1!S71_A2SubCode,$AC:$AC,Sheet1!S71_ItemType,$AD:$AD)","v":0},{"$f":"-SUMIFS(Sheet1!S71_AdjustmentBudAmnt,Sheet1!S71_A2SubCode,$AC:$AC,Sheet1!S71_ItemType,$AD:$AD)","v":0},{"$f":"-SUMIFS(Sheet1!S71_AdjustmentBudAmnt,Sheet1!S71_A2SubCode,$AC:$AC,Sheet1!S71_ItemType,$AD:$AD)","v":0},{"$f":"SUMIFS(Sheet1!S71_ASBudgetAmount,Sheet1!S71_A2SubCode,$AC:$AC,Sheet1!S71_ItemType,$AD:$AD)","v":0},{"$f":"SUMIFS(Sheet1!S71_OY1BudgetAmount,Sheet1!S71_A2SubCode,$AC:$AC,Sheet1!S71_ItemType,$AD:$AD)","v":0},{"$f":"SUMIFS(Sheet1!S71_OY2BudgetAmount,Sheet1!S71_A2SubCode,$AC:$AC,Sheet1!S71_ItemType,$AD:$AD)","v":0},null,null,null,null,null,null,null,null,null,null,null,null,null,null,null,null,null,"2103","IR"]
["Cemeteries, Funeral Parlours and Crematoriums",null,{"$f":"-SUMIFS(Sheet1!S71_OriginalBudAmnt,Sheet1!S71_A2SubCode,$AC:$AC,Sheet1!S71_ItemType,$AD:$AD)","v":690000},{"$f":"-SUMIFS(Sheet1!S71_OriginalBudAmnt,Sheet1!S71_A2SubCode,$AC:$AC,Sheet1!S71_ItemType,$AD:$AD)","v":690000},{"$f":"-SUMIFS(Sheet1!S71_OriginalBudAmnt,Sheet1!S71_A2SubCode,$AC:$AC,Sheet1!S71_ItemType,$AD:$AD)","v":690000},{"$f":"-SUMIFS(Sheet1!S71_OriginalBudAmnt,Sheet1!S71_A2SubCode,$AC:$AC,Sheet1!S71_ItemType,$AD:$AD)","v":690000},{"$f":"-SUMIFS(Sheet1!S71_AdjustmentBudAmnt,Sheet1!S71_A2SubCode,$AC:$AC,Sheet1!S71_ItemType,$AD:$AD)","v":496000},{"$f":"-SUMIFS(Sheet1!S71_AdjustmentBudAmnt,Sheet1!S71_A2SubCode,$AC:$AC,Sheet1!S71_ItemType,$AD:$AD)","v":496000},{"$f":"SUMIFS(Sheet1!S71_ASBudgetAmount,Sheet1!S71_A2SubCode,$AC:$AC,Sheet1!S71_ItemType,$AD:$AD)","v":564339},{"$f":"SUMIFS(Sheet1!S71_OY1BudgetAmount,Sheet1!S71_A2SubCode,$AC:$AC,Sheet1!S71_ItemType,$AD:$AD)","v":591992},{"$f":"SUMIFS(Sheet1!S71_OY2BudgetAmount,Sheet1!S71_A2SubCode,$AC:$AC,Sheet1!S71_ItemType,$AD:$AD)","v":619814},null,null,null,null,null,null,null,null,null,null,null,null,null,null,null,null,null,"2104","IR"]
["Child Care Facilities",null,{"$f":"-SUMIFS(Sheet1!S71_OriginalBudAmnt,Sheet1!S71_A2SubCode,$AC:$AC,Sheet1!S71_ItemType,$AD:$AD)","v":0},{"$f":"-SUMIFS(Sheet1!S71_OriginalBudAmnt,Sheet1!S71_A2SubCode,$AC:$AC,Sheet1!S71_ItemType,$AD:$AD)","v":0},{"$f":"-SUMIFS(Sheet1!S71_OriginalBudAmnt,Sheet1!S71_A2SubCode,$AC:$AC,Sheet1!S71_ItemType,$AD:$AD)","v":0},{"$f":"-SUMIFS(Sheet1!S71_OriginalBudAmnt,Sheet1!S71_A2SubCode,$AC:$AC,Sheet1!S71_ItemType,$AD:$AD)","v":0},{"$f":"-SUMIFS(Sheet1!S71_AdjustmentBudAmnt,Sheet1!S71_A2SubCode,$AC:$AC,Sheet1!S71_ItemType,$AD:$AD)","v":0},{"$f":"-SUMIFS(Sheet1!S71_AdjustmentBudAmnt,Sheet1!S71_A2SubCode,$AC:$AC,Sheet1!S71_ItemType,$AD:$AD)","v":0},{"$f":"SUMIFS(Sheet1!S71_ASBudgetAmount,Sheet1!S71_A2SubCode,$AC:$AC,Sheet1!S71_ItemType,$AD:$AD)","v":0},{"$f":"SUMIFS(Sheet1!S71_OY1BudgetAmount,Sheet1!S71_A2SubCode,$AC:$AC,Sheet1!S71_ItemType,$AD:$AD)","v":0},{"$f":"SUMIFS(Sheet1!S71_OY2BudgetAmount,Sheet1!S71_A2SubCode,$AC:$AC,Sheet1!S71_ItemType,$AD:$AD)","v":0},null,null,null,null,null,null,null,null,null,null,null,null,null,null,null,null,null,"2105","IR"]
["Community Halls and Facilities",null,{"$f":"-SUMIFS(Sheet1!S71_OriginalBudAmnt,Sheet1!S71_A2SubCode,$AC:$AC,Sheet1!S71_ItemType,$AD:$AD)","v":0},{"$f":"-SUMIFS(Sheet1!S71_OriginalBudAmnt,Sheet1!S71_A2SubCode,$AC:$AC,Sheet1!S71_ItemType,$AD:$AD)","v":0},{"$f":"-SUMIFS(Sheet1!S71_OriginalBudAmnt,Sheet1!S71_A2SubCode,$AC:$AC,Sheet1!S71_ItemType,$AD:$AD)","v":0},{"$f":"-SUMIFS(Sheet1!S71_OriginalBudAmnt,Sheet1!S71_A2SubCode,$AC:$AC,Sheet1!S71_ItemType,$AD:$AD)","v":0},{"$f":"-SUMIFS(Sheet1!S71_AdjustmentBudAmnt,Sheet1!S71_A2SubCode,$AC:$AC,Sheet1!S71_ItemType,$AD:$AD)","v":0},{"$f":"-SUMIFS(Sheet1!S71_AdjustmentBudAmnt,Sheet1!S71_A2SubCode,$AC:$AC,Sheet1!S71_ItemType,$AD:$AD)","v":0},{"$f":"SUMIFS(Sheet1!S71_ASBudgetAmount,Sheet1!S71_A2SubCode,$AC:$AC,Sheet1!S71_ItemType,$AD:$AD)","v":0},{"$f":"SUMIFS(Sheet1!S71_OY1BudgetAmount,Sheet1!S71_A2SubCode,$AC:$AC,Sheet1!S71_ItemType,$AD:$AD)","v":0},{"$f":"SUMIFS(Sheet1!S71_OY2BudgetAmount,Sheet1!S71_A2SubCode,$AC:$AC,Sheet1!S71_ItemType,$AD:$AD)","v":0},null,null,null,null,null,null,null,null,null,null,null,null,null,null,null,null,null,"2106","IR"]
["Consumer Protection",null,{"$f":"-SUMIFS(Sheet1!S71_OriginalBudAmnt,Sheet1!S71_A2SubCode,$AC:$AC,Sheet1!S71_ItemType,$AD:$AD)","v":0},{"$f":"-SUMIFS(Sheet1!S71_OriginalBudAmnt,Sheet1!S71_A2SubCode,$AC:$AC,Sheet1!S71_ItemType,$AD:$AD)","v":0},{"$f":"-SUMIFS(Sheet1!S71_OriginalBudAmnt,Sheet1!S71_A2SubCode,$AC:$AC,Sheet1!S71_ItemType,$AD:$AD)","v":0},{"$f":"-SUMIFS(Sheet1!S71_OriginalBudAmnt,Sheet1!S71_A2SubCode,$AC:$AC,Sheet1!S71_ItemType,$AD:$AD)","v":0},{"$f":"-SUMIFS(Sheet1!S71_AdjustmentBudAmnt,Sheet1!S71_A2SubCode,$AC:$AC,Sheet1!S71_ItemType,$AD:$AD)","v":0},{"$f":"-SUMIFS(Sheet1!S71_AdjustmentBudAmnt,Sheet1!S71_A2SubCode,$AC:$AC,Sheet1!S71_ItemType,$AD:$AD)","v":0},{"$f":"SUMIFS(Sheet1!S71_ASBudgetAmount,Sheet1!S71_A2SubCode,$AC:$AC,Sheet1!S71_ItemType,$AD:$AD)","v":0},{"$f":"SUMIFS(Sheet1!S71_OY1BudgetAmount,Sheet1!S71_A2SubCode,$AC:$AC,Sheet1!S71_ItemType,$AD:$AD)","v":0},{"$f":"SUMIFS(Sheet1!S71_OY2BudgetAmount,Sheet1!S71_A2SubCode,$AC:$AC,Sheet1!S71_ItemType,$AD:$AD)","v":0},null,null,null,null,null,null,null,null,null,null,null,null,null,null,null,null,null,"2107","IR"]
["Cultural Matters",null,{"$f":"-SUMIFS(Sheet1!S71_OriginalBudAmnt,Sheet1!S71_A2SubCode,$AC:$AC,Sheet1!S71_ItemType,$AD:$AD)","v":0},{"$f":"-SUMIFS(Sheet1!S71_OriginalBudAmnt,Sheet1!S71_A2SubCode,$AC:$AC,Sheet1!S71_ItemType,$AD:$AD)","v":0},{"$f":"-SUMIFS(Sheet1!S71_OriginalBudAmnt,Sheet1!S71_A2SubCode,$AC:$AC,Sheet1!S71_ItemType,$AD:$AD)","v":0},{"$f":"-SUMIFS(Sheet1!S71_OriginalBudAmnt,Sheet1!S71_A2SubCode,$AC:$AC,Sheet1!S71_ItemType,$AD:$AD)","v":0},{"$f":"-SUMIFS(Sheet1!S71_AdjustmentBudAmnt,Sheet1!S71_A2SubCode,$AC:$AC,Sheet1!S71_ItemType,$AD:$AD)","v":0},{"$f":"-SUMIFS(Sheet1!S71_AdjustmentBudAmnt,Sheet1!S71_A2SubCode,$AC:$AC,Sheet1!S71_ItemType,$AD:$AD)","v":0},{"$f":"SUMIFS(Sheet1!S71_ASBudgetAmount,Sheet1!S71_A2SubCode,$AC:$AC,Sheet1!S71_ItemType,$AD:$AD)","v":0},{"$f":"SUMIFS(Sheet1!S71_OY1BudgetAmount,Sheet1!S71_A2SubCode,$AC:$AC,Sheet1!S71_ItemType,$AD:$AD)","v":0},{"$f":"SUMIFS(Sheet1!S71_OY2BudgetAmount,Sheet1!S71_A2SubCode,$AC:$AC,Sheet1!S71_ItemType,$AD:$AD)","v":0},null,null,null,null,null,null,null,null,null,null,null,null,null,null,null,null,null,"2108","IR"]
["Disaster Management",null,{"$f":"-SUMIFS(Sheet1!S71_OriginalBudAmnt,Sheet1!S71_A2SubCode,$AC:$AC,Sheet1!S71_ItemType,$AD:$AD)","v":0},{"$f":"-SUMIFS(Sheet1!S71_OriginalBudAmnt,Sheet1!S71_A2SubCode,$AC:$AC,Sheet1!S71_ItemType,$AD:$AD)","v":0},{"$f":"-SUMIFS(Sheet1!S71_OriginalBudAmnt,Sheet1!S71_A2SubCode,$AC:$AC,Sheet1!S71_ItemType,$AD:$AD)","v":0},{"$f":"-SUMIFS(Sheet1!S71_OriginalBudAmnt,Sheet1!S71_A2SubCode,$AC:$AC,Sheet1!S71_ItemType,$AD:$AD)","v":0},{"$f":"-SUMIFS(Sheet1!S71_AdjustmentBudAmnt,Sheet1!S71_A2SubCode,$AC:$AC,Sheet1!S71_ItemType,$AD:$AD)","v":0},{"$f":"-SUMIFS(Sheet1!S71_AdjustmentBudAmnt,Sheet1!S71_A2SubCode,$AC:$AC,Sheet1!S71_ItemType,$AD:$AD)","v":0},{"$f":"SUMIFS(Sheet1!S71_ASBudgetAmount,Sheet1!S71_A2SubCode,$AC:$AC,Sheet1!S71_ItemType,$AD:$AD)","v":0},{"$f":"SUMIFS(Sheet1!S71_OY1BudgetAmount,Sheet1!S71_A2SubCode,$AC:$AC,Sheet1!S71_ItemType,$AD:$AD)","v":0},{"$f":"SUMIFS(Sheet1!S71_OY2BudgetAmount,Sheet1!S71_A2SubCode,$AC:$AC,Sheet1!S71_ItemType,$AD:$AD)","v":0},null,null,null,null,null,null,null,null,null,null,null,null,null,null,null,null,null,"2109","IR"]
["Education",null,{"$f":"-SUMIFS(Sheet1!S71_OriginalBudAmnt,Sheet1!S71_A2SubCode,$AC:$AC,Sheet1!S71_ItemType,$AD:$AD)","v":0},{"$f":"-SUMIFS(Sheet1!S71_OriginalBudAmnt,Sheet1!S71_A2SubCode,$AC:$AC,Sheet1!S71_ItemType,$AD:$AD)","v":0},{"$f":"-SUMIFS(Sheet1!S71_OriginalBudAmnt,Sheet1!S71_A2SubCode,$AC:$AC,Sheet1!S71_ItemType,$AD:$AD)","v":0},{"$f":"-SUMIFS(Sheet1!S71_OriginalBudAmnt,Sheet1!S71_A2SubCode,$AC:$AC,Sheet1!S71_ItemType,$AD:$AD)","v":0},{"$f":"-SUMIFS(Sheet1!S71_AdjustmentBudAmnt,Sheet1!S71_A2SubCode,$AC:$AC,Sheet1!S71_ItemType,$AD:$AD)","v":0},{"$f":"-SUMIFS(Sheet1!S71_AdjustmentBudAmnt,Sheet1!S71_A2SubCode,$AC:$AC,Sheet1!S71_ItemType,$AD:$AD)","v":0},{"$f":"SUMIFS(Sheet1!S71_ASBudgetAmount,Sheet1!S71_A2SubCode,$AC:$AC,Sheet1!S71_ItemType,$AD:$AD)","v":0},{"$f":"SUMIFS(Sheet1!S71_OY1BudgetAmount,Sheet1!S71_A2SubCode,$AC:$AC,Sheet1!S71_ItemType,$AD:$AD)","v":0},{"$f":"SUMIFS(Sheet1!S71_OY2BudgetAmount,Sheet1!S71_A2SubCode,$AC:$AC,Sheet1!S71_ItemType,$AD:$AD)","v":0},null,null,null,null,null,null,null,null,null,null,null,null,null,null,null,null,null,"2110","IR"]
["Indigenous and Customary Law",null,{"$f":"-SUMIFS(Sheet1!S71_OriginalBudAmnt,Sheet1!S71_A2SubCode,$AC:$AC,Sheet1!S71_ItemType,$AD:$AD)","v":0},{"$f":"-SUMIFS(Sheet1!S71_OriginalBudAmnt,Sheet1!S71_A2SubCode,$AC:$AC,Sheet1!S71_ItemType,$AD:$AD)","v":0},{"$f":"-SUMIFS(Sheet1!S71_OriginalBudAmnt,Sheet1!S71_A2SubCode,$AC:$AC,Sheet1!S71_ItemType,$AD:$AD)","v":0},{"$f":"-SUMIFS(Sheet1!S71_OriginalBudAmnt,Sheet1!S71_A2SubCode,$AC:$AC,Sheet1!S71_ItemType,$AD:$AD)","v":0},{"$f":"-SUMIFS(Sheet1!S71_AdjustmentBudAmnt,Sheet1!S71_A2SubCode,$AC:$AC,Sheet1!S71_ItemType,$AD:$AD)","v":0},{"$f":"-SUMIFS(Sheet1!S71_AdjustmentBudAmnt,Sheet1!S71_A2SubCode,$AC:$AC,Sheet1!S71_ItemType,$AD:$AD)","v":0},{"$f":"SUMIFS(Sheet1!S71_ASBudgetAmount,Sheet1!S71_A2SubCode,$AC:$AC,Sheet1!S71_ItemType,$AD:$AD)","v":0},{"$f":"SUMIFS(Sheet1!S71_OY1BudgetAmount,Sheet1!S71_A2SubCode,$AC:$AC,Sheet1!S71_ItemType,$AD:$AD)","v":0},{"$f":"SUMIFS(Sheet1!S71_OY2BudgetAmount,Sheet1!S71_A2SubCode,$AC:$AC,Sheet1!S71_ItemType,$AD:$AD)","v":0},null,null,null,null,null,null,null,null,null,null,null,null,null,null,null,null,null,"2111","IR"]
["Industrial Promotion",null,{"$f":"-SUMIFS(Sheet1!S71_OriginalBudAmnt,Sheet1!S71_A2SubCode,$AC:$AC,Sheet1!S71_ItemType,$AD:$AD)","v":0},{"$f":"-SUMIFS(Sheet1!S71_OriginalBudAmnt,Sheet1!S71_A2SubCode,$AC:$AC,Sheet1!S71_ItemType,$AD:$AD)","v":0},{"$f":"-SUMIFS(Sheet1!S71_OriginalBudAmnt,Sheet1!S71_A2SubCode,$AC:$AC,Sheet1!S71_ItemType,$AD:$AD)","v":0},{"$f":"-SUMIFS(Sheet1!S71_OriginalBudAmnt,Sheet1!S71_A2SubCode,$AC:$AC,Sheet1!S71_ItemType,$AD:$AD)","v":0},{"$f":"-SUMIFS(Sheet1!S71_AdjustmentBudAmnt,Sheet1!S71_A2SubCode,$AC:$AC,Sheet1!S71_ItemType,$AD:$AD)","v":0},{"$f":"-SUMIFS(Sheet1!S71_AdjustmentBudAmnt,Sheet1!S71_A2SubCode,$AC:$AC,Sheet1!S71_ItemType,$AD:$AD)","v":0},{"$f":"SUMIFS(Sheet1!S71_ASBudgetAmount,Sheet1!S71_A2SubCode,$AC:$AC,Sheet1!S71_ItemType,$AD:$AD)","v":0},{"$f":"SUMIFS(Sheet1!S71_OY1BudgetAmount,Sheet1!S71_A2SubCode,$AC:$AC,Sheet1!S71_ItemType,$AD:$AD)","v":0},{"$f":"SUMIFS(Sheet1!S71_OY2BudgetAmount,Sheet1!S71_A2SubCode,$AC:$AC,Sheet1!S71_ItemType,$AD:$AD)","v":0},null,null,null,null,null,null,null,null,null,null,null,null,null,null,null,null,null,"2112","IR"]
["Language Policy",null,{"$f":"-SUMIFS(Sheet1!S71_OriginalBudAmnt,Sheet1!S71_A2SubCode,$AC:$AC,Sheet1!S71_ItemType,$AD:$AD)","v":0},{"$f":"-SUMIFS(Sheet1!S71_OriginalBudAmnt,Sheet1!S71_A2SubCode,$AC:$AC,Sheet1!S71_ItemType,$AD:$AD)","v":0},{"$f":"-SUMIFS(Sheet1!S71_OriginalBudAmnt,Sheet1!S71_A2SubCode,$AC:$AC,Sheet1!S71_ItemType,$AD:$AD)","v":0},{"$f":"-SUMIFS(Sheet1!S71_OriginalBudAmnt,Sheet1!S71_A2SubCode,$AC:$AC,Sheet1!S71_ItemType,$AD:$AD)","v":0},{"$f":"-SUMIFS(Sheet1!S71_AdjustmentBudAmnt,Sheet1!S71_A2SubCode,$AC:$AC,Sheet1!S71_ItemType,$AD:$AD)","v":0},{"$f":"-SUMIFS(Sheet1!S71_AdjustmentBudAmnt,Sheet1!S71_A2SubCode,$AC:$AC,Sheet1!S71_ItemType,$AD:$AD)","v":0},{"$f":"SUMIFS(Sheet1!S71_ASBudgetAmount,Sheet1!S71_A2SubCode,$AC:$AC,Sheet1!S71_ItemType,$AD:$AD)","v":0},{"$f":"SUMIFS(Sheet1!S71_OY1BudgetAmount,Sheet1!S71_A2SubCode,$AC:$AC,Sheet1!S71_ItemType,$AD:$AD)","v":0},{"$f":"SUMIFS(Sheet1!S71_OY2BudgetAmount,Sheet1!S71_A2SubCode,$AC:$AC,Sheet1!S71_ItemType,$AD:$AD)","v":0},null,null,null,null,null,null,null,null,null,null,null,null,null,null,null,null,null,"2113","IR"]
["Libraries and Archives",null,{"$f":"-SUMIFS(Sheet1!S71_OriginalBudAmnt,Sheet1!S71_A2SubCode,$AC:$AC,Sheet1!S71_ItemType,$AD:$AD)","v":1600},{"$f":"-SUMIFS(Sheet1!S71_OriginalBudAmnt,Sheet1!S71_A2SubCode,$AC:$AC,Sheet1!S71_ItemType,$AD:$AD)","v":1600},{"$f":"-SUMIFS(Sheet1!S71_OriginalBudAmnt,Sheet1!S71_A2SubCode,$AC:$AC,Sheet1!S71_ItemType,$AD:$AD)","v":1600},{"$f":"-SUMIFS(Sheet1!S71_OriginalBudAmnt,Sheet1!S71_A2SubCode,$AC:$AC,Sheet1!S71_ItemType,$AD:$AD)","v":1600},{"$f":"-SUMIFS(Sheet1!S71_AdjustmentBudAmnt,Sheet1!S71_A2SubCode,$AC:$AC,Sheet1!S71_ItemType,$AD:$AD)","v":1600},{"$f":"-SUMIFS(Sheet1!S71_AdjustmentBudAmnt,Sheet1!S71_A2SubCode,$AC:$AC,Sheet1!S71_ItemType,$AD:$AD)","v":1600},{"$f":"SUMIFS(Sheet1!S71_ASBudgetAmount,Sheet1!S71_A2SubCode,$AC:$AC,Sheet1!S71_ItemType,$AD:$AD)","v":1600},{"$f":"SUMIFS(Sheet1!S71_OY1BudgetAmount,Sheet1!S71_A2SubCode,$AC:$AC,Sheet1!S71_ItemType,$AD:$AD)","v":1678},{"$f":"SUMIFS(Sheet1!S71_OY2BudgetAmount,Sheet1!S71_A2SubCode,$AC:$AC,Sheet1!S71_ItemType,$AD:$AD)","v":1757},null,null,null,null,null,null,null,null,null,null,null,null,null,null,null,null,null,"2114","IR"]
["Literacy Programmes",null,{"$f":"-SUMIFS(Sheet1!S71_OriginalBudAmnt,Sheet1!S71_A2SubCode,$AC:$AC,Sheet1!S71_ItemType,$AD:$AD)","v":0},{"$f":"-SUMIFS(Sheet1!S71_OriginalBudAmnt,Sheet1!S71_A2SubCode,$AC:$AC,Sheet1!S71_ItemType,$AD:$AD)","v":0},{"$f":"-SUMIFS(Sheet1!S71_OriginalBudAmnt,Sheet1!S71_A2SubCode,$AC:$AC,Sheet1!S71_ItemType,$AD:$AD)","v":0},{"$f":"-SUMIFS(Sheet1!S71_OriginalBudAmnt,Sheet1!S71_A2SubCode,$AC:$AC,Sheet1!S71_ItemType,$AD:$AD)","v":0},{"$f":"-SUMIFS(Sheet1!S71_AdjustmentBudAmnt,Sheet1!S71_A2SubCode,$AC:$AC,Sheet1!S71_ItemType,$AD:$AD)","v":0},{"$f":"-SUMIFS(Sheet1!S71_AdjustmentBudAmnt,Sheet1!S71_A2SubCode,$AC:$AC,Sheet1!S71_ItemType,$AD:$AD)","v":0},{"$f":"SUMIFS(Sheet1!S71_ASBudgetAmount,Sheet1!S71_A2SubCode,$AC:$AC,Sheet1!S71_ItemType,$AD:$AD)","v":0},{"$f":"SUMIFS(Sheet1!S71_OY1BudgetAmount,Sheet1!S71_A2SubCode,$AC:$AC,Sheet1!S71_ItemType,$AD:$AD)","v":0},{"$f":"SUMIFS(Sheet1!S71_OY2BudgetAmount,Sheet1!S71_A2SubCode,$AC:$AC,Sheet1!S71_ItemType,$AD:$AD)","v":0},null,null,null,null,null,null,null,null,null,null,null,null,null,null,null,null,null,"2115","IR"]
["Media Services",null,{"$f":"-SUMIFS(Sheet1!S71_OriginalBudAmnt,Sheet1!S71_A2SubCode,$AC:$AC,Sheet1!S71_ItemType,$AD:$AD)","v":0},{"$f":"-SUMIFS(Sheet1!S71_OriginalBudAmnt,Sheet1!S71_A2SubCode,$AC:$AC,Sheet1!S71_ItemType,$AD:$AD)","v":0},{"$f":"-SUMIFS(Sheet1!S71_OriginalBudAmnt,Sheet1!S71_A2SubCode,$AC:$AC,Sheet1!S71_ItemType,$AD:$AD)","v":0},{"$f":"-SUMIFS(Sheet1!S71_OriginalBudAmnt,Sheet1!S71_A2SubCode,$AC:$AC,Sheet1!S71_ItemType,$AD:$AD)","v":0},{"$f":"-SUMIFS(Sheet1!S71_AdjustmentBudAmnt,Sheet1!S71_A2SubCode,$AC:$AC,Sheet1!S71_ItemType,$AD:$AD)","v":0},{"$f":"-SUMIFS(Sheet1!S71_AdjustmentBudAmnt,Sheet1!S71_A2SubCode,$AC:$AC,Sheet1!S71_ItemType,$AD:$AD)","v":0},{"$f":"SUMIFS(Sheet1!S71_ASBudgetAmount,Sheet1!S71_A2SubCode,$AC:$AC,Sheet1!S71_ItemType,$AD:$AD)","v":0},{"$f":"SUMIFS(Sheet1!S71_OY1BudgetAmount,Sheet1!S71_A2SubCode,$AC:$AC,Sheet1!S71_ItemType,$AD:$AD)","v":0},{"$f":"SUMIFS(Sheet1!S71_OY2BudgetAmount,Sheet1!S71_A2SubCode,$AC:$AC,Sheet1!S71_ItemType,$AD:$AD)","v":0},null,null,null,null,null,null,null,null,null,null,null,null,null,null,null,null,null,"2116","IR"]
["Museums and Art Galleries",null,{"$f":"-SUMIFS(Sheet1!S71_OriginalBudAmnt,Sheet1!S71_A2SubCode,$AC:$AC,Sheet1!S71_ItemType,$AD:$AD)","v":0},{"$f":"-SUMIFS(Sheet1!S71_OriginalBudAmnt,Sheet1!S71_A2SubCode,$AC:$AC,Sheet1!S71_ItemType,$AD:$AD)","v":0},{"$f":"-SUMIFS(Sheet1!S71_OriginalBudAmnt,Sheet1!S71_A2SubCode,$AC:$AC,Sheet1!S71_ItemType,$AD:$AD)","v":0},{"$f":"-SUMIFS(Sheet1!S71_OriginalBudAmnt,Sheet1!S71_A2SubCode,$AC:$AC,Sheet1!S71_ItemType,$AD:$AD)","v":0},{"$f":"-SUMIFS(Sheet1!S71_AdjustmentBudAmnt,Sheet1!S71_A2SubCode,$AC:$AC,Sheet1!S71_ItemType,$AD:$AD)","v":0},{"$f":"-SUMIFS(Sheet1!S71_AdjustmentBudAmnt,Sheet1!S71_A2SubCode,$AC:$AC,Sheet1!S71_ItemType,$AD:$AD)","v":0},{"$f":"SUMIFS(Sheet1!S71_ASBudgetAmount,Sheet1!S71_A2SubCode,$AC:$AC,Sheet1!S71_ItemType,$AD:$AD)","v":0},{"$f":"SUMIFS(Sheet1!S71_OY1BudgetAmount,Sheet1!S71_A2SubCode,$AC:$AC,Sheet1!S71_ItemType,$AD:$AD)","v":0},{"$f":"SUMIFS(Sheet1!S71_OY2BudgetAmount,Sheet1!S71_A2SubCode,$AC:$AC,Sheet1!S71_ItemType,$AD:$AD)","v":0},null,null,null,null,null,null,null,null,null,null,null,null,null,null,null,null,null,"2117","IR"]
["Population Development",null,{"$f":"-SUMIFS(Sheet1!S71_OriginalBudAmnt,Sheet1!S71_A2SubCode,$AC:$AC,Sheet1!S71_ItemType,$AD:$AD)","v":0},{"$f":"-SUMIFS(Sheet1!S71_OriginalBudAmnt,Sheet1!S71_A2SubCode,$AC:$AC,Sheet1!S71_ItemType,$AD:$AD)","v":0},{"$f":"-SUMIFS(Sheet1!S71_OriginalBudAmnt,Sheet1!S71_A2SubCode,$AC:$AC,Sheet1!S71_ItemType,$AD:$AD)","v":0},{"$f":"-SUMIFS(Sheet1!S71_OriginalBudAmnt,Sheet1!S71_A2SubCode,$AC:$AC,Sheet1!S71_ItemType,$AD:$AD)","v":0},{"$f":"-SUMIFS(Sheet1!S71_AdjustmentBudAmnt,Sheet1!S71_A2SubCode,$AC:$AC,Sheet1!S71_ItemType,$AD:$AD)","v":0},{"$f":"-SUMIFS(Sheet1!S71_AdjustmentBudAmnt,Sheet1!S71_A2SubCode,$AC:$AC,Sheet1!S71_ItemType,$AD:$AD)","v":0},{"$f":"SUMIFS(Sheet1!S71_ASBudgetAmount,Sheet1!S71_A2SubCode,$AC:$AC,Sheet1!S71_ItemType,$AD:$AD)","v":0},{"$f":"SUMIFS(Sheet1!S71_OY1BudgetAmount,Sheet1!S71_A2SubCode,$AC:$AC,Sheet1!S71_ItemType,$AD:$AD)","v":0},{"$f":"SUMIFS(Sheet1!S71_OY2BudgetAmount,Sheet1!S71_A2SubCode,$AC:$AC,Sheet1!S71_ItemType,$AD:$AD)","v":0},null,null,null,null,null,null,null,null,null,null,null,null,null,null,null,null,null,"2118","IR"]
["Provincial Cultural Matters",null,{"$f":"-SUMIFS(Sheet1!S71_OriginalBudAmnt,Sheet1!S71_A2SubCode,$AC:$AC,Sheet1!S71_ItemType,$AD:$AD)","v":0},{"$f":"-SUMIFS(Sheet1!S71_OriginalBudAmnt,Sheet1!S71_A2SubCode,$AC:$AC,Sheet1!S71_ItemType,$AD:$AD)","v":0},{"$f":"-SUMIFS(Sheet1!S71_OriginalBudAmnt,Sheet1!S71_A2SubCode,$AC:$AC,Sheet1!S71_ItemType,$AD:$AD)","v":0},{"$f":"-SUMIFS(Sheet1!S71_OriginalBudAmnt,Sheet1!S71_A2SubCode,$AC:$AC,Sheet1!S71_ItemType,$AD:$AD)","v":0},{"$f":"-SUMIFS(Sheet1!S71_AdjustmentBudAmnt,Sheet1!S71_A2SubCode,$AC:$AC,Sheet1!S71_ItemType,$AD:$AD)","v":0},{"$f":"-SUMIFS(Sheet1!S71_AdjustmentBudAmnt,Sheet1!S71_A2SubCode,$AC:$AC,Sheet1!S71_ItemType,$AD:$AD)","v":0},{"$f":"SUMIFS(Sheet1!S71_ASBudgetAmount,Sheet1!S71_A2SubCode,$AC:$AC,Sheet1!S71_ItemType,$AD:$AD)","v":0},{"$f":"SUMIFS(Sheet1!S71_OY1BudgetAmount,Sheet1!S71_A2SubCode,$AC:$AC,Sheet1!S71_ItemType,$AD:$AD)","v":0},{"$f":"SUMIFS(Sheet1!S71_OY2BudgetAmount,Sheet1!S71_A2SubCode,$AC:$AC,Sheet1!S71_ItemType,$AD:$AD)","v":0},null,null,null,null,null,null,null,null,null,null,null,null,null,null,null,null,null,"2119","IR"]
["Theatres",null,{"$f":"-SUMIFS(Sheet1!S71_OriginalBudAmnt,Sheet1!S71_A2SubCode,$AC:$AC,Sheet1!S71_ItemType,$AD:$AD)","v":0},{"$f":"-SUMIFS(Sheet1!S71_OriginalBudAmnt,Sheet1!S71_A2SubCode,$AC:$AC,Sheet1!S71_ItemType,$AD:$AD)","v":0},{"$f":"-SUMIFS(Sheet1!S71_OriginalBudAmnt,Sheet1!S71_A2SubCode,$AC:$AC,Sheet1!S71_ItemType,$AD:$AD)","v":0},{"$f":"-SUMIFS(Sheet1!S71_OriginalBudAmnt,Sheet1!S71_A2SubCode,$AC:$AC,Sheet1!S71_ItemType,$AD:$AD)","v":0},{"$f":"-SUMIFS(Sheet1!S71_AdjustmentBudAmnt,Sheet1!S71_A2SubCode,$AC:$AC,Sheet1!S71_ItemType,$AD:$AD)","v":0},{"$f":"-SUMIFS(Sheet1!S71_AdjustmentBudAmnt,Sheet1!S71_A2SubCode,$AC:$AC,Sheet1!S71_ItemType,$AD:$AD)","v":0},{"$f":"SUMIFS(Sheet1!S71_ASBudgetAmount,Sheet1!S71_A2SubCode,$AC:$AC,Sheet1!S71_ItemType,$AD:$AD)","v":0},{"$f":"SUMIFS(Sheet1!S71_OY1BudgetAmount,Sheet1!S71_A2SubCode,$AC:$AC,Sheet1!S71_ItemType,$AD:$AD)","v":0},{"$f":"SUMIFS(Sheet1!S71_OY2BudgetAmount,Sheet1!S71_A2SubCode,$AC:$AC,Sheet1!S71_ItemType,$AD:$AD)","v":0},null,null,null,null,null,null,null,null,null,null,null,null,null,null,null,null,null,"2120","IR"]
["Zoo's",null,{"$f":"-SUMIFS(Sheet1!S71_OriginalBudAmnt,Sheet1!S71_A2SubCode,$AC:$AC,Sheet1!S71_ItemType,$AD:$AD)","v":0},{"$f":"-SUMIFS(Sheet1!S71_OriginalBudAmnt,Sheet1!S71_A2SubCode,$AC:$AC,Sheet1!S71_ItemType,$AD:$AD)","v":0},{"$f":"-SUMIFS(Sheet1!S71_OriginalBudAmnt,Sheet1!S71_A2SubCode,$AC:$AC,Sheet1!S71_ItemType,$AD:$AD)","v":0},{"$f":"-SUMIFS(Sheet1!S71_OriginalBudAmnt,Sheet1!S71_A2SubCode,$AC:$AC,Sheet1!S71_ItemType,$AD:$AD)","v":0},{"$f":"-SUMIFS(Sheet1!S71_AdjustmentBudAmnt,Sheet1!S71_A2SubCode,$AC:$AC,Sheet1!S71_ItemType,$AD:$AD)","v":0},{"$f":"-SUMIFS(Sheet1!S71_AdjustmentBudAmnt,Sheet1!S71_A2SubCode,$AC:$AC,Sheet1!S71_ItemType,$AD:$AD)","v":0},{"$f":"SUMIFS(Sheet1!S71_ASBudgetAmount,Sheet1!S71_A2SubCode,$AC:$AC,Sheet1!S71_ItemType,$AD:$AD)","v":0},{"$f":"SUMIFS(Sheet1!S71_OY1BudgetAmount,Sheet1!S71_A2SubCode,$AC:$AC,Sheet1!S71_ItemType,$AD:$AD)","v":0},{"$f":"SUMIFS(Sheet1!S71_OY2BudgetAmount,Sheet1!S71_A2SubCode,$AC:$AC,Sheet1!S71_ItemType,$AD:$AD)","v":0},null,null,null,null,null,null,null,null,null,null,null,null,null,null,null,null,null,"2121","IR"]
["Sport and recreation",null,{"$f":"SUM(C49:C53)","v":50000},{"$f":"SUM(D49:D53)","v":50000},50000,50000,450000,450000,450000,472050,494236,null,null,null,null,null,null,null,null,null,null,null,null,null,null,null,null,null,null,"IR"]
["Beaches and Jetties ",null,{"$f":"-SUMIFS(Sheet1!S71_OriginalBudAmnt,Sheet1!S71_A2SubCode,$AC:$AC,Sheet1!S71_ItemType,$AD:$AD)","v":0},{"$f":"-SUMIFS(Sheet1!S71_OriginalBudAmnt,Sheet1!S71_A2SubCode,$AC:$AC,Sheet1!S71_ItemType,$AD:$AD)","v":0},{"$f":"-SUMIFS(Sheet1!S71_OriginalBudAmnt,Sheet1!S71_A2SubCode,$AC:$AC,Sheet1!S71_ItemType,$AD:$AD)","v":0},{"$f":"-SUMIFS(Sheet1!S71_OriginalBudAmnt,Sheet1!S71_A2SubCode,$AC:$AC,Sheet1!S71_ItemType,$AD:$AD)","v":0},{"$f":"-SUMIFS(Sheet1!S71_AdjustmentBudAmnt,Sheet1!S71_A2SubCode,$AC:$AC,Sheet1!S71_ItemType,$AD:$AD)","v":0},{"$f":"-SUMIFS(Sheet1!S71_AdjustmentBudAmnt,Sheet1!S71_A2SubCode,$AC:$AC,Sheet1!S71_ItemType,$AD:$AD)","v":0},{"$f":"SUMIFS(Sheet1!S71_ASBudgetAmount,Sheet1!S71_A2SubCode,$AC:$AC,Sheet1!S71_ItemType,$AD:$AD)","v":0},{"$f":"SUMIFS(Sheet1!S71_OY1BudgetAmount,Sheet1!S71_A2SubCode,$AC:$AC,Sheet1!S71_ItemType,$AD:$AD)","v":0},{"$f":"SUMIFS(Sheet1!S71_OY2BudgetAmount,Sheet1!S71_A2SubCode,$AC:$AC,Sheet1!S71_ItemType,$AD:$AD)","v":0},null,null,null,null,null,null,null,null,null,null,null,null,null,null,null,null,null,"2201","IR"]
["Casinos, Racing, Gambling, Wagering",null,{"$f":"-SUMIFS(Sheet1!S71_OriginalBudAmnt,Sheet1!S71_A2SubCode,$AC:$AC,Sheet1!S71_ItemType,$AD:$AD)","v":0},{"$f":"-SUMIFS(Sheet1!S71_OriginalBudAmnt,Sheet1!S71_A2SubCode,$AC:$AC,Sheet1!S71_ItemType,$AD:$AD)","v":0},{"$f":"-SUMIFS(Sheet1!S71_OriginalBudAmnt,Sheet1!S71_A2SubCode,$AC:$AC,Sheet1!S71_ItemType,$AD:$AD)","v":0},{"$f":"-SUMIFS(Sheet1!S71_OriginalBudAmnt,Sheet1!S71_A2SubCode,$AC:$AC,Sheet1!S71_ItemType,$AD:$AD)","v":0},{"$f":"-SUMIFS(Sheet1!S71_AdjustmentBudAmnt,Sheet1!S71_A2SubCode,$AC:$AC,Sheet1!S71_ItemType,$AD:$AD)","v":0},{"$f":"-SUMIFS(Sheet1!S71_AdjustmentBudAmnt,Sheet1!S71_A2SubCode,$AC:$AC,Sheet1!S71_ItemType,$AD:$AD)","v":0},{"$f":"SUMIFS(Sheet1!S71_ASBudgetAmount,Sheet1!S71_A2SubCode,$AC:$AC,Sheet1!S71_ItemType,$AD:$AD)","v":0},{"$f":"SUMIFS(Sheet1!S71_OY1BudgetAmount,Sheet1!S71_A2SubCode,$AC:$AC,Sheet1!S71_ItemType,$AD:$AD)","v":0},{"$f":"SUMIFS(Sheet1!S71_OY2BudgetAmount,Sheet1!S71_A2SubCode,$AC:$AC,Sheet1!S71_ItemType,$AD:$AD)","v":0},null,null,null,null,null,null,null,null,null,null,null,null,null,null,null,null,null,"2202","IR"]
["Community Parks (including Nurseries)",null,{"$f":"-SUMIFS(Sheet1!S71_OriginalBudAmnt,Sheet1!S71_A2SubCode,$AC:$AC,Sheet1!S71_ItemType,$AD:$AD)","v":0},{"$f":"-SUMIFS(Sheet1!S71_OriginalBudAmnt,Sheet1!S71_A2SubCode,$AC:$AC,Sheet1!S71_ItemType,$AD:$AD)","v":0},{"$f":"-SUMIFS(Sheet1!S71_OriginalBudAmnt,Sheet1!S71_A2SubCode,$AC:$AC,Sheet1!S71_ItemType,$AD:$AD)","v":0},{"$f":"-SUMIFS(Sheet1!S71_OriginalBudAmnt,Sheet1!S71_A2SubCode,$AC:$AC,Sheet1!S71_ItemType,$AD:$AD)","v":0},{"$f":"-SUMIFS(Sheet1!S71_AdjustmentBudAmnt,Sheet1!S71_A2SubCode,$AC:$AC,Sheet1!S71_ItemType,$AD:$AD)","v":0},{"$f":"-SUMIFS(Sheet1!S71_AdjustmentBudAmnt,Sheet1!S71_A2SubCode,$AC:$AC,Sheet1!S71_ItemType,$AD:$AD)","v":0},{"$f":"SUMIFS(Sheet1!S71_ASBudgetAmount,Sheet1!S71_A2SubCode,$AC:$AC,Sheet1!S71_ItemType,$AD:$AD)","v":0},{"$f":"SUMIFS(Sheet1!S71_OY1BudgetAmount,Sheet1!S71_A2SubCode,$AC:$AC,Sheet1!S71_ItemType,$AD:$AD)","v":0},{"$f":"SUMIFS(Sheet1!S71_OY2BudgetAmount,Sheet1!S71_A2SubCode,$AC:$AC,Sheet1!S71_ItemType,$AD:$AD)","v":0},null,null,null,null,null,null,null,null,null,null,null,null,null,null,null,null,null,"2203","IR"]
["Recreational Facilities",null,{"$f":"-SUMIFS(Sheet1!S71_OriginalBudAmnt,Sheet1!S71_A2SubCode,$AC:$AC,Sheet1!S71_ItemType,$AD:$AD)","v":0},{"$f":"-SUMIFS(Sheet1!S71_OriginalBudAmnt,Sheet1!S71_A2SubCode,$AC:$AC,Sheet1!S71_ItemType,$AD:$AD)","v":0},{"$f":"-SUMIFS(Sheet1!S71_OriginalBudAmnt,Sheet1!S71_A2SubCode,$AC:$AC,Sheet1!S71_ItemType,$AD:$AD)","v":0},{"$f":"-SUMIFS(Sheet1!S71_OriginalBudAmnt,Sheet1!S71_A2SubCode,$AC:$AC,Sheet1!S71_ItemType,$AD:$AD)","v":0},{"$f":"-SUMIFS(Sheet1!S71_AdjustmentBudAmnt,Sheet1!S71_A2SubCode,$AC:$AC,Sheet1!S71_ItemType,$AD:$AD)","v":0},{"$f":"-SUMIFS(Sheet1!S71_AdjustmentBudAmnt,Sheet1!S71_A2SubCode,$AC:$AC,Sheet1!S71_ItemType,$AD:$AD)","v":0},{"$f":"SUMIFS(Sheet1!S71_ASBudgetAmount,Sheet1!S71_A2SubCode,$AC:$AC,Sheet1!S71_ItemType,$AD:$AD)","v":0},{"$f":"SUMIFS(Sheet1!S71_OY1BudgetAmount,Sheet1!S71_A2SubCode,$AC:$AC,Sheet1!S71_ItemType,$AD:$AD)","v":0},{"$f":"SUMIFS(Sheet1!S71_OY2BudgetAmount,Sheet1!S71_A2SubCode,$AC:$AC,Sheet1!S71_ItemType,$AD:$AD)","v":0},null,null,null,null,null,null,null,null,null,null,null,null,null,null,null,null,null,"2204","IR"]
["Sports Grounds and Stadiums",null,{"$f":"-SUMIFS(Sheet1!S71_OriginalBudAmnt,Sheet1!S71_A2SubCode,$AC:$AC,Sheet1!S71_ItemType,$AD:$AD)","v":50000},{"$f":"-SUMIFS(Sheet1!S71_OriginalBudAmnt,Sheet1!S71_A2SubCode,$AC:$AC,Sheet1!S71_ItemType,$AD:$AD)","v":50000},{"$f":"-SUMIFS(Sheet1!S71_OriginalBudAmnt,Sheet1!S71_A2SubCode,$AC:$AC,Sheet1!S71_ItemType,$AD:$AD)","v":50000},{"$f":"-SUMIFS(Sheet1!S71_OriginalBudAmnt,Sheet1!S71_A2SubCode,$AC:$AC,Sheet1!S71_ItemType,$AD:$AD)","v":50000},{"$f":"-SUMIFS(Sheet1!S71_AdjustmentBudAmnt,Sheet1!S71_A2SubCode,$AC:$AC,Sheet1!S71_ItemType,$AD:$AD)","v":450000},{"$f":"-SUMIFS(Sheet1!S71_AdjustmentBudAmnt,Sheet1!S71_A2SubCode,$AC:$AC,Sheet1!S71_ItemType,$AD:$AD)","v":450000},{"$f":"SUMIFS(Sheet1!S71_ASBudgetAmount,Sheet1!S71_A2SubCode,$AC:$AC,Sheet1!S71_ItemType,$AD:$AD)","v":450000},{"$f":"SUMIFS(Sheet1!S71_OY1BudgetAmount,Sheet1!S71_A2SubCode,$AC:$AC,Sheet1!S71_ItemType,$AD:$AD)","v":472050},{"$f":"SUMIFS(Sheet1!S71_OY2BudgetAmount,Sheet1!S71_A2SubCode,$AC:$AC,Sheet1!S71_ItemType,$AD:$AD)","v":494236},null,null,null,null,null,null,null,null,null,null,null,null,null,null,null,null,null,"2205","IR"]
["Public safety",null,{"$f":"SUM(C55:C62)","v":0},0,0,0,0,0,0,0,0,null,null,null,null,null,null,null,null,null,null,null,null,null,null,null,null,null,null,"IR"]
["Civil Defence",null,{"$f":"-SUMIFS(Sheet1!S71_OriginalBudAmnt,Sheet1!S71_A2SubCode,$AC:$AC,Sheet1!S71_ItemType,$AD:$AD)","v":0},{"$f":"-SUMIFS(Sheet1!S71_OriginalBudAmnt,Sheet1!S71_A2SubCode,$AC:$AC,Sheet1!S71_ItemType,$AD:$AD)","v":0},{"$f":"-SUMIFS(Sheet1!S71_OriginalBudAmnt,Sheet1!S71_A2SubCode,$AC:$AC,Sheet1!S71_ItemType,$AD:$AD)","v":0},{"$f":"-SUMIFS(Sheet1!S71_OriginalBudAmnt,Sheet1!S71_A2SubCode,$AC:$AC,Sheet1!S71_ItemType,$AD:$AD)","v":0},{"$f":"-SUMIFS(Sheet1!S71_AdjustmentBudAmnt,Sheet1!S71_A2SubCode,$AC:$AC,Sheet1!S71_ItemType,$AD:$AD)","v":0},{"$f":"-SUMIFS(Sheet1!S71_AdjustmentBudAmnt,Sheet1!S71_A2SubCode,$AC:$AC,Sheet1!S71_ItemType,$AD:$AD)","v":0},{"$f":"SUMIFS(Sheet1!S71_ASBudgetAmount,Sheet1!S71_A2SubCode,$AC:$AC,Sheet1!S71_ItemType,$AD:$AD)","v":0},{"$f":"SUMIFS(Sheet1!S71_OY1BudgetAmount,Sheet1!S71_A2SubCode,$AC:$AC,Sheet1!S71_ItemType,$AD:$AD)","v":0},{"$f":"SUMIFS(Sheet1!S71_OY2BudgetAmount,Sheet1!S71_A2SubCode,$AC:$AC,Sheet1!S71_ItemType,$AD:$AD)","v":0},null,null,null,null,null,null,null,null,null,null,null,null,null,null,null,null,null,"2301","IR"]
["Cleansing",null,{"$f":"-SUMIFS(Sheet1!S71_OriginalBudAmnt,Sheet1!S71_A2SubCode,$AC:$AC,Sheet1!S71_ItemType,$AD:$AD)","v":0},{"$f":"-SUMIFS(Sheet1!S71_OriginalBudAmnt,Sheet1!S71_A2SubCode,$AC:$AC,Sheet1!S71_ItemType,$AD:$AD)","v":0},{"$f":"-SUMIFS(Sheet1!S71_OriginalBudAmnt,Sheet1!S71_A2SubCode,$AC:$AC,Sheet1!S71_ItemType,$AD:$AD)","v":0},{"$f":"-SUMIFS(Sheet1!S71_OriginalBudAmnt,Sheet1!S71_A2SubCode,$AC:$AC,Sheet1!S71_ItemType,$AD:$AD)","v":0},{"$f":"-SUMIFS(Sheet1!S71_AdjustmentBudAmnt,Sheet1!S71_A2SubCode,$AC:$AC,Sheet1!S71_ItemType,$AD:$AD)","v":0},{"$f":"-SUMIFS(Sheet1!S71_AdjustmentBudAmnt,Sheet1!S71_A2SubCode,$AC:$AC,Sheet1!S71_ItemType,$AD:$AD)","v":0},{"$f":"SUMIFS(Sheet1!S71_ASBudgetAmount,Sheet1!S71_A2SubCode,$AC:$AC,Sheet1!S71_ItemType,$AD:$AD)","v":0},{"$f":"SUMIFS(Sheet1!S71_OY1BudgetAmount,Sheet1!S71_A2SubCode,$AC:$AC,Sheet1!S71_ItemType,$AD:$AD)","v":0},{"$f":"SUMIFS(Sheet1!S71_OY2BudgetAmount,Sheet1!S71_A2SubCode,$AC:$AC,Sheet1!S71_ItemType,$AD:$AD)","v":0},null,null,null,null,null,null,null,null,null,null,null,null,null,null,null,null,null,"2302","IR"]
["Control of Public Nuisances",null,{"$f":"-SUMIFS(Sheet1!S71_OriginalBudAmnt,Sheet1!S71_A2SubCode,$AC:$AC,Sheet1!S71_ItemType,$AD:$AD)","v":0},{"$f":"-SUMIFS(Sheet1!S71_OriginalBudAmnt,Sheet1!S71_A2SubCode,$AC:$AC,Sheet1!S71_ItemType,$AD:$AD)","v":0},{"$f":"-SUMIFS(Sheet1!S71_OriginalBudAmnt,Sheet1!S71_A2SubCode,$AC:$AC,Sheet1!S71_ItemType,$AD:$AD)","v":0},{"$f":"-SUMIFS(Sheet1!S71_OriginalBudAmnt,Sheet1!S71_A2SubCode,$AC:$AC,Sheet1!S71_ItemType,$AD:$AD)","v":0},{"$f":"-SUMIFS(Sheet1!S71_AdjustmentBudAmnt,Sheet1!S71_A2SubCode,$AC:$AC,Sheet1!S71_ItemType,$AD:$AD)","v":0},{"$f":"-SUMIFS(Sheet1!S71_AdjustmentBudAmnt,Sheet1!S71_A2SubCode,$AC:$AC,Sheet1!S71_ItemType,$AD:$AD)","v":0},{"$f":"SUMIFS(Sheet1!S71_ASBudgetAmount,Sheet1!S71_A2SubCode,$AC:$AC,Sheet1!S71_ItemType,$AD:$AD)","v":0},{"$f":"SUMIFS(Sheet1!S71_OY1BudgetAmount,Sheet1!S71_A2SubCode,$AC:$AC,Sheet1!S71_ItemType,$AD:$AD)","v":0},{"$f":"SUMIFS(Sheet1!S71_OY2BudgetAmount,Sheet1!S71_A2SubCode,$AC:$AC,Sheet1!S71_ItemType,$AD:$AD)","v":0},null,null,null,null,null,null,null,null,null,null,null,null,null,null,null,null,null,"2303","IR"]
["Fencing and Fences ",null,{"$f":"-SUMIFS(Sheet1!S71_OriginalBudAmnt,Sheet1!S71_A2SubCode,$AC:$AC,Sheet1!S71_ItemType,$AD:$AD)","v":0},{"$f":"-SUMIFS(Sheet1!S71_OriginalBudAmnt,Sheet1!S71_A2SubCode,$AC:$AC,Sheet1!S71_ItemType,$AD:$AD)","v":0},{"$f":"-SUMIFS(Sheet1!S71_OriginalBudAmnt,Sheet1!S71_A2SubCode,$AC:$AC,Sheet1!S71_ItemType,$AD:$AD)","v":0},{"$f":"-SUMIFS(Sheet1!S71_OriginalBudAmnt,Sheet1!S71_A2SubCode,$AC:$AC,Sheet1!S71_ItemType,$AD:$AD)","v":0},{"$f":"-SUMIFS(Sheet1!S71_AdjustmentBudAmnt,Sheet1!S71_A2SubCode,$AC:$AC,Sheet1!S71_ItemType,$AD:$AD)","v":0},{"$f":"-SUMIFS(Sheet1!S71_AdjustmentBudAmnt,Sheet1!S71_A2SubCode,$AC:$AC,Sheet1!S71_ItemType,$AD:$AD)","v":0},{"$f":"SUMIFS(Sheet1!S71_ASBudgetAmount,Sheet1!S71_A2SubCode,$AC:$AC,Sheet1!S71_ItemType,$AD:$AD)","v":0},{"$f":"SUMIFS(Sheet1!S71_OY1BudgetAmount,Sheet1!S71_A2SubCode,$AC:$AC,Sheet1!S71_ItemType,$AD:$AD)","v":0},{"$f":"SUMIFS(Sheet1!S71_OY2BudgetAmount,Sheet1!S71_A2SubCode,$AC:$AC,Sheet1!S71_ItemType,$AD:$AD)","v":0},null,null,null,null,null,null,null,null,null,null,null,null,null,null,null,null,null,"2304","IR"]
["Fire Fighting and Protection",null,{"$f":"-SUMIFS(Sheet1!S71_OriginalBudAmnt,Sheet1!S71_A2SubCode,$AC:$AC,Sheet1!S71_ItemType,$AD:$AD)","v":0},{"$f":"-SUMIFS(Sheet1!S71_OriginalBudAmnt,Sheet1!S71_A2SubCode,$AC:$AC,Sheet1!S71_ItemType,$AD:$AD)","v":0},{"$f":"-SUMIFS(Sheet1!S71_OriginalBudAmnt,Sheet1!S71_A2SubCode,$AC:$AC,Sheet1!S71_ItemType,$AD:$AD)","v":0},{"$f":"-SUMIFS(Sheet1!S71_OriginalBudAmnt,Sheet1!S71_A2SubCode,$AC:$AC,Sheet1!S71_ItemType,$AD:$AD)","v":0},{"$f":"-SUMIFS(Sheet1!S71_AdjustmentBudAmnt,Sheet1!S71_A2SubCode,$AC:$AC,Sheet1!S71_ItemType,$AD:$AD)","v":0},{"$f":"-SUMIFS(Sheet1!S71_AdjustmentBudAmnt,Sheet1!S71_A2SubCode,$AC:$AC,Sheet1!S71_ItemType,$AD:$AD)","v":0},{"$f":"SUMIFS(Sheet1!S71_ASBudgetAmount,Sheet1!S71_A2SubCode,$AC:$AC,Sheet1!S71_ItemType,$AD:$AD)","v":0},{"$f":"SUMIFS(Sheet1!S71_OY1BudgetAmount,Sheet1!S71_A2SubCode,$AC:$AC,Sheet1!S71_ItemType,$AD:$AD)","v":0},{"$f":"SUMIFS(Sheet1!S71_OY2BudgetAmount,Sheet1!S71_A2SubCode,$AC:$AC,Sheet1!S71_ItemType,$AD:$AD)","v":0},null,null,null,null,null,null,null,null,null,null,null,null,null,null,null,null,null,"2305","IR"]
["Licensing and Control of Animals",null,{"$f":"-SUMIFS(Sheet1!S71_OriginalBudAmnt,Sheet1!S71_A2SubCode,$AC:$AC,Sheet1!S71_ItemType,$AD:$AD)","v":0},{"$f":"-SUMIFS(Sheet1!S71_OriginalBudAmnt,Sheet1!S71_A2SubCode,$AC:$AC,Sheet1!S71_ItemType,$AD:$AD)","v":0},{"$f":"-SUMIFS(Sheet1!S71_OriginalBudAmnt,Sheet1!S71_A2SubCode,$AC:$AC,Sheet1!S71_ItemType,$AD:$AD)","v":0},{"$f":"-SUMIFS(Sheet1!S71_OriginalBudAmnt,Sheet1!S71_A2SubCode,$AC:$AC,Sheet1!S71_ItemType,$AD:$AD)","v":0},{"$f":"-SUMIFS(Sheet1!S71_AdjustmentBudAmnt,Sheet1!S71_A2SubCode,$AC:$AC,Sheet1!S71_ItemType,$AD:$AD)","v":0},{"$f":"-SUMIFS(Sheet1!S71_AdjustmentBudAmnt,Sheet1!S71_A2SubCode,$AC:$AC,Sheet1!S71_ItemType,$AD:$AD)","v":0},{"$f":"SUMIFS(Sheet1!S71_ASBudgetAmount,Sheet1!S71_A2SubCode,$AC:$AC,Sheet1!S71_ItemType,$AD:$AD)","v":0},{"$f":"SUMIFS(Sheet1!S71_OY1BudgetAmount,Sheet1!S71_A2SubCode,$AC:$AC,Sheet1!S71_ItemType,$AD:$AD)","v":0},{"$f":"SUMIFS(Sheet1!S71_OY2BudgetAmount,Sheet1!S71_A2SubCode,$AC:$AC,Sheet1!S71_ItemType,$AD:$AD)","v":0},null,null,null,null,null,null,null,null,null,null,null,null,null,null,null,null,null,"2306","IR"]
["Police Forces, Traffic and Street Parking Control",null,{"$f":"-SUMIFS(Sheet1!S71_OriginalBudAmnt,Sheet1!S71_A2SubCode,$AC:$AC,Sheet1!S71_ItemType,$AD:$AD)","v":0},{"$f":"-SUMIFS(Sheet1!S71_OriginalBudAmnt,Sheet1!S71_A2SubCode,$AC:$AC,Sheet1!S71_ItemType,$AD:$AD)","v":0},{"$f":"-SUMIFS(Sheet1!S71_OriginalBudAmnt,Sheet1!S71_A2SubCode,$AC:$AC,Sheet1!S71_ItemType,$AD:$AD)","v":0},{"$f":"-SUMIFS(Sheet1!S71_OriginalBudAmnt,Sheet1!S71_A2SubCode,$AC:$AC,Sheet1!S71_ItemType,$AD:$AD)","v":0},{"$f":"-SUMIFS(Sheet1!S71_AdjustmentBudAmnt,Sheet1!S71_A2SubCode,$AC:$AC,Sheet1!S71_ItemType,$AD:$AD)","v":0},{"$f":"-SUMIFS(Sheet1!S71_AdjustmentBudAmnt,Sheet1!S71_A2SubCode,$AC:$AC,Sheet1!S71_ItemType,$AD:$AD)","v":0},{"$f":"SUMIFS(Sheet1!S71_ASBudgetAmount,Sheet1!S71_A2SubCode,$AC:$AC,Sheet1!S71_ItemType,$AD:$AD)","v":0},{"$f":"SUMIFS(Sheet1!S71_OY1BudgetAmount,Sheet1!S71_A2SubCode,$AC:$AC,Sheet1!S71_ItemType,$AD:$AD)","v":0},{"$f":"SUMIFS(Sheet1!S71_OY2BudgetAmount,Sheet1!S71_A2SubCode,$AC:$AC,Sheet1!S71_ItemType,$AD:$AD)","v":0},null,null,null,null,null,null,null,null,null,null,null,null,null,null,null,null,null,"2307","IR"]
["Pounds",null,{"$f":"-SUMIFS(Sheet1!S71_OriginalBudAmnt,Sheet1!S71_A2SubCode,$AC:$AC,Sheet1!S71_ItemType,$AD:$AD)","v":0},{"$f":"-SUMIFS(Sheet1!S71_OriginalBudAmnt,Sheet1!S71_A2SubCode,$AC:$AC,Sheet1!S71_ItemType,$AD:$AD)","v":0},{"$f":"-SUMIFS(Sheet1!S71_OriginalBudAmnt,Sheet1!S71_A2SubCode,$AC:$AC,Sheet1!S71_ItemType,$AD:$AD)","v":0},{"$f":"-SUMIFS(Sheet1!S71_OriginalBudAmnt,Sheet1!S71_A2SubCode,$AC:$AC,Sheet1!S71_ItemType,$AD:$AD)","v":0},{"$f":"-SUMIFS(Sheet1!S71_AdjustmentBudAmnt,Sheet1!S71_A2SubCode,$AC:$AC,Sheet1!S71_ItemType,$AD:$AD)","v":0},{"$f":"-SUMIFS(Sheet1!S71_AdjustmentBudAmnt,Sheet1!S71_A2SubCode,$AC:$AC,Sheet1!S71_ItemType,$AD:$AD)","v":0},{"$f":"SUMIFS(Sheet1!S71_ASBudgetAmount,Sheet1!S71_A2SubCode,$AC:$AC,Sheet1!S71_ItemType,$AD:$AD)","v":0},{"$f":"SUMIFS(Sheet1!S71_OY1BudgetAmount,Sheet1!S71_A2SubCode,$AC:$AC,Sheet1!S71_ItemType,$AD:$AD)","v":0},{"$f":"SUMIFS(Sheet1!S71_OY2BudgetAmount,Sheet1!S71_A2SubCode,$AC:$AC,Sheet1!S71_ItemType,$AD:$AD)","v":0},null,null,null,null,null,null,null,null,null,null,null,null,null,null,null,null,null,"2308","IR"]
["Housing",null,{"$f":"SUM(C64:C65)","v":0},{"$f":"SUM(D64:D65)","v":0},0,0,0,0,0,0,0,null,null,null,null,null,null,null,null,null,null,null,null,null,null,null,null,null,null,"IR"]
["Housing",null,{"$f":"-SUMIFS(Sheet1!S71_OriginalBudAmnt,Sheet1!S71_A2SubCode,$AC:$AC,Sheet1!S71_ItemType,$AD:$AD)","v":0},{"$f":"-SUMIFS(Sheet1!S71_OriginalBudAmnt,Sheet1!S71_A2SubCode,$AC:$AC,Sheet1!S71_ItemType,$AD:$AD)","v":0},{"$f":"-SUMIFS(Sheet1!S71_OriginalBudAmnt,Sheet1!S71_A2SubCode,$AC:$AC,Sheet1!S71_ItemType,$AD:$AD)","v":0},{"$f":"-SUMIFS(Sheet1!S71_OriginalBudAmnt,Sheet1!S71_A2SubCode,$AC:$AC,Sheet1!S71_ItemType,$AD:$AD)","v":0},{"$f":"-SUMIFS(Sheet1!S71_AdjustmentBudAmnt,Sheet1!S71_A2SubCode,$AC:$AC,Sheet1!S71_ItemType,$AD:$AD)","v":0},{"$f":"-SUMIFS(Sheet1!S71_AdjustmentBudAmnt,Sheet1!S71_A2SubCode,$AC:$AC,Sheet1!S71_ItemType,$AD:$AD)","v":0},{"$f":"SUMIFS(Sheet1!S71_ASBudgetAmount,Sheet1!S71_A2SubCode,$AC:$AC,Sheet1!S71_ItemType,$AD:$AD)","v":0},{"$f":"SUMIFS(Sheet1!S71_OY1BudgetAmount,Sheet1!S71_A2SubCode,$AC:$AC,Sheet1!S71_ItemType,$AD:$AD)","v":0},{"$f":"SUMIFS(Sheet1!S71_OY2BudgetAmount,Sheet1!S71_A2SubCode,$AC:$AC,Sheet1!S71_ItemType,$AD:$AD)","v":0},null,null,null,null,null,null,null,null,null,null,null,null,null,null,null,null,null,"2401","IR"]
["Informal Settlements",null,{"$f":"-SUMIFS(Sheet1!S71_OriginalBudAmnt,Sheet1!S71_A2SubCode,$AC:$AC,Sheet1!S71_ItemType,$AD:$AD)","v":0},{"$f":"-SUMIFS(Sheet1!S71_OriginalBudAmnt,Sheet1!S71_A2SubCode,$AC:$AC,Sheet1!S71_ItemType,$AD:$AD)","v":0},{"$f":"-SUMIFS(Sheet1!S71_OriginalBudAmnt,Sheet1!S71_A2SubCode,$AC:$AC,Sheet1!S71_ItemType,$AD:$AD)","v":0},{"$f":"-SUMIFS(Sheet1!S71_OriginalBudAmnt,Sheet1!S71_A2SubCode,$AC:$AC,Sheet1!S71_ItemType,$AD:$AD)","v":0},{"$f":"-SUMIFS(Sheet1!S71_AdjustmentBudAmnt,Sheet1!S71_A2SubCode,$AC:$AC,Sheet1!S71_ItemType,$AD:$AD)","v":0},{"$f":"-SUMIFS(Sheet1!S71_AdjustmentBudAmnt,Sheet1!S71_A2SubCode,$AC:$AC,Sheet1!S71_ItemType,$AD:$AD)","v":0},{"$f":"SUMIFS(Sheet1!S71_ASBudgetAmount,Sheet1!S71_A2SubCode,$AC:$AC,Sheet1!S71_ItemType,$AD:$AD)","v":0},{"$f":"SUMIFS(Sheet1!S71_OY1BudgetAmount,Sheet1!S71_A2SubCode,$AC:$AC,Sheet1!S71_ItemType,$AD:$AD)","v":0},{"$f":"SUMIFS(Sheet1!S71_OY2BudgetAmount,Sheet1!S71_A2SubCode,$AC:$AC,Sheet1!S71_ItemType,$AD:$AD)","v":0},null,null,null,null,null,null,null,null,null,null,null,null,null,null,null,null,null,"2402","IR"]
["Health",null,{"$f":"SUM(C67:C73)","v":0},{"$f":"SUM(D67:D73)","v":0},0,0,0,0,0,0,0,null,null,null,null,null,null,null,null,null,null,null,null,null,null,null,null,null,null,"IR"]
["Ambulance",null,{"$f":"-SUMIFS(Sheet1!S71_OriginalBudAmnt,Sheet1!S71_A2SubCode,$AC:$AC,Sheet1!S71_ItemType,$AD:$AD)","v":0},{"$f":"-SUMIFS(Sheet1!S71_OriginalBudAmnt,Sheet1!S71_A2SubCode,$AC:$AC,Sheet1!S71_ItemType,$AD:$AD)","v":0},{"$f":"-SUMIFS(Sheet1!S71_OriginalBudAmnt,Sheet1!S71_A2SubCode,$AC:$AC,Sheet1!S71_ItemType,$AD:$AD)","v":0},{"$f":"-SUMIFS(Sheet1!S71_OriginalBudAmnt,Sheet1!S71_A2SubCode,$AC:$AC,Sheet1!S71_ItemType,$AD:$AD)","v":0},{"$f":"-SUMIFS(Sheet1!S71_AdjustmentBudAmnt,Sheet1!S71_A2SubCode,$AC:$AC,Sheet1!S71_ItemType,$AD:$AD)","v":0},{"$f":"-SUMIFS(Sheet1!S71_AdjustmentBudAmnt,Sheet1!S71_A2SubCode,$AC:$AC,Sheet1!S71_ItemType,$AD:$AD)","v":0},{"$f":"SUMIFS(Sheet1!S71_ASBudgetAmount,Sheet1!S71_A2SubCode,$AC:$AC,Sheet1!S71_ItemType,$AD:$AD)","v":0},{"$f":"SUMIFS(Sheet1!S71_OY1BudgetAmount,Sheet1!S71_A2SubCode,$AC:$AC,Sheet1!S71_ItemType,$AD:$AD)","v":0},{"$f":"SUMIFS(Sheet1!S71_OY2BudgetAmount,Sheet1!S71_A2SubCode,$AC:$AC,Sheet1!S71_ItemType,$AD:$AD)","v":0},null,null,null,null,null,null,null,null,null,null,null,null,null,null,null,null,null,"2501","IR"]
["Health Services",null,{"$f":"-SUMIFS(Sheet1!S71_OriginalBudAmnt,Sheet1!S71_A2SubCode,$AC:$AC,Sheet1!S71_ItemType,$AD:$AD)","v":0},{"$f":"-SUMIFS(Sheet1!S71_OriginalBudAmnt,Sheet1!S71_A2SubCode,$AC:$AC,Sheet1!S71_ItemType,$AD:$AD)","v":0},{"$f":"-SUMIFS(Sheet1!S71_OriginalBudAmnt,Sheet1!S71_A2SubCode,$AC:$AC,Sheet1!S71_ItemType,$AD:$AD)","v":0},{"$f":"-SUMIFS(Sheet1!S71_OriginalBudAmnt,Sheet1!S71_A2SubCode,$AC:$AC,Sheet1!S71_ItemType,$AD:$AD)","v":0},{"$f":"-SUMIFS(Sheet1!S71_AdjustmentBudAmnt,Sheet1!S71_A2SubCode,$AC:$AC,Sheet1!S71_ItemType,$AD:$AD)","v":0},{"$f":"-SUMIFS(Sheet1!S71_AdjustmentBudAmnt,Sheet1!S71_A2SubCode,$AC:$AC,Sheet1!S71_ItemType,$AD:$AD)","v":0},{"$f":"SUMIFS(Sheet1!S71_ASBudgetAmount,Sheet1!S71_A2SubCode,$AC:$AC,Sheet1!S71_ItemType,$AD:$AD)","v":0},{"$f":"SUMIFS(Sheet1!S71_OY1BudgetAmount,Sheet1!S71_A2SubCode,$AC:$AC,Sheet1!S71_ItemType,$AD:$AD)","v":0},{"$f":"SUMIFS(Sheet1!S71_OY2BudgetAmount,Sheet1!S71_A2SubCode,$AC:$AC,Sheet1!S71_ItemType,$AD:$AD)","v":0},null,null,null,null,null,null,null,null,null,null,null,null,null,null,null,null,null,"2502","IR"]
["Laboratory Services",null,{"$f":"-SUMIFS(Sheet1!S71_OriginalBudAmnt,Sheet1!S71_A2SubCode,$AC:$AC,Sheet1!S71_ItemType,$AD:$AD)","v":0},{"$f":"-SUMIFS(Sheet1!S71_OriginalBudAmnt,Sheet1!S71_A2SubCode,$AC:$AC,Sheet1!S71_ItemType,$AD:$AD)","v":0},{"$f":"-SUMIFS(Sheet1!S71_OriginalBudAmnt,Sheet1!S71_A2SubCode,$AC:$AC,Sheet1!S71_ItemType,$AD:$AD)","v":0},{"$f":"-SUMIFS(Sheet1!S71_OriginalBudAmnt,Sheet1!S71_A2SubCode,$AC:$AC,Sheet1!S71_ItemType,$AD:$AD)","v":0},{"$f":"-SUMIFS(Sheet1!S71_AdjustmentBudAmnt,Sheet1!S71_A2SubCode,$AC:$AC,Sheet1!S71_ItemType,$AD:$AD)","v":0},{"$f":"-SUMIFS(Sheet1!S71_AdjustmentBudAmnt,Sheet1!S71_A2SubCode,$AC:$AC,Sheet1!S71_ItemType,$AD:$AD)","v":0},{"$f":"SUMIFS(Sheet1!S71_ASBudgetAmount,Sheet1!S71_A2SubCode,$AC:$AC,Sheet1!S71_ItemType,$AD:$AD)","v":0},{"$f":"SUMIFS(Sheet1!S71_OY1BudgetAmount,Sheet1!S71_A2SubCode,$AC:$AC,Sheet1!S71_ItemType,$AD:$AD)","v":0},{"$f":"SUMIFS(Sheet1!S71_OY2BudgetAmount,Sheet1!S71_A2SubCode,$AC:$AC,Sheet1!S71_ItemType,$AD:$AD)","v":0},null,null,null,null,null,null,null,null,null,null,null,null,null,null,null,null,null,"2503","IR"]
["Food Control",null,{"$f":"-SUMIFS(Sheet1!S71_OriginalBudAmnt,Sheet1!S71_A2SubCode,$AC:$AC,Sheet1!S71_ItemType,$AD:$AD)","v":0},{"$f":"-SUMIFS(Sheet1!S71_OriginalBudAmnt,Sheet1!S71_A2SubCode,$AC:$AC,Sheet1!S71_ItemType,$AD:$AD)","v":0},{"$f":"-SUMIFS(Sheet1!S71_OriginalBudAmnt,Sheet1!S71_A2SubCode,$AC:$AC,Sheet1!S71_ItemType,$AD:$AD)","v":0},{"$f":"-SUMIFS(Sheet1!S71_OriginalBudAmnt,Sheet1!S71_A2SubCode,$AC:$AC,Sheet1!S71_ItemType,$AD:$AD)","v":0},{"$f":"-SUMIFS(Sheet1!S71_AdjustmentBudAmnt,Sheet1!S71_A2SubCode,$AC:$AC,Sheet1!S71_ItemType,$AD:$AD)","v":0},{"$f":"-SUMIFS(Sheet1!S71_AdjustmentBudAmnt,Sheet1!S71_A2SubCode,$AC:$AC,Sheet1!S71_ItemType,$AD:$AD)","v":0},{"$f":"SUMIFS(Sheet1!S71_ASBudgetAmount,Sheet1!S71_A2SubCode,$AC:$AC,Sheet1!S71_ItemType,$AD:$AD)","v":0},{"$f":"SUMIFS(Sheet1!S71_OY1BudgetAmount,Sheet1!S71_A2SubCode,$AC:$AC,Sheet1!S71_ItemType,$AD:$AD)","v":0},{"$f":"SUMIFS(Sheet1!S71_OY2BudgetAmount,Sheet1!S71_A2SubCode,$AC:$AC,Sheet1!S71_ItemType,$AD:$AD)","v":0},null,null,null,null,null,null,null,null,null,null,null,null,null,null,null,null,null,"2504","IR"]
["Health Surveillance and Prevention of Communicable Diseases including immunizations",null,{"$f":"-SUMIFS(Sheet1!S71_OriginalBudAmnt,Sheet1!S71_A2SubCode,$AC:$AC,Sheet1!S71_ItemType,$AD:$AD)","v":0},{"$f":"-SUMIFS(Sheet1!S71_OriginalBudAmnt,Sheet1!S71_A2SubCode,$AC:$AC,Sheet1!S71_ItemType,$AD:$AD)","v":0},{"$f":"-SUMIFS(Sheet1!S71_OriginalBudAmnt,Sheet1!S71_A2SubCode,$AC:$AC,Sheet1!S71_ItemType,$AD:$AD)","v":0},{"$f":"-SUMIFS(Sheet1!S71_OriginalBudAmnt,Sheet1!S71_A2SubCode,$AC:$AC,Sheet1!S71_ItemType,$AD:$AD)","v":0},{"$f":"-SUMIFS(Sheet1!S71_AdjustmentBudAmnt,Sheet1!S71_A2SubCode,$AC:$AC,Sheet1!S71_ItemType,$AD:$AD)","v":0},{"$f":"-SUMIFS(Sheet1!S71_AdjustmentBudAmnt,Sheet1!S71_A2SubCode,$AC:$AC,Sheet1!S71_ItemType,$AD:$AD)","v":0},{"$f":"SUMIFS(Sheet1!S71_ASBudgetAmount,Sheet1!S71_A2SubCode,$AC:$AC,Sheet1!S71_ItemType,$AD:$AD)","v":0},{"$f":"SUMIFS(Sheet1!S71_OY1BudgetAmount,Sheet1!S71_A2SubCode,$AC:$AC,Sheet1!S71_ItemType,$AD:$AD)","v":0},{"$f":"SUMIFS(Sheet1!S71_OY2BudgetAmount,Sheet1!S71_A2SubCode,$AC:$AC,Sheet1!S71_ItemType,$AD:$AD)","v":0},null,null,null,null,null,null,null,null,null,null,null,null,null,null,null,null,null,"2505","IR"]
["Vector Control",null,{"$f":"-SUMIFS(Sheet1!S71_OriginalBudAmnt,Sheet1!S71_A2SubCode,$AC:$AC,Sheet1!S71_ItemType,$AD:$AD)","v":0},{"$f":"-SUMIFS(Sheet1!S71_OriginalBudAmnt,Sheet1!S71_A2SubCode,$AC:$AC,Sheet1!S71_ItemType,$AD:$AD)","v":0},{"$f":"-SUMIFS(Sheet1!S71_OriginalBudAmnt,Sheet1!S71_A2SubCode,$AC:$AC,Sheet1!S71_ItemType,$AD:$AD)","v":0},{"$f":"-SUMIFS(Sheet1!S71_OriginalBudAmnt,Sheet1!S71_A2SubCode,$AC:$AC,Sheet1!S71_ItemType,$AD:$AD)","v":0},{"$f":"-SUMIFS(Sheet1!S71_AdjustmentBudAmnt,Sheet1!S71_A2SubCode,$AC:$AC,Sheet1!S71_ItemType,$AD:$AD)","v":0},{"$f":"-SUMIFS(Sheet1!S71_AdjustmentBudAmnt,Sheet1!S71_A2SubCode,$AC:$AC,Sheet1!S71_ItemType,$AD:$AD)","v":0},{"$f":"SUMIFS(Sheet1!S71_ASBudgetAmount,Sheet1!S71_A2SubCode,$AC:$AC,Sheet1!S71_ItemType,$AD:$AD)","v":0},{"$f":"SUMIFS(Sheet1!S71_OY1BudgetAmount,Sheet1!S71_A2SubCode,$AC:$AC,Sheet1!S71_ItemType,$AD:$AD)","v":0},{"$f":"SUMIFS(Sheet1!S71_OY2BudgetAmount,Sheet1!S71_A2SubCode,$AC:$AC,Sheet1!S71_ItemType,$AD:$AD)","v":0},null,null,null,null,null,null,null,null,null,null,null,null,null,null,null,null,null,"2506","IR"]
["Chemical Safety",null,{"$f":"-SUMIFS(Sheet1!S71_OriginalBudAmnt,Sheet1!S71_A2SubCode,$AC:$AC,Sheet1!S71_ItemType,$AD:$AD)","v":0},{"$f":"-SUMIFS(Sheet1!S71_OriginalBudAmnt,Sheet1!S71_A2SubCode,$AC:$AC,Sheet1!S71_ItemType,$AD:$AD)","v":0},{"$f":"-SUMIFS(Sheet1!S71_OriginalBudAmnt,Sheet1!S71_A2SubCode,$AC:$AC,Sheet1!S71_ItemType,$AD:$AD)","v":0},{"$f":"-SUMIFS(Sheet1!S71_OriginalBudAmnt,Sheet1!S71_A2SubCode,$AC:$AC,Sheet1!S71_ItemType,$AD:$AD)","v":0},{"$f":"-SUMIFS(Sheet1!S71_AdjustmentBudAmnt,Sheet1!S71_A2SubCode,$AC:$AC,Sheet1!S71_ItemType,$AD:$AD)","v":0},{"$f":"-SUMIFS(Sheet1!S71_AdjustmentBudAmnt,Sheet1!S71_A2SubCode,$AC:$AC,Sheet1!S71_ItemType,$AD:$AD)","v":0},{"$f":"SUMIFS(Sheet1!S71_ASBudgetAmount,Sheet1!S71_A2SubCode,$AC:$AC,Sheet1!S71_ItemType,$AD:$AD)","v":0},{"$f":"SUMIFS(Sheet1!S71_OY1BudgetAmount,Sheet1!S71_A2SubCode,$AC:$AC,Sheet1!S71_ItemType,$AD:$AD)","v":0},{"$f":"SUMIFS(Sheet1!S71_OY2BudgetAmount,Sheet1!S71_A2SubCode,$AC:$AC,Sheet1!S71_ItemType,$AD:$AD)","v":0},null,null,null,null,null,null,null,null,null,null,null,null,null,null,null,null,null,"2507","IR"]
["Economic and environmental services",null,{"$f":"C75+C86+C91","v":9470000},9470000,9470000,9470000,8680000,8680000,9570000,10038930,10510759,null,null,null,null,null,null,null,null,null,null,null,null,null,null,null,null,null,null,"IR"]
["Planning and development",null,{"$f":"SUM(C76:C85)","v":1020000},{"$f":"SUM(D76:D85)","v":1020000},1020000,1020000,670000,670000,820000,860180,900608,null,null,null,null,null,null,null,null,null,null,null,null,null,null,null,null,null,null,"IR"]
["Billboards",null,{"$f":"-SUMIFS(Sheet1!S71_OriginalBudAmnt,Sheet1!S71_A2SubCode,$AC:$AC,Sheet1!S71_ItemType,$AD:$AD)","v":0},{"$f":"-SUMIFS(Sheet1!S71_OriginalBudAmnt,Sheet1!S71_A2SubCode,$AC:$AC,Sheet1!S71_ItemType,$AD:$AD)","v":0},{"$f":"-SUMIFS(Sheet1!S71_OriginalBudAmnt,Sheet1!S71_A2SubCode,$AC:$AC,Sheet1!S71_ItemType,$AD:$AD)","v":0},{"$f":"-SUMIFS(Sheet1!S71_OriginalBudAmnt,Sheet1!S71_A2SubCode,$AC:$AC,Sheet1!S71_ItemType,$AD:$AD)","v":0},{"$f":"-SUMIFS(Sheet1!S71_AdjustmentBudAmnt,Sheet1!S71_A2SubCode,$AC:$AC,Sheet1!S71_ItemType,$AD:$AD)","v":0},{"$f":"-SUMIFS(Sheet1!S71_AdjustmentBudAmnt,Sheet1!S71_A2SubCode,$AC:$AC,Sheet1!S71_ItemType,$AD:$AD)","v":0},{"$f":"SUMIFS(Sheet1!S71_ASBudgetAmount,Sheet1!S71_A2SubCode,$AC:$AC,Sheet1!S71_ItemType,$AD:$AD)","v":0},{"$f":"SUMIFS(Sheet1!S71_OY1BudgetAmount,Sheet1!S71_A2SubCode,$AC:$AC,Sheet1!S71_ItemType,$AD:$AD)","v":0},{"$f":"SUMIFS(Sheet1!S71_OY2BudgetAmount,Sheet1!S71_A2SubCode,$AC:$AC,Sheet1!S71_ItemType,$AD:$AD)","v":0},null,null,null,null,null,null,null,null,null,null,null,null,null,null,null,null,null,"3101","IR"]
["Corporate Wide Strategic Planning (IDPs, LEDs)",null,{"$f":"-SUMIFS(Sheet1!S71_OriginalBudAmnt,Sheet1!S71_A2SubCode,$AC:$AC,Sheet1!S71_ItemType,$AD:$AD)","v":600000},{"$f":"-SUMIFS(Sheet1!S71_OriginalBudAmnt,Sheet1!S71_A2SubCode,$AC:$AC,Sheet1!S71_ItemType,$AD:$AD)","v":600000},{"$f":"-SUMIFS(Sheet1!S71_OriginalBudAmnt,Sheet1!S71_A2SubCode,$AC:$AC,Sheet1!S71_ItemType,$AD:$AD)","v":600000},{"$f":"-SUMIFS(Sheet1!S71_OriginalBudAmnt,Sheet1!S71_A2SubCode,$AC:$AC,Sheet1!S71_ItemType,$AD:$AD)","v":600000},{"$f":"-SUMIFS(Sheet1!S71_AdjustmentBudAmnt,Sheet1!S71_A2SubCode,$AC:$AC,Sheet1!S71_ItemType,$AD:$AD)","v":320000},{"$f":"-SUMIFS(Sheet1!S71_AdjustmentBudAmnt,Sheet1!S71_A2SubCode,$AC:$AC,Sheet1!S71_ItemType,$AD:$AD)","v":320000},{"$f":"SUMIFS(Sheet1!S71_ASBudgetAmount,Sheet1!S71_A2SubCode,$AC:$AC,Sheet1!S71_ItemType,$AD:$AD)","v":400000},{"$f":"SUMIFS(Sheet1!S71_OY1BudgetAmount,Sheet1!S71_A2SubCode,$AC:$AC,Sheet1!S71_ItemType,$AD:$AD)","v":419600},{"$f":"SUMIFS(Sheet1!S71_OY2BudgetAmount,Sheet1!S71_A2SubCode,$AC:$AC,Sheet1!S71_ItemType,$AD:$AD)","v":439321},null,null,null,null,null,null,null,null,null,null,null,null,null,null,null,null,null,"3102","IR"]
["Central City Improvement District",null,{"$f":"-SUMIFS(Sheet1!S71_OriginalBudAmnt,Sheet1!S71_A2SubCode,$AC:$AC,Sheet1!S71_ItemType,$AD:$AD)","v":0},{"$f":"-SUMIFS(Sheet1!S71_OriginalBudAmnt,Sheet1!S71_A2SubCode,$AC:$AC,Sheet1!S71_ItemType,$AD:$AD)","v":0},{"$f":"-SUMIFS(Sheet1!S71_OriginalBudAmnt,Sheet1!S71_A2SubCode,$AC:$AC,Sheet1!S71_ItemType,$AD:$AD)","v":0},{"$f":"-SUMIFS(Sheet1!S71_OriginalBudAmnt,Sheet1!S71_A2SubCode,$AC:$AC,Sheet1!S71_ItemType,$AD:$AD)","v":0},{"$f":"-SUMIFS(Sheet1!S71_AdjustmentBudAmnt,Sheet1!S71_A2SubCode,$AC:$AC,Sheet1!S71_ItemType,$AD:$AD)","v":0},{"$f":"-SUMIFS(Sheet1!S71_AdjustmentBudAmnt,Sheet1!S71_A2SubCode,$AC:$AC,Sheet1!S71_ItemType,$AD:$AD)","v":0},{"$f":"SUMIFS(Sheet1!S71_ASBudgetAmount,Sheet1!S71_A2SubCode,$AC:$AC,Sheet1!S71_ItemType,$AD:$AD)","v":0},{"$f":"SUMIFS(Sheet1!S71_OY1BudgetAmount,Sheet1!S71_A2SubCode,$AC:$AC,Sheet1!S71_ItemType,$AD:$AD)","v":0},{"$f":"SUMIFS(Sheet1!S71_OY2BudgetAmount,Sheet1!S71_A2SubCode,$AC:$AC,Sheet1!S71_ItemType,$AD:$AD)","v":0},null,null,null,null,null,null,null,null,null,null,null,null,null,null,null,null,null,"3103","IR"]
["Development Facilitation",null,{"$f":"-SUMIFS(Sheet1!S71_OriginalBudAmnt,Sheet1!S71_A2SubCode,$AC:$AC,Sheet1!S71_ItemType,$AD:$AD)","v":0},{"$f":"-SUMIFS(Sheet1!S71_OriginalBudAmnt,Sheet1!S71_A2SubCode,$AC:$AC,Sheet1!S71_ItemType,$AD:$AD)","v":0},{"$f":"-SUMIFS(Sheet1!S71_OriginalBudAmnt,Sheet1!S71_A2SubCode,$AC:$AC,Sheet1!S71_ItemType,$AD:$AD)","v":0},{"$f":"-SUMIFS(Sheet1!S71_OriginalBudAmnt,Sheet1!S71_A2SubCode,$AC:$AC,Sheet1!S71_ItemType,$AD:$AD)","v":0},{"$f":"-SUMIFS(Sheet1!S71_AdjustmentBudAmnt,Sheet1!S71_A2SubCode,$AC:$AC,Sheet1!S71_ItemType,$AD:$AD)","v":0},{"$f":"-SUMIFS(Sheet1!S71_AdjustmentBudAmnt,Sheet1!S71_A2SubCode,$AC:$AC,Sheet1!S71_ItemType,$AD:$AD)","v":0},{"$f":"SUMIFS(Sheet1!S71_ASBudgetAmount,Sheet1!S71_A2SubCode,$AC:$AC,Sheet1!S71_ItemType,$AD:$AD)","v":0},{"$f":"SUMIFS(Sheet1!S71_OY1BudgetAmount,Sheet1!S71_A2SubCode,$AC:$AC,Sheet1!S71_ItemType,$AD:$AD)","v":0},{"$f":"SUMIFS(Sheet1!S71_OY2BudgetAmount,Sheet1!S71_A2SubCode,$AC:$AC,Sheet1!S71_ItemType,$AD:$AD)","v":0},null,null,null,null,null,null,null,null,null,null,null,null,null,null,null,null,null,"3104","IR"]
["Economic Development/Planning",null,{"$f":"-SUMIFS(Sheet1!S71_OriginalBudAmnt,Sheet1!S71_A2SubCode,$AC:$AC,Sheet1!S71_ItemType,$AD:$AD)","v":0},{"$f":"-SUMIFS(Sheet1!S71_OriginalBudAmnt,Sheet1!S71_A2SubCode,$AC:$AC,Sheet1!S71_ItemType,$AD:$AD)","v":0},{"$f":"-SUMIFS(Sheet1!S71_OriginalBudAmnt,Sheet1!S71_A2SubCode,$AC:$AC,Sheet1!S71_ItemType,$AD:$AD)","v":0},{"$f":"-SUMIFS(Sheet1!S71_OriginalBudAmnt,Sheet1!S71_A2SubCode,$AC:$AC,Sheet1!S71_ItemType,$AD:$AD)","v":0},{"$f":"-SUMIFS(Sheet1!S71_AdjustmentBudAmnt,Sheet1!S71_A2SubCode,$AC:$AC,Sheet1!S71_ItemType,$AD:$AD)","v":0},{"$f":"-SUMIFS(Sheet1!S71_AdjustmentBudAmnt,Sheet1!S71_A2SubCode,$AC:$AC,Sheet1!S71_ItemType,$AD:$AD)","v":0},{"$f":"SUMIFS(Sheet1!S71_ASBudgetAmount,Sheet1!S71_A2SubCode,$AC:$AC,Sheet1!S71_ItemType,$AD:$AD)","v":0},{"$f":"SUMIFS(Sheet1!S71_OY1BudgetAmount,Sheet1!S71_A2SubCode,$AC:$AC,Sheet1!S71_ItemType,$AD:$AD)","v":0},{"$f":"SUMIFS(Sheet1!S71_OY2BudgetAmount,Sheet1!S71_A2SubCode,$AC:$AC,Sheet1!S71_ItemType,$AD:$AD)","v":0},null,null,null,null,null,null,null,null,null,null,null,null,null,null,null,null,null,"3105","IR"]
["Regional Planning and Development",null,{"$f":"-SUMIFS(Sheet1!S71_OriginalBudAmnt,Sheet1!S71_A2SubCode,$AC:$AC,Sheet1!S71_ItemType,$AD:$AD)","v":0},{"$f":"-SUMIFS(Sheet1!S71_OriginalBudAmnt,Sheet1!S71_A2SubCode,$AC:$AC,Sheet1!S71_ItemType,$AD:$AD)","v":0},{"$f":"-SUMIFS(Sheet1!S71_OriginalBudAmnt,Sheet1!S71_A2SubCode,$AC:$AC,Sheet1!S71_ItemType,$AD:$AD)","v":0},{"$f":"-SUMIFS(Sheet1!S71_OriginalBudAmnt,Sheet1!S71_A2SubCode,$AC:$AC,Sheet1!S71_ItemType,$AD:$AD)","v":0},{"$f":"-SUMIFS(Sheet1!S71_AdjustmentBudAmnt,Sheet1!S71_A2SubCode,$AC:$AC,Sheet1!S71_ItemType,$AD:$AD)","v":0},{"$f":"-SUMIFS(Sheet1!S71_AdjustmentBudAmnt,Sheet1!S71_A2SubCode,$AC:$AC,Sheet1!S71_ItemType,$AD:$AD)","v":0},{"$f":"SUMIFS(Sheet1!S71_ASBudgetAmount,Sheet1!S71_A2SubCode,$AC:$AC,Sheet1!S71_ItemType,$AD:$AD)","v":0},{"$f":"SUMIFS(Sheet1!S71_OY1BudgetAmount,Sheet1!S71_A2SubCode,$AC:$AC,Sheet1!S71_ItemType,$AD:$AD)","v":0},{"$f":"SUMIFS(Sheet1!S71_OY2BudgetAmount,Sheet1!S71_A2SubCode,$AC:$AC,Sheet1!S71_ItemType,$AD:$AD)","v":0},null,null,null,null,null,null,null,null,null,null,null,null,null,null,null,null,null,"3106","IR"]
["Town Planning, Building Regulations and Enforcement, and City Engineer",null,{"$f":"-SUMIFS(Sheet1!S71_OriginalBudAmnt,Sheet1!S71_A2SubCode,$AC:$AC,Sheet1!S71_ItemType,$AD:$AD)","v":420000},{"$f":"-SUMIFS(Sheet1!S71_OriginalBudAmnt,Sheet1!S71_A2SubCode,$AC:$AC,Sheet1!S71_ItemType,$AD:$AD)","v":420000},{"$f":"-SUMIFS(Sheet1!S71_OriginalBudAmnt,Sheet1!S71_A2SubCode,$AC:$AC,Sheet1!S71_ItemType,$AD:$AD)","v":420000},{"$f":"-SUMIFS(Sheet1!S71_OriginalBudAmnt,Sheet1!S71_A2SubCode,$AC:$AC,Sheet1!S71_ItemType,$AD:$AD)","v":420000},{"$f":"-SUMIFS(Sheet1!S71_AdjustmentBudAmnt,Sheet1!S71_A2SubCode,$AC:$AC,Sheet1!S71_ItemType,$AD:$AD)","v":350000},{"$f":"-SUMIFS(Sheet1!S71_AdjustmentBudAmnt,Sheet1!S71_A2SubCode,$AC:$AC,Sheet1!S71_ItemType,$AD:$AD)","v":350000},{"$f":"SUMIFS(Sheet1!S71_ASBudgetAmount,Sheet1!S71_A2SubCode,$AC:$AC,Sheet1!S71_ItemType,$AD:$AD)","v":420000},{"$f":"SUMIFS(Sheet1!S71_OY1BudgetAmount,Sheet1!S71_A2SubCode,$AC:$AC,Sheet1!S71_ItemType,$AD:$AD)","v":440580},{"$f":"SUMIFS(Sheet1!S71_OY2BudgetAmount,Sheet1!S71_A2SubCode,$AC:$AC,Sheet1!S71_ItemType,$AD:$AD)","v":461287},null,null,null,null,null,null,null,null,null,null,null,null,null,null,null,null,null,"3107","IR"]
["Project Management Unit",null,{"$f":"-SUMIFS(Sheet1!S71_OriginalBudAmnt,Sheet1!S71_A2SubCode,$AC:$AC,Sheet1!S71_ItemType,$AD:$AD)","v":0},{"$f":"-SUMIFS(Sheet1!S71_OriginalBudAmnt,Sheet1!S71_A2SubCode,$AC:$AC,Sheet1!S71_ItemType,$AD:$AD)","v":0},{"$f":"-SUMIFS(Sheet1!S71_OriginalBudAmnt,Sheet1!S71_A2SubCode,$AC:$AC,Sheet1!S71_ItemType,$AD:$AD)","v":0},{"$f":"-SUMIFS(Sheet1!S71_OriginalBudAmnt,Sheet1!S71_A2SubCode,$AC:$AC,Sheet1!S71_ItemType,$AD:$AD)","v":0},{"$f":"-SUMIFS(Sheet1!S71_AdjustmentBudAmnt,Sheet1!S71_A2SubCode,$AC:$AC,Sheet1!S71_ItemType,$AD:$AD)","v":0},{"$f":"-SUMIFS(Sheet1!S71_AdjustmentBudAmnt,Sheet1!S71_A2SubCode,$AC:$AC,Sheet1!S71_ItemType,$AD:$AD)","v":0},{"$f":"SUMIFS(Sheet1!S71_ASBudgetAmount,Sheet1!S71_A2SubCode,$AC:$AC,Sheet1!S71_ItemType,$AD:$AD)","v":0},{"$f":"SUMIFS(Sheet1!S71_OY1BudgetAmount,Sheet1!S71_A2SubCode,$AC:$AC,Sheet1!S71_ItemType,$AD:$AD)","v":0},{"$f":"SUMIFS(Sheet1!S71_OY2BudgetAmount,Sheet1!S71_A2SubCode,$AC:$AC,Sheet1!S71_ItemType,$AD:$AD)","v":0},null,null,null,null,null,null,null,null,null,null,null,null,null,null,null,null,null,"3108","IR"]
["Provincial Planning",null,{"$f":"-SUMIFS(Sheet1!S71_OriginalBudAmnt,Sheet1!S71_A2SubCode,$AC:$AC,Sheet1!S71_ItemType,$AD:$AD)","v":0},{"$f":"-SUMIFS(Sheet1!S71_OriginalBudAmnt,Sheet1!S71_A2SubCode,$AC:$AC,Sheet1!S71_ItemType,$AD:$AD)","v":0},{"$f":"-SUMIFS(Sheet1!S71_OriginalBudAmnt,Sheet1!S71_A2SubCode,$AC:$AC,Sheet1!S71_ItemType,$AD:$AD)","v":0},{"$f":"-SUMIFS(Sheet1!S71_OriginalBudAmnt,Sheet1!S71_A2SubCode,$AC:$AC,Sheet1!S71_ItemType,$AD:$AD)","v":0},{"$f":"-SUMIFS(Sheet1!S71_AdjustmentBudAmnt,Sheet1!S71_A2SubCode,$AC:$AC,Sheet1!S71_ItemType,$AD:$AD)","v":0},{"$f":"-SUMIFS(Sheet1!S71_AdjustmentBudAmnt,Sheet1!S71_A2SubCode,$AC:$AC,Sheet1!S71_ItemType,$AD:$AD)","v":0},{"$f":"SUMIFS(Sheet1!S71_ASBudgetAmount,Sheet1!S71_A2SubCode,$AC:$AC,Sheet1!S71_ItemType,$AD:$AD)","v":0},{"$f":"SUMIFS(Sheet1!S71_OY1BudgetAmount,Sheet1!S71_A2SubCode,$AC:$AC,Sheet1!S71_ItemType,$AD:$AD)","v":0},{"$f":"SUMIFS(Sheet1!S71_OY2BudgetAmount,Sheet1!S71_A2SubCode,$AC:$AC,Sheet1!S71_ItemType,$AD:$AD)","v":0},null,null,null,null,null,null,null,null,null,null,null,null,null,null,null,null,null,"3109","IR"]
["Support to Local Municipalities",null,{"$f":"-SUMIFS(Sheet1!S71_OriginalBudAmnt,Sheet1!S71_A2SubCode,$AC:$AC,Sheet1!S71_ItemType,$AD:$AD)","v":0},{"$f":"-SUMIFS(Sheet1!S71_OriginalBudAmnt,Sheet1!S71_A2SubCode,$AC:$AC,Sheet1!S71_ItemType,$AD:$AD)","v":0},{"$f":"-SUMIFS(Sheet1!S71_OriginalBudAmnt,Sheet1!S71_A2SubCode,$AC:$AC,Sheet1!S71_ItemType,$AD:$AD)","v":0},{"$f":"-SUMIFS(Sheet1!S71_OriginalBudAmnt,Sheet1!S71_A2SubCode,$AC:$AC,Sheet1!S71_ItemType,$AD:$AD)","v":0},{"$f":"-SUMIFS(Sheet1!S71_AdjustmentBudAmnt,Sheet1!S71_A2SubCode,$AC:$AC,Sheet1!S71_ItemType,$AD:$AD)","v":0},{"$f":"-SUMIFS(Sheet1!S71_AdjustmentBudAmnt,Sheet1!S71_A2SubCode,$AC:$AC,Sheet1!S71_ItemType,$AD:$AD)","v":0},{"$f":"SUMIFS(Sheet1!S71_ASBudgetAmount,Sheet1!S71_A2SubCode,$AC:$AC,Sheet1!S71_ItemType,$AD:$AD)","v":0},{"$f":"SUMIFS(Sheet1!S71_OY1BudgetAmount,Sheet1!S71_A2SubCode,$AC:$AC,Sheet1!S71_ItemType,$AD:$AD)","v":0},{"$f":"SUMIFS(Sheet1!S71_OY2BudgetAmount,Sheet1!S71_A2SubCode,$AC:$AC,Sheet1!S71_ItemType,$AD:$AD)","v":0},null,null,null,null,null,null,null,null,null,null,null,null,null,null,null,null,null,"3110","IR"]
["Road transport",null,{"$f":"SUM(C87:C90)","v":8450000},8450000,8450000,8450000,8010000,8010000,8750000,9178750,9610151,null,null,null,null,null,null,null,null,null,null,null,null,null,null,null,null,null,null,"IR"]
["Public Transport",null,{"$f":"-SUMIFS(Sheet1!S71_OriginalBudAmnt,Sheet1!S71_A2SubCode,$AC:$AC,Sheet1!S71_ItemType,$AD:$AD)","v":0},{"$f":"-SUMIFS(Sheet1!S71_OriginalBudAmnt,Sheet1!S71_A2SubCode,$AC:$AC,Sheet1!S71_ItemType,$AD:$AD)","v":0},{"$f":"-SUMIFS(Sheet1!S71_OriginalBudAmnt,Sheet1!S71_A2SubCode,$AC:$AC,Sheet1!S71_ItemType,$AD:$AD)","v":0},{"$f":"-SUMIFS(Sheet1!S71_OriginalBudAmnt,Sheet1!S71_A2SubCode,$AC:$AC,Sheet1!S71_ItemType,$AD:$AD)","v":0},{"$f":"-SUMIFS(Sheet1!S71_AdjustmentBudAmnt,Sheet1!S71_A2SubCode,$AC:$AC,Sheet1!S71_ItemType,$AD:$AD)","v":0},{"$f":"-SUMIFS(Sheet1!S71_AdjustmentBudAmnt,Sheet1!S71_A2SubCode,$AC:$AC,Sheet1!S71_ItemType,$AD:$AD)","v":0},{"$f":"SUMIFS(Sheet1!S71_ASBudgetAmount,Sheet1!S71_A2SubCode,$AC:$AC,Sheet1!S71_ItemType,$AD:$AD)","v":0},{"$f":"SUMIFS(Sheet1!S71_OY1BudgetAmount,Sheet1!S71_A2SubCode,$AC:$AC,Sheet1!S71_ItemType,$AD:$AD)","v":0},{"$f":"SUMIFS(Sheet1!S71_OY2BudgetAmount,Sheet1!S71_A2SubCode,$AC:$AC,Sheet1!S71_ItemType,$AD:$AD)","v":0},null,null,null,null,null,null,null,null,null,null,null,null,null,null,null,null,null,"3203","IR"]
["Road and Traffic Regulation",null,{"$f":"-SUMIFS(Sheet1!S71_OriginalBudAmnt,Sheet1!S71_A2SubCode,$AC:$AC,Sheet1!S71_ItemType,$AD:$AD)","v":8100000},{"$f":"-SUMIFS(Sheet1!S71_OriginalBudAmnt,Sheet1!S71_A2SubCode,$AC:$AC,Sheet1!S71_ItemType,$AD:$AD)","v":8100000},{"$f":"-SUMIFS(Sheet1!S71_OriginalBudAmnt,Sheet1!S71_A2SubCode,$AC:$AC,Sheet1!S71_ItemType,$AD:$AD)","v":8100000},{"$f":"-SUMIFS(Sheet1!S71_OriginalBudAmnt,Sheet1!S71_A2SubCode,$AC:$AC,Sheet1!S71_ItemType,$AD:$AD)","v":8100000},{"$f":"-SUMIFS(Sheet1!S71_AdjustmentBudAmnt,Sheet1!S71_A2SubCode,$AC:$AC,Sheet1!S71_ItemType,$AD:$AD)","v":7850000},{"$f":"-SUMIFS(Sheet1!S71_AdjustmentBudAmnt,Sheet1!S71_A2SubCode,$AC:$AC,Sheet1!S71_ItemType,$AD:$AD)","v":7850000},{"$f":"SUMIFS(Sheet1!S71_ASBudgetAmount,Sheet1!S71_A2SubCode,$AC:$AC,Sheet1!S71_ItemType,$AD:$AD)","v":8450000},{"$f":"SUMIFS(Sheet1!S71_OY1BudgetAmount,Sheet1!S71_A2SubCode,$AC:$AC,Sheet1!S71_ItemType,$AD:$AD)","v":8864050},{"$f":"SUMIFS(Sheet1!S71_OY2BudgetAmount,Sheet1!S71_A2SubCode,$AC:$AC,Sheet1!S71_ItemType,$AD:$AD)","v":9280660},null,null,null,null,null,null,null,null,null,null,null,null,null,null,null,null,null,"3204","IR"]
["Roads",null,{"$f":"-SUMIFS(Sheet1!S71_OriginalBudAmnt,Sheet1!S71_A2SubCode,$AC:$AC,Sheet1!S71_ItemType,$AD:$AD)","v":350000},{"$f":"-SUMIFS(Sheet1!S71_OriginalBudAmnt,Sheet1!S71_A2SubCode,$AC:$AC,Sheet1!S71_ItemType,$AD:$AD)","v":350000},{"$f":"-SUMIFS(Sheet1!S71_OriginalBudAmnt,Sheet1!S71_A2SubCode,$AC:$AC,Sheet1!S71_ItemType,$AD:$AD)","v":350000},{"$f":"-SUMIFS(Sheet1!S71_OriginalBudAmnt,Sheet1!S71_A2SubCode,$AC:$AC,Sheet1!S71_ItemType,$AD:$AD)","v":350000},{"$f":"-SUMIFS(Sheet1!S71_AdjustmentBudAmnt,Sheet1!S71_A2SubCode,$AC:$AC,Sheet1!S71_ItemType,$AD:$AD)","v":160000},{"$f":"-SUMIFS(Sheet1!S71_AdjustmentBudAmnt,Sheet1!S71_A2SubCode,$AC:$AC,Sheet1!S71_ItemType,$AD:$AD)","v":160000},{"$f":"SUMIFS(Sheet1!S71_ASBudgetAmount,Sheet1!S71_A2SubCode,$AC:$AC,Sheet1!S71_ItemType,$AD:$AD)","v":300000},{"$f":"SUMIFS(Sheet1!S71_OY1BudgetAmount,Sheet1!S71_A2SubCode,$AC:$AC,Sheet1!S71_ItemType,$AD:$AD)","v":314700},{"$f":"SUMIFS(Sheet1!S71_OY2BudgetAmount,Sheet1!S71_A2SubCode,$AC:$AC,Sheet1!S71_ItemType,$AD:$AD)","v":329491},null,null,null,null,null,null,null,null,null,null,null,null,null,null,null,null,null,"3205","IR"]
["Taxi Ranks",null,{"$f":"-SUMIFS(Sheet1!S71_OriginalBudAmnt,Sheet1!S71_A2SubCode,$AC:$AC,Sheet1!S71_ItemType,$AD:$AD)","v":0},{"$f":"-SUMIFS(Sheet1!S71_OriginalBudAmnt,Sheet1!S71_A2SubCode,$AC:$AC,Sheet1!S71_ItemType,$AD:$AD)","v":0},{"$f":"-SUMIFS(Sheet1!S71_OriginalBudAmnt,Sheet1!S71_A2SubCode,$AC:$AC,Sheet1!S71_ItemType,$AD:$AD)","v":0},{"$f":"-SUMIFS(Sheet1!S71_OriginalBudAmnt,Sheet1!S71_A2SubCode,$AC:$AC,Sheet1!S71_ItemType,$AD:$AD)","v":0},{"$f":"-SUMIFS(Sheet1!S71_AdjustmentBudAmnt,Sheet1!S71_A2SubCode,$AC:$AC,Sheet1!S71_ItemType,$AD:$AD)","v":0},{"$f":"-SUMIFS(Sheet1!S71_AdjustmentBudAmnt,Sheet1!S71_A2SubCode,$AC:$AC,Sheet1!S71_ItemType,$AD:$AD)","v":0},{"$f":"SUMIFS(Sheet1!S71_ASBudgetAmount,Sheet1!S71_A2SubCode,$AC:$AC,Sheet1!S71_ItemType,$AD:$AD)","v":0},{"$f":"SUMIFS(Sheet1!S71_OY1BudgetAmount,Sheet1!S71_A2SubCode,$AC:$AC,Sheet1!S71_ItemType,$AD:$AD)","v":0},{"$f":"SUMIFS(Sheet1!S71_OY2BudgetAmount,Sheet1!S71_A2SubCode,$AC:$AC,Sheet1!S71_ItemType,$AD:$AD)","v":0},null,null,null,null,null,null,null,null,null,null,null,null,null,null,null,null,null,"3206","IR"]
["Environmental protection",null,{"$f":"SUM(C92:C97)","v":0},{"$f":"SUM(D92:D97)","v":0},0,0,0,0,0,0,0,null,null,null,null,null,null,null,null,null,null,null,null,null,null,null,null,null,null,"IR"]
["Biodiversity and Landscape",null,{"$f":"-SUMIFS(Sheet1!S71_OriginalBudAmnt,Sheet1!S71_A2SubCode,$AC:$AC,Sheet1!S71_ItemType,$AD:$AD)","v":0},{"$f":"-SUMIFS(Sheet1!S71_OriginalBudAmnt,Sheet1!S71_A2SubCode,$AC:$AC,Sheet1!S71_ItemType,$AD:$AD)","v":0},{"$f":"-SUMIFS(Sheet1!S71_OriginalBudAmnt,Sheet1!S71_A2SubCode,$AC:$AC,Sheet1!S71_ItemType,$AD:$AD)","v":0},{"$f":"-SUMIFS(Sheet1!S71_OriginalBudAmnt,Sheet1!S71_A2SubCode,$AC:$AC,Sheet1!S71_ItemType,$AD:$AD)","v":0},{"$f":"-SUMIFS(Sheet1!S71_AdjustmentBudAmnt,Sheet1!S71_A2SubCode,$AC:$AC,Sheet1!S71_ItemType,$AD:$AD)","v":0},{"$f":"-SUMIFS(Sheet1!S71_AdjustmentBudAmnt,Sheet1!S71_A2SubCode,$AC:$AC,Sheet1!S71_ItemType,$AD:$AD)","v":0},{"$f":"SUMIFS(Sheet1!S71_ASBudgetAmount,Sheet1!S71_A2SubCode,$AC:$AC,Sheet1!S71_ItemType,$AD:$AD)","v":0},{"$f":"SUMIFS(Sheet1!S71_OY1BudgetAmount,Sheet1!S71_A2SubCode,$AC:$AC,Sheet1!S71_ItemType,$AD:$AD)","v":0},{"$f":"SUMIFS(Sheet1!S71_OY2BudgetAmount,Sheet1!S71_A2SubCode,$AC:$AC,Sheet1!S71_ItemType,$AD:$AD)","v":0},null,null,null,null,null,null,null,null,null,null,null,null,null,null,null,null,null,"3301","IR"]
["Coastal Protection",null,{"$f":"-SUMIFS(Sheet1!S71_OriginalBudAmnt,Sheet1!S71_A2SubCode,$AC:$AC,Sheet1!S71_ItemType,$AD:$AD)","v":0},{"$f":"-SUMIFS(Sheet1!S71_OriginalBudAmnt,Sheet1!S71_A2SubCode,$AC:$AC,Sheet1!S71_ItemType,$AD:$AD)","v":0},{"$f":"-SUMIFS(Sheet1!S71_OriginalBudAmnt,Sheet1!S71_A2SubCode,$AC:$AC,Sheet1!S71_ItemType,$AD:$AD)","v":0},{"$f":"-SUMIFS(Sheet1!S71_OriginalBudAmnt,Sheet1!S71_A2SubCode,$AC:$AC,Sheet1!S71_ItemType,$AD:$AD)","v":0},{"$f":"-SUMIFS(Sheet1!S71_AdjustmentBudAmnt,Sheet1!S71_A2SubCode,$AC:$AC,Sheet1!S71_ItemType,$AD:$AD)","v":0},{"$f":"-SUMIFS(Sheet1!S71_AdjustmentBudAmnt,Sheet1!S71_A2SubCode,$AC:$AC,Sheet1!S71_ItemType,$AD:$AD)","v":0},{"$f":"SUMIFS(Sheet1!S71_ASBudgetAmount,Sheet1!S71_A2SubCode,$AC:$AC,Sheet1!S71_ItemType,$AD:$AD)","v":0},{"$f":"SUMIFS(Sheet1!S71_OY1BudgetAmount,Sheet1!S71_A2SubCode,$AC:$AC,Sheet1!S71_ItemType,$AD:$AD)","v":0},{"$f":"SUMIFS(Sheet1!S71_OY2BudgetAmount,Sheet1!S71_A2SubCode,$AC:$AC,Sheet1!S71_ItemType,$AD:$AD)","v":0},null,null,null,null,null,null,null,null,null,null,null,null,null,null,null,null,null,"3302","IR"]
["Indigenous Forests",null,{"$f":"-SUMIFS(Sheet1!S71_OriginalBudAmnt,Sheet1!S71_A2SubCode,$AC:$AC,Sheet1!S71_ItemType,$AD:$AD)","v":0},{"$f":"-SUMIFS(Sheet1!S71_OriginalBudAmnt,Sheet1!S71_A2SubCode,$AC:$AC,Sheet1!S71_ItemType,$AD:$AD)","v":0},{"$f":"-SUMIFS(Sheet1!S71_OriginalBudAmnt,Sheet1!S71_A2SubCode,$AC:$AC,Sheet1!S71_ItemType,$AD:$AD)","v":0},{"$f":"-SUMIFS(Sheet1!S71_OriginalBudAmnt,Sheet1!S71_A2SubCode,$AC:$AC,Sheet1!S71_ItemType,$AD:$AD)","v":0},{"$f":"-SUMIFS(Sheet1!S71_AdjustmentBudAmnt,Sheet1!S71_A2SubCode,$AC:$AC,Sheet1!S71_ItemType,$AD:$AD)","v":0},{"$f":"-SUMIFS(Sheet1!S71_AdjustmentBudAmnt,Sheet1!S71_A2SubCode,$AC:$AC,Sheet1!S71_ItemType,$AD:$AD)","v":0},{"$f":"SUMIFS(Sheet1!S71_ASBudgetAmount,Sheet1!S71_A2SubCode,$AC:$AC,Sheet1!S71_ItemType,$AD:$AD)","v":0},{"$f":"SUMIFS(Sheet1!S71_OY1BudgetAmount,Sheet1!S71_A2SubCode,$AC:$AC,Sheet1!S71_ItemType,$AD:$AD)","v":0},{"$f":"SUMIFS(Sheet1!S71_OY2BudgetAmount,Sheet1!S71_A2SubCode,$AC:$AC,Sheet1!S71_ItemType,$AD:$AD)","v":0},null,null,null,null,null,null,null,null,null,null,null,null,null,null,null,null,null,"3303","IR"]
["Nature Conservation",null,{"$f":"-SUMIFS(Sheet1!S71_OriginalBudAmnt,Sheet1!S71_A2SubCode,$AC:$AC,Sheet1!S71_ItemType,$AD:$AD)","v":0},{"$f":"-SUMIFS(Sheet1!S71_OriginalBudAmnt,Sheet1!S71_A2SubCode,$AC:$AC,Sheet1!S71_ItemType,$AD:$AD)","v":0},{"$f":"-SUMIFS(Sheet1!S71_OriginalBudAmnt,Sheet1!S71_A2SubCode,$AC:$AC,Sheet1!S71_ItemType,$AD:$AD)","v":0},{"$f":"-SUMIFS(Sheet1!S71_OriginalBudAmnt,Sheet1!S71_A2SubCode,$AC:$AC,Sheet1!S71_ItemType,$AD:$AD)","v":0},{"$f":"-SUMIFS(Sheet1!S71_AdjustmentBudAmnt,Sheet1!S71_A2SubCode,$AC:$AC,Sheet1!S71_ItemType,$AD:$AD)","v":0},{"$f":"-SUMIFS(Sheet1!S71_AdjustmentBudAmnt,Sheet1!S71_A2SubCode,$AC:$AC,Sheet1!S71_ItemType,$AD:$AD)","v":0},{"$f":"SUMIFS(Sheet1!S71_ASBudgetAmount,Sheet1!S71_A2SubCode,$AC:$AC,Sheet1!S71_ItemType,$AD:$AD)","v":0},{"$f":"SUMIFS(Sheet1!S71_OY1BudgetAmount,Sheet1!S71_A2SubCode,$AC:$AC,Sheet1!S71_ItemType,$AD:$AD)","v":0},{"$f":"SUMIFS(Sheet1!S71_OY2BudgetAmount,Sheet1!S71_A2SubCode,$AC:$AC,Sheet1!S71_ItemType,$AD:$AD)","v":0},null,null,null,null,null,null,null,null,null,null,null,null,null,null,null,null,null,"3304","IR"]
["Pollution Control",null,{"$f":"-SUMIFS(Sheet1!S71_OriginalBudAmnt,Sheet1!S71_A2SubCode,$AC:$AC,Sheet1!S71_ItemType,$AD:$AD)","v":0},{"$f":"-SUMIFS(Sheet1!S71_OriginalBudAmnt,Sheet1!S71_A2SubCode,$AC:$AC,Sheet1!S71_ItemType,$AD:$AD)","v":0},{"$f":"-SUMIFS(Sheet1!S71_OriginalBudAmnt,Sheet1!S71_A2SubCode,$AC:$AC,Sheet1!S71_ItemType,$AD:$AD)","v":0},{"$f":"-SUMIFS(Sheet1!S71_OriginalBudAmnt,Sheet1!S71_A2SubCode,$AC:$AC,Sheet1!S71_ItemType,$AD:$AD)","v":0},{"$f":"-SUMIFS(Sheet1!S71_AdjustmentBudAmnt,Sheet1!S71_A2SubCode,$AC:$AC,Sheet1!S71_ItemType,$AD:$AD)","v":0},{"$f":"-SUMIFS(Sheet1!S71_AdjustmentBudAmnt,Sheet1!S71_A2SubCode,$AC:$AC,Sheet1!S71_ItemType,$AD:$AD)","v":0},{"$f":"SUMIFS(Sheet1!S71_ASBudgetAmount,Sheet1!S71_A2SubCode,$AC:$AC,Sheet1!S71_ItemType,$AD:$AD)","v":0},{"$f":"SUMIFS(Sheet1!S71_OY1BudgetAmount,Sheet1!S71_A2SubCode,$AC:$AC,Sheet1!S71_ItemType,$AD:$AD)","v":0},{"$f":"SUMIFS(Sheet1!S71_OY2BudgetAmount,Sheet1!S71_A2SubCode,$AC:$AC,Sheet1!S71_ItemType,$AD:$AD)","v":0},null,null,null,null,null,null,null,null,null,null,null,null,null,null,null,null,null,"3305","IR"]
["Soil Conservation",null,{"$f":"-SUMIFS(Sheet1!S71_OriginalBudAmnt,Sheet1!S71_A2SubCode,$AC:$AC,Sheet1!S71_ItemType,$AD:$AD)","v":0},{"$f":"-SUMIFS(Sheet1!S71_OriginalBudAmnt,Sheet1!S71_A2SubCode,$AC:$AC,Sheet1!S71_ItemType,$AD:$AD)","v":0},{"$f":"-SUMIFS(Sheet1!S71_OriginalBudAmnt,Sheet1!S71_A2SubCode,$AC:$AC,Sheet1!S71_ItemType,$AD:$AD)","v":0},{"$f":"-SUMIFS(Sheet1!S71_OriginalBudAmnt,Sheet1!S71_A2SubCode,$AC:$AC,Sheet1!S71_ItemType,$AD:$AD)","v":0},{"$f":"-SUMIFS(Sheet1!S71_AdjustmentBudAmnt,Sheet1!S71_A2SubCode,$AC:$AC,Sheet1!S71_ItemType,$AD:$AD)","v":0},{"$f":"-SUMIFS(Sheet1!S71_AdjustmentBudAmnt,Sheet1!S71_A2SubCode,$AC:$AC,Sheet1!S71_ItemType,$AD:$AD)","v":0},{"$f":"SUMIFS(Sheet1!S71_ASBudgetAmount,Sheet1!S71_A2SubCode,$AC:$AC,Sheet1!S71_ItemType,$AD:$AD)","v":0},{"$f":"SUMIFS(Sheet1!S71_OY1BudgetAmount,Sheet1!S71_A2SubCode,$AC:$AC,Sheet1!S71_ItemType,$AD:$AD)","v":0},{"$f":"SUMIFS(Sheet1!S71_OY2BudgetAmount,Sheet1!S71_A2SubCode,$AC:$AC,Sheet1!S71_ItemType,$AD:$AD)","v":0},null,null,null,null,null,null,null,null,null,null,null,null,null,null,null,null,null,"3306","IR"]
["Trading services",null,{"$f":"C99+C103+C107+C112","v":13816930},{"$f":"D99+D103+D107+D112","v":13816930},13816930,13816930,12007090,12007090,12648695,13268482,{"$f":"K99+K103+K107+K112","v":13892100},null,null,null,null,null,null,null,null,null,null,null,null,null,null,null,null,null,null,"IR"]
["Energy sources",null,{"$f":"SUM(C100:C102)","v":0},{"$f":"SUM(D100:D102)","v":0},0,0,0,0,0,0,0,null,null,null,null,null,null,null,null,null,null,null,null,null,null,null,null,null,null,"IR"]
["Electricity ",null,{"$f":"-SUMIFS(Sheet1!S71_OriginalBudAmnt,Sheet1!S71_A2SubCode,$AC:$AC,Sheet1!S71_ItemType,$AD:$AD)","v":0},{"$f":"-SUMIFS(Sheet1!S71_OriginalBudAmnt,Sheet1!S71_A2SubCode,$AC:$AC,Sheet1!S71_ItemType,$AD:$AD)","v":0},{"$f":"-SUMIFS(Sheet1!S71_OriginalBudAmnt,Sheet1!S71_A2SubCode,$AC:$AC,Sheet1!S71_ItemType,$AD:$AD)","v":0},{"$f":"-SUMIFS(Sheet1!S71_OriginalBudAmnt,Sheet1!S71_A2SubCode,$AC:$AC,Sheet1!S71_ItemType,$AD:$AD)","v":0},{"$f":"-SUMIFS(Sheet1!S71_AdjustmentBudAmnt,Sheet1!S71_A2SubCode,$AC:$AC,Sheet1!S71_ItemType,$AD:$AD)","v":0},{"$f":"-SUMIFS(Sheet1!S71_AdjustmentBudAmnt,Sheet1!S71_A2SubCode,$AC:$AC,Sheet1!S71_ItemType,$AD:$AD)","v":0},{"$f":"SUMIFS(Sheet1!S71_ASBudgetAmount,Sheet1!S71_A2SubCode,$AC:$AC,Sheet1!S71_ItemType,$AD:$AD)","v":0},{"$f":"SUMIFS(Sheet1!S71_OY1BudgetAmount,Sheet1!S71_A2SubCode,$AC:$AC,Sheet1!S71_ItemType,$AD:$AD)","v":0},{"$f":"SUMIFS(Sheet1!S71_OY2BudgetAmount,Sheet1!S71_A2SubCode,$AC:$AC,Sheet1!S71_ItemType,$AD:$AD)","v":0},null,null,null,null,null,null,null,null,null,null,null,null,null,null,null,null,null,"4101","IR"]
["Street Lighting and Signal Systems",null,{"$f":"-SUMIFS(Sheet1!S71_OriginalBudAmnt,Sheet1!S71_A2SubCode,$AC:$AC,Sheet1!S71_ItemType,$AD:$AD)","v":0},{"$f":"-SUMIFS(Sheet1!S71_OriginalBudAmnt,Sheet1!S71_A2SubCode,$AC:$AC,Sheet1!S71_ItemType,$AD:$AD)","v":0},{"$f":"-SUMIFS(Sheet1!S71_OriginalBudAmnt,Sheet1!S71_A2SubCode,$AC:$AC,Sheet1!S71_ItemType,$AD:$AD)","v":0},{"$f":"-SUMIFS(Sheet1!S71_OriginalBudAmnt,Sheet1!S71_A2SubCode,$AC:$AC,Sheet1!S71_ItemType,$AD:$AD)","v":0},{"$f":"-SUMIFS(Sheet1!S71_AdjustmentBudAmnt,Sheet1!S71_A2SubCode,$AC:$AC,Sheet1!S71_ItemType,$AD:$AD)","v":0},{"$f":"-SUMIFS(Sheet1!S71_AdjustmentBudAmnt,Sheet1!S71_A2SubCode,$AC:$AC,Sheet1!S71_ItemType,$AD:$AD)","v":0},{"$f":"SUMIFS(Sheet1!S71_ASBudgetAmount,Sheet1!S71_A2SubCode,$AC:$AC,Sheet1!S71_ItemType,$AD:$AD)","v":0},{"$f":"SUMIFS(Sheet1!S71_OY1BudgetAmount,Sheet1!S71_A2SubCode,$AC:$AC,Sheet1!S71_ItemType,$AD:$AD)","v":0},{"$f":"SUMIFS(Sheet1!S71_OY2BudgetAmount,Sheet1!S71_A2SubCode,$AC:$AC,Sheet1!S71_ItemType,$AD:$AD)","v":0},null,null,null,null,null,null,null,null,null,null,null,null,null,null,null,null,null,"4102","IR"]
["Nonelectric Energy",null,{"$f":"-SUMIFS(Sheet1!S71_OriginalBudAmnt,Sheet1!S71_A2SubCode,$AC:$AC,Sheet1!S71_ItemType,$AD:$AD)","v":0},{"$f":"-SUMIFS(Sheet1!S71_OriginalBudAmnt,Sheet1!S71_A2SubCode,$AC:$AC,Sheet1!S71_ItemType,$AD:$AD)","v":0},{"$f":"-SUMIFS(Sheet1!S71_OriginalBudAmnt,Sheet1!S71_A2SubCode,$AC:$AC,Sheet1!S71_ItemType,$AD:$AD)","v":0},{"$f":"-SUMIFS(Sheet1!S71_OriginalBudAmnt,Sheet1!S71_A2SubCode,$AC:$AC,Sheet1!S71_ItemType,$AD:$AD)","v":0},{"$f":"-SUMIFS(Sheet1!S71_AdjustmentBudAmnt,Sheet1!S71_A2SubCode,$AC:$AC,Sheet1!S71_ItemType,$AD:$AD)","v":0},{"$f":"-SUMIFS(Sheet1!S71_AdjustmentBudAmnt,Sheet1!S71_A2SubCode,$AC:$AC,Sheet1!S71_ItemType,$AD:$AD)","v":0},{"$f":"SUMIFS(Sheet1!S71_ASBudgetAmount,Sheet1!S71_A2SubCode,$AC:$AC,Sheet1!S71_ItemType,$AD:$AD)","v":0},{"$f":"SUMIFS(Sheet1!S71_OY1BudgetAmount,Sheet1!S71_A2SubCode,$AC:$AC,Sheet1!S71_ItemType,$AD:$AD)","v":0},{"$f":"SUMIFS(Sheet1!S71_OY2BudgetAmount,Sheet1!S71_A2SubCode,$AC:$AC,Sheet1!S71_ItemType,$AD:$AD)","v":0},null,null,null,null,null,null,null,null,null,null,null,null,null,null,null,null,null,"4103","IR"]
["Water management",null,{"$f":"SUM(C104:C106)","v":0},{"$f":"SUM(D104:D106)","v":0},0,0,0,0,0,0,0,null,null,null,null,null,null,null,null,null,null,null,null,null,null,null,null,null,null,"IR"]
["Water Treatment",null,{"$f":"-SUMIFS(Sheet1!S71_OriginalBudAmnt,Sheet1!S71_A2SubCode,$AC:$AC,Sheet1!S71_ItemType,$AD:$AD)","v":0},{"$f":"-SUMIFS(Sheet1!S71_OriginalBudAmnt,Sheet1!S71_A2SubCode,$AC:$AC,Sheet1!S71_ItemType,$AD:$AD)","v":0},{"$f":"-SUMIFS(Sheet1!S71_OriginalBudAmnt,Sheet1!S71_A2SubCode,$AC:$AC,Sheet1!S71_ItemType,$AD:$AD)","v":0},{"$f":"-SUMIFS(Sheet1!S71_OriginalBudAmnt,Sheet1!S71_A2SubCode,$AC:$AC,Sheet1!S71_ItemType,$AD:$AD)","v":0},{"$f":"-SUMIFS(Sheet1!S71_AdjustmentBudAmnt,Sheet1!S71_A2SubCode,$AC:$AC,Sheet1!S71_ItemType,$AD:$AD)","v":0},{"$f":"-SUMIFS(Sheet1!S71_AdjustmentBudAmnt,Sheet1!S71_A2SubCode,$AC:$AC,Sheet1!S71_ItemType,$AD:$AD)","v":0},{"$f":"SUMIFS(Sheet1!S71_ASBudgetAmount,Sheet1!S71_A2SubCode,$AC:$AC,Sheet1!S71_ItemType,$AD:$AD)","v":0},{"$f":"SUMIFS(Sheet1!S71_OY1BudgetAmount,Sheet1!S71_A2SubCode,$AC:$AC,Sheet1!S71_ItemType,$AD:$AD)","v":0},{"$f":"SUMIFS(Sheet1!S71_OY2BudgetAmount,Sheet1!S71_A2SubCode,$AC:$AC,Sheet1!S71_ItemType,$AD:$AD)","v":0},null,null,null,null,null,null,null,null,null,null,null,null,null,null,null,null,null,"4201","IR"]
["Water Distribution",null,{"$f":"-SUMIFS(Sheet1!S71_OriginalBudAmnt,Sheet1!S71_A2SubCode,$AC:$AC,Sheet1!S71_ItemType,$AD:$AD)","v":0},{"$f":"-SUMIFS(Sheet1!S71_OriginalBudAmnt,Sheet1!S71_A2SubCode,$AC:$AC,Sheet1!S71_ItemType,$AD:$AD)","v":0},{"$f":"-SUMIFS(Sheet1!S71_OriginalBudAmnt,Sheet1!S71_A2SubCode,$AC:$AC,Sheet1!S71_ItemType,$AD:$AD)","v":0},{"$f":"-SUMIFS(Sheet1!S71_OriginalBudAmnt,Sheet1!S71_A2SubCode,$AC:$AC,Sheet1!S71_ItemType,$AD:$AD)","v":0},{"$f":"-SUMIFS(Sheet1!S71_AdjustmentBudAmnt,Sheet1!S71_A2SubCode,$AC:$AC,Sheet1!S71_ItemType,$AD:$AD)","v":0},{"$f":"-SUMIFS(Sheet1!S71_AdjustmentBudAmnt,Sheet1!S71_A2SubCode,$AC:$AC,Sheet1!S71_ItemType,$AD:$AD)","v":0},{"$f":"SUMIFS(Sheet1!S71_ASBudgetAmount,Sheet1!S71_A2SubCode,$AC:$AC,Sheet1!S71_ItemType,$AD:$AD)","v":0},{"$f":"SUMIFS(Sheet1!S71_OY1BudgetAmount,Sheet1!S71_A2SubCode,$AC:$AC,Sheet1!S71_ItemType,$AD:$AD)","v":0},{"$f":"SUMIFS(Sheet1!S71_OY2BudgetAmount,Sheet1!S71_A2SubCode,$AC:$AC,Sheet1!S71_ItemType,$AD:$AD)","v":0},null,null,null,null,null,null,null,null,null,null,null,null,null,null,null,null,null,"4202","IR"]
["Water Storage",null,{"$f":"-SUMIFS(Sheet1!S71_OriginalBudAmnt,Sheet1!S71_A2SubCode,$AC:$AC,Sheet1!S71_ItemType,$AD:$AD)","v":0},{"$f":"-SUMIFS(Sheet1!S71_OriginalBudAmnt,Sheet1!S71_A2SubCode,$AC:$AC,Sheet1!S71_ItemType,$AD:$AD)","v":0},{"$f":"-SUMIFS(Sheet1!S71_OriginalBudAmnt,Sheet1!S71_A2SubCode,$AC:$AC,Sheet1!S71_ItemType,$AD:$AD)","v":0},{"$f":"-SUMIFS(Sheet1!S71_OriginalBudAmnt,Sheet1!S71_A2SubCode,$AC:$AC,Sheet1!S71_ItemType,$AD:$AD)","v":0},{"$f":"-SUMIFS(Sheet1!S71_AdjustmentBudAmnt,Sheet1!S71_A2SubCode,$AC:$AC,Sheet1!S71_ItemType,$AD:$AD)","v":0},{"$f":"-SUMIFS(Sheet1!S71_AdjustmentBudAmnt,Sheet1!S71_A2SubCode,$AC:$AC,Sheet1!S71_ItemType,$AD:$AD)","v":0},{"$f":"SUMIFS(Sheet1!S71_ASBudgetAmount,Sheet1!S71_A2SubCode,$AC:$AC,Sheet1!S71_ItemType,$AD:$AD)","v":0},{"$f":"SUMIFS(Sheet1!S71_OY1BudgetAmount,Sheet1!S71_A2SubCode,$AC:$AC,Sheet1!S71_ItemType,$AD:$AD)","v":0},{"$f":"SUMIFS(Sheet1!S71_OY2BudgetAmount,Sheet1!S71_A2SubCode,$AC:$AC,Sheet1!S71_ItemType,$AD:$AD)","v":0},null,null,null,null,null,null,null,null,null,null,null,null,null,null,null,null,null,"4203","IR"]
["Waste water management",null,{"$f":"SUM(C108:C111)","v":0},{"$f":"SUM(D108:D111)","v":0},0,0,0,0,0,0,0,null,null,null,null,null,null,null,null,null,null,null,null,null,null,null,null,null,null,"IR"]
["Public Toilets",null,{"$f":"-SUMIFS(Sheet1!S71_OriginalBudAmnt,Sheet1!S71_A2SubCode,$AC:$AC,Sheet1!S71_ItemType,$AD:$AD)","v":0},{"$f":"-SUMIFS(Sheet1!S71_OriginalBudAmnt,Sheet1!S71_A2SubCode,$AC:$AC,Sheet1!S71_ItemType,$AD:$AD)","v":0},{"$f":"-SUMIFS(Sheet1!S71_OriginalBudAmnt,Sheet1!S71_A2SubCode,$AC:$AC,Sheet1!S71_ItemType,$AD:$AD)","v":0},{"$f":"-SUMIFS(Sheet1!S71_OriginalBudAmnt,Sheet1!S71_A2SubCode,$AC:$AC,Sheet1!S71_ItemType,$AD:$AD)","v":0},{"$f":"-SUMIFS(Sheet1!S71_AdjustmentBudAmnt,Sheet1!S71_A2SubCode,$AC:$AC,Sheet1!S71_ItemType,$AD:$AD)","v":0},{"$f":"-SUMIFS(Sheet1!S71_AdjustmentBudAmnt,Sheet1!S71_A2SubCode,$AC:$AC,Sheet1!S71_ItemType,$AD:$AD)","v":0},{"$f":"SUMIFS(Sheet1!S71_ASBudgetAmount,Sheet1!S71_A2SubCode,$AC:$AC,Sheet1!S71_ItemType,$AD:$AD)","v":0},{"$f":"SUMIFS(Sheet1!S71_OY1BudgetAmount,Sheet1!S71_A2SubCode,$AC:$AC,Sheet1!S71_ItemType,$AD:$AD)","v":0},{"$f":"SUMIFS(Sheet1!S71_OY2BudgetAmount,Sheet1!S71_A2SubCode,$AC:$AC,Sheet1!S71_ItemType,$AD:$AD)","v":0},null,null,null,null,null,null,null,null,null,null,null,null,null,null,null,null,null,"4301","IR"]
["Sewerage",null,{"$f":"-SUMIFS(Sheet1!S71_OriginalBudAmnt,Sheet1!S71_A2SubCode,$AC:$AC,Sheet1!S71_ItemType,$AD:$AD)","v":0},{"$f":"-SUMIFS(Sheet1!S71_OriginalBudAmnt,Sheet1!S71_A2SubCode,$AC:$AC,Sheet1!S71_ItemType,$AD:$AD)","v":0},{"$f":"-SUMIFS(Sheet1!S71_OriginalBudAmnt,Sheet1!S71_A2SubCode,$AC:$AC,Sheet1!S71_ItemType,$AD:$AD)","v":0},{"$f":"-SUMIFS(Sheet1!S71_OriginalBudAmnt,Sheet1!S71_A2SubCode,$AC:$AC,Sheet1!S71_ItemType,$AD:$AD)","v":0},{"$f":"-SUMIFS(Sheet1!S71_AdjustmentBudAmnt,Sheet1!S71_A2SubCode,$AC:$AC,Sheet1!S71_ItemType,$AD:$AD)","v":0},{"$f":"-SUMIFS(Sheet1!S71_AdjustmentBudAmnt,Sheet1!S71_A2SubCode,$AC:$AC,Sheet1!S71_ItemType,$AD:$AD)","v":0},{"$f":"SUMIFS(Sheet1!S71_ASBudgetAmount,Sheet1!S71_A2SubCode,$AC:$AC,Sheet1!S71_ItemType,$AD:$AD)","v":0},{"$f":"SUMIFS(Sheet1!S71_OY1BudgetAmount,Sheet1!S71_A2SubCode,$AC:$AC,Sheet1!S71_ItemType,$AD:$AD)","v":0},{"$f":"SUMIFS(Sheet1!S71_OY2BudgetAmount,Sheet1!S71_A2SubCode,$AC:$AC,Sheet1!S71_ItemType,$AD:$AD)","v":0},null,null,null,null,null,null,null,null,null,null,null,null,null,null,null,null,null,"4302","IR"]
["Storm Water Management",null,{"$f":"-SUMIFS(Sheet1!S71_OriginalBudAmnt,Sheet1!S71_A2SubCode,$AC:$AC,Sheet1!S71_ItemType,$AD:$AD)","v":0},{"$f":"-SUMIFS(Sheet1!S71_OriginalBudAmnt,Sheet1!S71_A2SubCode,$AC:$AC,Sheet1!S71_ItemType,$AD:$AD)","v":0},{"$f":"-SUMIFS(Sheet1!S71_OriginalBudAmnt,Sheet1!S71_A2SubCode,$AC:$AC,Sheet1!S71_ItemType,$AD:$AD)","v":0},{"$f":"-SUMIFS(Sheet1!S71_OriginalBudAmnt,Sheet1!S71_A2SubCode,$AC:$AC,Sheet1!S71_ItemType,$AD:$AD)","v":0},{"$f":"-SUMIFS(Sheet1!S71_AdjustmentBudAmnt,Sheet1!S71_A2SubCode,$AC:$AC,Sheet1!S71_ItemType,$AD:$AD)","v":0},{"$f":"-SUMIFS(Sheet1!S71_AdjustmentBudAmnt,Sheet1!S71_A2SubCode,$AC:$AC,Sheet1!S71_ItemType,$AD:$AD)","v":0},{"$f":"SUMIFS(Sheet1!S71_ASBudgetAmount,Sheet1!S71_A2SubCode,$AC:$AC,Sheet1!S71_ItemType,$AD:$AD)","v":0},{"$f":"SUMIFS(Sheet1!S71_OY1BudgetAmount,Sheet1!S71_A2SubCode,$AC:$AC,Sheet1!S71_ItemType,$AD:$AD)","v":0},{"$f":"SUMIFS(Sheet1!S71_OY2BudgetAmount,Sheet1!S71_A2SubCode,$AC:$AC,Sheet1!S71_ItemType,$AD:$AD)","v":0},null,null,null,null,null,null,null,null,null,null,null,null,null,null,null,null,null,"4303","IR"]
["Waste Water Treatment",null,{"$f":"-SUMIFS(Sheet1!S71_OriginalBudAmnt,Sheet1!S71_A2SubCode,$AC:$AC,Sheet1!S71_ItemType,$AD:$AD)","v":0},{"$f":"-SUMIFS(Sheet1!S71_OriginalBudAmnt,Sheet1!S71_A2SubCode,$AC:$AC,Sheet1!S71_ItemType,$AD:$AD)","v":0},{"$f":"-SUMIFS(Sheet1!S71_OriginalBudAmnt,Sheet1!S71_A2SubCode,$AC:$AC,Sheet1!S71_ItemType,$AD:$AD)","v":0},{"$f":"-SUMIFS(Sheet1!S71_OriginalBudAmnt,Sheet1!S71_A2SubCode,$AC:$AC,Sheet1!S71_ItemType,$AD:$AD)","v":0},{"$f":"-SUMIFS(Sheet1!S71_AdjustmentBudAmnt,Sheet1!S71_A2SubCode,$AC:$AC,Sheet1!S71_ItemType,$AD:$AD)","v":0},{"$f":"-SUMIFS(Sheet1!S71_AdjustmentBudAmnt,Sheet1!S71_A2SubCode,$AC:$AC,Sheet1!S71_ItemType,$AD:$AD)","v":0},{"$f":"SUMIFS(Sheet1!S71_ASBudgetAmount,Sheet1!S71_A2SubCode,$AC:$AC,Sheet1!S71_ItemType,$AD:$AD)","v":0},{"$f":"SUMIFS(Sheet1!S71_OY1BudgetAmount,Sheet1!S71_A2SubCode,$AC:$AC,Sheet1!S71_ItemType,$AD:$AD)","v":0},{"$f":"SUMIFS(Sheet1!S71_OY2BudgetAmount,Sheet1!S71_A2SubCode,$AC:$AC,Sheet1!S71_ItemType,$AD:$AD)","v":0},null,null,null,null,null,null,null,null,null,null,null,null,null,null,null,null,null,"4304","IR"]
["Waste management",null,{"$f":"SUM(C113:C116)","v":13816930},{"$f":"SUM(D113:D116)","v":13816930},13816930,13816930,12007090,12007090,12648695,13268482,13892100,null,null,null,null,null,null,null,null,null,null,null,null,null,null,null,null,null,null,"IR"]
["Recycling",null,{"$f":"-SUMIFS(Sheet1!S71_OriginalBudAmnt,Sheet1!S71_A2SubCode,$AC:$AC,Sheet1!S71_ItemType,$AD:$AD)","v":0},{"$f":"-SUMIFS(Sheet1!S71_OriginalBudAmnt,Sheet1!S71_A2SubCode,$AC:$AC,Sheet1!S71_ItemType,$AD:$AD)","v":0},{"$f":"-SUMIFS(Sheet1!S71_OriginalBudAmnt,Sheet1!S71_A2SubCode,$AC:$AC,Sheet1!S71_ItemType,$AD:$AD)","v":0},{"$f":"-SUMIFS(Sheet1!S71_OriginalBudAmnt,Sheet1!S71_A2SubCode,$AC:$AC,Sheet1!S71_ItemType,$AD:$AD)","v":0},{"$f":"-SUMIFS(Sheet1!S71_AdjustmentBudAmnt,Sheet1!S71_A2SubCode,$AC:$AC,Sheet1!S71_ItemType,$AD:$AD)","v":0},{"$f":"-SUMIFS(Sheet1!S71_AdjustmentBudAmnt,Sheet1!S71_A2SubCode,$AC:$AC,Sheet1!S71_ItemType,$AD:$AD)","v":0},{"$f":"SUMIFS(Sheet1!S71_ASBudgetAmount,Sheet1!S71_A2SubCode,$AC:$AC,Sheet1!S71_ItemType,$AD:$AD)","v":0},{"$f":"SUMIFS(Sheet1!S71_OY1BudgetAmount,Sheet1!S71_A2SubCode,$AC:$AC,Sheet1!S71_ItemType,$AD:$AD)","v":0},{"$f":"SUMIFS(Sheet1!S71_OY2BudgetAmount,Sheet1!S71_A2SubCode,$AC:$AC,Sheet1!S71_ItemType,$AD:$AD)","v":0},null,null,null,null,null,null,null,null,null,null,null,null,null,null,null,null,null,"4401","IR"]
["Solid Waste Disposal (Landfill Sites)",null,{"$f":"-SUMIFS(Sheet1!S71_OriginalBudAmnt,Sheet1!S71_A2SubCode,$AC:$AC,Sheet1!S71_ItemType,$AD:$AD)","v":0},{"$f":"-SUMIFS(Sheet1!S71_OriginalBudAmnt,Sheet1!S71_A2SubCode,$AC:$AC,Sheet1!S71_ItemType,$AD:$AD)","v":0},{"$f":"-SUMIFS(Sheet1!S71_OriginalBudAmnt,Sheet1!S71_A2SubCode,$AC:$AC,Sheet1!S71_ItemType,$AD:$AD)","v":0},{"$f":"-SUMIFS(Sheet1!S71_OriginalBudAmnt,Sheet1!S71_A2SubCode,$AC:$AC,Sheet1!S71_ItemType,$AD:$AD)","v":0},{"$f":"-SUMIFS(Sheet1!S71_AdjustmentBudAmnt,Sheet1!S71_A2SubCode,$AC:$AC,Sheet1!S71_ItemType,$AD:$AD)","v":0},{"$f":"-SUMIFS(Sheet1!S71_AdjustmentBudAmnt,Sheet1!S71_A2SubCode,$AC:$AC,Sheet1!S71_ItemType,$AD:$AD)","v":0},{"$f":"SUMIFS(Sheet1!S71_ASBudgetAmount,Sheet1!S71_A2SubCode,$AC:$AC,Sheet1!S71_ItemType,$AD:$AD)","v":0},{"$f":"SUMIFS(Sheet1!S71_OY1BudgetAmount,Sheet1!S71_A2SubCode,$AC:$AC,Sheet1!S71_ItemType,$AD:$AD)","v":0},{"$f":"SUMIFS(Sheet1!S71_OY2BudgetAmount,Sheet1!S71_A2SubCode,$AC:$AC,Sheet1!S71_ItemType,$AD:$AD)","v":0},null,null,null,null,null,null,null,null,null,null,null,null,null,null,null,null,null,"4402","IR"]
["Solid Waste Removal",null,{"$f":"-SUMIFS(Sheet1!S71_OriginalBudAmnt,Sheet1!S71_A2SubCode,$AC:$AC,Sheet1!S71_ItemType,$AD:$AD)","v":13816930},{"$f":"-SUMIFS(Sheet1!S71_OriginalBudAmnt,Sheet1!S71_A2SubCode,$AC:$AC,Sheet1!S71_ItemType,$AD:$AD)","v":13816930},{"$f":"-SUMIFS(Sheet1!S71_OriginalBudAmnt,Sheet1!S71_A2SubCode,$AC:$AC,Sheet1!S71_ItemType,$AD:$AD)","v":13816930},{"$f":"-SUMIFS(Sheet1!S71_OriginalBudAmnt,Sheet1!S71_A2SubCode,$AC:$AC,Sheet1!S71_ItemType,$AD:$AD)","v":13816930},{"$f":"-SUMIFS(Sheet1!S71_AdjustmentBudAmnt,Sheet1!S71_A2SubCode,$AC:$AC,Sheet1!S71_ItemType,$AD:$AD)","v":12007090},{"$f":"-SUMIFS(Sheet1!S71_AdjustmentBudAmnt,Sheet1!S71_A2SubCode,$AC:$AC,Sheet1!S71_ItemType,$AD:$AD)","v":12007090},{"$f":"SUMIFS(Sheet1!S71_ASBudgetAmount,Sheet1!S71_A2SubCode,$AC:$AC,Sheet1!S71_ItemType,$AD:$AD)","v":12648695},{"$f":"SUMIFS(Sheet1!S71_OY1BudgetAmount,Sheet1!S71_A2SubCode,$AC:$AC,Sheet1!S71_ItemType,$AD:$AD)","v":13268482},{"$f":"SUMIFS(Sheet1!S71_OY2BudgetAmount,Sheet1!S71_A2SubCode,$AC:$AC,Sheet1!S71_ItemType,$AD:$AD)","v":13892100},null,null,null,null,null,null,null,null,null,null,null,null,null,null,null,null,null,"4403","IR"]
["Street Cleaning",null,{"$f":"-SUMIFS(Sheet1!S71_OriginalBudAmnt,Sheet1!S71_A2SubCode,$AC:$AC,Sheet1!S71_ItemType,$AD:$AD)","v":0},{"$f":"-SUMIFS(Sheet1!S71_OriginalBudAmnt,Sheet1!S71_A2SubCode,$AC:$AC,Sheet1!S71_ItemType,$AD:$AD)","v":0},{"$f":"-SUMIFS(Sheet1!S71_OriginalBudAmnt,Sheet1!S71_A2SubCode,$AC:$AC,Sheet1!S71_ItemType,$AD:$AD)","v":0},{"$f":"-SUMIFS(Sheet1!S71_OriginalBudAmnt,Sheet1!S71_A2SubCode,$AC:$AC,Sheet1!S71_ItemType,$AD:$AD)","v":0},{"$f":"-SUMIFS(Sheet1!S71_AdjustmentBudAmnt,Sheet1!S71_A2SubCode,$AC:$AC,Sheet1!S71_ItemType,$AD:$AD)","v":0},{"$f":"-SUMIFS(Sheet1!S71_AdjustmentBudAmnt,Sheet1!S71_A2SubCode,$AC:$AC,Sheet1!S71_ItemType,$AD:$AD)","v":0},{"$f":"SUMIFS(Sheet1!S71_ASBudgetAmount,Sheet1!S71_A2SubCode,$AC:$AC,Sheet1!S71_ItemType,$AD:$AD)","v":0},{"$f":"SUMIFS(Sheet1!S71_OY1BudgetAmount,Sheet1!S71_A2SubCode,$AC:$AC,Sheet1!S71_ItemType,$AD:$AD)","v":0},{"$f":"SUMIFS(Sheet1!S71_OY2BudgetAmount,Sheet1!S71_A2SubCode,$AC:$AC,Sheet1!S71_ItemType,$AD:$AD)","v":0},null,null,null,null,null,null,null,null,null,null,null,null,null,null,null,null,null,"4404","IR"]
["Other",null,{"$f":"SUM(C118:C123)","v":0},{"$f":"SUM(D118:D123)","v":0},0,0,0,0,0,0,0,null,null,null,null,null,null,null,null,null,null,null,null,null,null,null,null,null,null,"IR"]
["Abattoirs",null,{"$f":"-SUMIFS(Sheet1!S71_OriginalBudAmnt,Sheet1!S71_A2SubCode,$AC:$AC,Sheet1!S71_ItemType,$AD:$AD)","v":0},{"$f":"-SUMIFS(Sheet1!S71_OriginalBudAmnt,Sheet1!S71_A2SubCode,$AC:$AC,Sheet1!S71_ItemType,$AD:$AD)","v":0},{"$f":"-SUMIFS(Sheet1!S71_OriginalBudAmnt,Sheet1!S71_A2SubCode,$AC:$AC,Sheet1!S71_ItemType,$AD:$AD)","v":0},{"$f":"-SUMIFS(Sheet1!S71_OriginalBudAmnt,Sheet1!S71_A2SubCode,$AC:$AC,Sheet1!S71_ItemType,$AD:$AD)","v":0},{"$f":"-SUMIFS(Sheet1!S71_AdjustmentBudAmnt,Sheet1!S71_A2SubCode,$AC:$AC,Sheet1!S71_ItemType,$AD:$AD)","v":0},{"$f":"-SUMIFS(Sheet1!S71_AdjustmentBudAmnt,Sheet1!S71_A2SubCode,$AC:$AC,Sheet1!S71_ItemType,$AD:$AD)","v":0},{"$f":"-SUMIFS(Sheet1!S71_ASBudgetAmount,Sheet1!S71_A2SubCode,$AC:$AC,Sheet1!S71_ItemType,$AD:$AD)","v":0},{"$f":"SUMIFS(Sheet1!S71_OY1BudgetAmount,Sheet1!S71_A2SubCode,$AC:$AC,Sheet1!S71_ItemType,$AD:$AD)","v":0},{"$f":"SUMIFS(Sheet1!S71_OY2BudgetAmount,Sheet1!S71_A2SubCode,$AC:$AC,Sheet1!S71_ItemType,$AD:$AD)","v":0},null,null,null,null,null,null,null,null,null,null,null,null,null,null,null,null,null,"5001","IR"]
["Air Transport",null,{"$f":"-SUMIFS(Sheet1!S71_OriginalBudAmnt,Sheet1!S71_A2SubCode,$AC:$AC,Sheet1!S71_ItemType,$AD:$AD)","v":0},{"$f":"-SUMIFS(Sheet1!S71_OriginalBudAmnt,Sheet1!S71_A2SubCode,$AC:$AC,Sheet1!S71_ItemType,$AD:$AD)","v":0},{"$f":"-SUMIFS(Sheet1!S71_OriginalBudAmnt,Sheet1!S71_A2SubCode,$AC:$AC,Sheet1!S71_ItemType,$AD:$AD)","v":0},{"$f":"-SUMIFS(Sheet1!S71_OriginalBudAmnt,Sheet1!S71_A2SubCode,$AC:$AC,Sheet1!S71_ItemType,$AD:$AD)","v":0},{"$f":"-SUMIFS(Sheet1!S71_AdjustmentBudAmnt,Sheet1!S71_A2SubCode,$AC:$AC,Sheet1!S71_ItemType,$AD:$AD)","v":0},{"$f":"-SUMIFS(Sheet1!S71_AdjustmentBudAmnt,Sheet1!S71_A2SubCode,$AC:$AC,Sheet1!S71_ItemType,$AD:$AD)","v":0},{"$f":"-SUMIFS(Sheet1!S71_ASBudgetAmount,Sheet1!S71_A2SubCode,$AC:$AC,Sheet1!S71_ItemType,$AD:$AD)","v":0},{"$f":"SUMIFS(Sheet1!S71_OY1BudgetAmount,Sheet1!S71_A2SubCode,$AC:$AC,Sheet1!S71_ItemType,$AD:$AD)","v":0},{"$f":"SUMIFS(Sheet1!S71_OY2BudgetAmount,Sheet1!S71_A2SubCode,$AC:$AC,Sheet1!S71_ItemType,$AD:$AD)","v":0},null,null,null,null,null,null,null,null,null,null,null,null,null,null,null,null,null,"5002","IR"]
["Forestry ",null,{"$f":"-SUMIFS(Sheet1!S71_OriginalBudAmnt,Sheet1!S71_A2SubCode,$AC:$AC,Sheet1!S71_ItemType,$AD:$AD)","v":0},{"$f":"-SUMIFS(Sheet1!S71_OriginalBudAmnt,Sheet1!S71_A2SubCode,$AC:$AC,Sheet1!S71_ItemType,$AD:$AD)","v":0},{"$f":"-SUMIFS(Sheet1!S71_OriginalBudAmnt,Sheet1!S71_A2SubCode,$AC:$AC,Sheet1!S71_ItemType,$AD:$AD)","v":0},{"$f":"-SUMIFS(Sheet1!S71_OriginalBudAmnt,Sheet1!S71_A2SubCode,$AC:$AC,Sheet1!S71_ItemType,$AD:$AD)","v":0},{"$f":"-SUMIFS(Sheet1!S71_AdjustmentBudAmnt,Sheet1!S71_A2SubCode,$AC:$AC,Sheet1!S71_ItemType,$AD:$AD)","v":0},{"$f":"-SUMIFS(Sheet1!S71_AdjustmentBudAmnt,Sheet1!S71_A2SubCode,$AC:$AC,Sheet1!S71_ItemType,$AD:$AD)","v":0},{"$f":"-SUMIFS(Sheet1!S71_ASBudgetAmount,Sheet1!S71_A2SubCode,$AC:$AC,Sheet1!S71_ItemType,$AD:$AD)","v":0},{"$f":"SUMIFS(Sheet1!S71_OY1BudgetAmount,Sheet1!S71_A2SubCode,$AC:$AC,Sheet1!S71_ItemType,$AD:$AD)","v":0},{"$f":"SUMIFS(Sheet1!S71_OY2BudgetAmount,Sheet1!S71_A2SubCode,$AC:$AC,Sheet1!S71_ItemType,$AD:$AD)","v":0},null,null,null,null,null,null,null,null,null,null,null,null,null,null,null,null,null,"5003","IR"]
["Licensing and Regulation",null,{"$f":"-SUMIFS(Sheet1!S71_OriginalBudAmnt,Sheet1!S71_A2SubCode,$AC:$AC,Sheet1!S71_ItemType,$AD:$AD)","v":0},{"$f":"-SUMIFS(Sheet1!S71_OriginalBudAmnt,Sheet1!S71_A2SubCode,$AC:$AC,Sheet1!S71_ItemType,$AD:$AD)","v":0},{"$f":"-SUMIFS(Sheet1!S71_OriginalBudAmnt,Sheet1!S71_A2SubCode,$AC:$AC,Sheet1!S71_ItemType,$AD:$AD)","v":0},{"$f":"-SUMIFS(Sheet1!S71_OriginalBudAmnt,Sheet1!S71_A2SubCode,$AC:$AC,Sheet1!S71_ItemType,$AD:$AD)","v":0},{"$f":"-SUMIFS(Sheet1!S71_AdjustmentBudAmnt,Sheet1!S71_A2SubCode,$AC:$AC,Sheet1!S71_ItemType,$AD:$AD)","v":0},{"$f":"-SUMIFS(Sheet1!S71_AdjustmentBudAmnt,Sheet1!S71_A2SubCode,$AC:$AC,Sheet1!S71_ItemType,$AD:$AD)","v":0},{"$f":"-SUMIFS(Sheet1!S71_ASBudgetAmount,Sheet1!S71_A2SubCode,$AC:$AC,Sheet1!S71_ItemType,$AD:$AD)","v":0},{"$f":"SUMIFS(Sheet1!S71_OY1BudgetAmount,Sheet1!S71_A2SubCode,$AC:$AC,Sheet1!S71_ItemType,$AD:$AD)","v":0},{"$f":"SUMIFS(Sheet1!S71_OY2BudgetAmount,Sheet1!S71_A2SubCode,$AC:$AC,Sheet1!S71_ItemType,$AD:$AD)","v":0},null,null,null,null,null,null,null,null,null,null,null,null,null,null,null,null,null,"5004","IR"]
["Markets",null,{"$f":"-SUMIFS(Sheet1!S71_OriginalBudAmnt,Sheet1!S71_A2SubCode,$AC:$AC,Sheet1!S71_ItemType,$AD:$AD)","v":0},{"$f":"-SUMIFS(Sheet1!S71_OriginalBudAmnt,Sheet1!S71_A2SubCode,$AC:$AC,Sheet1!S71_ItemType,$AD:$AD)","v":0},{"$f":"-SUMIFS(Sheet1!S71_OriginalBudAmnt,Sheet1!S71_A2SubCode,$AC:$AC,Sheet1!S71_ItemType,$AD:$AD)","v":0},{"$f":"-SUMIFS(Sheet1!S71_OriginalBudAmnt,Sheet1!S71_A2SubCode,$AC:$AC,Sheet1!S71_ItemType,$AD:$AD)","v":0},{"$f":"-SUMIFS(Sheet1!S71_AdjustmentBudAmnt,Sheet1!S71_A2SubCode,$AC:$AC,Sheet1!S71_ItemType,$AD:$AD)","v":0},{"$f":"-SUMIFS(Sheet1!S71_AdjustmentBudAmnt,Sheet1!S71_A2SubCode,$AC:$AC,Sheet1!S71_ItemType,$AD:$AD)","v":0},{"$f":"-SUMIFS(Sheet1!S71_ASBudgetAmount,Sheet1!S71_A2SubCode,$AC:$AC,Sheet1!S71_ItemType,$AD:$AD)","v":0},{"$f":"SUMIFS(Sheet1!S71_OY1BudgetAmount,Sheet1!S71_A2SubCode,$AC:$AC,Sheet1!S71_ItemType,$AD:$AD)","v":0},{"$f":"SUMIFS(Sheet1!S71_OY2BudgetAmount,Sheet1!S71_A2SubCode,$AC:$AC,Sheet1!S71_ItemType,$AD:$AD)","v":0},null,null,null,null,null,null,null,null,null,null,null,null,null,null,null,null,null,"5005","IR"]
["Tourism",null,{"$f":"-SUMIFS(Sheet1!S71_OriginalBudAmnt,Sheet1!S71_A2SubCode,$AC:$AC,Sheet1!S71_ItemType,$AD:$AD)","v":0},{"$f":"-SUMIFS(Sheet1!S71_OriginalBudAmnt,Sheet1!S71_A2SubCode,$AC:$AC,Sheet1!S71_ItemType,$AD:$AD)","v":0},{"$f":"-SUMIFS(Sheet1!S71_OriginalBudAmnt,Sheet1!S71_A2SubCode,$AC:$AC,Sheet1!S71_ItemType,$AD:$AD)","v":0},{"$f":"-SUMIFS(Sheet1!S71_OriginalBudAmnt,Sheet1!S71_A2SubCode,$AC:$AC,Sheet1!S71_ItemType,$AD:$AD)","v":0},{"$f":"-SUMIFS(Sheet1!S71_AdjustmentBudAmnt,Sheet1!S71_A2SubCode,$AC:$AC,Sheet1!S71_ItemType,$AD:$AD)","v":0},{"$f":"-SUMIFS(Sheet1!S71_AdjustmentBudAmnt,Sheet1!S71_A2SubCode,$AC:$AC,Sheet1!S71_ItemType,$AD:$AD)","v":0},{"$f":"-SUMIFS(Sheet1!S71_ASBudgetAmount,Sheet1!S71_A2SubCode,$AC:$AC,Sheet1!S71_ItemType,$AD:$AD)","v":0},{"$f":"SUMIFS(Sheet1!S71_OY1BudgetAmount,Sheet1!S71_A2SubCode,$AC:$AC,Sheet1!S71_ItemType,$AD:$AD)","v":0},{"$f":"SUMIFS(Sheet1!S71_OY2BudgetAmount,Sheet1!S71_A2SubCode,$AC:$AC,Sheet1!S71_ItemType,$AD:$AD)","v":0},null,null,null,null,null,null,null,null,null,null,null,null,null,null,null,null,null,"5006","IR"]
[{"$f":"\"Total \"&A4","v":"Total Revenue - Functional"},2,{"$f":"C5+C25+C74+C98+C117","v":600163402},600163402,600163402,600163402,599794669,599794669,640857125,668891737,670735033]
[]
["Expenditure - Functional"]
[{"$f":"A5","v":"Municipal governance and administration"},null,{"$f":"C128+C131+C145","v":335100425},335100425,335100425,335100425,334195630,334195630,365021920,375847789,388404173]
["Executive and council",null,{"$f":"SUM(C129:C130)","v":41143288},41143288,41143288,41143288,43901974,43901974,48480732,50659755,52693321]
["Mayor and Council",null,{"$f":"SUMIFS(Sheet1!S71_OriginalBudAmnt,Sheet1!S71_A2SubCode,$AC:$AC,Sheet1!S71_ItemType,$AD:$AD)","v":39680224},{"$f":"SUMIFS(Sheet1!S71_OriginalBudAmnt,Sheet1!S71_A2SubCode,$AC:$AC,Sheet1!S71_ItemType,$AD:$AD)","v":39680224},{"$f":"SUMIFS(Sheet1!S71_OriginalBudAmnt,Sheet1!S71_A2SubCode,$AC:$AC,Sheet1!S71_ItemType,$AD:$AD)","v":39680224},{"$f":"SUMIFS(Sheet1!S71_OriginalBudAmnt,Sheet1!S71_A2SubCode,$AC:$AC,Sheet1!S71_ItemType,$AD:$AD)","v":39680224},{"$f":"SUMIFS(Sheet1!S71_AdjustmentBudAmnt,Sheet1!S71_A2SubCode,$AC:$AC,Sheet1!S71_ItemType,$AD:$AD)","v":42293616},{"$f":"SUMIFS(Sheet1!S71_AdjustmentBudAmnt,Sheet1!S71_A2SubCode,$AC:$AC,Sheet1!S71_ItemType,$AD:$AD)","v":42293616},{"$f":"SUMIFS(Sheet1!S71_ASBudgetAmount,Sheet1!S71_A2SubCode,$AC:$AC,Sheet1!S71_ItemType,$AD:$AD)","v":46832750},{"$f":"SUMIFS(Sheet1!S71_OY1BudgetAmount,Sheet1!S71_A2SubCode,$AC:$AC,Sheet1!S71_ItemType,$AD:$AD)","v":48925055},{"$f":"SUMIFS(Sheet1!S71_OY2BudgetAmount,Sheet1!S71_A2SubCode,$AC:$AC,Sheet1!S71_ItemType,$AD:$AD)","v":50871454},null,null,null,null,null,null,null,null,null,null,null,null,null,null,null,null,null,"1110","IE"]
["Municipal Manager, Town Secretary and Chief Executive",null,{"$f":"SUMIFS(Sheet1!S71_OriginalBudAmnt,Sheet1!S71_A2SubCode,$AC:$AC,Sheet1!S71_ItemType,$AD:$AD)","v":1463064},{"$f":"SUMIFS(Sheet1!S71_OriginalBudAmnt,Sheet1!S71_A2SubCode,$AC:$AC,Sheet1!S71_ItemType,$AD:$AD)","v":1463064},{"$f":"SUMIFS(Sheet1!S71_OriginalBudAmnt,Sheet1!S71_A2SubCode,$AC:$AC,Sheet1!S71_ItemType,$AD:$AD)","v":1463064},{"$f":"SUMIFS(Sheet1!S71_OriginalBudAmnt,Sheet1!S71_A2SubCode,$AC:$AC,Sheet1!S71_ItemType,$AD:$AD)","v":1463064},{"$f":"SUMIFS(Sheet1!S71_AdjustmentBudAmnt,Sheet1!S71_A2SubCode,$AC:$AC,Sheet1!S71_ItemType,$AD:$AD)","v":1608358},{"$f":"SUMIFS(Sheet1!S71_AdjustmentBudAmnt,Sheet1!S71_A2SubCode,$AC:$AC,Sheet1!S71_ItemType,$AD:$AD)","v":1608358},{"$f":"SUMIFS(Sheet1!S71_ASBudgetAmount,Sheet1!S71_A2SubCode,$AC:$AC,Sheet1!S71_ItemType,$AD:$AD)","v":1647982},{"$f":"SUMIFS(Sheet1!S71_OY1BudgetAmount,Sheet1!S71_A2SubCode,$AC:$AC,Sheet1!S71_ItemType,$AD:$AD)","v":1734700},{"$f":"SUMIFS(Sheet1!S71_OY2BudgetAmount,Sheet1!S71_A2SubCode,$AC:$AC,Sheet1!S71_ItemType,$AD:$AD)","v":1821867},null,null,null,null,null,null,null,null,null,null,null,null,null,null,null,null,null,"1120","IE"]
["Finance and administration",null,{"$f":"SUM(C132:C144)","v":291050291},291050291,291050291,291050291,287316473,287316473,313533919,322056068,332427431,null,null,null,null,null,null,null,null,null,null,null,null,null,null,null,null,null,null,"IE"]
["Administrative and Corporate Support",null,{"$f":"SUMIFS(Sheet1!S71_OriginalBudAmnt,Sheet1!S71_A2SubCode,$AC:$AC,Sheet1!S71_ItemType,$AD:$AD)","v":24868173},{"$f":"SUMIFS(Sheet1!S71_OriginalBudAmnt,Sheet1!S71_A2SubCode,$AC:$AC,Sheet1!S71_ItemType,$AD:$AD)","v":24868173},{"$f":"SUMIFS(Sheet1!S71_OriginalBudAmnt,Sheet1!S71_A2SubCode,$AC:$AC,Sheet1!S71_ItemType,$AD:$AD)","v":24868173},{"$f":"SUMIFS(Sheet1!S71_OriginalBudAmnt,Sheet1!S71_A2SubCode,$AC:$AC,Sheet1!S71_ItemType,$AD:$AD)","v":24868173},{"$f":"SUMIFS(Sheet1!S71_AdjustmentBudAmnt,Sheet1!S71_A2SubCode,$AC:$AC,Sheet1!S71_ItemType,$AD:$AD)","v":16672909},{"$f":"SUMIFS(Sheet1!S71_AdjustmentBudAmnt,Sheet1!S71_A2SubCode,$AC:$AC,Sheet1!S71_ItemType,$AD:$AD)","v":16672909},{"$f":"SUMIFS(Sheet1!S71_ASBudgetAmount,Sheet1!S71_A2SubCode,$AC:$AC,Sheet1!S71_ItemType,$AD:$AD)","v":26616214},{"$f":"SUMIFS(Sheet1!S71_OY1BudgetAmount,Sheet1!S71_A2SubCode,$AC:$AC,Sheet1!S71_ItemType,$AD:$AD)","v":27958108},{"$f":"SUMIFS(Sheet1!S71_OY2BudgetAmount,Sheet1!S71_A2SubCode,$AC:$AC,Sheet1!S71_ItemType,$AD:$AD)","v":29447228},null,null,null,null,null,null,null,null,null,null,null,null,null,null,null,null,null,"1201","IE"]
["Asset Management",null,{"$f":"SUMIFS(Sheet1!S71_OriginalBudAmnt,Sheet1!S71_A2SubCode,$AC:$AC,Sheet1!S71_ItemType,$AD:$AD)","v":83963073},{"$f":"SUMIFS(Sheet1!S71_OriginalBudAmnt,Sheet1!S71_A2SubCode,$AC:$AC,Sheet1!S71_ItemType,$AD:$AD)","v":83963073},{"$f":"SUMIFS(Sheet1!S71_OriginalBudAmnt,Sheet1!S71_A2SubCode,$AC:$AC,Sheet1!S71_ItemType,$AD:$AD)","v":83963073},{"$f":"SUMIFS(Sheet1!S71_OriginalBudAmnt,Sheet1!S71_A2SubCode,$AC:$AC,Sheet1!S71_ItemType,$AD:$AD)","v":83963073},{"$f":"SUMIFS(Sheet1!S71_AdjustmentBudAmnt,Sheet1!S71_A2SubCode,$AC:$AC,Sheet1!S71_ItemType,$AD:$AD)","v":82755997},{"$f":"SUMIFS(Sheet1!S71_AdjustmentBudAmnt,Sheet1!S71_A2SubCode,$AC:$AC,Sheet1!S71_ItemType,$AD:$AD)","v":82755997},{"$f":"SUMIFS(Sheet1!S71_ASBudgetAmount,Sheet1!S71_A2SubCode,$AC:$AC,Sheet1!S71_ItemType,$AD:$AD)","v":14842898},{"$f":"SUMIFS(Sheet1!S71_OY1BudgetAmount,Sheet1!S71_A2SubCode,$AC:$AC,Sheet1!S71_ItemType,$AD:$AD)","v":15971288},{"$f":"SUMIFS(Sheet1!S71_OY2BudgetAmount,Sheet1!S71_A2SubCode,$AC:$AC,Sheet1!S71_ItemType,$AD:$AD)","v":16398396},null,null,null,null,null,null,null,null,null,null,null,null,null,null,null,null,null,"1202","IE"]
["Finance",null,{"$f":"SUMIFS(Sheet1!S71_OriginalBudAmnt,Sheet1!S71_A2SubCode,$AC:$AC,Sheet1!S71_ItemType,$AD:$AD)","v":65156311},{"$f":"SUMIFS(Sheet1!S71_OriginalBudAmnt,Sheet1!S71_A2SubCode,$AC:$AC,Sheet1!S71_ItemType,$AD:$AD)","v":65156311},{"$f":"SUMIFS(Sheet1!S71_OriginalBudAmnt,Sheet1!S71_A2SubCode,$AC:$AC,Sheet1!S71_ItemType,$AD:$AD)","v":65156311},{"$f":"SUMIFS(Sheet1!S71_OriginalBudAmnt,Sheet1!S71_A2SubCode,$AC:$AC,Sheet1!S71_ItemType,$AD:$AD)","v":65156311},{"$f":"SUMIFS(Sheet1!S71_AdjustmentBudAmnt,Sheet1!S71_A2SubCode,$AC:$AC,Sheet1!S71_ItemType,$AD:$AD)","v":62443129},{"$f":"SUMIFS(Sheet1!S71_AdjustmentBudAmnt,Sheet1!S71_A2SubCode,$AC:$AC,Sheet1!S71_ItemType,$AD:$AD)","v":62443129},{"$f":"SUMIFS(Sheet1!S71_ASBudgetAmount,Sheet1!S71_A2SubCode,$AC:$AC,Sheet1!S71_ItemType,$AD:$AD)","v":66918234},{"$f":"SUMIFS(Sheet1!S71_OY1BudgetAmount,Sheet1!S71_A2SubCode,$AC:$AC,Sheet1!S71_ItemType,$AD:$AD)","v":66098324},{"$f":"SUMIFS(Sheet1!S71_OY2BudgetAmount,Sheet1!S71_A2SubCode,$AC:$AC,Sheet1!S71_ItemType,$AD:$AD)","v":68596858},null,null,null,null,null,null,null,null,null,null,null,null,null,null,null,null,null,"1204","IE"]
["Fleet Management",null,{"$f":"SUMIFS(Sheet1!S71_OriginalBudAmnt,Sheet1!S71_A2SubCode,$AC:$AC,Sheet1!S71_ItemType,$AD:$AD)","v":19422639},{"$f":"SUMIFS(Sheet1!S71_OriginalBudAmnt,Sheet1!S71_A2SubCode,$AC:$AC,Sheet1!S71_ItemType,$AD:$AD)","v":19422639},{"$f":"SUMIFS(Sheet1!S71_OriginalBudAmnt,Sheet1!S71_A2SubCode,$AC:$AC,Sheet1!S71_ItemType,$AD:$AD)","v":19422639},{"$f":"SUMIFS(Sheet1!S71_OriginalBudAmnt,Sheet1!S71_A2SubCode,$AC:$AC,Sheet1!S71_ItemType,$AD:$AD)","v":19422639},{"$f":"SUMIFS(Sheet1!S71_AdjustmentBudAmnt,Sheet1!S71_A2SubCode,$AC:$AC,Sheet1!S71_ItemType,$AD:$AD)","v":23647762},{"$f":"SUMIFS(Sheet1!S71_AdjustmentBudAmnt,Sheet1!S71_A2SubCode,$AC:$AC,Sheet1!S71_ItemType,$AD:$AD)","v":23647762},{"$f":"SUMIFS(Sheet1!S71_ASBudgetAmount,Sheet1!S71_A2SubCode,$AC:$AC,Sheet1!S71_ItemType,$AD:$AD)","v":94042538},{"$f":"SUMIFS(Sheet1!S71_OY1BudgetAmount,Sheet1!S71_A2SubCode,$AC:$AC,Sheet1!S71_ItemType,$AD:$AD)","v":94622032},{"$f":"SUMIFS(Sheet1!S71_OY2BudgetAmount,Sheet1!S71_A2SubCode,$AC:$AC,Sheet1!S71_ItemType,$AD:$AD)","v":95252231},null,null,null,null,null,null,null,null,null,null,null,null,null,null,null,null,null,"1205","IE"]
["Human Resources",null,{"$f":"SUMIFS(Sheet1!S71_OriginalBudAmnt,Sheet1!S71_A2SubCode,$AC:$AC,Sheet1!S71_ItemType,$AD:$AD)","v":18796452},{"$f":"SUMIFS(Sheet1!S71_OriginalBudAmnt,Sheet1!S71_A2SubCode,$AC:$AC,Sheet1!S71_ItemType,$AD:$AD)","v":18796452},{"$f":"SUMIFS(Sheet1!S71_OriginalBudAmnt,Sheet1!S71_A2SubCode,$AC:$AC,Sheet1!S71_ItemType,$AD:$AD)","v":18796452},{"$f":"SUMIFS(Sheet1!S71_OriginalBudAmnt,Sheet1!S71_A2SubCode,$AC:$AC,Sheet1!S71_ItemType,$AD:$AD)","v":18796452},{"$f":"SUMIFS(Sheet1!S71_AdjustmentBudAmnt,Sheet1!S71_A2SubCode,$AC:$AC,Sheet1!S71_ItemType,$AD:$AD)","v":18322080},{"$f":"SUMIFS(Sheet1!S71_AdjustmentBudAmnt,Sheet1!S71_A2SubCode,$AC:$AC,Sheet1!S71_ItemType,$AD:$AD)","v":18322080},{"$f":"SUMIFS(Sheet1!S71_ASBudgetAmount,Sheet1!S71_A2SubCode,$AC:$AC,Sheet1!S71_ItemType,$AD:$AD)","v":21454632},{"$f":"SUMIFS(Sheet1!S71_OY1BudgetAmount,Sheet1!S71_A2SubCode,$AC:$AC,Sheet1!S71_ItemType,$AD:$AD)","v":23232647},{"$f":"SUMIFS(Sheet1!S71_OY2BudgetAmount,Sheet1!S71_A2SubCode,$AC:$AC,Sheet1!S71_ItemType,$AD:$AD)","v":24022108},null,null,null,null,null,null,null,null,null,null,null,null,null,null,null,null,null,"1206","IE"]
["Information Technology",null,{"$f":"SUMIFS(Sheet1!S71_OriginalBudAmnt,Sheet1!S71_A2SubCode,$AC:$AC,Sheet1!S71_ItemType,$AD:$AD)","v":13985194},{"$f":"SUMIFS(Sheet1!S71_OriginalBudAmnt,Sheet1!S71_A2SubCode,$AC:$AC,Sheet1!S71_ItemType,$AD:$AD)","v":13985194},{"$f":"SUMIFS(Sheet1!S71_OriginalBudAmnt,Sheet1!S71_A2SubCode,$AC:$AC,Sheet1!S71_ItemType,$AD:$AD)","v":13985194},{"$f":"SUMIFS(Sheet1!S71_OriginalBudAmnt,Sheet1!S71_A2SubCode,$AC:$AC,Sheet1!S71_ItemType,$AD:$AD)","v":13985194},{"$f":"SUMIFS(Sheet1!S71_AdjustmentBudAmnt,Sheet1!S71_A2SubCode,$AC:$AC,Sheet1!S71_ItemType,$AD:$AD)","v":17117126},{"$f":"SUMIFS(Sheet1!S71_AdjustmentBudAmnt,Sheet1!S71_A2SubCode,$AC:$AC,Sheet1!S71_ItemType,$AD:$AD)","v":17117126},{"$f":"SUMIFS(Sheet1!S71_ASBudgetAmount,Sheet1!S71_A2SubCode,$AC:$AC,Sheet1!S71_ItemType,$AD:$AD)","v":16313555},{"$f":"SUMIFS(Sheet1!S71_OY1BudgetAmount,Sheet1!S71_A2SubCode,$AC:$AC,Sheet1!S71_ItemType,$AD:$AD)","v":16800820},{"$f":"SUMIFS(Sheet1!S71_OY2BudgetAmount,Sheet1!S71_A2SubCode,$AC:$AC,Sheet1!S71_ItemType,$AD:$AD)","v":17251714},null,null,null,null,null,null,null,null,null,null,null,null,null,null,null,null,null,"1207","IE"]
["Legal Services",null,{"$f":"SUMIFS(Sheet1!S71_OriginalBudAmnt,Sheet1!S71_A2SubCode,$AC:$AC,Sheet1!S71_ItemType,$AD:$AD)","v":8284609},{"$f":"SUMIFS(Sheet1!S71_OriginalBudAmnt,Sheet1!S71_A2SubCode,$AC:$AC,Sheet1!S71_ItemType,$AD:$AD)","v":8284609},{"$f":"SUMIFS(Sheet1!S71_OriginalBudAmnt,Sheet1!S71_A2SubCode,$AC:$AC,Sheet1!S71_ItemType,$AD:$AD)","v":8284609},{"$f":"SUMIFS(Sheet1!S71_OriginalBudAmnt,Sheet1!S71_A2SubCode,$AC:$AC,Sheet1!S71_ItemType,$AD:$AD)","v":8284609},{"$f":"SUMIFS(Sheet1!S71_AdjustmentBudAmnt,Sheet1!S71_A2SubCode,$AC:$AC,Sheet1!S71_ItemType,$AD:$AD)","v":14295664},{"$f":"SUMIFS(Sheet1!S71_AdjustmentBudAmnt,Sheet1!S71_A2SubCode,$AC:$AC,Sheet1!S71_ItemType,$AD:$AD)","v":14295664},{"$f":"SUMIFS(Sheet1!S71_ASBudgetAmount,Sheet1!S71_A2SubCode,$AC:$AC,Sheet1!S71_ItemType,$AD:$AD)","v":11483169},{"$f":"SUMIFS(Sheet1!S71_OY1BudgetAmount,Sheet1!S71_A2SubCode,$AC:$AC,Sheet1!S71_ItemType,$AD:$AD)","v":12574439},{"$f":"SUMIFS(Sheet1!S71_OY2BudgetAmount,Sheet1!S71_A2SubCode,$AC:$AC,Sheet1!S71_ItemType,$AD:$AD)","v":13666069},null,null,null,null,null,null,null,null,null,null,null,null,null,null,null,null,null,"1208","IE"]
["Marketing, Customer Relations, Publicity and Media Co-ordination",null,{"$f":"SUMIFS(Sheet1!S71_OriginalBudAmnt,Sheet1!S71_A2SubCode,$AC:$AC,Sheet1!S71_ItemType,$AD:$AD)","v":0},{"$f":"SUMIFS(Sheet1!S71_OriginalBudAmnt,Sheet1!S71_A2SubCode,$AC:$AC,Sheet1!S71_ItemType,$AD:$AD)","v":0},{"$f":"SUMIFS(Sheet1!S71_OriginalBudAmnt,Sheet1!S71_A2SubCode,$AC:$AC,Sheet1!S71_ItemType,$AD:$AD)","v":0},{"$f":"SUMIFS(Sheet1!S71_OriginalBudAmnt,Sheet1!S71_A2SubCode,$AC:$AC,Sheet1!S71_ItemType,$AD:$AD)","v":0},{"$f":"SUMIFS(Sheet1!S71_AdjustmentBudAmnt,Sheet1!S71_A2SubCode,$AC:$AC,Sheet1!S71_ItemType,$AD:$AD)","v":0},{"$f":"SUMIFS(Sheet1!S71_AdjustmentBudAmnt,Sheet1!S71_A2SubCode,$AC:$AC,Sheet1!S71_ItemType,$AD:$AD)","v":0},{"$f":"SUMIFS(Sheet1!S71_ASBudgetAmount,Sheet1!S71_A2SubCode,$AC:$AC,Sheet1!S71_ItemType,$AD:$AD)","v":0},{"$f":"SUMIFS(Sheet1!S71_OY1BudgetAmount,Sheet1!S71_A2SubCode,$AC:$AC,Sheet1!S71_ItemType,$AD:$AD)","v":0},{"$f":"SUMIFS(Sheet1!S71_OY2BudgetAmount,Sheet1!S71_A2SubCode,$AC:$AC,Sheet1!S71_ItemType,$AD:$AD)","v":0},null,null,null,null,null,null,null,null,null,null,null,null,null,null,null,null,null,"1209","IE"]
["Property Services",null,{"$f":"SUMIFS(Sheet1!S71_OriginalBudAmnt,Sheet1!S71_A2SubCode,$AC:$AC,Sheet1!S71_ItemType,$AD:$AD)","v":15214855},{"$f":"SUMIFS(Sheet1!S71_OriginalBudAmnt,Sheet1!S71_A2SubCode,$AC:$AC,Sheet1!S71_ItemType,$AD:$AD)","v":15214855},{"$f":"SUMIFS(Sheet1!S71_OriginalBudAmnt,Sheet1!S71_A2SubCode,$AC:$AC,Sheet1!S71_ItemType,$AD:$AD)","v":15214855},{"$f":"SUMIFS(Sheet1!S71_OriginalBudAmnt,Sheet1!S71_A2SubCode,$AC:$AC,Sheet1!S71_ItemType,$AD:$AD)","v":15214855},{"$f":"SUMIFS(Sheet1!S71_AdjustmentBudAmnt,Sheet1!S71_A2SubCode,$AC:$AC,Sheet1!S71_ItemType,$AD:$AD)","v":11816449},{"$f":"SUMIFS(Sheet1!S71_AdjustmentBudAmnt,Sheet1!S71_A2SubCode,$AC:$AC,Sheet1!S71_ItemType,$AD:$AD)","v":11816449},{"$f":"SUMIFS(Sheet1!S71_ASBudgetAmount,Sheet1!S71_A2SubCode,$AC:$AC,Sheet1!S71_ItemType,$AD:$AD)","v":17083774},{"$f":"SUMIFS(Sheet1!S71_OY1BudgetAmount,Sheet1!S71_A2SubCode,$AC:$AC,Sheet1!S71_ItemType,$AD:$AD)","v":17683064},{"$f":"SUMIFS(Sheet1!S71_OY2BudgetAmount,Sheet1!S71_A2SubCode,$AC:$AC,Sheet1!S71_ItemType,$AD:$AD)","v":18407314},null,null,null,null,null,null,null,null,null,null,null,null,null,null,null,null,null,"1210","IE"]
["Risk Management",null,{"$f":"SUMIFS(Sheet1!S71_OriginalBudAmnt,Sheet1!S71_A2SubCode,$AC:$AC,Sheet1!S71_ItemType,$AD:$AD)","v":12995069},{"$f":"SUMIFS(Sheet1!S71_OriginalBudAmnt,Sheet1!S71_A2SubCode,$AC:$AC,Sheet1!S71_ItemType,$AD:$AD)","v":12995069},{"$f":"SUMIFS(Sheet1!S71_OriginalBudAmnt,Sheet1!S71_A2SubCode,$AC:$AC,Sheet1!S71_ItemType,$AD:$AD)","v":12995069},{"$f":"SUMIFS(Sheet1!S71_OriginalBudAmnt,Sheet1!S71_A2SubCode,$AC:$AC,Sheet1!S71_ItemType,$AD:$AD)","v":12995069},{"$f":"SUMIFS(Sheet1!S71_AdjustmentBudAmnt,Sheet1!S71_A2SubCode,$AC:$AC,Sheet1!S71_ItemType,$AD:$AD)","v":14377574},{"$f":"SUMIFS(Sheet1!S71_AdjustmentBudAmnt,Sheet1!S71_A2SubCode,$AC:$AC,Sheet1!S71_ItemType,$AD:$AD)","v":14377574},{"$f":"SUMIFS(Sheet1!S71_ASBudgetAmount,Sheet1!S71_A2SubCode,$AC:$AC,Sheet1!S71_ItemType,$AD:$AD)","v":14426758},{"$f":"SUMIFS(Sheet1!S71_OY1BudgetAmount,Sheet1!S71_A2SubCode,$AC:$AC,Sheet1!S71_ItemType,$AD:$AD)","v":15104803},{"$f":"SUMIFS(Sheet1!S71_OY2BudgetAmount,Sheet1!S71_A2SubCode,$AC:$AC,Sheet1!S71_ItemType,$AD:$AD)","v":15813284},null,null,null,null,null,null,null,null,null,null,null,null,null,null,null,null,null,"1211","IE"]
["Security Services",null,{"$f":"SUMIFS(Sheet1!S71_OriginalBudAmnt,Sheet1!S71_A2SubCode,$AC:$AC,Sheet1!S71_ItemType,$AD:$AD)","v":18483093},{"$f":"SUMIFS(Sheet1!S71_OriginalBudAmnt,Sheet1!S71_A2SubCode,$AC:$AC,Sheet1!S71_ItemType,$AD:$AD)","v":18483093},{"$f":"SUMIFS(Sheet1!S71_OriginalBudAmnt,Sheet1!S71_A2SubCode,$AC:$AC,Sheet1!S71_ItemType,$AD:$AD)","v":18483093},{"$f":"SUMIFS(Sheet1!S71_OriginalBudAmnt,Sheet1!S71_A2SubCode,$AC:$AC,Sheet1!S71_ItemType,$AD:$AD)","v":18483093},{"$f":"SUMIFS(Sheet1!S71_AdjustmentBudAmnt,Sheet1!S71_A2SubCode,$AC:$AC,Sheet1!S71_ItemType,$AD:$AD)","v":17129385},{"$f":"SUMIFS(Sheet1!S71_AdjustmentBudAmnt,Sheet1!S71_A2SubCode,$AC:$AC,Sheet1!S71_ItemType,$AD:$AD)","v":17129385},{"$f":"SUMIFS(Sheet1!S71_ASBudgetAmount,Sheet1!S71_A2SubCode,$AC:$AC,Sheet1!S71_ItemType,$AD:$AD)","v":19585560},{"$f":"SUMIFS(Sheet1!S71_OY1BudgetAmount,Sheet1!S71_A2SubCode,$AC:$AC,Sheet1!S71_ItemType,$AD:$AD)","v":20662151},{"$f":"SUMIFS(Sheet1!S71_OY2BudgetAmount,Sheet1!S71_A2SubCode,$AC:$AC,Sheet1!S71_ItemType,$AD:$AD)","v":21654976},null,null,null,null,null,null,null,null,null,null,null,null,null,null,null,null,null,"1212","IE"]
["Supply Chain Management ",null,{"$f":"SUMIFS(Sheet1!S71_OriginalBudAmnt,Sheet1!S71_A2SubCode,$AC:$AC,Sheet1!S71_ItemType,$AD:$AD)","v":9880823},{"$f":"SUMIFS(Sheet1!S71_OriginalBudAmnt,Sheet1!S71_A2SubCode,$AC:$AC,Sheet1!S71_ItemType,$AD:$AD)","v":9880823},{"$f":"SUMIFS(Sheet1!S71_OriginalBudAmnt,Sheet1!S71_A2SubCode,$AC:$AC,Sheet1!S71_ItemType,$AD:$AD)","v":9880823},{"$f":"SUMIFS(Sheet1!S71_OriginalBudAmnt,Sheet1!S71_A2SubCode,$AC:$AC,Sheet1!S71_ItemType,$AD:$AD)","v":9880823},{"$f":"SUMIFS(Sheet1!S71_AdjustmentBudAmnt,Sheet1!S71_A2SubCode,$AC:$AC,Sheet1!S71_ItemType,$AD:$AD)","v":8738398},{"$f":"SUMIFS(Sheet1!S71_AdjustmentBudAmnt,Sheet1!S71_A2SubCode,$AC:$AC,Sheet1!S71_ItemType,$AD:$AD)","v":8738398},{"$f":"SUMIFS(Sheet1!S71_ASBudgetAmount,Sheet1!S71_A2SubCode,$AC:$AC,Sheet1!S71_ItemType,$AD:$AD)","v":10766587},{"$f":"SUMIFS(Sheet1!S71_OY1BudgetAmount,Sheet1!S71_A2SubCode,$AC:$AC,Sheet1!S71_ItemType,$AD:$AD)","v":11348392},{"$f":"SUMIFS(Sheet1!S71_OY2BudgetAmount,Sheet1!S71_A2SubCode,$AC:$AC,Sheet1!S71_ItemType,$AD:$AD)","v":11917253},null,null,null,null,null,null,null,null,null,null,null,null,null,null,null,null,null,"1213","IE"]
["Valuation Service",null,{"$f":"SUMIFS(Sheet1!S71_OriginalBudAmnt,Sheet1!S71_A2SubCode,$AC:$AC,Sheet1!S71_ItemType,$AD:$AD)","v":0},{"$f":"SUMIFS(Sheet1!S71_OriginalBudAmnt,Sheet1!S71_A2SubCode,$AC:$AC,Sheet1!S71_ItemType,$AD:$AD)","v":0},{"$f":"SUMIFS(Sheet1!S71_OriginalBudAmnt,Sheet1!S71_A2SubCode,$AC:$AC,Sheet1!S71_ItemType,$AD:$AD)","v":0},{"$f":"SUMIFS(Sheet1!S71_OriginalBudAmnt,Sheet1!S71_A2SubCode,$AC:$AC,Sheet1!S71_ItemType,$AD:$AD)","v":0},{"$f":"SUMIFS(Sheet1!S71_AdjustmentBudAmnt,Sheet1!S71_A2SubCode,$AC:$AC,Sheet1!S71_ItemType,$AD:$AD)","v":0},{"$f":"SUMIFS(Sheet1!S71_AdjustmentBudAmnt,Sheet1!S71_A2SubCode,$AC:$AC,Sheet1!S71_ItemType,$AD:$AD)","v":0},{"$f":"SUMIFS(Sheet1!S71_ASBudgetAmount,Sheet1!S71_A2SubCode,$AC:$AC,Sheet1!S71_ItemType,$AD:$AD)","v":0},{"$f":"SUMIFS(Sheet1!S71_OY1BudgetAmount,Sheet1!S71_A2SubCode,$AC:$AC,Sheet1!S71_ItemType,$AD:$AD)","v":0},{"$f":"SUMIFS(Sheet1!S71_OY2BudgetAmount,Sheet1!S71_A2SubCode,$AC:$AC,Sheet1!S71_ItemType,$AD:$AD)","v":0},null,null,null,null,null,null,null,null,null,null,null,null,null,null,null,null,null,"1214","IE"]
["Internal audit",null,{"$f":"SUM(C146:C146)","v":2906846},2906846,2906846,2906846,2977183,2977183,3007269,3131966,3283421,null,null,null,null,null,null,null,null,null,null,null,null,null,null,null,null,null,null,"IE"]
["Governance Function",null,{"$f":"SUMIFS(Sheet1!S71_OriginalBudAmnt,Sheet1!S71_A2SubCode,$AC:$AC,Sheet1!S71_ItemType,$AD:$AD)","v":2906846},{"$f":"SUMIFS(Sheet1!S71_OriginalBudAmnt,Sheet1!S71_A2SubCode,$AC:$AC,Sheet1!S71_ItemType,$AD:$AD)","v":2906846},{"$f":"SUMIFS(Sheet1!S71_OriginalBudAmnt,Sheet1!S71_A2SubCode,$AC:$AC,Sheet1!S71_ItemType,$AD:$AD)","v":2906846},{"$f":"SUMIFS(Sheet1!S71_OriginalBudAmnt,Sheet1!S71_A2SubCode,$AC:$AC,Sheet1!S71_ItemType,$AD:$AD)","v":2906846},{"$f":"SUMIFS(Sheet1!S71_AdjustmentBudAmnt,Sheet1!S71_A2SubCode,$AC:$AC,Sheet1!S71_ItemType,$AD:$AD)","v":2977183},{"$f":"SUMIFS(Sheet1!S71_AdjustmentBudAmnt,Sheet1!S71_A2SubCode,$AC:$AC,Sheet1!S71_ItemType,$AD:$AD)","v":2977183},{"$f":"SUMIFS(Sheet1!S71_ASBudgetAmount,Sheet1!S71_A2SubCode,$AC:$AC,Sheet1!S71_ItemType,$AD:$AD)","v":3007269},{"$f":"SUMIFS(Sheet1!S71_OY1BudgetAmount,Sheet1!S71_A2SubCode,$AC:$AC,Sheet1!S71_ItemType,$AD:$AD)","v":3131966},{"$f":"SUMIFS(Sheet1!S71_OY2BudgetAmount,Sheet1!S71_A2SubCode,$AC:$AC,Sheet1!S71_ItemType,$AD:$AD)","v":3283421},null,null,null,null,null,null,null,null,null,null,null,null,null,null,null,null,null,"1301","IE"]
["Community and public safety",null,{"$f":"C148+C170+C176+C185+C188","v":27131756},27131756,27131756,27131756,23900655,23900655,26350054,27169372,28367906,null,null,null,null,null,null,null,null,null,null,null,null,null,null,null,null,null,null,"IE"]
["Community and social services",null,{"$f":"SUM(C149:C169)","v":17296087},{"$f":"SUM(D149:D169)","v":17296087},17296087,17296087,12965263,12965263,16180393,16720628,17437753,null,null,null,null,null,null,null,null,null,null,null,null,null,null,null,null,null,null,"IE"]
["Aged Care",null,{"$f":"SUMIFS(Sheet1!S71_OriginalBudAmnt,Sheet1!S71_A2SubCode,$AC:$AC,Sheet1!S71_ItemType,$AD:$AD)","v":0},{"$f":"SUMIFS(Sheet1!S71_OriginalBudAmnt,Sheet1!S71_A2SubCode,$AC:$AC,Sheet1!S71_ItemType,$AD:$AD)","v":0},{"$f":"SUMIFS(Sheet1!S71_OriginalBudAmnt,Sheet1!S71_A2SubCode,$AC:$AC,Sheet1!S71_ItemType,$AD:$AD)","v":0},{"$f":"SUMIFS(Sheet1!S71_OriginalBudAmnt,Sheet1!S71_A2SubCode,$AC:$AC,Sheet1!S71_ItemType,$AD:$AD)","v":0},{"$f":"SUMIFS(Sheet1!S71_AdjustmentBudAmnt,Sheet1!S71_A2SubCode,$AC:$AC,Sheet1!S71_ItemType,$AD:$AD)","v":0},{"$f":"SUMIFS(Sheet1!S71_AdjustmentBudAmnt,Sheet1!S71_A2SubCode,$AC:$AC,Sheet1!S71_ItemType,$AD:$AD)","v":0},{"$f":"SUMIFS(Sheet1!S71_ASBudgetAmount,Sheet1!S71_A2SubCode,$AC:$AC,Sheet1!S71_ItemType,$AD:$AD)","v":0},{"$f":"SUMIFS(Sheet1!S71_OY1BudgetAmount,Sheet1!S71_A2SubCode,$AC:$AC,Sheet1!S71_ItemType,$AD:$AD)","v":0},{"$f":"SUMIFS(Sheet1!S71_OY2BudgetAmount,Sheet1!S71_A2SubCode,$AC:$AC,Sheet1!S71_ItemType,$AD:$AD)","v":0},null,null,null,null,null,null,null,null,null,null,null,null,null,null,null,null,null,"2101","IE"]
["Agricultural",null,{"$f":"SUMIFS(Sheet1!S71_OriginalBudAmnt,Sheet1!S71_A2SubCode,$AC:$AC,Sheet1!S71_ItemType,$AD:$AD)","v":0},{"$f":"SUMIFS(Sheet1!S71_OriginalBudAmnt,Sheet1!S71_A2SubCode,$AC:$AC,Sheet1!S71_ItemType,$AD:$AD)","v":0},{"$f":"SUMIFS(Sheet1!S71_OriginalBudAmnt,Sheet1!S71_A2SubCode,$AC:$AC,Sheet1!S71_ItemType,$AD:$AD)","v":0},{"$f":"SUMIFS(Sheet1!S71_OriginalBudAmnt,Sheet1!S71_A2SubCode,$AC:$AC,Sheet1!S71_ItemType,$AD:$AD)","v":0},{"$f":"SUMIFS(Sheet1!S71_AdjustmentBudAmnt,Sheet1!S71_A2SubCode,$AC:$AC,Sheet1!S71_ItemType,$AD:$AD)","v":0},{"$f":"SUMIFS(Sheet1!S71_AdjustmentBudAmnt,Sheet1!S71_A2SubCode,$AC:$AC,Sheet1!S71_ItemType,$AD:$AD)","v":0},{"$f":"SUMIFS(Sheet1!S71_ASBudgetAmount,Sheet1!S71_A2SubCode,$AC:$AC,Sheet1!S71_ItemType,$AD:$AD)","v":0},{"$f":"SUMIFS(Sheet1!S71_OY1BudgetAmount,Sheet1!S71_A2SubCode,$AC:$AC,Sheet1!S71_ItemType,$AD:$AD)","v":0},{"$f":"SUMIFS(Sheet1!S71_OY2BudgetAmount,Sheet1!S71_A2SubCode,$AC:$AC,Sheet1!S71_ItemType,$AD:$AD)","v":0},null,null,null,null,null,null,null,null,null,null,null,null,null,null,null,null,null,"2102","IE"]
["Animal Care and Diseases",null,{"$f":"SUMIFS(Sheet1!S71_OriginalBudAmnt,Sheet1!S71_A2SubCode,$AC:$AC,Sheet1!S71_ItemType,$AD:$AD)","v":1000993},{"$f":"SUMIFS(Sheet1!S71_OriginalBudAmnt,Sheet1!S71_A2SubCode,$AC:$AC,Sheet1!S71_ItemType,$AD:$AD)","v":1000993},{"$f":"SUMIFS(Sheet1!S71_OriginalBudAmnt,Sheet1!S71_A2SubCode,$AC:$AC,Sheet1!S71_ItemType,$AD:$AD)","v":1000993},{"$f":"SUMIFS(Sheet1!S71_OriginalBudAmnt,Sheet1!S71_A2SubCode,$AC:$AC,Sheet1!S71_ItemType,$AD:$AD)","v":1000993},{"$f":"SUMIFS(Sheet1!S71_AdjustmentBudAmnt,Sheet1!S71_A2SubCode,$AC:$AC,Sheet1!S71_ItemType,$AD:$AD)","v":557524},{"$f":"SUMIFS(Sheet1!S71_AdjustmentBudAmnt,Sheet1!S71_A2SubCode,$AC:$AC,Sheet1!S71_ItemType,$AD:$AD)","v":557524},{"$f":"SUMIFS(Sheet1!S71_ASBudgetAmount,Sheet1!S71_A2SubCode,$AC:$AC,Sheet1!S71_ItemType,$AD:$AD)","v":1170147},{"$f":"SUMIFS(Sheet1!S71_OY1BudgetAmount,Sheet1!S71_A2SubCode,$AC:$AC,Sheet1!S71_ItemType,$AD:$AD)","v":1230740},{"$f":"SUMIFS(Sheet1!S71_OY2BudgetAmount,Sheet1!S71_A2SubCode,$AC:$AC,Sheet1!S71_ItemType,$AD:$AD)","v":1291490},null,null,null,null,null,null,null,null,null,null,null,null,null,null,null,null,null,"2103","IE"]
["Cemeteries, Funeral Parlours and Crematoriums",null,{"$f":"SUMIFS(Sheet1!S71_OriginalBudAmnt,Sheet1!S71_A2SubCode,$AC:$AC,Sheet1!S71_ItemType,$AD:$AD)","v":4012837},{"$f":"SUMIFS(Sheet1!S71_OriginalBudAmnt,Sheet1!S71_A2SubCode,$AC:$AC,Sheet1!S71_ItemType,$AD:$AD)","v":4012837},{"$f":"SUMIFS(Sheet1!S71_OriginalBudAmnt,Sheet1!S71_A2SubCode,$AC:$AC,Sheet1!S71_ItemType,$AD:$AD)","v":4012837},{"$f":"SUMIFS(Sheet1!S71_OriginalBudAmnt,Sheet1!S71_A2SubCode,$AC:$AC,Sheet1!S71_ItemType,$AD:$AD)","v":4012837},{"$f":"SUMIFS(Sheet1!S71_AdjustmentBudAmnt,Sheet1!S71_A2SubCode,$AC:$AC,Sheet1!S71_ItemType,$AD:$AD)","v":2714172},{"$f":"SUMIFS(Sheet1!S71_AdjustmentBudAmnt,Sheet1!S71_A2SubCode,$AC:$AC,Sheet1!S71_ItemType,$AD:$AD)","v":2714172},{"$f":"SUMIFS(Sheet1!S71_ASBudgetAmount,Sheet1!S71_A2SubCode,$AC:$AC,Sheet1!S71_ItemType,$AD:$AD)","v":4257993},{"$f":"SUMIFS(Sheet1!S71_OY1BudgetAmount,Sheet1!S71_A2SubCode,$AC:$AC,Sheet1!S71_ItemType,$AD:$AD)","v":4410858},{"$f":"SUMIFS(Sheet1!S71_OY2BudgetAmount,Sheet1!S71_A2SubCode,$AC:$AC,Sheet1!S71_ItemType,$AD:$AD)","v":4585659},null,null,null,null,null,null,null,null,null,null,null,null,null,null,null,null,null,"2104","IE"]
["Child Care Facilities",null,{"$f":"SUMIFS(Sheet1!S71_OriginalBudAmnt,Sheet1!S71_A2SubCode,$AC:$AC,Sheet1!S71_ItemType,$AD:$AD)","v":0},{"$f":"SUMIFS(Sheet1!S71_OriginalBudAmnt,Sheet1!S71_A2SubCode,$AC:$AC,Sheet1!S71_ItemType,$AD:$AD)","v":0},{"$f":"SUMIFS(Sheet1!S71_OriginalBudAmnt,Sheet1!S71_A2SubCode,$AC:$AC,Sheet1!S71_ItemType,$AD:$AD)","v":0},{"$f":"SUMIFS(Sheet1!S71_OriginalBudAmnt,Sheet1!S71_A2SubCode,$AC:$AC,Sheet1!S71_ItemType,$AD:$AD)","v":0},{"$f":"SUMIFS(Sheet1!S71_AdjustmentBudAmnt,Sheet1!S71_A2SubCode,$AC:$AC,Sheet1!S71_ItemType,$AD:$AD)","v":0},{"$f":"SUMIFS(Sheet1!S71_AdjustmentBudAmnt,Sheet1!S71_A2SubCode,$AC:$AC,Sheet1!S71_ItemType,$AD:$AD)","v":0},{"$f":"SUMIFS(Sheet1!S71_ASBudgetAmount,Sheet1!S71_A2SubCode,$AC:$AC,Sheet1!S71_ItemType,$AD:$AD)","v":0},{"$f":"SUMIFS(Sheet1!S71_OY1BudgetAmount,Sheet1!S71_A2SubCode,$AC:$AC,Sheet1!S71_ItemType,$AD:$AD)","v":0},{"$f":"SUMIFS(Sheet1!S71_OY2BudgetAmount,Sheet1!S71_A2SubCode,$AC:$AC,Sheet1!S71_ItemType,$AD:$AD)","v":0},null,null,null,null,null,null,null,null,null,null,null,null,null,null,null,null,null,"2105","IE"]
["Community Halls and Facilities",null,{"$f":"SUMIFS(Sheet1!S71_OriginalBudAmnt,Sheet1!S71_A2SubCode,$AC:$AC,Sheet1!S71_ItemType,$AD:$AD)","v":8416224},{"$f":"SUMIFS(Sheet1!S71_OriginalBudAmnt,Sheet1!S71_A2SubCode,$AC:$AC,Sheet1!S71_ItemType,$AD:$AD)","v":8416224},{"$f":"SUMIFS(Sheet1!S71_OriginalBudAmnt,Sheet1!S71_A2SubCode,$AC:$AC,Sheet1!S71_ItemType,$AD:$AD)","v":8416224},{"$f":"SUMIFS(Sheet1!S71_OriginalBudAmnt,Sheet1!S71_A2SubCode,$AC:$AC,Sheet1!S71_ItemType,$AD:$AD)","v":8416224},{"$f":"SUMIFS(Sheet1!S71_AdjustmentBudAmnt,Sheet1!S71_A2SubCode,$AC:$AC,Sheet1!S71_ItemType,$AD:$AD)","v":7087647},{"$f":"SUMIFS(Sheet1!S71_AdjustmentBudAmnt,Sheet1!S71_A2SubCode,$AC:$AC,Sheet1!S71_ItemType,$AD:$AD)","v":7087647},{"$f":"SUMIFS(Sheet1!S71_ASBudgetAmount,Sheet1!S71_A2SubCode,$AC:$AC,Sheet1!S71_ItemType,$AD:$AD)","v":6486049},{"$f":"SUMIFS(Sheet1!S71_OY1BudgetAmount,Sheet1!S71_A2SubCode,$AC:$AC,Sheet1!S71_ItemType,$AD:$AD)","v":6758350},{"$f":"SUMIFS(Sheet1!S71_OY2BudgetAmount,Sheet1!S71_A2SubCode,$AC:$AC,Sheet1!S71_ItemType,$AD:$AD)","v":7086270},null,null,null,null,null,null,null,null,null,null,null,null,null,null,null,null,null,"2106","IE"]
["Consumer Protection",null,{"$f":"SUMIFS(Sheet1!S71_OriginalBudAmnt,Sheet1!S71_A2SubCode,$AC:$AC,Sheet1!S71_ItemType,$AD:$AD)","v":0},{"$f":"SUMIFS(Sheet1!S71_OriginalBudAmnt,Sheet1!S71_A2SubCode,$AC:$AC,Sheet1!S71_ItemType,$AD:$AD)","v":0},{"$f":"SUMIFS(Sheet1!S71_OriginalBudAmnt,Sheet1!S71_A2SubCode,$AC:$AC,Sheet1!S71_ItemType,$AD:$AD)","v":0},{"$f":"SUMIFS(Sheet1!S71_OriginalBudAmnt,Sheet1!S71_A2SubCode,$AC:$AC,Sheet1!S71_ItemType,$AD:$AD)","v":0},{"$f":"SUMIFS(Sheet1!S71_AdjustmentBudAmnt,Sheet1!S71_A2SubCode,$AC:$AC,Sheet1!S71_ItemType,$AD:$AD)","v":0},{"$f":"SUMIFS(Sheet1!S71_AdjustmentBudAmnt,Sheet1!S71_A2SubCode,$AC:$AC,Sheet1!S71_ItemType,$AD:$AD)","v":0},{"$f":"SUMIFS(Sheet1!S71_ASBudgetAmount,Sheet1!S71_A2SubCode,$AC:$AC,Sheet1!S71_ItemType,$AD:$AD)","v":0},{"$f":"SUMIFS(Sheet1!S71_OY1BudgetAmount,Sheet1!S71_A2SubCode,$AC:$AC,Sheet1!S71_ItemType,$AD:$AD)","v":0},{"$f":"SUMIFS(Sheet1!S71_OY2BudgetAmount,Sheet1!S71_A2SubCode,$AC:$AC,Sheet1!S71_ItemType,$AD:$AD)","v":0},null,null,null,null,null,null,null,null,null,null,null,null,null,null,null,null,null,"2107","IE"]
["Cultural Matters",null,{"$f":"SUMIFS(Sheet1!S71_OriginalBudAmnt,Sheet1!S71_A2SubCode,$AC:$AC,Sheet1!S71_ItemType,$AD:$AD)","v":0},{"$f":"SUMIFS(Sheet1!S71_OriginalBudAmnt,Sheet1!S71_A2SubCode,$AC:$AC,Sheet1!S71_ItemType,$AD:$AD)","v":0},{"$f":"SUMIFS(Sheet1!S71_OriginalBudAmnt,Sheet1!S71_A2SubCode,$AC:$AC,Sheet1!S71_ItemType,$AD:$AD)","v":0},{"$f":"SUMIFS(Sheet1!S71_OriginalBudAmnt,Sheet1!S71_A2SubCode,$AC:$AC,Sheet1!S71_ItemType,$AD:$AD)","v":0},{"$f":"SUMIFS(Sheet1!S71_AdjustmentBudAmnt,Sheet1!S71_A2SubCode,$AC:$AC,Sheet1!S71_ItemType,$AD:$AD)","v":0},{"$f":"SUMIFS(Sheet1!S71_AdjustmentBudAmnt,Sheet1!S71_A2SubCode,$AC:$AC,Sheet1!S71_ItemType,$AD:$AD)","v":0},{"$f":"SUMIFS(Sheet1!S71_ASBudgetAmount,Sheet1!S71_A2SubCode,$AC:$AC,Sheet1!S71_ItemType,$AD:$AD)","v":0},{"$f":"SUMIFS(Sheet1!S71_OY1BudgetAmount,Sheet1!S71_A2SubCode,$AC:$AC,Sheet1!S71_ItemType,$AD:$AD)","v":0},{"$f":"SUMIFS(Sheet1!S71_OY2BudgetAmount,Sheet1!S71_A2SubCode,$AC:$AC,Sheet1!S71_ItemType,$AD:$AD)","v":0},null,null,null,null,null,null,null,null,null,null,null,null,null,null,null,null,null,"2108","IE"]
["Disaster Management",null,{"$f":"SUMIFS(Sheet1!S71_OriginalBudAmnt,Sheet1!S71_A2SubCode,$AC:$AC,Sheet1!S71_ItemType,$AD:$AD)","v":3270107},{"$f":"SUMIFS(Sheet1!S71_OriginalBudAmnt,Sheet1!S71_A2SubCode,$AC:$AC,Sheet1!S71_ItemType,$AD:$AD)","v":3270107},{"$f":"SUMIFS(Sheet1!S71_OriginalBudAmnt,Sheet1!S71_A2SubCode,$AC:$AC,Sheet1!S71_ItemType,$AD:$AD)","v":3270107},{"$f":"SUMIFS(Sheet1!S71_OriginalBudAmnt,Sheet1!S71_A2SubCode,$AC:$AC,Sheet1!S71_ItemType,$AD:$AD)","v":3270107},{"$f":"SUMIFS(Sheet1!S71_AdjustmentBudAmnt,Sheet1!S71_A2SubCode,$AC:$AC,Sheet1!S71_ItemType,$AD:$AD)","v":2205191},{"$f":"SUMIFS(Sheet1!S71_AdjustmentBudAmnt,Sheet1!S71_A2SubCode,$AC:$AC,Sheet1!S71_ItemType,$AD:$AD)","v":2205191},{"$f":"SUMIFS(Sheet1!S71_ASBudgetAmount,Sheet1!S71_A2SubCode,$AC:$AC,Sheet1!S71_ItemType,$AD:$AD)","v":3517129},{"$f":"SUMIFS(Sheet1!S71_OY1BudgetAmount,Sheet1!S71_A2SubCode,$AC:$AC,Sheet1!S71_ItemType,$AD:$AD)","v":3538937},{"$f":"SUMIFS(Sheet1!S71_OY2BudgetAmount,Sheet1!S71_A2SubCode,$AC:$AC,Sheet1!S71_ItemType,$AD:$AD)","v":3659791},null,null,null,null,null,null,null,null,null,null,null,null,null,null,null,null,null,"2109","IE"]
["Education",null,{"$f":"SUMIFS(Sheet1!S71_OriginalBudAmnt,Sheet1!S71_A2SubCode,$AC:$AC,Sheet1!S71_ItemType,$AD:$AD)","v":0},{"$f":"SUMIFS(Sheet1!S71_OriginalBudAmnt,Sheet1!S71_A2SubCode,$AC:$AC,Sheet1!S71_ItemType,$AD:$AD)","v":0},{"$f":"SUMIFS(Sheet1!S71_OriginalBudAmnt,Sheet1!S71_A2SubCode,$AC:$AC,Sheet1!S71_ItemType,$AD:$AD)","v":0},{"$f":"SUMIFS(Sheet1!S71_OriginalBudAmnt,Sheet1!S71_A2SubCode,$AC:$AC,Sheet1!S71_ItemType,$AD:$AD)","v":0},{"$f":"SUMIFS(Sheet1!S71_AdjustmentBudAmnt,Sheet1!S71_A2SubCode,$AC:$AC,Sheet1!S71_ItemType,$AD:$AD)","v":0},{"$f":"SUMIFS(Sheet1!S71_AdjustmentBudAmnt,Sheet1!S71_A2SubCode,$AC:$AC,Sheet1!S71_ItemType,$AD:$AD)","v":0},{"$f":"SUMIFS(Sheet1!S71_ASBudgetAmount,Sheet1!S71_A2SubCode,$AC:$AC,Sheet1!S71_ItemType,$AD:$AD)","v":0},{"$f":"SUMIFS(Sheet1!S71_OY1BudgetAmount,Sheet1!S71_A2SubCode,$AC:$AC,Sheet1!S71_ItemType,$AD:$AD)","v":0},{"$f":"SUMIFS(Sheet1!S71_OY2BudgetAmount,Sheet1!S71_A2SubCode,$AC:$AC,Sheet1!S71_ItemType,$AD:$AD)","v":0},null,null,null,null,null,null,null,null,null,null,null,null,null,null,null,null,null,"2110","IE"]
[{"$f":"A37","v":"Indigenous and Customary Law"},null,{"$f":"SUMIFS(Sheet1!S71_OriginalBudAmnt,Sheet1!S71_A2SubCode,$AC:$AC,Sheet1!S71_ItemType,$AD:$AD)","v":0},{"$f":"SUMIFS(Sheet1!S71_OriginalBudAmnt,Sheet1!S71_A2SubCode,$AC:$AC,Sheet1!S71_ItemType,$AD:$AD)","v":0},{"$f":"SUMIFS(Sheet1!S71_OriginalBudAmnt,Sheet1!S71_A2SubCode,$AC:$AC,Sheet1!S71_ItemType,$AD:$AD)","v":0},{"$f":"SUMIFS(Sheet1!S71_OriginalBudAmnt,Sheet1!S71_A2SubCode,$AC:$AC,Sheet1!S71_ItemType,$AD:$AD)","v":0},{"$f":"SUMIFS(Sheet1!S71_AdjustmentBudAmnt,Sheet1!S71_A2SubCode,$AC:$AC,Sheet1!S71_ItemType,$AD:$AD)","v":0},{"$f":"SUMIFS(Sheet1!S71_AdjustmentBudAmnt,Sheet1!S71_A2SubCode,$AC:$AC,Sheet1!S71_ItemType,$AD:$AD)","v":0},{"$f":"SUMIFS(Sheet1!S71_ASBudgetAmount,Sheet1!S71_A2SubCode,$AC:$AC,Sheet1!S71_ItemType,$AD:$AD)","v":0},{"$f":"SUMIFS(Sheet1!S71_OY1BudgetAmount,Sheet1!S71_A2SubCode,$AC:$AC,Sheet1!S71_ItemType,$AD:$AD)","v":0},{"$f":"SUMIFS(Sheet1!S71_OY2BudgetAmount,Sheet1!S71_A2SubCode,$AC:$AC,Sheet1!S71_ItemType,$AD:$AD)","v":0},null,null,null,null,null,null,null,null,null,null,null,null,null,null,null,null,null,"2111","IE"]
["Industrial Promotion",null,{"$f":"SUMIFS(Sheet1!S71_OriginalBudAmnt,Sheet1!S71_A2SubCode,$AC:$AC,Sheet1!S71_ItemType,$AD:$AD)","v":0},{"$f":"SUMIFS(Sheet1!S71_OriginalBudAmnt,Sheet1!S71_A2SubCode,$AC:$AC,Sheet1!S71_ItemType,$AD:$AD)","v":0},{"$f":"SUMIFS(Sheet1!S71_OriginalBudAmnt,Sheet1!S71_A2SubCode,$AC:$AC,Sheet1!S71_ItemType,$AD:$AD)","v":0},{"$f":"SUMIFS(Sheet1!S71_OriginalBudAmnt,Sheet1!S71_A2SubCode,$AC:$AC,Sheet1!S71_ItemType,$AD:$AD)","v":0},{"$f":"SUMIFS(Sheet1!S71_AdjustmentBudAmnt,Sheet1!S71_A2SubCode,$AC:$AC,Sheet1!S71_ItemType,$AD:$AD)","v":0},{"$f":"SUMIFS(Sheet1!S71_AdjustmentBudAmnt,Sheet1!S71_A2SubCode,$AC:$AC,Sheet1!S71_ItemType,$AD:$AD)","v":0},{"$f":"SUMIFS(Sheet1!S71_ASBudgetAmount,Sheet1!S71_A2SubCode,$AC:$AC,Sheet1!S71_ItemType,$AD:$AD)","v":0},{"$f":"SUMIFS(Sheet1!S71_OY1BudgetAmount,Sheet1!S71_A2SubCode,$AC:$AC,Sheet1!S71_ItemType,$AD:$AD)","v":0},{"$f":"SUMIFS(Sheet1!S71_OY2BudgetAmount,Sheet1!S71_A2SubCode,$AC:$AC,Sheet1!S71_ItemType,$AD:$AD)","v":0},null,null,null,null,null,null,null,null,null,null,null,null,null,null,null,null,null,"2112","IE"]
["Language Policy",null,{"$f":"SUMIFS(Sheet1!S71_OriginalBudAmnt,Sheet1!S71_A2SubCode,$AC:$AC,Sheet1!S71_ItemType,$AD:$AD)","v":0},{"$f":"SUMIFS(Sheet1!S71_OriginalBudAmnt,Sheet1!S71_A2SubCode,$AC:$AC,Sheet1!S71_ItemType,$AD:$AD)","v":0},{"$f":"SUMIFS(Sheet1!S71_OriginalBudAmnt,Sheet1!S71_A2SubCode,$AC:$AC,Sheet1!S71_ItemType,$AD:$AD)","v":0},{"$f":"SUMIFS(Sheet1!S71_OriginalBudAmnt,Sheet1!S71_A2SubCode,$AC:$AC,Sheet1!S71_ItemType,$AD:$AD)","v":0},{"$f":"SUMIFS(Sheet1!S71_AdjustmentBudAmnt,Sheet1!S71_A2SubCode,$AC:$AC,Sheet1!S71_ItemType,$AD:$AD)","v":0},{"$f":"SUMIFS(Sheet1!S71_AdjustmentBudAmnt,Sheet1!S71_A2SubCode,$AC:$AC,Sheet1!S71_ItemType,$AD:$AD)","v":0},{"$f":"SUMIFS(Sheet1!S71_ASBudgetAmount,Sheet1!S71_A2SubCode,$AC:$AC,Sheet1!S71_ItemType,$AD:$AD)","v":0},{"$f":"SUMIFS(Sheet1!S71_OY1BudgetAmount,Sheet1!S71_A2SubCode,$AC:$AC,Sheet1!S71_ItemType,$AD:$AD)","v":0},{"$f":"SUMIFS(Sheet1!S71_OY2BudgetAmount,Sheet1!S71_A2SubCode,$AC:$AC,Sheet1!S71_ItemType,$AD:$AD)","v":0},null,null,null,null,null,null,null,null,null,null,null,null,null,null,null,null,null,"2113","IE"]
["Libraries and Archives",null,{"$f":"SUMIFS(Sheet1!S71_OriginalBudAmnt,Sheet1!S71_A2SubCode,$AC:$AC,Sheet1!S71_ItemType,$AD:$AD)","v":595926},{"$f":"SUMIFS(Sheet1!S71_OriginalBudAmnt,Sheet1!S71_A2SubCode,$AC:$AC,Sheet1!S71_ItemType,$AD:$AD)","v":595926},{"$f":"SUMIFS(Sheet1!S71_OriginalBudAmnt,Sheet1!S71_A2SubCode,$AC:$AC,Sheet1!S71_ItemType,$AD:$AD)","v":595926},{"$f":"SUMIFS(Sheet1!S71_OriginalBudAmnt,Sheet1!S71_A2SubCode,$AC:$AC,Sheet1!S71_ItemType,$AD:$AD)","v":595926},{"$f":"SUMIFS(Sheet1!S71_AdjustmentBudAmnt,Sheet1!S71_A2SubCode,$AC:$AC,Sheet1!S71_ItemType,$AD:$AD)","v":400729},{"$f":"SUMIFS(Sheet1!S71_AdjustmentBudAmnt,Sheet1!S71_A2SubCode,$AC:$AC,Sheet1!S71_ItemType,$AD:$AD)","v":400729},{"$f":"SUMIFS(Sheet1!S71_ASBudgetAmount,Sheet1!S71_A2SubCode,$AC:$AC,Sheet1!S71_ItemType,$AD:$AD)","v":749075},{"$f":"SUMIFS(Sheet1!S71_OY1BudgetAmount,Sheet1!S71_A2SubCode,$AC:$AC,Sheet1!S71_ItemType,$AD:$AD)","v":781743},{"$f":"SUMIFS(Sheet1!S71_OY2BudgetAmount,Sheet1!S71_A2SubCode,$AC:$AC,Sheet1!S71_ItemType,$AD:$AD)","v":814543},null,null,null,null,null,null,null,null,null,null,null,null,null,null,null,null,null,"2114","IE"]
["Literacy Programmes",null,{"$f":"SUMIFS(Sheet1!S71_OriginalBudAmnt,Sheet1!S71_A2SubCode,$AC:$AC,Sheet1!S71_ItemType,$AD:$AD)","v":0},{"$f":"SUMIFS(Sheet1!S71_OriginalBudAmnt,Sheet1!S71_A2SubCode,$AC:$AC,Sheet1!S71_ItemType,$AD:$AD)","v":0},{"$f":"SUMIFS(Sheet1!S71_OriginalBudAmnt,Sheet1!S71_A2SubCode,$AC:$AC,Sheet1!S71_ItemType,$AD:$AD)","v":0},{"$f":"SUMIFS(Sheet1!S71_OriginalBudAmnt,Sheet1!S71_A2SubCode,$AC:$AC,Sheet1!S71_ItemType,$AD:$AD)","v":0},{"$f":"SUMIFS(Sheet1!S71_AdjustmentBudAmnt,Sheet1!S71_A2SubCode,$AC:$AC,Sheet1!S71_ItemType,$AD:$AD)","v":0},{"$f":"SUMIFS(Sheet1!S71_AdjustmentBudAmnt,Sheet1!S71_A2SubCode,$AC:$AC,Sheet1!S71_ItemType,$AD:$AD)","v":0},{"$f":"SUMIFS(Sheet1!S71_ASBudgetAmount,Sheet1!S71_A2SubCode,$AC:$AC,Sheet1!S71_ItemType,$AD:$AD)","v":0},{"$f":"SUMIFS(Sheet1!S71_OY1BudgetAmount,Sheet1!S71_A2SubCode,$AC:$AC,Sheet1!S71_ItemType,$AD:$AD)","v":0},{"$f":"SUMIFS(Sheet1!S71_OY2BudgetAmount,Sheet1!S71_A2SubCode,$AC:$AC,Sheet1!S71_ItemType,$AD:$AD)","v":0},null,null,null,null,null,null,null,null,null,null,null,null,null,null,null,null,null,"2115","IE"]
["Media Services",null,{"$f":"SUMIFS(Sheet1!S71_OriginalBudAmnt,Sheet1!S71_A2SubCode,$AC:$AC,Sheet1!S71_ItemType,$AD:$AD)","v":0},{"$f":"SUMIFS(Sheet1!S71_OriginalBudAmnt,Sheet1!S71_A2SubCode,$AC:$AC,Sheet1!S71_ItemType,$AD:$AD)","v":0},{"$f":"SUMIFS(Sheet1!S71_OriginalBudAmnt,Sheet1!S71_A2SubCode,$AC:$AC,Sheet1!S71_ItemType,$AD:$AD)","v":0},{"$f":"SUMIFS(Sheet1!S71_OriginalBudAmnt,Sheet1!S71_A2SubCode,$AC:$AC,Sheet1!S71_ItemType,$AD:$AD)","v":0},{"$f":"SUMIFS(Sheet1!S71_AdjustmentBudAmnt,Sheet1!S71_A2SubCode,$AC:$AC,Sheet1!S71_ItemType,$AD:$AD)","v":0},{"$f":"SUMIFS(Sheet1!S71_AdjustmentBudAmnt,Sheet1!S71_A2SubCode,$AC:$AC,Sheet1!S71_ItemType,$AD:$AD)","v":0},{"$f":"SUMIFS(Sheet1!S71_ASBudgetAmount,Sheet1!S71_A2SubCode,$AC:$AC,Sheet1!S71_ItemType,$AD:$AD)","v":0},{"$f":"SUMIFS(Sheet1!S71_OY1BudgetAmount,Sheet1!S71_A2SubCode,$AC:$AC,Sheet1!S71_ItemType,$AD:$AD)","v":0},{"$f":"SUMIFS(Sheet1!S71_OY2BudgetAmount,Sheet1!S71_A2SubCode,$AC:$AC,Sheet1!S71_ItemType,$AD:$AD)","v":0},null,null,null,null,null,null,null,null,null,null,null,null,null,null,null,null,null,"2116","IE"]
["Museums and Art Galleries",null,{"$f":"SUMIFS(Sheet1!S71_OriginalBudAmnt,Sheet1!S71_A2SubCode,$AC:$AC,Sheet1!S71_ItemType,$AD:$AD)","v":0},{"$f":"SUMIFS(Sheet1!S71_OriginalBudAmnt,Sheet1!S71_A2SubCode,$AC:$AC,Sheet1!S71_ItemType,$AD:$AD)","v":0},{"$f":"SUMIFS(Sheet1!S71_OriginalBudAmnt,Sheet1!S71_A2SubCode,$AC:$AC,Sheet1!S71_ItemType,$AD:$AD)","v":0},{"$f":"SUMIFS(Sheet1!S71_OriginalBudAmnt,Sheet1!S71_A2SubCode,$AC:$AC,Sheet1!S71_ItemType,$AD:$AD)","v":0},{"$f":"SUMIFS(Sheet1!S71_AdjustmentBudAmnt,Sheet1!S71_A2SubCode,$AC:$AC,Sheet1!S71_ItemType,$AD:$AD)","v":0},{"$f":"SUMIFS(Sheet1!S71_AdjustmentBudAmnt,Sheet1!S71_A2SubCode,$AC:$AC,Sheet1!S71_ItemType,$AD:$AD)","v":0},{"$f":"SUMIFS(Sheet1!S71_ASBudgetAmount,Sheet1!S71_A2SubCode,$AC:$AC,Sheet1!S71_ItemType,$AD:$AD)","v":0},{"$f":"SUMIFS(Sheet1!S71_OY1BudgetAmount,Sheet1!S71_A2SubCode,$AC:$AC,Sheet1!S71_ItemType,$AD:$AD)","v":0},{"$f":"SUMIFS(Sheet1!S71_OY2BudgetAmount,Sheet1!S71_A2SubCode,$AC:$AC,Sheet1!S71_ItemType,$AD:$AD)","v":0},null,null,null,null,null,null,null,null,null,null,null,null,null,null,null,null,null,"2117","IE"]
["Population Development",null,{"$f":"SUMIFS(Sheet1!S71_OriginalBudAmnt,Sheet1!S71_A2SubCode,$AC:$AC,Sheet1!S71_ItemType,$AD:$AD)","v":0},{"$f":"SUMIFS(Sheet1!S71_OriginalBudAmnt,Sheet1!S71_A2SubCode,$AC:$AC,Sheet1!S71_ItemType,$AD:$AD)","v":0},{"$f":"SUMIFS(Sheet1!S71_OriginalBudAmnt,Sheet1!S71_A2SubCode,$AC:$AC,Sheet1!S71_ItemType,$AD:$AD)","v":0},{"$f":"SUMIFS(Sheet1!S71_OriginalBudAmnt,Sheet1!S71_A2SubCode,$AC:$AC,Sheet1!S71_ItemType,$AD:$AD)","v":0},{"$f":"SUMIFS(Sheet1!S71_AdjustmentBudAmnt,Sheet1!S71_A2SubCode,$AC:$AC,Sheet1!S71_ItemType,$AD:$AD)","v":0},{"$f":"SUMIFS(Sheet1!S71_AdjustmentBudAmnt,Sheet1!S71_A2SubCode,$AC:$AC,Sheet1!S71_ItemType,$AD:$AD)","v":0},{"$f":"SUMIFS(Sheet1!S71_ASBudgetAmount,Sheet1!S71_A2SubCode,$AC:$AC,Sheet1!S71_ItemType,$AD:$AD)","v":0},{"$f":"SUMIFS(Sheet1!S71_OY1BudgetAmount,Sheet1!S71_A2SubCode,$AC:$AC,Sheet1!S71_ItemType,$AD:$AD)","v":0},{"$f":"SUMIFS(Sheet1!S71_OY2BudgetAmount,Sheet1!S71_A2SubCode,$AC:$AC,Sheet1!S71_ItemType,$AD:$AD)","v":0},null,null,null,null,null,null,null,null,null,null,null,null,null,null,null,null,null,"2118","IE"]
["Provincial Cultural Matters",null,{"$f":"SUMIFS(Sheet1!S71_OriginalBudAmnt,Sheet1!S71_A2SubCode,$AC:$AC,Sheet1!S71_ItemType,$AD:$AD)","v":0},{"$f":"SUMIFS(Sheet1!S71_OriginalBudAmnt,Sheet1!S71_A2SubCode,$AC:$AC,Sheet1!S71_ItemType,$AD:$AD)","v":0},{"$f":"SUMIFS(Sheet1!S71_OriginalBudAmnt,Sheet1!S71_A2SubCode,$AC:$AC,Sheet1!S71_ItemType,$AD:$AD)","v":0},{"$f":"SUMIFS(Sheet1!S71_OriginalBudAmnt,Sheet1!S71_A2SubCode,$AC:$AC,Sheet1!S71_ItemType,$AD:$AD)","v":0},{"$f":"SUMIFS(Sheet1!S71_AdjustmentBudAmnt,Sheet1!S71_A2SubCode,$AC:$AC,Sheet1!S71_ItemType,$AD:$AD)","v":0},{"$f":"SUMIFS(Sheet1!S71_AdjustmentBudAmnt,Sheet1!S71_A2SubCode,$AC:$AC,Sheet1!S71_ItemType,$AD:$AD)","v":0},{"$f":"SUMIFS(Sheet1!S71_ASBudgetAmount,Sheet1!S71_A2SubCode,$AC:$AC,Sheet1!S71_ItemType,$AD:$AD)","v":0},{"$f":"SUMIFS(Sheet1!S71_OY1BudgetAmount,Sheet1!S71_A2SubCode,$AC:$AC,Sheet1!S71_ItemType,$AD:$AD)","v":0},{"$f":"SUMIFS(Sheet1!S71_OY2BudgetAmount,Sheet1!S71_A2SubCode,$AC:$AC,Sheet1!S71_ItemType,$AD:$AD)","v":0},null,null,null,null,null,null,null,null,null,null,null,null,null,null,null,null,null,"2119","IE"]
["Theatres",null,{"$f":"SUMIFS(Sheet1!S71_OriginalBudAmnt,Sheet1!S71_A2SubCode,$AC:$AC,Sheet1!S71_ItemType,$AD:$AD)","v":0},{"$f":"SUMIFS(Sheet1!S71_OriginalBudAmnt,Sheet1!S71_A2SubCode,$AC:$AC,Sheet1!S71_ItemType,$AD:$AD)","v":0},{"$f":"SUMIFS(Sheet1!S71_OriginalBudAmnt,Sheet1!S71_A2SubCode,$AC:$AC,Sheet1!S71_ItemType,$AD:$AD)","v":0},{"$f":"SUMIFS(Sheet1!S71_OriginalBudAmnt,Sheet1!S71_A2SubCode,$AC:$AC,Sheet1!S71_ItemType,$AD:$AD)","v":0},{"$f":"SUMIFS(Sheet1!S71_AdjustmentBudAmnt,Sheet1!S71_A2SubCode,$AC:$AC,Sheet1!S71_ItemType,$AD:$AD)","v":0},{"$f":"SUMIFS(Sheet1!S71_AdjustmentBudAmnt,Sheet1!S71_A2SubCode,$AC:$AC,Sheet1!S71_ItemType,$AD:$AD)","v":0},{"$f":"SUMIFS(Sheet1!S71_ASBudgetAmount,Sheet1!S71_A2SubCode,$AC:$AC,Sheet1!S71_ItemType,$AD:$AD)","v":0},{"$f":"SUMIFS(Sheet1!S71_OY1BudgetAmount,Sheet1!S71_A2SubCode,$AC:$AC,Sheet1!S71_ItemType,$AD:$AD)","v":0},{"$f":"SUMIFS(Sheet1!S71_OY2BudgetAmount,Sheet1!S71_A2SubCode,$AC:$AC,Sheet1!S71_ItemType,$AD:$AD)","v":0},null,null,null,null,null,null,null,null,null,null,null,null,null,null,null,null,null,"2120","IE"]
["Zoo's",null,{"$f":"SUMIFS(Sheet1!S71_OriginalBudAmnt,Sheet1!S71_A2SubCode,$AC:$AC,Sheet1!S71_ItemType,$AD:$AD)","v":0},{"$f":"SUMIFS(Sheet1!S71_OriginalBudAmnt,Sheet1!S71_A2SubCode,$AC:$AC,Sheet1!S71_ItemType,$AD:$AD)","v":0},{"$f":"SUMIFS(Sheet1!S71_OriginalBudAmnt,Sheet1!S71_A2SubCode,$AC:$AC,Sheet1!S71_ItemType,$AD:$AD)","v":0},{"$f":"SUMIFS(Sheet1!S71_OriginalBudAmnt,Sheet1!S71_A2SubCode,$AC:$AC,Sheet1!S71_ItemType,$AD:$AD)","v":0},{"$f":"SUMIFS(Sheet1!S71_AdjustmentBudAmnt,Sheet1!S71_A2SubCode,$AC:$AC,Sheet1!S71_ItemType,$AD:$AD)","v":0},{"$f":"SUMIFS(Sheet1!S71_AdjustmentBudAmnt,Sheet1!S71_A2SubCode,$AC:$AC,Sheet1!S71_ItemType,$AD:$AD)","v":0},{"$f":"SUMIFS(Sheet1!S71_ASBudgetAmount,Sheet1!S71_A2SubCode,$AC:$AC,Sheet1!S71_ItemType,$AD:$AD)","v":0},{"$f":"SUMIFS(Sheet1!S71_OY1BudgetAmount,Sheet1!S71_A2SubCode,$AC:$AC,Sheet1!S71_ItemType,$AD:$AD)","v":0},{"$f":"SUMIFS(Sheet1!S71_OY2BudgetAmount,Sheet1!S71_A2SubCode,$AC:$AC,Sheet1!S71_ItemType,$AD:$AD)","v":0},null,null,null,null,null,null,null,null,null,null,null,null,null,null,null,null,null,"2121","IE"]
["Sport and recreation",null,{"$f":"SUM(C171:C175)","v":7927234},7927234,7927234,7927234,9456562,9456562,8323738,8585467,8945044,null,null,null,null,null,null,null,null,null,null,null,null,null,null,null,null,null,null,"IE"]
["Beaches and Jetties ",null,{"$f":"SUMIFS(Sheet1!S71_OriginalBudAmnt,Sheet1!S71_A2SubCode,$AC:$AC,Sheet1!S71_ItemType,$AD:$AD)","v":0},{"$f":"SUMIFS(Sheet1!S71_OriginalBudAmnt,Sheet1!S71_A2SubCode,$AC:$AC,Sheet1!S71_ItemType,$AD:$AD)","v":0},{"$f":"SUMIFS(Sheet1!S71_OriginalBudAmnt,Sheet1!S71_A2SubCode,$AC:$AC,Sheet1!S71_ItemType,$AD:$AD)","v":0},{"$f":"SUMIFS(Sheet1!S71_OriginalBudAmnt,Sheet1!S71_A2SubCode,$AC:$AC,Sheet1!S71_ItemType,$AD:$AD)","v":0},{"$f":"SUMIFS(Sheet1!S71_AdjustmentBudAmnt,Sheet1!S71_A2SubCode,$AC:$AC,Sheet1!S71_ItemType,$AD:$AD)","v":0},{"$f":"SUMIFS(Sheet1!S71_AdjustmentBudAmnt,Sheet1!S71_A2SubCode,$AC:$AC,Sheet1!S71_ItemType,$AD:$AD)","v":0},{"$f":"SUMIFS(Sheet1!S71_ASBudgetAmount,Sheet1!S71_A2SubCode,$AC:$AC,Sheet1!S71_ItemType,$AD:$AD)","v":0},{"$f":"SUMIFS(Sheet1!S71_OY1BudgetAmount,Sheet1!S71_A2SubCode,$AC:$AC,Sheet1!S71_ItemType,$AD:$AD)","v":0},{"$f":"SUMIFS(Sheet1!S71_OY2BudgetAmount,Sheet1!S71_A2SubCode,$AC:$AC,Sheet1!S71_ItemType,$AD:$AD)","v":0},null,null,null,null,null,null,null,null,null,null,null,null,null,null,null,null,null,"2201","IE"]
["Casinos, Racing, Gambling, Wagering",null,{"$f":"SUMIFS(Sheet1!S71_OriginalBudAmnt,Sheet1!S71_A2SubCode,$AC:$AC,Sheet1!S71_ItemType,$AD:$AD)","v":0},{"$f":"SUMIFS(Sheet1!S71_OriginalBudAmnt,Sheet1!S71_A2SubCode,$AC:$AC,Sheet1!S71_ItemType,$AD:$AD)","v":0},{"$f":"SUMIFS(Sheet1!S71_OriginalBudAmnt,Sheet1!S71_A2SubCode,$AC:$AC,Sheet1!S71_ItemType,$AD:$AD)","v":0},{"$f":"SUMIFS(Sheet1!S71_OriginalBudAmnt,Sheet1!S71_A2SubCode,$AC:$AC,Sheet1!S71_ItemType,$AD:$AD)","v":0},{"$f":"SUMIFS(Sheet1!S71_AdjustmentBudAmnt,Sheet1!S71_A2SubCode,$AC:$AC,Sheet1!S71_ItemType,$AD:$AD)","v":0},{"$f":"SUMIFS(Sheet1!S71_AdjustmentBudAmnt,Sheet1!S71_A2SubCode,$AC:$AC,Sheet1!S71_ItemType,$AD:$AD)","v":0},{"$f":"SUMIFS(Sheet1!S71_ASBudgetAmount,Sheet1!S71_A2SubCode,$AC:$AC,Sheet1!S71_ItemType,$AD:$AD)","v":0},{"$f":"SUMIFS(Sheet1!S71_OY1BudgetAmount,Sheet1!S71_A2SubCode,$AC:$AC,Sheet1!S71_ItemType,$AD:$AD)","v":0},{"$f":"SUMIFS(Sheet1!S71_OY2BudgetAmount,Sheet1!S71_A2SubCode,$AC:$AC,Sheet1!S71_ItemType,$AD:$AD)","v":0},null,null,null,null,null,null,null,null,null,null,null,null,null,null,null,null,null,"2202","IE"]
["Community Parks (including Nurseries)",null,{"$f":"SUMIFS(Sheet1!S71_OriginalBudAmnt,Sheet1!S71_A2SubCode,$AC:$AC,Sheet1!S71_ItemType,$AD:$AD)","v":0},{"$f":"SUMIFS(Sheet1!S71_OriginalBudAmnt,Sheet1!S71_A2SubCode,$AC:$AC,Sheet1!S71_ItemType,$AD:$AD)","v":0},{"$f":"SUMIFS(Sheet1!S71_OriginalBudAmnt,Sheet1!S71_A2SubCode,$AC:$AC,Sheet1!S71_ItemType,$AD:$AD)","v":0},{"$f":"SUMIFS(Sheet1!S71_OriginalBudAmnt,Sheet1!S71_A2SubCode,$AC:$AC,Sheet1!S71_ItemType,$AD:$AD)","v":0},{"$f":"SUMIFS(Sheet1!S71_AdjustmentBudAmnt,Sheet1!S71_A2SubCode,$AC:$AC,Sheet1!S71_ItemType,$AD:$AD)","v":0},{"$f":"SUMIFS(Sheet1!S71_AdjustmentBudAmnt,Sheet1!S71_A2SubCode,$AC:$AC,Sheet1!S71_ItemType,$AD:$AD)","v":0},{"$f":"SUMIFS(Sheet1!S71_ASBudgetAmount,Sheet1!S71_A2SubCode,$AC:$AC,Sheet1!S71_ItemType,$AD:$AD)","v":0},{"$f":"SUMIFS(Sheet1!S71_OY1BudgetAmount,Sheet1!S71_A2SubCode,$AC:$AC,Sheet1!S71_ItemType,$AD:$AD)","v":0},{"$f":"SUMIFS(Sheet1!S71_OY2BudgetAmount,Sheet1!S71_A2SubCode,$AC:$AC,Sheet1!S71_ItemType,$AD:$AD)","v":0},null,null,null,null,null,null,null,null,null,null,null,null,null,null,null,null,null,"2203","IE"]
["Recreational Facilities",null,{"$f":"SUMIFS(Sheet1!S71_OriginalBudAmnt,Sheet1!S71_A2SubCode,$AC:$AC,Sheet1!S71_ItemType,$AD:$AD)","v":870000},{"$f":"SUMIFS(Sheet1!S71_OriginalBudAmnt,Sheet1!S71_A2SubCode,$AC:$AC,Sheet1!S71_ItemType,$AD:$AD)","v":870000},{"$f":"SUMIFS(Sheet1!S71_OriginalBudAmnt,Sheet1!S71_A2SubCode,$AC:$AC,Sheet1!S71_ItemType,$AD:$AD)","v":870000},{"$f":"SUMIFS(Sheet1!S71_OriginalBudAmnt,Sheet1!S71_A2SubCode,$AC:$AC,Sheet1!S71_ItemType,$AD:$AD)","v":870000},{"$f":"SUMIFS(Sheet1!S71_AdjustmentBudAmnt,Sheet1!S71_A2SubCode,$AC:$AC,Sheet1!S71_ItemType,$AD:$AD)","v":886000},{"$f":"SUMIFS(Sheet1!S71_AdjustmentBudAmnt,Sheet1!S71_A2SubCode,$AC:$AC,Sheet1!S71_ItemType,$AD:$AD)","v":886000},{"$f":"SUMIFS(Sheet1!S71_ASBudgetAmount,Sheet1!S71_A2SubCode,$AC:$AC,Sheet1!S71_ItemType,$AD:$AD)","v":1300000},{"$f":"SUMIFS(Sheet1!S71_OY1BudgetAmount,Sheet1!S71_A2SubCode,$AC:$AC,Sheet1!S71_ItemType,$AD:$AD)","v":1342000},{"$f":"SUMIFS(Sheet1!S71_OY2BudgetAmount,Sheet1!S71_A2SubCode,$AC:$AC,Sheet1!S71_ItemType,$AD:$AD)","v":1383000},null,null,null,null,null,null,null,null,null,null,null,null,null,null,null,null,null,"2204","IE"]
["Sports Grounds and Stadiums",null,{"$f":"SUMIFS(Sheet1!S71_OriginalBudAmnt,Sheet1!S71_A2SubCode,$AC:$AC,Sheet1!S71_ItemType,$AD:$AD)","v":7057234},{"$f":"SUMIFS(Sheet1!S71_OriginalBudAmnt,Sheet1!S71_A2SubCode,$AC:$AC,Sheet1!S71_ItemType,$AD:$AD)","v":7057234},{"$f":"SUMIFS(Sheet1!S71_OriginalBudAmnt,Sheet1!S71_A2SubCode,$AC:$AC,Sheet1!S71_ItemType,$AD:$AD)","v":7057234},{"$f":"SUMIFS(Sheet1!S71_OriginalBudAmnt,Sheet1!S71_A2SubCode,$AC:$AC,Sheet1!S71_ItemType,$AD:$AD)","v":7057234},{"$f":"SUMIFS(Sheet1!S71_AdjustmentBudAmnt,Sheet1!S71_A2SubCode,$AC:$AC,Sheet1!S71_ItemType,$AD:$AD)","v":8570562},{"$f":"SUMIFS(Sheet1!S71_AdjustmentBudAmnt,Sheet1!S71_A2SubCode,$AC:$AC,Sheet1!S71_ItemType,$AD:$AD)","v":8570562},{"$f":"SUMIFS(Sheet1!S71_ASBudgetAmount,Sheet1!S71_A2SubCode,$AC:$AC,Sheet1!S71_ItemType,$AD:$AD)","v":7023738},{"$f":"SUMIFS(Sheet1!S71_OY1BudgetAmount,Sheet1!S71_A2SubCode,$AC:$AC,Sheet1!S71_ItemType,$AD:$AD)","v":7243467},{"$f":"SUMIFS(Sheet1!S71_OY2BudgetAmount,Sheet1!S71_A2SubCode,$AC:$AC,Sheet1!S71_ItemType,$AD:$AD)","v":7562044},null,null,null,null,null,null,null,null,null,null,null,null,null,null,null,null,null,"2205","IE"]
["Public safety",null,{"$f":"SUM(C177:C184)","v":450000},450000,450000,450000,100000,100000,300000,350000,400000,null,null,null,null,null,null,null,null,null,null,null,null,null,null,null,null,null,null,"IE"]
["Civil Defence",null,{"$f":"SUMIFS(Sheet1!S71_OriginalBudAmnt,Sheet1!S71_A2SubCode,$AC:$AC,Sheet1!S71_ItemType,$AD:$AD)","v":0},{"$f":"SUMIFS(Sheet1!S71_OriginalBudAmnt,Sheet1!S71_A2SubCode,$AC:$AC,Sheet1!S71_ItemType,$AD:$AD)","v":0},{"$f":"SUMIFS(Sheet1!S71_OriginalBudAmnt,Sheet1!S71_A2SubCode,$AC:$AC,Sheet1!S71_ItemType,$AD:$AD)","v":0},{"$f":"SUMIFS(Sheet1!S71_OriginalBudAmnt,Sheet1!S71_A2SubCode,$AC:$AC,Sheet1!S71_ItemType,$AD:$AD)","v":0},{"$f":"SUMIFS(Sheet1!S71_AdjustmentBudAmnt,Sheet1!S71_A2SubCode,$AC:$AC,Sheet1!S71_ItemType,$AD:$AD)","v":0},{"$f":"SUMIFS(Sheet1!S71_AdjustmentBudAmnt,Sheet1!S71_A2SubCode,$AC:$AC,Sheet1!S71_ItemType,$AD:$AD)","v":0},{"$f":"SUMIFS(Sheet1!S71_ASBudgetAmount,Sheet1!S71_A2SubCode,$AC:$AC,Sheet1!S71_ItemType,$AD:$AD)","v":0},{"$f":"SUMIFS(Sheet1!S71_OY1BudgetAmount,Sheet1!S71_A2SubCode,$AC:$AC,Sheet1!S71_ItemType,$AD:$AD)","v":0},{"$f":"SUMIFS(Sheet1!S71_OY2BudgetAmount,Sheet1!S71_A2SubCode,$AC:$AC,Sheet1!S71_ItemType,$AD:$AD)","v":0},null,null,null,null,null,null,null,null,null,null,null,null,null,null,null,null,null,"2301","IE"]
["Cleansing",null,{"$f":"SUMIFS(Sheet1!S71_OriginalBudAmnt,Sheet1!S71_A2SubCode,$AC:$AC,Sheet1!S71_ItemType,$AD:$AD)","v":0},{"$f":"SUMIFS(Sheet1!S71_OriginalBudAmnt,Sheet1!S71_A2SubCode,$AC:$AC,Sheet1!S71_ItemType,$AD:$AD)","v":0},{"$f":"SUMIFS(Sheet1!S71_OriginalBudAmnt,Sheet1!S71_A2SubCode,$AC:$AC,Sheet1!S71_ItemType,$AD:$AD)","v":0},{"$f":"SUMIFS(Sheet1!S71_OriginalBudAmnt,Sheet1!S71_A2SubCode,$AC:$AC,Sheet1!S71_ItemType,$AD:$AD)","v":0},{"$f":"SUMIFS(Sheet1!S71_AdjustmentBudAmnt,Sheet1!S71_A2SubCode,$AC:$AC,Sheet1!S71_ItemType,$AD:$AD)","v":0},{"$f":"SUMIFS(Sheet1!S71_AdjustmentBudAmnt,Sheet1!S71_A2SubCode,$AC:$AC,Sheet1!S71_ItemType,$AD:$AD)","v":0},{"$f":"SUMIFS(Sheet1!S71_ASBudgetAmount,Sheet1!S71_A2SubCode,$AC:$AC,Sheet1!S71_ItemType,$AD:$AD)","v":0},{"$f":"SUMIFS(Sheet1!S71_OY1BudgetAmount,Sheet1!S71_A2SubCode,$AC:$AC,Sheet1!S71_ItemType,$AD:$AD)","v":0},{"$f":"SUMIFS(Sheet1!S71_OY2BudgetAmount,Sheet1!S71_A2SubCode,$AC:$AC,Sheet1!S71_ItemType,$AD:$AD)","v":0},null,null,null,null,null,null,null,null,null,null,null,null,null,null,null,null,null,"2302","IE"]
[{"$f":"A57","v":"Control of Public Nuisances"},null,{"$f":"SUMIFS(Sheet1!S71_OriginalBudAmnt,Sheet1!S71_A2SubCode,$AC:$AC,Sheet1!S71_ItemType,$AD:$AD)","v":0},{"$f":"SUMIFS(Sheet1!S71_OriginalBudAmnt,Sheet1!S71_A2SubCode,$AC:$AC,Sheet1!S71_ItemType,$AD:$AD)","v":0},{"$f":"SUMIFS(Sheet1!S71_OriginalBudAmnt,Sheet1!S71_A2SubCode,$AC:$AC,Sheet1!S71_ItemType,$AD:$AD)","v":0},{"$f":"SUMIFS(Sheet1!S71_OriginalBudAmnt,Sheet1!S71_A2SubCode,$AC:$AC,Sheet1!S71_ItemType,$AD:$AD)","v":0},{"$f":"SUMIFS(Sheet1!S71_AdjustmentBudAmnt,Sheet1!S71_A2SubCode,$AC:$AC,Sheet1!S71_ItemType,$AD:$AD)","v":0},{"$f":"SUMIFS(Sheet1!S71_AdjustmentBudAmnt,Sheet1!S71_A2SubCode,$AC:$AC,Sheet1!S71_ItemType,$AD:$AD)","v":0},{"$f":"SUMIFS(Sheet1!S71_ASBudgetAmount,Sheet1!S71_A2SubCode,$AC:$AC,Sheet1!S71_ItemType,$AD:$AD)","v":0},{"$f":"SUMIFS(Sheet1!S71_OY1BudgetAmount,Sheet1!S71_A2SubCode,$AC:$AC,Sheet1!S71_ItemType,$AD:$AD)","v":0},{"$f":"SUMIFS(Sheet1!S71_OY2BudgetAmount,Sheet1!S71_A2SubCode,$AC:$AC,Sheet1!S71_ItemType,$AD:$AD)","v":0},null,null,null,null,null,null,null,null,null,null,null,null,null,null,null,null,null,"2303","IE"]
["Fencing and Fences ",null,{"$f":"SUMIFS(Sheet1!S71_OriginalBudAmnt,Sheet1!S71_A2SubCode,$AC:$AC,Sheet1!S71_ItemType,$AD:$AD)","v":450000},{"$f":"SUMIFS(Sheet1!S71_OriginalBudAmnt,Sheet1!S71_A2SubCode,$AC:$AC,Sheet1!S71_ItemType,$AD:$AD)","v":450000},{"$f":"SUMIFS(Sheet1!S71_OriginalBudAmnt,Sheet1!S71_A2SubCode,$AC:$AC,Sheet1!S71_ItemType,$AD:$AD)","v":450000},{"$f":"SUMIFS(Sheet1!S71_OriginalBudAmnt,Sheet1!S71_A2SubCode,$AC:$AC,Sheet1!S71_ItemType,$AD:$AD)","v":450000},{"$f":"SUMIFS(Sheet1!S71_AdjustmentBudAmnt,Sheet1!S71_A2SubCode,$AC:$AC,Sheet1!S71_ItemType,$AD:$AD)","v":100000},{"$f":"SUMIFS(Sheet1!S71_AdjustmentBudAmnt,Sheet1!S71_A2SubCode,$AC:$AC,Sheet1!S71_ItemType,$AD:$AD)","v":100000},{"$f":"SUMIFS(Sheet1!S71_ASBudgetAmount,Sheet1!S71_A2SubCode,$AC:$AC,Sheet1!S71_ItemType,$AD:$AD)","v":300000},{"$f":"SUMIFS(Sheet1!S71_OY1BudgetAmount,Sheet1!S71_A2SubCode,$AC:$AC,Sheet1!S71_ItemType,$AD:$AD)","v":350000},{"$f":"SUMIFS(Sheet1!S71_OY2BudgetAmount,Sheet1!S71_A2SubCode,$AC:$AC,Sheet1!S71_ItemType,$AD:$AD)","v":400000},null,null,null,null,null,null,null,null,null,null,null,null,null,null,null,null,null,"2304","IE"]
["Fire Fighting and Protection",null,{"$f":"SUMIFS(Sheet1!S71_OriginalBudAmnt,Sheet1!S71_A2SubCode,$AC:$AC,Sheet1!S71_ItemType,$AD:$AD)","v":0},{"$f":"SUMIFS(Sheet1!S71_OriginalBudAmnt,Sheet1!S71_A2SubCode,$AC:$AC,Sheet1!S71_ItemType,$AD:$AD)","v":0},{"$f":"SUMIFS(Sheet1!S71_OriginalBudAmnt,Sheet1!S71_A2SubCode,$AC:$AC,Sheet1!S71_ItemType,$AD:$AD)","v":0},{"$f":"SUMIFS(Sheet1!S71_OriginalBudAmnt,Sheet1!S71_A2SubCode,$AC:$AC,Sheet1!S71_ItemType,$AD:$AD)","v":0},{"$f":"SUMIFS(Sheet1!S71_AdjustmentBudAmnt,Sheet1!S71_A2SubCode,$AC:$AC,Sheet1!S71_ItemType,$AD:$AD)","v":0},{"$f":"SUMIFS(Sheet1!S71_AdjustmentBudAmnt,Sheet1!S71_A2SubCode,$AC:$AC,Sheet1!S71_ItemType,$AD:$AD)","v":0},{"$f":"SUMIFS(Sheet1!S71_ASBudgetAmount,Sheet1!S71_A2SubCode,$AC:$AC,Sheet1!S71_ItemType,$AD:$AD)","v":0},{"$f":"SUMIFS(Sheet1!S71_OY1BudgetAmount,Sheet1!S71_A2SubCode,$AC:$AC,Sheet1!S71_ItemType,$AD:$AD)","v":0},{"$f":"SUMIFS(Sheet1!S71_OY2BudgetAmount,Sheet1!S71_A2SubCode,$AC:$AC,Sheet1!S71_ItemType,$AD:$AD)","v":0},null,null,null,null,null,null,null,null,null,null,null,null,null,null,null,null,null,"2305","IE"]
["Licensing and Control of Animals",null,{"$f":"SUMIFS(Sheet1!S71_OriginalBudAmnt,Sheet1!S71_A2SubCode,$AC:$AC,Sheet1!S71_ItemType,$AD:$AD)","v":0},{"$f":"SUMIFS(Sheet1!S71_OriginalBudAmnt,Sheet1!S71_A2SubCode,$AC:$AC,Sheet1!S71_ItemType,$AD:$AD)","v":0},{"$f":"SUMIFS(Sheet1!S71_OriginalBudAmnt,Sheet1!S71_A2SubCode,$AC:$AC,Sheet1!S71_ItemType,$AD:$AD)","v":0},{"$f":"SUMIFS(Sheet1!S71_OriginalBudAmnt,Sheet1!S71_A2SubCode,$AC:$AC,Sheet1!S71_ItemType,$AD:$AD)","v":0},{"$f":"SUMIFS(Sheet1!S71_AdjustmentBudAmnt,Sheet1!S71_A2SubCode,$AC:$AC,Sheet1!S71_ItemType,$AD:$AD)","v":0},{"$f":"SUMIFS(Sheet1!S71_AdjustmentBudAmnt,Sheet1!S71_A2SubCode,$AC:$AC,Sheet1!S71_ItemType,$AD:$AD)","v":0},{"$f":"SUMIFS(Sheet1!S71_ASBudgetAmount,Sheet1!S71_A2SubCode,$AC:$AC,Sheet1!S71_ItemType,$AD:$AD)","v":0},{"$f":"SUMIFS(Sheet1!S71_OY1BudgetAmount,Sheet1!S71_A2SubCode,$AC:$AC,Sheet1!S71_ItemType,$AD:$AD)","v":0},{"$f":"SUMIFS(Sheet1!S71_OY2BudgetAmount,Sheet1!S71_A2SubCode,$AC:$AC,Sheet1!S71_ItemType,$AD:$AD)","v":0},null,null,null,null,null,null,null,null,null,null,null,null,null,null,null,null,null,"2306","IE"]
["Police Forces, Traffic and Street Parking Control",null,{"$f":"SUMIFS(Sheet1!S71_OriginalBudAmnt,Sheet1!S71_A2SubCode,$AC:$AC,Sheet1!S71_ItemType,$AD:$AD)","v":0},{"$f":"SUMIFS(Sheet1!S71_OriginalBudAmnt,Sheet1!S71_A2SubCode,$AC:$AC,Sheet1!S71_ItemType,$AD:$AD)","v":0},{"$f":"SUMIFS(Sheet1!S71_OriginalBudAmnt,Sheet1!S71_A2SubCode,$AC:$AC,Sheet1!S71_ItemType,$AD:$AD)","v":0},{"$f":"SUMIFS(Sheet1!S71_OriginalBudAmnt,Sheet1!S71_A2SubCode,$AC:$AC,Sheet1!S71_ItemType,$AD:$AD)","v":0},{"$f":"SUMIFS(Sheet1!S71_AdjustmentBudAmnt,Sheet1!S71_A2SubCode,$AC:$AC,Sheet1!S71_ItemType,$AD:$AD)","v":0},{"$f":"SUMIFS(Sheet1!S71_AdjustmentBudAmnt,Sheet1!S71_A2SubCode,$AC:$AC,Sheet1!S71_ItemType,$AD:$AD)","v":0},{"$f":"SUMIFS(Sheet1!S71_ASBudgetAmount,Sheet1!S71_A2SubCode,$AC:$AC,Sheet1!S71_ItemType,$AD:$AD)","v":0},{"$f":"SUMIFS(Sheet1!S71_OY1BudgetAmount,Sheet1!S71_A2SubCode,$AC:$AC,Sheet1!S71_ItemType,$AD:$AD)","v":0},{"$f":"SUMIFS(Sheet1!S71_OY2BudgetAmount,Sheet1!S71_A2SubCode,$AC:$AC,Sheet1!S71_ItemType,$AD:$AD)","v":0},null,null,null,null,null,null,null,null,null,null,null,null,null,null,null,null,null,"2307","IE"]
["Pounds",null,{"$f":"SUMIFS(Sheet1!S71_OriginalBudAmnt,Sheet1!S71_A2SubCode,$AC:$AC,Sheet1!S71_ItemType,$AD:$AD)","v":0},{"$f":"SUMIFS(Sheet1!S71_OriginalBudAmnt,Sheet1!S71_A2SubCode,$AC:$AC,Sheet1!S71_ItemType,$AD:$AD)","v":0},{"$f":"SUMIFS(Sheet1!S71_OriginalBudAmnt,Sheet1!S71_A2SubCode,$AC:$AC,Sheet1!S71_ItemType,$AD:$AD)","v":0},{"$f":"SUMIFS(Sheet1!S71_OriginalBudAmnt,Sheet1!S71_A2SubCode,$AC:$AC,Sheet1!S71_ItemType,$AD:$AD)","v":0},{"$f":"SUMIFS(Sheet1!S71_AdjustmentBudAmnt,Sheet1!S71_A2SubCode,$AC:$AC,Sheet1!S71_ItemType,$AD:$AD)","v":0},{"$f":"SUMIFS(Sheet1!S71_AdjustmentBudAmnt,Sheet1!S71_A2SubCode,$AC:$AC,Sheet1!S71_ItemType,$AD:$AD)","v":0},{"$f":"SUMIFS(Sheet1!S71_ASBudgetAmount,Sheet1!S71_A2SubCode,$AC:$AC,Sheet1!S71_ItemType,$AD:$AD)","v":0},{"$f":"SUMIFS(Sheet1!S71_OY1BudgetAmount,Sheet1!S71_A2SubCode,$AC:$AC,Sheet1!S71_ItemType,$AD:$AD)","v":0},{"$f":"SUMIFS(Sheet1!S71_OY2BudgetAmount,Sheet1!S71_A2SubCode,$AC:$AC,Sheet1!S71_ItemType,$AD:$AD)","v":0},null,null,null,null,null,null,null,null,null,null,null,null,null,null,null,null,null,"2308","IE"]
[{"$f":"A63","v":"Housing"},null,{"$f":"SUM(C186:C187)","v":1458435},1458435,1458435,1458435,1378830,1378830,1545923,1513277,1585109,null,null,null,null,null,null,null,null,null,null,null,null,null,null,null,null,null,null,"IE"]
["Housing",null,{"$f":"SUMIFS(Sheet1!S71_OriginalBudAmnt,Sheet1!S71_A2SubCode,$AC:$AC,Sheet1!S71_ItemType,$AD:$AD)","v":1458435},{"$f":"SUMIFS(Sheet1!S71_OriginalBudAmnt,Sheet1!S71_A2SubCode,$AC:$AC,Sheet1!S71_ItemType,$AD:$AD)","v":1458435},{"$f":"SUMIFS(Sheet1!S71_OriginalBudAmnt,Sheet1!S71_A2SubCode,$AC:$AC,Sheet1!S71_ItemType,$AD:$AD)","v":1458435},{"$f":"SUMIFS(Sheet1!S71_OriginalBudAmnt,Sheet1!S71_A2SubCode,$AC:$AC,Sheet1!S71_ItemType,$AD:$AD)","v":1458435},{"$f":"SUMIFS(Sheet1!S71_AdjustmentBudAmnt,Sheet1!S71_A2SubCode,$AC:$AC,Sheet1!S71_ItemType,$AD:$AD)","v":1378830},{"$f":"SUMIFS(Sheet1!S71_AdjustmentBudAmnt,Sheet1!S71_A2SubCode,$AC:$AC,Sheet1!S71_ItemType,$AD:$AD)","v":1378830},{"$f":"SUMIFS(Sheet1!S71_ASBudgetAmount,Sheet1!S71_A2SubCode,$AC:$AC,Sheet1!S71_ItemType,$AD:$AD)","v":1545923},{"$f":"SUMIFS(Sheet1!S71_OY1BudgetAmount,Sheet1!S71_A2SubCode,$AC:$AC,Sheet1!S71_ItemType,$AD:$AD)","v":1513277},{"$f":"SUMIFS(Sheet1!S71_OY2BudgetAmount,Sheet1!S71_A2SubCode,$AC:$AC,Sheet1!S71_ItemType,$AD:$AD)","v":1585109},null,null,null,null,null,null,null,null,null,null,null,null,null,null,null,null,null,"2401","IE"]
["Informal Settlements",null,{"$f":"SUMIFS(Sheet1!S71_OriginalBudAmnt,Sheet1!S71_A2SubCode,$AC:$AC,Sheet1!S71_ItemType,$AD:$AD)","v":0},{"$f":"SUMIFS(Sheet1!S71_OriginalBudAmnt,Sheet1!S71_A2SubCode,$AC:$AC,Sheet1!S71_ItemType,$AD:$AD)","v":0},{"$f":"SUMIFS(Sheet1!S71_OriginalBudAmnt,Sheet1!S71_A2SubCode,$AC:$AC,Sheet1!S71_ItemType,$AD:$AD)","v":0},{"$f":"SUMIFS(Sheet1!S71_OriginalBudAmnt,Sheet1!S71_A2SubCode,$AC:$AC,Sheet1!S71_ItemType,$AD:$AD)","v":0},{"$f":"SUMIFS(Sheet1!S71_AdjustmentBudAmnt,Sheet1!S71_A2SubCode,$AC:$AC,Sheet1!S71_ItemType,$AD:$AD)","v":0},{"$f":"SUMIFS(Sheet1!S71_AdjustmentBudAmnt,Sheet1!S71_A2SubCode,$AC:$AC,Sheet1!S71_ItemType,$AD:$AD)","v":0},{"$f":"SUMIFS(Sheet1!S71_ASBudgetAmount,Sheet1!S71_A2SubCode,$AC:$AC,Sheet1!S71_ItemType,$AD:$AD)","v":0},{"$f":"SUMIFS(Sheet1!S71_OY1BudgetAmount,Sheet1!S71_A2SubCode,$AC:$AC,Sheet1!S71_ItemType,$AD:$AD)","v":0},{"$f":"SUMIFS(Sheet1!S71_OY2BudgetAmount,Sheet1!S71_A2SubCode,$AC:$AC,Sheet1!S71_ItemType,$AD:$AD)","v":0},null,null,null,null,null,null,null,null,null,null,null,null,null,null,null,null,null,"2402","IE"]
["Health",null,{"$f":"SUM(C189:C195)","v":0},{"$f":"SUM(D189:D195)","v":0},0,0,0,0,0,0,0,null,null,null,null,null,null,null,null,null,null,null,null,null,null,null,null,null,null,"IE"]
["Ambulance",null,{"$f":"SUMIFS(Sheet1!S71_OriginalBudAmnt,Sheet1!S71_A2SubCode,$AC:$AC,Sheet1!S71_ItemType,$AD:$AD)","v":0},{"$f":"SUMIFS(Sheet1!S71_OriginalBudAmnt,Sheet1!S71_A2SubCode,$AC:$AC,Sheet1!S71_ItemType,$AD:$AD)","v":0},{"$f":"SUMIFS(Sheet1!S71_OriginalBudAmnt,Sheet1!S71_A2SubCode,$AC:$AC,Sheet1!S71_ItemType,$AD:$AD)","v":0},{"$f":"SUMIFS(Sheet1!S71_OriginalBudAmnt,Sheet1!S71_A2SubCode,$AC:$AC,Sheet1!S71_ItemType,$AD:$AD)","v":0},{"$f":"SUMIFS(Sheet1!S71_AdjustmentBudAmnt,Sheet1!S71_A2SubCode,$AC:$AC,Sheet1!S71_ItemType,$AD:$AD)","v":0},{"$f":"SUMIFS(Sheet1!S71_AdjustmentBudAmnt,Sheet1!S71_A2SubCode,$AC:$AC,Sheet1!S71_ItemType,$AD:$AD)","v":0},{"$f":"SUMIFS(Sheet1!S71_ASBudgetAmount,Sheet1!S71_A2SubCode,$AC:$AC,Sheet1!S71_ItemType,$AD:$AD)","v":0},{"$f":"SUMIFS(Sheet1!S71_OY1BudgetAmount,Sheet1!S71_A2SubCode,$AC:$AC,Sheet1!S71_ItemType,$AD:$AD)","v":0},{"$f":"SUMIFS(Sheet1!S71_OY2BudgetAmount,Sheet1!S71_A2SubCode,$AC:$AC,Sheet1!S71_ItemType,$AD:$AD)","v":0},null,null,null,null,null,null,null,null,null,null,null,null,null,null,null,null,null,"2501","IE"]
["Health Services",null,{"$f":"SUMIFS(Sheet1!S71_OriginalBudAmnt,Sheet1!S71_A2SubCode,$AC:$AC,Sheet1!S71_ItemType,$AD:$AD)","v":0},{"$f":"SUMIFS(Sheet1!S71_OriginalBudAmnt,Sheet1!S71_A2SubCode,$AC:$AC,Sheet1!S71_ItemType,$AD:$AD)","v":0},{"$f":"SUMIFS(Sheet1!S71_OriginalBudAmnt,Sheet1!S71_A2SubCode,$AC:$AC,Sheet1!S71_ItemType,$AD:$AD)","v":0},{"$f":"SUMIFS(Sheet1!S71_OriginalBudAmnt,Sheet1!S71_A2SubCode,$AC:$AC,Sheet1!S71_ItemType,$AD:$AD)","v":0},{"$f":"SUMIFS(Sheet1!S71_AdjustmentBudAmnt,Sheet1!S71_A2SubCode,$AC:$AC,Sheet1!S71_ItemType,$AD:$AD)","v":0},{"$f":"SUMIFS(Sheet1!S71_AdjustmentBudAmnt,Sheet1!S71_A2SubCode,$AC:$AC,Sheet1!S71_ItemType,$AD:$AD)","v":0},{"$f":"SUMIFS(Sheet1!S71_ASBudgetAmount,Sheet1!S71_A2SubCode,$AC:$AC,Sheet1!S71_ItemType,$AD:$AD)","v":0},{"$f":"SUMIFS(Sheet1!S71_OY1BudgetAmount,Sheet1!S71_A2SubCode,$AC:$AC,Sheet1!S71_ItemType,$AD:$AD)","v":0},{"$f":"SUMIFS(Sheet1!S71_OY2BudgetAmount,Sheet1!S71_A2SubCode,$AC:$AC,Sheet1!S71_ItemType,$AD:$AD)","v":0},null,null,null,null,null,null,null,null,null,null,null,null,null,null,null,null,null,"2502","IE"]
["Laboratory Services",null,{"$f":"SUMIFS(Sheet1!S71_OriginalBudAmnt,Sheet1!S71_A2SubCode,$AC:$AC,Sheet1!S71_ItemType,$AD:$AD)","v":0},{"$f":"SUMIFS(Sheet1!S71_OriginalBudAmnt,Sheet1!S71_A2SubCode,$AC:$AC,Sheet1!S71_ItemType,$AD:$AD)","v":0},{"$f":"SUMIFS(Sheet1!S71_OriginalBudAmnt,Sheet1!S71_A2SubCode,$AC:$AC,Sheet1!S71_ItemType,$AD:$AD)","v":0},{"$f":"SUMIFS(Sheet1!S71_OriginalBudAmnt,Sheet1!S71_A2SubCode,$AC:$AC,Sheet1!S71_ItemType,$AD:$AD)","v":0},{"$f":"SUMIFS(Sheet1!S71_AdjustmentBudAmnt,Sheet1!S71_A2SubCode,$AC:$AC,Sheet1!S71_ItemType,$AD:$AD)","v":0},{"$f":"SUMIFS(Sheet1!S71_AdjustmentBudAmnt,Sheet1!S71_A2SubCode,$AC:$AC,Sheet1!S71_ItemType,$AD:$AD)","v":0},{"$f":"SUMIFS(Sheet1!S71_ASBudgetAmount,Sheet1!S71_A2SubCode,$AC:$AC,Sheet1!S71_ItemType,$AD:$AD)","v":0},{"$f":"SUMIFS(Sheet1!S71_OY1BudgetAmount,Sheet1!S71_A2SubCode,$AC:$AC,Sheet1!S71_ItemType,$AD:$AD)","v":0},{"$f":"SUMIFS(Sheet1!S71_OY2BudgetAmount,Sheet1!S71_A2SubCode,$AC:$AC,Sheet1!S71_ItemType,$AD:$AD)","v":0},null,null,null,null,null,null,null,null,null,null,null,null,null,null,null,null,null,"2503","IE"]
["Food Control",null,{"$f":"SUMIFS(Sheet1!S71_OriginalBudAmnt,Sheet1!S71_A2SubCode,$AC:$AC,Sheet1!S71_ItemType,$AD:$AD)","v":0},{"$f":"SUMIFS(Sheet1!S71_OriginalBudAmnt,Sheet1!S71_A2SubCode,$AC:$AC,Sheet1!S71_ItemType,$AD:$AD)","v":0},{"$f":"SUMIFS(Sheet1!S71_OriginalBudAmnt,Sheet1!S71_A2SubCode,$AC:$AC,Sheet1!S71_ItemType,$AD:$AD)","v":0},{"$f":"SUMIFS(Sheet1!S71_OriginalBudAmnt,Sheet1!S71_A2SubCode,$AC:$AC,Sheet1!S71_ItemType,$AD:$AD)","v":0},{"$f":"SUMIFS(Sheet1!S71_AdjustmentBudAmnt,Sheet1!S71_A2SubCode,$AC:$AC,Sheet1!S71_ItemType,$AD:$AD)","v":0},{"$f":"SUMIFS(Sheet1!S71_AdjustmentBudAmnt,Sheet1!S71_A2SubCode,$AC:$AC,Sheet1!S71_ItemType,$AD:$AD)","v":0},{"$f":"SUMIFS(Sheet1!S71_ASBudgetAmount,Sheet1!S71_A2SubCode,$AC:$AC,Sheet1!S71_ItemType,$AD:$AD)","v":0},{"$f":"SUMIFS(Sheet1!S71_OY1BudgetAmount,Sheet1!S71_A2SubCode,$AC:$AC,Sheet1!S71_ItemType,$AD:$AD)","v":0},{"$f":"SUMIFS(Sheet1!S71_OY2BudgetAmount,Sheet1!S71_A2SubCode,$AC:$AC,Sheet1!S71_ItemType,$AD:$AD)","v":0},null,null,null,null,null,null,null,null,null,null,null,null,null,null,null,null,null,"2504","IE"]
["Health Surveillance and Prevention of Communicable Diseases including immunizations",null,{"$f":"SUMIFS(Sheet1!S71_OriginalBudAmnt,Sheet1!S71_A2SubCode,$AC:$AC,Sheet1!S71_ItemType,$AD:$AD)","v":0},{"$f":"SUMIFS(Sheet1!S71_OriginalBudAmnt,Sheet1!S71_A2SubCode,$AC:$AC,Sheet1!S71_ItemType,$AD:$AD)","v":0},{"$f":"SUMIFS(Sheet1!S71_OriginalBudAmnt,Sheet1!S71_A2SubCode,$AC:$AC,Sheet1!S71_ItemType,$AD:$AD)","v":0},{"$f":"SUMIFS(Sheet1!S71_OriginalBudAmnt,Sheet1!S71_A2SubCode,$AC:$AC,Sheet1!S71_ItemType,$AD:$AD)","v":0},{"$f":"SUMIFS(Sheet1!S71_AdjustmentBudAmnt,Sheet1!S71_A2SubCode,$AC:$AC,Sheet1!S71_ItemType,$AD:$AD)","v":0},{"$f":"SUMIFS(Sheet1!S71_AdjustmentBudAmnt,Sheet1!S71_A2SubCode,$AC:$AC,Sheet1!S71_ItemType,$AD:$AD)","v":0},{"$f":"SUMIFS(Sheet1!S71_ASBudgetAmount,Sheet1!S71_A2SubCode,$AC:$AC,Sheet1!S71_ItemType,$AD:$AD)","v":0},{"$f":"SUMIFS(Sheet1!S71_OY1BudgetAmount,Sheet1!S71_A2SubCode,$AC:$AC,Sheet1!S71_ItemType,$AD:$AD)","v":0},{"$f":"SUMIFS(Sheet1!S71_OY2BudgetAmount,Sheet1!S71_A2SubCode,$AC:$AC,Sheet1!S71_ItemType,$AD:$AD)","v":0},null,null,null,null,null,null,null,null,null,null,null,null,null,null,null,null,null,"2505","IE"]
["Vector Control",null,{"$f":"SUMIFS(Sheet1!S71_OriginalBudAmnt,Sheet1!S71_A2SubCode,$AC:$AC,Sheet1!S71_ItemType,$AD:$AD)","v":0},{"$f":"SUMIFS(Sheet1!S71_OriginalBudAmnt,Sheet1!S71_A2SubCode,$AC:$AC,Sheet1!S71_ItemType,$AD:$AD)","v":0},{"$f":"SUMIFS(Sheet1!S71_OriginalBudAmnt,Sheet1!S71_A2SubCode,$AC:$AC,Sheet1!S71_ItemType,$AD:$AD)","v":0},{"$f":"SUMIFS(Sheet1!S71_OriginalBudAmnt,Sheet1!S71_A2SubCode,$AC:$AC,Sheet1!S71_ItemType,$AD:$AD)","v":0},{"$f":"SUMIFS(Sheet1!S71_AdjustmentBudAmnt,Sheet1!S71_A2SubCode,$AC:$AC,Sheet1!S71_ItemType,$AD:$AD)","v":0},{"$f":"SUMIFS(Sheet1!S71_AdjustmentBudAmnt,Sheet1!S71_A2SubCode,$AC:$AC,Sheet1!S71_ItemType,$AD:$AD)","v":0},{"$f":"SUMIFS(Sheet1!S71_ASBudgetAmount,Sheet1!S71_A2SubCode,$AC:$AC,Sheet1!S71_ItemType,$AD:$AD)","v":0},{"$f":"SUMIFS(Sheet1!S71_OY1BudgetAmount,Sheet1!S71_A2SubCode,$AC:$AC,Sheet1!S71_ItemType,$AD:$AD)","v":0},{"$f":"SUMIFS(Sheet1!S71_OY2BudgetAmount,Sheet1!S71_A2SubCode,$AC:$AC,Sheet1!S71_ItemType,$AD:$AD)","v":0},null,null,null,null,null,null,null,null,null,null,null,null,null,null,null,null,null,"2506","IE"]
["Chemical Safety",null,{"$f":"SUMIFS(Sheet1!S71_OriginalBudAmnt,Sheet1!S71_A2SubCode,$AC:$AC,Sheet1!S71_ItemType,$AD:$AD)","v":0},{"$f":"SUMIFS(Sheet1!S71_OriginalBudAmnt,Sheet1!S71_A2SubCode,$AC:$AC,Sheet1!S71_ItemType,$AD:$AD)","v":0},{"$f":"SUMIFS(Sheet1!S71_OriginalBudAmnt,Sheet1!S71_A2SubCode,$AC:$AC,Sheet1!S71_ItemType,$AD:$AD)","v":0},{"$f":"SUMIFS(Sheet1!S71_OriginalBudAmnt,Sheet1!S71_A2SubCode,$AC:$AC,Sheet1!S71_ItemType,$AD:$AD)","v":0},{"$f":"SUMIFS(Sheet1!S71_AdjustmentBudAmnt,Sheet1!S71_A2SubCode,$AC:$AC,Sheet1!S71_ItemType,$AD:$AD)","v":0},{"$f":"SUMIFS(Sheet1!S71_AdjustmentBudAmnt,Sheet1!S71_A2SubCode,$AC:$AC,Sheet1!S71_ItemType,$AD:$AD)","v":0},{"$f":"SUMIFS(Sheet1!S71_ASBudgetAmount,Sheet1!S71_A2SubCode,$AC:$AC,Sheet1!S71_ItemType,$AD:$AD)","v":0},{"$f":"SUMIFS(Sheet1!S71_OY1BudgetAmount,Sheet1!S71_A2SubCode,$AC:$AC,Sheet1!S71_ItemType,$AD:$AD)","v":0},{"$f":"SUMIFS(Sheet1!S71_OY2BudgetAmount,Sheet1!S71_A2SubCode,$AC:$AC,Sheet1!S71_ItemType,$AD:$AD)","v":0},null,null,null,null,null,null,null,null,null,null,null,null,null,null,null,null,null,"2507","IE"]
["Economic and environmental services",null,{"$f":"C197+C208+C213","v":110192109},110192109,110192109,110192109,120812281,120812281,121458789,125865747,132323528,null,null,null,null,null,null,null,null,null,null,null,null,null,null,null,null,null,null,"IE"]
["Planning and development",null,{"$f":"SUM(C198:C207)","v":31772469},{"$f":"SUM(D198:D207)","v":31772469},31772469,31772469,27809434,27809434,28911078,31912910,34981557,null,null,null,null,null,null,null,null,null,null,null,null,null,null,null,null,null,null,"IE"]
["Billboards",null,{"$f":"SUMIFS(Sheet1!S71_OriginalBudAmnt,Sheet1!S71_A2SubCode,$AC:$AC,Sheet1!S71_ItemType,$AD:$AD)","v":0},{"$f":"SUMIFS(Sheet1!S71_OriginalBudAmnt,Sheet1!S71_A2SubCode,$AC:$AC,Sheet1!S71_ItemType,$AD:$AD)","v":0},{"$f":"SUMIFS(Sheet1!S71_OriginalBudAmnt,Sheet1!S71_A2SubCode,$AC:$AC,Sheet1!S71_ItemType,$AD:$AD)","v":0},{"$f":"SUMIFS(Sheet1!S71_OriginalBudAmnt,Sheet1!S71_A2SubCode,$AC:$AC,Sheet1!S71_ItemType,$AD:$AD)","v":0},{"$f":"SUMIFS(Sheet1!S71_AdjustmentBudAmnt,Sheet1!S71_A2SubCode,$AC:$AC,Sheet1!S71_ItemType,$AD:$AD)","v":0},{"$f":"SUMIFS(Sheet1!S71_AdjustmentBudAmnt,Sheet1!S71_A2SubCode,$AC:$AC,Sheet1!S71_ItemType,$AD:$AD)","v":0},{"$f":"SUMIFS(Sheet1!S71_ASBudgetAmount,Sheet1!S71_A2SubCode,$AC:$AC,Sheet1!S71_ItemType,$AD:$AD)","v":0},{"$f":"SUMIFS(Sheet1!S71_OY1BudgetAmount,Sheet1!S71_A2SubCode,$AC:$AC,Sheet1!S71_ItemType,$AD:$AD)","v":0},{"$f":"SUMIFS(Sheet1!S71_OY2BudgetAmount,Sheet1!S71_A2SubCode,$AC:$AC,Sheet1!S71_ItemType,$AD:$AD)","v":0},null,null,null,null,null,null,null,null,null,null,null,null,null,null,null,null,null,"3101","IE"]
["Corporate Wide Strategic Planning (IDPs, LEDs)",null,{"$f":"SUMIFS(Sheet1!S71_OriginalBudAmnt,Sheet1!S71_A2SubCode,$AC:$AC,Sheet1!S71_ItemType,$AD:$AD)","v":6539464},{"$f":"SUMIFS(Sheet1!S71_OriginalBudAmnt,Sheet1!S71_A2SubCode,$AC:$AC,Sheet1!S71_ItemType,$AD:$AD)","v":6539464},{"$f":"SUMIFS(Sheet1!S71_OriginalBudAmnt,Sheet1!S71_A2SubCode,$AC:$AC,Sheet1!S71_ItemType,$AD:$AD)","v":6539464},{"$f":"SUMIFS(Sheet1!S71_OriginalBudAmnt,Sheet1!S71_A2SubCode,$AC:$AC,Sheet1!S71_ItemType,$AD:$AD)","v":6539464},{"$f":"SUMIFS(Sheet1!S71_AdjustmentBudAmnt,Sheet1!S71_A2SubCode,$AC:$AC,Sheet1!S71_ItemType,$AD:$AD)","v":5861384},{"$f":"SUMIFS(Sheet1!S71_AdjustmentBudAmnt,Sheet1!S71_A2SubCode,$AC:$AC,Sheet1!S71_ItemType,$AD:$AD)","v":5861384},{"$f":"SUMIFS(Sheet1!S71_ASBudgetAmount,Sheet1!S71_A2SubCode,$AC:$AC,Sheet1!S71_ItemType,$AD:$AD)","v":6278322},{"$f":"SUMIFS(Sheet1!S71_OY1BudgetAmount,Sheet1!S71_A2SubCode,$AC:$AC,Sheet1!S71_ItemType,$AD:$AD)","v":6690729},{"$f":"SUMIFS(Sheet1!S71_OY2BudgetAmount,Sheet1!S71_A2SubCode,$AC:$AC,Sheet1!S71_ItemType,$AD:$AD)","v":7064304},null,null,null,null,null,null,null,null,null,null,null,null,null,null,null,null,null,"3102","IE"]
["Central City Improvement District",null,{"$f":"SUMIFS(Sheet1!S71_OriginalBudAmnt,Sheet1!S71_A2SubCode,$AC:$AC,Sheet1!S71_ItemType,$AD:$AD)","v":0},{"$f":"SUMIFS(Sheet1!S71_OriginalBudAmnt,Sheet1!S71_A2SubCode,$AC:$AC,Sheet1!S71_ItemType,$AD:$AD)","v":0},{"$f":"SUMIFS(Sheet1!S71_OriginalBudAmnt,Sheet1!S71_A2SubCode,$AC:$AC,Sheet1!S71_ItemType,$AD:$AD)","v":0},{"$f":"SUMIFS(Sheet1!S71_OriginalBudAmnt,Sheet1!S71_A2SubCode,$AC:$AC,Sheet1!S71_ItemType,$AD:$AD)","v":0},{"$f":"SUMIFS(Sheet1!S71_AdjustmentBudAmnt,Sheet1!S71_A2SubCode,$AC:$AC,Sheet1!S71_ItemType,$AD:$AD)","v":0},{"$f":"SUMIFS(Sheet1!S71_AdjustmentBudAmnt,Sheet1!S71_A2SubCode,$AC:$AC,Sheet1!S71_ItemType,$AD:$AD)","v":0},{"$f":"SUMIFS(Sheet1!S71_ASBudgetAmount,Sheet1!S71_A2SubCode,$AC:$AC,Sheet1!S71_ItemType,$AD:$AD)","v":0},{"$f":"SUMIFS(Sheet1!S71_OY1BudgetAmount,Sheet1!S71_A2SubCode,$AC:$AC,Sheet1!S71_ItemType,$AD:$AD)","v":0},{"$f":"SUMIFS(Sheet1!S71_OY2BudgetAmount,Sheet1!S71_A2SubCode,$AC:$AC,Sheet1!S71_ItemType,$AD:$AD)","v":0},null,null,null,null,null,null,null,null,null,null,null,null,null,null,null,null,null,"3103","IE"]
["Development Facilitation",null,{"$f":"SUMIFS(Sheet1!S71_OriginalBudAmnt,Sheet1!S71_A2SubCode,$AC:$AC,Sheet1!S71_ItemType,$AD:$AD)","v":0},{"$f":"SUMIFS(Sheet1!S71_OriginalBudAmnt,Sheet1!S71_A2SubCode,$AC:$AC,Sheet1!S71_ItemType,$AD:$AD)","v":0},{"$f":"SUMIFS(Sheet1!S71_OriginalBudAmnt,Sheet1!S71_A2SubCode,$AC:$AC,Sheet1!S71_ItemType,$AD:$AD)","v":0},{"$f":"SUMIFS(Sheet1!S71_OriginalBudAmnt,Sheet1!S71_A2SubCode,$AC:$AC,Sheet1!S71_ItemType,$AD:$AD)","v":0},{"$f":"SUMIFS(Sheet1!S71_AdjustmentBudAmnt,Sheet1!S71_A2SubCode,$AC:$AC,Sheet1!S71_ItemType,$AD:$AD)","v":0},{"$f":"SUMIFS(Sheet1!S71_AdjustmentBudAmnt,Sheet1!S71_A2SubCode,$AC:$AC,Sheet1!S71_ItemType,$AD:$AD)","v":0},{"$f":"SUMIFS(Sheet1!S71_ASBudgetAmount,Sheet1!S71_A2SubCode,$AC:$AC,Sheet1!S71_ItemType,$AD:$AD)","v":0},{"$f":"SUMIFS(Sheet1!S71_OY1BudgetAmount,Sheet1!S71_A2SubCode,$AC:$AC,Sheet1!S71_ItemType,$AD:$AD)","v":0},{"$f":"SUMIFS(Sheet1!S71_OY2BudgetAmount,Sheet1!S71_A2SubCode,$AC:$AC,Sheet1!S71_ItemType,$AD:$AD)","v":0},null,null,null,null,null,null,null,null,null,null,null,null,null,null,null,null,null,"3104","IE"]
["Economic Development/Planning",null,{"$f":"SUMIFS(Sheet1!S71_OriginalBudAmnt,Sheet1!S71_A2SubCode,$AC:$AC,Sheet1!S71_ItemType,$AD:$AD)","v":1443000},{"$f":"SUMIFS(Sheet1!S71_OriginalBudAmnt,Sheet1!S71_A2SubCode,$AC:$AC,Sheet1!S71_ItemType,$AD:$AD)","v":1443000},{"$f":"SUMIFS(Sheet1!S71_OriginalBudAmnt,Sheet1!S71_A2SubCode,$AC:$AC,Sheet1!S71_ItemType,$AD:$AD)","v":1443000},{"$f":"SUMIFS(Sheet1!S71_OriginalBudAmnt,Sheet1!S71_A2SubCode,$AC:$AC,Sheet1!S71_ItemType,$AD:$AD)","v":1443000},{"$f":"SUMIFS(Sheet1!S71_AdjustmentBudAmnt,Sheet1!S71_A2SubCode,$AC:$AC,Sheet1!S71_ItemType,$AD:$AD)","v":2145000},{"$f":"SUMIFS(Sheet1!S71_AdjustmentBudAmnt,Sheet1!S71_A2SubCode,$AC:$AC,Sheet1!S71_ItemType,$AD:$AD)","v":2145000},{"$f":"SUMIFS(Sheet1!S71_ASBudgetAmount,Sheet1!S71_A2SubCode,$AC:$AC,Sheet1!S71_ItemType,$AD:$AD)","v":2653000},{"$f":"SUMIFS(Sheet1!S71_OY1BudgetAmount,Sheet1!S71_A2SubCode,$AC:$AC,Sheet1!S71_ItemType,$AD:$AD)","v":2859000},{"$f":"SUMIFS(Sheet1!S71_OY2BudgetAmount,Sheet1!S71_A2SubCode,$AC:$AC,Sheet1!S71_ItemType,$AD:$AD)","v":3065000},null,null,null,null,null,null,null,null,null,null,null,null,null,null,null,null,null,"3105","IE"]
["Regional Planning and Development",null,{"$f":"SUMIFS(Sheet1!S71_OriginalBudAmnt,Sheet1!S71_A2SubCode,$AC:$AC,Sheet1!S71_ItemType,$AD:$AD)","v":0},{"$f":"SUMIFS(Sheet1!S71_OriginalBudAmnt,Sheet1!S71_A2SubCode,$AC:$AC,Sheet1!S71_ItemType,$AD:$AD)","v":0},{"$f":"SUMIFS(Sheet1!S71_OriginalBudAmnt,Sheet1!S71_A2SubCode,$AC:$AC,Sheet1!S71_ItemType,$AD:$AD)","v":0},{"$f":"SUMIFS(Sheet1!S71_OriginalBudAmnt,Sheet1!S71_A2SubCode,$AC:$AC,Sheet1!S71_ItemType,$AD:$AD)","v":0},{"$f":"SUMIFS(Sheet1!S71_AdjustmentBudAmnt,Sheet1!S71_A2SubCode,$AC:$AC,Sheet1!S71_ItemType,$AD:$AD)","v":0},{"$f":"SUMIFS(Sheet1!S71_AdjustmentBudAmnt,Sheet1!S71_A2SubCode,$AC:$AC,Sheet1!S71_ItemType,$AD:$AD)","v":0},{"$f":"SUMIFS(Sheet1!S71_ASBudgetAmount,Sheet1!S71_A2SubCode,$AC:$AC,Sheet1!S71_ItemType,$AD:$AD)","v":0},{"$f":"SUMIFS(Sheet1!S71_OY1BudgetAmount,Sheet1!S71_A2SubCode,$AC:$AC,Sheet1!S71_ItemType,$AD:$AD)","v":0},{"$f":"SUMIFS(Sheet1!S71_OY2BudgetAmount,Sheet1!S71_A2SubCode,$AC:$AC,Sheet1!S71_ItemType,$AD:$AD)","v":0},null,null,null,null,null,null,null,null,null,null,null,null,null,null,null,null,null,"3106","IE"]
["Town Planning, Building Regulations and Enforcement, and City Engineer",null,{"$f":"SUMIFS(Sheet1!S71_OriginalBudAmnt,Sheet1!S71_A2SubCode,$AC:$AC,Sheet1!S71_ItemType,$AD:$AD)","v":15766403},{"$f":"SUMIFS(Sheet1!S71_OriginalBudAmnt,Sheet1!S71_A2SubCode,$AC:$AC,Sheet1!S71_ItemType,$AD:$AD)","v":15766403},{"$f":"SUMIFS(Sheet1!S71_OriginalBudAmnt,Sheet1!S71_A2SubCode,$AC:$AC,Sheet1!S71_ItemType,$AD:$AD)","v":15766403},{"$f":"SUMIFS(Sheet1!S71_OriginalBudAmnt,Sheet1!S71_A2SubCode,$AC:$AC,Sheet1!S71_ItemType,$AD:$AD)","v":15766403},{"$f":"SUMIFS(Sheet1!S71_AdjustmentBudAmnt,Sheet1!S71_A2SubCode,$AC:$AC,Sheet1!S71_ItemType,$AD:$AD)","v":11984726},{"$f":"SUMIFS(Sheet1!S71_AdjustmentBudAmnt,Sheet1!S71_A2SubCode,$AC:$AC,Sheet1!S71_ItemType,$AD:$AD)","v":11984726},{"$f":"SUMIFS(Sheet1!S71_ASBudgetAmount,Sheet1!S71_A2SubCode,$AC:$AC,Sheet1!S71_ItemType,$AD:$AD)","v":15198193},{"$f":"SUMIFS(Sheet1!S71_OY1BudgetAmount,Sheet1!S71_A2SubCode,$AC:$AC,Sheet1!S71_ItemType,$AD:$AD)","v":17338148},{"$f":"SUMIFS(Sheet1!S71_OY2BudgetAmount,Sheet1!S71_A2SubCode,$AC:$AC,Sheet1!S71_ItemType,$AD:$AD)","v":19582400},null,null,null,null,null,null,null,null,null,null,null,null,null,null,null,null,null,"3107","IE"]
["Project Management Unit",null,{"$f":"SUMIFS(Sheet1!S71_OriginalBudAmnt,Sheet1!S71_A2SubCode,$AC:$AC,Sheet1!S71_ItemType,$AD:$AD)","v":8023602},{"$f":"SUMIFS(Sheet1!S71_OriginalBudAmnt,Sheet1!S71_A2SubCode,$AC:$AC,Sheet1!S71_ItemType,$AD:$AD)","v":8023602},{"$f":"SUMIFS(Sheet1!S71_OriginalBudAmnt,Sheet1!S71_A2SubCode,$AC:$AC,Sheet1!S71_ItemType,$AD:$AD)","v":8023602},{"$f":"SUMIFS(Sheet1!S71_OriginalBudAmnt,Sheet1!S71_A2SubCode,$AC:$AC,Sheet1!S71_ItemType,$AD:$AD)","v":8023602},{"$f":"SUMIFS(Sheet1!S71_AdjustmentBudAmnt,Sheet1!S71_A2SubCode,$AC:$AC,Sheet1!S71_ItemType,$AD:$AD)","v":7818324},{"$f":"SUMIFS(Sheet1!S71_AdjustmentBudAmnt,Sheet1!S71_A2SubCode,$AC:$AC,Sheet1!S71_ItemType,$AD:$AD)","v":7818324},{"$f":"SUMIFS(Sheet1!S71_ASBudgetAmount,Sheet1!S71_A2SubCode,$AC:$AC,Sheet1!S71_ItemType,$AD:$AD)","v":4781563},{"$f":"SUMIFS(Sheet1!S71_OY1BudgetAmount,Sheet1!S71_A2SubCode,$AC:$AC,Sheet1!S71_ItemType,$AD:$AD)","v":5025033},{"$f":"SUMIFS(Sheet1!S71_OY2BudgetAmount,Sheet1!S71_A2SubCode,$AC:$AC,Sheet1!S71_ItemType,$AD:$AD)","v":5269853},null,null,null,null,null,null,null,null,null,null,null,null,null,null,null,null,null,"3108","IE"]
["Provincial Planning",null,{"$f":"SUMIFS(Sheet1!S71_OriginalBudAmnt,Sheet1!S71_A2SubCode,$AC:$AC,Sheet1!S71_ItemType,$AD:$AD)","v":0},{"$f":"SUMIFS(Sheet1!S71_OriginalBudAmnt,Sheet1!S71_A2SubCode,$AC:$AC,Sheet1!S71_ItemType,$AD:$AD)","v":0},{"$f":"SUMIFS(Sheet1!S71_OriginalBudAmnt,Sheet1!S71_A2SubCode,$AC:$AC,Sheet1!S71_ItemType,$AD:$AD)","v":0},{"$f":"SUMIFS(Sheet1!S71_OriginalBudAmnt,Sheet1!S71_A2SubCode,$AC:$AC,Sheet1!S71_ItemType,$AD:$AD)","v":0},{"$f":"SUMIFS(Sheet1!S71_AdjustmentBudAmnt,Sheet1!S71_A2SubCode,$AC:$AC,Sheet1!S71_ItemType,$AD:$AD)","v":0},{"$f":"SUMIFS(Sheet1!S71_AdjustmentBudAmnt,Sheet1!S71_A2SubCode,$AC:$AC,Sheet1!S71_ItemType,$AD:$AD)","v":0},{"$f":"SUMIFS(Sheet1!S71_ASBudgetAmount,Sheet1!S71_A2SubCode,$AC:$AC,Sheet1!S71_ItemType,$AD:$AD)","v":0},{"$f":"SUMIFS(Sheet1!S71_OY1BudgetAmount,Sheet1!S71_A2SubCode,$AC:$AC,Sheet1!S71_ItemType,$AD:$AD)","v":0},{"$f":"SUMIFS(Sheet1!S71_OY2BudgetAmount,Sheet1!S71_A2SubCode,$AC:$AC,Sheet1!S71_ItemType,$AD:$AD)","v":0},null,null,null,null,null,null,null,null,null,null,null,null,null,null,null,null,null,"3109","IE"]
["Support to Local Municipalities",null,{"$f":"SUMIFS(Sheet1!S71_OriginalBudAmnt,Sheet1!S71_A2SubCode,$AC:$AC,Sheet1!S71_ItemType,$AD:$AD)","v":0},{"$f":"SUMIFS(Sheet1!S71_OriginalBudAmnt,Sheet1!S71_A2SubCode,$AC:$AC,Sheet1!S71_ItemType,$AD:$AD)","v":0},{"$f":"SUMIFS(Sheet1!S71_OriginalBudAmnt,Sheet1!S71_A2SubCode,$AC:$AC,Sheet1!S71_ItemType,$AD:$AD)","v":0},{"$f":"SUMIFS(Sheet1!S71_OriginalBudAmnt,Sheet1!S71_A2SubCode,$AC:$AC,Sheet1!S71_ItemType,$AD:$AD)","v":0},{"$f":"SUMIFS(Sheet1!S71_AdjustmentBudAmnt,Sheet1!S71_A2SubCode,$AC:$AC,Sheet1!S71_ItemType,$AD:$AD)","v":0},{"$f":"SUMIFS(Sheet1!S71_AdjustmentBudAmnt,Sheet1!S71_A2SubCode,$AC:$AC,Sheet1!S71_ItemType,$AD:$AD)","v":0},{"$f":"SUMIFS(Sheet1!S71_ASBudgetAmount,Sheet1!S71_A2SubCode,$AC:$AC,Sheet1!S71_ItemType,$AD:$AD)","v":0},{"$f":"SUMIFS(Sheet1!S71_OY1BudgetAmount,Sheet1!S71_A2SubCode,$AC:$AC,Sheet1!S71_ItemType,$AD:$AD)","v":0},{"$f":"SUMIFS(Sheet1!S71_OY2BudgetAmount,Sheet1!S71_A2SubCode,$AC:$AC,Sheet1!S71_ItemType,$AD:$AD)","v":0},null,null,null,null,null,null,null,null,null,null,null,null,null,null,null,null,null,"3110","IE"]
["Road transport",null,{"$f":"SUM(C209:C212)","v":78419640},78419640,78419640,78419640,93002847,93002847,92547711,93952837,97341971,null,null,null,null,null,null,null,null,null,null,null,null,null,null,null,null,null,null,"IE"]
["Public Transport",null,{"$f":"SUMIFS(Sheet1!S71_OriginalBudAmnt,Sheet1!S71_A2SubCode,$AC:$AC,Sheet1!S71_ItemType,$AD:$AD)","v":1736492},{"$f":"SUMIFS(Sheet1!S71_OriginalBudAmnt,Sheet1!S71_A2SubCode,$AC:$AC,Sheet1!S71_ItemType,$AD:$AD)","v":1736492},{"$f":"SUMIFS(Sheet1!S71_OriginalBudAmnt,Sheet1!S71_A2SubCode,$AC:$AC,Sheet1!S71_ItemType,$AD:$AD)","v":1736492},{"$f":"SUMIFS(Sheet1!S71_OriginalBudAmnt,Sheet1!S71_A2SubCode,$AC:$AC,Sheet1!S71_ItemType,$AD:$AD)","v":1736492},{"$f":"SUMIFS(Sheet1!S71_AdjustmentBudAmnt,Sheet1!S71_A2SubCode,$AC:$AC,Sheet1!S71_ItemType,$AD:$AD)","v":886362},{"$f":"SUMIFS(Sheet1!S71_AdjustmentBudAmnt,Sheet1!S71_A2SubCode,$AC:$AC,Sheet1!S71_ItemType,$AD:$AD)","v":886362},{"$f":"SUMIFS(Sheet1!S71_ASBudgetAmount,Sheet1!S71_A2SubCode,$AC:$AC,Sheet1!S71_ItemType,$AD:$AD)","v":753770},{"$f":"SUMIFS(Sheet1!S71_OY1BudgetAmount,Sheet1!S71_A2SubCode,$AC:$AC,Sheet1!S71_ItemType,$AD:$AD)","v":741024},{"$f":"SUMIFS(Sheet1!S71_OY2BudgetAmount,Sheet1!S71_A2SubCode,$AC:$AC,Sheet1!S71_ItemType,$AD:$AD)","v":774468},null,null,null,null,null,null,null,null,null,null,null,null,null,null,null,null,null,"3203","IE"]
["Road and Traffic Regulation",null,{"$f":"SUMIFS(Sheet1!S71_OriginalBudAmnt,Sheet1!S71_A2SubCode,$AC:$AC,Sheet1!S71_ItemType,$AD:$AD)","v":21081623},{"$f":"SUMIFS(Sheet1!S71_OriginalBudAmnt,Sheet1!S71_A2SubCode,$AC:$AC,Sheet1!S71_ItemType,$AD:$AD)","v":21081623},{"$f":"SUMIFS(Sheet1!S71_OriginalBudAmnt,Sheet1!S71_A2SubCode,$AC:$AC,Sheet1!S71_ItemType,$AD:$AD)","v":21081623},{"$f":"SUMIFS(Sheet1!S71_OriginalBudAmnt,Sheet1!S71_A2SubCode,$AC:$AC,Sheet1!S71_ItemType,$AD:$AD)","v":21081623},{"$f":"SUMIFS(Sheet1!S71_AdjustmentBudAmnt,Sheet1!S71_A2SubCode,$AC:$AC,Sheet1!S71_ItemType,$AD:$AD)","v":20549880},{"$f":"SUMIFS(Sheet1!S71_AdjustmentBudAmnt,Sheet1!S71_A2SubCode,$AC:$AC,Sheet1!S71_ItemType,$AD:$AD)","v":20549880},{"$f":"SUMIFS(Sheet1!S71_ASBudgetAmount,Sheet1!S71_A2SubCode,$AC:$AC,Sheet1!S71_ItemType,$AD:$AD)","v":23095182},{"$f":"SUMIFS(Sheet1!S71_OY1BudgetAmount,Sheet1!S71_A2SubCode,$AC:$AC,Sheet1!S71_ItemType,$AD:$AD)","v":23807478},{"$f":"SUMIFS(Sheet1!S71_OY2BudgetAmount,Sheet1!S71_A2SubCode,$AC:$AC,Sheet1!S71_ItemType,$AD:$AD)","v":24960941},null,null,null,null,null,null,null,null,null,null,null,null,null,null,null,null,null,"3204","IE"]
["Roads",null,{"$f":"SUMIFS(Sheet1!S71_OriginalBudAmnt,Sheet1!S71_A2SubCode,$AC:$AC,Sheet1!S71_ItemType,$AD:$AD)","v":55601525},{"$f":"SUMIFS(Sheet1!S71_OriginalBudAmnt,Sheet1!S71_A2SubCode,$AC:$AC,Sheet1!S71_ItemType,$AD:$AD)","v":55601525},{"$f":"SUMIFS(Sheet1!S71_OriginalBudAmnt,Sheet1!S71_A2SubCode,$AC:$AC,Sheet1!S71_ItemType,$AD:$AD)","v":55601525},{"$f":"SUMIFS(Sheet1!S71_OriginalBudAmnt,Sheet1!S71_A2SubCode,$AC:$AC,Sheet1!S71_ItemType,$AD:$AD)","v":55601525},{"$f":"SUMIFS(Sheet1!S71_AdjustmentBudAmnt,Sheet1!S71_A2SubCode,$AC:$AC,Sheet1!S71_ItemType,$AD:$AD)","v":71566605},{"$f":"SUMIFS(Sheet1!S71_AdjustmentBudAmnt,Sheet1!S71_A2SubCode,$AC:$AC,Sheet1!S71_ItemType,$AD:$AD)","v":71566605},{"$f":"SUMIFS(Sheet1!S71_ASBudgetAmount,Sheet1!S71_A2SubCode,$AC:$AC,Sheet1!S71_ItemType,$AD:$AD)","v":68698759},{"$f":"SUMIFS(Sheet1!S71_OY1BudgetAmount,Sheet1!S71_A2SubCode,$AC:$AC,Sheet1!S71_ItemType,$AD:$AD)","v":69404335},{"$f":"SUMIFS(Sheet1!S71_OY2BudgetAmount,Sheet1!S71_A2SubCode,$AC:$AC,Sheet1!S71_ItemType,$AD:$AD)","v":71606562},null,null,null,null,null,null,null,null,null,null,null,null,null,null,null,null,null,"3205","IE"]
["Taxi Ranks",null,{"$f":"SUMIFS(Sheet1!S71_OriginalBudAmnt,Sheet1!S71_A2SubCode,$AC:$AC,Sheet1!S71_ItemType,$AD:$AD)","v":0},{"$f":"SUMIFS(Sheet1!S71_OriginalBudAmnt,Sheet1!S71_A2SubCode,$AC:$AC,Sheet1!S71_ItemType,$AD:$AD)","v":0},{"$f":"SUMIFS(Sheet1!S71_OriginalBudAmnt,Sheet1!S71_A2SubCode,$AC:$AC,Sheet1!S71_ItemType,$AD:$AD)","v":0},{"$f":"SUMIFS(Sheet1!S71_OriginalBudAmnt,Sheet1!S71_A2SubCode,$AC:$AC,Sheet1!S71_ItemType,$AD:$AD)","v":0},{"$f":"SUMIFS(Sheet1!S71_AdjustmentBudAmnt,Sheet1!S71_A2SubCode,$AC:$AC,Sheet1!S71_ItemType,$AD:$AD)","v":0},{"$f":"SUMIFS(Sheet1!S71_AdjustmentBudAmnt,Sheet1!S71_A2SubCode,$AC:$AC,Sheet1!S71_ItemType,$AD:$AD)","v":0},{"$f":"SUMIFS(Sheet1!S71_ASBudgetAmount,Sheet1!S71_A2SubCode,$AC:$AC,Sheet1!S71_ItemType,$AD:$AD)","v":0},{"$f":"SUMIFS(Sheet1!S71_OY1BudgetAmount,Sheet1!S71_A2SubCode,$AC:$AC,Sheet1!S71_ItemType,$AD:$AD)","v":0},{"$f":"SUMIFS(Sheet1!S71_OY2BudgetAmount,Sheet1!S71_A2SubCode,$AC:$AC,Sheet1!S71_ItemType,$AD:$AD)","v":0},null,null,null,null,null,null,null,null,null,null,null,null,null,null,null,null,null,"3206","IE"]
["Environmental protection",null,{"$f":"SUM(C214:C219)","v":0},{"$f":"SUM(D214:D219)","v":0},0,0,0,0,0,0,0,null,null,null,null,null,null,null,null,null,null,null,null,null,null,null,null,null,null,"IE"]
["Biodiversity and Landscape",null,{"$f":"SUMIFS(Sheet1!S71_OriginalBudAmnt,Sheet1!S71_A2SubCode,$AC:$AC,Sheet1!S71_ItemType,$AD:$AD)","v":0},{"$f":"SUMIFS(Sheet1!S71_OriginalBudAmnt,Sheet1!S71_A2SubCode,$AC:$AC,Sheet1!S71_ItemType,$AD:$AD)","v":0},{"$f":"SUMIFS(Sheet1!S71_OriginalBudAmnt,Sheet1!S71_A2SubCode,$AC:$AC,Sheet1!S71_ItemType,$AD:$AD)","v":0},{"$f":"SUMIFS(Sheet1!S71_OriginalBudAmnt,Sheet1!S71_A2SubCode,$AC:$AC,Sheet1!S71_ItemType,$AD:$AD)","v":0},{"$f":"SUMIFS(Sheet1!S71_AdjustmentBudAmnt,Sheet1!S71_A2SubCode,$AC:$AC,Sheet1!S71_ItemType,$AD:$AD)","v":0},{"$f":"SUMIFS(Sheet1!S71_AdjustmentBudAmnt,Sheet1!S71_A2SubCode,$AC:$AC,Sheet1!S71_ItemType,$AD:$AD)","v":0},{"$f":"SUMIFS(Sheet1!S71_ASBudgetAmount,Sheet1!S71_A2SubCode,$AC:$AC,Sheet1!S71_ItemType,$AD:$AD)","v":0},{"$f":"SUMIFS(Sheet1!S71_OY1BudgetAmount,Sheet1!S71_A2SubCode,$AC:$AC,Sheet1!S71_ItemType,$AD:$AD)","v":0},{"$f":"SUMIFS(Sheet1!S71_OY2BudgetAmount,Sheet1!S71_A2SubCode,$AC:$AC,Sheet1!S71_ItemType,$AD:$AD)","v":0},null,null,null,null,null,null,null,null,null,null,null,null,null,null,null,null,null,"3301","IE"]
["Coastal Protection",null,{"$f":"SUMIFS(Sheet1!S71_OriginalBudAmnt,Sheet1!S71_A2SubCode,$AC:$AC,Sheet1!S71_ItemType,$AD:$AD)","v":0},{"$f":"SUMIFS(Sheet1!S71_OriginalBudAmnt,Sheet1!S71_A2SubCode,$AC:$AC,Sheet1!S71_ItemType,$AD:$AD)","v":0},{"$f":"SUMIFS(Sheet1!S71_OriginalBudAmnt,Sheet1!S71_A2SubCode,$AC:$AC,Sheet1!S71_ItemType,$AD:$AD)","v":0},{"$f":"SUMIFS(Sheet1!S71_OriginalBudAmnt,Sheet1!S71_A2SubCode,$AC:$AC,Sheet1!S71_ItemType,$AD:$AD)","v":0},{"$f":"SUMIFS(Sheet1!S71_AdjustmentBudAmnt,Sheet1!S71_A2SubCode,$AC:$AC,Sheet1!S71_ItemType,$AD:$AD)","v":0},{"$f":"SUMIFS(Sheet1!S71_AdjustmentBudAmnt,Sheet1!S71_A2SubCode,$AC:$AC,Sheet1!S71_ItemType,$AD:$AD)","v":0},{"$f":"SUMIFS(Sheet1!S71_ASBudgetAmount,Sheet1!S71_A2SubCode,$AC:$AC,Sheet1!S71_ItemType,$AD:$AD)","v":0},{"$f":"SUMIFS(Sheet1!S71_OY1BudgetAmount,Sheet1!S71_A2SubCode,$AC:$AC,Sheet1!S71_ItemType,$AD:$AD)","v":0},{"$f":"SUMIFS(Sheet1!S71_OY2BudgetAmount,Sheet1!S71_A2SubCode,$AC:$AC,Sheet1!S71_ItemType,$AD:$AD)","v":0},null,null,null,null,null,null,null,null,null,null,null,null,null,null,null,null,null,"3302","IE"]
["Indigenous Forests",null,{"$f":"SUMIFS(Sheet1!S71_OriginalBudAmnt,Sheet1!S71_A2SubCode,$AC:$AC,Sheet1!S71_ItemType,$AD:$AD)","v":0},{"$f":"SUMIFS(Sheet1!S71_OriginalBudAmnt,Sheet1!S71_A2SubCode,$AC:$AC,Sheet1!S71_ItemType,$AD:$AD)","v":0},{"$f":"SUMIFS(Sheet1!S71_OriginalBudAmnt,Sheet1!S71_A2SubCode,$AC:$AC,Sheet1!S71_ItemType,$AD:$AD)","v":0},{"$f":"SUMIFS(Sheet1!S71_OriginalBudAmnt,Sheet1!S71_A2SubCode,$AC:$AC,Sheet1!S71_ItemType,$AD:$AD)","v":0},{"$f":"SUMIFS(Sheet1!S71_AdjustmentBudAmnt,Sheet1!S71_A2SubCode,$AC:$AC,Sheet1!S71_ItemType,$AD:$AD)","v":0},{"$f":"SUMIFS(Sheet1!S71_AdjustmentBudAmnt,Sheet1!S71_A2SubCode,$AC:$AC,Sheet1!S71_ItemType,$AD:$AD)","v":0},{"$f":"SUMIFS(Sheet1!S71_ASBudgetAmount,Sheet1!S71_A2SubCode,$AC:$AC,Sheet1!S71_ItemType,$AD:$AD)","v":0},{"$f":"SUMIFS(Sheet1!S71_OY1BudgetAmount,Sheet1!S71_A2SubCode,$AC:$AC,Sheet1!S71_ItemType,$AD:$AD)","v":0},{"$f":"SUMIFS(Sheet1!S71_OY2BudgetAmount,Sheet1!S71_A2SubCode,$AC:$AC,Sheet1!S71_ItemType,$AD:$AD)","v":0},null,null,null,null,null,null,null,null,null,null,null,null,null,null,null,null,null,"3303","IE"]
[{"$f":"A95","v":"Nature Conservation"},null,{"$f":"SUMIFS(Sheet1!S71_OriginalBudAmnt,Sheet1!S71_A2SubCode,$AC:$AC,Sheet1!S71_ItemType,$AD:$AD)","v":0},{"$f":"SUMIFS(Sheet1!S71_OriginalBudAmnt,Sheet1!S71_A2SubCode,$AC:$AC,Sheet1!S71_ItemType,$AD:$AD)","v":0},{"$f":"SUMIFS(Sheet1!S71_OriginalBudAmnt,Sheet1!S71_A2SubCode,$AC:$AC,Sheet1!S71_ItemType,$AD:$AD)","v":0},{"$f":"SUMIFS(Sheet1!S71_OriginalBudAmnt,Sheet1!S71_A2SubCode,$AC:$AC,Sheet1!S71_ItemType,$AD:$AD)","v":0},{"$f":"SUMIFS(Sheet1!S71_AdjustmentBudAmnt,Sheet1!S71_A2SubCode,$AC:$AC,Sheet1!S71_ItemType,$AD:$AD)","v":0},{"$f":"SUMIFS(Sheet1!S71_AdjustmentBudAmnt,Sheet1!S71_A2SubCode,$AC:$AC,Sheet1!S71_ItemType,$AD:$AD)","v":0},{"$f":"SUMIFS(Sheet1!S71_ASBudgetAmount,Sheet1!S71_A2SubCode,$AC:$AC,Sheet1!S71_ItemType,$AD:$AD)","v":0},{"$f":"SUMIFS(Sheet1!S71_OY1BudgetAmount,Sheet1!S71_A2SubCode,$AC:$AC,Sheet1!S71_ItemType,$AD:$AD)","v":0},{"$f":"SUMIFS(Sheet1!S71_OY2BudgetAmount,Sheet1!S71_A2SubCode,$AC:$AC,Sheet1!S71_ItemType,$AD:$AD)","v":0},null,null,null,null,null,null,null,null,null,null,null,null,null,null,null,null,null,"3304","IE"]
["Pollution Control",null,{"$f":"SUMIFS(Sheet1!S71_OriginalBudAmnt,Sheet1!S71_A2SubCode,$AC:$AC,Sheet1!S71_ItemType,$AD:$AD)","v":0},{"$f":"SUMIFS(Sheet1!S71_OriginalBudAmnt,Sheet1!S71_A2SubCode,$AC:$AC,Sheet1!S71_ItemType,$AD:$AD)","v":0},{"$f":"SUMIFS(Sheet1!S71_OriginalBudAmnt,Sheet1!S71_A2SubCode,$AC:$AC,Sheet1!S71_ItemType,$AD:$AD)","v":0},{"$f":"SUMIFS(Sheet1!S71_OriginalBudAmnt,Sheet1!S71_A2SubCode,$AC:$AC,Sheet1!S71_ItemType,$AD:$AD)","v":0},{"$f":"SUMIFS(Sheet1!S71_AdjustmentBudAmnt,Sheet1!S71_A2SubCode,$AC:$AC,Sheet1!S71_ItemType,$AD:$AD)","v":0},{"$f":"SUMIFS(Sheet1!S71_AdjustmentBudAmnt,Sheet1!S71_A2SubCode,$AC:$AC,Sheet1!S71_ItemType,$AD:$AD)","v":0},{"$f":"SUMIFS(Sheet1!S71_ASBudgetAmount,Sheet1!S71_A2SubCode,$AC:$AC,Sheet1!S71_ItemType,$AD:$AD)","v":0},{"$f":"SUMIFS(Sheet1!S71_OY1BudgetAmount,Sheet1!S71_A2SubCode,$AC:$AC,Sheet1!S71_ItemType,$AD:$AD)","v":0},{"$f":"SUMIFS(Sheet1!S71_OY2BudgetAmount,Sheet1!S71_A2SubCode,$AC:$AC,Sheet1!S71_ItemType,$AD:$AD)","v":0},null,null,null,null,null,null,null,null,null,null,null,null,null,null,null,null,null,"3305","IE"]
["Soil Conservation",null,{"$f":"SUMIFS(Sheet1!S71_OriginalBudAmnt,Sheet1!S71_A2SubCode,$AC:$AC,Sheet1!S71_ItemType,$AD:$AD)","v":0},{"$f":"SUMIFS(Sheet1!S71_OriginalBudAmnt,Sheet1!S71_A2SubCode,$AC:$AC,Sheet1!S71_ItemType,$AD:$AD)","v":0},{"$f":"SUMIFS(Sheet1!S71_OriginalBudAmnt,Sheet1!S71_A2SubCode,$AC:$AC,Sheet1!S71_ItemType,$AD:$AD)","v":0},{"$f":"SUMIFS(Sheet1!S71_OriginalBudAmnt,Sheet1!S71_A2SubCode,$AC:$AC,Sheet1!S71_ItemType,$AD:$AD)","v":0},{"$f":"SUMIFS(Sheet1!S71_AdjustmentBudAmnt,Sheet1!S71_A2SubCode,$AC:$AC,Sheet1!S71_ItemType,$AD:$AD)","v":0},{"$f":"SUMIFS(Sheet1!S71_AdjustmentBudAmnt,Sheet1!S71_A2SubCode,$AC:$AC,Sheet1!S71_ItemType,$AD:$AD)","v":0},{"$f":"SUMIFS(Sheet1!S71_ASBudgetAmount,Sheet1!S71_A2SubCode,$AC:$AC,Sheet1!S71_ItemType,$AD:$AD)","v":0},{"$f":"SUMIFS(Sheet1!S71_OY1BudgetAmount,Sheet1!S71_A2SubCode,$AC:$AC,Sheet1!S71_ItemType,$AD:$AD)","v":0},{"$f":"SUMIFS(Sheet1!S71_OY2BudgetAmount,Sheet1!S71_A2SubCode,$AC:$AC,Sheet1!S71_ItemType,$AD:$AD)","v":0},null,null,null,null,null,null,null,null,null,null,null,null,null,null,null,null,null,"3306","IE"]
["Trading services",null,{"$f":"C221+C225+C229+C234","v":76186685},{"$f":"D221+D225+D229+D234","v":76186685},76186685,76186685,75759159,75759159,93190653,89799343,88991201,null,null,null,null,null,null,null,null,null,null,null,null,null,null,null,null,null,null,"IE"]
["Energy sources",null,{"$f":"SUM(C222:C224)","v":57331169},{"$f":"SUM(D222:D224)","v":57331169},57331169,57331169,61500576,61500576,72893701,68742676,66930600,null,null,null,null,null,null,null,null,null,null,null,null,null,null,null,null,null,null,"IE"]
["Electricity ",null,{"$f":"SUMIFS(Sheet1!S71_OriginalBudAmnt,Sheet1!S71_A2SubCode,$AC:$AC,Sheet1!S71_ItemType,$AD:$AD)","v":47031169},{"$f":"SUMIFS(Sheet1!S71_OriginalBudAmnt,Sheet1!S71_A2SubCode,$AC:$AC,Sheet1!S71_ItemType,$AD:$AD)","v":47031169},{"$f":"SUMIFS(Sheet1!S71_OriginalBudAmnt,Sheet1!S71_A2SubCode,$AC:$AC,Sheet1!S71_ItemType,$AD:$AD)","v":47031169},{"$f":"SUMIFS(Sheet1!S71_OriginalBudAmnt,Sheet1!S71_A2SubCode,$AC:$AC,Sheet1!S71_ItemType,$AD:$AD)","v":47031169},{"$f":"SUMIFS(Sheet1!S71_AdjustmentBudAmnt,Sheet1!S71_A2SubCode,$AC:$AC,Sheet1!S71_ItemType,$AD:$AD)","v":54000576},{"$f":"SUMIFS(Sheet1!S71_AdjustmentBudAmnt,Sheet1!S71_A2SubCode,$AC:$AC,Sheet1!S71_ItemType,$AD:$AD)","v":54000576},{"$f":"SUMIFS(Sheet1!S71_ASBudgetAmount,Sheet1!S71_A2SubCode,$AC:$AC,Sheet1!S71_ItemType,$AD:$AD)","v":63393701},{"$f":"SUMIFS(Sheet1!S71_OY1BudgetAmount,Sheet1!S71_A2SubCode,$AC:$AC,Sheet1!S71_ItemType,$AD:$AD)","v":59242676},{"$f":"SUMIFS(Sheet1!S71_OY2BudgetAmount,Sheet1!S71_A2SubCode,$AC:$AC,Sheet1!S71_ItemType,$AD:$AD)","v":57430600},null,null,null,null,null,null,null,null,null,null,null,null,null,null,null,null,null,"4101","IE"]
["Street Lighting and Signal Systems",null,{"$f":"SUMIFS(Sheet1!S71_OriginalBudAmnt,Sheet1!S71_A2SubCode,$AC:$AC,Sheet1!S71_ItemType,$AD:$AD)","v":10300000},{"$f":"SUMIFS(Sheet1!S71_OriginalBudAmnt,Sheet1!S71_A2SubCode,$AC:$AC,Sheet1!S71_ItemType,$AD:$AD)","v":10300000},{"$f":"SUMIFS(Sheet1!S71_OriginalBudAmnt,Sheet1!S71_A2SubCode,$AC:$AC,Sheet1!S71_ItemType,$AD:$AD)","v":10300000},{"$f":"SUMIFS(Sheet1!S71_OriginalBudAmnt,Sheet1!S71_A2SubCode,$AC:$AC,Sheet1!S71_ItemType,$AD:$AD)","v":10300000},{"$f":"SUMIFS(Sheet1!S71_AdjustmentBudAmnt,Sheet1!S71_A2SubCode,$AC:$AC,Sheet1!S71_ItemType,$AD:$AD)","v":7500000},{"$f":"SUMIFS(Sheet1!S71_AdjustmentBudAmnt,Sheet1!S71_A2SubCode,$AC:$AC,Sheet1!S71_ItemType,$AD:$AD)","v":7500000},{"$f":"SUMIFS(Sheet1!S71_ASBudgetAmount,Sheet1!S71_A2SubCode,$AC:$AC,Sheet1!S71_ItemType,$AD:$AD)","v":9500000},{"$f":"SUMIFS(Sheet1!S71_OY1BudgetAmount,Sheet1!S71_A2SubCode,$AC:$AC,Sheet1!S71_ItemType,$AD:$AD)","v":9500000},{"$f":"SUMIFS(Sheet1!S71_OY2BudgetAmount,Sheet1!S71_A2SubCode,$AC:$AC,Sheet1!S71_ItemType,$AD:$AD)","v":9500000},null,null,null,null,null,null,null,null,null,null,null,null,null,null,null,null,null,"4102","IE"]
["Nonelectric Energy",null,{"$f":"SUMIFS(Sheet1!S71_OriginalBudAmnt,Sheet1!S71_A2SubCode,$AC:$AC,Sheet1!S71_ItemType,$AD:$AD)","v":0},{"$f":"SUMIFS(Sheet1!S71_OriginalBudAmnt,Sheet1!S71_A2SubCode,$AC:$AC,Sheet1!S71_ItemType,$AD:$AD)","v":0},{"$f":"SUMIFS(Sheet1!S71_OriginalBudAmnt,Sheet1!S71_A2SubCode,$AC:$AC,Sheet1!S71_ItemType,$AD:$AD)","v":0},{"$f":"SUMIFS(Sheet1!S71_OriginalBudAmnt,Sheet1!S71_A2SubCode,$AC:$AC,Sheet1!S71_ItemType,$AD:$AD)","v":0},{"$f":"SUMIFS(Sheet1!S71_AdjustmentBudAmnt,Sheet1!S71_A2SubCode,$AC:$AC,Sheet1!S71_ItemType,$AD:$AD)","v":0},{"$f":"SUMIFS(Sheet1!S71_AdjustmentBudAmnt,Sheet1!S71_A2SubCode,$AC:$AC,Sheet1!S71_ItemType,$AD:$AD)","v":0},{"$f":"SUMIFS(Sheet1!S71_ASBudgetAmount,Sheet1!S71_A2SubCode,$AC:$AC,Sheet1!S71_ItemType,$AD:$AD)","v":0},{"$f":"SUMIFS(Sheet1!S71_OY1BudgetAmount,Sheet1!S71_A2SubCode,$AC:$AC,Sheet1!S71_ItemType,$AD:$AD)","v":0},{"$f":"SUMIFS(Sheet1!S71_OY2BudgetAmount,Sheet1!S71_A2SubCode,$AC:$AC,Sheet1!S71_ItemType,$AD:$AD)","v":0},null,null,null,null,null,null,null,null,null,null,null,null,null,null,null,null,null,"4103","IE"]
["Water management",null,{"$f":"SUM(C226:C228)","v":0},{"$f":"SUM(D226:D228)","v":0},0,0,0,0,0,0,0,null,null,null,null,null,null,null,null,null,null,null,null,null,null,null,null,null,null,"IE"]
["Water Treatment",null,{"$f":"SUMIFS(Sheet1!S71_OriginalBudAmnt,Sheet1!S71_A2SubCode,$AC:$AC,Sheet1!S71_ItemType,$AD:$AD)","v":0},{"$f":"SUMIFS(Sheet1!S71_OriginalBudAmnt,Sheet1!S71_A2SubCode,$AC:$AC,Sheet1!S71_ItemType,$AD:$AD)","v":0},{"$f":"SUMIFS(Sheet1!S71_OriginalBudAmnt,Sheet1!S71_A2SubCode,$AC:$AC,Sheet1!S71_ItemType,$AD:$AD)","v":0},{"$f":"SUMIFS(Sheet1!S71_OriginalBudAmnt,Sheet1!S71_A2SubCode,$AC:$AC,Sheet1!S71_ItemType,$AD:$AD)","v":0},{"$f":"SUMIFS(Sheet1!S71_AdjustmentBudAmnt,Sheet1!S71_A2SubCode,$AC:$AC,Sheet1!S71_ItemType,$AD:$AD)","v":0},{"$f":"SUMIFS(Sheet1!S71_AdjustmentBudAmnt,Sheet1!S71_A2SubCode,$AC:$AC,Sheet1!S71_ItemType,$AD:$AD)","v":0},{"$f":"SUMIFS(Sheet1!S71_ASBudgetAmount,Sheet1!S71_A2SubCode,$AC:$AC,Sheet1!S71_ItemType,$AD:$AD)","v":0},{"$f":"SUMIFS(Sheet1!S71_OY1BudgetAmount,Sheet1!S71_A2SubCode,$AC:$AC,Sheet1!S71_ItemType,$AD:$AD)","v":0},{"$f":"SUMIFS(Sheet1!S71_OY2BudgetAmount,Sheet1!S71_A2SubCode,$AC:$AC,Sheet1!S71_ItemType,$AD:$AD)","v":0},null,null,null,null,null,null,null,null,null,null,null,null,null,null,null,null,null,"4201","IE"]
["Water Distribution",null,{"$f":"SUMIFS(Sheet1!S71_OriginalBudAmnt,Sheet1!S71_A2SubCode,$AC:$AC,Sheet1!S71_ItemType,$AD:$AD)","v":0},{"$f":"SUMIFS(Sheet1!S71_OriginalBudAmnt,Sheet1!S71_A2SubCode,$AC:$AC,Sheet1!S71_ItemType,$AD:$AD)","v":0},{"$f":"SUMIFS(Sheet1!S71_OriginalBudAmnt,Sheet1!S71_A2SubCode,$AC:$AC,Sheet1!S71_ItemType,$AD:$AD)","v":0},{"$f":"SUMIFS(Sheet1!S71_OriginalBudAmnt,Sheet1!S71_A2SubCode,$AC:$AC,Sheet1!S71_ItemType,$AD:$AD)","v":0},{"$f":"SUMIFS(Sheet1!S71_AdjustmentBudAmnt,Sheet1!S71_A2SubCode,$AC:$AC,Sheet1!S71_ItemType,$AD:$AD)","v":0},{"$f":"SUMIFS(Sheet1!S71_AdjustmentBudAmnt,Sheet1!S71_A2SubCode,$AC:$AC,Sheet1!S71_ItemType,$AD:$AD)","v":0},{"$f":"SUMIFS(Sheet1!S71_ASBudgetAmount,Sheet1!S71_A2SubCode,$AC:$AC,Sheet1!S71_ItemType,$AD:$AD)","v":0},{"$f":"SUMIFS(Sheet1!S71_OY1BudgetAmount,Sheet1!S71_A2SubCode,$AC:$AC,Sheet1!S71_ItemType,$AD:$AD)","v":0},{"$f":"SUMIFS(Sheet1!S71_OY2BudgetAmount,Sheet1!S71_A2SubCode,$AC:$AC,Sheet1!S71_ItemType,$AD:$AD)","v":0},null,null,null,null,null,null,null,null,null,null,null,null,null,null,null,null,null,"4202","IE"]
["Water Storage",null,{"$f":"SUMIFS(Sheet1!S71_OriginalBudAmnt,Sheet1!S71_A2SubCode,$AC:$AC,Sheet1!S71_ItemType,$AD:$AD)","v":0},{"$f":"SUMIFS(Sheet1!S71_OriginalBudAmnt,Sheet1!S71_A2SubCode,$AC:$AC,Sheet1!S71_ItemType,$AD:$AD)","v":0},{"$f":"SUMIFS(Sheet1!S71_OriginalBudAmnt,Sheet1!S71_A2SubCode,$AC:$AC,Sheet1!S71_ItemType,$AD:$AD)","v":0},{"$f":"SUMIFS(Sheet1!S71_OriginalBudAmnt,Sheet1!S71_A2SubCode,$AC:$AC,Sheet1!S71_ItemType,$AD:$AD)","v":0},{"$f":"SUMIFS(Sheet1!S71_AdjustmentBudAmnt,Sheet1!S71_A2SubCode,$AC:$AC,Sheet1!S71_ItemType,$AD:$AD)","v":0},{"$f":"SUMIFS(Sheet1!S71_AdjustmentBudAmnt,Sheet1!S71_A2SubCode,$AC:$AC,Sheet1!S71_ItemType,$AD:$AD)","v":0},{"$f":"SUMIFS(Sheet1!S71_ASBudgetAmount,Sheet1!S71_A2SubCode,$AC:$AC,Sheet1!S71_ItemType,$AD:$AD)","v":0},{"$f":"SUMIFS(Sheet1!S71_OY1BudgetAmount,Sheet1!S71_A2SubCode,$AC:$AC,Sheet1!S71_ItemType,$AD:$AD)","v":0},{"$f":"SUMIFS(Sheet1!S71_OY2BudgetAmount,Sheet1!S71_A2SubCode,$AC:$AC,Sheet1!S71_ItemType,$AD:$AD)","v":0},null,null,null,null,null,null,null,null,null,null,null,null,null,null,null,null,null,"4203","IE"]
["Waste water management",null,{"$f":"SUM(C230:C233)","v":0},{"$f":"SUM(D230:D233)","v":0},0,0,0,0,0,0,0,null,null,null,null,null,null,null,null,null,null,null,null,null,null,null,null,null,null,"IE"]
["Public Toilets",null,{"$f":"SUMIFS(Sheet1!S71_OriginalBudAmnt,Sheet1!S71_A2SubCode,$AC:$AC,Sheet1!S71_ItemType,$AD:$AD)","v":0},{"$f":"SUMIFS(Sheet1!S71_OriginalBudAmnt,Sheet1!S71_A2SubCode,$AC:$AC,Sheet1!S71_ItemType,$AD:$AD)","v":0},{"$f":"SUMIFS(Sheet1!S71_OriginalBudAmnt,Sheet1!S71_A2SubCode,$AC:$AC,Sheet1!S71_ItemType,$AD:$AD)","v":0},{"$f":"SUMIFS(Sheet1!S71_OriginalBudAmnt,Sheet1!S71_A2SubCode,$AC:$AC,Sheet1!S71_ItemType,$AD:$AD)","v":0},{"$f":"SUMIFS(Sheet1!S71_AdjustmentBudAmnt,Sheet1!S71_A2SubCode,$AC:$AC,Sheet1!S71_ItemType,$AD:$AD)","v":0},{"$f":"SUMIFS(Sheet1!S71_AdjustmentBudAmnt,Sheet1!S71_A2SubCode,$AC:$AC,Sheet1!S71_ItemType,$AD:$AD)","v":0},{"$f":"SUMIFS(Sheet1!S71_ASBudgetAmount,Sheet1!S71_A2SubCode,$AC:$AC,Sheet1!S71_ItemType,$AD:$AD)","v":0},{"$f":"SUMIFS(Sheet1!S71_OY1BudgetAmount,Sheet1!S71_A2SubCode,$AC:$AC,Sheet1!S71_ItemType,$AD:$AD)","v":0},{"$f":"SUMIFS(Sheet1!S71_OY2BudgetAmount,Sheet1!S71_A2SubCode,$AC:$AC,Sheet1!S71_ItemType,$AD:$AD)","v":0},null,null,null,null,null,null,null,null,null,null,null,null,null,null,null,null,null,"4301","IE"]
["Sewerage",null,{"$f":"SUMIFS(Sheet1!S71_OriginalBudAmnt,Sheet1!S71_A2SubCode,$AC:$AC,Sheet1!S71_ItemType,$AD:$AD)","v":0},{"$f":"SUMIFS(Sheet1!S71_OriginalBudAmnt,Sheet1!S71_A2SubCode,$AC:$AC,Sheet1!S71_ItemType,$AD:$AD)","v":0},{"$f":"SUMIFS(Sheet1!S71_OriginalBudAmnt,Sheet1!S71_A2SubCode,$AC:$AC,Sheet1!S71_ItemType,$AD:$AD)","v":0},{"$f":"SUMIFS(Sheet1!S71_OriginalBudAmnt,Sheet1!S71_A2SubCode,$AC:$AC,Sheet1!S71_ItemType,$AD:$AD)","v":0},{"$f":"SUMIFS(Sheet1!S71_AdjustmentBudAmnt,Sheet1!S71_A2SubCode,$AC:$AC,Sheet1!S71_ItemType,$AD:$AD)","v":0},{"$f":"SUMIFS(Sheet1!S71_AdjustmentBudAmnt,Sheet1!S71_A2SubCode,$AC:$AC,Sheet1!S71_ItemType,$AD:$AD)","v":0},{"$f":"SUMIFS(Sheet1!S71_ASBudgetAmount,Sheet1!S71_A2SubCode,$AC:$AC,Sheet1!S71_ItemType,$AD:$AD)","v":0},{"$f":"SUMIFS(Sheet1!S71_OY1BudgetAmount,Sheet1!S71_A2SubCode,$AC:$AC,Sheet1!S71_ItemType,$AD:$AD)","v":0},{"$f":"SUMIFS(Sheet1!S71_OY2BudgetAmount,Sheet1!S71_A2SubCode,$AC:$AC,Sheet1!S71_ItemType,$AD:$AD)","v":0},null,null,null,null,null,null,null,null,null,null,null,null,null,null,null,null,null,"4302","IE"]
["Storm Water Management",null,{"$f":"SUMIFS(Sheet1!S71_OriginalBudAmnt,Sheet1!S71_A2SubCode,$AC:$AC,Sheet1!S71_ItemType,$AD:$AD)","v":0},{"$f":"SUMIFS(Sheet1!S71_OriginalBudAmnt,Sheet1!S71_A2SubCode,$AC:$AC,Sheet1!S71_ItemType,$AD:$AD)","v":0},{"$f":"SUMIFS(Sheet1!S71_OriginalBudAmnt,Sheet1!S71_A2SubCode,$AC:$AC,Sheet1!S71_ItemType,$AD:$AD)","v":0},{"$f":"SUMIFS(Sheet1!S71_OriginalBudAmnt,Sheet1!S71_A2SubCode,$AC:$AC,Sheet1!S71_ItemType,$AD:$AD)","v":0},{"$f":"SUMIFS(Sheet1!S71_AdjustmentBudAmnt,Sheet1!S71_A2SubCode,$AC:$AC,Sheet1!S71_ItemType,$AD:$AD)","v":0},{"$f":"SUMIFS(Sheet1!S71_AdjustmentBudAmnt,Sheet1!S71_A2SubCode,$AC:$AC,Sheet1!S71_ItemType,$AD:$AD)","v":0},{"$f":"SUMIFS(Sheet1!S71_ASBudgetAmount,Sheet1!S71_A2SubCode,$AC:$AC,Sheet1!S71_ItemType,$AD:$AD)","v":0},{"$f":"SUMIFS(Sheet1!S71_OY1BudgetAmount,Sheet1!S71_A2SubCode,$AC:$AC,Sheet1!S71_ItemType,$AD:$AD)","v":0},{"$f":"SUMIFS(Sheet1!S71_OY2BudgetAmount,Sheet1!S71_A2SubCode,$AC:$AC,Sheet1!S71_ItemType,$AD:$AD)","v":0},null,null,null,null,null,null,null,null,null,null,null,null,null,null,null,null,null,"4303","IE"]
["Waste Water Treatment",null,{"$f":"SUMIFS(Sheet1!S71_OriginalBudAmnt,Sheet1!S71_A2SubCode,$AC:$AC,Sheet1!S71_ItemType,$AD:$AD)","v":0},{"$f":"SUMIFS(Sheet1!S71_OriginalBudAmnt,Sheet1!S71_A2SubCode,$AC:$AC,Sheet1!S71_ItemType,$AD:$AD)","v":0},{"$f":"SUMIFS(Sheet1!S71_OriginalBudAmnt,Sheet1!S71_A2SubCode,$AC:$AC,Sheet1!S71_ItemType,$AD:$AD)","v":0},{"$f":"SUMIFS(Sheet1!S71_OriginalBudAmnt,Sheet1!S71_A2SubCode,$AC:$AC,Sheet1!S71_ItemType,$AD:$AD)","v":0},{"$f":"SUMIFS(Sheet1!S71_AdjustmentBudAmnt,Sheet1!S71_A2SubCode,$AC:$AC,Sheet1!S71_ItemType,$AD:$AD)","v":0},{"$f":"SUMIFS(Sheet1!S71_AdjustmentBudAmnt,Sheet1!S71_A2SubCode,$AC:$AC,Sheet1!S71_ItemType,$AD:$AD)","v":0},{"$f":"SUMIFS(Sheet1!S71_ASBudgetAmount,Sheet1!S71_A2SubCode,$AC:$AC,Sheet1!S71_ItemType,$AD:$AD)","v":0},{"$f":"SUMIFS(Sheet1!S71_OY1BudgetAmount,Sheet1!S71_A2SubCode,$AC:$AC,Sheet1!S71_ItemType,$AD:$AD)","v":0},{"$f":"SUMIFS(Sheet1!S71_OY2BudgetAmount,Sheet1!S71_A2SubCode,$AC:$AC,Sheet1!S71_ItemType,$AD:$AD)","v":0},null,null,null,null,null,null,null,null,null,null,null,null,null,null,null,null,null,"4304","IE"]
["Waste management",null,{"$f":"SUM(C235:C238)","v":18855516},{"$f":"SUM(D235:D238)","v":18855516},18855516,18855516,14258583,14258583,20296952,21056667,22060601,null,null,null,null,null,null,null,null,null,null,null,null,null,null,null,null,null,null,"IE"]
["Recycling",null,{"$f":"SUMIFS(Sheet1!S71_OriginalBudAmnt,Sheet1!S71_A2SubCode,$AC:$AC,Sheet1!S71_ItemType,$AD:$AD)","v":0},{"$f":"SUMIFS(Sheet1!S71_OriginalBudAmnt,Sheet1!S71_A2SubCode,$AC:$AC,Sheet1!S71_ItemType,$AD:$AD)","v":0},{"$f":"SUMIFS(Sheet1!S71_OriginalBudAmnt,Sheet1!S71_A2SubCode,$AC:$AC,Sheet1!S71_ItemType,$AD:$AD)","v":0},{"$f":"SUMIFS(Sheet1!S71_OriginalBudAmnt,Sheet1!S71_A2SubCode,$AC:$AC,Sheet1!S71_ItemType,$AD:$AD)","v":0},{"$f":"SUMIFS(Sheet1!S71_AdjustmentBudAmnt,Sheet1!S71_A2SubCode,$AC:$AC,Sheet1!S71_ItemType,$AD:$AD)","v":0},{"$f":"SUMIFS(Sheet1!S71_AdjustmentBudAmnt,Sheet1!S71_A2SubCode,$AC:$AC,Sheet1!S71_ItemType,$AD:$AD)","v":0},{"$f":"SUMIFS(Sheet1!S71_ASBudgetAmount,Sheet1!S71_A2SubCode,$AC:$AC,Sheet1!S71_ItemType,$AD:$AD)","v":0},{"$f":"SUMIFS(Sheet1!S71_OY1BudgetAmount,Sheet1!S71_A2SubCode,$AC:$AC,Sheet1!S71_ItemType,$AD:$AD)","v":0},{"$f":"SUMIFS(Sheet1!S71_OY2BudgetAmount,Sheet1!S71_A2SubCode,$AC:$AC,Sheet1!S71_ItemType,$AD:$AD)","v":0},null,null,null,null,null,null,null,null,null,null,null,null,null,null,null,null,null,"4401","IE"]
["Solid Waste Disposal (Landfill Sites)",null,{"$f":"SUMIFS(Sheet1!S71_OriginalBudAmnt,Sheet1!S71_A2SubCode,$AC:$AC,Sheet1!S71_ItemType,$AD:$AD)","v":0},{"$f":"SUMIFS(Sheet1!S71_OriginalBudAmnt,Sheet1!S71_A2SubCode,$AC:$AC,Sheet1!S71_ItemType,$AD:$AD)","v":0},{"$f":"SUMIFS(Sheet1!S71_OriginalBudAmnt,Sheet1!S71_A2SubCode,$AC:$AC,Sheet1!S71_ItemType,$AD:$AD)","v":0},{"$f":"SUMIFS(Sheet1!S71_OriginalBudAmnt,Sheet1!S71_A2SubCode,$AC:$AC,Sheet1!S71_ItemType,$AD:$AD)","v":0},{"$f":"SUMIFS(Sheet1!S71_AdjustmentBudAmnt,Sheet1!S71_A2SubCode,$AC:$AC,Sheet1!S71_ItemType,$AD:$AD)","v":0},{"$f":"SUMIFS(Sheet1!S71_AdjustmentBudAmnt,Sheet1!S71_A2SubCode,$AC:$AC,Sheet1!S71_ItemType,$AD:$AD)","v":0},{"$f":"SUMIFS(Sheet1!S71_ASBudgetAmount,Sheet1!S71_A2SubCode,$AC:$AC,Sheet1!S71_ItemType,$AD:$AD)","v":0},{"$f":"SUMIFS(Sheet1!S71_OY1BudgetAmount,Sheet1!S71_A2SubCode,$AC:$AC,Sheet1!S71_ItemType,$AD:$AD)","v":0},{"$f":"SUMIFS(Sheet1!S71_OY2BudgetAmount,Sheet1!S71_A2SubCode,$AC:$AC,Sheet1!S71_ItemType,$AD:$AD)","v":0},null,null,null,null,null,null,null,null,null,null,null,null,null,null,null,null,null,"4402","IE"]
["Solid Waste Removal",null,{"$f":"SUMIFS(Sheet1!S71_OriginalBudAmnt,Sheet1!S71_A2SubCode,$AC:$AC,Sheet1!S71_ItemType,$AD:$AD)","v":18855516},{"$f":"SUMIFS(Sheet1!S71_OriginalBudAmnt,Sheet1!S71_A2SubCode,$AC:$AC,Sheet1!S71_ItemType,$AD:$AD)","v":18855516},{"$f":"SUMIFS(Sheet1!S71_OriginalBudAmnt,Sheet1!S71_A2SubCode,$AC:$AC,Sheet1!S71_ItemType,$AD:$AD)","v":18855516},{"$f":"SUMIFS(Sheet1!S71_OriginalBudAmnt,Sheet1!S71_A2SubCode,$AC:$AC,Sheet1!S71_ItemType,$AD:$AD)","v":18855516},{"$f":"SUMIFS(Sheet1!S71_AdjustmentBudAmnt,Sheet1!S71_A2SubCode,$AC:$AC,Sheet1!S71_ItemType,$AD:$AD)","v":14258583},{"$f":"SUMIFS(Sheet1!S71_AdjustmentBudAmnt,Sheet1!S71_A2SubCode,$AC:$AC,Sheet1!S71_ItemType,$AD:$AD)","v":14258583},{"$f":"SUMIFS(Sheet1!S71_ASBudgetAmount,Sheet1!S71_A2SubCode,$AC:$AC,Sheet1!S71_ItemType,$AD:$AD)","v":20296952},{"$f":"SUMIFS(Sheet1!S71_OY1BudgetAmount,Sheet1!S71_A2SubCode,$AC:$AC,Sheet1!S71_ItemType,$AD:$AD)","v":21056667},{"$f":"SUMIFS(Sheet1!S71_OY2BudgetAmount,Sheet1!S71_A2SubCode,$AC:$AC,Sheet1!S71_ItemType,$AD:$AD)","v":22060601},null,null,null,null,null,null,null,null,null,null,null,null,null,null,null,null,null,"4403","IE"]
["Street Cleaning",null,{"$f":"SUMIFS(Sheet1!S71_OriginalBudAmnt,Sheet1!S71_A2SubCode,$AC:$AC,Sheet1!S71_ItemType,$AD:$AD)","v":0},{"$f":"SUMIFS(Sheet1!S71_OriginalBudAmnt,Sheet1!S71_A2SubCode,$AC:$AC,Sheet1!S71_ItemType,$AD:$AD)","v":0},{"$f":"SUMIFS(Sheet1!S71_OriginalBudAmnt,Sheet1!S71_A2SubCode,$AC:$AC,Sheet1!S71_ItemType,$AD:$AD)","v":0},{"$f":"SUMIFS(Sheet1!S71_OriginalBudAmnt,Sheet1!S71_A2SubCode,$AC:$AC,Sheet1!S71_ItemType,$AD:$AD)","v":0},{"$f":"SUMIFS(Sheet1!S71_AdjustmentBudAmnt,Sheet1!S71_A2SubCode,$AC:$AC,Sheet1!S71_ItemType,$AD:$AD)","v":0},{"$f":"SUMIFS(Sheet1!S71_AdjustmentBudAmnt,Sheet1!S71_A2SubCode,$AC:$AC,Sheet1!S71_ItemType,$AD:$AD)","v":0},{"$f":"SUMIFS(Sheet1!S71_ASBudgetAmount,Sheet1!S71_A2SubCode,$AC:$AC,Sheet1!S71_ItemType,$AD:$AD)","v":0},{"$f":"SUMIFS(Sheet1!S71_OY1BudgetAmount,Sheet1!S71_A2SubCode,$AC:$AC,Sheet1!S71_ItemType,$AD:$AD)","v":0},{"$f":"SUMIFS(Sheet1!S71_OY2BudgetAmount,Sheet1!S71_A2SubCode,$AC:$AC,Sheet1!S71_ItemType,$AD:$AD)","v":0},null,null,null,null,null,null,null,null,null,null,null,null,null,null,null,null,null,"4404","IE"]
["Other",null,{"$f":"SUM(C240:C245)","v":0},{"$f":"SUM(D240:D245)","v":0},0,0,0,0,0,0,0,null,null,null,null,null,null,null,null,null,null,null,null,null,null,null,null,null,null,"IE"]
["Abattoirs",null,{"$f":"SUMIFS(Sheet1!S71_OriginalBudAmnt,Sheet1!S71_A2SubCode,$AC:$AC,Sheet1!S71_ItemType,$AD:$AD)","v":0},{"$f":"SUMIFS(Sheet1!S71_OriginalBudAmnt,Sheet1!S71_A2SubCode,$AC:$AC,Sheet1!S71_ItemType,$AD:$AD)","v":0},{"$f":"SUMIFS(Sheet1!S71_OriginalBudAmnt,Sheet1!S71_A2SubCode,$AC:$AC,Sheet1!S71_ItemType,$AD:$AD)","v":0},{"$f":"SUMIFS(Sheet1!S71_OriginalBudAmnt,Sheet1!S71_A2SubCode,$AC:$AC,Sheet1!S71_ItemType,$AD:$AD)","v":0},{"$f":"SUMIFS(Sheet1!S71_AdjustmentBudAmnt,Sheet1!S71_A2SubCode,$AC:$AC,Sheet1!S71_ItemType,$AD:$AD)","v":0},{"$f":"SUMIFS(Sheet1!S71_AdjustmentBudAmnt,Sheet1!S71_A2SubCode,$AC:$AC,Sheet1!S71_ItemType,$AD:$AD)","v":0},{"$f":"SUMIFS(Sheet1!S71_ASBudgetAmount,Sheet1!S71_A2SubCode,$AC:$AC,Sheet1!S71_ItemType,$AD:$AD)","v":0},{"$f":"SUMIFS(Sheet1!S71_OY1BudgetAmount,Sheet1!S71_A2SubCode,$AC:$AC,Sheet1!S71_ItemType,$AD:$AD)","v":0},{"$f":"SUMIFS(Sheet1!S71_OY2BudgetAmount,Sheet1!S71_A2SubCode,$AC:$AC,Sheet1!S71_ItemType,$AD:$AD)","v":0},null,null,null,null,null,null,null,null,null,null,null,null,null,null,null,null,null,"5001","IE"]
["Air Transport",null,{"$f":"SUMIFS(Sheet1!S71_OriginalBudAmnt,Sheet1!S71_A2SubCode,$AC:$AC,Sheet1!S71_ItemType,$AD:$AD)","v":0},{"$f":"SUMIFS(Sheet1!S71_OriginalBudAmnt,Sheet1!S71_A2SubCode,$AC:$AC,Sheet1!S71_ItemType,$AD:$AD)","v":0},{"$f":"SUMIFS(Sheet1!S71_OriginalBudAmnt,Sheet1!S71_A2SubCode,$AC:$AC,Sheet1!S71_ItemType,$AD:$AD)","v":0},{"$f":"SUMIFS(Sheet1!S71_OriginalBudAmnt,Sheet1!S71_A2SubCode,$AC:$AC,Sheet1!S71_ItemType,$AD:$AD)","v":0},{"$f":"SUMIFS(Sheet1!S71_AdjustmentBudAmnt,Sheet1!S71_A2SubCode,$AC:$AC,Sheet1!S71_ItemType,$AD:$AD)","v":0},{"$f":"SUMIFS(Sheet1!S71_AdjustmentBudAmnt,Sheet1!S71_A2SubCode,$AC:$AC,Sheet1!S71_ItemType,$AD:$AD)","v":0},{"$f":"SUMIFS(Sheet1!S71_ASBudgetAmount,Sheet1!S71_A2SubCode,$AC:$AC,Sheet1!S71_ItemType,$AD:$AD)","v":0},{"$f":"SUMIFS(Sheet1!S71_OY1BudgetAmount,Sheet1!S71_A2SubCode,$AC:$AC,Sheet1!S71_ItemType,$AD:$AD)","v":0},{"$f":"SUMIFS(Sheet1!S71_OY2BudgetAmount,Sheet1!S71_A2SubCode,$AC:$AC,Sheet1!S71_ItemType,$AD:$AD)","v":0},null,null,null,null,null,null,null,null,null,null,null,null,null,null,null,null,null,"5002","IE"]
["Forestry ",null,{"$f":"SUMIFS(Sheet1!S71_OriginalBudAmnt,Sheet1!S71_A2SubCode,$AC:$AC,Sheet1!S71_ItemType,$AD:$AD)","v":0},{"$f":"SUMIFS(Sheet1!S71_OriginalBudAmnt,Sheet1!S71_A2SubCode,$AC:$AC,Sheet1!S71_ItemType,$AD:$AD)","v":0},{"$f":"SUMIFS(Sheet1!S71_OriginalBudAmnt,Sheet1!S71_A2SubCode,$AC:$AC,Sheet1!S71_ItemType,$AD:$AD)","v":0},{"$f":"SUMIFS(Sheet1!S71_OriginalBudAmnt,Sheet1!S71_A2SubCode,$AC:$AC,Sheet1!S71_ItemType,$AD:$AD)","v":0},{"$f":"SUMIFS(Sheet1!S71_AdjustmentBudAmnt,Sheet1!S71_A2SubCode,$AC:$AC,Sheet1!S71_ItemType,$AD:$AD)","v":0},{"$f":"SUMIFS(Sheet1!S71_AdjustmentBudAmnt,Sheet1!S71_A2SubCode,$AC:$AC,Sheet1!S71_ItemType,$AD:$AD)","v":0},{"$f":"SUMIFS(Sheet1!S71_ASBudgetAmount,Sheet1!S71_A2SubCode,$AC:$AC,Sheet1!S71_ItemType,$AD:$AD)","v":0},{"$f":"SUMIFS(Sheet1!S71_OY1BudgetAmount,Sheet1!S71_A2SubCode,$AC:$AC,Sheet1!S71_ItemType,$AD:$AD)","v":0},{"$f":"SUMIFS(Sheet1!S71_OY2BudgetAmount,Sheet1!S71_A2SubCode,$AC:$AC,Sheet1!S71_ItemType,$AD:$AD)","v":0},null,null,null,null,null,null,null,null,null,null,null,null,null,null,null,null,null,"5003","IE"]
["Licensing and Regulation",null,{"$f":"SUMIFS(Sheet1!S71_OriginalBudAmnt,Sheet1!S71_A2SubCode,$AC:$AC,Sheet1!S71_ItemType,$AD:$AD)","v":0},{"$f":"SUMIFS(Sheet1!S71_OriginalBudAmnt,Sheet1!S71_A2SubCode,$AC:$AC,Sheet1!S71_ItemType,$AD:$AD)","v":0},{"$f":"SUMIFS(Sheet1!S71_OriginalBudAmnt,Sheet1!S71_A2SubCode,$AC:$AC,Sheet1!S71_ItemType,$AD:$AD)","v":0},{"$f":"SUMIFS(Sheet1!S71_OriginalBudAmnt,Sheet1!S71_A2SubCode,$AC:$AC,Sheet1!S71_ItemType,$AD:$AD)","v":0},{"$f":"SUMIFS(Sheet1!S71_AdjustmentBudAmnt,Sheet1!S71_A2SubCode,$AC:$AC,Sheet1!S71_ItemType,$AD:$AD)","v":0},{"$f":"SUMIFS(Sheet1!S71_AdjustmentBudAmnt,Sheet1!S71_A2SubCode,$AC:$AC,Sheet1!S71_ItemType,$AD:$AD)","v":0},{"$f":"SUMIFS(Sheet1!S71_ASBudgetAmount,Sheet1!S71_A2SubCode,$AC:$AC,Sheet1!S71_ItemType,$AD:$AD)","v":0},{"$f":"SUMIFS(Sheet1!S71_OY1BudgetAmount,Sheet1!S71_A2SubCode,$AC:$AC,Sheet1!S71_ItemType,$AD:$AD)","v":0},{"$f":"SUMIFS(Sheet1!S71_OY2BudgetAmount,Sheet1!S71_A2SubCode,$AC:$AC,Sheet1!S71_ItemType,$AD:$AD)","v":0},null,null,null,null,null,null,null,null,null,null,null,null,null,null,null,null,null,"5004","IE"]
["Markets",null,{"$f":"SUMIFS(Sheet1!S71_OriginalBudAmnt,Sheet1!S71_A2SubCode,$AC:$AC,Sheet1!S71_ItemType,$AD:$AD)","v":0},{"$f":"SUMIFS(Sheet1!S71_OriginalBudAmnt,Sheet1!S71_A2SubCode,$AC:$AC,Sheet1!S71_ItemType,$AD:$AD)","v":0},{"$f":"SUMIFS(Sheet1!S71_OriginalBudAmnt,Sheet1!S71_A2SubCode,$AC:$AC,Sheet1!S71_ItemType,$AD:$AD)","v":0},{"$f":"SUMIFS(Sheet1!S71_OriginalBudAmnt,Sheet1!S71_A2SubCode,$AC:$AC,Sheet1!S71_ItemType,$AD:$AD)","v":0},{"$f":"SUMIFS(Sheet1!S71_AdjustmentBudAmnt,Sheet1!S71_A2SubCode,$AC:$AC,Sheet1!S71_ItemType,$AD:$AD)","v":0},{"$f":"SUMIFS(Sheet1!S71_AdjustmentBudAmnt,Sheet1!S71_A2SubCode,$AC:$AC,Sheet1!S71_ItemType,$AD:$AD)","v":0},{"$f":"SUMIFS(Sheet1!S71_ASBudgetAmount,Sheet1!S71_A2SubCode,$AC:$AC,Sheet1!S71_ItemType,$AD:$AD)","v":0},{"$f":"SUMIFS(Sheet1!S71_OY1BudgetAmount,Sheet1!S71_A2SubCode,$AC:$AC,Sheet1!S71_ItemType,$AD:$AD)","v":0},{"$f":"SUMIFS(Sheet1!S71_OY2BudgetAmount,Sheet1!S71_A2SubCode,$AC:$AC,Sheet1!S71_ItemType,$AD:$AD)","v":0},null,null,null,null,null,null,null,null,null,null,null,null,null,null,null,null,null,"5005","IE"]
["Tourism",null,{"$f":"SUMIFS(Sheet1!S71_OriginalBudAmnt,Sheet1!S71_A2SubCode,$AC:$AC,Sheet1!S71_ItemType,$AD:$AD)","v":0},{"$f":"SUMIFS(Sheet1!S71_OriginalBudAmnt,Sheet1!S71_A2SubCode,$AC:$AC,Sheet1!S71_ItemType,$AD:$AD)","v":0},{"$f":"SUMIFS(Sheet1!S71_OriginalBudAmnt,Sheet1!S71_A2SubCode,$AC:$AC,Sheet1!S71_ItemType,$AD:$AD)","v":0},{"$f":"SUMIFS(Sheet1!S71_OriginalBudAmnt,Sheet1!S71_A2SubCode,$AC:$AC,Sheet1!S71_ItemType,$AD:$AD)","v":0},{"$f":"SUMIFS(Sheet1!S71_AdjustmentBudAmnt,Sheet1!S71_A2SubCode,$AC:$AC,Sheet1!S71_ItemType,$AD:$AD)","v":0},{"$f":"SUMIFS(Sheet1!S71_AdjustmentBudAmnt,Sheet1!S71_A2SubCode,$AC:$AC,Sheet1!S71_ItemType,$AD:$AD)","v":0},{"$f":"SUMIFS(Sheet1!S71_ASBudgetAmount,Sheet1!S71_A2SubCode,$AC:$AC,Sheet1!S71_ItemType,$AD:$AD)","v":0},{"$f":"SUMIFS(Sheet1!S71_OY1BudgetAmount,Sheet1!S71_A2SubCode,$AC:$AC,Sheet1!S71_ItemType,$AD:$AD)","v":0},{"$f":"SUMIFS(Sheet1!S71_OY2BudgetAmount,Sheet1!S71_A2SubCode,$AC:$AC,Sheet1!S71_ItemType,$AD:$AD)","v":0},null,null,null,null,null,null,null,null,null,null,null,null,null,null,null,null,null,"5006","IE"]
[{"$f":"\"Total \"&A126","v":"Total Expenditure - Functional"},3,{"$f":"C127+C147+C196+C220+C239","v":548610975},548610975,548610975,548610975,554667725,554667725,606021416,618682251,638086808]
[{"$f":"result","v":"Surplus/(Deficit) for the year"},null,{"$f":"C124-C246","v":51552427},51552427,51552427,51552427,45126944,45126944,34835709,50209486,32648225]
[{"$f":"head27a","v":"References"}]
["1. Government Finance Statistics Functions and Sub-functions are standardised to assist national and international accounts and comparison"]
["2. Total Revenue by Functional Classification must reconcile to total operating revenue shown in Financial Performance (revenue and expenditure)"]
["3. Total Expenditure by Functional Classification must reconcile to total operating expenditure shown in Financial Performance (revenue and expenditure)"]
["4. All amounts must be classified under a Functional classification. The GFS function 'Other' is only for Abbatoirs, Air Transport,  Forestry, Licensing and Regulation, Markets and Tourism - and if used must be supported by footnotes. Nothing else may be placed under 'Other'. Assign associate share to relevant classification"]
[]
[]
["check oprev balance",null,{"$f":"C124-'A4-FinPerf RE'!C32","v":193731829},{"$f":"D124-'A4-FinPerf RE'!D32","v":103795194},{"$f":"E124-'A4-FinPerf RE'!E32","v":120486829},{"$f":"F124-'A4-FinPerf RE'!F32","v":69261000},{"$f":"G124-'A4-FinPerf RE'!G32","v":78211604},{"$f":"H124-'A4-FinPerf RE'!H32","v":78211604},{"$f":"I124-'A4-FinPerf RE'!I32","v":119274060},{"$f":"J124-'A4-FinPerf RE'!J32","v":132583612},{"$f":"K124-'A4-FinPerf RE'!K32","v":104437296}]
["check opexp balance",null,0,0,0,{"$f":"F246-'A4-FinPerf RE'!F47","v":0},{"$f":"G246-'A4-FinPerf RE'!G47","v":0},{"$f":"H246-'A4-FinPerf RE'!H47","v":0},{"$f":"I246-'A4-FinPerf RE'!J47","v":0},{"$f":"J246-'A4-FinPerf RE'!K47","v":0},{"$f":"K246-'A4-FinPerf RE'!L47","v":0}]

{"sheet":"A3-FinPerf V","index":33,"n_rows":45,"n_cols":23,"rows_kept":45,"cut":false,"hidden":false,"merged":[[1,5,1,7],[1,8,1,10],[1,11,1,22]]}
[{"$f":"muni&\" - \"&Approve2","v":"LIM331 Greater Giyani - Table A3 Budgeted Financial Performance (revenue and expenditure by municipal vote)"}]
[{"$f":"Vdesc","v":"Vote Description"},{"$f":"head27","v":"Ref"},{"$f":"head1b","v":"2019/20"},{"$f":"head1A","v":"2020/21"},{"$f":"Head1","v":"2021/22"},{"$f":"Head2","v":"Current Year 2022/23"},null,null,{"$f":"Head3","v":"2023/24 Medium Term Revenue & Expenditure Framework"},null,null,{"$f":"Head4","v":"LTFS"}]
["R thousand",null,{"$f":"Head5","v":"Audited Outcome"},{"$f":"Head5","v":"Audited Outcome"},{"$f":"Head5","v":"Audited Outcome"},{"$f":"Head6","v":"Original Budget"},{"$f":"Head7","v":"Adjusted Budget"},{"$f":"Head8","v":"Full Year Forecast"},{"$f":"Head9","v":"Budget Year 2023/24"},{"$f":"Head10","v":"Budget Year +1 2024/25"},{"$f":"Head11","v":"Budget Year +2 2025/26"},{"$f":"Head12","v":"Forecast 2026/27"},{"$f":"Head13","v":"Forecast 2027/28"},{"$f":"Head14","v":"Forecast 2028/29"},{"$f":"Head15","v":"Forecast 2029/30"},{"$f":"Head16","v":"Forecast 2030/31"},{"$f":"Head17","v":"Forecast 2031/32"},{"$f":"Head18","v":"Forecast 2032/33"},{"$f":"Head19","v":"Forecast 2033/34"},{"$f":"Head20","v":"Forecast 2034/35"},{"$f":"Head21","v":"Forecast 2035/36"},{"$f":"Head22","v":"Forecast 2036/37"},{"$f":"Head23","v":"Forecast 2037/38"}]
["Revenue by Vote",1]
[{"$f":"A3A!A5","v":"Vote 1 -  Energy Sources"},null,{"$f":"A3A!C5","v":0},{"$f":"A3A!D5","v":0},{"$f":"A3A!E5","v":0},{"$f":"A3A!F5","v":0},{"$f":"A3A!G5","v":0},{"$f":"A3A!H5","v":0},{"$f":"A3A!I5","v":0},{"$f":"A3A!J5","v":0},{"$f":"A3A!K5","v":0}]
[{"$f":"A3A!A16","v":"Vote 2 - Community and Social Services"},null,{"$f":"A3A!C16","v":600710},{"$f":"A3A!D16","v":402123},{"$f":"A3A!E16","v":357942},{"$f":"A3A!F16","v":691600},{"$f":"A3A!G16","v":497600},{"$f":"A3A!H16","v":497600},{"$f":"A3A!I16","v":565939},{"$f":"A3A!J16","v":593670},{"$f":"A3A!K16","v":621571}]
[{"$f":"A3A!A27","v":"Vote 3 - Finance & Administration"},null,{"$f":"A3A!C27","v":447375319},{"$f":"A3A!D27","v":551422962},{"$f":"A3A!E27","v":516541933},{"$f":"A3A!F27","v":576134872},{"$f":"A3A!G27","v":578159979},{"$f":"A3A!H27","v":578159979},{"$f":"A3A!I27","v":617622491},{"$f":"A3A!J27","v":644518605},{"$f":"A3A!K27","v":645216367}]
[{"$f":"A3A!A38","v":"Vote 4 - Planning and Development"},null,{"$f":"A3A!C38","v":883239},{"$f":"A3A!D38","v":491493},{"$f":"A3A!E38","v":513124},{"$f":"A3A!F38","v":1020000},{"$f":"A3A!G38","v":670000},{"$f":"A3A!H38","v":670000},{"$f":"A3A!I38","v":820000},{"$f":"A3A!J38","v":860180},{"$f":"A3A!K38","v":900608}]
[{"$f":"A3A!A49","v":"Vote 5 - Executive & Council"},null,{"$f":"A3A!C49","v":0},{"$f":"A3A!D49","v":0},{"$f":"A3A!E49","v":0},{"$f":"A3A!F49","v":0},{"$f":"A3A!G49","v":0},{"$f":"A3A!H49","v":0},{"$f":"A3A!I49","v":0},{"$f":"A3A!J49","v":0},{"$f":"A3A!K49","v":0}]
[{"$f":"A3A!A60","v":"Vote 6 - Internal Audit"},null,{"$f":"A3A!C60","v":0},{"$f":"A3A!D60","v":0},{"$f":"A3A!E60","v":0},{"$f":"A3A!F60","v":0},{"$f":"A3A!G60","v":0},{"$f":"A3A!H60","v":0},{"$f":"A3A!I60","v":0},{"$f":"A3A!J60","v":0},{"$f":"A3A!K60","v":0}]
[{"$f":"A3A!A71","v":"Vote 7 - Road Transport"},null,{"$f":"A3A!C71","v":10940770},{"$f":"A3A!D71","v":13337649},{"$f":"A3A!E71","v":7914702},{"$f":"A3A!F71","v":8450000},{"$f":"A3A!G71","v":8010000},{"$f":"A3A!H71","v":8010000},{"$f":"A3A!I71","v":8750000},{"$f":"A3A!J71","v":9178750},{"$f":"A3A!K71","v":9610151}]
[{"$f":"A3A!A82","v":"Vote 8 - Public Safety"},null,{"$f":"A3A!C82","v":0},{"$f":"A3A!D82","v":0},{"$f":"A3A!E82","v":0},{"$f":"A3A!F82","v":0},{"$f":"A3A!G82","v":0},{"$f":"A3A!H82","v":0},{"$f":"A3A!I82","v":0},{"$f":"A3A!J82","v":0},{"$f":"A3A!K82","v":0}]
[{"$f":"A3A!A93","v":"Vote 9 - Waste Management"},null,{"$f":"A3A!C93","v":8228507},{"$f":"A3A!D93","v":10092238},{"$f":"A3A!E93","v":10636113},{"$f":"A3A!F93","v":13816930},{"$f":"A3A!G93","v":12007090},{"$f":"A3A!H93","v":12007090},{"$f":"A3A!I93","v":12648695},{"$f":"A3A!J93","v":13268482},{"$f":"A3A!K93","v":13892100}]
[{"$f":"A3A!A104","v":"Vote 10 - Sports & Recreation"},null,{"$f":"A3A!C104","v":203312},{"$f":"A3A!D104","v":13186},{"$f":"A3A!E104","v":25482},{"$f":"A3A!F104","v":50000},{"$f":"A3A!G104","v":450000},{"$f":"A3A!H104","v":450000},{"$f":"A3A!I104","v":450000},{"$f":"A3A!J104","v":472050},{"$f":"A3A!K104","v":494236}]
[{"$f":"A3A!A115","v":"Vote 11 - Water Management"},null,{"$f":"A3A!C115","v":0},{"$f":"A3A!D115","v":7620},{"$f":"A3A!E115","v":0},{"$f":"A3A!F115","v":0},{"$f":"A3A!G115","v":0},{"$f":"A3A!H115","v":0},{"$f":"A3A!I115","v":0},{"$f":"A3A!J115","v":0},{"$f":"A3A!K115","v":0},{"$f":"A5A!L115","v":0}]
[{"$f":"A3A!A126","v":"Vote 12 - Waste Water Management"},null,{"$f":"A3A!C126","v":0},{"$f":"A3A!D126","v":3355},{"$f":"A3A!E126","v":0},{"$f":"A3A!F126","v":0},{"$f":"A3A!G126","v":0},{"$f":"A3A!H126","v":0},{"$f":"A3A!I126","v":0},{"$f":"A3A!J126","v":0},{"$f":"A3A!K126","v":0},{"$f":"A5A!L126","v":0}]
[{"$f":"A3A!A137","v":"Vote 13 - Housing"},null,{"$f":"A3A!C137","v":0},{"$f":"A3A!D137","v":0},{"$f":"A3A!E137","v":0},{"$f":"A3A!F137","v":0},{"$f":"A3A!G137","v":0},{"$f":"A3A!H137","v":0},{"$f":"A3A!I137","v":0},{"$f":"A3A!J137","v":0},{"$f":"A3A!K137","v":0},{"$f":"A5A!L137","v":0}]
[{"$f":"A3A!A148","v":"Vote 14 - Finance & Administration 2"},null,{"$f":"A3A!C148","v":0},{"$f":"A3A!D148","v":0},{"$f":"A3A!E148","v":0},{"$f":"A3A!F148","v":0},{"$f":"A3A!G148","v":0},{"$f":"A3A!H148","v":0},{"$f":"A3A!I148","v":0},{"$f":"A3A!J148","v":0},{"$f":"A3A!K148","v":0},{"$f":"A5A!L148","v":0}]
[{"$f":"A3A!A159","v":"Vote 15 - [NAME OF VOTE 15]"},null,{"$f":"A3A!C159","v":0},{"$f":"A3A!D159","v":0},{"$f":"A3A!E159","v":0},{"$f":"A3A!F159","v":0},{"$f":"A3A!G159","v":0},{"$f":"A3A!H159","v":0},{"$f":"A3A!I159","v":0},{"$f":"A3A!J159","v":0},{"$f":"A3A!K159","v":0},{"$f":"A5A!L159","v":0}]
["Total Revenue by Vote",2,{"$f":"SUM(C5:C19)","v":468231857},{"$f":"SUM(D5:D19)","v":575770626},535989296,600163402,599794669,599794669,640857125,668891737,670735033]
[]
["Expenditure by Vote to be appropriated",1]
[{"$f":"A3A!A173","v":"Vote 1 -  Energy Sources"},null,{"$f":"A3A!C173","v":16301797},{"$f":"A3A!D173","v":34564099},{"$f":"A3A!E173","v":57078747},{"$f":"A3A!F173","v":57331169},{"$f":"A3A!G173","v":61500576},{"$f":"A3A!H173","v":61500576},{"$f":"A3A!I173","v":72893701},{"$f":"A3A!J173","v":68742676},{"$f":"A3A!K173","v":66930600}]
[{"$f":"A3A!A184","v":"Vote 2 - Community and Social Services"},null,{"$f":"A3A!C184","v":10393281},{"$f":"A3A!D184","v":5966412},{"$f":"A3A!E184","v":5819862},{"$f":"A3A!F184","v":17296087},{"$f":"A3A!G184","v":12965263},{"$f":"A3A!H184","v":12965263},{"$f":"A3A!I184","v":16180393},{"$f":"A3A!J184","v":16720628},{"$f":"A3A!K184","v":17437753}]
[{"$f":"A3A!A195","v":"Vote 3 - Finance & Administration"},null,{"$f":"A3A!C195","v":148355520},{"$f":"A3A!D195","v":164228688},{"$f":"A3A!E195","v":132098714},{"$f":"A3A!F195","v":233713831},{"$f":"A3A!G195","v":236397053},{"$f":"A3A!H195","v":236397053},{"$f":"A3A!I195","v":251018590},{"$f":"A3A!J195","v":256634989},{"$f":"A3A!K195","v":264073513}]
[{"$f":"A3A!A206","v":"Vote 4 - Planning and Development"},null,{"$f":"A3A!C206","v":16622461},{"$f":"A3A!D206","v":8390831},{"$f":"A3A!E206","v":11812796},{"$f":"A3A!F206","v":31772469},{"$f":"A3A!G206","v":27809434},{"$f":"A3A!H206","v":27809434},{"$f":"A3A!I206","v":28911078},{"$f":"A3A!J206","v":31912910},{"$f":"A3A!K206","v":34981557}]
[{"$f":"A3A!A217","v":"Vote 5 - Executive & Council"},null,{"$f":"A3A!C217","v":33962935},{"$f":"A3A!D217","v":32852254},{"$f":"A3A!E217","v":36491065},{"$f":"A3A!F217","v":41143288},{"$f":"A3A!G217","v":43901974},{"$f":"A3A!H217","v":43901974},{"$f":"A3A!I217","v":48480732},{"$f":"A3A!J217","v":50659755},{"$f":"A3A!K217","v":52693321}]
[{"$f":"A3A!A228","v":"Vote 6 - Internal Audit"},null,{"$f":"A3A!C228","v":2148886},{"$f":"A3A!D228","v":2368141},{"$f":"A3A!E228","v":2556492},{"$f":"A3A!F228","v":2906846},{"$f":"A3A!G228","v":2977183},{"$f":"A3A!H228","v":2977183},{"$f":"A3A!I228","v":3007269},{"$f":"A3A!J228","v":3131966},{"$f":"A3A!K228","v":3283421}]
[{"$f":"A3A!A239","v":"Vote 7 - Road Transport"},null,{"$f":"A3A!C239","v":109027744},{"$f":"A3A!D239","v":115876478},{"$f":"A3A!E239","v":128627976},{"$f":"A3A!F239","v":78419640},{"$f":"A3A!G239","v":93002847},{"$f":"A3A!H239","v":93002847},{"$f":"A3A!I239","v":92547711},{"$f":"A3A!J239","v":93952837},{"$f":"A3A!K239","v":97341971}]
[{"$f":"A3A!A250","v":"Vote 8 - Public Safety"},null,{"$f":"A3A!C250","v":170050},{"$f":"A3A!D250","v":201975},{"$f":"A3A!E250","v":130570},{"$f":"A3A!F250","v":450000},{"$f":"A3A!G250","v":100000},{"$f":"A3A!H250","v":100000},{"$f":"A3A!I250","v":300000},{"$f":"A3A!J250","v":350000},{"$f":"A3A!K250","v":400000}]
[{"$f":"A3A!A261","v":"Vote 9 - Waste Management"},null,{"$f":"A3A!C261","v":8162056},{"$f":"A3A!D261","v":11947444},{"$f":"A3A!E261","v":16853904},{"$f":"A3A!F261","v":18855516},{"$f":"A3A!G261","v":14258583},{"$f":"A3A!H261","v":14258583},{"$f":"A3A!I261","v":20296952},{"$f":"A3A!J261","v":21056667},{"$f":"A3A!K261","v":22060601}]
[{"$f":"A3A!A272","v":"Vote 10 - Sports & Recreation"},null,{"$f":"A3A!C272","v":9704426},{"$f":"A3A!D272","v":10448872},{"$f":"A3A!E272","v":10454637},{"$f":"A3A!F272","v":7927234},{"$f":"A3A!G272","v":9456562},{"$f":"A3A!H272","v":9456562},{"$f":"A3A!I272","v":8323738},{"$f":"A3A!J272","v":8585467},{"$f":"A3A!K272","v":8945044}]
[{"$f":"A3A!A283","v":"Vote 11 - Water Management"},null,{"$f":"A3A!C283","v":0},{"$f":"A3A!D283","v":0},{"$f":"A3A!E283","v":0},{"$f":"A3A!F283","v":0},{"$f":"A3A!G283","v":0},{"$f":"A3A!H283","v":0},{"$f":"A3A!I283","v":0},{"$f":"A3A!J283","v":0},{"$f":"A3A!K283","v":0},{"$f":"A3A!L284","v":0}]
[{"$f":"A3A!A294","v":"Vote 12 - Waste Water Management"},null,{"$f":"A3A!C294","v":0},{"$f":"A3A!D294","v":0},{"$f":"A3A!E294","v":0},{"$f":"A3A!F294","v":0},{"$f":"A3A!G294","v":0},{"$f":"A3A!H294","v":0},{"$f":"A3A!I294","v":0},{"$f":"A3A!J294","v":0},{"$f":"A3A!K294","v":0},{"$f":"A3A!L295","v":0}]
[{"$f":"A3A!A305","v":"Vote 13 - Housing"},null,{"$f":"A3A!C305","v":1157637},{"$f":"A3A!D305","v":1261582},{"$f":"A3A!E305","v":1284824},{"$f":"A3A!F305","v":1458435},{"$f":"A3A!G305","v":1378830},{"$f":"A3A!H305","v":1378830},{"$f":"A3A!I305","v":1545923},{"$f":"A3A!J305","v":1513277},{"$f":"A3A!K305","v":1585109},{"$f":"A3A!L306","v":0}]
[{"$f":"A3A!A316","v":"Vote 14 - Finance & Administration 2"},null,{"$f":"A3A!C316","v":33344606},{"$f":"A3A!D316","v":37244180},{"$f":"A3A!E316","v":42193117},{"$f":"A3A!F316","v":57336460},{"$f":"A3A!G316","v":50919420},{"$f":"A3A!H316","v":50919420},{"$f":"A3A!I316","v":62515329},{"$f":"A3A!J316","v":65421079},{"$f":"A3A!K316","v":68353918},{"$f":"A3A!L317","v":0}]
[{"$f":"A3A!A327","v":"Vote 15 - [NAME OF VOTE 15]"},null,{"$f":"A3A!C327","v":0},{"$f":"A3A!D327","v":0},{"$f":"A3A!E327","v":0},{"$f":"A3A!F327","v":0},{"$f":"A3A!G327","v":0},{"$f":"A3A!H327","v":0},{"$f":"A3A!I327","v":0},{"$f":"A3A!J327","v":0},{"$f":"A3A!K327","v":0},{"$f":"A3A!L328","v":0}]
["Total Expenditure by Vote",2,{"$f":"SUM(C23:C37)","v":389351399},{"$f":"SUM(D23:D37)","v":425350956},445402704,548610975,554667725,554667725,606021416,618682251,638086808,{"$f":"SUM(L23:L29)","v":0},0,0,0,0,0,0,0,0,0,0,0]
[{"$f":"result","v":"Surplus/(Deficit) for the year"},2,{"$f":"C20-C38","v":78880458},150419670,90586592,51552427,45126944,45126944,34835709,50209486,32648225,0,0,0,0,0,0,0,0,0,0,0,0]
[{"$f":"head27a","v":"References"}]
["1. Insert 'Vote'; e.g. department, if different to functional classification structure"]
["2. Must reconcile to Budgeted Financial Performance (revenue and expenditure)"]
["3. Assign share in 'associate' to relevant Vote"]
[]
[{"$f":"\"check \"&A39","v":"check Surplus/(Deficit) for the year"},null,{"$f":"C39-A3A!C340","v":0},{"$f":"D39-A3A!D340","v":0},{"$f":"E39-A3A!E340","v":0},{"$f":"F39-A3A!F340","v":0},{"$f":"G39-A3A!G340","v":0},{"$f":"H39-A3A!H340","v":0},{"$f":"I39-A3A!I340","v":0},{"$f":"J39-A3A!J340","v":0},{"$f":"K39-A3A!K340","v":0}]

{"sheet":"A3A","index":34,"n_rows":347,"n_cols":30,"rows_kept":347,"cut":false,"hidden":false,"merged":[[1,11,1,22],[1,5,1,7],[1,8,1,10]]}
[{"$f":"muni&\" - \"&Approve2&\"A\"","v":"LIM331 Greater Giyani - Table A3 Budgeted Financial Performance (revenue and expenditure by municipal vote)A"}]
[{"$f":"Vdesc","v":"Vote Description"},{"$f":"head27","v":"Ref"},{"$f":"head1b","v":"2019/20"},{"$f":"head1A","v":"2020/21"},{"$f":"Head1","v":"2021/22"},{"$f":"Head2","v":"Current Year 2022/23"},null,null,{"$f":"Head3","v":"2023/24 Medium Term Revenue & Expenditure Framework"},null,null,{"$f":"Head4","v":"LTFS"}]
["R thousand",null,{"$f":"Head5","v":"Audited Outcome"},{"$f":"Head5","v":"Audited Outcome"},{"$f":"Head5","v":"Audited Outcome"},{"$f":"Head6","v":"Original Budget"},{"$f":"Head7","v":"Adjusted Budget"},{"$f":"Head8","v":"Full Year Forecast"},{"$f":"Head9","v":"Budget Year 2023/24"},{"$f":"Head10","v":"Budget Year +1 2024/25"},{"$f":"Head11","v":"Budget Year +2 2025/26"},{"$f":"Head12","v":"Forecast 2026/27"},{"$f":"Head13","v":"Forecast 2027/28"},{"$f":"Head14","v":"Forecast 2028/29"},{"$f":"Head15","v":"Forecast 2029/30"},{"$f":"Head16","v":"Forecast 2030/31"},{"$f":"Head17","v":"Forecast 2031/32"},{"$f":"Head18","v":"Forecast 2032/33"},{"$f":"Head19","v":"Forecast 2033/34"},{"$f":"Head20","v":"Forecast 2034/35"},{"$f":"Head21","v":"Forecast 2035/36"},{"$f":"Head22","v":"Forecast 2036/37"},{"$f":"Head23","v":"Forecast 2037/38"}]
["Revenue by Vote",1]
[{"$f":"'Org structure'!A2","v":"Vote 1 -  Energy Sources"},null,{"$f":"SUM(C6:C15)","v":0},{"$f":"SUM(D6:D15)","v":0},0,0,0,0,0,0,0]
[{"$f":"'Org structure'!E3","v":"1.1 - Electricity"},null,{"$f":"SUMIFS(Sheet1!S71_PPPYearAmount,Sheet1!S71_SubMunicipalVoteNo,$AC:$AC,Sheet1!S71_ItemType,$AD:$AD)","v":0},{"$f":"SUMIFS(Sheet1!S71_PPYearAmount,Sheet1!S71_SubMunicipalVoteNo,$AC:$AC,Sheet1!S71_ItemType,$AD:$AD)","v":0},{"$f":"SUMIFS(Sheet1!S71_PYearAmount,Sheet1!S71_SubMunicipalVoteNo,$AC:$AC,Sheet1!S71_ItemType,$AD:$AD)","v":0},{"$f":"-SUMIFS(Sheet1!S71_OriginalBudAmnt,Sheet1!S71_SubMunicipalVoteNo,$AC:$AC,Sheet1!S71_ItemType,$AD:$AD)","v":0},{"$f":"-SUMIFS(Sheet1!S71_AdjustmentBudAmnt,Sheet1!S71_SubMunicipalVoteNo,$AC:$AC,Sheet1!S71_ItemType,$AD:$AD)","v":0},{"$f":"-SUMIFS(Sheet1!S71_AdjustmentBudAmnt,Sheet1!S71_SubMunicipalVoteNo,$AC:$AC,Sheet1!S71_ItemType,$AD:$AD)","v":0},{"$f":"SUMIFS(Sheet1!S71_ASBudgetAmount,Sheet1!S71_SubMunicipalVoteNo,$AC:$AC,Sheet1!S71_ItemType,$AD:$AD)","v":0},{"$f":"SUMIFS(Sheet1!S71_OY1BudgetAmount,Sheet1!S71_SubMunicipalVoteNo,$AC:$AC,Sheet1!S71_ItemType,$AD:$AD)","v":0},{"$f":"SUMIFS(Sheet1!S71_OY2BudgetAmount,Sheet1!S71_SubMunicipalVoteNo,$AC:$AC,Sheet1!S71_ItemType,$AD:$AD)","v":0},null,null,null,null,null,null,null,null,null,null,null,null,null,null,null,null,null,11,"IR"]
[{"$f":"'Org structure'!E4","v":"1.2 - Street Lighting and Signal Systems"},null,{"$f":"SUMIFS(Sheet1!S71_PPPYearAmount,Sheet1!S71_SubMunicipalVoteNo,$AC:$AC,Sheet1!S71_ItemType,$AD:$AD)","v":0},{"$f":"SUMIFS(Sheet1!S71_PPYearAmount,Sheet1!S71_SubMunicipalVoteNo,$AC:$AC,Sheet1!S71_ItemType,$AD:$AD)","v":0},{"$f":"SUMIFS(Sheet1!S71_PYearAmount,Sheet1!S71_SubMunicipalVoteNo,$AC:$AC,Sheet1!S71_ItemType,$AD:$AD)","v":0},{"$f":"-SUMIFS(Sheet1!S71_OriginalBudAmnt,Sheet1!S71_SubMunicipalVoteNo,$AC:$AC,Sheet1!S71_ItemType,$AD:$AD)","v":0},{"$f":"-SUMIFS(Sheet1!S71_AdjustmentBudAmnt,Sheet1!S71_SubMunicipalVoteNo,$AC:$AC,Sheet1!S71_ItemType,$AD:$AD)","v":0},{"$f":"-SUMIFS(Sheet1!S71_AdjustmentBudAmnt,Sheet1!S71_SubMunicipalVoteNo,$AC:$AC,Sheet1!S71_ItemType,$AD:$AD)","v":0},{"$f":"SUMIFS(Sheet1!S71_ASBudgetAmount,Sheet1!S71_SubMunicipalVoteNo,$AC:$AC,Sheet1!S71_ItemType,$AD:$AD)","v":0},{"$f":"SUMIFS(Sheet1!S71_OY1BudgetAmount,Sheet1!S71_SubMunicipalVoteNo,$AC:$AC,Sheet1!S71_ItemType,$AD:$AD)","v":0},{"$f":"SUMIFS(Sheet1!S71_OY2BudgetAmount,Sheet1!S71_SubMunicipalVoteNo,$AC:$AC,Sheet1!S71_ItemType,$AD:$AD)","v":0},null,null,null,null,null,null,null,null,null,null,null,null,null,null,null,null,null,12,"IR"]
[{"$f":"'Org structure'!E5","v":"1.3 - [Name of sub-vote]"},null,{"$f":"SUMIFS(Sheet1!S71_PPPYearAmount,Sheet1!S71_SubMunicipalVoteNo,$AC:$AC,Sheet1!S71_ItemType,$AD:$AD)","v":0},{"$f":"SUMIFS(Sheet1!S71_PPYearAmount,Sheet1!S71_SubMunicipalVoteNo,$AC:$AC,Sheet1!S71_ItemType,$AD:$AD)","v":0},{"$f":"SUMIFS(Sheet1!S71_PYearAmount,Sheet1!S71_SubMunicipalVoteNo,$AC:$AC,Sheet1!S71_ItemType,$AD:$AD)","v":0},{"$f":"-SUMIFS(Sheet1!S71_OriginalBudAmnt,Sheet1!S71_SubMunicipalVoteNo,$AC:$AC,Sheet1!S71_ItemType,$AD:$AD)","v":0},{"$f":"-SUMIFS(Sheet1!S71_AdjustmentBudAmnt,Sheet1!S71_SubMunicipalVoteNo,$AC:$AC,Sheet1!S71_ItemType,$AD:$AD)","v":0},{"$f":"-SUMIFS(Sheet1!S71_AdjustmentBudAmnt,Sheet1!S71_SubMunicipalVoteNo,$AC:$AC,Sheet1!S71_ItemType,$AD:$AD)","v":0},{"$f":"SUMIFS(Sheet1!S71_ASBudgetAmount,Sheet1!S71_SubMunicipalVoteNo,$AC:$AC,Sheet1!S71_ItemType,$AD:$AD)","v":0},{"$f":"SUMIFS(Sheet1!S71_OY1BudgetAmount,Sheet1!S71_SubMunicipalVoteNo,$AC:$AC,Sheet1!S71_ItemType,$AD:$AD)","v":0},{"$f":"SUMIFS(Sheet1!S71_OY2BudgetAmount,Sheet1!S71_SubMunicipalVoteNo,$AC:$AC,Sheet1!S71_ItemType,$AD:$AD)","v":0},null,null,null,null,null,null,null,null,null,null,null,null,null,null,null,null,null,13,"IR"]
[{"$f":"'Org structure'!E6","v":"1.4 - [Name of sub-vote]"},null,{"$f":"SUMIFS(Sheet1!S71_PPPYearAmount,Sheet1!S71_SubMunicipalVoteNo,$AC:$AC,Sheet1!S71_ItemType,$AD:$AD)","v":0},{"$f":"SUMIFS(Sheet1!S71_PPYearAmount,Sheet1!S71_SubMunicipalVoteNo,$AC:$AC,Sheet1!S71_ItemType,$AD:$AD)","v":0},{"$f":"SUMIFS(Sheet1!S71_PYearAmount,Sheet1!S71_SubMunicipalVoteNo,$AC:$AC,Sheet1!S71_ItemType,$AD:$AD)","v":0},{"$f":"-SUMIFS(Sheet1!S71_OriginalBudAmnt,Sheet1!S71_SubMunicipalVoteNo,$AC:$AC,Sheet1!S71_ItemType,$AD:$AD)","v":0},{"$f":"-SUMIFS(Sheet1!S71_AdjustmentBudAmnt,Sheet1!S71_SubMunicipalVoteNo,$AC:$AC,Sheet1!S71_ItemType,$AD:$AD)","v":0},{"$f":"-SUMIFS(Sheet1!S71_AdjustmentBudAmnt,Sheet1!S71_SubMunicipalVoteNo,$AC:$AC,Sheet1!S71_ItemType,$AD:$AD)","v":0},{"$f":"SUMIFS(Sheet1!S71_ASBudgetAmount,Sheet1!S71_SubMunicipalVoteNo,$AC:$AC,Sheet1!S71_ItemType,$AD:$AD)","v":0},{"$f":"SUMIFS(Sheet1!S71_OY1BudgetAmount,Sheet1!S71_SubMunicipalVoteNo,$AC:$AC,Sheet1!S71_ItemType,$AD:$AD)","v":0},{"$f":"SUMIFS(Sheet1!S71_OY2BudgetAmount,Sheet1!S71_SubMunicipalVoteNo,$AC:$AC,Sheet1!S71_ItemType,$AD:$AD)","v":0},null,null,null,null,null,null,null,null,null,null,null,null,null,null,null,null,null,14,"IR"]
[{"$f":"'Org structure'!E7","v":"1.5 - [Name of sub-vote]"},null,{"$f":"SUMIFS(Sheet1!S71_PPPYearAmount,Sheet1!S71_SubMunicipalVoteNo,$AC:$AC,Sheet1!S71_ItemType,$AD:$AD)","v":0},{"$f":"SUMIFS(Sheet1!S71_PPYearAmount,Sheet1!S71_SubMunicipalVoteNo,$AC:$AC,Sheet1!S71_ItemType,$AD:$AD)","v":0},{"$f":"SUMIFS(Sheet1!S71_PYearAmount,Sheet1!S71_SubMunicipalVoteNo,$AC:$AC,Sheet1!S71_ItemType,$AD:$AD)","v":0},{"$f":"-SUMIFS(Sheet1!S71_OriginalBudAmnt,Sheet1!S71_SubMunicipalVoteNo,$AC:$AC,Sheet1!S71_ItemType,$AD:$AD)","v":0},{"$f":"-SUMIFS(Sheet1!S71_AdjustmentBudAmnt,Sheet1!S71_SubMunicipalVoteNo,$AC:$AC,Sheet1!S71_ItemType,$AD:$AD)","v":0},{"$f":"-SUMIFS(Sheet1!S71_AdjustmentBudAmnt,Sheet1!S71_SubMunicipalVoteNo,$AC:$AC,Sheet1!S71_ItemType,$AD:$AD)","v":0},{"$f":"SUMIFS(Sheet1!S71_ASBudgetAmount,Sheet1!S71_SubMunicipalVoteNo,$AC:$AC,Sheet1!S71_ItemType,$AD:$AD)","v":0},{"$f":"SUMIFS(Sheet1!S71_OY1BudgetAmount,Sheet1!S71_SubMunicipalVoteNo,$AC:$AC,Sheet1!S71_ItemType,$AD:$AD)","v":0},{"$f":"SUMIFS(Sheet1!S71_OY2BudgetAmount,Sheet1!S71_SubMunicipalVoteNo,$AC:$AC,Sheet1!S71_ItemType,$AD:$AD)","v":0},null,null,null,null,null,null,null,null,null,null,null,null,null,null,null,null,null,15,"IR"]
[{"$f":"'Org structure'!E8","v":"1.6 - [Name of sub-vote]"},null,{"$f":"SUMIFS(Sheet1!S71_PPPYearAmount,Sheet1!S71_SubMunicipalVoteNo,$AC:$AC,Sheet1!S71_ItemType,$AD:$AD)","v":0},{"$f":"SUMIFS(Sheet1!S71_PPYearAmount,Sheet1!S71_SubMunicipalVoteNo,$AC:$AC,Sheet1!S71_ItemType,$AD:$AD)","v":0},{"$f":"SUMIFS(Sheet1!S71_PYearAmount,Sheet1!S71_SubMunicipalVoteNo,$AC:$AC,Sheet1!S71_ItemType,$AD:$AD)","v":0},{"$f":"-SUMIFS(Sheet1!S71_OriginalBudAmnt,Sheet1!S71_SubMunicipalVoteNo,$AC:$AC,Sheet1!S71_ItemType,$AD:$AD)","v":0},{"$f":"-SUMIFS(Sheet1!S71_AdjustmentBudAmnt,Sheet1!S71_SubMunicipalVoteNo,$AC:$AC,Sheet1!S71_ItemType,$AD:$AD)","v":0},{"$f":"-SUMIFS(Sheet1!S71_AdjustmentBudAmnt,Sheet1!S71_SubMunicipalVoteNo,$AC:$AC,Sheet1!S71_ItemType,$AD:$AD)","v":0},{"$f":"SUMIFS(Sheet1!S71_ASBudgetAmount,Sheet1!S71_SubMunicipalVoteNo,$AC:$AC,Sheet1!S71_ItemType,$AD:$AD)","v":0},{"$f":"SUMIFS(Sheet1!S71_OY1BudgetAmount,Sheet1!S71_SubMunicipalVoteNo,$AC:$AC,Sheet1!S71_ItemType,$AD:$AD)","v":0},{"$f":"SUMIFS(Sheet1!S71_OY2BudgetAmount,Sheet1!S71_SubMunicipalVoteNo,$AC:$AC,Sheet1!S71_ItemType,$AD:$AD)","v":0},null,null,null,null,null,null,null,null,null,null,null,null,null,null,null,null,null,16,"IR"]
[{"$f":"'Org structure'!E9","v":"1.7 - [Name of sub-vote]"},null,{"$f":"SUMIFS(Sheet1!S71_PPPYearAmount,Sheet1!S71_SubMunicipalVoteNo,$AC:$AC,Sheet1!S71_ItemType,$AD:$AD)","v":0},{"$f":"SUMIFS(Sheet1!S71_PPYearAmount,Sheet1!S71_SubMunicipalVoteNo,$AC:$AC,Sheet1!S71_ItemType,$AD:$AD)","v":0},{"$f":"SUMIFS(Sheet1!S71_PYearAmount,Sheet1!S71_SubMunicipalVoteNo,$AC:$AC,Sheet1!S71_ItemType,$AD:$AD)","v":0},{"$f":"-SUMIFS(Sheet1!S71_OriginalBudAmnt,Sheet1!S71_SubMunicipalVoteNo,$AC:$AC,Sheet1!S71_ItemType,$AD:$AD)","v":0},{"$f":"-SUMIFS(Sheet1!S71_AdjustmentBudAmnt,Sheet1!S71_SubMunicipalVoteNo,$AC:$AC,Sheet1!S71_ItemType,$AD:$AD)","v":0},{"$f":"-SUMIFS(Sheet1!S71_AdjustmentBudAmnt,Sheet1!S71_SubMunicipalVoteNo,$AC:$AC,Sheet1!S71_ItemType,$AD:$AD)","v":0},{"$f":"SUMIFS(Sheet1!S71_ASBudgetAmount,Sheet1!S71_SubMunicipalVoteNo,$AC:$AC,Sheet1!S71_ItemType,$AD:$AD)","v":0},{"$f":"SUMIFS(Sheet1!S71_OY1BudgetAmount,Sheet1!S71_SubMunicipalVoteNo,$AC:$AC,Sheet1!S71_ItemType,$AD:$AD)","v":0},{"$f":"SUMIFS(Sheet1!S71_OY2BudgetAmount,Sheet1!S71_SubMunicipalVoteNo,$AC:$AC,Sheet1!S71_ItemType,$AD:$AD)","v":0},null,null,null,null,null,null,null,null,null,null,null,null,null,null,null,null,null,17,"IR"]
[{"$f":"'Org structure'!E10","v":"1.8 - [Name of sub-vote]"},null,{"$f":"SUMIFS(Sheet1!S71_PPPYearAmount,Sheet1!S71_SubMunicipalVoteNo,$AC:$AC,Sheet1!S71_ItemType,$AD:$AD)","v":0},{"$f":"SUMIFS(Sheet1!S71_PPYearAmount,Sheet1!S71_SubMunicipalVoteNo,$AC:$AC,Sheet1!S71_ItemType,$AD:$AD)","v":0},{"$f":"SUMIFS(Sheet1!S71_PYearAmount,Sheet1!S71_SubMunicipalVoteNo,$AC:$AC,Sheet1!S71_ItemType,$AD:$AD)","v":0},{"$f":"-SUMIFS(Sheet1!S71_OriginalBudAmnt,Sheet1!S71_SubMunicipalVoteNo,$AC:$AC,Sheet1!S71_ItemType,$AD:$AD)","v":0},{"$f":"-SUMIFS(Sheet1!S71_AdjustmentBudAmnt,Sheet1!S71_SubMunicipalVoteNo,$AC:$AC,Sheet1!S71_ItemType,$AD:$AD)","v":0},{"$f":"-SUMIFS(Sheet1!S71_AdjustmentBudAmnt,Sheet1!S71_SubMunicipalVoteNo,$AC:$AC,Sheet1!S71_ItemType,$AD:$AD)","v":0},{"$f":"SUMIFS(Sheet1!S71_ASBudgetAmount,Sheet1!S71_SubMunicipalVoteNo,$AC:$AC,Sheet1!S71_ItemType,$AD:$AD)","v":0},{"$f":"SUMIFS(Sheet1!S71_OY1BudgetAmount,Sheet1!S71_SubMunicipalVoteNo,$AC:$AC,Sheet1!S71_ItemType,$AD:$AD)","v":0},{"$f":"SUMIFS(Sheet1!S71_OY2BudgetAmount,Sheet1!S71_SubMunicipalVoteNo,$AC:$AC,Sheet1!S71_ItemType,$AD:$AD)","v":0},null,null,null,null,null,null,null,null,null,null,null,null,null,null,null,null,null,18,"IR"]
[{"$f":"'Org structure'!E11","v":"1.9 - [Name of sub-vote]"},null,{"$f":"SUMIFS(Sheet1!S71_PPPYearAmount,Sheet1!S71_SubMunicipalVoteNo,$AC:$AC,Sheet1!S71_ItemType,$AD:$AD)","v":0},{"$f":"SUMIFS(Sheet1!S71_PPYearAmount,Sheet1!S71_SubMunicipalVoteNo,$AC:$AC,Sheet1!S71_ItemType,$AD:$AD)","v":0},{"$f":"SUMIFS(Sheet1!S71_PYearAmount,Sheet1!S71_SubMunicipalVoteNo,$AC:$AC,Sheet1!S71_ItemType,$AD:$AD)","v":0},{"$f":"-SUMIFS(Sheet1!S71_OriginalBudAmnt,Sheet1!S71_SubMunicipalVoteNo,$AC:$AC,Sheet1!S71_ItemType,$AD:$AD)","v":0},{"$f":"-SUMIFS(Sheet1!S71_AdjustmentBudAmnt,Sheet1!S71_SubMunicipalVoteNo,$AC:$AC,Sheet1!S71_ItemType,$AD:$AD)","v":0},{"$f":"-SUMIFS(Sheet1!S71_AdjustmentBudAmnt,Sheet1!S71_SubMunicipalVoteNo,$AC:$AC,Sheet1!S71_ItemType,$AD:$AD)","v":0},{"$f":"SUMIFS(Sheet1!S71_ASBudgetAmount,Sheet1!S71_SubMunicipalVoteNo,$AC:$AC,Sheet1!S71_ItemType,$AD:$AD)","v":0},{"$f":"SUMIFS(Sheet1!S71_OY1BudgetAmount,Sheet1!S71_SubMunicipalVoteNo,$AC:$AC,Sheet1!S71_ItemType,$AD:$AD)","v":0},{"$f":"SUMIFS(Sheet1!S71_OY2BudgetAmount,Sheet1!S71_SubMunicipalVoteNo,$AC:$AC,Sheet1!S71_ItemType,$AD:$AD)","v":0},null,null,null,null,null,null,null,null,null,null,null,null,null,null,null,null,null,19,"IR"]
[{"$f":"'Org structure'!E12","v":"1.10 - [Name of sub-vote]"},null,{"$f":"SUMIFS(Sheet1!S71_PPPYearAmount,Sheet1!S71_SubMunicipalVoteNo,$AC:$AC,Sheet1!S71_ItemType,$AD:$AD)","v":0},{"$f":"SUMIFS(Sheet1!S71_PPYearAmount,Sheet1!S71_SubMunicipalVoteNo,$AC:$AC,Sheet1!S71_ItemType,$AD:$AD)","v":0},{"$f":"SUMIFS(Sheet1!S71_PYearAmount,Sheet1!S71_SubMunicipalVoteNo,$AC:$AC,Sheet1!S71_ItemType,$AD:$AD)","v":0},{"$f":"-SUMIFS(Sheet1!S71_OriginalBudAmnt,Sheet1!S71_SubMunicipalVoteNo,$AC:$AC,Sheet1!S71_ItemType,$AD:$AD)","v":0},{"$f":"-SUMIFS(Sheet1!S71_AdjustmentBudAmnt,Sheet1!S71_SubMunicipalVoteNo,$AC:$AC,Sheet1!S71_ItemType,$AD:$AD)","v":0},{"$f":"-SUMIFS(Sheet1!S71_AdjustmentBudAmnt,Sheet1!S71_SubMunicipalVoteNo,$AC:$AC,Sheet1!S71_ItemType,$AD:$AD)","v":0},{"$f":"SUMIFS(Sheet1!S71_ASBudgetAmount,Sheet1!S71_SubMunicipalVoteNo,$AC:$AC,Sheet1!S71_ItemType,$AD:$AD)","v":0},{"$f":"SUMIFS(Sheet1!S71_OY1BudgetAmount,Sheet1!S71_SubMunicipalVoteNo,$AC:$AC,Sheet1!S71_ItemType,$AD:$AD)","v":0},{"$f":"SUMIFS(Sheet1!S71_OY2BudgetAmount,Sheet1!S71_SubMunicipalVoteNo,$AC:$AC,Sheet1!S71_ItemType,$AD:$AD)","v":0},null,null,null,null,null,null,null,null,null,null,null,null,null,null,null,null,null,110,"IR"]
[{"$f":"'Org structure'!A3","v":"Vote 2 - Community and Social Services"},null,{"$f":"SUM(C17:C26)","v":600710},{"$f":"SUM(D17:D26)","v":402123},357942,691600,497600,497600,565939,593670,621571]
[{"$f":"'Org structure'!E14","v":"2.1 - Animal Care and Diseases"},null,{"$f":"SUMIFS(Sheet1!S71_PPPYearAmount,Sheet1!S71_SubMunicipalVoteNo,$AC:$AC,Sheet1!S71_ItemType,$AD:$AD)","v":0},{"$f":"SUMIFS(Sheet1!S71_PPYearAmount,Sheet1!S71_SubMunicipalVoteNo,$AC:$AC,Sheet1!S71_ItemType,$AD:$AD)","v":0},{"$f":"SUMIFS(Sheet1!S71_PYearAmount,Sheet1!S71_SubMunicipalVoteNo,$AC:$AC,Sheet1!S71_ItemType,$AD:$AD)","v":0},{"$f":"-SUMIFS(Sheet1!S71_OriginalBudAmnt,Sheet1!S71_SubMunicipalVoteNo,$AC:$AC,Sheet1!S71_ItemType,$AD:$AD)","v":0},{"$f":"-SUMIFS(Sheet1!S71_AdjustmentBudAmnt,Sheet1!S71_SubMunicipalVoteNo,$AC:$AC,Sheet1!S71_ItemType,$AD:$AD)","v":0},{"$f":"-SUMIFS(Sheet1!S71_AdjustmentBudAmnt,Sheet1!S71_SubMunicipalVoteNo,$AC:$AC,Sheet1!S71_ItemType,$AD:$AD)","v":0},{"$f":"SUMIFS(Sheet1!S71_ASBudgetAmount,Sheet1!S71_SubMunicipalVoteNo,$AC:$AC,Sheet1!S71_ItemType,$AD:$AD)","v":0},{"$f":"SUMIFS(Sheet1!S71_OY1BudgetAmount,Sheet1!S71_SubMunicipalVoteNo,$AC:$AC,Sheet1!S71_ItemType,$AD:$AD)","v":0},{"$f":"SUMIFS(Sheet1!S71_OY2BudgetAmount,Sheet1!S71_SubMunicipalVoteNo,$AC:$AC,Sheet1!S71_ItemType,$AD:$AD)","v":0},null,null,null,null,null,null,null,null,null,null,null,null,null,null,null,null,null,21,"IR"]
[{"$f":"'Org structure'!E15","v":"2.2 - Community Halls and Facilities"},null,{"$f":"SUMIFS(Sheet1!S71_PPPYearAmount,Sheet1!S71_SubMunicipalVoteNo,$AC:$AC,Sheet1!S71_ItemType,$AD:$AD)","v":298000},{"$f":"SUMIFS(Sheet1!S71_PPYearAmount,Sheet1!S71_SubMunicipalVoteNo,$AC:$AC,Sheet1!S71_ItemType,$AD:$AD)","v":0},{"$f":"SUMIFS(Sheet1!S71_PYearAmount,Sheet1!S71_SubMunicipalVoteNo,$AC:$AC,Sheet1!S71_ItemType,$AD:$AD)","v":0},{"$f":"-SUMIFS(Sheet1!S71_OriginalBudAmnt,Sheet1!S71_SubMunicipalVoteNo,$AC:$AC,Sheet1!S71_ItemType,$AD:$AD)","v":0},{"$f":"-SUMIFS(Sheet1!S71_AdjustmentBudAmnt,Sheet1!S71_SubMunicipalVoteNo,$AC:$AC,Sheet1!S71_ItemType,$AD:$AD)","v":0},{"$f":"-SUMIFS(Sheet1!S71_AdjustmentBudAmnt,Sheet1!S71_SubMunicipalVoteNo,$AC:$AC,Sheet1!S71_ItemType,$AD:$AD)","v":0},{"$f":"SUMIFS(Sheet1!S71_ASBudgetAmount,Sheet1!S71_SubMunicipalVoteNo,$AC:$AC,Sheet1!S71_ItemType,$AD:$AD)","v":0},{"$f":"SUMIFS(Sheet1!S71_OY1BudgetAmount,Sheet1!S71_SubMunicipalVoteNo,$AC:$AC,Sheet1!S71_ItemType,$AD:$AD)","v":0},{"$f":"SUMIFS(Sheet1!S71_OY2BudgetAmount,Sheet1!S71_SubMunicipalVoteNo,$AC:$AC,Sheet1!S71_ItemType,$AD:$AD)","v":0},null,null,null,null,null,null,null,null,null,null,null,null,null,null,null,null,null,22,"IR"]
[{"$f":"'Org structure'!E16","v":"2.3 - Libraries and Archives"},null,{"$f":"SUMIFS(Sheet1!S71_PPPYearAmount,Sheet1!S71_SubMunicipalVoteNo,$AC:$AC,Sheet1!S71_ItemType,$AD:$AD)","v":1240},{"$f":"SUMIFS(Sheet1!S71_PPYearAmount,Sheet1!S71_SubMunicipalVoteNo,$AC:$AC,Sheet1!S71_ItemType,$AD:$AD)","v":888},{"$f":"SUMIFS(Sheet1!S71_PYearAmount,Sheet1!S71_SubMunicipalVoteNo,$AC:$AC,Sheet1!S71_ItemType,$AD:$AD)","v":2029},{"$f":"-SUMIFS(Sheet1!S71_OriginalBudAmnt,Sheet1!S71_SubMunicipalVoteNo,$AC:$AC,Sheet1!S71_ItemType,$AD:$AD)","v":1600},{"$f":"-SUMIFS(Sheet1!S71_AdjustmentBudAmnt,Sheet1!S71_SubMunicipalVoteNo,$AC:$AC,Sheet1!S71_ItemType,$AD:$AD)","v":1600},{"$f":"-SUMIFS(Sheet1!S71_AdjustmentBudAmnt,Sheet1!S71_SubMunicipalVoteNo,$AC:$AC,Sheet1!S71_ItemType,$AD:$AD)","v":1600},{"$f":"SUMIFS(Sheet1!S71_ASBudgetAmount,Sheet1!S71_SubMunicipalVoteNo,$AC:$AC,Sheet1!S71_ItemType,$AD:$AD)","v":1600},{"$f":"SUMIFS(Sheet1!S71_OY1BudgetAmount,Sheet1!S71_SubMunicipalVoteNo,$AC:$AC,Sheet1!S71_ItemType,$AD:$AD)","v":1678},{"$f":"SUMIFS(Sheet1!S71_OY2BudgetAmount,Sheet1!S71_SubMunicipalVoteNo,$AC:$AC,Sheet1!S71_ItemType,$AD:$AD)","v":1757},null,null,null,null,null,null,null,null,null,null,null,null,null,null,null,null,null,23,"IR"]
[{"$f":"'Org structure'!E17","v":"2.4 - Cemeteries, Funeral Parlours and Crematoriums"},null,{"$f":"SUMIFS(Sheet1!S71_PPPYearAmount,Sheet1!S71_SubMunicipalVoteNo,$AC:$AC,Sheet1!S71_ItemType,$AD:$AD)","v":301470},{"$f":"SUMIFS(Sheet1!S71_PPYearAmount,Sheet1!S71_SubMunicipalVoteNo,$AC:$AC,Sheet1!S71_ItemType,$AD:$AD)","v":401235},{"$f":"SUMIFS(Sheet1!S71_PYearAmount,Sheet1!S71_SubMunicipalVoteNo,$AC:$AC,Sheet1!S71_ItemType,$AD:$AD)","v":355913},{"$f":"-SUMIFS(Sheet1!S71_OriginalBudAmnt,Sheet1!S71_SubMunicipalVoteNo,$AC:$AC,Sheet1!S71_ItemType,$AD:$AD)","v":690000},{"$f":"-SUMIFS(Sheet1!S71_AdjustmentBudAmnt,Sheet1!S71_SubMunicipalVoteNo,$AC:$AC,Sheet1!S71_ItemType,$AD:$AD)","v":496000},{"$f":"-SUMIFS(Sheet1!S71_AdjustmentBudAmnt,Sheet1!S71_SubMunicipalVoteNo,$AC:$AC,Sheet1!S71_ItemType,$AD:$AD)","v":496000},{"$f":"SUMIFS(Sheet1!S71_ASBudgetAmount,Sheet1!S71_SubMunicipalVoteNo,$AC:$AC,Sheet1!S71_ItemType,$AD:$AD)","v":564339},{"$f":"SUMIFS(Sheet1!S71_OY1BudgetAmount,Sheet1!S71_SubMunicipalVoteNo,$AC:$AC,Sheet1!S71_ItemType,$AD:$AD)","v":591992},{"$f":"SUMIFS(Sheet1!S71_OY2BudgetAmount,Sheet1!S71_SubMunicipalVoteNo,$AC:$AC,Sheet1!S71_ItemType,$AD:$AD)","v":619814},null,null,null,null,null,null,null,null,null,null,null,null,null,null,null,null,null,24,"IR"]
[{"$f":"'Org structure'!E18","v":"2.5 - Disaster Management"},null,{"$f":"SUMIFS(Sheet1!S71_PPPYearAmount,Sheet1!S71_SubMunicipalVoteNo,$AC:$AC,Sheet1!S71_ItemType,$AD:$AD)","v":0},{"$f":"SUMIFS(Sheet1!S71_PPYearAmount,Sheet1!S71_SubMunicipalVoteNo,$AC:$AC,Sheet1!S71_ItemType,$AD:$AD)","v":0},{"$f":"SUMIFS(Sheet1!S71_PYearAmount,Sheet1!S71_SubMunicipalVoteNo,$AC:$AC,Sheet1!S71_ItemType,$AD:$AD)","v":0},{"$f":"-SUMIFS(Sheet1!S71_OriginalBudAmnt,Sheet1!S71_SubMunicipalVoteNo,$AC:$AC,Sheet1!S71_ItemType,$AD:$AD)","v":0},{"$f":"-SUMIFS(Sheet1!S71_AdjustmentBudAmnt,Sheet1!S71_SubMunicipalVoteNo,$AC:$AC,Sheet1!S71_ItemType,$AD:$AD)","v":0},{"$f":"-SUMIFS(Sheet1!S71_AdjustmentBudAmnt,Sheet1!S71_SubMunicipalVoteNo,$AC:$AC,Sheet1!S71_ItemType,$AD:$AD)","v":0},{"$f":"SUMIFS(Sheet1!S71_ASBudgetAmount,Sheet1!S71_SubMunicipalVoteNo,$AC:$AC,Sheet1!S71_ItemType,$AD:$AD)","v":0},{"$f":"SUMIFS(Sheet1!S71_OY1BudgetAmount,Sheet1!S71_SubMunicipalVoteNo,$AC:$AC,Sheet1!S71_ItemType,$AD:$AD)","v":0},{"$f":"SUMIFS(Sheet1!S71_OY2BudgetAmount,Sheet1!S71_SubMunicipalVoteNo,$AC:$AC,Sheet1!S71_ItemType,$AD:$AD)","v":0},null,null,null,null,null,null,null,null,null,null,null,null,null,null,null,null,null,25,"IR"]
[{"$f":"'Org structure'!E19","v":"2.6 - [Name of sub-vote]"},null,{"$f":"SUMIFS(Sheet1!S71_PPPYearAmount,Sheet1!S71_SubMunicipalVoteNo,$AC:$AC,Sheet1!S71_ItemType,$AD:$AD)","v":0},{"$f":"SUMIFS(Sheet1!S71_PPYearAmount,Sheet1!S71_SubMunicipalVoteNo,$AC:$AC,Sheet1!S71_ItemType,$AD:$AD)","v":0},{"$f":"SUMIFS(Sheet1!S71_PYearAmount,Sheet1!S71_SubMunicipalVoteNo,$AC:$AC,Sheet1!S71_ItemType,$AD:$AD)","v":0},{"$f":"-SUMIFS(Sheet1!S71_OriginalBudAmnt,Sheet1!S71_SubMunicipalVoteNo,$AC:$AC,Sheet1!S71_ItemType,$AD:$AD)","v":0},{"$f":"-SUMIFS(Sheet1!S71_AdjustmentBudAmnt,Sheet1!S71_SubMunicipalVoteNo,$AC:$AC,Sheet1!S71_ItemType,$AD:$AD)","v":0},{"$f":"-SUMIFS(Sheet1!S71_AdjustmentBudAmnt,Sheet1!S71_SubMunicipalVoteNo,$AC:$AC,Sheet1!S71_ItemType,$AD:$AD)","v":0},{"$f":"SUMIFS(Sheet1!S71_ASBudgetAmount,Sheet1!S71_SubMunicipalVoteNo,$AC:$AC,Sheet1!S71_ItemType,$AD:$AD)","v":0},{"$f":"SUMIFS(Sheet1!S71_OY1BudgetAmount,Sheet1!S71_SubMunicipalVoteNo,$AC:$AC,Sheet1!S71_ItemType,$AD:$AD)","v":0},{"$f":"SUMIFS(Sheet1!S71_OY2BudgetAmount,Sheet1!S71_SubMunicipalVoteNo,$AC:$AC,Sheet1!S71_ItemType,$AD:$AD)","v":0},null,null,null,null,null,null,null,null,null,null,null,null,null,null,null,null,null,26,"IR"]
[{"$f":"'Org structure'!E20","v":"2.7 - [Name of sub-vote]"},null,{"$f":"SUMIFS(Sheet1!S71_PPPYearAmount,Sheet1!S71_SubMunicipalVoteNo,$AC:$AC,Sheet1!S71_ItemType,$AD:$AD)","v":0},{"$f":"SUMIFS(Sheet1!S71_PPYearAmount,Sheet1!S71_SubMunicipalVoteNo,$AC:$AC,Sheet1!S71_ItemType,$AD:$AD)","v":0},{"$f":"SUMIFS(Sheet1!S71_PYearAmount,Sheet1!S71_SubMunicipalVoteNo,$AC:$AC,Sheet1!S71_ItemType,$AD:$AD)","v":0},{"$f":"-SUMIFS(Sheet1!S71_OriginalBudAmnt,Sheet1!S71_SubMunicipalVoteNo,$AC:$AC,Sheet1!S71_ItemType,$AD:$AD)","v":0},{"$f":"-SUMIFS(Sheet1!S71_AdjustmentBudAmnt,Sheet1!S71_SubMunicipalVoteNo,$AC:$AC,Sheet1!S71_ItemType,$AD:$AD)","v":0},{"$f":"-SUMIFS(Sheet1!S71_AdjustmentBudAmnt,Sheet1!S71_SubMunicipalVoteNo,$AC:$AC,Sheet1!S71_ItemType,$AD:$AD)","v":0},{"$f":"SUMIFS(Sheet1!S71_ASBudgetAmount,Sheet1!S71_SubMunicipalVoteNo,$AC:$AC,Sheet1!S71_ItemType,$AD:$AD)","v":0},{"$f":"SUMIFS(Sheet1!S71_OY1BudgetAmount,Sheet1!S71_SubMunicipalVoteNo,$AC:$AC,Sheet1!S71_ItemType,$AD:$AD)","v":0},{"$f":"SUMIFS(Sheet1!S71_OY2BudgetAmount,Sheet1!S71_SubMunicipalVoteNo,$AC:$AC,Sheet1!S71_ItemType,$AD:$AD)","v":0},null,null,null,null,null,null,null,null,null,null,null,null,null,null,null,null,null,27,"IR"]
[{"$f":"'Org structure'!E21","v":"2.8 - [Name of sub-vote]"},null,{"$f":"SUMIFS(Sheet1!S71_PPPYearAmount,Sheet1!S71_SubMunicipalVoteNo,$AC:$AC,Sheet1!S71_ItemType,$AD:$AD)","v":0},{"$f":"SUMIFS(Sheet1!S71_PPYearAmount,Sheet1!S71_SubMunicipalVoteNo,$AC:$AC,Sheet1!S71_ItemType,$AD:$AD)","v":0},{"$f":"SUMIFS(Sheet1!S71_PYearAmount,Sheet1!S71_SubMunicipalVoteNo,$AC:$AC,Sheet1!S71_ItemType,$AD:$AD)","v":0},{"$f":"-SUMIFS(Sheet1!S71_OriginalBudAmnt,Sheet1!S71_SubMunicipalVoteNo,$AC:$AC,Sheet1!S71_ItemType,$AD:$AD)","v":0},{"$f":"-SUMIFS(Sheet1!S71_AdjustmentBudAmnt,Sheet1!S71_SubMunicipalVoteNo,$AC:$AC,Sheet1!S71_ItemType,$AD:$AD)","v":0},{"$f":"-SUMIFS(Sheet1!S71_AdjustmentBudAmnt,Sheet1!S71_SubMunicipalVoteNo,$AC:$AC,Sheet1!S71_ItemType,$AD:$AD)","v":0},{"$f":"SUMIFS(Sheet1!S71_ASBudgetAmount,Sheet1!S71_SubMunicipalVoteNo,$AC:$AC,Sheet1!S71_ItemType,$AD:$AD)","v":0},{"$f":"SUMIFS(Sheet1!S71_OY1BudgetAmount,Sheet1!S71_SubMunicipalVoteNo,$AC:$AC,Sheet1!S71_ItemType,$AD:$AD)","v":0},{"$f":"SUMIFS(Sheet1!S71_OY2BudgetAmount,Sheet1!S71_SubMunicipalVoteNo,$AC:$AC,Sheet1!S71_ItemType,$AD:$AD)","v":0},null,null,null,null,null,null,null,null,null,null,null,null,null,null,null,null,null,28,"IR"]
[{"$f":"'Org structure'!E22","v":"2.9 - [Name of sub-vote]"},null,{"$f":"SUMIFS(Sheet1!S71_PPPYearAmount,Sheet1!S71_SubMunicipalVoteNo,$AC:$AC,Sheet1!S71_ItemType,$AD:$AD)","v":0},{"$f":"SUMIFS(Sheet1!S71_PPYearAmount,Sheet1!S71_SubMunicipalVoteNo,$AC:$AC,Sheet1!S71_ItemType,$AD:$AD)","v":0},{"$f":"SUMIFS(Sheet1!S71_PYearAmount,Sheet1!S71_SubMunicipalVoteNo,$AC:$AC,Sheet1!S71_ItemType,$AD:$AD)","v":0},{"$f":"-SUMIFS(Sheet1!S71_OriginalBudAmnt,Sheet1!S71_SubMunicipalVoteNo,$AC:$AC,Sheet1!S71_ItemType,$AD:$AD)","v":0},{"$f":"-SUMIFS(Sheet1!S71_AdjustmentBudAmnt,Sheet1!S71_SubMunicipalVoteNo,$AC:$AC,Sheet1!S71_ItemType,$AD:$AD)","v":0},{"$f":"-SUMIFS(Sheet1!S71_AdjustmentBudAmnt,Sheet1!S71_SubMunicipalVoteNo,$AC:$AC,Sheet1!S71_ItemType,$AD:$AD)","v":0},{"$f":"SUMIFS(Sheet1!S71_ASBudgetAmount,Sheet1!S71_SubMunicipalVoteNo,$AC:$AC,Sheet1!S71_ItemType,$AD:$AD)","v":0},{"$f":"SUMIFS(Sheet1!S71_OY1BudgetAmount,Sheet1!S71_SubMunicipalVoteNo,$AC:$AC,Sheet1!S71_ItemType,$AD:$AD)","v":0},{"$f":"SUMIFS(Sheet1!S71_OY2BudgetAmount,Sheet1!S71_SubMunicipalVoteNo,$AC:$AC,Sheet1!S71_ItemType,$AD:$AD)","v":0},null,null,null,null,null,null,null,null,null,null,null,null,null,null,null,null,null,29,"IR"]
[{"$f":"'Org structure'!E23","v":"2.10 - [Name of sub-vote]"},null,{"$f":"SUMIFS(Sheet1!S71_PPPYearAmount,Sheet1!S71_SubMunicipalVoteNo,$AC:$AC,Sheet1!S71_ItemType,$AD:$AD)","v":0},{"$f":"SUMIFS(Sheet1!S71_PPYearAmount,Sheet1!S71_SubMunicipalVoteNo,$AC:$AC,Sheet1!S71_ItemType,$AD:$AD)","v":0},{"$f":"SUMIFS(Sheet1!S71_PYearAmount,Sheet1!S71_SubMunicipalVoteNo,$AC:$AC,Sheet1!S71_ItemType,$AD:$AD)","v":0},{"$f":"-SUMIFS(Sheet1!S71_OriginalBudAmnt,Sheet1!S71_SubMunicipalVoteNo,$AC:$AC,Sheet1!S71_ItemType,$AD:$AD)","v":0},{"$f":"-SUMIFS(Sheet1!S71_AdjustmentBudAmnt,Sheet1!S71_SubMunicipalVoteNo,$AC:$AC,Sheet1!S71_ItemType,$AD:$AD)","v":0},{"$f":"-SUMIFS(Sheet1!S71_AdjustmentBudAmnt,Sheet1!S71_SubMunicipalVoteNo,$AC:$AC,Sheet1!S71_ItemType,$AD:$AD)","v":0},{"$f":"SUMIFS(Sheet1!S71_ASBudgetAmount,Sheet1!S71_SubMunicipalVoteNo,$AC:$AC,Sheet1!S71_ItemType,$AD:$AD)","v":0},{"$f":"SUMIFS(Sheet1!S71_OY1BudgetAmount,Sheet1!S71_SubMunicipalVoteNo,$AC:$AC,Sheet1!S71_ItemType,$AD:$AD)","v":0},{"$f":"SUMIFS(Sheet1!S71_OY2BudgetAmount,Sheet1!S71_SubMunicipalVoteNo,$AC:$AC,Sheet1!S71_ItemType,$AD:$AD)","v":0},null,null,null,null,null,null,null,null,null,null,null,null,null,null,null,null,null,210,"IR"]
[{"$f":"'Org structure'!A4","v":"Vote 3 - Finance & Administration"},null,{"$f":"SUM(C28:C37)","v":447375319},551422962,516541933,576134872,578159979,578159979,617622491,644518605,645216367]
[{"$f":"'Org structure'!E25","v":"3.1 - Fleet Management"},null,{"$f":"SUMIFS(Sheet1!S71_PPPYearAmount,Sheet1!S71_SubMunicipalVoteNo,$AC:$AC,Sheet1!S71_ItemType,$AD:$AD)","v":14830},{"$f":"SUMIFS(Sheet1!S71_PPYearAmount,Sheet1!S71_SubMunicipalVoteNo,$AC:$AC,Sheet1!S71_ItemType,$AD:$AD)","v":2025},{"$f":"SUMIFS(Sheet1!S71_PYearAmount,Sheet1!S71_SubMunicipalVoteNo,$AC:$AC,Sheet1!S71_ItemType,$AD:$AD)","v":3946},{"$f":"-SUMIFS(Sheet1!S71_OriginalBudAmnt,Sheet1!S71_SubMunicipalVoteNo,$AC:$AC,Sheet1!S71_ItemType,$AD:$AD)","v":7500},{"$f":"-SUMIFS(Sheet1!S71_AdjustmentBudAmnt,Sheet1!S71_SubMunicipalVoteNo,$AC:$AC,Sheet1!S71_ItemType,$AD:$AD)","v":10000},{"$f":"-SUMIFS(Sheet1!S71_AdjustmentBudAmnt,Sheet1!S71_SubMunicipalVoteNo,$AC:$AC,Sheet1!S71_ItemType,$AD:$AD)","v":10000},{"$f":"SUMIFS(Sheet1!S71_ASBudgetAmount,Sheet1!S71_SubMunicipalVoteNo,$AC:$AC,Sheet1!S71_ItemType,$AD:$AD)","v":10000},{"$f":"SUMIFS(Sheet1!S71_OY1BudgetAmount,Sheet1!S71_SubMunicipalVoteNo,$AC:$AC,Sheet1!S71_ItemType,$AD:$AD)","v":11000},{"$f":"SUMIFS(Sheet1!S71_OY2BudgetAmount,Sheet1!S71_SubMunicipalVoteNo,$AC:$AC,Sheet1!S71_ItemType,$AD:$AD)","v":12000},null,null,null,null,null,null,null,null,null,null,null,null,null,null,null,null,null,31,"IR"]
[{"$f":"'Org structure'!E26","v":"3.2 - Finance"},null,{"$f":"SUMIFS(Sheet1!S71_PPPYearAmount,Sheet1!S71_SubMunicipalVoteNo,$AC:$AC,Sheet1!S71_ItemType,$AD:$AD)","v":446955179},{"$f":"SUMIFS(Sheet1!S71_PPYearAmount,Sheet1!S71_SubMunicipalVoteNo,$AC:$AC,Sheet1!S71_ItemType,$AD:$AD)","v":552592484},{"$f":"SUMIFS(Sheet1!S71_PYearAmount,Sheet1!S71_SubMunicipalVoteNo,$AC:$AC,Sheet1!S71_ItemType,$AD:$AD)","v":507360872},{"$f":"-SUMIFS(Sheet1!S71_OriginalBudAmnt,Sheet1!S71_SubMunicipalVoteNo,$AC:$AC,Sheet1!S71_ItemType,$AD:$AD)","v":565150273},{"$f":"-SUMIFS(Sheet1!S71_AdjustmentBudAmnt,Sheet1!S71_SubMunicipalVoteNo,$AC:$AC,Sheet1!S71_ItemType,$AD:$AD)","v":573506400},{"$f":"-SUMIFS(Sheet1!S71_AdjustmentBudAmnt,Sheet1!S71_SubMunicipalVoteNo,$AC:$AC,Sheet1!S71_ItemType,$AD:$AD)","v":573506400},{"$f":"SUMIFS(Sheet1!S71_ASBudgetAmount,Sheet1!S71_SubMunicipalVoteNo,$AC:$AC,Sheet1!S71_ItemType,$AD:$AD)","v":607078851},{"$f":"SUMIFS(Sheet1!S71_OY1BudgetAmount,Sheet1!S71_SubMunicipalVoteNo,$AC:$AC,Sheet1!S71_ItemType,$AD:$AD)","v":633841001},{"$f":"SUMIFS(Sheet1!S71_OY2BudgetAmount,Sheet1!S71_SubMunicipalVoteNo,$AC:$AC,Sheet1!S71_ItemType,$AD:$AD)","v":634304659},null,null,null,null,null,null,null,null,null,null,null,null,null,null,null,null,null,32,"IR"]
[{"$f":"'Org structure'!E27","v":"3.3 - Asset Management"},null,{"$f":"SUMIFS(Sheet1!S71_PPPYearAmount,Sheet1!S71_SubMunicipalVoteNo,$AC:$AC,Sheet1!S71_ItemType,$AD:$AD)","v":0},{"$f":"SUMIFS(Sheet1!S71_PPYearAmount,Sheet1!S71_SubMunicipalVoteNo,$AC:$AC,Sheet1!S71_ItemType,$AD:$AD)","v":0},{"$f":"SUMIFS(Sheet1!S71_PYearAmount,Sheet1!S71_SubMunicipalVoteNo,$AC:$AC,Sheet1!S71_ItemType,$AD:$AD)","v":0},{"$f":"-SUMIFS(Sheet1!S71_OriginalBudAmnt,Sheet1!S71_SubMunicipalVoteNo,$AC:$AC,Sheet1!S71_ItemType,$AD:$AD)","v":0},{"$f":"-SUMIFS(Sheet1!S71_AdjustmentBudAmnt,Sheet1!S71_SubMunicipalVoteNo,$AC:$AC,Sheet1!S71_ItemType,$AD:$AD)","v":100000},{"$f":"-SUMIFS(Sheet1!S71_AdjustmentBudAmnt,Sheet1!S71_SubMunicipalVoteNo,$AC:$AC,Sheet1!S71_ItemType,$AD:$AD)","v":100000},{"$f":"SUMIFS(Sheet1!S71_ASBudgetAmount,Sheet1!S71_SubMunicipalVoteNo,$AC:$AC,Sheet1!S71_ItemType,$AD:$AD)","v":100000},{"$f":"SUMIFS(Sheet1!S71_OY1BudgetAmount,Sheet1!S71_SubMunicipalVoteNo,$AC:$AC,Sheet1!S71_ItemType,$AD:$AD)","v":0},{"$f":"SUMIFS(Sheet1!S71_OY2BudgetAmount,Sheet1!S71_SubMunicipalVoteNo,$AC:$AC,Sheet1!S71_ItemType,$AD:$AD)","v":0},null,null,null,null,null,null,null,null,null,null,null,null,null,null,null,null,null,33,"IR"]
[{"$f":"'Org structure'!E28","v":"3.4 - Human Resources"},null,{"$f":"SUMIFS(Sheet1!S71_PPPYearAmount,Sheet1!S71_SubMunicipalVoteNo,$AC:$AC,Sheet1!S71_ItemType,$AD:$AD)","v":-1186687},{"$f":"SUMIFS(Sheet1!S71_PPYearAmount,Sheet1!S71_SubMunicipalVoteNo,$AC:$AC,Sheet1!S71_ItemType,$AD:$AD)","v":-2977525},{"$f":"SUMIFS(Sheet1!S71_PYearAmount,Sheet1!S71_SubMunicipalVoteNo,$AC:$AC,Sheet1!S71_ItemType,$AD:$AD)","v":8563127},{"$f":"-SUMIFS(Sheet1!S71_OriginalBudAmnt,Sheet1!S71_SubMunicipalVoteNo,$AC:$AC,Sheet1!S71_ItemType,$AD:$AD)","v":310000},{"$f":"-SUMIFS(Sheet1!S71_AdjustmentBudAmnt,Sheet1!S71_SubMunicipalVoteNo,$AC:$AC,Sheet1!S71_ItemType,$AD:$AD)","v":310000},{"$f":"-SUMIFS(Sheet1!S71_AdjustmentBudAmnt,Sheet1!S71_SubMunicipalVoteNo,$AC:$AC,Sheet1!S71_ItemType,$AD:$AD)","v":310000},{"$f":"SUMIFS(Sheet1!S71_ASBudgetAmount,Sheet1!S71_SubMunicipalVoteNo,$AC:$AC,Sheet1!S71_ItemType,$AD:$AD)","v":315000},{"$f":"SUMIFS(Sheet1!S71_OY1BudgetAmount,Sheet1!S71_SubMunicipalVoteNo,$AC:$AC,Sheet1!S71_ItemType,$AD:$AD)","v":320000},{"$f":"SUMIFS(Sheet1!S71_OY2BudgetAmount,Sheet1!S71_SubMunicipalVoteNo,$AC:$AC,Sheet1!S71_ItemType,$AD:$AD)","v":325000},null,null,null,null,null,null,null,null,null,null,null,null,null,null,null,null,null,34,"IR"]
[{"$f":"'Org structure'!E29","v":"3.5 - Legal Services"},null,{"$f":"SUMIFS(Sheet1!S71_PPPYearAmount,Sheet1!S71_SubMunicipalVoteNo,$AC:$AC,Sheet1!S71_ItemType,$AD:$AD)","v":0},{"$f":"SUMIFS(Sheet1!S71_PPYearAmount,Sheet1!S71_SubMunicipalVoteNo,$AC:$AC,Sheet1!S71_ItemType,$AD:$AD)","v":0},{"$f":"SUMIFS(Sheet1!S71_PYearAmount,Sheet1!S71_SubMunicipalVoteNo,$AC:$AC,Sheet1!S71_ItemType,$AD:$AD)","v":0},{"$f":"-SUMIFS(Sheet1!S71_OriginalBudAmnt,Sheet1!S71_SubMunicipalVoteNo,$AC:$AC,Sheet1!S71_ItemType,$AD:$AD)","v":0},{"$f":"-SUMIFS(Sheet1!S71_AdjustmentBudAmnt,Sheet1!S71_SubMunicipalVoteNo,$AC:$AC,Sheet1!S71_ItemType,$AD:$AD)","v":0},{"$f":"-SUMIFS(Sheet1!S71_AdjustmentBudAmnt,Sheet1!S71_SubMunicipalVoteNo,$AC:$AC,Sheet1!S71_ItemType,$AD:$AD)","v":0},{"$f":"SUMIFS(Sheet1!S71_ASBudgetAmount,Sheet1!S71_SubMunicipalVoteNo,$AC:$AC,Sheet1!S71_ItemType,$AD:$AD)","v":0},{"$f":"SUMIFS(Sheet1!S71_OY1BudgetAmount,Sheet1!S71_SubMunicipalVoteNo,$AC:$AC,Sheet1!S71_ItemType,$AD:$AD)","v":0},{"$f":"SUMIFS(Sheet1!S71_OY2BudgetAmount,Sheet1!S71_SubMunicipalVoteNo,$AC:$AC,Sheet1!S71_ItemType,$AD:$AD)","v":0},null,null,null,null,null,null,null,null,null,null,null,null,null,null,null,null,null,35,"IR"]
[{"$f":"'Org structure'!E30","v":"3.6 - Property Services"},null,{"$f":"SUMIFS(Sheet1!S71_PPPYearAmount,Sheet1!S71_SubMunicipalVoteNo,$AC:$AC,Sheet1!S71_ItemType,$AD:$AD)","v":1119134},{"$f":"SUMIFS(Sheet1!S71_PPYearAmount,Sheet1!S71_SubMunicipalVoteNo,$AC:$AC,Sheet1!S71_ItemType,$AD:$AD)","v":355441},{"$f":"SUMIFS(Sheet1!S71_PYearAmount,Sheet1!S71_SubMunicipalVoteNo,$AC:$AC,Sheet1!S71_ItemType,$AD:$AD)","v":479014},{"$f":"-SUMIFS(Sheet1!S71_OriginalBudAmnt,Sheet1!S71_SubMunicipalVoteNo,$AC:$AC,Sheet1!S71_ItemType,$AD:$AD)","v":9167099},{"$f":"-SUMIFS(Sheet1!S71_AdjustmentBudAmnt,Sheet1!S71_SubMunicipalVoteNo,$AC:$AC,Sheet1!S71_ItemType,$AD:$AD)","v":2733579},{"$f":"-SUMIFS(Sheet1!S71_AdjustmentBudAmnt,Sheet1!S71_SubMunicipalVoteNo,$AC:$AC,Sheet1!S71_ItemType,$AD:$AD)","v":2733579},{"$f":"SUMIFS(Sheet1!S71_ASBudgetAmount,Sheet1!S71_SubMunicipalVoteNo,$AC:$AC,Sheet1!S71_ItemType,$AD:$AD)","v":8518640},{"$f":"SUMIFS(Sheet1!S71_OY1BudgetAmount,Sheet1!S71_SubMunicipalVoteNo,$AC:$AC,Sheet1!S71_ItemType,$AD:$AD)","v":8646604},{"$f":"SUMIFS(Sheet1!S71_OY2BudgetAmount,Sheet1!S71_SubMunicipalVoteNo,$AC:$AC,Sheet1!S71_ItemType,$AD:$AD)","v":8774708},null,null,null,null,null,null,null,null,null,null,null,null,null,null,null,null,null,36,"IR"]
[{"$f":"'Org structure'!E31","v":"3.7 - Risk Management"},null,{"$f":"SUMIFS(Sheet1!S71_PPPYearAmount,Sheet1!S71_SubMunicipalVoteNo,$AC:$AC,Sheet1!S71_ItemType,$AD:$AD)","v":0},{"$f":"SUMIFS(Sheet1!S71_PPYearAmount,Sheet1!S71_SubMunicipalVoteNo,$AC:$AC,Sheet1!S71_ItemType,$AD:$AD)","v":0},{"$f":"SUMIFS(Sheet1!S71_PYearAmount,Sheet1!S71_SubMunicipalVoteNo,$AC:$AC,Sheet1!S71_ItemType,$AD:$AD)","v":0},{"$f":"-SUMIFS(Sheet1!S71_OriginalBudAmnt,Sheet1!S71_SubMunicipalVoteNo,$AC:$AC,Sheet1!S71_ItemType,$AD:$AD)","v":0},{"$f":"-SUMIFS(Sheet1!S71_AdjustmentBudAmnt,Sheet1!S71_SubMunicipalVoteNo,$AC:$AC,Sheet1!S71_ItemType,$AD:$AD)","v":0},{"$f":"-SUMIFS(Sheet1!S71_AdjustmentBudAmnt,Sheet1!S71_SubMunicipalVoteNo,$AC:$AC,Sheet1!S71_ItemType,$AD:$AD)","v":0},{"$f":"SUMIFS(Sheet1!S71_ASBudgetAmount,Sheet1!S71_SubMunicipalVoteNo,$AC:$AC,Sheet1!S71_ItemType,$AD:$AD)","v":0},{"$f":"SUMIFS(Sheet1!S71_OY1BudgetAmount,Sheet1!S71_SubMunicipalVoteNo,$AC:$AC,Sheet1!S71_ItemType,$AD:$AD)","v":0},{"$f":"SUMIFS(Sheet1!S71_OY2BudgetAmount,Sheet1!S71_SubMunicipalVoteNo,$AC:$AC,Sheet1!S71_ItemType,$AD:$AD)","v":0},null,null,null,null,null,null,null,null,null,null,null,null,null,null,null,null,null,37,"IR"]
[{"$f":"'Org structure'!E32","v":"3.8 - Supply Chain Management"},null,{"$f":"SUMIFS(Sheet1!S71_PPPYearAmount,Sheet1!S71_SubMunicipalVoteNo,$AC:$AC,Sheet1!S71_ItemType,$AD:$AD)","v":472863},{"$f":"SUMIFS(Sheet1!S71_PPYearAmount,Sheet1!S71_SubMunicipalVoteNo,$AC:$AC,Sheet1!S71_ItemType,$AD:$AD)","v":1450537},{"$f":"SUMIFS(Sheet1!S71_PYearAmount,Sheet1!S71_SubMunicipalVoteNo,$AC:$AC,Sheet1!S71_ItemType,$AD:$AD)","v":134974},{"$f":"-SUMIFS(Sheet1!S71_OriginalBudAmnt,Sheet1!S71_SubMunicipalVoteNo,$AC:$AC,Sheet1!S71_ItemType,$AD:$AD)","v":1500000},{"$f":"-SUMIFS(Sheet1!S71_AdjustmentBudAmnt,Sheet1!S71_SubMunicipalVoteNo,$AC:$AC,Sheet1!S71_ItemType,$AD:$AD)","v":1500000},{"$f":"-SUMIFS(Sheet1!S71_AdjustmentBudAmnt,Sheet1!S71_SubMunicipalVoteNo,$AC:$AC,Sheet1!S71_ItemType,$AD:$AD)","v":1500000},{"$f":"SUMIFS(Sheet1!S71_ASBudgetAmount,Sheet1!S71_SubMunicipalVoteNo,$AC:$AC,Sheet1!S71_ItemType,$AD:$AD)","v":1600000},{"$f":"SUMIFS(Sheet1!S71_OY1BudgetAmount,Sheet1!S71_SubMunicipalVoteNo,$AC:$AC,Sheet1!S71_ItemType,$AD:$AD)","v":1700000},{"$f":"SUMIFS(Sheet1!S71_OY2BudgetAmount,Sheet1!S71_SubMunicipalVoteNo,$AC:$AC,Sheet1!S71_ItemType,$AD:$AD)","v":1800000},null,null,null,null,null,null,null,null,null,null,null,null,null,null,null,null,null,38,"IR"]
[{"$f":"'Org structure'!E33","v":"3.9 - [Name of sub-vote]"},null,{"$f":"SUMIFS(Sheet1!S71_PPPYearAmount,Sheet1!S71_SubMunicipalVoteNo,$AC:$AC,Sheet1!S71_ItemType,$AD:$AD)","v":0},{"$f":"SUMIFS(Sheet1!S71_PPYearAmount,Sheet1!S71_SubMunicipalVoteNo,$AC:$AC,Sheet1!S71_ItemType,$AD:$AD)","v":0},{"$f":"SUMIFS(Sheet1!S71_PYearAmount,Sheet1!S71_SubMunicipalVoteNo,$AC:$AC,Sheet1!S71_ItemType,$AD:$AD)","v":0},{"$f":"-SUMIFS(Sheet1!S71_OriginalBudAmnt,Sheet1!S71_SubMunicipalVoteNo,$AC:$AC,Sheet1!S71_ItemType,$AD:$AD)","v":0},{"$f":"-SUMIFS(Sheet1!S71_AdjustmentBudAmnt,Sheet1!S71_SubMunicipalVoteNo,$AC:$AC,Sheet1!S71_ItemType,$AD:$AD)","v":0},{"$f":"-SUMIFS(Sheet1!S71_AdjustmentBudAmnt,Sheet1!S71_SubMunicipalVoteNo,$AC:$AC,Sheet1!S71_ItemType,$AD:$AD)","v":0},{"$f":"SUMIFS(Sheet1!S71_ASBudgetAmount,Sheet1!S71_SubMunicipalVoteNo,$AC:$AC,Sheet1!S71_ItemType,$AD:$AD)","v":0},{"$f":"SUMIFS(Sheet1!S71_OY1BudgetAmount,Sheet1!S71_SubMunicipalVoteNo,$AC:$AC,Sheet1!S71_ItemType,$AD:$AD)","v":0},{"$f":"SUMIFS(Sheet1!S71_OY2BudgetAmount,Sheet1!S71_SubMunicipalVoteNo,$AC:$AC,Sheet1!S71_ItemType,$AD:$AD)","v":0},null,null,null,null,null,null,null,null,null,null,null,null,null,null,null,null,null,39,"IR"]
[{"$f":"'Org structure'!E34","v":"3.10 - [Name of sub-vote]"},null,{"$f":"SUMIFS(Sheet1!S71_PPPYearAmount,Sheet1!S71_SubMunicipalVoteNo,$AC:$AC,Sheet1!S71_ItemType,$AD:$AD)","v":0},{"$f":"SUMIFS(Sheet1!S71_PPYearAmount,Sheet1!S71_SubMunicipalVoteNo,$AC:$AC,Sheet1!S71_ItemType,$AD:$AD)","v":0},{"$f":"SUMIFS(Sheet1!S71_PYearAmount,Sheet1!S71_SubMunicipalVoteNo,$AC:$AC,Sheet1!S71_ItemType,$AD:$AD)","v":0},{"$f":"-SUMIFS(Sheet1!S71_OriginalBudAmnt,Sheet1!S71_SubMunicipalVoteNo,$AC:$AC,Sheet1!S71_ItemType,$AD:$AD)","v":0},{"$f":"-SUMIFS(Sheet1!S71_AdjustmentBudAmnt,Sheet1!S71_SubMunicipalVoteNo,$AC:$AC,Sheet1!S71_ItemType,$AD:$AD)","v":0},{"$f":"-SUMIFS(Sheet1!S71_AdjustmentBudAmnt,Sheet1!S71_SubMunicipalVoteNo,$AC:$AC,Sheet1!S71_ItemType,$AD:$AD)","v":0},{"$f":"SUMIFS(Sheet1!S71_ASBudgetAmount,Sheet1!S71_SubMunicipalVoteNo,$AC:$AC,Sheet1!S71_ItemType,$AD:$AD)","v":0},{"$f":"SUMIFS(Sheet1!S71_OY1BudgetAmount,Sheet1!S71_SubMunicipalVoteNo,$AC:$AC,Sheet1!S71_ItemType,$AD:$AD)","v":0},{"$f":"SUMIFS(Sheet1!S71_OY2BudgetAmount,Sheet1!S71_SubMunicipalVoteNo,$AC:$AC,Sheet1!S71_ItemType,$AD:$AD)","v":0},null,null,null,null,null,null,null,null,null,null,null,null,null,null,null,null,null,310,"IR"]
[{"$f":"'Org structure'!A5","v":"Vote 4 - Planning and Development"},null,{"$f":"SUM(C39:C48)","v":883239},491493,513124,1020000,670000,670000,820000,860180,900608]
[{"$f":"'Org structure'!E36","v":"4.1 - Town Planning, Building Regulations and Enforcement, and City Engineer"},null,{"$f":"SUMIFS(Sheet1!S71_PPPYearAmount,Sheet1!S71_SubMunicipalVoteNo,$AC:$AC,Sheet1!S71_ItemType,$AD:$AD)","v":535777},{"$f":"SUMIFS(Sheet1!S71_PPYearAmount,Sheet1!S71_SubMunicipalVoteNo,$AC:$AC,Sheet1!S71_ItemType,$AD:$AD)","v":313692},{"$f":"SUMIFS(Sheet1!S71_PYearAmount,Sheet1!S71_SubMunicipalVoteNo,$AC:$AC,Sheet1!S71_ItemType,$AD:$AD)","v":301255},{"$f":"-SUMIFS(Sheet1!S71_OriginalBudAmnt,Sheet1!S71_SubMunicipalVoteNo,$AC:$AC,Sheet1!S71_ItemType,$AD:$AD)","v":420000},{"$f":"-SUMIFS(Sheet1!S71_AdjustmentBudAmnt,Sheet1!S71_SubMunicipalVoteNo,$AC:$AC,Sheet1!S71_ItemType,$AD:$AD)","v":350000},{"$f":"-SUMIFS(Sheet1!S71_AdjustmentBudAmnt,Sheet1!S71_SubMunicipalVoteNo,$AC:$AC,Sheet1!S71_ItemType,$AD:$AD)","v":350000},{"$f":"SUMIFS(Sheet1!S71_ASBudgetAmount,Sheet1!S71_SubMunicipalVoteNo,$AC:$AC,Sheet1!S71_ItemType,$AD:$AD)","v":420000},{"$f":"SUMIFS(Sheet1!S71_OY1BudgetAmount,Sheet1!S71_SubMunicipalVoteNo,$AC:$AC,Sheet1!S71_ItemType,$AD:$AD)","v":440580},{"$f":"SUMIFS(Sheet1!S71_OY2BudgetAmount,Sheet1!S71_SubMunicipalVoteNo,$AC:$AC,Sheet1!S71_ItemType,$AD:$AD)","v":461287},null,null,null,null,null,null,null,null,null,null,null,null,null,null,null,null,null,41,"IR"]
[{"$f":"'Org structure'!E37","v":"4.2 - Corporate Wide Strategic Planning (IDPs, LEDs)"},null,{"$f":"SUMIFS(Sheet1!S71_PPPYearAmount,Sheet1!S71_SubMunicipalVoteNo,$AC:$AC,Sheet1!S71_ItemType,$AD:$AD)","v":347462},{"$f":"SUMIFS(Sheet1!S71_PPYearAmount,Sheet1!S71_SubMunicipalVoteNo,$AC:$AC,Sheet1!S71_ItemType,$AD:$AD)","v":177801},{"$f":"SUMIFS(Sheet1!S71_PYearAmount,Sheet1!S71_SubMunicipalVoteNo,$AC:$AC,Sheet1!S71_ItemType,$AD:$AD)","v":211869},{"$f":"-SUMIFS(Sheet1!S71_OriginalBudAmnt,Sheet1!S71_SubMunicipalVoteNo,$AC:$AC,Sheet1!S71_ItemType,$AD:$AD)","v":600000},{"$f":"-SUMIFS(Sheet1!S71_AdjustmentBudAmnt,Sheet1!S71_SubMunicipalVoteNo,$AC:$AC,Sheet1!S71_ItemType,$AD:$AD)","v":320000},{"$f":"-SUMIFS(Sheet1!S71_AdjustmentBudAmnt,Sheet1!S71_SubMunicipalVoteNo,$AC:$AC,Sheet1!S71_ItemType,$AD:$AD)","v":320000},{"$f":"SUMIFS(Sheet1!S71_ASBudgetAmount,Sheet1!S71_SubMunicipalVoteNo,$AC:$AC,Sheet1!S71_ItemType,$AD:$AD)","v":400000},{"$f":"SUMIFS(Sheet1!S71_OY1BudgetAmount,Sheet1!S71_SubMunicipalVoteNo,$AC:$AC,Sheet1!S71_ItemType,$AD:$AD)","v":419600},{"$f":"SUMIFS(Sheet1!S71_OY2BudgetAmount,Sheet1!S71_SubMunicipalVoteNo,$AC:$AC,Sheet1!S71_ItemType,$AD:$AD)","v":439321},null,null,null,null,null,null,null,null,null,null,null,null,null,null,null,null,null,42,"IR"]
[{"$f":"'Org structure'!E38","v":"4.3 - Economic Development/Planning"},null,{"$f":"SUMIFS(Sheet1!S71_PPPYearAmount,Sheet1!S71_SubMunicipalVoteNo,$AC:$AC,Sheet1!S71_ItemType,$AD:$AD)","v":0},{"$f":"SUMIFS(Sheet1!S71_PPYearAmount,Sheet1!S71_SubMunicipalVoteNo,$AC:$AC,Sheet1!S71_ItemType,$AD:$AD)","v":0},{"$f":"SUMIFS(Sheet1!S71_PYearAmount,Sheet1!S71_SubMunicipalVoteNo,$AC:$AC,Sheet1!S71_ItemType,$AD:$AD)","v":0},{"$f":"-SUMIFS(Sheet1!S71_OriginalBudAmnt,Sheet1!S71_SubMunicipalVoteNo,$AC:$AC,Sheet1!S71_ItemType,$AD:$AD)","v":0},{"$f":"-SUMIFS(Sheet1!S71_AdjustmentBudAmnt,Sheet1!S71_SubMunicipalVoteNo,$AC:$AC,Sheet1!S71_ItemType,$AD:$AD)","v":0},{"$f":"-SUMIFS(Sheet1!S71_AdjustmentBudAmnt,Sheet1!S71_SubMunicipalVoteNo,$AC:$AC,Sheet1!S71_ItemType,$AD:$AD)","v":0},{"$f":"SUMIFS(Sheet1!S71_ASBudgetAmount,Sheet1!S71_SubMunicipalVoteNo,$AC:$AC,Sheet1!S71_ItemType,$AD:$AD)","v":0},{"$f":"SUMIFS(Sheet1!S71_OY1BudgetAmount,Sheet1!S71_SubMunicipalVoteNo,$AC:$AC,Sheet1!S71_ItemType,$AD:$AD)","v":0},{"$f":"SUMIFS(Sheet1!S71_OY2BudgetAmount,Sheet1!S71_SubMunicipalVoteNo,$AC:$AC,Sheet1!S71_ItemType,$AD:$AD)","v":0},null,null,null,null,null,null,null,null,null,null,null,null,null,null,null,null,null,43,"IR"]
[{"$f":"'Org structure'!E39","v":"4.4 - Project Management Unit"},null,{"$f":"SUMIFS(Sheet1!S71_PPPYearAmount,Sheet1!S71_SubMunicipalVoteNo,$AC:$AC,Sheet1!S71_ItemType,$AD:$AD)","v":0},{"$f":"SUMIFS(Sheet1!S71_PPYearAmount,Sheet1!S71_SubMunicipalVoteNo,$AC:$AC,Sheet1!S71_ItemType,$AD:$AD)","v":0},{"$f":"SUMIFS(Sheet1!S71_PYearAmount,Sheet1!S71_SubMunicipalVoteNo,$AC:$AC,Sheet1!S71_ItemType,$AD:$AD)","v":0},{"$f":"-SUMIFS(Sheet1!S71_OriginalBudAmnt,Sheet1!S71_SubMunicipalVoteNo,$AC:$AC,Sheet1!S71_ItemType,$AD:$AD)","v":0},{"$f":"-SUMIFS(Sheet1!S71_AdjustmentBudAmnt,Sheet1!S71_SubMunicipalVoteNo,$AC:$AC,Sheet1!S71_ItemType,$AD:$AD)","v":0},{"$f":"-SUMIFS(Sheet1!S71_AdjustmentBudAmnt,Sheet1!S71_SubMunicipalVoteNo,$AC:$AC,Sheet1!S71_ItemType,$AD:$AD)","v":0},{"$f":"SUMIFS(Sheet1!S71_ASBudgetAmount,Sheet1!S71_SubMunicipalVoteNo,$AC:$AC,Sheet1!S71_ItemType,$AD:$AD)","v":0},{"$f":"SUMIFS(Sheet1!S71_OY1BudgetAmount,Sheet1!S71_SubMunicipalVoteNo,$AC:$AC,Sheet1!S71_ItemType,$AD:$AD)","v":0},{"$f":"SUMIFS(Sheet1!S71_OY2BudgetAmount,Sheet1!S71_SubMunicipalVoteNo,$AC:$AC,Sheet1!S71_ItemType,$AD:$AD)","v":0},null,null,null,null,null,null,null,null,null,null,null,null,null,null,null,null,null,44,"IR"]
[{"$f":"'Org structure'!E40","v":"4.5 - [Name of sub-vote]"},null,{"$f":"SUMIFS(Sheet1!S71_PPPYearAmount,Sheet1!S71_SubMunicipalVoteNo,$AC:$AC,Sheet1!S71_ItemType,$AD:$AD)","v":0},{"$f":"SUMIFS(Sheet1!S71_PPYearAmount,Sheet1!S71_SubMunicipalVoteNo,$AC:$AC,Sheet1!S71_ItemType,$AD:$AD)","v":0},{"$f":"SUMIFS(Sheet1!S71_PYearAmount,Sheet1!S71_SubMunicipalVoteNo,$AC:$AC,Sheet1!S71_ItemType,$AD:$AD)","v":0},{"$f":"-SUMIFS(Sheet1!S71_OriginalBudAmnt,Sheet1!S71_SubMunicipalVoteNo,$AC:$AC,Sheet1!S71_ItemType,$AD:$AD)","v":0},{"$f":"-SUMIFS(Sheet1!S71_AdjustmentBudAmnt,Sheet1!S71_SubMunicipalVoteNo,$AC:$AC,Sheet1!S71_ItemType,$AD:$AD)","v":0},{"$f":"-SUMIFS(Sheet1!S71_AdjustmentBudAmnt,Sheet1!S71_SubMunicipalVoteNo,$AC:$AC,Sheet1!S71_ItemType,$AD:$AD)","v":0},{"$f":"SUMIFS(Sheet1!S71_ASBudgetAmount,Sheet1!S71_SubMunicipalVoteNo,$AC:$AC,Sheet1!S71_ItemType,$AD:$AD)","v":0},{"$f":"SUMIFS(Sheet1!S71_OY1BudgetAmount,Sheet1!S71_SubMunicipalVoteNo,$AC:$AC,Sheet1!S71_ItemType,$AD:$AD)","v":0},{"$f":"SUMIFS(Sheet1!S71_OY2BudgetAmount,Sheet1!S71_SubMunicipalVoteNo,$AC:$AC,Sheet1!S71_ItemType,$AD:$AD)","v":0},null,null,null,null,null,null,null,null,null,null,null,null,null,null,null,null,null,45,"IR"]
[{"$f":"'Org structure'!E41","v":"4.6 - [Name of sub-vote]"},null,{"$f":"SUMIFS(Sheet1!S71_PPPYearAmount,Sheet1!S71_SubMunicipalVoteNo,$AC:$AC,Sheet1!S71_ItemType,$AD:$AD)","v":0},{"$f":"SUMIFS(Sheet1!S71_PPYearAmount,Sheet1!S71_SubMunicipalVoteNo,$AC:$AC,Sheet1!S71_ItemType,$AD:$AD)","v":0},{"$f":"SUMIFS(Sheet1!S71_PYearAmount,Sheet1!S71_SubMunicipalVoteNo,$AC:$AC,Sheet1!S71_ItemType,$AD:$AD)","v":0},{"$f":"-SUMIFS(Sheet1!S71_OriginalBudAmnt,Sheet1!S71_SubMunicipalVoteNo,$AC:$AC,Sheet1!S71_ItemType,$AD:$AD)","v":0},{"$f":"-SUMIFS(Sheet1!S71_AdjustmentBudAmnt,Sheet1!S71_SubMunicipalVoteNo,$AC:$AC,Sheet1!S71_ItemType,$AD:$AD)","v":0},{"$f":"-SUMIFS(Sheet1!S71_AdjustmentBudAmnt,Sheet1!S71_SubMunicipalVoteNo,$AC:$AC,Sheet1!S71_ItemType,$AD:$AD)","v":0},{"$f":"SUMIFS(Sheet1!S71_ASBudgetAmount,Sheet1!S71_SubMunicipalVoteNo,$AC:$AC,Sheet1!S71_ItemType,$AD:$AD)","v":0},{"$f":"SUMIFS(Sheet1!S71_OY1BudgetAmount,Sheet1!S71_SubMunicipalVoteNo,$AC:$AC,Sheet1!S71_ItemType,$AD:$AD)","v":0},{"$f":"SUMIFS(Sheet1!S71_OY2BudgetAmount,Sheet1!S71_SubMunicipalVoteNo,$AC:$AC,Sheet1!S71_ItemType,$AD:$AD)","v":0},null,null,null,null,null,null,null,null,null,null,null,null,null,null,null,null,null,46,"IR"]
[{"$f":"'Org structure'!E42","v":"4.7 - [Name of sub-vote]"},null,{"$f":"SUMIFS(Sheet1!S71_PPPYearAmount,Sheet1!S71_SubMunicipalVoteNo,$AC:$AC,Sheet1!S71_ItemType,$AD:$AD)","v":0},{"$f":"SUMIFS(Sheet1!S71_PPYearAmount,Sheet1!S71_SubMunicipalVoteNo,$AC:$AC,Sheet1!S71_ItemType,$AD:$AD)","v":0},{"$f":"SUMIFS(Sheet1!S71_PYearAmount,Sheet1!S71_SubMunicipalVoteNo,$AC:$AC,Sheet1!S71_ItemType,$AD:$AD)","v":0},{"$f":"-SUMIFS(Sheet1!S71_OriginalBudAmnt,Sheet1!S71_SubMunicipalVoteNo,$AC:$AC,Sheet1!S71_ItemType,$AD:$AD)","v":0},{"$f":"-SUMIFS(Sheet1!S71_AdjustmentBudAmnt,Sheet1!S71_SubMunicipalVoteNo,$AC:$AC,Sheet1!S71_ItemType,$AD:$AD)","v":0},{"$f":"-SUMIFS(Sheet1!S71_AdjustmentBudAmnt,Sheet1!S71_SubMunicipalVoteNo,$AC:$AC,Sheet1!S71_ItemType,$AD:$AD)","v":0},{"$f":"SUMIFS(Sheet1!S71_ASBudgetAmount,Sheet1!S71_SubMunicipalVoteNo,$AC:$AC,Sheet1!S71_ItemType,$AD:$AD)","v":0},{"$f":"SUMIFS(Sheet1!S71_OY1BudgetAmount,Sheet1!S71_SubMunicipalVoteNo,$AC:$AC,Sheet1!S71_ItemType,$AD:$AD)","v":0},{"$f":"SUMIFS(Sheet1!S71_OY2BudgetAmount,Sheet1!S71_SubMunicipalVoteNo,$AC:$AC,Sheet1!S71_ItemType,$AD:$AD)","v":0},null,null,null,null,null,null,null,null,null,null,null,null,null,null,null,null,null,47,"IR"]
[{"$f":"'Org structure'!E43","v":"4.8 - [Name of sub-vote]"},null,{"$f":"SUMIFS(Sheet1!S71_PPPYearAmount,Sheet1!S71_SubMunicipalVoteNo,$AC:$AC,Sheet1!S71_ItemType,$AD:$AD)","v":0},{"$f":"SUMIFS(Sheet1!S71_PPYearAmount,Sheet1!S71_SubMunicipalVoteNo,$AC:$AC,Sheet1!S71_ItemType,$AD:$AD)","v":0},{"$f":"SUMIFS(Sheet1!S71_PYearAmount,Sheet1!S71_SubMunicipalVoteNo,$AC:$AC,Sheet1!S71_ItemType,$AD:$AD)","v":0},{"$f":"-SUMIFS(Sheet1!S71_OriginalBudAmnt,Sheet1!S71_SubMunicipalVoteNo,$AC:$AC,Sheet1!S71_ItemType,$AD:$AD)","v":0},{"$f":"-SUMIFS(Sheet1!S71_AdjustmentBudAmnt,Sheet1!S71_SubMunicipalVoteNo,$AC:$AC,Sheet1!S71_ItemType,$AD:$AD)","v":0},{"$f":"-SUMIFS(Sheet1!S71_AdjustmentBudAmnt,Sheet1!S71_SubMunicipalVoteNo,$AC:$AC,Sheet1!S71_ItemType,$AD:$AD)","v":0},{"$f":"SUMIFS(Sheet1!S71_ASBudgetAmount,Sheet1!S71_SubMunicipalVoteNo,$AC:$AC,Sheet1!S71_ItemType,$AD:$AD)","v":0},{"$f":"SUMIFS(Sheet1!S71_OY1BudgetAmount,Sheet1!S71_SubMunicipalVoteNo,$AC:$AC,Sheet1!S71_ItemType,$AD:$AD)","v":0},{"$f":"SUMIFS(Sheet1!S71_OY2BudgetAmount,Sheet1!S71_SubMunicipalVoteNo,$AC:$AC,Sheet1!S71_ItemType,$AD:$AD)","v":0},null,null,null,null,null,null,null,null,null,null,null,null,null,null,null,null,null,48,"IR"]
[{"$f":"'Org structure'!E44","v":"4.9 - [Name of sub-vote]"},null,{"$f":"SUMIFS(Sheet1!S71_PPPYearAmount,Sheet1!S71_SubMunicipalVoteNo,$AC:$AC,Sheet1!S71_ItemType,$AD:$AD)","v":0},{"$f":"SUMIFS(Sheet1!S71_PPYearAmount,Sheet1!S71_SubMunicipalVoteNo,$AC:$AC,Sheet1!S71_ItemType,$AD:$AD)","v":0},{"$f":"SUMIFS(Sheet1!S71_PYearAmount,Sheet1!S71_SubMunicipalVoteNo,$AC:$AC,Sheet1!S71_ItemType,$AD:$AD)","v":0},{"$f":"-SUMIFS(Sheet1!S71_OriginalBudAmnt,Sheet1!S71_SubMunicipalVoteNo,$AC:$AC,Sheet1!S71_ItemType,$AD:$AD)","v":0},{"$f":"-SUMIFS(Sheet1!S71_AdjustmentBudAmnt,Sheet1!S71_SubMunicipalVoteNo,$AC:$AC,Sheet1!S71_ItemType,$AD:$AD)","v":0},{"$f":"-SUMIFS(Sheet1!S71_AdjustmentBudAmnt,Sheet1!S71_SubMunicipalVoteNo,$AC:$AC,Sheet1!S71_ItemType,$AD:$AD)","v":0},{"$f":"SUMIFS(Sheet1!S71_ASBudgetAmount,Sheet1!S71_SubMunicipalVoteNo,$AC:$AC,Sheet1!S71_ItemType,$AD:$AD)","v":0},{"$f":"SUMIFS(Sheet1!S71_OY1BudgetAmount,Sheet1!S71_SubMunicipalVoteNo,$AC:$AC,Sheet1!S71_ItemType,$AD:$AD)","v":0},{"$f":"SUMIFS(Sheet1!S71_OY2BudgetAmount,Sheet1!S71_SubMunicipalVoteNo,$AC:$AC,Sheet1!S71_ItemType,$AD:$AD)","v":0},null,null,null,null,null,null,null,null,null,null,null,null,null,null,null,null,null,49,"IR"]
[{"$f":"'Org structure'!E45","v":"4.10 - [Name of sub-vote]"},null,{"$f":"SUMIFS(Sheet1!S71_PPPYearAmount,Sheet1!S71_SubMunicipalVoteNo,$AC:$AC,Sheet1!S71_ItemType,$AD:$AD)","v":0},{"$f":"SUMIFS(Sheet1!S71_PPYearAmount,Sheet1!S71_SubMunicipalVoteNo,$AC:$AC,Sheet1!S71_ItemType,$AD:$AD)","v":0},{"$f":"SUMIFS(Sheet1!S71_PYearAmount,Sheet1!S71_SubMunicipalVoteNo,$AC:$AC,Sheet1!S71_ItemType,$AD:$AD)","v":0},{"$f":"-SUMIFS(Sheet1!S71_OriginalBudAmnt,Sheet1!S71_SubMunicipalVoteNo,$AC:$AC,Sheet1!S71_ItemType,$AD:$AD)","v":0},{"$f":"-SUMIFS(Sheet1!S71_AdjustmentBudAmnt,Sheet1!S71_SubMunicipalVoteNo,$AC:$AC,Sheet1!S71_ItemType,$AD:$AD)","v":0},{"$f":"-SUMIFS(Sheet1!S71_AdjustmentBudAmnt,Sheet1!S71_SubMunicipalVoteNo,$AC:$AC,Sheet1!S71_ItemType,$AD:$AD)","v":0},{"$f":"SUMIFS(Sheet1!S71_ASBudgetAmount,Sheet1!S71_SubMunicipalVoteNo,$AC:$AC,Sheet1!S71_ItemType,$AD:$AD)","v":0},{"$f":"SUMIFS(Sheet1!S71_OY1BudgetAmount,Sheet1!S71_SubMunicipalVoteNo,$AC:$AC,Sheet1!S71_ItemType,$AD:$AD)","v":0},{"$f":"SUMIFS(Sheet1!S71_OY2BudgetAmount,Sheet1!S71_SubMunicipalVoteNo,$AC:$AC,Sheet1!S71_ItemType,$AD:$AD)","v":0},null,null,null,null,null,null,null,null,null,null,null,null,null,null,null,null,null,410,"IR"]
[{"$f":"'Org structure'!A6","v":"Vote 5 - Executive & Council"},null,{"$f":"SUM(C50:C59)","v":0},{"$f":"SUM(D50:D59)","v":0},0,0,0,0,0,0,0]
[{"$f":"'Org structure'!E47","v":"5.1 - Municipal Manager, Town Secretary and Chief Executive"},null,{"$f":"SUMIFS(Sheet1!S71_PPPYearAmount,Sheet1!S71_SubMunicipalVoteNo,$AC:$AC,Sheet1!S71_ItemType,$AD:$AD)","v":0},{"$f":"SUMIFS(Sheet1!S71_PPYearAmount,Sheet1!S71_SubMunicipalVoteNo,$AC:$AC,Sheet1!S71_ItemType,$AD:$AD)","v":0},{"$f":"SUMIFS(Sheet1!S71_PYearAmount,Sheet1!S71_SubMunicipalVoteNo,$AC:$AC,Sheet1!S71_ItemType,$AD:$AD)","v":0},{"$f":"-SUMIFS(Sheet1!S71_OriginalBudAmnt,Sheet1!S71_SubMunicipalVoteNo,$AC:$AC,Sheet1!S71_ItemType,$AD:$AD)","v":0},{"$f":"-SUMIFS(Sheet1!S71_AdjustmentBudAmnt,Sheet1!S71_SubMunicipalVoteNo,$AC:$AC,Sheet1!S71_ItemType,$AD:$AD)","v":0},{"$f":"-SUMIFS(Sheet1!S71_AdjustmentBudAmnt,Sheet1!S71_SubMunicipalVoteNo,$AC:$AC,Sheet1!S71_ItemType,$AD:$AD)","v":0},{"$f":"SUMIFS(Sheet1!S71_ASBudgetAmount,Sheet1!S71_SubMunicipalVoteNo,$AC:$AC,Sheet1!S71_ItemType,$AD:$AD)","v":0},{"$f":"SUMIFS(Sheet1!S71_OY1BudgetAmount,Sheet1!S71_SubMunicipalVoteNo,$AC:$AC,Sheet1!S71_ItemType,$AD:$AD)","v":0},{"$f":"SUMIFS(Sheet1!S71_OY2BudgetAmount,Sheet1!S71_SubMunicipalVoteNo,$AC:$AC,Sheet1!S71_ItemType,$AD:$AD)","v":0},null,null,null,null,null,null,null,null,null,null,null,null,null,null,null,null,null,51,"IR"]
[{"$f":"'Org structure'!E48","v":"5.2 - Mayor and Council"},null,{"$f":"SUMIFS(Sheet1!S71_PPPYearAmount,Sheet1!S71_SubMunicipalVoteNo,$AC:$AC,Sheet1!S71_ItemType,$AD:$AD)","v":0},{"$f":"SUMIFS(Sheet1!S71_PPYearAmount,Sheet1!S71_SubMunicipalVoteNo,$AC:$AC,Sheet1!S71_ItemType,$AD:$AD)","v":0},{"$f":"SUMIFS(Sheet1!S71_PYearAmount,Sheet1!S71_SubMunicipalVoteNo,$AC:$AC,Sheet1!S71_ItemType,$AD:$AD)","v":0},{"$f":"-SUMIFS(Sheet1!S71_OriginalBudAmnt,Sheet1!S71_SubMunicipalVoteNo,$AC:$AC,Sheet1!S71_ItemType,$AD:$AD)","v":0},{"$f":"-SUMIFS(Sheet1!S71_AdjustmentBudAmnt,Sheet1!S71_SubMunicipalVoteNo,$AC:$AC,Sheet1!S71_ItemType,$AD:$AD)","v":0},{"$f":"-SUMIFS(Sheet1!S71_AdjustmentBudAmnt,Sheet1!S71_SubMunicipalVoteNo,$AC:$AC,Sheet1!S71_ItemType,$AD:$AD)","v":0},{"$f":"SUMIFS(Sheet1!S71_ASBudgetAmount,Sheet1!S71_SubMunicipalVoteNo,$AC:$AC,Sheet1!S71_ItemType,$AD:$AD)","v":0},{"$f":"SUMIFS(Sheet1!S71_OY1BudgetAmount,Sheet1!S71_SubMunicipalVoteNo,$AC:$AC,Sheet1!S71_ItemType,$AD:$AD)","v":0},{"$f":"SUMIFS(Sheet1!S71_OY2BudgetAmount,Sheet1!S71_SubMunicipalVoteNo,$AC:$AC,Sheet1!S71_ItemType,$AD:$AD)","v":0},null,null,null,null,null,null,null,null,null,null,null,null,null,null,null,null,null,52,"IR"]
[{"$f":"'Org structure'!E49","v":"5.3 - [Name of sub-vote]"},null,{"$f":"SUMIFS(Sheet1!S71_PPPYearAmount,Sheet1!S71_SubMunicipalVoteNo,$AC:$AC,Sheet1!S71_ItemType,$AD:$AD)","v":0},{"$f":"SUMIFS(Sheet1!S71_PPYearAmount,Sheet1!S71_SubMunicipalVoteNo,$AC:$AC,Sheet1!S71_ItemType,$AD:$AD)","v":0},{"$f":"SUMIFS(Sheet1!S71_PYearAmount,Sheet1!S71_SubMunicipalVoteNo,$AC:$AC,Sheet1!S71_ItemType,$AD:$AD)","v":0},{"$f":"-SUMIFS(Sheet1!S71_OriginalBudAmnt,Sheet1!S71_SubMunicipalVoteNo,$AC:$AC,Sheet1!S71_ItemType,$AD:$AD)","v":0},{"$f":"-SUMIFS(Sheet1!S71_AdjustmentBudAmnt,Sheet1!S71_SubMunicipalVoteNo,$AC:$AC,Sheet1!S71_ItemType,$AD:$AD)","v":0},{"$f":"-SUMIFS(Sheet1!S71_AdjustmentBudAmnt,Sheet1!S71_SubMunicipalVoteNo,$AC:$AC,Sheet1!S71_ItemType,$AD:$AD)","v":0},{"$f":"SUMIFS(Sheet1!S71_ASBudgetAmount,Sheet1!S71_SubMunicipalVoteNo,$AC:$AC,Sheet1!S71_ItemType,$AD:$AD)","v":0},{"$f":"SUMIFS(Sheet1!S71_OY1BudgetAmount,Sheet1!S71_SubMunicipalVoteNo,$AC:$AC,Sheet1!S71_ItemType,$AD:$AD)","v":0},{"$f":"SUMIFS(Sheet1!S71_OY2BudgetAmount,Sheet1!S71_SubMunicipalVoteNo,$AC:$AC,Sheet1!S71_ItemType,$AD:$AD)","v":0},null,null,null,null,null,null,null,null,null,null,null,null,null,null,null,null,null,53,"IR"]
[{"$f":"'Org structure'!E50","v":"5.4 - [Name of sub-vote]"},null,{"$f":"SUMIFS(Sheet1!S71_PPPYearAmount,Sheet1!S71_SubMunicipalVoteNo,$AC:$AC,Sheet1!S71_ItemType,$AD:$AD)","v":0},{"$f":"SUMIFS(Sheet1!S71_PPYearAmount,Sheet1!S71_SubMunicipalVoteNo,$AC:$AC,Sheet1!S71_ItemType,$AD:$AD)","v":0},{"$f":"SUMIFS(Sheet1!S71_PYearAmount,Sheet1!S71_SubMunicipalVoteNo,$AC:$AC,Sheet1!S71_ItemType,$AD:$AD)","v":0},{"$f":"-SUMIFS(Sheet1!S71_OriginalBudAmnt,Sheet1!S71_SubMunicipalVoteNo,$AC:$AC,Sheet1!S71_ItemType,$AD:$AD)","v":0},{"$f":"-SUMIFS(Sheet1!S71_AdjustmentBudAmnt,Sheet1!S71_SubMunicipalVoteNo,$AC:$AC,Sheet1!S71_ItemType,$AD:$AD)","v":0},{"$f":"-SUMIFS(Sheet1!S71_AdjustmentBudAmnt,Sheet1!S71_SubMunicipalVoteNo,$AC:$AC,Sheet1!S71_ItemType,$AD:$AD)","v":0},{"$f":"SUMIFS(Sheet1!S71_ASBudgetAmount,Sheet1!S71_SubMunicipalVoteNo,$AC:$AC,Sheet1!S71_ItemType,$AD:$AD)","v":0},{"$f":"SUMIFS(Sheet1!S71_OY1BudgetAmount,Sheet1!S71_SubMunicipalVoteNo,$AC:$AC,Sheet1!S71_ItemType,$AD:$AD)","v":0},{"$f":"SUMIFS(Sheet1!S71_OY2BudgetAmount,Sheet1!S71_SubMunicipalVoteNo,$AC:$AC,Sheet1!S71_ItemType,$AD:$AD)","v":0},null,null,null,null,null,null,null,null,null,null,null,null,null,null,null,null,null,54,"IR"]
[{"$f":"'Org structure'!E51","v":"5.5 - [Name of sub-vote]"},null,{"$f":"SUMIFS(Sheet1!S71_PPPYearAmount,Sheet1!S71_SubMunicipalVoteNo,$AC:$AC,Sheet1!S71_ItemType,$AD:$AD)","v":0},{"$f":"SUMIFS(Sheet1!S71_PPYearAmount,Sheet1!S71_SubMunicipalVoteNo,$AC:$AC,Sheet1!S71_ItemType,$AD:$AD)","v":0},{"$f":"SUMIFS(Sheet1!S71_PYearAmount,Sheet1!S71_SubMunicipalVoteNo,$AC:$AC,Sheet1!S71_ItemType,$AD:$AD)","v":0},{"$f":"-SUMIFS(Sheet1!S71_OriginalBudAmnt,Sheet1!S71_SubMunicipalVoteNo,$AC:$AC,Sheet1!S71_ItemType,$AD:$AD)","v":0},{"$f":"-SUMIFS(Sheet1!S71_AdjustmentBudAmnt,Sheet1!S71_SubMunicipalVoteNo,$AC:$AC,Sheet1!S71_ItemType,$AD:$AD)","v":0},{"$f":"-SUMIFS(Sheet1!S71_AdjustmentBudAmnt,Sheet1!S71_SubMunicipalVoteNo,$AC:$AC,Sheet1!S71_ItemType,$AD:$AD)","v":0},{"$f":"SUMIFS(Sheet1!S71_ASBudgetAmount,Sheet1!S71_SubMunicipalVoteNo,$AC:$AC,Sheet1!S71_ItemType,$AD:$AD)","v":0},{"$f":"SUMIFS(Sheet1!S71_OY1BudgetAmount,Sheet1!S71_SubMunicipalVoteNo,$AC:$AC,Sheet1!S71_ItemType,$AD:$AD)","v":0},{"$f":"SUMIFS(Sheet1!S71_OY2BudgetAmount,Sheet1!S71_SubMunicipalVoteNo,$AC:$AC,Sheet1!S71_ItemType,$AD:$AD)","v":0},null,null,null,null,null,null,null,null,null,null,null,null,null,null,null,null,null,55,"IR"]
[{"$f":"'Org structure'!E52","v":"5.6 - [Name of sub-vote]"},null,{"$f":"SUMIFS(Sheet1!S71_PPPYearAmount,Sheet1!S71_SubMunicipalVoteNo,$AC:$AC,Sheet1!S71_ItemType,$AD:$AD)","v":0},{"$f":"SUMIFS(Sheet1!S71_PPYearAmount,Sheet1!S71_SubMunicipalVoteNo,$AC:$AC,Sheet1!S71_ItemType,$AD:$AD)","v":0},{"$f":"SUMIFS(Sheet1!S71_PYearAmount,Sheet1!S71_SubMunicipalVoteNo,$AC:$AC,Sheet1!S71_ItemType,$AD:$AD)","v":0},{"$f":"-SUMIFS(Sheet1!S71_OriginalBudAmnt,Sheet1!S71_SubMunicipalVoteNo,$AC:$AC,Sheet1!S71_ItemType,$AD:$AD)","v":0},{"$f":"-SUMIFS(Sheet1!S71_AdjustmentBudAmnt,Sheet1!S71_SubMunicipalVoteNo,$AC:$AC,Sheet1!S71_ItemType,$AD:$AD)","v":0},{"$f":"-SUMIFS(Sheet1!S71_AdjustmentBudAmnt,Sheet1!S71_SubMunicipalVoteNo,$AC:$AC,Sheet1!S71_ItemType,$AD:$AD)","v":0},{"$f":"SUMIFS(Sheet1!S71_ASBudgetAmount,Sheet1!S71_SubMunicipalVoteNo,$AC:$AC,Sheet1!S71_ItemType,$AD:$AD)","v":0},{"$f":"SUMIFS(Sheet1!S71_OY1BudgetAmount,Sheet1!S71_SubMunicipalVoteNo,$AC:$AC,Sheet1!S71_ItemType,$AD:$AD)","v":0},{"$f":"SUMIFS(Sheet1!S71_OY2BudgetAmount,Sheet1!S71_SubMunicipalVoteNo,$AC:$AC,Sheet1!S71_ItemType,$AD:$AD)","v":0},null,null,null,null,null,null,null,null,null,null,null,null,null,null,null,null,null,56,"IR"]
[{"$f":"'Org structure'!E53","v":"5.7 - [Name of sub-vote]"},null,{"$f":"SUMIFS(Sheet1!S71_PPPYearAmount,Sheet1!S71_SubMunicipalVoteNo,$AC:$AC,Sheet1!S71_ItemType,$AD:$AD)","v":0},{"$f":"SUMIFS(Sheet1!S71_PPYearAmount,Sheet1!S71_SubMunicipalVoteNo,$AC:$AC,Sheet1!S71_ItemType,$AD:$AD)","v":0},{"$f":"SUMIFS(Sheet1!S71_PYearAmount,Sheet1!S71_SubMunicipalVoteNo,$AC:$AC,Sheet1!S71_ItemType,$AD:$AD)","v":0},{"$f":"-SUMIFS(Sheet1!S71_OriginalBudAmnt,Sheet1!S71_SubMunicipalVoteNo,$AC:$AC,Sheet1!S71_ItemType,$AD:$AD)","v":0},{"$f":"-SUMIFS(Sheet1!S71_AdjustmentBudAmnt,Sheet1!S71_SubMunicipalVoteNo,$AC:$AC,Sheet1!S71_ItemType,$AD:$AD)","v":0},{"$f":"-SUMIFS(Sheet1!S71_AdjustmentBudAmnt,Sheet1!S71_SubMunicipalVoteNo,$AC:$AC,Sheet1!S71_ItemType,$AD:$AD)","v":0},{"$f":"SUMIFS(Sheet1!S71_ASBudgetAmount,Sheet1!S71_SubMunicipalVoteNo,$AC:$AC,Sheet1!S71_ItemType,$AD:$AD)","v":0},{"$f":"SUMIFS(Sheet1!S71_OY1BudgetAmount,Sheet1!S71_SubMunicipalVoteNo,$AC:$AC,Sheet1!S71_ItemType,$AD:$AD)","v":0},{"$f":"SUMIFS(Sheet1!S71_OY2BudgetAmount,Sheet1!S71_SubMunicipalVoteNo,$AC:$AC,Sheet1!S71_ItemType,$AD:$AD)","v":0},null,null,null,null,null,null,null,null,null,null,null,null,null,null,null,null,null,57,"IR"]
[{"$f":"'Org structure'!E54","v":"5.8 - [Name of sub-vote]"},null,{"$f":"SUMIFS(Sheet1!S71_PPPYearAmount,Sheet1!S71_SubMunicipalVoteNo,$AC:$AC,Sheet1!S71_ItemType,$AD:$AD)","v":0},{"$f":"SUMIFS(Sheet1!S71_PPYearAmount,Sheet1!S71_SubMunicipalVoteNo,$AC:$AC,Sheet1!S71_ItemType,$AD:$AD)","v":0},{"$f":"SUMIFS(Sheet1!S71_PYearAmount,Sheet1!S71_SubMunicipalVoteNo,$AC:$AC,Sheet1!S71_ItemType,$AD:$AD)","v":0},{"$f":"-SUMIFS(Sheet1!S71_OriginalBudAmnt,Sheet1!S71_SubMunicipalVoteNo,$AC:$AC,Sheet1!S71_ItemType,$AD:$AD)","v":0},{"$f":"-SUMIFS(Sheet1!S71_AdjustmentBudAmnt,Sheet1!S71_SubMunicipalVoteNo,$AC:$AC,Sheet1!S71_ItemType,$AD:$AD)","v":0},{"$f":"-SUMIFS(Sheet1!S71_AdjustmentBudAmnt,Sheet1!S71_SubMunicipalVoteNo,$AC:$AC,Sheet1!S71_ItemType,$AD:$AD)","v":0},{"$f":"SUMIFS(Sheet1!S71_ASBudgetAmount,Sheet1!S71_SubMunicipalVoteNo,$AC:$AC,Sheet1!S71_ItemType,$AD:$AD)","v":0},{"$f":"SUMIFS(Sheet1!S71_OY1BudgetAmount,Sheet1!S71_SubMunicipalVoteNo,$AC:$AC,Sheet1!S71_ItemType,$AD:$AD)","v":0},{"$f":"SUMIFS(Sheet1!S71_OY2BudgetAmount,Sheet1!S71_SubMunicipalVoteNo,$AC:$AC,Sheet1!S71_ItemType,$AD:$AD)","v":0},null,null,null,null,null,null,null,null,null,null,null,null,null,null,null,null,null,58,"IR"]
[{"$f":"'Org structure'!E55","v":"5.9 - [Name of sub-vote]"},null,{"$f":"SUMIFS(Sheet1!S71_PPPYearAmount,Sheet1!S71_SubMunicipalVoteNo,$AC:$AC,Sheet1!S71_ItemType,$AD:$AD)","v":0},{"$f":"SUMIFS(Sheet1!S71_PPYearAmount,Sheet1!S71_SubMunicipalVoteNo,$AC:$AC,Sheet1!S71_ItemType,$AD:$AD)","v":0},{"$f":"SUMIFS(Sheet1!S71_PYearAmount,Sheet1!S71_SubMunicipalVoteNo,$AC:$AC,Sheet1!S71_ItemType,$AD:$AD)","v":0},{"$f":"-SUMIFS(Sheet1!S71_OriginalBudAmnt,Sheet1!S71_SubMunicipalVoteNo,$AC:$AC,Sheet1!S71_ItemType,$AD:$AD)","v":0},{"$f":"-SUMIFS(Sheet1!S71_AdjustmentBudAmnt,Sheet1!S71_SubMunicipalVoteNo,$AC:$AC,Sheet1!S71_ItemType,$AD:$AD)","v":0},{"$f":"-SUMIFS(Sheet1!S71_AdjustmentBudAmnt,Sheet1!S71_SubMunicipalVoteNo,$AC:$AC,Sheet1!S71_ItemType,$AD:$AD)","v":0},{"$f":"SUMIFS(Sheet1!S71_ASBudgetAmount,Sheet1!S71_SubMunicipalVoteNo,$AC:$AC,Sheet1!S71_ItemType,$AD:$AD)","v":0},{"$f":"SUMIFS(Sheet1!S71_OY1BudgetAmount,Sheet1!S71_SubMunicipalVoteNo,$AC:$AC,Sheet1!S71_ItemType,$AD:$AD)","v":0},{"$f":"SUMIFS(Sheet1!S71_OY2BudgetAmount,Sheet1!S71_SubMunicipalVoteNo,$AC:$AC,Sheet1!S71_ItemType,$AD:$AD)","v":0},null,null,null,null,null,null,null,null,null,null,null,null,null,null,null,null,null,59,"IR"]
[{"$f":"'Org structure'!E56","v":"5.10 - [Name of sub-vote]"},null,{"$f":"SUMIFS(Sheet1!S71_PPPYearAmount,Sheet1!S71_SubMunicipalVoteNo,$AC:$AC,Sheet1!S71_ItemType,$AD:$AD)","v":0},{"$f":"SUMIFS(Sheet1!S71_PPYearAmount,Sheet1!S71_SubMunicipalVoteNo,$AC:$AC,Sheet1!S71_ItemType,$AD:$AD)","v":0},{"$f":"SUMIFS(Sheet1!S71_PYearAmount,Sheet1!S71_SubMunicipalVoteNo,$AC:$AC,Sheet1!S71_ItemType,$AD:$AD)","v":0},{"$f":"-SUMIFS(Sheet1!S71_OriginalBudAmnt,Sheet1!S71_SubMunicipalVoteNo,$AC:$AC,Sheet1!S71_ItemType,$AD:$AD)","v":0},{"$f":"-SUMIFS(Sheet1!S71_AdjustmentBudAmnt,Sheet1!S71_SubMunicipalVoteNo,$AC:$AC,Sheet1!S71_ItemType,$AD:$AD)","v":0},{"$f":"-SUMIFS(Sheet1!S71_AdjustmentBudAmnt,Sheet1!S71_SubMunicipalVoteNo,$AC:$AC,Sheet1!S71_ItemType,$AD:$AD)","v":0},{"$f":"SUMIFS(Sheet1!S71_ASBudgetAmount,Sheet1!S71_SubMunicipalVoteNo,$AC:$AC,Sheet1!S71_ItemType,$AD:$AD)","v":0},{"$f":"SUMIFS(Sheet1!S71_OY1BudgetAmount,Sheet1!S71_SubMunicipalVoteNo,$AC:$AC,Sheet1!S71_ItemType,$AD:$AD)","v":0},{"$f":"SUMIFS(Sheet1!S71_OY2BudgetAmount,Sheet1!S71_SubMunicipalVoteNo,$AC:$AC,Sheet1!S71_ItemType,$AD:$AD)","v":0},null,null,null,null,null,null,null,null,null,null,null,null,null,null,null,null,null,510,"IR"]
[{"$f":"'Org structure'!A7","v":"Vote 6 - Internal Audit"},null,{"$f":"SUM(C61:C70)","v":0},{"$f":"SUM(D61:D70)","v":0},0,0,0,0,0,0,0]
[{"$f":"'Org structure'!E58","v":"6.1 - Governance Function"},null,{"$f":"SUMIFS(Sheet1!S71_PPPYearAmount,Sheet1!S71_SubMunicipalVoteNo,$AC:$AC,Sheet1!S71_ItemType,$AD:$AD)","v":0},{"$f":"SUMIFS(Sheet1!S71_PPYearAmount,Sheet1!S71_SubMunicipalVoteNo,$AC:$AC,Sheet1!S71_ItemType,$AD:$AD)","v":0},{"$f":"SUMIFS(Sheet1!S71_PYearAmount,Sheet1!S71_SubMunicipalVoteNo,$AC:$AC,Sheet1!S71_ItemType,$AD:$AD)","v":0},{"$f":"-SUMIFS(Sheet1!S71_OriginalBudAmnt,Sheet1!S71_SubMunicipalVoteNo,$AC:$AC,Sheet1!S71_ItemType,$AD:$AD)","v":0},{"$f":"-SUMIFS(Sheet1!S71_AdjustmentBudAmnt,Sheet1!S71_SubMunicipalVoteNo,$AC:$AC,Sheet1!S71_ItemType,$AD:$AD)","v":0},{"$f":"-SUMIFS(Sheet1!S71_AdjustmentBudAmnt,Sheet1!S71_SubMunicipalVoteNo,$AC:$AC,Sheet1!S71_ItemType,$AD:$AD)","v":0},{"$f":"SUMIFS(Sheet1!S71_ASBudgetAmount,Sheet1!S71_SubMunicipalVoteNo,$AC:$AC,Sheet1!S71_ItemType,$AD:$AD)","v":0},{"$f":"SUMIFS(Sheet1!S71_OY1BudgetAmount,Sheet1!S71_SubMunicipalVoteNo,$AC:$AC,Sheet1!S71_ItemType,$AD:$AD)","v":0},{"$f":"SUMIFS(Sheet1!S71_OY2BudgetAmount,Sheet1!S71_SubMunicipalVoteNo,$AC:$AC,Sheet1!S71_ItemType,$AD:$AD)","v":0},null,null,null,null,null,null,null,null,null,null,null,null,null,null,null,null,null,61,"IR"]
[{"$f":"'Org structure'!E59","v":"6.2 - [Name of sub-vote]"},null,{"$f":"SUMIFS(Sheet1!S71_PPPYearAmount,Sheet1!S71_SubMunicipalVoteNo,$AC:$AC,Sheet1!S71_ItemType,$AD:$AD)","v":0},{"$f":"SUMIFS(Sheet1!S71_PPYearAmount,Sheet1!S71_SubMunicipalVoteNo,$AC:$AC,Sheet1!S71_ItemType,$AD:$AD)","v":0},{"$f":"SUMIFS(Sheet1!S71_PYearAmount,Sheet1!S71_SubMunicipalVoteNo,$AC:$AC,Sheet1!S71_ItemType,$AD:$AD)","v":0},{"$f":"-SUMIFS(Sheet1!S71_OriginalBudAmnt,Sheet1!S71_SubMunicipalVoteNo,$AC:$AC,Sheet1!S71_ItemType,$AD:$AD)","v":0},{"$f":"-SUMIFS(Sheet1!S71_AdjustmentBudAmnt,Sheet1!S71_SubMunicipalVoteNo,$AC:$AC,Sheet1!S71_ItemType,$AD:$AD)","v":0},{"$f":"-SUMIFS(Sheet1!S71_AdjustmentBudAmnt,Sheet1!S71_SubMunicipalVoteNo,$AC:$AC,Sheet1!S71_ItemType,$AD:$AD)","v":0},{"$f":"SUMIFS(Sheet1!S71_ASBudgetAmount,Sheet1!S71_SubMunicipalVoteNo,$AC:$AC,Sheet1!S71_ItemType,$AD:$AD)","v":0},{"$f":"SUMIFS(Sheet1!S71_OY1BudgetAmount,Sheet1!S71_SubMunicipalVoteNo,$AC:$AC,Sheet1!S71_ItemType,$AD:$AD)","v":0},{"$f":"SUMIFS(Sheet1!S71_OY2BudgetAmount,Sheet1!S71_SubMunicipalVoteNo,$AC:$AC,Sheet1!S71_ItemType,$AD:$AD)","v":0},null,null,null,null,null,null,null,null,null,null,null,null,null,null,null,null,null,62,"IR"]
[{"$f":"'Org structure'!E60","v":"6.3 - [Name of sub-vote]"},null,{"$f":"SUMIFS(Sheet1!S71_PPPYearAmount,Sheet1!S71_SubMunicipalVoteNo,$AC:$AC,Sheet1!S71_ItemType,$AD:$AD)","v":0},{"$f":"SUMIFS(Sheet1!S71_PPYearAmount,Sheet1!S71_SubMunicipalVoteNo,$AC:$AC,Sheet1!S71_ItemType,$AD:$AD)","v":0},{"$f":"SUMIFS(Sheet1!S71_PYearAmount,Sheet1!S71_SubMunicipalVoteNo,$AC:$AC,Sheet1!S71_ItemType,$AD:$AD)","v":0},{"$f":"-SUMIFS(Sheet1!S71_OriginalBudAmnt,Sheet1!S71_SubMunicipalVoteNo,$AC:$AC,Sheet1!S71_ItemType,$AD:$AD)","v":0},{"$f":"-SUMIFS(Sheet1!S71_AdjustmentBudAmnt,Sheet1!S71_SubMunicipalVoteNo,$AC:$AC,Sheet1!S71_ItemType,$AD:$AD)","v":0},{"$f":"-SUMIFS(Sheet1!S71_AdjustmentBudAmnt,Sheet1!S71_SubMunicipalVoteNo,$AC:$AC,Sheet1!S71_ItemType,$AD:$AD)","v":0},{"$f":"SUMIFS(Sheet1!S71_ASBudgetAmount,Sheet1!S71_SubMunicipalVoteNo,$AC:$AC,Sheet1!S71_ItemType,$AD:$AD)","v":0},{"$f":"SUMIFS(Sheet1!S71_OY1BudgetAmount,Sheet1!S71_SubMunicipalVoteNo,$AC:$AC,Sheet1!S71_ItemType,$AD:$AD)","v":0},{"$f":"SUMIFS(Sheet1!S71_OY2BudgetAmount,Sheet1!S71_SubMunicipalVoteNo,$AC:$AC,Sheet1!S71_ItemType,$AD:$AD)","v":0},null,null,null,null,null,null,null,null,null,null,null,null,null,null,null,null,null,63,"IR"]
[{"$f":"'Org structure'!E61","v":"6.4 - [Name of sub-vote]"},null,{"$f":"SUMIFS(Sheet1!S71_PPPYearAmount,Sheet1!S71_SubMunicipalVoteNo,$AC:$AC,Sheet1!S71_ItemType,$AD:$AD)","v":0},{"$f":"SUMIFS(Sheet1!S71_PPYearAmount,Sheet1!S71_SubMunicipalVoteNo,$AC:$AC,Sheet1!S71_ItemType,$AD:$AD)","v":0},{"$f":"SUMIFS(Sheet1!S71_PYearAmount,Sheet1!S71_SubMunicipalVoteNo,$AC:$AC,Sheet1!S71_ItemType,$AD:$AD)","v":0},{"$f":"-SUMIFS(Sheet1!S71_OriginalBudAmnt,Sheet1!S71_SubMunicipalVoteNo,$AC:$AC,Sheet1!S71_ItemType,$AD:$AD)","v":0},{"$f":"-SUMIFS(Sheet1!S71_AdjustmentBudAmnt,Sheet1!S71_SubMunicipalVoteNo,$AC:$AC,Sheet1!S71_ItemType,$AD:$AD)","v":0},{"$f":"-SUMIFS(Sheet1!S71_AdjustmentBudAmnt,Sheet1!S71_SubMunicipalVoteNo,$AC:$AC,Sheet1!S71_ItemType,$AD:$AD)","v":0},{"$f":"SUMIFS(Sheet1!S71_ASBudgetAmount,Sheet1!S71_SubMunicipalVoteNo,$AC:$AC,Sheet1!S71_ItemType,$AD:$AD)","v":0},{"$f":"SUMIFS(Sheet1!S71_OY1BudgetAmount,Sheet1!S71_SubMunicipalVoteNo,$AC:$AC,Sheet1!S71_ItemType,$AD:$AD)","v":0},{"$f":"SUMIFS(Sheet1!S71_OY2BudgetAmount,Sheet1!S71_SubMunicipalVoteNo,$AC:$AC,Sheet1!S71_ItemType,$AD:$AD)","v":0},null,null,null,null,null,null,null,null,null,null,null,null,null,null,null,null,null,64,"IR"]
[{"$f":"'Org structure'!E62","v":"6.5 - [Name of sub-vote]"},null,{"$f":"SUMIFS(Sheet1!S71_PPPYearAmount,Sheet1!S71_SubMunicipalVoteNo,$AC:$AC,Sheet1!S71_ItemType,$AD:$AD)","v":0},{"$f":"SUMIFS(Sheet1!S71_PPYearAmount,Sheet1!S71_SubMunicipalVoteNo,$AC:$AC,Sheet1!S71_ItemType,$AD:$AD)","v":0},{"$f":"SUMIFS(Sheet1!S71_PYearAmount,Sheet1!S71_SubMunicipalVoteNo,$AC:$AC,Sheet1!S71_ItemType,$AD:$AD)","v":0},{"$f":"-SUMIFS(Sheet1!S71_OriginalBudAmnt,Sheet1!S71_SubMunicipalVoteNo,$AC:$AC,Sheet1!S71_ItemType,$AD:$AD)","v":0},{"$f":"-SUMIFS(Sheet1!S71_AdjustmentBudAmnt,Sheet1!S71_SubMunicipalVoteNo,$AC:$AC,Sheet1!S71_ItemType,$AD:$AD)","v":0},{"$f":"-SUMIFS(Sheet1!S71_AdjustmentBudAmnt,Sheet1!S71_SubMunicipalVoteNo,$AC:$AC,Sheet1!S71_ItemType,$AD:$AD)","v":0},{"$f":"SUMIFS(Sheet1!S71_ASBudgetAmount,Sheet1!S71_SubMunicipalVoteNo,$AC:$AC,Sheet1!S71_ItemType,$AD:$AD)","v":0},{"$f":"SUMIFS(Sheet1!S71_OY1BudgetAmount,Sheet1!S71_SubMunicipalVoteNo,$AC:$AC,Sheet1!S71_ItemType,$AD:$AD)","v":0},{"$f":"SUMIFS(Sheet1!S71_OY2BudgetAmount,Sheet1!S71_SubMunicipalVoteNo,$AC:$AC,Sheet1!S71_ItemType,$AD:$AD)","v":0},null,null,null,null,null,null,null,null,null,null,null,null,null,null,null,null,null,65,"IR"]
[{"$f":"'Org structure'!E63","v":"6.6 - [Name of sub-vote]"},null,{"$f":"SUMIFS(Sheet1!S71_PPPYearAmount,Sheet1!S71_SubMunicipalVoteNo,$AC:$AC,Sheet1!S71_ItemType,$AD:$AD)","v":0},{"$f":"SUMIFS(Sheet1!S71_PPYearAmount,Sheet1!S71_SubMunicipalVoteNo,$AC:$AC,Sheet1!S71_ItemType,$AD:$AD)","v":0},{"$f":"SUMIFS(Sheet1!S71_PYearAmount,Sheet1!S71_SubMunicipalVoteNo,$AC:$AC,Sheet1!S71_ItemType,$AD:$AD)","v":0},{"$f":"-SUMIFS(Sheet1!S71_OriginalBudAmnt,Sheet1!S71_SubMunicipalVoteNo,$AC:$AC,Sheet1!S71_ItemType,$AD:$AD)","v":0},{"$f":"-SUMIFS(Sheet1!S71_AdjustmentBudAmnt,Sheet1!S71_SubMunicipalVoteNo,$AC:$AC,Sheet1!S71_ItemType,$AD:$AD)","v":0},{"$f":"-SUMIFS(Sheet1!S71_AdjustmentBudAmnt,Sheet1!S71_SubMunicipalVoteNo,$AC:$AC,Sheet1!S71_ItemType,$AD:$AD)","v":0},{"$f":"SUMIFS(Sheet1!S71_ASBudgetAmount,Sheet1!S71_SubMunicipalVoteNo,$AC:$AC,Sheet1!S71_ItemType,$AD:$AD)","v":0},{"$f":"SUMIFS(Sheet1!S71_OY1BudgetAmount,Sheet1!S71_SubMunicipalVoteNo,$AC:$AC,Sheet1!S71_ItemType,$AD:$AD)","v":0},{"$f":"SUMIFS(Sheet1!S71_OY2BudgetAmount,Sheet1!S71_SubMunicipalVoteNo,$AC:$AC,Sheet1!S71_ItemType,$AD:$AD)","v":0},null,null,null,null,null,null,null,null,null,null,null,null,null,null,null,null,null,66,"IR"]
[{"$f":"'Org structure'!E64","v":"6.7 - [Name of sub-vote]"},null,{"$f":"SUMIFS(Sheet1!S71_PPPYearAmount,Sheet1!S71_SubMunicipalVoteNo,$AC:$AC,Sheet1!S71_ItemType,$AD:$AD)","v":0},{"$f":"SUMIFS(Sheet1!S71_PPYearAmount,Sheet1!S71_SubMunicipalVoteNo,$AC:$AC,Sheet1!S71_ItemType,$AD:$AD)","v":0},{"$f":"SUMIFS(Sheet1!S71_PYearAmount,Sheet1!S71_SubMunicipalVoteNo,$AC:$AC,Sheet1!S71_ItemType,$AD:$AD)","v":0},{"$f":"-SUMIFS(Sheet1!S71_OriginalBudAmnt,Sheet1!S71_SubMunicipalVoteNo,$AC:$AC,Sheet1!S71_ItemType,$AD:$AD)","v":0},{"$f":"-SUMIFS(Sheet1!S71_AdjustmentBudAmnt,Sheet1!S71_SubMunicipalVoteNo,$AC:$AC,Sheet1!S71_ItemType,$AD:$AD)","v":0},{"$f":"-SUMIFS(Sheet1!S71_AdjustmentBudAmnt,Sheet1!S71_SubMunicipalVoteNo,$AC:$AC,Sheet1!S71_ItemType,$AD:$AD)","v":0},{"$f":"SUMIFS(Sheet1!S71_ASBudgetAmount,Sheet1!S71_SubMunicipalVoteNo,$AC:$AC,Sheet1!S71_ItemType,$AD:$AD)","v":0},{"$f":"SUMIFS(Sheet1!S71_OY1BudgetAmount,Sheet1!S71_SubMunicipalVoteNo,$AC:$AC,Sheet1!S71_ItemType,$AD:$AD)","v":0},{"$f":"SUMIFS(Sheet1!S71_OY2BudgetAmount,Sheet1!S71_SubMunicipalVoteNo,$AC:$AC,Sheet1!S71_ItemType,$AD:$AD)","v":0},null,null,null,null,null,null,null,null,null,null,null,null,null,null,null,null,null,67,"IR"]
[{"$f":"'Org structure'!E65","v":"6.8 - [Name of sub-vote]"},null,{"$f":"SUMIFS(Sheet1!S71_PPPYearAmount,Sheet1!S71_SubMunicipalVoteNo,$AC:$AC,Sheet1!S71_ItemType,$AD:$AD)","v":0},{"$f":"SUMIFS(Sheet1!S71_PPYearAmount,Sheet1!S71_SubMunicipalVoteNo,$AC:$AC,Sheet1!S71_ItemType,$AD:$AD)","v":0},{"$f":"SUMIFS(Sheet1!S71_PYearAmount,Sheet1!S71_SubMunicipalVoteNo,$AC:$AC,Sheet1!S71_ItemType,$AD:$AD)","v":0},{"$f":"-SUMIFS(Sheet1!S71_OriginalBudAmnt,Sheet1!S71_SubMunicipalVoteNo,$AC:$AC,Sheet1!S71_ItemType,$AD:$AD)","v":0},{"$f":"-SUMIFS(Sheet1!S71_AdjustmentBudAmnt,Sheet1!S71_SubMunicipalVoteNo,$AC:$AC,Sheet1!S71_ItemType,$AD:$AD)","v":0},{"$f":"-SUMIFS(Sheet1!S71_AdjustmentBudAmnt,Sheet1!S71_SubMunicipalVoteNo,$AC:$AC,Sheet1!S71_ItemType,$AD:$AD)","v":0},{"$f":"SUMIFS(Sheet1!S71_ASBudgetAmount,Sheet1!S71_SubMunicipalVoteNo,$AC:$AC,Sheet1!S71_ItemType,$AD:$AD)","v":0},{"$f":"SUMIFS(Sheet1!S71_OY1BudgetAmount,Sheet1!S71_SubMunicipalVoteNo,$AC:$AC,Sheet1!S71_ItemType,$AD:$AD)","v":0},{"$f":"SUMIFS(Sheet1!S71_OY2BudgetAmount,Sheet1!S71_SubMunicipalVoteNo,$AC:$AC,Sheet1!S71_ItemType,$AD:$AD)","v":0},null,null,null,null,null,null,null,null,null,null,null,null,null,null,null,null,null,68,"IR"]
[{"$f":"'Org structure'!E66","v":"6.9 - [Name of sub-vote]"},null,{"$f":"SUMIFS(Sheet1!S71_PPPYearAmount,Sheet1!S71_SubMunicipalVoteNo,$AC:$AC,Sheet1!S71_ItemType,$AD:$AD)","v":0},{"$f":"SUMIFS(Sheet1!S71_PPYearAmount,Sheet1!S71_SubMunicipalVoteNo,$AC:$AC,Sheet1!S71_ItemType,$AD:$AD)","v":0},{"$f":"SUMIFS(Sheet1!S71_PYearAmount,Sheet1!S71_SubMunicipalVoteNo,$AC:$AC,Sheet1!S71_ItemType,$AD:$AD)","v":0},{"$f":"-SUMIFS(Sheet1!S71_OriginalBudAmnt,Sheet1!S71_SubMunicipalVoteNo,$AC:$AC,Sheet1!S71_ItemType,$AD:$AD)","v":0},{"$f":"-SUMIFS(Sheet1!S71_AdjustmentBudAmnt,Sheet1!S71_SubMunicipalVoteNo,$AC:$AC,Sheet1!S71_ItemType,$AD:$AD)","v":0},{"$f":"-SUMIFS(Sheet1!S71_AdjustmentBudAmnt,Sheet1!S71_SubMunicipalVoteNo,$AC:$AC,Sheet1!S71_ItemType,$AD:$AD)","v":0},{"$f":"SUMIFS(Sheet1!S71_ASBudgetAmount,Sheet1!S71_SubMunicipalVoteNo,$AC:$AC,Sheet1!S71_ItemType,$AD:$AD)","v":0},{"$f":"SUMIFS(Sheet1!S71_OY1BudgetAmount,Sheet1!S71_SubMunicipalVoteNo,$AC:$AC,Sheet1!S71_ItemType,$AD:$AD)","v":0},{"$f":"SUMIFS(Sheet1!S71_OY2BudgetAmount,Sheet1!S71_SubMunicipalVoteNo,$AC:$AC,Sheet1!S71_ItemType,$AD:$AD)","v":0},null,null,null,null,null,null,null,null,null,null,null,null,null,null,null,null,null,69,"IR"]
[{"$f":"'Org structure'!E67","v":"6.10 - [Name of sub-vote]"},null,{"$f":"SUMIFS(Sheet1!S71_PPPYearAmount,Sheet1!S71_SubMunicipalVoteNo,$AC:$AC,Sheet1!S71_ItemType,$AD:$AD)","v":0},{"$f":"SUMIFS(Sheet1!S71_PPYearAmount,Sheet1!S71_SubMunicipalVoteNo,$AC:$AC,Sheet1!S71_ItemType,$AD:$AD)","v":0},{"$f":"SUMIFS(Sheet1!S71_PYearAmount,Sheet1!S71_SubMunicipalVoteNo,$AC:$AC,Sheet1!S71_ItemType,$AD:$AD)","v":0},{"$f":"-SUMIFS(Sheet1!S71_OriginalBudAmnt,Sheet1!S71_SubMunicipalVoteNo,$AC:$AC,Sheet1!S71_ItemType,$AD:$AD)","v":0},{"$f":"-SUMIFS(Sheet1!S71_AdjustmentBudAmnt,Sheet1!S71_SubMunicipalVoteNo,$AC:$AC,Sheet1!S71_ItemType,$AD:$AD)","v":0},{"$f":"-SUMIFS(Sheet1!S71_AdjustmentBudAmnt,Sheet1!S71_SubMunicipalVoteNo,$AC:$AC,Sheet1!S71_ItemType,$AD:$AD)","v":0},{"$f":"SUMIFS(Sheet1!S71_ASBudgetAmount,Sheet1!S71_SubMunicipalVoteNo,$AC:$AC,Sheet1!S71_ItemType,$AD:$AD)","v":0},{"$f":"SUMIFS(Sheet1!S71_OY1BudgetAmount,Sheet1!S71_SubMunicipalVoteNo,$AC:$AC,Sheet1!S71_ItemType,$AD:$AD)","v":0},{"$f":"SUMIFS(Sheet1!S71_OY2BudgetAmount,Sheet1!S71_SubMunicipalVoteNo,$AC:$AC,Sheet1!S71_ItemType,$AD:$AD)","v":0},null,null,null,null,null,null,null,null,null,null,null,null,null,null,null,null,null,610,"IR"]
[{"$f":"'Org structure'!A8","v":"Vote 7 - Road Transport"},null,{"$f":"SUM(C72:C81)","v":10940770},13337649,7914702,8450000,8010000,8010000,8750000,9178750,9610151]
[{"$f":"'Org structure'!E69","v":"7.1 - Taxi Ranks"},null,{"$f":"SUMIFS(Sheet1!S71_PPPYearAmount,Sheet1!S71_SubMunicipalVoteNo,$AC:$AC,Sheet1!S71_ItemType,$AD:$AD)","v":0},{"$f":"SUMIFS(Sheet1!S71_PPYearAmount,Sheet1!S71_SubMunicipalVoteNo,$AC:$AC,Sheet1!S71_ItemType,$AD:$AD)","v":0},{"$f":"SUMIFS(Sheet1!S71_PYearAmount,Sheet1!S71_SubMunicipalVoteNo,$AC:$AC,Sheet1!S71_ItemType,$AD:$AD)","v":0},{"$f":"-SUMIFS(Sheet1!S71_OriginalBudAmnt,Sheet1!S71_SubMunicipalVoteNo,$AC:$AC,Sheet1!S71_ItemType,$AD:$AD)","v":0},{"$f":"-SUMIFS(Sheet1!S71_AdjustmentBudAmnt,Sheet1!S71_SubMunicipalVoteNo,$AC:$AC,Sheet1!S71_ItemType,$AD:$AD)","v":0},{"$f":"-SUMIFS(Sheet1!S71_AdjustmentBudAmnt,Sheet1!S71_SubMunicipalVoteNo,$AC:$AC,Sheet1!S71_ItemType,$AD:$AD)","v":0},{"$f":"SUMIFS(Sheet1!S71_ASBudgetAmount,Sheet1!S71_SubMunicipalVoteNo,$AC:$AC,Sheet1!S71_ItemType,$AD:$AD)","v":0},{"$f":"SUMIFS(Sheet1!S71_OY1BudgetAmount,Sheet1!S71_SubMunicipalVoteNo,$AC:$AC,Sheet1!S71_ItemType,$AD:$AD)","v":0},{"$f":"SUMIFS(Sheet1!S71_OY2BudgetAmount,Sheet1!S71_SubMunicipalVoteNo,$AC:$AC,Sheet1!S71_ItemType,$AD:$AD)","v":0},null,null,null,null,null,null,null,null,null,null,null,null,null,null,null,null,null,71,"IR"]
[{"$f":"'Org structure'!E70","v":"7.2 - Road and Traffic Regulation"},null,{"$f":"SUMIFS(Sheet1!S71_PPPYearAmount,Sheet1!S71_SubMunicipalVoteNo,$AC:$AC,Sheet1!S71_ItemType,$AD:$AD)","v":10940770},{"$f":"SUMIFS(Sheet1!S71_PPYearAmount,Sheet1!S71_SubMunicipalVoteNo,$AC:$AC,Sheet1!S71_ItemType,$AD:$AD)","v":13337649},{"$f":"SUMIFS(Sheet1!S71_PYearAmount,Sheet1!S71_SubMunicipalVoteNo,$AC:$AC,Sheet1!S71_ItemType,$AD:$AD)","v":7914702},{"$f":"-SUMIFS(Sheet1!S71_OriginalBudAmnt,Sheet1!S71_SubMunicipalVoteNo,$AC:$AC,Sheet1!S71_ItemType,$AD:$AD)","v":8100000},{"$f":"-SUMIFS(Sheet1!S71_AdjustmentBudAmnt,Sheet1!S71_SubMunicipalVoteNo,$AC:$AC,Sheet1!S71_ItemType,$AD:$AD)","v":7850000},{"$f":"-SUMIFS(Sheet1!S71_AdjustmentBudAmnt,Sheet1!S71_SubMunicipalVoteNo,$AC:$AC,Sheet1!S71_ItemType,$AD:$AD)","v":7850000},{"$f":"SUMIFS(Sheet1!S71_ASBudgetAmount,Sheet1!S71_SubMunicipalVoteNo,$AC:$AC,Sheet1!S71_ItemType,$AD:$AD)","v":8450000},{"$f":"SUMIFS(Sheet1!S71_OY1BudgetAmount,Sheet1!S71_SubMunicipalVoteNo,$AC:$AC,Sheet1!S71_ItemType,$AD:$AD)","v":8864050},{"$f":"SUMIFS(Sheet1!S71_OY2BudgetAmount,Sheet1!S71_SubMunicipalVoteNo,$AC:$AC,Sheet1!S71_ItemType,$AD:$AD)","v":9280660},null,null,null,null,null,null,null,null,null,null,null,null,null,null,null,null,null,72,"IR"]
[{"$f":"'Org structure'!E71","v":"7.3 - Public Transport"},null,{"$f":"SUMIFS(Sheet1!S71_PPPYearAmount,Sheet1!S71_SubMunicipalVoteNo,$AC:$AC,Sheet1!S71_ItemType,$AD:$AD)","v":0},{"$f":"SUMIFS(Sheet1!S71_PPYearAmount,Sheet1!S71_SubMunicipalVoteNo,$AC:$AC,Sheet1!S71_ItemType,$AD:$AD)","v":0},{"$f":"SUMIFS(Sheet1!S71_PYearAmount,Sheet1!S71_SubMunicipalVoteNo,$AC:$AC,Sheet1!S71_ItemType,$AD:$AD)","v":0},{"$f":"-SUMIFS(Sheet1!S71_OriginalBudAmnt,Sheet1!S71_SubMunicipalVoteNo,$AC:$AC,Sheet1!S71_ItemType,$AD:$AD)","v":0},{"$f":"-SUMIFS(Sheet1!S71_AdjustmentBudAmnt,Sheet1!S71_SubMunicipalVoteNo,$AC:$AC,Sheet1!S71_ItemType,$AD:$AD)","v":0},{"$f":"-SUMIFS(Sheet1!S71_AdjustmentBudAmnt,Sheet1!S71_SubMunicipalVoteNo,$AC:$AC,Sheet1!S71_ItemType,$AD:$AD)","v":0},{"$f":"SUMIFS(Sheet1!S71_ASBudgetAmount,Sheet1!S71_SubMunicipalVoteNo,$AC:$AC,Sheet1!S71_ItemType,$AD:$AD)","v":0},{"$f":"SUMIFS(Sheet1!S71_OY1BudgetAmount,Sheet1!S71_SubMunicipalVoteNo,$AC:$AC,Sheet1!S71_ItemType,$AD:$AD)","v":0},{"$f":"SUMIFS(Sheet1!S71_OY2BudgetAmount,Sheet1!S71_SubMunicipalVoteNo,$AC:$AC,Sheet1!S71_ItemType,$AD:$AD)","v":0},null,null,null,null,null,null,null,null,null,null,null,null,null,null,null,null,null,73,"IR"]
[{"$f":"'Org structure'!E72","v":"7.4 - Roads"},null,{"$f":"SUMIFS(Sheet1!S71_PPPYearAmount,Sheet1!S71_SubMunicipalVoteNo,$AC:$AC,Sheet1!S71_ItemType,$AD:$AD)","v":0},{"$f":"SUMIFS(Sheet1!S71_PPYearAmount,Sheet1!S71_SubMunicipalVoteNo,$AC:$AC,Sheet1!S71_ItemType,$AD:$AD)","v":0},{"$f":"SUMIFS(Sheet1!S71_PYearAmount,Sheet1!S71_SubMunicipalVoteNo,$AC:$AC,Sheet1!S71_ItemType,$AD:$AD)","v":0},{"$f":"-SUMIFS(Sheet1!S71_OriginalBudAmnt,Sheet1!S71_SubMunicipalVoteNo,$AC:$AC,Sheet1!S71_ItemType,$AD:$AD)","v":350000},{"$f":"-SUMIFS(Sheet1!S71_AdjustmentBudAmnt,Sheet1!S71_SubMunicipalVoteNo,$AC:$AC,Sheet1!S71_ItemType,$AD:$AD)","v":160000},{"$f":"-SUMIFS(Sheet1!S71_AdjustmentBudAmnt,Sheet1!S71_SubMunicipalVoteNo,$AC:$AC,Sheet1!S71_ItemType,$AD:$AD)","v":160000},{"$f":"SUMIFS(Sheet1!S71_ASBudgetAmount,Sheet1!S71_SubMunicipalVoteNo,$AC:$AC,Sheet1!S71_ItemType,$AD:$AD)","v":300000},{"$f":"SUMIFS(Sheet1!S71_OY1BudgetAmount,Sheet1!S71_SubMunicipalVoteNo,$AC:$AC,Sheet1!S71_ItemType,$AD:$AD)","v":314700},{"$f":"SUMIFS(Sheet1!S71_OY2BudgetAmount,Sheet1!S71_SubMunicipalVoteNo,$AC:$AC,Sheet1!S71_ItemType,$AD:$AD)","v":329491},null,null,null,null,null,null,null,null,null,null,null,null,null,null,null,null,null,74,"IR"]
[{"$f":"'Org structure'!E73","v":"7.5 - [Name of sub-vote]"},null,{"$f":"SUMIFS(Sheet1!S71_PPPYearAmount,Sheet1!S71_SubMunicipalVoteNo,$AC:$AC,Sheet1!S71_ItemType,$AD:$AD)","v":0},{"$f":"SUMIFS(Sheet1!S71_PPYearAmount,Sheet1!S71_SubMunicipalVoteNo,$AC:$AC,Sheet1!S71_ItemType,$AD:$AD)","v":0},{"$f":"SUMIFS(Sheet1!S71_PYearAmount,Sheet1!S71_SubMunicipalVoteNo,$AC:$AC,Sheet1!S71_ItemType,$AD:$AD)","v":0},{"$f":"-SUMIFS(Sheet1!S71_OriginalBudAmnt,Sheet1!S71_SubMunicipalVoteNo,$AC:$AC,Sheet1!S71_ItemType,$AD:$AD)","v":0},{"$f":"-SUMIFS(Sheet1!S71_AdjustmentBudAmnt,Sheet1!S71_SubMunicipalVoteNo,$AC:$AC,Sheet1!S71_ItemType,$AD:$AD)","v":0},{"$f":"-SUMIFS(Sheet1!S71_AdjustmentBudAmnt,Sheet1!S71_SubMunicipalVoteNo,$AC:$AC,Sheet1!S71_ItemType,$AD:$AD)","v":0},{"$f":"SUMIFS(Sheet1!S71_ASBudgetAmount,Sheet1!S71_SubMunicipalVoteNo,$AC:$AC,Sheet1!S71_ItemType,$AD:$AD)","v":0},{"$f":"SUMIFS(Sheet1!S71_OY1BudgetAmount,Sheet1!S71_SubMunicipalVoteNo,$AC:$AC,Sheet1!S71_ItemType,$AD:$AD)","v":0},{"$f":"SUMIFS(Sheet1!S71_OY2BudgetAmount,Sheet1!S71_SubMunicipalVoteNo,$AC:$AC,Sheet1!S71_ItemType,$AD:$AD)","v":0},null,null,null,null,null,null,null,null,null,null,null,null,null,null,null,null,null,75,"IR"]
[{"$f":"'Org structure'!E74","v":"7.6 - [Name of sub-vote]"},null,{"$f":"SUMIFS(Sheet1!S71_PPPYearAmount,Sheet1!S71_SubMunicipalVoteNo,$AC:$AC,Sheet1!S71_ItemType,$AD:$AD)","v":0},{"$f":"SUMIFS(Sheet1!S71_PPYearAmount,Sheet1!S71_SubMunicipalVoteNo,$AC:$AC,Sheet1!S71_ItemType,$AD:$AD)","v":0},{"$f":"SUMIFS(Sheet1!S71_PYearAmount,Sheet1!S71_SubMunicipalVoteNo,$AC:$AC,Sheet1!S71_ItemType,$AD:$AD)","v":0},{"$f":"-SUMIFS(Sheet1!S71_OriginalBudAmnt,Sheet1!S71_SubMunicipalVoteNo,$AC:$AC,Sheet1!S71_ItemType,$AD:$AD)","v":0},{"$f":"-SUMIFS(Sheet1!S71_AdjustmentBudAmnt,Sheet1!S71_SubMunicipalVoteNo,$AC:$AC,Sheet1!S71_ItemType,$AD:$AD)","v":0},{"$f":"-SUMIFS(Sheet1!S71_AdjustmentBudAmnt,Sheet1!S71_SubMunicipalVoteNo,$AC:$AC,Sheet1!S71_ItemType,$AD:$AD)","v":0},{"$f":"SUMIFS(Sheet1!S71_ASBudgetAmount,Sheet1!S71_SubMunicipalVoteNo,$AC:$AC,Sheet1!S71_ItemType,$AD:$AD)","v":0},{"$f":"SUMIFS(Sheet1!S71_OY1BudgetAmount,Sheet1!S71_SubMunicipalVoteNo,$AC:$AC,Sheet1!S71_ItemType,$AD:$AD)","v":0},{"$f":"SUMIFS(Sheet1!S71_OY2BudgetAmount,Sheet1!S71_SubMunicipalVoteNo,$AC:$AC,Sheet1!S71_ItemType,$AD:$AD)","v":0},null,null,null,null,null,null,null,null,null,null,null,null,null,null,null,null,null,76,"IR"]
[{"$f":"'Org structure'!E75","v":"7.7 - [Name of sub-vote]"},null,{"$f":"SUMIFS(Sheet1!S71_PPPYearAmount,Sheet1!S71_SubMunicipalVoteNo,$AC:$AC,Sheet1!S71_ItemType,$AD:$AD)","v":0},{"$f":"SUMIFS(Sheet1!S71_PPYearAmount,Sheet1!S71_SubMunicipalVoteNo,$AC:$AC,Sheet1!S71_ItemType,$AD:$AD)","v":0},{"$f":"SUMIFS(Sheet1!S71_PYearAmount,Sheet1!S71_SubMunicipalVoteNo,$AC:$AC,Sheet1!S71_ItemType,$AD:$AD)","v":0},{"$f":"-SUMIFS(Sheet1!S71_OriginalBudAmnt,Sheet1!S71_SubMunicipalVoteNo,$AC:$AC,Sheet1!S71_ItemType,$AD:$AD)","v":0},{"$f":"-SUMIFS(Sheet1!S71_AdjustmentBudAmnt,Sheet1!S71_SubMunicipalVoteNo,$AC:$AC,Sheet1!S71_ItemType,$AD:$AD)","v":0},{"$f":"-SUMIFS(Sheet1!S71_AdjustmentBudAmnt,Sheet1!S71_SubMunicipalVoteNo,$AC:$AC,Sheet1!S71_ItemType,$AD:$AD)","v":0},{"$f":"SUMIFS(Sheet1!S71_ASBudgetAmount,Sheet1!S71_SubMunicipalVoteNo,$AC:$AC,Sheet1!S71_ItemType,$AD:$AD)","v":0},{"$f":"SUMIFS(Sheet1!S71_OY1BudgetAmount,Sheet1!S71_SubMunicipalVoteNo,$AC:$AC,Sheet1!S71_ItemType,$AD:$AD)","v":0},{"$f":"SUMIFS(Sheet1!S71_OY2BudgetAmount,Sheet1!S71_SubMunicipalVoteNo,$AC:$AC,Sheet1!S71_ItemType,$AD:$AD)","v":0},null,null,null,null,null,null,null,null,null,null,null,null,null,null,null,null,null,77,"IR"]
[{"$f":"'Org structure'!E76","v":"7.8 - [Name of sub-vote]"},null,{"$f":"SUMIFS(Sheet1!S71_PPPYearAmount,Sheet1!S71_SubMunicipalVoteNo,$AC:$AC,Sheet1!S71_ItemType,$AD:$AD)","v":0},{"$f":"SUMIFS(Sheet1!S71_PPYearAmount,Sheet1!S71_SubMunicipalVoteNo,$AC:$AC,Sheet1!S71_ItemType,$AD:$AD)","v":0},{"$f":"SUMIFS(Sheet1!S71_PYearAmount,Sheet1!S71_SubMunicipalVoteNo,$AC:$AC,Sheet1!S71_ItemType,$AD:$AD)","v":0},{"$f":"-SUMIFS(Sheet1!S71_OriginalBudAmnt,Sheet1!S71_SubMunicipalVoteNo,$AC:$AC,Sheet1!S71_ItemType,$AD:$AD)","v":0},{"$f":"-SUMIFS(Sheet1!S71_AdjustmentBudAmnt,Sheet1!S71_SubMunicipalVoteNo,$AC:$AC,Sheet1!S71_ItemType,$AD:$AD)","v":0},{"$f":"-SUMIFS(Sheet1!S71_AdjustmentBudAmnt,Sheet1!S71_SubMunicipalVoteNo,$AC:$AC,Sheet1!S71_ItemType,$AD:$AD)","v":0},{"$f":"SUMIFS(Sheet1!S71_ASBudgetAmount,Sheet1!S71_SubMunicipalVoteNo,$AC:$AC,Sheet1!S71_ItemType,$AD:$AD)","v":0},{"$f":"SUMIFS(Sheet1!S71_OY1BudgetAmount,Sheet1!S71_SubMunicipalVoteNo,$AC:$AC,Sheet1!S71_ItemType,$AD:$AD)","v":0},{"$f":"SUMIFS(Sheet1!S71_OY2BudgetAmount,Sheet1!S71_SubMunicipalVoteNo,$AC:$AC,Sheet1!S71_ItemType,$AD:$AD)","v":0},null,null,null,null,null,null,null,null,null,null,null,null,null,null,null,null,null,78,"IR"]
[{"$f":"'Org structure'!E77","v":"7.9 - [Name of sub-vote]"},null,{"$f":"SUMIFS(Sheet1!S71_PPPYearAmount,Sheet1!S71_SubMunicipalVoteNo,$AC:$AC,Sheet1!S71_ItemType,$AD:$AD)","v":0},{"$f":"SUMIFS(Sheet1!S71_PPYearAmount,Sheet1!S71_SubMunicipalVoteNo,$AC:$AC,Sheet1!S71_ItemType,$AD:$AD)","v":0},{"$f":"SUMIFS(Sheet1!S71_PYearAmount,Sheet1!S71_SubMunicipalVoteNo,$AC:$AC,Sheet1!S71_ItemType,$AD:$AD)","v":0},{"$f":"-SUMIFS(Sheet1!S71_OriginalBudAmnt,Sheet1!S71_SubMunicipalVoteNo,$AC:$AC,Sheet1!S71_ItemType,$AD:$AD)","v":0},{"$f":"-SUMIFS(Sheet1!S71_AdjustmentBudAmnt,Sheet1!S71_SubMunicipalVoteNo,$AC:$AC,Sheet1!S71_ItemType,$AD:$AD)","v":0},{"$f":"-SUMIFS(Sheet1!S71_AdjustmentBudAmnt,Sheet1!S71_SubMunicipalVoteNo,$AC:$AC,Sheet1!S71_ItemType,$AD:$AD)","v":0},{"$f":"SUMIFS(Sheet1!S71_ASBudgetAmount,Sheet1!S71_SubMunicipalVoteNo,$AC:$AC,Sheet1!S71_ItemType,$AD:$AD)","v":0},{"$f":"SUMIFS(Sheet1!S71_OY1BudgetAmount,Sheet1!S71_SubMunicipalVoteNo,$AC:$AC,Sheet1!S71_ItemType,$AD:$AD)","v":0},{"$f":"SUMIFS(Sheet1!S71_OY2BudgetAmount,Sheet1!S71_SubMunicipalVoteNo,$AC:$AC,Sheet1!S71_ItemType,$AD:$AD)","v":0},null,null,null,null,null,null,null,null,null,null,null,null,null,null,null,null,null,79,"IR"]
[{"$f":"'Org structure'!E78","v":"7.10 - [Name of sub-vote]"},null,{"$f":"SUMIFS(Sheet1!S71_PPPYearAmount,Sheet1!S71_SubMunicipalVoteNo,$AC:$AC,Sheet1!S71_ItemType,$AD:$AD)","v":0},{"$f":"SUMIFS(Sheet1!S71_PPYearAmount,Sheet1!S71_SubMunicipalVoteNo,$AC:$AC,Sheet1!S71_ItemType,$AD:$AD)","v":0},{"$f":"SUMIFS(Sheet1!S71_PYearAmount,Sheet1!S71_SubMunicipalVoteNo,$AC:$AC,Sheet1!S71_ItemType,$AD:$AD)","v":0},{"$f":"-SUMIFS(Sheet1!S71_OriginalBudAmnt,Sheet1!S71_SubMunicipalVoteNo,$AC:$AC,Sheet1!S71_ItemType,$AD:$AD)","v":0},{"$f":"-SUMIFS(Sheet1!S71_AdjustmentBudAmnt,Sheet1!S71_SubMunicipalVoteNo,$AC:$AC,Sheet1!S71_ItemType,$AD:$AD)","v":0},{"$f":"-SUMIFS(Sheet1!S71_AdjustmentBudAmnt,Sheet1!S71_SubMunicipalVoteNo,$AC:$AC,Sheet1!S71_ItemType,$AD:$AD)","v":0},{"$f":"SUMIFS(Sheet1!S71_ASBudgetAmount,Sheet1!S71_SubMunicipalVoteNo,$AC:$AC,Sheet1!S71_ItemType,$AD:$AD)","v":0},{"$f":"SUMIFS(Sheet1!S71_OY1BudgetAmount,Sheet1!S71_SubMunicipalVoteNo,$AC:$AC,Sheet1!S71_ItemType,$AD:$AD)","v":0},{"$f":"SUMIFS(Sheet1!S71_OY2BudgetAmount,Sheet1!S71_SubMunicipalVoteNo,$AC:$AC,Sheet1!S71_ItemType,$AD:$AD)","v":0},null,null,null,null,null,null,null,null,null,null,null,null,null,null,null,null,null,710,"IR"]
[{"$f":"'Org structure'!A9","v":"Vote 8 - Public Safety"},null,{"$f":"SUM(C83:C92)","v":0},{"$f":"SUM(D83:D92)","v":0},0,0,0,0,0,0,0]
[{"$f":"'Org structure'!E80","v":"8.1 - Cleansing"},null,{"$f":"SUMIFS(Sheet1!S71_PPPYearAmount,Sheet1!S71_SubMunicipalVoteNo,$AC:$AC,Sheet1!S71_ItemType,$AD:$AD)","v":0},{"$f":"SUMIFS(Sheet1!S71_PPYearAmount,Sheet1!S71_SubMunicipalVoteNo,$AC:$AC,Sheet1!S71_ItemType,$AD:$AD)","v":0},{"$f":"SUMIFS(Sheet1!S71_PYearAmount,Sheet1!S71_SubMunicipalVoteNo,$AC:$AC,Sheet1!S71_ItemType,$AD:$AD)","v":0},{"$f":"-SUMIFS(Sheet1!S71_OriginalBudAmnt,Sheet1!S71_SubMunicipalVoteNo,$AC:$AC,Sheet1!S71_ItemType,$AD:$AD)","v":0},{"$f":"-SUMIFS(Sheet1!S71_AdjustmentBudAmnt,Sheet1!S71_SubMunicipalVoteNo,$AC:$AC,Sheet1!S71_ItemType,$AD:$AD)","v":0},{"$f":"-SUMIFS(Sheet1!S71_AdjustmentBudAmnt,Sheet1!S71_SubMunicipalVoteNo,$AC:$AC,Sheet1!S71_ItemType,$AD:$AD)","v":0},{"$f":"SUMIFS(Sheet1!S71_ASBudgetAmount,Sheet1!S71_SubMunicipalVoteNo,$AC:$AC,Sheet1!S71_ItemType,$AD:$AD)","v":0},{"$f":"SUMIFS(Sheet1!S71_OY1BudgetAmount,Sheet1!S71_SubMunicipalVoteNo,$AC:$AC,Sheet1!S71_ItemType,$AD:$AD)","v":0},{"$f":"SUMIFS(Sheet1!S71_OY2BudgetAmount,Sheet1!S71_SubMunicipalVoteNo,$AC:$AC,Sheet1!S71_ItemType,$AD:$AD)","v":0},null,null,null,null,null,null,null,null,null,null,null,null,null,null,null,null,null,81,"IR"]
[{"$f":"'Org structure'!E81","v":"8.2 - Fencing and Fences"},null,{"$f":"SUMIFS(Sheet1!S71_PPPYearAmount,Sheet1!S71_SubMunicipalVoteNo,$AC:$AC,Sheet1!S71_ItemType,$AD:$AD)","v":0},{"$f":"SUMIFS(Sheet1!S71_PPYearAmount,Sheet1!S71_SubMunicipalVoteNo,$AC:$AC,Sheet1!S71_ItemType,$AD:$AD)","v":0},{"$f":"SUMIFS(Sheet1!S71_PYearAmount,Sheet1!S71_SubMunicipalVoteNo,$AC:$AC,Sheet1!S71_ItemType,$AD:$AD)","v":0},{"$f":"-SUMIFS(Sheet1!S71_OriginalBudAmnt,Sheet1!S71_SubMunicipalVoteNo,$AC:$AC,Sheet1!S71_ItemType,$AD:$AD)","v":0},{"$f":"-SUMIFS(Sheet1!S71_AdjustmentBudAmnt,Sheet1!S71_SubMunicipalVoteNo,$AC:$AC,Sheet1!S71_ItemType,$AD:$AD)","v":0},{"$f":"-SUMIFS(Sheet1!S71_AdjustmentBudAmnt,Sheet1!S71_SubMunicipalVoteNo,$AC:$AC,Sheet1!S71_ItemType,$AD:$AD)","v":0},{"$f":"SUMIFS(Sheet1!S71_ASBudgetAmount,Sheet1!S71_SubMunicipalVoteNo,$AC:$AC,Sheet1!S71_ItemType,$AD:$AD)","v":0},{"$f":"SUMIFS(Sheet1!S71_OY1BudgetAmount,Sheet1!S71_SubMunicipalVoteNo,$AC:$AC,Sheet1!S71_ItemType,$AD:$AD)","v":0},{"$f":"SUMIFS(Sheet1!S71_OY2BudgetAmount,Sheet1!S71_SubMunicipalVoteNo,$AC:$AC,Sheet1!S71_ItemType,$AD:$AD)","v":0},null,null,null,null,null,null,null,null,null,null,null,null,null,null,null,null,null,82,"IR"]
[{"$f":"'Org structure'!E82","v":"8.3 - [Name of sub-vote]"},null,{"$f":"SUMIFS(Sheet1!S71_PPPYearAmount,Sheet1!S71_SubMunicipalVoteNo,$AC:$AC,Sheet1!S71_ItemType,$AD:$AD)","v":0},{"$f":"SUMIFS(Sheet1!S71_PPYearAmount,Sheet1!S71_SubMunicipalVoteNo,$AC:$AC,Sheet1!S71_ItemType,$AD:$AD)","v":0},{"$f":"SUMIFS(Sheet1!S71_PYearAmount,Sheet1!S71_SubMunicipalVoteNo,$AC:$AC,Sheet1!S71_ItemType,$AD:$AD)","v":0},{"$f":"-SUMIFS(Sheet1!S71_OriginalBudAmnt,Sheet1!S71_SubMunicipalVoteNo,$AC:$AC,Sheet1!S71_ItemType,$AD:$AD)","v":0},{"$f":"-SUMIFS(Sheet1!S71_AdjustmentBudAmnt,Sheet1!S71_SubMunicipalVoteNo,$AC:$AC,Sheet1!S71_ItemType,$AD:$AD)","v":0},{"$f":"-SUMIFS(Sheet1!S71_AdjustmentBudAmnt,Sheet1!S71_SubMunicipalVoteNo,$AC:$AC,Sheet1!S71_ItemType,$AD:$AD)","v":0},{"$f":"SUMIFS(Sheet1!S71_ASBudgetAmount,Sheet1!S71_SubMunicipalVoteNo,$AC:$AC,Sheet1!S71_ItemType,$AD:$AD)","v":0},{"$f":"SUMIFS(Sheet1!S71_OY1BudgetAmount,Sheet1!S71_SubMunicipalVoteNo,$AC:$AC,Sheet1!S71_ItemType,$AD:$AD)","v":0},{"$f":"SUMIFS(Sheet1!S71_OY2BudgetAmount,Sheet1!S71_SubMunicipalVoteNo,$AC:$AC,Sheet1!S71_ItemType,$AD:$AD)","v":0},null,null,null,null,null,null,null,null,null,null,null,null,null,null,null,null,null,83,"IR"]
[{"$f":"'Org structure'!E83","v":"8.4 - [Name of sub-vote]"},null,{"$f":"SUMIFS(Sheet1!S71_PPPYearAmount,Sheet1!S71_SubMunicipalVoteNo,$AC:$AC,Sheet1!S71_ItemType,$AD:$AD)","v":0},{"$f":"SUMIFS(Sheet1!S71_PPYearAmount,Sheet1!S71_SubMunicipalVoteNo,$AC:$AC,Sheet1!S71_ItemType,$AD:$AD)","v":0},{"$f":"SUMIFS(Sheet1!S71_PYearAmount,Sheet1!S71_SubMunicipalVoteNo,$AC:$AC,Sheet1!S71_ItemType,$AD:$AD)","v":0},{"$f":"-SUMIFS(Sheet1!S71_OriginalBudAmnt,Sheet1!S71_SubMunicipalVoteNo,$AC:$AC,Sheet1!S71_ItemType,$AD:$AD)","v":0},{"$f":"-SUMIFS(Sheet1!S71_AdjustmentBudAmnt,Sheet1!S71_SubMunicipalVoteNo,$AC:$AC,Sheet1!S71_ItemType,$AD:$AD)","v":0},{"$f":"-SUMIFS(Sheet1!S71_AdjustmentBudAmnt,Sheet1!S71_SubMunicipalVoteNo,$AC:$AC,Sheet1!S71_ItemType,$AD:$AD)","v":0},{"$f":"SUMIFS(Sheet1!S71_ASBudgetAmount,Sheet1!S71_SubMunicipalVoteNo,$AC:$AC,Sheet1!S71_ItemType,$AD:$AD)","v":0},{"$f":"SUMIFS(Sheet1!S71_OY1BudgetAmount,Sheet1!S71_SubMunicipalVoteNo,$AC:$AC,Sheet1!S71_ItemType,$AD:$AD)","v":0},{"$f":"SUMIFS(Sheet1!S71_OY2BudgetAmount,Sheet1!S71_SubMunicipalVoteNo,$AC:$AC,Sheet1!S71_ItemType,$AD:$AD)","v":0},null,null,null,null,null,null,null,null,null,null,null,null,null,null,null,null,null,84,"IR"]
[{"$f":"'Org structure'!E84","v":"8.5 - [Name of sub-vote]"},null,{"$f":"SUMIFS(Sheet1!S71_PPPYearAmount,Sheet1!S71_SubMunicipalVoteNo,$AC:$AC,Sheet1!S71_ItemType,$AD:$AD)","v":0},{"$f":"SUMIFS(Sheet1!S71_PPYearAmount,Sheet1!S71_SubMunicipalVoteNo,$AC:$AC,Sheet1!S71_ItemType,$AD:$AD)","v":0},{"$f":"SUMIFS(Sheet1!S71_PYearAmount,Sheet1!S71_SubMunicipalVoteNo,$AC:$AC,Sheet1!S71_ItemType,$AD:$AD)","v":0},{"$f":"-SUMIFS(Sheet1!S71_OriginalBudAmnt,Sheet1!S71_SubMunicipalVoteNo,$AC:$AC,Sheet1!S71_ItemType,$AD:$AD)","v":0},{"$f":"-SUMIFS(Sheet1!S71_AdjustmentBudAmnt,Sheet1!S71_SubMunicipalVoteNo,$AC:$AC,Sheet1!S71_ItemType,$AD:$AD)","v":0},{"$f":"-SUMIFS(Sheet1!S71_AdjustmentBudAmnt,Sheet1!S71_SubMunicipalVoteNo,$AC:$AC,Sheet1!S71_ItemType,$AD:$AD)","v":0},{"$f":"SUMIFS(Sheet1!S71_ASBudgetAmount,Sheet1!S71_SubMunicipalVoteNo,$AC:$AC,Sheet1!S71_ItemType,$AD:$AD)","v":0},{"$f":"SUMIFS(Sheet1!S71_OY1BudgetAmount,Sheet1!S71_SubMunicipalVoteNo,$AC:$AC,Sheet1!S71_ItemType,$AD:$AD)","v":0},{"$f":"SUMIFS(Sheet1!S71_OY2BudgetAmount,Sheet1!S71_SubMunicipalVoteNo,$AC:$AC,Sheet1!S71_ItemType,$AD:$AD)","v":0},null,null,null,null,null,null,null,null,null,null,null,null,null,null,null,null,null,85,"IR"]
[{"$f":"'Org structure'!E85","v":"8.6 - [Name of sub-vote]"},null,{"$f":"SUMIFS(Sheet1!S71_PPPYearAmount,Sheet1!S71_SubMunicipalVoteNo,$AC:$AC,Sheet1!S71_ItemType,$AD:$AD)","v":0},{"$f":"SUMIFS(Sheet1!S71_PPYearAmount,Sheet1!S71_SubMunicipalVoteNo,$AC:$AC,Sheet1!S71_ItemType,$AD:$AD)","v":0},{"$f":"SUMIFS(Sheet1!S71_PYearAmount,Sheet1!S71_SubMunicipalVoteNo,$AC:$AC,Sheet1!S71_ItemType,$AD:$AD)","v":0},{"$f":"-SUMIFS(Sheet1!S71_OriginalBudAmnt,Sheet1!S71_SubMunicipalVoteNo,$AC:$AC,Sheet1!S71_ItemType,$AD:$AD)","v":0},{"$f":"-SUMIFS(Sheet1!S71_AdjustmentBudAmnt,Sheet1!S71_SubMunicipalVoteNo,$AC:$AC,Sheet1!S71_ItemType,$AD:$AD)","v":0},{"$f":"-SUMIFS(Sheet1!S71_AdjustmentBudAmnt,Sheet1!S71_SubMunicipalVoteNo,$AC:$AC,Sheet1!S71_ItemType,$AD:$AD)","v":0},{"$f":"SUMIFS(Sheet1!S71_ASBudgetAmount,Sheet1!S71_SubMunicipalVoteNo,$AC:$AC,Sheet1!S71_ItemType,$AD:$AD)","v":0},{"$f":"SUMIFS(Sheet1!S71_OY1BudgetAmount,Sheet1!S71_SubMunicipalVoteNo,$AC:$AC,Sheet1!S71_ItemType,$AD:$AD)","v":0},{"$f":"SUMIFS(Sheet1!S71_OY2BudgetAmount,Sheet1!S71_SubMunicipalVoteNo,$AC:$AC,Sheet1!S71_ItemType,$AD:$AD)","v":0},null,null,null,null,null,null,null,null,null,null,null,null,null,null,null,null,null,86,"IR"]
[{"$f":"'Org structure'!E86","v":"8.7 - [Name of sub-vote]"},null,{"$f":"SUMIFS(Sheet1!S71_PPPYearAmount,Sheet1!S71_SubMunicipalVoteNo,$AC:$AC,Sheet1!S71_ItemType,$AD:$AD)","v":0},{"$f":"SUMIFS(Sheet1!S71_PPYearAmount,Sheet1!S71_SubMunicipalVoteNo,$AC:$AC,Sheet1!S71_ItemType,$AD:$AD)","v":0},{"$f":"SUMIFS(Sheet1!S71_PYearAmount,Sheet1!S71_SubMunicipalVoteNo,$AC:$AC,Sheet1!S71_ItemType,$AD:$AD)","v":0},{"$f":"-SUMIFS(Sheet1!S71_OriginalBudAmnt,Sheet1!S71_SubMunicipalVoteNo,$AC:$AC,Sheet1!S71_ItemType,$AD:$AD)","v":0},{"$f":"-SUMIFS(Sheet1!S71_AdjustmentBudAmnt,Sheet1!S71_SubMunicipalVoteNo,$AC:$AC,Sheet1!S71_ItemType,$AD:$AD)","v":0},{"$f":"-SUMIFS(Sheet1!S71_AdjustmentBudAmnt,Sheet1!S71_SubMunicipalVoteNo,$AC:$AC,Sheet1!S71_ItemType,$AD:$AD)","v":0},{"$f":"SUMIFS(Sheet1!S71_ASBudgetAmount,Sheet1!S71_SubMunicipalVoteNo,$AC:$AC,Sheet1!S71_ItemType,$AD:$AD)","v":0},{"$f":"SUMIFS(Sheet1!S71_OY1BudgetAmount,Sheet1!S71_SubMunicipalVoteNo,$AC:$AC,Sheet1!S71_ItemType,$AD:$AD)","v":0},{"$f":"SUMIFS(Sheet1!S71_OY2BudgetAmount,Sheet1!S71_SubMunicipalVoteNo,$AC:$AC,Sheet1!S71_ItemType,$AD:$AD)","v":0},null,null,null,null,null,null,null,null,null,null,null,null,null,null,null,null,null,87,"IR"]
[{"$f":"'Org structure'!E87","v":"8.8 - [Name of sub-vote]"},null,{"$f":"SUMIFS(Sheet1!S71_PPPYearAmount,Sheet1!S71_SubMunicipalVoteNo,$AC:$AC,Sheet1!S71_ItemType,$AD:$AD)","v":0},{"$f":"SUMIFS(Sheet1!S71_PPYearAmount,Sheet1!S71_SubMunicipalVoteNo,$AC:$AC,Sheet1!S71_ItemType,$AD:$AD)","v":0},{"$f":"SUMIFS(Sheet1!S71_PYearAmount,Sheet1!S71_SubMunicipalVoteNo,$AC:$AC,Sheet1!S71_ItemType,$AD:$AD)","v":0},{"$f":"-SUMIFS(Sheet1!S71_OriginalBudAmnt,Sheet1!S71_SubMunicipalVoteNo,$AC:$AC,Sheet1!S71_ItemType,$AD:$AD)","v":0},{"$f":"-SUMIFS(Sheet1!S71_AdjustmentBudAmnt,Sheet1!S71_SubMunicipalVoteNo,$AC:$AC,Sheet1!S71_ItemType,$AD:$AD)","v":0},{"$f":"-SUMIFS(Sheet1!S71_AdjustmentBudAmnt,Sheet1!S71_SubMunicipalVoteNo,$AC:$AC,Sheet1!S71_ItemType,$AD:$AD)","v":0},{"$f":"SUMIFS(Sheet1!S71_ASBudgetAmount,Sheet1!S71_SubMunicipalVoteNo,$AC:$AC,Sheet1!S71_ItemType,$AD:$AD)","v":0},{"$f":"SUMIFS(Sheet1!S71_OY1BudgetAmount,Sheet1!S71_SubMunicipalVoteNo,$AC:$AC,Sheet1!S71_ItemType,$AD:$AD)","v":0},{"$f":"SUMIFS(Sheet1!S71_OY2BudgetAmount,Sheet1!S71_SubMunicipalVoteNo,$AC:$AC,Sheet1!S71_ItemType,$AD:$AD)","v":0},null,null,null,null,null,null,null,null,null,null,null,null,null,null,null,null,null,88,"IR"]
[{"$f":"'Org structure'!E88","v":"8.9 - [Name of sub-vote]"},null,{"$f":"SUMIFS(Sheet1!S71_PPPYearAmount,Sheet1!S71_SubMunicipalVoteNo,$AC:$AC,Sheet1!S71_ItemType,$AD:$AD)","v":0},{"$f":"SUMIFS(Sheet1!S71_PPYearAmount,Sheet1!S71_SubMunicipalVoteNo,$AC:$AC,Sheet1!S71_ItemType,$AD:$AD)","v":0},{"$f":"SUMIFS(Sheet1!S71_PYearAmount,Sheet1!S71_SubMunicipalVoteNo,$AC:$AC,Sheet1!S71_ItemType,$AD:$AD)","v":0},{"$f":"-SUMIFS(Sheet1!S71_OriginalBudAmnt,Sheet1!S71_SubMunicipalVoteNo,$AC:$AC,Sheet1!S71_ItemType,$AD:$AD)","v":0},{"$f":"-SUMIFS(Sheet1!S71_AdjustmentBudAmnt,Sheet1!S71_SubMunicipalVoteNo,$AC:$AC,Sheet1!S71_ItemType,$AD:$AD)","v":0},{"$f":"-SUMIFS(Sheet1!S71_AdjustmentBudAmnt,Sheet1!S71_SubMunicipalVoteNo,$AC:$AC,Sheet1!S71_ItemType,$AD:$AD)","v":0},{"$f":"SUMIFS(Sheet1!S71_ASBudgetAmount,Sheet1!S71_SubMunicipalVoteNo,$AC:$AC,Sheet1!S71_ItemType,$AD:$AD)","v":0},{"$f":"SUMIFS(Sheet1!S71_OY1BudgetAmount,Sheet1!S71_SubMunicipalVoteNo,$AC:$AC,Sheet1!S71_ItemType,$AD:$AD)","v":0},{"$f":"SUMIFS(Sheet1!S71_OY2BudgetAmount,Sheet1!S71_SubMunicipalVoteNo,$AC:$AC,Sheet1!S71_ItemType,$AD:$AD)","v":0},null,null,null,null,null,null,null,null,null,null,null,null,null,null,null,null,null,89,"IR"]
[{"$f":"'Org structure'!E89","v":"8.10 - [Name of sub-vote]"},null,{"$f":"SUMIFS(Sheet1!S71_PPPYearAmount,Sheet1!S71_SubMunicipalVoteNo,$AC:$AC,Sheet1!S71_ItemType,$AD:$AD)","v":0},{"$f":"SUMIFS(Sheet1!S71_PPYearAmount,Sheet1!S71_SubMunicipalVoteNo,$AC:$AC,Sheet1!S71_ItemType,$AD:$AD)","v":0},{"$f":"SUMIFS(Sheet1!S71_PYearAmount,Sheet1!S71_SubMunicipalVoteNo,$AC:$AC,Sheet1!S71_ItemType,$AD:$AD)","v":0},{"$f":"-SUMIFS(Sheet1!S71_OriginalBudAmnt,Sheet1!S71_SubMunicipalVoteNo,$AC:$AC,Sheet1!S71_ItemType,$AD:$AD)","v":0},{"$f":"-SUMIFS(Sheet1!S71_AdjustmentBudAmnt,Sheet1!S71_SubMunicipalVoteNo,$AC:$AC,Sheet1!S71_ItemType,$AD:$AD)","v":0},{"$f":"-SUMIFS(Sheet1!S71_AdjustmentBudAmnt,Sheet1!S71_SubMunicipalVoteNo,$AC:$AC,Sheet1!S71_ItemType,$AD:$AD)","v":0},{"$f":"SUMIFS(Sheet1!S71_ASBudgetAmount,Sheet1!S71_SubMunicipalVoteNo,$AC:$AC,Sheet1!S71_ItemType,$AD:$AD)","v":0},{"$f":"SUMIFS(Sheet1!S71_OY1BudgetAmount,Sheet1!S71_SubMunicipalVoteNo,$AC:$AC,Sheet1!S71_ItemType,$AD:$AD)","v":0},{"$f":"SUMIFS(Sheet1!S71_OY2BudgetAmount,Sheet1!S71_SubMunicipalVoteNo,$AC:$AC,Sheet1!S71_ItemType,$AD:$AD)","v":0},null,null,null,null,null,null,null,null,null,null,null,null,null,null,null,null,null,810,"IR"]
[{"$f":"'Org structure'!A10","v":"Vote 9 - Waste Management"},null,{"$f":"SUM(C94:C103)","v":8228507},{"$f":"SUM(D94:D103)","v":10092238},10636113,13816930,12007090,12007090,12648695,13268482,13892100]
[{"$f":"'Org structure'!E91","v":"9.1 - [Name of sub-vote]"},null,{"$f":"SUMIFS(Sheet1!S71_PPPYearAmount,Sheet1!S71_SubMunicipalVoteNo,$AC:$AC,Sheet1!S71_ItemType,$AD:$AD)","v":0},{"$f":"SUMIFS(Sheet1!S71_PPYearAmount,Sheet1!S71_SubMunicipalVoteNo,$AC:$AC,Sheet1!S71_ItemType,$AD:$AD)","v":0},{"$f":"SUMIFS(Sheet1!S71_PYearAmount,Sheet1!S71_SubMunicipalVoteNo,$AC:$AC,Sheet1!S71_ItemType,$AD:$AD)","v":0},{"$f":"-SUMIFS(Sheet1!S71_OriginalBudAmnt,Sheet1!S71_SubMunicipalVoteNo,$AC:$AC,Sheet1!S71_ItemType,$AD:$AD)","v":0},{"$f":"-SUMIFS(Sheet1!S71_AdjustmentBudAmnt,Sheet1!S71_SubMunicipalVoteNo,$AC:$AC,Sheet1!S71_ItemType,$AD:$AD)","v":0},{"$f":"-SUMIFS(Sheet1!S71_AdjustmentBudAmnt,Sheet1!S71_SubMunicipalVoteNo,$AC:$AC,Sheet1!S71_ItemType,$AD:$AD)","v":0},{"$f":"SUMIFS(Sheet1!S71_ASBudgetAmount,Sheet1!S71_SubMunicipalVoteNo,$AC:$AC,Sheet1!S71_ItemType,$AD:$AD)","v":0},{"$f":"SUMIFS(Sheet1!S71_OY1BudgetAmount,Sheet1!S71_SubMunicipalVoteNo,$AC:$AC,Sheet1!S71_ItemType,$AD:$AD)","v":0},{"$f":"SUMIFS(Sheet1!S71_OY2BudgetAmount,Sheet1!S71_SubMunicipalVoteNo,$AC:$AC,Sheet1!S71_ItemType,$AD:$AD)","v":0},null,null,null,null,null,null,null,null,null,null,null,null,null,null,null,null,null,91,"IR"]
[{"$f":"'Org structure'!E92","v":"9.2 - Solid Waste Disposal (Landfill Sites)"},null,{"$f":"SUMIFS(Sheet1!S71_PPPYearAmount,Sheet1!S71_SubMunicipalVoteNo,$AC:$AC,Sheet1!S71_ItemType,$AD:$AD)","v":0},{"$f":"SUMIFS(Sheet1!S71_PPYearAmount,Sheet1!S71_SubMunicipalVoteNo,$AC:$AC,Sheet1!S71_ItemType,$AD:$AD)","v":0},{"$f":"SUMIFS(Sheet1!S71_PYearAmount,Sheet1!S71_SubMunicipalVoteNo,$AC:$AC,Sheet1!S71_ItemType,$AD:$AD)","v":0},{"$f":"-SUMIFS(Sheet1!S71_OriginalBudAmnt,Sheet1!S71_SubMunicipalVoteNo,$AC:$AC,Sheet1!S71_ItemType,$AD:$AD)","v":0},{"$f":"-SUMIFS(Sheet1!S71_AdjustmentBudAmnt,Sheet1!S71_SubMunicipalVoteNo,$AC:$AC,Sheet1!S71_ItemType,$AD:$AD)","v":0},{"$f":"-SUMIFS(Sheet1!S71_AdjustmentBudAmnt,Sheet1!S71_SubMunicipalVoteNo,$AC:$AC,Sheet1!S71_ItemType,$AD:$AD)","v":0},{"$f":"SUMIFS(Sheet1!S71_ASBudgetAmount,Sheet1!S71_SubMunicipalVoteNo,$AC:$AC,Sheet1!S71_ItemType,$AD:$AD)","v":0},{"$f":"SUMIFS(Sheet1!S71_OY1BudgetAmount,Sheet1!S71_SubMunicipalVoteNo,$AC:$AC,Sheet1!S71_ItemType,$AD:$AD)","v":0},{"$f":"SUMIFS(Sheet1!S71_OY2BudgetAmount,Sheet1!S71_SubMunicipalVoteNo,$AC:$AC,Sheet1!S71_ItemType,$AD:$AD)","v":0},null,null,null,null,null,null,null,null,null,null,null,null,null,null,null,null,null,92,"IR"]
[{"$f":"'Org structure'!E93","v":"9.3 - Solid Waste Removal"},null,{"$f":"SUMIFS(Sheet1!S71_PPPYearAmount,Sheet1!S71_SubMunicipalVoteNo,$AC:$AC,Sheet1!S71_ItemType,$AD:$AD)","v":8228507},{"$f":"SUMIFS(Sheet1!S71_PPYearAmount,Sheet1!S71_SubMunicipalVoteNo,$AC:$AC,Sheet1!S71_ItemType,$AD:$AD)","v":10092238},{"$f":"SUMIFS(Sheet1!S71_PYearAmount,Sheet1!S71_SubMunicipalVoteNo,$AC:$AC,Sheet1!S71_ItemType,$AD:$AD)","v":10636113},{"$f":"-SUMIFS(Sheet1!S71_OriginalBudAmnt,Sheet1!S71_SubMunicipalVoteNo,$AC:$AC,Sheet1!S71_ItemType,$AD:$AD)","v":13816930},{"$f":"-SUMIFS(Sheet1!S71_AdjustmentBudAmnt,Sheet1!S71_SubMunicipalVoteNo,$AC:$AC,Sheet1!S71_ItemType,$AD:$AD)","v":12007090},{"$f":"-SUMIFS(Sheet1!S71_AdjustmentBudAmnt,Sheet1!S71_SubMunicipalVoteNo,$AC:$AC,Sheet1!S71_ItemType,$AD:$AD)","v":12007090},{"$f":"SUMIFS(Sheet1!S71_ASBudgetAmount,Sheet1!S71_SubMunicipalVoteNo,$AC:$AC,Sheet1!S71_ItemType,$AD:$AD)","v":12648695},{"$f":"SUMIFS(Sheet1!S71_OY1BudgetAmount,Sheet1!S71_SubMunicipalVoteNo,$AC:$AC,Sheet1!S71_ItemType,$AD:$AD)","v":13268482},{"$f":"SUMIFS(Sheet1!S71_OY2BudgetAmount,Sheet1!S71_SubMunicipalVoteNo,$AC:$AC,Sheet1!S71_ItemType,$AD:$AD)","v":13892100},null,null,null,null,null,null,null,null,null,null,null,null,null,null,null,null,null,93,"IR"]
[{"$f":"'Org structure'!E94","v":"9.4 - [Name of sub-vote]"},null,{"$f":"SUMIFS(Sheet1!S71_PPPYearAmount,Sheet1!S71_SubMunicipalVoteNo,$AC:$AC,Sheet1!S71_ItemType,$AD:$AD)","v":0},{"$f":"SUMIFS(Sheet1!S71_PPYearAmount,Sheet1!S71_SubMunicipalVoteNo,$AC:$AC,Sheet1!S71_ItemType,$AD:$AD)","v":0},{"$f":"SUMIFS(Sheet1!S71_PYearAmount,Sheet1!S71_SubMunicipalVoteNo,$AC:$AC,Sheet1!S71_ItemType,$AD:$AD)","v":0},{"$f":"-SUMIFS(Sheet1!S71_OriginalBudAmnt,Sheet1!S71_SubMunicipalVoteNo,$AC:$AC,Sheet1!S71_ItemType,$AD:$AD)","v":0},{"$f":"-SUMIFS(Sheet1!S71_AdjustmentBudAmnt,Sheet1!S71_SubMunicipalVoteNo,$AC:$AC,Sheet1!S71_ItemType,$AD:$AD)","v":0},{"$f":"-SUMIFS(Sheet1!S71_AdjustmentBudAmnt,Sheet1!S71_SubMunicipalVoteNo,$AC:$AC,Sheet1!S71_ItemType,$AD:$AD)","v":0},{"$f":"SUMIFS(Sheet1!S71_ASBudgetAmount,Sheet1!S71_SubMunicipalVoteNo,$AC:$AC,Sheet1!S71_ItemType,$AD:$AD)","v":0},{"$f":"SUMIFS(Sheet1!S71_OY1BudgetAmount,Sheet1!S71_SubMunicipalVoteNo,$AC:$AC,Sheet1!S71_ItemType,$AD:$AD)","v":0},{"$f":"SUMIFS(Sheet1!S71_OY2BudgetAmount,Sheet1!S71_SubMunicipalVoteNo,$AC:$AC,Sheet1!S71_ItemType,$AD:$AD)","v":0},null,null,null,null,null,null,null,null,null,null,null,null,null,null,null,null,null,94,"IR"]
[{"$f":"'Org structure'!E95","v":"9.5 - [Name of sub-vote]"},null,{"$f":"SUMIFS(Sheet1!S71_PPPYearAmount,Sheet1!S71_SubMunicipalVoteNo,$AC:$AC,Sheet1!S71_ItemType,$AD:$AD)","v":0},{"$f":"SUMIFS(Sheet1!S71_PPYearAmount,Sheet1!S71_SubMunicipalVoteNo,$AC:$AC,Sheet1!S71_ItemType,$AD:$AD)","v":0},{"$f":"SUMIFS(Sheet1!S71_PYearAmount,Sheet1!S71_SubMunicipalVoteNo,$AC:$AC,Sheet1!S71_ItemType,$AD:$AD)","v":0},{"$f":"-SUMIFS(Sheet1!S71_OriginalBudAmnt,Sheet1!S71_SubMunicipalVoteNo,$AC:$AC,Sheet1!S71_ItemType,$AD:$AD)","v":0},{"$f":"-SUMIFS(Sheet1!S71_AdjustmentBudAmnt,Sheet1!S71_SubMunicipalVoteNo,$AC:$AC,Sheet1!S71_ItemType,$AD:$AD)","v":0},{"$f":"-SUMIFS(Sheet1!S71_AdjustmentBudAmnt,Sheet1!S71_SubMunicipalVoteNo,$AC:$AC,Sheet1!S71_ItemType,$AD:$AD)","v":0},{"$f":"SUMIFS(Sheet1!S71_ASBudgetAmount,Sheet1!S71_SubMunicipalVoteNo,$AC:$AC,Sheet1!S71_ItemType,$AD:$AD)","v":0},{"$f":"SUMIFS(Sheet1!S71_OY1BudgetAmount,Sheet1!S71_SubMunicipalVoteNo,$AC:$AC,Sheet1!S71_ItemType,$AD:$AD)","v":0},{"$f":"SUMIFS(Sheet1!S71_OY2BudgetAmount,Sheet1!S71_SubMunicipalVoteNo,$AC:$AC,Sheet1!S71_ItemType,$AD:$AD)","v":0},null,null,null,null,null,null,null,null,null,null,null,null,null,null,null,null,null,95,"IR"]
[{"$f":"'Org structure'!E96","v":"9.6 - [Name of sub-vote]"},null,{"$f":"SUMIFS(Sheet1!S71_PPPYearAmount,Sheet1!S71_SubMunicipalVoteNo,$AC:$AC,Sheet1!S71_ItemType,$AD:$AD)","v":0},{"$f":"SUMIFS(Sheet1!S71_PPYearAmount,Sheet1!S71_SubMunicipalVoteNo,$AC:$AC,Sheet1!S71_ItemType,$AD:$AD)","v":0},{"$f":"SUMIFS(Sheet1!S71_PYearAmount,Sheet1!S71_SubMunicipalVoteNo,$AC:$AC,Sheet1!S71_ItemType,$AD:$AD)","v":0},{"$f":"-SUMIFS(Sheet1!S71_OriginalBudAmnt,Sheet1!S71_SubMunicipalVoteNo,$AC:$AC,Sheet1!S71_ItemType,$AD:$AD)","v":0},{"$f":"-SUMIFS(Sheet1!S71_AdjustmentBudAmnt,Sheet1!S71_SubMunicipalVoteNo,$AC:$AC,Sheet1!S71_ItemType,$AD:$AD)","v":0},{"$f":"-SUMIFS(Sheet1!S71_AdjustmentBudAmnt,Sheet1!S71_SubMunicipalVoteNo,$AC:$AC,Sheet1!S71_ItemType,$AD:$AD)","v":0},{"$f":"SUMIFS(Sheet1!S71_ASBudgetAmount,Sheet1!S71_SubMunicipalVoteNo,$AC:$AC,Sheet1!S71_ItemType,$AD:$AD)","v":0},{"$f":"SUMIFS(Sheet1!S71_OY1BudgetAmount,Sheet1!S71_SubMunicipalVoteNo,$AC:$AC,Sheet1!S71_ItemType,$AD:$AD)","v":0},{"$f":"SUMIFS(Sheet1!S71_OY2BudgetAmount,Sheet1!S71_SubMunicipalVoteNo,$AC:$AC,Sheet1!S71_ItemType,$AD:$AD)","v":0},null,null,null,null,null,null,null,null,null,null,null,null,null,null,null,null,null,96,"IR"]
[{"$f":"'Org structure'!E97","v":"9.7 - [Name of sub-vote]"},null,{"$f":"SUMIFS(Sheet1!S71_PPPYearAmount,Sheet1!S71_SubMunicipalVoteNo,$AC:$AC,Sheet1!S71_ItemType,$AD:$AD)","v":0},{"$f":"SUMIFS(Sheet1!S71_PPYearAmount,Sheet1!S71_SubMunicipalVoteNo,$AC:$AC,Sheet1!S71_ItemType,$AD:$AD)","v":0},{"$f":"SUMIFS(Sheet1!S71_PYearAmount,Sheet1!S71_SubMunicipalVoteNo,$AC:$AC,Sheet1!S71_ItemType,$AD:$AD)","v":0},{"$f":"-SUMIFS(Sheet1!S71_OriginalBudAmnt,Sheet1!S71_SubMunicipalVoteNo,$AC:$AC,Sheet1!S71_ItemType,$AD:$AD)","v":0},{"$f":"-SUMIFS(Sheet1!S71_AdjustmentBudAmnt,Sheet1!S71_SubMunicipalVoteNo,$AC:$AC,Sheet1!S71_ItemType,$AD:$AD)","v":0},{"$f":"-SUMIFS(Sheet1!S71_AdjustmentBudAmnt,Sheet1!S71_SubMunicipalVoteNo,$AC:$AC,Sheet1!S71_ItemType,$AD:$AD)","v":0},{"$f":"SUMIFS(Sheet1!S71_ASBudgetAmount,Sheet1!S71_SubMunicipalVoteNo,$AC:$AC,Sheet1!S71_ItemType,$AD:$AD)","v":0},{"$f":"SUMIFS(Sheet1!S71_OY1BudgetAmount,Sheet1!S71_SubMunicipalVoteNo,$AC:$AC,Sheet1!S71_ItemType,$AD:$AD)","v":0},{"$f":"SUMIFS(Sheet1!S71_OY2BudgetAmount,Sheet1!S71_SubMunicipalVoteNo,$AC:$AC,Sheet1!S71_ItemType,$AD:$AD)","v":0},null,null,null,null,null,null,null,null,null,null,null,null,null,null,null,null,null,97,"IR"]
[{"$f":"'Org structure'!E98","v":"9.8 - [Name of sub-vote]"},null,{"$f":"SUMIFS(Sheet1!S71_PPPYearAmount,Sheet1!S71_SubMunicipalVoteNo,$AC:$AC,Sheet1!S71_ItemType,$AD:$AD)","v":0},{"$f":"SUMIFS(Sheet1!S71_PPYearAmount,Sheet1!S71_SubMunicipalVoteNo,$AC:$AC,Sheet1!S71_ItemType,$AD:$AD)","v":0},{"$f":"SUMIFS(Sheet1!S71_PYearAmount,Sheet1!S71_SubMunicipalVoteNo,$AC:$AC,Sheet1!S71_ItemType,$AD:$AD)","v":0},{"$f":"-SUMIFS(Sheet1!S71_OriginalBudAmnt,Sheet1!S71_SubMunicipalVoteNo,$AC:$AC,Sheet1!S71_ItemType,$AD:$AD)","v":0},{"$f":"-SUMIFS(Sheet1!S71_AdjustmentBudAmnt,Sheet1!S71_SubMunicipalVoteNo,$AC:$AC,Sheet1!S71_ItemType,$AD:$AD)","v":0},{"$f":"-SUMIFS(Sheet1!S71_AdjustmentBudAmnt,Sheet1!S71_SubMunicipalVoteNo,$AC:$AC,Sheet1!S71_ItemType,$AD:$AD)","v":0},{"$f":"SUMIFS(Sheet1!S71_ASBudgetAmount,Sheet1!S71_SubMunicipalVoteNo,$AC:$AC,Sheet1!S71_ItemType,$AD:$AD)","v":0},{"$f":"SUMIFS(Sheet1!S71_OY1BudgetAmount,Sheet1!S71_SubMunicipalVoteNo,$AC:$AC,Sheet1!S71_ItemType,$AD:$AD)","v":0},{"$f":"SUMIFS(Sheet1!S71_OY2BudgetAmount,Sheet1!S71_SubMunicipalVoteNo,$AC:$AC,Sheet1!S71_ItemType,$AD:$AD)","v":0},null,null,null,null,null,null,null,null,null,null,null,null,null,null,null,null,null,98,"IR"]
[{"$f":"'Org structure'!E99","v":"9.9 - [Name of sub-vote]"},null,{"$f":"SUMIFS(Sheet1!S71_PPPYearAmount,Sheet1!S71_SubMunicipalVoteNo,$AC:$AC,Sheet1!S71_ItemType,$AD:$AD)","v":0},{"$f":"SUMIFS(Sheet1!S71_PPYearAmount,Sheet1!S71_SubMunicipalVoteNo,$AC:$AC,Sheet1!S71_ItemType,$AD:$AD)","v":0},{"$f":"SUMIFS(Sheet1!S71_PYearAmount,Sheet1!S71_SubMunicipalVoteNo,$AC:$AC,Sheet1!S71_ItemType,$AD:$AD)","v":0},{"$f":"-SUMIFS(Sheet1!S71_OriginalBudAmnt,Sheet1!S71_SubMunicipalVoteNo,$AC:$AC,Sheet1!S71_ItemType,$AD:$AD)","v":0},{"$f":"-SUMIFS(Sheet1!S71_AdjustmentBudAmnt,Sheet1!S71_SubMunicipalVoteNo,$AC:$AC,Sheet1!S71_ItemType,$AD:$AD)","v":0},{"$f":"-SUMIFS(Sheet1!S71_AdjustmentBudAmnt,Sheet1!S71_SubMunicipalVoteNo,$AC:$AC,Sheet1!S71_ItemType,$AD:$AD)","v":0},{"$f":"SUMIFS(Sheet1!S71_ASBudgetAmount,Sheet1!S71_SubMunicipalVoteNo,$AC:$AC,Sheet1!S71_ItemType,$AD:$AD)","v":0},{"$f":"SUMIFS(Sheet1!S71_OY1BudgetAmount,Sheet1!S71_SubMunicipalVoteNo,$AC:$AC,Sheet1!S71_ItemType,$AD:$AD)","v":0},{"$f":"SUMIFS(Sheet1!S71_OY2BudgetAmount,Sheet1!S71_SubMunicipalVoteNo,$AC:$AC,Sheet1!S71_ItemType,$AD:$AD)","v":0},null,null,null,null,null,null,null,null,null,null,null,null,null,null,null,null,null,99,"IR"]
[{"$f":"'Org structure'!E100","v":"9.10 - [Name of sub-vote]"},null,{"$f":"SUMIFS(Sheet1!S71_PPPYearAmount,Sheet1!S71_SubMunicipalVoteNo,$AC:$AC,Sheet1!S71_ItemType,$AD:$AD)","v":0},{"$f":"SUMIFS(Sheet1!S71_PPYearAmount,Sheet1!S71_SubMunicipalVoteNo,$AC:$AC,Sheet1!S71_ItemType,$AD:$AD)","v":0},{"$f":"SUMIFS(Sheet1!S71_PYearAmount,Sheet1!S71_SubMunicipalVoteNo,$AC:$AC,Sheet1!S71_ItemType,$AD:$AD)","v":0},{"$f":"-SUMIFS(Sheet1!S71_OriginalBudAmnt,Sheet1!S71_SubMunicipalVoteNo,$AC:$AC,Sheet1!S71_ItemType,$AD:$AD)","v":0},{"$f":"-SUMIFS(Sheet1!S71_AdjustmentBudAmnt,Sheet1!S71_SubMunicipalVoteNo,$AC:$AC,Sheet1!S71_ItemType,$AD:$AD)","v":0},{"$f":"-SUMIFS(Sheet1!S71_AdjustmentBudAmnt,Sheet1!S71_SubMunicipalVoteNo,$AC:$AC,Sheet1!S71_ItemType,$AD:$AD)","v":0},{"$f":"SUMIFS(Sheet1!S71_ASBudgetAmount,Sheet1!S71_SubMunicipalVoteNo,$AC:$AC,Sheet1!S71_ItemType,$AD:$AD)","v":0},{"$f":"SUMIFS(Sheet1!S71_OY1BudgetAmount,Sheet1!S71_SubMunicipalVoteNo,$AC:$AC,Sheet1!S71_ItemType,$AD:$AD)","v":0},{"$f":"SUMIFS(Sheet1!S71_OY2BudgetAmount,Sheet1!S71_SubMunicipalVoteNo,$AC:$AC,Sheet1!S71_ItemType,$AD:$AD)","v":0},null,null,null,null,null,null,null,null,null,null,null,null,null,null,null,null,null,910,"IR"]
[{"$f":"'Org structure'!A11","v":"Vote 10 - Sports & Recreation"},null,{"$f":"SUM(C105:C114)","v":203312},{"$f":"SUM(D105:D114)","v":13186},25482,50000,450000,450000,450000,472050,494236]
[{"$f":"'Org structure'!E102","v":"10.1 - [Name of sub-vote]"},null,{"$f":"SUMIFS(Sheet1!S71_PPPYearAmount,Sheet1!S71_SubMunicipalVoteNo,$AC:$AC,Sheet1!S71_ItemType,$AD:$AD)","v":0},{"$f":"SUMIFS(Sheet1!S71_PPYearAmount,Sheet1!S71_SubMunicipalVoteNo,$AC:$AC,Sheet1!S71_ItemType,$AD:$AD)","v":0},{"$f":"SUMIFS(Sheet1!S71_PYearAmount,Sheet1!S71_SubMunicipalVoteNo,$AC:$AC,Sheet1!S71_ItemType,$AD:$AD)","v":0},{"$f":"-SUMIFS(Sheet1!S71_OriginalBudAmnt,Sheet1!S71_SubMunicipalVoteNo,$AC:$AC,Sheet1!S71_ItemType,$AD:$AD)","v":0},{"$f":"-SUMIFS(Sheet1!S71_AdjustmentBudAmnt,Sheet1!S71_SubMunicipalVoteNo,$AC:$AC,Sheet1!S71_ItemType,$AD:$AD)","v":0},{"$f":"-SUMIFS(Sheet1!S71_AdjustmentBudAmnt,Sheet1!S71_SubMunicipalVoteNo,$AC:$AC,Sheet1!S71_ItemType,$AD:$AD)","v":0},{"$f":"SUMIFS(Sheet1!S71_ASBudgetAmount,Sheet1!S71_SubMunicipalVoteNo,$AC:$AC,Sheet1!S71_ItemType,$AD:$AD)","v":0},{"$f":"SUMIFS(Sheet1!S71_OY1BudgetAmount,Sheet1!S71_SubMunicipalVoteNo,$AC:$AC,Sheet1!S71_ItemType,$AD:$AD)","v":0},{"$f":"SUMIFS(Sheet1!S71_OY2BudgetAmount,Sheet1!S71_SubMunicipalVoteNo,$AC:$AC,Sheet1!S71_ItemType,$AD:$AD)","v":0},null,null,null,null,null,null,null,null,null,null,null,null,null,null,null,null,null,101,"IR"]
[{"$f":"'Org structure'!E103","v":"10.2 - Sports Grounds and Stadiums"},null,{"$f":"SUMIFS(Sheet1!S71_PPPYearAmount,Sheet1!S71_SubMunicipalVoteNo,$AC:$AC,Sheet1!S71_ItemType,$AD:$AD)","v":203312},{"$f":"SUMIFS(Sheet1!S71_PPYearAmount,Sheet1!S71_SubMunicipalVoteNo,$AC:$AC,Sheet1!S71_ItemType,$AD:$AD)","v":13186},{"$f":"SUMIFS(Sheet1!S71_PYearAmount,Sheet1!S71_SubMunicipalVoteNo,$AC:$AC,Sheet1!S71_ItemType,$AD:$AD)","v":25482},{"$f":"-SUMIFS(Sheet1!S71_OriginalBudAmnt,Sheet1!S71_SubMunicipalVoteNo,$AC:$AC,Sheet1!S71_ItemType,$AD:$AD)","v":50000},{"$f":"-SUMIFS(Sheet1!S71_AdjustmentBudAmnt,Sheet1!S71_SubMunicipalVoteNo,$AC:$AC,Sheet1!S71_ItemType,$AD:$AD)","v":450000},{"$f":"-SUMIFS(Sheet1!S71_AdjustmentBudAmnt,Sheet1!S71_SubMunicipalVoteNo,$AC:$AC,Sheet1!S71_ItemType,$AD:$AD)","v":450000},{"$f":"SUMIFS(Sheet1!S71_ASBudgetAmount,Sheet1!S71_SubMunicipalVoteNo,$AC:$AC,Sheet1!S71_ItemType,$AD:$AD)","v":450000},{"$f":"SUMIFS(Sheet1!S71_OY1BudgetAmount,Sheet1!S71_SubMunicipalVoteNo,$AC:$AC,Sheet1!S71_ItemType,$AD:$AD)","v":472050},{"$f":"SUMIFS(Sheet1!S71_OY2BudgetAmount,Sheet1!S71_SubMunicipalVoteNo,$AC:$AC,Sheet1!S71_ItemType,$AD:$AD)","v":494236},null,null,null,null,null,null,null,null,null,null,null,null,null,null,null,null,null,102,"IR"]
[{"$f":"'Org structure'!E104","v":"10.3 - [Name of sub-vote]"},null,{"$f":"SUMIFS(Sheet1!S71_PPPYearAmount,Sheet1!S71_SubMunicipalVoteNo,$AC:$AC,Sheet1!S71_ItemType,$AD:$AD)","v":0},{"$f":"SUMIFS(Sheet1!S71_PPYearAmount,Sheet1!S71_SubMunicipalVoteNo,$AC:$AC,Sheet1!S71_ItemType,$AD:$AD)","v":0},{"$f":"SUMIFS(Sheet1!S71_PYearAmount,Sheet1!S71_SubMunicipalVoteNo,$AC:$AC,Sheet1!S71_ItemType,$AD:$AD)","v":0},{"$f":"-SUMIFS(Sheet1!S71_OriginalBudAmnt,Sheet1!S71_SubMunicipalVoteNo,$AC:$AC,Sheet1!S71_ItemType,$AD:$AD)","v":0},{"$f":"-SUMIFS(Sheet1!S71_AdjustmentBudAmnt,Sheet1!S71_SubMunicipalVoteNo,$AC:$AC,Sheet1!S71_ItemType,$AD:$AD)","v":0},{"$f":"-SUMIFS(Sheet1!S71_AdjustmentBudAmnt,Sheet1!S71_SubMunicipalVoteNo,$AC:$AC,Sheet1!S71_ItemType,$AD:$AD)","v":0},{"$f":"SUMIFS(Sheet1!S71_ASBudgetAmount,Sheet1!S71_SubMunicipalVoteNo,$AC:$AC,Sheet1!S71_ItemType,$AD:$AD)","v":0},{"$f":"SUMIFS(Sheet1!S71_OY1BudgetAmount,Sheet1!S71_SubMunicipalVoteNo,$AC:$AC,Sheet1!S71_ItemType,$AD:$AD)","v":0},{"$f":"SUMIFS(Sheet1!S71_OY2BudgetAmount,Sheet1!S71_SubMunicipalVoteNo,$AC:$AC,Sheet1!S71_ItemType,$AD:$AD)","v":0},null,null,null,null,null,null,null,null,null,null,null,null,null,null,null,null,null,103,"IR"]
[{"$f":"'Org structure'!E105","v":"10.4 - [Name of sub-vote]"},null,{"$f":"SUMIFS(Sheet1!S71_PPPYearAmount,Sheet1!S71_SubMunicipalVoteNo,$AC:$AC,Sheet1!S71_ItemType,$AD:$AD)","v":0},{"$f":"SUMIFS(Sheet1!S71_PPYearAmount,Sheet1!S71_SubMunicipalVoteNo,$AC:$AC,Sheet1!S71_ItemType,$AD:$AD)","v":0},{"$f":"SUMIFS(Sheet1!S71_PYearAmount,Sheet1!S71_SubMunicipalVoteNo,$AC:$AC,Sheet1!S71_ItemType,$AD:$AD)","v":0},{"$f":"-SUMIFS(Sheet1!S71_OriginalBudAmnt,Sheet1!S71_SubMunicipalVoteNo,$AC:$AC,Sheet1!S71_ItemType,$AD:$AD)","v":0},{"$f":"-SUMIFS(Sheet1!S71_AdjustmentBudAmnt,Sheet1!S71_SubMunicipalVoteNo,$AC:$AC,Sheet1!S71_ItemType,$AD:$AD)","v":0},{"$f":"-SUMIFS(Sheet1!S71_AdjustmentBudAmnt,Sheet1!S71_SubMunicipalVoteNo,$AC:$AC,Sheet1!S71_ItemType,$AD:$AD)","v":0},{"$f":"SUMIFS(Sheet1!S71_ASBudgetAmount,Sheet1!S71_SubMunicipalVoteNo,$AC:$AC,Sheet1!S71_ItemType,$AD:$AD)","v":0},{"$f":"SUMIFS(Sheet1!S71_OY1BudgetAmount,Sheet1!S71_SubMunicipalVoteNo,$AC:$AC,Sheet1!S71_ItemType,$AD:$AD)","v":0},{"$f":"SUMIFS(Sheet1!S71_OY2BudgetAmount,Sheet1!S71_SubMunicipalVoteNo,$AC:$AC,Sheet1!S71_ItemType,$AD:$AD)","v":0},null,null,null,null,null,null,null,null,null,null,null,null,null,null,null,null,null,104,"IR"]
[{"$f":"'Org structure'!E106","v":"10.5 - [Name of sub-vote]"},null,{"$f":"SUMIFS(Sheet1!S71_PPPYearAmount,Sheet1!S71_SubMunicipalVoteNo,$AC:$AC,Sheet1!S71_ItemType,$AD:$AD)","v":0},{"$f":"SUMIFS(Sheet1!S71_PPYearAmount,Sheet1!S71_SubMunicipalVoteNo,$AC:$AC,Sheet1!S71_ItemType,$AD:$AD)","v":0},{"$f":"SUMIFS(Sheet1!S71_PYearAmount,Sheet1!S71_SubMunicipalVoteNo,$AC:$AC,Sheet1!S71_ItemType,$AD:$AD)","v":0},{"$f":"-SUMIFS(Sheet1!S71_OriginalBudAmnt,Sheet1!S71_SubMunicipalVoteNo,$AC:$AC,Sheet1!S71_ItemType,$AD:$AD)","v":0},{"$f":"-SUMIFS(Sheet1!S71_AdjustmentBudAmnt,Sheet1!S71_SubMunicipalVoteNo,$AC:$AC,Sheet1!S71_ItemType,$AD:$AD)","v":0},{"$f":"-SUMIFS(Sheet1!S71_AdjustmentBudAmnt,Sheet1!S71_SubMunicipalVoteNo,$AC:$AC,Sheet1!S71_ItemType,$AD:$AD)","v":0},{"$f":"SUMIFS(Sheet1!S71_ASBudgetAmount,Sheet1!S71_SubMunicipalVoteNo,$AC:$AC,Sheet1!S71_ItemType,$AD:$AD)","v":0},{"$f":"SUMIFS(Sheet1!S71_OY1BudgetAmount,Sheet1!S71_SubMunicipalVoteNo,$AC:$AC,Sheet1!S71_ItemType,$AD:$AD)","v":0},{"$f":"SUMIFS(Sheet1!S71_OY2BudgetAmount,Sheet1!S71_SubMunicipalVoteNo,$AC:$AC,Sheet1!S71_ItemType,$AD:$AD)","v":0},null,null,null,null,null,null,null,null,null,null,null,null,null,null,null,null,null,105,"IR"]
[{"$f":"'Org structure'!E107","v":"10.6 - [Name of sub-vote]"},null,{"$f":"SUMIFS(Sheet1!S71_PPPYearAmount,Sheet1!S71_SubMunicipalVoteNo,$AC:$AC,Sheet1!S71_ItemType,$AD:$AD)","v":0},{"$f":"SUMIFS(Sheet1!S71_PPYearAmount,Sheet1!S71_SubMunicipalVoteNo,$AC:$AC,Sheet1!S71_ItemType,$AD:$AD)","v":0},{"$f":"SUMIFS(Sheet1!S71_PYearAmount,Sheet1!S71_SubMunicipalVoteNo,$AC:$AC,Sheet1!S71_ItemType,$AD:$AD)","v":0},{"$f":"-SUMIFS(Sheet1!S71_OriginalBudAmnt,Sheet1!S71_SubMunicipalVoteNo,$AC:$AC,Sheet1!S71_ItemType,$AD:$AD)","v":0},{"$f":"-SUMIFS(Sheet1!S71_AdjustmentBudAmnt,Sheet1!S71_SubMunicipalVoteNo,$AC:$AC,Sheet1!S71_ItemType,$AD:$AD)","v":0},{"$f":"-SUMIFS(Sheet1!S71_AdjustmentBudAmnt,Sheet1!S71_SubMunicipalVoteNo,$AC:$AC,Sheet1!S71_ItemType,$AD:$AD)","v":0},{"$f":"SUMIFS(Sheet1!S71_ASBudgetAmount,Sheet1!S71_SubMunicipalVoteNo,$AC:$AC,Sheet1!S71_ItemType,$AD:$AD)","v":0},{"$f":"SUMIFS(Sheet1!S71_OY1BudgetAmount,Sheet1!S71_SubMunicipalVoteNo,$AC:$AC,Sheet1!S71_ItemType,$AD:$AD)","v":0},{"$f":"SUMIFS(Sheet1!S71_OY2BudgetAmount,Sheet1!S71_SubMunicipalVoteNo,$AC:$AC,Sheet1!S71_ItemType,$AD:$AD)","v":0},null,null,null,null,null,null,null,null,null,null,null,null,null,null,null,null,null,106,"IR"]
[{"$f":"'Org structure'!E108","v":"10.7 - [Name of sub-vote]"},null,{"$f":"SUMIFS(Sheet1!S71_PPPYearAmount,Sheet1!S71_SubMunicipalVoteNo,$AC:$AC,Sheet1!S71_ItemType,$AD:$AD)","v":0},{"$f":"SUMIFS(Sheet1!S71_PPYearAmount,Sheet1!S71_SubMunicipalVoteNo,$AC:$AC,Sheet1!S71_ItemType,$AD:$AD)","v":0},{"$f":"SUMIFS(Sheet1!S71_PYearAmount,Sheet1!S71_SubMunicipalVoteNo,$AC:$AC,Sheet1!S71_ItemType,$AD:$AD)","v":0},{"$f":"-SUMIFS(Sheet1!S71_OriginalBudAmnt,Sheet1!S71_SubMunicipalVoteNo,$AC:$AC,Sheet1!S71_ItemType,$AD:$AD)","v":0},{"$f":"-SUMIFS(Sheet1!S71_AdjustmentBudAmnt,Sheet1!S71_SubMunicipalVoteNo,$AC:$AC,Sheet1!S71_ItemType,$AD:$AD)","v":0},{"$f":"-SUMIFS(Sheet1!S71_AdjustmentBudAmnt,Sheet1!S71_SubMunicipalVoteNo,$AC:$AC,Sheet1!S71_ItemType,$AD:$AD)","v":0},{"$f":"SUMIFS(Sheet1!S71_ASBudgetAmount,Sheet1!S71_SubMunicipalVoteNo,$AC:$AC,Sheet1!S71_ItemType,$AD:$AD)","v":0},{"$f":"SUMIFS(Sheet1!S71_OY1BudgetAmount,Sheet1!S71_SubMunicipalVoteNo,$AC:$AC,Sheet1!S71_ItemType,$AD:$AD)","v":0},{"$f":"SUMIFS(Sheet1!S71_OY2BudgetAmount,Sheet1!S71_SubMunicipalVoteNo,$AC:$AC,Sheet1!S71_ItemType,$AD:$AD)","v":0},null,null,null,null,null,null,null,null,null,null,null,null,null,null,null,null,null,107,"IR"]
[{"$f":"'Org structure'!E109","v":"10.8 - [Name of sub-vote]"},null,{"$f":"SUMIFS(Sheet1!S71_PPPYearAmount,Sheet1!S71_SubMunicipalVoteNo,$AC:$AC,Sheet1!S71_ItemType,$AD:$AD)","v":0},{"$f":"SUMIFS(Sheet1!S71_PPYearAmount,Sheet1!S71_SubMunicipalVoteNo,$AC:$AC,Sheet1!S71_ItemType,$AD:$AD)","v":0},{"$f":"SUMIFS(Sheet1!S71_PYearAmount,Sheet1!S71_SubMunicipalVoteNo,$AC:$AC,Sheet1!S71_ItemType,$AD:$AD)","v":0},{"$f":"-SUMIFS(Sheet1!S71_OriginalBudAmnt,Sheet1!S71_SubMunicipalVoteNo,$AC:$AC,Sheet1!S71_ItemType,$AD:$AD)","v":0},{"$f":"-SUMIFS(Sheet1!S71_AdjustmentBudAmnt,Sheet1!S71_SubMunicipalVoteNo,$AC:$AC,Sheet1!S71_ItemType,$AD:$AD)","v":0},{"$f":"-SUMIFS(Sheet1!S71_AdjustmentBudAmnt,Sheet1!S71_SubMunicipalVoteNo,$AC:$AC,Sheet1!S71_ItemType,$AD:$AD)","v":0},{"$f":"SUMIFS(Sheet1!S71_ASBudgetAmount,Sheet1!S71_SubMunicipalVoteNo,$AC:$AC,Sheet1!S71_ItemType,$AD:$AD)","v":0},{"$f":"SUMIFS(Sheet1!S71_OY1BudgetAmount,Sheet1!S71_SubMunicipalVoteNo,$AC:$AC,Sheet1!S71_ItemType,$AD:$AD)","v":0},{"$f":"SUMIFS(Sheet1!S71_OY2BudgetAmount,Sheet1!S71_SubMunicipalVoteNo,$AC:$AC,Sheet1!S71_ItemType,$AD:$AD)","v":0},null,null,null,null,null,null,null,null,null,null,null,null,null,null,null,null,null,108,"IR"]
[{"$f":"'Org structure'!E110","v":"10.9 - [Name of sub-vote]"},null,{"$f":"SUMIFS(Sheet1!S71_PPPYearAmount,Sheet1!S71_SubMunicipalVoteNo,$AC:$AC,Sheet1!S71_ItemType,$AD:$AD)","v":0},{"$f":"SUMIFS(Sheet1!S71_PPYearAmount,Sheet1!S71_SubMunicipalVoteNo,$AC:$AC,Sheet1!S71_ItemType,$AD:$AD)","v":0},{"$f":"SUMIFS(Sheet1!S71_PYearAmount,Sheet1!S71_SubMunicipalVoteNo,$AC:$AC,Sheet1!S71_ItemType,$AD:$AD)","v":0},{"$f":"-SUMIFS(Sheet1!S71_OriginalBudAmnt,Sheet1!S71_SubMunicipalVoteNo,$AC:$AC,Sheet1!S71_ItemType,$AD:$AD)","v":0},{"$f":"-SUMIFS(Sheet1!S71_AdjustmentBudAmnt,Sheet1!S71_SubMunicipalVoteNo,$AC:$AC,Sheet1!S71_ItemType,$AD:$AD)","v":0},{"$f":"-SUMIFS(Sheet1!S71_AdjustmentBudAmnt,Sheet1!S71_SubMunicipalVoteNo,$AC:$AC,Sheet1!S71_ItemType,$AD:$AD)","v":0},{"$f":"SUMIFS(Sheet1!S71_ASBudgetAmount,Sheet1!S71_SubMunicipalVoteNo,$AC:$AC,Sheet1!S71_ItemType,$AD:$AD)","v":0},{"$f":"SUMIFS(Sheet1!S71_OY1BudgetAmount,Sheet1!S71_SubMunicipalVoteNo,$AC:$AC,Sheet1!S71_ItemType,$AD:$AD)","v":0},{"$f":"SUMIFS(Sheet1!S71_OY2BudgetAmount,Sheet1!S71_SubMunicipalVoteNo,$AC:$AC,Sheet1!S71_ItemType,$AD:$AD)","v":0},null,null,null,null,null,null,null,null,null,null,null,null,null,null,null,null,null,109,"IR"]
[{"$f":"'Org structure'!E111","v":"10.10 - [Name of sub-vote]"},null,{"$f":"SUMIFS(Sheet1!S71_PPPYearAmount,Sheet1!S71_SubMunicipalVoteNo,$AC:$AC,Sheet1!S71_ItemType,$AD:$AD)","v":0},{"$f":"SUMIFS(Sheet1!S71_PPYearAmount,Sheet1!S71_SubMunicipalVoteNo,$AC:$AC,Sheet1!S71_ItemType,$AD:$AD)","v":0},{"$f":"SUMIFS(Sheet1!S71_PYearAmount,Sheet1!S71_SubMunicipalVoteNo,$AC:$AC,Sheet1!S71_ItemType,$AD:$AD)","v":0},{"$f":"-SUMIFS(Sheet1!S71_OriginalBudAmnt,Sheet1!S71_SubMunicipalVoteNo,$AC:$AC,Sheet1!S71_ItemType,$AD:$AD)","v":0},{"$f":"-SUMIFS(Sheet1!S71_AdjustmentBudAmnt,Sheet1!S71_SubMunicipalVoteNo,$AC:$AC,Sheet1!S71_ItemType,$AD:$AD)","v":0},{"$f":"-SUMIFS(Sheet1!S71_AdjustmentBudAmnt,Sheet1!S71_SubMunicipalVoteNo,$AC:$AC,Sheet1!S71_ItemType,$AD:$AD)","v":0},{"$f":"SUMIFS(Sheet1!S71_ASBudgetAmount,Sheet1!S71_SubMunicipalVoteNo,$AC:$AC,Sheet1!S71_ItemType,$AD:$AD)","v":0},{"$f":"SUMIFS(Sheet1!S71_OY1BudgetAmount,Sheet1!S71_SubMunicipalVoteNo,$AC:$AC,Sheet1!S71_ItemType,$AD:$AD)","v":0},{"$f":"SUMIFS(Sheet1!S71_OY2BudgetAmount,Sheet1!S71_SubMunicipalVoteNo,$AC:$AC,Sheet1!S71_ItemType,$AD:$AD)","v":0},null,null,null,null,null,null,null,null,null,null,null,null,null,null,null,null,null,1010,"IR"]
[{"$f":"'Org structure'!A12","v":"Vote 11 - Water Management"},null,{"$f":"SUM(C116:C125)","v":0},{"$f":"SUM(D116:D125)","v":7620},0,0,0,0,0,0,0]
[{"$f":"'Org structure'!E113","v":"11.1 - Water Distribution"},null,{"$f":"SUMIFS(Sheet1!S71_PPPYearAmount,Sheet1!S71_SubMunicipalVoteNo,$AC:$AC,Sheet1!S71_ItemType,$AD:$AD)","v":0},{"$f":"SUMIFS(Sheet1!S71_PPYearAmount,Sheet1!S71_SubMunicipalVoteNo,$AC:$AC,Sheet1!S71_ItemType,$AD:$AD)","v":7620},{"$f":"SUMIFS(Sheet1!S71_PYearAmount,Sheet1!S71_SubMunicipalVoteNo,$AC:$AC,Sheet1!S71_ItemType,$AD:$AD)","v":0},{"$f":"-SUMIFS(Sheet1!S71_OriginalBudAmnt,Sheet1!S71_SubMunicipalVoteNo,$AC:$AC,Sheet1!S71_ItemType,$AD:$AD)","v":0},{"$f":"-SUMIFS(Sheet1!S71_AdjustmentBudAmnt,Sheet1!S71_SubMunicipalVoteNo,$AC:$AC,Sheet1!S71_ItemType,$AD:$AD)","v":0},{"$f":"-SUMIFS(Sheet1!S71_AdjustmentBudAmnt,Sheet1!S71_SubMunicipalVoteNo,$AC:$AC,Sheet1!S71_ItemType,$AD:$AD)","v":0},{"$f":"SUMIFS(Sheet1!S71_ASBudgetAmount,Sheet1!S71_SubMunicipalVoteNo,$AC:$AC,Sheet1!S71_ItemType,$AD:$AD)","v":0},{"$f":"SUMIFS(Sheet1!S71_OY1BudgetAmount,Sheet1!S71_SubMunicipalVoteNo,$AC:$AC,Sheet1!S71_ItemType,$AD:$AD)","v":0},{"$f":"SUMIFS(Sheet1!S71_OY2BudgetAmount,Sheet1!S71_SubMunicipalVoteNo,$AC:$AC,Sheet1!S71_ItemType,$AD:$AD)","v":0},null,null,null,null,null,null,null,null,null,null,null,null,null,null,null,null,null,111,"IR"]
[{"$f":"'Org structure'!E114","v":"11.2 - [Name of sub-vote]"},null,{"$f":"SUMIFS(Sheet1!S71_PPPYearAmount,Sheet1!S71_SubMunicipalVoteNo,$AC:$AC,Sheet1!S71_ItemType,$AD:$AD)","v":0},{"$f":"SUMIFS(Sheet1!S71_PPYearAmount,Sheet1!S71_SubMunicipalVoteNo,$AC:$AC,Sheet1!S71_ItemType,$AD:$AD)","v":0},{"$f":"SUMIFS(Sheet1!S71_PYearAmount,Sheet1!S71_SubMunicipalVoteNo,$AC:$AC,Sheet1!S71_ItemType,$AD:$AD)","v":0},{"$f":"-SUMIFS(Sheet1!S71_OriginalBudAmnt,Sheet1!S71_SubMunicipalVoteNo,$AC:$AC,Sheet1!S71_ItemType,$AD:$AD)","v":0},{"$f":"-SUMIFS(Sheet1!S71_AdjustmentBudAmnt,Sheet1!S71_SubMunicipalVoteNo,$AC:$AC,Sheet1!S71_ItemType,$AD:$AD)","v":0},{"$f":"-SUMIFS(Sheet1!S71_AdjustmentBudAmnt,Sheet1!S71_SubMunicipalVoteNo,$AC:$AC,Sheet1!S71_ItemType,$AD:$AD)","v":0},{"$f":"SUMIFS(Sheet1!S71_ASBudgetAmount,Sheet1!S71_SubMunicipalVoteNo,$AC:$AC,Sheet1!S71_ItemType,$AD:$AD)","v":0},{"$f":"SUMIFS(Sheet1!S71_OY1BudgetAmount,Sheet1!S71_SubMunicipalVoteNo,$AC:$AC,Sheet1!S71_ItemType,$AD:$AD)","v":0},{"$f":"SUMIFS(Sheet1!S71_OY2BudgetAmount,Sheet1!S71_SubMunicipalVoteNo,$AC:$AC,Sheet1!S71_ItemType,$AD:$AD)","v":0},null,null,null,null,null,null,null,null,null,null,null,null,null,null,null,null,null,112,"IR"]
[{"$f":"'Org structure'!E115","v":"11.3 - [Name of sub-vote]"},null,{"$f":"SUMIFS(Sheet1!S71_PPPYearAmount,Sheet1!S71_SubMunicipalVoteNo,$AC:$AC,Sheet1!S71_ItemType,$AD:$AD)","v":0},{"$f":"SUMIFS(Sheet1!S71_PPYearAmount,Sheet1!S71_SubMunicipalVoteNo,$AC:$AC,Sheet1!S71_ItemType,$AD:$AD)","v":0},{"$f":"SUMIFS(Sheet1!S71_PYearAmount,Sheet1!S71_SubMunicipalVoteNo,$AC:$AC,Sheet1!S71_ItemType,$AD:$AD)","v":0},{"$f":"-SUMIFS(Sheet1!S71_OriginalBudAmnt,Sheet1!S71_SubMunicipalVoteNo,$AC:$AC,Sheet1!S71_ItemType,$AD:$AD)","v":0},{"$f":"-SUMIFS(Sheet1!S71_AdjustmentBudAmnt,Sheet1!S71_SubMunicipalVoteNo,$AC:$AC,Sheet1!S71_ItemType,$AD:$AD)","v":0},{"$f":"-SUMIFS(Sheet1!S71_AdjustmentBudAmnt,Sheet1!S71_SubMunicipalVoteNo,$AC:$AC,Sheet1!S71_ItemType,$AD:$AD)","v":0},{"$f":"SUMIFS(Sheet1!S71_ASBudgetAmount,Sheet1!S71_SubMunicipalVoteNo,$AC:$AC,Sheet1!S71_ItemType,$AD:$AD)","v":0},{"$f":"SUMIFS(Sheet1!S71_OY1BudgetAmount,Sheet1!S71_SubMunicipalVoteNo,$AC:$AC,Sheet1!S71_ItemType,$AD:$AD)","v":0},{"$f":"SUMIFS(Sheet1!S71_OY2BudgetAmount,Sheet1!S71_SubMunicipalVoteNo,$AC:$AC,Sheet1!S71_ItemType,$AD:$AD)","v":0},null,null,null,null,null,null,null,null,null,null,null,null,null,null,null,null,null,113,"IR"]
[{"$f":"'Org structure'!E116","v":"11.4 - [Name of sub-vote]"},null,{"$f":"SUMIFS(Sheet1!S71_PPPYearAmount,Sheet1!S71_SubMunicipalVoteNo,$AC:$AC,Sheet1!S71_ItemType,$AD:$AD)","v":0},{"$f":"SUMIFS(Sheet1!S71_PPYearAmount,Sheet1!S71_SubMunicipalVoteNo,$AC:$AC,Sheet1!S71_ItemType,$AD:$AD)","v":0},{"$f":"SUMIFS(Sheet1!S71_PYearAmount,Sheet1!S71_SubMunicipalVoteNo,$AC:$AC,Sheet1!S71_ItemType,$AD:$AD)","v":0},{"$f":"-SUMIFS(Sheet1!S71_OriginalBudAmnt,Sheet1!S71_SubMunicipalVoteNo,$AC:$AC,Sheet1!S71_ItemType,$AD:$AD)","v":0},{"$f":"-SUMIFS(Sheet1!S71_AdjustmentBudAmnt,Sheet1!S71_SubMunicipalVoteNo,$AC:$AC,Sheet1!S71_ItemType,$AD:$AD)","v":0},{"$f":"-SUMIFS(Sheet1!S71_AdjustmentBudAmnt,Sheet1!S71_SubMunicipalVoteNo,$AC:$AC,Sheet1!S71_ItemType,$AD:$AD)","v":0},{"$f":"SUMIFS(Sheet1!S71_ASBudgetAmount,Sheet1!S71_SubMunicipalVoteNo,$AC:$AC,Sheet1!S71_ItemType,$AD:$AD)","v":0},{"$f":"SUMIFS(Sheet1!S71_OY1BudgetAmount,Sheet1!S71_SubMunicipalVoteNo,$AC:$AC,Sheet1!S71_ItemType,$AD:$AD)","v":0},{"$f":"SUMIFS(Sheet1!S71_OY2BudgetAmount,Sheet1!S71_SubMunicipalVoteNo,$AC:$AC,Sheet1!S71_ItemType,$AD:$AD)","v":0},null,null,null,null,null,null,null,null,null,null,null,null,null,null,null,null,null,114,"IR"]
[{"$f":"'Org structure'!E117","v":"11.5 - [Name of sub-vote]"},null,{"$f":"SUMIFS(Sheet1!S71_PPPYearAmount,Sheet1!S71_SubMunicipalVoteNo,$AC:$AC,Sheet1!S71_ItemType,$AD:$AD)","v":0},{"$f":"SUMIFS(Sheet1!S71_PPYearAmount,Sheet1!S71_SubMunicipalVoteNo,$AC:$AC,Sheet1!S71_ItemType,$AD:$AD)","v":0},{"$f":"SUMIFS(Sheet1!S71_PYearAmount,Sheet1!S71_SubMunicipalVoteNo,$AC:$AC,Sheet1!S71_ItemType,$AD:$AD)","v":0},{"$f":"-SUMIFS(Sheet1!S71_OriginalBudAmnt,Sheet1!S71_SubMunicipalVoteNo,$AC:$AC,Sheet1!S71_ItemType,$AD:$AD)","v":0},{"$f":"-SUMIFS(Sheet1!S71_AdjustmentBudAmnt,Sheet1!S71_SubMunicipalVoteNo,$AC:$AC,Sheet1!S71_ItemType,$AD:$AD)","v":0},{"$f":"-SUMIFS(Sheet1!S71_AdjustmentBudAmnt,Sheet1!S71_SubMunicipalVoteNo,$AC:$AC,Sheet1!S71_ItemType,$AD:$AD)","v":0},{"$f":"SUMIFS(Sheet1!S71_ASBudgetAmount,Sheet1!S71_SubMunicipalVoteNo,$AC:$AC,Sheet1!S71_ItemType,$AD:$AD)","v":0},{"$f":"SUMIFS(Sheet1!S71_OY1BudgetAmount,Sheet1!S71_SubMunicipalVoteNo,$AC:$AC,Sheet1!S71_ItemType,$AD:$AD)","v":0},{"$f":"SUMIFS(Sheet1!S71_OY2BudgetAmount,Sheet1!S71_SubMunicipalVoteNo,$AC:$AC,Sheet1!S71_ItemType,$AD:$AD)","v":0},null,null,null,null,null,null,null,null,null,null,null,null,null,null,null,null,null,115,"IR"]
[{"$f":"'Org structure'!E118","v":"11.6 - [Name of sub-vote]"},null,{"$f":"SUMIFS(Sheet1!S71_PPPYearAmount,Sheet1!S71_SubMunicipalVoteNo,$AC:$AC,Sheet1!S71_ItemType,$AD:$AD)","v":0},{"$f":"SUMIFS(Sheet1!S71_PPYearAmount,Sheet1!S71_SubMunicipalVoteNo,$AC:$AC,Sheet1!S71_ItemType,$AD:$AD)","v":0},{"$f":"SUMIFS(Sheet1!S71_PYearAmount,Sheet1!S71_SubMunicipalVoteNo,$AC:$AC,Sheet1!S71_ItemType,$AD:$AD)","v":0},{"$f":"-SUMIFS(Sheet1!S71_OriginalBudAmnt,Sheet1!S71_SubMunicipalVoteNo,$AC:$AC,Sheet1!S71_ItemType,$AD:$AD)","v":0},{"$f":"-SUMIFS(Sheet1!S71_AdjustmentBudAmnt,Sheet1!S71_SubMunicipalVoteNo,$AC:$AC,Sheet1!S71_ItemType,$AD:$AD)","v":0},{"$f":"-SUMIFS(Sheet1!S71_AdjustmentBudAmnt,Sheet1!S71_SubMunicipalVoteNo,$AC:$AC,Sheet1!S71_ItemType,$AD:$AD)","v":0},{"$f":"SUMIFS(Sheet1!S71_ASBudgetAmount,Sheet1!S71_SubMunicipalVoteNo,$AC:$AC,Sheet1!S71_ItemType,$AD:$AD)","v":0},{"$f":"SUMIFS(Sheet1!S71_OY1BudgetAmount,Sheet1!S71_SubMunicipalVoteNo,$AC:$AC,Sheet1!S71_ItemType,$AD:$AD)","v":0},{"$f":"SUMIFS(Sheet1!S71_OY2BudgetAmount,Sheet1!S71_SubMunicipalVoteNo,$AC:$AC,Sheet1!S71_ItemType,$AD:$AD)","v":0},null,null,null,null,null,null,null,null,null,null,null,null,null,null,null,null,null,116,"IR"]
[{"$f":"'Org structure'!E119","v":"11.7 - [Name of sub-vote]"},null,{"$f":"SUMIFS(Sheet1!S71_PPPYearAmount,Sheet1!S71_SubMunicipalVoteNo,$AC:$AC,Sheet1!S71_ItemType,$AD:$AD)","v":0},{"$f":"SUMIFS(Sheet1!S71_PPYearAmount,Sheet1!S71_SubMunicipalVoteNo,$AC:$AC,Sheet1!S71_ItemType,$AD:$AD)","v":0},{"$f":"SUMIFS(Sheet1!S71_PYearAmount,Sheet1!S71_SubMunicipalVoteNo,$AC:$AC,Sheet1!S71_ItemType,$AD:$AD)","v":0},{"$f":"-SUMIFS(Sheet1!S71_OriginalBudAmnt,Sheet1!S71_SubMunicipalVoteNo,$AC:$AC,Sheet1!S71_ItemType,$AD:$AD)","v":0},{"$f":"-SUMIFS(Sheet1!S71_AdjustmentBudAmnt,Sheet1!S71_SubMunicipalVoteNo,$AC:$AC,Sheet1!S71_ItemType,$AD:$AD)","v":0},{"$f":"-SUMIFS(Sheet1!S71_AdjustmentBudAmnt,Sheet1!S71_SubMunicipalVoteNo,$AC:$AC,Sheet1!S71_ItemType,$AD:$AD)","v":0},{"$f":"SUMIFS(Sheet1!S71_ASBudgetAmount,Sheet1!S71_SubMunicipalVoteNo,$AC:$AC,Sheet1!S71_ItemType,$AD:$AD)","v":0},{"$f":"SUMIFS(Sheet1!S71_OY1BudgetAmount,Sheet1!S71_SubMunicipalVoteNo,$AC:$AC,Sheet1!S71_ItemType,$AD:$AD)","v":0},{"$f":"SUMIFS(Sheet1!S71_OY2BudgetAmount,Sheet1!S71_SubMunicipalVoteNo,$AC:$AC,Sheet1!S71_ItemType,$AD:$AD)","v":0},null,null,null,null,null,null,null,null,null,null,null,null,null,null,null,null,null,117,"IR"]
[{"$f":"'Org structure'!E120","v":"11.8 - [Name of sub-vote]"},null,{"$f":"SUMIFS(Sheet1!S71_PPPYearAmount,Sheet1!S71_SubMunicipalVoteNo,$AC:$AC,Sheet1!S71_ItemType,$AD:$AD)","v":0},{"$f":"SUMIFS(Sheet1!S71_PPYearAmount,Sheet1!S71_SubMunicipalVoteNo,$AC:$AC,Sheet1!S71_ItemType,$AD:$AD)","v":0},{"$f":"SUMIFS(Sheet1!S71_PYearAmount,Sheet1!S71_SubMunicipalVoteNo,$AC:$AC,Sheet1!S71_ItemType,$AD:$AD)","v":0},{"$f":"-SUMIFS(Sheet1!S71_OriginalBudAmnt,Sheet1!S71_SubMunicipalVoteNo,$AC:$AC,Sheet1!S71_ItemType,$AD:$AD)","v":0},{"$f":"-SUMIFS(Sheet1!S71_AdjustmentBudAmnt,Sheet1!S71_SubMunicipalVoteNo,$AC:$AC,Sheet1!S71_ItemType,$AD:$AD)","v":0},{"$f":"-SUMIFS(Sheet1!S71_AdjustmentBudAmnt,Sheet1!S71_SubMunicipalVoteNo,$AC:$AC,Sheet1!S71_ItemType,$AD:$AD)","v":0},{"$f":"SUMIFS(Sheet1!S71_ASBudgetAmount,Sheet1!S71_SubMunicipalVoteNo,$AC:$AC,Sheet1!S71_ItemType,$AD:$AD)","v":0},{"$f":"SUMIFS(Sheet1!S71_OY1BudgetAmount,Sheet1!S71_SubMunicipalVoteNo,$AC:$AC,Sheet1!S71_ItemType,$AD:$AD)","v":0},{"$f":"SUMIFS(Sheet1!S71_OY2BudgetAmount,Sheet1!S71_SubMunicipalVoteNo,$AC:$AC,Sheet1!S71_ItemType,$AD:$AD)","v":0},null,null,null,null,null,null,null,null,null,null,null,null,null,null,null,null,null,118,"IR"]
[{"$f":"'Org structure'!E121","v":"11.9 - [Name of sub-vote]"},null,{"$f":"SUMIFS(Sheet1!S71_PPPYearAmount,Sheet1!S71_SubMunicipalVoteNo,$AC:$AC,Sheet1!S71_ItemType,$AD:$AD)","v":0},{"$f":"SUMIFS(Sheet1!S71_PPYearAmount,Sheet1!S71_SubMunicipalVoteNo,$AC:$AC,Sheet1!S71_ItemType,$AD:$AD)","v":0},{"$f":"SUMIFS(Sheet1!S71_PYearAmount,Sheet1!S71_SubMunicipalVoteNo,$AC:$AC,Sheet1!S71_ItemType,$AD:$AD)","v":0},{"$f":"-SUMIFS(Sheet1!S71_OriginalBudAmnt,Sheet1!S71_SubMunicipalVoteNo,$AC:$AC,Sheet1!S71_ItemType,$AD:$AD)","v":0},{"$f":"-SUMIFS(Sheet1!S71_AdjustmentBudAmnt,Sheet1!S71_SubMunicipalVoteNo,$AC:$AC,Sheet1!S71_ItemType,$AD:$AD)","v":0},{"$f":"-SUMIFS(Sheet1!S71_AdjustmentBudAmnt,Sheet1!S71_SubMunicipalVoteNo,$AC:$AC,Sheet1!S71_ItemType,$AD:$AD)","v":0},{"$f":"SUMIFS(Sheet1!S71_ASBudgetAmount,Sheet1!S71_SubMunicipalVoteNo,$AC:$AC,Sheet1!S71_ItemType,$AD:$AD)","v":0},{"$f":"SUMIFS(Sheet1!S71_OY1BudgetAmount,Sheet1!S71_SubMunicipalVoteNo,$AC:$AC,Sheet1!S71_ItemType,$AD:$AD)","v":0},{"$f":"SUMIFS(Sheet1!S71_OY2BudgetAmount,Sheet1!S71_SubMunicipalVoteNo,$AC:$AC,Sheet1!S71_ItemType,$AD:$AD)","v":0},null,null,null,null,null,null,null,null,null,null,null,null,null,null,null,null,null,119,"IR"]
[{"$f":"'Org structure'!E122","v":"11.10 - [Name of sub-vote]"},null,{"$f":"SUMIFS(Sheet1!S71_PPPYearAmount,Sheet1!S71_SubMunicipalVoteNo,$AC:$AC,Sheet1!S71_ItemType,$AD:$AD)","v":0},{"$f":"SUMIFS(Sheet1!S71_PPYearAmount,Sheet1!S71_SubMunicipalVoteNo,$AC:$AC,Sheet1!S71_ItemType,$AD:$AD)","v":0},{"$f":"SUMIFS(Sheet1!S71_PYearAmount,Sheet1!S71_SubMunicipalVoteNo,$AC:$AC,Sheet1!S71_ItemType,$AD:$AD)","v":0},{"$f":"-SUMIFS(Sheet1!S71_OriginalBudAmnt,Sheet1!S71_SubMunicipalVoteNo,$AC:$AC,Sheet1!S71_ItemType,$AD:$AD)","v":0},{"$f":"-SUMIFS(Sheet1!S71_AdjustmentBudAmnt,Sheet1!S71_SubMunicipalVoteNo,$AC:$AC,Sheet1!S71_ItemType,$AD:$AD)","v":0},{"$f":"-SUMIFS(Sheet1!S71_AdjustmentBudAmnt,Sheet1!S71_SubMunicipalVoteNo,$AC:$AC,Sheet1!S71_ItemType,$AD:$AD)","v":0},{"$f":"SUMIFS(Sheet1!S71_ASBudgetAmount,Sheet1!S71_SubMunicipalVoteNo,$AC:$AC,Sheet1!S71_ItemType,$AD:$AD)","v":0},{"$f":"SUMIFS(Sheet1!S71_OY1BudgetAmount,Sheet1!S71_SubMunicipalVoteNo,$AC:$AC,Sheet1!S71_ItemType,$AD:$AD)","v":0},{"$f":"SUMIFS(Sheet1!S71_OY2BudgetAmount,Sheet1!S71_SubMunicipalVoteNo,$AC:$AC,Sheet1!S71_ItemType,$AD:$AD)","v":0},null,null,null,null,null,null,null,null,null,null,null,null,null,null,null,null,null,1110,"IR"]
[{"$f":"'Org structure'!A13","v":"Vote 12 - Waste Water Management"},null,{"$f":"SUM(C127:C136)","v":0},{"$f":"SUM(D127:D136)","v":3355},0,0,0,0,0,0,0]
[{"$f":"'Org structure'!E124","v":"12.1 - Sewerage"},null,{"$f":"SUMIFS(Sheet1!S71_PPPYearAmount,Sheet1!S71_SubMunicipalVoteNo,$AC:$AC,Sheet1!S71_ItemType,$AD:$AD)","v":0},{"$f":"SUMIFS(Sheet1!S71_PPYearAmount,Sheet1!S71_SubMunicipalVoteNo,$AC:$AC,Sheet1!S71_ItemType,$AD:$AD)","v":3355},{"$f":"SUMIFS(Sheet1!S71_PYearAmount,Sheet1!S71_SubMunicipalVoteNo,$AC:$AC,Sheet1!S71_ItemType,$AD:$AD)","v":0},{"$f":"-SUMIFS(Sheet1!S71_OriginalBudAmnt,Sheet1!S71_SubMunicipalVoteNo,$AC:$AC,Sheet1!S71_ItemType,$AD:$AD)","v":0},{"$f":"-SUMIFS(Sheet1!S71_AdjustmentBudAmnt,Sheet1!S71_SubMunicipalVoteNo,$AC:$AC,Sheet1!S71_ItemType,$AD:$AD)","v":0},{"$f":"-SUMIFS(Sheet1!S71_AdjustmentBudAmnt,Sheet1!S71_SubMunicipalVoteNo,$AC:$AC,Sheet1!S71_ItemType,$AD:$AD)","v":0},{"$f":"SUMIFS(Sheet1!S71_ASBudgetAmount,Sheet1!S71_SubMunicipalVoteNo,$AC:$AC,Sheet1!S71_ItemType,$AD:$AD)","v":0},{"$f":"SUMIFS(Sheet1!S71_OY1BudgetAmount,Sheet1!S71_SubMunicipalVoteNo,$AC:$AC,Sheet1!S71_ItemType,$AD:$AD)","v":0},{"$f":"SUMIFS(Sheet1!S71_OY2BudgetAmount,Sheet1!S71_SubMunicipalVoteNo,$AC:$AC,Sheet1!S71_ItemType,$AD:$AD)","v":0},null,null,null,null,null,null,null,null,null,null,null,null,null,null,null,null,null,121,"IR"]
[{"$f":"'Org structure'!E125","v":"12.2 - [Name of sub-vote]"},null,{"$f":"SUMIFS(Sheet1!S71_PPPYearAmount,Sheet1!S71_SubMunicipalVoteNo,$AC:$AC,Sheet1!S71_ItemType,$AD:$AD)","v":0},{"$f":"SUMIFS(Sheet1!S71_PPYearAmount,Sheet1!S71_SubMunicipalVoteNo,$AC:$AC,Sheet1!S71_ItemType,$AD:$AD)","v":0},{"$f":"SUMIFS(Sheet1!S71_PYearAmount,Sheet1!S71_SubMunicipalVoteNo,$AC:$AC,Sheet1!S71_ItemType,$AD:$AD)","v":0},{"$f":"-SUMIFS(Sheet1!S71_OriginalBudAmnt,Sheet1!S71_SubMunicipalVoteNo,$AC:$AC,Sheet1!S71_ItemType,$AD:$AD)","v":0},{"$f":"-SUMIFS(Sheet1!S71_AdjustmentBudAmnt,Sheet1!S71_SubMunicipalVoteNo,$AC:$AC,Sheet1!S71_ItemType,$AD:$AD)","v":0},{"$f":"-SUMIFS(Sheet1!S71_AdjustmentBudAmnt,Sheet1!S71_SubMunicipalVoteNo,$AC:$AC,Sheet1!S71_ItemType,$AD:$AD)","v":0},{"$f":"SUMIFS(Sheet1!S71_ASBudgetAmount,Sheet1!S71_SubMunicipalVoteNo,$AC:$AC,Sheet1!S71_ItemType,$AD:$AD)","v":0},{"$f":"SUMIFS(Sheet1!S71_OY1BudgetAmount,Sheet1!S71_SubMunicipalVoteNo,$AC:$AC,Sheet1!S71_ItemType,$AD:$AD)","v":0},{"$f":"SUMIFS(Sheet1!S71_OY2BudgetAmount,Sheet1!S71_SubMunicipalVoteNo,$AC:$AC,Sheet1!S71_ItemType,$AD:$AD)","v":0},null,null,null,null,null,null,null,null,null,null,null,null,null,null,null,null,null,122,"IR"]
[{"$f":"'Org structure'!E126","v":"12.3 - [Name of sub-vote]"},null,{"$f":"SUMIFS(Sheet1!S71_PPPYearAmount,Sheet1!S71_SubMunicipalVoteNo,$AC:$AC,Sheet1!S71_ItemType,$AD:$AD)","v":0},{"$f":"SUMIFS(Sheet1!S71_PPYearAmount,Sheet1!S71_SubMunicipalVoteNo,$AC:$AC,Sheet1!S71_ItemType,$AD:$AD)","v":0},{"$f":"SUMIFS(Sheet1!S71_PYearAmount,Sheet1!S71_SubMunicipalVoteNo,$AC:$AC,Sheet1!S71_ItemType,$AD:$AD)","v":0},{"$f":"-SUMIFS(Sheet1!S71_OriginalBudAmnt,Sheet1!S71_SubMunicipalVoteNo,$AC:$AC,Sheet1!S71_ItemType,$AD:$AD)","v":0},{"$f":"-SUMIFS(Sheet1!S71_AdjustmentBudAmnt,Sheet1!S71_SubMunicipalVoteNo,$AC:$AC,Sheet1!S71_ItemType,$AD:$AD)","v":0},{"$f":"-SUMIFS(Sheet1!S71_AdjustmentBudAmnt,Sheet1!S71_SubMunicipalVoteNo,$AC:$AC,Sheet1!S71_ItemType,$AD:$AD)","v":0},{"$f":"SUMIFS(Sheet1!S71_ASBudgetAmount,Sheet1!S71_SubMunicipalVoteNo,$AC:$AC,Sheet1!S71_ItemType,$AD:$AD)","v":0},{"$f":"SUMIFS(Sheet1!S71_OY1BudgetAmount,Sheet1!S71_SubMunicipalVoteNo,$AC:$AC,Sheet1!S71_ItemType,$AD:$AD)","v":0},{"$f":"SUMIFS(Sheet1!S71_OY2BudgetAmount,Sheet1!S71_SubMunicipalVoteNo,$AC:$AC,Sheet1!S71_ItemType,$AD:$AD)","v":0},null,null,null,null,null,null,null,null,null,null,null,null,null,null,null,null,null,123,"IR"]
[{"$f":"'Org structure'!E127","v":"12.4 - [Name of sub-vote]"},null,{"$f":"SUMIFS(Sheet1!S71_PPPYearAmount,Sheet1!S71_SubMunicipalVoteNo,$AC:$AC,Sheet1!S71_ItemType,$AD:$AD)","v":0},{"$f":"SUMIFS(Sheet1!S71_PPYearAmount,Sheet1!S71_SubMunicipalVoteNo,$AC:$AC,Sheet1!S71_ItemType,$AD:$AD)","v":0},{"$f":"SUMIFS(Sheet1!S71_PYearAmount,Sheet1!S71_SubMunicipalVoteNo,$AC:$AC,Sheet1!S71_ItemType,$AD:$AD)","v":0},{"$f":"-SUMIFS(Sheet1!S71_OriginalBudAmnt,Sheet1!S71_SubMunicipalVoteNo,$AC:$AC,Sheet1!S71_ItemType,$AD:$AD)","v":0},{"$f":"-SUMIFS(Sheet1!S71_AdjustmentBudAmnt,Sheet1!S71_SubMunicipalVoteNo,$AC:$AC,Sheet1!S71_ItemType,$AD:$AD)","v":0},{"$f":"-SUMIFS(Sheet1!S71_AdjustmentBudAmnt,Sheet1!S71_SubMunicipalVoteNo,$AC:$AC,Sheet1!S71_ItemType,$AD:$AD)","v":0},{"$f":"SUMIFS(Sheet1!S71_ASBudgetAmount,Sheet1!S71_SubMunicipalVoteNo,$AC:$AC,Sheet1!S71_ItemType,$AD:$AD)","v":0},{"$f":"SUMIFS(Sheet1!S71_OY1BudgetAmount,Sheet1!S71_SubMunicipalVoteNo,$AC:$AC,Sheet1!S71_ItemType,$AD:$AD)","v":0},{"$f":"SUMIFS(Sheet1!S71_OY2BudgetAmount,Sheet1!S71_SubMunicipalVoteNo,$AC:$AC,Sheet1!S71_ItemType,$AD:$AD)","v":0},null,null,null,null,null,null,null,null,null,null,null,null,null,null,null,null,null,124,"IR"]
[{"$f":"'Org structure'!E128","v":"12.5 - [Name of sub-vote]"},null,{"$f":"SUMIFS(Sheet1!S71_PPPYearAmount,Sheet1!S71_SubMunicipalVoteNo,$AC:$AC,Sheet1!S71_ItemType,$AD:$AD)","v":0},{"$f":"SUMIFS(Sheet1!S71_PPYearAmount,Sheet1!S71_SubMunicipalVoteNo,$AC:$AC,Sheet1!S71_ItemType,$AD:$AD)","v":0},{"$f":"SUMIFS(Sheet1!S71_PYearAmount,Sheet1!S71_SubMunicipalVoteNo,$AC:$AC,Sheet1!S71_ItemType,$AD:$AD)","v":0},{"$f":"-SUMIFS(Sheet1!S71_OriginalBudAmnt,Sheet1!S71_SubMunicipalVoteNo,$AC:$AC,Sheet1!S71_ItemType,$AD:$AD)","v":0},{"$f":"-SUMIFS(Sheet1!S71_AdjustmentBudAmnt,Sheet1!S71_SubMunicipalVoteNo,$AC:$AC,Sheet1!S71_ItemType,$AD:$AD)","v":0},{"$f":"-SUMIFS(Sheet1!S71_AdjustmentBudAmnt,Sheet1!S71_SubMunicipalVoteNo,$AC:$AC,Sheet1!S71_ItemType,$AD:$AD)","v":0},{"$f":"SUMIFS(Sheet1!S71_ASBudgetAmount,Sheet1!S71_SubMunicipalVoteNo,$AC:$AC,Sheet1!S71_ItemType,$AD:$AD)","v":0},{"$f":"SUMIFS(Sheet1!S71_OY1BudgetAmount,Sheet1!S71_SubMunicipalVoteNo,$AC:$AC,Sheet1!S71_ItemType,$AD:$AD)","v":0},{"$f":"SUMIFS(Sheet1!S71_OY2BudgetAmount,Sheet1!S71_SubMunicipalVoteNo,$AC:$AC,Sheet1!S71_ItemType,$AD:$AD)","v":0},null,null,null,null,null,null,null,null,null,null,null,null,null,null,null,null,null,125,"IR"]
[{"$f":"'Org structure'!E129","v":"12.6 - [Name of sub-vote]"},null,{"$f":"SUMIFS(Sheet1!S71_PPPYearAmount,Sheet1!S71_SubMunicipalVoteNo,$AC:$AC,Sheet1!S71_ItemType,$AD:$AD)","v":0},{"$f":"SUMIFS(Sheet1!S71_PPYearAmount,Sheet1!S71_SubMunicipalVoteNo,$AC:$AC,Sheet1!S71_ItemType,$AD:$AD)","v":0},{"$f":"SUMIFS(Sheet1!S71_PYearAmount,Sheet1!S71_SubMunicipalVoteNo,$AC:$AC,Sheet1!S71_ItemType,$AD:$AD)","v":0},{"$f":"-SUMIFS(Sheet1!S71_OriginalBudAmnt,Sheet1!S71_SubMunicipalVoteNo,$AC:$AC,Sheet1!S71_ItemType,$AD:$AD)","v":0},{"$f":"-SUMIFS(Sheet1!S71_AdjustmentBudAmnt,Sheet1!S71_SubMunicipalVoteNo,$AC:$AC,Sheet1!S71_ItemType,$AD:$AD)","v":0},{"$f":"-SUMIFS(Sheet1!S71_AdjustmentBudAmnt,Sheet1!S71_SubMunicipalVoteNo,$AC:$AC,Sheet1!S71_ItemType,$AD:$AD)","v":0},{"$f":"SUMIFS(Sheet1!S71_ASBudgetAmount,Sheet1!S71_SubMunicipalVoteNo,$AC:$AC,Sheet1!S71_ItemType,$AD:$AD)","v":0},{"$f":"SUMIFS(Sheet1!S71_OY1BudgetAmount,Sheet1!S71_SubMunicipalVoteNo,$AC:$AC,Sheet1!S71_ItemType,$AD:$AD)","v":0},{"$f":"SUMIFS(Sheet1!S71_OY2BudgetAmount,Sheet1!S71_SubMunicipalVoteNo,$AC:$AC,Sheet1!S71_ItemType,$AD:$AD)","v":0},null,null,null,null,null,null,null,null,null,null,null,null,null,null,null,null,null,126,"IR"]
[{"$f":"'Org structure'!E130","v":"12.7 - [Name of sub-vote]"},null,{"$f":"SUMIFS(Sheet1!S71_PPPYearAmount,Sheet1!S71_SubMunicipalVoteNo,$AC:$AC,Sheet1!S71_ItemType,$AD:$AD)","v":0},{"$f":"SUMIFS(Sheet1!S71_PPYearAmount,Sheet1!S71_SubMunicipalVoteNo,$AC:$AC,Sheet1!S71_ItemType,$AD:$AD)","v":0},{"$f":"SUMIFS(Sheet1!S71_PYearAmount,Sheet1!S71_SubMunicipalVoteNo,$AC:$AC,Sheet1!S71_ItemType,$AD:$AD)","v":0},{"$f":"-SUMIFS(Sheet1!S71_OriginalBudAmnt,Sheet1!S71_SubMunicipalVoteNo,$AC:$AC,Sheet1!S71_ItemType,$AD:$AD)","v":0},{"$f":"-SUMIFS(Sheet1!S71_AdjustmentBudAmnt,Sheet1!S71_SubMunicipalVoteNo,$AC:$AC,Sheet1!S71_ItemType,$AD:$AD)","v":0},{"$f":"-SUMIFS(Sheet1!S71_AdjustmentBudAmnt,Sheet1!S71_SubMunicipalVoteNo,$AC:$AC,Sheet1!S71_ItemType,$AD:$AD)","v":0},{"$f":"SUMIFS(Sheet1!S71_ASBudgetAmount,Sheet1!S71_SubMunicipalVoteNo,$AC:$AC,Sheet1!S71_ItemType,$AD:$AD)","v":0},{"$f":"SUMIFS(Sheet1!S71_OY1BudgetAmount,Sheet1!S71_SubMunicipalVoteNo,$AC:$AC,Sheet1!S71_ItemType,$AD:$AD)","v":0},{"$f":"SUMIFS(Sheet1!S71_OY2BudgetAmount,Sheet1!S71_SubMunicipalVoteNo,$AC:$AC,Sheet1!S71_ItemType,$AD:$AD)","v":0},null,null,null,null,null,null,null,null,null,null,null,null,null,null,null,null,null,127,"IR"]
[{"$f":"'Org structure'!E131","v":"12.8 - [Name of sub-vote]"},null,{"$f":"SUMIFS(Sheet1!S71_PPPYearAmount,Sheet1!S71_SubMunicipalVoteNo,$AC:$AC,Sheet1!S71_ItemType,$AD:$AD)","v":0},{"$f":"SUMIFS(Sheet1!S71_PPYearAmount,Sheet1!S71_SubMunicipalVoteNo,$AC:$AC,Sheet1!S71_ItemType,$AD:$AD)","v":0},{"$f":"SUMIFS(Sheet1!S71_PYearAmount,Sheet1!S71_SubMunicipalVoteNo,$AC:$AC,Sheet1!S71_ItemType,$AD:$AD)","v":0},{"$f":"-SUMIFS(Sheet1!S71_OriginalBudAmnt,Sheet1!S71_SubMunicipalVoteNo,$AC:$AC,Sheet1!S71_ItemType,$AD:$AD)","v":0},{"$f":"-SUMIFS(Sheet1!S71_AdjustmentBudAmnt,Sheet1!S71_SubMunicipalVoteNo,$AC:$AC,Sheet1!S71_ItemType,$AD:$AD)","v":0},{"$f":"-SUMIFS(Sheet1!S71_AdjustmentBudAmnt,Sheet1!S71_SubMunicipalVoteNo,$AC:$AC,Sheet1!S71_ItemType,$AD:$AD)","v":0},{"$f":"SUMIFS(Sheet1!S71_ASBudgetAmount,Sheet1!S71_SubMunicipalVoteNo,$AC:$AC,Sheet1!S71_ItemType,$AD:$AD)","v":0},{"$f":"SUMIFS(Sheet1!S71_OY1BudgetAmount,Sheet1!S71_SubMunicipalVoteNo,$AC:$AC,Sheet1!S71_ItemType,$AD:$AD)","v":0},{"$f":"SUMIFS(Sheet1!S71_OY2BudgetAmount,Sheet1!S71_SubMunicipalVoteNo,$AC:$AC,Sheet1!S71_ItemType,$AD:$AD)","v":0},null,null,null,null,null,null,null,null,null,null,null,null,null,null,null,null,null,128,"IR"]
[{"$f":"'Org structure'!E132","v":"12.9 - [Name of sub-vote]"},null,{"$f":"SUMIFS(Sheet1!S71_PPPYearAmount,Sheet1!S71_SubMunicipalVoteNo,$AC:$AC,Sheet1!S71_ItemType,$AD:$AD)","v":0},{"$f":"SUMIFS(Sheet1!S71_PPYearAmount,Sheet1!S71_SubMunicipalVoteNo,$AC:$AC,Sheet1!S71_ItemType,$AD:$AD)","v":0},{"$f":"SUMIFS(Sheet1!S71_PYearAmount,Sheet1!S71_SubMunicipalVoteNo,$AC:$AC,Sheet1!S71_ItemType,$AD:$AD)","v":0},{"$f":"-SUMIFS(Sheet1!S71_OriginalBudAmnt,Sheet1!S71_SubMunicipalVoteNo,$AC:$AC,Sheet1!S71_ItemType,$AD:$AD)","v":0},{"$f":"-SUMIFS(Sheet1!S71_AdjustmentBudAmnt,Sheet1!S71_SubMunicipalVoteNo,$AC:$AC,Sheet1!S71_ItemType,$AD:$AD)","v":0},{"$f":"-SUMIFS(Sheet1!S71_AdjustmentBudAmnt,Sheet1!S71_SubMunicipalVoteNo,$AC:$AC,Sheet1!S71_ItemType,$AD:$AD)","v":0},{"$f":"SUMIFS(Sheet1!S71_ASBudgetAmount,Sheet1!S71_SubMunicipalVoteNo,$AC:$AC,Sheet1!S71_ItemType,$AD:$AD)","v":0},{"$f":"SUMIFS(Sheet1!S71_OY1BudgetAmount,Sheet1!S71_SubMunicipalVoteNo,$AC:$AC,Sheet1!S71_ItemType,$AD:$AD)","v":0},{"$f":"SUMIFS(Sheet1!S71_OY2BudgetAmount,Sheet1!S71_SubMunicipalVoteNo,$AC:$AC,Sheet1!S71_ItemType,$AD:$AD)","v":0},null,null,null,null,null,null,null,null,null,null,null,null,null,null,null,null,null,129,"IR"]
[{"$f":"'Org structure'!E133","v":"12.10 - [Name of sub-vote]"},null,{"$f":"SUMIFS(Sheet1!S71_PPPYearAmount,Sheet1!S71_SubMunicipalVoteNo,$AC:$AC,Sheet1!S71_ItemType,$AD:$AD)","v":0},{"$f":"SUMIFS(Sheet1!S71_PPYearAmount,Sheet1!S71_SubMunicipalVoteNo,$AC:$AC,Sheet1!S71_ItemType,$AD:$AD)","v":0},{"$f":"SUMIFS(Sheet1!S71_PYearAmount,Sheet1!S71_SubMunicipalVoteNo,$AC:$AC,Sheet1!S71_ItemType,$AD:$AD)","v":0},{"$f":"-SUMIFS(Sheet1!S71_OriginalBudAmnt,Sheet1!S71_SubMunicipalVoteNo,$AC:$AC,Sheet1!S71_ItemType,$AD:$AD)","v":0},{"$f":"-SUMIFS(Sheet1!S71_AdjustmentBudAmnt,Sheet1!S71_SubMunicipalVoteNo,$AC:$AC,Sheet1!S71_ItemType,$AD:$AD)","v":0},{"$f":"-SUMIFS(Sheet1!S71_AdjustmentBudAmnt,Sheet1!S71_SubMunicipalVoteNo,$AC:$AC,Sheet1!S71_ItemType,$AD:$AD)","v":0},{"$f":"SUMIFS(Sheet1!S71_ASBudgetAmount,Sheet1!S71_SubMunicipalVoteNo,$AC:$AC,Sheet1!S71_ItemType,$AD:$AD)","v":0},{"$f":"SUMIFS(Sheet1!S71_OY1BudgetAmount,Sheet1!S71_SubMunicipalVoteNo,$AC:$AC,Sheet1!S71_ItemType,$AD:$AD)","v":0},{"$f":"SUMIFS(Sheet1!S71_OY2BudgetAmount,Sheet1!S71_SubMunicipalVoteNo,$AC:$AC,Sheet1!S71_ItemType,$AD:$AD)","v":0},null,null,null,null,null,null,null,null,null,null,null,null,null,null,null,null,null,1210,"IR"]
[{"$f":"'Org structure'!A14","v":"Vote 13 - Housing"},null,{"$f":"SUM(C138:C147)","v":0},{"$f":"SUM(D138:D147)","v":0},0,0,0,0,0,0,0]
[{"$f":"'Org structure'!E135","v":"13.1 - Housing"},null,{"$f":"SUMIFS(Sheet1!S71_PPPYearAmount,Sheet1!S71_SubMunicipalVoteNo,$AC:$AC,Sheet1!S71_ItemType,$AD:$AD)","v":0},{"$f":"SUMIFS(Sheet1!S71_PPYearAmount,Sheet1!S71_SubMunicipalVoteNo,$AC:$AC,Sheet1!S71_ItemType,$AD:$AD)","v":0},{"$f":"SUMIFS(Sheet1!S71_PYearAmount,Sheet1!S71_SubMunicipalVoteNo,$AC:$AC,Sheet1!S71_ItemType,$AD:$AD)","v":0},{"$f":"-SUMIFS(Sheet1!S71_OriginalBudAmnt,Sheet1!S71_SubMunicipalVoteNo,$AC:$AC,Sheet1!S71_ItemType,$AD:$AD)","v":0},{"$f":"-SUMIFS(Sheet1!S71_AdjustmentBudAmnt,Sheet1!S71_SubMunicipalVoteNo,$AC:$AC,Sheet1!S71_ItemType,$AD:$AD)","v":0},{"$f":"-SUMIFS(Sheet1!S71_AdjustmentBudAmnt,Sheet1!S71_SubMunicipalVoteNo,$AC:$AC,Sheet1!S71_ItemType,$AD:$AD)","v":0},{"$f":"SUMIFS(Sheet1!S71_ASBudgetAmount,Sheet1!S71_SubMunicipalVoteNo,$AC:$AC,Sheet1!S71_ItemType,$AD:$AD)","v":0},{"$f":"SUMIFS(Sheet1!S71_OY1BudgetAmount,Sheet1!S71_SubMunicipalVoteNo,$AC:$AC,Sheet1!S71_ItemType,$AD:$AD)","v":0},{"$f":"SUMIFS(Sheet1!S71_OY2BudgetAmount,Sheet1!S71_SubMunicipalVoteNo,$AC:$AC,Sheet1!S71_ItemType,$AD:$AD)","v":0},null,null,null,null,null,null,null,null,null,null,null,null,null,null,null,null,null,131,"IR"]
[{"$f":"'Org structure'!E136","v":"13.2 - [Name of sub-vote]"},null,{"$f":"SUMIFS(Sheet1!S71_PPPYearAmount,Sheet1!S71_SubMunicipalVoteNo,$AC:$AC,Sheet1!S71_ItemType,$AD:$AD)","v":0},{"$f":"SUMIFS(Sheet1!S71_PPYearAmount,Sheet1!S71_SubMunicipalVoteNo,$AC:$AC,Sheet1!S71_ItemType,$AD:$AD)","v":0},{"$f":"SUMIFS(Sheet1!S71_PYearAmount,Sheet1!S71_SubMunicipalVoteNo,$AC:$AC,Sheet1!S71_ItemType,$AD:$AD)","v":0},{"$f":"-SUMIFS(Sheet1!S71_OriginalBudAmnt,Sheet1!S71_SubMunicipalVoteNo,$AC:$AC,Sheet1!S71_ItemType,$AD:$AD)","v":0},{"$f":"-SUMIFS(Sheet1!S71_AdjustmentBudAmnt,Sheet1!S71_SubMunicipalVoteNo,$AC:$AC,Sheet1!S71_ItemType,$AD:$AD)","v":0},{"$f":"-SUMIFS(Sheet1!S71_AdjustmentBudAmnt,Sheet1!S71_SubMunicipalVoteNo,$AC:$AC,Sheet1!S71_ItemType,$AD:$AD)","v":0},{"$f":"SUMIFS(Sheet1!S71_ASBudgetAmount,Sheet1!S71_SubMunicipalVoteNo,$AC:$AC,Sheet1!S71_ItemType,$AD:$AD)","v":0},{"$f":"SUMIFS(Sheet1!S71_OY1BudgetAmount,Sheet1!S71_SubMunicipalVoteNo,$AC:$AC,Sheet1!S71_ItemType,$AD:$AD)","v":0},{"$f":"SUMIFS(Sheet1!S71_OY2BudgetAmount,Sheet1!S71_SubMunicipalVoteNo,$AC:$AC,Sheet1!S71_ItemType,$AD:$AD)","v":0},null,null,null,null,null,null,null,null,null,null,null,null,null,null,null,null,null,132,"IR"]
[{"$f":"'Org structure'!E137","v":"13.3 - [Name of sub-vote]"},null,{"$f":"SUMIFS(Sheet1!S71_PPPYearAmount,Sheet1!S71_SubMunicipalVoteNo,$AC:$AC,Sheet1!S71_ItemType,$AD:$AD)","v":0},{"$f":"SUMIFS(Sheet1!S71_PPYearAmount,Sheet1!S71_SubMunicipalVoteNo,$AC:$AC,Sheet1!S71_ItemType,$AD:$AD)","v":0},{"$f":"SUMIFS(Sheet1!S71_PYearAmount,Sheet1!S71_SubMunicipalVoteNo,$AC:$AC,Sheet1!S71_ItemType,$AD:$AD)","v":0},{"$f":"-SUMIFS(Sheet1!S71_OriginalBudAmnt,Sheet1!S71_SubMunicipalVoteNo,$AC:$AC,Sheet1!S71_ItemType,$AD:$AD)","v":0},{"$f":"-SUMIFS(Sheet1!S71_AdjustmentBudAmnt,Sheet1!S71_SubMunicipalVoteNo,$AC:$AC,Sheet1!S71_ItemType,$AD:$AD)","v":0},{"$f":"-SUMIFS(Sheet1!S71_AdjustmentBudAmnt,Sheet1!S71_SubMunicipalVoteNo,$AC:$AC,Sheet1!S71_ItemType,$AD:$AD)","v":0},{"$f":"SUMIFS(Sheet1!S71_ASBudgetAmount,Sheet1!S71_SubMunicipalVoteNo,$AC:$AC,Sheet1!S71_ItemType,$AD:$AD)","v":0},{"$f":"SUMIFS(Sheet1!S71_OY1BudgetAmount,Sheet1!S71_SubMunicipalVoteNo,$AC:$AC,Sheet1!S71_ItemType,$AD:$AD)","v":0},{"$f":"SUMIFS(Sheet1!S71_OY2BudgetAmount,Sheet1!S71_SubMunicipalVoteNo,$AC:$AC,Sheet1!S71_ItemType,$AD:$AD)","v":0},null,null,null,null,null,null,null,null,null,null,null,null,null,null,null,null,null,133,"IR"]
[{"$f":"'Org structure'!E138","v":"13.4 - [Name of sub-vote]"},null,{"$f":"SUMIFS(Sheet1!S71_PPPYearAmount,Sheet1!S71_SubMunicipalVoteNo,$AC:$AC,Sheet1!S71_ItemType,$AD:$AD)","v":0},{"$f":"SUMIFS(Sheet1!S71_PPYearAmount,Sheet1!S71_SubMunicipalVoteNo,$AC:$AC,Sheet1!S71_ItemType,$AD:$AD)","v":0},{"$f":"SUMIFS(Sheet1!S71_PYearAmount,Sheet1!S71_SubMunicipalVoteNo,$AC:$AC,Sheet1!S71_ItemType,$AD:$AD)","v":0},{"$f":"-SUMIFS(Sheet1!S71_OriginalBudAmnt,Sheet1!S71_SubMunicipalVoteNo,$AC:$AC,Sheet1!S71_ItemType,$AD:$AD)","v":0},{"$f":"-SUMIFS(Sheet1!S71_AdjustmentBudAmnt,Sheet1!S71_SubMunicipalVoteNo,$AC:$AC,Sheet1!S71_ItemType,$AD:$AD)","v":0},{"$f":"-SUMIFS(Sheet1!S71_AdjustmentBudAmnt,Sheet1!S71_SubMunicipalVoteNo,$AC:$AC,Sheet1!S71_ItemType,$AD:$AD)","v":0},{"$f":"SUMIFS(Sheet1!S71_ASBudgetAmount,Sheet1!S71_SubMunicipalVoteNo,$AC:$AC,Sheet1!S71_ItemType,$AD:$AD)","v":0},{"$f":"SUMIFS(Sheet1!S71_OY1BudgetAmount,Sheet1!S71_SubMunicipalVoteNo,$AC:$AC,Sheet1!S71_ItemType,$AD:$AD)","v":0},{"$f":"SUMIFS(Sheet1!S71_OY2BudgetAmount,Sheet1!S71_SubMunicipalVoteNo,$AC:$AC,Sheet1!S71_ItemType,$AD:$AD)","v":0},null,null,null,null,null,null,null,null,null,null,null,null,null,null,null,null,null,134,"IR"]
[{"$f":"'Org structure'!E139","v":"13.5 - [Name of sub-vote]"},null,{"$f":"SUMIFS(Sheet1!S71_PPPYearAmount,Sheet1!S71_SubMunicipalVoteNo,$AC:$AC,Sheet1!S71_ItemType,$AD:$AD)","v":0},{"$f":"SUMIFS(Sheet1!S71_PPYearAmount,Sheet1!S71_SubMunicipalVoteNo,$AC:$AC,Sheet1!S71_ItemType,$AD:$AD)","v":0},{"$f":"SUMIFS(Sheet1!S71_PYearAmount,Sheet1!S71_SubMunicipalVoteNo,$AC:$AC,Sheet1!S71_ItemType,$AD:$AD)","v":0},{"$f":"-SUMIFS(Sheet1!S71_OriginalBudAmnt,Sheet1!S71_SubMunicipalVoteNo,$AC:$AC,Sheet1!S71_ItemType,$AD:$AD)","v":0},{"$f":"-SUMIFS(Sheet1!S71_AdjustmentBudAmnt,Sheet1!S71_SubMunicipalVoteNo,$AC:$AC,Sheet1!S71_ItemType,$AD:$AD)","v":0},{"$f":"-SUMIFS(Sheet1!S71_AdjustmentBudAmnt,Sheet1!S71_SubMunicipalVoteNo,$AC:$AC,Sheet1!S71_ItemType,$AD:$AD)","v":0},{"$f":"SUMIFS(Sheet1!S71_ASBudgetAmount,Sheet1!S71_SubMunicipalVoteNo,$AC:$AC,Sheet1!S71_ItemType,$AD:$AD)","v":0},{"$f":"SUMIFS(Sheet1!S71_OY1BudgetAmount,Sheet1!S71_SubMunicipalVoteNo,$AC:$AC,Sheet1!S71_ItemType,$AD:$AD)","v":0},{"$f":"SUMIFS(Sheet1!S71_OY2BudgetAmount,Sheet1!S71_SubMunicipalVoteNo,$AC:$AC,Sheet1!S71_ItemType,$AD:$AD)","v":0},null,null,null,null,null,null,null,null,null,null,null,null,null,null,null,null,null,135,"IR"]
[{"$f":"'Org structure'!E140","v":"13.6 - [Name of sub-vote]"},null,{"$f":"SUMIFS(Sheet1!S71_PPPYearAmount,Sheet1!S71_SubMunicipalVoteNo,$AC:$AC,Sheet1!S71_ItemType,$AD:$AD)","v":0},{"$f":"SUMIFS(Sheet1!S71_PPYearAmount,Sheet1!S71_SubMunicipalVoteNo,$AC:$AC,Sheet1!S71_ItemType,$AD:$AD)","v":0},{"$f":"SUMIFS(Sheet1!S71_PYearAmount,Sheet1!S71_SubMunicipalVoteNo,$AC:$AC,Sheet1!S71_ItemType,$AD:$AD)","v":0},{"$f":"-SUMIFS(Sheet1!S71_OriginalBudAmnt,Sheet1!S71_SubMunicipalVoteNo,$AC:$AC,Sheet1!S71_ItemType,$AD:$AD)","v":0},{"$f":"-SUMIFS(Sheet1!S71_AdjustmentBudAmnt,Sheet1!S71_SubMunicipalVoteNo,$AC:$AC,Sheet1!S71_ItemType,$AD:$AD)","v":0},{"$f":"-SUMIFS(Sheet1!S71_AdjustmentBudAmnt,Sheet1!S71_SubMunicipalVoteNo,$AC:$AC,Sheet1!S71_ItemType,$AD:$AD)","v":0},{"$f":"SUMIFS(Sheet1!S71_ASBudgetAmount,Sheet1!S71_SubMunicipalVoteNo,$AC:$AC,Sheet1!S71_ItemType,$AD:$AD)","v":0},{"$f":"SUMIFS(Sheet1!S71_OY1BudgetAmount,Sheet1!S71_SubMunicipalVoteNo,$AC:$AC,Sheet1!S71_ItemType,$AD:$AD)","v":0},{"$f":"SUMIFS(Sheet1!S71_OY2BudgetAmount,Sheet1!S71_SubMunicipalVoteNo,$AC:$AC,Sheet1!S71_ItemType,$AD:$AD)","v":0},null,null,null,null,null,null,null,null,null,null,null,null,null,null,null,null,null,136,"IR"]
[{"$f":"'Org structure'!E141","v":"13.7 - [Name of sub-vote]"},null,{"$f":"SUMIFS(Sheet1!S71_PPPYearAmount,Sheet1!S71_SubMunicipalVoteNo,$AC:$AC,Sheet1!S71_ItemType,$AD:$AD)","v":0},{"$f":"SUMIFS(Sheet1!S71_PPYearAmount,Sheet1!S71_SubMunicipalVoteNo,$AC:$AC,Sheet1!S71_ItemType,$AD:$AD)","v":0},{"$f":"SUMIFS(Sheet1!S71_PYearAmount,Sheet1!S71_SubMunicipalVoteNo,$AC:$AC,Sheet1!S71_ItemType,$AD:$AD)","v":0},{"$f":"-SUMIFS(Sheet1!S71_OriginalBudAmnt,Sheet1!S71_SubMunicipalVoteNo,$AC:$AC,Sheet1!S71_ItemType,$AD:$AD)","v":0},{"$f":"-SUMIFS(Sheet1!S71_AdjustmentBudAmnt,Sheet1!S71_SubMunicipalVoteNo,$AC:$AC,Sheet1!S71_ItemType,$AD:$AD)","v":0},{"$f":"-SUMIFS(Sheet1!S71_AdjustmentBudAmnt,Sheet1!S71_SubMunicipalVoteNo,$AC:$AC,Sheet1!S71_ItemType,$AD:$AD)","v":0},{"$f":"SUMIFS(Sheet1!S71_ASBudgetAmount,Sheet1!S71_SubMunicipalVoteNo,$AC:$AC,Sheet1!S71_ItemType,$AD:$AD)","v":0},{"$f":"SUMIFS(Sheet1!S71_OY1BudgetAmount,Sheet1!S71_SubMunicipalVoteNo,$AC:$AC,Sheet1!S71_ItemType,$AD:$AD)","v":0},{"$f":"SUMIFS(Sheet1!S71_OY2BudgetAmount,Sheet1!S71_SubMunicipalVoteNo,$AC:$AC,Sheet1!S71_ItemType,$AD:$AD)","v":0},null,null,null,null,null,null,null,null,null,null,null,null,null,null,null,null,null,137,"IR"]
[{"$f":"'Org structure'!E142","v":"13.8 - [Name of sub-vote]"},null,{"$f":"SUMIFS(Sheet1!S71_PPPYearAmount,Sheet1!S71_SubMunicipalVoteNo,$AC:$AC,Sheet1!S71_ItemType,$AD:$AD)","v":0},{"$f":"SUMIFS(Sheet1!S71_PPYearAmount,Sheet1!S71_SubMunicipalVoteNo,$AC:$AC,Sheet1!S71_ItemType,$AD:$AD)","v":0},{"$f":"SUMIFS(Sheet1!S71_PYearAmount,Sheet1!S71_SubMunicipalVoteNo,$AC:$AC,Sheet1!S71_ItemType,$AD:$AD)","v":0},{"$f":"-SUMIFS(Sheet1!S71_OriginalBudAmnt,Sheet1!S71_SubMunicipalVoteNo,$AC:$AC,Sheet1!S71_ItemType,$AD:$AD)","v":0},{"$f":"-SUMIFS(Sheet1!S71_AdjustmentBudAmnt,Sheet1!S71_SubMunicipalVoteNo,$AC:$AC,Sheet1!S71_ItemType,$AD:$AD)","v":0},{"$f":"-SUMIFS(Sheet1!S71_AdjustmentBudAmnt,Sheet1!S71_SubMunicipalVoteNo,$AC:$AC,Sheet1!S71_ItemType,$AD:$AD)","v":0},{"$f":"SUMIFS(Sheet1!S71_ASBudgetAmount,Sheet1!S71_SubMunicipalVoteNo,$AC:$AC,Sheet1!S71_ItemType,$AD:$AD)","v":0},{"$f":"SUMIFS(Sheet1!S71_OY1BudgetAmount,Sheet1!S71_SubMunicipalVoteNo,$AC:$AC,Sheet1!S71_ItemType,$AD:$AD)","v":0},{"$f":"SUMIFS(Sheet1!S71_OY2BudgetAmount,Sheet1!S71_SubMunicipalVoteNo,$AC:$AC,Sheet1!S71_ItemType,$AD:$AD)","v":0},null,null,null,null,null,null,null,null,null,null,null,null,null,null,null,null,null,138,"IR"]
[{"$f":"'Org structure'!E143","v":"13.9 - [Name of sub-vote]"},null,{"$f":"SUMIFS(Sheet1!S71_PPPYearAmount,Sheet1!S71_SubMunicipalVoteNo,$AC:$AC,Sheet1!S71_ItemType,$AD:$AD)","v":0},{"$f":"SUMIFS(Sheet1!S71_PPYearAmount,Sheet1!S71_SubMunicipalVoteNo,$AC:$AC,Sheet1!S71_ItemType,$AD:$AD)","v":0},{"$f":"SUMIFS(Sheet1!S71_PYearAmount,Sheet1!S71_SubMunicipalVoteNo,$AC:$AC,Sheet1!S71_ItemType,$AD:$AD)","v":0},{"$f":"-SUMIFS(Sheet1!S71_OriginalBudAmnt,Sheet1!S71_SubMunicipalVoteNo,$AC:$AC,Sheet1!S71_ItemType,$AD:$AD)","v":0},{"$f":"-SUMIFS(Sheet1!S71_AdjustmentBudAmnt,Sheet1!S71_SubMunicipalVoteNo,$AC:$AC,Sheet1!S71_ItemType,$AD:$AD)","v":0},{"$f":"-SUMIFS(Sheet1!S71_AdjustmentBudAmnt,Sheet1!S71_SubMunicipalVoteNo,$AC:$AC,Sheet1!S71_ItemType,$AD:$AD)","v":0},{"$f":"SUMIFS(Sheet1!S71_ASBudgetAmount,Sheet1!S71_SubMunicipalVoteNo,$AC:$AC,Sheet1!S71_ItemType,$AD:$AD)","v":0},{"$f":"SUMIFS(Sheet1!S71_OY1BudgetAmount,Sheet1!S71_SubMunicipalVoteNo,$AC:$AC,Sheet1!S71_ItemType,$AD:$AD)","v":0},{"$f":"SUMIFS(Sheet1!S71_OY2BudgetAmount,Sheet1!S71_SubMunicipalVoteNo,$AC:$AC,Sheet1!S71_ItemType,$AD:$AD)","v":0},null,null,null,null,null,null,null,null,null,null,null,null,null,null,null,null,null,139,"IR"]
[{"$f":"'Org structure'!E144","v":"13.10 - [Name of sub-vote]"},null,{"$f":"SUMIFS(Sheet1!S71_PPPYearAmount,Sheet1!S71_SubMunicipalVoteNo,$AC:$AC,Sheet1!S71_ItemType,$AD:$AD)","v":0},{"$f":"SUMIFS(Sheet1!S71_PPYearAmount,Sheet1!S71_SubMunicipalVoteNo,$AC:$AC,Sheet1!S71_ItemType,$AD:$AD)","v":0},{"$f":"SUMIFS(Sheet1!S71_PYearAmount,Sheet1!S71_SubMunicipalVoteNo,$AC:$AC,Sheet1!S71_ItemType,$AD:$AD)","v":0},{"$f":"-SUMIFS(Sheet1!S71_OriginalBudAmnt,Sheet1!S71_SubMunicipalVoteNo,$AC:$AC,Sheet1!S71_ItemType,$AD:$AD)","v":0},{"$f":"-SUMIFS(Sheet1!S71_AdjustmentBudAmnt,Sheet1!S71_SubMunicipalVoteNo,$AC:$AC,Sheet1!S71_ItemType,$AD:$AD)","v":0},{"$f":"-SUMIFS(Sheet1!S71_AdjustmentBudAmnt,Sheet1!S71_SubMunicipalVoteNo,$AC:$AC,Sheet1!S71_ItemType,$AD:$AD)","v":0},{"$f":"SUMIFS(Sheet1!S71_ASBudgetAmount,Sheet1!S71_SubMunicipalVoteNo,$AC:$AC,Sheet1!S71_ItemType,$AD:$AD)","v":0},{"$f":"SUMIFS(Sheet1!S71_OY1BudgetAmount,Sheet1!S71_SubMunicipalVoteNo,$AC:$AC,Sheet1!S71_ItemType,$AD:$AD)","v":0},{"$f":"SUMIFS(Sheet1!S71_OY2BudgetAmount,Sheet1!S71_SubMunicipalVoteNo,$AC:$AC,Sheet1!S71_ItemType,$AD:$AD)","v":0},null,null,null,null,null,null,null,null,null,null,null,null,null,null,null,null,null,1310,"IR"]
[{"$f":"'Org structure'!A15","v":"Vote 14 - Finance & Administration 2"},null,{"$f":"SUM(C149:C158)","v":0},{"$f":"SUM(D149:D158)","v":0},0,0,0,0,0,0,0]
[{"$f":"'Org structure'!E146","v":"14.1 - Security Services"},null,{"$f":"SUMIFS(Sheet1!S71_PPPYearAmount,Sheet1!S71_SubMunicipalVoteNo,$AC:$AC,Sheet1!S71_ItemType,$AD:$AD)","v":0},{"$f":"SUMIFS(Sheet1!S71_PPYearAmount,Sheet1!S71_SubMunicipalVoteNo,$AC:$AC,Sheet1!S71_ItemType,$AD:$AD)","v":0},{"$f":"SUMIFS(Sheet1!S71_PYearAmount,Sheet1!S71_SubMunicipalVoteNo,$AC:$AC,Sheet1!S71_ItemType,$AD:$AD)","v":0},{"$f":"SUMIFS(Sheet1!S71_OriginalBudAmnt,Sheet1!S71_SubMunicipalVoteNo,$AC:$AC,Sheet1!S71_ItemType,$AD:$AD)","v":0},{"$f":"SUMIFS(Sheet1!S71_AdjustmentBudAmnt,Sheet1!S71_SubMunicipalVoteNo,$AC:$AC,Sheet1!S71_ItemType,$AD:$AD)","v":0},{"$f":"SUMIFS(Sheet1!S71_AdjustmentBudAmnt,Sheet1!S71_SubMunicipalVoteNo,$AC:$AC,Sheet1!S71_ItemType,$AD:$AD)","v":0},{"$f":"SUMIFS(Sheet1!S71_ASBudgetAmount,Sheet1!S71_SubMunicipalVoteNo,$AC:$AC,Sheet1!S71_ItemType,$AD:$AD)","v":0},{"$f":"SUMIFS(Sheet1!S71_OY1BudgetAmount,Sheet1!S71_SubMunicipalVoteNo,$AC:$AC,Sheet1!S71_ItemType,$AD:$AD)","v":0},{"$f":"SUMIFS(Sheet1!S71_OY2BudgetAmount,Sheet1!S71_SubMunicipalVoteNo,$AC:$AC,Sheet1!S71_ItemType,$AD:$AD)","v":0},null,null,null,null,null,null,null,null,null,null,null,null,null,null,null,null,null,141,"IR"]
[{"$f":"'Org structure'!E147","v":"14.2 - Administrative and Corporate Support"},null,{"$f":"SUMIFS(Sheet1!S71_PPPYearAmount,Sheet1!S71_SubMunicipalVoteNo,$AC:$AC,Sheet1!S71_ItemType,$AD:$AD)","v":0},{"$f":"SUMIFS(Sheet1!S71_PPYearAmount,Sheet1!S71_SubMunicipalVoteNo,$AC:$AC,Sheet1!S71_ItemType,$AD:$AD)","v":0},{"$f":"SUMIFS(Sheet1!S71_PYearAmount,Sheet1!S71_SubMunicipalVoteNo,$AC:$AC,Sheet1!S71_ItemType,$AD:$AD)","v":0},{"$f":"SUMIFS(Sheet1!S71_OriginalBudAmnt,Sheet1!S71_SubMunicipalVoteNo,$AC:$AC,Sheet1!S71_ItemType,$AD:$AD)","v":0},{"$f":"SUMIFS(Sheet1!S71_AdjustmentBudAmnt,Sheet1!S71_SubMunicipalVoteNo,$AC:$AC,Sheet1!S71_ItemType,$AD:$AD)","v":0},{"$f":"SUMIFS(Sheet1!S71_AdjustmentBudAmnt,Sheet1!S71_SubMunicipalVoteNo,$AC:$AC,Sheet1!S71_ItemType,$AD:$AD)","v":0},{"$f":"SUMIFS(Sheet1!S71_ASBudgetAmount,Sheet1!S71_SubMunicipalVoteNo,$AC:$AC,Sheet1!S71_ItemType,$AD:$AD)","v":0},{"$f":"SUMIFS(Sheet1!S71_OY1BudgetAmount,Sheet1!S71_SubMunicipalVoteNo,$AC:$AC,Sheet1!S71_ItemType,$AD:$AD)","v":0},{"$f":"SUMIFS(Sheet1!S71_OY2BudgetAmount,Sheet1!S71_SubMunicipalVoteNo,$AC:$AC,Sheet1!S71_ItemType,$AD:$AD)","v":0},null,null,null,null,null,null,null,null,null,null,null,null,null,null,null,null,null,142,"IR"]
[{"$f":"'Org structure'!E148","v":"14.3 - Information Technology"},null,{"$f":"SUMIFS(Sheet1!S71_PPPYearAmount,Sheet1!S71_SubMunicipalVoteNo,$AC:$AC,Sheet1!S71_ItemType,$AD:$AD)","v":0},{"$f":"SUMIFS(Sheet1!S71_PPYearAmount,Sheet1!S71_SubMunicipalVoteNo,$AC:$AC,Sheet1!S71_ItemType,$AD:$AD)","v":0},{"$f":"SUMIFS(Sheet1!S71_PYearAmount,Sheet1!S71_SubMunicipalVoteNo,$AC:$AC,Sheet1!S71_ItemType,$AD:$AD)","v":0},{"$f":"SUMIFS(Sheet1!S71_OriginalBudAmnt,Sheet1!S71_SubMunicipalVoteNo,$AC:$AC,Sheet1!S71_ItemType,$AD:$AD)","v":0},{"$f":"SUMIFS(Sheet1!S71_AdjustmentBudAmnt,Sheet1!S71_SubMunicipalVoteNo,$AC:$AC,Sheet1!S71_ItemType,$AD:$AD)","v":0},{"$f":"SUMIFS(Sheet1!S71_AdjustmentBudAmnt,Sheet1!S71_SubMunicipalVoteNo,$AC:$AC,Sheet1!S71_ItemType,$AD:$AD)","v":0},{"$f":"SUMIFS(Sheet1!S71_ASBudgetAmount,Sheet1!S71_SubMunicipalVoteNo,$AC:$AC,Sheet1!S71_ItemType,$AD:$AD)","v":0},{"$f":"SUMIFS(Sheet1!S71_OY1BudgetAmount,Sheet1!S71_SubMunicipalVoteNo,$AC:$AC,Sheet1!S71_ItemType,$AD:$AD)","v":0},{"$f":"SUMIFS(Sheet1!S71_OY2BudgetAmount,Sheet1!S71_SubMunicipalVoteNo,$AC:$AC,Sheet1!S71_ItemType,$AD:$AD)","v":0},null,null,null,null,null,null,null,null,null,null,null,null,null,null,null,null,null,143,"IR"]
[{"$f":"'Org structure'!E149","v":"14.4 - [Name of sub-vote]"},null,{"$f":"SUMIFS(Sheet1!S71_PPPYearAmount,Sheet1!S71_SubMunicipalVoteNo,$AC:$AC,Sheet1!S71_ItemType,$AD:$AD)","v":0},{"$f":"SUMIFS(Sheet1!S71_PPYearAmount,Sheet1!S71_SubMunicipalVoteNo,$AC:$AC,Sheet1!S71_ItemType,$AD:$AD)","v":0},{"$f":"SUMIFS(Sheet1!S71_PYearAmount,Sheet1!S71_SubMunicipalVoteNo,$AC:$AC,Sheet1!S71_ItemType,$AD:$AD)","v":0},{"$f":"SUMIFS(Sheet1!S71_OriginalBudAmnt,Sheet1!S71_SubMunicipalVoteNo,$AC:$AC,Sheet1!S71_ItemType,$AD:$AD)","v":0},{"$f":"SUMIFS(Sheet1!S71_AdjustmentBudAmnt,Sheet1!S71_SubMunicipalVoteNo,$AC:$AC,Sheet1!S71_ItemType,$AD:$AD)","v":0},{"$f":"SUMIFS(Sheet1!S71_AdjustmentBudAmnt,Sheet1!S71_SubMunicipalVoteNo,$AC:$AC,Sheet1!S71_ItemType,$AD:$AD)","v":0},{"$f":"SUMIFS(Sheet1!S71_ASBudgetAmount,Sheet1!S71_SubMunicipalVoteNo,$AC:$AC,Sheet1!S71_ItemType,$AD:$AD)","v":0},{"$f":"SUMIFS(Sheet1!S71_OY1BudgetAmount,Sheet1!S71_SubMunicipalVoteNo,$AC:$AC,Sheet1!S71_ItemType,$AD:$AD)","v":0},{"$f":"SUMIFS(Sheet1!S71_OY2BudgetAmount,Sheet1!S71_SubMunicipalVoteNo,$AC:$AC,Sheet1!S71_ItemType,$AD:$AD)","v":0},null,null,null,null,null,null,null,null,null,null,null,null,null,null,null,null,null,144,"IR"]
[{"$f":"'Org structure'!E150","v":"14.5 - [Name of sub-vote]"},null,{"$f":"SUMIFS(Sheet1!S71_PPPYearAmount,Sheet1!S71_SubMunicipalVoteNo,$AC:$AC,Sheet1!S71_ItemType,$AD:$AD)","v":0},{"$f":"SUMIFS(Sheet1!S71_PPYearAmount,Sheet1!S71_SubMunicipalVoteNo,$AC:$AC,Sheet1!S71_ItemType,$AD:$AD)","v":0},{"$f":"SUMIFS(Sheet1!S71_PYearAmount,Sheet1!S71_SubMunicipalVoteNo,$AC:$AC,Sheet1!S71_ItemType,$AD:$AD)","v":0},{"$f":"SUMIFS(Sheet1!S71_OriginalBudAmnt,Sheet1!S71_SubMunicipalVoteNo,$AC:$AC,Sheet1!S71_ItemType,$AD:$AD)","v":0},{"$f":"SUMIFS(Sheet1!S71_AdjustmentBudAmnt,Sheet1!S71_SubMunicipalVoteNo,$AC:$AC,Sheet1!S71_ItemType,$AD:$AD)","v":0},{"$f":"SUMIFS(Sheet1!S71_AdjustmentBudAmnt,Sheet1!S71_SubMunicipalVoteNo,$AC:$AC,Sheet1!S71_ItemType,$AD:$AD)","v":0},{"$f":"SUMIFS(Sheet1!S71_ASBudgetAmount,Sheet1!S71_SubMunicipalVoteNo,$AC:$AC,Sheet1!S71_ItemType,$AD:$AD)","v":0},{"$f":"SUMIFS(Sheet1!S71_OY1BudgetAmount,Sheet1!S71_SubMunicipalVoteNo,$AC:$AC,Sheet1!S71_ItemType,$AD:$AD)","v":0},{"$f":"SUMIFS(Sheet1!S71_OY2BudgetAmount,Sheet1!S71_SubMunicipalVoteNo,$AC:$AC,Sheet1!S71_ItemType,$AD:$AD)","v":0},null,null,null,null,null,null,null,null,null,null,null,null,null,null,null,null,null,145,"IR"]
[{"$f":"'Org structure'!E151","v":"14.6 - [Name of sub-vote]"},null,{"$f":"SUMIFS(Sheet1!S71_PPPYearAmount,Sheet1!S71_SubMunicipalVoteNo,$AC:$AC,Sheet1!S71_ItemType,$AD:$AD)","v":0},{"$f":"SUMIFS(Sheet1!S71_PPYearAmount,Sheet1!S71_SubMunicipalVoteNo,$AC:$AC,Sheet1!S71_ItemType,$AD:$AD)","v":0},{"$f":"SUMIFS(Sheet1!S71_PYearAmount,Sheet1!S71_SubMunicipalVoteNo,$AC:$AC,Sheet1!S71_ItemType,$AD:$AD)","v":0},{"$f":"SUMIFS(Sheet1!S71_OriginalBudAmnt,Sheet1!S71_SubMunicipalVoteNo,$AC:$AC,Sheet1!S71_ItemType,$AD:$AD)","v":0},{"$f":"SUMIFS(Sheet1!S71_AdjustmentBudAmnt,Sheet1!S71_SubMunicipalVoteNo,$AC:$AC,Sheet1!S71_ItemType,$AD:$AD)","v":0},{"$f":"SUMIFS(Sheet1!S71_AdjustmentBudAmnt,Sheet1!S71_SubMunicipalVoteNo,$AC:$AC,Sheet1!S71_ItemType,$AD:$AD)","v":0},{"$f":"SUMIFS(Sheet1!S71_ASBudgetAmount,Sheet1!S71_SubMunicipalVoteNo,$AC:$AC,Sheet1!S71_ItemType,$AD:$AD)","v":0},{"$f":"SUMIFS(Sheet1!S71_OY1BudgetAmount,Sheet1!S71_SubMunicipalVoteNo,$AC:$AC,Sheet1!S71_ItemType,$AD:$AD)","v":0},{"$f":"SUMIFS(Sheet1!S71_OY2BudgetAmount,Sheet1!S71_SubMunicipalVoteNo,$AC:$AC,Sheet1!S71_ItemType,$AD:$AD)","v":0},null,null,null,null,null,null,null,null,null,null,null,null,null,null,null,null,null,146,"IR"]
[{"$f":"'Org structure'!E152","v":"14.7 - [Name of sub-vote]"},null,{"$f":"SUMIFS(Sheet1!S71_PPPYearAmount,Sheet1!S71_SubMunicipalVoteNo,$AC:$AC,Sheet1!S71_ItemType,$AD:$AD)","v":0},{"$f":"SUMIFS(Sheet1!S71_PPYearAmount,Sheet1!S71_SubMunicipalVoteNo,$AC:$AC,Sheet1!S71_ItemType,$AD:$AD)","v":0},{"$f":"SUMIFS(Sheet1!S71_PYearAmount,Sheet1!S71_SubMunicipalVoteNo,$AC:$AC,Sheet1!S71_ItemType,$AD:$AD)","v":0},{"$f":"SUMIFS(Sheet1!S71_OriginalBudAmnt,Sheet1!S71_SubMunicipalVoteNo,$AC:$AC,Sheet1!S71_ItemType,$AD:$AD)","v":0},{"$f":"SUMIFS(Sheet1!S71_AdjustmentBudAmnt,Sheet1!S71_SubMunicipalVoteNo,$AC:$AC,Sheet1!S71_ItemType,$AD:$AD)","v":0},{"$f":"SUMIFS(Sheet1!S71_AdjustmentBudAmnt,Sheet1!S71_SubMunicipalVoteNo,$AC:$AC,Sheet1!S71_ItemType,$AD:$AD)","v":0},{"$f":"SUMIFS(Sheet1!S71_ASBudgetAmount,Sheet1!S71_SubMunicipalVoteNo,$AC:$AC,Sheet1!S71_ItemType,$AD:$AD)","v":0},{"$f":"SUMIFS(Sheet1!S71_OY1BudgetAmount,Sheet1!S71_SubMunicipalVoteNo,$AC:$AC,Sheet1!S71_ItemType,$AD:$AD)","v":0},{"$f":"SUMIFS(Sheet1!S71_OY2BudgetAmount,Sheet1!S71_SubMunicipalVoteNo,$AC:$AC,Sheet1!S71_ItemType,$AD:$AD)","v":0},null,null,null,null,null,null,null,null,null,null,null,null,null,null,null,null,null,147,"IR"]
[{"$f":"'Org structure'!E153","v":"14.8 - [Name of sub-vote]"},null,{"$f":"SUMIFS(Sheet1!S71_PPPYearAmount,Sheet1!S71_SubMunicipalVoteNo,$AC:$AC,Sheet1!S71_ItemType,$AD:$AD)","v":0},{"$f":"SUMIFS(Sheet1!S71_PPYearAmount,Sheet1!S71_SubMunicipalVoteNo,$AC:$AC,Sheet1!S71_ItemType,$AD:$AD)","v":0},{"$f":"SUMIFS(Sheet1!S71_PYearAmount,Sheet1!S71_SubMunicipalVoteNo,$AC:$AC,Sheet1!S71_ItemType,$AD:$AD)","v":0},{"$f":"SUMIFS(Sheet1!S71_OriginalBudAmnt,Sheet1!S71_SubMunicipalVoteNo,$AC:$AC,Sheet1!S71_ItemType,$AD:$AD)","v":0},{"$f":"SUMIFS(Sheet1!S71_AdjustmentBudAmnt,Sheet1!S71_SubMunicipalVoteNo,$AC:$AC,Sheet1!S71_ItemType,$AD:$AD)","v":0},{"$f":"SUMIFS(Sheet1!S71_AdjustmentBudAmnt,Sheet1!S71_SubMunicipalVoteNo,$AC:$AC,Sheet1!S71_ItemType,$AD:$AD)","v":0},{"$f":"SUMIFS(Sheet1!S71_ASBudgetAmount,Sheet1!S71_SubMunicipalVoteNo,$AC:$AC,Sheet1!S71_ItemType,$AD:$AD)","v":0},{"$f":"SUMIFS(Sheet1!S71_OY1BudgetAmount,Sheet1!S71_SubMunicipalVoteNo,$AC:$AC,Sheet1!S71_ItemType,$AD:$AD)","v":0},{"$f":"SUMIFS(Sheet1!S71_OY2BudgetAmount,Sheet1!S71_SubMunicipalVoteNo,$AC:$AC,Sheet1!S71_ItemType,$AD:$AD)","v":0},null,null,null,null,null,null,null,null,null,null,null,null,null,null,null,null,null,148,"IR"]
[{"$f":"'Org structure'!E154","v":"14.9 - [Name of sub-vote]"},null,{"$f":"SUMIFS(Sheet1!S71_PPPYearAmount,Sheet1!S71_SubMunicipalVoteNo,$AC:$AC,Sheet1!S71_ItemType,$AD:$AD)","v":0},{"$f":"SUMIFS(Sheet1!S71_PPYearAmount,Sheet1!S71_SubMunicipalVoteNo,$AC:$AC,Sheet1!S71_ItemType,$AD:$AD)","v":0},{"$f":"SUMIFS(Sheet1!S71_PYearAmount,Sheet1!S71_SubMunicipalVoteNo,$AC:$AC,Sheet1!S71_ItemType,$AD:$AD)","v":0},{"$f":"SUMIFS(Sheet1!S71_OriginalBudAmnt,Sheet1!S71_SubMunicipalVoteNo,$AC:$AC,Sheet1!S71_ItemType,$AD:$AD)","v":0},{"$f":"SUMIFS(Sheet1!S71_AdjustmentBudAmnt,Sheet1!S71_SubMunicipalVoteNo,$AC:$AC,Sheet1!S71_ItemType,$AD:$AD)","v":0},{"$f":"SUMIFS(Sheet1!S71_AdjustmentBudAmnt,Sheet1!S71_SubMunicipalVoteNo,$AC:$AC,Sheet1!S71_ItemType,$AD:$AD)","v":0},{"$f":"SUMIFS(Sheet1!S71_ASBudgetAmount,Sheet1!S71_SubMunicipalVoteNo,$AC:$AC,Sheet1!S71_ItemType,$AD:$AD)","v":0},{"$f":"SUMIFS(Sheet1!S71_OY1BudgetAmount,Sheet1!S71_SubMunicipalVoteNo,$AC:$AC,Sheet1!S71_ItemType,$AD:$AD)","v":0},{"$f":"SUMIFS(Sheet1!S71_OY2BudgetAmount,Sheet1!S71_SubMunicipalVoteNo,$AC:$AC,Sheet1!S71_ItemType,$AD:$AD)","v":0},null,null,null,null,null,null,null,null,null,null,null,null,null,null,null,null,null,149,"IR"]
[{"$f":"'Org structure'!E155","v":"14.10 - [Name of sub-vote]"},null,{"$f":"SUMIFS(Sheet1!S71_PPPYearAmount,Sheet1!S71_SubMunicipalVoteNo,$AC:$AC,Sheet1!S71_ItemType,$AD:$AD)","v":0},{"$f":"SUMIFS(Sheet1!S71_PPYearAmount,Sheet1!S71_SubMunicipalVoteNo,$AC:$AC,Sheet1!S71_ItemType,$AD:$AD)","v":0},{"$f":"SUMIFS(Sheet1!S71_PYearAmount,Sheet1!S71_SubMunicipalVoteNo,$AC:$AC,Sheet1!S71_ItemType,$AD:$AD)","v":0},{"$f":"SUMIFS(Sheet1!S71_OriginalBudAmnt,Sheet1!S71_SubMunicipalVoteNo,$AC:$AC,Sheet1!S71_ItemType,$AD:$AD)","v":0},{"$f":"SUMIFS(Sheet1!S71_AdjustmentBudAmnt,Sheet1!S71_SubMunicipalVoteNo,$AC:$AC,Sheet1!S71_ItemType,$AD:$AD)","v":0},{"$f":"SUMIFS(Sheet1!S71_AdjustmentBudAmnt,Sheet1!S71_SubMunicipalVoteNo,$AC:$AC,Sheet1!S71_ItemType,$AD:$AD)","v":0},{"$f":"SUMIFS(Sheet1!S71_ASBudgetAmount,Sheet1!S71_SubMunicipalVoteNo,$AC:$AC,Sheet1!S71_ItemType,$AD:$AD)","v":0},{"$f":"SUMIFS(Sheet1!S71_OY1BudgetAmount,Sheet1!S71_SubMunicipalVoteNo,$AC:$AC,Sheet1!S71_ItemType,$AD:$AD)","v":0},{"$f":"SUMIFS(Sheet1!S71_OY2BudgetAmount,Sheet1!S71_SubMunicipalVoteNo,$AC:$AC,Sheet1!S71_ItemType,$AD:$AD)","v":0},null,null,null,null,null,null,null,null,null,null,null,null,null,null,null,null,null,1410,"IR"]
[{"$f":"'Org structure'!A16","v":"Vote 15 - [NAME OF VOTE 15]"},null,{"$f":"SUM(C160:C169)","v":0},{"$f":"SUM(D160:D169)","v":0},0,0,0,0,0,0,0]
[{"$f":"'Org structure'!E157","v":"15.1 - [Name of sub-vote]"},null,{"$f":"SUMIFS(Sheet1!S71_PPPYearAmount,Sheet1!S71_SubMunicipalVoteNo,$AC:$AC,Sheet1!S71_ItemType,$AD:$AD)","v":0},{"$f":"SUMIFS(Sheet1!S71_PPYearAmount,Sheet1!S71_SubMunicipalVoteNo,$AC:$AC,Sheet1!S71_ItemType,$AD:$AD)","v":0},{"$f":"SUMIFS(Sheet1!S71_PYearAmount,Sheet1!S71_SubMunicipalVoteNo,$AC:$AC,Sheet1!S71_ItemType,$AD:$AD)","v":0},{"$f":"SUMIFS(Sheet1!S71_OriginalBudAmnt,Sheet1!S71_SubMunicipalVoteNo,$AC:$AC,Sheet1!S71_ItemType,$AD:$AD)","v":0},{"$f":"SUMIFS(Sheet1!S71_AdjustmentBudAmnt,Sheet1!S71_SubMunicipalVoteNo,$AC:$AC,Sheet1!S71_ItemType,$AD:$AD)","v":0},{"$f":"SUMIFS(Sheet1!S71_AdjustmentBudAmnt,Sheet1!S71_SubMunicipalVoteNo,$AC:$AC,Sheet1!S71_ItemType,$AD:$AD)","v":0},{"$f":"SUMIFS(Sheet1!S71_ASBudgetAmount,Sheet1!S71_SubMunicipalVoteNo,$AC:$AC,Sheet1!S71_ItemType,$AD:$AD)","v":0},{"$f":"SUMIFS(Sheet1!S71_OY1BudgetAmount,Sheet1!S71_SubMunicipalVoteNo,$AC:$AC,Sheet1!S71_ItemType,$AD:$AD)","v":0},{"$f":"SUMIFS(Sheet1!S71_OY2BudgetAmount,Sheet1!S71_SubMunicipalVoteNo,$AC:$AC,Sheet1!S71_ItemType,$AD:$AD)","v":0},null,null,null,null,null,null,null,null,null,null,null,null,null,null,null,null,null,151,"IR"]
[{"$f":"'Org structure'!E158","v":"15.2 - [Name of sub-vote]"},null,{"$f":"SUMIFS(Sheet1!S71_PPPYearAmount,Sheet1!S71_SubMunicipalVoteNo,$AC:$AC,Sheet1!S71_ItemType,$AD:$AD)","v":0},{"$f":"SUMIFS(Sheet1!S71_PPYearAmount,Sheet1!S71_SubMunicipalVoteNo,$AC:$AC,Sheet1!S71_ItemType,$AD:$AD)","v":0},{"$f":"SUMIFS(Sheet1!S71_PYearAmount,Sheet1!S71_SubMunicipalVoteNo,$AC:$AC,Sheet1!S71_ItemType,$AD:$AD)","v":0},{"$f":"SUMIFS(Sheet1!S71_OriginalBudAmnt,Sheet1!S71_SubMunicipalVoteNo,$AC:$AC,Sheet1!S71_ItemType,$AD:$AD)","v":0},{"$f":"SUMIFS(Sheet1!S71_AdjustmentBudAmnt,Sheet1!S71_SubMunicipalVoteNo,$AC:$AC,Sheet1!S71_ItemType,$AD:$AD)","v":0},{"$f":"SUMIFS(Sheet1!S71_AdjustmentBudAmnt,Sheet1!S71_SubMunicipalVoteNo,$AC:$AC,Sheet1!S71_ItemType,$AD:$AD)","v":0},{"$f":"SUMIFS(Sheet1!S71_ASBudgetAmount,Sheet1!S71_SubMunicipalVoteNo,$AC:$AC,Sheet1!S71_ItemType,$AD:$AD)","v":0},{"$f":"SUMIFS(Sheet1!S71_OY1BudgetAmount,Sheet1!S71_SubMunicipalVoteNo,$AC:$AC,Sheet1!S71_ItemType,$AD:$AD)","v":0},{"$f":"SUMIFS(Sheet1!S71_OY2BudgetAmount,Sheet1!S71_SubMunicipalVoteNo,$AC:$AC,Sheet1!S71_ItemType,$AD:$AD)","v":0},null,null,null,null,null,null,null,null,null,null,null,null,null,null,null,null,null,152,"IR"]
[{"$f":"'Org structure'!E159","v":"15.3 - [Name of sub-vote]"},null,{"$f":"SUMIFS(Sheet1!S71_PPPYearAmount,Sheet1!S71_SubMunicipalVoteNo,$AC:$AC,Sheet1!S71_ItemType,$AD:$AD)","v":0},{"$f":"SUMIFS(Sheet1!S71_PPYearAmount,Sheet1!S71_SubMunicipalVoteNo,$AC:$AC,Sheet1!S71_ItemType,$AD:$AD)","v":0},{"$f":"SUMIFS(Sheet1!S71_PYearAmount,Sheet1!S71_SubMunicipalVoteNo,$AC:$AC,Sheet1!S71_ItemType,$AD:$AD)","v":0},{"$f":"SUMIFS(Sheet1!S71_OriginalBudAmnt,Sheet1!S71_SubMunicipalVoteNo,$AC:$AC,Sheet1!S71_ItemType,$AD:$AD)","v":0},{"$f":"SUMIFS(Sheet1!S71_AdjustmentBudAmnt,Sheet1!S71_SubMunicipalVoteNo,$AC:$AC,Sheet1!S71_ItemType,$AD:$AD)","v":0},{"$f":"SUMIFS(Sheet1!S71_AdjustmentBudAmnt,Sheet1!S71_SubMunicipalVoteNo,$AC:$AC,Sheet1!S71_ItemType,$AD:$AD)","v":0},{"$f":"SUMIFS(Sheet1!S71_ASBudgetAmount,Sheet1!S71_SubMunicipalVoteNo,$AC:$AC,Sheet1!S71_ItemType,$AD:$AD)","v":0},{"$f":"SUMIFS(Sheet1!S71_OY1BudgetAmount,Sheet1!S71_SubMunicipalVoteNo,$AC:$AC,Sheet1!S71_ItemType,$AD:$AD)","v":0},{"$f":"SUMIFS(Sheet1!S71_OY2BudgetAmount,Sheet1!S71_SubMunicipalVoteNo,$AC:$AC,Sheet1!S71_ItemType,$AD:$AD)","v":0},null,null,null,null,null,null,null,null,null,null,null,null,null,null,null,null,null,153,"IR"]
[{"$f":"'Org structure'!E160","v":"15.4 - [Name of sub-vote]"},null,{"$f":"SUMIFS(Sheet1!S71_PPPYearAmount,Sheet1!S71_SubMunicipalVoteNo,$AC:$AC,Sheet1!S71_ItemType,$AD:$AD)","v":0},{"$f":"SUMIFS(Sheet1!S71_PPYearAmount,Sheet1!S71_SubMunicipalVoteNo,$AC:$AC,Sheet1!S71_ItemType,$AD:$AD)","v":0},{"$f":"SUMIFS(Sheet1!S71_PYearAmount,Sheet1!S71_SubMunicipalVoteNo,$AC:$AC,Sheet1!S71_ItemType,$AD:$AD)","v":0},{"$f":"SUMIFS(Sheet1!S71_OriginalBudAmnt,Sheet1!S71_SubMunicipalVoteNo,$AC:$AC,Sheet1!S71_ItemType,$AD:$AD)","v":0},{"$f":"SUMIFS(Sheet1!S71_AdjustmentBudAmnt,Sheet1!S71_SubMunicipalVoteNo,$AC:$AC,Sheet1!S71_ItemType,$AD:$AD)","v":0},{"$f":"SUMIFS(Sheet1!S71_AdjustmentBudAmnt,Sheet1!S71_SubMunicipalVoteNo,$AC:$AC,Sheet1!S71_ItemType,$AD:$AD)","v":0},{"$f":"SUMIFS(Sheet1!S71_ASBudgetAmount,Sheet1!S71_SubMunicipalVoteNo,$AC:$AC,Sheet1!S71_ItemType,$AD:$AD)","v":0},{"$f":"SUMIFS(Sheet1!S71_OY1BudgetAmount,Sheet1!S71_SubMunicipalVoteNo,$AC:$AC,Sheet1!S71_ItemType,$AD:$AD)","v":0},{"$f":"SUMIFS(Sheet1!S71_OY2BudgetAmount,Sheet1!S71_SubMunicipalVoteNo,$AC:$AC,Sheet1!S71_ItemType,$AD:$AD)","v":0},null,null,null,null,null,null,null,null,null,null,null,null,null,null,null,null,null,154,"IR"]
[{"$f":"'Org structure'!E161","v":"15.5 - [Name of sub-vote]"},null,{"$f":"SUMIFS(Sheet1!S71_PPPYearAmount,Sheet1!S71_SubMunicipalVoteNo,$AC:$AC,Sheet1!S71_ItemType,$AD:$AD)","v":0},{"$f":"SUMIFS(Sheet1!S71_PPYearAmount,Sheet1!S71_SubMunicipalVoteNo,$AC:$AC,Sheet1!S71_ItemType,$AD:$AD)","v":0},{"$f":"SUMIFS(Sheet1!S71_PYearAmount,Sheet1!S71_SubMunicipalVoteNo,$AC:$AC,Sheet1!S71_ItemType,$AD:$AD)","v":0},{"$f":"SUMIFS(Sheet1!S71_OriginalBudAmnt,Sheet1!S71_SubMunicipalVoteNo,$AC:$AC,Sheet1!S71_ItemType,$AD:$AD)","v":0},{"$f":"SUMIFS(Sheet1!S71_AdjustmentBudAmnt,Sheet1!S71_SubMunicipalVoteNo,$AC:$AC,Sheet1!S71_ItemType,$AD:$AD)","v":0},{"$f":"SUMIFS(Sheet1!S71_AdjustmentBudAmnt,Sheet1!S71_SubMunicipalVoteNo,$AC:$AC,Sheet1!S71_ItemType,$AD:$AD)","v":0},{"$f":"SUMIFS(Sheet1!S71_ASBudgetAmount,Sheet1!S71_SubMunicipalVoteNo,$AC:$AC,Sheet1!S71_ItemType,$AD:$AD)","v":0},{"$f":"SUMIFS(Sheet1!S71_OY1BudgetAmount,Sheet1!S71_SubMunicipalVoteNo,$AC:$AC,Sheet1!S71_ItemType,$AD:$AD)","v":0},{"$f":"SUMIFS(Sheet1!S71_OY2BudgetAmount,Sheet1!S71_SubMunicipalVoteNo,$AC:$AC,Sheet1!S71_ItemType,$AD:$AD)","v":0},null,null,null,null,null,null,null,null,null,null,null,null,null,null,null,null,null,155,"IR"]
[{"$f":"'Org structure'!E162","v":"15.6 - [Name of sub-vote]"},null,{"$f":"SUMIFS(Sheet1!S71_PPPYearAmount,Sheet1!S71_SubMunicipalVoteNo,$AC:$AC,Sheet1!S71_ItemType,$AD:$AD)","v":0},{"$f":"SUMIFS(Sheet1!S71_PPYearAmount,Sheet1!S71_SubMunicipalVoteNo,$AC:$AC,Sheet1!S71_ItemType,$AD:$AD)","v":0},{"$f":"SUMIFS(Sheet1!S71_PYearAmount,Sheet1!S71_SubMunicipalVoteNo,$AC:$AC,Sheet1!S71_ItemType,$AD:$AD)","v":0},{"$f":"SUMIFS(Sheet1!S71_OriginalBudAmnt,Sheet1!S71_SubMunicipalVoteNo,$AC:$AC,Sheet1!S71_ItemType,$AD:$AD)","v":0},{"$f":"SUMIFS(Sheet1!S71_AdjustmentBudAmnt,Sheet1!S71_SubMunicipalVoteNo,$AC:$AC,Sheet1!S71_ItemType,$AD:$AD)","v":0},{"$f":"SUMIFS(Sheet1!S71_AdjustmentBudAmnt,Sheet1!S71_SubMunicipalVoteNo,$AC:$AC,Sheet1!S71_ItemType,$AD:$AD)","v":0},{"$f":"SUMIFS(Sheet1!S71_ASBudgetAmount,Sheet1!S71_SubMunicipalVoteNo,$AC:$AC,Sheet1!S71_ItemType,$AD:$AD)","v":0},{"$f":"SUMIFS(Sheet1!S71_OY1BudgetAmount,Sheet1!S71_SubMunicipalVoteNo,$AC:$AC,Sheet1!S71_ItemType,$AD:$AD)","v":0},{"$f":"SUMIFS(Sheet1!S71_OY2BudgetAmount,Sheet1!S71_SubMunicipalVoteNo,$AC:$AC,Sheet1!S71_ItemType,$AD:$AD)","v":0},null,null,null,null,null,null,null,null,null,null,null,null,null,null,null,null,null,156,"IR"]
[{"$f":"'Org structure'!E163","v":"15.7 - [Name of sub-vote]"},null,{"$f":"SUMIFS(Sheet1!S71_PPPYearAmount,Sheet1!S71_SubMunicipalVoteNo,$AC:$AC,Sheet1!S71_ItemType,$AD:$AD)","v":0},{"$f":"SUMIFS(Sheet1!S71_PPYearAmount,Sheet1!S71_SubMunicipalVoteNo,$AC:$AC,Sheet1!S71_ItemType,$AD:$AD)","v":0},{"$f":"SUMIFS(Sheet1!S71_PYearAmount,Sheet1!S71_SubMunicipalVoteNo,$AC:$AC,Sheet1!S71_ItemType,$AD:$AD)","v":0},{"$f":"SUMIFS(Sheet1!S71_OriginalBudAmnt,Sheet1!S71_SubMunicipalVoteNo,$AC:$AC,Sheet1!S71_ItemType,$AD:$AD)","v":0},{"$f":"SUMIFS(Sheet1!S71_AdjustmentBudAmnt,Sheet1!S71_SubMunicipalVoteNo,$AC:$AC,Sheet1!S71_ItemType,$AD:$AD)","v":0},{"$f":"SUMIFS(Sheet1!S71_AdjustmentBudAmnt,Sheet1!S71_SubMunicipalVoteNo,$AC:$AC,Sheet1!S71_ItemType,$AD:$AD)","v":0},{"$f":"SUMIFS(Sheet1!S71_ASBudgetAmount,Sheet1!S71_SubMunicipalVoteNo,$AC:$AC,Sheet1!S71_ItemType,$AD:$AD)","v":0},{"$f":"SUMIFS(Sheet1!S71_OY1BudgetAmount,Sheet1!S71_SubMunicipalVoteNo,$AC:$AC,Sheet1!S71_ItemType,$AD:$AD)","v":0},{"$f":"SUMIFS(Sheet1!S71_OY2BudgetAmount,Sheet1!S71_SubMunicipalVoteNo,$AC:$AC,Sheet1!S71_ItemType,$AD:$AD)","v":0},null,null,null,null,null,null,null,null,null,null,null,null,null,null,null,null,null,157,"IR"]
[{"$f":"'Org structure'!E164","v":"15.8 - [Name of sub-vote]"},null,{"$f":"SUMIFS(Sheet1!S71_PPPYearAmount,Sheet1!S71_SubMunicipalVoteNo,$AC:$AC,Sheet1!S71_ItemType,$AD:$AD)","v":0},{"$f":"SUMIFS(Sheet1!S71_PPYearAmount,Sheet1!S71_SubMunicipalVoteNo,$AC:$AC,Sheet1!S71_ItemType,$AD:$AD)","v":0},{"$f":"SUMIFS(Sheet1!S71_PYearAmount,Sheet1!S71_SubMunicipalVoteNo,$AC:$AC,Sheet1!S71_ItemType,$AD:$AD)","v":0},{"$f":"SUMIFS(Sheet1!S71_OriginalBudAmnt,Sheet1!S71_SubMunicipalVoteNo,$AC:$AC,Sheet1!S71_ItemType,$AD:$AD)","v":0},{"$f":"SUMIFS(Sheet1!S71_AdjustmentBudAmnt,Sheet1!S71_SubMunicipalVoteNo,$AC:$AC,Sheet1!S71_ItemType,$AD:$AD)","v":0},{"$f":"SUMIFS(Sheet1!S71_AdjustmentBudAmnt,Sheet1!S71_SubMunicipalVoteNo,$AC:$AC,Sheet1!S71_ItemType,$AD:$AD)","v":0},{"$f":"SUMIFS(Sheet1!S71_ASBudgetAmount,Sheet1!S71_SubMunicipalVoteNo,$AC:$AC,Sheet1!S71_ItemType,$AD:$AD)","v":0},{"$f":"SUMIFS(Sheet1!S71_OY1BudgetAmount,Sheet1!S71_SubMunicipalVoteNo,$AC:$AC,Sheet1!S71_ItemType,$AD:$AD)","v":0},{"$f":"SUMIFS(Sheet1!S71_OY2BudgetAmount,Sheet1!S71_SubMunicipalVoteNo,$AC:$AC,Sheet1!S71_ItemType,$AD:$AD)","v":0},null,null,null,null,null,null,null,null,null,null,null,null,null,null,null,null,null,158,"IR"]
[{"$f":"'Org structure'!E165","v":"15.9 - [Name of sub-vote]"},null,{"$f":"SUMIFS(Sheet1!S71_PPPYearAmount,Sheet1!S71_SubMunicipalVoteNo,$AC:$AC,Sheet1!S71_ItemType,$AD:$AD)","v":0},{"$f":"SUMIFS(Sheet1!S71_PPYearAmount,Sheet1!S71_SubMunicipalVoteNo,$AC:$AC,Sheet1!S71_ItemType,$AD:$AD)","v":0},{"$f":"SUMIFS(Sheet1!S71_PYearAmount,Sheet1!S71_SubMunicipalVoteNo,$AC:$AC,Sheet1!S71_ItemType,$AD:$AD)","v":0},{"$f":"SUMIFS(Sheet1!S71_OriginalBudAmnt,Sheet1!S71_SubMunicipalVoteNo,$AC:$AC,Sheet1!S71_ItemType,$AD:$AD)","v":0},{"$f":"SUMIFS(Sheet1!S71_AdjustmentBudAmnt,Sheet1!S71_SubMunicipalVoteNo,$AC:$AC,Sheet1!S71_ItemType,$AD:$AD)","v":0},{"$f":"SUMIFS(Sheet1!S71_AdjustmentBudAmnt,Sheet1!S71_SubMunicipalVoteNo,$AC:$AC,Sheet1!S71_ItemType,$AD:$AD)","v":0},{"$f":"SUMIFS(Sheet1!S71_ASBudgetAmount,Sheet1!S71_SubMunicipalVoteNo,$AC:$AC,Sheet1!S71_ItemType,$AD:$AD)","v":0},{"$f":"SUMIFS(Sheet1!S71_OY1BudgetAmount,Sheet1!S71_SubMunicipalVoteNo,$AC:$AC,Sheet1!S71_ItemType,$AD:$AD)","v":0},{"$f":"SUMIFS(Sheet1!S71_OY2BudgetAmount,Sheet1!S71_SubMunicipalVoteNo,$AC:$AC,Sheet1!S71_ItemType,$AD:$AD)","v":0},null,null,null,null,null,null,null,null,null,null,null,null,null,null,null,null,null,159,"IR"]
[{"$f":"'Org structure'!E166","v":"15.10 - [Name of sub-vote]"},null,{"$f":"SUMIFS(Sheet1!S71_PPPYearAmount,Sheet1!S71_SubMunicipalVoteNo,$AC:$AC,Sheet1!S71_ItemType,$AD:$AD)","v":0},{"$f":"SUMIFS(Sheet1!S71_PPYearAmount,Sheet1!S71_SubMunicipalVoteNo,$AC:$AC,Sheet1!S71_ItemType,$AD:$AD)","v":0},{"$f":"SUMIFS(Sheet1!S71_PYearAmount,Sheet1!S71_SubMunicipalVoteNo,$AC:$AC,Sheet1!S71_ItemType,$AD:$AD)","v":0},{"$f":"SUMIFS(Sheet1!S71_OriginalBudAmnt,Sheet1!S71_SubMunicipalVoteNo,$AC:$AC,Sheet1!S71_ItemType,$AD:$AD)","v":0},{"$f":"SUMIFS(Sheet1!S71_AdjustmentBudAmnt,Sheet1!S71_SubMunicipalVoteNo,$AC:$AC,Sheet1!S71_ItemType,$AD:$AD)","v":0},{"$f":"SUMIFS(Sheet1!S71_AdjustmentBudAmnt,Sheet1!S71_SubMunicipalVoteNo,$AC:$AC,Sheet1!S71_ItemType,$AD:$AD)","v":0},{"$f":"SUMIFS(Sheet1!S71_ASBudgetAmount,Sheet1!S71_SubMunicipalVoteNo,$AC:$AC,Sheet1!S71_ItemType,$AD:$AD)","v":0},{"$f":"SUMIFS(Sheet1!S71_OY1BudgetAmount,Sheet1!S71_SubMunicipalVoteNo,$AC:$AC,Sheet1!S71_ItemType,$AD:$AD)","v":0},{"$f":"SUMIFS(Sheet1!S71_OY2BudgetAmount,Sheet1!S71_SubMunicipalVoteNo,$AC:$AC,Sheet1!S71_ItemType,$AD:$AD)","v":0},null,null,null,null,null,null,null,null,null,null,null,null,null,null,null,null,null,1510,"IR"]
["Total Revenue by Vote",2,{"$f":"C5+C16+C27+C38+C49+C60+C71+C82+C93+C104+C115+C126+C137+C148+C159","v":468231857},{"$f":"D5+D16+D27+D38+D49+D60+D71+D82+D93+D104+D115+D126+D137+D148+D159","v":575770626},{"$f":"E5+E16+E27+E38+E49+E60+E71+E82+E93+E104+E115+E126+E137+E148+E159","v":535989296},600163402,599794669,599794669,{"$f":"I5+I16+I27+I38+I49+I60+I71+I82+I93+I104+I115+I126+I137+I148+I159","v":640857125},668891737,670735033,{"$f":"SUM(L78:L81)","v":0},0,0,0,0,0,0,0,0,0,0,0]
[]
["Expenditure by Vote",1]
[{"$f":"A5","v":"Vote 1 -  Energy Sources"},null,{"$f":"SUM(C174:C183)","v":16301797},34564099,57078747,57331169,61500576,61500576,72893701,68742676,66930600]
[{"$f":"A6","v":"1.1 - Electricity"},null,{"$f":"SUMIFS(Sheet1!S71_PPPYearAmount,Sheet1!S71_SubMunicipalVoteNo,$AC:$AC,Sheet1!S71_ItemType,$AD:$AD)","v":16301797},{"$f":"SUMIFS(Sheet1!S71_PPYearAmount,Sheet1!S71_SubMunicipalVoteNo,$AC:$AC,Sheet1!S71_ItemType,$AD:$AD)","v":34564099},{"$f":"SUMIFS(Sheet1!S71_PYearAmount,Sheet1!S71_SubMunicipalVoteNo,$AC:$AC,Sheet1!S71_ItemType,$AD:$AD)","v":54470051},{"$f":"SUMIFS(Sheet1!S71_OriginalBudAmnt,Sheet1!S71_SubMunicipalVoteNo,$AC:$AC,Sheet1!S71_ItemType,$AD:$AD)","v":47031169},{"$f":"SUMIFS(Sheet1!S71_AdjustmentBudAmnt,Sheet1!S71_SubMunicipalVoteNo,$AC:$AC,Sheet1!S71_ItemType,$AD:$AD)","v":54000576},{"$f":"SUMIFS(Sheet1!S71_AdjustmentBudAmnt,Sheet1!S71_SubMunicipalVoteNo,$AC:$AC,Sheet1!S71_ItemType,$AD:$AD)","v":54000576},{"$f":"SUMIFS(Sheet1!S71_ASBudgetAmount,Sheet1!S71_SubMunicipalVoteNo,$AC:$AC,Sheet1!S71_ItemType,$AD:$AD)","v":63393701},{"$f":"SUMIFS(Sheet1!S71_OY1BudgetAmount,Sheet1!S71_SubMunicipalVoteNo,$AC:$AC,Sheet1!S71_ItemType,$AD:$AD)","v":59242676},{"$f":"SUMIFS(Sheet1!S71_OY2BudgetAmount,Sheet1!S71_SubMunicipalVoteNo,$AC:$AC,Sheet1!S71_ItemType,$AD:$AD)","v":57430600},null,null,null,null,null,null,null,null,null,null,null,null,null,null,null,null,null,11,"IE"]
["1.2 - Street Lighting and Signal Systems",null,{"$f":"SUMIFS(Sheet1!S71_PPPYearAmount,Sheet1!S71_SubMunicipalVoteNo,$AC:$AC,Sheet1!S71_ItemType,$AD:$AD)","v":0},{"$f":"SUMIFS(Sheet1!S71_PPYearAmount,Sheet1!S71_SubMunicipalVoteNo,$AC:$AC,Sheet1!S71_ItemType,$AD:$AD)","v":0},{"$f":"SUMIFS(Sheet1!S71_PYearAmount,Sheet1!S71_SubMunicipalVoteNo,$AC:$AC,Sheet1!S71_ItemType,$AD:$AD)","v":2608696},{"$f":"SUMIFS(Sheet1!S71_OriginalBudAmnt,Sheet1!S71_SubMunicipalVoteNo,$AC:$AC,Sheet1!S71_ItemType,$AD:$AD)","v":10300000},{"$f":"SUMIFS(Sheet1!S71_AdjustmentBudAmnt,Sheet1!S71_SubMunicipalVoteNo,$AC:$AC,Sheet1!S71_ItemType,$AD:$AD)","v":7500000},{"$f":"SUMIFS(Sheet1!S71_AdjustmentBudAmnt,Sheet1!S71_SubMunicipalVoteNo,$AC:$AC,Sheet1!S71_ItemType,$AD:$AD)","v":7500000},{"$f":"SUMIFS(Sheet1!S71_ASBudgetAmount,Sheet1!S71_SubMunicipalVoteNo,$AC:$AC,Sheet1!S71_ItemType,$AD:$AD)","v":9500000},{"$f":"SUMIFS(Sheet1!S71_OY1BudgetAmount,Sheet1!S71_SubMunicipalVoteNo,$AC:$AC,Sheet1!S71_ItemType,$AD:$AD)","v":9500000},{"$f":"SUMIFS(Sheet1!S71_OY2BudgetAmount,Sheet1!S71_SubMunicipalVoteNo,$AC:$AC,Sheet1!S71_ItemType,$AD:$AD)","v":9500000},null,null,null,null,null,null,null,null,null,null,null,null,null,null,null,null,null,12,"IE"]
["1.3 - [Name of sub-vote]",null,{"$f":"SUMIFS(Sheet1!S71_PPPYearAmount,Sheet1!S71_SubMunicipalVoteNo,$AC:$AC,Sheet1!S71_ItemType,$AD:$AD)","v":0},{"$f":"SUMIFS(Sheet1!S71_PPYearAmount,Sheet1!S71_SubMunicipalVoteNo,$AC:$AC,Sheet1!S71_ItemType,$AD:$AD)","v":0},{"$f":"SUMIFS(Sheet1!S71_PYearAmount,Sheet1!S71_SubMunicipalVoteNo,$AC:$AC,Sheet1!S71_ItemType,$AD:$AD)","v":0},{"$f":"SUMIFS(Sheet1!S71_OriginalBudAmnt,Sheet1!S71_SubMunicipalVoteNo,$AC:$AC,Sheet1!S71_ItemType,$AD:$AD)","v":0},{"$f":"SUMIFS(Sheet1!S71_AdjustmentBudAmnt,Sheet1!S71_SubMunicipalVoteNo,$AC:$AC,Sheet1!S71_ItemType,$AD:$AD)","v":0},{"$f":"SUMIFS(Sheet1!S71_AdjustmentBudAmnt,Sheet1!S71_SubMunicipalVoteNo,$AC:$AC,Sheet1!S71_ItemType,$AD:$AD)","v":0},{"$f":"SUMIFS(Sheet1!S71_ASBudgetAmount,Sheet1!S71_SubMunicipalVoteNo,$AC:$AC,Sheet1!S71_ItemType,$AD:$AD)","v":0},{"$f":"SUMIFS(Sheet1!S71_OY1BudgetAmount,Sheet1!S71_SubMunicipalVoteNo,$AC:$AC,Sheet1!S71_ItemType,$AD:$AD)","v":0},{"$f":"SUMIFS(Sheet1!S71_OY2BudgetAmount,Sheet1!S71_SubMunicipalVoteNo,$AC:$AC,Sheet1!S71_ItemType,$AD:$AD)","v":0},null,null,null,null,null,null,null,null,null,null,null,null,null,null,null,null,null,13,"IE"]
["1.4 - [Name of sub-vote]",null,{"$f":"SUMIFS(Sheet1!S71_PPPYearAmount,Sheet1!S71_SubMunicipalVoteNo,$AC:$AC,Sheet1!S71_ItemType,$AD:$AD)","v":0},{"$f":"SUMIFS(Sheet1!S71_PPYearAmount,Sheet1!S71_SubMunicipalVoteNo,$AC:$AC,Sheet1!S71_ItemType,$AD:$AD)","v":0},{"$f":"SUMIFS(Sheet1!S71_PYearAmount,Sheet1!S71_SubMunicipalVoteNo,$AC:$AC,Sheet1!S71_ItemType,$AD:$AD)","v":0},{"$f":"SUMIFS(Sheet1!S71_OriginalBudAmnt,Sheet1!S71_SubMunicipalVoteNo,$AC:$AC,Sheet1!S71_ItemType,$AD:$AD)","v":0},{"$f":"SUMIFS(Sheet1!S71_AdjustmentBudAmnt,Sheet1!S71_SubMunicipalVoteNo,$AC:$AC,Sheet1!S71_ItemType,$AD:$AD)","v":0},{"$f":"SUMIFS(Sheet1!S71_AdjustmentBudAmnt,Sheet1!S71_SubMunicipalVoteNo,$AC:$AC,Sheet1!S71_ItemType,$AD:$AD)","v":0},{"$f":"SUMIFS(Sheet1!S71_ASBudgetAmount,Sheet1!S71_SubMunicipalVoteNo,$AC:$AC,Sheet1!S71_ItemType,$AD:$AD)","v":0},{"$f":"SUMIFS(Sheet1!S71_OY1BudgetAmount,Sheet1!S71_SubMunicipalVoteNo,$AC:$AC,Sheet1!S71_ItemType,$AD:$AD)","v":0},{"$f":"SUMIFS(Sheet1!S71_OY2BudgetAmount,Sheet1!S71_SubMunicipalVoteNo,$AC:$AC,Sheet1!S71_ItemType,$AD:$AD)","v":0},null,null,null,null,null,null,null,null,null,null,null,null,null,null,null,null,null,14,"IE"]
["1.5 - [Name of sub-vote]",null,{"$f":"SUMIFS(Sheet1!S71_PPPYearAmount,Sheet1!S71_SubMunicipalVoteNo,$AC:$AC,Sheet1!S71_ItemType,$AD:$AD)","v":0},{"$f":"SUMIFS(Sheet1!S71_PPYearAmount,Sheet1!S71_SubMunicipalVoteNo,$AC:$AC,Sheet1!S71_ItemType,$AD:$AD)","v":0},{"$f":"SUMIFS(Sheet1!S71_PYearAmount,Sheet1!S71_SubMunicipalVoteNo,$AC:$AC,Sheet1!S71_ItemType,$AD:$AD)","v":0},{"$f":"SUMIFS(Sheet1!S71_OriginalBudAmnt,Sheet1!S71_SubMunicipalVoteNo,$AC:$AC,Sheet1!S71_ItemType,$AD:$AD)","v":0},{"$f":"SUMIFS(Sheet1!S71_AdjustmentBudAmnt,Sheet1!S71_SubMunicipalVoteNo,$AC:$AC,Sheet1!S71_ItemType,$AD:$AD)","v":0},{"$f":"SUMIFS(Sheet1!S71_AdjustmentBudAmnt,Sheet1!S71_SubMunicipalVoteNo,$AC:$AC,Sheet1!S71_ItemType,$AD:$AD)","v":0},{"$f":"SUMIFS(Sheet1!S71_ASBudgetAmount,Sheet1!S71_SubMunicipalVoteNo,$AC:$AC,Sheet1!S71_ItemType,$AD:$AD)","v":0},{"$f":"SUMIFS(Sheet1!S71_OY1BudgetAmount,Sheet1!S71_SubMunicipalVoteNo,$AC:$AC,Sheet1!S71_ItemType,$AD:$AD)","v":0},{"$f":"SUMIFS(Sheet1!S71_OY2BudgetAmount,Sheet1!S71_SubMunicipalVoteNo,$AC:$AC,Sheet1!S71_ItemType,$AD:$AD)","v":0},null,null,null,null,null,null,null,null,null,null,null,null,null,null,null,null,null,15,"IE"]
["1.6 - [Name of sub-vote]",null,{"$f":"SUMIFS(Sheet1!S71_PPPYearAmount,Sheet1!S71_SubMunicipalVoteNo,$AC:$AC,Sheet1!S71_ItemType,$AD:$AD)","v":0},{"$f":"SUMIFS(Sheet1!S71_PPYearAmount,Sheet1!S71_SubMunicipalVoteNo,$AC:$AC,Sheet1!S71_ItemType,$AD:$AD)","v":0},{"$f":"SUMIFS(Sheet1!S71_PYearAmount,Sheet1!S71_SubMunicipalVoteNo,$AC:$AC,Sheet1!S71_ItemType,$AD:$AD)","v":0},{"$f":"SUMIFS(Sheet1!S71_OriginalBudAmnt,Sheet1!S71_SubMunicipalVoteNo,$AC:$AC,Sheet1!S71_ItemType,$AD:$AD)","v":0},{"$f":"SUMIFS(Sheet1!S71_AdjustmentBudAmnt,Sheet1!S71_SubMunicipalVoteNo,$AC:$AC,Sheet1!S71_ItemType,$AD:$AD)","v":0},{"$f":"SUMIFS(Sheet1!S71_AdjustmentBudAmnt,Sheet1!S71_SubMunicipalVoteNo,$AC:$AC,Sheet1!S71_ItemType,$AD:$AD)","v":0},{"$f":"SUMIFS(Sheet1!S71_ASBudgetAmount,Sheet1!S71_SubMunicipalVoteNo,$AC:$AC,Sheet1!S71_ItemType,$AD:$AD)","v":0},{"$f":"SUMIFS(Sheet1!S71_OY1BudgetAmount,Sheet1!S71_SubMunicipalVoteNo,$AC:$AC,Sheet1!S71_ItemType,$AD:$AD)","v":0},{"$f":"SUMIFS(Sheet1!S71_OY2BudgetAmount,Sheet1!S71_SubMunicipalVoteNo,$AC:$AC,Sheet1!S71_ItemType,$AD:$AD)","v":0},null,null,null,null,null,null,null,null,null,null,null,null,null,null,null,null,null,16,"IE"]
["1.7 - [Name of sub-vote]",null,{"$f":"SUMIFS(Sheet1!S71_PPPYearAmount,Sheet1!S71_SubMunicipalVoteNo,$AC:$AC,Sheet1!S71_ItemType,$AD:$AD)","v":0},{"$f":"SUMIFS(Sheet1!S71_PPYearAmount,Sheet1!S71_SubMunicipalVoteNo,$AC:$AC,Sheet1!S71_ItemType,$AD:$AD)","v":0},{"$f":"SUMIFS(Sheet1!S71_PYearAmount,Sheet1!S71_SubMunicipalVoteNo,$AC:$AC,Sheet1!S71_ItemType,$AD:$AD)","v":0},{"$f":"SUMIFS(Sheet1!S71_OriginalBudAmnt,Sheet1!S71_SubMunicipalVoteNo,$AC:$AC,Sheet1!S71_ItemType,$AD:$AD)","v":0},{"$f":"SUMIFS(Sheet1!S71_AdjustmentBudAmnt,Sheet1!S71_SubMunicipalVoteNo,$AC:$AC,Sheet1!S71_ItemType,$AD:$AD)","v":0},{"$f":"SUMIFS(Sheet1!S71_AdjustmentBudAmnt,Sheet1!S71_SubMunicipalVoteNo,$AC:$AC,Sheet1!S71_ItemType,$AD:$AD)","v":0},{"$f":"SUMIFS(Sheet1!S71_ASBudgetAmount,Sheet1!S71_SubMunicipalVoteNo,$AC:$AC,Sheet1!S71_ItemType,$AD:$AD)","v":0},{"$f":"SUMIFS(Sheet1!S71_OY1BudgetAmount,Sheet1!S71_SubMunicipalVoteNo,$AC:$AC,Sheet1!S71_ItemType,$AD:$AD)","v":0},{"$f":"SUMIFS(Sheet1!S71_OY2BudgetAmount,Sheet1!S71_SubMunicipalVoteNo,$AC:$AC,Sheet1!S71_ItemType,$AD:$AD)","v":0},null,null,null,null,null,null,null,null,null,null,null,null,null,null,null,null,null,17,"IE"]
["1.8 - [Name of sub-vote]",null,{"$f":"SUMIFS(Sheet1!S71_PPPYearAmount,Sheet1!S71_SubMunicipalVoteNo,$AC:$AC,Sheet1!S71_ItemType,$AD:$AD)","v":0},{"$f":"SUMIFS(Sheet1!S71_PPYearAmount,Sheet1!S71_SubMunicipalVoteNo,$AC:$AC,Sheet1!S71_ItemType,$AD:$AD)","v":0},{"$f":"SUMIFS(Sheet1!S71_PYearAmount,Sheet1!S71_SubMunicipalVoteNo,$AC:$AC,Sheet1!S71_ItemType,$AD:$AD)","v":0},{"$f":"SUMIFS(Sheet1!S71_OriginalBudAmnt,Sheet1!S71_SubMunicipalVoteNo,$AC:$AC,Sheet1!S71_ItemType,$AD:$AD)","v":0},{"$f":"SUMIFS(Sheet1!S71_AdjustmentBudAmnt,Sheet1!S71_SubMunicipalVoteNo,$AC:$AC,Sheet1!S71_ItemType,$AD:$AD)","v":0},{"$f":"SUMIFS(Sheet1!S71_AdjustmentBudAmnt,Sheet1!S71_SubMunicipalVoteNo,$AC:$AC,Sheet1!S71_ItemType,$AD:$AD)","v":0},{"$f":"SUMIFS(Sheet1!S71_ASBudgetAmount,Sheet1!S71_SubMunicipalVoteNo,$AC:$AC,Sheet1!S71_ItemType,$AD:$AD)","v":0},{"$f":"SUMIFS(Sheet1!S71_OY1BudgetAmount,Sheet1!S71_SubMunicipalVoteNo,$AC:$AC,Sheet1!S71_ItemType,$AD:$AD)","v":0},{"$f":"SUMIFS(Sheet1!S71_OY2BudgetAmount,Sheet1!S71_SubMunicipalVoteNo,$AC:$AC,Sheet1!S71_ItemType,$AD:$AD)","v":0},null,null,null,null,null,null,null,null,null,null,null,null,null,null,null,null,null,18,"IE"]
["1.9 - [Name of sub-vote]",null,{"$f":"SUMIFS(Sheet1!S71_PPPYearAmount,Sheet1!S71_SubMunicipalVoteNo,$AC:$AC,Sheet1!S71_ItemType,$AD:$AD)","v":0},{"$f":"SUMIFS(Sheet1!S71_PPYearAmount,Sheet1!S71_SubMunicipalVoteNo,$AC:$AC,Sheet1!S71_ItemType,$AD:$AD)","v":0},{"$f":"SUMIFS(Sheet1!S71_PYearAmount,Sheet1!S71_SubMunicipalVoteNo,$AC:$AC,Sheet1!S71_ItemType,$AD:$AD)","v":0},{"$f":"SUMIFS(Sheet1!S71_OriginalBudAmnt,Sheet1!S71_SubMunicipalVoteNo,$AC:$AC,Sheet1!S71_ItemType,$AD:$AD)","v":0},{"$f":"SUMIFS(Sheet1!S71_AdjustmentBudAmnt,Sheet1!S71_SubMunicipalVoteNo,$AC:$AC,Sheet1!S71_ItemType,$AD:$AD)","v":0},{"$f":"SUMIFS(Sheet1!S71_AdjustmentBudAmnt,Sheet1!S71_SubMunicipalVoteNo,$AC:$AC,Sheet1!S71_ItemType,$AD:$AD)","v":0},{"$f":"SUMIFS(Sheet1!S71_ASBudgetAmount,Sheet1!S71_SubMunicipalVoteNo,$AC:$AC,Sheet1!S71_ItemType,$AD:$AD)","v":0},{"$f":"SUMIFS(Sheet1!S71_OY1BudgetAmount,Sheet1!S71_SubMunicipalVoteNo,$AC:$AC,Sheet1!S71_ItemType,$AD:$AD)","v":0},{"$f":"SUMIFS(Sheet1!S71_OY2BudgetAmount,Sheet1!S71_SubMunicipalVoteNo,$AC:$AC,Sheet1!S71_ItemType,$AD:$AD)","v":0},null,null,null,null,null,null,null,null,null,null,null,null,null,null,null,null,null,19,"IE"]
["1.10 - [Name of sub-vote]",null,{"$f":"SUMIFS(Sheet1!S71_PPPYearAmount,Sheet1!S71_SubMunicipalVoteNo,$AC:$AC,Sheet1!S71_ItemType,$AD:$AD)","v":0},{"$f":"SUMIFS(Sheet1!S71_PPYearAmount,Sheet1!S71_SubMunicipalVoteNo,$AC:$AC,Sheet1!S71_ItemType,$AD:$AD)","v":0},{"$f":"SUMIFS(Sheet1!S71_PYearAmount,Sheet1!S71_SubMunicipalVoteNo,$AC:$AC,Sheet1!S71_ItemType,$AD:$AD)","v":0},{"$f":"SUMIFS(Sheet1!S71_OriginalBudAmnt,Sheet1!S71_SubMunicipalVoteNo,$AC:$AC,Sheet1!S71_ItemType,$AD:$AD)","v":0},{"$f":"SUMIFS(Sheet1!S71_AdjustmentBudAmnt,Sheet1!S71_SubMunicipalVoteNo,$AC:$AC,Sheet1!S71_ItemType,$AD:$AD)","v":0},{"$f":"SUMIFS(Sheet1!S71_AdjustmentBudAmnt,Sheet1!S71_SubMunicipalVoteNo,$AC:$AC,Sheet1!S71_ItemType,$AD:$AD)","v":0},{"$f":"SUMIFS(Sheet1!S71_ASBudgetAmount,Sheet1!S71_SubMunicipalVoteNo,$AC:$AC,Sheet1!S71_ItemType,$AD:$AD)","v":0},{"$f":"SUMIFS(Sheet1!S71_OY1BudgetAmount,Sheet1!S71_SubMunicipalVoteNo,$AC:$AC,Sheet1!S71_ItemType,$AD:$AD)","v":0},{"$f":"SUMIFS(Sheet1!S71_OY2BudgetAmount,Sheet1!S71_SubMunicipalVoteNo,$AC:$AC,Sheet1!S71_ItemType,$AD:$AD)","v":0},null,null,null,null,null,null,null,null,null,null,null,null,null,null,null,null,null,110,"IE"]
[{"$f":"A16","v":"Vote 2 - Community and Social Services"},null,{"$f":"SUM(C185:C194)","v":10393281},{"$f":"SUM(D185:D194)","v":5966412},{"$f":"SUM(E185:E194)","v":5819862},17296087,12965263,12965263,16180393,16720628,17437753]
[{"$f":"A17","v":"2.1 - Animal Care and Diseases"},null,{"$f":"SUMIFS(Sheet1!S71_PPPYearAmount,Sheet1!S71_SubMunicipalVoteNo,$AC:$AC,Sheet1!S71_ItemType,$AD:$AD)","v":310173},{"$f":"SUMIFS(Sheet1!S71_PPYearAmount,Sheet1!S71_SubMunicipalVoteNo,$AC:$AC,Sheet1!S71_ItemType,$AD:$AD)","v":-912389},{"$f":"SUMIFS(Sheet1!S71_PYearAmount,Sheet1!S71_SubMunicipalVoteNo,$AC:$AC,Sheet1!S71_ItemType,$AD:$AD)","v":130450},{"$f":"SUMIFS(Sheet1!S71_OriginalBudAmnt,Sheet1!S71_SubMunicipalVoteNo,$AC:$AC,Sheet1!S71_ItemType,$AD:$AD)","v":1000993},{"$f":"SUMIFS(Sheet1!S71_AdjustmentBudAmnt,Sheet1!S71_SubMunicipalVoteNo,$AC:$AC,Sheet1!S71_ItemType,$AD:$AD)","v":557524},{"$f":"SUMIFS(Sheet1!S71_AdjustmentBudAmnt,Sheet1!S71_SubMunicipalVoteNo,$AC:$AC,Sheet1!S71_ItemType,$AD:$AD)","v":557524},{"$f":"SUMIFS(Sheet1!S71_ASBudgetAmount,Sheet1!S71_SubMunicipalVoteNo,$AC:$AC,Sheet1!S71_ItemType,$AD:$AD)","v":1170147},{"$f":"SUMIFS(Sheet1!S71_OY1BudgetAmount,Sheet1!S71_SubMunicipalVoteNo,$AC:$AC,Sheet1!S71_ItemType,$AD:$AD)","v":1230740},{"$f":"SUMIFS(Sheet1!S71_OY2BudgetAmount,Sheet1!S71_SubMunicipalVoteNo,$AC:$AC,Sheet1!S71_ItemType,$AD:$AD)","v":1291490},null,null,null,null,null,null,null,null,null,null,null,null,null,null,null,null,null,21,"IE"]
["2.2 - Community Halls and Facilities",null,{"$f":"SUMIFS(Sheet1!S71_PPPYearAmount,Sheet1!S71_SubMunicipalVoteNo,$AC:$AC,Sheet1!S71_ItemType,$AD:$AD)","v":6460587},{"$f":"SUMIFS(Sheet1!S71_PPYearAmount,Sheet1!S71_SubMunicipalVoteNo,$AC:$AC,Sheet1!S71_ItemType,$AD:$AD)","v":2755944},{"$f":"SUMIFS(Sheet1!S71_PYearAmount,Sheet1!S71_SubMunicipalVoteNo,$AC:$AC,Sheet1!S71_ItemType,$AD:$AD)","v":2518321},{"$f":"SUMIFS(Sheet1!S71_OriginalBudAmnt,Sheet1!S71_SubMunicipalVoteNo,$AC:$AC,Sheet1!S71_ItemType,$AD:$AD)","v":8416224},{"$f":"SUMIFS(Sheet1!S71_AdjustmentBudAmnt,Sheet1!S71_SubMunicipalVoteNo,$AC:$AC,Sheet1!S71_ItemType,$AD:$AD)","v":7087647},{"$f":"SUMIFS(Sheet1!S71_AdjustmentBudAmnt,Sheet1!S71_SubMunicipalVoteNo,$AC:$AC,Sheet1!S71_ItemType,$AD:$AD)","v":7087647},{"$f":"SUMIFS(Sheet1!S71_ASBudgetAmount,Sheet1!S71_SubMunicipalVoteNo,$AC:$AC,Sheet1!S71_ItemType,$AD:$AD)","v":6486049},{"$f":"SUMIFS(Sheet1!S71_OY1BudgetAmount,Sheet1!S71_SubMunicipalVoteNo,$AC:$AC,Sheet1!S71_ItemType,$AD:$AD)","v":6758350},{"$f":"SUMIFS(Sheet1!S71_OY2BudgetAmount,Sheet1!S71_SubMunicipalVoteNo,$AC:$AC,Sheet1!S71_ItemType,$AD:$AD)","v":7086270},null,null,null,null,null,null,null,null,null,null,null,null,null,null,null,null,null,22,"IE"]
["2.3 - Libraries and Archives",null,{"$f":"SUMIFS(Sheet1!S71_PPPYearAmount,Sheet1!S71_SubMunicipalVoteNo,$AC:$AC,Sheet1!S71_ItemType,$AD:$AD)","v":374712},{"$f":"SUMIFS(Sheet1!S71_PPYearAmount,Sheet1!S71_SubMunicipalVoteNo,$AC:$AC,Sheet1!S71_ItemType,$AD:$AD)","v":59535},{"$f":"SUMIFS(Sheet1!S71_PYearAmount,Sheet1!S71_SubMunicipalVoteNo,$AC:$AC,Sheet1!S71_ItemType,$AD:$AD)","v":0},{"$f":"SUMIFS(Sheet1!S71_OriginalBudAmnt,Sheet1!S71_SubMunicipalVoteNo,$AC:$AC,Sheet1!S71_ItemType,$AD:$AD)","v":595926},{"$f":"SUMIFS(Sheet1!S71_AdjustmentBudAmnt,Sheet1!S71_SubMunicipalVoteNo,$AC:$AC,Sheet1!S71_ItemType,$AD:$AD)","v":400729},{"$f":"SUMIFS(Sheet1!S71_AdjustmentBudAmnt,Sheet1!S71_SubMunicipalVoteNo,$AC:$AC,Sheet1!S71_ItemType,$AD:$AD)","v":400729},{"$f":"SUMIFS(Sheet1!S71_ASBudgetAmount,Sheet1!S71_SubMunicipalVoteNo,$AC:$AC,Sheet1!S71_ItemType,$AD:$AD)","v":749075},{"$f":"SUMIFS(Sheet1!S71_OY1BudgetAmount,Sheet1!S71_SubMunicipalVoteNo,$AC:$AC,Sheet1!S71_ItemType,$AD:$AD)","v":781743},{"$f":"SUMIFS(Sheet1!S71_OY2BudgetAmount,Sheet1!S71_SubMunicipalVoteNo,$AC:$AC,Sheet1!S71_ItemType,$AD:$AD)","v":814543},null,null,null,null,null,null,null,null,null,null,null,null,null,null,null,null,null,23,"IE"]
["2.4 - Cemeteries, Funeral Parlours and Crematoriums",null,{"$f":"SUMIFS(Sheet1!S71_PPPYearAmount,Sheet1!S71_SubMunicipalVoteNo,$AC:$AC,Sheet1!S71_ItemType,$AD:$AD)","v":2054511},{"$f":"SUMIFS(Sheet1!S71_PPYearAmount,Sheet1!S71_SubMunicipalVoteNo,$AC:$AC,Sheet1!S71_ItemType,$AD:$AD)","v":2800680},{"$f":"SUMIFS(Sheet1!S71_PYearAmount,Sheet1!S71_SubMunicipalVoteNo,$AC:$AC,Sheet1!S71_ItemType,$AD:$AD)","v":2349686},{"$f":"SUMIFS(Sheet1!S71_OriginalBudAmnt,Sheet1!S71_SubMunicipalVoteNo,$AC:$AC,Sheet1!S71_ItemType,$AD:$AD)","v":4012837},{"$f":"SUMIFS(Sheet1!S71_AdjustmentBudAmnt,Sheet1!S71_SubMunicipalVoteNo,$AC:$AC,Sheet1!S71_ItemType,$AD:$AD)","v":2714172},{"$f":"SUMIFS(Sheet1!S71_AdjustmentBudAmnt,Sheet1!S71_SubMunicipalVoteNo,$AC:$AC,Sheet1!S71_ItemType,$AD:$AD)","v":2714172},{"$f":"SUMIFS(Sheet1!S71_ASBudgetAmount,Sheet1!S71_SubMunicipalVoteNo,$AC:$AC,Sheet1!S71_ItemType,$AD:$AD)","v":4257993},{"$f":"SUMIFS(Sheet1!S71_OY1BudgetAmount,Sheet1!S71_SubMunicipalVoteNo,$AC:$AC,Sheet1!S71_ItemType,$AD:$AD)","v":4410858},{"$f":"SUMIFS(Sheet1!S71_OY2BudgetAmount,Sheet1!S71_SubMunicipalVoteNo,$AC:$AC,Sheet1!S71_ItemType,$AD:$AD)","v":4585659},null,null,null,null,null,null,null,null,null,null,null,null,null,null,null,null,null,24,"IE"]
["2.5 - Disaster Management",null,{"$f":"SUMIFS(Sheet1!S71_PPPYearAmount,Sheet1!S71_SubMunicipalVoteNo,$AC:$AC,Sheet1!S71_ItemType,$AD:$AD)","v":1193298},{"$f":"SUMIFS(Sheet1!S71_PPYearAmount,Sheet1!S71_SubMunicipalVoteNo,$AC:$AC,Sheet1!S71_ItemType,$AD:$AD)","v":1262642},{"$f":"SUMIFS(Sheet1!S71_PYearAmount,Sheet1!S71_SubMunicipalVoteNo,$AC:$AC,Sheet1!S71_ItemType,$AD:$AD)","v":821405},{"$f":"SUMIFS(Sheet1!S71_OriginalBudAmnt,Sheet1!S71_SubMunicipalVoteNo,$AC:$AC,Sheet1!S71_ItemType,$AD:$AD)","v":3270107},{"$f":"SUMIFS(Sheet1!S71_AdjustmentBudAmnt,Sheet1!S71_SubMunicipalVoteNo,$AC:$AC,Sheet1!S71_ItemType,$AD:$AD)","v":2205191},{"$f":"SUMIFS(Sheet1!S71_AdjustmentBudAmnt,Sheet1!S71_SubMunicipalVoteNo,$AC:$AC,Sheet1!S71_ItemType,$AD:$AD)","v":2205191},{"$f":"SUMIFS(Sheet1!S71_ASBudgetAmount,Sheet1!S71_SubMunicipalVoteNo,$AC:$AC,Sheet1!S71_ItemType,$AD:$AD)","v":3517129},{"$f":"SUMIFS(Sheet1!S71_OY1BudgetAmount,Sheet1!S71_SubMunicipalVoteNo,$AC:$AC,Sheet1!S71_ItemType,$AD:$AD)","v":3538937},{"$f":"SUMIFS(Sheet1!S71_OY2BudgetAmount,Sheet1!S71_SubMunicipalVoteNo,$AC:$AC,Sheet1!S71_ItemType,$AD:$AD)","v":3659791},null,null,null,null,null,null,null,null,null,null,null,null,null,null,null,null,null,25,"IE"]
["2.6 - [Name of sub-vote]",null,{"$f":"SUMIFS(Sheet1!S71_PPPYearAmount,Sheet1!S71_SubMunicipalVoteNo,$AC:$AC,Sheet1!S71_ItemType,$AD:$AD)","v":0},{"$f":"SUMIFS(Sheet1!S71_PPYearAmount,Sheet1!S71_SubMunicipalVoteNo,$AC:$AC,Sheet1!S71_ItemType,$AD:$AD)","v":0},{"$f":"SUMIFS(Sheet1!S71_PYearAmount,Sheet1!S71_SubMunicipalVoteNo,$AC:$AC,Sheet1!S71_ItemType,$AD:$AD)","v":0},{"$f":"SUMIFS(Sheet1!S71_OriginalBudAmnt,Sheet1!S71_SubMunicipalVoteNo,$AC:$AC,Sheet1!S71_ItemType,$AD:$AD)","v":0},{"$f":"SUMIFS(Sheet1!S71_AdjustmentBudAmnt,Sheet1!S71_SubMunicipalVoteNo,$AC:$AC,Sheet1!S71_ItemType,$AD:$AD)","v":0},{"$f":"SUMIFS(Sheet1!S71_AdjustmentBudAmnt,Sheet1!S71_SubMunicipalVoteNo,$AC:$AC,Sheet1!S71_ItemType,$AD:$AD)","v":0},{"$f":"SUMIFS(Sheet1!S71_ASBudgetAmount,Sheet1!S71_SubMunicipalVoteNo,$AC:$AC,Sheet1!S71_ItemType,$AD:$AD)","v":0},{"$f":"SUMIFS(Sheet1!S71_OY1BudgetAmount,Sheet1!S71_SubMunicipalVoteNo,$AC:$AC,Sheet1!S71_ItemType,$AD:$AD)","v":0},{"$f":"SUMIFS(Sheet1!S71_OY2BudgetAmount,Sheet1!S71_SubMunicipalVoteNo,$AC:$AC,Sheet1!S71_ItemType,$AD:$AD)","v":0},null,null,null,null,null,null,null,null,null,null,null,null,null,null,null,null,null,26,"IE"]
["2.7 - [Name of sub-vote]",null,{"$f":"SUMIFS(Sheet1!S71_PPPYearAmount,Sheet1!S71_SubMunicipalVoteNo,$AC:$AC,Sheet1!S71_ItemType,$AD:$AD)","v":0},{"$f":"SUMIFS(Sheet1!S71_PPYearAmount,Sheet1!S71_SubMunicipalVoteNo,$AC:$AC,Sheet1!S71_ItemType,$AD:$AD)","v":0},{"$f":"SUMIFS(Sheet1!S71_PYearAmount,Sheet1!S71_SubMunicipalVoteNo,$AC:$AC,Sheet1!S71_ItemType,$AD:$AD)","v":0},{"$f":"SUMIFS(Sheet1!S71_OriginalBudAmnt,Sheet1!S71_SubMunicipalVoteNo,$AC:$AC,Sheet1!S71_ItemType,$AD:$AD)","v":0},{"$f":"SUMIFS(Sheet1!S71_AdjustmentBudAmnt,Sheet1!S71_SubMunicipalVoteNo,$AC:$AC,Sheet1!S71_ItemType,$AD:$AD)","v":0},{"$f":"SUMIFS(Sheet1!S71_AdjustmentBudAmnt,Sheet1!S71_SubMunicipalVoteNo,$AC:$AC,Sheet1!S71_ItemType,$AD:$AD)","v":0},{"$f":"SUMIFS(Sheet1!S71_ASBudgetAmount,Sheet1!S71_SubMunicipalVoteNo,$AC:$AC,Sheet1!S71_ItemType,$AD:$AD)","v":0},{"$f":"SUMIFS(Sheet1!S71_OY1BudgetAmount,Sheet1!S71_SubMunicipalVoteNo,$AC:$AC,Sheet1!S71_ItemType,$AD:$AD)","v":0},{"$f":"SUMIFS(Sheet1!S71_OY2BudgetAmount,Sheet1!S71_SubMunicipalVoteNo,$AC:$AC,Sheet1!S71_ItemType,$AD:$AD)","v":0},null,null,null,null,null,null,null,null,null,null,null,null,null,null,null,null,null,27,"IE"]
["2.8 - [Name of sub-vote]",null,{"$f":"SUMIFS(Sheet1!S71_PPPYearAmount,Sheet1!S71_SubMunicipalVoteNo,$AC:$AC,Sheet1!S71_ItemType,$AD:$AD)","v":0},{"$f":"SUMIFS(Sheet1!S71_PPYearAmount,Sheet1!S71_SubMunicipalVoteNo,$AC:$AC,Sheet1!S71_ItemType,$AD:$AD)","v":0},{"$f":"SUMIFS(Sheet1!S71_PYearAmount,Sheet1!S71_SubMunicipalVoteNo,$AC:$AC,Sheet1!S71_ItemType,$AD:$AD)","v":0},{"$f":"SUMIFS(Sheet1!S71_OriginalBudAmnt,Sheet1!S71_SubMunicipalVoteNo,$AC:$AC,Sheet1!S71_ItemType,$AD:$AD)","v":0},{"$f":"SUMIFS(Sheet1!S71_AdjustmentBudAmnt,Sheet1!S71_SubMunicipalVoteNo,$AC:$AC,Sheet1!S71_ItemType,$AD:$AD)","v":0},{"$f":"SUMIFS(Sheet1!S71_AdjustmentBudAmnt,Sheet1!S71_SubMunicipalVoteNo,$AC:$AC,Sheet1!S71_ItemType,$AD:$AD)","v":0},{"$f":"SUMIFS(Sheet1!S71_ASBudgetAmount,Sheet1!S71_SubMunicipalVoteNo,$AC:$AC,Sheet1!S71_ItemType,$AD:$AD)","v":0},{"$f":"SUMIFS(Sheet1!S71_OY1BudgetAmount,Sheet1!S71_SubMunicipalVoteNo,$AC:$AC,Sheet1!S71_ItemType,$AD:$AD)","v":0},{"$f":"SUMIFS(Sheet1!S71_OY2BudgetAmount,Sheet1!S71_SubMunicipalVoteNo,$AC:$AC,Sheet1!S71_ItemType,$AD:$AD)","v":0},null,null,null,null,null,null,null,null,null,null,null,null,null,null,null,null,null,28,"IE"]
["2.9 - [Name of sub-vote]",null,{"$f":"SUMIFS(Sheet1!S71_PPPYearAmount,Sheet1!S71_SubMunicipalVoteNo,$AC:$AC,Sheet1!S71_ItemType,$AD:$AD)","v":0},{"$f":"SUMIFS(Sheet1!S71_PPYearAmount,Sheet1!S71_SubMunicipalVoteNo,$AC:$AC,Sheet1!S71_ItemType,$AD:$AD)","v":0},{"$f":"SUMIFS(Sheet1!S71_PYearAmount,Sheet1!S71_SubMunicipalVoteNo,$AC:$AC,Sheet1!S71_ItemType,$AD:$AD)","v":0},{"$f":"SUMIFS(Sheet1!S71_OriginalBudAmnt,Sheet1!S71_SubMunicipalVoteNo,$AC:$AC,Sheet1!S71_ItemType,$AD:$AD)","v":0},{"$f":"SUMIFS(Sheet1!S71_AdjustmentBudAmnt,Sheet1!S71_SubMunicipalVoteNo,$AC:$AC,Sheet1!S71_ItemType,$AD:$AD)","v":0},{"$f":"SUMIFS(Sheet1!S71_AdjustmentBudAmnt,Sheet1!S71_SubMunicipalVoteNo,$AC:$AC,Sheet1!S71_ItemType,$AD:$AD)","v":0},{"$f":"SUMIFS(Sheet1!S71_ASBudgetAmount,Sheet1!S71_SubMunicipalVoteNo,$AC:$AC,Sheet1!S71_ItemType,$AD:$AD)","v":0},{"$f":"SUMIFS(Sheet1!S71_OY1BudgetAmount,Sheet1!S71_SubMunicipalVoteNo,$AC:$AC,Sheet1!S71_ItemType,$AD:$AD)","v":0},{"$f":"SUMIFS(Sheet1!S71_OY2BudgetAmount,Sheet1!S71_SubMunicipalVoteNo,$AC:$AC,Sheet1!S71_ItemType,$AD:$AD)","v":0},null,null,null,null,null,null,null,null,null,null,null,null,null,null,null,null,null,29,"IE"]
["2.10 - [Name of sub-vote]",null,{"$f":"SUMIFS(Sheet1!S71_PPPYearAmount,Sheet1!S71_SubMunicipalVoteNo,$AC:$AC,Sheet1!S71_ItemType,$AD:$AD)","v":0},{"$f":"SUMIFS(Sheet1!S71_PPYearAmount,Sheet1!S71_SubMunicipalVoteNo,$AC:$AC,Sheet1!S71_ItemType,$AD:$AD)","v":0},{"$f":"SUMIFS(Sheet1!S71_PYearAmount,Sheet1!S71_SubMunicipalVoteNo,$AC:$AC,Sheet1!S71_ItemType,$AD:$AD)","v":0},{"$f":"SUMIFS(Sheet1!S71_OriginalBudAmnt,Sheet1!S71_SubMunicipalVoteNo,$AC:$AC,Sheet1!S71_ItemType,$AD:$AD)","v":0},{"$f":"SUMIFS(Sheet1!S71_AdjustmentBudAmnt,Sheet1!S71_SubMunicipalVoteNo,$AC:$AC,Sheet1!S71_ItemType,$AD:$AD)","v":0},{"$f":"SUMIFS(Sheet1!S71_AdjustmentBudAmnt,Sheet1!S71_SubMunicipalVoteNo,$AC:$AC,Sheet1!S71_ItemType,$AD:$AD)","v":0},{"$f":"SUMIFS(Sheet1!S71_ASBudgetAmount,Sheet1!S71_SubMunicipalVoteNo,$AC:$AC,Sheet1!S71_ItemType,$AD:$AD)","v":0},{"$f":"SUMIFS(Sheet1!S71_OY1BudgetAmount,Sheet1!S71_SubMunicipalVoteNo,$AC:$AC,Sheet1!S71_ItemType,$AD:$AD)","v":0},{"$f":"SUMIFS(Sheet1!S71_OY2BudgetAmount,Sheet1!S71_SubMunicipalVoteNo,$AC:$AC,Sheet1!S71_ItemType,$AD:$AD)","v":0},null,null,null,null,null,null,null,null,null,null,null,null,null,null,null,null,null,210,"IE"]
[{"$f":"A27","v":"Vote 3 - Finance & Administration"},null,{"$f":"SUM(C196:C205)","v":148355520},164228688,132098714,233713831,236397053,236397053,251018590,256634989,264073513]
["3.1 - Fleet Management",null,{"$f":"SUMIFS(Sheet1!S71_PPPYearAmount,Sheet1!S71_SubMunicipalVoteNo,$AC:$AC,Sheet1!S71_ItemType,$AD:$AD)","v":10082775},{"$f":"SUMIFS(Sheet1!S71_PPYearAmount,Sheet1!S71_SubMunicipalVoteNo,$AC:$AC,Sheet1!S71_ItemType,$AD:$AD)","v":13458095},{"$f":"SUMIFS(Sheet1!S71_PYearAmount,Sheet1!S71_SubMunicipalVoteNo,$AC:$AC,Sheet1!S71_ItemType,$AD:$AD)","v":15772738},{"$f":"SUMIFS(Sheet1!S71_OriginalBudAmnt,Sheet1!S71_SubMunicipalVoteNo,$AC:$AC,Sheet1!S71_ItemType,$AD:$AD)","v":19422639},{"$f":"SUMIFS(Sheet1!S71_AdjustmentBudAmnt,Sheet1!S71_SubMunicipalVoteNo,$AC:$AC,Sheet1!S71_ItemType,$AD:$AD)","v":23647762},{"$f":"SUMIFS(Sheet1!S71_AdjustmentBudAmnt,Sheet1!S71_SubMunicipalVoteNo,$AC:$AC,Sheet1!S71_ItemType,$AD:$AD)","v":23647762},{"$f":"SUMIFS(Sheet1!S71_ASBudgetAmount,Sheet1!S71_SubMunicipalVoteNo,$AC:$AC,Sheet1!S71_ItemType,$AD:$AD)","v":94042538},{"$f":"SUMIFS(Sheet1!S71_OY1BudgetAmount,Sheet1!S71_SubMunicipalVoteNo,$AC:$AC,Sheet1!S71_ItemType,$AD:$AD)","v":94622032},{"$f":"SUMIFS(Sheet1!S71_OY2BudgetAmount,Sheet1!S71_SubMunicipalVoteNo,$AC:$AC,Sheet1!S71_ItemType,$AD:$AD)","v":95252231},null,null,null,null,null,null,null,null,null,null,null,null,null,null,null,null,null,31,"IE"]
["3.2 - Finance",null,{"$f":"SUMIFS(Sheet1!S71_PPPYearAmount,Sheet1!S71_SubMunicipalVoteNo,$AC:$AC,Sheet1!S71_ItemType,$AD:$AD)","v":61315702},{"$f":"SUMIFS(Sheet1!S71_PPYearAmount,Sheet1!S71_SubMunicipalVoteNo,$AC:$AC,Sheet1!S71_ItemType,$AD:$AD)","v":75530470},{"$f":"SUMIFS(Sheet1!S71_PYearAmount,Sheet1!S71_SubMunicipalVoteNo,$AC:$AC,Sheet1!S71_ItemType,$AD:$AD)","v":27001025},{"$f":"SUMIFS(Sheet1!S71_OriginalBudAmnt,Sheet1!S71_SubMunicipalVoteNo,$AC:$AC,Sheet1!S71_ItemType,$AD:$AD)","v":65156311},{"$f":"SUMIFS(Sheet1!S71_AdjustmentBudAmnt,Sheet1!S71_SubMunicipalVoteNo,$AC:$AC,Sheet1!S71_ItemType,$AD:$AD)","v":62443129},{"$f":"SUMIFS(Sheet1!S71_AdjustmentBudAmnt,Sheet1!S71_SubMunicipalVoteNo,$AC:$AC,Sheet1!S71_ItemType,$AD:$AD)","v":62443129},{"$f":"SUMIFS(Sheet1!S71_ASBudgetAmount,Sheet1!S71_SubMunicipalVoteNo,$AC:$AC,Sheet1!S71_ItemType,$AD:$AD)","v":66918234},{"$f":"SUMIFS(Sheet1!S71_OY1BudgetAmount,Sheet1!S71_SubMunicipalVoteNo,$AC:$AC,Sheet1!S71_ItemType,$AD:$AD)","v":66098324},{"$f":"SUMIFS(Sheet1!S71_OY2BudgetAmount,Sheet1!S71_SubMunicipalVoteNo,$AC:$AC,Sheet1!S71_ItemType,$AD:$AD)","v":68596858},null,null,null,null,null,null,null,null,null,null,null,null,null,null,null,null,null,32,"IE"]
["3.3 - Asset Management",null,{"$f":"SUMIFS(Sheet1!S71_PPPYearAmount,Sheet1!S71_SubMunicipalVoteNo,$AC:$AC,Sheet1!S71_ItemType,$AD:$AD)","v":47360830},{"$f":"SUMIFS(Sheet1!S71_PPYearAmount,Sheet1!S71_SubMunicipalVoteNo,$AC:$AC,Sheet1!S71_ItemType,$AD:$AD)","v":30305939},{"$f":"SUMIFS(Sheet1!S71_PYearAmount,Sheet1!S71_SubMunicipalVoteNo,$AC:$AC,Sheet1!S71_ItemType,$AD:$AD)","v":32730822},{"$f":"SUMIFS(Sheet1!S71_OriginalBudAmnt,Sheet1!S71_SubMunicipalVoteNo,$AC:$AC,Sheet1!S71_ItemType,$AD:$AD)","v":83963073},{"$f":"SUMIFS(Sheet1!S71_AdjustmentBudAmnt,Sheet1!S71_SubMunicipalVoteNo,$AC:$AC,Sheet1!S71_ItemType,$AD:$AD)","v":82755997},{"$f":"SUMIFS(Sheet1!S71_AdjustmentBudAmnt,Sheet1!S71_SubMunicipalVoteNo,$AC:$AC,Sheet1!S71_ItemType,$AD:$AD)","v":82755997},{"$f":"SUMIFS(Sheet1!S71_ASBudgetAmount,Sheet1!S71_SubMunicipalVoteNo,$AC:$AC,Sheet1!S71_ItemType,$AD:$AD)","v":14842898},{"$f":"SUMIFS(Sheet1!S71_OY1BudgetAmount,Sheet1!S71_SubMunicipalVoteNo,$AC:$AC,Sheet1!S71_ItemType,$AD:$AD)","v":15971288},{"$f":"SUMIFS(Sheet1!S71_OY2BudgetAmount,Sheet1!S71_SubMunicipalVoteNo,$AC:$AC,Sheet1!S71_ItemType,$AD:$AD)","v":16398396},null,null,null,null,null,null,null,null,null,null,null,null,null,null,null,null,null,33,"IE"]
["3.4 - Human Resources",null,{"$f":"SUMIFS(Sheet1!S71_PPPYearAmount,Sheet1!S71_SubMunicipalVoteNo,$AC:$AC,Sheet1!S71_ItemType,$AD:$AD)","v":3239103},{"$f":"SUMIFS(Sheet1!S71_PPYearAmount,Sheet1!S71_SubMunicipalVoteNo,$AC:$AC,Sheet1!S71_ItemType,$AD:$AD)","v":10473958},{"$f":"SUMIFS(Sheet1!S71_PYearAmount,Sheet1!S71_SubMunicipalVoteNo,$AC:$AC,Sheet1!S71_ItemType,$AD:$AD)","v":8926987},{"$f":"SUMIFS(Sheet1!S71_OriginalBudAmnt,Sheet1!S71_SubMunicipalVoteNo,$AC:$AC,Sheet1!S71_ItemType,$AD:$AD)","v":18796452},{"$f":"SUMIFS(Sheet1!S71_AdjustmentBudAmnt,Sheet1!S71_SubMunicipalVoteNo,$AC:$AC,Sheet1!S71_ItemType,$AD:$AD)","v":18322080},{"$f":"SUMIFS(Sheet1!S71_AdjustmentBudAmnt,Sheet1!S71_SubMunicipalVoteNo,$AC:$AC,Sheet1!S71_ItemType,$AD:$AD)","v":18322080},{"$f":"SUMIFS(Sheet1!S71_ASBudgetAmount,Sheet1!S71_SubMunicipalVoteNo,$AC:$AC,Sheet1!S71_ItemType,$AD:$AD)","v":21454632},{"$f":"SUMIFS(Sheet1!S71_OY1BudgetAmount,Sheet1!S71_SubMunicipalVoteNo,$AC:$AC,Sheet1!S71_ItemType,$AD:$AD)","v":23232647},{"$f":"SUMIFS(Sheet1!S71_OY2BudgetAmount,Sheet1!S71_SubMunicipalVoteNo,$AC:$AC,Sheet1!S71_ItemType,$AD:$AD)","v":24022108},null,null,null,null,null,null,null,null,null,null,null,null,null,null,null,null,null,34,"IE"]
["3.5 - Legal Services",null,{"$f":"SUMIFS(Sheet1!S71_PPPYearAmount,Sheet1!S71_SubMunicipalVoteNo,$AC:$AC,Sheet1!S71_ItemType,$AD:$AD)","v":5613357},{"$f":"SUMIFS(Sheet1!S71_PPYearAmount,Sheet1!S71_SubMunicipalVoteNo,$AC:$AC,Sheet1!S71_ItemType,$AD:$AD)","v":8863767},{"$f":"SUMIFS(Sheet1!S71_PYearAmount,Sheet1!S71_SubMunicipalVoteNo,$AC:$AC,Sheet1!S71_ItemType,$AD:$AD)","v":19883421},{"$f":"SUMIFS(Sheet1!S71_OriginalBudAmnt,Sheet1!S71_SubMunicipalVoteNo,$AC:$AC,Sheet1!S71_ItemType,$AD:$AD)","v":8284609},{"$f":"SUMIFS(Sheet1!S71_AdjustmentBudAmnt,Sheet1!S71_SubMunicipalVoteNo,$AC:$AC,Sheet1!S71_ItemType,$AD:$AD)","v":14295664},{"$f":"SUMIFS(Sheet1!S71_AdjustmentBudAmnt,Sheet1!S71_SubMunicipalVoteNo,$AC:$AC,Sheet1!S71_ItemType,$AD:$AD)","v":14295664},{"$f":"SUMIFS(Sheet1!S71_ASBudgetAmount,Sheet1!S71_SubMunicipalVoteNo,$AC:$AC,Sheet1!S71_ItemType,$AD:$AD)","v":11483169},{"$f":"SUMIFS(Sheet1!S71_OY1BudgetAmount,Sheet1!S71_SubMunicipalVoteNo,$AC:$AC,Sheet1!S71_ItemType,$AD:$AD)","v":12574439},{"$f":"SUMIFS(Sheet1!S71_OY2BudgetAmount,Sheet1!S71_SubMunicipalVoteNo,$AC:$AC,Sheet1!S71_ItemType,$AD:$AD)","v":13666069},null,null,null,null,null,null,null,null,null,null,null,null,null,null,null,null,null,35,"IE"]
["3.6 - Property Services",null,{"$f":"SUMIFS(Sheet1!S71_PPPYearAmount,Sheet1!S71_SubMunicipalVoteNo,$AC:$AC,Sheet1!S71_ItemType,$AD:$AD)","v":7237568},{"$f":"SUMIFS(Sheet1!S71_PPYearAmount,Sheet1!S71_SubMunicipalVoteNo,$AC:$AC,Sheet1!S71_ItemType,$AD:$AD)","v":9139846},{"$f":"SUMIFS(Sheet1!S71_PYearAmount,Sheet1!S71_SubMunicipalVoteNo,$AC:$AC,Sheet1!S71_ItemType,$AD:$AD)","v":9941013},{"$f":"SUMIFS(Sheet1!S71_OriginalBudAmnt,Sheet1!S71_SubMunicipalVoteNo,$AC:$AC,Sheet1!S71_ItemType,$AD:$AD)","v":15214855},{"$f":"SUMIFS(Sheet1!S71_AdjustmentBudAmnt,Sheet1!S71_SubMunicipalVoteNo,$AC:$AC,Sheet1!S71_ItemType,$AD:$AD)","v":11816449},{"$f":"SUMIFS(Sheet1!S71_AdjustmentBudAmnt,Sheet1!S71_SubMunicipalVoteNo,$AC:$AC,Sheet1!S71_ItemType,$AD:$AD)","v":11816449},{"$f":"SUMIFS(Sheet1!S71_ASBudgetAmount,Sheet1!S71_SubMunicipalVoteNo,$AC:$AC,Sheet1!S71_ItemType,$AD:$AD)","v":17083774},{"$f":"SUMIFS(Sheet1!S71_OY1BudgetAmount,Sheet1!S71_SubMunicipalVoteNo,$AC:$AC,Sheet1!S71_ItemType,$AD:$AD)","v":17683064},{"$f":"SUMIFS(Sheet1!S71_OY2BudgetAmount,Sheet1!S71_SubMunicipalVoteNo,$AC:$AC,Sheet1!S71_ItemType,$AD:$AD)","v":18407314},null,null,null,null,null,null,null,null,null,null,null,null,null,null,null,null,null,36,"IE"]
["3.7 - Risk Management",null,{"$f":"SUMIFS(Sheet1!S71_PPPYearAmount,Sheet1!S71_SubMunicipalVoteNo,$AC:$AC,Sheet1!S71_ItemType,$AD:$AD)","v":10077594},{"$f":"SUMIFS(Sheet1!S71_PPYearAmount,Sheet1!S71_SubMunicipalVoteNo,$AC:$AC,Sheet1!S71_ItemType,$AD:$AD)","v":12145226},{"$f":"SUMIFS(Sheet1!S71_PYearAmount,Sheet1!S71_SubMunicipalVoteNo,$AC:$AC,Sheet1!S71_ItemType,$AD:$AD)","v":12232602},{"$f":"SUMIFS(Sheet1!S71_OriginalBudAmnt,Sheet1!S71_SubMunicipalVoteNo,$AC:$AC,Sheet1!S71_ItemType,$AD:$AD)","v":12995069},{"$f":"SUMIFS(Sheet1!S71_AdjustmentBudAmnt,Sheet1!S71_SubMunicipalVoteNo,$AC:$AC,Sheet1!S71_ItemType,$AD:$AD)","v":14377574},{"$f":"SUMIFS(Sheet1!S71_AdjustmentBudAmnt,Sheet1!S71_SubMunicipalVoteNo,$AC:$AC,Sheet1!S71_ItemType,$AD:$AD)","v":14377574},{"$f":"SUMIFS(Sheet1!S71_ASBudgetAmount,Sheet1!S71_SubMunicipalVoteNo,$AC:$AC,Sheet1!S71_ItemType,$AD:$AD)","v":14426758},{"$f":"SUMIFS(Sheet1!S71_OY1BudgetAmount,Sheet1!S71_SubMunicipalVoteNo,$AC:$AC,Sheet1!S71_ItemType,$AD:$AD)","v":15104803},{"$f":"SUMIFS(Sheet1!S71_OY2BudgetAmount,Sheet1!S71_SubMunicipalVoteNo,$AC:$AC,Sheet1!S71_ItemType,$AD:$AD)","v":15813284},null,null,null,null,null,null,null,null,null,null,null,null,null,null,null,null,null,37,"IE"]
["3.8 - Supply Chain Management",null,{"$f":"SUMIFS(Sheet1!S71_PPPYearAmount,Sheet1!S71_SubMunicipalVoteNo,$AC:$AC,Sheet1!S71_ItemType,$AD:$AD)","v":3428591},{"$f":"SUMIFS(Sheet1!S71_PPYearAmount,Sheet1!S71_SubMunicipalVoteNo,$AC:$AC,Sheet1!S71_ItemType,$AD:$AD)","v":4311387},{"$f":"SUMIFS(Sheet1!S71_PYearAmount,Sheet1!S71_SubMunicipalVoteNo,$AC:$AC,Sheet1!S71_ItemType,$AD:$AD)","v":5610106},{"$f":"SUMIFS(Sheet1!S71_OriginalBudAmnt,Sheet1!S71_SubMunicipalVoteNo,$AC:$AC,Sheet1!S71_ItemType,$AD:$AD)","v":9880823},{"$f":"SUMIFS(Sheet1!S71_AdjustmentBudAmnt,Sheet1!S71_SubMunicipalVoteNo,$AC:$AC,Sheet1!S71_ItemType,$AD:$AD)","v":8738398},{"$f":"SUMIFS(Sheet1!S71_AdjustmentBudAmnt,Sheet1!S71_SubMunicipalVoteNo,$AC:$AC,Sheet1!S71_ItemType,$AD:$AD)","v":8738398},{"$f":"SUMIFS(Sheet1!S71_ASBudgetAmount,Sheet1!S71_SubMunicipalVoteNo,$AC:$AC,Sheet1!S71_ItemType,$AD:$AD)","v":10766587},{"$f":"SUMIFS(Sheet1!S71_OY1BudgetAmount,Sheet1!S71_SubMunicipalVoteNo,$AC:$AC,Sheet1!S71_ItemType,$AD:$AD)","v":11348392},{"$f":"SUMIFS(Sheet1!S71_OY2BudgetAmount,Sheet1!S71_SubMunicipalVoteNo,$AC:$AC,Sheet1!S71_ItemType,$AD:$AD)","v":11917253},null,null,null,null,null,null,null,null,null,null,null,null,null,null,null,null,null,38,"IE"]
["3.9 - [Name of sub-vote]",null,{"$f":"SUMIFS(Sheet1!S71_PPPYearAmount,Sheet1!S71_SubMunicipalVoteNo,$AC:$AC,Sheet1!S71_ItemType,$AD:$AD)","v":0},{"$f":"SUMIFS(Sheet1!S71_PPYearAmount,Sheet1!S71_SubMunicipalVoteNo,$AC:$AC,Sheet1!S71_ItemType,$AD:$AD)","v":0},{"$f":"SUMIFS(Sheet1!S71_PYearAmount,Sheet1!S71_SubMunicipalVoteNo,$AC:$AC,Sheet1!S71_ItemType,$AD:$AD)","v":0},{"$f":"SUMIFS(Sheet1!S71_OriginalBudAmnt,Sheet1!S71_SubMunicipalVoteNo,$AC:$AC,Sheet1!S71_ItemType,$AD:$AD)","v":0},{"$f":"SUMIFS(Sheet1!S71_AdjustmentBudAmnt,Sheet1!S71_SubMunicipalVoteNo,$AC:$AC,Sheet1!S71_ItemType,$AD:$AD)","v":0},{"$f":"SUMIFS(Sheet1!S71_AdjustmentBudAmnt,Sheet1!S71_SubMunicipalVoteNo,$AC:$AC,Sheet1!S71_ItemType,$AD:$AD)","v":0},{"$f":"SUMIFS(Sheet1!S71_ASBudgetAmount,Sheet1!S71_SubMunicipalVoteNo,$AC:$AC,Sheet1!S71_ItemType,$AD:$AD)","v":0},{"$f":"SUMIFS(Sheet1!S71_OY1BudgetAmount,Sheet1!S71_SubMunicipalVoteNo,$AC:$AC,Sheet1!S71_ItemType,$AD:$AD)","v":0},{"$f":"SUMIFS(Sheet1!S71_OY2BudgetAmount,Sheet1!S71_SubMunicipalVoteNo,$AC:$AC,Sheet1!S71_ItemType,$AD:$AD)","v":0},null,null,null,null,null,null,null,null,null,null,null,null,null,null,null,null,null,39,"IE"]
["3.10 - [Name of sub-vote]",null,{"$f":"SUMIFS(Sheet1!S71_PPPYearAmount,Sheet1!S71_SubMunicipalVoteNo,$AC:$AC,Sheet1!S71_ItemType,$AD:$AD)","v":0},{"$f":"SUMIFS(Sheet1!S71_PPYearAmount,Sheet1!S71_SubMunicipalVoteNo,$AC:$AC,Sheet1!S71_ItemType,$AD:$AD)","v":0},{"$f":"SUMIFS(Sheet1!S71_PYearAmount,Sheet1!S71_SubMunicipalVoteNo,$AC:$AC,Sheet1!S71_ItemType,$AD:$AD)","v":0},{"$f":"SUMIFS(Sheet1!S71_OriginalBudAmnt,Sheet1!S71_SubMunicipalVoteNo,$AC:$AC,Sheet1!S71_ItemType,$AD:$AD)","v":0},{"$f":"SUMIFS(Sheet1!S71_AdjustmentBudAmnt,Sheet1!S71_SubMunicipalVoteNo,$AC:$AC,Sheet1!S71_ItemType,$AD:$AD)","v":0},{"$f":"SUMIFS(Sheet1!S71_AdjustmentBudAmnt,Sheet1!S71_SubMunicipalVoteNo,$AC:$AC,Sheet1!S71_ItemType,$AD:$AD)","v":0},{"$f":"SUMIFS(Sheet1!S71_ASBudgetAmount,Sheet1!S71_SubMunicipalVoteNo,$AC:$AC,Sheet1!S71_ItemType,$AD:$AD)","v":0},{"$f":"SUMIFS(Sheet1!S71_OY1BudgetAmount,Sheet1!S71_SubMunicipalVoteNo,$AC:$AC,Sheet1!S71_ItemType,$AD:$AD)","v":0},{"$f":"SUMIFS(Sheet1!S71_OY2BudgetAmount,Sheet1!S71_SubMunicipalVoteNo,$AC:$AC,Sheet1!S71_ItemType,$AD:$AD)","v":0},null,null,null,null,null,null,null,null,null,null,null,null,null,null,null,null,null,310,"IE"]
["Vote 4 - Planning and Development",null,{"$f":"SUM(C207:C216)","v":16622461},8390831,11812796,31772469,27809434,27809434,28911078,31912910,34981557]
[{"$f":"A39","v":"4.1 - Town Planning, Building Regulations and Enforcement, and City Engineer"},null,{"$f":"SUMIFS(Sheet1!S71_PPPYearAmount,Sheet1!S71_SubMunicipalVoteNo,$AC:$AC,Sheet1!S71_ItemType,$AD:$AD)","v":7882436},{"$f":"SUMIFS(Sheet1!S71_PPYearAmount,Sheet1!S71_SubMunicipalVoteNo,$AC:$AC,Sheet1!S71_ItemType,$AD:$AD)","v":385466},{"$f":"SUMIFS(Sheet1!S71_PYearAmount,Sheet1!S71_SubMunicipalVoteNo,$AC:$AC,Sheet1!S71_ItemType,$AD:$AD)","v":2750360},{"$f":"SUMIFS(Sheet1!S71_OriginalBudAmnt,Sheet1!S71_SubMunicipalVoteNo,$AC:$AC,Sheet1!S71_ItemType,$AD:$AD)","v":15766403},{"$f":"SUMIFS(Sheet1!S71_AdjustmentBudAmnt,Sheet1!S71_SubMunicipalVoteNo,$AC:$AC,Sheet1!S71_ItemType,$AD:$AD)","v":11984726},{"$f":"SUMIFS(Sheet1!S71_AdjustmentBudAmnt,Sheet1!S71_SubMunicipalVoteNo,$AC:$AC,Sheet1!S71_ItemType,$AD:$AD)","v":11984726},{"$f":"SUMIFS(Sheet1!S71_ASBudgetAmount,Sheet1!S71_SubMunicipalVoteNo,$AC:$AC,Sheet1!S71_ItemType,$AD:$AD)","v":15198193},{"$f":"SUMIFS(Sheet1!S71_OY1BudgetAmount,Sheet1!S71_SubMunicipalVoteNo,$AC:$AC,Sheet1!S71_ItemType,$AD:$AD)","v":17338148},{"$f":"SUMIFS(Sheet1!S71_OY2BudgetAmount,Sheet1!S71_SubMunicipalVoteNo,$AC:$AC,Sheet1!S71_ItemType,$AD:$AD)","v":19582400},null,null,null,null,null,null,null,null,null,null,null,null,null,null,null,null,null,41,"IE"]
["4.2 - Corporate Wide Strategic Planning (IDPs, LEDs)",null,{"$f":"SUMIFS(Sheet1!S71_PPPYearAmount,Sheet1!S71_SubMunicipalVoteNo,$AC:$AC,Sheet1!S71_ItemType,$AD:$AD)","v":4359258},{"$f":"SUMIFS(Sheet1!S71_PPYearAmount,Sheet1!S71_SubMunicipalVoteNo,$AC:$AC,Sheet1!S71_ItemType,$AD:$AD)","v":4733614},{"$f":"SUMIFS(Sheet1!S71_PYearAmount,Sheet1!S71_SubMunicipalVoteNo,$AC:$AC,Sheet1!S71_ItemType,$AD:$AD)","v":5063636},{"$f":"SUMIFS(Sheet1!S71_OriginalBudAmnt,Sheet1!S71_SubMunicipalVoteNo,$AC:$AC,Sheet1!S71_ItemType,$AD:$AD)","v":6539464},{"$f":"SUMIFS(Sheet1!S71_AdjustmentBudAmnt,Sheet1!S71_SubMunicipalVoteNo,$AC:$AC,Sheet1!S71_ItemType,$AD:$AD)","v":5861384},{"$f":"SUMIFS(Sheet1!S71_AdjustmentBudAmnt,Sheet1!S71_SubMunicipalVoteNo,$AC:$AC,Sheet1!S71_ItemType,$AD:$AD)","v":5861384},{"$f":"SUMIFS(Sheet1!S71_ASBudgetAmount,Sheet1!S71_SubMunicipalVoteNo,$AC:$AC,Sheet1!S71_ItemType,$AD:$AD)","v":6278322},{"$f":"SUMIFS(Sheet1!S71_OY1BudgetAmount,Sheet1!S71_SubMunicipalVoteNo,$AC:$AC,Sheet1!S71_ItemType,$AD:$AD)","v":6690729},{"$f":"SUMIFS(Sheet1!S71_OY2BudgetAmount,Sheet1!S71_SubMunicipalVoteNo,$AC:$AC,Sheet1!S71_ItemType,$AD:$AD)","v":7064304},null,null,null,null,null,null,null,null,null,null,null,null,null,null,null,null,null,42,"IE"]
["4.3 - Economic Development/Planning",null,{"$f":"SUMIFS(Sheet1!S71_PPPYearAmount,Sheet1!S71_SubMunicipalVoteNo,$AC:$AC,Sheet1!S71_ItemType,$AD:$AD)","v":1200820},{"$f":"SUMIFS(Sheet1!S71_PPYearAmount,Sheet1!S71_SubMunicipalVoteNo,$AC:$AC,Sheet1!S71_ItemType,$AD:$AD)","v":951830},{"$f":"SUMIFS(Sheet1!S71_PYearAmount,Sheet1!S71_SubMunicipalVoteNo,$AC:$AC,Sheet1!S71_ItemType,$AD:$AD)","v":600000},{"$f":"SUMIFS(Sheet1!S71_OriginalBudAmnt,Sheet1!S71_SubMunicipalVoteNo,$AC:$AC,Sheet1!S71_ItemType,$AD:$AD)","v":1443000},{"$f":"SUMIFS(Sheet1!S71_AdjustmentBudAmnt,Sheet1!S71_SubMunicipalVoteNo,$AC:$AC,Sheet1!S71_ItemType,$AD:$AD)","v":2145000},{"$f":"SUMIFS(Sheet1!S71_AdjustmentBudAmnt,Sheet1!S71_SubMunicipalVoteNo,$AC:$AC,Sheet1!S71_ItemType,$AD:$AD)","v":2145000},{"$f":"SUMIFS(Sheet1!S71_ASBudgetAmount,Sheet1!S71_SubMunicipalVoteNo,$AC:$AC,Sheet1!S71_ItemType,$AD:$AD)","v":2653000},{"$f":"SUMIFS(Sheet1!S71_OY1BudgetAmount,Sheet1!S71_SubMunicipalVoteNo,$AC:$AC,Sheet1!S71_ItemType,$AD:$AD)","v":2859000},{"$f":"SUMIFS(Sheet1!S71_OY2BudgetAmount,Sheet1!S71_SubMunicipalVoteNo,$AC:$AC,Sheet1!S71_ItemType,$AD:$AD)","v":3065000},null,null,null,null,null,null,null,null,null,null,null,null,null,null,null,null,null,43,"IE"]
["4.4 - Project Management Unit",null,{"$f":"SUMIFS(Sheet1!S71_PPPYearAmount,Sheet1!S71_SubMunicipalVoteNo,$AC:$AC,Sheet1!S71_ItemType,$AD:$AD)","v":3179947},{"$f":"SUMIFS(Sheet1!S71_PPYearAmount,Sheet1!S71_SubMunicipalVoteNo,$AC:$AC,Sheet1!S71_ItemType,$AD:$AD)","v":2319921},{"$f":"SUMIFS(Sheet1!S71_PYearAmount,Sheet1!S71_SubMunicipalVoteNo,$AC:$AC,Sheet1!S71_ItemType,$AD:$AD)","v":3398800},{"$f":"SUMIFS(Sheet1!S71_OriginalBudAmnt,Sheet1!S71_SubMunicipalVoteNo,$AC:$AC,Sheet1!S71_ItemType,$AD:$AD)","v":8023602},{"$f":"SUMIFS(Sheet1!S71_AdjustmentBudAmnt,Sheet1!S71_SubMunicipalVoteNo,$AC:$AC,Sheet1!S71_ItemType,$AD:$AD)","v":7818324},{"$f":"SUMIFS(Sheet1!S71_AdjustmentBudAmnt,Sheet1!S71_SubMunicipalVoteNo,$AC:$AC,Sheet1!S71_ItemType,$AD:$AD)","v":7818324},{"$f":"SUMIFS(Sheet1!S71_ASBudgetAmount,Sheet1!S71_SubMunicipalVoteNo,$AC:$AC,Sheet1!S71_ItemType,$AD:$AD)","v":4781563},{"$f":"SUMIFS(Sheet1!S71_OY1BudgetAmount,Sheet1!S71_SubMunicipalVoteNo,$AC:$AC,Sheet1!S71_ItemType,$AD:$AD)","v":5025033},{"$f":"SUMIFS(Sheet1!S71_OY2BudgetAmount,Sheet1!S71_SubMunicipalVoteNo,$AC:$AC,Sheet1!S71_ItemType,$AD:$AD)","v":5269853},null,null,null,null,null,null,null,null,null,null,null,null,null,null,null,null,null,44,"IE"]
["4.5 - [Name of sub-vote]",null,{"$f":"SUMIFS(Sheet1!S71_PPPYearAmount,Sheet1!S71_SubMunicipalVoteNo,$AC:$AC,Sheet1!S71_ItemType,$AD:$AD)","v":0},{"$f":"SUMIFS(Sheet1!S71_PPYearAmount,Sheet1!S71_SubMunicipalVoteNo,$AC:$AC,Sheet1!S71_ItemType,$AD:$AD)","v":0},{"$f":"SUMIFS(Sheet1!S71_PYearAmount,Sheet1!S71_SubMunicipalVoteNo,$AC:$AC,Sheet1!S71_ItemType,$AD:$AD)","v":0},{"$f":"SUMIFS(Sheet1!S71_OriginalBudAmnt,Sheet1!S71_SubMunicipalVoteNo,$AC:$AC,Sheet1!S71_ItemType,$AD:$AD)","v":0},{"$f":"SUMIFS(Sheet1!S71_AdjustmentBudAmnt,Sheet1!S71_SubMunicipalVoteNo,$AC:$AC,Sheet1!S71_ItemType,$AD:$AD)","v":0},{"$f":"SUMIFS(Sheet1!S71_AdjustmentBudAmnt,Sheet1!S71_SubMunicipalVoteNo,$AC:$AC,Sheet1!S71_ItemType,$AD:$AD)","v":0},{"$f":"SUMIFS(Sheet1!S71_ASBudgetAmount,Sheet1!S71_SubMunicipalVoteNo,$AC:$AC,Sheet1!S71_ItemType,$AD:$AD)","v":0},{"$f":"SUMIFS(Sheet1!S71_OY1BudgetAmount,Sheet1!S71_SubMunicipalVoteNo,$AC:$AC,Sheet1!S71_ItemType,$AD:$AD)","v":0},{"$f":"SUMIFS(Sheet1!S71_OY2BudgetAmount,Sheet1!S71_SubMunicipalVoteNo,$AC:$AC,Sheet1!S71_ItemType,$AD:$AD)","v":0},null,null,null,null,null,null,null,null,null,null,null,null,null,null,null,null,null,45,"IE"]
["4.6 - [Name of sub-vote]",null,{"$f":"SUMIFS(Sheet1!S71_PPPYearAmount,Sheet1!S71_SubMunicipalVoteNo,$AC:$AC,Sheet1!S71_ItemType,$AD:$AD)","v":0},{"$f":"SUMIFS(Sheet1!S71_PPYearAmount,Sheet1!S71_SubMunicipalVoteNo,$AC:$AC,Sheet1!S71_ItemType,$AD:$AD)","v":0},{"$f":"SUMIFS(Sheet1!S71_PYearAmount,Sheet1!S71_SubMunicipalVoteNo,$AC:$AC,Sheet1!S71_ItemType,$AD:$AD)","v":0},{"$f":"SUMIFS(Sheet1!S71_OriginalBudAmnt,Sheet1!S71_SubMunicipalVoteNo,$AC:$AC,Sheet1!S71_ItemType,$AD:$AD)","v":0},{"$f":"SUMIFS(Sheet1!S71_AdjustmentBudAmnt,Sheet1!S71_SubMunicipalVoteNo,$AC:$AC,Sheet1!S71_ItemType,$AD:$AD)","v":0},{"$f":"SUMIFS(Sheet1!S71_AdjustmentBudAmnt,Sheet1!S71_SubMunicipalVoteNo,$AC:$AC,Sheet1!S71_ItemType,$AD:$AD)","v":0},{"$f":"SUMIFS(Sheet1!S71_ASBudgetAmount,Sheet1!S71_SubMunicipalVoteNo,$AC:$AC,Sheet1!S71_ItemType,$AD:$AD)","v":0},{"$f":"SUMIFS(Sheet1!S71_OY1BudgetAmount,Sheet1!S71_SubMunicipalVoteNo,$AC:$AC,Sheet1!S71_ItemType,$AD:$AD)","v":0},{"$f":"SUMIFS(Sheet1!S71_OY2BudgetAmount,Sheet1!S71_SubMunicipalVoteNo,$AC:$AC,Sheet1!S71_ItemType,$AD:$AD)","v":0},null,null,null,null,null,null,null,null,null,null,null,null,null,null,null,null,null,46,"IE"]
["4.7 - [Name of sub-vote]",null,{"$f":"SUMIFS(Sheet1!S71_PPPYearAmount,Sheet1!S71_SubMunicipalVoteNo,$AC:$AC,Sheet1!S71_ItemType,$AD:$AD)","v":0},{"$f":"SUMIFS(Sheet1!S71_PPYearAmount,Sheet1!S71_SubMunicipalVoteNo,$AC:$AC,Sheet1!S71_ItemType,$AD:$AD)","v":0},{"$f":"SUMIFS(Sheet1!S71_PYearAmount,Sheet1!S71_SubMunicipalVoteNo,$AC:$AC,Sheet1!S71_ItemType,$AD:$AD)","v":0},{"$f":"SUMIFS(Sheet1!S71_OriginalBudAmnt,Sheet1!S71_SubMunicipalVoteNo,$AC:$AC,Sheet1!S71_ItemType,$AD:$AD)","v":0},{"$f":"SUMIFS(Sheet1!S71_AdjustmentBudAmnt,Sheet1!S71_SubMunicipalVoteNo,$AC:$AC,Sheet1!S71_ItemType,$AD:$AD)","v":0},{"$f":"SUMIFS(Sheet1!S71_AdjustmentBudAmnt,Sheet1!S71_SubMunicipalVoteNo,$AC:$AC,Sheet1!S71_ItemType,$AD:$AD)","v":0},{"$f":"SUMIFS(Sheet1!S71_ASBudgetAmount,Sheet1!S71_SubMunicipalVoteNo,$AC:$AC,Sheet1!S71_ItemType,$AD:$AD)","v":0},{"$f":"SUMIFS(Sheet1!S71_OY1BudgetAmount,Sheet1!S71_SubMunicipalVoteNo,$AC:$AC,Sheet1!S71_ItemType,$AD:$AD)","v":0},{"$f":"SUMIFS(Sheet1!S71_OY2BudgetAmount,Sheet1!S71_SubMunicipalVoteNo,$AC:$AC,Sheet1!S71_ItemType,$AD:$AD)","v":0},null,null,null,null,null,null,null,null,null,null,null,null,null,null,null,null,null,47,"IE"]
["4.8 - [Name of sub-vote]",null,{"$f":"SUMIFS(Sheet1!S71_PPPYearAmount,Sheet1!S71_SubMunicipalVoteNo,$AC:$AC,Sheet1!S71_ItemType,$AD:$AD)","v":0},{"$f":"SUMIFS(Sheet1!S71_PPYearAmount,Sheet1!S71_SubMunicipalVoteNo,$AC:$AC,Sheet1!S71_ItemType,$AD:$AD)","v":0},{"$f":"SUMIFS(Sheet1!S71_PYearAmount,Sheet1!S71_SubMunicipalVoteNo,$AC:$AC,Sheet1!S71_ItemType,$AD:$AD)","v":0},{"$f":"SUMIFS(Sheet1!S71_OriginalBudAmnt,Sheet1!S71_SubMunicipalVoteNo,$AC:$AC,Sheet1!S71_ItemType,$AD:$AD)","v":0},{"$f":"SUMIFS(Sheet1!S71_AdjustmentBudAmnt,Sheet1!S71_SubMunicipalVoteNo,$AC:$AC,Sheet1!S71_ItemType,$AD:$AD)","v":0},{"$f":"SUMIFS(Sheet1!S71_AdjustmentBudAmnt,Sheet1!S71_SubMunicipalVoteNo,$AC:$AC,Sheet1!S71_ItemType,$AD:$AD)","v":0},{"$f":"SUMIFS(Sheet1!S71_ASBudgetAmount,Sheet1!S71_SubMunicipalVoteNo,$AC:$AC,Sheet1!S71_ItemType,$AD:$AD)","v":0},{"$f":"SUMIFS(Sheet1!S71_OY1BudgetAmount,Sheet1!S71_SubMunicipalVoteNo,$AC:$AC,Sheet1!S71_ItemType,$AD:$AD)","v":0},{"$f":"SUMIFS(Sheet1!S71_OY2BudgetAmount,Sheet1!S71_SubMunicipalVoteNo,$AC:$AC,Sheet1!S71_ItemType,$AD:$AD)","v":0},null,null,null,null,null,null,null,null,null,null,null,null,null,null,null,null,null,48,"IE"]
["4.9 - [Name of sub-vote]",null,{"$f":"SUMIFS(Sheet1!S71_PPPYearAmount,Sheet1!S71_SubMunicipalVoteNo,$AC:$AC,Sheet1!S71_ItemType,$AD:$AD)","v":0},{"$f":"SUMIFS(Sheet1!S71_PPYearAmount,Sheet1!S71_SubMunicipalVoteNo,$AC:$AC,Sheet1!S71_ItemType,$AD:$AD)","v":0},{"$f":"SUMIFS(Sheet1!S71_PYearAmount,Sheet1!S71_SubMunicipalVoteNo,$AC:$AC,Sheet1!S71_ItemType,$AD:$AD)","v":0},{"$f":"SUMIFS(Sheet1!S71_OriginalBudAmnt,Sheet1!S71_SubMunicipalVoteNo,$AC:$AC,Sheet1!S71_ItemType,$AD:$AD)","v":0},{"$f":"SUMIFS(Sheet1!S71_AdjustmentBudAmnt,Sheet1!S71_SubMunicipalVoteNo,$AC:$AC,Sheet1!S71_ItemType,$AD:$AD)","v":0},{"$f":"SUMIFS(Sheet1!S71_AdjustmentBudAmnt,Sheet1!S71_SubMunicipalVoteNo,$AC:$AC,Sheet1!S71_ItemType,$AD:$AD)","v":0},{"$f":"SUMIFS(Sheet1!S71_ASBudgetAmount,Sheet1!S71_SubMunicipalVoteNo,$AC:$AC,Sheet1!S71_ItemType,$AD:$AD)","v":0},{"$f":"SUMIFS(Sheet1!S71_OY1BudgetAmount,Sheet1!S71_SubMunicipalVoteNo,$AC:$AC,Sheet1!S71_ItemType,$AD:$AD)","v":0},{"$f":"SUMIFS(Sheet1!S71_OY2BudgetAmount,Sheet1!S71_SubMunicipalVoteNo,$AC:$AC,Sheet1!S71_ItemType,$AD:$AD)","v":0},null,null,null,null,null,null,null,null,null,null,null,null,null,null,null,null,null,49,"IE"]
["4.10 - [Name of sub-vote]",null,{"$f":"SUMIFS(Sheet1!S71_PPPYearAmount,Sheet1!S71_SubMunicipalVoteNo,$AC:$AC,Sheet1!S71_ItemType,$AD:$AD)","v":0},{"$f":"SUMIFS(Sheet1!S71_PPYearAmount,Sheet1!S71_SubMunicipalVoteNo,$AC:$AC,Sheet1!S71_ItemType,$AD:$AD)","v":0},{"$f":"SUMIFS(Sheet1!S71_PYearAmount,Sheet1!S71_SubMunicipalVoteNo,$AC:$AC,Sheet1!S71_ItemType,$AD:$AD)","v":0},{"$f":"SUMIFS(Sheet1!S71_OriginalBudAmnt,Sheet1!S71_SubMunicipalVoteNo,$AC:$AC,Sheet1!S71_ItemType,$AD:$AD)","v":0},{"$f":"SUMIFS(Sheet1!S71_AdjustmentBudAmnt,Sheet1!S71_SubMunicipalVoteNo,$AC:$AC,Sheet1!S71_ItemType,$AD:$AD)","v":0},{"$f":"SUMIFS(Sheet1!S71_AdjustmentBudAmnt,Sheet1!S71_SubMunicipalVoteNo,$AC:$AC,Sheet1!S71_ItemType,$AD:$AD)","v":0},{"$f":"SUMIFS(Sheet1!S71_ASBudgetAmount,Sheet1!S71_SubMunicipalVoteNo,$AC:$AC,Sheet1!S71_ItemType,$AD:$AD)","v":0},{"$f":"SUMIFS(Sheet1!S71_OY1BudgetAmount,Sheet1!S71_SubMunicipalVoteNo,$AC:$AC,Sheet1!S71_ItemType,$AD:$AD)","v":0},{"$f":"SUMIFS(Sheet1!S71_OY2BudgetAmount,Sheet1!S71_SubMunicipalVoteNo,$AC:$AC,Sheet1!S71_ItemType,$AD:$AD)","v":0},null,null,null,null,null,null,null,null,null,null,null,null,null,null,null,null,null,410,"IE"]
[{"$f":"A49","v":"Vote 5 - Executive & Council"},null,{"$f":"SUM(C218:C227)","v":33962935},32852254,36491065,41143288,43901974,43901974,48480732,50659755,52693321]
[{"$f":"A50","v":"5.1 - Municipal Manager, Town Secretary and Chief Executive"},null,{"$f":"SUMIFS(Sheet1!S71_PPPYearAmount,Sheet1!S71_SubMunicipalVoteNo,$AC:$AC,Sheet1!S71_ItemType,$AD:$AD)","v":1441578},{"$f":"SUMIFS(Sheet1!S71_PPYearAmount,Sheet1!S71_SubMunicipalVoteNo,$AC:$AC,Sheet1!S71_ItemType,$AD:$AD)","v":1372261},{"$f":"SUMIFS(Sheet1!S71_PYearAmount,Sheet1!S71_SubMunicipalVoteNo,$AC:$AC,Sheet1!S71_ItemType,$AD:$AD)","v":1442827},{"$f":"SUMIFS(Sheet1!S71_OriginalBudAmnt,Sheet1!S71_SubMunicipalVoteNo,$AC:$AC,Sheet1!S71_ItemType,$AD:$AD)","v":1463064},{"$f":"SUMIFS(Sheet1!S71_AdjustmentBudAmnt,Sheet1!S71_SubMunicipalVoteNo,$AC:$AC,Sheet1!S71_ItemType,$AD:$AD)","v":1608358},{"$f":"SUMIFS(Sheet1!S71_AdjustmentBudAmnt,Sheet1!S71_SubMunicipalVoteNo,$AC:$AC,Sheet1!S71_ItemType,$AD:$AD)","v":1608358},{"$f":"SUMIFS(Sheet1!S71_ASBudgetAmount,Sheet1!S71_SubMunicipalVoteNo,$AC:$AC,Sheet1!S71_ItemType,$AD:$AD)","v":1647982},{"$f":"SUMIFS(Sheet1!S71_OY1BudgetAmount,Sheet1!S71_SubMunicipalVoteNo,$AC:$AC,Sheet1!S71_ItemType,$AD:$AD)","v":1734700},{"$f":"SUMIFS(Sheet1!S71_OY2BudgetAmount,Sheet1!S71_SubMunicipalVoteNo,$AC:$AC,Sheet1!S71_ItemType,$AD:$AD)","v":1821867},null,null,null,null,null,null,null,null,null,null,null,null,null,null,null,null,null,51,"IE"]
["5.2 - Mayor and Council",null,{"$f":"SUMIFS(Sheet1!S71_PPPYearAmount,Sheet1!S71_SubMunicipalVoteNo,$AC:$AC,Sheet1!S71_ItemType,$AD:$AD)","v":32521357},{"$f":"SUMIFS(Sheet1!S71_PPYearAmount,Sheet1!S71_SubMunicipalVoteNo,$AC:$AC,Sheet1!S71_ItemType,$AD:$AD)","v":31479993},{"$f":"SUMIFS(Sheet1!S71_PYearAmount,Sheet1!S71_SubMunicipalVoteNo,$AC:$AC,Sheet1!S71_ItemType,$AD:$AD)","v":35048238},{"$f":"SUMIFS(Sheet1!S71_OriginalBudAmnt,Sheet1!S71_SubMunicipalVoteNo,$AC:$AC,Sheet1!S71_ItemType,$AD:$AD)","v":39680224},{"$f":"SUMIFS(Sheet1!S71_AdjustmentBudAmnt,Sheet1!S71_SubMunicipalVoteNo,$AC:$AC,Sheet1!S71_ItemType,$AD:$AD)","v":42293616},{"$f":"SUMIFS(Sheet1!S71_AdjustmentBudAmnt,Sheet1!S71_SubMunicipalVoteNo,$AC:$AC,Sheet1!S71_ItemType,$AD:$AD)","v":42293616},{"$f":"SUMIFS(Sheet1!S71_ASBudgetAmount,Sheet1!S71_SubMunicipalVoteNo,$AC:$AC,Sheet1!S71_ItemType,$AD:$AD)","v":46832750},{"$f":"SUMIFS(Sheet1!S71_OY1BudgetAmount,Sheet1!S71_SubMunicipalVoteNo,$AC:$AC,Sheet1!S71_ItemType,$AD:$AD)","v":48925055},{"$f":"SUMIFS(Sheet1!S71_OY2BudgetAmount,Sheet1!S71_SubMunicipalVoteNo,$AC:$AC,Sheet1!S71_ItemType,$AD:$AD)","v":50871454},null,null,null,null,null,null,null,null,null,null,null,null,null,null,null,null,null,52,"IE"]
["5.3 - [Name of sub-vote]",null,{"$f":"SUMIFS(Sheet1!S71_PPPYearAmount,Sheet1!S71_SubMunicipalVoteNo,$AC:$AC,Sheet1!S71_ItemType,$AD:$AD)","v":0},{"$f":"SUMIFS(Sheet1!S71_PPYearAmount,Sheet1!S71_SubMunicipalVoteNo,$AC:$AC,Sheet1!S71_ItemType,$AD:$AD)","v":0},{"$f":"SUMIFS(Sheet1!S71_PYearAmount,Sheet1!S71_SubMunicipalVoteNo,$AC:$AC,Sheet1!S71_ItemType,$AD:$AD)","v":0},{"$f":"SUMIFS(Sheet1!S71_OriginalBudAmnt,Sheet1!S71_SubMunicipalVoteNo,$AC:$AC,Sheet1!S71_ItemType,$AD:$AD)","v":0},{"$f":"SUMIFS(Sheet1!S71_AdjustmentBudAmnt,Sheet1!S71_SubMunicipalVoteNo,$AC:$AC,Sheet1!S71_ItemType,$AD:$AD)","v":0},{"$f":"SUMIFS(Sheet1!S71_AdjustmentBudAmnt,Sheet1!S71_SubMunicipalVoteNo,$AC:$AC,Sheet1!S71_ItemType,$AD:$AD)","v":0},{"$f":"SUMIFS(Sheet1!S71_ASBudgetAmount,Sheet1!S71_SubMunicipalVoteNo,$AC:$AC,Sheet1!S71_ItemType,$AD:$AD)","v":0},{"$f":"SUMIFS(Sheet1!S71_OY1BudgetAmount,Sheet1!S71_SubMunicipalVoteNo,$AC:$AC,Sheet1!S71_ItemType,$AD:$AD)","v":0},{"$f":"SUMIFS(Sheet1!S71_OY2BudgetAmount,Sheet1!S71_SubMunicipalVoteNo,$AC:$AC,Sheet1!S71_ItemType,$AD:$AD)","v":0},null,null,null,null,null,null,null,null,null,null,null,null,null,null,null,null,null,53,"IE"]
["5.4 - [Name of sub-vote]",null,{"$f":"SUMIFS(Sheet1!S71_PPPYearAmount,Sheet1!S71_SubMunicipalVoteNo,$AC:$AC,Sheet1!S71_ItemType,$AD:$AD)","v":0},{"$f":"SUMIFS(Sheet1!S71_PPYearAmount,Sheet1!S71_SubMunicipalVoteNo,$AC:$AC,Sheet1!S71_ItemType,$AD:$AD)","v":0},{"$f":"SUMIFS(Sheet1!S71_PYearAmount,Sheet1!S71_SubMunicipalVoteNo,$AC:$AC,Sheet1!S71_ItemType,$AD:$AD)","v":0},{"$f":"SUMIFS(Sheet1!S71_OriginalBudAmnt,Sheet1!S71_SubMunicipalVoteNo,$AC:$AC,Sheet1!S71_ItemType,$AD:$AD)","v":0},{"$f":"SUMIFS(Sheet1!S71_AdjustmentBudAmnt,Sheet1!S71_SubMunicipalVoteNo,$AC:$AC,Sheet1!S71_ItemType,$AD:$AD)","v":0},{"$f":"SUMIFS(Sheet1!S71_AdjustmentBudAmnt,Sheet1!S71_SubMunicipalVoteNo,$AC:$AC,Sheet1!S71_ItemType,$AD:$AD)","v":0},{"$f":"SUMIFS(Sheet1!S71_ASBudgetAmount,Sheet1!S71_SubMunicipalVoteNo,$AC:$AC,Sheet1!S71_ItemType,$AD:$AD)","v":0},{"$f":"SUMIFS(Sheet1!S71_OY1BudgetAmount,Sheet1!S71_SubMunicipalVoteNo,$AC:$AC,Sheet1!S71_ItemType,$AD:$AD)","v":0},{"$f":"SUMIFS(Sheet1!S71_OY2BudgetAmount,Sheet1!S71_SubMunicipalVoteNo,$AC:$AC,Sheet1!S71_ItemType,$AD:$AD)","v":0},null,null,null,null,null,null,null,null,null,null,null,null,null,null,null,null,null,54,"IE"]
["5.5 - [Name of sub-vote]",null,{"$f":"SUMIFS(Sheet1!S71_PPPYearAmount,Sheet1!S71_SubMunicipalVoteNo,$AC:$AC,Sheet1!S71_ItemType,$AD:$AD)","v":0},{"$f":"SUMIFS(Sheet1!S71_PPYearAmount,Sheet1!S71_SubMunicipalVoteNo,$AC:$AC,Sheet1!S71_ItemType,$AD:$AD)","v":0},{"$f":"SUMIFS(Sheet1!S71_PYearAmount,Sheet1!S71_SubMunicipalVoteNo,$AC:$AC,Sheet1!S71_ItemType,$AD:$AD)","v":0},{"$f":"SUMIFS(Sheet1!S71_OriginalBudAmnt,Sheet1!S71_SubMunicipalVoteNo,$AC:$AC,Sheet1!S71_ItemType,$AD:$AD)","v":0},{"$f":"SUMIFS(Sheet1!S71_AdjustmentBudAmnt,Sheet1!S71_SubMunicipalVoteNo,$AC:$AC,Sheet1!S71_ItemType,$AD:$AD)","v":0},{"$f":"SUMIFS(Sheet1!S71_AdjustmentBudAmnt,Sheet1!S71_SubMunicipalVoteNo,$AC:$AC,Sheet1!S71_ItemType,$AD:$AD)","v":0},{"$f":"SUMIFS(Sheet1!S71_ASBudgetAmount,Sheet1!S71_SubMunicipalVoteNo,$AC:$AC,Sheet1!S71_ItemType,$AD:$AD)","v":0},{"$f":"SUMIFS(Sheet1!S71_OY1BudgetAmount,Sheet1!S71_SubMunicipalVoteNo,$AC:$AC,Sheet1!S71_ItemType,$AD:$AD)","v":0},{"$f":"SUMIFS(Sheet1!S71_OY2BudgetAmount,Sheet1!S71_SubMunicipalVoteNo,$AC:$AC,Sheet1!S71_ItemType,$AD:$AD)","v":0},null,null,null,null,null,null,null,null,null,null,null,null,null,null,null,null,null,55,"IE"]
["5.6 - [Name of sub-vote]",null,{"$f":"SUMIFS(Sheet1!S71_PPPYearAmount,Sheet1!S71_SubMunicipalVoteNo,$AC:$AC,Sheet1!S71_ItemType,$AD:$AD)","v":0},{"$f":"SUMIFS(Sheet1!S71_PPYearAmount,Sheet1!S71_SubMunicipalVoteNo,$AC:$AC,Sheet1!S71_ItemType,$AD:$AD)","v":0},{"$f":"SUMIFS(Sheet1!S71_PYearAmount,Sheet1!S71_SubMunicipalVoteNo,$AC:$AC,Sheet1!S71_ItemType,$AD:$AD)","v":0},{"$f":"SUMIFS(Sheet1!S71_OriginalBudAmnt,Sheet1!S71_SubMunicipalVoteNo,$AC:$AC,Sheet1!S71_ItemType,$AD:$AD)","v":0},{"$f":"SUMIFS(Sheet1!S71_AdjustmentBudAmnt,Sheet1!S71_SubMunicipalVoteNo,$AC:$AC,Sheet1!S71_ItemType,$AD:$AD)","v":0},{"$f":"SUMIFS(Sheet1!S71_AdjustmentBudAmnt,Sheet1!S71_SubMunicipalVoteNo,$AC:$AC,Sheet1!S71_ItemType,$AD:$AD)","v":0},{"$f":"SUMIFS(Sheet1!S71_ASBudgetAmount,Sheet1!S71_SubMunicipalVoteNo,$AC:$AC,Sheet1!S71_ItemType,$AD:$AD)","v":0},{"$f":"SUMIFS(Sheet1!S71_OY1BudgetAmount,Sheet1!S71_SubMunicipalVoteNo,$AC:$AC,Sheet1!S71_ItemType,$AD:$AD)","v":0},{"$f":"SUMIFS(Sheet1!S71_OY2BudgetAmount,Sheet1!S71_SubMunicipalVoteNo,$AC:$AC,Sheet1!S71_ItemType,$AD:$AD)","v":0},null,null,null,null,null,null,null,null,null,null,null,null,null,null,null,null,null,56,"IE"]
["5.7 - [Name of sub-vote]",null,{"$f":"SUMIFS(Sheet1!S71_PPPYearAmount,Sheet1!S71_SubMunicipalVoteNo,$AC:$AC,Sheet1!S71_ItemType,$AD:$AD)","v":0},{"$f":"SUMIFS(Sheet1!S71_PPYearAmount,Sheet1!S71_SubMunicipalVoteNo,$AC:$AC,Sheet1!S71_ItemType,$AD:$AD)","v":0},{"$f":"SUMIFS(Sheet1!S71_PYearAmount,Sheet1!S71_SubMunicipalVoteNo,$AC:$AC,Sheet1!S71_ItemType,$AD:$AD)","v":0},{"$f":"SUMIFS(Sheet1!S71_OriginalBudAmnt,Sheet1!S71_SubMunicipalVoteNo,$AC:$AC,Sheet1!S71_ItemType,$AD:$AD)","v":0},{"$f":"SUMIFS(Sheet1!S71_AdjustmentBudAmnt,Sheet1!S71_SubMunicipalVoteNo,$AC:$AC,Sheet1!S71_ItemType,$AD:$AD)","v":0},{"$f":"SUMIFS(Sheet1!S71_AdjustmentBudAmnt,Sheet1!S71_SubMunicipalVoteNo,$AC:$AC,Sheet1!S71_ItemType,$AD:$AD)","v":0},{"$f":"SUMIFS(Sheet1!S71_ASBudgetAmount,Sheet1!S71_SubMunicipalVoteNo,$AC:$AC,Sheet1!S71_ItemType,$AD:$AD)","v":0},{"$f":"SUMIFS(Sheet1!S71_OY1BudgetAmount,Sheet1!S71_SubMunicipalVoteNo,$AC:$AC,Sheet1!S71_ItemType,$AD:$AD)","v":0},{"$f":"SUMIFS(Sheet1!S71_OY2BudgetAmount,Sheet1!S71_SubMunicipalVoteNo,$AC:$AC,Sheet1!S71_ItemType,$AD:$AD)","v":0},null,null,null,null,null,null,null,null,null,null,null,null,null,null,null,null,null,57,"IE"]
["5.8 - [Name of sub-vote]",null,{"$f":"SUMIFS(Sheet1!S71_PPPYearAmount,Sheet1!S71_SubMunicipalVoteNo,$AC:$AC,Sheet1!S71_ItemType,$AD:$AD)","v":0},{"$f":"SUMIFS(Sheet1!S71_PPYearAmount,Sheet1!S71_SubMunicipalVoteNo,$AC:$AC,Sheet1!S71_ItemType,$AD:$AD)","v":0},{"$f":"SUMIFS(Sheet1!S71_PYearAmount,Sheet1!S71_SubMunicipalVoteNo,$AC:$AC,Sheet1!S71_ItemType,$AD:$AD)","v":0},{"$f":"SUMIFS(Sheet1!S71_OriginalBudAmnt,Sheet1!S71_SubMunicipalVoteNo,$AC:$AC,Sheet1!S71_ItemType,$AD:$AD)","v":0},{"$f":"SUMIFS(Sheet1!S71_AdjustmentBudAmnt,Sheet1!S71_SubMunicipalVoteNo,$AC:$AC,Sheet1!S71_ItemType,$AD:$AD)","v":0},{"$f":"SUMIFS(Sheet1!S71_AdjustmentBudAmnt,Sheet1!S71_SubMunicipalVoteNo,$AC:$AC,Sheet1!S71_ItemType,$AD:$AD)","v":0},{"$f":"SUMIFS(Sheet1!S71_ASBudgetAmount,Sheet1!S71_SubMunicipalVoteNo,$AC:$AC,Sheet1!S71_ItemType,$AD:$AD)","v":0},{"$f":"SUMIFS(Sheet1!S71_OY1BudgetAmount,Sheet1!S71_SubMunicipalVoteNo,$AC:$AC,Sheet1!S71_ItemType,$AD:$AD)","v":0},{"$f":"SUMIFS(Sheet1!S71_OY2BudgetAmount,Sheet1!S71_SubMunicipalVoteNo,$AC:$AC,Sheet1!S71_ItemType,$AD:$AD)","v":0},null,null,null,null,null,null,null,null,null,null,null,null,null,null,null,null,null,58,"IE"]
["5.9 - [Name of sub-vote]",null,{"$f":"SUMIFS(Sheet1!S71_PPPYearAmount,Sheet1!S71_SubMunicipalVoteNo,$AC:$AC,Sheet1!S71_ItemType,$AD:$AD)","v":0},{"$f":"SUMIFS(Sheet1!S71_PPYearAmount,Sheet1!S71_SubMunicipalVoteNo,$AC:$AC,Sheet1!S71_ItemType,$AD:$AD)","v":0},{"$f":"SUMIFS(Sheet1!S71_PYearAmount,Sheet1!S71_SubMunicipalVoteNo,$AC:$AC,Sheet1!S71_ItemType,$AD:$AD)","v":0},{"$f":"SUMIFS(Sheet1!S71_OriginalBudAmnt,Sheet1!S71_SubMunicipalVoteNo,$AC:$AC,Sheet1!S71_ItemType,$AD:$AD)","v":0},{"$f":"SUMIFS(Sheet1!S71_AdjustmentBudAmnt,Sheet1!S71_SubMunicipalVoteNo,$AC:$AC,Sheet1!S71_ItemType,$AD:$AD)","v":0},{"$f":"SUMIFS(Sheet1!S71_AdjustmentBudAmnt,Sheet1!S71_SubMunicipalVoteNo,$AC:$AC,Sheet1!S71_ItemType,$AD:$AD)","v":0},{"$f":"SUMIFS(Sheet1!S71_ASBudgetAmount,Sheet1!S71_SubMunicipalVoteNo,$AC:$AC,Sheet1!S71_ItemType,$AD:$AD)","v":0},{"$f":"SUMIFS(Sheet1!S71_OY1BudgetAmount,Sheet1!S71_SubMunicipalVoteNo,$AC:$AC,Sheet1!S71_ItemType,$AD:$AD)","v":0},{"$f":"SUMIFS(Sheet1!S71_OY2BudgetAmount,Sheet1!S71_SubMunicipalVoteNo,$AC:$AC,Sheet1!S71_ItemType,$AD:$AD)","v":0},null,null,null,null,null,null,null,null,null,null,null,null,null,null,null,null,null,59,"IE"]
["5.10 - [Name of sub-vote]",null,{"$f":"SUMIFS(Sheet1!S71_PPPYearAmount,Sheet1!S71_SubMunicipalVoteNo,$AC:$AC,Sheet1!S71_ItemType,$AD:$AD)","v":0},{"$f":"SUMIFS(Sheet1!S71_PPYearAmount,Sheet1!S71_SubMunicipalVoteNo,$AC:$AC,Sheet1!S71_ItemType,$AD:$AD)","v":0},{"$f":"SUMIFS(Sheet1!S71_PYearAmount,Sheet1!S71_SubMunicipalVoteNo,$AC:$AC,Sheet1!S71_ItemType,$AD:$AD)","v":0},{"$f":"SUMIFS(Sheet1!S71_OriginalBudAmnt,Sheet1!S71_SubMunicipalVoteNo,$AC:$AC,Sheet1!S71_ItemType,$AD:$AD)","v":0},{"$f":"SUMIFS(Sheet1!S71_AdjustmentBudAmnt,Sheet1!S71_SubMunicipalVoteNo,$AC:$AC,Sheet1!S71_ItemType,$AD:$AD)","v":0},{"$f":"SUMIFS(Sheet1!S71_AdjustmentBudAmnt,Sheet1!S71_SubMunicipalVoteNo,$AC:$AC,Sheet1!S71_ItemType,$AD:$AD)","v":0},{"$f":"SUMIFS(Sheet1!S71_ASBudgetAmount,Sheet1!S71_SubMunicipalVoteNo,$AC:$AC,Sheet1!S71_ItemType,$AD:$AD)","v":0},{"$f":"SUMIFS(Sheet1!S71_OY1BudgetAmount,Sheet1!S71_SubMunicipalVoteNo,$AC:$AC,Sheet1!S71_ItemType,$AD:$AD)","v":0},{"$f":"SUMIFS(Sheet1!S71_OY2BudgetAmount,Sheet1!S71_SubMunicipalVoteNo,$AC:$AC,Sheet1!S71_ItemType,$AD:$AD)","v":0},null,null,null,null,null,null,null,null,null,null,null,null,null,null,null,null,null,510,"IE"]
[{"$f":"A60","v":"Vote 6 - Internal Audit"},null,{"$f":"SUM(C229:C238)","v":2148886},2368141,2556492,2906846,2977183,2977183,3007269,3131966,3283421]
[{"$f":"A61","v":"6.1 - Governance Function"},null,{"$f":"SUMIFS(Sheet1!S71_PPPYearAmount,Sheet1!S71_SubMunicipalVoteNo,$AC:$AC,Sheet1!S71_ItemType,$AD:$AD)","v":2148886},{"$f":"SUMIFS(Sheet1!S71_PPYearAmount,Sheet1!S71_SubMunicipalVoteNo,$AC:$AC,Sheet1!S71_ItemType,$AD:$AD)","v":2368141},{"$f":"SUMIFS(Sheet1!S71_PYearAmount,Sheet1!S71_SubMunicipalVoteNo,$AC:$AC,Sheet1!S71_ItemType,$AD:$AD)","v":2556492},{"$f":"SUMIFS(Sheet1!S71_OriginalBudAmnt,Sheet1!S71_SubMunicipalVoteNo,$AC:$AC,Sheet1!S71_ItemType,$AD:$AD)","v":2906846},{"$f":"SUMIFS(Sheet1!S71_AdjustmentBudAmnt,Sheet1!S71_SubMunicipalVoteNo,$AC:$AC,Sheet1!S71_ItemType,$AD:$AD)","v":2977183},{"$f":"SUMIFS(Sheet1!S71_AdjustmentBudAmnt,Sheet1!S71_SubMunicipalVoteNo,$AC:$AC,Sheet1!S71_ItemType,$AD:$AD)","v":2977183},{"$f":"SUMIFS(Sheet1!S71_ASBudgetAmount,Sheet1!S71_SubMunicipalVoteNo,$AC:$AC,Sheet1!S71_ItemType,$AD:$AD)","v":3007269},{"$f":"SUMIFS(Sheet1!S71_OY1BudgetAmount,Sheet1!S71_SubMunicipalVoteNo,$AC:$AC,Sheet1!S71_ItemType,$AD:$AD)","v":3131966},{"$f":"SUMIFS(Sheet1!S71_OY2BudgetAmount,Sheet1!S71_SubMunicipalVoteNo,$AC:$AC,Sheet1!S71_ItemType,$AD:$AD)","v":3283421},null,null,null,null,null,null,null,null,null,null,null,null,null,null,null,null,null,61,"IE"]
["6.2 - [Name of sub-vote]",null,{"$f":"SUMIFS(Sheet1!S71_PPPYearAmount,Sheet1!S71_SubMunicipalVoteNo,$AC:$AC,Sheet1!S71_ItemType,$AD:$AD)","v":0},{"$f":"SUMIFS(Sheet1!S71_PPYearAmount,Sheet1!S71_SubMunicipalVoteNo,$AC:$AC,Sheet1!S71_ItemType,$AD:$AD)","v":0},{"$f":"SUMIFS(Sheet1!S71_PYearAmount,Sheet1!S71_SubMunicipalVoteNo,$AC:$AC,Sheet1!S71_ItemType,$AD:$AD)","v":0},{"$f":"SUMIFS(Sheet1!S71_OriginalBudAmnt,Sheet1!S71_SubMunicipalVoteNo,$AC:$AC,Sheet1!S71_ItemType,$AD:$AD)","v":0},{"$f":"SUMIFS(Sheet1!S71_AdjustmentBudAmnt,Sheet1!S71_SubMunicipalVoteNo,$AC:$AC,Sheet1!S71_ItemType,$AD:$AD)","v":0},{"$f":"SUMIFS(Sheet1!S71_AdjustmentBudAmnt,Sheet1!S71_SubMunicipalVoteNo,$AC:$AC,Sheet1!S71_ItemType,$AD:$AD)","v":0},{"$f":"SUMIFS(Sheet1!S71_ASBudgetAmount,Sheet1!S71_SubMunicipalVoteNo,$AC:$AC,Sheet1!S71_ItemType,$AD:$AD)","v":0},{"$f":"SUMIFS(Sheet1!S71_OY1BudgetAmount,Sheet1!S71_SubMunicipalVoteNo,$AC:$AC,Sheet1!S71_ItemType,$AD:$AD)","v":0},{"$f":"SUMIFS(Sheet1!S71_OY2BudgetAmount,Sheet1!S71_SubMunicipalVoteNo,$AC:$AC,Sheet1!S71_ItemType,$AD:$AD)","v":0},null,null,null,null,null,null,null,null,null,null,null,null,null,null,null,null,null,62,"IE"]
["6.3 - [Name of sub-vote]",null,{"$f":"SUMIFS(Sheet1!S71_PPPYearAmount,Sheet1!S71_SubMunicipalVoteNo,$AC:$AC,Sheet1!S71_ItemType,$AD:$AD)","v":0},{"$f":"SUMIFS(Sheet1!S71_PPYearAmount,Sheet1!S71_SubMunicipalVoteNo,$AC:$AC,Sheet1!S71_ItemType,$AD:$AD)","v":0},{"$f":"SUMIFS(Sheet1!S71_PYearAmount,Sheet1!S71_SubMunicipalVoteNo,$AC:$AC,Sheet1!S71_ItemType,$AD:$AD)","v":0},{"$f":"SUMIFS(Sheet1!S71_OriginalBudAmnt,Sheet1!S71_SubMunicipalVoteNo,$AC:$AC,Sheet1!S71_ItemType,$AD:$AD)","v":0},{"$f":"SUMIFS(Sheet1!S71_AdjustmentBudAmnt,Sheet1!S71_SubMunicipalVoteNo,$AC:$AC,Sheet1!S71_ItemType,$AD:$AD)","v":0},{"$f":"SUMIFS(Sheet1!S71_AdjustmentBudAmnt,Sheet1!S71_SubMunicipalVoteNo,$AC:$AC,Sheet1!S71_ItemType,$AD:$AD)","v":0},{"$f":"SUMIFS(Sheet1!S71_ASBudgetAmount,Sheet1!S71_SubMunicipalVoteNo,$AC:$AC,Sheet1!S71_ItemType,$AD:$AD)","v":0},{"$f":"SUMIFS(Sheet1!S71_OY1BudgetAmount,Sheet1!S71_SubMunicipalVoteNo,$AC:$AC,Sheet1!S71_ItemType,$AD:$AD)","v":0},{"$f":"SUMIFS(Sheet1!S71_OY2BudgetAmount,Sheet1!S71_SubMunicipalVoteNo,$AC:$AC,Sheet1!S71_ItemType,$AD:$AD)","v":0},null,null,null,null,null,null,null,null,null,null,null,null,null,null,null,null,null,63,"IE"]
["6.4 - [Name of sub-vote]",null,{"$f":"SUMIFS(Sheet1!S71_PPPYearAmount,Sheet1!S71_SubMunicipalVoteNo,$AC:$AC,Sheet1!S71_ItemType,$AD:$AD)","v":0},{"$f":"SUMIFS(Sheet1!S71_PPYearAmount,Sheet1!S71_SubMunicipalVoteNo,$AC:$AC,Sheet1!S71_ItemType,$AD:$AD)","v":0},{"$f":"SUMIFS(Sheet1!S71_PYearAmount,Sheet1!S71_SubMunicipalVoteNo,$AC:$AC,Sheet1!S71_ItemType,$AD:$AD)","v":0},{"$f":"SUMIFS(Sheet1!S71_OriginalBudAmnt,Sheet1!S71_SubMunicipalVoteNo,$AC:$AC,Sheet1!S71_ItemType,$AD:$AD)","v":0},{"$f":"SUMIFS(Sheet1!S71_AdjustmentBudAmnt,Sheet1!S71_SubMunicipalVoteNo,$AC:$AC,Sheet1!S71_ItemType,$AD:$AD)","v":0},{"$f":"SUMIFS(Sheet1!S71_AdjustmentBudAmnt,Sheet1!S71_SubMunicipalVoteNo,$AC:$AC,Sheet1!S71_ItemType,$AD:$AD)","v":0},{"$f":"SUMIFS(Sheet1!S71_ASBudgetAmount,Sheet1!S71_SubMunicipalVoteNo,$AC:$AC,Sheet1!S71_ItemType,$AD:$AD)","v":0},{"$f":"SUMIFS(Sheet1!S71_OY1BudgetAmount,Sheet1!S71_SubMunicipalVoteNo,$AC:$AC,Sheet1!S71_ItemType,$AD:$AD)","v":0},{"$f":"SUMIFS(Sheet1!S71_OY2BudgetAmount,Sheet1!S71_SubMunicipalVoteNo,$AC:$AC,Sheet1!S71_ItemType,$AD:$AD)","v":0},null,null,null,null,null,null,null,null,null,null,null,null,null,null,null,null,null,64,"IE"]
["6.5 - [Name of sub-vote]",null,{"$f":"SUMIFS(Sheet1!S71_PPPYearAmount,Sheet1!S71_SubMunicipalVoteNo,$AC:$AC,Sheet1!S71_ItemType,$AD:$AD)","v":0},{"$f":"SUMIFS(Sheet1!S71_PPYearAmount,Sheet1!S71_SubMunicipalVoteNo,$AC:$AC,Sheet1!S71_ItemType,$AD:$AD)","v":0},{"$f":"SUMIFS(Sheet1!S71_PYearAmount,Sheet1!S71_SubMunicipalVoteNo,$AC:$AC,Sheet1!S71_ItemType,$AD:$AD)","v":0},{"$f":"SUMIFS(Sheet1!S71_OriginalBudAmnt,Sheet1!S71_SubMunicipalVoteNo,$AC:$AC,Sheet1!S71_ItemType,$AD:$AD)","v":0},{"$f":"SUMIFS(Sheet1!S71_AdjustmentBudAmnt,Sheet1!S71_SubMunicipalVoteNo,$AC:$AC,Sheet1!S71_ItemType,$AD:$AD)","v":0},{"$f":"SUMIFS(Sheet1!S71_AdjustmentBudAmnt,Sheet1!S71_SubMunicipalVoteNo,$AC:$AC,Sheet1!S71_ItemType,$AD:$AD)","v":0},{"$f":"SUMIFS(Sheet1!S71_ASBudgetAmount,Sheet1!S71_SubMunicipalVoteNo,$AC:$AC,Sheet1!S71_ItemType,$AD:$AD)","v":0},{"$f":"SUMIFS(Sheet1!S71_OY1BudgetAmount,Sheet1!S71_SubMunicipalVoteNo,$AC:$AC,Sheet1!S71_ItemType,$AD:$AD)","v":0},{"$f":"SUMIFS(Sheet1!S71_OY2BudgetAmount,Sheet1!S71_SubMunicipalVoteNo,$AC:$AC,Sheet1!S71_ItemType,$AD:$AD)","v":0},null,null,null,null,null,null,null,null,null,null,null,null,null,null,null,null,null,65,"IE"]
["6.6 - [Name of sub-vote]",null,{"$f":"SUMIFS(Sheet1!S71_PPPYearAmount,Sheet1!S71_SubMunicipalVoteNo,$AC:$AC,Sheet1!S71_ItemType,$AD:$AD)","v":0},{"$f":"SUMIFS(Sheet1!S71_PPYearAmount,Sheet1!S71_SubMunicipalVoteNo,$AC:$AC,Sheet1!S71_ItemType,$AD:$AD)","v":0},{"$f":"SUMIFS(Sheet1!S71_PYearAmount,Sheet1!S71_SubMunicipalVoteNo,$AC:$AC,Sheet1!S71_ItemType,$AD:$AD)","v":0},{"$f":"SUMIFS(Sheet1!S71_OriginalBudAmnt,Sheet1!S71_SubMunicipalVoteNo,$AC:$AC,Sheet1!S71_ItemType,$AD:$AD)","v":0},{"$f":"SUMIFS(Sheet1!S71_AdjustmentBudAmnt,Sheet1!S71_SubMunicipalVoteNo,$AC:$AC,Sheet1!S71_ItemType,$AD:$AD)","v":0},{"$f":"SUMIFS(Sheet1!S71_AdjustmentBudAmnt,Sheet1!S71_SubMunicipalVoteNo,$AC:$AC,Sheet1!S71_ItemType,$AD:$AD)","v":0},{"$f":"SUMIFS(Sheet1!S71_ASBudgetAmount,Sheet1!S71_SubMunicipalVoteNo,$AC:$AC,Sheet1!S71_ItemType,$AD:$AD)","v":0},{"$f":"SUMIFS(Sheet1!S71_OY1BudgetAmount,Sheet1!S71_SubMunicipalVoteNo,$AC:$AC,Sheet1!S71_ItemType,$AD:$AD)","v":0},{"$f":"SUMIFS(Sheet1!S71_OY2BudgetAmount,Sheet1!S71_SubMunicipalVoteNo,$AC:$AC,Sheet1!S71_ItemType,$AD:$AD)","v":0},null,null,null,null,null,null,null,null,null,null,null,null,null,null,null,null,null,66,"IE"]
["6.7 - [Name of sub-vote]",null,{"$f":"SUMIFS(Sheet1!S71_PPPYearAmount,Sheet1!S71_SubMunicipalVoteNo,$AC:$AC,Sheet1!S71_ItemType,$AD:$AD)","v":0},{"$f":"SUMIFS(Sheet1!S71_PPYearAmount,Sheet1!S71_SubMunicipalVoteNo,$AC:$AC,Sheet1!S71_ItemType,$AD:$AD)","v":0},{"$f":"SUMIFS(Sheet1!S71_PYearAmount,Sheet1!S71_SubMunicipalVoteNo,$AC:$AC,Sheet1!S71_ItemType,$AD:$AD)","v":0},{"$f":"SUMIFS(Sheet1!S71_OriginalBudAmnt,Sheet1!S71_SubMunicipalVoteNo,$AC:$AC,Sheet1!S71_ItemType,$AD:$AD)","v":0},{"$f":"SUMIFS(Sheet1!S71_AdjustmentBudAmnt,Sheet1!S71_SubMunicipalVoteNo,$AC:$AC,Sheet1!S71_ItemType,$AD:$AD)","v":0},{"$f":"SUMIFS(Sheet1!S71_AdjustmentBudAmnt,Sheet1!S71_SubMunicipalVoteNo,$AC:$AC,Sheet1!S71_ItemType,$AD:$AD)","v":0},{"$f":"SUMIFS(Sheet1!S71_ASBudgetAmount,Sheet1!S71_SubMunicipalVoteNo,$AC:$AC,Sheet1!S71_ItemType,$AD:$AD)","v":0},{"$f":"SUMIFS(Sheet1!S71_OY1BudgetAmount,Sheet1!S71_SubMunicipalVoteNo,$AC:$AC,Sheet1!S71_ItemType,$AD:$AD)","v":0},{"$f":"SUMIFS(Sheet1!S71_OY2BudgetAmount,Sheet1!S71_SubMunicipalVoteNo,$AC:$AC,Sheet1!S71_ItemType,$AD:$AD)","v":0},null,null,null,null,null,null,null,null,null,null,null,null,null,null,null,null,null,67,"IE"]
["6.8 - [Name of sub-vote]",null,{"$f":"SUMIFS(Sheet1!S71_PPPYearAmount,Sheet1!S71_SubMunicipalVoteNo,$AC:$AC,Sheet1!S71_ItemType,$AD:$AD)","v":0},{"$f":"SUMIFS(Sheet1!S71_PPYearAmount,Sheet1!S71_SubMunicipalVoteNo,$AC:$AC,Sheet1!S71_ItemType,$AD:$AD)","v":0},{"$f":"SUMIFS(Sheet1!S71_PYearAmount,Sheet1!S71_SubMunicipalVoteNo,$AC:$AC,Sheet1!S71_ItemType,$AD:$AD)","v":0},{"$f":"SUMIFS(Sheet1!S71_OriginalBudAmnt,Sheet1!S71_SubMunicipalVoteNo,$AC:$AC,Sheet1!S71_ItemType,$AD:$AD)","v":0},{"$f":"SUMIFS(Sheet1!S71_AdjustmentBudAmnt,Sheet1!S71_SubMunicipalVoteNo,$AC:$AC,Sheet1!S71_ItemType,$AD:$AD)","v":0},{"$f":"SUMIFS(Sheet1!S71_AdjustmentBudAmnt,Sheet1!S71_SubMunicipalVoteNo,$AC:$AC,Sheet1!S71_ItemType,$AD:$AD)","v":0},{"$f":"SUMIFS(Sheet1!S71_ASBudgetAmount,Sheet1!S71_SubMunicipalVoteNo,$AC:$AC,Sheet1!S71_ItemType,$AD:$AD)","v":0},{"$f":"SUMIFS(Sheet1!S71_OY1BudgetAmount,Sheet1!S71_SubMunicipalVoteNo,$AC:$AC,Sheet1!S71_ItemType,$AD:$AD)","v":0},{"$f":"SUMIFS(Sheet1!S71_OY2BudgetAmount,Sheet1!S71_SubMunicipalVoteNo,$AC:$AC,Sheet1!S71_ItemType,$AD:$AD)","v":0},null,null,null,null,null,null,null,null,null,null,null,null,null,null,null,null,null,68,"IE"]
["6.9 - [Name of sub-vote]",null,{"$f":"SUMIFS(Sheet1!S71_PPPYearAmount,Sheet1!S71_SubMunicipalVoteNo,$AC:$AC,Sheet1!S71_ItemType,$AD:$AD)","v":0},{"$f":"SUMIFS(Sheet1!S71_PPYearAmount,Sheet1!S71_SubMunicipalVoteNo,$AC:$AC,Sheet1!S71_ItemType,$AD:$AD)","v":0},{"$f":"SUMIFS(Sheet1!S71_PYearAmount,Sheet1!S71_SubMunicipalVoteNo,$AC:$AC,Sheet1!S71_ItemType,$AD:$AD)","v":0},{"$f":"SUMIFS(Sheet1!S71_OriginalBudAmnt,Sheet1!S71_SubMunicipalVoteNo,$AC:$AC,Sheet1!S71_ItemType,$AD:$AD)","v":0},{"$f":"SUMIFS(Sheet1!S71_AdjustmentBudAmnt,Sheet1!S71_SubMunicipalVoteNo,$AC:$AC,Sheet1!S71_ItemType,$AD:$AD)","v":0},{"$f":"SUMIFS(Sheet1!S71_AdjustmentBudAmnt,Sheet1!S71_SubMunicipalVoteNo,$AC:$AC,Sheet1!S71_ItemType,$AD:$AD)","v":0},{"$f":"SUMIFS(Sheet1!S71_ASBudgetAmount,Sheet1!S71_SubMunicipalVoteNo,$AC:$AC,Sheet1!S71_ItemType,$AD:$AD)","v":0},{"$f":"SUMIFS(Sheet1!S71_OY1BudgetAmount,Sheet1!S71_SubMunicipalVoteNo,$AC:$AC,Sheet1!S71_ItemType,$AD:$AD)","v":0},{"$f":"SUMIFS(Sheet1!S71_OY2BudgetAmount,Sheet1!S71_SubMunicipalVoteNo,$AC:$AC,Sheet1!S71_ItemType,$AD:$AD)","v":0},null,null,null,null,null,null,null,null,null,null,null,null,null,null,null,null,null,69,"IE"]
["6.10 - [Name of sub-vote]",null,{"$f":"SUMIFS(Sheet1!S71_PPPYearAmount,Sheet1!S71_SubMunicipalVoteNo,$AC:$AC,Sheet1!S71_ItemType,$AD:$AD)","v":0},{"$f":"SUMIFS(Sheet1!S71_PPYearAmount,Sheet1!S71_SubMunicipalVoteNo,$AC:$AC,Sheet1!S71_ItemType,$AD:$AD)","v":0},{"$f":"SUMIFS(Sheet1!S71_PYearAmount,Sheet1!S71_SubMunicipalVoteNo,$AC:$AC,Sheet1!S71_ItemType,$AD:$AD)","v":0},{"$f":"SUMIFS(Sheet1!S71_OriginalBudAmnt,Sheet1!S71_SubMunicipalVoteNo,$AC:$AC,Sheet1!S71_ItemType,$AD:$AD)","v":0},{"$f":"SUMIFS(Sheet1!S71_AdjustmentBudAmnt,Sheet1!S71_SubMunicipalVoteNo,$AC:$AC,Sheet1!S71_ItemType,$AD:$AD)","v":0},{"$f":"SUMIFS(Sheet1!S71_AdjustmentBudAmnt,Sheet1!S71_SubMunicipalVoteNo,$AC:$AC,Sheet1!S71_ItemType,$AD:$AD)","v":0},{"$f":"SUMIFS(Sheet1!S71_ASBudgetAmount,Sheet1!S71_SubMunicipalVoteNo,$AC:$AC,Sheet1!S71_ItemType,$AD:$AD)","v":0},{"$f":"SUMIFS(Sheet1!S71_OY1BudgetAmount,Sheet1!S71_SubMunicipalVoteNo,$AC:$AC,Sheet1!S71_ItemType,$AD:$AD)","v":0},{"$f":"SUMIFS(Sheet1!S71_OY2BudgetAmount,Sheet1!S71_SubMunicipalVoteNo,$AC:$AC,Sheet1!S71_ItemType,$AD:$AD)","v":0},null,null,null,null,null,null,null,null,null,null,null,null,null,null,null,null,null,610,"IE"]
[{"$f":"A71","v":"Vote 7 - Road Transport"},null,{"$f":"SUM(C240:C249)","v":109027744},115876478,128627976,78419640,93002847,93002847,92547711,93952837,97341971]
[{"$f":"A72","v":"7.1 - Taxi Ranks"},null,{"$f":"SUMIFS(Sheet1!S71_PPPYearAmount,Sheet1!S71_SubMunicipalVoteNo,$AC:$AC,Sheet1!S71_ItemType,$AD:$AD)","v":0},{"$f":"SUMIFS(Sheet1!S71_PPYearAmount,Sheet1!S71_SubMunicipalVoteNo,$AC:$AC,Sheet1!S71_ItemType,$AD:$AD)","v":0},{"$f":"SUMIFS(Sheet1!S71_PYearAmount,Sheet1!S71_SubMunicipalVoteNo,$AC:$AC,Sheet1!S71_ItemType,$AD:$AD)","v":0},{"$f":"SUMIFS(Sheet1!S71_OriginalBudAmnt,Sheet1!S71_SubMunicipalVoteNo,$AC:$AC,Sheet1!S71_ItemType,$AD:$AD)","v":0},{"$f":"SUMIFS(Sheet1!S71_AdjustmentBudAmnt,Sheet1!S71_SubMunicipalVoteNo,$AC:$AC,Sheet1!S71_ItemType,$AD:$AD)","v":0},{"$f":"SUMIFS(Sheet1!S71_AdjustmentBudAmnt,Sheet1!S71_SubMunicipalVoteNo,$AC:$AC,Sheet1!S71_ItemType,$AD:$AD)","v":0},{"$f":"SUMIFS(Sheet1!S71_ASBudgetAmount,Sheet1!S71_SubMunicipalVoteNo,$AC:$AC,Sheet1!S71_ItemType,$AD:$AD)","v":0},{"$f":"SUMIFS(Sheet1!S71_OY1BudgetAmount,Sheet1!S71_SubMunicipalVoteNo,$AC:$AC,Sheet1!S71_ItemType,$AD:$AD)","v":0},{"$f":"SUMIFS(Sheet1!S71_OY2BudgetAmount,Sheet1!S71_SubMunicipalVoteNo,$AC:$AC,Sheet1!S71_ItemType,$AD:$AD)","v":0},null,null,null,null,null,null,null,null,null,null,null,null,null,null,null,null,null,71,"IE"]
["7.2 - Road and Traffic Regulation",null,{"$f":"SUMIFS(Sheet1!S71_PPPYearAmount,Sheet1!S71_SubMunicipalVoteNo,$AC:$AC,Sheet1!S71_ItemType,$AD:$AD)","v":19261056},{"$f":"SUMIFS(Sheet1!S71_PPYearAmount,Sheet1!S71_SubMunicipalVoteNo,$AC:$AC,Sheet1!S71_ItemType,$AD:$AD)","v":20614385},{"$f":"SUMIFS(Sheet1!S71_PYearAmount,Sheet1!S71_SubMunicipalVoteNo,$AC:$AC,Sheet1!S71_ItemType,$AD:$AD)","v":20665873},{"$f":"SUMIFS(Sheet1!S71_OriginalBudAmnt,Sheet1!S71_SubMunicipalVoteNo,$AC:$AC,Sheet1!S71_ItemType,$AD:$AD)","v":21081623},{"$f":"SUMIFS(Sheet1!S71_AdjustmentBudAmnt,Sheet1!S71_SubMunicipalVoteNo,$AC:$AC,Sheet1!S71_ItemType,$AD:$AD)","v":20549880},{"$f":"SUMIFS(Sheet1!S71_AdjustmentBudAmnt,Sheet1!S71_SubMunicipalVoteNo,$AC:$AC,Sheet1!S71_ItemType,$AD:$AD)","v":20549880},{"$f":"SUMIFS(Sheet1!S71_ASBudgetAmount,Sheet1!S71_SubMunicipalVoteNo,$AC:$AC,Sheet1!S71_ItemType,$AD:$AD)","v":23095182},{"$f":"SUMIFS(Sheet1!S71_OY1BudgetAmount,Sheet1!S71_SubMunicipalVoteNo,$AC:$AC,Sheet1!S71_ItemType,$AD:$AD)","v":23807478},{"$f":"SUMIFS(Sheet1!S71_OY2BudgetAmount,Sheet1!S71_SubMunicipalVoteNo,$AC:$AC,Sheet1!S71_ItemType,$AD:$AD)","v":24960941},null,null,null,null,null,null,null,null,null,null,null,null,null,null,null,null,null,72,"IE"]
["7.3 - Public Transport",null,{"$f":"SUMIFS(Sheet1!S71_PPPYearAmount,Sheet1!S71_SubMunicipalVoteNo,$AC:$AC,Sheet1!S71_ItemType,$AD:$AD)","v":817408},{"$f":"SUMIFS(Sheet1!S71_PPYearAmount,Sheet1!S71_SubMunicipalVoteNo,$AC:$AC,Sheet1!S71_ItemType,$AD:$AD)","v":896485},{"$f":"SUMIFS(Sheet1!S71_PYearAmount,Sheet1!S71_SubMunicipalVoteNo,$AC:$AC,Sheet1!S71_ItemType,$AD:$AD)","v":911127},{"$f":"SUMIFS(Sheet1!S71_OriginalBudAmnt,Sheet1!S71_SubMunicipalVoteNo,$AC:$AC,Sheet1!S71_ItemType,$AD:$AD)","v":1736492},{"$f":"SUMIFS(Sheet1!S71_AdjustmentBudAmnt,Sheet1!S71_SubMunicipalVoteNo,$AC:$AC,Sheet1!S71_ItemType,$AD:$AD)","v":886362},{"$f":"SUMIFS(Sheet1!S71_AdjustmentBudAmnt,Sheet1!S71_SubMunicipalVoteNo,$AC:$AC,Sheet1!S71_ItemType,$AD:$AD)","v":886362},{"$f":"SUMIFS(Sheet1!S71_ASBudgetAmount,Sheet1!S71_SubMunicipalVoteNo,$AC:$AC,Sheet1!S71_ItemType,$AD:$AD)","v":753770},{"$f":"SUMIFS(Sheet1!S71_OY1BudgetAmount,Sheet1!S71_SubMunicipalVoteNo,$AC:$AC,Sheet1!S71_ItemType,$AD:$AD)","v":741024},{"$f":"SUMIFS(Sheet1!S71_OY2BudgetAmount,Sheet1!S71_SubMunicipalVoteNo,$AC:$AC,Sheet1!S71_ItemType,$AD:$AD)","v":774468},null,null,null,null,null,null,null,null,null,null,null,null,null,null,null,null,null,73,"IE"]
["7.4 - Roads",null,{"$f":"SUMIFS(Sheet1!S71_PPPYearAmount,Sheet1!S71_SubMunicipalVoteNo,$AC:$AC,Sheet1!S71_ItemType,$AD:$AD)","v":88949280},{"$f":"SUMIFS(Sheet1!S71_PPYearAmount,Sheet1!S71_SubMunicipalVoteNo,$AC:$AC,Sheet1!S71_ItemType,$AD:$AD)","v":94365608},{"$f":"SUMIFS(Sheet1!S71_PYearAmount,Sheet1!S71_SubMunicipalVoteNo,$AC:$AC,Sheet1!S71_ItemType,$AD:$AD)","v":107050976},{"$f":"SUMIFS(Sheet1!S71_OriginalBudAmnt,Sheet1!S71_SubMunicipalVoteNo,$AC:$AC,Sheet1!S71_ItemType,$AD:$AD)","v":55601525},{"$f":"SUMIFS(Sheet1!S71_AdjustmentBudAmnt,Sheet1!S71_SubMunicipalVoteNo,$AC:$AC,Sheet1!S71_ItemType,$AD:$AD)","v":71566605},{"$f":"SUMIFS(Sheet1!S71_AdjustmentBudAmnt,Sheet1!S71_SubMunicipalVoteNo,$AC:$AC,Sheet1!S71_ItemType,$AD:$AD)","v":71566605},{"$f":"SUMIFS(Sheet1!S71_ASBudgetAmount,Sheet1!S71_SubMunicipalVoteNo,$AC:$AC,Sheet1!S71_ItemType,$AD:$AD)","v":68698759},{"$f":"SUMIFS(Sheet1!S71_OY1BudgetAmount,Sheet1!S71_SubMunicipalVoteNo,$AC:$AC,Sheet1!S71_ItemType,$AD:$AD)","v":69404335},{"$f":"SUMIFS(Sheet1!S71_OY2BudgetAmount,Sheet1!S71_SubMunicipalVoteNo,$AC:$AC,Sheet1!S71_ItemType,$AD:$AD)","v":71606562},null,null,null,null,null,null,null,null,null,null,null,null,null,null,null,null,null,74,"IE"]
["7.5 - [Name of sub-vote]",null,{"$f":"SUMIFS(Sheet1!S71_PPPYearAmount,Sheet1!S71_SubMunicipalVoteNo,$AC:$AC,Sheet1!S71_ItemType,$AD:$AD)","v":0},{"$f":"SUMIFS(Sheet1!S71_PPYearAmount,Sheet1!S71_SubMunicipalVoteNo,$AC:$AC,Sheet1!S71_ItemType,$AD:$AD)","v":0},{"$f":"SUMIFS(Sheet1!S71_PYearAmount,Sheet1!S71_SubMunicipalVoteNo,$AC:$AC,Sheet1!S71_ItemType,$AD:$AD)","v":0},{"$f":"SUMIFS(Sheet1!S71_OriginalBudAmnt,Sheet1!S71_SubMunicipalVoteNo,$AC:$AC,Sheet1!S71_ItemType,$AD:$AD)","v":0},{"$f":"SUMIFS(Sheet1!S71_AdjustmentBudAmnt,Sheet1!S71_SubMunicipalVoteNo,$AC:$AC,Sheet1!S71_ItemType,$AD:$AD)","v":0},{"$f":"SUMIFS(Sheet1!S71_AdjustmentBudAmnt,Sheet1!S71_SubMunicipalVoteNo,$AC:$AC,Sheet1!S71_ItemType,$AD:$AD)","v":0},{"$f":"SUMIFS(Sheet1!S71_ASBudgetAmount,Sheet1!S71_SubMunicipalVoteNo,$AC:$AC,Sheet1!S71_ItemType,$AD:$AD)","v":0},{"$f":"SUMIFS(Sheet1!S71_OY1BudgetAmount,Sheet1!S71_SubMunicipalVoteNo,$AC:$AC,Sheet1!S71_ItemType,$AD:$AD)","v":0},{"$f":"SUMIFS(Sheet1!S71_OY2BudgetAmount,Sheet1!S71_SubMunicipalVoteNo,$AC:$AC,Sheet1!S71_ItemType,$AD:$AD)","v":0},null,null,null,null,null,null,null,null,null,null,null,null,null,null,null,null,null,75,"IE"]
["7.6 - [Name of sub-vote]",null,{"$f":"SUMIFS(Sheet1!S71_PPPYearAmount,Sheet1!S71_SubMunicipalVoteNo,$AC:$AC,Sheet1!S71_ItemType,$AD:$AD)","v":0},{"$f":"SUMIFS(Sheet1!S71_PPYearAmount,Sheet1!S71_SubMunicipalVoteNo,$AC:$AC,Sheet1!S71_ItemType,$AD:$AD)","v":0},{"$f":"SUMIFS(Sheet1!S71_PYearAmount,Sheet1!S71_SubMunicipalVoteNo,$AC:$AC,Sheet1!S71_ItemType,$AD:$AD)","v":0},{"$f":"SUMIFS(Sheet1!S71_OriginalBudAmnt,Sheet1!S71_SubMunicipalVoteNo,$AC:$AC,Sheet1!S71_ItemType,$AD:$AD)","v":0},{"$f":"SUMIFS(Sheet1!S71_AdjustmentBudAmnt,Sheet1!S71_SubMunicipalVoteNo,$AC:$AC,Sheet1!S71_ItemType,$AD:$AD)","v":0},{"$f":"SUMIFS(Sheet1!S71_AdjustmentBudAmnt,Sheet1!S71_SubMunicipalVoteNo,$AC:$AC,Sheet1!S71_ItemType,$AD:$AD)","v":0},{"$f":"SUMIFS(Sheet1!S71_ASBudgetAmount,Sheet1!S71_SubMunicipalVoteNo,$AC:$AC,Sheet1!S71_ItemType,$AD:$AD)","v":0},{"$f":"SUMIFS(Sheet1!S71_OY1BudgetAmount,Sheet1!S71_SubMunicipalVoteNo,$AC:$AC,Sheet1!S71_ItemType,$AD:$AD)","v":0},{"$f":"SUMIFS(Sheet1!S71_OY2BudgetAmount,Sheet1!S71_SubMunicipalVoteNo,$AC:$AC,Sheet1!S71_ItemType,$AD:$AD)","v":0},null,null,null,null,null,null,null,null,null,null,null,null,null,null,null,null,null,76,"IE"]
["7.7 - [Name of sub-vote]",null,{"$f":"SUMIFS(Sheet1!S71_PPPYearAmount,Sheet1!S71_SubMunicipalVoteNo,$AC:$AC,Sheet1!S71_ItemType,$AD:$AD)","v":0},{"$f":"SUMIFS(Sheet1!S71_PPYearAmount,Sheet1!S71_SubMunicipalVoteNo,$AC:$AC,Sheet1!S71_ItemType,$AD:$AD)","v":0},{"$f":"SUMIFS(Sheet1!S71_PYearAmount,Sheet1!S71_SubMunicipalVoteNo,$AC:$AC,Sheet1!S71_ItemType,$AD:$AD)","v":0},{"$f":"SUMIFS(Sheet1!S71_OriginalBudAmnt,Sheet1!S71_SubMunicipalVoteNo,$AC:$AC,Sheet1!S71_ItemType,$AD:$AD)","v":0},{"$f":"SUMIFS(Sheet1!S71_AdjustmentBudAmnt,Sheet1!S71_SubMunicipalVoteNo,$AC:$AC,Sheet1!S71_ItemType,$AD:$AD)","v":0},{"$f":"SUMIFS(Sheet1!S71_AdjustmentBudAmnt,Sheet1!S71_SubMunicipalVoteNo,$AC:$AC,Sheet1!S71_ItemType,$AD:$AD)","v":0},{"$f":"SUMIFS(Sheet1!S71_ASBudgetAmount,Sheet1!S71_SubMunicipalVoteNo,$AC:$AC,Sheet1!S71_ItemType,$AD:$AD)","v":0},{"$f":"SUMIFS(Sheet1!S71_OY1BudgetAmount,Sheet1!S71_SubMunicipalVoteNo,$AC:$AC,Sheet1!S71_ItemType,$AD:$AD)","v":0},{"$f":"SUMIFS(Sheet1!S71_OY2BudgetAmount,Sheet1!S71_SubMunicipalVoteNo,$AC:$AC,Sheet1!S71_ItemType,$AD:$AD)","v":0},null,null,null,null,null,null,null,null,null,null,null,null,null,null,null,null,null,77,"IE"]
["7.8 - [Name of sub-vote]",null,{"$f":"SUMIFS(Sheet1!S71_PPPYearAmount,Sheet1!S71_SubMunicipalVoteNo,$AC:$AC,Sheet1!S71_ItemType,$AD:$AD)","v":0},{"$f":"SUMIFS(Sheet1!S71_PPYearAmount,Sheet1!S71_SubMunicipalVoteNo,$AC:$AC,Sheet1!S71_ItemType,$AD:$AD)","v":0},{"$f":"SUMIFS(Sheet1!S71_PYearAmount,Sheet1!S71_SubMunicipalVoteNo,$AC:$AC,Sheet1!S71_ItemType,$AD:$AD)","v":0},{"$f":"SUMIFS(Sheet1!S71_OriginalBudAmnt,Sheet1!S71_SubMunicipalVoteNo,$AC:$AC,Sheet1!S71_ItemType,$AD:$AD)","v":0},{"$f":"SUMIFS(Sheet1!S71_AdjustmentBudAmnt,Sheet1!S71_SubMunicipalVoteNo,$AC:$AC,Sheet1!S71_ItemType,$AD:$AD)","v":0},{"$f":"SUMIFS(Sheet1!S71_AdjustmentBudAmnt,Sheet1!S71_SubMunicipalVoteNo,$AC:$AC,Sheet1!S71_ItemType,$AD:$AD)","v":0},{"$f":"SUMIFS(Sheet1!S71_ASBudgetAmount,Sheet1!S71_SubMunicipalVoteNo,$AC:$AC,Sheet1!S71_ItemType,$AD:$AD)","v":0},{"$f":"SUMIFS(Sheet1!S71_OY1BudgetAmount,Sheet1!S71_SubMunicipalVoteNo,$AC:$AC,Sheet1!S71_ItemType,$AD:$AD)","v":0},{"$f":"SUMIFS(Sheet1!S71_OY2BudgetAmount,Sheet1!S71_SubMunicipalVoteNo,$AC:$AC,Sheet1!S71_ItemType,$AD:$AD)","v":0},null,null,null,null,null,null,null,null,null,null,null,null,null,null,null,null,null,78,"IE"]
["7.9 - [Name of sub-vote]",null,{"$f":"SUMIFS(Sheet1!S71_PPPYearAmount,Sheet1!S71_SubMunicipalVoteNo,$AC:$AC,Sheet1!S71_ItemType,$AD:$AD)","v":0},{"$f":"SUMIFS(Sheet1!S71_PPYearAmount,Sheet1!S71_SubMunicipalVoteNo,$AC:$AC,Sheet1!S71_ItemType,$AD:$AD)","v":0},{"$f":"SUMIFS(Sheet1!S71_PYearAmount,Sheet1!S71_SubMunicipalVoteNo,$AC:$AC,Sheet1!S71_ItemType,$AD:$AD)","v":0},{"$f":"SUMIFS(Sheet1!S71_OriginalBudAmnt,Sheet1!S71_SubMunicipalVoteNo,$AC:$AC,Sheet1!S71_ItemType,$AD:$AD)","v":0},{"$f":"SUMIFS(Sheet1!S71_AdjustmentBudAmnt,Sheet1!S71_SubMunicipalVoteNo,$AC:$AC,Sheet1!S71_ItemType,$AD:$AD)","v":0},{"$f":"SUMIFS(Sheet1!S71_AdjustmentBudAmnt,Sheet1!S71_SubMunicipalVoteNo,$AC:$AC,Sheet1!S71_ItemType,$AD:$AD)","v":0},{"$f":"SUMIFS(Sheet1!S71_ASBudgetAmount,Sheet1!S71_SubMunicipalVoteNo,$AC:$AC,Sheet1!S71_ItemType,$AD:$AD)","v":0},{"$f":"SUMIFS(Sheet1!S71_OY1BudgetAmount,Sheet1!S71_SubMunicipalVoteNo,$AC:$AC,Sheet1!S71_ItemType,$AD:$AD)","v":0},{"$f":"SUMIFS(Sheet1!S71_OY2BudgetAmount,Sheet1!S71_SubMunicipalVoteNo,$AC:$AC,Sheet1!S71_ItemType,$AD:$AD)","v":0},null,null,null,null,null,null,null,null,null,null,null,null,null,null,null,null,null,79,"IE"]
["7.10 - [Name of sub-vote]",null,{"$f":"SUMIFS(Sheet1!S71_PPPYearAmount,Sheet1!S71_SubMunicipalVoteNo,$AC:$AC,Sheet1!S71_ItemType,$AD:$AD)","v":0},{"$f":"SUMIFS(Sheet1!S71_PPYearAmount,Sheet1!S71_SubMunicipalVoteNo,$AC:$AC,Sheet1!S71_ItemType,$AD:$AD)","v":0},{"$f":"SUMIFS(Sheet1!S71_PYearAmount,Sheet1!S71_SubMunicipalVoteNo,$AC:$AC,Sheet1!S71_ItemType,$AD:$AD)","v":0},{"$f":"SUMIFS(Sheet1!S71_OriginalBudAmnt,Sheet1!S71_SubMunicipalVoteNo,$AC:$AC,Sheet1!S71_ItemType,$AD:$AD)","v":0},{"$f":"SUMIFS(Sheet1!S71_AdjustmentBudAmnt,Sheet1!S71_SubMunicipalVoteNo,$AC:$AC,Sheet1!S71_ItemType,$AD:$AD)","v":0},{"$f":"SUMIFS(Sheet1!S71_AdjustmentBudAmnt,Sheet1!S71_SubMunicipalVoteNo,$AC:$AC,Sheet1!S71_ItemType,$AD:$AD)","v":0},{"$f":"SUMIFS(Sheet1!S71_ASBudgetAmount,Sheet1!S71_SubMunicipalVoteNo,$AC:$AC,Sheet1!S71_ItemType,$AD:$AD)","v":0},{"$f":"SUMIFS(Sheet1!S71_OY1BudgetAmount,Sheet1!S71_SubMunicipalVoteNo,$AC:$AC,Sheet1!S71_ItemType,$AD:$AD)","v":0},{"$f":"SUMIFS(Sheet1!S71_OY2BudgetAmount,Sheet1!S71_SubMunicipalVoteNo,$AC:$AC,Sheet1!S71_ItemType,$AD:$AD)","v":0},null,null,null,null,null,null,null,null,null,null,null,null,null,null,null,null,null,710,"IE"]
[{"$f":"A82","v":"Vote 8 - Public Safety"},null,{"$f":"SUM(C251:C260)","v":170050},201975,130570,450000,100000,100000,300000,350000,400000]
[{"$f":"A83","v":"8.1 - Cleansing"},null,{"$f":"SUMIFS(Sheet1!S71_PPPYearAmount,Sheet1!S71_SubMunicipalVoteNo,$AC:$AC,Sheet1!S71_ItemType,$AD:$AD)","v":0},{"$f":"SUMIFS(Sheet1!S71_PPYearAmount,Sheet1!S71_SubMunicipalVoteNo,$AC:$AC,Sheet1!S71_ItemType,$AD:$AD)","v":0},{"$f":"SUMIFS(Sheet1!S71_PYearAmount,Sheet1!S71_SubMunicipalVoteNo,$AC:$AC,Sheet1!S71_ItemType,$AD:$AD)","v":0},{"$f":"SUMIFS(Sheet1!S71_OriginalBudAmnt,Sheet1!S71_SubMunicipalVoteNo,$AC:$AC,Sheet1!S71_ItemType,$AD:$AD)","v":0},{"$f":"SUMIFS(Sheet1!S71_AdjustmentBudAmnt,Sheet1!S71_SubMunicipalVoteNo,$AC:$AC,Sheet1!S71_ItemType,$AD:$AD)","v":0},{"$f":"SUMIFS(Sheet1!S71_AdjustmentBudAmnt,Sheet1!S71_SubMunicipalVoteNo,$AC:$AC,Sheet1!S71_ItemType,$AD:$AD)","v":0},{"$f":"SUMIFS(Sheet1!S71_ASBudgetAmount,Sheet1!S71_SubMunicipalVoteNo,$AC:$AC,Sheet1!S71_ItemType,$AD:$AD)","v":0},{"$f":"SUMIFS(Sheet1!S71_OY1BudgetAmount,Sheet1!S71_SubMunicipalVoteNo,$AC:$AC,Sheet1!S71_ItemType,$AD:$AD)","v":0},{"$f":"SUMIFS(Sheet1!S71_OY2BudgetAmount,Sheet1!S71_SubMunicipalVoteNo,$AC:$AC,Sheet1!S71_ItemType,$AD:$AD)","v":0},null,null,null,null,null,null,null,null,null,null,null,null,null,null,null,null,null,81,"IE"]
["8.2 - Fencing and Fences",null,{"$f":"SUMIFS(Sheet1!S71_PPPYearAmount,Sheet1!S71_SubMunicipalVoteNo,$AC:$AC,Sheet1!S71_ItemType,$AD:$AD)","v":170050},{"$f":"SUMIFS(Sheet1!S71_PPYearAmount,Sheet1!S71_SubMunicipalVoteNo,$AC:$AC,Sheet1!S71_ItemType,$AD:$AD)","v":201975},{"$f":"SUMIFS(Sheet1!S71_PYearAmount,Sheet1!S71_SubMunicipalVoteNo,$AC:$AC,Sheet1!S71_ItemType,$AD:$AD)","v":130570},{"$f":"SUMIFS(Sheet1!S71_OriginalBudAmnt,Sheet1!S71_SubMunicipalVoteNo,$AC:$AC,Sheet1!S71_ItemType,$AD:$AD)","v":450000},{"$f":"SUMIFS(Sheet1!S71_AdjustmentBudAmnt,Sheet1!S71_SubMunicipalVoteNo,$AC:$AC,Sheet1!S71_ItemType,$AD:$AD)","v":100000},{"$f":"SUMIFS(Sheet1!S71_AdjustmentBudAmnt,Sheet1!S71_SubMunicipalVoteNo,$AC:$AC,Sheet1!S71_ItemType,$AD:$AD)","v":100000},{"$f":"SUMIFS(Sheet1!S71_ASBudgetAmount,Sheet1!S71_SubMunicipalVoteNo,$AC:$AC,Sheet1!S71_ItemType,$AD:$AD)","v":300000},{"$f":"SUMIFS(Sheet1!S71_OY1BudgetAmount,Sheet1!S71_SubMunicipalVoteNo,$AC:$AC,Sheet1!S71_ItemType,$AD:$AD)","v":350000},{"$f":"SUMIFS(Sheet1!S71_OY2BudgetAmount,Sheet1!S71_SubMunicipalVoteNo,$AC:$AC,Sheet1!S71_ItemType,$AD:$AD)","v":400000},null,null,null,null,null,null,null,null,null,null,null,null,null,null,null,null,null,82,"IE"]
["8.3 - [Name of sub-vote]",null,{"$f":"SUMIFS(Sheet1!S71_PPPYearAmount,Sheet1!S71_SubMunicipalVoteNo,$AC:$AC,Sheet1!S71_ItemType,$AD:$AD)","v":0},{"$f":"SUMIFS(Sheet1!S71_PPYearAmount,Sheet1!S71_SubMunicipalVoteNo,$AC:$AC,Sheet1!S71_ItemType,$AD:$AD)","v":0},{"$f":"SUMIFS(Sheet1!S71_PYearAmount,Sheet1!S71_SubMunicipalVoteNo,$AC:$AC,Sheet1!S71_ItemType,$AD:$AD)","v":0},{"$f":"SUMIFS(Sheet1!S71_OriginalBudAmnt,Sheet1!S71_SubMunicipalVoteNo,$AC:$AC,Sheet1!S71_ItemType,$AD:$AD)","v":0},{"$f":"SUMIFS(Sheet1!S71_AdjustmentBudAmnt,Sheet1!S71_SubMunicipalVoteNo,$AC:$AC,Sheet1!S71_ItemType,$AD:$AD)","v":0},{"$f":"SUMIFS(Sheet1!S71_AdjustmentBudAmnt,Sheet1!S71_SubMunicipalVoteNo,$AC:$AC,Sheet1!S71_ItemType,$AD:$AD)","v":0},{"$f":"SUMIFS(Sheet1!S71_ASBudgetAmount,Sheet1!S71_SubMunicipalVoteNo,$AC:$AC,Sheet1!S71_ItemType,$AD:$AD)","v":0},{"$f":"SUMIFS(Sheet1!S71_OY1BudgetAmount,Sheet1!S71_SubMunicipalVoteNo,$AC:$AC,Sheet1!S71_ItemType,$AD:$AD)","v":0},{"$f":"SUMIFS(Sheet1!S71_OY2BudgetAmount,Sheet1!S71_SubMunicipalVoteNo,$AC:$AC,Sheet1!S71_ItemType,$AD:$AD)","v":0},null,null,null,null,null,null,null,null,null,null,null,null,null,null,null,null,null,83,"IE"]
["8.4 - [Name of sub-vote]",null,{"$f":"SUMIFS(Sheet1!S71_PPPYearAmount,Sheet1!S71_SubMunicipalVoteNo,$AC:$AC,Sheet1!S71_ItemType,$AD:$AD)","v":0},{"$f":"SUMIFS(Sheet1!S71_PPYearAmount,Sheet1!S71_SubMunicipalVoteNo,$AC:$AC,Sheet1!S71_ItemType,$AD:$AD)","v":0},{"$f":"SUMIFS(Sheet1!S71_PYearAmount,Sheet1!S71_SubMunicipalVoteNo,$AC:$AC,Sheet1!S71_ItemType,$AD:$AD)","v":0},{"$f":"SUMIFS(Sheet1!S71_OriginalBudAmnt,Sheet1!S71_SubMunicipalVoteNo,$AC:$AC,Sheet1!S71_ItemType,$AD:$AD)","v":0},{"$f":"SUMIFS(Sheet1!S71_AdjustmentBudAmnt,Sheet1!S71_SubMunicipalVoteNo,$AC:$AC,Sheet1!S71_ItemType,$AD:$AD)","v":0},{"$f":"SUMIFS(Sheet1!S71_AdjustmentBudAmnt,Sheet1!S71_SubMunicipalVoteNo,$AC:$AC,Sheet1!S71_ItemType,$AD:$AD)","v":0},{"$f":"SUMIFS(Sheet1!S71_ASBudgetAmount,Sheet1!S71_SubMunicipalVoteNo,$AC:$AC,Sheet1!S71_ItemType,$AD:$AD)","v":0},{"$f":"SUMIFS(Sheet1!S71_OY1BudgetAmount,Sheet1!S71_SubMunicipalVoteNo,$AC:$AC,Sheet1!S71_ItemType,$AD:$AD)","v":0},{"$f":"SUMIFS(Sheet1!S71_OY2BudgetAmount,Sheet1!S71_SubMunicipalVoteNo,$AC:$AC,Sheet1!S71_ItemType,$AD:$AD)","v":0},null,null,null,null,null,null,null,null,null,null,null,null,null,null,null,null,null,84,"IE"]
["8.5 - [Name of sub-vote]",null,{"$f":"SUMIFS(Sheet1!S71_PPPYearAmount,Sheet1!S71_SubMunicipalVoteNo,$AC:$AC,Sheet1!S71_ItemType,$AD:$AD)","v":0},{"$f":"SUMIFS(Sheet1!S71_PPYearAmount,Sheet1!S71_SubMunicipalVoteNo,$AC:$AC,Sheet1!S71_ItemType,$AD:$AD)","v":0},{"$f":"SUMIFS(Sheet1!S71_PYearAmount,Sheet1!S71_SubMunicipalVoteNo,$AC:$AC,Sheet1!S71_ItemType,$AD:$AD)","v":0},{"$f":"SUMIFS(Sheet1!S71_OriginalBudAmnt,Sheet1!S71_SubMunicipalVoteNo,$AC:$AC,Sheet1!S71_ItemType,$AD:$AD)","v":0},{"$f":"SUMIFS(Sheet1!S71_AdjustmentBudAmnt,Sheet1!S71_SubMunicipalVoteNo,$AC:$AC,Sheet1!S71_ItemType,$AD:$AD)","v":0},{"$f":"SUMIFS(Sheet1!S71_AdjustmentBudAmnt,Sheet1!S71_SubMunicipalVoteNo,$AC:$AC,Sheet1!S71_ItemType,$AD:$AD)","v":0},{"$f":"SUMIFS(Sheet1!S71_ASBudgetAmount,Sheet1!S71_SubMunicipalVoteNo,$AC:$AC,Sheet1!S71_ItemType,$AD:$AD)","v":0},{"$f":"SUMIFS(Sheet1!S71_OY1BudgetAmount,Sheet1!S71_SubMunicipalVoteNo,$AC:$AC,Sheet1!S71_ItemType,$AD:$AD)","v":0},{"$f":"SUMIFS(Sheet1!S71_OY2BudgetAmount,Sheet1!S71_SubMunicipalVoteNo,$AC:$AC,Sheet1!S71_ItemType,$AD:$AD)","v":0},null,null,null,null,null,null,null,null,null,null,null,null,null,null,null,null,null,85,"IE"]
["8.6 - [Name of sub-vote]",null,{"$f":"SUMIFS(Sheet1!S71_PPPYearAmount,Sheet1!S71_SubMunicipalVoteNo,$AC:$AC,Sheet1!S71_ItemType,$AD:$AD)","v":0},{"$f":"SUMIFS(Sheet1!S71_PPYearAmount,Sheet1!S71_SubMunicipalVoteNo,$AC:$AC,Sheet1!S71_ItemType,$AD:$AD)","v":0},{"$f":"SUMIFS(Sheet1!S71_PYearAmount,Sheet1!S71_SubMunicipalVoteNo,$AC:$AC,Sheet1!S71_ItemType,$AD:$AD)","v":0},{"$f":"SUMIFS(Sheet1!S71_OriginalBudAmnt,Sheet1!S71_SubMunicipalVoteNo,$AC:$AC,Sheet1!S71_ItemType,$AD:$AD)","v":0},{"$f":"SUMIFS(Sheet1!S71_AdjustmentBudAmnt,Sheet1!S71_SubMunicipalVoteNo,$AC:$AC,Sheet1!S71_ItemType,$AD:$AD)","v":0},{"$f":"SUMIFS(Sheet1!S71_AdjustmentBudAmnt,Sheet1!S71_SubMunicipalVoteNo,$AC:$AC,Sheet1!S71_ItemType,$AD:$AD)","v":0},{"$f":"SUMIFS(Sheet1!S71_ASBudgetAmount,Sheet1!S71_SubMunicipalVoteNo,$AC:$AC,Sheet1!S71_ItemType,$AD:$AD)","v":0},{"$f":"SUMIFS(Sheet1!S71_OY1BudgetAmount,Sheet1!S71_SubMunicipalVoteNo,$AC:$AC,Sheet1!S71_ItemType,$AD:$AD)","v":0},{"$f":"SUMIFS(Sheet1!S71_OY2BudgetAmount,Sheet1!S71_SubMunicipalVoteNo,$AC:$AC,Sheet1!S71_ItemType,$AD:$AD)","v":0},null,null,null,null,null,null,null,null,null,null,null,null,null,null,null,null,null,86,"IE"]
["8.7 - [Name of sub-vote]",null,{"$f":"SUMIFS(Sheet1!S71_PPPYearAmount,Sheet1!S71_SubMunicipalVoteNo,$AC:$AC,Sheet1!S71_ItemType,$AD:$AD)","v":0},{"$f":"SUMIFS(Sheet1!S71_PPYearAmount,Sheet1!S71_SubMunicipalVoteNo,$AC:$AC,Sheet1!S71_ItemType,$AD:$AD)","v":0},{"$f":"SUMIFS(Sheet1!S71_PYearAmount,Sheet1!S71_SubMunicipalVoteNo,$AC:$AC,Sheet1!S71_ItemType,$AD:$AD)","v":0},{"$f":"SUMIFS(Sheet1!S71_OriginalBudAmnt,Sheet1!S71_SubMunicipalVoteNo,$AC:$AC,Sheet1!S71_ItemType,$AD:$AD)","v":0},{"$f":"SUMIFS(Sheet1!S71_AdjustmentBudAmnt,Sheet1!S71_SubMunicipalVoteNo,$AC:$AC,Sheet1!S71_ItemType,$AD:$AD)","v":0},{"$f":"SUMIFS(Sheet1!S71_AdjustmentBudAmnt,Sheet1!S71_SubMunicipalVoteNo,$AC:$AC,Sheet1!S71_ItemType,$AD:$AD)","v":0},{"$f":"SUMIFS(Sheet1!S71_ASBudgetAmount,Sheet1!S71_SubMunicipalVoteNo,$AC:$AC,Sheet1!S71_ItemType,$AD:$AD)","v":0},{"$f":"SUMIFS(Sheet1!S71_OY1BudgetAmount,Sheet1!S71_SubMunicipalVoteNo,$AC:$AC,Sheet1!S71_ItemType,$AD:$AD)","v":0},{"$f":"SUMIFS(Sheet1!S71_OY2BudgetAmount,Sheet1!S71_SubMunicipalVoteNo,$AC:$AC,Sheet1!S71_ItemType,$AD:$AD)","v":0},null,null,null,null,null,null,null,null,null,null,null,null,null,null,null,null,null,87,"IE"]
["8.8 - [Name of sub-vote]",null,{"$f":"SUMIFS(Sheet1!S71_PPPYearAmount,Sheet1!S71_SubMunicipalVoteNo,$AC:$AC,Sheet1!S71_ItemType,$AD:$AD)","v":0},{"$f":"SUMIFS(Sheet1!S71_PPYearAmount,Sheet1!S71_SubMunicipalVoteNo,$AC:$AC,Sheet1!S71_ItemType,$AD:$AD)","v":0},{"$f":"SUMIFS(Sheet1!S71_PYearAmount,Sheet1!S71_SubMunicipalVoteNo,$AC:$AC,Sheet1!S71_ItemType,$AD:$AD)","v":0},{"$f":"SUMIFS(Sheet1!S71_OriginalBudAmnt,Sheet1!S71_SubMunicipalVoteNo,$AC:$AC,Sheet1!S71_ItemType,$AD:$AD)","v":0},{"$f":"SUMIFS(Sheet1!S71_AdjustmentBudAmnt,Sheet1!S71_SubMunicipalVoteNo,$AC:$AC,Sheet1!S71_ItemType,$AD:$AD)","v":0},{"$f":"SUMIFS(Sheet1!S71_AdjustmentBudAmnt,Sheet1!S71_SubMunicipalVoteNo,$AC:$AC,Sheet1!S71_ItemType,$AD:$AD)","v":0},{"$f":"SUMIFS(Sheet1!S71_ASBudgetAmount,Sheet1!S71_SubMunicipalVoteNo,$AC:$AC,Sheet1!S71_ItemType,$AD:$AD)","v":0},{"$f":"SUMIFS(Sheet1!S71_OY1BudgetAmount,Sheet1!S71_SubMunicipalVoteNo,$AC:$AC,Sheet1!S71_ItemType,$AD:$AD)","v":0},{"$f":"SUMIFS(Sheet1!S71_OY2BudgetAmount,Sheet1!S71_SubMunicipalVoteNo,$AC:$AC,Sheet1!S71_ItemType,$AD:$AD)","v":0},null,null,null,null,null,null,null,null,null,null,null,null,null,null,null,null,null,88,"IE"]
["8.9 - [Name of sub-vote]",null,{"$f":"SUMIFS(Sheet1!S71_PPPYearAmount,Sheet1!S71_SubMunicipalVoteNo,$AC:$AC,Sheet1!S71_ItemType,$AD:$AD)","v":0},{"$f":"SUMIFS(Sheet1!S71_PPYearAmount,Sheet1!S71_SubMunicipalVoteNo,$AC:$AC,Sheet1!S71_ItemType,$AD:$AD)","v":0},{"$f":"SUMIFS(Sheet1!S71_PYearAmount,Sheet1!S71_SubMunicipalVoteNo,$AC:$AC,Sheet1!S71_ItemType,$AD:$AD)","v":0},{"$f":"SUMIFS(Sheet1!S71_OriginalBudAmnt,Sheet1!S71_SubMunicipalVoteNo,$AC:$AC,Sheet1!S71_ItemType,$AD:$AD)","v":0},{"$f":"SUMIFS(Sheet1!S71_AdjustmentBudAmnt,Sheet1!S71_SubMunicipalVoteNo,$AC:$AC,Sheet1!S71_ItemType,$AD:$AD)","v":0},{"$f":"SUMIFS(Sheet1!S71_AdjustmentBudAmnt,Sheet1!S71_SubMunicipalVoteNo,$AC:$AC,Sheet1!S71_ItemType,$AD:$AD)","v":0},{"$f":"SUMIFS(Sheet1!S71_ASBudgetAmount,Sheet1!S71_SubMunicipalVoteNo,$AC:$AC,Sheet1!S71_ItemType,$AD:$AD)","v":0},{"$f":"SUMIFS(Sheet1!S71_OY1BudgetAmount,Sheet1!S71_SubMunicipalVoteNo,$AC:$AC,Sheet1!S71_ItemType,$AD:$AD)","v":0},{"$f":"SUMIFS(Sheet1!S71_OY2BudgetAmount,Sheet1!S71_SubMunicipalVoteNo,$AC:$AC,Sheet1!S71_ItemType,$AD:$AD)","v":0},null,null,null,null,null,null,null,null,null,null,null,null,null,null,null,null,null,89,"IE"]
["8.10 - [Name of sub-vote]",null,{"$f":"SUMIFS(Sheet1!S71_PPPYearAmount,Sheet1!S71_SubMunicipalVoteNo,$AC:$AC,Sheet1!S71_ItemType,$AD:$AD)","v":0},{"$f":"SUMIFS(Sheet1!S71_PPYearAmount,Sheet1!S71_SubMunicipalVoteNo,$AC:$AC,Sheet1!S71_ItemType,$AD:$AD)","v":0},{"$f":"SUMIFS(Sheet1!S71_PYearAmount,Sheet1!S71_SubMunicipalVoteNo,$AC:$AC,Sheet1!S71_ItemType,$AD:$AD)","v":0},{"$f":"SUMIFS(Sheet1!S71_OriginalBudAmnt,Sheet1!S71_SubMunicipalVoteNo,$AC:$AC,Sheet1!S71_ItemType,$AD:$AD)","v":0},{"$f":"SUMIFS(Sheet1!S71_AdjustmentBudAmnt,Sheet1!S71_SubMunicipalVoteNo,$AC:$AC,Sheet1!S71_ItemType,$AD:$AD)","v":0},{"$f":"SUMIFS(Sheet1!S71_AdjustmentBudAmnt,Sheet1!S71_SubMunicipalVoteNo,$AC:$AC,Sheet1!S71_ItemType,$AD:$AD)","v":0},{"$f":"SUMIFS(Sheet1!S71_ASBudgetAmount,Sheet1!S71_SubMunicipalVoteNo,$AC:$AC,Sheet1!S71_ItemType,$AD:$AD)","v":0},{"$f":"SUMIFS(Sheet1!S71_OY1BudgetAmount,Sheet1!S71_SubMunicipalVoteNo,$AC:$AC,Sheet1!S71_ItemType,$AD:$AD)","v":0},{"$f":"SUMIFS(Sheet1!S71_OY2BudgetAmount,Sheet1!S71_SubMunicipalVoteNo,$AC:$AC,Sheet1!S71_ItemType,$AD:$AD)","v":0},null,null,null,null,null,null,null,null,null,null,null,null,null,null,null,null,null,810,"IE"]
["Vote 9 - Waste Management",null,{"$f":"SUM(C262:C271)","v":8162056},11947444,16853904,18855516,14258583,14258583,20296952,21056667,22060601]
["9.1 - [Name of sub-vote]",null,{"$f":"SUMIFS(Sheet1!S71_PPPYearAmount,Sheet1!S71_SubMunicipalVoteNo,$AC:$AC,Sheet1!S71_ItemType,$AD:$AD)","v":0},{"$f":"SUMIFS(Sheet1!S71_PPYearAmount,Sheet1!S71_SubMunicipalVoteNo,$AC:$AC,Sheet1!S71_ItemType,$AD:$AD)","v":0},{"$f":"SUMIFS(Sheet1!S71_PYearAmount,Sheet1!S71_SubMunicipalVoteNo,$AC:$AC,Sheet1!S71_ItemType,$AD:$AD)","v":0},{"$f":"SUMIFS(Sheet1!S71_OriginalBudAmnt,Sheet1!S71_SubMunicipalVoteNo,$AC:$AC,Sheet1!S71_ItemType,$AD:$AD)","v":0},{"$f":"SUMIFS(Sheet1!S71_AdjustmentBudAmnt,Sheet1!S71_SubMunicipalVoteNo,$AC:$AC,Sheet1!S71_ItemType,$AD:$AD)","v":0},{"$f":"SUMIFS(Sheet1!S71_AdjustmentBudAmnt,Sheet1!S71_SubMunicipalVoteNo,$AC:$AC,Sheet1!S71_ItemType,$AD:$AD)","v":0},{"$f":"SUMIFS(Sheet1!S71_ASBudgetAmount,Sheet1!S71_SubMunicipalVoteNo,$AC:$AC,Sheet1!S71_ItemType,$AD:$AD)","v":0},{"$f":"SUMIFS(Sheet1!S71_OY1BudgetAmount,Sheet1!S71_SubMunicipalVoteNo,$AC:$AC,Sheet1!S71_ItemType,$AD:$AD)","v":0},{"$f":"SUMIFS(Sheet1!S71_OY2BudgetAmount,Sheet1!S71_SubMunicipalVoteNo,$AC:$AC,Sheet1!S71_ItemType,$AD:$AD)","v":0},null,null,null,null,null,null,null,null,null,null,null,null,null,null,null,null,null,91,"IE"]
["9.2 - Solid Waste Disposal (Landfill Sites)",null,{"$f":"SUMIFS(Sheet1!S71_PPPYearAmount,Sheet1!S71_SubMunicipalVoteNo,$AC:$AC,Sheet1!S71_ItemType,$AD:$AD)","v":1681037},{"$f":"SUMIFS(Sheet1!S71_PPYearAmount,Sheet1!S71_SubMunicipalVoteNo,$AC:$AC,Sheet1!S71_ItemType,$AD:$AD)","v":3909429},{"$f":"SUMIFS(Sheet1!S71_PYearAmount,Sheet1!S71_SubMunicipalVoteNo,$AC:$AC,Sheet1!S71_ItemType,$AD:$AD)","v":6670136},{"$f":"SUMIFS(Sheet1!S71_OriginalBudAmnt,Sheet1!S71_SubMunicipalVoteNo,$AC:$AC,Sheet1!S71_ItemType,$AD:$AD)","v":0},{"$f":"SUMIFS(Sheet1!S71_AdjustmentBudAmnt,Sheet1!S71_SubMunicipalVoteNo,$AC:$AC,Sheet1!S71_ItemType,$AD:$AD)","v":0},{"$f":"SUMIFS(Sheet1!S71_AdjustmentBudAmnt,Sheet1!S71_SubMunicipalVoteNo,$AC:$AC,Sheet1!S71_ItemType,$AD:$AD)","v":0},{"$f":"SUMIFS(Sheet1!S71_ASBudgetAmount,Sheet1!S71_SubMunicipalVoteNo,$AC:$AC,Sheet1!S71_ItemType,$AD:$AD)","v":0},{"$f":"SUMIFS(Sheet1!S71_OY1BudgetAmount,Sheet1!S71_SubMunicipalVoteNo,$AC:$AC,Sheet1!S71_ItemType,$AD:$AD)","v":0},{"$f":"SUMIFS(Sheet1!S71_OY2BudgetAmount,Sheet1!S71_SubMunicipalVoteNo,$AC:$AC,Sheet1!S71_ItemType,$AD:$AD)","v":0},null,null,null,null,null,null,null,null,null,null,null,null,null,null,null,null,null,92,"IE"]
["9.3 - Solid Waste Removal",null,{"$f":"SUMIFS(Sheet1!S71_PPPYearAmount,Sheet1!S71_SubMunicipalVoteNo,$AC:$AC,Sheet1!S71_ItemType,$AD:$AD)","v":6481019},{"$f":"SUMIFS(Sheet1!S71_PPYearAmount,Sheet1!S71_SubMunicipalVoteNo,$AC:$AC,Sheet1!S71_ItemType,$AD:$AD)","v":8038015},{"$f":"SUMIFS(Sheet1!S71_PYearAmount,Sheet1!S71_SubMunicipalVoteNo,$AC:$AC,Sheet1!S71_ItemType,$AD:$AD)","v":10183768},{"$f":"SUMIFS(Sheet1!S71_OriginalBudAmnt,Sheet1!S71_SubMunicipalVoteNo,$AC:$AC,Sheet1!S71_ItemType,$AD:$AD)","v":18855516},{"$f":"SUMIFS(Sheet1!S71_AdjustmentBudAmnt,Sheet1!S71_SubMunicipalVoteNo,$AC:$AC,Sheet1!S71_ItemType,$AD:$AD)","v":14258583},{"$f":"SUMIFS(Sheet1!S71_AdjustmentBudAmnt,Sheet1!S71_SubMunicipalVoteNo,$AC:$AC,Sheet1!S71_ItemType,$AD:$AD)","v":14258583},{"$f":"SUMIFS(Sheet1!S71_ASBudgetAmount,Sheet1!S71_SubMunicipalVoteNo,$AC:$AC,Sheet1!S71_ItemType,$AD:$AD)","v":20296952},{"$f":"SUMIFS(Sheet1!S71_OY1BudgetAmount,Sheet1!S71_SubMunicipalVoteNo,$AC:$AC,Sheet1!S71_ItemType,$AD:$AD)","v":21056667},{"$f":"SUMIFS(Sheet1!S71_OY2BudgetAmount,Sheet1!S71_SubMunicipalVoteNo,$AC:$AC,Sheet1!S71_ItemType,$AD:$AD)","v":22060601},null,null,null,null,null,null,null,null,null,null,null,null,null,null,null,null,null,93,"IE"]
["9.4 - [Name of sub-vote]",null,{"$f":"SUMIFS(Sheet1!S71_PPPYearAmount,Sheet1!S71_SubMunicipalVoteNo,$AC:$AC,Sheet1!S71_ItemType,$AD:$AD)","v":0},{"$f":"SUMIFS(Sheet1!S71_PPYearAmount,Sheet1!S71_SubMunicipalVoteNo,$AC:$AC,Sheet1!S71_ItemType,$AD:$AD)","v":0},{"$f":"SUMIFS(Sheet1!S71_PYearAmount,Sheet1!S71_SubMunicipalVoteNo,$AC:$AC,Sheet1!S71_ItemType,$AD:$AD)","v":0},{"$f":"SUMIFS(Sheet1!S71_OriginalBudAmnt,Sheet1!S71_SubMunicipalVoteNo,$AC:$AC,Sheet1!S71_ItemType,$AD:$AD)","v":0},{"$f":"SUMIFS(Sheet1!S71_AdjustmentBudAmnt,Sheet1!S71_SubMunicipalVoteNo,$AC:$AC,Sheet1!S71_ItemType,$AD:$AD)","v":0},{"$f":"SUMIFS(Sheet1!S71_AdjustmentBudAmnt,Sheet1!S71_SubMunicipalVoteNo,$AC:$AC,Sheet1!S71_ItemType,$AD:$AD)","v":0},{"$f":"SUMIFS(Sheet1!S71_ASBudgetAmount,Sheet1!S71_SubMunicipalVoteNo,$AC:$AC,Sheet1!S71_ItemType,$AD:$AD)","v":0},{"$f":"SUMIFS(Sheet1!S71_OY1BudgetAmount,Sheet1!S71_SubMunicipalVoteNo,$AC:$AC,Sheet1!S71_ItemType,$AD:$AD)","v":0},{"$f":"SUMIFS(Sheet1!S71_OY2BudgetAmount,Sheet1!S71_SubMunicipalVoteNo,$AC:$AC,Sheet1!S71_ItemType,$AD:$AD)","v":0},null,null,null,null,null,null,null,null,null,null,null,null,null,null,null,null,null,94,"IE"]
["9.5 - [Name of sub-vote]",null,{"$f":"SUMIFS(Sheet1!S71_PPPYearAmount,Sheet1!S71_SubMunicipalVoteNo,$AC:$AC,Sheet1!S71_ItemType,$AD:$AD)","v":0},{"$f":"SUMIFS(Sheet1!S71_PPYearAmount,Sheet1!S71_SubMunicipalVoteNo,$AC:$AC,Sheet1!S71_ItemType,$AD:$AD)","v":0},{"$f":"SUMIFS(Sheet1!S71_PYearAmount,Sheet1!S71_SubMunicipalVoteNo,$AC:$AC,Sheet1!S71_ItemType,$AD:$AD)","v":0},{"$f":"SUMIFS(Sheet1!S71_OriginalBudAmnt,Sheet1!S71_SubMunicipalVoteNo,$AC:$AC,Sheet1!S71_ItemType,$AD:$AD)","v":0},{"$f":"SUMIFS(Sheet1!S71_AdjustmentBudAmnt,Sheet1!S71_SubMunicipalVoteNo,$AC:$AC,Sheet1!S71_ItemType,$AD:$AD)","v":0},{"$f":"SUMIFS(Sheet1!S71_AdjustmentBudAmnt,Sheet1!S71_SubMunicipalVoteNo,$AC:$AC,Sheet1!S71_ItemType,$AD:$AD)","v":0},{"$f":"SUMIFS(Sheet1!S71_ASBudgetAmount,Sheet1!S71_SubMunicipalVoteNo,$AC:$AC,Sheet1!S71_ItemType,$AD:$AD)","v":0},{"$f":"SUMIFS(Sheet1!S71_OY1BudgetAmount,Sheet1!S71_SubMunicipalVoteNo,$AC:$AC,Sheet1!S71_ItemType,$AD:$AD)","v":0},{"$f":"SUMIFS(Sheet1!S71_OY2BudgetAmount,Sheet1!S71_SubMunicipalVoteNo,$AC:$AC,Sheet1!S71_ItemType,$AD:$AD)","v":0},null,null,null,null,null,null,null,null,null,null,null,null,null,null,null,null,null,95,"IE"]
["9.6 - [Name of sub-vote]",null,{"$f":"SUMIFS(Sheet1!S71_PPPYearAmount,Sheet1!S71_SubMunicipalVoteNo,$AC:$AC,Sheet1!S71_ItemType,$AD:$AD)","v":0},{"$f":"SUMIFS(Sheet1!S71_PPYearAmount,Sheet1!S71_SubMunicipalVoteNo,$AC:$AC,Sheet1!S71_ItemType,$AD:$AD)","v":0},{"$f":"SUMIFS(Sheet1!S71_PYearAmount,Sheet1!S71_SubMunicipalVoteNo,$AC:$AC,Sheet1!S71_ItemType,$AD:$AD)","v":0},{"$f":"SUMIFS(Sheet1!S71_OriginalBudAmnt,Sheet1!S71_SubMunicipalVoteNo,$AC:$AC,Sheet1!S71_ItemType,$AD:$AD)","v":0},{"$f":"SUMIFS(Sheet1!S71_AdjustmentBudAmnt,Sheet1!S71_SubMunicipalVoteNo,$AC:$AC,Sheet1!S71_ItemType,$AD:$AD)","v":0},{"$f":"SUMIFS(Sheet1!S71_AdjustmentBudAmnt,Sheet1!S71_SubMunicipalVoteNo,$AC:$AC,Sheet1!S71_ItemType,$AD:$AD)","v":0},{"$f":"SUMIFS(Sheet1!S71_ASBudgetAmount,Sheet1!S71_SubMunicipalVoteNo,$AC:$AC,Sheet1!S71_ItemType,$AD:$AD)","v":0},{"$f":"SUMIFS(Sheet1!S71_OY1BudgetAmount,Sheet1!S71_SubMunicipalVoteNo,$AC:$AC,Sheet1!S71_ItemType,$AD:$AD)","v":0},{"$f":"SUMIFS(Sheet1!S71_OY2BudgetAmount,Sheet1!S71_SubMunicipalVoteNo,$AC:$AC,Sheet1!S71_ItemType,$AD:$AD)","v":0},null,null,null,null,null,null,null,null,null,null,null,null,null,null,null,null,null,96,"IE"]
["9.7 - [Name of sub-vote]",null,{"$f":"SUMIFS(Sheet1!S71_PPPYearAmount,Sheet1!S71_SubMunicipalVoteNo,$AC:$AC,Sheet1!S71_ItemType,$AD:$AD)","v":0},{"$f":"SUMIFS(Sheet1!S71_PPYearAmount,Sheet1!S71_SubMunicipalVoteNo,$AC:$AC,Sheet1!S71_ItemType,$AD:$AD)","v":0},{"$f":"SUMIFS(Sheet1!S71_PYearAmount,Sheet1!S71_SubMunicipalVoteNo,$AC:$AC,Sheet1!S71_ItemType,$AD:$AD)","v":0},{"$f":"SUMIFS(Sheet1!S71_OriginalBudAmnt,Sheet1!S71_SubMunicipalVoteNo,$AC:$AC,Sheet1!S71_ItemType,$AD:$AD)","v":0},{"$f":"SUMIFS(Sheet1!S71_AdjustmentBudAmnt,Sheet1!S71_SubMunicipalVoteNo,$AC:$AC,Sheet1!S71_ItemType,$AD:$AD)","v":0},{"$f":"SUMIFS(Sheet1!S71_AdjustmentBudAmnt,Sheet1!S71_SubMunicipalVoteNo,$AC:$AC,Sheet1!S71_ItemType,$AD:$AD)","v":0},{"$f":"SUMIFS(Sheet1!S71_ASBudgetAmount,Sheet1!S71_SubMunicipalVoteNo,$AC:$AC,Sheet1!S71_ItemType,$AD:$AD)","v":0},{"$f":"SUMIFS(Sheet1!S71_OY1BudgetAmount,Sheet1!S71_SubMunicipalVoteNo,$AC:$AC,Sheet1!S71_ItemType,$AD:$AD)","v":0},{"$f":"SUMIFS(Sheet1!S71_OY2BudgetAmount,Sheet1!S71_SubMunicipalVoteNo,$AC:$AC,Sheet1!S71_ItemType,$AD:$AD)","v":0},null,null,null,null,null,null,null,null,null,null,null,null,null,null,null,null,null,97,"IE"]
["9.8 - [Name of sub-vote]",null,{"$f":"SUMIFS(Sheet1!S71_PPPYearAmount,Sheet1!S71_SubMunicipalVoteNo,$AC:$AC,Sheet1!S71_ItemType,$AD:$AD)","v":0},{"$f":"SUMIFS(Sheet1!S71_PPYearAmount,Sheet1!S71_SubMunicipalVoteNo,$AC:$AC,Sheet1!S71_ItemType,$AD:$AD)","v":0},{"$f":"SUMIFS(Sheet1!S71_PYearAmount,Sheet1!S71_SubMunicipalVoteNo,$AC:$AC,Sheet1!S71_ItemType,$AD:$AD)","v":0},{"$f":"SUMIFS(Sheet1!S71_OriginalBudAmnt,Sheet1!S71_SubMunicipalVoteNo,$AC:$AC,Sheet1!S71_ItemType,$AD:$AD)","v":0},{"$f":"SUMIFS(Sheet1!S71_AdjustmentBudAmnt,Sheet1!S71_SubMunicipalVoteNo,$AC:$AC,Sheet1!S71_ItemType,$AD:$AD)","v":0},{"$f":"SUMIFS(Sheet1!S71_AdjustmentBudAmnt,Sheet1!S71_SubMunicipalVoteNo,$AC:$AC,Sheet1!S71_ItemType,$AD:$AD)","v":0},{"$f":"SUMIFS(Sheet1!S71_ASBudgetAmount,Sheet1!S71_SubMunicipalVoteNo,$AC:$AC,Sheet1!S71_ItemType,$AD:$AD)","v":0},{"$f":"SUMIFS(Sheet1!S71_OY1BudgetAmount,Sheet1!S71_SubMunicipalVoteNo,$AC:$AC,Sheet1!S71_ItemType,$AD:$AD)","v":0},{"$f":"SUMIFS(Sheet1!S71_OY2BudgetAmount,Sheet1!S71_SubMunicipalVoteNo,$AC:$AC,Sheet1!S71_ItemType,$AD:$AD)","v":0},null,null,null,null,null,null,null,null,null,null,null,null,null,null,null,null,null,98,"IE"]
["9.9 - [Name of sub-vote]",null,{"$f":"SUMIFS(Sheet1!S71_PPPYearAmount,Sheet1!S71_SubMunicipalVoteNo,$AC:$AC,Sheet1!S71_ItemType,$AD:$AD)","v":0},{"$f":"SUMIFS(Sheet1!S71_PPYearAmount,Sheet1!S71_SubMunicipalVoteNo,$AC:$AC,Sheet1!S71_ItemType,$AD:$AD)","v":0},{"$f":"SUMIFS(Sheet1!S71_PYearAmount,Sheet1!S71_SubMunicipalVoteNo,$AC:$AC,Sheet1!S71_ItemType,$AD:$AD)","v":0},{"$f":"SUMIFS(Sheet1!S71_OriginalBudAmnt,Sheet1!S71_SubMunicipalVoteNo,$AC:$AC,Sheet1!S71_ItemType,$AD:$AD)","v":0},{"$f":"SUMIFS(Sheet1!S71_AdjustmentBudAmnt,Sheet1!S71_SubMunicipalVoteNo,$AC:$AC,Sheet1!S71_ItemType,$AD:$AD)","v":0},{"$f":"SUMIFS(Sheet1!S71_AdjustmentBudAmnt,Sheet1!S71_SubMunicipalVoteNo,$AC:$AC,Sheet1!S71_ItemType,$AD:$AD)","v":0},{"$f":"SUMIFS(Sheet1!S71_ASBudgetAmount,Sheet1!S71_SubMunicipalVoteNo,$AC:$AC,Sheet1!S71_ItemType,$AD:$AD)","v":0},{"$f":"SUMIFS(Sheet1!S71_OY1BudgetAmount,Sheet1!S71_SubMunicipalVoteNo,$AC:$AC,Sheet1!S71_ItemType,$AD:$AD)","v":0},{"$f":"SUMIFS(Sheet1!S71_OY2BudgetAmount,Sheet1!S71_SubMunicipalVoteNo,$AC:$AC,Sheet1!S71_ItemType,$AD:$AD)","v":0},null,null,null,null,null,null,null,null,null,null,null,null,null,null,null,null,null,99,"IE"]
["9.10 - [Name of sub-vote]",null,{"$f":"SUMIFS(Sheet1!S71_PPPYearAmount,Sheet1!S71_SubMunicipalVoteNo,$AC:$AC,Sheet1!S71_ItemType,$AD:$AD)","v":0},{"$f":"SUMIFS(Sheet1!S71_PPYearAmount,Sheet1!S71_SubMunicipalVoteNo,$AC:$AC,Sheet1!S71_ItemType,$AD:$AD)","v":0},{"$f":"SUMIFS(Sheet1!S71_PYearAmount,Sheet1!S71_SubMunicipalVoteNo,$AC:$AC,Sheet1!S71_ItemType,$AD:$AD)","v":0},{"$f":"SUMIFS(Sheet1!S71_OriginalBudAmnt,Sheet1!S71_SubMunicipalVoteNo,$AC:$AC,Sheet1!S71_ItemType,$AD:$AD)","v":0},{"$f":"SUMIFS(Sheet1!S71_AdjustmentBudAmnt,Sheet1!S71_SubMunicipalVoteNo,$AC:$AC,Sheet1!S71_ItemType,$AD:$AD)","v":0},{"$f":"SUMIFS(Sheet1!S71_AdjustmentBudAmnt,Sheet1!S71_SubMunicipalVoteNo,$AC:$AC,Sheet1!S71_ItemType,$AD:$AD)","v":0},{"$f":"SUMIFS(Sheet1!S71_ASBudgetAmount,Sheet1!S71_SubMunicipalVoteNo,$AC:$AC,Sheet1!S71_ItemType,$AD:$AD)","v":0},{"$f":"SUMIFS(Sheet1!S71_OY1BudgetAmount,Sheet1!S71_SubMunicipalVoteNo,$AC:$AC,Sheet1!S71_ItemType,$AD:$AD)","v":0},{"$f":"SUMIFS(Sheet1!S71_OY2BudgetAmount,Sheet1!S71_SubMunicipalVoteNo,$AC:$AC,Sheet1!S71_ItemType,$AD:$AD)","v":0},null,null,null,null,null,null,null,null,null,null,null,null,null,null,null,null,null,910,"IE"]
[{"$f":"A104","v":"Vote 10 - Sports & Recreation"},null,{"$f":"SUM(C273:C282)","v":9704426},10448872,10454637,7927234,9456562,9456562,8323738,8585467,8945044]
[{"$f":"A105","v":"10.1 - [Name of sub-vote]"},null,{"$f":"SUMIFS(Sheet1!S71_PPPYearAmount,Sheet1!S71_SubMunicipalVoteNo,$AC:$AC,Sheet1!S71_ItemType,$AD:$AD)","v":288950},{"$f":"SUMIFS(Sheet1!S71_PPYearAmount,Sheet1!S71_SubMunicipalVoteNo,$AC:$AC,Sheet1!S71_ItemType,$AD:$AD)","v":0},{"$f":"SUMIFS(Sheet1!S71_PYearAmount,Sheet1!S71_SubMunicipalVoteNo,$AC:$AC,Sheet1!S71_ItemType,$AD:$AD)","v":0},{"$f":"SUMIFS(Sheet1!S71_OriginalBudAmnt,Sheet1!S71_SubMunicipalVoteNo,$AC:$AC,Sheet1!S71_ItemType,$AD:$AD)","v":870000},{"$f":"SUMIFS(Sheet1!S71_AdjustmentBudAmnt,Sheet1!S71_SubMunicipalVoteNo,$AC:$AC,Sheet1!S71_ItemType,$AD:$AD)","v":886000},{"$f":"SUMIFS(Sheet1!S71_AdjustmentBudAmnt,Sheet1!S71_SubMunicipalVoteNo,$AC:$AC,Sheet1!S71_ItemType,$AD:$AD)","v":886000},{"$f":"SUMIFS(Sheet1!S71_ASBudgetAmount,Sheet1!S71_SubMunicipalVoteNo,$AC:$AC,Sheet1!S71_ItemType,$AD:$AD)","v":1300000},{"$f":"SUMIFS(Sheet1!S71_OY1BudgetAmount,Sheet1!S71_SubMunicipalVoteNo,$AC:$AC,Sheet1!S71_ItemType,$AD:$AD)","v":1342000},{"$f":"SUMIFS(Sheet1!S71_OY2BudgetAmount,Sheet1!S71_SubMunicipalVoteNo,$AC:$AC,Sheet1!S71_ItemType,$AD:$AD)","v":1383000},null,null,null,null,null,null,null,null,null,null,null,null,null,null,null,null,null,101,"IE"]
[{"$f":"A106","v":"10.2 - Sports Grounds and Stadiums"},null,{"$f":"SUMIFS(Sheet1!S71_PPPYearAmount,Sheet1!S71_SubMunicipalVoteNo,$AC:$AC,Sheet1!S71_ItemType,$AD:$AD)","v":9415476},{"$f":"SUMIFS(Sheet1!S71_PPYearAmount,Sheet1!S71_SubMunicipalVoteNo,$AC:$AC,Sheet1!S71_ItemType,$AD:$AD)","v":10448872},{"$f":"SUMIFS(Sheet1!S71_PYearAmount,Sheet1!S71_SubMunicipalVoteNo,$AC:$AC,Sheet1!S71_ItemType,$AD:$AD)","v":10454637},{"$f":"SUMIFS(Sheet1!S71_OriginalBudAmnt,Sheet1!S71_SubMunicipalVoteNo,$AC:$AC,Sheet1!S71_ItemType,$AD:$AD)","v":7057234},{"$f":"SUMIFS(Sheet1!S71_AdjustmentBudAmnt,Sheet1!S71_SubMunicipalVoteNo,$AC:$AC,Sheet1!S71_ItemType,$AD:$AD)","v":8570562},{"$f":"SUMIFS(Sheet1!S71_AdjustmentBudAmnt,Sheet1!S71_SubMunicipalVoteNo,$AC:$AC,Sheet1!S71_ItemType,$AD:$AD)","v":8570562},{"$f":"SUMIFS(Sheet1!S71_ASBudgetAmount,Sheet1!S71_SubMunicipalVoteNo,$AC:$AC,Sheet1!S71_ItemType,$AD:$AD)","v":7023738},{"$f":"SUMIFS(Sheet1!S71_OY1BudgetAmount,Sheet1!S71_SubMunicipalVoteNo,$AC:$AC,Sheet1!S71_ItemType,$AD:$AD)","v":7243467},{"$f":"SUMIFS(Sheet1!S71_OY2BudgetAmount,Sheet1!S71_SubMunicipalVoteNo,$AC:$AC,Sheet1!S71_ItemType,$AD:$AD)","v":7562044},null,null,null,null,null,null,null,null,null,null,null,null,null,null,null,null,null,102,"IE"]
["10.3 - [Name of sub-vote]",null,{"$f":"SUMIFS(Sheet1!S71_PPPYearAmount,Sheet1!S71_SubMunicipalVoteNo,$AC:$AC,Sheet1!S71_ItemType,$AD:$AD)","v":0},{"$f":"SUMIFS(Sheet1!S71_PPYearAmount,Sheet1!S71_SubMunicipalVoteNo,$AC:$AC,Sheet1!S71_ItemType,$AD:$AD)","v":0},{"$f":"SUMIFS(Sheet1!S71_PYearAmount,Sheet1!S71_SubMunicipalVoteNo,$AC:$AC,Sheet1!S71_ItemType,$AD:$AD)","v":0},{"$f":"SUMIFS(Sheet1!S71_OriginalBudAmnt,Sheet1!S71_SubMunicipalVoteNo,$AC:$AC,Sheet1!S71_ItemType,$AD:$AD)","v":0},{"$f":"SUMIFS(Sheet1!S71_AdjustmentBudAmnt,Sheet1!S71_SubMunicipalVoteNo,$AC:$AC,Sheet1!S71_ItemType,$AD:$AD)","v":0},{"$f":"SUMIFS(Sheet1!S71_AdjustmentBudAmnt,Sheet1!S71_SubMunicipalVoteNo,$AC:$AC,Sheet1!S71_ItemType,$AD:$AD)","v":0},{"$f":"SUMIFS(Sheet1!S71_ASBudgetAmount,Sheet1!S71_SubMunicipalVoteNo,$AC:$AC,Sheet1!S71_ItemType,$AD:$AD)","v":0},{"$f":"SUMIFS(Sheet1!S71_OY1BudgetAmount,Sheet1!S71_SubMunicipalVoteNo,$AC:$AC,Sheet1!S71_ItemType,$AD:$AD)","v":0},{"$f":"SUMIFS(Sheet1!S71_OY2BudgetAmount,Sheet1!S71_SubMunicipalVoteNo,$AC:$AC,Sheet1!S71_ItemType,$AD:$AD)","v":0},null,null,null,null,null,null,null,null,null,null,null,null,null,null,null,null,null,103,"IE"]
["10.4 - [Name of sub-vote]",null,{"$f":"SUMIFS(Sheet1!S71_PPPYearAmount,Sheet1!S71_SubMunicipalVoteNo,$AC:$AC,Sheet1!S71_ItemType,$AD:$AD)","v":0},{"$f":"SUMIFS(Sheet1!S71_PPYearAmount,Sheet1!S71_SubMunicipalVoteNo,$AC:$AC,Sheet1!S71_ItemType,$AD:$AD)","v":0},{"$f":"SUMIFS(Sheet1!S71_PYearAmount,Sheet1!S71_SubMunicipalVoteNo,$AC:$AC,Sheet1!S71_ItemType,$AD:$AD)","v":0},{"$f":"SUMIFS(Sheet1!S71_OriginalBudAmnt,Sheet1!S71_SubMunicipalVoteNo,$AC:$AC,Sheet1!S71_ItemType,$AD:$AD)","v":0},{"$f":"SUMIFS(Sheet1!S71_AdjustmentBudAmnt,Sheet1!S71_SubMunicipalVoteNo,$AC:$AC,Sheet1!S71_ItemType,$AD:$AD)","v":0},{"$f":"SUMIFS(Sheet1!S71_AdjustmentBudAmnt,Sheet1!S71_SubMunicipalVoteNo,$AC:$AC,Sheet1!S71_ItemType,$AD:$AD)","v":0},{"$f":"SUMIFS(Sheet1!S71_ASBudgetAmount,Sheet1!S71_SubMunicipalVoteNo,$AC:$AC,Sheet1!S71_ItemType,$AD:$AD)","v":0},{"$f":"SUMIFS(Sheet1!S71_OY1BudgetAmount,Sheet1!S71_SubMunicipalVoteNo,$AC:$AC,Sheet1!S71_ItemType,$AD:$AD)","v":0},{"$f":"SUMIFS(Sheet1!S71_OY2BudgetAmount,Sheet1!S71_SubMunicipalVoteNo,$AC:$AC,Sheet1!S71_ItemType,$AD:$AD)","v":0},null,null,null,null,null,null,null,null,null,null,null,null,null,null,null,null,null,104,"IE"]
["10.5 - [Name of sub-vote]",null,{"$f":"SUMIFS(Sheet1!S71_PPPYearAmount,Sheet1!S71_SubMunicipalVoteNo,$AC:$AC,Sheet1!S71_ItemType,$AD:$AD)","v":0},{"$f":"SUMIFS(Sheet1!S71_PPYearAmount,Sheet1!S71_SubMunicipalVoteNo,$AC:$AC,Sheet1!S71_ItemType,$AD:$AD)","v":0},{"$f":"SUMIFS(Sheet1!S71_PYearAmount,Sheet1!S71_SubMunicipalVoteNo,$AC:$AC,Sheet1!S71_ItemType,$AD:$AD)","v":0},{"$f":"SUMIFS(Sheet1!S71_OriginalBudAmnt,Sheet1!S71_SubMunicipalVoteNo,$AC:$AC,Sheet1!S71_ItemType,$AD:$AD)","v":0},{"$f":"SUMIFS(Sheet1!S71_AdjustmentBudAmnt,Sheet1!S71_SubMunicipalVoteNo,$AC:$AC,Sheet1!S71_ItemType,$AD:$AD)","v":0},{"$f":"SUMIFS(Sheet1!S71_AdjustmentBudAmnt,Sheet1!S71_SubMunicipalVoteNo,$AC:$AC,Sheet1!S71_ItemType,$AD:$AD)","v":0},{"$f":"SUMIFS(Sheet1!S71_ASBudgetAmount,Sheet1!S71_SubMunicipalVoteNo,$AC:$AC,Sheet1!S71_ItemType,$AD:$AD)","v":0},{"$f":"SUMIFS(Sheet1!S71_OY1BudgetAmount,Sheet1!S71_SubMunicipalVoteNo,$AC:$AC,Sheet1!S71_ItemType,$AD:$AD)","v":0},{"$f":"SUMIFS(Sheet1!S71_OY2BudgetAmount,Sheet1!S71_SubMunicipalVoteNo,$AC:$AC,Sheet1!S71_ItemType,$AD:$AD)","v":0},null,null,null,null,null,null,null,null,null,null,null,null,null,null,null,null,null,105,"IE"]
["10.6 - [Name of sub-vote]",null,{"$f":"SUMIFS(Sheet1!S71_PPPYearAmount,Sheet1!S71_SubMunicipalVoteNo,$AC:$AC,Sheet1!S71_ItemType,$AD:$AD)","v":0},{"$f":"SUMIFS(Sheet1!S71_PPYearAmount,Sheet1!S71_SubMunicipalVoteNo,$AC:$AC,Sheet1!S71_ItemType,$AD:$AD)","v":0},{"$f":"SUMIFS(Sheet1!S71_PYearAmount,Sheet1!S71_SubMunicipalVoteNo,$AC:$AC,Sheet1!S71_ItemType,$AD:$AD)","v":0},{"$f":"SUMIFS(Sheet1!S71_OriginalBudAmnt,Sheet1!S71_SubMunicipalVoteNo,$AC:$AC,Sheet1!S71_ItemType,$AD:$AD)","v":0},{"$f":"SUMIFS(Sheet1!S71_AdjustmentBudAmnt,Sheet1!S71_SubMunicipalVoteNo,$AC:$AC,Sheet1!S71_ItemType,$AD:$AD)","v":0},{"$f":"SUMIFS(Sheet1!S71_AdjustmentBudAmnt,Sheet1!S71_SubMunicipalVoteNo,$AC:$AC,Sheet1!S71_ItemType,$AD:$AD)","v":0},{"$f":"SUMIFS(Sheet1!S71_ASBudgetAmount,Sheet1!S71_SubMunicipalVoteNo,$AC:$AC,Sheet1!S71_ItemType,$AD:$AD)","v":0},{"$f":"SUMIFS(Sheet1!S71_OY1BudgetAmount,Sheet1!S71_SubMunicipalVoteNo,$AC:$AC,Sheet1!S71_ItemType,$AD:$AD)","v":0},{"$f":"SUMIFS(Sheet1!S71_OY2BudgetAmount,Sheet1!S71_SubMunicipalVoteNo,$AC:$AC,Sheet1!S71_ItemType,$AD:$AD)","v":0},null,null,null,null,null,null,null,null,null,null,null,null,null,null,null,null,null,106,"IE"]
["10.7 - [Name of sub-vote]",null,{"$f":"SUMIFS(Sheet1!S71_PPPYearAmount,Sheet1!S71_SubMunicipalVoteNo,$AC:$AC,Sheet1!S71_ItemType,$AD:$AD)","v":0},{"$f":"SUMIFS(Sheet1!S71_PPYearAmount,Sheet1!S71_SubMunicipalVoteNo,$AC:$AC,Sheet1!S71_ItemType,$AD:$AD)","v":0},{"$f":"SUMIFS(Sheet1!S71_PYearAmount,Sheet1!S71_SubMunicipalVoteNo,$AC:$AC,Sheet1!S71_ItemType,$AD:$AD)","v":0},{"$f":"SUMIFS(Sheet1!S71_OriginalBudAmnt,Sheet1!S71_SubMunicipalVoteNo,$AC:$AC,Sheet1!S71_ItemType,$AD:$AD)","v":0},{"$f":"SUMIFS(Sheet1!S71_AdjustmentBudAmnt,Sheet1!S71_SubMunicipalVoteNo,$AC:$AC,Sheet1!S71_ItemType,$AD:$AD)","v":0},{"$f":"SUMIFS(Sheet1!S71_AdjustmentBudAmnt,Sheet1!S71_SubMunicipalVoteNo,$AC:$AC,Sheet1!S71_ItemType,$AD:$AD)","v":0},{"$f":"SUMIFS(Sheet1!S71_ASBudgetAmount,Sheet1!S71_SubMunicipalVoteNo,$AC:$AC,Sheet1!S71_ItemType,$AD:$AD)","v":0},{"$f":"SUMIFS(Sheet1!S71_OY1BudgetAmount,Sheet1!S71_SubMunicipalVoteNo,$AC:$AC,Sheet1!S71_ItemType,$AD:$AD)","v":0},{"$f":"SUMIFS(Sheet1!S71_OY2BudgetAmount,Sheet1!S71_SubMunicipalVoteNo,$AC:$AC,Sheet1!S71_ItemType,$AD:$AD)","v":0},null,null,null,null,null,null,null,null,null,null,null,null,null,null,null,null,null,107,"IE"]
["10.8 - [Name of sub-vote]",null,{"$f":"SUMIFS(Sheet1!S71_PPPYearAmount,Sheet1!S71_SubMunicipalVoteNo,$AC:$AC,Sheet1!S71_ItemType,$AD:$AD)","v":0},{"$f":"SUMIFS(Sheet1!S71_PPYearAmount,Sheet1!S71_SubMunicipalVoteNo,$AC:$AC,Sheet1!S71_ItemType,$AD:$AD)","v":0},{"$f":"SUMIFS(Sheet1!S71_PYearAmount,Sheet1!S71_SubMunicipalVoteNo,$AC:$AC,Sheet1!S71_ItemType,$AD:$AD)","v":0},{"$f":"SUMIFS(Sheet1!S71_OriginalBudAmnt,Sheet1!S71_SubMunicipalVoteNo,$AC:$AC,Sheet1!S71_ItemType,$AD:$AD)","v":0},{"$f":"SUMIFS(Sheet1!S71_AdjustmentBudAmnt,Sheet1!S71_SubMunicipalVoteNo,$AC:$AC,Sheet1!S71_ItemType,$AD:$AD)","v":0},{"$f":"SUMIFS(Sheet1!S71_AdjustmentBudAmnt,Sheet1!S71_SubMunicipalVoteNo,$AC:$AC,Sheet1!S71_ItemType,$AD:$AD)","v":0},{"$f":"SUMIFS(Sheet1!S71_ASBudgetAmount,Sheet1!S71_SubMunicipalVoteNo,$AC:$AC,Sheet1!S71_ItemType,$AD:$AD)","v":0},{"$f":"SUMIFS(Sheet1!S71_OY1BudgetAmount,Sheet1!S71_SubMunicipalVoteNo,$AC:$AC,Sheet1!S71_ItemType,$AD:$AD)","v":0},{"$f":"SUMIFS(Sheet1!S71_OY2BudgetAmount,Sheet1!S71_SubMunicipalVoteNo,$AC:$AC,Sheet1!S71_ItemType,$AD:$AD)","v":0},null,null,null,null,null,null,null,null,null,null,null,null,null,null,null,null,null,108,"IE"]
["10.9 - [Name of sub-vote]",null,{"$f":"SUMIFS(Sheet1!S71_PPPYearAmount,Sheet1!S71_SubMunicipalVoteNo,$AC:$AC,Sheet1!S71_ItemType,$AD:$AD)","v":0},{"$f":"SUMIFS(Sheet1!S71_PPYearAmount,Sheet1!S71_SubMunicipalVoteNo,$AC:$AC,Sheet1!S71_ItemType,$AD:$AD)","v":0},{"$f":"SUMIFS(Sheet1!S71_PYearAmount,Sheet1!S71_SubMunicipalVoteNo,$AC:$AC,Sheet1!S71_ItemType,$AD:$AD)","v":0},{"$f":"SUMIFS(Sheet1!S71_OriginalBudAmnt,Sheet1!S71_SubMunicipalVoteNo,$AC:$AC,Sheet1!S71_ItemType,$AD:$AD)","v":0},{"$f":"SUMIFS(Sheet1!S71_AdjustmentBudAmnt,Sheet1!S71_SubMunicipalVoteNo,$AC:$AC,Sheet1!S71_ItemType,$AD:$AD)","v":0},{"$f":"SUMIFS(Sheet1!S71_AdjustmentBudAmnt,Sheet1!S71_SubMunicipalVoteNo,$AC:$AC,Sheet1!S71_ItemType,$AD:$AD)","v":0},{"$f":"SUMIFS(Sheet1!S71_ASBudgetAmount,Sheet1!S71_SubMunicipalVoteNo,$AC:$AC,Sheet1!S71_ItemType,$AD:$AD)","v":0},{"$f":"SUMIFS(Sheet1!S71_OY1BudgetAmount,Sheet1!S71_SubMunicipalVoteNo,$AC:$AC,Sheet1!S71_ItemType,$AD:$AD)","v":0},{"$f":"SUMIFS(Sheet1!S71_OY2BudgetAmount,Sheet1!S71_SubMunicipalVoteNo,$AC:$AC,Sheet1!S71_ItemType,$AD:$AD)","v":0},null,null,null,null,null,null,null,null,null,null,null,null,null,null,null,null,null,109,"IE"]
[{"$f":"A114","v":"10.10 - [Name of sub-vote]"},null,{"$f":"SUMIFS(Sheet1!S71_PPPYearAmount,Sheet1!S71_SubMunicipalVoteNo,$AC:$AC,Sheet1!S71_ItemType,$AD:$AD)","v":0},{"$f":"SUMIFS(Sheet1!S71_PPYearAmount,Sheet1!S71_SubMunicipalVoteNo,$AC:$AC,Sheet1!S71_ItemType,$AD:$AD)","v":0},{"$f":"SUMIFS(Sheet1!S71_PYearAmount,Sheet1!S71_SubMunicipalVoteNo,$AC:$AC,Sheet1!S71_ItemType,$AD:$AD)","v":0},{"$f":"SUMIFS(Sheet1!S71_OriginalBudAmnt,Sheet1!S71_SubMunicipalVoteNo,$AC:$AC,Sheet1!S71_ItemType,$AD:$AD)","v":0},{"$f":"SUMIFS(Sheet1!S71_AdjustmentBudAmnt,Sheet1!S71_SubMunicipalVoteNo,$AC:$AC,Sheet1!S71_ItemType,$AD:$AD)","v":0},{"$f":"SUMIFS(Sheet1!S71_AdjustmentBudAmnt,Sheet1!S71_SubMunicipalVoteNo,$AC:$AC,Sheet1!S71_ItemType,$AD:$AD)","v":0},{"$f":"SUMIFS(Sheet1!S71_ASBudgetAmount,Sheet1!S71_SubMunicipalVoteNo,$AC:$AC,Sheet1!S71_ItemType,$AD:$AD)","v":0},{"$f":"SUMIFS(Sheet1!S71_OY1BudgetAmount,Sheet1!S71_SubMunicipalVoteNo,$AC:$AC,Sheet1!S71_ItemType,$AD:$AD)","v":0},{"$f":"SUMIFS(Sheet1!S71_OY2BudgetAmount,Sheet1!S71_SubMunicipalVoteNo,$AC:$AC,Sheet1!S71_ItemType,$AD:$AD)","v":0},null,null,null,null,null,null,null,null,null,null,null,null,null,null,null,null,null,1010,"IE"]
[{"$f":"A115","v":"Vote 11 - Water Management"},null,{"$f":"SUM(C284:C293)","v":0},0,0,0,0,0,0,0,0]
[{"$f":"A116","v":"11.1 - Water Distribution"},null,{"$f":"SUMIFS(Sheet1!S71_PPPYearAmount,Sheet1!S71_SubMunicipalVoteNo,$AC:$AC,Sheet1!S71_ItemType,$AD:$AD)","v":0},{"$f":"SUMIFS(Sheet1!S71_PPYearAmount,Sheet1!S71_SubMunicipalVoteNo,$AC:$AC,Sheet1!S71_ItemType,$AD:$AD)","v":0},{"$f":"SUMIFS(Sheet1!S71_PYearAmount,Sheet1!S71_SubMunicipalVoteNo,$AC:$AC,Sheet1!S71_ItemType,$AD:$AD)","v":0},{"$f":"SUMIFS(Sheet1!S71_OriginalBudAmnt,Sheet1!S71_SubMunicipalVoteNo,$AC:$AC,Sheet1!S71_ItemType,$AD:$AD)","v":0},{"$f":"SUMIFS(Sheet1!S71_AdjustmentBudAmnt,Sheet1!S71_SubMunicipalVoteNo,$AC:$AC,Sheet1!S71_ItemType,$AD:$AD)","v":0},{"$f":"SUMIFS(Sheet1!S71_AdjustmentBudAmnt,Sheet1!S71_SubMunicipalVoteNo,$AC:$AC,Sheet1!S71_ItemType,$AD:$AD)","v":0},{"$f":"SUMIFS(Sheet1!S71_ASBudgetAmount,Sheet1!S71_SubMunicipalVoteNo,$AC:$AC,Sheet1!S71_ItemType,$AD:$AD)","v":0},{"$f":"SUMIFS(Sheet1!S71_OY1BudgetAmount,Sheet1!S71_SubMunicipalVoteNo,$AC:$AC,Sheet1!S71_ItemType,$AD:$AD)","v":0},{"$f":"SUMIFS(Sheet1!S71_OY2BudgetAmount,Sheet1!S71_SubMunicipalVoteNo,$AC:$AC,Sheet1!S71_ItemType,$AD:$AD)","v":0},null,null,null,null,null,null,null,null,null,null,null,null,null,null,null,null,null,111,"IE"]
[{"$f":"A117","v":"11.2 - [Name of sub-vote]"},null,{"$f":"SUMIFS(Sheet1!S71_PPPYearAmount,Sheet1!S71_SubMunicipalVoteNo,$AC:$AC,Sheet1!S71_ItemType,$AD:$AD)","v":0},{"$f":"SUMIFS(Sheet1!S71_PPYearAmount,Sheet1!S71_SubMunicipalVoteNo,$AC:$AC,Sheet1!S71_ItemType,$AD:$AD)","v":0},{"$f":"SUMIFS(Sheet1!S71_PYearAmount,Sheet1!S71_SubMunicipalVoteNo,$AC:$AC,Sheet1!S71_ItemType,$AD:$AD)","v":0},{"$f":"SUMIFS(Sheet1!S71_OriginalBudAmnt,Sheet1!S71_SubMunicipalVoteNo,$AC:$AC,Sheet1!S71_ItemType,$AD:$AD)","v":0},{"$f":"SUMIFS(Sheet1!S71_AdjustmentBudAmnt,Sheet1!S71_SubMunicipalVoteNo,$AC:$AC,Sheet1!S71_ItemType,$AD:$AD)","v":0},{"$f":"SUMIFS(Sheet1!S71_AdjustmentBudAmnt,Sheet1!S71_SubMunicipalVoteNo,$AC:$AC,Sheet1!S71_ItemType,$AD:$AD)","v":0},{"$f":"SUMIFS(Sheet1!S71_ASBudgetAmount,Sheet1!S71_SubMunicipalVoteNo,$AC:$AC,Sheet1!S71_ItemType,$AD:$AD)","v":0},{"$f":"SUMIFS(Sheet1!S71_OY1BudgetAmount,Sheet1!S71_SubMunicipalVoteNo,$AC:$AC,Sheet1!S71_ItemType,$AD:$AD)","v":0},{"$f":"SUMIFS(Sheet1!S71_OY2BudgetAmount,Sheet1!S71_SubMunicipalVoteNo,$AC:$AC,Sheet1!S71_ItemType,$AD:$AD)","v":0},null,null,null,null,null,null,null,null,null,null,null,null,null,null,null,null,null,112,"IE"]
["11.3 - [Name of sub-vote]",null,{"$f":"SUMIFS(Sheet1!S71_PPPYearAmount,Sheet1!S71_SubMunicipalVoteNo,$AC:$AC,Sheet1!S71_ItemType,$AD:$AD)","v":0},{"$f":"SUMIFS(Sheet1!S71_PPYearAmount,Sheet1!S71_SubMunicipalVoteNo,$AC:$AC,Sheet1!S71_ItemType,$AD:$AD)","v":0},{"$f":"SUMIFS(Sheet1!S71_PYearAmount,Sheet1!S71_SubMunicipalVoteNo,$AC:$AC,Sheet1!S71_ItemType,$AD:$AD)","v":0},{"$f":"SUMIFS(Sheet1!S71_OriginalBudAmnt,Sheet1!S71_SubMunicipalVoteNo,$AC:$AC,Sheet1!S71_ItemType,$AD:$AD)","v":0},{"$f":"SUMIFS(Sheet1!S71_AdjustmentBudAmnt,Sheet1!S71_SubMunicipalVoteNo,$AC:$AC,Sheet1!S71_ItemType,$AD:$AD)","v":0},{"$f":"SUMIFS(Sheet1!S71_AdjustmentBudAmnt,Sheet1!S71_SubMunicipalVoteNo,$AC:$AC,Sheet1!S71_ItemType,$AD:$AD)","v":0},{"$f":"SUMIFS(Sheet1!S71_ASBudgetAmount,Sheet1!S71_SubMunicipalVoteNo,$AC:$AC,Sheet1!S71_ItemType,$AD:$AD)","v":0},{"$f":"SUMIFS(Sheet1!S71_OY1BudgetAmount,Sheet1!S71_SubMunicipalVoteNo,$AC:$AC,Sheet1!S71_ItemType,$AD:$AD)","v":0},{"$f":"SUMIFS(Sheet1!S71_OY2BudgetAmount,Sheet1!S71_SubMunicipalVoteNo,$AC:$AC,Sheet1!S71_ItemType,$AD:$AD)","v":0},null,null,null,null,null,null,null,null,null,null,null,null,null,null,null,null,null,113,"IE"]
["11.4 - [Name of sub-vote]",null,{"$f":"SUMIFS(Sheet1!S71_PPPYearAmount,Sheet1!S71_SubMunicipalVoteNo,$AC:$AC,Sheet1!S71_ItemType,$AD:$AD)","v":0},{"$f":"SUMIFS(Sheet1!S71_PPYearAmount,Sheet1!S71_SubMunicipalVoteNo,$AC:$AC,Sheet1!S71_ItemType,$AD:$AD)","v":0},{"$f":"SUMIFS(Sheet1!S71_PYearAmount,Sheet1!S71_SubMunicipalVoteNo,$AC:$AC,Sheet1!S71_ItemType,$AD:$AD)","v":0},{"$f":"SUMIFS(Sheet1!S71_OriginalBudAmnt,Sheet1!S71_SubMunicipalVoteNo,$AC:$AC,Sheet1!S71_ItemType,$AD:$AD)","v":0},{"$f":"SUMIFS(Sheet1!S71_AdjustmentBudAmnt,Sheet1!S71_SubMunicipalVoteNo,$AC:$AC,Sheet1!S71_ItemType,$AD:$AD)","v":0},{"$f":"SUMIFS(Sheet1!S71_AdjustmentBudAmnt,Sheet1!S71_SubMunicipalVoteNo,$AC:$AC,Sheet1!S71_ItemType,$AD:$AD)","v":0},{"$f":"SUMIFS(Sheet1!S71_ASBudgetAmount,Sheet1!S71_SubMunicipalVoteNo,$AC:$AC,Sheet1!S71_ItemType,$AD:$AD)","v":0},{"$f":"SUMIFS(Sheet1!S71_OY1BudgetAmount,Sheet1!S71_SubMunicipalVoteNo,$AC:$AC,Sheet1!S71_ItemType,$AD:$AD)","v":0},{"$f":"SUMIFS(Sheet1!S71_OY2BudgetAmount,Sheet1!S71_SubMunicipalVoteNo,$AC:$AC,Sheet1!S71_ItemType,$AD:$AD)","v":0},null,null,null,null,null,null,null,null,null,null,null,null,null,null,null,null,null,114,"IE"]
["11.5 - [Name of sub-vote]",null,{"$f":"SUMIFS(Sheet1!S71_PPPYearAmount,Sheet1!S71_SubMunicipalVoteNo,$AC:$AC,Sheet1!S71_ItemType,$AD:$AD)","v":0},{"$f":"SUMIFS(Sheet1!S71_PPYearAmount,Sheet1!S71_SubMunicipalVoteNo,$AC:$AC,Sheet1!S71_ItemType,$AD:$AD)","v":0},{"$f":"SUMIFS(Sheet1!S71_PYearAmount,Sheet1!S71_SubMunicipalVoteNo,$AC:$AC,Sheet1!S71_ItemType,$AD:$AD)","v":0},{"$f":"SUMIFS(Sheet1!S71_OriginalBudAmnt,Sheet1!S71_SubMunicipalVoteNo,$AC:$AC,Sheet1!S71_ItemType,$AD:$AD)","v":0},{"$f":"SUMIFS(Sheet1!S71_AdjustmentBudAmnt,Sheet1!S71_SubMunicipalVoteNo,$AC:$AC,Sheet1!S71_ItemType,$AD:$AD)","v":0},{"$f":"SUMIFS(Sheet1!S71_AdjustmentBudAmnt,Sheet1!S71_SubMunicipalVoteNo,$AC:$AC,Sheet1!S71_ItemType,$AD:$AD)","v":0},{"$f":"SUMIFS(Sheet1!S71_ASBudgetAmount,Sheet1!S71_SubMunicipalVoteNo,$AC:$AC,Sheet1!S71_ItemType,$AD:$AD)","v":0},{"$f":"SUMIFS(Sheet1!S71_OY1BudgetAmount,Sheet1!S71_SubMunicipalVoteNo,$AC:$AC,Sheet1!S71_ItemType,$AD:$AD)","v":0},{"$f":"SUMIFS(Sheet1!S71_OY2BudgetAmount,Sheet1!S71_SubMunicipalVoteNo,$AC:$AC,Sheet1!S71_ItemType,$AD:$AD)","v":0},null,null,null,null,null,null,null,null,null,null,null,null,null,null,null,null,null,115,"IE"]
["11.6 - [Name of sub-vote]",null,{"$f":"SUMIFS(Sheet1!S71_PPPYearAmount,Sheet1!S71_SubMunicipalVoteNo,$AC:$AC,Sheet1!S71_ItemType,$AD:$AD)","v":0},{"$f":"SUMIFS(Sheet1!S71_PPYearAmount,Sheet1!S71_SubMunicipalVoteNo,$AC:$AC,Sheet1!S71_ItemType,$AD:$AD)","v":0},{"$f":"SUMIFS(Sheet1!S71_PYearAmount,Sheet1!S71_SubMunicipalVoteNo,$AC:$AC,Sheet1!S71_ItemType,$AD:$AD)","v":0},{"$f":"SUMIFS(Sheet1!S71_OriginalBudAmnt,Sheet1!S71_SubMunicipalVoteNo,$AC:$AC,Sheet1!S71_ItemType,$AD:$AD)","v":0},{"$f":"SUMIFS(Sheet1!S71_AdjustmentBudAmnt,Sheet1!S71_SubMunicipalVoteNo,$AC:$AC,Sheet1!S71_ItemType,$AD:$AD)","v":0},{"$f":"SUMIFS(Sheet1!S71_AdjustmentBudAmnt,Sheet1!S71_SubMunicipalVoteNo,$AC:$AC,Sheet1!S71_ItemType,$AD:$AD)","v":0},{"$f":"SUMIFS(Sheet1!S71_ASBudgetAmount,Sheet1!S71_SubMunicipalVoteNo,$AC:$AC,Sheet1!S71_ItemType,$AD:$AD)","v":0},{"$f":"SUMIFS(Sheet1!S71_OY1BudgetAmount,Sheet1!S71_SubMunicipalVoteNo,$AC:$AC,Sheet1!S71_ItemType,$AD:$AD)","v":0},{"$f":"SUMIFS(Sheet1!S71_OY2BudgetAmount,Sheet1!S71_SubMunicipalVoteNo,$AC:$AC,Sheet1!S71_ItemType,$AD:$AD)","v":0},null,null,null,null,null,null,null,null,null,null,null,null,null,null,null,null,null,116,"IE"]
["11.7 - [Name of sub-vote]",null,{"$f":"SUMIFS(Sheet1!S71_PPPYearAmount,Sheet1!S71_SubMunicipalVoteNo,$AC:$AC,Sheet1!S71_ItemType,$AD:$AD)","v":0},{"$f":"SUMIFS(Sheet1!S71_PPYearAmount,Sheet1!S71_SubMunicipalVoteNo,$AC:$AC,Sheet1!S71_ItemType,$AD:$AD)","v":0},{"$f":"SUMIFS(Sheet1!S71_PYearAmount,Sheet1!S71_SubMunicipalVoteNo,$AC:$AC,Sheet1!S71_ItemType,$AD:$AD)","v":0},{"$f":"SUMIFS(Sheet1!S71_OriginalBudAmnt,Sheet1!S71_SubMunicipalVoteNo,$AC:$AC,Sheet1!S71_ItemType,$AD:$AD)","v":0},{"$f":"SUMIFS(Sheet1!S71_AdjustmentBudAmnt,Sheet1!S71_SubMunicipalVoteNo,$AC:$AC,Sheet1!S71_ItemType,$AD:$AD)","v":0},{"$f":"SUMIFS(Sheet1!S71_AdjustmentBudAmnt,Sheet1!S71_SubMunicipalVoteNo,$AC:$AC,Sheet1!S71_ItemType,$AD:$AD)","v":0},{"$f":"SUMIFS(Sheet1!S71_ASBudgetAmount,Sheet1!S71_SubMunicipalVoteNo,$AC:$AC,Sheet1!S71_ItemType,$AD:$AD)","v":0},{"$f":"SUMIFS(Sheet1!S71_OY1BudgetAmount,Sheet1!S71_SubMunicipalVoteNo,$AC:$AC,Sheet1!S71_ItemType,$AD:$AD)","v":0},{"$f":"SUMIFS(Sheet1!S71_OY2BudgetAmount,Sheet1!S71_SubMunicipalVoteNo,$AC:$AC,Sheet1!S71_ItemType,$AD:$AD)","v":0},null,null,null,null,null,null,null,null,null,null,null,null,null,null,null,null,null,117,"IE"]
["11.8 - [Name of sub-vote]",null,{"$f":"SUMIFS(Sheet1!S71_PPPYearAmount,Sheet1!S71_SubMunicipalVoteNo,$AC:$AC,Sheet1!S71_ItemType,$AD:$AD)","v":0},{"$f":"SUMIFS(Sheet1!S71_PPYearAmount,Sheet1!S71_SubMunicipalVoteNo,$AC:$AC,Sheet1!S71_ItemType,$AD:$AD)","v":0},{"$f":"SUMIFS(Sheet1!S71_PYearAmount,Sheet1!S71_SubMunicipalVoteNo,$AC:$AC,Sheet1!S71_ItemType,$AD:$AD)","v":0},{"$f":"SUMIFS(Sheet1!S71_OriginalBudAmnt,Sheet1!S71_SubMunicipalVoteNo,$AC:$AC,Sheet1!S71_ItemType,$AD:$AD)","v":0},{"$f":"SUMIFS(Sheet1!S71_AdjustmentBudAmnt,Sheet1!S71_SubMunicipalVoteNo,$AC:$AC,Sheet1!S71_ItemType,$AD:$AD)","v":0},{"$f":"SUMIFS(Sheet1!S71_AdjustmentBudAmnt,Sheet1!S71_SubMunicipalVoteNo,$AC:$AC,Sheet1!S71_ItemType,$AD:$AD)","v":0},{"$f":"SUMIFS(Sheet1!S71_ASBudgetAmount,Sheet1!S71_SubMunicipalVoteNo,$AC:$AC,Sheet1!S71_ItemType,$AD:$AD)","v":0},{"$f":"SUMIFS(Sheet1!S71_OY1BudgetAmount,Sheet1!S71_SubMunicipalVoteNo,$AC:$AC,Sheet1!S71_ItemType,$AD:$AD)","v":0},{"$f":"SUMIFS(Sheet1!S71_OY2BudgetAmount,Sheet1!S71_SubMunicipalVoteNo,$AC:$AC,Sheet1!S71_ItemType,$AD:$AD)","v":0},null,null,null,null,null,null,null,null,null,null,null,null,null,null,null,null,null,118,"IE"]
["11.9 - [Name of sub-vote]",null,{"$f":"SUMIFS(Sheet1!S71_PPPYearAmount,Sheet1!S71_SubMunicipalVoteNo,$AC:$AC,Sheet1!S71_ItemType,$AD:$AD)","v":0},{"$f":"SUMIFS(Sheet1!S71_PPYearAmount,Sheet1!S71_SubMunicipalVoteNo,$AC:$AC,Sheet1!S71_ItemType,$AD:$AD)","v":0},{"$f":"SUMIFS(Sheet1!S71_PYearAmount,Sheet1!S71_SubMunicipalVoteNo,$AC:$AC,Sheet1!S71_ItemType,$AD:$AD)","v":0},{"$f":"SUMIFS(Sheet1!S71_OriginalBudAmnt,Sheet1!S71_SubMunicipalVoteNo,$AC:$AC,Sheet1!S71_ItemType,$AD:$AD)","v":0},{"$f":"SUMIFS(Sheet1!S71_AdjustmentBudAmnt,Sheet1!S71_SubMunicipalVoteNo,$AC:$AC,Sheet1!S71_ItemType,$AD:$AD)","v":0},{"$f":"SUMIFS(Sheet1!S71_AdjustmentBudAmnt,Sheet1!S71_SubMunicipalVoteNo,$AC:$AC,Sheet1!S71_ItemType,$AD:$AD)","v":0},{"$f":"SUMIFS(Sheet1!S71_ASBudgetAmount,Sheet1!S71_SubMunicipalVoteNo,$AC:$AC,Sheet1!S71_ItemType,$AD:$AD)","v":0},{"$f":"SUMIFS(Sheet1!S71_OY1BudgetAmount,Sheet1!S71_SubMunicipalVoteNo,$AC:$AC,Sheet1!S71_ItemType,$AD:$AD)","v":0},{"$f":"SUMIFS(Sheet1!S71_OY2BudgetAmount,Sheet1!S71_SubMunicipalVoteNo,$AC:$AC,Sheet1!S71_ItemType,$AD:$AD)","v":0},null,null,null,null,null,null,null,null,null,null,null,null,null,null,null,null,null,119,"IE"]
["11.10 - [Name of sub-vote]",null,{"$f":"SUMIFS(Sheet1!S71_PPPYearAmount,Sheet1!S71_SubMunicipalVoteNo,$AC:$AC,Sheet1!S71_ItemType,$AD:$AD)","v":0},{"$f":"SUMIFS(Sheet1!S71_PPYearAmount,Sheet1!S71_SubMunicipalVoteNo,$AC:$AC,Sheet1!S71_ItemType,$AD:$AD)","v":0},{"$f":"SUMIFS(Sheet1!S71_PYearAmount,Sheet1!S71_SubMunicipalVoteNo,$AC:$AC,Sheet1!S71_ItemType,$AD:$AD)","v":0},{"$f":"SUMIFS(Sheet1!S71_OriginalBudAmnt,Sheet1!S71_SubMunicipalVoteNo,$AC:$AC,Sheet1!S71_ItemType,$AD:$AD)","v":0},{"$f":"SUMIFS(Sheet1!S71_AdjustmentBudAmnt,Sheet1!S71_SubMunicipalVoteNo,$AC:$AC,Sheet1!S71_ItemType,$AD:$AD)","v":0},{"$f":"SUMIFS(Sheet1!S71_AdjustmentBudAmnt,Sheet1!S71_SubMunicipalVoteNo,$AC:$AC,Sheet1!S71_ItemType,$AD:$AD)","v":0},{"$f":"SUMIFS(Sheet1!S71_ASBudgetAmount,Sheet1!S71_SubMunicipalVoteNo,$AC:$AC,Sheet1!S71_ItemType,$AD:$AD)","v":0},{"$f":"SUMIFS(Sheet1!S71_OY1BudgetAmount,Sheet1!S71_SubMunicipalVoteNo,$AC:$AC,Sheet1!S71_ItemType,$AD:$AD)","v":0},{"$f":"SUMIFS(Sheet1!S71_OY2BudgetAmount,Sheet1!S71_SubMunicipalVoteNo,$AC:$AC,Sheet1!S71_ItemType,$AD:$AD)","v":0},null,null,null,null,null,null,null,null,null,null,null,null,null,null,null,null,null,1110,"IE"]
["Vote 12 - Waste Water Management",null,{"$f":"SUM(C295:C304)","v":0},0,0,0,0,0,0,0,0]
["12.1 - Sewerage",null,{"$f":"SUMIFS(Sheet1!S71_PPPYearAmount,Sheet1!S71_SubMunicipalVoteNo,$AC:$AC,Sheet1!S71_ItemType,$AD:$AD)","v":0},{"$f":"SUMIFS(Sheet1!S71_PPYearAmount,Sheet1!S71_SubMunicipalVoteNo,$AC:$AC,Sheet1!S71_ItemType,$AD:$AD)","v":0},{"$f":"SUMIFS(Sheet1!S71_PYearAmount,Sheet1!S71_SubMunicipalVoteNo,$AC:$AC,Sheet1!S71_ItemType,$AD:$AD)","v":0},{"$f":"SUMIFS(Sheet1!S71_OriginalBudAmnt,Sheet1!S71_SubMunicipalVoteNo,$AC:$AC,Sheet1!S71_ItemType,$AD:$AD)","v":0},{"$f":"SUMIFS(Sheet1!S71_AdjustmentBudAmnt,Sheet1!S71_SubMunicipalVoteNo,$AC:$AC,Sheet1!S71_ItemType,$AD:$AD)","v":0},{"$f":"SUMIFS(Sheet1!S71_AdjustmentBudAmnt,Sheet1!S71_SubMunicipalVoteNo,$AC:$AC,Sheet1!S71_ItemType,$AD:$AD)","v":0},{"$f":"SUMIFS(Sheet1!S71_ASBudgetAmount,Sheet1!S71_SubMunicipalVoteNo,$AC:$AC,Sheet1!S71_ItemType,$AD:$AD)","v":0},{"$f":"SUMIFS(Sheet1!S71_OY1BudgetAmount,Sheet1!S71_SubMunicipalVoteNo,$AC:$AC,Sheet1!S71_ItemType,$AD:$AD)","v":0},{"$f":"SUMIFS(Sheet1!S71_OY2BudgetAmount,Sheet1!S71_SubMunicipalVoteNo,$AC:$AC,Sheet1!S71_ItemType,$AD:$AD)","v":0},null,null,null,null,null,null,null,null,null,null,null,null,null,null,null,null,null,121,"IE"]
["12.2 - [Name of sub-vote]",null,{"$f":"SUMIFS(Sheet1!S71_PPPYearAmount,Sheet1!S71_SubMunicipalVoteNo,$AC:$AC,Sheet1!S71_ItemType,$AD:$AD)","v":0},{"$f":"SUMIFS(Sheet1!S71_PPYearAmount,Sheet1!S71_SubMunicipalVoteNo,$AC:$AC,Sheet1!S71_ItemType,$AD:$AD)","v":0},{"$f":"SUMIFS(Sheet1!S71_PYearAmount,Sheet1!S71_SubMunicipalVoteNo,$AC:$AC,Sheet1!S71_ItemType,$AD:$AD)","v":0},{"$f":"SUMIFS(Sheet1!S71_OriginalBudAmnt,Sheet1!S71_SubMunicipalVoteNo,$AC:$AC,Sheet1!S71_ItemType,$AD:$AD)","v":0},{"$f":"SUMIFS(Sheet1!S71_AdjustmentBudAmnt,Sheet1!S71_SubMunicipalVoteNo,$AC:$AC,Sheet1!S71_ItemType,$AD:$AD)","v":0},{"$f":"SUMIFS(Sheet1!S71_AdjustmentBudAmnt,Sheet1!S71_SubMunicipalVoteNo,$AC:$AC,Sheet1!S71_ItemType,$AD:$AD)","v":0},{"$f":"SUMIFS(Sheet1!S71_ASBudgetAmount,Sheet1!S71_SubMunicipalVoteNo,$AC:$AC,Sheet1!S71_ItemType,$AD:$AD)","v":0},{"$f":"SUMIFS(Sheet1!S71_OY1BudgetAmount,Sheet1!S71_SubMunicipalVoteNo,$AC:$AC,Sheet1!S71_ItemType,$AD:$AD)","v":0},{"$f":"SUMIFS(Sheet1!S71_OY2BudgetAmount,Sheet1!S71_SubMunicipalVoteNo,$AC:$AC,Sheet1!S71_ItemType,$AD:$AD)","v":0},null,null,null,null,null,null,null,null,null,null,null,null,null,null,null,null,null,122,"IE"]
["12.3 - [Name of sub-vote]",null,{"$f":"SUMIFS(Sheet1!S71_PPPYearAmount,Sheet1!S71_SubMunicipalVoteNo,$AC:$AC,Sheet1!S71_ItemType,$AD:$AD)","v":0},{"$f":"SUMIFS(Sheet1!S71_PPYearAmount,Sheet1!S71_SubMunicipalVoteNo,$AC:$AC,Sheet1!S71_ItemType,$AD:$AD)","v":0},{"$f":"SUMIFS(Sheet1!S71_PYearAmount,Sheet1!S71_SubMunicipalVoteNo,$AC:$AC,Sheet1!S71_ItemType,$AD:$AD)","v":0},{"$f":"SUMIFS(Sheet1!S71_OriginalBudAmnt,Sheet1!S71_SubMunicipalVoteNo,$AC:$AC,Sheet1!S71_ItemType,$AD:$AD)","v":0},{"$f":"SUMIFS(Sheet1!S71_AdjustmentBudAmnt,Sheet1!S71_SubMunicipalVoteNo,$AC:$AC,Sheet1!S71_ItemType,$AD:$AD)","v":0},{"$f":"SUMIFS(Sheet1!S71_AdjustmentBudAmnt,Sheet1!S71_SubMunicipalVoteNo,$AC:$AC,Sheet1!S71_ItemType,$AD:$AD)","v":0},{"$f":"SUMIFS(Sheet1!S71_ASBudgetAmount,Sheet1!S71_SubMunicipalVoteNo,$AC:$AC,Sheet1!S71_ItemType,$AD:$AD)","v":0},{"$f":"SUMIFS(Sheet1!S71_OY1BudgetAmount,Sheet1!S71_SubMunicipalVoteNo,$AC:$AC,Sheet1!S71_ItemType,$AD:$AD)","v":0},{"$f":"SUMIFS(Sheet1!S71_OY2BudgetAmount,Sheet1!S71_SubMunicipalVoteNo,$AC:$AC,Sheet1!S71_ItemType,$AD:$AD)","v":0},null,null,null,null,null,null,null,null,null,null,null,null,null,null,null,null,null,123,"IE"]
["12.4 - [Name of sub-vote]",null,{"$f":"SUMIFS(Sheet1!S71_PPPYearAmount,Sheet1!S71_SubMunicipalVoteNo,$AC:$AC,Sheet1!S71_ItemType,$AD:$AD)","v":0},{"$f":"SUMIFS(Sheet1!S71_PPYearAmount,Sheet1!S71_SubMunicipalVoteNo,$AC:$AC,Sheet1!S71_ItemType,$AD:$AD)","v":0},{"$f":"SUMIFS(Sheet1!S71_PYearAmount,Sheet1!S71_SubMunicipalVoteNo,$AC:$AC,Sheet1!S71_ItemType,$AD:$AD)","v":0},{"$f":"SUMIFS(Sheet1!S71_OriginalBudAmnt,Sheet1!S71_SubMunicipalVoteNo,$AC:$AC,Sheet1!S71_ItemType,$AD:$AD)","v":0},{"$f":"SUMIFS(Sheet1!S71_AdjustmentBudAmnt,Sheet1!S71_SubMunicipalVoteNo,$AC:$AC,Sheet1!S71_ItemType,$AD:$AD)","v":0},{"$f":"SUMIFS(Sheet1!S71_AdjustmentBudAmnt,Sheet1!S71_SubMunicipalVoteNo,$AC:$AC,Sheet1!S71_ItemType,$AD:$AD)","v":0},{"$f":"SUMIFS(Sheet1!S71_ASBudgetAmount,Sheet1!S71_SubMunicipalVoteNo,$AC:$AC,Sheet1!S71_ItemType,$AD:$AD)","v":0},{"$f":"SUMIFS(Sheet1!S71_OY1BudgetAmount,Sheet1!S71_SubMunicipalVoteNo,$AC:$AC,Sheet1!S71_ItemType,$AD:$AD)","v":0},{"$f":"SUMIFS(Sheet1!S71_OY2BudgetAmount,Sheet1!S71_SubMunicipalVoteNo,$AC:$AC,Sheet1!S71_ItemType,$AD:$AD)","v":0},null,null,null,null,null,null,null,null,null,null,null,null,null,null,null,null,null,124,"IE"]
["12.5 - [Name of sub-vote]",null,{"$f":"SUMIFS(Sheet1!S71_PPPYearAmount,Sheet1!S71_SubMunicipalVoteNo,$AC:$AC,Sheet1!S71_ItemType,$AD:$AD)","v":0},{"$f":"SUMIFS(Sheet1!S71_PPYearAmount,Sheet1!S71_SubMunicipalVoteNo,$AC:$AC,Sheet1!S71_ItemType,$AD:$AD)","v":0},{"$f":"SUMIFS(Sheet1!S71_PYearAmount,Sheet1!S71_SubMunicipalVoteNo,$AC:$AC,Sheet1!S71_ItemType,$AD:$AD)","v":0},{"$f":"SUMIFS(Sheet1!S71_OriginalBudAmnt,Sheet1!S71_SubMunicipalVoteNo,$AC:$AC,Sheet1!S71_ItemType,$AD:$AD)","v":0},{"$f":"SUMIFS(Sheet1!S71_AdjustmentBudAmnt,Sheet1!S71_SubMunicipalVoteNo,$AC:$AC,Sheet1!S71_ItemType,$AD:$AD)","v":0},{"$f":"SUMIFS(Sheet1!S71_AdjustmentBudAmnt,Sheet1!S71_SubMunicipalVoteNo,$AC:$AC,Sheet1!S71_ItemType,$AD:$AD)","v":0},{"$f":"SUMIFS(Sheet1!S71_ASBudgetAmount,Sheet1!S71_SubMunicipalVoteNo,$AC:$AC,Sheet1!S71_ItemType,$AD:$AD)","v":0},{"$f":"SUMIFS(Sheet1!S71_OY1BudgetAmount,Sheet1!S71_SubMunicipalVoteNo,$AC:$AC,Sheet1!S71_ItemType,$AD:$AD)","v":0},{"$f":"SUMIFS(Sheet1!S71_OY2BudgetAmount,Sheet1!S71_SubMunicipalVoteNo,$AC:$AC,Sheet1!S71_ItemType,$AD:$AD)","v":0},null,null,null,null,null,null,null,null,null,null,null,null,null,null,null,null,null,125,"IE"]
["12.6 - [Name of sub-vote]",null,{"$f":"SUMIFS(Sheet1!S71_PPPYearAmount,Sheet1!S71_SubMunicipalVoteNo,$AC:$AC,Sheet1!S71_ItemType,$AD:$AD)","v":0},{"$f":"SUMIFS(Sheet1!S71_PPYearAmount,Sheet1!S71_SubMunicipalVoteNo,$AC:$AC,Sheet1!S71_ItemType,$AD:$AD)","v":0},{"$f":"SUMIFS(Sheet1!S71_PYearAmount,Sheet1!S71_SubMunicipalVoteNo,$AC:$AC,Sheet1!S71_ItemType,$AD:$AD)","v":0},{"$f":"SUMIFS(Sheet1!S71_OriginalBudAmnt,Sheet1!S71_SubMunicipalVoteNo,$AC:$AC,Sheet1!S71_ItemType,$AD:$AD)","v":0},{"$f":"SUMIFS(Sheet1!S71_AdjustmentBudAmnt,Sheet1!S71_SubMunicipalVoteNo,$AC:$AC,Sheet1!S71_ItemType,$AD:$AD)","v":0},{"$f":"SUMIFS(Sheet1!S71_AdjustmentBudAmnt,Sheet1!S71_SubMunicipalVoteNo,$AC:$AC,Sheet1!S71_ItemType,$AD:$AD)","v":0},{"$f":"SUMIFS(Sheet1!S71_ASBudgetAmount,Sheet1!S71_SubMunicipalVoteNo,$AC:$AC,Sheet1!S71_ItemType,$AD:$AD)","v":0},{"$f":"SUMIFS(Sheet1!S71_OY1BudgetAmount,Sheet1!S71_SubMunicipalVoteNo,$AC:$AC,Sheet1!S71_ItemType,$AD:$AD)","v":0},{"$f":"SUMIFS(Sheet1!S71_OY2BudgetAmount,Sheet1!S71_SubMunicipalVoteNo,$AC:$AC,Sheet1!S71_ItemType,$AD:$AD)","v":0},null,null,null,null,null,null,null,null,null,null,null,null,null,null,null,null,null,126,"IE"]
["12.7 - [Name of sub-vote]",null,{"$f":"SUMIFS(Sheet1!S71_PPPYearAmount,Sheet1!S71_SubMunicipalVoteNo,$AC:$AC,Sheet1!S71_ItemType,$AD:$AD)","v":0},{"$f":"SUMIFS(Sheet1!S71_PPYearAmount,Sheet1!S71_SubMunicipalVoteNo,$AC:$AC,Sheet1!S71_ItemType,$AD:$AD)","v":0},{"$f":"SUMIFS(Sheet1!S71_PYearAmount,Sheet1!S71_SubMunicipalVoteNo,$AC:$AC,Sheet1!S71_ItemType,$AD:$AD)","v":0},{"$f":"SUMIFS(Sheet1!S71_OriginalBudAmnt,Sheet1!S71_SubMunicipalVoteNo,$AC:$AC,Sheet1!S71_ItemType,$AD:$AD)","v":0},{"$f":"SUMIFS(Sheet1!S71_AdjustmentBudAmnt,Sheet1!S71_SubMunicipalVoteNo,$AC:$AC,Sheet1!S71_ItemType,$AD:$AD)","v":0},{"$f":"SUMIFS(Sheet1!S71_AdjustmentBudAmnt,Sheet1!S71_SubMunicipalVoteNo,$AC:$AC,Sheet1!S71_ItemType,$AD:$AD)","v":0},{"$f":"SUMIFS(Sheet1!S71_ASBudgetAmount,Sheet1!S71_SubMunicipalVoteNo,$AC:$AC,Sheet1!S71_ItemType,$AD:$AD)","v":0},{"$f":"SUMIFS(Sheet1!S71_OY1BudgetAmount,Sheet1!S71_SubMunicipalVoteNo,$AC:$AC,Sheet1!S71_ItemType,$AD:$AD)","v":0},{"$f":"SUMIFS(Sheet1!S71_OY2BudgetAmount,Sheet1!S71_SubMunicipalVoteNo,$AC:$AC,Sheet1!S71_ItemType,$AD:$AD)","v":0},null,null,null,null,null,null,null,null,null,null,null,null,null,null,null,null,null,127,"IE"]
["12.8 - [Name of sub-vote]",null,{"$f":"SUMIFS(Sheet1!S71_PPPYearAmount,Sheet1!S71_SubMunicipalVoteNo,$AC:$AC,Sheet1!S71_ItemType,$AD:$AD)","v":0},{"$f":"SUMIFS(Sheet1!S71_PPYearAmount,Sheet1!S71_SubMunicipalVoteNo,$AC:$AC,Sheet1!S71_ItemType,$AD:$AD)","v":0},{"$f":"SUMIFS(Sheet1!S71_PYearAmount,Sheet1!S71_SubMunicipalVoteNo,$AC:$AC,Sheet1!S71_ItemType,$AD:$AD)","v":0},{"$f":"SUMIFS(Sheet1!S71_OriginalBudAmnt,Sheet1!S71_SubMunicipalVoteNo,$AC:$AC,Sheet1!S71_ItemType,$AD:$AD)","v":0},{"$f":"SUMIFS(Sheet1!S71_AdjustmentBudAmnt,Sheet1!S71_SubMunicipalVoteNo,$AC:$AC,Sheet1!S71_ItemType,$AD:$AD)","v":0},{"$f":"SUMIFS(Sheet1!S71_AdjustmentBudAmnt,Sheet1!S71_SubMunicipalVoteNo,$AC:$AC,Sheet1!S71_ItemType,$AD:$AD)","v":0},{"$f":"SUMIFS(Sheet1!S71_ASBudgetAmount,Sheet1!S71_SubMunicipalVoteNo,$AC:$AC,Sheet1!S71_ItemType,$AD:$AD)","v":0},{"$f":"SUMIFS(Sheet1!S71_OY1BudgetAmount,Sheet1!S71_SubMunicipalVoteNo,$AC:$AC,Sheet1!S71_ItemType,$AD:$AD)","v":0},{"$f":"SUMIFS(Sheet1!S71_OY2BudgetAmount,Sheet1!S71_SubMunicipalVoteNo,$AC:$AC,Sheet1!S71_ItemType,$AD:$AD)","v":0},null,null,null,null,null,null,null,null,null,null,null,null,null,null,null,null,null,128,"IE"]
["12.9 - [Name of sub-vote]",null,{"$f":"SUMIFS(Sheet1!S71_PPPYearAmount,Sheet1!S71_SubMunicipalVoteNo,$AC:$AC,Sheet1!S71_ItemType,$AD:$AD)","v":0},{"$f":"SUMIFS(Sheet1!S71_PPYearAmount,Sheet1!S71_SubMunicipalVoteNo,$AC:$AC,Sheet1!S71_ItemType,$AD:$AD)","v":0},{"$f":"SUMIFS(Sheet1!S71_PYearAmount,Sheet1!S71_SubMunicipalVoteNo,$AC:$AC,Sheet1!S71_ItemType,$AD:$AD)","v":0},{"$f":"SUMIFS(Sheet1!S71_OriginalBudAmnt,Sheet1!S71_SubMunicipalVoteNo,$AC:$AC,Sheet1!S71_ItemType,$AD:$AD)","v":0},{"$f":"SUMIFS(Sheet1!S71_AdjustmentBudAmnt,Sheet1!S71_SubMunicipalVoteNo,$AC:$AC,Sheet1!S71_ItemType,$AD:$AD)","v":0},{"$f":"SUMIFS(Sheet1!S71_AdjustmentBudAmnt,Sheet1!S71_SubMunicipalVoteNo,$AC:$AC,Sheet1!S71_ItemType,$AD:$AD)","v":0},{"$f":"SUMIFS(Sheet1!S71_ASBudgetAmount,Sheet1!S71_SubMunicipalVoteNo,$AC:$AC,Sheet1!S71_ItemType,$AD:$AD)","v":0},{"$f":"SUMIFS(Sheet1!S71_OY1BudgetAmount,Sheet1!S71_SubMunicipalVoteNo,$AC:$AC,Sheet1!S71_ItemType,$AD:$AD)","v":0},{"$f":"SUMIFS(Sheet1!S71_OY2BudgetAmount,Sheet1!S71_SubMunicipalVoteNo,$AC:$AC,Sheet1!S71_ItemType,$AD:$AD)","v":0},null,null,null,null,null,null,null,null,null,null,null,null,null,null,null,null,null,129,"IE"]
["12.10 - [Name of sub-vote]",null,{"$f":"SUMIFS(Sheet1!S71_PPPYearAmount,Sheet1!S71_SubMunicipalVoteNo,$AC:$AC,Sheet1!S71_ItemType,$AD:$AD)","v":0},{"$f":"SUMIFS(Sheet1!S71_PPYearAmount,Sheet1!S71_SubMunicipalVoteNo,$AC:$AC,Sheet1!S71_ItemType,$AD:$AD)","v":0},{"$f":"SUMIFS(Sheet1!S71_PYearAmount,Sheet1!S71_SubMunicipalVoteNo,$AC:$AC,Sheet1!S71_ItemType,$AD:$AD)","v":0},{"$f":"SUMIFS(Sheet1!S71_OriginalBudAmnt,Sheet1!S71_SubMunicipalVoteNo,$AC:$AC,Sheet1!S71_ItemType,$AD:$AD)","v":0},{"$f":"SUMIFS(Sheet1!S71_AdjustmentBudAmnt,Sheet1!S71_SubMunicipalVoteNo,$AC:$AC,Sheet1!S71_ItemType,$AD:$AD)","v":0},{"$f":"SUMIFS(Sheet1!S71_AdjustmentBudAmnt,Sheet1!S71_SubMunicipalVoteNo,$AC:$AC,Sheet1!S71_ItemType,$AD:$AD)","v":0},{"$f":"SUMIFS(Sheet1!S71_ASBudgetAmount,Sheet1!S71_SubMunicipalVoteNo,$AC:$AC,Sheet1!S71_ItemType,$AD:$AD)","v":0},{"$f":"SUMIFS(Sheet1!S71_OY1BudgetAmount,Sheet1!S71_SubMunicipalVoteNo,$AC:$AC,Sheet1!S71_ItemType,$AD:$AD)","v":0},{"$f":"SUMIFS(Sheet1!S71_OY2BudgetAmount,Sheet1!S71_SubMunicipalVoteNo,$AC:$AC,Sheet1!S71_ItemType,$AD:$AD)","v":0},null,null,null,null,null,null,null,null,null,null,null,null,null,null,null,null,null,1210,"IE"]
["Vote 13 - Housing",null,{"$f":"SUM(C306:C315)","v":1157637},1261582,1284824,1458435,1378830,1378830,1545923,1513277,1585109]
["13.1 - Housing",null,{"$f":"SUMIFS(Sheet1!S71_PPPYearAmount,Sheet1!S71_SubMunicipalVoteNo,$AC:$AC,Sheet1!S71_ItemType,$AD:$AD)","v":1157637},{"$f":"SUMIFS(Sheet1!S71_PPYearAmount,Sheet1!S71_SubMunicipalVoteNo,$AC:$AC,Sheet1!S71_ItemType,$AD:$AD)","v":1261582},{"$f":"SUMIFS(Sheet1!S71_PYearAmount,Sheet1!S71_SubMunicipalVoteNo,$AC:$AC,Sheet1!S71_ItemType,$AD:$AD)","v":1284824},{"$f":"SUMIFS(Sheet1!S71_OriginalBudAmnt,Sheet1!S71_SubMunicipalVoteNo,$AC:$AC,Sheet1!S71_ItemType,$AD:$AD)","v":1458435},{"$f":"SUMIFS(Sheet1!S71_AdjustmentBudAmnt,Sheet1!S71_SubMunicipalVoteNo,$AC:$AC,Sheet1!S71_ItemType,$AD:$AD)","v":1378830},{"$f":"SUMIFS(Sheet1!S71_AdjustmentBudAmnt,Sheet1!S71_SubMunicipalVoteNo,$AC:$AC,Sheet1!S71_ItemType,$AD:$AD)","v":1378830},{"$f":"SUMIFS(Sheet1!S71_ASBudgetAmount,Sheet1!S71_SubMunicipalVoteNo,$AC:$AC,Sheet1!S71_ItemType,$AD:$AD)","v":1545923},{"$f":"SUMIFS(Sheet1!S71_OY1BudgetAmount,Sheet1!S71_SubMunicipalVoteNo,$AC:$AC,Sheet1!S71_ItemType,$AD:$AD)","v":1513277},{"$f":"SUMIFS(Sheet1!S71_OY2BudgetAmount,Sheet1!S71_SubMunicipalVoteNo,$AC:$AC,Sheet1!S71_ItemType,$AD:$AD)","v":1585109},null,null,null,null,null,null,null,null,null,null,null,null,null,null,null,null,null,131,"IE"]
["13.2 - [Name of sub-vote]",null,{"$f":"SUMIFS(Sheet1!S71_PPPYearAmount,Sheet1!S71_SubMunicipalVoteNo,$AC:$AC,Sheet1!S71_ItemType,$AD:$AD)","v":0},{"$f":"SUMIFS(Sheet1!S71_PPYearAmount,Sheet1!S71_SubMunicipalVoteNo,$AC:$AC,Sheet1!S71_ItemType,$AD:$AD)","v":0},{"$f":"SUMIFS(Sheet1!S71_PYearAmount,Sheet1!S71_SubMunicipalVoteNo,$AC:$AC,Sheet1!S71_ItemType,$AD:$AD)","v":0},{"$f":"SUMIFS(Sheet1!S71_OriginalBudAmnt,Sheet1!S71_SubMunicipalVoteNo,$AC:$AC,Sheet1!S71_ItemType,$AD:$AD)","v":0},{"$f":"SUMIFS(Sheet1!S71_AdjustmentBudAmnt,Sheet1!S71_SubMunicipalVoteNo,$AC:$AC,Sheet1!S71_ItemType,$AD:$AD)","v":0},{"$f":"SUMIFS(Sheet1!S71_AdjustmentBudAmnt,Sheet1!S71_SubMunicipalVoteNo,$AC:$AC,Sheet1!S71_ItemType,$AD:$AD)","v":0},{"$f":"SUMIFS(Sheet1!S71_ASBudgetAmount,Sheet1!S71_SubMunicipalVoteNo,$AC:$AC,Sheet1!S71_ItemType,$AD:$AD)","v":0},{"$f":"SUMIFS(Sheet1!S71_OY1BudgetAmount,Sheet1!S71_SubMunicipalVoteNo,$AC:$AC,Sheet1!S71_ItemType,$AD:$AD)","v":0},{"$f":"SUMIFS(Sheet1!S71_OY2BudgetAmount,Sheet1!S71_SubMunicipalVoteNo,$AC:$AC,Sheet1!S71_ItemType,$AD:$AD)","v":0},null,null,null,null,null,null,null,null,null,null,null,null,null,null,null,null,null,132,"IE"]
["13.3 - [Name of sub-vote]",null,{"$f":"SUMIFS(Sheet1!S71_PPPYearAmount,Sheet1!S71_SubMunicipalVoteNo,$AC:$AC,Sheet1!S71_ItemType,$AD:$AD)","v":0},{"$f":"SUMIFS(Sheet1!S71_PPYearAmount,Sheet1!S71_SubMunicipalVoteNo,$AC:$AC,Sheet1!S71_ItemType,$AD:$AD)","v":0},{"$f":"SUMIFS(Sheet1!S71_PYearAmount,Sheet1!S71_SubMunicipalVoteNo,$AC:$AC,Sheet1!S71_ItemType,$AD:$AD)","v":0},{"$f":"SUMIFS(Sheet1!S71_OriginalBudAmnt,Sheet1!S71_SubMunicipalVoteNo,$AC:$AC,Sheet1!S71_ItemType,$AD:$AD)","v":0},{"$f":"SUMIFS(Sheet1!S71_AdjustmentBudAmnt,Sheet1!S71_SubMunicipalVoteNo,$AC:$AC,Sheet1!S71_ItemType,$AD:$AD)","v":0},{"$f":"SUMIFS(Sheet1!S71_AdjustmentBudAmnt,Sheet1!S71_SubMunicipalVoteNo,$AC:$AC,Sheet1!S71_ItemType,$AD:$AD)","v":0},{"$f":"SUMIFS(Sheet1!S71_ASBudgetAmount,Sheet1!S71_SubMunicipalVoteNo,$AC:$AC,Sheet1!S71_ItemType,$AD:$AD)","v":0},{"$f":"SUMIFS(Sheet1!S71_OY1BudgetAmount,Sheet1!S71_SubMunicipalVoteNo,$AC:$AC,Sheet1!S71_ItemType,$AD:$AD)","v":0},{"$f":"SUMIFS(Sheet1!S71_OY2BudgetAmount,Sheet1!S71_SubMunicipalVoteNo,$AC:$AC,Sheet1!S71_ItemType,$AD:$AD)","v":0},null,null,null,null,null,null,null,null,null,null,null,null,null,null,null,null,null,133,"IE"]
["13.4 - [Name of sub-vote]",null,{"$f":"SUMIFS(Sheet1!S71_PPPYearAmount,Sheet1!S71_SubMunicipalVoteNo,$AC:$AC,Sheet1!S71_ItemType,$AD:$AD)","v":0},{"$f":"SUMIFS(Sheet1!S71_PPYearAmount,Sheet1!S71_SubMunicipalVoteNo,$AC:$AC,Sheet1!S71_ItemType,$AD:$AD)","v":0},{"$f":"SUMIFS(Sheet1!S71_PYearAmount,Sheet1!S71_SubMunicipalVoteNo,$AC:$AC,Sheet1!S71_ItemType,$AD:$AD)","v":0},{"$f":"SUMIFS(Sheet1!S71_OriginalBudAmnt,Sheet1!S71_SubMunicipalVoteNo,$AC:$AC,Sheet1!S71_ItemType,$AD:$AD)","v":0},{"$f":"SUMIFS(Sheet1!S71_AdjustmentBudAmnt,Sheet1!S71_SubMunicipalVoteNo,$AC:$AC,Sheet1!S71_ItemType,$AD:$AD)","v":0},{"$f":"SUMIFS(Sheet1!S71_AdjustmentBudAmnt,Sheet1!S71_SubMunicipalVoteNo,$AC:$AC,Sheet1!S71_ItemType,$AD:$AD)","v":0},{"$f":"SUMIFS(Sheet1!S71_ASBudgetAmount,Sheet1!S71_SubMunicipalVoteNo,$AC:$AC,Sheet1!S71_ItemType,$AD:$AD)","v":0},{"$f":"SUMIFS(Sheet1!S71_OY1BudgetAmount,Sheet1!S71_SubMunicipalVoteNo,$AC:$AC,Sheet1!S71_ItemType,$AD:$AD)","v":0},{"$f":"SUMIFS(Sheet1!S71_OY2BudgetAmount,Sheet1!S71_SubMunicipalVoteNo,$AC:$AC,Sheet1!S71_ItemType,$AD:$AD)","v":0},null,null,null,null,null,null,null,null,null,null,null,null,null,null,null,null,null,134,"IE"]
["13.5 - [Name of sub-vote]",null,{"$f":"SUMIFS(Sheet1!S71_PPPYearAmount,Sheet1!S71_SubMunicipalVoteNo,$AC:$AC,Sheet1!S71_ItemType,$AD:$AD)","v":0},{"$f":"SUMIFS(Sheet1!S71_PPYearAmount,Sheet1!S71_SubMunicipalVoteNo,$AC:$AC,Sheet1!S71_ItemType,$AD:$AD)","v":0},{"$f":"SUMIFS(Sheet1!S71_PYearAmount,Sheet1!S71_SubMunicipalVoteNo,$AC:$AC,Sheet1!S71_ItemType,$AD:$AD)","v":0},{"$f":"SUMIFS(Sheet1!S71_OriginalBudAmnt,Sheet1!S71_SubMunicipalVoteNo,$AC:$AC,Sheet1!S71_ItemType,$AD:$AD)","v":0},{"$f":"SUMIFS(Sheet1!S71_AdjustmentBudAmnt,Sheet1!S71_SubMunicipalVoteNo,$AC:$AC,Sheet1!S71_ItemType,$AD:$AD)","v":0},{"$f":"SUMIFS(Sheet1!S71_AdjustmentBudAmnt,Sheet1!S71_SubMunicipalVoteNo,$AC:$AC,Sheet1!S71_ItemType,$AD:$AD)","v":0},{"$f":"SUMIFS(Sheet1!S71_ASBudgetAmount,Sheet1!S71_SubMunicipalVoteNo,$AC:$AC,Sheet1!S71_ItemType,$AD:$AD)","v":0},{"$f":"SUMIFS(Sheet1!S71_OY1BudgetAmount,Sheet1!S71_SubMunicipalVoteNo,$AC:$AC,Sheet1!S71_ItemType,$AD:$AD)","v":0},{"$f":"SUMIFS(Sheet1!S71_OY2BudgetAmount,Sheet1!S71_SubMunicipalVoteNo,$AC:$AC,Sheet1!S71_ItemType,$AD:$AD)","v":0},null,null,null,null,null,null,null,null,null,null,null,null,null,null,null,null,null,135,"IE"]
["13.6 - [Name of sub-vote]",null,{"$f":"SUMIFS(Sheet1!S71_PPPYearAmount,Sheet1!S71_SubMunicipalVoteNo,$AC:$AC,Sheet1!S71_ItemType,$AD:$AD)","v":0},{"$f":"SUMIFS(Sheet1!S71_PPYearAmount,Sheet1!S71_SubMunicipalVoteNo,$AC:$AC,Sheet1!S71_ItemType,$AD:$AD)","v":0},{"$f":"SUMIFS(Sheet1!S71_PYearAmount,Sheet1!S71_SubMunicipalVoteNo,$AC:$AC,Sheet1!S71_ItemType,$AD:$AD)","v":0},{"$f":"SUMIFS(Sheet1!S71_OriginalBudAmnt,Sheet1!S71_SubMunicipalVoteNo,$AC:$AC,Sheet1!S71_ItemType,$AD:$AD)","v":0},{"$f":"SUMIFS(Sheet1!S71_AdjustmentBudAmnt,Sheet1!S71_SubMunicipalVoteNo,$AC:$AC,Sheet1!S71_ItemType,$AD:$AD)","v":0},{"$f":"SUMIFS(Sheet1!S71_AdjustmentBudAmnt,Sheet1!S71_SubMunicipalVoteNo,$AC:$AC,Sheet1!S71_ItemType,$AD:$AD)","v":0},{"$f":"SUMIFS(Sheet1!S71_ASBudgetAmount,Sheet1!S71_SubMunicipalVoteNo,$AC:$AC,Sheet1!S71_ItemType,$AD:$AD)","v":0},{"$f":"SUMIFS(Sheet1!S71_OY1BudgetAmount,Sheet1!S71_SubMunicipalVoteNo,$AC:$AC,Sheet1!S71_ItemType,$AD:$AD)","v":0},{"$f":"SUMIFS(Sheet1!S71_OY2BudgetAmount,Sheet1!S71_SubMunicipalVoteNo,$AC:$AC,Sheet1!S71_ItemType,$AD:$AD)","v":0},null,null,null,null,null,null,null,null,null,null,null,null,null,null,null,null,null,136,"IE"]
["13.7 - [Name of sub-vote]",null,{"$f":"SUMIFS(Sheet1!S71_PPPYearAmount,Sheet1!S71_SubMunicipalVoteNo,$AC:$AC,Sheet1!S71_ItemType,$AD:$AD)","v":0},{"$f":"SUMIFS(Sheet1!S71_PPYearAmount,Sheet1!S71_SubMunicipalVoteNo,$AC:$AC,Sheet1!S71_ItemType,$AD:$AD)","v":0},{"$f":"SUMIFS(Sheet1!S71_PYearAmount,Sheet1!S71_SubMunicipalVoteNo,$AC:$AC,Sheet1!S71_ItemType,$AD:$AD)","v":0},{"$f":"SUMIFS(Sheet1!S71_OriginalBudAmnt,Sheet1!S71_SubMunicipalVoteNo,$AC:$AC,Sheet1!S71_ItemType,$AD:$AD)","v":0},{"$f":"SUMIFS(Sheet1!S71_AdjustmentBudAmnt,Sheet1!S71_SubMunicipalVoteNo,$AC:$AC,Sheet1!S71_ItemType,$AD:$AD)","v":0},{"$f":"SUMIFS(Sheet1!S71_AdjustmentBudAmnt,Sheet1!S71_SubMunicipalVoteNo,$AC:$AC,Sheet1!S71_ItemType,$AD:$AD)","v":0},{"$f":"SUMIFS(Sheet1!S71_ASBudgetAmount,Sheet1!S71_SubMunicipalVoteNo,$AC:$AC,Sheet1!S71_ItemType,$AD:$AD)","v":0},{"$f":"SUMIFS(Sheet1!S71_OY1BudgetAmount,Sheet1!S71_SubMunicipalVoteNo,$AC:$AC,Sheet1!S71_ItemType,$AD:$AD)","v":0},{"$f":"SUMIFS(Sheet1!S71_OY2BudgetAmount,Sheet1!S71_SubMunicipalVoteNo,$AC:$AC,Sheet1!S71_ItemType,$AD:$AD)","v":0},null,null,null,null,null,null,null,null,null,null,null,null,null,null,null,null,null,137,"IE"]
["13.8 - [Name of sub-vote]",null,{"$f":"SUMIFS(Sheet1!S71_PPPYearAmount,Sheet1!S71_SubMunicipalVoteNo,$AC:$AC,Sheet1!S71_ItemType,$AD:$AD)","v":0},{"$f":"SUMIFS(Sheet1!S71_PPYearAmount,Sheet1!S71_SubMunicipalVoteNo,$AC:$AC,Sheet1!S71_ItemType,$AD:$AD)","v":0},{"$f":"SUMIFS(Sheet1!S71_PYearAmount,Sheet1!S71_SubMunicipalVoteNo,$AC:$AC,Sheet1!S71_ItemType,$AD:$AD)","v":0},{"$f":"SUMIFS(Sheet1!S71_OriginalBudAmnt,Sheet1!S71_SubMunicipalVoteNo,$AC:$AC,Sheet1!S71_ItemType,$AD:$AD)","v":0},{"$f":"SUMIFS(Sheet1!S71_AdjustmentBudAmnt,Sheet1!S71_SubMunicipalVoteNo,$AC:$AC,Sheet1!S71_ItemType,$AD:$AD)","v":0},{"$f":"SUMIFS(Sheet1!S71_AdjustmentBudAmnt,Sheet1!S71_SubMunicipalVoteNo,$AC:$AC,Sheet1!S71_ItemType,$AD:$AD)","v":0},{"$f":"SUMIFS(Sheet1!S71_ASBudgetAmount,Sheet1!S71_SubMunicipalVoteNo,$AC:$AC,Sheet1!S71_ItemType,$AD:$AD)","v":0},{"$f":"SUMIFS(Sheet1!S71_OY1BudgetAmount,Sheet1!S71_SubMunicipalVoteNo,$AC:$AC,Sheet1!S71_ItemType,$AD:$AD)","v":0},{"$f":"SUMIFS(Sheet1!S71_OY2BudgetAmount,Sheet1!S71_SubMunicipalVoteNo,$AC:$AC,Sheet1!S71_ItemType,$AD:$AD)","v":0},null,null,null,null,null,null,null,null,null,null,null,null,null,null,null,null,null,138,"IE"]
["13.9 - [Name of sub-vote]",null,{"$f":"SUMIFS(Sheet1!S71_PPPYearAmount,Sheet1!S71_SubMunicipalVoteNo,$AC:$AC,Sheet1!S71_ItemType,$AD:$AD)","v":0},{"$f":"SUMIFS(Sheet1!S71_PPYearAmount,Sheet1!S71_SubMunicipalVoteNo,$AC:$AC,Sheet1!S71_ItemType,$AD:$AD)","v":0},{"$f":"SUMIFS(Sheet1!S71_PYearAmount,Sheet1!S71_SubMunicipalVoteNo,$AC:$AC,Sheet1!S71_ItemType,$AD:$AD)","v":0},{"$f":"SUMIFS(Sheet1!S71_OriginalBudAmnt,Sheet1!S71_SubMunicipalVoteNo,$AC:$AC,Sheet1!S71_ItemType,$AD:$AD)","v":0},{"$f":"SUMIFS(Sheet1!S71_AdjustmentBudAmnt,Sheet1!S71_SubMunicipalVoteNo,$AC:$AC,Sheet1!S71_ItemType,$AD:$AD)","v":0},{"$f":"SUMIFS(Sheet1!S71_AdjustmentBudAmnt,Sheet1!S71_SubMunicipalVoteNo,$AC:$AC,Sheet1!S71_ItemType,$AD:$AD)","v":0},{"$f":"SUMIFS(Sheet1!S71_ASBudgetAmount,Sheet1!S71_SubMunicipalVoteNo,$AC:$AC,Sheet1!S71_ItemType,$AD:$AD)","v":0},{"$f":"SUMIFS(Sheet1!S71_OY1BudgetAmount,Sheet1!S71_SubMunicipalVoteNo,$AC:$AC,Sheet1!S71_ItemType,$AD:$AD)","v":0},{"$f":"SUMIFS(Sheet1!S71_OY2BudgetAmount,Sheet1!S71_SubMunicipalVoteNo,$AC:$AC,Sheet1!S71_ItemType,$AD:$AD)","v":0},null,null,null,null,null,null,null,null,null,null,null,null,null,null,null,null,null,139,"IE"]
["13.10 - [Name of sub-vote]",null,{"$f":"SUMIFS(Sheet1!S71_PPPYearAmount,Sheet1!S71_SubMunicipalVoteNo,$AC:$AC,Sheet1!S71_ItemType,$AD:$AD)","v":0},{"$f":"SUMIFS(Sheet1!S71_PPYearAmount,Sheet1!S71_SubMunicipalVoteNo,$AC:$AC,Sheet1!S71_ItemType,$AD:$AD)","v":0},{"$f":"SUMIFS(Sheet1!S71_PYearAmount,Sheet1!S71_SubMunicipalVoteNo,$AC:$AC,Sheet1!S71_ItemType,$AD:$AD)","v":0},{"$f":"SUMIFS(Sheet1!S71_OriginalBudAmnt,Sheet1!S71_SubMunicipalVoteNo,$AC:$AC,Sheet1!S71_ItemType,$AD:$AD)","v":0},{"$f":"SUMIFS(Sheet1!S71_AdjustmentBudAmnt,Sheet1!S71_SubMunicipalVoteNo,$AC:$AC,Sheet1!S71_ItemType,$AD:$AD)","v":0},{"$f":"SUMIFS(Sheet1!S71_AdjustmentBudAmnt,Sheet1!S71_SubMunicipalVoteNo,$AC:$AC,Sheet1!S71_ItemType,$AD:$AD)","v":0},{"$f":"SUMIFS(Sheet1!S71_ASBudgetAmount,Sheet1!S71_SubMunicipalVoteNo,$AC:$AC,Sheet1!S71_ItemType,$AD:$AD)","v":0},{"$f":"SUMIFS(Sheet1!S71_OY1BudgetAmount,Sheet1!S71_SubMunicipalVoteNo,$AC:$AC,Sheet1!S71_ItemType,$AD:$AD)","v":0},{"$f":"SUMIFS(Sheet1!S71_OY2BudgetAmount,Sheet1!S71_SubMunicipalVoteNo,$AC:$AC,Sheet1!S71_ItemType,$AD:$AD)","v":0},null,null,null,null,null,null,null,null,null,null,null,null,null,null,null,null,null,1310,"IE"]
["Vote 14 - Finance & Administration 2",null,{"$f":"SUM(C317:C326)","v":33344606},37244180,42193117,57336460,50919420,50919420,62515329,65421079,68353918]
["14.1 - Security Services",null,{"$f":"SUMIFS(Sheet1!S71_PPPYearAmount,Sheet1!S71_SubMunicipalVoteNo,$AC:$AC,Sheet1!S71_ItemType,$AD:$AD)","v":14019870},{"$f":"SUMIFS(Sheet1!S71_PPYearAmount,Sheet1!S71_SubMunicipalVoteNo,$AC:$AC,Sheet1!S71_ItemType,$AD:$AD)","v":16062294},{"$f":"SUMIFS(Sheet1!S71_PYearAmount,Sheet1!S71_SubMunicipalVoteNo,$AC:$AC,Sheet1!S71_ItemType,$AD:$AD)","v":16623389},{"$f":"SUMIFS(Sheet1!S71_OriginalBudAmnt,Sheet1!S71_SubMunicipalVoteNo,$AC:$AC,Sheet1!S71_ItemType,$AD:$AD)","v":18483093},{"$f":"SUMIFS(Sheet1!S71_AdjustmentBudAmnt,Sheet1!S71_SubMunicipalVoteNo,$AC:$AC,Sheet1!S71_ItemType,$AD:$AD)","v":17129385},{"$f":"SUMIFS(Sheet1!S71_AdjustmentBudAmnt,Sheet1!S71_SubMunicipalVoteNo,$AC:$AC,Sheet1!S71_ItemType,$AD:$AD)","v":17129385},{"$f":"SUMIFS(Sheet1!S71_ASBudgetAmount,Sheet1!S71_SubMunicipalVoteNo,$AC:$AC,Sheet1!S71_ItemType,$AD:$AD)","v":19585560},{"$f":"SUMIFS(Sheet1!S71_OY1BudgetAmount,Sheet1!S71_SubMunicipalVoteNo,$AC:$AC,Sheet1!S71_ItemType,$AD:$AD)","v":20662151},{"$f":"SUMIFS(Sheet1!S71_OY2BudgetAmount,Sheet1!S71_SubMunicipalVoteNo,$AC:$AC,Sheet1!S71_ItemType,$AD:$AD)","v":21654976},null,null,null,null,null,null,null,null,null,null,null,null,null,null,null,null,null,141,"IE"]
["14.2 - Administrative and Corporate Support",null,{"$f":"SUMIFS(Sheet1!S71_PPPYearAmount,Sheet1!S71_SubMunicipalVoteNo,$AC:$AC,Sheet1!S71_ItemType,$AD:$AD)","v":13253096},{"$f":"SUMIFS(Sheet1!S71_PPYearAmount,Sheet1!S71_SubMunicipalVoteNo,$AC:$AC,Sheet1!S71_ItemType,$AD:$AD)","v":14849673},{"$f":"SUMIFS(Sheet1!S71_PYearAmount,Sheet1!S71_SubMunicipalVoteNo,$AC:$AC,Sheet1!S71_ItemType,$AD:$AD)","v":17239175},{"$f":"SUMIFS(Sheet1!S71_OriginalBudAmnt,Sheet1!S71_SubMunicipalVoteNo,$AC:$AC,Sheet1!S71_ItemType,$AD:$AD)","v":24868173},{"$f":"SUMIFS(Sheet1!S71_AdjustmentBudAmnt,Sheet1!S71_SubMunicipalVoteNo,$AC:$AC,Sheet1!S71_ItemType,$AD:$AD)","v":16672909},{"$f":"SUMIFS(Sheet1!S71_AdjustmentBudAmnt,Sheet1!S71_SubMunicipalVoteNo,$AC:$AC,Sheet1!S71_ItemType,$AD:$AD)","v":16672909},{"$f":"SUMIFS(Sheet1!S71_ASBudgetAmount,Sheet1!S71_SubMunicipalVoteNo,$AC:$AC,Sheet1!S71_ItemType,$AD:$AD)","v":26616214},{"$f":"SUMIFS(Sheet1!S71_OY1BudgetAmount,Sheet1!S71_SubMunicipalVoteNo,$AC:$AC,Sheet1!S71_ItemType,$AD:$AD)","v":27958108},{"$f":"SUMIFS(Sheet1!S71_OY2BudgetAmount,Sheet1!S71_SubMunicipalVoteNo,$AC:$AC,Sheet1!S71_ItemType,$AD:$AD)","v":29447228},null,null,null,null,null,null,null,null,null,null,null,null,null,null,null,null,null,142,"IE"]
["14.3 - Information Technology",null,{"$f":"SUMIFS(Sheet1!S71_PPPYearAmount,Sheet1!S71_SubMunicipalVoteNo,$AC:$AC,Sheet1!S71_ItemType,$AD:$AD)","v":6071640},{"$f":"SUMIFS(Sheet1!S71_PPYearAmount,Sheet1!S71_SubMunicipalVoteNo,$AC:$AC,Sheet1!S71_ItemType,$AD:$AD)","v":6332213},{"$f":"SUMIFS(Sheet1!S71_PYearAmount,Sheet1!S71_SubMunicipalVoteNo,$AC:$AC,Sheet1!S71_ItemType,$AD:$AD)","v":8330553},{"$f":"SUMIFS(Sheet1!S71_OriginalBudAmnt,Sheet1!S71_SubMunicipalVoteNo,$AC:$AC,Sheet1!S71_ItemType,$AD:$AD)","v":13985194},{"$f":"SUMIFS(Sheet1!S71_AdjustmentBudAmnt,Sheet1!S71_SubMunicipalVoteNo,$AC:$AC,Sheet1!S71_ItemType,$AD:$AD)","v":17117126},{"$f":"SUMIFS(Sheet1!S71_AdjustmentBudAmnt,Sheet1!S71_SubMunicipalVoteNo,$AC:$AC,Sheet1!S71_ItemType,$AD:$AD)","v":17117126},{"$f":"SUMIFS(Sheet1!S71_ASBudgetAmount,Sheet1!S71_SubMunicipalVoteNo,$AC:$AC,Sheet1!S71_ItemType,$AD:$AD)","v":16313555},{"$f":"SUMIFS(Sheet1!S71_OY1BudgetAmount,Sheet1!S71_SubMunicipalVoteNo,$AC:$AC,Sheet1!S71_ItemType,$AD:$AD)","v":16800820},{"$f":"SUMIFS(Sheet1!S71_OY2BudgetAmount,Sheet1!S71_SubMunicipalVoteNo,$AC:$AC,Sheet1!S71_ItemType,$AD:$AD)","v":17251714},null,null,null,null,null,null,null,null,null,null,null,null,null,null,null,null,null,143,"IE"]
["14.4 - [Name of sub-vote]",null,{"$f":"SUMIFS(Sheet1!S71_PPPYearAmount,Sheet1!S71_SubMunicipalVoteNo,$AC:$AC,Sheet1!S71_ItemType,$AD:$AD)","v":0},{"$f":"SUMIFS(Sheet1!S71_PPYearAmount,Sheet1!S71_SubMunicipalVoteNo,$AC:$AC,Sheet1!S71_ItemType,$AD:$AD)","v":0},{"$f":"SUMIFS(Sheet1!S71_PYearAmount,Sheet1!S71_SubMunicipalVoteNo,$AC:$AC,Sheet1!S71_ItemType,$AD:$AD)","v":0},{"$f":"SUMIFS(Sheet1!S71_OriginalBudAmnt,Sheet1!S71_SubMunicipalVoteNo,$AC:$AC,Sheet1!S71_ItemType,$AD:$AD)","v":0},{"$f":"SUMIFS(Sheet1!S71_AdjustmentBudAmnt,Sheet1!S71_SubMunicipalVoteNo,$AC:$AC,Sheet1!S71_ItemType,$AD:$AD)","v":0},{"$f":"SUMIFS(Sheet1!S71_AdjustmentBudAmnt,Sheet1!S71_SubMunicipalVoteNo,$AC:$AC,Sheet1!S71_ItemType,$AD:$AD)","v":0},{"$f":"SUMIFS(Sheet1!S71_ASBudgetAmount,Sheet1!S71_SubMunicipalVoteNo,$AC:$AC,Sheet1!S71_ItemType,$AD:$AD)","v":0},{"$f":"SUMIFS(Sheet1!S71_OY1BudgetAmount,Sheet1!S71_SubMunicipalVoteNo,$AC:$AC,Sheet1!S71_ItemType,$AD:$AD)","v":0},{"$f":"SUMIFS(Sheet1!S71_OY2BudgetAmount,Sheet1!S71_SubMunicipalVoteNo,$AC:$AC,Sheet1!S71_ItemType,$AD:$AD)","v":0},null,null,null,null,null,null,null,null,null,null,null,null,null,null,null,null,null,144,"IE"]
["14.5 - [Name of sub-vote]",null,{"$f":"SUMIFS(Sheet1!S71_PPPYearAmount,Sheet1!S71_SubMunicipalVoteNo,$AC:$AC,Sheet1!S71_ItemType,$AD:$AD)","v":0},{"$f":"SUMIFS(Sheet1!S71_PPYearAmount,Sheet1!S71_SubMunicipalVoteNo,$AC:$AC,Sheet1!S71_ItemType,$AD:$AD)","v":0},{"$f":"SUMIFS(Sheet1!S71_PYearAmount,Sheet1!S71_SubMunicipalVoteNo,$AC:$AC,Sheet1!S71_ItemType,$AD:$AD)","v":0},{"$f":"SUMIFS(Sheet1!S71_OriginalBudAmnt,Sheet1!S71_SubMunicipalVoteNo,$AC:$AC,Sheet1!S71_ItemType,$AD:$AD)","v":0},{"$f":"SUMIFS(Sheet1!S71_AdjustmentBudAmnt,Sheet1!S71_SubMunicipalVoteNo,$AC:$AC,Sheet1!S71_ItemType,$AD:$AD)","v":0},{"$f":"SUMIFS(Sheet1!S71_AdjustmentBudAmnt,Sheet1!S71_SubMunicipalVoteNo,$AC:$AC,Sheet1!S71_ItemType,$AD:$AD)","v":0},{"$f":"SUMIFS(Sheet1!S71_ASBudgetAmount,Sheet1!S71_SubMunicipalVoteNo,$AC:$AC,Sheet1!S71_ItemType,$AD:$AD)","v":0},{"$f":"SUMIFS(Sheet1!S71_OY1BudgetAmount,Sheet1!S71_SubMunicipalVoteNo,$AC:$AC,Sheet1!S71_ItemType,$AD:$AD)","v":0},{"$f":"SUMIFS(Sheet1!S71_OY2BudgetAmount,Sheet1!S71_SubMunicipalVoteNo,$AC:$AC,Sheet1!S71_ItemType,$AD:$AD)","v":0},null,null,null,null,null,null,null,null,null,null,null,null,null,null,null,null,null,145,"IE"]
["14.6 - [Name of sub-vote]",null,{"$f":"SUMIFS(Sheet1!S71_PPPYearAmount,Sheet1!S71_SubMunicipalVoteNo,$AC:$AC,Sheet1!S71_ItemType,$AD:$AD)","v":0},{"$f":"SUMIFS(Sheet1!S71_PPYearAmount,Sheet1!S71_SubMunicipalVoteNo,$AC:$AC,Sheet1!S71_ItemType,$AD:$AD)","v":0},{"$f":"SUMIFS(Sheet1!S71_PYearAmount,Sheet1!S71_SubMunicipalVoteNo,$AC:$AC,Sheet1!S71_ItemType,$AD:$AD)","v":0},{"$f":"SUMIFS(Sheet1!S71_OriginalBudAmnt,Sheet1!S71_SubMunicipalVoteNo,$AC:$AC,Sheet1!S71_ItemType,$AD:$AD)","v":0},{"$f":"SUMIFS(Sheet1!S71_AdjustmentBudAmnt,Sheet1!S71_SubMunicipalVoteNo,$AC:$AC,Sheet1!S71_ItemType,$AD:$AD)","v":0},{"$f":"SUMIFS(Sheet1!S71_AdjustmentBudAmnt,Sheet1!S71_SubMunicipalVoteNo,$AC:$AC,Sheet1!S71_ItemType,$AD:$AD)","v":0},{"$f":"SUMIFS(Sheet1!S71_ASBudgetAmount,Sheet1!S71_SubMunicipalVoteNo,$AC:$AC,Sheet1!S71_ItemType,$AD:$AD)","v":0},{"$f":"SUMIFS(Sheet1!S71_OY1BudgetAmount,Sheet1!S71_SubMunicipalVoteNo,$AC:$AC,Sheet1!S71_ItemType,$AD:$AD)","v":0},{"$f":"SUMIFS(Sheet1!S71_OY2BudgetAmount,Sheet1!S71_SubMunicipalVoteNo,$AC:$AC,Sheet1!S71_ItemType,$AD:$AD)","v":0},null,null,null,null,null,null,null,null,null,null,null,null,null,null,null,null,null,146,"IE"]
["14.7 - [Name of sub-vote]",null,{"$f":"SUMIFS(Sheet1!S71_PPPYearAmount,Sheet1!S71_SubMunicipalVoteNo,$AC:$AC,Sheet1!S71_ItemType,$AD:$AD)","v":0},{"$f":"SUMIFS(Sheet1!S71_PPYearAmount,Sheet1!S71_SubMunicipalVoteNo,$AC:$AC,Sheet1!S71_ItemType,$AD:$AD)","v":0},{"$f":"SUMIFS(Sheet1!S71_PYearAmount,Sheet1!S71_SubMunicipalVoteNo,$AC:$AC,Sheet1!S71_ItemType,$AD:$AD)","v":0},{"$f":"SUMIFS(Sheet1!S71_OriginalBudAmnt,Sheet1!S71_SubMunicipalVoteNo,$AC:$AC,Sheet1!S71_ItemType,$AD:$AD)","v":0},{"$f":"SUMIFS(Sheet1!S71_AdjustmentBudAmnt,Sheet1!S71_SubMunicipalVoteNo,$AC:$AC,Sheet1!S71_ItemType,$AD:$AD)","v":0},{"$f":"SUMIFS(Sheet1!S71_AdjustmentBudAmnt,Sheet1!S71_SubMunicipalVoteNo,$AC:$AC,Sheet1!S71_ItemType,$AD:$AD)","v":0},{"$f":"SUMIFS(Sheet1!S71_ASBudgetAmount,Sheet1!S71_SubMunicipalVoteNo,$AC:$AC,Sheet1!S71_ItemType,$AD:$AD)","v":0},{"$f":"SUMIFS(Sheet1!S71_OY1BudgetAmount,Sheet1!S71_SubMunicipalVoteNo,$AC:$AC,Sheet1!S71_ItemType,$AD:$AD)","v":0},{"$f":"SUMIFS(Sheet1!S71_OY2BudgetAmount,Sheet1!S71_SubMunicipalVoteNo,$AC:$AC,Sheet1!S71_ItemType,$AD:$AD)","v":0},null,null,null,null,null,null,null,null,null,null,null,null,null,null,null,null,null,147,"IE"]
["14.8 - [Name of sub-vote]",null,{"$f":"SUMIFS(Sheet1!S71_PPPYearAmount,Sheet1!S71_SubMunicipalVoteNo,$AC:$AC,Sheet1!S71_ItemType,$AD:$AD)","v":0},{"$f":"SUMIFS(Sheet1!S71_PPYearAmount,Sheet1!S71_SubMunicipalVoteNo,$AC:$AC,Sheet1!S71_ItemType,$AD:$AD)","v":0},{"$f":"SUMIFS(Sheet1!S71_PYearAmount,Sheet1!S71_SubMunicipalVoteNo,$AC:$AC,Sheet1!S71_ItemType,$AD:$AD)","v":0},{"$f":"SUMIFS(Sheet1!S71_OriginalBudAmnt,Sheet1!S71_SubMunicipalVoteNo,$AC:$AC,Sheet1!S71_ItemType,$AD:$AD)","v":0},{"$f":"SUMIFS(Sheet1!S71_AdjustmentBudAmnt,Sheet1!S71_SubMunicipalVoteNo,$AC:$AC,Sheet1!S71_ItemType,$AD:$AD)","v":0},{"$f":"SUMIFS(Sheet1!S71_AdjustmentBudAmnt,Sheet1!S71_SubMunicipalVoteNo,$AC:$AC,Sheet1!S71_ItemType,$AD:$AD)","v":0},{"$f":"SUMIFS(Sheet1!S71_ASBudgetAmount,Sheet1!S71_SubMunicipalVoteNo,$AC:$AC,Sheet1!S71_ItemType,$AD:$AD)","v":0},{"$f":"SUMIFS(Sheet1!S71_OY1BudgetAmount,Sheet1!S71_SubMunicipalVoteNo,$AC:$AC,Sheet1!S71_ItemType,$AD:$AD)","v":0},{"$f":"SUMIFS(Sheet1!S71_OY2BudgetAmount,Sheet1!S71_SubMunicipalVoteNo,$AC:$AC,Sheet1!S71_ItemType,$AD:$AD)","v":0},null,null,null,null,null,null,null,null,null,null,null,null,null,null,null,null,null,148,"IE"]
["14.9 - [Name of sub-vote]",null,{"$f":"SUMIFS(Sheet1!S71_PPPYearAmount,Sheet1!S71_SubMunicipalVoteNo,$AC:$AC,Sheet1!S71_ItemType,$AD:$AD)","v":0},{"$f":"SUMIFS(Sheet1!S71_PPYearAmount,Sheet1!S71_SubMunicipalVoteNo,$AC:$AC,Sheet1!S71_ItemType,$AD:$AD)","v":0},{"$f":"SUMIFS(Sheet1!S71_PYearAmount,Sheet1!S71_SubMunicipalVoteNo,$AC:$AC,Sheet1!S71_ItemType,$AD:$AD)","v":0},{"$f":"SUMIFS(Sheet1!S71_OriginalBudAmnt,Sheet1!S71_SubMunicipalVoteNo,$AC:$AC,Sheet1!S71_ItemType,$AD:$AD)","v":0},{"$f":"SUMIFS(Sheet1!S71_AdjustmentBudAmnt,Sheet1!S71_SubMunicipalVoteNo,$AC:$AC,Sheet1!S71_ItemType,$AD:$AD)","v":0},{"$f":"SUMIFS(Sheet1!S71_AdjustmentBudAmnt,Sheet1!S71_SubMunicipalVoteNo,$AC:$AC,Sheet1!S71_ItemType,$AD:$AD)","v":0},{"$f":"SUMIFS(Sheet1!S71_ASBudgetAmount,Sheet1!S71_SubMunicipalVoteNo,$AC:$AC,Sheet1!S71_ItemType,$AD:$AD)","v":0},{"$f":"SUMIFS(Sheet1!S71_OY1BudgetAmount,Sheet1!S71_SubMunicipalVoteNo,$AC:$AC,Sheet1!S71_ItemType,$AD:$AD)","v":0},{"$f":"SUMIFS(Sheet1!S71_OY2BudgetAmount,Sheet1!S71_SubMunicipalVoteNo,$AC:$AC,Sheet1!S71_ItemType,$AD:$AD)","v":0},null,null,null,null,null,null,null,null,null,null,null,null,null,null,null,null,null,149,"IE"]
["14.10 - [Name of sub-vote]",null,{"$f":"SUMIFS(Sheet1!S71_PPPYearAmount,Sheet1!S71_SubMunicipalVoteNo,$AC:$AC,Sheet1!S71_ItemType,$AD:$AD)","v":0},{"$f":"SUMIFS(Sheet1!S71_PPYearAmount,Sheet1!S71_SubMunicipalVoteNo,$AC:$AC,Sheet1!S71_ItemType,$AD:$AD)","v":0},{"$f":"SUMIFS(Sheet1!S71_PYearAmount,Sheet1!S71_SubMunicipalVoteNo,$AC:$AC,Sheet1!S71_ItemType,$AD:$AD)","v":0},{"$f":"SUMIFS(Sheet1!S71_OriginalBudAmnt,Sheet1!S71_SubMunicipalVoteNo,$AC:$AC,Sheet1!S71_ItemType,$AD:$AD)","v":0},{"$f":"SUMIFS(Sheet1!S71_AdjustmentBudAmnt,Sheet1!S71_SubMunicipalVoteNo,$AC:$AC,Sheet1!S71_ItemType,$AD:$AD)","v":0},{"$f":"SUMIFS(Sheet1!S71_AdjustmentBudAmnt,Sheet1!S71_SubMunicipalVoteNo,$AC:$AC,Sheet1!S71_ItemType,$AD:$AD)","v":0},{"$f":"SUMIFS(Sheet1!S71_ASBudgetAmount,Sheet1!S71_SubMunicipalVoteNo,$AC:$AC,Sheet1!S71_ItemType,$AD:$AD)","v":0},{"$f":"SUMIFS(Sheet1!S71_OY1BudgetAmount,Sheet1!S71_SubMunicipalVoteNo,$AC:$AC,Sheet1!S71_ItemType,$AD:$AD)","v":0},{"$f":"SUMIFS(Sheet1!S71_OY2BudgetAmount,Sheet1!S71_SubMunicipalVoteNo,$AC:$AC,Sheet1!S71_ItemType,$AD:$AD)","v":0},null,null,null,null,null,null,null,null,null,null,null,null,null,null,null,null,null,1410,"IE"]
["Vote 15 - [NAME OF VOTE 15]",null,{"$f":"SUM(C328:C337)","v":0},0,0,0,0,0,0,0,0]
["15.1 - [Name of sub-vote]",null,{"$f":"SUMIFS(Sheet1!S71_PPPYearAmount,Sheet1!S71_SubMunicipalVoteNo,$AC:$AC,Sheet1!S71_ItemType,$AD:$AD)","v":0},{"$f":"SUMIFS(Sheet1!S71_PPYearAmount,Sheet1!S71_SubMunicipalVoteNo,$AC:$AC,Sheet1!S71_ItemType,$AD:$AD)","v":0},{"$f":"SUMIFS(Sheet1!S71_PYearAmount,Sheet1!S71_SubMunicipalVoteNo,$AC:$AC,Sheet1!S71_ItemType,$AD:$AD)","v":0},{"$f":"SUMIFS(Sheet1!S71_OriginalBudAmnt,Sheet1!S71_SubMunicipalVoteNo,$AC:$AC,Sheet1!S71_ItemType,$AD:$AD)","v":0},{"$f":"SUMIFS(Sheet1!S71_AdjustmentBudAmnt,Sheet1!S71_SubMunicipalVoteNo,$AC:$AC,Sheet1!S71_ItemType,$AD:$AD)","v":0},{"$f":"SUMIFS(Sheet1!S71_AdjustmentBudAmnt,Sheet1!S71_SubMunicipalVoteNo,$AC:$AC,Sheet1!S71_ItemType,$AD:$AD)","v":0},{"$f":"SUMIFS(Sheet1!S71_ASBudgetAmount,Sheet1!S71_SubMunicipalVoteNo,$AC:$AC,Sheet1!S71_ItemType,$AD:$AD)","v":0},{"$f":"SUMIFS(Sheet1!S71_OY1BudgetAmount,Sheet1!S71_SubMunicipalVoteNo,$AC:$AC,Sheet1!S71_ItemType,$AD:$AD)","v":0},{"$f":"SUMIFS(Sheet1!S71_OY2BudgetAmount,Sheet1!S71_SubMunicipalVoteNo,$AC:$AC,Sheet1!S71_ItemType,$AD:$AD)","v":0},null,null,null,null,null,null,null,null,null,null,null,null,null,null,null,null,null,151,"IE"]
["15.2 - [Name of sub-vote]",null,{"$f":"SUMIFS(Sheet1!S71_PPPYearAmount,Sheet1!S71_SubMunicipalVoteNo,$AC:$AC,Sheet1!S71_ItemType,$AD:$AD)","v":0},{"$f":"SUMIFS(Sheet1!S71_PPYearAmount,Sheet1!S71_SubMunicipalVoteNo,$AC:$AC,Sheet1!S71_ItemType,$AD:$AD)","v":0},{"$f":"SUMIFS(Sheet1!S71_PYearAmount,Sheet1!S71_SubMunicipalVoteNo,$AC:$AC,Sheet1!S71_ItemType,$AD:$AD)","v":0},{"$f":"SUMIFS(Sheet1!S71_OriginalBudAmnt,Sheet1!S71_SubMunicipalVoteNo,$AC:$AC,Sheet1!S71_ItemType,$AD:$AD)","v":0},{"$f":"SUMIFS(Sheet1!S71_AdjustmentBudAmnt,Sheet1!S71_SubMunicipalVoteNo,$AC:$AC,Sheet1!S71_ItemType,$AD:$AD)","v":0},{"$f":"SUMIFS(Sheet1!S71_AdjustmentBudAmnt,Sheet1!S71_SubMunicipalVoteNo,$AC:$AC,Sheet1!S71_ItemType,$AD:$AD)","v":0},{"$f":"SUMIFS(Sheet1!S71_ASBudgetAmount,Sheet1!S71_SubMunicipalVoteNo,$AC:$AC,Sheet1!S71_ItemType,$AD:$AD)","v":0},{"$f":"SUMIFS(Sheet1!S71_OY1BudgetAmount,Sheet1!S71_SubMunicipalVoteNo,$AC:$AC,Sheet1!S71_ItemType,$AD:$AD)","v":0},{"$f":"SUMIFS(Sheet1!S71_OY2BudgetAmount,Sheet1!S71_SubMunicipalVoteNo,$AC:$AC,Sheet1!S71_ItemType,$AD:$AD)","v":0},null,null,null,null,null,null,null,null,null,null,null,null,null,null,null,null,null,152,"IE"]
["15.3 - [Name of sub-vote]",null,{"$f":"SUMIFS(Sheet1!S71_PPPYearAmount,Sheet1!S71_SubMunicipalVoteNo,$AC:$AC,Sheet1!S71_ItemType,$AD:$AD)","v":0},{"$f":"SUMIFS(Sheet1!S71_PPYearAmount,Sheet1!S71_SubMunicipalVoteNo,$AC:$AC,Sheet1!S71_ItemType,$AD:$AD)","v":0},{"$f":"SUMIFS(Sheet1!S71_PYearAmount,Sheet1!S71_SubMunicipalVoteNo,$AC:$AC,Sheet1!S71_ItemType,$AD:$AD)","v":0},{"$f":"SUMIFS(Sheet1!S71_OriginalBudAmnt,Sheet1!S71_SubMunicipalVoteNo,$AC:$AC,Sheet1!S71_ItemType,$AD:$AD)","v":0},{"$f":"SUMIFS(Sheet1!S71_AdjustmentBudAmnt,Sheet1!S71_SubMunicipalVoteNo,$AC:$AC,Sheet1!S71_ItemType,$AD:$AD)","v":0},{"$f":"SUMIFS(Sheet1!S71_AdjustmentBudAmnt,Sheet1!S71_SubMunicipalVoteNo,$AC:$AC,Sheet1!S71_ItemType,$AD:$AD)","v":0},{"$f":"SUMIFS(Sheet1!S71_ASBudgetAmount,Sheet1!S71_SubMunicipalVoteNo,$AC:$AC,Sheet1!S71_ItemType,$AD:$AD)","v":0},{"$f":"SUMIFS(Sheet1!S71_OY1BudgetAmount,Sheet1!S71_SubMunicipalVoteNo,$AC:$AC,Sheet1!S71_ItemType,$AD:$AD)","v":0},{"$f":"SUMIFS(Sheet1!S71_OY2BudgetAmount,Sheet1!S71_SubMunicipalVoteNo,$AC:$AC,Sheet1!S71_ItemType,$AD:$AD)","v":0},null,null,null,null,null,null,null,null,null,null,null,null,null,null,null,null,null,153,"IE"]
["15.4 - [Name of sub-vote]",null,{"$f":"SUMIFS(Sheet1!S71_PPPYearAmount,Sheet1!S71_SubMunicipalVoteNo,$AC:$AC,Sheet1!S71_ItemType,$AD:$AD)","v":0},{"$f":"SUMIFS(Sheet1!S71_PPYearAmount,Sheet1!S71_SubMunicipalVoteNo,$AC:$AC,Sheet1!S71_ItemType,$AD:$AD)","v":0},{"$f":"SUMIFS(Sheet1!S71_PYearAmount,Sheet1!S71_SubMunicipalVoteNo,$AC:$AC,Sheet1!S71_ItemType,$AD:$AD)","v":0},{"$f":"SUMIFS(Sheet1!S71_OriginalBudAmnt,Sheet1!S71_SubMunicipalVoteNo,$AC:$AC,Sheet1!S71_ItemType,$AD:$AD)","v":0},{"$f":"SUMIFS(Sheet1!S71_AdjustmentBudAmnt,Sheet1!S71_SubMunicipalVoteNo,$AC:$AC,Sheet1!S71_ItemType,$AD:$AD)","v":0},{"$f":"SUMIFS(Sheet1!S71_AdjustmentBudAmnt,Sheet1!S71_SubMunicipalVoteNo,$AC:$AC,Sheet1!S71_ItemType,$AD:$AD)","v":0},{"$f":"SUMIFS(Sheet1!S71_ASBudgetAmount,Sheet1!S71_SubMunicipalVoteNo,$AC:$AC,Sheet1!S71_ItemType,$AD:$AD)","v":0},{"$f":"SUMIFS(Sheet1!S71_OY1BudgetAmount,Sheet1!S71_SubMunicipalVoteNo,$AC:$AC,Sheet1!S71_ItemType,$AD:$AD)","v":0},{"$f":"SUMIFS(Sheet1!S71_OY2BudgetAmount,Sheet1!S71_SubMunicipalVoteNo,$AC:$AC,Sheet1!S71_ItemType,$AD:$AD)","v":0},null,null,null,null,null,null,null,null,null,null,null,null,null,null,null,null,null,154,"IE"]
["15.5 - [Name of sub-vote]",null,{"$f":"SUMIFS(Sheet1!S71_PPPYearAmount,Sheet1!S71_SubMunicipalVoteNo,$AC:$AC,Sheet1!S71_ItemType,$AD:$AD)","v":0},{"$f":"SUMIFS(Sheet1!S71_PPYearAmount,Sheet1!S71_SubMunicipalVoteNo,$AC:$AC,Sheet1!S71_ItemType,$AD:$AD)","v":0},{"$f":"SUMIFS(Sheet1!S71_PYearAmount,Sheet1!S71_SubMunicipalVoteNo,$AC:$AC,Sheet1!S71_ItemType,$AD:$AD)","v":0},{"$f":"SUMIFS(Sheet1!S71_OriginalBudAmnt,Sheet1!S71_SubMunicipalVoteNo,$AC:$AC,Sheet1!S71_ItemType,$AD:$AD)","v":0},{"$f":"SUMIFS(Sheet1!S71_AdjustmentBudAmnt,Sheet1!S71_SubMunicipalVoteNo,$AC:$AC,Sheet1!S71_ItemType,$AD:$AD)","v":0},{"$f":"SUMIFS(Sheet1!S71_AdjustmentBudAmnt,Sheet1!S71_SubMunicipalVoteNo,$AC:$AC,Sheet1!S71_ItemType,$AD:$AD)","v":0},{"$f":"SUMIFS(Sheet1!S71_ASBudgetAmount,Sheet1!S71_SubMunicipalVoteNo,$AC:$AC,Sheet1!S71_ItemType,$AD:$AD)","v":0},{"$f":"SUMIFS(Sheet1!S71_OY1BudgetAmount,Sheet1!S71_SubMunicipalVoteNo,$AC:$AC,Sheet1!S71_ItemType,$AD:$AD)","v":0},{"$f":"SUMIFS(Sheet1!S71_OY2BudgetAmount,Sheet1!S71_SubMunicipalVoteNo,$AC:$AC,Sheet1!S71_ItemType,$AD:$AD)","v":0},null,null,null,null,null,null,null,null,null,null,null,null,null,null,null,null,null,155,"IE"]
["15.6 - [Name of sub-vote]",null,{"$f":"SUMIFS(Sheet1!S71_PPPYearAmount,Sheet1!S71_SubMunicipalVoteNo,$AC:$AC,Sheet1!S71_ItemType,$AD:$AD)","v":0},{"$f":"SUMIFS(Sheet1!S71_PPYearAmount,Sheet1!S71_SubMunicipalVoteNo,$AC:$AC,Sheet1!S71_ItemType,$AD:$AD)","v":0},{"$f":"SUMIFS(Sheet1!S71_PYearAmount,Sheet1!S71_SubMunicipalVoteNo,$AC:$AC,Sheet1!S71_ItemType,$AD:$AD)","v":0},{"$f":"SUMIFS(Sheet1!S71_OriginalBudAmnt,Sheet1!S71_SubMunicipalVoteNo,$AC:$AC,Sheet1!S71_ItemType,$AD:$AD)","v":0},{"$f":"SUMIFS(Sheet1!S71_AdjustmentBudAmnt,Sheet1!S71_SubMunicipalVoteNo,$AC:$AC,Sheet1!S71_ItemType,$AD:$AD)","v":0},{"$f":"SUMIFS(Sheet1!S71_AdjustmentBudAmnt,Sheet1!S71_SubMunicipalVoteNo,$AC:$AC,Sheet1!S71_ItemType,$AD:$AD)","v":0},{"$f":"SUMIFS(Sheet1!S71_ASBudgetAmount,Sheet1!S71_SubMunicipalVoteNo,$AC:$AC,Sheet1!S71_ItemType,$AD:$AD)","v":0},{"$f":"SUMIFS(Sheet1!S71_OY1BudgetAmount,Sheet1!S71_SubMunicipalVoteNo,$AC:$AC,Sheet1!S71_ItemType,$AD:$AD)","v":0},{"$f":"SUMIFS(Sheet1!S71_OY2BudgetAmount,Sheet1!S71_SubMunicipalVoteNo,$AC:$AC,Sheet1!S71_ItemType,$AD:$AD)","v":0},null,null,null,null,null,null,null,null,null,null,null,null,null,null,null,null,null,156,"IE"]
["15.7 - [Name of sub-vote]",null,{"$f":"SUMIFS(Sheet1!S71_PPPYearAmount,Sheet1!S71_SubMunicipalVoteNo,$AC:$AC,Sheet1!S71_ItemType,$AD:$AD)","v":0},{"$f":"SUMIFS(Sheet1!S71_PPYearAmount,Sheet1!S71_SubMunicipalVoteNo,$AC:$AC,Sheet1!S71_ItemType,$AD:$AD)","v":0},{"$f":"SUMIFS(Sheet1!S71_PYearAmount,Sheet1!S71_SubMunicipalVoteNo,$AC:$AC,Sheet1!S71_ItemType,$AD:$AD)","v":0},{"$f":"SUMIFS(Sheet1!S71_OriginalBudAmnt,Sheet1!S71_SubMunicipalVoteNo,$AC:$AC,Sheet1!S71_ItemType,$AD:$AD)","v":0},{"$f":"SUMIFS(Sheet1!S71_AdjustmentBudAmnt,Sheet1!S71_SubMunicipalVoteNo,$AC:$AC,Sheet1!S71_ItemType,$AD:$AD)","v":0},{"$f":"SUMIFS(Sheet1!S71_AdjustmentBudAmnt,Sheet1!S71_SubMunicipalVoteNo,$AC:$AC,Sheet1!S71_ItemType,$AD:$AD)","v":0},{"$f":"SUMIFS(Sheet1!S71_ASBudgetAmount,Sheet1!S71_SubMunicipalVoteNo,$AC:$AC,Sheet1!S71_ItemType,$AD:$AD)","v":0},{"$f":"SUMIFS(Sheet1!S71_OY1BudgetAmount,Sheet1!S71_SubMunicipalVoteNo,$AC:$AC,Sheet1!S71_ItemType,$AD:$AD)","v":0},{"$f":"SUMIFS(Sheet1!S71_OY2BudgetAmount,Sheet1!S71_SubMunicipalVoteNo,$AC:$AC,Sheet1!S71_ItemType,$AD:$AD)","v":0},null,null,null,null,null,null,null,null,null,null,null,null,null,null,null,null,null,157,"IE"]
["15.8 - [Name of sub-vote]",null,{"$f":"SUMIFS(Sheet1!S71_PPPYearAmount,Sheet1!S71_SubMunicipalVoteNo,$AC:$AC,Sheet1!S71_ItemType,$AD:$AD)","v":0},{"$f":"SUMIFS(Sheet1!S71_PPYearAmount,Sheet1!S71_SubMunicipalVoteNo,$AC:$AC,Sheet1!S71_ItemType,$AD:$AD)","v":0},{"$f":"SUMIFS(Sheet1!S71_PYearAmount,Sheet1!S71_SubMunicipalVoteNo,$AC:$AC,Sheet1!S71_ItemType,$AD:$AD)","v":0},{"$f":"SUMIFS(Sheet1!S71_OriginalBudAmnt,Sheet1!S71_SubMunicipalVoteNo,$AC:$AC,Sheet1!S71_ItemType,$AD:$AD)","v":0},{"$f":"SUMIFS(Sheet1!S71_AdjustmentBudAmnt,Sheet1!S71_SubMunicipalVoteNo,$AC:$AC,Sheet1!S71_ItemType,$AD:$AD)","v":0},{"$f":"SUMIFS(Sheet1!S71_AdjustmentBudAmnt,Sheet1!S71_SubMunicipalVoteNo,$AC:$AC,Sheet1!S71_ItemType,$AD:$AD)","v":0},{"$f":"SUMIFS(Sheet1!S71_ASBudgetAmount,Sheet1!S71_SubMunicipalVoteNo,$AC:$AC,Sheet1!S71_ItemType,$AD:$AD)","v":0},{"$f":"SUMIFS(Sheet1!S71_OY1BudgetAmount,Sheet1!S71_SubMunicipalVoteNo,$AC:$AC,Sheet1!S71_ItemType,$AD:$AD)","v":0},{"$f":"SUMIFS(Sheet1!S71_OY2BudgetAmount,Sheet1!S71_SubMunicipalVoteNo,$AC:$AC,Sheet1!S71_ItemType,$AD:$AD)","v":0},null,null,null,null,null,null,null,null,null,null,null,null,null,null,null,null,null,158,"IE"]
["15.9 - [Name of sub-vote]",null,{"$f":"SUMIFS(Sheet1!S71_PPPYearAmount,Sheet1!S71_SubMunicipalVoteNo,$AC:$AC,Sheet1!S71_ItemType,$AD:$AD)","v":0},{"$f":"SUMIFS(Sheet1!S71_PPYearAmount,Sheet1!S71_SubMunicipalVoteNo,$AC:$AC,Sheet1!S71_ItemType,$AD:$AD)","v":0},{"$f":"SUMIFS(Sheet1!S71_PYearAmount,Sheet1!S71_SubMunicipalVoteNo,$AC:$AC,Sheet1!S71_ItemType,$AD:$AD)","v":0},{"$f":"SUMIFS(Sheet1!S71_OriginalBudAmnt,Sheet1!S71_SubMunicipalVoteNo,$AC:$AC,Sheet1!S71_ItemType,$AD:$AD)","v":0},{"$f":"SUMIFS(Sheet1!S71_AdjustmentBudAmnt,Sheet1!S71_SubMunicipalVoteNo,$AC:$AC,Sheet1!S71_ItemType,$AD:$AD)","v":0},{"$f":"SUMIFS(Sheet1!S71_AdjustmentBudAmnt,Sheet1!S71_SubMunicipalVoteNo,$AC:$AC,Sheet1!S71_ItemType,$AD:$AD)","v":0},{"$f":"SUMIFS(Sheet1!S71_ASBudgetAmount,Sheet1!S71_SubMunicipalVoteNo,$AC:$AC,Sheet1!S71_ItemType,$AD:$AD)","v":0},{"$f":"SUMIFS(Sheet1!S71_OY1BudgetAmount,Sheet1!S71_SubMunicipalVoteNo,$AC:$AC,Sheet1!S71_ItemType,$AD:$AD)","v":0},{"$f":"SUMIFS(Sheet1!S71_OY2BudgetAmount,Sheet1!S71_SubMunicipalVoteNo,$AC:$AC,Sheet1!S71_ItemType,$AD:$AD)","v":0},null,null,null,null,null,null,null,null,null,null,null,null,null,null,null,null,null,159,"IE"]
["15.10 - [Name of sub-vote]",null,{"$f":"SUMIFS(Sheet1!S71_PPPYearAmount,Sheet1!S71_SubMunicipalVoteNo,$AC:$AC,Sheet1!S71_ItemType,$AD:$AD)","v":0},{"$f":"SUMIFS(Sheet1!S71_PPYearAmount,Sheet1!S71_SubMunicipalVoteNo,$AC:$AC,Sheet1!S71_ItemType,$AD:$AD)","v":0},{"$f":"SUMIFS(Sheet1!S71_PYearAmount,Sheet1!S71_SubMunicipalVoteNo,$AC:$AC,Sheet1!S71_ItemType,$AD:$AD)","v":0},{"$f":"SUMIFS(Sheet1!S71_OriginalBudAmnt,Sheet1!S71_SubMunicipalVoteNo,$AC:$AC,Sheet1!S71_ItemType,$AD:$AD)","v":0},{"$f":"SUMIFS(Sheet1!S71_AdjustmentBudAmnt,Sheet1!S71_SubMunicipalVoteNo,$AC:$AC,Sheet1!S71_ItemType,$AD:$AD)","v":0},{"$f":"SUMIFS(Sheet1!S71_AdjustmentBudAmnt,Sheet1!S71_SubMunicipalVoteNo,$AC:$AC,Sheet1!S71_ItemType,$AD:$AD)","v":0},{"$f":"SUMIFS(Sheet1!S71_ASBudgetAmount,Sheet1!S71_SubMunicipalVoteNo,$AC:$AC,Sheet1!S71_ItemType,$AD:$AD)","v":0},{"$f":"SUMIFS(Sheet1!S71_OY1BudgetAmount,Sheet1!S71_SubMunicipalVoteNo,$AC:$AC,Sheet1!S71_ItemType,$AD:$AD)","v":0},{"$f":"SUMIFS(Sheet1!S71_OY2BudgetAmount,Sheet1!S71_SubMunicipalVoteNo,$AC:$AC,Sheet1!S71_ItemType,$AD:$AD)","v":0},null,null,null,null,null,null,null,null,null,null,null,null,null,null,null,null,null,1510,"IE"]
["Total Expenditure by Vote",2,{"$f":"C173+C184+C195+C206+C217+C228+C239+C250+C261+C283+C294+C305+C316+C327+C272","v":389351399},{"$f":"D173+D184+D195+D206+D217+D228+D239+D250+D261+D283+D294+D305+D316+D327+D272","v":425350956},{"$f":"E173+E184+E195+E206+E217+E228+E239+E250+E261+E283+E294+E305+E316+E327+E272","v":445402704},548610975,554667725,554667725,606021416,618682251,638086808,{"$f":"SUM(L173:L249)","v":0},0,0,0,0,0,0,0,0,0,0,0]
[]
[{"$f":"result","v":"Surplus/(Deficit) for the year"},2,{"$f":"C170-C338","v":78880458},150419670,90586592,51552427,45126944,45126944,34835709,50209486,32648225,0,0,0,0,0,0,0,0,0,0,0,0]
[{"$f":"head27a","v":"References"}]
["1. Insert 'Vote'; e.g. Department, if different to Functional structure"]
["2. Must reconcile to Financial Performance ('Revenue and Expenditure by Functional Classification' and 'Revenue and Expenditure')"]
["3. Assign share in 'associate' to relevant Vote"]
[]
["check revenue",null,0,0,0,0,{"$f":"('A4-FinPerf RE'!H32+'A4-FinPerf RE'!H49)-G170","v":0},{"$f":"('A4-FinPerf RE'!I32+'A4-FinPerf RE'!I49)-H170","v":0},{"$f":"('A4-FinPerf RE'!J32+'A4-FinPerf RE'!J49)-I170","v":0},{"$f":"('A4-FinPerf RE'!K32+'A4-FinPerf RE'!K49)-J170","v":0},{"$f":"('A4-FinPerf RE'!L32+'A4-FinPerf RE'!L49)-K170","v":0}]
["check expenditure",null,0,0,0,0,{"$f":"G338-'A4-FinPerf RE'!G47","v":0},{"$f":"H338-'A4-FinPerf RE'!H47","v":0},{"$f":"I338-'A4-FinPerf RE'!J47","v":0},{"$f":"J338-'A4-FinPerf RE'!K47","v":0},{"$f":"K338-'A4-FinPerf RE'!L47","v":0}]

{"sheet":"A4-FinPerf RE","index":35,"n_rows":68,"n_cols":29,"rows_kept":68,"cut":false,"hidden":false,"merged":[[1,12,1,23],[1,9,1,11],[1,5,1,8]]}
[{"$f":"muni&\" - \"&Approve4","v":"LIM331 Greater Giyani - Table A4 Budgeted Financial Performance (revenue and expenditure)"}]
[{"$f":"desc","v":"Description"},{"$f":"head27","v":"Ref"},{"$f":"head1b","v":"2019/20"},{"$f":"head1A","v":"2020/21"},{"$f":"Head1","v":"2021/22"},{"$f":"Head2","v":"Current Year 2022/23"},null,null,null,{"$f":"Head3","v":"2023/24 Medium Term Revenue & Expenditure Framework"},null,null,{"$f":"Head4","v":"LTFS"}]
["R thousand",1,{"$f":"Head5","v":"Audited Outcome"},{"$f":"Head5","v":"Audited Outcome"},{"$f":"Head5","v":"Audited Outcome"},{"$f":"Head6","v":"Original Budget"},{"$f":"Head7","v":"Adjusted Budget"},{"$f":"Head8","v":"Full Year Forecast"},{"$f":"Head5b","v":"Pre-audit outcome"},{"$f":"Head9","v":"Budget Year 2023/24"},{"$f":"Head10","v":"Budget Year +1 2024/25"},{"$f":"Head11","v":"Budget Year +2 2025/26"},{"$f":"Head12","v":"Forecast 2026/27"},{"$f":"Head13","v":"Forecast 2027/28"},{"$f":"Head14","v":"Forecast 2028/29"},{"$f":"Head15","v":"Forecast 2029/30"},{"$f":"Head16","v":"Forecast 2030/31"},{"$f":"Head17","v":"Forecast 2031/32"},{"$f":"Head18","v":"Forecast 2032/33"},{"$f":"Head19","v":"Forecast 2033/34"},{"$f":"Head20","v":"Forecast 2034/35"},{"$f":"Head21","v":"Forecast 2035/36"},{"$f":"Head22","v":"Forecast 2036/37"},{"$f":"Head23","v":"Forecast 2037/38"}]
["Revenue"," "]
["Exchange Revenue"," "]
["Service charges - Electricity","2",{"$f":"'SA1'!C17","v":0},{"$f":"'SA1'!D17","v":0},{"$f":"'SA1'!E17","v":0},{"$f":"'SA1'!F17","v":0},{"$f":"'SA1'!G17","v":0},{"$f":"'SA1'!H17","v":0},{"$f":"H6","v":0},{"$f":"'SA1'!J17","v":0},{"$f":"'SA1'!K17","v":0},{"$f":"'SA1'!L17","v":0},null,null,null,null,null,null,null,null,null,null,null,null,null,null,null,null,"0300"]
["Service charges - Water","2",{"$f":"'SA1'!C23","v":0},{"$f":"'SA1'!D23","v":7620},{"$f":"'SA1'!E23","v":0},{"$f":"'SA1'!F23","v":0},{"$f":"'SA1'!G23","v":0},{"$f":"'SA1'!H23","v":0},{"$f":"H7","v":0},{"$f":"'SA1'!J23","v":0},{"$f":"'SA1'!K23","v":0},{"$f":"'SA1'!L23","v":0},null,null,null,null,null,null,null,null,null,null,null,null,null,null,null,null,"0400"]
["Service charges - Waste Water Management","2",{"$f":"'SA1'!C29","v":0},{"$f":"'SA1'!D29","v":3355},{"$f":"'SA1'!E29","v":0},{"$f":"'SA1'!F29","v":0},{"$f":"'SA1'!G29","v":0},{"$f":"'SA1'!H29","v":0},0,{"$f":"'SA1'!J29","v":0},{"$f":"'SA1'!K29","v":0},{"$f":"'SA1'!L29","v":0},null,null,null,null,null,null,null,null,null,null,null,null,null,null,null,null,"0500"]
["Service charges - Waste Management","2",{"$f":"'SA1'!C36","v":6396249},{"$f":"'SA1'!D36","v":7803796},{"$f":"'SA1'!E36","v":7972320},{"$f":"'SA1'!F36","v":11100000},{"$f":"'SA1'!G36","v":8950000},{"$f":"'SA1'!H36","v":8950000},8950000,{"$f":"'SA1'!J36","v":9424350},{"$f":"'SA1'!K36","v":9886144},{"$f":"'SA1'!L36","v":10350792},null,null,null,null,null,null,null,null,null,null,null,null,null,null,null,null,"0600"]
["Sale of Goods and Rendering of Services"," ",{"$f":"SUMIFS(Sheet1!S71_PPPYearAmount,Sheet1!S71_A4Code,$AC:$AC)","v":1412800},{"$f":"SUMIFS(Sheet1!S71_PPYearAmount,Sheet1!S71_A4Code,$AC:$AC)","v":2641327},{"$f":"SUMIFS(Sheet1!S71_PYearAmount,Sheet1!S71_A4Code,$AC:$AC)","v":1192571},{"$f":"-SUMIFS(Sheet1!S71_OriginalBudAmnt,Sheet1!S71_A4Code,$AC:$AC)","v":3732380},{"$f":"-SUMIFS(Sheet1!S71_AdjustmentBudAmnt,Sheet1!S71_A4Code,$AC:$AC)","v":2902600},{"$f":"-SUMIFS(Sheet1!S71_AdjustmentBudAmnt,Sheet1!S71_A4Code,$AC:$AC)","v":2902600},{"$f":"H10","v":2902600},{"$f":"SUMIFS(Sheet1!S71_ASBudgetAmount,Sheet1!S71_A4Code,$AC:$AC)","v":3106574},{"$f":"SUMIFS(Sheet1!S71_OY1BudgetAmount,Sheet1!S71_A4Code,$AC:$AC)","v":3283457},{"$f":"SUMIFS(Sheet1!S71_OY2BudgetAmount,Sheet1!S71_A4Code,$AC:$AC)","v":3460775},null,null,null,null,null,null,null,null,null,null,null,null,null,null,null,null,"0700"]
["Agency services"," ",{"$f":"SUMIFS(Sheet1!S71_PPPYearAmount,Sheet1!S71_A4Code,$AC:$AC)","v":0},{"$f":"SUMIFS(Sheet1!S71_PPYearAmount,Sheet1!S71_A4Code,$AC:$AC)","v":0},{"$f":"SUMIFS(Sheet1!S71_PYearAmount,Sheet1!S71_A4Code,$AC:$AC)","v":0},{"$f":"-SUMIFS(Sheet1!S71_OriginalBudAmnt,Sheet1!S71_A4Code,$AC:$AC)","v":7855981},{"$f":"-SUMIFS(Sheet1!S71_AdjustmentBudAmnt,Sheet1!S71_A4Code,$AC:$AC)","v":5600000},{"$f":"-SUMIFS(Sheet1!S71_AdjustmentBudAmnt,Sheet1!S71_A4Code,$AC:$AC)","v":5600000},{"$f":"H11","v":5600000},{"$f":"SUMIFS(Sheet1!S71_ASBudgetAmount,Sheet1!S71_A4Code,$AC:$AC)","v":5896800},{"$f":"SUMIFS(Sheet1!S71_OY1BudgetAmount,Sheet1!S71_A4Code,$AC:$AC)","v":6185743},{"$f":"SUMIFS(Sheet1!S71_OY2BudgetAmount,Sheet1!S71_A4Code,$AC:$AC)","v":6476473},null,null,null,null,null,null,null,null,null,null,null,null,null,null,null,null,"0800"]
["Interest"," ",{"$f":"SUMIFS(Sheet1!S71_PPPYearAmount,Sheet1!S71_A4Code,$AC:$AC)","v":0},{"$f":"SUMIFS(Sheet1!S71_PPYearAmount,Sheet1!S71_A4Code,$AC:$AC)","v":0},{"$f":"SUMIFS(Sheet1!S71_PYearAmount,Sheet1!S71_A4Code,$AC:$AC)","v":0},{"$f":"-SUMIFS(Sheet1!S71_OriginalBudAmnt,Sheet1!S71_A4Code,$AC:$AC)","v":0},{"$f":"-SUMIFS(Sheet1!S71_AdjustmentBudAmnt,Sheet1!S71_A4Code,$AC:$AC)","v":0},{"$f":"-SUMIFS(Sheet1!S71_AdjustmentBudAmnt,Sheet1!S71_A4Code,$AC:$AC)","v":0},0,{"$f":"SUMIFS(Sheet1!S71_ASBudgetAmount,Sheet1!S71_A4Code,$AC:$AC)","v":0},{"$f":"SUMIFS(Sheet1!S71_OY1BudgetAmount,Sheet1!S71_A4Code,$AC:$AC)","v":0},{"$f":"SUMIFS(Sheet1!S71_OY2BudgetAmount,Sheet1!S71_A4Code,$AC:$AC)","v":0},null,null,null,null,null,null,null,null,null,null,null,null,null,null,null,null,"0900"]
["Interest earned from Receivables"," ",{"$f":"SUMIFS(Sheet1!S71_PPPYearAmount,Sheet1!S71_A4Code,$AC:$AC)","v":6870300},{"$f":"SUMIFS(Sheet1!S71_PPYearAmount,Sheet1!S71_A4Code,$AC:$AC)","v":2465564},{"$f":"SUMIFS(Sheet1!S71_PYearAmount,Sheet1!S71_A4Code,$AC:$AC)","v":2903025},{"$f":"-SUMIFS(Sheet1!S71_OriginalBudAmnt,Sheet1!S71_A4Code,$AC:$AC)","v":2955035},{"$f":"-SUMIFS(Sheet1!S71_AdjustmentBudAmnt,Sheet1!S71_A4Code,$AC:$AC)","v":3305195},{"$f":"-SUMIFS(Sheet1!S71_AdjustmentBudAmnt,Sheet1!S71_A4Code,$AC:$AC)","v":3305195},3305195,{"$f":"SUMIFS(Sheet1!S71_ASBudgetAmount,Sheet1!S71_A4Code,$AC:$AC)","v":3480370},{"$f":"SUMIFS(Sheet1!S71_OY1BudgetAmount,Sheet1!S71_A4Code,$AC:$AC)","v":3650908},{"$f":"SUMIFS(Sheet1!S71_OY2BudgetAmount,Sheet1!S71_A4Code,$AC:$AC)","v":3822501},null,null,null,null,null,null,null,null,null,null,null,null,null,null,null,null,"1000"]
["Interest earned from Current and Non Current Assets"," ",{"$f":"SUMIFS(Sheet1!S71_PPPYearAmount,Sheet1!S71_A4Code,$AC:$AC)","v":5915603},{"$f":"SUMIFS(Sheet1!S71_PPYearAmount,Sheet1!S71_A4Code,$AC:$AC)","v":5844276},{"$f":"SUMIFS(Sheet1!S71_PYearAmount,Sheet1!S71_A4Code,$AC:$AC)","v":8150056},{"$f":"-SUMIFS(Sheet1!S71_OriginalBudAmnt,Sheet1!S71_A4Code,$AC:$AC)","v":9005790},{"$f":"-SUMIFS(Sheet1!S71_AdjustmentBudAmnt,Sheet1!S71_A4Code,$AC:$AC)","v":11633388},{"$f":"-SUMIFS(Sheet1!S71_AdjustmentBudAmnt,Sheet1!S71_A4Code,$AC:$AC)","v":11633388},11633388,{"$f":"SUMIFS(Sheet1!S71_ASBudgetAmount,Sheet1!S71_A4Code,$AC:$AC)","v":12249957},{"$f":"SUMIFS(Sheet1!S71_OY1BudgetAmount,Sheet1!S71_A4Code,$AC:$AC)","v":12850205},{"$f":"SUMIFS(Sheet1!S71_OY2BudgetAmount,Sheet1!S71_A4Code,$AC:$AC)","v":13454165},null,null,null,null,null,null,null,null,null,null,null,null,null,null,null,null,"1100"]
["Dividends"," ",{"$f":"SUMIFS(Sheet1!S71_PPPYearAmount,Sheet1!S71_A4Code,$AC:$AC)","v":0},{"$f":"SUMIFS(Sheet1!S71_PPYearAmount,Sheet1!S71_A4Code,$AC:$AC)","v":0},{"$f":"SUMIFS(Sheet1!S71_PYearAmount,Sheet1!S71_A4Code,$AC:$AC)","v":0},{"$f":"-SUMIFS(Sheet1!S71_OriginalBudAmnt,Sheet1!S71_A4Code,$AC:$AC)","v":0},{"$f":"-SUMIFS(Sheet1!S71_AdjustmentBudAmnt,Sheet1!S71_A4Code,$AC:$AC)","v":0},{"$f":"-SUMIFS(Sheet1!S71_AdjustmentBudAmnt,Sheet1!S71_A4Code,$AC:$AC)","v":0},0,{"$f":"SUMIFS(Sheet1!S71_ASBudgetAmount,Sheet1!S71_A4Code,$AC:$AC)","v":0},{"$f":"SUMIFS(Sheet1!S71_OY1BudgetAmount,Sheet1!S71_A4Code,$AC:$AC)","v":0},{"$f":"SUMIFS(Sheet1!S71_OY2BudgetAmount,Sheet1!S71_A4Code,$AC:$AC)","v":0},null,null,null,null,null,null,null,null,null,null,null,null,null,null,null,null,"1200"]
["Rent on Land"," ",{"$f":"SUMIFS(Sheet1!S71_PPPYearAmount,Sheet1!S71_A4Code,$AC:$AC)","v":0},{"$f":"SUMIFS(Sheet1!S71_PPYearAmount,Sheet1!S71_A4Code,$AC:$AC)","v":0},{"$f":"SUMIFS(Sheet1!S71_PYearAmount,Sheet1!S71_A4Code,$AC:$AC)","v":0},{"$f":"-SUMIFS(Sheet1!S71_OriginalBudAmnt,Sheet1!S71_A4Code,$AC:$AC)","v":0},{"$f":"-SUMIFS(Sheet1!S71_AdjustmentBudAmnt,Sheet1!S71_A4Code,$AC:$AC)","v":0},{"$f":"-SUMIFS(Sheet1!S71_AdjustmentBudAmnt,Sheet1!S71_A4Code,$AC:$AC)","v":0},0,{"$f":"SUMIFS(Sheet1!S71_ASBudgetAmount,Sheet1!S71_A4Code,$AC:$AC)","v":0},{"$f":"SUMIFS(Sheet1!S71_OY1BudgetAmount,Sheet1!S71_A4Code,$AC:$AC)","v":0},{"$f":"SUMIFS(Sheet1!S71_OY2BudgetAmount,Sheet1!S71_A4Code,$AC:$AC)","v":0},null,null,null,null,null,null,null,null,null,null,null,null,null,null,null,null,"1300"]
["Rental from Fixed Assets"," ",{"$f":"SUMIFS(Sheet1!S71_PPPYearAmount,Sheet1!S71_A4Code,$AC:$AC)","v":942352},{"$f":"SUMIFS(Sheet1!S71_PPYearAmount,Sheet1!S71_A4Code,$AC:$AC)","v":126399},{"$f":"SUMIFS(Sheet1!S71_PYearAmount,Sheet1!S71_A4Code,$AC:$AC)","v":103254},{"$f":"-SUMIFS(Sheet1!S71_OriginalBudAmnt,Sheet1!S71_A4Code,$AC:$AC)","v":855000},{"$f":"-SUMIFS(Sheet1!S71_AdjustmentBudAmnt,Sheet1!S71_A4Code,$AC:$AC)","v":665000},{"$f":"-SUMIFS(Sheet1!S71_AdjustmentBudAmnt,Sheet1!S71_A4Code,$AC:$AC)","v":665000},665000,{"$f":"SUMIFS(Sheet1!S71_ASBudgetAmount,Sheet1!S71_A4Code,$AC:$AC)","v":695300},{"$f":"SUMIFS(Sheet1!S71_OY1BudgetAmount,Sheet1!S71_A4Code,$AC:$AC)","v":729370},{"$f":"SUMIFS(Sheet1!S71_OY2BudgetAmount,Sheet1!S71_A4Code,$AC:$AC)","v":763649},null,null,null,null,null,null,null,null,null,null,null,null,null,null,null,null,"1400"]
["Licence and permits"," ",{"$f":"SUMIFS(Sheet1!S71_PPPYearAmount,Sheet1!S71_A4Code,$AC:$AC)","v":4045083},{"$f":"SUMIFS(Sheet1!S71_PPYearAmount,Sheet1!S71_A4Code,$AC:$AC)","v":5678161},{"$f":"SUMIFS(Sheet1!S71_PYearAmount,Sheet1!S71_A4Code,$AC:$AC)","v":6662252},{"$f":"-SUMIFS(Sheet1!S71_OriginalBudAmnt,Sheet1!S71_A4Code,$AC:$AC)","v":7200000},{"$f":"-SUMIFS(Sheet1!S71_AdjustmentBudAmnt,Sheet1!S71_A4Code,$AC:$AC)","v":7650000},{"$f":"-SUMIFS(Sheet1!S71_AdjustmentBudAmnt,Sheet1!S71_A4Code,$AC:$AC)","v":7650000},7650000,{"$f":"SUMIFS(Sheet1!S71_ASBudgetAmount,Sheet1!S71_A4Code,$AC:$AC)","v":8350000},{"$f":"SUMIFS(Sheet1!S71_OY1BudgetAmount,Sheet1!S71_A4Code,$AC:$AC)","v":8759150},{"$f":"SUMIFS(Sheet1!S71_OY2BudgetAmount,Sheet1!S71_A4Code,$AC:$AC)","v":9170830},null,null,null,null,null,null,null,null,null,null,null,null,null,null,null,null,"1500"]
["Operational Revenue"," ",{"$f":"SUMIFS(Sheet1!S71_PPPYearAmount,Sheet1!S71_A4Code,$AC:$AC)","v":767139},{"$f":"SUMIFS(Sheet1!S71_PPYearAmount,Sheet1!S71_A4Code,$AC:$AC)","v":80519},{"$f":"SUMIFS(Sheet1!S71_PYearAmount,Sheet1!S71_A4Code,$AC:$AC)","v":122920},{"$f":"-SUMIFS(Sheet1!S71_OriginalBudAmnt,Sheet1!S71_A4Code,$AC:$AC)","v":8100000},{"$f":"-SUMIFS(Sheet1!S71_AdjustmentBudAmnt,Sheet1!S71_A4Code,$AC:$AC)","v":2406480},{"$f":"-SUMIFS(Sheet1!S71_AdjustmentBudAmnt,Sheet1!S71_A4Code,$AC:$AC)","v":2406480},2406480,{"$f":"SUMIFS(Sheet1!S71_ASBudgetAmount,Sheet1!S71_A4Code,$AC:$AC)","v":8300000},{"$f":"SUMIFS(Sheet1!S71_OY1BudgetAmount,Sheet1!S71_A4Code,$AC:$AC)","v":8414700},{"$f":"SUMIFS(Sheet1!S71_OY2BudgetAmount,Sheet1!S71_A4Code,$AC:$AC)","v":8529491},null,null,null,null,null,null,null,null,null,null,null,null,null,null,null,null,"1600"]
["Non-Exchange Revenue"," "]
["Property rates","2",{"$f":"'SA1'!C10","v":57482800},{"$f":"'SA1'!D10","v":67066301},{"$f":"'SA1'!E10","v":66778018},{"$f":"'SA1'!F10","v":79881822},{"$f":"'SA1'!G10","v":75324368},{"$f":"'SA1'!H10","v":75324368},{"$f":"H21","v":75324368},{"$f":"'SA1'!J10","v":79316562},{"$f":"'SA1'!K10","v":83203074},{"$f":"'SA1'!L10","v":87113617},null,null,null,null,null,null,null,null,null,null,null,null,null,null,null,null,"1800"]
["Surcharges and Taxes"," ",{"$f":"SUMIFS(Sheet1!S71_PPPYearAmount,Sheet1!S71_A4Code,$AC:$AC)","v":0},{"$f":"SUMIFS(Sheet1!S71_PPYearAmount,Sheet1!S71_A4Code,$AC:$AC)","v":0},{"$f":"SUMIFS(Sheet1!S71_PYearAmount,Sheet1!S71_A4Code,$AC:$AC)","v":31090},{"$f":"-SUMIFS(Sheet1!S71_OriginalBudAmnt,Sheet1!S71_A4Code,$AC:$AC)","v":0},{"$f":"-SUMIFS(Sheet1!S71_AdjustmentBudAmnt,Sheet1!S71_A4Code,$AC:$AC)","v":0},{"$f":"-SUMIFS(Sheet1!S71_AdjustmentBudAmnt,Sheet1!S71_A4Code,$AC:$AC)","v":0},{"$f":"H22","v":0},{"$f":"-SUMIFS(Sheet1!S71_ASBudgetAmount,Sheet1!S71_A4Code,$AC:$AC)","v":0},{"$f":"-SUMIFS(Sheet1!S71_OY1BudgetAmount,Sheet1!S71_A4Code,$AC:$AC)","v":0},{"$f":"-SUMIFS(Sheet1!S71_OY2BudgetAmount,Sheet1!S71_A4Code,$AC:$AC)","v":0},null,null,null,null,null,null,null,null,null,null,null,null,null,null,null,null,"1900"]
["Fines, penalties and forfeits"," ",{"$f":"SUMIFS(Sheet1!S71_PPPYearAmount,Sheet1!S71_A4Code,$AC:$AC)","v":6895687},{"$f":"SUMIFS(Sheet1!S71_PPYearAmount,Sheet1!S71_A4Code,$AC:$AC)","v":1625605},{"$f":"SUMIFS(Sheet1!S71_PYearAmount,Sheet1!S71_A4Code,$AC:$AC)","v":1262056},{"$f":"-SUMIFS(Sheet1!S71_OriginalBudAmnt,Sheet1!S71_A4Code,$AC:$AC)","v":550000},{"$f":"-SUMIFS(Sheet1!S71_AdjustmentBudAmnt,Sheet1!S71_A4Code,$AC:$AC)","v":365000},{"$f":"-SUMIFS(Sheet1!S71_AdjustmentBudAmnt,Sheet1!S71_A4Code,$AC:$AC)","v":365000},365000,{"$f":"SUMIFS(Sheet1!S71_ASBudgetAmount,Sheet1!S71_A4Code,$AC:$AC)","v":365795},{"$f":"SUMIFS(Sheet1!S71_OY1BudgetAmount,Sheet1!S71_A4Code,$AC:$AC)","v":383719},{"$f":"SUMIFS(Sheet1!S71_OY2BudgetAmount,Sheet1!S71_A4Code,$AC:$AC)","v":401754},null,null,null,null,null,null,null,null,null,null,null,null,null,null,null,null,"2000"]
["Licences or permits"," ",{"$f":"SUMIFS(Sheet1!S71_PPPYearAmount,Sheet1!S71_A4Code,$AC:$AC)","v":169292},{"$f":"SUMIFS(Sheet1!S71_PPYearAmount,Sheet1!S71_A4Code,$AC:$AC)","v":84182},{"$f":"SUMIFS(Sheet1!S71_PYearAmount,Sheet1!S71_A4Code,$AC:$AC)","v":62025},{"$f":"-SUMIFS(Sheet1!S71_OriginalBudAmnt,Sheet1!S71_A4Code,$AC:$AC)","v":700000},{"$f":"-SUMIFS(Sheet1!S71_AdjustmentBudAmnt,Sheet1!S71_A4Code,$AC:$AC)","v":70000},{"$f":"-SUMIFS(Sheet1!S71_AdjustmentBudAmnt,Sheet1!S71_A4Code,$AC:$AC)","v":70000},70000,{"$f":"SUMIFS(Sheet1!S71_ASBudgetAmount,Sheet1!S71_A4Code,$AC:$AC)","v":100000},{"$f":"SUMIFS(Sheet1!S71_OY1BudgetAmount,Sheet1!S71_A4Code,$AC:$AC)","v":104900},{"$f":"SUMIFS(Sheet1!S71_OY2BudgetAmount,Sheet1!S71_A4Code,$AC:$AC)","v":109830},null,null,null,null,null,null,null,null,null,null,null,null,null,null,null,null,"2100"]
["Transfer and subsidies - Operational"," ",{"$f":"SUMIFS(Sheet1!S71_PPPYearAmount,Sheet1!S71_A4Code,$AC:$AC)","v":308176296},{"$f":"SUMIFS(Sheet1!S71_PPYearAmount,Sheet1!S71_A4Code,$AC:$AC)","v":386921580},{"$f":"SUMIFS(Sheet1!S71_PYearAmount,Sheet1!S71_A4Code,$AC:$AC)","v":352183035},{"$f":"-SUMIFS(Sheet1!S71_OriginalBudAmnt,Sheet1!S71_A4Code,$AC:$AC)","v":379532000},{"$f":"-SUMIFS(Sheet1!S71_AdjustmentBudAmnt,Sheet1!S71_A4Code,$AC:$AC)","v":381176640},{"$f":"-SUMIFS(Sheet1!S71_AdjustmentBudAmnt,Sheet1!S71_A4Code,$AC:$AC)","v":381176640},381176640,{"$f":"SUMIFS(Sheet1!S71_ASBudgetAmount,Sheet1!S71_A4Code,$AC:$AC)","v":382352000},{"$f":"SUMIFS(Sheet1!S71_OY1BudgetAmount,Sheet1!S71_A4Code,$AC:$AC)","v":405170000},{"$f":"SUMIFS(Sheet1!S71_OY2BudgetAmount,Sheet1!S71_A4Code,$AC:$AC)","v":395085000},null,null,null,null,null,null,null,null,null,null,null,null,null,null,null,null,"2200"]
["Interest"," ",{"$f":"SUMIFS(Sheet1!S71_PPPYearAmount,Sheet1!S71_A4Code,$AC:$AC)","v":12568114},{"$f":"SUMIFS(Sheet1!S71_PPYearAmount,Sheet1!S71_A4Code,$AC:$AC)","v":21937628},{"$f":"SUMIFS(Sheet1!S71_PYearAmount,Sheet1!S71_A4Code,$AC:$AC)","v":27429499},{"$f":"-SUMIFS(Sheet1!S71_OriginalBudAmnt,Sheet1!S71_A4Code,$AC:$AC)","v":19434394},{"$f":"-SUMIFS(Sheet1!S71_AdjustmentBudAmnt,Sheet1!S71_A4Code,$AC:$AC)","v":21434394},{"$f":"-SUMIFS(Sheet1!S71_AdjustmentBudAmnt,Sheet1!S71_A4Code,$AC:$AC)","v":21434394},21434394,{"$f":"SUMIFS(Sheet1!S71_ASBudgetAmount,Sheet1!S71_A4Code,$AC:$AC)","v":22570417},{"$f":"SUMIFS(Sheet1!S71_OY1BudgetAmount,Sheet1!S71_A4Code,$AC:$AC)","v":23676367},{"$f":"SUMIFS(Sheet1!S71_OY2BudgetAmount,Sheet1!S71_A4Code,$AC:$AC)","v":24789156},null,null,null,null,null,null,null,null,null,null,null,null,null,null,null,null,"2300"]
["Fuel Levy"," ",{"$f":"SUMIFS(Sheet1!S71_PPPYearAmount,Sheet1!S71_A4Code,$AC:$AC)","v":0},{"$f":"SUMIFS(Sheet1!S71_PPYearAmount,Sheet1!S71_A4Code,$AC:$AC)","v":0},{"$f":"SUMIFS(Sheet1!S71_PYearAmount,Sheet1!S71_A4Code,$AC:$AC)","v":0},{"$f":"-SUMIFS(Sheet1!S71_OriginalBudAmnt,Sheet1!S71_A4Code,$AC:$AC)","v":0},{"$f":"-SUMIFS(Sheet1!S71_AdjustmentBudAmnt,Sheet1!S71_A4Code,$AC:$AC)","v":0},{"$f":"-SUMIFS(Sheet1!S71_AdjustmentBudAmnt,Sheet1!S71_A4Code,$AC:$AC)","v":0},0,{"$f":"SUMIFS(Sheet1!S71_ASBudgetAmount,Sheet1!S71_A4Code,$AC:$AC)","v":0},{"$f":"SUMIFS(Sheet1!S71_OY1BudgetAmount,Sheet1!S71_A4Code,$AC:$AC)","v":0},{"$f":"SUMIFS(Sheet1!S71_OY2BudgetAmount,Sheet1!S71_A4Code,$AC:$AC)","v":0},null,null,null,null,null,null,null,null,null,null,null,null,null,null,null,null,"2400"]
["Operational Revenue"," ",{"$f":"SUMIFS(Sheet1!S71_PPPYearAmount,Sheet1!S71_A4Code,$AC:$AC)","v":0},{"$f":"SUMIFS(Sheet1!S71_PPYearAmount,Sheet1!S71_A4Code,$AC:$AC)","v":0},{"$f":"SUMIFS(Sheet1!S71_PYearAmount,Sheet1!S71_A4Code,$AC:$AC)","v":0},{"$f":"-SUMIFS(Sheet1!S71_OriginalBudAmnt,Sheet1!S71_A4Code,$AC:$AC)","v":0},{"$f":"-SUMIFS(Sheet1!S71_AdjustmentBudAmnt,Sheet1!S71_A4Code,$AC:$AC)","v":0},{"$f":"-SUMIFS(Sheet1!S71_AdjustmentBudAmnt,Sheet1!S71_A4Code,$AC:$AC)","v":0},0,{"$f":"SUMIFS(Sheet1!S71_ASBudgetAmount,Sheet1!S71_A4Code,$AC:$AC)","v":0},{"$f":"SUMIFS(Sheet1!S71_OY1BudgetAmount,Sheet1!S71_A4Code,$AC:$AC)","v":0},{"$f":"SUMIFS(Sheet1!S71_OY2BudgetAmount,Sheet1!S71_A4Code,$AC:$AC)","v":0},null,null,null,null,null,null,null,null,null,null,null,null,null,null,null,null,"2500"]
["Gains on disposal of Assets"," ",{"$f":"SUMIFS(Sheet1!S71_PPPYearAmount,Sheet1!S71_A4Code,$AC:$AC)","v":0},{"$f":"SUMIFS(Sheet1!S71_PPYearAmount,Sheet1!S71_A4Code,$AC:$AC)","v":0},{"$f":"SUMIFS(Sheet1!S71_PYearAmount,Sheet1!S71_A4Code,$AC:$AC)","v":0},{"$f":"-SUMIFS(Sheet1!S71_OriginalBudAmnt,Sheet1!S71_A4Code,$AC:$AC)","v":0},{"$f":"-SUMIFS(Sheet1!S71_AdjustmentBudAmnt,Sheet1!S71_A4Code,$AC:$AC)","v":0},{"$f":"-SUMIFS(Sheet1!S71_AdjustmentBudAmnt,Sheet1!S71_A4Code,$AC:$AC)","v":0},0,{"$f":"SUMIFS(Sheet1!S71_ASBudgetAmount,Sheet1!S71_A4Code,$AC:$AC)","v":0},{"$f":"SUMIFS(Sheet1!S71_OY1BudgetAmount,Sheet1!S71_A4Code,$AC:$AC)","v":0},{"$f":"SUMIFS(Sheet1!S71_OY2BudgetAmount,Sheet1!S71_A4Code,$AC:$AC)","v":0},null,null,null,null,null,null,null,null,null,null,null,null,null,null,null,null,"2600"]
["Other Gains"," ",{"$f":"SUMIFS(Sheet1!S71_PPPYearAmount,Sheet1!S71_A4Code,$AC:$AC)","v":-5210142},{"$f":"SUMIFS(Sheet1!S71_PPYearAmount,Sheet1!S71_A4Code,$AC:$AC)","v":-5918105},{"$f":"SUMIFS(Sheet1!S71_PYearAmount,Sheet1!S71_A4Code,$AC:$AC)","v":4824452},{"$f":"-SUMIFS(Sheet1!S71_OriginalBudAmnt,Sheet1!S71_A4Code,$AC:$AC)","v":0},{"$f":"-SUMIFS(Sheet1!S71_AdjustmentBudAmnt,Sheet1!S71_A4Code,$AC:$AC)","v":100000},{"$f":"-SUMIFS(Sheet1!S71_AdjustmentBudAmnt,Sheet1!S71_A4Code,$AC:$AC)","v":100000},100000,{"$f":"SUMIFS(Sheet1!S71_ASBudgetAmount,Sheet1!S71_A4Code,$AC:$AC)","v":100000},{"$f":"SUMIFS(Sheet1!S71_OY1BudgetAmount,Sheet1!S71_A4Code,$AC:$AC)","v":0},{"$f":"SUMIFS(Sheet1!S71_OY2BudgetAmount,Sheet1!S71_A4Code,$AC:$AC)","v":0},null,null,null,null,null,null,null,null,null,null,null,null,null,null,null,null,"2700"]
["Discontinued Operations"," ",null,null,null,null,null,null,null,null,null,null,null,null,null,null,null,null,null,null,null,null,null,null,null,null,null,null,"2800"]
["Total Revenue (excluding capital transfers and contributions)"," ",{"$f":"SUM(C6:C19)+SUM(C21:C31)","v":406431573},{"$f":"SUM(D6:D19)+SUM(D21:D31)","v":496368208},479676573,530902402,521583065,521583065,521583065,536308125,566297737,563528033]
["Expenditure"," "]
["Employee related costs","2",{"$f":"'SA1'!C71","v":87916824},{"$f":"'SA1'!D71","v":146466707},{"$f":"'SA1'!E71","v":153332486},{"$f":"'SA1'!F71","v":189700725},{"$f":"'SA1'!G71","v":165941148},{"$f":"'SA1'!H71","v":165941148},{"$f":"H34","v":165941148},{"$f":"'SA1'!J71","v":199815991},{"$f":"'SA1'!K71","v":203130370},{"$f":"'SA1'!L71","v":212604528},{"$f":"'SA1'!M71","v":0},{"$f":"'SA1'!N71","v":0},{"$f":"'SA1'!O71","v":0},{"$f":"'SA1'!P71","v":0},{"$f":"'SA1'!Q71","v":0},{"$f":"'SA1'!R71","v":0},{"$f":"'SA1'!S71","v":0},{"$f":"'SA1'!T71","v":0},null,null,null,null,null,null,null,null,"3100"]
["Remuneration of councillors"," ",{"$f":"SUMIFS(Sheet1!S71_PPPYearAmount,Sheet1!S71_A4Code,$AC:$AC)","v":23566009},{"$f":"SUMIFS(Sheet1!S71_PPYearAmount,Sheet1!S71_A4Code,$AC:$AC)","v":23581098},{"$f":"SUMIFS(Sheet1!S71_PYearAmount,Sheet1!S71_A4Code,$AC:$AC)","v":23870870},{"$f":"SUMIFS(Sheet1!S71_OriginalBudAmnt,Sheet1!S71_A4Code,$AC:$AC)","v":24024710},{"$f":"SUMIFS(Sheet1!S71_AdjustmentBudAmnt,Sheet1!S71_A4Code,$AC:$AC)","v":24932744},{"$f":"SUMIFS(Sheet1!S71_AdjustmentBudAmnt,Sheet1!S71_A4Code,$AC:$AC)","v":24932744},24932744,{"$f":"SUMIFS(Sheet1!S71_ASBudgetAmount,Sheet1!S71_A4Code,$AC:$AC)","v":24892324},{"$f":"SUMIFS(Sheet1!S71_OY1BudgetAmount,Sheet1!S71_A4Code,$AC:$AC)","v":26112047},{"$f":"SUMIFS(Sheet1!S71_OY2BudgetAmount,Sheet1!S71_A4Code,$AC:$AC)","v":27339315},null,null,null,null,null,null,null,null,null,null,null,null,null,null,null,null,"3200"]
["Bulk purchases - electricity","2",{"$f":"'SA1'!C88","v":0},{"$f":"'SA1'!D88","v":0},{"$f":"'SA1'!E88","v":0},{"$f":"'SA1'!F88","v":0},{"$f":"'SA1'!G88","v":0},{"$f":"'SA1'!H88","v":0},0,{"$f":"'SA1'!J88","v":0},{"$f":"'SA1'!K88","v":0},{"$f":"'SA1'!L88","v":0},null,null,null,null,null,null,null,null,null,null,null,null,null,null,null,null,"3300"]
["Inventory consumed","8",{"$f":"'SA1'!C169","v":0},{"$f":"'SA1'!D169","v":0},{"$f":"'SA1'!E169","v":0},{"$f":"'SA1'!F169","v":10500000},{"$f":"'SA1'!G169","v":11150000},{"$f":"'SA1'!H169","v":11150000},11150000,{"$f":"'SA1'!J169","v":13200000},{"$f":"'SA1'!K169","v":13820000},{"$f":"'SA1'!L169","v":14490000},null,null,null,null,null,null,null,null,null,null,null,null,null,null,null,null,"3400"]
["Debt impairment","3",{"$f":"SUMIFS(Sheet1!S71_PPPYearAmount,Sheet1!S71_A4Code,$AC:$AC)","v":35995375},{"$f":"SUMIFS(Sheet1!S71_PPYearAmount,Sheet1!S71_A4Code,$AC:$AC)","v":45369906},{"$f":"SUMIFS(Sheet1!S71_PYearAmount,Sheet1!S71_A4Code,$AC:$AC)","v":808450},{"$f":"SUMIFS(Sheet1!S71_OriginalBudAmnt,Sheet1!S71_A4Code,$AC:$AC)","v":29000000},{"$f":"SUMIFS(Sheet1!S71_AdjustmentBudAmnt,Sheet1!S71_A4Code,$AC:$AC)","v":29000000},{"$f":"SUMIFS(Sheet1!S71_AdjustmentBudAmnt,Sheet1!S71_A4Code,$AC:$AC)","v":29000000},29000000,{"$f":"SUMIFS(Sheet1!S71_ASBudgetAmount,Sheet1!S71_A4Code,$AC:$AC)","v":29000000},{"$f":"SUMIFS(Sheet1!S71_OY1BudgetAmount,Sheet1!S71_A4Code,$AC:$AC)","v":30000000},{"$f":"SUMIFS(Sheet1!S71_OY2BudgetAmount,Sheet1!S71_A4Code,$AC:$AC)","v":31000000},null,null,null,null,null,null,null,null,null,null,null,null,null,null,null,null,"3500"]
["Depreciation and amortisation"," ",{"$f":"'SA1'!C83","v":0},{"$f":"'SA1'!D83","v":97084412},{"$f":"'SA1'!E83","v":101963531},{"$f":"'SA1'!F83","v":91000000},{"$f":"'SA1'!G83","v":91000000},{"$f":"'SA1'!H83","v":91000000},91000000,{"$f":"'SA1'!J83","v":95000000},{"$f":"'SA1'!K83","v":96000000},{"$f":"'SA1'!L83","v":97000000},null,null,null,null,null,null,null,null,null,null,null,null,null,null,null,null,"3600"]
["Interest"," ",{"$f":"SUMIFS(Sheet1!S71_PPPYearAmount,Sheet1!S71_A4Code,$AC:$AC)","v":1855934},{"$f":"SUMIFS(Sheet1!S71_PPYearAmount,Sheet1!S71_A4Code,$AC:$AC)","v":3941143},{"$f":"SUMIFS(Sheet1!S71_PYearAmount,Sheet1!S71_A4Code,$AC:$AC)","v":6670136},{"$f":"SUMIFS(Sheet1!S71_OriginalBudAmnt,Sheet1!S71_A4Code,$AC:$AC)","v":0},{"$f":"SUMIFS(Sheet1!S71_AdjustmentBudAmnt,Sheet1!S71_A4Code,$AC:$AC)","v":0},{"$f":"SUMIFS(Sheet1!S71_AdjustmentBudAmnt,Sheet1!S71_A4Code,$AC:$AC)","v":0},0,{"$f":"SUMIFS(Sheet1!S71_ASBudgetAmount,Sheet1!S71_A4Code,$AC:$AC)","v":0},{"$f":"SUMIFS(Sheet1!S71_OY1BudgetAmount,Sheet1!S71_A4Code,$AC:$AC)","v":0},{"$f":"SUMIFS(Sheet1!S71_OY2BudgetAmount,Sheet1!S71_A4Code,$AC:$AC)","v":0},null,null,null,null,null,null,null,null,null,null,null,null,null,null,null,null,"3700"]
["Contracted services"," ",{"$f":"'SA1'!C127","v":0},{"$f":"'SA1'!D127","v":47854197},{"$f":"'SA1'!E127","v":88812169},{"$f":"'SA1'!F127","v":137393056},{"$f":"'SA1'!G127","v":166944586},{"$f":"'SA1'!H127","v":166944586},{"$f":"H41","v":166944586},{"$f":"'SA1'!J127","v":164360500},{"$f":"'SA1'!K127","v":164270000},{"$f":"'SA1'!L127","v":167979000},null,null,null,null,null,null,null,null,null,null,null,null,null,null,null,null,"3800"]
["Transfers and subsidies"," ",{"$f":"'SA1'!C93","v":600000},{"$f":"'SA1'!D93","v":955000},{"$f":"'SA1'!E93","v":600000},{"$f":"'SA1'!F93","v":1000000},{"$f":"'SA1'!G93","v":1200000},{"$f":"'SA1'!H93","v":1200000},1200000,{"$f":"'SA1'!J93","v":1500000},{"$f":"'SA1'!K93","v":1600000},{"$f":"'SA1'!L93","v":1700000},null,null,null,null,null,null,null,null,null,null,null,null,null,null,null,null,"3900"]
["Irrecoverable debts written off"," ",{"$f":"SUMIFS(Sheet1!S71_PPPYearAmount,Sheet1!S71_A4Code,$AC:$AC)","v":0},{"$f":"SUMIFS(Sheet1!S71_PPYearAmount,Sheet1!S71_A4Code,$AC:$AC)","v":0},{"$f":"SUMIFS(Sheet1!S71_PYearAmount,Sheet1!S71_A4Code,$AC:$AC)","v":0},{"$f":"SUMIFS(Sheet1!S71_OriginalBudAmnt,Sheet1!S71_A4Code,$AC:$AC)","v":0},{"$f":"SUMIFS(Sheet1!S71_AdjustmentBudAmnt,Sheet1!S71_A4Code,$AC:$AC)","v":0},{"$f":"SUMIFS(Sheet1!S71_AdjustmentBudAmnt,Sheet1!S71_A4Code,$AC:$AC)","v":0},{"$f":"H43","v":0},{"$f":"SUMIFS(Sheet1!S71_ASBudgetAmount,Sheet1!S71_A4Code,$AC:$AC)","v":0},{"$f":"SUMIFS(Sheet1!S71_OY1BudgetAmount,Sheet1!S71_A4Code,$AC:$AC)","v":0},{"$f":"SUMIFS(Sheet1!S71_OY2BudgetAmount,Sheet1!S71_A4Code,$AC:$AC)","v":0},null,null,null,null,null,null,null,null,null,null,null,null,null,null,null,null,"4000"]
["Operational costs"," ",{"$f":"'SA1'!C157","v":0},{"$f":"'SA1'!D157","v":45017643},{"$f":"'SA1'!E157","v":55738788},{"$f":"'SA1'!F157","v":65992484},{"$f":"'SA1'!G157","v":64499247},{"$f":"'SA1'!H157","v":64499247},{"$f":"H44","v":64499247},{"$f":"'SA1'!J157","v":78252601},{"$f":"'SA1'!K157","v":83749834},{"$f":"'SA1'!L157","v":85973965},null,null,null,null,null,null,null,null,null,null,null,null,null,null,null,null,"4100"]
["Losses on disposal of Assets"," ",{"$f":"SUMIFS(Sheet1!S71_PPPYearAmount,Sheet1!S71_A4Code,$AC:$AC)","v":4374289},{"$f":"SUMIFS(Sheet1!S71_PPYearAmount,Sheet1!S71_A4Code,$AC:$AC)","v":7377632},{"$f":"SUMIFS(Sheet1!S71_PYearAmount,Sheet1!S71_A4Code,$AC:$AC)","v":14382332},{"$f":"SUMIFS(Sheet1!S71_OriginalBudAmnt,Sheet1!S71_A4Code,$AC:$AC)","v":0},{"$f":"SUMIFS(Sheet1!S71_AdjustmentBudAmnt,Sheet1!S71_A4Code,$AC:$AC)","v":0},{"$f":"SUMIFS(Sheet1!S71_AdjustmentBudAmnt,Sheet1!S71_A4Code,$AC:$AC)","v":0},{"$f":"H45","v":0},{"$f":"SUMIFS(Sheet1!S71_ASBudgetAmount,Sheet1!S71_A4Code,$AC:$AC)","v":0},{"$f":"SUMIFS(Sheet1!S71_OY1BudgetAmount,Sheet1!S71_A4Code,$AC:$AC)","v":0},{"$f":"SUMIFS(Sheet1!S71_OY2BudgetAmount,Sheet1!S71_A4Code,$AC:$AC)","v":0},null,null,null,null,null,null,null,null,null,null,null,null,null,null,null,null,"4200"]
["Other Losses"," ",{"$f":"SUMIFS(Sheet1!S71_PPPYearAmount,Sheet1!S71_A4Code,$AC:$AC)","v":-7658438},{"$f":"SUMIFS(Sheet1!S71_PPYearAmount,Sheet1!S71_A4Code,$AC:$AC)","v":76799},{"$f":"SUMIFS(Sheet1!S71_PYearAmount,Sheet1!S71_A4Code,$AC:$AC)","v":-2761564},{"$f":"SUMIFS(Sheet1!S71_OriginalBudAmnt,Sheet1!S71_A4Code,$AC:$AC)","v":0},{"$f":"SUMIFS(Sheet1!S71_AdjustmentBudAmnt,Sheet1!S71_A4Code,$AC:$AC)","v":0},{"$f":"SUMIFS(Sheet1!S71_AdjustmentBudAmnt,Sheet1!S71_A4Code,$AC:$AC)","v":0},0,{"$f":"SUMIFS(Sheet1!S71_ASBudgetAmount,Sheet1!S71_A4Code,$AC:$AC)","v":0},{"$f":"SUMIFS(Sheet1!S71_OY1BudgetAmount,Sheet1!S71_A4Code,$AC:$AC)","v":0},{"$f":"SUMIFS(Sheet1!S71_OY2BudgetAmount,Sheet1!S71_A4Code,$AC:$AC)","v":0},null,null,null,null,null,null,null,null,null,null,null,null,null,null,null,null,"4300"]
["Total Expenditure"," ",{"$f":"SUM(C34:C46)","v":146649993},{"$f":"SUM(D34:D46)","v":417724537},443417198,548610975,554667725,554667725,554667725,606021416,618682251,638086808,{"$f":"SUM(M34:M46)","v":0},0,0,0,0,0,0,0,0,0,0,0]
["Surplus/(Deficit)",null,{"$f":"C32-C47","v":259781580},78643671,36259375,-17708573,-33084660,-33084660,-33084660,-69713291,-52384514,-74558775,{"$f":"M32+M47","v":0},0,0,0,0,0,0,0,0,0,0,0]
["Transfers and subsidies - capital (monetary allocations)","6",{"$f":"SUMIFS(Sheet1!S71_PPPYearAmount,Sheet1!S71_A4Code,$AC:$AC)","v":60688000},{"$f":"SUMIFS(Sheet1!S71_PPYearAmount,Sheet1!S71_A4Code,$AC:$AC)","v":71567000},{"$f":"SUMIFS(Sheet1!S71_PYearAmount,Sheet1!S71_A4Code,$AC:$AC)","v":55157907},{"$f":"-SUMIFS(Sheet1!S71_OriginalBudAmnt,Sheet1!S71_A4Code,$AC:$AC)","v":69261000},{"$f":"-SUMIFS(Sheet1!S71_AdjustmentBudAmnt,Sheet1!S71_A4Code,$AC:$AC)","v":78211604},{"$f":"-SUMIFS(Sheet1!S71_AdjustmentBudAmnt,Sheet1!S71_A4Code,$AC:$AC)","v":78211604},{"$f":"H49","v":78211604},{"$f":"SUMIFS(Sheet1!S71_ASBudgetAmount,Sheet1!S71_A4Code,$AC:$AC)","v":104549000},{"$f":"SUMIFS(Sheet1!S71_OY1BudgetAmount,Sheet1!S71_A4Code,$AC:$AC)","v":102594000},{"$f":"SUMIFS(Sheet1!S71_OY2BudgetAmount,Sheet1!S71_A4Code,$AC:$AC)","v":107207000},null,null,null,null,null,null,null,null,null,null,null,null,null,null,null,null,"4600"]
["Transfers and subsidies - capital (in-kind)","6",{"$f":"SUMIFS(Sheet1!S71_PPPYearAmount,Sheet1!S71_A4Code,$AC:$AC)","v":0},{"$f":"SUMIFS(Sheet1!S71_PPYearAmount,Sheet1!S71_A4Code,$AC:$AC)","v":6038305},{"$f":"SUMIFS(Sheet1!S71_PYearAmount,Sheet1!S71_A4Code,$AC:$AC)","v":0},{"$f":"-SUMIFS(Sheet1!S71_OriginalBudAmnt,Sheet1!S71_A4Code,$AC:$AC)","v":0},{"$f":"-SUMIFS(Sheet1!S71_AdjustmentBudAmnt,Sheet1!S71_A4Code,$AC:$AC)","v":0},{"$f":"-SUMIFS(Sheet1!S71_AdjustmentBudAmnt,Sheet1!S71_A4Code,$AC:$AC)","v":0},{"$f":"H50","v":0},{"$f":"-SUMIFS(Sheet1!S71_ASBudgetAmount,Sheet1!S71_A4Code,$AC:$AC)","v":0},{"$f":"-SUMIFS(Sheet1!S71_OY1BudgetAmount,Sheet1!S71_A4Code,$AC:$AC)","v":0},{"$f":"-SUMIFS(Sheet1!S71_OY2BudgetAmount,Sheet1!S71_A4Code,$AC:$AC)","v":0},null,null,null,null,null,null,null,null,null,null,null,null,null,null,null,null,"4700"]
["Surplus/(Deficit) after capital transfers & contributions",null,{"$f":"SUM(C48:C50)","v":320469580},156248976,91417282,51552427,45126944,45126944,45126944,34835709,50209486,32648225]
["Income Tax",null,{"$f":"SUMIFS(Sheet1!S71_PPPYearAmount,Sheet1!S71_A4Code,$AC:$AC)","v":0},{"$f":"SUMIFS(Sheet1!S71_PPYearAmount,Sheet1!S71_A4Code,$AC:$AC)","v":0},{"$f":"SUMIFS(Sheet1!S71_PYearAmount,Sheet1!S71_A4Code,$AC:$AC)","v":0},{"$f":"-SUMIFS(Sheet1!S71_OriginalBudAmnt,Sheet1!S71_A4Code,$AC:$AC)","v":0},{"$f":"-SUMIFS(Sheet1!S71_AdjustmentBudAmnt,Sheet1!S71_A4Code,$AC:$AC)","v":0},{"$f":"-SUMIFS(Sheet1!S71_AdjustmentBudAmnt,Sheet1!S71_A4Code,$AC:$AC)","v":0},{"$f":"H52","v":0},{"$f":"-SUMIFS(Sheet1!S71_ASBudgetAmount,Sheet1!S71_A4Code,$AC:$AC)","v":0},{"$f":"-SUMIFS(Sheet1!S71_OY1BudgetAmount,Sheet1!S71_A4Code,$AC:$AC)","v":0},{"$f":"-SUMIFS(Sheet1!S71_OY2BudgetAmount,Sheet1!S71_A4Code,$AC:$AC)","v":0},null,null,null,null,null,null,null,null,null,null,null,null,null,null,null,null,"4900"]
["Surplus/(Deficit) after income tax",null,{"$f":"+C51-C52","v":320469580},{"$f":"+D51-D52","v":156248976},91417282,51552427,45126944,45126944,45126944,34835709,50209486,32648225,0,0,0,0,0]
["Share of Surplus/Deficit attributable to Joint Venture",null,{"$f":"SUMIFS(Sheet1!S71_PPPYearAmount,Sheet1!S71_A4Code,$AC:$AC)","v":0},{"$f":"SUMIFS(Sheet1!S71_PPYearAmount,Sheet1!S71_A4Code,$AC:$AC)","v":0},{"$f":"SUMIFS(Sheet1!S71_PYearAmount,Sheet1!S71_A4Code,$AC:$AC)","v":0},{"$f":"-SUMIFS(Sheet1!S71_OriginalBudAmnt,Sheet1!S71_A4Code,$AC:$AC)","v":0},{"$f":"-SUMIFS(Sheet1!S71_AdjustmentBudAmnt,Sheet1!S71_A4Code,$AC:$AC)","v":0},{"$f":"-SUMIFS(Sheet1!S71_AdjustmentBudAmnt,Sheet1!S71_A4Code,$AC:$AC)","v":0},{"$f":"H54","v":0},{"$f":"-SUMIFS(Sheet1!S71_ASBudgetAmount,Sheet1!S71_A4Code,$AC:$AC)","v":0},{"$f":"-SUMIFS(Sheet1!S71_OY1BudgetAmount,Sheet1!S71_A4Code,$AC:$AC)","v":0},{"$f":"-SUMIFS(Sheet1!S71_OY2BudgetAmount,Sheet1!S71_A4Code,$AC:$AC)","v":0},null,null,null,null,null,null,null,null,null,null,null,null,null,null,null,null,"5100"]
["Share of Surplus/Deficit attributable to Minorities",null,{"$f":"SUMIFS(Sheet1!S71_PPPYearAmount,Sheet1!S71_A4Code,$AC:$AC)","v":0},{"$f":"SUMIFS(Sheet1!S71_PPYearAmount,Sheet1!S71_A4Code,$AC:$AC)","v":0},{"$f":"SUMIFS(Sheet1!S71_PYearAmount,Sheet1!S71_A4Code,$AC:$AC)","v":0},{"$f":"-SUMIFS(Sheet1!S71_OriginalBudAmnt,Sheet1!S71_A4Code,$AC:$AC)","v":0},{"$f":"-SUMIFS(Sheet1!S71_AdjustmentBudAmnt,Sheet1!S71_A4Code,$AC:$AC)","v":0},{"$f":"-SUMIFS(Sheet1!S71_AdjustmentBudAmnt,Sheet1!S71_A4Code,$AC:$AC)","v":0},0,{"$f":"-SUMIFS(Sheet1!S71_ASBudgetAmount,Sheet1!S71_A4Code,$AC:$AC)","v":0},{"$f":"-SUMIFS(Sheet1!S71_OY1BudgetAmount,Sheet1!S71_A4Code,$AC:$AC)","v":0},{"$f":"-SUMIFS(Sheet1!S71_OY2BudgetAmount,Sheet1!S71_A4Code,$AC:$AC)","v":0},null,null,null,null,null,null,null,null,null,null,null,null,null,null,null,null,"5200"]
["Surplus/(Deficit) attributable to municipality",null,{"$f":"SUM(C53:C55)","v":320469580},{"$f":"SUM(D53:D55)","v":156248976},91417282,51552427,45126944,45126944,{"$f":"SUM(I53:I55)","v":45126944},34835709,50209486,32648225,0,0,0,0,0]
["Share of Surplus/Deficit attributable to Associate",7,{"$f":"SUMIFS(Sheet1!S71_PPPYearAmount,Sheet1!S71_A4Code,$AC:$AC)","v":0},{"$f":"SUMIFS(Sheet1!S71_PPYearAmount,Sheet1!S71_A4Code,$AC:$AC)","v":0},{"$f":"SUMIFS(Sheet1!S71_PYearAmount,Sheet1!S71_A4Code,$AC:$AC)","v":0},{"$f":"-SUMIFS(Sheet1!S71_OriginalBudAmnt,Sheet1!S71_A4Code,$AC:$AC)","v":0},{"$f":"-SUMIFS(Sheet1!S71_AdjustmentBudAmnt,Sheet1!S71_A4Code,$AC:$AC)","v":0},{"$f":"-SUMIFS(Sheet1!S71_AdjustmentBudAmnt,Sheet1!S71_A4Code,$AC:$AC)","v":0},{"$f":"H57","v":0},{"$f":"-SUMIFS(Sheet1!S71_ASBudgetAmount,Sheet1!S71_A4Code,$AC:$AC)","v":0},{"$f":"-SUMIFS(Sheet1!S71_OY1BudgetAmount,Sheet1!S71_A4Code,$AC:$AC)","v":0},{"$f":"-SUMIFS(Sheet1!S71_OY2BudgetAmount,Sheet1!S71_A4Code,$AC:$AC)","v":0},null,null,null,null,null,null,null,null,null,null,null,null,null,null,null,null,"5400"]
["Intercompany/Parent subsidiary transactions",null,{"$f":"SUMIFS(Sheet1!S71_PPPYearAmount,Sheet1!S71_A4Code,$AC:$AC)","v":1112284},{"$f":"SUMIFS(Sheet1!S71_PPYearAmount,Sheet1!S71_A4Code,$AC:$AC)","v":1797113},{"$f":"SUMIFS(Sheet1!S71_PYearAmount,Sheet1!S71_A4Code,$AC:$AC)","v":1154816},{"$f":"-SUMIFS(Sheet1!S71_OriginalBudAmnt,Sheet1!S71_A4Code,$AC:$AC)","v":0},{"$f":"-SUMIFS(Sheet1!S71_AdjustmentBudAmnt,Sheet1!S71_A4Code,$AC:$AC)","v":0},{"$f":"-SUMIFS(Sheet1!S71_AdjustmentBudAmnt,Sheet1!S71_A4Code,$AC:$AC)","v":0},0,{"$f":"-SUMIFS(Sheet1!S71_ASBudgetAmount,Sheet1!S71_A4Code,$AC:$AC)","v":0},{"$f":"-SUMIFS(Sheet1!S71_OY1BudgetAmount,Sheet1!S71_A4Code,$AC:$AC)","v":0},{"$f":"-SUMIFS(Sheet1!S71_OY2BudgetAmount,Sheet1!S71_A4Code,$AC:$AC)","v":0},null,null,null,null,null,null,null,null,null,null,null,null,null,null,null,null,"5500"]
[{"$f":"result","v":"Surplus/(Deficit) for the year"},1,{"$f":"SUM(C56:C58)","v":321581864},{"$f":"SUM(D56:D58)","v":158046089},92572098,51552427,45126944,45126944,45126944,34835709,50209486,32648225,0,0,0,0,0,{"$f":"R35+R58","v":0},0,0,0,0,0,0]
["References"]
["1. Classifications are revenue sources and expenditure type"]
["2. Detail to be provided in Table SA1",null,null,null,null,null,null,null,null,null,null,null,null,null,{"$f":"O59-'A4-FinPerf RE'!J59","v":-34835709},{"$f":"P59-'A4-FinPerf RE'!K59","v":-50209486},{"$f":"Q59-'A4-FinPerf RE'!L59","v":-32648225}]
["3. Debt impairment includes Impairment and Reversal of Impairment Losses"]
["4. Expenditure type components previously shown under repairs and maintenance should be allocated back to the originating expenditure group/item; e.g. employee costs"]
["5. Repairs & maintenance detailed in Table A9 and Table SA34c",null,null,null,null,null,null,null,null,{"$f":"J32+J49","v":640857125},{"$f":"K32+K49","v":668891737},670735033]
["6. Contributions are funds provided by external organisations to assist with infrastructure development; e.g. developer contributions (detail to be provided in Table SA1)"]
["7. Equity method ( Includes Joint Ventures)"]
["8. All materials consumed including water consumed and materials used in operations."]

{"sheet":"A5-Capex","index":36,"n_rows":85,"n_cols":30,"rows_kept":85,"cut":false,"hidden":false,"merged":[[1,9,1,11],[1,5,1,8],[82,0,82,11],[77,0,77,11],[76,0,76,11],[78,0,78,11]]}
[" "]
[{"$f":"Vdesc","v":"Vote Description"},{"$f":"head27","v":"Ref"},{"$f":"head1b","v":"2019/20"},{"$f":"head1A","v":"2020/21"},{"$f":"Head1","v":"2021/22"},{"$f":"Head2","v":"Current Year 2022/23"},null,null,null,{"$f":"Head3","v":"2023/24 Medium Term Revenue & Expenditure Framework"}]
["R thousand",1,{"$f":"Head5","v":"Audited Outcome"},{"$f":"Head5","v":"Audited Outcome"},{"$f":"Head5","v":"Audited Outcome"},{"$f":"Head6","v":"Original Budget"},{"$f":"Head7","v":"Adjusted Budget"},{"$f":"Head8","v":"Full Year Forecast"},{"$f":"Head5b","v":"Pre-audit outcome"},{"$f":"Head9","v":"Budget Year 2023/24"},{"$f":"Head10","v":"Budget Year +1 2024/25"},{"$f":"Head11","v":"Budget Year +2 2025/26"}]
["Capital expenditure - Vote"]
["Multi-year expenditure  to be appropriated",2]
[{"$f":"A5A!A6","v":"Vote 1 -  Energy Sources"},null,{"$f":"A5A!C6","v":0},{"$f":"A5A!D6","v":0},{"$f":"A5A!E6","v":0},{"$f":"A5A!F6","v":0},{"$f":"A5A!G6","v":0},{"$f":"A5A!H6","v":0},{"$f":"A5A!I6","v":0},{"$f":"A5A!J6","v":0},{"$f":"A5A!K6","v":0},{"$f":"A5A!L6","v":0}]
[{"$f":"A5A!A17","v":"Vote 2 - Community and Social Services"},null,{"$f":"A5A!C17","v":0},{"$f":"A5A!D17","v":0},{"$f":"A5A!E17","v":0},{"$f":"A5A!F17","v":0},{"$f":"A5A!G17","v":0},{"$f":"A5A!H17","v":0},{"$f":"A5A!I17","v":0},{"$f":"A5A!J17","v":0},{"$f":"A5A!K17","v":0},{"$f":"A5A!L17","v":0}]
[{"$f":"A5A!A28","v":"Vote 3 - Finance & Administration"},null,{"$f":"A5A!C28","v":0},{"$f":"A5A!D28","v":0},{"$f":"A5A!E28","v":0},{"$f":"A5A!F28","v":0},{"$f":"A5A!G28","v":0},{"$f":"A5A!H28","v":0},{"$f":"A5A!I28","v":0},{"$f":"A5A!J28","v":0},{"$f":"A5A!K28","v":0},{"$f":"A5A!L28","v":0}]
[{"$f":"A5A!A39","v":"Vote 4 - Planning and Development"},null,{"$f":"A5A!C39","v":0},{"$f":"A5A!D39","v":0},{"$f":"A5A!E39","v":0},{"$f":"A5A!F39","v":0},{"$f":"A5A!G39","v":0},{"$f":"A5A!H39","v":0},{"$f":"A5A!I39","v":0},{"$f":"A5A!J39","v":0},{"$f":"A5A!K39","v":0},{"$f":"A5A!L39","v":0}]
[{"$f":"A5A!A50","v":"Vote 5 - Executive & Council"},null,{"$f":"A5A!C50","v":0},{"$f":"A5A!D50","v":0},{"$f":"A5A!E50","v":0},{"$f":"A5A!F50","v":0},{"$f":"A5A!G50","v":0},{"$f":"A5A!H50","v":0},{"$f":"A5A!I50","v":0},{"$f":"A5A!J50","v":0},{"$f":"A5A!K50","v":0},{"$f":"A5A!L50","v":0}]
[{"$f":"A5A!A61","v":"Vote 6 - Internal Audit"},null,{"$f":"A5A!C61","v":0},{"$f":"A5A!D61","v":0},{"$f":"A5A!E61","v":0},{"$f":"A5A!F61","v":0},{"$f":"A5A!G61","v":0},{"$f":"A5A!H61","v":0},{"$f":"A5A!I61","v":0},{"$f":"A5A!J61","v":0},{"$f":"A5A!K61","v":0},{"$f":"A5A!L61","v":0}]
[{"$f":"A5A!A72","v":"Vote 7 - Road Transport"},null,{"$f":"A5A!C72","v":0},{"$f":"A5A!D72","v":0},{"$f":"A5A!E72","v":0},{"$f":"A5A!F72","v":0},{"$f":"A5A!G72","v":0},{"$f":"A5A!H72","v":0},{"$f":"A5A!I72","v":0},{"$f":"A5A!J72","v":0},{"$f":"A5A!K72","v":0},{"$f":"A5A!L72","v":0}]
[{"$f":"A5A!A83","v":"Vote 8 - Public Safety"},null,{"$f":"A5A!C83","v":0},{"$f":"A5A!D83","v":0},{"$f":"A5A!E83","v":0},{"$f":"A5A!F83","v":0},{"$f":"A5A!G83","v":0},{"$f":"A5A!H83","v":0},{"$f":"A5A!I83","v":0},{"$f":"A5A!J83","v":0},{"$f":"A5A!K83","v":0},{"$f":"A5A!L83","v":0}]
[{"$f":"A5A!A94","v":"Vote 9 - Waste Management"},null,{"$f":"A5A!C94","v":0},{"$f":"A5A!D94","v":0},{"$f":"A5A!E94","v":0},{"$f":"A5A!F94","v":0},{"$f":"A5A!G94","v":0},{"$f":"A5A!H94","v":0},{"$f":"A5A!I94","v":0},{"$f":"A5A!J94","v":0},{"$f":"A5A!K94","v":0},{"$f":"A5A!L94","v":0}]
[{"$f":"A5A!A105","v":"Vote 10 - Sports & Recreation"},null,{"$f":"A5A!C105","v":0},{"$f":"A5A!D105","v":0},{"$f":"A5A!E105","v":0},{"$f":"A5A!F105","v":0},{"$f":"A5A!G105","v":0},{"$f":"A5A!H105","v":0},{"$f":"A5A!I105","v":0},{"$f":"A5A!J105","v":0},{"$f":"A5A!K105","v":0},{"$f":"A5A!L105","v":0}]
[{"$f":"A5A!A116","v":"Vote 11 - Water Management"},null,{"$f":"A5A!C116","v":0},{"$f":"A5A!D116","v":0},{"$f":"A5A!E116","v":0},{"$f":"A5A!F116","v":0},{"$f":"A5A!G116","v":0},{"$f":"A5A!H116","v":0},{"$f":"A5A!I116","v":0},{"$f":"A5A!J116","v":0},{"$f":"A5A!K116","v":0},{"$f":"A5A!L116","v":0}]
[{"$f":"A5A!A127","v":"Vote 12 - Waste Water Management"},null,{"$f":"A5A!C127","v":0},{"$f":"A5A!D127","v":0},{"$f":"A5A!E127","v":0},{"$f":"A5A!F127","v":0},{"$f":"A5A!G127","v":0},{"$f":"A5A!H127","v":0},{"$f":"A5A!I127","v":0},{"$f":"A5A!J127","v":0},{"$f":"A5A!K127","v":0},{"$f":"A5A!L127","v":0}]
[{"$f":"A5A!A138","v":"Vote 13 - Housing"},null,{"$f":"A5A!C138","v":0},{"$f":"A5A!D138","v":0},{"$f":"A5A!E138","v":0},{"$f":"A5A!F138","v":0},{"$f":"A5A!G138","v":0},{"$f":"A5A!H138","v":0},{"$f":"A5A!I138","v":0},{"$f":"A5A!J138","v":0},{"$f":"A5A!K138","v":0},{"$f":"A5A!L138","v":0}]
[{"$f":"A5A!A149","v":"Vote 14 - Finance & Administration 2"},null,{"$f":"A5A!C149","v":0},{"$f":"A5A!D149","v":0},{"$f":"A5A!E149","v":0},{"$f":"A5A!F149","v":0},{"$f":"A5A!G149","v":0},{"$f":"A5A!H149","v":0},{"$f":"A5A!I149","v":0},{"$f":"A5A!J149","v":0},{"$f":"A5A!K149","v":0},{"$f":"A5A!L149","v":0}]
[{"$f":"A5A!A160","v":"Vote 15 - [NAME OF VOTE 15]"},null,{"$f":"A5A!C160","v":0},{"$f":"A5A!D160","v":0},{"$f":"A5A!E160","v":0},{"$f":"A5A!F160","v":0},{"$f":"A5A!G160","v":0},{"$f":"A5A!H160","v":0},{"$f":"A5A!I160","v":0},{"$f":"A5A!J160","v":0},{"$f":"A5A!K160","v":0},{"$f":"A5A!L160","v":0}]
["Capital multi-year expenditure sub-total",7,{"$f":"SUM(C6:C20)","v":0},{"$f":"SUM(D6:D20)","v":0},0,0,0,{"$f":"SUM(H6:H20)","v":0},0,0,0,0]
[]
["Single-year expenditure to be appropriated",2]
[{"$f":"A6","v":"Vote 1 -  Energy Sources"},null,{"$f":"A5A!C175","v":6283885},{"$f":"A5A!D175","v":15680946},{"$f":"A5A!E175","v":7133044},{"$f":"A5A!F175","v":2500000},{"$f":"A5A!G175","v":405000},{"$f":"A5A!H175","v":405000},{"$f":"H24","v":405000},{"$f":"A5A!J175","v":6000000},{"$f":"A5A!K175","v":5000000},{"$f":"A5A!L175","v":5000000}]
[{"$f":"A7","v":"Vote 2 - Community and Social Services"},null,{"$f":"A5A!C186","v":1627804},{"$f":"A5A!D186","v":1627804},{"$f":"A5A!E186","v":10426720},{"$f":"A5A!F186","v":40741416},{"$f":"A5A!G186","v":25913507},{"$f":"A5A!H186","v":25913507},{"$f":"H25","v":25913507},{"$f":"A5A!J186","v":8009410},{"$f":"A5A!K186","v":1100000},{"$f":"A5A!L186","v":1200000}]
["Vote 3 - Finance & Administration",null,{"$f":"A5A!C197","v":7441106},{"$f":"A5A!D197","v":8769754},{"$f":"A5A!E197","v":9666688},{"$f":"A5A!F197","v":10100000},{"$f":"A5A!G197","v":14100000},{"$f":"A5A!H197","v":14100000},14100000,{"$f":"A5A!J197","v":15275000},{"$f":"A5A!K197","v":14820000},{"$f":"A5A!L197","v":15030000}]
["Vote 4 - Planning and Development",null,{"$f":"A5A!C208","v":0},{"$f":"A5A!D208","v":0},{"$f":"A5A!E208","v":1757505},{"$f":"A5A!F208","v":1500000},{"$f":"A5A!G208","v":0},{"$f":"A5A!H208","v":0},0,{"$f":"A5A!J208","v":1000000},{"$f":"A5A!K208","v":0},{"$f":"A5A!L208","v":0}]
["Vote 5 - Executive & Council",null,{"$f":"A5A!C219","v":0},{"$f":"A5A!D219","v":0},{"$f":"A5A!E219","v":0},{"$f":"A5A!F219","v":0},{"$f":"A5A!G219","v":0},{"$f":"A5A!H219","v":0},0,{"$f":"A5A!J219","v":0},{"$f":"A5A!K219","v":0},{"$f":"A5A!L219","v":0}]
["Vote 6 - Internal Audit",null,{"$f":"A5A!C230","v":0},{"$f":"A5A!D230","v":0},{"$f":"A5A!E230","v":0},{"$f":"A5A!F230","v":0},{"$f":"A5A!G230","v":0},{"$f":"A5A!H230","v":0},0,{"$f":"A5A!J230","v":550000},{"$f":"A5A!K230","v":0},{"$f":"A5A!L230","v":0}]
["Vote 7 - Road Transport",null,{"$f":"A5A!C241","v":72123869},{"$f":"A5A!D241","v":62281609},{"$f":"A5A!E241","v":46062418},{"$f":"A5A!F241","v":38479622},{"$f":"A5A!G241","v":58119326},{"$f":"A5A!H241","v":58119326},58119326,{"$f":"A5A!J241","v":85873910},{"$f":"A5A!K241","v":130686968},{"$f":"A5A!L241","v":129815856}]
["Vote 8 - Public Safety",null,{"$f":"A5A!C252","v":0},{"$f":"A5A!D252","v":0},{"$f":"A5A!E252","v":2435125},{"$f":"A5A!F252","v":0},{"$f":"A5A!G252","v":0},{"$f":"A5A!H252","v":0},0,{"$f":"A5A!J252","v":1300000},{"$f":"A5A!K252","v":0},{"$f":"A5A!L252","v":0}]
["Vote 9 - Waste Management",null,{"$f":"A5A!C263","v":8470229},{"$f":"A5A!D263","v":8470229},{"$f":"A5A!E263","v":10146189},{"$f":"A5A!F263","v":250000},{"$f":"A5A!G263","v":350000},{"$f":"A5A!H263","v":350000},350000,{"$f":"A5A!J263","v":2000000},{"$f":"A5A!K263","v":2100000},{"$f":"A5A!L263","v":2200000}]
["Vote 10 - Sports & Recreation",null,{"$f":"A5A!C274","v":48991504},{"$f":"A5A!D274","v":13259362},{"$f":"A5A!E274","v":18994263},{"$f":"A5A!F274","v":31957650},{"$f":"A5A!G274","v":22280759},{"$f":"A5A!H274","v":22280759},22280759,{"$f":"A5A!J274","v":19113679},{"$f":"A5A!K274","v":13500000},{"$f":"A5A!L274","v":0}]
["Vote 11 - Water Management",null,{"$f":"A5A!C285","v":0},{"$f":"A5A!D285","v":0},{"$f":"A5A!E285","v":0},{"$f":"A5A!F285","v":0},{"$f":"A5A!G285","v":0},{"$f":"A5A!H285","v":0},0,{"$f":"A5A!J285","v":0},{"$f":"A5A!K285","v":0},{"$f":"A5A!L285","v":0}]
["Vote 12 - Waste Water Management",null,{"$f":"A5A!C296","v":0},{"$f":"A5A!D296","v":0},{"$f":"A5A!E296","v":0},{"$f":"A5A!F296","v":0},{"$f":"A5A!G296","v":0},{"$f":"A5A!H296","v":0},0,{"$f":"A5A!J296","v":0},{"$f":"A5A!K296","v":0},{"$f":"A5A!L296","v":0}]
["Vote 13 - Housing",null,{"$f":"A5A!C307","v":0},{"$f":"A5A!D307","v":1713492},{"$f":"A5A!E307","v":8321600},{"$f":"A5A!F307","v":18543541},{"$f":"A5A!G307","v":14339275},{"$f":"A5A!H307","v":14339275},14339275,{"$f":"A5A!J307","v":13269189},{"$f":"A5A!K307","v":0},{"$f":"A5A!L307","v":0}]
["Vote 14 - Finance & Administration 2",null,{"$f":"A5A!C318","v":0},{"$f":"A5A!D318","v":0},{"$f":"A5A!E318","v":0},{"$f":"A5A!F318","v":4100000},{"$f":"A5A!G318","v":2700000},{"$f":"A5A!H318","v":2700000},2700000,{"$f":"A5A!J318","v":6400000},{"$f":"A5A!K318","v":6120000},{"$f":"A5A!L318","v":6390000}]
[{"$f":"A20","v":"Vote 15 - [NAME OF VOTE 15]"},null,{"$f":"A5A!C329","v":0},{"$f":"A5A!D329","v":0},{"$f":"A5A!E329","v":0},{"$f":"A5A!F329","v":0},{"$f":"A5A!G329","v":0},{"$f":"A5A!H329","v":0},0,{"$f":"A5A!J329","v":0},{"$f":"A5A!K329","v":0},{"$f":"A5A!L329","v":0}]
["Capital single-year expenditure sub-total",null,{"$f":"SUM(C24:C38)","v":144938397},{"$f":"SUM(D24:D38)","v":111803196},114943552,148172229,138207867,138207867,138207867,158791188,173326968,159635856]
["Total Capital Expenditure - Vote",null,{"$f":"C39+C21","v":144938397},{"$f":"D39+D21","v":111803196},114943552,148172229,138207867,138207867,138207867,158791188,173326968,159635856]
[]
["Capital Expenditure - Functional"]
["Governance and administration",null,{"$f":"SUM(C44:C46)","v":7441106},{"$f":"SUM(D44:D46)","v":8769754},9666688,14200000,16800000,16800000,16800000,22225000,20940000,21420000]
["Executive and council",null,{"$f":"SUMIFS(Sheet1!S71_PPPYearAmount,Sheet1!S71_A2Code,$AC:$AC,Sheet1!S71_A5CapexCode,$AD:$AD)","v":0},{"$f":"SUMIFS(Sheet1!S71_PPYearAmount,Sheet1!S71_A2Code,$AC:$AC,Sheet1!S71_A5CapexCode,$AD:$AD)","v":0},{"$f":"SUMIFS(Sheet1!S71_PYearAmount,Sheet1!S71_A2Code,$AC:$AC,Sheet1!S71_A5CapexCode,$AD:$AD)","v":0},{"$f":"SUMIFS(Sheet1!S71_OriginalBudAmnt,Sheet1!S71_A2Code,$AC:$AC,Sheet1!S71_A5CapexCode,$AD:$AD)","v":0},{"$f":"SUMIFS(Sheet1!S71_AdjustmentBudAmnt,Sheet1!S71_A2Code,$AC:$AC,Sheet1!S71_A5CapexCode,$AD:$AD)","v":0},{"$f":"SUMIFS(Sheet1!S71_AdjustmentBudAmnt,Sheet1!S71_A2Code,$AC:$AC,Sheet1!S71_A5CapexCode,$AD:$AD)","v":0},{"$f":"H44","v":0},{"$f":"SUMIFS(Sheet1!S71_ASBudgetAmount,Sheet1!S71_A2Code,$AC:$AC,Sheet1!S71_A5CapexCode,$AD:$AD)","v":0},{"$f":"SUMIFS(Sheet1!S71_OY1BudgetAmount,Sheet1!S71_A2Code,$AC:$AC,Sheet1!S71_A5CapexCode,$AD:$AD)","v":0},{"$f":"SUMIFS(Sheet1!S71_OY2BudgetAmount,Sheet1!S71_A2Code,$AC:$AC,Sheet1!S71_A5CapexCode,$AD:$AD)","v":0},null,null,null,null,null,null,null,null,null,null,null,null,null,null,null,null,"1100","CE"]
["Finance and administration",null,{"$f":"SUMIFS(Sheet1!S71_PPPYearAmount,Sheet1!S71_A2Code,$AC:$AC,Sheet1!S71_A5CapexCode,$AD:$AD)","v":7441106},{"$f":"SUMIFS(Sheet1!S71_PPYearAmount,Sheet1!S71_A2Code,$AC:$AC,Sheet1!S71_A5CapexCode,$AD:$AD)","v":8769754},{"$f":"SUMIFS(Sheet1!S71_PYearAmount,Sheet1!S71_A2Code,$AC:$AC,Sheet1!S71_A5CapexCode,$AD:$AD)","v":9666688},{"$f":"SUMIFS(Sheet1!S71_OriginalBudAmnt,Sheet1!S71_A2Code,$AC:$AC,Sheet1!S71_A5CapexCode,$AD:$AD)","v":14200000},{"$f":"SUMIFS(Sheet1!S71_AdjustmentBudAmnt,Sheet1!S71_A2Code,$AC:$AC,Sheet1!S71_A5CapexCode,$AD:$AD)","v":16800000},{"$f":"SUMIFS(Sheet1!S71_AdjustmentBudAmnt,Sheet1!S71_A2Code,$AC:$AC,Sheet1!S71_A5CapexCode,$AD:$AD)","v":16800000},{"$f":"H45","v":16800000},{"$f":"SUMIFS(Sheet1!S71_ASBudgetAmount,Sheet1!S71_A2Code,$AC:$AC,Sheet1!S71_A5CapexCode,$AD:$AD)","v":21675000},{"$f":"SUMIFS(Sheet1!S71_OY1BudgetAmount,Sheet1!S71_A2Code,$AC:$AC,Sheet1!S71_A5CapexCode,$AD:$AD)","v":20940000},{"$f":"SUMIFS(Sheet1!S71_OY2BudgetAmount,Sheet1!S71_A2Code,$AC:$AC,Sheet1!S71_A5CapexCode,$AD:$AD)","v":21420000},null,null,null,null,null,null,null,null,null,null,null,null,null,null,null,null,"1200","CE"]
["Internal audit",null,{"$f":"SUMIFS(Sheet1!S71_PPPYearAmount,Sheet1!S71_A2Code,$AC:$AC,Sheet1!S71_A5CapexCode,$AD:$AD)","v":0},{"$f":"SUMIFS(Sheet1!S71_PPYearAmount,Sheet1!S71_A2Code,$AC:$AC,Sheet1!S71_A5CapexCode,$AD:$AD)","v":0},{"$f":"SUMIFS(Sheet1!S71_PYearAmount,Sheet1!S71_A2Code,$AC:$AC,Sheet1!S71_A5CapexCode,$AD:$AD)","v":0},{"$f":"SUMIFS(Sheet1!S71_OriginalBudAmnt,Sheet1!S71_A2Code,$AC:$AC,Sheet1!S71_A5CapexCode,$AD:$AD)","v":0},{"$f":"SUMIFS(Sheet1!S71_AdjustmentBudAmnt,Sheet1!S71_A2Code,$AC:$AC,Sheet1!S71_A5CapexCode,$AD:$AD)","v":0},{"$f":"SUMIFS(Sheet1!S71_AdjustmentBudAmnt,Sheet1!S71_A2Code,$AC:$AC,Sheet1!S71_A5CapexCode,$AD:$AD)","v":0},0,{"$f":"SUMIFS(Sheet1!S71_ASBudgetAmount,Sheet1!S71_A2Code,$AC:$AC,Sheet1!S71_A5CapexCode,$AD:$AD)","v":550000},{"$f":"SUMIFS(Sheet1!S71_OY1BudgetAmount,Sheet1!S71_A2Code,$AC:$AC,Sheet1!S71_A5CapexCode,$AD:$AD)","v":0},{"$f":"SUMIFS(Sheet1!S71_OY2BudgetAmount,Sheet1!S71_A2Code,$AC:$AC,Sheet1!S71_A5CapexCode,$AD:$AD)","v":0},null,null,null,null,null,null,null,null,null,null,null,null,null,null,null,null,"1300","CE"]
["Community and public safety",null,{"$f":"SUM(C48:C52)","v":20624463},{"$f":"SUM(D48:D52)","v":16600658},40177708,91242607,62533541,62533541,62533541,41692278,14600000,1200000]
["Community and social services",null,{"$f":"SUMIFS(Sheet1!S71_PPPYearAmount,Sheet1!S71_A2Code,$AC:$AC,Sheet1!S71_A5CapexCode,$AD:$AD)","v":1627804},{"$f":"SUMIFS(Sheet1!S71_PPYearAmount,Sheet1!S71_A2Code,$AC:$AC,Sheet1!S71_A5CapexCode,$AD:$AD)","v":1627804},{"$f":"SUMIFS(Sheet1!S71_PYearAmount,Sheet1!S71_A2Code,$AC:$AC,Sheet1!S71_A5CapexCode,$AD:$AD)","v":10426720},{"$f":"SUMIFS(Sheet1!S71_OriginalBudAmnt,Sheet1!S71_A2Code,$AC:$AC,Sheet1!S71_A5CapexCode,$AD:$AD)","v":40741416},{"$f":"SUMIFS(Sheet1!S71_AdjustmentBudAmnt,Sheet1!S71_A2Code,$AC:$AC,Sheet1!S71_A5CapexCode,$AD:$AD)","v":25913507},{"$f":"SUMIFS(Sheet1!S71_AdjustmentBudAmnt,Sheet1!S71_A2Code,$AC:$AC,Sheet1!S71_A5CapexCode,$AD:$AD)","v":25913507},{"$f":"H48","v":25913507},{"$f":"SUMIFS(Sheet1!S71_ASBudgetAmount,Sheet1!S71_A2Code,$AC:$AC,Sheet1!S71_A5CapexCode,$AD:$AD)","v":8009410},{"$f":"SUMIFS(Sheet1!S71_OY1BudgetAmount,Sheet1!S71_A2Code,$AC:$AC,Sheet1!S71_A5CapexCode,$AD:$AD)","v":1100000},{"$f":"SUMIFS(Sheet1!S71_OY2BudgetAmount,Sheet1!S71_A2Code,$AC:$AC,Sheet1!S71_A5CapexCode,$AD:$AD)","v":1200000},null,null,null,null,null,null,null,null,null,null,null,null,null,null,null,null,"2100","CE"]
["Sport and recreation",null,{"$f":"SUMIFS(Sheet1!S71_PPPYearAmount,Sheet1!S71_A2Code,$AC:$AC,Sheet1!S71_A5CapexCode,$AD:$AD)-29994845","v":18996659},{"$f":"SUMIFS(Sheet1!S71_PPYearAmount,Sheet1!S71_A2Code,$AC:$AC,Sheet1!S71_A5CapexCode,$AD:$AD)","v":13259362},{"$f":"SUMIFS(Sheet1!S71_PYearAmount,Sheet1!S71_A2Code,$AC:$AC,Sheet1!S71_A5CapexCode,$AD:$AD)","v":18994263},{"$f":"SUMIFS(Sheet1!S71_OriginalBudAmnt,Sheet1!S71_A2Code,$AC:$AC,Sheet1!S71_A5CapexCode,$AD:$AD)","v":31957650},{"$f":"SUMIFS(Sheet1!S71_AdjustmentBudAmnt,Sheet1!S71_A2Code,$AC:$AC,Sheet1!S71_A5CapexCode,$AD:$AD)","v":22280759},{"$f":"SUMIFS(Sheet1!S71_AdjustmentBudAmnt,Sheet1!S71_A2Code,$AC:$AC,Sheet1!S71_A5CapexCode,$AD:$AD)","v":22280759},22280759,{"$f":"SUMIFS(Sheet1!S71_ASBudgetAmount,Sheet1!S71_A2Code,$AC:$AC,Sheet1!S71_A5CapexCode,$AD:$AD)","v":19113679},{"$f":"SUMIFS(Sheet1!S71_OY1BudgetAmount,Sheet1!S71_A2Code,$AC:$AC,Sheet1!S71_A5CapexCode,$AD:$AD)","v":13500000},{"$f":"SUMIFS(Sheet1!S71_OY2BudgetAmount,Sheet1!S71_A2Code,$AC:$AC,Sheet1!S71_A5CapexCode,$AD:$AD)","v":0},null,null,null,null,null,null,null,null,null,null,null,null,null,null,null,null,"2200","CE"]
["Public safety",null,{"$f":"SUMIFS(Sheet1!S71_PPPYearAmount,Sheet1!S71_A2Code,$AC:$AC,Sheet1!S71_A5CapexCode,$AD:$AD)","v":0},{"$f":"SUMIFS(Sheet1!S71_PPYearAmount,Sheet1!S71_A2Code,$AC:$AC,Sheet1!S71_A5CapexCode,$AD:$AD)","v":0},{"$f":"SUMIFS(Sheet1!S71_PYearAmount,Sheet1!S71_A2Code,$AC:$AC,Sheet1!S71_A5CapexCode,$AD:$AD)","v":2435125},{"$f":"SUMIFS(Sheet1!S71_OriginalBudAmnt,Sheet1!S71_A2Code,$AC:$AC,Sheet1!S71_A5CapexCode,$AD:$AD)","v":0},{"$f":"SUMIFS(Sheet1!S71_AdjustmentBudAmnt,Sheet1!S71_A2Code,$AC:$AC,Sheet1!S71_A5CapexCode,$AD:$AD)","v":0},{"$f":"SUMIFS(Sheet1!S71_AdjustmentBudAmnt,Sheet1!S71_A2Code,$AC:$AC,Sheet1!S71_A5CapexCode,$AD:$AD)","v":0},0,{"$f":"SUMIFS(Sheet1!S71_ASBudgetAmount,Sheet1!S71_A2Code,$AC:$AC,Sheet1!S71_A5CapexCode,$AD:$AD)","v":1300000},{"$f":"SUMIFS(Sheet1!S71_OY1BudgetAmount,Sheet1!S71_A2Code,$AC:$AC,Sheet1!S71_A5CapexCode,$AD:$AD)","v":0},{"$f":"SUMIFS(Sheet1!S71_OY2BudgetAmount,Sheet1!S71_A2Code,$AC:$AC,Sheet1!S71_A5CapexCode,$AD:$AD)","v":0},null,null,null,null,null,null,null,null,null,null,null,null,null,null,null,null,"2300","CE"]
["Housing",null,{"$f":"SUMIFS(Sheet1!S71_PPPYearAmount,Sheet1!S71_A2Code,$AC:$AC,Sheet1!S71_A5CapexCode,$AD:$AD)","v":0},{"$f":"SUMIFS(Sheet1!S71_PPYearAmount,Sheet1!S71_A2Code,$AC:$AC,Sheet1!S71_A5CapexCode,$AD:$AD)","v":1713492},{"$f":"SUMIFS(Sheet1!S71_PYearAmount,Sheet1!S71_A2Code,$AC:$AC,Sheet1!S71_A5CapexCode,$AD:$AD)","v":8321600},{"$f":"SUMIFS(Sheet1!S71_OriginalBudAmnt,Sheet1!S71_A2Code,$AC:$AC,Sheet1!S71_A5CapexCode,$AD:$AD)","v":18543541},{"$f":"SUMIFS(Sheet1!S71_AdjustmentBudAmnt,Sheet1!S71_A2Code,$AC:$AC,Sheet1!S71_A5CapexCode,$AD:$AD)","v":14339275},{"$f":"SUMIFS(Sheet1!S71_AdjustmentBudAmnt,Sheet1!S71_A2Code,$AC:$AC,Sheet1!S71_A5CapexCode,$AD:$AD)","v":14339275},14339275,{"$f":"SUMIFS(Sheet1!S71_ASBudgetAmount,Sheet1!S71_A2Code,$AC:$AC,Sheet1!S71_A5CapexCode,$AD:$AD)","v":13269189},{"$f":"SUMIFS(Sheet1!S71_OY1BudgetAmount,Sheet1!S71_A2Code,$AC:$AC,Sheet1!S71_A5CapexCode,$AD:$AD)","v":0},{"$f":"SUMIFS(Sheet1!S71_OY2BudgetAmount,Sheet1!S71_A2Code,$AC:$AC,Sheet1!S71_A5CapexCode,$AD:$AD)","v":0},null,null,null,null,null,null,null,null,null,null,null,null,null,null,null,null,"2400","CE"]
["Health",null,{"$f":"SUMIFS(Sheet1!S71_PPPYearAmount,Sheet1!S71_A2Code,$AC:$AC,Sheet1!S71_A5CapexCode,$AD:$AD)","v":0},{"$f":"SUMIFS(Sheet1!S71_PPYearAmount,Sheet1!S71_A2Code,$AC:$AC,Sheet1!S71_A5CapexCode,$AD:$AD)","v":0},{"$f":"SUMIFS(Sheet1!S71_PYearAmount,Sheet1!S71_A2Code,$AC:$AC,Sheet1!S71_A5CapexCode,$AD:$AD)","v":0},{"$f":"SUMIFS(Sheet1!S71_OriginalBudAmnt,Sheet1!S71_A2Code,$AC:$AC,Sheet1!S71_A5CapexCode,$AD:$AD)","v":0},{"$f":"SUMIFS(Sheet1!S71_AdjustmentBudAmnt,Sheet1!S71_A2Code,$AC:$AC,Sheet1!S71_A5CapexCode,$AD:$AD)","v":0},{"$f":"SUMIFS(Sheet1!S71_AdjustmentBudAmnt,Sheet1!S71_A2Code,$AC:$AC,Sheet1!S71_A5CapexCode,$AD:$AD)","v":0},0,{"$f":"SUMIFS(Sheet1!S71_ASBudgetAmount,Sheet1!S71_A2Code,$AC:$AC,Sheet1!S71_A5CapexCode,$AD:$AD)","v":0},{"$f":"SUMIFS(Sheet1!S71_OY1BudgetAmount,Sheet1!S71_A2Code,$AC:$AC,Sheet1!S71_A5CapexCode,$AD:$AD)","v":0},{"$f":"SUMIFS(Sheet1!S71_OY2BudgetAmount,Sheet1!S71_A2Code,$AC:$AC,Sheet1!S71_A5CapexCode,$AD:$AD)","v":0},null,null,null,null,null,null,null,null,null,null,null,null,null,null,null,null,"2500","CE"]
["Economic and environmental services",null,{"$f":"SUM(C54:C56)","v":72123869},{"$f":"SUM(D54:D56)","v":62281609},47819923,39979622,58119326,58119326,58119326,86873910,130686968,129815856]
["Planning and development",null,{"$f":"SUMIFS(Sheet1!S71_PPPYearAmount,Sheet1!S71_A2Code,$AC:$AC,Sheet1!S71_A5CapexCode,$AD:$AD)","v":0},{"$f":"SUMIFS(Sheet1!S71_PPYearAmount,Sheet1!S71_A2Code,$AC:$AC,Sheet1!S71_A5CapexCode,$AD:$AD)","v":0},{"$f":"SUMIFS(Sheet1!S71_PYearAmount,Sheet1!S71_A2Code,$AC:$AC,Sheet1!S71_A5CapexCode,$AD:$AD)","v":1757505},{"$f":"SUMIFS(Sheet1!S71_OriginalBudAmnt,Sheet1!S71_A2Code,$AC:$AC,Sheet1!S71_A5CapexCode,$AD:$AD)","v":1500000},{"$f":"SUMIFS(Sheet1!S71_AdjustmentBudAmnt,Sheet1!S71_A2Code,$AC:$AC,Sheet1!S71_A5CapexCode,$AD:$AD)","v":0},{"$f":"SUMIFS(Sheet1!S71_AdjustmentBudAmnt,Sheet1!S71_A2Code,$AC:$AC,Sheet1!S71_A5CapexCode,$AD:$AD)","v":0},{"$f":"H54","v":0},{"$f":"SUMIFS(Sheet1!S71_ASBudgetAmount,Sheet1!S71_A2Code,$AC:$AC,Sheet1!S71_A5CapexCode,$AD:$AD)","v":1000000},{"$f":"SUMIFS(Sheet1!S71_OY1BudgetAmount,Sheet1!S71_A2Code,$AC:$AC,Sheet1!S71_A5CapexCode,$AD:$AD)","v":0},{"$f":"SUMIFS(Sheet1!S71_OY2BudgetAmount,Sheet1!S71_A2Code,$AC:$AC,Sheet1!S71_A5CapexCode,$AD:$AD)","v":0},null,null,null,null,null,null,null,null,null,null,null,null,null,null,null,null,"3100","CE"]
["Road transport",null,{"$f":"SUMIFS(Sheet1!S71_PPPYearAmount,Sheet1!S71_A2Code,$AC:$AC,Sheet1!S71_A5CapexCode,$AD:$AD)","v":72123869},{"$f":"SUMIFS(Sheet1!S71_PPYearAmount,Sheet1!S71_A2Code,$AC:$AC,Sheet1!S71_A5CapexCode,$AD:$AD)","v":62281609},{"$f":"SUMIFS(Sheet1!S71_PYearAmount,Sheet1!S71_A2Code,$AC:$AC,Sheet1!S71_A5CapexCode,$AD:$AD)","v":46062418},{"$f":"SUMIFS(Sheet1!S71_OriginalBudAmnt,Sheet1!S71_A2Code,$AC:$AC,Sheet1!S71_A5CapexCode,$AD:$AD)","v":38479622},{"$f":"SUMIFS(Sheet1!S71_AdjustmentBudAmnt,Sheet1!S71_A2Code,$AC:$AC,Sheet1!S71_A5CapexCode,$AD:$AD)","v":58119326},{"$f":"SUMIFS(Sheet1!S71_AdjustmentBudAmnt,Sheet1!S71_A2Code,$AC:$AC,Sheet1!S71_A5CapexCode,$AD:$AD)","v":58119326},58119326,{"$f":"SUMIFS(Sheet1!S71_ASBudgetAmount,Sheet1!S71_A2Code,$AC:$AC,Sheet1!S71_A5CapexCode,$AD:$AD)","v":85873910},{"$f":"SUMIFS(Sheet1!S71_OY1BudgetAmount,Sheet1!S71_A2Code,$AC:$AC,Sheet1!S71_A5CapexCode,$AD:$AD)","v":130686968},{"$f":"SUMIFS(Sheet1!S71_OY2BudgetAmount,Sheet1!S71_A2Code,$AC:$AC,Sheet1!S71_A5CapexCode,$AD:$AD)","v":129815856},null,null,null,null,null,null,null,null,null,null,null,null,null,null,null,null,"3200","CE"]
["Environmental protection",null,{"$f":"SUMIFS(Sheet1!S71_PPPYearAmount,Sheet1!S71_A2Code,$AC:$AC,Sheet1!S71_A5CapexCode,$AD:$AD)","v":0},{"$f":"SUMIFS(Sheet1!S71_PPYearAmount,Sheet1!S71_A2Code,$AC:$AC,Sheet1!S71_A5CapexCode,$AD:$AD)","v":0},{"$f":"SUMIFS(Sheet1!S71_PYearAmount,Sheet1!S71_A2Code,$AC:$AC,Sheet1!S71_A5CapexCode,$AD:$AD)","v":0},{"$f":"SUMIFS(Sheet1!S71_OriginalBudAmnt,Sheet1!S71_A2Code,$AC:$AC,Sheet1!S71_A5CapexCode,$AD:$AD)","v":0},{"$f":"SUMIFS(Sheet1!S71_AdjustmentBudAmnt,Sheet1!S71_A2Code,$AC:$AC,Sheet1!S71_A5CapexCode,$AD:$AD)","v":0},{"$f":"SUMIFS(Sheet1!S71_AdjustmentBudAmnt,Sheet1!S71_A2Code,$AC:$AC,Sheet1!S71_A5CapexCode,$AD:$AD)","v":0},0,{"$f":"SUMIFS(Sheet1!S71_ASBudgetAmount,Sheet1!S71_A2Code,$AC:$AC,Sheet1!S71_A5CapexCode,$AD:$AD)","v":0},{"$f":"SUMIFS(Sheet1!S71_OY1BudgetAmount,Sheet1!S71_A2Code,$AC:$AC,Sheet1!S71_A5CapexCode,$AD:$AD)","v":0},{"$f":"SUMIFS(Sheet1!S71_OY2BudgetAmount,Sheet1!S71_A2Code,$AC:$AC,Sheet1!S71_A5CapexCode,$AD:$AD)","v":0},null,null,null,null,null,null,null,null,null,null,null,null,null,null,null,null,"3300","CE"]
["Trading services",null,{"$f":"SUM(C58:C61)","v":14754114},{"$f":"SUM(D58:D61)","v":24151175},17279233,2750000,755000,755000,755000,8000000,7100000,7200000,null,null,null,null,null,null,null,null,null,null,null,null,null,null,null,null,null,"CE"]
["Energy sources",null,{"$f":"SUMIFS(Sheet1!S71_PPPYearAmount,Sheet1!S71_A2Code,$AC:$AC,Sheet1!S71_A5CapexCode,$AD:$AD)","v":6283885},{"$f":"SUMIFS(Sheet1!S71_PPYearAmount,Sheet1!S71_A2Code,$AC:$AC,Sheet1!S71_A5CapexCode,$AD:$AD)","v":15680946},{"$f":"SUMIFS(Sheet1!S71_PYearAmount,Sheet1!S71_A2Code,$AC:$AC,Sheet1!S71_A5CapexCode,$AD:$AD)","v":7133044},{"$f":"SUMIFS(Sheet1!S71_OriginalBudAmnt,Sheet1!S71_A2Code,$AC:$AC,Sheet1!S71_A5CapexCode,$AD:$AD)","v":2500000},{"$f":"SUMIFS(Sheet1!S71_AdjustmentBudAmnt,Sheet1!S71_A2Code,$AC:$AC,Sheet1!S71_A5CapexCode,$AD:$AD)","v":405000},{"$f":"SUMIFS(Sheet1!S71_AdjustmentBudAmnt,Sheet1!S71_A2Code,$AC:$AC,Sheet1!S71_A5CapexCode,$AD:$AD)","v":405000},{"$f":"H58","v":405000},{"$f":"SUMIFS(Sheet1!S71_ASBudgetAmount,Sheet1!S71_A2Code,$AC:$AC,Sheet1!S71_A5CapexCode,$AD:$AD)","v":6000000},{"$f":"SUMIFS(Sheet1!S71_OY1BudgetAmount,Sheet1!S71_A2Code,$AC:$AC,Sheet1!S71_A5CapexCode,$AD:$AD)","v":5000000},{"$f":"SUMIFS(Sheet1!S71_OY2BudgetAmount,Sheet1!S71_A2Code,$AC:$AC,Sheet1!S71_A5CapexCode,$AD:$AD)","v":5000000},null,null,null,null,null,null,null,null,null,null,null,null,null,null,null,null,"4100","CE"]
["Water management",null,{"$f":"SUMIFS(Sheet1!S71_PPPYearAmount,Sheet1!S71_A2Code,$AC:$AC,Sheet1!S71_A5CapexCode,$AD:$AD)","v":0},{"$f":"SUMIFS(Sheet1!S71_PPYearAmount,Sheet1!S71_A2Code,$AC:$AC,Sheet1!S71_A5CapexCode,$AD:$AD)","v":0},{"$f":"SUMIFS(Sheet1!S71_PYearAmount,Sheet1!S71_A2Code,$AC:$AC,Sheet1!S71_A5CapexCode,$AD:$AD)","v":0},{"$f":"SUMIFS(Sheet1!S71_OriginalBudAmnt,Sheet1!S71_A2Code,$AC:$AC,Sheet1!S71_A5CapexCode,$AD:$AD)","v":0},{"$f":"SUMIFS(Sheet1!S71_AdjustmentBudAmnt,Sheet1!S71_A2Code,$AC:$AC,Sheet1!S71_A5CapexCode,$AD:$AD)","v":0},{"$f":"SUMIFS(Sheet1!S71_AdjustmentBudAmnt,Sheet1!S71_A2Code,$AC:$AC,Sheet1!S71_A5CapexCode,$AD:$AD)","v":0},0,{"$f":"SUMIFS(Sheet1!S71_ASBudgetAmount,Sheet1!S71_A2Code,$AC:$AC,Sheet1!S71_A5CapexCode,$AD:$AD)","v":0},{"$f":"SUMIFS(Sheet1!S71_OY1BudgetAmount,Sheet1!S71_A2Code,$AC:$AC,Sheet1!S71_A5CapexCode,$AD:$AD)","v":0},{"$f":"SUMIFS(Sheet1!S71_OY2BudgetAmount,Sheet1!S71_A2Code,$AC:$AC,Sheet1!S71_A5CapexCode,$AD:$AD)","v":0},null,null,null,null,null,null,null,null,null,null,null,null,null,null,null,null,"4200","CE"]
["Waste water management",null,{"$f":"SUMIFS(Sheet1!S71_PPPYearAmount,Sheet1!S71_A2Code,$AC:$AC,Sheet1!S71_A5CapexCode,$AD:$AD)","v":0},{"$f":"SUMIFS(Sheet1!S71_PPYearAmount,Sheet1!S71_A2Code,$AC:$AC,Sheet1!S71_A5CapexCode,$AD:$AD)","v":0},{"$f":"SUMIFS(Sheet1!S71_PYearAmount,Sheet1!S71_A2Code,$AC:$AC,Sheet1!S71_A5CapexCode,$AD:$AD)","v":0},{"$f":"SUMIFS(Sheet1!S71_OriginalBudAmnt,Sheet1!S71_A2Code,$AC:$AC,Sheet1!S71_A5CapexCode,$AD:$AD)","v":0},{"$f":"SUMIFS(Sheet1!S71_AdjustmentBudAmnt,Sheet1!S71_A2Code,$AC:$AC,Sheet1!S71_A5CapexCode,$AD:$AD)","v":0},{"$f":"SUMIFS(Sheet1!S71_AdjustmentBudAmnt,Sheet1!S71_A2Code,$AC:$AC,Sheet1!S71_A5CapexCode,$AD:$AD)","v":0},0,{"$f":"SUMIFS(Sheet1!S71_ASBudgetAmount,Sheet1!S71_A2Code,$AC:$AC,Sheet1!S71_A5CapexCode,$AD:$AD)","v":0},{"$f":"SUMIFS(Sheet1!S71_OY1BudgetAmount,Sheet1!S71_A2Code,$AC:$AC,Sheet1!S71_A5CapexCode,$AD:$AD)","v":0},{"$f":"SUMIFS(Sheet1!S71_OY2BudgetAmount,Sheet1!S71_A2Code,$AC:$AC,Sheet1!S71_A5CapexCode,$AD:$AD)","v":0},null,null,null,null,null,null,null,null,null,null,null,null,null,null,null,null,"4300","CE"]
["Waste management",null,{"$f":"SUMIFS(Sheet1!S71_PPPYearAmount,Sheet1!S71_A2Code,$AC:$AC,Sheet1!S71_A5CapexCode,$AD:$AD)","v":8470229},{"$f":"SUMIFS(Sheet1!S71_PPYearAmount,Sheet1!S71_A2Code,$AC:$AC,Sheet1!S71_A5CapexCode,$AD:$AD)","v":8470229},{"$f":"SUMIFS(Sheet1!S71_PYearAmount,Sheet1!S71_A2Code,$AC:$AC,Sheet1!S71_A5CapexCode,$AD:$AD)","v":10146189},{"$f":"SUMIFS(Sheet1!S71_OriginalBudAmnt,Sheet1!S71_A2Code,$AC:$AC,Sheet1!S71_A5CapexCode,$AD:$AD)","v":250000},{"$f":"SUMIFS(Sheet1!S71_AdjustmentBudAmnt,Sheet1!S71_A2Code,$AC:$AC,Sheet1!S71_A5CapexCode,$AD:$AD)","v":350000},{"$f":"SUMIFS(Sheet1!S71_AdjustmentBudAmnt,Sheet1!S71_A2Code,$AC:$AC,Sheet1!S71_A5CapexCode,$AD:$AD)","v":350000},350000,{"$f":"SUMIFS(Sheet1!S71_ASBudgetAmount,Sheet1!S71_A2Code,$AC:$AC,Sheet1!S71_A5CapexCode,$AD:$AD)","v":2000000},{"$f":"SUMIFS(Sheet1!S71_OY1BudgetAmount,Sheet1!S71_A2Code,$AC:$AC,Sheet1!S71_A5CapexCode,$AD:$AD)","v":2100000},{"$f":"SUMIFS(Sheet1!S71_OY2BudgetAmount,Sheet1!S71_A2Code,$AC:$AC,Sheet1!S71_A5CapexCode,$AD:$AD)","v":2200000},null,null,null,null,null,null,null,null,null,null,null,null,null,null,null,null,"4400","CE"]
["Other",null,{"$f":"SUMIFS(Sheet1!S71_PPPYearAmount,Sheet1!S71_A2Code,$AC:$AC,Sheet1!S71_A5CapexCode,$AD:$AD)","v":0},{"$f":"SUMIFS(Sheet1!S71_PPYearAmount,Sheet1!S71_A2Code,$AC:$AC,Sheet1!S71_A5CapexCode,$AD:$AD)","v":0},{"$f":"SUMIFS(Sheet1!S71_PYearAmount,Sheet1!S71_A2Code,$AC:$AC,Sheet1!S71_A5CapexCode,$AD:$AD)","v":0},{"$f":"SUMIFS(Sheet1!S71_OriginalBudAmnt,Sheet1!S71_A2Code,$AC:$AC,Sheet1!S71_A5CapexCode,$AD:$AD)","v":0},{"$f":"SUMIFS(Sheet1!S71_AdjustmentBudAmnt,Sheet1!S71_A2Code,$AC:$AC,Sheet1!S71_A5CapexCode,$AD:$AD)","v":0},{"$f":"SUMIFS(Sheet1!S71_AdjustmentBudAmnt,Sheet1!S71_A2Code,$AC:$AC,Sheet1!S71_A5CapexCode,$AD:$AD)","v":0},0,{"$f":"SUMIFS(Sheet1!S71_ASBudgetAmount,Sheet1!S71_A2Code,$AC:$AC,Sheet1!S71_A5CapexCode,$AD:$AD)","v":0},{"$f":"SUMIFS(Sheet1!S71_OY1BudgetAmount,Sheet1!S71_A2Code,$AC:$AC,Sheet1!S71_A5CapexCode,$AD:$AD)","v":0},{"$f":"SUMIFS(Sheet1!S71_OY2BudgetAmount,Sheet1!S71_A2Code,$AC:$AC,Sheet1!S71_A5CapexCode,$AD:$AD)","v":0},null,null,null,null,null,null,null,null,null,null,null,null,null,null,null,null,"5000","CE"]
["Total Capital Expenditure - Functional",3,{"$f":"C43+C47+C53+C57+C62","v":114943552},{"$f":"D43+D47+D53+D57+D62","v":111803196},114943552,148172229,138207867,138207867,138207867,158791188,173326968,{"$f":"L43+L47+L53+L57+L62","v":159635856}]
[]
["Funded by:"]
["National Government",null,{"$f":"SUMIFS(Sheet1!S71_PYearAmount,Sheet1!S71_A5GCode,$AC:$AC,Sheet1!S71_A5CapexCode,$AD:$AD)","v":30495618},{"$f":"SUMIFS(Sheet1!S71_PPYearAmount,Sheet1!S71_A5GCode,$AC:$AC,Sheet1!S71_A5CapexCode,$AD:$AD)","v":34691777},{"$f":"SUMIFS(Sheet1!S71_PYearAmount,Sheet1!S71_A5GCode,$AC:$AC,Sheet1!S71_A5CapexCode,$AD:$AD)","v":30495618},{"$f":"SUMIFS(Sheet1!S71_OriginalBudAmnt,Sheet1!S71_A5GCode,$AC:$AC,Sheet1!S71_A5CapexCode,$AD:$AD)","v":65536974},{"$f":"SUMIFS(Sheet1!S71_AdjustmentBudAmnt,Sheet1!S71_A5GCode,$AC:$AC,Sheet1!S71_A5CapexCode,$AD:$AD)","v":74809337},{"$f":"SUMIFS(Sheet1!S71_AdjustmentBudAmnt,Sheet1!S71_A5GCode,$AC:$AC,Sheet1!S71_A5CapexCode,$AD:$AD)","v":74809337},{"$f":"H66","v":74809337},{"$f":"SUMIFS(Sheet1!S71_ASBudgetAmount,Sheet1!S71_A5GCode,$AC:$AC,Sheet1!S71_A5CapexCode,$AD:$AD)","v":67870438},{"$f":"SUMIFS(Sheet1!S71_OY1BudgetAmount,Sheet1!S71_A5GCode,$AC:$AC,Sheet1!S71_A5CapexCode,$AD:$AD)","v":70916968},{"$f":"SUMIFS(Sheet1!S71_OY2BudgetAmount,Sheet1!S71_A5GCode,$AC:$AC,Sheet1!S71_A5CapexCode,$AD:$AD)","v":74040148},null,null,null,null,null,null,null,null,null,null,null,null,null,null,null,null,"2010","CE"]
["Provincial Government",null,{"$f":"SUMIFS(Sheet1!S71_PYearAmount,Sheet1!S71_A5GCode,$AC:$AC,Sheet1!S71_A5CapexCode,$AD:$AD)","v":0},{"$f":"SUMIFS(Sheet1!S71_PPYearAmount,Sheet1!S71_A5GCode,$AC:$AC,Sheet1!S71_A5CapexCode,$AD:$AD)","v":0},{"$f":"SUMIFS(Sheet1!S71_PYearAmount,Sheet1!S71_A5GCode,$AC:$AC,Sheet1!S71_A5CapexCode,$AD:$AD)","v":0},{"$f":"SUMIFS(Sheet1!S71_OriginalBudAmnt,Sheet1!S71_A5GCode,$AC:$AC,Sheet1!S71_A5CapexCode,$AD:$AD)","v":0},{"$f":"SUMIFS(Sheet1!S71_AdjustmentBudAmnt,Sheet1!S71_A5GCode,$AC:$AC,Sheet1!S71_A5CapexCode,$AD:$AD)","v":0},{"$f":"SUMIFS(Sheet1!S71_AdjustmentBudAmnt,Sheet1!S71_A5GCode,$AC:$AC,Sheet1!S71_A5CapexCode,$AD:$AD)","v":0},0,{"$f":"SUMIFS(Sheet1!S71_ASBudgetAmount,Sheet1!S71_A5GCode,$AC:$AC,Sheet1!S71_A5CapexCode,$AD:$AD)","v":0},{"$f":"SUMIFS(Sheet1!S71_OY1BudgetAmount,Sheet1!S71_A5GCode,$AC:$AC,Sheet1!S71_A5CapexCode,$AD:$AD)","v":0},{"$f":"SUMIFS(Sheet1!S71_OY2BudgetAmount,Sheet1!S71_A5GCode,$AC:$AC,Sheet1!S71_A5CapexCode,$AD:$AD)","v":0},null,null,null,null,null,null,null,null,null,null,null,null,null,null,null,null,"2020","CE"]
["District Municipality",null,{"$f":"SUMIFS(Sheet1!S71_PYearAmount,Sheet1!S71_A5GCode,$AC:$AC,Sheet1!S71_A5CapexCode,$AD:$AD)","v":0},{"$f":"SUMIFS(Sheet1!S71_PPYearAmount,Sheet1!S71_A5GCode,$AC:$AC,Sheet1!S71_A5CapexCode,$AD:$AD)","v":0},{"$f":"SUMIFS(Sheet1!S71_PYearAmount,Sheet1!S71_A5GCode,$AC:$AC,Sheet1!S71_A5CapexCode,$AD:$AD)","v":0},{"$f":"SUMIFS(Sheet1!S71_OriginalBudAmnt,Sheet1!S71_A5GCode,$AC:$AC,Sheet1!S71_A5CapexCode,$AD:$AD)","v":0},{"$f":"SUMIFS(Sheet1!S71_AdjustmentBudAmnt,Sheet1!S71_A5GCode,$AC:$AC,Sheet1!S71_A5CapexCode,$AD:$AD)","v":0},{"$f":"SUMIFS(Sheet1!S71_AdjustmentBudAmnt,Sheet1!S71_A5GCode,$AC:$AC,Sheet1!S71_A5CapexCode,$AD:$AD)","v":0},0,{"$f":"SUMIFS(Sheet1!S71_ASBudgetAmount,Sheet1!S71_A5GCode,$AC:$AC,Sheet1!S71_A5CapexCode,$AD:$AD)","v":0},{"$f":"SUMIFS(Sheet1!S71_OY1BudgetAmount,Sheet1!S71_A5GCode,$AC:$AC,Sheet1!S71_A5CapexCode,$AD:$AD)","v":0},{"$f":"SUMIFS(Sheet1!S71_OY2BudgetAmount,Sheet1!S71_A5GCode,$AC:$AC,Sheet1!S71_A5CapexCode,$AD:$AD)","v":0},null,null,null,null,null,null,null,null,null,null,null,null,null,null,null,null,"2030","CE"]
[{"$f":"'A4-FinPerf RE'!A50","v":"Transfers and subsidies - capital (in-kind)"},null,{"$f":"SUMIFS(Sheet1!S71_PYearAmount,Sheet1!S71_A5GCode,$AC:$AC,Sheet1!S71_A5CapexCode,$AD:$AD)","v":0},{"$f":"SUMIFS(Sheet1!S71_PPYearAmount,Sheet1!S71_A5GCode,$AC:$AC,Sheet1!S71_A5CapexCode,$AD:$AD)","v":0},{"$f":"SUMIFS(Sheet1!S71_PYearAmount,Sheet1!S71_A5GCode,$AC:$AC,Sheet1!S71_A5CapexCode,$AD:$AD)","v":0},{"$f":"SUMIFS(Sheet1!S71_OriginalBudAmnt,Sheet1!S71_A5GCode,$AC:$AC,Sheet1!S71_A5CapexCode,$AD:$AD)","v":0},{"$f":"SUMIFS(Sheet1!S71_AdjustmentBudAmnt,Sheet1!S71_A5GCode,$AC:$AC,Sheet1!S71_A5CapexCode,$AD:$AD)","v":0},{"$f":"SUMIFS(Sheet1!S71_AdjustmentBudAmnt,Sheet1!S71_A5GCode,$AC:$AC,Sheet1!S71_A5CapexCode,$AD:$AD)","v":0},0,{"$f":"SUMIFS(Sheet1!S71_ASBudgetAmount,Sheet1!S71_A5GCode,$AC:$AC,Sheet1!S71_A5CapexCode,$AD:$AD)","v":0},{"$f":"SUMIFS(Sheet1!S71_OY1BudgetAmount,Sheet1!S71_A5GCode,$AC:$AC,Sheet1!S71_A5CapexCode,$AD:$AD)","v":0},{"$f":"SUMIFS(Sheet1!S71_OY2BudgetAmount,Sheet1!S71_A5GCode,$AC:$AC,Sheet1!S71_A5CapexCode,$AD:$AD)","v":0},null,null,null,null,null,null,null,null,null,null,null,null,null,null,null,null,"2040","CE"]
["Transfers recognised - capital",4,{"$f":"SUM(C66:C69)","v":30495618},34691777,30495618,65536974,74809337,74809337,74809337,67870438,70916968,74040148]
[]
["Borrowing",6,{"$f":"SUMIFS(Sheet1!S71_PYearAmount,Sheet1!S71_A5GCode,$AC:$AC,Sheet1!S71_A5CapexCode,$AD:$AD)","v":0},{"$f":"SUMIFS(Sheet1!S71_PPYearAmount,Sheet1!S71_A5GCode,$AC:$AC,Sheet1!S71_A5CapexCode,$AD:$AD)","v":0},{"$f":"SUMIFS(Sheet1!S71_PYearAmount,Sheet1!S71_A5GCode,$AC:$AC,Sheet1!S71_A5CapexCode,$AD:$AD)","v":0},{"$f":"SUMIFS(Sheet1!S71_OriginalBudAmnt,Sheet1!S71_A5GCode,$AC:$AC,Sheet1!S71_A5CapexCode,$AD:$AD)","v":0},{"$f":"SUMIFS(Sheet1!S71_AdjustmentBudAmnt,Sheet1!S71_A5GCode,$AC:$AC,Sheet1!S71_A5CapexCode,$AD:$AD)","v":0},{"$f":"SUMIFS(Sheet1!S71_AdjustmentBudAmnt,Sheet1!S71_A5GCode,$AC:$AC,Sheet1!S71_A5CapexCode,$AD:$AD)","v":0},{"$f":"H72","v":0},{"$f":"SUMIFS(Sheet1!S71_ASBudgetAmount,Sheet1!S71_A5GCode,$AC:$AC,Sheet1!S71_A5CapexCode,$AD:$AD)","v":0},{"$f":"SUMIFS(Sheet1!S71_OY1BudgetAmount,Sheet1!S71_A5GCode,$AC:$AC,Sheet1!S71_A5CapexCode,$AD:$AD)","v":0},{"$f":"SUMIFS(Sheet1!S71_OY2BudgetAmount,Sheet1!S71_A5GCode,$AC:$AC,Sheet1!S71_A5CapexCode,$AD:$AD)","v":0},null,null,null,null,null,null,null,null,null,null,null,null,null,null,null,null,"2070","CE"]
["Internally generated funds",null,{"$f":"SUMIFS(Sheet1!S71_PYearAmount,Sheet1!S71_A5GCode,$AC:$AC,Sheet1!S71_A5CapexCode,$AD:$AD)","v":84447934},{"$f":"SUMIFS(Sheet1!S71_PPYearAmount,Sheet1!S71_A5GCode,$AC:$AC,Sheet1!S71_A5CapexCode,$AD:$AD)","v":77111419},{"$f":"SUMIFS(Sheet1!S71_PYearAmount,Sheet1!S71_A5GCode,$AC:$AC,Sheet1!S71_A5CapexCode,$AD:$AD)","v":84447934},{"$f":"SUMIFS(Sheet1!S71_OriginalBudAmnt,Sheet1!S71_A5GCode,$AC:$AC,Sheet1!S71_A5CapexCode,$AD:$AD)","v":82635255},{"$f":"SUMIFS(Sheet1!S71_AdjustmentBudAmnt,Sheet1!S71_A5GCode,$AC:$AC,Sheet1!S71_A5CapexCode,$AD:$AD)","v":63398530},{"$f":"SUMIFS(Sheet1!S71_AdjustmentBudAmnt,Sheet1!S71_A5GCode,$AC:$AC,Sheet1!S71_A5CapexCode,$AD:$AD)","v":63398530},63398530,{"$f":"SUMIFS(Sheet1!S71_ASBudgetAmount,Sheet1!S71_A5GCode,$AC:$AC,Sheet1!S71_A5CapexCode,$AD:$AD)","v":90920750},{"$f":"SUMIFS(Sheet1!S71_OY1BudgetAmount,Sheet1!S71_A5GCode,$AC:$AC,Sheet1!S71_A5CapexCode,$AD:$AD)","v":102410000},{"$f":"SUMIFS(Sheet1!S71_OY2BudgetAmount,Sheet1!S71_A5GCode,$AC:$AC,Sheet1!S71_A5CapexCode,$AD:$AD)","v":85595708},null,null,null,null,null,null,null,null,null,null,null,null,null,null,null,null,"2080","CE"]
["Total Capital Funding",7,{"$f":"+C70+C72+C73","v":114943552},{"$f":"+D70+D72+D73","v":111803196},114943552,148172229,138207867,138207867,138207867,158791188,173326968,159635856]
[{"$f":"head27a","v":"References"}]
["1. Municipalities may choose to appropriate for capital expenditure for three years or for one year (if one year appropriation projected expenditure required for yr2 and yr3)."]
["2. Include capital component of PPP unitary payment. Note that capital transfers are only appropriated to municipalities for the budget year"]
["3. Capital expenditure by functional classification must reconcile to the appropriations by vote"]
["4. Must reconcile to supporting table SA20 and to Budgeted Financial Performance (revenue and expenditure)"]
[]
["6. Include finance leases and PPP capital funding component of unitary payment - total borrowing/repayments to reconcile to changes in Table SA17"]
["7. Total Capital Funding must balance with Total Capital Expenditure"]
["8. Include any capitalised interest (MFMA section 46) as part of relevant capital budget"]
[]
["check balance",null,{"$f":"IF((C63-C74)=0,0,\"Unbalanced\")","v":0},{"$f":"IF((D63-D74)=0,0,\"Unbalanced\")","v":0},0,0,0,0,0,0,0,0]

{"sheet":"A5A","index":37,"n_rows":341,"n_cols":30,"rows_kept":341,"cut":false,"hidden":false,"merged":[[1,5,1,8],[1,9,1,11],[1,13,1,16],[1,17,1,20],[1,21,1,23]]}
[{"$f":"muni&\" - \"&Approve5","v":"LIM331 Greater Giyani - Table A5 Budgeted Capital Expenditure by vote, functional classification and funding"}]
[{"$f":"Vdesc","v":"Vote Description"},{"$f":"head27","v":"Ref"},{"$f":"head1b","v":"2019/20"},{"$f":"head1A","v":"2020/21"},{"$f":"Head1","v":"2021/22"},{"$f":"Head2","v":"Current Year 2022/23"},null,null,null,{"$f":"Head3","v":"2023/24 Medium Term Revenue & Expenditure Framework"},null,null,null,{"$f":"\"Multi-year appropriation for \"&Head9&\n\"\n in the \"&Head2A&\" Annual Budget\"","v":"Multi-year appropriation for Budget Year 2023/24\n in the 2022/23 Annual Budget"},null,null,null,{"$f":"\"Multi-year appropriation for \"&RIGHT(Head10,7)&\n\"\n in the \"&Head2A&\" Annual Budget\"","v":"Multi-year appropriation for 2024/25\n in the 2022/23 Annual Budget"},null,null,null,"New multi-year appropriations \n(funds for new and existing projects) "]
["R thousand",1,{"$f":"Head5","v":"Audited Outcome"},{"$f":"Head5","v":"Audited Outcome"},{"$f":"Head5","v":"Audited Outcome"},{"$f":"Head6","v":"Original Budget"},{"$f":"Head7","v":"Adjusted Budget"},{"$f":"Head8","v":"Full Year Forecast"},{"$f":"Head5b","v":"Pre-audit outcome"},{"$f":"Head9","v":"Budget Year 2023/24"},{"$f":"Head10","v":"Budget Year +1 2024/25"},{"$f":"Head11","v":"Budget Year +2 2025/26"},null,{"$f":"\"Appropriation for \"&RIGHT(Head9,7)","v":"Appropriation for 2023/24"},{"$f":"\"Adjustments in \"&Head2A","v":"Adjustments in 2022/23"},{"$f":"\"Downward adjustments for \"&RIGHT(Head9,7)","v":"Downward adjustments for 2023/24"},"Appropriation carried forward",{"$f":"\"Appropriation for \"&RIGHT(Head9,7)","v":"Appropriation for 2023/24"},{"$f":"\"Adjustments in \"&Head2A","v":"Adjustments in 2022/23"},{"$f":"\"Downward adjustments for \"&RIGHT(Head9,7)","v":"Downward adjustments for 2023/24"},"Appropriation carried forward",{"$f":"Head9","v":"Budget Year 2023/24"},{"$f":"Head10","v":"Budget Year +1 2024/25"},{"$f":"Head11","v":"Budget Year +2 2025/26"}]
["Capital expenditure - Municipal Vote"]
["Multi-year expenditure appropriation",2]
[{"$f":"'Org structure'!A2","v":"Vote 1 -  Energy Sources"},null,{"$f":"SUM(C7:C16)","v":0},{"$f":"SUM(D7:D16)","v":0},0,0,0,0,{"$f":"SUM(I7:I16)","v":0},0,0,0,null,{"$f":"SUM(N7:N16)","v":0},0,0,0,0,0,0,0,{"$f":"SUM(V7:V16)","v":0},{"$f":"SUM(W7:W16)","v":0},{"$f":"SUM(X7:X16)","v":0}]
[{"$f":"'Org structure'!E3","v":"1.1 - Electricity"},null,null,null,null,null,null,null,null,{"$f":"Q7+V7","v":0},{"$f":"U7+W7","v":0},{"$f":"X7","v":0},null,null,null,null,{"$f":"SUM(N7:P7)","v":0},null,null,null,{"$f":"SUM(R7:T7)","v":0}]
[{"$f":"'Org structure'!E4","v":"1.2 - Street Lighting and Signal Systems"},null,null,null,null,null,null,null,null,{"$f":"Q8+V8","v":0},{"$f":"U8+W8","v":0},{"$f":"X8","v":0},null,null,null,null,{"$f":"SUM(N8:P8)","v":0},null,null,null,{"$f":"SUM(R8:T8)","v":0}]
[{"$f":"'Org structure'!E5","v":"1.3 - [Name of sub-vote]"},null,null,null,null,null,null,null,null,{"$f":"Q9+V9","v":0},{"$f":"U9+W9","v":0},0,null,null,null,null,0,null,null,null,0]
[{"$f":"'Org structure'!E6","v":"1.4 - [Name of sub-vote]"},null,null,null,null,null,null,null,null,0,0,0,null,null,null,null,0,null,null,null,0]
[{"$f":"'Org structure'!E7","v":"1.5 - [Name of sub-vote]"},null,null,null,null,null,null,null,null,0,0,{"$f":"X11","v":0},null,null,null,null,0,null,null,null,0]
[{"$f":"'Org structure'!E8","v":"1.6 - [Name of sub-vote]"},null,null,null,null,null,null,null,null,0,0,0,null,null,null,null,0,null,null,null,0]
[{"$f":"'Org structure'!E9","v":"1.7 - [Name of sub-vote]"},null,null,null,null,null,null,null,null,0,0,0,null,null,null,null,0,null,null,null,0]
[{"$f":"'Org structure'!E10","v":"1.8 - [Name of sub-vote]"},null,null,null,null,null,null,null,null,0,0,0,null,null,null,null,0,null,null,null,0]
[{"$f":"'Org structure'!E11","v":"1.9 - [Name of sub-vote]"},null,null,null,null,null,null,null,null,0,0,0,null,null,null,null,0,null,null,null,0]
[{"$f":"'Org structure'!E12","v":"1.10 - [Name of sub-vote]"},null,null,null,null,null,null,null,null,0,0,0,null,null,null,null,0,null,null,null,0]
[{"$f":"'Org structure'!A3","v":"Vote 2 - Community and Social Services"},null,{"$f":"SUM(C18:C27)","v":0},{"$f":"SUM(D18:D27)","v":0},0,0,0,0,{"$f":"SUM(I18:I27)","v":0},0,0,0,null,{"$f":"SUM(N18:N27)","v":0},0,0,0,0,0,0,0,0,0,0]
[{"$f":"'Org structure'!E14","v":"2.1 - Animal Care and Diseases"},null,null,null,null,null,null,null,null,{"$f":"Q18+V18","v":0},{"$f":"U18+W18","v":0},{"$f":"X18","v":0},null,null,null,null,{"$f":"SUM(N18:P18)","v":0},null,null,null,0]
[{"$f":"'Org structure'!E15","v":"2.2 - Community Halls and Facilities"},null,null,null,null,null,null,null,null,{"$f":"Q19+V19","v":0},{"$f":"U19+W19","v":0},0,null,null,null,null,0,null,null,null,0]
[{"$f":"'Org structure'!E16","v":"2.3 - Libraries and Archives"},null,null,null,null,null,null,null,null,0,0,0,null,null,null,null,0,null,null,null,0]
[{"$f":"'Org structure'!E17","v":"2.4 - Cemeteries, Funeral Parlours and Crematoriums"},null,null,null,null,null,null,null,null,0,{"$f":"U21+W21","v":0},0,null,null,null,null,0,null,null,null,0]
[{"$f":"'Org structure'!E18","v":"2.5 - Disaster Management"},null,null,null,null,null,null,null,null,0,0,0,null,null,null,null,0,null,null,null,0]
[{"$f":"'Org structure'!E19","v":"2.6 - [Name of sub-vote]"},null,null,null,null,null,null,null,null,0,0,0,null,null,null,null,0,null,null,null,0]
[{"$f":"'Org structure'!E20","v":"2.7 - [Name of sub-vote]"},null,null,null,null,null,null,null,null,0,0,0,null,null,null,null,0,null,null,null,0]
[{"$f":"'Org structure'!E21","v":"2.8 - [Name of sub-vote]"},null,null,null,null,null,null,null,null,0,0,0,null,null,null,null,0,null,null,null,0]
[{"$f":"'Org structure'!E22","v":"2.9 - [Name of sub-vote]"},null,null,null,null,null,null,null,null,0,0,0,null,null,null,null,0,null,null,null,0]
[{"$f":"'Org structure'!E23","v":"2.10 - [Name of sub-vote]"},null,null,null,null,null,null,null,null,0,0,0,null,null,null,null,0,null,null,null,0]
[{"$f":"'Org structure'!A4","v":"Vote 3 - Finance & Administration"},null,{"$f":"SUM(C29:C38)","v":0},{"$f":"SUM(D29:D38)","v":0},0,0,0,0,{"$f":"SUM(I29:I38)","v":0},0,0,0,null,{"$f":"SUM(N29:N38)","v":0},0,0,0,0,0,0,0,0,0,0]
[{"$f":"'Org structure'!E25","v":"3.1 - Fleet Management"},null,null,null,null,null,null,null,null,{"$f":"Q29+V29","v":0},{"$f":"U29+W29","v":0},{"$f":"X29","v":0},null,null,null,null,{"$f":"SUM(N29:P29)","v":0},null,null,null,0]
[{"$f":"'Org structure'!E26","v":"3.2 - Finance"},null,null,null,null,null,null,null,null,0,0,0,null,null,null,null,0,null,null,null,0]
[{"$f":"'Org structure'!E27","v":"3.3 - Asset Management"},null,null,null,null,null,null,null,null,0,0,0,null,null,null,null,0,null,null,null,{"$f":"SUM(R31:T31)","v":0}]
[{"$f":"'Org structure'!E28","v":"3.4 - Human Resources"},null,null,null,null,null,null,null,null,0,{"$f":"U32+W32","v":0},0,null,null,null,null,0,null,null,null,0]
[{"$f":"'Org structure'!E29","v":"3.5 - Legal Services"},null,null,null,null,null,null,null,null,{"$f":"Q33+V33","v":0},0,0,null,null,null,null,0,null,null,null,0]
[{"$f":"'Org structure'!E30","v":"3.6 - Property Services"},null,null,null,null,null,null,null,null,0,0,0,null,null,null,null,0,null,null,null,0]
[{"$f":"'Org structure'!E31","v":"3.7 - Risk Management"},null,null,null,null,null,null,null,null,0,0,0,null,null,null,null,0,null,null,null,0]
[{"$f":"'Org structure'!E32","v":"3.8 - Supply Chain Management"},null,null,null,null,null,null,null,null,0,0,0,null,null,null,null,0,null,null,null,0]
[{"$f":"'Org structure'!E33","v":"3.9 - [Name of sub-vote]"},null,null,null,null,null,null,null,null,0,0,0,null,null,null,null,0,null,null,null,0]
[{"$f":"'Org structure'!E34","v":"3.10 - [Name of sub-vote]"},null,null,null,null,null,null,null,null,0,0,0,null,null,null,null,0,null,null,null,0]
[{"$f":"'Org structure'!A5","v":"Vote 4 - Planning and Development"},null,{"$f":"SUM(C40:C49)","v":0},{"$f":"SUM(D40:D49)","v":0},0,0,0,0,{"$f":"SUM(I40:I49)","v":0},0,0,0,null,{"$f":"SUM(N40:N49)","v":0},0,0,0,0,0,0,0,0,0,0]
[{"$f":"'Org structure'!E36","v":"4.1 - Town Planning, Building Regulations and Enforcement, and City Engineer"},null,null,null,null,null,null,null,null,{"$f":"Q40+V40","v":0},{"$f":"U40+W40","v":0},{"$f":"X40","v":0},null,null,null,null,{"$f":"SUM(N40:P40)","v":0},null,null,null,0]
[{"$f":"'Org structure'!E37","v":"4.2 - Corporate Wide Strategic Planning (IDPs, LEDs)"},null,null,null,null,null,null,null,null,0,0,0,null,null,null,null,0,null,null,null,0]
[{"$f":"'Org structure'!E38","v":"4.3 - Economic Development/Planning"},null,null,null,null,null,null,null,null,0,0,0,null,null,null,null,0,null,null,null,0]
[{"$f":"'Org structure'!E39","v":"4.4 - Project Management Unit"},null,null,null,null,null,null,null,null,0,0,0,null,null,null,null,0,null,null,null,0]
[{"$f":"'Org structure'!E40","v":"4.5 - [Name of sub-vote]"},null,null,null,null,null,null,null,null,0,0,0,null,null,null,null,0,null,null,null,0]
[{"$f":"'Org structure'!E41","v":"4.6 - [Name of sub-vote]"},null,null,null,null,null,null,null,null,0,0,0,null,null,null,null,0,null,null,null,0]
[{"$f":"'Org structure'!E42","v":"4.7 - [Name of sub-vote]"},null,null,null,null,null,null,null,null,0,0,0,null,null,null,null,0,null,null,null,0]
[{"$f":"'Org structure'!E43","v":"4.8 - [Name of sub-vote]"},null,null,null,null,null,null,null,null,0,0,0,null,null,null,null,0,null,null,null,0]
[{"$f":"'Org structure'!E44","v":"4.9 - [Name of sub-vote]"},null,null,null,null,null,null,null,null,0,0,0,null,null,null,null,0,null,null,null,0]
[{"$f":"'Org structure'!E45","v":"4.10 - [Name of sub-vote]"},null,null,null,null,null,null,null,null,0,0,0,null,null,null,null,0,null,null,null,0]
[{"$f":"'Org structure'!A6","v":"Vote 5 - Executive & Council"},null,{"$f":"SUM(C51:C60)","v":0},{"$f":"SUM(D51:D60)","v":0},0,0,0,0,{"$f":"SUM(I51:I60)","v":0},0,0,0,null,{"$f":"SUM(N51:N60)","v":0},0,0,0,0,0,0,0,0,0,0]
[{"$f":"'Org structure'!E47","v":"5.1 - Municipal Manager, Town Secretary and Chief Executive"},null,null,null,null,null,null,null,null,{"$f":"Q51+V51","v":0},{"$f":"U51+W51","v":0},{"$f":"X51","v":0},null,null,null,null,{"$f":"SUM(N51:P51)","v":0},null,null,null,0]
[{"$f":"'Org structure'!E48","v":"5.2 - Mayor and Council"},null,null,null,null,null,null,null,null,0,0,0,null,null,null,null,0,null,null,null,0]
[{"$f":"'Org structure'!E49","v":"5.3 - [Name of sub-vote]"},null,null,null,null,null,null,null,null,0,0,0,null,null,null,null,0,null,null,null,0]
[{"$f":"'Org structure'!E50","v":"5.4 - [Name of sub-vote]"},null,null,null,null,null,null,null,null,0,0,0,null,null,null,null,0,null,null,null,0]
[{"$f":"'Org structure'!E51","v":"5.5 - [Name of sub-vote]"},null,null,null,null,null,null,null,null,0,0,0,null,null,null,null,0,null,null,null,0]
[{"$f":"'Org structure'!E52","v":"5.6 - [Name of sub-vote]"},null,null,null,null,null,null,null,null,0,0,0,null,null,null,null,0,null,null,null,0]
[{"$f":"'Org structure'!E53","v":"5.7 - [Name of sub-vote]"},null,null,null,null,null,null,null,null,0,0,0,null,null,null,null,0,null,null,null,0]
[{"$f":"'Org structure'!E54","v":"5.8 - [Name of sub-vote]"},null,null,null,null,null,null,null,null,0,0,0,null,null,null,null,0,null,null,null,0]
[{"$f":"'Org structure'!E55","v":"5.9 - [Name of sub-vote]"},null,null,null,null,null,null,null,null,0,0,0,null,null,null,null,0,null,null,null,0]
[{"$f":"'Org structure'!E56","v":"5.10 - [Name of sub-vote]"},null,null,null,null,null,null,null,null,0,0,0,null,null,null,null,0,null,null,null,0]
[{"$f":"'Org structure'!A7","v":"Vote 6 - Internal Audit"},null,{"$f":"SUM(C62:C71)","v":0},{"$f":"SUM(D62:D71)","v":0},0,0,0,0,{"$f":"SUM(I62:I71)","v":0},0,0,0,null,{"$f":"SUM(N62:N71)","v":0},0,0,0,0,0,0,0,0,0,0]
[{"$f":"'Org structure'!E58","v":"6.1 - Governance Function"},null,null,null,null,null,null,null,null,{"$f":"Q62+V62","v":0},{"$f":"U62+W62","v":0},{"$f":"X62","v":0},null,null,null,null,{"$f":"SUM(N62:P62)","v":0},null,null,null,0]
[{"$f":"'Org structure'!E59","v":"6.2 - [Name of sub-vote]"},null,null,null,null,null,null,null,null,0,0,0,null,null,null,null,0,null,null,null,0]
[{"$f":"'Org structure'!E60","v":"6.3 - [Name of sub-vote]"},null,null,null,null,null,null,null,null,0,0,0,null,null,null,null,0,null,null,null,0]
[{"$f":"'Org structure'!E61","v":"6.4 - [Name of sub-vote]"},null,null,null,null,null,null,null,null,0,0,0,null,null,null,null,0,null,null,null,0]
[{"$f":"'Org structure'!E62","v":"6.5 - [Name of sub-vote]"},null,null,null,null,null,null,null,null,0,0,0,null,null,null,null,0,null,null,null,0]
[{"$f":"'Org structure'!E63","v":"6.6 - [Name of sub-vote]"},null,null,null,null,null,null,null,null,0,0,0,null,null,null,null,0,null,null,null,0]
[{"$f":"'Org structure'!E64","v":"6.7 - [Name of sub-vote]"},null,null,null,null,null,null,null,null,0,0,0,null,null,null,null,0,null,null,null,0]
[{"$f":"'Org structure'!E65","v":"6.8 - [Name of sub-vote]"},null,null,null,null,null,null,null,null,0,0,0,null,null,null,null,0,null,null,null,0]
[{"$f":"'Org structure'!E66","v":"6.9 - [Name of sub-vote]"},null,null,null,null,null,null,null,null,0,0,0,null,null,null,null,0,null,null,null,0]
[{"$f":"'Org structure'!E67","v":"6.10 - [Name of sub-vote]"},null,null,null,null,null,null,null,null,0,0,0,null,null,null,null,0,null,null,null,0]
[{"$f":"'Org structure'!A8","v":"Vote 7 - Road Transport"},null,{"$f":"SUM(C73:C82)","v":0},0,0,0,0,0,0,0,0,0,null,{"$f":"SUM(N73:N82)","v":0},0,0,0,0,0,0,0,0,0,0]
[{"$f":"'Org structure'!E69","v":"7.1 - Taxi Ranks"},null,null,null,null,null,null,null,null,{"$f":"Q73+V73","v":0},{"$f":"U73+W73","v":0},{"$f":"X73","v":0},null,null,null,null,{"$f":"SUM(N73:P73)","v":0},null,null,null,{"$f":"SUM(R73:T73)","v":0}]
[{"$f":"'Org structure'!E70","v":"7.2 - Road and Traffic Regulation"},null,null,null,null,null,null,null,null,0,0,0,null,null,null,null,0,null,null,null,0]
[{"$f":"'Org structure'!E71","v":"7.3 - Public Transport"},null,null,null,null,null,null,null,null,0,0,0,null,null,null,null,0,null,null,null,0]
[{"$f":"'Org structure'!E72","v":"7.4 - Roads"},null,null,null,null,null,null,null,null,0,0,0,null,null,null,null,0,null,null,null,0]
[{"$f":"'Org structure'!E73","v":"7.5 - [Name of sub-vote]"},null,null,null,null,null,null,null,null,0,0,0,null,null,null,null,0,null,null,null,0]
[{"$f":"'Org structure'!E74","v":"7.6 - [Name of sub-vote]"},null,null,null,null,null,null,null,null,0,0,0,null,null,null,null,0,null,null,null,0]
[{"$f":"'Org structure'!E75","v":"7.7 - [Name of sub-vote]"},null,null,null,null,null,null,null,null,0,0,0,null,null,null,null,0,null,null,null,0]
[{"$f":"'Org structure'!E76","v":"7.8 - [Name of sub-vote]"},null,null,null,null,null,null,null,null,0,0,0,null,null,null,null,0,null,null,null,0]
[{"$f":"'Org structure'!E77","v":"7.9 - [Name of sub-vote]"},null,null,null,null,null,null,null,null,0,0,0,null,null,null,null,0,null,null,null,0]
[{"$f":"'Org structure'!E78","v":"7.10 - [Name of sub-vote]"},null,null,null,null,null,null,null,null,0,0,0,null,null,null,null,0,null,null,null,0]
[{"$f":"'Org structure'!A9","v":"Vote 8 - Public Safety"},null,{"$f":"SUM(C84:C93)","v":0},0,0,0,0,0,0,0,0,0,null,{"$f":"SUM(N84:N93)","v":0},0,0,0,0,0,0,0,0,0,0]
[{"$f":"'Org structure'!E80","v":"8.1 - Cleansing"},null,null,null,null,null,null,null,null,{"$f":"Q84+V84","v":0},{"$f":"U84+W84","v":0},{"$f":"X84","v":0},null,null,null,null,{"$f":"SUM(N84:P84)","v":0},null,null,null,0]
[{"$f":"'Org structure'!E81","v":"8.2 - Fencing and Fences"},null,null,null,null,null,null,null,null,0,0,0,null,null,null,null,0,null,null,null,0]
[{"$f":"'Org structure'!E82","v":"8.3 - [Name of sub-vote]"},null,null,null,null,null,null,null,null,0,0,0,null,null,null,null,0,null,null,null,0]
[{"$f":"'Org structure'!E83","v":"8.4 - [Name of sub-vote]"},null,null,null,null,null,null,null,null,0,0,0,null,null,null,null,0,null,null,null,0]
[{"$f":"'Org structure'!E84","v":"8.5 - [Name of sub-vote]"},null,null,null,null,null,null,null,null,0,0,0,null,null,null,null,0,null,null,null,0]
[{"$f":"'Org structure'!E85","v":"8.6 - [Name of sub-vote]"},null,null,null,null,null,null,null,null,0,0,0,null,null,null,null,0,null,null,null,0]
[{"$f":"'Org structure'!E86","v":"8.7 - [Name of sub-vote]"},null,null,null,null,null,null,null,null,0,0,0,null,null,null,null,0,null,null,null,0]
[{"$f":"'Org structure'!E87","v":"8.8 - [Name of sub-vote]"},null,null,null,null,null,null,null,null,0,0,0,null,null,null,null,0,null,null,null,0]
[{"$f":"'Org structure'!E88","v":"8.9 - [Name of sub-vote]"},null,null,null,null,null,null,null,null,0,0,0,null,null,null,null,0,null,null,null,0]
[{"$f":"'Org structure'!E89","v":"8.10 - [Name of sub-vote]"},null,null,null,null,null,null,null,null,0,0,0,null,null,null,null,0,null,null,null,0]
[{"$f":"'Org structure'!A10","v":"Vote 9 - Waste Management"},null,{"$f":"SUM(C95:C104)","v":0},{"$f":"SUM(D95:D104)","v":0},0,0,0,0,0,0,0,0,null,{"$f":"SUM(N95:N104)","v":0},0,0,0,0,0,0,0,0,0,0]
[{"$f":"'Org structure'!E91","v":"9.1 - [Name of sub-vote]"},null,null,null,null,null,null,null,null,{"$f":"Q95+V95","v":0},{"$f":"U95+W95","v":0},{"$f":"X95","v":0},null,null,null,null,{"$f":"SUM(N95:P95)","v":0},null,null,null,0]
[{"$f":"'Org structure'!E92","v":"9.2 - Solid Waste Disposal (Landfill Sites)"},null,null,null,null,null,null,null,null,0,0,0,null,null,null,null,0,null,null,null,0]
[{"$f":"'Org structure'!E93","v":"9.3 - Solid Waste Removal"},null,null,null,null,null,null,null,null,0,0,0,null,null,null,null,0,null,null,null,0]
[{"$f":"'Org structure'!E94","v":"9.4 - [Name of sub-vote]"},null,null,null,null,null,null,null,null,0,0,0,null,null,null,null,0,null,null,null,0]
[{"$f":"'Org structure'!E95","v":"9.5 - [Name of sub-vote]"},null,null,null,null,null,null,null,null,0,0,0,null,null,null,null,0,null,null,null,0]
[{"$f":"'Org structure'!E96","v":"9.6 - [Name of sub-vote]"},null,null,null,null,null,null,null,null,0,0,0,null,null,null,null,0,null,null,null,0]
[{"$f":"'Org structure'!E97","v":"9.7 - [Name of sub-vote]"},null,null,null,null,null,null,null,null,0,0,0,null,null,null,null,0,null,null,null,0]
[{"$f":"'Org structure'!E98","v":"9.8 - [Name of sub-vote]"},null,null,null,null,null,null,null,null,0,0,0,null,null,null,null,0,null,null,null,0]
[{"$f":"'Org structure'!E99","v":"9.9 - [Name of sub-vote]"},null,null,null,null,null,null,null,null,0,0,0,null,null,null,null,0,null,null,null,0]
[{"$f":"'Org structure'!E100","v":"9.10 - [Name of sub-vote]"},null,null,null,null,null,null,null,null,0,0,0,null,null,null,null,0,null,null,null,0]
[{"$f":"'Org structure'!A11","v":"Vote 10 - Sports & Recreation"},null,{"$f":"SUM(C106:C115)","v":0},{"$f":"SUM(D106:D115)","v":0},0,0,0,0,0,0,0,0,null,{"$f":"SUM(N106:N115)","v":0},0,0,0,0,0,0,0,0,0,0]
[{"$f":"'Org structure'!E102","v":"10.1 - [Name of sub-vote]"},null,null,null,null,null,null,null,null,{"$f":"Q106+V106","v":0},{"$f":"U106+W106","v":0},{"$f":"X106","v":0},null,null,null,null,{"$f":"SUM(N106:P106)","v":0},null,null,null,0]
[{"$f":"'Org structure'!E103","v":"10.2 - Sports Grounds and Stadiums"},null,null,null,null,null,null,null,null,0,0,0,null,null,null,null,0,null,null,null,0]
[{"$f":"'Org structure'!E104","v":"10.3 - [Name of sub-vote]"},null,null,null,null,null,null,null,null,0,0,0,null,null,null,null,0,null,null,null,0]
[{"$f":"'Org structure'!E105","v":"10.4 - [Name of sub-vote]"},null,null,null,null,null,null,null,null,0,0,0,null,null,null,null,0,null,null,null,0]
[{"$f":"'Org structure'!E106","v":"10.5 - [Name of sub-vote]"},null,null,null,null,null,null,null,null,0,0,0,null,null,null,null,0,null,null,null,0]
[{"$f":"'Org structure'!E107","v":"10.6 - [Name of sub-vote]"},null,null,null,null,null,null,null,null,0,0,0,null,null,null,null,0,null,null,null,0]
[{"$f":"'Org structure'!E108","v":"10.7 - [Name of sub-vote]"},null,null,null,null,null,null,null,null,0,0,0,null,null,null,null,0,null,null,null,0]
[{"$f":"'Org structure'!E109","v":"10.8 - [Name of sub-vote]"},null,null,null,null,null,null,null,null,0,0,0,null,null,null,null,0,null,null,null,0]
[{"$f":"'Org structure'!E110","v":"10.9 - [Name of sub-vote]"},null,null,null,null,null,null,null,null,0,0,0,null,null,null,null,0,null,null,null,0]
[{"$f":"'Org structure'!E111","v":"10.10 - [Name of sub-vote]"},null,null,null,null,null,null,null,null,0,0,0,null,null,null,null,0,null,null,null,0]
[{"$f":"'Org structure'!A12","v":"Vote 11 - Water Management"},null,{"$f":"SUM(C117:C126)","v":0},0,0,0,0,0,0,0,0,0,null,{"$f":"SUM(N117:N126)","v":0},0,0,0,0,0,0,0,0,0,0]
[{"$f":"'Org structure'!E113","v":"11.1 - Water Distribution"},null,null,null,null,null,null,null,null,{"$f":"Q117+V117","v":0},{"$f":"U117+W117","v":0},{"$f":"X117","v":0},null,null,null,null,{"$f":"SUM(N117:P117)","v":0},null,null,null,0]
[{"$f":"'Org structure'!E114","v":"11.2 - [Name of sub-vote]"},null,null,null,null,null,null,null,null,0,0,0,null,null,null,null,0,null,null,null,0]
[{"$f":"'Org structure'!E115","v":"11.3 - [Name of sub-vote]"},null,null,null,null,null,null,null,null,0,0,0,null,null,null,null,0,null,null,null,0]
[{"$f":"'Org structure'!E116","v":"11.4 - [Name of sub-vote]"},null,null,null,null,null,null,null,null,0,0,0,null,null,null,null,0,null,null,null,0]
[{"$f":"'Org structure'!E117","v":"11.5 - [Name of sub-vote]"},null,null,null,null,null,null,null,null,0,0,0,null,null,null,null,0,null,null,null,0]
[{"$f":"'Org structure'!E118","v":"11.6 - [Name of sub-vote]"},null,null,null,null,null,null,null,null,0,0,0,null,null,null,null,0,null,null,null,0]
[{"$f":"'Org structure'!E119","v":"11.7 - [Name of sub-vote]"},null,null,null,null,null,null,null,null,0,0,0,null,null,null,null,0,null,null,null,0]
[{"$f":"'Org structure'!E120","v":"11.8 - [Name of sub-vote]"},null,null,null,null,null,null,null,null,0,0,0,null,null,null,null,0,null,null,null,0]
[{"$f":"'Org structure'!E121","v":"11.9 - [Name of sub-vote]"},null,null,null,null,null,null,null,null,0,0,0,null,null,null,null,0,null,null,null,0]
[{"$f":"'Org structure'!E122","v":"11.10 - [Name of sub-vote]"},null,null,null,null,null,null,null,null,0,0,0,null,null,null,null,0,null,null,null,0]
[{"$f":"'Org structure'!A13","v":"Vote 12 - Waste Water Management"},null,{"$f":"SUM(C128:C137)","v":0},0,0,0,0,0,0,0,0,0,null,{"$f":"SUM(N128:N137)","v":0},0,0,0,0,0,0,0,0,0,0]
[{"$f":"'Org structure'!E124","v":"12.1 - Sewerage"},null,null,null,null,null,null,null,null,{"$f":"Q128+V128","v":0},{"$f":"U128+W128","v":0},{"$f":"X128","v":0},null,null,null,null,{"$f":"SUM(N128:P128)","v":0},null,null,null,0]
[{"$f":"'Org structure'!E125","v":"12.2 - [Name of sub-vote]"},null,null,null,null,null,null,null,null,0,0,0,null,null,null,null,0,null,null,null,0]
[{"$f":"'Org structure'!E126","v":"12.3 - [Name of sub-vote]"},null,null,null,null,null,null,null,null,0,0,0,null,null,null,null,0,null,null,null,0]
[{"$f":"'Org structure'!E127","v":"12.4 - [Name of sub-vote]"},null,null,null,null,null,null,null,null,0,0,0,null,null,null,null,0,null,null,null,0]
[{"$f":"'Org structure'!E128","v":"12.5 - [Name of sub-vote]"},null,null,null,null,null,null,null,null,0,0,0,null,null,null,null,0,null,null,null,0]
[{"$f":"'Org structure'!E129","v":"12.6 - [Name of sub-vote]"},null,null,null,null,null,null,null,null,{"$f":"Q133+V133","v":0},0,0,null,null,null,null,0,null,null,null,0]
[{"$f":"'Org structure'!E130","v":"12.7 - [Name of sub-vote]"},null,null,null,null,null,null,null,null,0,0,0,null,null,null,null,0,null,null,null,0]
[{"$f":"'Org structure'!E131","v":"12.8 - [Name of sub-vote]"},null,null,null,null,null,null,null,null,0,0,0,null,null,null,null,0,null,null,null,0]
[{"$f":"'Org structure'!E132","v":"12.9 - [Name of sub-vote]"},null,null,null,null,null,null,null,null,0,0,0,null,null,null,null,0,null,null,null,{"$f":"SUM(R136:T136)","v":0}]
[{"$f":"'Org structure'!E133","v":"12.10 - [Name of sub-vote]"},null,null,null,null,null,null,null,null,0,0,0,null,null,null,null,0,null,null,null,0]
[{"$f":"'Org structure'!A14","v":"Vote 13 - Housing"},null,{"$f":"SUM(C139:C148)","v":0},0,0,0,0,0,0,0,0,0,null,{"$f":"SUM(N139:N148)","v":0},0,0,0,0,0,0,0,0,0,0]
[{"$f":"'Org structure'!E135","v":"13.1 - Housing"},null,null,null,null,null,null,null,null,{"$f":"Q139+V139","v":0},{"$f":"U139+W139","v":0},{"$f":"X139","v":0},null,null,null,null,{"$f":"SUM(N139:P139)","v":0},null,null,null,0]
[{"$f":"'Org structure'!E136","v":"13.2 - [Name of sub-vote]"},null,null,null,null,null,null,null,null,0,0,0,null,null,null,null,0,null,null,null,0]
[{"$f":"'Org structure'!E137","v":"13.3 - [Name of sub-vote]"},null,null,null,null,null,null,null,null,0,0,0,null,null,null,null,0,null,null,null,0]
[{"$f":"'Org structure'!E138","v":"13.4 - [Name of sub-vote]"},null,null,null,null,null,null,null,null,0,0,0,null,null,null,null,0,null,null,null,0]
[{"$f":"'Org structure'!E139","v":"13.5 - [Name of sub-vote]"},null,null,null,null,null,null,null,null,0,0,0,null,null,null,null,0,null,null,null,0]
[{"$f":"'Org structure'!E140","v":"13.6 - [Name of sub-vote]"},null,null,null,null,null,null,null,null,0,0,0,null,null,null,null,0,null,null,null,0]
[{"$f":"'Org structure'!E141","v":"13.7 - [Name of sub-vote]"},null,null,null,null,null,null,null,null,0,0,0,null,null,null,null,0,null,null,null,0]
[{"$f":"'Org structure'!E142","v":"13.8 - [Name of sub-vote]"},null,null,null,null,null,null,null,null,0,0,0,null,null,null,null,0,null,null,null,0]
[{"$f":"'Org structure'!E143","v":"13.9 - [Name of sub-vote]"},null,null,null,null,null,null,null,null,0,0,0,null,null,null,null,0,null,null,null,0]
[{"$f":"'Org structure'!E144","v":"13.10 - [Name of sub-vote]"},null,null,null,null,null,null,null,null,0,0,0,null,null,null,null,0,null,null,null,0]
[{"$f":"'Org structure'!A15","v":"Vote 14 - Finance & Administration 2"},null,{"$f":"SUM(C150:C159)","v":0},0,0,0,0,0,0,0,0,0,null,{"$f":"SUM(N150:N159)","v":0},0,0,0,0,0,0,0,0,0,0]
[{"$f":"'Org structure'!E146","v":"14.1 - Security Services"},null,null,null,null,null,null,null,null,{"$f":"Q150+V150","v":0},{"$f":"U150+W150","v":0},{"$f":"X150","v":0},null,null,null,null,{"$f":"SUM(N150:P150)","v":0},null,null,null,0]
[{"$f":"'Org structure'!E147","v":"14.2 - Administrative and Corporate Support"},null,null,null,null,null,null,null,null,0,0,0,null,null,null,null,0,null,null,null,0]
[{"$f":"'Org structure'!E148","v":"14.3 - Information Technology"},null,null,null,null,null,null,null,null,0,0,0,null,null,null,null,0,null,null,null,0]
[{"$f":"'Org structure'!E149","v":"14.4 - [Name of sub-vote]"},null,null,null,null,null,null,null,null,0,0,0,null,null,null,null,0,null,null,null,0]
[{"$f":"'Org structure'!E150","v":"14.5 - [Name of sub-vote]"},null,null,null,null,null,null,null,null,0,0,0,null,null,null,null,0,null,null,null,0]
[{"$f":"'Org structure'!E151","v":"14.6 - [Name of sub-vote]"},null,null,null,null,null,null,null,null,0,0,0,null,null,null,null,0,null,null,null,0]
[{"$f":"'Org structure'!E152","v":"14.7 - [Name of sub-vote]"},null,null,null,null,null,null,null,null,0,0,0,null,null,null,null,0,null,null,null,0]
[{"$f":"'Org structure'!E153","v":"14.8 - [Name of sub-vote]"},null,null,null,null,null,null,null,null,0,0,0,null,null,null,null,0,null,null,null,0]
[{"$f":"'Org structure'!E154","v":"14.9 - [Name of sub-vote]"},null,null,null,null,null,null,null,null,0,0,0,null,null,null,null,0,null,null,null,0]
[{"$f":"'Org structure'!E155","v":"14.10 - [Name of sub-vote]"},null,null,null,null,null,null,null,null,0,0,0,null,null,null,null,0,null,null,null,0]
[{"$f":"'Org structure'!A16","v":"Vote 15 - [NAME OF VOTE 15]"},null,{"$f":"SUM(C161:C170)","v":0},0,0,0,0,0,0,0,0,0,null,{"$f":"SUM(N161:N170)","v":0},0,0,0,0,0,0,0,0,0,0]
[{"$f":"'Org structure'!E157","v":"15.1 - [Name of sub-vote]"},null,null,null,null,null,null,null,null,{"$f":"Q161+V161","v":0},{"$f":"U161+W161","v":0},{"$f":"X161","v":0},null,null,null,null,{"$f":"SUM(N161:P161)","v":0},null,null,null,0]
[{"$f":"'Org structure'!E158","v":"15.2 - [Name of sub-vote]"},null,null,null,null,null,null,null,null,0,0,0,null,null,null,null,0,null,null,null,0]
[{"$f":"'Org structure'!E159","v":"15.3 - [Name of sub-vote]"},null,null,null,null,null,null,null,null,0,0,0,null,null,null,null,0,null,null,null,0]
[{"$f":"'Org structure'!E160","v":"15.4 - [Name of sub-vote]"},null,null,null,null,null,null,null,null,0,0,0,null,null,null,null,0,null,null,null,0]
[{"$f":"'Org structure'!E161","v":"15.5 - [Name of sub-vote]"},null,null,null,null,null,null,null,null,0,0,0,null,null,null,null,0,null,null,null,0]
[{"$f":"'Org structure'!E162","v":"15.6 - [Name of sub-vote]"},null,null,null,null,null,null,null,null,0,0,0,null,null,null,null,0,null,null,null,0]
[{"$f":"'Org structure'!E163","v":"15.7 - [Name of sub-vote]"},null,null,null,null,null,null,null,null,0,0,0,null,null,null,null,0,null,null,null,0]
[{"$f":"'Org structure'!E164","v":"15.8 - [Name of sub-vote]"},null,null,null,null,null,null,null,null,0,0,0,null,null,null,null,0,null,null,null,0]
[{"$f":"'Org structure'!E165","v":"15.9 - [Name of sub-vote]"},null,null,null,null,null,null,null,null,0,0,0,null,null,null,null,0,null,null,null,0]
[{"$f":"'Org structure'!E166","v":"15.10 - [Name of sub-vote]"},null,null,null,null,null,null,null,null,0,0,0,null,null,null,null,0,null,null,null,0]
["Capital multi-year expenditure sub-total",null,{"$f":"C6+C17+C28+C39+C50+C61+C72+C83+C94+C105+C116+C127+C138+C149+C160","v":0},{"$f":"D6+D17+D28+D39+D50+D61+D72+D83+D94+D105+D116+D127+D138+D149+D160","v":0},0,0,0,0,0,0,0,0,null,{"$f":"N6+N17+N28+N39+N50+N61+N72+N83+N94+N105+N116+N127+N138+N149+N160","v":0},0,0,0,0,0,null,0,{"$f":"V6+V17+V28+V39+V50+V61+V72+V83+V94+V105+V116+V127+V138+V149+V160","v":0},{"$f":"W6+W17+W28+W39+W50+W61+W72+W83+W94+W105+W116+W127+W138+W149+W160","v":0}]
[]
["Capital expenditure - Municipal Vote"]
["Single-year expenditure appropriation",2]
[{"$f":"A6","v":"Vote 1 -  Energy Sources"},null,{"$f":"SUM(C176:C185)","v":6283885},15680946,7133044,2500000,405000,405000,405000,6000000,5000000,5000000]
[{"$f":"A7","v":"1.1 - Electricity"},null,{"$f":"SUMIFS(Sheet1!S71_PPPYearAmount,Sheet1!S71_SubMunicipalVoteNo,$AC:$AC,Sheet1!S71_A5CapexCode,$AD:$AD)","v":1},{"$f":"SUMIFS(Sheet1!S71_PPYearAmount,Sheet1!S71_SubMunicipalVoteNo,$AC:$AC,Sheet1!S71_A5CapexCode,$AD:$AD)","v":8547902},{"$f":"SUMIFS(Sheet1!S71_PYearAmount,Sheet1!S71_SubMunicipalVoteNo,$AC:$AC,Sheet1!S71_A5CapexCode,$AD:$AD)","v":0},{"$f":"SUMIFS(Sheet1!S71_OriginalBudAmnt,Sheet1!S71_SubMunicipalVoteNo,$AC:$AC,Sheet1!S71_A5CapexCode,$AD:$AD)","v":2500000},{"$f":"SUMIFS(Sheet1!S71_AdjustmentBudAmnt,Sheet1!S71_SubMunicipalVoteNo,$AC:$AC,Sheet1!S71_A5CapexCode,$AD:$AD)","v":405000},{"$f":"SUMIFS(Sheet1!S71_AdjustmentBudAmnt,Sheet1!S71_SubMunicipalVoteNo,$AC:$AC,Sheet1!S71_A5CapexCode,$AD:$AD)","v":405000},{"$f":"H176","v":405000},{"$f":"SUMIFS(Sheet1!S71_ASBudgetAmount,Sheet1!S71_SubMunicipalVoteNo,$AC:$AC,Sheet1!S71_A5CapexCode,$AD:$AD)","v":6000000},{"$f":"SUMIFS(Sheet1!S71_OY1BudgetAmount,Sheet1!S71_SubMunicipalVoteNo,$AC:$AC,Sheet1!S71_A5CapexCode,$AD:$AD)","v":5000000},{"$f":"SUMIFS(Sheet1!S71_OY2BudgetAmount,Sheet1!S71_SubMunicipalVoteNo,$AC:$AC,Sheet1!S71_A5CapexCode,$AD:$AD)","v":5000000},null,null,null,null,null,null,null,null,null,null,null,null,null,null,null,null,11,"CE"]
["1.2 - Street Lighting and Signal Systems",null,{"$f":"SUMIFS(Sheet1!S71_PPPYearAmount,Sheet1!S71_SubMunicipalVoteNo,$AC:$AC,Sheet1!S71_A5CapexCode,$AD:$AD)","v":6283884},{"$f":"SUMIFS(Sheet1!S71_PPYearAmount,Sheet1!S71_SubMunicipalVoteNo,$AC:$AC,Sheet1!S71_A5CapexCode,$AD:$AD)","v":7133044},{"$f":"SUMIFS(Sheet1!S71_PYearAmount,Sheet1!S71_SubMunicipalVoteNo,$AC:$AC,Sheet1!S71_A5CapexCode,$AD:$AD)","v":7133044},{"$f":"SUMIFS(Sheet1!S71_OriginalBudAmnt,Sheet1!S71_SubMunicipalVoteNo,$AC:$AC,Sheet1!S71_A5CapexCode,$AD:$AD)","v":0},{"$f":"SUMIFS(Sheet1!S71_AdjustmentBudAmnt,Sheet1!S71_SubMunicipalVoteNo,$AC:$AC,Sheet1!S71_A5CapexCode,$AD:$AD)","v":0},{"$f":"SUMIFS(Sheet1!S71_AdjustmentBudAmnt,Sheet1!S71_SubMunicipalVoteNo,$AC:$AC,Sheet1!S71_A5CapexCode,$AD:$AD)","v":0},{"$f":"H177","v":0},{"$f":"SUMIFS(Sheet1!S71_ASBudgetAmount,Sheet1!S71_SubMunicipalVoteNo,$AC:$AC,Sheet1!S71_A5CapexCode,$AD:$AD)","v":0},{"$f":"SUMIFS(Sheet1!S71_OY1BudgetAmount,Sheet1!S71_SubMunicipalVoteNo,$AC:$AC,Sheet1!S71_A5CapexCode,$AD:$AD)","v":0},{"$f":"SUMIFS(Sheet1!S71_OY2BudgetAmount,Sheet1!S71_SubMunicipalVoteNo,$AC:$AC,Sheet1!S71_A5CapexCode,$AD:$AD)","v":0},null,null,null,null,null,null,null,null,null,null,null,null,null,null,null,null,12,"CE"]
["1.3 - [Name of sub-vote]",null,{"$f":"SUMIFS(Sheet1!S71_PPPYearAmount,Sheet1!S71_SubMunicipalVoteNo,$AC:$AC,Sheet1!S71_A5CapexCode,$AD:$AD)","v":0},{"$f":"SUMIFS(Sheet1!S71_PPYearAmount,Sheet1!S71_SubMunicipalVoteNo,$AC:$AC,Sheet1!S71_A5CapexCode,$AD:$AD)","v":0},{"$f":"SUMIFS(Sheet1!S71_PYearAmount,Sheet1!S71_SubMunicipalVoteNo,$AC:$AC,Sheet1!S71_A5CapexCode,$AD:$AD)","v":0},{"$f":"SUMIFS(Sheet1!S71_OriginalBudAmnt,Sheet1!S71_SubMunicipalVoteNo,$AC:$AC,Sheet1!S71_A5CapexCode,$AD:$AD)","v":0},{"$f":"SUMIFS(Sheet1!S71_AdjustmentBudAmnt,Sheet1!S71_SubMunicipalVoteNo,$AC:$AC,Sheet1!S71_A5CapexCode,$AD:$AD)","v":0},{"$f":"SUMIFS(Sheet1!S71_AdjustmentBudAmnt,Sheet1!S71_SubMunicipalVoteNo,$AC:$AC,Sheet1!S71_A5CapexCode,$AD:$AD)","v":0},0,{"$f":"SUMIFS(Sheet1!S71_ASBudgetAmount,Sheet1!S71_SubMunicipalVoteNo,$AC:$AC,Sheet1!S71_A5CapexCode,$AD:$AD)","v":0},{"$f":"SUMIFS(Sheet1!S71_OY1BudgetAmount,Sheet1!S71_SubMunicipalVoteNo,$AC:$AC,Sheet1!S71_A5CapexCode,$AD:$AD)","v":0},{"$f":"SUMIFS(Sheet1!S71_OY2BudgetAmount,Sheet1!S71_SubMunicipalVoteNo,$AC:$AC,Sheet1!S71_A5CapexCode,$AD:$AD)","v":0},null,null,null,null,null,null,null,null,null,null,null,null,null,null,null,null,13,"CE"]
["1.4 - [Name of sub-vote]",null,{"$f":"SUMIFS(Sheet1!S71_PPPYearAmount,Sheet1!S71_SubMunicipalVoteNo,$AC:$AC,Sheet1!S71_A5CapexCode,$AD:$AD)","v":0},{"$f":"SUMIFS(Sheet1!S71_PPYearAmount,Sheet1!S71_SubMunicipalVoteNo,$AC:$AC,Sheet1!S71_A5CapexCode,$AD:$AD)","v":0},{"$f":"SUMIFS(Sheet1!S71_PYearAmount,Sheet1!S71_SubMunicipalVoteNo,$AC:$AC,Sheet1!S71_A5CapexCode,$AD:$AD)","v":0},{"$f":"SUMIFS(Sheet1!S71_OriginalBudAmnt,Sheet1!S71_SubMunicipalVoteNo,$AC:$AC,Sheet1!S71_A5CapexCode,$AD:$AD)","v":0},{"$f":"SUMIFS(Sheet1!S71_AdjustmentBudAmnt,Sheet1!S71_SubMunicipalVoteNo,$AC:$AC,Sheet1!S71_A5CapexCode,$AD:$AD)","v":0},{"$f":"SUMIFS(Sheet1!S71_AdjustmentBudAmnt,Sheet1!S71_SubMunicipalVoteNo,$AC:$AC,Sheet1!S71_A5CapexCode,$AD:$AD)","v":0},0,{"$f":"SUMIFS(Sheet1!S71_ASBudgetAmount,Sheet1!S71_SubMunicipalVoteNo,$AC:$AC,Sheet1!S71_A5CapexCode,$AD:$AD)","v":0},{"$f":"SUMIFS(Sheet1!S71_OY1BudgetAmount,Sheet1!S71_SubMunicipalVoteNo,$AC:$AC,Sheet1!S71_A5CapexCode,$AD:$AD)","v":0},{"$f":"SUMIFS(Sheet1!S71_OY2BudgetAmount,Sheet1!S71_SubMunicipalVoteNo,$AC:$AC,Sheet1!S71_A5CapexCode,$AD:$AD)","v":0},null,null,null,null,null,null,null,null,null,null,null,null,null,null,null,null,14,"CE"]
["1.5 - [Name of sub-vote]",null,{"$f":"SUMIFS(Sheet1!S71_PPPYearAmount,Sheet1!S71_SubMunicipalVoteNo,$AC:$AC,Sheet1!S71_A5CapexCode,$AD:$AD)","v":0},{"$f":"SUMIFS(Sheet1!S71_PPYearAmount,Sheet1!S71_SubMunicipalVoteNo,$AC:$AC,Sheet1!S71_A5CapexCode,$AD:$AD)","v":0},{"$f":"SUMIFS(Sheet1!S71_PYearAmount,Sheet1!S71_SubMunicipalVoteNo,$AC:$AC,Sheet1!S71_A5CapexCode,$AD:$AD)","v":0},{"$f":"SUMIFS(Sheet1!S71_OriginalBudAmnt,Sheet1!S71_SubMunicipalVoteNo,$AC:$AC,Sheet1!S71_A5CapexCode,$AD:$AD)","v":0},{"$f":"SUMIFS(Sheet1!S71_AdjustmentBudAmnt,Sheet1!S71_SubMunicipalVoteNo,$AC:$AC,Sheet1!S71_A5CapexCode,$AD:$AD)","v":0},{"$f":"SUMIFS(Sheet1!S71_AdjustmentBudAmnt,Sheet1!S71_SubMunicipalVoteNo,$AC:$AC,Sheet1!S71_A5CapexCode,$AD:$AD)","v":0},0,{"$f":"SUMIFS(Sheet1!S71_ASBudgetAmount,Sheet1!S71_SubMunicipalVoteNo,$AC:$AC,Sheet1!S71_A5CapexCode,$AD:$AD)","v":0},{"$f":"SUMIFS(Sheet1!S71_OY1BudgetAmount,Sheet1!S71_SubMunicipalVoteNo,$AC:$AC,Sheet1!S71_A5CapexCode,$AD:$AD)","v":0},{"$f":"SUMIFS(Sheet1!S71_OY2BudgetAmount,Sheet1!S71_SubMunicipalVoteNo,$AC:$AC,Sheet1!S71_A5CapexCode,$AD:$AD)","v":0},null,null,null,null,null,null,null,null,null,null,null,null,null,null,null,null,15,"CE"]
["1.6 - [Name of sub-vote]",null,{"$f":"SUMIFS(Sheet1!S71_PPPYearAmount,Sheet1!S71_SubMunicipalVoteNo,$AC:$AC,Sheet1!S71_A5CapexCode,$AD:$AD)","v":0},{"$f":"SUMIFS(Sheet1!S71_PPYearAmount,Sheet1!S71_SubMunicipalVoteNo,$AC:$AC,Sheet1!S71_A5CapexCode,$AD:$AD)","v":0},{"$f":"SUMIFS(Sheet1!S71_PYearAmount,Sheet1!S71_SubMunicipalVoteNo,$AC:$AC,Sheet1!S71_A5CapexCode,$AD:$AD)","v":0},{"$f":"SUMIFS(Sheet1!S71_OriginalBudAmnt,Sheet1!S71_SubMunicipalVoteNo,$AC:$AC,Sheet1!S71_A5CapexCode,$AD:$AD)","v":0},{"$f":"SUMIFS(Sheet1!S71_AdjustmentBudAmnt,Sheet1!S71_SubMunicipalVoteNo,$AC:$AC,Sheet1!S71_A5CapexCode,$AD:$AD)","v":0},{"$f":"SUMIFS(Sheet1!S71_AdjustmentBudAmnt,Sheet1!S71_SubMunicipalVoteNo,$AC:$AC,Sheet1!S71_A5CapexCode,$AD:$AD)","v":0},0,{"$f":"SUMIFS(Sheet1!S71_ASBudgetAmount,Sheet1!S71_SubMunicipalVoteNo,$AC:$AC,Sheet1!S71_A5CapexCode,$AD:$AD)","v":0},{"$f":"SUMIFS(Sheet1!S71_OY1BudgetAmount,Sheet1!S71_SubMunicipalVoteNo,$AC:$AC,Sheet1!S71_A5CapexCode,$AD:$AD)","v":0},{"$f":"SUMIFS(Sheet1!S71_OY2BudgetAmount,Sheet1!S71_SubMunicipalVoteNo,$AC:$AC,Sheet1!S71_A5CapexCode,$AD:$AD)","v":0},null,null,null,null,null,null,null,null,null,null,null,null,null,null,null,null,16,"CE"]
["1.7 - [Name of sub-vote]",null,{"$f":"SUMIFS(Sheet1!S71_PPPYearAmount,Sheet1!S71_SubMunicipalVoteNo,$AC:$AC,Sheet1!S71_A5CapexCode,$AD:$AD)","v":0},{"$f":"SUMIFS(Sheet1!S71_PPYearAmount,Sheet1!S71_SubMunicipalVoteNo,$AC:$AC,Sheet1!S71_A5CapexCode,$AD:$AD)","v":0},{"$f":"SUMIFS(Sheet1!S71_PYearAmount,Sheet1!S71_SubMunicipalVoteNo,$AC:$AC,Sheet1!S71_A5CapexCode,$AD:$AD)","v":0},{"$f":"SUMIFS(Sheet1!S71_OriginalBudAmnt,Sheet1!S71_SubMunicipalVoteNo,$AC:$AC,Sheet1!S71_A5CapexCode,$AD:$AD)","v":0},{"$f":"SUMIFS(Sheet1!S71_AdjustmentBudAmnt,Sheet1!S71_SubMunicipalVoteNo,$AC:$AC,Sheet1!S71_A5CapexCode,$AD:$AD)","v":0},{"$f":"SUMIFS(Sheet1!S71_AdjustmentBudAmnt,Sheet1!S71_SubMunicipalVoteNo,$AC:$AC,Sheet1!S71_A5CapexCode,$AD:$AD)","v":0},0,{"$f":"SUMIFS(Sheet1!S71_ASBudgetAmount,Sheet1!S71_SubMunicipalVoteNo,$AC:$AC,Sheet1!S71_A5CapexCode,$AD:$AD)","v":0},{"$f":"SUMIFS(Sheet1!S71_OY1BudgetAmount,Sheet1!S71_SubMunicipalVoteNo,$AC:$AC,Sheet1!S71_A5CapexCode,$AD:$AD)","v":0},{"$f":"SUMIFS(Sheet1!S71_OY2BudgetAmount,Sheet1!S71_SubMunicipalVoteNo,$AC:$AC,Sheet1!S71_A5CapexCode,$AD:$AD)","v":0},null,null,null,null,null,null,null,null,null,null,null,null,null,null,null,null,17,"CE"]
["1.8 - [Name of sub-vote]",null,{"$f":"SUMIFS(Sheet1!S71_PPPYearAmount,Sheet1!S71_SubMunicipalVoteNo,$AC:$AC,Sheet1!S71_A5CapexCode,$AD:$AD)","v":0},{"$f":"SUMIFS(Sheet1!S71_PPYearAmount,Sheet1!S71_SubMunicipalVoteNo,$AC:$AC,Sheet1!S71_A5CapexCode,$AD:$AD)","v":0},{"$f":"SUMIFS(Sheet1!S71_PYearAmount,Sheet1!S71_SubMunicipalVoteNo,$AC:$AC,Sheet1!S71_A5CapexCode,$AD:$AD)","v":0},{"$f":"SUMIFS(Sheet1!S71_OriginalBudAmnt,Sheet1!S71_SubMunicipalVoteNo,$AC:$AC,Sheet1!S71_A5CapexCode,$AD:$AD)","v":0},{"$f":"SUMIFS(Sheet1!S71_AdjustmentBudAmnt,Sheet1!S71_SubMunicipalVoteNo,$AC:$AC,Sheet1!S71_A5CapexCode,$AD:$AD)","v":0},{"$f":"SUMIFS(Sheet1!S71_AdjustmentBudAmnt,Sheet1!S71_SubMunicipalVoteNo,$AC:$AC,Sheet1!S71_A5CapexCode,$AD:$AD)","v":0},0,{"$f":"SUMIFS(Sheet1!S71_ASBudgetAmount,Sheet1!S71_SubMunicipalVoteNo,$AC:$AC,Sheet1!S71_A5CapexCode,$AD:$AD)","v":0},{"$f":"SUMIFS(Sheet1!S71_OY1BudgetAmount,Sheet1!S71_SubMunicipalVoteNo,$AC:$AC,Sheet1!S71_A5CapexCode,$AD:$AD)","v":0},{"$f":"SUMIFS(Sheet1!S71_OY2BudgetAmount,Sheet1!S71_SubMunicipalVoteNo,$AC:$AC,Sheet1!S71_A5CapexCode,$AD:$AD)","v":0},null,null,null,null,null,null,null,null,null,null,null,null,null,null,null,null,18,"CE"]
["1.9 - [Name of sub-vote]",null,{"$f":"SUMIFS(Sheet1!S71_PPPYearAmount,Sheet1!S71_SubMunicipalVoteNo,$AC:$AC,Sheet1!S71_A5CapexCode,$AD:$AD)","v":0},{"$f":"SUMIFS(Sheet1!S71_PPYearAmount,Sheet1!S71_SubMunicipalVoteNo,$AC:$AC,Sheet1!S71_A5CapexCode,$AD:$AD)","v":0},{"$f":"SUMIFS(Sheet1!S71_PYearAmount,Sheet1!S71_SubMunicipalVoteNo,$AC:$AC,Sheet1!S71_A5CapexCode,$AD:$AD)","v":0},{"$f":"SUMIFS(Sheet1!S71_OriginalBudAmnt,Sheet1!S71_SubMunicipalVoteNo,$AC:$AC,Sheet1!S71_A5CapexCode,$AD:$AD)","v":0},{"$f":"SUMIFS(Sheet1!S71_AdjustmentBudAmnt,Sheet1!S71_SubMunicipalVoteNo,$AC:$AC,Sheet1!S71_A5CapexCode,$AD:$AD)","v":0},{"$f":"SUMIFS(Sheet1!S71_AdjustmentBudAmnt,Sheet1!S71_SubMunicipalVoteNo,$AC:$AC,Sheet1!S71_A5CapexCode,$AD:$AD)","v":0},0,{"$f":"SUMIFS(Sheet1!S71_ASBudgetAmount,Sheet1!S71_SubMunicipalVoteNo,$AC:$AC,Sheet1!S71_A5CapexCode,$AD:$AD)","v":0},{"$f":"SUMIFS(Sheet1!S71_OY1BudgetAmount,Sheet1!S71_SubMunicipalVoteNo,$AC:$AC,Sheet1!S71_A5CapexCode,$AD:$AD)","v":0},{"$f":"SUMIFS(Sheet1!S71_OY2BudgetAmount,Sheet1!S71_SubMunicipalVoteNo,$AC:$AC,Sheet1!S71_A5CapexCode,$AD:$AD)","v":0},null,null,null,null,null,null,null,null,null,null,null,null,null,null,null,null,19,"CE"]
["1.10 - [Name of sub-vote]",null,{"$f":"SUMIFS(Sheet1!S71_PPPYearAmount,Sheet1!S71_SubMunicipalVoteNo,$AC:$AC,Sheet1!S71_A5CapexCode,$AD:$AD)","v":0},{"$f":"SUMIFS(Sheet1!S71_PPYearAmount,Sheet1!S71_SubMunicipalVoteNo,$AC:$AC,Sheet1!S71_A5CapexCode,$AD:$AD)","v":0},{"$f":"SUMIFS(Sheet1!S71_PYearAmount,Sheet1!S71_SubMunicipalVoteNo,$AC:$AC,Sheet1!S71_A5CapexCode,$AD:$AD)","v":0},{"$f":"SUMIFS(Sheet1!S71_OriginalBudAmnt,Sheet1!S71_SubMunicipalVoteNo,$AC:$AC,Sheet1!S71_A5CapexCode,$AD:$AD)","v":0},{"$f":"SUMIFS(Sheet1!S71_AdjustmentBudAmnt,Sheet1!S71_SubMunicipalVoteNo,$AC:$AC,Sheet1!S71_A5CapexCode,$AD:$AD)","v":0},{"$f":"SUMIFS(Sheet1!S71_AdjustmentBudAmnt,Sheet1!S71_SubMunicipalVoteNo,$AC:$AC,Sheet1!S71_A5CapexCode,$AD:$AD)","v":0},0,{"$f":"SUMIFS(Sheet1!S71_ASBudgetAmount,Sheet1!S71_SubMunicipalVoteNo,$AC:$AC,Sheet1!S71_A5CapexCode,$AD:$AD)","v":0},{"$f":"SUMIFS(Sheet1!S71_OY1BudgetAmount,Sheet1!S71_SubMunicipalVoteNo,$AC:$AC,Sheet1!S71_A5CapexCode,$AD:$AD)","v":0},{"$f":"SUMIFS(Sheet1!S71_OY2BudgetAmount,Sheet1!S71_SubMunicipalVoteNo,$AC:$AC,Sheet1!S71_A5CapexCode,$AD:$AD)","v":0},null,null,null,null,null,null,null,null,null,null,null,null,null,null,null,null,110,"CE"]
["Vote 2 - Community and Social Services",null,{"$f":"SUM(C187:C196)","v":1627804},1627804,10426720,40741416,25913507,25913507,25913507,8009410,1100000,1200000]
["2.1 - Animal Care and Diseases",null,{"$f":"SUMIFS(Sheet1!S71_PPPYearAmount,Sheet1!S71_SubMunicipalVoteNo,$AC:$AC,Sheet1!S71_A5CapexCode,$AD:$AD)","v":0},{"$f":"SUMIFS(Sheet1!S71_PPYearAmount,Sheet1!S71_SubMunicipalVoteNo,$AC:$AC,Sheet1!S71_A5CapexCode,$AD:$AD)","v":0},{"$f":"SUMIFS(Sheet1!S71_PYearAmount,Sheet1!S71_SubMunicipalVoteNo,$AC:$AC,Sheet1!S71_A5CapexCode,$AD:$AD)","v":0},{"$f":"SUMIFS(Sheet1!S71_OriginalBudAmnt,Sheet1!S71_SubMunicipalVoteNo,$AC:$AC,Sheet1!S71_A5CapexCode,$AD:$AD)","v":0},{"$f":"SUMIFS(Sheet1!S71_AdjustmentBudAmnt,Sheet1!S71_SubMunicipalVoteNo,$AC:$AC,Sheet1!S71_A5CapexCode,$AD:$AD)","v":0},{"$f":"SUMIFS(Sheet1!S71_AdjustmentBudAmnt,Sheet1!S71_SubMunicipalVoteNo,$AC:$AC,Sheet1!S71_A5CapexCode,$AD:$AD)","v":0},{"$f":"H187","v":0},{"$f":"SUMIFS(Sheet1!S71_ASBudgetAmount,Sheet1!S71_SubMunicipalVoteNo,$AC:$AC,Sheet1!S71_A5CapexCode,$AD:$AD)","v":0},{"$f":"SUMIFS(Sheet1!S71_OY1BudgetAmount,Sheet1!S71_SubMunicipalVoteNo,$AC:$AC,Sheet1!S71_A5CapexCode,$AD:$AD)","v":0},{"$f":"SUMIFS(Sheet1!S71_OY2BudgetAmount,Sheet1!S71_SubMunicipalVoteNo,$AC:$AC,Sheet1!S71_A5CapexCode,$AD:$AD)","v":0},null,null,null,null,null,null,null,null,null,null,null,null,null,null,null,null,21,"CE"]
["2.2 - Community Halls and Facilities",null,{"$f":"SUMIFS(Sheet1!S71_PPPYearAmount,Sheet1!S71_SubMunicipalVoteNo,$AC:$AC,Sheet1!S71_A5CapexCode,$AD:$AD)","v":1627804},{"$f":"SUMIFS(Sheet1!S71_PPYearAmount,Sheet1!S71_SubMunicipalVoteNo,$AC:$AC,Sheet1!S71_A5CapexCode,$AD:$AD)","v":1627804},{"$f":"SUMIFS(Sheet1!S71_PYearAmount,Sheet1!S71_SubMunicipalVoteNo,$AC:$AC,Sheet1!S71_A5CapexCode,$AD:$AD)","v":10426720},{"$f":"SUMIFS(Sheet1!S71_OriginalBudAmnt,Sheet1!S71_SubMunicipalVoteNo,$AC:$AC,Sheet1!S71_A5CapexCode,$AD:$AD)","v":40741416},{"$f":"SUMIFS(Sheet1!S71_AdjustmentBudAmnt,Sheet1!S71_SubMunicipalVoteNo,$AC:$AC,Sheet1!S71_A5CapexCode,$AD:$AD)","v":25913507},{"$f":"SUMIFS(Sheet1!S71_AdjustmentBudAmnt,Sheet1!S71_SubMunicipalVoteNo,$AC:$AC,Sheet1!S71_A5CapexCode,$AD:$AD)","v":25913507},25913507,{"$f":"SUMIFS(Sheet1!S71_ASBudgetAmount,Sheet1!S71_SubMunicipalVoteNo,$AC:$AC,Sheet1!S71_A5CapexCode,$AD:$AD)","v":8009410},{"$f":"SUMIFS(Sheet1!S71_OY1BudgetAmount,Sheet1!S71_SubMunicipalVoteNo,$AC:$AC,Sheet1!S71_A5CapexCode,$AD:$AD)","v":1100000},{"$f":"SUMIFS(Sheet1!S71_OY2BudgetAmount,Sheet1!S71_SubMunicipalVoteNo,$AC:$AC,Sheet1!S71_A5CapexCode,$AD:$AD)","v":1200000},null,null,null,null,null,null,null,null,null,null,null,null,null,null,null,null,22,"CE"]
["2.3 - Libraries and Archives",null,{"$f":"SUMIFS(Sheet1!S71_PPPYearAmount,Sheet1!S71_SubMunicipalVoteNo,$AC:$AC,Sheet1!S71_A5CapexCode,$AD:$AD)","v":0},{"$f":"SUMIFS(Sheet1!S71_PPYearAmount,Sheet1!S71_SubMunicipalVoteNo,$AC:$AC,Sheet1!S71_A5CapexCode,$AD:$AD)","v":0},{"$f":"SUMIFS(Sheet1!S71_PYearAmount,Sheet1!S71_SubMunicipalVoteNo,$AC:$AC,Sheet1!S71_A5CapexCode,$AD:$AD)","v":0},{"$f":"SUMIFS(Sheet1!S71_OriginalBudAmnt,Sheet1!S71_SubMunicipalVoteNo,$AC:$AC,Sheet1!S71_A5CapexCode,$AD:$AD)","v":0},{"$f":"SUMIFS(Sheet1!S71_AdjustmentBudAmnt,Sheet1!S71_SubMunicipalVoteNo,$AC:$AC,Sheet1!S71_A5CapexCode,$AD:$AD)","v":0},{"$f":"SUMIFS(Sheet1!S71_AdjustmentBudAmnt,Sheet1!S71_SubMunicipalVoteNo,$AC:$AC,Sheet1!S71_A5CapexCode,$AD:$AD)","v":0},0,{"$f":"SUMIFS(Sheet1!S71_ASBudgetAmount,Sheet1!S71_SubMunicipalVoteNo,$AC:$AC,Sheet1!S71_A5CapexCode,$AD:$AD)","v":0},{"$f":"SUMIFS(Sheet1!S71_OY1BudgetAmount,Sheet1!S71_SubMunicipalVoteNo,$AC:$AC,Sheet1!S71_A5CapexCode,$AD:$AD)","v":0},{"$f":"SUMIFS(Sheet1!S71_OY2BudgetAmount,Sheet1!S71_SubMunicipalVoteNo,$AC:$AC,Sheet1!S71_A5CapexCode,$AD:$AD)","v":0},null,null,null,null,null,null,null,null,null,null,null,null,null,null,null,null,23,"CE"]
["2.4 - Cemeteries, Funeral Parlours and Crematoriums",null,{"$f":"SUMIFS(Sheet1!S71_PPPYearAmount,Sheet1!S71_SubMunicipalVoteNo,$AC:$AC,Sheet1!S71_A5CapexCode,$AD:$AD)","v":0},{"$f":"SUMIFS(Sheet1!S71_PPYearAmount,Sheet1!S71_SubMunicipalVoteNo,$AC:$AC,Sheet1!S71_A5CapexCode,$AD:$AD)","v":0},{"$f":"SUMIFS(Sheet1!S71_PYearAmount,Sheet1!S71_SubMunicipalVoteNo,$AC:$AC,Sheet1!S71_A5CapexCode,$AD:$AD)","v":0},{"$f":"SUMIFS(Sheet1!S71_OriginalBudAmnt,Sheet1!S71_SubMunicipalVoteNo,$AC:$AC,Sheet1!S71_A5CapexCode,$AD:$AD)","v":0},{"$f":"SUMIFS(Sheet1!S71_AdjustmentBudAmnt,Sheet1!S71_SubMunicipalVoteNo,$AC:$AC,Sheet1!S71_A5CapexCode,$AD:$AD)","v":0},{"$f":"SUMIFS(Sheet1!S71_AdjustmentBudAmnt,Sheet1!S71_SubMunicipalVoteNo,$AC:$AC,Sheet1!S71_A5CapexCode,$AD:$AD)","v":0},0,{"$f":"SUMIFS(Sheet1!S71_ASBudgetAmount,Sheet1!S71_SubMunicipalVoteNo,$AC:$AC,Sheet1!S71_A5CapexCode,$AD:$AD)","v":0},{"$f":"SUMIFS(Sheet1!S71_OY1BudgetAmount,Sheet1!S71_SubMunicipalVoteNo,$AC:$AC,Sheet1!S71_A5CapexCode,$AD:$AD)","v":0},{"$f":"SUMIFS(Sheet1!S71_OY2BudgetAmount,Sheet1!S71_SubMunicipalVoteNo,$AC:$AC,Sheet1!S71_A5CapexCode,$AD:$AD)","v":0},null,null,null,null,null,null,null,null,null,null,null,null,null,null,null,null,24,"CE"]
["2.5 - Disaster Management",null,{"$f":"SUMIFS(Sheet1!S71_PPPYearAmount,Sheet1!S71_SubMunicipalVoteNo,$AC:$AC,Sheet1!S71_A5CapexCode,$AD:$AD)","v":0},{"$f":"SUMIFS(Sheet1!S71_PPYearAmount,Sheet1!S71_SubMunicipalVoteNo,$AC:$AC,Sheet1!S71_A5CapexCode,$AD:$AD)","v":0},{"$f":"SUMIFS(Sheet1!S71_PYearAmount,Sheet1!S71_SubMunicipalVoteNo,$AC:$AC,Sheet1!S71_A5CapexCode,$AD:$AD)","v":0},{"$f":"SUMIFS(Sheet1!S71_OriginalBudAmnt,Sheet1!S71_SubMunicipalVoteNo,$AC:$AC,Sheet1!S71_A5CapexCode,$AD:$AD)","v":0},{"$f":"SUMIFS(Sheet1!S71_AdjustmentBudAmnt,Sheet1!S71_SubMunicipalVoteNo,$AC:$AC,Sheet1!S71_A5CapexCode,$AD:$AD)","v":0},{"$f":"SUMIFS(Sheet1!S71_AdjustmentBudAmnt,Sheet1!S71_SubMunicipalVoteNo,$AC:$AC,Sheet1!S71_A5CapexCode,$AD:$AD)","v":0},0,{"$f":"SUMIFS(Sheet1!S71_ASBudgetAmount,Sheet1!S71_SubMunicipalVoteNo,$AC:$AC,Sheet1!S71_A5CapexCode,$AD:$AD)","v":0},{"$f":"SUMIFS(Sheet1!S71_OY1BudgetAmount,Sheet1!S71_SubMunicipalVoteNo,$AC:$AC,Sheet1!S71_A5CapexCode,$AD:$AD)","v":0},{"$f":"SUMIFS(Sheet1!S71_OY2BudgetAmount,Sheet1!S71_SubMunicipalVoteNo,$AC:$AC,Sheet1!S71_A5CapexCode,$AD:$AD)","v":0},null,null,null,null,null,null,null,null,null,null,null,null,null,null,null,null,25,"CE"]
["2.6 - [Name of sub-vote]",null,{"$f":"SUMIFS(Sheet1!S71_PPPYearAmount,Sheet1!S71_SubMunicipalVoteNo,$AC:$AC,Sheet1!S71_A5CapexCode,$AD:$AD)","v":0},{"$f":"SUMIFS(Sheet1!S71_PPYearAmount,Sheet1!S71_SubMunicipalVoteNo,$AC:$AC,Sheet1!S71_A5CapexCode,$AD:$AD)","v":0},{"$f":"SUMIFS(Sheet1!S71_PYearAmount,Sheet1!S71_SubMunicipalVoteNo,$AC:$AC,Sheet1!S71_A5CapexCode,$AD:$AD)","v":0},{"$f":"SUMIFS(Sheet1!S71_OriginalBudAmnt,Sheet1!S71_SubMunicipalVoteNo,$AC:$AC,Sheet1!S71_A5CapexCode,$AD:$AD)","v":0},{"$f":"SUMIFS(Sheet1!S71_AdjustmentBudAmnt,Sheet1!S71_SubMunicipalVoteNo,$AC:$AC,Sheet1!S71_A5CapexCode,$AD:$AD)","v":0},{"$f":"SUMIFS(Sheet1!S71_AdjustmentBudAmnt,Sheet1!S71_SubMunicipalVoteNo,$AC:$AC,Sheet1!S71_A5CapexCode,$AD:$AD)","v":0},0,{"$f":"SUMIFS(Sheet1!S71_ASBudgetAmount,Sheet1!S71_SubMunicipalVoteNo,$AC:$AC,Sheet1!S71_A5CapexCode,$AD:$AD)","v":0},{"$f":"SUMIFS(Sheet1!S71_OY1BudgetAmount,Sheet1!S71_SubMunicipalVoteNo,$AC:$AC,Sheet1!S71_A5CapexCode,$AD:$AD)","v":0},{"$f":"SUMIFS(Sheet1!S71_OY2BudgetAmount,Sheet1!S71_SubMunicipalVoteNo,$AC:$AC,Sheet1!S71_A5CapexCode,$AD:$AD)","v":0},null,null,null,null,null,null,null,null,null,null,null,null,null,null,null,null,26,"CE"]
["2.7 - [Name of sub-vote]",null,{"$f":"SUMIFS(Sheet1!S71_PPPYearAmount,Sheet1!S71_SubMunicipalVoteNo,$AC:$AC,Sheet1!S71_A5CapexCode,$AD:$AD)","v":0},{"$f":"SUMIFS(Sheet1!S71_PPYearAmount,Sheet1!S71_SubMunicipalVoteNo,$AC:$AC,Sheet1!S71_A5CapexCode,$AD:$AD)","v":0},{"$f":"SUMIFS(Sheet1!S71_PYearAmount,Sheet1!S71_SubMunicipalVoteNo,$AC:$AC,Sheet1!S71_A5CapexCode,$AD:$AD)","v":0},{"$f":"SUMIFS(Sheet1!S71_OriginalBudAmnt,Sheet1!S71_SubMunicipalVoteNo,$AC:$AC,Sheet1!S71_A5CapexCode,$AD:$AD)","v":0},{"$f":"SUMIFS(Sheet1!S71_AdjustmentBudAmnt,Sheet1!S71_SubMunicipalVoteNo,$AC:$AC,Sheet1!S71_A5CapexCode,$AD:$AD)","v":0},{"$f":"SUMIFS(Sheet1!S71_AdjustmentBudAmnt,Sheet1!S71_SubMunicipalVoteNo,$AC:$AC,Sheet1!S71_A5CapexCode,$AD:$AD)","v":0},0,{"$f":"SUMIFS(Sheet1!S71_ASBudgetAmount,Sheet1!S71_SubMunicipalVoteNo,$AC:$AC,Sheet1!S71_A5CapexCode,$AD:$AD)","v":0},{"$f":"SUMIFS(Sheet1!S71_OY1BudgetAmount,Sheet1!S71_SubMunicipalVoteNo,$AC:$AC,Sheet1!S71_A5CapexCode,$AD:$AD)","v":0},{"$f":"SUMIFS(Sheet1!S71_OY2BudgetAmount,Sheet1!S71_SubMunicipalVoteNo,$AC:$AC,Sheet1!S71_A5CapexCode,$AD:$AD)","v":0},null,null,null,null,null,null,null,null,null,null,null,null,null,null,null,null,27,"CE"]
["2.8 - [Name of sub-vote]",null,{"$f":"SUMIFS(Sheet1!S71_PPPYearAmount,Sheet1!S71_SubMunicipalVoteNo,$AC:$AC,Sheet1!S71_A5CapexCode,$AD:$AD)","v":0},{"$f":"SUMIFS(Sheet1!S71_PPYearAmount,Sheet1!S71_SubMunicipalVoteNo,$AC:$AC,Sheet1!S71_A5CapexCode,$AD:$AD)","v":0},{"$f":"SUMIFS(Sheet1!S71_PYearAmount,Sheet1!S71_SubMunicipalVoteNo,$AC:$AC,Sheet1!S71_A5CapexCode,$AD:$AD)","v":0},{"$f":"SUMIFS(Sheet1!S71_OriginalBudAmnt,Sheet1!S71_SubMunicipalVoteNo,$AC:$AC,Sheet1!S71_A5CapexCode,$AD:$AD)","v":0},{"$f":"SUMIFS(Sheet1!S71_AdjustmentBudAmnt,Sheet1!S71_SubMunicipalVoteNo,$AC:$AC,Sheet1!S71_A5CapexCode,$AD:$AD)","v":0},{"$f":"SUMIFS(Sheet1!S71_AdjustmentBudAmnt,Sheet1!S71_SubMunicipalVoteNo,$AC:$AC,Sheet1!S71_A5CapexCode,$AD:$AD)","v":0},0,{"$f":"SUMIFS(Sheet1!S71_ASBudgetAmount,Sheet1!S71_SubMunicipalVoteNo,$AC:$AC,Sheet1!S71_A5CapexCode,$AD:$AD)","v":0},{"$f":"SUMIFS(Sheet1!S71_OY1BudgetAmount,Sheet1!S71_SubMunicipalVoteNo,$AC:$AC,Sheet1!S71_A5CapexCode,$AD:$AD)","v":0},{"$f":"SUMIFS(Sheet1!S71_OY2BudgetAmount,Sheet1!S71_SubMunicipalVoteNo,$AC:$AC,Sheet1!S71_A5CapexCode,$AD:$AD)","v":0},null,null,null,null,null,null,null,null,null,null,null,null,null,null,null,null,28,"CE"]
["2.9 - [Name of sub-vote]",null,{"$f":"SUMIFS(Sheet1!S71_PPPYearAmount,Sheet1!S71_SubMunicipalVoteNo,$AC:$AC,Sheet1!S71_A5CapexCode,$AD:$AD)","v":0},{"$f":"SUMIFS(Sheet1!S71_PPYearAmount,Sheet1!S71_SubMunicipalVoteNo,$AC:$AC,Sheet1!S71_A5CapexCode,$AD:$AD)","v":0},{"$f":"SUMIFS(Sheet1!S71_PYearAmount,Sheet1!S71_SubMunicipalVoteNo,$AC:$AC,Sheet1!S71_A5CapexCode,$AD:$AD)","v":0},{"$f":"SUMIFS(Sheet1!S71_OriginalBudAmnt,Sheet1!S71_SubMunicipalVoteNo,$AC:$AC,Sheet1!S71_A5CapexCode,$AD:$AD)","v":0},{"$f":"SUMIFS(Sheet1!S71_AdjustmentBudAmnt,Sheet1!S71_SubMunicipalVoteNo,$AC:$AC,Sheet1!S71_A5CapexCode,$AD:$AD)","v":0},{"$f":"SUMIFS(Sheet1!S71_AdjustmentBudAmnt,Sheet1!S71_SubMunicipalVoteNo,$AC:$AC,Sheet1!S71_A5CapexCode,$AD:$AD)","v":0},0,{"$f":"SUMIFS(Sheet1!S71_ASBudgetAmount,Sheet1!S71_SubMunicipalVoteNo,$AC:$AC,Sheet1!S71_A5CapexCode,$AD:$AD)","v":0},{"$f":"SUMIFS(Sheet1!S71_OY1BudgetAmount,Sheet1!S71_SubMunicipalVoteNo,$AC:$AC,Sheet1!S71_A5CapexCode,$AD:$AD)","v":0},{"$f":"SUMIFS(Sheet1!S71_OY2BudgetAmount,Sheet1!S71_SubMunicipalVoteNo,$AC:$AC,Sheet1!S71_A5CapexCode,$AD:$AD)","v":0},null,null,null,null,null,null,null,null,null,null,null,null,null,null,null,null,29,"CE"]
["2.10 - [Name of sub-vote]",null,{"$f":"SUMIFS(Sheet1!S71_PPPYearAmount,Sheet1!S71_SubMunicipalVoteNo,$AC:$AC,Sheet1!S71_A5CapexCode,$AD:$AD)","v":0},{"$f":"SUMIFS(Sheet1!S71_PPYearAmount,Sheet1!S71_SubMunicipalVoteNo,$AC:$AC,Sheet1!S71_A5CapexCode,$AD:$AD)","v":0},{"$f":"SUMIFS(Sheet1!S71_PYearAmount,Sheet1!S71_SubMunicipalVoteNo,$AC:$AC,Sheet1!S71_A5CapexCode,$AD:$AD)","v":0},{"$f":"SUMIFS(Sheet1!S71_OriginalBudAmnt,Sheet1!S71_SubMunicipalVoteNo,$AC:$AC,Sheet1!S71_A5CapexCode,$AD:$AD)","v":0},{"$f":"SUMIFS(Sheet1!S71_AdjustmentBudAmnt,Sheet1!S71_SubMunicipalVoteNo,$AC:$AC,Sheet1!S71_A5CapexCode,$AD:$AD)","v":0},{"$f":"SUMIFS(Sheet1!S71_AdjustmentBudAmnt,Sheet1!S71_SubMunicipalVoteNo,$AC:$AC,Sheet1!S71_A5CapexCode,$AD:$AD)","v":0},0,{"$f":"SUMIFS(Sheet1!S71_ASBudgetAmount,Sheet1!S71_SubMunicipalVoteNo,$AC:$AC,Sheet1!S71_A5CapexCode,$AD:$AD)","v":0},{"$f":"SUMIFS(Sheet1!S71_OY1BudgetAmount,Sheet1!S71_SubMunicipalVoteNo,$AC:$AC,Sheet1!S71_A5CapexCode,$AD:$AD)","v":0},{"$f":"SUMIFS(Sheet1!S71_OY2BudgetAmount,Sheet1!S71_SubMunicipalVoteNo,$AC:$AC,Sheet1!S71_A5CapexCode,$AD:$AD)","v":0},null,null,null,null,null,null,null,null,null,null,null,null,null,null,null,null,210,"CE"]
["Vote 3 - Finance & Administration",null,{"$f":"SUM(C198:C207)","v":7441106},8769754,9666688,10100000,14100000,14100000,14100000,15275000,14820000,15030000]
["3.1 - Fleet Management",null,{"$f":"SUMIFS(Sheet1!S71_PPPYearAmount,Sheet1!S71_SubMunicipalVoteNo,$AC:$AC,Sheet1!S71_A5CapexCode,$AD:$AD)","v":0},{"$f":"SUMIFS(Sheet1!S71_PPYearAmount,Sheet1!S71_SubMunicipalVoteNo,$AC:$AC,Sheet1!S71_A5CapexCode,$AD:$AD)","v":0},{"$f":"SUMIFS(Sheet1!S71_PYearAmount,Sheet1!S71_SubMunicipalVoteNo,$AC:$AC,Sheet1!S71_A5CapexCode,$AD:$AD)","v":0},{"$f":"SUMIFS(Sheet1!S71_OriginalBudAmnt,Sheet1!S71_SubMunicipalVoteNo,$AC:$AC,Sheet1!S71_A5CapexCode,$AD:$AD)","v":10000000},{"$f":"SUMIFS(Sheet1!S71_AdjustmentBudAmnt,Sheet1!S71_SubMunicipalVoteNo,$AC:$AC,Sheet1!S71_A5CapexCode,$AD:$AD)","v":14000000},{"$f":"SUMIFS(Sheet1!S71_AdjustmentBudAmnt,Sheet1!S71_SubMunicipalVoteNo,$AC:$AC,Sheet1!S71_A5CapexCode,$AD:$AD)","v":14000000},{"$f":"H198","v":14000000},{"$f":"SUMIFS(Sheet1!S71_ASBudgetAmount,Sheet1!S71_SubMunicipalVoteNo,$AC:$AC,Sheet1!S71_A5CapexCode,$AD:$AD)","v":14000000},{"$f":"SUMIFS(Sheet1!S71_OY1BudgetAmount,Sheet1!S71_SubMunicipalVoteNo,$AC:$AC,Sheet1!S71_A5CapexCode,$AD:$AD)","v":14200000},{"$f":"SUMIFS(Sheet1!S71_OY2BudgetAmount,Sheet1!S71_SubMunicipalVoteNo,$AC:$AC,Sheet1!S71_A5CapexCode,$AD:$AD)","v":14400000},null,null,null,null,null,null,null,null,null,null,null,null,null,null,null,null,31,"CE"]
["3.2 - Finance",null,{"$f":"SUMIFS(Sheet1!S71_PPPYearAmount,Sheet1!S71_SubMunicipalVoteNo,$AC:$AC,Sheet1!S71_A5CapexCode,$AD:$AD)","v":0},{"$f":"SUMIFS(Sheet1!S71_PPYearAmount,Sheet1!S71_SubMunicipalVoteNo,$AC:$AC,Sheet1!S71_A5CapexCode,$AD:$AD)","v":0},{"$f":"SUMIFS(Sheet1!S71_PYearAmount,Sheet1!S71_SubMunicipalVoteNo,$AC:$AC,Sheet1!S71_A5CapexCode,$AD:$AD)","v":0},{"$f":"SUMIFS(Sheet1!S71_OriginalBudAmnt,Sheet1!S71_SubMunicipalVoteNo,$AC:$AC,Sheet1!S71_A5CapexCode,$AD:$AD)","v":0},{"$f":"SUMIFS(Sheet1!S71_AdjustmentBudAmnt,Sheet1!S71_SubMunicipalVoteNo,$AC:$AC,Sheet1!S71_A5CapexCode,$AD:$AD)","v":0},{"$f":"SUMIFS(Sheet1!S71_AdjustmentBudAmnt,Sheet1!S71_SubMunicipalVoteNo,$AC:$AC,Sheet1!S71_A5CapexCode,$AD:$AD)","v":0},0,{"$f":"SUMIFS(Sheet1!S71_ASBudgetAmount,Sheet1!S71_SubMunicipalVoteNo,$AC:$AC,Sheet1!S71_A5CapexCode,$AD:$AD)","v":665000},{"$f":"SUMIFS(Sheet1!S71_OY1BudgetAmount,Sheet1!S71_SubMunicipalVoteNo,$AC:$AC,Sheet1!S71_A5CapexCode,$AD:$AD)","v":0},{"$f":"SUMIFS(Sheet1!S71_OY2BudgetAmount,Sheet1!S71_SubMunicipalVoteNo,$AC:$AC,Sheet1!S71_A5CapexCode,$AD:$AD)","v":0},null,null,null,null,null,null,null,null,null,null,null,null,null,null,null,null,32,"CE"]
["3.3 - Asset Management",null,{"$f":"SUMIFS(Sheet1!S71_PPPYearAmount,Sheet1!S71_SubMunicipalVoteNo,$AC:$AC,Sheet1!S71_A5CapexCode,$AD:$AD)","v":7441106},{"$f":"SUMIFS(Sheet1!S71_PPYearAmount,Sheet1!S71_SubMunicipalVoteNo,$AC:$AC,Sheet1!S71_A5CapexCode,$AD:$AD)","v":8769754},{"$f":"SUMIFS(Sheet1!S71_PYearAmount,Sheet1!S71_SubMunicipalVoteNo,$AC:$AC,Sheet1!S71_A5CapexCode,$AD:$AD)","v":9666688},{"$f":"SUMIFS(Sheet1!S71_OriginalBudAmnt,Sheet1!S71_SubMunicipalVoteNo,$AC:$AC,Sheet1!S71_A5CapexCode,$AD:$AD)","v":0},{"$f":"SUMIFS(Sheet1!S71_AdjustmentBudAmnt,Sheet1!S71_SubMunicipalVoteNo,$AC:$AC,Sheet1!S71_A5CapexCode,$AD:$AD)","v":0},{"$f":"SUMIFS(Sheet1!S71_AdjustmentBudAmnt,Sheet1!S71_SubMunicipalVoteNo,$AC:$AC,Sheet1!S71_A5CapexCode,$AD:$AD)","v":0},0,{"$f":"SUMIFS(Sheet1!S71_ASBudgetAmount,Sheet1!S71_SubMunicipalVoteNo,$AC:$AC,Sheet1!S71_A5CapexCode,$AD:$AD)","v":0},{"$f":"SUMIFS(Sheet1!S71_OY1BudgetAmount,Sheet1!S71_SubMunicipalVoteNo,$AC:$AC,Sheet1!S71_A5CapexCode,$AD:$AD)","v":0},{"$f":"SUMIFS(Sheet1!S71_OY2BudgetAmount,Sheet1!S71_SubMunicipalVoteNo,$AC:$AC,Sheet1!S71_A5CapexCode,$AD:$AD)","v":0},null,null,null,null,null,null,null,null,null,null,null,null,null,null,null,null,33,"CE"]
["3.4 - Human Resources",null,{"$f":"SUMIFS(Sheet1!S71_PPPYearAmount,Sheet1!S71_SubMunicipalVoteNo,$AC:$AC,Sheet1!S71_A5CapexCode,$AD:$AD)","v":0},{"$f":"SUMIFS(Sheet1!S71_PPYearAmount,Sheet1!S71_SubMunicipalVoteNo,$AC:$AC,Sheet1!S71_A5CapexCode,$AD:$AD)","v":0},{"$f":"SUMIFS(Sheet1!S71_PYearAmount,Sheet1!S71_SubMunicipalVoteNo,$AC:$AC,Sheet1!S71_A5CapexCode,$AD:$AD)","v":0},{"$f":"SUMIFS(Sheet1!S71_OriginalBudAmnt,Sheet1!S71_SubMunicipalVoteNo,$AC:$AC,Sheet1!S71_A5CapexCode,$AD:$AD)","v":0},{"$f":"SUMIFS(Sheet1!S71_AdjustmentBudAmnt,Sheet1!S71_SubMunicipalVoteNo,$AC:$AC,Sheet1!S71_A5CapexCode,$AD:$AD)","v":0},{"$f":"SUMIFS(Sheet1!S71_AdjustmentBudAmnt,Sheet1!S71_SubMunicipalVoteNo,$AC:$AC,Sheet1!S71_A5CapexCode,$AD:$AD)","v":0},0,{"$f":"SUMIFS(Sheet1!S71_ASBudgetAmount,Sheet1!S71_SubMunicipalVoteNo,$AC:$AC,Sheet1!S71_A5CapexCode,$AD:$AD)","v":0},{"$f":"SUMIFS(Sheet1!S71_OY1BudgetAmount,Sheet1!S71_SubMunicipalVoteNo,$AC:$AC,Sheet1!S71_A5CapexCode,$AD:$AD)","v":0},{"$f":"SUMIFS(Sheet1!S71_OY2BudgetAmount,Sheet1!S71_SubMunicipalVoteNo,$AC:$AC,Sheet1!S71_A5CapexCode,$AD:$AD)","v":0},null,null,null,null,null,null,null,null,null,null,null,null,null,null,null,null,34,"CE"]
["3.5 - Legal Services",null,{"$f":"SUMIFS(Sheet1!S71_PPPYearAmount,Sheet1!S71_SubMunicipalVoteNo,$AC:$AC,Sheet1!S71_A5CapexCode,$AD:$AD)","v":0},{"$f":"SUMIFS(Sheet1!S71_PPYearAmount,Sheet1!S71_SubMunicipalVoteNo,$AC:$AC,Sheet1!S71_A5CapexCode,$AD:$AD)","v":0},{"$f":"SUMIFS(Sheet1!S71_PYearAmount,Sheet1!S71_SubMunicipalVoteNo,$AC:$AC,Sheet1!S71_A5CapexCode,$AD:$AD)","v":0},{"$f":"SUMIFS(Sheet1!S71_OriginalBudAmnt,Sheet1!S71_SubMunicipalVoteNo,$AC:$AC,Sheet1!S71_A5CapexCode,$AD:$AD)","v":100000},{"$f":"SUMIFS(Sheet1!S71_AdjustmentBudAmnt,Sheet1!S71_SubMunicipalVoteNo,$AC:$AC,Sheet1!S71_A5CapexCode,$AD:$AD)","v":100000},{"$f":"SUMIFS(Sheet1!S71_AdjustmentBudAmnt,Sheet1!S71_SubMunicipalVoteNo,$AC:$AC,Sheet1!S71_A5CapexCode,$AD:$AD)","v":100000},100000,{"$f":"SUMIFS(Sheet1!S71_ASBudgetAmount,Sheet1!S71_SubMunicipalVoteNo,$AC:$AC,Sheet1!S71_A5CapexCode,$AD:$AD)","v":110000},{"$f":"SUMIFS(Sheet1!S71_OY1BudgetAmount,Sheet1!S71_SubMunicipalVoteNo,$AC:$AC,Sheet1!S71_A5CapexCode,$AD:$AD)","v":120000},{"$f":"SUMIFS(Sheet1!S71_OY2BudgetAmount,Sheet1!S71_SubMunicipalVoteNo,$AC:$AC,Sheet1!S71_A5CapexCode,$AD:$AD)","v":130000},null,null,null,null,null,null,null,null,null,null,null,null,null,null,null,null,35,"CE"]
["3.6 - Property Services",null,{"$f":"SUMIFS(Sheet1!S71_PPPYearAmount,Sheet1!S71_SubMunicipalVoteNo,$AC:$AC,Sheet1!S71_A5CapexCode,$AD:$AD)","v":0},{"$f":"SUMIFS(Sheet1!S71_PPYearAmount,Sheet1!S71_SubMunicipalVoteNo,$AC:$AC,Sheet1!S71_A5CapexCode,$AD:$AD)","v":0},{"$f":"SUMIFS(Sheet1!S71_PYearAmount,Sheet1!S71_SubMunicipalVoteNo,$AC:$AC,Sheet1!S71_A5CapexCode,$AD:$AD)","v":0},{"$f":"SUMIFS(Sheet1!S71_OriginalBudAmnt,Sheet1!S71_SubMunicipalVoteNo,$AC:$AC,Sheet1!S71_A5CapexCode,$AD:$AD)","v":0},{"$f":"SUMIFS(Sheet1!S71_AdjustmentBudAmnt,Sheet1!S71_SubMunicipalVoteNo,$AC:$AC,Sheet1!S71_A5CapexCode,$AD:$AD)","v":0},{"$f":"SUMIFS(Sheet1!S71_AdjustmentBudAmnt,Sheet1!S71_SubMunicipalVoteNo,$AC:$AC,Sheet1!S71_A5CapexCode,$AD:$AD)","v":0},0,{"$f":"SUMIFS(Sheet1!S71_ASBudgetAmount,Sheet1!S71_SubMunicipalVoteNo,$AC:$AC,Sheet1!S71_A5CapexCode,$AD:$AD)","v":0},{"$f":"SUMIFS(Sheet1!S71_OY1BudgetAmount,Sheet1!S71_SubMunicipalVoteNo,$AC:$AC,Sheet1!S71_A5CapexCode,$AD:$AD)","v":0},{"$f":"SUMIFS(Sheet1!S71_OY2BudgetAmount,Sheet1!S71_SubMunicipalVoteNo,$AC:$AC,Sheet1!S71_A5CapexCode,$AD:$AD)","v":0},null,null,null,null,null,null,null,null,null,null,null,null,null,null,null,null,36,"CE"]
["3.7 - Risk Management",null,{"$f":"SUMIFS(Sheet1!S71_PPPYearAmount,Sheet1!S71_SubMunicipalVoteNo,$AC:$AC,Sheet1!S71_A5CapexCode,$AD:$AD)","v":0},{"$f":"SUMIFS(Sheet1!S71_PPYearAmount,Sheet1!S71_SubMunicipalVoteNo,$AC:$AC,Sheet1!S71_A5CapexCode,$AD:$AD)","v":0},{"$f":"SUMIFS(Sheet1!S71_PYearAmount,Sheet1!S71_SubMunicipalVoteNo,$AC:$AC,Sheet1!S71_A5CapexCode,$AD:$AD)","v":0},{"$f":"SUMIFS(Sheet1!S71_OriginalBudAmnt,Sheet1!S71_SubMunicipalVoteNo,$AC:$AC,Sheet1!S71_A5CapexCode,$AD:$AD)","v":0},{"$f":"SUMIFS(Sheet1!S71_AdjustmentBudAmnt,Sheet1!S71_SubMunicipalVoteNo,$AC:$AC,Sheet1!S71_A5CapexCode,$AD:$AD)","v":0},{"$f":"SUMIFS(Sheet1!S71_AdjustmentBudAmnt,Sheet1!S71_SubMunicipalVoteNo,$AC:$AC,Sheet1!S71_A5CapexCode,$AD:$AD)","v":0},0,{"$f":"SUMIFS(Sheet1!S71_ASBudgetAmount,Sheet1!S71_SubMunicipalVoteNo,$AC:$AC,Sheet1!S71_A5CapexCode,$AD:$AD)","v":500000},{"$f":"SUMIFS(Sheet1!S71_OY1BudgetAmount,Sheet1!S71_SubMunicipalVoteNo,$AC:$AC,Sheet1!S71_A5CapexCode,$AD:$AD)","v":500000},{"$f":"SUMIFS(Sheet1!S71_OY2BudgetAmount,Sheet1!S71_SubMunicipalVoteNo,$AC:$AC,Sheet1!S71_A5CapexCode,$AD:$AD)","v":500000},null,null,null,null,null,null,null,null,null,null,null,null,null,null,null,null,37,"CE"]
["3.8 - Supply Chain Management",null,{"$f":"SUMIFS(Sheet1!S71_PPPYearAmount,Sheet1!S71_SubMunicipalVoteNo,$AC:$AC,Sheet1!S71_A5CapexCode,$AD:$AD)","v":0},{"$f":"SUMIFS(Sheet1!S71_PPYearAmount,Sheet1!S71_SubMunicipalVoteNo,$AC:$AC,Sheet1!S71_A5CapexCode,$AD:$AD)","v":0},{"$f":"SUMIFS(Sheet1!S71_PYearAmount,Sheet1!S71_SubMunicipalVoteNo,$AC:$AC,Sheet1!S71_A5CapexCode,$AD:$AD)","v":0},{"$f":"SUMIFS(Sheet1!S71_OriginalBudAmnt,Sheet1!S71_SubMunicipalVoteNo,$AC:$AC,Sheet1!S71_A5CapexCode,$AD:$AD)","v":0},{"$f":"SUMIFS(Sheet1!S71_AdjustmentBudAmnt,Sheet1!S71_SubMunicipalVoteNo,$AC:$AC,Sheet1!S71_A5CapexCode,$AD:$AD)","v":0},{"$f":"SUMIFS(Sheet1!S71_AdjustmentBudAmnt,Sheet1!S71_SubMunicipalVoteNo,$AC:$AC,Sheet1!S71_A5CapexCode,$AD:$AD)","v":0},0,{"$f":"SUMIFS(Sheet1!S71_ASBudgetAmount,Sheet1!S71_SubMunicipalVoteNo,$AC:$AC,Sheet1!S71_A5CapexCode,$AD:$AD)","v":0},{"$f":"SUMIFS(Sheet1!S71_OY1BudgetAmount,Sheet1!S71_SubMunicipalVoteNo,$AC:$AC,Sheet1!S71_A5CapexCode,$AD:$AD)","v":0},{"$f":"SUMIFS(Sheet1!S71_OY2BudgetAmount,Sheet1!S71_SubMunicipalVoteNo,$AC:$AC,Sheet1!S71_A5CapexCode,$AD:$AD)","v":0},null,null,null,null,null,null,null,null,null,null,null,null,null,null,null,null,38,"CE"]
["3.9 - [Name of sub-vote]",null,{"$f":"SUMIFS(Sheet1!S71_PPPYearAmount,Sheet1!S71_SubMunicipalVoteNo,$AC:$AC,Sheet1!S71_A5CapexCode,$AD:$AD)","v":0},{"$f":"SUMIFS(Sheet1!S71_PPYearAmount,Sheet1!S71_SubMunicipalVoteNo,$AC:$AC,Sheet1!S71_A5CapexCode,$AD:$AD)","v":0},{"$f":"SUMIFS(Sheet1!S71_PYearAmount,Sheet1!S71_SubMunicipalVoteNo,$AC:$AC,Sheet1!S71_A5CapexCode,$AD:$AD)","v":0},{"$f":"SUMIFS(Sheet1!S71_OriginalBudAmnt,Sheet1!S71_SubMunicipalVoteNo,$AC:$AC,Sheet1!S71_A5CapexCode,$AD:$AD)","v":0},{"$f":"SUMIFS(Sheet1!S71_AdjustmentBudAmnt,Sheet1!S71_SubMunicipalVoteNo,$AC:$AC,Sheet1!S71_A5CapexCode,$AD:$AD)","v":0},{"$f":"SUMIFS(Sheet1!S71_AdjustmentBudAmnt,Sheet1!S71_SubMunicipalVoteNo,$AC:$AC,Sheet1!S71_A5CapexCode,$AD:$AD)","v":0},0,{"$f":"SUMIFS(Sheet1!S71_ASBudgetAmount,Sheet1!S71_SubMunicipalVoteNo,$AC:$AC,Sheet1!S71_A5CapexCode,$AD:$AD)","v":0},{"$f":"SUMIFS(Sheet1!S71_OY1BudgetAmount,Sheet1!S71_SubMunicipalVoteNo,$AC:$AC,Sheet1!S71_A5CapexCode,$AD:$AD)","v":0},{"$f":"SUMIFS(Sheet1!S71_OY2BudgetAmount,Sheet1!S71_SubMunicipalVoteNo,$AC:$AC,Sheet1!S71_A5CapexCode,$AD:$AD)","v":0},null,null,null,null,null,null,null,null,null,null,null,null,null,null,null,null,39,"CE"]
["3.10 - [Name of sub-vote]",null,{"$f":"SUMIFS(Sheet1!S71_PPPYearAmount,Sheet1!S71_SubMunicipalVoteNo,$AC:$AC,Sheet1!S71_A5CapexCode,$AD:$AD)","v":0},{"$f":"SUMIFS(Sheet1!S71_PPYearAmount,Sheet1!S71_SubMunicipalVoteNo,$AC:$AC,Sheet1!S71_A5CapexCode,$AD:$AD)","v":0},{"$f":"SUMIFS(Sheet1!S71_PYearAmount,Sheet1!S71_SubMunicipalVoteNo,$AC:$AC,Sheet1!S71_A5CapexCode,$AD:$AD)","v":0},{"$f":"SUMIFS(Sheet1!S71_OriginalBudAmnt,Sheet1!S71_SubMunicipalVoteNo,$AC:$AC,Sheet1!S71_A5CapexCode,$AD:$AD)","v":0},{"$f":"SUMIFS(Sheet1!S71_AdjustmentBudAmnt,Sheet1!S71_SubMunicipalVoteNo,$AC:$AC,Sheet1!S71_A5CapexCode,$AD:$AD)","v":0},{"$f":"SUMIFS(Sheet1!S71_AdjustmentBudAmnt,Sheet1!S71_SubMunicipalVoteNo,$AC:$AC,Sheet1!S71_A5CapexCode,$AD:$AD)","v":0},0,{"$f":"SUMIFS(Sheet1!S71_ASBudgetAmount,Sheet1!S71_SubMunicipalVoteNo,$AC:$AC,Sheet1!S71_A5CapexCode,$AD:$AD)","v":0},{"$f":"SUMIFS(Sheet1!S71_OY1BudgetAmount,Sheet1!S71_SubMunicipalVoteNo,$AC:$AC,Sheet1!S71_A5CapexCode,$AD:$AD)","v":0},{"$f":"SUMIFS(Sheet1!S71_OY2BudgetAmount,Sheet1!S71_SubMunicipalVoteNo,$AC:$AC,Sheet1!S71_A5CapexCode,$AD:$AD)","v":0},null,null,null,null,null,null,null,null,null,null,null,null,null,null,null,null,310,"CE"]
["Vote 4 - Planning and Development",null,{"$f":"SUM(C209:C218)","v":0},0,1757505,1500000,0,0,0,1000000,0,0]
["4.1 - Town Planning, Building Regulations and Enforcement, and City Engineer",null,{"$f":"SUMIFS(Sheet1!S71_PPPYearAmount,Sheet1!S71_SubMunicipalVoteNo,$AC:$AC,Sheet1!S71_A5CapexCode,$AD:$AD)","v":0},{"$f":"SUMIFS(Sheet1!S71_PPYearAmount,Sheet1!S71_SubMunicipalVoteNo,$AC:$AC,Sheet1!S71_A5CapexCode,$AD:$AD)","v":0},{"$f":"SUMIFS(Sheet1!S71_PYearAmount,Sheet1!S71_SubMunicipalVoteNo,$AC:$AC,Sheet1!S71_A5CapexCode,$AD:$AD)","v":1757505},{"$f":"SUMIFS(Sheet1!S71_OriginalBudAmnt,Sheet1!S71_SubMunicipalVoteNo,$AC:$AC,Sheet1!S71_A5CapexCode,$AD:$AD)","v":1500000},{"$f":"SUMIFS(Sheet1!S71_AdjustmentBudAmnt,Sheet1!S71_SubMunicipalVoteNo,$AC:$AC,Sheet1!S71_A5CapexCode,$AD:$AD)","v":0},{"$f":"SUMIFS(Sheet1!S71_AdjustmentBudAmnt,Sheet1!S71_SubMunicipalVoteNo,$AC:$AC,Sheet1!S71_A5CapexCode,$AD:$AD)","v":0},{"$f":"H209","v":0},{"$f":"SUMIFS(Sheet1!S71_ASBudgetAmount,Sheet1!S71_SubMunicipalVoteNo,$AC:$AC,Sheet1!S71_A5CapexCode,$AD:$AD)","v":1000000},{"$f":"SUMIFS(Sheet1!S71_OY1BudgetAmount,Sheet1!S71_SubMunicipalVoteNo,$AC:$AC,Sheet1!S71_A5CapexCode,$AD:$AD)","v":0},{"$f":"SUMIFS(Sheet1!S71_OY2BudgetAmount,Sheet1!S71_SubMunicipalVoteNo,$AC:$AC,Sheet1!S71_A5CapexCode,$AD:$AD)","v":0},null,null,null,null,null,null,null,null,null,null,null,null,null,null,null,null,41,"CE"]
["4.2 - Corporate Wide Strategic Planning (IDPs, LEDs)",null,{"$f":"SUMIFS(Sheet1!S71_PPPYearAmount,Sheet1!S71_SubMunicipalVoteNo,$AC:$AC,Sheet1!S71_A5CapexCode,$AD:$AD)","v":0},{"$f":"SUMIFS(Sheet1!S71_PPYearAmount,Sheet1!S71_SubMunicipalVoteNo,$AC:$AC,Sheet1!S71_A5CapexCode,$AD:$AD)","v":0},{"$f":"SUMIFS(Sheet1!S71_PYearAmount,Sheet1!S71_SubMunicipalVoteNo,$AC:$AC,Sheet1!S71_A5CapexCode,$AD:$AD)","v":0},{"$f":"SUMIFS(Sheet1!S71_OriginalBudAmnt,Sheet1!S71_SubMunicipalVoteNo,$AC:$AC,Sheet1!S71_A5CapexCode,$AD:$AD)","v":0},{"$f":"SUMIFS(Sheet1!S71_AdjustmentBudAmnt,Sheet1!S71_SubMunicipalVoteNo,$AC:$AC,Sheet1!S71_A5CapexCode,$AD:$AD)","v":0},{"$f":"SUMIFS(Sheet1!S71_AdjustmentBudAmnt,Sheet1!S71_SubMunicipalVoteNo,$AC:$AC,Sheet1!S71_A5CapexCode,$AD:$AD)","v":0},0,{"$f":"SUMIFS(Sheet1!S71_ASBudgetAmount,Sheet1!S71_SubMunicipalVoteNo,$AC:$AC,Sheet1!S71_A5CapexCode,$AD:$AD)","v":0},{"$f":"SUMIFS(Sheet1!S71_OY1BudgetAmount,Sheet1!S71_SubMunicipalVoteNo,$AC:$AC,Sheet1!S71_A5CapexCode,$AD:$AD)","v":0},{"$f":"SUMIFS(Sheet1!S71_OY2BudgetAmount,Sheet1!S71_SubMunicipalVoteNo,$AC:$AC,Sheet1!S71_A5CapexCode,$AD:$AD)","v":0},null,null,null,null,null,null,null,null,null,null,null,null,null,null,null,null,42,"CE"]
["4.3 - Economic Development/Planning",null,{"$f":"SUMIFS(Sheet1!S71_PPPYearAmount,Sheet1!S71_SubMunicipalVoteNo,$AC:$AC,Sheet1!S71_A5CapexCode,$AD:$AD)","v":0},{"$f":"SUMIFS(Sheet1!S71_PPYearAmount,Sheet1!S71_SubMunicipalVoteNo,$AC:$AC,Sheet1!S71_A5CapexCode,$AD:$AD)","v":0},{"$f":"SUMIFS(Sheet1!S71_PYearAmount,Sheet1!S71_SubMunicipalVoteNo,$AC:$AC,Sheet1!S71_A5CapexCode,$AD:$AD)","v":0},{"$f":"SUMIFS(Sheet1!S71_OriginalBudAmnt,Sheet1!S71_SubMunicipalVoteNo,$AC:$AC,Sheet1!S71_A5CapexCode,$AD:$AD)","v":0},{"$f":"SUMIFS(Sheet1!S71_AdjustmentBudAmnt,Sheet1!S71_SubMunicipalVoteNo,$AC:$AC,Sheet1!S71_A5CapexCode,$AD:$AD)","v":0},{"$f":"SUMIFS(Sheet1!S71_AdjustmentBudAmnt,Sheet1!S71_SubMunicipalVoteNo,$AC:$AC,Sheet1!S71_A5CapexCode,$AD:$AD)","v":0},0,{"$f":"SUMIFS(Sheet1!S71_ASBudgetAmount,Sheet1!S71_SubMunicipalVoteNo,$AC:$AC,Sheet1!S71_A5CapexCode,$AD:$AD)","v":0},{"$f":"SUMIFS(Sheet1!S71_OY1BudgetAmount,Sheet1!S71_SubMunicipalVoteNo,$AC:$AC,Sheet1!S71_A5CapexCode,$AD:$AD)","v":0},{"$f":"SUMIFS(Sheet1!S71_OY2BudgetAmount,Sheet1!S71_SubMunicipalVoteNo,$AC:$AC,Sheet1!S71_A5CapexCode,$AD:$AD)","v":0},null,null,null,null,null,null,null,null,null,null,null,null,null,null,null,null,43,"CE"]
["4.4 - Project Management Unit",null,{"$f":"SUMIFS(Sheet1!S71_PPPYearAmount,Sheet1!S71_SubMunicipalVoteNo,$AC:$AC,Sheet1!S71_A5CapexCode,$AD:$AD)","v":0},{"$f":"SUMIFS(Sheet1!S71_PPYearAmount,Sheet1!S71_SubMunicipalVoteNo,$AC:$AC,Sheet1!S71_A5CapexCode,$AD:$AD)","v":0},{"$f":"SUMIFS(Sheet1!S71_PYearAmount,Sheet1!S71_SubMunicipalVoteNo,$AC:$AC,Sheet1!S71_A5CapexCode,$AD:$AD)","v":0},{"$f":"SUMIFS(Sheet1!S71_OriginalBudAmnt,Sheet1!S71_SubMunicipalVoteNo,$AC:$AC,Sheet1!S71_A5CapexCode,$AD:$AD)","v":0},{"$f":"SUMIFS(Sheet1!S71_AdjustmentBudAmnt,Sheet1!S71_SubMunicipalVoteNo,$AC:$AC,Sheet1!S71_A5CapexCode,$AD:$AD)","v":0},{"$f":"SUMIFS(Sheet1!S71_AdjustmentBudAmnt,Sheet1!S71_SubMunicipalVoteNo,$AC:$AC,Sheet1!S71_A5CapexCode,$AD:$AD)","v":0},0,{"$f":"SUMIFS(Sheet1!S71_ASBudgetAmount,Sheet1!S71_SubMunicipalVoteNo,$AC:$AC,Sheet1!S71_A5CapexCode,$AD:$AD)","v":0},{"$f":"SUMIFS(Sheet1!S71_OY1BudgetAmount,Sheet1!S71_SubMunicipalVoteNo,$AC:$AC,Sheet1!S71_A5CapexCode,$AD:$AD)","v":0},{"$f":"SUMIFS(Sheet1!S71_OY2BudgetAmount,Sheet1!S71_SubMunicipalVoteNo,$AC:$AC,Sheet1!S71_A5CapexCode,$AD:$AD)","v":0},null,null,null,null,null,null,null,null,null,null,null,null,null,null,null,null,44,"CE"]
["4.5 - [Name of sub-vote]",null,{"$f":"SUMIFS(Sheet1!S71_PPPYearAmount,Sheet1!S71_SubMunicipalVoteNo,$AC:$AC,Sheet1!S71_A5CapexCode,$AD:$AD)","v":0},{"$f":"SUMIFS(Sheet1!S71_PPYearAmount,Sheet1!S71_SubMunicipalVoteNo,$AC:$AC,Sheet1!S71_A5CapexCode,$AD:$AD)","v":0},{"$f":"SUMIFS(Sheet1!S71_PYearAmount,Sheet1!S71_SubMunicipalVoteNo,$AC:$AC,Sheet1!S71_A5CapexCode,$AD:$AD)","v":0},{"$f":"SUMIFS(Sheet1!S71_OriginalBudAmnt,Sheet1!S71_SubMunicipalVoteNo,$AC:$AC,Sheet1!S71_A5CapexCode,$AD:$AD)","v":0},{"$f":"SUMIFS(Sheet1!S71_AdjustmentBudAmnt,Sheet1!S71_SubMunicipalVoteNo,$AC:$AC,Sheet1!S71_A5CapexCode,$AD:$AD)","v":0},{"$f":"SUMIFS(Sheet1!S71_AdjustmentBudAmnt,Sheet1!S71_SubMunicipalVoteNo,$AC:$AC,Sheet1!S71_A5CapexCode,$AD:$AD)","v":0},0,{"$f":"SUMIFS(Sheet1!S71_ASBudgetAmount,Sheet1!S71_SubMunicipalVoteNo,$AC:$AC,Sheet1!S71_A5CapexCode,$AD:$AD)","v":0},{"$f":"SUMIFS(Sheet1!S71_OY1BudgetAmount,Sheet1!S71_SubMunicipalVoteNo,$AC:$AC,Sheet1!S71_A5CapexCode,$AD:$AD)","v":0},{"$f":"SUMIFS(Sheet1!S71_OY2BudgetAmount,Sheet1!S71_SubMunicipalVoteNo,$AC:$AC,Sheet1!S71_A5CapexCode,$AD:$AD)","v":0},null,null,null,null,null,null,null,null,null,null,null,null,null,null,null,null,45,"CE"]
["4.6 - [Name of sub-vote]",null,{"$f":"SUMIFS(Sheet1!S71_PPPYearAmount,Sheet1!S71_SubMunicipalVoteNo,$AC:$AC,Sheet1!S71_A5CapexCode,$AD:$AD)","v":0},{"$f":"SUMIFS(Sheet1!S71_PPYearAmount,Sheet1!S71_SubMunicipalVoteNo,$AC:$AC,Sheet1!S71_A5CapexCode,$AD:$AD)","v":0},{"$f":"SUMIFS(Sheet1!S71_PYearAmount,Sheet1!S71_SubMunicipalVoteNo,$AC:$AC,Sheet1!S71_A5CapexCode,$AD:$AD)","v":0},{"$f":"SUMIFS(Sheet1!S71_OriginalBudAmnt,Sheet1!S71_SubMunicipalVoteNo,$AC:$AC,Sheet1!S71_A5CapexCode,$AD:$AD)","v":0},{"$f":"SUMIFS(Sheet1!S71_AdjustmentBudAmnt,Sheet1!S71_SubMunicipalVoteNo,$AC:$AC,Sheet1!S71_A5CapexCode,$AD:$AD)","v":0},{"$f":"SUMIFS(Sheet1!S71_AdjustmentBudAmnt,Sheet1!S71_SubMunicipalVoteNo,$AC:$AC,Sheet1!S71_A5CapexCode,$AD:$AD)","v":0},0,{"$f":"SUMIFS(Sheet1!S71_ASBudgetAmount,Sheet1!S71_SubMunicipalVoteNo,$AC:$AC,Sheet1!S71_A5CapexCode,$AD:$AD)","v":0},{"$f":"SUMIFS(Sheet1!S71_OY1BudgetAmount,Sheet1!S71_SubMunicipalVoteNo,$AC:$AC,Sheet1!S71_A5CapexCode,$AD:$AD)","v":0},{"$f":"SUMIFS(Sheet1!S71_OY2BudgetAmount,Sheet1!S71_SubMunicipalVoteNo,$AC:$AC,Sheet1!S71_A5CapexCode,$AD:$AD)","v":0},null,null,null,null,null,null,null,null,null,null,null,null,null,null,null,null,46,"CE"]
["4.7 - [Name of sub-vote]",null,{"$f":"SUMIFS(Sheet1!S71_PPPYearAmount,Sheet1!S71_SubMunicipalVoteNo,$AC:$AC,Sheet1!S71_A5CapexCode,$AD:$AD)","v":0},{"$f":"SUMIFS(Sheet1!S71_PPYearAmount,Sheet1!S71_SubMunicipalVoteNo,$AC:$AC,Sheet1!S71_A5CapexCode,$AD:$AD)","v":0},{"$f":"SUMIFS(Sheet1!S71_PYearAmount,Sheet1!S71_SubMunicipalVoteNo,$AC:$AC,Sheet1!S71_A5CapexCode,$AD:$AD)","v":0},{"$f":"SUMIFS(Sheet1!S71_OriginalBudAmnt,Sheet1!S71_SubMunicipalVoteNo,$AC:$AC,Sheet1!S71_A5CapexCode,$AD:$AD)","v":0},{"$f":"SUMIFS(Sheet1!S71_AdjustmentBudAmnt,Sheet1!S71_SubMunicipalVoteNo,$AC:$AC,Sheet1!S71_A5CapexCode,$AD:$AD)","v":0},{"$f":"SUMIFS(Sheet1!S71_AdjustmentBudAmnt,Sheet1!S71_SubMunicipalVoteNo,$AC:$AC,Sheet1!S71_A5CapexCode,$AD:$AD)","v":0},0,{"$f":"SUMIFS(Sheet1!S71_ASBudgetAmount,Sheet1!S71_SubMunicipalVoteNo,$AC:$AC,Sheet1!S71_A5CapexCode,$AD:$AD)","v":0},{"$f":"SUMIFS(Sheet1!S71_OY1BudgetAmount,Sheet1!S71_SubMunicipalVoteNo,$AC:$AC,Sheet1!S71_A5CapexCode,$AD:$AD)","v":0},{"$f":"SUMIFS(Sheet1!S71_OY2BudgetAmount,Sheet1!S71_SubMunicipalVoteNo,$AC:$AC,Sheet1!S71_A5CapexCode,$AD:$AD)","v":0},null,null,null,null,null,null,null,null,null,null,null,null,null,null,null,null,47,"CE"]
["4.8 - [Name of sub-vote]",null,{"$f":"SUMIFS(Sheet1!S71_PPPYearAmount,Sheet1!S71_SubMunicipalVoteNo,$AC:$AC,Sheet1!S71_A5CapexCode,$AD:$AD)","v":0},{"$f":"SUMIFS(Sheet1!S71_PPYearAmount,Sheet1!S71_SubMunicipalVoteNo,$AC:$AC,Sheet1!S71_A5CapexCode,$AD:$AD)","v":0},{"$f":"SUMIFS(Sheet1!S71_PYearAmount,Sheet1!S71_SubMunicipalVoteNo,$AC:$AC,Sheet1!S71_A5CapexCode,$AD:$AD)","v":0},{"$f":"SUMIFS(Sheet1!S71_OriginalBudAmnt,Sheet1!S71_SubMunicipalVoteNo,$AC:$AC,Sheet1!S71_A5CapexCode,$AD:$AD)","v":0},{"$f":"SUMIFS(Sheet1!S71_AdjustmentBudAmnt,Sheet1!S71_SubMunicipalVoteNo,$AC:$AC,Sheet1!S71_A5CapexCode,$AD:$AD)","v":0},{"$f":"SUMIFS(Sheet1!S71_AdjustmentBudAmnt,Sheet1!S71_SubMunicipalVoteNo,$AC:$AC,Sheet1!S71_A5CapexCode,$AD:$AD)","v":0},0,{"$f":"SUMIFS(Sheet1!S71_ASBudgetAmount,Sheet1!S71_SubMunicipalVoteNo,$AC:$AC,Sheet1!S71_A5CapexCode,$AD:$AD)","v":0},{"$f":"SUMIFS(Sheet1!S71_OY1BudgetAmount,Sheet1!S71_SubMunicipalVoteNo,$AC:$AC,Sheet1!S71_A5CapexCode,$AD:$AD)","v":0},{"$f":"SUMIFS(Sheet1!S71_OY2BudgetAmount,Sheet1!S71_SubMunicipalVoteNo,$AC:$AC,Sheet1!S71_A5CapexCode,$AD:$AD)","v":0},null,null,null,null,null,null,null,null,null,null,null,null,null,null,null,null,48,"CE"]
["4.9 - [Name of sub-vote]",null,{"$f":"SUMIFS(Sheet1!S71_PPPYearAmount,Sheet1!S71_SubMunicipalVoteNo,$AC:$AC,Sheet1!S71_A5CapexCode,$AD:$AD)","v":0},{"$f":"SUMIFS(Sheet1!S71_PPYearAmount,Sheet1!S71_SubMunicipalVoteNo,$AC:$AC,Sheet1!S71_A5CapexCode,$AD:$AD)","v":0},{"$f":"SUMIFS(Sheet1!S71_PYearAmount,Sheet1!S71_SubMunicipalVoteNo,$AC:$AC,Sheet1!S71_A5CapexCode,$AD:$AD)","v":0},{"$f":"SUMIFS(Sheet1!S71_OriginalBudAmnt,Sheet1!S71_SubMunicipalVoteNo,$AC:$AC,Sheet1!S71_A5CapexCode,$AD:$AD)","v":0},{"$f":"SUMIFS(Sheet1!S71_AdjustmentBudAmnt,Sheet1!S71_SubMunicipalVoteNo,$AC:$AC,Sheet1!S71_A5CapexCode,$AD:$AD)","v":0},{"$f":"SUMIFS(Sheet1!S71_AdjustmentBudAmnt,Sheet1!S71_SubMunicipalVoteNo,$AC:$AC,Sheet1!S71_A5CapexCode,$AD:$AD)","v":0},0,{"$f":"SUMIFS(Sheet1!S71_ASBudgetAmount,Sheet1!S71_SubMunicipalVoteNo,$AC:$AC,Sheet1!S71_A5CapexCode,$AD:$AD)","v":0},{"$f":"SUMIFS(Sheet1!S71_OY1BudgetAmount,Sheet1!S71_SubMunicipalVoteNo,$AC:$AC,Sheet1!S71_A5CapexCode,$AD:$AD)","v":0},{"$f":"SUMIFS(Sheet1!S71_OY2BudgetAmount,Sheet1!S71_SubMunicipalVoteNo,$AC:$AC,Sheet1!S71_A5CapexCode,$AD:$AD)","v":0},null,null,null,null,null,null,null,null,null,null,null,null,null,null,null,null,49,"CE"]
["4.10 - [Name of sub-vote]",null,{"$f":"SUMIFS(Sheet1!S71_PPPYearAmount,Sheet1!S71_SubMunicipalVoteNo,$AC:$AC,Sheet1!S71_A5CapexCode,$AD:$AD)","v":0},{"$f":"SUMIFS(Sheet1!S71_PPYearAmount,Sheet1!S71_SubMunicipalVoteNo,$AC:$AC,Sheet1!S71_A5CapexCode,$AD:$AD)","v":0},{"$f":"SUMIFS(Sheet1!S71_PYearAmount,Sheet1!S71_SubMunicipalVoteNo,$AC:$AC,Sheet1!S71_A5CapexCode,$AD:$AD)","v":0},{"$f":"SUMIFS(Sheet1!S71_OriginalBudAmnt,Sheet1!S71_SubMunicipalVoteNo,$AC:$AC,Sheet1!S71_A5CapexCode,$AD:$AD)","v":0},{"$f":"SUMIFS(Sheet1!S71_AdjustmentBudAmnt,Sheet1!S71_SubMunicipalVoteNo,$AC:$AC,Sheet1!S71_A5CapexCode,$AD:$AD)","v":0},{"$f":"SUMIFS(Sheet1!S71_AdjustmentBudAmnt,Sheet1!S71_SubMunicipalVoteNo,$AC:$AC,Sheet1!S71_A5CapexCode,$AD:$AD)","v":0},0,{"$f":"SUMIFS(Sheet1!S71_ASBudgetAmount,Sheet1!S71_SubMunicipalVoteNo,$AC:$AC,Sheet1!S71_A5CapexCode,$AD:$AD)","v":0},{"$f":"SUMIFS(Sheet1!S71_OY1BudgetAmount,Sheet1!S71_SubMunicipalVoteNo,$AC:$AC,Sheet1!S71_A5CapexCode,$AD:$AD)","v":0},{"$f":"SUMIFS(Sheet1!S71_OY2BudgetAmount,Sheet1!S71_SubMunicipalVoteNo,$AC:$AC,Sheet1!S71_A5CapexCode,$AD:$AD)","v":0},null,null,null,null,null,null,null,null,null,null,null,null,null,null,null,null,410,"CE"]
["Vote 5 - Executive & Council",null,{"$f":"SUM(C220:C229)","v":0},0,0,0,0,0,0,0,0,0]
["5.1 - Municipal Manager, Town Secretary and Chief Executive",null,{"$f":"SUMIFS(Sheet1!S71_PPPYearAmount,Sheet1!S71_SubMunicipalVoteNo,$AC:$AC,Sheet1!S71_A5CapexCode,$AD:$AD)","v":0},{"$f":"SUMIFS(Sheet1!S71_PPYearAmount,Sheet1!S71_SubMunicipalVoteNo,$AC:$AC,Sheet1!S71_A5CapexCode,$AD:$AD)","v":0},{"$f":"SUMIFS(Sheet1!S71_PYearAmount,Sheet1!S71_SubMunicipalVoteNo,$AC:$AC,Sheet1!S71_A5CapexCode,$AD:$AD)","v":0},{"$f":"SUMIFS(Sheet1!S71_OriginalBudAmnt,Sheet1!S71_SubMunicipalVoteNo,$AC:$AC,Sheet1!S71_A5CapexCode,$AD:$AD)","v":0},{"$f":"SUMIFS(Sheet1!S71_AdjustmentBudAmnt,Sheet1!S71_SubMunicipalVoteNo,$AC:$AC,Sheet1!S71_A5CapexCode,$AD:$AD)","v":0},{"$f":"SUMIFS(Sheet1!S71_AdjustmentBudAmnt,Sheet1!S71_SubMunicipalVoteNo,$AC:$AC,Sheet1!S71_A5CapexCode,$AD:$AD)","v":0},{"$f":"H220","v":0},{"$f":"SUMIFS(Sheet1!S71_ASBudgetAmount,Sheet1!S71_SubMunicipalVoteNo,$AC:$AC,Sheet1!S71_A5CapexCode,$AD:$AD)","v":0},{"$f":"SUMIFS(Sheet1!S71_OY1BudgetAmount,Sheet1!S71_SubMunicipalVoteNo,$AC:$AC,Sheet1!S71_A5CapexCode,$AD:$AD)","v":0},{"$f":"SUMIFS(Sheet1!S71_OY2BudgetAmount,Sheet1!S71_SubMunicipalVoteNo,$AC:$AC,Sheet1!S71_A5CapexCode,$AD:$AD)","v":0},null,null,null,null,null,null,null,null,null,null,null,null,null,null,null,null,51,"CE"]
["5.2 - Mayor and Council",null,{"$f":"SUMIFS(Sheet1!S71_PPPYearAmount,Sheet1!S71_SubMunicipalVoteNo,$AC:$AC,Sheet1!S71_A5CapexCode,$AD:$AD)","v":0},{"$f":"SUMIFS(Sheet1!S71_PPYearAmount,Sheet1!S71_SubMunicipalVoteNo,$AC:$AC,Sheet1!S71_A5CapexCode,$AD:$AD)","v":0},{"$f":"SUMIFS(Sheet1!S71_PYearAmount,Sheet1!S71_SubMunicipalVoteNo,$AC:$AC,Sheet1!S71_A5CapexCode,$AD:$AD)","v":0},{"$f":"SUMIFS(Sheet1!S71_OriginalBudAmnt,Sheet1!S71_SubMunicipalVoteNo,$AC:$AC,Sheet1!S71_A5CapexCode,$AD:$AD)","v":0},{"$f":"SUMIFS(Sheet1!S71_AdjustmentBudAmnt,Sheet1!S71_SubMunicipalVoteNo,$AC:$AC,Sheet1!S71_A5CapexCode,$AD:$AD)","v":0},{"$f":"SUMIFS(Sheet1!S71_AdjustmentBudAmnt,Sheet1!S71_SubMunicipalVoteNo,$AC:$AC,Sheet1!S71_A5CapexCode,$AD:$AD)","v":0},0,{"$f":"SUMIFS(Sheet1!S71_ASBudgetAmount,Sheet1!S71_SubMunicipalVoteNo,$AC:$AC,Sheet1!S71_A5CapexCode,$AD:$AD)","v":0},{"$f":"SUMIFS(Sheet1!S71_OY1BudgetAmount,Sheet1!S71_SubMunicipalVoteNo,$AC:$AC,Sheet1!S71_A5CapexCode,$AD:$AD)","v":0},{"$f":"SUMIFS(Sheet1!S71_OY2BudgetAmount,Sheet1!S71_SubMunicipalVoteNo,$AC:$AC,Sheet1!S71_A5CapexCode,$AD:$AD)","v":0},null,null,null,null,null,null,null,null,null,null,null,null,null,null,null,null,52,"CE"]
["5.3 - [Name of sub-vote]",null,{"$f":"SUMIFS(Sheet1!S71_PPPYearAmount,Sheet1!S71_SubMunicipalVoteNo,$AC:$AC,Sheet1!S71_A5CapexCode,$AD:$AD)","v":0},{"$f":"SUMIFS(Sheet1!S71_PPYearAmount,Sheet1!S71_SubMunicipalVoteNo,$AC:$AC,Sheet1!S71_A5CapexCode,$AD:$AD)","v":0},{"$f":"SUMIFS(Sheet1!S71_PYearAmount,Sheet1!S71_SubMunicipalVoteNo,$AC:$AC,Sheet1!S71_A5CapexCode,$AD:$AD)","v":0},{"$f":"SUMIFS(Sheet1!S71_OriginalBudAmnt,Sheet1!S71_SubMunicipalVoteNo,$AC:$AC,Sheet1!S71_A5CapexCode,$AD:$AD)","v":0},{"$f":"SUMIFS(Sheet1!S71_AdjustmentBudAmnt,Sheet1!S71_SubMunicipalVoteNo,$AC:$AC,Sheet1!S71_A5CapexCode,$AD:$AD)","v":0},{"$f":"SUMIFS(Sheet1!S71_AdjustmentBudAmnt,Sheet1!S71_SubMunicipalVoteNo,$AC:$AC,Sheet1!S71_A5CapexCode,$AD:$AD)","v":0},0,{"$f":"SUMIFS(Sheet1!S71_ASBudgetAmount,Sheet1!S71_SubMunicipalVoteNo,$AC:$AC,Sheet1!S71_A5CapexCode,$AD:$AD)","v":0},{"$f":"SUMIFS(Sheet1!S71_OY1BudgetAmount,Sheet1!S71_SubMunicipalVoteNo,$AC:$AC,Sheet1!S71_A5CapexCode,$AD:$AD)","v":0},{"$f":"SUMIFS(Sheet1!S71_OY2BudgetAmount,Sheet1!S71_SubMunicipalVoteNo,$AC:$AC,Sheet1!S71_A5CapexCode,$AD:$AD)","v":0},null,null,null,null,null,null,null,null,null,null,null,null,null,null,null,null,53,"CE"]
["5.4 - [Name of sub-vote]",null,{"$f":"SUMIFS(Sheet1!S71_PPPYearAmount,Sheet1!S71_SubMunicipalVoteNo,$AC:$AC,Sheet1!S71_A5CapexCode,$AD:$AD)","v":0},{"$f":"SUMIFS(Sheet1!S71_PPYearAmount,Sheet1!S71_SubMunicipalVoteNo,$AC:$AC,Sheet1!S71_A5CapexCode,$AD:$AD)","v":0},{"$f":"SUMIFS(Sheet1!S71_PYearAmount,Sheet1!S71_SubMunicipalVoteNo,$AC:$AC,Sheet1!S71_A5CapexCode,$AD:$AD)","v":0},{"$f":"SUMIFS(Sheet1!S71_OriginalBudAmnt,Sheet1!S71_SubMunicipalVoteNo,$AC:$AC,Sheet1!S71_A5CapexCode,$AD:$AD)","v":0},{"$f":"SUMIFS(Sheet1!S71_AdjustmentBudAmnt,Sheet1!S71_SubMunicipalVoteNo,$AC:$AC,Sheet1!S71_A5CapexCode,$AD:$AD)","v":0},{"$f":"SUMIFS(Sheet1!S71_AdjustmentBudAmnt,Sheet1!S71_SubMunicipalVoteNo,$AC:$AC,Sheet1!S71_A5CapexCode,$AD:$AD)","v":0},0,{"$f":"SUMIFS(Sheet1!S71_ASBudgetAmount,Sheet1!S71_SubMunicipalVoteNo,$AC:$AC,Sheet1!S71_A5CapexCode,$AD:$AD)","v":0},{"$f":"SUMIFS(Sheet1!S71_OY1BudgetAmount,Sheet1!S71_SubMunicipalVoteNo,$AC:$AC,Sheet1!S71_A5CapexCode,$AD:$AD)","v":0},{"$f":"SUMIFS(Sheet1!S71_OY2BudgetAmount,Sheet1!S71_SubMunicipalVoteNo,$AC:$AC,Sheet1!S71_A5CapexCode,$AD:$AD)","v":0},null,null,null,null,null,null,null,null,null,null,null,null,null,null,null,null,54,"CE"]
["5.5 - [Name of sub-vote]",null,{"$f":"SUMIFS(Sheet1!S71_PPPYearAmount,Sheet1!S71_SubMunicipalVoteNo,$AC:$AC,Sheet1!S71_A5CapexCode,$AD:$AD)","v":0},{"$f":"SUMIFS(Sheet1!S71_PPYearAmount,Sheet1!S71_SubMunicipalVoteNo,$AC:$AC,Sheet1!S71_A5CapexCode,$AD:$AD)","v":0},{"$f":"SUMIFS(Sheet1!S71_PYearAmount,Sheet1!S71_SubMunicipalVoteNo,$AC:$AC,Sheet1!S71_A5CapexCode,$AD:$AD)","v":0},{"$f":"SUMIFS(Sheet1!S71_OriginalBudAmnt,Sheet1!S71_SubMunicipalVoteNo,$AC:$AC,Sheet1!S71_A5CapexCode,$AD:$AD)","v":0},{"$f":"SUMIFS(Sheet1!S71_AdjustmentBudAmnt,Sheet1!S71_SubMunicipalVoteNo,$AC:$AC,Sheet1!S71_A5CapexCode,$AD:$AD)","v":0},{"$f":"SUMIFS(Sheet1!S71_AdjustmentBudAmnt,Sheet1!S71_SubMunicipalVoteNo,$AC:$AC,Sheet1!S71_A5CapexCode,$AD:$AD)","v":0},0,{"$f":"SUMIFS(Sheet1!S71_ASBudgetAmount,Sheet1!S71_SubMunicipalVoteNo,$AC:$AC,Sheet1!S71_A5CapexCode,$AD:$AD)","v":0},{"$f":"SUMIFS(Sheet1!S71_OY1BudgetAmount,Sheet1!S71_SubMunicipalVoteNo,$AC:$AC,Sheet1!S71_A5CapexCode,$AD:$AD)","v":0},{"$f":"SUMIFS(Sheet1!S71_OY2BudgetAmount,Sheet1!S71_SubMunicipalVoteNo,$AC:$AC,Sheet1!S71_A5CapexCode,$AD:$AD)","v":0},null,null,null,null,null,null,null,null,null,null,null,null,null,null,null,null,55,"CE"]
["5.6 - [Name of sub-vote]",null,{"$f":"SUMIFS(Sheet1!S71_PPPYearAmount,Sheet1!S71_SubMunicipalVoteNo,$AC:$AC,Sheet1!S71_A5CapexCode,$AD:$AD)","v":0},{"$f":"SUMIFS(Sheet1!S71_PPYearAmount,Sheet1!S71_SubMunicipalVoteNo,$AC:$AC,Sheet1!S71_A5CapexCode,$AD:$AD)","v":0},{"$f":"SUMIFS(Sheet1!S71_PYearAmount,Sheet1!S71_SubMunicipalVoteNo,$AC:$AC,Sheet1!S71_A5CapexCode,$AD:$AD)","v":0},{"$f":"SUMIFS(Sheet1!S71_OriginalBudAmnt,Sheet1!S71_SubMunicipalVoteNo,$AC:$AC,Sheet1!S71_A5CapexCode,$AD:$AD)","v":0},{"$f":"SUMIFS(Sheet1!S71_AdjustmentBudAmnt,Sheet1!S71_SubMunicipalVoteNo,$AC:$AC,Sheet1!S71_A5CapexCode,$AD:$AD)","v":0},{"$f":"SUMIFS(Sheet1!S71_AdjustmentBudAmnt,Sheet1!S71_SubMunicipalVoteNo,$AC:$AC,Sheet1!S71_A5CapexCode,$AD:$AD)","v":0},0,{"$f":"SUMIFS(Sheet1!S71_ASBudgetAmount,Sheet1!S71_SubMunicipalVoteNo,$AC:$AC,Sheet1!S71_A5CapexCode,$AD:$AD)","v":0},{"$f":"SUMIFS(Sheet1!S71_OY1BudgetAmount,Sheet1!S71_SubMunicipalVoteNo,$AC:$AC,Sheet1!S71_A5CapexCode,$AD:$AD)","v":0},{"$f":"SUMIFS(Sheet1!S71_OY2BudgetAmount,Sheet1!S71_SubMunicipalVoteNo,$AC:$AC,Sheet1!S71_A5CapexCode,$AD:$AD)","v":0},null,null,null,null,null,null,null,null,null,null,null,null,null,null,null,null,56,"CE"]
["5.7 - [Name of sub-vote]",null,{"$f":"SUMIFS(Sheet1!S71_PPPYearAmount,Sheet1!S71_SubMunicipalVoteNo,$AC:$AC,Sheet1!S71_A5CapexCode,$AD:$AD)","v":0},{"$f":"SUMIFS(Sheet1!S71_PPYearAmount,Sheet1!S71_SubMunicipalVoteNo,$AC:$AC,Sheet1!S71_A5CapexCode,$AD:$AD)","v":0},{"$f":"SUMIFS(Sheet1!S71_PYearAmount,Sheet1!S71_SubMunicipalVoteNo,$AC:$AC,Sheet1!S71_A5CapexCode,$AD:$AD)","v":0},{"$f":"SUMIFS(Sheet1!S71_OriginalBudAmnt,Sheet1!S71_SubMunicipalVoteNo,$AC:$AC,Sheet1!S71_A5CapexCode,$AD:$AD)","v":0},{"$f":"SUMIFS(Sheet1!S71_AdjustmentBudAmnt,Sheet1!S71_SubMunicipalVoteNo,$AC:$AC,Sheet1!S71_A5CapexCode,$AD:$AD)","v":0},{"$f":"SUMIFS(Sheet1!S71_AdjustmentBudAmnt,Sheet1!S71_SubMunicipalVoteNo,$AC:$AC,Sheet1!S71_A5CapexCode,$AD:$AD)","v":0},0,{"$f":"SUMIFS(Sheet1!S71_ASBudgetAmount,Sheet1!S71_SubMunicipalVoteNo,$AC:$AC,Sheet1!S71_A5CapexCode,$AD:$AD)","v":0},{"$f":"SUMIFS(Sheet1!S71_OY1BudgetAmount,Sheet1!S71_SubMunicipalVoteNo,$AC:$AC,Sheet1!S71_A5CapexCode,$AD:$AD)","v":0},{"$f":"SUMIFS(Sheet1!S71_OY2BudgetAmount,Sheet1!S71_SubMunicipalVoteNo,$AC:$AC,Sheet1!S71_A5CapexCode,$AD:$AD)","v":0},null,null,null,null,null,null,null,null,null,null,null,null,null,null,null,null,57,"CE"]
["5.8 - [Name of sub-vote]",null,{"$f":"SUMIFS(Sheet1!S71_PPPYearAmount,Sheet1!S71_SubMunicipalVoteNo,$AC:$AC,Sheet1!S71_A5CapexCode,$AD:$AD)","v":0},{"$f":"SUMIFS(Sheet1!S71_PPYearAmount,Sheet1!S71_SubMunicipalVoteNo,$AC:$AC,Sheet1!S71_A5CapexCode,$AD:$AD)","v":0},{"$f":"SUMIFS(Sheet1!S71_PYearAmount,Sheet1!S71_SubMunicipalVoteNo,$AC:$AC,Sheet1!S71_A5CapexCode,$AD:$AD)","v":0},{"$f":"SUMIFS(Sheet1!S71_OriginalBudAmnt,Sheet1!S71_SubMunicipalVoteNo,$AC:$AC,Sheet1!S71_A5CapexCode,$AD:$AD)","v":0},{"$f":"SUMIFS(Sheet1!S71_AdjustmentBudAmnt,Sheet1!S71_SubMunicipalVoteNo,$AC:$AC,Sheet1!S71_A5CapexCode,$AD:$AD)","v":0},{"$f":"SUMIFS(Sheet1!S71_AdjustmentBudAmnt,Sheet1!S71_SubMunicipalVoteNo,$AC:$AC,Sheet1!S71_A5CapexCode,$AD:$AD)","v":0},0,{"$f":"SUMIFS(Sheet1!S71_ASBudgetAmount,Sheet1!S71_SubMunicipalVoteNo,$AC:$AC,Sheet1!S71_A5CapexCode,$AD:$AD)","v":0},{"$f":"SUMIFS(Sheet1!S71_OY1BudgetAmount,Sheet1!S71_SubMunicipalVoteNo,$AC:$AC,Sheet1!S71_A5CapexCode,$AD:$AD)","v":0},{"$f":"SUMIFS(Sheet1!S71_OY2BudgetAmount,Sheet1!S71_SubMunicipalVoteNo,$AC:$AC,Sheet1!S71_A5CapexCode,$AD:$AD)","v":0},null,null,null,null,null,null,null,null,null,null,null,null,null,null,null,null,58,"CE"]
["5.9 - [Name of sub-vote]",null,{"$f":"SUMIFS(Sheet1!S71_PPPYearAmount,Sheet1!S71_SubMunicipalVoteNo,$AC:$AC,Sheet1!S71_A5CapexCode,$AD:$AD)","v":0},{"$f":"SUMIFS(Sheet1!S71_PPYearAmount,Sheet1!S71_SubMunicipalVoteNo,$AC:$AC,Sheet1!S71_A5CapexCode,$AD:$AD)","v":0},{"$f":"SUMIFS(Sheet1!S71_PYearAmount,Sheet1!S71_SubMunicipalVoteNo,$AC:$AC,Sheet1!S71_A5CapexCode,$AD:$AD)","v":0},{"$f":"SUMIFS(Sheet1!S71_OriginalBudAmnt,Sheet1!S71_SubMunicipalVoteNo,$AC:$AC,Sheet1!S71_A5CapexCode,$AD:$AD)","v":0},{"$f":"SUMIFS(Sheet1!S71_AdjustmentBudAmnt,Sheet1!S71_SubMunicipalVoteNo,$AC:$AC,Sheet1!S71_A5CapexCode,$AD:$AD)","v":0},{"$f":"SUMIFS(Sheet1!S71_AdjustmentBudAmnt,Sheet1!S71_SubMunicipalVoteNo,$AC:$AC,Sheet1!S71_A5CapexCode,$AD:$AD)","v":0},0,{"$f":"SUMIFS(Sheet1!S71_ASBudgetAmount,Sheet1!S71_SubMunicipalVoteNo,$AC:$AC,Sheet1!S71_A5CapexCode,$AD:$AD)","v":0},{"$f":"SUMIFS(Sheet1!S71_OY1BudgetAmount,Sheet1!S71_SubMunicipalVoteNo,$AC:$AC,Sheet1!S71_A5CapexCode,$AD:$AD)","v":0},{"$f":"SUMIFS(Sheet1!S71_OY2BudgetAmount,Sheet1!S71_SubMunicipalVoteNo,$AC:$AC,Sheet1!S71_A5CapexCode,$AD:$AD)","v":0},null,null,null,null,null,null,null,null,null,null,null,null,null,null,null,null,59,"CE"]
["5.10 - [Name of sub-vote]",null,{"$f":"SUMIFS(Sheet1!S71_PPPYearAmount,Sheet1!S71_SubMunicipalVoteNo,$AC:$AC,Sheet1!S71_A5CapexCode,$AD:$AD)","v":0},{"$f":"SUMIFS(Sheet1!S71_PPYearAmount,Sheet1!S71_SubMunicipalVoteNo,$AC:$AC,Sheet1!S71_A5CapexCode,$AD:$AD)","v":0},{"$f":"SUMIFS(Sheet1!S71_PYearAmount,Sheet1!S71_SubMunicipalVoteNo,$AC:$AC,Sheet1!S71_A5CapexCode,$AD:$AD)","v":0},{"$f":"SUMIFS(Sheet1!S71_OriginalBudAmnt,Sheet1!S71_SubMunicipalVoteNo,$AC:$AC,Sheet1!S71_A5CapexCode,$AD:$AD)","v":0},{"$f":"SUMIFS(Sheet1!S71_AdjustmentBudAmnt,Sheet1!S71_SubMunicipalVoteNo,$AC:$AC,Sheet1!S71_A5CapexCode,$AD:$AD)","v":0},{"$f":"SUMIFS(Sheet1!S71_AdjustmentBudAmnt,Sheet1!S71_SubMunicipalVoteNo,$AC:$AC,Sheet1!S71_A5CapexCode,$AD:$AD)","v":0},0,{"$f":"SUMIFS(Sheet1!S71_ASBudgetAmount,Sheet1!S71_SubMunicipalVoteNo,$AC:$AC,Sheet1!S71_A5CapexCode,$AD:$AD)","v":0},{"$f":"SUMIFS(Sheet1!S71_OY1BudgetAmount,Sheet1!S71_SubMunicipalVoteNo,$AC:$AC,Sheet1!S71_A5CapexCode,$AD:$AD)","v":0},{"$f":"SUMIFS(Sheet1!S71_OY2BudgetAmount,Sheet1!S71_SubMunicipalVoteNo,$AC:$AC,Sheet1!S71_A5CapexCode,$AD:$AD)","v":0},null,null,null,null,null,null,null,null,null,null,null,null,null,null,null,null,510,"CE"]
["Vote 6 - Internal Audit",null,{"$f":"SUM(C231:C240)","v":0},0,0,0,0,0,0,550000,0,0]
["6.1 - Governance Function",null,{"$f":"SUMIFS(Sheet1!S71_PPPYearAmount,Sheet1!S71_SubMunicipalVoteNo,$AC:$AC,Sheet1!S71_A5CapexCode,$AD:$AD)","v":0},{"$f":"SUMIFS(Sheet1!S71_PPYearAmount,Sheet1!S71_SubMunicipalVoteNo,$AC:$AC,Sheet1!S71_A5CapexCode,$AD:$AD)","v":0},{"$f":"SUMIFS(Sheet1!S71_PYearAmount,Sheet1!S71_SubMunicipalVoteNo,$AC:$AC,Sheet1!S71_A5CapexCode,$AD:$AD)","v":0},{"$f":"SUMIFS(Sheet1!S71_OriginalBudAmnt,Sheet1!S71_SubMunicipalVoteNo,$AC:$AC,Sheet1!S71_A5CapexCode,$AD:$AD)","v":0},{"$f":"SUMIFS(Sheet1!S71_AdjustmentBudAmnt,Sheet1!S71_SubMunicipalVoteNo,$AC:$AC,Sheet1!S71_A5CapexCode,$AD:$AD)","v":0},{"$f":"SUMIFS(Sheet1!S71_AdjustmentBudAmnt,Sheet1!S71_SubMunicipalVoteNo,$AC:$AC,Sheet1!S71_A5CapexCode,$AD:$AD)","v":0},{"$f":"H231","v":0},{"$f":"SUMIFS(Sheet1!S71_ASBudgetAmount,Sheet1!S71_SubMunicipalVoteNo,$AC:$AC,Sheet1!S71_A5CapexCode,$AD:$AD)","v":550000},{"$f":"SUMIFS(Sheet1!S71_OY1BudgetAmount,Sheet1!S71_SubMunicipalVoteNo,$AC:$AC,Sheet1!S71_A5CapexCode,$AD:$AD)","v":0},{"$f":"SUMIFS(Sheet1!S71_OY2BudgetAmount,Sheet1!S71_SubMunicipalVoteNo,$AC:$AC,Sheet1!S71_A5CapexCode,$AD:$AD)","v":0},null,null,null,null,null,null,null,null,null,null,null,null,null,null,null,null,61,"CE"]
["6.2 - [Name of sub-vote]",null,{"$f":"SUMIFS(Sheet1!S71_PPPYearAmount,Sheet1!S71_SubMunicipalVoteNo,$AC:$AC,Sheet1!S71_A5CapexCode,$AD:$AD)","v":0},{"$f":"SUMIFS(Sheet1!S71_PPYearAmount,Sheet1!S71_SubMunicipalVoteNo,$AC:$AC,Sheet1!S71_A5CapexCode,$AD:$AD)","v":0},{"$f":"SUMIFS(Sheet1!S71_PYearAmount,Sheet1!S71_SubMunicipalVoteNo,$AC:$AC,Sheet1!S71_A5CapexCode,$AD:$AD)","v":0},{"$f":"SUMIFS(Sheet1!S71_OriginalBudAmnt,Sheet1!S71_SubMunicipalVoteNo,$AC:$AC,Sheet1!S71_A5CapexCode,$AD:$AD)","v":0},{"$f":"SUMIFS(Sheet1!S71_AdjustmentBudAmnt,Sheet1!S71_SubMunicipalVoteNo,$AC:$AC,Sheet1!S71_A5CapexCode,$AD:$AD)","v":0},{"$f":"SUMIFS(Sheet1!S71_AdjustmentBudAmnt,Sheet1!S71_SubMunicipalVoteNo,$AC:$AC,Sheet1!S71_A5CapexCode,$AD:$AD)","v":0},0,{"$f":"SUMIFS(Sheet1!S71_ASBudgetAmount,Sheet1!S71_SubMunicipalVoteNo,$AC:$AC,Sheet1!S71_A5CapexCode,$AD:$AD)","v":0},{"$f":"SUMIFS(Sheet1!S71_OY1BudgetAmount,Sheet1!S71_SubMunicipalVoteNo,$AC:$AC,Sheet1!S71_A5CapexCode,$AD:$AD)","v":0},{"$f":"SUMIFS(Sheet1!S71_OY2BudgetAmount,Sheet1!S71_SubMunicipalVoteNo,$AC:$AC,Sheet1!S71_A5CapexCode,$AD:$AD)","v":0},null,null,null,null,null,null,null,null,null,null,null,null,null,null,null,null,62,"CE"]
["6.3 - [Name of sub-vote]",null,{"$f":"SUMIFS(Sheet1!S71_PPPYearAmount,Sheet1!S71_SubMunicipalVoteNo,$AC:$AC,Sheet1!S71_A5CapexCode,$AD:$AD)","v":0},{"$f":"SUMIFS(Sheet1!S71_PPYearAmount,Sheet1!S71_SubMunicipalVoteNo,$AC:$AC,Sheet1!S71_A5CapexCode,$AD:$AD)","v":0},{"$f":"SUMIFS(Sheet1!S71_PYearAmount,Sheet1!S71_SubMunicipalVoteNo,$AC:$AC,Sheet1!S71_A5CapexCode,$AD:$AD)","v":0},{"$f":"SUMIFS(Sheet1!S71_OriginalBudAmnt,Sheet1!S71_SubMunicipalVoteNo,$AC:$AC,Sheet1!S71_A5CapexCode,$AD:$AD)","v":0},{"$f":"SUMIFS(Sheet1!S71_AdjustmentBudAmnt,Sheet1!S71_SubMunicipalVoteNo,$AC:$AC,Sheet1!S71_A5CapexCode,$AD:$AD)","v":0},{"$f":"SUMIFS(Sheet1!S71_AdjustmentBudAmnt,Sheet1!S71_SubMunicipalVoteNo,$AC:$AC,Sheet1!S71_A5CapexCode,$AD:$AD)","v":0},0,{"$f":"SUMIFS(Sheet1!S71_ASBudgetAmount,Sheet1!S71_SubMunicipalVoteNo,$AC:$AC,Sheet1!S71_A5CapexCode,$AD:$AD)","v":0},{"$f":"SUMIFS(Sheet1!S71_OY1BudgetAmount,Sheet1!S71_SubMunicipalVoteNo,$AC:$AC,Sheet1!S71_A5CapexCode,$AD:$AD)","v":0},{"$f":"SUMIFS(Sheet1!S71_OY2BudgetAmount,Sheet1!S71_SubMunicipalVoteNo,$AC:$AC,Sheet1!S71_A5CapexCode,$AD:$AD)","v":0},null,null,null,null,null,null,null,null,null,null,null,null,null,null,null,null,63,"CE"]
["6.4 - [Name of sub-vote]",null,{"$f":"SUMIFS(Sheet1!S71_PPPYearAmount,Sheet1!S71_SubMunicipalVoteNo,$AC:$AC,Sheet1!S71_A5CapexCode,$AD:$AD)","v":0},{"$f":"SUMIFS(Sheet1!S71_PPYearAmount,Sheet1!S71_SubMunicipalVoteNo,$AC:$AC,Sheet1!S71_A5CapexCode,$AD:$AD)","v":0},{"$f":"SUMIFS(Sheet1!S71_PYearAmount,Sheet1!S71_SubMunicipalVoteNo,$AC:$AC,Sheet1!S71_A5CapexCode,$AD:$AD)","v":0},{"$f":"SUMIFS(Sheet1!S71_OriginalBudAmnt,Sheet1!S71_SubMunicipalVoteNo,$AC:$AC,Sheet1!S71_A5CapexCode,$AD:$AD)","v":0},{"$f":"SUMIFS(Sheet1!S71_AdjustmentBudAmnt,Sheet1!S71_SubMunicipalVoteNo,$AC:$AC,Sheet1!S71_A5CapexCode,$AD:$AD)","v":0},{"$f":"SUMIFS(Sheet1!S71_AdjustmentBudAmnt,Sheet1!S71_SubMunicipalVoteNo,$AC:$AC,Sheet1!S71_A5CapexCode,$AD:$AD)","v":0},0,{"$f":"SUMIFS(Sheet1!S71_ASBudgetAmount,Sheet1!S71_SubMunicipalVoteNo,$AC:$AC,Sheet1!S71_A5CapexCode,$AD:$AD)","v":0},{"$f":"SUMIFS(Sheet1!S71_OY1BudgetAmount,Sheet1!S71_SubMunicipalVoteNo,$AC:$AC,Sheet1!S71_A5CapexCode,$AD:$AD)","v":0},{"$f":"SUMIFS(Sheet1!S71_OY2BudgetAmount,Sheet1!S71_SubMunicipalVoteNo,$AC:$AC,Sheet1!S71_A5CapexCode,$AD:$AD)","v":0},null,null,null,null,null,null,null,null,null,null,null,null,null,null,null,null,64,"CE"]
["6.5 - [Name of sub-vote]",null,{"$f":"SUMIFS(Sheet1!S71_PPPYearAmount,Sheet1!S71_SubMunicipalVoteNo,$AC:$AC,Sheet1!S71_A5CapexCode,$AD:$AD)","v":0},{"$f":"SUMIFS(Sheet1!S71_PPYearAmount,Sheet1!S71_SubMunicipalVoteNo,$AC:$AC,Sheet1!S71_A5CapexCode,$AD:$AD)","v":0},{"$f":"SUMIFS(Sheet1!S71_PYearAmount,Sheet1!S71_SubMunicipalVoteNo,$AC:$AC,Sheet1!S71_A5CapexCode,$AD:$AD)","v":0},{"$f":"SUMIFS(Sheet1!S71_OriginalBudAmnt,Sheet1!S71_SubMunicipalVoteNo,$AC:$AC,Sheet1!S71_A5CapexCode,$AD:$AD)","v":0},{"$f":"SUMIFS(Sheet1!S71_AdjustmentBudAmnt,Sheet1!S71_SubMunicipalVoteNo,$AC:$AC,Sheet1!S71_A5CapexCode,$AD:$AD)","v":0},{"$f":"SUMIFS(Sheet1!S71_AdjustmentBudAmnt,Sheet1!S71_SubMunicipalVoteNo,$AC:$AC,Sheet1!S71_A5CapexCode,$AD:$AD)","v":0},0,{"$f":"SUMIFS(Sheet1!S71_ASBudgetAmount,Sheet1!S71_SubMunicipalVoteNo,$AC:$AC,Sheet1!S71_A5CapexCode,$AD:$AD)","v":0},{"$f":"SUMIFS(Sheet1!S71_OY1BudgetAmount,Sheet1!S71_SubMunicipalVoteNo,$AC:$AC,Sheet1!S71_A5CapexCode,$AD:$AD)","v":0},{"$f":"SUMIFS(Sheet1!S71_OY2BudgetAmount,Sheet1!S71_SubMunicipalVoteNo,$AC:$AC,Sheet1!S71_A5CapexCode,$AD:$AD)","v":0},null,null,null,null,null,null,null,null,null,null,null,null,null,null,null,null,65,"CE"]
["6.6 - [Name of sub-vote]",null,{"$f":"SUMIFS(Sheet1!S71_PPPYearAmount,Sheet1!S71_SubMunicipalVoteNo,$AC:$AC,Sheet1!S71_A5CapexCode,$AD:$AD)","v":0},{"$f":"SUMIFS(Sheet1!S71_PPYearAmount,Sheet1!S71_SubMunicipalVoteNo,$AC:$AC,Sheet1!S71_A5CapexCode,$AD:$AD)","v":0},{"$f":"SUMIFS(Sheet1!S71_PYearAmount,Sheet1!S71_SubMunicipalVoteNo,$AC:$AC,Sheet1!S71_A5CapexCode,$AD:$AD)","v":0},{"$f":"SUMIFS(Sheet1!S71_OriginalBudAmnt,Sheet1!S71_SubMunicipalVoteNo,$AC:$AC,Sheet1!S71_A5CapexCode,$AD:$AD)","v":0},{"$f":"SUMIFS(Sheet1!S71_AdjustmentBudAmnt,Sheet1!S71_SubMunicipalVoteNo,$AC:$AC,Sheet1!S71_A5CapexCode,$AD:$AD)","v":0},{"$f":"SUMIFS(Sheet1!S71_AdjustmentBudAmnt,Sheet1!S71_SubMunicipalVoteNo,$AC:$AC,Sheet1!S71_A5CapexCode,$AD:$AD)","v":0},0,{"$f":"SUMIFS(Sheet1!S71_ASBudgetAmount,Sheet1!S71_SubMunicipalVoteNo,$AC:$AC,Sheet1!S71_A5CapexCode,$AD:$AD)","v":0},{"$f":"SUMIFS(Sheet1!S71_OY1BudgetAmount,Sheet1!S71_SubMunicipalVoteNo,$AC:$AC,Sheet1!S71_A5CapexCode,$AD:$AD)","v":0},{"$f":"SUMIFS(Sheet1!S71_OY2BudgetAmount,Sheet1!S71_SubMunicipalVoteNo,$AC:$AC,Sheet1!S71_A5CapexCode,$AD:$AD)","v":0},null,null,null,null,null,null,null,null,null,null,null,null,null,null,null,null,66,"CE"]
["6.7 - [Name of sub-vote]",null,{"$f":"SUMIFS(Sheet1!S71_PPPYearAmount,Sheet1!S71_SubMunicipalVoteNo,$AC:$AC,Sheet1!S71_A5CapexCode,$AD:$AD)","v":0},{"$f":"SUMIFS(Sheet1!S71_PPYearAmount,Sheet1!S71_SubMunicipalVoteNo,$AC:$AC,Sheet1!S71_A5CapexCode,$AD:$AD)","v":0},{"$f":"SUMIFS(Sheet1!S71_PYearAmount,Sheet1!S71_SubMunicipalVoteNo,$AC:$AC,Sheet1!S71_A5CapexCode,$AD:$AD)","v":0},{"$f":"SUMIFS(Sheet1!S71_OriginalBudAmnt,Sheet1!S71_SubMunicipalVoteNo,$AC:$AC,Sheet1!S71_A5CapexCode,$AD:$AD)","v":0},{"$f":"SUMIFS(Sheet1!S71_AdjustmentBudAmnt,Sheet1!S71_SubMunicipalVoteNo,$AC:$AC,Sheet1!S71_A5CapexCode,$AD:$AD)","v":0},{"$f":"SUMIFS(Sheet1!S71_AdjustmentBudAmnt,Sheet1!S71_SubMunicipalVoteNo,$AC:$AC,Sheet1!S71_A5CapexCode,$AD:$AD)","v":0},0,{"$f":"SUMIFS(Sheet1!S71_ASBudgetAmount,Sheet1!S71_SubMunicipalVoteNo,$AC:$AC,Sheet1!S71_A5CapexCode,$AD:$AD)","v":0},{"$f":"SUMIFS(Sheet1!S71_OY1BudgetAmount,Sheet1!S71_SubMunicipalVoteNo,$AC:$AC,Sheet1!S71_A5CapexCode,$AD:$AD)","v":0},{"$f":"SUMIFS(Sheet1!S71_OY2BudgetAmount,Sheet1!S71_SubMunicipalVoteNo,$AC:$AC,Sheet1!S71_A5CapexCode,$AD:$AD)","v":0},null,null,null,null,null,null,null,null,null,null,null,null,null,null,null,null,67,"CE"]
["6.8 - [Name of sub-vote]",null,{"$f":"SUMIFS(Sheet1!S71_PPPYearAmount,Sheet1!S71_SubMunicipalVoteNo,$AC:$AC,Sheet1!S71_A5CapexCode,$AD:$AD)","v":0},{"$f":"SUMIFS(Sheet1!S71_PPYearAmount,Sheet1!S71_SubMunicipalVoteNo,$AC:$AC,Sheet1!S71_A5CapexCode,$AD:$AD)","v":0},{"$f":"SUMIFS(Sheet1!S71_PYearAmount,Sheet1!S71_SubMunicipalVoteNo,$AC:$AC,Sheet1!S71_A5CapexCode,$AD:$AD)","v":0},{"$f":"SUMIFS(Sheet1!S71_OriginalBudAmnt,Sheet1!S71_SubMunicipalVoteNo,$AC:$AC,Sheet1!S71_A5CapexCode,$AD:$AD)","v":0},{"$f":"SUMIFS(Sheet1!S71_AdjustmentBudAmnt,Sheet1!S71_SubMunicipalVoteNo,$AC:$AC,Sheet1!S71_A5CapexCode,$AD:$AD)","v":0},{"$f":"SUMIFS(Sheet1!S71_AdjustmentBudAmnt,Sheet1!S71_SubMunicipalVoteNo,$AC:$AC,Sheet1!S71_A5CapexCode,$AD:$AD)","v":0},0,{"$f":"SUMIFS(Sheet1!S71_ASBudgetAmount,Sheet1!S71_SubMunicipalVoteNo,$AC:$AC,Sheet1!S71_A5CapexCode,$AD:$AD)","v":0},{"$f":"SUMIFS(Sheet1!S71_OY1BudgetAmount,Sheet1!S71_SubMunicipalVoteNo,$AC:$AC,Sheet1!S71_A5CapexCode,$AD:$AD)","v":0},{"$f":"SUMIFS(Sheet1!S71_OY2BudgetAmount,Sheet1!S71_SubMunicipalVoteNo,$AC:$AC,Sheet1!S71_A5CapexCode,$AD:$AD)","v":0},null,null,null,null,null,null,null,null,null,null,null,null,null,null,null,null,68,"CE"]
["6.9 - [Name of sub-vote]",null,{"$f":"SUMIFS(Sheet1!S71_PPPYearAmount,Sheet1!S71_SubMunicipalVoteNo,$AC:$AC,Sheet1!S71_A5CapexCode,$AD:$AD)","v":0},{"$f":"SUMIFS(Sheet1!S71_PPYearAmount,Sheet1!S71_SubMunicipalVoteNo,$AC:$AC,Sheet1!S71_A5CapexCode,$AD:$AD)","v":0},{"$f":"SUMIFS(Sheet1!S71_PYearAmount,Sheet1!S71_SubMunicipalVoteNo,$AC:$AC,Sheet1!S71_A5CapexCode,$AD:$AD)","v":0},{"$f":"SUMIFS(Sheet1!S71_OriginalBudAmnt,Sheet1!S71_SubMunicipalVoteNo,$AC:$AC,Sheet1!S71_A5CapexCode,$AD:$AD)","v":0},{"$f":"SUMIFS(Sheet1!S71_AdjustmentBudAmnt,Sheet1!S71_SubMunicipalVoteNo,$AC:$AC,Sheet1!S71_A5CapexCode,$AD:$AD)","v":0},{"$f":"SUMIFS(Sheet1!S71_AdjustmentBudAmnt,Sheet1!S71_SubMunicipalVoteNo,$AC:$AC,Sheet1!S71_A5CapexCode,$AD:$AD)","v":0},0,{"$f":"SUMIFS(Sheet1!S71_ASBudgetAmount,Sheet1!S71_SubMunicipalVoteNo,$AC:$AC,Sheet1!S71_A5CapexCode,$AD:$AD)","v":0},{"$f":"SUMIFS(Sheet1!S71_OY1BudgetAmount,Sheet1!S71_SubMunicipalVoteNo,$AC:$AC,Sheet1!S71_A5CapexCode,$AD:$AD)","v":0},{"$f":"SUMIFS(Sheet1!S71_OY2BudgetAmount,Sheet1!S71_SubMunicipalVoteNo,$AC:$AC,Sheet1!S71_A5CapexCode,$AD:$AD)","v":0},null,null,null,null,null,null,null,null,null,null,null,null,null,null,null,null,69,"CE"]
[{"$f":"A71","v":"6.10 - [Name of sub-vote]"},null,{"$f":"SUMIFS(Sheet1!S71_PPPYearAmount,Sheet1!S71_SubMunicipalVoteNo,$AC:$AC,Sheet1!S71_A5CapexCode,$AD:$AD)","v":0},{"$f":"SUMIFS(Sheet1!S71_PPYearAmount,Sheet1!S71_SubMunicipalVoteNo,$AC:$AC,Sheet1!S71_A5CapexCode,$AD:$AD)","v":0},{"$f":"SUMIFS(Sheet1!S71_PYearAmount,Sheet1!S71_SubMunicipalVoteNo,$AC:$AC,Sheet1!S71_A5CapexCode,$AD:$AD)","v":0},{"$f":"SUMIFS(Sheet1!S71_OriginalBudAmnt,Sheet1!S71_SubMunicipalVoteNo,$AC:$AC,Sheet1!S71_A5CapexCode,$AD:$AD)","v":0},{"$f":"SUMIFS(Sheet1!S71_AdjustmentBudAmnt,Sheet1!S71_SubMunicipalVoteNo,$AC:$AC,Sheet1!S71_A5CapexCode,$AD:$AD)","v":0},{"$f":"SUMIFS(Sheet1!S71_AdjustmentBudAmnt,Sheet1!S71_SubMunicipalVoteNo,$AC:$AC,Sheet1!S71_A5CapexCode,$AD:$AD)","v":0},0,{"$f":"SUMIFS(Sheet1!S71_ASBudgetAmount,Sheet1!S71_SubMunicipalVoteNo,$AC:$AC,Sheet1!S71_A5CapexCode,$AD:$AD)","v":0},{"$f":"SUMIFS(Sheet1!S71_OY1BudgetAmount,Sheet1!S71_SubMunicipalVoteNo,$AC:$AC,Sheet1!S71_A5CapexCode,$AD:$AD)","v":0},{"$f":"SUMIFS(Sheet1!S71_OY2BudgetAmount,Sheet1!S71_SubMunicipalVoteNo,$AC:$AC,Sheet1!S71_A5CapexCode,$AD:$AD)","v":0},null,null,null,null,null,null,null,null,null,null,null,null,null,null,null,null,610,"CE"]
["Vote 7 - Road Transport",null,{"$f":"SUM(C242:C251)","v":72123869},62281609,46062418,38479622,58119326,58119326,58119326,85873910,130686968,129815856]
["7.1 - Taxi Ranks",null,{"$f":"SUMIFS(Sheet1!S71_PPPYearAmount,Sheet1!S71_SubMunicipalVoteNo,$AC:$AC,Sheet1!S71_A5CapexCode,$AD:$AD)","v":591840},{"$f":"SUMIFS(Sheet1!S71_PPYearAmount,Sheet1!S71_SubMunicipalVoteNo,$AC:$AC,Sheet1!S71_A5CapexCode,$AD:$AD)","v":591840},{"$f":"SUMIFS(Sheet1!S71_PYearAmount,Sheet1!S71_SubMunicipalVoteNo,$AC:$AC,Sheet1!S71_A5CapexCode,$AD:$AD)","v":6036950},{"$f":"SUMIFS(Sheet1!S71_OriginalBudAmnt,Sheet1!S71_SubMunicipalVoteNo,$AC:$AC,Sheet1!S71_A5CapexCode,$AD:$AD)","v":0},{"$f":"SUMIFS(Sheet1!S71_AdjustmentBudAmnt,Sheet1!S71_SubMunicipalVoteNo,$AC:$AC,Sheet1!S71_A5CapexCode,$AD:$AD)","v":6194766},{"$f":"SUMIFS(Sheet1!S71_AdjustmentBudAmnt,Sheet1!S71_SubMunicipalVoteNo,$AC:$AC,Sheet1!S71_A5CapexCode,$AD:$AD)","v":6194766},{"$f":"H242","v":6194766},{"$f":"SUMIFS(Sheet1!S71_ASBudgetAmount,Sheet1!S71_SubMunicipalVoteNo,$AC:$AC,Sheet1!S71_A5CapexCode,$AD:$AD)","v":0},{"$f":"SUMIFS(Sheet1!S71_OY1BudgetAmount,Sheet1!S71_SubMunicipalVoteNo,$AC:$AC,Sheet1!S71_A5CapexCode,$AD:$AD)","v":0},{"$f":"SUMIFS(Sheet1!S71_OY2BudgetAmount,Sheet1!S71_SubMunicipalVoteNo,$AC:$AC,Sheet1!S71_A5CapexCode,$AD:$AD)","v":0},null,null,null,null,null,null,null,null,null,null,null,null,null,null,null,null,71,"CE"]
["7.2 - Road and Traffic Regulation",null,{"$f":"SUMIFS(Sheet1!S71_PPPYearAmount,Sheet1!S71_SubMunicipalVoteNo,$AC:$AC,Sheet1!S71_A5CapexCode,$AD:$AD)","v":0},{"$f":"SUMIFS(Sheet1!S71_PPYearAmount,Sheet1!S71_SubMunicipalVoteNo,$AC:$AC,Sheet1!S71_A5CapexCode,$AD:$AD)","v":0},{"$f":"SUMIFS(Sheet1!S71_PYearAmount,Sheet1!S71_SubMunicipalVoteNo,$AC:$AC,Sheet1!S71_A5CapexCode,$AD:$AD)","v":0},{"$f":"SUMIFS(Sheet1!S71_OriginalBudAmnt,Sheet1!S71_SubMunicipalVoteNo,$AC:$AC,Sheet1!S71_A5CapexCode,$AD:$AD)","v":600000},{"$f":"SUMIFS(Sheet1!S71_AdjustmentBudAmnt,Sheet1!S71_SubMunicipalVoteNo,$AC:$AC,Sheet1!S71_A5CapexCode,$AD:$AD)","v":750000},{"$f":"SUMIFS(Sheet1!S71_AdjustmentBudAmnt,Sheet1!S71_SubMunicipalVoteNo,$AC:$AC,Sheet1!S71_A5CapexCode,$AD:$AD)","v":750000},750000,{"$f":"SUMIFS(Sheet1!S71_ASBudgetAmount,Sheet1!S71_SubMunicipalVoteNo,$AC:$AC,Sheet1!S71_A5CapexCode,$AD:$AD)","v":600000},{"$f":"SUMIFS(Sheet1!S71_OY1BudgetAmount,Sheet1!S71_SubMunicipalVoteNo,$AC:$AC,Sheet1!S71_A5CapexCode,$AD:$AD)","v":720000},{"$f":"SUMIFS(Sheet1!S71_OY2BudgetAmount,Sheet1!S71_SubMunicipalVoteNo,$AC:$AC,Sheet1!S71_A5CapexCode,$AD:$AD)","v":740000},null,null,null,null,null,null,null,null,null,null,null,null,null,null,null,null,72,"CE"]
["7.3 - Public Transport",null,{"$f":"SUMIFS(Sheet1!S71_PPPYearAmount,Sheet1!S71_SubMunicipalVoteNo,$AC:$AC,Sheet1!S71_A5CapexCode,$AD:$AD)","v":0},{"$f":"SUMIFS(Sheet1!S71_PPYearAmount,Sheet1!S71_SubMunicipalVoteNo,$AC:$AC,Sheet1!S71_A5CapexCode,$AD:$AD)","v":0},{"$f":"SUMIFS(Sheet1!S71_PYearAmount,Sheet1!S71_SubMunicipalVoteNo,$AC:$AC,Sheet1!S71_A5CapexCode,$AD:$AD)","v":0},{"$f":"SUMIFS(Sheet1!S71_OriginalBudAmnt,Sheet1!S71_SubMunicipalVoteNo,$AC:$AC,Sheet1!S71_A5CapexCode,$AD:$AD)","v":0},{"$f":"SUMIFS(Sheet1!S71_AdjustmentBudAmnt,Sheet1!S71_SubMunicipalVoteNo,$AC:$AC,Sheet1!S71_A5CapexCode,$AD:$AD)","v":0},{"$f":"SUMIFS(Sheet1!S71_AdjustmentBudAmnt,Sheet1!S71_SubMunicipalVoteNo,$AC:$AC,Sheet1!S71_A5CapexCode,$AD:$AD)","v":0},0,{"$f":"SUMIFS(Sheet1!S71_ASBudgetAmount,Sheet1!S71_SubMunicipalVoteNo,$AC:$AC,Sheet1!S71_A5CapexCode,$AD:$AD)","v":0},{"$f":"SUMIFS(Sheet1!S71_OY1BudgetAmount,Sheet1!S71_SubMunicipalVoteNo,$AC:$AC,Sheet1!S71_A5CapexCode,$AD:$AD)","v":0},{"$f":"SUMIFS(Sheet1!S71_OY2BudgetAmount,Sheet1!S71_SubMunicipalVoteNo,$AC:$AC,Sheet1!S71_A5CapexCode,$AD:$AD)","v":0},null,null,null,null,null,null,null,null,null,null,null,null,null,null,null,null,73,"CE"]
["7.4 - Roads",null,{"$f":"SUMIFS(Sheet1!S71_PPPYearAmount,Sheet1!S71_SubMunicipalVoteNo,$AC:$AC,Sheet1!S71_A5CapexCode,$AD:$AD)","v":71532029},{"$f":"SUMIFS(Sheet1!S71_PPYearAmount,Sheet1!S71_SubMunicipalVoteNo,$AC:$AC,Sheet1!S71_A5CapexCode,$AD:$AD)","v":61689769},{"$f":"SUMIFS(Sheet1!S71_PYearAmount,Sheet1!S71_SubMunicipalVoteNo,$AC:$AC,Sheet1!S71_A5CapexCode,$AD:$AD)","v":40025468},{"$f":"SUMIFS(Sheet1!S71_OriginalBudAmnt,Sheet1!S71_SubMunicipalVoteNo,$AC:$AC,Sheet1!S71_A5CapexCode,$AD:$AD)","v":37879622},{"$f":"SUMIFS(Sheet1!S71_AdjustmentBudAmnt,Sheet1!S71_SubMunicipalVoteNo,$AC:$AC,Sheet1!S71_A5CapexCode,$AD:$AD)","v":51174560},{"$f":"SUMIFS(Sheet1!S71_AdjustmentBudAmnt,Sheet1!S71_SubMunicipalVoteNo,$AC:$AC,Sheet1!S71_A5CapexCode,$AD:$AD)","v":51174560},51174560,{"$f":"SUMIFS(Sheet1!S71_ASBudgetAmount,Sheet1!S71_SubMunicipalVoteNo,$AC:$AC,Sheet1!S71_A5CapexCode,$AD:$AD)","v":85273910},{"$f":"SUMIFS(Sheet1!S71_OY1BudgetAmount,Sheet1!S71_SubMunicipalVoteNo,$AC:$AC,Sheet1!S71_A5CapexCode,$AD:$AD)","v":129966968},{"$f":"SUMIFS(Sheet1!S71_OY2BudgetAmount,Sheet1!S71_SubMunicipalVoteNo,$AC:$AC,Sheet1!S71_A5CapexCode,$AD:$AD)","v":129075856},null,null,null,null,null,null,null,null,null,null,null,null,null,null,null,null,74,"CE"]
["7.5 - [Name of sub-vote]",null,{"$f":"SUMIFS(Sheet1!S71_PPPYearAmount,Sheet1!S71_SubMunicipalVoteNo,$AC:$AC,Sheet1!S71_A5CapexCode,$AD:$AD)","v":0},{"$f":"SUMIFS(Sheet1!S71_PPYearAmount,Sheet1!S71_SubMunicipalVoteNo,$AC:$AC,Sheet1!S71_A5CapexCode,$AD:$AD)","v":0},{"$f":"SUMIFS(Sheet1!S71_PYearAmount,Sheet1!S71_SubMunicipalVoteNo,$AC:$AC,Sheet1!S71_A5CapexCode,$AD:$AD)","v":0},{"$f":"SUMIFS(Sheet1!S71_OriginalBudAmnt,Sheet1!S71_SubMunicipalVoteNo,$AC:$AC,Sheet1!S71_A5CapexCode,$AD:$AD)","v":0},{"$f":"SUMIFS(Sheet1!S71_AdjustmentBudAmnt,Sheet1!S71_SubMunicipalVoteNo,$AC:$AC,Sheet1!S71_A5CapexCode,$AD:$AD)","v":0},{"$f":"SUMIFS(Sheet1!S71_AdjustmentBudAmnt,Sheet1!S71_SubMunicipalVoteNo,$AC:$AC,Sheet1!S71_A5CapexCode,$AD:$AD)","v":0},0,{"$f":"SUMIFS(Sheet1!S71_ASBudgetAmount,Sheet1!S71_SubMunicipalVoteNo,$AC:$AC,Sheet1!S71_A5CapexCode,$AD:$AD)","v":0},{"$f":"SUMIFS(Sheet1!S71_OY1BudgetAmount,Sheet1!S71_SubMunicipalVoteNo,$AC:$AC,Sheet1!S71_A5CapexCode,$AD:$AD)","v":0},{"$f":"SUMIFS(Sheet1!S71_OY2BudgetAmount,Sheet1!S71_SubMunicipalVoteNo,$AC:$AC,Sheet1!S71_A5CapexCode,$AD:$AD)","v":0},null,null,null,null,null,null,null,null,null,null,null,null,null,null,null,null,75,"CE"]
["7.6 - [Name of sub-vote]",null,{"$f":"SUMIFS(Sheet1!S71_PPPYearAmount,Sheet1!S71_SubMunicipalVoteNo,$AC:$AC,Sheet1!S71_A5CapexCode,$AD:$AD)","v":0},{"$f":"SUMIFS(Sheet1!S71_PPYearAmount,Sheet1!S71_SubMunicipalVoteNo,$AC:$AC,Sheet1!S71_A5CapexCode,$AD:$AD)","v":0},{"$f":"SUMIFS(Sheet1!S71_PYearAmount,Sheet1!S71_SubMunicipalVoteNo,$AC:$AC,Sheet1!S71_A5CapexCode,$AD:$AD)","v":0},{"$f":"SUMIFS(Sheet1!S71_OriginalBudAmnt,Sheet1!S71_SubMunicipalVoteNo,$AC:$AC,Sheet1!S71_A5CapexCode,$AD:$AD)","v":0},{"$f":"SUMIFS(Sheet1!S71_AdjustmentBudAmnt,Sheet1!S71_SubMunicipalVoteNo,$AC:$AC,Sheet1!S71_A5CapexCode,$AD:$AD)","v":0},{"$f":"SUMIFS(Sheet1!S71_AdjustmentBudAmnt,Sheet1!S71_SubMunicipalVoteNo,$AC:$AC,Sheet1!S71_A5CapexCode,$AD:$AD)","v":0},0,{"$f":"SUMIFS(Sheet1!S71_ASBudgetAmount,Sheet1!S71_SubMunicipalVoteNo,$AC:$AC,Sheet1!S71_A5CapexCode,$AD:$AD)","v":0},{"$f":"SUMIFS(Sheet1!S71_OY1BudgetAmount,Sheet1!S71_SubMunicipalVoteNo,$AC:$AC,Sheet1!S71_A5CapexCode,$AD:$AD)","v":0},{"$f":"SUMIFS(Sheet1!S71_OY2BudgetAmount,Sheet1!S71_SubMunicipalVoteNo,$AC:$AC,Sheet1!S71_A5CapexCode,$AD:$AD)","v":0},null,null,null,null,null,null,null,null,null,null,null,null,null,null,null,null,76,"CE"]
["7.7 - [Name of sub-vote]",null,{"$f":"SUMIFS(Sheet1!S71_PPPYearAmount,Sheet1!S71_SubMunicipalVoteNo,$AC:$AC,Sheet1!S71_A5CapexCode,$AD:$AD)","v":0},{"$f":"SUMIFS(Sheet1!S71_PPYearAmount,Sheet1!S71_SubMunicipalVoteNo,$AC:$AC,Sheet1!S71_A5CapexCode,$AD:$AD)","v":0},{"$f":"SUMIFS(Sheet1!S71_PYearAmount,Sheet1!S71_SubMunicipalVoteNo,$AC:$AC,Sheet1!S71_A5CapexCode,$AD:$AD)","v":0},{"$f":"SUMIFS(Sheet1!S71_OriginalBudAmnt,Sheet1!S71_SubMunicipalVoteNo,$AC:$AC,Sheet1!S71_A5CapexCode,$AD:$AD)","v":0},{"$f":"SUMIFS(Sheet1!S71_AdjustmentBudAmnt,Sheet1!S71_SubMunicipalVoteNo,$AC:$AC,Sheet1!S71_A5CapexCode,$AD:$AD)","v":0},{"$f":"SUMIFS(Sheet1!S71_AdjustmentBudAmnt,Sheet1!S71_SubMunicipalVoteNo,$AC:$AC,Sheet1!S71_A5CapexCode,$AD:$AD)","v":0},0,{"$f":"SUMIFS(Sheet1!S71_ASBudgetAmount,Sheet1!S71_SubMunicipalVoteNo,$AC:$AC,Sheet1!S71_A5CapexCode,$AD:$AD)","v":0},{"$f":"SUMIFS(Sheet1!S71_OY1BudgetAmount,Sheet1!S71_SubMunicipalVoteNo,$AC:$AC,Sheet1!S71_A5CapexCode,$AD:$AD)","v":0},{"$f":"SUMIFS(Sheet1!S71_OY2BudgetAmount,Sheet1!S71_SubMunicipalVoteNo,$AC:$AC,Sheet1!S71_A5CapexCode,$AD:$AD)","v":0},null,null,null,null,null,null,null,null,null,null,null,null,null,null,null,null,77,"CE"]
["7.8 - [Name of sub-vote]",null,{"$f":"SUMIFS(Sheet1!S71_PPPYearAmount,Sheet1!S71_SubMunicipalVoteNo,$AC:$AC,Sheet1!S71_A5CapexCode,$AD:$AD)","v":0},{"$f":"SUMIFS(Sheet1!S71_PPYearAmount,Sheet1!S71_SubMunicipalVoteNo,$AC:$AC,Sheet1!S71_A5CapexCode,$AD:$AD)","v":0},{"$f":"SUMIFS(Sheet1!S71_PYearAmount,Sheet1!S71_SubMunicipalVoteNo,$AC:$AC,Sheet1!S71_A5CapexCode,$AD:$AD)","v":0},{"$f":"SUMIFS(Sheet1!S71_OriginalBudAmnt,Sheet1!S71_SubMunicipalVoteNo,$AC:$AC,Sheet1!S71_A5CapexCode,$AD:$AD)","v":0},{"$f":"SUMIFS(Sheet1!S71_AdjustmentBudAmnt,Sheet1!S71_SubMunicipalVoteNo,$AC:$AC,Sheet1!S71_A5CapexCode,$AD:$AD)","v":0},{"$f":"SUMIFS(Sheet1!S71_AdjustmentBudAmnt,Sheet1!S71_SubMunicipalVoteNo,$AC:$AC,Sheet1!S71_A5CapexCode,$AD:$AD)","v":0},0,{"$f":"SUMIFS(Sheet1!S71_ASBudgetAmount,Sheet1!S71_SubMunicipalVoteNo,$AC:$AC,Sheet1!S71_A5CapexCode,$AD:$AD)","v":0},{"$f":"SUMIFS(Sheet1!S71_OY1BudgetAmount,Sheet1!S71_SubMunicipalVoteNo,$AC:$AC,Sheet1!S71_A5CapexCode,$AD:$AD)","v":0},{"$f":"SUMIFS(Sheet1!S71_OY2BudgetAmount,Sheet1!S71_SubMunicipalVoteNo,$AC:$AC,Sheet1!S71_A5CapexCode,$AD:$AD)","v":0},null,null,null,null,null,null,null,null,null,null,null,null,null,null,null,null,78,"CE"]
["7.9 - [Name of sub-vote]",null,{"$f":"SUMIFS(Sheet1!S71_PPPYearAmount,Sheet1!S71_SubMunicipalVoteNo,$AC:$AC,Sheet1!S71_A5CapexCode,$AD:$AD)","v":0},{"$f":"SUMIFS(Sheet1!S71_PPYearAmount,Sheet1!S71_SubMunicipalVoteNo,$AC:$AC,Sheet1!S71_A5CapexCode,$AD:$AD)","v":0},{"$f":"SUMIFS(Sheet1!S71_PYearAmount,Sheet1!S71_SubMunicipalVoteNo,$AC:$AC,Sheet1!S71_A5CapexCode,$AD:$AD)","v":0},{"$f":"SUMIFS(Sheet1!S71_OriginalBudAmnt,Sheet1!S71_SubMunicipalVoteNo,$AC:$AC,Sheet1!S71_A5CapexCode,$AD:$AD)","v":0},{"$f":"SUMIFS(Sheet1!S71_AdjustmentBudAmnt,Sheet1!S71_SubMunicipalVoteNo,$AC:$AC,Sheet1!S71_A5CapexCode,$AD:$AD)","v":0},{"$f":"SUMIFS(Sheet1!S71_AdjustmentBudAmnt,Sheet1!S71_SubMunicipalVoteNo,$AC:$AC,Sheet1!S71_A5CapexCode,$AD:$AD)","v":0},0,{"$f":"SUMIFS(Sheet1!S71_ASBudgetAmount,Sheet1!S71_SubMunicipalVoteNo,$AC:$AC,Sheet1!S71_A5CapexCode,$AD:$AD)","v":0},{"$f":"SUMIFS(Sheet1!S71_OY1BudgetAmount,Sheet1!S71_SubMunicipalVoteNo,$AC:$AC,Sheet1!S71_A5CapexCode,$AD:$AD)","v":0},{"$f":"SUMIFS(Sheet1!S71_OY2BudgetAmount,Sheet1!S71_SubMunicipalVoteNo,$AC:$AC,Sheet1!S71_A5CapexCode,$AD:$AD)","v":0},null,null,null,null,null,null,null,null,null,null,null,null,null,null,null,null,79,"CE"]
["7.10 - [Name of sub-vote]",null,{"$f":"SUMIFS(Sheet1!S71_PPPYearAmount,Sheet1!S71_SubMunicipalVoteNo,$AC:$AC,Sheet1!S71_A5CapexCode,$AD:$AD)","v":0},{"$f":"SUMIFS(Sheet1!S71_PPYearAmount,Sheet1!S71_SubMunicipalVoteNo,$AC:$AC,Sheet1!S71_A5CapexCode,$AD:$AD)","v":0},{"$f":"SUMIFS(Sheet1!S71_PYearAmount,Sheet1!S71_SubMunicipalVoteNo,$AC:$AC,Sheet1!S71_A5CapexCode,$AD:$AD)","v":0},{"$f":"SUMIFS(Sheet1!S71_OriginalBudAmnt,Sheet1!S71_SubMunicipalVoteNo,$AC:$AC,Sheet1!S71_A5CapexCode,$AD:$AD)","v":0},{"$f":"SUMIFS(Sheet1!S71_AdjustmentBudAmnt,Sheet1!S71_SubMunicipalVoteNo,$AC:$AC,Sheet1!S71_A5CapexCode,$AD:$AD)","v":0},{"$f":"SUMIFS(Sheet1!S71_AdjustmentBudAmnt,Sheet1!S71_SubMunicipalVoteNo,$AC:$AC,Sheet1!S71_A5CapexCode,$AD:$AD)","v":0},0,{"$f":"SUMIFS(Sheet1!S71_ASBudgetAmount,Sheet1!S71_SubMunicipalVoteNo,$AC:$AC,Sheet1!S71_A5CapexCode,$AD:$AD)","v":0},{"$f":"SUMIFS(Sheet1!S71_OY1BudgetAmount,Sheet1!S71_SubMunicipalVoteNo,$AC:$AC,Sheet1!S71_A5CapexCode,$AD:$AD)","v":0},{"$f":"SUMIFS(Sheet1!S71_OY2BudgetAmount,Sheet1!S71_SubMunicipalVoteNo,$AC:$AC,Sheet1!S71_A5CapexCode,$AD:$AD)","v":0},null,null,null,null,null,null,null,null,null,null,null,null,null,null,null,null,710,"CE"]
["Vote 8 - Public Safety",null,{"$f":"SUM(C253:C262)","v":0},0,2435125,0,0,0,0,1300000,0,0]
["8.1 - Cleansing",null,{"$f":"SUMIFS(Sheet1!S71_PPPYearAmount,Sheet1!S71_SubMunicipalVoteNo,$AC:$AC,Sheet1!S71_A5CapexCode,$AD:$AD)","v":0},{"$f":"SUMIFS(Sheet1!S71_PPYearAmount,Sheet1!S71_SubMunicipalVoteNo,$AC:$AC,Sheet1!S71_A5CapexCode,$AD:$AD)","v":0},{"$f":"SUMIFS(Sheet1!S71_PYearAmount,Sheet1!S71_SubMunicipalVoteNo,$AC:$AC,Sheet1!S71_A5CapexCode,$AD:$AD)","v":0},{"$f":"SUMIFS(Sheet1!S71_OriginalBudAmnt,Sheet1!S71_SubMunicipalVoteNo,$AC:$AC,Sheet1!S71_A5CapexCode,$AD:$AD)","v":0},{"$f":"SUMIFS(Sheet1!S71_AdjustmentBudAmnt,Sheet1!S71_SubMunicipalVoteNo,$AC:$AC,Sheet1!S71_A5CapexCode,$AD:$AD)","v":0},{"$f":"SUMIFS(Sheet1!S71_AdjustmentBudAmnt,Sheet1!S71_SubMunicipalVoteNo,$AC:$AC,Sheet1!S71_A5CapexCode,$AD:$AD)","v":0},{"$f":"H253","v":0},{"$f":"SUMIFS(Sheet1!S71_ASBudgetAmount,Sheet1!S71_SubMunicipalVoteNo,$AC:$AC,Sheet1!S71_A5CapexCode,$AD:$AD)","v":0},{"$f":"SUMIFS(Sheet1!S71_OY1BudgetAmount,Sheet1!S71_SubMunicipalVoteNo,$AC:$AC,Sheet1!S71_A5CapexCode,$AD:$AD)","v":0},{"$f":"SUMIFS(Sheet1!S71_OY2BudgetAmount,Sheet1!S71_SubMunicipalVoteNo,$AC:$AC,Sheet1!S71_A5CapexCode,$AD:$AD)","v":0},null,null,null,null,null,null,null,null,null,null,null,null,null,null,null,null,81,"CE"]
["8.2 - Fencing and Fences",null,{"$f":"SUMIFS(Sheet1!S71_PPPYearAmount,Sheet1!S71_SubMunicipalVoteNo,$AC:$AC,Sheet1!S71_A5CapexCode,$AD:$AD)","v":0},{"$f":"SUMIFS(Sheet1!S71_PPYearAmount,Sheet1!S71_SubMunicipalVoteNo,$AC:$AC,Sheet1!S71_A5CapexCode,$AD:$AD)","v":0},{"$f":"SUMIFS(Sheet1!S71_PYearAmount,Sheet1!S71_SubMunicipalVoteNo,$AC:$AC,Sheet1!S71_A5CapexCode,$AD:$AD)","v":2435125},{"$f":"SUMIFS(Sheet1!S71_OriginalBudAmnt,Sheet1!S71_SubMunicipalVoteNo,$AC:$AC,Sheet1!S71_A5CapexCode,$AD:$AD)","v":0},{"$f":"SUMIFS(Sheet1!S71_AdjustmentBudAmnt,Sheet1!S71_SubMunicipalVoteNo,$AC:$AC,Sheet1!S71_A5CapexCode,$AD:$AD)","v":0},{"$f":"SUMIFS(Sheet1!S71_AdjustmentBudAmnt,Sheet1!S71_SubMunicipalVoteNo,$AC:$AC,Sheet1!S71_A5CapexCode,$AD:$AD)","v":0},0,{"$f":"SUMIFS(Sheet1!S71_ASBudgetAmount,Sheet1!S71_SubMunicipalVoteNo,$AC:$AC,Sheet1!S71_A5CapexCode,$AD:$AD)","v":1300000},{"$f":"SUMIFS(Sheet1!S71_OY1BudgetAmount,Sheet1!S71_SubMunicipalVoteNo,$AC:$AC,Sheet1!S71_A5CapexCode,$AD:$AD)","v":0},{"$f":"SUMIFS(Sheet1!S71_OY2BudgetAmount,Sheet1!S71_SubMunicipalVoteNo,$AC:$AC,Sheet1!S71_A5CapexCode,$AD:$AD)","v":0},null,null,null,null,null,null,null,null,null,null,null,null,null,null,null,null,82,"CE"]
["8.3 - [Name of sub-vote]",null,{"$f":"SUMIFS(Sheet1!S71_PPPYearAmount,Sheet1!S71_SubMunicipalVoteNo,$AC:$AC,Sheet1!S71_A5CapexCode,$AD:$AD)","v":0},{"$f":"SUMIFS(Sheet1!S71_PPYearAmount,Sheet1!S71_SubMunicipalVoteNo,$AC:$AC,Sheet1!S71_A5CapexCode,$AD:$AD)","v":0},{"$f":"SUMIFS(Sheet1!S71_PYearAmount,Sheet1!S71_SubMunicipalVoteNo,$AC:$AC,Sheet1!S71_A5CapexCode,$AD:$AD)","v":0},{"$f":"SUMIFS(Sheet1!S71_OriginalBudAmnt,Sheet1!S71_SubMunicipalVoteNo,$AC:$AC,Sheet1!S71_A5CapexCode,$AD:$AD)","v":0},{"$f":"SUMIFS(Sheet1!S71_AdjustmentBudAmnt,Sheet1!S71_SubMunicipalVoteNo,$AC:$AC,Sheet1!S71_A5CapexCode,$AD:$AD)","v":0},{"$f":"SUMIFS(Sheet1!S71_AdjustmentBudAmnt,Sheet1!S71_SubMunicipalVoteNo,$AC:$AC,Sheet1!S71_A5CapexCode,$AD:$AD)","v":0},0,{"$f":"SUMIFS(Sheet1!S71_ASBudgetAmount,Sheet1!S71_SubMunicipalVoteNo,$AC:$AC,Sheet1!S71_A5CapexCode,$AD:$AD)","v":0},{"$f":"SUMIFS(Sheet1!S71_OY1BudgetAmount,Sheet1!S71_SubMunicipalVoteNo,$AC:$AC,Sheet1!S71_A5CapexCode,$AD:$AD)","v":0},{"$f":"SUMIFS(Sheet1!S71_OY2BudgetAmount,Sheet1!S71_SubMunicipalVoteNo,$AC:$AC,Sheet1!S71_A5CapexCode,$AD:$AD)","v":0},null,null,null,null,null,null,null,null,null,null,null,null,null,null,null,null,83,"CE"]
["8.4 - [Name of sub-vote]",null,{"$f":"SUMIFS(Sheet1!S71_PPPYearAmount,Sheet1!S71_SubMunicipalVoteNo,$AC:$AC,Sheet1!S71_A5CapexCode,$AD:$AD)","v":0},{"$f":"SUMIFS(Sheet1!S71_PPYearAmount,Sheet1!S71_SubMunicipalVoteNo,$AC:$AC,Sheet1!S71_A5CapexCode,$AD:$AD)","v":0},{"$f":"SUMIFS(Sheet1!S71_PYearAmount,Sheet1!S71_SubMunicipalVoteNo,$AC:$AC,Sheet1!S71_A5CapexCode,$AD:$AD)","v":0},{"$f":"SUMIFS(Sheet1!S71_OriginalBudAmnt,Sheet1!S71_SubMunicipalVoteNo,$AC:$AC,Sheet1!S71_A5CapexCode,$AD:$AD)","v":0},{"$f":"SUMIFS(Sheet1!S71_AdjustmentBudAmnt,Sheet1!S71_SubMunicipalVoteNo,$AC:$AC,Sheet1!S71_A5CapexCode,$AD:$AD)","v":0},{"$f":"SUMIFS(Sheet1!S71_AdjustmentBudAmnt,Sheet1!S71_SubMunicipalVoteNo,$AC:$AC,Sheet1!S71_A5CapexCode,$AD:$AD)","v":0},0,{"$f":"SUMIFS(Sheet1!S71_ASBudgetAmount,Sheet1!S71_SubMunicipalVoteNo,$AC:$AC,Sheet1!S71_A5CapexCode,$AD:$AD)","v":0},{"$f":"SUMIFS(Sheet1!S71_OY1BudgetAmount,Sheet1!S71_SubMunicipalVoteNo,$AC:$AC,Sheet1!S71_A5CapexCode,$AD:$AD)","v":0},{"$f":"SUMIFS(Sheet1!S71_OY2BudgetAmount,Sheet1!S71_SubMunicipalVoteNo,$AC:$AC,Sheet1!S71_A5CapexCode,$AD:$AD)","v":0},null,null,null,null,null,null,null,null,null,null,null,null,null,null,null,null,84,"CE"]
["8.5 - [Name of sub-vote]",null,{"$f":"SUMIFS(Sheet1!S71_PPPYearAmount,Sheet1!S71_SubMunicipalVoteNo,$AC:$AC,Sheet1!S71_A5CapexCode,$AD:$AD)","v":0},{"$f":"SUMIFS(Sheet1!S71_PPYearAmount,Sheet1!S71_SubMunicipalVoteNo,$AC:$AC,Sheet1!S71_A5CapexCode,$AD:$AD)","v":0},{"$f":"SUMIFS(Sheet1!S71_PYearAmount,Sheet1!S71_SubMunicipalVoteNo,$AC:$AC,Sheet1!S71_A5CapexCode,$AD:$AD)","v":0},{"$f":"SUMIFS(Sheet1!S71_OriginalBudAmnt,Sheet1!S71_SubMunicipalVoteNo,$AC:$AC,Sheet1!S71_A5CapexCode,$AD:$AD)","v":0},{"$f":"SUMIFS(Sheet1!S71_AdjustmentBudAmnt,Sheet1!S71_SubMunicipalVoteNo,$AC:$AC,Sheet1!S71_A5CapexCode,$AD:$AD)","v":0},{"$f":"SUMIFS(Sheet1!S71_AdjustmentBudAmnt,Sheet1!S71_SubMunicipalVoteNo,$AC:$AC,Sheet1!S71_A5CapexCode,$AD:$AD)","v":0},0,{"$f":"SUMIFS(Sheet1!S71_ASBudgetAmount,Sheet1!S71_SubMunicipalVoteNo,$AC:$AC,Sheet1!S71_A5CapexCode,$AD:$AD)","v":0},{"$f":"SUMIFS(Sheet1!S71_OY1BudgetAmount,Sheet1!S71_SubMunicipalVoteNo,$AC:$AC,Sheet1!S71_A5CapexCode,$AD:$AD)","v":0},{"$f":"SUMIFS(Sheet1!S71_OY2BudgetAmount,Sheet1!S71_SubMunicipalVoteNo,$AC:$AC,Sheet1!S71_A5CapexCode,$AD:$AD)","v":0},null,null,null,null,null,null,null,null,null,null,null,null,null,null,null,null,85,"CE"]
["8.6 - [Name of sub-vote]",null,{"$f":"SUMIFS(Sheet1!S71_PPPYearAmount,Sheet1!S71_SubMunicipalVoteNo,$AC:$AC,Sheet1!S71_A5CapexCode,$AD:$AD)","v":0},{"$f":"SUMIFS(Sheet1!S71_PPYearAmount,Sheet1!S71_SubMunicipalVoteNo,$AC:$AC,Sheet1!S71_A5CapexCode,$AD:$AD)","v":0},{"$f":"SUMIFS(Sheet1!S71_PYearAmount,Sheet1!S71_SubMunicipalVoteNo,$AC:$AC,Sheet1!S71_A5CapexCode,$AD:$AD)","v":0},{"$f":"SUMIFS(Sheet1!S71_OriginalBudAmnt,Sheet1!S71_SubMunicipalVoteNo,$AC:$AC,Sheet1!S71_A5CapexCode,$AD:$AD)","v":0},{"$f":"SUMIFS(Sheet1!S71_AdjustmentBudAmnt,Sheet1!S71_SubMunicipalVoteNo,$AC:$AC,Sheet1!S71_A5CapexCode,$AD:$AD)","v":0},{"$f":"SUMIFS(Sheet1!S71_AdjustmentBudAmnt,Sheet1!S71_SubMunicipalVoteNo,$AC:$AC,Sheet1!S71_A5CapexCode,$AD:$AD)","v":0},0,{"$f":"SUMIFS(Sheet1!S71_ASBudgetAmount,Sheet1!S71_SubMunicipalVoteNo,$AC:$AC,Sheet1!S71_A5CapexCode,$AD:$AD)","v":0},{"$f":"SUMIFS(Sheet1!S71_OY1BudgetAmount,Sheet1!S71_SubMunicipalVoteNo,$AC:$AC,Sheet1!S71_A5CapexCode,$AD:$AD)","v":0},{"$f":"SUMIFS(Sheet1!S71_OY2BudgetAmount,Sheet1!S71_SubMunicipalVoteNo,$AC:$AC,Sheet1!S71_A5CapexCode,$AD:$AD)","v":0},null,null,null,null,null,null,null,null,null,null,null,null,null,null,null,null,86,"CE"]
["8.7 - [Name of sub-vote]",null,{"$f":"SUMIFS(Sheet1!S71_PPPYearAmount,Sheet1!S71_SubMunicipalVoteNo,$AC:$AC,Sheet1!S71_A5CapexCode,$AD:$AD)","v":0},{"$f":"SUMIFS(Sheet1!S71_PPYearAmount,Sheet1!S71_SubMunicipalVoteNo,$AC:$AC,Sheet1!S71_A5CapexCode,$AD:$AD)","v":0},{"$f":"SUMIFS(Sheet1!S71_PYearAmount,Sheet1!S71_SubMunicipalVoteNo,$AC:$AC,Sheet1!S71_A5CapexCode,$AD:$AD)","v":0},{"$f":"SUMIFS(Sheet1!S71_OriginalBudAmnt,Sheet1!S71_SubMunicipalVoteNo,$AC:$AC,Sheet1!S71_A5CapexCode,$AD:$AD)","v":0},{"$f":"SUMIFS(Sheet1!S71_AdjustmentBudAmnt,Sheet1!S71_SubMunicipalVoteNo,$AC:$AC,Sheet1!S71_A5CapexCode,$AD:$AD)","v":0},{"$f":"SUMIFS(Sheet1!S71_AdjustmentBudAmnt,Sheet1!S71_SubMunicipalVoteNo,$AC:$AC,Sheet1!S71_A5CapexCode,$AD:$AD)","v":0},0,{"$f":"SUMIFS(Sheet1!S71_ASBudgetAmount,Sheet1!S71_SubMunicipalVoteNo,$AC:$AC,Sheet1!S71_A5CapexCode,$AD:$AD)","v":0},{"$f":"SUMIFS(Sheet1!S71_OY1BudgetAmount,Sheet1!S71_SubMunicipalVoteNo,$AC:$AC,Sheet1!S71_A5CapexCode,$AD:$AD)","v":0},{"$f":"SUMIFS(Sheet1!S71_OY2BudgetAmount,Sheet1!S71_SubMunicipalVoteNo,$AC:$AC,Sheet1!S71_A5CapexCode,$AD:$AD)","v":0},null,null,null,null,null,null,null,null,null,null,null,null,null,null,null,null,87,"CE"]
["8.8 - [Name of sub-vote]",null,{"$f":"SUMIFS(Sheet1!S71_PPPYearAmount,Sheet1!S71_SubMunicipalVoteNo,$AC:$AC,Sheet1!S71_A5CapexCode,$AD:$AD)","v":0},{"$f":"SUMIFS(Sheet1!S71_PPYearAmount,Sheet1!S71_SubMunicipalVoteNo,$AC:$AC,Sheet1!S71_A5CapexCode,$AD:$AD)","v":0},{"$f":"SUMIFS(Sheet1!S71_PYearAmount,Sheet1!S71_SubMunicipalVoteNo,$AC:$AC,Sheet1!S71_A5CapexCode,$AD:$AD)","v":0},{"$f":"SUMIFS(Sheet1!S71_OriginalBudAmnt,Sheet1!S71_SubMunicipalVoteNo,$AC:$AC,Sheet1!S71_A5CapexCode,$AD:$AD)","v":0},{"$f":"SUMIFS(Sheet1!S71_AdjustmentBudAmnt,Sheet1!S71_SubMunicipalVoteNo,$AC:$AC,Sheet1!S71_A5CapexCode,$AD:$AD)","v":0},{"$f":"SUMIFS(Sheet1!S71_AdjustmentBudAmnt,Sheet1!S71_SubMunicipalVoteNo,$AC:$AC,Sheet1!S71_A5CapexCode,$AD:$AD)","v":0},0,{"$f":"SUMIFS(Sheet1!S71_ASBudgetAmount,Sheet1!S71_SubMunicipalVoteNo,$AC:$AC,Sheet1!S71_A5CapexCode,$AD:$AD)","v":0},{"$f":"SUMIFS(Sheet1!S71_OY1BudgetAmount,Sheet1!S71_SubMunicipalVoteNo,$AC:$AC,Sheet1!S71_A5CapexCode,$AD:$AD)","v":0},{"$f":"SUMIFS(Sheet1!S71_OY2BudgetAmount,Sheet1!S71_SubMunicipalVoteNo,$AC:$AC,Sheet1!S71_A5CapexCode,$AD:$AD)","v":0},null,null,null,null,null,null,null,null,null,null,null,null,null,null,null,null,88,"CE"]
["8.9 - [Name of sub-vote]",null,{"$f":"SUMIFS(Sheet1!S71_PPPYearAmount,Sheet1!S71_SubMunicipalVoteNo,$AC:$AC,Sheet1!S71_A5CapexCode,$AD:$AD)","v":0},{"$f":"SUMIFS(Sheet1!S71_PPYearAmount,Sheet1!S71_SubMunicipalVoteNo,$AC:$AC,Sheet1!S71_A5CapexCode,$AD:$AD)","v":0},{"$f":"SUMIFS(Sheet1!S71_PYearAmount,Sheet1!S71_SubMunicipalVoteNo,$AC:$AC,Sheet1!S71_A5CapexCode,$AD:$AD)","v":0},{"$f":"SUMIFS(Sheet1!S71_OriginalBudAmnt,Sheet1!S71_SubMunicipalVoteNo,$AC:$AC,Sheet1!S71_A5CapexCode,$AD:$AD)","v":0},{"$f":"SUMIFS(Sheet1!S71_AdjustmentBudAmnt,Sheet1!S71_SubMunicipalVoteNo,$AC:$AC,Sheet1!S71_A5CapexCode,$AD:$AD)","v":0},{"$f":"SUMIFS(Sheet1!S71_AdjustmentBudAmnt,Sheet1!S71_SubMunicipalVoteNo,$AC:$AC,Sheet1!S71_A5CapexCode,$AD:$AD)","v":0},0,{"$f":"SUMIFS(Sheet1!S71_ASBudgetAmount,Sheet1!S71_SubMunicipalVoteNo,$AC:$AC,Sheet1!S71_A5CapexCode,$AD:$AD)","v":0},{"$f":"SUMIFS(Sheet1!S71_OY1BudgetAmount,Sheet1!S71_SubMunicipalVoteNo,$AC:$AC,Sheet1!S71_A5CapexCode,$AD:$AD)","v":0},{"$f":"SUMIFS(Sheet1!S71_OY2BudgetAmount,Sheet1!S71_SubMunicipalVoteNo,$AC:$AC,Sheet1!S71_A5CapexCode,$AD:$AD)","v":0},null,null,null,null,null,null,null,null,null,null,null,null,null,null,null,null,89,"CE"]
["8.10 - [Name of sub-vote]",null,{"$f":"SUMIFS(Sheet1!S71_PPPYearAmount,Sheet1!S71_SubMunicipalVoteNo,$AC:$AC,Sheet1!S71_A5CapexCode,$AD:$AD)","v":0},{"$f":"SUMIFS(Sheet1!S71_PPYearAmount,Sheet1!S71_SubMunicipalVoteNo,$AC:$AC,Sheet1!S71_A5CapexCode,$AD:$AD)","v":0},{"$f":"SUMIFS(Sheet1!S71_PYearAmount,Sheet1!S71_SubMunicipalVoteNo,$AC:$AC,Sheet1!S71_A5CapexCode,$AD:$AD)","v":0},{"$f":"SUMIFS(Sheet1!S71_OriginalBudAmnt,Sheet1!S71_SubMunicipalVoteNo,$AC:$AC,Sheet1!S71_A5CapexCode,$AD:$AD)","v":0},{"$f":"SUMIFS(Sheet1!S71_AdjustmentBudAmnt,Sheet1!S71_SubMunicipalVoteNo,$AC:$AC,Sheet1!S71_A5CapexCode,$AD:$AD)","v":0},{"$f":"SUMIFS(Sheet1!S71_AdjustmentBudAmnt,Sheet1!S71_SubMunicipalVoteNo,$AC:$AC,Sheet1!S71_A5CapexCode,$AD:$AD)","v":0},0,{"$f":"SUMIFS(Sheet1!S71_ASBudgetAmount,Sheet1!S71_SubMunicipalVoteNo,$AC:$AC,Sheet1!S71_A5CapexCode,$AD:$AD)","v":0},{"$f":"SUMIFS(Sheet1!S71_OY1BudgetAmount,Sheet1!S71_SubMunicipalVoteNo,$AC:$AC,Sheet1!S71_A5CapexCode,$AD:$AD)","v":0},{"$f":"SUMIFS(Sheet1!S71_OY2BudgetAmount,Sheet1!S71_SubMunicipalVoteNo,$AC:$AC,Sheet1!S71_A5CapexCode,$AD:$AD)","v":0},null,null,null,null,null,null,null,null,null,null,null,null,null,null,null,null,810,"CE"]
["Vote 9 - Waste Management",null,{"$f":"SUM(C264:C273)","v":8470229},8470229,10146189,250000,350000,350000,350000,2000000,2100000,2200000]
["9.1 - [Name of sub-vote]",null,{"$f":"SUMIFS(Sheet1!S71_PPPYearAmount,Sheet1!S71_SubMunicipalVoteNo,$AC:$AC,Sheet1!S71_A5CapexCode,$AD:$AD)","v":0},{"$f":"SUMIFS(Sheet1!S71_PPYearAmount,Sheet1!S71_SubMunicipalVoteNo,$AC:$AC,Sheet1!S71_A5CapexCode,$AD:$AD)","v":0},{"$f":"SUMIFS(Sheet1!S71_PYearAmount,Sheet1!S71_SubMunicipalVoteNo,$AC:$AC,Sheet1!S71_A5CapexCode,$AD:$AD)","v":0},{"$f":"SUMIFS(Sheet1!S71_OriginalBudAmnt,Sheet1!S71_SubMunicipalVoteNo,$AC:$AC,Sheet1!S71_A5CapexCode,$AD:$AD)","v":0},{"$f":"SUMIFS(Sheet1!S71_AdjustmentBudAmnt,Sheet1!S71_SubMunicipalVoteNo,$AC:$AC,Sheet1!S71_A5CapexCode,$AD:$AD)","v":0},{"$f":"SUMIFS(Sheet1!S71_AdjustmentBudAmnt,Sheet1!S71_SubMunicipalVoteNo,$AC:$AC,Sheet1!S71_A5CapexCode,$AD:$AD)","v":0},0,{"$f":"SUMIFS(Sheet1!S71_ASBudgetAmount,Sheet1!S71_SubMunicipalVoteNo,$AC:$AC,Sheet1!S71_A5CapexCode,$AD:$AD)","v":0},{"$f":"SUMIFS(Sheet1!S71_OY1BudgetAmount,Sheet1!S71_SubMunicipalVoteNo,$AC:$AC,Sheet1!S71_A5CapexCode,$AD:$AD)","v":0},{"$f":"SUMIFS(Sheet1!S71_OY2BudgetAmount,Sheet1!S71_SubMunicipalVoteNo,$AC:$AC,Sheet1!S71_A5CapexCode,$AD:$AD)","v":0},null,null,null,null,null,null,null,null,null,null,null,null,null,null,null,null,91,"CE"]
["9.2 - Solid Waste Disposal (Landfill Sites)",null,{"$f":"SUMIFS(Sheet1!S71_PPPYearAmount,Sheet1!S71_SubMunicipalVoteNo,$AC:$AC,Sheet1!S71_A5CapexCode,$AD:$AD)","v":8470229},{"$f":"SUMIFS(Sheet1!S71_PPYearAmount,Sheet1!S71_SubMunicipalVoteNo,$AC:$AC,Sheet1!S71_A5CapexCode,$AD:$AD)","v":8470229},{"$f":"SUMIFS(Sheet1!S71_PYearAmount,Sheet1!S71_SubMunicipalVoteNo,$AC:$AC,Sheet1!S71_A5CapexCode,$AD:$AD)","v":10146189},{"$f":"SUMIFS(Sheet1!S71_OriginalBudAmnt,Sheet1!S71_SubMunicipalVoteNo,$AC:$AC,Sheet1!S71_A5CapexCode,$AD:$AD)","v":0},{"$f":"SUMIFS(Sheet1!S71_AdjustmentBudAmnt,Sheet1!S71_SubMunicipalVoteNo,$AC:$AC,Sheet1!S71_A5CapexCode,$AD:$AD)","v":0},{"$f":"SUMIFS(Sheet1!S71_AdjustmentBudAmnt,Sheet1!S71_SubMunicipalVoteNo,$AC:$AC,Sheet1!S71_A5CapexCode,$AD:$AD)","v":0},0,{"$f":"SUMIFS(Sheet1!S71_ASBudgetAmount,Sheet1!S71_SubMunicipalVoteNo,$AC:$AC,Sheet1!S71_A5CapexCode,$AD:$AD)","v":0},{"$f":"SUMIFS(Sheet1!S71_OY1BudgetAmount,Sheet1!S71_SubMunicipalVoteNo,$AC:$AC,Sheet1!S71_A5CapexCode,$AD:$AD)","v":0},{"$f":"SUMIFS(Sheet1!S71_OY2BudgetAmount,Sheet1!S71_SubMunicipalVoteNo,$AC:$AC,Sheet1!S71_A5CapexCode,$AD:$AD)","v":0},null,null,null,null,null,null,null,null,null,null,null,null,null,null,null,null,92,"CE"]
["9.3 - Solid Waste Removal",null,{"$f":"SUMIFS(Sheet1!S71_PPPYearAmount,Sheet1!S71_SubMunicipalVoteNo,$AC:$AC,Sheet1!S71_A5CapexCode,$AD:$AD)","v":0},{"$f":"SUMIFS(Sheet1!S71_PPYearAmount,Sheet1!S71_SubMunicipalVoteNo,$AC:$AC,Sheet1!S71_A5CapexCode,$AD:$AD)","v":0},{"$f":"SUMIFS(Sheet1!S71_PYearAmount,Sheet1!S71_SubMunicipalVoteNo,$AC:$AC,Sheet1!S71_A5CapexCode,$AD:$AD)","v":0},{"$f":"SUMIFS(Sheet1!S71_OriginalBudAmnt,Sheet1!S71_SubMunicipalVoteNo,$AC:$AC,Sheet1!S71_A5CapexCode,$AD:$AD)","v":250000},{"$f":"SUMIFS(Sheet1!S71_AdjustmentBudAmnt,Sheet1!S71_SubMunicipalVoteNo,$AC:$AC,Sheet1!S71_A5CapexCode,$AD:$AD)","v":350000},{"$f":"SUMIFS(Sheet1!S71_AdjustmentBudAmnt,Sheet1!S71_SubMunicipalVoteNo,$AC:$AC,Sheet1!S71_A5CapexCode,$AD:$AD)","v":350000},350000,{"$f":"SUMIFS(Sheet1!S71_ASBudgetAmount,Sheet1!S71_SubMunicipalVoteNo,$AC:$AC,Sheet1!S71_A5CapexCode,$AD:$AD)","v":2000000},{"$f":"SUMIFS(Sheet1!S71_OY1BudgetAmount,Sheet1!S71_SubMunicipalVoteNo,$AC:$AC,Sheet1!S71_A5CapexCode,$AD:$AD)","v":2100000},{"$f":"SUMIFS(Sheet1!S71_OY2BudgetAmount,Sheet1!S71_SubMunicipalVoteNo,$AC:$AC,Sheet1!S71_A5CapexCode,$AD:$AD)","v":2200000},null,null,null,null,null,null,null,null,null,null,null,null,null,null,null,null,93,"CE"]
["9.4 - [Name of sub-vote]",null,{"$f":"SUMIFS(Sheet1!S71_PPPYearAmount,Sheet1!S71_SubMunicipalVoteNo,$AC:$AC,Sheet1!S71_A5CapexCode,$AD:$AD)","v":0},{"$f":"SUMIFS(Sheet1!S71_PPYearAmount,Sheet1!S71_SubMunicipalVoteNo,$AC:$AC,Sheet1!S71_A5CapexCode,$AD:$AD)","v":0},{"$f":"SUMIFS(Sheet1!S71_PYearAmount,Sheet1!S71_SubMunicipalVoteNo,$AC:$AC,Sheet1!S71_A5CapexCode,$AD:$AD)","v":0},{"$f":"SUMIFS(Sheet1!S71_OriginalBudAmnt,Sheet1!S71_SubMunicipalVoteNo,$AC:$AC,Sheet1!S71_A5CapexCode,$AD:$AD)","v":0},{"$f":"SUMIFS(Sheet1!S71_AdjustmentBudAmnt,Sheet1!S71_SubMunicipalVoteNo,$AC:$AC,Sheet1!S71_A5CapexCode,$AD:$AD)","v":0},{"$f":"SUMIFS(Sheet1!S71_AdjustmentBudAmnt,Sheet1!S71_SubMunicipalVoteNo,$AC:$AC,Sheet1!S71_A5CapexCode,$AD:$AD)","v":0},0,{"$f":"SUMIFS(Sheet1!S71_ASBudgetAmount,Sheet1!S71_SubMunicipalVoteNo,$AC:$AC,Sheet1!S71_A5CapexCode,$AD:$AD)","v":0},{"$f":"SUMIFS(Sheet1!S71_OY1BudgetAmount,Sheet1!S71_SubMunicipalVoteNo,$AC:$AC,Sheet1!S71_A5CapexCode,$AD:$AD)","v":0},{"$f":"SUMIFS(Sheet1!S71_OY2BudgetAmount,Sheet1!S71_SubMunicipalVoteNo,$AC:$AC,Sheet1!S71_A5CapexCode,$AD:$AD)","v":0},null,null,null,null,null,null,null,null,null,null,null,null,null,null,null,null,94,"CE"]
["9.5 - [Name of sub-vote]",null,{"$f":"SUMIFS(Sheet1!S71_PPPYearAmount,Sheet1!S71_SubMunicipalVoteNo,$AC:$AC,Sheet1!S71_A5CapexCode,$AD:$AD)","v":0},{"$f":"SUMIFS(Sheet1!S71_PPYearAmount,Sheet1!S71_SubMunicipalVoteNo,$AC:$AC,Sheet1!S71_A5CapexCode,$AD:$AD)","v":0},{"$f":"SUMIFS(Sheet1!S71_PYearAmount,Sheet1!S71_SubMunicipalVoteNo,$AC:$AC,Sheet1!S71_A5CapexCode,$AD:$AD)","v":0},{"$f":"SUMIFS(Sheet1!S71_OriginalBudAmnt,Sheet1!S71_SubMunicipalVoteNo,$AC:$AC,Sheet1!S71_A5CapexCode,$AD:$AD)","v":0},{"$f":"SUMIFS(Sheet1!S71_AdjustmentBudAmnt,Sheet1!S71_SubMunicipalVoteNo,$AC:$AC,Sheet1!S71_A5CapexCode,$AD:$AD)","v":0},{"$f":"SUMIFS(Sheet1!S71_AdjustmentBudAmnt,Sheet1!S71_SubMunicipalVoteNo,$AC:$AC,Sheet1!S71_A5CapexCode,$AD:$AD)","v":0},0,{"$f":"SUMIFS(Sheet1!S71_ASBudgetAmount,Sheet1!S71_SubMunicipalVoteNo,$AC:$AC,Sheet1!S71_A5CapexCode,$AD:$AD)","v":0},{"$f":"SUMIFS(Sheet1!S71_OY1BudgetAmount,Sheet1!S71_SubMunicipalVoteNo,$AC:$AC,Sheet1!S71_A5CapexCode,$AD:$AD)","v":0},{"$f":"SUMIFS(Sheet1!S71_OY2BudgetAmount,Sheet1!S71_SubMunicipalVoteNo,$AC:$AC,Sheet1!S71_A5CapexCode,$AD:$AD)","v":0},null,null,null,null,null,null,null,null,null,null,null,null,null,null,null,null,95,"CE"]
["9.6 - [Name of sub-vote]",null,{"$f":"SUMIFS(Sheet1!S71_PPPYearAmount,Sheet1!S71_SubMunicipalVoteNo,$AC:$AC,Sheet1!S71_A5CapexCode,$AD:$AD)","v":0},{"$f":"SUMIFS(Sheet1!S71_PPYearAmount,Sheet1!S71_SubMunicipalVoteNo,$AC:$AC,Sheet1!S71_A5CapexCode,$AD:$AD)","v":0},{"$f":"SUMIFS(Sheet1!S71_PYearAmount,Sheet1!S71_SubMunicipalVoteNo,$AC:$AC,Sheet1!S71_A5CapexCode,$AD:$AD)","v":0},{"$f":"SUMIFS(Sheet1!S71_OriginalBudAmnt,Sheet1!S71_SubMunicipalVoteNo,$AC:$AC,Sheet1!S71_A5CapexCode,$AD:$AD)","v":0},{"$f":"SUMIFS(Sheet1!S71_AdjustmentBudAmnt,Sheet1!S71_SubMunicipalVoteNo,$AC:$AC,Sheet1!S71_A5CapexCode,$AD:$AD)","v":0},{"$f":"SUMIFS(Sheet1!S71_AdjustmentBudAmnt,Sheet1!S71_SubMunicipalVoteNo,$AC:$AC,Sheet1!S71_A5CapexCode,$AD:$AD)","v":0},0,{"$f":"SUMIFS(Sheet1!S71_ASBudgetAmount,Sheet1!S71_SubMunicipalVoteNo,$AC:$AC,Sheet1!S71_A5CapexCode,$AD:$AD)","v":0},{"$f":"SUMIFS(Sheet1!S71_OY1BudgetAmount,Sheet1!S71_SubMunicipalVoteNo,$AC:$AC,Sheet1!S71_A5CapexCode,$AD:$AD)","v":0},{"$f":"SUMIFS(Sheet1!S71_OY2BudgetAmount,Sheet1!S71_SubMunicipalVoteNo,$AC:$AC,Sheet1!S71_A5CapexCode,$AD:$AD)","v":0},null,null,null,null,null,null,null,null,null,null,null,null,null,null,null,null,96,"CE"]
["9.7 - [Name of sub-vote]",null,{"$f":"SUMIFS(Sheet1!S71_PPPYearAmount,Sheet1!S71_SubMunicipalVoteNo,$AC:$AC,Sheet1!S71_A5CapexCode,$AD:$AD)","v":0},{"$f":"SUMIFS(Sheet1!S71_PPYearAmount,Sheet1!S71_SubMunicipalVoteNo,$AC:$AC,Sheet1!S71_A5CapexCode,$AD:$AD)","v":0},{"$f":"SUMIFS(Sheet1!S71_PYearAmount,Sheet1!S71_SubMunicipalVoteNo,$AC:$AC,Sheet1!S71_A5CapexCode,$AD:$AD)","v":0},{"$f":"SUMIFS(Sheet1!S71_OriginalBudAmnt,Sheet1!S71_SubMunicipalVoteNo,$AC:$AC,Sheet1!S71_A5CapexCode,$AD:$AD)","v":0},{"$f":"SUMIFS(Sheet1!S71_AdjustmentBudAmnt,Sheet1!S71_SubMunicipalVoteNo,$AC:$AC,Sheet1!S71_A5CapexCode,$AD:$AD)","v":0},{"$f":"SUMIFS(Sheet1!S71_AdjustmentBudAmnt,Sheet1!S71_SubMunicipalVoteNo,$AC:$AC,Sheet1!S71_A5CapexCode,$AD:$AD)","v":0},0,{"$f":"SUMIFS(Sheet1!S71_ASBudgetAmount,Sheet1!S71_SubMunicipalVoteNo,$AC:$AC,Sheet1!S71_A5CapexCode,$AD:$AD)","v":0},{"$f":"SUMIFS(Sheet1!S71_OY1BudgetAmount,Sheet1!S71_SubMunicipalVoteNo,$AC:$AC,Sheet1!S71_A5CapexCode,$AD:$AD)","v":0},{"$f":"SUMIFS(Sheet1!S71_OY2BudgetAmount,Sheet1!S71_SubMunicipalVoteNo,$AC:$AC,Sheet1!S71_A5CapexCode,$AD:$AD)","v":0},null,null,null,null,null,null,null,null,null,null,null,null,null,null,null,null,97,"CE"]
["9.8 - [Name of sub-vote]",null,{"$f":"SUMIFS(Sheet1!S71_PPPYearAmount,Sheet1!S71_SubMunicipalVoteNo,$AC:$AC,Sheet1!S71_A5CapexCode,$AD:$AD)","v":0},{"$f":"SUMIFS(Sheet1!S71_PPYearAmount,Sheet1!S71_SubMunicipalVoteNo,$AC:$AC,Sheet1!S71_A5CapexCode,$AD:$AD)","v":0},{"$f":"SUMIFS(Sheet1!S71_PYearAmount,Sheet1!S71_SubMunicipalVoteNo,$AC:$AC,Sheet1!S71_A5CapexCode,$AD:$AD)","v":0},{"$f":"SUMIFS(Sheet1!S71_OriginalBudAmnt,Sheet1!S71_SubMunicipalVoteNo,$AC:$AC,Sheet1!S71_A5CapexCode,$AD:$AD)","v":0},{"$f":"SUMIFS(Sheet1!S71_AdjustmentBudAmnt,Sheet1!S71_SubMunicipalVoteNo,$AC:$AC,Sheet1!S71_A5CapexCode,$AD:$AD)","v":0},{"$f":"SUMIFS(Sheet1!S71_AdjustmentBudAmnt,Sheet1!S71_SubMunicipalVoteNo,$AC:$AC,Sheet1!S71_A5CapexCode,$AD:$AD)","v":0},0,{"$f":"SUMIFS(Sheet1!S71_ASBudgetAmount,Sheet1!S71_SubMunicipalVoteNo,$AC:$AC,Sheet1!S71_A5CapexCode,$AD:$AD)","v":0},{"$f":"SUMIFS(Sheet1!S71_OY1BudgetAmount,Sheet1!S71_SubMunicipalVoteNo,$AC:$AC,Sheet1!S71_A5CapexCode,$AD:$AD)","v":0},{"$f":"SUMIFS(Sheet1!S71_OY2BudgetAmount,Sheet1!S71_SubMunicipalVoteNo,$AC:$AC,Sheet1!S71_A5CapexCode,$AD:$AD)","v":0},null,null,null,null,null,null,null,null,null,null,null,null,null,null,null,null,98,"CE"]
["9.9 - [Name of sub-vote]",null,{"$f":"SUMIFS(Sheet1!S71_PPPYearAmount,Sheet1!S71_SubMunicipalVoteNo,$AC:$AC,Sheet1!S71_A5CapexCode,$AD:$AD)","v":0},{"$f":"SUMIFS(Sheet1!S71_PPYearAmount,Sheet1!S71_SubMunicipalVoteNo,$AC:$AC,Sheet1!S71_A5CapexCode,$AD:$AD)","v":0},{"$f":"SUMIFS(Sheet1!S71_PYearAmount,Sheet1!S71_SubMunicipalVoteNo,$AC:$AC,Sheet1!S71_A5CapexCode,$AD:$AD)","v":0},{"$f":"SUMIFS(Sheet1!S71_OriginalBudAmnt,Sheet1!S71_SubMunicipalVoteNo,$AC:$AC,Sheet1!S71_A5CapexCode,$AD:$AD)","v":0},{"$f":"SUMIFS(Sheet1!S71_AdjustmentBudAmnt,Sheet1!S71_SubMunicipalVoteNo,$AC:$AC,Sheet1!S71_A5CapexCode,$AD:$AD)","v":0},{"$f":"SUMIFS(Sheet1!S71_AdjustmentBudAmnt,Sheet1!S71_SubMunicipalVoteNo,$AC:$AC,Sheet1!S71_A5CapexCode,$AD:$AD)","v":0},0,{"$f":"SUMIFS(Sheet1!S71_ASBudgetAmount,Sheet1!S71_SubMunicipalVoteNo,$AC:$AC,Sheet1!S71_A5CapexCode,$AD:$AD)","v":0},{"$f":"SUMIFS(Sheet1!S71_OY1BudgetAmount,Sheet1!S71_SubMunicipalVoteNo,$AC:$AC,Sheet1!S71_A5CapexCode,$AD:$AD)","v":0},{"$f":"SUMIFS(Sheet1!S71_OY2BudgetAmount,Sheet1!S71_SubMunicipalVoteNo,$AC:$AC,Sheet1!S71_A5CapexCode,$AD:$AD)","v":0},null,null,null,null,null,null,null,null,null,null,null,null,null,null,null,null,99,"CE"]
["9.10 - [Name of sub-vote]",null,{"$f":"SUMIFS(Sheet1!S71_PPPYearAmount,Sheet1!S71_SubMunicipalVoteNo,$AC:$AC,Sheet1!S71_A5CapexCode,$AD:$AD)","v":0},{"$f":"SUMIFS(Sheet1!S71_PPYearAmount,Sheet1!S71_SubMunicipalVoteNo,$AC:$AC,Sheet1!S71_A5CapexCode,$AD:$AD)","v":0},{"$f":"SUMIFS(Sheet1!S71_PYearAmount,Sheet1!S71_SubMunicipalVoteNo,$AC:$AC,Sheet1!S71_A5CapexCode,$AD:$AD)","v":0},{"$f":"SUMIFS(Sheet1!S71_OriginalBudAmnt,Sheet1!S71_SubMunicipalVoteNo,$AC:$AC,Sheet1!S71_A5CapexCode,$AD:$AD)","v":0},{"$f":"SUMIFS(Sheet1!S71_AdjustmentBudAmnt,Sheet1!S71_SubMunicipalVoteNo,$AC:$AC,Sheet1!S71_A5CapexCode,$AD:$AD)","v":0},{"$f":"SUMIFS(Sheet1!S71_AdjustmentBudAmnt,Sheet1!S71_SubMunicipalVoteNo,$AC:$AC,Sheet1!S71_A5CapexCode,$AD:$AD)","v":0},0,{"$f":"SUMIFS(Sheet1!S71_ASBudgetAmount,Sheet1!S71_SubMunicipalVoteNo,$AC:$AC,Sheet1!S71_A5CapexCode,$AD:$AD)","v":0},{"$f":"SUMIFS(Sheet1!S71_OY1BudgetAmount,Sheet1!S71_SubMunicipalVoteNo,$AC:$AC,Sheet1!S71_A5CapexCode,$AD:$AD)","v":0},{"$f":"SUMIFS(Sheet1!S71_OY2BudgetAmount,Sheet1!S71_SubMunicipalVoteNo,$AC:$AC,Sheet1!S71_A5CapexCode,$AD:$AD)","v":0},null,null,null,null,null,null,null,null,null,null,null,null,null,null,null,null,910,"CE"]
["Vote 10 - Sports & Recreation",null,{"$f":"SUM(C275:C284)","v":48991504},13259362,18994263,31957650,22280759,22280759,22280759,19113679,13500000,0]
["10.1 - [Name of sub-vote]",null,{"$f":"SUMIFS(Sheet1!S71_PPPYearAmount,Sheet1!S71_SubMunicipalVoteNo,$AC:$AC,Sheet1!S71_A5CapexCode,$AD:$AD)","v":9082915},{"$f":"SUMIFS(Sheet1!S71_PPYearAmount,Sheet1!S71_SubMunicipalVoteNo,$AC:$AC,Sheet1!S71_A5CapexCode,$AD:$AD)","v":9082915},{"$f":"SUMIFS(Sheet1!S71_PYearAmount,Sheet1!S71_SubMunicipalVoteNo,$AC:$AC,Sheet1!S71_A5CapexCode,$AD:$AD)","v":9713328},{"$f":"SUMIFS(Sheet1!S71_OriginalBudAmnt,Sheet1!S71_SubMunicipalVoteNo,$AC:$AC,Sheet1!S71_A5CapexCode,$AD:$AD)","v":3000000},{"$f":"SUMIFS(Sheet1!S71_AdjustmentBudAmnt,Sheet1!S71_SubMunicipalVoteNo,$AC:$AC,Sheet1!S71_A5CapexCode,$AD:$AD)","v":3454255},{"$f":"SUMIFS(Sheet1!S71_AdjustmentBudAmnt,Sheet1!S71_SubMunicipalVoteNo,$AC:$AC,Sheet1!S71_A5CapexCode,$AD:$AD)","v":3454255},{"$f":"H275","v":3454255},{"$f":"SUMIFS(Sheet1!S71_ASBudgetAmount,Sheet1!S71_SubMunicipalVoteNo,$AC:$AC,Sheet1!S71_A5CapexCode,$AD:$AD)","v":4000000},{"$f":"SUMIFS(Sheet1!S71_OY1BudgetAmount,Sheet1!S71_SubMunicipalVoteNo,$AC:$AC,Sheet1!S71_A5CapexCode,$AD:$AD)","v":0},{"$f":"SUMIFS(Sheet1!S71_OY2BudgetAmount,Sheet1!S71_SubMunicipalVoteNo,$AC:$AC,Sheet1!S71_A5CapexCode,$AD:$AD)","v":0},null,null,null,null,null,null,null,null,null,null,null,null,null,null,null,null,101,"CE"]
["10.2 - Sports Grounds and Stadiums",null,{"$f":"SUMIFS(Sheet1!S71_PPPYearAmount,Sheet1!S71_SubMunicipalVoteNo,$AC:$AC,Sheet1!S71_A5CapexCode,$AD:$AD)","v":39908589},{"$f":"SUMIFS(Sheet1!S71_PPYearAmount,Sheet1!S71_SubMunicipalVoteNo,$AC:$AC,Sheet1!S71_A5CapexCode,$AD:$AD)","v":4176447},{"$f":"SUMIFS(Sheet1!S71_PYearAmount,Sheet1!S71_SubMunicipalVoteNo,$AC:$AC,Sheet1!S71_A5CapexCode,$AD:$AD)","v":9280935},{"$f":"SUMIFS(Sheet1!S71_OriginalBudAmnt,Sheet1!S71_SubMunicipalVoteNo,$AC:$AC,Sheet1!S71_A5CapexCode,$AD:$AD)","v":28957650},{"$f":"SUMIFS(Sheet1!S71_AdjustmentBudAmnt,Sheet1!S71_SubMunicipalVoteNo,$AC:$AC,Sheet1!S71_A5CapexCode,$AD:$AD)","v":18826504},{"$f":"SUMIFS(Sheet1!S71_AdjustmentBudAmnt,Sheet1!S71_SubMunicipalVoteNo,$AC:$AC,Sheet1!S71_A5CapexCode,$AD:$AD)","v":18826504},18826504,{"$f":"SUMIFS(Sheet1!S71_ASBudgetAmount,Sheet1!S71_SubMunicipalVoteNo,$AC:$AC,Sheet1!S71_A5CapexCode,$AD:$AD)","v":15113679},{"$f":"SUMIFS(Sheet1!S71_OY1BudgetAmount,Sheet1!S71_SubMunicipalVoteNo,$AC:$AC,Sheet1!S71_A5CapexCode,$AD:$AD)","v":13500000},{"$f":"SUMIFS(Sheet1!S71_OY2BudgetAmount,Sheet1!S71_SubMunicipalVoteNo,$AC:$AC,Sheet1!S71_A5CapexCode,$AD:$AD)","v":0},null,null,null,null,null,null,null,null,null,null,null,null,null,null,null,null,102,"CE"]
["10.3 - [Name of sub-vote]",null,{"$f":"SUMIFS(Sheet1!S71_PPPYearAmount,Sheet1!S71_SubMunicipalVoteNo,$AC:$AC,Sheet1!S71_A5CapexCode,$AD:$AD)","v":0},{"$f":"SUMIFS(Sheet1!S71_PPYearAmount,Sheet1!S71_SubMunicipalVoteNo,$AC:$AC,Sheet1!S71_A5CapexCode,$AD:$AD)","v":0},{"$f":"SUMIFS(Sheet1!S71_PYearAmount,Sheet1!S71_SubMunicipalVoteNo,$AC:$AC,Sheet1!S71_A5CapexCode,$AD:$AD)","v":0},{"$f":"SUMIFS(Sheet1!S71_OriginalBudAmnt,Sheet1!S71_SubMunicipalVoteNo,$AC:$AC,Sheet1!S71_A5CapexCode,$AD:$AD)","v":0},{"$f":"SUMIFS(Sheet1!S71_AdjustmentBudAmnt,Sheet1!S71_SubMunicipalVoteNo,$AC:$AC,Sheet1!S71_A5CapexCode,$AD:$AD)","v":0},{"$f":"SUMIFS(Sheet1!S71_AdjustmentBudAmnt,Sheet1!S71_SubMunicipalVoteNo,$AC:$AC,Sheet1!S71_A5CapexCode,$AD:$AD)","v":0},0,{"$f":"SUMIFS(Sheet1!S71_ASBudgetAmount,Sheet1!S71_SubMunicipalVoteNo,$AC:$AC,Sheet1!S71_A5CapexCode,$AD:$AD)","v":0},{"$f":"SUMIFS(Sheet1!S71_OY1BudgetAmount,Sheet1!S71_SubMunicipalVoteNo,$AC:$AC,Sheet1!S71_A5CapexCode,$AD:$AD)","v":0},{"$f":"SUMIFS(Sheet1!S71_OY2BudgetAmount,Sheet1!S71_SubMunicipalVoteNo,$AC:$AC,Sheet1!S71_A5CapexCode,$AD:$AD)","v":0},null,null,null,null,null,null,null,null,null,null,null,null,null,null,null,null,103,"CE"]
["10.4 - [Name of sub-vote]",null,{"$f":"SUMIFS(Sheet1!S71_PPPYearAmount,Sheet1!S71_SubMunicipalVoteNo,$AC:$AC,Sheet1!S71_A5CapexCode,$AD:$AD)","v":0},{"$f":"SUMIFS(Sheet1!S71_PPYearAmount,Sheet1!S71_SubMunicipalVoteNo,$AC:$AC,Sheet1!S71_A5CapexCode,$AD:$AD)","v":0},{"$f":"SUMIFS(Sheet1!S71_PYearAmount,Sheet1!S71_SubMunicipalVoteNo,$AC:$AC,Sheet1!S71_A5CapexCode,$AD:$AD)","v":0},{"$f":"SUMIFS(Sheet1!S71_OriginalBudAmnt,Sheet1!S71_SubMunicipalVoteNo,$AC:$AC,Sheet1!S71_A5CapexCode,$AD:$AD)","v":0},{"$f":"SUMIFS(Sheet1!S71_AdjustmentBudAmnt,Sheet1!S71_SubMunicipalVoteNo,$AC:$AC,Sheet1!S71_A5CapexCode,$AD:$AD)","v":0},{"$f":"SUMIFS(Sheet1!S71_AdjustmentBudAmnt,Sheet1!S71_SubMunicipalVoteNo,$AC:$AC,Sheet1!S71_A5CapexCode,$AD:$AD)","v":0},0,{"$f":"SUMIFS(Sheet1!S71_ASBudgetAmount,Sheet1!S71_SubMunicipalVoteNo,$AC:$AC,Sheet1!S71_A5CapexCode,$AD:$AD)","v":0},{"$f":"SUMIFS(Sheet1!S71_OY1BudgetAmount,Sheet1!S71_SubMunicipalVoteNo,$AC:$AC,Sheet1!S71_A5CapexCode,$AD:$AD)","v":0},{"$f":"SUMIFS(Sheet1!S71_OY2BudgetAmount,Sheet1!S71_SubMunicipalVoteNo,$AC:$AC,Sheet1!S71_A5CapexCode,$AD:$AD)","v":0},null,null,null,null,null,null,null,null,null,null,null,null,null,null,null,null,104,"CE"]
["10.5 - [Name of sub-vote]",null,{"$f":"SUMIFS(Sheet1!S71_PPPYearAmount,Sheet1!S71_SubMunicipalVoteNo,$AC:$AC,Sheet1!S71_A5CapexCode,$AD:$AD)","v":0},{"$f":"SUMIFS(Sheet1!S71_PPYearAmount,Sheet1!S71_SubMunicipalVoteNo,$AC:$AC,Sheet1!S71_A5CapexCode,$AD:$AD)","v":0},{"$f":"SUMIFS(Sheet1!S71_PYearAmount,Sheet1!S71_SubMunicipalVoteNo,$AC:$AC,Sheet1!S71_A5CapexCode,$AD:$AD)","v":0},{"$f":"SUMIFS(Sheet1!S71_OriginalBudAmnt,Sheet1!S71_SubMunicipalVoteNo,$AC:$AC,Sheet1!S71_A5CapexCode,$AD:$AD)","v":0},{"$f":"SUMIFS(Sheet1!S71_AdjustmentBudAmnt,Sheet1!S71_SubMunicipalVoteNo,$AC:$AC,Sheet1!S71_A5CapexCode,$AD:$AD)","v":0},{"$f":"SUMIFS(Sheet1!S71_AdjustmentBudAmnt,Sheet1!S71_SubMunicipalVoteNo,$AC:$AC,Sheet1!S71_A5CapexCode,$AD:$AD)","v":0},0,{"$f":"SUMIFS(Sheet1!S71_ASBudgetAmount,Sheet1!S71_SubMunicipalVoteNo,$AC:$AC,Sheet1!S71_A5CapexCode,$AD:$AD)","v":0},{"$f":"SUMIFS(Sheet1!S71_OY1BudgetAmount,Sheet1!S71_SubMunicipalVoteNo,$AC:$AC,Sheet1!S71_A5CapexCode,$AD:$AD)","v":0},{"$f":"SUMIFS(Sheet1!S71_OY2BudgetAmount,Sheet1!S71_SubMunicipalVoteNo,$AC:$AC,Sheet1!S71_A5CapexCode,$AD:$AD)","v":0},null,null,null,null,null,null,null,null,null,null,null,null,null,null,null,null,105,"CE"]
["10.6 - [Name of sub-vote]",null,{"$f":"SUMIFS(Sheet1!S71_PPPYearAmount,Sheet1!S71_SubMunicipalVoteNo,$AC:$AC,Sheet1!S71_A5CapexCode,$AD:$AD)","v":0},{"$f":"SUMIFS(Sheet1!S71_PPYearAmount,Sheet1!S71_SubMunicipalVoteNo,$AC:$AC,Sheet1!S71_A5CapexCode,$AD:$AD)","v":0},{"$f":"SUMIFS(Sheet1!S71_PYearAmount,Sheet1!S71_SubMunicipalVoteNo,$AC:$AC,Sheet1!S71_A5CapexCode,$AD:$AD)","v":0},{"$f":"SUMIFS(Sheet1!S71_OriginalBudAmnt,Sheet1!S71_SubMunicipalVoteNo,$AC:$AC,Sheet1!S71_A5CapexCode,$AD:$AD)","v":0},{"$f":"SUMIFS(Sheet1!S71_AdjustmentBudAmnt,Sheet1!S71_SubMunicipalVoteNo,$AC:$AC,Sheet1!S71_A5CapexCode,$AD:$AD)","v":0},{"$f":"SUMIFS(Sheet1!S71_AdjustmentBudAmnt,Sheet1!S71_SubMunicipalVoteNo,$AC:$AC,Sheet1!S71_A5CapexCode,$AD:$AD)","v":0},0,{"$f":"SUMIFS(Sheet1!S71_ASBudgetAmount,Sheet1!S71_SubMunicipalVoteNo,$AC:$AC,Sheet1!S71_A5CapexCode,$AD:$AD)","v":0},{"$f":"SUMIFS(Sheet1!S71_OY1BudgetAmount,Sheet1!S71_SubMunicipalVoteNo,$AC:$AC,Sheet1!S71_A5CapexCode,$AD:$AD)","v":0},{"$f":"SUMIFS(Sheet1!S71_OY2BudgetAmount,Sheet1!S71_SubMunicipalVoteNo,$AC:$AC,Sheet1!S71_A5CapexCode,$AD:$AD)","v":0},null,null,null,null,null,null,null,null,null,null,null,null,null,null,null,null,106,"CE"]
["10.7 - [Name of sub-vote]",null,{"$f":"SUMIFS(Sheet1!S71_PPPYearAmount,Sheet1!S71_SubMunicipalVoteNo,$AC:$AC,Sheet1!S71_A5CapexCode,$AD:$AD)","v":0},{"$f":"SUMIFS(Sheet1!S71_PPYearAmount,Sheet1!S71_SubMunicipalVoteNo,$AC:$AC,Sheet1!S71_A5CapexCode,$AD:$AD)","v":0},{"$f":"SUMIFS(Sheet1!S71_PYearAmount,Sheet1!S71_SubMunicipalVoteNo,$AC:$AC,Sheet1!S71_A5CapexCode,$AD:$AD)","v":0},{"$f":"SUMIFS(Sheet1!S71_OriginalBudAmnt,Sheet1!S71_SubMunicipalVoteNo,$AC:$AC,Sheet1!S71_A5CapexCode,$AD:$AD)","v":0},{"$f":"SUMIFS(Sheet1!S71_AdjustmentBudAmnt,Sheet1!S71_SubMunicipalVoteNo,$AC:$AC,Sheet1!S71_A5CapexCode,$AD:$AD)","v":0},{"$f":"SUMIFS(Sheet1!S71_AdjustmentBudAmnt,Sheet1!S71_SubMunicipalVoteNo,$AC:$AC,Sheet1!S71_A5CapexCode,$AD:$AD)","v":0},0,{"$f":"SUMIFS(Sheet1!S71_ASBudgetAmount,Sheet1!S71_SubMunicipalVoteNo,$AC:$AC,Sheet1!S71_A5CapexCode,$AD:$AD)","v":0},{"$f":"SUMIFS(Sheet1!S71_OY1BudgetAmount,Sheet1!S71_SubMunicipalVoteNo,$AC:$AC,Sheet1!S71_A5CapexCode,$AD:$AD)","v":0},{"$f":"SUMIFS(Sheet1!S71_OY2BudgetAmount,Sheet1!S71_SubMunicipalVoteNo,$AC:$AC,Sheet1!S71_A5CapexCode,$AD:$AD)","v":0},null,null,null,null,null,null,null,null,null,null,null,null,null,null,null,null,107,"CE"]
["10.8 - [Name of sub-vote]",null,{"$f":"SUMIFS(Sheet1!S71_PPPYearAmount,Sheet1!S71_SubMunicipalVoteNo,$AC:$AC,Sheet1!S71_A5CapexCode,$AD:$AD)","v":0},{"$f":"SUMIFS(Sheet1!S71_PPYearAmount,Sheet1!S71_SubMunicipalVoteNo,$AC:$AC,Sheet1!S71_A5CapexCode,$AD:$AD)","v":0},{"$f":"SUMIFS(Sheet1!S71_PYearAmount,Sheet1!S71_SubMunicipalVoteNo,$AC:$AC,Sheet1!S71_A5CapexCode,$AD:$AD)","v":0},{"$f":"SUMIFS(Sheet1!S71_OriginalBudAmnt,Sheet1!S71_SubMunicipalVoteNo,$AC:$AC,Sheet1!S71_A5CapexCode,$AD:$AD)","v":0},{"$f":"SUMIFS(Sheet1!S71_AdjustmentBudAmnt,Sheet1!S71_SubMunicipalVoteNo,$AC:$AC,Sheet1!S71_A5CapexCode,$AD:$AD)","v":0},{"$f":"SUMIFS(Sheet1!S71_AdjustmentBudAmnt,Sheet1!S71_SubMunicipalVoteNo,$AC:$AC,Sheet1!S71_A5CapexCode,$AD:$AD)","v":0},0,{"$f":"SUMIFS(Sheet1!S71_ASBudgetAmount,Sheet1!S71_SubMunicipalVoteNo,$AC:$AC,Sheet1!S71_A5CapexCode,$AD:$AD)","v":0},{"$f":"SUMIFS(Sheet1!S71_OY1BudgetAmount,Sheet1!S71_SubMunicipalVoteNo,$AC:$AC,Sheet1!S71_A5CapexCode,$AD:$AD)","v":0},{"$f":"SUMIFS(Sheet1!S71_OY2BudgetAmount,Sheet1!S71_SubMunicipalVoteNo,$AC:$AC,Sheet1!S71_A5CapexCode,$AD:$AD)","v":0},null,null,null,null,null,null,null,null,null,null,null,null,null,null,null,null,108,"CE"]
["10.9 - [Name of sub-vote]",null,{"$f":"SUMIFS(Sheet1!S71_PPPYearAmount,Sheet1!S71_SubMunicipalVoteNo,$AC:$AC,Sheet1!S71_A5CapexCode,$AD:$AD)","v":0},{"$f":"SUMIFS(Sheet1!S71_PPYearAmount,Sheet1!S71_SubMunicipalVoteNo,$AC:$AC,Sheet1!S71_A5CapexCode,$AD:$AD)","v":0},{"$f":"SUMIFS(Sheet1!S71_PYearAmount,Sheet1!S71_SubMunicipalVoteNo,$AC:$AC,Sheet1!S71_A5CapexCode,$AD:$AD)","v":0},{"$f":"SUMIFS(Sheet1!S71_OriginalBudAmnt,Sheet1!S71_SubMunicipalVoteNo,$AC:$AC,Sheet1!S71_A5CapexCode,$AD:$AD)","v":0},{"$f":"SUMIFS(Sheet1!S71_AdjustmentBudAmnt,Sheet1!S71_SubMunicipalVoteNo,$AC:$AC,Sheet1!S71_A5CapexCode,$AD:$AD)","v":0},{"$f":"SUMIFS(Sheet1!S71_AdjustmentBudAmnt,Sheet1!S71_SubMunicipalVoteNo,$AC:$AC,Sheet1!S71_A5CapexCode,$AD:$AD)","v":0},0,{"$f":"SUMIFS(Sheet1!S71_ASBudgetAmount,Sheet1!S71_SubMunicipalVoteNo,$AC:$AC,Sheet1!S71_A5CapexCode,$AD:$AD)","v":0},{"$f":"SUMIFS(Sheet1!S71_OY1BudgetAmount,Sheet1!S71_SubMunicipalVoteNo,$AC:$AC,Sheet1!S71_A5CapexCode,$AD:$AD)","v":0},{"$f":"SUMIFS(Sheet1!S71_OY2BudgetAmount,Sheet1!S71_SubMunicipalVoteNo,$AC:$AC,Sheet1!S71_A5CapexCode,$AD:$AD)","v":0},null,null,null,null,null,null,null,null,null,null,null,null,null,null,null,null,109,"CE"]
["10.10 - [Name of sub-vote]",null,{"$f":"SUMIFS(Sheet1!S71_PPPYearAmount,Sheet1!S71_SubMunicipalVoteNo,$AC:$AC,Sheet1!S71_A5CapexCode,$AD:$AD)","v":0},{"$f":"SUMIFS(Sheet1!S71_PPYearAmount,Sheet1!S71_SubMunicipalVoteNo,$AC:$AC,Sheet1!S71_A5CapexCode,$AD:$AD)","v":0},{"$f":"SUMIFS(Sheet1!S71_PYearAmount,Sheet1!S71_SubMunicipalVoteNo,$AC:$AC,Sheet1!S71_A5CapexCode,$AD:$AD)","v":0},{"$f":"SUMIFS(Sheet1!S71_OriginalBudAmnt,Sheet1!S71_SubMunicipalVoteNo,$AC:$AC,Sheet1!S71_A5CapexCode,$AD:$AD)","v":0},{"$f":"SUMIFS(Sheet1!S71_AdjustmentBudAmnt,Sheet1!S71_SubMunicipalVoteNo,$AC:$AC,Sheet1!S71_A5CapexCode,$AD:$AD)","v":0},{"$f":"SUMIFS(Sheet1!S71_AdjustmentBudAmnt,Sheet1!S71_SubMunicipalVoteNo,$AC:$AC,Sheet1!S71_A5CapexCode,$AD:$AD)","v":0},0,{"$f":"SUMIFS(Sheet1!S71_ASBudgetAmount,Sheet1!S71_SubMunicipalVoteNo,$AC:$AC,Sheet1!S71_A5CapexCode,$AD:$AD)","v":0},{"$f":"SUMIFS(Sheet1!S71_OY1BudgetAmount,Sheet1!S71_SubMunicipalVoteNo,$AC:$AC,Sheet1!S71_A5CapexCode,$AD:$AD)","v":0},{"$f":"SUMIFS(Sheet1!S71_OY2BudgetAmount,Sheet1!S71_SubMunicipalVoteNo,$AC:$AC,Sheet1!S71_A5CapexCode,$AD:$AD)","v":0},null,null,null,null,null,null,null,null,null,null,null,null,null,null,null,null,1010,"CE"]
["Vote 11 - Water Management",null,{"$f":"SUM(C286:C295)","v":0},0,0,0,0,0,0,0,0,0]
["11.1 - Water Distribution",null,{"$f":"SUMIFS(Sheet1!S71_PPPYearAmount,Sheet1!S71_SubMunicipalVoteNo,$AC:$AC,Sheet1!S71_A5CapexCode,$AD:$AD)","v":0},{"$f":"SUMIFS(Sheet1!S71_PPYearAmount,Sheet1!S71_SubMunicipalVoteNo,$AC:$AC,Sheet1!S71_A5CapexCode,$AD:$AD)","v":0},{"$f":"SUMIFS(Sheet1!S71_PYearAmount,Sheet1!S71_SubMunicipalVoteNo,$AC:$AC,Sheet1!S71_A5CapexCode,$AD:$AD)","v":0},{"$f":"SUMIFS(Sheet1!S71_OriginalBudAmnt,Sheet1!S71_SubMunicipalVoteNo,$AC:$AC,Sheet1!S71_A5CapexCode,$AD:$AD)","v":0},{"$f":"SUMIFS(Sheet1!S71_AdjustmentBudAmnt,Sheet1!S71_SubMunicipalVoteNo,$AC:$AC,Sheet1!S71_A5CapexCode,$AD:$AD)","v":0},{"$f":"SUMIFS(Sheet1!S71_AdjustmentBudAmnt,Sheet1!S71_SubMunicipalVoteNo,$AC:$AC,Sheet1!S71_A5CapexCode,$AD:$AD)","v":0},{"$f":"H286","v":0},{"$f":"SUMIFS(Sheet1!S71_ASBudgetAmount,Sheet1!S71_SubMunicipalVoteNo,$AC:$AC,Sheet1!S71_A5CapexCode,$AD:$AD)","v":0},{"$f":"SUMIFS(Sheet1!S71_OY1BudgetAmount,Sheet1!S71_SubMunicipalVoteNo,$AC:$AC,Sheet1!S71_A5CapexCode,$AD:$AD)","v":0},{"$f":"SUMIFS(Sheet1!S71_OY2BudgetAmount,Sheet1!S71_SubMunicipalVoteNo,$AC:$AC,Sheet1!S71_A5CapexCode,$AD:$AD)","v":0},null,null,null,null,null,null,null,null,null,null,null,null,null,null,null,null,111,"CE"]
["11.2 - [Name of sub-vote]",null,{"$f":"SUMIFS(Sheet1!S71_PPPYearAmount,Sheet1!S71_SubMunicipalVoteNo,$AC:$AC,Sheet1!S71_A5CapexCode,$AD:$AD)","v":0},{"$f":"SUMIFS(Sheet1!S71_PPYearAmount,Sheet1!S71_SubMunicipalVoteNo,$AC:$AC,Sheet1!S71_A5CapexCode,$AD:$AD)","v":0},{"$f":"SUMIFS(Sheet1!S71_PYearAmount,Sheet1!S71_SubMunicipalVoteNo,$AC:$AC,Sheet1!S71_A5CapexCode,$AD:$AD)","v":0},{"$f":"SUMIFS(Sheet1!S71_OriginalBudAmnt,Sheet1!S71_SubMunicipalVoteNo,$AC:$AC,Sheet1!S71_A5CapexCode,$AD:$AD)","v":0},{"$f":"SUMIFS(Sheet1!S71_AdjustmentBudAmnt,Sheet1!S71_SubMunicipalVoteNo,$AC:$AC,Sheet1!S71_A5CapexCode,$AD:$AD)","v":0},{"$f":"SUMIFS(Sheet1!S71_AdjustmentBudAmnt,Sheet1!S71_SubMunicipalVoteNo,$AC:$AC,Sheet1!S71_A5CapexCode,$AD:$AD)","v":0},0,{"$f":"SUMIFS(Sheet1!S71_ASBudgetAmount,Sheet1!S71_SubMunicipalVoteNo,$AC:$AC,Sheet1!S71_A5CapexCode,$AD:$AD)","v":0},{"$f":"SUMIFS(Sheet1!S71_OY1BudgetAmount,Sheet1!S71_SubMunicipalVoteNo,$AC:$AC,Sheet1!S71_A5CapexCode,$AD:$AD)","v":0},{"$f":"SUMIFS(Sheet1!S71_OY2BudgetAmount,Sheet1!S71_SubMunicipalVoteNo,$AC:$AC,Sheet1!S71_A5CapexCode,$AD:$AD)","v":0},null,null,null,null,null,null,null,null,null,null,null,null,null,null,null,null,112,"CE"]
["11.3 - [Name of sub-vote]",null,{"$f":"SUMIFS(Sheet1!S71_PPPYearAmount,Sheet1!S71_SubMunicipalVoteNo,$AC:$AC,Sheet1!S71_A5CapexCode,$AD:$AD)","v":0},{"$f":"SUMIFS(Sheet1!S71_PPYearAmount,Sheet1!S71_SubMunicipalVoteNo,$AC:$AC,Sheet1!S71_A5CapexCode,$AD:$AD)","v":0},{"$f":"SUMIFS(Sheet1!S71_PYearAmount,Sheet1!S71_SubMunicipalVoteNo,$AC:$AC,Sheet1!S71_A5CapexCode,$AD:$AD)","v":0},{"$f":"SUMIFS(Sheet1!S71_OriginalBudAmnt,Sheet1!S71_SubMunicipalVoteNo,$AC:$AC,Sheet1!S71_A5CapexCode,$AD:$AD)","v":0},{"$f":"SUMIFS(Sheet1!S71_AdjustmentBudAmnt,Sheet1!S71_SubMunicipalVoteNo,$AC:$AC,Sheet1!S71_A5CapexCode,$AD:$AD)","v":0},{"$f":"SUMIFS(Sheet1!S71_AdjustmentBudAmnt,Sheet1!S71_SubMunicipalVoteNo,$AC:$AC,Sheet1!S71_A5CapexCode,$AD:$AD)","v":0},0,{"$f":"SUMIFS(Sheet1!S71_ASBudgetAmount,Sheet1!S71_SubMunicipalVoteNo,$AC:$AC,Sheet1!S71_A5CapexCode,$AD:$AD)","v":0},{"$f":"SUMIFS(Sheet1!S71_OY1BudgetAmount,Sheet1!S71_SubMunicipalVoteNo,$AC:$AC,Sheet1!S71_A5CapexCode,$AD:$AD)","v":0},{"$f":"SUMIFS(Sheet1!S71_OY2BudgetAmount,Sheet1!S71_SubMunicipalVoteNo,$AC:$AC,Sheet1!S71_A5CapexCode,$AD:$AD)","v":0},null,null,null,null,null,null,null,null,null,null,null,null,null,null,null,null,113,"CE"]
["11.4 - [Name of sub-vote]",null,{"$f":"SUMIFS(Sheet1!S71_PPPYearAmount,Sheet1!S71_SubMunicipalVoteNo,$AC:$AC,Sheet1!S71_A5CapexCode,$AD:$AD)","v":0},{"$f":"SUMIFS(Sheet1!S71_PPYearAmount,Sheet1!S71_SubMunicipalVoteNo,$AC:$AC,Sheet1!S71_A5CapexCode,$AD:$AD)","v":0},{"$f":"SUMIFS(Sheet1!S71_PYearAmount,Sheet1!S71_SubMunicipalVoteNo,$AC:$AC,Sheet1!S71_A5CapexCode,$AD:$AD)","v":0},{"$f":"SUMIFS(Sheet1!S71_OriginalBudAmnt,Sheet1!S71_SubMunicipalVoteNo,$AC:$AC,Sheet1!S71_A5CapexCode,$AD:$AD)","v":0},{"$f":"SUMIFS(Sheet1!S71_AdjustmentBudAmnt,Sheet1!S71_SubMunicipalVoteNo,$AC:$AC,Sheet1!S71_A5CapexCode,$AD:$AD)","v":0},{"$f":"SUMIFS(Sheet1!S71_AdjustmentBudAmnt,Sheet1!S71_SubMunicipalVoteNo,$AC:$AC,Sheet1!S71_A5CapexCode,$AD:$AD)","v":0},0,{"$f":"SUMIFS(Sheet1!S71_ASBudgetAmount,Sheet1!S71_SubMunicipalVoteNo,$AC:$AC,Sheet1!S71_A5CapexCode,$AD:$AD)","v":0},{"$f":"SUMIFS(Sheet1!S71_OY1BudgetAmount,Sheet1!S71_SubMunicipalVoteNo,$AC:$AC,Sheet1!S71_A5CapexCode,$AD:$AD)","v":0},{"$f":"SUMIFS(Sheet1!S71_OY2BudgetAmount,Sheet1!S71_SubMunicipalVoteNo,$AC:$AC,Sheet1!S71_A5CapexCode,$AD:$AD)","v":0},null,null,null,null,null,null,null,null,null,null,null,null,null,null,null,null,114,"CE"]
["11.5 - [Name of sub-vote]",null,{"$f":"SUMIFS(Sheet1!S71_PPPYearAmount,Sheet1!S71_SubMunicipalVoteNo,$AC:$AC,Sheet1!S71_A5CapexCode,$AD:$AD)","v":0},{"$f":"SUMIFS(Sheet1!S71_PPYearAmount,Sheet1!S71_SubMunicipalVoteNo,$AC:$AC,Sheet1!S71_A5CapexCode,$AD:$AD)","v":0},{"$f":"SUMIFS(Sheet1!S71_PYearAmount,Sheet1!S71_SubMunicipalVoteNo,$AC:$AC,Sheet1!S71_A5CapexCode,$AD:$AD)","v":0},{"$f":"SUMIFS(Sheet1!S71_OriginalBudAmnt,Sheet1!S71_SubMunicipalVoteNo,$AC:$AC,Sheet1!S71_A5CapexCode,$AD:$AD)","v":0},{"$f":"SUMIFS(Sheet1!S71_AdjustmentBudAmnt,Sheet1!S71_SubMunicipalVoteNo,$AC:$AC,Sheet1!S71_A5CapexCode,$AD:$AD)","v":0},{"$f":"SUMIFS(Sheet1!S71_AdjustmentBudAmnt,Sheet1!S71_SubMunicipalVoteNo,$AC:$AC,Sheet1!S71_A5CapexCode,$AD:$AD)","v":0},0,{"$f":"SUMIFS(Sheet1!S71_ASBudgetAmount,Sheet1!S71_SubMunicipalVoteNo,$AC:$AC,Sheet1!S71_A5CapexCode,$AD:$AD)","v":0},{"$f":"SUMIFS(Sheet1!S71_OY1BudgetAmount,Sheet1!S71_SubMunicipalVoteNo,$AC:$AC,Sheet1!S71_A5CapexCode,$AD:$AD)","v":0},{"$f":"SUMIFS(Sheet1!S71_OY2BudgetAmount,Sheet1!S71_SubMunicipalVoteNo,$AC:$AC,Sheet1!S71_A5CapexCode,$AD:$AD)","v":0},null,null,null,null,null,null,null,null,null,null,null,null,null,null,null,null,115,"CE"]
["11.6 - [Name of sub-vote]",null,{"$f":"SUMIFS(Sheet1!S71_PPPYearAmount,Sheet1!S71_SubMunicipalVoteNo,$AC:$AC,Sheet1!S71_A5CapexCode,$AD:$AD)","v":0},{"$f":"SUMIFS(Sheet1!S71_PPYearAmount,Sheet1!S71_SubMunicipalVoteNo,$AC:$AC,Sheet1!S71_A5CapexCode,$AD:$AD)","v":0},{"$f":"SUMIFS(Sheet1!S71_PYearAmount,Sheet1!S71_SubMunicipalVoteNo,$AC:$AC,Sheet1!S71_A5CapexCode,$AD:$AD)","v":0},{"$f":"SUMIFS(Sheet1!S71_OriginalBudAmnt,Sheet1!S71_SubMunicipalVoteNo,$AC:$AC,Sheet1!S71_A5CapexCode,$AD:$AD)","v":0},{"$f":"SUMIFS(Sheet1!S71_AdjustmentBudAmnt,Sheet1!S71_SubMunicipalVoteNo,$AC:$AC,Sheet1!S71_A5CapexCode,$AD:$AD)","v":0},{"$f":"SUMIFS(Sheet1!S71_AdjustmentBudAmnt,Sheet1!S71_SubMunicipalVoteNo,$AC:$AC,Sheet1!S71_A5CapexCode,$AD:$AD)","v":0},0,{"$f":"SUMIFS(Sheet1!S71_ASBudgetAmount,Sheet1!S71_SubMunicipalVoteNo,$AC:$AC,Sheet1!S71_A5CapexCode,$AD:$AD)","v":0},{"$f":"SUMIFS(Sheet1!S71_OY1BudgetAmount,Sheet1!S71_SubMunicipalVoteNo,$AC:$AC,Sheet1!S71_A5CapexCode,$AD:$AD)","v":0},{"$f":"SUMIFS(Sheet1!S71_OY2BudgetAmount,Sheet1!S71_SubMunicipalVoteNo,$AC:$AC,Sheet1!S71_A5CapexCode,$AD:$AD)","v":0},null,null,null,null,null,null,null,null,null,null,null,null,null,null,null,null,116,"CE"]
["11.7 - [Name of sub-vote]",null,{"$f":"SUMIFS(Sheet1!S71_PPPYearAmount,Sheet1!S71_SubMunicipalVoteNo,$AC:$AC,Sheet1!S71_A5CapexCode,$AD:$AD)","v":0},{"$f":"SUMIFS(Sheet1!S71_PPYearAmount,Sheet1!S71_SubMunicipalVoteNo,$AC:$AC,Sheet1!S71_A5CapexCode,$AD:$AD)","v":0},{"$f":"SUMIFS(Sheet1!S71_PYearAmount,Sheet1!S71_SubMunicipalVoteNo,$AC:$AC,Sheet1!S71_A5CapexCode,$AD:$AD)","v":0},{"$f":"SUMIFS(Sheet1!S71_OriginalBudAmnt,Sheet1!S71_SubMunicipalVoteNo,$AC:$AC,Sheet1!S71_A5CapexCode,$AD:$AD)","v":0},{"$f":"SUMIFS(Sheet1!S71_AdjustmentBudAmnt,Sheet1!S71_SubMunicipalVoteNo,$AC:$AC,Sheet1!S71_A5CapexCode,$AD:$AD)","v":0},{"$f":"SUMIFS(Sheet1!S71_AdjustmentBudAmnt,Sheet1!S71_SubMunicipalVoteNo,$AC:$AC,Sheet1!S71_A5CapexCode,$AD:$AD)","v":0},0,{"$f":"SUMIFS(Sheet1!S71_ASBudgetAmount,Sheet1!S71_SubMunicipalVoteNo,$AC:$AC,Sheet1!S71_A5CapexCode,$AD:$AD)","v":0},{"$f":"SUMIFS(Sheet1!S71_OY1BudgetAmount,Sheet1!S71_SubMunicipalVoteNo,$AC:$AC,Sheet1!S71_A5CapexCode,$AD:$AD)","v":0},{"$f":"SUMIFS(Sheet1!S71_OY2BudgetAmount,Sheet1!S71_SubMunicipalVoteNo,$AC:$AC,Sheet1!S71_A5CapexCode,$AD:$AD)","v":0},null,null,null,null,null,null,null,null,null,null,null,null,null,null,null,null,117,"CE"]
["11.8 - [Name of sub-vote]",null,{"$f":"SUMIFS(Sheet1!S71_PPPYearAmount,Sheet1!S71_SubMunicipalVoteNo,$AC:$AC,Sheet1!S71_A5CapexCode,$AD:$AD)","v":0},{"$f":"SUMIFS(Sheet1!S71_PPYearAmount,Sheet1!S71_SubMunicipalVoteNo,$AC:$AC,Sheet1!S71_A5CapexCode,$AD:$AD)","v":0},{"$f":"SUMIFS(Sheet1!S71_PYearAmount,Sheet1!S71_SubMunicipalVoteNo,$AC:$AC,Sheet1!S71_A5CapexCode,$AD:$AD)","v":0},{"$f":"SUMIFS(Sheet1!S71_OriginalBudAmnt,Sheet1!S71_SubMunicipalVoteNo,$AC:$AC,Sheet1!S71_A5CapexCode,$AD:$AD)","v":0},{"$f":"SUMIFS(Sheet1!S71_AdjustmentBudAmnt,Sheet1!S71_SubMunicipalVoteNo,$AC:$AC,Sheet1!S71_A5CapexCode,$AD:$AD)","v":0},{"$f":"SUMIFS(Sheet1!S71_AdjustmentBudAmnt,Sheet1!S71_SubMunicipalVoteNo,$AC:$AC,Sheet1!S71_A5CapexCode,$AD:$AD)","v":0},0,{"$f":"SUMIFS(Sheet1!S71_ASBudgetAmount,Sheet1!S71_SubMunicipalVoteNo,$AC:$AC,Sheet1!S71_A5CapexCode,$AD:$AD)","v":0},{"$f":"SUMIFS(Sheet1!S71_OY1BudgetAmount,Sheet1!S71_SubMunicipalVoteNo,$AC:$AC,Sheet1!S71_A5CapexCode,$AD:$AD)","v":0},{"$f":"SUMIFS(Sheet1!S71_OY2BudgetAmount,Sheet1!S71_SubMunicipalVoteNo,$AC:$AC,Sheet1!S71_A5CapexCode,$AD:$AD)","v":0},null,null,null,null,null,null,null,null,null,null,null,null,null,null,null,null,118,"CE"]
["11.9 - [Name of sub-vote]",null,{"$f":"SUMIFS(Sheet1!S71_PPPYearAmount,Sheet1!S71_SubMunicipalVoteNo,$AC:$AC,Sheet1!S71_A5CapexCode,$AD:$AD)","v":0},{"$f":"SUMIFS(Sheet1!S71_PPYearAmount,Sheet1!S71_SubMunicipalVoteNo,$AC:$AC,Sheet1!S71_A5CapexCode,$AD:$AD)","v":0},{"$f":"SUMIFS(Sheet1!S71_PYearAmount,Sheet1!S71_SubMunicipalVoteNo,$AC:$AC,Sheet1!S71_A5CapexCode,$AD:$AD)","v":0},{"$f":"SUMIFS(Sheet1!S71_OriginalBudAmnt,Sheet1!S71_SubMunicipalVoteNo,$AC:$AC,Sheet1!S71_A5CapexCode,$AD:$AD)","v":0},{"$f":"SUMIFS(Sheet1!S71_AdjustmentBudAmnt,Sheet1!S71_SubMunicipalVoteNo,$AC:$AC,Sheet1!S71_A5CapexCode,$AD:$AD)","v":0},{"$f":"SUMIFS(Sheet1!S71_AdjustmentBudAmnt,Sheet1!S71_SubMunicipalVoteNo,$AC:$AC,Sheet1!S71_A5CapexCode,$AD:$AD)","v":0},0,{"$f":"SUMIFS(Sheet1!S71_ASBudgetAmount,Sheet1!S71_SubMunicipalVoteNo,$AC:$AC,Sheet1!S71_A5CapexCode,$AD:$AD)","v":0},{"$f":"SUMIFS(Sheet1!S71_OY1BudgetAmount,Sheet1!S71_SubMunicipalVoteNo,$AC:$AC,Sheet1!S71_A5CapexCode,$AD:$AD)","v":0},{"$f":"SUMIFS(Sheet1!S71_OY2BudgetAmount,Sheet1!S71_SubMunicipalVoteNo,$AC:$AC,Sheet1!S71_A5CapexCode,$AD:$AD)","v":0},null,null,null,null,null,null,null,null,null,null,null,null,null,null,null,null,119,"CE"]
["11.10 - [Name of sub-vote]",null,{"$f":"SUMIFS(Sheet1!S71_PPPYearAmount,Sheet1!S71_SubMunicipalVoteNo,$AC:$AC,Sheet1!S71_A5CapexCode,$AD:$AD)","v":0},{"$f":"SUMIFS(Sheet1!S71_PPYearAmount,Sheet1!S71_SubMunicipalVoteNo,$AC:$AC,Sheet1!S71_A5CapexCode,$AD:$AD)","v":0},{"$f":"SUMIFS(Sheet1!S71_PYearAmount,Sheet1!S71_SubMunicipalVoteNo,$AC:$AC,Sheet1!S71_A5CapexCode,$AD:$AD)","v":0},{"$f":"SUMIFS(Sheet1!S71_OriginalBudAmnt,Sheet1!S71_SubMunicipalVoteNo,$AC:$AC,Sheet1!S71_A5CapexCode,$AD:$AD)","v":0},{"$f":"SUMIFS(Sheet1!S71_AdjustmentBudAmnt,Sheet1!S71_SubMunicipalVoteNo,$AC:$AC,Sheet1!S71_A5CapexCode,$AD:$AD)","v":0},{"$f":"SUMIFS(Sheet1!S71_AdjustmentBudAmnt,Sheet1!S71_SubMunicipalVoteNo,$AC:$AC,Sheet1!S71_A5CapexCode,$AD:$AD)","v":0},0,{"$f":"SUMIFS(Sheet1!S71_ASBudgetAmount,Sheet1!S71_SubMunicipalVoteNo,$AC:$AC,Sheet1!S71_A5CapexCode,$AD:$AD)","v":0},{"$f":"SUMIFS(Sheet1!S71_OY1BudgetAmount,Sheet1!S71_SubMunicipalVoteNo,$AC:$AC,Sheet1!S71_A5CapexCode,$AD:$AD)","v":0},{"$f":"SUMIFS(Sheet1!S71_OY2BudgetAmount,Sheet1!S71_SubMunicipalVoteNo,$AC:$AC,Sheet1!S71_A5CapexCode,$AD:$AD)","v":0},null,null,null,null,null,null,null,null,null,null,null,null,null,null,null,null,1110,"CE"]
["Vote 12 - Waste Water Management",null,{"$f":"SUM(C297:C306)","v":0},0,0,0,0,0,0,0,0,0]
["12.1 - Sewerage",null,{"$f":"SUMIFS(Sheet1!S71_PPPYearAmount,Sheet1!S71_SubMunicipalVoteNo,$AC:$AC,Sheet1!S71_A5CapexCode,$AD:$AD)","v":0},{"$f":"SUMIFS(Sheet1!S71_PPYearAmount,Sheet1!S71_SubMunicipalVoteNo,$AC:$AC,Sheet1!S71_A5CapexCode,$AD:$AD)","v":0},{"$f":"SUMIFS(Sheet1!S71_PYearAmount,Sheet1!S71_SubMunicipalVoteNo,$AC:$AC,Sheet1!S71_A5CapexCode,$AD:$AD)","v":0},{"$f":"SUMIFS(Sheet1!S71_OriginalBudAmnt,Sheet1!S71_SubMunicipalVoteNo,$AC:$AC,Sheet1!S71_A5CapexCode,$AD:$AD)","v":0},{"$f":"SUMIFS(Sheet1!S71_AdjustmentBudAmnt,Sheet1!S71_SubMunicipalVoteNo,$AC:$AC,Sheet1!S71_A5CapexCode,$AD:$AD)","v":0},{"$f":"SUMIFS(Sheet1!S71_AdjustmentBudAmnt,Sheet1!S71_SubMunicipalVoteNo,$AC:$AC,Sheet1!S71_A5CapexCode,$AD:$AD)","v":0},{"$f":"H297","v":0},{"$f":"SUMIFS(Sheet1!S71_ASBudgetAmount,Sheet1!S71_SubMunicipalVoteNo,$AC:$AC,Sheet1!S71_A5CapexCode,$AD:$AD)","v":0},{"$f":"SUMIFS(Sheet1!S71_OY1BudgetAmount,Sheet1!S71_SubMunicipalVoteNo,$AC:$AC,Sheet1!S71_A5CapexCode,$AD:$AD)","v":0},{"$f":"SUMIFS(Sheet1!S71_OY2BudgetAmount,Sheet1!S71_SubMunicipalVoteNo,$AC:$AC,Sheet1!S71_A5CapexCode,$AD:$AD)","v":0},null,null,null,null,null,null,null,null,null,null,null,null,null,null,null,null,121,"CE"]
["12.2 - [Name of sub-vote]",null,{"$f":"SUMIFS(Sheet1!S71_PPPYearAmount,Sheet1!S71_SubMunicipalVoteNo,$AC:$AC,Sheet1!S71_A5CapexCode,$AD:$AD)","v":0},{"$f":"SUMIFS(Sheet1!S71_PPYearAmount,Sheet1!S71_SubMunicipalVoteNo,$AC:$AC,Sheet1!S71_A5CapexCode,$AD:$AD)","v":0},{"$f":"SUMIFS(Sheet1!S71_PYearAmount,Sheet1!S71_SubMunicipalVoteNo,$AC:$AC,Sheet1!S71_A5CapexCode,$AD:$AD)","v":0},{"$f":"SUMIFS(Sheet1!S71_OriginalBudAmnt,Sheet1!S71_SubMunicipalVoteNo,$AC:$AC,Sheet1!S71_A5CapexCode,$AD:$AD)","v":0},{"$f":"SUMIFS(Sheet1!S71_AdjustmentBudAmnt,Sheet1!S71_SubMunicipalVoteNo,$AC:$AC,Sheet1!S71_A5CapexCode,$AD:$AD)","v":0},{"$f":"SUMIFS(Sheet1!S71_AdjustmentBudAmnt,Sheet1!S71_SubMunicipalVoteNo,$AC:$AC,Sheet1!S71_A5CapexCode,$AD:$AD)","v":0},0,{"$f":"SUMIFS(Sheet1!S71_ASBudgetAmount,Sheet1!S71_SubMunicipalVoteNo,$AC:$AC,Sheet1!S71_A5CapexCode,$AD:$AD)","v":0},{"$f":"SUMIFS(Sheet1!S71_OY1BudgetAmount,Sheet1!S71_SubMunicipalVoteNo,$AC:$AC,Sheet1!S71_A5CapexCode,$AD:$AD)","v":0},{"$f":"SUMIFS(Sheet1!S71_OY2BudgetAmount,Sheet1!S71_SubMunicipalVoteNo,$AC:$AC,Sheet1!S71_A5CapexCode,$AD:$AD)","v":0},null,null,null,null,null,null,null,null,null,null,null,null,null,null,null,null,122,"CE"]
["12.3 - [Name of sub-vote]",null,{"$f":"SUMIFS(Sheet1!S71_PPPYearAmount,Sheet1!S71_SubMunicipalVoteNo,$AC:$AC,Sheet1!S71_A5CapexCode,$AD:$AD)","v":0},{"$f":"SUMIFS(Sheet1!S71_PPYearAmount,Sheet1!S71_SubMunicipalVoteNo,$AC:$AC,Sheet1!S71_A5CapexCode,$AD:$AD)","v":0},{"$f":"SUMIFS(Sheet1!S71_PYearAmount,Sheet1!S71_SubMunicipalVoteNo,$AC:$AC,Sheet1!S71_A5CapexCode,$AD:$AD)","v":0},{"$f":"SUMIFS(Sheet1!S71_OriginalBudAmnt,Sheet1!S71_SubMunicipalVoteNo,$AC:$AC,Sheet1!S71_A5CapexCode,$AD:$AD)","v":0},{"$f":"SUMIFS(Sheet1!S71_AdjustmentBudAmnt,Sheet1!S71_SubMunicipalVoteNo,$AC:$AC,Sheet1!S71_A5CapexCode,$AD:$AD)","v":0},{"$f":"SUMIFS(Sheet1!S71_AdjustmentBudAmnt,Sheet1!S71_SubMunicipalVoteNo,$AC:$AC,Sheet1!S71_A5CapexCode,$AD:$AD)","v":0},0,{"$f":"SUMIFS(Sheet1!S71_ASBudgetAmount,Sheet1!S71_SubMunicipalVoteNo,$AC:$AC,Sheet1!S71_A5CapexCode,$AD:$AD)","v":0},{"$f":"SUMIFS(Sheet1!S71_OY1BudgetAmount,Sheet1!S71_SubMunicipalVoteNo,$AC:$AC,Sheet1!S71_A5CapexCode,$AD:$AD)","v":0},{"$f":"SUMIFS(Sheet1!S71_OY2BudgetAmount,Sheet1!S71_SubMunicipalVoteNo,$AC:$AC,Sheet1!S71_A5CapexCode,$AD:$AD)","v":0},null,null,null,null,null,null,null,null,null,null,null,null,null,null,null,null,123,"CE"]
["12.4 - [Name of sub-vote]",null,{"$f":"SUMIFS(Sheet1!S71_PPPYearAmount,Sheet1!S71_SubMunicipalVoteNo,$AC:$AC,Sheet1!S71_A5CapexCode,$AD:$AD)","v":0},{"$f":"SUMIFS(Sheet1!S71_PPYearAmount,Sheet1!S71_SubMunicipalVoteNo,$AC:$AC,Sheet1!S71_A5CapexCode,$AD:$AD)","v":0},{"$f":"SUMIFS(Sheet1!S71_PYearAmount,Sheet1!S71_SubMunicipalVoteNo,$AC:$AC,Sheet1!S71_A5CapexCode,$AD:$AD)","v":0},{"$f":"SUMIFS(Sheet1!S71_OriginalBudAmnt,Sheet1!S71_SubMunicipalVoteNo,$AC:$AC,Sheet1!S71_A5CapexCode,$AD:$AD)","v":0},{"$f":"SUMIFS(Sheet1!S71_AdjustmentBudAmnt,Sheet1!S71_SubMunicipalVoteNo,$AC:$AC,Sheet1!S71_A5CapexCode,$AD:$AD)","v":0},{"$f":"SUMIFS(Sheet1!S71_AdjustmentBudAmnt,Sheet1!S71_SubMunicipalVoteNo,$AC:$AC,Sheet1!S71_A5CapexCode,$AD:$AD)","v":0},0,{"$f":"SUMIFS(Sheet1!S71_ASBudgetAmount,Sheet1!S71_SubMunicipalVoteNo,$AC:$AC,Sheet1!S71_A5CapexCode,$AD:$AD)","v":0},{"$f":"SUMIFS(Sheet1!S71_OY1BudgetAmount,Sheet1!S71_SubMunicipalVoteNo,$AC:$AC,Sheet1!S71_A5CapexCode,$AD:$AD)","v":0},{"$f":"SUMIFS(Sheet1!S71_OY2BudgetAmount,Sheet1!S71_SubMunicipalVoteNo,$AC:$AC,Sheet1!S71_A5CapexCode,$AD:$AD)","v":0},null,null,null,null,null,null,null,null,null,null,null,null,null,null,null,null,124,"CE"]
["12.5 - [Name of sub-vote]",null,{"$f":"SUMIFS(Sheet1!S71_PPPYearAmount,Sheet1!S71_SubMunicipalVoteNo,$AC:$AC,Sheet1!S71_A5CapexCode,$AD:$AD)","v":0},{"$f":"SUMIFS(Sheet1!S71_PPYearAmount,Sheet1!S71_SubMunicipalVoteNo,$AC:$AC,Sheet1!S71_A5CapexCode,$AD:$AD)","v":0},{"$f":"SUMIFS(Sheet1!S71_PYearAmount,Sheet1!S71_SubMunicipalVoteNo,$AC:$AC,Sheet1!S71_A5CapexCode,$AD:$AD)","v":0},{"$f":"SUMIFS(Sheet1!S71_OriginalBudAmnt,Sheet1!S71_SubMunicipalVoteNo,$AC:$AC,Sheet1!S71_A5CapexCode,$AD:$AD)","v":0},{"$f":"SUMIFS(Sheet1!S71_AdjustmentBudAmnt,Sheet1!S71_SubMunicipalVoteNo,$AC:$AC,Sheet1!S71_A5CapexCode,$AD:$AD)","v":0},{"$f":"SUMIFS(Sheet1!S71_AdjustmentBudAmnt,Sheet1!S71_SubMunicipalVoteNo,$AC:$AC,Sheet1!S71_A5CapexCode,$AD:$AD)","v":0},0,{"$f":"SUMIFS(Sheet1!S71_ASBudgetAmount,Sheet1!S71_SubMunicipalVoteNo,$AC:$AC,Sheet1!S71_A5CapexCode,$AD:$AD)","v":0},{"$f":"SUMIFS(Sheet1!S71_OY1BudgetAmount,Sheet1!S71_SubMunicipalVoteNo,$AC:$AC,Sheet1!S71_A5CapexCode,$AD:$AD)","v":0},{"$f":"SUMIFS(Sheet1!S71_OY2BudgetAmount,Sheet1!S71_SubMunicipalVoteNo,$AC:$AC,Sheet1!S71_A5CapexCode,$AD:$AD)","v":0},null,null,null,null,null,null,null,null,null,null,null,null,null,null,null,null,125,"CE"]
["12.6 - [Name of sub-vote]",null,{"$f":"SUMIFS(Sheet1!S71_PPPYearAmount,Sheet1!S71_SubMunicipalVoteNo,$AC:$AC,Sheet1!S71_A5CapexCode,$AD:$AD)","v":0},{"$f":"SUMIFS(Sheet1!S71_PPYearAmount,Sheet1!S71_SubMunicipalVoteNo,$AC:$AC,Sheet1!S71_A5CapexCode,$AD:$AD)","v":0},{"$f":"SUMIFS(Sheet1!S71_PYearAmount,Sheet1!S71_SubMunicipalVoteNo,$AC:$AC,Sheet1!S71_A5CapexCode,$AD:$AD)","v":0},{"$f":"SUMIFS(Sheet1!S71_OriginalBudAmnt,Sheet1!S71_SubMunicipalVoteNo,$AC:$AC,Sheet1!S71_A5CapexCode,$AD:$AD)","v":0},{"$f":"SUMIFS(Sheet1!S71_AdjustmentBudAmnt,Sheet1!S71_SubMunicipalVoteNo,$AC:$AC,Sheet1!S71_A5CapexCode,$AD:$AD)","v":0},{"$f":"SUMIFS(Sheet1!S71_AdjustmentBudAmnt,Sheet1!S71_SubMunicipalVoteNo,$AC:$AC,Sheet1!S71_A5CapexCode,$AD:$AD)","v":0},0,{"$f":"SUMIFS(Sheet1!S71_ASBudgetAmount,Sheet1!S71_SubMunicipalVoteNo,$AC:$AC,Sheet1!S71_A5CapexCode,$AD:$AD)","v":0},{"$f":"SUMIFS(Sheet1!S71_OY1BudgetAmount,Sheet1!S71_SubMunicipalVoteNo,$AC:$AC,Sheet1!S71_A5CapexCode,$AD:$AD)","v":0},{"$f":"SUMIFS(Sheet1!S71_OY2BudgetAmount,Sheet1!S71_SubMunicipalVoteNo,$AC:$AC,Sheet1!S71_A5CapexCode,$AD:$AD)","v":0},null,null,null,null,null,null,null,null,null,null,null,null,null,null,null,null,126,"CE"]
["12.7 - [Name of sub-vote]",null,{"$f":"SUMIFS(Sheet1!S71_PPPYearAmount,Sheet1!S71_SubMunicipalVoteNo,$AC:$AC,Sheet1!S71_A5CapexCode,$AD:$AD)","v":0},{"$f":"SUMIFS(Sheet1!S71_PPYearAmount,Sheet1!S71_SubMunicipalVoteNo,$AC:$AC,Sheet1!S71_A5CapexCode,$AD:$AD)","v":0},{"$f":"SUMIFS(Sheet1!S71_PYearAmount,Sheet1!S71_SubMunicipalVoteNo,$AC:$AC,Sheet1!S71_A5CapexCode,$AD:$AD)","v":0},{"$f":"SUMIFS(Sheet1!S71_OriginalBudAmnt,Sheet1!S71_SubMunicipalVoteNo,$AC:$AC,Sheet1!S71_A5CapexCode,$AD:$AD)","v":0},{"$f":"SUMIFS(Sheet1!S71_AdjustmentBudAmnt,Sheet1!S71_SubMunicipalVoteNo,$AC:$AC,Sheet1!S71_A5CapexCode,$AD:$AD)","v":0},{"$f":"SUMIFS(Sheet1!S71_AdjustmentBudAmnt,Sheet1!S71_SubMunicipalVoteNo,$AC:$AC,Sheet1!S71_A5CapexCode,$AD:$AD)","v":0},0,{"$f":"SUMIFS(Sheet1!S71_ASBudgetAmount,Sheet1!S71_SubMunicipalVoteNo,$AC:$AC,Sheet1!S71_A5CapexCode,$AD:$AD)","v":0},{"$f":"SUMIFS(Sheet1!S71_OY1BudgetAmount,Sheet1!S71_SubMunicipalVoteNo,$AC:$AC,Sheet1!S71_A5CapexCode,$AD:$AD)","v":0},{"$f":"SUMIFS(Sheet1!S71_OY2BudgetAmount,Sheet1!S71_SubMunicipalVoteNo,$AC:$AC,Sheet1!S71_A5CapexCode,$AD:$AD)","v":0},null,null,null,null,null,null,null,null,null,null,null,null,null,null,null,null,127,"CE"]
[{"$f":"A135","v":"12.8 - [Name of sub-vote]"},null,{"$f":"SUMIFS(Sheet1!S71_PPPYearAmount,Sheet1!S71_SubMunicipalVoteNo,$AC:$AC,Sheet1!S71_A5CapexCode,$AD:$AD)","v":0},{"$f":"SUMIFS(Sheet1!S71_PPYearAmount,Sheet1!S71_SubMunicipalVoteNo,$AC:$AC,Sheet1!S71_A5CapexCode,$AD:$AD)","v":0},{"$f":"SUMIFS(Sheet1!S71_PYearAmount,Sheet1!S71_SubMunicipalVoteNo,$AC:$AC,Sheet1!S71_A5CapexCode,$AD:$AD)","v":0},{"$f":"SUMIFS(Sheet1!S71_OriginalBudAmnt,Sheet1!S71_SubMunicipalVoteNo,$AC:$AC,Sheet1!S71_A5CapexCode,$AD:$AD)","v":0},{"$f":"SUMIFS(Sheet1!S71_AdjustmentBudAmnt,Sheet1!S71_SubMunicipalVoteNo,$AC:$AC,Sheet1!S71_A5CapexCode,$AD:$AD)","v":0},{"$f":"SUMIFS(Sheet1!S71_AdjustmentBudAmnt,Sheet1!S71_SubMunicipalVoteNo,$AC:$AC,Sheet1!S71_A5CapexCode,$AD:$AD)","v":0},0,{"$f":"SUMIFS(Sheet1!S71_ASBudgetAmount,Sheet1!S71_SubMunicipalVoteNo,$AC:$AC,Sheet1!S71_A5CapexCode,$AD:$AD)","v":0},{"$f":"SUMIFS(Sheet1!S71_OY1BudgetAmount,Sheet1!S71_SubMunicipalVoteNo,$AC:$AC,Sheet1!S71_A5CapexCode,$AD:$AD)","v":0},{"$f":"SUMIFS(Sheet1!S71_OY2BudgetAmount,Sheet1!S71_SubMunicipalVoteNo,$AC:$AC,Sheet1!S71_A5CapexCode,$AD:$AD)","v":0},null,null,null,null,null,null,null,null,null,null,null,null,null,null,null,null,128,"CE"]
["12.9 - [Name of sub-vote]",null,{"$f":"SUMIFS(Sheet1!S71_PPPYearAmount,Sheet1!S71_SubMunicipalVoteNo,$AC:$AC,Sheet1!S71_A5CapexCode,$AD:$AD)","v":0},{"$f":"SUMIFS(Sheet1!S71_PPYearAmount,Sheet1!S71_SubMunicipalVoteNo,$AC:$AC,Sheet1!S71_A5CapexCode,$AD:$AD)","v":0},{"$f":"SUMIFS(Sheet1!S71_PYearAmount,Sheet1!S71_SubMunicipalVoteNo,$AC:$AC,Sheet1!S71_A5CapexCode,$AD:$AD)","v":0},{"$f":"SUMIFS(Sheet1!S71_OriginalBudAmnt,Sheet1!S71_SubMunicipalVoteNo,$AC:$AC,Sheet1!S71_A5CapexCode,$AD:$AD)","v":0},{"$f":"SUMIFS(Sheet1!S71_AdjustmentBudAmnt,Sheet1!S71_SubMunicipalVoteNo,$AC:$AC,Sheet1!S71_A5CapexCode,$AD:$AD)","v":0},{"$f":"SUMIFS(Sheet1!S71_AdjustmentBudAmnt,Sheet1!S71_SubMunicipalVoteNo,$AC:$AC,Sheet1!S71_A5CapexCode,$AD:$AD)","v":0},0,{"$f":"SUMIFS(Sheet1!S71_ASBudgetAmount,Sheet1!S71_SubMunicipalVoteNo,$AC:$AC,Sheet1!S71_A5CapexCode,$AD:$AD)","v":0},{"$f":"SUMIFS(Sheet1!S71_OY1BudgetAmount,Sheet1!S71_SubMunicipalVoteNo,$AC:$AC,Sheet1!S71_A5CapexCode,$AD:$AD)","v":0},{"$f":"SUMIFS(Sheet1!S71_OY2BudgetAmount,Sheet1!S71_SubMunicipalVoteNo,$AC:$AC,Sheet1!S71_A5CapexCode,$AD:$AD)","v":0},null,null,null,null,null,null,null,null,null,null,null,null,null,null,null,null,129,"CE"]
["12.10 - [Name of sub-vote]",null,{"$f":"SUMIFS(Sheet1!S71_PPPYearAmount,Sheet1!S71_SubMunicipalVoteNo,$AC:$AC,Sheet1!S71_A5CapexCode,$AD:$AD)","v":0},{"$f":"SUMIFS(Sheet1!S71_PPYearAmount,Sheet1!S71_SubMunicipalVoteNo,$AC:$AC,Sheet1!S71_A5CapexCode,$AD:$AD)","v":0},{"$f":"SUMIFS(Sheet1!S71_PYearAmount,Sheet1!S71_SubMunicipalVoteNo,$AC:$AC,Sheet1!S71_A5CapexCode,$AD:$AD)","v":0},{"$f":"SUMIFS(Sheet1!S71_OriginalBudAmnt,Sheet1!S71_SubMunicipalVoteNo,$AC:$AC,Sheet1!S71_A5CapexCode,$AD:$AD)","v":0},{"$f":"SUMIFS(Sheet1!S71_AdjustmentBudAmnt,Sheet1!S71_SubMunicipalVoteNo,$AC:$AC,Sheet1!S71_A5CapexCode,$AD:$AD)","v":0},{"$f":"SUMIFS(Sheet1!S71_AdjustmentBudAmnt,Sheet1!S71_SubMunicipalVoteNo,$AC:$AC,Sheet1!S71_A5CapexCode,$AD:$AD)","v":0},0,{"$f":"SUMIFS(Sheet1!S71_ASBudgetAmount,Sheet1!S71_SubMunicipalVoteNo,$AC:$AC,Sheet1!S71_A5CapexCode,$AD:$AD)","v":0},{"$f":"SUMIFS(Sheet1!S71_OY1BudgetAmount,Sheet1!S71_SubMunicipalVoteNo,$AC:$AC,Sheet1!S71_A5CapexCode,$AD:$AD)","v":0},{"$f":"SUMIFS(Sheet1!S71_OY2BudgetAmount,Sheet1!S71_SubMunicipalVoteNo,$AC:$AC,Sheet1!S71_A5CapexCode,$AD:$AD)","v":0},null,null,null,null,null,null,null,null,null,null,null,null,null,null,null,null,1210,"CE"]
["Vote 13 - Housing",null,{"$f":"SUM(C308:C317)","v":0},1713492,8321600,18543541,14339275,14339275,14339275,13269189,0,0]
["13.1 - Housing",null,{"$f":"SUMIFS(Sheet1!S71_PPPYearAmount,Sheet1!S71_SubMunicipalVoteNo,$AC:$AC,Sheet1!S71_A5CapexCode,$AD:$AD)","v":0},{"$f":"SUMIFS(Sheet1!S71_PPYearAmount,Sheet1!S71_SubMunicipalVoteNo,$AC:$AC,Sheet1!S71_A5CapexCode,$AD:$AD)","v":1713492},{"$f":"SUMIFS(Sheet1!S71_PYearAmount,Sheet1!S71_SubMunicipalVoteNo,$AC:$AC,Sheet1!S71_A5CapexCode,$AD:$AD)","v":8321600},{"$f":"SUMIFS(Sheet1!S71_OriginalBudAmnt,Sheet1!S71_SubMunicipalVoteNo,$AC:$AC,Sheet1!S71_A5CapexCode,$AD:$AD)","v":18543541},{"$f":"SUMIFS(Sheet1!S71_AdjustmentBudAmnt,Sheet1!S71_SubMunicipalVoteNo,$AC:$AC,Sheet1!S71_A5CapexCode,$AD:$AD)","v":14339275},{"$f":"SUMIFS(Sheet1!S71_AdjustmentBudAmnt,Sheet1!S71_SubMunicipalVoteNo,$AC:$AC,Sheet1!S71_A5CapexCode,$AD:$AD)","v":14339275},{"$f":"H308","v":14339275},{"$f":"SUMIFS(Sheet1!S71_ASBudgetAmount,Sheet1!S71_SubMunicipalVoteNo,$AC:$AC,Sheet1!S71_A5CapexCode,$AD:$AD)","v":13269189},{"$f":"SUMIFS(Sheet1!S71_OY1BudgetAmount,Sheet1!S71_SubMunicipalVoteNo,$AC:$AC,Sheet1!S71_A5CapexCode,$AD:$AD)","v":0},{"$f":"SUMIFS(Sheet1!S71_OY2BudgetAmount,Sheet1!S71_SubMunicipalVoteNo,$AC:$AC,Sheet1!S71_A5CapexCode,$AD:$AD)","v":0},null,null,null,null,null,null,null,null,null,null,null,null,null,null,null,null,131,"CE"]
["13.2 - [Name of sub-vote]",null,{"$f":"SUMIFS(Sheet1!S71_PPPYearAmount,Sheet1!S71_SubMunicipalVoteNo,$AC:$AC,Sheet1!S71_A5CapexCode,$AD:$AD)","v":0},{"$f":"SUMIFS(Sheet1!S71_PPYearAmount,Sheet1!S71_SubMunicipalVoteNo,$AC:$AC,Sheet1!S71_A5CapexCode,$AD:$AD)","v":0},{"$f":"SUMIFS(Sheet1!S71_PYearAmount,Sheet1!S71_SubMunicipalVoteNo,$AC:$AC,Sheet1!S71_A5CapexCode,$AD:$AD)","v":0},{"$f":"SUMIFS(Sheet1!S71_OriginalBudAmnt,Sheet1!S71_SubMunicipalVoteNo,$AC:$AC,Sheet1!S71_A5CapexCode,$AD:$AD)","v":0},{"$f":"SUMIFS(Sheet1!S71_AdjustmentBudAmnt,Sheet1!S71_SubMunicipalVoteNo,$AC:$AC,Sheet1!S71_A5CapexCode,$AD:$AD)","v":0},{"$f":"SUMIFS(Sheet1!S71_AdjustmentBudAmnt,Sheet1!S71_SubMunicipalVoteNo,$AC:$AC,Sheet1!S71_A5CapexCode,$AD:$AD)","v":0},0,{"$f":"SUMIFS(Sheet1!S71_ASBudgetAmount,Sheet1!S71_SubMunicipalVoteNo,$AC:$AC,Sheet1!S71_A5CapexCode,$AD:$AD)","v":0},{"$f":"SUMIFS(Sheet1!S71_OY1BudgetAmount,Sheet1!S71_SubMunicipalVoteNo,$AC:$AC,Sheet1!S71_A5CapexCode,$AD:$AD)","v":0},{"$f":"SUMIFS(Sheet1!S71_OY2BudgetAmount,Sheet1!S71_SubMunicipalVoteNo,$AC:$AC,Sheet1!S71_A5CapexCode,$AD:$AD)","v":0},null,null,null,null,null,null,null,null,null,null,null,null,null,null,null,null,132,"CE"]
["13.3 - [Name of sub-vote]",null,{"$f":"SUMIFS(Sheet1!S71_PPPYearAmount,Sheet1!S71_SubMunicipalVoteNo,$AC:$AC,Sheet1!S71_A5CapexCode,$AD:$AD)","v":0},{"$f":"SUMIFS(Sheet1!S71_PPYearAmount,Sheet1!S71_SubMunicipalVoteNo,$AC:$AC,Sheet1!S71_A5CapexCode,$AD:$AD)","v":0},{"$f":"SUMIFS(Sheet1!S71_PYearAmount,Sheet1!S71_SubMunicipalVoteNo,$AC:$AC,Sheet1!S71_A5CapexCode,$AD:$AD)","v":0},{"$f":"SUMIFS(Sheet1!S71_OriginalBudAmnt,Sheet1!S71_SubMunicipalVoteNo,$AC:$AC,Sheet1!S71_A5CapexCode,$AD:$AD)","v":0},{"$f":"SUMIFS(Sheet1!S71_AdjustmentBudAmnt,Sheet1!S71_SubMunicipalVoteNo,$AC:$AC,Sheet1!S71_A5CapexCode,$AD:$AD)","v":0},{"$f":"SUMIFS(Sheet1!S71_AdjustmentBudAmnt,Sheet1!S71_SubMunicipalVoteNo,$AC:$AC,Sheet1!S71_A5CapexCode,$AD:$AD)","v":0},0,{"$f":"SUMIFS(Sheet1!S71_ASBudgetAmount,Sheet1!S71_SubMunicipalVoteNo,$AC:$AC,Sheet1!S71_A5CapexCode,$AD:$AD)","v":0},{"$f":"SUMIFS(Sheet1!S71_OY1BudgetAmount,Sheet1!S71_SubMunicipalVoteNo,$AC:$AC,Sheet1!S71_A5CapexCode,$AD:$AD)","v":0},{"$f":"SUMIFS(Sheet1!S71_OY2BudgetAmount,Sheet1!S71_SubMunicipalVoteNo,$AC:$AC,Sheet1!S71_A5CapexCode,$AD:$AD)","v":0},null,null,null,null,null,null,null,null,null,null,null,null,null,null,null,null,133,"CE"]
["13.4 - [Name of sub-vote]",null,{"$f":"SUMIFS(Sheet1!S71_PPPYearAmount,Sheet1!S71_SubMunicipalVoteNo,$AC:$AC,Sheet1!S71_A5CapexCode,$AD:$AD)","v":0},{"$f":"SUMIFS(Sheet1!S71_PPYearAmount,Sheet1!S71_SubMunicipalVoteNo,$AC:$AC,Sheet1!S71_A5CapexCode,$AD:$AD)","v":0},{"$f":"SUMIFS(Sheet1!S71_PYearAmount,Sheet1!S71_SubMunicipalVoteNo,$AC:$AC,Sheet1!S71_A5CapexCode,$AD:$AD)","v":0},{"$f":"SUMIFS(Sheet1!S71_OriginalBudAmnt,Sheet1!S71_SubMunicipalVoteNo,$AC:$AC,Sheet1!S71_A5CapexCode,$AD:$AD)","v":0},{"$f":"SUMIFS(Sheet1!S71_AdjustmentBudAmnt,Sheet1!S71_SubMunicipalVoteNo,$AC:$AC,Sheet1!S71_A5CapexCode,$AD:$AD)","v":0},{"$f":"SUMIFS(Sheet1!S71_AdjustmentBudAmnt,Sheet1!S71_SubMunicipalVoteNo,$AC:$AC,Sheet1!S71_A5CapexCode,$AD:$AD)","v":0},0,{"$f":"SUMIFS(Sheet1!S71_ASBudgetAmount,Sheet1!S71_SubMunicipalVoteNo,$AC:$AC,Sheet1!S71_A5CapexCode,$AD:$AD)","v":0},{"$f":"SUMIFS(Sheet1!S71_OY1BudgetAmount,Sheet1!S71_SubMunicipalVoteNo,$AC:$AC,Sheet1!S71_A5CapexCode,$AD:$AD)","v":0},{"$f":"SUMIFS(Sheet1!S71_OY2BudgetAmount,Sheet1!S71_SubMunicipalVoteNo,$AC:$AC,Sheet1!S71_A5CapexCode,$AD:$AD)","v":0},null,null,null,null,null,null,null,null,null,null,null,null,null,null,null,null,134,"CE"]
["13.5 - [Name of sub-vote]",null,{"$f":"SUMIFS(Sheet1!S71_PPPYearAmount,Sheet1!S71_SubMunicipalVoteNo,$AC:$AC,Sheet1!S71_A5CapexCode,$AD:$AD)","v":0},{"$f":"SUMIFS(Sheet1!S71_PPYearAmount,Sheet1!S71_SubMunicipalVoteNo,$AC:$AC,Sheet1!S71_A5CapexCode,$AD:$AD)","v":0},{"$f":"SUMIFS(Sheet1!S71_PYearAmount,Sheet1!S71_SubMunicipalVoteNo,$AC:$AC,Sheet1!S71_A5CapexCode,$AD:$AD)","v":0},{"$f":"SUMIFS(Sheet1!S71_OriginalBudAmnt,Sheet1!S71_SubMunicipalVoteNo,$AC:$AC,Sheet1!S71_A5CapexCode,$AD:$AD)","v":0},{"$f":"SUMIFS(Sheet1!S71_AdjustmentBudAmnt,Sheet1!S71_SubMunicipalVoteNo,$AC:$AC,Sheet1!S71_A5CapexCode,$AD:$AD)","v":0},{"$f":"SUMIFS(Sheet1!S71_AdjustmentBudAmnt,Sheet1!S71_SubMunicipalVoteNo,$AC:$AC,Sheet1!S71_A5CapexCode,$AD:$AD)","v":0},0,{"$f":"SUMIFS(Sheet1!S71_ASBudgetAmount,Sheet1!S71_SubMunicipalVoteNo,$AC:$AC,Sheet1!S71_A5CapexCode,$AD:$AD)","v":0},{"$f":"SUMIFS(Sheet1!S71_OY1BudgetAmount,Sheet1!S71_SubMunicipalVoteNo,$AC:$AC,Sheet1!S71_A5CapexCode,$AD:$AD)","v":0},{"$f":"SUMIFS(Sheet1!S71_OY2BudgetAmount,Sheet1!S71_SubMunicipalVoteNo,$AC:$AC,Sheet1!S71_A5CapexCode,$AD:$AD)","v":0},null,null,null,null,null,null,null,null,null,null,null,null,null,null,null,null,135,"CE"]
["13.6 - [Name of sub-vote]",null,{"$f":"SUMIFS(Sheet1!S71_PPPYearAmount,Sheet1!S71_SubMunicipalVoteNo,$AC:$AC,Sheet1!S71_A5CapexCode,$AD:$AD)","v":0},{"$f":"SUMIFS(Sheet1!S71_PPYearAmount,Sheet1!S71_SubMunicipalVoteNo,$AC:$AC,Sheet1!S71_A5CapexCode,$AD:$AD)","v":0},{"$f":"SUMIFS(Sheet1!S71_PYearAmount,Sheet1!S71_SubMunicipalVoteNo,$AC:$AC,Sheet1!S71_A5CapexCode,$AD:$AD)","v":0},{"$f":"SUMIFS(Sheet1!S71_OriginalBudAmnt,Sheet1!S71_SubMunicipalVoteNo,$AC:$AC,Sheet1!S71_A5CapexCode,$AD:$AD)","v":0},{"$f":"SUMIFS(Sheet1!S71_AdjustmentBudAmnt,Sheet1!S71_SubMunicipalVoteNo,$AC:$AC,Sheet1!S71_A5CapexCode,$AD:$AD)","v":0},{"$f":"SUMIFS(Sheet1!S71_AdjustmentBudAmnt,Sheet1!S71_SubMunicipalVoteNo,$AC:$AC,Sheet1!S71_A5CapexCode,$AD:$AD)","v":0},0,{"$f":"SUMIFS(Sheet1!S71_ASBudgetAmount,Sheet1!S71_SubMunicipalVoteNo,$AC:$AC,Sheet1!S71_A5CapexCode,$AD:$AD)","v":0},{"$f":"SUMIFS(Sheet1!S71_OY1BudgetAmount,Sheet1!S71_SubMunicipalVoteNo,$AC:$AC,Sheet1!S71_A5CapexCode,$AD:$AD)","v":0},{"$f":"SUMIFS(Sheet1!S71_OY2BudgetAmount,Sheet1!S71_SubMunicipalVoteNo,$AC:$AC,Sheet1!S71_A5CapexCode,$AD:$AD)","v":0},null,null,null,null,null,null,null,null,null,null,null,null,null,null,null,null,136,"CE"]
["13.7 - [Name of sub-vote]",null,{"$f":"SUMIFS(Sheet1!S71_PPPYearAmount,Sheet1!S71_SubMunicipalVoteNo,$AC:$AC,Sheet1!S71_A5CapexCode,$AD:$AD)","v":0},{"$f":"SUMIFS(Sheet1!S71_PPYearAmount,Sheet1!S71_SubMunicipalVoteNo,$AC:$AC,Sheet1!S71_A5CapexCode,$AD:$AD)","v":0},{"$f":"SUMIFS(Sheet1!S71_PYearAmount,Sheet1!S71_SubMunicipalVoteNo,$AC:$AC,Sheet1!S71_A5CapexCode,$AD:$AD)","v":0},{"$f":"SUMIFS(Sheet1!S71_OriginalBudAmnt,Sheet1!S71_SubMunicipalVoteNo,$AC:$AC,Sheet1!S71_A5CapexCode,$AD:$AD)","v":0},{"$f":"SUMIFS(Sheet1!S71_AdjustmentBudAmnt,Sheet1!S71_SubMunicipalVoteNo,$AC:$AC,Sheet1!S71_A5CapexCode,$AD:$AD)","v":0},{"$f":"SUMIFS(Sheet1!S71_AdjustmentBudAmnt,Sheet1!S71_SubMunicipalVoteNo,$AC:$AC,Sheet1!S71_A5CapexCode,$AD:$AD)","v":0},0,{"$f":"SUMIFS(Sheet1!S71_ASBudgetAmount,Sheet1!S71_SubMunicipalVoteNo,$AC:$AC,Sheet1!S71_A5CapexCode,$AD:$AD)","v":0},{"$f":"SUMIFS(Sheet1!S71_OY1BudgetAmount,Sheet1!S71_SubMunicipalVoteNo,$AC:$AC,Sheet1!S71_A5CapexCode,$AD:$AD)","v":0},{"$f":"SUMIFS(Sheet1!S71_OY2BudgetAmount,Sheet1!S71_SubMunicipalVoteNo,$AC:$AC,Sheet1!S71_A5CapexCode,$AD:$AD)","v":0},null,null,null,null,null,null,null,null,null,null,null,null,null,null,null,null,137,"CE"]
["13.8 - [Name of sub-vote]",null,{"$f":"SUMIFS(Sheet1!S71_PPPYearAmount,Sheet1!S71_SubMunicipalVoteNo,$AC:$AC,Sheet1!S71_A5CapexCode,$AD:$AD)","v":0},{"$f":"SUMIFS(Sheet1!S71_PPYearAmount,Sheet1!S71_SubMunicipalVoteNo,$AC:$AC,Sheet1!S71_A5CapexCode,$AD:$AD)","v":0},{"$f":"SUMIFS(Sheet1!S71_PYearAmount,Sheet1!S71_SubMunicipalVoteNo,$AC:$AC,Sheet1!S71_A5CapexCode,$AD:$AD)","v":0},{"$f":"SUMIFS(Sheet1!S71_OriginalBudAmnt,Sheet1!S71_SubMunicipalVoteNo,$AC:$AC,Sheet1!S71_A5CapexCode,$AD:$AD)","v":0},{"$f":"SUMIFS(Sheet1!S71_AdjustmentBudAmnt,Sheet1!S71_SubMunicipalVoteNo,$AC:$AC,Sheet1!S71_A5CapexCode,$AD:$AD)","v":0},{"$f":"SUMIFS(Sheet1!S71_AdjustmentBudAmnt,Sheet1!S71_SubMunicipalVoteNo,$AC:$AC,Sheet1!S71_A5CapexCode,$AD:$AD)","v":0},0,{"$f":"SUMIFS(Sheet1!S71_ASBudgetAmount,Sheet1!S71_SubMunicipalVoteNo,$AC:$AC,Sheet1!S71_A5CapexCode,$AD:$AD)","v":0},{"$f":"SUMIFS(Sheet1!S71_OY1BudgetAmount,Sheet1!S71_SubMunicipalVoteNo,$AC:$AC,Sheet1!S71_A5CapexCode,$AD:$AD)","v":0},{"$f":"SUMIFS(Sheet1!S71_OY2BudgetAmount,Sheet1!S71_SubMunicipalVoteNo,$AC:$AC,Sheet1!S71_A5CapexCode,$AD:$AD)","v":0},null,null,null,null,null,null,null,null,null,null,null,null,null,null,null,null,138,"CE"]
["13.9 - [Name of sub-vote]",null,{"$f":"SUMIFS(Sheet1!S71_PPPYearAmount,Sheet1!S71_SubMunicipalVoteNo,$AC:$AC,Sheet1!S71_A5CapexCode,$AD:$AD)","v":0},{"$f":"SUMIFS(Sheet1!S71_PPYearAmount,Sheet1!S71_SubMunicipalVoteNo,$AC:$AC,Sheet1!S71_A5CapexCode,$AD:$AD)","v":0},{"$f":"SUMIFS(Sheet1!S71_PYearAmount,Sheet1!S71_SubMunicipalVoteNo,$AC:$AC,Sheet1!S71_A5CapexCode,$AD:$AD)","v":0},{"$f":"SUMIFS(Sheet1!S71_OriginalBudAmnt,Sheet1!S71_SubMunicipalVoteNo,$AC:$AC,Sheet1!S71_A5CapexCode,$AD:$AD)","v":0},{"$f":"SUMIFS(Sheet1!S71_AdjustmentBudAmnt,Sheet1!S71_SubMunicipalVoteNo,$AC:$AC,Sheet1!S71_A5CapexCode,$AD:$AD)","v":0},{"$f":"SUMIFS(Sheet1!S71_AdjustmentBudAmnt,Sheet1!S71_SubMunicipalVoteNo,$AC:$AC,Sheet1!S71_A5CapexCode,$AD:$AD)","v":0},0,{"$f":"SUMIFS(Sheet1!S71_ASBudgetAmount,Sheet1!S71_SubMunicipalVoteNo,$AC:$AC,Sheet1!S71_A5CapexCode,$AD:$AD)","v":0},{"$f":"SUMIFS(Sheet1!S71_OY1BudgetAmount,Sheet1!S71_SubMunicipalVoteNo,$AC:$AC,Sheet1!S71_A5CapexCode,$AD:$AD)","v":0},{"$f":"SUMIFS(Sheet1!S71_OY2BudgetAmount,Sheet1!S71_SubMunicipalVoteNo,$AC:$AC,Sheet1!S71_A5CapexCode,$AD:$AD)","v":0},null,null,null,null,null,null,null,null,null,null,null,null,null,null,null,null,139,"CE"]
["13.10 - [Name of sub-vote]",null,{"$f":"SUMIFS(Sheet1!S71_PPPYearAmount,Sheet1!S71_SubMunicipalVoteNo,$AC:$AC,Sheet1!S71_A5CapexCode,$AD:$AD)","v":0},{"$f":"SUMIFS(Sheet1!S71_PPYearAmount,Sheet1!S71_SubMunicipalVoteNo,$AC:$AC,Sheet1!S71_A5CapexCode,$AD:$AD)","v":0},{"$f":"SUMIFS(Sheet1!S71_PYearAmount,Sheet1!S71_SubMunicipalVoteNo,$AC:$AC,Sheet1!S71_A5CapexCode,$AD:$AD)","v":0},{"$f":"SUMIFS(Sheet1!S71_OriginalBudAmnt,Sheet1!S71_SubMunicipalVoteNo,$AC:$AC,Sheet1!S71_A5CapexCode,$AD:$AD)","v":0},{"$f":"SUMIFS(Sheet1!S71_AdjustmentBudAmnt,Sheet1!S71_SubMunicipalVoteNo,$AC:$AC,Sheet1!S71_A5CapexCode,$AD:$AD)","v":0},{"$f":"SUMIFS(Sheet1!S71_AdjustmentBudAmnt,Sheet1!S71_SubMunicipalVoteNo,$AC:$AC,Sheet1!S71_A5CapexCode,$AD:$AD)","v":0},0,{"$f":"SUMIFS(Sheet1!S71_ASBudgetAmount,Sheet1!S71_SubMunicipalVoteNo,$AC:$AC,Sheet1!S71_A5CapexCode,$AD:$AD)","v":0},{"$f":"SUMIFS(Sheet1!S71_OY1BudgetAmount,Sheet1!S71_SubMunicipalVoteNo,$AC:$AC,Sheet1!S71_A5CapexCode,$AD:$AD)","v":0},{"$f":"SUMIFS(Sheet1!S71_OY2BudgetAmount,Sheet1!S71_SubMunicipalVoteNo,$AC:$AC,Sheet1!S71_A5CapexCode,$AD:$AD)","v":0},null,null,null,null,null,null,null,null,null,null,null,null,null,null,null,null,1310,"CE"]
["Vote 14 - Finance & Administration 2",null,{"$f":"SUM(C319:C328)","v":0},0,0,4100000,2700000,2700000,2700000,6400000,6120000,6390000]
["14.1 - Security Services",null,{"$f":"SUMIFS(Sheet1!S71_PPPYearAmount,Sheet1!S71_SubMunicipalVoteNo,$AC:$AC,Sheet1!S71_A5CapexCode,$AD:$AD)","v":0},{"$f":"SUMIFS(Sheet1!S71_PPYearAmount,Sheet1!S71_SubMunicipalVoteNo,$AC:$AC,Sheet1!S71_A5CapexCode,$AD:$AD)","v":0},{"$f":"SUMIFS(Sheet1!S71_PYearAmount,Sheet1!S71_SubMunicipalVoteNo,$AC:$AC,Sheet1!S71_A5CapexCode,$AD:$AD)","v":0},{"$f":"SUMIFS(Sheet1!S71_OriginalBudAmnt,Sheet1!S71_SubMunicipalVoteNo,$AC:$AC,Sheet1!S71_A5CapexCode,$AD:$AD)","v":800000},{"$f":"SUMIFS(Sheet1!S71_AdjustmentBudAmnt,Sheet1!S71_SubMunicipalVoteNo,$AC:$AC,Sheet1!S71_A5CapexCode,$AD:$AD)","v":800000},{"$f":"SUMIFS(Sheet1!S71_AdjustmentBudAmnt,Sheet1!S71_SubMunicipalVoteNo,$AC:$AC,Sheet1!S71_A5CapexCode,$AD:$AD)","v":800000},{"$f":"H319","v":800000},{"$f":"SUMIFS(Sheet1!S71_ASBudgetAmount,Sheet1!S71_SubMunicipalVoteNo,$AC:$AC,Sheet1!S71_A5CapexCode,$AD:$AD)","v":2100000},{"$f":"SUMIFS(Sheet1!S71_OY1BudgetAmount,Sheet1!S71_SubMunicipalVoteNo,$AC:$AC,Sheet1!S71_A5CapexCode,$AD:$AD)","v":1600000},{"$f":"SUMIFS(Sheet1!S71_OY2BudgetAmount,Sheet1!S71_SubMunicipalVoteNo,$AC:$AC,Sheet1!S71_A5CapexCode,$AD:$AD)","v":1750000},null,null,null,null,null,null,null,null,null,null,null,null,null,null,null,null,141,"CE"]
["14.2 - Administrative and Corporate Support",null,{"$f":"SUMIFS(Sheet1!S71_PPPYearAmount,Sheet1!S71_SubMunicipalVoteNo,$AC:$AC,Sheet1!S71_A5CapexCode,$AD:$AD)","v":0},{"$f":"SUMIFS(Sheet1!S71_PPYearAmount,Sheet1!S71_SubMunicipalVoteNo,$AC:$AC,Sheet1!S71_A5CapexCode,$AD:$AD)","v":0},{"$f":"SUMIFS(Sheet1!S71_PYearAmount,Sheet1!S71_SubMunicipalVoteNo,$AC:$AC,Sheet1!S71_A5CapexCode,$AD:$AD)","v":0},{"$f":"SUMIFS(Sheet1!S71_OriginalBudAmnt,Sheet1!S71_SubMunicipalVoteNo,$AC:$AC,Sheet1!S71_A5CapexCode,$AD:$AD)","v":1000000},{"$f":"SUMIFS(Sheet1!S71_AdjustmentBudAmnt,Sheet1!S71_SubMunicipalVoteNo,$AC:$AC,Sheet1!S71_A5CapexCode,$AD:$AD)","v":1000000},{"$f":"SUMIFS(Sheet1!S71_AdjustmentBudAmnt,Sheet1!S71_SubMunicipalVoteNo,$AC:$AC,Sheet1!S71_A5CapexCode,$AD:$AD)","v":1000000},1000000,{"$f":"SUMIFS(Sheet1!S71_ASBudgetAmount,Sheet1!S71_SubMunicipalVoteNo,$AC:$AC,Sheet1!S71_A5CapexCode,$AD:$AD)","v":1200000},{"$f":"SUMIFS(Sheet1!S71_OY1BudgetAmount,Sheet1!S71_SubMunicipalVoteNo,$AC:$AC,Sheet1!S71_A5CapexCode,$AD:$AD)","v":1300000},{"$f":"SUMIFS(Sheet1!S71_OY2BudgetAmount,Sheet1!S71_SubMunicipalVoteNo,$AC:$AC,Sheet1!S71_A5CapexCode,$AD:$AD)","v":1300000},null,null,null,null,null,null,null,null,null,null,null,null,null,null,null,null,142,"CE"]
["14.3 - Information Technology",null,{"$f":"SUMIFS(Sheet1!S71_PPPYearAmount,Sheet1!S71_SubMunicipalVoteNo,$AC:$AC,Sheet1!S71_A5CapexCode,$AD:$AD)","v":0},{"$f":"SUMIFS(Sheet1!S71_PPYearAmount,Sheet1!S71_SubMunicipalVoteNo,$AC:$AC,Sheet1!S71_A5CapexCode,$AD:$AD)","v":0},{"$f":"SUMIFS(Sheet1!S71_PYearAmount,Sheet1!S71_SubMunicipalVoteNo,$AC:$AC,Sheet1!S71_A5CapexCode,$AD:$AD)","v":0},{"$f":"SUMIFS(Sheet1!S71_OriginalBudAmnt,Sheet1!S71_SubMunicipalVoteNo,$AC:$AC,Sheet1!S71_A5CapexCode,$AD:$AD)","v":2300000},{"$f":"SUMIFS(Sheet1!S71_AdjustmentBudAmnt,Sheet1!S71_SubMunicipalVoteNo,$AC:$AC,Sheet1!S71_A5CapexCode,$AD:$AD)","v":900000},{"$f":"SUMIFS(Sheet1!S71_AdjustmentBudAmnt,Sheet1!S71_SubMunicipalVoteNo,$AC:$AC,Sheet1!S71_A5CapexCode,$AD:$AD)","v":900000},900000,{"$f":"SUMIFS(Sheet1!S71_ASBudgetAmount,Sheet1!S71_SubMunicipalVoteNo,$AC:$AC,Sheet1!S71_A5CapexCode,$AD:$AD)","v":3100000},{"$f":"SUMIFS(Sheet1!S71_OY1BudgetAmount,Sheet1!S71_SubMunicipalVoteNo,$AC:$AC,Sheet1!S71_A5CapexCode,$AD:$AD)","v":3220000},{"$f":"SUMIFS(Sheet1!S71_OY2BudgetAmount,Sheet1!S71_SubMunicipalVoteNo,$AC:$AC,Sheet1!S71_A5CapexCode,$AD:$AD)","v":3340000},null,null,null,null,null,null,null,null,null,null,null,null,null,null,null,null,143,"CE"]
["14.4 - [Name of sub-vote]",null,{"$f":"SUMIFS(Sheet1!S71_PPPYearAmount,Sheet1!S71_SubMunicipalVoteNo,$AC:$AC,Sheet1!S71_A5CapexCode,$AD:$AD)","v":0},{"$f":"SUMIFS(Sheet1!S71_PPYearAmount,Sheet1!S71_SubMunicipalVoteNo,$AC:$AC,Sheet1!S71_A5CapexCode,$AD:$AD)","v":0},{"$f":"SUMIFS(Sheet1!S71_PYearAmount,Sheet1!S71_SubMunicipalVoteNo,$AC:$AC,Sheet1!S71_A5CapexCode,$AD:$AD)","v":0},{"$f":"SUMIFS(Sheet1!S71_OriginalBudAmnt,Sheet1!S71_SubMunicipalVoteNo,$AC:$AC,Sheet1!S71_A5CapexCode,$AD:$AD)","v":0},{"$f":"SUMIFS(Sheet1!S71_AdjustmentBudAmnt,Sheet1!S71_SubMunicipalVoteNo,$AC:$AC,Sheet1!S71_A5CapexCode,$AD:$AD)","v":0},{"$f":"SUMIFS(Sheet1!S71_AdjustmentBudAmnt,Sheet1!S71_SubMunicipalVoteNo,$AC:$AC,Sheet1!S71_A5CapexCode,$AD:$AD)","v":0},0,{"$f":"SUMIFS(Sheet1!S71_ASBudgetAmount,Sheet1!S71_SubMunicipalVoteNo,$AC:$AC,Sheet1!S71_A5CapexCode,$AD:$AD)","v":0},{"$f":"SUMIFS(Sheet1!S71_OY1BudgetAmount,Sheet1!S71_SubMunicipalVoteNo,$AC:$AC,Sheet1!S71_A5CapexCode,$AD:$AD)","v":0},{"$f":"SUMIFS(Sheet1!S71_OY2BudgetAmount,Sheet1!S71_SubMunicipalVoteNo,$AC:$AC,Sheet1!S71_A5CapexCode,$AD:$AD)","v":0},null,null,null,null,null,null,null,null,null,null,null,null,null,null,null,null,144,"CE"]
["14.5 - [Name of sub-vote]",null,{"$f":"SUMIFS(Sheet1!S71_PPPYearAmount,Sheet1!S71_SubMunicipalVoteNo,$AC:$AC,Sheet1!S71_A5CapexCode,$AD:$AD)","v":0},{"$f":"SUMIFS(Sheet1!S71_PPYearAmount,Sheet1!S71_SubMunicipalVoteNo,$AC:$AC,Sheet1!S71_A5CapexCode,$AD:$AD)","v":0},{"$f":"SUMIFS(Sheet1!S71_PYearAmount,Sheet1!S71_SubMunicipalVoteNo,$AC:$AC,Sheet1!S71_A5CapexCode,$AD:$AD)","v":0},{"$f":"SUMIFS(Sheet1!S71_OriginalBudAmnt,Sheet1!S71_SubMunicipalVoteNo,$AC:$AC,Sheet1!S71_A5CapexCode,$AD:$AD)","v":0},{"$f":"SUMIFS(Sheet1!S71_AdjustmentBudAmnt,Sheet1!S71_SubMunicipalVoteNo,$AC:$AC,Sheet1!S71_A5CapexCode,$AD:$AD)","v":0},{"$f":"SUMIFS(Sheet1!S71_AdjustmentBudAmnt,Sheet1!S71_SubMunicipalVoteNo,$AC:$AC,Sheet1!S71_A5CapexCode,$AD:$AD)","v":0},0,{"$f":"SUMIFS(Sheet1!S71_ASBudgetAmount,Sheet1!S71_SubMunicipalVoteNo,$AC:$AC,Sheet1!S71_A5CapexCode,$AD:$AD)","v":0},{"$f":"SUMIFS(Sheet1!S71_OY1BudgetAmount,Sheet1!S71_SubMunicipalVoteNo,$AC:$AC,Sheet1!S71_A5CapexCode,$AD:$AD)","v":0},{"$f":"SUMIFS(Sheet1!S71_OY2BudgetAmount,Sheet1!S71_SubMunicipalVoteNo,$AC:$AC,Sheet1!S71_A5CapexCode,$AD:$AD)","v":0},null,null,null,null,null,null,null,null,null,null,null,null,null,null,null,null,145,"CE"]
["14.6 - [Name of sub-vote]",null,{"$f":"SUMIFS(Sheet1!S71_PPPYearAmount,Sheet1!S71_SubMunicipalVoteNo,$AC:$AC,Sheet1!S71_A5CapexCode,$AD:$AD)","v":0},{"$f":"SUMIFS(Sheet1!S71_PPYearAmount,Sheet1!S71_SubMunicipalVoteNo,$AC:$AC,Sheet1!S71_A5CapexCode,$AD:$AD)","v":0},{"$f":"SUMIFS(Sheet1!S71_PYearAmount,Sheet1!S71_SubMunicipalVoteNo,$AC:$AC,Sheet1!S71_A5CapexCode,$AD:$AD)","v":0},{"$f":"SUMIFS(Sheet1!S71_OriginalBudAmnt,Sheet1!S71_SubMunicipalVoteNo,$AC:$AC,Sheet1!S71_A5CapexCode,$AD:$AD)","v":0},{"$f":"SUMIFS(Sheet1!S71_AdjustmentBudAmnt,Sheet1!S71_SubMunicipalVoteNo,$AC:$AC,Sheet1!S71_A5CapexCode,$AD:$AD)","v":0},{"$f":"SUMIFS(Sheet1!S71_AdjustmentBudAmnt,Sheet1!S71_SubMunicipalVoteNo,$AC:$AC,Sheet1!S71_A5CapexCode,$AD:$AD)","v":0},0,{"$f":"SUMIFS(Sheet1!S71_ASBudgetAmount,Sheet1!S71_SubMunicipalVoteNo,$AC:$AC,Sheet1!S71_A5CapexCode,$AD:$AD)","v":0},{"$f":"SUMIFS(Sheet1!S71_OY1BudgetAmount,Sheet1!S71_SubMunicipalVoteNo,$AC:$AC,Sheet1!S71_A5CapexCode,$AD:$AD)","v":0},{"$f":"SUMIFS(Sheet1!S71_OY2BudgetAmount,Sheet1!S71_SubMunicipalVoteNo,$AC:$AC,Sheet1!S71_A5CapexCode,$AD:$AD)","v":0},null,null,null,null,null,null,null,null,null,null,null,null,null,null,null,null,146,"CE"]
["14.7 - [Name of sub-vote]",null,{"$f":"SUMIFS(Sheet1!S71_PPPYearAmount,Sheet1!S71_SubMunicipalVoteNo,$AC:$AC,Sheet1!S71_A5CapexCode,$AD:$AD)","v":0},{"$f":"SUMIFS(Sheet1!S71_PPYearAmount,Sheet1!S71_SubMunicipalVoteNo,$AC:$AC,Sheet1!S71_A5CapexCode,$AD:$AD)","v":0},{"$f":"SUMIFS(Sheet1!S71_PYearAmount,Sheet1!S71_SubMunicipalVoteNo,$AC:$AC,Sheet1!S71_A5CapexCode,$AD:$AD)","v":0},{"$f":"SUMIFS(Sheet1!S71_OriginalBudAmnt,Sheet1!S71_SubMunicipalVoteNo,$AC:$AC,Sheet1!S71_A5CapexCode,$AD:$AD)","v":0},{"$f":"SUMIFS(Sheet1!S71_AdjustmentBudAmnt,Sheet1!S71_SubMunicipalVoteNo,$AC:$AC,Sheet1!S71_A5CapexCode,$AD:$AD)","v":0},{"$f":"SUMIFS(Sheet1!S71_AdjustmentBudAmnt,Sheet1!S71_SubMunicipalVoteNo,$AC:$AC,Sheet1!S71_A5CapexCode,$AD:$AD)","v":0},0,{"$f":"SUMIFS(Sheet1!S71_ASBudgetAmount,Sheet1!S71_SubMunicipalVoteNo,$AC:$AC,Sheet1!S71_A5CapexCode,$AD:$AD)","v":0},{"$f":"SUMIFS(Sheet1!S71_OY1BudgetAmount,Sheet1!S71_SubMunicipalVoteNo,$AC:$AC,Sheet1!S71_A5CapexCode,$AD:$AD)","v":0},{"$f":"SUMIFS(Sheet1!S71_OY2BudgetAmount,Sheet1!S71_SubMunicipalVoteNo,$AC:$AC,Sheet1!S71_A5CapexCode,$AD:$AD)","v":0},null,null,null,null,null,null,null,null,null,null,null,null,null,null,null,null,147,"CE"]
["14.8 - [Name of sub-vote]",null,{"$f":"SUMIFS(Sheet1!S71_PPPYearAmount,Sheet1!S71_SubMunicipalVoteNo,$AC:$AC,Sheet1!S71_A5CapexCode,$AD:$AD)","v":0},{"$f":"SUMIFS(Sheet1!S71_PPYearAmount,Sheet1!S71_SubMunicipalVoteNo,$AC:$AC,Sheet1!S71_A5CapexCode,$AD:$AD)","v":0},{"$f":"SUMIFS(Sheet1!S71_PYearAmount,Sheet1!S71_SubMunicipalVoteNo,$AC:$AC,Sheet1!S71_A5CapexCode,$AD:$AD)","v":0},{"$f":"SUMIFS(Sheet1!S71_OriginalBudAmnt,Sheet1!S71_SubMunicipalVoteNo,$AC:$AC,Sheet1!S71_A5CapexCode,$AD:$AD)","v":0},{"$f":"SUMIFS(Sheet1!S71_AdjustmentBudAmnt,Sheet1!S71_SubMunicipalVoteNo,$AC:$AC,Sheet1!S71_A5CapexCode,$AD:$AD)","v":0},{"$f":"SUMIFS(Sheet1!S71_AdjustmentBudAmnt,Sheet1!S71_SubMunicipalVoteNo,$AC:$AC,Sheet1!S71_A5CapexCode,$AD:$AD)","v":0},0,{"$f":"SUMIFS(Sheet1!S71_ASBudgetAmount,Sheet1!S71_SubMunicipalVoteNo,$AC:$AC,Sheet1!S71_A5CapexCode,$AD:$AD)","v":0},{"$f":"SUMIFS(Sheet1!S71_OY1BudgetAmount,Sheet1!S71_SubMunicipalVoteNo,$AC:$AC,Sheet1!S71_A5CapexCode,$AD:$AD)","v":0},{"$f":"SUMIFS(Sheet1!S71_OY2BudgetAmount,Sheet1!S71_SubMunicipalVoteNo,$AC:$AC,Sheet1!S71_A5CapexCode,$AD:$AD)","v":0},null,null,null,null,null,null,null,null,null,null,null,null,null,null,null,null,148,"CE"]
["14.9 - [Name of sub-vote]",null,{"$f":"SUMIFS(Sheet1!S71_PPPYearAmount,Sheet1!S71_SubMunicipalVoteNo,$AC:$AC,Sheet1!S71_A5CapexCode,$AD:$AD)","v":0},{"$f":"SUMIFS(Sheet1!S71_PPYearAmount,Sheet1!S71_SubMunicipalVoteNo,$AC:$AC,Sheet1!S71_A5CapexCode,$AD:$AD)","v":0},{"$f":"SUMIFS(Sheet1!S71_PYearAmount,Sheet1!S71_SubMunicipalVoteNo,$AC:$AC,Sheet1!S71_A5CapexCode,$AD:$AD)","v":0},{"$f":"SUMIFS(Sheet1!S71_OriginalBudAmnt,Sheet1!S71_SubMunicipalVoteNo,$AC:$AC,Sheet1!S71_A5CapexCode,$AD:$AD)","v":0},{"$f":"SUMIFS(Sheet1!S71_AdjustmentBudAmnt,Sheet1!S71_SubMunicipalVoteNo,$AC:$AC,Sheet1!S71_A5CapexCode,$AD:$AD)","v":0},{"$f":"SUMIFS(Sheet1!S71_AdjustmentBudAmnt,Sheet1!S71_SubMunicipalVoteNo,$AC:$AC,Sheet1!S71_A5CapexCode,$AD:$AD)","v":0},0,{"$f":"SUMIFS(Sheet1!S71_ASBudgetAmount,Sheet1!S71_SubMunicipalVoteNo,$AC:$AC,Sheet1!S71_A5CapexCode,$AD:$AD)","v":0},{"$f":"SUMIFS(Sheet1!S71_OY1BudgetAmount,Sheet1!S71_SubMunicipalVoteNo,$AC:$AC,Sheet1!S71_A5CapexCode,$AD:$AD)","v":0},{"$f":"SUMIFS(Sheet1!S71_OY2BudgetAmount,Sheet1!S71_SubMunicipalVoteNo,$AC:$AC,Sheet1!S71_A5CapexCode,$AD:$AD)","v":0},null,null,null,null,null,null,null,null,null,null,null,null,null,null,null,null,149,"CE"]
["14.10 - [Name of sub-vote]",null,{"$f":"SUMIFS(Sheet1!S71_PPPYearAmount,Sheet1!S71_SubMunicipalVoteNo,$AC:$AC,Sheet1!S71_A5CapexCode,$AD:$AD)","v":0},{"$f":"SUMIFS(Sheet1!S71_PPYearAmount,Sheet1!S71_SubMunicipalVoteNo,$AC:$AC,Sheet1!S71_A5CapexCode,$AD:$AD)","v":0},{"$f":"SUMIFS(Sheet1!S71_PYearAmount,Sheet1!S71_SubMunicipalVoteNo,$AC:$AC,Sheet1!S71_A5CapexCode,$AD:$AD)","v":0},{"$f":"SUMIFS(Sheet1!S71_OriginalBudAmnt,Sheet1!S71_SubMunicipalVoteNo,$AC:$AC,Sheet1!S71_A5CapexCode,$AD:$AD)","v":0},{"$f":"SUMIFS(Sheet1!S71_AdjustmentBudAmnt,Sheet1!S71_SubMunicipalVoteNo,$AC:$AC,Sheet1!S71_A5CapexCode,$AD:$AD)","v":0},{"$f":"SUMIFS(Sheet1!S71_AdjustmentBudAmnt,Sheet1!S71_SubMunicipalVoteNo,$AC:$AC,Sheet1!S71_A5CapexCode,$AD:$AD)","v":0},0,{"$f":"SUMIFS(Sheet1!S71_ASBudgetAmount,Sheet1!S71_SubMunicipalVoteNo,$AC:$AC,Sheet1!S71_A5CapexCode,$AD:$AD)","v":0},{"$f":"SUMIFS(Sheet1!S71_OY1BudgetAmount,Sheet1!S71_SubMunicipalVoteNo,$AC:$AC,Sheet1!S71_A5CapexCode,$AD:$AD)","v":0},{"$f":"SUMIFS(Sheet1!S71_OY2BudgetAmount,Sheet1!S71_SubMunicipalVoteNo,$AC:$AC,Sheet1!S71_A5CapexCode,$AD:$AD)","v":0},null,null,null,null,null,null,null,null,null,null,null,null,null,null,null,null,1410,"CE"]
["Vote 15 - [NAME OF VOTE 15]",null,{"$f":"SUM(C330:C339)","v":0},0,0,0,0,0,0,0,0,0]
["15.1 - [Name of sub-vote]",null,{"$f":"SUMIFS(Sheet1!S71_PPPYearAmount,Sheet1!S71_SubMunicipalVoteNo,$AC:$AC,Sheet1!S71_A5CapexCode,$AD:$AD)","v":0},{"$f":"SUMIFS(Sheet1!S71_PPYearAmount,Sheet1!S71_SubMunicipalVoteNo,$AC:$AC,Sheet1!S71_A5CapexCode,$AD:$AD)","v":0},{"$f":"SUMIFS(Sheet1!S71_PYearAmount,Sheet1!S71_SubMunicipalVoteNo,$AC:$AC,Sheet1!S71_A5CapexCode,$AD:$AD)","v":0},{"$f":"SUMIFS(Sheet1!S71_OriginalBudAmnt,Sheet1!S71_SubMunicipalVoteNo,$AC:$AC,Sheet1!S71_A5CapexCode,$AD:$AD)","v":0},{"$f":"SUMIFS(Sheet1!S71_AdjustmentBudAmnt,Sheet1!S71_SubMunicipalVoteNo,$AC:$AC,Sheet1!S71_A5CapexCode,$AD:$AD)","v":0},{"$f":"SUMIFS(Sheet1!S71_AdjustmentBudAmnt,Sheet1!S71_SubMunicipalVoteNo,$AC:$AC,Sheet1!S71_A5CapexCode,$AD:$AD)","v":0},{"$f":"H330","v":0},{"$f":"SUMIFS(Sheet1!S71_ASBudgetAmount,Sheet1!S71_SubMunicipalVoteNo,$AC:$AC,Sheet1!S71_A5CapexCode,$AD:$AD)","v":0},{"$f":"SUMIFS(Sheet1!S71_OY1BudgetAmount,Sheet1!S71_SubMunicipalVoteNo,$AC:$AC,Sheet1!S71_A5CapexCode,$AD:$AD)","v":0},{"$f":"SUMIFS(Sheet1!S71_OY2BudgetAmount,Sheet1!S71_SubMunicipalVoteNo,$AC:$AC,Sheet1!S71_A5CapexCode,$AD:$AD)","v":0},null,null,null,null,null,null,null,null,null,null,null,null,null,null,null,null,151,"CE"]
["15.2 - [Name of sub-vote]",null,{"$f":"SUMIFS(Sheet1!S71_PPPYearAmount,Sheet1!S71_SubMunicipalVoteNo,$AC:$AC,Sheet1!S71_A5CapexCode,$AD:$AD)","v":0},{"$f":"SUMIFS(Sheet1!S71_PPYearAmount,Sheet1!S71_SubMunicipalVoteNo,$AC:$AC,Sheet1!S71_A5CapexCode,$AD:$AD)","v":0},{"$f":"SUMIFS(Sheet1!S71_PYearAmount,Sheet1!S71_SubMunicipalVoteNo,$AC:$AC,Sheet1!S71_A5CapexCode,$AD:$AD)","v":0},{"$f":"SUMIFS(Sheet1!S71_OriginalBudAmnt,Sheet1!S71_SubMunicipalVoteNo,$AC:$AC,Sheet1!S71_A5CapexCode,$AD:$AD)","v":0},{"$f":"SUMIFS(Sheet1!S71_AdjustmentBudAmnt,Sheet1!S71_SubMunicipalVoteNo,$AC:$AC,Sheet1!S71_A5CapexCode,$AD:$AD)","v":0},{"$f":"SUMIFS(Sheet1!S71_AdjustmentBudAmnt,Sheet1!S71_SubMunicipalVoteNo,$AC:$AC,Sheet1!S71_A5CapexCode,$AD:$AD)","v":0},0,{"$f":"SUMIFS(Sheet1!S71_ASBudgetAmount,Sheet1!S71_SubMunicipalVoteNo,$AC:$AC,Sheet1!S71_A5CapexCode,$AD:$AD)","v":0},{"$f":"SUMIFS(Sheet1!S71_OY1BudgetAmount,Sheet1!S71_SubMunicipalVoteNo,$AC:$AC,Sheet1!S71_A5CapexCode,$AD:$AD)","v":0},{"$f":"SUMIFS(Sheet1!S71_OY2BudgetAmount,Sheet1!S71_SubMunicipalVoteNo,$AC:$AC,Sheet1!S71_A5CapexCode,$AD:$AD)","v":0},null,null,null,null,null,null,null,null,null,null,null,null,null,null,null,null,152,"CE"]
["15.3 - [Name of sub-vote]",null,{"$f":"SUMIFS(Sheet1!S71_PPPYearAmount,Sheet1!S71_SubMunicipalVoteNo,$AC:$AC,Sheet1!S71_A5CapexCode,$AD:$AD)","v":0},{"$f":"SUMIFS(Sheet1!S71_PPYearAmount,Sheet1!S71_SubMunicipalVoteNo,$AC:$AC,Sheet1!S71_A5CapexCode,$AD:$AD)","v":0},{"$f":"SUMIFS(Sheet1!S71_PYearAmount,Sheet1!S71_SubMunicipalVoteNo,$AC:$AC,Sheet1!S71_A5CapexCode,$AD:$AD)","v":0},{"$f":"SUMIFS(Sheet1!S71_OriginalBudAmnt,Sheet1!S71_SubMunicipalVoteNo,$AC:$AC,Sheet1!S71_A5CapexCode,$AD:$AD)","v":0},{"$f":"SUMIFS(Sheet1!S71_AdjustmentBudAmnt,Sheet1!S71_SubMunicipalVoteNo,$AC:$AC,Sheet1!S71_A5CapexCode,$AD:$AD)","v":0},{"$f":"SUMIFS(Sheet1!S71_AdjustmentBudAmnt,Sheet1!S71_SubMunicipalVoteNo,$AC:$AC,Sheet1!S71_A5CapexCode,$AD:$AD)","v":0},0,{"$f":"SUMIFS(Sheet1!S71_ASBudgetAmount,Sheet1!S71_SubMunicipalVoteNo,$AC:$AC,Sheet1!S71_A5CapexCode,$AD:$AD)","v":0},{"$f":"SUMIFS(Sheet1!S71_OY1BudgetAmount,Sheet1!S71_SubMunicipalVoteNo,$AC:$AC,Sheet1!S71_A5CapexCode,$AD:$AD)","v":0},{"$f":"SUMIFS(Sheet1!S71_OY2BudgetAmount,Sheet1!S71_SubMunicipalVoteNo,$AC:$AC,Sheet1!S71_A5CapexCode,$AD:$AD)","v":0},null,null,null,null,null,null,null,null,null,null,null,null,null,null,null,null,153,"CE"]
["15.4 - [Name of sub-vote]",null,{"$f":"SUMIFS(Sheet1!S71_PPPYearAmount,Sheet1!S71_SubMunicipalVoteNo,$AC:$AC,Sheet1!S71_A5CapexCode,$AD:$AD)","v":0},{"$f":"SUMIFS(Sheet1!S71_PPYearAmount,Sheet1!S71_SubMunicipalVoteNo,$AC:$AC,Sheet1!S71_A5CapexCode,$AD:$AD)","v":0},{"$f":"SUMIFS(Sheet1!S71_PYearAmount,Sheet1!S71_SubMunicipalVoteNo,$AC:$AC,Sheet1!S71_A5CapexCode,$AD:$AD)","v":0},{"$f":"SUMIFS(Sheet1!S71_OriginalBudAmnt,Sheet1!S71_SubMunicipalVoteNo,$AC:$AC,Sheet1!S71_A5CapexCode,$AD:$AD)","v":0},{"$f":"SUMIFS(Sheet1!S71_AdjustmentBudAmnt,Sheet1!S71_SubMunicipalVoteNo,$AC:$AC,Sheet1!S71_A5CapexCode,$AD:$AD)","v":0},{"$f":"SUMIFS(Sheet1!S71_AdjustmentBudAmnt,Sheet1!S71_SubMunicipalVoteNo,$AC:$AC,Sheet1!S71_A5CapexCode,$AD:$AD)","v":0},0,{"$f":"SUMIFS(Sheet1!S71_ASBudgetAmount,Sheet1!S71_SubMunicipalVoteNo,$AC:$AC,Sheet1!S71_A5CapexCode,$AD:$AD)","v":0},{"$f":"SUMIFS(Sheet1!S71_OY1BudgetAmount,Sheet1!S71_SubMunicipalVoteNo,$AC:$AC,Sheet1!S71_A5CapexCode,$AD:$AD)","v":0},{"$f":"SUMIFS(Sheet1!S71_OY2BudgetAmount,Sheet1!S71_SubMunicipalVoteNo,$AC:$AC,Sheet1!S71_A5CapexCode,$AD:$AD)","v":0},null,null,null,null,null,null,null,null,null,null,null,null,null,null,null,null,154,"CE"]
["15.5 - [Name of sub-vote]",null,{"$f":"SUMIFS(Sheet1!S71_PPPYearAmount,Sheet1!S71_SubMunicipalVoteNo,$AC:$AC,Sheet1!S71_A5CapexCode,$AD:$AD)","v":0},{"$f":"SUMIFS(Sheet1!S71_PPYearAmount,Sheet1!S71_SubMunicipalVoteNo,$AC:$AC,Sheet1!S71_A5CapexCode,$AD:$AD)","v":0},{"$f":"SUMIFS(Sheet1!S71_PYearAmount,Sheet1!S71_SubMunicipalVoteNo,$AC:$AC,Sheet1!S71_A5CapexCode,$AD:$AD)","v":0},{"$f":"SUMIFS(Sheet1!S71_OriginalBudAmnt,Sheet1!S71_SubMunicipalVoteNo,$AC:$AC,Sheet1!S71_A5CapexCode,$AD:$AD)","v":0},{"$f":"SUMIFS(Sheet1!S71_AdjustmentBudAmnt,Sheet1!S71_SubMunicipalVoteNo,$AC:$AC,Sheet1!S71_A5CapexCode,$AD:$AD)","v":0},{"$f":"SUMIFS(Sheet1!S71_AdjustmentBudAmnt,Sheet1!S71_SubMunicipalVoteNo,$AC:$AC,Sheet1!S71_A5CapexCode,$AD:$AD)","v":0},0,{"$f":"SUMIFS(Sheet1!S71_ASBudgetAmount,Sheet1!S71_SubMunicipalVoteNo,$AC:$AC,Sheet1!S71_A5CapexCode,$AD:$AD)","v":0},{"$f":"SUMIFS(Sheet1!S71_OY1BudgetAmount,Sheet1!S71_SubMunicipalVoteNo,$AC:$AC,Sheet1!S71_A5CapexCode,$AD:$AD)","v":0},{"$f":"SUMIFS(Sheet1!S71_OY2BudgetAmount,Sheet1!S71_SubMunicipalVoteNo,$AC:$AC,Sheet1!S71_A5CapexCode,$AD:$AD)","v":0},null,null,null,null,null,null,null,null,null,null,null,null,null,null,null,null,155,"CE"]
["15.6 - [Name of sub-vote]",null,{"$f":"SUMIFS(Sheet1!S71_PPPYearAmount,Sheet1!S71_SubMunicipalVoteNo,$AC:$AC,Sheet1!S71_A5CapexCode,$AD:$AD)","v":0},{"$f":"SUMIFS(Sheet1!S71_PPYearAmount,Sheet1!S71_SubMunicipalVoteNo,$AC:$AC,Sheet1!S71_A5CapexCode,$AD:$AD)","v":0},{"$f":"SUMIFS(Sheet1!S71_PYearAmount,Sheet1!S71_SubMunicipalVoteNo,$AC:$AC,Sheet1!S71_A5CapexCode,$AD:$AD)","v":0},{"$f":"SUMIFS(Sheet1!S71_OriginalBudAmnt,Sheet1!S71_SubMunicipalVoteNo,$AC:$AC,Sheet1!S71_A5CapexCode,$AD:$AD)","v":0},{"$f":"SUMIFS(Sheet1!S71_AdjustmentBudAmnt,Sheet1!S71_SubMunicipalVoteNo,$AC:$AC,Sheet1!S71_A5CapexCode,$AD:$AD)","v":0},{"$f":"SUMIFS(Sheet1!S71_AdjustmentBudAmnt,Sheet1!S71_SubMunicipalVoteNo,$AC:$AC,Sheet1!S71_A5CapexCode,$AD:$AD)","v":0},0,{"$f":"SUMIFS(Sheet1!S71_ASBudgetAmount,Sheet1!S71_SubMunicipalVoteNo,$AC:$AC,Sheet1!S71_A5CapexCode,$AD:$AD)","v":0},{"$f":"SUMIFS(Sheet1!S71_OY1BudgetAmount,Sheet1!S71_SubMunicipalVoteNo,$AC:$AC,Sheet1!S71_A5CapexCode,$AD:$AD)","v":0},{"$f":"SUMIFS(Sheet1!S71_OY2BudgetAmount,Sheet1!S71_SubMunicipalVoteNo,$AC:$AC,Sheet1!S71_A5CapexCode,$AD:$AD)","v":0},null,null,null,null,null,null,null,null,null,null,null,null,null,null,null,null,156,"CE"]
["15.7 - [Name of sub-vote]",null,{"$f":"SUMIFS(Sheet1!S71_PPPYearAmount,Sheet1!S71_SubMunicipalVoteNo,$AC:$AC,Sheet1!S71_A5CapexCode,$AD:$AD)","v":0},{"$f":"SUMIFS(Sheet1!S71_PPYearAmount,Sheet1!S71_SubMunicipalVoteNo,$AC:$AC,Sheet1!S71_A5CapexCode,$AD:$AD)","v":0},{"$f":"SUMIFS(Sheet1!S71_PYearAmount,Sheet1!S71_SubMunicipalVoteNo,$AC:$AC,Sheet1!S71_A5CapexCode,$AD:$AD)","v":0},{"$f":"SUMIFS(Sheet1!S71_OriginalBudAmnt,Sheet1!S71_SubMunicipalVoteNo,$AC:$AC,Sheet1!S71_A5CapexCode,$AD:$AD)","v":0},{"$f":"SUMIFS(Sheet1!S71_AdjustmentBudAmnt,Sheet1!S71_SubMunicipalVoteNo,$AC:$AC,Sheet1!S71_A5CapexCode,$AD:$AD)","v":0},{"$f":"SUMIFS(Sheet1!S71_AdjustmentBudAmnt,Sheet1!S71_SubMunicipalVoteNo,$AC:$AC,Sheet1!S71_A5CapexCode,$AD:$AD)","v":0},0,{"$f":"SUMIFS(Sheet1!S71_ASBudgetAmount,Sheet1!S71_SubMunicipalVoteNo,$AC:$AC,Sheet1!S71_A5CapexCode,$AD:$AD)","v":0},{"$f":"SUMIFS(Sheet1!S71_OY1BudgetAmount,Sheet1!S71_SubMunicipalVoteNo,$AC:$AC,Sheet1!S71_A5CapexCode,$AD:$AD)","v":0},{"$f":"SUMIFS(Sheet1!S71_OY2BudgetAmount,Sheet1!S71_SubMunicipalVoteNo,$AC:$AC,Sheet1!S71_A5CapexCode,$AD:$AD)","v":0},null,null,null,null,null,null,null,null,null,null,null,null,null,null,null,null,157,"CE"]
["15.8 - [Name of sub-vote]",null,{"$f":"SUMIFS(Sheet1!S71_PPPYearAmount,Sheet1!S71_SubMunicipalVoteNo,$AC:$AC,Sheet1!S71_A5CapexCode,$AD:$AD)","v":0},{"$f":"SUMIFS(Sheet1!S71_PPYearAmount,Sheet1!S71_SubMunicipalVoteNo,$AC:$AC,Sheet1!S71_A5CapexCode,$AD:$AD)","v":0},{"$f":"SUMIFS(Sheet1!S71_PYearAmount,Sheet1!S71_SubMunicipalVoteNo,$AC:$AC,Sheet1!S71_A5CapexCode,$AD:$AD)","v":0},{"$f":"SUMIFS(Sheet1!S71_OriginalBudAmnt,Sheet1!S71_SubMunicipalVoteNo,$AC:$AC,Sheet1!S71_A5CapexCode,$AD:$AD)","v":0},{"$f":"SUMIFS(Sheet1!S71_AdjustmentBudAmnt,Sheet1!S71_SubMunicipalVoteNo,$AC:$AC,Sheet1!S71_A5CapexCode,$AD:$AD)","v":0},{"$f":"SUMIFS(Sheet1!S71_AdjustmentBudAmnt,Sheet1!S71_SubMunicipalVoteNo,$AC:$AC,Sheet1!S71_A5CapexCode,$AD:$AD)","v":0},0,{"$f":"SUMIFS(Sheet1!S71_ASBudgetAmount,Sheet1!S71_SubMunicipalVoteNo,$AC:$AC,Sheet1!S71_A5CapexCode,$AD:$AD)","v":0},{"$f":"SUMIFS(Sheet1!S71_OY1BudgetAmount,Sheet1!S71_SubMunicipalVoteNo,$AC:$AC,Sheet1!S71_A5CapexCode,$AD:$AD)","v":0},{"$f":"SUMIFS(Sheet1!S71_OY2BudgetAmount,Sheet1!S71_SubMunicipalVoteNo,$AC:$AC,Sheet1!S71_A5CapexCode,$AD:$AD)","v":0},null,null,null,null,null,null,null,null,null,null,null,null,null,null,null,null,158,"CE"]
["15.9 - [Name of sub-vote]",null,{"$f":"SUMIFS(Sheet1!S71_PPPYearAmount,Sheet1!S71_SubMunicipalVoteNo,$AC:$AC,Sheet1!S71_A5CapexCode,$AD:$AD)","v":0},{"$f":"SUMIFS(Sheet1!S71_PPYearAmount,Sheet1!S71_SubMunicipalVoteNo,$AC:$AC,Sheet1!S71_A5CapexCode,$AD:$AD)","v":0},{"$f":"SUMIFS(Sheet1!S71_PYearAmount,Sheet1!S71_SubMunicipalVoteNo,$AC:$AC,Sheet1!S71_A5CapexCode,$AD:$AD)","v":0},{"$f":"SUMIFS(Sheet1!S71_OriginalBudAmnt,Sheet1!S71_SubMunicipalVoteNo,$AC:$AC,Sheet1!S71_A5CapexCode,$AD:$AD)","v":0},{"$f":"SUMIFS(Sheet1!S71_AdjustmentBudAmnt,Sheet1!S71_SubMunicipalVoteNo,$AC:$AC,Sheet1!S71_A5CapexCode,$AD:$AD)","v":0},{"$f":"SUMIFS(Sheet1!S71_AdjustmentBudAmnt,Sheet1!S71_SubMunicipalVoteNo,$AC:$AC,Sheet1!S71_A5CapexCode,$AD:$AD)","v":0},0,{"$f":"SUMIFS(Sheet1!S71_ASBudgetAmount,Sheet1!S71_SubMunicipalVoteNo,$AC:$AC,Sheet1!S71_A5CapexCode,$AD:$AD)","v":0},{"$f":"SUMIFS(Sheet1!S71_OY1BudgetAmount,Sheet1!S71_SubMunicipalVoteNo,$AC:$AC,Sheet1!S71_A5CapexCode,$AD:$AD)","v":0},{"$f":"SUMIFS(Sheet1!S71_OY2BudgetAmount,Sheet1!S71_SubMunicipalVoteNo,$AC:$AC,Sheet1!S71_A5CapexCode,$AD:$AD)","v":0},null,null,null,null,null,null,null,null,null,null,null,null,null,null,null,null,159,"CE"]
["15.10 - [Name of sub-vote]",null,{"$f":"SUMIFS(Sheet1!S71_PPPYearAmount,Sheet1!S71_SubMunicipalVoteNo,$AC:$AC,Sheet1!S71_A5CapexCode,$AD:$AD)","v":0},{"$f":"SUMIFS(Sheet1!S71_PPYearAmount,Sheet1!S71_SubMunicipalVoteNo,$AC:$AC,Sheet1!S71_A5CapexCode,$AD:$AD)","v":0},{"$f":"SUMIFS(Sheet1!S71_PYearAmount,Sheet1!S71_SubMunicipalVoteNo,$AC:$AC,Sheet1!S71_A5CapexCode,$AD:$AD)","v":0},{"$f":"SUMIFS(Sheet1!S71_OriginalBudAmnt,Sheet1!S71_SubMunicipalVoteNo,$AC:$AC,Sheet1!S71_A5CapexCode,$AD:$AD)","v":0},{"$f":"SUMIFS(Sheet1!S71_AdjustmentBudAmnt,Sheet1!S71_SubMunicipalVoteNo,$AC:$AC,Sheet1!S71_A5CapexCode,$AD:$AD)","v":0},{"$f":"SUMIFS(Sheet1!S71_AdjustmentBudAmnt,Sheet1!S71_SubMunicipalVoteNo,$AC:$AC,Sheet1!S71_A5CapexCode,$AD:$AD)","v":0},0,{"$f":"SUMIFS(Sheet1!S71_ASBudgetAmount,Sheet1!S71_SubMunicipalVoteNo,$AC:$AC,Sheet1!S71_A5CapexCode,$AD:$AD)","v":0},{"$f":"SUMIFS(Sheet1!S71_OY1BudgetAmount,Sheet1!S71_SubMunicipalVoteNo,$AC:$AC,Sheet1!S71_A5CapexCode,$AD:$AD)","v":0},{"$f":"SUMIFS(Sheet1!S71_OY2BudgetAmount,Sheet1!S71_SubMunicipalVoteNo,$AC:$AC,Sheet1!S71_A5CapexCode,$AD:$AD)","v":0},null,null,null,null,null,null,null,null,null,null,null,null,null,null,null,null,1510,"CE"]
["Capital single-year expenditure sub-total",null,{"$f":"C175+C186+C197+C208+C219+C230+C241+C252+C263+C274+C285+C296+C307+C318+C329","v":144938397},{"$f":"D175+D186+D197+D208+D219+D230+D241+D252+D263+D274+D285+D296+D307+D318+D329","v":111803196},114943552,148172229,138207867,138207867,138207867,158791188,173326968,159635856]
["Total Capital Expenditure",null,{"$f":"C171+C340","v":144938397},{"$f":"D171+D340","v":111803196},114943552,148172229,138207867,138207867,138207867,158791188,173326968,159635856]

{"sheet":"A6-FinPos","index":38,"n_rows":62,"n_cols":29,"rows_kept":62,"cut":false,"hidden":false,"merged":[[1,9,1,11],[1,5,1,8]]}
[{"$f":"muni&\" - \"&Approve6","v":"LIM331 Greater Giyani - Table A6 Budgeted Financial Position"}]
[{"$f":"desc","v":"Description"},{"$f":"head27","v":"Ref"},{"$f":"head1b","v":"2019/20"},{"$f":"head1A","v":"2020/21"},{"$f":"Head1","v":"2021/22"},{"$f":"Head2","v":"Current Year 2022/23"},null,null,null,{"$f":"Head3","v":"2023/24 Medium Term Revenue & Expenditure Framework"}]
["R thousand",null,{"$f":"Head5","v":"Audited Outcome"},{"$f":"Head5","v":"Audited Outcome"},{"$f":"Head5","v":"Audited Outcome"},{"$f":"Head6","v":"Original Budget"},{"$f":"Head7","v":"Adjusted Budget"},{"$f":"Head8","v":"Full Year Forecast"},{"$f":"Head5b","v":"Pre-audit outcome"},{"$f":"Head9","v":"Budget Year 2023/24"},{"$f":"Head10","v":"Budget Year +1 2024/25"},{"$f":"Head11","v":"Budget Year +2 2025/26"}]
["ASSETS"]
["Current assets"]
["Cash and cash equivalents",null,{"$f":"SUMIFS(Sheet1!S71_PPPYearAmount,Sheet1!S71_A6Code,$AC:$AC)","v":250866022},{"$f":"SUMIFS(Sheet1!S71_PPYearAmount,Sheet1!S71_A6Code,$AC:$AC)","v":338969010},{"$f":"SUMIFS(Sheet1!S71_PYearAmount,Sheet1!S71_A6Code,$AC:$AC)","v":368880744},{"$f":"SUMIFS(Sheet1!S71_OriginalBudAmnt,Sheet1!S71_A6Code,$AC:$AC)","v":131313245},{"$f":"SUMIFS(Sheet1!S71_AdjustmentBudAmnt,Sheet1!S71_A6Code,$AC:$AC)","v":272011014},{"$f":"SUMIFS(Sheet1!S71_AdjustmentBudAmnt,Sheet1!S71_A6Code,$AC:$AC)","v":272011014},{"$f":"H6","v":272011014},{"$f":"SUMIFS(Sheet1!S71_ASBudgetAmount,Sheet1!S71_A6Code,$AC:$AC)","v":124245952.16666675},{"$f":"SUMIFS(Sheet1!S71_OY1BudgetAmount,Sheet1!S71_A6Code,$AC:$AC)","v":60588523.024316758},{"$f":"SUMIFS(Sheet1!S71_OY2BudgetAmount,Sheet1!S71_A6Code,$AC:$AC)","v":11797028.419876456},null,null,null,null,null,null,null,null,null,null,null,null,null,null,null,null,"0120"]
["Trade and other receivables from exchange transactions",1,{"$f":"'SA3'!C19","v":70371445},{"$f":"'SA3'!D19","v":82116161},{"$f":"'SA3'!E19","v":114738444},{"$f":"'SA3'!F19","v":14660517},{"$f":"'SA3'!G19","v":36323777.820127897},{"$f":"'SA3'!H19","v":36323777.820127897},{"$f":"H7","v":36323777.820127897},{"$f":"'SA3'!J19","v":5718968.0401278958},{"$f":"'SA3'!K19","v":4725979.0401278958},{"$f":"'SA3'!L19","v":3574181.0401278995},null,null,null,null,null,null,null,null,null,null,null,null,null,null,null,null,"0130"]
["Receivables from non-exchange transactions",1,{"$f":"'SA3'!C28","v":176826154},{"$f":"'SA3'!D28","v":189137824},{"$f":"'SA3'!E28","v":214504757},{"$f":"'SA3'!F28","v":71837067},{"$f":"'SA3'!G28","v":103742350},{"$f":"'SA3'!H28","v":103742350},{"$f":"H8","v":103742350},{"$f":"'SA3'!J28","v":101966724},{"$f":"'SA3'!K28","v":101405260},{"$f":"'SA3'!L28","v":100834141},null,null,null,null,null,null,null,null,null,null,null,null,null,null,null,null,"0140"]
["Current portion of non-current receivables",null,{"$f":"SUMIFS(Sheet1!S71_PPPYearAmount,Sheet1!S71_A6Code,$AC:$AC)","v":0},{"$f":"SUMIFS(Sheet1!S71_PPYearAmount,Sheet1!S71_A6Code,$AC:$AC)","v":0},{"$f":"SUMIFS(Sheet1!S71_PYearAmount,Sheet1!S71_A6Code,$AC:$AC)","v":0},{"$f":"SUMIFS(Sheet1!S71_OriginalBudAmnt,Sheet1!S71_A6Code,$AC:$AC)","v":0},{"$f":"SUMIFS(Sheet1!S71_AdjustmentBudAmnt,Sheet1!S71_A6Code,$AC:$AC)","v":0},{"$f":"SUMIFS(Sheet1!S71_AdjustmentBudAmnt,Sheet1!S71_A6Code,$AC:$AC)","v":0},{"$f":"H9","v":0},{"$f":"SUMIFS(Sheet1!S71_ASBudgetAmount,Sheet1!S71_A6Code,$AC:$AC)","v":0},{"$f":"SUMIFS(Sheet1!S71_OY1BudgetAmount,Sheet1!S71_A6Code,$AC:$AC)","v":0},{"$f":"SUMIFS(Sheet1!S71_OY2BudgetAmount,Sheet1!S71_A6Code,$AC:$AC)","v":0},null,null,null,null,null,null,null,null,null,null,null,null,null,null,null,null,"0150"]
["Inventory",2,{"$f":"'SA3'!C123","v":36163930},{"$f":"'SA3'!D123","v":35578219},{"$f":"'SA3'!E123","v":34210322},{"$f":"'SA3'!F123","v":23370103},{"$f":"'SA3'!G123","v":21888033},{"$f":"'SA3'!H123","v":21888033},{"$f":"H10","v":21888033},{"$f":"'SA3'!J123","v":8688033},{"$f":"'SA3'!K123","v":8068033},{"$f":"'SA3'!L123","v":7398033},null,null,null,null,null,null,null,null,null,null,null,null,null,null,null,null,"0160"]
["VAT",null,{"$f":"SUMIFS(Sheet1!S71_PPPYearAmount,Sheet1!S71_A6Code,$AC:$AC)","v":17700709},{"$f":"SUMIFS(Sheet1!S71_PPYearAmount,Sheet1!S71_A6Code,$AC:$AC)","v":28877369},{"$f":"SUMIFS(Sheet1!S71_PYearAmount,Sheet1!S71_A6Code,$AC:$AC)","v":36481147},{"$f":"SUMIFS(Sheet1!S71_OriginalBudAmnt,Sheet1!S71_A6Code,$AC:$AC)","v":15405118},{"$f":"SUMIFS(Sheet1!S71_AdjustmentBudAmnt,Sheet1!S71_A6Code,$AC:$AC)","v":263397231},{"$f":"SUMIFS(Sheet1!S71_AdjustmentBudAmnt,Sheet1!S71_A6Code,$AC:$AC)","v":263397231},{"$f":"H11","v":263397231},{"$f":"SUMIFS(Sheet1!S71_ASBudgetAmount,Sheet1!S71_A6Code,$AC:$AC)","v":97218834},{"$f":"SUMIFS(Sheet1!S71_OY1BudgetAmount,Sheet1!S71_A6Code,$AC:$AC)","v":97218834},{"$f":"SUMIFS(Sheet1!S71_OY2BudgetAmount,Sheet1!S71_A6Code,$AC:$AC)","v":97218834},null,null,null,null,null,null,null,null,null,null,null,null,null,null,null,null,"0170"]
["Other current assets",null,{"$f":"SUMIFS(Sheet1!S71_PPPYearAmount,Sheet1!S71_A6Code,$AC:$AC)","v":251263},{"$f":"SUMIFS(Sheet1!S71_PPYearAmount,Sheet1!S71_A6Code,$AC:$AC)","v":251263},{"$f":"SUMIFS(Sheet1!S71_PYearAmount,Sheet1!S71_A6Code,$AC:$AC)","v":244128},{"$f":"SUMIFS(Sheet1!S71_OriginalBudAmnt,Sheet1!S71_A6Code,$AC:$AC)","v":0},{"$f":"SUMIFS(Sheet1!S71_AdjustmentBudAmnt,Sheet1!S71_A6Code,$AC:$AC)","v":0},{"$f":"SUMIFS(Sheet1!S71_AdjustmentBudAmnt,Sheet1!S71_A6Code,$AC:$AC)","v":0},0,{"$f":"SUMIFS(Sheet1!S71_ASBudgetAmount,Sheet1!S71_A6Code,$AC:$AC)","v":205263},{"$f":"SUMIFS(Sheet1!S71_OY1BudgetAmount,Sheet1!S71_A6Code,$AC:$AC)","v":203009},{"$f":"SUMIFS(Sheet1!S71_OY2BudgetAmount,Sheet1!S71_A6Code,$AC:$AC)","v":200741},null,null,null,null,null,null,null,null,null,null,null,null,null,null,null,null,"0180"]
["Total current assets",null,{"$f":"SUM(C6:C12)","v":552179523},674929846,769059542,256586050,697362405.82012796,697362405.82012796,697362405.82012796,338043774.20679462,272209638.06444466,221022958.46000436]
["Non current assets"]
["Investments",null,{"$f":"SUMIFS(Sheet1!S71_PPPYearAmount,Sheet1!S71_A6Code,$AC:$AC)","v":0},{"$f":"SUMIFS(Sheet1!S71_PPYearAmount,Sheet1!S71_A6Code,$AC:$AC)","v":0},{"$f":"SUMIFS(Sheet1!S71_PYearAmount,Sheet1!S71_A6Code,$AC:$AC)","v":0},{"$f":"SUMIFS(Sheet1!S71_OriginalBudAmnt,Sheet1!S71_A6Code,$AC:$AC)","v":0},{"$f":"SUMIFS(Sheet1!S71_AdjustmentBudAmnt,Sheet1!S71_A6Code,$AC:$AC)","v":0},{"$f":"SUMIFS(Sheet1!S71_AdjustmentBudAmnt,Sheet1!S71_A6Code,$AC:$AC)","v":0},{"$f":"H15","v":0},{"$f":"SUMIFS(Sheet1!S71_ASBudgetAmount,Sheet1!S71_A6Code,$AC:$AC)","v":0},{"$f":"SUMIFS(Sheet1!S71_OY1BudgetAmount,Sheet1!S71_A6Code,$AC:$AC)","v":0},{"$f":"SUMIFS(Sheet1!S71_OY2BudgetAmount,Sheet1!S71_A6Code,$AC:$AC)","v":0},null,null,null,null,null,null,null,null,null,null,null,null,null,null,null,null,"0210"]
["Investment property",null,{"$f":"SUMIFS(Sheet1!S71_PPPYearAmount,Sheet1!S71_A6Code,$AC:$AC)","v":26026364},{"$f":"SUMIFS(Sheet1!S71_PPYearAmount,Sheet1!S71_A6Code,$AC:$AC)","v":25690570},{"$f":"SUMIFS(Sheet1!S71_PYearAmount,Sheet1!S71_A6Code,$AC:$AC)","v":25599820},{"$f":"SUMIFS(Sheet1!S71_OriginalBudAmnt,Sheet1!S71_A6Code,$AC:$AC)","v":25935570},{"$f":"SUMIFS(Sheet1!S71_AdjustmentBudAmnt,Sheet1!S71_A6Code,$AC:$AC)","v":25599820},{"$f":"SUMIFS(Sheet1!S71_AdjustmentBudAmnt,Sheet1!S71_A6Code,$AC:$AC)","v":25599820},25599820,{"$f":"SUMIFS(Sheet1!S71_ASBudgetAmount,Sheet1!S71_A6Code,$AC:$AC)","v":25499820},{"$f":"SUMIFS(Sheet1!S71_OY1BudgetAmount,Sheet1!S71_A6Code,$AC:$AC)","v":25599820},{"$f":"SUMIFS(Sheet1!S71_OY2BudgetAmount,Sheet1!S71_A6Code,$AC:$AC)","v":25599820},null,null,null,null,null,null,null,null,null,null,null,null,null,null,null,null,"0220"]
["Property, plant and equipment",3,{"$f":"'SA3'!C129","v":-257772243},{"$f":"'SA3'!D129","v":-393421575},{"$f":"'SA3'!E129","v":-468171733},{"$f":"'SA3'!F129","v":2179912490},{"$f":"'SA3'!G129","v":1147638577},{"$f":"'SA3'!H129","v":1147638577},{"$f":"H17","v":1147638577},{"$f":"'SA3'!J129","v":962094308},{"$f":"'SA3'!K129","v":976160088},{"$f":"'SA3'!L129","v":961448976},null,null,null,null,null,null,null,null,null,null,null,null,null,null,null,null,"0230"]
["Biological assets",null,{"$f":"SUMIFS(Sheet1!S71_PPPYearAmount,Sheet1!S71_A6Code,$AC:$AC)","v":0},{"$f":"SUMIFS(Sheet1!S71_PPYearAmount,Sheet1!S71_A6Code,$AC:$AC)","v":0},{"$f":"SUMIFS(Sheet1!S71_PYearAmount,Sheet1!S71_A6Code,$AC:$AC)","v":0},{"$f":"SUMIFS(Sheet1!S71_OriginalBudAmnt,Sheet1!S71_A6Code,$AC:$AC)","v":0},{"$f":"SUMIFS(Sheet1!S71_AdjustmentBudAmnt,Sheet1!S71_A6Code,$AC:$AC)","v":0},{"$f":"SUMIFS(Sheet1!S71_AdjustmentBudAmnt,Sheet1!S71_A6Code,$AC:$AC)","v":0},{"$f":"H18","v":0},{"$f":"SUMIFS(Sheet1!S71_ASBudgetAmount,Sheet1!S71_A6Code,$AC:$AC)","v":0},{"$f":"SUMIFS(Sheet1!S71_OY1BudgetAmount,Sheet1!S71_A6Code,$AC:$AC)","v":0},{"$f":"SUMIFS(Sheet1!S71_OY2BudgetAmount,Sheet1!S71_A6Code,$AC:$AC)","v":0},null,null,null,null,null,null,null,null,null,null,null,null,null,null,null,null,"0240"]
["Living and non-living resources",null,{"$f":"SUMIFS(Sheet1!S71_PPPYearAmount,Sheet1!S71_A6Code,$AC:$AC)","v":0},{"$f":"SUMIFS(Sheet1!S71_PPYearAmount,Sheet1!S71_A6Code,$AC:$AC)","v":0},{"$f":"SUMIFS(Sheet1!S71_PYearAmount,Sheet1!S71_A6Code,$AC:$AC)","v":0},{"$f":"SUMIFS(Sheet1!S71_OriginalBudAmnt,Sheet1!S71_A6Code,$AC:$AC)","v":0},{"$f":"SUMIFS(Sheet1!S71_AdjustmentBudAmnt,Sheet1!S71_A6Code,$AC:$AC)","v":0},{"$f":"SUMIFS(Sheet1!S71_AdjustmentBudAmnt,Sheet1!S71_A6Code,$AC:$AC)","v":0},0,{"$f":"SUMIFS(Sheet1!S71_ASBudgetAmount,Sheet1!S71_A6Code,$AC:$AC)","v":0},{"$f":"SUMIFS(Sheet1!S71_OY1BudgetAmount,Sheet1!S71_A6Code,$AC:$AC)","v":0},{"$f":"SUMIFS(Sheet1!S71_OY2BudgetAmount,Sheet1!S71_A6Code,$AC:$AC)","v":0}]
["Heritage assets",null,{"$f":"SUMIFS(Sheet1!S71_PPPYearAmount,Sheet1!S71_A6Code,$AC:$AC)","v":206303},{"$f":"SUMIFS(Sheet1!S71_PPYearAmount,Sheet1!S71_A6Code,$AC:$AC)","v":0},{"$f":"SUMIFS(Sheet1!S71_PYearAmount,Sheet1!S71_A6Code,$AC:$AC)","v":0},{"$f":"SUMIFS(Sheet1!S71_OriginalBudAmnt,Sheet1!S71_A6Code,$AC:$AC)","v":206303},{"$f":"SUMIFS(Sheet1!S71_AdjustmentBudAmnt,Sheet1!S71_A6Code,$AC:$AC)","v":206303},{"$f":"SUMIFS(Sheet1!S71_AdjustmentBudAmnt,Sheet1!S71_A6Code,$AC:$AC)","v":206303},206303,{"$f":"SUMIFS(Sheet1!S71_ASBudgetAmount,Sheet1!S71_A6Code,$AC:$AC)","v":0},{"$f":"SUMIFS(Sheet1!S71_OY1BudgetAmount,Sheet1!S71_A6Code,$AC:$AC)","v":0},{"$f":"SUMIFS(Sheet1!S71_OY2BudgetAmount,Sheet1!S71_A6Code,$AC:$AC)","v":0},null,null,null,null,null,null,null,null,null,null,null,null,null,null,null,null,"0260"]
["Intangible assets",null,{"$f":"SUMIFS(Sheet1!S71_PPPYearAmount,Sheet1!S71_A6Code,$AC:$AC)","v":-3662604},{"$f":"SUMIFS(Sheet1!S71_PPYearAmount,Sheet1!S71_A6Code,$AC:$AC)","v":-5570626},{"$f":"SUMIFS(Sheet1!S71_PYearAmount,Sheet1!S71_A6Code,$AC:$AC)","v":-8773042},{"$f":"SUMIFS(Sheet1!S71_OriginalBudAmnt,Sheet1!S71_A6Code,$AC:$AC)","v":2015267},{"$f":"SUMIFS(Sheet1!S71_AdjustmentBudAmnt,Sheet1!S71_A6Code,$AC:$AC)","v":10074315},{"$f":"SUMIFS(Sheet1!S71_AdjustmentBudAmnt,Sheet1!S71_A6Code,$AC:$AC)","v":10074315},10074315,{"$f":"SUMIFS(Sheet1!S71_ASBudgetAmount,Sheet1!S71_A6Code,$AC:$AC)","v":11734315},{"$f":"SUMIFS(Sheet1!S71_OY1BudgetAmount,Sheet1!S71_A6Code,$AC:$AC)","v":11204315},{"$f":"SUMIFS(Sheet1!S71_OY2BudgetAmount,Sheet1!S71_A6Code,$AC:$AC)","v":11224315},null,null,null,null,null,null,null,null,null,null,null,null,null,null,null,null,"0270"]
["Trade and other receivables from exchange transactions",null,{"$f":"SUMIFS(Sheet1!S71_PPPYearAmount,Sheet1!S71_A6Code,$AC:$AC)","v":0},{"$f":"SUMIFS(Sheet1!S71_PPYearAmount,Sheet1!S71_A6Code,$AC:$AC)","v":0},{"$f":"SUMIFS(Sheet1!S71_PYearAmount,Sheet1!S71_A6Code,$AC:$AC)","v":0},{"$f":"SUMIFS(Sheet1!S71_OriginalBudAmnt,Sheet1!S71_A6Code,$AC:$AC)","v":0},{"$f":"SUMIFS(Sheet1!S71_AdjustmentBudAmnt,Sheet1!S71_A6Code,$AC:$AC)","v":0},{"$f":"SUMIFS(Sheet1!S71_AdjustmentBudAmnt,Sheet1!S71_A6Code,$AC:$AC)","v":0},0,{"$f":"SUMIFS(Sheet1!S71_ASBudgetAmount,Sheet1!S71_A6Code,$AC:$AC)","v":0},{"$f":"SUMIFS(Sheet1!S71_OY1BudgetAmount,Sheet1!S71_A6Code,$AC:$AC)","v":0},{"$f":"SUMIFS(Sheet1!S71_OY2BudgetAmount,Sheet1!S71_A6Code,$AC:$AC)","v":0},null,null,null,null,null,null,null,null,null,null,null,null,null,null,null,null,"0280"]
["Non-current receivables from non-exchange transactions",null,{"$f":"SUMIFS(Sheet1!S71_PPPYearAmount,Sheet1!S71_A6Code,$AC:$AC)","v":0},{"$f":"SUMIFS(Sheet1!S71_PPYearAmount,Sheet1!S71_A6Code,$AC:$AC)","v":0},{"$f":"SUMIFS(Sheet1!S71_PYearAmount,Sheet1!S71_A6Code,$AC:$AC)","v":0},{"$f":"SUMIFS(Sheet1!S71_OriginalBudAmnt,Sheet1!S71_A6Code,$AC:$AC)","v":0},{"$f":"SUMIFS(Sheet1!S71_AdjustmentBudAmnt,Sheet1!S71_A6Code,$AC:$AC)","v":0},{"$f":"SUMIFS(Sheet1!S71_AdjustmentBudAmnt,Sheet1!S71_A6Code,$AC:$AC)","v":0},0,{"$f":"SUMIFS(Sheet1!S71_ASBudgetAmount,Sheet1!S71_A6Code,$AC:$AC)","v":0},{"$f":"SUMIFS(Sheet1!S71_OY1BudgetAmount,Sheet1!S71_A6Code,$AC:$AC)","v":0},{"$f":"SUMIFS(Sheet1!S71_OY2BudgetAmount,Sheet1!S71_A6Code,$AC:$AC)","v":0},null,null,null,null,null,null,null,null,null,null,null,null,null,null,null,null,"0290"]
["Other non-current assets",null,{"$f":"SUMIFS(Sheet1!S71_PPPYearAmount,Sheet1!S71_A6Code,$AC:$AC)","v":0},{"$f":"SUMIFS(Sheet1!S71_PPYearAmount,Sheet1!S71_A6Code,$AC:$AC)","v":0},{"$f":"SUMIFS(Sheet1!S71_PYearAmount,Sheet1!S71_A6Code,$AC:$AC)","v":0},{"$f":"SUMIFS(Sheet1!S71_OriginalBudAmnt,Sheet1!S71_A6Code,$AC:$AC)","v":0},{"$f":"SUMIFS(Sheet1!S71_AdjustmentBudAmnt,Sheet1!S71_A6Code,$AC:$AC)","v":0},{"$f":"SUMIFS(Sheet1!S71_AdjustmentBudAmnt,Sheet1!S71_A6Code,$AC:$AC)","v":0},0,{"$f":"SUMIFS(Sheet1!S71_ASBudgetAmount,Sheet1!S71_A6Code,$AC:$AC)","v":0},{"$f":"SUMIFS(Sheet1!S71_OY1BudgetAmount,Sheet1!S71_A6Code,$AC:$AC)","v":0},{"$f":"SUMIFS(Sheet1!S71_OY2BudgetAmount,Sheet1!S71_A6Code,$AC:$AC)","v":0},null,null,null,null,null,null,null,null,null,null,null,null,null,null,null,null,"0300"]
["Total non current assets",null,{"$f":"SUM(C15:C24)","v":-235202180},{"$f":"SUM(D15:D24)","v":-373301631},-451344955,2208069630,1183519015,1183519015,1183519015,999328443,1012964223,998273111]
["TOTAL ASSETS",null,{"$f":"C13+C25","v":316977343},{"$f":"D13+D25","v":301628215},{"$f":"E13+E25","v":317714587},{"$f":"F13+F25","v":2464655680},1880881420.820128,1880881420.820128,1880881420.820128,1337372217.2067947,1285173861.0644445,1219296069.4600043]
["LIABILITIES"]
["Current liabilities"]
["Bank overdraft",null,{"$f":"SUMIFS(Sheet1!S71_PPPYearAmount,Sheet1!S71_A6Code,$AC:$AC)","v":0},{"$f":"SUMIFS(Sheet1!S71_PPYearAmount,Sheet1!S71_A6Code,$AC:$AC)","v":0},{"$f":"SUMIFS(Sheet1!S71_PYearAmount,Sheet1!S71_A6Code,$AC:$AC)","v":0},{"$f":"-SUMIFS(Sheet1!S71_OriginalBudAmnt,Sheet1!S71_A6Code,$AC:$AC)","v":0},{"$f":"-SUMIFS(Sheet1!S71_AdjustmentBudAmnt,Sheet1!S71_A6Code,$AC:$AC)","v":0},{"$f":"-SUMIFS(Sheet1!S71_AdjustmentBudAmnt,Sheet1!S71_A6Code,$AC:$AC)","v":0},{"$f":"H29","v":0},{"$f":"-SUMIFS(Sheet1!S71_ASBudgetAmount,Sheet1!S71_A6Code,$AC:$AC)","v":0},{"$f":"-SUMIFS(Sheet1!S71_OY1BudgetAmount,Sheet1!S71_A6Code,$AC:$AC)","v":0},{"$f":"-SUMIFS(Sheet1!S71_OY2BudgetAmount,Sheet1!S71_A6Code,$AC:$AC)","v":0},null,null,null,null,null,null,null,null,null,null,null,null,null,null,null,null,"0350"]
["Financial liabilities",null,{"$f":"'SA3'!C135","v":480166},{"$f":"'SA3'!D135","v":0},{"$f":"'SA3'!E135","v":0},{"$f":"'SA3'!F135","v":0},{"$f":"'SA3'!G135","v":0},{"$f":"'SA3'!H135","v":0},{"$f":"H30","v":0},{"$f":"'SA3'!J135","v":0},{"$f":"'SA3'!K135","v":0},{"$f":"'SA3'!L135","v":0},null,null,null,null,null,null,null,null,null,null,null,null,null,null,null,null,"0360"]
["Consumer deposits",null,{"$f":"SUMIFS(Sheet1!S71_PPPYearAmount,Sheet1!S71_A6Code,$AC:$AC)","v":0},{"$f":"SUMIFS(Sheet1!S71_PPYearAmount,Sheet1!S71_A6Code,$AC:$AC)","v":0},{"$f":"SUMIFS(Sheet1!S71_PYearAmount,Sheet1!S71_A6Code,$AC:$AC)","v":0},{"$f":"-SUMIFS(Sheet1!S71_OriginalBudAmnt,Sheet1!S71_A6Code,$AC:$AC)","v":0},{"$f":"-SUMIFS(Sheet1!S71_AdjustmentBudAmnt,Sheet1!S71_A6Code,$AC:$AC)","v":0},{"$f":"-SUMIFS(Sheet1!S71_AdjustmentBudAmnt,Sheet1!S71_A6Code,$AC:$AC)","v":0},{"$f":"H31","v":0},{"$f":"-SUMIFS(Sheet1!S71_ASBudgetAmount,Sheet1!S71_A6Code,$AC:$AC)","v":0},{"$f":"-SUMIFS(Sheet1!S71_OY1BudgetAmount,Sheet1!S71_A6Code,$AC:$AC)","v":0},{"$f":"-SUMIFS(Sheet1!S71_OY2BudgetAmount,Sheet1!S71_A6Code,$AC:$AC)","v":0},null,null,null,null,null,null,null,null,null,null,null,null,null,null,null,null,"0370"]
["Trade and other payables from exchange transactions",4,{"$f":"SUMIFS(Sheet1!S71_PPPYearAmount,Sheet1!S71_A6Code,$AC:$AC)","v":120463902},{"$f":"SUMIFS(Sheet1!S71_PPYearAmount,Sheet1!S71_A6Code,$AC:$AC)","v":141352740},{"$f":"SUMIFS(Sheet1!S71_PYearAmount,Sheet1!S71_A6Code,$AC:$AC)","v":166300374},{"$f":"SUMIFS(Sheet1!S71_OriginalBudAmnt,Sheet1!S71_A6Code,$AC:$AC)","v":139610975},{"$f":"-SUMIFS(Sheet1!S71_AdjustmentBudAmnt,Sheet1!S71_A6Code,$AC:$AC)","v":129064365},{"$f":"-SUMIFS(Sheet1!S71_AdjustmentBudAmnt,Sheet1!S71_A6Code,$AC:$AC)","v":129064365},129064365,{"$f":"-SUMIFS(Sheet1!S71_ASBudgetAmount,Sheet1!S71_A6Code,$AC:$AC)","v":76734299.850000024},{"$f":"-SUMIFS(Sheet1!S71_OY1BudgetAmount,Sheet1!S71_A6Code,$AC:$AC)","v":74273344.657650024},{"$f":"-SUMIFS(Sheet1!S71_OY2BudgetAmount,Sheet1!S71_A6Code,$AC:$AC)","v":91748976.795559585},null,null,null,null,null,null,null,null,null,null,null,null,null,null,null,null,"0380"]
["Trade and other payables from non-exchange transactions",5,{"$f":"SUMIFS(Sheet1!S71_PPPYearAmount,Sheet1!S71_A6Code,$AC:$AC)","v":0},{"$f":"SUMIFS(Sheet1!S71_PPYearAmount,Sheet1!S71_A6Code,$AC:$AC)","v":0},{"$f":"SUMIFS(Sheet1!S71_PYearAmount,Sheet1!S71_A6Code,$AC:$AC)","v":10591733},{"$f":"-SUMIFS(Sheet1!S71_OriginalBudAmnt,Sheet1!S71_A6Code,$AC:$AC)","v":0},{"$f":"-SUMIFS(Sheet1!S71_AdjustmentBudAmnt,Sheet1!S71_A6Code,$AC:$AC)","v":0},{"$f":"-SUMIFS(Sheet1!S71_AdjustmentBudAmnt,Sheet1!S71_A6Code,$AC:$AC)","v":0},0,{"$f":"-SUMIFS(Sheet1!S71_ASBudgetAmount,Sheet1!S71_A6Code,$AC:$AC)","v":0},{"$f":"-SUMIFS(Sheet1!S71_OY1BudgetAmount,Sheet1!S71_A6Code,$AC:$AC)","v":0},{"$f":"-SUMIFS(Sheet1!S71_OY2BudgetAmount,Sheet1!S71_A6Code,$AC:$AC)","v":0},null,null,null,null,null,null,null,null,null,null,null,null,null,null,null,null,"0390"]
["Provision",null,{"$f":"SUMIFS(Sheet1!S71_PPPYearAmount,Sheet1!S71_A6Code,$AC:$AC)","v":84079012},{"$f":"SUMIFS(Sheet1!S71_PPYearAmount,Sheet1!S71_A6Code,$AC:$AC)","v":87608650},{"$f":"SUMIFS(Sheet1!S71_PYearAmount,Sheet1!S71_A6Code,$AC:$AC)","v":93209995},{"$f":"-SUMIFS(Sheet1!S71_OriginalBudAmnt,Sheet1!S71_A6Code,$AC:$AC)","v":20460268},{"$f":"-SUMIFS(Sheet1!S71_AdjustmentBudAmnt,Sheet1!S71_A6Code,$AC:$AC)","v":20460268},{"$f":"-SUMIFS(Sheet1!S71_AdjustmentBudAmnt,Sheet1!S71_A6Code,$AC:$AC)","v":20460268},20460268,{"$f":"-SUMIFS(Sheet1!S71_ASBudgetAmount,Sheet1!S71_A6Code,$AC:$AC)","v":59465286},{"$f":"-SUMIFS(Sheet1!S71_OY1BudgetAmount,Sheet1!S71_A6Code,$AC:$AC)","v":59465286},{"$f":"-SUMIFS(Sheet1!S71_OY2BudgetAmount,Sheet1!S71_A6Code,$AC:$AC)","v":59465286},null,null,null,null,null,null,null,null,null,null,null,null,null,null,null,null,"0400"]
["VAT",null,{"$f":"SUMIFS(Sheet1!S71_PPPYearAmount,Sheet1!S71_A6Code,$AC:$AC)","v":7412707},{"$f":"SUMIFS(Sheet1!S71_PPYearAmount,Sheet1!S71_A6Code,$AC:$AC)","v":11771715},{"$f":"SUMIFS(Sheet1!S71_PYearAmount,Sheet1!S71_A6Code,$AC:$AC)","v":16040708},{"$f":"-SUMIFS(Sheet1!S71_OriginalBudAmnt,Sheet1!S71_A6Code,$AC:$AC)","v":0},{"$f":"-SUMIFS(Sheet1!S71_AdjustmentBudAmnt,Sheet1!S71_A6Code,$AC:$AC)","v":1374750},{"$f":"-SUMIFS(Sheet1!S71_AdjustmentBudAmnt,Sheet1!S71_A6Code,$AC:$AC)","v":1374750},1374750,{"$f":"SUMIFS(Sheet1!S71_ASBudgetAmount,Sheet1!S71_A6Code,$AC:$AC)","v":2928455},{"$f":"SUMIFS(Sheet1!S71_OY1BudgetAmount,Sheet1!S71_A6Code,$AC:$AC)","v":3075648},{"$f":"SUMIFS(Sheet1!S71_OY2BudgetAmount,Sheet1!S71_A6Code,$AC:$AC)","v":3223652},null,null,null,null,null,null,null,null,null,null,null,null,null,null,null,null,"0410"]
["Other current liabilities",null,{"$f":"SUMIFS(Sheet1!S71_PPPYearAmount,Sheet1!S71_A6Code,$AC:$AC)","v":0},{"$f":"SUMIFS(Sheet1!S71_PPYearAmount,Sheet1!S71_A6Code,$AC:$AC)","v":0},{"$f":"SUMIFS(Sheet1!S71_PYearAmount,Sheet1!S71_A6Code,$AC:$AC)","v":0},{"$f":"-SUMIFS(Sheet1!S71_OriginalBudAmnt,Sheet1!S71_A6Code,$AC:$AC)","v":0},{"$f":"-SUMIFS(Sheet1!S71_AdjustmentBudAmnt,Sheet1!S71_A6Code,$AC:$AC)","v":0},{"$f":"-SUMIFS(Sheet1!S71_AdjustmentBudAmnt,Sheet1!S71_A6Code,$AC:$AC)","v":0},0,{"$f":"-SUMIFS(Sheet1!S71_ASBudgetAmount,Sheet1!S71_A6Code,$AC:$AC)","v":0},{"$f":"-SUMIFS(Sheet1!S71_OY1BudgetAmount,Sheet1!S71_A6Code,$AC:$AC)","v":0},{"$f":"-SUMIFS(Sheet1!S71_OY2BudgetAmount,Sheet1!S71_A6Code,$AC:$AC)","v":0},null,null,null,null,null,null,null,null,null,null,null,null,null,null,null,null,"0420"]
["Total current liabilities",null,{"$f":"SUM(C29:C36)","v":212435787},240733105,286142810,160071243,150899383,150899383,150899383,139128040.85000002,136814278.65765002,154437914.79555959]
["Non current liabilities"]
["Financial liabilities",6,{"$f":"'SA3'!C147","v":0},{"$f":"'SA3'!D147","v":0},{"$f":"'SA3'!E147","v":0},{"$f":"'SA3'!F147","v":0},{"$f":"'SA3'!G147","v":0},{"$f":"'SA3'!H147","v":0},{"$f":"H39","v":0},{"$f":"'SA3'!J147","v":0},{"$f":"'SA3'!K147","v":0},{"$f":"'SA3'!L147","v":0},null,null,null,null,null,null,null,null,null,null,null,null,null,null,null,null,"0450"]
["Provision",7,{"$f":"'SA3'!C154","v":0},{"$f":"'SA3'!D154","v":0},{"$f":"'SA3'!E154","v":0},{"$f":"'SA3'!F154","v":39005018},{"$f":"'SA3'!G154","v":39005018},{"$f":"'SA3'!H154","v":39005018},39005018,{"$f":"'SA3'!J154","v":39005018},{"$f":"'SA3'!K154","v":39005018},{"$f":"'SA3'!L154","v":39005018},null,null,null,null,null,null,null,null,null,null,null,null,null,null,null,null,"0460"]
["Long term portion of trade payables",null,{"$f":"SUMIFS(Sheet1!S71_PPPYearAmount,Sheet1!S71_A6Code,$AC:$AC)","v":0},{"$f":"SUMIFS(Sheet1!S71_PPYearAmount,Sheet1!S71_A6Code,$AC:$AC)","v":0},{"$f":"SUMIFS(Sheet1!S71_PYearAmount,Sheet1!S71_A6Code,$AC:$AC)","v":0},{"$f":"-SUMIFS(Sheet1!S71_OriginalBudAmnt,Sheet1!S71_A6Code,$AC:$AC)","v":0},{"$f":"-SUMIFS(Sheet1!S71_AdjustmentBudAmnt,Sheet1!S71_A6Code,$AC:$AC)","v":0},{"$f":"-SUMIFS(Sheet1!S71_AdjustmentBudAmnt,Sheet1!S71_A6Code,$AC:$AC)","v":0},{"$f":"H41","v":0},{"$f":"-SUMIFS(Sheet1!S71_ASBudgetAmount,Sheet1!S71_A6Code,$AC:$AC)","v":0},{"$f":"-SUMIFS(Sheet1!S71_OY1BudgetAmount,Sheet1!S71_A6Code,$AC:$AC)","v":0},{"$f":"-SUMIFS(Sheet1!S71_OY2BudgetAmount,Sheet1!S71_A6Code,$AC:$AC)","v":0}]
["Other non-current liabilities",null,{"$f":"SUMIFS(Sheet1!S71_PPPYearAmount,Sheet1!S71_A6Code,$AC:$AC)+SUMIFS(Sheet1!S71_ASBudgetAmount,Sheet1!S71_SA3Code,\"0411\")","v":0},{"$f":"SUMIFS(Sheet1!S71_PPYearAmount,Sheet1!S71_A6Code,$AC:$AC)+SUMIFS(Sheet1!S71_ASBudgetAmount,Sheet1!S71_SA3Code,\"0411\")","v":0},{"$f":"SUMIFS(Sheet1!S71_PYearAmount,Sheet1!S71_A6Code,$AC:$AC)+SUMIFS(Sheet1!S71_ASBudgetAmount,Sheet1!S71_SA3Code,\"0411\")","v":0},{"$f":"-SUMIFS(Sheet1!S71_OriginalBudAmnt,Sheet1!S71_A6Code,$AC:$AC)+SUMIFS(Sheet1!S71_ASBudgetAmount,Sheet1!S71_SA3Code,\"0411\")","v":0},{"$f":"-SUMIFS(Sheet1!S71_AdjustmentBudAmnt,Sheet1!S71_A6Code,$AC:$AC)+SUMIFS(Sheet1!S71_ASBudgetAmount,Sheet1!S71_SA3Code,\"0411\")","v":0},{"$f":"-SUMIFS(Sheet1!S71_AdjustmentBudAmnt,Sheet1!S71_A6Code,$AC:$AC)+SUMIFS(Sheet1!S71_ASBudgetAmount,Sheet1!S71_SA3Code,\"0411\")","v":0},0,{"$f":"-SUMIFS(Sheet1!S71_ASBudgetAmount,Sheet1!S71_A6Code,$AC:$AC)+SUMIFS(Sheet1!S71_ASBudgetAmount,Sheet1!S71_SA3Code,\"0411\")","v":0},{"$f":"-SUMIFS(Sheet1!S71_OY1BudgetAmount,Sheet1!S71_A6Code,$AC:$AC)+SUMIFS(Sheet1!S71_ASBudgetAmount,Sheet1!S71_SA3Code,\"0411\")","v":0},{"$f":"-SUMIFS(Sheet1!S71_OY2BudgetAmount,Sheet1!S71_A6Code,$AC:$AC)+SUMIFS(Sheet1!S71_ASBudgetAmount,Sheet1!S71_SA3Code,\"0411\")","v":0},null,null,null,null,null,null,null,null,null,null,null,null,null,null,null,null,"0480"]
["Total non current liabilities",null,{"$f":"SUM(C39:C42)","v":0},0,0,39005018,39005018,39005018,39005018,39005018,39005018,39005018]
["TOTAL LIABILITIES",null,{"$f":"C37+C43","v":212435787},{"$f":"D37+D43","v":240733105},{"$f":"E37+E43","v":286142810},{"$f":"F37+F43","v":199076261},189904401,189904401,189904401,178133058.85000002,{"$f":"K37+K43","v":175819296.65765002},193442932.79555959]
["NET ASSETS",null,{"$f":"C26-C44","v":104541556},60895110,31571777,2265579419,1690977019.820128,1690977019.820128,1690977019.820128,{"$f":"J26-J44","v":1159239158.3567948},1109354564.4067945,1025853136.6644447]
["COMMUNITY WEALTH/EQUITY"]
["Accumulated surplus/(deficit)",8,{"$f":"C45","v":104541556},60895110,31571777,2265579419,1690977019.820128,1690977019.820128,1690977019.820128,{"$f":"J45","v":1159239158.3567948},{"$f":"K45","v":1109354564.4067945},1025853136.6644447,null,null,null,null,null,null,null,null,null,null,null,null,null,null,null,null,"0530"]
["Reserves and funds",9,{"$f":"'SA3'!C173","v":0},{"$f":"'SA3'!D173","v":0},{"$f":"'SA3'!E173","v":0},{"$f":"'SA3'!F173","v":0},{"$f":"'SA3'!G173","v":0},{"$f":"'SA3'!H173","v":0},{"$f":"H48","v":0},{"$f":"'SA3'!J173","v":0},{"$f":"'SA3'!K173","v":0},{"$f":"'SA3'!L173","v":0},null,null,null,null,null,null,null,null,null,null,null,null,null,null,null,null,"0540"]
["Other",null,null,null,null,null,null,null,null,null,null,null,null,null,null,null,null,null,null,null,null,null,null,null,null,null,null,null,"0550"]
["TOTAL COMMUNITY WEALTH/EQUITY",10,{"$f":"SUM(C47:C49)","v":104541556},{"$f":"SUM(D47:D49)","v":60895110},31571777,2265579419,1690977019.820128,1690977019.820128,1690977019.820128,1159239158.3567948,1109354564.4067945,1025853136.6644447]
[{"$f":"head27a","v":"References"}]
["1. Detail breakdown in Table SA3 for Trade receivables from Exchange and Non-exchange transactions"]
["2. Include completed low cost housing to be transferred to beneficiaries within 12 months detail provided in Table SA3"]
["3. Include 'Construction-work-in-progress' (disclosed separately in annual financial statements) detail in SA3"]
["4. Detail breakdown in Table SA3. "]
["5. Detail breakdown in Table SA3. "]
["6. Detail breakdown in Table SA3. "]
["7 Detail breakdown in Table SA3. "]
["8. Detail breakdown in Table SA3. "]
["9. Detail breakdown in Table SA3. Includes reserves to be funded by statute."]
["10. Net assets must balance with Total Community Wealth/Equity"]
["check balance",null,{"$f":"IF((C45-C50)=0,0,\"Unbalanced\")","v":0},0,0,0,0,0,0,0,0,0]

{"sheet":"A7-CFlow","index":39,"n_rows":50,"n_cols":30,"rows_kept":50,"cut":false,"hidden":false,"merged":[[1,9,1,11],[1,5,1,8]]}
[{"$f":"muni&\" - \"&Approve7","v":"LIM331 Greater Giyani - Table A7 Budgeted Cash Flows"}]
[{"$f":"desc","v":"Description"},{"$f":"head27","v":"Ref"},{"$f":"head1b","v":"2019/20"},{"$f":"head1A","v":"2020/21"},{"$f":"Head1","v":"2021/22"},{"$f":"Head2","v":"Current Year 2022/23"},null,null,null,{"$f":"Head3","v":"2023/24 Medium Term Revenue & Expenditure Framework"}]
["R thousand",null,{"$f":"Head5","v":"Audited Outcome"},{"$f":"Head5","v":"Audited Outcome"},{"$f":"Head5","v":"Audited Outcome"},{"$f":"Head6","v":"Original Budget"},{"$f":"Head7","v":"Adjusted Budget"},{"$f":"Head8","v":"Full Year Forecast"},{"$f":"Head5b","v":"Pre-audit outcome"},{"$f":"Head9","v":"Budget Year 2023/24"},{"$f":"Head10","v":"Budget Year +1 2024/25"},{"$f":"Head11","v":"Budget Year +2 2025/26"}]
["CASH FLOW FROM OPERATING ACTIVITIES"]
["Receipts"]
["Property rates",null,{"$f":"SUMIFS(Sheet1!S71_PPPYearAmount,Sheet1!S71_A7Code,$AC:$AC)","v":0},{"$f":"SUMIFS(Sheet1!S71_PPYearAmount,Sheet1!S71_A7Code,$AC:$AC)","v":0},{"$f":"SUMIFS(Sheet1!S71_PYearAmount,Sheet1!S71_A7Code,$AC:$AC)","v":0},{"$f":"SUMIFS(Sheet1!S71_OriginalBudAmnt,Sheet1!S71_A7Code,$AC:$AC)","v":47929093},{"$f":"SUMIFS(Sheet1!S71_AdjustmentBudAmnt,Sheet1!S71_A7Code,$AC:$AC)","v":45194620},{"$f":"SUMIFS(Sheet1!S71_AdjustmentBudAmnt,Sheet1!S71_A7Code,$AC:$AC)","v":45194620},{"$f":"H6","v":45194620},{"$f":"'SA30'!N5","v":47831436},{"$f":"'SA30'!O5","v":50176938},{"$f":"'SA30'!P5","v":52536919},null,null,null,null,null,null,null,null,null,null,null,null,null,null,null,null,"0120D"]
["Service charges",null,{"$f":"SUMIFS(Sheet1!S71_PPPYearAmount,Sheet1!S71_A7Code,$AC:$AC)","v":0},{"$f":"SUMIFS(Sheet1!S71_PPYearAmount,Sheet1!S71_A7Code,$AC:$AC)","v":0},{"$f":"SUMIFS(Sheet1!S71_PYearAmount,Sheet1!S71_A7Code,$AC:$AC)","v":0},{"$f":"SUMIFS(Sheet1!S71_OriginalBudAmnt,Sheet1!S71_A7Code,$AC:$AC)","v":6660000},{"$f":"SUMIFS(Sheet1!S71_AdjustmentBudAmnt,Sheet1!S71_A7Code,$AC:$AC)","v":6175500},{"$f":"SUMIFS(Sheet1!S71_AdjustmentBudAmnt,Sheet1!S71_A7Code,$AC:$AC)","v":6175500},{"$f":"H7","v":6175500},{"$f":"'SA30'!N6+'SA30'!N7+'SA30'!N8+'SA30'!N9","v":6502802},{"$f":"'SA30'!O6+'SA30'!O7+'SA30'!O8+'SA30'!O9","v":6821438},{"$f":"'SA30'!P6+'SA30'!P7+'SA30'!P8+'SA30'!P9","v":7142046},null,null,null,null,null,null,null,null,null,null,null,null,null,null,null,null,"0130D"]
["Other revenue",null,{"$f":"SUMIFS(Sheet1!S71_PPPYearAmount,Sheet1!S71_A7Code,$AC:$AC)","v":0},{"$f":"SUMIFS(Sheet1!S71_PPYearAmount,Sheet1!S71_A7Code,$AC:$AC)","v":0},{"$f":"SUMIFS(Sheet1!S71_PYearAmount,Sheet1!S71_A7Code,$AC:$AC)","v":0},{"$f":"SUMIFS(Sheet1!S71_OriginalBudAmnt,Sheet1!S71_A7Code,$AC:$AC)","v":28993361},{"$f":"SUMIFS(Sheet1!S71_AdjustmentBudAmnt,Sheet1!S71_A7Code,$AC:$AC)","v":19592430},{"$f":"SUMIFS(Sheet1!S71_AdjustmentBudAmnt,Sheet1!S71_A7Code,$AC:$AC)","v":19592430},19592430,{"$f":"'SA30'!N11+'SA30'!N15+'SA30'!N16+'SA30'!N17+'SA30'!N19","v":76379163},{"$f":"'SA30'!O11+'SA30'!O15+'SA30'!O16+'SA30'!O17+'SA30'!O19","v":80119860},{"$f":"'SA30'!P11+'SA30'!P15+'SA30'!P16+'SA30'!P17+'SA30'!P19","v":79575042},null,null,null,null,null,null,null,null,null,null,null,null,null,null,null,null,"0140D"]
["Transfers and Subsidies - Operational",1,{"$f":"SUMIFS(Sheet1!S71_PPPYearAmount,Sheet1!S71_A7Code,$AC:$AC)","v":0},{"$f":"SUMIFS(Sheet1!S71_PPYearAmount,Sheet1!S71_A7Code,$AC:$AC)","v":0},{"$f":"SUMIFS(Sheet1!S71_PYearAmount,Sheet1!S71_A7Code,$AC:$AC)","v":0},{"$f":"SUMIFS(Sheet1!S71_OriginalBudAmnt,Sheet1!S71_A7Code,$AC:$AC)","v":383256026},{"$f":"SUMIFS(Sheet1!S71_AdjustmentBudAmnt,Sheet1!S71_A7Code,$AC:$AC)","v":384900666},{"$f":"SUMIFS(Sheet1!S71_AdjustmentBudAmnt,Sheet1!S71_A7Code,$AC:$AC)","v":384900666},384900666,{"$f":"'SA30'!N18","v":382352000},{"$f":"'SA30'!O18","v":405170000},{"$f":"'SA30'!P18","v":395085000},null,null,null,null,null,null,null,null,null,null,null,null,null,null,null,null,"0150D"]
["Transfers and Subsidies - Capital",1,{"$f":"SUMIFS(Sheet1!S71_PPPYearAmount,Sheet1!S71_A7Code,$AC:$AC)","v":0},{"$f":"SUMIFS(Sheet1!S71_PPYearAmount,Sheet1!S71_A7Code,$AC:$AC)","v":0},{"$f":"SUMIFS(Sheet1!S71_PYearAmount,Sheet1!S71_A7Code,$AC:$AC)","v":0},{"$f":"SUMIFS(Sheet1!S71_OriginalBudAmnt,Sheet1!S71_A7Code,$AC:$AC)","v":65536974},{"$f":"SUMIFS(Sheet1!S71_AdjustmentBudAmnt,Sheet1!S71_A7Code,$AC:$AC)","v":74487578},{"$f":"SUMIFS(Sheet1!S71_AdjustmentBudAmnt,Sheet1!S71_A7Code,$AC:$AC)","v":74487578},74487578,{"$f":"'SA30'!N23+'SA30'!N24","v":104549000},{"$f":"'SA30'!O23+'SA30'!O24","v":102594000},{"$f":"'SA30'!P23+'SA30'!P24","v":107207000},null,null,null,null,null,null,null,null,null,null,null,null,null,null,null,null,"0160D"]
["Interest",null,{"$f":"SUMIFS(Sheet1!S71_PPPYearAmount,Sheet1!S71_A7Code,$AC:$AC)","v":0},{"$f":"SUMIFS(Sheet1!S71_PPYearAmount,Sheet1!S71_A7Code,$AC:$AC)","v":0},{"$f":"SUMIFS(Sheet1!S71_PYearAmount,Sheet1!S71_A7Code,$AC:$AC)","v":0},{"$f":"SUMIFS(Sheet1!S71_OriginalBudAmnt,Sheet1!S71_A7Code,$AC:$AC)","v":9005790},{"$f":"SUMIFS(Sheet1!S71_AdjustmentBudAmnt,Sheet1!S71_A7Code,$AC:$AC)","v":47911535},{"$f":"SUMIFS(Sheet1!S71_AdjustmentBudAmnt,Sheet1!S71_A7Code,$AC:$AC)","v":47911535},47911535,{"$f":"'SA30'!N12+'SA30'!N13","v":24372594.399999999},{"$f":"'SA30'!O12+'SA30'!O13","v":25566851.199999999},{"$f":"'SA30'!P12+'SA30'!P13","v":26768493.600000001},null,null,null,null,null,null,null,null,null,null,null,null,null,null,null,null,"0170I"]
["Dividends",null,{"$f":"SUMIFS(Sheet1!S71_PPPYearAmount,Sheet1!S71_A7Code,$AC:$AC)","v":0},{"$f":"SUMIFS(Sheet1!S71_PPYearAmount,Sheet1!S71_A7Code,$AC:$AC)","v":0},{"$f":"SUMIFS(Sheet1!S71_PYearAmount,Sheet1!S71_A7Code,$AC:$AC)","v":0},{"$f":"SUMIFS(Sheet1!S71_OriginalBudAmnt,Sheet1!S71_A7Code,$AC:$AC)","v":0},{"$f":"SUMIFS(Sheet1!S71_AdjustmentBudAmnt,Sheet1!S71_A7Code,$AC:$AC)","v":0},{"$f":"SUMIFS(Sheet1!S71_AdjustmentBudAmnt,Sheet1!S71_A7Code,$AC:$AC)","v":0},0,{"$f":"'SA30'!N14","v":0},{"$f":"'SA30'!O14","v":0},{"$f":"'SA30'!P14","v":0},null,null,null,null,null,null,null,null,null,null,null,null,null,null,null,null,"0180D"]
["Payments"]
["Suppliers and employees",null,{"$f":"SUMIFS(Sheet1!S71_PPPYearAmount,Sheet1!S71_A7CodePayments,$AC:$AC)","v":0},{"$f":"SUMIFS(Sheet1!S71_PPYearAmount,Sheet1!S71_A7CodePayments,$AC:$AC)","v":0},{"$f":"SUMIFS(Sheet1!S71_PYearAmount,Sheet1!S71_A7CodePayments,$AC:$AC)","v":0},{"$f":"-SUMIFS(Sheet1!S71_OriginalBudAmnt,Sheet1!S71_A7CodePayments,$AC:$AC)","v":-429610975},{"$f":"-SUMIFS(Sheet1!S71_AdjustmentBudAmnt,Sheet1!S71_A7CodePayments,$AC:$AC)","v":-457086218},{"$f":"-SUMIFS(Sheet1!S71_AdjustmentBudAmnt,Sheet1!S71_A7CodePayments,$AC:$AC)","v":-457086218},{"$f":"H14","v":-457086218},{"$f":"-('SA30'!N35+'SA30'!N36+'SA30'!N38+'SA30'!N39+'SA30'!N40+'SA30'!N41+'SA30'!N44+'SA30'!N50)","v":-520393381.14999998},{"$f":"-('SA30'!O35+'SA30'!O36+'SA30'!O38+'SA30'!O39+'SA30'!O40+'SA30'!O41+'SA30'!O44+'SA30'!O50)","v":-534780503.34235001},{"$f":"-('SA30'!P35+'SA30'!P36+'SA30'!P38+'SA30'!P39+'SA30'!P40+'SA30'!P41+'SA30'!P44+'SA30'!P50)","v":-533524761.20444041},null,null,null,null,null,null,null,null,null,null,null,null,null,null,null,null,"0200"]
["Finance charges",null,{"$f":"SUMIFS(Sheet1!S71_PPPYearAmount,Sheet1!S71_A7CodePayments,$AC:$AC)","v":0},{"$f":"SUMIFS(Sheet1!S71_PPYearAmount,Sheet1!S71_A7CodePayments,$AC:$AC)","v":0},{"$f":"SUMIFS(Sheet1!S71_PYearAmount,Sheet1!S71_A7CodePayments,$AC:$AC)","v":0},{"$f":"-SUMIFS(Sheet1!S71_OriginalBudAmnt,Sheet1!S71_A7CodePayments,$AC:$AC)","v":0},{"$f":"-SUMIFS(Sheet1!S71_AdjustmentBudAmnt,Sheet1!S71_A7CodePayments,$AC:$AC)","v":0},{"$f":"-SUMIFS(Sheet1!S71_AdjustmentBudAmnt,Sheet1!S71_A7CodePayments,$AC:$AC)","v":0},0,{"$f":"-('SA30'!N37)","v":0},{"$f":"-('SA30'!O37)","v":0},{"$f":"-('SA30'!P37)","v":0},null,null,null,null,null,null,null,null,null,null,null,null,null,null,null,null,"0210"]
["Transfers and Subsidies",1,{"$f":"SUMIFS(Sheet1!S71_PPPYearAmount,Sheet1!S71_A7CodePayments,$AC:$AC)","v":0},{"$f":"SUMIFS(Sheet1!S71_PPYearAmount,Sheet1!S71_A7CodePayments,$AC:$AC)","v":0},{"$f":"SUMIFS(Sheet1!S71_PYearAmount,Sheet1!S71_A7CodePayments,$AC:$AC)","v":0},{"$f":"-SUMIFS(Sheet1!S71_OriginalBudAmnt,Sheet1!S71_A7CodePayments,$AC:$AC)","v":0},{"$f":"-SUMIFS(Sheet1!S71_AdjustmentBudAmnt,Sheet1!S71_A7CodePayments,$AC:$AC)","v":0},{"$f":"-SUMIFS(Sheet1!S71_AdjustmentBudAmnt,Sheet1!S71_A7CodePayments,$AC:$AC)","v":0},0,{"$f":"-('SA30'!N42+'SA30'!N43)","v":0},{"$f":"-('SA30'!O42+'SA30'!O43)","v":0},{"$f":"-('SA30'!P42+'SA30'!P43)","v":0},null,null,null,null,null,null,null,null,null,null,null,null,null,null,null,null,"0220"]
["NET CASH FROM/(USED) OPERATING ACTIVITIES",null,{"$f":"SUM(C6:C12)+SUM(C14:C16)","v":0},0,0,111770269,121176111,121176111,121176111,121593614.25,135668583.85765004,134789739.39555961]
["CASH FLOWS FROM INVESTING ACTIVITIES"]
["Receipts"]
["Proceeds on disposal of PPE",null,{"$f":"SUMIFS(Sheet1!S71_PPPYearAmount,Sheet1!S71_A7Code,$AC:$AC)","v":0},{"$f":"SUMIFS(Sheet1!S71_PPYearAmount,Sheet1!S71_A7Code,$AC:$AC)","v":0},{"$f":"SUMIFS(Sheet1!S71_PYearAmount,Sheet1!S71_A7Code,$AC:$AC)","v":0},{"$f":"SUMIFS(Sheet1!S71_OriginalBudAmnt,Sheet1!S71_A7Code,$AC:$AC)","v":0},{"$f":"SUMIFS(Sheet1!S71_AdjustmentBudAmnt,Sheet1!S71_A7Code,$AC:$AC)","v":100000},{"$f":"SUMIFS(Sheet1!S71_AdjustmentBudAmnt,Sheet1!S71_A7Code,$AC:$AC)","v":100000},{"$f":"H20","v":100000},{"$f":"'SA30'!N25","v":0},{"$f":"'SA30'!O25","v":0},{"$f":"'SA30'!P25","v":0},null,null,null,null,null,null,null,null,null,null,null,null,null,null,null,null,"0260D"]
[null,null,{"$f":"SUMIFS(Sheet1!S71_PPPYearAmount,Sheet1!S71_A7Code,$AC:$AC)","v":0},{"$f":"SUMIFS(Sheet1!S71_PPYearAmount,Sheet1!S71_A7Code,$AC:$AC)","v":0},{"$f":"SUMIFS(Sheet1!S71_PYearAmount,Sheet1!S71_A7Code,$AC:$AC)","v":0},{"$f":"SUMIFS(Sheet1!S71_OriginalBudAmnt,Sheet1!S71_A7Code,$AC:$AC)","v":0},{"$f":"SUMIFS(Sheet1!S71_AdjustmentBudAmnt,Sheet1!S71_A7Code,$AC:$AC)","v":100000},{"$f":"SUMIFS(Sheet1!S71_AdjustmentBudAmnt,Sheet1!S71_A7Code,$AC:$AC)","v":100000},{"$f":"SUMIFS(Sheet1!CD:CD,Sheet1!S71_A7Code,$AC:$AC)","v":0},null,null,null,null,null,null,null,null,null,null,null,null,null,null,null,null,null,null,null,"0260D"]
["Decrease (increase) in non-current receivables",null,{"$f":"SUMIFS(Sheet1!S71_PPPYearAmount,Sheet1!S71_A7Code,$AC:$AC)","v":0},{"$f":"SUMIFS(Sheet1!S71_PPYearAmount,Sheet1!S71_A7Code,$AC:$AC)","v":0},{"$f":"SUMIFS(Sheet1!S71_PYearAmount,Sheet1!S71_A7Code,$AC:$AC)","v":0},{"$f":"SUMIFS(Sheet1!S71_OriginalBudAmnt,Sheet1!S71_A7Code,$AC:$AC)","v":0},{"$f":"SUMIFS(Sheet1!S71_AdjustmentBudAmnt,Sheet1!S71_A7Code,$AC:$AC)","v":0},{"$f":"SUMIFS(Sheet1!S71_AdjustmentBudAmnt,Sheet1!S71_A7Code,$AC:$AC)","v":0},{"$f":"H22","v":0},{"$f":"'SA30'!N30","v":0},{"$f":"'SA30'!O30","v":0},{"$f":"'SA30'!P30","v":0}]
["Decrease (increase) in non-current investments",null,{"$f":"SUMIFS(Sheet1!S71_PPPYearAmount,Sheet1!S71_A7Code,$AC:$AC)","v":0},{"$f":"SUMIFS(Sheet1!S71_PPYearAmount,Sheet1!S71_A7Code,$AC:$AC)","v":0},{"$f":"SUMIFS(Sheet1!S71_PYearAmount,Sheet1!S71_A7Code,$AC:$AC)","v":0},{"$f":"SUMIFS(Sheet1!S71_OriginalBudAmnt,Sheet1!S71_A7Code,$AC:$AC)","v":0},{"$f":"SUMIFS(Sheet1!S71_AdjustmentBudAmnt,Sheet1!S71_A7Code,$AC:$AC)","v":0},{"$f":"SUMIFS(Sheet1!S71_AdjustmentBudAmnt,Sheet1!S71_A7Code,$AC:$AC)","v":0},0,{"$f":"'SA30'!N31","v":0},{"$f":"'SA30'!O31","v":0},{"$f":"'SA30'!P31","v":0}]
["Payments"]
["Capital assets",null,{"$f":"SUMIFS(Sheet1!S71_PPPYearAmount,Sheet1!S71_A7CodePayments,$AC:$AC)","v":0},{"$f":"SUMIFS(Sheet1!S71_PPYearAmount,Sheet1!S71_A7CodePayments,$AC:$AC)","v":0},{"$f":"SUMIFS(Sheet1!S71_PYearAmount,Sheet1!S71_A7CodePayments,$AC:$AC)","v":0},{"$f":"SUMIFS(Sheet1!S71_OriginalBudAmnt,Sheet1!S71_A7CodePayments,$AC:$AC)","v":-148172229},{"$f":"SUMIFS(Sheet1!S71_AdjustmentBudAmnt,Sheet1!S71_A7CodePayments,$AC:$AC)","v":-138207867},{"$f":"SUMIFS(Sheet1!S71_AdjustmentBudAmnt,Sheet1!S71_A7CodePayments,$AC:$AC)","v":-138207867},{"$f":"H25","v":-138207867},{"$f":"-('SA30'!N48)","v":-182609867},{"$f":"-('SA30'!O48)","v":-199326013},{"$f":"-('SA30'!P48)","v":-183581234},null,null,null,null,null,null,null,null,null,null,null,null,null,null,null,null,"0310"]
["NET CASH FROM/(USED) INVESTING ACTIVITIES",null,{"$f":"+C20+C22+C23+C25","v":0},{"$f":"+D20+D22+D23+D25","v":0},0,-148172229,-138107867,-138107867,-138107867,-182609867,-199326013,-183581234,null,null,null,null,null,null,null,null,null,null,null,null,null,null,null,null,"0310"]
[]
["CASH FLOWS FROM FINANCING ACTIVITIES"]
["Receipts"]
["Short term loans",null,{"$f":"SUMIFS(Sheet1!S71_PPPYearAmount,Sheet1!S71_SA30FDSubCode,$AC:$AC,Sheet1!S71_CFCode,$AD:$AD)","v":0},{"$f":"SUMIFS(Sheet1!S71_PPYearAmount,Sheet1!S71_SA30FDSubCode,$AC:$AC,Sheet1!S71_CFCode,$AD:$AD)","v":0},{"$f":"SUMIFS(Sheet1!S71_PYearAmount,Sheet1!S71_SA30FDSubCode,$AC:$AC,Sheet1!S71_CFCode,$AD:$AD)","v":0},{"$f":"SUMIFS(Sheet1!S71_OriginalBudAmnt,Sheet1!S71_SA30FDSubCode,$AC:$AC,Sheet1!S71_CFCode,$AD:$AD)","v":0},{"$f":"SUMIFS(Sheet1!S71_AdjustmentBudAmnt,Sheet1!S71_SA30FDSubCode,$AC:$AC,Sheet1!S71_CFCode,$AD:$AD)","v":0},{"$f":"SUMIFS(Sheet1!S71_AdjustmentBudAmnt,Sheet1!S71_A7SubCode,$AC:$AC,Sheet1!S71_CFCode,$AD:$AD)","v":0},{"$f":"H30","v":0},{"$f":"'SA30'!N26","v":0},{"$f":"'SA30'!O26","v":0},{"$f":"'SA30'!P26","v":0}]
["Borrowing long term/refinancing",null,{"$f":"SUMIFS(Sheet1!S71_PPPYearAmount,Sheet1!S71_SA30FDSubCode,$AC:$AC,Sheet1!S71_CFCode,$AD:$AD)","v":0},{"$f":"SUMIFS(Sheet1!S71_PPYearAmount,Sheet1!S71_SA30FDSubCode,$AC:$AC,Sheet1!S71_CFCode,$AD:$AD)","v":0},{"$f":"SUMIFS(Sheet1!S71_PYearAmount,Sheet1!S71_SA30FDSubCode,$AC:$AC,Sheet1!S71_CFCode,$AD:$AD)","v":0},{"$f":"SUMIFS(Sheet1!S71_OriginalBudAmnt,Sheet1!S71_SA30FDSubCode,$AC:$AC,Sheet1!S71_CFCode,$AD:$AD)","v":0},{"$f":"SUMIFS(Sheet1!S71_AdjustmentBudAmnt,Sheet1!S71_SA30FDSubCode,$AC:$AC,Sheet1!S71_CFCode,$AD:$AD)","v":0},{"$f":"SUMIFS(Sheet1!S71_AdjustmentBudAmnt,Sheet1!S71_A7SubCode,$AC:$AC,Sheet1!S71_CFCode,$AD:$AD)","v":0},0,{"$f":"'SA30'!N27","v":0},{"$f":"'SA30'!O27","v":0},{"$f":"'SA30'!P27","v":0},null,null,null,null,null,null,null,null,null,null,null,null,null,null,null,null,"0350","D"]
["Increase (decrease) in consumer deposits",null,null,null,null,null,null,null,0,{"$f":"'SA30'!N28","v":0},{"$f":"'SA30'!O28","v":0},{"$f":"'SA30'!P28","v":0},null,null,null,null,null,null,null,null,null,null,null,null,null,null,null,null,"0360","D"]
["Payments"]
["Repayment of borrowing",null,{"$f":"SUMIFS(Sheet1!S71_PPPYearAmount,Sheet1!S71_A7CodePayments,$AC:$AC)","v":0},{"$f":"SUMIFS(Sheet1!S71_PPYearAmount,Sheet1!S71_A7CodePayments,$AC:$AC)","v":0},{"$f":"SUMIFS(Sheet1!S71_PYearAmount,Sheet1!S71_A7CodePayments,$AC:$AC)","v":0},{"$f":"-SUMIFS(Sheet1!S71_OriginalBudAmnt,Sheet1!S71_A7CodePayments,$AC:$AC)","v":0},{"$f":"-SUMIFS(Sheet1!S71_AdjustmentBudAmnt,Sheet1!S71_A7CodePayments,$AC:$AC)","v":0},{"$f":"-SUMIFS(Sheet1!S71_AdjustmentBudAmnt,Sheet1!S71_A7CodePayments,$AC:$AC)","v":0},{"$f":"H34","v":0},{"$f":"-('SA30'!N49)","v":0},{"$f":"-('SA30'!O49)","v":0},{"$f":"-('SA30'!P49)","v":0}]
["NET CASH FROM/(USED) FINANCING ACTIVITIES",null,{"$f":"SUM(C30:C32)+C34","v":0},{"$f":"SUM(D30:D32)+D34","v":0},0,0,0,0,0,0,0,0,null,null,null,null,null,null,null,null,null,null,null,null,null,null,null,null,"0390"]
[]
["NET INCREASE/ (DECREASE) IN CASH HELD",null,{"$f":"C17+C26+C35","v":0},0,0,-36401960,-16931756,-16931756,-16931756,-61016252.75,-63657429.142349958,-48791494.604440391]
["Cash/cash equivalents at the year begin:",2,0,0,0,220050953,202193960.91666678,202193960.91666678,202193960.91666678,{"$f":"'SA30'!N54","v":185262204.91666678},{"$f":"J39","v":124245952.16666678},{"$f":"K39","v":60588523.024316818}]
["Cash/cash equivalents at the year end:",2,{"$f":"C37+C38","v":0},{"$f":"D37+D38","v":0},{"$f":"E37+E38","v":0},{"$f":"F37+F38","v":183648993},185262204.91666678,185262204.91666678,185262204.91666678,124245952.16666678,60588523.024316818,11797028.419876426,null,null,null,null,null,null,null,null,null,null,null,null,null,null,null,null,"0420"]
[{"$f":"head27a","v":"References"}]
["1. Local/District municipalities to include transfers from/to District/Local Municipalities"]
["2. Cash equivalents includes investments with maturities of 3 months or less"]
["3. The MTREF is populated directly from SA30."]
["Total receipts",null,{"$f":"SUM(C6:C12)+SUM(C20:C22)","v":0},0,0,541381244,578462329,578462329,578362329,641986995.39999998,670449087.20000005,668314500.60000002]
["Total payments",null,{"$f":"SUM(C14:C16)+C25","v":0},0,0,-577783204,-595294085,-595294085,-595294085,-703003248.14999998,-734106516.34235001,-717105995.20444036]
[null,null,{"$f":"C44+C45","v":0},{"$f":"D44+D45","v":0},0,-36401960,-16831756,-16831756,-16931756,-61016252.75,-63657429.142349958,-48791494.604440331]
["Borrowings & investments & c.deposits",null,{"$f":"C23+C31+C32","v":0},{"$f":"D23+D31+D32","v":0},0,0,0,0,0,0,0,0]
[{"$f":"A34","v":"Repayment of borrowing"},null,{"$f":"C34","v":0},{"$f":"D34","v":0},0,0,0,0,{"$f":"I34","v":0},0,0,0]
[null,null,{"$f":"C46+C47+C48","v":0},{"$f":"D46+D47+D48","v":0},0,-36401960,-16831756,-16831756,-16931756,-61016252.75,-63657429.142349958,-48791494.604440331]
[null,null,{"$f":"C37-C49","v":0},0,0,0,-100000,-100000,0,0,0,-5.9604644775390625E-8]

{"sheet":"A8-ResRecon","index":40,"n_rows":67,"n_cols":12,"rows_kept":67,"cut":false,"hidden":false,"merged":[[1,9,1,11],[1,5,1,8]]}
[{"$f":"muni&\" - \"&Approve8","v":"LIM331 Greater Giyani - Table A8 Cash backed reserves/accumulated surplus reconciliation"}]
[{"$f":"desc","v":"Description"},{"$f":"head27","v":"Ref"},{"$f":"head1b","v":"2019/20"},{"$f":"head1A","v":"2020/21"},{"$f":"Head1","v":"2021/22"},{"$f":"Head2","v":"Current Year 2022/23"},null,null,null,{"$f":"Head3","v":"2023/24 Medium Term Revenue & Expenditure Framework"}]
["R thousand",null,{"$f":"Head5","v":"Audited Outcome"},{"$f":"Head5","v":"Audited Outcome"},{"$f":"Head5","v":"Audited Outcome"},{"$f":"Head6","v":"Original Budget"},{"$f":"Head7","v":"Adjusted Budget"},{"$f":"Head8","v":"Full Year Forecast"},{"$f":"Head5b","v":"Pre-audit outcome"},{"$f":"Head9","v":"Budget Year 2023/24"},{"$f":"Head10","v":"Budget Year +1 2024/25"},{"$f":"Head11","v":"Budget Year +2 2025/26"}]
["Cash and investments available"]
[{"$f":"LEFT('A7-CFlow'!A39,37)","v":"Cash/cash equivalents at the year end"},1,{"$f":"'A7-CFlow'!C39","v":0},{"$f":"'A7-CFlow'!D39","v":0},{"$f":"'A7-CFlow'!E39","v":0},{"$f":"'A7-CFlow'!F39","v":183648993},{"$f":"'A7-CFlow'!G39","v":185262204.91666678},{"$f":"'A7-CFlow'!H39","v":185262204.91666678},{"$f":"'A7-CFlow'!I39","v":185262204.91666678},{"$f":"'A7-CFlow'!J39","v":124245952.16666678},{"$f":"'A7-CFlow'!K39","v":60588523.024316818},{"$f":"'A7-CFlow'!L39","v":11797028.419876426}]
["Other current investments  > 90 days",null,{"$f":"'A6-FinPos'!C6+'A6-FinPos'!C7-'A6-FinPos'!C29-'A8-ResRecon'!C5","v":321237467},{"$f":"'A6-FinPos'!D6+'A6-FinPos'!D7-'A6-FinPos'!D29-'A8-ResRecon'!D5","v":421085171},{"$f":"'A6-FinPos'!E6+'A6-FinPos'!E7-'A6-FinPos'!E29-'A8-ResRecon'!E5","v":483619188},{"$f":"'A6-FinPos'!F6+'A6-FinPos'!F7-'A6-FinPos'!F29-'A8-ResRecon'!F5","v":-37675231},{"$f":"'A6-FinPos'!G6+'A6-FinPos'!G7-'A6-FinPos'!G29-'A8-ResRecon'!G5","v":123072586.90346113},{"$f":"'A6-FinPos'!H6+'A6-FinPos'!H7-'A6-FinPos'!H29-'A8-ResRecon'!H5","v":123072586.90346113},{"$f":"'A6-FinPos'!I6+'A6-FinPos'!I7-'A6-FinPos'!I29-'A8-ResRecon'!I5","v":123072586.90346113},{"$f":"'A6-FinPos'!J6+'A6-FinPos'!J7-'A6-FinPos'!J29-'A8-ResRecon'!J5","v":5718968.0401278734},{"$f":"'A6-FinPos'!K6+'A6-FinPos'!K7-'A6-FinPos'!K29-'A8-ResRecon'!K5","v":4725979.0401278362},{"$f":"'A6-FinPos'!L6+'A6-FinPos'!L7-'A6-FinPos'!L29-'A8-ResRecon'!L5","v":3574181.0401279293}]
[{"$f":"'A6-FinPos'!A15&\" - \"&'A6-FinPos'!A17","v":"Investments - Property, plant and equipment"},1,{"$f":"'A6-FinPos'!C17","v":-257772243},{"$f":"'A6-FinPos'!D17","v":-393421575},{"$f":"'A6-FinPos'!E17","v":-468171733},{"$f":"'A6-FinPos'!F17","v":2179912490},{"$f":"'A6-FinPos'!G17","v":1147638577},{"$f":"'A6-FinPos'!H17","v":1147638577},{"$f":"'A6-FinPos'!I17","v":1147638577},{"$f":"'A6-FinPos'!J17","v":962094308},{"$f":"'A6-FinPos'!K17","v":976160088},{"$f":"'A6-FinPos'!L17","v":961448976}]
["Cash and investments available:",null,{"$f":"SUM(C5:C7)","v":63465224},{"$f":"SUM(D5:D7)","v":27663596},15447455,2325886252,1455973368.820128,1455973368.820128,1455973368.820128,1092059228.2067947,1041474590.0644447,976820185.46000433]
[]
["Application of cash and investments"]
[{"$f":"'SA3'!A141","v":"Trade payables from Non-exchange transactions: Other"},null,{"$f":"'SA3'!C141","v":0},{"$f":"'SA3'!D141","v":0},{"$f":"'SA3'!E141","v":0},{"$f":"'SA3'!F141","v":0},{"$f":"'SA3'!G141","v":0},{"$f":"'SA3'!H141","v":0},{"$f":"'SA3'!I141","v":0},{"$f":"'SA3'!J141","v":0},{"$f":"'SA3'!K141","v":0},{"$f":"'SA3'!L141","v":0}]
["Unspent borrowing",null,{"$f":"'SA17'!C67","v":0},{"$f":"'SA17'!D67","v":0},{"$f":"'SA17'!E67","v":0},{"$f":"'SA17'!F67","v":0},{"$f":"'SA17'!G67","v":0},{"$f":"'SA17'!H67","v":0},null,{"$f":"'SA17'!I67","v":0},{"$f":"'SA17'!J67","v":0},{"$f":"'SA17'!K67","v":0}]
["Statutory requirements",2]
["Other working capital requirements",3,{"$f":"-C32","v":120463902},{"$f":"-D32","v":141352740},166300374,{"$f":"-F32","v":-155651975},111314365,111314365,111314365,48782299.850000024,46544344.657650024,65100976.795559585]
["Other provisions"]
["Long term investments committed",4,{"$f":"C52","v":0},{"$f":"D52","v":0},0,0,0,0,0,0,0,0]
["Reserves to be backed by cash/investments",5]
[{"$f":"\"Total \"&A10&\":\"","v":"Total Application of cash and investments:"},null,{"$f":"SUM(C11:C17)","v":120463902},{"$f":"SUM(D11:D17)","v":141352740},166300374,-155651975,111314365,111314365,111314365,48782299.850000024,46544344.657650024,65100976.795559585]
["Surplus(shortfall)",null,{"$f":"C8-C18","v":-56998678},{"$f":"D8-D18","v":-113689144},-150852919,2481538227,1344659003.820128,1344659003.820128,1344659003.820128,1043276928.3567947,994930245.40679467,911719208.66444468]
[{"$f":"head27a","v":"References"}]
["1. Must reconcile with Budgeted Cash Flows"]
["2. For example: VAT, taxation"]
["3. Council approval for policy required - include sufficient working capital (e.g. allowing for a % of current debtors > 90 days as uncollectable)"]
["4. For example: sinking fund requirements for borrowing"]
["5. Council approval required for each reserve created and basis of cash backing of reserves - Total Reserves to be backed by cash/investments excl Valuation reserve"]
[]
[]
["Other working capital requirements"]
["Debtors",null,{"$f":"IF(ISERROR(ROUND(C35*C36,-3)),0,(ROUND(C35*C36,-3)))","v":0},{"$f":"IF(ISERROR(ROUND(D35*D36,-3)),0,(ROUND(D35*D36,-3)))","v":0},0,16041000,17750000,17750000,17750000,27952000,{"$f":"IF(ISERROR(ROUND(K35*K36,-3)),0,(ROUND(K35*K36,-3)))","v":27729000},26648000]
[]
["Creditors due",null,{"$f":"'SA3'!C138+'SA3'!C139","v":120463902},{"$f":"'SA3'!D138+'SA3'!D139","v":141352740},{"$f":"'SA3'!E138+'SA3'!E139","v":166300374},{"$f":"'SA3'!F138+'SA3'!F139","v":-139610975},{"$f":"'SA3'!G138+'SA3'!G139","v":129064365},{"$f":"'SA3'!H138+'SA3'!H139","v":129064365},{"$f":"H31","v":129064365},{"$f":"'SA3'!J138+'SA3'!J139","v":76734299.850000024},{"$f":"'SA3'!K138+'SA3'!K139","v":74273344.657650024},{"$f":"'SA3'!L138+'SA3'!L139","v":91748976.795559585}]
["Total",null,{"$f":"C29-C31","v":-120463902},{"$f":"D29-D31","v":-141352740},-166300374,155651975,-111314365,-111314365,-111314365,-48782299.850000024,-46544344.657650024,-65100976.795559585]
[]
["Debtors collection assumptions"]
["Balance outstanding - debtors",null,{"$f":"'A6-FinPos'!C8+'A6-FinPos'!C10+'A6-FinPos'!C16","v":239016448},{"$f":"'A6-FinPos'!D8+'A6-FinPos'!D10+'A6-FinPos'!D16","v":250406613},{"$f":"'A6-FinPos'!E8+'A6-FinPos'!E10+'A6-FinPos'!E16","v":274314899},{"$f":"'A6-FinPos'!F8+'A6-FinPos'!F10+'A6-FinPos'!F16","v":121142740},{"$f":"'A6-FinPos'!G8+'A6-FinPos'!G10+'A6-FinPos'!G16","v":151230203},{"$f":"'A6-FinPos'!H8+'A6-FinPos'!H10+'A6-FinPos'!H16","v":151230203},{"$f":"'A6-FinPos'!I8+'A6-FinPos'!I10+'A6-FinPos'!I16","v":151230203},{"$f":"'A6-FinPos'!J8+'A6-FinPos'!J10+'A6-FinPos'!J16","v":136154577},{"$f":"'A6-FinPos'!K8+'A6-FinPos'!K10+'A6-FinPos'!K16","v":135073113},{"$f":"'A6-FinPos'!L8+'A6-FinPos'!L10+'A6-FinPos'!L16","v":133831994}]
["Estimate of debtors collection rate",null,{"$f":"IF(ISERROR('SA10'!D10),0,('SA10'!D10))","v":0},{"$f":"IF(ISERROR('SA10'!E10),0,('SA10'!E10))","v":0},{"$f":"IF(ISERROR('SA10'!F10),0,('SA10'!F10))","v":0},{"$f":"IF(ISERROR('SA10'!G10),0,('SA10'!G10))","v":0.13241505192891626},{"$f":"IF(ISERROR('SA10'!H10),0,('SA10'!H10))","v":0.11737006775059476},{"$f":"IF(ISERROR('SA10'!I10),0,('SA10'!I10))","v":0.11737006775059476},{"$f":"IF(ISERROR('SA10'!J10),0,('SA10'!J10))","v":0.11737006775059476},{"$f":"IF(ISERROR('SA10'!K10),0,('SA10'!K10))","v":0.20529304511080046},{"$f":"IF(ISERROR('SA10'!L10),0,('SA10'!L10))","v":0.20528528251292252},{"$f":"IF(ISERROR('SA10'!M10),0,('SA10'!M10))","v":0.19911746216100651}]
[]
[]
[null,null,null,null,null,null,null,null,null,null,"`"]
[{"$f":"A16","v":"Long term investments committed"}]
["Balance (Insert description; eg sinking fund)"]
[]
[]
[]
[]
[]
[]
[]
[]
[]
[]
[null,null,{"$f":"SUM(C41:C51)","v":0},{"$f":"SUM(D41:D51)","v":0},0,0,0,0,0,0,0,0]
[{"$f":"A17","v":"Reserves to be backed by cash/investments"}]
[{"$f":"'SA3'!A168","v":"Housing Development Fund"},null,{"$f":"'SA3'!C168","v":0},{"$f":"'SA3'!D168","v":0},{"$f":"'SA3'!E168","v":0},{"$f":"'SA3'!F168","v":0},{"$f":"'SA3'!G168","v":0},{"$f":"'SA3'!H168","v":0},{"$f":"'SA3'!I168","v":0},{"$f":"'SA3'!J168","v":0},{"$f":"'SA3'!K168","v":0},{"$f":"'SA3'!L168","v":0}]
[{"$f":"'SA3'!A169","v":"Capital replacement"}]
[{"$f":"'SA3'!A170","v":"Self-insurance"}]
["Compensation for Occupational Injuries and Diseases"]
["Employee Benefit"]
["Non-current Provisions"]
["Valuation"]
["Investment in associate account"]
["Capitalisation"]
[]
[]
[]
[]
[null,null,{"$f":"SUM(C54:C59)+SUM(C61:C65)","v":0},{"$f":"SUM(D54:D59)+SUM(D61:D65)","v":0},0,0,0,0,0,0,0,0]

{"sheet":"Sheet2","index":41,"n_rows":0,"n_cols":0,"rows_kept":0,"cut":false,"hidden":true,"merged":[]}

{"sheet":"A9-Asset","index":42,"n_rows":235,"n_cols":29,"rows_kept":235,"cut":false,"hidden":false,"merged":[[1,5,1,7],[1,8,1,10]]}
[{"$f":"muni&\" - \"&Approve9","v":"LIM331 Greater Giyani - Table A9 Asset Management"}]
[{"$f":"desc","v":"Description"},{"$f":"head27","v":"Ref"},{"$f":"head1b","v":"2019/20"},{"$f":"head1A","v":"2020/21"},{"$f":"Head1","v":"2021/22"},{"$f":"Head2","v":"Current Year 2022/23"},null,null,{"$f":"Head3","v":"2023/24 Medium Term Revenue & Expenditure Framework"}]
["R thousand",null,{"$f":"Head5","v":"Audited Outcome"},{"$f":"Head5","v":"Audited Outcome"},{"$f":"Head5","v":"Audited Outcome"},{"$f":"Head6","v":"Original Budget"},{"$f":"Head7","v":"Adjusted Budget"},{"$f":"Head8","v":"Full Year Forecast"},{"$f":"Head9","v":"Budget Year 2023/24"},{"$f":"Head10","v":"Budget Year +1 2024/25"},{"$f":"Head11","v":"Budget Year +2 2025/26"}]
["CAPITAL EXPENDITURE"]
["Total New Assets",1,{"$f":"C15+C18+C19+C22+C25+C26+SUM(C29:C35)+C38","v":125033336},{"$f":"D15+D18+D19+D22+D25+D26+SUM(D29:D35)+D38","v":90886334},84353044,125028688,120014337,120014337,135721999,158726968,158435856]
["Roads Infrastructure",null,{"$f":"SA34a!C7","v":73306247},{"$f":"SA34a!D7","v":63945225},{"$f":"SA34a!E7","v":41429733},{"$f":"SA34a!F7","v":34879622},{"$f":"SA34a!G7","v":51124560},{"$f":"SA34a!H7","v":51124560},{"$f":"SA34a!I7","v":63347349},{"$f":"SA34a!J7","v":90966968},{"$f":"SA34a!K7","v":94040148}]
["Storm water Infrastructure",null,{"$f":"SA34a!C12","v":0},{"$f":"SA34a!D12","v":0},{"$f":"SA34a!E12","v":0},{"$f":"SA34a!F12","v":0},{"$f":"SA34a!G12","v":0},{"$f":"SA34a!H12","v":0},{"$f":"SA34a!I12","v":21526561},{"$f":"SA34a!J12","v":19000000},{"$f":"SA34a!K12","v":35035708}]
["Electrical Infrastructure",null,{"$f":"SA34a!C16","v":1},{"$f":"SA34a!D16","v":8547902},{"$f":"SA34a!E16","v":2608696},{"$f":"SA34a!F16","v":0},{"$f":"SA34a!G16","v":0},{"$f":"SA34a!H16","v":0},{"$f":"SA34a!I16","v":0},{"$f":"SA34a!J16","v":0},{"$f":"SA34a!K16","v":0}]
["Water Supply Infrastructure",null,{"$f":"SA34a!C26","v":0},{"$f":"SA34a!D26","v":0},{"$f":"SA34a!E26","v":0},{"$f":"SA34a!F26","v":0},{"$f":"SA34a!G26","v":0},{"$f":"SA34a!H26","v":0},{"$f":"SA34a!I26","v":0},{"$f":"SA34a!J26","v":0},{"$f":"SA34a!K26","v":0}]
["Sanitation Infrastructure",null,{"$f":"SA34a!C37","v":0},{"$f":"SA34a!D37","v":0},{"$f":"SA34a!E37","v":0},{"$f":"SA34a!F37","v":0},{"$f":"SA34a!G37","v":0},{"$f":"SA34a!H37","v":0},{"$f":"SA34a!I37","v":0},{"$f":"SA34a!J37","v":0},{"$f":"SA34a!K37","v":0}]
["Solid Waste Infrastructure",null,{"$f":"SA34a!C44","v":8470229},{"$f":"SA34a!D44","v":8470229},{"$f":"SA34a!E44","v":10146189},{"$f":"SA34a!F44","v":0},{"$f":"SA34a!G44","v":0},{"$f":"SA34a!H44","v":0},{"$f":"SA34a!I44","v":0},{"$f":"SA34a!J44","v":0},{"$f":"SA34a!K44","v":0}]
["Rail Infrastructure",null,{"$f":"SA34a!C52","v":0},{"$f":"SA34a!D52","v":0},{"$f":"SA34a!E52","v":0},{"$f":"SA34a!F52","v":0},{"$f":"SA34a!G52","v":0},{"$f":"SA34a!H52","v":0},{"$f":"SA34a!I52","v":0},{"$f":"SA34a!J52","v":0},{"$f":"SA34a!K52","v":0}]
["Coastal Infrastructure",null,{"$f":"SA34a!C62","v":0},{"$f":"SA34a!D62","v":0},{"$f":"SA34a!E62","v":0},{"$f":"SA34a!F62","v":0},{"$f":"SA34a!G62","v":0},{"$f":"SA34a!H62","v":0},{"$f":"SA34a!I62","v":0},{"$f":"SA34a!J62","v":0},{"$f":"SA34a!K62","v":0}]
["Information and Communication Infrastructure",null,{"$f":"SA34a!C68","v":0},{"$f":"SA34a!D68","v":0},{"$f":"SA34a!E68","v":0},{"$f":"SA34a!F68","v":0},{"$f":"SA34a!G68","v":0},{"$f":"SA34a!H68","v":0},{"$f":"SA34a!I68","v":0},{"$f":"SA34a!J68","v":0},{"$f":"SA34a!K68","v":0}]
["Infrastructure",null,{"$f":"SUM(C6:C14)","v":81776477},{"$f":"SUM(D6:D14)","v":80963356},54184618,34879622,51124560,51124560,84873910,109966968,129075856]
["Community Facilities",null,{"$f":"SA34a!C75","v":1153224},{"$f":"SA34a!D75","v":1153224},{"$f":"SA34a!E75","v":15397250},{"$f":"SA34a!F75","v":44141416},{"$f":"SA34a!G75","v":31858273},{"$f":"SA34a!H75","v":31858273},{"$f":"SA34a!I75","v":7909410},{"$f":"SA34a!J75","v":20000000},{"$f":"SA34a!K75","v":0}]
["Sport and Recreation Facilities",null,{"$f":"SA34a!C98","v":35732142},{"$f":"SA34a!D98","v":0},{"$f":"SA34a!E98","v":5104488},{"$f":"SA34a!F98","v":27957650},{"$f":"SA34a!G98","v":18726504},{"$f":"SA34a!H98","v":18726504},{"$f":"SA34a!I98","v":11613679},{"$f":"SA34a!J98","v":0},{"$f":"SA34a!K98","v":0}]
["Community Assets",null,{"$f":"SUM(C16:C17)","v":36885366},{"$f":"SUM(D16:D17)","v":1153224},20501738,72099066,50584777,50584777,19523089,20000000,0]
["Heritage Assets",null,{"$f":"SA34a!C103","v":206303},{"$f":"SA34a!D103","v":0},{"$f":"SA34a!E103","v":0},{"$f":"SA34a!F103","v":0},{"$f":"SA34a!G103","v":0},{"$f":"SA34a!H103","v":0},{"$f":"SA34a!I103","v":0},{"$f":"SA34a!J103","v":0},{"$f":"SA34a!K103","v":0}]
["Revenue Generating",null,{"$f":"SA34a!C111","v":0},{"$f":"SA34a!D111","v":0},{"$f":"SA34a!E111","v":0},{"$f":"SA34a!F111","v":0},{"$f":"SA34a!G111","v":0},{"$f":"SA34a!H111","v":0},{"$f":"SA34a!I111","v":0},{"$f":"SA34a!J111","v":0},{"$f":"SA34a!K111","v":0}]
["Non-revenue Generating",null,{"$f":"SA34a!C114","v":0},{"$f":"SA34a!D114","v":0},{"$f":"SA34a!E114","v":0},{"$f":"SA34a!F114","v":0},{"$f":"SA34a!G114","v":0},{"$f":"SA34a!H114","v":0},{"$f":"SA34a!I114","v":0},{"$f":"SA34a!J114","v":0},{"$f":"SA34a!K114","v":0}]
["Investment properties",null,{"$f":"SUM(C20:C21)","v":0},{"$f":"SUM(D20:D21)","v":0},0,0,0,0,0,0,0]
["Operational Buildings",null,{"$f":"SA34a!C119","v":0},{"$f":"SA34a!D119","v":0},{"$f":"SA34a!E119","v":0},{"$f":"SA34a!F119","v":500000},{"$f":"SA34a!G119","v":0},{"$f":"SA34a!H119","v":0},{"$f":"SA34a!I119","v":500000},{"$f":"SA34a!J119","v":0},{"$f":"SA34a!K119","v":0}]
["Housing",null,{"$f":"SA34a!C131","v":0},{"$f":"SA34a!D131","v":0},{"$f":"SA34a!E131","v":0},{"$f":"SA34a!F131","v":0},{"$f":"SA34a!G131","v":0},{"$f":"SA34a!H131","v":0},{"$f":"SA34a!I131","v":0},{"$f":"SA34a!J131","v":0},{"$f":"SA34a!K131","v":0}]
["Other Assets",null,{"$f":"SUM(C23:C24)","v":0},{"$f":"SUM(D23:D24)","v":0},0,500000,0,0,500000,0,0]
["Biological or Cultivated Assets",null,{"$f":"SA34a!C136","v":0},{"$f":"SA34a!D136","v":0},{"$f":"SA34a!E136","v":0},{"$f":"SA34a!F136","v":0},{"$f":"SA34a!G136","v":0},{"$f":"SA34a!H136","v":0},{"$f":"SA34a!I136","v":0},{"$f":"SA34a!J136","v":0},{"$f":"SA34a!K136","v":0}]
["Servitudes",null,{"$f":"SA34a!C140","v":0},{"$f":"SA34a!D140","v":0},{"$f":"SA34a!E140","v":0},{"$f":"SA34a!F140","v":0},{"$f":"SA34a!G140","v":0},{"$f":"SA34a!H140","v":0},{"$f":"SA34a!I140","v":0},{"$f":"SA34a!J140","v":0},{"$f":"SA34a!K140","v":0}]
["Licences and Rights",null,{"$f":"SA34a!C141","v":0},{"$f":"SA34a!D141","v":0},{"$f":"SA34a!E141","v":0},{"$f":"SA34a!F141","v":400000},{"$f":"SA34a!G141","v":400000},{"$f":"SA34a!H141","v":400000},{"$f":"SA34a!I141","v":1660000},{"$f":"SA34a!J141","v":1130000},{"$f":"SA34a!K141","v":1150000}]
["Intangible Assets",null,{"$f":"SUM(C27:C28)","v":0},{"$f":"SUM(D27:D28)","v":0},0,400000,400000,400000,1660000,1130000,1150000]
["Computer Equipment",null,{"$f":"SA34a!C149","v":4373145},{"$f":"SA34a!D149","v":8769754},{"$f":"SA34a!E149","v":9666688},{"$f":"SA34a!F149","v":2000000},{"$f":"SA34a!G149","v":600000},{"$f":"SA34a!H149","v":600000},{"$f":"SA34a!I149","v":3265000},{"$f":"SA34a!J149","v":2710000},{"$f":"SA34a!K149","v":2820000}]
["Furniture and Office Equipment",null,{"$f":"SA34a!C152","v":1792045},{"$f":"SA34a!D152","v":0},{"$f":"SA34a!E152","v":0},{"$f":"SA34a!F152","v":2000000},{"$f":"SA34a!G152","v":1400000},{"$f":"SA34a!H152","v":1400000},{"$f":"SA34a!I152","v":3200000},{"$f":"SA34a!J152","v":4300000},{"$f":"SA34a!K152","v":4300000}]
["Machinery and Equipment",null,{"$f":"SA34a!C155","v":0},{"$f":"SA34a!D155","v":0},{"$f":"SA34a!E155","v":0},{"$f":"SA34a!F155","v":10650000},{"$f":"SA34a!G155","v":13905000},{"$f":"SA34a!H155","v":13905000},{"$f":"SA34a!I155","v":20700000},{"$f":"SA34a!J155","v":18520000},{"$f":"SA34a!K155","v":18890000}]
["Transport Assets",null,{"$f":"SA34a!C158","v":0},{"$f":"SA34a!D158","v":0},{"$f":"SA34a!E158","v":0},{"$f":"SA34a!F158","v":2500000},{"$f":"SA34a!G158","v":2000000},{"$f":"SA34a!H158","v":2000000},{"$f":"SA34a!I158","v":2000000},{"$f":"SA34a!J158","v":2100000},{"$f":"SA34a!K158","v":2200000}]
["Land",null,{"$f":"SA34a!C161","v":0},{"$f":"SA34a!D161","v":0},{"$f":"SA34a!E161","v":0},{"$f":"SA34a!F161","v":0},{"$f":"SA34a!G161","v":0},{"$f":"SA34a!H161","v":0},{"$f":"SA34a!I161","v":0},{"$f":"SA34a!J161","v":0},{"$f":"SA34a!K161","v":0}]
["Zoo's, Marine and Non-biological Animals",null,{"$f":"SA34a!C164","v":0},{"$f":"SA34a!D164","v":0},{"$f":"SA34a!E164","v":0},{"$f":"SA34a!F164","v":0},{"$f":"SA34a!G164","v":0},{"$f":"SA34a!H164","v":0},{"$f":"SA34a!I164","v":0},{"$f":"SA34a!J164","v":0},{"$f":"SA34a!K164","v":0}]
["Mature"," ",{"$f":"SA34a!C168","v":0},{"$f":"SA34a!D168","v":0},{"$f":"SA34a!E168","v":0},{"$f":"SA34a!F168","v":0},{"$f":"SA34a!G168","v":0},{"$f":"SA34a!H168","v":0},{"$f":"SA34a!I168","v":0},{"$f":"SA34a!J168","v":0},{"$f":"SA34a!K168","v":0}]
["Immature"," ",{"$f":"SA34a!C171","v":0},{"$f":"SA34a!D171","v":0},{"$f":"SA34a!E171","v":0},{"$f":"SA34a!F171","v":0},{"$f":"SA34a!G171","v":0},{"$f":"SA34a!H171","v":0},{"$f":"SA34a!I171","v":0},{"$f":"SA34a!J171","v":0},{"$f":"SA34a!K171","v":0}]
["Living Resources","",{"$f":"SUM(C36:C37)","v":0},0,0,0,0,0,0,0,0]
[]
["Total Renewal of Existing Assets",2,{"$f":"C50+C53+C54+C57+C60+C61+SUM(C64:C70)+C73","v":2832033},{"$f":"D50+D53+D54+D57+D60+D61+SUM(D64:D70)+D73","v":1762420},1762420,0,0,0,0,0,0]
["Roads Infrastructure",null,{"$f":"SA34b!C7","v":696000},{"$f":"SA34b!D7","v":696000},{"$f":"SA34b!E7","v":696000},{"$f":"SA34b!F7","v":0},{"$f":"SA34b!G7","v":0},{"$f":"SA34b!H7","v":0},{"$f":"SA34b!I7","v":0},{"$f":"SA34b!J7","v":0},{"$f":"SA34b!K7","v":0}]
["Storm water Infrastructure",null,{"$f":"SA34b!C12","v":0},{"$f":"SA34b!D12","v":0},{"$f":"SA34b!E12","v":0},{"$f":"SA34b!F12","v":0},{"$f":"SA34b!G12","v":0},{"$f":"SA34b!H12","v":0},{"$f":"SA34b!I12","v":0},{"$f":"SA34b!J12","v":0},{"$f":"SA34b!K12","v":0}]
["Electrical Infrastructure",null,{"$f":"SA34b!C16","v":0},{"$f":"SA34b!D16","v":0},{"$f":"SA34b!E16","v":0},{"$f":"SA34b!F16","v":0},{"$f":"SA34b!G16","v":0},{"$f":"SA34b!H16","v":0},{"$f":"SA34b!I16","v":0},{"$f":"SA34b!J16","v":0},{"$f":"SA34b!K16","v":0}]
["Water Supply Infrastructure",null,{"$f":"SA34b!C26","v":0},{"$f":"SA34b!D26","v":0},{"$f":"SA34b!E26","v":0},{"$f":"SA34b!F26","v":0},{"$f":"SA34b!G26","v":0},{"$f":"SA34b!H26","v":0},{"$f":"SA34b!I26","v":0},{"$f":"SA34b!J26","v":0},{"$f":"SA34b!K26","v":0}]
["Sanitation Infrastructure",null,{"$f":"SA34b!C37","v":0},{"$f":"SA34b!D37","v":0},{"$f":"SA34b!E37","v":0},{"$f":"SA34b!F37","v":0},{"$f":"SA34b!G37","v":0},{"$f":"SA34b!H37","v":0},{"$f":"SA34b!I37","v":0},{"$f":"SA34b!J37","v":0},{"$f":"SA34b!K37","v":0}]
["Solid Waste Infrastructure",null,{"$f":"SA34b!C44","v":0},{"$f":"SA34b!D44","v":0},{"$f":"SA34b!E44","v":0},{"$f":"SA34b!F44","v":0},{"$f":"SA34b!G44","v":0},{"$f":"SA34b!H44","v":0},{"$f":"SA34b!I44","v":0},{"$f":"SA34b!J44","v":0},{"$f":"SA34b!K44","v":0}]
["Rail Infrastructure",null,{"$f":"SA34b!C52","v":0},{"$f":"SA34b!D52","v":0},{"$f":"SA34b!E52","v":0},{"$f":"SA34b!F52","v":0},{"$f":"SA34b!G52","v":0},{"$f":"SA34b!H52","v":0},{"$f":"SA34b!I52","v":0},{"$f":"SA34b!J52","v":0},{"$f":"SA34b!K52","v":0}]
["Coastal Infrastructure",null,{"$f":"SA34b!C62","v":0},{"$f":"SA34b!D62","v":0},{"$f":"SA34b!E62","v":0},{"$f":"SA34b!F62","v":0},{"$f":"SA34b!G62","v":0},{"$f":"SA34b!H62","v":0},{"$f":"SA34b!I62","v":0},{"$f":"SA34b!J62","v":0},{"$f":"SA34b!K62","v":0}]
["Information and Communication Infrastructure",null,{"$f":"SA34b!C68","v":0},{"$f":"SA34b!D68","v":0},{"$f":"SA34b!E68","v":0},{"$f":"SA34b!F68","v":0},{"$f":"SA34b!G68","v":0},{"$f":"SA34b!H68","v":0},{"$f":"SA34b!I68","v":0},{"$f":"SA34b!J68","v":0},{"$f":"SA34b!K68","v":0}]
["Infrastructure",null,{"$f":"SUM(C41:C49)","v":696000},{"$f":"SUM(D41:D49)","v":696000},696000,0,0,0,0,0,0]
["Community Facilities",null,{"$f":"SA34b!C75","v":1066420},{"$f":"SA34b!D75","v":1066420},{"$f":"SA34b!E75","v":1066420},{"$f":"SA34b!F75","v":0},{"$f":"SA34b!G75","v":0},{"$f":"SA34b!H75","v":0},{"$f":"SA34b!I75","v":0},{"$f":"SA34b!J75","v":0},{"$f":"SA34b!K75","v":0}]
["Sport and Recreation Facilities",null,{"$f":"SA34b!C98","v":0},{"$f":"SA34b!D98","v":0},{"$f":"SA34b!E98","v":0},{"$f":"SA34b!F98","v":0},{"$f":"SA34b!G98","v":0},{"$f":"SA34b!H98","v":0},{"$f":"SA34b!I98","v":0},{"$f":"SA34b!J98","v":0},{"$f":"SA34b!K98","v":0}]
["Community Assets",null,{"$f":"SUM(C51:C52)","v":1066420},{"$f":"SUM(D51:D52)","v":1066420},1066420,0,0,0,0,0,0]
["Heritage Assets",null,{"$f":"SA34b!C103","v":0},{"$f":"SA34b!D103","v":0},{"$f":"SA34b!E103","v":0},{"$f":"SA34b!F103","v":0},{"$f":"SA34b!G103","v":0},{"$f":"SA34b!H103","v":0},{"$f":"SA34b!I103","v":0},{"$f":"SA34b!J103","v":0},{"$f":"SA34b!K103","v":0}]
["Revenue Generating",null,{"$f":"SA34b!C111","v":0},{"$f":"SA34b!D111","v":0},{"$f":"SA34b!E111","v":0},{"$f":"SA34b!F111","v":0},{"$f":"SA34b!G111","v":0},{"$f":"SA34b!H111","v":0},{"$f":"SA34b!I111","v":0},{"$f":"SA34b!J111","v":0},{"$f":"SA34b!K111","v":0}]
["Non-revenue Generating",null,{"$f":"SA34b!C114","v":0},{"$f":"SA34b!D114","v":0},{"$f":"SA34b!E114","v":0},{"$f":"SA34b!F114","v":0},{"$f":"SA34b!G114","v":0},{"$f":"SA34b!H114","v":0},{"$f":"SA34b!I114","v":0},{"$f":"SA34b!J114","v":0},{"$f":"SA34b!K114","v":0}]
["Investment properties",null,{"$f":"SUM(C55:C56)","v":0},{"$f":"SUM(D55:D56)","v":0},0,0,0,0,0,0,0]
["Operational Buildings",null,{"$f":"SA34b!C119","v":0},{"$f":"SA34b!D119","v":0},{"$f":"SA34b!E119","v":0},{"$f":"SA34b!F119","v":0},{"$f":"SA34b!G119","v":0},{"$f":"SA34b!H119","v":0},{"$f":"SA34b!I119","v":0},{"$f":"SA34b!J119","v":0},{"$f":"SA34b!K119","v":0}]
["Housing",null,{"$f":"SA34b!C131","v":0},{"$f":"SA34b!D131","v":0},{"$f":"SA34b!E131","v":0},{"$f":"SA34b!F131","v":0},{"$f":"SA34b!G131","v":0},{"$f":"SA34b!H131","v":0},{"$f":"SA34b!I131","v":0},{"$f":"SA34b!J131","v":0},{"$f":"SA34b!K131","v":0}]
["Other Assets",null,{"$f":"SUM(C58:C59)","v":0},{"$f":"SUM(D58:D59)","v":0},0,0,0,0,0,0,0]
["Biological or Cultivated Assets",null,{"$f":"SA34b!C136","v":0},{"$f":"SA34b!D136","v":0},{"$f":"SA34b!E136","v":0},{"$f":"SA34b!F136","v":0},{"$f":"SA34b!G136","v":0},{"$f":"SA34b!H136","v":0},{"$f":"SA34b!I136","v":0},{"$f":"SA34b!J136","v":0},{"$f":"SA34b!K136","v":0}]
["Servitudes",null,{"$f":"SA34b!C140","v":0},{"$f":"SA34b!D140","v":0},{"$f":"SA34b!E140","v":0},{"$f":"SA34b!F140","v":0},{"$f":"SA34b!G140","v":0},{"$f":"SA34b!H140","v":0},{"$f":"SA34b!I140","v":0},{"$f":"SA34b!J140","v":0},{"$f":"SA34b!K140","v":0}]
["Licences and Rights",null,{"$f":"SA34b!C141","v":0},{"$f":"SA34b!D141","v":0},{"$f":"SA34b!E141","v":0},{"$f":"SA34b!F141","v":0},{"$f":"SA34b!G141","v":0},{"$f":"SA34b!H141","v":0},{"$f":"SA34b!I141","v":0},{"$f":"SA34b!J141","v":0},{"$f":"SA34b!K141","v":0}]
["Intangible Assets",null,{"$f":"SUM(C62:C63)","v":0},{"$f":"SUM(D62:D63)","v":0},0,0,0,0,0,0,0]
["Computer Equipment",null,{"$f":"SA34b!C149","v":0},{"$f":"SA34b!D149","v":0},{"$f":"SA34b!E149","v":0},{"$f":"SA34b!F149","v":0},{"$f":"SA34b!G149","v":0},{"$f":"SA34b!H149","v":0},{"$f":"SA34b!I149","v":0},{"$f":"SA34b!J149","v":0},{"$f":"SA34b!K149","v":0}]
["Furniture and Office Equipment",null,{"$f":"SA34b!C152","v":1069613},{"$f":"SA34b!D152","v":0},{"$f":"SA34b!E152","v":0},{"$f":"SA34b!F152","v":0},{"$f":"SA34b!G152","v":0},{"$f":"SA34b!H152","v":0},{"$f":"SA34b!I152","v":0},{"$f":"SA34b!J152","v":0},{"$f":"SA34b!K152","v":0}]
["Machinery and Equipment",null,{"$f":"SA34b!C155","v":0},{"$f":"SA34b!D155","v":0},{"$f":"SA34b!E155","v":0},{"$f":"SA34b!F155","v":0},{"$f":"SA34b!G155","v":0},{"$f":"SA34b!H155","v":0},{"$f":"SA34b!I155","v":0},{"$f":"SA34b!J155","v":0},{"$f":"SA34b!K155","v":0}]
["Transport Assets",null,{"$f":"SA34b!C158","v":0},{"$f":"SA34b!D158","v":0},{"$f":"SA34b!E158","v":0},{"$f":"SA34b!F158","v":0},{"$f":"SA34b!G158","v":0},{"$f":"SA34b!H158","v":0},{"$f":"SA34b!I158","v":0},{"$f":"SA34b!J158","v":0},{"$f":"SA34b!K158","v":0}]
["Land",null,{"$f":"SA34b!C161","v":0},{"$f":"SA34b!D161","v":0},{"$f":"SA34b!E161","v":0},{"$f":"SA34b!F161","v":0},{"$f":"SA34b!G161","v":0},{"$f":"SA34b!H161","v":0},{"$f":"SA34b!I161","v":0},{"$f":"SA34b!J161","v":0},{"$f":"SA34b!K161","v":0}]
["Zoo's, Marine and Non-biological Animals",null,{"$f":"SA34b!C164","v":0},{"$f":"SA34b!D164","v":0},{"$f":"SA34b!E164","v":0},{"$f":"SA34b!F164","v":0},{"$f":"SA34b!G164","v":0},{"$f":"SA34b!H164","v":0},{"$f":"SA34b!I164","v":0},{"$f":"SA34b!J164","v":0},{"$f":"SA34b!K164","v":0}]
["Mature"," ",{"$f":"SA34b!C168","v":0},{"$f":"SA34b!D168","v":0},{"$f":"SA34b!E168","v":0},{"$f":"SA34b!F168","v":0},{"$f":"SA34b!G168","v":0},{"$f":"SA34b!H168","v":0},{"$f":"SA34b!I168","v":0},{"$f":"SA34b!J168","v":0},{"$f":"SA34b!K168","v":0}]
["Immature"," ",{"$f":"SA34b!C171","v":0},{"$f":"SA34b!D171","v":0},{"$f":"SA34b!E171","v":0},{"$f":"SA34b!F171","v":0},{"$f":"SA34b!G171","v":0},{"$f":"SA34b!H171","v":0},{"$f":"SA34b!I171","v":0},{"$f":"SA34b!J171","v":0},{"$f":"SA34b!K171","v":0}]
["Living Resources","",{"$f":"SUM(C71:C72)","v":0},0,0,0,0,0,0,0,0]
[]
["Total Upgrading of Existing Assets",6,{"$f":"C85+C88+C89+C92+C95+C96+SUM(C99:C105)+C108","v":17073028},{"$f":"D85+D88+D89+D92+D95+D96+SUM(D99:D105)+D108","v":19154442},28828088,23143541,18193530,18193530,23069189,14600000,1200000]
["Roads Infrastructure",null,{"$f":"SA34e!C7","v":3813666},{"$f":"SA34e!D7","v":4181588},{"$f":"SA34e!E7","v":4181588},{"$f":"SA34e!F7","v":0},{"$f":"SA34e!G7","v":0},{"$f":"SA34e!H7","v":0},{"$f":"SA34e!I7","v":0},{"$f":"SA34e!J7","v":0},{"$f":"SA34e!K7","v":0}]
["Storm water Infrastructure",null,{"$f":"SA34e!C12","v":0},{"$f":"SA34e!D12","v":0},{"$f":"SA34e!E12","v":0},{"$f":"SA34e!F12","v":0},{"$f":"SA34e!G12","v":0},{"$f":"SA34e!H12","v":0},{"$f":"SA34e!I12","v":0},{"$f":"SA34e!J12","v":0},{"$f":"SA34e!K12","v":0}]
["Electrical Infrastructure",null,{"$f":"SA34e!C16","v":0},{"$f":"SA34e!D16","v":0},{"$f":"SA34e!E16","v":0},{"$f":"SA34e!F16","v":0},{"$f":"SA34e!G16","v":0},{"$f":"SA34e!H16","v":0},{"$f":"SA34e!I16","v":0},{"$f":"SA34e!J16","v":0},{"$f":"SA34e!K16","v":0}]
["Water Supply Infrastructure",null,{"$f":"SA34e!C26","v":0},{"$f":"SA34e!D26","v":0},{"$f":"SA34e!E26","v":0},{"$f":"SA34e!F26","v":0},{"$f":"SA34e!G26","v":0},{"$f":"SA34e!H26","v":0},{"$f":"SA34e!I26","v":0},{"$f":"SA34e!J26","v":0},{"$f":"SA34e!K26","v":0}]
["Sanitation Infrastructure",null,{"$f":"SA34e!C37","v":0},{"$f":"SA34e!D37","v":0},{"$f":"SA34e!E37","v":0},{"$f":"SA34e!F37","v":0},{"$f":"SA34e!G37","v":0},{"$f":"SA34e!H37","v":0},{"$f":"SA34e!I37","v":0},{"$f":"SA34e!J37","v":0},{"$f":"SA34e!K37","v":0}]
["Solid Waste Infrastructure",null,{"$f":"SA34e!C44","v":0},{"$f":"SA34e!D44","v":0},{"$f":"SA34e!E44","v":0},{"$f":"SA34e!F44","v":0},{"$f":"SA34e!G44","v":0},{"$f":"SA34e!H44","v":0},{"$f":"SA34e!I44","v":0},{"$f":"SA34e!J44","v":0},{"$f":"SA34e!K44","v":0}]
["Rail Infrastructure",null,{"$f":"SA34e!C52","v":0},{"$f":"SA34e!D52","v":0},{"$f":"SA34e!E52","v":0},{"$f":"SA34e!F52","v":0},{"$f":"SA34e!G52","v":0},{"$f":"SA34e!H52","v":0},{"$f":"SA34e!I52","v":0},{"$f":"SA34e!J52","v":0},{"$f":"SA34e!K52","v":0}]
["Coastal Infrastructure",null,{"$f":"SA34e!C62","v":0},{"$f":"SA34e!D62","v":0},{"$f":"SA34e!E62","v":0},{"$f":"SA34e!F62","v":0},{"$f":"SA34e!G62","v":0},{"$f":"SA34e!H62","v":0},{"$f":"SA34e!I62","v":0},{"$f":"SA34e!J62","v":0},{"$f":"SA34e!K62","v":0}]
["Information and Communication Infrastructure",null,{"$f":"SA34e!C68","v":0},{"$f":"SA34e!D68","v":0},{"$f":"SA34e!E68","v":0},{"$f":"SA34e!F68","v":0},{"$f":"SA34e!G68","v":0},{"$f":"SA34e!H68","v":0},{"$f":"SA34e!I68","v":0},{"$f":"SA34e!J68","v":0},{"$f":"SA34e!K68","v":0}]
["Infrastructure",null,{"$f":"SUM(C76:C84)","v":3813666},4181588,4181588,0,0,0,0,0,0]
["Community Facilities",null,{"$f":"SA34e!C75","v":0},{"$f":"SA34e!D75","v":0},{"$f":"SA34e!E75","v":0},{"$f":"SA34e!F75","v":600000},{"$f":"SA34e!G75","v":300000},{"$f":"SA34e!H75","v":300000},{"$f":"SA34e!I75","v":1000000},{"$f":"SA34e!J75","v":1100000},{"$f":"SA34e!K75","v":1200000}]
["Sport and Recreation Facilities",null,{"$f":"SA34e!C98","v":13259362},{"$f":"SA34e!D98","v":13259362},{"$f":"SA34e!E98","v":13889775},{"$f":"SA34e!F98","v":4000000},{"$f":"SA34e!G98","v":3554255},{"$f":"SA34e!H98","v":3554255},{"$f":"SA34e!I98","v":7500000},{"$f":"SA34e!J98","v":13500000},{"$f":"SA34e!K98","v":0}]
["Community Assets",null,{"$f":"SUM(C86:C87)","v":13259362},13259362,13889775,4600000,3854255,3854255,8500000,14600000,1200000]
["Heritage Assets",null,{"$f":"SA34e!C103","v":0},{"$f":"SA34e!D103","v":0},{"$f":"SA34e!E103","v":0},{"$f":"SA34e!F103","v":0},{"$f":"SA34e!G103","v":0},{"$f":"SA34e!H103","v":0},{"$f":"SA34e!I103","v":0},{"$f":"SA34e!J103","v":0},{"$f":"SA34e!K103","v":0}]
["Revenue Generating",null,{"$f":"SA34e!C111","v":0},{"$f":"SA34e!D111","v":0},{"$f":"SA34e!E111","v":0},{"$f":"SA34e!F111","v":0},{"$f":"SA34e!G111","v":0},{"$f":"SA34e!H111","v":0},{"$f":"SA34e!I111","v":0},{"$f":"SA34e!J111","v":0},{"$f":"SA34e!K111","v":0}]
["Non-revenue Generating",null,{"$f":"SA34e!C114","v":0},{"$f":"SA34e!D114","v":0},{"$f":"SA34e!E114","v":0},{"$f":"SA34e!F114","v":0},{"$f":"SA34e!G114","v":0},{"$f":"SA34e!H114","v":0},{"$f":"SA34e!I114","v":0},{"$f":"SA34e!J114","v":0},{"$f":"SA34e!K114","v":0}]
["Investment properties",null,{"$f":"SUM(C90:C91)","v":0},0,0,0,0,0,0,0,0]
["Operational Buildings",null,{"$f":"SA34e!C119","v":0},{"$f":"SA34e!D119","v":1713492},{"$f":"SA34e!E119","v":10756725},{"$f":"SA34e!F119","v":18543541},{"$f":"SA34e!G119","v":14339275},{"$f":"SA34e!H119","v":14339275},{"$f":"SA34e!I119","v":14569189},{"$f":"SA34e!J119","v":0},{"$f":"SA34e!K119","v":0}]
["Housing",null,{"$f":"SA34e!C131","v":0},{"$f":"SA34e!D131","v":0},{"$f":"SA34e!E131","v":0},{"$f":"SA34e!F131","v":0},{"$f":"SA34e!G131","v":0},{"$f":"SA34e!H131","v":0},{"$f":"SA34e!I131","v":0},{"$f":"SA34e!J131","v":0},{"$f":"SA34e!K131","v":0}]
["Other Assets",null,{"$f":"SUM(C93:C94)","v":0},1713492,10756725,18543541,14339275,14339275,14569189,0,0]
["Biological or Cultivated Assets",null,{"$f":"SA34e!C136","v":0},{"$f":"SA34e!D136","v":0},{"$f":"SA34e!E136","v":0},{"$f":"SA34e!F136","v":0},{"$f":"SA34e!G136","v":0},{"$f":"SA34e!H136","v":0},{"$f":"SA34e!I136","v":0},{"$f":"SA34e!J136","v":0},{"$f":"SA34e!K136","v":0}]
["Servitudes",null,{"$f":"SA34e!C140","v":0},{"$f":"SA34e!D140","v":0},{"$f":"SA34e!E140","v":0},{"$f":"SA34e!F140","v":0},{"$f":"SA34e!G140","v":0},{"$f":"SA34e!H140","v":0},{"$f":"SA34e!I140","v":0},{"$f":"SA34e!J140","v":0},{"$f":"SA34e!K140","v":0}]
["Licences and Rights",null,{"$f":"SA34e!C141","v":0},{"$f":"SA34e!D141","v":0},{"$f":"SA34e!E141","v":0},{"$f":"SA34e!F141","v":0},{"$f":"SA34e!G141","v":0},{"$f":"SA34e!H141","v":0},{"$f":"SA34e!I141","v":0},{"$f":"SA34e!J141","v":0},{"$f":"SA34e!K141","v":0}]
["Intangible Assets",null,{"$f":"SUM(C97:C98)","v":0},0,0,0,0,0,0,0,0]
["Computer Equipment",null,{"$f":"SA34e!C149","v":0},{"$f":"SA34e!D149","v":0},{"$f":"SA34e!E149","v":0},{"$f":"SA34e!F149","v":0},{"$f":"SA34e!G149","v":0},{"$f":"SA34e!H149","v":0},{"$f":"SA34e!I149","v":0},{"$f":"SA34e!J149","v":0},{"$f":"SA34e!K149","v":0}]
["Furniture and Office Equipment",null,{"$f":"SA34e!C152","v":0},{"$f":"SA34e!D152","v":0},{"$f":"SA34e!E152","v":0},{"$f":"SA34e!F152","v":0},{"$f":"SA34e!G152","v":0},{"$f":"SA34e!H152","v":0},{"$f":"SA34e!I152","v":0},{"$f":"SA34e!J152","v":0},{"$f":"SA34e!K152","v":0}]
["Machinery and Equipment",null,{"$f":"SA34e!C155","v":0},{"$f":"SA34e!D155","v":0},{"$f":"SA34e!E155","v":0},{"$f":"SA34e!F155","v":0},{"$f":"SA34e!G155","v":0},{"$f":"SA34e!H155","v":0},{"$f":"SA34e!I155","v":0},{"$f":"SA34e!J155","v":0},{"$f":"SA34e!K155","v":0}]
["Transport Assets",null,{"$f":"SA34e!C158","v":0},{"$f":"SA34e!D158","v":0},{"$f":"SA34e!E158","v":0},{"$f":"SA34e!F158","v":0},{"$f":"SA34e!G158","v":0},{"$f":"SA34e!H158","v":0},{"$f":"SA34e!I158","v":0},{"$f":"SA34e!J158","v":0},{"$f":"SA34e!K158","v":0}]
["Land",null,{"$f":"SA34e!C161","v":0},{"$f":"SA34e!D161","v":0},{"$f":"SA34e!E161","v":0},{"$f":"SA34e!F161","v":0},{"$f":"SA34e!G161","v":0},{"$f":"SA34e!H161","v":0},{"$f":"SA34e!I161","v":0},{"$f":"SA34e!J161","v":0},{"$f":"SA34e!K161","v":0}]
["Zoo's, Marine and Non-biological Animals",null,{"$f":"SA34e!C164","v":0},{"$f":"SA34e!D164","v":0},{"$f":"SA34e!E164","v":0},{"$f":"SA34e!F164","v":0},{"$f":"SA34e!G164","v":0},{"$f":"SA34e!H164","v":0},{"$f":"SA34e!I164","v":0},{"$f":"SA34e!J164","v":0},{"$f":"SA34e!K164","v":0}]
["Mature"," ",{"$f":"SA34e!C168","v":0},{"$f":"SA34e!D168","v":0},{"$f":"SA34e!E168","v":0},{"$f":"SA34e!F168","v":0},{"$f":"SA34e!G168","v":0},{"$f":"SA34e!H168","v":0},{"$f":"SA34e!I168","v":0},{"$f":"SA34e!J168","v":0},{"$f":"SA34e!K168","v":0}]
["Immature"," ",{"$f":"SA34b!C171","v":0},{"$f":"SA34b!D171","v":0},{"$f":"SA34b!E171","v":0},{"$f":"SA34b!F171","v":0},{"$f":"SA34b!G171","v":0},{"$f":"SA34b!H171","v":0},{"$f":"SA34b!I171","v":0},{"$f":"SA34b!J171","v":0},{"$f":"SA34b!K171","v":0}]
["Living Resources","",{"$f":"SUM(C106:C107)","v":0},0,0,0,0,0,0,0,0]
[]
["Total Capital Expenditure",4,{"$f":"+C5+C40+C75","v":144938397},111803196,114943552,148172229,138207867,138207867,158791188,173326968,159635856]
["Roads Infrastructure",null,{"$f":"+C6+C41+C76","v":77815913},68822813,46307321,34879622,51124560,51124560,63347349,90966968,94040148]
["Storm water Infrastructure",null,{"$f":"+C7+C42+C77","v":0},0,0,0,0,0,21526561,19000000,35035708]
["Electrical Infrastructure",null,{"$f":"+C8+C43+C78","v":1},8547902,2608696,0,0,0,0,0,0]
["Water Supply Infrastructure",null,{"$f":"+C9+C44+C79","v":0},0,0,0,0,0,0,0,0]
["Sanitation Infrastructure",null,{"$f":"+C10+C45+C80","v":0},0,0,0,0,0,0,0,0]
["Solid Waste Infrastructure",null,{"$f":"+C11+C46+C81","v":8470229},8470229,10146189,0,0,0,0,0,0]
["Rail Infrastructure",null,{"$f":"+C12+C47+C82","v":0},0,0,0,0,0,0,0,0]
["Coastal Infrastructure",null,{"$f":"+C13+C48+C83","v":0},0,0,0,0,0,0,0,0]
["Information and Communication Infrastructure",null,{"$f":"+C14+C49+C84","v":0},0,0,0,0,0,0,0,0]
["Infrastructure",null,{"$f":"SUM(C111:C119)","v":86286143},{"$f":"SUM(D111:D119)","v":85840944},59062206,34879622,51124560,51124560,84873910,109966968,129075856]
["Community Facilities",null,{"$f":"+C16+C51+C86","v":2219644},2219644,16463670,44741416,32158273,32158273,8909410,21100000,1200000]
["Sport and Recreation Facilities",null,{"$f":"+C17+C52+C87","v":48991504},13259362,18994263,31957650,22280759,22280759,19113679,13500000,0]
["Community Assets",null,{"$f":"SUM(C121:C122)","v":51211148},{"$f":"SUM(D121:D122)","v":15479006},35457933,76699066,54439032,54439032,28023089,34600000,1200000]
["Heritage Assets",null,{"$f":"+C19+C54+C89","v":206303},0,0,0,0,0,0,0,0]
["Revenue Generating",null,{"$f":"+C20+C55+C90","v":0},0,0,0,0,0,0,0,0]
["Non-revenue Generating",null,{"$f":"+C21+C56+C91","v":0},0,0,0,0,0,0,0,0]
["Investment properties",null,{"$f":"SUM(C125:C126)","v":0},{"$f":"SUM(D125:D126)","v":0},0,0,0,0,0,0,0]
["Operational Buildings",null,{"$f":"+C23+C58+C93","v":0},1713492,10756725,19043541,14339275,14339275,15069189,0,0]
["Housing",null,{"$f":"+C24+C59+C94","v":0},0,0,0,0,0,0,0,0]
["Other Assets",null,{"$f":"SUM(C128:C129)","v":0},1713492,10756725,19043541,14339275,14339275,15069189,0,0]
["Biological or Cultivated Assets",null,{"$f":"+C26+C61+C96","v":0},0,0,0,0,0,0,0,0]
["Servitudes",null,{"$f":"+C27+C62+C97","v":0},0,0,0,0,0,0,0,0]
["Licences and Rights",null,{"$f":"+C28+C63+C98","v":0},0,0,400000,400000,400000,1660000,1130000,1150000]
["Intangible Assets",null,{"$f":"SUM(C132:C133)","v":0},{"$f":"SUM(D132:D133)","v":0},0,400000,400000,400000,1660000,1130000,1150000]
["Computer Equipment",null,{"$f":"+C30+C65+C100","v":4373145},8769754,9666688,2000000,600000,600000,3265000,2710000,2820000]
["Furniture and Office Equipment",null,{"$f":"+C31+C66+C101","v":2861658},0,0,2000000,1400000,1400000,3200000,4300000,4300000]
["Machinery and Equipment",null,{"$f":"+C32+C67+C102","v":0},0,0,10650000,13905000,13905000,20700000,18520000,18890000]
["Transport Assets",null,{"$f":"+C33+C68+C103","v":0},0,0,2500000,2000000,2000000,2000000,2100000,2200000]
["Land",null,{"$f":"+C34+C69+C104","v":0},0,0,0,0,0,0,0,0]
["Zoo's, Marine and Non-biological Animals",null,{"$f":"+C35+C70+C105","v":0},0,0,0,0,0,0,0,0]
["Mature"," ",{"$f":"+C36+C71+C106","v":0},{"$f":"+D36+D71+D106","v":0},0,0,0,0,0,0,0]
["Immature"," ",{"$f":"+C37+C72+C107","v":0},{"$f":"+D37+D72+D107","v":0},0,0,0,0,0,0,0]
["Living Resources","",{"$f":"SUM(C141:C142)","v":0},0,0,0,0,0,0,0,0]
["TOTAL CAPITAL EXPENDITURE - Asset class",null,{"$f":"+C5+C40+C75","v":144938397},111803196,114943552,148172229,138207867,138207867,158791188,173326968,159635856]
[]
["ASSET REGISTER SUMMARY - PPE (WDV)",5,{"$f":"C156+C159+C160+C163+C166+C167+C170+C171+C172+C173+C174+C175+C176","v":-372699471},{"$f":"D156+D159+D160+D163+D166+D167+D170+D171+D172+D173+D174+D175+D176","v":-476335073},-556621819,2077447401,940843558,940843558,871362255,868397255,867997255]
["Roads Infrastructure",null,{"$f":"SUMIFS(Sheet1!S71_PPPYearAmount,Sheet1!S71_A9Code,$AC:$AC)+SUMIFS(Sheet1!S71_PPPYearAmount,Sheet1!S71_WIPCode,$AC:$AC)+SUMIFS(Sheet1!S71_PPPYearAmount,Sheet1!S71_WIPOPBalance,$AE:$AE)","v":-346945247},{"$f":"SUMIFS(Sheet1!S71_PPYearAmount,Sheet1!S71_A9Code,$AC:$AC)+SUMIFS(Sheet1!S71_PPYearAmount,Sheet1!S71_WIPCode,$AC:$AC)+SUMIFS(Sheet1!S71_PPYearAmount,Sheet1!S71_WIPOPBalance,$AE:$AE)","v":-434431148},{"$f":"SUMIFS(Sheet1!S71_PYearAmount,Sheet1!S71_A9Code,$AC:$AC)+SUMIFS(Sheet1!S71_PYearAmount,Sheet1!S71_WIPCode,$AC:$AC)+SUMIFS(Sheet1!S71_PYearAmount,Sheet1!S71_WIPOPBalance,$AE:$AE)","v":-499826031},{"$f":"SUMIFS(Sheet1!S71_OriginalBudAmnt,Sheet1!S71_A9Code,$AC:$AC)+SUMIFS(Sheet1!S71_OriginalBudAmnt,Sheet1!S71_WIPCode,$AC:$AC)+SUMIFS(Sheet1!S71_OriginalBudAmnt,Sheet1!S71_WIPOPBalance,$AE:$AE)","v":1377436710},{"$f":"SUMIFS(Sheet1!S71_AdjustmentBudAmnt,Sheet1!S71_A9Code,$AC:$AC)+SUMIFS(Sheet1!S71_AdjustmentBudAmnt,Sheet1!S71_WIPCode,$AC:$AC)+SUMIFS(Sheet1!S71_ASBudgetAmount,Sheet1!S71_WIPOPBalance,$AE:$AE)","v":523455664},{"$f":"SUMIFS(Sheet1!S71_AdjustmentBudAmnt,Sheet1!S71_A9Code,$AC:$AC)+SUMIFS(Sheet1!S71_AdjustmentBudAmnt,Sheet1!S71_WIPCode,$AC:$AC)++SUMIFS(Sheet1!S71_ASBudgetAmount,Sheet1!S71_WIPOPBalance,$AE:$AE)","v":523455664},{"$f":"SUMIFS(Sheet1!S71_ASBudgetAmount,Sheet1!S71_A9Code,$AC:$AC)+SUMIFS(Sheet1!S71_ASBudgetAmount,Sheet1!S71_WIPCode,$AC:$AC)+SUMIFS(Sheet1!S71_ASBudgetAmount,Sheet1!S71_WIPOPBalance,$AE:$AE)","v":519055664},{"$f":"SUMIFS(Sheet1!S71_OY1BudgetAmount,Sheet1!S71_A9Code,$AC:$AC)+SUMIFS(Sheet1!S71_OY1BudgetAmount,Sheet1!S71_WIPCode,$AC:$AC)++SUMIFS(Sheet1!S71_OY1BudgetAmount,Sheet1!S71_WIPOPBalance,$AE:$AE)","v":518855664},{"$f":"SUMIFS(Sheet1!S71_OY2BudgetAmount,Sheet1!S71_A9Code,$AC:$AC)+SUMIFS(Sheet1!S71_OY2BudgetAmount,Sheet1!S71_WIPCode,$AC:$AC)","v":518655664},null,null,null,null,null,null,null,null,null,null,null,null,null,null,null,null,null,"0110"]
["Storm water Infrastructure",null,{"$f":"SUMIFS(Sheet1!S71_PPPYearAmount,Sheet1!S71_A9Code,$AC:$AC)+SUMIFS(Sheet1!S71_PPPYearAmount,Sheet1!S71_WIPCode,$AC:$AC)","v":0},{"$f":"SUMIFS(Sheet1!S71_PPYearAmount,Sheet1!S71_A9Code,$AC:$AC)+SUMIFS(Sheet1!S71_PPYearAmount,Sheet1!S71_WIPCode,$AC:$AC)","v":0},{"$f":"SUMIFS(Sheet1!S71_PYearAmount,Sheet1!S71_A9Code,$AC:$AC)+SUMIFS(Sheet1!S71_PYearAmount,Sheet1!S71_WIPCode,$AC:$AC)","v":0},{"$f":"SUMIFS(Sheet1!S71_OriginalBudAmnt,Sheet1!S71_A9Code,$AC:$AC)+SUMIFS(Sheet1!S71_OriginalBudAmnt,Sheet1!S71_WIPCode,$AC:$AC)","v":0},{"$f":"SUMIFS(Sheet1!S71_AdjustmentBudAmnt,Sheet1!S71_A9Code,$AC:$AC)+SUMIFS(Sheet1!S71_AdjustmentBudAmnt,Sheet1!S71_WIPCode,$AC:$AC)","v":0},{"$f":"SUMIFS(Sheet1!S71_AdjustmentBudAmnt,Sheet1!S71_A9Code,$AC:$AC)+SUMIFS(Sheet1!S71_AdjustmentBudAmnt,Sheet1!S71_WIPCode,$AC:$AC)","v":0},{"$f":"SUMIFS(Sheet1!S71_ASBudgetAmount,Sheet1!S71_A9Code,$AC:$AC)+SUMIFS(Sheet1!S71_ASBudgetAmount,Sheet1!S71_WIPCode,$AC:$AC)","v":0},{"$f":"SUMIFS(Sheet1!S71_OY1BudgetAmount,Sheet1!S71_A9Code,$AC:$AC)+SUMIFS(Sheet1!S71_OY1BudgetAmount,Sheet1!S71_WIPCode,$AC:$AC)","v":0},{"$f":"SUMIFS(Sheet1!S71_OY2BudgetAmount,Sheet1!S71_A9Code,$AC:$AC)+SUMIFS(Sheet1!S71_OY2BudgetAmount,Sheet1!S71_WIPCode,$AC:$AC)","v":0},null,null,null,null,null,null,null,null,null,null,null,null,null,null,null,null,null,"0160"]
["Electrical Infrastructure",null,{"$f":"SUMIFS(Sheet1!S71_PPPYearAmount,Sheet1!S71_A9Code,$AC:$AC)+SUMIFS(Sheet1!S71_PPPYearAmount,Sheet1!S71_WIPCode,$AC:$AC)","v":0},{"$f":"SUMIFS(Sheet1!S71_PPYearAmount,Sheet1!S71_A9Code,$AC:$AC)+SUMIFS(Sheet1!S71_PPYearAmount,Sheet1!S71_WIPCode,$AC:$AC)","v":0},{"$f":"SUMIFS(Sheet1!S71_PYearAmount,Sheet1!S71_A9Code,$AC:$AC)+SUMIFS(Sheet1!S71_PYearAmount,Sheet1!S71_WIPCode,$AC:$AC)","v":0},{"$f":"SUMIFS(Sheet1!S71_OriginalBudAmnt,Sheet1!S71_A9Code,$AC:$AC)+SUMIFS(Sheet1!S71_OriginalBudAmnt,Sheet1!S71_WIPCode,$AC:$AC)","v":0},{"$f":"SUMIFS(Sheet1!S71_AdjustmentBudAmnt,Sheet1!S71_A9Code,$AC:$AC)+SUMIFS(Sheet1!S71_AdjustmentBudAmnt,Sheet1!S71_WIPCode,$AC:$AC)","v":0},{"$f":"SUMIFS(Sheet1!S71_AdjustmentBudAmnt,Sheet1!S71_A9Code,$AC:$AC)+SUMIFS(Sheet1!S71_AdjustmentBudAmnt,Sheet1!S71_WIPCode,$AC:$AC)","v":0},{"$f":"SUMIFS(Sheet1!S71_ASBudgetAmount,Sheet1!S71_A9Code,$AC:$AC)+SUMIFS(Sheet1!S71_ASBudgetAmount,Sheet1!S71_WIPCode,$AC:$AC)","v":0},{"$f":"SUMIFS(Sheet1!S71_OY1BudgetAmount,Sheet1!S71_A9Code,$AC:$AC)+SUMIFS(Sheet1!S71_OY1BudgetAmount,Sheet1!S71_WIPCode,$AC:$AC)","v":0},{"$f":"SUMIFS(Sheet1!S71_OY2BudgetAmount,Sheet1!S71_A9Code,$AC:$AC)+SUMIFS(Sheet1!S71_OY2BudgetAmount,Sheet1!S71_WIPCode,$AC:$AC)","v":0},null,null,null,null,null,null,null,null,null,null,null,null,null,null,null,null,null,"0200"]
["Water Supply Infrastructure",null,{"$f":"SUMIFS(Sheet1!S71_PPPYearAmount,Sheet1!S71_A9Code,$AC:$AC)+SUMIFS(Sheet1!S71_PPPYearAmount,Sheet1!S71_WIPCode,$AC:$AC)","v":0},{"$f":"SUMIFS(Sheet1!S71_PPYearAmount,Sheet1!S71_A9Code,$AC:$AC)+SUMIFS(Sheet1!S71_PPYearAmount,Sheet1!S71_WIPCode,$AC:$AC)","v":0},{"$f":"SUMIFS(Sheet1!S71_PYearAmount,Sheet1!S71_A9Code,$AC:$AC)+SUMIFS(Sheet1!S71_PYearAmount,Sheet1!S71_WIPCode,$AC:$AC)","v":0},{"$f":"SUMIFS(Sheet1!S71_OriginalBudAmnt,Sheet1!S71_A9Code,$AC:$AC)+SUMIFS(Sheet1!S71_OriginalBudAmnt,Sheet1!S71_WIPCode,$AC:$AC)","v":0},{"$f":"SUMIFS(Sheet1!S71_AdjustmentBudAmnt,Sheet1!S71_A9Code,$AC:$AC)+SUMIFS(Sheet1!S71_AdjustmentBudAmnt,Sheet1!S71_WIPCode,$AC:$AC)","v":0},{"$f":"SUMIFS(Sheet1!S71_AdjustmentBudAmnt,Sheet1!S71_A9Code,$AC:$AC)+SUMIFS(Sheet1!S71_AdjustmentBudAmnt,Sheet1!S71_WIPCode,$AC:$AC)","v":0},{"$f":"SUMIFS(Sheet1!S71_ASBudgetAmount,Sheet1!S71_A9Code,$AC:$AC)+SUMIFS(Sheet1!S71_ASBudgetAmount,Sheet1!S71_WIPCode,$AC:$AC)","v":0},{"$f":"SUMIFS(Sheet1!S71_OY1BudgetAmount,Sheet1!S71_A9Code,$AC:$AC)+SUMIFS(Sheet1!S71_OY1BudgetAmount,Sheet1!S71_WIPCode,$AC:$AC)","v":0},{"$f":"SUMIFS(Sheet1!S71_OY2BudgetAmount,Sheet1!S71_A9Code,$AC:$AC)+SUMIFS(Sheet1!S71_OY2BudgetAmount,Sheet1!S71_WIPCode,$AC:$AC)","v":0},null,null,null,null,null,null,null,null,null,null,null,null,null,null,null,null,null,"0300"]
["Sanitation Infrastructure",null,{"$f":"SUMIFS(Sheet1!S71_PPPYearAmount,Sheet1!S71_A9Code,$AC:$AC)+SUMIFS(Sheet1!S71_PPPYearAmount,Sheet1!S71_WIPCode,$AC:$AC)","v":0},{"$f":"SUMIFS(Sheet1!S71_PPYearAmount,Sheet1!S71_A9Code,$AC:$AC)+SUMIFS(Sheet1!S71_PPYearAmount,Sheet1!S71_WIPCode,$AC:$AC)","v":0},{"$f":"SUMIFS(Sheet1!S71_PYearAmount,Sheet1!S71_A9Code,$AC:$AC)+SUMIFS(Sheet1!S71_PYearAmount,Sheet1!S71_WIPCode,$AC:$AC)","v":0},{"$f":"SUMIFS(Sheet1!S71_OriginalBudAmnt,Sheet1!S71_A9Code,$AC:$AC)+SUMIFS(Sheet1!S71_OriginalBudAmnt,Sheet1!S71_WIPCode,$AC:$AC)","v":0},{"$f":"SUMIFS(Sheet1!S71_AdjustmentBudAmnt,Sheet1!S71_A9Code,$AC:$AC)+SUMIFS(Sheet1!S71_AdjustmentBudAmnt,Sheet1!S71_WIPCode,$AC:$AC)","v":0},{"$f":"SUMIFS(Sheet1!S71_AdjustmentBudAmnt,Sheet1!S71_A9Code,$AC:$AC)+SUMIFS(Sheet1!S71_AdjustmentBudAmnt,Sheet1!S71_WIPCode,$AC:$AC)","v":0},{"$f":"SUMIFS(Sheet1!S71_ASBudgetAmount,Sheet1!S71_A9Code,$AC:$AC)+SUMIFS(Sheet1!S71_ASBudgetAmount,Sheet1!S71_WIPCode,$AC:$AC)","v":0},{"$f":"SUMIFS(Sheet1!S71_OY1BudgetAmount,Sheet1!S71_A9Code,$AC:$AC)+SUMIFS(Sheet1!S71_OY1BudgetAmount,Sheet1!S71_WIPCode,$AC:$AC)","v":0},{"$f":"SUMIFS(Sheet1!S71_OY2BudgetAmount,Sheet1!S71_A9Code,$AC:$AC)+SUMIFS(Sheet1!S71_OY2BudgetAmount,Sheet1!S71_WIPCode,$AC:$AC)","v":0},null,null,null,null,null,null,null,null,null,null,null,null,null,null,null,null,null,"0410"]
["Solid Waste Infrastructure",null,{"$f":"SUMIFS(Sheet1!S71_PPPYearAmount,Sheet1!S71_A9Code,$AC:$AC)+SUMIFS(Sheet1!S71_PPPYearAmount,Sheet1!S71_WIPCode,$AC:$AC)","v":0},{"$f":"SUMIFS(Sheet1!S71_PPYearAmount,Sheet1!S71_A9Code,$AC:$AC)+SUMIFS(Sheet1!S71_PPYearAmount,Sheet1!S71_WIPCode,$AC:$AC)","v":0},{"$f":"SUMIFS(Sheet1!S71_PYearAmount,Sheet1!S71_A9Code,$AC:$AC)+SUMIFS(Sheet1!S71_PYearAmount,Sheet1!S71_WIPCode,$AC:$AC)","v":0},{"$f":"SUMIFS(Sheet1!S71_OriginalBudAmnt,Sheet1!S71_A9Code,$AC:$AC)+SUMIFS(Sheet1!S71_OriginalBudAmnt,Sheet1!S71_WIPCode,$AC:$AC)","v":0},{"$f":"SUMIFS(Sheet1!S71_AdjustmentBudAmnt,Sheet1!S71_A9Code,$AC:$AC)+SUMIFS(Sheet1!S71_AdjustmentBudAmnt,Sheet1!S71_WIPCode,$AC:$AC)","v":0},{"$f":"SUMIFS(Sheet1!S71_AdjustmentBudAmnt,Sheet1!S71_A9Code,$AC:$AC)+SUMIFS(Sheet1!S71_AdjustmentBudAmnt,Sheet1!S71_WIPCode,$AC:$AC)","v":0},{"$f":"SUMIFS(Sheet1!S71_ASBudgetAmount,Sheet1!S71_A9Code,$AC:$AC)+SUMIFS(Sheet1!S71_ASBudgetAmount,Sheet1!S71_WIPCode,$AC:$AC)","v":0},{"$f":"SUMIFS(Sheet1!S71_OY1BudgetAmount,Sheet1!S71_A9Code,$AC:$AC)+SUMIFS(Sheet1!S71_OY1BudgetAmount,Sheet1!S71_WIPCode,$AC:$AC)","v":0},{"$f":"SUMIFS(Sheet1!S71_OY2BudgetAmount,Sheet1!S71_A9Code,$AC:$AC)+SUMIFS(Sheet1!S71_OY2BudgetAmount,Sheet1!S71_WIPCode,$AC:$AC)","v":0},null,null,null,null,null,null,null,null,null,null,null,null,null,null,null,null,null,"0480"]
["Rail Infrastructure",null,{"$f":"SUMIFS(Sheet1!S71_PPPYearAmount,Sheet1!S71_A9Code,$AC:$AC)+SUMIFS(Sheet1!S71_PPPYearAmount,Sheet1!S71_WIPCode,$AC:$AC)","v":0},{"$f":"SUMIFS(Sheet1!S71_PPYearAmount,Sheet1!S71_A9Code,$AC:$AC)+SUMIFS(Sheet1!S71_PPYearAmount,Sheet1!S71_WIPCode,$AC:$AC)","v":0},{"$f":"SUMIFS(Sheet1!S71_PYearAmount,Sheet1!S71_A9Code,$AC:$AC)+SUMIFS(Sheet1!S71_PYearAmount,Sheet1!S71_WIPCode,$AC:$AC)","v":0},{"$f":"SUMIFS(Sheet1!S71_OriginalBudAmnt,Sheet1!S71_A9Code,$AC:$AC)+SUMIFS(Sheet1!S71_OriginalBudAmnt,Sheet1!S71_WIPCode,$AC:$AC)","v":0},{"$f":"SUMIFS(Sheet1!S71_AdjustmentBudAmnt,Sheet1!S71_A9Code,$AC:$AC)+SUMIFS(Sheet1!S71_AdjustmentBudAmnt,Sheet1!S71_WIPCode,$AC:$AC)","v":0},{"$f":"SUMIFS(Sheet1!S71_AdjustmentBudAmnt,Sheet1!S71_A9Code,$AC:$AC)+SUMIFS(Sheet1!S71_AdjustmentBudAmnt,Sheet1!S71_WIPCode,$AC:$AC)","v":0},{"$f":"SUMIFS(Sheet1!S71_ASBudgetAmount,Sheet1!S71_A9Code,$AC:$AC)+SUMIFS(Sheet1!S71_ASBudgetAmount,Sheet1!S71_WIPCode,$AC:$AC)","v":0},{"$f":"SUMIFS(Sheet1!S71_OY1BudgetAmount,Sheet1!S71_A9Code,$AC:$AC)+SUMIFS(Sheet1!S71_OY1BudgetAmount,Sheet1!S71_WIPCode,$AC:$AC)","v":0},{"$f":"SUMIFS(Sheet1!S71_OY2BudgetAmount,Sheet1!S71_A9Code,$AC:$AC)+SUMIFS(Sheet1!S71_OY2BudgetAmount,Sheet1!S71_WIPCode,$AC:$AC)","v":0},null,null,null,null,null,null,null,null,null,null,null,null,null,null,null,null,null,"0560"]
["Coastal Infrastructure",null,{"$f":"SUMIFS(Sheet1!S71_PPPYearAmount,Sheet1!S71_A9Code,$AC:$AC)+SUMIFS(Sheet1!S71_PPPYearAmount,Sheet1!S71_WIPCode,$AC:$AC)","v":0},{"$f":"SUMIFS(Sheet1!S71_PPYearAmount,Sheet1!S71_A9Code,$AC:$AC)+SUMIFS(Sheet1!S71_PPYearAmount,Sheet1!S71_WIPCode,$AC:$AC)","v":0},{"$f":"SUMIFS(Sheet1!S71_PYearAmount,Sheet1!S71_A9Code,$AC:$AC)+SUMIFS(Sheet1!S71_PYearAmount,Sheet1!S71_WIPCode,$AC:$AC)","v":0},{"$f":"SUMIFS(Sheet1!S71_OriginalBudAmnt,Sheet1!S71_A9Code,$AC:$AC)+SUMIFS(Sheet1!S71_OriginalBudAmnt,Sheet1!S71_WIPCode,$AC:$AC)","v":0},{"$f":"SUMIFS(Sheet1!S71_AdjustmentBudAmnt,Sheet1!S71_A9Code,$AC:$AC)+SUMIFS(Sheet1!S71_AdjustmentBudAmnt,Sheet1!S71_WIPCode,$AC:$AC)","v":0},{"$f":"SUMIFS(Sheet1!S71_AdjustmentBudAmnt,Sheet1!S71_A9Code,$AC:$AC)+SUMIFS(Sheet1!S71_AdjustmentBudAmnt,Sheet1!S71_WIPCode,$AC:$AC)","v":0},{"$f":"SUMIFS(Sheet1!S71_ASBudgetAmount,Sheet1!S71_A9Code,$AC:$AC)+SUMIFS(Sheet1!S71_ASBudgetAmount,Sheet1!S71_WIPCode,$AC:$AC)","v":0},{"$f":"SUMIFS(Sheet1!S71_OY1BudgetAmount,Sheet1!S71_A9Code,$AC:$AC)+SUMIFS(Sheet1!S71_OY1BudgetAmount,Sheet1!S71_WIPCode,$AC:$AC)","v":0},{"$f":"SUMIFS(Sheet1!S71_OY2BudgetAmount,Sheet1!S71_A9Code,$AC:$AC)+SUMIFS(Sheet1!S71_OY2BudgetAmount,Sheet1!S71_WIPCode,$AC:$AC)","v":0},null,null,null,null,null,null,null,null,null,null,null,null,null,null,null,null,null,"0660"]
["Information and Communication Infrastructure",null,{"$f":"SUMIFS(Sheet1!S71_PPPYearAmount,Sheet1!S71_A9Code,$AC:$AC)+SUMIFS(Sheet1!S71_PPPYearAmount,Sheet1!S71_WIPCode,$AC:$AC)","v":0},{"$f":"SUMIFS(Sheet1!S71_PPYearAmount,Sheet1!S71_A9Code,$AC:$AC)+SUMIFS(Sheet1!S71_PPYearAmount,Sheet1!S71_WIPCode,$AC:$AC)","v":0},{"$f":"SUMIFS(Sheet1!S71_PYearAmount,Sheet1!S71_A9Code,$AC:$AC)+SUMIFS(Sheet1!S71_PYearAmount,Sheet1!S71_WIPCode,$AC:$AC)","v":0},{"$f":"SUMIFS(Sheet1!S71_OriginalBudAmnt,Sheet1!S71_A9Code,$AC:$AC)+SUMIFS(Sheet1!S71_OriginalBudAmnt,Sheet1!S71_WIPCode,$AC:$AC)","v":0},{"$f":"SUMIFS(Sheet1!S71_AdjustmentBudAmnt,Sheet1!S71_A9Code,$AC:$AC)+SUMIFS(Sheet1!S71_AdjustmentBudAmnt,Sheet1!S71_WIPCode,$AC:$AC)","v":0},{"$f":"SUMIFS(Sheet1!S71_AdjustmentBudAmnt,Sheet1!S71_A9Code,$AC:$AC)+SUMIFS(Sheet1!S71_AdjustmentBudAmnt,Sheet1!S71_WIPCode,$AC:$AC)","v":0},{"$f":"SUMIFS(Sheet1!S71_ASBudgetAmount,Sheet1!S71_A9Code,$AC:$AC)+SUMIFS(Sheet1!S71_ASBudgetAmount,Sheet1!S71_WIPCode,$AC:$AC)","v":0},{"$f":"SUMIFS(Sheet1!S71_OY1BudgetAmount,Sheet1!S71_A9Code,$AC:$AC)+SUMIFS(Sheet1!S71_OY1BudgetAmount,Sheet1!S71_WIPCode,$AC:$AC)","v":0},{"$f":"SUMIFS(Sheet1!S71_OY2BudgetAmount,Sheet1!S71_A9Code,$AC:$AC)+SUMIFS(Sheet1!S71_OY2BudgetAmount,Sheet1!S71_WIPCode,$AC:$AC)","v":0},null,null,null,null,null,null,null,null,null,null,null,null,null,null,null,null,null,"0720"]
["Infrastructure",null,{"$f":"SUM(C147:C155)","v":-346945247},{"$f":"SUM(D147:D155)","v":-434431148},-499826031,1377436710,523455664,523455664,519055664,518855664,518655664]
[]
[]
["Community Assets",null,{"$f":"SUMIFS(Sheet1!S71_PPPYearAmount,Sheet1!S71_A9Code,$AC:$AC)+SUMIFS(Sheet1!S71_PPPYearAmount,Sheet1!S71_WIPCode,$AC:$AC)","v":-16692167},{"$f":"SUMIFS(Sheet1!S71_PPYearAmount,Sheet1!S71_A9Code,$AC:$AC)+SUMIFS(Sheet1!S71_PPYearAmount,Sheet1!S71_WIPCode,$AC:$AC)","v":-20836718},{"$f":"SUMIFS(Sheet1!S71_PYearAmount,Sheet1!S71_A9Code,$AC:$AC)+SUMIFS(Sheet1!S71_PYearAmount,Sheet1!S71_WIPCode,$AC:$AC)","v":-23966402},{"$f":"SUMIFS(Sheet1!S71_OriginalBudAmnt,Sheet1!S71_A9Code,$AC:$AC)+SUMIFS(Sheet1!S71_OriginalBudAmnt,Sheet1!S71_WIPCode,$AC:$AC)","v":395353109},{"$f":"SUMIFS(Sheet1!S71_AdjustmentBudAmnt,Sheet1!S71_A9Code,$AC:$AC)+SUMIFS(Sheet1!S71_AdjustmentBudAmnt,Sheet1!S71_WIPCode,$AC:$AC)","v":208950565},{"$f":"SUMIFS(Sheet1!S71_AdjustmentBudAmnt,Sheet1!S71_A9Code,$AC:$AC)+SUMIFS(Sheet1!S71_AdjustmentBudAmnt,Sheet1!S71_WIPCode,$AC:$AC)","v":208950565},{"$f":"SUMIFS(Sheet1!S71_ASBudgetAmount,Sheet1!S71_A9Code,$AC:$AC)+SUMIFS(Sheet1!S71_ASBudgetAmount,Sheet1!S71_WIPCode,$AC:$AC)","v":201750565},{"$f":"SUMIFS(Sheet1!S71_OY1BudgetAmount,Sheet1!S71_A9Code,$AC:$AC)+SUMIFS(Sheet1!S71_OY1BudgetAmount,Sheet1!S71_WIPCode,$AC:$AC)","v":201650565},{"$f":"SUMIFS(Sheet1!S71_OY2BudgetAmount,Sheet1!S71_A9Code,$AC:$AC)+SUMIFS(Sheet1!S71_OY2BudgetAmount,Sheet1!S71_WIPCode,$AC:$AC)","v":201550565},null,null,null,null,null,null,null,null,null,null,null,null,null,null,null,null,null,"0770"]
["Heritage Assets",null,{"$f":"SUMIFS(Sheet1!S71_PPPYearAmount,Sheet1!S71_A9Code,$AC:$AC)+SUMIFS(Sheet1!S71_PPPYearAmount,Sheet1!S71_WIPCode,$AC:$AC)","v":206303},{"$f":"SUMIFS(Sheet1!S71_PPYearAmount,Sheet1!S71_A9Code,$AC:$AC)+SUMIFS(Sheet1!S71_PPYearAmount,Sheet1!S71_WIPCode,$AC:$AC)","v":0},{"$f":"SUMIFS(Sheet1!S71_PYearAmount,Sheet1!S71_A9Code,$AC:$AC)+SUMIFS(Sheet1!S71_PYearAmount,Sheet1!S71_WIPCode,$AC:$AC)","v":0},{"$f":"SUMIFS(Sheet1!S71_OriginalBudAmnt,Sheet1!S71_A9Code,$AC:$AC)+SUMIFS(Sheet1!S71_OriginalBudAmnt,Sheet1!S71_WIPCode,$AC:$AC)","v":206303},{"$f":"SUMIFS(Sheet1!S71_AdjustmentBudAmnt,Sheet1!S71_A9Code,$AC:$AC)+SUMIFS(Sheet1!S71_AdjustmentBudAmnt,Sheet1!S71_WIPCode,$AC:$AC)","v":206303},{"$f":"SUMIFS(Sheet1!S71_AdjustmentBudAmnt,Sheet1!S71_A9Code,$AC:$AC)+SUMIFS(Sheet1!S71_AdjustmentBudAmnt,Sheet1!S71_WIPCode,$AC:$AC)","v":206303},{"$f":"SUMIFS(Sheet1!S71_ASBudgetAmount,Sheet1!S71_A9Code,$AC:$AC)+SUMIFS(Sheet1!S71_ASBudgetAmount,Sheet1!S71_WIPCode,$AC:$AC)","v":0},{"$f":"SUMIFS(Sheet1!S71_OY1BudgetAmount,Sheet1!S71_A9Code,$AC:$AC)+SUMIFS(Sheet1!S71_OY1BudgetAmount,Sheet1!S71_WIPCode,$AC:$AC)","v":0},{"$f":"SUMIFS(Sheet1!S71_OY2BudgetAmount,Sheet1!S71_A9Code,$AC:$AC)+SUMIFS(Sheet1!S71_OY2BudgetAmount,Sheet1!S71_WIPCode,$AC:$AC)","v":0},null,null,null,null,null,null,null,null,null,null,null,null,null,null,null,null,null,"1050"]
[null,null,{"$f":"SUMIFS(Sheet1!S71_PPPYearAmount,Sheet1!S71_A9Code,$AC:$AC)+SUMIFS(Sheet1!S71_PPPYearAmount,Sheet1!S71_WIPCode,$AC:$AC)","v":0},{"$f":"SUMIFS(Sheet1!S71_PPYearAmount,Sheet1!S71_A9Code,$AC:$AC)+SUMIFS(Sheet1!S71_PPYearAmount,Sheet1!S71_WIPCode,$AC:$AC)","v":0},{"$f":"SUMIFS(Sheet1!S71_PYearAmount,Sheet1!S71_A9Code,$AC:$AC)+SUMIFS(Sheet1!S71_PYearAmount,Sheet1!S71_WIPCode,$AC:$AC)","v":0},{"$f":"SUMIFS(Sheet1!S71_OriginalBudAmnt,Sheet1!S71_A9Code,$AC:$AC)+SUMIFS(Sheet1!S71_OriginalBudAmnt,Sheet1!S71_WIPCode,$AC:$AC)","v":0},{"$f":"SUMIFS(Sheet1!S71_AdjustmentBudAmnt,Sheet1!S71_A9Code,$AC:$AC)+SUMIFS(Sheet1!S71_AdjustmentBudAmnt,Sheet1!S71_WIPCode,$AC:$AC)","v":0},{"$f":"SUMIFS(Sheet1!S71_AdjustmentBudAmnt,Sheet1!S71_A9Code,$AC:$AC)+SUMIFS(Sheet1!S71_AdjustmentBudAmnt,Sheet1!S71_WIPCode,$AC:$AC)","v":0},{"$f":"SUMIFS(Sheet1!S71_ASBudgetAmount,Sheet1!S71_A9Code,$AC:$AC)+SUMIFS(Sheet1!S71_ASBudgetAmount,Sheet1!S71_WIPCode,$AC:$AC)","v":0},{"$f":"SUMIFS(Sheet1!S71_OY1BudgetAmount,Sheet1!S71_A9Code,$AC:$AC)+SUMIFS(Sheet1!S71_OY1BudgetAmount,Sheet1!S71_WIPCode,$AC:$AC)","v":0},{"$f":"SUMIFS(Sheet1!S71_OY2BudgetAmount,Sheet1!S71_A9Code,$AC:$AC)+SUMIFS(Sheet1!S71_OY2BudgetAmount,Sheet1!S71_WIPCode,$AC:$AC)","v":0}]
[null,null,{"$f":"SUMIFS(Sheet1!S71_PPPYearAmount,Sheet1!S71_A9Code,$AC:$AC)+SUMIFS(Sheet1!S71_PPPYearAmount,Sheet1!S71_WIPCode,$AC:$AC)","v":0},{"$f":"SUMIFS(Sheet1!S71_PPYearAmount,Sheet1!S71_A9Code,$AC:$AC)+SUMIFS(Sheet1!S71_PPYearAmount,Sheet1!S71_WIPCode,$AC:$AC)","v":0},{"$f":"SUMIFS(Sheet1!S71_PYearAmount,Sheet1!S71_A9Code,$AC:$AC)+SUMIFS(Sheet1!S71_PYearAmount,Sheet1!S71_WIPCode,$AC:$AC)","v":0},{"$f":"SUMIFS(Sheet1!S71_OriginalBudAmnt,Sheet1!S71_A9Code,$AC:$AC)+SUMIFS(Sheet1!S71_OriginalBudAmnt,Sheet1!S71_WIPCode,$AC:$AC)","v":0},{"$f":"SUMIFS(Sheet1!S71_AdjustmentBudAmnt,Sheet1!S71_A9Code,$AC:$AC)+SUMIFS(Sheet1!S71_AdjustmentBudAmnt,Sheet1!S71_WIPCode,$AC:$AC)","v":0},{"$f":"SUMIFS(Sheet1!S71_AdjustmentBudAmnt,Sheet1!S71_A9Code,$AC:$AC)+SUMIFS(Sheet1!S71_AdjustmentBudAmnt,Sheet1!S71_WIPCode,$AC:$AC)","v":0},{"$f":"SUMIFS(Sheet1!S71_ASBudgetAmount,Sheet1!S71_A9Code,$AC:$AC)+SUMIFS(Sheet1!S71_ASBudgetAmount,Sheet1!S71_WIPCode,$AC:$AC)","v":0},{"$f":"SUMIFS(Sheet1!S71_OY1BudgetAmount,Sheet1!S71_A9Code,$AC:$AC)+SUMIFS(Sheet1!S71_OY1BudgetAmount,Sheet1!S71_WIPCode,$AC:$AC)","v":0},{"$f":"SUMIFS(Sheet1!S71_OY2BudgetAmount,Sheet1!S71_A9Code,$AC:$AC)+SUMIFS(Sheet1!S71_OY2BudgetAmount,Sheet1!S71_WIPCode,$AC:$AC)","v":0}]
["Investment properties",null,{"$f":"SUMIFS(Sheet1!S71_PPPYearAmount,Sheet1!S71_A9Code,$AC:$AC)+SUMIFS(Sheet1!S71_PPPYearAmount,Sheet1!S71_WIPCode,$AC:$AC)","v":26026364},{"$f":"SUMIFS(Sheet1!S71_PPYearAmount,Sheet1!S71_A9Code,$AC:$AC)+SUMIFS(Sheet1!S71_PPYearAmount,Sheet1!S71_WIPCode,$AC:$AC)","v":25690570},{"$f":"SUMIFS(Sheet1!S71_PYearAmount,Sheet1!S71_A9Code,$AC:$AC)+SUMIFS(Sheet1!S71_PYearAmount,Sheet1!S71_WIPCode,$AC:$AC)","v":25599820},{"$f":"SUMIFS(Sheet1!S71_OriginalBudAmnt,Sheet1!S71_A9Code,$AC:$AC)+SUMIFS(Sheet1!S71_OriginalBudAmnt,Sheet1!S71_WIPCode,$AC:$AC)","v":25935570},{"$f":"SUMIFS(Sheet1!S71_AdjustmentBudAmnt,Sheet1!S71_A9Code,$AC:$AC)+SUMIFS(Sheet1!S71_AdjustmentBudAmnt,Sheet1!S71_WIPCode,$AC:$AC)","v":25599820},{"$f":"SUMIFS(Sheet1!S71_AdjustmentBudAmnt,Sheet1!S71_A9Code,$AC:$AC)+SUMIFS(Sheet1!S71_AdjustmentBudAmnt,Sheet1!S71_WIPCode,$AC:$AC)","v":25599820},{"$f":"SUMIFS(Sheet1!S71_ASBudgetAmount,Sheet1!S71_A9Code,$AC:$AC)+SUMIFS(Sheet1!S71_ASBudgetAmount,Sheet1!S71_WIPCode,$AC:$AC)","v":25499820},{"$f":"SUMIFS(Sheet1!S71_OY1BudgetAmount,Sheet1!S71_A9Code,$AC:$AC)+SUMIFS(Sheet1!S71_OY1BudgetAmount,Sheet1!S71_WIPCode,$AC:$AC)","v":25599820},{"$f":"SUMIFS(Sheet1!S71_OY2BudgetAmount,Sheet1!S71_A9Code,$AC:$AC)+SUMIFS(Sheet1!S71_OY2BudgetAmount,Sheet1!S71_WIPCode,$AC:$AC)","v":25599820},null,null,null,null,null,null,null,null,null,null,null,null,null,null,null,null,null,"1110"]
[null,null,{"$f":"SUMIFS(Sheet1!S71_PPPYearAmount,Sheet1!S71_A9Code,$AC:$AC)+SUMIFS(Sheet1!S71_PPPYearAmount,Sheet1!S71_WIPCode,$AC:$AC)","v":0},{"$f":"SUMIFS(Sheet1!S71_PPYearAmount,Sheet1!S71_A9Code,$AC:$AC)+SUMIFS(Sheet1!S71_PPYearAmount,Sheet1!S71_WIPCode,$AC:$AC)","v":0},{"$f":"SUMIFS(Sheet1!S71_PYearAmount,Sheet1!S71_A9Code,$AC:$AC)+SUMIFS(Sheet1!S71_PYearAmount,Sheet1!S71_WIPCode,$AC:$AC)","v":0},{"$f":"SUMIFS(Sheet1!S71_OriginalBudAmnt,Sheet1!S71_A9Code,$AC:$AC)+SUMIFS(Sheet1!S71_OriginalBudAmnt,Sheet1!S71_WIPCode,$AC:$AC)","v":0},{"$f":"SUMIFS(Sheet1!S71_AdjustmentBudAmnt,Sheet1!S71_A9Code,$AC:$AC)+SUMIFS(Sheet1!S71_AdjustmentBudAmnt,Sheet1!S71_WIPCode,$AC:$AC)","v":0},{"$f":"SUMIFS(Sheet1!S71_AdjustmentBudAmnt,Sheet1!S71_A9Code,$AC:$AC)+SUMIFS(Sheet1!S71_AdjustmentBudAmnt,Sheet1!S71_WIPCode,$AC:$AC)","v":0},{"$f":"SUMIFS(Sheet1!S71_ASBudgetAmount,Sheet1!S71_A9Code,$AC:$AC)+SUMIFS(Sheet1!S71_ASBudgetAmount,Sheet1!S71_WIPCode,$AC:$AC)","v":0},{"$f":"SUMIFS(Sheet1!S71_OY1BudgetAmount,Sheet1!S71_A9Code,$AC:$AC)+SUMIFS(Sheet1!S71_OY1BudgetAmount,Sheet1!S71_WIPCode,$AC:$AC)","v":0},{"$f":"SUMIFS(Sheet1!S71_OY2BudgetAmount,Sheet1!S71_A9Code,$AC:$AC)+SUMIFS(Sheet1!S71_OY2BudgetAmount,Sheet1!S71_WIPCode,$AC:$AC)","v":0}]
[null,null,{"$f":"SUMIFS(Sheet1!S71_PPPYearAmount,Sheet1!S71_A9Code,$AC:$AC)+SUMIFS(Sheet1!S71_PPPYearAmount,Sheet1!S71_WIPCode,$AC:$AC)","v":0},{"$f":"SUMIFS(Sheet1!S71_PPYearAmount,Sheet1!S71_A9Code,$AC:$AC)+SUMIFS(Sheet1!S71_PPYearAmount,Sheet1!S71_WIPCode,$AC:$AC)","v":0},{"$f":"SUMIFS(Sheet1!S71_PYearAmount,Sheet1!S71_A9Code,$AC:$AC)+SUMIFS(Sheet1!S71_PYearAmount,Sheet1!S71_WIPCode,$AC:$AC)","v":0},{"$f":"SUMIFS(Sheet1!S71_OriginalBudAmnt,Sheet1!S71_A9Code,$AC:$AC)+SUMIFS(Sheet1!S71_OriginalBudAmnt,Sheet1!S71_WIPCode,$AC:$AC)","v":0},{"$f":"SUMIFS(Sheet1!S71_AdjustmentBudAmnt,Sheet1!S71_A9Code,$AC:$AC)+SUMIFS(Sheet1!S71_AdjustmentBudAmnt,Sheet1!S71_WIPCode,$AC:$AC)","v":0},{"$f":"SUMIFS(Sheet1!S71_AdjustmentBudAmnt,Sheet1!S71_A9Code,$AC:$AC)+SUMIFS(Sheet1!S71_AdjustmentBudAmnt,Sheet1!S71_WIPCode,$AC:$AC)","v":0},{"$f":"SUMIFS(Sheet1!S71_ASBudgetAmount,Sheet1!S71_A9Code,$AC:$AC)+SUMIFS(Sheet1!S71_ASBudgetAmount,Sheet1!S71_WIPCode,$AC:$AC)","v":0},{"$f":"SUMIFS(Sheet1!S71_OY1BudgetAmount,Sheet1!S71_A9Code,$AC:$AC)+SUMIFS(Sheet1!S71_OY1BudgetAmount,Sheet1!S71_WIPCode,$AC:$AC)","v":0},{"$f":"SUMIFS(Sheet1!S71_OY2BudgetAmount,Sheet1!S71_A9Code,$AC:$AC)+SUMIFS(Sheet1!S71_OY2BudgetAmount,Sheet1!S71_WIPCode,$AC:$AC)","v":0}]
["Other Assets",null,{"$f":"SUMIFS(Sheet1!S71_PPPYearAmount,Sheet1!S71_A9Code,$AC:$AC)+SUMIFS(Sheet1!S71_PPPYearAmount,Sheet1!S71_WIPCode,$AC:$AC)","v":-21831765},{"$f":"SUMIFS(Sheet1!S71_PPYearAmount,Sheet1!S71_A9Code,$AC:$AC)+SUMIFS(Sheet1!S71_PPYearAmount,Sheet1!S71_WIPCode,$AC:$AC)","v":-25431605},{"$f":"SUMIFS(Sheet1!S71_PYearAmount,Sheet1!S71_A9Code,$AC:$AC)+SUMIFS(Sheet1!S71_PYearAmount,Sheet1!S71_WIPCode,$AC:$AC)","v":-29811499},{"$f":"SUMIFS(Sheet1!S71_OriginalBudAmnt,Sheet1!S71_A9Code,$AC:$AC)+SUMIFS(Sheet1!S71_OriginalBudAmnt,Sheet1!S71_WIPCode,$AC:$AC)","v":159941000},{"$f":"SUMIFS(Sheet1!S71_AdjustmentBudAmnt,Sheet1!S71_A9Code,$AC:$AC)+SUMIFS(Sheet1!S71_AdjustmentBudAmnt,Sheet1!S71_WIPCode,$AC:$AC)","v":124938342},{"$f":"SUMIFS(Sheet1!S71_AdjustmentBudAmnt,Sheet1!S71_A9Code,$AC:$AC)+SUMIFS(Sheet1!S71_AdjustmentBudAmnt,Sheet1!S71_WIPCode,$AC:$AC)","v":124938342},{"$f":"SUMIFS(Sheet1!S71_ASBudgetAmount,Sheet1!S71_A9Code,$AC:$AC)+SUMIFS(Sheet1!S71_ASBudgetAmount,Sheet1!S71_WIPCode,$AC:$AC)","v":121638342},{"$f":"SUMIFS(Sheet1!S71_OY1BudgetAmount,Sheet1!S71_A9Code,$AC:$AC)+SUMIFS(Sheet1!S71_OY1BudgetAmount,Sheet1!S71_WIPCode,$AC:$AC)","v":121488342},{"$f":"SUMIFS(Sheet1!S71_OY2BudgetAmount,Sheet1!S71_A9Code,$AC:$AC)+SUMIFS(Sheet1!S71_OY2BudgetAmount,Sheet1!S71_WIPCode,$AC:$AC)","v":121338342},null,null,null,null,null,null,null,null,null,null,null,null,null,null,null,null,null,"1180"]
["Biological or Cultivated Assets",null,{"$f":"SUMIFS(Sheet1!S71_PPPYearAmount,Sheet1!S71_A9Code,$AC:$AC)+SUMIFS(Sheet1!S71_PPPYearAmount,Sheet1!S71_WIPCode,$AC:$AC)","v":0},{"$f":"SUMIFS(Sheet1!S71_PPYearAmount,Sheet1!S71_A9Code,$AC:$AC)+SUMIFS(Sheet1!S71_PPYearAmount,Sheet1!S71_WIPCode,$AC:$AC)","v":0},{"$f":"SUMIFS(Sheet1!S71_PYearAmount,Sheet1!S71_A9Code,$AC:$AC)+SUMIFS(Sheet1!S71_PYearAmount,Sheet1!S71_WIPCode,$AC:$AC)","v":0},{"$f":"SUMIFS(Sheet1!S71_OriginalBudAmnt,Sheet1!S71_A9Code,$AC:$AC)+SUMIFS(Sheet1!S71_OriginalBudAmnt,Sheet1!S71_WIPCode,$AC:$AC)","v":0},{"$f":"SUMIFS(Sheet1!S71_AdjustmentBudAmnt,Sheet1!S71_A9Code,$AC:$AC)+SUMIFS(Sheet1!S71_AdjustmentBudAmnt,Sheet1!S71_WIPCode,$AC:$AC)","v":0},{"$f":"SUMIFS(Sheet1!S71_AdjustmentBudAmnt,Sheet1!S71_A9Code,$AC:$AC)+SUMIFS(Sheet1!S71_AdjustmentBudAmnt,Sheet1!S71_WIPCode,$AC:$AC)","v":0},{"$f":"SUMIFS(Sheet1!S71_ASBudgetAmount,Sheet1!S71_A9Code,$AC:$AC)+SUMIFS(Sheet1!S71_ASBudgetAmount,Sheet1!S71_WIPCode,$AC:$AC)","v":0},{"$f":"SUMIFS(Sheet1!S71_OY1BudgetAmount,Sheet1!S71_A9Code,$AC:$AC)+SUMIFS(Sheet1!S71_OY1BudgetAmount,Sheet1!S71_WIPCode,$AC:$AC)","v":0},{"$f":"SUMIFS(Sheet1!S71_OY2BudgetAmount,Sheet1!S71_A9Code,$AC:$AC)+SUMIFS(Sheet1!S71_OY2BudgetAmount,Sheet1!S71_WIPCode,$AC:$AC)","v":0},null,null,null,null,null,null,null,null,null,null,null,null,null,null,null,null,null,"1360"]
[null,null,{"$f":"SUMIFS(Sheet1!S71_PPPYearAmount,Sheet1!S71_A9Code,$AC:$AC)+SUMIFS(Sheet1!S71_PPPYearAmount,Sheet1!S71_WIPCode,$AC:$AC)","v":0},{"$f":"SUMIFS(Sheet1!S71_PPYearAmount,Sheet1!S71_A9Code,$AC:$AC)+SUMIFS(Sheet1!S71_PPYearAmount,Sheet1!S71_WIPCode,$AC:$AC)","v":0},{"$f":"SUMIFS(Sheet1!S71_PYearAmount,Sheet1!S71_A9Code,$AC:$AC)+SUMIFS(Sheet1!S71_PYearAmount,Sheet1!S71_WIPCode,$AC:$AC)","v":0},{"$f":"SUMIFS(Sheet1!S71_OriginalBudAmnt,Sheet1!S71_A9Code,$AC:$AC)+SUMIFS(Sheet1!S71_OriginalBudAmnt,Sheet1!S71_WIPCode,$AC:$AC)","v":0},{"$f":"SUMIFS(Sheet1!S71_AdjustmentBudAmnt,Sheet1!S71_A9Code,$AC:$AC)+SUMIFS(Sheet1!S71_AdjustmentBudAmnt,Sheet1!S71_WIPCode,$AC:$AC)","v":0},{"$f":"SUMIFS(Sheet1!S71_AdjustmentBudAmnt,Sheet1!S71_A9Code,$AC:$AC)+SUMIFS(Sheet1!S71_AdjustmentBudAmnt,Sheet1!S71_WIPCode,$AC:$AC)","v":0},{"$f":"SUMIFS(Sheet1!S71_ASBudgetAmount,Sheet1!S71_A9Code,$AC:$AC)+SUMIFS(Sheet1!S71_ASBudgetAmount,Sheet1!S71_WIPCode,$AC:$AC)","v":0},{"$f":"SUMIFS(Sheet1!S71_OY1BudgetAmount,Sheet1!S71_A9Code,$AC:$AC)+SUMIFS(Sheet1!S71_OY1BudgetAmount,Sheet1!S71_WIPCode,$AC:$AC)","v":0},{"$f":"SUMIFS(Sheet1!S71_OY2BudgetAmount,Sheet1!S71_A9Code,$AC:$AC)+SUMIFS(Sheet1!S71_OY2BudgetAmount,Sheet1!S71_WIPCode,$AC:$AC)","v":0}]
[null,null,{"$f":"SUMIFS(Sheet1!S71_PPPYearAmount,Sheet1!S71_A9Code,$AC:$AC)+SUMIFS(Sheet1!S71_PPPYearAmount,Sheet1!S71_WIPCode,$AC:$AC)","v":0},{"$f":"SUMIFS(Sheet1!S71_PPYearAmount,Sheet1!S71_A9Code,$AC:$AC)+SUMIFS(Sheet1!S71_PPYearAmount,Sheet1!S71_WIPCode,$AC:$AC)","v":0},{"$f":"SUMIFS(Sheet1!S71_PYearAmount,Sheet1!S71_A9Code,$AC:$AC)+SUMIFS(Sheet1!S71_PYearAmount,Sheet1!S71_WIPCode,$AC:$AC)","v":0},{"$f":"SUMIFS(Sheet1!S71_OriginalBudAmnt,Sheet1!S71_A9Code,$AC:$AC)+SUMIFS(Sheet1!S71_OriginalBudAmnt,Sheet1!S71_WIPCode,$AC:$AC)","v":0},{"$f":"SUMIFS(Sheet1!S71_AdjustmentBudAmnt,Sheet1!S71_A9Code,$AC:$AC)+SUMIFS(Sheet1!S71_AdjustmentBudAmnt,Sheet1!S71_WIPCode,$AC:$AC)","v":0},{"$f":"SUMIFS(Sheet1!S71_AdjustmentBudAmnt,Sheet1!S71_A9Code,$AC:$AC)+SUMIFS(Sheet1!S71_AdjustmentBudAmnt,Sheet1!S71_WIPCode,$AC:$AC)","v":0},{"$f":"SUMIFS(Sheet1!S71_ASBudgetAmount,Sheet1!S71_A9Code,$AC:$AC)+SUMIFS(Sheet1!S71_ASBudgetAmount,Sheet1!S71_WIPCode,$AC:$AC)","v":0},{"$f":"SUMIFS(Sheet1!S71_OY1BudgetAmount,Sheet1!S71_A9Code,$AC:$AC)+SUMIFS(Sheet1!S71_OY1BudgetAmount,Sheet1!S71_WIPCode,$AC:$AC)","v":0},{"$f":"SUMIFS(Sheet1!S71_OY2BudgetAmount,Sheet1!S71_A9Code,$AC:$AC)+SUMIFS(Sheet1!S71_OY2BudgetAmount,Sheet1!S71_WIPCode,$AC:$AC)","v":0}]
["Intangible Assets",null,{"$f":"SUMIFS(Sheet1!S71_PPPYearAmount,Sheet1!S71_A9Code,$AC:$AC)+SUMIFS(Sheet1!S71_PPPYearAmount,Sheet1!S71_WIPCode,$AC:$AC)","v":-3662604},{"$f":"SUMIFS(Sheet1!S71_PPYearAmount,Sheet1!S71_A9Code,$AC:$AC)+SUMIFS(Sheet1!S71_PPYearAmount,Sheet1!S71_WIPCode,$AC:$AC)","v":-5570626},{"$f":"SUMIFS(Sheet1!S71_PYearAmount,Sheet1!S71_A9Code,$AC:$AC)+SUMIFS(Sheet1!S71_PYearAmount,Sheet1!S71_WIPCode,$AC:$AC)","v":-8773042},{"$f":"SUMIFS(Sheet1!S71_OriginalBudAmnt,Sheet1!S71_A9Code,$AC:$AC)+SUMIFS(Sheet1!S71_OriginalBudAmnt,Sheet1!S71_WIPCode,$AC:$AC)","v":2015267},{"$f":"SUMIFS(Sheet1!S71_AdjustmentBudAmnt,Sheet1!S71_A9Code,$AC:$AC)+SUMIFS(Sheet1!S71_AdjustmentBudAmnt,Sheet1!S71_WIPCode,$AC:$AC)","v":10074315},{"$f":"SUMIFS(Sheet1!S71_AdjustmentBudAmnt,Sheet1!S71_A9Code,$AC:$AC)+SUMIFS(Sheet1!S71_AdjustmentBudAmnt,Sheet1!S71_WIPCode,$AC:$AC)","v":10074315},{"$f":"SUMIFS(Sheet1!S71_ASBudgetAmount,Sheet1!S71_A9Code,$AC:$AC)+SUMIFS(Sheet1!S71_ASBudgetAmount,Sheet1!S71_WIPCode,$AC:$AC)","v":11734315},{"$f":"SUMIFS(Sheet1!S71_OY1BudgetAmount,Sheet1!S71_A9Code,$AC:$AC)+SUMIFS(Sheet1!S71_OY1BudgetAmount,Sheet1!S71_WIPCode,$AC:$AC)","v":11204315},{"$f":"SUMIFS(Sheet1!S71_OY2BudgetAmount,Sheet1!S71_A9Code,$AC:$AC)+SUMIFS(Sheet1!S71_OY2BudgetAmount,Sheet1!S71_WIPCode,$AC:$AC)","v":11224315},null,null,null,null,null,null,null,null,null,null,null,null,null,null,null,null,null,"1370"]
["Computer Equipment",null,{"$f":"SUMIFS(Sheet1!S71_PPPYearAmount,Sheet1!S71_A9Code,$AC:$AC)+SUMIFS(Sheet1!S71_PPPYearAmount,Sheet1!S71_WIPCode,$AC:$AC)","v":963323},{"$f":"SUMIFS(Sheet1!S71_PPYearAmount,Sheet1!S71_A9Code,$AC:$AC)+SUMIFS(Sheet1!S71_PPYearAmount,Sheet1!S71_WIPCode,$AC:$AC)","v":4842634},{"$f":"SUMIFS(Sheet1!S71_PYearAmount,Sheet1!S71_A9Code,$AC:$AC)+SUMIFS(Sheet1!S71_PYearAmount,Sheet1!S71_WIPCode,$AC:$AC)","v":5209820},{"$f":"SUMIFS(Sheet1!S71_OriginalBudAmnt,Sheet1!S71_A9Code,$AC:$AC)+SUMIFS(Sheet1!S71_OriginalBudAmnt,Sheet1!S71_WIPCode,$AC:$AC)","v":6710559},{"$f":"SUMIFS(Sheet1!S71_AdjustmentBudAmnt,Sheet1!S71_A9Code,$AC:$AC)+SUMIFS(Sheet1!S71_AdjustmentBudAmnt,Sheet1!S71_WIPCode,$AC:$AC)","v":-682143},{"$f":"SUMIFS(Sheet1!S71_AdjustmentBudAmnt,Sheet1!S71_A9Code,$AC:$AC)+SUMIFS(Sheet1!S71_AdjustmentBudAmnt,Sheet1!S71_WIPCode,$AC:$AC)","v":-682143},{"$f":"SUMIFS(Sheet1!S71_ASBudgetAmount,Sheet1!S71_A9Code,$AC:$AC)+SUMIFS(Sheet1!S71_ASBudgetAmount,Sheet1!S71_WIPCode,$AC:$AC)","v":382857},{"$f":"SUMIFS(Sheet1!S71_OY1BudgetAmount,Sheet1!S71_A9Code,$AC:$AC)+SUMIFS(Sheet1!S71_OY1BudgetAmount,Sheet1!S71_WIPCode,$AC:$AC)","v":-272143},{"$f":"SUMIFS(Sheet1!S71_OY2BudgetAmount,Sheet1!S71_A9Code,$AC:$AC)+SUMIFS(Sheet1!S71_OY2BudgetAmount,Sheet1!S71_WIPCode,$AC:$AC)","v":-262143},null,null,null,null,null,null,null,null,null,null,null,null,null,null,null,null,null,"1470"]
["Furniture and Office Equipment",null,{"$f":"SUMIFS(Sheet1!S71_PPPYearAmount,Sheet1!S71_A9Code,$AC:$AC)+SUMIFS(Sheet1!S71_PPPYearAmount,Sheet1!S71_WIPCode,$AC:$AC)","v":1481217},{"$f":"SUMIFS(Sheet1!S71_PPYearAmount,Sheet1!S71_A9Code,$AC:$AC)+SUMIFS(Sheet1!S71_PPYearAmount,Sheet1!S71_WIPCode,$AC:$AC)","v":-1983180},{"$f":"SUMIFS(Sheet1!S71_PYearAmount,Sheet1!S71_A9Code,$AC:$AC)+SUMIFS(Sheet1!S71_PYearAmount,Sheet1!S71_WIPCode,$AC:$AC)","v":-3076676},{"$f":"SUMIFS(Sheet1!S71_OriginalBudAmnt,Sheet1!S71_A9Code,$AC:$AC)+SUMIFS(Sheet1!S71_OriginalBudAmnt,Sheet1!S71_WIPCode,$AC:$AC)","v":7568740},{"$f":"SUMIFS(Sheet1!S71_AdjustmentBudAmnt,Sheet1!S71_A9Code,$AC:$AC)+SUMIFS(Sheet1!S71_AdjustmentBudAmnt,Sheet1!S71_WIPCode,$AC:$AC)","v":8364404},{"$f":"SUMIFS(Sheet1!S71_AdjustmentBudAmnt,Sheet1!S71_A9Code,$AC:$AC)+SUMIFS(Sheet1!S71_AdjustmentBudAmnt,Sheet1!S71_WIPCode,$AC:$AC)","v":8364404},{"$f":"SUMIFS(Sheet1!S71_ASBudgetAmount,Sheet1!S71_A9Code,$AC:$AC)+SUMIFS(Sheet1!S71_ASBudgetAmount,Sheet1!S71_WIPCode,$AC:$AC)","v":6064404},{"$f":"SUMIFS(Sheet1!S71_OY1BudgetAmount,Sheet1!S71_A9Code,$AC:$AC)+SUMIFS(Sheet1!S71_OY1BudgetAmount,Sheet1!S71_WIPCode,$AC:$AC)","v":6914404},{"$f":"SUMIFS(Sheet1!S71_OY2BudgetAmount,Sheet1!S71_A9Code,$AC:$AC)+SUMIFS(Sheet1!S71_OY2BudgetAmount,Sheet1!S71_WIPCode,$AC:$AC)","v":6664404},null,null,null,null,null,null,null,null,null,null,null,null,null,null,null,null,null,"1490"]
["Machinery and Equipment",null,{"$f":"SUMIFS(Sheet1!S71_PPPYearAmount,Sheet1!S71_A9Code,$AC:$AC)+SUMIFS(Sheet1!S71_PPPYearAmount,Sheet1!S71_WIPCode,$AC:$AC)","v":-4693683},{"$f":"SUMIFS(Sheet1!S71_PPYearAmount,Sheet1!S71_A9Code,$AC:$AC)+SUMIFS(Sheet1!S71_PPYearAmount,Sheet1!S71_WIPCode,$AC:$AC)","v":-10636341},{"$f":"SUMIFS(Sheet1!S71_PYearAmount,Sheet1!S71_A9Code,$AC:$AC)+SUMIFS(Sheet1!S71_PYearAmount,Sheet1!S71_WIPCode,$AC:$AC)","v":-12785597},{"$f":"SUMIFS(Sheet1!S71_OriginalBudAmnt,Sheet1!S71_A9Code,$AC:$AC)+SUMIFS(Sheet1!S71_OriginalBudAmnt,Sheet1!S71_WIPCode,$AC:$AC)","v":91675102},{"$f":"SUMIFS(Sheet1!S71_AdjustmentBudAmnt,Sheet1!S71_A9Code,$AC:$AC)+SUMIFS(Sheet1!S71_AdjustmentBudAmnt,Sheet1!S71_WIPCode,$AC:$AC)","v":30198701},{"$f":"SUMIFS(Sheet1!S71_AdjustmentBudAmnt,Sheet1!S71_A9Code,$AC:$AC)+SUMIFS(Sheet1!S71_AdjustmentBudAmnt,Sheet1!S71_WIPCode,$AC:$AC)","v":30198701},{"$f":"SUMIFS(Sheet1!S71_ASBudgetAmount,Sheet1!S71_A9Code,$AC:$AC)+SUMIFS(Sheet1!S71_ASBudgetAmount,Sheet1!S71_WIPCode,$AC:$AC)","v":45398701},{"$f":"SUMIFS(Sheet1!S71_OY1BudgetAmount,Sheet1!S71_A9Code,$AC:$AC)+SUMIFS(Sheet1!S71_OY1BudgetAmount,Sheet1!S71_WIPCode,$AC:$AC)","v":42968701},{"$f":"SUMIFS(Sheet1!S71_OY2BudgetAmount,Sheet1!S71_A9Code,$AC:$AC)+SUMIFS(Sheet1!S71_OY2BudgetAmount,Sheet1!S71_WIPCode,$AC:$AC)","v":43088701},null,null,null,null,null,null,null,null,null,null,null,null,null,null,null,null,null,"1510"]
["Transport Assets",null,{"$f":"SUMIFS(Sheet1!S71_PPPYearAmount,Sheet1!S71_A9Code,$AC:$AC)+SUMIFS(Sheet1!S71_PPPYearAmount,Sheet1!S71_WIPCode,$AC:$AC)","v":-7551212},{"$f":"SUMIFS(Sheet1!S71_PPYearAmount,Sheet1!S71_A9Code,$AC:$AC)+SUMIFS(Sheet1!S71_PPYearAmount,Sheet1!S71_WIPCode,$AC:$AC)","v":-7978659},{"$f":"SUMIFS(Sheet1!S71_PYearAmount,Sheet1!S71_A9Code,$AC:$AC)+SUMIFS(Sheet1!S71_PYearAmount,Sheet1!S71_WIPCode,$AC:$AC)","v":-9192212},{"$f":"SUMIFS(Sheet1!S71_OriginalBudAmnt,Sheet1!S71_A9Code,$AC:$AC)+SUMIFS(Sheet1!S71_OriginalBudAmnt,Sheet1!S71_WIPCode,$AC:$AC)","v":10605041},{"$f":"SUMIFS(Sheet1!S71_AdjustmentBudAmnt,Sheet1!S71_A9Code,$AC:$AC)+SUMIFS(Sheet1!S71_AdjustmentBudAmnt,Sheet1!S71_WIPCode,$AC:$AC)","v":9737587},{"$f":"SUMIFS(Sheet1!S71_AdjustmentBudAmnt,Sheet1!S71_A9Code,$AC:$AC)+SUMIFS(Sheet1!S71_AdjustmentBudAmnt,Sheet1!S71_WIPCode,$AC:$AC)","v":9737587},{"$f":"SUMIFS(Sheet1!S71_ASBudgetAmount,Sheet1!S71_A9Code,$AC:$AC)+SUMIFS(Sheet1!S71_ASBudgetAmount,Sheet1!S71_WIPCode,$AC:$AC)","v":-60162413},{"$f":"SUMIFS(Sheet1!S71_OY1BudgetAmount,Sheet1!S71_A9Code,$AC:$AC)+SUMIFS(Sheet1!S71_OY1BudgetAmount,Sheet1!S71_WIPCode,$AC:$AC)","v":-60012413},{"$f":"SUMIFS(Sheet1!S71_OY2BudgetAmount,Sheet1!S71_A9Code,$AC:$AC)+SUMIFS(Sheet1!S71_OY2BudgetAmount,Sheet1!S71_WIPCode,$AC:$AC)","v":-59862413},null,null,null,null,null,null,null,null,null,null,null,null,null,null,null,null,null,"1530"]
["Land",null,{"$f":"SUMIFS(Sheet1!S71_PPPYearAmount,Sheet1!S71_A9Code,$AC:$AC)+SUMIFS(Sheet1!S71_PPPYearAmount,Sheet1!S71_WIPCode,$AC:$AC)","v":0},{"$f":"SUMIFS(Sheet1!S71_PPYearAmount,Sheet1!S71_A9Code,$AC:$AC)+SUMIFS(Sheet1!S71_PPYearAmount,Sheet1!S71_WIPCode,$AC:$AC)","v":0},{"$f":"SUMIFS(Sheet1!S71_PYearAmount,Sheet1!S71_A9Code,$AC:$AC)+SUMIFS(Sheet1!S71_PYearAmount,Sheet1!S71_WIPCode,$AC:$AC)","v":0},{"$f":"SUMIFS(Sheet1!S71_OriginalBudAmnt,Sheet1!S71_A9Code,$AC:$AC)+SUMIFS(Sheet1!S71_OriginalBudAmnt,Sheet1!S71_WIPCode,$AC:$AC)","v":0},{"$f":"SUMIFS(Sheet1!S71_AdjustmentBudAmnt,Sheet1!S71_A9Code,$AC:$AC)+SUMIFS(Sheet1!S71_AdjustmentBudAmnt,Sheet1!S71_WIPCode,$AC:$AC)","v":0},{"$f":"SUMIFS(Sheet1!S71_AdjustmentBudAmnt,Sheet1!S71_A9Code,$AC:$AC)+SUMIFS(Sheet1!S71_AdjustmentBudAmnt,Sheet1!S71_WIPCode,$AC:$AC)","v":0},{"$f":"SUMIFS(Sheet1!S71_ASBudgetAmount,Sheet1!S71_A9Code,$AC:$AC)+SUMIFS(Sheet1!S71_ASBudgetAmount,Sheet1!S71_WIPCode,$AC:$AC)","v":0},{"$f":"SUMIFS(Sheet1!S71_OY1BudgetAmount,Sheet1!S71_A9Code,$AC:$AC)+SUMIFS(Sheet1!S71_OY1BudgetAmount,Sheet1!S71_WIPCode,$AC:$AC)","v":0},{"$f":"SUMIFS(Sheet1!S71_OY2BudgetAmount,Sheet1!S71_A9Code,$AC:$AC)+SUMIFS(Sheet1!S71_OY2BudgetAmount,Sheet1!S71_WIPCode,$AC:$AC)","v":0},null,null,null,null,null,null,null,null,null,null,null,null,null,null,null,null,null,"1550"]
["Zoo's, Marine and Non-biological Animals",null,{"$f":"SUMIFS(Sheet1!S71_PPPYearAmount,Sheet1!S71_A9Code,$AC:$AC)+SUMIFS(Sheet1!S71_PPPYearAmount,Sheet1!S71_WIPCode,$AC:$AC)","v":0},{"$f":"SUMIFS(Sheet1!S71_PPYearAmount,Sheet1!S71_A9Code,$AC:$AC)+SUMIFS(Sheet1!S71_PPYearAmount,Sheet1!S71_WIPCode,$AC:$AC)","v":0},{"$f":"SUMIFS(Sheet1!S71_PYearAmount,Sheet1!S71_A9Code,$AC:$AC)+SUMIFS(Sheet1!S71_PYearAmount,Sheet1!S71_WIPCode,$AC:$AC)","v":0},{"$f":"SUMIFS(Sheet1!S71_OriginalBudAmnt,Sheet1!S71_A9Code,$AC:$AC)+SUMIFS(Sheet1!S71_OriginalBudAmnt,Sheet1!S71_WIPCode,$AC:$AC)","v":0},{"$f":"SUMIFS(Sheet1!S71_AdjustmentBudAmnt,Sheet1!S71_A9Code,$AC:$AC)+SUMIFS(Sheet1!S71_AdjustmentBudAmnt,Sheet1!S71_WIPCode,$AC:$AC)","v":0},{"$f":"SUMIFS(Sheet1!S71_AdjustmentBudAmnt,Sheet1!S71_A9Code,$AC:$AC)+SUMIFS(Sheet1!S71_AdjustmentBudAmnt,Sheet1!S71_WIPCode,$AC:$AC)","v":0},{"$f":"SUMIFS(Sheet1!S71_ASBudgetAmount,Sheet1!S71_A9Code,$AC:$AC)+SUMIFS(Sheet1!S71_ASBudgetAmount,Sheet1!S71_WIPCode,$AC:$AC)","v":0},{"$f":"SUMIFS(Sheet1!S71_OY1BudgetAmount,Sheet1!S71_A9Code,$AC:$AC)+SUMIFS(Sheet1!S71_OY1BudgetAmount,Sheet1!S71_WIPCode,$AC:$AC)","v":0},{"$f":"SUMIFS(Sheet1!S71_OY2BudgetAmount,Sheet1!S71_A9Code,$AC:$AC)+SUMIFS(Sheet1!S71_OY2BudgetAmount,Sheet1!S71_WIPCode,$AC:$AC)","v":0},null,null,null,null,null,null,null,null,null,null,null,null,null,null,null,null,null,"1570"]
[null,null,{"$f":"SUMIFS(Sheet1!S71_PPPYearAmount,Sheet1!S71_A9Code,$AC:$AC)+SUMIFS(Sheet1!S71_PPPYearAmount,Sheet1!S71_WIPCode,$AC:$AC)","v":0},{"$f":"SUMIFS(Sheet1!S71_PPYearAmount,Sheet1!S71_A9Code,$AC:$AC)+SUMIFS(Sheet1!S71_PPYearAmount,Sheet1!S71_WIPCode,$AC:$AC)","v":0},{"$f":"SUMIFS(Sheet1!S71_PYearAmount,Sheet1!S71_A9Code,$AC:$AC)+SUMIFS(Sheet1!S71_PYearAmount,Sheet1!S71_WIPCode,$AC:$AC)","v":0},{"$f":"SUMIFS(Sheet1!S71_OriginalBudAmnt,Sheet1!S71_A9Code,$AC:$AC)+SUMIFS(Sheet1!S71_OriginalBudAmnt,Sheet1!S71_WIPCode,$AC:$AC)","v":0},{"$f":"SUMIFS(Sheet1!S71_AdjustmentBudAmnt,Sheet1!S71_A9Code,$AC:$AC)+SUMIFS(Sheet1!S71_AdjustmentBudAmnt,Sheet1!S71_WIPCode,$AC:$AC)","v":0},{"$f":"SUMIFS(Sheet1!S71_AdjustmentBudAmnt,Sheet1!S71_A9Code,$AC:$AC)+SUMIFS(Sheet1!S71_AdjustmentBudAmnt,Sheet1!S71_WIPCode,$AC:$AC)","v":0},{"$f":"SUMIFS(Sheet1!S71_ASBudgetAmount,Sheet1!S71_A9Code,$AC:$AC)+SUMIFS(Sheet1!S71_ASBudgetAmount,Sheet1!S71_WIPCode,$AC:$AC)","v":0},{"$f":"SUMIFS(Sheet1!S71_OY1BudgetAmount,Sheet1!S71_A9Code,$AC:$AC)+SUMIFS(Sheet1!S71_OY1BudgetAmount,Sheet1!S71_WIPCode,$AC:$AC)","v":0},{"$f":"SUMIFS(Sheet1!S71_OY2BudgetAmount,Sheet1!S71_A9Code,$AC:$AC)+SUMIFS(Sheet1!S71_OY2BudgetAmount,Sheet1!S71_WIPCode,$AC:$AC)","v":0}]
[null,null,{"$f":"SUMIFS(Sheet1!S71_PPPYearAmount,Sheet1!S71_A9Code,$AC:$AC)+SUMIFS(Sheet1!S71_PPPYearAmount,Sheet1!S71_WIPCode,$AC:$AC)","v":0},{"$f":"SUMIFS(Sheet1!S71_PPYearAmount,Sheet1!S71_A9Code,$AC:$AC)+SUMIFS(Sheet1!S71_PPYearAmount,Sheet1!S71_WIPCode,$AC:$AC)","v":0},{"$f":"SUMIFS(Sheet1!S71_PYearAmount,Sheet1!S71_A9Code,$AC:$AC)+SUMIFS(Sheet1!S71_PYearAmount,Sheet1!S71_WIPCode,$AC:$AC)","v":0},{"$f":"SUMIFS(Sheet1!S71_OriginalBudAmnt,Sheet1!S71_A9Code,$AC:$AC)+SUMIFS(Sheet1!S71_OriginalBudAmnt,Sheet1!S71_WIPCode,$AC:$AC)","v":0},{"$f":"SUMIFS(Sheet1!S71_AdjustmentBudAmnt,Sheet1!S71_A9Code,$AC:$AC)+SUMIFS(Sheet1!S71_AdjustmentBudAmnt,Sheet1!S71_WIPCode,$AC:$AC)","v":0},{"$f":"SUMIFS(Sheet1!S71_AdjustmentBudAmnt,Sheet1!S71_A9Code,$AC:$AC)+SUMIFS(Sheet1!S71_AdjustmentBudAmnt,Sheet1!S71_WIPCode,$AC:$AC)","v":0},{"$f":"SUMIFS(Sheet1!S71_ASBudgetAmount,Sheet1!S71_A9Code,$AC:$AC)+SUMIFS(Sheet1!S71_ASBudgetAmount,Sheet1!S71_WIPCode,$AC:$AC)","v":0},{"$f":"SUMIFS(Sheet1!S71_OY1BudgetAmount,Sheet1!S71_A9Code,$AC:$AC)+SUMIFS(Sheet1!S71_OY1BudgetAmount,Sheet1!S71_WIPCode,$AC:$AC)","v":0},{"$f":"SUMIFS(Sheet1!S71_OY2BudgetAmount,Sheet1!S71_A9Code,$AC:$AC)+SUMIFS(Sheet1!S71_OY2BudgetAmount,Sheet1!S71_WIPCode,$AC:$AC)","v":0}]
["Living Resources",null,{"$f":"SUMIFS(Sheet1!S71_PPPYearAmount,Sheet1!S71_A9Code,$AC:$AC)+SUMIFS(Sheet1!S71_PPPYearAmount,Sheet1!S71_WIPCode,$AC:$AC)","v":0},{"$f":"SUMIFS(Sheet1!S71_PPYearAmount,Sheet1!S71_A9Code,$AC:$AC)+SUMIFS(Sheet1!S71_PPYearAmount,Sheet1!S71_WIPCode,$AC:$AC)","v":0},{"$f":"SUMIFS(Sheet1!S71_PYearAmount,Sheet1!S71_A9Code,$AC:$AC)+SUMIFS(Sheet1!S71_PYearAmount,Sheet1!S71_WIPCode,$AC:$AC)","v":0},{"$f":"SUMIFS(Sheet1!S71_OriginalBudAmnt,Sheet1!S71_A9Code,$AC:$AC)+SUMIFS(Sheet1!S71_OriginalBudAmnt,Sheet1!S71_WIPCode,$AC:$AC)","v":0},{"$f":"SUMIFS(Sheet1!S71_AdjustmentBudAmnt,Sheet1!S71_A9Code,$AC:$AC)+SUMIFS(Sheet1!S71_AdjustmentBudAmnt,Sheet1!S71_WIPCode,$AC:$AC)","v":0},{"$f":"SUMIFS(Sheet1!S71_AdjustmentBudAmnt,Sheet1!S71_A9Code,$AC:$AC)+SUMIFS(Sheet1!S71_AdjustmentBudAmnt,Sheet1!S71_WIPCode,$AC:$AC)","v":0},{"$f":"SUMIFS(Sheet1!S71_ASBudgetAmount,Sheet1!S71_A9Code,$AC:$AC)+SUMIFS(Sheet1!S71_ASBudgetAmount,Sheet1!S71_WIPCode,$AC:$AC)","v":0},{"$f":"SUMIFS(Sheet1!S71_OY1BudgetAmount,Sheet1!S71_A9Code,$AC:$AC)+SUMIFS(Sheet1!S71_OY1BudgetAmount,Sheet1!S71_WIPCode,$AC:$AC)","v":0},{"$f":"SUMIFS(Sheet1!S71_OY2BudgetAmount,Sheet1!S71_A9Code,$AC:$AC)+SUMIFS(Sheet1!S71_OY2BudgetAmount,Sheet1!S71_WIPCode,$AC:$AC)","v":0}]
["TOTAL ASSET REGISTER SUMMARY - PPE (WDV)",5,{"$f":"C156+C159+C160+C163+C166+C167+C170+C171+C172+C173+C174+C175+C176+C179","v":-372699471},-476335073,-556621819,{"$f":"F156+F159+F160+F163+F166+F167+F170+F171+F172+F173+F174+F175+F176+F179","v":2077447401},{"$f":"G156+G159+G160+G163+G166+G167+G170+G171+G172+G173+G174+G175+G176+G179","v":940843558},940843558,871362255,868397255,867997255]
[]
["EXPENDITURE OTHER ITEMS",null,{"$f":"SUM(C183:C184)","v":90913271},{"$f":"SUM(D183:D184)","v":97932112},117039691,136700000,157650000,157650000,157620000,162065000,164465000]
["Depreciation",7,{"$f":"SA34d!C175","v":85214519},{"$f":"SA34d!D175","v":90769641},{"$f":"SA34d!E175","v":96276758},{"$f":"SA34d!F175","v":91000000},{"$f":"SA34d!G175","v":91000000},{"$f":"SA34d!H175","v":91000000},{"$f":"SA34d!I175","v":95000000},{"$f":"SA34d!J175","v":96000000},{"$f":"SA34d!K175","v":97000000}]
["Repairs and Maintenance by Asset Class",3,{"$f":"C194+C197+C198+C201+C204+C205+SUM(C208:C214)+C217","v":5698752},{"$f":"D194+D197+D198+D201+D204+D205+SUM(D208:D214)+D217","v":7162471},20762933,45700000,66650000,66650000,62620000,66065000,67465000]
["Roads Infrastructure",null,{"$f":"SA34c!C7","v":240558},{"$f":"SA34c!D7","v":1242967},{"$f":"SA34c!E7","v":13447131},{"$f":"SA34c!F7","v":38000000},{"$f":"SA34c!G7","v":54700000},{"$f":"SA34c!H7","v":54700000},{"$f":"SA34c!I7","v":47000000},{"$f":"SA34c!J7","v":50000000},{"$f":"SA34c!K7","v":51000000}]
["Storm water Infrastructure",null,{"$f":"SA34c!C12","v":0},{"$f":"SA34c!D12","v":0},{"$f":"SA34c!E12","v":0},{"$f":"SA34c!F12","v":0},{"$f":"SA34c!G12","v":0},{"$f":"SA34c!H12","v":0},{"$f":"SA34c!I12","v":0},{"$f":"SA34c!J12","v":0},{"$f":"SA34c!K12","v":0}]
["Electrical Infrastructure",null,{"$f":"SA34c!C16","v":0},{"$f":"SA34c!D16","v":0},{"$f":"SA34c!E16","v":0},{"$f":"SA34c!F16","v":0},{"$f":"SA34c!G16","v":0},{"$f":"SA34c!H16","v":0},{"$f":"SA34c!I16","v":0},{"$f":"SA34c!J16","v":0},{"$f":"SA34c!K16","v":0}]
["Water Supply Infrastructure",null,{"$f":"SA34c!C26","v":0},{"$f":"SA34c!D26","v":0},{"$f":"SA34c!E26","v":0},{"$f":"SA34c!F26","v":0},{"$f":"SA34c!G26","v":0},{"$f":"SA34c!H26","v":0},{"$f":"SA34c!I26","v":0},{"$f":"SA34c!J26","v":0},{"$f":"SA34c!K26","v":0}]
["Sanitation Infrastructure",null,{"$f":"SA34c!C37","v":0},{"$f":"SA34c!D37","v":0},{"$f":"SA34c!E37","v":0},{"$f":"SA34c!F37","v":0},{"$f":"SA34c!G37","v":0},{"$f":"SA34c!H37","v":0},{"$f":"SA34c!I37","v":0},{"$f":"SA34c!J37","v":0},{"$f":"SA34c!K37","v":0}]
["Solid Waste Infrastructure",null,{"$f":"SA34c!C44","v":247846},{"$f":"SA34c!D44","v":148211},{"$f":"SA34c!E44","v":140041},{"$f":"SA34c!F44","v":200000},{"$f":"SA34c!G44","v":200000},{"$f":"SA34c!H44","v":200000},{"$f":"SA34c!I44","v":250000},{"$f":"SA34c!J44","v":255000},{"$f":"SA34c!K44","v":260000}]
["Rail Infrastructure",null,{"$f":"SA34c!C52","v":0},{"$f":"SA34c!D52","v":0},{"$f":"SA34c!E52","v":0},{"$f":"SA34c!F52","v":0},{"$f":"SA34c!G52","v":0},{"$f":"SA34c!H52","v":0},{"$f":"SA34c!I52","v":0},{"$f":"SA34c!J52","v":0},{"$f":"SA34c!K52","v":0}]
["Coastal Infrastructure",null,{"$f":"SA34c!C62","v":0},{"$f":"SA34c!D62","v":0},{"$f":"SA34c!E62","v":0},{"$f":"SA34c!F62","v":0},{"$f":"SA34c!G62","v":0},{"$f":"SA34c!H62","v":0},{"$f":"SA34c!I62","v":0},{"$f":"SA34c!J62","v":0},{"$f":"SA34c!K62","v":0}]
["Information and Communication Infrastructure",null,{"$f":"SA34c!C68","v":0},{"$f":"SA34c!D68","v":0},{"$f":"SA34c!E68","v":0},{"$f":"SA34c!F68","v":0},{"$f":"SA34c!G68","v":0},{"$f":"SA34c!H68","v":0},{"$f":"SA34c!I68","v":0},{"$f":"SA34c!J68","v":0},{"$f":"SA34c!K68","v":0}]
["Infrastructure",null,{"$f":"SUM(C185:C193)","v":488404},{"$f":"SUM(D185:D193)","v":1391178},13587172,38200000,54900000,54900000,47250000,50255000,51260000]
["Community Facilities",null,{"$f":"SA34c!C75","v":48850},{"$f":"SA34c!D75","v":0},{"$f":"SA34c!E75","v":0},{"$f":"SA34c!F75","v":100000},{"$f":"SA34c!G75","v":400000},{"$f":"SA34c!H75","v":400000},{"$f":"SA34c!I75","v":800000},{"$f":"SA34c!J75","v":810000},{"$f":"SA34c!K75","v":820000}]
["Sport and Recreation Facilities",null,{"$f":"SA34c!C98","v":0},{"$f":"SA34c!D98","v":0},{"$f":"SA34c!E98","v":0},{"$f":"SA34c!F98","v":0},{"$f":"SA34c!G98","v":0},{"$f":"SA34c!H98","v":0},{"$f":"SA34c!I98","v":0},{"$f":"SA34c!J98","v":0},{"$f":"SA34c!K98","v":0}]
["Community Assets",null,{"$f":"SUM(C195:C196)","v":48850},0,0,100000,400000,400000,800000,810000,820000]
["Heritage Assets",null,{"$f":"SA34c!C103","v":0},{"$f":"SA34c!D103","v":0},{"$f":"SA34c!E103","v":0},{"$f":"SA34c!F103","v":0},{"$f":"SA34c!G103","v":0},{"$f":"SA34c!H103","v":0},{"$f":"SA34c!I103","v":0},{"$f":"SA34c!J103","v":0},{"$f":"SA34c!K103","v":0}]
["Revenue Generating",null,{"$f":"SA34c!C111","v":0},{"$f":"SA34c!D111","v":0},{"$f":"SA34c!E111","v":0},{"$f":"SA34c!F111","v":0},{"$f":"SA34c!G111","v":0},{"$f":"SA34c!H111","v":0},{"$f":"SA34c!I111","v":0},{"$f":"SA34c!J111","v":0},{"$f":"SA34c!K111","v":0}]
["Non-revenue Generating",null,{"$f":"SA34c!C114","v":0},{"$f":"SA34c!D114","v":0},{"$f":"SA34c!E114","v":0},{"$f":"SA34c!F114","v":0},{"$f":"SA34c!G114","v":0},{"$f":"SA34c!H114","v":0},{"$f":"SA34c!I114","v":0},{"$f":"SA34c!J114","v":0},{"$f":"SA34c!K114","v":0}]
["Investment properties",null,{"$f":"SUM(C199:C200)","v":0},0,0,0,0,0,0,0,0]
["Operational Buildings",null,{"$f":"SA34c!C119","v":425858},{"$f":"SA34c!D119","v":247284},{"$f":"SA34c!E119","v":1137471},{"$f":"SA34c!F119","v":2000000},{"$f":"SA34c!G119","v":2000000},{"$f":"SA34c!H119","v":2000000},{"$f":"SA34c!I119","v":5000000},{"$f":"SA34c!J119","v":5200000},{"$f":"SA34c!K119","v":5300000}]
["Housing",null,{"$f":"SA34c!C131","v":0},{"$f":"SA34c!D131","v":0},{"$f":"SA34c!E131","v":0},{"$f":"SA34c!F131","v":0},{"$f":"SA34c!G131","v":0},{"$f":"SA34c!H131","v":0},{"$f":"SA34c!I131","v":0},{"$f":"SA34c!J131","v":0},{"$f":"SA34c!K131","v":0}]
["Other Assets",null,{"$f":"SUM(C202:C203)","v":425858},247284,1137471,2000000,2000000,2000000,5000000,5200000,5300000]
["Biological or Cultivated Assets",null,{"$f":"SA34c!C136","v":0},{"$f":"SA34c!D136","v":0},{"$f":"SA34c!E136","v":0},{"$f":"SA34c!F136","v":0},{"$f":"SA34c!G136","v":0},{"$f":"SA34c!H136","v":0},{"$f":"SA34c!I136","v":0},{"$f":"SA34c!J136","v":0},{"$f":"SA34c!K136","v":0}]
["Servitudes",null,{"$f":"SA34c!C140","v":0},{"$f":"SA34c!D140","v":0},{"$f":"SA34c!E140","v":0},{"$f":"SA34c!F140","v":0},{"$f":"SA34c!G140","v":0},{"$f":"SA34c!H140","v":0},{"$f":"SA34c!I140","v":0},{"$f":"SA34c!J140","v":0},{"$f":"SA34c!K140","v":0}]
["Licences and Rights",null,{"$f":"SA34c!C141","v":0},{"$f":"SA34c!D141","v":0},{"$f":"SA34c!E141","v":0},{"$f":"SA34c!F141","v":0},{"$f":"SA34c!G141","v":0},{"$f":"SA34c!H141","v":0},{"$f":"SA34c!I141","v":0},{"$f":"SA34c!J141","v":0},{"$f":"SA34c!K141","v":0}]
["Intangible Assets",null,{"$f":"SUM(C206:C207)","v":0},0,0,0,0,0,0,0,0]
["Computer Equipment",null,{"$f":"SA34c!C149","v":16552},{"$f":"SA34c!D149","v":7901},{"$f":"SA34c!E149","v":26882},{"$f":"SA34c!F149","v":300000},{"$f":"SA34c!G149","v":150000},{"$f":"SA34c!H149","v":150000},{"$f":"SA34c!I149","v":300000},{"$f":"SA34c!J149","v":320000},{"$f":"SA34c!K149","v":330000}]
["Furniture and Office Equipment",null,{"$f":"SA34c!C152","v":0},{"$f":"SA34c!D152","v":0},{"$f":"SA34c!E152","v":0},{"$f":"SA34c!F152","v":50000},{"$f":"SA34c!G152","v":50000},{"$f":"SA34c!H152","v":50000},{"$f":"SA34c!I152","v":70000},{"$f":"SA34c!J152","v":70000},{"$f":"SA34c!K152","v":85000}]
["Machinery and Equipment",null,{"$f":"SA34c!C155","v":279313},{"$f":"SA34c!D155","v":4609220},{"$f":"SA34c!E155","v":3179454},{"$f":"SA34c!F155","v":3850000},{"$f":"SA34c!G155","v":3600000},{"$f":"SA34c!H155","v":3600000},{"$f":"SA34c!I155","v":6200000},{"$f":"SA34c!J155","v":6310000},{"$f":"SA34c!K155","v":6470000}]
["Transport Assets",null,{"$f":"SA34c!C158","v":4439775},{"$f":"SA34c!D158","v":906888},{"$f":"SA34c!E158","v":2831954},{"$f":"SA34c!F158","v":1200000},{"$f":"SA34c!G158","v":5550000},{"$f":"SA34c!H158","v":5550000},{"$f":"SA34c!I158","v":3000000},{"$f":"SA34c!J158","v":3100000},{"$f":"SA34c!K158","v":3200000}]
["Land",null,{"$f":"SA34c!C161","v":0},{"$f":"SA34c!D161","v":0},{"$f":"SA34c!E161","v":0},{"$f":"SA34c!F161","v":0},{"$f":"SA34c!G161","v":0},{"$f":"SA34c!H161","v":0},{"$f":"SA34c!I161","v":0},{"$f":"SA34c!J161","v":0},{"$f":"SA34c!K161","v":0}]
["Zoo's, Marine and Non-biological Animals",null,{"$f":"SA34c!C164","v":0},{"$f":"SA34c!D164","v":0},{"$f":"SA34c!E164","v":0},{"$f":"SA34c!F164","v":0},{"$f":"SA34c!G164","v":0},{"$f":"SA34c!H164","v":0},{"$f":"SA34c!I164","v":0},{"$f":"SA34c!J164","v":0},{"$f":"SA34c!K164","v":0}]
["Mature"," ",{"$f":"SA34c!C168","v":0},{"$f":"SA34c!D168","v":0},{"$f":"SA34c!E168","v":0},{"$f":"SA34c!F168","v":0},{"$f":"SA34c!G168","v":0},{"$f":"SA34c!H168","v":0},{"$f":"SA34c!I168","v":0},{"$f":"SA34c!J168","v":0},{"$f":"SA34c!K168","v":0}]
["Immature"," ",{"$f":"SA34c!C171","v":0},{"$f":"SA34c!D171","v":0},{"$f":"SA34c!E171","v":0},{"$f":"SA34c!F171","v":0},{"$f":"SA34c!G171","v":0},{"$f":"SA34c!H171","v":0},{"$f":"SA34c!I171","v":0},{"$f":"SA34c!J171","v":0},{"$f":"SA34c!K171","v":0}]
["Living Resources","",{"$f":"SUM(C215:C216)","v":0},0,0,0,0,0,0,0,0]
[]
["TOTAL EXPENDITURE OTHER ITEMS",null,{"$f":"SUM(C183:C184)","v":90913271},97932112,117039691,136700000,157650000,157650000,157620000,162065000,164465000]
[]
["Renewal and upgrading of Existing Assets as % of total capex",null,{"$f":"IF(ISERROR((C40+C75)/C144),0,((C40+C75)/C144))","v":0.13733462913902655},{"$f":"IF(ISERROR((D40+D75)/D144),0,((D40+D75)/D144))","v":0.18708644071319749},0.26613505035932766,0.15619351315825855,0.13163888854460071,0.13163888854460071,0.14528003279375931,8.4233862557383452E-2,7.517108186521705E-3]
["Renewal and upgrading of Existing Assets as % of deprecn",null,{"$f":"IF(ISERROR((C40+C75)/C183),0,((C40+C75)/C183))","v":0.2335876706644322},{"$f":"IF(ISERROR((D40+D75)/D183),0,((D40+D75)/D183))","v":0.23043896361780256},0.31773512772418033,0.25432462637362635,0.1999289010989011,0.1999289010989011,0.24283356842105264,0.15208333333333332,1.2371134020618556E-2]
["R&M as a % of PPE",null,{"$f":"IF(ISERROR(ROUND(C184/'A6-FinPos'!C17,3)),0,(ROUND(C184/'A6-FinPos'!C17,3)))","v":-2.1999999999999999E-2},{"$f":"IF(ISERROR(ROUND(D184/'A6-FinPos'!D17,3)),0,(ROUND(D184/'A6-FinPos'!D17,3)))","v":-1.7999999999999999E-2},{"$f":"IF(ISERROR(ROUND(E184/'A6-FinPos'!E17,3)),0,(ROUND(E184/'A6-FinPos'!E17,3)))","v":-4.3999999999999997E-2},{"$f":"IF(ISERROR(ROUND(F184/'A6-FinPos'!F17,3)),0,(ROUND(F184/'A6-FinPos'!F17,3)))","v":2.1000000000000001E-2},{"$f":"IF(ISERROR(ROUND(G184/'A6-FinPos'!G17,3)),0,(ROUND(G184/'A6-FinPos'!G17,3)))","v":5.8000000000000003E-2},{"$f":"IF(ISERROR(ROUND(H184/'A6-FinPos'!H17,3)),0,(ROUND(H184/'A6-FinPos'!H17,3)))","v":5.8000000000000003E-2},{"$f":"IF(ISERROR(ROUND(I184/'A6-FinPos'!I17,3)),0,(ROUND(I184/'A6-FinPos'!I17,3)))","v":5.5E-2},{"$f":"IF(ISERROR(ROUND(J184/'A6-FinPos'!J17,3)),0,(ROUND(J184/'A6-FinPos'!J17,3)))","v":6.9000000000000006E-2},{"$f":"IF(ISERROR(ROUND(K184/'A6-FinPos'!K17,3)),0,(ROUND(K184/'A6-FinPos'!K17,3)))","v":6.9000000000000006E-2}]
["Renewal and upgrading and R&M as a % of PPE",null,{"$f":"IF(ISERROR(ROUND((C40+C75+C184)/C180,2)),0,(ROUND((C40+C75+C184)/C180,2)))","v":-7.0000000000000007E-2},{"$f":"IF(ISERROR(ROUND((D40+D75+D184)/D180,2)),0,(ROUND((D40+D75+D184)/D180,2)))","v":-0.06},-0.09,0.03,0.09,0.09,0.1,0.09,0.08]
[]
[{"$f":"head27a","v":"References"}]
["1. Detail of new assets provided in Table SA34a"]
["2. Detail of renewal of existing assets provided in Table SA34b"]
["3. Detail of Repairs and Maintenance by Asset Class provided in Table SA34c"]
["4. Must reconcile to total capital expenditure on Budgeted Capital Expenditure"]
["5. Must reconcile to 'Budgeted Financial Position' (written down value)"]
["6. Detail of upgrading of existing assets provided in Table SA34e"]
["7. Detail of depreciation provided in Table SA34d"]
[]
["Check balance to A6",null,{"$f":"C180-'A6-FinPos'!D18-'A6-FinPos'!D20-'A6-FinPos'!D21-'A6-FinPos'!D22-'A6-FinPos'!D23-C160","v":-367335148},{"$f":"D180-'A6-FinPos'!E18-'A6-FinPos'!E20-'A6-FinPos'!E21-'A6-FinPos'!E22-'A6-FinPos'!E23-D160","v":-467562031},{"$f":"E180-'A6-FinPos'!F18-'A6-FinPos'!F20-'A6-FinPos'!F21-'A6-FinPos'!F22-'A6-FinPos'!F23-E160","v":-558843389},{"$f":"F180-'A6-FinPos'!G18-'A6-FinPos'!G20-'A6-FinPos'!G21-'A6-FinPos'!G22-'A6-FinPos'!G23-F160","v":2066960480},{"$f":"G180-'A6-FinPos'!H18-'A6-FinPos'!H20-'A6-FinPos'!H21-'A6-FinPos'!H22-'A6-FinPos'!H23-G160","v":930356637},{"$f":"H180-'A6-FinPos'!I18-'A6-FinPos'!I20-'A6-FinPos'!I21-'A6-FinPos'!I22-'A6-FinPos'!I23-H160","v":930356637},{"$f":"I180-'A6-FinPos'!J18-'A6-FinPos'!J20-'A6-FinPos'!J21-'A6-FinPos'!J22-'A6-FinPos'!J23-I160","v":859627940},{"$f":"J180-'A6-FinPos'!K18-'A6-FinPos'!K20-'A6-FinPos'!K21-'A6-FinPos'!K22-'A6-FinPos'!K23-J160","v":857192940},{"$f":"K180-'A6-FinPos'!L18-'A6-FinPos'!L20-'A6-FinPos'!L21-'A6-FinPos'!L22-'A6-FinPos'!L23-K160","v":856772940}]

{"sheet":"A10-SerDel","index":43,"n_rows":89,"n_cols":33,"rows_kept":89,"cut":false,"hidden":false,"merged":[[1,5,1,7],[1,8,1,10],[1,0,2,0],[1,1,2,1]]}
[{"$f":"muni&\" - \"&Approve10","v":"LIM331 Greater Giyani - Table A10 Basic service delivery measurement"}]
[{"$f":"desc","v":"Description"},{"$f":"head27","v":"Ref"},{"$f":"head1b","v":"2019/20"},{"$f":"head1A","v":"2020/21"},{"$f":"Head1","v":"2021/22"},{"$f":"Head2","v":"Current Year 2022/23"},null,null,{"$f":"Head3","v":"2023/24 Medium Term Revenue & Expenditure Framework"}]
[null,null,{"$f":"Head5A","v":"Outcome"},{"$f":"Head5A","v":"Outcome"},{"$f":"Head5A","v":"Outcome"},{"$f":"Head6","v":"Original Budget"},{"$f":"Head7","v":"Adjusted Budget"},{"$f":"Head8","v":"Full Year Forecast"},{"$f":"Head9","v":"Budget Year 2023/24"},{"$f":"Head10","v":"Budget Year +1 2024/25"},{"$f":"Head11","v":"Budget Year +2 2025/26"}]
["Household service targets",1]
["Water:"]
["Piped water inside dwelling",null,{"$f":"'SA9'!E67","v":0},{"$f":"'SA9'!F67","v":0},{"$f":"'SA9'!G67","v":0},{"$f":"'SA9'!H67","v":0},{"$f":"'SA9'!I67","v":0},{"$f":"'SA9'!J67","v":0},{"$f":"'SA9'!K67","v":0},{"$f":"'SA9'!L67","v":0},{"$f":"'SA9'!M67","v":0}]
["Piped water inside yard (but not in dwelling)",null,{"$f":"'SA9'!E68","v":0},{"$f":"'SA9'!F68","v":0},{"$f":"'SA9'!G68","v":0},{"$f":"'SA9'!H68","v":0},{"$f":"'SA9'!I68","v":0},{"$f":"'SA9'!J68","v":0},{"$f":"'SA9'!K68","v":0},{"$f":"'SA9'!L68","v":0},{"$f":"'SA9'!M68","v":0}]
["Using public tap (at least min.service level)",2,{"$f":"'SA9'!E69","v":0},{"$f":"'SA9'!F69","v":0},{"$f":"'SA9'!G69","v":0},{"$f":"'SA9'!H69","v":0},{"$f":"'SA9'!I69","v":0},{"$f":"'SA9'!J69","v":0},{"$f":"'SA9'!K69","v":0},{"$f":"'SA9'!L69","v":0},{"$f":"'SA9'!M69","v":0}]
["Other water supply (at least min.service level)",4,{"$f":"'SA9'!E70","v":0},{"$f":"'SA9'!F70","v":0},{"$f":"'SA9'!G70","v":0},{"$f":"'SA9'!H70","v":0},{"$f":"'SA9'!I70","v":0},{"$f":"'SA9'!J70","v":0},{"$f":"'SA9'!K70","v":0},{"$f":"'SA9'!L70","v":0},{"$f":"'SA9'!M70","v":0}]
["Minimum Service Level and Above sub-total",null,{"$f":"SUM(C6:C9)","v":0},{"$f":"SUM(D6:D9)","v":0},0,0,0,0,0,0,0]
["Using public tap (< min.service level)",3,{"$f":"'SA9'!E72","v":0},{"$f":"'SA9'!F72","v":0},{"$f":"'SA9'!G72","v":0},{"$f":"'SA9'!H72","v":0},{"$f":"'SA9'!I72","v":0},{"$f":"'SA9'!J72","v":0},{"$f":"'SA9'!K72","v":0},{"$f":"'SA9'!L72","v":0},{"$f":"'SA9'!M72","v":0}]
["Other water supply (< min.service level)",{"$f":"B9","v":4},{"$f":"'SA9'!E73","v":0},{"$f":"'SA9'!F73","v":0},{"$f":"'SA9'!G73","v":0},{"$f":"'SA9'!H73","v":0},{"$f":"'SA9'!I73","v":0},{"$f":"'SA9'!J73","v":0},{"$f":"'SA9'!K73","v":0},{"$f":"'SA9'!L73","v":0},{"$f":"'SA9'!M73","v":0}]
["No water supply",null,{"$f":"'SA9'!E74","v":0},{"$f":"'SA9'!F74","v":0},{"$f":"'SA9'!G74","v":0},{"$f":"'SA9'!H74","v":0},{"$f":"'SA9'!I74","v":0},{"$f":"'SA9'!J74","v":0},{"$f":"'SA9'!K74","v":0},{"$f":"'SA9'!L74","v":0},{"$f":"'SA9'!M74","v":0}]
["Below Minimum Service Level sub-total",null,{"$f":"SUM(C11:C13)","v":0},{"$f":"SUM(D11:D13)","v":0},0,0,0,0,0,0,0]
["Total number of households",5,{"$f":"C10+C14","v":0},{"$f":"D10+D14","v":0},0,0,0,0,0,0,0]
["Sanitation/sewerage:"]
["Flush toilet (connected to sewerage)",null,{"$f":"'SA9'!E78","v":0},{"$f":"'SA9'!F78","v":0},{"$f":"'SA9'!G78","v":0},{"$f":"'SA9'!H78","v":0},{"$f":"'SA9'!I78","v":0},{"$f":"'SA9'!J78","v":0},{"$f":"'SA9'!K78","v":0},{"$f":"'SA9'!L78","v":0},{"$f":"'SA9'!M78","v":0}]
["Flush toilet (with septic tank)",null,{"$f":"'SA9'!E79","v":0},{"$f":"'SA9'!F79","v":0},{"$f":"'SA9'!G79","v":0},{"$f":"'SA9'!H79","v":0},{"$f":"'SA9'!I79","v":0},{"$f":"'SA9'!J79","v":0},{"$f":"'SA9'!K79","v":0},{"$f":"'SA9'!L79","v":0},{"$f":"'SA9'!M79","v":0}]
["Chemical toilet",null,{"$f":"'SA9'!E80","v":0},{"$f":"'SA9'!F80","v":0},{"$f":"'SA9'!G80","v":0},{"$f":"'SA9'!H80","v":0},{"$f":"'SA9'!I80","v":0},{"$f":"'SA9'!J80","v":0},{"$f":"'SA9'!K80","v":0},{"$f":"'SA9'!L80","v":0},{"$f":"'SA9'!M80","v":0}]
["Pit toilet (ventilated)",null,{"$f":"'SA9'!E81","v":0},{"$f":"'SA9'!F81","v":0},{"$f":"'SA9'!G81","v":0},{"$f":"'SA9'!H81","v":0},{"$f":"'SA9'!I81","v":0},{"$f":"'SA9'!J81","v":0},{"$f":"'SA9'!K81","v":0},{"$f":"'SA9'!L81","v":0},{"$f":"'SA9'!M81","v":0}]
["Other toilet provisions (> min.service level)",null,{"$f":"'SA9'!E82","v":0},{"$f":"'SA9'!F82","v":0},{"$f":"'SA9'!G82","v":0},{"$f":"'SA9'!H82","v":0},{"$f":"'SA9'!I82","v":0},{"$f":"'SA9'!J82","v":0},{"$f":"'SA9'!K82","v":0},{"$f":"'SA9'!L82","v":0},{"$f":"'SA9'!M82","v":0}]
[{"$f":"$A$10","v":"Minimum Service Level and Above sub-total"},null,{"$f":"SUM(C17:C21)","v":0},{"$f":"SUM(D17:D21)","v":0},0,0,0,0,0,0,0]
["Bucket toilet",null,{"$f":"'SA9'!E84","v":0},{"$f":"'SA9'!F84","v":0},{"$f":"'SA9'!G84","v":0},{"$f":"'SA9'!H84","v":0},{"$f":"'SA9'!I84","v":0},{"$f":"'SA9'!J84","v":0},{"$f":"'SA9'!K84","v":0},{"$f":"'SA9'!L84","v":0},{"$f":"'SA9'!M84","v":0}]
["Other toilet provisions (< min.service level)",null,{"$f":"'SA9'!E85","v":0},{"$f":"'SA9'!F85","v":0},{"$f":"'SA9'!G85","v":0},{"$f":"'SA9'!H85","v":0},{"$f":"'SA9'!I85","v":0},{"$f":"'SA9'!J85","v":0},{"$f":"'SA9'!K85","v":0},{"$f":"'SA9'!L85","v":0},{"$f":"'SA9'!M85","v":0}]
["No toilet provisions",null,{"$f":"'SA9'!E86","v":0},{"$f":"'SA9'!F86","v":0},{"$f":"'SA9'!G86","v":0},{"$f":"'SA9'!H86","v":0},{"$f":"'SA9'!I86","v":0},{"$f":"'SA9'!J86","v":0},{"$f":"'SA9'!K86","v":0},{"$f":"'SA9'!L86","v":0},{"$f":"'SA9'!M86","v":0}]
[{"$f":"$A$14","v":"Below Minimum Service Level sub-total"},null,{"$f":"SUM(C23:C25)","v":0},{"$f":"SUM(D23:D25)","v":0},0,0,0,0,0,0,0]
[{"$f":"$A$15","v":"Total number of households"},{"$f":"$B$15","v":5},{"$f":"C22+C26","v":0},{"$f":"D22+D26","v":0},0,0,0,0,0,0,0]
["Energy:"]
["Electricity (at least min.service level)",null,{"$f":"'SA9'!E90","v":0},{"$f":"'SA9'!F90","v":0},{"$f":"'SA9'!G90","v":0},{"$f":"'SA9'!H90","v":0},{"$f":"'SA9'!I90","v":0},{"$f":"'SA9'!J90","v":0},{"$f":"'SA9'!K90","v":0},{"$f":"'SA9'!L90","v":0},{"$f":"'SA9'!M90","v":0}]
["Electricity - prepaid (min.service level)",null,{"$f":"'SA9'!E91","v":0},{"$f":"'SA9'!F91","v":0},{"$f":"'SA9'!G91","v":0},{"$f":"'SA9'!H91","v":0},{"$f":"'SA9'!I91","v":0},{"$f":"'SA9'!J91","v":0},{"$f":"'SA9'!K91","v":0},{"$f":"'SA9'!L91","v":0},{"$f":"'SA9'!M91","v":0}]
[{"$f":"$A$10","v":"Minimum Service Level and Above sub-total"},null,{"$f":"SUM(C29:C30)","v":0},{"$f":"SUM(D29:D30)","v":0},0,0,0,0,0,0,0]
["Electricity (< min.service level)",null,{"$f":"'SA9'!E93","v":0},{"$f":"'SA9'!F93","v":0},{"$f":"'SA9'!G93","v":0},{"$f":"'SA9'!H93","v":0},{"$f":"'SA9'!I93","v":0},{"$f":"'SA9'!J93","v":0},{"$f":"'SA9'!K93","v":0},{"$f":"'SA9'!L93","v":0},{"$f":"'SA9'!M93","v":0}]
["Electricity - prepaid (< min. service level)",null,{"$f":"'SA9'!E94","v":0},{"$f":"'SA9'!F94","v":0},{"$f":"'SA9'!G94","v":0},{"$f":"'SA9'!H94","v":0},{"$f":"'SA9'!I94","v":0},{"$f":"'SA9'!J94","v":0},{"$f":"'SA9'!K94","v":0},{"$f":"'SA9'!L94","v":0},{"$f":"'SA9'!M94","v":0}]
["Other energy sources",null,{"$f":"'SA9'!E95","v":0},{"$f":"'SA9'!F95","v":0},{"$f":"'SA9'!G95","v":0},{"$f":"'SA9'!H95","v":0},{"$f":"'SA9'!I95","v":0},{"$f":"'SA9'!J95","v":0},{"$f":"'SA9'!K95","v":0},{"$f":"'SA9'!L95","v":0},{"$f":"'SA9'!M95","v":0}]
[{"$f":"$A$14","v":"Below Minimum Service Level sub-total"},null,{"$f":"SUM(C32:C34)","v":0},{"$f":"SUM(D32:D34)","v":0},0,0,0,0,0,0,0]
[{"$f":"$A$15","v":"Total number of households"},{"$f":"$B$15","v":5},{"$f":"C31+C35","v":0},{"$f":"D31+D35","v":0},0,0,0,0,0,0,0]
["Refuse:"]
["Removed at least once a week",null,{"$f":"'SA9'!E99","v":5528},{"$f":"'SA9'!F99","v":5528},{"$f":"'SA9'!G99","v":5528},{"$f":"'SA9'!H99","v":5528},{"$f":"'SA9'!I99","v":5528},{"$f":"'SA9'!J99","v":5528},{"$f":"'SA9'!K99","v":5528},{"$f":"'SA9'!L99","v":5528},{"$f":"'SA9'!M99","v":5528}]
[{"$f":"$A$10","v":"Minimum Service Level and Above sub-total"},null,{"$f":"SUM(C38)","v":5528},{"$f":"SUM(D38)","v":5528},5528,5528,5528,5528,5528,5528,5528]
["Removed less frequently than once a week",null,{"$f":"'SA9'!E101","v":0},{"$f":"'SA9'!F101","v":0},{"$f":"'SA9'!G101","v":0},{"$f":"'SA9'!H101","v":0},{"$f":"'SA9'!I101","v":0},{"$f":"'SA9'!J101","v":0},{"$f":"'SA9'!K101","v":0},{"$f":"'SA9'!L101","v":0},{"$f":"'SA9'!M101","v":0}]
["Using communal refuse dump",null,{"$f":"'SA9'!E102","v":0},{"$f":"'SA9'!F102","v":0},{"$f":"'SA9'!G102","v":0},{"$f":"'SA9'!H102","v":0},{"$f":"'SA9'!I102","v":0},{"$f":"'SA9'!J102","v":0},{"$f":"'SA9'!K102","v":0},{"$f":"'SA9'!L102","v":0},{"$f":"'SA9'!M102","v":0}]
["Using own refuse dump",null,{"$f":"'SA9'!E103","v":0},{"$f":"'SA9'!F103","v":0},{"$f":"'SA9'!G103","v":0},{"$f":"'SA9'!H103","v":0},{"$f":"'SA9'!I103","v":0},{"$f":"'SA9'!J103","v":0},{"$f":"'SA9'!K103","v":0},{"$f":"'SA9'!L103","v":0},{"$f":"'SA9'!M103","v":0}]
["Other rubbish disposal",null,{"$f":"'SA9'!E104","v":0},{"$f":"'SA9'!F104","v":0},{"$f":"'SA9'!G104","v":0},{"$f":"'SA9'!H104","v":0},{"$f":"'SA9'!I104","v":0},{"$f":"'SA9'!J104","v":0},{"$f":"'SA9'!K104","v":0},{"$f":"'SA9'!L104","v":0},{"$f":"'SA9'!M104","v":0}]
["No rubbish disposal",null,{"$f":"'SA9'!E105","v":0},{"$f":"'SA9'!F105","v":0},{"$f":"'SA9'!G105","v":0},{"$f":"'SA9'!H105","v":0},{"$f":"'SA9'!I105","v":0},{"$f":"'SA9'!J105","v":0},{"$f":"'SA9'!K105","v":0},{"$f":"'SA9'!L105","v":0},{"$f":"'SA9'!M105","v":0}]
[{"$f":"$A$14","v":"Below Minimum Service Level sub-total"},null,{"$f":"SUM(C40:C44)","v":0},0,0,0,0,0,0,0,0]
[{"$f":"$A$15","v":"Total number of households"},{"$f":"$B$15","v":5},{"$f":"C39+C45","v":5528},{"$f":"D39+D45","v":5528},5528,5528,5528,5528,5528,5528,5528]
[]
["Households receiving Free Basic Service",7]
["Water (6 kilolitres per household per month)",null,{"$f":"'SA9'!E263","v":0},{"$f":"'SA9'!F263","v":0},{"$f":"'SA9'!G263","v":0},{"$f":"'SA9'!H263","v":0},{"$f":"'SA9'!I263","v":0},{"$f":"'SA9'!J263","v":0},{"$f":"'SA9'!K263","v":0},{"$f":"'SA9'!L263","v":0},{"$f":"'SA9'!M263","v":0}]
["Sanitation (free minimum level service)",null,{"$f":"'SA9'!E275","v":0},{"$f":"'SA9'!F275","v":0},{"$f":"'SA9'!G275","v":0},{"$f":"'SA9'!H275","v":0},{"$f":"'SA9'!I275","v":0},{"$f":"'SA9'!J275","v":0},{"$f":"'SA9'!K275","v":0},{"$f":"'SA9'!L275","v":0},{"$f":"'SA9'!M275","v":0}]
["Electricity/other energy (50kwh per household per month)",null,{"$f":"'SA9'!E251","v":16895},{"$f":"'SA9'!F251","v":17613},{"$f":"'SA9'!G251","v":18165},{"$f":"'SA9'!H251","v":11000000},{"$f":"'SA9'!I251","v":15000000},{"$f":"'SA9'!J251","v":15000000},{"$f":"'SA9'!K251","v":14620000},{"$f":"'SA9'!L251","v":10000000},{"$f":"'SA9'!M251","v":10000000}]
["Refuse (removed at least once a week)",null,{"$f":"'SA9'!E287","v":0},{"$f":"'SA9'!F287","v":0},{"$f":"'SA9'!G287","v":0},{"$f":"'SA9'!H287","v":0},{"$f":"'SA9'!I287","v":0},{"$f":"'SA9'!J287","v":0},{"$f":"'SA9'!K287","v":0},{"$f":"'SA9'!L287","v":0},{"$f":"'SA9'!M287","v":0}]
["Informal Settlements",null,{"$f":"'SA9'!E253+'SA9'!E255+'SA9'!E257+'SA9'!E259+'SA9'!E265+'SA9'!E2267+'SA9'!E269+'SA9'!E271+'SA9'!E277+'SA9'!E279+'SA9'!E281+'SA9'!E283+'SA9'!E289+'SA9'!E291+'SA9'!E293+'SA9'!E295","v":0},{"$f":"'SA9'!F253+'SA9'!F255+'SA9'!F257+'SA9'!F259+'SA9'!F265+'SA9'!F2267+'SA9'!F269+'SA9'!F271+'SA9'!F277+'SA9'!F279+'SA9'!F281+'SA9'!F283+'SA9'!F289+'SA9'!F291+'SA9'!F293+'SA9'!F295","v":0},{"$f":"'SA9'!G253+'SA9'!G255+'SA9'!G257+'SA9'!G259+'SA9'!G265+'SA9'!G2267+'SA9'!G269+'SA9'!G271+'SA9'!G277+'SA9'!G279+'SA9'!G281+'SA9'!G283+'SA9'!G289+'SA9'!G291+'SA9'!G293+'SA9'!G295","v":0},{"$f":"'SA9'!H253+'SA9'!H255+'SA9'!H257+'SA9'!H259+'SA9'!H265+'SA9'!H2267+'SA9'!H269+'SA9'!H271+'SA9'!H277+'SA9'!H279+'SA9'!H281+'SA9'!H283+'SA9'!H289+'SA9'!H291+'SA9'!H293+'SA9'!H295","v":0},{"$f":"'SA9'!I253+'SA9'!I255+'SA9'!I257+'SA9'!I259+'SA9'!I265+'SA9'!I2267+'SA9'!I269+'SA9'!I271+'SA9'!I277+'SA9'!I279+'SA9'!I281+'SA9'!I283+'SA9'!I289+'SA9'!I291+'SA9'!I293+'SA9'!I295","v":0},{"$f":"'SA9'!J253+'SA9'!J255+'SA9'!J257+'SA9'!J259+'SA9'!J265+'SA9'!J2267+'SA9'!J269+'SA9'!J271+'SA9'!J277+'SA9'!J279+'SA9'!J281+'SA9'!J283+'SA9'!J289+'SA9'!J291+'SA9'!J293+'SA9'!J295","v":0},{"$f":"'SA9'!K253+'SA9'!K255+'SA9'!K257+'SA9'!K259+'SA9'!K265+'SA9'!K2267+'SA9'!K269+'SA9'!K271+'SA9'!K277+'SA9'!K279+'SA9'!K281+'SA9'!K283+'SA9'!K289+'SA9'!K291+'SA9'!K293+'SA9'!K295","v":0},{"$f":"'SA9'!L253+'SA9'!L255+'SA9'!L257+'SA9'!L259+'SA9'!L265+'SA9'!L2267+'SA9'!L269+'SA9'!L271+'SA9'!L277+'SA9'!L279+'SA9'!L281+'SA9'!L283+'SA9'!L289+'SA9'!L291+'SA9'!L293+'SA9'!L295","v":0},{"$f":"'SA9'!M253+'SA9'!M255+'SA9'!M257+'SA9'!M259+'SA9'!M265+'SA9'!M2267+'SA9'!M269+'SA9'!M271+'SA9'!M277+'SA9'!M279+'SA9'!M281+'SA9'!M283+'SA9'!M289+'SA9'!M291+'SA9'!M293+'SA9'!M295","v":0}]
["Cost of Free Basic Services provided - Formal Settlements (R'000)"]
["Water (6 kilolitres per indigent household per month)",null,{"$f":"'SA1'!C22","v":0},{"$f":"'SA1'!D22","v":0},{"$f":"'SA1'!E22","v":0},{"$f":"'SA1'!F22","v":0},{"$f":"'SA1'!G22","v":0},{"$f":"'SA1'!H22","v":0},{"$f":"'SA1'!J22","v":0},{"$f":"'SA1'!K22","v":0},{"$f":"'SA1'!L22","v":0}]
["Sanitation (free sanitation service to indigent households)",null,{"$f":"'SA1'!C28","v":0},{"$f":"'SA1'!D28","v":0},{"$f":"'SA1'!E28","v":0},{"$f":"'SA1'!F28","v":0},{"$f":"'SA1'!G28","v":0},{"$f":"'SA1'!H28","v":0},{"$f":"'SA1'!J28","v":0},{"$f":"'SA1'!K28","v":0},{"$f":"'SA1'!L28","v":0}]
["Electricity/other energy (50kwh per indigent household per month)",null,{"$f":"'SA1'!C16","v":0},{"$f":"'SA1'!D16","v":0},{"$f":"'SA1'!E16","v":0},{"$f":"'SA1'!F16","v":0},{"$f":"'SA1'!G16","v":0},{"$f":"'SA1'!H16","v":0},{"$f":"'SA1'!J16","v":0},{"$f":"'SA1'!K16","v":0},{"$f":"'SA1'!L16","v":0}]
["Refuse (removed once a week for indigent households)",null,{"$f":"'SA1'!C35","v":0},{"$f":"'SA1'!D35","v":0},{"$f":"'SA1'!E35","v":0},{"$f":"'SA1'!F35","v":0},{"$f":"'SA1'!G35","v":0},{"$f":"'SA1'!H35","v":0},{"$f":"'SA1'!J35","v":0},{"$f":"'SA1'!K35","v":0},{"$f":"'SA1'!L35","v":0}]
["Cost of Free Basic Services provided - Informal Formal Settlements (R'000)",null,{"$f":"'SA9'!E260+'SA9'!E272+'SA9'!E284+'SA9'!E296","v":0},{"$f":"'SA9'!F260+'SA9'!F272+'SA9'!F284+'SA9'!F296","v":0},{"$f":"'SA9'!G260+'SA9'!G272+'SA9'!G284+'SA9'!G296","v":0},{"$f":"'SA9'!H260+'SA9'!H272+'SA9'!H284+'SA9'!H296","v":0},{"$f":"'SA9'!I260+'SA9'!I272+'SA9'!I284+'SA9'!I296","v":0},{"$f":"'SA9'!J260+'SA9'!J272+'SA9'!J284+'SA9'!J296","v":0},{"$f":"'SA9'!K260+'SA9'!K272+'SA9'!K284+'SA9'!K296","v":0},{"$f":"'SA9'!L260+'SA9'!L272+'SA9'!L284+'SA9'!L296","v":0},{"$f":"'SA9'!M260+'SA9'!M272+'SA9'!M284+'SA9'!M296","v":0}]
["Total cost of FBS provided  ",8,{"$f":"SUM(C55:C59)","v":0},0,0,0,0,0,0,0,0]
[]
["Highest level of free service provided per household"]
["Property rates (R value threshold)",null,0,0,0,0,0,0,0,0,0,null,null,null,null,null,null,null,null,null,null,null,null,null,null,null,null,null,null,null,1701,"A10",{"$f":"_xlfn.CONCAT(AF63,AE63)","v":"A101701"}]
["Water (kilolitres per household per month)",null,0,0,0,0,0,0,0,0,0,null,null,null,null,null,null,null,null,null,null,null,null,null,null,null,null,null,null,null,1702,"A10",{"$f":"_xlfn.CONCAT(AF64,AE64)","v":"A101702"}]
["Sanitation (kilolitres per household per month)",null,0,0,0,0,0,0,0,0,0,null,null,null,null,null,null,null,null,null,null,null,null,null,null,null,null,null,null,null,1703,"A10","A101703"]
["Sanitation (Rand per household per month)",null,0,0,0,0,0,0,0,0,0,null,null,null,null,null,null,null,null,null,null,null,null,null,null,null,null,null,null,null,1704,"A10","A101704"]
["Electricity (kwh per household per month)",null,0,0,0,0,0,0,0,0,0,null,null,null,null,null,null,null,null,null,null,null,null,null,null,null,null,null,null,null,1705,"A10","A101705"]
["Refuse (average litres per week)",null,0,0,0,0,0,0,0,0,0,null,null,null,null,null,null,null,null,null,null,null,null,null,null,null,null,null,null,null,1706,"A10","A101706"]
["Revenue  cost of subsidised services provided (R'000)",9,null,null,null,null,null,null,null,null,null,null,null,null,null,null,null,null,null,null,null,null,null,null,null,null,null,null,null,null,null,"A10","A10"]
["Property rates (tariff adjustment) ( impermissable values per section 17 of MPRA)",null,0,0,0,0,0,0,0,0,0,null,null,null,null,null,null,null,null,null,null,null,null,null,null,null,null,null,null,null,1708,"A10","A101708"]
["Property rates  exemptions, reductions and rebates and impermissable values in excess of section 17 of MPRA)",null,{"$f":"'SA1'!C9","v":0},{"$f":"'SA1'!D9","v":0},{"$f":"'SA1'!E9","v":0},{"$f":"'SA1'!F9","v":0},{"$f":"'SA1'!G9","v":0},{"$f":"'SA1'!H9","v":0},{"$f":"'SA1'!J9","v":0},{"$f":"'SA1'!K9","v":0},{"$f":"'SA1'!L9","v":0},null,null,null,null,null,null,null,null,null,null,null,null,null,null,null,null,null,null,null,null,"A10","A10"]
["Water (in excess of 6 kilolitres per indigent household per month)",null,{"$f":"'SA1'!C21","v":0},{"$f":"'SA1'!D21","v":0},{"$f":"'SA1'!E21","v":0},{"$f":"'SA1'!F21","v":0},{"$f":"'SA1'!G21","v":0},{"$f":"'SA1'!H21","v":0},{"$f":"'SA1'!J21","v":0},{"$f":"'SA1'!K21","v":0},{"$f":"'SA1'!L21","v":0},null,null,null,null,null,null,null,null,null,null,null,null,null,null,null,null,null,null,null,null,"A10","A10"]
["Sanitation (in excess of free sanitation service to indigent households)",null,{"$f":"'SA1'!C27","v":0},{"$f":"'SA1'!D27","v":0},{"$f":"'SA1'!E27","v":0},{"$f":"'SA1'!F27","v":0},{"$f":"'SA1'!G27","v":0},{"$f":"'SA1'!H27","v":0},{"$f":"'SA1'!J27","v":0},{"$f":"'SA1'!K27","v":0},{"$f":"'SA1'!L27","v":0},null,null,null,null,null,null,null,null,null,null,null,null,null,null,null,null,null,null,null,null,"A10","A10"]
["Electricity/other energy (in excess of 50 kwh per indigent household per month)",null,{"$f":"'SA1'!C15","v":0},{"$f":"'SA1'!D15","v":0},{"$f":"'SA1'!E15","v":0},{"$f":"'SA1'!F15","v":0},{"$f":"'SA1'!G15","v":0},{"$f":"'SA1'!H15","v":0},{"$f":"'SA1'!J15","v":0},{"$f":"'SA1'!K15","v":0},{"$f":"'SA1'!L15","v":0},null,null,null,null,null,null,null,null,null,null,null,null,null,null,null,null,null,null,null,null,"A10","A10"]
["Refuse (in excess of one removal a week for indigent households)",null,{"$f":"'SA1'!C34","v":0},{"$f":"'SA1'!D34","v":0},{"$f":"'SA1'!E34","v":0},{"$f":"'SA1'!F34","v":0},{"$f":"'SA1'!G34","v":0},{"$f":"'SA1'!H34","v":0},{"$f":"'SA1'!J34","v":0},{"$f":"'SA1'!K34","v":0},{"$f":"'SA1'!L34","v":0},null,null,null,null,null,null,null,null,null,null,null,null,null,null,null,null,null,null,null,null,"A10","A10"]
["Municipal Housing - rental rebates",null,0,0,0,0,0,0,0,0,0,{"$f":"SUMIFS(NFD!P:P,NFD!D:D,SA12b!AE:AE,NFD!A:A,SA12b!AF:AF)","v":0},{"$f":"SUMIFS(NFD!Q:Q,NFD!D:D,SA12b!AE:AE,NFD!A:A,SA12b!AF:AF)","v":0},null,null,null,null,null,null,null,null,null,null,null,null,null,null,null,null,null,1714,"A10","A101714"]
["Housing - top structure subsidies",6,0,0,0,0,0,0,0,0,0,null,null,null,null,null,null,null,null,null,null,null,null,null,null,null,null,null,null,null,1715,"A10","A101715"]
["Other",null,0,0,0,0,0,0,0,0,0,null,null,null,null,null,null,null,null,null,null,null,null,null,null,null,null,null,null,null,1716,"A10","A101716"]
["Total revenue cost of subsidised services provided ",null,{"$f":"SUM(C70:C78)","v":0},{"$f":"SUM(D70:D78)","v":0},0,0,0,0,0,{"$f":"SUM(J70:J78)","v":0},{"$f":"SUM(K70:K78)","v":0}]
[{"$f":"head27a","v":"References"}]
["1. Include services provided by another entity; e.g. Eskom"]
["2. Stand distance <= 200m from dwelling"]
["3. Stand distance > 200m from dwelling"]
["4. Borehole, spring, rain-water tank etc."]
["5. Must agree to total number of households in municipal area (informal settlements receiving services must be included)"]
["6. Include value of subsidy provided by municipality above provincial subsidy level"]
["7. Show number of households receiving at least these levels of services completely free (informal settlements must be included)"]
["8. Must reflect the cost to the municipality of providing the Free Basic Service"]
["9. Reflect the cost of free or subsidised services in excess to the National policy that are not funded from the Free Basic Services component of the Equitable Share"]

{"sheet":"SA1","index":44,"n_rows":181,"n_cols":30,"rows_kept":181,"cut":false,"hidden":false,"merged":[[1,9,1,11],[1,5,1,8],[1,0,2,0],[1,1,2,1]]}
[{"$f":"muni&\" - \"&TableA1","v":"LIM331 Greater Giyani - Supporting Table SA1 Supportinging detail to 'Budgeted Financial Performance'"}]
[{"$f":"desc","v":"Description"},{"$f":"head27","v":"Ref"},{"$f":"head1b","v":"2019/20"},{"$f":"head1A","v":"2020/21"},{"$f":"Head1","v":"2021/22"},{"$f":"Head2","v":"Current Year 2022/23"},null,null,null,{"$f":"Head3","v":"2023/24 Medium Term Revenue & Expenditure Framework"}]
[null,null,{"$f":"Head5","v":"Audited Outcome"},{"$f":"Head5","v":"Audited Outcome"},{"$f":"Head5","v":"Audited Outcome"},{"$f":"Head6","v":"Original Budget"},{"$f":"Head7","v":"Adjusted Budget"},{"$f":"Head8","v":"Full Year Forecast"},{"$f":"Head5b","v":"Pre-audit outcome"},{"$f":"Head9","v":"Budget Year 2023/24"},{"$f":"Head10","v":"Budget Year +1 2024/25"},{"$f":"Head11","v":"Budget Year +2 2025/26"}]
["R thousand"]
["REVENUE ITEMS:"]
["Non-exchange revenue by source"]
[{"$f":"'A4-FinPerf RE'!A5","v":"Exchange Revenue"},6]
["Total Property Rates",null,{"$f":"SUMIFS(Sheet1!S71_PPPYearAmount,Sheet1!S71_A4Code,$AC:$AC,Sheet1!S71_ProjectType,$AD:$AD)","v":57482800},{"$f":"SUMIFS(Sheet1!S71_PPYearAmount,Sheet1!S71_A4Code,$AC:$AC,Sheet1!S71_ProjectType,$AD:$AD)","v":67066301},{"$f":"SUMIFS(Sheet1!S71_PYearAmount,Sheet1!S71_A4Code,$AC:$AC,Sheet1!S71_ProjectType,$AD:$AD)","v":66778018},{"$f":"-SUMIFS(Sheet1!S71_OriginalBudAmnt,Sheet1!S71_A4Code,$AC:$AC,Sheet1!S71_ProjectType,$AD:$AD)","v":79881822},{"$f":"-SUMIFS(Sheet1!S71_AdjustmentBudAmnt,Sheet1!S71_A4Code,$AC:$AC,Sheet1!S71_ProjectType,$AD:$AD)","v":75324368},{"$f":"-SUMIFS(Sheet1!S71_AdjustmentBudAmnt,Sheet1!S71_A4Code,$AC:$AC,Sheet1!S71_ProjectType,$AD:$AD)","v":75324368},{"$f":"H8","v":75324368},{"$f":"SUMIFS(Sheet1!S71_ASBudgetAmount,Sheet1!S71_A4Code,$AC:$AC,Sheet1!S71_ProjectType,$AD:$AD)","v":79316562},{"$f":"SUMIFS(Sheet1!S71_OY1BudgetAmount,Sheet1!S71_A4Code,$AC:$AC,Sheet1!S71_ProjectType,$AD:$AD)","v":83203074},{"$f":"SUMIFS(Sheet1!S71_OY2BudgetAmount,Sheet1!S71_A4Code,$AC:$AC,Sheet1!S71_ProjectType,$AD:$AD)","v":87113617},null,null,null,null,null,null,null,null,null,null,null,null,null,null,null,null,"1800","D"]
["Less Revenue Foregone (exemptions, reductions and rebates and impermissable values in excess of section 17 of MPRA)",null,{"$f":"SUMIFS(Sheet1!S71_PPPYearAmount,Sheet1!S71_A4Code,$AC:$AC,Sheet1!S71_ProjectType,$AD:$AD)","v":0},{"$f":"SUMIFS(Sheet1!S71_PPYearAmount,Sheet1!S71_A4Code,$AC:$AC,Sheet1!S71_ProjectType,$AD:$AD)","v":0},{"$f":"SUMIFS(Sheet1!S71_PYearAmount,Sheet1!S71_A4Code,$AC:$AC,Sheet1!S71_ProjectType,$AD:$AD)","v":0},{"$f":"SUMIFS(Sheet1!S71_OriginalBudAmnt,Sheet1!S71_A4Code,$AC:$AC,Sheet1!S71_ProjectType,$AD:$AD)","v":0},{"$f":"SUMIFS(Sheet1!S71_AdjustmentBudAmnt,Sheet1!S71_A4Code,$AC:$AC,Sheet1!S71_ProjectType,$AD:$AD)","v":0},{"$f":"SUMIFS(Sheet1!S71_AdjustmentBudAmnt,Sheet1!S71_A4Code,$AC:$AC,Sheet1!S71_ProjectType,$AD:$AD)","v":0},{"$f":"H9","v":0},{"$f":"SUMIFS(Sheet1!S71_ASBudgetAmount,Sheet1!S71_A4Code,$AC:$AC,Sheet1!S71_ProjectType,$AD:$AD)","v":0},{"$f":"SUMIFS(Sheet1!S71_OY1BudgetAmount,Sheet1!S71_A4Code,$AC:$AC,Sheet1!S71_ProjectType,$AD:$AD)","v":0},{"$f":"SUMIFS(Sheet1!S71_OY2BudgetAmount,Sheet1!S71_A4Code,$AC:$AC,Sheet1!S71_ProjectType,$AD:$AD)","v":0},null,null,null,null,null,null,null,null,null,null,null,null,null,null,null,null,"1800","O"]
["Net Property Rates",null,{"$f":"C8-C9","v":57482800},{"$f":"D8-D9","v":67066301},66778018,79881822,75324368,75324368,75324368,79316562,83203074,87113617]
[]
["Exchange revenue service charges"]
[{"$f":"'A4-FinPerf RE'!A6","v":"Service charges - Electricity"},6]
[{"$f":"\"Total \"&A13","v":"Total Service charges - Electricity"},null,{"$f":"SUMIFS(Sheet1!S71_PPPYearAmount,Sheet1!S71_A4Code,$AC:$AC,Sheet1!S71_ProjectType,$AD:$AD)","v":0},{"$f":"SUMIFS(Sheet1!S71_PPYearAmount,Sheet1!S71_A4Code,$AC:$AC,Sheet1!S71_ProjectType,$AD:$AD)","v":0},{"$f":"SUMIFS(Sheet1!S71_PYearAmount,Sheet1!S71_A4Code,$AC:$AC,Sheet1!S71_ProjectType,$AD:$AD)","v":0},{"$f":"-SUMIFS(Sheet1!S71_OriginalBudAmnt,Sheet1!S71_A4Code,$AC:$AC,Sheet1!S71_ProjectType,$AD:$AD)","v":0},{"$f":"-SUMIFS(Sheet1!S71_AdjustmentBudAmnt,Sheet1!S71_A4Code,$AC:$AC,Sheet1!S71_ProjectType,$AD:$AD)","v":0},{"$f":"-SUMIFS(Sheet1!S71_AdjustmentBudAmnt,Sheet1!S71_A4Code,$AC:$AC,Sheet1!S71_ProjectType,$AD:$AD)","v":0},{"$f":"-SUMIFS(Sheet1!S71_AdjustmentBudAmnt,Sheet1!S71_A4Code,$AC:$AC,Sheet1!S71_ProjectType,$AD:$AD)","v":0},{"$f":"-SUMIFS(Sheet1!S71_ASBudgetAmount,Sheet1!S71_A4Code,$AC:$AC,Sheet1!S71_ProjectType,$AD:$AD)","v":0},{"$f":"-SUMIFS(Sheet1!S71_OY1BudgetAmount,Sheet1!S71_A4Code,$AC:$AC,Sheet1!S71_ProjectType,$AD:$AD)","v":0},{"$f":"-SUMIFS(Sheet1!S71_OY2BudgetAmount,Sheet1!S71_A4Code,$AC:$AC,Sheet1!S71_ProjectType,$AD:$AD)","v":0},null,null,null,null,null,null,null,null,null,null,null,null,null,null,null,null,"0300","D"]
["Less Revenue Foregone (in excess of 50 kwh per indigent household per month)",null,{"$f":"SUMIFS(Sheet1!S71_PPPYearAmount,Sheet1!S71_A4Code,$AC:$AC,Sheet1!S71_ProjectType,$AD:$AD)","v":0},{"$f":"SUMIFS(Sheet1!S71_PPYearAmount,Sheet1!S71_A4Code,$AC:$AC,Sheet1!S71_ProjectType,$AD:$AD)","v":0},{"$f":"SUMIFS(Sheet1!S71_PYearAmount,Sheet1!S71_A4Code,$AC:$AC,Sheet1!S71_ProjectType,$AD:$AD)","v":0},{"$f":"SUMIFS(Sheet1!S71_OriginalBudAmnt,Sheet1!S71_A4Code,$AC:$AC,Sheet1!S71_ProjectType,$AD:$AD)","v":0},{"$f":"SUMIFS(Sheet1!S71_AdjustmentBudAmnt,Sheet1!S71_A4Code,$AC:$AC,Sheet1!S71_ProjectType,$AD:$AD)","v":0},{"$f":"SUMIFS(Sheet1!S71_AdjustmentBudAmnt,Sheet1!S71_A4Code,$AC:$AC,Sheet1!S71_ProjectType,$AD:$AD)","v":0},{"$f":"SUMIFS(Sheet1!S71_AdjustmentBudAmnt,Sheet1!S71_A4Code,$AC:$AC,Sheet1!S71_ProjectType,$AD:$AD)","v":0},{"$f":"SUMIFS(Sheet1!S71_ASBudgetAmount,Sheet1!S71_A4Code,$AC:$AC,Sheet1!S71_ProjectType,$AD:$AD)","v":0},{"$f":"SUMIFS(Sheet1!S71_OY1BudgetAmount,Sheet1!S71_A4Code,$AC:$AC,Sheet1!S71_ProjectType,$AD:$AD)","v":0},{"$f":"SUMIFS(Sheet1!S71_OY2BudgetAmount,Sheet1!S71_A4Code,$AC:$AC,Sheet1!S71_ProjectType,$AD:$AD)","v":0},null,null,null,null,null,null,null,null,null,null,null,null,null,null,null,null,"0300","O"]
["Less Cost of Free Basis Services (50 kwh per indigent household per month)",null,{"$f":"'SA9'!E250","v":0},{"$f":"'SA9'!F250","v":0},{"$f":"'SA9'!G250","v":0},{"$f":"'SA9'!H250","v":0},{"$f":"'SA9'!I250","v":0},{"$f":"'SA9'!J250","v":0},null,{"$f":"'SA9'!K250","v":0},{"$f":"'SA9'!L250","v":0},{"$f":"'SA9'!M250","v":0}]
[{"$f":"\"Net \"& A13","v":"Net Service charges - Electricity"},null,{"$f":"C14-C15-C16","v":0},{"$f":"D14-D15-D16","v":0},0,0,0,0,0,0,0,0]
[]
[{"$f":"'A4-FinPerf RE'!A7","v":"Service charges - Water"},6]
[{"$f":"\"Total \"&A19","v":"Total Service charges - Water"},null,{"$f":"SUMIFS(Sheet1!S71_PPPYearAmount,Sheet1!S71_A4Code,$AC:$AC,Sheet1!S71_ProjectType,$AD:$AD)","v":0},{"$f":"SUMIFS(Sheet1!S71_PPYearAmount,Sheet1!S71_A4Code,$AC:$AC,Sheet1!S71_ProjectType,$AD:$AD)","v":7620},{"$f":"SUMIFS(Sheet1!S71_PYearAmount,Sheet1!S71_A4Code,$AC:$AC,Sheet1!S71_ProjectType,$AD:$AD)","v":0},{"$f":"-SUMIFS(Sheet1!S71_OriginalBudAmnt,Sheet1!S71_A4Code,$AC:$AC,Sheet1!S71_ProjectType,$AD:$AD)","v":0},{"$f":"-SUMIFS(Sheet1!S71_AdjustmentBudAmnt,Sheet1!S71_A4Code,$AC:$AC,Sheet1!S71_ProjectType,$AD:$AD)","v":0},{"$f":"-SUMIFS(Sheet1!S71_AdjustmentBudAmnt,Sheet1!S71_A4Code,$AC:$AC,Sheet1!S71_ProjectType,$AD:$AD)","v":0},{"$f":"-SUMIFS(Sheet1!S71_AdjustmentBudAmnt,Sheet1!S71_A4Code,$AC:$AC,Sheet1!S71_ProjectType,$AD:$AD)","v":0},{"$f":"-SUMIFS(Sheet1!S71_ASBudgetAmount,Sheet1!S71_A4Code,$AC:$AC,Sheet1!S71_ProjectType,$AD:$AD)","v":0},{"$f":"-SUMIFS(Sheet1!S71_OY1BudgetAmount,Sheet1!S71_A4Code,$AC:$AC,Sheet1!S71_ProjectType,$AD:$AD)","v":0},{"$f":"-SUMIFS(Sheet1!S71_OY2BudgetAmount,Sheet1!S71_A4Code,$AC:$AC,Sheet1!S71_ProjectType,$AD:$AD)","v":0},null,null,null,null,null,null,null,null,null,null,null,null,null,null,null,null,"0400","D"]
["Less Revenue Foregone (in excess of 6 kilolitres per indigent household per month)",null,{"$f":"SUMIFS(Sheet1!S71_PPPYearAmount,Sheet1!S71_A4Code,$AC:$AC,Sheet1!S71_ProjectType,$AD:$AD)","v":0},{"$f":"SUMIFS(Sheet1!S71_PPYearAmount,Sheet1!S71_A4Code,$AC:$AC,Sheet1!S71_ProjectType,$AD:$AD)","v":0},{"$f":"SUMIFS(Sheet1!S71_PYearAmount,Sheet1!S71_A4Code,$AC:$AC,Sheet1!S71_ProjectType,$AD:$AD)","v":0},{"$f":"SUMIFS(Sheet1!S71_OriginalBudAmnt,Sheet1!S71_A4Code,$AC:$AC,Sheet1!S71_ProjectType,$AD:$AD)","v":0},{"$f":"SUMIFS(Sheet1!S71_AdjustmentBudAmnt,Sheet1!S71_A4Code,$AC:$AC,Sheet1!S71_ProjectType,$AD:$AD)","v":0},{"$f":"SUMIFS(Sheet1!S71_AdjustmentBudAmnt,Sheet1!S71_A4Code,$AC:$AC,Sheet1!S71_ProjectType,$AD:$AD)","v":0},{"$f":"SUMIFS(Sheet1!S71_AdjustmentBudAmnt,Sheet1!S71_A4Code,$AC:$AC,Sheet1!S71_ProjectType,$AD:$AD)","v":0},{"$f":"SUMIFS(Sheet1!S71_ASBudgetAmount,Sheet1!S71_A4Code,$AC:$AC,Sheet1!S71_ProjectType,$AD:$AD)","v":0},{"$f":"SUMIFS(Sheet1!S71_OY1BudgetAmount,Sheet1!S71_A4Code,$AC:$AC,Sheet1!S71_ProjectType,$AD:$AD)","v":0},{"$f":"SUMIFS(Sheet1!S71_OY2BudgetAmount,Sheet1!S71_A4Code,$AC:$AC,Sheet1!S71_ProjectType,$AD:$AD)","v":0},null,null,null,null,null,null,null,null,null,null,null,null,null,null,null,null,"0400","O"]
["Less Cost of Free Basis Services (6 kilolitres per indigent household per month)",null,{"$f":"'SA9'!E262","v":0},{"$f":"'SA9'!F262","v":0},{"$f":"'SA9'!G262","v":0},{"$f":"'SA9'!H262","v":0},{"$f":"'SA9'!I262","v":0},{"$f":"'SA9'!J262","v":0},null,{"$f":"'SA9'!K262","v":0},{"$f":"'SA9'!L262","v":0},{"$f":"'SA9'!M262","v":0}]
[{"$f":"\"Net \"& A19","v":"Net Service charges - Water"},null,{"$f":"C20-C21-C22","v":0},{"$f":"D20-D21-D22","v":7620},0,0,0,0,0,0,0,0]
[]
[{"$f":"'A4-FinPerf RE'!A8","v":"Service charges - Waste Water Management"}]
[{"$f":"\"Total \"&A25","v":"Total Service charges - Waste Water Management"},null,{"$f":"SUMIFS(Sheet1!S71_PPPYearAmount,Sheet1!S71_A4Code,$AC:$AC,Sheet1!S71_ProjectType,$AD:$AD)","v":0},{"$f":"SUMIFS(Sheet1!S71_PPYearAmount,Sheet1!S71_A4Code,$AC:$AC,Sheet1!S71_ProjectType,$AD:$AD)","v":3355},{"$f":"SUMIFS(Sheet1!S71_PYearAmount,Sheet1!S71_A4Code,$AC:$AC,Sheet1!S71_ProjectType,$AD:$AD)","v":0},{"$f":"-SUMIFS(Sheet1!S71_OriginalBudAmnt,Sheet1!S71_A4Code,$AC:$AC,Sheet1!S71_ProjectType,$AD:$AD)","v":0},{"$f":"-SUMIFS(Sheet1!S71_AdjustmentBudAmnt,Sheet1!S71_A4Code,$AC:$AC,Sheet1!S71_ProjectType,$AD:$AD)","v":0},{"$f":"-SUMIFS(Sheet1!S71_AdjustmentBudAmnt,Sheet1!S71_A4Code,$AC:$AC,Sheet1!S71_ProjectType,$AD:$AD)","v":0},{"$f":"-SUMIFS(Sheet1!S71_AdjustmentBudAmnt,Sheet1!S71_A4Code,$AC:$AC,Sheet1!S71_ProjectType,$AD:$AD)","v":0},{"$f":"-SUMIFS(Sheet1!S71_ASBudgetAmount,Sheet1!S71_A4Code,$AC:$AC,Sheet1!S71_ProjectType,$AD:$AD)","v":0},{"$f":"-SUMIFS(Sheet1!S71_OY1BudgetAmount,Sheet1!S71_A4Code,$AC:$AC,Sheet1!S71_ProjectType,$AD:$AD)","v":0},{"$f":"-SUMIFS(Sheet1!S71_OY2BudgetAmount,Sheet1!S71_A4Code,$AC:$AC,Sheet1!S71_ProjectType,$AD:$AD)","v":0},null,null,null,null,null,null,null,null,null,null,null,null,null,null,null,null,"0500","D"]
["Less Revenue Foregone (in excess of free sanitation service to indigent households)",null,{"$f":"SUMIFS(Sheet1!S71_PPPYearAmount,Sheet1!S71_A4Code,$AC:$AC,Sheet1!S71_ProjectType,$AD:$AD)","v":0},{"$f":"SUMIFS(Sheet1!S71_PPYearAmount,Sheet1!S71_A4Code,$AC:$AC,Sheet1!S71_ProjectType,$AD:$AD)","v":0},{"$f":"SUMIFS(Sheet1!S71_PYearAmount,Sheet1!S71_A4Code,$AC:$AC,Sheet1!S71_ProjectType,$AD:$AD)","v":0},{"$f":"SUMIFS(Sheet1!S71_OriginalBudAmnt,Sheet1!S71_A4Code,$AC:$AC,Sheet1!S71_ProjectType,$AD:$AD)","v":0},{"$f":"SUMIFS(Sheet1!S71_AdjustmentBudAmnt,Sheet1!S71_A4Code,$AC:$AC,Sheet1!S71_ProjectType,$AD:$AD)","v":0},{"$f":"SUMIFS(Sheet1!S71_AdjustmentBudAmnt,Sheet1!S71_A4Code,$AC:$AC,Sheet1!S71_ProjectType,$AD:$AD)","v":0},{"$f":"SUMIFS(Sheet1!S71_AdjustmentBudAmnt,Sheet1!S71_A4Code,$AC:$AC,Sheet1!S71_ProjectType,$AD:$AD)","v":0},{"$f":"SUMIFS(Sheet1!S71_ASBudgetAmount,Sheet1!S71_A4Code,$AC:$AC,Sheet1!S71_ProjectType,$AD:$AD)","v":0},{"$f":"SUMIFS(Sheet1!S71_OY1BudgetAmount,Sheet1!S71_A4Code,$AC:$AC,Sheet1!S71_ProjectType,$AD:$AD)","v":0},{"$f":"SUMIFS(Sheet1!S71_OY2BudgetAmount,Sheet1!S71_A4Code,$AC:$AC,Sheet1!S71_ProjectType,$AD:$AD)","v":0},null,null,null,null,null,null,null,null,null,null,null,null,null,null,null,null,"0500.","O"]
["Less Cost of Free Basis Services (free sanitation service to indigent households)",null,{"$f":"'SA9'!E274","v":0},{"$f":"'SA9'!F274","v":0},{"$f":"'SA9'!G274","v":0},{"$f":"'SA9'!H274","v":0},{"$f":"'SA9'!I274","v":0},{"$f":"'SA9'!J274","v":0},null,{"$f":"'SA9'!K274","v":0},{"$f":"'SA9'!L274","v":0},{"$f":"'SA9'!M274","v":0}]
[{"$f":"\"Net \"& A25","v":"Net Service charges - Waste Water Management"},null,{"$f":"C26-C27-C28","v":0},{"$f":"D26-D27-D28","v":3355},0,0,0,0,0,0,0,0]
[]
[{"$f":"'A4-FinPerf RE'!A9","v":"Service charges - Waste Management"},6]
["Total refuse removal revenue",null,{"$f":"SUMIFS(Sheet1!S71_PPPYearAmount,Sheet1!S71_A4Code,$AC:$AC,Sheet1!S71_ProjectType,$AD:$AD)","v":6396249},{"$f":"SUMIFS(Sheet1!S71_PPYearAmount,Sheet1!S71_A4Code,$AC:$AC,Sheet1!S71_ProjectType,$AD:$AD)","v":7803796},{"$f":"SUMIFS(Sheet1!S71_PYearAmount,Sheet1!S71_A4Code,$AC:$AC,Sheet1!S71_ProjectType,$AD:$AD)","v":7972320},{"$f":"-SUMIFS(Sheet1!S71_OriginalBudAmnt,Sheet1!S71_A4Code,$AC:$AC,Sheet1!S71_ProjectType,$AD:$AD)","v":11100000},{"$f":"-SUMIFS(Sheet1!S71_AdjustmentBudAmnt,Sheet1!S71_A4Code,$AC:$AC,Sheet1!S71_ProjectType,$AD:$AD)","v":8950000},{"$f":"-SUMIFS(Sheet1!S71_AdjustmentBudAmnt,Sheet1!S71_A4Code,$AC:$AC,Sheet1!S71_ProjectType,$AD:$AD)","v":8950000},{"$f":"H32","v":8950000},{"$f":"SUMIFS(Sheet1!S71_ASBudgetAmount,Sheet1!S71_A4Code,$AC:$AC,Sheet1!S71_ProjectType,$AD:$AD)","v":9424350},{"$f":"SUMIFS(Sheet1!S71_OY1BudgetAmount,Sheet1!S71_A4Code,$AC:$AC,Sheet1!S71_ProjectType,$AD:$AD)","v":9886144},{"$f":"SUMIFS(Sheet1!S71_OY2BudgetAmount,Sheet1!S71_A4Code,$AC:$AC,Sheet1!S71_ProjectType,$AD:$AD)","v":10350792},null,null,null,null,null,null,null,null,null,null,null,null,null,null,null,null,"0600","D"]
["Total landfill revenue",null,{"$f":"SUMIFS(Sheet1!S71_PPPYearAmount,Sheet1!S71_A4Code,$AC:$AC,Sheet1!S71_ProjectType,$AD:$AD)","v":0},{"$f":"SUMIFS(Sheet1!S71_PPYearAmount,Sheet1!S71_A4Code,$AC:$AC,Sheet1!S71_ProjectType,$AD:$AD)","v":0},{"$f":"SUMIFS(Sheet1!S71_PYearAmount,Sheet1!S71_A4Code,$AC:$AC,Sheet1!S71_ProjectType,$AD:$AD)","v":0},{"$f":"-SUMIFS(Sheet1!S71_OriginalBudAmnt,Sheet1!S71_A4Code,$AC:$AC,Sheet1!S71_ProjectType,$AD:$AD)","v":0},{"$f":"-SUMIFS(Sheet1!S71_AdjustmentBudAmnt,Sheet1!S71_A4Code,$AC:$AC,Sheet1!S71_ProjectType,$AD:$AD)","v":0},{"$f":"-SUMIFS(Sheet1!S71_AdjustmentBudAmnt,Sheet1!S71_A4Code,$AC:$AC,Sheet1!S71_ProjectType,$AD:$AD)","v":0},0,{"$f":"-SUMIFS(Sheet1!S71_ASBudgetAmount,Sheet1!S71_A4Code,$AC:$AC,Sheet1!S71_ProjectType,$AD:$AD)","v":0},{"$f":"-SUMIFS(Sheet1!S71_OY1BudgetAmount,Sheet1!S71_A4Code,$AC:$AC,Sheet1!S71_ProjectType,$AD:$AD)","v":0},{"$f":"-SUMIFS(Sheet1!S71_OY2BudgetAmount,Sheet1!S71_A4Code,$AC:$AC,Sheet1!S71_ProjectType,$AD:$AD)","v":0}]
["Less Revenue Foregone (in excess of one removal a week to indigent households)",null,{"$f":"SUMIFS(Sheet1!S71_PPPYearAmount,Sheet1!S71_A4Code,$AC:$AC,Sheet1!S71_ProjectType,$AD:$AD)","v":0},{"$f":"SUMIFS(Sheet1!S71_PPYearAmount,Sheet1!S71_A4Code,$AC:$AC,Sheet1!S71_ProjectType,$AD:$AD)","v":0},{"$f":"SUMIFS(Sheet1!S71_PYearAmount,Sheet1!S71_A4Code,$AC:$AC,Sheet1!S71_ProjectType,$AD:$AD)","v":0},{"$f":"SUMIFS(Sheet1!S71_OriginalBudAmnt,Sheet1!S71_A4Code,$AC:$AC,Sheet1!S71_ProjectType,$AD:$AD)","v":0},{"$f":"SUMIFS(Sheet1!S71_AdjustmentBudAmnt,Sheet1!S71_A4Code,$AC:$AC,Sheet1!S71_ProjectType,$AD:$AD)","v":0},{"$f":"SUMIFS(Sheet1!S71_AdjustmentBudAmnt,Sheet1!S71_A4Code,$AC:$AC,Sheet1!S71_ProjectType,$AD:$AD)","v":0},0,{"$f":"SUMIFS(Sheet1!S71_ASBudgetAmount,Sheet1!S71_A4Code,$AC:$AC,Sheet1!S71_ProjectType,$AD:$AD)","v":0},{"$f":"SUMIFS(Sheet1!S71_OY1BudgetAmount,Sheet1!S71_A4Code,$AC:$AC,Sheet1!S71_ProjectType,$AD:$AD)","v":0},{"$f":"SUMIFS(Sheet1!S71_OY2BudgetAmount,Sheet1!S71_A4Code,$AC:$AC,Sheet1!S71_ProjectType,$AD:$AD)","v":0},null,null,null,null,null,null,null,null,null,null,null,null,null,null,null,null,"0600","O"]
["Less Cost of Free Basis Services  (removed once a week to indigent households)",null,{"$f":"'SA9'!E286","v":0},{"$f":"'SA9'!F286","v":0},{"$f":"'SA9'!G286","v":0},{"$f":"'SA9'!H286","v":0},{"$f":"'SA9'!I286","v":0},{"$f":"'SA9'!J286","v":0},null,{"$f":"'SA9'!K286","v":0},{"$f":"'SA9'!L286","v":0},{"$f":"'SA9'!M286","v":0}]
[{"$f":"\"Net \"& A31","v":"Net Service charges - Waste Management"},null,{"$f":"SUM(C32:C33)-C34-C35","v":6396249},{"$f":"SUM(D32:D33)-D34-D35","v":7803796},7972320,11100000,8950000,8950000,8950000,9424350,9886144,10350792]
[]
[]
[]
[]
[]
[]
[]
[]
[]
[]
[]
[]
[]
[]
["EXPENDITURE ITEMS:"]
[{"$f":"'A4-FinPerf RE'!A34","v":"Employee related costs"}]
["Basic Salaries and Wages",2,{"$f":"SUMIFS(Sheet1!S71_PPPYearAmount,Sheet1!S71_SA1SubCode,$AC:$AC)","v":87916824},{"$f":"SUMIFS(Sheet1!S71_PPYearAmount,Sheet1!S71_SA1SubCode,$AC:$AC)","v":96833136},{"$f":"SUMIFS(Sheet1!S71_PYearAmount,Sheet1!S71_SA1SubCode,$AC:$AC)","v":100250969},{"$f":"SUMIFS(Sheet1!S71_OriginalBudAmnt,Sheet1!S71_SA1SubCode,$AC:$AC)","v":123755186},{"$f":"SUMIFS(Sheet1!S71_AdjustmentBudAmnt,Sheet1!S71_SA1SubCode,$AC:$AC)","v":107597359},{"$f":"SUMIFS(Sheet1!S71_AdjustmentBudAmnt,Sheet1!S71_SA1SubCode,$AC:$AC)","v":107597359},{"$f":"H53","v":107597359},{"$f":"SUMIFS(Sheet1!S71_ASBudgetAmount,Sheet1!S71_SA1SubCode,$AC:$AC)","v":129091106},{"$f":"SUMIFS(Sheet1!S71_OY1BudgetAmount,Sheet1!S71_SA1SubCode,$AC:$AC)","v":131966972},{"$f":"SUMIFS(Sheet1!S71_OY2BudgetAmount,Sheet1!S71_SA1SubCode,$AC:$AC)","v":138028799},null,null,null,null,null,null,null,null,null,null,null,null,null,null,null,null,"2001"]
["Pension and UIF Contributions",null,null,{"$f":"SUMIFS(Sheet1!S71_PPYearAmount,Sheet1!S71_SA1SubCode,$AC:$AC)","v":17747154},{"$f":"SUMIFS(Sheet1!S71_PYearAmount,Sheet1!S71_SA1SubCode,$AC:$AC)","v":18119834},{"$f":"SUMIFS(Sheet1!S71_OriginalBudAmnt,Sheet1!S71_SA1SubCode,$AC:$AC)","v":25254435},{"$f":"SUMIFS(Sheet1!S71_AdjustmentBudAmnt,Sheet1!S71_SA1SubCode,$AC:$AC)","v":20714153},{"$f":"SUMIFS(Sheet1!S71_AdjustmentBudAmnt,Sheet1!S71_SA1SubCode,$AC:$AC)","v":20714153},20714153,{"$f":"SUMIFS(Sheet1!S71_ASBudgetAmount,Sheet1!S71_SA1SubCode,$AC:$AC)","v":26524145},{"$f":"SUMIFS(Sheet1!S71_OY1BudgetAmount,Sheet1!S71_SA1SubCode,$AC:$AC)","v":27794835},{"$f":"SUMIFS(Sheet1!S71_OY2BudgetAmount,Sheet1!S71_SA1SubCode,$AC:$AC)","v":29073251},null,null,null,null,null,null,null,null,null,null,null,null,null,null,null,null,"2002"]
["Medical Aid Contributions",null,null,{"$f":"SUMIFS(Sheet1!S71_PPYearAmount,Sheet1!S71_SA1SubCode,$AC:$AC)","v":5754692},{"$f":"SUMIFS(Sheet1!S71_PYearAmount,Sheet1!S71_SA1SubCode,$AC:$AC)","v":6597603},{"$f":"SUMIFS(Sheet1!S71_OriginalBudAmnt,Sheet1!S71_SA1SubCode,$AC:$AC)","v":6585617},{"$f":"SUMIFS(Sheet1!S71_AdjustmentBudAmnt,Sheet1!S71_SA1SubCode,$AC:$AC)","v":7078033},{"$f":"SUMIFS(Sheet1!S71_AdjustmentBudAmnt,Sheet1!S71_SA1SubCode,$AC:$AC)","v":7078033},7078033,{"$f":"SUMIFS(Sheet1!S71_ASBudgetAmount,Sheet1!S71_SA1SubCode,$AC:$AC)","v":7208107},{"$f":"SUMIFS(Sheet1!S71_OY1BudgetAmount,Sheet1!S71_SA1SubCode,$AC:$AC)","v":7561299},{"$f":"SUMIFS(Sheet1!S71_OY2BudgetAmount,Sheet1!S71_SA1SubCode,$AC:$AC)","v":7916685},null,null,null,null,null,null,null,null,null,null,null,null,null,null,null,null,"2003"]
["Overtime",null,null,{"$f":"SUMIFS(Sheet1!S71_PPYearAmount,Sheet1!S71_SA1SubCode,$AC:$AC)","v":4621911},{"$f":"SUMIFS(Sheet1!S71_PYearAmount,Sheet1!S71_SA1SubCode,$AC:$AC)","v":5812726},{"$f":"SUMIFS(Sheet1!S71_OriginalBudAmnt,Sheet1!S71_SA1SubCode,$AC:$AC)","v":5021814},{"$f":"SUMIFS(Sheet1!S71_AdjustmentBudAmnt,Sheet1!S71_SA1SubCode,$AC:$AC)","v":5936931},{"$f":"SUMIFS(Sheet1!S71_AdjustmentBudAmnt,Sheet1!S71_SA1SubCode,$AC:$AC)","v":5936931},5936931,{"$f":"SUMIFS(Sheet1!S71_ASBudgetAmount,Sheet1!S71_SA1SubCode,$AC:$AC)","v":6480629},{"$f":"SUMIFS(Sheet1!S71_OY1BudgetAmount,Sheet1!S71_SA1SubCode,$AC:$AC)","v":6867829},{"$f":"SUMIFS(Sheet1!S71_OY2BudgetAmount,Sheet1!S71_SA1SubCode,$AC:$AC)","v":7304145},null,null,null,null,null,null,null,null,null,null,null,null,null,null,null,null,"2004"]
["Performance Bonus",null,null,{"$f":"SUMIFS(Sheet1!S71_PPYearAmount,Sheet1!S71_SA1SubCode,$AC:$AC)","v":6660401},{"$f":"SUMIFS(Sheet1!S71_PYearAmount,Sheet1!S71_SA1SubCode,$AC:$AC)","v":6987943},{"$f":"SUMIFS(Sheet1!S71_OriginalBudAmnt,Sheet1!S71_SA1SubCode,$AC:$AC)","v":9484471},{"$f":"SUMIFS(Sheet1!S71_AdjustmentBudAmnt,Sheet1!S71_SA1SubCode,$AC:$AC)","v":8117039},{"$f":"SUMIFS(Sheet1!S71_AdjustmentBudAmnt,Sheet1!S71_SA1SubCode,$AC:$AC)","v":8117039},8117039,{"$f":"SUMIFS(Sheet1!S71_ASBudgetAmount,Sheet1!S71_SA1SubCode,$AC:$AC)","v":10757024},{"$f":"SUMIFS(Sheet1!S71_OY1BudgetAmount,Sheet1!S71_SA1SubCode,$AC:$AC)","v":11254919},{"$f":"SUMIFS(Sheet1!S71_OY2BudgetAmount,Sheet1!S71_SA1SubCode,$AC:$AC)","v":11755833},null,null,null,null,null,null,null,null,null,null,null,null,null,null,null,null,"2005"]
["Motor Vehicle Allowance",null,null,{"$f":"SUMIFS(Sheet1!S71_PPYearAmount,Sheet1!S71_SA1SubCode,$AC:$AC)","v":11644985},{"$f":"SUMIFS(Sheet1!S71_PYearAmount,Sheet1!S71_SA1SubCode,$AC:$AC)","v":11714436},{"$f":"SUMIFS(Sheet1!S71_OriginalBudAmnt,Sheet1!S71_SA1SubCode,$AC:$AC)","v":13913007},{"$f":"SUMIFS(Sheet1!S71_AdjustmentBudAmnt,Sheet1!S71_SA1SubCode,$AC:$AC)","v":11981978},{"$f":"SUMIFS(Sheet1!S71_AdjustmentBudAmnt,Sheet1!S71_SA1SubCode,$AC:$AC)","v":11981978},11981978,{"$f":"SUMIFS(Sheet1!S71_ASBudgetAmount,Sheet1!S71_SA1SubCode,$AC:$AC)","v":13752354},{"$f":"SUMIFS(Sheet1!S71_OY1BudgetAmount,Sheet1!S71_SA1SubCode,$AC:$AC)","v":14426221},{"$f":"SUMIFS(Sheet1!S71_OY2BudgetAmount,Sheet1!S71_SA1SubCode,$AC:$AC)","v":15104256},null,null,null,null,null,null,null,null,null,null,null,null,null,null,null,null,"2006"]
["Cellphone Allowance",null,null,{"$f":"SUMIFS(Sheet1!S71_PPYearAmount,Sheet1!S71_SA1SubCode,$AC:$AC)","v":909427},{"$f":"SUMIFS(Sheet1!S71_PYearAmount,Sheet1!S71_SA1SubCode,$AC:$AC)","v":924713},{"$f":"SUMIFS(Sheet1!S71_OriginalBudAmnt,Sheet1!S71_SA1SubCode,$AC:$AC)","v":1252529},{"$f":"SUMIFS(Sheet1!S71_AdjustmentBudAmnt,Sheet1!S71_SA1SubCode,$AC:$AC)","v":977171},{"$f":"SUMIFS(Sheet1!S71_AdjustmentBudAmnt,Sheet1!S71_SA1SubCode,$AC:$AC)","v":977171},977171,{"$f":"SUMIFS(Sheet1!S71_ASBudgetAmount,Sheet1!S71_SA1SubCode,$AC:$AC)","v":1114880},{"$f":"SUMIFS(Sheet1!S71_OY1BudgetAmount,Sheet1!S71_SA1SubCode,$AC:$AC)","v":1169513},{"$f":"SUMIFS(Sheet1!S71_OY2BudgetAmount,Sheet1!S71_SA1SubCode,$AC:$AC)","v":1224479},null,null,null,null,null,null,null,null,null,null,null,null,null,null,null,null,"2007"]
["Housing Allowances",null,null,{"$f":"SUMIFS(Sheet1!S71_PPYearAmount,Sheet1!S71_SA1SubCode,$AC:$AC)","v":325709},{"$f":"SUMIFS(Sheet1!S71_PYearAmount,Sheet1!S71_SA1SubCode,$AC:$AC)","v":387623},{"$f":"SUMIFS(Sheet1!S71_OriginalBudAmnt,Sheet1!S71_SA1SubCode,$AC:$AC)","v":410786},{"$f":"SUMIFS(Sheet1!S71_AdjustmentBudAmnt,Sheet1!S71_SA1SubCode,$AC:$AC)","v":666372},{"$f":"SUMIFS(Sheet1!S71_AdjustmentBudAmnt,Sheet1!S71_SA1SubCode,$AC:$AC)","v":666372},666372,{"$f":"SUMIFS(Sheet1!S71_ASBudgetAmount,Sheet1!S71_SA1SubCode,$AC:$AC)","v":396274},{"$f":"SUMIFS(Sheet1!S71_OY1BudgetAmount,Sheet1!S71_SA1SubCode,$AC:$AC)","v":415688},{"$f":"SUMIFS(Sheet1!S71_OY2BudgetAmount,Sheet1!S71_SA1SubCode,$AC:$AC)","v":435233},null,null,null,null,null,null,null,null,null,null,null,null,null,null,null,null,"2008"]
["Other benefits and allowances",null,null,{"$f":"SUMIFS(Sheet1!S71_PPYearAmount,Sheet1!S71_SA1SubCode,$AC:$AC)","v":149040},{"$f":"SUMIFS(Sheet1!S71_PYearAmount,Sheet1!S71_SA1SubCode,$AC:$AC)","v":491899},{"$f":"SUMIFS(Sheet1!S71_OriginalBudAmnt,Sheet1!S71_SA1SubCode,$AC:$AC)","v":622653},{"$f":"SUMIFS(Sheet1!S71_AdjustmentBudAmnt,Sheet1!S71_SA1SubCode,$AC:$AC)","v":437289},{"$f":"SUMIFS(Sheet1!S71_AdjustmentBudAmnt,Sheet1!S71_SA1SubCode,$AC:$AC)","v":437289},437289,{"$f":"SUMIFS(Sheet1!S71_ASBudgetAmount,Sheet1!S71_SA1SubCode,$AC:$AC)","v":667321},{"$f":"SUMIFS(Sheet1!S71_OY1BudgetAmount,Sheet1!S71_SA1SubCode,$AC:$AC)","v":707571},{"$f":"SUMIFS(Sheet1!S71_OY2BudgetAmount,Sheet1!S71_SA1SubCode,$AC:$AC)","v":748003},null,null,null,null,null,null,null,null,null,null,null,null,null,null,null,null,"2009"]
["Payments in lieu of leave",null,null,{"$f":"SUMIFS(Sheet1!S71_PPYearAmount,Sheet1!S71_SA1SubCode,$AC:$AC)","v":793675},{"$f":"SUMIFS(Sheet1!S71_PYearAmount,Sheet1!S71_SA1SubCode,$AC:$AC)","v":1182938},{"$f":"SUMIFS(Sheet1!S71_OriginalBudAmnt,Sheet1!S71_SA1SubCode,$AC:$AC)","v":2204338},{"$f":"SUMIFS(Sheet1!S71_AdjustmentBudAmnt,Sheet1!S71_SA1SubCode,$AC:$AC)","v":1152098},{"$f":"SUMIFS(Sheet1!S71_AdjustmentBudAmnt,Sheet1!S71_SA1SubCode,$AC:$AC)","v":1152098},1152098,{"$f":"SUMIFS(Sheet1!S71_ASBudgetAmount,Sheet1!S71_SA1SubCode,$AC:$AC)","v":1245404},{"$f":"SUMIFS(Sheet1!S71_OY1BudgetAmount,Sheet1!S71_SA1SubCode,$AC:$AC)","v":89553},{"$f":"SUMIFS(Sheet1!S71_OY2BudgetAmount,Sheet1!S71_SA1SubCode,$AC:$AC)","v":93762},null,null,null,null,null,null,null,null,null,null,null,null,null,null,null,null,"2010"]
["Long service awards",null,null,{"$f":"SUMIFS(Sheet1!S71_PPYearAmount,Sheet1!S71_SA1SubCode,$AC:$AC)","v":770528},{"$f":"SUMIFS(Sheet1!S71_PYearAmount,Sheet1!S71_SA1SubCode,$AC:$AC)","v":556787},{"$f":"SUMIFS(Sheet1!S71_OriginalBudAmnt,Sheet1!S71_SA1SubCode,$AC:$AC)","v":888736},{"$f":"SUMIFS(Sheet1!S71_AdjustmentBudAmnt,Sheet1!S71_SA1SubCode,$AC:$AC)","v":1079121},{"$f":"SUMIFS(Sheet1!S71_AdjustmentBudAmnt,Sheet1!S71_SA1SubCode,$AC:$AC)","v":1079121},1079121,{"$f":"SUMIFS(Sheet1!S71_ASBudgetAmount,Sheet1!S71_SA1SubCode,$AC:$AC)","v":1725101},{"$f":"SUMIFS(Sheet1!S71_OY1BudgetAmount,Sheet1!S71_SA1SubCode,$AC:$AC)","v":0},{"$f":"SUMIFS(Sheet1!S71_OY2BudgetAmount,Sheet1!S71_SA1SubCode,$AC:$AC)","v":0},null,null,null,null,null,null,null,null,null,null,null,null,null,null,null,null,"2011"]
["Post-retirement benefit obligations",4,null,{"$f":"SUMIFS(Sheet1!S71_PPYearAmount,Sheet1!S71_SA1SubCode,$AC:$AC)","v":0},{"$f":"SUMIFS(Sheet1!S71_PYearAmount,Sheet1!S71_SA1SubCode,$AC:$AC)","v":0},{"$f":"SUMIFS(Sheet1!S71_OriginalBudAmnt,Sheet1!S71_SA1SubCode,$AC:$AC)","v":0},{"$f":"SUMIFS(Sheet1!S71_AdjustmentBudAmnt,Sheet1!S71_SA1SubCode,$AC:$AC)","v":0},{"$f":"SUMIFS(Sheet1!S71_AdjustmentBudAmnt,Sheet1!S71_SA1SubCode,$AC:$AC)","v":0},0,{"$f":"SUMIFS(Sheet1!S71_ASBudgetAmount,Sheet1!S71_SA1SubCode,$AC:$AC)","v":0},{"$f":"SUMIFS(Sheet1!S71_OY1BudgetAmount,Sheet1!S71_SA1SubCode,$AC:$AC)","v":0},{"$f":"SUMIFS(Sheet1!S71_OY2BudgetAmount,Sheet1!S71_SA1SubCode,$AC:$AC)","v":0},null,null,null,null,null,null,null,null,null,null,null,null,null,null,null,null,"2012"]
["Entertainment",null,null,{"$f":"SUMIFS(Sheet1!S71_PPYearAmount,Sheet1!S71_SA1SubCode,$AC:$AC)","v":0},{"$f":"SUMIFS(Sheet1!S71_PYearAmount,Sheet1!S71_SA1SubCode,$AC:$AC)","v":0},{"$f":"SUMIFS(Sheet1!S71_OriginalBudAmnt,Sheet1!S71_SA1SubCode,$AC:$AC)","v":0},{"$f":"SUMIFS(Sheet1!S71_AdjustmentBudAmnt,Sheet1!S71_SA1SubCode,$AC:$AC)","v":0},{"$f":"SUMIFS(Sheet1!S71_AdjustmentBudAmnt,Sheet1!S71_SA1SubCode,$AC:$AC)","v":0},0,{"$f":"SUMIFS(Sheet1!S71_ASBudgetAmount,Sheet1!S71_SA1SubCode,$AC:$AC)","v":0},{"$f":"SUMIFS(Sheet1!S71_OY1BudgetAmount,Sheet1!S71_SA1SubCode,$AC:$AC)","v":0},{"$f":"SUMIFS(Sheet1!S71_OY2BudgetAmount,Sheet1!S71_SA1SubCode,$AC:$AC)","v":0},null,null,null,null,null,null,null,null,null,null,null,null,null,null,null,null,"2013"]
["Scarcity",null,null,{"$f":"SUMIFS(Sheet1!S71_PPYearAmount,Sheet1!S71_SA1SubCode,$AC:$AC)","v":213042},{"$f":"SUMIFS(Sheet1!S71_PYearAmount,Sheet1!S71_SA1SubCode,$AC:$AC)","v":189960},{"$f":"SUMIFS(Sheet1!S71_OriginalBudAmnt,Sheet1!S71_SA1SubCode,$AC:$AC)","v":258411},{"$f":"SUMIFS(Sheet1!S71_AdjustmentBudAmnt,Sheet1!S71_SA1SubCode,$AC:$AC)","v":203604},{"$f":"SUMIFS(Sheet1!S71_AdjustmentBudAmnt,Sheet1!S71_SA1SubCode,$AC:$AC)","v":203604},203604,{"$f":"SUMIFS(Sheet1!S71_ASBudgetAmount,Sheet1!S71_SA1SubCode,$AC:$AC)","v":310148},{"$f":"SUMIFS(Sheet1!S71_OY1BudgetAmount,Sheet1!S71_SA1SubCode,$AC:$AC)","v":325345},{"$f":"SUMIFS(Sheet1!S71_OY2BudgetAmount,Sheet1!S71_SA1SubCode,$AC:$AC)","v":340635},null,null,null,null,null,null,null,null,null,null,null,null,null,null,null,null,"2014"]
["Acting and post related allowance",null,null,{"$f":"SUMIFS(Sheet1!S71_PPYearAmount,Sheet1!S71_SA1SubCode,$AC:$AC)","v":43007},{"$f":"SUMIFS(Sheet1!S71_PYearAmount,Sheet1!S71_SA1SubCode,$AC:$AC)","v":115055},{"$f":"SUMIFS(Sheet1!S71_OriginalBudAmnt,Sheet1!S71_SA1SubCode,$AC:$AC)","v":48742},{"$f":"SUMIFS(Sheet1!S71_AdjustmentBudAmnt,Sheet1!S71_SA1SubCode,$AC:$AC)","v":0},{"$f":"SUMIFS(Sheet1!S71_AdjustmentBudAmnt,Sheet1!S71_SA1SubCode,$AC:$AC)","v":0},0,{"$f":"SUMIFS(Sheet1!S71_ASBudgetAmount,Sheet1!S71_SA1SubCode,$AC:$AC)","v":543498},{"$f":"SUMIFS(Sheet1!S71_OY1BudgetAmount,Sheet1!S71_SA1SubCode,$AC:$AC)","v":550625},{"$f":"SUMIFS(Sheet1!S71_OY2BudgetAmount,Sheet1!S71_SA1SubCode,$AC:$AC)","v":579447},null,null,null,null,null,null,null,null,null,null,null,null,null,null,null,null,"2015"]
["In kind benefits",null,null,{"$f":"SUMIFS(Sheet1!S71_PPYearAmount,Sheet1!S71_SA1SubCode,$AC:$AC)","v":0},{"$f":"SUMIFS(Sheet1!S71_PYearAmount,Sheet1!S71_SA1SubCode,$AC:$AC)","v":0},{"$f":"SUMIFS(Sheet1!S71_OriginalBudAmnt,Sheet1!S71_SA1SubCode,$AC:$AC)","v":0},{"$f":"SUMIFS(Sheet1!S71_AdjustmentBudAmnt,Sheet1!S71_SA1SubCode,$AC:$AC)","v":0},{"$f":"SUMIFS(Sheet1!S71_AdjustmentBudAmnt,Sheet1!S71_SA1SubCode,$AC:$AC)","v":0},0,{"$f":"SUMIFS(Sheet1!S71_ASBudgetAmount,Sheet1!S71_SA1SubCode,$AC:$AC)","v":0},{"$f":"SUMIFS(Sheet1!S71_OY1BudgetAmount,Sheet1!S71_SA1SubCode,$AC:$AC)","v":0},{"$f":"SUMIFS(Sheet1!S71_OY2BudgetAmount,Sheet1!S71_SA1SubCode,$AC:$AC)","v":0},null,null,null,null,null,null,null,null,null,null,null,null,null,null,null,null,"2016"]
["sub-total",5,{"$f":"SUM(C53:C68)","v":87916824},{"$f":"SUM(D53:D68)","v":146466707},153332486,189700725,165941148,165941148,165941148,199815991,203130370,212604528]
["Less: Employees costs capitalised to PPE",null,null,{"$f":"SUMIFS(Sheet1!S71_PPYearAmount,Sheet1!S71_SA1SubCode,$AC:$AC)","v":0},{"$f":"SUMIFS(Sheet1!S71_PYearAmount,Sheet1!S71_SA1SubCode,$AC:$AC)","v":0},{"$f":"SUMIFS(Sheet1!S71_OriginalBudAmnt,Sheet1!S71_SA1SubCode,$AC:$AC)","v":0},{"$f":"SUMIFS(Sheet1!S71_AdjustmentBudAmnt,Sheet1!S71_SA1SubCode,$AC:$AC)","v":0},{"$f":"SUMIFS(Sheet1!S71_AdjustmentBudAmnt,Sheet1!S71_SA1SubCode,$AC:$AC)","v":0},{"$f":"H70","v":0},{"$f":"SUMIFS(Sheet1!S71_ASBudgetAmount,Sheet1!S71_SA1SubCode,$AC:$AC)","v":0},{"$f":"SUMIFS(Sheet1!S71_OY1BudgetAmount,Sheet1!S71_SA1SubCode,$AC:$AC)","v":0},{"$f":"SUMIFS(Sheet1!S71_OY2BudgetAmount,Sheet1!S71_SA1SubCode,$AC:$AC)","v":0},null,null,null,null,null,null,null,null,null,null,null,null,null,null,null,null,"2090"]
[{"$f":"\"Total \"&A52","v":"Total Employee related costs"},1,{"$f":"C69-C70","v":87916824},{"$f":"D69-D70","v":146466707},153332486,189700725,165941148,165941148,165941148,199815991,203130370,212604528]
[]
[]
[]
[]
[]
[]
[{"$f":"'A4-FinPerf RE'!A39","v":"Depreciation and amortisation"}]
["Depreciation of Property, Plant & Equipment",null,null,{"$f":"SUMIFS(Sheet1!S71_PPYearAmount,Sheet1!S71_SA1SubCode,$AC:$AC)","v":88861619},{"$f":"SUMIFS(Sheet1!S71_PYearAmount,Sheet1!S71_SA1SubCode,$AC:$AC)","v":93074342},{"$f":"SUMIFS(Sheet1!S71_OriginalBudAmnt,Sheet1!S71_SA1SubCode,$AC:$AC)","v":91000000},{"$f":"SUMIFS(Sheet1!S71_AdjustmentBudAmnt,Sheet1!S71_SA1SubCode,$AC:$AC)","v":91000000},{"$f":"SUMIFS(Sheet1!S71_AdjustmentBudAmnt,Sheet1!S71_SA1SubCode,$AC:$AC)","v":91000000},{"$f":"H79","v":91000000},{"$f":"SUMIFS(Sheet1!S71_ASBudgetAmount,Sheet1!S71_SA1SubCode,$AC:$AC)","v":95000000},{"$f":"SUMIFS(Sheet1!S71_OY1BudgetAmount,Sheet1!S71_SA1SubCode,$AC:$AC)","v":96000000},{"$f":"SUMIFS(Sheet1!S71_OY2BudgetAmount,Sheet1!S71_SA1SubCode,$AC:$AC)","v":97000000},null,null,null,null,null,null,null,null,null,null,null,null,null,null,null,null,"2301"]
["Lease amortisation",null,null,{"$f":"SUMIFS(Sheet1!S71_PPYearAmount,Sheet1!S71_SA1SubCode,$AC:$AC)","v":1908022},{"$f":"SUMIFS(Sheet1!S71_PYearAmount,Sheet1!S71_SA1SubCode,$AC:$AC)","v":3202416},{"$f":"SUMIFS(Sheet1!S71_OriginalBudAmnt,Sheet1!S71_SA1SubCode,$AC:$AC)","v":0},{"$f":"SUMIFS(Sheet1!S71_AdjustmentBudAmnt,Sheet1!S71_SA1SubCode,$AC:$AC)","v":0},{"$f":"SUMIFS(Sheet1!S71_AdjustmentBudAmnt,Sheet1!S71_SA1SubCode,$AC:$AC)","v":0},0,{"$f":"SUMIFS(Sheet1!S71_ASBudgetAmount,Sheet1!S71_SA1SubCode,$AC:$AC)","v":0},{"$f":"SUMIFS(Sheet1!S71_OY1BudgetAmount,Sheet1!S71_SA1SubCode,$AC:$AC)","v":0},{"$f":"SUMIFS(Sheet1!S71_OY2BudgetAmount,Sheet1!S71_SA1SubCode,$AC:$AC)","v":0},null,null,null,null,null,null,null,null,null,null,null,null,null,null,null,null,"2302"]
["Capital asset impairment",null,null,{"$f":"SUMIFS(Sheet1!S71_PPYearAmount,Sheet1!S71_SA1SubCode,$AC:$AC)","v":6314771},{"$f":"SUMIFS(Sheet1!S71_PYearAmount,Sheet1!S71_SA1SubCode,$AC:$AC)","v":5686773},{"$f":"SUMIFS(Sheet1!S71_OriginalBudAmnt,Sheet1!S71_SA1SubCode,$AC:$AC)","v":0},{"$f":"SUMIFS(Sheet1!S71_AdjustmentBudAmnt,Sheet1!S71_SA1SubCode,$AC:$AC)","v":0},{"$f":"SUMIFS(Sheet1!S71_AdjustmentBudAmnt,Sheet1!S71_SA1SubCode,$AC:$AC)","v":0},0,{"$f":"SUMIFS(Sheet1!S71_ASBudgetAmount,Sheet1!S71_SA1SubCode,$AC:$AC)","v":0},{"$f":"SUMIFS(Sheet1!S71_OY1BudgetAmount,Sheet1!S71_SA1SubCode,$AC:$AC)","v":0},{"$f":"SUMIFS(Sheet1!S71_OY2BudgetAmount,Sheet1!S71_SA1SubCode,$AC:$AC)","v":0},null,null,null,null,null,null,null,null,null,null,null,null,null,null,null,null,"2303"]
[]
[{"$f":"\"Total \"&LEFT(A78,35)","v":"Total Depreciation and amortisation"},1,{"$f":"SUM(C79:C81)","v":0},{"$f":"SUM(D79:D81)","v":97084412},101963531,91000000,91000000,91000000,91000000,95000000,96000000,97000000]
[]
["Bulk purchases - electricity"]
["Electricity bulk purchases",null,null,{"$f":"SUMIFS(Sheet1!S71_PPYearAmount,Sheet1!S71_SA1SubCode,$AC:$AC)","v":0},{"$f":"SUMIFS(Sheet1!S71_PYearAmount,Sheet1!S71_SA1SubCode,$AC:$AC)","v":0},{"$f":"SUMIFS(Sheet1!S71_OriginalBudAmnt,Sheet1!S71_SA1SubCode,$AC:$AC)","v":0},{"$f":"SUMIFS(Sheet1!S71_AdjustmentBudAmnt,Sheet1!S71_SA1SubCode,$AC:$AC)","v":0},{"$f":"SUMIFS(Sheet1!S71_AdjustmentBudAmnt,Sheet1!S71_SA1SubCode,$AC:$AC)","v":0},{"$f":"H86","v":0},{"$f":"SUMIFS(Sheet1!S71_ASBudgetAmount,Sheet1!S71_SA1SubCode,$AC:$AC)","v":0},{"$f":"SUMIFS(Sheet1!S71_OY1BudgetAmount,Sheet1!S71_SA1SubCode,$AC:$AC)","v":0},{"$f":"SUMIFS(Sheet1!S71_OY2BudgetAmount,Sheet1!S71_SA1SubCode,$AC:$AC)","v":0},null,null,null,null,null,null,null,null,null,null,null,null,null,null,null,null,"2501"]
[]
["Total bulk purchases",1,{"$f":"SUM(C86:C87)","v":0},{"$f":"SUM(D86:D87)","v":0},0,0,0,0,0,0,0,0]
[]
["Transfers and grants"]
["Cash transfers and grants",null,{"$f":"'SA21'!C32","v":600000},{"$f":"'SA21'!D32","v":955000},{"$f":"'SA21'!E32","v":600000},{"$f":"'SA21'!F32","v":1000000},{"$f":"'SA21'!G32","v":1200000},{"$f":"'SA21'!H32","v":1200000},{"$f":"'SA21'!I32","v":1200000},{"$f":"'SA21'!J32","v":1500000},{"$f":"'SA21'!K32","v":1600000},{"$f":"'SA21'!L32","v":1700000}]
["Non-cash transfers and grants",null,{"$f":"'SA21'!C63","v":0},{"$f":"'SA21'!D63","v":0},{"$f":"'SA21'!E63","v":0},{"$f":"'SA21'!F63","v":0},{"$f":"'SA21'!G63","v":0},{"$f":"'SA21'!H63","v":0},{"$f":"'SA21'!I63","v":0},{"$f":"'SA21'!J63","v":0},{"$f":"'SA21'!K63","v":0},{"$f":"'SA21'!L63","v":0}]
["Total transfers and grants",1,{"$f":"SUM(C91:C92)","v":600000},{"$f":"SUM(D91:D92)","v":955000},600000,1000000,1200000,1200000,1200000,{"$f":"SUM(J91:J92)","v":1500000},1600000,1700000]
[]
["Contracted Services"]
["Outsourced Services",null,null,{"$f":"SUMIFS(Sheet1!S71_PPYearAmount,Sheet1!S71_SA1SubCode,$AC:$AC)","v":3207509},{"$f":"SUMIFS(Sheet1!S71_PYearAmount,Sheet1!S71_SA1SubCode,$AC:$AC)","v":3996110},{"$f":"SUMIFS(Sheet1!S71_OriginalBudAmnt,Sheet1!S71_SA1SubCode,$AC:$AC)","v":6580000},{"$f":"SUMIFS(Sheet1!S71_AdjustmentBudAmnt,Sheet1!S71_SA1SubCode,$AC:$AC)","v":7608000},{"$f":"SUMIFS(Sheet1!S71_AdjustmentBudAmnt,Sheet1!S71_SA1SubCode,$AC:$AC)","v":7608000},{"$f":"H96","v":7608000},{"$f":"SUMIFS(Sheet1!S71_ASBudgetAmount,Sheet1!S71_SA1SubCode,$AC:$AC)","v":9180000},{"$f":"SUMIFS(Sheet1!S71_OY1BudgetAmount,Sheet1!S71_SA1SubCode,$AC:$AC)","v":10030000},{"$f":"SUMIFS(Sheet1!S71_OY2BudgetAmount,Sheet1!S71_SA1SubCode,$AC:$AC)","v":10448000},null,null,null,null,null,null,null,null,null,null,null,null,null,null,null,null,"2701"]
["Consultants and Professional Services",null,null,{"$f":"SUMIFS(Sheet1!S71_PPYearAmount,Sheet1!S71_SA1SubCode,$AC:$AC)","v":22708479},{"$f":"SUMIFS(Sheet1!S71_PYearAmount,Sheet1!S71_SA1SubCode,$AC:$AC)","v":29744671},{"$f":"SUMIFS(Sheet1!S71_OriginalBudAmnt,Sheet1!S71_SA1SubCode,$AC:$AC)","v":52329056},{"$f":"SUMIFS(Sheet1!S71_AdjustmentBudAmnt,Sheet1!S71_SA1SubCode,$AC:$AC)","v":48819356},{"$f":"SUMIFS(Sheet1!S71_AdjustmentBudAmnt,Sheet1!S71_SA1SubCode,$AC:$AC)","v":48819356},48819356,{"$f":"SUMIFS(Sheet1!S71_ASBudgetAmount,Sheet1!S71_SA1SubCode,$AC:$AC)","v":45890500},{"$f":"SUMIFS(Sheet1!S71_OY1BudgetAmount,Sheet1!S71_SA1SubCode,$AC:$AC)","v":47415000},{"$f":"SUMIFS(Sheet1!S71_OY2BudgetAmount,Sheet1!S71_SA1SubCode,$AC:$AC)","v":51286000},null,null,null,null,null,null,null,null,null,null,null,null,null,null,null,null,"2702"]
["Contractors",null,null,{"$f":"SUMIFS(Sheet1!S71_PPYearAmount,Sheet1!S71_SA1SubCode,$AC:$AC)","v":21938209},{"$f":"SUMIFS(Sheet1!S71_PYearAmount,Sheet1!S71_SA1SubCode,$AC:$AC)","v":55071388},{"$f":"SUMIFS(Sheet1!S71_OriginalBudAmnt,Sheet1!S71_SA1SubCode,$AC:$AC)","v":78484000},{"$f":"SUMIFS(Sheet1!S71_AdjustmentBudAmnt,Sheet1!S71_SA1SubCode,$AC:$AC)","v":110517230},{"$f":"SUMIFS(Sheet1!S71_AdjustmentBudAmnt,Sheet1!S71_SA1SubCode,$AC:$AC)","v":110517230},110517230,{"$f":"SUMIFS(Sheet1!S71_ASBudgetAmount,Sheet1!S71_SA1SubCode,$AC:$AC)","v":109290000},{"$f":"SUMIFS(Sheet1!S71_OY1BudgetAmount,Sheet1!S71_SA1SubCode,$AC:$AC)","v":106825000},{"$f":"SUMIFS(Sheet1!S71_OY2BudgetAmount,Sheet1!S71_SA1SubCode,$AC:$AC)","v":106245000},null,null,null,null,null,null,null,null,null,null,null,null,null,null,null,null,"2703"]
[]
[]
[]
[]
[]
[]
[]
[]
[]
[]
[]
[]
[]
[]
[]
[]
[]
[]
[]
[]
[]
[]
[]
[]
[]
[]
[]
[]
["Total contracted services",null,{"$f":"SUM(C96:C98)","v":0},{"$f":"SUM(D96:D98)","v":47854197},88812169,137393056,166944586,166944586,166944586,164360500,164270000,167979000]
[]
["Operational Costs"]
["Collection costs",null,null,{"$f":"SUMIFS(Sheet1!S71_PPYearAmount,Sheet1!S71_SA1SubCode,$AC:$AC)","v":0},{"$f":"SUMIFS(Sheet1!S71_PYearAmount,Sheet1!S71_SA1SubCode,$AC:$AC)","v":0},{"$f":"SUMIFS(Sheet1!S71_OriginalBudAmnt,Sheet1!S71_SA1SubCode,$AC:$AC)","v":0},{"$f":"SUMIFS(Sheet1!S71_AdjustmentBudAmnt,Sheet1!S71_SA1SubCode,$AC:$AC)","v":0},{"$f":"SUMIFS(Sheet1!S71_AdjustmentBudAmnt,Sheet1!S71_SA1SubCode,$AC:$AC)","v":0},{"$f":"H130","v":0},{"$f":"SUMIFS(Sheet1!S71_ASBudgetAmount,Sheet1!S71_SA1SubCode,$AC:$AC)","v":0},{"$f":"SUMIFS(Sheet1!S71_OY1BudgetAmount,Sheet1!S71_SA1SubCode,$AC:$AC)","v":0},{"$f":"SUMIFS(Sheet1!S71_OY2BudgetAmount,Sheet1!S71_SA1SubCode,$AC:$AC)","v":0},null,null,null,null,null,null,null,null,null,null,null,null,null,null,null,null,"2901"]
["Contributions to 'other' provisions",null,null,{"$f":"SUMIFS(Sheet1!S71_PPYearAmount,Sheet1!S71_SA1SubCode,$AC:$AC)","v":0},{"$f":"SUMIFS(Sheet1!S71_PYearAmount,Sheet1!S71_SA1SubCode,$AC:$AC)","v":0},{"$f":"SUMIFS(Sheet1!S71_OriginalBudAmnt,Sheet1!S71_SA1SubCode,$AC:$AC)","v":0},{"$f":"SUMIFS(Sheet1!S71_AdjustmentBudAmnt,Sheet1!S71_SA1SubCode,$AC:$AC)","v":0},{"$f":"SUMIFS(Sheet1!S71_AdjustmentBudAmnt,Sheet1!S71_SA1SubCode,$AC:$AC)","v":0},0,{"$f":"SUMIFS(Sheet1!S71_ASBudgetAmount,Sheet1!S71_SA1SubCode,$AC:$AC)","v":0},{"$f":"SUMIFS(Sheet1!S71_OY1BudgetAmount,Sheet1!S71_SA1SubCode,$AC:$AC)","v":0},{"$f":"SUMIFS(Sheet1!S71_OY2BudgetAmount,Sheet1!S71_SA1SubCode,$AC:$AC)","v":0},null,null,null,null,null,null,null,null,null,null,null,null,null,null,null,null,"2902"]
[null,null,null,{"$f":"SUMIFS(Sheet1!S71_PPYearAmount,Sheet1!S71_SA1SubCode,$AC:$AC)","v":0},{"$f":"SUMIFS(Sheet1!S71_PYearAmount,Sheet1!S71_SA1SubCode,$AC:$AC)","v":0},{"$f":"SUMIFS(Sheet1!S71_OriginalBudAmnt,Sheet1!S71_SA1SubCode,$AC:$AC)","v":0},{"$f":"SUMIFS(Sheet1!S71_AdjustmentBudAmnt,Sheet1!S71_SA1SubCode,$AC:$AC)","v":0},{"$f":"SUMIFS(Sheet1!S71_AdjustmentBudAmnt,Sheet1!S71_SA1SubCode,$AC:$AC)","v":0},{"$f":"SUMIFS(Sheet1!CD:CD,Sheet1!S71_SA1SubCode,$AC:$AC)","v":0},{"$f":"SUMIFS(Sheet1!S71_ASBudgetAmount,Sheet1!S71_SA1SubCode,$AC:$AC)","v":0},{"$f":"SUMIFS(Sheet1!S71_OY1BudgetAmount,Sheet1!S71_SA1SubCode,$AC:$AC)","v":0},{"$f":"SUMIFS(Sheet1!S71_OY2BudgetAmount,Sheet1!S71_SA1SubCode,$AC:$AC)","v":0}]
["Audit fees",null,null,{"$f":"SUMIFS(Sheet1!S71_PPYearAmount,Sheet1!S71_SA1SubCode,$AC:$AC)","v":4872051},{"$f":"SUMIFS(Sheet1!S71_PYearAmount,Sheet1!S71_SA1SubCode,$AC:$AC)","v":4070713},{"$f":"SUMIFS(Sheet1!S71_OriginalBudAmnt,Sheet1!S71_SA1SubCode,$AC:$AC)","v":5550000},{"$f":"SUMIFS(Sheet1!S71_AdjustmentBudAmnt,Sheet1!S71_SA1SubCode,$AC:$AC)","v":5550000},{"$f":"SUMIFS(Sheet1!S71_AdjustmentBudAmnt,Sheet1!S71_SA1SubCode,$AC:$AC)","v":5550000},{"$f":"H133","v":5550000},{"$f":"SUMIFS(Sheet1!S71_ASBudgetAmount,Sheet1!S71_SA1SubCode,$AC:$AC)","v":5600000},{"$f":"SUMIFS(Sheet1!S71_OY1BudgetAmount,Sheet1!S71_SA1SubCode,$AC:$AC)","v":5700000},{"$f":"SUMIFS(Sheet1!S71_OY2BudgetAmount,Sheet1!S71_SA1SubCode,$AC:$AC)","v":5800000},null,null,null,null,null,null,null,null,null,null,null,null,null,null,null,null,2903]
[null,null,null,{"$f":"SUMIFS(Sheet1!S71_PPYearAmount,Sheet1!S71_SA1SubCode,$AC:$AC)","v":0},{"$f":"SUMIFS(Sheet1!S71_PYearAmount,Sheet1!S71_SA1SubCode,$AC:$AC)","v":0},{"$f":"SUMIFS(Sheet1!S71_OriginalBudAmnt,Sheet1!S71_SA1SubCode,$AC:$AC)","v":0},{"$f":"SUMIFS(Sheet1!S71_AdjustmentBudAmnt,Sheet1!S71_SA1SubCode,$AC:$AC)","v":0},{"$f":"SUMIFS(Sheet1!S71_AdjustmentBudAmnt,Sheet1!S71_SA1SubCode,$AC:$AC)","v":0},0,{"$f":"SUMIFS(Sheet1!S71_ASBudgetAmount,Sheet1!S71_SA1SubCode,$AC:$AC)","v":0},{"$f":"SUMIFS(Sheet1!S71_OY1BudgetAmount,Sheet1!S71_SA1SubCode,$AC:$AC)","v":0},{"$f":"SUMIFS(Sheet1!S71_OY2BudgetAmount,Sheet1!S71_SA1SubCode,$AC:$AC)","v":0}]
[null,null,null,{"$f":"SUMIFS(Sheet1!S71_PPYearAmount,Sheet1!S71_SA1SubCode,$AC:$AC)","v":4872051},{"$f":"SUMIFS(Sheet1!S71_PYearAmount,Sheet1!S71_SA1SubCode,$AC:$AC)","v":4070713},{"$f":"SUMIFS(Sheet1!S71_OriginalBudAmnt,Sheet1!S71_SA1SubCode,$AC:$AC)","v":5550000},{"$f":"SUMIFS(Sheet1!S71_AdjustmentBudAmnt,Sheet1!S71_SA1SubCode,$AC:$AC)","v":5550000},{"$f":"SUMIFS(Sheet1!S71_AdjustmentBudAmnt,Sheet1!S71_SA1SubCode,$AC:$AC)","v":5550000},5550000,{"$f":"SUMIFS(Sheet1!S71_ASBudgetAmount,Sheet1!S71_SA1SubCode,$AC:$AC)","v":5600000},{"$f":"SUMIFS(Sheet1!S71_OY1BudgetAmount,Sheet1!S71_SA1SubCode,$AC:$AC)","v":5700000},{"$f":"SUMIFS(Sheet1!S71_OY2BudgetAmount,Sheet1!S71_SA1SubCode,$AC:$AC)","v":5800000},null,null,null,null,null,null,null,null,null,null,null,null,null,null,null,null,"2903"]
["Other Operational Costs",null,null,{"$f":"SUMIFS(Sheet1!S71_PPYearAmount,Sheet1!S71_SA1SubCode,$AC:$AC)","v":40145592},{"$f":"SUMIFS(Sheet1!S71_PYearAmount,Sheet1!S71_SA1SubCode,$AC:$AC)","v":51668075},{"$f":"SUMIFS(Sheet1!S71_OriginalBudAmnt,Sheet1!S71_SA1SubCode,$AC:$AC)","v":60442484},{"$f":"SUMIFS(Sheet1!S71_AdjustmentBudAmnt,Sheet1!S71_SA1SubCode,$AC:$AC)","v":58949247},{"$f":"SUMIFS(Sheet1!S71_AdjustmentBudAmnt,Sheet1!S71_SA1SubCode,$AC:$AC)","v":58949247},58949247,{"$f":"SUMIFS(Sheet1!S71_ASBudgetAmount,Sheet1!S71_SA1SubCode,$AC:$AC)","v":72652601},{"$f":"SUMIFS(Sheet1!S71_OY1BudgetAmount,Sheet1!S71_SA1SubCode,$AC:$AC)","v":78049834},{"$f":"SUMIFS(Sheet1!S71_OY2BudgetAmount,Sheet1!S71_SA1SubCode,$AC:$AC)","v":80173965},null,null,null,null,null,null,null,null,null,null,null,null,null,null,null,null,"2904"]
[]
[]
[]
[]
[]
[]
[]
[]
[]
[]
[]
[]
[]
[]
[]
[]
[]
[]
[]
[]
["Total Operational Costs",1,{"$f":"+C130+C131+C133+C136","v":0},{"$f":"+D130+D131+D133+D136","v":45017643},55738788,65992484,64499247,64499247,64499247,78252601,83749834,85973965]
[]
["Repairs and Maintenance by Expenditure Item",8]
["Employee related costs",null,null,{"$f":"SUMIFS(Sheet1!S71_PPYearAmount,Sheet1!S71_SA1SubCode,$AC:$AC)","v":0},{"$f":"SUMIFS(Sheet1!S71_PYearAmount,Sheet1!S71_SA1SubCode,$AC:$AC)","v":0},{"$f":"SUMIFS(Sheet1!S71_OriginalBudAmnt,Sheet1!S71_SA1SubCode,$AC:$AC)","v":0},{"$f":"SUMIFS(Sheet1!S71_AdjustmentBudAmnt,Sheet1!S71_SA1SubCode,$AC:$AC)","v":0},{"$f":"SUMIFS(Sheet1!S71_AdjustmentBudAmnt,Sheet1!S71_SA1SubCode,$AC:$AC)","v":0},{"$f":"H160","v":0},{"$f":"SUMIFS(Sheet1!S71_ASBudgetAmount,Sheet1!S71_SA1SubCode,$AC:$AC)","v":0},{"$f":"SUMIFS(Sheet1!S71_OY1BudgetAmount,Sheet1!S71_SA1SubCode,$AC:$AC)","v":0},{"$f":"SUMIFS(Sheet1!S71_OY2BudgetAmount,Sheet1!S71_SA1SubCode,$AC:$AC)","v":0}]
["Inventory Consumed (Project Maintenance)",null,{"$f":"SA34c!C175","v":5698752},{"$f":"SA34c!D175","v":7162471},{"$f":"SA34c!E175","v":20762933},{"$f":"SA34c!F175","v":45700000},{"$f":"SA34c!G175","v":66650000},{"$f":"SA34c!H175","v":66650000},66650000,{"$f":"SA34c!I175","v":62620000},{"$f":"SA34c!J175","v":66065000},{"$f":"SA34c!K175","v":67465000}]
["Contracted Services",null,null,{"$f":"SUMIFS(Sheet1!S71_PPYearAmount,Sheet1!S71_SA1SubCode,$AC:$AC)","v":0},{"$f":"SUMIFS(Sheet1!S71_PYearAmount,Sheet1!S71_SA1SubCode,$AC:$AC)","v":0},{"$f":"SUMIFS(Sheet1!S71_OriginalBudAmnt,Sheet1!S71_SA1SubCode,$AC:$AC)","v":0},{"$f":"SUMIFS(Sheet1!S71_AdjustmentBudAmnt,Sheet1!S71_SA1SubCode,$AC:$AC)","v":0},{"$f":"SUMIFS(Sheet1!S71_AdjustmentBudAmnt,Sheet1!S71_SA1SubCode,$AC:$AC)","v":0},0,{"$f":"SUMIFS(Sheet1!S71_ASBudgetAmount,Sheet1!S71_SA1SubCode,$AC:$AC)","v":0},{"$f":"SUMIFS(Sheet1!S71_OY1BudgetAmount,Sheet1!S71_SA1SubCode,$AC:$AC)","v":0},{"$f":"SUMIFS(Sheet1!S71_OY2BudgetAmount,Sheet1!S71_SA1SubCode,$AC:$AC)","v":0}]
["Other Expenditure",null,null,{"$f":"SUMIFS(Sheet1!S71_PPYearAmount,Sheet1!S71_SA1SubCode,$AC:$AC)","v":0},{"$f":"SUMIFS(Sheet1!S71_PYearAmount,Sheet1!S71_SA1SubCode,$AC:$AC)","v":0},{"$f":"SUMIFS(Sheet1!S71_OriginalBudAmnt,Sheet1!S71_SA1SubCode,$AC:$AC)","v":0},{"$f":"SUMIFS(Sheet1!S71_AdjustmentBudAmnt,Sheet1!S71_SA1SubCode,$AC:$AC)","v":0},{"$f":"SUMIFS(Sheet1!S71_AdjustmentBudAmnt,Sheet1!S71_SA1SubCode,$AC:$AC)","v":0},0,{"$f":"SUMIFS(Sheet1!S71_ASBudgetAmount,Sheet1!S71_SA1SubCode,$AC:$AC)","v":0},{"$f":"SUMIFS(Sheet1!S71_OY1BudgetAmount,Sheet1!S71_SA1SubCode,$AC:$AC)","v":0},{"$f":"SUMIFS(Sheet1!S71_OY2BudgetAmount,Sheet1!S71_SA1SubCode,$AC:$AC)","v":0}]
["Total Repairs and Maintenance Expenditure",9,{"$f":"SUM(C160:C163)","v":5698752},{"$f":"SUM(D160:D163)","v":7162471},20762933,45700000,66650000,66650000,66650000,62620000,66065000,67465000]
[]
[" Inventory Consumed"]
["Inventory Consumed - Water",null,{"$f":"-'SA3'!C37","v":0},{"$f":"-'SA3'!D37","v":0},{"$f":"-'SA3'!E37","v":0},{"$f":"'SA3'!F37","v":0},{"$f":"'SA3'!G37","v":0},{"$f":"'SA3'!H37","v":0},{"$f":"H167","v":0},{"$f":"'SA3'!J37","v":0},{"$f":"'SA3'!K37","v":0},{"$f":"'SA3'!L37","v":0}]
["Inventory Consumed - Other",null,{"$f":"-'SA3'!C66-'SA3'!C75-'SA3'!C82-'SA3'!C90-'SA3'!C98","v":0},{"$f":"-'SA3'!D66-'SA3'!D75-'SA3'!D82-'SA3'!D90-'SA3'!D98","v":0},{"$f":"-'SA3'!E66-'SA3'!E75-'SA3'!E82-'SA3'!E90-'SA3'!E98","v":0},{"$f":"-'SA3'!F66-'SA3'!F75-'SA3'!F82-'SA3'!F90-'SA3'!F98","v":10500000},{"$f":"-'SA3'!G66-'SA3'!G75-'SA3'!G82-'SA3'!G90-'SA3'!G98","v":11150000},{"$f":"-'SA3'!H66-'SA3'!H75-'SA3'!H82-'SA3'!H90-'SA3'!H98","v":11150000},{"$f":"H168","v":11150000},{"$f":"-'SA3'!J66-'SA3'!J75-'SA3'!J82-'SA3'!J90-'SA3'!J98","v":13200000},{"$f":"-'SA3'!K66-'SA3'!K75-'SA3'!K82-'SA3'!K90-'SA3'!K98","v":13820000},{"$f":"-'SA3'!L66-'SA3'!L75-'SA3'!L82-'SA3'!L90-'SA3'!L98","v":14490000}]
["Total Inventory Consumed & Other Material",null,{"$f":"SUM(C167:C168)","v":0},0,0,10500000,11150000,11150000,11150000,13200000,13820000,14490000]
[]
["check",null,{"$f":"C164-SA34c!C175","v":0},{"$f":"D164-SA34c!D175","v":0},{"$f":"E164-SA34c!E175","v":0},{"$f":"F164-SA34c!F175","v":0},{"$f":"G164-SA34c!G175","v":0},{"$f":"H164-SA34c!H175","v":0},null,{"$f":"J164-SA34c!I175","v":0},{"$f":"K164-SA34c!J175","v":0},{"$f":"L164-SA34c!K175","v":0}]
[{"$f":"head27a","v":"References"}]
["1. Must reconcile with 'Budgeted Financial Performance (Revenue and Expenditure)"]
["2. Must reconcile to supporting documentation on staff salaries"]
[]
["4. Expenditure to meet any 'unfunded obligations'"]
["5 This sub-total must agree with the total on SA22, but excluding councillor and board member items"]
["6. Include a note for each revenue item that is affected by 'revenue foregone'"]
[]
["8. Repairs and Maintenance is not a GRAP item. However to facilitate transparency, municipalities must provide a breakdown of the amounts included in the relevant GRAP items that will be spent on Repairs and Maintenance."]
["9. Must reconcile with Repairs and Maintenance by Asset Class (Total Repairs and Maintenance) on Table SA34c."]

{"sheet":"SA2","index":45,"n_rows":57,"n_cols":30,"rows_kept":57,"cut":false,"hidden":false,"merged":[[1,6,2,6],[1,7,2,7],[1,2,2,2],[1,3,2,3],[1,4,2,4],[1,5,2,5],[1,16,2,16],[1,17,2,17],[1,8,2,8],[1,9,2,9],[1,10,2,10],[1,11,2,11],[1,12,2,12],[1,13,2,13],[1,14,2,14],[1,15,2,15]]}
[{"$f":"muni&\" - \"&TableA2","v":"LIM331 Greater Giyani - Supporting Table SA2 Matrix Financial Performance Budget (revenue source/expenditure type and dept.)"}]
[{"$f":"desc","v":"Description"},{"$f":"head27","v":"Ref"},{"$f":"'A3-FinPerf V'!A5","v":"Vote 1 -  Energy Sources"},{"$f":"'A3-FinPerf V'!A6","v":"Vote 2 - Community and Social Services"},{"$f":"'A3-FinPerf V'!A7","v":"Vote 3 - Finance & Administration"},{"$f":"'A3-FinPerf V'!A8","v":"Vote 4 - Planning and Development"},{"$f":"'A3-FinPerf V'!A9","v":"Vote 5 - Executive & Council"},{"$f":"'A3-FinPerf V'!A10","v":"Vote 6 - Internal Audit"},{"$f":"'A3-FinPerf V'!A11","v":"Vote 7 - Road Transport"},{"$f":"'A3-FinPerf V'!A12","v":"Vote 8 - Public Safety"},{"$f":"'A3-FinPerf V'!A13","v":"Vote 9 - Waste Management"},{"$f":"'A3-FinPerf V'!A14","v":"Vote 10 - Sports & Recreation"},{"$f":"'A3-FinPerf V'!A15","v":"Vote 11 - Water Management"},{"$f":"'A3-FinPerf V'!A16","v":"Vote 12 - Waste Water Management"},{"$f":"'A3-FinPerf V'!A17","v":"Vote 13 - Housing"},{"$f":"'A3-FinPerf V'!A18","v":"Vote 14 - Finance & Administration 2"},{"$f":"'A3-FinPerf V'!A19","v":"Vote 15 - [NAME OF VOTE 15]"},"Total"]
["R thousand",1,"R'000","R'000","R'000","R'000","R'000","R'000",null,null,null,null,null,null,null,null,"R'000","R'000"]
["Revenue"]
["Exchange Revenue"]
["Service charges - Electricity",null,{"$f":"-SUMIFS(Sheet1!S71_ASBudgetAmount,Sheet1!S71_A4Code,$AC:$AC,Sheet1!S71_ItemType,$AD:$AD,Sheet1!S71_MasterVoteMunicipal,C$57)","v":0},{"$f":"-SUMIFS(Sheet1!S71_ASBudgetAmount,Sheet1!S71_A4Code,$AC:$AC,Sheet1!S71_ItemType,$AD:$AD,Sheet1!S71_MasterVoteMunicipal,D$57)","v":0},{"$f":"-SUMIFS(Sheet1!S71_ASBudgetAmount,Sheet1!S71_A4Code,$AC:$AC,Sheet1!S71_ItemType,$AD:$AD,Sheet1!S71_MasterVoteMunicipal,E$57)","v":0},{"$f":"-SUMIFS(Sheet1!S71_ASBudgetAmount,Sheet1!S71_A4Code,$AC:$AC,Sheet1!S71_ItemType,$AD:$AD,Sheet1!S71_MasterVoteMunicipal,F$57)","v":0},{"$f":"-SUMIFS(Sheet1!S71_ASBudgetAmount,Sheet1!S71_A4Code,$AC:$AC,Sheet1!S71_ItemType,$AD:$AD,Sheet1!S71_MasterVoteMunicipal,G$57)","v":0},{"$f":"-SUMIFS(Sheet1!S71_ASBudgetAmount,Sheet1!S71_A4Code,$AC:$AC,Sheet1!S71_ItemType,$AD:$AD,Sheet1!S71_MasterVoteMunicipal,H$57)","v":0},{"$f":"-SUMIFS(Sheet1!S71_ASBudgetAmount,Sheet1!S71_A4Code,$AC:$AC,Sheet1!S71_ItemType,$AD:$AD,Sheet1!S71_MasterVoteMunicipal,I$57)","v":0},{"$f":"-SUMIFS(Sheet1!S71_ASBudgetAmount,Sheet1!S71_A4Code,$AC:$AC,Sheet1!S71_ItemType,$AD:$AD,Sheet1!S71_MasterVoteMunicipal,J$57)","v":0},{"$f":"-SUMIFS(Sheet1!S71_ASBudgetAmount,Sheet1!S71_A4Code,$AC:$AC,Sheet1!S71_ItemType,$AD:$AD,Sheet1!S71_MasterVoteMunicipal,K$57)","v":0},{"$f":"-SUMIFS(Sheet1!S71_ASBudgetAmount,Sheet1!S71_A4Code,$AC:$AC,Sheet1!S71_ItemType,$AD:$AD,Sheet1!S71_MasterVoteMunicipal,L$57)","v":0},{"$f":"-SUMIFS(Sheet1!S71_ASBudgetAmount,Sheet1!S71_A4Code,$AC:$AC,Sheet1!S71_ItemType,$AD:$AD,Sheet1!S71_MasterVoteMunicipal,M$57)","v":0},{"$f":"-SUMIFS(Sheet1!S71_ASBudgetAmount,Sheet1!S71_A4Code,$AC:$AC,Sheet1!S71_ItemType,$AD:$AD,Sheet1!S71_MasterVoteMunicipal,N$57)","v":0},{"$f":"-SUMIFS(Sheet1!S71_ASBudgetAmount,Sheet1!S71_A4Code,$AC:$AC,Sheet1!S71_ItemType,$AD:$AD,Sheet1!S71_MasterVoteMunicipal,O$57)","v":0},{"$f":"-SUMIFS(Sheet1!S71_ASBudgetAmount,Sheet1!S71_A4Code,$AC:$AC,Sheet1!S71_ItemType,$AD:$AD,Sheet1!S71_MasterVoteMunicipal,P$57)","v":0},{"$f":"-SUMIFS(Sheet1!S71_ASBudgetAmount,Sheet1!S71_A4Code,$AC:$AC,Sheet1!S71_ItemType,$AD:$AD,Sheet1!S71_MasterVoteMunicipal,Q$57)","v":0},{"$f":"SUM(C6:Q6)","v":0},null,null,null,null,null,null,null,null,null,null,"0300","IR"]
["Service charges - Water",null,{"$f":"-SUMIFS(Sheet1!S71_ASBudgetAmount,Sheet1!S71_A4Code,$AC:$AC,Sheet1!S71_ItemType,$AD:$AD,Sheet1!S71_MasterVoteMunicipal,C$57)","v":0},{"$f":"-SUMIFS(Sheet1!S71_ASBudgetAmount,Sheet1!S71_A4Code,$AC:$AC,Sheet1!S71_ItemType,$AD:$AD,Sheet1!S71_MasterVoteMunicipal,D$57)","v":0},{"$f":"-SUMIFS(Sheet1!S71_ASBudgetAmount,Sheet1!S71_A4Code,$AC:$AC,Sheet1!S71_ItemType,$AD:$AD,Sheet1!S71_MasterVoteMunicipal,E$57)","v":0},{"$f":"-SUMIFS(Sheet1!S71_ASBudgetAmount,Sheet1!S71_A4Code,$AC:$AC,Sheet1!S71_ItemType,$AD:$AD,Sheet1!S71_MasterVoteMunicipal,F$57)","v":0},{"$f":"-SUMIFS(Sheet1!S71_ASBudgetAmount,Sheet1!S71_A4Code,$AC:$AC,Sheet1!S71_ItemType,$AD:$AD,Sheet1!S71_MasterVoteMunicipal,G$57)","v":0},{"$f":"-SUMIFS(Sheet1!S71_ASBudgetAmount,Sheet1!S71_A4Code,$AC:$AC,Sheet1!S71_ItemType,$AD:$AD,Sheet1!S71_MasterVoteMunicipal,H$57)","v":0},{"$f":"-SUMIFS(Sheet1!S71_ASBudgetAmount,Sheet1!S71_A4Code,$AC:$AC,Sheet1!S71_ItemType,$AD:$AD,Sheet1!S71_MasterVoteMunicipal,I$57)","v":0},{"$f":"-SUMIFS(Sheet1!S71_ASBudgetAmount,Sheet1!S71_A4Code,$AC:$AC,Sheet1!S71_ItemType,$AD:$AD,Sheet1!S71_MasterVoteMunicipal,J$57)","v":0},{"$f":"-SUMIFS(Sheet1!S71_ASBudgetAmount,Sheet1!S71_A4Code,$AC:$AC,Sheet1!S71_ItemType,$AD:$AD,Sheet1!S71_MasterVoteMunicipal,K$57)","v":0},{"$f":"-SUMIFS(Sheet1!S71_ASBudgetAmount,Sheet1!S71_A4Code,$AC:$AC,Sheet1!S71_ItemType,$AD:$AD,Sheet1!S71_MasterVoteMunicipal,L$57)","v":0},{"$f":"-SUMIFS(Sheet1!S71_ASBudgetAmount,Sheet1!S71_A4Code,$AC:$AC,Sheet1!S71_ItemType,$AD:$AD,Sheet1!S71_MasterVoteMunicipal,M$57)","v":0},{"$f":"-SUMIFS(Sheet1!S71_ASBudgetAmount,Sheet1!S71_A4Code,$AC:$AC,Sheet1!S71_ItemType,$AD:$AD,Sheet1!S71_MasterVoteMunicipal,N$57)","v":0},{"$f":"-SUMIFS(Sheet1!S71_ASBudgetAmount,Sheet1!S71_A4Code,$AC:$AC,Sheet1!S71_ItemType,$AD:$AD,Sheet1!S71_MasterVoteMunicipal,O$57)","v":0},{"$f":"-SUMIFS(Sheet1!S71_ASBudgetAmount,Sheet1!S71_A4Code,$AC:$AC,Sheet1!S71_ItemType,$AD:$AD,Sheet1!S71_MasterVoteMunicipal,P$57)","v":0},{"$f":"-SUMIFS(Sheet1!S71_ASBudgetAmount,Sheet1!S71_A4Code,$AC:$AC,Sheet1!S71_ItemType,$AD:$AD,Sheet1!S71_MasterVoteMunicipal,Q$57)","v":0},0,null,null,null,null,null,null,null,null,null,null,"0400","IR"]
["Service charges - Waste Water Management",null,{"$f":"-SUMIFS(Sheet1!S71_ASBudgetAmount,Sheet1!S71_A4Code,$AC:$AC,Sheet1!S71_ItemType,$AD:$AD,Sheet1!S71_MasterVoteMunicipal,C$57)","v":0},{"$f":"-SUMIFS(Sheet1!S71_ASBudgetAmount,Sheet1!S71_A4Code,$AC:$AC,Sheet1!S71_ItemType,$AD:$AD,Sheet1!S71_MasterVoteMunicipal,D$57)","v":0},{"$f":"-SUMIFS(Sheet1!S71_ASBudgetAmount,Sheet1!S71_A4Code,$AC:$AC,Sheet1!S71_ItemType,$AD:$AD,Sheet1!S71_MasterVoteMunicipal,E$57)","v":0},{"$f":"-SUMIFS(Sheet1!S71_ASBudgetAmount,Sheet1!S71_A4Code,$AC:$AC,Sheet1!S71_ItemType,$AD:$AD,Sheet1!S71_MasterVoteMunicipal,F$57)","v":0},{"$f":"-SUMIFS(Sheet1!S71_ASBudgetAmount,Sheet1!S71_A4Code,$AC:$AC,Sheet1!S71_ItemType,$AD:$AD,Sheet1!S71_MasterVoteMunicipal,G$57)","v":0},{"$f":"-SUMIFS(Sheet1!S71_ASBudgetAmount,Sheet1!S71_A4Code,$AC:$AC,Sheet1!S71_ItemType,$AD:$AD,Sheet1!S71_MasterVoteMunicipal,H$57)","v":0},{"$f":"-SUMIFS(Sheet1!S71_ASBudgetAmount,Sheet1!S71_A4Code,$AC:$AC,Sheet1!S71_ItemType,$AD:$AD,Sheet1!S71_MasterVoteMunicipal,I$57)","v":0},{"$f":"-SUMIFS(Sheet1!S71_ASBudgetAmount,Sheet1!S71_A4Code,$AC:$AC,Sheet1!S71_ItemType,$AD:$AD,Sheet1!S71_MasterVoteMunicipal,J$57)","v":0},{"$f":"-SUMIFS(Sheet1!S71_ASBudgetAmount,Sheet1!S71_A4Code,$AC:$AC,Sheet1!S71_ItemType,$AD:$AD,Sheet1!S71_MasterVoteMunicipal,K$57)","v":0},{"$f":"-SUMIFS(Sheet1!S71_ASBudgetAmount,Sheet1!S71_A4Code,$AC:$AC,Sheet1!S71_ItemType,$AD:$AD,Sheet1!S71_MasterVoteMunicipal,L$57)","v":0},{"$f":"-SUMIFS(Sheet1!S71_ASBudgetAmount,Sheet1!S71_A4Code,$AC:$AC,Sheet1!S71_ItemType,$AD:$AD,Sheet1!S71_MasterVoteMunicipal,M$57)","v":0},{"$f":"-SUMIFS(Sheet1!S71_ASBudgetAmount,Sheet1!S71_A4Code,$AC:$AC,Sheet1!S71_ItemType,$AD:$AD,Sheet1!S71_MasterVoteMunicipal,N$57)","v":0},{"$f":"-SUMIFS(Sheet1!S71_ASBudgetAmount,Sheet1!S71_A4Code,$AC:$AC,Sheet1!S71_ItemType,$AD:$AD,Sheet1!S71_MasterVoteMunicipal,O$57)","v":0},{"$f":"-SUMIFS(Sheet1!S71_ASBudgetAmount,Sheet1!S71_A4Code,$AC:$AC,Sheet1!S71_ItemType,$AD:$AD,Sheet1!S71_MasterVoteMunicipal,P$57)","v":0},{"$f":"-SUMIFS(Sheet1!S71_ASBudgetAmount,Sheet1!S71_A4Code,$AC:$AC,Sheet1!S71_ItemType,$AD:$AD,Sheet1!S71_MasterVoteMunicipal,Q$57)","v":0},0,null,null,null,null,null,null,null,null,null,null,"0500","IR"]
["Service charges - Waste Management",null,{"$f":"-SUMIFS(Sheet1!S71_ASBudgetAmount,Sheet1!S71_A4Code,$AC:$AC,Sheet1!S71_ItemType,$AD:$AD,Sheet1!S71_MasterVoteMunicipal,C$57)","v":0},{"$f":"-SUMIFS(Sheet1!S71_ASBudgetAmount,Sheet1!S71_A4Code,$AC:$AC,Sheet1!S71_ItemType,$AD:$AD,Sheet1!S71_MasterVoteMunicipal,D$57)","v":0},{"$f":"-SUMIFS(Sheet1!S71_ASBudgetAmount,Sheet1!S71_A4Code,$AC:$AC,Sheet1!S71_ItemType,$AD:$AD,Sheet1!S71_MasterVoteMunicipal,E$57)","v":0},{"$f":"-SUMIFS(Sheet1!S71_ASBudgetAmount,Sheet1!S71_A4Code,$AC:$AC,Sheet1!S71_ItemType,$AD:$AD,Sheet1!S71_MasterVoteMunicipal,F$57)","v":0},{"$f":"-SUMIFS(Sheet1!S71_ASBudgetAmount,Sheet1!S71_A4Code,$AC:$AC,Sheet1!S71_ItemType,$AD:$AD,Sheet1!S71_MasterVoteMunicipal,G$57)","v":0},{"$f":"-SUMIFS(Sheet1!S71_ASBudgetAmount,Sheet1!S71_A4Code,$AC:$AC,Sheet1!S71_ItemType,$AD:$AD,Sheet1!S71_MasterVoteMunicipal,H$57)","v":0},{"$f":"-SUMIFS(Sheet1!S71_ASBudgetAmount,Sheet1!S71_A4Code,$AC:$AC,Sheet1!S71_ItemType,$AD:$AD,Sheet1!S71_MasterVoteMunicipal,I$57)","v":0},{"$f":"-SUMIFS(Sheet1!S71_ASBudgetAmount,Sheet1!S71_A4Code,$AC:$AC,Sheet1!S71_ItemType,$AD:$AD,Sheet1!S71_MasterVoteMunicipal,J$57)","v":0},{"$f":"-SUMIFS(Sheet1!S71_ASBudgetAmount,Sheet1!S71_A4Code,$AC:$AC,Sheet1!S71_ItemType,$AD:$AD,Sheet1!S71_MasterVoteMunicipal,K$57)","v":-9424350},{"$f":"-SUMIFS(Sheet1!S71_ASBudgetAmount,Sheet1!S71_A4Code,$AC:$AC,Sheet1!S71_ItemType,$AD:$AD,Sheet1!S71_MasterVoteMunicipal,L$57)","v":0},{"$f":"-SUMIFS(Sheet1!S71_ASBudgetAmount,Sheet1!S71_A4Code,$AC:$AC,Sheet1!S71_ItemType,$AD:$AD,Sheet1!S71_MasterVoteMunicipal,M$57)","v":0},{"$f":"-SUMIFS(Sheet1!S71_ASBudgetAmount,Sheet1!S71_A4Code,$AC:$AC,Sheet1!S71_ItemType,$AD:$AD,Sheet1!S71_MasterVoteMunicipal,N$57)","v":0},{"$f":"-SUMIFS(Sheet1!S71_ASBudgetAmount,Sheet1!S71_A4Code,$AC:$AC,Sheet1!S71_ItemType,$AD:$AD,Sheet1!S71_MasterVoteMunicipal,O$57)","v":0},{"$f":"-SUMIFS(Sheet1!S71_ASBudgetAmount,Sheet1!S71_A4Code,$AC:$AC,Sheet1!S71_ItemType,$AD:$AD,Sheet1!S71_MasterVoteMunicipal,P$57)","v":0},{"$f":"-SUMIFS(Sheet1!S71_ASBudgetAmount,Sheet1!S71_A4Code,$AC:$AC,Sheet1!S71_ItemType,$AD:$AD,Sheet1!S71_MasterVoteMunicipal,Q$57)","v":0},-9424350,null,null,null,null,null,null,null,null,null,null,"0600","IR"]
["Sale of Goods and Rendering of Services",null,{"$f":"-SUMIFS(Sheet1!S71_ASBudgetAmount,Sheet1!S71_A4Code,$AC:$AC,Sheet1!S71_ItemType,$AD:$AD,Sheet1!S71_MasterVoteMunicipal,C$57)","v":0},{"$f":"-SUMIFS(Sheet1!S71_ASBudgetAmount,Sheet1!S71_A4Code,$AC:$AC,Sheet1!S71_ItemType,$AD:$AD,Sheet1!S71_MasterVoteMunicipal,D$57)","v":-565939},{"$f":"-SUMIFS(Sheet1!S71_ASBudgetAmount,Sheet1!S71_A4Code,$AC:$AC,Sheet1!S71_ItemType,$AD:$AD,Sheet1!S71_MasterVoteMunicipal,E$57)","v":-1970635},{"$f":"-SUMIFS(Sheet1!S71_ASBudgetAmount,Sheet1!S71_A4Code,$AC:$AC,Sheet1!S71_ItemType,$AD:$AD,Sheet1!S71_MasterVoteMunicipal,F$57)","v":-420000},{"$f":"-SUMIFS(Sheet1!S71_ASBudgetAmount,Sheet1!S71_A4Code,$AC:$AC,Sheet1!S71_ItemType,$AD:$AD,Sheet1!S71_MasterVoteMunicipal,G$57)","v":0},{"$f":"-SUMIFS(Sheet1!S71_ASBudgetAmount,Sheet1!S71_A4Code,$AC:$AC,Sheet1!S71_ItemType,$AD:$AD,Sheet1!S71_MasterVoteMunicipal,H$57)","v":0},{"$f":"-SUMIFS(Sheet1!S71_ASBudgetAmount,Sheet1!S71_A4Code,$AC:$AC,Sheet1!S71_ItemType,$AD:$AD,Sheet1!S71_MasterVoteMunicipal,I$57)","v":-50000},{"$f":"-SUMIFS(Sheet1!S71_ASBudgetAmount,Sheet1!S71_A4Code,$AC:$AC,Sheet1!S71_ItemType,$AD:$AD,Sheet1!S71_MasterVoteMunicipal,J$57)","v":0},{"$f":"-SUMIFS(Sheet1!S71_ASBudgetAmount,Sheet1!S71_A4Code,$AC:$AC,Sheet1!S71_ItemType,$AD:$AD,Sheet1!S71_MasterVoteMunicipal,K$57)","v":-100000},{"$f":"-SUMIFS(Sheet1!S71_ASBudgetAmount,Sheet1!S71_A4Code,$AC:$AC,Sheet1!S71_ItemType,$AD:$AD,Sheet1!S71_MasterVoteMunicipal,L$57)","v":0},{"$f":"-SUMIFS(Sheet1!S71_ASBudgetAmount,Sheet1!S71_A4Code,$AC:$AC,Sheet1!S71_ItemType,$AD:$AD,Sheet1!S71_MasterVoteMunicipal,M$57)","v":0},{"$f":"-SUMIFS(Sheet1!S71_ASBudgetAmount,Sheet1!S71_A4Code,$AC:$AC,Sheet1!S71_ItemType,$AD:$AD,Sheet1!S71_MasterVoteMunicipal,N$57)","v":0},{"$f":"-SUMIFS(Sheet1!S71_ASBudgetAmount,Sheet1!S71_A4Code,$AC:$AC,Sheet1!S71_ItemType,$AD:$AD,Sheet1!S71_MasterVoteMunicipal,O$57)","v":0},{"$f":"-SUMIFS(Sheet1!S71_ASBudgetAmount,Sheet1!S71_A4Code,$AC:$AC,Sheet1!S71_ItemType,$AD:$AD,Sheet1!S71_MasterVoteMunicipal,P$57)","v":0},{"$f":"-SUMIFS(Sheet1!S71_ASBudgetAmount,Sheet1!S71_A4Code,$AC:$AC,Sheet1!S71_ItemType,$AD:$AD,Sheet1!S71_MasterVoteMunicipal,Q$57)","v":0},-3106574,null,null,null,null,null,null,null,null,null,null,"0700","IR"]
["Agency services",null,{"$f":"-SUMIFS(Sheet1!S71_ASBudgetAmount,Sheet1!S71_A4Code,$AC:$AC,Sheet1!S71_ItemType,$AD:$AD,Sheet1!S71_MasterVoteMunicipal,C$57)","v":0},{"$f":"-SUMIFS(Sheet1!S71_ASBudgetAmount,Sheet1!S71_A4Code,$AC:$AC,Sheet1!S71_ItemType,$AD:$AD,Sheet1!S71_MasterVoteMunicipal,D$57)","v":0},{"$f":"-SUMIFS(Sheet1!S71_ASBudgetAmount,Sheet1!S71_A4Code,$AC:$AC,Sheet1!S71_ItemType,$AD:$AD,Sheet1!S71_MasterVoteMunicipal,E$57)","v":-5896800},{"$f":"-SUMIFS(Sheet1!S71_ASBudgetAmount,Sheet1!S71_A4Code,$AC:$AC,Sheet1!S71_ItemType,$AD:$AD,Sheet1!S71_MasterVoteMunicipal,F$57)","v":0},{"$f":"-SUMIFS(Sheet1!S71_ASBudgetAmount,Sheet1!S71_A4Code,$AC:$AC,Sheet1!S71_ItemType,$AD:$AD,Sheet1!S71_MasterVoteMunicipal,G$57)","v":0},{"$f":"-SUMIFS(Sheet1!S71_ASBudgetAmount,Sheet1!S71_A4Code,$AC:$AC,Sheet1!S71_ItemType,$AD:$AD,Sheet1!S71_MasterVoteMunicipal,H$57)","v":0},{"$f":"-SUMIFS(Sheet1!S71_ASBudgetAmount,Sheet1!S71_A4Code,$AC:$AC,Sheet1!S71_ItemType,$AD:$AD,Sheet1!S71_MasterVoteMunicipal,I$57)","v":0},{"$f":"-SUMIFS(Sheet1!S71_ASBudgetAmount,Sheet1!S71_A4Code,$AC:$AC,Sheet1!S71_ItemType,$AD:$AD,Sheet1!S71_MasterVoteMunicipal,J$57)","v":0},{"$f":"-SUMIFS(Sheet1!S71_ASBudgetAmount,Sheet1!S71_A4Code,$AC:$AC,Sheet1!S71_ItemType,$AD:$AD,Sheet1!S71_MasterVoteMunicipal,K$57)","v":0},{"$f":"-SUMIFS(Sheet1!S71_ASBudgetAmount,Sheet1!S71_A4Code,$AC:$AC,Sheet1!S71_ItemType,$AD:$AD,Sheet1!S71_MasterVoteMunicipal,L$57)","v":0},{"$f":"-SUMIFS(Sheet1!S71_ASBudgetAmount,Sheet1!S71_A4Code,$AC:$AC,Sheet1!S71_ItemType,$AD:$AD,Sheet1!S71_MasterVoteMunicipal,M$57)","v":0},{"$f":"-SUMIFS(Sheet1!S71_ASBudgetAmount,Sheet1!S71_A4Code,$AC:$AC,Sheet1!S71_ItemType,$AD:$AD,Sheet1!S71_MasterVoteMunicipal,N$57)","v":0},{"$f":"-SUMIFS(Sheet1!S71_ASBudgetAmount,Sheet1!S71_A4Code,$AC:$AC,Sheet1!S71_ItemType,$AD:$AD,Sheet1!S71_MasterVoteMunicipal,O$57)","v":0},{"$f":"-SUMIFS(Sheet1!S71_ASBudgetAmount,Sheet1!S71_A4Code,$AC:$AC,Sheet1!S71_ItemType,$AD:$AD,Sheet1!S71_MasterVoteMunicipal,P$57)","v":0},{"$f":"-SUMIFS(Sheet1!S71_ASBudgetAmount,Sheet1!S71_A4Code,$AC:$AC,Sheet1!S71_ItemType,$AD:$AD,Sheet1!S71_MasterVoteMunicipal,Q$57)","v":0},-5896800,null,null,null,null,null,null,null,null,null,null,"0800","IR"]
["Interest",null,{"$f":"-SUMIFS(Sheet1!S71_ASBudgetAmount,Sheet1!S71_A4Code,$AC:$AC,Sheet1!S71_ItemType,$AD:$AD,Sheet1!S71_MasterVoteMunicipal,C$57)","v":0},{"$f":"-SUMIFS(Sheet1!S71_ASBudgetAmount,Sheet1!S71_A4Code,$AC:$AC,Sheet1!S71_ItemType,$AD:$AD,Sheet1!S71_MasterVoteMunicipal,D$57)","v":0},{"$f":"-SUMIFS(Sheet1!S71_ASBudgetAmount,Sheet1!S71_A4Code,$AC:$AC,Sheet1!S71_ItemType,$AD:$AD,Sheet1!S71_MasterVoteMunicipal,E$57)","v":0},{"$f":"-SUMIFS(Sheet1!S71_ASBudgetAmount,Sheet1!S71_A4Code,$AC:$AC,Sheet1!S71_ItemType,$AD:$AD,Sheet1!S71_MasterVoteMunicipal,F$57)","v":0},{"$f":"-SUMIFS(Sheet1!S71_ASBudgetAmount,Sheet1!S71_A4Code,$AC:$AC,Sheet1!S71_ItemType,$AD:$AD,Sheet1!S71_MasterVoteMunicipal,G$57)","v":0},{"$f":"-SUMIFS(Sheet1!S71_ASBudgetAmount,Sheet1!S71_A4Code,$AC:$AC,Sheet1!S71_ItemType,$AD:$AD,Sheet1!S71_MasterVoteMunicipal,H$57)","v":0},{"$f":"-SUMIFS(Sheet1!S71_ASBudgetAmount,Sheet1!S71_A4Code,$AC:$AC,Sheet1!S71_ItemType,$AD:$AD,Sheet1!S71_MasterVoteMunicipal,I$57)","v":0},{"$f":"-SUMIFS(Sheet1!S71_ASBudgetAmount,Sheet1!S71_A4Code,$AC:$AC,Sheet1!S71_ItemType,$AD:$AD,Sheet1!S71_MasterVoteMunicipal,J$57)","v":0},{"$f":"-SUMIFS(Sheet1!S71_ASBudgetAmount,Sheet1!S71_A4Code,$AC:$AC,Sheet1!S71_ItemType,$AD:$AD,Sheet1!S71_MasterVoteMunicipal,K$57)","v":0},{"$f":"-SUMIFS(Sheet1!S71_ASBudgetAmount,Sheet1!S71_A4Code,$AC:$AC,Sheet1!S71_ItemType,$AD:$AD,Sheet1!S71_MasterVoteMunicipal,L$57)","v":0},{"$f":"-SUMIFS(Sheet1!S71_ASBudgetAmount,Sheet1!S71_A4Code,$AC:$AC,Sheet1!S71_ItemType,$AD:$AD,Sheet1!S71_MasterVoteMunicipal,M$57)","v":0},{"$f":"-SUMIFS(Sheet1!S71_ASBudgetAmount,Sheet1!S71_A4Code,$AC:$AC,Sheet1!S71_ItemType,$AD:$AD,Sheet1!S71_MasterVoteMunicipal,N$57)","v":0},{"$f":"-SUMIFS(Sheet1!S71_ASBudgetAmount,Sheet1!S71_A4Code,$AC:$AC,Sheet1!S71_ItemType,$AD:$AD,Sheet1!S71_MasterVoteMunicipal,O$57)","v":0},{"$f":"-SUMIFS(Sheet1!S71_ASBudgetAmount,Sheet1!S71_A4Code,$AC:$AC,Sheet1!S71_ItemType,$AD:$AD,Sheet1!S71_MasterVoteMunicipal,P$57)","v":0},{"$f":"-SUMIFS(Sheet1!S71_ASBudgetAmount,Sheet1!S71_A4Code,$AC:$AC,Sheet1!S71_ItemType,$AD:$AD,Sheet1!S71_MasterVoteMunicipal,Q$57)","v":0},0,null,null,null,null,null,null,null,null,null,null,"0900","IR"]
["Interest earned from Receivables",null,{"$f":"-SUMIFS(Sheet1!S71_ASBudgetAmount,Sheet1!S71_A4Code,$AC:$AC,Sheet1!S71_ItemType,$AD:$AD,Sheet1!S71_MasterVoteMunicipal,C$57)","v":0},{"$f":"-SUMIFS(Sheet1!S71_ASBudgetAmount,Sheet1!S71_A4Code,$AC:$AC,Sheet1!S71_ItemType,$AD:$AD,Sheet1!S71_MasterVoteMunicipal,D$57)","v":0},{"$f":"-SUMIFS(Sheet1!S71_ASBudgetAmount,Sheet1!S71_A4Code,$AC:$AC,Sheet1!S71_ItemType,$AD:$AD,Sheet1!S71_MasterVoteMunicipal,E$57)","v":-356025},{"$f":"-SUMIFS(Sheet1!S71_ASBudgetAmount,Sheet1!S71_A4Code,$AC:$AC,Sheet1!S71_ItemType,$AD:$AD,Sheet1!S71_MasterVoteMunicipal,F$57)","v":0},{"$f":"-SUMIFS(Sheet1!S71_ASBudgetAmount,Sheet1!S71_A4Code,$AC:$AC,Sheet1!S71_ItemType,$AD:$AD,Sheet1!S71_MasterVoteMunicipal,G$57)","v":0},{"$f":"-SUMIFS(Sheet1!S71_ASBudgetAmount,Sheet1!S71_A4Code,$AC:$AC,Sheet1!S71_ItemType,$AD:$AD,Sheet1!S71_MasterVoteMunicipal,H$57)","v":0},{"$f":"-SUMIFS(Sheet1!S71_ASBudgetAmount,Sheet1!S71_A4Code,$AC:$AC,Sheet1!S71_ItemType,$AD:$AD,Sheet1!S71_MasterVoteMunicipal,I$57)","v":0},{"$f":"-SUMIFS(Sheet1!S71_ASBudgetAmount,Sheet1!S71_A4Code,$AC:$AC,Sheet1!S71_ItemType,$AD:$AD,Sheet1!S71_MasterVoteMunicipal,J$57)","v":0},{"$f":"-SUMIFS(Sheet1!S71_ASBudgetAmount,Sheet1!S71_A4Code,$AC:$AC,Sheet1!S71_ItemType,$AD:$AD,Sheet1!S71_MasterVoteMunicipal,K$57)","v":-3124345},{"$f":"-SUMIFS(Sheet1!S71_ASBudgetAmount,Sheet1!S71_A4Code,$AC:$AC,Sheet1!S71_ItemType,$AD:$AD,Sheet1!S71_MasterVoteMunicipal,L$57)","v":0},{"$f":"-SUMIFS(Sheet1!S71_ASBudgetAmount,Sheet1!S71_A4Code,$AC:$AC,Sheet1!S71_ItemType,$AD:$AD,Sheet1!S71_MasterVoteMunicipal,M$57)","v":0},{"$f":"-SUMIFS(Sheet1!S71_ASBudgetAmount,Sheet1!S71_A4Code,$AC:$AC,Sheet1!S71_ItemType,$AD:$AD,Sheet1!S71_MasterVoteMunicipal,N$57)","v":0},{"$f":"-SUMIFS(Sheet1!S71_ASBudgetAmount,Sheet1!S71_A4Code,$AC:$AC,Sheet1!S71_ItemType,$AD:$AD,Sheet1!S71_MasterVoteMunicipal,O$57)","v":0},{"$f":"-SUMIFS(Sheet1!S71_ASBudgetAmount,Sheet1!S71_A4Code,$AC:$AC,Sheet1!S71_ItemType,$AD:$AD,Sheet1!S71_MasterVoteMunicipal,P$57)","v":0},{"$f":"-SUMIFS(Sheet1!S71_ASBudgetAmount,Sheet1!S71_A4Code,$AC:$AC,Sheet1!S71_ItemType,$AD:$AD,Sheet1!S71_MasterVoteMunicipal,Q$57)","v":0},-3480370,null,null,null,null,null,null,null,null,null,null,"1000","IR"]
["Interest earned from Current and Non Current Assets",null,{"$f":"-SUMIFS(Sheet1!S71_ASBudgetAmount,Sheet1!S71_A4Code,$AC:$AC,Sheet1!S71_ItemType,$AD:$AD,Sheet1!S71_MasterVoteMunicipal,C$57)","v":0},{"$f":"-SUMIFS(Sheet1!S71_ASBudgetAmount,Sheet1!S71_A4Code,$AC:$AC,Sheet1!S71_ItemType,$AD:$AD,Sheet1!S71_MasterVoteMunicipal,D$57)","v":0},{"$f":"-SUMIFS(Sheet1!S71_ASBudgetAmount,Sheet1!S71_A4Code,$AC:$AC,Sheet1!S71_ItemType,$AD:$AD,Sheet1!S71_MasterVoteMunicipal,E$57)","v":-12249957},{"$f":"-SUMIFS(Sheet1!S71_ASBudgetAmount,Sheet1!S71_A4Code,$AC:$AC,Sheet1!S71_ItemType,$AD:$AD,Sheet1!S71_MasterVoteMunicipal,F$57)","v":0},{"$f":"-SUMIFS(Sheet1!S71_ASBudgetAmount,Sheet1!S71_A4Code,$AC:$AC,Sheet1!S71_ItemType,$AD:$AD,Sheet1!S71_MasterVoteMunicipal,G$57)","v":0},{"$f":"-SUMIFS(Sheet1!S71_ASBudgetAmount,Sheet1!S71_A4Code,$AC:$AC,Sheet1!S71_ItemType,$AD:$AD,Sheet1!S71_MasterVoteMunicipal,H$57)","v":0},{"$f":"-SUMIFS(Sheet1!S71_ASBudgetAmount,Sheet1!S71_A4Code,$AC:$AC,Sheet1!S71_ItemType,$AD:$AD,Sheet1!S71_MasterVoteMunicipal,I$57)","v":0},{"$f":"-SUMIFS(Sheet1!S71_ASBudgetAmount,Sheet1!S71_A4Code,$AC:$AC,Sheet1!S71_ItemType,$AD:$AD,Sheet1!S71_MasterVoteMunicipal,J$57)","v":0},{"$f":"-SUMIFS(Sheet1!S71_ASBudgetAmount,Sheet1!S71_A4Code,$AC:$AC,Sheet1!S71_ItemType,$AD:$AD,Sheet1!S71_MasterVoteMunicipal,K$57)","v":0},{"$f":"-SUMIFS(Sheet1!S71_ASBudgetAmount,Sheet1!S71_A4Code,$AC:$AC,Sheet1!S71_ItemType,$AD:$AD,Sheet1!S71_MasterVoteMunicipal,L$57)","v":0},{"$f":"-SUMIFS(Sheet1!S71_ASBudgetAmount,Sheet1!S71_A4Code,$AC:$AC,Sheet1!S71_ItemType,$AD:$AD,Sheet1!S71_MasterVoteMunicipal,M$57)","v":0},{"$f":"-SUMIFS(Sheet1!S71_ASBudgetAmount,Sheet1!S71_A4Code,$AC:$AC,Sheet1!S71_ItemType,$AD:$AD,Sheet1!S71_MasterVoteMunicipal,N$57)","v":0},{"$f":"-SUMIFS(Sheet1!S71_ASBudgetAmount,Sheet1!S71_A4Code,$AC:$AC,Sheet1!S71_ItemType,$AD:$AD,Sheet1!S71_MasterVoteMunicipal,O$57)","v":0},{"$f":"-SUMIFS(Sheet1!S71_ASBudgetAmount,Sheet1!S71_A4Code,$AC:$AC,Sheet1!S71_ItemType,$AD:$AD,Sheet1!S71_MasterVoteMunicipal,P$57)","v":0},{"$f":"-SUMIFS(Sheet1!S71_ASBudgetAmount,Sheet1!S71_A4Code,$AC:$AC,Sheet1!S71_ItemType,$AD:$AD,Sheet1!S71_MasterVoteMunicipal,Q$57)","v":0},-12249957,null,null,null,null,null,null,null,null,null,null,"1100","IR"]
["Dividends",null,{"$f":"-SUMIFS(Sheet1!S71_ASBudgetAmount,Sheet1!S71_A4Code,$AC:$AC,Sheet1!S71_ItemType,$AD:$AD,Sheet1!S71_MasterVoteMunicipal,C$57)","v":0},{"$f":"-SUMIFS(Sheet1!S71_ASBudgetAmount,Sheet1!S71_A4Code,$AC:$AC,Sheet1!S71_ItemType,$AD:$AD,Sheet1!S71_MasterVoteMunicipal,D$57)","v":0},{"$f":"-SUMIFS(Sheet1!S71_ASBudgetAmount,Sheet1!S71_A4Code,$AC:$AC,Sheet1!S71_ItemType,$AD:$AD,Sheet1!S71_MasterVoteMunicipal,E$57)","v":0},{"$f":"-SUMIFS(Sheet1!S71_ASBudgetAmount,Sheet1!S71_A4Code,$AC:$AC,Sheet1!S71_ItemType,$AD:$AD,Sheet1!S71_MasterVoteMunicipal,F$57)","v":0},{"$f":"-SUMIFS(Sheet1!S71_ASBudgetAmount,Sheet1!S71_A4Code,$AC:$AC,Sheet1!S71_ItemType,$AD:$AD,Sheet1!S71_MasterVoteMunicipal,G$57)","v":0},{"$f":"-SUMIFS(Sheet1!S71_ASBudgetAmount,Sheet1!S71_A4Code,$AC:$AC,Sheet1!S71_ItemType,$AD:$AD,Sheet1!S71_MasterVoteMunicipal,H$57)","v":0},{"$f":"-SUMIFS(Sheet1!S71_ASBudgetAmount,Sheet1!S71_A4Code,$AC:$AC,Sheet1!S71_ItemType,$AD:$AD,Sheet1!S71_MasterVoteMunicipal,I$57)","v":0},{"$f":"-SUMIFS(Sheet1!S71_ASBudgetAmount,Sheet1!S71_A4Code,$AC:$AC,Sheet1!S71_ItemType,$AD:$AD,Sheet1!S71_MasterVoteMunicipal,J$57)","v":0},{"$f":"-SUMIFS(Sheet1!S71_ASBudgetAmount,Sheet1!S71_A4Code,$AC:$AC,Sheet1!S71_ItemType,$AD:$AD,Sheet1!S71_MasterVoteMunicipal,K$57)","v":0},{"$f":"-SUMIFS(Sheet1!S71_ASBudgetAmount,Sheet1!S71_A4Code,$AC:$AC,Sheet1!S71_ItemType,$AD:$AD,Sheet1!S71_MasterVoteMunicipal,L$57)","v":0},{"$f":"-SUMIFS(Sheet1!S71_ASBudgetAmount,Sheet1!S71_A4Code,$AC:$AC,Sheet1!S71_ItemType,$AD:$AD,Sheet1!S71_MasterVoteMunicipal,M$57)","v":0},{"$f":"-SUMIFS(Sheet1!S71_ASBudgetAmount,Sheet1!S71_A4Code,$AC:$AC,Sheet1!S71_ItemType,$AD:$AD,Sheet1!S71_MasterVoteMunicipal,N$57)","v":0},{"$f":"-SUMIFS(Sheet1!S71_ASBudgetAmount,Sheet1!S71_A4Code,$AC:$AC,Sheet1!S71_ItemType,$AD:$AD,Sheet1!S71_MasterVoteMunicipal,O$57)","v":0},{"$f":"-SUMIFS(Sheet1!S71_ASBudgetAmount,Sheet1!S71_A4Code,$AC:$AC,Sheet1!S71_ItemType,$AD:$AD,Sheet1!S71_MasterVoteMunicipal,P$57)","v":0},{"$f":"-SUMIFS(Sheet1!S71_ASBudgetAmount,Sheet1!S71_A4Code,$AC:$AC,Sheet1!S71_ItemType,$AD:$AD,Sheet1!S71_MasterVoteMunicipal,Q$57)","v":0},0,null,null,null,null,null,null,null,null,null,null,"1200","IR"]
["Rent on Land",null,{"$f":"-SUMIFS(Sheet1!S71_ASBudgetAmount,Sheet1!S71_A4Code,$AC:$AC,Sheet1!S71_ItemType,$AD:$AD,Sheet1!S71_MasterVoteMunicipal,C$57)","v":0},{"$f":"-SUMIFS(Sheet1!S71_ASBudgetAmount,Sheet1!S71_A4Code,$AC:$AC,Sheet1!S71_ItemType,$AD:$AD,Sheet1!S71_MasterVoteMunicipal,D$57)","v":0},{"$f":"-SUMIFS(Sheet1!S71_ASBudgetAmount,Sheet1!S71_A4Code,$AC:$AC,Sheet1!S71_ItemType,$AD:$AD,Sheet1!S71_MasterVoteMunicipal,E$57)","v":0},{"$f":"-SUMIFS(Sheet1!S71_ASBudgetAmount,Sheet1!S71_A4Code,$AC:$AC,Sheet1!S71_ItemType,$AD:$AD,Sheet1!S71_MasterVoteMunicipal,F$57)","v":0},{"$f":"-SUMIFS(Sheet1!S71_ASBudgetAmount,Sheet1!S71_A4Code,$AC:$AC,Sheet1!S71_ItemType,$AD:$AD,Sheet1!S71_MasterVoteMunicipal,G$57)","v":0},{"$f":"-SUMIFS(Sheet1!S71_ASBudgetAmount,Sheet1!S71_A4Code,$AC:$AC,Sheet1!S71_ItemType,$AD:$AD,Sheet1!S71_MasterVoteMunicipal,H$57)","v":0},{"$f":"-SUMIFS(Sheet1!S71_ASBudgetAmount,Sheet1!S71_A4Code,$AC:$AC,Sheet1!S71_ItemType,$AD:$AD,Sheet1!S71_MasterVoteMunicipal,I$57)","v":0},{"$f":"-SUMIFS(Sheet1!S71_ASBudgetAmount,Sheet1!S71_A4Code,$AC:$AC,Sheet1!S71_ItemType,$AD:$AD,Sheet1!S71_MasterVoteMunicipal,J$57)","v":0},{"$f":"-SUMIFS(Sheet1!S71_ASBudgetAmount,Sheet1!S71_A4Code,$AC:$AC,Sheet1!S71_ItemType,$AD:$AD,Sheet1!S71_MasterVoteMunicipal,K$57)","v":0},{"$f":"-SUMIFS(Sheet1!S71_ASBudgetAmount,Sheet1!S71_A4Code,$AC:$AC,Sheet1!S71_ItemType,$AD:$AD,Sheet1!S71_MasterVoteMunicipal,L$57)","v":0},{"$f":"-SUMIFS(Sheet1!S71_ASBudgetAmount,Sheet1!S71_A4Code,$AC:$AC,Sheet1!S71_ItemType,$AD:$AD,Sheet1!S71_MasterVoteMunicipal,M$57)","v":0},{"$f":"-SUMIFS(Sheet1!S71_ASBudgetAmount,Sheet1!S71_A4Code,$AC:$AC,Sheet1!S71_ItemType,$AD:$AD,Sheet1!S71_MasterVoteMunicipal,N$57)","v":0},{"$f":"-SUMIFS(Sheet1!S71_ASBudgetAmount,Sheet1!S71_A4Code,$AC:$AC,Sheet1!S71_ItemType,$AD:$AD,Sheet1!S71_MasterVoteMunicipal,O$57)","v":0},{"$f":"-SUMIFS(Sheet1!S71_ASBudgetAmount,Sheet1!S71_A4Code,$AC:$AC,Sheet1!S71_ItemType,$AD:$AD,Sheet1!S71_MasterVoteMunicipal,P$57)","v":0},{"$f":"-SUMIFS(Sheet1!S71_ASBudgetAmount,Sheet1!S71_A4Code,$AC:$AC,Sheet1!S71_ItemType,$AD:$AD,Sheet1!S71_MasterVoteMunicipal,Q$57)","v":0},0,null,null,null,null,null,null,null,null,null,null,"1300","IR"]
["Rental from Fixed Assets",null,{"$f":"-SUMIFS(Sheet1!S71_ASBudgetAmount,Sheet1!S71_A4Code,$AC:$AC,Sheet1!S71_ItemType,$AD:$AD,Sheet1!S71_MasterVoteMunicipal,C$57)","v":0},{"$f":"-SUMIFS(Sheet1!S71_ASBudgetAmount,Sheet1!S71_A4Code,$AC:$AC,Sheet1!S71_ItemType,$AD:$AD,Sheet1!S71_MasterVoteMunicipal,D$57)","v":0},{"$f":"-SUMIFS(Sheet1!S71_ASBudgetAmount,Sheet1!S71_A4Code,$AC:$AC,Sheet1!S71_ItemType,$AD:$AD,Sheet1!S71_MasterVoteMunicipal,E$57)","v":-245300},{"$f":"-SUMIFS(Sheet1!S71_ASBudgetAmount,Sheet1!S71_A4Code,$AC:$AC,Sheet1!S71_ItemType,$AD:$AD,Sheet1!S71_MasterVoteMunicipal,F$57)","v":0},{"$f":"-SUMIFS(Sheet1!S71_ASBudgetAmount,Sheet1!S71_A4Code,$AC:$AC,Sheet1!S71_ItemType,$AD:$AD,Sheet1!S71_MasterVoteMunicipal,G$57)","v":0},{"$f":"-SUMIFS(Sheet1!S71_ASBudgetAmount,Sheet1!S71_A4Code,$AC:$AC,Sheet1!S71_ItemType,$AD:$AD,Sheet1!S71_MasterVoteMunicipal,H$57)","v":0},{"$f":"-SUMIFS(Sheet1!S71_ASBudgetAmount,Sheet1!S71_A4Code,$AC:$AC,Sheet1!S71_ItemType,$AD:$AD,Sheet1!S71_MasterVoteMunicipal,I$57)","v":0},{"$f":"-SUMIFS(Sheet1!S71_ASBudgetAmount,Sheet1!S71_A4Code,$AC:$AC,Sheet1!S71_ItemType,$AD:$AD,Sheet1!S71_MasterVoteMunicipal,J$57)","v":0},{"$f":"-SUMIFS(Sheet1!S71_ASBudgetAmount,Sheet1!S71_A4Code,$AC:$AC,Sheet1!S71_ItemType,$AD:$AD,Sheet1!S71_MasterVoteMunicipal,K$57)","v":0},{"$f":"-SUMIFS(Sheet1!S71_ASBudgetAmount,Sheet1!S71_A4Code,$AC:$AC,Sheet1!S71_ItemType,$AD:$AD,Sheet1!S71_MasterVoteMunicipal,L$57)","v":-450000},{"$f":"-SUMIFS(Sheet1!S71_ASBudgetAmount,Sheet1!S71_A4Code,$AC:$AC,Sheet1!S71_ItemType,$AD:$AD,Sheet1!S71_MasterVoteMunicipal,M$57)","v":0},{"$f":"-SUMIFS(Sheet1!S71_ASBudgetAmount,Sheet1!S71_A4Code,$AC:$AC,Sheet1!S71_ItemType,$AD:$AD,Sheet1!S71_MasterVoteMunicipal,N$57)","v":0},{"$f":"-SUMIFS(Sheet1!S71_ASBudgetAmount,Sheet1!S71_A4Code,$AC:$AC,Sheet1!S71_ItemType,$AD:$AD,Sheet1!S71_MasterVoteMunicipal,O$57)","v":0},{"$f":"-SUMIFS(Sheet1!S71_ASBudgetAmount,Sheet1!S71_A4Code,$AC:$AC,Sheet1!S71_ItemType,$AD:$AD,Sheet1!S71_MasterVoteMunicipal,P$57)","v":0},{"$f":"-SUMIFS(Sheet1!S71_ASBudgetAmount,Sheet1!S71_A4Code,$AC:$AC,Sheet1!S71_ItemType,$AD:$AD,Sheet1!S71_MasterVoteMunicipal,Q$57)","v":0},-695300,null,null,null,null,null,null,null,null,null,null,"1400","IR"]
["Licence and permits",null,{"$f":"-SUMIFS(Sheet1!S71_ASBudgetAmount,Sheet1!S71_A4Code,$AC:$AC,Sheet1!S71_ItemType,$AD:$AD,Sheet1!S71_MasterVoteMunicipal,C$57)","v":0},{"$f":"-SUMIFS(Sheet1!S71_ASBudgetAmount,Sheet1!S71_A4Code,$AC:$AC,Sheet1!S71_ItemType,$AD:$AD,Sheet1!S71_MasterVoteMunicipal,D$57)","v":0},{"$f":"-SUMIFS(Sheet1!S71_ASBudgetAmount,Sheet1!S71_A4Code,$AC:$AC,Sheet1!S71_ItemType,$AD:$AD,Sheet1!S71_MasterVoteMunicipal,E$57)","v":0},{"$f":"-SUMIFS(Sheet1!S71_ASBudgetAmount,Sheet1!S71_A4Code,$AC:$AC,Sheet1!S71_ItemType,$AD:$AD,Sheet1!S71_MasterVoteMunicipal,F$57)","v":0},{"$f":"-SUMIFS(Sheet1!S71_ASBudgetAmount,Sheet1!S71_A4Code,$AC:$AC,Sheet1!S71_ItemType,$AD:$AD,Sheet1!S71_MasterVoteMunicipal,G$57)","v":0},{"$f":"-SUMIFS(Sheet1!S71_ASBudgetAmount,Sheet1!S71_A4Code,$AC:$AC,Sheet1!S71_ItemType,$AD:$AD,Sheet1!S71_MasterVoteMunicipal,H$57)","v":0},{"$f":"-SUMIFS(Sheet1!S71_ASBudgetAmount,Sheet1!S71_A4Code,$AC:$AC,Sheet1!S71_ItemType,$AD:$AD,Sheet1!S71_MasterVoteMunicipal,I$57)","v":-8350000},{"$f":"-SUMIFS(Sheet1!S71_ASBudgetAmount,Sheet1!S71_A4Code,$AC:$AC,Sheet1!S71_ItemType,$AD:$AD,Sheet1!S71_MasterVoteMunicipal,J$57)","v":0},{"$f":"-SUMIFS(Sheet1!S71_ASBudgetAmount,Sheet1!S71_A4Code,$AC:$AC,Sheet1!S71_ItemType,$AD:$AD,Sheet1!S71_MasterVoteMunicipal,K$57)","v":0},{"$f":"-SUMIFS(Sheet1!S71_ASBudgetAmount,Sheet1!S71_A4Code,$AC:$AC,Sheet1!S71_ItemType,$AD:$AD,Sheet1!S71_MasterVoteMunicipal,L$57)","v":0},{"$f":"-SUMIFS(Sheet1!S71_ASBudgetAmount,Sheet1!S71_A4Code,$AC:$AC,Sheet1!S71_ItemType,$AD:$AD,Sheet1!S71_MasterVoteMunicipal,M$57)","v":0},{"$f":"-SUMIFS(Sheet1!S71_ASBudgetAmount,Sheet1!S71_A4Code,$AC:$AC,Sheet1!S71_ItemType,$AD:$AD,Sheet1!S71_MasterVoteMunicipal,N$57)","v":0},{"$f":"-SUMIFS(Sheet1!S71_ASBudgetAmount,Sheet1!S71_A4Code,$AC:$AC,Sheet1!S71_ItemType,$AD:$AD,Sheet1!S71_MasterVoteMunicipal,O$57)","v":0},{"$f":"-SUMIFS(Sheet1!S71_ASBudgetAmount,Sheet1!S71_A4Code,$AC:$AC,Sheet1!S71_ItemType,$AD:$AD,Sheet1!S71_MasterVoteMunicipal,P$57)","v":0},{"$f":"-SUMIFS(Sheet1!S71_ASBudgetAmount,Sheet1!S71_A4Code,$AC:$AC,Sheet1!S71_ItemType,$AD:$AD,Sheet1!S71_MasterVoteMunicipal,Q$57)","v":0},-8350000,null,null,null,null,null,null,null,null,null,null,"1500","IR"]
["Operational Revenue",null,{"$f":"-SUMIFS(Sheet1!S71_ASBudgetAmount,Sheet1!S71_A4Code,$AC:$AC,Sheet1!S71_ItemType,$AD:$AD,Sheet1!S71_MasterVoteMunicipal,C$57)","v":0},{"$f":"-SUMIFS(Sheet1!S71_ASBudgetAmount,Sheet1!S71_A4Code,$AC:$AC,Sheet1!S71_ItemType,$AD:$AD,Sheet1!S71_MasterVoteMunicipal,D$57)","v":0},{"$f":"-SUMIFS(Sheet1!S71_ASBudgetAmount,Sheet1!S71_A4Code,$AC:$AC,Sheet1!S71_ItemType,$AD:$AD,Sheet1!S71_MasterVoteMunicipal,E$57)","v":-8000000},{"$f":"-SUMIFS(Sheet1!S71_ASBudgetAmount,Sheet1!S71_A4Code,$AC:$AC,Sheet1!S71_ItemType,$AD:$AD,Sheet1!S71_MasterVoteMunicipal,F$57)","v":-300000},{"$f":"-SUMIFS(Sheet1!S71_ASBudgetAmount,Sheet1!S71_A4Code,$AC:$AC,Sheet1!S71_ItemType,$AD:$AD,Sheet1!S71_MasterVoteMunicipal,G$57)","v":0},{"$f":"-SUMIFS(Sheet1!S71_ASBudgetAmount,Sheet1!S71_A4Code,$AC:$AC,Sheet1!S71_ItemType,$AD:$AD,Sheet1!S71_MasterVoteMunicipal,H$57)","v":0},{"$f":"-SUMIFS(Sheet1!S71_ASBudgetAmount,Sheet1!S71_A4Code,$AC:$AC,Sheet1!S71_ItemType,$AD:$AD,Sheet1!S71_MasterVoteMunicipal,I$57)","v":0},{"$f":"-SUMIFS(Sheet1!S71_ASBudgetAmount,Sheet1!S71_A4Code,$AC:$AC,Sheet1!S71_ItemType,$AD:$AD,Sheet1!S71_MasterVoteMunicipal,J$57)","v":0},{"$f":"-SUMIFS(Sheet1!S71_ASBudgetAmount,Sheet1!S71_A4Code,$AC:$AC,Sheet1!S71_ItemType,$AD:$AD,Sheet1!S71_MasterVoteMunicipal,K$57)","v":0},{"$f":"-SUMIFS(Sheet1!S71_ASBudgetAmount,Sheet1!S71_A4Code,$AC:$AC,Sheet1!S71_ItemType,$AD:$AD,Sheet1!S71_MasterVoteMunicipal,L$57)","v":0},{"$f":"-SUMIFS(Sheet1!S71_ASBudgetAmount,Sheet1!S71_A4Code,$AC:$AC,Sheet1!S71_ItemType,$AD:$AD,Sheet1!S71_MasterVoteMunicipal,M$57)","v":0},{"$f":"-SUMIFS(Sheet1!S71_ASBudgetAmount,Sheet1!S71_A4Code,$AC:$AC,Sheet1!S71_ItemType,$AD:$AD,Sheet1!S71_MasterVoteMunicipal,N$57)","v":0},{"$f":"-SUMIFS(Sheet1!S71_ASBudgetAmount,Sheet1!S71_A4Code,$AC:$AC,Sheet1!S71_ItemType,$AD:$AD,Sheet1!S71_MasterVoteMunicipal,O$57)","v":0},{"$f":"-SUMIFS(Sheet1!S71_ASBudgetAmount,Sheet1!S71_A4Code,$AC:$AC,Sheet1!S71_ItemType,$AD:$AD,Sheet1!S71_MasterVoteMunicipal,P$57)","v":0},{"$f":"-SUMIFS(Sheet1!S71_ASBudgetAmount,Sheet1!S71_A4Code,$AC:$AC,Sheet1!S71_ItemType,$AD:$AD,Sheet1!S71_MasterVoteMunicipal,Q$57)","v":0},-8300000,null,null,null,null,null,null,null,null,null,null,"1600","IR"]
["Non-Exchange Revenue",null,null,null,null,null,null,null,null,null,null,null,null,null,null,null,null,null,null,null,null,null,null,null,null,null,null,null,null,"IR"]
["Property rates",null,{"$f":"-SUMIFS(Sheet1!S71_ASBudgetAmount,Sheet1!S71_A4Code,$AC:$AC,Sheet1!S71_ItemType,$AD:$AD,Sheet1!S71_MasterVoteMunicipal,C$57)","v":0},{"$f":"-SUMIFS(Sheet1!S71_ASBudgetAmount,Sheet1!S71_A4Code,$AC:$AC,Sheet1!S71_ItemType,$AD:$AD,Sheet1!S71_MasterVoteMunicipal,D$57)","v":0},{"$f":"-SUMIFS(Sheet1!S71_ASBudgetAmount,Sheet1!S71_A4Code,$AC:$AC,Sheet1!S71_ItemType,$AD:$AD,Sheet1!S71_MasterVoteMunicipal,E$57)","v":-41928920},{"$f":"-SUMIFS(Sheet1!S71_ASBudgetAmount,Sheet1!S71_A4Code,$AC:$AC,Sheet1!S71_ItemType,$AD:$AD,Sheet1!S71_MasterVoteMunicipal,F$57)","v":0},{"$f":"-SUMIFS(Sheet1!S71_ASBudgetAmount,Sheet1!S71_A4Code,$AC:$AC,Sheet1!S71_ItemType,$AD:$AD,Sheet1!S71_MasterVoteMunicipal,G$57)","v":0},{"$f":"-SUMIFS(Sheet1!S71_ASBudgetAmount,Sheet1!S71_A4Code,$AC:$AC,Sheet1!S71_ItemType,$AD:$AD,Sheet1!S71_MasterVoteMunicipal,H$57)","v":0},{"$f":"-SUMIFS(Sheet1!S71_ASBudgetAmount,Sheet1!S71_A4Code,$AC:$AC,Sheet1!S71_ItemType,$AD:$AD,Sheet1!S71_MasterVoteMunicipal,I$57)","v":0},{"$f":"-SUMIFS(Sheet1!S71_ASBudgetAmount,Sheet1!S71_A4Code,$AC:$AC,Sheet1!S71_ItemType,$AD:$AD,Sheet1!S71_MasterVoteMunicipal,J$57)","v":0},{"$f":"-SUMIFS(Sheet1!S71_ASBudgetAmount,Sheet1!S71_A4Code,$AC:$AC,Sheet1!S71_ItemType,$AD:$AD,Sheet1!S71_MasterVoteMunicipal,K$57)","v":0},{"$f":"-SUMIFS(Sheet1!S71_ASBudgetAmount,Sheet1!S71_A4Code,$AC:$AC,Sheet1!S71_ItemType,$AD:$AD,Sheet1!S71_MasterVoteMunicipal,L$57)","v":0},{"$f":"-SUMIFS(Sheet1!S71_ASBudgetAmount,Sheet1!S71_A4Code,$AC:$AC,Sheet1!S71_ItemType,$AD:$AD,Sheet1!S71_MasterVoteMunicipal,M$57)","v":0},{"$f":"-SUMIFS(Sheet1!S71_ASBudgetAmount,Sheet1!S71_A4Code,$AC:$AC,Sheet1!S71_ItemType,$AD:$AD,Sheet1!S71_MasterVoteMunicipal,N$57)","v":0},{"$f":"-SUMIFS(Sheet1!S71_ASBudgetAmount,Sheet1!S71_A4Code,$AC:$AC,Sheet1!S71_ItemType,$AD:$AD,Sheet1!S71_MasterVoteMunicipal,O$57)","v":0},{"$f":"-SUMIFS(Sheet1!S71_ASBudgetAmount,Sheet1!S71_A4Code,$AC:$AC,Sheet1!S71_ItemType,$AD:$AD,Sheet1!S71_MasterVoteMunicipal,P$57)","v":0},{"$f":"-SUMIFS(Sheet1!S71_ASBudgetAmount,Sheet1!S71_A4Code,$AC:$AC,Sheet1!S71_ItemType,$AD:$AD,Sheet1!S71_MasterVoteMunicipal,Q$57)","v":0},{"$f":"SUM(C21:Q21)","v":-41928920},null,null,null,null,null,null,null,null,null,null,"1800","IR"]
["Surcharges and Taxes",null,{"$f":"-SUMIFS(Sheet1!S71_ASBudgetAmount,Sheet1!S71_A4Code,$AC:$AC,Sheet1!S71_ItemType,$AD:$AD,Sheet1!S71_MasterVoteMunicipal,C$57)","v":0},{"$f":"-SUMIFS(Sheet1!S71_ASBudgetAmount,Sheet1!S71_A4Code,$AC:$AC,Sheet1!S71_ItemType,$AD:$AD,Sheet1!S71_MasterVoteMunicipal,D$57)","v":0},{"$f":"-SUMIFS(Sheet1!S71_ASBudgetAmount,Sheet1!S71_A4Code,$AC:$AC,Sheet1!S71_ItemType,$AD:$AD,Sheet1!S71_MasterVoteMunicipal,E$57)","v":0},{"$f":"-SUMIFS(Sheet1!S71_ASBudgetAmount,Sheet1!S71_A4Code,$AC:$AC,Sheet1!S71_ItemType,$AD:$AD,Sheet1!S71_MasterVoteMunicipal,F$57)","v":0},{"$f":"-SUMIFS(Sheet1!S71_ASBudgetAmount,Sheet1!S71_A4Code,$AC:$AC,Sheet1!S71_ItemType,$AD:$AD,Sheet1!S71_MasterVoteMunicipal,G$57)","v":0},{"$f":"-SUMIFS(Sheet1!S71_ASBudgetAmount,Sheet1!S71_A4Code,$AC:$AC,Sheet1!S71_ItemType,$AD:$AD,Sheet1!S71_MasterVoteMunicipal,H$57)","v":0},{"$f":"-SUMIFS(Sheet1!S71_ASBudgetAmount,Sheet1!S71_A4Code,$AC:$AC,Sheet1!S71_ItemType,$AD:$AD,Sheet1!S71_MasterVoteMunicipal,I$57)","v":0},{"$f":"-SUMIFS(Sheet1!S71_ASBudgetAmount,Sheet1!S71_A4Code,$AC:$AC,Sheet1!S71_ItemType,$AD:$AD,Sheet1!S71_MasterVoteMunicipal,J$57)","v":0},{"$f":"-SUMIFS(Sheet1!S71_ASBudgetAmount,Sheet1!S71_A4Code,$AC:$AC,Sheet1!S71_ItemType,$AD:$AD,Sheet1!S71_MasterVoteMunicipal,K$57)","v":0},{"$f":"-SUMIFS(Sheet1!S71_ASBudgetAmount,Sheet1!S71_A4Code,$AC:$AC,Sheet1!S71_ItemType,$AD:$AD,Sheet1!S71_MasterVoteMunicipal,L$57)","v":0},{"$f":"-SUMIFS(Sheet1!S71_ASBudgetAmount,Sheet1!S71_A4Code,$AC:$AC,Sheet1!S71_ItemType,$AD:$AD,Sheet1!S71_MasterVoteMunicipal,M$57)","v":0},{"$f":"-SUMIFS(Sheet1!S71_ASBudgetAmount,Sheet1!S71_A4Code,$AC:$AC,Sheet1!S71_ItemType,$AD:$AD,Sheet1!S71_MasterVoteMunicipal,N$57)","v":0},{"$f":"-SUMIFS(Sheet1!S71_ASBudgetAmount,Sheet1!S71_A4Code,$AC:$AC,Sheet1!S71_ItemType,$AD:$AD,Sheet1!S71_MasterVoteMunicipal,O$57)","v":0},{"$f":"-SUMIFS(Sheet1!S71_ASBudgetAmount,Sheet1!S71_A4Code,$AC:$AC,Sheet1!S71_ItemType,$AD:$AD,Sheet1!S71_MasterVoteMunicipal,P$57)","v":0},{"$f":"-SUMIFS(Sheet1!S71_ASBudgetAmount,Sheet1!S71_A4Code,$AC:$AC,Sheet1!S71_ItemType,$AD:$AD,Sheet1!S71_MasterVoteMunicipal,Q$57)","v":0},0,null,null,null,null,null,null,null,null,null,null,"1900","IR"]
["Fines, penalties and forfeits",null,{"$f":"-SUMIFS(Sheet1!S71_ASBudgetAmount,Sheet1!S71_A4Code,$AC:$AC,Sheet1!S71_ItemType,$AD:$AD,Sheet1!S71_MasterVoteMunicipal,C$57)","v":0},{"$f":"-SUMIFS(Sheet1!S71_ASBudgetAmount,Sheet1!S71_A4Code,$AC:$AC,Sheet1!S71_ItemType,$AD:$AD,Sheet1!S71_MasterVoteMunicipal,D$57)","v":0},{"$f":"-SUMIFS(Sheet1!S71_ASBudgetAmount,Sheet1!S71_A4Code,$AC:$AC,Sheet1!S71_ItemType,$AD:$AD,Sheet1!S71_MasterVoteMunicipal,E$57)","v":-15795},{"$f":"-SUMIFS(Sheet1!S71_ASBudgetAmount,Sheet1!S71_A4Code,$AC:$AC,Sheet1!S71_ItemType,$AD:$AD,Sheet1!S71_MasterVoteMunicipal,F$57)","v":0},{"$f":"-SUMIFS(Sheet1!S71_ASBudgetAmount,Sheet1!S71_A4Code,$AC:$AC,Sheet1!S71_ItemType,$AD:$AD,Sheet1!S71_MasterVoteMunicipal,G$57)","v":0},{"$f":"-SUMIFS(Sheet1!S71_ASBudgetAmount,Sheet1!S71_A4Code,$AC:$AC,Sheet1!S71_ItemType,$AD:$AD,Sheet1!S71_MasterVoteMunicipal,H$57)","v":0},{"$f":"-SUMIFS(Sheet1!S71_ASBudgetAmount,Sheet1!S71_A4Code,$AC:$AC,Sheet1!S71_ItemType,$AD:$AD,Sheet1!S71_MasterVoteMunicipal,I$57)","v":-350000},{"$f":"-SUMIFS(Sheet1!S71_ASBudgetAmount,Sheet1!S71_A4Code,$AC:$AC,Sheet1!S71_ItemType,$AD:$AD,Sheet1!S71_MasterVoteMunicipal,J$57)","v":0},{"$f":"-SUMIFS(Sheet1!S71_ASBudgetAmount,Sheet1!S71_A4Code,$AC:$AC,Sheet1!S71_ItemType,$AD:$AD,Sheet1!S71_MasterVoteMunicipal,K$57)","v":0},{"$f":"-SUMIFS(Sheet1!S71_ASBudgetAmount,Sheet1!S71_A4Code,$AC:$AC,Sheet1!S71_ItemType,$AD:$AD,Sheet1!S71_MasterVoteMunicipal,L$57)","v":0},{"$f":"-SUMIFS(Sheet1!S71_ASBudgetAmount,Sheet1!S71_A4Code,$AC:$AC,Sheet1!S71_ItemType,$AD:$AD,Sheet1!S71_MasterVoteMunicipal,M$57)","v":0},{"$f":"-SUMIFS(Sheet1!S71_ASBudgetAmount,Sheet1!S71_A4Code,$AC:$AC,Sheet1!S71_ItemType,$AD:$AD,Sheet1!S71_MasterVoteMunicipal,N$57)","v":0},{"$f":"-SUMIFS(Sheet1!S71_ASBudgetAmount,Sheet1!S71_A4Code,$AC:$AC,Sheet1!S71_ItemType,$AD:$AD,Sheet1!S71_MasterVoteMunicipal,O$57)","v":0},{"$f":"-SUMIFS(Sheet1!S71_ASBudgetAmount,Sheet1!S71_A4Code,$AC:$AC,Sheet1!S71_ItemType,$AD:$AD,Sheet1!S71_MasterVoteMunicipal,P$57)","v":0},{"$f":"-SUMIFS(Sheet1!S71_ASBudgetAmount,Sheet1!S71_A4Code,$AC:$AC,Sheet1!S71_ItemType,$AD:$AD,Sheet1!S71_MasterVoteMunicipal,Q$57)","v":0},-365795,null,null,null,null,null,null,null,null,null,null,"2000","IR"]
["Licences or permits",null,{"$f":"-SUMIFS(Sheet1!S71_ASBudgetAmount,Sheet1!S71_A4Code,$AC:$AC,Sheet1!S71_ItemType,$AD:$AD,Sheet1!S71_MasterVoteMunicipal,C$57)","v":0},{"$f":"-SUMIFS(Sheet1!S71_ASBudgetAmount,Sheet1!S71_A4Code,$AC:$AC,Sheet1!S71_ItemType,$AD:$AD,Sheet1!S71_MasterVoteMunicipal,D$57)","v":0},{"$f":"-SUMIFS(Sheet1!S71_ASBudgetAmount,Sheet1!S71_A4Code,$AC:$AC,Sheet1!S71_ItemType,$AD:$AD,Sheet1!S71_MasterVoteMunicipal,E$57)","v":0},{"$f":"-SUMIFS(Sheet1!S71_ASBudgetAmount,Sheet1!S71_A4Code,$AC:$AC,Sheet1!S71_ItemType,$AD:$AD,Sheet1!S71_MasterVoteMunicipal,F$57)","v":-100000},{"$f":"-SUMIFS(Sheet1!S71_ASBudgetAmount,Sheet1!S71_A4Code,$AC:$AC,Sheet1!S71_ItemType,$AD:$AD,Sheet1!S71_MasterVoteMunicipal,G$57)","v":0},{"$f":"-SUMIFS(Sheet1!S71_ASBudgetAmount,Sheet1!S71_A4Code,$AC:$AC,Sheet1!S71_ItemType,$AD:$AD,Sheet1!S71_MasterVoteMunicipal,H$57)","v":0},{"$f":"-SUMIFS(Sheet1!S71_ASBudgetAmount,Sheet1!S71_A4Code,$AC:$AC,Sheet1!S71_ItemType,$AD:$AD,Sheet1!S71_MasterVoteMunicipal,I$57)","v":0},{"$f":"-SUMIFS(Sheet1!S71_ASBudgetAmount,Sheet1!S71_A4Code,$AC:$AC,Sheet1!S71_ItemType,$AD:$AD,Sheet1!S71_MasterVoteMunicipal,J$57)","v":0},{"$f":"-SUMIFS(Sheet1!S71_ASBudgetAmount,Sheet1!S71_A4Code,$AC:$AC,Sheet1!S71_ItemType,$AD:$AD,Sheet1!S71_MasterVoteMunicipal,K$57)","v":0},{"$f":"-SUMIFS(Sheet1!S71_ASBudgetAmount,Sheet1!S71_A4Code,$AC:$AC,Sheet1!S71_ItemType,$AD:$AD,Sheet1!S71_MasterVoteMunicipal,L$57)","v":0},{"$f":"-SUMIFS(Sheet1!S71_ASBudgetAmount,Sheet1!S71_A4Code,$AC:$AC,Sheet1!S71_ItemType,$AD:$AD,Sheet1!S71_MasterVoteMunicipal,M$57)","v":0},{"$f":"-SUMIFS(Sheet1!S71_ASBudgetAmount,Sheet1!S71_A4Code,$AC:$AC,Sheet1!S71_ItemType,$AD:$AD,Sheet1!S71_MasterVoteMunicipal,N$57)","v":0},{"$f":"-SUMIFS(Sheet1!S71_ASBudgetAmount,Sheet1!S71_A4Code,$AC:$AC,Sheet1!S71_ItemType,$AD:$AD,Sheet1!S71_MasterVoteMunicipal,O$57)","v":0},{"$f":"-SUMIFS(Sheet1!S71_ASBudgetAmount,Sheet1!S71_A4Code,$AC:$AC,Sheet1!S71_ItemType,$AD:$AD,Sheet1!S71_MasterVoteMunicipal,P$57)","v":0},{"$f":"-SUMIFS(Sheet1!S71_ASBudgetAmount,Sheet1!S71_A4Code,$AC:$AC,Sheet1!S71_ItemType,$AD:$AD,Sheet1!S71_MasterVoteMunicipal,Q$57)","v":0},-100000,null,null,null,null,null,null,null,null,null,null,"2100","IR"]
["Transfer and subsidies - Operational",null,{"$f":"-SUMIFS(Sheet1!S71_ASBudgetAmount,Sheet1!S71_A4Code,$AC:$AC,Sheet1!S71_ItemType,$AD:$AD,Sheet1!S71_MasterVoteMunicipal,C$57)","v":0},{"$f":"-SUMIFS(Sheet1!S71_ASBudgetAmount,Sheet1!S71_A4Code,$AC:$AC,Sheet1!S71_ItemType,$AD:$AD,Sheet1!S71_MasterVoteMunicipal,D$57)","v":0},{"$f":"-SUMIFS(Sheet1!S71_ASBudgetAmount,Sheet1!S71_A4Code,$AC:$AC,Sheet1!S71_ItemType,$AD:$AD,Sheet1!S71_MasterVoteMunicipal,E$57)","v":-382352000},{"$f":"-SUMIFS(Sheet1!S71_ASBudgetAmount,Sheet1!S71_A4Code,$AC:$AC,Sheet1!S71_ItemType,$AD:$AD,Sheet1!S71_MasterVoteMunicipal,F$57)","v":0},{"$f":"-SUMIFS(Sheet1!S71_ASBudgetAmount,Sheet1!S71_A4Code,$AC:$AC,Sheet1!S71_ItemType,$AD:$AD,Sheet1!S71_MasterVoteMunicipal,G$57)","v":0},{"$f":"-SUMIFS(Sheet1!S71_ASBudgetAmount,Sheet1!S71_A4Code,$AC:$AC,Sheet1!S71_ItemType,$AD:$AD,Sheet1!S71_MasterVoteMunicipal,H$57)","v":0},{"$f":"-SUMIFS(Sheet1!S71_ASBudgetAmount,Sheet1!S71_A4Code,$AC:$AC,Sheet1!S71_ItemType,$AD:$AD,Sheet1!S71_MasterVoteMunicipal,I$57)","v":0},{"$f":"-SUMIFS(Sheet1!S71_ASBudgetAmount,Sheet1!S71_A4Code,$AC:$AC,Sheet1!S71_ItemType,$AD:$AD,Sheet1!S71_MasterVoteMunicipal,J$57)","v":0},{"$f":"-SUMIFS(Sheet1!S71_ASBudgetAmount,Sheet1!S71_A4Code,$AC:$AC,Sheet1!S71_ItemType,$AD:$AD,Sheet1!S71_MasterVoteMunicipal,K$57)","v":0},{"$f":"-SUMIFS(Sheet1!S71_ASBudgetAmount,Sheet1!S71_A4Code,$AC:$AC,Sheet1!S71_ItemType,$AD:$AD,Sheet1!S71_MasterVoteMunicipal,L$57)","v":0},{"$f":"-SUMIFS(Sheet1!S71_ASBudgetAmount,Sheet1!S71_A4Code,$AC:$AC,Sheet1!S71_ItemType,$AD:$AD,Sheet1!S71_MasterVoteMunicipal,M$57)","v":0},{"$f":"-SUMIFS(Sheet1!S71_ASBudgetAmount,Sheet1!S71_A4Code,$AC:$AC,Sheet1!S71_ItemType,$AD:$AD,Sheet1!S71_MasterVoteMunicipal,N$57)","v":0},{"$f":"-SUMIFS(Sheet1!S71_ASBudgetAmount,Sheet1!S71_A4Code,$AC:$AC,Sheet1!S71_ItemType,$AD:$AD,Sheet1!S71_MasterVoteMunicipal,O$57)","v":0},{"$f":"-SUMIFS(Sheet1!S71_ASBudgetAmount,Sheet1!S71_A4Code,$AC:$AC,Sheet1!S71_ItemType,$AD:$AD,Sheet1!S71_MasterVoteMunicipal,P$57)","v":0},{"$f":"-SUMIFS(Sheet1!S71_ASBudgetAmount,Sheet1!S71_A4Code,$AC:$AC,Sheet1!S71_ItemType,$AD:$AD,Sheet1!S71_MasterVoteMunicipal,Q$57)","v":0},-382352000,null,null,null,null,null,null,null,null,null,null,"2200","IR"]
["Interest",null,{"$f":"-SUMIFS(Sheet1!S71_ASBudgetAmount,Sheet1!S71_A4Code,$AC:$AC,Sheet1!S71_ItemType,$AD:$AD,Sheet1!S71_MasterVoteMunicipal,C$57)","v":0},{"$f":"-SUMIFS(Sheet1!S71_ASBudgetAmount,Sheet1!S71_A4Code,$AC:$AC,Sheet1!S71_ItemType,$AD:$AD,Sheet1!S71_MasterVoteMunicipal,D$57)","v":0},{"$f":"-SUMIFS(Sheet1!S71_ASBudgetAmount,Sheet1!S71_A4Code,$AC:$AC,Sheet1!S71_ItemType,$AD:$AD,Sheet1!S71_MasterVoteMunicipal,E$57)","v":0},{"$f":"-SUMIFS(Sheet1!S71_ASBudgetAmount,Sheet1!S71_A4Code,$AC:$AC,Sheet1!S71_ItemType,$AD:$AD,Sheet1!S71_MasterVoteMunicipal,F$57)","v":0},{"$f":"-SUMIFS(Sheet1!S71_ASBudgetAmount,Sheet1!S71_A4Code,$AC:$AC,Sheet1!S71_ItemType,$AD:$AD,Sheet1!S71_MasterVoteMunicipal,G$57)","v":0},{"$f":"-SUMIFS(Sheet1!S71_ASBudgetAmount,Sheet1!S71_A4Code,$AC:$AC,Sheet1!S71_ItemType,$AD:$AD,Sheet1!S71_MasterVoteMunicipal,H$57)","v":0},{"$f":"-SUMIFS(Sheet1!S71_ASBudgetAmount,Sheet1!S71_A4Code,$AC:$AC,Sheet1!S71_ItemType,$AD:$AD,Sheet1!S71_MasterVoteMunicipal,I$57)","v":0},{"$f":"-SUMIFS(Sheet1!S71_ASBudgetAmount,Sheet1!S71_A4Code,$AC:$AC,Sheet1!S71_ItemType,$AD:$AD,Sheet1!S71_MasterVoteMunicipal,J$57)","v":0},{"$f":"-SUMIFS(Sheet1!S71_ASBudgetAmount,Sheet1!S71_A4Code,$AC:$AC,Sheet1!S71_ItemType,$AD:$AD,Sheet1!S71_MasterVoteMunicipal,K$57)","v":0},{"$f":"-SUMIFS(Sheet1!S71_ASBudgetAmount,Sheet1!S71_A4Code,$AC:$AC,Sheet1!S71_ItemType,$AD:$AD,Sheet1!S71_MasterVoteMunicipal,L$57)","v":0},{"$f":"-SUMIFS(Sheet1!S71_ASBudgetAmount,Sheet1!S71_A4Code,$AC:$AC,Sheet1!S71_ItemType,$AD:$AD,Sheet1!S71_MasterVoteMunicipal,M$57)","v":0},{"$f":"-SUMIFS(Sheet1!S71_ASBudgetAmount,Sheet1!S71_A4Code,$AC:$AC,Sheet1!S71_ItemType,$AD:$AD,Sheet1!S71_MasterVoteMunicipal,N$57)","v":0},{"$f":"-SUMIFS(Sheet1!S71_ASBudgetAmount,Sheet1!S71_A4Code,$AC:$AC,Sheet1!S71_ItemType,$AD:$AD,Sheet1!S71_MasterVoteMunicipal,O$57)","v":0},{"$f":"-SUMIFS(Sheet1!S71_ASBudgetAmount,Sheet1!S71_A4Code,$AC:$AC,Sheet1!S71_ItemType,$AD:$AD,Sheet1!S71_MasterVoteMunicipal,P$57)","v":0},{"$f":"-SUMIFS(Sheet1!S71_ASBudgetAmount,Sheet1!S71_A4Code,$AC:$AC,Sheet1!S71_ItemType,$AD:$AD,Sheet1!S71_MasterVoteMunicipal,Q$57)","v":0},0,null,null,null,null,null,null,null,null,null,null,"2300","IR"]
["Fuel Levy",null,{"$f":"-SUMIFS(Sheet1!S71_ASBudgetAmount,Sheet1!S71_A4Code,$AC:$AC,Sheet1!S71_ItemType,$AD:$AD,Sheet1!S71_MasterVoteMunicipal,C$57)","v":0},{"$f":"-SUMIFS(Sheet1!S71_ASBudgetAmount,Sheet1!S71_A4Code,$AC:$AC,Sheet1!S71_ItemType,$AD:$AD,Sheet1!S71_MasterVoteMunicipal,D$57)","v":0},{"$f":"-SUMIFS(Sheet1!S71_ASBudgetAmount,Sheet1!S71_A4Code,$AC:$AC,Sheet1!S71_ItemType,$AD:$AD,Sheet1!S71_MasterVoteMunicipal,E$57)","v":0},{"$f":"-SUMIFS(Sheet1!S71_ASBudgetAmount,Sheet1!S71_A4Code,$AC:$AC,Sheet1!S71_ItemType,$AD:$AD,Sheet1!S71_MasterVoteMunicipal,F$57)","v":0},{"$f":"-SUMIFS(Sheet1!S71_ASBudgetAmount,Sheet1!S71_A4Code,$AC:$AC,Sheet1!S71_ItemType,$AD:$AD,Sheet1!S71_MasterVoteMunicipal,G$57)","v":0},{"$f":"-SUMIFS(Sheet1!S71_ASBudgetAmount,Sheet1!S71_A4Code,$AC:$AC,Sheet1!S71_ItemType,$AD:$AD,Sheet1!S71_MasterVoteMunicipal,H$57)","v":0},{"$f":"-SUMIFS(Sheet1!S71_ASBudgetAmount,Sheet1!S71_A4Code,$AC:$AC,Sheet1!S71_ItemType,$AD:$AD,Sheet1!S71_MasterVoteMunicipal,I$57)","v":0},{"$f":"-SUMIFS(Sheet1!S71_ASBudgetAmount,Sheet1!S71_A4Code,$AC:$AC,Sheet1!S71_ItemType,$AD:$AD,Sheet1!S71_MasterVoteMunicipal,J$57)","v":0},{"$f":"-SUMIFS(Sheet1!S71_ASBudgetAmount,Sheet1!S71_A4Code,$AC:$AC,Sheet1!S71_ItemType,$AD:$AD,Sheet1!S71_MasterVoteMunicipal,K$57)","v":0},{"$f":"-SUMIFS(Sheet1!S71_ASBudgetAmount,Sheet1!S71_A4Code,$AC:$AC,Sheet1!S71_ItemType,$AD:$AD,Sheet1!S71_MasterVoteMunicipal,L$57)","v":0},{"$f":"-SUMIFS(Sheet1!S71_ASBudgetAmount,Sheet1!S71_A4Code,$AC:$AC,Sheet1!S71_ItemType,$AD:$AD,Sheet1!S71_MasterVoteMunicipal,M$57)","v":0},{"$f":"-SUMIFS(Sheet1!S71_ASBudgetAmount,Sheet1!S71_A4Code,$AC:$AC,Sheet1!S71_ItemType,$AD:$AD,Sheet1!S71_MasterVoteMunicipal,N$57)","v":0},{"$f":"-SUMIFS(Sheet1!S71_ASBudgetAmount,Sheet1!S71_A4Code,$AC:$AC,Sheet1!S71_ItemType,$AD:$AD,Sheet1!S71_MasterVoteMunicipal,O$57)","v":0},{"$f":"-SUMIFS(Sheet1!S71_ASBudgetAmount,Sheet1!S71_A4Code,$AC:$AC,Sheet1!S71_ItemType,$AD:$AD,Sheet1!S71_MasterVoteMunicipal,P$57)","v":0},{"$f":"-SUMIFS(Sheet1!S71_ASBudgetAmount,Sheet1!S71_A4Code,$AC:$AC,Sheet1!S71_ItemType,$AD:$AD,Sheet1!S71_MasterVoteMunicipal,Q$57)","v":0},0,null,null,null,null,null,null,null,null,null,null,"2400","IR"]
["Operational Revenue",null,{"$f":"-SUMIFS(Sheet1!S71_ASBudgetAmount,Sheet1!S71_A4Code,$AC:$AC,Sheet1!S71_ItemType,$AD:$AD,Sheet1!S71_MasterVoteMunicipal,C$57)","v":0},{"$f":"-SUMIFS(Sheet1!S71_ASBudgetAmount,Sheet1!S71_A4Code,$AC:$AC,Sheet1!S71_ItemType,$AD:$AD,Sheet1!S71_MasterVoteMunicipal,D$57)","v":0},{"$f":"-SUMIFS(Sheet1!S71_ASBudgetAmount,Sheet1!S71_A4Code,$AC:$AC,Sheet1!S71_ItemType,$AD:$AD,Sheet1!S71_MasterVoteMunicipal,E$57)","v":0},{"$f":"-SUMIFS(Sheet1!S71_ASBudgetAmount,Sheet1!S71_A4Code,$AC:$AC,Sheet1!S71_ItemType,$AD:$AD,Sheet1!S71_MasterVoteMunicipal,F$57)","v":0},{"$f":"-SUMIFS(Sheet1!S71_ASBudgetAmount,Sheet1!S71_A4Code,$AC:$AC,Sheet1!S71_ItemType,$AD:$AD,Sheet1!S71_MasterVoteMunicipal,G$57)","v":0},{"$f":"-SUMIFS(Sheet1!S71_ASBudgetAmount,Sheet1!S71_A4Code,$AC:$AC,Sheet1!S71_ItemType,$AD:$AD,Sheet1!S71_MasterVoteMunicipal,H$57)","v":0},{"$f":"-SUMIFS(Sheet1!S71_ASBudgetAmount,Sheet1!S71_A4Code,$AC:$AC,Sheet1!S71_ItemType,$AD:$AD,Sheet1!S71_MasterVoteMunicipal,I$57)","v":0},{"$f":"-SUMIFS(Sheet1!S71_ASBudgetAmount,Sheet1!S71_A4Code,$AC:$AC,Sheet1!S71_ItemType,$AD:$AD,Sheet1!S71_MasterVoteMunicipal,J$57)","v":0},{"$f":"-SUMIFS(Sheet1!S71_ASBudgetAmount,Sheet1!S71_A4Code,$AC:$AC,Sheet1!S71_ItemType,$AD:$AD,Sheet1!S71_MasterVoteMunicipal,K$57)","v":0},{"$f":"-SUMIFS(Sheet1!S71_ASBudgetAmount,Sheet1!S71_A4Code,$AC:$AC,Sheet1!S71_ItemType,$AD:$AD,Sheet1!S71_MasterVoteMunicipal,L$57)","v":0},{"$f":"-SUMIFS(Sheet1!S71_ASBudgetAmount,Sheet1!S71_A4Code,$AC:$AC,Sheet1!S71_ItemType,$AD:$AD,Sheet1!S71_MasterVoteMunicipal,M$57)","v":0},{"$f":"-SUMIFS(Sheet1!S71_ASBudgetAmount,Sheet1!S71_A4Code,$AC:$AC,Sheet1!S71_ItemType,$AD:$AD,Sheet1!S71_MasterVoteMunicipal,N$57)","v":0},{"$f":"-SUMIFS(Sheet1!S71_ASBudgetAmount,Sheet1!S71_A4Code,$AC:$AC,Sheet1!S71_ItemType,$AD:$AD,Sheet1!S71_MasterVoteMunicipal,O$57)","v":0},{"$f":"-SUMIFS(Sheet1!S71_ASBudgetAmount,Sheet1!S71_A4Code,$AC:$AC,Sheet1!S71_ItemType,$AD:$AD,Sheet1!S71_MasterVoteMunicipal,P$57)","v":0},{"$f":"-SUMIFS(Sheet1!S71_ASBudgetAmount,Sheet1!S71_A4Code,$AC:$AC,Sheet1!S71_ItemType,$AD:$AD,Sheet1!S71_MasterVoteMunicipal,Q$57)","v":0},0,null,null,null,null,null,null,null,null,null,null,"2500","IR"]
["Gains on disposal of Assets",null,{"$f":"-SUMIFS(Sheet1!S71_ASBudgetAmount,Sheet1!S71_A4Code,$AC:$AC,Sheet1!S71_ItemType,$AD:$AD,Sheet1!S71_MasterVoteMunicipal,C$57)","v":0},{"$f":"-SUMIFS(Sheet1!S71_ASBudgetAmount,Sheet1!S71_A4Code,$AC:$AC,Sheet1!S71_ItemType,$AD:$AD,Sheet1!S71_MasterVoteMunicipal,D$57)","v":0},{"$f":"-SUMIFS(Sheet1!S71_ASBudgetAmount,Sheet1!S71_A4Code,$AC:$AC,Sheet1!S71_ItemType,$AD:$AD,Sheet1!S71_MasterVoteMunicipal,E$57)","v":0},{"$f":"-SUMIFS(Sheet1!S71_ASBudgetAmount,Sheet1!S71_A4Code,$AC:$AC,Sheet1!S71_ItemType,$AD:$AD,Sheet1!S71_MasterVoteMunicipal,F$57)","v":0},{"$f":"-SUMIFS(Sheet1!S71_ASBudgetAmount,Sheet1!S71_A4Code,$AC:$AC,Sheet1!S71_ItemType,$AD:$AD,Sheet1!S71_MasterVoteMunicipal,G$57)","v":0},{"$f":"-SUMIFS(Sheet1!S71_ASBudgetAmount,Sheet1!S71_A4Code,$AC:$AC,Sheet1!S71_ItemType,$AD:$AD,Sheet1!S71_MasterVoteMunicipal,H$57)","v":0},{"$f":"-SUMIFS(Sheet1!S71_ASBudgetAmount,Sheet1!S71_A4Code,$AC:$AC,Sheet1!S71_ItemType,$AD:$AD,Sheet1!S71_MasterVoteMunicipal,I$57)","v":0},{"$f":"-SUMIFS(Sheet1!S71_ASBudgetAmount,Sheet1!S71_A4Code,$AC:$AC,Sheet1!S71_ItemType,$AD:$AD,Sheet1!S71_MasterVoteMunicipal,J$57)","v":0},{"$f":"-SUMIFS(Sheet1!S71_ASBudgetAmount,Sheet1!S71_A4Code,$AC:$AC,Sheet1!S71_ItemType,$AD:$AD,Sheet1!S71_MasterVoteMunicipal,K$57)","v":0},{"$f":"-SUMIFS(Sheet1!S71_ASBudgetAmount,Sheet1!S71_A4Code,$AC:$AC,Sheet1!S71_ItemType,$AD:$AD,Sheet1!S71_MasterVoteMunicipal,L$57)","v":0},{"$f":"-SUMIFS(Sheet1!S71_ASBudgetAmount,Sheet1!S71_A4Code,$AC:$AC,Sheet1!S71_ItemType,$AD:$AD,Sheet1!S71_MasterVoteMunicipal,M$57)","v":0},{"$f":"-SUMIFS(Sheet1!S71_ASBudgetAmount,Sheet1!S71_A4Code,$AC:$AC,Sheet1!S71_ItemType,$AD:$AD,Sheet1!S71_MasterVoteMunicipal,N$57)","v":0},{"$f":"-SUMIFS(Sheet1!S71_ASBudgetAmount,Sheet1!S71_A4Code,$AC:$AC,Sheet1!S71_ItemType,$AD:$AD,Sheet1!S71_MasterVoteMunicipal,O$57)","v":0},{"$f":"-SUMIFS(Sheet1!S71_ASBudgetAmount,Sheet1!S71_A4Code,$AC:$AC,Sheet1!S71_ItemType,$AD:$AD,Sheet1!S71_MasterVoteMunicipal,P$57)","v":0},{"$f":"-SUMIFS(Sheet1!S71_ASBudgetAmount,Sheet1!S71_A4Code,$AC:$AC,Sheet1!S71_ItemType,$AD:$AD,Sheet1!S71_MasterVoteMunicipal,Q$57)","v":0},0,null,null,null,null,null,null,null,null,null,null,"2600","IR"]
["Other Gains",null,{"$f":"-SUMIFS(Sheet1!S71_ASBudgetAmount,Sheet1!S71_A4Code,$AC:$AC,Sheet1!S71_ItemType,$AD:$AD,Sheet1!S71_MasterVoteMunicipal,C$57)","v":0},{"$f":"-SUMIFS(Sheet1!S71_ASBudgetAmount,Sheet1!S71_A4Code,$AC:$AC,Sheet1!S71_ItemType,$AD:$AD,Sheet1!S71_MasterVoteMunicipal,D$57)","v":0},{"$f":"-SUMIFS(Sheet1!S71_ASBudgetAmount,Sheet1!S71_A4Code,$AC:$AC,Sheet1!S71_ItemType,$AD:$AD,Sheet1!S71_MasterVoteMunicipal,E$57)","v":-100000},{"$f":"-SUMIFS(Sheet1!S71_ASBudgetAmount,Sheet1!S71_A4Code,$AC:$AC,Sheet1!S71_ItemType,$AD:$AD,Sheet1!S71_MasterVoteMunicipal,F$57)","v":0},{"$f":"-SUMIFS(Sheet1!S71_ASBudgetAmount,Sheet1!S71_A4Code,$AC:$AC,Sheet1!S71_ItemType,$AD:$AD,Sheet1!S71_MasterVoteMunicipal,G$57)","v":0},{"$f":"-SUMIFS(Sheet1!S71_ASBudgetAmount,Sheet1!S71_A4Code,$AC:$AC,Sheet1!S71_ItemType,$AD:$AD,Sheet1!S71_MasterVoteMunicipal,H$57)","v":0},{"$f":"-SUMIFS(Sheet1!S71_ASBudgetAmount,Sheet1!S71_A4Code,$AC:$AC,Sheet1!S71_ItemType,$AD:$AD,Sheet1!S71_MasterVoteMunicipal,I$57)","v":0},{"$f":"-SUMIFS(Sheet1!S71_ASBudgetAmount,Sheet1!S71_A4Code,$AC:$AC,Sheet1!S71_ItemType,$AD:$AD,Sheet1!S71_MasterVoteMunicipal,J$57)","v":0},{"$f":"-SUMIFS(Sheet1!S71_ASBudgetAmount,Sheet1!S71_A4Code,$AC:$AC,Sheet1!S71_ItemType,$AD:$AD,Sheet1!S71_MasterVoteMunicipal,K$57)","v":0},{"$f":"-SUMIFS(Sheet1!S71_ASBudgetAmount,Sheet1!S71_A4Code,$AC:$AC,Sheet1!S71_ItemType,$AD:$AD,Sheet1!S71_MasterVoteMunicipal,L$57)","v":0},{"$f":"-SUMIFS(Sheet1!S71_ASBudgetAmount,Sheet1!S71_A4Code,$AC:$AC,Sheet1!S71_ItemType,$AD:$AD,Sheet1!S71_MasterVoteMunicipal,M$57)","v":0},{"$f":"-SUMIFS(Sheet1!S71_ASBudgetAmount,Sheet1!S71_A4Code,$AC:$AC,Sheet1!S71_ItemType,$AD:$AD,Sheet1!S71_MasterVoteMunicipal,N$57)","v":0},{"$f":"-SUMIFS(Sheet1!S71_ASBudgetAmount,Sheet1!S71_A4Code,$AC:$AC,Sheet1!S71_ItemType,$AD:$AD,Sheet1!S71_MasterVoteMunicipal,O$57)","v":0},{"$f":"-SUMIFS(Sheet1!S71_ASBudgetAmount,Sheet1!S71_A4Code,$AC:$AC,Sheet1!S71_ItemType,$AD:$AD,Sheet1!S71_MasterVoteMunicipal,P$57)","v":0},{"$f":"-SUMIFS(Sheet1!S71_ASBudgetAmount,Sheet1!S71_A4Code,$AC:$AC,Sheet1!S71_ItemType,$AD:$AD,Sheet1!S71_MasterVoteMunicipal,Q$57)","v":0},-100000,null,null,null,null,null,null,null,null,null,null,"2700","IR"]
["Discontinued Operations",null,{"$f":"-SUMIFS(Sheet1!S71_ASBudgetAmount,Sheet1!S71_A4Code,$AC:$AC,Sheet1!S71_ItemType,$AD:$AD,Sheet1!S71_MasterVoteMunicipal,C$57)","v":0},{"$f":"-SUMIFS(Sheet1!S71_ASBudgetAmount,Sheet1!S71_A4Code,$AC:$AC,Sheet1!S71_ItemType,$AD:$AD,Sheet1!S71_MasterVoteMunicipal,D$57)","v":0},{"$f":"-SUMIFS(Sheet1!S71_ASBudgetAmount,Sheet1!S71_A4Code,$AC:$AC,Sheet1!S71_ItemType,$AD:$AD,Sheet1!S71_MasterVoteMunicipal,E$57)","v":0},{"$f":"-SUMIFS(Sheet1!S71_ASBudgetAmount,Sheet1!S71_A4Code,$AC:$AC,Sheet1!S71_ItemType,$AD:$AD,Sheet1!S71_MasterVoteMunicipal,F$57)","v":0},{"$f":"-SUMIFS(Sheet1!S71_ASBudgetAmount,Sheet1!S71_A4Code,$AC:$AC,Sheet1!S71_ItemType,$AD:$AD,Sheet1!S71_MasterVoteMunicipal,G$57)","v":0},{"$f":"-SUMIFS(Sheet1!S71_ASBudgetAmount,Sheet1!S71_A4Code,$AC:$AC,Sheet1!S71_ItemType,$AD:$AD,Sheet1!S71_MasterVoteMunicipal,H$57)","v":0},{"$f":"-SUMIFS(Sheet1!S71_ASBudgetAmount,Sheet1!S71_A4Code,$AC:$AC,Sheet1!S71_ItemType,$AD:$AD,Sheet1!S71_MasterVoteMunicipal,I$57)","v":0},{"$f":"-SUMIFS(Sheet1!S71_ASBudgetAmount,Sheet1!S71_A4Code,$AC:$AC,Sheet1!S71_ItemType,$AD:$AD,Sheet1!S71_MasterVoteMunicipal,J$57)","v":0},{"$f":"-SUMIFS(Sheet1!S71_ASBudgetAmount,Sheet1!S71_A4Code,$AC:$AC,Sheet1!S71_ItemType,$AD:$AD,Sheet1!S71_MasterVoteMunicipal,K$57)","v":0},{"$f":"-SUMIFS(Sheet1!S71_ASBudgetAmount,Sheet1!S71_A4Code,$AC:$AC,Sheet1!S71_ItemType,$AD:$AD,Sheet1!S71_MasterVoteMunicipal,L$57)","v":0},{"$f":"-SUMIFS(Sheet1!S71_ASBudgetAmount,Sheet1!S71_A4Code,$AC:$AC,Sheet1!S71_ItemType,$AD:$AD,Sheet1!S71_MasterVoteMunicipal,M$57)","v":0},{"$f":"-SUMIFS(Sheet1!S71_ASBudgetAmount,Sheet1!S71_A4Code,$AC:$AC,Sheet1!S71_ItemType,$AD:$AD,Sheet1!S71_MasterVoteMunicipal,N$57)","v":0},{"$f":"-SUMIFS(Sheet1!S71_ASBudgetAmount,Sheet1!S71_A4Code,$AC:$AC,Sheet1!S71_ItemType,$AD:$AD,Sheet1!S71_MasterVoteMunicipal,O$57)","v":0},{"$f":"-SUMIFS(Sheet1!S71_ASBudgetAmount,Sheet1!S71_A4Code,$AC:$AC,Sheet1!S71_ItemType,$AD:$AD,Sheet1!S71_MasterVoteMunicipal,P$57)","v":0},{"$f":"-SUMIFS(Sheet1!S71_ASBudgetAmount,Sheet1!S71_A4Code,$AC:$AC,Sheet1!S71_ItemType,$AD:$AD,Sheet1!S71_MasterVoteMunicipal,Q$57)","v":0},0,null,null,null,null,null,null,null,null,null,null,"2800","IR"]
["Total Revenue (excluding capital transfers and contributions)",null,{"$f":"SUM(C6:C19)+SUM(C21:C31)","v":0},{"$f":"SUM(D6:D19)+SUM(D21:D31)","v":-565939},-453115432,-820000,0,0,-8750000,0,-12648695,-450000,0,0,0,0,0,-476350066]
["Expenditure"]
["Employee related costs",null,{"$f":"-SUMIFS(Sheet1!S71_ASBudgetAmount,Sheet1!S71_A4Code,$AC:$AC,Sheet1!S71_ItemType,$AD:$AD,Sheet1!S71_MasterVoteMunicipal,C$57)","v":-3774538},{"$f":"-SUMIFS(Sheet1!S71_ASBudgetAmount,Sheet1!S71_A4Code,$AC:$AC,Sheet1!S71_ItemType,$AD:$AD,Sheet1!S71_MasterVoteMunicipal,D$57)","v":-10040247},{"$f":"-SUMIFS(Sheet1!S71_ASBudgetAmount,Sheet1!S71_A4Code,$AC:$AC,Sheet1!S71_ItemType,$AD:$AD,Sheet1!S71_MasterVoteMunicipal,E$57)","v":-69368174},{"$f":"-SUMIFS(Sheet1!S71_ASBudgetAmount,Sheet1!S71_A4Code,$AC:$AC,Sheet1!S71_ItemType,$AD:$AD,Sheet1!S71_MasterVoteMunicipal,F$57)","v":-14354095},{"$f":"-SUMIFS(Sheet1!S71_ASBudgetAmount,Sheet1!S71_A4Code,$AC:$AC,Sheet1!S71_ItemType,$AD:$AD,Sheet1!S71_MasterVoteMunicipal,G$57)","v":-1467945},{"$f":"-SUMIFS(Sheet1!S71_ASBudgetAmount,Sheet1!S71_A4Code,$AC:$AC,Sheet1!S71_ItemType,$AD:$AD,Sheet1!S71_MasterVoteMunicipal,H$57)","v":-2795521},{"$f":"-SUMIFS(Sheet1!S71_ASBudgetAmount,Sheet1!S71_A4Code,$AC:$AC,Sheet1!S71_ItemType,$AD:$AD,Sheet1!S71_MasterVoteMunicipal,I$57)","v":-43351357},{"$f":"-SUMIFS(Sheet1!S71_ASBudgetAmount,Sheet1!S71_A4Code,$AC:$AC,Sheet1!S71_ItemType,$AD:$AD,Sheet1!S71_MasterVoteMunicipal,J$57)","v":0},{"$f":"-SUMIFS(Sheet1!S71_ASBudgetAmount,Sheet1!S71_A4Code,$AC:$AC,Sheet1!S71_ItemType,$AD:$AD,Sheet1!S71_MasterVoteMunicipal,K$57)","v":-15580373},{"$f":"-SUMIFS(Sheet1!S71_ASBudgetAmount,Sheet1!S71_A4Code,$AC:$AC,Sheet1!S71_ItemType,$AD:$AD,Sheet1!S71_MasterVoteMunicipal,L$57)","v":-6871860},{"$f":"-SUMIFS(Sheet1!S71_ASBudgetAmount,Sheet1!S71_A4Code,$AC:$AC,Sheet1!S71_ItemType,$AD:$AD,Sheet1!S71_MasterVoteMunicipal,M$57)","v":0},{"$f":"-SUMIFS(Sheet1!S71_ASBudgetAmount,Sheet1!S71_A4Code,$AC:$AC,Sheet1!S71_ItemType,$AD:$AD,Sheet1!S71_MasterVoteMunicipal,N$57)","v":0},{"$f":"-SUMIFS(Sheet1!S71_ASBudgetAmount,Sheet1!S71_A4Code,$AC:$AC,Sheet1!S71_ItemType,$AD:$AD,Sheet1!S71_MasterVoteMunicipal,O$57)","v":-1477600},{"$f":"-SUMIFS(Sheet1!S71_ASBudgetAmount,Sheet1!S71_A4Code,$AC:$AC,Sheet1!S71_ItemType,$AD:$AD,Sheet1!S71_MasterVoteMunicipal,P$57)","v":-30734281},{"$f":"-SUMIFS(Sheet1!S71_ASBudgetAmount,Sheet1!S71_A4Code,$AC:$AC,Sheet1!S71_ItemType,$AD:$AD,Sheet1!S71_MasterVoteMunicipal,Q$57)","v":0},{"$f":"SUM(C34:Q34)","v":-199815991},null,null,null,null,null,null,null,null,null,null,"3100","IE"]
["Remuneration of councillors",null,{"$f":"-SUMIFS(Sheet1!S71_ASBudgetAmount,Sheet1!S71_A4Code,$AC:$AC,Sheet1!S71_ItemType,$AD:$AD,Sheet1!S71_MasterVoteMunicipal,C$57)","v":0},{"$f":"-SUMIFS(Sheet1!S71_ASBudgetAmount,Sheet1!S71_A4Code,$AC:$AC,Sheet1!S71_ItemType,$AD:$AD,Sheet1!S71_MasterVoteMunicipal,D$57)","v":0},{"$f":"-SUMIFS(Sheet1!S71_ASBudgetAmount,Sheet1!S71_A4Code,$AC:$AC,Sheet1!S71_ItemType,$AD:$AD,Sheet1!S71_MasterVoteMunicipal,E$57)","v":0},{"$f":"-SUMIFS(Sheet1!S71_ASBudgetAmount,Sheet1!S71_A4Code,$AC:$AC,Sheet1!S71_ItemType,$AD:$AD,Sheet1!S71_MasterVoteMunicipal,F$57)","v":0},{"$f":"-SUMIFS(Sheet1!S71_ASBudgetAmount,Sheet1!S71_A4Code,$AC:$AC,Sheet1!S71_ItemType,$AD:$AD,Sheet1!S71_MasterVoteMunicipal,G$57)","v":-24892324},{"$f":"-SUMIFS(Sheet1!S71_ASBudgetAmount,Sheet1!S71_A4Code,$AC:$AC,Sheet1!S71_ItemType,$AD:$AD,Sheet1!S71_MasterVoteMunicipal,H$57)","v":0},{"$f":"-SUMIFS(Sheet1!S71_ASBudgetAmount,Sheet1!S71_A4Code,$AC:$AC,Sheet1!S71_ItemType,$AD:$AD,Sheet1!S71_MasterVoteMunicipal,I$57)","v":0},{"$f":"-SUMIFS(Sheet1!S71_ASBudgetAmount,Sheet1!S71_A4Code,$AC:$AC,Sheet1!S71_ItemType,$AD:$AD,Sheet1!S71_MasterVoteMunicipal,J$57)","v":0},{"$f":"-SUMIFS(Sheet1!S71_ASBudgetAmount,Sheet1!S71_A4Code,$AC:$AC,Sheet1!S71_ItemType,$AD:$AD,Sheet1!S71_MasterVoteMunicipal,K$57)","v":0},{"$f":"-SUMIFS(Sheet1!S71_ASBudgetAmount,Sheet1!S71_A4Code,$AC:$AC,Sheet1!S71_ItemType,$AD:$AD,Sheet1!S71_MasterVoteMunicipal,L$57)","v":0},{"$f":"-SUMIFS(Sheet1!S71_ASBudgetAmount,Sheet1!S71_A4Code,$AC:$AC,Sheet1!S71_ItemType,$AD:$AD,Sheet1!S71_MasterVoteMunicipal,M$57)","v":0},{"$f":"-SUMIFS(Sheet1!S71_ASBudgetAmount,Sheet1!S71_A4Code,$AC:$AC,Sheet1!S71_ItemType,$AD:$AD,Sheet1!S71_MasterVoteMunicipal,N$57)","v":0},{"$f":"-SUMIFS(Sheet1!S71_ASBudgetAmount,Sheet1!S71_A4Code,$AC:$AC,Sheet1!S71_ItemType,$AD:$AD,Sheet1!S71_MasterVoteMunicipal,O$57)","v":0},{"$f":"-SUMIFS(Sheet1!S71_ASBudgetAmount,Sheet1!S71_A4Code,$AC:$AC,Sheet1!S71_ItemType,$AD:$AD,Sheet1!S71_MasterVoteMunicipal,P$57)","v":0},{"$f":"-SUMIFS(Sheet1!S71_ASBudgetAmount,Sheet1!S71_A4Code,$AC:$AC,Sheet1!S71_ItemType,$AD:$AD,Sheet1!S71_MasterVoteMunicipal,Q$57)","v":0},-24892324,null,null,null,null,null,null,null,null,null,null,"3200","IE"]
["Bulk purchases - electricity",null,{"$f":"-SUMIFS(Sheet1!S71_ASBudgetAmount,Sheet1!S71_A4Code,$AC:$AC,Sheet1!S71_ItemType,$AD:$AD,Sheet1!S71_MasterVoteMunicipal,C$57)","v":0},{"$f":"-SUMIFS(Sheet1!S71_ASBudgetAmount,Sheet1!S71_A4Code,$AC:$AC,Sheet1!S71_ItemType,$AD:$AD,Sheet1!S71_MasterVoteMunicipal,D$57)","v":0},{"$f":"-SUMIFS(Sheet1!S71_ASBudgetAmount,Sheet1!S71_A4Code,$AC:$AC,Sheet1!S71_ItemType,$AD:$AD,Sheet1!S71_MasterVoteMunicipal,E$57)","v":0},{"$f":"-SUMIFS(Sheet1!S71_ASBudgetAmount,Sheet1!S71_A4Code,$AC:$AC,Sheet1!S71_ItemType,$AD:$AD,Sheet1!S71_MasterVoteMunicipal,F$57)","v":0},{"$f":"-SUMIFS(Sheet1!S71_ASBudgetAmount,Sheet1!S71_A4Code,$AC:$AC,Sheet1!S71_ItemType,$AD:$AD,Sheet1!S71_MasterVoteMunicipal,G$57)","v":0},{"$f":"-SUMIFS(Sheet1!S71_ASBudgetAmount,Sheet1!S71_A4Code,$AC:$AC,Sheet1!S71_ItemType,$AD:$AD,Sheet1!S71_MasterVoteMunicipal,H$57)","v":0},{"$f":"-SUMIFS(Sheet1!S71_ASBudgetAmount,Sheet1!S71_A4Code,$AC:$AC,Sheet1!S71_ItemType,$AD:$AD,Sheet1!S71_MasterVoteMunicipal,I$57)","v":0},{"$f":"-SUMIFS(Sheet1!S71_ASBudgetAmount,Sheet1!S71_A4Code,$AC:$AC,Sheet1!S71_ItemType,$AD:$AD,Sheet1!S71_MasterVoteMunicipal,J$57)","v":0},{"$f":"-SUMIFS(Sheet1!S71_ASBudgetAmount,Sheet1!S71_A4Code,$AC:$AC,Sheet1!S71_ItemType,$AD:$AD,Sheet1!S71_MasterVoteMunicipal,K$57)","v":0},{"$f":"-SUMIFS(Sheet1!S71_ASBudgetAmount,Sheet1!S71_A4Code,$AC:$AC,Sheet1!S71_ItemType,$AD:$AD,Sheet1!S71_MasterVoteMunicipal,L$57)","v":0},{"$f":"-SUMIFS(Sheet1!S71_ASBudgetAmount,Sheet1!S71_A4Code,$AC:$AC,Sheet1!S71_ItemType,$AD:$AD,Sheet1!S71_MasterVoteMunicipal,M$57)","v":0},{"$f":"-SUMIFS(Sheet1!S71_ASBudgetAmount,Sheet1!S71_A4Code,$AC:$AC,Sheet1!S71_ItemType,$AD:$AD,Sheet1!S71_MasterVoteMunicipal,N$57)","v":0},{"$f":"-SUMIFS(Sheet1!S71_ASBudgetAmount,Sheet1!S71_A4Code,$AC:$AC,Sheet1!S71_ItemType,$AD:$AD,Sheet1!S71_MasterVoteMunicipal,O$57)","v":0},{"$f":"-SUMIFS(Sheet1!S71_ASBudgetAmount,Sheet1!S71_A4Code,$AC:$AC,Sheet1!S71_ItemType,$AD:$AD,Sheet1!S71_MasterVoteMunicipal,P$57)","v":0},{"$f":"-SUMIFS(Sheet1!S71_ASBudgetAmount,Sheet1!S71_A4Code,$AC:$AC,Sheet1!S71_ItemType,$AD:$AD,Sheet1!S71_MasterVoteMunicipal,Q$57)","v":0},0,null,null,null,null,null,null,null,null,null,null,"3300","IE"]
["Inventory consumed",null,{"$f":"-SUMIFS(Sheet1!S71_ASBudgetAmount,Sheet1!S71_A4Code,$AC:$AC,Sheet1!S71_ItemType,$AD:$AD,Sheet1!S71_MasterVoteMunicipal,C$57)","v":-4000000},{"$f":"-SUMIFS(Sheet1!S71_ASBudgetAmount,Sheet1!S71_A4Code,$AC:$AC,Sheet1!S71_ItemType,$AD:$AD,Sheet1!S71_MasterVoteMunicipal,D$57)","v":-800000},{"$f":"-SUMIFS(Sheet1!S71_ASBudgetAmount,Sheet1!S71_A4Code,$AC:$AC,Sheet1!S71_ItemType,$AD:$AD,Sheet1!S71_MasterVoteMunicipal,E$57)","v":-3200000},{"$f":"-SUMIFS(Sheet1!S71_ASBudgetAmount,Sheet1!S71_A4Code,$AC:$AC,Sheet1!S71_ItemType,$AD:$AD,Sheet1!S71_MasterVoteMunicipal,F$57)","v":0},{"$f":"-SUMIFS(Sheet1!S71_ASBudgetAmount,Sheet1!S71_A4Code,$AC:$AC,Sheet1!S71_ItemType,$AD:$AD,Sheet1!S71_MasterVoteMunicipal,G$57)","v":0},{"$f":"-SUMIFS(Sheet1!S71_ASBudgetAmount,Sheet1!S71_A4Code,$AC:$AC,Sheet1!S71_ItemType,$AD:$AD,Sheet1!S71_MasterVoteMunicipal,H$57)","v":0},{"$f":"-SUMIFS(Sheet1!S71_ASBudgetAmount,Sheet1!S71_A4Code,$AC:$AC,Sheet1!S71_ItemType,$AD:$AD,Sheet1!S71_MasterVoteMunicipal,I$57)","v":-4000000},{"$f":"-SUMIFS(Sheet1!S71_ASBudgetAmount,Sheet1!S71_A4Code,$AC:$AC,Sheet1!S71_ItemType,$AD:$AD,Sheet1!S71_MasterVoteMunicipal,J$57)","v":-300000},{"$f":"-SUMIFS(Sheet1!S71_ASBudgetAmount,Sheet1!S71_A4Code,$AC:$AC,Sheet1!S71_ItemType,$AD:$AD,Sheet1!S71_MasterVoteMunicipal,K$57)","v":-900000},{"$f":"-SUMIFS(Sheet1!S71_ASBudgetAmount,Sheet1!S71_A4Code,$AC:$AC,Sheet1!S71_ItemType,$AD:$AD,Sheet1!S71_MasterVoteMunicipal,L$57)","v":0},{"$f":"-SUMIFS(Sheet1!S71_ASBudgetAmount,Sheet1!S71_A4Code,$AC:$AC,Sheet1!S71_ItemType,$AD:$AD,Sheet1!S71_MasterVoteMunicipal,M$57)","v":0},{"$f":"-SUMIFS(Sheet1!S71_ASBudgetAmount,Sheet1!S71_A4Code,$AC:$AC,Sheet1!S71_ItemType,$AD:$AD,Sheet1!S71_MasterVoteMunicipal,N$57)","v":0},{"$f":"-SUMIFS(Sheet1!S71_ASBudgetAmount,Sheet1!S71_A4Code,$AC:$AC,Sheet1!S71_ItemType,$AD:$AD,Sheet1!S71_MasterVoteMunicipal,O$57)","v":0},{"$f":"-SUMIFS(Sheet1!S71_ASBudgetAmount,Sheet1!S71_A4Code,$AC:$AC,Sheet1!S71_ItemType,$AD:$AD,Sheet1!S71_MasterVoteMunicipal,P$57)","v":0},{"$f":"-SUMIFS(Sheet1!S71_ASBudgetAmount,Sheet1!S71_A4Code,$AC:$AC,Sheet1!S71_ItemType,$AD:$AD,Sheet1!S71_MasterVoteMunicipal,Q$57)","v":0},-13200000,null,null,null,null,null,null,null,null,null,null,"3400","IE"]
["Debt impairment",null,{"$f":"-SUMIFS(Sheet1!S71_ASBudgetAmount,Sheet1!S71_A4Code,$AC:$AC,Sheet1!S71_ItemType,$AD:$AD,Sheet1!S71_MasterVoteMunicipal,C$57)","v":0},{"$f":"-SUMIFS(Sheet1!S71_ASBudgetAmount,Sheet1!S71_A4Code,$AC:$AC,Sheet1!S71_ItemType,$AD:$AD,Sheet1!S71_MasterVoteMunicipal,D$57)","v":0},{"$f":"-SUMIFS(Sheet1!S71_ASBudgetAmount,Sheet1!S71_A4Code,$AC:$AC,Sheet1!S71_ItemType,$AD:$AD,Sheet1!S71_MasterVoteMunicipal,E$57)","v":-29000000},{"$f":"-SUMIFS(Sheet1!S71_ASBudgetAmount,Sheet1!S71_A4Code,$AC:$AC,Sheet1!S71_ItemType,$AD:$AD,Sheet1!S71_MasterVoteMunicipal,F$57)","v":0},{"$f":"-SUMIFS(Sheet1!S71_ASBudgetAmount,Sheet1!S71_A4Code,$AC:$AC,Sheet1!S71_ItemType,$AD:$AD,Sheet1!S71_MasterVoteMunicipal,G$57)","v":0},{"$f":"-SUMIFS(Sheet1!S71_ASBudgetAmount,Sheet1!S71_A4Code,$AC:$AC,Sheet1!S71_ItemType,$AD:$AD,Sheet1!S71_MasterVoteMunicipal,H$57)","v":0},{"$f":"-SUMIFS(Sheet1!S71_ASBudgetAmount,Sheet1!S71_A4Code,$AC:$AC,Sheet1!S71_ItemType,$AD:$AD,Sheet1!S71_MasterVoteMunicipal,I$57)","v":0},{"$f":"-SUMIFS(Sheet1!S71_ASBudgetAmount,Sheet1!S71_A4Code,$AC:$AC,Sheet1!S71_ItemType,$AD:$AD,Sheet1!S71_MasterVoteMunicipal,J$57)","v":0},{"$f":"-SUMIFS(Sheet1!S71_ASBudgetAmount,Sheet1!S71_A4Code,$AC:$AC,Sheet1!S71_ItemType,$AD:$AD,Sheet1!S71_MasterVoteMunicipal,K$57)","v":0},{"$f":"-SUMIFS(Sheet1!S71_ASBudgetAmount,Sheet1!S71_A4Code,$AC:$AC,Sheet1!S71_ItemType,$AD:$AD,Sheet1!S71_MasterVoteMunicipal,L$57)","v":0},{"$f":"-SUMIFS(Sheet1!S71_ASBudgetAmount,Sheet1!S71_A4Code,$AC:$AC,Sheet1!S71_ItemType,$AD:$AD,Sheet1!S71_MasterVoteMunicipal,M$57)","v":0},{"$f":"-SUMIFS(Sheet1!S71_ASBudgetAmount,Sheet1!S71_A4Code,$AC:$AC,Sheet1!S71_ItemType,$AD:$AD,Sheet1!S71_MasterVoteMunicipal,N$57)","v":0},{"$f":"-SUMIFS(Sheet1!S71_ASBudgetAmount,Sheet1!S71_A4Code,$AC:$AC,Sheet1!S71_ItemType,$AD:$AD,Sheet1!S71_MasterVoteMunicipal,O$57)","v":0},{"$f":"-SUMIFS(Sheet1!S71_ASBudgetAmount,Sheet1!S71_A4Code,$AC:$AC,Sheet1!S71_ItemType,$AD:$AD,Sheet1!S71_MasterVoteMunicipal,P$57)","v":0},{"$f":"-SUMIFS(Sheet1!S71_ASBudgetAmount,Sheet1!S71_A4Code,$AC:$AC,Sheet1!S71_ItemType,$AD:$AD,Sheet1!S71_MasterVoteMunicipal,Q$57)","v":0},-29000000,null,null,null,null,null,null,null,null,null,null,"3500","IE"]
["Depreciation and amortisation",null,{"$f":"-SUMIFS(Sheet1!S71_ASBudgetAmount,Sheet1!S71_A4Code,$AC:$AC,Sheet1!S71_ItemType,$AD:$AD,Sheet1!S71_MasterVoteMunicipal,C$57)","v":0},{"$f":"-SUMIFS(Sheet1!S71_ASBudgetAmount,Sheet1!S71_A4Code,$AC:$AC,Sheet1!S71_ItemType,$AD:$AD,Sheet1!S71_MasterVoteMunicipal,D$57)","v":-2200000},{"$f":"-SUMIFS(Sheet1!S71_ASBudgetAmount,Sheet1!S71_A4Code,$AC:$AC,Sheet1!S71_ItemType,$AD:$AD,Sheet1!S71_MasterVoteMunicipal,E$57)","v":-81800000},{"$f":"-SUMIFS(Sheet1!S71_ASBudgetAmount,Sheet1!S71_A4Code,$AC:$AC,Sheet1!S71_ItemType,$AD:$AD,Sheet1!S71_MasterVoteMunicipal,F$57)","v":0},{"$f":"-SUMIFS(Sheet1!S71_ASBudgetAmount,Sheet1!S71_A4Code,$AC:$AC,Sheet1!S71_ItemType,$AD:$AD,Sheet1!S71_MasterVoteMunicipal,G$57)","v":0},{"$f":"-SUMIFS(Sheet1!S71_ASBudgetAmount,Sheet1!S71_A4Code,$AC:$AC,Sheet1!S71_ItemType,$AD:$AD,Sheet1!S71_MasterVoteMunicipal,H$57)","v":0},{"$f":"-SUMIFS(Sheet1!S71_ASBudgetAmount,Sheet1!S71_A4Code,$AC:$AC,Sheet1!S71_ItemType,$AD:$AD,Sheet1!S71_MasterVoteMunicipal,I$57)","v":0},{"$f":"-SUMIFS(Sheet1!S71_ASBudgetAmount,Sheet1!S71_A4Code,$AC:$AC,Sheet1!S71_ItemType,$AD:$AD,Sheet1!S71_MasterVoteMunicipal,J$57)","v":0},{"$f":"-SUMIFS(Sheet1!S71_ASBudgetAmount,Sheet1!S71_A4Code,$AC:$AC,Sheet1!S71_ItemType,$AD:$AD,Sheet1!S71_MasterVoteMunicipal,K$57)","v":0},{"$f":"-SUMIFS(Sheet1!S71_ASBudgetAmount,Sheet1!S71_A4Code,$AC:$AC,Sheet1!S71_ItemType,$AD:$AD,Sheet1!S71_MasterVoteMunicipal,L$57)","v":0},{"$f":"-SUMIFS(Sheet1!S71_ASBudgetAmount,Sheet1!S71_A4Code,$AC:$AC,Sheet1!S71_ItemType,$AD:$AD,Sheet1!S71_MasterVoteMunicipal,M$57)","v":0},{"$f":"-SUMIFS(Sheet1!S71_ASBudgetAmount,Sheet1!S71_A4Code,$AC:$AC,Sheet1!S71_ItemType,$AD:$AD,Sheet1!S71_MasterVoteMunicipal,N$57)","v":0},{"$f":"-SUMIFS(Sheet1!S71_ASBudgetAmount,Sheet1!S71_A4Code,$AC:$AC,Sheet1!S71_ItemType,$AD:$AD,Sheet1!S71_MasterVoteMunicipal,O$57)","v":0},{"$f":"-SUMIFS(Sheet1!S71_ASBudgetAmount,Sheet1!S71_A4Code,$AC:$AC,Sheet1!S71_ItemType,$AD:$AD,Sheet1!S71_MasterVoteMunicipal,P$57)","v":-11000000},{"$f":"-SUMIFS(Sheet1!S71_ASBudgetAmount,Sheet1!S71_A4Code,$AC:$AC,Sheet1!S71_ItemType,$AD:$AD,Sheet1!S71_MasterVoteMunicipal,Q$57)","v":0},-95000000,null,null,null,null,null,null,null,null,null,null,"3600","IE"]
["Interest",null,{"$f":"-SUMIFS(Sheet1!S71_ASBudgetAmount,Sheet1!S71_A4Code,$AC:$AC,Sheet1!S71_ItemType,$AD:$AD,Sheet1!S71_MasterVoteMunicipal,C$57)","v":0},{"$f":"-SUMIFS(Sheet1!S71_ASBudgetAmount,Sheet1!S71_A4Code,$AC:$AC,Sheet1!S71_ItemType,$AD:$AD,Sheet1!S71_MasterVoteMunicipal,D$57)","v":0},{"$f":"-SUMIFS(Sheet1!S71_ASBudgetAmount,Sheet1!S71_A4Code,$AC:$AC,Sheet1!S71_ItemType,$AD:$AD,Sheet1!S71_MasterVoteMunicipal,E$57)","v":0},{"$f":"-SUMIFS(Sheet1!S71_ASBudgetAmount,Sheet1!S71_A4Code,$AC:$AC,Sheet1!S71_ItemType,$AD:$AD,Sheet1!S71_MasterVoteMunicipal,F$57)","v":0},{"$f":"-SUMIFS(Sheet1!S71_ASBudgetAmount,Sheet1!S71_A4Code,$AC:$AC,Sheet1!S71_ItemType,$AD:$AD,Sheet1!S71_MasterVoteMunicipal,G$57)","v":0},{"$f":"-SUMIFS(Sheet1!S71_ASBudgetAmount,Sheet1!S71_A4Code,$AC:$AC,Sheet1!S71_ItemType,$AD:$AD,Sheet1!S71_MasterVoteMunicipal,H$57)","v":0},{"$f":"-SUMIFS(Sheet1!S71_ASBudgetAmount,Sheet1!S71_A4Code,$AC:$AC,Sheet1!S71_ItemType,$AD:$AD,Sheet1!S71_MasterVoteMunicipal,I$57)","v":0},{"$f":"-SUMIFS(Sheet1!S71_ASBudgetAmount,Sheet1!S71_A4Code,$AC:$AC,Sheet1!S71_ItemType,$AD:$AD,Sheet1!S71_MasterVoteMunicipal,J$57)","v":0},{"$f":"-SUMIFS(Sheet1!S71_ASBudgetAmount,Sheet1!S71_A4Code,$AC:$AC,Sheet1!S71_ItemType,$AD:$AD,Sheet1!S71_MasterVoteMunicipal,K$57)","v":0},{"$f":"-SUMIFS(Sheet1!S71_ASBudgetAmount,Sheet1!S71_A4Code,$AC:$AC,Sheet1!S71_ItemType,$AD:$AD,Sheet1!S71_MasterVoteMunicipal,L$57)","v":0},{"$f":"-SUMIFS(Sheet1!S71_ASBudgetAmount,Sheet1!S71_A4Code,$AC:$AC,Sheet1!S71_ItemType,$AD:$AD,Sheet1!S71_MasterVoteMunicipal,M$57)","v":0},{"$f":"-SUMIFS(Sheet1!S71_ASBudgetAmount,Sheet1!S71_A4Code,$AC:$AC,Sheet1!S71_ItemType,$AD:$AD,Sheet1!S71_MasterVoteMunicipal,N$57)","v":0},{"$f":"-SUMIFS(Sheet1!S71_ASBudgetAmount,Sheet1!S71_A4Code,$AC:$AC,Sheet1!S71_ItemType,$AD:$AD,Sheet1!S71_MasterVoteMunicipal,O$57)","v":0},{"$f":"-SUMIFS(Sheet1!S71_ASBudgetAmount,Sheet1!S71_A4Code,$AC:$AC,Sheet1!S71_ItemType,$AD:$AD,Sheet1!S71_MasterVoteMunicipal,P$57)","v":0},{"$f":"-SUMIFS(Sheet1!S71_ASBudgetAmount,Sheet1!S71_A4Code,$AC:$AC,Sheet1!S71_ItemType,$AD:$AD,Sheet1!S71_MasterVoteMunicipal,Q$57)","v":0},0,null,null,null,null,null,null,null,null,null,null,"3700","IE"]
["Contracted services",null,{"$f":"-SUMIFS(Sheet1!S71_ASBudgetAmount,Sheet1!S71_A4Code,$AC:$AC,Sheet1!S71_ItemType,$AD:$AD,Sheet1!S71_MasterVoteMunicipal,C$57)","v":-53020000},{"$f":"-SUMIFS(Sheet1!S71_ASBudgetAmount,Sheet1!S71_A4Code,$AC:$AC,Sheet1!S71_ItemType,$AD:$AD,Sheet1!S71_MasterVoteMunicipal,D$57)","v":-2140000},{"$f":"-SUMIFS(Sheet1!S71_ASBudgetAmount,Sheet1!S71_A4Code,$AC:$AC,Sheet1!S71_ItemType,$AD:$AD,Sheet1!S71_MasterVoteMunicipal,E$57)","v":-41315000},{"$f":"-SUMIFS(Sheet1!S71_ASBudgetAmount,Sheet1!S71_A4Code,$AC:$AC,Sheet1!S71_ItemType,$AD:$AD,Sheet1!S71_MasterVoteMunicipal,F$57)","v":-10640000},{"$f":"-SUMIFS(Sheet1!S71_ASBudgetAmount,Sheet1!S71_A4Code,$AC:$AC,Sheet1!S71_ItemType,$AD:$AD,Sheet1!S71_MasterVoteMunicipal,G$57)","v":-4150500},{"$f":"-SUMIFS(Sheet1!S71_ASBudgetAmount,Sheet1!S71_A4Code,$AC:$AC,Sheet1!S71_ItemType,$AD:$AD,Sheet1!S71_MasterVoteMunicipal,H$57)","v":0},{"$f":"-SUMIFS(Sheet1!S71_ASBudgetAmount,Sheet1!S71_A4Code,$AC:$AC,Sheet1!S71_ItemType,$AD:$AD,Sheet1!S71_MasterVoteMunicipal,I$57)","v":-42530000},{"$f":"-SUMIFS(Sheet1!S71_ASBudgetAmount,Sheet1!S71_A4Code,$AC:$AC,Sheet1!S71_ItemType,$AD:$AD,Sheet1!S71_MasterVoteMunicipal,J$57)","v":0},{"$f":"-SUMIFS(Sheet1!S71_ASBudgetAmount,Sheet1!S71_A4Code,$AC:$AC,Sheet1!S71_ItemType,$AD:$AD,Sheet1!S71_MasterVoteMunicipal,K$57)","v":-3410000},{"$f":"-SUMIFS(Sheet1!S71_ASBudgetAmount,Sheet1!S71_A4Code,$AC:$AC,Sheet1!S71_ItemType,$AD:$AD,Sheet1!S71_MasterVoteMunicipal,L$57)","v":-250000},{"$f":"-SUMIFS(Sheet1!S71_ASBudgetAmount,Sheet1!S71_A4Code,$AC:$AC,Sheet1!S71_ItemType,$AD:$AD,Sheet1!S71_MasterVoteMunicipal,M$57)","v":0},{"$f":"-SUMIFS(Sheet1!S71_ASBudgetAmount,Sheet1!S71_A4Code,$AC:$AC,Sheet1!S71_ItemType,$AD:$AD,Sheet1!S71_MasterVoteMunicipal,N$57)","v":0},{"$f":"-SUMIFS(Sheet1!S71_ASBudgetAmount,Sheet1!S71_A4Code,$AC:$AC,Sheet1!S71_ItemType,$AD:$AD,Sheet1!S71_MasterVoteMunicipal,O$57)","v":0},{"$f":"-SUMIFS(Sheet1!S71_ASBudgetAmount,Sheet1!S71_A4Code,$AC:$AC,Sheet1!S71_ItemType,$AD:$AD,Sheet1!S71_MasterVoteMunicipal,P$57)","v":-6905000},{"$f":"-SUMIFS(Sheet1!S71_ASBudgetAmount,Sheet1!S71_A4Code,$AC:$AC,Sheet1!S71_ItemType,$AD:$AD,Sheet1!S71_MasterVoteMunicipal,Q$57)","v":0},-164360500,null,null,null,null,null,null,null,null,null,null,"3800","IE"]
["Transfers and subsidies",null,{"$f":"-SUMIFS(Sheet1!S71_ASBudgetAmount,Sheet1!S71_A4Code,$AC:$AC,Sheet1!S71_ItemType,$AD:$AD,Sheet1!S71_MasterVoteMunicipal,C$57)","v":0},{"$f":"-SUMIFS(Sheet1!S71_ASBudgetAmount,Sheet1!S71_A4Code,$AC:$AC,Sheet1!S71_ItemType,$AD:$AD,Sheet1!S71_MasterVoteMunicipal,D$57)","v":0},{"$f":"-SUMIFS(Sheet1!S71_ASBudgetAmount,Sheet1!S71_A4Code,$AC:$AC,Sheet1!S71_ItemType,$AD:$AD,Sheet1!S71_MasterVoteMunicipal,E$57)","v":0},{"$f":"-SUMIFS(Sheet1!S71_ASBudgetAmount,Sheet1!S71_A4Code,$AC:$AC,Sheet1!S71_ItemType,$AD:$AD,Sheet1!S71_MasterVoteMunicipal,F$57)","v":-1500000},{"$f":"-SUMIFS(Sheet1!S71_ASBudgetAmount,Sheet1!S71_A4Code,$AC:$AC,Sheet1!S71_ItemType,$AD:$AD,Sheet1!S71_MasterVoteMunicipal,G$57)","v":0},{"$f":"-SUMIFS(Sheet1!S71_ASBudgetAmount,Sheet1!S71_A4Code,$AC:$AC,Sheet1!S71_ItemType,$AD:$AD,Sheet1!S71_MasterVoteMunicipal,H$57)","v":0},{"$f":"-SUMIFS(Sheet1!S71_ASBudgetAmount,Sheet1!S71_A4Code,$AC:$AC,Sheet1!S71_ItemType,$AD:$AD,Sheet1!S71_MasterVoteMunicipal,I$57)","v":0},{"$f":"-SUMIFS(Sheet1!S71_ASBudgetAmount,Sheet1!S71_A4Code,$AC:$AC,Sheet1!S71_ItemType,$AD:$AD,Sheet1!S71_MasterVoteMunicipal,J$57)","v":0},{"$f":"-SUMIFS(Sheet1!S71_ASBudgetAmount,Sheet1!S71_A4Code,$AC:$AC,Sheet1!S71_ItemType,$AD:$AD,Sheet1!S71_MasterVoteMunicipal,K$57)","v":0},{"$f":"-SUMIFS(Sheet1!S71_ASBudgetAmount,Sheet1!S71_A4Code,$AC:$AC,Sheet1!S71_ItemType,$AD:$AD,Sheet1!S71_MasterVoteMunicipal,L$57)","v":0},{"$f":"-SUMIFS(Sheet1!S71_ASBudgetAmount,Sheet1!S71_A4Code,$AC:$AC,Sheet1!S71_ItemType,$AD:$AD,Sheet1!S71_MasterVoteMunicipal,M$57)","v":0},{"$f":"-SUMIFS(Sheet1!S71_ASBudgetAmount,Sheet1!S71_A4Code,$AC:$AC,Sheet1!S71_ItemType,$AD:$AD,Sheet1!S71_MasterVoteMunicipal,N$57)","v":0},{"$f":"-SUMIFS(Sheet1!S71_ASBudgetAmount,Sheet1!S71_A4Code,$AC:$AC,Sheet1!S71_ItemType,$AD:$AD,Sheet1!S71_MasterVoteMunicipal,O$57)","v":0},{"$f":"-SUMIFS(Sheet1!S71_ASBudgetAmount,Sheet1!S71_A4Code,$AC:$AC,Sheet1!S71_ItemType,$AD:$AD,Sheet1!S71_MasterVoteMunicipal,P$57)","v":0},{"$f":"-SUMIFS(Sheet1!S71_ASBudgetAmount,Sheet1!S71_A4Code,$AC:$AC,Sheet1!S71_ItemType,$AD:$AD,Sheet1!S71_MasterVoteMunicipal,Q$57)","v":0},-1500000,null,null,null,null,null,null,null,null,null,null,"3900","IE"]
["Irrecoverable debts written off",null,{"$f":"-SUMIFS(Sheet1!S71_ASBudgetAmount,Sheet1!S71_A4Code,$AC:$AC,Sheet1!S71_ItemType,$AD:$AD,Sheet1!S71_MasterVoteMunicipal,C$57)","v":0},{"$f":"-SUMIFS(Sheet1!S71_ASBudgetAmount,Sheet1!S71_A4Code,$AC:$AC,Sheet1!S71_ItemType,$AD:$AD,Sheet1!S71_MasterVoteMunicipal,D$57)","v":0},{"$f":"-SUMIFS(Sheet1!S71_ASBudgetAmount,Sheet1!S71_A4Code,$AC:$AC,Sheet1!S71_ItemType,$AD:$AD,Sheet1!S71_MasterVoteMunicipal,E$57)","v":0},{"$f":"-SUMIFS(Sheet1!S71_ASBudgetAmount,Sheet1!S71_A4Code,$AC:$AC,Sheet1!S71_ItemType,$AD:$AD,Sheet1!S71_MasterVoteMunicipal,F$57)","v":0},{"$f":"-SUMIFS(Sheet1!S71_ASBudgetAmount,Sheet1!S71_A4Code,$AC:$AC,Sheet1!S71_ItemType,$AD:$AD,Sheet1!S71_MasterVoteMunicipal,G$57)","v":0},{"$f":"-SUMIFS(Sheet1!S71_ASBudgetAmount,Sheet1!S71_A4Code,$AC:$AC,Sheet1!S71_ItemType,$AD:$AD,Sheet1!S71_MasterVoteMunicipal,H$57)","v":0},{"$f":"-SUMIFS(Sheet1!S71_ASBudgetAmount,Sheet1!S71_A4Code,$AC:$AC,Sheet1!S71_ItemType,$AD:$AD,Sheet1!S71_MasterVoteMunicipal,I$57)","v":0},{"$f":"-SUMIFS(Sheet1!S71_ASBudgetAmount,Sheet1!S71_A4Code,$AC:$AC,Sheet1!S71_ItemType,$AD:$AD,Sheet1!S71_MasterVoteMunicipal,J$57)","v":0},{"$f":"-SUMIFS(Sheet1!S71_ASBudgetAmount,Sheet1!S71_A4Code,$AC:$AC,Sheet1!S71_ItemType,$AD:$AD,Sheet1!S71_MasterVoteMunicipal,K$57)","v":0},{"$f":"-SUMIFS(Sheet1!S71_ASBudgetAmount,Sheet1!S71_A4Code,$AC:$AC,Sheet1!S71_ItemType,$AD:$AD,Sheet1!S71_MasterVoteMunicipal,L$57)","v":0},{"$f":"-SUMIFS(Sheet1!S71_ASBudgetAmount,Sheet1!S71_A4Code,$AC:$AC,Sheet1!S71_ItemType,$AD:$AD,Sheet1!S71_MasterVoteMunicipal,M$57)","v":0},{"$f":"-SUMIFS(Sheet1!S71_ASBudgetAmount,Sheet1!S71_A4Code,$AC:$AC,Sheet1!S71_ItemType,$AD:$AD,Sheet1!S71_MasterVoteMunicipal,N$57)","v":0},{"$f":"-SUMIFS(Sheet1!S71_ASBudgetAmount,Sheet1!S71_A4Code,$AC:$AC,Sheet1!S71_ItemType,$AD:$AD,Sheet1!S71_MasterVoteMunicipal,O$57)","v":0},{"$f":"-SUMIFS(Sheet1!S71_ASBudgetAmount,Sheet1!S71_A4Code,$AC:$AC,Sheet1!S71_ItemType,$AD:$AD,Sheet1!S71_MasterVoteMunicipal,P$57)","v":0},{"$f":"-SUMIFS(Sheet1!S71_ASBudgetAmount,Sheet1!S71_A4Code,$AC:$AC,Sheet1!S71_ItemType,$AD:$AD,Sheet1!S71_MasterVoteMunicipal,Q$57)","v":0},0,null,null,null,null,null,null,null,null,null,null,"4000","IE"]
["Operational costs",null,{"$f":"-SUMIFS(Sheet1!S71_ASBudgetAmount,Sheet1!S71_A4Code,$AC:$AC,Sheet1!S71_ItemType,$AD:$AD,Sheet1!S71_MasterVoteMunicipal,C$57)","v":-12099163},{"$f":"-SUMIFS(Sheet1!S71_ASBudgetAmount,Sheet1!S71_A4Code,$AC:$AC,Sheet1!S71_ItemType,$AD:$AD,Sheet1!S71_MasterVoteMunicipal,D$57)","v":-1000146},{"$f":"-SUMIFS(Sheet1!S71_ASBudgetAmount,Sheet1!S71_A4Code,$AC:$AC,Sheet1!S71_ItemType,$AD:$AD,Sheet1!S71_MasterVoteMunicipal,E$57)","v":-26335416},{"$f":"-SUMIFS(Sheet1!S71_ASBudgetAmount,Sheet1!S71_A4Code,$AC:$AC,Sheet1!S71_ItemType,$AD:$AD,Sheet1!S71_MasterVoteMunicipal,F$57)","v":-2416983},{"$f":"-SUMIFS(Sheet1!S71_ASBudgetAmount,Sheet1!S71_A4Code,$AC:$AC,Sheet1!S71_ItemType,$AD:$AD,Sheet1!S71_MasterVoteMunicipal,G$57)","v":-17969963},{"$f":"-SUMIFS(Sheet1!S71_ASBudgetAmount,Sheet1!S71_A4Code,$AC:$AC,Sheet1!S71_ItemType,$AD:$AD,Sheet1!S71_MasterVoteMunicipal,H$57)","v":-211748},{"$f":"-SUMIFS(Sheet1!S71_ASBudgetAmount,Sheet1!S71_A4Code,$AC:$AC,Sheet1!S71_ItemType,$AD:$AD,Sheet1!S71_MasterVoteMunicipal,I$57)","v":-2666354},{"$f":"-SUMIFS(Sheet1!S71_ASBudgetAmount,Sheet1!S71_A4Code,$AC:$AC,Sheet1!S71_ItemType,$AD:$AD,Sheet1!S71_MasterVoteMunicipal,J$57)","v":0},{"$f":"-SUMIFS(Sheet1!S71_ASBudgetAmount,Sheet1!S71_A4Code,$AC:$AC,Sheet1!S71_ItemType,$AD:$AD,Sheet1!S71_MasterVoteMunicipal,K$57)","v":-406579},{"$f":"-SUMIFS(Sheet1!S71_ASBudgetAmount,Sheet1!S71_A4Code,$AC:$AC,Sheet1!S71_ItemType,$AD:$AD,Sheet1!S71_MasterVoteMunicipal,L$57)","v":-1201878},{"$f":"-SUMIFS(Sheet1!S71_ASBudgetAmount,Sheet1!S71_A4Code,$AC:$AC,Sheet1!S71_ItemType,$AD:$AD,Sheet1!S71_MasterVoteMunicipal,M$57)","v":0},{"$f":"-SUMIFS(Sheet1!S71_ASBudgetAmount,Sheet1!S71_A4Code,$AC:$AC,Sheet1!S71_ItemType,$AD:$AD,Sheet1!S71_MasterVoteMunicipal,N$57)","v":0},{"$f":"-SUMIFS(Sheet1!S71_ASBudgetAmount,Sheet1!S71_A4Code,$AC:$AC,Sheet1!S71_ItemType,$AD:$AD,Sheet1!S71_MasterVoteMunicipal,O$57)","v":-68323},{"$f":"-SUMIFS(Sheet1!S71_ASBudgetAmount,Sheet1!S71_A4Code,$AC:$AC,Sheet1!S71_ItemType,$AD:$AD,Sheet1!S71_MasterVoteMunicipal,P$57)","v":-13876048},{"$f":"-SUMIFS(Sheet1!S71_ASBudgetAmount,Sheet1!S71_A4Code,$AC:$AC,Sheet1!S71_ItemType,$AD:$AD,Sheet1!S71_MasterVoteMunicipal,Q$57)","v":0},-78252601,null,null,null,null,null,null,null,null,null,null,"4100","IE"]
["Losses on disposal of Assets",null,{"$f":"-SUMIFS(Sheet1!S71_ASBudgetAmount,Sheet1!S71_A4Code,$AC:$AC,Sheet1!S71_ItemType,$AD:$AD,Sheet1!S71_MasterVoteMunicipal,C$57)","v":0},{"$f":"-SUMIFS(Sheet1!S71_ASBudgetAmount,Sheet1!S71_A4Code,$AC:$AC,Sheet1!S71_ItemType,$AD:$AD,Sheet1!S71_MasterVoteMunicipal,D$57)","v":0},{"$f":"-SUMIFS(Sheet1!S71_ASBudgetAmount,Sheet1!S71_A4Code,$AC:$AC,Sheet1!S71_ItemType,$AD:$AD,Sheet1!S71_MasterVoteMunicipal,E$57)","v":0},{"$f":"-SUMIFS(Sheet1!S71_ASBudgetAmount,Sheet1!S71_A4Code,$AC:$AC,Sheet1!S71_ItemType,$AD:$AD,Sheet1!S71_MasterVoteMunicipal,F$57)","v":0},{"$f":"-SUMIFS(Sheet1!S71_ASBudgetAmount,Sheet1!S71_A4Code,$AC:$AC,Sheet1!S71_ItemType,$AD:$AD,Sheet1!S71_MasterVoteMunicipal,G$57)","v":0},{"$f":"-SUMIFS(Sheet1!S71_ASBudgetAmount,Sheet1!S71_A4Code,$AC:$AC,Sheet1!S71_ItemType,$AD:$AD,Sheet1!S71_MasterVoteMunicipal,H$57)","v":0},{"$f":"-SUMIFS(Sheet1!S71_ASBudgetAmount,Sheet1!S71_A4Code,$AC:$AC,Sheet1!S71_ItemType,$AD:$AD,Sheet1!S71_MasterVoteMunicipal,I$57)","v":0},{"$f":"-SUMIFS(Sheet1!S71_ASBudgetAmount,Sheet1!S71_A4Code,$AC:$AC,Sheet1!S71_ItemType,$AD:$AD,Sheet1!S71_MasterVoteMunicipal,J$57)","v":0},{"$f":"-SUMIFS(Sheet1!S71_ASBudgetAmount,Sheet1!S71_A4Code,$AC:$AC,Sheet1!S71_ItemType,$AD:$AD,Sheet1!S71_MasterVoteMunicipal,K$57)","v":0},{"$f":"-SUMIFS(Sheet1!S71_ASBudgetAmount,Sheet1!S71_A4Code,$AC:$AC,Sheet1!S71_ItemType,$AD:$AD,Sheet1!S71_MasterVoteMunicipal,L$57)","v":0},{"$f":"-SUMIFS(Sheet1!S71_ASBudgetAmount,Sheet1!S71_A4Code,$AC:$AC,Sheet1!S71_ItemType,$AD:$AD,Sheet1!S71_MasterVoteMunicipal,M$57)","v":0},{"$f":"-SUMIFS(Sheet1!S71_ASBudgetAmount,Sheet1!S71_A4Code,$AC:$AC,Sheet1!S71_ItemType,$AD:$AD,Sheet1!S71_MasterVoteMunicipal,N$57)","v":0},{"$f":"-SUMIFS(Sheet1!S71_ASBudgetAmount,Sheet1!S71_A4Code,$AC:$AC,Sheet1!S71_ItemType,$AD:$AD,Sheet1!S71_MasterVoteMunicipal,O$57)","v":0},{"$f":"-SUMIFS(Sheet1!S71_ASBudgetAmount,Sheet1!S71_A4Code,$AC:$AC,Sheet1!S71_ItemType,$AD:$AD,Sheet1!S71_MasterVoteMunicipal,P$57)","v":0},{"$f":"-SUMIFS(Sheet1!S71_ASBudgetAmount,Sheet1!S71_A4Code,$AC:$AC,Sheet1!S71_ItemType,$AD:$AD,Sheet1!S71_MasterVoteMunicipal,Q$57)","v":0},0,null,null,null,null,null,null,null,null,null,null,"4200","IE"]
["Other Losses",null,{"$f":"-SUMIFS(Sheet1!S71_ASBudgetAmount,Sheet1!S71_A4Code,$AC:$AC,Sheet1!S71_ItemType,$AD:$AD,Sheet1!S71_MasterVoteMunicipal,C$57)","v":0},{"$f":"-SUMIFS(Sheet1!S71_ASBudgetAmount,Sheet1!S71_A4Code,$AC:$AC,Sheet1!S71_ItemType,$AD:$AD,Sheet1!S71_MasterVoteMunicipal,D$57)","v":0},{"$f":"-SUMIFS(Sheet1!S71_ASBudgetAmount,Sheet1!S71_A4Code,$AC:$AC,Sheet1!S71_ItemType,$AD:$AD,Sheet1!S71_MasterVoteMunicipal,E$57)","v":0},{"$f":"-SUMIFS(Sheet1!S71_ASBudgetAmount,Sheet1!S71_A4Code,$AC:$AC,Sheet1!S71_ItemType,$AD:$AD,Sheet1!S71_MasterVoteMunicipal,F$57)","v":0},{"$f":"-SUMIFS(Sheet1!S71_ASBudgetAmount,Sheet1!S71_A4Code,$AC:$AC,Sheet1!S71_ItemType,$AD:$AD,Sheet1!S71_MasterVoteMunicipal,G$57)","v":0},{"$f":"-SUMIFS(Sheet1!S71_ASBudgetAmount,Sheet1!S71_A4Code,$AC:$AC,Sheet1!S71_ItemType,$AD:$AD,Sheet1!S71_MasterVoteMunicipal,H$57)","v":0},{"$f":"-SUMIFS(Sheet1!S71_ASBudgetAmount,Sheet1!S71_A4Code,$AC:$AC,Sheet1!S71_ItemType,$AD:$AD,Sheet1!S71_MasterVoteMunicipal,I$57)","v":0},{"$f":"-SUMIFS(Sheet1!S71_ASBudgetAmount,Sheet1!S71_A4Code,$AC:$AC,Sheet1!S71_ItemType,$AD:$AD,Sheet1!S71_MasterVoteMunicipal,J$57)","v":0},{"$f":"-SUMIFS(Sheet1!S71_ASBudgetAmount,Sheet1!S71_A4Code,$AC:$AC,Sheet1!S71_ItemType,$AD:$AD,Sheet1!S71_MasterVoteMunicipal,K$57)","v":0},{"$f":"-SUMIFS(Sheet1!S71_ASBudgetAmount,Sheet1!S71_A4Code,$AC:$AC,Sheet1!S71_ItemType,$AD:$AD,Sheet1!S71_MasterVoteMunicipal,L$57)","v":0},{"$f":"-SUMIFS(Sheet1!S71_ASBudgetAmount,Sheet1!S71_A4Code,$AC:$AC,Sheet1!S71_ItemType,$AD:$AD,Sheet1!S71_MasterVoteMunicipal,M$57)","v":0},{"$f":"-SUMIFS(Sheet1!S71_ASBudgetAmount,Sheet1!S71_A4Code,$AC:$AC,Sheet1!S71_ItemType,$AD:$AD,Sheet1!S71_MasterVoteMunicipal,N$57)","v":0},{"$f":"-SUMIFS(Sheet1!S71_ASBudgetAmount,Sheet1!S71_A4Code,$AC:$AC,Sheet1!S71_ItemType,$AD:$AD,Sheet1!S71_MasterVoteMunicipal,O$57)","v":0},{"$f":"-SUMIFS(Sheet1!S71_ASBudgetAmount,Sheet1!S71_A4Code,$AC:$AC,Sheet1!S71_ItemType,$AD:$AD,Sheet1!S71_MasterVoteMunicipal,P$57)","v":0},{"$f":"-SUMIFS(Sheet1!S71_ASBudgetAmount,Sheet1!S71_A4Code,$AC:$AC,Sheet1!S71_ItemType,$AD:$AD,Sheet1!S71_MasterVoteMunicipal,Q$57)","v":0},0,null,null,null,null,null,null,null,null,null,null,"4300","IE"]
["Total Expenditure",null,{"$f":"SUM(C34:C46)","v":-72893701},{"$f":"SUM(D34:D46)","v":-16180393},-251018590,-28911078,-48480732,-3007269,-92547711,-300000,-20296952,-8323738,0,0,-1545923,-62515329,0,-606021416]
["Surplus/(Deficit)",null,{"$f":"+C32-C47","v":72893701},{"$f":"+D32-D47","v":15614454},-202096842,28091078,48480732,3007269,83797711,300000,7648257,7873738,0,0,1545923,62515329,0,129671350]
["Transfers and subsidies - capital (monetary allocations)",null,null,null,null,null,null,null,null,null,null,null,null,null,null,null,null,{"$f":"SUM(C49:Q49)","v":0},null,null,null,null,null,null,null,null,null,null,"4600","IR"]
["Transfers and subsidies - capital (in-kind)",null,null,null,null,null,null,null,null,null,null,null,null,null,null,null,null,{"$f":"SUM(C50:Q50)","v":0},null,null,null,null,null,null,null,null,null,null,"4700","IR"]
["Surplus/(Deficit) after capital transfers & contributions",null,{"$f":"SUM(C48:C50)","v":72893701},{"$f":"SUM(D48:D50)","v":15614454},-202096842,28091078,48480732,3007269,83797711,300000,7648257,7873738,0,0,1545923,62515329,0,129671350]
[{"$f":"head27a","v":"References"}]
["1. Departmental columns to be based on municipal organisation structure"]
["check balance",null,null,null,null,null,null,null,null,null,null,null,null,null,null,null,null,{"$f":"'A4-FinPerf RE'!J51-'SA2'!#REF!","v":{"$error":"#REF!"}}]
[]
[]
[null,null,1,2,3,4,5,6,7,8,9,10,11,12,13,14,15]

{"sheet":"SA3","index":46,"n_rows":187,"n_cols":29,"rows_kept":187,"cut":false,"hidden":false,"merged":[[1,0,2,0],[1,1,2,1],[1,9,1,11],[1,5,1,8]]}
[{"$f":"muni&\" - \"&TableA3","v":"LIM331 Greater Giyani - Supporting Table SA3 Supportinging detail to 'Budgeted Financial Position'"}]
[{"$f":"desc","v":"Description"},{"$f":"head27","v":"Ref"},{"$f":"head1b","v":"2019/20"},{"$f":"head1A","v":"2020/21"},{"$f":"Head1","v":"2021/22"},{"$f":"Head2","v":"Current Year 2022/23"},null,null,null,{"$f":"Head3","v":"2023/24 Medium Term Revenue & Expenditure Framework"}]
[null,null,{"$f":"Head5","v":"Audited Outcome"},{"$f":"Head5","v":"Audited Outcome"},{"$f":"Head5","v":"Audited Outcome"},{"$f":"Head6","v":"Original Budget"},{"$f":"Head7","v":"Adjusted Budget"},{"$f":"Head8","v":"Full Year Forecast"},{"$f":"Head5b","v":"Pre-audit outcome"},{"$f":"Head9","v":"Budget Year 2023/24"},{"$f":"Head10","v":"Budget Year +1 2024/25"},{"$f":"Head11","v":"Budget Year +2 2025/26"}]
["R thousand"]
["ASSETS"]
["Trade and other receivables from exchange transactions"," "]
["Electricity"," ",{"$f":"SUMIFS(Sheet1!S71_PPPYearAmount,Sheet1!S71_SA3Code,$AC:$AC)","v":0},{"$f":"SUMIFS(Sheet1!S71_PPYearAmount,Sheet1!S71_SA3Code,$AC:$AC)","v":0},{"$f":"SUMIFS(Sheet1!S71_PYearAmount,Sheet1!S71_SA3Code,$AC:$AC)","v":0},{"$f":"SUMIFS(Sheet1!S71_OriginalBudAmnt,Sheet1!S71_SA3Code,$AC:$AC)","v":0},{"$f":"SUMIFS(Sheet1!S71_AdjustmentBudAmnt,Sheet1!S71_SA3Code,$AC:$AC)","v":0},{"$f":"SUMIFS(Sheet1!S71_AdjustmentBudAmnt,Sheet1!S71_SA3Code,$AC:$AC)","v":0},{"$f":"H7","v":0},{"$f":"SUMIFS(Sheet1!S71_ASBudgetAmount,Sheet1!S71_SA3Code,$AC:$AC)","v":0},{"$f":"SUMIFS(Sheet1!S71_OY1BudgetAmount,Sheet1!S71_SA3Code,$AC:$AC)","v":0},{"$f":"SUMIFS(Sheet1!S71_OY2BudgetAmount,Sheet1!S71_SA3Code,$AC:$AC)","v":0},null,null,null,null,null,null,null,null,null,null,null,null,null,null,null,null,"0111"]
["Water"," ",{"$f":"SUMIFS(Sheet1!S71_PPPYearAmount,Sheet1!S71_SA3Code,$AC:$AC)","v":0},{"$f":"SUMIFS(Sheet1!S71_PPYearAmount,Sheet1!S71_SA3Code,$AC:$AC)","v":7922963},{"$f":"SUMIFS(Sheet1!S71_PYearAmount,Sheet1!S71_SA3Code,$AC:$AC)","v":17194428},{"$f":"SUMIFS(Sheet1!S71_OriginalBudAmnt,Sheet1!S71_SA3Code,$AC:$AC)","v":0},{"$f":"SUMIFS(Sheet1!S71_AdjustmentBudAmnt,Sheet1!S71_SA3Code,$AC:$AC)","v":0},{"$f":"SUMIFS(Sheet1!S71_AdjustmentBudAmnt,Sheet1!S71_SA3Code,$AC:$AC)","v":0},{"$f":"H8","v":0},{"$f":"SUMIFS(Sheet1!S71_ASBudgetAmount,Sheet1!S71_SA3Code,$AC:$AC)","v":0},{"$f":"SUMIFS(Sheet1!S71_OY1BudgetAmount,Sheet1!S71_SA3Code,$AC:$AC)","v":0},{"$f":"SUMIFS(Sheet1!S71_OY2BudgetAmount,Sheet1!S71_SA3Code,$AC:$AC)","v":0},null,null,null,null,null,null,null,null,null,null,null,null,null,null,null,null,"0112"]
["Waste"," ",{"$f":"SUMIFS(Sheet1!S71_PPPYearAmount,Sheet1!S71_SA3Code,$AC:$AC)","v":40960020},{"$f":"SUMIFS(Sheet1!S71_PPYearAmount,Sheet1!S71_SA3Code,$AC:$AC)","v":44638993},{"$f":"SUMIFS(Sheet1!S71_PYearAmount,Sheet1!S71_SA3Code,$AC:$AC)","v":48717120},{"$f":"SUMIFS(Sheet1!S71_OriginalBudAmnt,Sheet1!S71_SA3Code,$AC:$AC)","v":12146133},{"$f":"SUMIFS(Sheet1!S71_AdjustmentBudAmnt,Sheet1!S71_SA3Code,$AC:$AC)","v":55801210.710127853},{"$f":"SUMIFS(Sheet1!S71_AdjustmentBudAmnt,Sheet1!S71_SA3Code,$AC:$AC)","v":55801210.710127853},55801210.710127853,{"$f":"SUMIFS(Sheet1!S71_ASBudgetAmount,Sheet1!S71_SA3Code,$AC:$AC)","v":34754772.710127853},{"$f":"SUMIFS(Sheet1!S71_OY1BudgetAmount,Sheet1!S71_SA3Code,$AC:$AC)","v":34070617.710127853},{"$f":"SUMIFS(Sheet1!S71_OY2BudgetAmount,Sheet1!S71_SA3Code,$AC:$AC)","v":33382231.710127853},null,null,null,null,null,null,null,null,null,null,null,null,null,null,null,null,"0113"]
["Waste Water"," ",{"$f":"SUMIFS(Sheet1!S71_PPPYearAmount,Sheet1!S71_SA3Code,$AC:$AC)","v":0},{"$f":"SUMIFS(Sheet1!S71_PPYearAmount,Sheet1!S71_SA3Code,$AC:$AC)","v":1808817},{"$f":"SUMIFS(Sheet1!S71_PYearAmount,Sheet1!S71_SA3Code,$AC:$AC)","v":3927694},{"$f":"SUMIFS(Sheet1!S71_OriginalBudAmnt,Sheet1!S71_SA3Code,$AC:$AC)","v":0},{"$f":"SUMIFS(Sheet1!S71_AdjustmentBudAmnt,Sheet1!S71_SA3Code,$AC:$AC)","v":0},{"$f":"SUMIFS(Sheet1!S71_AdjustmentBudAmnt,Sheet1!S71_SA3Code,$AC:$AC)","v":0},0,{"$f":"SUMIFS(Sheet1!S71_ASBudgetAmount,Sheet1!S71_SA3Code,$AC:$AC)","v":0},{"$f":"SUMIFS(Sheet1!S71_OY1BudgetAmount,Sheet1!S71_SA3Code,$AC:$AC)","v":0},{"$f":"SUMIFS(Sheet1!S71_OY2BudgetAmount,Sheet1!S71_SA3Code,$AC:$AC)","v":0},null,null,null,null,null,null,null,null,null,null,null,null,null,null,null,null,"0114"]
["Other trade receivables from exchange transactions"," ",{"$f":"SUMIFS(Sheet1!S71_PPPYearAmount,Sheet1!S71_SA3Code,$AC:$AC)","v":60802391},{"$f":"SUMIFS(Sheet1!S71_PPYearAmount,Sheet1!S71_SA3Code,$AC:$AC)","v":61769822},{"$f":"SUMIFS(Sheet1!S71_PYearAmount,Sheet1!S71_SA3Code,$AC:$AC)","v":78923636},{"$f":"SUMIFS(Sheet1!S71_OriginalBudAmnt,Sheet1!S71_SA3Code,$AC:$AC)","v":2514384},{"$f":"SUMIFS(Sheet1!S71_AdjustmentBudAmnt,Sheet1!S71_SA3Code,$AC:$AC)","v":10253073.53000004},{"$f":"SUMIFS(Sheet1!S71_AdjustmentBudAmnt,Sheet1!S71_SA3Code,$AC:$AC)","v":10253073.53000004},10253073.53000004,{"$f":"SUMIFS(Sheet1!S71_ASBudgetAmount,Sheet1!S71_SA3Code,$AC:$AC)","v":694701.75000004098},{"$f":"SUMIFS(Sheet1!S71_OY1BudgetAmount,Sheet1!S71_SA3Code,$AC:$AC)","v":385867.75000004098},{"$f":"SUMIFS(Sheet1!S71_OY2BudgetAmount,Sheet1!S71_SA3Code,$AC:$AC)","v":-77544.249999959022},null,null,null,null,null,null,null,null,null,null,null,null,null,null,null,null,"0115"]
["Gross: Trade and other receivables from exchange transactions"," ",{"$f":"SUM(C7:C11)","v":101762411},{"$f":"SUM(D7:D11)","v":116140595},148762878,14660517,66054284.240127891,66054284.240127891,66054284.240127891,35449474.46012789,34456485.46012789,33304687.460127894]
["Less: Impairment for debt"," ",{"$f":"SUM(C14:C18)","v":-31390966},{"$f":"SUM(D14:D18)","v":-34024434},-34024434,0,-29730506.419999994,-29730506.419999994,-29730506.419999994,-29730506.419999994,-29730506.419999994,-29730506.419999994]
["Impairment for Electricity"," ",{"$f":"SUMIFS(Sheet1!S71_PPPYearAmount,Sheet1!S71_SA3Code,$AC:$AC)","v":0},{"$f":"SUMIFS(Sheet1!S71_PPYearAmount,Sheet1!S71_SA3Code,$AC:$AC)","v":0},{"$f":"SUMIFS(Sheet1!S71_PYearAmount,Sheet1!S71_SA3Code,$AC:$AC)","v":0},{"$f":"SUMIFS(Sheet1!S71_OriginalBudAmnt,Sheet1!S71_SA3Code,$AC:$AC)","v":0},{"$f":"SUMIFS(Sheet1!S71_AdjustmentBudAmnt,Sheet1!S71_SA3Code,$AC:$AC)","v":0},{"$f":"SUMIFS(Sheet1!S71_AdjustmentBudAmnt,Sheet1!S71_SA3Code,$AC:$AC)","v":0},{"$f":"H14","v":0},{"$f":"SUMIFS(Sheet1!S71_ASBudgetAmount,Sheet1!S71_SA3Code,$AC:$AC)","v":0},{"$f":"SUMIFS(Sheet1!S71_OY1BudgetAmount,Sheet1!S71_SA3Code,$AC:$AC)","v":0},{"$f":"SUMIFS(Sheet1!S71_OY2BudgetAmount,Sheet1!S71_SA3Code,$AC:$AC)","v":0},null,null,null,null,null,null,null,null,null,null,null,null,null,null,null,null,"0118"]
["Impairment for Water"," ",{"$f":"SUMIFS(Sheet1!S71_PPPYearAmount,Sheet1!S71_SA3Code,$AC:$AC)","v":0},{"$f":"SUMIFS(Sheet1!S71_PPYearAmount,Sheet1!S71_SA3Code,$AC:$AC)","v":0},{"$f":"SUMIFS(Sheet1!S71_PYearAmount,Sheet1!S71_SA3Code,$AC:$AC)","v":0},{"$f":"SUMIFS(Sheet1!S71_OriginalBudAmnt,Sheet1!S71_SA3Code,$AC:$AC)","v":0},{"$f":"SUMIFS(Sheet1!S71_AdjustmentBudAmnt,Sheet1!S71_SA3Code,$AC:$AC)","v":0},{"$f":"SUMIFS(Sheet1!S71_AdjustmentBudAmnt,Sheet1!S71_SA3Code,$AC:$AC)","v":0},0,{"$f":"SUMIFS(Sheet1!S71_ASBudgetAmount,Sheet1!S71_SA3Code,$AC:$AC)","v":0},{"$f":"SUMIFS(Sheet1!S71_OY1BudgetAmount,Sheet1!S71_SA3Code,$AC:$AC)","v":0},{"$f":"SUMIFS(Sheet1!S71_OY2BudgetAmount,Sheet1!S71_SA3Code,$AC:$AC)","v":0},null,null,null,null,null,null,null,null,null,null,null,null,null,null,null,null,"0119"]
["Impairment for Waste"," ",{"$f":"SUMIFS(Sheet1!S71_PPPYearAmount,Sheet1!S71_SA3Code,$AC:$AC)","v":-18028586},{"$f":"SUMIFS(Sheet1!S71_PPYearAmount,Sheet1!S71_SA3Code,$AC:$AC)","v":-20116618},{"$f":"SUMIFS(Sheet1!S71_PYearAmount,Sheet1!S71_SA3Code,$AC:$AC)","v":-20116618},{"$f":"SUMIFS(Sheet1!S71_OriginalBudAmnt,Sheet1!S71_SA3Code,$AC:$AC)","v":0},{"$f":"SUMIFS(Sheet1!S71_AdjustmentBudAmnt,Sheet1!S71_SA3Code,$AC:$AC)","v":-20116617.649999999},{"$f":"SUMIFS(Sheet1!S71_AdjustmentBudAmnt,Sheet1!S71_SA3Code,$AC:$AC)","v":-20116617.649999999},-20116617.649999999,{"$f":"SUMIFS(Sheet1!S71_ASBudgetAmount,Sheet1!S71_SA3Code,$AC:$AC)","v":-20116617.649999999},{"$f":"SUMIFS(Sheet1!S71_OY1BudgetAmount,Sheet1!S71_SA3Code,$AC:$AC)","v":-20116617.649999999},{"$f":"SUMIFS(Sheet1!S71_OY2BudgetAmount,Sheet1!S71_SA3Code,$AC:$AC)","v":-20116617.649999999},null,null,null,null,null,null,null,null,null,null,null,null,null,null,null,null,"0120"]
["Impairment for Waste Water"," ",{"$f":"SUMIFS(Sheet1!S71_PPPYearAmount,Sheet1!S71_SA3Code,$AC:$AC)","v":0},{"$f":"SUMIFS(Sheet1!S71_PPYearAmount,Sheet1!S71_SA3Code,$AC:$AC)","v":0},{"$f":"SUMIFS(Sheet1!S71_PYearAmount,Sheet1!S71_SA3Code,$AC:$AC)","v":0},{"$f":"SUMIFS(Sheet1!S71_OriginalBudAmnt,Sheet1!S71_SA3Code,$AC:$AC)","v":0},{"$f":"SUMIFS(Sheet1!S71_AdjustmentBudAmnt,Sheet1!S71_SA3Code,$AC:$AC)","v":0},{"$f":"SUMIFS(Sheet1!S71_AdjustmentBudAmnt,Sheet1!S71_SA3Code,$AC:$AC)","v":0},0,{"$f":"SUMIFS(Sheet1!S71_ASBudgetAmount,Sheet1!S71_SA3Code,$AC:$AC)","v":0},{"$f":"SUMIFS(Sheet1!S71_OY1BudgetAmount,Sheet1!S71_SA3Code,$AC:$AC)","v":0},{"$f":"SUMIFS(Sheet1!S71_OY2BudgetAmount,Sheet1!S71_SA3Code,$AC:$AC)","v":0},null,null,null,null,null,null,null,null,null,null,null,null,null,null,null,null,"0121"]
["Impairment for other trade receivalbes from exchange transactions"," ",{"$f":"SUMIFS(Sheet1!S71_PPPYearAmount,Sheet1!S71_SA3Code,$AC:$AC)","v":-13362380},{"$f":"SUMIFS(Sheet1!S71_PPYearAmount,Sheet1!S71_SA3Code,$AC:$AC)","v":-13907816},{"$f":"SUMIFS(Sheet1!S71_PYearAmount,Sheet1!S71_SA3Code,$AC:$AC)","v":-13907816},{"$f":"SUMIFS(Sheet1!S71_OriginalBudAmnt,Sheet1!S71_SA3Code,$AC:$AC)","v":0},{"$f":"SUMIFS(Sheet1!S71_AdjustmentBudAmnt,Sheet1!S71_SA3Code,$AC:$AC)","v":-9613888.7699999977},{"$f":"SUMIFS(Sheet1!S71_AdjustmentBudAmnt,Sheet1!S71_SA3Code,$AC:$AC)","v":-9613888.7699999977},-9613888.7699999977,{"$f":"SUMIFS(Sheet1!S71_ASBudgetAmount,Sheet1!S71_SA3Code,$AC:$AC)","v":-9613888.7699999977},{"$f":"SUMIFS(Sheet1!S71_OY1BudgetAmount,Sheet1!S71_SA3Code,$AC:$AC)","v":-9613888.7699999977},{"$f":"SUMIFS(Sheet1!S71_OY2BudgetAmount,Sheet1!S71_SA3Code,$AC:$AC)","v":-9613888.7699999977},null,null,null,null,null,null,null,null,null,null,null,null,null,null,null,null,"0122"]
["Total net Trade and other receivables from Exchange Transactions"," ",{"$f":"+C12+C13","v":70371445},{"$f":"+D12+D13","v":82116161},114738444,14660517,36323777.820127897,36323777.820127897,36323777.820127897,5718968.0401278958,4725979.0401278958,3574181.0401278995]
[" "," "]
["Receivables from non-exchange transactions"," "]
["Property rates"," ",{"$f":"SUMIFS(Sheet1!S71_PPPYearAmount,Sheet1!S71_SA3Code,$AC:$AC)","v":183934904},{"$f":"SUMIFS(Sheet1!S71_PPYearAmount,Sheet1!S71_SA3Code,$AC:$AC)","v":240077608},{"$f":"SUMIFS(Sheet1!S71_PYearAmount,Sheet1!S71_SA3Code,$AC:$AC)","v":277937774},{"$f":"SUMIFS(Sheet1!S71_OriginalBudAmnt,Sheet1!S71_SA3Code,$AC:$AC)","v":71229310},{"$f":"SUMIFS(Sheet1!S71_AdjustmentBudAmnt,Sheet1!S71_SA3Code,$AC:$AC)","v":307830320},{"$f":"SUMIFS(Sheet1!S71_AdjustmentBudAmnt,Sheet1!S71_SA3Code,$AC:$AC)","v":307830320},{"$f":"H22","v":307830320},{"$f":"SUMIFS(Sheet1!S71_ASBudgetAmount,Sheet1!S71_SA3Code,$AC:$AC)","v":276103694},{"$f":"SUMIFS(Sheet1!S71_OY1BudgetAmount,Sheet1!S71_SA3Code,$AC:$AC)","v":274549090},{"$f":"SUMIFS(Sheet1!S71_OY2BudgetAmount,Sheet1!S71_SA3Code,$AC:$AC)","v":272984873},null,null,null,null,null,null,null,null,null,null,null,null,null,null,null,null,"0126"]
["Less: Impairment of Property rates"," ",{"$f":"SUMIFS(Sheet1!S71_PPPYearAmount,Sheet1!S71_SA3Code,$AC:$AC)","v":-130278096},{"$f":"SUMIFS(Sheet1!S71_PPYearAmount,Sheet1!S71_SA3Code,$AC:$AC)","v":-165293361},{"$f":"SUMIFS(Sheet1!S71_PYearAmount,Sheet1!S71_SA3Code,$AC:$AC)","v":-165293361},{"$f":"SUMIFS(Sheet1!S71_OriginalBudAmnt,Sheet1!S71_SA3Code,$AC:$AC)","v":0},{"$f":"SUMIFS(Sheet1!S71_AdjustmentBudAmnt,Sheet1!S71_SA3Code,$AC:$AC)","v":-203682393},{"$f":"SUMIFS(Sheet1!S71_AdjustmentBudAmnt,Sheet1!S71_SA3Code,$AC:$AC)","v":-203682393},-203682393,{"$f":"SUMIFS(Sheet1!S71_ASBudgetAmount,Sheet1!S71_SA3Code,$AC:$AC)","v":-174682393},{"$f":"SUMIFS(Sheet1!S71_OY1BudgetAmount,Sheet1!S71_SA3Code,$AC:$AC)","v":-173682393},{"$f":"SUMIFS(Sheet1!S71_OY2BudgetAmount,Sheet1!S71_SA3Code,$AC:$AC)","v":-172682393},null,null,null,null,null,null,null,null,null,null,null,null,null,null,null,null,"0127"]
["Net Property rates"," ",{"$f":"+C22+C23","v":53656808},{"$f":"+D22+D23","v":74784247},112644413,71229310,104147927,104147927,104147927,101421301,100866697,100302480]
["Other receivables from non-exchange transactions"," ",{"$f":"-SUMIFS(Sheet1!S71_PPPYearAmount,Sheet1!S71_SA3Code,$AC:$AC)","v":139287411},{"$f":"-SUMIFS(Sheet1!S71_PPYearAmount,Sheet1!S71_SA3Code,$AC:$AC)","v":138516161},{"$f":"-SUMIFS(Sheet1!S71_PYearAmount,Sheet1!S71_SA3Code,$AC:$AC)","v":126831378},{"$f":"SUMIFS(Sheet1!S71_OriginalBudAmnt,Sheet1!S71_SA3Code,$AC:$AC)","v":607757},{"$f":"SUMIFS(Sheet1!S71_AdjustmentBudAmnt,Sheet1!S71_SA3Code,$AC:$AC)","v":24565457},{"$f":"SUMIFS(Sheet1!S71_AdjustmentBudAmnt,Sheet1!S71_SA3Code,$AC:$AC)","v":24565457},{"$f":"H25","v":24565457},{"$f":"SUMIFS(Sheet1!S71_ASBudgetAmount,Sheet1!S71_SA3Code,$AC:$AC)","v":25516457},{"$f":"SUMIFS(Sheet1!S71_OY1BudgetAmount,Sheet1!S71_SA3Code,$AC:$AC)","v":25509597},{"$f":"SUMIFS(Sheet1!S71_OY2BudgetAmount,Sheet1!S71_SA3Code,$AC:$AC)","v":25502695},null,null,null,null,null,null,null,null,null,null,null,null,null,null,null,null,"0129"]
["Impairment for other receivalbes from non-exchange transactions"," ",{"$f":"SUMIFS(Sheet1!S71_PPPYearAmount,Sheet1!S71_SA3Code,$AC:$AC)","v":-16118065},{"$f":"SUMIFS(Sheet1!S71_PPYearAmount,Sheet1!S71_SA3Code,$AC:$AC)","v":-24162584},{"$f":"SUMIFS(Sheet1!S71_PYearAmount,Sheet1!S71_SA3Code,$AC:$AC)","v":-24971034},{"$f":"SUMIFS(Sheet1!S71_OriginalBudAmnt,Sheet1!S71_SA3Code,$AC:$AC)","v":0},{"$f":"SUMIFS(Sheet1!S71_AdjustmentBudAmnt,Sheet1!S71_SA3Code,$AC:$AC)","v":-24971034},{"$f":"SUMIFS(Sheet1!S71_AdjustmentBudAmnt,Sheet1!S71_SA3Code,$AC:$AC)","v":-24971034},-24971034,{"$f":"SUMIFS(Sheet1!S71_ASBudgetAmount,Sheet1!S71_SA3Code,$AC:$AC)","v":-24971034},{"$f":"SUMIFS(Sheet1!S71_OY1BudgetAmount,Sheet1!S71_SA3Code,$AC:$AC)","v":-24971034},{"$f":"SUMIFS(Sheet1!S71_OY2BudgetAmount,Sheet1!S71_SA3Code,$AC:$AC)","v":-24971034},null,null,null,null,null,null,null,null,null,null,null,null,null,null,null,null,"0130"]
["Net other receivables from non-exchange transactions"," ",{"$f":"+C25+C26","v":123169346},{"$f":"+D25+D26","v":114353577},101860344,607757,-405577,-405577,-405577,545423,538563,531661]
["Total net Receivables from non-exchange transactions"," ",{"$f":"+C24+C27","v":176826154},{"$f":"+D24+D27","v":189137824},214504757,71837067,103742350,103742350,103742350,101966724,101405260,100834141]
[" "," "]
["Inventory"]
["Water"]
["  Opening Balance",null,{"$f":"SUMIFS(Sheet1!S71_PPPYearAmount,Sheet1!S71_A6SubCode,$AC:$AC)","v":0},{"$f":"C61","v":0},{"$f":"D61","v":0},{"$f":"E61","v":0},{"$f":"E61","v":0},{"$f":"E61","v":0},{"$f":"E61","v":0},{"$f":"G61","v":0},{"$f":"J61","v":0},{"$f":"K61","v":0},null,null,null,null,null,null,null,null,null,null,null,null,null,null,null,null,"0152"]
["  System Input Volume",null,{"$f":"(SUM(C34:C36))","v":0},{"$f":"(SUM(D34:D36))","v":0},0,0,0,0,0,0,0,0]
["      Water Treatment Works",null,{"$f":"SUMIFS(Sheet1!S71_PPPYearAmount,Sheet1!S71_SA3SubCode,$AC:$AC)","v":0},{"$f":"SUMIFS(Sheet1!S71_PPYearAmount,Sheet1!S71_SA3SubCode,$AC:$AC)","v":0},{"$f":"SUMIFS(Sheet1!S71_PYearAmount,Sheet1!S71_SA3SubCode,$AC:$AC)","v":0},{"$f":"SUMIFS(Sheet1!S71_OriginalBudAmnt,Sheet1!S71_SA3SubCode,$AC:$AC)","v":0},{"$f":"SUMIFS(Sheet1!S71_AdjustmentBudAmnt,Sheet1!S71_SA3SubCode,$AC:$AC)","v":0},{"$f":"SUMIFS(Sheet1!S71_AdjustmentBudAmnt,Sheet1!S71_SA3SubCode,$AC:$AC)","v":0},{"$f":"H34","v":0},{"$f":"SUMIFS(Sheet1!S71_ASBudgetAmount,Sheet1!S71_SA3SubCode,$AC:$AC)","v":0},{"$f":"SUMIFS(Sheet1!S71_OY1BudgetAmount,Sheet1!S71_SA3SubCode,$AC:$AC)","v":0},{"$f":"SUMIFS(Sheet1!S71_OY2BudgetAmount,Sheet1!S71_SA3SubCode,$AC:$AC)","v":0},null,null,null,null,null,null,null,null,null,null,null,null,null,null,null,null,"0154"]
["      Bulk Purchases",null,{"$f":"SUMIFS(Sheet1!S71_PPPYearAmount,Sheet1!S71_SA3SubCode,$AC:$AC)","v":0},{"$f":"SUMIFS(Sheet1!S71_PPYearAmount,Sheet1!S71_SA3SubCode,$AC:$AC)","v":0},{"$f":"SUMIFS(Sheet1!S71_PYearAmount,Sheet1!S71_SA3SubCode,$AC:$AC)","v":0},{"$f":"SUMIFS(Sheet1!S71_OriginalBudAmnt,Sheet1!S71_SA3SubCode,$AC:$AC)","v":0},{"$f":"SUMIFS(Sheet1!S71_AdjustmentBudAmnt,Sheet1!S71_SA3SubCode,$AC:$AC)","v":0},{"$f":"SUMIFS(Sheet1!S71_AdjustmentBudAmnt,Sheet1!S71_SA3SubCode,$AC:$AC)","v":0},{"$f":"H35","v":0},{"$f":"SUMIFS(Sheet1!S71_ASBudgetAmount,Sheet1!S71_SA3SubCode,$AC:$AC)","v":0},{"$f":"SUMIFS(Sheet1!S71_OY1BudgetAmount,Sheet1!S71_SA3SubCode,$AC:$AC)","v":0},{"$f":"SUMIFS(Sheet1!S71_OY2BudgetAmount,Sheet1!S71_SA3SubCode,$AC:$AC)","v":0},null,null,null,null,null,null,null,null,null,null,null,null,null,null,null,null,"0155"]
["      Natural Sources",null,{"$f":"SUMIFS(Sheet1!S71_PPPYearAmount,Sheet1!S71_SA3SubCode,$AC:$AC)","v":0},{"$f":"SUMIFS(Sheet1!S71_PPYearAmount,Sheet1!S71_SA3SubCode,$AC:$AC)","v":0},{"$f":"SUMIFS(Sheet1!S71_PYearAmount,Sheet1!S71_SA3SubCode,$AC:$AC)","v":0},{"$f":"SUMIFS(Sheet1!S71_OriginalBudAmnt,Sheet1!S71_SA3SubCode,$AC:$AC)","v":0},{"$f":"SUMIFS(Sheet1!S71_AdjustmentBudAmnt,Sheet1!S71_SA3SubCode,$AC:$AC)","v":0},{"$f":"SUMIFS(Sheet1!S71_AdjustmentBudAmnt,Sheet1!S71_SA3SubCode,$AC:$AC)","v":0},0,{"$f":"SUMIFS(Sheet1!S71_ASBudgetAmount,Sheet1!S71_SA3SubCode,$AC:$AC)","v":0},{"$f":"SUMIFS(Sheet1!S71_OY1BudgetAmount,Sheet1!S71_SA3SubCode,$AC:$AC)","v":0},{"$f":"SUMIFS(Sheet1!S71_OY2BudgetAmount,Sheet1!S71_SA3SubCode,$AC:$AC)","v":0},null,null,null,null,null,null,null,null,null,null,null,null,null,null,null,null,"0156"]
["  Authorised Consumption",6,{"$f":"C38+C47","v":0},{"$f":"D38+D47","v":0},0,0,0,0,0,0,0,0]
["      Billed Authorised Consumption",null,{"$f":"C43+C39","v":0},{"$f":"D43+D39","v":0},0,0,0,0,0,0,0,0]
["         Billed Metered Consumption",null,{"$f":"SUM(C40:C42)","v":0},{"$f":"SUM(D40:D42)","v":0},0,0,0,0,0,0,0,0]
["          Free Basic Water",null,{"$f":"SUMIFS(Sheet1!S71_PPPYearAmount,Sheet1!S71_SA3SubCode,$AC:$AC)","v":0},{"$f":"SUMIFS(Sheet1!S71_PPYearAmount,Sheet1!S71_SA3SubCode,$AC:$AC)","v":0},{"$f":"SUMIFS(Sheet1!S71_PYearAmount,Sheet1!S71_SA3SubCode,$AC:$AC)","v":0},{"$f":"SUMIFS(Sheet1!S71_OriginalBudAmnt,Sheet1!S71_SA3SubCode,$AC:$AC)","v":0},{"$f":"SUMIFS(Sheet1!S71_AdjustmentBudAmnt,Sheet1!S71_SA3SubCode,$AC:$AC)","v":0},{"$f":"SUMIFS(Sheet1!S71_AdjustmentBudAmnt,Sheet1!S71_SA3SubCode,$AC:$AC)","v":0},{"$f":"H40","v":0},{"$f":"SUMIFS(Sheet1!S71_ASBudgetAmount,Sheet1!S71_SA3SubCode,$AC:$AC)","v":0},{"$f":"SUMIFS(Sheet1!S71_OY1BudgetAmount,Sheet1!S71_SA3SubCode,$AC:$AC)","v":0},{"$f":"SUMIFS(Sheet1!S71_OY2BudgetAmount,Sheet1!S71_SA3SubCode,$AC:$AC)","v":0},null,null,null,null,null,null,null,null,null,null,null,null,null,null,null,null,"0160"]
["          Subsidised Water",null,{"$f":"SUMIFS(Sheet1!S71_PPPYearAmount,Sheet1!S71_SA3SubCode,$AC:$AC)","v":0},{"$f":"SUMIFS(Sheet1!S71_PPYearAmount,Sheet1!S71_SA3SubCode,$AC:$AC)","v":0},{"$f":"SUMIFS(Sheet1!S71_PYearAmount,Sheet1!S71_SA3SubCode,$AC:$AC)","v":0},{"$f":"SUMIFS(Sheet1!S71_OriginalBudAmnt,Sheet1!S71_SA3SubCode,$AC:$AC)","v":0},{"$f":"SUMIFS(Sheet1!S71_AdjustmentBudAmnt,Sheet1!S71_SA3SubCode,$AC:$AC)","v":0},{"$f":"SUMIFS(Sheet1!S71_AdjustmentBudAmnt,Sheet1!S71_SA3SubCode,$AC:$AC)","v":0},0,{"$f":"SUMIFS(Sheet1!S71_ASBudgetAmount,Sheet1!S71_SA3SubCode,$AC:$AC)","v":0},{"$f":"SUMIFS(Sheet1!S71_OY1BudgetAmount,Sheet1!S71_SA3SubCode,$AC:$AC)","v":0},{"$f":"SUMIFS(Sheet1!S71_OY2BudgetAmount,Sheet1!S71_SA3SubCode,$AC:$AC)","v":0},null,null,null,null,null,null,null,null,null,null,null,null,null,null,null,null,"0161"]
["          Revenue Water",null,{"$f":"SUMIFS(Sheet1!S71_PPPYearAmount,Sheet1!S71_SA3SubCode,$AC:$AC)","v":0},{"$f":"SUMIFS(Sheet1!S71_PPYearAmount,Sheet1!S71_SA3SubCode,$AC:$AC)","v":0},{"$f":"SUMIFS(Sheet1!S71_PYearAmount,Sheet1!S71_SA3SubCode,$AC:$AC)","v":0},{"$f":"SUMIFS(Sheet1!S71_OriginalBudAmnt,Sheet1!S71_SA3SubCode,$AC:$AC)","v":0},{"$f":"SUMIFS(Sheet1!S71_AdjustmentBudAmnt,Sheet1!S71_SA3SubCode,$AC:$AC)","v":0},{"$f":"SUMIFS(Sheet1!S71_AdjustmentBudAmnt,Sheet1!S71_SA3SubCode,$AC:$AC)","v":0},0,{"$f":"SUMIFS(Sheet1!S71_ASBudgetAmount,Sheet1!S71_SA3SubCode,$AC:$AC)","v":0},{"$f":"SUMIFS(Sheet1!S71_OY1BudgetAmount,Sheet1!S71_SA3SubCode,$AC:$AC)","v":0},{"$f":"SUMIFS(Sheet1!S71_OY2BudgetAmount,Sheet1!S71_SA3SubCode,$AC:$AC)","v":0},null,null,null,null,null,null,null,null,null,null,null,null,null,null,null,null,"0162"]
["         Billed Unmetered Consumption",null,{"$f":"SUM(C44:C46)","v":0},{"$f":"SUM(D44:D46)","v":0},0,0,0,0,0,0,0,0]
["          Free Basic Water",null,{"$f":"SUMIFS(Sheet1!S71_PPPYearAmount,Sheet1!S71_SA3SubCode,$AC:$AC)","v":0},{"$f":"SUMIFS(Sheet1!S71_PPYearAmount,Sheet1!S71_SA3SubCode,$AC:$AC)","v":0},{"$f":"SUMIFS(Sheet1!S71_PYearAmount,Sheet1!S71_SA3SubCode,$AC:$AC)","v":0},{"$f":"SUMIFS(Sheet1!S71_OriginalBudAmnt,Sheet1!S71_SA3SubCode,$AC:$AC)","v":0},{"$f":"SUMIFS(Sheet1!S71_AdjustmentBudAmnt,Sheet1!S71_SA3SubCode,$AC:$AC)","v":0},{"$f":"SUMIFS(Sheet1!S71_AdjustmentBudAmnt,Sheet1!S71_SA3SubCode,$AC:$AC)","v":0},{"$f":"H44","v":0},{"$f":"SUMIFS(Sheet1!S71_ASBudgetAmount,Sheet1!S71_SA3SubCode,$AC:$AC)","v":0},{"$f":"SUMIFS(Sheet1!S71_OY1BudgetAmount,Sheet1!S71_SA3SubCode,$AC:$AC)","v":0},{"$f":"SUMIFS(Sheet1!S71_OY2BudgetAmount,Sheet1!S71_SA3SubCode,$AC:$AC)","v":0},null,null,null,null,null,null,null,null,null,null,null,null,null,null,null,null,"0164"]
["          Subsidised Water",null,{"$f":"SUMIFS(Sheet1!S71_PPPYearAmount,Sheet1!S71_SA3SubCode,$AC:$AC)","v":0},{"$f":"SUMIFS(Sheet1!S71_PPYearAmount,Sheet1!S71_SA3SubCode,$AC:$AC)","v":0},{"$f":"SUMIFS(Sheet1!S71_PYearAmount,Sheet1!S71_SA3SubCode,$AC:$AC)","v":0},{"$f":"SUMIFS(Sheet1!S71_OriginalBudAmnt,Sheet1!S71_SA3SubCode,$AC:$AC)","v":0},{"$f":"SUMIFS(Sheet1!S71_AdjustmentBudAmnt,Sheet1!S71_SA3SubCode,$AC:$AC)","v":0},{"$f":"SUMIFS(Sheet1!S71_AdjustmentBudAmnt,Sheet1!S71_SA3SubCode,$AC:$AC)","v":0},0,{"$f":"SUMIFS(Sheet1!S71_ASBudgetAmount,Sheet1!S71_SA3SubCode,$AC:$AC)","v":0},{"$f":"SUMIFS(Sheet1!S71_OY1BudgetAmount,Sheet1!S71_SA3SubCode,$AC:$AC)","v":0},{"$f":"SUMIFS(Sheet1!S71_OY2BudgetAmount,Sheet1!S71_SA3SubCode,$AC:$AC)","v":0},null,null,null,null,null,null,null,null,null,null,null,null,null,null,null,null,"0165"]
["          Revenue Water",null,{"$f":"SUMIFS(Sheet1!S71_PPPYearAmount,Sheet1!S71_SA3SubCode,$AC:$AC)","v":0},{"$f":"SUMIFS(Sheet1!S71_PPYearAmount,Sheet1!S71_SA3SubCode,$AC:$AC)","v":0},{"$f":"SUMIFS(Sheet1!S71_PYearAmount,Sheet1!S71_SA3SubCode,$AC:$AC)","v":0},{"$f":"SUMIFS(Sheet1!S71_OriginalBudAmnt,Sheet1!S71_SA3SubCode,$AC:$AC)","v":0},{"$f":"SUMIFS(Sheet1!S71_AdjustmentBudAmnt,Sheet1!S71_SA3SubCode,$AC:$AC)","v":0},{"$f":"SUMIFS(Sheet1!S71_AdjustmentBudAmnt,Sheet1!S71_SA3SubCode,$AC:$AC)","v":0},0,{"$f":"SUMIFS(Sheet1!S71_ASBudgetAmount,Sheet1!S71_SA3SubCode,$AC:$AC)","v":0},{"$f":"SUMIFS(Sheet1!S71_OY1BudgetAmount,Sheet1!S71_SA3SubCode,$AC:$AC)","v":0},{"$f":"SUMIFS(Sheet1!S71_OY2BudgetAmount,Sheet1!S71_SA3SubCode,$AC:$AC)","v":0},null,null,null,null,null,null,null,null,null,null,null,null,null,null,null,null,"0166"]
["     UnBilled Authorised Consumption",null,{"$f":"SUM(C48:C49)","v":0},{"$f":"SUM(D48:D49)","v":0},0,0,0,0,0,0,0,0]
["          Unbilled Metered Consumption",null,{"$f":"SUMIFS(Sheet1!S71_PPPYearAmount,Sheet1!S71_SA3SubCode,$AC:$AC)","v":0},{"$f":"SUMIFS(Sheet1!S71_PPYearAmount,Sheet1!S71_SA3SubCode,$AC:$AC)","v":0},{"$f":"SUMIFS(Sheet1!S71_PYearAmount,Sheet1!S71_SA3SubCode,$AC:$AC)","v":0},{"$f":"SUMIFS(Sheet1!S71_OriginalBudAmnt,Sheet1!S71_SA3SubCode,$AC:$AC)","v":0},{"$f":"SUMIFS(Sheet1!S71_AdjustmentBudAmnt,Sheet1!S71_SA3SubCode,$AC:$AC)","v":0},{"$f":"SUMIFS(Sheet1!S71_AdjustmentBudAmnt,Sheet1!S71_SA3SubCode,$AC:$AC)","v":0},{"$f":"H48","v":0},{"$f":"SUMIFS(Sheet1!S71_ASBudgetAmount,Sheet1!S71_SA3SubCode,$AC:$AC)","v":0},{"$f":"SUMIFS(Sheet1!S71_OY1BudgetAmount,Sheet1!S71_SA3SubCode,$AC:$AC)","v":0},{"$f":"SUMIFS(Sheet1!S71_OY2BudgetAmount,Sheet1!S71_SA3SubCode,$AC:$AC)","v":0},null,null,null,null,null,null,null,null,null,null,null,null,null,null,null,null,"0168"]
["          Unbilled Unmetered Consumption",null,{"$f":"SUMIFS(Sheet1!S71_PPPYearAmount,Sheet1!S71_SA3SubCode,$AC:$AC)","v":0},{"$f":"SUMIFS(Sheet1!S71_PPYearAmount,Sheet1!S71_SA3SubCode,$AC:$AC)","v":0},{"$f":"SUMIFS(Sheet1!S71_PYearAmount,Sheet1!S71_SA3SubCode,$AC:$AC)","v":0},{"$f":"SUMIFS(Sheet1!S71_OriginalBudAmnt,Sheet1!S71_SA3SubCode,$AC:$AC)","v":0},{"$f":"SUMIFS(Sheet1!S71_AdjustmentBudAmnt,Sheet1!S71_SA3SubCode,$AC:$AC)","v":0},{"$f":"SUMIFS(Sheet1!S71_AdjustmentBudAmnt,Sheet1!S71_SA3SubCode,$AC:$AC)","v":0},0,{"$f":"SUMIFS(Sheet1!S71_ASBudgetAmount,Sheet1!S71_SA3SubCode,$AC:$AC)","v":0},{"$f":"SUMIFS(Sheet1!S71_OY1BudgetAmount,Sheet1!S71_SA3SubCode,$AC:$AC)","v":0},{"$f":"SUMIFS(Sheet1!S71_OY2BudgetAmount,Sheet1!S71_SA3SubCode,$AC:$AC)","v":0},null,null,null,null,null,null,null,null,null,null,null,null,null,null,null,null,"0169"]
["     Water Losses",null,{"$f":"C51+C54","v":0},{"$f":"D51+D54","v":0},0,0,0,0,0,0,0,0]
["         Apparent losses",null,{"$f":"SUM(C52:C53)","v":0},{"$f":"SUM(D52:D53)","v":0},0,0,0,0,0,0,0,0]
["           Unauthorised Consumption",null,{"$f":"SUMIFS(Sheet1!S71_PPPYearAmount,Sheet1!S71_A6SubCode,$AC:$AC)","v":0},{"$f":"SUMIFS(Sheet1!S71_PPYearAmount,Sheet1!S71_A6SubCode,$AC:$AC)","v":0},{"$f":"SUMIFS(Sheet1!S71_PYearAmount,Sheet1!S71_A6SubCode,$AC:$AC)","v":0},{"$f":"SUMIFS(Sheet1!S71_OriginalBudAmnt,Sheet1!S71_A6SubCode,$AC:$AC)","v":0},{"$f":"SUMIFS(Sheet1!S71_AdjustmentBudAmnt,Sheet1!S71_A6SubCode,$AC:$AC)","v":0},{"$f":"SUMIFS(Sheet1!S71_AdjustmentBudAmnt,Sheet1!S71_A6SubCode,$AC:$AC)","v":0},{"$f":"H52","v":0},{"$f":"SUMIFS(Sheet1!S71_ASBudgetAmount,Sheet1!S71_A6SubCode,$AC:$AC)","v":0},{"$f":"SUMIFS(Sheet1!S71_OY1BudgetAmount,Sheet1!S71_A6SubCode,$AC:$AC)","v":0},{"$f":"SUMIFS(Sheet1!S71_OY2BudgetAmount,Sheet1!S71_A6SubCode,$AC:$AC)","v":0},null,null,null,null,null,null,null,null,null,null,null,null,null,null,null,null,"0172"]
["           Customer Meter Inaccuracies",null,{"$f":"SUMIFS(Sheet1!S71_PPPYearAmount,Sheet1!S71_A6SubCode,$AC:$AC)","v":0},{"$f":"SUMIFS(Sheet1!S71_PPYearAmount,Sheet1!S71_A6SubCode,$AC:$AC)","v":0},{"$f":"SUMIFS(Sheet1!S71_PYearAmount,Sheet1!S71_A6SubCode,$AC:$AC)","v":0},{"$f":"SUMIFS(Sheet1!S71_OriginalBudAmnt,Sheet1!S71_A6SubCode,$AC:$AC)","v":0},{"$f":"SUMIFS(Sheet1!S71_AdjustmentBudAmnt,Sheet1!S71_A6SubCode,$AC:$AC)","v":0},{"$f":"SUMIFS(Sheet1!S71_AdjustmentBudAmnt,Sheet1!S71_A6SubCode,$AC:$AC)","v":0},0,{"$f":"SUMIFS(Sheet1!S71_ASBudgetAmount,Sheet1!S71_A6SubCode,$AC:$AC)","v":0},{"$f":"SUMIFS(Sheet1!S71_OY1BudgetAmount,Sheet1!S71_A6SubCode,$AC:$AC)","v":0},{"$f":"SUMIFS(Sheet1!S71_OY2BudgetAmount,Sheet1!S71_A6SubCode,$AC:$AC)","v":0},null,null,null,null,null,null,null,null,null,null,null,null,null,null,null,null,"0173"]
["         Real losses",null,{"$f":"SUM(C55:C59)","v":0},{"$f":"SUM(D55:D59)","v":0},0,0,0,0,0,0,0,0]
["           Leakage on Transmission and Distribution Mains",null,{"$f":"SUMIFS(Sheet1!S71_PPPYearAmount,Sheet1!S71_A6SubCode,$AC:$AC)","v":0},{"$f":"SUMIFS(Sheet1!S71_PPYearAmount,Sheet1!S71_A6SubCode,$AC:$AC)","v":0},{"$f":"SUMIFS(Sheet1!S71_PYearAmount,Sheet1!S71_A6SubCode,$AC:$AC)","v":0},{"$f":"SUMIFS(Sheet1!S71_OriginalBudAmnt,Sheet1!S71_A6SubCode,$AC:$AC)","v":0},{"$f":"SUMIFS(Sheet1!S71_AdjustmentBudAmnt,Sheet1!S71_A6SubCode,$AC:$AC)","v":0},{"$f":"SUMIFS(Sheet1!S71_AdjustmentBudAmnt,Sheet1!S71_A6SubCode,$AC:$AC)","v":0},{"$f":"H55","v":0},{"$f":"SUMIFS(Sheet1!S71_ASBudgetAmount,Sheet1!S71_A6SubCode,$AC:$AC)","v":0},{"$f":"SUMIFS(Sheet1!S71_OY1BudgetAmount,Sheet1!S71_A6SubCode,$AC:$AC)","v":0},{"$f":"SUMIFS(Sheet1!S71_OY2BudgetAmount,Sheet1!S71_A6SubCode,$AC:$AC)","v":0},null,null,null,null,null,null,null,null,null,null,null,null,null,null,null,null,"0175"]
["           Leakage and Overflows at Storage Tanks/Reservoirs",null,{"$f":"SUMIFS(Sheet1!S71_PPPYearAmount,Sheet1!S71_A6SubCode,$AC:$AC)","v":0},{"$f":"SUMIFS(Sheet1!S71_PPYearAmount,Sheet1!S71_A6SubCode,$AC:$AC)","v":0},{"$f":"SUMIFS(Sheet1!S71_PYearAmount,Sheet1!S71_A6SubCode,$AC:$AC)","v":0},{"$f":"SUMIFS(Sheet1!S71_OriginalBudAmnt,Sheet1!S71_A6SubCode,$AC:$AC)","v":0},{"$f":"SUMIFS(Sheet1!S71_AdjustmentBudAmnt,Sheet1!S71_A6SubCode,$AC:$AC)","v":0},{"$f":"SUMIFS(Sheet1!S71_AdjustmentBudAmnt,Sheet1!S71_A6SubCode,$AC:$AC)","v":0},0,{"$f":"SUMIFS(Sheet1!S71_ASBudgetAmount,Sheet1!S71_A6SubCode,$AC:$AC)","v":0},{"$f":"SUMIFS(Sheet1!S71_OY1BudgetAmount,Sheet1!S71_A6SubCode,$AC:$AC)","v":0},{"$f":"SUMIFS(Sheet1!S71_OY2BudgetAmount,Sheet1!S71_A6SubCode,$AC:$AC)","v":0},null,null,null,null,null,null,null,null,null,null,null,null,null,null,null,null,"0176"]
["           Leakage on Service Connections up to the point of Customer Meter",null,{"$f":"SUMIFS(Sheet1!S71_PPPYearAmount,Sheet1!S71_A6SubCode,$AC:$AC)","v":0},{"$f":"SUMIFS(Sheet1!S71_PPYearAmount,Sheet1!S71_A6SubCode,$AC:$AC)","v":0},{"$f":"SUMIFS(Sheet1!S71_PYearAmount,Sheet1!S71_A6SubCode,$AC:$AC)","v":0},{"$f":"SUMIFS(Sheet1!S71_OriginalBudAmnt,Sheet1!S71_A6SubCode,$AC:$AC)","v":0},{"$f":"SUMIFS(Sheet1!S71_AdjustmentBudAmnt,Sheet1!S71_A6SubCode,$AC:$AC)","v":0},{"$f":"SUMIFS(Sheet1!S71_AdjustmentBudAmnt,Sheet1!S71_A6SubCode,$AC:$AC)","v":0},0,{"$f":"SUMIFS(Sheet1!S71_ASBudgetAmount,Sheet1!S71_A6SubCode,$AC:$AC)","v":0},{"$f":"SUMIFS(Sheet1!S71_OY1BudgetAmount,Sheet1!S71_A6SubCode,$AC:$AC)","v":0},{"$f":"SUMIFS(Sheet1!S71_OY2BudgetAmount,Sheet1!S71_A6SubCode,$AC:$AC)","v":0},null,null,null,null,null,null,null,null,null,null,null,null,null,null,null,null,"0177"]
["           Data Transfer and Management Errors",null,{"$f":"SUMIFS(Sheet1!S71_PPPYearAmount,Sheet1!S71_A6SubCode,$AC:$AC)","v":0},{"$f":"SUMIFS(Sheet1!S71_PPYearAmount,Sheet1!S71_A6SubCode,$AC:$AC)","v":0},{"$f":"SUMIFS(Sheet1!S71_PYearAmount,Sheet1!S71_A6SubCode,$AC:$AC)","v":0},{"$f":"SUMIFS(Sheet1!S71_OriginalBudAmnt,Sheet1!S71_A6SubCode,$AC:$AC)","v":0},{"$f":"SUMIFS(Sheet1!S71_AdjustmentBudAmnt,Sheet1!S71_A6SubCode,$AC:$AC)","v":0},{"$f":"SUMIFS(Sheet1!S71_AdjustmentBudAmnt,Sheet1!S71_A6SubCode,$AC:$AC)","v":0},0,{"$f":"SUMIFS(Sheet1!S71_ASBudgetAmount,Sheet1!S71_A6SubCode,$AC:$AC)","v":0},{"$f":"SUMIFS(Sheet1!S71_OY1BudgetAmount,Sheet1!S71_A6SubCode,$AC:$AC)","v":0},{"$f":"SUMIFS(Sheet1!S71_OY2BudgetAmount,Sheet1!S71_A6SubCode,$AC:$AC)","v":0},null,null,null,null,null,null,null,null,null,null,null,null,null,null,null,null,"0178"]
["           Unavoidable Annual Real Losses",null,{"$f":"SUMIFS(Sheet1!S71_PPPYearAmount,Sheet1!S71_A6SubCode,$AC:$AC)","v":0},{"$f":"SUMIFS(Sheet1!S71_PPYearAmount,Sheet1!S71_A6SubCode,$AC:$AC)","v":0},{"$f":"SUMIFS(Sheet1!S71_PYearAmount,Sheet1!S71_A6SubCode,$AC:$AC)","v":0},{"$f":"SUMIFS(Sheet1!S71_OriginalBudAmnt,Sheet1!S71_A6SubCode,$AC:$AC)","v":0},{"$f":"SUMIFS(Sheet1!S71_AdjustmentBudAmnt,Sheet1!S71_A6SubCode,$AC:$AC)","v":0},{"$f":"SUMIFS(Sheet1!S71_AdjustmentBudAmnt,Sheet1!S71_A6SubCode,$AC:$AC)","v":0},0,{"$f":"SUMIFS(Sheet1!S71_ASBudgetAmount,Sheet1!S71_A6SubCode,$AC:$AC)","v":0},{"$f":"SUMIFS(Sheet1!S71_OY1BudgetAmount,Sheet1!S71_A6SubCode,$AC:$AC)","v":0},{"$f":"SUMIFS(Sheet1!S71_OY2BudgetAmount,Sheet1!S71_A6SubCode,$AC:$AC)","v":0},null,null,null,null,null,null,null,null,null,null,null,null,null,null,null,null,"0179"]
["  Non-revenue Water",null,{"$f":"C47+C50","v":0},{"$f":"D47+D50","v":0},0,0,0,0,0,0,0,0,null,null,null,null,null,null,null,null,null,null,null,null,null,null,null,null,"0180"]
["  Closing Balance Water",null,{"$f":"C32+C33+C37+C50","v":0},{"$f":"D32+D33+D37+D50","v":0},0,0,0,0,0,0,0,0]
[]
["Agricultural"]
["  Opening Balance",null,{"$f":"SUMIFS(Sheet1!S71_PPPYearAmount,Sheet1!S71_SA3SubCode,$AC:$AC)","v":0},{"$f":"SUMIFS(Sheet1!S71_PPYearAmount,Sheet1!S71_SA3SubCode,$AC:$AC)","v":0},{"$f":"SUMIFS(Sheet1!S71_PYearAmount,Sheet1!S71_SA3SubCode,$AC:$AC)","v":0},{"$f":"SUMIFS(Sheet1!S71_OriginalBudAmnt,Sheet1!S71_SA3SubCode,$AC:$AC)","v":0},{"$f":"SUMIFS(Sheet1!S71_AdjustmentBudAmnt,Sheet1!S71_SA3SubCode,$AC:$AC)","v":0},{"$f":"SUMIFS(Sheet1!S71_AdjustmentBudAmnt,Sheet1!S71_SA3SubCode,$AC:$AC)","v":0},{"$f":"SUMIFS(Sheet1!CD:CD,Sheet1!S71_SA3SubCode,$AC:$AC)","v":0},{"$f":"SUMIFS(Sheet1!S71_ASBudgetAmount,Sheet1!S71_SA3SubCode,$AC:$AC)","v":0},{"$f":"SUMIFS(Sheet1!S71_OY1BudgetAmount,Sheet1!S71_SA3SubCode,$AC:$AC)","v":0},{"$f":"SUMIFS(Sheet1!S71_OY2BudgetAmount,Sheet1!S71_SA3SubCode,$AC:$AC)","v":0},null,null,null,null,null,null,null,null,null,null,null,null,null,null,null,null,"0183"]
["      Acquisitions",null,{"$f":"SUMIFS(Sheet1!S71_PPPYearAmount,Sheet1!S71_SA3SubCode,$AC:$AC)","v":0},{"$f":"SUMIFS(Sheet1!S71_PPYearAmount,Sheet1!S71_SA3SubCode,$AC:$AC)","v":0},{"$f":"SUMIFS(Sheet1!S71_PYearAmount,Sheet1!S71_SA3SubCode,$AC:$AC)","v":0},{"$f":"SUMIFS(Sheet1!S71_OriginalBudAmnt,Sheet1!S71_SA3SubCode,$AC:$AC)","v":0},{"$f":"SUMIFS(Sheet1!S71_AdjustmentBudAmnt,Sheet1!S71_SA3SubCode,$AC:$AC)","v":0},{"$f":"SUMIFS(Sheet1!S71_AdjustmentBudAmnt,Sheet1!S71_SA3SubCode,$AC:$AC)","v":0},{"$f":"H65","v":0},{"$f":"SUMIFS(Sheet1!S71_ASBudgetAmount,Sheet1!S71_SA3SubCode,$AC:$AC)","v":0},{"$f":"SUMIFS(Sheet1!S71_OY1BudgetAmount,Sheet1!S71_SA3SubCode,$AC:$AC)","v":0},{"$f":"SUMIFS(Sheet1!S71_OY2BudgetAmount,Sheet1!S71_SA3SubCode,$AC:$AC)","v":0},null,null,null,null,null,null,null,null,null,null,null,null,null,null,null,null,"0184"]
["      Issues",7,{"$f":"SUMIFS(Sheet1!S71_PPPYearAmount,Sheet1!S71_SA3SubCode,$AC:$AC)","v":0},{"$f":"SUMIFS(Sheet1!S71_PPYearAmount,Sheet1!S71_SA3SubCode,$AC:$AC)","v":0},{"$f":"SUMIFS(Sheet1!S71_PYearAmount,Sheet1!S71_SA3SubCode,$AC:$AC)","v":0},{"$f":"SUMIFS(Sheet1!S71_OriginalBudAmnt,Sheet1!S71_SA3SubCode,$AC:$AC)","v":0},{"$f":"SUMIFS(Sheet1!S71_AdjustmentBudAmnt,Sheet1!S71_SA3SubCode,$AC:$AC)","v":0},{"$f":"SUMIFS(Sheet1!S71_AdjustmentBudAmnt,Sheet1!S71_SA3SubCode,$AC:$AC)","v":0},0,{"$f":"SUMIFS(Sheet1!S71_ASBudgetAmount,Sheet1!S71_SA3SubCode,$AC:$AC)","v":0},{"$f":"SUMIFS(Sheet1!S71_OY1BudgetAmount,Sheet1!S71_SA3SubCode,$AC:$AC)","v":0},{"$f":"SUMIFS(Sheet1!S71_OY2BudgetAmount,Sheet1!S71_SA3SubCode,$AC:$AC)","v":0},null,null,null,null,null,null,null,null,null,null,null,null,null,null,null,null,"0185"]
["      Adjustments",8,{"$f":"SUMIFS(Sheet1!S71_PPPYearAmount,Sheet1!S71_SA3SubCode,$AC:$AC)","v":0},{"$f":"SUMIFS(Sheet1!S71_PPYearAmount,Sheet1!S71_SA3SubCode,$AC:$AC)","v":0},{"$f":"SUMIFS(Sheet1!S71_PYearAmount,Sheet1!S71_SA3SubCode,$AC:$AC)","v":0},{"$f":"SUMIFS(Sheet1!S71_OriginalBudAmnt,Sheet1!S71_SA3SubCode,$AC:$AC)","v":0},{"$f":"SUMIFS(Sheet1!S71_AdjustmentBudAmnt,Sheet1!S71_SA3SubCode,$AC:$AC)","v":0},{"$f":"SUMIFS(Sheet1!S71_AdjustmentBudAmnt,Sheet1!S71_SA3SubCode,$AC:$AC)","v":0},0,{"$f":"SUMIFS(Sheet1!S71_ASBudgetAmount,Sheet1!S71_SA3SubCode,$AC:$AC)","v":0},{"$f":"SUMIFS(Sheet1!S71_OY1BudgetAmount,Sheet1!S71_SA3SubCode,$AC:$AC)","v":0},{"$f":"SUMIFS(Sheet1!S71_OY2BudgetAmount,Sheet1!S71_SA3SubCode,$AC:$AC)","v":0},null,null,null,null,null,null,null,null,null,null,null,null,null,null,null,null,"0186"]
["      Write-offs",9,{"$f":"SUMIFS(Sheet1!S71_PPPYearAmount,Sheet1!S71_SA3SubCode,$AC:$AC)","v":0},{"$f":"SUMIFS(Sheet1!S71_PPYearAmount,Sheet1!S71_SA3SubCode,$AC:$AC)","v":0},{"$f":"SUMIFS(Sheet1!S71_PYearAmount,Sheet1!S71_SA3SubCode,$AC:$AC)","v":0},{"$f":"SUMIFS(Sheet1!S71_OriginalBudAmnt,Sheet1!S71_SA3SubCode,$AC:$AC)","v":0},{"$f":"SUMIFS(Sheet1!S71_AdjustmentBudAmnt,Sheet1!S71_SA3SubCode,$AC:$AC)","v":0},{"$f":"SUMIFS(Sheet1!S71_AdjustmentBudAmnt,Sheet1!S71_SA3SubCode,$AC:$AC)","v":0},0,{"$f":"SUMIFS(Sheet1!S71_ASBudgetAmount,Sheet1!S71_SA3SubCode,$AC:$AC)","v":0},{"$f":"SUMIFS(Sheet1!S71_OY1BudgetAmount,Sheet1!S71_SA3SubCode,$AC:$AC)","v":0},{"$f":"SUMIFS(Sheet1!S71_OY2BudgetAmount,Sheet1!S71_SA3SubCode,$AC:$AC)","v":0},null,null,null,null,null,null,null,null,null,null,null,null,null,null,null,null,"0187"]
["  Closing balance - Agricultural",null,{"$f":"SUM(C64:C68)","v":0},0,0,0,0,0,0,0,0,0]
[]
["Consumables"]
["Standard Rated"]
["  Opening Balance",null,{"$f":"SUMIFS(Sheet1!S71_PPPYearAmount,Sheet1!S71_SA3SubCode,$AC:$AC)","v":0},{"$f":"SUMIFS(Sheet1!S71_PPYearAmount,Sheet1!S71_SA3SubCode,$AC:$AC)","v":0},{"$f":"SUMIFS(Sheet1!S71_PYearAmount,Sheet1!S71_SA3SubCode,$AC:$AC)","v":0},{"$f":"SUMIFS(Sheet1!S71_OriginalBudAmnt,Sheet1!S71_SA3SubCode,$AC:$AC)","v":0},{"$f":"SUMIFS(Sheet1!S71_AdjustmentBudAmnt,Sheet1!S71_SA3SubCode,$AC:$AC)","v":0},{"$f":"SUMIFS(Sheet1!S71_AdjustmentBudAmnt,Sheet1!S71_SA3SubCode,$AC:$AC)","v":0},{"$f":"SUMIFS(Sheet1!CD:CD,Sheet1!S71_SA3SubCode,$AC:$AC)","v":0},{"$f":"SUMIFS(Sheet1!S71_ASBudgetAmount,Sheet1!S71_SA3SubCode,$AC:$AC)","v":0},{"$f":"SUMIFS(Sheet1!S71_OY1BudgetAmount,Sheet1!S71_SA3SubCode,$AC:$AC)","v":0},{"$f":"SUMIFS(Sheet1!S71_OY2BudgetAmount,Sheet1!S71_SA3SubCode,$AC:$AC)","v":0},null,null,null,null,null,null,null,null,null,null,null,null,null,null,null,null,"0191"]
["      Acquisitions",null,{"$f":"SUMIFS(Sheet1!S71_PPPYearAmount,Sheet1!S71_SA3SubCode,$AC:$AC)","v":0},{"$f":"SUMIFS(Sheet1!S71_PPYearAmount,Sheet1!S71_SA3SubCode,$AC:$AC)","v":0},{"$f":"SUMIFS(Sheet1!S71_PYearAmount,Sheet1!S71_SA3SubCode,$AC:$AC)","v":0},{"$f":"SUMIFS(Sheet1!S71_OriginalBudAmnt,Sheet1!S71_SA3SubCode,$AC:$AC)","v":0},{"$f":"SUMIFS(Sheet1!S71_AdjustmentBudAmnt,Sheet1!S71_SA3SubCode,$AC:$AC)","v":0},{"$f":"SUMIFS(Sheet1!S71_AdjustmentBudAmnt,Sheet1!S71_SA3SubCode,$AC:$AC)","v":0},{"$f":"H74","v":0},{"$f":"SUMIFS(Sheet1!S71_ASBudgetAmount,Sheet1!S71_SA3SubCode,$AC:$AC)","v":0},{"$f":"SUMIFS(Sheet1!S71_OY1BudgetAmount,Sheet1!S71_SA3SubCode,$AC:$AC)","v":0},{"$f":"SUMIFS(Sheet1!S71_OY2BudgetAmount,Sheet1!S71_SA3SubCode,$AC:$AC)","v":0},null,null,null,null,null,null,null,null,null,null,null,null,null,null,null,null,"0192"]
["      Issues",7,{"$f":"SUMIFS(Sheet1!S71_PPPYearAmount,Sheet1!S71_SA3SubCode,$AC:$AC)","v":0},{"$f":"SUMIFS(Sheet1!S71_PPYearAmount,Sheet1!S71_SA3SubCode,$AC:$AC)","v":0},{"$f":"SUMIFS(Sheet1!S71_PYearAmount,Sheet1!S71_SA3SubCode,$AC:$AC)","v":0},{"$f":"SUMIFS(Sheet1!S71_OriginalBudAmnt,Sheet1!S71_SA3SubCode,$AC:$AC)","v":0},{"$f":"SUMIFS(Sheet1!S71_AdjustmentBudAmnt,Sheet1!S71_SA3SubCode,$AC:$AC)","v":0},{"$f":"SUMIFS(Sheet1!S71_AdjustmentBudAmnt,Sheet1!S71_SA3SubCode,$AC:$AC)","v":0},0,{"$f":"SUMIFS(Sheet1!S71_ASBudgetAmount,Sheet1!S71_SA3SubCode,$AC:$AC)","v":-900000},{"$f":"SUMIFS(Sheet1!S71_OY1BudgetAmount,Sheet1!S71_SA3SubCode,$AC:$AC)","v":-970000},{"$f":"SUMIFS(Sheet1!S71_OY2BudgetAmount,Sheet1!S71_SA3SubCode,$AC:$AC)","v":-1030000},null,null,null,null,null,null,null,null,null,null,null,null,null,null,null,null,"0193"]
["      Adjustments",8,{"$f":"SUMIFS(Sheet1!S71_PPPYearAmount,Sheet1!S71_SA3SubCode,$AC:$AC)","v":0},{"$f":"SUMIFS(Sheet1!S71_PPYearAmount,Sheet1!S71_SA3SubCode,$AC:$AC)","v":0},{"$f":"SUMIFS(Sheet1!S71_PYearAmount,Sheet1!S71_SA3SubCode,$AC:$AC)","v":0},{"$f":"SUMIFS(Sheet1!S71_OriginalBudAmnt,Sheet1!S71_SA3SubCode,$AC:$AC)","v":0},{"$f":"SUMIFS(Sheet1!S71_AdjustmentBudAmnt,Sheet1!S71_SA3SubCode,$AC:$AC)","v":0},{"$f":"SUMIFS(Sheet1!S71_AdjustmentBudAmnt,Sheet1!S71_SA3SubCode,$AC:$AC)","v":0},0,{"$f":"SUMIFS(Sheet1!S71_ASBudgetAmount,Sheet1!S71_SA3SubCode,$AC:$AC)","v":0},{"$f":"SUMIFS(Sheet1!S71_OY1BudgetAmount,Sheet1!S71_SA3SubCode,$AC:$AC)","v":0},{"$f":"SUMIFS(Sheet1!S71_OY2BudgetAmount,Sheet1!S71_SA3SubCode,$AC:$AC)","v":0},null,null,null,null,null,null,null,null,null,null,null,null,null,null,null,null,"0194"]
["      Write-offs",9,{"$f":"SUMIFS(Sheet1!S71_PPPYearAmount,Sheet1!S71_SA3SubCode,$AC:$AC)","v":0},{"$f":"SUMIFS(Sheet1!S71_PPYearAmount,Sheet1!S71_SA3SubCode,$AC:$AC)","v":0},{"$f":"SUMIFS(Sheet1!S71_PYearAmount,Sheet1!S71_SA3SubCode,$AC:$AC)","v":0},{"$f":"SUMIFS(Sheet1!S71_OriginalBudAmnt,Sheet1!S71_SA3SubCode,$AC:$AC)","v":0},{"$f":"SUMIFS(Sheet1!S71_AdjustmentBudAmnt,Sheet1!S71_SA3SubCode,$AC:$AC)","v":0},{"$f":"SUMIFS(Sheet1!S71_AdjustmentBudAmnt,Sheet1!S71_SA3SubCode,$AC:$AC)","v":0},0,{"$f":"SUMIFS(Sheet1!S71_ASBudgetAmount,Sheet1!S71_SA3SubCode,$AC:$AC)","v":0},{"$f":"SUMIFS(Sheet1!S71_OY1BudgetAmount,Sheet1!S71_SA3SubCode,$AC:$AC)","v":0},{"$f":"SUMIFS(Sheet1!S71_OY2BudgetAmount,Sheet1!S71_SA3SubCode,$AC:$AC)","v":0},null,null,null,null,null,null,null,null,null,null,null,null,null,null,null,null,"0195"]
["  Closing balance - Consumables Standard Rated",null,{"$f":"SUM(C73:C77)","v":0},{"$f":"SUM(D73:D77)","v":0},0,0,0,0,0,-900000,-970000,-1030000]
["Zero Rated"]
["  Opening Balance",null,{"$f":"SUMIFS(Sheet1!S71_PPPYearAmount,Sheet1!S71_SA3SubCode,$AC:$AC)","v":0},{"$f":"SUMIFS(Sheet1!S71_PPYearAmount,Sheet1!S71_SA3SubCode,$AC:$AC)","v":0},{"$f":"SUMIFS(Sheet1!S71_PYearAmount,Sheet1!S71_SA3SubCode,$AC:$AC)","v":0},{"$f":"SUMIFS(Sheet1!S71_OriginalBudAmnt,Sheet1!S71_SA3SubCode,$AC:$AC)","v":0},{"$f":"SUMIFS(Sheet1!S71_AdjustmentBudAmnt,Sheet1!S71_SA3SubCode,$AC:$AC)","v":0},{"$f":"SUMIFS(Sheet1!S71_AdjustmentBudAmnt,Sheet1!S71_SA3SubCode,$AC:$AC)","v":0},{"$f":"SUMIFS(Sheet1!CD:CD,Sheet1!S71_SA3SubCode,$AC:$AC)","v":0},{"$f":"SUMIFS(Sheet1!S71_ASBudgetAmount,Sheet1!S71_SA3SubCode,$AC:$AC)","v":0},{"$f":"SUMIFS(Sheet1!S71_OY1BudgetAmount,Sheet1!S71_SA3SubCode,$AC:$AC)","v":0},{"$f":"SUMIFS(Sheet1!S71_OY2BudgetAmount,Sheet1!S71_SA3SubCode,$AC:$AC)","v":0},null,null,null,null,null,null,null,null,null,null,null,null,null,null,null,null,"0198"]
["      Acquisitions",null,{"$f":"SUMIFS(Sheet1!S71_PPPYearAmount,Sheet1!S71_SA3SubCode,$AC:$AC)","v":0},{"$f":"SUMIFS(Sheet1!S71_PPYearAmount,Sheet1!S71_SA3SubCode,$AC:$AC)","v":0},{"$f":"SUMIFS(Sheet1!S71_PYearAmount,Sheet1!S71_SA3SubCode,$AC:$AC)","v":0},{"$f":"SUMIFS(Sheet1!S71_OriginalBudAmnt,Sheet1!S71_SA3SubCode,$AC:$AC)","v":0},{"$f":"SUMIFS(Sheet1!S71_AdjustmentBudAmnt,Sheet1!S71_SA3SubCode,$AC:$AC)","v":0},{"$f":"SUMIFS(Sheet1!S71_AdjustmentBudAmnt,Sheet1!S71_SA3SubCode,$AC:$AC)","v":0},{"$f":"H81","v":0},{"$f":"SUMIFS(Sheet1!S71_ASBudgetAmount,Sheet1!S71_SA3SubCode,$AC:$AC)","v":0},{"$f":"SUMIFS(Sheet1!S71_OY1BudgetAmount,Sheet1!S71_SA3SubCode,$AC:$AC)","v":0},{"$f":"SUMIFS(Sheet1!S71_OY2BudgetAmount,Sheet1!S71_SA3SubCode,$AC:$AC)","v":0},null,null,null,null,null,null,null,null,null,null,null,null,null,null,null,null,"0199"]
["      Issues",7,{"$f":"SUMIFS(Sheet1!S71_PPPYearAmount,Sheet1!S71_SA3SubCode,$AC:$AC)","v":0},{"$f":"SUMIFS(Sheet1!S71_PPYearAmount,Sheet1!S71_SA3SubCode,$AC:$AC)","v":0},{"$f":"SUMIFS(Sheet1!S71_PYearAmount,Sheet1!S71_SA3SubCode,$AC:$AC)","v":0},{"$f":"SUMIFS(Sheet1!S71_OriginalBudAmnt,Sheet1!S71_SA3SubCode,$AC:$AC)","v":0},{"$f":"SUMIFS(Sheet1!S71_AdjustmentBudAmnt,Sheet1!S71_SA3SubCode,$AC:$AC)","v":0},{"$f":"SUMIFS(Sheet1!S71_AdjustmentBudAmnt,Sheet1!S71_SA3SubCode,$AC:$AC)","v":0},0,{"$f":"SUMIFS(Sheet1!S71_ASBudgetAmount,Sheet1!S71_SA3SubCode,$AC:$AC)","v":0},{"$f":"SUMIFS(Sheet1!S71_OY1BudgetAmount,Sheet1!S71_SA3SubCode,$AC:$AC)","v":0},{"$f":"SUMIFS(Sheet1!S71_OY2BudgetAmount,Sheet1!S71_SA3SubCode,$AC:$AC)","v":0},null,null,null,null,null,null,null,null,null,null,null,null,null,null,null,null,"0200"]
["      Adjustments",8,{"$f":"SUMIFS(Sheet1!S71_PPPYearAmount,Sheet1!S71_SA3SubCode,$AC:$AC)","v":0},{"$f":"SUMIFS(Sheet1!S71_PPYearAmount,Sheet1!S71_SA3SubCode,$AC:$AC)","v":0},{"$f":"SUMIFS(Sheet1!S71_PYearAmount,Sheet1!S71_SA3SubCode,$AC:$AC)","v":0},{"$f":"SUMIFS(Sheet1!S71_OriginalBudAmnt,Sheet1!S71_SA3SubCode,$AC:$AC)","v":0},{"$f":"SUMIFS(Sheet1!S71_AdjustmentBudAmnt,Sheet1!S71_SA3SubCode,$AC:$AC)","v":0},{"$f":"SUMIFS(Sheet1!S71_AdjustmentBudAmnt,Sheet1!S71_SA3SubCode,$AC:$AC)","v":0},0,{"$f":"SUMIFS(Sheet1!S71_ASBudgetAmount,Sheet1!S71_SA3SubCode,$AC:$AC)","v":0},{"$f":"SUMIFS(Sheet1!S71_OY1BudgetAmount,Sheet1!S71_SA3SubCode,$AC:$AC)","v":0},{"$f":"SUMIFS(Sheet1!S71_OY2BudgetAmount,Sheet1!S71_SA3SubCode,$AC:$AC)","v":0},null,null,null,null,null,null,null,null,null,null,null,null,null,null,null,null,"0201"]
["      Write-offs",9,{"$f":"SUMIFS(Sheet1!S71_PPPYearAmount,Sheet1!S71_SA3SubCode,$AC:$AC)","v":0},{"$f":"SUMIFS(Sheet1!S71_PPYearAmount,Sheet1!S71_SA3SubCode,$AC:$AC)","v":0},{"$f":"SUMIFS(Sheet1!S71_PYearAmount,Sheet1!S71_SA3SubCode,$AC:$AC)","v":0},{"$f":"SUMIFS(Sheet1!S71_OriginalBudAmnt,Sheet1!S71_SA3SubCode,$AC:$AC)","v":0},{"$f":"SUMIFS(Sheet1!S71_AdjustmentBudAmnt,Sheet1!S71_SA3SubCode,$AC:$AC)","v":0},{"$f":"SUMIFS(Sheet1!S71_AdjustmentBudAmnt,Sheet1!S71_SA3SubCode,$AC:$AC)","v":0},0,{"$f":"SUMIFS(Sheet1!S71_ASBudgetAmount,Sheet1!S71_SA3SubCode,$AC:$AC)","v":0},{"$f":"SUMIFS(Sheet1!S71_OY1BudgetAmount,Sheet1!S71_SA3SubCode,$AC:$AC)","v":0},{"$f":"SUMIFS(Sheet1!S71_OY2BudgetAmount,Sheet1!S71_SA3SubCode,$AC:$AC)","v":0},null,null,null,null,null,null,null,null,null,null,null,null,null,null,null,null,"0202"]
["  Closing balance - Consumables Zero Rated",null,{"$f":"SUM(C80:C84)","v":0},{"$f":"SUM(D80:D84)","v":0},0,0,0,0,0,0,0,0]
[]
["Finished Goods"]
["  Opening Balance",null,{"$f":"SUMIFS(Sheet1!S71_PPPYearAmount,Sheet1!S71_SA3SubCode,$AC:$AC)","v":0},{"$f":"SUMIFS(Sheet1!S71_PPYearAmount,Sheet1!S71_SA3SubCode,$AC:$AC)","v":0},{"$f":"SUMIFS(Sheet1!S71_PYearAmount,Sheet1!S71_SA3SubCode,$AC:$AC)","v":0},{"$f":"SUMIFS(Sheet1!S71_OriginalBudAmnt,Sheet1!S71_SA3SubCode,$AC:$AC)","v":0},{"$f":"SUMIFS(Sheet1!S71_AdjustmentBudAmnt,Sheet1!S71_SA3SubCode,$AC:$AC)","v":0},{"$f":"SUMIFS(Sheet1!S71_AdjustmentBudAmnt,Sheet1!S71_SA3SubCode,$AC:$AC)","v":0},{"$f":"SUMIFS(Sheet1!CD:CD,Sheet1!S71_SA3SubCode,$AC:$AC)","v":0},{"$f":"SUMIFS(Sheet1!S71_ASBudgetAmount,Sheet1!S71_SA3SubCode,$AC:$AC)","v":0},{"$f":"SUMIFS(Sheet1!S71_OY1BudgetAmount,Sheet1!S71_SA3SubCode,$AC:$AC)","v":0},{"$f":"SUMIFS(Sheet1!S71_OY2BudgetAmount,Sheet1!S71_SA3SubCode,$AC:$AC)","v":0},null,null,null,null,null,null,null,null,null,null,null,null,null,null,null,null,"0205"]
["      Acquisitions",null,{"$f":"SUMIFS(Sheet1!S71_PPPYearAmount,Sheet1!S71_SA3SubCode,$AC:$AC)","v":0},{"$f":"SUMIFS(Sheet1!S71_PPYearAmount,Sheet1!S71_SA3SubCode,$AC:$AC)","v":0},{"$f":"SUMIFS(Sheet1!S71_PYearAmount,Sheet1!S71_SA3SubCode,$AC:$AC)","v":0},{"$f":"SUMIFS(Sheet1!S71_OriginalBudAmnt,Sheet1!S71_SA3SubCode,$AC:$AC)","v":0},{"$f":"SUMIFS(Sheet1!S71_AdjustmentBudAmnt,Sheet1!S71_SA3SubCode,$AC:$AC)","v":0},{"$f":"SUMIFS(Sheet1!S71_AdjustmentBudAmnt,Sheet1!S71_SA3SubCode,$AC:$AC)","v":0},{"$f":"H89","v":0},{"$f":"SUMIFS(Sheet1!S71_ASBudgetAmount,Sheet1!S71_SA3SubCode,$AC:$AC)","v":0},{"$f":"SUMIFS(Sheet1!S71_OY1BudgetAmount,Sheet1!S71_SA3SubCode,$AC:$AC)","v":0},{"$f":"SUMIFS(Sheet1!S71_OY2BudgetAmount,Sheet1!S71_SA3SubCode,$AC:$AC)","v":0},null,null,null,null,null,null,null,null,null,null,null,null,null,null,null,null,"0206"]
["      Issues",7,{"$f":"SUMIFS(Sheet1!S71_PPPYearAmount,Sheet1!S71_SA3SubCode,$AC:$AC)","v":0},{"$f":"SUMIFS(Sheet1!S71_PPYearAmount,Sheet1!S71_SA3SubCode,$AC:$AC)","v":0},{"$f":"SUMIFS(Sheet1!S71_PYearAmount,Sheet1!S71_SA3SubCode,$AC:$AC)","v":0},{"$f":"SUMIFS(Sheet1!S71_OriginalBudAmnt,Sheet1!S71_SA3SubCode,$AC:$AC)","v":0},{"$f":"SUMIFS(Sheet1!S71_AdjustmentBudAmnt,Sheet1!S71_SA3SubCode,$AC:$AC)","v":0},{"$f":"SUMIFS(Sheet1!S71_AdjustmentBudAmnt,Sheet1!S71_SA3SubCode,$AC:$AC)","v":0},0,{"$f":"SUMIFS(Sheet1!S71_ASBudgetAmount,Sheet1!S71_SA3SubCode,$AC:$AC)","v":0},{"$f":"SUMIFS(Sheet1!S71_OY1BudgetAmount,Sheet1!S71_SA3SubCode,$AC:$AC)","v":0},{"$f":"SUMIFS(Sheet1!S71_OY2BudgetAmount,Sheet1!S71_SA3SubCode,$AC:$AC)","v":0},null,null,null,null,null,null,null,null,null,null,null,null,null,null,null,null,"0207"]
["      Adjustments",8,{"$f":"SUMIFS(Sheet1!S71_PPPYearAmount,Sheet1!S71_SA3SubCode,$AC:$AC)","v":0},{"$f":"SUMIFS(Sheet1!S71_PPYearAmount,Sheet1!S71_SA3SubCode,$AC:$AC)","v":0},{"$f":"SUMIFS(Sheet1!S71_PYearAmount,Sheet1!S71_SA3SubCode,$AC:$AC)","v":0},{"$f":"SUMIFS(Sheet1!S71_OriginalBudAmnt,Sheet1!S71_SA3SubCode,$AC:$AC)","v":0},{"$f":"SUMIFS(Sheet1!S71_AdjustmentBudAmnt,Sheet1!S71_SA3SubCode,$AC:$AC)","v":0},{"$f":"SUMIFS(Sheet1!S71_AdjustmentBudAmnt,Sheet1!S71_SA3SubCode,$AC:$AC)","v":0},0,{"$f":"SUMIFS(Sheet1!S71_ASBudgetAmount,Sheet1!S71_SA3SubCode,$AC:$AC)","v":0},{"$f":"SUMIFS(Sheet1!S71_OY1BudgetAmount,Sheet1!S71_SA3SubCode,$AC:$AC)","v":0},{"$f":"SUMIFS(Sheet1!S71_OY2BudgetAmount,Sheet1!S71_SA3SubCode,$AC:$AC)","v":0},null,null,null,null,null,null,null,null,null,null,null,null,null,null,null,null,"0208"]
["      Write-offs",9,{"$f":"SUMIFS(Sheet1!S71_PPPYearAmount,Sheet1!S71_SA3SubCode,$AC:$AC)","v":0},{"$f":"SUMIFS(Sheet1!S71_PPYearAmount,Sheet1!S71_SA3SubCode,$AC:$AC)","v":0},{"$f":"SUMIFS(Sheet1!S71_PYearAmount,Sheet1!S71_SA3SubCode,$AC:$AC)","v":0},{"$f":"SUMIFS(Sheet1!S71_OriginalBudAmnt,Sheet1!S71_SA3SubCode,$AC:$AC)","v":0},{"$f":"SUMIFS(Sheet1!S71_AdjustmentBudAmnt,Sheet1!S71_SA3SubCode,$AC:$AC)","v":0},{"$f":"SUMIFS(Sheet1!S71_AdjustmentBudAmnt,Sheet1!S71_SA3SubCode,$AC:$AC)","v":0},0,{"$f":"SUMIFS(Sheet1!S71_ASBudgetAmount,Sheet1!S71_SA3SubCode,$AC:$AC)","v":0},{"$f":"SUMIFS(Sheet1!S71_OY1BudgetAmount,Sheet1!S71_SA3SubCode,$AC:$AC)","v":0},{"$f":"SUMIFS(Sheet1!S71_OY2BudgetAmount,Sheet1!S71_SA3SubCode,$AC:$AC)","v":0},null,null,null,null,null,null,null,null,null,null,null,null,null,null,null,null,"0209"]
["  Closing balance - Finished Goods",null,{"$f":"SUM(C88:C92)","v":0},{"$f":"SUM(D88:D92)","v":0},0,0,0,0,0,0,0,0]
[]
["Materials and Supplies"]
["  Opening Balance",null,{"$f":"SUMIFS(Sheet1!S71_PPPYearAmount,Sheet1!S71_SA3SubCode,$AC:$AC)","v":5078930},{"$f":"SUMIFS(Sheet1!S71_PPYearAmount,Sheet1!S71_SA3SubCode,$AC:$AC)","v":4493219},{"$f":"SUMIFS(Sheet1!S71_PYearAmount,Sheet1!S71_SA3SubCode,$AC:$AC)","v":3125322},{"$f":"SUMIFS(Sheet1!S71_OriginalBudAmnt,Sheet1!S71_SA3SubCode,$AC:$AC)","v":33870103},{"$f":"SUMIFS(Sheet1!S71_AdjustmentBudAmnt,Sheet1!S71_SA3SubCode,$AC:$AC)","v":1953033},{"$f":"SUMIFS(Sheet1!S71_AdjustmentBudAmnt,Sheet1!S71_SA3SubCode,$AC:$AC)","v":1953033},{"$f":"SUMIFS(Sheet1!CD:CD,Sheet1!S71_SA3SubCode,$AC:$AC)","v":8914878},{"$f":"SUMIFS(Sheet1!S71_ASBudgetAmount,Sheet1!S71_SA3SubCode,$AC:$AC)","v":21888033},{"$f":"SUMIFS(Sheet1!S71_OY1BudgetAmount,Sheet1!S71_SA3SubCode,$AC:$AC)","v":21888033},{"$f":"SUMIFS(Sheet1!S71_OY2BudgetAmount,Sheet1!S71_SA3SubCode,$AC:$AC)","v":21888033},null,null,null,null,null,null,null,null,null,null,null,null,null,null,null,null,"0212"]
["      Acquisitions",null,{"$f":"SUMIFS(Sheet1!S71_PPPYearAmount,Sheet1!S71_SA3SubCode,$AC:$AC)","v":0},{"$f":"SUMIFS(Sheet1!S71_PPYearAmount,Sheet1!S71_SA3SubCode,$AC:$AC)","v":0},{"$f":"SUMIFS(Sheet1!S71_PYearAmount,Sheet1!S71_SA3SubCode,$AC:$AC)","v":0},{"$f":"SUMIFS(Sheet1!S71_OriginalBudAmnt,Sheet1!S71_SA3SubCode,$AC:$AC)","v":0},{"$f":"SUMIFS(Sheet1!S71_AdjustmentBudAmnt,Sheet1!S71_SA3SubCode,$AC:$AC)","v":0},{"$f":"SUMIFS(Sheet1!S71_AdjustmentBudAmnt,Sheet1!S71_SA3SubCode,$AC:$AC)","v":0},{"$f":"H97","v":0},{"$f":"SUMIFS(Sheet1!S71_ASBudgetAmount,Sheet1!S71_SA3SubCode,$AC:$AC)","v":0},{"$f":"SUMIFS(Sheet1!S71_OY1BudgetAmount,Sheet1!S71_SA3SubCode,$AC:$AC)","v":0},{"$f":"SUMIFS(Sheet1!S71_OY2BudgetAmount,Sheet1!S71_SA3SubCode,$AC:$AC)","v":0},null,null,null,null,null,null,null,null,null,null,null,null,null,null,null,null,"0213"]
["      Issues",7,{"$f":"SUMIFS(Sheet1!S71_PPPYearAmount,Sheet1!S71_SA3SubCode,$AC:$AC)","v":0},{"$f":"SUMIFS(Sheet1!S71_PPYearAmount,Sheet1!S71_SA3SubCode,$AC:$AC)","v":0},{"$f":"SUMIFS(Sheet1!S71_PYearAmount,Sheet1!S71_SA3SubCode,$AC:$AC)","v":0},{"$f":"SUMIFS(Sheet1!S71_OriginalBudAmnt,Sheet1!S71_SA3SubCode,$AC:$AC)","v":-10500000},{"$f":"SUMIFS(Sheet1!S71_AdjustmentBudAmnt,Sheet1!S71_SA3SubCode,$AC:$AC)","v":-11150000},{"$f":"SUMIFS(Sheet1!S71_AdjustmentBudAmnt,Sheet1!S71_SA3SubCode,$AC:$AC)","v":-11150000},-11150000,{"$f":"SUMIFS(Sheet1!S71_ASBudgetAmount,Sheet1!S71_SA3SubCode,$AC:$AC)","v":-12300000},{"$f":"SUMIFS(Sheet1!S71_OY1BudgetAmount,Sheet1!S71_SA3SubCode,$AC:$AC)","v":-12850000},{"$f":"SUMIFS(Sheet1!S71_OY2BudgetAmount,Sheet1!S71_SA3SubCode,$AC:$AC)","v":-13460000},null,null,null,null,null,null,null,null,null,null,null,null,null,null,null,null,"0214"]
["      Adjustments",8,{"$f":"SUMIFS(Sheet1!S71_PPPYearAmount,Sheet1!S71_SA3SubCode,$AC:$AC)","v":0},{"$f":"SUMIFS(Sheet1!S71_PPYearAmount,Sheet1!S71_SA3SubCode,$AC:$AC)","v":0},{"$f":"SUMIFS(Sheet1!S71_PYearAmount,Sheet1!S71_SA3SubCode,$AC:$AC)","v":0},{"$f":"SUMIFS(Sheet1!S71_OriginalBudAmnt,Sheet1!S71_SA3SubCode,$AC:$AC)","v":0},{"$f":"SUMIFS(Sheet1!S71_AdjustmentBudAmnt,Sheet1!S71_SA3SubCode,$AC:$AC)","v":0},{"$f":"SUMIFS(Sheet1!S71_AdjustmentBudAmnt,Sheet1!S71_SA3SubCode,$AC:$AC)","v":0},0,{"$f":"SUMIFS(Sheet1!S71_ASBudgetAmount,Sheet1!S71_SA3SubCode,$AC:$AC)","v":0},{"$f":"SUMIFS(Sheet1!S71_OY1BudgetAmount,Sheet1!S71_SA3SubCode,$AC:$AC)","v":0},{"$f":"SUMIFS(Sheet1!S71_OY2BudgetAmount,Sheet1!S71_SA3SubCode,$AC:$AC)","v":0},null,null,null,null,null,null,null,null,null,null,null,null,null,null,null,null,"0215"]
["      Write-offs",9,{"$f":"SUMIFS(Sheet1!S71_PPPYearAmount,Sheet1!S71_SA3SubCode,$AC:$AC)","v":0},{"$f":"SUMIFS(Sheet1!S71_PPYearAmount,Sheet1!S71_SA3SubCode,$AC:$AC)","v":0},{"$f":"SUMIFS(Sheet1!S71_PYearAmount,Sheet1!S71_SA3SubCode,$AC:$AC)","v":0},{"$f":"SUMIFS(Sheet1!S71_OriginalBudAmnt,Sheet1!S71_SA3SubCode,$AC:$AC)","v":0},{"$f":"SUMIFS(Sheet1!S71_AdjustmentBudAmnt,Sheet1!S71_SA3SubCode,$AC:$AC)","v":0},{"$f":"SUMIFS(Sheet1!S71_AdjustmentBudAmnt,Sheet1!S71_SA3SubCode,$AC:$AC)","v":0},0,{"$f":"SUMIFS(Sheet1!S71_ASBudgetAmount,Sheet1!S71_SA3SubCode,$AC:$AC)","v":0},{"$f":"SUMIFS(Sheet1!S71_OY1BudgetAmount,Sheet1!S71_SA3SubCode,$AC:$AC)","v":0},{"$f":"SUMIFS(Sheet1!S71_OY2BudgetAmount,Sheet1!S71_SA3SubCode,$AC:$AC)","v":0},null,null,null,null,null,null,null,null,null,null,null,null,null,null,null,null,"0216"]
["  Closing balance - Materials and Supplies",null,{"$f":"SUM(C96:C100)","v":5078930},{"$f":"SUM(D96:D100)","v":4493219},3125322,23370103,-9196967,-9196967,-2235122,9588033,9038033,8428033]
[]
["Work-in-progress"]
["  Opening Balance",null,{"$f":"SUMIFS(Sheet1!S71_PPPYearAmount,Sheet1!S71_SA3SubCode,$AC:$AC)","v":0},{"$f":"SUMIFS(Sheet1!S71_PPYearAmount,Sheet1!S71_SA3SubCode,$AC:$AC)","v":0},{"$f":"SUMIFS(Sheet1!S71_PYearAmount,Sheet1!S71_SA3SubCode,$AC:$AC)","v":0},{"$f":"SUMIFS(Sheet1!S71_OriginalBudAmnt,Sheet1!S71_SA3SubCode,$AC:$AC)","v":0},{"$f":"SUMIFS(Sheet1!S71_AdjustmentBudAmnt,Sheet1!S71_SA3SubCode,$AC:$AC)","v":0},{"$f":"SUMIFS(Sheet1!S71_AdjustmentBudAmnt,Sheet1!S71_SA3SubCode,$AC:$AC)","v":0},{"$f":"SUMIFS(Sheet1!CD:CD,Sheet1!S71_SA3SubCode,$AC:$AC)","v":0},{"$f":"SUMIFS(Sheet1!S71_ASBudgetAmount,Sheet1!S71_SA3SubCode,$AC:$AC)","v":0},{"$f":"SUMIFS(Sheet1!S71_OY1BudgetAmount,Sheet1!S71_SA3SubCode,$AC:$AC)","v":0},{"$f":"SUMIFS(Sheet1!S71_OY2BudgetAmount,Sheet1!S71_SA3SubCode,$AC:$AC)","v":0},null,null,null,null,null,null,null,null,null,null,null,null,null,null,null,null,"0219"]
["      Materials",null,{"$f":"SUMIFS(Sheet1!S71_PPPYearAmount,Sheet1!S71_SA3SubCode,$AC:$AC)","v":0},{"$f":"SUMIFS(Sheet1!S71_PPYearAmount,Sheet1!S71_SA3SubCode,$AC:$AC)","v":0},{"$f":"SUMIFS(Sheet1!S71_PYearAmount,Sheet1!S71_SA3SubCode,$AC:$AC)","v":0},{"$f":"SUMIFS(Sheet1!S71_OriginalBudAmnt,Sheet1!S71_SA3SubCode,$AC:$AC)","v":0},{"$f":"SUMIFS(Sheet1!S71_AdjustmentBudAmnt,Sheet1!S71_SA3SubCode,$AC:$AC)","v":0},{"$f":"SUMIFS(Sheet1!S71_AdjustmentBudAmnt,Sheet1!S71_SA3SubCode,$AC:$AC)","v":0},{"$f":"H105","v":0},{"$f":"SUMIFS(Sheet1!S71_ASBudgetAmount,Sheet1!S71_SA3SubCode,$AC:$AC)","v":0},{"$f":"SUMIFS(Sheet1!S71_OY1BudgetAmount,Sheet1!S71_SA3SubCode,$AC:$AC)","v":0},{"$f":"SUMIFS(Sheet1!S71_OY2BudgetAmount,Sheet1!S71_SA3SubCode,$AC:$AC)","v":0},null,null,null,null,null,null,null,null,null,null,null,null,null,null,null,null,"0220"]
["      Transfers",null,{"$f":"SUMIFS(Sheet1!S71_PPPYearAmount,Sheet1!S71_SA3SubCode,$AC:$AC)","v":0},{"$f":"SUMIFS(Sheet1!S71_PPYearAmount,Sheet1!S71_SA3SubCode,$AC:$AC)","v":0},{"$f":"SUMIFS(Sheet1!S71_PYearAmount,Sheet1!S71_SA3SubCode,$AC:$AC)","v":0},{"$f":"SUMIFS(Sheet1!S71_OriginalBudAmnt,Sheet1!S71_SA3SubCode,$AC:$AC)","v":0},{"$f":"SUMIFS(Sheet1!S71_AdjustmentBudAmnt,Sheet1!S71_SA3SubCode,$AC:$AC)","v":0},{"$f":"SUMIFS(Sheet1!S71_AdjustmentBudAmnt,Sheet1!S71_SA3SubCode,$AC:$AC)","v":0},0,{"$f":"SUMIFS(Sheet1!S71_ASBudgetAmount,Sheet1!S71_SA3SubCode,$AC:$AC)","v":0},{"$f":"SUMIFS(Sheet1!S71_OY1BudgetAmount,Sheet1!S71_SA3SubCode,$AC:$AC)","v":0},{"$f":"SUMIFS(Sheet1!S71_OY2BudgetAmount,Sheet1!S71_SA3SubCode,$AC:$AC)","v":0},null,null,null,null,null,null,null,null,null,null,null,null,null,null,null,null,"0221"]
["  Closing balance - Work-in-progress",null,{"$f":"SUM(C104:C106)","v":0},{"$f":"SUM(D104:D106)","v":0},0,0,0,0,0,0,0,0]
[]
["Housing Stock"]
["  Opening Balance",null,{"$f":"SUMIFS(Sheet1!S71_PPPYearAmount,Sheet1!S71_SA3SubCode,$AC:$AC)","v":0},{"$f":"SUMIFS(Sheet1!S71_PPYearAmount,Sheet1!S71_SA3SubCode,$AC:$AC)","v":0},{"$f":"SUMIFS(Sheet1!S71_PYearAmount,Sheet1!S71_SA3SubCode,$AC:$AC)","v":0},{"$f":"SUMIFS(Sheet1!S71_OriginalBudAmnt,Sheet1!S71_SA3SubCode,$AC:$AC)","v":0},{"$f":"SUMIFS(Sheet1!S71_AdjustmentBudAmnt,Sheet1!S71_SA3SubCode,$AC:$AC)","v":0},{"$f":"SUMIFS(Sheet1!S71_AdjustmentBudAmnt,Sheet1!S71_SA3SubCode,$AC:$AC)","v":0},{"$f":"SUMIFS(Sheet1!CD:CD,Sheet1!S71_SA3SubCode,$AC:$AC)","v":0},{"$f":"SUMIFS(Sheet1!S71_ASBudgetAmount,Sheet1!S71_SA3SubCode,$AC:$AC)","v":0},{"$f":"SUMIFS(Sheet1!S71_OY1BudgetAmount,Sheet1!S71_SA3SubCode,$AC:$AC)","v":0},{"$f":"SUMIFS(Sheet1!S71_OY2BudgetAmount,Sheet1!S71_SA3SubCode,$AC:$AC)","v":0},null,null,null,null,null,null,null,null,null,null,null,null,null,null,null,null,"0224"]
["      Acquisitions",null,{"$f":"SUMIFS(Sheet1!S71_PPPYearAmount,Sheet1!S71_SA3SubCode,$AC:$AC)","v":0},{"$f":"SUMIFS(Sheet1!S71_PPYearAmount,Sheet1!S71_SA3SubCode,$AC:$AC)","v":0},{"$f":"SUMIFS(Sheet1!S71_PYearAmount,Sheet1!S71_SA3SubCode,$AC:$AC)","v":0},{"$f":"SUMIFS(Sheet1!S71_OriginalBudAmnt,Sheet1!S71_SA3SubCode,$AC:$AC)","v":0},{"$f":"SUMIFS(Sheet1!S71_AdjustmentBudAmnt,Sheet1!S71_SA3SubCode,$AC:$AC)","v":0},{"$f":"SUMIFS(Sheet1!S71_AdjustmentBudAmnt,Sheet1!S71_SA3SubCode,$AC:$AC)","v":0},{"$f":"H111","v":0},{"$f":"SUMIFS(Sheet1!S71_ASBudgetAmount,Sheet1!S71_SA3SubCode,$AC:$AC)","v":0},{"$f":"SUMIFS(Sheet1!S71_OY1BudgetAmount,Sheet1!S71_SA3SubCode,$AC:$AC)","v":0},{"$f":"SUMIFS(Sheet1!S71_OY2BudgetAmount,Sheet1!S71_SA3SubCode,$AC:$AC)","v":0},null,null,null,null,null,null,null,null,null,null,null,null,null,null,null,null,"0225"]
["      Transfers",null,{"$f":"SUMIFS(Sheet1!S71_PPPYearAmount,Sheet1!S71_SA3SubCode,$AC:$AC)","v":0},{"$f":"SUMIFS(Sheet1!S71_PPYearAmount,Sheet1!S71_SA3SubCode,$AC:$AC)","v":0},{"$f":"SUMIFS(Sheet1!S71_PYearAmount,Sheet1!S71_SA3SubCode,$AC:$AC)","v":0},{"$f":"SUMIFS(Sheet1!S71_OriginalBudAmnt,Sheet1!S71_SA3SubCode,$AC:$AC)","v":0},{"$f":"SUMIFS(Sheet1!S71_AdjustmentBudAmnt,Sheet1!S71_SA3SubCode,$AC:$AC)","v":0},{"$f":"SUMIFS(Sheet1!S71_AdjustmentBudAmnt,Sheet1!S71_SA3SubCode,$AC:$AC)","v":0},0,{"$f":"SUMIFS(Sheet1!S71_ASBudgetAmount,Sheet1!S71_SA3SubCode,$AC:$AC)","v":0},{"$f":"SUMIFS(Sheet1!S71_OY1BudgetAmount,Sheet1!S71_SA3SubCode,$AC:$AC)","v":0},{"$f":"SUMIFS(Sheet1!S71_OY2BudgetAmount,Sheet1!S71_SA3SubCode,$AC:$AC)","v":0},null,null,null,null,null,null,null,null,null,null,null,null,null,null,null,null,"0226"]
["      Sales",null,{"$f":"SUMIFS(Sheet1!S71_PPPYearAmount,Sheet1!S71_SA3SubCode,$AC:$AC)","v":0},{"$f":"SUMIFS(Sheet1!S71_PPYearAmount,Sheet1!S71_SA3SubCode,$AC:$AC)","v":0},{"$f":"SUMIFS(Sheet1!S71_PYearAmount,Sheet1!S71_SA3SubCode,$AC:$AC)","v":0},{"$f":"SUMIFS(Sheet1!S71_OriginalBudAmnt,Sheet1!S71_SA3SubCode,$AC:$AC)","v":0},{"$f":"SUMIFS(Sheet1!S71_AdjustmentBudAmnt,Sheet1!S71_SA3SubCode,$AC:$AC)","v":0},{"$f":"SUMIFS(Sheet1!S71_AdjustmentBudAmnt,Sheet1!S71_SA3SubCode,$AC:$AC)","v":0},0,{"$f":"SUMIFS(Sheet1!S71_ASBudgetAmount,Sheet1!S71_SA3SubCode,$AC:$AC)","v":0},{"$f":"SUMIFS(Sheet1!S71_OY1BudgetAmount,Sheet1!S71_SA3SubCode,$AC:$AC)","v":0},{"$f":"SUMIFS(Sheet1!S71_OY2BudgetAmount,Sheet1!S71_SA3SubCode,$AC:$AC)","v":0},null,null,null,null,null,null,null,null,null,null,null,null,null,null,null,null,"0227"]
["  Closing Balance - Housing Stock",null,{"$f":"+SUM(C110:C113)","v":0},{"$f":"+SUM(D110:D113)","v":0},0,0,0,0,0,0,0,0]
[]
["Land"]
["  Opening Balance",null,{"$f":"SUMIFS(Sheet1!S71_PPPYearAmount,Sheet1!S71_SA3SubCode,$AC:$AC)","v":31085000},{"$f":"SUMIFS(Sheet1!S71_PPYearAmount,Sheet1!S71_SA3SubCode,$AC:$AC)","v":31085000},{"$f":"SUMIFS(Sheet1!S71_PYearAmount,Sheet1!S71_SA3SubCode,$AC:$AC)","v":31085000},{"$f":"SUMIFS(Sheet1!S71_OriginalBudAmnt,Sheet1!S71_SA3SubCode,$AC:$AC)","v":0},{"$f":"SUMIFS(Sheet1!S71_AdjustmentBudAmnt,Sheet1!S71_SA3SubCode,$AC:$AC)","v":31085000},{"$f":"SUMIFS(Sheet1!S71_AdjustmentBudAmnt,Sheet1!S71_SA3SubCode,$AC:$AC)","v":31085000},{"$f":"SUMIFS(Sheet1!CD:CD,Sheet1!S71_SA3SubCode,$AC:$AC)","v":31085000},{"$f":"SUMIFS(Sheet1!S71_ASBudgetAmount,Sheet1!S71_SA3SubCode,$AC:$AC)","v":0},{"$f":"SUMIFS(Sheet1!S71_OY1BudgetAmount,Sheet1!S71_SA3SubCode,$AC:$AC)","v":0},{"$f":"SUMIFS(Sheet1!S71_OY2BudgetAmount,Sheet1!S71_SA3SubCode,$AC:$AC)","v":0},null,null,null,null,null,null,null,null,null,null,null,null,null,null,null,null,"0230"]
["      Acquisitions",null,{"$f":"SUMIFS(Sheet1!S71_PPPYearAmount,Sheet1!S71_SA3SubCode,$AC:$AC)","v":0},{"$f":"SUMIFS(Sheet1!S71_PPYearAmount,Sheet1!S71_SA3SubCode,$AC:$AC)","v":0},{"$f":"SUMIFS(Sheet1!S71_PYearAmount,Sheet1!S71_SA3SubCode,$AC:$AC)","v":0},{"$f":"SUMIFS(Sheet1!S71_OriginalBudAmnt,Sheet1!S71_SA3SubCode,$AC:$AC)","v":0},{"$f":"SUMIFS(Sheet1!S71_AdjustmentBudAmnt,Sheet1!S71_SA3SubCode,$AC:$AC)","v":0},{"$f":"SUMIFS(Sheet1!S71_AdjustmentBudAmnt,Sheet1!S71_SA3SubCode,$AC:$AC)","v":0},{"$f":"H118","v":0},{"$f":"SUMIFS(Sheet1!S71_ASBudgetAmount,Sheet1!S71_SA3SubCode,$AC:$AC)","v":0},{"$f":"SUMIFS(Sheet1!S71_OY1BudgetAmount,Sheet1!S71_SA3SubCode,$AC:$AC)","v":0},{"$f":"SUMIFS(Sheet1!S71_OY2BudgetAmount,Sheet1!S71_SA3SubCode,$AC:$AC)","v":0},null,null,null,null,null,null,null,null,null,null,null,null,null,null,null,null,"0231"]
["      Sales",null,{"$f":"SUMIFS(Sheet1!S71_PPPYearAmount,Sheet1!S71_SA3SubCode,$AC:$AC)","v":0},{"$f":"SUMIFS(Sheet1!S71_PPYearAmount,Sheet1!S71_SA3SubCode,$AC:$AC)","v":0},{"$f":"SUMIFS(Sheet1!S71_PYearAmount,Sheet1!S71_SA3SubCode,$AC:$AC)","v":0},{"$f":"SUMIFS(Sheet1!S71_OriginalBudAmnt,Sheet1!S71_SA3SubCode,$AC:$AC)","v":0},{"$f":"SUMIFS(Sheet1!S71_AdjustmentBudAmnt,Sheet1!S71_SA3SubCode,$AC:$AC)","v":0},{"$f":"SUMIFS(Sheet1!S71_AdjustmentBudAmnt,Sheet1!S71_SA3SubCode,$AC:$AC)","v":0},0,{"$f":"SUMIFS(Sheet1!S71_ASBudgetAmount,Sheet1!S71_SA3SubCode,$AC:$AC)","v":0},{"$f":"SUMIFS(Sheet1!S71_OY1BudgetAmount,Sheet1!S71_SA3SubCode,$AC:$AC)","v":0},{"$f":"SUMIFS(Sheet1!S71_OY2BudgetAmount,Sheet1!S71_SA3SubCode,$AC:$AC)","v":0},null,null,null,null,null,null,null,null,null,null,null,null,null,null,null,null,"0232"]
["      Adjustments",null,{"$f":"SUMIFS(Sheet1!S71_PPPYearAmount,Sheet1!S71_SA3SubCode,$AC:$AC)","v":0},{"$f":"SUMIFS(Sheet1!S71_PPYearAmount,Sheet1!S71_SA3SubCode,$AC:$AC)","v":0},{"$f":"SUMIFS(Sheet1!S71_PYearAmount,Sheet1!S71_SA3SubCode,$AC:$AC)","v":0},{"$f":"SUMIFS(Sheet1!S71_OriginalBudAmnt,Sheet1!S71_SA3SubCode,$AC:$AC)","v":0},{"$f":"SUMIFS(Sheet1!S71_AdjustmentBudAmnt,Sheet1!S71_SA3SubCode,$AC:$AC)","v":0},{"$f":"SUMIFS(Sheet1!S71_AdjustmentBudAmnt,Sheet1!S71_SA3SubCode,$AC:$AC)","v":0},0,{"$f":"SUMIFS(Sheet1!S71_ASBudgetAmount,Sheet1!S71_SA3SubCode,$AC:$AC)","v":0},{"$f":"SUMIFS(Sheet1!S71_OY1BudgetAmount,Sheet1!S71_SA3SubCode,$AC:$AC)","v":0},{"$f":"SUMIFS(Sheet1!S71_OY2BudgetAmount,Sheet1!S71_SA3SubCode,$AC:$AC)","v":0},null,null,null,null,null,null,null,null,null,null,null,null,null,null,null,null,"0233"]
["     Correction of  Prior period errors",null,{"$f":"SUMIFS(Sheet1!S71_PPPYearAmount,Sheet1!S71_SA3SubCode,$AC:$AC)","v":0},{"$f":"SUMIFS(Sheet1!S71_PPYearAmount,Sheet1!S71_SA3SubCode,$AC:$AC)","v":0},{"$f":"SUMIFS(Sheet1!S71_PYearAmount,Sheet1!S71_SA3SubCode,$AC:$AC)","v":0},{"$f":"SUMIFS(Sheet1!S71_OriginalBudAmnt,Sheet1!S71_SA3SubCode,$AC:$AC)","v":0},{"$f":"SUMIFS(Sheet1!S71_AdjustmentBudAmnt,Sheet1!S71_SA3SubCode,$AC:$AC)","v":0},{"$f":"SUMIFS(Sheet1!S71_AdjustmentBudAmnt,Sheet1!S71_SA3SubCode,$AC:$AC)","v":0},0,{"$f":"SUMIFS(Sheet1!S71_ASBudgetAmount,Sheet1!S71_SA3SubCode,$AC:$AC)","v":0},{"$f":"SUMIFS(Sheet1!S71_OY1BudgetAmount,Sheet1!S71_SA3SubCode,$AC:$AC)","v":0},{"$f":"SUMIFS(Sheet1!S71_OY2BudgetAmount,Sheet1!S71_SA3SubCode,$AC:$AC)","v":0},null,null,null,null,null,null,null,null,null,null,null,null,null,null,null,null,"0234"]
["  Closing Balance - Land",null,{"$f":"SUM(C117:C121)","v":31085000},{"$f":"SUM(D117:D121)","v":31085000},31085000,0,31085000,31085000,31085000,0,0,0]
["Closing Balance - Inventory & Consumables",null,{"$f":"C61+C69+C78+C85+C93+C101+C107+C114+C122","v":36163930},{"$f":"D61+D69+D78+D85+D93+D101+D107+D114+D122","v":35578219},34210322,23370103,21888033,21888033,28849878,8688033,8068033,7398033]
[]
["Property, plant and equipment (PPE)"]
["PPE at cost/valuation (excl. finance leases)",null,{"$f":"SUMIFS(Sheet1!S71_PPPYearAmount,Sheet1!S71_SA3Code,$AC:$AC)","v":140054353},{"$f":"SUMIFS(Sheet1!S71_PPYearAmount,Sheet1!S71_SA3Code,$AC:$AC)","v":102723813},{"$f":"SUMIFS(Sheet1!S71_PYearAmount,Sheet1!S71_SA3Code,$AC:$AC)","v":104888203},{"$f":"SUMIFS(Sheet1!S71_OriginalBudAmnt,Sheet1!S71_SA3Code,$AC:$AC)","v":1099739802},{"$f":"SUMIFS(Sheet1!S71_AdjustmentBudAmnt,Sheet1!S71_SA3Code,$AC:$AC)","v":1326322170},{"$f":"SUMIFS(Sheet1!S71_AdjustmentBudAmnt,Sheet1!S71_SA3Code,$AC:$AC)","v":1326322170},{"$f":"H126","v":1326322170},{"$f":"SUMIFS(Sheet1!S71_ASBudgetAmount,Sheet1!S71_SA3Code,$AC:$AC)","v":1159928705},{"$f":"SUMIFS(Sheet1!S71_OY1BudgetAmount,Sheet1!S71_SA3Code,$AC:$AC)","v":1174894485},{"$f":"SUMIFS(Sheet1!S71_OY2BudgetAmount,Sheet1!S71_SA3Code,$AC:$AC)","v":1161083373},null,null,null,null,null,null,null,null,null,null,null,null,null,null,null,null,"0241"]
["Leases recognised as PPE",3,{"$f":"SUMIFS(Sheet1!S71_PPPYearAmount,Sheet1!S71_SA3Code,$AC:$AC)","v":0},{"$f":"SUMIFS(Sheet1!S71_PPYearAmount,Sheet1!S71_SA3Code,$AC:$AC)","v":0},{"$f":"SUMIFS(Sheet1!S71_PYearAmount,Sheet1!S71_SA3Code,$AC:$AC)","v":0},{"$f":"SUMIFS(Sheet1!S71_OriginalBudAmnt,Sheet1!S71_SA3Code,$AC:$AC)","v":1080172688},{"$f":"SUMIFS(Sheet1!S71_AdjustmentBudAmnt,Sheet1!S71_SA3Code,$AC:$AC)","v":300000},{"$f":"SUMIFS(Sheet1!S71_AdjustmentBudAmnt,Sheet1!S71_SA3Code,$AC:$AC)","v":300000},300000,{"$f":"SUMIFS(Sheet1!S71_ASBudgetAmount,Sheet1!S71_SA3Code,$AC:$AC)","v":2000000},{"$f":"SUMIFS(Sheet1!S71_OY1BudgetAmount,Sheet1!S71_SA3Code,$AC:$AC)","v":2100000},{"$f":"SUMIFS(Sheet1!S71_OY2BudgetAmount,Sheet1!S71_SA3Code,$AC:$AC)","v":2200000},null,null,null,null,null,null,null,null,null,null,null,null,null,null,null,null,"0242"]
["Less: Accumulated depreciation",null,{"$f":"-SUMIFS(Sheet1!S71_PPPYearAmount,Sheet1!S71_SA3Code,$AC:$AC)","v":397826596},{"$f":"-SUMIFS(Sheet1!S71_PPYearAmount,Sheet1!S71_SA3Code,$AC:$AC)","v":496145388},{"$f":"-SUMIFS(Sheet1!S71_PYearAmount,Sheet1!S71_SA3Code,$AC:$AC)","v":573059936},{"$f":"-SUMIFS(Sheet1!S71_OriginalBudAmnt,Sheet1!S71_SA3Code,$AC:$AC)","v":0},{"$f":"-SUMIFS(Sheet1!S71_AdjustmentBudAmnt,Sheet1!S71_SA3Code,$AC:$AC)","v":178983593},{"$f":"-SUMIFS(Sheet1!S71_AdjustmentBudAmnt,Sheet1!S71_SA3Code,$AC:$AC)","v":178983593},178983593,{"$f":"-SUMIFS(Sheet1!S71_ASBudgetAmount,Sheet1!S71_SA3Code,$AC:$AC)","v":199834397},{"$f":"-SUMIFS(Sheet1!S71_OY1BudgetAmount,Sheet1!S71_SA3Code,$AC:$AC)","v":200834397},{"$f":"-SUMIFS(Sheet1!S71_OY2BudgetAmount,Sheet1!S71_SA3Code,$AC:$AC)","v":201834397},null,null,null,null,null,null,null,null,null,null,null,null,null,null,null,null,"0243"]
[{"$f":"\"Total \"&A125","v":"Total Property, plant and equipment (PPE)"},2,{"$f":"SUM(C126:C127)-C128","v":-257772243},{"$f":"SUM(D126:D127)-D128","v":-393421575},-468171733,2179912490,1147638577,1147638577,1147638577,962094308,976160088,961448976]
[]
["LIABILITIES"]
[{"$f":"'A6-FinPos'!A28&\" - \"&'A6-FinPos'!A30","v":"Current liabilities - Financial liabilities"}]
["Short term loans (other than bank overdraft)",null,{"$f":"SUMIFS(Sheet1!S71_PPPYearAmount,Sheet1!S71_SA3Code,$AC:$AC)","v":0},{"$f":"SUMIFS(Sheet1!S71_PPYearAmount,Sheet1!S71_SA3Code,$AC:$AC)","v":0},{"$f":"SUMIFS(Sheet1!S71_PYearAmount,Sheet1!S71_SA3Code,$AC:$AC)","v":0},{"$f":"SUMIFS(Sheet1!S71_OriginalBudAmnt,Sheet1!S71_SA3Code,$AC:$AC)","v":0},{"$f":"SUMIFS(Sheet1!S71_AdjustmentBudAmnt,Sheet1!S71_SA3Code,$AC:$AC)","v":0},{"$f":"SUMIFS(Sheet1!S71_AdjustmentBudAmnt,Sheet1!S71_SA3Code,$AC:$AC)","v":0},{"$f":"H133","v":0},{"$f":"SUMIFS(Sheet1!S71_ASBudgetAmount,Sheet1!S71_SA3Code,$AC:$AC)","v":0},{"$f":"SUMIFS(Sheet1!S71_OY1BudgetAmount,Sheet1!S71_SA3Code,$AC:$AC)","v":0},{"$f":"SUMIFS(Sheet1!S71_OY2BudgetAmount,Sheet1!S71_SA3Code,$AC:$AC)","v":0},null,null,null,null,null,null,null,null,null,null,null,null,null,null,null,null,"0341"]
["Current portion of long-term liabilities",null,{"$f":"SUMIFS(Sheet1!S71_PPPYearAmount,Sheet1!S71_SA3Code,$AC:$AC)","v":480166},{"$f":"SUMIFS(Sheet1!S71_PPYearAmount,Sheet1!S71_SA3Code,$AC:$AC)","v":0},{"$f":"SUMIFS(Sheet1!S71_PYearAmount,Sheet1!S71_SA3Code,$AC:$AC)","v":0},{"$f":"SUMIFS(Sheet1!S71_OriginalBudAmnt,Sheet1!S71_SA3Code,$AC:$AC)","v":0},{"$f":"SUMIFS(Sheet1!S71_AdjustmentBudAmnt,Sheet1!S71_SA3Code,$AC:$AC)","v":0},{"$f":"SUMIFS(Sheet1!S71_AdjustmentBudAmnt,Sheet1!S71_SA3Code,$AC:$AC)","v":0},0,{"$f":"SUMIFS(Sheet1!S71_ASBudgetAmount,Sheet1!S71_SA3Code,$AC:$AC)","v":0},{"$f":"SUMIFS(Sheet1!S71_OY1BudgetAmount,Sheet1!S71_SA3Code,$AC:$AC)","v":0},{"$f":"SUMIFS(Sheet1!S71_OY2BudgetAmount,Sheet1!S71_SA3Code,$AC:$AC)","v":0},null,null,null,null,null,null,null,null,null,null,null,null,null,null,null,null,"0342"]
[{"$f":"\"Total \"&A132","v":"Total Current liabilities - Financial liabilities"},null,{"$f":"SUM(C133:C134)","v":480166},{"$f":"SUM(D133:D134)","v":0},0,0,0,0,0,0,0,0]
[]
[{"$f":"'A6-FinPos'!A32","v":"Trade and other payables from exchange transactions"}]
["Trade and other payables from exchange transactions",5,{"$f":"SUMIFS(Sheet1!S71_PPPYearAmount,Sheet1!S71_SA3Code,$AC:$AC)","v":120463902},{"$f":"SUMIFS(Sheet1!S71_PPYearAmount,Sheet1!S71_SA3Code,$AC:$AC)","v":141352740},{"$f":"SUMIFS(Sheet1!S71_PYearAmount,Sheet1!S71_SA3Code,$AC:$AC)","v":166300374},{"$f":"-SUMIFS(Sheet1!S71_OriginalBudAmnt,Sheet1!S71_SA3Code,$AC:$AC)","v":-139610975},{"$f":"-SUMIFS(Sheet1!S71_AdjustmentBudAmnt,Sheet1!S71_SA3Code,$AC:$AC)","v":129064365},{"$f":"-SUMIFS(Sheet1!S71_AdjustmentBudAmnt,Sheet1!S71_SA3Code,$AC:$AC)","v":129064365},{"$f":"H138","v":129064365},{"$f":"-SUMIFS(Sheet1!S71_ASBudgetAmount,Sheet1!S71_SA3Code,$AC:$AC)","v":76734299.850000024},{"$f":"-SUMIFS(Sheet1!S71_OY1BudgetAmount,Sheet1!S71_SA3Code,$AC:$AC)","v":74273344.657650024},{"$f":"-SUMIFS(Sheet1!S71_OY2BudgetAmount,Sheet1!S71_SA3Code,$AC:$AC)","v":91748976.795559585},null,null,null,null,null,null,null,null,null,null,null,null,null,null,null,null,"0361"]
["Other trade payables from exchange transactions",null,{"$f":"SUMIFS(Sheet1!S71_PPPYearAmount,Sheet1!S71_SA3Code,$AC:$AC)","v":0},{"$f":"SUMIFS(Sheet1!S71_PPYearAmount,Sheet1!S71_SA3Code,$AC:$AC)","v":0},{"$f":"SUMIFS(Sheet1!S71_PYearAmount,Sheet1!S71_SA3Code,$AC:$AC)","v":0},{"$f":"-SUMIFS(Sheet1!S71_OriginalBudAmnt,Sheet1!S71_SA3Code,$AC:$AC)","v":0},{"$f":"-SUMIFS(Sheet1!S71_AdjustmentBudAmnt,Sheet1!S71_SA3Code,$AC:$AC)","v":0},{"$f":"-SUMIFS(Sheet1!S71_AdjustmentBudAmnt,Sheet1!S71_SA3Code,$AC:$AC)","v":0},0,{"$f":"-SUMIFS(Sheet1!S71_ASBudgetAmount,Sheet1!S71_SA3Code,$AC:$AC)","v":0},{"$f":"-SUMIFS(Sheet1!S71_OY1BudgetAmount,Sheet1!S71_SA3Code,$AC:$AC)","v":0},{"$f":"-SUMIFS(Sheet1!S71_OY2BudgetAmount,Sheet1!S71_SA3Code,$AC:$AC)","v":0},null,null,null,null,null,null,null,null,null,null,null,null,null,null,null,null,"0362"]
["Trade payables from Non-exchange transactions: Unspent conditional Grants",null,{"$f":"SUMIFS(Sheet1!S71_PPPYearAmount,Sheet1!S71_SA3Code,$AC:$AC)","v":0},{"$f":"SUMIFS(Sheet1!S71_PPYearAmount,Sheet1!S71_SA3Code,$AC:$AC)","v":0},{"$f":"SUMIFS(Sheet1!S71_PYearAmount,Sheet1!S71_SA3Code,$AC:$AC)","v":10591733},{"$f":"-SUMIFS(Sheet1!S71_OriginalBudAmnt,Sheet1!S71_SA3Code,$AC:$AC)","v":0},{"$f":"-SUMIFS(Sheet1!S71_AdjustmentBudAmnt,Sheet1!S71_SA3Code,$AC:$AC)","v":0},{"$f":"-SUMIFS(Sheet1!S71_AdjustmentBudAmnt,Sheet1!S71_SA3Code,$AC:$AC)","v":0},0,{"$f":"-SUMIFS(Sheet1!S71_ASBudgetAmount,Sheet1!S71_SA3Code,$AC:$AC)","v":0},{"$f":"-SUMIFS(Sheet1!S71_OY1BudgetAmount,Sheet1!S71_SA3Code,$AC:$AC)","v":0},{"$f":"-SUMIFS(Sheet1!S71_OY2BudgetAmount,Sheet1!S71_SA3Code,$AC:$AC)","v":0},null,null,null,null,null,null,null,null,null,null,null,null,null,null,null,null,"0363"]
["Trade payables from Non-exchange transactions: Other",null,{"$f":"SUMIFS(Sheet1!S71_PPPYearAmount,Sheet1!S71_SA3Code,$AC:$AC)","v":0},{"$f":"SUMIFS(Sheet1!S71_PPYearAmount,Sheet1!S71_SA3Code,$AC:$AC)","v":0},{"$f":"SUMIFS(Sheet1!S71_PYearAmount,Sheet1!S71_SA3Code,$AC:$AC)","v":0},{"$f":"-SUMIFS(Sheet1!S71_OriginalBudAmnt,Sheet1!S71_SA3Code,$AC:$AC)","v":0},{"$f":"-SUMIFS(Sheet1!S71_AdjustmentBudAmnt,Sheet1!S71_SA3Code,$AC:$AC)","v":0},{"$f":"-SUMIFS(Sheet1!S71_AdjustmentBudAmnt,Sheet1!S71_SA3Code,$AC:$AC)","v":0},0,{"$f":"-SUMIFS(Sheet1!S71_ASBudgetAmount,Sheet1!S71_SA3Code,$AC:$AC)","v":0},{"$f":"-SUMIFS(Sheet1!S71_OY1BudgetAmount,Sheet1!S71_SA3Code,$AC:$AC)","v":0},{"$f":"-SUMIFS(Sheet1!S71_OY2BudgetAmount,Sheet1!S71_SA3Code,$AC:$AC)","v":0},null,null,null,null,null,null,null,null,null,null,null,null,null,null,null,null,"0364"]
["VAT",null,{"$f":"SUMIFS(Sheet1!S71_PPPYearAmount,Sheet1!S71_SA3Code,$AC:$AC)","v":7412707},{"$f":"SUMIFS(Sheet1!S71_PPYearAmount,Sheet1!S71_SA3Code,$AC:$AC)","v":11771715},{"$f":"SUMIFS(Sheet1!S71_PYearAmount,Sheet1!S71_SA3Code,$AC:$AC)","v":16040708},{"$f":"-SUMIFS(Sheet1!S71_OriginalBudAmnt,Sheet1!S71_SA3Code,$AC:$AC)","v":0},{"$f":"-SUMIFS(Sheet1!S71_AdjustmentBudAmnt,Sheet1!S71_SA3Code,$AC:$AC)","v":1374750},{"$f":"-SUMIFS(Sheet1!S71_AdjustmentBudAmnt,Sheet1!S71_SA3Code,$AC:$AC)","v":1374750},1374750,{"$f":"-SUMIFS(Sheet1!S71_ASBudgetAmount,Sheet1!S71_SA3Code,$AC:$AC)","v":-2928455},{"$f":"-SUMIFS(Sheet1!S71_OY1BudgetAmount,Sheet1!S71_SA3Code,$AC:$AC)","v":-3075648},{"$f":"-SUMIFS(Sheet1!S71_OY2BudgetAmount,Sheet1!S71_SA3Code,$AC:$AC)","v":-3223652},null,null,null,null,null,null,null,null,null,null,null,null,null,null,null,null,"0365"]
[{"$f":"\"Total \"&A137","v":"Total Trade and other payables from exchange transactions"},2,{"$f":"SUM(C138:C142)","v":127876609},153124455,192932815,-139610975,130439115,130439115,130439115,73805844.850000024,71197696.657650024,{"$f":"SUM(L138:L142)","v":88525324.795559585}]
["Non current liabilities - Financial liabilities"]
["Borrowing",4,{"$f":"SUMIFS(Sheet1!S71_PPPYearAmount,Sheet1!S71_SA3Code,$AC:$AC)","v":0},{"$f":"SUMIFS(Sheet1!S71_PPYearAmount,Sheet1!S71_SA3Code,$AC:$AC)","v":0},{"$f":"SUMIFS(Sheet1!S71_PYearAmount,Sheet1!S71_SA3Code,$AC:$AC)","v":0},{"$f":"-SUMIFS(Sheet1!S71_OriginalBudAmnt,Sheet1!S71_SA3Code,$AC:$AC)","v":0},{"$f":"-SUMIFS(Sheet1!S71_AdjustmentBudAmnt,Sheet1!S71_SA3Code,$AC:$AC)","v":0},{"$f":"-SUMIFS(Sheet1!S71_AdjustmentBudAmnt,Sheet1!S71_SA3Code,$AC:$AC)","v":0},{"$f":"H145","v":0},{"$f":"-SUMIFS(Sheet1!S71_ASBudgetAmount,Sheet1!S71_SA3Code,$AC:$AC)","v":0},{"$f":"-SUMIFS(Sheet1!S71_OY1BudgetAmount,Sheet1!S71_SA3Code,$AC:$AC)","v":0},{"$f":"-SUMIFS(Sheet1!S71_OY2BudgetAmount,Sheet1!S71_SA3Code,$AC:$AC)","v":0},null,null,null,null,null,null,null,null,null,null,null,null,null,null,null,null,"0401"]
["Other financial liabilities",null,{"$f":"SUMIFS(Sheet1!S71_PPPYearAmount,Sheet1!S71_SA3Code,$AC:$AC)","v":0},{"$f":"SUMIFS(Sheet1!S71_PPYearAmount,Sheet1!S71_SA3Code,$AC:$AC)","v":0},{"$f":"SUMIFS(Sheet1!S71_PYearAmount,Sheet1!S71_SA3Code,$AC:$AC)","v":0},{"$f":"-SUMIFS(Sheet1!S71_OriginalBudAmnt,Sheet1!S71_SA3Code,$AC:$AC)","v":0},{"$f":"-SUMIFS(Sheet1!S71_AdjustmentBudAmnt,Sheet1!S71_SA3Code,$AC:$AC)","v":0},{"$f":"-SUMIFS(Sheet1!S71_AdjustmentBudAmnt,Sheet1!S71_SA3Code,$AC:$AC)","v":0},0,{"$f":"-SUMIFS(Sheet1!S71_ASBudgetAmount,Sheet1!S71_SA3Code,$AC:$AC)","v":0},{"$f":"-SUMIFS(Sheet1!S71_OY1BudgetAmount,Sheet1!S71_SA3Code,$AC:$AC)","v":0},{"$f":"-SUMIFS(Sheet1!S71_OY2BudgetAmount,Sheet1!S71_SA3Code,$AC:$AC)","v":0},null,null,null,null,null,null,null,null,null,null,null,null,null,null,null,null,"0402"]
["Total Non current liabilities - Financial liabilities",null,{"$f":"SUM(C145:C146)","v":0},{"$f":"SUM(D145:D146)","v":0},0,0,0,0,0,0,0,0]
[]
["Provisions"]
["Retirement benefits",null,{"$f":"SUMIFS(Sheet1!S71_PPPYearAmount,Sheet1!S71_SA3Code,$AC:$AC)","v":0},{"$f":"SUMIFS(Sheet1!S71_PPYearAmount,Sheet1!S71_SA3Code,$AC:$AC)","v":0},{"$f":"SUMIFS(Sheet1!S71_PYearAmount,Sheet1!S71_SA3Code,$AC:$AC)","v":0},{"$f":"-SUMIFS(Sheet1!S71_OriginalBudAmnt,Sheet1!S71_SA3Code,$AC:$AC)","v":0},{"$f":"-SUMIFS(Sheet1!S71_AdjustmentBudAmnt,Sheet1!S71_SA3Code,$AC:$AC)","v":0},{"$f":"-SUMIFS(Sheet1!S71_AdjustmentBudAmnt,Sheet1!S71_SA3Code,$AC:$AC)","v":0},{"$f":"H150","v":0},{"$f":"-SUMIFS(Sheet1!S71_ASBudgetAmount,Sheet1!S71_SA3Code,$AC:$AC)","v":0},{"$f":"-SUMIFS(Sheet1!S71_OY1BudgetAmount,Sheet1!S71_SA3Code,$AC:$AC)","v":0},{"$f":"-SUMIFS(Sheet1!S71_OY2BudgetAmount,Sheet1!S71_SA3Code,$AC:$AC)","v":0},null,null,null,null,null,null,null,null,null,null,null,null,null,null,null,null,"0411"]
[null,null,{"$f":"SUMIFS(Sheet1!S71_PPPYearAmount,Sheet1!S71_SA3Code,$AC:$AC)","v":0},{"$f":"SUMIFS(Sheet1!S71_PPYearAmount,Sheet1!S71_SA3Code,$AC:$AC)","v":0},{"$f":"SUMIFS(Sheet1!S71_PYearAmount,Sheet1!S71_SA3Code,$AC:$AC)","v":0},{"$f":"SUMIFS(Sheet1!S71_OriginalBudAmnt,Sheet1!S71_SA3Code,$AC:$AC)","v":0},{"$f":"SUMIFS(Sheet1!S71_AdjustmentBudAmnt,Sheet1!S71_SA3Code,$AC:$AC)","v":0},{"$f":"SUMIFS(Sheet1!S71_AdjustmentBudAmnt,Sheet1!S71_SA3Code,$AC:$AC)","v":0},0,{"$f":"SUMIFS(Sheet1!S71_ASBudgetAmount,Sheet1!S71_SA3Code,$AC:$AC)","v":0},{"$f":"SUMIFS(Sheet1!S71_OY1BudgetAmount,Sheet1!S71_SA3Code,$AC:$AC)","v":0},{"$f":"SUMIFS(Sheet1!S71_OY2BudgetAmount,Sheet1!S71_SA3Code,$AC:$AC)","v":0}]
["Refuse landfill site rehabilitation",null,{"$f":"SUMIFS(Sheet1!S71_PPPYearAmount,Sheet1!S71_SA3Code,$AC:$AC)","v":0},{"$f":"SUMIFS(Sheet1!S71_PPYearAmount,Sheet1!S71_SA3Code,$AC:$AC)","v":0},{"$f":"SUMIFS(Sheet1!S71_PYearAmount,Sheet1!S71_SA3Code,$AC:$AC)","v":0},{"$f":"-SUMIFS(Sheet1!S71_OriginalBudAmnt,Sheet1!S71_SA3Code,$AC:$AC)","v":39005018},{"$f":"-SUMIFS(Sheet1!S71_AdjustmentBudAmnt,Sheet1!S71_SA3Code,$AC:$AC)","v":39005018},{"$f":"-SUMIFS(Sheet1!S71_AdjustmentBudAmnt,Sheet1!S71_SA3Code,$AC:$AC)","v":39005018},39005018,{"$f":"-SUMIFS(Sheet1!S71_ASBudgetAmount,Sheet1!S71_SA3Code,$AC:$AC)","v":39005018},{"$f":"-SUMIFS(Sheet1!S71_OY1BudgetAmount,Sheet1!S71_SA3Code,$AC:$AC)","v":39005018},{"$f":"-SUMIFS(Sheet1!S71_OY2BudgetAmount,Sheet1!S71_SA3Code,$AC:$AC)","v":39005018},null,null,null,null,null,null,null,null,null,null,null,null,null,null,null,null,"0412"]
["Other",null,{"$f":"SUMIFS(Sheet1!S71_PPPYearAmount,Sheet1!S71_SA3Code,$AC:$AC)","v":0},{"$f":"SUMIFS(Sheet1!S71_PPYearAmount,Sheet1!S71_SA3Code,$AC:$AC)","v":0},{"$f":"SUMIFS(Sheet1!S71_PYearAmount,Sheet1!S71_SA3Code,$AC:$AC)","v":0},{"$f":"-SUMIFS(Sheet1!S71_OriginalBudAmnt,Sheet1!S71_SA3Code,$AC:$AC)","v":0},{"$f":"-SUMIFS(Sheet1!S71_AdjustmentBudAmnt,Sheet1!S71_SA3Code,$AC:$AC)","v":0},{"$f":"-SUMIFS(Sheet1!S71_AdjustmentBudAmnt,Sheet1!S71_SA3Code,$AC:$AC)","v":0},0,{"$f":"-SUMIFS(Sheet1!S71_ASBudgetAmount,Sheet1!S71_SA3Code,$AC:$AC)","v":0},{"$f":"-SUMIFS(Sheet1!S71_OY1BudgetAmount,Sheet1!S71_SA3Code,$AC:$AC)","v":0},{"$f":"-SUMIFS(Sheet1!S71_OY2BudgetAmount,Sheet1!S71_SA3Code,$AC:$AC)","v":0},null,null,null,null,null,null,null,null,null,null,null,null,null,null,null,null,"0413"]
[{"$f":"\"Total \"&A149","v":"Total Provisions"},null,{"$f":"+C150+C152+C153","v":0},0,0,39005018,39005018,39005018,{"$f":"+I150+I152+I153","v":39005018},{"$f":"+J150+J152+J153","v":39005018},39005018,39005018]
[]
["CHANGES IN NET ASSETS"]
[{"$f":"'A6-FinPos'!A47","v":"Accumulated surplus/(deficit)"}]
[{"$f":"A157&\" - opening balance\"","v":"Accumulated surplus/(deficit) - opening balance"},null,-215928024,-95353866,-59845505,2214026992,1645850075.820128,1645850075.820128,1645850075.820128,1057384114,1057384114,1057384114,null,null,null,null,null,null,null,null,null,null,null,null,null,null,null,null,"0461"]
["GRAP adjustments",null,{"$f":"SUMIFS(Sheet1!S71_PPPYearAmount,Sheet1!S71_SA3Code,$AC:$AC)","v":0},{"$f":"SUMIFS(Sheet1!S71_PPYearAmount,Sheet1!S71_SA3Code,$AC:$AC)","v":0},{"$f":"SUMIFS(Sheet1!S71_PYearAmount,Sheet1!S71_SA3Code,$AC:$AC)","v":0},{"$f":"SUMIFS(Sheet1!S71_OriginalBudAmnt,Sheet1!S71_SA3Code,$AC:$AC)","v":0},{"$f":"SUMIFS(Sheet1!S71_AdjustmentBudAmnt,Sheet1!S71_SA3Code,$AC:$AC)","v":0},{"$f":"SUMIFS(Sheet1!S71_AdjustmentBudAmnt,Sheet1!S71_SA3Code,$AC:$AC)","v":0},{"$f":"H159","v":0},67019335.356794834,1760964.406794548,-64179202.335555315,null,null,null,null,null,null,null,null,null,null,null,null,null,null,null,null,"0462"]
["Restated balance",null,{"$f":"SUM(C158:C159)","v":-215928024},{"$f":"SUM(D158:D159)","v":-95353866},{"$f":"SUM(E158:E159)","v":-59845505},{"$f":"SUM(F158:F159)","v":2214026992},1645850075.820128,1645850075.820128,1645850075.820128,1124403449.3567948,1059145078.4067945,993204911.66444468]
[{"$f":"'A4-FinPerf RE'!A48","v":"Surplus/(Deficit)"},null,{"$f":"'A4-FinPerf RE'!C56","v":320469580},{"$f":"'A4-FinPerf RE'!D56","v":156248976},{"$f":"'A4-FinPerf RE'!E56","v":91417282},{"$f":"'A4-FinPerf RE'!F56","v":51552427},{"$f":"'A4-FinPerf RE'!G56","v":45126944},{"$f":"'A4-FinPerf RE'!H56","v":45126944},{"$f":"'A4-FinPerf RE'!I56","v":45126944},{"$f":"'A4-FinPerf RE'!J56","v":34835709},{"$f":"'A4-FinPerf RE'!K56","v":50209486},{"$f":"'A4-FinPerf RE'!L56","v":32648225},null,null,null,null,null,null,null,null,null,null,null,null,null,null,null,null,"0464"]
[null,null,null,null,null,null,null,null,null,null,null,null,null,null,null,null,null,null,null,null,null,null,null,null,null,null,null,null,"0464"]
["Transfers to/from Reserves",null,{"$f":"SUMIFS(Sheet1!S71_PPPYearAmount,Sheet1!S71_SA3Code,$AC:$AC)","v":0},{"$f":"SUMIFS(Sheet1!S71_PPYearAmount,Sheet1!S71_SA3Code,$AC:$AC)","v":0},{"$f":"SUMIFS(Sheet1!S71_PYearAmount,Sheet1!S71_SA3Code,$AC:$AC)","v":0},{"$f":"SUMIFS(Sheet1!S71_OriginalBudAmnt,Sheet1!S71_SA3Code,$AC:$AC)","v":0},{"$f":"SUMIFS(Sheet1!S71_AdjustmentBudAmnt,Sheet1!S71_SA3Code,$AC:$AC)","v":0},{"$f":"SUMIFS(Sheet1!S71_AdjustmentBudAmnt,Sheet1!S71_SA3Code,$AC:$AC)","v":0},{"$f":"H163","v":0},{"$f":"SUMIFS(Sheet1!S71_ASBudgetAmount,Sheet1!S71_SA3Code,$AC:$AC)","v":0},{"$f":"SUMIFS(Sheet1!S71_OY1BudgetAmount,Sheet1!S71_SA3Code,$AC:$AC)","v":0},{"$f":"SUMIFS(Sheet1!S71_OY2BudgetAmount,Sheet1!S71_SA3Code,$AC:$AC)","v":0},null,null,null,null,null,null,null,null,null,null,null,null,null,null,null,null,"0465"]
["Depreciation offsets",null,{"$f":"SUMIFS(Sheet1!S71_PPPYearAmount,Sheet1!S71_SA3Code,$AC:$AC)","v":0},{"$f":"SUMIFS(Sheet1!S71_PPYearAmount,Sheet1!S71_SA3Code,$AC:$AC)","v":0},{"$f":"SUMIFS(Sheet1!S71_PYearAmount,Sheet1!S71_SA3Code,$AC:$AC)","v":0},{"$f":"SUMIFS(Sheet1!S71_OriginalBudAmnt,Sheet1!S71_SA3Code,$AC:$AC)","v":0},{"$f":"SUMIFS(Sheet1!S71_AdjustmentBudAmnt,Sheet1!S71_SA3Code,$AC:$AC)","v":0},{"$f":"SUMIFS(Sheet1!S71_AdjustmentBudAmnt,Sheet1!S71_SA3Code,$AC:$AC)","v":0},0,{"$f":"SUMIFS(Sheet1!S71_ASBudgetAmount,Sheet1!S71_SA3Code,$AC:$AC)","v":0},{"$f":"SUMIFS(Sheet1!S71_OY1BudgetAmount,Sheet1!S71_SA3Code,$AC:$AC)","v":0},{"$f":"SUMIFS(Sheet1!S71_OY2BudgetAmount,Sheet1!S71_SA3Code,$AC:$AC)","v":0},null,null,null,null,null,null,null,null,null,null,null,null,null,null,null,null,"0466"]
["Other adjustments",null,{"$f":"SUMIFS(Sheet1!S71_PPPYearAmount,Sheet1!S71_SA3Code,$AC:$AC)","v":0},{"$f":"SUMIFS(Sheet1!S71_PPYearAmount,Sheet1!S71_SA3Code,$AC:$AC)","v":0},{"$f":"SUMIFS(Sheet1!S71_PYearAmount,Sheet1!S71_SA3Code,$AC:$AC)","v":0},{"$f":"SUMIFS(Sheet1!S71_OriginalBudAmnt,Sheet1!S71_SA3Code,$AC:$AC)","v":0},{"$f":"SUMIFS(Sheet1!S71_AdjustmentBudAmnt,Sheet1!S71_SA3Code,$AC:$AC)","v":0},{"$f":"SUMIFS(Sheet1!S71_AdjustmentBudAmnt,Sheet1!S71_SA3Code,$AC:$AC)","v":0},0,{"$f":"SUMIFS(Sheet1!S71_ASBudgetAmount,Sheet1!S71_SA3Code,$AC:$AC)","v":0},{"$f":"SUMIFS(Sheet1!S71_OY1BudgetAmount,Sheet1!S71_SA3Code,$AC:$AC)","v":0},{"$f":"SUMIFS(Sheet1!S71_OY2BudgetAmount,Sheet1!S71_SA3Code,$AC:$AC)","v":0},null,null,null,null,null,null,null,null,null,null,null,null,null,null,null,null,"0467"]
["Accumulated Surplus/(Deficit)",1,{"$f":"SUM(C160:C165)","v":104541556},{"$f":"SUM(D160:D165)","v":60895110},{"$f":"SUM(E160:E165)","v":31571777},2265579419,1690977019.820128,1690977019.820128,1690977019.820128,1159239158.3567948,1109354564.4067945,1025853136.6644447]
["Reserves"]
["Housing Development Fund",null,{"$f":"SUMIFS(Sheet1!S71_PPPYearAmount,Sheet1!S71_SA3Code,$AC:$AC)","v":0},{"$f":"SUMIFS(Sheet1!S71_PPYearAmount,Sheet1!S71_SA3Code,$AC:$AC)","v":0},{"$f":"SUMIFS(Sheet1!S71_PYearAmount,Sheet1!S71_SA3Code,$AC:$AC)","v":0},{"$f":"SUMIFS(Sheet1!S71_OriginalBudAmnt,Sheet1!S71_SA3Code,$AC:$AC)","v":0},{"$f":"SUMIFS(Sheet1!S71_AdjustmentBudAmnt,Sheet1!S71_SA3Code,$AC:$AC)","v":0},{"$f":"SUMIFS(Sheet1!S71_AdjustmentBudAmnt,Sheet1!S71_SA3Code,$AC:$AC)","v":0},{"$f":"H168","v":0},{"$f":"SUMIFS(Sheet1!S71_ASBudgetAmount,Sheet1!S71_SA3Code,$AC:$AC)","v":0},{"$f":"SUMIFS(Sheet1!S71_OY1BudgetAmount,Sheet1!S71_SA3Code,$AC:$AC)","v":0},{"$f":"SUMIFS(Sheet1!S71_OY2BudgetAmount,Sheet1!S71_SA3Code,$AC:$AC)","v":0},null,null,null,null,null,null,null,null,null,null,null,null,null,null,null,null,"0471"]
["Capital replacement",null,{"$f":"SUMIFS(Sheet1!S71_PPPYearAmount,Sheet1!S71_SA3Code,$AC:$AC)","v":0},{"$f":"SUMIFS(Sheet1!S71_PPYearAmount,Sheet1!S71_SA3Code,$AC:$AC)","v":0},{"$f":"SUMIFS(Sheet1!S71_PYearAmount,Sheet1!S71_SA3Code,$AC:$AC)","v":0},{"$f":"SUMIFS(Sheet1!S71_OriginalBudAmnt,Sheet1!S71_SA3Code,$AC:$AC)","v":0},{"$f":"SUMIFS(Sheet1!S71_AdjustmentBudAmnt,Sheet1!S71_SA3Code,$AC:$AC)","v":0},{"$f":"SUMIFS(Sheet1!S71_AdjustmentBudAmnt,Sheet1!S71_SA3Code,$AC:$AC)","v":0},0,{"$f":"SUMIFS(Sheet1!S71_ASBudgetAmount,Sheet1!S71_SA3Code,$AC:$AC)","v":0},{"$f":"SUMIFS(Sheet1!S71_OY1BudgetAmount,Sheet1!S71_SA3Code,$AC:$AC)","v":0},{"$f":"SUMIFS(Sheet1!S71_OY2BudgetAmount,Sheet1!S71_SA3Code,$AC:$AC)","v":0},null,null,null,null,null,null,null,null,null,null,null,null,null,null,null,null,"0472"]
["Self-insurance",null,{"$f":"SUMIFS(Sheet1!S71_PPPYearAmount,Sheet1!S71_SA3Code,$AC:$AC)","v":0},{"$f":"SUMIFS(Sheet1!S71_PPYearAmount,Sheet1!S71_SA3Code,$AC:$AC)","v":0},{"$f":"SUMIFS(Sheet1!S71_PYearAmount,Sheet1!S71_SA3Code,$AC:$AC)","v":0},{"$f":"SUMIFS(Sheet1!S71_OriginalBudAmnt,Sheet1!S71_SA3Code,$AC:$AC)","v":0},{"$f":"SUMIFS(Sheet1!S71_AdjustmentBudAmnt,Sheet1!S71_SA3Code,$AC:$AC)","v":0},{"$f":"SUMIFS(Sheet1!S71_AdjustmentBudAmnt,Sheet1!S71_SA3Code,$AC:$AC)","v":0},0,{"$f":"SUMIFS(Sheet1!S71_ASBudgetAmount,Sheet1!S71_SA3Code,$AC:$AC)","v":0},{"$f":"SUMIFS(Sheet1!S71_OY1BudgetAmount,Sheet1!S71_SA3Code,$AC:$AC)","v":0},{"$f":"SUMIFS(Sheet1!S71_OY2BudgetAmount,Sheet1!S71_SA3Code,$AC:$AC)","v":0},null,null,null,null,null,null,null,null,null,null,null,null,null,null,null,null,"0473"]
["Other reserves",null,{"$f":"SUMIFS(Sheet1!S71_PPPYearAmount,Sheet1!S71_SA3Code,$AC:$AC)","v":0},{"$f":"SUMIFS(Sheet1!S71_PPYearAmount,Sheet1!S71_SA3Code,$AC:$AC)","v":0},{"$f":"SUMIFS(Sheet1!S71_PYearAmount,Sheet1!S71_SA3Code,$AC:$AC)","v":0},{"$f":"SUMIFS(Sheet1!S71_OriginalBudAmnt,Sheet1!S71_SA3Code,$AC:$AC)","v":0},{"$f":"SUMIFS(Sheet1!S71_AdjustmentBudAmnt,Sheet1!S71_SA3Code,$AC:$AC)","v":0},{"$f":"SUMIFS(Sheet1!S71_AdjustmentBudAmnt,Sheet1!S71_SA3Code,$AC:$AC)","v":0},0,{"$f":"SUMIFS(Sheet1!S71_ASBudgetAmount,Sheet1!S71_SA3Code,$AC:$AC)","v":0},{"$f":"SUMIFS(Sheet1!S71_OY1BudgetAmount,Sheet1!S71_SA3Code,$AC:$AC)","v":0},{"$f":"SUMIFS(Sheet1!S71_OY2BudgetAmount,Sheet1!S71_SA3Code,$AC:$AC)","v":0},null,null,null,null,null,null,null,null,null,null,null,null,null,null,null,null,"0474"]
["Revaluation",null,{"$f":"SUMIFS(Sheet1!S71_PPPYearAmount,Sheet1!S71_SA3Code,$AC:$AC)","v":0},{"$f":"SUMIFS(Sheet1!S71_PPYearAmount,Sheet1!S71_SA3Code,$AC:$AC)","v":0},{"$f":"SUMIFS(Sheet1!S71_PYearAmount,Sheet1!S71_SA3Code,$AC:$AC)","v":0},{"$f":"SUMIFS(Sheet1!S71_OriginalBudAmnt,Sheet1!S71_SA3Code,$AC:$AC)","v":0},{"$f":"SUMIFS(Sheet1!S71_AdjustmentBudAmnt,Sheet1!S71_SA3Code,$AC:$AC)","v":0},{"$f":"SUMIFS(Sheet1!S71_AdjustmentBudAmnt,Sheet1!S71_SA3Code,$AC:$AC)","v":0},0,{"$f":"SUMIFS(Sheet1!S71_ASBudgetAmount,Sheet1!S71_SA3Code,$AC:$AC)","v":0},{"$f":"SUMIFS(Sheet1!S71_OY1BudgetAmount,Sheet1!S71_SA3Code,$AC:$AC)","v":0},{"$f":"SUMIFS(Sheet1!S71_OY2BudgetAmount,Sheet1!S71_SA3Code,$AC:$AC)","v":0},null,null,null,null,null,null,null,null,null,null,null,null,null,null,null,null,"0475"]
["Total Reserves",2,{"$f":"SUM(C168:C172)","v":0},0,0,0,0,0,0,0,0,0]
[{"$f":"'A6-FinPos'!A50","v":"TOTAL COMMUNITY WEALTH/EQUITY"},2,{"$f":"C166+C173","v":104541556},60895110,31571777,2265579419,1690977019.820128,1690977019.820128,1690977019.820128,1159239158.3567948,1109354564.4067945,1025853136.6644447]
[]
[{"$f":"head27a","v":"References"}]
[{"$f":"\"1. Must reconcile with \"&'Template names'!F103","v":"1. Must reconcile with Table A4 Budgeted Financial Performance (revenue and expenditure)"}]
[{"$f":"\"2. Must reconcile with \"&'Template names'!F105","v":"2. Must reconcile with Table A6 Budgeted Financial Position"}]
["3. Leases treated as assets to be depreciated as the same as purchased/constructed assets.  Includes PPP asset element accounted for as finance leases"]
["4. Borrowing must reconcile to Table A17"]
["5. Trade Payable should only include Trade Payables from Exchance Transactions (\"True Creditors\")"]
["6. Inventory Consumed - Water - included under \"Inventory Consumed\" on Table A4 - Detail to be submitted on Table SA1"]
["7. Inventry Consumed Other - included under \"Inventory Consumed\" on Table A4 - Detail to be submitted on Table SA1"]
["8. Inventory Transfers/Adjustments (Include under gains/losses on Table A4)"]
["9. Inventory Write-offs (Include under losses on Table A4)"]
[]
["check",null,{"$f":"C174-'A6-FinPos'!C50","v":0},{"$f":"D174-'A6-FinPos'!D50","v":0},{"$f":"E174-'A6-FinPos'!E50","v":0},{"$f":"F174-'A6-FinPos'!F50","v":0},{"$f":"G174-'A6-FinPos'!G50","v":0},{"$f":"H174-'A6-FinPos'!H50","v":0},{"$f":"I174-'A6-FinPos'!I50","v":0},{"$f":"J174-'A6-FinPos'!J50","v":0},{"$f":"K174-'A6-FinPos'!K50","v":0},{"$f":"L174-'A6-FinPos'!L50","v":0}]

{"sheet":"SA4","index":47,"n_rows":26,"n_cols":13,"rows_kept":26,"cut":false,"hidden":false,"merged":[[1,7,1,9],[1,10,1,12],[1,3,2,3]]}
[{"$f":"muni&\" - \"&TableA4","v":"LIM331 Greater Giyani - Supporting Table SA4 Reconciliation of IDP strategic objectives and budget (revenue)"}]
["Strategic Objective","Goal","Goal\nCode",{"$f":"head27","v":"Ref"},{"$f":"head1b","v":"2019/20"},{"$f":"head1A","v":"2020/21"},{"$f":"Head1","v":"2021/22"},{"$f":"Head2","v":"Current Year 2022/23"},null,null,{"$f":"Head3","v":"2023/24 Medium Term Revenue & Expenditure Framework"}]
["R thousand",null,null,null,{"$f":"Head5","v":"Audited Outcome"},{"$f":"Head5","v":"Audited Outcome"},{"$f":"Head5","v":"Audited Outcome"},{"$f":"Head6","v":"Original Budget"},{"$f":"Head7","v":"Adjusted Budget"},{"$f":"Head8","v":"Full Year Forecast"},{"$f":"Head9","v":"Budget Year 2023/24"},{"$f":"Head10","v":"Budget Year +1 2024/25"},{"$f":"Head11","v":"Budget Year +2 2025/26"}]
["Financial Viability","Responsive, accountable, effective and efficient local government",9,"_",449813167,556407882,510283278,569556802,578345589,578345589,612236536,639168623,639903262]
["Infrastructure Development and Basic Service Delivery","Responsive, accountable, effective and efficient local government",9,"_",19187862,22089579,16767556,21540000,18496000,18496000,19833989,20805856,21783727]
["Institutional Development and Transformation","Responsive, accountable, effective and efficient local government",9,"_",1121818,2909350,8718943,8460000,2616480,2616480,8365000,8475000,8585000]
["Local Economic Development","Responsive, accountable, effective and efficient local government",9,"_",352646,182515,219519,606600,336600,336600,421600,442258,463044]
["Take-On","Responsive, accountable, effective and efficient local government",9,"_",1183625,710684,1536908,0,0,0,0,0,0]
["To improve performance and functioning of the municipality\t","Responsive, accountable, effective and efficient local government",9,"_",22451815,14390319,14406920,0,0,0,0,0,0]
["To practice sound financial management principles","A comprehensive, responsive and sustainable social protection system",13,"_",6815790,9162994,9470594,0,0,0,0,0,0]
["To practice sound financial management principles","Responsive, accountable, effective and efficient local government",9,"_",18766390,22407427,22909363,0,0,0,0,0,0]
[]
[]
[]
[]
[]
[]
[]
[]
[]
["Allocations to other priorities",null,null,2]
[{"$f":"'A4-FinPerf RE'!A32","v":"Total Revenue (excluding capital transfers and contributions)"},null,null,1,{"$f":"SUM(E4:E21)","v":519693113},628260750,584313081,600163402,599794669,599794669,640857125,668891737,670735033]
[{"$f":"head27a","v":"References"}]
[{"$f":"\"1. Total revenue must reconcile to \"&'Template names'!F103","v":"1. Total revenue must reconcile to Table A4 Budgeted Financial Performance (revenue and expenditure)"}]
["2. Balance of allocations not directly linked to an IDP strategic objective"]
["check op revenue balance",null,null,null,0,0,0,{"$f":"H22-'A4-FinPerf RE'!F32-'A4-FinPerf RE'!F49","v":0},{"$f":"I22-'A4-FinPerf RE'!G32-'A4-FinPerf RE'!G49","v":0},{"$f":"J22-'A4-FinPerf RE'!H32-'A4-FinPerf RE'!H49","v":0},{"$f":"K22-'A4-FinPerf RE'!J32-'A4-FinPerf RE'!J49","v":0},{"$f":"L22-'A4-FinPerf RE'!K32-'A4-FinPerf RE'!K49","v":0},{"$f":"M22-'A4-FinPerf RE'!L32-'A4-FinPerf RE'!L49","v":0}]

{"sheet":"SA5","index":48,"n_rows":39,"n_cols":13,"rows_kept":39,"cut":false,"hidden":false,"merged":[[1,7,1,9],[1,10,1,12],[1,3,2,3]]}
[{"$f":"muni&\" - \"&TableA5","v":"LIM331 Greater Giyani - Supporting Table SA5 Reconciliation of IDP strategic objectives and budget (operating expenditure)"}]
["Strategic Objective","Goal","Goal\nCode",{"$f":"head27","v":"Ref"},{"$f":"head1b","v":"2019/20"},{"$f":"head1A","v":"2020/21"},{"$f":"Head1","v":"2021/22"},{"$f":"Head2","v":"Current Year 2022/23"},null,null,{"$f":"Head3","v":"2023/24 Medium Term Revenue & Expenditure Framework"}]
["R thousand",null,null,null,{"$f":"Head5","v":"Audited Outcome"},{"$f":"Head5","v":"Audited Outcome"},{"$f":"Head5","v":"Audited Outcome"},{"$f":"Head6","v":"Original Budget"},{"$f":"Head7","v":"Adjusted Budget"},{"$f":"Head8","v":"Full Year Forecast"},{"$f":"Head9","v":"Budget Year 2023/24"},{"$f":"Head10","v":"Budget Year +1 2024/25"},{"$f":"Head11","v":"Budget Year +2 2025/26"}]
["Financial Viability","An efficient, effective and development-oriented public service",12,"_",4659684,5481689,5808312,4400000,8550000,8550000,8550000,8700000,8900000]
["Financial Viability","Protect and enhance our environmental assets and natural resources",10,"_",0,0,0,0,0,0,100000,110000,120000]
["Financial Viability","Responsive, accountable, effective and efficient local government",9,"_",36626726,58931108,18115991,29000000,0,0,29000000,30000000,31000000]
["Financial Viability","Sustainable human settlements and improved quality of household life",8,"_",126896687,140582937,147555913,155373536,151479376,151479376,160897614,161746980,165201315]
["Good Governance and Public Participation","A comprehensive, responsive and sustainable social protection system",13,"_",304540,28500,74124,1495000,2944000,2944000,5060000,5370000,5660000]
["Good Governance and Public Participation","A long and healthy life for all South Africans",2,"_",8400,0,150960,200000,575000,575000,800000,850000,900000]
["Good Governance and Public Participation","An efficient, competitive and responsive economic infrastructure network",6,"_",0,-892148,2692148,0,0,0,0,0,0]
["Good Governance and Public Participation","An efficient, effective and development-oriented public service",12,"_",1035831,120000,1607504,3070000,3325000,3325000,3630000,3845000,4050000]
["Good Governance and Public Participation","Protect and enhance our environmental assets and natural resources",10,"_",0,0,0,80000,80000,80000,100000,110000,120000]
["Good Governance and Public Participation","Responsive, accountable, effective and efficient local government",9,"_",24500,63550,130450,350000,350000,350000,430000,450000,470000]
["Good Governance and Public Participation","Sustainable human settlements and improved quality of household life",8,"_",59773208,61080468,65285524,77762577,74288992,74288992,81249645,85028131,88890386]
["Infrastructure Development and Basic Service Delivery","A comprehensive, responsive and sustainable social protection system",13,"_",617667,578884,171772,1750000,1640000,1640000,2510000,2592000,2634000]
["Infrastructure Development and Basic Service Delivery","All people in South Africa are and feel safe",3,"_",170050,201975,130570,450000,100000,100000,300000,350000,400000]
["Infrastructure Development and Basic Service Delivery","An efficient, competitive and responsive economic infrastructure network",6,"_",-239931902,5060767,36239526,71884000,127922230,127922230,93970000,91265000,90590000]
["Infrastructure Development and Basic Service Delivery","An efficient, effective and development-oriented public service",12,"_",7391823,8715924,8662632,21157056,20247056,20247056,18075000,16349500,17772000]
["Infrastructure Development and Basic Service Delivery","Protect and enhance our environmental assets and natural resources",10,"_",0,0,0,260000,260000,260000,260000,275000,290000]
["Infrastructure Development and Basic Service Delivery","Responsive, accountable, effective and efficient local government",9,"_",13687838,15804200,15417438,12000000,7000000,7000000,9000000,10000000,10000000]
["Infrastructure Development and Basic Service Delivery","Sustainable human settlements and improved quality of household life",8,"_",80683345,62594223,67248497,72047028,63544220,63544220,77417393,80013988,83965175]
["Institutional Development and Transformation","An efficient, competitive and responsive economic infrastructure network",6,"_",1837,7114338,10671681,6000000,6000000,6000000,10000000,10000000,10000000]
["Institutional Development and Transformation","An efficient, effective and development-oriented public service",12,"_",1100300,2243684,2975528,5265000,4581000,4581000,8540000,8987000,9308000]
["Institutional Development and Transformation","Responsive, accountable, effective and efficient local government",9,"_",474608,338248,55096,150000,100000,100000,200000,262000,282000]
["Institutional Development and Transformation","Sustainable human settlements and improved quality of household life",8,"_",44479265,50405706,57354645,74793677,74373775,74373775,83840927,88938797,92795781]
["Local Economic Development","An efficient, competitive and responsive economic infrastructure network",6,"_",0,0,0,0,0,0,150000,160000,170000]
["Local Economic Development","An efficient, effective and development-oriented public service",12,"_",618777,955000,612000,918000,1148000,1148000,2693000,3034000,3375000]
["Local Economic Development","Protect and enhance our environmental assets and natural resources",10,"_",0,0,0,0,0,0,92000,95500,99000]
["Local Economic Development","Sustainable human settlements and improved quality of household life",8,"_",2657220,2551235,2731489,2929638,2819591,2819591,3194417,3353974,3514428]
["To develop an effective spatial framework that promotes integrated and sustainable development","An efficient, effective and development-oriented public service",12,"_",3848730,-5282178,-1423158,5200000,2150000,2150000,4600000,5350000,6050000]
["To develop an effective spatial framework that promotes integrated and sustainable development","Sustainable human settlements and improved quality of household life",8,"_",1520859,1046427,1148556,2075463,1189485,1189485,1361420,1445381,1529723]
[]
[]
["Allocations to other priorities"]
[{"$f":"'A4-FinPerf RE'!A47","v":"Total Expenditure"},null,null,1,{"$f":"SUM(E4:E34)","v":146649993},417724537,443417198,548610975,554667725,554667725,606021416,618682251,638086808]
[{"$f":"head27a","v":"References"}]
[{"$f":"\"1. Total expenditure must reconcile to \"&'Template names'!F103","v":"1. Total expenditure must reconcile to Table A4 Budgeted Financial Performance (revenue and expenditure)"}]
["2. Balance of allocations not directly linked to an IDP strategic objective"]
["check op expenditure balance",null,null,null,{"$f":"E35-'A4-FinPerf RE'!C47","v":0},{"$f":"F35-'A4-FinPerf RE'!D47","v":0},{"$f":"G35-'A4-FinPerf RE'!E47","v":0},{"$f":"H35-'A4-FinPerf RE'!F47","v":0},{"$f":"I35-'A4-FinPerf RE'!G47","v":0},{"$f":"J35-'A4-FinPerf RE'!H47","v":0},{"$f":"K35-'A4-FinPerf RE'!J47","v":0},{"$f":"L35-'A4-FinPerf RE'!K47","v":0},{"$f":"M35-'A4-FinPerf RE'!L47","v":0}]

{"sheet":"SA6","index":49,"n_rows":30,"n_cols":13,"rows_kept":30,"cut":false,"hidden":false,"merged":[[1,7,1,9],[1,10,1,12],[1,3,2,3]]}
[{"$f":"muni&\" - \"&TableA6","v":"LIM331 Greater Giyani - Supporting Table SA6 Reconciliation of IDP strategic objectives and budget (capital expenditure)"}]
["Strategic Objective","Goal","Goal Code",{"$f":"head27","v":"Ref"},{"$f":"head1b","v":"2019/20"},{"$f":"head1A","v":"2020/21"},{"$f":"Head1","v":"2021/22"},{"$f":"Head2","v":"Current Year 2022/23"},null,null,{"$f":"Head3","v":"2023/24 Medium Term Revenue & Expenditure Framework"}]
["R thousand",null,null,null,{"$f":"Head5","v":"Audited Outcome"},{"$f":"Head5","v":"Audited Outcome"},{"$f":"Head5","v":"Audited Outcome"},{"$f":"Head6","v":"Original Budget"},{"$f":"Head7","v":"Adjusted Budget"},{"$f":"Head8","v":"Full Year Forecast"},{"$f":"Head9","v":"Budget Year 2023/24"},{"$f":"Head10","v":"Budget Year +1 2024/25"},{"$f":"Head11","v":"Budget Year +2 2025/26"}]
["Financial Viability","A long and healthy life for all South Africans",2,"_",0,0,0,0,0,0,0,0,0]
["Financial Viability","An efficient, competitive and responsive economic infrastructure network",6,"_",0,0,0,0,0,0,0,0,0]
["Financial Viability","An efficient, effective and development-oriented public service",12,"_",10000000,10000000,10000000,10000000,14000000,14000000,14665000,14200000,14400000]
["Financial Viability","Create a better South Africa and contribute to a better Africa and a better world",11,"_",206303,206303,206303,0,0,0,0,0,0]
["Good Governance and Public Participation","An efficient, effective and development-oriented public service",12,"_",0,0,0,1000000,1000000,1000000,1750000,1300000,1300000]
["Infrastructure Development and Basic Service Delivery","A long and healthy life for all South Africans",2,"_",72078959,36346817,42081718,31957650,22280759,22280759,19113679,13500000,0]
["Infrastructure Development and Basic Service Delivery","An efficient, competitive and responsive economic infrastructure network",6,"_",33178188,30702122,3999819,34879622,51124560,51124560,84873910,109966968,129075856]
["Infrastructure Development and Basic Service Delivery","An efficient, effective and development-oriented public service",12,"_",18377673,11346274,39566587,65534957,47302548,47302548,29578599,24820000,4940000]
["Institutional Development and Transformation","An efficient, effective and development-oriented public service",12,"_",0,0,0,4200000,2200000,2200000,7810000,8440000,8720000]
["To develop an effective spatial framework that promotes integrated and sustainable development","An efficient, competitive and responsive economic infrastructure network",6,"_",2608696,2976618,2976618,0,0,0,0,0,0]
["To develop an effective spatial framework that promotes integrated and sustainable development","An efficient, effective and development-oriented public service",12,"_",0,0,0,600000,300000,300000,1000000,1100000,1200000]
["To ensure provision, upgrading and maintenance of infrastructure and services that enhances socio-economic development","An efficient, effective and development-oriented public service",12,"_",0,120787,120787,0,0,0,0,0,0]
["To ensure provision, upgrading and maintenance of infrastructure and services that enhances socio-economic development","Sustainable human settlements and improved quality of household life",8,"_",1944,1944,1944,0,0,0,0,0,0]
["To improve performance and functioning of the municipality","An efficient, effective and development-oriented public service",12,"_",116522,1712016,1712016,0,0,0,0,0,0]
["To improve performance and functioning of the municipality\t","A long and healthy life for all South Africans",2,"_",42000,92660,92660,0,0,0,0,0,0]
["To improve performance and functioning of the municipality\t","An efficient, effective and development-oriented public service",12,"_",2336094,7455246,8901032,0,0,0,0,0,0]
["To improve performance and functioning of the municipality\t","Sustainable human settlements and improved quality of household life",8,"_",23650,131986,173645,0,0,0,0,0,0]
["To practice sound financial management principles","An efficient, effective and development-oriented public service",12,"_",5968368,10710423,5110423,0,0,0,0,0,0]
[null,null,"O"]
[null,null,"P"]
["Allocations to other priorities",null,null,3]
["Total Capital Expenditure",null,null,1,{"$f":"SUM(E4:E24)","v":144938397},111803196,114943552,148172229,138207867,138207867,158791188,173326968,159635856]
[{"$f":"head27a","v":"References"}]
["1. Total capital expenditure must reconcile to Budgeted Capital Expenditure"]
["2. Goal code must be used on Table SA36"]
["3. Balance of allocations not directly linked to an IDP strategic objective"]
["check capital balance",null,null,null,{"$f":"E25-'A5-Capex'!C40","v":0},{"$f":"F25-'A5-Capex'!D40","v":0},{"$f":"G25-'A5-Capex'!E40","v":0},{"$f":"H25-'A5-Capex'!F40","v":0},{"$f":"I25-'A5-Capex'!G40","v":0},{"$f":"J25-'A5-Capex'!H40","v":0},{"$f":"K25-'A5-Capex'!J40","v":0},{"$f":"L25-'A5-Capex'!K40","v":0},{"$f":"M25-'A5-Capex'!L40","v":0}]

{"sheet":"SA7","index":50,"n_rows":89,"n_cols":11,"rows_kept":89,"cut":false,"hidden":false,"merged":[[1,1,2,1],[1,0,2,0],[1,5,1,7],[1,8,1,10],[87,0,87,10],[67,0,67,10],[72,0,73,0],[72,1,73,1],[72,5,72,7],[72,8,72,10]]}
[{"$f":"muni&\" - \"&TableA7","v":"LIM331 Greater Giyani - Supporting Table SA7 Measureable performance objectives"}]
["Description","Unit of measurement",{"$f":"head1b","v":"2019/20"},{"$f":"head1A","v":"2020/21"},{"$f":"Head1","v":"2021/22"},{"$f":"Head2","v":"Current Year 2022/23"},null,null,{"$f":"Head3","v":"2023/24 Medium Term Revenue & Expenditure Framework"}]
[null,null,{"$f":"Head5","v":"Audited Outcome"},{"$f":"Head5","v":"Audited Outcome"},{"$f":"Head5","v":"Audited Outcome"},{"$f":"Head6","v":"Original Budget"},{"$f":"Head7","v":"Adjusted Budget"},{"$f":"Head8","v":"Full Year Forecast"},{"$f":"Head9","v":"Budget Year 2023/24"},{"$f":"Head10","v":"Budget Year +1 2024/25"},{"$f":"Head11","v":"Budget Year +2 2025/26"}]
["Vote 1 - vote name"]
["Function 1 - (name)"]
["Sub-function 1 - (name)",null,0,0,0,0,0,0,1.5937891210656269E-2,1.4480743781736083E-2,1.5071680864325785E-2]
["Insert measure/s description"]
[]
["Sub-function 2 - (name)",null,0,0,0,0,0,0,1.1984344151570781E-2,1.0607937561569586E-2,1.1036775399958445E-2]
["Insert measure/s description"]
[]
["Sub-function 3 - (name)",null,0.11262971175166298,9.5612186242575212E-2,9.5612186242575212E-2,9.5249662790623357E-2,8.4565790014020953E-2,8.4565790014020953E-2,6.2974710163931177E-2,5.7195766972065902E-2,5.9534593808435489E-2]
["Insert measure/s description"]
[]
["Function 2 - (name)"]
["Sub-function 1 - (name)",null,4.0354767184035474E-2,2.963821003675382E-2,2.963821003675382E-2,3.1521885048359982E-2,2.4375362990513853E-2,2.4375362990513853E-2,2.36371643319792E-2,2.2674519387284851E-2,2.3598587159775607E-2]
["Insert measure/s description"]
[]
["Sub-function 2 - (name)",null,4.8957871396895789E-3,7.2201222804786705E-3,7.2201222804786705E-3,6.3030984907083646E-3,7.1982118867293613E-3,7.1982118867293613E-3,5.6458037477053087E-3,5.6865986529737308E-3,5.9214627051734888E-3]
["Insert measure/s description"]
[]
["Sub-function 3 - (name)",null,1.7463414634146343E-2,1.9213015380863629E-2,1.9213015380863629E-2,2.0974103598391622E-2,1.5317466370212191E-2,1.5317466370212191E-2,9.8467567554194266E-3,1.2024302281826984E-2,1.2516102223145647E-2]
["Insert measure/s description"]
[]
["Vote 2 - vote name"]
["Function 1 - (name)"]
["Sub-function 1 - (name)",null,1.597339246119734E-2,1.558118065111742E-2,1.558118065111742E-2,1.5080131176045669E-2,1.4191095806029603E-2,1.4191095806029603E-2,1.2409882383212022E-2,1.2671179303317676E-2,1.3189279035944317E-2]
["Insert measure/s description"]
[]
["Sub-function 2 - (name)",null,4.2217294900221726E-3,8.3175111916250072E-3,8.3175111916250072E-3,5.4145278109837573E-3,1.1251972615115659E-2,1.1251972615115659E-2,6.0317570275659708E-3,5.2891709404238943E-3,5.5100768751298566E-3]
["Insert measure/s description"]
[]
["Sub-function 3 - (name)",null,3.2771618625277159E-2,4.8206727168214038E-2,4.8206727168214038E-2,5.1677736510026787E-2,6.0994139353158235E-2,6.0994139353158235E-2,6.5636798171175223E-2,9.6405815974057271E-2,0.10513193434448369]
["Insert measure/s description"]
[]
["Function 2 - (name)"]
["Sub-function 1 - (name)",null,4.0886917960088691E-2,4.8023829016356323E-2,4.8023829016356323E-2,4.9120698582761732E-2,4.8023278324993104E-2,4.8023278324993104E-2,3.979277277742866E-2,3.7053792263689059E-2,3.8570538125908993E-2]
["Insert measure/s description"]
[]
["Sub-function 2 - (name)",null,1.6E-2,1.5494086293089933E-2,1.5494086293089933E-2,1.7924835870128043E-2,1.141623498905895E-2,1.141623498905895E-2,1.734315699886688E-2,1.3381475640640789E-2,1.3928942447537918E-2]
["Insert measure/s description"]
[]
["Sub-function 3 - (name)",null,1.1538802660753879E-2,1.163580623247226E-2,1.163580623247226E-2,2.2163126234569876E-2,2.4938548272605141E-2,2.4938548272605141E-2,1.8308040198518533E-2,1.6539757569095346E-2,1.721587367546229E-2]
["Insert measure/s description"]
[]
["Vote 3 - vote name"]
["Function 1 - (name)"]
["Sub-function 1 - (name)",null,5.1148558758314859E-2,4.254559389642739E-2,4.254559389642739E-2,4.3015770531416406E-2,3.7047031837567981E-2,3.7047031837567981E-2,3.5225658965744172E-2,3.0563882276837998E-2,3.1813837523374196E-2]
["Insert measure/s description"]
[]
["Sub-function 2 - (name)",null,0.166980044345898,0.12700970231148426,0.12700970231148426,0.13332395752760004,0.10609589402730275,0.10609589402730275,9.5483851813733006E-2,9.7310598213266472E-2,0.10129233326407645]
["Insert measure/s description"]
[]
["Sub-function 3 - (name)",null,1.4004434589800444E-2,2.0493302443867687E-2,2.0493302443867687E-2,1.5418938701408289E-2,2.2709273197660435E-2,2.2709273197660435E-2,7.5161927193377435E-3,6.7900947484578538E-3,7.0683565343860376E-3]
["Insert measure/s description"]
[]
["Function 2 - (name)"]
["Sub-function 1 - (name)",null,1.1334811529933481E-2,1.5737950495566897E-2,1.5737950495566897E-2,1.5406153511771964E-2,1.4161763239254015E-2,1.4161763239254015E-2,1.2543481595471482E-2,1.2070809780104092E-2,1.2532723872844379E-2]
["Insert measure/s description"]
[]
["Sub-function 2 - (name)",null,3.9290465631929049E-3,2.9612081729345572E-3,2.9612081729345572E-3,2.9597714008093023E-3,2.604731929672238E-3,2.604731929672238E-3,2.488903843204006E-3,2.2069921909682439E-3,2.297943070849782E-3]
["Insert measure/s description"]
[]
["Sub-function 3 - (name)"]
["Insert measure/s description"]
[]
["And so on for the rest of the Votes"]
["1. Include a measurable performance objective for each revenue source (within a relevant function) and each vote (MFMA s17(3)(b))"]
["2. Include all Basic Services performance targets from 'Basic Service Delivery' to ensure Table SA7 represents all strategic responsibilities"]
["3. Only include prior year comparative information for individual measures where relevant activity occurred in that year/s"]
[]
[{"$f":"muni&\" - \"&\"Entities measureable performance objectives\"","v":"LIM331 Greater Giyani - Entities measureable performance objectives"}]
[{"$f":"A2","v":"Description"},"Unit of measurement",{"$f":"head1b","v":"2019/20"},{"$f":"head1A","v":"2020/21"},{"$f":"Head1","v":"2021/22"},{"$f":"Head2","v":"Current Year 2022/23"},null,null,{"$f":"Head3","v":"2023/24 Medium Term Revenue & Expenditure Framework"}]
[null,null,{"$f":"Head5","v":"Audited Outcome"},{"$f":"Head5","v":"Audited Outcome"},{"$f":"Head5","v":"Audited Outcome"},{"$f":"Head6","v":"Original Budget"},{"$f":"Head7","v":"Adjusted Budget"},{"$f":"Head8","v":"Full Year Forecast"},{"$f":"Head9","v":"Budget Year 2023/24"},{"$f":"Head10","v":"Budget Year +1 2024/25"},{"$f":"Head11","v":"Budget Year +2 2025/26"}]
["Entity 1 - (name of entity)"]
["Insert measure/s description"]
[]
[]
["Entity 2 - (name of entity)"]
[{"$f":"$A$10","v":"Insert measure/s description"}]
[]
[]
["Entity 3 - (name of entity)"]
[{"$f":"$A$10","v":"Insert measure/s description"}]
[]
[]
["And so on for the rest of the Entities"]
["1. Include a measurable performance objective as agreed with the parent municipality (MFMA s87(5)(d))"]
["2. Only include prior year comparative information for individual measures where relevant activity occurred in that year/s"]

{"sheet":"SA8","index":51,"n_rows":53,"n_cols":12,"rows_kept":53,"cut":false,"hidden":false,"merged":[[32,0,34,0],[1,0,2,0],[1,9,1,11],[1,1,2,1],[1,5,1,8],[25,0,28,0],[29,0,31,0]]}
[{"$f":"muni&\" - \"&TableA8","v":"LIM331 Greater Giyani - Supporting Table SA8 Performance indicators and benchmarks"}]
["Description of financial indicator","Basis of calculation",{"$f":"head1b","v":"2019/20"},{"$f":"head1A","v":"2020/21"},{"$f":"Head1","v":"2021/22"},{"$f":"Head2","v":"Current Year 2022/23"},null,null,null,{"$f":"Head3","v":"2023/24 Medium Term Revenue & Expenditure Framework"}]
[null,null,{"$f":"Head5","v":"Audited Outcome"},{"$f":"Head5","v":"Audited Outcome"},{"$f":"Head5","v":"Audited Outcome"},{"$f":"Head6","v":"Original Budget"},{"$f":"Head7","v":"Adjusted Budget"},{"$f":"Head8","v":"Full Year Forecast"},{"$f":"Head5b","v":"Pre-audit outcome"},{"$f":"Head9","v":"Budget Year 2023/24"},{"$f":"Head10","v":"Budget Year +1 2024/25"},{"$f":"Head11","v":"Budget Year +2 2025/26"}]
["Borrowing Management"]
[]
["Credit Rating"]
["Capital Charges to Operating Expenditure","Interest & Principal Paid /Operating Expenditure",{"$f":"IF(ISERROR(('A4-FinPerf RE'!C40-'A7-CFlow'!C34)/'A4-FinPerf RE'!C47),0,(('A4-FinPerf RE'!C40-'A7-CFlow'!C34)/'A4-FinPerf RE'!C47))","v":1.2655534187444523E-2},{"$f":"IF(ISERROR(('A4-FinPerf RE'!D40-'A7-CFlow'!D34)/'A4-FinPerf RE'!D47),0,(('A4-FinPerf RE'!D40-'A7-CFlow'!D34)/'A4-FinPerf RE'!D47))","v":9.4347893190674607E-3},{"$f":"IF(ISERROR(('A4-FinPerf RE'!E40-'A7-CFlow'!E34)/'A4-FinPerf RE'!E47),0,(('A4-FinPerf RE'!E40-'A7-CFlow'!E34)/'A4-FinPerf RE'!E47))","v":1.5042573968905916E-2},{"$f":"IF(ISERROR(('A4-FinPerf RE'!F40-'A7-CFlow'!F34)/'A4-FinPerf RE'!F47),0,(('A4-FinPerf RE'!F40-'A7-CFlow'!F34)/'A4-FinPerf RE'!F47))","v":0},{"$f":"IF(ISERROR(('A4-FinPerf RE'!G40-'A7-CFlow'!G34)/'A4-FinPerf RE'!G47),0,(('A4-FinPerf RE'!G40-'A7-CFlow'!G34)/'A4-FinPerf RE'!G47))","v":0},{"$f":"IF(ISERROR(('A4-FinPerf RE'!H40-'A7-CFlow'!H34)/'A4-FinPerf RE'!H47),0,(('A4-FinPerf RE'!H40-'A7-CFlow'!H34)/'A4-FinPerf RE'!H47))","v":0},{"$f":"IF(ISERROR(('A4-FinPerf RE'!I40-'A7-CFlow'!I34)/'A4-FinPerf RE'!I47),0,(('A4-FinPerf RE'!I40-'A7-CFlow'!I34)/'A4-FinPerf RE'!I47))","v":0},{"$f":"IF(ISERROR(('A4-FinPerf RE'!J40-'A7-CFlow'!J34)/'A4-FinPerf RE'!J47),0,(('A4-FinPerf RE'!J40-'A7-CFlow'!J34)/'A4-FinPerf RE'!J47))","v":0},{"$f":"IF(ISERROR(('A4-FinPerf RE'!K40-'A7-CFlow'!K34)/'A4-FinPerf RE'!K47),0,(('A4-FinPerf RE'!K40-'A7-CFlow'!K34)/'A4-FinPerf RE'!K47))","v":0},{"$f":"IF(ISERROR(('A4-FinPerf RE'!L40-'A7-CFlow'!L34)/'A4-FinPerf RE'!L47),0,(('A4-FinPerf RE'!L40-'A7-CFlow'!L34)/'A4-FinPerf RE'!L47))","v":0}]
["Capital Charges to Own Revenue","Finance charges & Repayment of borrowing /Own Revenue",{"$f":"IF(ISERROR(('A4-FinPerf RE'!C40-'A7-CFlow'!C34)/('A4-FinPerf RE'!C32-'A4-FinPerf RE'!C29)),0,(('A4-FinPerf RE'!C40-'A7-CFlow'!C34)/('A4-FinPerf RE'!C32-'A4-FinPerf RE'!C29)))","v":4.5664119701645323E-3},{"$f":"IF(ISERROR(('A4-FinPerf RE'!D40-'A7-CFlow'!D34)/('A4-FinPerf RE'!D32-'A4-FinPerf RE'!D29)),0,(('A4-FinPerf RE'!D40-'A7-CFlow'!D34)/('A4-FinPerf RE'!D32-'A4-FinPerf RE'!D29)))","v":7.9399585559274989E-3},{"$f":"IF(ISERROR(('A4-FinPerf RE'!E40-'A7-CFlow'!E34)/('A4-FinPerf RE'!E32-'A4-FinPerf RE'!E29)),0,(('A4-FinPerf RE'!E40-'A7-CFlow'!E34)/('A4-FinPerf RE'!E32-'A4-FinPerf RE'!E29)))","v":1.3905486270224834E-2},{"$f":"IF(ISERROR(('A4-FinPerf RE'!F40-'A7-CFlow'!F34)/('A4-FinPerf RE'!F32-'A4-FinPerf RE'!F29)),0,(('A4-FinPerf RE'!F40-'A7-CFlow'!F34)/('A4-FinPerf RE'!F32-'A4-FinPerf RE'!F29)))","v":0},{"$f":"IF(ISERROR(('A4-FinPerf RE'!G40-'A7-CFlow'!G34)/('A4-FinPerf RE'!G32-'A4-FinPerf RE'!G29)),0,(('A4-FinPerf RE'!G40-'A7-CFlow'!G34)/('A4-FinPerf RE'!G32-'A4-FinPerf RE'!G29)))","v":0},{"$f":"IF(ISERROR(('A4-FinPerf RE'!H40-'A7-CFlow'!H34)/('A4-FinPerf RE'!H32-'A4-FinPerf RE'!H29)),0,(('A4-FinPerf RE'!H40-'A7-CFlow'!H34)/('A4-FinPerf RE'!H32-'A4-FinPerf RE'!H29)))","v":0},{"$f":"IF(ISERROR(('A4-FinPerf RE'!I40-'A7-CFlow'!I34)/('A4-FinPerf RE'!I32-'A4-FinPerf RE'!I29)),0,(('A4-FinPerf RE'!I40-'A7-CFlow'!I34)/('A4-FinPerf RE'!I32-'A4-FinPerf RE'!I29)))","v":0},{"$f":"IF(ISERROR(('A4-FinPerf RE'!J40-'A7-CFlow'!J34)/('A4-FinPerf RE'!J32-'A4-FinPerf RE'!J29)),0,(('A4-FinPerf RE'!J40-'A7-CFlow'!J34)/('A4-FinPerf RE'!J32-'A4-FinPerf RE'!J29)))","v":0},{"$f":"IF(ISERROR(('A4-FinPerf RE'!K40-'A7-CFlow'!K34)/('A4-FinPerf RE'!K32-'A4-FinPerf RE'!K29)),0,(('A4-FinPerf RE'!K40-'A7-CFlow'!K34)/('A4-FinPerf RE'!K32-'A4-FinPerf RE'!K29)))","v":0},{"$f":"IF(ISERROR(('A4-FinPerf RE'!L40-'A7-CFlow'!L34)/('A4-FinPerf RE'!L32-'A4-FinPerf RE'!L29)),0,(('A4-FinPerf RE'!L40-'A7-CFlow'!L34)/('A4-FinPerf RE'!L32-'A4-FinPerf RE'!L29)))","v":0}]
["Borrowed funding of 'own' capital expenditure","Borrowing/Capital expenditure excl. transfers and grants and contributions",{"$f":"IF(ISERROR(C53/C52),0,(C53/C52))","v":0},{"$f":"IF(ISERROR(D53/D52),0,(D53/D52))","v":0},{"$f":"IF(ISERROR(E53/E52),0,(E53/E52))","v":0},0,0,0,0,0,0,0]
["Safety of Capital"]
["Gearing","Long Term Borrowing/ Funds & Reserves",{"$f":"IF(ISERROR(('A6-FinPos'!C41/'A6-FinPos'!C48)),0,(('A6-FinPos'!C41/'A6-FinPos'!C48)))","v":0},{"$f":"IF(ISERROR(('A6-FinPos'!D41/'A6-FinPos'!D48)),0,(('A6-FinPos'!D41/'A6-FinPos'!D48)))","v":0},{"$f":"IF(ISERROR(('A6-FinPos'!E41/'A6-FinPos'!E48)),0,(('A6-FinPos'!E41/'A6-FinPos'!E48)))","v":0},{"$f":"IF(ISERROR(('A6-FinPos'!F41/'A6-FinPos'!F48)),0,(('A6-FinPos'!F41/'A6-FinPos'!F48)))","v":0},{"$f":"IF(ISERROR(('A6-FinPos'!G41/'A6-FinPos'!G48)),0,(('A6-FinPos'!G41/'A6-FinPos'!G48)))","v":0},{"$f":"IF(ISERROR(('A6-FinPos'!H41/'A6-FinPos'!H48)),0,(('A6-FinPos'!H41/'A6-FinPos'!H48)))","v":0},{"$f":"IF(ISERROR(('A6-FinPos'!I41/'A6-FinPos'!I48)),0,(('A6-FinPos'!I41/'A6-FinPos'!I48)))","v":0},{"$f":"IF(ISERROR(('A6-FinPos'!J41/'A6-FinPos'!J48)),0,(('A6-FinPos'!J41/'A6-FinPos'!J48)))","v":0},{"$f":"IF(ISERROR(('A6-FinPos'!K41/'A6-FinPos'!K48)),0,(('A6-FinPos'!K41/'A6-FinPos'!K48)))","v":0},{"$f":"IF(ISERROR(('A6-FinPos'!L41/'A6-FinPos'!L48)),0,(('A6-FinPos'!L41/'A6-FinPos'!L48)))","v":0}]
["Liquidity"]
["Current Ratio","Current assets/current liabilities",{"$f":"IF(ISERROR('A6-FinPos'!C13/'A6-FinPos'!C37),0,('A6-FinPos'!C13/'A6-FinPos'!C37))","v":2.599277319503611},{"$f":"IF(ISERROR('A6-FinPos'!D13/'A6-FinPos'!D37),0,('A6-FinPos'!D13/'A6-FinPos'!D37))","v":2.8036436700303433},{"$f":"IF(ISERROR('A6-FinPos'!E13/'A6-FinPos'!E37),0,('A6-FinPos'!E13/'A6-FinPos'!E37))","v":2.6876773244800383},{"$f":"IF(ISERROR('A6-FinPos'!F13/'A6-FinPos'!F37),0,('A6-FinPos'!F13/'A6-FinPos'!F37))","v":1.6029490693715673},{"$f":"IF(ISERROR('A6-FinPos'!G13/'A6-FinPos'!G37),0,('A6-FinPos'!G13/'A6-FinPos'!G37))","v":4.6213734738738328},{"$f":"IF(ISERROR('A6-FinPos'!H13/'A6-FinPos'!H37),0,('A6-FinPos'!H13/'A6-FinPos'!H37))","v":4.6213734738738328},{"$f":"IF(ISERROR('A6-FinPos'!I13/'A6-FinPos'!I37),0,('A6-FinPos'!I13/'A6-FinPos'!I37))","v":4.6213734738738328},{"$f":"IF(ISERROR('A6-FinPos'!J13/'A6-FinPos'!J37),0,('A6-FinPos'!J13/'A6-FinPos'!J37))","v":2.4297314340195033},{"$f":"IF(ISERROR('A6-FinPos'!K13/'A6-FinPos'!K37),0,('A6-FinPos'!K13/'A6-FinPos'!K37))","v":1.9896288657530699},{"$f":"IF(ISERROR('A6-FinPos'!L13/'A6-FinPos'!L37),0,('A6-FinPos'!L13/'A6-FinPos'!L37))","v":1.431144410053633}]
["Current Ratio adjusted for aged debtors","Current assets less debtors > 90 days/current liabilities",{"$f":"IF(ISERROR(('A6-FinPos'!C13-'SA8'!C49)/'A6-FinPos'!C37),0,(('A6-FinPos'!C13-'SA8'!C49)/'A6-FinPos'!C37))","v":2.599277319503611},{"$f":"IF(ISERROR(('A6-FinPos'!D13-'SA8'!D49)/'A6-FinPos'!D37),0,(('A6-FinPos'!D13-'SA8'!D49)/'A6-FinPos'!D37))","v":2.8036436700303433},{"$f":"IF(ISERROR(('A6-FinPos'!E13-'SA8'!E49)/'A6-FinPos'!E37),0,(('A6-FinPos'!E13-'SA8'!E49)/'A6-FinPos'!E37))","v":2.6876773244800383},{"$f":"IF(ISERROR(('A6-FinPos'!F13-'SA8'!F49)/'A6-FinPos'!F37),0,(('A6-FinPos'!F13-'SA8'!F49)/'A6-FinPos'!F37))","v":1.6029490693715673},{"$f":"IF(ISERROR(('A6-FinPos'!G13-'SA8'!G49)/'A6-FinPos'!G37),0,(('A6-FinPos'!G13-'SA8'!G49)/'A6-FinPos'!G37))","v":4.6213734738738328},{"$f":"IF(ISERROR(('A6-FinPos'!H13-'SA8'!H49)/'A6-FinPos'!H37),0,(('A6-FinPos'!H13-'SA8'!H49)/'A6-FinPos'!H37))","v":4.6213734738738328},{"$f":"IF(ISERROR(('A6-FinPos'!I13-'SA8'!I49)/'A6-FinPos'!I37),0,(('A6-FinPos'!I13-'SA8'!I49)/'A6-FinPos'!I37))","v":4.6213734738738328},{"$f":"IF(ISERROR(('A6-FinPos'!J13-'SA8'!J49)/'A6-FinPos'!J37),0,(('A6-FinPos'!J13-'SA8'!J49)/'A6-FinPos'!J37))","v":2.4297314340195033},{"$f":"IF(ISERROR(('A6-FinPos'!K13-'SA8'!K49)/'A6-FinPos'!K37),0,(('A6-FinPos'!K13-'SA8'!K49)/'A6-FinPos'!K37))","v":1.9896288657530699},{"$f":"IF(ISERROR(('A6-FinPos'!L13-'SA8'!L49)/'A6-FinPos'!L37),0,(('A6-FinPos'!L13-'SA8'!L49)/'A6-FinPos'!L37))","v":1.431144410053633}]
["Liquidity Ratio","Monetary Assets/Current Liabilities",{"$f":"IF(ISERROR(('A6-FinPos'!C6+'A6-FinPos'!C7)/'A6-FinPos'!C37),0,(('A6-FinPos'!C6+'A6-FinPos'!C7)/'A6-FinPos'!C37))","v":1.5121626705956093},{"$f":"IF(ISERROR(('A6-FinPos'!D6+'A6-FinPos'!D7)/'A6-FinPos'!D37),0,(('A6-FinPos'!D6+'A6-FinPos'!D7)/'A6-FinPos'!D37))","v":1.7491784979053877},{"$f":"IF(ISERROR(('A6-FinPos'!E6+'A6-FinPos'!E7)/'A6-FinPos'!E37),0,(('A6-FinPos'!E6+'A6-FinPos'!E7)/'A6-FinPos'!E37))","v":1.6901322385140483},{"$f":"IF(ISERROR(('A6-FinPos'!F6+'A6-FinPos'!F7)/'A6-FinPos'!F37),0,(('A6-FinPos'!F6+'A6-FinPos'!F7)/'A6-FinPos'!F37))","v":0.91192995858725234},{"$f":"IF(ISERROR(('A6-FinPos'!G6+'A6-FinPos'!G7)/'A6-FinPos'!G37),0,(('A6-FinPos'!G6+'A6-FinPos'!G7)/'A6-FinPos'!G37))","v":2.04331380082666},{"$f":"IF(ISERROR(('A6-FinPos'!H6+'A6-FinPos'!H7)/'A6-FinPos'!H37),0,(('A6-FinPos'!H6+'A6-FinPos'!H7)/'A6-FinPos'!H37))","v":2.04331380082666},{"$f":"IF(ISERROR(('A6-FinPos'!I6+'A6-FinPos'!I7)/'A6-FinPos'!I37),0,(('A6-FinPos'!I6+'A6-FinPos'!I7)/'A6-FinPos'!I37))","v":2.04331380082666},{"$f":"IF(ISERROR(('A6-FinPos'!J6+'A6-FinPos'!J7)/'A6-FinPos'!J37),0,(('A6-FinPos'!J6+'A6-FinPos'!J7)/'A6-FinPos'!J37))","v":0.93413893714578689},{"$f":"IF(ISERROR(('A6-FinPos'!K6+'A6-FinPos'!K7)/'A6-FinPos'!K37),0,(('A6-FinPos'!K6+'A6-FinPos'!K7)/'A6-FinPos'!K37))","v":0.47739536183851794},{"$f":"IF(ISERROR(('A6-FinPos'!L6+'A6-FinPos'!L7)/'A6-FinPos'!L37),0,(('A6-FinPos'!L6+'A6-FinPos'!L7)/'A6-FinPos'!L37))","v":9.9530024607961814E-2}]
["Revenue Management"]
["Annual Debtors Collection Rate (Payment Level %)","Last 12 Mths Receipts/Last 12 Mths Billing",null,{"$f":"IF(ISERROR(('A7-CFlow'!C6+'A7-CFlow'!C7+'A7-CFlow'!C21+'A7-CFlow'!C22)/SUM('A4-FinPerf RE'!C5:C10)),0,('A7-CFlow'!C6+'A7-CFlow'!C7+'A7-CFlow'!C21+'A7-CFlow'!C22)/(SUM('A4-FinPerf RE'!C5:C10)))","v":0},{"$f":"IF(ISERROR(('A7-CFlow'!D6+'A7-CFlow'!D7+'A7-CFlow'!D21+'A7-CFlow'!D22)/SUM('A4-FinPerf RE'!D5:D10)),0,('A7-CFlow'!D6+'A7-CFlow'!D7+'A7-CFlow'!D21+'A7-CFlow'!D22)/(SUM('A4-FinPerf RE'!D5:D10)))","v":0},{"$f":"IF(ISERROR(('A7-CFlow'!E6+'A7-CFlow'!E7+'A7-CFlow'!E21+'A7-CFlow'!E22)/SUM('A4-FinPerf RE'!E5:E10)),0,('A7-CFlow'!E6+'A7-CFlow'!E7+'A7-CFlow'!E21+'A7-CFlow'!E22)/(SUM('A4-FinPerf RE'!E5:E10)))","v":0},{"$f":"IF(ISERROR(('A7-CFlow'!F6+'A7-CFlow'!F7+'A7-CFlow'!F21+'A7-CFlow'!F22)/SUM('A4-FinPerf RE'!F5:F10)),0,('A7-CFlow'!F6+'A7-CFlow'!F7+'A7-CFlow'!F21+'A7-CFlow'!F22)/(SUM('A4-FinPerf RE'!F5:F10)))","v":3.6804001111082645},{"$f":"IF(ISERROR(('A7-CFlow'!G6+'A7-CFlow'!G7+'A7-CFlow'!G21+'A7-CFlow'!G22)/SUM('A4-FinPerf RE'!G5:G10)),0,('A7-CFlow'!G6+'A7-CFlow'!G7+'A7-CFlow'!G21+'A7-CFlow'!G22)/(SUM('A4-FinPerf RE'!G5:G10)))","v":4.3425172535983663},{"$f":"IF(ISERROR(('A7-CFlow'!H6+'A7-CFlow'!H7+'A7-CFlow'!H21+'A7-CFlow'!H22)/SUM('A4-FinPerf RE'!H5:H10)),0,('A7-CFlow'!H6+'A7-CFlow'!H7+'A7-CFlow'!H21+'A7-CFlow'!H22)/(SUM('A4-FinPerf RE'!H5:H10)))","v":4.3425172535983663},{"$f":"IF(ISERROR(('A7-CFlow'!I6+'A7-CFlow'!I7+'A7-CFlow'!I21+'A7-CFlow'!I22)/SUM('A4-FinPerf RE'!I5:I10)),0,('A7-CFlow'!I6+'A7-CFlow'!I7+'A7-CFlow'!I21+'A7-CFlow'!I22)/(SUM('A4-FinPerf RE'!I5:I10)))","v":4.3340802861819352},{"$f":"IF(ISERROR(('A7-CFlow'!J6+'A7-CFlow'!J7+'A7-CFlow'!J21+'A7-CFlow'!J22)/SUM('A4-FinPerf RE'!J5:J10)),0,('A7-CFlow'!J6+'A7-CFlow'!J7+'A7-CFlow'!J21+'A7-CFlow'!J22)/(SUM('A4-FinPerf RE'!J5:J10)))","v":4.3360120929629771},{"$f":"IF(ISERROR(('A7-CFlow'!K6+'A7-CFlow'!K7+'A7-CFlow'!K21+'A7-CFlow'!K22)/SUM('A4-FinPerf RE'!K5:K10)),0,('A7-CFlow'!K6+'A7-CFlow'!K7+'A7-CFlow'!K21+'A7-CFlow'!K22)/(SUM('A4-FinPerf RE'!K5:K10)))","v":4.3280260351091879}]
["Current Debtors Collection Rate (Cash receipts % of Ratepayer & Other revenue)",null,{"$f":"IF(ISERROR(('A7-CFlow'!C6+'A7-CFlow'!C7)/SUM('A4-FinPerf RE'!C5:C10)),0,(('A7-CFlow'!C6+'A7-CFlow'!C7)/SUM('A4-FinPerf RE'!C5:C10)))","v":0},{"$f":"IF(ISERROR(('A7-CFlow'!D6+'A7-CFlow'!D7)/SUM('A4-FinPerf RE'!D5:D10)),0,(('A7-CFlow'!D6+'A7-CFlow'!D7)/SUM('A4-FinPerf RE'!D5:D10)))","v":0},{"$f":"IF(ISERROR(('A7-CFlow'!E6+'A7-CFlow'!E7)/SUM('A4-FinPerf RE'!E5:E10)),0,(('A7-CFlow'!E6+'A7-CFlow'!E7)/SUM('A4-FinPerf RE'!E5:E10)))","v":0},{"$f":"IF(ISERROR(('A7-CFlow'!F6+'A7-CFlow'!F7)/SUM('A4-FinPerf RE'!F5:F10)),0,(('A7-CFlow'!F6+'A7-CFlow'!F7)/SUM('A4-FinPerf RE'!F5:F10)))","v":3.6804001111082645},{"$f":"IF(ISERROR(('A7-CFlow'!G6+'A7-CFlow'!G7)/SUM('A4-FinPerf RE'!G5:G10)),0,(('A7-CFlow'!G6+'A7-CFlow'!G7)/SUM('A4-FinPerf RE'!G5:G10)))","v":4.3340802861819352},{"$f":"IF(ISERROR(('A7-CFlow'!H6+'A7-CFlow'!H7)/SUM('A4-FinPerf RE'!H5:H10)),0,(('A7-CFlow'!H6+'A7-CFlow'!H7)/SUM('A4-FinPerf RE'!H5:H10)))","v":4.3340802861819352},{"$f":"IF(ISERROR(('A7-CFlow'!I6+'A7-CFlow'!I7)/SUM('A4-FinPerf RE'!I5:I10)),0,(('A7-CFlow'!I6+'A7-CFlow'!I7)/SUM('A4-FinPerf RE'!I5:I10)))","v":4.3340802861819352},{"$f":"IF(ISERROR(('A7-CFlow'!J6+'A7-CFlow'!J7)/SUM('A4-FinPerf RE'!J5:J10)),0,(('A7-CFlow'!J6+'A7-CFlow'!J7)/SUM('A4-FinPerf RE'!J5:J10)))","v":4.3360120929629771},{"$f":"IF(ISERROR(('A7-CFlow'!K6+'A7-CFlow'!K7)/SUM('A4-FinPerf RE'!K5:K10)),0,(('A7-CFlow'!K6+'A7-CFlow'!K7)/SUM('A4-FinPerf RE'!K5:K10)))","v":4.3280260351091879},{"$f":"IF(ISERROR(('A7-CFlow'!L6+'A7-CFlow'!L7)/SUM('A4-FinPerf RE'!L5:L10)),0,(('A7-CFlow'!L6+'A7-CFlow'!L7)/SUM('A4-FinPerf RE'!L5:L10)))","v":4.3209409185793328}]
["Outstanding Debtors to Revenue","Total Outstanding Debtors to Annual Revenue",{"$f":"IF(ISERROR(('A6-FinPos'!C8+'A6-FinPos'!C10+'A6-FinPos'!C11+'A6-FinPos'!C16)/'A4-FinPerf RE'!C32),0,(('A6-FinPos'!C8+'A6-FinPos'!C10+'A6-FinPos'!C11+'A6-FinPos'!C16)/'A4-FinPerf RE'!C32))","v":0.63163684628408534},{"$f":"IF(ISERROR(('A6-FinPos'!D8+'A6-FinPos'!D10+'A6-FinPos'!D11+'A6-FinPos'!D16)/'A4-FinPerf RE'!D32),0,(('A6-FinPos'!D8+'A6-FinPos'!D10+'A6-FinPos'!D11+'A6-FinPos'!D16)/'A4-FinPerf RE'!D32))","v":0.56265485480085375},{"$f":"IF(ISERROR(('A6-FinPos'!E8+'A6-FinPos'!E10+'A6-FinPos'!E11+'A6-FinPos'!E16)/'A4-FinPerf RE'!E32),0,(('A6-FinPos'!E8+'A6-FinPos'!E10+'A6-FinPos'!E11+'A6-FinPos'!E16)/'A4-FinPerf RE'!E32))","v":0.64792834066549254},{"$f":"IF(ISERROR(('A6-FinPos'!F8+'A6-FinPos'!F10+'A6-FinPos'!F11+'A6-FinPos'!F16)/'A4-FinPerf RE'!F32),0,(('A6-FinPos'!F8+'A6-FinPos'!F10+'A6-FinPos'!F11+'A6-FinPos'!F16)/'A4-FinPerf RE'!F32))","v":0.25719954832677516},{"$f":"IF(ISERROR(('A6-FinPos'!G8+'A6-FinPos'!G10+'A6-FinPos'!G11+'A6-FinPos'!G16)/'A4-FinPerf RE'!G32),0,(('A6-FinPos'!G8+'A6-FinPos'!G10+'A6-FinPos'!G11+'A6-FinPos'!G16)/'A4-FinPerf RE'!G32))","v":0.79494036870234652},{"$f":"IF(ISERROR(('A6-FinPos'!H8+'A6-FinPos'!H10+'A6-FinPos'!H11+'A6-FinPos'!H16)/'A4-FinPerf RE'!H32),0,(('A6-FinPos'!H8+'A6-FinPos'!H10+'A6-FinPos'!H11+'A6-FinPos'!H16)/'A4-FinPerf RE'!H32))","v":0.79494036870234652},{"$f":"IF(ISERROR(('A6-FinPos'!I8+'A6-FinPos'!I10+'A6-FinPos'!I11+'A6-FinPos'!I16)/'A4-FinPerf RE'!I32),0,(('A6-FinPos'!I8+'A6-FinPos'!I10+'A6-FinPos'!I11+'A6-FinPos'!I16)/'A4-FinPerf RE'!I32))","v":0.79494036870234652},{"$f":"IF(ISERROR(('A6-FinPos'!J8+'A6-FinPos'!J10+'A6-FinPos'!J11+'A6-FinPos'!J16)/'A4-FinPerf RE'!J32),0,(('A6-FinPos'!J8+'A6-FinPos'!J10+'A6-FinPos'!J11+'A6-FinPos'!J16)/'A4-FinPerf RE'!J32))","v":0.43514800563575279},{"$f":"IF(ISERROR(('A6-FinPos'!K8+'A6-FinPos'!K10+'A6-FinPos'!K11+'A6-FinPos'!K16)/'A4-FinPerf RE'!K32),0,(('A6-FinPos'!K8+'A6-FinPos'!K10+'A6-FinPos'!K11+'A6-FinPos'!K16)/'A4-FinPerf RE'!K32))","v":0.41019402307800501},{"$f":"IF(ISERROR(('A6-FinPos'!L8+'A6-FinPos'!L10+'A6-FinPos'!L11+'A6-FinPos'!L16)/'A4-FinPerf RE'!L32),0,(('A6-FinPos'!L8+'A6-FinPos'!L10+'A6-FinPos'!L11+'A6-FinPos'!L16)/'A4-FinPerf RE'!L32))","v":0.41000769166704437}]
["Longstanding Debtors Recovered","Debtors > 12 Mths Recovered/Total Debtors > 12 Months Old"]
["Creditors Management"]
["Creditors System Efficiency","% of Creditors Paid Within Terms (within`MFMA' s 65(e))"]
["Creditors to Cash and Investments",null,{"$f":"IF(ISERROR('SA3'!C138/'A7-CFlow'!C39),0,('SA3'!C138/'A7-CFlow'!C39))","v":0},{"$f":"IF(ISERROR('SA3'!D138/'A7-CFlow'!D39),0,('SA3'!D138/'A7-CFlow'!D39))","v":0},{"$f":"IF(ISERROR('SA3'!E138/'A7-CFlow'!E39),0,('SA3'!E138/'A7-CFlow'!E39))","v":0},{"$f":"IF(ISERROR('SA3'!F138/'A7-CFlow'!F39),0,('SA3'!F138/'A7-CFlow'!F39))","v":-0.76020550246088203},{"$f":"IF(ISERROR('SA3'!G138/'A7-CFlow'!G39),0,('SA3'!G138/'A7-CFlow'!G39))","v":0.69665782644687158},{"$f":"IF(ISERROR('SA3'!H138/'A7-CFlow'!H39),0,('SA3'!H138/'A7-CFlow'!H39))","v":0.69665782644687158},{"$f":"IF(ISERROR('SA3'!I138/'A7-CFlow'!I39),0,('SA3'!I138/'A7-CFlow'!I39))","v":0.69665782644687158},{"$f":"IF(ISERROR('SA3'!J138/'A7-CFlow'!J39),0,('SA3'!J138/'A7-CFlow'!J39))","v":0.6175999983248277},{"$f":"IF(ISERROR('SA3'!K138/'A7-CFlow'!K39),0,('SA3'!K138/'A7-CFlow'!K39))","v":1.2258649155029062},{"$f":"IF(ISERROR('SA3'!L138/'A7-CFlow'!L39),0,('SA3'!L138/'A7-CFlow'!L39))","v":7.777295563768817}]
[]
["Other Indicators"]
["Electricity Distribution Losses (2)","Total Volume Losses (kW) technical"]
[null,"Total Volume Losses (kW) non technical"]
[null,"Total Cost of Losses (Rand '000)"]
[null,"% Volume (units purchased and generated less units sold)/units purchased and generated"]
["Water Volumes :System input","Bulk Purchase"]
[null,"Water treatment works"]
[null,"Natural sources"]
["Water Distribution Losses (2)","Total Volume Losses (kℓ)"]
[null,"Total Cost of Losses (Rand '000)"]
[null,"% Volume (units purchased and generated less units sold)/units purchased and generated"]
["Employee costs","Employee costs/(Total Revenue - capital revenue)",{"$f":"IF(ISERROR('A4-FinPerf RE'!C34/'A4-FinPerf RE'!C32),0,('A4-FinPerf RE'!C34/'A4-FinPerf RE'!C32))","v":0.21631396239976661},{"$f":"IF(ISERROR('A4-FinPerf RE'!D34/'A4-FinPerf RE'!D32),0,('A4-FinPerf RE'!D34/'A4-FinPerf RE'!D32))","v":0.29507672860466516},{"$f":"IF(ISERROR('A4-FinPerf RE'!E34/'A4-FinPerf RE'!E32),0,('A4-FinPerf RE'!E34/'A4-FinPerf RE'!E32))","v":0.31965806676991915},{"$f":"IF(ISERROR('A4-FinPerf RE'!F34/'A4-FinPerf RE'!F32),0,('A4-FinPerf RE'!F34/'A4-FinPerf RE'!F32))","v":0.35731751125134298},{"$f":"IF(ISERROR('A4-FinPerf RE'!G34/'A4-FinPerf RE'!G32),0,('A4-FinPerf RE'!G34/'A4-FinPerf RE'!G32))","v":0.31814903346219647},{"$f":"IF(ISERROR('A4-FinPerf RE'!H34/'A4-FinPerf RE'!H32),0,('A4-FinPerf RE'!H34/'A4-FinPerf RE'!H32))","v":0.31814903346219647},"`",{"$f":"IF(ISERROR('A4-FinPerf RE'!J34/'A4-FinPerf RE'!J32),0,('A4-FinPerf RE'!J34/'A4-FinPerf RE'!J32))","v":0.3725768484301818},{"$f":"IF(ISERROR('A4-FinPerf RE'!K34/'A4-FinPerf RE'!K32),0,('A4-FinPerf RE'!K34/'A4-FinPerf RE'!K32))","v":0.35869889058023907},{"$f":"IF(ISERROR('A4-FinPerf RE'!L34/'A4-FinPerf RE'!L32),0,('A4-FinPerf RE'!L34/'A4-FinPerf RE'!L32))","v":0.37727409383376675}]
["Remuneration","Total remuneration/(Total Revenue - capital revenue)",{"$f":"IF(ISERROR('SA22'!C122/'A4-FinPerf RE'!C32),0,('SA22'!C122/'A4-FinPerf RE'!C32))","v":0.27429668462297341},{"$f":"IF(ISERROR('SA22'!D122/'A4-FinPerf RE'!D32),0,('SA22'!D122/'A4-FinPerf RE'!D32))","v":0.34258399764394259},{"$f":"IF(ISERROR('SA22'!E122/'A4-FinPerf RE'!E32),0,('SA22'!E122/'A4-FinPerf RE'!E32))","v":0.36942257757499447},{"$f":"IF(ISERROR('SA22'!F122/'A4-FinPerf RE'!F32),0,('SA22'!F122/'A4-FinPerf RE'!F32))","v":0.40257010364778872},{"$f":"IF(ISERROR('SA22'!G122/'A4-FinPerf RE'!G32),0,('SA22'!G122/'A4-FinPerf RE'!G32))","v":0.36595109160608963},{"$f":"IF(ISERROR('SA22'!H122/'A4-FinPerf RE'!H32),0,('SA22'!H122/'A4-FinPerf RE'!H32))","v":0.36595109160608963},{"$f":"H37","v":0.36595109160608963},{"$f":"IF(ISERROR('SA22'!I122/'A4-FinPerf RE'!J32),0,('SA22'!I122/'A4-FinPerf RE'!J32))","v":0.4189910697325348},{"$f":"IF(ISERROR('SA22'!J122/'A4-FinPerf RE'!K32),0,('SA22'!J122/'A4-FinPerf RE'!K32))","v":0.40480899361248907},{"$f":"IF(ISERROR('SA22'!K122/'A4-FinPerf RE'!L32),0,('SA22'!K122/'A4-FinPerf RE'!L32))","v":0.42578865459919363}]
["Repairs & Maintenance","R&M/(Total Revenue excluding capital revenue)",{"$f":"IF(ISERROR('A9-Asset'!C184/'A4-FinPerf RE'!C32),0,('A9-Asset'!C184/'A4-FinPerf RE'!C32))","v":1.4021430367566449E-2},{"$f":"IF(ISERROR('A9-Asset'!D184/'A4-FinPerf RE'!D32),0,('A9-Asset'!D184/'A4-FinPerf RE'!D32))","v":1.4429753728304856E-2},{"$f":"IF(ISERROR('A9-Asset'!E184/'A4-FinPerf RE'!E32),0,('A9-Asset'!E184/'A4-FinPerf RE'!E32))","v":4.3285276306374881E-2},{"$f":"IF(ISERROR('A9-Asset'!F184/'A4-FinPerf RE'!F32),0,('A9-Asset'!F184/'A4-FinPerf RE'!F32))","v":8.6079851640980143E-2},{"$f":"IF(ISERROR('A9-Asset'!G184/'A4-FinPerf RE'!G32),0,('A9-Asset'!G184/'A4-FinPerf RE'!G32))","v":0.12778405679256477},{"$f":"IF(ISERROR('A9-Asset'!H184/'A4-FinPerf RE'!H32),0,('A9-Asset'!H184/'A4-FinPerf RE'!H32))","v":0.12778405679256477},0.12778405679256477,{"$f":"IF(ISERROR('A9-Asset'!I184/'A4-FinPerf RE'!J32),0,('A9-Asset'!I184/'A4-FinPerf RE'!J32))","v":0.11676123683563437},{"$f":"IF(ISERROR('A9-Asset'!J184/'A4-FinPerf RE'!K32),0,('A9-Asset'!J184/'A4-FinPerf RE'!K32))","v":0.11666124669680607},{"$f":"IF(ISERROR('A9-Asset'!K184/'A4-FinPerf RE'!L32),0,('A9-Asset'!K184/'A4-FinPerf RE'!L32))","v":0.11971897767151542}]
["Finance charges & Depreciation","FC&D/(Total Revenue - capital revenue)",{"$f":"IF(ISERROR(('A4-FinPerf RE'!C40+'A4-FinPerf RE'!C39)/'A4-FinPerf RE'!C32),0,(('A4-FinPerf RE'!C40+'A4-FinPerf RE'!C39)/'A4-FinPerf RE'!C32))","v":4.5664119701645323E-3},{"$f":"IF(ISERROR(('A4-FinPerf RE'!D40+'A4-FinPerf RE'!D39)/'A4-FinPerf RE'!D32),0,(('A4-FinPerf RE'!D40+'A4-FinPerf RE'!D39)/'A4-FinPerf RE'!D32))","v":0.20352946335354338},{"$f":"IF(ISERROR(('A4-FinPerf RE'!E40+'A4-FinPerf RE'!E39)/'A4-FinPerf RE'!E32),0,(('A4-FinPerf RE'!E40+'A4-FinPerf RE'!E39)/'A4-FinPerf RE'!E32))","v":0.22647273832987461},{"$f":"IF(ISERROR(('A4-FinPerf RE'!F40+'A4-FinPerf RE'!F39)/'A4-FinPerf RE'!F32),0,(('A4-FinPerf RE'!F40+'A4-FinPerf RE'!F39)/'A4-FinPerf RE'!F32))","v":0.17140626913192983},{"$f":"IF(ISERROR(('A4-FinPerf RE'!G40+'A4-FinPerf RE'!G39)/'A4-FinPerf RE'!G32),0,(('A4-FinPerf RE'!G40+'A4-FinPerf RE'!G39)/'A4-FinPerf RE'!G32))","v":0.17446885473553478},{"$f":"IF(ISERROR(('A4-FinPerf RE'!H40+'A4-FinPerf RE'!H39)/'A4-FinPerf RE'!H32),0,(('A4-FinPerf RE'!H40+'A4-FinPerf RE'!H39)/'A4-FinPerf RE'!H32))","v":0.17446885473553478},0.17446885473553478,{"$f":"IF(ISERROR(('A4-FinPerf RE'!J40+'A4-FinPerf RE'!J39)/'A4-FinPerf RE'!J32),0,(('A4-FinPerf RE'!J40+'A4-FinPerf RE'!J39)/'A4-FinPerf RE'!J32))","v":0.17713697699433512},{"$f":"IF(ISERROR(('A4-FinPerf RE'!K40+'A4-FinPerf RE'!K39)/'A4-FinPerf RE'!K32),0,(('A4-FinPerf RE'!K40+'A4-FinPerf RE'!K39)/'A4-FinPerf RE'!K32))","v":0.16952213248911499},{"$f":"IF(ISERROR(('A4-FinPerf RE'!L40+'A4-FinPerf RE'!L39)/'A4-FinPerf RE'!L32),0,(('A4-FinPerf RE'!L40+'A4-FinPerf RE'!L39)/'A4-FinPerf RE'!L32))","v":0.17212985746886525}]
["IDP regulation financial viability indicators",null,null,null,null,null,null,null,0]
["i. Debt coverage","(Total Operating Revenue - Operating Grants)/Debt service payments due within financial year)",{"$f":"IF(ISERROR(('A4-FinPerf RE'!C32-'A4-FinPerf RE'!C29)/('A7-CFlow'!D11-'A7-CFlow'!D34)),0,(('A4-FinPerf RE'!C32-'A4-FinPerf RE'!C29)/('A7-CFlow'!D11-'A7-CFlow'!D34)))","v":0},{"$f":"IF(ISERROR(('A4-FinPerf RE'!D32-'A4-FinPerf RE'!D29)/('A7-CFlow'!E11-'A7-CFlow'!E34)),0,(('A4-FinPerf RE'!D32-'A4-FinPerf RE'!D29)/('A7-CFlow'!E11-'A7-CFlow'!E34)))","v":0},{"$f":"IF(ISERROR(('A4-FinPerf RE'!E32-'A4-FinPerf RE'!E29)/('A7-CFlow'!F11-'A7-CFlow'!F34)),0,(('A4-FinPerf RE'!E32-'A4-FinPerf RE'!E29)/('A7-CFlow'!F11-'A7-CFlow'!F34)))","v":53.263131052356314},{"$f":"IF(ISERROR(('A4-FinPerf RE'!F32-'A4-FinPerf RE'!F29)/('A7-CFlow'!G11-'A7-CFlow'!G34)),0,(('A4-FinPerf RE'!F32-'A4-FinPerf RE'!F29)/('A7-CFlow'!G11-'A7-CFlow'!G34)))","v":11.080889017644708},{"$f":"F41","v":11.080889017644708},{"$f":"G41","v":11.080889017644708},11.080889017644708,{"$f":"IF(ISERROR(('A4-FinPerf RE'!J32-'A4-FinPerf RE'!J29)/('A7-CFlow'!K11-'A7-CFlow'!K34)),0,(('A4-FinPerf RE'!J32-'A4-FinPerf RE'!J29)/('A7-CFlow'!K11-'A7-CFlow'!K34)))","v":20.976698335069123},{"$f":"IF(ISERROR(('A4-FinPerf RE'!K32-'A4-FinPerf RE'!K29)/('A7-CFlow'!L11-'A7-CFlow'!L34)),0,(('A4-FinPerf RE'!K32-'A4-FinPerf RE'!K29)/('A7-CFlow'!L11-'A7-CFlow'!L34)))","v":21.155383095595635},{"$f":"IF(ISERROR(('A4-FinPerf RE'!L32-'A4-FinPerf RE'!L29)/('A7-CFlow'!L11-'A7-CFlow'!L34)),0,(('A4-FinPerf RE'!L32-'A4-FinPerf RE'!L29)/('A7-CFlow'!L11-'A7-CFlow'!L34)))","v":21.051914292255876}]
["ii.O/S Service Debtors to Revenue","Total outstanding service debtors/annual revenue received for services",{"$f":"IF(ISERROR(('A6-FinPos'!C8+'A6-FinPos'!C10+'A6-FinPos'!C11)/SUM('A4-FinPerf RE'!C5:C11)),0,(('A6-FinPos'!C8+'A6-FinPos'!C10+'A6-FinPos'!C11)/SUM('A4-FinPerf RE'!C5:C11)))","v":29.54147079881302},{"$f":"IF(ISERROR(('A6-FinPos'!D8+'A6-FinPos'!D10+'A6-FinPos'!D11)/SUM('A4-FinPerf RE'!D5:D11)),0,(('A6-FinPos'!D8+'A6-FinPos'!D10+'A6-FinPos'!D11)/SUM('A4-FinPerf RE'!D5:D11)))","v":24.253159448199511},{"$f":"IF(ISERROR(('A6-FinPos'!E8+'A6-FinPos'!E10+'A6-FinPos'!E11)/SUM('A4-FinPerf RE'!E5:E11)),0,(('A6-FinPos'!E8+'A6-FinPos'!E10+'A6-FinPos'!E11)/SUM('A4-FinPerf RE'!E5:E11)))","v":31.11834346966047},{"$f":"IF(ISERROR(('A6-FinPos'!F8+'A6-FinPos'!F10+'A6-FinPos'!F11)/SUM('A4-FinPerf RE'!F5:F11)),0,(('A6-FinPos'!F8+'A6-FinPos'!F10+'A6-FinPos'!F11)/SUM('A4-FinPerf RE'!F5:F11)))","v":4.8752877301273552},{"$f":"IF(ISERROR(('A6-FinPos'!G8+'A6-FinPos'!G10+'A6-FinPos'!G11)/SUM('A4-FinPerf RE'!G5:G11)),0,(('A6-FinPos'!G8+'A6-FinPos'!G10+'A6-FinPos'!G11)/SUM('A4-FinPerf RE'!G5:G11)))","v":22.290524850165593},{"$f":"IF(ISERROR(('A6-FinPos'!H8+'A6-FinPos'!H10+'A6-FinPos'!H11)/SUM('A4-FinPerf RE'!H5:H11)),0,(('A6-FinPos'!H8+'A6-FinPos'!H10+'A6-FinPos'!H11)/SUM('A4-FinPerf RE'!H5:H11)))","v":22.290524850165593},22.290524850165593,{"$f":"IF(ISERROR(('A6-FinPos'!J8+'A6-FinPos'!J10+'A6-FinPos'!J11)/SUM('A4-FinPerf RE'!J5:J11)),0,(('A6-FinPos'!J8+'A6-FinPos'!J10+'A6-FinPos'!J11)/SUM('A4-FinPerf RE'!J5:J11)))","v":11.280481029561763},{"$f":"IF(ISERROR(('A6-FinPos'!K8+'A6-FinPos'!K10+'A6-FinPos'!K11)/SUM('A4-FinPerf RE'!K5:K11)),0,(('A6-FinPos'!K8+'A6-FinPos'!K10+'A6-FinPos'!K11)/SUM('A4-FinPerf RE'!K5:K11)))","v":10.67881444008435},{"$f":"IF(ISERROR(('A6-FinPos'!L8+'A6-FinPos'!L10+'A6-FinPos'!L11)/SUM('A4-FinPerf RE'!L5:L11)),0,(('A6-FinPos'!L8+'A6-FinPos'!L10+'A6-FinPos'!L11)/SUM('A4-FinPerf RE'!L5:L11)))","v":10.126705586148292}]
["iii. Cost coverage","(Available cash + Investments)/monthly fixed operational expenditure",{"$f":"IF(ISERROR('A7-CFlow'!C39/'SA8'!C50),0,('A7-CFlow'!C39/'SA8'!C50))","v":0},{"$f":"IF(ISERROR('A7-CFlow'!D39/'SA8'!D50),0,('A7-CFlow'!D39/'SA8'!D50))","v":0},{"$f":"IF(ISERROR('A7-CFlow'!E39/'SA8'!E50),0,('A7-CFlow'!E39/'SA8'!E50))","v":0},{"$f":"IF(ISERROR('A7-CFlow'!F39/'SA8'!F50),0,('A7-CFlow'!F39/'SA8'!F50))","v":5.3526962148170805},{"$f":"IF(ISERROR('A7-CFlow'!G39/'SA8'!G50),0,('A7-CFlow'!G39/'SA8'!G50))","v":5.3149950973010007},{"$f":"IF(ISERROR('A7-CFlow'!H39/'SA8'!H50),0,('A7-CFlow'!H39/'SA8'!H50))","v":5.3149950973010007},5.3149950973010007,{"$f":"IF(ISERROR('A7-CFlow'!J39/'SA8'!J50),0,('A7-CFlow'!J39/'SA8'!J50))","v":3.2685561736999325},{"$f":"IF(ISERROR('A7-CFlow'!K39/'SA8'!K50),0,('A7-CFlow'!K39/'SA8'!K50))","v":1.5664707353108156},{"$f":"IF(ISERROR('A7-CFlow'!L39/'SA8'!L50),0,('A7-CFlow'!L39/'SA8'!L50))","v":0.29442982381350286}]
[{"$f":"head27a","v":"References"}]
["1. Consumer debtors > 12 months old are excluded from current assets"]
["2. Only include if services provided by the municipality"]
[]
["Calculation data"]
["Debtors > 90 days"]
["Monthly fixed operational expenditure",null,{"$f":"(('A4-FinPerf RE'!C34+'A4-FinPerf RE'!C35+'A4-FinPerf RE'!C38+'A4-FinPerf RE'!C40+'A4-FinPerf RE'!C36+'A4-FinPerf RE'!C41+'SA1'!C91+'A7-CFlow'!C34)+(('A4-FinPerf RE'!C37+'A4-FinPerf RE'!C44)*'SA8'!C51))/12","v":12494511.833333334},{"$f":"(('A4-FinPerf RE'!D34+'A4-FinPerf RE'!D35+'A4-FinPerf RE'!D38+'A4-FinPerf RE'!D40+'A4-FinPerf RE'!D36+'A4-FinPerf RE'!D41+'SA1'!D91+'A7-CFlow'!D34)+(('A4-FinPerf RE'!D37+'A4-FinPerf RE'!D44)*'SA8'!D51))/12","v":23847925.683333334},{"$f":"(('A4-FinPerf RE'!E34+'A4-FinPerf RE'!E35+'A4-FinPerf RE'!E38+'A4-FinPerf RE'!E40+'A4-FinPerf RE'!E36+'A4-FinPerf RE'!E41+'SA1'!E91+'A7-CFlow'!E34)+(('A4-FinPerf RE'!E37+'A4-FinPerf RE'!E44)*'SA8'!E51))/12","v":24699135.516666666},{"$f":"(('A4-FinPerf RE'!F34+'A4-FinPerf RE'!F35+'A4-FinPerf RE'!F38+'A4-FinPerf RE'!F40+'A4-FinPerf RE'!F36+'A4-FinPerf RE'!F41+'SA1'!F91+'A7-CFlow'!F34)+(('A4-FinPerf RE'!F37+'A4-FinPerf RE'!F44)*'SA8'!F51))/12","v":34309623.716666669},{"$f":"(('A4-FinPerf RE'!G34+'A4-FinPerf RE'!G35+'A4-FinPerf RE'!G38+'A4-FinPerf RE'!G40+'A4-FinPerf RE'!G36+'A4-FinPerf RE'!G41+'SA1'!G91+'A7-CFlow'!G34)+(('A4-FinPerf RE'!G37+'A4-FinPerf RE'!G44)*'SA8'!G51))/12","v":34856514.733333334},{"$f":"(('A4-FinPerf RE'!H34+'A4-FinPerf RE'!H35+'A4-FinPerf RE'!H38+'A4-FinPerf RE'!H40+'A4-FinPerf RE'!H36+'A4-FinPerf RE'!H41+'SA1'!H91+'A7-CFlow'!H34)+(('A4-FinPerf RE'!H37+'A4-FinPerf RE'!H44)*'SA8'!H51))/12","v":34856514.733333334},{"$f":"(('A4-FinPerf RE'!I34+'A4-FinPerf RE'!I35+'A4-FinPerf RE'!I38+'A4-FinPerf RE'!I40+'A4-FinPerf RE'!I36+'A4-FinPerf RE'!I41+'SA1'!I91+'A7-CFlow'!I34)+(('A4-FinPerf RE'!I37+'A4-FinPerf RE'!I44)*'SA8'!I51))/12","v":34856514.733333334},{"$f":"(('A4-FinPerf RE'!J34+'A4-FinPerf RE'!J35+'A4-FinPerf RE'!J38+'A4-FinPerf RE'!J40+'A4-FinPerf RE'!J36+'A4-FinPerf RE'!J41+'SA1'!J91+'A7-CFlow'!J34)+(('A4-FinPerf RE'!J37+'A4-FinPerf RE'!J44)*'SA8'!J51))/12","v":38012487.949999996},{"$f":"(('A4-FinPerf RE'!K34+'A4-FinPerf RE'!K35+'A4-FinPerf RE'!K38+'A4-FinPerf RE'!K40+'A4-FinPerf RE'!K36+'A4-FinPerf RE'!K41+'SA1'!K91+'A7-CFlow'!K34)+(('A4-FinPerf RE'!K37+'A4-FinPerf RE'!K44)*'SA8'!K51))/12","v":38678362.550000004},{"$f":"(('A4-FinPerf RE'!L34+'A4-FinPerf RE'!L35+'A4-FinPerf RE'!L38+'A4-FinPerf RE'!L40+'A4-FinPerf RE'!L36+'A4-FinPerf RE'!L41+'SA1'!L91+'A7-CFlow'!L34)+(('A4-FinPerf RE'!L37+'A4-FinPerf RE'!L44)*'SA8'!L51))/12","v":40067369.083333336}]
["Fixed operational expenditure % assumption",null,0.4,{"$f":"$C$51","v":0.4},{"$f":"$C$51","v":0.4},0.4,0.4,0.4,0.4,0.4,0.4,0.4]
["Own capex",null,{"$f":"'A5-Capex'!C40-'A5-Capex'!C70-'A5-Capex'!C71","v":114442779},{"$f":"'A5-Capex'!D40-'A5-Capex'!D70-'A5-Capex'!D71","v":77111419},{"$f":"'A5-Capex'!E40-'A5-Capex'!E70-'A5-Capex'!E71","v":84447934},{"$f":"'A5-Capex'!F40-'A5-Capex'!F70-'A5-Capex'!F71","v":82635255},{"$f":"'A5-Capex'!G40-'A5-Capex'!G70-'A5-Capex'!G71","v":63398530},{"$f":"'A5-Capex'!H40-'A5-Capex'!H70-'A5-Capex'!H71","v":63398530},{"$f":"'A5-Capex'!I40-'A5-Capex'!I70-'A5-Capex'!I71","v":63398530},{"$f":"'A5-Capex'!J40-'A5-Capex'!J70-'A5-Capex'!J71","v":90920750},{"$f":"'A5-Capex'!K40-'A5-Capex'!K70-'A5-Capex'!K71","v":102410000},{"$f":"'A5-Capex'!L40-'A5-Capex'!L70-'A5-Capex'!L71","v":85595708}]
["Borrowing",null,{"$f":"'A7-CFlow'!C30+'A7-CFlow'!C31","v":0},{"$f":"'A7-CFlow'!D30+'A7-CFlow'!D31","v":0},{"$f":"'A7-CFlow'!E30+'A7-CFlow'!E31","v":0},{"$f":"'A7-CFlow'!F30+'A7-CFlow'!F31","v":0},{"$f":"'A7-CFlow'!G30+'A7-CFlow'!G31","v":0},{"$f":"'A7-CFlow'!H30+'A7-CFlow'!H31","v":0},{"$f":"'A7-CFlow'!I30+'A7-CFlow'!I31","v":0},{"$f":"'A7-CFlow'!J30+'A7-CFlow'!J31","v":0},{"$f":"'A7-CFlow'!K30+'A7-CFlow'!K31","v":0},{"$f":"'A7-CFlow'!L30+'A7-CFlow'!L31","v":0}]

{"sheet":"SA9","index":52,"n_rows":310,"n_cols":33,"rows_kept":310,"cut":false,"hidden":false,"merged":[[108,10,108,12],[1,5,2,5],[62,7,62,9],[62,10,62,12],[108,0,109,0],[108,7,108,9],[1,0,2,0],[62,0,63,0],[1,3,2,3],[1,4,2,4],[1,10,1,12],[1,1,2,1],[1,2,2,2],[246,7,246,9],[246,10,246,12],[246,0,247,0],[154,0,155,0],[154,7,154,9],[200,7,200,9],[200,10,200,12],[154,10,154,12],[200,0,201,0]]}
[{"$f":"muni&\" - \"&TableA9","v":"LIM331 Greater Giyani - Supporting Table SA9 Social, economic and demographic statistics and assumptions"}]
["Description of economic indicator","Ref.","Basis of calculation",{"$f":"Head44","v":"2001 Census"},"2007 Survey",{"$f":"Head45","v":"2011 Census"},{"$f":"head1b","v":"2019/20"},{"$f":"head1A","v":"2020/21"},{"$f":"Head1","v":"2021/22"},{"$f":"Head2","v":"Current Year 2022/23"},{"$f":"Head3","v":"2023/24 Medium Term Revenue & Expenditure Framework"}]
[null,null,null,null,null,null,{"$f":"Head5A","v":"Outcome"},"Outcome","Outcome",{"$f":"Head6","v":"Original Budget"},"Outcome","Outcome","Outcome"]
["Demographics"]
["Population"]
["Females aged 5 - 14"]
["Males aged 5 - 14"]
["Females aged 15 - 34"]
["Males aged 15 - 34"]
["Unemployment"]
[]
["Monthly household income (no. of households)","1, 12"]
["No income"]
["R1 - R1 600"]
["R1 601 - R3 200"]
["R3 201 - R6 400"]
["R6 401 - R12 800"]
["R12 801 - R25 600"]
["R25 601 - R51 200"]
["R52 201 - R102 400"]
["R102 401 - R204 800"]
["R204 801 - R409 600"]
["R409 601 - R819 200"]
[" > R819 200"]
[]
[]
["Poverty profiles (no. of households)"]
["< R2 060 per household per month",13]
["Insert description",2]
[]
["Household/demographics (000)"]
["Number of people in municipal area"]
["Number of poor people in municipal area"]
["Number of households in municipal area"]
["Number of poor households in municipal area"]
["Definition of poor household (R per month)"]
[]
["Housing statistics",3]
["Formal"]
["Informal"]
["Total number of households",null,null,{"$f":"SUM(D39:D40)","v":0},{"$f":"SUM(E39:E40)","v":0},0,0,0,0,0,0,0,0]
["Dwellings provided by municipality",4]
["Dwellings provided by province/s"]
["Dwellings provided by private sector",5]
["Total new housing dwellings",null,null,{"$f":"SUM(D42:D44)","v":0},{"$f":"SUM(E42:E44)","v":0},0,0,0,0,0,0,0,0]
[]
["Economic",6]
["Inflation/inflation outlook (CPIX)"]
["Interest rate - borrowing"]
["Interest rate - investment"]
["Remuneration increases"]
["Consumption growth (electricity)"]
["Consumption growth (water)"]
[]
["Collection rates",7]
["Property tax/service charges"]
["Rental of facilities & equipment"]
["Interest - external investments"]
["Interest - debtors"]
["Revenue from agency services"]
[]
["Detail on the provision of municipal services for A10"]
["Total municipal services",null,null,null,{"$f":"head1b","v":"2019/20"},{"$f":"head1A","v":"2020/21"},{"$f":"Head1","v":"2021/22"},{"$f":"Head2","v":"Current Year 2022/23"},null,null,{"$f":"Head3","v":"2023/24 Medium Term Revenue & Expenditure Framework"}]
[null,"Ref.",null,null,{"$f":"Head5A","v":"Outcome"},{"$f":"Head5A","v":"Outcome"},{"$f":"Head5A","v":"Outcome"},{"$f":"Head6","v":"Original Budget"},{"$f":"Head7","v":"Adjusted Budget"},{"$f":"Head8","v":"Full Year Forecast"},{"$f":"Head9","v":"Budget Year 2023/24"},{"$f":"Head10","v":"Budget Year +1 2024/25"},{"$f":"Head11","v":"Budget Year +2 2025/26"}]
[null,null,"Household service targets (000)"]
[null,null,"Water:"]
[null,null,"Piped water inside dwelling",null,{"$f":"E113+E159+E205","v":0},{"$f":"F113+F159+F205","v":0},0,0,0,0,0,0,0]
[null,null,"Piped water inside yard (but not in dwelling)",null,{"$f":"E114+E160+E206","v":0},0,0,0,0,0,0,0,0]
[null,8,"Using public tap (at least min.service level)",null,0,0,0,0,0,0,0,0,0]
[null,10,"Other water supply (at least min.service level)",null,0,0,0,0,0,0,0,0,0]
[null,null,"Minimum Service Level and Above sub-total",null,{"$f":"SUM(E67:E70)","v":0},{"$f":"SUM(F67:F70)","v":0},0,0,0,0,0,0,0]
[null,9,"Using public tap (< min.service level)",null,{"$f":"E118+E164+E210","v":0},0,0,0,0,0,0,0,0]
[null,10,"Other water supply (< min.service level)",null,0,0,0,0,0,0,0,0,0]
[null,null,"No water supply",null,0,0,0,0,0,0,0,0,0]
[null,null,"Below Minimum Service Level sub-total",null,{"$f":"SUM(E72:E74)","v":0},{"$f":"SUM(F72:F74)","v":0},0,0,0,0,0,0,0]
[null,null,"Total number of households",null,{"$f":"E71+E75","v":0},{"$f":"F71+F75","v":0},0,0,0,0,0,0,0]
[null,null,"Sanitation/sewerage:"]
[null,null,"Flush toilet (connected to sewerage)",null,{"$f":"E124+E170+E216","v":0},0,0,0,0,0,0,0,0]
[null,null,"Flush toilet (with septic tank)",null,{"$f":"E125+E171+E217","v":0},0,0,0,0,0,0,0,0]
[null,null,"Chemical toilet",null,{"$f":"E126+E172+E218","v":0},0,0,0,0,0,0,0,0]
[null,null,"Pit toilet (ventilated)",null,{"$f":"E127+E173+E219","v":0},0,0,0,0,0,0,0,0]
[null,null,"Other toilet provisions (> min.service level)",null,{"$f":"E128+E174+E220","v":0},0,0,0,0,0,0,0,0]
[null,null,"Minimum Service Level and Above sub-total",null,{"$f":"SUM(E78:E82)","v":0},{"$f":"SUM(F78:F82)","v":0},0,0,0,0,0,0,0]
[null,null,"Bucket toilet",null,{"$f":"E130+E176+E222","v":0},0,0,0,0,0,0,0,0]
[null,null,"Other toilet provisions (< min.service level)",null,{"$f":"E131+E177+E223","v":0},0,0,0,0,0,0,0,0]
[null,null,"No toilet provisions",null,{"$f":"E132+E178+E224","v":0},0,0,0,0,0,0,0,0]
[null,null,"Below Minimum Service Level sub-total",null,{"$f":"SUM(E84:E86)","v":0},{"$f":"SUM(F84:F86)","v":0},0,0,0,0,0,0,0]
[null,null,"Total number of households",null,{"$f":"E83+E87","v":0},{"$f":"F83+F87","v":0},0,0,0,0,0,0,0]
[null,null,"Energy:"]
[null,null,"Electricity (at least min.service level)",null,{"$f":"E136+E182+E228","v":0},0,0,0,0,0,0,0,0]
[null,null,"Electricity - prepaid (min.service level)",null,{"$f":"E137+E183+E229","v":0},0,0,0,0,0,0,0,0]
[null,null,"Minimum Service Level and Above sub-total",null,{"$f":"SUM(E90:E91)","v":0},{"$f":"SUM(F90:F91)","v":0},0,0,0,0,0,0,0]
[null,null,"Electricity (< min.service level)",null,{"$f":"E139+E185+E231","v":0},0,0,0,0,0,0,0,0]
[null,null,"Electricity - prepaid (< min. service level)",null,{"$f":"E140+E186+E232","v":0},0,0,0,0,0,0,0,0]
[null,null,"Other energy sources",null,{"$f":"E141+E187+E233","v":0},0,0,0,0,0,0,0,0]
[null,null,"Below Minimum Service Level sub-total",null,{"$f":"SUM(E93:E95)","v":0},{"$f":"SUM(F93:F95)","v":0},0,0,0,0,0,0,0]
[null,null,"Total number of households",null,{"$f":"E92+E96","v":0},{"$f":"F92+F96","v":0},0,0,0,0,0,0,0]
[null,null,"Refuse:"]
[null,null,"Removed at least once a week",null,{"$f":"E145+E191+E237","v":5528},5528,5528,5528,5528,5528,5528,5528,5528]
[null,null,"Minimum Service Level and Above sub-total",null,{"$f":"SUM(E99)","v":5528},{"$f":"SUM(F99)","v":5528},5528,5528,5528,5528,5528,5528,5528]
[null,null,"Removed less frequently than once a week",null,{"$f":"E147+E193+E239","v":0},0,0,0,0,0,0,0,0]
[null,null,"Using communal refuse dump",null,{"$f":"E148+E194+E240","v":0},0,0,0,0,0,0,0,0]
[null,null,"Using own refuse dump",null,{"$f":"E149+E195+E241","v":0},0,0,0,0,0,0,0,0]
[null,null,"Other rubbish disposal",null,{"$f":"E150+E196+E242","v":0},0,0,0,0,0,0,0,0]
[null,null,"No rubbish disposal",null,{"$f":"E151+E197+E243","v":0},0,0,0,0,0,0,0,0]
[null,null,"Below Minimum Service Level sub-total",null,{"$f":"SUM(E101:E105)","v":0},0,0,0,0,0,0,0,0]
[null,null,"Total number of households",null,{"$f":"E100+E106","v":5528},{"$f":"F100+F106","v":5528},5528,5528,5528,5528,5528,5528,5528]
[]
["Municipal in-house services",null,null,null,{"$f":"head1b","v":"2019/20"},{"$f":"head1A","v":"2020/21"},{"$f":"Head1","v":"2021/22"},{"$f":"Head2","v":"Current Year 2022/23"},null,null,{"$f":"Head3","v":"2023/24 Medium Term Revenue & Expenditure Framework"}]
[null,"Ref.",null,null,{"$f":"Head5A","v":"Outcome"},{"$f":"Head5A","v":"Outcome"},{"$f":"Head5A","v":"Outcome"},{"$f":"Head6","v":"Original Budget"},{"$f":"Head7","v":"Adjusted Budget"},{"$f":"Head8","v":"Full Year Forecast"},{"$f":"Head9","v":"Budget Year 2023/24"},{"$f":"Head10","v":"Budget Year +1 2024/25"},{"$f":"Head11","v":"Budget Year +2 2025/26"}]
[null,null,"Household service targets (000)"]
[null,null,"Water:"]
[null,null,"Piped water inside dwelling",null,0,0,0,0,0,0,0,0,0,null,null,null,null,null,null,null,null,null,null,null,null,null,null,null,null,null,1101,"A10",{"$f":"_xlfn.CONCAT(AF113,AE113)","v":"A101101"}]
[null,null,"Piped water inside yard (but not in dwelling)",null,0,0,0,0,0,0,0,0,0,null,null,null,null,null,null,null,null,null,null,null,null,null,null,null,null,null,1102,"A10",{"$f":"_xlfn.CONCAT(AF114,AE114)","v":"A101102"}]
[null,8,"Using public tap (at least min.service level)",null,0,0,0,0,0,0,0,0,0,null,null,null,null,null,null,null,null,null,null,null,null,null,null,null,null,null,1103,"A10","A101103"]
[null,10,"Other water supply (at least min.service level)",null,0,0,0,0,0,0,0,0,0,null,null,null,null,null,null,null,null,null,null,null,null,null,null,null,null,null,1104,"A10","A101104"]
[null,null,"Minimum Service Level and Above sub-total",null,{"$f":"SUM(E113:E116)","v":0},{"$f":"SUM(F113:F116)","v":0},0,0,0,0,0,0,0,null,null,null,null,null,null,null,null,null,null,null,null,null,null,null,null,null,1105,"A10","A101105"]
[null,9,"Using public tap (< min.service level)",null,0,0,0,0,0,0,0,0,0,null,null,null,null,null,null,null,null,null,null,null,null,null,null,null,null,null,1106,"A10","A101106"]
[null,10,"Other water supply (< min.service level)",null,0,0,0,0,0,0,0,0,0,null,null,null,null,null,null,null,null,null,null,null,null,null,null,null,null,null,1107,"A10","A101107"]
[null,null,"No water supply",null,0,0,0,0,0,0,0,0,0,null,null,null,null,null,null,null,null,null,null,null,null,null,null,null,null,null,1108,"A10","A101108"]
[null,null,"Below Minimum Service Level sub-total",null,{"$f":"SUM(E118:E120)","v":0},{"$f":"SUM(F118:F120)","v":0},0,0,0,0,0,0,0,null,null,null,null,null,null,null,null,null,null,null,null,null,null,null,null,null,1109,"A10","A101109"]
[null,null,"Total number of households",null,{"$f":"E117+E121","v":0},{"$f":"F117+F121","v":0},0,0,0,0,0,0,0,null,null,null,null,null,null,null,null,null,null,null,null,null,null,null,null,null,1110,"A10","A101110"]
[null,null,"Sanitation/sewerage:",null,null,null,null,null,null,null,null,null,null,null,null,null,null,null,null,null,null,null,null,null,null,null,null,null,null,null,1200,"A10","A101200"]
[null,null,"Flush toilet (connected to sewerage)",null,0,0,0,0,0,0,0,0,0,null,null,null,null,null,null,null,null,null,null,null,null,null,null,null,null,null,1201,"A10","A101201"]
[null,null,"Flush toilet (with septic tank)",null,0,0,0,0,0,0,0,0,0,null,null,null,null,null,null,null,null,null,null,null,null,null,null,null,null,null,1202,"A10","A101202"]
[null,null,"Chemical toilet",null,0,0,0,0,0,0,0,0,0,null,null,null,null,null,null,null,null,null,null,null,null,null,null,null,null,null,1203,"A10","A101203"]
[null,null,"Pit toilet (ventilated)",null,0,0,0,0,0,0,0,0,0,null,null,null,null,null,null,null,null,null,null,null,null,null,null,null,null,null,1204,"A10","A101204"]
[null,null,"Other toilet provisions (> min.service level)",null,0,0,0,0,0,0,0,0,0,null,null,null,null,null,null,null,null,null,null,null,null,null,null,null,null,null,1205,"A10","A101205"]
[null,null,"Minimum Service Level and Above sub-total",null,{"$f":"SUM(E124:E128)","v":0},{"$f":"SUM(F124:F128)","v":0},0,0,0,0,0,0,0,null,null,null,null,null,null,null,null,null,null,null,null,null,null,null,null,null,1206,"A10","A101206"]
[null,null,"Bucket toilet",null,0,0,0,0,0,0,0,0,0,null,null,null,null,null,null,null,null,null,null,null,null,null,null,null,null,null,1207,"A10","A101207"]
[null,null,"Other toilet provisions (< min.service level)",null,0,0,0,0,0,0,0,0,0,null,null,null,null,null,null,null,null,null,null,null,null,null,null,null,null,null,1208,"A10","A101208"]
[null,null,"No toilet provisions",null,0,0,0,0,0,0,0,0,0,null,null,null,null,null,null,null,null,null,null,null,null,null,null,null,null,null,1209,"A10","A101209"]
[null,null,"Below Minimum Service Level sub-total",null,{"$f":"SUM(E130:E132)","v":0},{"$f":"SUM(F130:F132)","v":0},0,0,0,0,0,0,0,null,null,null,null,null,null,null,null,null,null,null,null,null,null,null,null,null,1210,"A10","A101210"]
[null,null,"Total number of households",null,{"$f":"E129+E133","v":0},{"$f":"F129+F133","v":0},0,0,0,0,0,0,0,null,null,null,null,null,null,null,null,null,null,null,null,null,null,null,null,null,1211,"A10","A101211"]
[null,null,"Energy:",null,null,null,null,null,null,null,null,null,null,null,null,null,null,null,null,null,null,null,null,null,null,null,null,null,null,null,1300,"A10","A101300"]
[null,null,"Electricity (at least min.service level)",null,0,0,0,0,0,0,0,0,0,null,null,null,null,null,null,null,null,null,null,null,null,null,null,null,null,null,1301,"A10","A101301"]
[null,null,"Electricity - prepaid (min.service level)",null,0,0,0,0,0,0,0,0,0,null,null,null,null,null,null,null,null,null,null,null,null,null,null,null,null,null,1302,"A10","A101302"]
[null,null,"Minimum Service Level and Above sub-total",null,{"$f":"SUM(E136:E137)","v":0},{"$f":"SUM(F136:F137)","v":0},0,0,0,0,0,0,0,null,null,null,null,null,null,null,null,null,null,null,null,null,null,null,null,null,1303,"A10","A101303"]
[null,null,"Electricity (< min.service level)",null,0,0,0,0,0,0,0,0,0,null,null,null,null,null,null,null,null,null,null,null,null,null,null,null,null,null,1304,"A10","A101304"]
[null,null,"Electricity - prepaid (< min. service level)",null,0,0,0,0,0,0,0,0,0,null,null,null,null,null,null,null,null,null,null,null,null,null,null,null,null,null,1305,"A10","A101305"]
[null,null,"Other energy sources",null,0,0,0,0,0,0,0,0,0,null,null,null,null,null,null,null,null,null,null,null,null,null,null,null,null,null,1306,"A10","A101306"]
[null,null,"Below Minimum Service Level sub-total",null,{"$f":"SUM(E139:E141)","v":0},{"$f":"SUM(F139:F141)","v":0},0,0,0,0,0,0,0,null,null,null,null,null,null,null,null,null,null,null,null,null,null,null,null,null,1307,"A10","A101307"]
[null,null,"Total number of households",null,{"$f":"E138+E142","v":0},{"$f":"F138+F142","v":0},0,0,0,0,0,0,0,null,null,null,null,null,null,null,null,null,null,null,null,null,null,null,null,null,1308,"A10","A101308"]
[null,null,"Refuse:",null,null,null,null,null,null,null,null,null,null,null,null,null,null,null,null,null,null,null,null,null,null,null,null,null,null,null,1400,"A10","A101400"]
[null,null,"Removed at least once a week",null,5528,5528,5528,5528,5528,5528,5528,5528,5528,null,null,null,null,null,null,null,null,null,null,null,null,null,null,null,null,null,1401,"A10","A101401"]
[null,null,"Minimum Service Level and Above sub-total",null,{"$f":"SUM(E145)","v":5528},{"$f":"SUM(F145)","v":5528},5528,5528,5528,5528,5528,5528,5528,null,null,null,null,null,null,null,null,null,null,null,null,null,null,null,null,null,1402,"A10","A101402"]
[null,null,"Removed less frequently than once a week",null,0,0,0,0,0,0,0,0,0,null,null,null,null,null,null,null,null,null,null,null,null,null,null,null,null,null,1403,"A10","A101403"]
[null,null,"Using communal refuse dump",null,0,0,0,0,0,0,0,0,0,null,null,null,null,null,null,null,null,null,null,null,null,null,null,null,null,null,1404,"A10","A101404"]
[null,null,"Using own refuse dump",null,0,0,0,0,0,0,0,0,0,null,null,null,null,null,null,null,null,null,null,null,null,null,null,null,null,null,1405,"A10","A101405"]
[null,null,"Other rubbish disposal",null,0,0,0,0,0,0,0,0,0,null,null,null,null,null,null,null,null,null,null,null,null,null,null,null,null,null,1406,"A10","A101406"]
[null,null,"No rubbish disposal",null,0,0,0,0,0,0,0,0,0,null,null,null,null,null,null,null,null,null,null,null,null,null,null,null,null,null,1407,"A10","A101407"]
[null,null,"Below Minimum Service Level sub-total",null,{"$f":"SUM(E147:E151)","v":0},0,0,0,0,0,0,0,0,null,null,null,null,null,null,null,null,null,null,null,null,null,null,null,null,null,1408,"A10","A101408"]
[null,null,"Total number of households",null,{"$f":"E146+E152","v":5528},{"$f":"F146+F152","v":5528},5528,5528,5528,5528,5528,5528,5528,null,null,null,null,null,null,null,null,null,null,null,null,null,null,null,null,null,1409,"A10","A101409"]
[null,null,null,null,null,null,null,null,null,null,null,null,null,null,null,null,null,null,null,null,null,null,null,null,null,null,null,null,null,null,null,null,{"$f":"_xlfn.CONCAT(AF154,AE154)","v":""}]
["Municipal entity services",null,null,null,{"$f":"head1b","v":"2019/20"},{"$f":"head1A","v":"2020/21"},{"$f":"Head1","v":"2021/22"},{"$f":"Head2","v":"Current Year 2022/23"},null,null,{"$f":"Head3","v":"2023/24 Medium Term Revenue & Expenditure Framework"},null,null,null,null,null,null,null,null,null,null,null,null,null,null,null,null,null,null,null,null,null,""]
[null,"Ref.",null,null,{"$f":"Head5A","v":"Outcome"},{"$f":"Head5A","v":"Outcome"},{"$f":"Head5A","v":"Outcome"},{"$f":"Head6","v":"Original Budget"},{"$f":"Head7","v":"Adjusted Budget"},{"$f":"Head8","v":"Full Year Forecast"},{"$f":"Head9","v":"Budget Year 2023/24"},{"$f":"Head10","v":"Budget Year +1 2024/25"},{"$f":"Head11","v":"Budget Year +2 2025/26"},null,null,null,null,null,null,null,null,null,null,null,null,null,null,null,null,null,null,null,""]
[null,null,"Household service targets (000)",null,null,null,null,null,null,null,null,null,null,null,null,null,null,null,null,null,null,null,null,null,null,null,null,null,null,null,1500,"A10","A101500"]
["Name of municipal entity",null,"Water:",null,null,null,null,null,null,null,null,null,null,null,null,null,null,null,null,null,null,null,null,null,null,null,null,null,null,null,1501,"A10","A101501"]
[null,null,"Piped water inside dwelling",null,0,0,0,0,0,0,0,0,0,null,null,null,null,null,null,null,null,null,null,null,null,null,null,null,null,null,1502,"A10","A101502"]
[null,null,"Piped water inside yard (but not in dwelling)",null,0,0,0,0,0,0,0,0,0,null,null,null,null,null,null,null,null,null,null,null,null,null,null,null,null,null,1503,"A10","A101503"]
[null,8,"Using public tap (at least min.service level)",null,0,0,0,0,0,0,0,0,0,null,null,null,null,null,null,null,null,null,null,null,null,null,null,null,null,null,1504,"A10","A101504"]
[null,10,"Other water supply (at least min.service level)",null,0,0,0,0,0,0,0,0,0,null,null,null,null,null,null,null,null,null,null,null,null,null,null,null,null,null,1600,"A10","A101600"]
[null,null,"Minimum Service Level and Above sub-total",null,{"$f":"SUM(E159:E162)","v":0},{"$f":"SUM(F159:F162)","v":0},0,0,0,0,0,0,0,null,null,null,null,null,null,null,null,null,null,null,null,null,null,null,null,null,1601,"A10","A101601"]
[null,9,"Using public tap (< min.service level)",null,0,0,0,0,0,0,0,0,0,null,null,null,null,null,null,null,null,null,null,null,null,null,null,null,null,null,1602,"A10","A101602"]
[null,10,"Other water supply (< min.service level)",null,0,0,0,0,0,0,0,0,0,null,null,null,null,null,null,null,null,null,null,null,null,null,null,null,null,null,1603,"A10","A101603"]
[null,null,"No water supply",null,0,0,0,0,0,0,0,0,0,null,null,null,null,null,null,null,null,null,null,null,null,null,null,null,null,null,1604,"A10","A101604"]
[null,null,"Below Minimum Service Level sub-total",null,{"$f":"SUM(E164:E166)","v":0},{"$f":"SUM(F164:F166)","v":0},0,0,0,0,0,0,0,null,null,null,null,null,null,null,null,null,null,null,null,null,null,null,null,null,1606,"A10","A101606"]
[null,null,"Total number of households",null,{"$f":"E163+E167","v":0},{"$f":"F163+F167","v":0},0,0,0,0,0,0,0,null,null,null,null,null,null,null,null,null,null,null,null,null,null,null,null,null,1607,"A10","A101607"]
["Name of municipal entity",null,"Sanitation/sewerage:",null,null,null,null,null,null,null,null,null,null,null,null,null,null,null,null,null,null,null,null,null,null,null,null,null,null,null,1700,"A10","A101700"]
[null,null,"Flush toilet (connected to sewerage)",null,0,0,0,0,0,0,0,0,0,null,null,null,null,null,null,null,null,null,null,null,null,null,null,null,null,null,1701,"A10","A101701"]
[null,null,"Flush toilet (with septic tank)",null,0,0,0,0,0,0,0,0,0,null,null,null,null,null,null,null,null,null,null,null,null,null,null,null,null,null,1702,"A10","A101702"]
[null,null,"Chemical toilet",null,0,0,0,0,0,0,0,0,0,null,null,null,null,null,null,null,null,null,null,null,null,null,null,null,null,null,1703,"A10","A101703"]
[null,null,"Pit toilet (ventilated)",null,0,0,0,0,0,0,0,0,0,null,null,null,null,null,null,null,null,null,null,null,null,null,null,null,null,null,1704,"A10","A101704"]
[null,null,"Other toilet provisions (> min.service level)",null,0,0,0,0,0,0,0,0,0,null,null,null,null,null,null,null,null,null,null,null,null,null,null,null,null,null,1705,"A10","A101705"]
[null,null,"Minimum Service Level and Above sub-total",null,{"$f":"SUM(E170:E174)","v":0},{"$f":"SUM(F170:F174)","v":0},0,0,0,0,0,0,0,null,null,null,null,null,null,null,null,null,null,null,null,null,null,null,null,null,1706,"A10","A101706"]
[null,null,"Bucket toilet",null,0,0,0,0,0,0,0,0,0,null,null,null,null,null,null,null,null,null,null,null,null,null,null,null,null,null,1707,"A10","A101707"]
[null,null,"Other toilet provisions (< min.service level)",null,0,0,0,0,0,0,0,0,0,null,null,null,null,null,null,null,null,null,null,null,null,null,null,null,null,null,1708,"A10","A101708"]
[null,null,"No toilet provisions",null,0,0,0,0,0,0,0,0,0,null,null,null,null,null,null,null,null,null,null,null,null,null,null,null,null,null,1709,"A10",{"$f":"_xlfn.CONCAT(AF178,AE178)","v":"A101709"}]
[null,null,"Below Minimum Service Level sub-total",null,{"$f":"SUM(E176:E178)","v":0},{"$f":"SUM(F176:F178)","v":0},0,0,0,0,0,0,0,null,null,null,null,null,null,null,null,null,null,null,null,null,null,null,null,null,1710,"A10","A101710"]
[null,null,"Total number of households",null,{"$f":"E175+E179","v":0},{"$f":"F175+F179","v":0},0,0,0,0,0,0,0,null,null,null,null,null,null,null,null,null,null,null,null,null,null,null,null,null,1711,"A10","A101711"]
["Name of municipal entity",null,"Energy:",null,null,null,null,null,null,null,null,null,null,null,null,null,null,null,null,null,null,null,null,null,null,null,null,null,null,null,1712,"A10","A101712"]
[null,null,"Electricity (at least min.service level)",null,0,0,0,0,0,0,0,0,0,null,null,null,null,null,null,null,null,null,null,null,null,null,null,null,null,null,1713,"A10","A101713"]
[null,null,"Electricity - prepaid (min.service level)",null,0,0,0,0,0,0,0,0,0,null,null,null,null,null,null,null,null,null,null,null,null,null,null,null,null,null,1714,"A10","A101714"]
[null,null,"Minimum Service Level and Above sub-total",null,{"$f":"SUM(E182:E183)","v":0},{"$f":"SUM(F182:F183)","v":0},0,0,0,0,0,0,0,null,null,null,null,null,null,null,null,null,null,null,null,null,null,null,null,null,1715,"A10","A101715"]
[null,null,"Electricity (< min.service level)",null,0,0,0,0,0,0,0,0,0,null,null,null,null,null,null,null,null,null,null,null,null,null,null,null,null,null,1716,"A10","A101716"]
[null,null,"Electricity - prepaid (< min. service level)",null,0,0,0,0,0,0,0,0,0,null,null,null,null,null,null,null,null,null,null,null,null,null,null,null,null,null,1717,"A10","A101717"]
[null,null,"Other energy sources"]
[null,null,"Below Minimum Service Level sub-total",null,{"$f":"SUM(E185:E187)","v":0},{"$f":"SUM(F185:F187)","v":0},0,0,0,0,0,0,0]
[null,null,"Total number of households",null,{"$f":"E184+E188","v":0},{"$f":"F184+F188","v":0},0,0,0,0,0,0,0]
["Name of municipal entity",null,"Refuse:"]
[null,null,"Removed at least once a week"]
[null,null,"Minimum Service Level and Above sub-total",null,{"$f":"SUM(E191)","v":0},{"$f":"SUM(F191)","v":0},0,0,0,0,0,0,0]
[null,null,"Removed less frequently than once a week"]
[null,null,"Using communal refuse dump"]
[null,null,"Using own refuse dump"]
[null,null,"Other rubbish disposal"]
[null,null,"No rubbish disposal"]
[null,null,"Below Minimum Service Level sub-total",null,{"$f":"SUM(E193:E197)","v":0},0,0,0,0,0,0,0,0]
[null,null,"Total number of households",null,{"$f":"E192+E198","v":0},{"$f":"F192+F198","v":0},0,0,0,0,0,0,0]
[]
["Services provided by 'external mechanisms'",null,null,null,{"$f":"head1b","v":"2019/20"},{"$f":"head1A","v":"2020/21"},{"$f":"Head1","v":"2021/22"},{"$f":"Head2","v":"Current Year 2022/23"},null,null,{"$f":"Head3","v":"2023/24 Medium Term Revenue & Expenditure Framework"}]
[null,"Ref.",null,null,{"$f":"Head5A","v":"Outcome"},{"$f":"Head5A","v":"Outcome"},{"$f":"Head5A","v":"Outcome"},{"$f":"Head6","v":"Original Budget"},{"$f":"Head7","v":"Adjusted Budget"},{"$f":"Head8","v":"Full Year Forecast"},{"$f":"Head9","v":"Budget Year 2023/24"},{"$f":"Head10","v":"Budget Year +1 2024/25"},{"$f":"Head11","v":"Budget Year +2 2025/26"}]
["Names of service providers",null,"Household service targets (000)"]
[null,null,"Water:"]
[null,null,"Piped water inside dwelling"]
[null,null,"Piped water inside yard (but not in dwelling)"]
[null,8,"Using public tap (at least min.service level)"]
[null,10,"Other water supply (at least min.service level)"]
[null,null,"Minimum Service Level and Above sub-total",null,{"$f":"SUM(E205:E208)","v":0},{"$f":"SUM(F205:F208)","v":0},0,0,0,0,0,0,0]
[null,9,"Using public tap (< min.service level)"]
[null,10,"Other water supply (< min.service level)"]
[null,null,"No water supply"]
[null,null,"Below Minimum Service Level sub-total",null,{"$f":"SUM(E210:E212)","v":0},{"$f":"SUM(F210:F212)","v":0},0,0,0,0,0,0,0]
[null,null,"Total number of households",null,{"$f":"E209+E213","v":0},{"$f":"F209+F213","v":0},0,0,0,0,0,0,0]
["Names of service providers",null,"Sanitation/sewerage:"]
[null,null,"Flush toilet (connected to sewerage)"]
[null,null,"Flush toilet (with septic tank)"]
[null,null,"Chemical toilet"]
[null,null,"Pit toilet (ventilated)"]
[null,null,"Other toilet provisions (> min.service level)"]
[null,null,"Minimum Service Level and Above sub-total",null,{"$f":"SUM(E216:E220)","v":0},{"$f":"SUM(F216:F220)","v":0},0,0,0,0,0,0,0]
[null,null,"Bucket toilet"]
[null,null,"Other toilet provisions (< min.service level)"]
[null,null,"No toilet provisions"]
[null,null,"Below Minimum Service Level sub-total",null,{"$f":"SUM(E222:E224)","v":0},{"$f":"SUM(F222:F224)","v":0},0,0,0,0,0,0,0]
[null,null,"Total number of households",null,{"$f":"E221+E225","v":0},{"$f":"F221+F225","v":0},0,0,0,0,0,0,0]
["Names of service providers",null,"Energy:"]
[null,null,"Electricity (at least min.service level)"]
[null,null,"Electricity - prepaid (min.service level)"]
[null,null,"Minimum Service Level and Above sub-total",null,{"$f":"SUM(E228:E229)","v":0},{"$f":"SUM(F228:F229)","v":0},0,0,0,0,0,0,0]
[null,null,"Electricity (< min.service level)"]
[null,null,"Electricity - prepaid (< min. service level)"]
[null,null,"Other energy sources"]
[null,null,"Below Minimum Service Level sub-total",null,{"$f":"SUM(E231:E233)","v":0},{"$f":"SUM(F231:F233)","v":0},0,0,0,0,0,0,0]
[null,null,"Total number of households",null,{"$f":"E230+E234","v":0},{"$f":"F230+F234","v":0},0,0,0,0,0,0,0]
["Names of service providers",null,"Refuse:"]
[null,null,"Removed at least once a week"]
[null,null,"Minimum Service Level and Above sub-total",null,{"$f":"SUM(E237)","v":0},{"$f":"SUM(F237)","v":0},0,0,0,0,0,0,0]
[null,null,"Removed less frequently than once a week"]
[null,null,"Using communal refuse dump"]
[null,null,"Using own refuse dump"]
[null,null,"Other rubbish disposal"]
[null,null,"No rubbish disposal"]
[null,null,"Below Minimum Service Level sub-total",null,{"$f":"SUM(E239:E243)","v":0},0,0,0,0,0,0,0,0]
[null,null,"Total number of households",null,{"$f":"E238+E244","v":0},{"$f":"F238+F244","v":0},0,0,0,0,0,0,0]
[]
["Detail of Free Basic Services (FBS) provided",null,null,null,{"$f":"head1b","v":"2019/20"},{"$f":"head1A","v":"2020/21"},{"$f":"Head1","v":"2021/22"},{"$f":"Head2","v":"Current Year 2022/23"},null,null,{"$f":"Head3","v":"2023/24 Medium Term Revenue & Expenditure Framework"}]
[null,null,null,null,{"$f":"Head5A","v":"Outcome"},{"$f":"Head5A","v":"Outcome"},{"$f":"Head5A","v":"Outcome"},{"$f":"Head6","v":"Original Budget"},{"$f":"Head7","v":"Adjusted Budget"},{"$f":"Head8","v":"Full Year Forecast"},{"$f":"Head9","v":"Budget Year 2023/24"},{"$f":"Head10","v":"Budget Year +1 2024/25"},{"$f":"Head11","v":"Budget Year +2 2025/26"}]
["Electricity","Ref.","Location of households for each type of FBS"]
["List type of FBS service",null,"Formal settlements -  (50 kwh per indigent household per month Rands)",null,0,0,0,0,0,0,0,0,0,null,null,null,null,null,null,null,null,null,null,null,null,null,null,null,null,null,1603,"A10",{"$f":"_xlfn.CONCAT(AF250,AE250)","v":"A101603"}]
[null,null,"Number of HH receiving this type of FBS",null,16895,17613,18165,11000000,15000000,15000000,14620000,10000000,10000000,null,null,null,null,null,null,null,null,null,null,null,null,null,null,null,null,null,1503,"A10",{"$f":"_xlfn.CONCAT(AF251,AE251)","v":"A101503"}]
[null,null,"Informal settlements (Rands)"]
[null,null,"Number of HH receiving this type of FBS"]
[null,null,"Informal settlements targeted for upgrading (Rands)"]
[null,null,"Number of HH receiving this type of FBS"]
[null,null,"Living in informal backyard rental agreement (Rands)"]
[null,null,"Number of HH receiving this type of FBS"]
[null,null,"Other (Rands)"]
[null,null,"Number of HH receiving this type of FBS"]
[null,null,"Total cost of FBS - Electricity for informal settlements",null,{"$f":"E252+E254+E256+E258","v":0},{"$f":"F252+F254+F256+F258","v":0},0,0,0,0,0,0,0]
["Water","Ref.","Location of households for each type of FBS"]
["List type of FBS service",null,"Formal settlements -  (6 kilolitre per indigent household per month Rands)",null,0,0,0,0,0,0,0,0,0,null,null,null,null,null,null,null,null,null,null,null,null,null,null,null,null,null,1601,"A10",{"$f":"_xlfn.CONCAT(AF262,AE262)","v":"A101601"}]
[null,null,"Number of HH receiving this type of FBS",null,0,0,0,0,0,0,0,0,0,null,null,null,null,null,null,null,null,null,null,null,null,null,null,null,null,null,1501,"A10","A101501"]
[null,null,"Informal settlements (Rands)"]
[null,null,"Number of HH receiving this type of FBS"]
[null,null,"Informal settlements targeted for upgrading (Rands)"]
[null,null,"Number of HH receiving this type of FBS"]
[null,null,"Living in informal backyard rental agreement (Rands)"]
[null,null,"Number of HH receiving this type of FBS"]
[null,null,"Other (Rands)"]
[null,null,"Number of HH receiving this type of FBS"]
[null,null,"Total cost of FBS - Water  for informal settlements",null,{"$f":"E264+E266+E268+E270","v":0},{"$f":"F264+F266+F268+F270","v":0},0,0,0,0,0,0,0]
["Sanitation","Ref.","Location of households for each type of FBS"]
["List type of FBS service",null,"Formal settlements -  (free sanitation service to indigent households)",null,0,0,0,0,0,0,0,0,0,null,null,null,null,null,null,null,null,null,null,null,null,null,null,null,null,null,1602,"A10",{"$f":"_xlfn.CONCAT(AF274,AE274)","v":"A101602"}]
[null,null,"Number of HH receiving this type of FBS",null,0,0,0,0,0,0,0,0,0,null,null,null,null,null,null,null,null,null,null,null,null,null,null,null,null,null,1502,"A10","A101502"]
[null,null,"Informal settlements (Rands)"]
[null,null,"Number of HH receiving this type of FBS"]
[null,null,"Informal settlements targeted for upgrading (Rands)"]
[null,null,"Number of HH receiving this type of FBS"]
[null,null,"Living in informal backyard rental agreement (Rands)"]
[null,null,"Number of HH receiving this type of FBS"]
[null,null,"Other (Rands)"]
[null,null,"Number of HH receiving this type of FBS"]
[null,null,"Total cost of FBS - Sanitation for informal settlements",null,{"$f":"E276+E278+E280+E282","v":0},{"$f":"F276+F278+F280+F282","v":0},0,0,0,0,0,0,0]
["Refuse Removal","Ref.","Location of households for each type of FBS"]
["List type of FBS service",null,"Formal settlements -  (removed once a week to indigent households)",null,0,0,0,0,0,0,0,0,0,null,null,null,null,null,null,null,null,null,null,null,null,null,null,null,null,null,1604,"A10",{"$f":"_xlfn.CONCAT(AF286,AE286)","v":"A101604"}]
[null,null,"Number of HH receiving this type of FBS",null,0,0,0,0,0,0,0,0,0,null,null,null,null,null,null,null,null,null,null,null,null,null,null,null,null,null,1504,"A10","A101504"]
[null,null,"Informal settlements (Rands)"]
[null,null,"Number of HH receiving this type of FBS"]
[null,null,"Informal settlements targeted for upgrading (Rands)"]
[null,null,"Number of HH receiving this type of FBS"]
[null,null,"Living in informal backyard rental agreement (Rands)"]
[null,null,"Number of HH receiving this type of FBS"]
[null,null,"Other (Rands)"]
[null,null,"Number of HH receiving this type of FBS"]
[null,null,"Total cost of FBS - Refuse Removal for informal settlements",null,{"$f":"E288+E290+E292+E294","v":0},{"$f":"F288+F290+F292+F294","v":0},0,0,0,0,0,0,0]
[{"$f":"head27a","v":"References"}]
["1. Monthly household income threshold. Should include all sources of income."]
["2. Show the poverty analysis the municipality uses to determine its indigents policy and the provision of services"]
["3. Include total of all housing units within the municipality"]
["4. Number of subsidised dwellings to be constructed by the municipality under agency agreement with province"]
["5. Provide estimate based on building approval information. Include any non-subsidised dwellings constructed by the municipality"]
["6. Insert actual or estimated % increases assumed as a basis for budget calculations"]
["7. Insert actual or estimated % collection rate assumed as a basis for budget calculations for each revenue group"]
["8. Stand distance <= 200m from dwelling"]
["9. Stand distance > 200m from dwelling"]
["10. Borehole, spring, rain-water tank etc."]
["11. Must agree to total number of households in municipal area"]
["12. Household income categories assume an average 4 person household. Stats SA - Census 2011 Questionnaire"]
["13. Based on National poverty line of R515 per capita per month (2008 prices), assuming an average household size of 4 persons"]

{"sheet":"SA10","index":53,"n_rows":138,"n_cols":13,"rows_kept":138,"cut":false,"hidden":false,"merged":[[1,0,2,0],[1,10,1,12],[1,1,2,1],[1,2,2,2],[1,6,1,9]]}
[{"$f":"muni &\" \" & TableA10","v":"LIM331 Greater Giyani Supporting Table SA10 Funding measurement"}]
[{"$f":"desc","v":"Description"},"MFMA section",{"$f":"head27","v":"Ref"},{"$f":"head1b","v":"2019/20"},{"$f":"head1A","v":"2020/21"},{"$f":"Head1","v":"2021/22"},{"$f":"Head2","v":"Current Year 2022/23"},null,null,null,{"$f":"Head3","v":"2023/24 Medium Term Revenue & Expenditure Framework"}]
[null,null,null,{"$f":"Head5","v":"Audited Outcome"},{"$f":"Head5","v":"Audited Outcome"},{"$f":"Head5","v":"Audited Outcome"},{"$f":"Head6","v":"Original Budget"},{"$f":"Head7","v":"Adjusted Budget"},{"$f":"Head8","v":"Full Year Forecast"},{"$f":"Head5b","v":"Pre-audit outcome"},{"$f":"Head9","v":"Budget Year 2023/24"},{"$f":"Head10","v":"Budget Year +1 2024/25"},{"$f":"Head11","v":"Budget Year +2 2025/26"}]
["Funding measures"]
[{"$f":"LEFT('A7-CFlow'!A39,37)&\" - R'000\"","v":"Cash/cash equivalents at the year end - R'000"},"18(1)b",1,{"$f":"'A7-CFlow'!C39","v":0},{"$f":"'A7-CFlow'!D39","v":0},{"$f":"'A7-CFlow'!E39","v":0},{"$f":"'A7-CFlow'!F39","v":183648993},{"$f":"'A7-CFlow'!G39","v":185262204.91666678},{"$f":"'A7-CFlow'!H39","v":185262204.91666678},{"$f":"'A7-CFlow'!I39","v":185262204.91666678},{"$f":"'A7-CFlow'!J39","v":124245952.16666678},{"$f":"'A7-CFlow'!K39","v":60588523.024316818},{"$f":"'A7-CFlow'!L39","v":11797028.419876426}]
["Cash + investments at the yr end less applications - R'000","18(1)b",2,{"$f":"'A8-ResRecon'!C8-'A8-ResRecon'!C18","v":-56998678},{"$f":"'A8-ResRecon'!D8-'A8-ResRecon'!D18","v":-113689144},{"$f":"'A8-ResRecon'!E8-'A8-ResRecon'!E18","v":-150852919},{"$f":"'A8-ResRecon'!F8-'A8-ResRecon'!F18","v":2481538227},{"$f":"'A8-ResRecon'!G8-'A8-ResRecon'!G18","v":1344659003.820128},{"$f":"'A8-ResRecon'!H8-'A8-ResRecon'!H18","v":1344659003.820128},{"$f":"'A8-ResRecon'!I8-'A8-ResRecon'!I18","v":1344659003.820128},{"$f":"'A8-ResRecon'!J8-'A8-ResRecon'!J18","v":1043276928.3567947},{"$f":"'A8-ResRecon'!K8-'A8-ResRecon'!K18","v":994930245.40679467},{"$f":"'A8-ResRecon'!L8-'A8-ResRecon'!L18","v":911719208.66444468}]
["Cash year end/monthly employee/supplier payments","18(1)b",3,{"$f":"IF(ISERROR('SA8'!C43),0,('SA8'!C43))","v":0},{"$f":"IF(ISERROR('SA8'!D43),0,('SA8'!D43))","v":0},{"$f":"IF(ISERROR('SA8'!E43),0,('SA8'!E43))","v":0},{"$f":"IF(ISERROR('SA8'!F43),0,('SA8'!F43))","v":5.3526962148170805},{"$f":"IF(ISERROR('SA8'!G43),0,('SA8'!G43))","v":5.3149950973010007},{"$f":"IF(ISERROR('SA8'!H43),0,('SA8'!H43))","v":5.3149950973010007},{"$f":"IF(ISERROR('SA8'!I43),0,('SA8'!I43))","v":5.3149950973010007},{"$f":"IF(ISERROR('SA8'!J43),0,('SA8'!J43))","v":3.2685561736999325},{"$f":"IF(ISERROR('SA8'!K43),0,('SA8'!K43))","v":1.5664707353108156},{"$f":"IF(ISERROR('SA8'!L43),0,('SA8'!L43))","v":0.29442982381350286}]
["Surplus/(Deficit) excluding depreciation offsets: R'000","18(1)",4,{"$f":"'A4-FinPerf RE'!C51+'SA3'!C164","v":320469580},{"$f":"'A4-FinPerf RE'!D51+'SA3'!D164","v":156248976},{"$f":"'A4-FinPerf RE'!E51+'SA3'!E164","v":91417282},{"$f":"'A4-FinPerf RE'!F51+'SA3'!F164","v":51552427},{"$f":"'A4-FinPerf RE'!G51+'SA3'!G164","v":45126944},{"$f":"'A4-FinPerf RE'!H51+'SA3'!H164","v":45126944},{"$f":"'A4-FinPerf RE'!I51+'SA3'!I164","v":45126944},{"$f":"'A4-FinPerf RE'!J51+'SA3'!J164","v":34835709},{"$f":"'A4-FinPerf RE'!K51+'SA3'!K164","v":50209486},{"$f":"'A4-FinPerf RE'!L51+'SA3'!L164","v":32648225}]
["Service charge rev % change - macro CPIX target exclusive","18(1)a,(2)",5,"N.A.",{"$f":"IF(ISERROR(E36-E61),0,(E36-E61))","v":0.11223210383110122},{"$f":"IF(ISERROR(F36-F61),0,(F36-F61))","v":-6.1745888466981314E-2},0.15714261679994018,-0.13372301249363855,-0.06,-0.06,{"$f":"IF(ISERROR(K36-K61),0,(K36-K61))","v":-6.9999703824536463E-3},-1.099998521538742E-2,-1.3000024127391485E-2]
["Cash receipts % of Ratepayer & Other revenue","18(1)a,(2)",6,{"$f":"IF(ISERROR(D53/D54),0,(D53/D54))","v":0},{"$f":"IF(ISERROR(E53/E54),0,(E53/E54))","v":0},0,0.13241505192891626,0.11737006775059476,0.11737006775059476,0.11737006775059476,0.20529304511080046,0.20528528251292252,0.19911746216100651]
["Debt impairment expense as a % of total billable revenue","18(1)a,(2)",7,null,{"$f":"IF(ISERROR('A4-FinPerf RE'!D38/'SA10'!E43),0,('A4-FinPerf RE'!D38/'SA10'!E43))","v":0.6058928483288808},{"$f":"IF(ISERROR('A4-FinPerf RE'!E38/'SA10'!F43),0,('A4-FinPerf RE'!E38/'SA10'!F43))","v":1.0815335711257921E-2},{"$f":"IF(ISERROR('A4-FinPerf RE'!F38/'SA10'!G43),0,('A4-FinPerf RE'!F38/'SA10'!G43))","v":0.31874499062021422},{"$f":"IF(ISERROR('A4-FinPerf RE'!G38/'SA10'!H43),0,('A4-FinPerf RE'!G38/'SA10'!H43))","v":0.34411412020319154},{"$f":"IF(ISERROR('A4-FinPerf RE'!H38/'SA10'!I43),0,('A4-FinPerf RE'!H38/'SA10'!I43))","v":0.34411412020319154},{"$f":"IF(ISERROR('A4-FinPerf RE'!I38/'SA10'!J43),0,('A4-FinPerf RE'!I38/'SA10'!J43))","v":0.34411412020319154},{"$f":"IF(ISERROR('A4-FinPerf RE'!J38/'SA10'!K43),0,('A4-FinPerf RE'!J38/'SA10'!K43))","v":0.32679402708865557},{"$f":"IF(ISERROR('A4-FinPerf RE'!K38/'SA10'!L43),0,('A4-FinPerf RE'!K38/'SA10'!L43))","v":0.32227147938873008},{"$f":"IF(ISERROR('A4-FinPerf RE'!L38/'SA10'!M43),0,('A4-FinPerf RE'!L38/'SA10'!M43))","v":0.31806482302683436}]
["Capital payments % of capital expenditure","18(1)c;19",8,{"$f":"IF(ISERROR(-'A7-CFlow'!C25/'A5-Capex'!C63),0,(-'A7-CFlow'!C25/'A5-Capex'!C63))","v":0},0,0,0,0,0,0,0,0,0]
["Borrowing receipts % of capital expenditure (excl. transfers)","18(1)c",9,{"$f":"IF(ISERROR('A7-CFlow'!C31/'SA10'!D52),0,('A7-CFlow'!C31/'SA10'!D52))","v":0},{"$f":"IF(ISERROR('A7-CFlow'!D31/'SA10'!E52),0,('A7-CFlow'!D31/'SA10'!E52))","v":0},{"$f":"IF(ISERROR('A7-CFlow'!E31/'SA10'!F52),0,('A7-CFlow'!E31/'SA10'!F52))","v":0},{"$f":"IF(ISERROR('A7-CFlow'!F31/'SA10'!G52),0,('A7-CFlow'!F31/'SA10'!G52))","v":0},{"$f":"IF(ISERROR('A7-CFlow'!G31/'SA10'!H52),0,('A7-CFlow'!G31/'SA10'!H52))","v":0},{"$f":"IF(ISERROR('A7-CFlow'!H31/'SA10'!I52),0,('A7-CFlow'!H31/'SA10'!I52))","v":0},{"$f":"IF(ISERROR('A7-CFlow'!I31/'SA10'!J52),0,('A7-CFlow'!I31/'SA10'!J52))","v":0},{"$f":"IF(ISERROR('A7-CFlow'!J31/'SA10'!K52),0,('A7-CFlow'!J31/'SA10'!K52))","v":0},{"$f":"IF(ISERROR('A7-CFlow'!K31/'SA10'!L52),0,('A7-CFlow'!K31/'SA10'!L52))","v":0},{"$f":"IF(ISERROR('A7-CFlow'!L31/'SA10'!M52),0,('A7-CFlow'!L31/'SA10'!M52))","v":0}]
["Grants % of Govt. legislated/gazetted allocations","18(1)a",10,null,null,null,null,null,null,null,{"$f":"IF(ISERROR(K56/K68),0,(K56/K68))","v":0},{"$f":"IF(ISERROR(L56/L68),0,(L56/L68))","v":0},{"$f":"IF(ISERROR(M56/M68),0,(M56/M68))","v":0}]
["Current consumer debtors % change - incr(decr)","18(1)a",11,"N.A.",{"$f":"IF(ISERROR(ROUND((SUM('A6-FinPos'!D7:D9)-SUM('A6-FinPos'!C7:C9))/SUM('A6-FinPos'!C7:C9),3)),0,(ROUND((SUM('A6-FinPos'!D7:D9)-SUM('A6-FinPos'!C7:C9))/SUM('A6-FinPos'!C7:C9),3)))","v":9.7000000000000003E-2},{"$f":"IF(ISERROR(ROUND((SUM('A6-FinPos'!E7:E9)-SUM('A6-FinPos'!D7:D9))/SUM('A6-FinPos'!D7:D9),3)),0,(ROUND((SUM('A6-FinPos'!E7:E9)-SUM('A6-FinPos'!D7:D9))/SUM('A6-FinPos'!D7:D9),3)))","v":0.214},{"$f":"IF(ISERROR(ROUND((SUM('A6-FinPos'!F7:F9)-SUM('A6-FinPos'!E7:E9))/SUM('A6-FinPos'!E7:E9),3)),0,(ROUND((SUM('A6-FinPos'!F7:F9)-SUM('A6-FinPos'!E7:E9))/SUM('A6-FinPos'!E7:E9),3)))","v":-0.73699999999999999},{"$f":"IF(ISERROR(ROUND((SUM('A6-FinPos'!G7:G9)-SUM('A6-FinPos'!F7:F9))/SUM('A6-FinPos'!F7:F9),3)),0,(ROUND((SUM('A6-FinPos'!G7:G9)-SUM('A6-FinPos'!F7:F9))/SUM('A6-FinPos'!F7:F9),3)))","v":0.61899999999999999},{"$f":"IF(ISERROR(ROUND((SUM('A6-FinPos'!H7:H9)-SUM('A6-FinPos'!G7:G9))/SUM('A6-FinPos'!G7:G9),3)),0,(ROUND((SUM('A6-FinPos'!H7:H9)-SUM('A6-FinPos'!G7:G9))/SUM('A6-FinPos'!G7:G9),3)))","v":0},{"$f":"IF(ISERROR(ROUND((SUM('A6-FinPos'!I7:I9)-SUM('A6-FinPos'!H7:H9))/SUM('A6-FinPos'!H7:H9),3)),0,(ROUND((SUM('A6-FinPos'!I7:I9)-SUM('A6-FinPos'!H7:H9))/SUM('A6-FinPos'!H7:H9),3)))","v":0},{"$f":"IF(ISERROR(ROUND((SUM('A6-FinPos'!J7:J9)-SUM('A6-FinPos'!I7:I9))/SUM('A6-FinPos'!I7:I9),3)),0,(ROUND((SUM('A6-FinPos'!J7:J9)-SUM('A6-FinPos'!I7:I9))/SUM('A6-FinPos'!I7:I9),3)))","v":-0.23100000000000001},{"$f":"IF(ISERROR(ROUND((SUM('A6-FinPos'!K7:K9)-SUM('A6-FinPos'!J7:J9))/SUM('A6-FinPos'!J7:J9),3)),0,(ROUND((SUM('A6-FinPos'!K7:K9)-SUM('A6-FinPos'!J7:J9))/SUM('A6-FinPos'!J7:J9),3)))","v":-1.4E-2},{"$f":"IF(ISERROR(ROUND((SUM('A6-FinPos'!L7:L9)-SUM('A6-FinPos'!K7:K9))/SUM('A6-FinPos'!K7:K9),3)),0,(ROUND((SUM('A6-FinPos'!L7:L9)-SUM('A6-FinPos'!K7:K9))/SUM('A6-FinPos'!K7:K9),3)))","v":-1.6E-2}]
["Long term receivables % change - incr(decr)","18(1)a",12,"N.A.",{"$f":"IF(ISERROR(ROUND((SUM('A6-FinPos'!D22:D23)-SUM('A6-FinPos'!C22:C23))/SUM('A6-FinPos'!C22:C23),3)),0,(ROUND((SUM('A6-FinPos'!D22:D23)-SUM('A6-FinPos'!C22:C23))/SUM('A6-FinPos'!C22:C23),3)))","v":0},{"$f":"IF(ISERROR(ROUND((SUM('A6-FinPos'!E22:E23)-SUM('A6-FinPos'!D22:D23))/SUM('A6-FinPos'!D22:D23),3)),0,(ROUND((SUM('A6-FinPos'!E22:E23)-SUM('A6-FinPos'!D22:D23))/SUM('A6-FinPos'!D22:D23),3)))","v":0},{"$f":"IF(ISERROR(ROUND((SUM('A6-FinPos'!F22:F23)-SUM('A6-FinPos'!E22:E23))/SUM('A6-FinPos'!E22:E23),3)),0,(ROUND((SUM('A6-FinPos'!F22:F23)-SUM('A6-FinPos'!E22:E23))/SUM('A6-FinPos'!E22:E23),3)))","v":0},{"$f":"IF(ISERROR(ROUND((SUM('A6-FinPos'!G22:G23)-SUM('A6-FinPos'!F22:F23))/SUM('A6-FinPos'!F22:F23),3)),0,(ROUND((SUM('A6-FinPos'!G22:G23)-SUM('A6-FinPos'!F22:F23))/SUM('A6-FinPos'!F22:F23),3)))","v":0},{"$f":"IF(ISERROR(ROUND((SUM('A6-FinPos'!H22:H23)-SUM('A6-FinPos'!G22:G23))/SUM('A6-FinPos'!G22:G23),3)),0,(ROUND((SUM('A6-FinPos'!H22:H23)-SUM('A6-FinPos'!G22:G23))/SUM('A6-FinPos'!G22:G23),3)))","v":0},{"$f":"IF(ISERROR(ROUND((SUM('A6-FinPos'!I22:I23)-SUM('A6-FinPos'!H22:H23))/SUM('A6-FinPos'!H22:H23),3)),0,(ROUND((SUM('A6-FinPos'!I22:I23)-SUM('A6-FinPos'!H22:H23))/SUM('A6-FinPos'!H22:H23),3)))","v":0},{"$f":"IF(ISERROR(ROUND((SUM('A6-FinPos'!J22:J23)-SUM('A6-FinPos'!I22:I23))/SUM('A6-FinPos'!I22:I23),3)),0,(ROUND((SUM('A6-FinPos'!J22:J23)-SUM('A6-FinPos'!I22:I23))/SUM('A6-FinPos'!I22:I23),3)))","v":0},{"$f":"IF(ISERROR(ROUND((SUM('A6-FinPos'!K22:K23)-SUM('A6-FinPos'!J22:J23))/SUM('A6-FinPos'!J22:J23),3)),0,(ROUND((SUM('A6-FinPos'!K22:K23)-SUM('A6-FinPos'!J22:J23))/SUM('A6-FinPos'!J22:J23),3)))","v":0},{"$f":"IF(ISERROR(ROUND((SUM('A6-FinPos'!L22:L23)-SUM('A6-FinPos'!K22:K23))/SUM('A6-FinPos'!K22:K23),3)),0,(ROUND((SUM('A6-FinPos'!L22:L23)-SUM('A6-FinPos'!K22:K23))/SUM('A6-FinPos'!K22:K23),3)))","v":0}]
["R&M % of Property Plant & Equipment","20(1)(vi)",13,{"$f":"'A9-Asset'!C223","v":-2.1999999999999999E-2},{"$f":"'A9-Asset'!D223","v":-1.7999999999999999E-2},{"$f":"'A9-Asset'!E223","v":-4.3999999999999997E-2},{"$f":"'A9-Asset'!F223","v":2.1000000000000001E-2},{"$f":"'A9-Asset'!G223","v":5.8000000000000003E-2},{"$f":"'A9-Asset'!H223","v":5.8000000000000003E-2},{"$f":"I17","v":5.8000000000000003E-2},{"$f":"'A9-Asset'!J223","v":6.9000000000000006E-2},{"$f":"'A9-Asset'!K223","v":6.9000000000000006E-2},{"$f":"'A9-Asset'!L223","v":0}]
["Asset renewal % of capital budget",{"$f":"B17","v":"20(1)(vi)"},14,{"$f":"IF(ISERROR(D58/D57),0,(D58/D57))","v":2.4638467758504628E-2},1.5763592303747739E-2,1.5332917500235245E-2,0,0,0,0,0,0,{"$f":"IF(ISERROR(M58/M57),0,((M58/M57)))","v":0}]
[]
[{"$f":"head27a","v":"References"}]
["1. Positive cash balances indicative of minimum compliance - subject to 2"]
["2. Deduct cash and investment applications (defined) from cash balances"]
["3. Indicative of sufficient liquidity to meet average monthly operating payments"]
["4. Indicative of funded operational requirements"]
["5. Indicative of adherence to macro-economic targets (prior to 2003/04 revenue not available for high capacity municipalities and later for other capacity classifications)"]
["6. Realistic average cash collection forecasts as % of annual billed revenue"]
["7. Realistic average increase in debt impairment (doubtful debt) provision"]
["8. Indicative of planned capital expenditure level & cash payment timing"]
["9. Indicative of compliance with borrowing 'only' for the capital budget - should not exceed 100% unless refinancing"]
["10. Substantiation of National/Province allocations included in budget"]
["11. Indicative of realistic current arrear debtor collection targets (prior to 2003/04 revenue not available for high capacity municipalities and later for other capacity classifications)"]
["12. Indicative of realistic long term arrear debtor collection targets (prior to 2003/04 revenue not available for high capacity municipalities and later for other capacity classifications)"]
["13. Indicative of a credible allowance for repairs & maintenance of assets - functioning assets revenue protection"]
["14. Indicative of a credible allowance for asset renewal (requires analysis of asset renewal projects as % of total capital projects - detailed capital plan) - functioning assets revenue protection"]
["Supporting indicators"]
["% incr total service charges (incl prop rates)","18(1)a",null,null,{"$f":"IF(ISERROR((E44/D44)-1),0,((E44/D44)-1))","v":0.17223210383110121},{"$f":"IF(ISERROR((F44/E44)-1),0,((F44/E44)-1))","v":-1.7458884669813157E-3},{"$f":"IF(ISERROR((G44/F44)-1),0,((G44/F44)-1))","v":0.21714261679994018},{"$f":"IF(ISERROR((H44/G44)-1),0,((H44/G44)-1))","v":-7.3723012493638551E-2},{"$f":"IF(ISERROR((I44/H44)-1),0,((I44/H44)-1))","v":0},{"$f":"IF(ISERROR((J44/I44)-1),0,((J44/I44)-1))","v":0},{"$f":"IF(ISERROR((K44/H44)-1),0,((K44/H44)-1))","v":5.3000029617546351E-2},{"$f":"IF(ISERROR((L44/K44)-1),0,((L44/K44)-1))","v":4.9000014784612578E-2},{"$f":"IF(ISERROR((M44/L44)-1),0,((M44/L44)-1))","v":4.6999975872608513E-2}]
["% incr Property Tax","18(1)a",null,null,0.16671945347129924,{"$f":"IF(ISERROR((F45/E45)-1),0,((F45/E45)-1))","v":-4.2984777108849848E-3},0.19622930408027384,-5.7052454311820822E-2,0,0,{"$f":"IF(ISERROR((K45/H45)-1),0,((K45/H45)-1))","v":5.3000033136686886E-2},4.9000005824760828E-2,4.6999982236233251E-2]
[{"$f":"\"% incr \"&'A4-FinPerf RE'!A6","v":"% incr Service charges - Electricity"},"18(1)a",null,null,0,0,0,0,0,0,0,0,{"$f":"IF(ISERROR((M46/L46)-1),0,((M46/L46)-1))","v":0}]
[{"$f":"\"% incr \"&'A4-FinPerf RE'!A7","v":"% incr Service charges - Water"},"18(1)a",null,null,0,-1,0,0,0,0,0,0,0]
[{"$f":"\"% incr \"&'A4-FinPerf RE'!A8","v":"% incr Service charges - Waste Water Management"},"18(1)a",null,null,0,-1,0,0,0,0,0,0,0]
[{"$f":"\"% incr \"&'A4-FinPerf RE'!A9","v":"% incr Service charges - Waste Management"},"18(1)a",null,null,0.22005819348183597,2.1595131395028888E-2,0.39231741826720445,-0.19369369369369371,0,0,5.2999999999999936E-2,4.900009019189655E-2,4.699992231551553E-2]
[{"$f":"\"% incr in \"&'A4-FinPerf RE'!A10","v":"% incr in Sale of Goods and Rendering of Services"},"18(1)a",null,null,0,0,0,0,{"$f":"IF(ISERROR((I50/H50)-1),0,((I50/H50)-1))","v":0},0,0,{"$f":"IF(ISERROR((L50/K50)-1),0,((L50/K50)-1))","v":0},0]
["Total billable revenue","18(1)a",null,{"$f":"SUM(D45:D50)","v":63879049},{"$f":"SUM(E45:E50)","v":74881072},74750338,90981822,84274368,84274368,84274368,88740912,93089218,97464409]
["Service charges",null,null,{"$f":"SUM(D45:D50)","v":63879049},{"$f":"SUM(E45:E50)","v":74881072},74750338,90981822,84274368,84274368,{"$f":"SUM(J45:J50)","v":84274368},88740912,93089218,97464409]
["Property rates",null,null,{"$f":"'A4-FinPerf RE'!C21","v":57482800},{"$f":"'A4-FinPerf RE'!D21","v":67066301},{"$f":"'A4-FinPerf RE'!E21","v":66778018},{"$f":"'A4-FinPerf RE'!F21","v":79881822},{"$f":"'A4-FinPerf RE'!G21","v":75324368},{"$f":"'A4-FinPerf RE'!H21","v":75324368},{"$f":"'A4-FinPerf RE'!I21","v":75324368},{"$f":"'A4-FinPerf RE'!J21","v":79316562},{"$f":"'A4-FinPerf RE'!K21","v":83203074},{"$f":"'A4-FinPerf RE'!L21","v":87113617}]
["Service charges - electricity revenue",null,null,{"$f":"'A4-FinPerf RE'!C6","v":0},{"$f":"'A4-FinPerf RE'!D6","v":0},{"$f":"'A4-FinPerf RE'!E6","v":0},{"$f":"'A4-FinPerf RE'!F6","v":0},{"$f":"'A4-FinPerf RE'!G6","v":0},{"$f":"'A4-FinPerf RE'!H6","v":0},{"$f":"'A4-FinPerf RE'!I6","v":0},{"$f":"'A4-FinPerf RE'!J6","v":0},{"$f":"'A4-FinPerf RE'!K6","v":0},{"$f":"'A4-FinPerf RE'!L6","v":0}]
["Service charges - water revenue",null,null,{"$f":"'A4-FinPerf RE'!C7","v":0},{"$f":"'A4-FinPerf RE'!D7","v":7620},{"$f":"'A4-FinPerf RE'!E7","v":0},{"$f":"'A4-FinPerf RE'!F7","v":0},{"$f":"'A4-FinPerf RE'!G7","v":0},{"$f":"'A4-FinPerf RE'!H7","v":0},{"$f":"'A4-FinPerf RE'!I7","v":0},{"$f":"'A4-FinPerf RE'!J7","v":0},{"$f":"'A4-FinPerf RE'!K7","v":0},{"$f":"'A4-FinPerf RE'!L7","v":0}]
["Service charges - sanitation revenue",null,null,{"$f":"'A4-FinPerf RE'!C8","v":0},{"$f":"'A4-FinPerf RE'!D8","v":3355},{"$f":"'A4-FinPerf RE'!E8","v":0},{"$f":"'A4-FinPerf RE'!F8","v":0},{"$f":"'A4-FinPerf RE'!G8","v":0},{"$f":"'A4-FinPerf RE'!H8","v":0},{"$f":"'A4-FinPerf RE'!I8","v":0},{"$f":"'A4-FinPerf RE'!J8","v":0},{"$f":"'A4-FinPerf RE'!K8","v":0},{"$f":"'A4-FinPerf RE'!L8","v":0}]
["Service charges - refuse removal",null,null,{"$f":"'A4-FinPerf RE'!C9","v":6396249},{"$f":"'A4-FinPerf RE'!D9","v":7803796},{"$f":"'A4-FinPerf RE'!E9","v":7972320},{"$f":"'A4-FinPerf RE'!F9","v":11100000},{"$f":"'A4-FinPerf RE'!G9","v":8950000},{"$f":"'A4-FinPerf RE'!H9","v":8950000},{"$f":"'A4-FinPerf RE'!I9","v":8950000},{"$f":"'A4-FinPerf RE'!J9","v":9424350},{"$f":"'A4-FinPerf RE'!K9","v":9886144},{"$f":"'A4-FinPerf RE'!L9","v":10350792}]
[]
[{"$f":"'A4-FinPerf RE'!A11","v":"Agency services"},null,null,{"$f":"'A4-FinPerf RE'!C11","v":0},{"$f":"'A4-FinPerf RE'!D11","v":0},{"$f":"'A4-FinPerf RE'!E11","v":0},{"$f":"'A4-FinPerf RE'!F11","v":7855981},{"$f":"'A4-FinPerf RE'!G11","v":5600000},{"$f":"'A4-FinPerf RE'!H11","v":5600000},{"$f":"'A4-FinPerf RE'!I11","v":5600000},{"$f":"'A4-FinPerf RE'!J11","v":5896800},{"$f":"'A4-FinPerf RE'!K11","v":6185743},{"$f":"'A4-FinPerf RE'!L11","v":6476473}]
["Capital expenditure excluding capital grant funding",null,null,{"$f":"'A5-Capex'!C63-'A5-Capex'!C70","v":84447934},{"$f":"'A5-Capex'!D63-'A5-Capex'!D70","v":77111419},{"$f":"'A5-Capex'!E63-'A5-Capex'!E70","v":84447934},{"$f":"'A5-Capex'!F63-'A5-Capex'!F70","v":82635255},{"$f":"'A5-Capex'!G63-'A5-Capex'!G70","v":63398530},{"$f":"'A5-Capex'!H63-'A5-Capex'!H70","v":63398530},{"$f":"'A5-Capex'!I63-'A5-Capex'!I70","v":63398530},{"$f":"'A5-Capex'!J63-'A5-Capex'!J70","v":90920750},{"$f":"'A5-Capex'!K63-'A5-Capex'!K70","v":102410000},{"$f":"'A5-Capex'!L63-'A5-Capex'!L70","v":85595708}]
["Cash receipts from ratepayers","18(1)a",null,{"$f":"'A7-CFlow'!C6+'A7-CFlow'!C7+'A7-CFlow'!C8","v":0},{"$f":"'A7-CFlow'!D6+'A7-CFlow'!D7+'A7-CFlow'!D8","v":0},{"$f":"'A7-CFlow'!E6+'A7-CFlow'!E7+'A7-CFlow'!E8","v":0},{"$f":"'A7-CFlow'!F6+'A7-CFlow'!F7+'A7-CFlow'!F8","v":83582454},{"$f":"'A7-CFlow'!G6+'A7-CFlow'!G7+'A7-CFlow'!G8","v":70962550},{"$f":"'A7-CFlow'!H6+'A7-CFlow'!H7+'A7-CFlow'!H8","v":70962550},{"$f":"'A7-CFlow'!I6+'A7-CFlow'!I7+'A7-CFlow'!I8","v":70962550},{"$f":"'A7-CFlow'!J6+'A7-CFlow'!J7+'A7-CFlow'!J8","v":130713401},{"$f":"'A7-CFlow'!K6+'A7-CFlow'!K7+'A7-CFlow'!K8","v":137118236},{"$f":"'A7-CFlow'!L6+'A7-CFlow'!L7+'A7-CFlow'!L8","v":139254007}]
["Ratepayer & Other revenue","18(1)a",null,{"$f":"SUM('A4-FinPerf RE'!C6:C11+'A4-FinPerf RE'!C17+SUM('A4-FinPerf RE'!C21:C24)+'A4-FinPerf RE'!C26+'A4-FinPerf RE'!C28)","v":476158519},{"$f":"SUM('A4-FinPerf RE'!D6:D11+'A4-FinPerf RE'!D17+SUM('A4-FinPerf RE'!D21:D24)+'A4-FinPerf RE'!D26+'A4-FinPerf RE'!D28)","v":555496788},{"$f":"SUM('A4-FinPerf RE'!E6:E11+'A4-FinPerf RE'!E17+SUM('A4-FinPerf RE'!E21:E24)+'A4-FinPerf RE'!E26+'A4-FinPerf RE'!E28)","v":583160543},{"$f":"SUM('A4-FinPerf RE'!F6:F11+'A4-FinPerf RE'!F17+SUM('A4-FinPerf RE'!F21:F24)+'A4-FinPerf RE'!F26+'A4-FinPerf RE'!F28)","v":631215657},{"$f":"SUM('A4-FinPerf RE'!G6:G11+'A4-FinPerf RE'!G17+SUM('A4-FinPerf RE'!G21:G24)+'A4-FinPerf RE'!G26+'A4-FinPerf RE'!G28)","v":604605172},{"$f":"SUM('A4-FinPerf RE'!H6:H11+'A4-FinPerf RE'!H17+SUM('A4-FinPerf RE'!H21:H24)+'A4-FinPerf RE'!H26+'A4-FinPerf RE'!H28)","v":604605172},{"$f":"SUM('A4-FinPerf RE'!I6:I11+'A4-FinPerf RE'!I17+SUM('A4-FinPerf RE'!I21:I24)+'A4-FinPerf RE'!I26+'A4-FinPerf RE'!I28)","v":604605172},{"$f":"SUM('A4-FinPerf RE'!J6:J11+'A4-FinPerf RE'!J17+SUM('A4-FinPerf RE'!J21:J24)+'A4-FinPerf RE'!J26+'A4-FinPerf RE'!J28)","v":636716168},{"$f":"SUM('A4-FinPerf RE'!K6:K11+'A4-FinPerf RE'!K17+SUM('A4-FinPerf RE'!K21:K24)+'A4-FinPerf RE'!K26+'A4-FinPerf RE'!K28)","v":667939924},{"$f":"SUM('A4-FinPerf RE'!L6:L11+'A4-FinPerf RE'!L17+SUM('A4-FinPerf RE'!L21:L24)+'A4-FinPerf RE'!L26+'A4-FinPerf RE'!L28)","v":699356076}]
["Change in consumer debtors (current and non-current)",null,null,"N/A",{"$f":"SUM('A6-FinPos'!D7:D9)+SUM('A6-FinPos'!D22:D23)-(SUM('A6-FinPos'!C7:C9)+SUM('A6-FinPos'!C22:C23))","v":24056386},{"$f":"SUM('A6-FinPos'!E7:E9)+SUM('A6-FinPos'!E22:E23)-(SUM('A6-FinPos'!D7:D9)+SUM('A6-FinPos'!D22:D23))","v":57989216},{"$f":"SUM('A6-FinPos'!F7:F9)+SUM('A6-FinPos'!F22:F23)-(SUM('A6-FinPos'!E7:E9)+SUM('A6-FinPos'!E22:E23))","v":-242745617},{"$f":"SUM('A6-FinPos'!G7:G9)+SUM('A6-FinPos'!G22:G23)-(SUM('A6-FinPos'!F7:F9)+SUM('A6-FinPos'!F22:F23))","v":53568543.820127904},{"$f":"SUM('A6-FinPos'!H7:H9)+SUM('A6-FinPos'!H22:H23)-(SUM('A6-FinPos'!G7:G9)+SUM('A6-FinPos'!G22:G23))","v":0},{"$f":"SUM('A6-FinPos'!I7:I9)+SUM('A6-FinPos'!I22:I23)-(SUM('A6-FinPos'!H7:H9)+SUM('A6-FinPos'!H22:H23))","v":0},{"$f":"SUM('A6-FinPos'!J7:J9)+SUM('A6-FinPos'!J22:J23)-(SUM('A6-FinPos'!I7:I9)+SUM('A6-FinPos'!I22:I23))","v":-32380435.780000001},{"$f":"SUM('A6-FinPos'!K7:K9)+SUM('A6-FinPos'!K22:K23)-(SUM('A6-FinPos'!J7:J9)+SUM('A6-FinPos'!J22:J23))","v":-1554453},{"$f":"SUM('A6-FinPos'!L7:L9)+SUM('A6-FinPos'!L22:L23)-(SUM('A6-FinPos'!K7:K9)+SUM('A6-FinPos'!K22:K23))","v":-1722917}]
["Operating and Capital Grant Revenue","18(1)a",null,{"$f":"'A4-FinPerf RE'!C25+'A4-FinPerf RE'!C49","v":368864296},{"$f":"'A4-FinPerf RE'!D25+'A4-FinPerf RE'!D49","v":458488580},{"$f":"'A4-FinPerf RE'!E25+'A4-FinPerf RE'!E49","v":407340942},{"$f":"'A4-FinPerf RE'!F25+'A4-FinPerf RE'!F49","v":448793000},{"$f":"'A4-FinPerf RE'!G25+'A4-FinPerf RE'!G49","v":459388244},{"$f":"'A4-FinPerf RE'!H25+'A4-FinPerf RE'!H49","v":459388244},{"$f":"'A4-FinPerf RE'!I25+'A4-FinPerf RE'!I49","v":459388244},{"$f":"'A4-FinPerf RE'!J25+'A4-FinPerf RE'!J49","v":486901000},{"$f":"'A4-FinPerf RE'!K25+'A4-FinPerf RE'!K49","v":507764000},{"$f":"'A4-FinPerf RE'!L25+'A4-FinPerf RE'!L49","v":502292000}]
["Capital expenditure - total",{"$f":"B17","v":"20(1)(vi)"},null,{"$f":"'A5-Capex'!C63","v":114943552},{"$f":"'A5-Capex'!D63","v":111803196},{"$f":"'A5-Capex'!E63","v":114943552},{"$f":"'A5-Capex'!F63","v":148172229},{"$f":"'A5-Capex'!G63","v":138207867},{"$f":"'A5-Capex'!H63","v":138207867},{"$f":"'A5-Capex'!I63","v":138207867},{"$f":"'A5-Capex'!J63","v":158791188},{"$f":"'A5-Capex'!K63","v":173326968},{"$f":"'A5-Capex'!L63","v":159635856}]
["Capital expenditure - renewal",{"$f":"B18","v":"20(1)(vi)"},null,{"$f":"'A9-Asset'!C40","v":2832033},{"$f":"'A9-Asset'!D40","v":1762420},{"$f":"'A9-Asset'!E40","v":1762420},{"$f":"'A9-Asset'!F40","v":0},{"$f":"'A9-Asset'!G40","v":0},{"$f":"'A9-Asset'!H40","v":0},null,{"$f":"'A9-Asset'!I40","v":0},{"$f":"'A9-Asset'!J40","v":0},{"$f":"'A9-Asset'!K40","v":0}]
[]
["Supporting benchmarks"]
["Growth guideline maximum",null,null,0.06,0.06,0.06,0.06,0.06,0.06,0.06,0.06,0.06,0.06]
["CPI guideline",null,null,4.2999999999999997E-2,3.9E-2,4.5999999999999999E-2,0.05,0.05,0.05,0.05,5.3999999999999999E-2,5.6000000000000001E-2,5.3999999999999999E-2]
["DoRA operating grants total MFY"]
["DoRA capital grants total MFY"]
["Provincial operating grants"]
["Provincial capital grants"]
["District Municipality grants"]
["Total gazetted/advised national, provincial and district grants",null,null,null,null,null,null,null,null,null,{"$f":"SUM(K63:K67)","v":0},{"$f":"SUM(L63:L67)","v":0},{"$f":"SUM(M63:M67)","v":0}]
["Average annual collection rate (arrears inclusive)"]
[]
["DoRA operating"]
["Equitable Share",null,null,null,null,null,null,null,null,null,376486000,402450000,392260000]
["Local Government Financial Management Grant",null,null,null,null,null,null,null,null,null,2400000,2400000,2500000]
["Expanded Public Works Programme Integrated Grant",null,null,null,null,null,null,null,null,null,3151000]
["LGSETA",null,null,null,null,null,null,null,null,null,315000,320000,325000]
[null,null,null,null,null,null,null,null,null,null,{"$f":"SUM(K72:K75)","v":382352000},{"$f":"SUM(L72:L75)","v":405170000},{"$f":"SUM(M72:M75)","v":395085000}]
["DoRA capital"]
["Municipal Infrastructure Grant",null,null,null,null,null,null,null,null,null,72329000,75594000,78997000]
["Integrated National Electrification Programme Grant",null,null,null,null,null,null,null,null,null,32220000,27000000,28210000]
[]
[]
[null,null,null,null,null,null,null,null,null,null,{"$f":"SUM(K78:K81)","v":104549000},{"$f":"SUM(L78:L81)","v":102594000},{"$f":"SUM(M78:M81)","v":107207000}]
["Trend"]
[{"$f":"A55","v":"Change in consumer debtors (current and non-current)"},null,null,{"$f":"D55","v":"N/A"},24056386,57989216,-242745617,53568543.820127904,0,0,-32380435.780000001,-1554453,-1722917]
[]
["Total Operating Revenue",null,null,{"$f":"'A1-Sum'!B10","v":406431573},{"$f":"'A1-Sum'!C10","v":496368208},{"$f":"'A1-Sum'!D10","v":479676573},{"$f":"'A1-Sum'!E10","v":530902402},{"$f":"'A1-Sum'!F10","v":521583065},{"$f":"'A1-Sum'!G10","v":521583065},{"$f":"'A1-Sum'!H10","v":521583065},{"$f":"'A1-Sum'!I10","v":536308125},{"$f":"'A1-Sum'!J10","v":566297737},{"$f":"'A1-Sum'!K10","v":563528033}]
["Total Operating Expenditure",null,null,{"$f":"'A1-Sum'!B18","v":146649993},{"$f":"'A1-Sum'!C18","v":417724537},{"$f":"'A1-Sum'!D18","v":443417198},{"$f":"'A1-Sum'!E18","v":548610975},{"$f":"'A1-Sum'!F18","v":554667725},{"$f":"'A1-Sum'!G18","v":554667725},{"$f":"'A1-Sum'!H18","v":554667725},{"$f":"'A1-Sum'!I18","v":606021416},{"$f":"'A1-Sum'!J18","v":618682251},{"$f":"'A1-Sum'!K18","v":638086808}]
["Operating Performance Surplus/(Deficit)",null,null,{"$f":"D86-D87","v":259781580},{"$f":"E86-E87","v":78643671},36259375,-17708573,-33084660,-33084660,-33084660,{"$f":"K86-K87","v":-69713291},-52384514,-74558775]
["Cash and Cash Equivalents (30 June 2012)",null,null,null,null,null,null,null,null,null,{"$f":"'A7-CFlow'!J39","v":124245952.16666678}]
["Revenue"]
["% Increase in Total Operating Revenue",null,null,null,{"$f":"IF(ISERROR(('A1-Sum'!C10-'A1-Sum'!B10)/'A1-Sum'!B10),0,(('A1-Sum'!C10-'A1-Sum'!B10)/'A1-Sum'!B10))","v":0.22128358369441933},{"$f":"IF(ISERROR(('A1-Sum'!D10-'A1-Sum'!C10)/'A1-Sum'!C10),0,(('A1-Sum'!D10-'A1-Sum'!C10)/'A1-Sum'!C10))","v":-3.3627526362445842E-2},{"$f":"IF(ISERROR(('A1-Sum'!E10-'A1-Sum'!D10)/'A1-Sum'!D10),0,(('A1-Sum'!E10-'A1-Sum'!D10)/'A1-Sum'!D10))","v":0.10679243449314753},{"$f":"IF(ISERROR(('A1-Sum'!F10-'A1-Sum'!E10)/'A1-Sum'!E10),0,(('A1-Sum'!F10-'A1-Sum'!E10)/'A1-Sum'!E10))","v":-1.7553766878606061E-2},{"$f":"IF(ISERROR(('A1-Sum'!G10-'A1-Sum'!F10)/'A1-Sum'!F10),0,(('A1-Sum'!G10-'A1-Sum'!F10)/'A1-Sum'!F10))","v":0},{"$f":"IF(ISERROR(('A1-Sum'!H10-'A1-Sum'!G10)/'A1-Sum'!G10),0,(('A1-Sum'!H10-'A1-Sum'!G10)/'A1-Sum'!G10))","v":0},{"$f":"IF(ISERROR(('A1-Sum'!I10-'A1-Sum'!F10)/'A1-Sum'!F10),0,(('A1-Sum'!I10-'A1-Sum'!F10)/'A1-Sum'!F10))","v":2.8231476418813559E-2},{"$f":"IF(ISERROR(('A1-Sum'!J10-'A1-Sum'!I10)/'A1-Sum'!I10),0,(('A1-Sum'!J10-'A1-Sum'!I10)/'A1-Sum'!I10))","v":5.5918623272768801E-2},{"$f":"IF(ISERROR(('A1-Sum'!K10-'A1-Sum'!J10)/'A1-Sum'!J10),0,(('A1-Sum'!K10-'A1-Sum'!J10)/'A1-Sum'!J10))","v":-4.8908971712878311E-3}]
["% Increase in Property Rates Revenue",null,null,null,{"$f":"IF(ISERROR(('A4-FinPerf RE'!D21-'A4-FinPerf RE'!C21)/'A4-FinPerf RE'!C21),0,(('A4-FinPerf RE'!D21-'A4-FinPerf RE'!C21)/'A4-FinPerf RE'!C21))","v":0.16671945347129924},{"$f":"IF(ISERROR(('A4-FinPerf RE'!E21-'A4-FinPerf RE'!D21)/'A4-FinPerf RE'!D21),0,(('A4-FinPerf RE'!E21-'A4-FinPerf RE'!D21)/'A4-FinPerf RE'!D21))","v":-4.2984777108849345E-3},{"$f":"IF(ISERROR(('A4-FinPerf RE'!F21-'A4-FinPerf RE'!E21)/'A4-FinPerf RE'!E21),0,(('A4-FinPerf RE'!F21-'A4-FinPerf RE'!E21)/'A4-FinPerf RE'!E21))","v":0.19622930408027384},{"$f":"IF(ISERROR(('A4-FinPerf RE'!G21-'A4-FinPerf RE'!F21)/'A4-FinPerf RE'!F21),0,(('A4-FinPerf RE'!G21-'A4-FinPerf RE'!F21)/'A4-FinPerf RE'!F21))","v":-5.705245431182078E-2},{"$f":"IF(ISERROR(('A4-FinPerf RE'!H21-'A4-FinPerf RE'!G21)/'A4-FinPerf RE'!G21),0,(('A4-FinPerf RE'!H21-'A4-FinPerf RE'!G21)/'A4-FinPerf RE'!G21))","v":0},{"$f":"IF(ISERROR(('A4-FinPerf RE'!I21-'A4-FinPerf RE'!H21)/'A4-FinPerf RE'!H21),0,(('A4-FinPerf RE'!I21-'A4-FinPerf RE'!H21)/'A4-FinPerf RE'!H21))","v":0},{"$f":"IF(ISERROR(('A4-FinPerf RE'!J21-'A4-FinPerf RE'!I21)/'A4-FinPerf RE'!I21),0,(('A4-FinPerf RE'!J21-'A4-FinPerf RE'!I21)/'A4-FinPerf RE'!I21))","v":5.3000033136686921E-2},{"$f":"IF(ISERROR(('A4-FinPerf RE'!K21-'A4-FinPerf RE'!J21)/'A4-FinPerf RE'!J21),0,(('A4-FinPerf RE'!K21-'A4-FinPerf RE'!J21)/'A4-FinPerf RE'!J21))","v":4.9000005824760787E-2},{"$f":"IF(ISERROR(('A4-FinPerf RE'!L21-'A4-FinPerf RE'!K21)/'A4-FinPerf RE'!K21),0,(('A4-FinPerf RE'!L21-'A4-FinPerf RE'!K21)/'A4-FinPerf RE'!K21))","v":4.6999982236233244E-2}]
["% Increase in Electricity Revenue",null,null,null,{"$f":"IF(ISERROR(('A4-FinPerf RE'!D6-'A4-FinPerf RE'!C6)/'A4-FinPerf RE'!C6),0,(('A4-FinPerf RE'!D6-'A4-FinPerf RE'!C6)/'A4-FinPerf RE'!C6))","v":0},{"$f":"IF(ISERROR(('A4-FinPerf RE'!E6-'A4-FinPerf RE'!D6)/'A4-FinPerf RE'!D6),0,(('A4-FinPerf RE'!E6-'A4-FinPerf RE'!D6)/'A4-FinPerf RE'!D6))","v":0},{"$f":"IF(ISERROR(('A4-FinPerf RE'!F6-'A4-FinPerf RE'!E6)/'A4-FinPerf RE'!E6),0,(('A4-FinPerf RE'!F6-'A4-FinPerf RE'!E6)/'A4-FinPerf RE'!E6))","v":0},{"$f":"IF(ISERROR(('A4-FinPerf RE'!G6-'A4-FinPerf RE'!F6)/'A4-FinPerf RE'!F6),0,(('A4-FinPerf RE'!G6-'A4-FinPerf RE'!F6)/'A4-FinPerf RE'!F6))","v":0},{"$f":"IF(ISERROR(('A4-FinPerf RE'!H6-'A4-FinPerf RE'!G6)/'A4-FinPerf RE'!G6),0,(('A4-FinPerf RE'!H6-'A4-FinPerf RE'!G6)/'A4-FinPerf RE'!G6))","v":0},{"$f":"IF(ISERROR(('A4-FinPerf RE'!I6-'A4-FinPerf RE'!H6)/'A4-FinPerf RE'!H6),0,(('A4-FinPerf RE'!I6-'A4-FinPerf RE'!H6)/'A4-FinPerf RE'!H6))","v":0},{"$f":"IF(ISERROR(('A4-FinPerf RE'!J6-'A4-FinPerf RE'!G6)/'A4-FinPerf RE'!G6),0,(('A4-FinPerf RE'!J6-'A4-FinPerf RE'!G6)/'A4-FinPerf RE'!G6))","v":0},{"$f":"IF(ISERROR(('A4-FinPerf RE'!K6-'A4-FinPerf RE'!J6)/'A4-FinPerf RE'!J6),0,(('A4-FinPerf RE'!K6-'A4-FinPerf RE'!J6)/'A4-FinPerf RE'!J6))","v":0},{"$f":"IF(ISERROR(('A4-FinPerf RE'!L6-'A4-FinPerf RE'!K6)/'A4-FinPerf RE'!K6),0,(('A4-FinPerf RE'!L6-'A4-FinPerf RE'!K6)/'A4-FinPerf RE'!K6))","v":0}]
["% Increase in Property Rates & Services Charges",null,null,null,{"$f":"IF(ISERROR((('A1-Sum'!C5+'A1-Sum'!C6)-('A1-Sum'!B5+'A1-Sum'!B6))/('A1-Sum'!B5+'A1-Sum'!B6)),0,((('A1-Sum'!C5+'A1-Sum'!C6)-('A1-Sum'!B5+'A1-Sum'!B6))/('A1-Sum'!B5+'A1-Sum'!B6)))","v":0.17223210383110119},{"$f":"IF(ISERROR((('A1-Sum'!D5+'A1-Sum'!D6)-('A1-Sum'!C5+'A1-Sum'!C6))/('A1-Sum'!C5+'A1-Sum'!C6)),0,((('A1-Sum'!D5+'A1-Sum'!D6)-('A1-Sum'!C5+'A1-Sum'!C6))/('A1-Sum'!C5+'A1-Sum'!C6)))","v":-1.7458884669813487E-3},{"$f":"IF(ISERROR((('A1-Sum'!E5+'A1-Sum'!E6)-('A1-Sum'!D5+'A1-Sum'!D6))/('A1-Sum'!D5+'A1-Sum'!D6)),0,((('A1-Sum'!E5+'A1-Sum'!E6)-('A1-Sum'!D5+'A1-Sum'!D6))/('A1-Sum'!D5+'A1-Sum'!D6)))","v":0.2171426167999401},{"$f":"IF(ISERROR((('A1-Sum'!F5+'A1-Sum'!F6)-('A1-Sum'!E5+'A1-Sum'!E6))/('A1-Sum'!E5+'A1-Sum'!E6)),0,((('A1-Sum'!F5+'A1-Sum'!F6)-('A1-Sum'!E5+'A1-Sum'!E6))/('A1-Sum'!E5+'A1-Sum'!E6)))","v":-7.3723012493638565E-2},{"$f":"IF(ISERROR((('A1-Sum'!G5+'A1-Sum'!G6)-('A1-Sum'!F5+'A1-Sum'!F6))/('A1-Sum'!F5+'A1-Sum'!F6)),0,((('A1-Sum'!G5+'A1-Sum'!G6)-('A1-Sum'!F5+'A1-Sum'!F6))/('A1-Sum'!F5+'A1-Sum'!F6)))","v":0},{"$f":"IF(ISERROR((('A1-Sum'!H5+'A1-Sum'!H6)-('A1-Sum'!G5+'A1-Sum'!G6))/('A1-Sum'!G5+'A1-Sum'!G6)),0,((('A1-Sum'!H5+'A1-Sum'!H6)-('A1-Sum'!G5+'A1-Sum'!G6))/('A1-Sum'!G5+'A1-Sum'!G6)))","v":0},{"$f":"IF(ISERROR((('A1-Sum'!I5+'A1-Sum'!I6)-('A1-Sum'!F5+'A1-Sum'!F6))/('A1-Sum'!F5+'A1-Sum'!F6)),0,((('A1-Sum'!I5+'A1-Sum'!I6)-('A1-Sum'!F5+'A1-Sum'!F6))/('A1-Sum'!F5+'A1-Sum'!F6)))","v":5.3000029617546345E-2},{"$f":"IF(ISERROR((('A1-Sum'!J5+'A1-Sum'!J6)-('A1-Sum'!I5+'A1-Sum'!I6))/('A1-Sum'!I5+'A1-Sum'!I6)),0,((('A1-Sum'!J5+'A1-Sum'!J6)-('A1-Sum'!I5+'A1-Sum'!I6))/('A1-Sum'!I5+'A1-Sum'!I6)))","v":4.9000014784612536E-2},{"$f":"IF(ISERROR((('A1-Sum'!K5+'A1-Sum'!K6)-('A1-Sum'!J5+'A1-Sum'!J6))/('A1-Sum'!J5+'A1-Sum'!J6)),0,((('A1-Sum'!K5+'A1-Sum'!K6)-('A1-Sum'!J5+'A1-Sum'!J6))/('A1-Sum'!J5+'A1-Sum'!J6)))","v":4.6999975872608575E-2}]
["Expenditure"]
["% Increase in Total Operating Expenditure",null,null,null,{"$f":"IF(ISERROR(('A1-Sum'!C18-'A1-Sum'!B18)/'A1-Sum'!B18),0,(('A1-Sum'!C18-'A1-Sum'!B18)/'A1-Sum'!B18))","v":1.848445666137877},{"$f":"IF(ISERROR(('A1-Sum'!D18-'A1-Sum'!C18)/'A1-Sum'!C18),0,(('A1-Sum'!D18-'A1-Sum'!C18)/'A1-Sum'!C18))","v":6.1506228924253975E-2},{"$f":"IF(ISERROR(('A1-Sum'!E18-'A1-Sum'!D18)/'A1-Sum'!D18),0,(('A1-Sum'!E18-'A1-Sum'!D18)/'A1-Sum'!D18))","v":0.23723431899905695},{"$f":"IF(ISERROR(('A1-Sum'!F18-'A1-Sum'!E18)/'A1-Sum'!E18),0,(('A1-Sum'!F18-'A1-Sum'!E18)/'A1-Sum'!E18))","v":1.1040154637810518E-2},{"$f":"IF(ISERROR(('A1-Sum'!G18-'A1-Sum'!F18)/'A1-Sum'!F18),0,(('A1-Sum'!G18-'A1-Sum'!F18)/'A1-Sum'!F18))","v":0},{"$f":"IF(ISERROR(('A1-Sum'!H18-'A1-Sum'!G18)/'A1-Sum'!G18),0,(('A1-Sum'!H18-'A1-Sum'!G18)/'A1-Sum'!G18))","v":0},{"$f":"IF(ISERROR(('A1-Sum'!I18-'A1-Sum'!F18)/'A1-Sum'!F18),0,(('A1-Sum'!I18-'A1-Sum'!F18)/'A1-Sum'!F18))","v":9.2584602790796958E-2},{"$f":"IF(ISERROR(('A1-Sum'!J18-'A1-Sum'!I18)/'A1-Sum'!I18),0,(('A1-Sum'!J18-'A1-Sum'!I18)/'A1-Sum'!I18))","v":2.0891728684386955E-2},{"$f":"IF(ISERROR(('A1-Sum'!K18-'A1-Sum'!J18)/'A1-Sum'!J18),0,(('A1-Sum'!K18-'A1-Sum'!J18)/'A1-Sum'!J18))","v":3.1364334387540077E-2}]
["% Increase in Employee Costs",null,null,null,{"$f":"IF(ISERROR(('A1-Sum'!C11-'A1-Sum'!B11)/'A1-Sum'!B11),0,(('A1-Sum'!C11-'A1-Sum'!B11)/'A1-Sum'!B11))","v":0.66596904137483404},{"$f":"IF(ISERROR(('A1-Sum'!D11-'A1-Sum'!C11)/'A1-Sum'!C11),0,(('A1-Sum'!D11-'A1-Sum'!C11)/'A1-Sum'!C11))","v":4.6876038525260212E-2},{"$f":"IF(ISERROR(('A1-Sum'!E11-'A1-Sum'!D11)/'A1-Sum'!D11),0,(('A1-Sum'!E11-'A1-Sum'!D11)/'A1-Sum'!D11))","v":0.23718547809888116},{"$f":"IF(ISERROR(('A1-Sum'!F11-'A1-Sum'!E11)/'A1-Sum'!E11),0,(('A1-Sum'!F11-'A1-Sum'!E11)/'A1-Sum'!E11))","v":-0.12524768684990528},{"$f":"IF(ISERROR(('A1-Sum'!G11-'A1-Sum'!F11)/'A1-Sum'!F11),0,(('A1-Sum'!G11-'A1-Sum'!F11)/'A1-Sum'!F11))","v":0},{"$f":"IF(ISERROR(('A1-Sum'!H11-'A1-Sum'!G11)/'A1-Sum'!G11),0,(('A1-Sum'!H11-'A1-Sum'!G11)/'A1-Sum'!G11))","v":0},{"$f":"IF(ISERROR(('A1-Sum'!I11-'A1-Sum'!F11)/'A1-Sum'!F11),0,(('A1-Sum'!I11-'A1-Sum'!F11)/'A1-Sum'!F11))","v":0.20413769223773237},{"$f":"IF(ISERROR(('A1-Sum'!J11-'A1-Sum'!I11)/'A1-Sum'!I11),0,(('A1-Sum'!J11-'A1-Sum'!I11)/'A1-Sum'!I11))","v":1.6587155929877504E-2},{"$f":"IF(ISERROR(('A1-Sum'!K11-'A1-Sum'!J11)/'A1-Sum'!J11),0,(('A1-Sum'!K11-'A1-Sum'!J11)/'A1-Sum'!J11))","v":4.6640775576788446E-2}]
["% Increase in Electricity Bulk Purchases",null,null,null,{"$f":"IF(ISERROR(('SA1'!D86-'SA1'!C86)/'SA1'!C86),0,(('SA1'!D86-'SA1'!C86)/'SA1'!C86))","v":0},{"$f":"IF(ISERROR(('SA1'!E86-'SA1'!D86)/'SA1'!D86),0,(('SA1'!E86-'SA1'!D86)/'SA1'!D86))","v":0},{"$f":"IF(ISERROR(('SA1'!F86-'SA1'!E86)/'SA1'!E86),0,(('SA1'!F86-'SA1'!E86)/'SA1'!E86))","v":0},{"$f":"IF(ISERROR(('SA1'!G86-'SA1'!F86)/'SA1'!F86),0,(('SA1'!G86-'SA1'!F86)/'SA1'!F86))","v":0},{"$f":"IF(ISERROR(('SA1'!H86-'SA1'!G86)/'SA1'!G86),0,(('SA1'!H86-'SA1'!G86)/'SA1'!G86))","v":0},{"$f":"IF(ISERROR(('SA1'!I86-'SA1'!H86)/'SA1'!H86),0,(('SA1'!I86-'SA1'!H86)/'SA1'!H86))","v":0},{"$f":"IF(ISERROR(('SA1'!J86-'SA1'!G86)/'SA1'!G86),0,(('SA1'!J86-'SA1'!G86)/'SA1'!G86))","v":0},{"$f":"IF(ISERROR(('SA1'!K86-'SA1'!J86)/'SA1'!J86),0,(('SA1'!K86-'SA1'!J86)/'SA1'!J86))","v":0},{"$f":"IF(ISERROR(('SA1'!L86-'SA1'!K86)/'SA1'!K86),0,(('SA1'!L86-'SA1'!K86)/'SA1'!K86))","v":0}]
["Average Cost Per Budgeted Employee Position (Remuneration)",null,null,null,null,{"$f":"IF(ISERROR('A1-Sum'!D11/('SA24'!D36+'SA24'!E36-'SA24'!C5)),0,('A1-Sum'!D11/('SA24'!D36+'SA24'!E36-'SA24'!C5)))","v":0},{"$f":"IF(ISERROR('A1-Sum'!E11/('SA24'!F36-'SA24'!F5)),0,('A1-Sum'!E11/('SA24'!F36-'SA24'!F5)))","v":0},null,null,null,{"$f":"IF(ISERROR('A1-Sum'!I11/('SA24'!I36-'SA24'!I5)),0,('A1-Sum'!I11/('SA24'!I36-'SA24'!I5)))","v":0}]
["Average Cost Per Councillor (Remuneration)",null,null,null,null,{"$f":"IF(ISERROR('A1-Sum'!D12/'SA24'!C5),0,('A1-Sum'!D12/'SA24'!C5))","v":0},{"$f":"IF(ISERROR('A1-Sum'!E12/'SA24'!F5),0,('A1-Sum'!E12/'SA24'!F5))","v":0},null,null,null,{"$f":"IF(ISERROR('A1-Sum'!I12/'SA24'!I5),0,('A1-Sum'!I12/'SA24'!I5))","v":0}]
["R&M % of PPE",null,null,{"$f":"'A9-Asset'!C223","v":-2.1999999999999999E-2},{"$f":"'A9-Asset'!D223","v":-1.7999999999999999E-2},{"$f":"'A9-Asset'!E223","v":-4.3999999999999997E-2},{"$f":"'A9-Asset'!F223","v":2.1000000000000001E-2},{"$f":"'A9-Asset'!G223","v":5.8000000000000003E-2},{"$f":"'A9-Asset'!H223","v":5.8000000000000003E-2},null,{"$f":"'A9-Asset'!I223","v":5.5E-2},{"$f":"'A9-Asset'!J223","v":6.9000000000000006E-2},{"$f":"'A9-Asset'!K223","v":6.9000000000000006E-2}]
["Asset Renewal and R&M as a % of PPE",null,null,{"$f":"'A9-Asset'!C224","v":-7.0000000000000007E-2},{"$f":"'A9-Asset'!D224","v":-0.06},{"$f":"'A9-Asset'!E224","v":-0.09},{"$f":"'A9-Asset'!F224","v":0.03},{"$f":"'A9-Asset'!G224","v":0.09},{"$f":"'A9-Asset'!H224","v":0.09},null,{"$f":"'A9-Asset'!I224","v":0.1},{"$f":"'A9-Asset'!J224","v":0.09},{"$f":"'A9-Asset'!K224","v":0.08}]
["Debt Impairment % of Total Billable Revenue",null,null,{"$f":"'SA10'!D11","v":0},{"$f":"'SA10'!E11","v":0.6058928483288808},{"$f":"'SA10'!F11","v":1.0815335711257921E-2},{"$f":"'SA10'!G11","v":0.31874499062021422},{"$f":"'SA10'!H11","v":0.34411412020319154},{"$f":"'SA10'!I11","v":0.34411412020319154},{"$f":"'SA10'!J11","v":0.34411412020319154},{"$f":"'SA10'!K11","v":0.32679402708865557},{"$f":"'SA10'!L11","v":0.32227147938873008},{"$f":"'SA10'!M11","v":0.31806482302683436}]
["Capital Revenue"]
["Internally Funded & Other (R'000)",null,null,{"$f":"'A1-Sum'!B30","v":84447934},{"$f":"'A1-Sum'!C30","v":77111419},{"$f":"'A1-Sum'!D30","v":84447934},{"$f":"'A1-Sum'!E30","v":82635255},{"$f":"'A1-Sum'!F30","v":63398530},{"$f":"'A1-Sum'!G30","v":63398530},{"$f":"'A1-Sum'!H30","v":63398530},{"$f":"'A1-Sum'!I30","v":90920750},{"$f":"'A1-Sum'!J30","v":102410000},{"$f":"'A1-Sum'!K30","v":85595708}]
["Borrowing (R'000)",null,null,{"$f":"'A1-Sum'!B29","v":0},{"$f":"'A1-Sum'!C29","v":0},{"$f":"'A1-Sum'!D29","v":0},{"$f":"'A1-Sum'!E29","v":0},{"$f":"'A1-Sum'!F29","v":0},{"$f":"'A1-Sum'!G29","v":0},{"$f":"'A1-Sum'!H29","v":0},{"$f":"'A1-Sum'!I29","v":0},{"$f":"'A1-Sum'!J29","v":0},{"$f":"'A1-Sum'!K29","v":0}]
["Grant Funding and Other (R'000)",null,null,{"$f":"'A1-Sum'!B27","v":30495618},{"$f":"'A1-Sum'!C27","v":34691777},{"$f":"'A1-Sum'!D27","v":30495618},{"$f":"'A1-Sum'!E27","v":65536974},{"$f":"'A1-Sum'!F27","v":74809337},{"$f":"'A1-Sum'!G27","v":74809337},{"$f":"'A1-Sum'!H27","v":74809337},{"$f":"'A1-Sum'!I27","v":67870438},{"$f":"'A1-Sum'!J27","v":70916968},{"$f":"'A1-Sum'!K27","v":74040148}]
["Internally Generated funds % of Non Grant Funding",null,null,{"$f":"IF(ISERROR(('A1-Sum'!B28+'A1-Sum'!B30)/('A1-Sum'!B31-'A1-Sum'!B27)),0,(('A1-Sum'!B28+'A1-Sum'!B30)/('A1-Sum'!B31-'A1-Sum'!B27)))","v":1},{"$f":"IF(ISERROR(('A1-Sum'!C28+'A1-Sum'!C30)/('A1-Sum'!C31-'A1-Sum'!C27)),0,(('A1-Sum'!C28+'A1-Sum'!C30)/('A1-Sum'!C31-'A1-Sum'!C27)))","v":1},{"$f":"IF(ISERROR(('A1-Sum'!D28+'A1-Sum'!D30)/('A1-Sum'!D31-'A1-Sum'!D27)),0,(('A1-Sum'!D28+'A1-Sum'!D30)/('A1-Sum'!D31-'A1-Sum'!D27)))","v":1},{"$f":"IF(ISERROR(('A1-Sum'!E28+'A1-Sum'!E30)/('A1-Sum'!E31-'A1-Sum'!E27)),0,(('A1-Sum'!E28+'A1-Sum'!E30)/('A1-Sum'!E31-'A1-Sum'!E27)))","v":1},{"$f":"IF(ISERROR(('A1-Sum'!F28+'A1-Sum'!F30)/('A1-Sum'!F31-'A1-Sum'!F27)),0,(('A1-Sum'!F28+'A1-Sum'!F30)/('A1-Sum'!F31-'A1-Sum'!F27)))","v":1},{"$f":"IF(ISERROR(('A1-Sum'!G28+'A1-Sum'!G30)/('A1-Sum'!G31-'A1-Sum'!G27)),0,(('A1-Sum'!G28+'A1-Sum'!G30)/('A1-Sum'!G31-'A1-Sum'!G27)))","v":1},{"$f":"IF(ISERROR(('A1-Sum'!H28+'A1-Sum'!H30)/('A1-Sum'!H31-'A1-Sum'!H27)),0,(('A1-Sum'!H28+'A1-Sum'!H30)/('A1-Sum'!H31-'A1-Sum'!H27)))","v":1},{"$f":"IF(ISERROR(('A1-Sum'!I28+'A1-Sum'!I30)/('A1-Sum'!I31-'A1-Sum'!I27)),0,(('A1-Sum'!I28+'A1-Sum'!I30)/('A1-Sum'!I31-'A1-Sum'!I27)))","v":1},{"$f":"IF(ISERROR(('A1-Sum'!J28+'A1-Sum'!J30)/('A1-Sum'!J31-'A1-Sum'!J27)),0,(('A1-Sum'!J28+'A1-Sum'!J30)/('A1-Sum'!J31-'A1-Sum'!J27)))","v":1},{"$f":"IF(ISERROR(('A1-Sum'!K28+'A1-Sum'!K30)/('A1-Sum'!K31-'A1-Sum'!K27)),0,(('A1-Sum'!K28+'A1-Sum'!K30)/('A1-Sum'!K31-'A1-Sum'!K27)))","v":1}]
["Borrowing % of Non Grant Funding",null,null,{"$f":"IF(ISERROR('A1-Sum'!B29/('A1-Sum'!B31-'A1-Sum'!B27)),0,('A1-Sum'!B29/('A1-Sum'!B31-'A1-Sum'!B27)))","v":0},{"$f":"IF(ISERROR('A1-Sum'!C29/('A1-Sum'!C31-'A1-Sum'!C27)),0,('A1-Sum'!C29/('A1-Sum'!C31-'A1-Sum'!C27)))","v":0},{"$f":"IF(ISERROR('A1-Sum'!D29/('A1-Sum'!D31-'A1-Sum'!D27)),0,('A1-Sum'!D29/('A1-Sum'!D31-'A1-Sum'!D27)))","v":0},{"$f":"IF(ISERROR('A1-Sum'!E29/('A1-Sum'!E31-'A1-Sum'!E27)),0,('A1-Sum'!E29/('A1-Sum'!E31-'A1-Sum'!E27)))","v":0},{"$f":"IF(ISERROR('A1-Sum'!F29/('A1-Sum'!F31-'A1-Sum'!F27)),0,('A1-Sum'!F29/('A1-Sum'!F31-'A1-Sum'!F27)))","v":0},{"$f":"IF(ISERROR('A1-Sum'!G29/('A1-Sum'!G31-'A1-Sum'!G27)),0,('A1-Sum'!G29/('A1-Sum'!G31-'A1-Sum'!G27)))","v":0},{"$f":"IF(ISERROR('A1-Sum'!H29/('A1-Sum'!H31-'A1-Sum'!H27)),0,('A1-Sum'!H29/('A1-Sum'!H31-'A1-Sum'!H27)))","v":0},{"$f":"IF(ISERROR('A1-Sum'!I29/('A1-Sum'!I31-'A1-Sum'!I27)),0,('A1-Sum'!I29/('A1-Sum'!I31-'A1-Sum'!I27)))","v":0},{"$f":"IF(ISERROR('A1-Sum'!J29/('A1-Sum'!J31-'A1-Sum'!J27)),0,('A1-Sum'!J29/('A1-Sum'!J31-'A1-Sum'!J27)))","v":0},{"$f":"IF(ISERROR('A1-Sum'!K29/('A1-Sum'!K31-'A1-Sum'!K27)),0,('A1-Sum'!K29/('A1-Sum'!K31-'A1-Sum'!K27)))","v":0}]
["Grant Funding % of Total Funding",null,null,{"$f":"IF(ISERROR('A1-Sum'!B27/'A1-Sum'!B31),0,('A1-Sum'!B27/'A1-Sum'!B31))","v":0.26530951470857628},{"$f":"IF(ISERROR('A1-Sum'!C27/'A1-Sum'!C31),0,('A1-Sum'!C27/'A1-Sum'!C31))","v":0.31029324957758808},{"$f":"IF(ISERROR('A1-Sum'!D27/'A1-Sum'!D31),0,('A1-Sum'!D27/'A1-Sum'!D31))","v":0.26530951470857628},{"$f":"IF(ISERROR('A1-Sum'!E27/'A1-Sum'!E31),0,('A1-Sum'!E27/'A1-Sum'!E31))","v":0.44230268007913953},{"$f":"IF(ISERROR('A1-Sum'!F27/'A1-Sum'!F31),0,('A1-Sum'!F27/'A1-Sum'!F31))","v":0.54128132228536596},{"$f":"IF(ISERROR('A1-Sum'!G27/'A1-Sum'!G31),0,('A1-Sum'!G27/'A1-Sum'!G31))","v":0.54128132228536596},{"$f":"IF(ISERROR('A1-Sum'!H27/'A1-Sum'!H31),0,('A1-Sum'!H27/'A1-Sum'!H31))","v":0.54128132228536596},{"$f":"IF(ISERROR('A1-Sum'!I27/'A1-Sum'!I31),0,('A1-Sum'!I27/'A1-Sum'!I31))","v":0.42741942329948435},{"$f":"IF(ISERROR('A1-Sum'!J27/'A1-Sum'!J31),0,('A1-Sum'!J27/'A1-Sum'!J31))","v":0.40915137914372335},{"$f":"IF(ISERROR('A1-Sum'!K27/'A1-Sum'!K31),0,('A1-Sum'!K27/'A1-Sum'!K31))","v":0.46380650221839886}]
["Capital Expenditure"]
["Total Capital Programme (R'000)",null,null,{"$f":"'A1-Sum'!B26","v":114943552},{"$f":"'A1-Sum'!C26","v":111803196},{"$f":"'A1-Sum'!D26","v":114943552},{"$f":"'A1-Sum'!E26","v":148172229},{"$f":"'A1-Sum'!F26","v":138207867},{"$f":"'A1-Sum'!G26","v":138207867},{"$f":"'A1-Sum'!H26","v":138207867},{"$f":"'A1-Sum'!I26","v":158791188},{"$f":"'A1-Sum'!J26","v":173326968},{"$f":"'A1-Sum'!K26","v":159635856}]
["Asset Renewal",null,null,{"$f":"'A1-Sum'!B51","v":19905061},{"$f":"'A1-Sum'!C51","v":20916862},{"$f":"'A1-Sum'!D51","v":30590508},{"$f":"'A1-Sum'!E51","v":23143541},{"$f":"'A1-Sum'!F51","v":18193530},{"$f":"'A1-Sum'!G51","v":18193530},{"$f":"'A1-Sum'!H51","v":23069189},{"$f":"'A1-Sum'!I51","v":14600000},{"$f":"'A1-Sum'!J51","v":1200000},{"$f":"'A1-Sum'!K51","v":0}]
["Asset Renewal % of Total Capital Expenditure",null,null,{"$f":"IF(ISERROR('A1-Sum'!B51/'A1-Sum'!B31),0,('A1-Sum'!B51/'A1-Sum'!B31))","v":0.17317248904923349},{"$f":"IF(ISERROR('A1-Sum'!C51/'A1-Sum'!C31),0,('A1-Sum'!C51/'A1-Sum'!C31))","v":0.18708644071319749},{"$f":"IF(ISERROR('A1-Sum'!D51/'A1-Sum'!D31),0,('A1-Sum'!D51/'A1-Sum'!D31))","v":0.26613505035932766},{"$f":"IF(ISERROR('A1-Sum'!E51/'A1-Sum'!E31),0,('A1-Sum'!E51/'A1-Sum'!E31))","v":0.15619351315825855},{"$f":"IF(ISERROR('A1-Sum'!F51/'A1-Sum'!F31),0,('A1-Sum'!F51/'A1-Sum'!F31))","v":0.13163888854460071},{"$f":"IF(ISERROR('A1-Sum'!G51/'A1-Sum'!G31),0,('A1-Sum'!G51/'A1-Sum'!G31))","v":0.13163888854460071},{"$f":"IF(ISERROR('A1-Sum'!H51/'A1-Sum'!H31),0,('A1-Sum'!H51/'A1-Sum'!H31))","v":0.16691661264116028},{"$f":"IF(ISERROR('A1-Sum'!I51/'A1-Sum'!I31),0,('A1-Sum'!I51/'A1-Sum'!I31))","v":9.1944648716904873E-2},{"$f":"IF(ISERROR('A1-Sum'!J51/'A1-Sum'!J31),0,('A1-Sum'!J51/'A1-Sum'!J31))","v":6.9233311691000096E-3},{"$f":"IF(ISERROR('A1-Sum'!K51/'A1-Sum'!K31),0,('A1-Sum'!K51/'A1-Sum'!K31))","v":0}]
["Cash"]
["Cash Receipts % of Rate Payer & Other",null,null,{"$f":"'SA10'!D10","v":0},{"$f":"'SA10'!E10","v":0},{"$f":"'SA10'!F10","v":0},{"$f":"'SA10'!G10","v":0.13241505192891626},{"$f":"'SA10'!H10","v":0.11737006775059476},{"$f":"'SA10'!I10","v":0.11737006775059476},{"$f":"'SA10'!J10","v":0.11737006775059476},{"$f":"'SA10'!K10","v":0.20529304511080046},{"$f":"'SA10'!L10","v":0.20528528251292252},{"$f":"'SA10'!M10","v":0.19911746216100651}]
["Cash Coverage Ratio",null,null,{"$f":"'SA10'!D7","v":0},{"$f":"'SA10'!E7","v":0},{"$f":"'SA10'!F7","v":0},{"$f":"'SA10'!G7","v":5.3526962148170805},{"$f":"'SA10'!H7","v":5.3149950973010007},{"$f":"'SA10'!I7","v":5.3149950973010007},{"$f":"'SA10'!J7","v":5.3149950973010007},{"$f":"'SA10'!K7","v":3.2685561736999325},{"$f":"'SA10'!L7","v":1.5664707353108156},{"$f":"'SA10'!M7","v":0.29442982381350286}]
["Borrowing"]
[]
["Most recent Credit Rating ",null,null,null,null,null,null,null,null,null,{"$f":"'SA8'!F6","v":0}]
["Capital Charges to Operating",null,null,{"$f":"'SA8'!C7","v":1.2655534187444523E-2},{"$f":"'SA8'!D7","v":9.4347893190674607E-3},{"$f":"'SA8'!E7","v":1.5042573968905916E-2},{"$f":"'SA8'!F7","v":0},{"$f":"'SA8'!G7","v":0},{"$f":"'SA8'!H7","v":0},{"$f":"'SA8'!I7","v":0},{"$f":"'SA8'!J7","v":0},{"$f":"'SA8'!K7","v":0},{"$f":"'SA8'!L7","v":0}]
["Borrowing Receipts % of Capital Expenditure",null,null,{"$f":"'SA10'!D13","v":0},{"$f":"'SA10'!E13","v":0},{"$f":"'SA10'!F13","v":0},{"$f":"'SA10'!G13","v":0},{"$f":"'SA10'!H13","v":0},{"$f":"'SA10'!I13","v":0},{"$f":"'SA10'!J13","v":0},{"$f":"'SA10'!K13","v":0},{"$f":"'SA10'!L13","v":0},{"$f":"'SA10'!M13","v":0}]
["Reserves"]
["Uncommitted reserves after application of cash and investments",null,null,{"$f":"'A8-ResRecon'!C19","v":-56998678},{"$f":"'A8-ResRecon'!D19","v":-113689144},{"$f":"'A8-ResRecon'!E19","v":-150852919},{"$f":"'A8-ResRecon'!F19","v":2481538227},{"$f":"'A8-ResRecon'!G19","v":1344659003.820128},{"$f":"'A8-ResRecon'!H19","v":1344659003.820128},{"$f":"'A8-ResRecon'!I19","v":1344659003.820128},{"$f":"'A8-ResRecon'!J19","v":1043276928.3567947},{"$f":"'A8-ResRecon'!K19","v":994930245.40679467},{"$f":"'A8-ResRecon'!L19","v":911719208.66444468}]
["Free Services"]
["Free Basic Services as a % of Equitable Share",null,null,{"$f":"IF(ISERROR('A10-SerDel'!C60/'SA18'!C8),0,('A10-SerDel'!C60/'SA18'!C8))","v":0},{"$f":"IF(ISERROR('A10-SerDel'!D60/'SA18'!D8),0,('A10-SerDel'!D60/'SA18'!D8))","v":0},{"$f":"IF(ISERROR('A10-SerDel'!E60/'SA18'!E8),0,('A10-SerDel'!E60/'SA18'!E8))","v":0},{"$f":"IF(ISERROR('A10-SerDel'!F60/'SA18'!F8),0,('A10-SerDel'!F60/'SA18'!F8))","v":0},{"$f":"IF(ISERROR('A10-SerDel'!G60/'SA18'!G8),0,('A10-SerDel'!G60/'SA18'!G8))","v":0},{"$f":"IF(ISERROR('A10-SerDel'!H60/'SA18'!H8),0,('A10-SerDel'!H60/'SA18'!H8))","v":0},null,{"$f":"IF(ISERROR('A10-SerDel'!I60/'SA18'!I8),0,('A10-SerDel'!I60/'SA18'!I8))","v":0},{"$f":"IF(ISERROR('A10-SerDel'!J60/'SA18'!J8),0,('A10-SerDel'!J60/'SA18'!J8))","v":0},{"$f":"IF(ISERROR('A10-SerDel'!K60/'SA18'!K8),0,('A10-SerDel'!K60/'SA18'!K8))","v":0}]
["Free Services as a % of Operating Revenue \n(excl operational transfers)",null,null,{"$f":"IF(ISERROR('A10-SerDel'!C79/('A1-Sum'!B10-'A1-Sum'!B8)),0,('A10-SerDel'!C79/('A1-Sum'!B10-'A1-Sum'!B8)))","v":0},{"$f":"IF(ISERROR('A10-SerDel'!D79/('A1-Sum'!C10-'A1-Sum'!C8)),0,('A10-SerDel'!D79/('A1-Sum'!C10-'A1-Sum'!C8)))","v":0},{"$f":"IF(ISERROR('A10-SerDel'!E79/('A1-Sum'!D10-'A1-Sum'!D8)),0,('A10-SerDel'!E79/('A1-Sum'!D10-'A1-Sum'!D8)))","v":0},{"$f":"IF(ISERROR('A10-SerDel'!F79/('A1-Sum'!E10-'A1-Sum'!E8)),0,('A10-SerDel'!F79/('A1-Sum'!E10-'A1-Sum'!E8)))","v":0},{"$f":"IF(ISERROR('A10-SerDel'!G79/('A1-Sum'!F10-'A1-Sum'!F8)),0,('A10-SerDel'!G79/('A1-Sum'!F10-'A1-Sum'!F8)))","v":0},{"$f":"IF(ISERROR('A10-SerDel'!H79/('A1-Sum'!G10-'A1-Sum'!G8)),0,('A10-SerDel'!H79/('A1-Sum'!G10-'A1-Sum'!G8)))","v":0},null,{"$f":"IF(ISERROR('A10-SerDel'!I79/('A1-Sum'!I10-'A1-Sum'!I8)),0,('A10-SerDel'!I79/('A1-Sum'!I10-'A1-Sum'!I8)))","v":0},{"$f":"IF(ISERROR('A10-SerDel'!J79/('A1-Sum'!J10-'A1-Sum'!J8)),0,('A10-SerDel'!J79/('A1-Sum'!J10-'A1-Sum'!J8)))","v":0},{"$f":"IF(ISERROR('A10-SerDel'!K79/('A1-Sum'!K10-'A1-Sum'!K8)),0,('A10-SerDel'!K79/('A1-Sum'!K10-'A1-Sum'!K8)))","v":0}]
[]
["High Level Outcome of Funding Compliance"]
["Total Operating Revenue",null,null,{"$f":"D86","v":406431573},{"$f":"E86","v":496368208},479676573,530902402,521583065,521583065,{"$f":"J86","v":521583065},536308125,566297737,563528033]
["Total Operating Expenditure",null,null,{"$f":"D87","v":146649993},417724537,443417198,548610975,554667725,554667725,554667725,606021416,618682251,638086808]
["Surplus/(Deficit) Budgeted Operating Statement",null,null,259781580,78643671,36259375,-17708573,-33084660,-33084660,-33084660,-69713291,-52384514,-74558775]
["Surplus/(Deficit) Considering Reserves and Cash Backing",null,null,{"$f":"'A8-ResRecon'!C19","v":-56998678},{"$f":"'A8-ResRecon'!D19","v":-113689144},{"$f":"'A8-ResRecon'!E19","v":-150852919},{"$f":"'A8-ResRecon'!F19","v":2481538227},{"$f":"'A8-ResRecon'!G19","v":1344659003.820128},{"$f":"'A8-ResRecon'!H19","v":1344659003.820128},{"$f":"'A8-ResRecon'!I19","v":1344659003.820128},{"$f":"'A8-ResRecon'!J19","v":1043276928.3567947},{"$f":"'A8-ResRecon'!K19","v":994930245.40679467},{"$f":"'A8-ResRecon'!L19","v":911719208.66444468}]
["MTREF Funded (1) / Unfunded (0)",null,15,{"$f":"IF(D133>=0,1,0)","v":0},{"$f":"IF(E133>=0,1,0)","v":0},0,1,1,1,1,1,1,1]
["MTREF Funded ü / Unfunded û",null,15,{"$f":"IF(D134=1,\"ü\",\"û\")","v":"û"},{"$f":"IF(E134=1,\"ü\",\"û\")","v":"û"},"û","ü","ü","ü","ü","ü","ü","ü"]
[]
[{"$f":"head27a","v":"References"}]
["15. Subject to figures provided in Schedule."]

{"sheet":"SA11","index":54,"n_rows":73,"n_cols":33,"rows_kept":73,"cut":false,"hidden":false,"merged":[[1,5,1,7],[1,8,1,10],[1,1,3,1],[1,0,2,0]]}
[{"$f":"muni&\" - \"&TableA11","v":"LIM331 Greater Giyani - Supporting Table SA11 Property rates summary"}]
[{"$f":"desc","v":"Description"},{"$f":"head27","v":"Ref"},{"$f":"head1b","v":"2019/20"},{"$f":"head1A","v":"2020/21"},{"$f":"Head1","v":"2021/22"},{"$f":"Head2","v":"Current Year 2022/23"},null,null,{"$f":"Head3","v":"2023/24 Medium Term Revenue & Expenditure Framework"}]
[null,null,{"$f":"Head5","v":"Audited Outcome"},{"$f":"Head5","v":"Audited Outcome"},{"$f":"Head5","v":"Audited Outcome"},{"$f":"Head6","v":"Original Budget"},{"$f":"Head7","v":"Adjusted Budget"},{"$f":"Head8","v":"Full Year Forecast"},{"$f":"Head9","v":"Budget Year 2023/24"},{"$f":"Head10","v":"Budget Year +1 2024/25"},{"$f":"Head11","v":"Budget Year +2 2025/26"}]
[]
["Valuation:",1,null,null,null,null,null,null,null,null,null,null,null,null,null,null,null,null,null,null,null,null,null,null,null,null,null,null,null,null,1000,"SA11",{"$f":"_xlfn.CONCAT(AF5,AE5)","v":"SA111000"}]
["Date of valuation:",null,"2013-07-01","2020-07-01","2020-07-01","2020-07-01",null,null,null,null,null,null,null,null,null,null,null,null,null,null,null,null,null,null,null,null,null,null,null,null,1001,"SA11",{"$f":"_xlfn.CONCAT(AF6,AE6)","v":"SA111001"}]
["Financial year valuation used",null,"2019/2020","2019/2020","2021/2022","2022/2023",0,0,"2023/2024",null,null,null,null,null,null,null,null,null,null,null,null,null,null,null,null,null,null,null,null,null,1002,"SA11","SA111002"]
["Municipal by-laws s6 in place? (Y/N)","2","Yes","Yes","Yes","Yes",0,0,"Yes",null,null,null,null,null,null,null,null,null,null,null,null,null,null,null,null,null,null,null,null,null,1003,"SA11","SA111003"]
["Municipal/assistant valuer appointed? (Y/N)",null,"Yes","Yes","Yes","Yes",0,0,"Yes",null,null,null,null,null,null,null,null,null,null,null,null,null,null,null,null,null,null,null,null,null,1004,"SA11","SA111004"]
["Municipal partnership s38 used? (Y/N)",null,"No","No","No","No","No","No","No","No","No",{"$f":"SUMIFS(NFD!P:P,NFD!D:D,SA12a!AE:AE,NFD!A:A,SA12a!AF:AF)","v":0},{"$f":"SUMIFS(NFD!Q:Q,NFD!D:D,SA12a!AE:AE,NFD!A:A,SA12a!AF:AF)","v":0},null,null,null,null,null,null,null,null,null,null,null,null,null,null,null,null,null,1005,"SA11","SA111005"]
["No. of assistant valuers (FTE)",3,0,0,0,0,0,0,0,0,0,null,null,null,null,null,null,null,null,null,null,null,null,null,null,null,null,null,null,null,1006,"SA11","SA111006"]
["No. of data collectors (FTE)",3,0,0,0,0,0,0,0,0,0,null,null,null,null,null,null,null,null,null,null,null,null,null,null,null,null,null,null,null,1007,"SA11","SA111007"]
["No. of internal valuers (FTE)",3,0,0,0,0,0,0,0,0,0,null,null,null,null,null,null,null,null,null,null,null,null,null,null,null,null,null,null,null,1008,"SA11","SA111008"]
["No. of external valuers (FTE)",3,0,0,0,0,0,0,0,0,0,null,null,null,null,null,null,null,null,null,null,null,null,null,null,null,null,null,null,null,1009,"SA11","SA111009"]
["No. of additional valuers (FTE)",4,0,0,0,0,0,0,0,0,0,null,null,null,null,null,null,null,null,null,null,null,null,null,null,null,null,null,null,null,1010,"SA11","SA111010"]
["Valuation appeal board established? (Y/N)",null,"No","No","No","No",0,0,"No",0,0,null,null,null,null,null,null,null,null,null,null,null,null,null,null,null,null,null,null,null,1011,"SA11","SA111011"]
["Implementation time of new valuation roll (mths)",null,60,60,60,60,0,0,60,0,0,null,null,null,null,null,null,null,null,null,null,null,null,null,null,null,null,null,null,null,1012,"SA11","SA111012"]
["No. of properties",5,7182,7289,7289,7289,7289,7289,7289,7289,7289,null,null,null,null,null,null,null,null,null,null,null,null,null,null,null,null,null,null,null,1020,"SA11","SA111020"]
["No. of sectional title values",5,0,0,0,0,0,0,0,0,0,null,null,null,null,null,null,null,null,null,null,null,null,null,null,null,null,null,null,null,1021,"SA11","SA111021"]
["No. of unreasonably difficult properties s7(2)",null,0,0,0,0,0,0,0,0,0,null,null,null,null,null,null,null,null,null,null,null,null,null,null,null,null,null,null,null,1022,"SA11","SA111022"]
["No. of supplementary valuations",null,1,1,1,1,1,1,1,1,1,null,null,null,null,null,null,null,null,null,null,null,null,null,null,null,null,null,null,null,1023,"SA11","SA111023"]
["No. of valuation roll amendments",null,0,0,0,0,0,1,0,0,0,null,null,null,null,null,null,null,null,null,null,null,null,null,null,null,null,null,null,null,1024,"SA11","SA111024"]
["No. of objections by rate payers",null,0,0,0,0,null,0,0,0,null,null,null,null,null,null,null,null,null,null,null,null,null,null,null,null,null,null,null,null,1025,"SA11","SA111025"]
["No. of appeals by rate payers",null,0,0,0,0,0,0,0,0,0,null,null,null,null,null,null,null,null,null,null,null,null,null,null,null,null,null,null,null,1026,"SA11","SA111026"]
["No. of successful objections",8,0,0,0,0,0,0,0,0,0,null,null,null,null,null,null,null,null,null,null,null,null,null,null,null,null,null,null,null,1028,"SA11","SA111028"]
["No. of successful objections > 10%",8,0,0,0,0,0,0,0,0,0,null,null,null,null,null,null,null,null,null,null,null,null,null,null,null,null,null,null,null,1029,"SA11","SA111029"]
["Supplementary valuation",null,1997210800,0,169233000,185280000,185280000,185280000,185280000,185280000,185280000,null,null,null,null,null,null,null,null,null,null,null,null,null,null,null,null,null,null,null,1030,"SA11","SA111030"]
["Public service infrastructure value (Rm)",5,8595000,452000,452000,452000,452000,452000,452000,452000,452000,null,null,null,null,null,null,null,null,null,null,null,null,null,null,null,null,null,null,null,1031,"SA11","SA111031"]
["Municipality owned property value (Rm)",null,151723000,159411000,159411000,159411000,159411000,159411000,159411000,159411000,159411000,null,null,null,null,null,null,null,null,null,null,null,null,null,null,null,null,null,null,null,1032,"SA11","SA111032"]
["Valuation reductions:",null,null,null,null,null,null,null,null,null,null,null,null,null,null,null,null,null,null,null,null,null,null,null,null,null,null,null,null,null,1100,"SA11","SA111100"]
["Valuation reductions-public infrastructure (Rm)",null,0,0,0,0,0,0,0,0,0,null,null,null,null,null,null,null,null,null,null,null,null,null,null,null,null,null,null,null,1101,"SA11","SA111101"]
["Valuation reductions-nature reserves/park (Rm)",null,0,0,0,0,0,0,0,0,0,null,null,null,null,null,null,null,null,null,null,null,null,null,null,null,null,null,null,null,1102,"SA11","SA111102"]
["Valuation reductions-mineral rights (Rm)",null,0,0,0,0,0,0,0,0,0,null,null,null,null,null,null,null,null,null,null,null,null,null,null,null,null,null,null,null,1103,"SA11","SA111103"]
["Valuation reductions-R15,000 threshold (Rm)",null,15000,15000,15000,15000,15000,15000,15000,15000,15000,null,null,null,null,null,null,null,null,null,null,null,null,null,null,null,null,null,null,null,1104,"SA11","SA111104"]
["Valuation reductions-public worship (Rm)",null,0,0,0,0,0,0,0,0,0,null,null,null,null,null,null,null,null,null,null,null,null,null,null,null,null,null,null,null,1105,"SA11","SA111105"]
["Valuation reductions-other (Rm)",null,0,0,0,0,0,0,0,0,0,null,null,null,null,null,null,null,null,null,null,null,null,null,null,null,null,null,null,null,1106,"SA11","SA111106"]
["Total valuation reductions:",null,{"$f":"SUM(C31:C36)","v":15000},{"$f":"SUM(D31:D36)","v":15000},15000,15000,15000,15000,15000,15000,15000,null,null,null,null,null,null,null,null,null,null,null,null,null,null,null,null,null,null,null,1107,"SA11","SA111107"]
["Total value used for rating (Rm)",5,null,null,null,null,null,null,null,null,null,null,null,null,null,null,null,null,null,null,null,null,null,null,null,null,null,null,null,null,1108,"SA11","SA111108"]
["Total land value (Rm)",5,0,0,0,0,0,0,0,0,0,null,null,null,null,null,null,null,null,null,null,null,null,null,null,null,null,null,null,null,1109,"SA11","SA111109"]
["Total value of improvements (Rm)",5,0,0,0,0,0,0,0,0,0,null,null,null,null,null,null,null,null,null,null,null,null,null,null,null,null,null,null,null,1110,"SA11","SA111110"]
["Total market value (Rm)",5,0,0,0,0,0,0,0,0,0,null,null,null,null,null,null,null,null,null,null,null,null,null,null,null,null,null,null,null,1111,"SA11","SA111111"]
[null,null,0,0,0,0,0,0,0,0,0,null,null,null,null,null,null,null,null,null,null,null,null,null,null,null,null,null,null,null,null,"SA11","SA11"]
["Rating:",null,0,0,0,0,0,0,0,0,0,null,null,null,null,null,null,null,null,null,null,null,null,null,null,null,null,null,null,null,1200,"SA11","SA111200"]
["Residential rate used to determine rate for other categories? (Y/N)",null,"No","No","No","No",null,null,"No",null,null,null,null,null,null,null,null,null,null,null,null,null,null,null,null,null,null,null,null,null,1202,"SA11","SA111202"]
["Differential rates used? (Y/N)",5,"Yes","Yes","Yes","Yes",null,null,"Yes",null,null,null,null,null,null,null,null,null,null,null,null,null,null,null,null,null,null,null,null,null,1203,"SA11","SA111203"]
["Limit on annual rate increase (s20)? (Y/N)",null,"No","No","No","No","No","No","No","No","No",null,null,null,null,null,null,null,null,null,null,null,null,null,null,null,null,null,null,null,1204,"SA11","SA111204"]
["Special rating area used? (Y/N)",null,"No","No","No","No",null,null,"No",null,null,null,null,null,null,null,null,null,null,null,null,null,null,null,null,null,null,null,null,null,1205,"SA11","SA111205"]
["Phasing-in properties s21 (number)",null,"No","No","No","No","No","No","No","No","No",null,null,null,null,null,null,null,null,null,null,null,null,null,null,null,null,null,null,null,1206,"SA11","SA111206"]
["Rates policy accompanying budget? (Y/N)",null,"Yes","Yes","Yes","Yes",null,null,"Yes",null,null,null,null,null,null,null,null,null,null,null,null,null,null,null,null,null,null,null,null,null,1207,"SA11","SA111207"]
["Fixed amount minimum value (R'000)",null,15000,15000,15000,15000,null,null,15000,null,null,null,null,null,null,null,null,null,null,null,null,null,null,null,null,null,null,null,null,null,1208,"SA11","SA111208"]
["Non-residential prescribed ratio s19? (%)",null,0,0,0,0,null,null,0,null,null,null,null,null,null,null,null,null,null,null,null,null,null,null,null,null,null,null,null,null,1209,"SA11","SA111209"]
[null,null,null,null,null,null,null,null,null,null,null,null,null,null,null,null,null,null,null,null,null,null,null,null,null,null,null,null,null,null,null,"SA11","SA11"]
["Rate revenue:",null,null,null,null,null,null,null,null,null,null,null,null,null,null,null,null,null,null,null,null,null,null,null,null,null,null,null,null,null,1300,"SA11","SA111300"]
["Rate revenue budget (R '000)",6,35238339,76809443.239999995,76809443.239999995,79881820.969600007,null,null,79316560,83203071,87113616,null,null,null,null,null,null,null,null,null,null,null,null,null,null,null,null,null,null,null,1301,"SA11","SA111301"]
["Rate revenue expected to collect (R'000)",6,21143003.399999999,46085665.943999998,46085665.943999998,47929092.581760004,0,0,47589936,49921842.600000001,52268169.600000001,null,null,null,null,null,null,null,null,null,null,null,null,null,null,null,null,null,null,null,1302,"SA11","SA111302"]
["Expected cash collection rate (%)",null,0.6,0.6,0.6,0.6,0.6,0.6,0.6,0.6,0.6,null,null,null,null,null,null,null,null,null,null,null,null,null,null,null,null,null,null,null,1303,"SA11","SA111303"]
["Special rating areas (R'000)",7,0,0,0,0,0,0,0,0,0,null,null,null,null,null,null,null,null,null,null,null,null,null,null,null,null,null,null,null,1304,"SA11","SA111304"]
["Rebates, exemptions - indigent (R'000)",null,5000,5000,5000,5000,5000,5000,6000,6000,6000,null,null,null,null,null,null,null,null,null,null,null,null,null,null,null,null,null,null,null,1305,"SA11","SA111305"]
["Rebates, exemptions - pensioners (R'000)",null,5000,5000,5000,5000,5000,5000,6000,6000,6000,null,null,null,null,null,null,null,null,null,null,null,null,null,null,null,null,null,null,null,1306,"SA11","SA111306"]
["Rebates, exemptions - bona fide farm. (R'000)",null,0,0,0,0,0,0,0,0,0,null,null,null,null,null,null,null,null,null,null,null,null,null,null,null,null,null,null,null,1307,"SA11","SA111307"]
["Rebates, exemptions - other (R'000)",null,0,0,0,0,0,0,0,0,0,null,null,null,null,null,null,null,null,null,null,null,null,null,null,null,null,null,null,null,1308,"SA11","SA111308"]
["Phase-in reductions/discounts (R'000)",null,0,0,0,0,0,0,0,0,0,null,null,null,null,null,null,null,null,null,null,null,null,null,null,null,null,null,null,null,1309,"SA11","SA111309"]
["Total rebates,exemptns,reductns,discs (R'000)",null,{"$f":"SUM(C58:C62)","v":10000},{"$f":"SUM(D58:D62)","v":10000},10000,10000,10000,10000,12000,12000,12000,null,null,null,null,null,null,null,null,null,null,null,null,null,null,null,null,null,null,null,1310,"SA11","SA111310"]
[]
[{"$f":"head27a","v":"References"}]
["1. All numbers to be expressed as whole numbers except FTEs and Rates in the Rand"]
["2. To give effect to rates policy"]
["3. Full Time Equivalent (FTE)  should be expressed to one decimal place and takes into account full time and part time staff"]
["4. Required to implement new system (FTE)"]
["5. Provide relevant information for historical comparisons. Must reconcile to the total of Table SA12"]
[{"$f":"\"6. Current and budget year must reconcile to \"&'Template names'!F103","v":"6. Current and budget year must reconcile to Table A4 Budgeted Financial Performance (revenue and expenditure)"}]
["7. Included in rate revenue budget"]
["8. In favour of the rate-payer"]

{"sheet":"SA12a","index":55,"n_rows":56,"n_cols":33,"rows_kept":56,"cut":false,"hidden":false,"merged":[]}
[{"$f":"muni&\" - \"&TableA12a","v":"LIM331 Greater Giyani - Supporting Table SA12a Property rates by category (current year)"}]
[{"$f":"desc","v":"Description"},{"$f":"head27","v":"Ref"},"Business and commercial properties","Industrial properties","Mining properties","Residential properties","Agricultural properties","Public benefit organisations","Public service purpose properties","Public service infrastructure properties","Vacant land","Sport Clubs and Fields (Bitou only)","Sectional Title Garages (Drakenstein only)"]
[{"$f":"Head2","v":"Current Year 2022/23"}]
["Valuation:",null,null,null,null,null,null,null,null,null,null,null,null,null,null,null,null,null,null,null,null,null,null,null,null,null,null,null,null,null,1000,"SA12a",{"$f":"_xlfn.CONCAT(AF4,AE4)","v":"SA12a1000"}]
["No. of properties",null,130,116,0,6750,2,38,82,3,0,0,0,{"$f":"SUMIFS(NFD!R:R,NFD!O:O,SA12a!AP:AP,NFD!L:L,SA12a!AQ:AQ)","v":0},{"$f":"SUMIFS(NFD!S:S,NFD!P:P,SA12a!AQ:AQ,NFD!M:M,SA12a!AR:AR)","v":0},{"$f":"SUMIFS(NFD!T:T,NFD!Q:Q,SA12a!AR:AR,NFD!N:N,SA12a!AS:AS)","v":0},{"$f":"SUMIFS(NFD!U:U,NFD!R:R,SA12a!AS:AS,NFD!O:O,SA12a!AT:AT)","v":0},{"$f":"SUMIFS(NFD!V:V,NFD!S:S,SA12a!AT:AT,NFD!P:P,SA12a!AU:AU)","v":0},{"$f":"SUMIFS(NFD!W:W,NFD!T:T,SA12a!AU:AU,NFD!Q:Q,SA12a!AV:AV)","v":0},{"$f":"SUMIFS(NFD!X:X,NFD!U:U,SA12a!AV:AV,NFD!R:R,SA12a!AW:AW)","v":0},{"$f":"SUMIFS(NFD!Y:Y,NFD!V:V,SA12a!AW:AW,NFD!S:S,SA12a!AX:AX)","v":0},{"$f":"SUMIFS(NFD!Z:Z,NFD!W:W,SA12a!AX:AX,NFD!T:T,SA12a!AY:AY)","v":0},{"$f":"SUMIFS(NFD!AA:AA,NFD!X:X,SA12a!AY:AY,NFD!U:U,SA12a!AZ:AZ)","v":0},{"$f":"SUMIFS(NFD!AB:AB,NFD!Y:Y,SA12a!AZ:AZ,NFD!V:V,SA12a!BA:BA)","v":0},{"$f":"SUMIFS(NFD!AC:AC,NFD!Z:Z,SA12a!BA:BA,NFD!W:W,SA12a!BB:BB)","v":0},{"$f":"SUMIFS(NFD!AD:AD,NFD!AA:AA,SA12a!BB:BB,NFD!X:X,SA12a!BC:BC)","v":0},{"$f":"SUMIFS(NFD!AE:AE,NFD!AB:AB,SA12a!BC:BC,NFD!Y:Y,SA12a!BD:BD)","v":0},{"$f":"SUMIFS(NFD!AF:AF,NFD!AC:AC,SA12a!BD:BD,NFD!Z:Z,SA12a!BE:BE)","v":0},{"$f":"SUMIFS(NFD!AG:AG,NFD!AD:AD,SA12a!BE:BE,NFD!AA:AA,SA12a!BF:BF)","v":0},{"$f":"SUMIFS(NFD!AH:AH,NFD!AE:AE,SA12a!BF:BF,NFD!AB:AB,SA12a!BG:BG)","v":0},1020,"SA12a",{"$f":"_xlfn.CONCAT(AF5,AE5)","v":"SA12a1020"}]
["No. of sectional title property values",null,0,0,0,0,0,0,0,0,0,0,0,null,null,null,null,null,null,null,null,null,null,null,null,null,null,null,null,null,1021,"SA12a","SA12a1021"]
["No. of unreasonably difficult properties s7(2)",null,0,0,0,0,0,0,0,0,0,0,0,null,null,null,null,null,null,null,null,null,null,null,null,null,null,null,null,null,1022,"SA12a","SA12a1022"]
["No. of supplementary valuations",null,1,1,0,1,null,1,1,1,1,0,0,null,null,null,null,null,null,null,null,null,null,null,null,null,null,null,null,null,1023,"SA12a","SA12a1023"]
["Supplementary valuation (Rm)",null,7050000,0,0,175780000,0,0,2450000,0,0,0,0,null,null,null,null,null,null,null,null,null,null,null,null,null,null,null,null,null,1024,"SA12a","SA12a1024"]
["No. of valuation roll amendments",null,0,0,0,0,0,0,0,0,0,0,0,null,null,null,null,null,null,null,null,null,null,null,null,null,null,null,null,null,1025,"SA12a","SA12a1025"]
["No. of objections by rate-payers",null,0,0,0,0,0,0,0,0,0,0,0,null,null,null,null,null,null,null,null,null,null,null,null,null,null,null,null,null,1026,"SA12a","SA12a1026"]
["No. of appeals by rate-payers",null,0,0,0,0,0,0,0,0,0,0,0,null,null,null,null,null,null,null,null,null,null,null,null,null,null,null,null,null,1027,"SA12a","SA12a1027"]
["No. of appeals by rate-payers finalised",null,0,0,0,0,0,0,0,0,0,0,0,null,null,null,null,null,null,null,null,null,null,null,null,null,null,null,null,null,1028,"SA12a","SA12a1028"]
["No. of successful objections",5,0,0,0,0,0,0,0,0,0,0,0,null,null,null,null,null,null,null,null,null,null,null,null,null,null,null,null,null,1029,"SA12a","SA12a1029"]
["No. of successful objections > 10%",5,0,0,0,0,0,0,0,0,0,0,0,null,null,null,null,null,null,null,null,null,null,null,null,null,null,null,null,null,1030,"SA12a","SA12a1030"]
["Estimated no. of properties not valued",null,0,0,0,0,0,0,0,0,0,0,0,null,null,null,null,null,null,null,null,null,null,null,null,null,null,null,null,null,1040,"SA12a","SA12a1040"]
["Years since last valuation (select)",null,3,3,0,3,3,3,3,3,3,0,0,null,null,null,null,null,null,null,null,null,null,null,null,null,null,null,null,null,1041,"SA12a","SA12a1041"]
["Frequency of valuation (select)",null,5,5,0,5,5,5,5,5,5,0,0,null,null,null,null,null,null,null,null,null,null,null,null,null,null,null,null,null,1042,"SA12a","SA12a1042"]
["Method of valuation used (select)",null,"Market","Market",0,"Market","Market","Market","Market","Market","Market",0,0,null,null,null,null,null,null,null,null,null,null,null,null,null,null,null,null,null,1043,"SA12a","SA12a1043"]
["Base of valuation (select)",null,"Land & impr.","Land & impr.",0,"Land & impr.","Land & impr.","Land & impr.","Land & impr.","Land & impr.","Land & impr.",0,0,null,null,null,null,null,null,null,null,null,null,null,null,null,null,null,null,null,1044,"SA12a","SA12a1044"]
["Phasing-in properties s21 (number)",null,0,0,0,0,0,0,0,0,0,0,0,null,null,null,null,null,null,null,null,null,null,null,null,null,null,null,null,null,1046,"SA12a","SA12a1046"]
["Combination of rating types used? (Y/N)",null,"Yes","Yes",0,"Yes","Yes","Yes","Yes","Yes","Yes",0,0,null,null,null,null,null,null,null,null,null,null,null,null,null,null,null,null,null,1047,"SA12a","SA12a1047"]
["Flat rate used? (Y/N)",null,"Yes","Yes",0,"Yes","Yes","Yes","Yes","Yes","Yes",0,0,null,null,null,null,null,null,null,null,null,null,null,null,null,null,null,null,null,1048,"SA12a","SA12a1048"]
["Is balance rated by uniform rate/variable rate?",null,"Uniform","Uniform",0,"Uniform","Uniform","Uniform","Uniform","Uniform","Uniform",0,0,null,null,null,null,null,null,null,null,null,null,null,null,null,null,null,null,null,1100,"SA12a","SA12a1100"]
["Valuation reductions:",null,null,null,null,null,null,null,null,null,null,null,null,null,null,null,null,null,null,null,null,null,null,null,null,null,null,null,null,null,1101,"SA12a","SA12a1101"]
["Valuation reductions-public infrastructure (Rm)",null,0,0,0,0,0,0,0,0,0,0,0,null,null,null,null,null,null,null,null,null,null,null,null,null,null,null,null,null,1102,"SA12a","SA12a1102"]
["Valuation reductions-nature reserves/park (Rm)",null,0,0,0,0,0,0,0,0,0,0,0,null,null,null,null,null,null,null,null,null,null,null,null,null,null,null,null,null,1103,"SA12a","SA12a1103"]
["Valuation reductions-mineral rights (Rm)",null,0,0,0,0,0,0,0,0,0,0,0,null,null,null,null,null,null,null,null,null,null,null,null,null,null,null,null,null,1104,"SA12a","SA12a1104"]
["Valuation reductions-R15,000 threshold (Rm)",null,15000,15000,0,15000,15000,15000,15000,15000,15000,0,0,null,null,null,null,null,null,null,null,null,null,null,null,null,null,null,null,null,1105,"SA12a","SA12a1105"]
["Valuation reductions-public worship (Rm)",null,"Exempt","Exempt",0,"Exempt","Exempt","Exempt","Exempt","Exempt","Exempt",0,0,null,null,null,null,null,null,null,null,null,null,null,null,null,null,null,null,null,1106,"SA12a","SA12a1106"]
["Valuation reductions-other (Rm)",2,0,0,0,0,0,0,0,0,0,0,0,null,null,null,null,null,null,null,null,null,null,null,null,null,null,null,null,null,1107,"SA12a","SA12a1107"]
["Total valuation reductions:",null,null,null,null,null,null,null,null,null,null,null,null,null,null,null,null,null,null,null,null,null,null,null,null,null,null,null,null,null,1108,"SA12a","SA12a1108"]
["Total value used for rating (Rm)",6,701113000,129042000,0,2650268800,5230000,42209000,509199000,452000,0,0,0,null,null,null,null,null,null,null,null,null,null,null,null,null,null,null,null,null,1109,"SA12a","SA12a1109"]
["Total land value (Rm)",6,0,0,0,0,0,0,0,0,0,0,0,null,null,null,null,null,null,null,null,null,null,null,null,null,null,null,null,null,1110,"SA12a","SA12a1110"]
["Total value of improvements (Rm)",6,0,0,0,0,0,0,0,0,0,0,0,null,null,null,null,null,null,null,null,null,null,null,null,null,null,null,null,null,1111,"SA12a","SA12a1111"]
["Total market value (Rm)",6,701113000,129042000,0,2650268800,5230000,42209000,509199000,452000,0,0,0,null,null,null,null,null,null,null,null,null,null,null,null,null,null,null,null,null,1200,"SA12a","SA12a1200"]
["Rating:",null,null,null,null,null,null,null,null,null,null,null,null,null,null,null,null,null,null,null,null,null,null,null,null,null,null,null,null,null,1201,"SA12a","SA12a1201"]
["Average rate",3,3.1759999999999997E-2,1.7299999999999999E-2,0,7.9399999999999991E-3,2.0200000000000001E-3,"Exempt",5.0439999999999999E-2,"Exempt",7.9399999999999991E-3,0,0,null,null,null,null,null,null,null,null,null,null,null,null,null,null,null,null,null,1206,"SA12a","SA12a1206"]
["Rate revenue budget (R '000)",null,25962974.399999999,1086685.18,0,19298328.32,10497.76,"Exempt",31042586,"Exempt",0,0,0,null,null,null,null,null,null,null,null,null,null,null,null,null,null,null,null,null,1301,"SA12a","SA12a1301"]
["Rate revenue expected to collect (R'000)",null,15577784.639999999,652011.10799999989,0,11578996.992000001,6298.6559999999999,"Exempt",18625551.599999998,"Exempt",0,0,0,null,null,null,null,null,null,null,null,null,null,null,null,null,null,null,null,null,1302,"SA12a","SA12a1302"]
["Expected cash collection rate (%)",4,0.6,0.6,0,0.6,0.6,0.6,0.6,0.6,0.6,0,0,null,null,null,null,null,null,null,null,null,null,null,null,null,null,null,null,null,1303,"SA12a","SA12a1303"]
["Special rating areas (R'000)",null,0,0,0,0,0,0,0,0,0,0,0,null,null,null,null,null,null,null,null,null,null,null,null,null,null,null,null,null,1304,"SA12a","SA12a1304"]
["Rebates, exemptions - indigent (R'000)",null,5000,5000,0,5000,5000,5000,5000,5000,5000,0,0,null,null,null,null,null,null,null,null,null,null,null,null,null,null,null,null,null,1305,"SA12a","SA12a1305"]
["Rebates, exemptions - pensioners (R'000)",null,5000,5000,0,5000,5000,5000,5000,5000,5000,0,0,null,null,null,null,null,null,null,null,null,null,null,null,null,null,null,null,null,1306,"SA12a","SA12a1306"]
["Rebates, exemptions - bona fide farm. (R'000)",null,0,0,0,0,0,0,0,0,0,0,0,null,null,null,null,null,null,null,null,null,null,null,null,null,null,null,null,null,1307,"SA12a","SA12a1307"]
["Rebates, exemptions - other (R'000)",null,0,0,0,0,0,0,0,0,0,0,0,null,null,null,null,null,null,null,null,null,null,null,null,null,null,null,null,null,1308,"SA12a","SA12a1308"]
["Phase-in reductions/discounts (R'000)",null,0,0,0,0,0,0,0,0,0,0,0,null,null,null,null,null,null,null,null,null,null,null,null,null,null,null,null,null,1309,"SA12a","SA12a1309"]
["Total rebates,exemptns,reductns,discs (R'000)",null,null,null,null,null,null,null,null,null,null,null,null,null,null,null,null,null,null,null,null,null,null,null,null,null,null,null,null,null,1310,"SA12a","SA12a1310"]
[]
[{"$f":"head27a","v":"References"}]
["1. Land & Assistance Act, Restitution of Land Rights, Communual Property Associations"]
["2. Include value of additional reductions is 'free' value greater than MPRA minimum."]
["3. Average rate - cents in  the Rand. Eg 10.26 cents in the Rand is 0.1026, expressed to 6 decimal places maximum"]
["4. Include arrears collections"]
["5. In favour of the rate-payer"]
["6. Provide relevant information for historical comparisons."]

{"sheet":"SA12b","index":56,"n_rows":56,"n_cols":33,"rows_kept":56,"cut":false,"hidden":false,"merged":[]}
[{"$f":"muni&\" - \"&TableA12b","v":"LIM331 Greater Giyani - Supporting Table SA12b Property rates by category (budget year)"}]
[{"$f":"desc","v":"Description"},{"$f":"head27","v":"Ref"},"Business and commercial properties","Industrial properties","Mining properties","Residential properties","Agricultural properties","Public benefit organisations","Public service purpose properties","Public service infrastructure properties","Vacant land","Sport Clubs and Fields (Bitou only)","Sectional Title Garages (Drakenstein only)"]
[{"$f":"Head9","v":"Budget Year 2023/24"}]
["Valuation:",null,null,null,null,null,null,null,null,null,null,null,null,null,null,null,null,null,null,null,null,null,null,null,null,null,null,null,null,null,1000,"SA12b",{"$f":"_xlfn.CONCAT(AF4,AE4)","v":"SA12b1000"}]
["No. of properties",null,130,116,0,6750,2,38,82,3,0,0,0,null,null,null,null,null,null,null,null,null,null,null,null,null,null,null,null,null,1020,"SA12b",{"$f":"_xlfn.CONCAT(AF5,AE5)","v":"SA12b1020"}]
["No. of sectional title property values",null,0,0,0,0,0,0,0,0,0,0,0,null,null,null,null,null,null,null,null,null,null,null,null,null,null,null,null,null,1021,"SA12b","SA12b1021"]
["No. of unreasonably difficult properties s7(2)",null,0,0,0,0,0,0,0,0,0,0,0,null,null,null,null,null,null,null,null,null,null,null,null,null,null,null,null,null,1022,"SA12b","SA12b1022"]
["No. of supplementary valuations",null,1,1,0,1,1,1,1,1,1,0,0,null,null,null,null,null,null,null,null,null,null,null,null,null,null,null,null,null,1023,"SA12b","SA12b1023"]
["Supplementary valuation (Rm)",null,50000000,15000,0,50000000,50000000,50000000,50000000,50000000,50000000,0,0,null,null,null,null,null,null,null,null,null,null,null,null,null,null,null,null,null,1024,"SA12b","SA12b1024"]
["No. of valuation roll amendments",null,0,0,0,0,0,0,0,0,0,0,0,null,null,null,null,null,null,null,null,null,null,null,null,null,null,null,null,null,1025,"SA12b","SA12b1025"]
["No. of objections by rate-payers",null,0,0,0,0,0,0,0,0,0,0,0,null,null,null,null,null,null,null,null,null,null,null,null,null,null,null,null,null,1026,"SA12b","SA12b1026"]
["No. of appeals by rate-payers",null,0,0,0,0,0,0,0,0,0,0,0,null,null,null,null,null,null,null,null,null,null,null,null,null,null,null,null,null,1027,"SA12b","SA12b1027"]
["No. of appeals by rate-payers finalised",null,0,0,0,0,0,0,0,0,0,0,0,null,null,null,null,null,null,null,null,null,null,null,null,null,null,null,null,null,1028,"SA12b","SA12b1028"]
["No. of successful objections",5,0,0,0,0,0,0,0,0,0,0,0,null,null,null,null,null,null,null,null,null,null,null,null,null,null,null,null,null,1029,"SA12b","SA12b1029"]
["No. of successful objections > 10%",5,0,0,0,0,0,0,0,0,0,0,0,null,null,null,null,null,null,null,null,null,null,null,null,null,null,null,null,null,1030,"SA12b","SA12b1030"]
["Estimated no. of properties not valued",null,0,0,0,0,0,0,0,0,0,0,0,null,null,null,null,null,null,null,null,null,null,null,null,null,null,null,null,null,1040,"SA12b","SA12b1040"]
["Years since last valuation (select)",null,4,4,0,4,4,4,4,4,4,0,0,null,null,null,null,null,null,null,null,null,null,null,null,null,null,null,null,null,1041,"SA12b","SA12b1041"]
["Frequency of valuation (select)",null,5,5,0,5,5,5,5,5,5,0,0,null,null,null,null,null,null,null,null,null,null,null,null,null,null,null,null,null,1042,"SA12b","SA12b1042"]
["Method of valuation used (select)",null,"Market","Market",0,"Market","Market","Market","Market","Market","Market",0,0,null,null,null,null,null,null,null,null,null,null,null,null,null,null,null,null,null,1043,"SA12b","SA12b1043"]
["Base of valuation (select)",null,"Land & impr.","Land & impr.",0,"Land & impr.","Land & impr.","Land & impr.","Land & impr.","Land & impr.","Land & impr.",0,0,null,null,null,null,null,null,null,null,null,null,null,null,null,null,null,null,null,1044,"SA12b","SA12b1044"]
["Phasing-in properties s21 (number)",null,0,0,0,0,0,0,0,0,0,0,0,null,null,null,null,null,null,null,null,null,null,null,null,null,null,null,null,null,1046,"SA12b","SA12b1046"]
["Combination of rating types used? (Y/N)",null,"Yes","Yes",0,"Yes","Yes","Yes","Yes","Yes","Yes",0,0,null,null,null,null,null,null,null,null,null,null,null,null,null,null,null,null,null,1047,"SA12b","SA12b1047"]
["Flat rate used? (Y/N)",null,"No","No",0,"No","No","No","No","No","No",0,0,null,null,null,null,null,null,null,null,null,null,null,null,null,null,null,null,null,1048,"SA12b","SA12b1048"]
["Is balance rated by uniform rate/variable rate?",null,"Uniform","Uniform",0,"Uniform","Uniform","Uniform","Uniform","Uniform","Uniform",0,0,null,null,null,null,null,null,null,null,null,null,null,null,null,null,null,null,null,1100,"SA12b","SA12b1100"]
["Valuation reductions:",null,null,null,null,null,null,null,null,null,null,null,null,null,null,null,null,null,null,null,null,null,null,null,null,null,null,null,null,null,1101,"SA12b","SA12b1101"]
["Valuation reductions-public infrastructure (Rm)",null,0,0,0,0,0,0,0,0,0,0,0,null,null,null,null,null,null,null,null,null,null,null,null,null,null,null,null,null,1102,"SA12b","SA12b1102"]
["Valuation reductions-nature reserves/park (Rm)",null,0,0,0,0,0,0,0,0,0,0,0,null,null,null,null,null,null,null,null,null,null,null,null,null,null,null,null,null,1103,"SA12b","SA12b1103"]
["Valuation reductions-mineral rights (Rm)",null,0,0,0,0,0,0,0,0,0,0,0,null,null,null,null,null,null,null,null,null,null,null,null,null,null,null,null,null,1104,"SA12b","SA12b1104"]
["Valuation reductions-R15,000 threshold (Rm)",null,15000,15000,0,15000,15000,15000,15000,15000,15000,0,0,null,null,null,null,null,null,null,null,null,null,null,null,null,null,null,null,null,1105,"SA12b","SA12b1105"]
["Valuation reductions-public worship (Rm)",null,"Exempt","Exempt",0,"Exempt","Exempt","Exempt","Exempt","Exempt","Exempt",0,0,null,null,null,null,null,null,null,null,null,null,null,null,null,null,null,null,null,1106,"SA12b","SA12b1106"]
["Valuation reductions-other (Rm)",2,0,0,0,0,0,0,0,0,0,0,0,null,null,null,null,null,null,null,null,null,null,null,null,null,null,null,null,null,1107,"SA12b","SA12b1107"]
["Total valuation reductions:",null,null,null,null,null,null,null,null,null,null,null,null,null,null,null,null,null,null,null,null,null,null,null,null,null,null,null,null,null,1108,"SA12b","SA12b1108"]
["Total value used for rating (Rm)",6,701113000,129042000,0,2650268800,5230000,42209000,509199000,452000,0,0,0,null,null,null,null,null,null,null,null,null,null,null,null,null,null,null,null,null,1109,"SA12b","SA12b1109"]
["Total land value (Rm)",6,0,0,0,0,0,0,0,0,0,0,0,null,null,null,null,null,null,null,null,null,null,null,null,null,null,null,null,null,1110,"SA12b","SA12b1110"]
["Total value of improvements (Rm)",6,0,0,0,0,0,0,0,0,0,0,0,null,null,null,null,null,null,null,null,null,null,null,null,null,null,null,null,null,1111,"SA12b","SA12b1111"]
["Total market value (Rm)",6,701113000,129042000,0,2650268800,5230000,42209000,509199000,452000,0,0,0,null,null,null,null,null,null,null,null,null,null,null,null,null,null,null,null,null,1200,"SA12b","SA12b1200"]
["Rating:",null,null,null,null,null,null,null,null,null,null,null,null,null,null,null,null,null,null,null,null,null,null,null,null,null,null,null,null,null,1201,"SA12b","SA12b1201"]
["Average rate",3,0,0,0,0,0,"Exempt",null,"Exempt",0,0,0,null,null,null,null,null,null,null,null,null,null,null,null,null,null,null,null,null,1206,"SA12b","SA12b1206"]
["Rate revenue budget (R '000)",null,0,0,0,0,0,"Exempt",null,"Exempt",0,0,0,null,null,null,null,null,null,null,null,null,null,null,null,null,null,null,null,null,1301,"SA12b","SA12b1301"]
["Rate revenue expected to collect (R'000)",null,0,0,0,0,0,"Exempt",0,"Exempt",0,0,0,null,null,null,null,null,null,null,null,null,null,null,null,null,null,null,null,null,1302,"SA12b","SA12b1302"]
["Expected cash collection rate (%)",4,0.6,0.6,0,0.6,0.6,0.6,0.6,0.6,0.6,0,0,null,null,null,null,null,null,null,null,null,null,null,null,null,null,null,null,null,1303,"SA12b","SA12b1303"]
["Special rating areas (R'000)",null,0,0,0,0,0,0,0,0,0,0,0,null,null,null,null,null,null,null,null,null,null,null,null,null,null,null,null,null,1304,"SA12b","SA12b1304"]
["Rebates, exemptions - indigent (R'000)",null,5000,5000,0,5000,5000,5000,5000,5000,5000,0,0,null,null,null,null,null,null,null,null,null,null,null,null,null,null,null,null,null,1305,"SA12b","SA12b1305"]
["Rebates, exemptions - pensioners (R'000)",null,5000,5000,0,5000,5000,5000,5000,5000,5000,0,0,null,null,null,null,null,null,null,null,null,null,null,null,null,null,null,null,null,1306,"SA12b","SA12b1306"]
["Rebates, exemptions - bona fide farm. (R'000)",null,0,0,0,0,0,0,0,0,0,0,0,null,null,null,null,null,null,null,null,null,null,null,null,null,null,null,null,null,1307,"SA12b","SA12b1307"]
["Rebates, exemptions - other (R'000)",null,0,0,0,0,0,0,0,0,0,0,0,null,null,null,null,null,null,null,null,null,null,null,null,null,null,null,null,null,1308,"SA12b","SA12b1308"]
["Phase-in reductions/discounts (R'000)",null,0,0,0,0,0,0,0,0,0,0,0,null,null,null,null,null,null,null,null,null,null,null,null,null,null,null,null,null,1309,"SA12b","SA12b1309"]
["Total rebates,exemptns,reductns,discs (R'000)",null,null,null,null,null,null,null,null,null,null,null,null,null,null,null,null,null,null,null,null,null,null,null,null,null,null,null,null,null,1310,"SA12b","SA12b1310"]
[]
[{"$f":"head27a","v":"References"}]
["1. Land & Assistance Act, Restitution of Land Rights, Communual Property Associations"]
["2. Include value of additional reductions is 'free' value greater than MPRA minimum."]
["3. Average rate - cents in  the Rand. Eg 10.26 cents in the Rand is 0.1026, expressed to 6 decimal places maximum"]
["4. Include arrears collections"]
["5. In favour of the rate-payer"]
["6. Provide relevant information for historical comparisons."]

{"sheet":"SA13a","index":57,"n_rows":104,"n_cols":33,"rows_kept":104,"cut":false,"hidden":false,"merged":[[107,6,108,6],[107,0,108,0],[107,1,108,1],[107,2,108,2],[107,3,108,3],[107,4,108,4],[107,5,108,5],[1,6,2,6],[1,0,2,0],[1,1,2,1],[1,2,2,2],[1,3,2,3],[1,4,2,4],[1,5,2,5]]}
[{"$f":"muni&\" - \"&TableA13a","v":"LIM331 Greater Giyani - Supporting Table SA13a Service Tariffs by category"}]
[{"$f":"desc","v":"Description"},{"$f":"head27","v":"Ref"},"Provide description of tariff structure where appropriate",{"$f":"head1b","v":"2019/20"},{"$f":"head1A","v":"2020/21"},{"$f":"Head1","v":"2021/22"},{"$f":"Head2","v":"Current Year 2022/23"},{"$f":"Head3","v":"2023/24 Medium Term Revenue & Expenditure Framework"}]
[null,null,null,null,null,null,null,{"$f":"Head9","v":"Budget Year 2023/24"},{"$f":"Head10","v":"Budget Year +1 2024/25"},{"$f":"Head11","v":"Budget Year +2 2025/26"}]
["Property rates (rate in the Rand)",1,null,null,null,null,null,null,null,null,null,null,null,null,null,null,null,null,null,null,null,null,null,null,null,null,null,null,null,null,1000,"SA13",{"$f":"_xlfn.CONCAT(AF4,AE4)","v":"SA131000"}]
["Residential properties",null,null,6.3E-3,7.0000000000000001E-3,7.5799999999999999E-3,7.9399999999999991E-3,8.2900000000000005E-3,8.6599999999999993E-3,9.1800000000000007E-3,null,null,null,null,null,null,null,null,null,null,null,null,null,null,null,null,null,null,null,null,1001,"SA13",{"$f":"_xlfn.CONCAT(AF5,AE5)","v":"SA131001"}]
["Residential properties - vacant land",null,null,6.3E-3,7.0000000000000001E-3,7.5799999999999999E-3,7.9399999999999991E-3,8.2900000000000005E-3,8.6599999999999993E-3,9.1800000000000007E-3,null,null,null,null,null,null,null,null,null,null,null,null,null,null,null,null,null,null,null,null,1002,"SA13","SA131002"]
["Formal/informal settlements",null,null,null,null,null,null,null,null,null,null,null,null,null,null,null,null,null,null,null,null,null,null,null,null,null,null,null,null,null,1003,"SA13","SA131003"]
["Small holdings",null,null,null,null,null,null,null,null,null,null,null,null,null,null,null,null,null,null,null,null,null,null,null,null,null,null,null,null,null,1004,"SA13","SA131004"]
["Farm properties - used",null,null,1.1299999999999999E-2,1.8E-3,1.9300000000000001E-3,2.0200000000000001E-3,2.1099999999999999E-3,2.2000000000000001E-3,2.33E-3,null,null,null,null,null,null,null,null,null,null,null,null,null,null,null,null,null,null,null,null,1005,"SA13","SA131005"]
["Farm properties - not used",null,null,1.1299999999999999E-2,1.8E-3,1.9300000000000001E-3,2.0200000000000001E-3,2.1099999999999999E-3,2.2000000000000001E-3,2.33E-3,null,null,null,null,null,null,null,null,null,null,null,null,null,null,null,null,null,null,null,null,1006,"SA13","SA131006"]
["Industrial properties",null,null,1.2500000000000001E-2,1.4E-2,1.5010000000000001E-2,1.5730000000000001E-2,1.6420000000000001E-2,1.7160000000000002E-2,1.8190000000000001E-2,null,null,null,null,null,null,null,null,null,null,null,null,null,null,null,null,null,null,null,null,1007,"SA13","SA131007"]
["Business and commercial properties",null,null,2.52E-2,2.8000000000000001E-2,3.031E-2,3.1759999999999997E-2,3.3160000000000002E-2,3.465E-2,3.6740000000000002E-2,null,null,null,null,null,null,null,null,null,null,null,null,null,null,null,null,null,null,null,null,1008,"SA13","SA131008"]
["Communal land - residential",null,null,null,null,null,null,null,null,null,null,null,null,null,null,null,null,null,null,null,null,null,null,null,null,null,null,null,null,null,1009,"SA13","SA131009"]
["Communal land - small holdings",null,null,null,null,null,null,null,null,null,null,null,null,null,null,null,null,null,null,null,null,null,null,null,null,null,null,null,null,null,1010,"SA13","SA131010"]
["Communal land - farm property",null,null,null,null,null,null,null,null,null,null,null,null,null,null,null,null,null,null,null,null,null,null,null,null,null,null,null,null,null,1011,"SA13","SA131011"]
["Communal land - business and commercial",null,null,null,null,null,null,null,null,null,null,null,null,null,null,null,null,null,null,null,null,null,null,null,null,null,null,null,null,null,1012,"SA13","SA131012"]
["Communal land - other",null,null,null,null,null,null,null,null,null,null,null,null,null,null,null,null,null,null,null,null,null,null,null,null,null,null,null,null,null,1013,"SA13","SA131013"]
["State-owned properties",null,null,4.1599999999999998E-2,4.5999999999999999E-2,4.8129999999999999E-2,5.0439999999999999E-2,5.2659999999999998E-2,5.5719999999999999E-2,5.8340000000000003E-2,null,null,null,null,null,null,null,null,null,null,null,null,null,null,null,null,null,null,null,null,1014,"SA13","SA131014"]
["Municipal properties",null,null,null,null,0,0,0,0,null,null,null,null,null,null,null,null,null,null,null,null,null,null,null,null,null,null,null,null,null,1015,"SA13","SA131015"]
["Public service infrastructure",null,null,null,null,null,null,null,null,null,null,null,null,null,null,null,null,null,null,null,null,null,null,null,null,null,null,null,null,null,1016,"SA13","SA131016"]
["Privately owned towns serviced by the owner",null,null,null,null,null,null,null,null,null,null,null,null,null,null,null,null,null,null,null,null,null,null,null,null,null,null,null,null,null,1017,"SA13","SA131017"]
["State trust land",null,null,null,null,null,null,null,null,null,null,null,null,null,null,null,null,null,null,null,null,null,null,null,null,null,null,null,null,null,1018,"SA13","SA131018"]
["Restitution and redistribution properties",null,null,null,null,null,null,null,null,null,null,null,null,null,null,null,null,null,null,null,null,null,null,null,null,null,null,null,null,null,1019,"SA13","SA131019"]
["Protected areas",null,null,null,null,null,null,null,null,null,null,null,null,null,null,null,null,null,null,null,null,null,null,null,null,null,null,null,null,null,1020,"SA13","SA131020"]
["National monuments properties",null,null,null,null,null,null,null,null,null,null,null,null,null,null,null,null,null,null,null,null,null,null,null,null,null,null,null,null,null,1021,"SA13","SA131021"]
["Property rates by usage",null,null,null,null,null,null,null,null,null,null,null,null,null,null,null,null,null,null,null,null,null,null,null,null,null,null,null,null,null,null,"SA13","SA13"]
["Business and commercial properties",null,null,null,null,null,null,null,null,null,null,null,null,null,null,null,null,null,null,null,null,null,null,null,null,null,null,null,null,null,null,"SA13","SA13"]
["Industrial properties",null,null,null,null,null,null,null,null,null,null,null,null,null,null,null,null,null,null,null,null,null,null,null,null,null,null,null,null,null,null,"SA13","SA13"]
["Mining properties",null,null,null,null,null,null,null,null,null,null,null,null,null,null,null,null,null,null,null,null,null,null,null,null,null,null,null,null,null,null,"SA13","SA13"]
["Residential properties",null,null,null,null,null,null,null,null,null,null,null,null,null,null,null,null,null,null,null,null,null,null,null,null,null,null,null,null,null,null,"SA13","SA13"]
["Agricultural properties",null,null,null,null,null,null,null,null,null,null,null,null,null,null,null,null,null,null,null,null,null,null,null,null,null,null,null,null,null,null,"SA13","SA13"]
["Public benefit organisations",null,null,null,null,null,null,null,null,null,null,null,null,null,null,null,null,null,null,null,null,null,null,null,null,null,null,null,null,null,null,"SA13","SA13"]
["Public service purpose properties",null,null,null,null,null,null,null,null,null,null,null,null,null,null,null,null,null,null,null,null,null,null,null,null,null,null,null,null,null,null,"SA13","SA13"]
["Public service infrastructure properties",null,null,null,null,null,null,null,null,null,null,null,null,null,null,null,null,null,null,null,null,null,null,null,null,null,null,null,null,null,null,"SA13","SA13"]
["Vacant land",null,null,null,null,null,null,null,null,null,null,null,null,null,null,null,null,null,null,null,null,null,null,null,null,null,null,null,null,null,null,"SA13","SA13"]
["Sport Clubs and Fields (Bitou only)",null,null,null,null,null,null,null,null,null,null,null,null,null,null,null,null,null,null,null,null,null,null,null,null,null,null,null,null,null,null,"SA13","SA13"]
["Sectional Title Garages (Drakenstein only)",null,null,null,null,null,null,null,null,null,null,null,null,null,null,null,null,null,null,null,null,null,null,null,null,null,null,null,null,null,null,"SA13","SA13"]
[null,null,null,null,null,null,null,null,null,null,null,null,null,null,null,null,null,null,null,null,null,null,null,null,null,null,null,null,null,null,null,"SA13","SA13"]
["Exemptions, reductions and rebates (Rands)",null,null,null,null,null,null,null,null,null,null,null,null,null,null,null,null,null,null,null,null,null,null,null,null,null,null,null,null,null,1030,"SA13","SA131030"]
["Residential properties",null,null,null,null,null,null,null,null,null,null,null,null,null,null,null,null,null,null,null,null,null,null,null,null,null,null,null,null,null,1031,"SA13","SA131031"]
["R15 000 threshhold rebate",null,null,15000,15000,15000,15000,15000,15000,15000,null,null,null,null,null,null,null,null,null,null,null,null,null,null,null,null,null,null,null,null,1032,"SA13","SA131032"]
["General residential rebate",null,null,9.92,9.92,9.92,9.92,9.92,9.92,9.92,null,null,null,null,null,null,null,null,null,null,null,null,null,null,null,null,null,null,null,null,1033,"SA13","SA131033"]
["Indigent rebate or exemption",null,null,5000,5000,5000,5000,5000,5000,5000,null,null,null,null,null,null,null,null,null,null,null,null,null,null,null,null,null,null,null,null,1034,"SA13","SA131034"]
["Pensioners/social grants rebate or exemption ",null,null,5000,5000,5000,5000,5000,5000,5000,null,null,null,null,null,null,null,null,null,null,null,null,null,null,null,null,null,null,null,null,1035,"SA13","SA131035"]
["Temporary relief rebate or exemption",null,null,null,null,null,null,null,null,null,null,null,null,null,null,null,null,null,null,null,null,null,null,null,null,null,null,null,null,null,1036,"SA13","SA131036"]
[" Bona fide farmers rebate or exemption",null,null,null,null,null,null,null,null,null,null,null,null,null,null,null,null,null,null,null,null,null,null,null,null,null,null,null,null,null,1037,"SA13","SA131037"]
["Other rebates or exemptions",2,null,null,null,null,null,null,null,null,null,null,null,null,null,null,null,null,null,null,null,null,null,null,null,null,null,null,null,null,1038,"SA13","SA131038"]
[null,null,null,null,null,null,null,null,null,null,null,null,null,null,null,null,null,null,null,null,null,null,null,null,null,null,null,null,null,null,null,"SA13","SA13"]
["Water tariffs",null,null,null,null,null,null,null,null,null,null,null,null,null,null,null,null,null,null,null,null,null,null,null,null,null,null,null,null,null,1100,"SA13","SA131100"]
["Domestic",null,null,null,null,null,null,null,null,null,null,null,null,null,null,null,null,null,null,null,null,null,null,null,null,null,null,null,null,null,1101,"SA13","SA131101"]
["Basic charge/fixed fee (Rands/month)",null,null,23.43,24.49,25.44,26.67,27.84,29.41,30.84,null,null,null,null,null,null,null,null,{"$f":"SUM(C51:R51)","v":188.12},null,null,null,null,null,null,null,null,null,null,null,1102,"SA13","SA131102"]
["Service point - vacant land (Rands/month)",null,null,null,null,null,null,null,null,null,null,null,null,null,null,null,null,null,{"$f":"SUM(C52:R52)","v":0},null,null,null,null,null,null,null,null,null,null,null,1103,"SA13","SA131103"]
["Water usage - flat rate tariff (c/kl)",null,null,null,null,null,null,null,null,null,null,null,null,null,null,null,null,null,null,null,null,null,null,null,null,null,null,null,null,null,1104,"SA13","SA131104"]
["Water usage - life line tariff",null,null,null,null,null,null,null,null,null,null,null,null,null,null,null,null,null,null,null,null,null,null,null,null,null,null,null,null,null,1105,"SA13","SA131105"]
["Water usage - Block 1 (c/kl)",null,null,null,null,null,null,null,null,null,null,null,null,null,null,null,null,null,null,null,null,null,null,null,null,null,null,null,null,null,1106,"SA13","SA131106"]
["Water usage - Block 2 (c/kl)",null,null,null,null,null,null,null,null,null,null,null,null,null,null,null,null,null,null,null,null,null,null,null,null,null,null,null,null,null,1107,"SA13","SA131107"]
["Water usage - Block 3 (c/kl)",null,null,null,null,null,null,null,null,null,null,null,null,null,null,null,null,null,null,null,null,null,null,null,null,null,null,null,null,null,1108,"SA13","SA131108"]
["Water usage - Block 4 (c/kl)",null,null,null,null,null,null,null,null,null,null,null,null,null,null,null,null,null,null,null,null,null,null,null,null,null,null,null,null,null,1109,"SA13","SA131109"]
["Water usage - Block 5 (c/kl)",null,null,null,null,null,null,null,null,null,null,null,null,null,null,null,null,null,null,null,null,null,null,null,null,null,null,null,null,null,null,"SA13","SA13"]
["Water usage - Block 6 (c/kl)",null,null,null,null,null,null,null,null,null,null,null,null,null,null,null,null,null,null,null,null,null,null,null,null,null,null,null,null,null,null,"SA13","SA13"]
["Other",2,null,{"$f":"SUMIFS(NFD!H:H,NFD!D:D,SA13a!AE:AE,NFD!A:A,SA13a!AF:AF)","v":0},{"$f":"SUMIFS(NFD!I:I,NFD!D:D,SA13a!AE:AE,NFD!A:A,SA13a!AF:AF)","v":0},{"$f":"SUMIFS(NFD!J:J,NFD!D:D,SA13a!AE:AE,NFD!A:A,SA13a!AF:AF)","v":0},{"$f":"SUMIFS(NFD!K:K,NFD!D:D,SA13a!AE:AE,NFD!B:B,SA13a!AF:AF)","v":0},{"$f":"SUMIFS(NFD!L:L,NFD!D:D,SA13a!AE:AE,NFD!C:C,SA13a!AF:AF)","v":0},{"$f":"SUMIFS(NFD!M:M,NFD!D:D,SA13a!AE:AE,NFD!D:D,SA13a!AF:AF)","v":0},{"$f":"SUMIFS(NFD!N:N,NFD!D:D,SA13a!AE:AE,NFD!E:E,SA13a!AF:AF)","v":0},null,null,null,null,null,null,null,null,null,null,null,null,null,null,null,null,null,null,null,null,1110,"SA13","SA131110"]
[null,null,null,null,null,null,null,null,null,null,null,null,null,null,null,null,null,null,null,null,null,null,null,null,null,null,null,null,null,null,null,"SA13","SA13"]
["Waste water tariffs",null,null,null,null,null,null,null,null,null,null,null,null,null,null,null,null,null,null,null,null,null,null,null,null,null,null,null,null,null,1200,"SA13","SA131200"]
["Domestic",null,null,null,null,null,null,null,null,null,null,null,null,null,null,null,null,null,null,null,null,null,null,null,null,null,null,null,null,null,1201,"SA13","SA131201"]
["Basic charge/fixed fee (Rands/month)",null,null,35.82,39,41,43,45,47,50,null,null,null,null,null,null,null,null,null,null,null,null,null,null,null,null,null,null,null,null,1202,"SA13","SA131202"]
["Service point - vacant land (Rands/month)",null,null,null,null,null,null,null,null,null,null,null,null,null,null,null,null,null,null,null,null,null,null,null,null,null,null,null,null,null,1203,"SA13","SA131203"]
["Waste water - flat rate tariff (c/kl)",null,null,null,null,null,null,null,null,null,null,null,null,null,null,null,null,null,null,null,null,null,null,null,null,null,null,null,null,null,1204,"SA13","SA131204"]
["Volumetric charge - Block 1 (c/kl)",null,null,null,null,null,null,null,null,null,null,null,null,null,null,null,null,null,null,null,null,null,null,null,null,null,null,null,null,null,1205,"SA13","SA131205"]
["Volumetric charge - Block 2 (c/kl)",null,null,null,null,null,null,null,null,null,null,null,null,null,null,null,null,null,null,null,null,null,null,null,null,null,null,null,null,null,1206,"SA13",{"$f":"_xlfn.CONCAT(AF69,AE69)","v":"SA131206"}]
["Volumetric charge - Block 3 (c/kl)",null,null,null,null,null,null,null,null,null,null,null,null,null,null,null,null,null,null,null,null,null,null,null,null,null,null,null,null,null,1207,"SA13","SA131207"]
["Volumetric charge - Block 4 (c/kl)",null,null,null,null,null,null,null,null,null,null,null,null,null,null,null,null,null,null,null,null,null,null,null,null,null,null,null,null,null,1208,"SA13","SA131208"]
["Other",2,null,null,null,null,null,null,null,null,null,null,null,null,null,null,null,null,null,null,null,null,null,null,null,null,null,null,null,null,1209,"SA13","SA131209"]
[null,null,null,null,null,null,null,null,null,null,null,null,null,null,null,null,null,null,null,null,null,null,null,null,null,null,null,null,null,null,null,"SA13","SA13"]
["Electricity tariffs",null,null,null,null,null,null,null,null,null,null,null,null,null,null,null,null,null,null,null,null,null,null,null,null,null,null,null,null,null,1300,"SA13","SA131300"]
["Domestic",null,null,null,null,null,null,null,null,null,null,null,null,null,null,null,null,null,null,null,null,null,null,null,null,null,null,null,null,null,1301,"SA13","SA131301"]
["Basic charge/fixed fee (Rands/month)",null,null,null,null,null,null,null,null,null,null,null,null,null,null,null,null,null,null,null,null,null,null,null,null,null,null,null,null,null,1302,"SA13","SA131302"]
["Service point - vacant land (Rands/month)",null,null,null,null,null,null,null,null,null,null,null,null,null,null,null,null,null,null,null,null,null,null,null,null,null,null,null,null,null,1303,"SA13","SA131303"]
["FBE",null,null,null,null,null,null,null,null,null,null,null,null,null,null,null,null,null,null,null,null,null,null,null,null,null,null,null,null,null,1304,"SA13","SA131304"]
["Life-line tariff - meter",null,null,null,null,null,null,null,null,null,null,null,null,null,null,null,null,null,null,null,null,null,null,null,null,null,null,null,null,null,1305,"SA13","SA131305"]
["Life-line tariff - prepaid",null,null,null,null,null,null,null,null,null,null,null,null,null,null,null,null,null,null,null,null,null,null,null,null,null,null,null,null,null,1306,"SA13","SA131306"]
["Flat rate tariff - meter (c/kwh)",null,null,null,null,null,null,null,null,null,null,null,null,null,null,null,null,null,null,null,null,null,null,null,null,null,null,null,null,null,1307,"SA13","SA131307"]
["Flat rate tariff - prepaid(c/kwh)",null,null,null,null,null,null,null,null,null,null,null,null,null,null,null,null,null,null,null,null,null,null,null,null,null,null,null,null,null,1308,"SA13","SA131308"]
["Meter - IBT Block 1 (c/kwh)",null,null,null,null,null,null,null,null,null,null,null,null,null,null,null,null,null,null,null,null,null,null,null,null,null,null,null,null,null,1309,"SA13","SA131309"]
["Meter - IBT Block 2 (c/kwh)",null,null,null,null,null,null,null,null,null,null,null,null,null,null,null,null,null,null,null,null,null,null,null,null,null,null,null,null,null,1310,"SA13","SA131310"]
["Meter - IBT Block 3 (c/kwh)",null,null,null,null,null,null,null,null,null,null,null,null,null,null,null,null,null,null,null,null,null,null,null,null,null,null,null,null,null,1311,"SA13","SA131311"]
["Meter - IBT Block 4 (c/kwh)",null,null,null,null,null,null,null,null,null,null,null,null,null,null,null,null,null,null,null,null,null,null,null,null,null,null,null,null,null,1312,"SA13","SA131312"]
["Meter - IBT Block 5 (c/kwh)",null,null,null,null,null,null,null,null,null,null,null,null,null,null,null,null,null,null,null,null,null,null,null,null,null,null,null,null,null,1313,"SA13","SA131313"]
["Prepaid - IBT Block 1 (c/kwh)",null,null,null,null,null,null,null,null,null,null,null,null,null,null,null,null,null,null,null,null,null,null,null,null,null,null,null,null,null,1314,"SA13","SA131314"]
["Prepaid - IBT Block 2 (c/kwh)",null,null,null,null,null,null,null,null,null,null,null,null,null,null,null,null,null,null,null,null,null,null,null,null,null,null,null,null,null,1315,"SA13","SA131315"]
["Prepaid - IBT Block 3 (c/kwh)",null,null,null,null,null,null,null,null,null,null,null,null,null,null,null,null,null,null,null,null,null,null,null,null,null,null,null,null,null,1316,"SA13","SA131316"]
["Prepaid - IBT Block 4 (c/kwh)",null,null,null,null,null,null,null,null,null,null,null,null,null,null,null,null,null,null,null,null,null,null,null,null,null,null,null,null,null,1317,"SA13","SA131317"]
["Prepaid - IBT Block 5 (c/kwh)",null,null,null,null,null,null,null,null,null,null,null,null,null,null,null,null,null,null,null,null,null,null,null,null,null,null,null,null,null,1318,"SA13","SA131318"]
["Other",2,null,null,null,null,null,null,null,null,null,null,null,null,null,null,null,null,null,null,null,null,null,null,null,null,null,null,null,null,1319,"SA13","SA131319"]
[null,null,null,null,null,null,null,null,null,null,null,null,null,null,null,null,null,null,null,null,null,null,null,null,null,null,null,null,null,null,null,"SA13","SA13"]
["Waste management tariffs",null,null,null,null,null,null,null,null,null,null,null,null,null,null,null,null,null,null,null,null,null,null,null,null,null,null,null,null,null,1400,"SA13","SA131400"]
["Domestic",null,null,null,null,null,null,null,null,null,null,null,null,null,null,null,null,null,null,null,null,null,null,null,null,null,null,null,null,null,1401,"SA13","SA131401"]
["Street cleaning charge",null,null,37.21,39,40,42,44,47,49,null,null,null,null,null,null,null,null,null,null,null,null,null,null,null,null,null,null,null,null,1402,"SA13","SA131402"]
["Basic charge/fixed fee",null,null,205.18,214,223,233,244,420,439,null,null,null,null,null,null,null,null,null,null,null,null,null,null,null,null,null,null,null,null,1403,"SA13","SA131403"]
["80l bin - once a week",null,null,513.53,537,558,584,610,734,769,null,null,null,null,null,null,null,null,null,null,null,null,null,null,null,null,null,null,null,null,1404,"SA13","SA131404"]
["250l bin - once a week",null,null,{"$f":"INDEX(NFD!G:G,MATCH(SA13a!AG:AG,NFD!C:C,0))","v":0},{"$f":"INDEX(NFD!H:H,MATCH(SA13a!AG:AG,NFD!C:C,0))","v":0},{"$f":"INDEX(NFD!I:I,MATCH(SA13a!AG:AG,NFD!C:C,0))","v":0},{"$f":"INDEX(NFD!J:J,MATCH(SA13a!AG:AG,NFD!C:C,0))","v":0},{"$f":"INDEX(NFD!M:M,MATCH(SA13a!AG:AG,NFD!C:C,0))","v":0},{"$f":"INDEX(NFD!N:N,MATCH(SA13a!AG:AG,NFD!C:C,0))","v":0},{"$f":"INDEX(NFD!O:O,MATCH(SA13a!AG:AG,NFD!C:C,0))","v":0},null,null,null,null,null,null,null,null,null,null,null,null,null,null,null,null,null,null,null,null,1405,"SA13","SA131405"]
[null,null,null,null,null,null,null,null,null,null,null,null,null,null,null,null,null,null,null,null,null,null,null,null,null,null,null,null,null,null,null,"SA13","SA13"]
[{"$f":"head27a","v":"References"}]
["1. If properties are not rated or zero rated this must be indicated as such"]
["2.Please provide detailed descriptions on Sheet SA13b"]

{"sheet":"SA13b","index":58,"n_rows":40,"n_cols":19,"rows_kept":40,"cut":false,"hidden":false,"merged":[[94,0,95,0],[1,0,2,0],[1,1,2,1],[1,2,2,2],[1,3,2,3],[94,1,95,1],[94,2,95,2],[94,3,95,3],[94,5,95,5],[94,6,95,6],[1,6,2,6],[1,5,2,5],[1,4,2,4],[94,4,95,4]]}
[{"$f":"muni&\" - \"&TableA13b","v":"LIM331 Greater Giyani - Supporting Table SA13b Service Tariffs by category - explanatory"}]
[{"$f":"desc","v":"Description"},{"$f":"head27","v":"Ref"},"Provide description of tariff structure where appropriate",{"$f":"head1b","v":"2019/20"},{"$f":"head1A","v":"2020/21"},{"$f":"Head1","v":"2021/22"},{"$f":"Head2","v":"Current Year 2022/23"},{"$f":"Head3","v":"2023/24 Medium Term Revenue & Expenditure Framework"}]
[null,null,null,null,null,null,null,{"$f":"Head9","v":"Budget Year 2023/24"},{"$f":"Head10","v":"Budget Year +1 2024/25"},{"$f":"Head11","v":"Budget Year +2 2025/26"}]
["Exemptions, reductions and rebates (Rands)"]
["[Insert lines as applicable]"]
[]
[]
[]
[]
[]
[]
[]
[]
["Water tariffs"]
["[Insert blocks as applicable]"]
[]
[]
[]
[]
[]
[]
[]
[]
[]
[]
["Waste water tariffs"]
["[Insert blocks as applicable]"]
[]
[]
[]
[]
[]
[]
[]
[]
[]
["Electricity tariffs"]
["[Insert blocks as applicable]"]
[null,null,null,null,null,null,null,null,null,null,null,null,null,null,null,null,null,null,{"$f":"SUM(C39:R39)","v":0}]
[null,null,null,null,null,null,null,null,null,null,null,null,null,null,null,null,null,null,{"$f":"SUM(C40:R40)","v":0}]

{"sheet":"SA14","index":59,"n_rows":54,"n_cols":33,"rows_kept":54,"cut":false,"hidden":false,"merged":[[1,1,3,1],[1,5,1,7],[1,0,2,0]]}
[{"$f":"muni&\" - \"&TableA14","v":"LIM331 Greater Giyani - Supporting Table SA14 Household bills"}]
[{"$f":"desc","v":"Description"},{"$f":"head27","v":"Ref"},{"$f":"head1b","v":"2019/20"},{"$f":"head1A","v":"2020/21"},{"$f":"Head1","v":"2021/22"},{"$f":"Head2","v":"Current Year 2022/23"},null,null,{"$f":"Head3","v":"2023/24 Medium Term Revenue & Expenditure Framework"}]
[null,null,{"$f":"Head5","v":"Audited Outcome"},{"$f":"Head5","v":"Audited Outcome"},{"$f":"Head5","v":"Audited Outcome"},{"$f":"Head6","v":"Original Budget"},{"$f":"Head7","v":"Adjusted Budget"},{"$f":"Head8","v":"Full Year Forecast"},{"$f":"Head9","v":"Budget Year 2023/24"},{"$f":"Head9","v":"Budget Year 2023/24"},{"$f":"Head10","v":"Budget Year +1 2024/25"},{"$f":"Head11","v":"Budget Year +2 2025/26"}]
["Rand/cent",null,null,null,null,null,null,null,"% incr."]
["Monthly Account for Household - 'Middle Income Range'",1,null,null,null,null,null,null,null,null,null,null,null,null,null,null,null,null,null,null,null,null,null,null,null,null,null,null,null,null,1000,"SA14",{"$f":"_xlfn.CONCAT(AF5,AE5)","v":"SA141000"}]
["Rates and services charges:",null,null,null,null,null,null,null,null,null,null,null,null,null,null,null,null,null,null,null,null,null,null,null,null,null,null,null,null,null,1001,"SA14",{"$f":"_xlfn.CONCAT(AF6,AE6)","v":"SA141001"}]
["Property rates",null,40659276.989999995,60334147,70818977,79881821,75324368,75324368,-7.0000000000000001E-3,79316562,83203074,87113617,null,null,null,null,null,null,null,null,null,null,null,null,null,null,null,null,null,null,1002,"SA14","SA141002"]
["Electricity: Basic levy",null,null,null,null,null,null,null,null,null,null,null,null,null,null,null,null,null,null,null,null,null,null,null,null,null,null,null,null,null,1003,"SA14","SA141003"]
["Electricity: Consumption",null,null,null,null,null,null,null,null,null,null,null,null,null,null,null,null,null,null,null,null,null,null,null,null,null,null,null,null,null,1004,"SA14","SA141004"]
["Water: Basic levy",null,null,null,null,null,null,null,null,null,null,null,null,null,null,null,null,null,null,null,null,null,null,null,null,null,null,null,null,null,1005,"SA14","SA141005"]
["Water: Consumption",null,null,null,null,null,null,null,null,null,null,null,null,null,null,null,null,null,null,null,null,null,null,null,null,null,null,null,null,null,1006,"SA14","SA141006"]
["Sanitation",null,null,null,null,null,null,null,null,null,null,null,null,null,null,null,null,null,null,null,null,null,null,null,null,null,null,null,null,null,1007,"SA14","SA141007"]
["Refuse removal",null,4477862.1399999997,6723206,6572718,11200000,9040000,9040000,-0.15,9524350,9991043.1500000004,10460622.18,null,null,null,null,null,null,null,null,null,null,null,null,null,null,null,null,null,null,1008,"SA14","SA141008"]
["Other",null,null,null,null,null,null,null,null,null,null,null,null,null,null,null,null,null,null,null,null,null,null,null,null,null,null,null,null,null,1009,"SA14","SA141009"]
["sub-total",null,{"$f":"SUM(C7:C14)","v":45137139.129999995},{"$f":"SUM(D7:D14)","v":67057353},{"$f":"SUM(E7:E14)","v":77391695},{"$f":"SUM(F7:F14)","v":91081821},{"$f":"SUM(G7:G14)","v":84364368},84364368,{"$f":"IF(ISERROR(ROUND((J15-F15)/F15,3)),0,(ROUND((J15-F15)/F15,3)))","v":-2.5000000000000001E-2},88840912,93194117.150000006,97574239.180000007,null,null,null,null,null,null,null,null,null,null,null,null,null,null,null,null,null,null,1090,"SA14","SA141090"]
["VAT on Services",null,null,null,null,null,null,null,null,null,null,null,null,null,null,null,null,null,null,null,null,null,null,null,null,null,null,null,null,null,1091,"SA14","SA141091"]
["Total large household bill:",null,{"$f":"SUM(C15:C16)","v":45137139.129999995},{"$f":"SUM(D15:D16)","v":67057353},{"$f":"SUM(E15:E16)","v":77391695},{"$f":"SUM(F15:F16)","v":91081821},{"$f":"SUM(G15:G16)","v":84364368},84364368,{"$f":"IF(ISERROR(ROUND((J17-F17)/F17,3)),0,(ROUND((J17-F17)/F17,3)))","v":-2.5000000000000001E-2},88840912,93194117.150000006,97574239.180000007,null,null,null,null,null,null,null,null,null,null,null,null,null,null,null,null,null,null,1095,"SA14","SA141095"]
["% increase/-decrease",null,null,{"$f":"IF(ISERROR((D17/C17)-1),0,((D17/C17)-1))","v":0.48563587087048976},{"$f":"IF(ISERROR((E17/D17)-1),0,((E17/D17)-1))","v":0.15411198828560968},{"$f":"IF(ISERROR((F17/E17)-1),0,((F17/E17)-1))","v":0.17689399359970093},{"$f":"IF(ISERROR((G17/F17)-1),0,((G17/F17)-1))","v":-7.375185219452296E-2},{"$f":"IF(ISERROR((H17/G17)-1),0,((H17/G17)-1))","v":0},null,{"$f":"IF(ISERROR((J17/H17)-1),0,((J17/H17)-1))","v":5.3062022582804236E-2},{"$f":"IF(ISERROR((K17/J17)-1),0,((K17/J17)-1))","v":4.9000005200306784E-2},{"$f":"IF(ISERROR((L17/K17)-1),0,((L17/K17)-1))","v":4.6999984161553821E-2},null,null,null,null,null,null,null,null,null,null,null,null,null,null,null,null,null,null,1096,"SA14","SA141096"]
[null,null,null,null,null,null,null,null,null,null,null,null,null,null,null,null,null,null,null,null,null,null,null,null,null,null,null,null,null,null,null,"SA14","SA14"]
["Monthly Account for Household - 'Affordable Range' ",2,null,null,null,null,null,null,null,null,null,null,null,null,null,null,null,null,null,null,null,null,null,null,null,null,null,null,null,null,1100,"SA14","SA141100"]
[{"$f":"A6","v":"Rates and services charges:"},null,null,null,null,null,null,null,null,null,null,null,null,null,null,null,null,null,null,null,null,null,null,null,null,null,null,null,null,null,1101,"SA14","SA141101"]
[{"$f":"A7","v":"Property rates"},null,57980741,71229310,67093366,79881820.969600007,75324368.38000001,75324368.379999995,null,79316562,83203074,87113617,null,null,null,null,null,null,null,null,null,null,null,null,null,null,null,null,null,null,1102,"SA14","SA141102"]
["Electricity: Basic levy",null,null,null,null,null,null,null,null,null,null,null,null,null,null,null,null,null,null,null,null,null,null,null,null,null,null,null,null,null,1103,"SA14","SA141103"]
["Electricity: Consumption",null,null,null,null,null,null,null,null,null,null,null,null,null,null,null,null,null,null,null,null,null,null,null,null,null,null,null,null,null,1104,"SA14","SA141104"]
["Water: Basic levy",null,null,null,null,null,null,null,null,null,null,null,null,null,null,null,null,null,null,null,null,null,null,null,null,null,null,null,null,null,1105,"SA14","SA141105"]
["Water: Consumption",null,null,null,null,null,null,null,null,null,null,null,null,null,null,null,null,null,null,null,null,null,null,null,null,null,null,null,null,null,1106,"SA14","SA141106"]
["Sanitation",null,null,null,null,null,null,null,null,null,null,null,null,null,null,null,null,null,null,null,null,null,null,null,null,null,null,null,null,null,1107,"SA14","SA141107"]
["Refuse removal",null,6499765,8158976,7972320,11200000,9040000,9040000,null,9524350,9991043.1500000004,10460622.17805,null,null,null,null,null,null,null,null,null,null,null,null,null,null,null,null,null,null,1108,"SA14","SA141108"]
["Other",null,null,null,null,null,null,null,null,null,null,null,null,null,null,null,null,null,null,null,null,null,null,null,null,null,null,null,null,null,1110,"SA14","SA141110"]
["sub-total",null,{"$f":"SUM(C22:C29)","v":64480506},79388286,75065686,91081820.969600007,84364368.38000001,84364368.379999995,{"$f":"IF(ISERROR(ROUND((J30-F30)/F30,3)),0,(ROUND((J30-F30)/F30,3)))","v":-2.5000000000000001E-2},{"$f":"SUM(J22:J29)","v":88840912},{"$f":"SUM(K22:K29)","v":93194117.150000006},{"$f":"SUM(L22:L29)","v":97574239.178049996},null,null,null,null,null,null,null,null,null,null,null,null,null,null,null,null,null,null,1190,"SA14","SA141190"]
["VAT on Services",null,null,null,null,null,null,null,null,null,null,null,null,null,null,null,null,null,null,null,null,null,null,null,null,null,null,null,null,null,1191,"SA14","SA141191"]
["Total small household bill:",null,{"$f":"SUM(C30:C31)","v":64480506},79388286,75065686,91081820.969600007,84364368.38000001,84364368.379999995,{"$f":"IF(ISERROR(ROUND((J32-F32)/F32,3)),0,(ROUND((J32-F32)/F32,3)))","v":-2.5000000000000001E-2},{"$f":"SUM(J30:J31)","v":88840912},{"$f":"SUM(K30:K31)","v":93194117.150000006},{"$f":"SUM(L30:L31)","v":97574239.178049996},null,null,null,null,null,null,null,null,null,null,null,null,null,null,null,null,null,null,1195,"SA14","SA141195"]
["% increase/-decrease",null,null,{"$f":"IF(ISERROR((D32/C32)-1),0,((D32/C32)-1))","v":0.23119824773087227},{"$f":"IF(ISERROR((E32/D32)-1),0,((E32/D32)-1))","v":-5.4448838963471302E-2},{"$f":"IF(ISERROR((F32/E32)-1),0,((F32/E32)-1))","v":0.21336160132607063},{"$f":"IF(ISERROR((G32/F32)-1),0,((G32/F32)-1))","v":-7.3751847713300012E-2},{"$f":"IF(ISERROR((H32/G32)-1),0,((H32/G32)-1))","v":-2.2204460492503131E-16},null,{"$f":"IF(ISERROR((J32/H32)-1),0,((J32/H32)-1))","v":5.3062017839527131E-2},{"$f":"IF(ISERROR((K32/J32)-1),0,((K32/J32)-1))","v":4.9000005200306784E-2},{"$f":"IF(ISERROR((L32/K32)-1),0,((L32/K32)-1))","v":4.6999984140629669E-2},null,null,null,null,null,null,null,null,null,null,null,null,null,null,null,null,null,null,1196,"SA14","SA141196"]
[null,null,null,null,{"$f":"IF(ISERROR((E33/D33)-1),0,((E33/D33)-1))","v":-1.2355071437515945},{"$f":"IF(ISERROR((F33/E33)-1),0,((F33/E33)-1))","v":-4.9185702650007084},{"$f":"IF(ISERROR((G33/F33)-1),0,((G33/F33)-1))","v":-1.3456659832646667},{"$f":"IF(ISERROR((H33/G33)-1),0,((H33/G33)-1))","v":-0.999999999999997},null,null,null,null,null,null,null,null,null,null,null,null,null,null,null,null,null,null,null,null,null,null,null,"SA14","SA14"]
["Monthly Account for Household - 'Indigent' Household receiving free basic services",3,null,null,null,null,null,null,null,null,null,null,null,null,null,null,null,null,null,null,null,null,null,null,null,null,null,null,null,null,1200,"SA14","SA141200"]
[{"$f":"A6","v":"Rates and services charges:"},null,null,null,null,null,null,null,null,null,null,null,null,null,null,null,null,null,null,null,null,null,null,null,null,null,null,null,null,null,1201,"SA14","SA141201"]
[{"$f":"A7","v":"Property rates"},null,null,null,null,null,null,null,null,null,null,null,null,null,null,null,null,null,null,null,null,null,null,null,null,null,null,null,null,null,1202,"SA14","SA141202"]
["Electricity: Basic levy",null,null,null,null,null,null,null,null,null,null,null,null,null,null,null,null,null,null,null,null,null,null,null,null,null,null,null,null,null,1203,"SA14","SA141203"]
["Electricity: Consumption",null,null,null,null,null,null,null,null,null,null,null,null,null,null,null,null,null,null,null,null,null,null,null,null,null,null,null,null,null,1204,"SA14","SA141204"]
["Water: Basic levy",null,null,null,null,null,null,null,null,null,null,null,null,null,null,null,null,null,null,null,null,null,null,null,null,null,null,null,null,null,1205,"SA14","SA141205"]
["Water: Consumption",null,null,null,null,null,null,null,null,null,null,null,null,null,null,null,null,null,null,null,null,null,null,null,null,null,null,null,null,null,1206,"SA14","SA141206"]
["Sanitation",null,null,null,null,null,null,null,null,null,null,null,null,null,null,null,null,null,null,null,null,null,null,null,null,null,null,null,null,null,1207,"SA14","SA141207"]
["Refuse removal",null,null,null,null,null,null,null,null,null,null,null,null,null,null,null,null,null,null,null,null,null,null,null,null,null,null,null,null,null,1208,"SA14","SA141208"]
["Other",null,null,null,null,null,null,null,null,null,null,null,null,null,null,null,null,null,null,null,null,null,null,null,null,null,null,null,null,null,1209,"SA14","SA141209"]
["sub-total",null,{"$f":"SUM(C37:C44)","v":0},{"$f":"SUM(D37:D44)","v":0},{"$f":"SUM(E37:E44)","v":0},{"$f":"SUM(F37:F44)","v":0},{"$f":"SUM(G37:G44)","v":0},0,{"$f":"IF(ISERROR(ROUND((J45-F45)/F45,3)),0,(ROUND((J45-F45)/F45,3)))","v":0},0,0,0,null,null,null,null,null,null,null,null,null,null,null,null,null,null,null,null,null,null,1290,"SA14","SA141290"]
["VAT on Services",null,null,null,null,null,null,null,null,null,null,null,null,null,null,null,null,null,null,null,null,null,null,null,null,null,null,null,null,null,1291,"SA14","SA141291"]
["Total small household bill:",null,{"$f":"SUM(C45:C46)","v":0},{"$f":"SUM(D45:D46)","v":0},{"$f":"SUM(E45:E46)","v":0},{"$f":"SUM(F45:F46)","v":0},{"$f":"SUM(G45:G46)","v":0},0,{"$f":"IF(ISERROR(ROUND((J47-F47)/F47,3)),0,(ROUND((J47-F47)/F47,3)))","v":0},0,0,0,null,null,null,null,null,null,null,null,null,null,null,null,null,null,null,null,null,null,1295,"SA14","SA141295"]
[{"$f":"A18","v":"% increase/-decrease"},null,null,{"$f":"IF(ISERROR((D47/C47)-1),0,((D47/C47)-1))","v":0},{"$f":"IF(ISERROR((E47/D47)-1),0,((E47/D47)-1))","v":0},{"$f":"IF(ISERROR((F47/E47)-1),0,((F47/E47)-1))","v":0},{"$f":"IF(ISERROR((G47/F47)-1),0,((G47/F47)-1))","v":0},{"$f":"IF(ISERROR((H47/G47)-1),0,((H47/G47)-1))","v":0},null,{"$f":"IF(ISERROR((J47/H47)-1),0,((J47/H47)-1))","v":0},{"$f":"IF(ISERROR((K47/J47)-1),0,((K47/J47)-1))","v":0},{"$f":"IF(ISERROR((L47/K47)-1),0,((L47/K47)-1))","v":0},null,null,null,null,null,null,null,null,null,null,null,null,null,null,null,null,null,null,1296,"SA14","SA141296"]
[]
[{"$f":"head27a","v":"References"}]
["1. Use as basis property value of R700 000, 1 000 kWh electricity and 30kl water"]
["2. Use as basis property value  of R500 000 and R700 000, 500 kWh electricity and 25kl water"]
["3. Use as basis property value of R 300 000, 350kWh electricity and 20kl water (50 kWh electricity and 6 kl water free)"]
["4. Note this is for a SINGLE household."]

{"sheet":"SA16","index":60,"n_rows":32,"n_cols":15,"rows_kept":32,"cut":false,"hidden":false,"merged":[[1,3,2,3],[1,9,2,9],[2,10,2,14]]}
[{"$f":"muni&\" - \"&TableA16","v":"LIM331 Greater Giyani - Supporting Table SA16 Investment particulars by maturity"}]
["Investments by Maturity",{"$f":"head27","v":"Ref"},"Period of Investment","Type of Investment","Capital Guarantee\n(Yes/ No)","Variable or Fixed interest rate","Interest Rate ᶟ","Commission Paid (Rands)","Commission Recipient","Expiry date of investment","Opening balance","Interest to be realised","Partial / Premature Withdrawal (4)","Investment Top Up","Closing Balance"]
["Name of institution & investment ID",1,"Yrs/Months"]
["Parent municipality"]
[null,null,null,null,null,null,null,null,null,null,null,null,null,null,{"$f":"SUM(K5:N5)","v":0}]
[null,null,null,null,null,null,null,null,null,null,null,null,null,null,{"$f":"SUM(K6:N6)","v":0}]
[null,null,null,null,null,null,null,null,null,null,null,null,null,null,0]
[null,null,null,null,null,null,null,null,null,null,null,null,null,null,0]
[null,null,null,null,null,null,null,null,null,null,null,null,null,null,0]
[null,null,null,null,null,null,null,null,null,null,null,null,null,null,0]
[null,null,null,null,null,null,null,null,null,null,null,null,null,null,0]
["Municipality sub-total",null,null,null,null,null,null,null,null,null,{"$f":"SUM(K5:K11)","v":0},null,{"$f":"SUM(M5:M11)","v":0},{"$f":"SUM(N5:N11)","v":0},{"$f":"SUM(O5:O11)","v":0}]
[]
["Entities"]
[null,null,null,null,null,null,null,null,null,null,null,null,null,null,{"$f":"SUM(K15:N15)","v":0}]
[null,null,null,null,null,null,null,null,null,null,null,null,null,null,{"$f":"SUM(K16:N16)","v":0}]
[null,null,null,null,null,null,null,null,null,null,null,null,null,null,0]
[null,null,null,null,null,null,null,null,null,null,null,null,null,null,0]
[null,null,null,null,null,null,null,null,null,null,null,null,null,null,0]
[null,null,null,null,null,null,null,null,null,null,null,null,null,null,0]
[null,null,null,null,null,null,null,null,null,null,null,null,null,null,0]
["Entities sub-total",null,null,null,null,null,null,null,null,null,{"$f":"SUM(K15:K21)","v":0},null,{"$f":"SUM(M15:M21)","v":0},{"$f":"SUM(N15:N21)","v":0},{"$f":"SUM(O15:O21)","v":0}]
[]
["TOTAL INVESTMENTS AND INTEREST",1,null,null,null,null,null,null,null,null,{"$f":"K12+K22","v":0},null,{"$f":"M12+M22","v":0},{"$f":"N12+N22","v":0},{"$f":"O12+O22","v":0}]
[]
[{"$f":"head27a","v":"References"}]
["1. Total investments must reconcile to all items in Table SA15 for the Current Year (30 June)"]
["2. List investments in expiry date order"]
["3. If 'variable' is selected in column F, input interest rate range"]
["4. Withdrawals to be entered as negative"]
["check"]
[null,null,null,null,null,null,null,null,null,null,null,null,"`"]

{"sheet":"SA15","index":61,"n_rows":36,"n_cols":11,"rows_kept":36,"cut":false,"hidden":false,"merged":[[1,5,1,7],[1,8,1,10],[1,1,3,1],[1,0,2,0]]}
[{"$f":"muni&\" - \"&TableA15","v":"LIM331 Greater Giyani - Supporting Table SA15 Investment particulars by type"}]
["Investment type",{"$f":"head27","v":"Ref"},{"$f":"head1b","v":"2019/20"},{"$f":"head1A","v":"2020/21"},{"$f":"Head1","v":"2021/22"},{"$f":"Head2","v":"Current Year 2022/23"},null,null,{"$f":"Head3","v":"2023/24 Medium Term Revenue & Expenditure Framework"}]
[null,null,{"$f":"Head5","v":"Audited Outcome"},{"$f":"Head5","v":"Audited Outcome"},{"$f":"Head5","v":"Audited Outcome"},{"$f":"Head6","v":"Original Budget"},{"$f":"Head7","v":"Adjusted Budget"},{"$f":"Head8","v":"Full Year Forecast"},{"$f":"Head9","v":"Budget Year 2023/24"},{"$f":"Head10","v":"Budget Year +1 2024/25"},{"$f":"Head11","v":"Budget Year +2 2025/26"}]
["R thousand"]
["Parent municipality"]
["Securities - National Government"]
["Listed Corporate Bonds"]
["Deposits - Bank"]
["Deposits - Public Investment Commissioners"]
["Deposits - Corporation for Public Deposits"]
["Bankers Acceptance Certificates"]
["Negotiable Certificates of Deposit - Banks"]
["Guaranteed Endowment Policies (sinking)"]
["Repurchase Agreements - Banks"]
["Municipal Bonds"]
[]
["Municipality sub-total",1,{"$f":"SUM(C6:C15)","v":0},0,0,0,0,0,0,0,0]
[]
["Entities"]
[{"$f":"A6","v":"Securities - National Government"}]
[{"$f":"A7","v":"Listed Corporate Bonds"}]
["Deposits - Bank"]
["Deposits - Public Investment Commissioners"]
["Deposits - Corporation for Public Deposits"]
["Bankers Acceptance Certificates"]
["Negotiable Certificates of Deposit - Banks"]
["Guaranteed Endowment Policies (sinking)"]
["Repurchase Agreements - Banks"]
[]
["Entities sub-total",null,{"$f":"SUM(C20:C29)","v":0},0,0,0,0,0,0,0,0]
[]
["Consolidated total:",null,{"$f":"C17+C30","v":0},0,0,0,0,0,0,0,0]
[]
[{"$f":"head27a","v":"References"}]
["1. Total investments must reconcile to Budgeted Financial Position ('current' call investment deposits plus 'non-current' investments)"]
["check investment balance",null,{"$f":"C17-'A6-FinPos'!C7-'A6-FinPos'!C17","v":187400798},{"$f":"D17-'A6-FinPos'!D7-'A6-FinPos'!D17","v":311305414},{"$f":"E17-'A6-FinPos'!E7-'A6-FinPos'!E17","v":353433289},{"$f":"F17-'A6-FinPos'!F7-'A6-FinPos'!F17","v":-2194573007},{"$f":"G17-'A6-FinPos'!G7-'A6-FinPos'!G17","v":-1183962354.820128},{"$f":"H17-'A6-FinPos'!H7-'A6-FinPos'!H17","v":-1183962354.820128},{"$f":"I17-'A6-FinPos'!J7-'A6-FinPos'!J17","v":-967813276.04012787},{"$f":"J17-'A6-FinPos'!K7-'A6-FinPos'!K17","v":-980886067.04012787},{"$f":"K17-'A6-FinPos'!L7-'A6-FinPos'!L17","v":-965023157.04012787}]

{"sheet":"SA17","index":62,"n_rows":71,"n_cols":45,"rows_kept":71,"cut":false,"hidden":false,"merged":[[1,5,1,7],[1,8,1,10]]}
[{"$f":"muni&\" - \"&TableA17","v":"LIM331 Greater Giyani - Supporting Table SA17 Borrowing"}]
["Borrowing - Categorised by type",{"$f":"head27","v":"Ref"},{"$f":"head1b","v":"2019/20"},{"$f":"head1A","v":"2020/21"},{"$f":"Head1","v":"2021/22"},{"$f":"Head2","v":"Current Year 2022/23"},null,null,{"$f":"Head3","v":"2023/24 Medium Term Revenue & Expenditure Framework"}]
["R thousand",null,{"$f":"Head5","v":"Audited Outcome"},{"$f":"Head5","v":"Audited Outcome"},{"$f":"Head5","v":"Audited Outcome"},{"$f":"Head6","v":"Original Budget"},{"$f":"Head7","v":"Adjusted Budget"},{"$f":"Head8","v":"Full Year Forecast"},{"$f":"Head9","v":"Budget Year 2023/24"},{"$f":"Head10","v":"Budget Year +1 2024/25"},{"$f":"Head11","v":"Budget Year +2 2025/26"}]
["Parent municipality"]
["Annuity and Bullet Loans"]
["Long-Term Loans (non-annuity)"]
["Local registered stock"]
["Instalment Credit"]
["Financial Leases"]
["PPP liabilities"]
["Finance Granted By Cap Equipment Supplier"]
["Marketable Bonds"]
["Non-Marketable Bonds"]
["Bankers Acceptances"]
["Financial derivatives"]
["Other Securities"]
["Municipality sub-total",1,{"$f":"SUM(C5:C16)","v":0},{"$f":"SUM(D5:D16)","v":0},0,0,0,0,0,0,0]
[]
["Entities"]
[{"$f":"A5","v":"Annuity and Bullet Loans"}]
["Long-Term Loans (non-annuity)"]
["Local registered stock"]
["Instalment Credit"]
["Financial Leases"]
["PPP liabilities"]
["Finance Granted By Cap Equipment Supplier"]
["Marketable Bonds"]
["Non-Marketable Bonds"]
["Bankers Acceptances"]
["Financial derivatives"]
["Other Securities"]
["Entities sub-total",1,{"$f":"SUM(C20:C31)","v":0},{"$f":"SUM(D20:D31)","v":0},0,0,0,0,0,0,0]
[]
["Total Borrowing",1,{"$f":"C17+C32","v":0},{"$f":"D17+D32","v":0},0,0,0,0,0,0,0]
[]
["Unspent Borrowing - Categorised by type"]
["Parent municipality"]
["Long-Term Loans (annuity/reducing balance)"]
["Long-Term Loans (non-annuity)"]
["Local registered stock"]
["Instalment Credit",null,null,null,null,null,null,null,null,null,null,null,null,null,null,null,null,null,null,null,null,null,null,null,null,null,null,null,null,null,null,null,null,null,null,null,null,null,null,null,null,null,439005000,null,539442200]
["Financial Leases"]
["PPP liabilities",null,null,null,null,null,null,null,null,null,null,null,null,null,null,null,null,null,null,null,null,null,0,null,0,null,null,0,null,0,null,null,0,null,0,null,null,0,null,0,null,null,1834701353,null,1241876995]
["Finance Granted By Cap Equipment Supplier",null,null,null,null,null,null,null,null,null,null,null,null,null,null,null,null,null,null,null,null,null,null,null,null,null,null,null,null,null,null,null,null,null,null,null,null,null,null,null,null,null,839041298,null,440387617]
["Marketable Bonds",null,null,null,null,null,null,null,null,null,null,null,null,null,null,null,null,null,null,null,null,null,null,null,null,null,null,null,null,null,null,null,null,null,null,null,null,null,null,null,null,null,976543638,null,782372961]
["Non-Marketable Bonds",null,null,null,null,null,null,null,null,null,null,null,null,null,null,null,null,null,null,null,null,null,null,null,null,null,null,null,null,null,null,null,null,null,null,null,null,null,null,null,null,null,19116417,null,19116417]
["Bankers Acceptances",null,null,null,null,null,null,null,null,null,null,null,null,null,null,null,null,null,null,null,null,null,null,null,null,null,null,null,null,null,null,null,null,null,null,null,null,null,null,null,null,null,2273706353,null,1781319195]
["Financial derivatives",null,null,null,null,null,null,null,null,null,null,null,null,null,null,null,null,null,null,null,null,null,null,null,null,null,null,null,null,null,null,null,null,null,null,null,null,null,null,null,null,null,180259232,null,140396729]
["Other Securities",null,null,null,null,null,null,null,null,null,null,null,null,null,null,null,null,null,null,null,null,null,null,null,null,null,null,null,null,null,null,null,null,null,null,null,null,null,null,null,null,null,125005000,null,100442200]
["Municipality sub-total",1,{"$f":"SUM(C38:C49)","v":0},{"$f":"SUM(D38:D49)","v":0},0,0,0,0,0,0,0,null,null,null,null,null,null,null,null,null,null,null,null,null,null,null,null,null,null,null,null,null,null,null,null,null,null,null,null,null,null,null,40341797,null,38954529]
[null,null,null,null,null,null,null,null,null,null,null,null,null,null,null,null,null,null,null,null,null,null,null,null,null,null,null,null,null,null,null,null,null,null,null,null,null,null,null,null,null,null,14912435,null,1000000]
["Entities"]
[{"$f":"A38","v":"Long-Term Loans (annuity/reducing balance)"}]
["Long-Term Loans (non-annuity)"]
["Local registered stock"]
["Instalment Credit"]
["Financial Leases"]
["PPP liabilities"]
["Finance Granted By Cap Equipment Supplier"]
["Marketable Bonds"]
["Non-Marketable Bonds"]
["Bankers Acceptances"]
["Financial derivatives"]
["Other Securities"]
["Entities sub-total",1,{"$f":"SUM(C53:C64)","v":0},{"$f":"SUM(D53:D64)","v":0},0,0,0,0,0,0,0]
[]
["Total Unspent Borrowing",1,{"$f":"C50+C65","v":0},{"$f":"D50+D65","v":0},0,0,0,0,0,0,0]
[]
[{"$f":"head27a","v":"References"}]
["1. Total borrowing must reconcile to Budgeted Financial Position (Borrowing - non-current)"]
["check borrowing balance",null,{"$f":"C34-'A6-FinPos'!C41","v":0},{"$f":"D34-'A6-FinPos'!D41","v":0},{"$f":"E34-'A6-FinPos'!E41","v":0},{"$f":"F34-'A6-FinPos'!F41","v":0},{"$f":"G34-'A6-FinPos'!G41","v":0},{"$f":"H34-'A6-FinPos'!H41","v":0},{"$f":"I34-'A6-FinPos'!J41","v":0},{"$f":"J34-'A6-FinPos'!K41","v":0},{"$f":"K34-'A6-FinPos'!L41","v":0}]

{"sheet":"SA18","index":63,"n_rows":61,"n_cols":11,"rows_kept":61,"cut":false,"hidden":false,"merged":[[1,5,1,7],[1,8,1,10]]}
[{"$f":"muni&\" - \"& TableA18","v":"LIM331 Greater Giyani - Supporting Table SA18 Transfers and grant receipts"}]
[{"$f":"desc","v":"Description"},{"$f":"head27","v":"Ref"},{"$f":"head1b","v":"2019/20"},{"$f":"head1A","v":"2020/21"},{"$f":"Head1","v":"2021/22"},{"$f":"Head2","v":"Current Year 2022/23"},null,null,{"$f":"Head3","v":"2023/24 Medium Term Revenue & Expenditure Framework"}]
["R thousand",null,{"$f":"Head5","v":"Audited Outcome"},{"$f":"Head5","v":"Audited Outcome"},{"$f":"Head5","v":"Audited Outcome"},{"$f":"Head6","v":"Original Budget"},{"$f":"Head7","v":"Adjusted Budget"},{"$f":"Head8","v":"Full Year Forecast"},{"$f":"Head9","v":"Budget Year 2023/24"},{"$f":"Head10","v":"Budget Year +1 2024/25"},{"$f":"Head11","v":"Budget Year +2 2025/26"}]
["RECEIPTS:","1, 2"]
[]
["Operating Transfers and Grants"]
["National Government:",null,{"$f":"SUM(C8:C14)","v":0},{"$f":"SUM(D8:D14)","v":0},0,358638000,358638000,{"$f":"G7","v":358638000},382037000,404850000,394760000]
["Local Government Equitable Share",{"$f":"IF(A8=\"  Levy replacement\",3,\"\")","v":""},0,0,0,352203000,352203000,{"$f":"G8","v":352203000},376486000,402450000,392260000]
["EPWP Incentive","_",0,0,0,4035000,4035000,{"$f":"G9","v":4035000},3151000,0,0]
["Finance Management ","_",0,0,0,2400000,2400000,{"$f":"G10","v":2400000},2400000,2400000,2500000]
[]
[]
[null,""]
[]
["Provincial Government:",null,{"$f":"SUM(C16:C20)","v":0},{"$f":"SUM(D16:D20)","v":0},0,0,0,0,0,0,0]
[null,{"$f":"IF(A16=\"  Housing\",4,\"\")","v":""}]
[null,{"$f":"IF(A17=\"  Housing\",4,\"\")","v":""}]
[null,{"$f":"IF(A18=\"  Housing\",4,\"\")","v":""}]
[null,{"$f":"IF(A19=\"  Housing\",4,\"\")","v":""}]
[{"$f":"A14","v":0}]
["District Municipality:",null,{"$f":"SUM(C22:C23)","v":0},{"$f":"SUM(D22:D23)","v":0},0,0,0,0,0,0,0]
[]
[]
["Other grant providers:",null,{"$f":"SUM(C25:C26)","v":0},{"$f":"SUM(D25:D26)","v":0},0,0,0,0,315000,320000,325000]
["Local Government, Water and Related Service SETA",null,null,null,null,null,null,null,315000,320000,325000]
[]
["Total Operating Transfers and Grants",5,{"$f":"C7+C15+C21+C24","v":0},{"$f":"D7+D15+D21+D24","v":0},0,358638000,358638000,358638000,382352000,405170000,395085000]
[]
["Capital Transfers and Grants"]
[{"$f":"A7","v":"National Government:"},null,{"$f":"SUM(C31:C36)","v":0},{"$f":"SUM(D31:D36)","v":0},0,20584000,96716218.310000002,96716218.310000002,104549000,102594000,107207000]
[" Municipal Infrastructure Grant (MIG)","_",0,0,0,0,74487578,{"$f":"G31","v":74487578},72329000,75594000,78997000]
["Integrated National Electrification Programme Grant","_",0,0,0,20584000,22228640.309999999,{"$f":"G32","v":22228640.309999999},32220000,27000000,28210000]
[]
[]
[]
["  Other capital transfers/grants [insert desc]"]
[{"$f":"A15","v":"Provincial Government:"},null,{"$f":"SUM(C46)","v":0},{"$f":"SUM(D46)","v":0},0,0,0,0,0,0,0]
[]
[]
[]
[]
[]
[]
[]
[]
["Other capital transfers/grants [insert description]"]
[{"$f":"A21","v":"District Municipality:"},null,{"$f":"SUM(C48:C49)","v":0},0,0,0,0,0,0,0,0]
[{"$f":"A22","v":0}]
[]
[{"$f":"A24","v":"Other grant providers:"},null,{"$f":"SUM(C51:C52)","v":0},{"$f":"SUM(D51:D52)","v":0},0,0,0,0,0,0,0]
[{"$f":"LEFT(A25,22)","v":"Local Government, Wate"}]
[]
["Total Capital Transfers and Grants",5,{"$f":"C30+C37+C47+C50","v":0},0,0,20584000,96716218.310000002,96716218.310000002,104549000,102594000,107207000]
["TOTAL RECEIPTS OF TRANSFERS & GRANTS",null,{"$f":"C27+C53","v":0},0,0,379222000,455354218.31,455354218.31,486901000,507764000,502292000]
[{"$f":"head27a","v":"References"}]
["1. Each transfer/grant is listed by name as gazetted together with the name of the transferring department or municipality, donor or other organisation"]
["2. Amounts actually RECEIVED; not revenue recognised (objective is to confirm grants transferred)"]
["3. Replacement of RSC levies"]
["4. Housing subsidies for housing where ownership transferred to organisations or persons outside the control of the municipality"]
["5. Total transfers and grants must reconcile to Budgeted Cash Flows"]
["6. Motor vehicle licensing refunds to be included under 'agency' services (Not Grant Receipts)"]

{"sheet":"SA19","index":64,"n_rows":60,"n_cols":11,"rows_kept":60,"cut":false,"hidden":false,"merged":[[1,5,1,7],[1,8,1,10]]}
[{"$f":"muni&\" - \"& TableA19","v":"LIM331 Greater Giyani - Supporting Table SA19 Expenditure on transfers and grant programme"}]
[{"$f":"desc","v":"Description"},{"$f":"head27","v":"Ref"},{"$f":"head1b","v":"2019/20"},{"$f":"head1A","v":"2020/21"},{"$f":"Head1","v":"2021/22"},{"$f":"Head2","v":"Current Year 2022/23"},null,null,{"$f":"Head3","v":"2023/24 Medium Term Revenue & Expenditure Framework"}]
["R thousand",null,{"$f":"Head5","v":"Audited Outcome"},{"$f":"Head5","v":"Audited Outcome"},{"$f":"Head5","v":"Audited Outcome"},{"$f":"Head6","v":"Original Budget"},{"$f":"Head7","v":"Adjusted Budget"},{"$f":"Head8","v":"Full Year Forecast"},{"$f":"Head9","v":"Budget Year 2023/24"},{"$f":"Head10","v":"Budget Year +1 2024/25"},{"$f":"Head11","v":"Budget Year +2 2025/26"}]
["EXPENDITURE:",1]
[]
["Operating expenditure of Transfers and Grants"]
[{"$f":"'SA18'!A7","v":"National Government:"},null,{"$f":"SUM(C8:C14)","v":0},{"$f":"SUM(D8:D14)","v":0},0,358638000,358638000,358638000,382037000,404850000,394760000]
[{"$f":"'SA18'!A8","v":"Local Government Equitable Share"},null,0,0,0,352203000,352203000,352203000,376486000,402450000,392260000]
[{"$f":"'SA18'!A9","v":"EPWP Incentive"},"_",0,0,0,4035000,4035000,4035000,3151000,0,0]
[{"$f":"'SA18'!A10","v":"Finance Management "},"_",0,0,0,2400000,2400000,2400000,2400000,2400000,2500000]
[]
[]
[]
[]
[{"$f":"'SA18'!A15","v":"Provincial Government:"},null,{"$f":"SUM(C16:C20)","v":0},{"$f":"SUM(D16:D20)","v":0},0,0,0,0,0,0,0]
[{"$f":"IF('SA18'!A16=\"\",\"\",'SA18'!A16)","v":""}]
[{"$f":"IF('SA18'!A17=\"\",\"\",'SA18'!A17)","v":""}]
[{"$f":"IF('SA18'!A18=\"\",\"\",'SA18'!A18)","v":""}]
[{"$f":"IF('SA18'!A19=\"\",\"\",'SA18'!A19)","v":""}]
[]
[{"$f":"'SA18'!A21","v":"District Municipality:"},null,{"$f":"SUM(C22:C23)","v":0},{"$f":"SUM(D22:D23)","v":0},0,0,0,0,0,0,0]
[]
[]
[{"$f":"'SA18'!A24","v":"Other grant providers:"},null,{"$f":"SUM(C25:C26)","v":0},{"$f":"SUM(D25:D26)","v":0},0,0,0,0,315000,320000,325000]
[{"$f":"'SA18'!A25","v":"Local Government, Water and Related Service SETA"},null,null,null,null,null,null,null,315000,320000,325000]
[]
["Total operating expenditure of Transfers and Grants:",null,{"$f":"C7+C15+C21+C24","v":0},0,0,358638000,358638000,358638000,382352000,405170000,395085000]
[]
["Capital expenditure of Transfers and Grants"]
[{"$f":"'SA18'!A30","v":"National Government:"},null,{"$f":"SUM(C31:C36)","v":0},{"$f":"SUM(D31:D36)","v":0},0,20584000,96716218.310000002,96716218.310000002,104549000,102594000,107207000]
["Integrated National Electrification Programme Grant","_",0,0,0,0,74487578,74487578,72329000,75594000,78997000]
["Municipal Infrastructure Grant","_",0,0,0,20584000,22228640.309999999,22228640.309999999,32220000,27000000,28210000]
["Municipal Infrastructure Grant","_"]
[{"$f":"IF('SA18'!A34=\"\",\"\",'SA18'!A34)","v":""}]
[{"$f":"IF('SA18'!A35=\"\",\"\",'SA18'!A35)","v":""}]
[{"$f":"'SA18'!A36","v":"  Other capital transfers/grants [insert desc]"}]
[{"$f":"'SA18'!A37","v":"Provincial Government:"},null,{"$f":"SUM(C49)","v":0},{"$f":"SUM(D49)","v":0},0,0,0,0,0,0,0]
[]
[]
[]
[]
[]
[]
[]
[]
[]
[]
[]
[{"$f":"'SA18'!A46","v":"Other capital transfers/grants [insert description]"}]
[{"$f":"'SA18'!A47","v":"District Municipality:"},null,{"$f":"SUM(C51:C52)","v":0},{"$f":"SUM(D51:D52)","v":0},0,0,0,0,0,0,0]
[{"$f":"'SA18'!A48","v":0}]
[]
[{"$f":"'SA18'!A50","v":"Other grant providers:"},null,{"$f":"SUM(C54:C55)","v":0},{"$f":"SUM(D54:D55)","v":0},0,0,0,0,0,0,0]
[{"$f":"'SA18'!A51","v":"Local Government, Wate"}]
[]
["Total capital expenditure of Transfers and Grants",null,{"$f":"C30+C37+C50+C53","v":0},{"$f":"D30+D37+D50+D53","v":0},0,20584000,96716218.310000002,96716218.310000002,104549000,102594000,107207000]
[]
["TOTAL EXPENDITURE OF TRANSFERS AND GRANTS",null,{"$f":"C27+C56","v":0},0,0,379222000,455354218.31,455354218.31,486901000,507764000,502292000]
[{"$f":"head27a","v":"References"}]
["1. Expenditure must be separately listed for each transfer or grant received or recognised"]

{"sheet":"SA20","index":65,"n_rows":60,"n_cols":11,"rows_kept":60,"cut":false,"hidden":false,"merged":[[56,0,56,10],[1,5,1,7],[1,8,1,10],[54,0,54,10],[55,0,55,10]]}
[{"$f":"muni&\" - \"& TableA20","v":"LIM331 Greater Giyani - Supporting Table SA20 Reconciliation of transfers, grant receipts and unspent funds"}]
[{"$f":"desc","v":"Description"},{"$f":"head27","v":"Ref"},{"$f":"head1b","v":"2019/20"},{"$f":"head1A","v":"2020/21"},{"$f":"Head1","v":"2021/22"},{"$f":"Head2","v":"Current Year 2022/23"},null,null,{"$f":"Head3","v":"2023/24 Medium Term Revenue & Expenditure Framework"}]
["R thousand",null,{"$f":"Head5","v":"Audited Outcome"},{"$f":"Head5","v":"Audited Outcome"},{"$f":"Head5","v":"Audited Outcome"},{"$f":"Head6","v":"Original Budget"},{"$f":"Head7","v":"Adjusted Budget"},{"$f":"Head8","v":"Full Year Forecast"},{"$f":"Head9","v":"Budget Year 2023/24"},{"$f":"Head10","v":"Budget Year +1 2024/25"},{"$f":"Head11","v":"Budget Year +2 2025/26"}]
["Operating transfers and grants:","1,3"]
[{"$f":"'SA18'!A7","v":"National Government:"}]
["Balance unspent at beginning of the year"]
["Current year receipts",null,{"$f":"'SA18'!C7","v":0},{"$f":"'SA18'!D7","v":0},{"$f":"'SA18'!E7","v":0},{"$f":"'SA18'!F7","v":358638000},{"$f":"'SA18'!G7","v":358638000},{"$f":"'SA18'!H7","v":358638000},{"$f":"'SA18'!I7","v":382037000},{"$f":"'SA18'!J7","v":404850000},{"$f":"'SA18'!K7","v":394760000}]
["Conditions met - transferred to revenue",null,{"$f":"C6+C7-C9","v":0},{"$f":"D6+D7-D9","v":0},0,717276000,717276000,717276000,764074000,809700000,789520000]
["Conditions still to be met - transferred to liabilities",null,{"$f":"-'SA19'!C7","v":0},{"$f":"-'SA19'!D7","v":0},{"$f":"-'SA19'!E7","v":0},{"$f":"-'SA19'!F7","v":-358638000},{"$f":"-'SA19'!G7","v":-358638000},{"$f":"-'SA19'!H7","v":-358638000},{"$f":"-'SA19'!I7","v":-382037000},{"$f":"-'SA19'!J7","v":-404850000},{"$f":"-'SA19'!K7","v":-394760000}]
["Provincial Government:"]
["Balance unspent at beginning of the year"]
[{"$f":"A7","v":"Current year receipts"},null,{"$f":"'SA18'!C15","v":0},{"$f":"'SA18'!D15","v":0},{"$f":"'SA18'!E15","v":0},{"$f":"'SA18'!F15","v":0},{"$f":"'SA18'!G15","v":0},{"$f":"'SA18'!H15","v":0},{"$f":"'SA18'!I15","v":0},{"$f":"'SA18'!J15","v":0},{"$f":"'SA18'!K15","v":0}]
[{"$f":"A8","v":"Conditions met - transferred to revenue"},null,{"$f":"C11+C12-C14","v":0},0,0,0,0,0,0,0,0]
[{"$f":"A9","v":"Conditions still to be met - transferred to liabilities"},null,{"$f":"-'SA19'!C15","v":0},{"$f":"-'SA19'!D15","v":0},{"$f":"-'SA19'!E15","v":0},{"$f":"-'SA19'!F15","v":0},{"$f":"-'SA19'!G15","v":0},{"$f":"-'SA19'!H15","v":0},{"$f":"-'SA19'!I15","v":0},{"$f":"-'SA19'!J15","v":0},{"$f":"-'SA19'!K15","v":0}]
["District Municipality:"]
[{"$f":"A11","v":"Balance unspent at beginning of the year"}]
[{"$f":"A12","v":"Current year receipts"},null,{"$f":"'SA18'!C21","v":0},{"$f":"'SA18'!D21","v":0},{"$f":"'SA18'!E21","v":0},{"$f":"'SA18'!F21","v":0},{"$f":"'SA18'!G21","v":0},{"$f":"'SA18'!H21","v":0},{"$f":"'SA18'!I21","v":0},{"$f":"'SA18'!J21","v":0},{"$f":"'SA18'!K21","v":0}]
[{"$f":"A13","v":"Conditions met - transferred to revenue"},null,{"$f":"C16+C17-C19","v":0},0,0,0,0,0,0,0,0]
[{"$f":"A14","v":"Conditions still to be met - transferred to liabilities"},null,{"$f":"-'SA19'!C21","v":0},{"$f":"-'SA19'!D21","v":0},{"$f":"-'SA19'!E21","v":0},{"$f":"-'SA19'!F21","v":0},{"$f":"-'SA19'!G21","v":0},{"$f":"-'SA19'!H21","v":0},{"$f":"-'SA19'!I21","v":0},{"$f":"-'SA19'!J21","v":0},{"$f":"-'SA19'!K21","v":0}]
["Other grant providers:"]
[{"$f":"A11","v":"Balance unspent at beginning of the year"}]
[{"$f":"A12","v":"Current year receipts"},null,{"$f":"'SA18'!C24","v":0},{"$f":"'SA18'!D24","v":0},{"$f":"'SA18'!E24","v":0},{"$f":"'SA18'!F24","v":0},{"$f":"'SA18'!G24","v":0},{"$f":"'SA18'!H24","v":0},{"$f":"'SA18'!I24","v":315000},{"$f":"'SA18'!J24","v":320000},{"$f":"'SA18'!K24","v":325000}]
[{"$f":"A13","v":"Conditions met - transferred to revenue"},null,{"$f":"C21+C22-C24","v":0},0,0,0,0,0,630000,640000,650000]
[{"$f":"A14","v":"Conditions still to be met - transferred to liabilities"},null,{"$f":"-'SA19'!C24","v":0},{"$f":"-'SA19'!D24","v":0},{"$f":"-'SA19'!E24","v":0},{"$f":"-'SA19'!F24","v":0},{"$f":"-'SA19'!G24","v":0},{"$f":"-'SA19'!H24","v":0},{"$f":"-'SA19'!I24","v":-315000},{"$f":"-'SA19'!J24","v":-320000},{"$f":"-'SA19'!K24","v":-325000}]
["Total operating transfers and grants revenue",null,{"$f":"C8+C13+C18+C23","v":0},0,0,717276000,717276000,717276000,764704000,810340000,790170000]
["Total operating transfers and grants - CTBM",2,0,0,0,-358638000,-358638000,-358638000,-382352000,-405170000,-395085000]
[]
["Capital transfers and grants:","1,3"]
[{"$f":"A5","v":"National Government:"}]
["Balance unspent at beginning of the year"]
["Current year receipts",null,{"$f":"'SA18'!C30","v":0},{"$f":"'SA18'!D30","v":0},{"$f":"'SA18'!E30","v":0},{"$f":"'SA18'!F30","v":20584000},{"$f":"'SA18'!G30","v":96716218.310000002},{"$f":"'SA18'!H30","v":96716218.310000002},{"$f":"'SA18'!I30","v":104549000},{"$f":"'SA18'!J30","v":102594000},{"$f":"'SA18'!K30","v":107207000}]
["Conditions met - transferred to revenue",null,{"$f":"C30+C31-C33","v":0},0,0,0,0,0,0,0,0]
["Conditions still to be met - transferred to liabilities",null,{"$f":"'SA19'!C30","v":0},{"$f":"'SA19'!D30","v":0},{"$f":"'SA19'!E30","v":0},{"$f":"'SA19'!F30","v":20584000},{"$f":"'SA19'!G30","v":96716218.310000002},{"$f":"'SA19'!H30","v":96716218.310000002},{"$f":"'SA19'!I30","v":104549000},{"$f":"'SA19'!J30","v":102594000},{"$f":"'SA19'!K30","v":107207000}]
["Provincial Government:"]
["Balance unspent at beginning of the year"]
[{"$f":"A31","v":"Current year receipts"},null,{"$f":"'SA18'!C35","v":0},{"$f":"'SA18'!D35","v":0},{"$f":"'SA18'!E35","v":0},{"$f":"'SA18'!F35","v":0},{"$f":"'SA18'!G35","v":0},{"$f":"'SA18'!H35","v":0},{"$f":"'SA18'!I35","v":0},{"$f":"'SA18'!J35","v":0},{"$f":"'SA18'!K35","v":0}]
[{"$f":"A32","v":"Conditions met - transferred to revenue"},null,{"$f":"C35+C36-C38","v":0},0,0,0,0,0,0,0,0]
[{"$f":"A33","v":"Conditions still to be met - transferred to liabilities"},null,{"$f":"-'SA19'!C49","v":0},{"$f":"-'SA19'!D49","v":0},{"$f":"-'SA19'!E49","v":0},{"$f":"-'SA19'!F49","v":0},{"$f":"-'SA19'!G49","v":0},{"$f":"-'SA19'!H49","v":0},{"$f":"-'SA19'!I49","v":0},{"$f":"-'SA19'!J49","v":0},{"$f":"-'SA19'!K49","v":0}]
["District Municipality:"]
[{"$f":"A35","v":"Balance unspent at beginning of the year"}]
[{"$f":"A36","v":"Current year receipts"},null,{"$f":"'SA18'!C48","v":0},{"$f":"'SA18'!D48","v":0},{"$f":"'SA18'!E48","v":0},{"$f":"'SA18'!F48","v":0},{"$f":"'SA18'!G48","v":0},{"$f":"'SA18'!H48","v":0},{"$f":"'SA18'!I48","v":0},{"$f":"'SA18'!J48","v":0},{"$f":"'SA18'!K48","v":0}]
[{"$f":"A37","v":"Conditions met - transferred to revenue"},null,{"$f":"C40+C41-C43","v":0},0,0,0,0,0,0,0,0]
[{"$f":"A38","v":"Conditions still to be met - transferred to liabilities"},null,{"$f":"-'SA19'!C54","v":0},{"$f":"-'SA19'!D54","v":0},{"$f":"-'SA19'!E54","v":0},{"$f":"-'SA19'!F54","v":0},{"$f":"-'SA19'!G54","v":0},{"$f":"-'SA19'!H54","v":0},{"$f":"-'SA19'!I54","v":0},{"$f":"-'SA19'!J54","v":0},{"$f":"-'SA19'!K54","v":0}]
["Other grant providers:"]
[{"$f":"A35","v":"Balance unspent at beginning of the year"}]
[{"$f":"A36","v":"Current year receipts"},null,{"$f":"'SA18'!C53","v":0},{"$f":"'SA18'!D53","v":0},{"$f":"'SA18'!E53","v":0},{"$f":"'SA18'!F53","v":20584000},{"$f":"'SA18'!G53","v":96716218.310000002},{"$f":"'SA18'!H53","v":96716218.310000002},{"$f":"'SA18'!I53","v":104549000},{"$f":"'SA18'!J53","v":102594000},{"$f":"'SA18'!K53","v":107207000}]
[{"$f":"A37","v":"Conditions met - transferred to revenue"},null,{"$f":"C45+C46-C48","v":0},0,0,20584000,96716218.310000002,96716218.310000002,104549000,102594000,107207000]
[{"$f":"A38","v":"Conditions still to be met - transferred to liabilities"},null,{"$f":"-'SA19'!C59","v":0},{"$f":"-'SA19'!D59","v":0},{"$f":"-'SA19'!E59","v":0},{"$f":"-'SA19'!F59","v":0},{"$f":"-'SA19'!G59","v":0},{"$f":"-'SA19'!H59","v":0},{"$f":"-'SA19'!I59","v":0},{"$f":"-'SA19'!J59","v":0},{"$f":"-'SA19'!K59","v":0}]
["Total capital transfers and grants revenue",null,{"$f":"C32+C37+C42+C47","v":0},0,0,20584000,96716218.310000002,96716218.310000002,104549000,102594000,107207000]
["Total capital transfers and grants - CTBM",2,0,0,0,20584000,96716218.310000002,96716218.310000002,104549000,102594000,107207000]
[]
["TOTAL TRANSFERS AND GRANTS REVENUE",null,{"$f":"C25+C49","v":0},0,0,737860000,813992218.30999994,813992218.30999994,869253000,912934000,897377000]
["TOTAL TRANSFERS AND GRANTS - CTBM",null,{"$f":"C26+C50","v":0},{"$f":"D26+D50","v":0},0,-338054000,-261921781.69,-261921781.69,-277803000,-302576000,-287878000]
[{"$f":"head27a","v":"References"}]
["1. Total capital transfers and grants revenue must reconcile to Budgeted Financial Performance and Financial Position; total recurrent grants revenue must reconcile to Budgeted Financial Performance"]
["2. CTBM = conditions to be met"]
["3. National Treasury database will require this reconciliation for each transfer/grant"]
[]
["Check opex",null,{"$f":"C25-'A4-FinPerf RE'!C29","v":0},{"$f":"D25-'A4-FinPerf RE'!D29","v":0},{"$f":"E25-'A4-FinPerf RE'!E29","v":0},{"$f":"F25-'A4-FinPerf RE'!F29","v":717276000},{"$f":"G25-'A4-FinPerf RE'!G29","v":717276000},{"$f":"H25-'A4-FinPerf RE'!H29","v":717276000},{"$f":"I25-'A4-FinPerf RE'!J29","v":764704000},{"$f":"J25-'A4-FinPerf RE'!K29","v":810340000},{"$f":"K25-'A4-FinPerf RE'!L29","v":790170000}]
["Check capex",null,{"$f":"C49-'A5-Capex'!C70","v":-30495618},{"$f":"D49-'A5-Capex'!D70","v":-34691777},{"$f":"E49-'A5-Capex'!E70","v":-30495618},{"$f":"F49-'A5-Capex'!F70","v":-44952974},{"$f":"G49-'A5-Capex'!G70","v":21906881.310000002},{"$f":"H49-'A5-Capex'!H70","v":21906881.310000002},{"$f":"I49-'A5-Capex'!J70","v":36678562},{"$f":"J49-'A5-Capex'!K70","v":31677032},{"$f":"K49-'A5-Capex'!L70","v":33166852}]

{"sheet":"SA21","index":66,"n_rows":71,"n_cols":29,"rows_kept":71,"cut":false,"hidden":false,"merged":[[1,9,1,11],[1,5,1,8]]}
[{"$f":"muni&\" - \"& TableA21","v":"LIM331 Greater Giyani - Supporting Table SA21 Transfers and grants made by the municipality"}]
[{"$f":"desc","v":"Description"},{"$f":"head27","v":"Ref"},{"$f":"head1b","v":"2019/20"},{"$f":"head1A","v":"2020/21"},{"$f":"Head1","v":"2021/22"},{"$f":"Head2","v":"Current Year 2022/23"},null,null,null,{"$f":"Head3","v":"2023/24 Medium Term Revenue & Expenditure Framework"}]
["R thousand",null,{"$f":"Head5","v":"Audited Outcome"},{"$f":"Head5","v":"Audited Outcome"},{"$f":"Head5","v":"Audited Outcome"},{"$f":"Head6","v":"Original Budget"},{"$f":"Head7","v":"Adjusted Budget"},{"$f":"Head8","v":"Full Year Forecast"},{"$f":"Head5b","v":"Pre-audit outcome"},{"$f":"Head9","v":"Budget Year 2023/24"},{"$f":"Head10","v":"Budget Year +1 2024/25"},{"$f":"Head11","v":"Budget Year +2 2025/26"}]
[]
["Cash Transfers to other municipalities"]
["Insert description",1,{"$f":"SUMIFS(Sheet1!S71_PPPYearAmount,Sheet1!S71_A4SubCode,$AC:$AC)","v":0},{"$f":"SUMIFS(Sheet1!S71_PPYearAmount,Sheet1!S71_A4SubCode,$AC:$AC)","v":0},{"$f":"SUMIFS(Sheet1!S71_PYearAmount,Sheet1!S71_A4SubCode,$AC:$AC)","v":0},{"$f":"SUMIFS(Sheet1!S71_OriginalBudAmnt,Sheet1!S71_A4SubCode,$AC:$AC)","v":0},{"$f":"SUMIFS(Sheet1!S71_AdjustmentBudAmnt,Sheet1!S71_A4SubCode,$AC:$AC)","v":0},{"$f":"SUMIFS(Sheet1!S71_AdjustmentBudAmnt,Sheet1!S71_A4SubCode,$AC:$AC)","v":0},{"$f":"H6","v":0},{"$f":"SUMIFS(Sheet1!S71_ASBudgetAmount,Sheet1!S71_A4SubCode,$AC:$AC)","v":0},{"$f":"SUMIFS(Sheet1!S71_OY1BudgetAmount,Sheet1!S71_A4SubCode,$AC:$AC)","v":0},{"$f":"SUMIFS(Sheet1!S71_OY2BudgetAmount,Sheet1!S71_A4SubCode,$AC:$AC)","v":0},null,null,null,null,null,null,null,null,null,null,null,null,null,null,null,null,"28000101"]
[null,null,{"$f":"SUMIFS(Sheet1!S71_PPPYearAmount,Sheet1!S71_A4SubCode,$AC:$AC)","v":0},{"$f":"SUMIFS(Sheet1!S71_PPYearAmount,Sheet1!S71_A4SubCode,$AC:$AC)","v":0},{"$f":"SUMIFS(Sheet1!S71_PYearAmount,Sheet1!S71_A4SubCode,$AC:$AC)","v":0},{"$f":"SUMIFS(Sheet1!S71_OriginalBudAmnt,Sheet1!S71_A4SubCode,$AC:$AC)","v":0},{"$f":"SUMIFS(Sheet1!S71_AdjustmentBudAmnt,Sheet1!S71_A4SubCode,$AC:$AC)","v":0},{"$f":"SUMIFS(Sheet1!S71_AdjustmentBudAmnt,Sheet1!S71_A4SubCode,$AC:$AC)","v":0},{"$f":"H7","v":0},{"$f":"SUMIFS(Sheet1!S71_ASBudgetAmount,Sheet1!S71_A4SubCode,$AC:$AC)","v":0},{"$f":"SUMIFS(Sheet1!S71_OY1BudgetAmount,Sheet1!S71_A4SubCode,$AC:$AC)","v":0},{"$f":"SUMIFS(Sheet1!S71_OY2BudgetAmount,Sheet1!S71_A4SubCode,$AC:$AC)","v":0}]
[null,null,{"$f":"SUMIFS(Sheet1!S71_PPPYearAmount,Sheet1!S71_A4SubCode,$AC:$AC)","v":0},{"$f":"SUMIFS(Sheet1!S71_PPYearAmount,Sheet1!S71_A4SubCode,$AC:$AC)","v":0},{"$f":"SUMIFS(Sheet1!S71_PYearAmount,Sheet1!S71_A4SubCode,$AC:$AC)","v":0},{"$f":"SUMIFS(Sheet1!S71_OriginalBudAmnt,Sheet1!S71_A4SubCode,$AC:$AC)","v":0},{"$f":"SUMIFS(Sheet1!S71_AdjustmentBudAmnt,Sheet1!S71_A4SubCode,$AC:$AC)","v":0},{"$f":"SUMIFS(Sheet1!S71_AdjustmentBudAmnt,Sheet1!S71_A4SubCode,$AC:$AC)","v":0},0,{"$f":"SUMIFS(Sheet1!S71_ASBudgetAmount,Sheet1!S71_A4SubCode,$AC:$AC)","v":0},{"$f":"SUMIFS(Sheet1!S71_OY1BudgetAmount,Sheet1!S71_A4SubCode,$AC:$AC)","v":0},{"$f":"SUMIFS(Sheet1!S71_OY2BudgetAmount,Sheet1!S71_A4SubCode,$AC:$AC)","v":0}]
["Total Cash Transfers To Municipalities:",null,{"$f":"SUM(C6:C8)","v":0},{"$f":"SUM(D6:D8)","v":0},0,0,0,0,0,0,0,0]
[]
["Cash Transfers to Entities/Other External Mechanisms"]
[{"$f":"$A$6","v":"Insert description"},2,{"$f":"SUMIFS(Sheet1!S71_PPPYearAmount,Sheet1!S71_A4SubCode,$AC:$AC)","v":600000},{"$f":"SUMIFS(Sheet1!S71_PPYearAmount,Sheet1!S71_A4SubCode,$AC:$AC)","v":955000},{"$f":"SUMIFS(Sheet1!S71_PYearAmount,Sheet1!S71_A4SubCode,$AC:$AC)","v":600000},{"$f":"SUMIFS(Sheet1!S71_OriginalBudAmnt,Sheet1!S71_A4SubCode,$AC:$AC)","v":1000000},{"$f":"SUMIFS(Sheet1!S71_AdjustmentBudAmnt,Sheet1!S71_A4SubCode,$AC:$AC)","v":1200000},{"$f":"SUMIFS(Sheet1!S71_AdjustmentBudAmnt,Sheet1!S71_A4SubCode,$AC:$AC)","v":1200000},{"$f":"H12","v":1200000},{"$f":"SUMIFS(Sheet1!S71_ASBudgetAmount,Sheet1!S71_A4SubCode,$AC:$AC)","v":1500000},{"$f":"SUMIFS(Sheet1!S71_OY1BudgetAmount,Sheet1!S71_A4SubCode,$AC:$AC)","v":1600000},{"$f":"SUMIFS(Sheet1!S71_OY2BudgetAmount,Sheet1!S71_A4SubCode,$AC:$AC)","v":1700000},null,null,null,null,null,null,null,null,null,null,null,null,null,null,null,null,"28000102"]
[null,null,{"$f":"SUMIFS(Sheet1!S71_PPPYearAmount,Sheet1!S71_A4SubCode,$AC:$AC)","v":0},{"$f":"SUMIFS(Sheet1!S71_PPYearAmount,Sheet1!S71_A4SubCode,$AC:$AC)","v":0},{"$f":"SUMIFS(Sheet1!S71_PYearAmount,Sheet1!S71_A4SubCode,$AC:$AC)","v":0},{"$f":"SUMIFS(Sheet1!S71_OriginalBudAmnt,Sheet1!S71_A4SubCode,$AC:$AC)","v":0},{"$f":"SUMIFS(Sheet1!S71_AdjustmentBudAmnt,Sheet1!S71_A4SubCode,$AC:$AC)","v":0},{"$f":"SUMIFS(Sheet1!S71_AdjustmentBudAmnt,Sheet1!S71_A4SubCode,$AC:$AC)","v":0},0,{"$f":"SUMIFS(Sheet1!S71_ASBudgetAmount,Sheet1!S71_A4SubCode,$AC:$AC)","v":0},{"$f":"SUMIFS(Sheet1!S71_OY1BudgetAmount,Sheet1!S71_A4SubCode,$AC:$AC)","v":0},{"$f":"SUMIFS(Sheet1!S71_OY2BudgetAmount,Sheet1!S71_A4SubCode,$AC:$AC)","v":0}]
[null,null,{"$f":"SUMIFS(Sheet1!S71_PPPYearAmount,Sheet1!S71_A4SubCode,$AC:$AC)","v":0},{"$f":"SUMIFS(Sheet1!S71_PPYearAmount,Sheet1!S71_A4SubCode,$AC:$AC)","v":0},{"$f":"SUMIFS(Sheet1!S71_PYearAmount,Sheet1!S71_A4SubCode,$AC:$AC)","v":0},{"$f":"SUMIFS(Sheet1!S71_OriginalBudAmnt,Sheet1!S71_A4SubCode,$AC:$AC)","v":0},{"$f":"SUMIFS(Sheet1!S71_AdjustmentBudAmnt,Sheet1!S71_A4SubCode,$AC:$AC)","v":0},{"$f":"SUMIFS(Sheet1!S71_AdjustmentBudAmnt,Sheet1!S71_A4SubCode,$AC:$AC)","v":0},0,{"$f":"SUMIFS(Sheet1!S71_ASBudgetAmount,Sheet1!S71_A4SubCode,$AC:$AC)","v":0},{"$f":"SUMIFS(Sheet1!S71_OY1BudgetAmount,Sheet1!S71_A4SubCode,$AC:$AC)","v":0},{"$f":"SUMIFS(Sheet1!S71_OY2BudgetAmount,Sheet1!S71_A4SubCode,$AC:$AC)","v":0}]
["Total Cash Transfers To Entities/Ems'",null,{"$f":"SUM(C12:C14)","v":600000},{"$f":"SUM(D12:D14)","v":955000},600000,1000000,1200000,1200000,1200000,1500000,1600000,1700000]
[]
["Cash Transfers to other Organs of State"]
[{"$f":"$A$6","v":"Insert description"},3,{"$f":"SUMIFS(Sheet1!S71_PPPYearAmount,Sheet1!S71_A4SubCode,$AC:$AC)","v":0},{"$f":"SUMIFS(Sheet1!S71_PPYearAmount,Sheet1!S71_A4SubCode,$AC:$AC)","v":0},{"$f":"SUMIFS(Sheet1!S71_PYearAmount,Sheet1!S71_A4SubCode,$AC:$AC)","v":0},{"$f":"SUMIFS(Sheet1!S71_OriginalBudAmnt,Sheet1!S71_A4SubCode,$AC:$AC)","v":0},{"$f":"SUMIFS(Sheet1!S71_AdjustmentBudAmnt,Sheet1!S71_A4SubCode,$AC:$AC)","v":0},{"$f":"SUMIFS(Sheet1!S71_AdjustmentBudAmnt,Sheet1!S71_A4SubCode,$AC:$AC)","v":0},{"$f":"H18","v":0},{"$f":"SUMIFS(Sheet1!S71_ASBudgetAmount,Sheet1!S71_A4SubCode,$AC:$AC)","v":0},{"$f":"SUMIFS(Sheet1!S71_OY1BudgetAmount,Sheet1!S71_A4SubCode,$AC:$AC)","v":0},{"$f":"SUMIFS(Sheet1!S71_OY2BudgetAmount,Sheet1!S71_A4SubCode,$AC:$AC)","v":0},null,null,null,null,null,null,null,null,null,null,null,null,null,null,null,null,"28000103"]
[null,null,{"$f":"SUMIFS(Sheet1!S71_PPPYearAmount,Sheet1!S71_A4SubCode,$AC:$AC)","v":0},{"$f":"SUMIFS(Sheet1!S71_PPYearAmount,Sheet1!S71_A4SubCode,$AC:$AC)","v":0},{"$f":"SUMIFS(Sheet1!S71_PYearAmount,Sheet1!S71_A4SubCode,$AC:$AC)","v":0},{"$f":"SUMIFS(Sheet1!S71_OriginalBudAmnt,Sheet1!S71_A4SubCode,$AC:$AC)","v":0},{"$f":"SUMIFS(Sheet1!S71_AdjustmentBudAmnt,Sheet1!S71_A4SubCode,$AC:$AC)","v":0},{"$f":"SUMIFS(Sheet1!S71_AdjustmentBudAmnt,Sheet1!S71_A4SubCode,$AC:$AC)","v":0},0,{"$f":"SUMIFS(Sheet1!S71_ASBudgetAmount,Sheet1!S71_A4SubCode,$AC:$AC)","v":0},{"$f":"SUMIFS(Sheet1!S71_OY1BudgetAmount,Sheet1!S71_A4SubCode,$AC:$AC)","v":0},{"$f":"SUMIFS(Sheet1!S71_OY2BudgetAmount,Sheet1!S71_A4SubCode,$AC:$AC)","v":0}]
[null,null,{"$f":"SUMIFS(Sheet1!S71_PPPYearAmount,Sheet1!S71_A4SubCode,$AC:$AC)","v":0},{"$f":"SUMIFS(Sheet1!S71_PPYearAmount,Sheet1!S71_A4SubCode,$AC:$AC)","v":0},{"$f":"SUMIFS(Sheet1!S71_PYearAmount,Sheet1!S71_A4SubCode,$AC:$AC)","v":0},{"$f":"SUMIFS(Sheet1!S71_OriginalBudAmnt,Sheet1!S71_A4SubCode,$AC:$AC)","v":0},{"$f":"SUMIFS(Sheet1!S71_AdjustmentBudAmnt,Sheet1!S71_A4SubCode,$AC:$AC)","v":0},{"$f":"SUMIFS(Sheet1!S71_AdjustmentBudAmnt,Sheet1!S71_A4SubCode,$AC:$AC)","v":0},0,{"$f":"SUMIFS(Sheet1!S71_ASBudgetAmount,Sheet1!S71_A4SubCode,$AC:$AC)","v":0},{"$f":"SUMIFS(Sheet1!S71_OY1BudgetAmount,Sheet1!S71_A4SubCode,$AC:$AC)","v":0},{"$f":"SUMIFS(Sheet1!S71_OY2BudgetAmount,Sheet1!S71_A4SubCode,$AC:$AC)","v":0}]
["Total Cash Transfers To Other Organs Of State:",null,{"$f":"SUM(C18:C20)","v":0},{"$f":"SUM(D18:D20)","v":0},0,0,0,0,0,0,{"$f":"SUM(K18:K20)","v":0},0]
[]
["Cash Transfers to Organisations"]
[{"$f":"$A$6","v":"Insert description"},null,{"$f":"SUMIFS(Sheet1!S71_PPPYearAmount,Sheet1!S71_A4SubCode,$AC:$AC)","v":0},{"$f":"SUMIFS(Sheet1!S71_PPYearAmount,Sheet1!S71_A4SubCode,$AC:$AC)","v":0},{"$f":"SUMIFS(Sheet1!S71_PYearAmount,Sheet1!S71_A4SubCode,$AC:$AC)","v":0},{"$f":"SUMIFS(Sheet1!S71_OriginalBudAmnt,Sheet1!S71_A4SubCode,$AC:$AC)","v":0},{"$f":"SUMIFS(Sheet1!S71_AdjustmentBudAmnt,Sheet1!S71_A4SubCode,$AC:$AC)","v":0},{"$f":"SUMIFS(Sheet1!S71_AdjustmentBudAmnt,Sheet1!S71_A4SubCode,$AC:$AC)","v":0},{"$f":"H24","v":0},{"$f":"SUMIFS(Sheet1!S71_ASBudgetAmount,Sheet1!S71_A4SubCode,$AC:$AC)","v":0},{"$f":"SUMIFS(Sheet1!S71_OY1BudgetAmount,Sheet1!S71_A4SubCode,$AC:$AC)","v":0},{"$f":"SUMIFS(Sheet1!S71_OY2BudgetAmount,Sheet1!S71_A4SubCode,$AC:$AC)","v":0},null,null,null,null,null,null,null,null,null,null,null,null,null,null,null,null,"28000104"]
[null,null,{"$f":"SUMIFS(Sheet1!S71_PPPYearAmount,Sheet1!S71_A4SubCode,$AC:$AC)","v":0},{"$f":"SUMIFS(Sheet1!S71_PPYearAmount,Sheet1!S71_A4SubCode,$AC:$AC)","v":0},{"$f":"SUMIFS(Sheet1!S71_PYearAmount,Sheet1!S71_A4SubCode,$AC:$AC)","v":0},{"$f":"SUMIFS(Sheet1!S71_OriginalBudAmnt,Sheet1!S71_A4SubCode,$AC:$AC)","v":0},{"$f":"SUMIFS(Sheet1!S71_AdjustmentBudAmnt,Sheet1!S71_A4SubCode,$AC:$AC)","v":0},{"$f":"SUMIFS(Sheet1!S71_AdjustmentBudAmnt,Sheet1!S71_A4SubCode,$AC:$AC)","v":0},0,{"$f":"SUMIFS(Sheet1!S71_ASBudgetAmount,Sheet1!S71_A4SubCode,$AC:$AC)","v":0},{"$f":"SUMIFS(Sheet1!S71_OY1BudgetAmount,Sheet1!S71_A4SubCode,$AC:$AC)","v":0},{"$f":"SUMIFS(Sheet1!S71_OY2BudgetAmount,Sheet1!S71_A4SubCode,$AC:$AC)","v":0}]
["Total Cash Transfers To Organisations",null,{"$f":"SUM(C24:C25)","v":0},0,0,0,0,0,0,0,0,0]
[]
["Cash Transfers to Groups of Individuals"]
[{"$f":"$A$6","v":"Insert description"},null,{"$f":"SUMIFS(Sheet1!S71_PPPYearAmount,Sheet1!S71_A4SubCode,$AC:$AC)","v":0},{"$f":"SUMIFS(Sheet1!S71_PPYearAmount,Sheet1!S71_A4SubCode,$AC:$AC)","v":0},{"$f":"SUMIFS(Sheet1!S71_PYearAmount,Sheet1!S71_A4SubCode,$AC:$AC)","v":0},{"$f":"SUMIFS(Sheet1!S71_OriginalBudAmnt,Sheet1!S71_A4SubCode,$AC:$AC)","v":0},{"$f":"SUMIFS(Sheet1!S71_AdjustmentBudAmnt,Sheet1!S71_A4SubCode,$AC:$AC)","v":0},{"$f":"SUMIFS(Sheet1!S71_AdjustmentBudAmnt,Sheet1!S71_A4SubCode,$AC:$AC)","v":0},{"$f":"H29","v":0},{"$f":"SUMIFS(Sheet1!S71_ASBudgetAmount,Sheet1!S71_A4SubCode,$AC:$AC)","v":0},{"$f":"SUMIFS(Sheet1!S71_OY1BudgetAmount,Sheet1!S71_A4SubCode,$AC:$AC)","v":0},{"$f":"SUMIFS(Sheet1!S71_OY2BudgetAmount,Sheet1!S71_A4SubCode,$AC:$AC)","v":0},null,null,null,null,null,null,null,null,null,null,null,null,null,null,null,null,"28000105"]
[null,null,{"$f":"SUMIFS(Sheet1!S71_PPPYearAmount,Sheet1!S71_A4SubCode,$AC:$AC)","v":0},{"$f":"SUMIFS(Sheet1!S71_PPYearAmount,Sheet1!S71_A4SubCode,$AC:$AC)","v":0},{"$f":"SUMIFS(Sheet1!S71_PYearAmount,Sheet1!S71_A4SubCode,$AC:$AC)","v":0},{"$f":"SUMIFS(Sheet1!S71_OriginalBudAmnt,Sheet1!S71_A4SubCode,$AC:$AC)","v":0},{"$f":"SUMIFS(Sheet1!S71_AdjustmentBudAmnt,Sheet1!S71_A4SubCode,$AC:$AC)","v":0},{"$f":"SUMIFS(Sheet1!S71_AdjustmentBudAmnt,Sheet1!S71_A4SubCode,$AC:$AC)","v":0},0,{"$f":"SUMIFS(Sheet1!S71_ASBudgetAmount,Sheet1!S71_A4SubCode,$AC:$AC)","v":0},{"$f":"SUMIFS(Sheet1!S71_OY1BudgetAmount,Sheet1!S71_A4SubCode,$AC:$AC)","v":0},{"$f":"SUMIFS(Sheet1!S71_OY2BudgetAmount,Sheet1!S71_A4SubCode,$AC:$AC)","v":0}]
["Total Cash Transfers To Groups Of Individuals:",null,{"$f":"SUM(C29:C30)","v":0},0,0,0,0,0,0,0,0,0]
["TOTAL CASH TRANSFERS AND GRANTS",6,{"$f":"C9+C15+C21+C26+C31","v":600000},955000,600000,1000000,1200000,1200000,1200000,1500000,1600000,1700000]
[]
["Non-Cash Transfers to other municipalities"]
["Insert description",1,{"$f":"SUMIFS(Sheet1!S71_PPPYearAmount,Sheet1!S71_A4SubCode,$AC:$AC)","v":0},{"$f":"SUMIFS(Sheet1!S71_PPYearAmount,Sheet1!S71_A4SubCode,$AC:$AC)","v":0},{"$f":"SUMIFS(Sheet1!S71_PYearAmount,Sheet1!S71_A4SubCode,$AC:$AC)","v":0},{"$f":"SUMIFS(Sheet1!S71_OriginalBudAmnt,Sheet1!S71_A4SubCode,$AC:$AC)","v":0},{"$f":"SUMIFS(Sheet1!S71_AdjustmentBudAmnt,Sheet1!S71_A4SubCode,$AC:$AC)","v":0},{"$f":"SUMIFS(Sheet1!S71_AdjustmentBudAmnt,Sheet1!S71_A4SubCode,$AC:$AC)","v":0},{"$f":"H35","v":0},{"$f":"SUMIFS(Sheet1!S71_ASBudgetAmount,Sheet1!S71_A4SubCode,$AC:$AC)","v":0},{"$f":"SUMIFS(Sheet1!S71_OY1BudgetAmount,Sheet1!S71_A4SubCode,$AC:$AC)","v":0},{"$f":"SUMIFS(Sheet1!S71_OY2BudgetAmount,Sheet1!S71_A4SubCode,$AC:$AC)","v":0},null,null,null,null,null,null,null,null,null,null,null,null,null,null,null,null,"28000201"]
[null,null,{"$f":"SUMIFS(Sheet1!S71_PPPYearAmount,Sheet1!S71_A4SubCode,$AC:$AC)","v":0},{"$f":"SUMIFS(Sheet1!S71_PPYearAmount,Sheet1!S71_A4SubCode,$AC:$AC)","v":0},{"$f":"SUMIFS(Sheet1!S71_PYearAmount,Sheet1!S71_A4SubCode,$AC:$AC)","v":0},{"$f":"SUMIFS(Sheet1!S71_OriginalBudAmnt,Sheet1!S71_A4SubCode,$AC:$AC)","v":0},{"$f":"SUMIFS(Sheet1!S71_AdjustmentBudAmnt,Sheet1!S71_A4SubCode,$AC:$AC)","v":0},{"$f":"SUMIFS(Sheet1!S71_AdjustmentBudAmnt,Sheet1!S71_A4SubCode,$AC:$AC)","v":0},0,{"$f":"SUMIFS(Sheet1!S71_ASBudgetAmount,Sheet1!S71_A4SubCode,$AC:$AC)","v":0},{"$f":"SUMIFS(Sheet1!S71_OY1BudgetAmount,Sheet1!S71_A4SubCode,$AC:$AC)","v":0},{"$f":"SUMIFS(Sheet1!S71_OY2BudgetAmount,Sheet1!S71_A4SubCode,$AC:$AC)","v":0}]
[null,null,{"$f":"SUMIFS(Sheet1!S71_PPPYearAmount,Sheet1!S71_A4SubCode,$AC:$AC)","v":0},{"$f":"SUMIFS(Sheet1!S71_PPYearAmount,Sheet1!S71_A4SubCode,$AC:$AC)","v":0},{"$f":"SUMIFS(Sheet1!S71_PYearAmount,Sheet1!S71_A4SubCode,$AC:$AC)","v":0},{"$f":"SUMIFS(Sheet1!S71_OriginalBudAmnt,Sheet1!S71_A4SubCode,$AC:$AC)","v":0},{"$f":"SUMIFS(Sheet1!S71_AdjustmentBudAmnt,Sheet1!S71_A4SubCode,$AC:$AC)","v":0},{"$f":"SUMIFS(Sheet1!S71_AdjustmentBudAmnt,Sheet1!S71_A4SubCode,$AC:$AC)","v":0},0,{"$f":"SUMIFS(Sheet1!S71_ASBudgetAmount,Sheet1!S71_A4SubCode,$AC:$AC)","v":0},{"$f":"SUMIFS(Sheet1!S71_OY1BudgetAmount,Sheet1!S71_A4SubCode,$AC:$AC)","v":0},{"$f":"SUMIFS(Sheet1!S71_OY2BudgetAmount,Sheet1!S71_A4SubCode,$AC:$AC)","v":0}]
["Total Non-Cash Transfers To Municipalities:",null,{"$f":"SUM(C35:C37)","v":0},{"$f":"SUM(D35:D37)","v":0},0,0,0,0,0,0,0,0]
[]
["Non-Cash Transfers to Entities/Other External Mechanisms"]
[{"$f":"$A$6","v":"Insert description"},2,{"$f":"SUMIFS(Sheet1!S71_PPPYearAmount,Sheet1!S71_A4SubCode,$AC:$AC)","v":0},{"$f":"SUMIFS(Sheet1!S71_PPYearAmount,Sheet1!S71_A4SubCode,$AC:$AC)","v":0},{"$f":"SUMIFS(Sheet1!S71_PYearAmount,Sheet1!S71_A4SubCode,$AC:$AC)","v":0},{"$f":"SUMIFS(Sheet1!S71_OriginalBudAmnt,Sheet1!S71_A4SubCode,$AC:$AC)","v":0},{"$f":"SUMIFS(Sheet1!S71_AdjustmentBudAmnt,Sheet1!S71_A4SubCode,$AC:$AC)","v":0},{"$f":"SUMIFS(Sheet1!S71_AdjustmentBudAmnt,Sheet1!S71_A4SubCode,$AC:$AC)","v":0},{"$f":"SUMIFS(Sheet1!CD:CD,Sheet1!S71_A4SubCode,$AC:$AC)","v":0},{"$f":"SUMIFS(Sheet1!S71_ASBudgetAmount,Sheet1!S71_A4SubCode,$AC:$AC)","v":0},{"$f":"SUMIFS(Sheet1!S71_OY1BudgetAmount,Sheet1!S71_A4SubCode,$AC:$AC)","v":0},{"$f":"SUMIFS(Sheet1!S71_OY2BudgetAmount,Sheet1!S71_A4SubCode,$AC:$AC)","v":0},null,null,null,null,null,null,null,null,null,null,null,null,null,null,null,null,"28000202"]
[null,null,{"$f":"SUMIFS(Sheet1!S71_PPPYearAmount,Sheet1!S71_A4SubCode,$AC:$AC)","v":0},{"$f":"SUMIFS(Sheet1!S71_PPYearAmount,Sheet1!S71_A4SubCode,$AC:$AC)","v":0},{"$f":"SUMIFS(Sheet1!S71_PYearAmount,Sheet1!S71_A4SubCode,$AC:$AC)","v":0},{"$f":"SUMIFS(Sheet1!S71_OriginalBudAmnt,Sheet1!S71_A4SubCode,$AC:$AC)","v":0},{"$f":"SUMIFS(Sheet1!S71_AdjustmentBudAmnt,Sheet1!S71_A4SubCode,$AC:$AC)","v":0},{"$f":"SUMIFS(Sheet1!S71_AdjustmentBudAmnt,Sheet1!S71_A4SubCode,$AC:$AC)","v":0},{"$f":"SUMIFS(Sheet1!CD:CD,Sheet1!S71_A4SubCode,$AC:$AC)","v":0},{"$f":"SUMIFS(Sheet1!S71_ASBudgetAmount,Sheet1!S71_A4SubCode,$AC:$AC)","v":0},{"$f":"SUMIFS(Sheet1!S71_OY1BudgetAmount,Sheet1!S71_A4SubCode,$AC:$AC)","v":0},{"$f":"SUMIFS(Sheet1!S71_OY2BudgetAmount,Sheet1!S71_A4SubCode,$AC:$AC)","v":0}]
[null,null,{"$f":"SUMIFS(Sheet1!S71_PPPYearAmount,Sheet1!S71_A4SubCode,$AC:$AC)","v":0},{"$f":"SUMIFS(Sheet1!S71_PPYearAmount,Sheet1!S71_A4SubCode,$AC:$AC)","v":0},{"$f":"SUMIFS(Sheet1!S71_PYearAmount,Sheet1!S71_A4SubCode,$AC:$AC)","v":0},{"$f":"SUMIFS(Sheet1!S71_OriginalBudAmnt,Sheet1!S71_A4SubCode,$AC:$AC)","v":0},{"$f":"SUMIFS(Sheet1!S71_AdjustmentBudAmnt,Sheet1!S71_A4SubCode,$AC:$AC)","v":0},{"$f":"SUMIFS(Sheet1!S71_AdjustmentBudAmnt,Sheet1!S71_A4SubCode,$AC:$AC)","v":0},{"$f":"SUMIFS(Sheet1!CD:CD,Sheet1!S71_A4SubCode,$AC:$AC)","v":0},{"$f":"SUMIFS(Sheet1!S71_ASBudgetAmount,Sheet1!S71_A4SubCode,$AC:$AC)","v":0},{"$f":"SUMIFS(Sheet1!S71_OY1BudgetAmount,Sheet1!S71_A4SubCode,$AC:$AC)","v":0},{"$f":"SUMIFS(Sheet1!S71_OY2BudgetAmount,Sheet1!S71_A4SubCode,$AC:$AC)","v":0}]
["Total Non-Cash Transfers To Entities/Ems'",null,{"$f":"SUM(C41:C43)","v":0},{"$f":"SUM(D41:D43)","v":0},0,0,0,0,0,0,0,0]
[]
["Non-Cash Transfers to other Organs of State"]
[{"$f":"$A$6","v":"Insert description"},3,{"$f":"SUMIFS(Sheet1!S71_PPPYearAmount,Sheet1!S71_A4SubCode,$AC:$AC)","v":0},{"$f":"SUMIFS(Sheet1!S71_PPYearAmount,Sheet1!S71_A4SubCode,$AC:$AC)","v":0},{"$f":"SUMIFS(Sheet1!S71_PYearAmount,Sheet1!S71_A4SubCode,$AC:$AC)","v":0},{"$f":"SUMIFS(Sheet1!S71_OriginalBudAmnt,Sheet1!S71_A4SubCode,$AC:$AC)","v":0},{"$f":"SUMIFS(Sheet1!S71_AdjustmentBudAmnt,Sheet1!S71_A4SubCode,$AC:$AC)","v":0},{"$f":"SUMIFS(Sheet1!S71_AdjustmentBudAmnt,Sheet1!S71_A4SubCode,$AC:$AC)","v":0},{"$f":"SUMIFS(Sheet1!CD:CD,Sheet1!S71_A4SubCode,$AC:$AC)","v":0},{"$f":"SUMIFS(Sheet1!S71_ASBudgetAmount,Sheet1!S71_A4SubCode,$AC:$AC)","v":0},{"$f":"SUMIFS(Sheet1!S71_OY1BudgetAmount,Sheet1!S71_A4SubCode,$AC:$AC)","v":0},{"$f":"SUMIFS(Sheet1!S71_OY2BudgetAmount,Sheet1!S71_A4SubCode,$AC:$AC)","v":0},null,null,null,null,null,null,null,null,null,null,null,null,null,null,null,null,"28000203"]
[null,null,{"$f":"SUMIFS(Sheet1!S71_PPPYearAmount,Sheet1!S71_A4SubCode,$AC:$AC)","v":0},{"$f":"SUMIFS(Sheet1!S71_PPYearAmount,Sheet1!S71_A4SubCode,$AC:$AC)","v":0},{"$f":"SUMIFS(Sheet1!S71_PYearAmount,Sheet1!S71_A4SubCode,$AC:$AC)","v":0},{"$f":"SUMIFS(Sheet1!S71_OriginalBudAmnt,Sheet1!S71_A4SubCode,$AC:$AC)","v":0},{"$f":"SUMIFS(Sheet1!S71_AdjustmentBudAmnt,Sheet1!S71_A4SubCode,$AC:$AC)","v":0},{"$f":"SUMIFS(Sheet1!S71_AdjustmentBudAmnt,Sheet1!S71_A4SubCode,$AC:$AC)","v":0},{"$f":"SUMIFS(Sheet1!CD:CD,Sheet1!S71_A4SubCode,$AC:$AC)","v":0},{"$f":"SUMIFS(Sheet1!S71_ASBudgetAmount,Sheet1!S71_A4SubCode,$AC:$AC)","v":0},{"$f":"SUMIFS(Sheet1!S71_OY1BudgetAmount,Sheet1!S71_A4SubCode,$AC:$AC)","v":0},{"$f":"SUMIFS(Sheet1!S71_OY2BudgetAmount,Sheet1!S71_A4SubCode,$AC:$AC)","v":0}]
[null,null,{"$f":"SUMIFS(Sheet1!S71_PPPYearAmount,Sheet1!S71_A4SubCode,$AC:$AC)","v":0},{"$f":"SUMIFS(Sheet1!S71_PPYearAmount,Sheet1!S71_A4SubCode,$AC:$AC)","v":0},{"$f":"SUMIFS(Sheet1!S71_PYearAmount,Sheet1!S71_A4SubCode,$AC:$AC)","v":0},{"$f":"SUMIFS(Sheet1!S71_OriginalBudAmnt,Sheet1!S71_A4SubCode,$AC:$AC)","v":0},{"$f":"SUMIFS(Sheet1!S71_AdjustmentBudAmnt,Sheet1!S71_A4SubCode,$AC:$AC)","v":0},{"$f":"SUMIFS(Sheet1!S71_AdjustmentBudAmnt,Sheet1!S71_A4SubCode,$AC:$AC)","v":0},{"$f":"SUMIFS(Sheet1!CD:CD,Sheet1!S71_A4SubCode,$AC:$AC)","v":0},{"$f":"SUMIFS(Sheet1!S71_ASBudgetAmount,Sheet1!S71_A4SubCode,$AC:$AC)","v":0},{"$f":"SUMIFS(Sheet1!S71_OY1BudgetAmount,Sheet1!S71_A4SubCode,$AC:$AC)","v":0},{"$f":"SUMIFS(Sheet1!S71_OY2BudgetAmount,Sheet1!S71_A4SubCode,$AC:$AC)","v":0}]
["Total Non-Cash Transfers To Other Organs Of State:",null,{"$f":"SUM(C47:C49)","v":0},{"$f":"SUM(D47:D49)","v":0},0,0,0,0,0,0,{"$f":"SUM(K47:K49)","v":0},{"$f":"SUM(L47:L49)","v":0}]
[]
["Non-Cash Grants to Organisations"]
[{"$f":"$A$6","v":"Insert description"},4,{"$f":"SUMIFS(Sheet1!S71_PPPYearAmount,Sheet1!S71_A4SubCode,$AC:$AC)","v":0},{"$f":"SUMIFS(Sheet1!S71_PPYearAmount,Sheet1!S71_A4SubCode,$AC:$AC)","v":0},{"$f":"SUMIFS(Sheet1!S71_PYearAmount,Sheet1!S71_A4SubCode,$AC:$AC)","v":0},{"$f":"SUMIFS(Sheet1!S71_OriginalBudAmnt,Sheet1!S71_A4SubCode,$AC:$AC)","v":0},{"$f":"SUMIFS(Sheet1!S71_AdjustmentBudAmnt,Sheet1!S71_A4SubCode,$AC:$AC)","v":0},{"$f":"SUMIFS(Sheet1!S71_AdjustmentBudAmnt,Sheet1!S71_A4SubCode,$AC:$AC)","v":0},{"$f":"SUMIFS(Sheet1!CD:CD,Sheet1!S71_A4SubCode,$AC:$AC)","v":0},{"$f":"SUMIFS(Sheet1!S71_ASBudgetAmount,Sheet1!S71_A4SubCode,$AC:$AC)","v":0},{"$f":"SUMIFS(Sheet1!S71_OY1BudgetAmount,Sheet1!S71_A4SubCode,$AC:$AC)","v":0},{"$f":"SUMIFS(Sheet1!S71_OY2BudgetAmount,Sheet1!S71_A4SubCode,$AC:$AC)","v":0},null,null,null,null,null,null,null,null,null,null,null,null,null,null,null,null,"28000204"]
[null,null,{"$f":"SUMIFS(Sheet1!S71_PPPYearAmount,Sheet1!S71_A4SubCode,$AC:$AC)","v":0},{"$f":"SUMIFS(Sheet1!S71_PPYearAmount,Sheet1!S71_A4SubCode,$AC:$AC)","v":0},{"$f":"SUMIFS(Sheet1!S71_PYearAmount,Sheet1!S71_A4SubCode,$AC:$AC)","v":0},{"$f":"SUMIFS(Sheet1!S71_OriginalBudAmnt,Sheet1!S71_A4SubCode,$AC:$AC)","v":0},{"$f":"SUMIFS(Sheet1!S71_AdjustmentBudAmnt,Sheet1!S71_A4SubCode,$AC:$AC)","v":0},{"$f":"SUMIFS(Sheet1!S71_AdjustmentBudAmnt,Sheet1!S71_A4SubCode,$AC:$AC)","v":0},{"$f":"SUMIFS(Sheet1!CD:CD,Sheet1!S71_A4SubCode,$AC:$AC)","v":0},{"$f":"SUMIFS(Sheet1!S71_ASBudgetAmount,Sheet1!S71_A4SubCode,$AC:$AC)","v":0},{"$f":"SUMIFS(Sheet1!S71_OY1BudgetAmount,Sheet1!S71_A4SubCode,$AC:$AC)","v":0},{"$f":"SUMIFS(Sheet1!S71_OY2BudgetAmount,Sheet1!S71_A4SubCode,$AC:$AC)","v":0}]
[null,null,{"$f":"SUMIFS(Sheet1!S71_PPPYearAmount,Sheet1!S71_A4SubCode,$AC:$AC)","v":0},{"$f":"SUMIFS(Sheet1!S71_PPYearAmount,Sheet1!S71_A4SubCode,$AC:$AC)","v":0},{"$f":"SUMIFS(Sheet1!S71_PYearAmount,Sheet1!S71_A4SubCode,$AC:$AC)","v":0},{"$f":"SUMIFS(Sheet1!S71_OriginalBudAmnt,Sheet1!S71_A4SubCode,$AC:$AC)","v":0},{"$f":"SUMIFS(Sheet1!S71_AdjustmentBudAmnt,Sheet1!S71_A4SubCode,$AC:$AC)","v":0},{"$f":"SUMIFS(Sheet1!S71_AdjustmentBudAmnt,Sheet1!S71_A4SubCode,$AC:$AC)","v":0},{"$f":"SUMIFS(Sheet1!CD:CD,Sheet1!S71_A4SubCode,$AC:$AC)","v":0},{"$f":"SUMIFS(Sheet1!S71_ASBudgetAmount,Sheet1!S71_A4SubCode,$AC:$AC)","v":0},{"$f":"SUMIFS(Sheet1!S71_OY1BudgetAmount,Sheet1!S71_A4SubCode,$AC:$AC)","v":0},{"$f":"SUMIFS(Sheet1!S71_OY2BudgetAmount,Sheet1!S71_A4SubCode,$AC:$AC)","v":0}]
["Total Non-Cash Grants To Organisations",null,{"$f":"SUM(C53:C55)","v":0},{"$f":"SUM(D53:D55)","v":0},0,0,0,0,0,0,{"$f":"SUM(K53:K55)","v":0},{"$f":"SUM(L53:L55)","v":0}]
[]
["Groups of Individuals"]
[{"$f":"$A$6","v":"Insert description"},5,{"$f":"SUMIFS(Sheet1!S71_PPPYearAmount,Sheet1!S71_A4SubCode,$AC:$AC)","v":0},{"$f":"SUMIFS(Sheet1!S71_PPYearAmount,Sheet1!S71_A4SubCode,$AC:$AC)","v":0},{"$f":"SUMIFS(Sheet1!S71_PYearAmount,Sheet1!S71_A4SubCode,$AC:$AC)","v":0},{"$f":"SUMIFS(Sheet1!S71_OriginalBudAmnt,Sheet1!S71_A4SubCode,$AC:$AC)","v":0},{"$f":"SUMIFS(Sheet1!S71_AdjustmentBudAmnt,Sheet1!S71_A4SubCode,$AC:$AC)","v":0},{"$f":"SUMIFS(Sheet1!S71_AdjustmentBudAmnt,Sheet1!S71_A4SubCode,$AC:$AC)","v":0},{"$f":"SUMIFS(Sheet1!CD:CD,Sheet1!S71_A4SubCode,$AC:$AC)","v":0},{"$f":"SUMIFS(Sheet1!S71_ASBudgetAmount,Sheet1!S71_A4SubCode,$AC:$AC)","v":0},{"$f":"SUMIFS(Sheet1!S71_OY1BudgetAmount,Sheet1!S71_A4SubCode,$AC:$AC)","v":0},{"$f":"SUMIFS(Sheet1!S71_OY2BudgetAmount,Sheet1!S71_A4SubCode,$AC:$AC)","v":0},null,null,null,null,null,null,null,null,null,null,null,null,null,null,null,null,"28000205"]
[null,null,{"$f":"SUMIFS(Sheet1!S71_PPPYearAmount,Sheet1!S71_A4SubCode,$AC:$AC)","v":0},{"$f":"SUMIFS(Sheet1!S71_PPYearAmount,Sheet1!S71_A4SubCode,$AC:$AC)","v":0},{"$f":"SUMIFS(Sheet1!S71_PYearAmount,Sheet1!S71_A4SubCode,$AC:$AC)","v":0},{"$f":"SUMIFS(Sheet1!S71_OriginalBudAmnt,Sheet1!S71_A4SubCode,$AC:$AC)","v":0},{"$f":"SUMIFS(Sheet1!S71_AdjustmentBudAmnt,Sheet1!S71_A4SubCode,$AC:$AC)","v":0},{"$f":"SUMIFS(Sheet1!S71_AdjustmentBudAmnt,Sheet1!S71_A4SubCode,$AC:$AC)","v":0},{"$f":"SUMIFS(Sheet1!CD:CD,Sheet1!S71_A4SubCode,$AC:$AC)","v":0},{"$f":"SUMIFS(Sheet1!S71_ASBudgetAmount,Sheet1!S71_A4SubCode,$AC:$AC)","v":0},{"$f":"SUMIFS(Sheet1!S71_OY1BudgetAmount,Sheet1!S71_A4SubCode,$AC:$AC)","v":0},{"$f":"SUMIFS(Sheet1!S71_OY2BudgetAmount,Sheet1!S71_A4SubCode,$AC:$AC)","v":0}]
[null,null,{"$f":"SUMIFS(Sheet1!S71_PPPYearAmount,Sheet1!S71_A4SubCode,$AC:$AC)","v":0},{"$f":"SUMIFS(Sheet1!S71_PPYearAmount,Sheet1!S71_A4SubCode,$AC:$AC)","v":0},{"$f":"SUMIFS(Sheet1!S71_PYearAmount,Sheet1!S71_A4SubCode,$AC:$AC)","v":0},{"$f":"SUMIFS(Sheet1!S71_OriginalBudAmnt,Sheet1!S71_A4SubCode,$AC:$AC)","v":0},{"$f":"SUMIFS(Sheet1!S71_AdjustmentBudAmnt,Sheet1!S71_A4SubCode,$AC:$AC)","v":0},{"$f":"SUMIFS(Sheet1!S71_AdjustmentBudAmnt,Sheet1!S71_A4SubCode,$AC:$AC)","v":0},{"$f":"SUMIFS(Sheet1!CD:CD,Sheet1!S71_A4SubCode,$AC:$AC)","v":0},{"$f":"SUMIFS(Sheet1!S71_ASBudgetAmount,Sheet1!S71_A4SubCode,$AC:$AC)","v":0},{"$f":"SUMIFS(Sheet1!S71_OY1BudgetAmount,Sheet1!S71_A4SubCode,$AC:$AC)","v":0},{"$f":"SUMIFS(Sheet1!S71_OY2BudgetAmount,Sheet1!S71_A4SubCode,$AC:$AC)","v":0}]
["Total Non-Cash Grants To Groups Of Individuals:",null,{"$f":"SUM(C59:C61)","v":0},0,0,0,0,0,0,0,0,0]
["TOTAL NON-CASH TRANSFERS AND GRANTS",null,{"$f":"C38+C44+C50+C56+C62","v":0},0,0,0,0,0,0,0,0,0]
["TOTAL TRANSFERS AND GRANTS",6,{"$f":"C32+C63","v":600000},{"$f":"D32+D63","v":955000},600000,1000000,1200000,1200000,1200000,1500000,1600000,1700000]
[{"$f":"head27a","v":"References"}]
["1. Insert description listed by municipal name and demarcation code of recipient"]
["2. Insert description of each entity or external mechanism (an external mechanism may be provided with resources to ensure a minimum level of service)"]
["3. Insert description of each Organ of State (e.g. transfer to electricity provider to compensate for FBS provided)"]
["4. Insert description of each other organisation (e.g. charity)"]
["5 Insert description of each other organisation (e.g. the aged, child-headed households)"]
["6. All descriptions should separate transfers for 'capital purposes' and 'operating purposes'"]

{"sheet":"SA22","index":67,"n_rows":140,"n_cols":30,"rows_kept":140,"cut":false,"hidden":false,"merged":[[1,5,1,7],[1,8,1,10]]}
[{"$f":"muni&\" - \"&TableA22","v":"LIM331 Greater Giyani - Supporting Table SA22 Summary councillor and staff benefits"}]
["Summary of Employee and Councillor remuneration",{"$f":"head27","v":"Ref"},{"$f":"head1b","v":"2019/20"},{"$f":"head1A","v":"2020/21"},{"$f":"Head1","v":"2021/22"},{"$f":"Head2","v":"Current Year 2022/23"},null,null,{"$f":"Head3","v":"2023/24 Medium Term Revenue & Expenditure Framework"}]
["R thousand",null,{"$f":"Head5","v":"Audited Outcome"},{"$f":"Head5","v":"Audited Outcome"},{"$f":"Head5","v":"Audited Outcome"},{"$f":"Head6","v":"Original Budget"},{"$f":"Head7","v":"Adjusted Budget"},{"$f":"Head8","v":"Full Year Forecast"},{"$f":"Head9","v":"Budget Year 2023/24"},{"$f":"Head10","v":"Budget Year +1 2024/25"},{"$f":"Head11","v":"Budget Year +2 2025/26"}]
[null,1,"A","B","C","D","E","F","G","H","I"]
["Councillors (Political Office Bearers plus Other)"]
["Basic Salaries and Wages",null,{"$f":"SUMIFS(Sheet1!S71_PPPYearAmount,Sheet1!S71_A4SubCode,$AC:$AC)","v":15789870},{"$f":"SUMIFS(Sheet1!S71_PPYearAmount,Sheet1!S71_A4SubCode,$AC:$AC)","v":15658628},{"$f":"SUMIFS(Sheet1!S71_PYearAmount,Sheet1!S71_A4SubCode,$AC:$AC)","v":15856410},{"$f":"SUMIFS(Sheet1!S71_OriginalBudAmnt,Sheet1!S71_A4SubCode,$AC:$AC)","v":15951385},{"$f":"SUMIFS(Sheet1!S71_AdjustmentBudAmnt,Sheet1!S71_A4SubCode,$AC:$AC)","v":16943962},{"$f":"SUMIFS(Sheet1!S71_AdjustmentBudAmnt,Sheet1!S71_A4SubCode,$AC:$AC)","v":16943962},{"$f":"SUMIFS(Sheet1!S71_ASBudgetAmount,Sheet1!S71_A4SubCode,$AC:$AC)","v":16492580},{"$f":"SUMIFS(Sheet1!S71_OY1BudgetAmount,Sheet1!S71_A4SubCode,$AC:$AC)","v":17300716},{"$f":"SUMIFS(Sheet1!S71_OY2BudgetAmount,Sheet1!S71_A4SubCode,$AC:$AC)","v":18113850},null,null,null,null,null,null,null,null,null,null,null,null,null,null,null,null,null,210001]
["Pension and UIF Contributions",null,{"$f":"SUMIFS(Sheet1!S71_PPPYearAmount,Sheet1!S71_A4SubCode,$AC:$AC)","v":0},{"$f":"SUMIFS(Sheet1!S71_PPYearAmount,Sheet1!S71_A4SubCode,$AC:$AC)","v":0},{"$f":"SUMIFS(Sheet1!S71_PYearAmount,Sheet1!S71_A4SubCode,$AC:$AC)","v":0},{"$f":"SUMIFS(Sheet1!S71_OriginalBudAmnt,Sheet1!S71_A4SubCode,$AC:$AC)","v":0},{"$f":"SUMIFS(Sheet1!S71_AdjustmentBudAmnt,Sheet1!S71_A4SubCode,$AC:$AC)","v":0},{"$f":"SUMIFS(Sheet1!S71_AdjustmentBudAmnt,Sheet1!S71_A4SubCode,$AC:$AC)","v":0},{"$f":"SUMIFS(Sheet1!S71_ASBudgetAmount,Sheet1!S71_A4SubCode,$AC:$AC)","v":0},{"$f":"SUMIFS(Sheet1!S71_OY1BudgetAmount,Sheet1!S71_A4SubCode,$AC:$AC)","v":0},{"$f":"SUMIFS(Sheet1!S71_OY2BudgetAmount,Sheet1!S71_A4SubCode,$AC:$AC)","v":0},null,null,null,null,null,null,null,null,null,null,null,null,null,null,null,null,null,210002]
["Medical Aid Contributions",null,{"$f":"SUMIFS(Sheet1!S71_PPPYearAmount,Sheet1!S71_A4SubCode,$AC:$AC)","v":0},{"$f":"SUMIFS(Sheet1!S71_PPYearAmount,Sheet1!S71_A4SubCode,$AC:$AC)","v":0},{"$f":"SUMIFS(Sheet1!S71_PYearAmount,Sheet1!S71_A4SubCode,$AC:$AC)","v":0},{"$f":"SUMIFS(Sheet1!S71_OriginalBudAmnt,Sheet1!S71_A4SubCode,$AC:$AC)","v":0},{"$f":"SUMIFS(Sheet1!S71_AdjustmentBudAmnt,Sheet1!S71_A4SubCode,$AC:$AC)","v":0},{"$f":"SUMIFS(Sheet1!S71_AdjustmentBudAmnt,Sheet1!S71_A4SubCode,$AC:$AC)","v":0},{"$f":"SUMIFS(Sheet1!S71_ASBudgetAmount,Sheet1!S71_A4SubCode,$AC:$AC)","v":0},{"$f":"SUMIFS(Sheet1!S71_OY1BudgetAmount,Sheet1!S71_A4SubCode,$AC:$AC)","v":0},{"$f":"SUMIFS(Sheet1!S71_OY2BudgetAmount,Sheet1!S71_A4SubCode,$AC:$AC)","v":0},null,null,null,null,null,null,null,null,null,null,null,null,null,null,null,null,null,210003]
["Motor Vehicle Allowance",null,{"$f":"SUMIFS(Sheet1!S71_PPPYearAmount,Sheet1!S71_A4SubCode,$AC:$AC)","v":5038139},{"$f":"SUMIFS(Sheet1!S71_PPYearAmount,Sheet1!S71_A4SubCode,$AC:$AC)","v":5214070},{"$f":"SUMIFS(Sheet1!S71_PYearAmount,Sheet1!S71_A4SubCode,$AC:$AC)","v":5252424},{"$f":"SUMIFS(Sheet1!S71_OriginalBudAmnt,Sheet1!S71_A4SubCode,$AC:$AC)","v":5320525},{"$f":"SUMIFS(Sheet1!S71_AdjustmentBudAmnt,Sheet1!S71_A4SubCode,$AC:$AC)","v":5310382},{"$f":"SUMIFS(Sheet1!S71_AdjustmentBudAmnt,Sheet1!S71_A4SubCode,$AC:$AC)","v":5310382},{"$f":"SUMIFS(Sheet1!S71_ASBudgetAmount,Sheet1!S71_A4SubCode,$AC:$AC)","v":5501046},{"$f":"SUMIFS(Sheet1!S71_OY1BudgetAmount,Sheet1!S71_A4SubCode,$AC:$AC)","v":5770597},{"$f":"SUMIFS(Sheet1!S71_OY2BudgetAmount,Sheet1!S71_A4SubCode,$AC:$AC)","v":6041816},null,null,null,null,null,null,null,null,null,null,null,null,null,null,null,null,null,210004]
["Cellphone Allowance",null,{"$f":"SUMIFS(Sheet1!S71_PPPYearAmount,Sheet1!S71_A4SubCode,$AC:$AC)","v":2738000},{"$f":"SUMIFS(Sheet1!S71_PPYearAmount,Sheet1!S71_A4SubCode,$AC:$AC)","v":2708400},{"$f":"SUMIFS(Sheet1!S71_PYearAmount,Sheet1!S71_A4SubCode,$AC:$AC)","v":2762036},{"$f":"SUMIFS(Sheet1!S71_OriginalBudAmnt,Sheet1!S71_A4SubCode,$AC:$AC)","v":2752800},{"$f":"SUMIFS(Sheet1!S71_AdjustmentBudAmnt,Sheet1!S71_A4SubCode,$AC:$AC)","v":2678400},{"$f":"SUMIFS(Sheet1!S71_AdjustmentBudAmnt,Sheet1!S71_A4SubCode,$AC:$AC)","v":2678400},{"$f":"SUMIFS(Sheet1!S71_ASBudgetAmount,Sheet1!S71_A4SubCode,$AC:$AC)","v":2898698},{"$f":"SUMIFS(Sheet1!S71_OY1BudgetAmount,Sheet1!S71_A4SubCode,$AC:$AC)","v":3040734},{"$f":"SUMIFS(Sheet1!S71_OY2BudgetAmount,Sheet1!S71_A4SubCode,$AC:$AC)","v":3183649},null,null,null,null,null,null,null,null,null,null,null,null,null,null,null,null,null,210005]
["Housing Allowances",null,{"$f":"SUMIFS(Sheet1!S71_PPPYearAmount,Sheet1!S71_A4SubCode,$AC:$AC)","v":0},{"$f":"SUMIFS(Sheet1!S71_PPYearAmount,Sheet1!S71_A4SubCode,$AC:$AC)","v":0},{"$f":"SUMIFS(Sheet1!S71_PYearAmount,Sheet1!S71_A4SubCode,$AC:$AC)","v":0},{"$f":"SUMIFS(Sheet1!S71_OriginalBudAmnt,Sheet1!S71_A4SubCode,$AC:$AC)","v":0},{"$f":"SUMIFS(Sheet1!S71_AdjustmentBudAmnt,Sheet1!S71_A4SubCode,$AC:$AC)","v":0},{"$f":"SUMIFS(Sheet1!S71_AdjustmentBudAmnt,Sheet1!S71_A4SubCode,$AC:$AC)","v":0},{"$f":"SUMIFS(Sheet1!S71_ASBudgetAmount,Sheet1!S71_A4SubCode,$AC:$AC)","v":0},{"$f":"SUMIFS(Sheet1!S71_OY1BudgetAmount,Sheet1!S71_A4SubCode,$AC:$AC)","v":0},{"$f":"SUMIFS(Sheet1!S71_OY2BudgetAmount,Sheet1!S71_A4SubCode,$AC:$AC)","v":0},null,null,null,null,null,null,null,null,null,null,null,null,null,null,null,null,null,210006]
["Other benefits and allowances",null,{"$f":"SUMIFS(Sheet1!S71_PPPYearAmount,Sheet1!S71_A4SubCode,$AC:$AC)","v":0},{"$f":"SUMIFS(Sheet1!S71_PPYearAmount,Sheet1!S71_A4SubCode,$AC:$AC)","v":0},{"$f":"SUMIFS(Sheet1!S71_PYearAmount,Sheet1!S71_A4SubCode,$AC:$AC)","v":0},{"$f":"SUMIFS(Sheet1!S71_OriginalBudAmnt,Sheet1!S71_A4SubCode,$AC:$AC)","v":0},{"$f":"SUMIFS(Sheet1!S71_AdjustmentBudAmnt,Sheet1!S71_A4SubCode,$AC:$AC)","v":0},{"$f":"SUMIFS(Sheet1!S71_AdjustmentBudAmnt,Sheet1!S71_A4SubCode,$AC:$AC)","v":0},{"$f":"SUMIFS(Sheet1!S71_ASBudgetAmount,Sheet1!S71_A4SubCode,$AC:$AC)","v":0},{"$f":"SUMIFS(Sheet1!S71_OY1BudgetAmount,Sheet1!S71_A4SubCode,$AC:$AC)","v":0},{"$f":"SUMIFS(Sheet1!S71_OY2BudgetAmount,Sheet1!S71_A4SubCode,$AC:$AC)","v":0},null,null,null,null,null,null,null,null,null,null,null,null,null,null,null,null,null,210007]
["Sub Total - Councillors",null,{"$f":"SUM(C6:C12)","v":23566009},23581098,23870870,24024710,24932744,24932744,24892324,26112047,27339315]
["% increase",4,null,{"$f":"IF(ISERROR((D13/C13)-1),0,((D13/C13)-1))","v":6.4028660941284343E-4},{"$f":"IF(ISERROR((E13/D13)-1),0,((E13/D13)-1))","v":1.2288316684829548E-2},6.4446750369802075E-3,3.7795836037146646E-2,0,-1.6211613130107105E-3,4.8999964808428498E-2,4.7000068589031052E-2]
[]
["Senior Managers of the Municipality",2]
["Basic Salaries and Wages",null,{"$f":"SUMIFS(Sheet1!S71_PPPYearAmount,Sheet1!S71_SA1SubCode,$AC:$AC,Sheet1!S71_StaffCode,$AD:$AD)","v":3897673},{"$f":"SUMIFS(Sheet1!S71_PPYearAmount,Sheet1!S71_SA1SubCode,$AC:$AC,Sheet1!S71_StaffCode,$AD:$AD)","v":3914480},{"$f":"SUMIFS(Sheet1!S71_PYearAmount,Sheet1!S71_SA1SubCode,$AC:$AC,Sheet1!S71_StaffCode,$AD:$AD)","v":3659368},{"$f":"SUMIFS(Sheet1!S71_OriginalBudAmnt,Sheet1!S71_SA1SubCode,$AC:$AC,Sheet1!S71_StaffCode,$AD:$AD)","v":4855149},{"$f":"SUMIFS(Sheet1!S71_OriginalBudAmnt,Sheet1!S71_SA1SubCode,$AC:$AC,Sheet1!S71_StaffCode,$AD:$AD)","v":4855149},{"$f":"SUMIFS(Sheet1!S71_OriginalBudAmnt,Sheet1!S71_SA1SubCode,$AC:$AC,Sheet1!S71_StaffCode,$AD:$AD)","v":4855149},{"$f":"SUMIFS(Sheet1!S71_ASBudgetAmount,Sheet1!S71_SA1SubCode,$AC:$AC,Sheet1!S71_StaffCode,$AD:$AD)","v":5175221},{"$f":"SUMIFS(Sheet1!S71_OY1BudgetAmount,Sheet1!S71_SA1SubCode,$AC:$AC,Sheet1!S71_StaffCode,$AD:$AD)","v":5428808},{"$f":"SUMIFS(Sheet1!S71_OY2BudgetAmount,Sheet1!S71_SA1SubCode,$AC:$AC,Sheet1!S71_StaffCode,$AD:$AD)","v":5683961},null,null,null,null,null,null,null,null,null,null,null,null,null,null,null,null,null,2001,"SM"]
["Pension and UIF Contributions",null,{"$f":"SUMIFS(Sheet1!S71_PPPYearAmount,Sheet1!S71_SA1SubCode,$AC:$AC,Sheet1!S71_StaffCode,$AD:$AD)","v":238515},{"$f":"SUMIFS(Sheet1!S71_PPYearAmount,Sheet1!S71_SA1SubCode,$AC:$AC,Sheet1!S71_StaffCode,$AD:$AD)","v":297733},{"$f":"SUMIFS(Sheet1!S71_PYearAmount,Sheet1!S71_SA1SubCode,$AC:$AC,Sheet1!S71_StaffCode,$AD:$AD)","v":280835},{"$f":"SUMIFS(Sheet1!S71_OriginalBudAmnt,Sheet1!S71_SA1SubCode,$AC:$AC,Sheet1!S71_StaffCode,$AD:$AD)","v":157651},{"$f":"SUMIFS(Sheet1!S71_OriginalBudAmnt,Sheet1!S71_SA1SubCode,$AC:$AC,Sheet1!S71_StaffCode,$AD:$AD)","v":157651},{"$f":"SUMIFS(Sheet1!S71_OriginalBudAmnt,Sheet1!S71_SA1SubCode,$AC:$AC,Sheet1!S71_StaffCode,$AD:$AD)","v":157651},{"$f":"SUMIFS(Sheet1!S71_ASBudgetAmount,Sheet1!S71_SA1SubCode,$AC:$AC,Sheet1!S71_StaffCode,$AD:$AD)","v":287670},{"$f":"SUMIFS(Sheet1!S71_OY1BudgetAmount,Sheet1!S71_SA1SubCode,$AC:$AC,Sheet1!S71_StaffCode,$AD:$AD)","v":301769},{"$f":"SUMIFS(Sheet1!S71_OY2BudgetAmount,Sheet1!S71_SA1SubCode,$AC:$AC,Sheet1!S71_StaffCode,$AD:$AD)","v":315953},null,null,null,null,null,null,null,null,null,null,null,null,null,null,null,null,null,2002,"SM"]
["Medical Aid Contributions",null,{"$f":"SUMIFS(Sheet1!S71_PPPYearAmount,Sheet1!S71_SA1SubCode,$AC:$AC,Sheet1!S71_StaffCode,$AD:$AD)","v":34732},{"$f":"SUMIFS(Sheet1!S71_PPYearAmount,Sheet1!S71_SA1SubCode,$AC:$AC,Sheet1!S71_StaffCode,$AD:$AD)","v":0},{"$f":"SUMIFS(Sheet1!S71_PYearAmount,Sheet1!S71_SA1SubCode,$AC:$AC,Sheet1!S71_StaffCode,$AD:$AD)","v":0},{"$f":"SUMIFS(Sheet1!S71_OriginalBudAmnt,Sheet1!S71_SA1SubCode,$AC:$AC,Sheet1!S71_StaffCode,$AD:$AD)","v":183936},{"$f":"SUMIFS(Sheet1!S71_OriginalBudAmnt,Sheet1!S71_SA1SubCode,$AC:$AC,Sheet1!S71_StaffCode,$AD:$AD)","v":183936},{"$f":"SUMIFS(Sheet1!S71_OriginalBudAmnt,Sheet1!S71_SA1SubCode,$AC:$AC,Sheet1!S71_StaffCode,$AD:$AD)","v":183936},{"$f":"SUMIFS(Sheet1!S71_ASBudgetAmount,Sheet1!S71_SA1SubCode,$AC:$AC,Sheet1!S71_StaffCode,$AD:$AD)","v":0},{"$f":"SUMIFS(Sheet1!S71_OY1BudgetAmount,Sheet1!S71_SA1SubCode,$AC:$AC,Sheet1!S71_StaffCode,$AD:$AD)","v":0},{"$f":"SUMIFS(Sheet1!S71_OY2BudgetAmount,Sheet1!S71_SA1SubCode,$AC:$AC,Sheet1!S71_StaffCode,$AD:$AD)","v":0},null,null,null,null,null,null,null,null,null,null,null,null,null,null,null,null,null,2003,"SM"]
["Overtime",null,{"$f":"SUMIFS(Sheet1!S71_PPPYearAmount,Sheet1!S71_SA1SubCode,$AC:$AC,Sheet1!S71_StaffCode,$AD:$AD)","v":0},{"$f":"SUMIFS(Sheet1!S71_PPYearAmount,Sheet1!S71_SA1SubCode,$AC:$AC,Sheet1!S71_StaffCode,$AD:$AD)","v":0},{"$f":"SUMIFS(Sheet1!S71_PYearAmount,Sheet1!S71_SA1SubCode,$AC:$AC,Sheet1!S71_StaffCode,$AD:$AD)","v":0},{"$f":"SUMIFS(Sheet1!S71_OriginalBudAmnt,Sheet1!S71_SA1SubCode,$AC:$AC,Sheet1!S71_StaffCode,$AD:$AD)","v":0},{"$f":"SUMIFS(Sheet1!S71_OriginalBudAmnt,Sheet1!S71_SA1SubCode,$AC:$AC,Sheet1!S71_StaffCode,$AD:$AD)","v":0},{"$f":"SUMIFS(Sheet1!S71_OriginalBudAmnt,Sheet1!S71_SA1SubCode,$AC:$AC,Sheet1!S71_StaffCode,$AD:$AD)","v":0},{"$f":"SUMIFS(Sheet1!S71_ASBudgetAmount,Sheet1!S71_SA1SubCode,$AC:$AC,Sheet1!S71_StaffCode,$AD:$AD)","v":0},{"$f":"SUMIFS(Sheet1!S71_OY1BudgetAmount,Sheet1!S71_SA1SubCode,$AC:$AC,Sheet1!S71_StaffCode,$AD:$AD)","v":0},{"$f":"SUMIFS(Sheet1!S71_OY2BudgetAmount,Sheet1!S71_SA1SubCode,$AC:$AC,Sheet1!S71_StaffCode,$AD:$AD)","v":0},null,null,null,null,null,null,null,null,null,null,null,null,null,null,null,null,null,2004,"SM"]
["Performance Bonus",null,{"$f":"SUMIFS(Sheet1!S71_PPPYearAmount,Sheet1!S71_SA1SubCode,$AC:$AC,Sheet1!S71_StaffCode,$AD:$AD)","v":0},{"$f":"SUMIFS(Sheet1!S71_PPYearAmount,Sheet1!S71_SA1SubCode,$AC:$AC,Sheet1!S71_StaffCode,$AD:$AD)","v":0},{"$f":"SUMIFS(Sheet1!S71_PYearAmount,Sheet1!S71_SA1SubCode,$AC:$AC,Sheet1!S71_StaffCode,$AD:$AD)","v":0},{"$f":"SUMIFS(Sheet1!S71_OriginalBudAmnt,Sheet1!S71_SA1SubCode,$AC:$AC,Sheet1!S71_StaffCode,$AD:$AD)","v":0},{"$f":"SUMIFS(Sheet1!S71_OriginalBudAmnt,Sheet1!S71_SA1SubCode,$AC:$AC,Sheet1!S71_StaffCode,$AD:$AD)","v":0},{"$f":"SUMIFS(Sheet1!S71_OriginalBudAmnt,Sheet1!S71_SA1SubCode,$AC:$AC,Sheet1!S71_StaffCode,$AD:$AD)","v":0},{"$f":"SUMIFS(Sheet1!S71_ASBudgetAmount,Sheet1!S71_SA1SubCode,$AC:$AC,Sheet1!S71_StaffCode,$AD:$AD)","v":0},{"$f":"SUMIFS(Sheet1!S71_OY1BudgetAmount,Sheet1!S71_SA1SubCode,$AC:$AC,Sheet1!S71_StaffCode,$AD:$AD)","v":0},{"$f":"SUMIFS(Sheet1!S71_OY2BudgetAmount,Sheet1!S71_SA1SubCode,$AC:$AC,Sheet1!S71_StaffCode,$AD:$AD)","v":0},null,null,null,null,null,null,null,null,null,null,null,null,null,null,null,null,null,2005,"SM"]
["Motor Vehicle Allowance",3,{"$f":"SUMIFS(Sheet1!S71_PPPYearAmount,Sheet1!S71_SA1SubCode,$AC:$AC,Sheet1!S71_StaffCode,$AD:$AD)","v":1041120},{"$f":"SUMIFS(Sheet1!S71_PPYearAmount,Sheet1!S71_SA1SubCode,$AC:$AC,Sheet1!S71_StaffCode,$AD:$AD)","v":997752},{"$f":"SUMIFS(Sheet1!S71_PYearAmount,Sheet1!S71_SA1SubCode,$AC:$AC,Sheet1!S71_StaffCode,$AD:$AD)","v":875563},{"$f":"SUMIFS(Sheet1!S71_OriginalBudAmnt,Sheet1!S71_SA1SubCode,$AC:$AC,Sheet1!S71_StaffCode,$AD:$AD)","v":1172522},{"$f":"SUMIFS(Sheet1!S71_OriginalBudAmnt,Sheet1!S71_SA1SubCode,$AC:$AC,Sheet1!S71_StaffCode,$AD:$AD)","v":1172522},{"$f":"SUMIFS(Sheet1!S71_OriginalBudAmnt,Sheet1!S71_SA1SubCode,$AC:$AC,Sheet1!S71_StaffCode,$AD:$AD)","v":1172522},{"$f":"SUMIFS(Sheet1!S71_ASBudgetAmount,Sheet1!S71_SA1SubCode,$AC:$AC,Sheet1!S71_StaffCode,$AD:$AD)","v":976336},{"$f":"SUMIFS(Sheet1!S71_OY1BudgetAmount,Sheet1!S71_SA1SubCode,$AC:$AC,Sheet1!S71_StaffCode,$AD:$AD)","v":1024176},{"$f":"SUMIFS(Sheet1!S71_OY2BudgetAmount,Sheet1!S71_SA1SubCode,$AC:$AC,Sheet1!S71_StaffCode,$AD:$AD)","v":1072312},null,null,null,null,null,null,null,null,null,null,null,null,null,null,null,null,null,2006,"SM"]
["Cellphone Allowance",3,{"$f":"SUMIFS(Sheet1!S71_PPPYearAmount,Sheet1!S71_SA1SubCode,$AC:$AC,Sheet1!S71_StaffCode,$AD:$AD)","v":81200},{"$f":"SUMIFS(Sheet1!S71_PPYearAmount,Sheet1!S71_SA1SubCode,$AC:$AC,Sheet1!S71_StaffCode,$AD:$AD)","v":85400},{"$f":"SUMIFS(Sheet1!S71_PYearAmount,Sheet1!S71_SA1SubCode,$AC:$AC,Sheet1!S71_StaffCode,$AD:$AD)","v":77000},{"$f":"SUMIFS(Sheet1!S71_OriginalBudAmnt,Sheet1!S71_SA1SubCode,$AC:$AC,Sheet1!S71_StaffCode,$AD:$AD)","v":105721},{"$f":"SUMIFS(Sheet1!S71_OriginalBudAmnt,Sheet1!S71_SA1SubCode,$AC:$AC,Sheet1!S71_StaffCode,$AD:$AD)","v":105721},{"$f":"SUMIFS(Sheet1!S71_OriginalBudAmnt,Sheet1!S71_SA1SubCode,$AC:$AC,Sheet1!S71_StaffCode,$AD:$AD)","v":105721},{"$f":"SUMIFS(Sheet1!S71_ASBudgetAmount,Sheet1!S71_SA1SubCode,$AC:$AC,Sheet1!S71_StaffCode,$AD:$AD)","v":107857},{"$f":"SUMIFS(Sheet1!S71_OY1BudgetAmount,Sheet1!S71_SA1SubCode,$AC:$AC,Sheet1!S71_StaffCode,$AD:$AD)","v":113143},{"$f":"SUMIFS(Sheet1!S71_OY2BudgetAmount,Sheet1!S71_SA1SubCode,$AC:$AC,Sheet1!S71_StaffCode,$AD:$AD)","v":118459},null,null,null,null,null,null,null,null,null,null,null,null,null,null,null,null,null,2007,"SM"]
["Housing Allowances",3,{"$f":"SUMIFS(Sheet1!S71_PPPYearAmount,Sheet1!S71_SA1SubCode,$AC:$AC,Sheet1!S71_StaffCode,$AD:$AD)","v":0},{"$f":"SUMIFS(Sheet1!S71_PPYearAmount,Sheet1!S71_SA1SubCode,$AC:$AC,Sheet1!S71_StaffCode,$AD:$AD)","v":0},{"$f":"SUMIFS(Sheet1!S71_PYearAmount,Sheet1!S71_SA1SubCode,$AC:$AC,Sheet1!S71_StaffCode,$AD:$AD)","v":0},{"$f":"SUMIFS(Sheet1!S71_OriginalBudAmnt,Sheet1!S71_SA1SubCode,$AC:$AC,Sheet1!S71_StaffCode,$AD:$AD)","v":0},{"$f":"SUMIFS(Sheet1!S71_OriginalBudAmnt,Sheet1!S71_SA1SubCode,$AC:$AC,Sheet1!S71_StaffCode,$AD:$AD)","v":0},{"$f":"SUMIFS(Sheet1!S71_OriginalBudAmnt,Sheet1!S71_SA1SubCode,$AC:$AC,Sheet1!S71_StaffCode,$AD:$AD)","v":0},{"$f":"SUMIFS(Sheet1!S71_ASBudgetAmount,Sheet1!S71_SA1SubCode,$AC:$AC,Sheet1!S71_StaffCode,$AD:$AD)","v":0},{"$f":"SUMIFS(Sheet1!S71_OY1BudgetAmount,Sheet1!S71_SA1SubCode,$AC:$AC,Sheet1!S71_StaffCode,$AD:$AD)","v":0},{"$f":"SUMIFS(Sheet1!S71_OY2BudgetAmount,Sheet1!S71_SA1SubCode,$AC:$AC,Sheet1!S71_StaffCode,$AD:$AD)","v":0},null,null,null,null,null,null,null,null,null,null,null,null,null,null,null,null,null,2008,"SM"]
["Other benefits and allowances",3,{"$f":"SUMIFS(Sheet1!S71_PPPYearAmount,Sheet1!S71_SA1SubCode,$AC:$AC,Sheet1!S71_StaffCode,$AD:$AD)","v":0},{"$f":"SUMIFS(Sheet1!S71_PPYearAmount,Sheet1!S71_SA1SubCode,$AC:$AC,Sheet1!S71_StaffCode,$AD:$AD)","v":0},{"$f":"SUMIFS(Sheet1!S71_PYearAmount,Sheet1!S71_SA1SubCode,$AC:$AC,Sheet1!S71_StaffCode,$AD:$AD)","v":0},{"$f":"SUMIFS(Sheet1!S71_OriginalBudAmnt,Sheet1!S71_SA1SubCode,$AC:$AC,Sheet1!S71_StaffCode,$AD:$AD)","v":0},{"$f":"SUMIFS(Sheet1!S71_OriginalBudAmnt,Sheet1!S71_SA1SubCode,$AC:$AC,Sheet1!S71_StaffCode,$AD:$AD)","v":0},{"$f":"SUMIFS(Sheet1!S71_OriginalBudAmnt,Sheet1!S71_SA1SubCode,$AC:$AC,Sheet1!S71_StaffCode,$AD:$AD)","v":0},{"$f":"SUMIFS(Sheet1!S71_ASBudgetAmount,Sheet1!S71_SA1SubCode,$AC:$AC,Sheet1!S71_StaffCode,$AD:$AD)","v":0},{"$f":"SUMIFS(Sheet1!S71_OY1BudgetAmount,Sheet1!S71_SA1SubCode,$AC:$AC,Sheet1!S71_StaffCode,$AD:$AD)","v":0},{"$f":"SUMIFS(Sheet1!S71_OY2BudgetAmount,Sheet1!S71_SA1SubCode,$AC:$AC,Sheet1!S71_StaffCode,$AD:$AD)","v":0},null,null,null,null,null,null,null,null,null,null,null,null,null,null,null,null,null,2009,"SM"]
["Payments in lieu of leave",null,{"$f":"SUMIFS(Sheet1!S71_PPPYearAmount,Sheet1!S71_SA1SubCode,$AC:$AC,Sheet1!S71_StaffCode,$AD:$AD)","v":0},{"$f":"SUMIFS(Sheet1!S71_PPYearAmount,Sheet1!S71_SA1SubCode,$AC:$AC,Sheet1!S71_StaffCode,$AD:$AD)","v":0},{"$f":"SUMIFS(Sheet1!S71_PYearAmount,Sheet1!S71_SA1SubCode,$AC:$AC,Sheet1!S71_StaffCode,$AD:$AD)","v":167621},{"$f":"SUMIFS(Sheet1!S71_OriginalBudAmnt,Sheet1!S71_SA1SubCode,$AC:$AC,Sheet1!S71_StaffCode,$AD:$AD)","v":136700},{"$f":"SUMIFS(Sheet1!S71_OriginalBudAmnt,Sheet1!S71_SA1SubCode,$AC:$AC,Sheet1!S71_StaffCode,$AD:$AD)","v":136700},{"$f":"SUMIFS(Sheet1!S71_OriginalBudAmnt,Sheet1!S71_SA1SubCode,$AC:$AC,Sheet1!S71_StaffCode,$AD:$AD)","v":136700},{"$f":"SUMIFS(Sheet1!S71_ASBudgetAmount,Sheet1!S71_SA1SubCode,$AC:$AC,Sheet1!S71_StaffCode,$AD:$AD)","v":0},{"$f":"SUMIFS(Sheet1!S71_OY1BudgetAmount,Sheet1!S71_SA1SubCode,$AC:$AC,Sheet1!S71_StaffCode,$AD:$AD)","v":0},{"$f":"SUMIFS(Sheet1!S71_OY2BudgetAmount,Sheet1!S71_SA1SubCode,$AC:$AC,Sheet1!S71_StaffCode,$AD:$AD)","v":0},null,null,null,null,null,null,null,null,null,null,null,null,null,null,null,null,null,2010,"SM"]
["Long service awards",null,{"$f":"SUMIFS(Sheet1!S71_PPPYearAmount,Sheet1!S71_SA1SubCode,$AC:$AC,Sheet1!S71_StaffCode,$AD:$AD)","v":0},{"$f":"SUMIFS(Sheet1!S71_PPYearAmount,Sheet1!S71_SA1SubCode,$AC:$AC,Sheet1!S71_StaffCode,$AD:$AD)","v":0},{"$f":"SUMIFS(Sheet1!S71_PYearAmount,Sheet1!S71_SA1SubCode,$AC:$AC,Sheet1!S71_StaffCode,$AD:$AD)","v":0},{"$f":"SUMIFS(Sheet1!S71_OriginalBudAmnt,Sheet1!S71_SA1SubCode,$AC:$AC,Sheet1!S71_StaffCode,$AD:$AD)","v":0},{"$f":"SUMIFS(Sheet1!S71_OriginalBudAmnt,Sheet1!S71_SA1SubCode,$AC:$AC,Sheet1!S71_StaffCode,$AD:$AD)","v":0},{"$f":"SUMIFS(Sheet1!S71_OriginalBudAmnt,Sheet1!S71_SA1SubCode,$AC:$AC,Sheet1!S71_StaffCode,$AD:$AD)","v":0},{"$f":"SUMIFS(Sheet1!S71_ASBudgetAmount,Sheet1!S71_SA1SubCode,$AC:$AC,Sheet1!S71_StaffCode,$AD:$AD)","v":0},{"$f":"SUMIFS(Sheet1!S71_OY1BudgetAmount,Sheet1!S71_SA1SubCode,$AC:$AC,Sheet1!S71_StaffCode,$AD:$AD)","v":0},{"$f":"SUMIFS(Sheet1!S71_OY2BudgetAmount,Sheet1!S71_SA1SubCode,$AC:$AC,Sheet1!S71_StaffCode,$AD:$AD)","v":0},null,null,null,null,null,null,null,null,null,null,null,null,null,null,null,null,null,2011,"SM"]
["Post-retirement benefit obligations",6,{"$f":"SUMIFS(Sheet1!S71_PPPYearAmount,Sheet1!S71_SA1SubCode,$AC:$AC,Sheet1!S71_StaffCode,$AD:$AD)","v":0},{"$f":"SUMIFS(Sheet1!S71_PPYearAmount,Sheet1!S71_SA1SubCode,$AC:$AC,Sheet1!S71_StaffCode,$AD:$AD)","v":0},{"$f":"SUMIFS(Sheet1!S71_PYearAmount,Sheet1!S71_SA1SubCode,$AC:$AC,Sheet1!S71_StaffCode,$AD:$AD)","v":0},{"$f":"SUMIFS(Sheet1!S71_OriginalBudAmnt,Sheet1!S71_SA1SubCode,$AC:$AC,Sheet1!S71_StaffCode,$AD:$AD)","v":0},{"$f":"SUMIFS(Sheet1!S71_OriginalBudAmnt,Sheet1!S71_SA1SubCode,$AC:$AC,Sheet1!S71_StaffCode,$AD:$AD)","v":0},{"$f":"SUMIFS(Sheet1!S71_OriginalBudAmnt,Sheet1!S71_SA1SubCode,$AC:$AC,Sheet1!S71_StaffCode,$AD:$AD)","v":0},{"$f":"SUMIFS(Sheet1!S71_ASBudgetAmount,Sheet1!S71_SA1SubCode,$AC:$AC,Sheet1!S71_StaffCode,$AD:$AD)","v":0},{"$f":"SUMIFS(Sheet1!S71_OY1BudgetAmount,Sheet1!S71_SA1SubCode,$AC:$AC,Sheet1!S71_StaffCode,$AD:$AD)","v":0},{"$f":"SUMIFS(Sheet1!S71_OY2BudgetAmount,Sheet1!S71_SA1SubCode,$AC:$AC,Sheet1!S71_StaffCode,$AD:$AD)","v":0},null,null,null,null,null,null,null,null,null,null,null,null,null,null,null,null,null,2012,"SM"]
["Entertainment",null,{"$f":"SUMIFS(Sheet1!S71_PPPYearAmount,Sheet1!S71_SA1SubCode,$AC:$AC,Sheet1!S71_StaffCode,$AD:$AD)","v":0},{"$f":"SUMIFS(Sheet1!S71_PPYearAmount,Sheet1!S71_SA1SubCode,$AC:$AC,Sheet1!S71_StaffCode,$AD:$AD)","v":0},{"$f":"SUMIFS(Sheet1!S71_PYearAmount,Sheet1!S71_SA1SubCode,$AC:$AC,Sheet1!S71_StaffCode,$AD:$AD)","v":0},{"$f":"SUMIFS(Sheet1!S71_OriginalBudAmnt,Sheet1!S71_SA1SubCode,$AC:$AC,Sheet1!S71_StaffCode,$AD:$AD)","v":0},{"$f":"SUMIFS(Sheet1!S71_OriginalBudAmnt,Sheet1!S71_SA1SubCode,$AC:$AC,Sheet1!S71_StaffCode,$AD:$AD)","v":0},{"$f":"SUMIFS(Sheet1!S71_OriginalBudAmnt,Sheet1!S71_SA1SubCode,$AC:$AC,Sheet1!S71_StaffCode,$AD:$AD)","v":0},{"$f":"SUMIFS(Sheet1!S71_ASBudgetAmount,Sheet1!S71_SA1SubCode,$AC:$AC,Sheet1!S71_StaffCode,$AD:$AD)","v":0},{"$f":"SUMIFS(Sheet1!S71_OY1BudgetAmount,Sheet1!S71_SA1SubCode,$AC:$AC,Sheet1!S71_StaffCode,$AD:$AD)","v":0},{"$f":"SUMIFS(Sheet1!S71_OY2BudgetAmount,Sheet1!S71_SA1SubCode,$AC:$AC,Sheet1!S71_StaffCode,$AD:$AD)","v":0},null,null,null,null,null,null,null,null,null,null,null,null,null,null,null,null,null,2090,"SM"]
["Scarcity",null,{"$f":"SUMIFS(Sheet1!S71_PPPYearAmount,Sheet1!S71_SA1SubCode,$AC:$AC,Sheet1!S71_StaffCode,$AD:$AD)","v":200098},{"$f":"SUMIFS(Sheet1!S71_PPYearAmount,Sheet1!S71_SA1SubCode,$AC:$AC,Sheet1!S71_StaffCode,$AD:$AD)","v":213042},{"$f":"SUMIFS(Sheet1!S71_PYearAmount,Sheet1!S71_SA1SubCode,$AC:$AC,Sheet1!S71_StaffCode,$AD:$AD)","v":189960},{"$f":"SUMIFS(Sheet1!S71_OriginalBudAmnt,Sheet1!S71_SA1SubCode,$AC:$AC,Sheet1!S71_StaffCode,$AD:$AD)","v":258411},{"$f":"SUMIFS(Sheet1!S71_OriginalBudAmnt,Sheet1!S71_SA1SubCode,$AC:$AC,Sheet1!S71_StaffCode,$AD:$AD)","v":258411},{"$f":"SUMIFS(Sheet1!S71_OriginalBudAmnt,Sheet1!S71_SA1SubCode,$AC:$AC,Sheet1!S71_StaffCode,$AD:$AD)","v":258411},{"$f":"SUMIFS(Sheet1!S71_ASBudgetAmount,Sheet1!S71_SA1SubCode,$AC:$AC,Sheet1!S71_StaffCode,$AD:$AD)","v":310148},{"$f":"SUMIFS(Sheet1!S71_OY1BudgetAmount,Sheet1!S71_SA1SubCode,$AC:$AC,Sheet1!S71_StaffCode,$AD:$AD)","v":325345},{"$f":"SUMIFS(Sheet1!S71_OY2BudgetAmount,Sheet1!S71_SA1SubCode,$AC:$AC,Sheet1!S71_StaffCode,$AD:$AD)","v":340635},null,null,null,null,null,null,null,null,null,null,null,null,null,null,null,null,null,2014,"SM"]
["Acting and post related allowance",null,{"$f":"SUMIFS(Sheet1!S71_PPPYearAmount,Sheet1!S71_SA1SubCode,$AC:$AC,Sheet1!S71_StaffCode,$AD:$AD)","v":19855},{"$f":"SUMIFS(Sheet1!S71_PPYearAmount,Sheet1!S71_SA1SubCode,$AC:$AC,Sheet1!S71_StaffCode,$AD:$AD)","v":0},{"$f":"SUMIFS(Sheet1!S71_PYearAmount,Sheet1!S71_SA1SubCode,$AC:$AC,Sheet1!S71_StaffCode,$AD:$AD)","v":7150},{"$f":"SUMIFS(Sheet1!S71_OriginalBudAmnt,Sheet1!S71_SA1SubCode,$AC:$AC,Sheet1!S71_StaffCode,$AD:$AD)","v":0},{"$f":"SUMIFS(Sheet1!S71_OriginalBudAmnt,Sheet1!S71_SA1SubCode,$AC:$AC,Sheet1!S71_StaffCode,$AD:$AD)","v":0},{"$f":"SUMIFS(Sheet1!S71_OriginalBudAmnt,Sheet1!S71_SA1SubCode,$AC:$AC,Sheet1!S71_StaffCode,$AD:$AD)","v":0},{"$f":"SUMIFS(Sheet1!S71_ASBudgetAmount,Sheet1!S71_SA1SubCode,$AC:$AC,Sheet1!S71_StaffCode,$AD:$AD)","v":320901},{"$f":"SUMIFS(Sheet1!S71_OY1BudgetAmount,Sheet1!S71_SA1SubCode,$AC:$AC,Sheet1!S71_StaffCode,$AD:$AD)","v":336625},{"$f":"SUMIFS(Sheet1!S71_OY2BudgetAmount,Sheet1!S71_SA1SubCode,$AC:$AC,Sheet1!S71_StaffCode,$AD:$AD)","v":352447},null,null,null,null,null,null,null,null,null,null,null,null,null,null,null,null,null,2015,"SM"]
["In kind benefits",null,{"$f":"SUMIFS(Sheet1!S71_PPPYearAmount,Sheet1!S71_SA1SubCode,$AC:$AC,Sheet1!S71_StaffCode,$AD:$AD)","v":0},{"$f":"SUMIFS(Sheet1!S71_PPYearAmount,Sheet1!S71_SA1SubCode,$AC:$AC,Sheet1!S71_StaffCode,$AD:$AD)","v":0},{"$f":"SUMIFS(Sheet1!S71_PYearAmount,Sheet1!S71_SA1SubCode,$AC:$AC,Sheet1!S71_StaffCode,$AD:$AD)","v":0},{"$f":"SUMIFS(Sheet1!S71_OriginalBudAmnt,Sheet1!S71_SA1SubCode,$AC:$AC,Sheet1!S71_StaffCode,$AD:$AD)","v":0},{"$f":"SUMIFS(Sheet1!S71_OriginalBudAmnt,Sheet1!S71_SA1SubCode,$AC:$AC,Sheet1!S71_StaffCode,$AD:$AD)","v":0},{"$f":"SUMIFS(Sheet1!S71_OriginalBudAmnt,Sheet1!S71_SA1SubCode,$AC:$AC,Sheet1!S71_StaffCode,$AD:$AD)","v":0},{"$f":"SUMIFS(Sheet1!S71_ASBudgetAmount,Sheet1!S71_SA1SubCode,$AC:$AC,Sheet1!S71_StaffCode,$AD:$AD)","v":0},{"$f":"SUMIFS(Sheet1!S71_OY1BudgetAmount,Sheet1!S71_SA1SubCode,$AC:$AC,Sheet1!S71_StaffCode,$AD:$AD)","v":0},{"$f":"SUMIFS(Sheet1!S71_OY2BudgetAmount,Sheet1!S71_SA1SubCode,$AC:$AC,Sheet1!S71_StaffCode,$AD:$AD)","v":0},null,null,null,null,null,null,null,null,null,null,null,null,null,null,null,null,null,2016,"SM"]
["Sub Total - Senior Managers of Municipality",null,{"$f":"SUM(C17:C28)","v":5293240},{"$f":"SUM(D17:D28)","v":5295365},5060387,6611679,6611679,6611679,6547084,6867896,7190685]
[{"$f":"$A$14","v":"% increase"},{"$f":"$B$14","v":4},null,{"$f":"IF(ISERROR((D33/C33)-1),0,((D33/C33)-1))","v":4.0145544127989652E-4},{"$f":"IF(ISERROR((E33/D33)-1),0,((E33/D33)-1))","v":-4.4374278260327693E-2},0.30655600055885057,0,0,-9.7698330484586871E-3,4.9000745980958937E-2,4.6999692482239119E-2]
[]
["Other Municipal Staff"]
["Basic Salaries and Wages",null,38137495,93174705,96896616,119207190,95447613,95447613,124769531,125975046,131758196,null,null,null,null,null,null,null,null,null,null,null,null,null,null,null,null,null,2001,"MS"]
["Pension and UIF Contributions",null,{"$f":"SUMIFS(Sheet1!S71_PPPYearAmount,Sheet1!S71_SA1SubCode,$AC:$AC,Sheet1!S71_StaffCode,$AD:$AD)","v":15933763},{"$f":"SUMIFS(Sheet1!S71_PPYearAmount,Sheet1!S71_SA1SubCode,$AC:$AC,Sheet1!S71_StaffCode,$AD:$AD)","v":17449421},{"$f":"SUMIFS(Sheet1!S71_PYearAmount,Sheet1!S71_SA1SubCode,$AC:$AC,Sheet1!S71_StaffCode,$AD:$AD)","v":17838999},{"$f":"SUMIFS(Sheet1!S71_OriginalBudAmnt,Sheet1!S71_SA1SubCode,$AC:$AC,Sheet1!S71_StaffCode,$AD:$AD)","v":25096784},{"$f":"SUMIFS(Sheet1!S71_OriginalBudAmnt,Sheet1!S71_SA1SubCode,$AC:$AC,Sheet1!S71_StaffCode,$AD:$AD)","v":25096784},{"$f":"SUMIFS(Sheet1!S71_OriginalBudAmnt,Sheet1!S71_SA1SubCode,$AC:$AC,Sheet1!S71_StaffCode,$AD:$AD)","v":25096784},{"$f":"SUMIFS(Sheet1!S71_ASBudgetAmount,Sheet1!S71_SA1SubCode,$AC:$AC,Sheet1!S71_StaffCode,$AD:$AD)","v":26236475},{"$f":"SUMIFS(Sheet1!S71_OY1BudgetAmount,Sheet1!S71_A4SubCode,$AC:$AC)","v":27794835},{"$f":"SUMIFS(Sheet1!S71_OY2BudgetAmount,Sheet1!S71_A4SubCode,$AC:$AC)","v":29073251},null,null,null,null,null,null,null,null,null,null,null,null,null,null,null,null,null,2002,"MS"]
["Medical Aid Contributions",null,{"$f":"SUMIFS(Sheet1!S71_PPPYearAmount,Sheet1!S71_SA1SubCode,$AC:$AC,Sheet1!S71_StaffCode,$AD:$AD)","v":4552462},{"$f":"SUMIFS(Sheet1!S71_PPYearAmount,Sheet1!S71_SA1SubCode,$AC:$AC,Sheet1!S71_StaffCode,$AD:$AD)","v":5754692},{"$f":"SUMIFS(Sheet1!S71_PYearAmount,Sheet1!S71_SA1SubCode,$AC:$AC,Sheet1!S71_StaffCode,$AD:$AD)","v":6597603},{"$f":"SUMIFS(Sheet1!S71_OriginalBudAmnt,Sheet1!S71_SA1SubCode,$AC:$AC,Sheet1!S71_StaffCode,$AD:$AD)","v":6401681},{"$f":"SUMIFS(Sheet1!S71_OriginalBudAmnt,Sheet1!S71_SA1SubCode,$AC:$AC,Sheet1!S71_StaffCode,$AD:$AD)","v":6401681},{"$f":"SUMIFS(Sheet1!S71_OriginalBudAmnt,Sheet1!S71_SA1SubCode,$AC:$AC,Sheet1!S71_StaffCode,$AD:$AD)","v":6401681},{"$f":"SUMIFS(Sheet1!S71_ASBudgetAmount,Sheet1!S71_SA1SubCode,$AC:$AC,Sheet1!S71_StaffCode,$AD:$AD)","v":7208107},{"$f":"SUMIFS(Sheet1!S71_OY1BudgetAmount,Sheet1!S71_A4SubCode,$AC:$AC)","v":7561299},{"$f":"SUMIFS(Sheet1!S71_OY2BudgetAmount,Sheet1!S71_A4SubCode,$AC:$AC)","v":7916685},null,null,null,null,null,null,null,null,null,null,null,null,null,null,null,null,null,2003,"MS"]
["Overtime",null,{"$f":"SUMIFS(Sheet1!S71_PPPYearAmount,Sheet1!S71_SA1SubCode,$AC:$AC,Sheet1!S71_StaffCode,$AD:$AD)","v":6014723},{"$f":"SUMIFS(Sheet1!S71_PPYearAmount,Sheet1!S71_SA1SubCode,$AC:$AC,Sheet1!S71_StaffCode,$AD:$AD)","v":4621911},{"$f":"SUMIFS(Sheet1!S71_PYearAmount,Sheet1!S71_SA1SubCode,$AC:$AC,Sheet1!S71_StaffCode,$AD:$AD)","v":5812726},{"$f":"SUMIFS(Sheet1!S71_OriginalBudAmnt,Sheet1!S71_SA1SubCode,$AC:$AC,Sheet1!S71_StaffCode,$AD:$AD)","v":5021814},{"$f":"SUMIFS(Sheet1!S71_OriginalBudAmnt,Sheet1!S71_SA1SubCode,$AC:$AC,Sheet1!S71_StaffCode,$AD:$AD)","v":5021814},{"$f":"SUMIFS(Sheet1!S71_OriginalBudAmnt,Sheet1!S71_SA1SubCode,$AC:$AC,Sheet1!S71_StaffCode,$AD:$AD)","v":5021814},{"$f":"SUMIFS(Sheet1!S71_ASBudgetAmount,Sheet1!S71_SA1SubCode,$AC:$AC,Sheet1!S71_StaffCode,$AD:$AD)","v":6480629},{"$f":"SUMIFS(Sheet1!S71_OY1BudgetAmount,Sheet1!S71_A4SubCode,$AC:$AC)","v":6867829},{"$f":"SUMIFS(Sheet1!S71_OY2BudgetAmount,Sheet1!S71_A4SubCode,$AC:$AC)","v":7304145},null,null,null,null,null,null,null,null,null,null,null,null,null,null,null,null,null,2004,"MS"]
["Performance Bonus",null,{"$f":"SUMIFS(Sheet1!S71_PPPYearAmount,Sheet1!S71_SA1SubCode,$AC:$AC,Sheet1!S71_StaffCode,$AD:$AD)","v":6152034},{"$f":"SUMIFS(Sheet1!S71_PPYearAmount,Sheet1!S71_SA1SubCode,$AC:$AC,Sheet1!S71_StaffCode,$AD:$AD)","v":6660401},{"$f":"SUMIFS(Sheet1!S71_PYearAmount,Sheet1!S71_SA1SubCode,$AC:$AC,Sheet1!S71_StaffCode,$AD:$AD)","v":6987943},{"$f":"SUMIFS(Sheet1!S71_OriginalBudAmnt,Sheet1!S71_SA1SubCode,$AC:$AC,Sheet1!S71_StaffCode,$AD:$AD)","v":9484471},{"$f":"SUMIFS(Sheet1!S71_OriginalBudAmnt,Sheet1!S71_SA1SubCode,$AC:$AC,Sheet1!S71_StaffCode,$AD:$AD)","v":9484471},{"$f":"SUMIFS(Sheet1!S71_OriginalBudAmnt,Sheet1!S71_SA1SubCode,$AC:$AC,Sheet1!S71_StaffCode,$AD:$AD)","v":9484471},{"$f":"SUMIFS(Sheet1!S71_ASBudgetAmount,Sheet1!S71_SA1SubCode,$AC:$AC,Sheet1!S71_StaffCode,$AD:$AD)","v":10757024},{"$f":"SUMIFS(Sheet1!S71_OY1BudgetAmount,Sheet1!S71_A4SubCode,$AC:$AC)","v":11254919},{"$f":"SUMIFS(Sheet1!S71_OY2BudgetAmount,Sheet1!S71_A4SubCode,$AC:$AC)","v":11755833},null,null,null,null,null,null,null,null,null,null,null,null,null,null,null,null,null,2005,"MS"]
["Motor Vehicle Allowance",3,{"$f":"SUMIFS(Sheet1!S71_PPPYearAmount,Sheet1!S71_SA1SubCode,$AC:$AC,Sheet1!S71_StaffCode,$AD:$AD)","v":9765185},{"$f":"SUMIFS(Sheet1!S71_PPYearAmount,Sheet1!S71_SA1SubCode,$AC:$AC,Sheet1!S71_StaffCode,$AD:$AD)","v":10647233},{"$f":"SUMIFS(Sheet1!S71_PYearAmount,Sheet1!S71_SA1SubCode,$AC:$AC,Sheet1!S71_StaffCode,$AD:$AD)","v":10838873},{"$f":"SUMIFS(Sheet1!S71_OriginalBudAmnt,Sheet1!S71_SA1SubCode,$AC:$AC,Sheet1!S71_StaffCode,$AD:$AD)","v":12740485},{"$f":"SUMIFS(Sheet1!S71_OriginalBudAmnt,Sheet1!S71_SA1SubCode,$AC:$AC,Sheet1!S71_StaffCode,$AD:$AD)","v":12740485},{"$f":"SUMIFS(Sheet1!S71_OriginalBudAmnt,Sheet1!S71_SA1SubCode,$AC:$AC,Sheet1!S71_StaffCode,$AD:$AD)","v":12740485},{"$f":"SUMIFS(Sheet1!S71_ASBudgetAmount,Sheet1!S71_SA1SubCode,$AC:$AC,Sheet1!S71_StaffCode,$AD:$AD)","v":12776018},{"$f":"SUMIFS(Sheet1!S71_OY1BudgetAmount,Sheet1!S71_A4SubCode,$AC:$AC)","v":14426221},{"$f":"SUMIFS(Sheet1!S71_OY2BudgetAmount,Sheet1!S71_A4SubCode,$AC:$AC)","v":15104256},null,null,null,null,null,null,null,null,null,null,null,null,null,null,null,null,null,2006,"MS"]
["Cellphone Allowance",3,{"$f":"SUMIFS(Sheet1!S71_PPPYearAmount,Sheet1!S71_SA1SubCode,$AC:$AC,Sheet1!S71_StaffCode,$AD:$AD)","v":700903},{"$f":"SUMIFS(Sheet1!S71_PPYearAmount,Sheet1!S71_SA1SubCode,$AC:$AC,Sheet1!S71_StaffCode,$AD:$AD)","v":824027},{"$f":"SUMIFS(Sheet1!S71_PYearAmount,Sheet1!S71_SA1SubCode,$AC:$AC,Sheet1!S71_StaffCode,$AD:$AD)","v":847713},{"$f":"SUMIFS(Sheet1!S71_OriginalBudAmnt,Sheet1!S71_SA1SubCode,$AC:$AC,Sheet1!S71_StaffCode,$AD:$AD)","v":1146808},{"$f":"SUMIFS(Sheet1!S71_OriginalBudAmnt,Sheet1!S71_SA1SubCode,$AC:$AC,Sheet1!S71_StaffCode,$AD:$AD)","v":1146808},{"$f":"SUMIFS(Sheet1!S71_OriginalBudAmnt,Sheet1!S71_SA1SubCode,$AC:$AC,Sheet1!S71_StaffCode,$AD:$AD)","v":1146808},{"$f":"SUMIFS(Sheet1!S71_ASBudgetAmount,Sheet1!S71_SA1SubCode,$AC:$AC,Sheet1!S71_StaffCode,$AD:$AD)","v":1007023},{"$f":"SUMIFS(Sheet1!S71_OY1BudgetAmount,Sheet1!S71_A4SubCode,$AC:$AC)","v":1169513},{"$f":"SUMIFS(Sheet1!S71_OY2BudgetAmount,Sheet1!S71_A4SubCode,$AC:$AC)","v":1224479},null,null,null,null,null,null,null,null,null,null,null,null,null,null,null,null,null,2007,"MS"]
["Housing Allowances",3,{"$f":"SUMIFS(Sheet1!S71_PPPYearAmount,Sheet1!S71_SA1SubCode,$AC:$AC,Sheet1!S71_StaffCode,$AD:$AD)","v":280497},{"$f":"SUMIFS(Sheet1!S71_PPYearAmount,Sheet1!S71_SA1SubCode,$AC:$AC,Sheet1!S71_StaffCode,$AD:$AD)","v":325709},{"$f":"SUMIFS(Sheet1!S71_PYearAmount,Sheet1!S71_SA1SubCode,$AC:$AC,Sheet1!S71_StaffCode,$AD:$AD)","v":387623},{"$f":"SUMIFS(Sheet1!S71_OriginalBudAmnt,Sheet1!S71_SA1SubCode,$AC:$AC,Sheet1!S71_StaffCode,$AD:$AD)","v":410786},{"$f":"SUMIFS(Sheet1!S71_OriginalBudAmnt,Sheet1!S71_SA1SubCode,$AC:$AC,Sheet1!S71_StaffCode,$AD:$AD)","v":410786},{"$f":"SUMIFS(Sheet1!S71_OriginalBudAmnt,Sheet1!S71_SA1SubCode,$AC:$AC,Sheet1!S71_StaffCode,$AD:$AD)","v":410786},{"$f":"SUMIFS(Sheet1!S71_ASBudgetAmount,Sheet1!S71_SA1SubCode,$AC:$AC,Sheet1!S71_StaffCode,$AD:$AD)","v":396274},{"$f":"SUMIFS(Sheet1!S71_OY1BudgetAmount,Sheet1!S71_A4SubCode,$AC:$AC)","v":415688},{"$f":"SUMIFS(Sheet1!S71_OY2BudgetAmount,Sheet1!S71_A4SubCode,$AC:$AC)","v":435233},null,null,null,null,null,null,null,null,null,null,null,null,null,null,null,null,null,2008,"MS"]
["Other benefits and allowances",3,{"$f":"SUMIFS(Sheet1!S71_PPPYearAmount,Sheet1!S71_SA1SubCode,$AC:$AC,Sheet1!S71_StaffCode,$AD:$AD)","v":193301},{"$f":"SUMIFS(Sheet1!S71_PPYearAmount,Sheet1!S71_SA1SubCode,$AC:$AC,Sheet1!S71_StaffCode,$AD:$AD)","v":149040},{"$f":"SUMIFS(Sheet1!S71_PYearAmount,Sheet1!S71_SA1SubCode,$AC:$AC,Sheet1!S71_StaffCode,$AD:$AD)","v":491899},{"$f":"SUMIFS(Sheet1!S71_OriginalBudAmnt,Sheet1!S71_SA1SubCode,$AC:$AC,Sheet1!S71_StaffCode,$AD:$AD)","v":622653},{"$f":"SUMIFS(Sheet1!S71_OriginalBudAmnt,Sheet1!S71_SA1SubCode,$AC:$AC,Sheet1!S71_StaffCode,$AD:$AD)","v":622653},{"$f":"SUMIFS(Sheet1!S71_OriginalBudAmnt,Sheet1!S71_SA1SubCode,$AC:$AC,Sheet1!S71_StaffCode,$AD:$AD)","v":622653},{"$f":"SUMIFS(Sheet1!S71_ASBudgetAmount,Sheet1!S71_SA1SubCode,$AC:$AC,Sheet1!S71_StaffCode,$AD:$AD)","v":667321},{"$f":"SUMIFS(Sheet1!S71_OY1BudgetAmount,Sheet1!S71_A4SubCode,$AC:$AC)","v":707571},{"$f":"SUMIFS(Sheet1!S71_OY2BudgetAmount,Sheet1!S71_A4SubCode,$AC:$AC)","v":748003},null,null,null,null,null,null,null,null,null,null,null,null,null,null,null,null,null,2009,"MS"]
["Payments in lieu of leave",null,{"$f":"SUMIFS(Sheet1!S71_PPPYearAmount,Sheet1!S71_SA1SubCode,$AC:$AC,Sheet1!S71_StaffCode,$AD:$AD)","v":893221},{"$f":"SUMIFS(Sheet1!S71_PPYearAmount,Sheet1!S71_SA1SubCode,$AC:$AC,Sheet1!S71_StaffCode,$AD:$AD)","v":793675},{"$f":"SUMIFS(Sheet1!S71_PYearAmount,Sheet1!S71_SA1SubCode,$AC:$AC,Sheet1!S71_StaffCode,$AD:$AD)","v":1015317},{"$f":"SUMIFS(Sheet1!S71_OriginalBudAmnt,Sheet1!S71_SA1SubCode,$AC:$AC,Sheet1!S71_StaffCode,$AD:$AD)","v":2067638},{"$f":"SUMIFS(Sheet1!S71_OriginalBudAmnt,Sheet1!S71_SA1SubCode,$AC:$AC,Sheet1!S71_StaffCode,$AD:$AD)","v":2067638},{"$f":"SUMIFS(Sheet1!S71_OriginalBudAmnt,Sheet1!S71_SA1SubCode,$AC:$AC,Sheet1!S71_StaffCode,$AD:$AD)","v":2067638},{"$f":"SUMIFS(Sheet1!S71_ASBudgetAmount,Sheet1!S71_SA1SubCode,$AC:$AC,Sheet1!S71_StaffCode,$AD:$AD)","v":1245404},{"$f":"SUMIFS(Sheet1!S71_OY1BudgetAmount,Sheet1!S71_A4SubCode,$AC:$AC)","v":89553},{"$f":"SUMIFS(Sheet1!S71_OY2BudgetAmount,Sheet1!S71_A4SubCode,$AC:$AC)","v":93762},null,null,null,null,null,null,null,null,null,null,null,null,null,null,null,null,null,2010,"MS"]
["Long service awards",null,{"$f":"SUMIFS(Sheet1!S71_PPPYearAmount,Sheet1!S71_SA1SubCode,$AC:$AC,Sheet1!S71_StaffCode,$AD:$AD)","v":0},{"$f":"SUMIFS(Sheet1!S71_PPYearAmount,Sheet1!S71_SA1SubCode,$AC:$AC,Sheet1!S71_StaffCode,$AD:$AD)","v":770528},{"$f":"SUMIFS(Sheet1!S71_PYearAmount,Sheet1!S71_SA1SubCode,$AC:$AC,Sheet1!S71_StaffCode,$AD:$AD)","v":556787},{"$f":"SUMIFS(Sheet1!S71_OriginalBudAmnt,Sheet1!S71_SA1SubCode,$AC:$AC,Sheet1!S71_StaffCode,$AD:$AD)","v":888736},{"$f":"SUMIFS(Sheet1!S71_OriginalBudAmnt,Sheet1!S71_SA1SubCode,$AC:$AC,Sheet1!S71_StaffCode,$AD:$AD)","v":888736},{"$f":"SUMIFS(Sheet1!S71_OriginalBudAmnt,Sheet1!S71_SA1SubCode,$AC:$AC,Sheet1!S71_StaffCode,$AD:$AD)","v":888736},{"$f":"SUMIFS(Sheet1!S71_ASBudgetAmount,Sheet1!S71_SA1SubCode,$AC:$AC,Sheet1!S71_StaffCode,$AD:$AD)","v":1725101},{"$f":"SUMIFS(Sheet1!S71_OY1BudgetAmount,Sheet1!S71_A4SubCode,$AC:$AC)","v":0},{"$f":"SUMIFS(Sheet1!S71_OY2BudgetAmount,Sheet1!S71_A4SubCode,$AC:$AC)","v":0},null,null,null,null,null,null,null,null,null,null,null,null,null,null,null,null,null,2011,"MS"]
["Post-retirement benefit obligations",6,{"$f":"SUMIFS(Sheet1!S71_PPPYearAmount,Sheet1!S71_SA1SubCode,$AC:$AC,Sheet1!S71_StaffCode,$AD:$AD)","v":0},{"$f":"SUMIFS(Sheet1!S71_PPYearAmount,Sheet1!S71_SA1SubCode,$AC:$AC,Sheet1!S71_StaffCode,$AD:$AD)","v":0},{"$f":"SUMIFS(Sheet1!S71_PYearAmount,Sheet1!S71_SA1SubCode,$AC:$AC,Sheet1!S71_StaffCode,$AD:$AD)","v":0},{"$f":"SUMIFS(Sheet1!S71_OriginalBudAmnt,Sheet1!S71_SA1SubCode,$AC:$AC,Sheet1!S71_StaffCode,$AD:$AD)","v":0},{"$f":"SUMIFS(Sheet1!S71_OriginalBudAmnt,Sheet1!S71_SA1SubCode,$AC:$AC,Sheet1!S71_StaffCode,$AD:$AD)","v":0},{"$f":"SUMIFS(Sheet1!S71_OriginalBudAmnt,Sheet1!S71_SA1SubCode,$AC:$AC,Sheet1!S71_StaffCode,$AD:$AD)","v":0},{"$f":"SUMIFS(Sheet1!S71_ASBudgetAmount,Sheet1!S71_SA1SubCode,$AC:$AC,Sheet1!S71_StaffCode,$AD:$AD)","v":0},{"$f":"SUMIFS(Sheet1!S71_OY1BudgetAmount,Sheet1!S71_A4SubCode,$AC:$AC)","v":0},{"$f":"SUMIFS(Sheet1!S71_OY2BudgetAmount,Sheet1!S71_A4SubCode,$AC:$AC)","v":0},null,null,null,null,null,null,null,null,null,null,null,null,null,null,null,null,null,2012,"MS"]
["Entertainment",null,{"$f":"SUMIFS(Sheet1!S71_PPPYearAmount,Sheet1!S71_SA1SubCode,$AC:$AC,Sheet1!S71_StaffCode,$AD:$AD)","v":0},{"$f":"SUMIFS(Sheet1!S71_PPYearAmount,Sheet1!S71_SA1SubCode,$AC:$AC,Sheet1!S71_StaffCode,$AD:$AD)","v":0},{"$f":"SUMIFS(Sheet1!S71_PYearAmount,Sheet1!S71_SA1SubCode,$AC:$AC,Sheet1!S71_StaffCode,$AD:$AD)","v":0},{"$f":"SUMIFS(Sheet1!S71_OriginalBudAmnt,Sheet1!S71_SA1SubCode,$AC:$AC,Sheet1!S71_StaffCode,$AD:$AD)","v":0},{"$f":"SUMIFS(Sheet1!S71_OriginalBudAmnt,Sheet1!S71_SA1SubCode,$AC:$AC,Sheet1!S71_StaffCode,$AD:$AD)","v":0},{"$f":"SUMIFS(Sheet1!S71_OriginalBudAmnt,Sheet1!S71_SA1SubCode,$AC:$AC,Sheet1!S71_StaffCode,$AD:$AD)","v":0},{"$f":"SUMIFS(Sheet1!S71_ASBudgetAmount,Sheet1!S71_SA1SubCode,$AC:$AC,Sheet1!S71_StaffCode,$AD:$AD)","v":0},{"$f":"SUMIFS(Sheet1!S71_OY1BudgetAmount,Sheet1!S71_A4SubCode,$AC:$AC)","v":0},{"$f":"SUMIFS(Sheet1!S71_OY2BudgetAmount,Sheet1!S71_A4SubCode,$AC:$AC)","v":0},null,null,null,null,null,null,null,null,null,null,null,null,null,null,null,null,null,2090,"MS"]
["Scarcity",null,{"$f":"SUMIFS(Sheet1!S71_PPPYearAmount,Sheet1!S71_SA1SubCode,$AC:$AC,Sheet1!S71_StaffCode,$AD:$AD)","v":0},{"$f":"SUMIFS(Sheet1!S71_PPYearAmount,Sheet1!S71_SA1SubCode,$AC:$AC,Sheet1!S71_StaffCode,$AD:$AD)","v":0},{"$f":"SUMIFS(Sheet1!S71_PYearAmount,Sheet1!S71_SA1SubCode,$AC:$AC,Sheet1!S71_StaffCode,$AD:$AD)","v":0},{"$f":"SUMIFS(Sheet1!S71_OriginalBudAmnt,Sheet1!S71_SA1SubCode,$AC:$AC,Sheet1!S71_StaffCode,$AD:$AD)","v":0},{"$f":"SUMIFS(Sheet1!S71_OriginalBudAmnt,Sheet1!S71_SA1SubCode,$AC:$AC,Sheet1!S71_StaffCode,$AD:$AD)","v":0},{"$f":"SUMIFS(Sheet1!S71_OriginalBudAmnt,Sheet1!S71_SA1SubCode,$AC:$AC,Sheet1!S71_StaffCode,$AD:$AD)","v":0},{"$f":"SUMIFS(Sheet1!S71_ASBudgetAmount,Sheet1!S71_SA1SubCode,$AC:$AC,Sheet1!S71_StaffCode,$AD:$AD)","v":0},{"$f":"SUMIFS(Sheet1!S71_OY1BudgetAmount,Sheet1!S71_A4SubCode,$AC:$AC)","v":325345},{"$f":"SUMIFS(Sheet1!S71_OY2BudgetAmount,Sheet1!S71_A4SubCode,$AC:$AC)","v":340635},null,null,null,null,null,null,null,null,null,null,null,null,null,null,null,null,null,2014,"MS"]
["Acting and post related allowance",null,{"$f":"SUMIFS(Sheet1!S71_PPPYearAmount,Sheet1!S71_SA1SubCode,$AC:$AC,Sheet1!S71_StaffCode,$AD:$AD)","v":47089},{"$f":"SUMIFS(Sheet1!S71_PPYearAmount,Sheet1!S71_SA1SubCode,$AC:$AC,Sheet1!S71_StaffCode,$AD:$AD)","v":43007},{"$f":"SUMIFS(Sheet1!S71_PYearAmount,Sheet1!S71_SA1SubCode,$AC:$AC,Sheet1!S71_StaffCode,$AD:$AD)","v":107905},{"$f":"SUMIFS(Sheet1!S71_OriginalBudAmnt,Sheet1!S71_SA1SubCode,$AC:$AC,Sheet1!S71_StaffCode,$AD:$AD)","v":48742},{"$f":"SUMIFS(Sheet1!S71_OriginalBudAmnt,Sheet1!S71_SA1SubCode,$AC:$AC,Sheet1!S71_StaffCode,$AD:$AD)","v":48742},{"$f":"SUMIFS(Sheet1!S71_OriginalBudAmnt,Sheet1!S71_SA1SubCode,$AC:$AC,Sheet1!S71_StaffCode,$AD:$AD)","v":48742},{"$f":"SUMIFS(Sheet1!S71_ASBudgetAmount,Sheet1!S71_SA1SubCode,$AC:$AC,Sheet1!S71_StaffCode,$AD:$AD)","v":222597},{"$f":"SUMIFS(Sheet1!S71_OY1BudgetAmount,Sheet1!S71_A4SubCode,$AC:$AC)","v":550625},{"$f":"SUMIFS(Sheet1!S71_OY2BudgetAmount,Sheet1!S71_A4SubCode,$AC:$AC)","v":579447},null,null,null,null,null,null,null,null,null,null,null,null,null,null,null,null,null,2015,"MS"]
["In kind benefits",null,{"$f":"SUMIFS(Sheet1!S71_PPPYearAmount,Sheet1!S71_SA1SubCode,$AC:$AC,Sheet1!S71_StaffCode,$AD:$AD)","v":0},{"$f":"SUMIFS(Sheet1!S71_PPYearAmount,Sheet1!S71_SA1SubCode,$AC:$AC,Sheet1!S71_StaffCode,$AD:$AD)","v":0},{"$f":"SUMIFS(Sheet1!S71_PYearAmount,Sheet1!S71_SA1SubCode,$AC:$AC,Sheet1!S71_StaffCode,$AD:$AD)","v":0},{"$f":"SUMIFS(Sheet1!S71_OriginalBudAmnt,Sheet1!S71_SA1SubCode,$AC:$AC,Sheet1!S71_StaffCode,$AD:$AD)","v":0},{"$f":"SUMIFS(Sheet1!S71_OriginalBudAmnt,Sheet1!S71_SA1SubCode,$AC:$AC,Sheet1!S71_StaffCode,$AD:$AD)","v":0},{"$f":"SUMIFS(Sheet1!S71_OriginalBudAmnt,Sheet1!S71_SA1SubCode,$AC:$AC,Sheet1!S71_StaffCode,$AD:$AD)","v":0},{"$f":"SUMIFS(Sheet1!S71_ASBudgetAmount,Sheet1!S71_SA1SubCode,$AC:$AC,Sheet1!S71_StaffCode,$AD:$AD)","v":0},{"$f":"SUMIFS(Sheet1!S71_OY1BudgetAmount,Sheet1!S71_A4SubCode,$AC:$AC)","v":0},{"$f":"SUMIFS(Sheet1!S71_OY2BudgetAmount,Sheet1!S71_A4SubCode,$AC:$AC)","v":0},null,null,null,null,null,null,null,null,null,null,null,null,null,null,null,null,null,2016,"MS"]
["Sub Total - Other Municipal Staff",null,{"$f":"SUM(C37:C48)","v":82623584},141171342,148272099,183089046,159329469,159329469,193268907,196262474,205413843]
[{"$f":"$A$14","v":"% increase"},{"$f":"$B$14","v":4},null,{"$f":"IF(ISERROR((D53/C53)-1),0,((D53/C53)-1))","v":0.70860830728427371},{"$f":"IF(ISERROR((E53/D53)-1),0,((E53/D53)-1))","v":5.0298855981690593E-2},0.2348179275454918,-0.12977060899645521,0,0.21301419136719768,1.5489128833330756E-2,4.6628215845276655E-2]
[]
["Total Parent Municipality",null,{"$f":"C13+C33+C53","v":111482833},170047805,177203356,213725435,190873892,190873892,224708315,229242417,239943843]
[null,null,null,{"$f":"IF(ISERROR((D56/C56)-1),0,((D56/C56)-1))","v":0.52532726720355227},{"$f":"IF(ISERROR((E56/D56)-1),0,((E56/D56)-1))","v":4.2079643427329172E-2},0.20610263724350686,-0.1069200911908309,0,0.17726061246762859,2.0177722395363862E-2,4.6681701144339227E-2]
[]
["Board Members of Entities"]
["Basic Salaries and Wages",null,0,0,0,0,0,0,0,0,0]
["Pension and UIF Contributions",null,0,0,0,0,0,0,0,0,0]
["Medical Aid Contributions",null,0,0,0,0,0,0,0,0,0]
["Overtime",null,0,0,0,0,0,0,0,0,0]
["Performance Bonus",null,0,0,0,0,0,0,0,0,0]
["Motor Vehicle Allowance",3,0,0,0,0,0,0,0,0,0]
["Cellphone Allowance",3,0,0,0,0,0,0,0,0,0]
["Housing Allowances",3,0,0,0,0,0,0,0,0,0]
["Other benefits and allowances",3,0,0,0,0,0,0,0,0,0]
["Board Fees",null,0,0,0,0,0,0,0,0,0]
["Payments in lieu of leave",null,0,0,0,0,0,0,0,0,0]
["Long service awards",null,0,0,0,0,0,0,0,0,0]
["Post-retirement benefit obligations",6,0,0,0,0,0,0,0,0,0]
["Entertainment",null,0,0,0,0,0,0,0,0,0]
["Scarcity",null,0,0,0,0,0,0,0,0,0]
["Acting and post related allowance",null,0,0,0,0,0,0,0,0,0]
["In kind benefits",null,0,0,0,0,0,0,0,0,0]
["Sub Total - Board Members of Entities",null,{"$f":"SUM(C60:C72)","v":0},{"$f":"SUM(D60:D72)","v":0},0,0,0,0,0,0,0]
[{"$f":"$A$14","v":"% increase"},{"$f":"$B$14","v":4},null,{"$f":"IF(ISERROR((D77/C77)-1),0,((D77/C77)-1))","v":0},{"$f":"IF(ISERROR((E77/D77)-1),0,((E77/D77)-1))","v":0},0,0,0,0,0,0]
[]
["Senior Managers of Entities"]
["Basic Salaries and Wages",null,0,0,0,0,0,0,0,0,0]
["Pension and UIF Contributions",null,0,0,0,0,0,0,0,0,0]
["Medical Aid Contributions",null,0,0,0,0,0,0,0,0,0]
["Overtime",null,0,0,0,0,0,0,0,0,0]
["Performance Bonus",null,0,0,0,0,0,0,0,0,0]
["Motor Vehicle Allowance",3,0,0,0,0,0,0,0,0,0]
["Cellphone Allowance",3,0,0,0,0,0,0,0,0,0]
["Housing Allowances",3,0,0,0,0,0,0,0,0,0]
["Other benefits and allowances",3,0,0,0,0,0,0,0,0,0]
["Payments in lieu of leave",null,0,0,0,0,0,0,0,0,0]
["Long service awards",null,0,0,0,0,0,0,0,0,0]
["Post-retirement benefit obligations",6,0,0,0,0,0,0,0,0,0]
["Entertainment",null,0,0,0,0,0,0,0,0,0]
["Scarcity",null,0,0,0,0,0,0,0,0,0]
["Acting and post related allowance",null,0,0,0,0,0,0,0,0,0]
["In kind benefits",null,0,0,0,0,0,0,0,0,0]
["Sub Total - Senior Managers of Entities",null,{"$f":"SUM(C81:C92)","v":0},{"$f":"SUM(D81:D92)","v":0},0,0,0,0,0,0,0]
[{"$f":"$A$14","v":"% increase"},{"$f":"$B$14","v":4},null,{"$f":"IF(ISERROR((D97/C97)-1),0,((D97/C97)-1))","v":0},{"$f":"IF(ISERROR((E97/D97)-1),0,((E97/D97)-1))","v":0},0,0,0,0,0,0]
[]
["Other Staff of Entities"]
["Basic Salaries and Wages",null,0,0,0,0,0,0,0,0,0]
["Pension and UIF Contributions",null,0,0,0,0,0,0,0,0,0]
["Medical Aid Contributions",null,0,0,0,0,0,0,0,0,0]
["Overtime",null,0,0,0,0,0,0,0,0,0]
["Performance Bonus",null,0,0,0,0,0,0,0,0,0]
["Motor Vehicle Allowance",3,0,0,0,0,0,0,0,0,0]
["Cellphone Allowance",3,0,0,0,0,0,0,0,0,0]
["Housing Allowances",3,0,0,0,0,0,0,0,0,0]
["Other benefits and allowances",3,0,0,0,0,0,0,0,0,0]
["Payments in lieu of leave",null,0,0,0,0,0,0,0,0,0]
["Long service awards",null,0,0,0,0,0,0,0,0,0]
["Post-retirement benefit obligations",6,0,0,0,0,0,0,0,0,0]
["Entertainment",null,0,0,0,0,0,0,0,0,0]
["Scarcity",null,0,0,0,0,0,0,0,0,0]
["Acting and post related allowance",null,0,0,0,0,0,0,0,0,0]
["In kind benefits",null,0,0,0,0,0,0,0,0,0]
["Sub Total - Other Staff of Entities",null,{"$f":"SUM(C101:C112)","v":0},{"$f":"SUM(D101:D112)","v":0},0,0,0,0,0,0,0]
[{"$f":"$A$14","v":"% increase"},{"$f":"$B$14","v":4},null,{"$f":"IF(ISERROR((D117/C117)-1),0,((D117/C117)-1))","v":0},{"$f":"IF(ISERROR((E117/D117)-1),0,((E117/D117)-1))","v":0},0,0,0,0,0,0]
[]
["Total Municipal Entities",null,{"$f":"C77+C97+C117","v":0},{"$f":"D77+D97+D117","v":0},0,0,0,0,0,0,0]
[]
["TOTAL SALARY, ALLOWANCES & BENEFITS",null,{"$f":"C56+C120","v":111482833},{"$f":"D56+D120","v":170047805},{"$f":"E56+E120","v":177203356},213725435,190873892,190873892,{"$f":"I56+I120","v":224708315},229242417,239943843]
[{"$f":"$A$14","v":"% increase"},{"$f":"$B$14","v":4},null,{"$f":"IF(ISERROR((D122/C122)-1),0,((D122/C122)-1))","v":0.52532726720355227},{"$f":"IF(ISERROR((E122/D122)-1),0,((E122/D122)-1))","v":4.2079643427329172E-2},0.20610263724350686,-0.1069200911908309,0,0.17726061246762859,2.0177722395363862E-2,4.6681701144339227E-2]
["TOTAL MANAGERS AND STAFF","5,7",{"$f":"C33+C53+C97+C117","v":87916824},146466707,153332486,189700725,165941148,165941148,199815991,203130370,212604528]
[{"$f":"head27a","v":"References"}]
["1. Include 'Loans and advances' where applicable if any reportable amounts until phased compliance with s164 of MFMA achieved"]
["2. s57 of the Systems Act"]
["3. In kind benefits (e.g. provision of living quarters) must be shown as the cost (full market value) to the municipality, as part of the relevant allowance"]
["4. B/A, C/B, D/C, E/C, F/C, G/D, H/D, I/D"]
["5. Must agree to the sub-total appearing on Table A1 (Employee costs)"]
["6. Includes pension payments and employer contributions to medical aid"]
["7. Correct as at 30 June"]
[]
["Column Definitions:"]
["A, B and C. Audited actual as per the audited financial statements. If audited amounts are unavailable, unaudited amounts must be provided with a note stating these are unaudited"]
["D. The original budget approved by council for the budget year."]
["E. The budget for the budget year as adjusted by council resolution in terms of section 28 of the MFMA."]
["F. An estimate of final actual amounts (pre audit) for the current year at the point in time of preparing the budget for the budget year. This may differ from E."]
["G. The amount to be appropriated for the budget year."]
["H and I. The indicative projection"]

{"sheet":"SA23","index":68,"n_rows":70,"n_cols":33,"rows_kept":70,"cut":false,"hidden":false,"merged":[[1,2,2,2],[1,5,2,5],[1,3,2,3],[1,6,2,6]]}
[{"$f":"muni&\" - \"&TableA23","v":"LIM331 Greater Giyani - Supporting Table SA23 Salaries, allowances & benefits (political office bearers/councillors/senior managers)"}]
["Disclosure of Salaries, Allowances & Benefits 1.",{"$f":"head27","v":"Ref"},"No.","Salary","\nContributions\n","Allowances","Performance  Bonuses","In-kind benefits","Total Package"]
["Rand per annum",null,null,null,"1.",null,null,null,"2."]
["Councillors",3,null,null,null,null,null,null,null,null,null,null,null,null,null,null,null,null,null,null,null,null,null,null,null,null,null,null,null,null,1000,"SA23",{"$f":"_xlfn.CONCAT(AF4,AE4)","v":"SA231000"}]
["Speaker",4,null,null,null,null,{"$f":"INDEX(NFD!K:K,MATCH('SA23'!AG:AG,NFD!C:C,0))","v":{"$error":"#N/A"}},{"$f":"INDEX(NFD!L:L,MATCH('SA23'!AG:AG,NFD!C:C,0))","v":{"$error":"#N/A"}},{"$f":"SUM(D5:F5)","v":0},null,null,null,null,null,null,null,null,null,null,null,null,null,null,null,null,null,null,null,null,null,1001,"SA23",{"$f":"_xlfn.CONCAT(AF5,AE5)","v":"SA231001"}]
["Chief Whip",null,null,null,null,null,{"$f":"INDEX(NFD!K:K,MATCH('SA23'!AG:AG,NFD!C:C,0))","v":{"$error":"#N/A"}},{"$f":"INDEX(NFD!L:L,MATCH('SA23'!AG:AG,NFD!C:C,0))","v":{"$error":"#N/A"}},0,null,null,null,null,null,null,null,null,null,null,null,null,null,null,null,null,null,null,null,null,null,1002,"SA23","SA231002"]
["Executive Mayor",null,null,null,null,null,{"$f":"INDEX(NFD!K:K,MATCH('SA23'!AG:AG,NFD!C:C,0))","v":{"$error":"#N/A"}},{"$f":"INDEX(NFD!L:L,MATCH('SA23'!AG:AG,NFD!C:C,0))","v":{"$error":"#N/A"}},0,null,null,null,null,null,null,null,null,null,null,null,null,null,null,null,null,null,null,null,null,null,1003,"SA23","SA231003"]
["Deputy Executive Mayor",null,null,null,null,null,{"$f":"INDEX(NFD!K:K,MATCH('SA23'!AG:AG,NFD!C:C,0))","v":{"$error":"#N/A"}},{"$f":"INDEX(NFD!L:L,MATCH('SA23'!AG:AG,NFD!C:C,0))","v":{"$error":"#N/A"}},0,null,null,null,null,null,null,null,null,null,null,null,null,null,null,null,null,null,null,null,null,null,1004,"SA23","SA231004"]
["Executive Committee",null,null,null,null,null,{"$f":"INDEX(NFD!K:K,MATCH('SA23'!AG:AG,NFD!C:C,0))","v":{"$error":"#N/A"}},{"$f":"INDEX(NFD!L:L,MATCH('SA23'!AG:AG,NFD!C:C,0))","v":{"$error":"#N/A"}},0,null,null,null,null,null,null,null,null,null,null,null,null,null,null,null,null,null,null,null,null,null,1005,"SA23","SA231005"]
["Total for all other councillors",null,null,null,null,null,{"$f":"INDEX(NFD!K:K,MATCH('SA23'!AG:AG,NFD!C:C,0))","v":{"$error":"#N/A"}},{"$f":"INDEX(NFD!L:L,MATCH('SA23'!AG:AG,NFD!C:C,0))","v":{"$error":"#N/A"}},0,null,null,null,null,null,null,null,null,null,null,null,null,null,null,null,null,null,null,null,null,null,1006,"SA23","SA231006"]
[{"$f":"\"Total \"&A4","v":"Total Councillors"},8,{"$f":"SUM(C5:C10)","v":0},0,0,0,null,null,0,null,null,null,null,null,null,null,null,null,null,null,null,null,null,null,null,null,null,null,null,null,1090,"SA23","SA231090"]
[]
["Senior Managers of the Municipality",5]
["Municipal Manager (MM)",null,null,null,null,null,null,null,{"$f":"SUM(D14:H14)","v":0}]
["Chief Finance Officer",null,null,null,null,null,null,null,0]
[null,null,null,null,null,null,null,null,0]
[null,null,null,null,null,null,null,null,0]
[null,null,null,null,null,null,null,null,0]
[null,null,null,null,null,null,null,null,0]
[]
["List of each offical with packages >= senior manager"]
[null,null,null,null,null,null,null,null,{"$f":"SUM(D22:H22)","v":0}]
[null,null,null,null,null,null,null,null,{"$f":"SUM(D23:H23)","v":0}]
[null,null,null,null,null,null,null,null,0]
[null,null,null,null,null,null,null,null,0]
[null,null,null,null,null,null,null,null,0]
[null,null,null,null,null,null,null,null,0]
[null,null,null,null,null,null,null,null,0]
[null,null,null,null,null,null,null,null,0]
[null,null,null,null,null,null,null,null,0]
[null,null,null,null,null,null,null,null,0]
[null,null,null,null,null,null,null,null,0]
[null,null,null,null,null,null,null,null,{"$f":"SUM(D33:H33)","v":0}]
[null,null,null,null,null,null,null,null,{"$f":"SUM(D34:H34)","v":0}]
[{"$f":"\"Total \"&A13","v":"Total Senior Managers of the Municipality"},"8,10",{"$f":"SUM(C14:C34)","v":0},{"$f":"SUM(D14:D34)","v":0},{"$f":"SUM(E14:E34)","v":0},{"$f":"SUM(F14:F34)","v":0},{"$f":"SUM(G14:G34)","v":0},null,{"$f":"SUM(I14:I34)","v":0}]
[]
["A Heading for Each Entity","6,7"]
["List each member of board by designation"]
[null,null,null,null,null,null,null,null,{"$f":"SUM(D39:G39)","v":0}]
[null,null,null,null,null,null,null,null,{"$f":"SUM(D40:G40)","v":0}]
[null,null,null,null,null,null,null,null,0]
[null,null,null,null,null,null,null,null,0]
[null,null,null,null,null,null,null,null,0]
[null,null,null,null,null,null,null,null,0]
[null,null,null,null,null,null,null,null,0]
[null,null,null,null,null,null,null,null,0]
[null,null,null,null,null,null,null,null,0]
[null,null,null,null,null,null,null,null,0]
[null,null,null,null,null,null,null,null,0]
[null,null,null,null,null,null,null,null,0]
[null,null,null,null,null,null,null,null,0]
[null,null,null,null,null,null,null,null,0]
[null,null,null,null,null,null,null,null,0]
[null,null,null,null,null,null,null,null,0]
["Total for municipal entities","8,10",{"$f":"SUM(C38:C54)","v":0},{"$f":"SUM(D39:D54)","v":0},0,0,0,null,0]
[]
["TOTAL COST OF COUNCILLOR, DIRECTOR and EXECUTIVE REMUNERATION",10,{"$f":"C11+C35+C55","v":0},0,0,0,0,null,0]
[]
[{"$f":"head27a","v":"References"}]
["1. Pension and medical aid"]
["2. Total package must equal the total cost to the municipality"]
["3. List each political office bearer by designation. Provide a total for all other councillors"]
["4. Political office bearer is defined in MFMA s 1: speaker, executive mayor, deputy executive mayor, member of executive committee,"]
["    mayor, deputy mayor, member of mayoral committee, the councillor designated to exercise powers and duties of mayor (MSA s 57)"]
["5. Also list each senior manager reporting to MM by designation and each official with package >= senior manager by designation"]
["6. List each entity where municipality has an interest and state percentage ownership and control"]
["7. List each senior manager reporting to the CEO of an Entity by designation"]
["8. Must reconcile to relevant section of Table SA24"]
["9. Must reconcile to totals shown for the budget year of Table SA22"]
["10. Correct as at 30 June"]

{"sheet":"SA24","index":69,"n_rows":53,"n_cols":33,"rows_kept":53,"cut":false,"hidden":false,"merged":[[1,5,1,7],[1,8,1,10],[1,2,1,4]]}
[{"$f":"muni&\" - \"&TableA24","v":"LIM331 Greater Giyani - Supporting Table SA24 Summary of personnel numbers"}]
["Summary of Personnel Numbers",{"$f":"head27","v":"Ref"},{"$f":"Head1","v":"2021/22"},null,null,{"$f":"Head2","v":"Current Year 2022/23"},null,null,{"$f":"Head9","v":"Budget Year 2023/24"}]
["Number","1,2","Positions","Permanent employees","Contract employees","Positions","Permanent employees","Contract employees","Positions","Permanent employees","Contract employees"]
["Municipal Council and Boards of Municipal Entities",null,null,null,null,null,null,null,null,null,null,null,null,null,null,null,null,null,null,null,null,null,null,null,null,null,null,null,null,null,1000,"SA24",{"$f":"_xlfn.CONCAT(AF4,AE4)","v":"SA241000"}]
["Councillors (Political Office Bearers plus Other Councillors)",null,0,0,0,0,0,0,0,0,0,null,null,null,null,null,null,null,null,null,null,null,null,null,null,null,null,null,null,null,1001,"SA24",{"$f":"_xlfn.CONCAT(AF5,AE5)","v":"SA241001"}]
["Board Members of municipal entities",4,0,0,0,0,0,0,0,0,0,null,null,null,null,null,null,null,null,null,null,null,null,null,null,null,null,null,null,null,1002,"SA24","SA241002"]
["Municipal employees",5,0,0,0,0,0,0,0,0,0,null,null,null,null,null,null,null,null,null,null,null,null,null,null,null,null,null,null,null,1100,"SA24","SA241100"]
["Municipal Manager and Senior Managers",3,0,0,0,0,0,0,0,0,0,null,null,null,null,null,null,null,null,null,null,null,null,null,null,null,null,null,null,null,1101,"SA24","SA241101"]
["Other Managers",7,0,0,0,0,0,0,0,0,0,null,null,null,null,null,null,null,null,null,null,null,null,null,null,null,null,null,null,null,1102,"SA24","SA241102"]
["Professionals",null,{"$f":"SUM(C11:C19)","v":0},{"$f":"SUM(D11:D19)","v":0},0,0,0,0,0,0,0,null,null,null,null,null,null,null,null,null,null,null,null,null,null,null,null,null,null,null,1103,"SA24","SA241103"]
["Finance",null,0,0,0,0,0,0,0,0,0,null,null,null,null,null,null,null,null,null,null,null,null,null,null,null,null,null,null,null,1104,"SA24","SA241104"]
["Spatial/town planning",null,0,0,0,0,0,0,0,0,0,null,null,null,null,null,null,null,null,null,null,null,null,null,null,null,null,null,null,null,1105,"SA24","SA241105"]
["Information Technology",null,0,0,0,0,0,0,0,0,0,null,null,null,null,null,null,null,null,null,null,null,null,null,null,null,null,null,null,null,1106,"SA24","SA241106"]
["Roads",null,0,0,0,0,0,0,0,0,0,null,null,null,null,null,null,null,null,null,null,null,null,null,null,null,null,null,null,null,1107,"SA24","SA241107"]
["Electricity",null,0,0,0,0,0,0,0,0,0,null,null,null,null,null,null,null,null,null,null,null,null,null,null,null,null,null,null,null,1108,"SA24","SA241108"]
["Water",null,0,0,0,0,0,0,0,0,0,null,null,null,null,null,null,null,null,null,null,null,null,null,null,null,null,null,null,null,1109,"SA24","SA241109"]
["Sanitation",null,0,0,0,0,0,0,0,0,0,null,null,null,null,null,null,null,null,null,null,null,null,null,null,null,null,null,null,null,1110,"SA24","SA241110"]
["Refuse",null,0,0,0,0,0,0,0,0,0,null,null,null,null,null,null,null,null,null,null,null,null,null,null,null,null,null,null,null,1111,"SA24","SA241111"]
["Other",null,0,0,0,0,0,0,0,0,0,null,null,null,null,null,null,null,null,null,null,null,null,null,null,null,null,null,null,null,1112,"SA24","SA241112"]
["Technicians",null,{"$f":"SUM(C21:C29)","v":0},{"$f":"SUM(D21:D29)","v":0},0,0,0,0,0,0,0,null,null,null,null,null,null,null,null,null,null,null,null,null,null,null,null,null,null,null,1113,"SA24","SA241113"]
["Finance",null,0,0,0,0,0,0,0,0,0,null,null,null,null,null,null,null,null,null,null,null,null,null,null,null,null,null,null,null,1114,"SA24","SA241114"]
["Spatial/town planning",null,0,0,0,0,0,0,0,0,0,null,null,null,null,null,null,null,null,null,null,null,null,null,null,null,null,null,null,null,1115,"SA24","SA241115"]
["Information Technology",null,0,0,0,0,0,0,0,0,0,null,null,null,null,null,null,null,null,null,null,null,null,null,null,null,null,null,null,null,1116,"SA24","SA241116"]
["Roads",null,0,0,0,0,0,0,0,0,0,null,null,null,null,null,null,null,null,null,null,null,null,null,null,null,null,null,null,null,1117,"SA24","SA241117"]
["Electricity",null,0,0,0,0,0,0,0,0,0,null,null,null,null,null,null,null,null,null,null,null,null,null,null,null,null,null,null,null,1118,"SA24","SA241118"]
["Water",null,0,0,0,0,0,0,0,0,0,null,null,null,null,null,null,null,null,null,null,null,null,null,null,null,null,null,null,null,1119,"SA24","SA241119"]
["Sanitation",null,0,0,0,0,0,0,0,0,0,null,null,null,null,null,null,null,null,null,null,null,null,null,null,null,null,null,null,null,1120,"SA24","SA241120"]
["Refuse",null,0,0,0,0,0,0,0,0,0,null,null,null,null,null,null,null,null,null,null,null,null,null,null,null,null,null,null,null,1121,"SA24","SA241121"]
["Other",null,0,0,0,0,0,0,0,0,0,null,null,null,null,null,null,null,null,null,null,null,null,null,null,null,null,null,null,null,1122,"SA24","SA241122"]
["Clerks (Clerical and administrative)",null,0,0,0,0,0,0,0,0,0,null,null,null,null,null,null,null,null,null,null,null,null,null,null,null,null,null,null,null,1123,"SA24","SA241123"]
["Service and sales workers",null,0,0,0,0,0,0,0,0,0,null,null,null,null,null,null,null,null,null,null,null,null,null,null,null,null,null,null,null,1124,"SA24","SA241124"]
["Skilled agricultural and fishery workers",null,0,0,0,0,0,0,0,0,0,null,null,null,null,null,null,null,null,null,null,null,null,null,null,null,null,null,null,null,1125,"SA24","SA241125"]
["Craft and related trades",null,0,0,0,0,0,0,0,0,0,null,null,null,null,null,null,null,null,null,null,null,null,null,null,null,null,null,null,null,1126,"SA24","SA241126"]
["Plant and Machine Operators",null,0,0,0,0,0,0,0,0,0,null,null,null,null,null,null,null,null,null,null,null,null,null,null,null,null,null,null,null,1127,"SA24","SA241127"]
["Elementary Occupations",null,0,0,0,0,0,0,0,0,0,null,null,null,null,null,null,null,null,null,null,null,null,null,null,null,null,null,null,null,1128,"SA24","SA241128"]
["TOTAL PERSONNEL NUMBERS",9,{"$f":"SUM(C5:C9)+SUM(C11:C19)+SUM(C21:C35)","v":0},{"$f":"SUM(D5:D9)+SUM(D11:D19)+SUM(D21:D35)","v":0},0,0,0,{"$f":"SUM(H5:H9)+SUM(H11:H19)+SUM(H21:H35)","v":0},0,0,0,null,null,null,null,null,null,null,null,null,null,null,null,null,null,null,null,null,null,null,1190,"SA24","SA241190"]
["% increase",null,null,null,null,{"$f":"IF(ISERROR((F36/C36)-1),0,((F36/C36)-1))","v":0},0,0,0,0,0,null,null,null,null,null,null,null,null,null,null,null,null,null,null,null,null,null,null,null,1191,"SA24","SA241191"]
[null,null,null,null,null,null,null,null,null,null,null,null,null,null,null,null,null,null,null,null,null,null,null,null,null,null,null,null,null,null,null,"SA24","SA24"]
["Total municipal employees headcount","6, 10",0,0,0,0,0,0,0,0,0,null,null,null,null,null,null,null,null,null,null,null,null,null,null,null,null,null,null,null,1200,"SA24","SA241200"]
["Finance personnel headcount","8, 10",0,0,0,0,0,0,0,0,0,null,null,null,null,null,null,null,null,null,null,null,null,null,null,null,null,null,null,null,1201,"SA24","SA241201"]
["Human Resources personnel headcount","8, 10",0,0,0,0,0,0,0,0,0,null,null,null,null,null,null,null,null,null,null,null,null,null,null,null,null,null,null,null,1202,"SA24","SA241202"]
[]
[{"$f":"head27a","v":"References"}]
["1. Positions must be funded and aligned to the municipality's current organisational structure"]
["2. Full Time Equivalent (FTE). E.g. One full time person = 1FTE. A person working half time (say 4 hours out of 8) = 0.5FTE."]
["3. s57 of the Systems Act"]
["4. Include only in Consolidated Statements"]
["5. Include municipal entity employees in Consolidated Statements"]
["6.  Include headcount (number fo persons, Not FTE) of managers and staff only (exclude councillors)"]
["7. Managers who provide the direction of a critical technical function"]
["8. Total number of employees working on these functions"]
["9. Correct as at 30 June"]
["10. Must account for all budgeted positions, as per the municipal organogram"]

{"sheet":"SA25","index":70,"n_rows":62,"n_cols":17,"rows_kept":62,"cut":false,"hidden":false,"merged":[[1,2,1,13],[1,14,1,16]]}
[{"$f":"muni&\" - \"& TableA25","v":"LIM331 Greater Giyani - Supporting Table SA25 Budgeted monthly revenue and expenditure"}]
[{"$f":"desc","v":"Description"},{"$f":"head27","v":"Ref"},{"$f":"Head9","v":"Budget Year 2023/24"},null,null,null,null,null,null,null,null,null,null,null,"Medium Term Revenue and Expenditure Framework"]
["R thousand",null,"July","August","Sept.","October","November","December","January","February","March","April","May","June",{"$f":"Head9","v":"Budget Year 2023/24"},{"$f":"Head10","v":"Budget Year +1 2024/25"},{"$f":"Head11","v":"Budget Year +2 2025/26"}]
["Revenue"," "]
["Exchange Revenue"," "]
["Service charges - Electricity",null,{"$f":"ROUND($O6/12,0)","v":0},0,0,0,0,0,0,0,0,0,0,{"$f":"O6-SUM(C6:M6)","v":0},{"$f":"'A4-FinPerf RE'!J6","v":0},{"$f":"'A4-FinPerf RE'!K6","v":0},{"$f":"'A4-FinPerf RE'!L6","v":0}]
["Service charges - Water",null,0,0,0,0,0,0,0,0,0,0,0,{"$f":"O7-SUM(C7:M7)","v":0},{"$f":"'A4-FinPerf RE'!J7","v":0},{"$f":"'A4-FinPerf RE'!K7","v":0},{"$f":"'A4-FinPerf RE'!L7","v":0}]
["Service charges - Waste Water Management",null,{"$f":"ROUND($O8/12,0)","v":0},0,0,0,0,0,0,0,0,0,0,0,{"$f":"'A4-FinPerf RE'!J8","v":0},{"$f":"'A4-FinPerf RE'!K8","v":0},{"$f":"'A4-FinPerf RE'!L8","v":0}]
["Service charges - Waste Management",null,785363,785363,785363,785363,785363,785363,785363,785363,785363,785363,785363,785357,{"$f":"'A4-FinPerf RE'!J9","v":9424350},{"$f":"'A4-FinPerf RE'!K9","v":9886144},{"$f":"'A4-FinPerf RE'!L9","v":10350792}]
["Sale of Goods and Rendering of Services",null,258881,258881,258881,258881,258881,258881,258881,258881,258881,258881,258881,258883,{"$f":"'A4-FinPerf RE'!J10","v":3106574},{"$f":"'A4-FinPerf RE'!K10","v":3283457},{"$f":"'A4-FinPerf RE'!L10","v":3460775}]
["Agency services"," ",491400,491400,491400,491400,491400,491400,491400,491400,491400,491400,491400,491400,{"$f":"'A4-FinPerf RE'!J11","v":5896800},{"$f":"'A4-FinPerf RE'!K11","v":6185743},{"$f":"'A4-FinPerf RE'!L11","v":6476473}]
["Interest"," ",0,0,0,0,0,0,0,0,0,0,0,0,{"$f":"'A4-FinPerf RE'!J12","v":0},{"$f":"'A4-FinPerf RE'!K12","v":0},{"$f":"'A4-FinPerf RE'!L12","v":0}]
["Interest earned from Receivables"," ",290031,290031,290031,290031,290031,290031,290031,290031,290031,290031,290031,290029,{"$f":"'A4-FinPerf RE'!J13","v":3480370},{"$f":"'A4-FinPerf RE'!K13","v":3650908},{"$f":"'A4-FinPerf RE'!L13","v":3822501}]
["Interest earned from Current and Non Current Assets"," ",1020830,1020830,1020830,1020830,1020830,1020830,1020830,1020830,1020830,1020830,1020830,1020827,{"$f":"'A4-FinPerf RE'!J14","v":12249957},{"$f":"'A4-FinPerf RE'!K14","v":12850205},{"$f":"'A4-FinPerf RE'!L14","v":13454165}]
["Dividends"," ",0,0,0,0,0,0,0,0,0,0,0,0,{"$f":"'A4-FinPerf RE'!J15","v":0},{"$f":"'A4-FinPerf RE'!K15","v":0},{"$f":"'A4-FinPerf RE'!L15","v":0}]
["Rent on Land"," ",0,0,0,0,0,0,0,0,0,0,0,0,{"$f":"'A4-FinPerf RE'!J16","v":0},{"$f":"'A4-FinPerf RE'!K16","v":0},{"$f":"'A4-FinPerf RE'!L16","v":0}]
["Rental from Fixed Assets"," ",57942,57942,57942,57942,57942,57942,57942,57942,57942,57942,57942,57938,{"$f":"'A4-FinPerf RE'!J17","v":695300},{"$f":"'A4-FinPerf RE'!K17","v":729370},{"$f":"'A4-FinPerf RE'!L17","v":763649}]
["Licence and permits"," ",695833,695833,695833,695833,695833,695833,695833,695833,695833,695833,695833,695837,{"$f":"'A4-FinPerf RE'!J18","v":8350000},{"$f":"'A4-FinPerf RE'!K18","v":8759150},{"$f":"'A4-FinPerf RE'!L18","v":9170830}]
["Operational Revenue"," ",691667,691667,691667,691667,691667,691667,691667,691667,691667,691667,691667,691663,{"$f":"'A4-FinPerf RE'!J19","v":8300000},{"$f":"'A4-FinPerf RE'!K19","v":8414700},{"$f":"'A4-FinPerf RE'!L19","v":8529491}]
["Non-Exchange Revenue"," "]
["Property rates",null,{"$f":"ROUND($O21/12,0)","v":6609714},6609714,6609714,6609714,6609714,6609714,6609714,6609714,6609714,6609714,6609714,{"$f":"O21-SUM(C21:M21)","v":6609708},{"$f":"'A4-FinPerf RE'!J21","v":79316562},{"$f":"'A4-FinPerf RE'!K21","v":83203074},{"$f":"'A4-FinPerf RE'!L21","v":87113617}]
["Surcharges and Taxes"," ",0,0,0,0,0,0,0,0,0,0,0,0,{"$f":"'A4-FinPerf RE'!J22","v":0},{"$f":"'A4-FinPerf RE'!K22","v":0},{"$f":"'A4-FinPerf RE'!L22","v":0}]
["Fines, penalties and forfeits"," ",30483,30483,30483,30483,30483,30483,30483,30483,30483,30483,30483,30482,{"$f":"'A4-FinPerf RE'!J23","v":365795},{"$f":"'A4-FinPerf RE'!K23","v":383719},{"$f":"'A4-FinPerf RE'!L23","v":401754}]
["Licences or permits"," ",8333,8333,8333,8333,8333,8333,8333,8333,8333,8333,8333,8337,{"$f":"'A4-FinPerf RE'!J24","v":100000},{"$f":"'A4-FinPerf RE'!K24","v":104900},{"$f":"'A4-FinPerf RE'!L24","v":109830}]
["Transfer and subsidies - Operational"," ",31862667,31862667,31862667,31862667,31862667,31862667,31862667,31862667,31862667,31862667,31862667,31862663,{"$f":"'A4-FinPerf RE'!J25","v":382352000},{"$f":"'A4-FinPerf RE'!K25","v":405170000},{"$f":"'A4-FinPerf RE'!L25","v":395085000}]
["Interest"," ",1880868,1880868,1880868,1880868,1880868,1880868,1880868,1880868,1880868,1880868,1880868,1880869,{"$f":"'A4-FinPerf RE'!J26","v":22570417},{"$f":"'A4-FinPerf RE'!K26","v":23676367},{"$f":"'A4-FinPerf RE'!L26","v":24789156}]
["Fuel Levy"," ",0,0,0,0,0,0,0,0,0,0,0,0,{"$f":"'A4-FinPerf RE'!J27","v":0},{"$f":"'A4-FinPerf RE'!K27","v":0},{"$f":"'A4-FinPerf RE'!L27","v":0}]
["Operational Revenue"," ",0,0,0,0,0,0,0,0,0,0,0,0,{"$f":"'A4-FinPerf RE'!J28","v":0},{"$f":"'A4-FinPerf RE'!K28","v":0},{"$f":"'A4-FinPerf RE'!L28","v":0}]
["Gains on disposal of Assets"," ",0,0,0,0,0,0,0,0,0,0,0,0,{"$f":"'A4-FinPerf RE'!J29","v":0},{"$f":"'A4-FinPerf RE'!K29","v":0},{"$f":"'A4-FinPerf RE'!L29","v":0}]
["Other Gains"," ",8333,8333,8333,8333,8333,8333,8333,8333,8333,8333,8333,8337,{"$f":"'A4-FinPerf RE'!J30","v":100000},{"$f":"'A4-FinPerf RE'!K30","v":0},{"$f":"'A4-FinPerf RE'!L30","v":0}]
["Discontinued Operations"," ",0,0,0,0,0,0,0,0,0,0,0,0,{"$f":"'A4-FinPerf RE'!J31","v":0},{"$f":"'A4-FinPerf RE'!K31","v":0},{"$f":"'A4-FinPerf RE'!L31","v":0}]
["Total Revenue (excluding capital transfers and contributions)"," ",{"$f":"SUM(C6:C19)+SUM(C21:C31)","v":44692345},{"$f":"SUM(D6:D19)+SUM(D21:D31)","v":44692345},44692345,44692345,44692345,44692345,44692345,44692345,44692345,44692345,44692345,{"$f":"SUM(N6:N19)+SUM(N21:N31)","v":44692330},{"$f":"SUM(O6:O19)+SUM(O21:O31)","v":536308125},{"$f":"SUM(P6:P19)+SUM(P21:P31)","v":566297737},{"$f":"SUM(Q6:Q19)+SUM(Q21:Q31)","v":563528033}]
["Expenditure"]
["Employee related costs",null,{"$f":"ROUND($O34/12,0)","v":16651333},16651333,16651333,16651333,16651333,16651333,16651333,16651333,16651333,16651333,16651333,{"$f":"O34-SUM(C34:M34)","v":16651328},{"$f":"'A4-FinPerf RE'!J34","v":199815991},{"$f":"'A4-FinPerf RE'!K34","v":203130370},{"$f":"'A4-FinPerf RE'!L34","v":212604528}]
["Remuneration of councillors",null,2074360,2074360,2074360,2074360,2074360,2074360,2074360,2074360,2074360,2074360,2074360,2074364,{"$f":"'A4-FinPerf RE'!J35","v":24892324},{"$f":"'A4-FinPerf RE'!K35","v":26112047},{"$f":"'A4-FinPerf RE'!L35","v":27339315}]
["Bulk purchases - electricity",null,0,0,0,0,0,0,0,0,0,0,0,0,{"$f":"'A4-FinPerf RE'!J36","v":0},{"$f":"'A4-FinPerf RE'!K36","v":0},{"$f":"'A4-FinPerf RE'!L36","v":0}]
["Inventory consumed",null,1100000,1100000,1100000,1100000,1100000,1100000,1100000,1100000,1100000,1100000,1100000,1100000,{"$f":"'A4-FinPerf RE'!J37","v":13200000},{"$f":"'A4-FinPerf RE'!K37","v":13820000},{"$f":"'A4-FinPerf RE'!L37","v":14490000}]
["Debt impairment",null,2416667,2416667,2416667,2416667,2416667,2416667,2416667,2416667,2416667,2416667,2416667,2416663,{"$f":"'A4-FinPerf RE'!J38","v":29000000},{"$f":"'A4-FinPerf RE'!K38","v":30000000},{"$f":"'A4-FinPerf RE'!L38","v":31000000}]
["Depreciation and amortisation",null,7916667,7916667,7916667,7916667,7916667,7916667,7916667,7916667,7916667,7916667,7916667,7916663,{"$f":"'A4-FinPerf RE'!J39","v":95000000},{"$f":"'A4-FinPerf RE'!K39","v":96000000},{"$f":"'A4-FinPerf RE'!L39","v":97000000}]
["Interest"," ",0,0,0,0,0,0,0,0,0,0,0,0,{"$f":"'A4-FinPerf RE'!J40","v":0},{"$f":"'A4-FinPerf RE'!K40","v":0},{"$f":"'A4-FinPerf RE'!L40","v":0}]
["Contracted services"," ",13696708,13696708,13696708,13696708,13696708,13696708,13696708,13696708,13696708,13696708,13696708,13696712,{"$f":"'A4-FinPerf RE'!J41","v":164360500},{"$f":"'A4-FinPerf RE'!K41","v":164270000},{"$f":"'A4-FinPerf RE'!L41","v":167979000}]
["Transfers and subsidies"," ",125000,125000,125000,125000,125000,125000,125000,125000,125000,125000,125000,125000,{"$f":"'A4-FinPerf RE'!J42","v":1500000},{"$f":"'A4-FinPerf RE'!K42","v":1600000},{"$f":"'A4-FinPerf RE'!L42","v":1700000}]
["Irrecoverable debts written off"," ",0,0,0,0,0,0,0,0,0,0,0,0,{"$f":"'A4-FinPerf RE'!J43","v":0},{"$f":"'A4-FinPerf RE'!K43","v":0},{"$f":"'A4-FinPerf RE'!L43","v":0}]
["Operational costs"," ",6521050,6521050,6521050,6521050,6521050,6521050,6521050,6521050,6521050,6521050,6521050,6521051,{"$f":"'A4-FinPerf RE'!J44","v":78252601},{"$f":"'A4-FinPerf RE'!K44","v":83749834},{"$f":"'A4-FinPerf RE'!L44","v":85973965}]
["Losses on disposal of Assets"," ",0,0,0,0,0,0,0,0,0,0,0,0,{"$f":"'A4-FinPerf RE'!J45","v":0},{"$f":"'A4-FinPerf RE'!K45","v":0},{"$f":"'A4-FinPerf RE'!L45","v":0}]
["Other Losses"," ",0,0,0,0,0,0,0,0,0,0,0,0,{"$f":"'A4-FinPerf RE'!J46","v":0},{"$f":"'A4-FinPerf RE'!K46","v":0},{"$f":"'A4-FinPerf RE'!L46","v":0}]
["Total Expenditure"," ",{"$f":"SUM(C34:C46)","v":50501785},{"$f":"SUM(D34:D46)","v":50501785},50501785,50501785,50501785,50501785,50501785,50501785,50501785,50501785,50501785,50501781,606021416,618682251,638086808]
["Surplus/(Deficit)",null,{"$f":"+C32-C47","v":-5809440},{"$f":"+D32-D47","v":-5809440},-5809440,-5809440,-5809440,-5809440,-5809440,-5809440,-5809440,-5809440,-5809440,-5809451,-69713291,-52384514,-74558775]
["Transfers and subsidies - capital (monetary allocations)",null,{"$f":"ROUND($O49/12,0)","v":8712417},8712417,8712417,8712417,8712417,8712417,8712417,8712417,8712417,8712417,8712417,{"$f":"O49-SUM(C49:M49)","v":8712413},{"$f":"'A4-FinPerf RE'!J49","v":104549000},{"$f":"'A4-FinPerf RE'!K49","v":102594000},{"$f":"'A4-FinPerf RE'!L49","v":107207000}]
["Transfers and subsidies - capital (in-kind)",null,0,0,0,0,0,0,0,0,0,0,0,0,{"$f":"'A4-FinPerf RE'!J50","v":0},{"$f":"'A4-FinPerf RE'!K50","v":0},{"$f":"'A4-FinPerf RE'!L50","v":0}]
["Surplus/(Deficit) after capital transfers & contributions",null,{"$f":"SUM(C48:C50)","v":2902977},{"$f":"SUM(D48:D50)","v":2902977},2902977,2902977,2902977,2902977,2902977,2902977,2902977,2902977,2902977,2902962,34835709,50209486,32648225]
["Income Tax",null,{"$f":"ROUND($O52/12,0)","v":0},0,0,0,0,0,0,0,0,0,0,{"$f":"O52-SUM(C52:M52)","v":0},{"$f":"'A4-FinPerf RE'!J52","v":0},{"$f":"'A4-FinPerf RE'!K52","v":0},{"$f":"'A4-FinPerf RE'!L52","v":0}]
["Surplus/(Deficit) after income tax",null,{"$f":"+C51-C52","v":2902977},{"$f":"+D51-D52","v":2902977},2902977,2902977,2902977,2902977,2902977,2902977,2902977,2902977,2902977,2902962,34835709,50209486,32648225]
["Share of Surplus/Deficit attributable to Joint Venture",null,{"$f":"ROUND($O54/12,0)","v":0},0,0,0,0,0,0,0,0,0,0,{"$f":"O54-SUM(C54:M54)","v":0},{"$f":"'A4-FinPerf RE'!J54","v":0},{"$f":"'A4-FinPerf RE'!K54","v":0},{"$f":"'A4-FinPerf RE'!L54","v":0}]
["Share of Surplus/Deficit attributable to Minorities",null,0,0,0,0,0,0,0,0,0,0,0,0,{"$f":"'A4-FinPerf RE'!J55","v":0},{"$f":"'A4-FinPerf RE'!K55","v":0},{"$f":"'A4-FinPerf RE'!L55","v":0}]
["Surplus/(Deficit) attributable to municipality",null,{"$f":"SUM(C53:C55)","v":2902977},{"$f":"SUM(D53:D55)","v":2902977},2902977,2902977,2902977,2902977,2902977,2902977,2902977,2902977,2902977,2902962,34835709,50209486,32648225]
["Share of Surplus/Deficit attributable to Associate",null,{"$f":"ROUND($O57/12,0)","v":0},0,0,0,0,0,0,0,0,0,0,{"$f":"O57-SUM(C57:M57)","v":0},{"$f":"'A4-FinPerf RE'!J57","v":0},{"$f":"'A4-FinPerf RE'!K57","v":0},{"$f":"'A4-FinPerf RE'!L57","v":0}]
["Intercompany/Parent subsidiary transactions",null,0,0,0,0,0,0,0,0,0,0,0,0,{"$f":"'A4-FinPerf RE'!J58","v":0},{"$f":"'A4-FinPerf RE'!K58","v":0},{"$f":"'A4-FinPerf RE'!L58","v":0}]
[{"$f":"result","v":"Surplus/(Deficit) for the year"},1,{"$f":"SUM(C56:C58)","v":2902977},{"$f":"SUM(D56:D58)","v":2902977},2902977,2902977,2902977,2902977,2902977,2902977,2902977,2902977,2902977,2902962,34835709,50209486,32648225]
[{"$f":"head27a","v":"References"}]
["1. Surplus (Deficit) must reconcile with Budgeted Financial Performance"]
["check",null,null,null,null,null,null,null,null,null,null,null,null,null,{"$f":"O59-'A4-FinPerf RE'!J59","v":0},{"$f":"P59-'A4-FinPerf RE'!K59","v":0},{"$f":"Q59-'A4-FinPerf RE'!L59","v":0}]

{"sheet":"SA26","index":71,"n_rows":48,"n_cols":17,"rows_kept":48,"cut":false,"hidden":false,"merged":[[1,2,1,13],[1,14,1,16]]}
[{"$f":"muni&\" - \"&TableA26","v":"LIM331 Greater Giyani - Supporting Table SA26 Budgeted monthly revenue and expenditure (municipal vote)"}]
[{"$f":"desc","v":"Description"},{"$f":"head27","v":"Ref"},{"$f":"Head9","v":"Budget Year 2023/24"},null,null,null,null,null,null,null,null,null,null,null,"Medium Term Revenue and Expenditure Framework"]
["R thousand",null,"July","August","Sept.","October","November","December","January","February","March","April","May","June",{"$f":"Head9","v":"Budget Year 2023/24"},{"$f":"Head10","v":"Budget Year +1 2024/25"},{"$f":"Head11","v":"Budget Year +2 2025/26"}]
[{"$f":"'A3-FinPerf V'!A4","v":"Revenue by Vote"}]
[{"$f":"'A3-FinPerf V'!A5","v":"Vote 1 -  Energy Sources"},null,null,null,{"$f":"ROUND($O5/12,0)","v":0},{"$f":"ROUND($O5/12,0)","v":0},0,0,0,0,0,0,0,{"$f":"O5-SUM(C5:M5)","v":0},{"$f":"'A3-FinPerf V'!I5","v":0},{"$f":"'A3-FinPerf V'!J5","v":0},{"$f":"'A3-FinPerf V'!K5","v":0}]
[{"$f":"'A3-FinPerf V'!A6","v":"Vote 2 - Community and Social Services"},null,null,null,{"$f":"ROUND($O6/12,0)","v":47162},47162,47162,47162,47162,47162,47162,47162,47162,141481,{"$f":"'A3-FinPerf V'!I6","v":565939},{"$f":"'A3-FinPerf V'!J6","v":593670},{"$f":"'A3-FinPerf V'!K6","v":621571}]
[{"$f":"'A3-FinPerf V'!A7","v":"Vote 3 - Finance & Administration"},null,null,null,51468541,51468541,51468541,51468541,51468541,51468541,51468541,51468541,51468541,154405622,{"$f":"'A3-FinPerf V'!I7","v":617622491},{"$f":"'A3-FinPerf V'!J7","v":644518605},{"$f":"'A3-FinPerf V'!K7","v":645216367}]
[{"$f":"'A3-FinPerf V'!A8","v":"Vote 4 - Planning and Development"},null,null,null,68333,68333,68333,68333,68333,68333,68333,68333,68333,205003,{"$f":"'A3-FinPerf V'!I8","v":820000},{"$f":"'A3-FinPerf V'!J8","v":860180},{"$f":"'A3-FinPerf V'!K8","v":900608}]
[{"$f":"'A3-FinPerf V'!A9","v":"Vote 5 - Executive & Council"},null,null,null,0,0,0,0,0,0,0,0,0,0,{"$f":"'A3-FinPerf V'!I9","v":0},{"$f":"'A3-FinPerf V'!J9","v":0},{"$f":"'A3-FinPerf V'!K9","v":0}]
[{"$f":"'A3-FinPerf V'!A10","v":"Vote 6 - Internal Audit"},null,null,null,0,0,0,0,0,0,0,0,0,0,{"$f":"'A3-FinPerf V'!I10","v":0},{"$f":"'A3-FinPerf V'!J10","v":0},{"$f":"'A3-FinPerf V'!K10","v":0}]
[{"$f":"'A3-FinPerf V'!A11","v":"Vote 7 - Road Transport"},null,null,null,729167,729167,729167,729167,729167,729167,729167,729167,729167,{"$f":"O11-SUM(C11:M11)","v":2187497},{"$f":"'A3-FinPerf V'!I11","v":8750000},{"$f":"'A3-FinPerf V'!J11","v":9178750},{"$f":"'A3-FinPerf V'!K11","v":9610151}]
[{"$f":"'A3-FinPerf V'!A12","v":"Vote 8 - Public Safety"},null,null,null,0,0,0,0,0,0,0,0,0,{"$f":"O12-SUM(C12:M12)","v":0},{"$f":"'A3-FinPerf V'!I12","v":0},{"$f":"'A3-FinPerf V'!J12","v":0},{"$f":"'A3-FinPerf V'!K12","v":0}]
[{"$f":"'A3-FinPerf V'!A13","v":"Vote 9 - Waste Management"},null,null,null,1054058,1054058,1054058,1054058,1054058,1054058,1054058,1054058,1054058,{"$f":"O13-SUM(C13:M13)","v":3162173},{"$f":"'A3-FinPerf V'!I13","v":12648695},{"$f":"'A3-FinPerf V'!J13","v":13268482},{"$f":"'A3-FinPerf V'!K13","v":13892100}]
[{"$f":"'A3-FinPerf V'!A14","v":"Vote 10 - Sports & Recreation"},null,null,null,37500,37500,37500,37500,37500,37500,37500,37500,37500,{"$f":"O14-SUM(C14:M14)","v":112500},{"$f":"'A3-FinPerf V'!I14","v":450000},{"$f":"'A3-FinPerf V'!J14","v":472050},{"$f":"'A3-FinPerf V'!K14","v":494236}]
[{"$f":"'A3-FinPerf V'!A15","v":"Vote 11 - Water Management"},null,null,null,0,0,0,0,0,0,0,0,0,0,{"$f":"'A3-FinPerf V'!I15","v":0},{"$f":"'A3-FinPerf V'!J15","v":0},{"$f":"'A3-FinPerf V'!K15","v":0}]
[{"$f":"'A3-FinPerf V'!A16","v":"Vote 12 - Waste Water Management"},null,null,null,0,0,0,0,0,0,0,0,0,0,{"$f":"'A3-FinPerf V'!I16","v":0},{"$f":"'A3-FinPerf V'!J16","v":0},{"$f":"'A3-FinPerf V'!K16","v":0}]
[{"$f":"'A3-FinPerf V'!A17","v":"Vote 13 - Housing"},null,null,null,0,0,0,0,0,0,0,0,0,0,{"$f":"'A3-FinPerf V'!I17","v":0},{"$f":"'A3-FinPerf V'!J17","v":0},{"$f":"'A3-FinPerf V'!K17","v":0}]
[{"$f":"'A3-FinPerf V'!A18","v":"Vote 14 - Finance & Administration 2"},null,null,null,0,0,0,0,0,0,0,0,0,0,{"$f":"'A3-FinPerf V'!I18","v":0},{"$f":"'A3-FinPerf V'!J18","v":0},{"$f":"'A3-FinPerf V'!K18","v":0}]
[{"$f":"'A3-FinPerf V'!A19","v":"Vote 15 - [NAME OF VOTE 15]"},null,null,null,0,0,0,0,0,0,0,0,0,0,{"$f":"'A3-FinPerf V'!I19","v":0},{"$f":"'A3-FinPerf V'!J19","v":0},{"$f":"'A3-FinPerf V'!K19","v":0}]
[{"$f":"'A3-FinPerf V'!A20","v":"Total Revenue by Vote"},null,{"$f":"SUM(C5:C19)","v":0},0,53404761,{"$f":"SUM(F5:F19)","v":53404761},53404761,53404761,53404761,53404761,53404761,53404761,53404761,160214276,640857125,668891737,670735033]
[]
[{"$f":"'A3-FinPerf V'!A22","v":"Expenditure by Vote to be appropriated"}]
[{"$f":"A5","v":"Vote 1 -  Energy Sources"},null,null,null,{"$f":"ROUND($O23/12,0)","v":6074475},6074475,6074475,6074475,6074475,6074475,6074475,6074475,6074475,{"$f":"O23-SUM(C23:M23)","v":18223426},{"$f":"'A3-FinPerf V'!I23","v":72893701},{"$f":"'A3-FinPerf V'!J23","v":68742676},{"$f":"'A3-FinPerf V'!K23","v":66930600}]
["Vote 2 - Community and Social Services",null,null,null,1348366,1348366,1348366,1348366,1348366,1348366,1348366,1348366,1348366,4045099,{"$f":"'A3-FinPerf V'!I24","v":16180393},{"$f":"'A3-FinPerf V'!J24","v":16720628},{"$f":"'A3-FinPerf V'!K24","v":17437753}]
["Vote 3 - Finance & Administration",null,null,null,20918216,20918216,20918216,20918216,20918216,20918216,20918216,20918216,20918216,62754646,{"$f":"'A3-FinPerf V'!I25","v":251018590},{"$f":"'A3-FinPerf V'!J25","v":256634989},{"$f":"'A3-FinPerf V'!K25","v":264073513}]
["Vote 4 - Planning and Development",null,null,null,2409257,2409257,2409257,2409257,2409257,2409257,2409257,2409257,2409257,7227765,{"$f":"'A3-FinPerf V'!I26","v":28911078},{"$f":"'A3-FinPerf V'!J26","v":31912910},{"$f":"'A3-FinPerf V'!K26","v":34981557}]
["Vote 5 - Executive & Council",null,null,null,4040061,4040061,4040061,4040061,4040061,4040061,4040061,4040061,4040061,12120183,{"$f":"'A3-FinPerf V'!I27","v":48480732},{"$f":"'A3-FinPerf V'!J27","v":50659755},{"$f":"'A3-FinPerf V'!K27","v":52693321}]
["Vote 6 - Internal Audit",null,null,null,250606,250606,250606,250606,250606,250606,250606,250606,250606,751815,{"$f":"'A3-FinPerf V'!I28","v":3007269},{"$f":"'A3-FinPerf V'!J28","v":3131966},{"$f":"'A3-FinPerf V'!K28","v":3283421}]
["Vote 7 - Road Transport",null,null,null,7712309,7712309,7712309,7712309,7712309,7712309,7712309,7712309,7712309,23136930,{"$f":"'A3-FinPerf V'!I29","v":92547711},{"$f":"'A3-FinPerf V'!J29","v":93952837},{"$f":"'A3-FinPerf V'!K29","v":97341971}]
["Vote 8 - Public Safety",null,null,null,25000,25000,25000,25000,25000,25000,25000,25000,25000,{"$f":"O30-SUM(C30:M30)","v":75000},{"$f":"'A3-FinPerf V'!I30","v":300000},{"$f":"'A3-FinPerf V'!J30","v":350000},{"$f":"'A3-FinPerf V'!K30","v":400000}]
["Vote 9 - Waste Management",null,null,null,1691413,1691413,1691413,1691413,1691413,1691413,1691413,1691413,1691413,{"$f":"O31-SUM(C31:M31)","v":5074235},{"$f":"'A3-FinPerf V'!I31","v":20296952},{"$f":"'A3-FinPerf V'!J31","v":21056667},{"$f":"'A3-FinPerf V'!K31","v":22060601}]
[{"$f":"A14","v":"Vote 10 - Sports & Recreation"},null,null,null,693645,693645,693645,693645,693645,693645,693645,693645,693645,{"$f":"O32-SUM(C32:M32)","v":2080933},{"$f":"'A3-FinPerf V'!I32","v":8323738},{"$f":"'A3-FinPerf V'!J32","v":8585467},{"$f":"'A3-FinPerf V'!K32","v":8945044}]
["Vote 11 - Water Management",null,null,null,0,0,0,0,0,0,0,0,0,0,{"$f":"'A3-FinPerf V'!I33","v":0},{"$f":"'A3-FinPerf V'!J33","v":0},{"$f":"'A3-FinPerf V'!K33","v":0}]
["Vote 12 - Waste Water Management",null,null,null,0,0,0,0,0,0,0,0,0,0,{"$f":"'A3-FinPerf V'!I34","v":0},{"$f":"'A3-FinPerf V'!J34","v":0},{"$f":"'A3-FinPerf V'!K34","v":0}]
["Vote 13 - Housing",null,null,null,128827,128827,128827,128827,128827,128827,128827,128827,128827,386480,{"$f":"'A3-FinPerf V'!I35","v":1545923},{"$f":"'A3-FinPerf V'!J35","v":1513277},{"$f":"'A3-FinPerf V'!K35","v":1585109}]
["Vote 14 - Finance & Administration 2",null,null,null,5209611,5209611,5209611,5209611,5209611,5209611,5209611,5209611,5209611,15628830,{"$f":"'A3-FinPerf V'!I36","v":62515329},{"$f":"'A3-FinPerf V'!J36","v":65421079},{"$f":"'A3-FinPerf V'!K36","v":68353918}]
["Vote 15 - [NAME OF VOTE 15]",null,null,null,0,0,0,0,0,0,0,0,0,0,{"$f":"'A3-FinPerf V'!I37","v":0},{"$f":"'A3-FinPerf V'!J37","v":0},{"$f":"'A3-FinPerf V'!K37","v":0}]
[{"$f":"'A3-FinPerf V'!A38","v":"Total Expenditure by Vote"},null,{"$f":"SUM(C23:C37)","v":0},{"$f":"SUM(D23:D37)","v":0},50501786,50501786,50501786,50501786,50501786,50501786,50501786,50501786,50501786,151505342,{"$f":"SUM(O23:O37)","v":606021416},{"$f":"SUM(P23:P37)","v":618682251},{"$f":"SUM(Q23:Q37)","v":638086808}]
[]
[{"$f":"'A4-FinPerf RE'!A48&\" before assoc.\"","v":"Surplus/(Deficit) before assoc."},null,{"$f":"C20-C38","v":0},0,2902975,2902975,2902975,2902975,2902975,2902975,2902975,2902975,2902975,8708934,34835709,50209486,32648225]
[]
[{"$f":"'SA25'!A52","v":"Income Tax"},null,null,null,{"$f":"ROUND($O42/12,0)","v":0},0,0,0,0,0,0,0,0,{"$f":"O42-SUM(C42:M42)","v":0},{"$f":"'SA25'!O52","v":0},{"$f":"'SA25'!P52","v":0},{"$f":"'SA25'!Q52","v":0}]
[{"$f":"'SA25'!A55","v":"Share of Surplus/Deficit attributable to Minorities"},null,null,null,0,0,0,0,0,0,0,0,0,{"$f":"O43-SUM(C43:M43)","v":0},{"$f":"'SA25'!O55","v":0},{"$f":"'SA25'!P55","v":0},{"$f":"'SA25'!Q55","v":0}]
[{"$f":"'A4-FinPerf RE'!A58","v":"Intercompany/Parent subsidiary transactions"},null,null,null,0,0,0,0,0,0,0,0,0,{"$f":"O44-SUM(C44:M44)","v":0},{"$f":"'A4-FinPerf RE'!J58","v":0},{"$f":"'A4-FinPerf RE'!K58","v":0},{"$f":"'A4-FinPerf RE'!L58","v":0}]
[{"$f":"'A4-FinPerf RE'!A48","v":"Surplus/(Deficit)"},1,{"$f":"C40+C44","v":0},{"$f":"D40+D44","v":0},2902975,2902975,2902975,2902975,2902975,2902975,2902975,2902975,2902975,8708934,34835709,50209486,32648225]
[{"$f":"head27a","v":"References"}]
["1. Surplus (Deficit) must reconcile with Budgeted Financial Performance"]
["check",null,null,null,null,null,null,null,null,null,null,null,null,null,{"$f":"O45-'A4-FinPerf RE'!J59","v":0},{"$f":"P45-'A4-FinPerf RE'!K59","v":0},{"$f":"Q45-'A4-FinPerf RE'!L59","v":0}]

{"sheet":"SA27","index":72,"n_rows":56,"n_cols":17,"rows_kept":56,"cut":false,"hidden":false,"merged":[[1,2,1,13],[1,14,1,16]]}
[{"$f":"muni&\" - \"&TableA27","v":"LIM331 Greater Giyani - Supporting Table SA27 Budgeted monthly revenue and expenditure (functional classification)"},null,{"$f":"ROUND($O6/12,0)","v":0}]
[{"$f":"desc","v":"Description"},{"$f":"head27","v":"Ref"},{"$f":"Head9","v":"Budget Year 2023/24"},null,null,null,null,null,null,null,null,null,null,null,"Medium Term Revenue and Expenditure Framework"]
["R thousand",null,"July","August","Sept.","October","November","December","January","February","March","April","May","June",{"$f":"Head9","v":"Budget Year 2023/24"},{"$f":"Head10","v":"Budget Year +1 2024/25"},{"$f":"Head11","v":"Budget Year +2 2025/26"}]
[{"$f":"'A2-FinPerf SC'!A4","v":"Revenue - Functional"}]
[{"$f":"'A2-FinPerf SC'!A5","v":"Governance and administration"},null,{"$f":"SUM(C6:C8)","v":51468541},{"$f":"SUM(D6:D8)","v":51468541},{"$f":"SUM(E6:E8)","v":51468541},51468541,51468541,51468541,51468541,51468541,51468541,51468541,51468541,{"$f":"O5-SUM(C5:M5)","v":51468540},{"$f":"'A2-FinPerf SC'!I5","v":617622491},{"$f":"'A2-FinPerf SC'!J5","v":644518605},{"$f":"'A2-FinPerf SC'!K5","v":645216367}]
[{"$f":"'A2-FinPerf SC'!A6","v":"Executive and council"},null,{"$f":"ROUND($O6/12,0)","v":0},{"$f":"ROUND($O6/12,0)","v":0},0,0,0,0,0,0,0,0,0,0,{"$f":"'A2-FinPerf SC'!I6","v":0},{"$f":"'A2-FinPerf SC'!J6","v":0},{"$f":"'A2-FinPerf SC'!K6","v":0}]
[{"$f":"'A2-FinPerf SC'!A7","v":"Finance and administration"},null,{"$f":"ROUND($O7/12,0)","v":51468541},51468541,51468541,51468541,51468541,51468541,51468541,51468541,51468541,51468541,51468541,51468540,{"$f":"'A2-FinPerf SC'!I7","v":617622491},{"$f":"'A2-FinPerf SC'!J7","v":644518605},{"$f":"'A2-FinPerf SC'!K7","v":645216367}]
[{"$f":"'A2-FinPerf SC'!A8","v":"Internal audit"},null,0,0,0,0,0,0,0,0,0,0,0,0,{"$f":"'A2-FinPerf SC'!I8","v":0},{"$f":"'A2-FinPerf SC'!J8","v":0},{"$f":"'A2-FinPerf SC'!K8","v":0}]
[{"$f":"'A2-FinPerf SC'!A9","v":"Community and public safety"},null,{"$f":"SUM(C10:C14)","v":84662},{"$f":"SUM(D10:D14)","v":84662},84662,84662,84662,84662,84662,84662,84662,84662,84662,84657,{"$f":"'A2-FinPerf SC'!I9","v":1015939},{"$f":"'A2-FinPerf SC'!J9","v":1065720},{"$f":"'A2-FinPerf SC'!K9","v":1115807}]
[{"$f":"'A2-FinPerf SC'!A10","v":"Community and social services"},null,47162,47162,47162,47162,47162,47162,47162,47162,47162,47162,47162,47157,{"$f":"'A2-FinPerf SC'!I10","v":565939},{"$f":"'A2-FinPerf SC'!J10","v":593670},{"$f":"'A2-FinPerf SC'!K10","v":621571}]
[{"$f":"'A2-FinPerf SC'!A11","v":"Sport and recreation"},null,37500,37500,37500,37500,37500,37500,37500,37500,37500,37500,37500,37500,{"$f":"'A2-FinPerf SC'!I11","v":450000},{"$f":"'A2-FinPerf SC'!J11","v":472050},{"$f":"'A2-FinPerf SC'!K11","v":494236}]
[{"$f":"'A2-FinPerf SC'!A12","v":"Public safety"},null,0,0,0,0,0,0,0,0,0,0,0,0,{"$f":"'A2-FinPerf SC'!I12","v":0},{"$f":"'A2-FinPerf SC'!J12","v":0},{"$f":"'A2-FinPerf SC'!K12","v":0}]
[{"$f":"'A2-FinPerf SC'!A13","v":"Housing"},null,0,0,0,0,0,0,0,0,0,0,0,0,{"$f":"'A2-FinPerf SC'!I13","v":0},{"$f":"'A2-FinPerf SC'!J13","v":0},{"$f":"'A2-FinPerf SC'!K13","v":0}]
[{"$f":"'A2-FinPerf SC'!A14","v":"Health"},null,0,0,0,0,0,0,0,0,0,0,0,0,{"$f":"'A2-FinPerf SC'!I14","v":0},{"$f":"'A2-FinPerf SC'!J14","v":0},{"$f":"'A2-FinPerf SC'!K14","v":0}]
[{"$f":"'A2-FinPerf SC'!A15","v":"Economic and environmental services"},null,{"$f":"SUM(C16:C18)","v":797500},{"$f":"SUM(D16:D18)","v":797500},797500,797500,797500,797500,797500,797500,797500,797500,797500,797500,{"$f":"'A2-FinPerf SC'!I15","v":9570000},{"$f":"'A2-FinPerf SC'!J15","v":10038930},{"$f":"'A2-FinPerf SC'!K15","v":10510759}]
[{"$f":"'A2-FinPerf SC'!A16","v":"Planning and development"},null,68333,68333,68333,68333,68333,68333,68333,68333,68333,68333,68333,68337,{"$f":"'A2-FinPerf SC'!I16","v":820000},{"$f":"'A2-FinPerf SC'!J16","v":860180},{"$f":"'A2-FinPerf SC'!K16","v":900608}]
[{"$f":"'A2-FinPerf SC'!A17","v":"Road transport"},null,729167,729167,729167,729167,729167,729167,729167,729167,729167,729167,729167,729163,{"$f":"'A2-FinPerf SC'!I17","v":8750000},{"$f":"'A2-FinPerf SC'!J17","v":9178750},{"$f":"'A2-FinPerf SC'!K17","v":9610151}]
[{"$f":"'A2-FinPerf SC'!A18","v":"Environmental protection"},null,0,0,0,0,0,0,0,0,0,0,0,0,{"$f":"'A2-FinPerf SC'!I18","v":0},{"$f":"'A2-FinPerf SC'!J18","v":0},{"$f":"'A2-FinPerf SC'!K18","v":0}]
[{"$f":"'A2-FinPerf SC'!A19","v":"Trading services"},null,{"$f":"SUM(C20:C23)","v":1054058},{"$f":"SUM(D20:D23)","v":1054058},1054058,1054058,1054058,1054058,1054058,1054058,1054058,1054058,1054058,{"$f":"O19-SUM(C19:M19)","v":1054057},{"$f":"'A2-FinPerf SC'!I19","v":12648695},{"$f":"'A2-FinPerf SC'!J19","v":13268482},{"$f":"'A2-FinPerf SC'!K19","v":13892100}]
[{"$f":"'A2-FinPerf SC'!A20","v":"Energy sources"},null,0,0,0,0,0,0,0,0,0,0,0,0,{"$f":"'A2-FinPerf SC'!I20","v":0},{"$f":"'A2-FinPerf SC'!J20","v":0},{"$f":"'A2-FinPerf SC'!K20","v":0}]
[{"$f":"'A2-FinPerf SC'!A21","v":"Water management"},null,0,0,0,0,0,0,0,0,0,0,0,0,{"$f":"'A2-FinPerf SC'!I21","v":0},{"$f":"'A2-FinPerf SC'!J21","v":0},{"$f":"'A2-FinPerf SC'!K21","v":0}]
[{"$f":"'A2-FinPerf SC'!A22","v":"Waste water management"},null,0,0,0,0,0,0,0,0,0,0,0,0,{"$f":"'A2-FinPerf SC'!I22","v":0},{"$f":"'A2-FinPerf SC'!J22","v":0},{"$f":"'A2-FinPerf SC'!K22","v":0}]
[{"$f":"'A2-FinPerf SC'!A23","v":"Waste management"},null,{"$f":"ROUND($O23/12,0)","v":1054058},1054058,1054058,1054058,1054058,1054058,1054058,1054058,1054058,1054058,1054058,1054057,{"$f":"'A2-FinPerf SC'!I23","v":12648695},{"$f":"'A2-FinPerf SC'!J23","v":13268482},{"$f":"'A2-FinPerf SC'!K23","v":13892100}]
[{"$f":"'A2-FinPerf SC'!A24","v":"Other"},null,0,0,0,0,0,0,0,0,0,0,0,0,{"$f":"'A2-FinPerf SC'!I24","v":0},{"$f":"'A2-FinPerf SC'!J24","v":0},{"$f":"'A2-FinPerf SC'!K24","v":0}]
[{"$f":"'A2-FinPerf SC'!A25","v":"Total Revenue - Functional"},null,{"$f":"C5+C9+C15+C19+C24","v":53404761},53404761,53404761,53404761,53404761,53404761,53404761,53404761,53404761,53404761,53404761,53404754,640857125,668891737,670735033]
[null,null,null,{"$f":"D6+D10+D16+D20+D25","v":53520256},53520256,53520256,53520256,53520256,53520256,53520256,53520256,53520256,{"$f":"M6+M10+M16+M20+M25","v":53520256}]
[{"$f":"'A2-FinPerf SC'!A27","v":"Expenditure - Functional"}]
[{"$f":"'A2-FinPerf SC'!A28","v":"Governance and administration"},null,{"$f":"SUM(C29:C31)","v":30418494},{"$f":"SUM(D29:D31)","v":30418494},{"$f":"SUM(E29:E31)","v":30418494},30418494,30418494,30418494,30418494,30418494,30418494,30418494,30418494,{"$f":"O28-SUM(C28:M28)","v":30418486},{"$f":"'A2-FinPerf SC'!I28","v":365021920},{"$f":"'A2-FinPerf SC'!J28","v":375847789},{"$f":"'A2-FinPerf SC'!K28","v":388404173}]
[{"$f":"'A2-FinPerf SC'!A29","v":"Executive and council"},null,{"$f":"ROUND($O29/12,0)","v":4040061},4040061,4040061,4040061,4040061,4040061,4040061,4040061,4040061,4040061,4040061,4040061,{"$f":"'A2-FinPerf SC'!I29","v":48480732},{"$f":"'A2-FinPerf SC'!J29","v":50659755},{"$f":"'A2-FinPerf SC'!K29","v":52693321}]
[{"$f":"'A2-FinPerf SC'!A30","v":"Finance and administration"},null,26127827,26127827,26127827,26127827,26127827,26127827,26127827,26127827,26127827,26127827,26127827,26127822,{"$f":"'A2-FinPerf SC'!I30","v":313533919},{"$f":"'A2-FinPerf SC'!J30","v":322056068},{"$f":"'A2-FinPerf SC'!K30","v":332427431}]
[{"$f":"'A2-FinPerf SC'!A31","v":"Internal audit"},null,250606,250606,250606,250606,250606,250606,250606,250606,250606,250606,250606,250603,{"$f":"'A2-FinPerf SC'!I31","v":3007269},{"$f":"'A2-FinPerf SC'!J31","v":3131966},{"$f":"'A2-FinPerf SC'!K31","v":3283421}]
[{"$f":"'A2-FinPerf SC'!A32","v":"Community and public safety"},null,{"$f":"SUM(C33:C37)","v":2195838},{"$f":"SUM(D33:D37)","v":2195838},2195838,2195838,2195838,2195838,2195838,2195838,2195838,2195838,2195838,2195836,{"$f":"'A2-FinPerf SC'!I32","v":26350054},{"$f":"'A2-FinPerf SC'!J32","v":27169372},{"$f":"'A2-FinPerf SC'!K32","v":28367906}]
[{"$f":"'A2-FinPerf SC'!A33","v":"Community and social services"},null,{"$f":"ROUND($O33/12,0)","v":1348366},1348366,1348366,1348366,1348366,1348366,1348366,1348366,1348366,1348366,1348366,1348367,{"$f":"'A2-FinPerf SC'!I33","v":16180393},{"$f":"'A2-FinPerf SC'!J33","v":16720628},{"$f":"'A2-FinPerf SC'!K33","v":17437753}]
[{"$f":"'A2-FinPerf SC'!A34","v":"Sport and recreation"},null,693645,693645,693645,693645,693645,693645,693645,693645,693645,693645,693645,693643,{"$f":"'A2-FinPerf SC'!I34","v":8323738},{"$f":"'A2-FinPerf SC'!J34","v":8585467},{"$f":"'A2-FinPerf SC'!K34","v":8945044}]
[{"$f":"'A2-FinPerf SC'!A35","v":"Public safety"},null,25000,25000,25000,25000,25000,25000,25000,25000,25000,25000,25000,25000,{"$f":"'A2-FinPerf SC'!I35","v":300000},{"$f":"'A2-FinPerf SC'!J35","v":350000},{"$f":"'A2-FinPerf SC'!K35","v":400000}]
[{"$f":"'A2-FinPerf SC'!A36","v":"Housing"},null,128827,128827,128827,128827,128827,128827,128827,128827,128827,128827,128827,128826,{"$f":"'A2-FinPerf SC'!I36","v":1545923},{"$f":"'A2-FinPerf SC'!J36","v":1513277},{"$f":"'A2-FinPerf SC'!K36","v":1585109}]
[{"$f":"'A2-FinPerf SC'!A37","v":"Health"},null,0,0,0,0,0,0,0,0,0,0,0,0,{"$f":"'A2-FinPerf SC'!I37","v":0},{"$f":"'A2-FinPerf SC'!J37","v":0},{"$f":"'A2-FinPerf SC'!K37","v":0}]
[{"$f":"'A2-FinPerf SC'!A38","v":"Economic and environmental services"},null,{"$f":"SUM(C39:C41)","v":10121566},{"$f":"SUM(D39:D41)","v":10121566},10121566,10121566,10121566,10121566,10121566,10121566,10121566,10121566,10121566,{"$f":"O38-SUM(C38:M38)","v":10121563},{"$f":"'A2-FinPerf SC'!I38","v":121458789},{"$f":"'A2-FinPerf SC'!J38","v":125865747},{"$f":"'A2-FinPerf SC'!K38","v":132323528}]
[{"$f":"'A2-FinPerf SC'!A39","v":"Planning and development"},null,{"$f":"ROUND($O39/12,0)","v":2409257},2409257,2409257,2409257,2409257,2409257,2409257,2409257,2409257,2409257,2409257,2409251,{"$f":"'A2-FinPerf SC'!I39","v":28911078},{"$f":"'A2-FinPerf SC'!J39","v":31912910},{"$f":"'A2-FinPerf SC'!K39","v":34981557}]
[{"$f":"'A2-FinPerf SC'!A40","v":"Road transport"},null,7712309,7712309,7712309,7712309,7712309,7712309,7712309,7712309,7712309,7712309,7712309,7712312,{"$f":"'A2-FinPerf SC'!I40","v":92547711},{"$f":"'A2-FinPerf SC'!J40","v":93952837},{"$f":"'A2-FinPerf SC'!K40","v":97341971}]
[{"$f":"'A2-FinPerf SC'!A41","v":"Environmental protection"},null,0,0,0,0,0,0,0,0,0,0,0,0,{"$f":"'A2-FinPerf SC'!I41","v":0},{"$f":"'A2-FinPerf SC'!J41","v":0},{"$f":"'A2-FinPerf SC'!K41","v":0}]
[{"$f":"'A2-FinPerf SC'!A42","v":"Trading services"},null,{"$f":"SUM(C43:C46)","v":7765888},{"$f":"SUM(D43:D46)","v":7765888},7765888,7765888,7765888,7765888,7765888,7765888,7765888,7765888,7765888,{"$f":"O42-SUM(C42:M42)","v":7765885},{"$f":"'A2-FinPerf SC'!I42","v":93190653},{"$f":"'A2-FinPerf SC'!J42","v":89799343},{"$f":"'A2-FinPerf SC'!K42","v":88991201}]
[{"$f":"'A2-FinPerf SC'!A43","v":"Energy sources"},null,{"$f":"ROUND($O43/12,0)","v":6074475},6074475,6074475,6074475,6074475,6074475,6074475,6074475,6074475,6074475,6074475,6074476,{"$f":"'A2-FinPerf SC'!I43","v":72893701},{"$f":"'A2-FinPerf SC'!J43","v":68742676},{"$f":"'A2-FinPerf SC'!K43","v":66930600}]
[{"$f":"'A2-FinPerf SC'!A44","v":"Water management"},null,0,0,0,0,0,0,0,0,0,0,0,0,{"$f":"'A2-FinPerf SC'!I44","v":0},{"$f":"'A2-FinPerf SC'!J44","v":0},{"$f":"'A2-FinPerf SC'!K44","v":0}]
[{"$f":"'A2-FinPerf SC'!A45","v":"Waste water management"},null,0,0,0,0,0,0,0,0,0,0,0,0,{"$f":"'A2-FinPerf SC'!I45","v":0},{"$f":"'A2-FinPerf SC'!J45","v":0},{"$f":"'A2-FinPerf SC'!K45","v":0}]
[{"$f":"'A2-FinPerf SC'!A46","v":"Waste management"},null,1691413,1691413,1691413,1691413,1691413,1691413,1691413,1691413,1691413,1691413,1691413,1691409,{"$f":"'A2-FinPerf SC'!I46","v":20296952},{"$f":"'A2-FinPerf SC'!J46","v":21056667},{"$f":"'A2-FinPerf SC'!K46","v":22060601}]
[{"$f":"'A2-FinPerf SC'!A47","v":"Other"},null,0,0,0,0,0,0,0,0,0,0,0,0,{"$f":"'A2-FinPerf SC'!I47","v":0},{"$f":"'A2-FinPerf SC'!J47","v":0},{"$f":"'A2-FinPerf SC'!K47","v":0}]
[{"$f":"'A2-FinPerf SC'!A48","v":"Total Expenditure - Functional"},null,{"$f":"C28+C32+C38+C42+C47","v":50501786},{"$f":"D28+D32+D38+D42+D47","v":50501786},50501786,50501786,50501786,50501786,50501786,50501786,50501786,50501786,50501786,50501770,606021416,618682251,{"$f":"Q28+Q32+Q38+Q42+Q47","v":638086808}]
[]
[{"$f":"'A4-FinPerf RE'!A48&\" before assoc.\"","v":"Surplus/(Deficit) before assoc."},null,{"$f":"C25-C48","v":2902975},2902975,2902975,2902975,2902975,2902975,2902975,2902975,2902975,2902975,2902975,2902984,34835709,50209486,32648225]
[]
[{"$f":"'A4-FinPerf RE'!A58","v":"Intercompany/Parent subsidiary transactions"},null,{"$f":"ROUND($O52/12,0)","v":0},0,0,0,0,0,0,0,0,0,0,{"$f":"O52-SUM(C52:M52)","v":0},{"$f":"'A4-FinPerf RE'!J58","v":0},{"$f":"'A4-FinPerf RE'!K58","v":0},{"$f":"'A4-FinPerf RE'!L58","v":0}]
[{"$f":"'A4-FinPerf RE'!A48","v":"Surplus/(Deficit)"},1,{"$f":"C50+C52","v":2902975},{"$f":"D50+D52","v":2902975},2902975,2902975,2902975,2902975,2902975,2902975,2902975,2902975,2902975,2902984,34835709,50209486,32648225]
[{"$f":"head27a","v":"References"}]
["1. Surplus (Deficit) must reconcile with Budeted Financial Performance"]
["check",null,null,null,null,null,null,null,null,null,null,null,null,null,{"$f":"O53-'A4-FinPerf RE'!J59","v":0},{"$f":"P53-'A4-FinPerf RE'!K59","v":0},{"$f":"Q53-'A4-FinPerf RE'!L59","v":0}]

{"sheet":"SA28","index":73,"n_rows":47,"n_cols":17,"rows_kept":47,"cut":false,"hidden":false,"merged":[[1,2,1,13],[1,14,1,16]]}
[{"$f":"muni&\" - \"& TableA28","v":"LIM331 Greater Giyani - Supporting Table SA28 Budgeted monthly capital expenditure (municipal vote)"}]
[{"$f":"desc","v":"Description"},{"$f":"head27","v":"Ref"},{"$f":"Head9","v":"Budget Year 2023/24"},null,null,null,null,null,null,null,null,null,null,null,"Medium Term Revenue and Expenditure Framework"]
["R thousand",null,"July","August","Sept.","October","Nov.","Dec.","January","Feb.","March","April","May","June",{"$f":"Head9","v":"Budget Year 2023/24"},{"$f":"Head10","v":"Budget Year +1 2024/25"},{"$f":"Head11","v":"Budget Year +2 2025/26"}]
["Multi-year expenditure to be appropriated",1]
[{"$f":"'A5-Capex'!A6","v":"Vote 1 -  Energy Sources"},null,{"$f":"ROUND($O5/12,0)","v":0},{"$f":"ROUND($O5/12,0)","v":0},0,0,0,0,0,0,0,0,0,{"$f":"O5-SUM(C5:M5)","v":0},{"$f":"'A5-Capex'!J6","v":0},{"$f":"'A5-Capex'!K6","v":0},{"$f":"'A5-Capex'!L6","v":0}]
[{"$f":"'A5-Capex'!A7","v":"Vote 2 - Community and Social Services"},null,{"$f":"ROUND($O6/12,0)","v":0},0,0,0,0,0,0,0,0,0,0,{"$f":"O6-SUM(C6:M6)","v":0},{"$f":"'A5-Capex'!J7","v":0},{"$f":"'A5-Capex'!K7","v":0},{"$f":"'A5-Capex'!L7","v":0}]
[{"$f":"'A5-Capex'!A8","v":"Vote 3 - Finance & Administration"},null,0,0,0,0,0,0,0,0,0,0,0,0,{"$f":"'A5-Capex'!J8","v":0},{"$f":"'A5-Capex'!K8","v":0},{"$f":"'A5-Capex'!L8","v":0}]
[{"$f":"'A5-Capex'!A9","v":"Vote 4 - Planning and Development"},null,0,0,0,0,0,0,0,0,0,0,0,0,{"$f":"'A5-Capex'!J9","v":0},{"$f":"'A5-Capex'!K9","v":0},{"$f":"'A5-Capex'!L9","v":0}]
[{"$f":"'A5-Capex'!A10","v":"Vote 5 - Executive & Council"},null,0,0,0,0,0,0,0,0,0,0,0,0,{"$f":"'A5-Capex'!J10","v":0},{"$f":"'A5-Capex'!K10","v":0},{"$f":"'A5-Capex'!L10","v":0}]
[{"$f":"'A5-Capex'!A11","v":"Vote 6 - Internal Audit"},null,0,0,0,0,0,0,0,0,0,0,0,0,{"$f":"'A5-Capex'!J11","v":0},{"$f":"'A5-Capex'!K11","v":0},{"$f":"'A5-Capex'!L11","v":0}]
[{"$f":"'A5-Capex'!A12","v":"Vote 7 - Road Transport"},null,0,0,0,0,0,0,0,0,0,0,0,0,{"$f":"'A5-Capex'!J12","v":0},{"$f":"'A5-Capex'!K12","v":0},{"$f":"'A5-Capex'!L12","v":0}]
[{"$f":"'A5-Capex'!A13","v":"Vote 8 - Public Safety"},null,0,0,0,0,0,0,0,0,0,0,0,{"$f":"O12-SUM(C12:M12)","v":0},{"$f":"'A5-Capex'!J13","v":0},{"$f":"'A5-Capex'!K13","v":0},{"$f":"'A5-Capex'!L13","v":0}]
[{"$f":"'A5-Capex'!A14","v":"Vote 9 - Waste Management"},null,0,0,0,0,0,0,0,0,0,0,0,{"$f":"O13-SUM(C13:M13)","v":0},{"$f":"'A5-Capex'!J14","v":0},{"$f":"'A5-Capex'!K14","v":0},{"$f":"'A5-Capex'!L14","v":0}]
[{"$f":"'A5-Capex'!A15","v":"Vote 10 - Sports & Recreation"},null,0,0,0,0,0,0,0,0,0,0,0,{"$f":"O14-SUM(C14:M14)","v":0},{"$f":"'A5-Capex'!J15","v":0},{"$f":"'A5-Capex'!K15","v":0},{"$f":"'A5-Capex'!L15","v":0}]
[{"$f":"'A5-Capex'!A16","v":"Vote 11 - Water Management"},null,0,0,0,0,0,0,0,0,0,0,0,0,{"$f":"'A5-Capex'!J16","v":0},{"$f":"'A5-Capex'!K16","v":0},{"$f":"'A5-Capex'!L16","v":0}]
[{"$f":"'A5-Capex'!A17","v":"Vote 12 - Waste Water Management"},null,0,0,0,0,0,0,0,0,0,0,0,0,{"$f":"'A5-Capex'!J17","v":0},{"$f":"'A5-Capex'!K17","v":0},{"$f":"'A5-Capex'!L17","v":0}]
[{"$f":"'A5-Capex'!A18","v":"Vote 13 - Housing"},null,0,0,0,0,0,0,0,0,0,0,0,0,{"$f":"'A5-Capex'!J18","v":0},{"$f":"'A5-Capex'!K18","v":0},{"$f":"'A5-Capex'!L18","v":0}]
[{"$f":"'A5-Capex'!A19","v":"Vote 14 - Finance & Administration 2"},null,0,0,0,0,0,0,0,0,0,0,0,0,{"$f":"'A5-Capex'!J19","v":0},{"$f":"'A5-Capex'!K19","v":0},{"$f":"'A5-Capex'!L19","v":0}]
[{"$f":"'A5-Capex'!A20","v":"Vote 15 - [NAME OF VOTE 15]"},null,0,0,0,0,0,0,0,0,0,0,0,0,{"$f":"'A5-Capex'!J20","v":0},{"$f":"'A5-Capex'!K20","v":0},{"$f":"'A5-Capex'!L20","v":0}]
["Capital multi-year expenditure sub-total",2,{"$f":"SUM(C5:C19)","v":0},{"$f":"SUM(D5:D19)","v":0},0,0,0,0,0,0,0,0,{"$f":"SUM(M5:M19)","v":0},0,0,0,0]
[]
["Single-year expenditure to be appropriated"]
[{"$f":"'A5-Capex'!A24","v":"Vote 1 -  Energy Sources"},null,{"$f":"ROUND($O23/12,0)","v":500000},500000,500000,500000,500000,500000,500000,500000,500000,500000,500000,{"$f":"O23-SUM(C23:M23)","v":500000},{"$f":"'A5-Capex'!J24","v":6000000},{"$f":"'A5-Capex'!K24","v":5000000},{"$f":"'A5-Capex'!L24","v":5000000}]
[{"$f":"'A5-Capex'!A25","v":"Vote 2 - Community and Social Services"},null,667451,667451,667451,667451,667451,667451,667451,667451,667451,667451,667451,{"$f":"O24-SUM(C24:M24)","v":667449},{"$f":"'A5-Capex'!J25","v":8009410},{"$f":"'A5-Capex'!K25","v":1100000},{"$f":"'A5-Capex'!L25","v":1200000}]
[{"$f":"'A5-Capex'!A26","v":"Vote 3 - Finance & Administration"},null,1272917,1272917,1272917,1272917,1272917,1272917,1272917,1272917,1272917,1272917,1272917,1272913,{"$f":"'A5-Capex'!J26","v":15275000},{"$f":"'A5-Capex'!K26","v":14820000},{"$f":"'A5-Capex'!L26","v":15030000}]
[{"$f":"'A5-Capex'!A27","v":"Vote 4 - Planning and Development"},null,83333,83333,83333,83333,83333,83333,83333,83333,83333,83333,83333,83337,{"$f":"'A5-Capex'!J27","v":1000000},{"$f":"'A5-Capex'!K27","v":0},{"$f":"'A5-Capex'!L27","v":0}]
[{"$f":"'A5-Capex'!A28","v":"Vote 5 - Executive & Council"},null,0,0,0,0,0,0,0,0,0,0,0,0,{"$f":"'A5-Capex'!J28","v":0},{"$f":"'A5-Capex'!K28","v":0},{"$f":"'A5-Capex'!L28","v":0}]
[{"$f":"'A5-Capex'!A29","v":"Vote 6 - Internal Audit"},null,45833,45833,45833,45833,45833,45833,45833,45833,45833,45833,45833,45837,{"$f":"'A5-Capex'!J29","v":550000},{"$f":"'A5-Capex'!K29","v":0},{"$f":"'A5-Capex'!L29","v":0}]
[{"$f":"'A5-Capex'!A30","v":"Vote 7 - Road Transport"},null,7156159,7156159,7156159,7156159,7156159,7156159,7156159,7156159,7156159,7156159,7156159,7156161,{"$f":"'A5-Capex'!J30","v":85873910},{"$f":"'A5-Capex'!K30","v":130686968},{"$f":"'A5-Capex'!L30","v":129815856}]
[{"$f":"'A5-Capex'!A31","v":"Vote 8 - Public Safety"},null,108333,108333,108333,108333,108333,108333,108333,108333,108333,108333,108333,{"$f":"O30-SUM(C30:M30)","v":108337},{"$f":"'A5-Capex'!J31","v":1300000},{"$f":"'A5-Capex'!K31","v":0},{"$f":"'A5-Capex'!L31","v":0}]
[{"$f":"'A5-Capex'!A32","v":"Vote 9 - Waste Management"},null,166667,166667,166667,166667,166667,166667,166667,166667,166667,166667,166667,{"$f":"O31-SUM(C31:M31)","v":166663},{"$f":"'A5-Capex'!J32","v":2000000},{"$f":"'A5-Capex'!K32","v":2100000},{"$f":"'A5-Capex'!L32","v":2200000}]
[{"$f":"'A5-Capex'!A33","v":"Vote 10 - Sports & Recreation"},null,1592807,1592807,1592807,1592807,1592807,1592807,1592807,1592807,1592807,1592807,1592807,{"$f":"O32-SUM(C32:M32)","v":1592802},{"$f":"'A5-Capex'!J33","v":19113679},{"$f":"'A5-Capex'!K33","v":13500000},{"$f":"'A5-Capex'!L33","v":0}]
[{"$f":"'A5-Capex'!A34","v":"Vote 11 - Water Management"},null,0,0,0,0,0,0,0,0,0,0,0,0,{"$f":"'A5-Capex'!J34","v":0},{"$f":"'A5-Capex'!K34","v":0},{"$f":"'A5-Capex'!L34","v":0}]
[{"$f":"'A5-Capex'!A35","v":"Vote 12 - Waste Water Management"},null,0,0,0,0,0,0,0,0,0,0,0,0,{"$f":"'A5-Capex'!J35","v":0},{"$f":"'A5-Capex'!K35","v":0},{"$f":"'A5-Capex'!L35","v":0}]
[{"$f":"'A5-Capex'!A36","v":"Vote 13 - Housing"},null,1105766,1105766,1105766,1105766,1105766,1105766,1105766,1105766,1105766,1105766,1105766,1105763,{"$f":"'A5-Capex'!J36","v":13269189},{"$f":"'A5-Capex'!K36","v":0},{"$f":"'A5-Capex'!L36","v":0}]
[{"$f":"'A5-Capex'!A37","v":"Vote 14 - Finance & Administration 2"},null,533333,533333,533333,533333,533333,533333,533333,533333,533333,533333,533333,533337,{"$f":"'A5-Capex'!J37","v":6400000},{"$f":"'A5-Capex'!K37","v":6120000},{"$f":"'A5-Capex'!L37","v":6390000}]
[{"$f":"'A5-Capex'!A38","v":"Vote 15 - [NAME OF VOTE 15]"},null,0,0,0,0,0,0,0,0,0,0,0,0,{"$f":"'A5-Capex'!J38","v":0},{"$f":"'A5-Capex'!K38","v":0},{"$f":"'A5-Capex'!L38","v":0}]
["Capital single-year expenditure sub-total",2,{"$f":"SUM(C23:C37)","v":13232599},13232599,13232599,13232599,13232599,13232599,13232599,13232599,13232599,13232599,13232599,13232599,158791188,173326968,159635856]
["Total Capital Expenditure",2,{"$f":"C20+C38","v":13232599},{"$f":"D20+D38","v":13232599},13232599,13232599,13232599,13232599,13232599,13232599,13232599,13232599,13232599,13232599,{"$f":"O20+O38","v":158791188},{"$f":"P20+P38","v":173326968},{"$f":"Q20+Q38","v":159635856}]
[]
[]
[{"$f":"head27a","v":"References"}]
["1. Table should be completed as either Multi-Year expenditure appropriation or Budget Year and Forward Year estimates"]
["2. Total Capital Expenditure must reconcile to Budgeted Capital Expenditure"]
["check",null,null,null,null,null,null,null,null,null,null,null,null,null,{"$f":"O20-'A5-Capex'!J21","v":0},{"$f":"P20-'A5-Capex'!K21","v":0},{"$f":"Q20-'A5-Capex'!L21","v":0}]
[]
[null,null,null,null,"Add single year stuff"]

{"sheet":"SA29","index":74,"n_rows":40,"n_cols":17,"rows_kept":40,"cut":false,"hidden":false,"merged":[[1,2,1,13],[1,14,1,16]]}
[{"$f":"muni&\" - \"& TableA29","v":"LIM331 Greater Giyani - Supporting Table SA29 Budgeted monthly capital expenditure (functional classification)"}]
[{"$f":"desc","v":"Description"},{"$f":"head27","v":"Ref"},{"$f":"Head9","v":"Budget Year 2023/24"},null,null,null,null,null,null,null,null,null,null,null,"Medium Term Revenue and Expenditure Framework"]
["R thousand",null,"July","August","Sept.","October","Nov.","Dec.","January","Feb.","March","April","May","June",{"$f":"Head9","v":"Budget Year 2023/24"},{"$f":"Head10","v":"Budget Year +1 2024/25"},{"$f":"Head11","v":"Budget Year +2 2025/26"}]
[{"$f":"'A5-Capex'!A42","v":"Capital Expenditure - Functional"},1]
[{"$f":"'A5-Capex'!A43","v":"Governance and administration"},null,{"$f":"SUM(C6:C8)","v":1852083},{"$f":"SUM(D6:D8)","v":1852083},{"$f":"SUM(E6:E8)","v":1852083},1852083,1852083,1852083,1852083,1852083,1852083,1852083,1852083,{"$f":"O5-SUM(C5:M5)","v":1852087},{"$f":"'A5-Capex'!J43","v":22225000},{"$f":"'A5-Capex'!K43","v":20940000},{"$f":"'A5-Capex'!L43","v":21420000}]
[{"$f":"'A5-Capex'!A44","v":"Executive and council"},null,{"$f":"ROUND($O6/12,0)","v":0},{"$f":"ROUND($O6/12,0)","v":0},0,0,0,0,0,0,0,0,0,{"$f":"O6-SUM(C6:M6)","v":0},{"$f":"'A5-Capex'!J44","v":0},{"$f":"'A5-Capex'!K44","v":0},{"$f":"'A5-Capex'!L44","v":0}]
[{"$f":"'A5-Capex'!A45","v":"Finance and administration"},null,{"$f":"ROUND($O7/12,0)","v":1806250},1806250,1806250,1806250,1806250,1806250,1806250,1806250,1806250,1806250,1806250,1806250,{"$f":"'A5-Capex'!J45","v":21675000},{"$f":"'A5-Capex'!K45","v":20940000},{"$f":"'A5-Capex'!L45","v":21420000}]
[{"$f":"'A5-Capex'!A46","v":"Internal audit"},null,45833,45833,45833,45833,45833,45833,45833,45833,45833,45833,45833,45837,{"$f":"'A5-Capex'!J46","v":550000},{"$f":"'A5-Capex'!K46","v":0},{"$f":"'A5-Capex'!L46","v":0}]
[{"$f":"'A5-Capex'!A47","v":"Community and public safety"},null,{"$f":"SUM(C10:C14)","v":3474357},{"$f":"SUM(D10:D14)","v":3474357},3474357,3474357,3474357,3474357,3474357,3474357,3474357,3474357,3474357,3474351,{"$f":"'A5-Capex'!J47","v":41692278},{"$f":"'A5-Capex'!K47","v":14600000},{"$f":"'A5-Capex'!L47","v":1200000}]
[{"$f":"'A5-Capex'!A48","v":"Community and social services"},null,667451,667451,667451,667451,667451,667451,667451,667451,667451,667451,667451,667449,{"$f":"'A5-Capex'!J48","v":8009410},{"$f":"'A5-Capex'!K48","v":1100000},{"$f":"'A5-Capex'!L48","v":1200000}]
[{"$f":"'A5-Capex'!A49","v":"Sport and recreation"},null,1592807,1592807,1592807,1592807,1592807,1592807,1592807,1592807,1592807,1592807,1592807,1592802,{"$f":"'A5-Capex'!J49","v":19113679},{"$f":"'A5-Capex'!K49","v":13500000},{"$f":"'A5-Capex'!L49","v":0}]
[{"$f":"'A5-Capex'!A50","v":"Public safety"},null,108333,108333,108333,108333,108333,108333,108333,108333,108333,108333,108333,108337,{"$f":"'A5-Capex'!J50","v":1300000},{"$f":"'A5-Capex'!K50","v":0},{"$f":"'A5-Capex'!L50","v":0}]
[{"$f":"'A5-Capex'!A51","v":"Housing"},null,1105766,1105766,1105766,1105766,1105766,1105766,1105766,1105766,1105766,1105766,1105766,1105763,{"$f":"'A5-Capex'!J51","v":13269189},{"$f":"'A5-Capex'!K51","v":0},{"$f":"'A5-Capex'!L51","v":0}]
[{"$f":"'A5-Capex'!A52","v":"Health"},null,0,0,0,0,0,0,0,0,0,0,0,0,{"$f":"'A5-Capex'!J52","v":0},{"$f":"'A5-Capex'!K52","v":0},{"$f":"'A5-Capex'!L52","v":0}]
[{"$f":"'A5-Capex'!A53","v":"Economic and environmental services"},null,{"$f":"SUM(C16:C18)","v":7239492},{"$f":"SUM(D16:D18)","v":7239492},7239492,7239492,7239492,7239492,7239492,7239492,7239492,7239492,7239492,7239498,{"$f":"'A5-Capex'!J53","v":86873910},{"$f":"'A5-Capex'!K53","v":130686968},{"$f":"'A5-Capex'!L53","v":129815856}]
[{"$f":"'A5-Capex'!A54","v":"Planning and development"},null,83333,83333,83333,83333,83333,83333,83333,83333,83333,83333,83333,83337,{"$f":"'A5-Capex'!J54","v":1000000},{"$f":"'A5-Capex'!K54","v":0},{"$f":"'A5-Capex'!L54","v":0}]
[{"$f":"'A5-Capex'!A55","v":"Road transport"},null,7156159,7156159,7156159,7156159,7156159,7156159,7156159,7156159,7156159,7156159,7156159,7156161,{"$f":"'A5-Capex'!J55","v":85873910},{"$f":"'A5-Capex'!K55","v":130686968},{"$f":"'A5-Capex'!L55","v":129815856}]
[{"$f":"'A5-Capex'!A56","v":"Environmental protection"},null,0,0,0,0,0,0,0,0,0,0,0,0,{"$f":"'A5-Capex'!J56","v":0},{"$f":"'A5-Capex'!K56","v":0},{"$f":"'A5-Capex'!L56","v":0}]
[{"$f":"'A5-Capex'!A57","v":"Trading services"},null,{"$f":"SUM(C20:C23)","v":666667},{"$f":"SUM(D20:D23)","v":666667},666667,666667,666667,666667,666667,666667,666667,666667,666667,{"$f":"O19-SUM(C19:M19)","v":666663},{"$f":"'A5-Capex'!J57","v":8000000},{"$f":"'A5-Capex'!K57","v":7100000},{"$f":"'A5-Capex'!L57","v":7200000}]
[{"$f":"'A5-Capex'!A58","v":"Energy sources"},null,500000,500000,500000,500000,500000,500000,500000,500000,500000,500000,500000,500000,{"$f":"'A5-Capex'!J58","v":6000000},{"$f":"'A5-Capex'!K58","v":5000000},{"$f":"'A5-Capex'!L58","v":5000000}]
[{"$f":"'A5-Capex'!A59","v":"Water management"},null,0,0,0,0,0,0,0,0,0,0,0,0,{"$f":"'A5-Capex'!J59","v":0},{"$f":"'A5-Capex'!K59","v":0},{"$f":"'A5-Capex'!L59","v":0}]
[{"$f":"'A5-Capex'!A60","v":"Waste water management"},null,0,0,0,0,0,0,0,0,0,0,0,0,{"$f":"'A5-Capex'!J60","v":0},{"$f":"'A5-Capex'!K60","v":0},{"$f":"'A5-Capex'!L60","v":0}]
[{"$f":"'A5-Capex'!A61","v":"Waste management"},null,{"$f":"ROUND($O23/12,0)","v":166667},166667,166667,166667,166667,166667,166667,166667,166667,166667,166667,166663,{"$f":"'A5-Capex'!J61","v":2000000},{"$f":"'A5-Capex'!K61","v":2100000},{"$f":"'A5-Capex'!L61","v":2200000}]
[{"$f":"'A5-Capex'!A62","v":"Other"},null,0,0,0,0,0,0,0,0,0,0,0,{"$f":"O24-SUM(C24:M24)","v":0},{"$f":"'A5-Capex'!J62","v":0},{"$f":"'A5-Capex'!K62","v":0},{"$f":"'A5-Capex'!L62","v":0}]
[{"$f":"'A5-Capex'!A63","v":"Total Capital Expenditure - Functional"},2,{"$f":"C5+C9+C15+C19+C24","v":13232599},{"$f":"D5+D9+D15+D19+D24","v":13232599},13232599,13232599,13232599,13232599,13232599,13232599,13232599,13232599,13232599,{"$f":"N5+N9+N15+N19+N24","v":13232599},158791188,173326968,159635856]
[]
["Funded by:"]
["National Government",null,{"$f":"ROUND($O28/12,0)","v":5655870},5655870,5655870,5655870,5655870,5655870,5655870,5655870,5655870,5655870,5655870,{"$f":"O28-SUM(C28:M28)","v":5655868},{"$f":"'A5-Capex'!J66","v":67870438},{"$f":"'A5-Capex'!K66","v":70916968},{"$f":"'A5-Capex'!L66","v":74040148}]
["Provincial Government",null,0,0,0,0,0,0,0,0,0,0,0,{"$f":"O29-SUM(C29:M29)","v":0},{"$f":"'A5-Capex'!J67","v":0},{"$f":"'A5-Capex'!K67","v":0},{"$f":"'A5-Capex'!L67","v":0}]
["District Municipality",null,0,0,0,0,0,0,0,0,0,0,0,0,{"$f":"'A5-Capex'!J68","v":0},{"$f":"'A5-Capex'!K68","v":0},{"$f":"'A5-Capex'!L68","v":0}]
[{"$f":"'A5-Capex'!A69","v":"Transfers and subsidies - capital (in-kind)"},null,0,0,0,0,0,0,0,0,0,0,0,{"$f":"O31-SUM(C31:M31)","v":0},{"$f":"'A5-Capex'!J69","v":0},{"$f":"'A5-Capex'!K69","v":0},{"$f":"'A5-Capex'!L69","v":0}]
["Transfers recognised - capital",null,{"$f":"SUM(C28:C31)","v":5655870},5655870,5655870,5655870,5655870,5655870,5655870,5655870,5655870,5655870,5655870,{"$f":"SUM(N28:N31)","v":5655868},67870438,70916968,74040148]
[]
["Borrowing",null,{"$f":"ROUND($O34/12,0)","v":0},0,0,0,0,0,0,0,0,0,0,0,{"$f":"'A5-Capex'!J72","v":0},{"$f":"'A5-Capex'!K72","v":0},{"$f":"'A5-Capex'!L72","v":0}]
["Internally generated funds",null,7576729,7576729,7576729,7576729,7576729,7576729,7576729,7576729,7576729,7576729,7576729,7576731,{"$f":"'A5-Capex'!J73","v":90920750},{"$f":"'A5-Capex'!K73","v":102410000},{"$f":"'A5-Capex'!L73","v":85595708}]
["Total Capital Funding",null,{"$f":"+C32+C34+C35","v":13232599},{"$f":"+D32+D34+D35","v":13232599},13232599,13232599,13232599,13232599,13232599,13232599,13232599,13232599,13232599,13232599,158791188,173326968,159635856]
[{"$f":"head27a","v":"References"}]
["1. Table should be completed as either Multi-Year expenditure appropriation or Budget Year and Forward Year estimates"]
[{"$f":"'SA28'!A44","v":"2. Total Capital Expenditure must reconcile to Budgeted Capital Expenditure"}]
["check"]

{"sheet":"SA30","index":75,"n_rows":63,"n_cols":30,"rows_kept":63,"cut":false,"hidden":false,"merged":[[1,13,1,15],[1,1,1,12],[56,0,56,15]]}
[{"$f":"muni&\" - \"& TableA30","v":"LIM331 Greater Giyani - Supporting Table SA30 Budgeted monthly cash flow"}]
["MONTHLY CASH FLOWS",{"$f":"Head9","v":"Budget Year 2023/24"},null,null,null,null,null,null,null,null,null,null,null,"Medium Term Revenue and Expenditure Framework"]
["R thousand","July","August","Sept.","October","November","December","January","February","March","April","May","June",{"$f":"Head9","v":"Budget Year 2023/24"},{"$f":"Head10","v":"Budget Year +1 2024/25"},{"$f":"Head11","v":"Budget Year +2 2025/26"}]
["Cash Receipts By Source",null,null,null,null,null,null,null,null,null,null,null,null,1]
["Property rates",{"$f":"ROUND($N5/12,0)","v":3985953},{"$f":"ROUND($N5/12,0)","v":3985953},3985953,3985953,3985953,3985953,3985953,3985953,3985953,3985953,3985953,{"$f":"N5-SUM(B5:L5)","v":3985953},{"$f":"SUMIFS(Sheet1!S71_ASBudgetAmount,Sheet1!S71_A7SubCode,$AC:$AC,Sheet1!S71_CFCode,$AD:$AD)","v":47831436},{"$f":"SUMIFS(Sheet1!S71_OY1BudgetAmount,Sheet1!S71_A7SubCode,$AC:$AC,Sheet1!S71_CFCode,$AD:$AD)","v":50176938},{"$f":"SUMIFS(Sheet1!S71_OY2BudgetAmount,Sheet1!S71_A7SubCode,$AC:$AC,Sheet1!S71_CFCode,$AD:$AD)","v":52536919},100001,100001,100001,null,null,null,null,null,null,null,null,null,"0120D","D"]
["Service charges - electricity revenue",{"$f":"ROUND($N6/12,0)","v":0},0,0,0,0,0,0,0,0,0,0,0,{"$f":"SUMIFS(Sheet1!S71_ASBudgetAmount,Sheet1!S71_A7SubCode,$AC:$AC,Sheet1!S71_CFCode,$AD:$AD)","v":0},{"$f":"SUMIFS(Sheet1!S71_OY1BudgetAmount,Sheet1!S71_A7SubCode,$AC:$AC,Sheet1!S71_CFCode,$AD:$AD)","v":0},{"$f":"SUMIFS(Sheet1!S71_OY2BudgetAmount,Sheet1!S71_A7SubCode,$AC:$AC,Sheet1!S71_CFCode,$AD:$AD)","v":0},null,null,null,null,null,null,null,null,null,null,null,null,"0120","D"]
["Service charges - water revenue",0,0,0,0,0,0,0,0,0,0,0,0,{"$f":"SUMIFS(Sheet1!S71_ASBudgetAmount,Sheet1!S71_A7SubCode,$AC:$AC,Sheet1!S71_CFCode,$AD:$AD)","v":0},{"$f":"SUMIFS(Sheet1!S71_OY1BudgetAmount,Sheet1!S71_A7SubCode,$AC:$AC,Sheet1!S71_CFCode,$AD:$AD)","v":0},{"$f":"SUMIFS(Sheet1!S71_OY2BudgetAmount,Sheet1!S71_A7SubCode,$AC:$AC,Sheet1!S71_CFCode,$AD:$AD)","v":0},null,null,null,null,null,null,null,null,null,null,null,null,"0130","D"]
["Service charges - sanitation revenue",0,0,0,0,0,0,0,0,0,0,0,0,{"$f":"SUMIFS(Sheet1!S71_ASBudgetAmount,Sheet1!S71_A7SubCode,$AC:$AC,Sheet1!S71_CFCode,$AD:$AD)","v":0},{"$f":"SUMIFS(Sheet1!S71_OY1BudgetAmount,Sheet1!S71_A7SubCode,$AC:$AC,Sheet1!S71_CFCode,$AD:$AD)","v":0},{"$f":"SUMIFS(Sheet1!S71_OY2BudgetAmount,Sheet1!S71_A7SubCode,$AC:$AC,Sheet1!S71_CFCode,$AD:$AD)","v":0},null,null,null,null,null,null,null,null,null,null,null,null,"0140","D"]
["Service charges - refuse revenue",541900,541900,541900,541900,541900,541900,541900,541900,541900,541900,541900,541902,{"$f":"SUMIFS(Sheet1!S71_ASBudgetAmount,Sheet1!S71_A7SubCode,$AC:$AC,Sheet1!S71_CFCode,$AD:$AD)","v":6502802},{"$f":"SUMIFS(Sheet1!S71_OY1BudgetAmount,Sheet1!S71_A7SubCode,$AC:$AC,Sheet1!S71_CFCode,$AD:$AD)","v":6821438},{"$f":"SUMIFS(Sheet1!S71_OY2BudgetAmount,Sheet1!S71_A7SubCode,$AC:$AC,Sheet1!S71_CFCode,$AD:$AD)","v":7142046},null,null,null,null,null,null,null,null,null,null,null,null,"0150","D"]
[" ",-6726105,-6726105,-6726105,-6726105,-6726105,-6726105,-6726105,-6726105,-6726105,-6726105,-6726105,null,{"$f":"SUMIFS(Sheet1!S71_ASBudgetAmount,Sheet1!S71_A7SubCode,$AC:$AC,Sheet1!S71_CFCode,$AD:$AD)","v":-80713254},{"$f":"SUMIFS(Sheet1!S71_OY1BudgetAmount,Sheet1!S71_A7SubCode,$AC:$AC,Sheet1!S71_CFCode,$AD:$AD)","v":-82129513},{"$f":"SUMIFS(Sheet1!S71_OY2BudgetAmount,Sheet1!S71_A7SubCode,$AC:$AC,Sheet1!S71_CFCode,$AD:$AD)","v":-85721170},null,null,null,null,null,null,null,null,null,null,null,null,null,"D"]
["Rental of facilities and equipment",39980,39980,39980,39980,39980,39980,39980,39980,39980,39980,39980,39977,{"$f":"SUMIFS(Sheet1!S71_ASBudgetAmount,Sheet1!S71_A7SubCode,$AC:$AC,Sheet1!S71_CFCode,$AD:$AD)","v":479757},{"$f":"SUMIFS(Sheet1!S71_OY1BudgetAmount,Sheet1!S71_A7SubCode,$AC:$AC,Sheet1!S71_CFCode,$AD:$AD)","v":503266},{"$f":"SUMIFS(Sheet1!S71_OY2BudgetAmount,Sheet1!S71_A7SubCode,$AC:$AC,Sheet1!S71_CFCode,$AD:$AD)","v":526918},null,null,null,null,null,null,null,null,null,null,null,null,"0170","D"]
["Interest earned - external investments",2031050,2031050,2031050,2031050,2031050,2031050,2031050,2031050,2031050,2031050,2031050,2031044.3999999985,{"$f":"SUMIFS(Sheet1!S71_ASBudgetAmount,Sheet1!S71_A7SubCode,$AC:$AC,Sheet1!S71_CFCode,$AD:$AD)","v":24372594.399999999},{"$f":"SUMIFS(Sheet1!S71_OY1BudgetAmount,Sheet1!S71_A7SubCode,$AC:$AC,Sheet1!S71_CFCode,$AD:$AD)","v":25566851.199999999},{"$f":"SUMIFS(Sheet1!S71_OY2BudgetAmount,Sheet1!S71_A7SubCode,$AC:$AC,Sheet1!S71_CFCode,$AD:$AD)","v":26768493.600000001},null,null,null,null,null,null,null,null,null,null,null,null,"0170I","I"]
["Interest earned - outstanding debtors",0,0,0,0,0,0,0,0,0,0,0,0,{"$f":"SUMIFS(Sheet1!S71_ASBudgetAmount,Sheet1!S71_A7SubCode,$AC:$AC,Sheet1!S71_CFCode,$AD:$AD)","v":0},{"$f":"SUMIFS(Sheet1!S71_OY1BudgetAmount,Sheet1!S71_A7SubCode,$AC:$AC,Sheet1!S71_CFCode,$AD:$AD)","v":0},{"$f":"SUMIFS(Sheet1!S71_OY2BudgetAmount,Sheet1!S71_A7SubCode,$AC:$AC,Sheet1!S71_CFCode,$AD:$AD)","v":0},null,null,null,null,null,null,null,null,null,null,null,null,"0190","D"]
["Dividends received",0,0,0,0,0,0,0,0,0,0,0,0,{"$f":"SUMIFS(Sheet1!S71_ASBudgetAmount,Sheet1!S71_A7SubCode,$AC:$AC,Sheet1!S71_CFCode,$AD:$AD)","v":0},{"$f":"SUMIFS(Sheet1!S71_OY1BudgetAmount,Sheet1!S71_A7SubCode,$AC:$AC,Sheet1!S71_CFCode,$AD:$AD)","v":0},{"$f":"SUMIFS(Sheet1!S71_OY2BudgetAmount,Sheet1!S71_A7SubCode,$AC:$AC,Sheet1!S71_CFCode,$AD:$AD)","v":0},null,null,null,null,null,null,null,null,null,null,null,null,"0180D","D"]
["Fines, penalties and forfeits",31316,31316,31316,31316,31316,31316,31316,31316,31316,31316,31316,31319,{"$f":"SUMIFS(Sheet1!S71_ASBudgetAmount,Sheet1!S71_A7SubCode,$AC:$AC,Sheet1!S71_CFCode,$AD:$AD)","v":375795},{"$f":"SUMIFS(Sheet1!S71_OY1BudgetAmount,Sheet1!S71_A7SubCode,$AC:$AC,Sheet1!S71_CFCode,$AD:$AD)","v":394209},{"$f":"SUMIFS(Sheet1!S71_OY2BudgetAmount,Sheet1!S71_A7SubCode,$AC:$AC,Sheet1!S71_CFCode,$AD:$AD)","v":412738},null,null,null,null,null,null,null,null,null,null,null,null,"0210","D"]
["Licences and permits",410750,410750,410750,410750,410750,410750,410750,410750,410750,410750,410750,410750,{"$f":"SUMIFS(Sheet1!S71_ASBudgetAmount,Sheet1!S71_A7SubCode,$AC:$AC,Sheet1!S71_CFCode,$AD:$AD)","v":4929000},{"$f":"SUMIFS(Sheet1!S71_OY1BudgetAmount,Sheet1!S71_A7SubCode,$AC:$AC,Sheet1!S71_CFCode,$AD:$AD)","v":5170521},{"$f":"SUMIFS(Sheet1!S71_OY2BudgetAmount,Sheet1!S71_A7SubCode,$AC:$AC,Sheet1!S71_CFCode,$AD:$AD)","v":5413535},null,null,null,null,null,null,null,null,null,null,null,null,"0220","D"]
["Agency services",565110,565110,565110,565110,565110,565110,565110,565110,565110,565110,565110,565110,{"$f":"SUMIFS(Sheet1!S71_ASBudgetAmount,Sheet1!S71_A7SubCode,$AC:$AC,Sheet1!S71_CFCode,$AD:$AD)","v":6781320},{"$f":"SUMIFS(Sheet1!S71_OY1BudgetAmount,Sheet1!S71_A7SubCode,$AC:$AC,Sheet1!S71_CFCode,$AD:$AD)","v":7113604},{"$f":"SUMIFS(Sheet1!S71_OY2BudgetAmount,Sheet1!S71_A7SubCode,$AC:$AC,Sheet1!S71_CFCode,$AD:$AD)","v":7447944},null,null,null,null,null,null,null,null,null,null,null,null,"0230","D"]
["Transfers and Subsidies - Operational",31862667,31862667,31862667,31862667,31862667,31862667,31862667,31862667,31862667,31862667,31862667,31862663,{"$f":"SUMIFS(Sheet1!S71_ASBudgetAmount,Sheet1!S71_A7SubCode,$AC:$AC,Sheet1!S71_CFCode,$AD:$AD)","v":382352000},{"$f":"SUMIFS(Sheet1!S71_OY1BudgetAmount,Sheet1!S71_A7SubCode,$AC:$AC,Sheet1!S71_CFCode,$AD:$AD)","v":405170000},{"$f":"SUMIFS(Sheet1!S71_OY2BudgetAmount,Sheet1!S71_A7SubCode,$AC:$AC,Sheet1!S71_CFCode,$AD:$AD)","v":395085000},null,null,null,null,null,null,null,null,null,null,null,null,"0150D","D"]
["Other revenue",5317774,5317774,5317774,5317774,5317774,5317774,5317774,5317774,5317774,5317774,5317774,5317777,{"$f":"SUMIFS(Sheet1!S71_ASBudgetAmount,Sheet1!S71_A7SubCode,$AC:$AC,Sheet1!S71_CFCode,$AD:$AD)","v":63813291},{"$f":"SUMIFS(Sheet1!S71_OY1BudgetAmount,Sheet1!S71_A7SubCode,$AC:$AC,Sheet1!S71_CFCode,$AD:$AD)","v":66938260},{"$f":"SUMIFS(Sheet1!S71_OY2BudgetAmount,Sheet1!S71_A7SubCode,$AC:$AC,Sheet1!S71_CFCode,$AD:$AD)","v":65773907},null,null,null,null,null,null,null,null,null,null,null,null,"250","D"]
["Cash Receipts by Source",{"$f":"SUM(B5:B9)+SUM(B11:B19)","v":44786500},{"$f":"SUM(C5:C9)+SUM(C11:C19)","v":44786500},44786500,44786500,44786500,44786500,44786500,44786500,44786500,44786500,44786500,44786495.399999999,537437995.39999998,567855087.20000005,561107500.60000002]
[]
["Other Cash Flows by Source"]
["Transfers and subsidies - capital (monetary allocations) (National / Provincial and District)",{"$f":"ROUND($N23/12,0)","v":8712417},8712417,8712417,8712417,8712417,8712417,8712417,8712417,8712417,8712417,8712417,{"$f":"N23-SUM(B23:L23)","v":8712413},{"$f":"SUMIFS(Sheet1!S71_ASBudgetAmount,Sheet1!S71_A7SubCode,$AC:$AC,Sheet1!S71_CFCode,$AD:$AD)","v":104549000},{"$f":"SUMIFS(Sheet1!S71_OY1BudgetAmount,Sheet1!S71_A7SubCode,$AC:$AC,Sheet1!S71_CFCode,$AD:$AD)","v":102594000},{"$f":"SUMIFS(Sheet1!S71_OY2BudgetAmount,Sheet1!S71_A7SubCode,$AC:$AC,Sheet1!S71_CFCode,$AD:$AD)","v":107207000},null,null,null,null,null,null,null,null,null,null,null,null,"0280","D"]
["Transfers and subsidies - capital (monetary allocations) (Nat / Prov Departm Agencies, Households, Non-profit Institutions, Private Enterprises, Public Corporatons, Higher Educ Institutions)",0,0,0,0,0,0,0,0,0,0,0,0,{"$f":"SUMIFS(Sheet1!S71_ASBudgetAmount,Sheet1!S71_A7SubCode,$AC:$AC,Sheet1!S71_CFCode,$AD:$AD)","v":0},{"$f":"SUMIFS(Sheet1!S71_OY1BudgetAmount,Sheet1!S71_A7SubCode,$AC:$AC,Sheet1!S71_CFCode,$AD:$AD)","v":0},{"$f":"SUMIFS(Sheet1!S71_OY2BudgetAmount,Sheet1!S71_A7SubCode,$AC:$AC,Sheet1!S71_CFCode,$AD:$AD)","v":0},null,null,null,null,null,null,null,null,null,null,null,null,"0290","D"]
["Proceeds on Disposal of Fixed and Intangible Assets",0,0,0,0,0,0,0,0,0,0,0,0,{"$f":"SUMIFS(Sheet1!S71_ASBudgetAmount,Sheet1!S71_A7SubCode,$AC:$AC,Sheet1!S71_CFCode,$AD:$AD)","v":0},{"$f":"SUMIFS(Sheet1!S71_OY1BudgetAmount,Sheet1!S71_A7SubCode,$AC:$AC,Sheet1!S71_CFCode,$AD:$AD)","v":0},{"$f":"SUMIFS(Sheet1!S71_OY2BudgetAmount,Sheet1!S71_A7SubCode,$AC:$AC,Sheet1!S71_CFCode,$AD:$AD)","v":0},null,null,null,null,null,null,null,null,null,null,null,null,"0260D","D"]
["Short term loans",0,0,0,0,0,0,0,0,0,0,0,0,{"$f":"SUMIFS(Sheet1!S71_ASBudgetAmount,Sheet1!S71_A7SubCode,$AC:$AC,Sheet1!S71_CFCode,$AD:$AD)","v":0},{"$f":"SUMIFS(Sheet1!S71_OY1BudgetAmount,Sheet1!S71_A7SubCode,$AC:$AC,Sheet1!S71_CFCode,$AD:$AD)","v":0},{"$f":"SUMIFS(Sheet1!S71_OY2BudgetAmount,Sheet1!S71_A7SubCode,$AC:$AC,Sheet1!S71_CFCode,$AD:$AD)","v":0},null,null,null,null,null,null,null,null,null,null,null,null,"0310","D"]
["Borrowing long term/refinancing",0,0,0,0,0,0,0,0,0,0,0,0,{"$f":"SUMIFS(Sheet1!S71_ASBudgetAmount,Sheet1!S71_A7SubCode,$AC:$AC,Sheet1!S71_CFCode,$AD:$AD)","v":0},{"$f":"SUMIFS(Sheet1!S71_OY1BudgetAmount,Sheet1!S71_A7SubCode,$AC:$AC,Sheet1!S71_CFCode,$AD:$AD)","v":0},{"$f":"SUMIFS(Sheet1!S71_OY2BudgetAmount,Sheet1!S71_A7SubCode,$AC:$AC,Sheet1!S71_CFCode,$AD:$AD)","v":0},null,null,null,null,null,null,null,null,null,null,null,null,"0360D","D"]
["Increase (decrease) in consumer deposits",0,0,0,0,0,0,0,0,0,0,0,0,{"$f":"SUMIFS(Sheet1!S71_ASBudgetAmount,Sheet1!S71_A7SubCode,$AC:$AC,Sheet1!S71_CFCode,$AD:$AD)","v":0},{"$f":"SUMIFS(Sheet1!S71_OY1BudgetAmount,Sheet1!S71_A7SubCode,$AC:$AC,Sheet1!S71_CFCode,$AD:$AD)","v":0},{"$f":"SUMIFS(Sheet1!S71_OY2BudgetAmount,Sheet1!S71_A7SubCode,$AC:$AC,Sheet1!S71_CFCode,$AD:$AD)","v":0},null,null,null,null,null,null,null,null,null,null,null,null,"0330","D"]
["Decrease (Increase) in non-current debtors (not used)",-6726105,-6726105,-6726105,-6726105,-6726105,-6726105,-6726105,-6726105,-6726105,-6726105,-6726105,null,{"$f":"SUMIFS(Sheet1!S71_ASBudgetAmount,Sheet1!S71_A7SubCode,$AC:$AC,Sheet1!S71_CFCode,$AD:$AD)","v":-80713254},{"$f":"SUMIFS(Sheet1!S71_OY1BudgetAmount,Sheet1!S71_A7SubCode,$AC:$AC,Sheet1!S71_CFCode,$AD:$AD)","v":-82129513},{"$f":"SUMIFS(Sheet1!S71_OY2BudgetAmount,Sheet1!S71_A7SubCode,$AC:$AC,Sheet1!S71_CFCode,$AD:$AD)","v":-85721170},null,null,null,null,null,null,null,null,null,null,null,null,null,"D"]
["Decrease (increase) in non-current receivables",0,0,0,0,0,0,0,0,0,0,0,0,{"$f":"SUMIFS(Sheet1!S71_ASBudgetAmount,Sheet1!S71_A7SubCode,$AC:$AC,Sheet1!S71_CFCode,$AD:$AD)","v":0},{"$f":"SUMIFS(Sheet1!S71_OY1BudgetAmount,Sheet1!S71_A7SubCode,$AC:$AC,Sheet1!S71_CFCode,$AD:$AD)","v":0},{"$f":"SUMIFS(Sheet1!S71_OY2BudgetAmount,Sheet1!S71_A7SubCode,$AC:$AC,Sheet1!S71_CFCode,$AD:$AD)","v":0},null,null,null,null,null,null,null,null,null,null,null,null,"0350","D"]
["Decrease (increase) in non-current investments",0,0,0,0,0,0,0,0,0,0,0,0,{"$f":"SUMIFS(Sheet1!S71_ASBudgetAmount,Sheet1!S71_A7SubCode,$AC:$AC,Sheet1!S71_CFCode,$AD:$AD)","v":0},{"$f":"SUMIFS(Sheet1!S71_OY1BudgetAmount,Sheet1!S71_A7SubCode,$AC:$AC,Sheet1!S71_CFCode,$AD:$AD)","v":0},{"$f":"SUMIFS(Sheet1!S71_OY2BudgetAmount,Sheet1!S71_A7SubCode,$AC:$AC,Sheet1!S71_CFCode,$AD:$AD)","v":0},null,null,null,null,null,null,null,null,null,null,null,null,"0360","D"]
["Total Cash Receipts by Source",{"$f":"SUM(B20:B28)+SUM(B30:B31)","v":53498917},{"$f":"SUM(C20:C28)+SUM(C30:C31)","v":53498917},53498917,53498917,53498917,53498917,53498917,53498917,53498917,53498917,53498917,{"$f":"SUM(M20:M28)+SUM(M30:M31)","v":53498908.399999999},{"$f":"SUM(N20:N28)+SUM(N30:N31)","v":641986995.39999998},670449087.20000005,668314500.60000002]
[]
["Cash Payments by Type"]
["Employee related costs",{"$f":"ROUND($N35/12,0)","v":16620616},16620616,16620616,16620616,16620616,16620616,16620616,16620616,16620616,16620616,16620616,{"$f":"N35-SUM(B35:L35)","v":16620615},{"$f":"ABS(SUMIFS(Sheet1!S71_ASBudgetAmount,Sheet1!S71_A7SubCodePayments,$AC:$AC))","v":199447391},{"$f":"ABS(SUMIFS(Sheet1!S71_OY1BudgetAmount,Sheet1!S71_A7SubCodePayments,$AC:$AC))","v":204553343},{"$f":"ABS(SUMIFS(Sheet1!S71_OY2BudgetAmount,Sheet1!S71_A7SubCodePayments,$AC:$AC))","v":214094367},null,null,null,null,null,null,null,null,null,null,null,null,"0390"]
["Remuneration of councillors",0,0,0,0,0,0,0,0,0,0,0,0,{"$f":"ABS(SUMIFS(Sheet1!S71_ASBudgetAmount,Sheet1!S71_A7SubCodePayments,$AC:$AC))","v":0},{"$f":"ABS(SUMIFS(Sheet1!S71_OY1BudgetAmount,Sheet1!S71_A7SubCodePayments,$AC:$AC))","v":0},{"$f":"ABS(SUMIFS(Sheet1!S71_OY2BudgetAmount,Sheet1!S71_A7SubCodePayments,$AC:$AC))","v":0},null,null,null,null,null,null,null,null,null,null,null,null,"0400"]
["Finance charges",0,0,0,0,0,0,0,0,0,0,0,0,{"$f":"ABS(SUMIFS(Sheet1!S71_ASBudgetAmount,Sheet1!S71_A7SubCodePayments,$AC:$AC))","v":0},{"$f":"ABS(SUMIFS(Sheet1!S71_OY1BudgetAmount,Sheet1!S71_A7SubCodePayments,$AC:$AC))","v":0},{"$f":"ABS(SUMIFS(Sheet1!S71_OY2BudgetAmount,Sheet1!S71_A7SubCodePayments,$AC:$AC))","v":0},null,null,null,null,null,null,null,null,null,null,null,null,"0410"]
["Bulk purchases - electricity ",0,0,0,0,0,0,0,0,0,0,0,0,{"$f":"ABS(SUMIFS(Sheet1!S71_ASBudgetAmount,Sheet1!S71_A7SubCodePayments,$AC:$AC))","v":0},{"$f":"ABS(SUMIFS(Sheet1!S71_OY1BudgetAmount,Sheet1!S71_A7SubCodePayments,$AC:$AC))","v":0},{"$f":"ABS(SUMIFS(Sheet1!S71_OY2BudgetAmount,Sheet1!S71_A7SubCodePayments,$AC:$AC))","v":0},null,null,null,null,null,null,null,null,null,null,null,null,"0420"]
["Acquisitions - water & other inventory",1265000,1265000,1265000,1265000,1265000,1265000,1265000,1265000,1265000,1265000,1265000,1265000,{"$f":"ABS(SUMIFS(Sheet1!S71_ASBudgetAmount,Sheet1!S71_A7SubCodePayments,$AC:$AC))","v":15180000},{"$f":"ABS(SUMIFS(Sheet1!S71_OY1BudgetAmount,Sheet1!S71_A7SubCodePayments,$AC:$AC))","v":15893000},{"$f":"ABS(SUMIFS(Sheet1!S71_OY2BudgetAmount,Sheet1!S71_A7SubCodePayments,$AC:$AC))","v":16663500},null,null,null,null,null,null,null,null,null,null,null,null,"0430"]
[null,0,0,0,0,0,0,0,0,0,0,0,null,{"$f":"ABS(SUMIFS(Sheet1!S71_ASBudgetAmount,Sheet1!S71_A7SubCodePayments,$AC:$AC))","v":0},{"$f":"ABS(SUMIFS(Sheet1!S71_OY1BudgetAmount,Sheet1!S71_A7SubCodePayments,$AC:$AC))","v":0},{"$f":"ABS(SUMIFS(Sheet1!S71_OY2BudgetAmount,Sheet1!S71_A7SubCodePayments,$AC:$AC))","v":0}]
["Contracted services",18783324,18783324,18783324,18783324,18783324,18783324,18783324,18783324,18783324,18783324,18783324,18783326.149999976,{"$f":"ABS(SUMIFS(Sheet1!S71_ASBudgetAmount,Sheet1!S71_A7SubCodePayments,$AC:$AC))-N48","v":225399890.14999998},{"$f":"ABS(SUMIFS(Sheet1!S71_OY1BudgetAmount,Sheet1!S71_A7SubCodePayments,$AC:$AC))-O48","v":227818518.34235001},{"$f":"ABS(SUMIFS(Sheet1!S71_OY2BudgetAmount,Sheet1!S71_A7SubCodePayments,$AC:$AC))-P48","v":213847745.20444041},null,null,null,null,null,null,null,null,null,null,null,null,"0450"]
["Transfers and subsidies - other municipalities",0,0,0,0,0,0,0,0,0,0,0,0,{"$f":"ABS(SUMIFS(Sheet1!S71_ASBudgetAmount,Sheet1!S71_A7SubCodePayments,$AC:$AC))","v":0},{"$f":"ABS(SUMIFS(Sheet1!S71_OY1BudgetAmount,Sheet1!S71_A7SubCodePayments,$AC:$AC))","v":0},{"$f":"ABS(SUMIFS(Sheet1!S71_OY2BudgetAmount,Sheet1!S71_A7SubCodePayments,$AC:$AC))","v":0},null,null,null,null,null,null,null,null,null,null,null,null,"0460"]
["Transfers and subsidies - other",0,0,0,0,0,0,0,0,0,0,0,0,{"$f":"ABS(SUMIFS(Sheet1!S71_ASBudgetAmount,Sheet1!S71_A7SubCodePayments,$AC:$AC))","v":0},{"$f":"ABS(SUMIFS(Sheet1!S71_OY1BudgetAmount,Sheet1!S71_A7SubCodePayments,$AC:$AC))","v":0},{"$f":"ABS(SUMIFS(Sheet1!S71_OY2BudgetAmount,Sheet1!S71_A7SubCodePayments,$AC:$AC))","v":0},null,null,null,null,null,null,null,null,null,null,null,null,"0470"]
["Other expenditure",6697175,6697175,6697175,6697175,6697175,6697175,6697175,6697175,6697175,6697175,6697175,6697175,{"$f":"ABS(SUMIFS(Sheet1!S71_ASBudgetAmount,Sheet1!S71_A7SubCodePayments,$AC:$AC))","v":80366100},{"$f":"ABS(SUMIFS(Sheet1!S71_OY1BudgetAmount,Sheet1!S71_A7SubCodePayments,$AC:$AC))","v":86515642},{"$f":"ABS(SUMIFS(Sheet1!S71_OY2BudgetAmount,Sheet1!S71_A7SubCodePayments,$AC:$AC))","v":88919149},null,null,null,null,null,null,null,null,null,null,null,null,"0480"]
["Cash Payments by Type",{"$f":"SUM(B35:B44)","v":43366115},43366115,43366115,43366115,43366115,43366115,43366115,43366115,43366115,43366115,43366115,43366116.149999976,{"$f":"SUM(N35:N44)","v":520393381.14999998},534780503.34235001,{"$f":"SUM(P35:P44)","v":533524761.20444041}]
[]
["Other Cash Flows/Payments by Type"]
["Capital assets",{"$f":"ROUND($N48/12,0)","v":15217489},15217489,15217489,15217489,15217489,15217489,15217489,15217489,15217489,15217489,15217489,{"$f":"N48-SUM(B48:L48)","v":15217488},{"$f":"ABS(SUMIFS(Sheet1!S71_ASBudgetAmount,Sheet1!S71_A7SubCodePayments,$AC:$AC))","v":182609867},{"$f":"ABS(SUMIFS(Sheet1!S71_OY1BudgetAmount,Sheet1!S71_A7SubCodePayments,$AC:$AC))","v":199326013},{"$f":"ABS(SUMIFS(Sheet1!S71_OY2BudgetAmount,Sheet1!S71_A7SubCodePayments,$AC:$AC))","v":183581234},null,null,null,null,null,null,null,null,null,null,null,null,"0510"]
["Repayment of borrowing",0,0,0,0,0,0,0,0,0,0,0,{"$f":"N49-SUM(B49:L49)","v":0},{"$f":"ABS(SUMIFS(Sheet1!S71_ASBudgetAmount,Sheet1!S71_A7SubCodePayments,$AC:$AC))","v":0},{"$f":"ABS(SUMIFS(Sheet1!S71_OY1BudgetAmount,Sheet1!S71_A7SubCodePayments,$AC:$AC))","v":0},{"$f":"ABS(SUMIFS(Sheet1!S71_OY2BudgetAmount,Sheet1!S71_A7SubCodePayments,$AC:$AC))","v":0},null,null,null,null,null,null,null,null,null,null,null,null,"0520"]
["Other Cash Flows/Payments",0,0,0,0,0,0,0,0,0,0,0,{"$f":"N50-SUM(B50:L50)","v":0},{"$f":"ABS(SUMIFS(Sheet1!S71_ASBudgetAmount,Sheet1!S71_A7SubCodePayments,$AC:$AC))","v":0},{"$f":"ABS(SUMIFS(Sheet1!S71_OY1BudgetAmount,Sheet1!S71_A7SubCodePayments,$AC:$AC))","v":0},{"$f":"ABS(SUMIFS(Sheet1!S71_OY2BudgetAmount,Sheet1!S71_A7SubCodePayments,$AC:$AC))","v":0},null,null,null,null,null,null,null,null,null,null,null,null,"0530"]
["Total Cash Payments by Type",{"$f":"SUM(B45:B50)","v":58583604},{"$f":"SUM(C45:C50)","v":58583604},58583604,58583604,58583604,58583604,58583604,58583604,58583604,58583604,58583604,58583604.149999976,703003248.14999998,734106516.34235001,717105995.20444036,null,"Check"]
[]
["NET INCREASE/(DECREASE) IN CASH HELD",{"$f":"B32-B51","v":-5084687},-5084687,-5084687,-5084687,-5084687,-5084687,-5084687,-5084687,-5084687,-5084687,-5084687,-5084695.7499999776,-61016252.75,-63657429.142349958,-48791494.604440331]
["Cash/cash equivalents at the month/year begin:",{"$f":"SUMIFS(Sheet1!S71_ASBudgetAmount,Sheet1!S71_A7SubCodePayments,$AC:$AC)","v":185262204.91666678},{"$f":"B55","v":180177517.91666678},{"$f":"C55","v":175092830.91666678},170008143.91666678,164923456.91666678,159838769.91666678,154754082.91666678,149669395.91666678,144584708.91666678,139500021.91666678,134415334.91666678,129330647.91666678,{"$f":"B54","v":185262204.91666678},{"$f":"N55","v":124245952.16666678},{"$f":"O55","v":60588523.024316818},null,null,null,null,null,null,null,null,null,null,null,null,"0560"]
["Cash/cash equivalents at the month/year end:",{"$f":"B54+B53","v":180177517.91666678},{"$f":"C54+C53","v":175092830.91666678},{"$f":"D54+D53","v":170008143.91666678},164923456.91666678,159838769.91666678,154754082.91666678,149669395.91666678,144584708.91666678,139500021.91666678,134415334.91666678,129330647.91666678,124245952.16666681,124245952.16666678,60588523.024316818,11797028.419876486]
[{"$f":"head27a","v":"References"}]
["1. Note that this section of Table SA 30 is deliberately not linked to Table A4 because timing differences between the invoicing of clients and receiving the cash means that the cashflow will differ from budgeted revenue, and similarly for budgeted expenditure. However for the MTREF it is now directly linked to A7."]
["2. Bulk purchases - Electricity & Waste Water - use detail information from Table SA1"]
["3. Acquisition Inventory - Water & other inventory - use detail information from Table SA3"]
[]
[]
[null,null,null,null,{"$f":"E45+E61","v":43366115},43366115,43366115,43366115,43366115,43366115,43366115,43366115]
[null,null,null,null,{"$f":"E53-E61","v":-5084687},-5084687,-5084687,-5084687,-5084687,-5084687,-5084687,-5084687]

{"sheet":"SA31","index":76,"n_rows":45,"n_cols":11,"rows_kept":45,"cut":false,"hidden":false,"merged":[[1,5,1,7],[1,8,1,10],[1,1,2,1]]}
[{"$f":"muni&\" - \"& TableA31","v":"LIM331 Greater Giyani - NOT REQUIRED - municipality does not have entities"}]
[{"$f":"desc","v":"Description"},{"$f":"head27","v":"Ref"},{"$f":"head1b","v":"2019/20"},{"$f":"head1A","v":"2020/21"},{"$f":"Head1","v":"2021/22"},{"$f":"Head2","v":"Current Year 2022/23"},null,null,{"$f":"Head3","v":"2023/24 Medium Term Revenue & Expenditure Framework"}]
["R million",null,{"$f":"Head5","v":"Audited Outcome"},{"$f":"Head5","v":"Audited Outcome"},{"$f":"Head5","v":"Audited Outcome"},{"$f":"Head6","v":"Original Budget"},{"$f":"Head7","v":"Adjusted Budget"},{"$f":"Head8","v":"Full Year Forecast"},{"$f":"Head9","v":"Budget Year 2023/24"},{"$f":"Head10","v":"Budget Year +1 2024/25"},{"$f":"Head11","v":"Budget Year +2 2025/26"}]
["Financial Performance"]
["Property rates"]
["Service charges"]
["Investment revenue"]
["Transfer and subsidies - Operational"]
["Other own revenue"]
[{"$f":"'A4-FinPerf RE'!A32","v":"Total Revenue (excluding capital transfers and contributions)"},null,{"$f":"SUM(C5:C9)","v":0},{"$f":"SUM(D5:D9)","v":0},0,0,0,0,0,{"$f":"SUM(J5:J9)","v":0},{"$f":"SUM(K5:K9)","v":0}]
["Employee costs"]
["Remuneration of councillors"]
["Depreciation and amortisation"]
["Finance charges"]
["Inventory consumed and bulk purchases"]
["Transfers and subsidies"]
["Other expenditure"]
[{"$f":"'A4-FinPerf RE'!A47","v":"Total Expenditure"},null,{"$f":"SUM(C11:C17)","v":0},{"$f":"SUM(D11:D17)","v":0},0,0,0,0,0,0,0]
[{"$f":"'A4-FinPerf RE'!A48","v":"Surplus/(Deficit)"},null,{"$f":"+C10-C18","v":0},{"$f":"+D10-D18","v":0},0,0,0,0,0,0,0]
[{"$f":"'A4-FinPerf RE'!A49","v":"Transfers and subsidies - capital (monetary allocations)"}]
[{"$f":"'A4-FinPerf RE'!A50","v":"Transfers and subsidies - capital (in-kind)"}]
[{"$f":"'A4-FinPerf RE'!A51","v":"Surplus/(Deficit) after capital transfers & contributions"},null,{"$f":"SUM(C19:C21)","v":0},{"$f":"SUM(D19:D21)","v":0},0,0,0,0,0,0,0]
[{"$f":"'A4-FinPerf RE'!A58","v":"Intercompany/Parent subsidiary transactions"}]
[{"$f":"'A4-FinPerf RE'!A59","v":"Surplus/(Deficit) for the year"},null,{"$f":"SUM(C22:C23)","v":0},{"$f":"SUM(D22:D23)","v":0},0,0,0,0,0,0,0]
[]
["Capital expenditure & funds sources"]
["Capital expenditure"]
["Transfers recognised - capital"]
[]
[{"$f":"'A5-Capex'!A72","v":"Borrowing"}]
[{"$f":"'A5-Capex'!A73","v":"Internally generated funds"}]
["Total sources of capital funds",null,{"$f":"SUM(C28:C31)","v":0},{"$f":"SUM(D28:D31)","v":0},0,0,0,0,0,0,0]
[]
["Financial position"]
[{"$f":"'A6-FinPos'!A13","v":"Total current assets"}]
[{"$f":"'A6-FinPos'!A25","v":"Total non current assets"}]
[{"$f":"'A6-FinPos'!A37","v":"Total current liabilities"}]
[{"$f":"'A6-FinPos'!A43","v":"Total non current liabilities"}]
["Community wealth/Equity"]
[]
["Cash flows"]
["Net cash from (used) operating"]
["Net cash from (used) investing"]
["Net cash from (used) financing"]
[{"$f":"LEFT('A7-CFlow'!A39,37)","v":"Cash/cash equivalents at the year end"}]

{"sheet":"SA32","index":77,"n_rows":27,"n_cols":6,"rows_kept":27,"cut":false,"hidden":false,"merged":[[1,3,2,3],[1,4,2,4],[1,1,2,1]]}
[{"$f":"muni&\" - \"&TableA32","v":"LIM331 Greater Giyani - Supporting Table SA32 List of external mechanisms"}]
["External mechanism","Yrs/ Mths","Period of agreement 1.","Service provided","Expiry date of service delivery agreement or contract","Monetary value of agreement 2."]
["Name of organisation",null,"Number",null,null,"R thousand"]
[]
[]
[]
[]
[]
[]
[]
[]
[]
[]
[]
[]
[]
[]
[]
[]
[]
[]
[]
[]
[]
[{"$f":"head27a","v":"References"}]
["1. Total agreement period from commencement until end"]
["2. Annual value"]

{"sheet":"SA33","index":78,"n_rows":48,"n_cols":15,"rows_kept":48,"cut":false,"hidden":false,"merged":[[1,4,1,6],[47,0,47,13]]}
[{"$f":"muni&\" - \"& TableA33","v":"LIM331 Greater Giyani - Supporting Table SA33 Contracts having future budgetary implications"}]
[{"$f":"desc","v":"Description"},{"$f":"head27","v":"Ref"},"Preceding Years",{"$f":"Head2","v":"Current Year 2022/23"},{"$f":"Head3","v":"2023/24 Medium Term Revenue & Expenditure Framework"},null,null,{"$f":"Head12","v":"Forecast 2026/27"},{"$f":"Head13","v":"Forecast 2027/28"},{"$f":"Head14","v":"Forecast 2028/29"},{"$f":"Head15","v":"Forecast 2029/30"},{"$f":"Head16","v":"Forecast 2030/31"},{"$f":"Head17","v":"Forecast 2031/32"},{"$f":"Head18","v":"Forecast 2032/33"},"Total Contract Value"]
["R thousand","1,3","Total",{"$f":"Head6","v":"Original Budget"},{"$f":"Head9","v":"Budget Year 2023/24"},{"$f":"Head10","v":"Budget Year +1 2024/25"},{"$f":"Head11","v":"Budget Year +2 2025/26"},"Estimate","Estimate","Estimate","Estimate","Estimate","Estimate","Estimate","Estimate"]
["Parent Municipality:"]
["Revenue Obligation By Contract",2]
["Contract 1",null,null,null,null,null,null,null,null,null,null,null,null,null,{"$f":"SUM(C6:N6)","v":0}]
["Contract 2",null,null,null,null,null,null,null,null,null,null,null,null,null,{"$f":"SUM(C7:N7)","v":0}]
["Contract 3 etc",null,null,null,null,null,null,null,null,null,null,null,null,null,{"$f":"SUM(C8:N8)","v":0}]
["Total Operating Revenue Implication",null,{"$f":"SUM(C6:C8)","v":0},{"$f":"SUM(D6:D8)","v":0},0,0,0,0,0,0,0,0,0,0,{"$f":"SUM(C9:N9)","v":0}]
[]
["Expenditure Obligation By Contract",2]
["Contract 1",null,null,null,null,null,null,null,null,null,null,null,null,null,{"$f":"SUM(C12:N12)","v":0}]
["Contract 2",null,null,null,null,null,null,null,null,null,null,null,null,null,{"$f":"SUM(C13:N13)","v":0}]
["Contract 3 etc",null,null,null,null,null,null,null,null,null,null,null,null,null,{"$f":"SUM(C14:N14)","v":0}]
["Total Operating Expenditure Implication",null,{"$f":"SUM(C12:C14)","v":0},0,0,0,0,0,0,0,0,0,0,0,{"$f":"SUM(C15:N15)","v":0}]
[]
["Capital Expenditure Obligation By Contract",2]
["Contract 1",null,null,null,null,null,null,null,null,null,null,null,null,null,{"$f":"SUM(C18:N18)","v":0}]
["Contract 2",null,null,null,null,null,null,null,null,null,null,null,null,null,{"$f":"SUM(C19:N19)","v":0}]
["Contract 3 etc",null,null,null,null,null,null,null,null,null,null,null,null,null,{"$f":"SUM(C20:N20)","v":0}]
["Total Capital Expenditure Implication",null,{"$f":"SUM(C18:C20)","v":0},0,0,0,0,0,0,0,0,0,0,0,{"$f":"SUM(C21:N21)","v":0}]
[]
["Total Parent Expenditure Implication",null,{"$f":"C15+C21","v":0},{"$f":"D15+D21","v":0},0,0,0,0,0,0,0,0,0,0,0]
[]
["Entities:"]
["Revenue Obligation By Contract",2]
["Contract 1",null,null,null,null,null,null,null,null,null,null,null,null,null,{"$f":"SUM(C27:N27)","v":0}]
["Contract 2",null,null,null,null,null,null,null,null,null,null,null,null,null,{"$f":"SUM(C28:N28)","v":0}]
["Contract 3 etc",null,null,null,null,null,null,null,null,null,null,null,null,null,{"$f":"SUM(C29:N29)","v":0}]
["Total Operating Revenue Implication",null,{"$f":"SUM(C27:C29)","v":0},0,0,0,0,0,0,0,0,0,0,0,{"$f":"SUM(C30:N30)","v":0}]
[]
["Expenditure Obligation By Contract",2]
["Contract 1",null,null,null,null,null,null,null,null,null,null,null,null,null,{"$f":"SUM(C33:N33)","v":0}]
["Contract 2",null,null,null,null,null,null,null,null,null,null,null,null,null,{"$f":"SUM(C34:N34)","v":0}]
["Contract 3 etc",null,null,null,null,null,null,null,null,null,null,null,null,null,{"$f":"SUM(C35:N35)","v":0}]
["Total Operating Expenditure Implication",null,{"$f":"SUM(C33:C35)","v":0},0,0,0,0,0,0,0,0,0,0,0,{"$f":"SUM(C36:N36)","v":0}]
[]
["Capital Expenditure Obligation By Contract",2]
["Contract 1",null,null,null,null,null,null,null,null,null,null,null,null,null,{"$f":"SUM(C39:N39)","v":0}]
["Contract 2",null,null,null,null,null,null,null,null,null,null,null,null,null,{"$f":"SUM(C40:N40)","v":0}]
["Contract 3 etc",null,null,null,null,null,null,null,null,null,null,null,null,null,{"$f":"SUM(C41:N41)","v":0}]
["Total Capital Expenditure Implication",null,{"$f":"SUM(C39:C41)","v":0},0,0,0,0,0,0,0,0,0,0,0,{"$f":"SUM(C42:N42)","v":0}]
[]
["Total Entity Expenditure Implication",null,{"$f":"C36+C42","v":0},{"$f":"D36+D42","v":0},0,0,0,0,0,0,0,0,0,0,0]
[{"$f":"head27a","v":"References"}]
["1. Total implication for all preceding years to be summed and total stated in 'Preceding Years' column"]
["2. List all contracts with future financial obligations beyond the three years covered by the MTREF (MFMA s33)"]
["3. For municipalities with approved total revenue not exceeding R250 m - all contracts with an annual cost greater than R500 000. For municipalities with approved total revenue greater than R250 m - all contracts with an annual cost greater than R1million. For municipalities with approved total revenue greater than R500 m - all contracts with an annual cost greater than R5 million"]

{"sheet":"SA34a","index":79,"n_rows":181,"n_cols":30,"rows_kept":181,"cut":false,"hidden":false,"merged":[[1,5,1,7],[1,8,1,10]]}
[{"$f":"muni&\" - \"&TableA34a","v":"LIM331 Greater Giyani - Supporting Table SA34a Capital expenditure on new assets by asset class"}]
[{"$f":"desc","v":"Description"},{"$f":"head27","v":"Ref"},{"$f":"head1b","v":"2019/20"},{"$f":"head1A","v":"2020/21"},{"$f":"Head1","v":"2021/22"},{"$f":"Head2","v":"Current Year 2022/23"},null,null,{"$f":"Head3","v":"2023/24 Medium Term Revenue & Expenditure Framework"}]
["R thousand",1,{"$f":"Head5","v":"Audited Outcome"},{"$f":"Head5","v":"Audited Outcome"},{"$f":"Head5","v":"Audited Outcome"},{"$f":"Head6","v":"Original Budget"},{"$f":"Head7","v":"Adjusted Budget"},{"$f":"Head8","v":"Full Year Forecast"},{"$f":"Head9","v":"Budget Year 2023/24"},{"$f":"Head10","v":"Budget Year +1 2024/25"},{"$f":"Head11","v":"Budget Year +2 2025/26"}]
["Capital expenditure on new assets by Asset Class/Sub-class"]
[]
["Infrastructure",null,{"$f":"C7+C12+C16+C26+C37+C44+C52+C62+C68","v":81776477},{"$f":"D7+D12+D16+D26+D37+D44+D52+D62+D68","v":80963356},54184618,34879622,51124560,51124560,84873910,109966968,129075856]
["Roads Infrastructure",null,{"$f":"SUM(C8:C11)","v":73306247},63945225,41429733,34879622,51124560,51124560,63347349,90966968,94040148]
["Roads",null,{"$f":"SUMIFS(Sheet1!S71_PPPYearAmount,Sheet1!S71_SA34aCode,$AC:$AC,Sheet1!S71_A5CapexCode,$AD:$AD)","v":64248761},{"$f":"SUMIFS(Sheet1!S71_PPYearAmount,Sheet1!S71_SA34aCode,$AC:$AC,Sheet1!S71_A5CapexCode,$AD:$AD)","v":57580351},{"$f":"SUMIFS(Sheet1!S71_PYearAmount,Sheet1!S71_SA34aCode,$AC:$AC,Sheet1!S71_A5CapexCode,$AD:$AD)","v":32740501},{"$f":"SUMIFS(Sheet1!S71_OriginalBudAmnt,Sheet1!S71_SA34aCode,$AC:$AC,Sheet1!S71_A5CapexCode,$AD:$AD)","v":34879622},{"$f":"SUMIFS(Sheet1!S71_AdjustmentBudAmnt,Sheet1!S71_SA34aCode,$AC:$AC,Sheet1!S71_A5CapexCode,$AD:$AD)","v":51124560},{"$f":"SUMIFS(Sheet1!S71_AdjustmentBudAmnt,Sheet1!S71_SA34aCode,$AC:$AC,Sheet1!S71_A5CapexCode,$AD:$AD)","v":51124560},{"$f":"SUMIFS(Sheet1!S71_ASBudgetAmount,Sheet1!S71_SA34aCode,$AC:$AC,Sheet1!S71_A5CapexCode,$AD:$AD)","v":63347349},{"$f":"SUMIFS(Sheet1!S71_OY1BudgetAmount,Sheet1!S71_SA34aCode,$AC:$AC,Sheet1!S71_A5CapexCode,$AD:$AD)","v":90966968},{"$f":"SUMIFS(Sheet1!S71_OY2BudgetAmount,Sheet1!S71_SA34aCode,$AC:$AC,Sheet1!S71_A5CapexCode,$AD:$AD)","v":94040148},null,null,null,null,null,null,null,null,null,null,null,null,null,null,null,null,null,"0120","CE"]
["Road Structures",null,{"$f":"SUMIFS(Sheet1!S71_PPPYearAmount,Sheet1!S71_SA34aCode,$AC:$AC,Sheet1!S71_A5CapexCode,$AD:$AD)","v":9057486},{"$f":"SUMIFS(Sheet1!S71_PPYearAmount,Sheet1!S71_SA34aCode,$AC:$AC,Sheet1!S71_A5CapexCode,$AD:$AD)","v":6364874},{"$f":"SUMIFS(Sheet1!S71_PYearAmount,Sheet1!S71_SA34aCode,$AC:$AC,Sheet1!S71_A5CapexCode,$AD:$AD)","v":8689232},{"$f":"SUMIFS(Sheet1!S71_OriginalBudAmnt,Sheet1!S71_SA34aCode,$AC:$AC,Sheet1!S71_A5CapexCode,$AD:$AD)","v":0},{"$f":"SUMIFS(Sheet1!S71_AdjustmentBudAmnt,Sheet1!S71_SA34aCode,$AC:$AC,Sheet1!S71_A5CapexCode,$AD:$AD)","v":0},{"$f":"SUMIFS(Sheet1!S71_AdjustmentBudAmnt,Sheet1!S71_SA34aCode,$AC:$AC,Sheet1!S71_A5CapexCode,$AD:$AD)","v":0},{"$f":"SUMIFS(Sheet1!S71_ASBudgetAmount,Sheet1!S71_SA34aCode,$AC:$AC,Sheet1!S71_A5CapexCode,$AD:$AD)","v":0},{"$f":"SUMIFS(Sheet1!S71_OY1BudgetAmount,Sheet1!S71_SA34aCode,$AC:$AC,Sheet1!S71_A5CapexCode,$AD:$AD)","v":0},{"$f":"SUMIFS(Sheet1!S71_OY2BudgetAmount,Sheet1!S71_SA34aCode,$AC:$AC,Sheet1!S71_A5CapexCode,$AD:$AD)","v":0},null,null,null,null,null,null,null,null,null,null,null,null,null,null,null,null,null,"0130","CE"]
["Road Furniture",null,{"$f":"SUMIFS(Sheet1!S71_PPPYearAmount,Sheet1!S71_SA34aCode,$AC:$AC,Sheet1!S71_A5CapexCode,$AD:$AD)","v":0},{"$f":"SUMIFS(Sheet1!S71_PPYearAmount,Sheet1!S71_SA34aCode,$AC:$AC,Sheet1!S71_A5CapexCode,$AD:$AD)","v":0},{"$f":"SUMIFS(Sheet1!S71_PYearAmount,Sheet1!S71_SA34aCode,$AC:$AC,Sheet1!S71_A5CapexCode,$AD:$AD)","v":0},{"$f":"SUMIFS(Sheet1!S71_OriginalBudAmnt,Sheet1!S71_SA34aCode,$AC:$AC,Sheet1!S71_A5CapexCode,$AD:$AD)","v":0},{"$f":"SUMIFS(Sheet1!S71_AdjustmentBudAmnt,Sheet1!S71_SA34aCode,$AC:$AC,Sheet1!S71_A5CapexCode,$AD:$AD)","v":0},{"$f":"SUMIFS(Sheet1!S71_AdjustmentBudAmnt,Sheet1!S71_SA34aCode,$AC:$AC,Sheet1!S71_A5CapexCode,$AD:$AD)","v":0},{"$f":"SUMIFS(Sheet1!S71_ASBudgetAmount,Sheet1!S71_SA34aCode,$AC:$AC,Sheet1!S71_A5CapexCode,$AD:$AD)","v":0},{"$f":"SUMIFS(Sheet1!S71_OY1BudgetAmount,Sheet1!S71_SA34aCode,$AC:$AC,Sheet1!S71_A5CapexCode,$AD:$AD)","v":0},{"$f":"SUMIFS(Sheet1!S71_OY2BudgetAmount,Sheet1!S71_SA34aCode,$AC:$AC,Sheet1!S71_A5CapexCode,$AD:$AD)","v":0},null,null,null,null,null,null,null,null,null,null,null,null,null,null,null,null,null,"0140","CE"]
["Capital Spares",null,{"$f":"SUMIFS(Sheet1!S71_PPPYearAmount,Sheet1!S71_SA34aCode,$AC:$AC,Sheet1!S71_A5CapexCode,$AD:$AD)","v":0},{"$f":"SUMIFS(Sheet1!S71_PPYearAmount,Sheet1!S71_SA34aCode,$AC:$AC,Sheet1!S71_A5CapexCode,$AD:$AD)","v":0},{"$f":"SUMIFS(Sheet1!S71_PYearAmount,Sheet1!S71_SA34aCode,$AC:$AC,Sheet1!S71_A5CapexCode,$AD:$AD)","v":0},{"$f":"SUMIFS(Sheet1!S71_OriginalBudAmnt,Sheet1!S71_SA34aCode,$AC:$AC,Sheet1!S71_A5CapexCode,$AD:$AD)","v":0},{"$f":"SUMIFS(Sheet1!S71_AdjustmentBudAmnt,Sheet1!S71_SA34aCode,$AC:$AC,Sheet1!S71_A5CapexCode,$AD:$AD)","v":0},{"$f":"SUMIFS(Sheet1!S71_AdjustmentBudAmnt,Sheet1!S71_SA34aCode,$AC:$AC,Sheet1!S71_A5CapexCode,$AD:$AD)","v":0},{"$f":"SUMIFS(Sheet1!S71_ASBudgetAmount,Sheet1!S71_SA34aCode,$AC:$AC,Sheet1!S71_A5CapexCode,$AD:$AD)","v":0},{"$f":"SUMIFS(Sheet1!S71_OY1BudgetAmount,Sheet1!S71_SA34aCode,$AC:$AC,Sheet1!S71_A5CapexCode,$AD:$AD)","v":0},{"$f":"SUMIFS(Sheet1!S71_OY2BudgetAmount,Sheet1!S71_SA34aCode,$AC:$AC,Sheet1!S71_A5CapexCode,$AD:$AD)","v":0},null,null,null,null,null,null,null,null,null,null,null,null,null,null,null,null,null,"0150","CE"]
["Storm water Infrastructure",null,{"$f":"SUM(C13:C15)","v":0},{"$f":"SUM(D13:D15)","v":0},0,0,0,0,21526561,19000000,35035708,null,null,null,null,null,null,null,null,null,null,null,null,null,null,null,null,null,null,"CE"]
["Drainage Collection",null,{"$f":"SUMIFS(Sheet1!S71_PPPYearAmount,Sheet1!S71_SA34aCode,$AC:$AC,Sheet1!S71_A5CapexCode,$AD:$AD)","v":0},{"$f":"SUMIFS(Sheet1!S71_PPYearAmount,Sheet1!S71_SA34aCode,$AC:$AC,Sheet1!S71_A5CapexCode,$AD:$AD)","v":0},{"$f":"SUMIFS(Sheet1!S71_PYearAmount,Sheet1!S71_SA34aCode,$AC:$AC,Sheet1!S71_A5CapexCode,$AD:$AD)","v":0},{"$f":"SUMIFS(Sheet1!S71_OriginalBudAmnt,Sheet1!S71_SA34aCode,$AC:$AC,Sheet1!S71_A5CapexCode,$AD:$AD)","v":0},{"$f":"SUMIFS(Sheet1!S71_AdjustmentBudAmnt,Sheet1!S71_SA34aCode,$AC:$AC,Sheet1!S71_A5CapexCode,$AD:$AD)","v":0},{"$f":"SUMIFS(Sheet1!S71_AdjustmentBudAmnt,Sheet1!S71_SA34aCode,$AC:$AC,Sheet1!S71_A5CapexCode,$AD:$AD)","v":0},{"$f":"SUMIFS(Sheet1!S71_ASBudgetAmount,Sheet1!S71_SA34aCode,$AC:$AC,Sheet1!S71_A5CapexCode,$AD:$AD)","v":21526561},{"$f":"SUMIFS(Sheet1!S71_OY1BudgetAmount,Sheet1!S71_SA34aCode,$AC:$AC,Sheet1!S71_A5CapexCode,$AD:$AD)","v":19000000},{"$f":"SUMIFS(Sheet1!S71_OY2BudgetAmount,Sheet1!S71_SA34aCode,$AC:$AC,Sheet1!S71_A5CapexCode,$AD:$AD)","v":35035708},null,null,null,null,null,null,null,null,null,null,null,null,null,null,null,null,null,"0170","CE"]
["Storm water Conveyance",null,{"$f":"SUMIFS(Sheet1!S71_PPPYearAmount,Sheet1!S71_SA34aCode,$AC:$AC,Sheet1!S71_A5CapexCode,$AD:$AD)","v":0},{"$f":"SUMIFS(Sheet1!S71_PPYearAmount,Sheet1!S71_SA34aCode,$AC:$AC,Sheet1!S71_A5CapexCode,$AD:$AD)","v":0},{"$f":"SUMIFS(Sheet1!S71_PYearAmount,Sheet1!S71_SA34aCode,$AC:$AC,Sheet1!S71_A5CapexCode,$AD:$AD)","v":0},{"$f":"SUMIFS(Sheet1!S71_OriginalBudAmnt,Sheet1!S71_SA34aCode,$AC:$AC,Sheet1!S71_A5CapexCode,$AD:$AD)","v":0},{"$f":"SUMIFS(Sheet1!S71_AdjustmentBudAmnt,Sheet1!S71_SA34aCode,$AC:$AC,Sheet1!S71_A5CapexCode,$AD:$AD)","v":0},{"$f":"SUMIFS(Sheet1!S71_AdjustmentBudAmnt,Sheet1!S71_SA34aCode,$AC:$AC,Sheet1!S71_A5CapexCode,$AD:$AD)","v":0},{"$f":"SUMIFS(Sheet1!S71_ASBudgetAmount,Sheet1!S71_SA34aCode,$AC:$AC,Sheet1!S71_A5CapexCode,$AD:$AD)","v":0},{"$f":"SUMIFS(Sheet1!S71_OY1BudgetAmount,Sheet1!S71_SA34aCode,$AC:$AC,Sheet1!S71_A5CapexCode,$AD:$AD)","v":0},{"$f":"SUMIFS(Sheet1!S71_OY2BudgetAmount,Sheet1!S71_SA34aCode,$AC:$AC,Sheet1!S71_A5CapexCode,$AD:$AD)","v":0},null,null,null,null,null,null,null,null,null,null,null,null,null,null,null,null,null,"0180","CE"]
["Attenuation",null,{"$f":"SUMIFS(Sheet1!S71_PPPYearAmount,Sheet1!S71_SA34aCode,$AC:$AC,Sheet1!S71_A5CapexCode,$AD:$AD)","v":0},{"$f":"SUMIFS(Sheet1!S71_PPYearAmount,Sheet1!S71_SA34aCode,$AC:$AC,Sheet1!S71_A5CapexCode,$AD:$AD)","v":0},{"$f":"SUMIFS(Sheet1!S71_PYearAmount,Sheet1!S71_SA34aCode,$AC:$AC,Sheet1!S71_A5CapexCode,$AD:$AD)","v":0},{"$f":"SUMIFS(Sheet1!S71_OriginalBudAmnt,Sheet1!S71_SA34aCode,$AC:$AC,Sheet1!S71_A5CapexCode,$AD:$AD)","v":0},{"$f":"SUMIFS(Sheet1!S71_AdjustmentBudAmnt,Sheet1!S71_SA34aCode,$AC:$AC,Sheet1!S71_A5CapexCode,$AD:$AD)","v":0},{"$f":"SUMIFS(Sheet1!S71_AdjustmentBudAmnt,Sheet1!S71_SA34aCode,$AC:$AC,Sheet1!S71_A5CapexCode,$AD:$AD)","v":0},{"$f":"SUMIFS(Sheet1!S71_ASBudgetAmount,Sheet1!S71_SA34aCode,$AC:$AC,Sheet1!S71_A5CapexCode,$AD:$AD)","v":0},{"$f":"SUMIFS(Sheet1!S71_OY1BudgetAmount,Sheet1!S71_SA34aCode,$AC:$AC,Sheet1!S71_A5CapexCode,$AD:$AD)","v":0},{"$f":"SUMIFS(Sheet1!S71_OY2BudgetAmount,Sheet1!S71_SA34aCode,$AC:$AC,Sheet1!S71_A5CapexCode,$AD:$AD)","v":0},null,null,null,null,null,null,null,null,null,null,null,null,null,null,null,null,null,"0190","CE"]
["Electrical Infrastructure",null,{"$f":"SUM(C17:C25)","v":1},8547902,2608696,0,0,0,0,0,0,null,null,null,null,null,null,null,null,null,null,null,null,null,null,null,null,null,null,"CE"]
["Power Plants",null,{"$f":"SUMIFS(Sheet1!S71_PPPYearAmount,Sheet1!S71_SA34aCode,$AC:$AC,Sheet1!S71_A5CapexCode,$AD:$AD)","v":0},{"$f":"SUMIFS(Sheet1!S71_PPYearAmount,Sheet1!S71_SA34aCode,$AC:$AC,Sheet1!S71_A5CapexCode,$AD:$AD)","v":0},{"$f":"SUMIFS(Sheet1!S71_PYearAmount,Sheet1!S71_SA34aCode,$AC:$AC,Sheet1!S71_A5CapexCode,$AD:$AD)","v":0},{"$f":"SUMIFS(Sheet1!S71_OriginalBudAmnt,Sheet1!S71_SA34aCode,$AC:$AC,Sheet1!S71_A5CapexCode,$AD:$AD)","v":0},{"$f":"SUMIFS(Sheet1!S71_AdjustmentBudAmnt,Sheet1!S71_SA34aCode,$AC:$AC,Sheet1!S71_A5CapexCode,$AD:$AD)","v":0},{"$f":"SUMIFS(Sheet1!S71_AdjustmentBudAmnt,Sheet1!S71_SA34aCode,$AC:$AC,Sheet1!S71_A5CapexCode,$AD:$AD)","v":0},{"$f":"SUMIFS(Sheet1!S71_ASBudgetAmount,Sheet1!S71_SA34aCode,$AC:$AC,Sheet1!S71_A5CapexCode,$AD:$AD)","v":0},{"$f":"SUMIFS(Sheet1!S71_OY1BudgetAmount,Sheet1!S71_SA34aCode,$AC:$AC,Sheet1!S71_A5CapexCode,$AD:$AD)","v":0},{"$f":"SUMIFS(Sheet1!S71_OY2BudgetAmount,Sheet1!S71_SA34aCode,$AC:$AC,Sheet1!S71_A5CapexCode,$AD:$AD)","v":0},null,null,null,null,null,null,null,null,null,null,null,null,null,null,null,null,null,"0210","CE"]
["HV Substations",null,{"$f":"SUMIFS(Sheet1!S71_PPPYearAmount,Sheet1!S71_SA34aCode,$AC:$AC,Sheet1!S71_A5CapexCode,$AD:$AD)","v":0},{"$f":"SUMIFS(Sheet1!S71_PPYearAmount,Sheet1!S71_SA34aCode,$AC:$AC,Sheet1!S71_A5CapexCode,$AD:$AD)","v":0},{"$f":"SUMIFS(Sheet1!S71_PYearAmount,Sheet1!S71_SA34aCode,$AC:$AC,Sheet1!S71_A5CapexCode,$AD:$AD)","v":0},{"$f":"SUMIFS(Sheet1!S71_OriginalBudAmnt,Sheet1!S71_SA34aCode,$AC:$AC,Sheet1!S71_A5CapexCode,$AD:$AD)","v":0},{"$f":"SUMIFS(Sheet1!S71_AdjustmentBudAmnt,Sheet1!S71_SA34aCode,$AC:$AC,Sheet1!S71_A5CapexCode,$AD:$AD)","v":0},{"$f":"SUMIFS(Sheet1!S71_AdjustmentBudAmnt,Sheet1!S71_SA34aCode,$AC:$AC,Sheet1!S71_A5CapexCode,$AD:$AD)","v":0},{"$f":"SUMIFS(Sheet1!S71_ASBudgetAmount,Sheet1!S71_SA34aCode,$AC:$AC,Sheet1!S71_A5CapexCode,$AD:$AD)","v":0},{"$f":"SUMIFS(Sheet1!S71_OY1BudgetAmount,Sheet1!S71_SA34aCode,$AC:$AC,Sheet1!S71_A5CapexCode,$AD:$AD)","v":0},{"$f":"SUMIFS(Sheet1!S71_OY2BudgetAmount,Sheet1!S71_SA34aCode,$AC:$AC,Sheet1!S71_A5CapexCode,$AD:$AD)","v":0},null,null,null,null,null,null,null,null,null,null,null,null,null,null,null,null,null,"0220","CE"]
["HV Switching Station",null,{"$f":"SUMIFS(Sheet1!S71_PPPYearAmount,Sheet1!S71_SA34aCode,$AC:$AC,Sheet1!S71_A5CapexCode,$AD:$AD)","v":0},{"$f":"SUMIFS(Sheet1!S71_PPYearAmount,Sheet1!S71_SA34aCode,$AC:$AC,Sheet1!S71_A5CapexCode,$AD:$AD)","v":0},{"$f":"SUMIFS(Sheet1!S71_PYearAmount,Sheet1!S71_SA34aCode,$AC:$AC,Sheet1!S71_A5CapexCode,$AD:$AD)","v":0},{"$f":"SUMIFS(Sheet1!S71_OriginalBudAmnt,Sheet1!S71_SA34aCode,$AC:$AC,Sheet1!S71_A5CapexCode,$AD:$AD)","v":0},{"$f":"SUMIFS(Sheet1!S71_AdjustmentBudAmnt,Sheet1!S71_SA34aCode,$AC:$AC,Sheet1!S71_A5CapexCode,$AD:$AD)","v":0},{"$f":"SUMIFS(Sheet1!S71_AdjustmentBudAmnt,Sheet1!S71_SA34aCode,$AC:$AC,Sheet1!S71_A5CapexCode,$AD:$AD)","v":0},{"$f":"SUMIFS(Sheet1!S71_ASBudgetAmount,Sheet1!S71_SA34aCode,$AC:$AC,Sheet1!S71_A5CapexCode,$AD:$AD)","v":0},{"$f":"SUMIFS(Sheet1!S71_OY1BudgetAmount,Sheet1!S71_SA34aCode,$AC:$AC,Sheet1!S71_A5CapexCode,$AD:$AD)","v":0},{"$f":"SUMIFS(Sheet1!S71_OY2BudgetAmount,Sheet1!S71_SA34aCode,$AC:$AC,Sheet1!S71_A5CapexCode,$AD:$AD)","v":0},null,null,null,null,null,null,null,null,null,null,null,null,null,null,null,null,null,"0230","CE"]
["HV Transmission Conductors",null,{"$f":"SUMIFS(Sheet1!S71_PPPYearAmount,Sheet1!S71_SA34aCode,$AC:$AC,Sheet1!S71_A5CapexCode,$AD:$AD)","v":0},{"$f":"SUMIFS(Sheet1!S71_PPYearAmount,Sheet1!S71_SA34aCode,$AC:$AC,Sheet1!S71_A5CapexCode,$AD:$AD)","v":0},{"$f":"SUMIFS(Sheet1!S71_PYearAmount,Sheet1!S71_SA34aCode,$AC:$AC,Sheet1!S71_A5CapexCode,$AD:$AD)","v":0},{"$f":"SUMIFS(Sheet1!S71_OriginalBudAmnt,Sheet1!S71_SA34aCode,$AC:$AC,Sheet1!S71_A5CapexCode,$AD:$AD)","v":0},{"$f":"SUMIFS(Sheet1!S71_AdjustmentBudAmnt,Sheet1!S71_SA34aCode,$AC:$AC,Sheet1!S71_A5CapexCode,$AD:$AD)","v":0},{"$f":"SUMIFS(Sheet1!S71_AdjustmentBudAmnt,Sheet1!S71_SA34aCode,$AC:$AC,Sheet1!S71_A5CapexCode,$AD:$AD)","v":0},{"$f":"SUMIFS(Sheet1!S71_ASBudgetAmount,Sheet1!S71_SA34aCode,$AC:$AC,Sheet1!S71_A5CapexCode,$AD:$AD)","v":0},{"$f":"SUMIFS(Sheet1!S71_OY1BudgetAmount,Sheet1!S71_SA34aCode,$AC:$AC,Sheet1!S71_A5CapexCode,$AD:$AD)","v":0},{"$f":"SUMIFS(Sheet1!S71_OY2BudgetAmount,Sheet1!S71_SA34aCode,$AC:$AC,Sheet1!S71_A5CapexCode,$AD:$AD)","v":0},null,null,null,null,null,null,null,null,null,null,null,null,null,null,null,null,null,"0240","CE"]
["MV Substations",null,{"$f":"SUMIFS(Sheet1!S71_PPPYearAmount,Sheet1!S71_SA34aCode,$AC:$AC,Sheet1!S71_A5CapexCode,$AD:$AD)","v":0},{"$f":"SUMIFS(Sheet1!S71_PPYearAmount,Sheet1!S71_SA34aCode,$AC:$AC,Sheet1!S71_A5CapexCode,$AD:$AD)","v":0},{"$f":"SUMIFS(Sheet1!S71_PYearAmount,Sheet1!S71_SA34aCode,$AC:$AC,Sheet1!S71_A5CapexCode,$AD:$AD)","v":0},{"$f":"SUMIFS(Sheet1!S71_OriginalBudAmnt,Sheet1!S71_SA34aCode,$AC:$AC,Sheet1!S71_A5CapexCode,$AD:$AD)","v":0},{"$f":"SUMIFS(Sheet1!S71_AdjustmentBudAmnt,Sheet1!S71_SA34aCode,$AC:$AC,Sheet1!S71_A5CapexCode,$AD:$AD)","v":0},{"$f":"SUMIFS(Sheet1!S71_AdjustmentBudAmnt,Sheet1!S71_SA34aCode,$AC:$AC,Sheet1!S71_A5CapexCode,$AD:$AD)","v":0},{"$f":"SUMIFS(Sheet1!S71_ASBudgetAmount,Sheet1!S71_SA34aCode,$AC:$AC,Sheet1!S71_A5CapexCode,$AD:$AD)","v":0},{"$f":"SUMIFS(Sheet1!S71_OY1BudgetAmount,Sheet1!S71_SA34aCode,$AC:$AC,Sheet1!S71_A5CapexCode,$AD:$AD)","v":0},{"$f":"SUMIFS(Sheet1!S71_OY2BudgetAmount,Sheet1!S71_SA34aCode,$AC:$AC,Sheet1!S71_A5CapexCode,$AD:$AD)","v":0},null,null,null,null,null,null,null,null,null,null,null,null,null,null,null,null,null,"0250","CE"]
["MV Switching Stations",null,{"$f":"SUMIFS(Sheet1!S71_PPPYearAmount,Sheet1!S71_SA34aCode,$AC:$AC,Sheet1!S71_A5CapexCode,$AD:$AD)","v":0},{"$f":"SUMIFS(Sheet1!S71_PPYearAmount,Sheet1!S71_SA34aCode,$AC:$AC,Sheet1!S71_A5CapexCode,$AD:$AD)","v":0},{"$f":"SUMIFS(Sheet1!S71_PYearAmount,Sheet1!S71_SA34aCode,$AC:$AC,Sheet1!S71_A5CapexCode,$AD:$AD)","v":0},{"$f":"SUMIFS(Sheet1!S71_OriginalBudAmnt,Sheet1!S71_SA34aCode,$AC:$AC,Sheet1!S71_A5CapexCode,$AD:$AD)","v":0},{"$f":"SUMIFS(Sheet1!S71_AdjustmentBudAmnt,Sheet1!S71_SA34aCode,$AC:$AC,Sheet1!S71_A5CapexCode,$AD:$AD)","v":0},{"$f":"SUMIFS(Sheet1!S71_AdjustmentBudAmnt,Sheet1!S71_SA34aCode,$AC:$AC,Sheet1!S71_A5CapexCode,$AD:$AD)","v":0},{"$f":"SUMIFS(Sheet1!S71_ASBudgetAmount,Sheet1!S71_SA34aCode,$AC:$AC,Sheet1!S71_A5CapexCode,$AD:$AD)","v":0},{"$f":"SUMIFS(Sheet1!S71_OY1BudgetAmount,Sheet1!S71_SA34aCode,$AC:$AC,Sheet1!S71_A5CapexCode,$AD:$AD)","v":0},{"$f":"SUMIFS(Sheet1!S71_OY2BudgetAmount,Sheet1!S71_SA34aCode,$AC:$AC,Sheet1!S71_A5CapexCode,$AD:$AD)","v":0},null,null,null,null,null,null,null,null,null,null,null,null,null,null,null,null,null,"0260","CE"]
["MV Networks",null,{"$f":"SUMIFS(Sheet1!S71_PPPYearAmount,Sheet1!S71_SA34aCode,$AC:$AC,Sheet1!S71_A5CapexCode,$AD:$AD)","v":0},{"$f":"SUMIFS(Sheet1!S71_PPYearAmount,Sheet1!S71_SA34aCode,$AC:$AC,Sheet1!S71_A5CapexCode,$AD:$AD)","v":0},{"$f":"SUMIFS(Sheet1!S71_PYearAmount,Sheet1!S71_SA34aCode,$AC:$AC,Sheet1!S71_A5CapexCode,$AD:$AD)","v":0},{"$f":"SUMIFS(Sheet1!S71_OriginalBudAmnt,Sheet1!S71_SA34aCode,$AC:$AC,Sheet1!S71_A5CapexCode,$AD:$AD)","v":0},{"$f":"SUMIFS(Sheet1!S71_AdjustmentBudAmnt,Sheet1!S71_SA34aCode,$AC:$AC,Sheet1!S71_A5CapexCode,$AD:$AD)","v":0},{"$f":"SUMIFS(Sheet1!S71_AdjustmentBudAmnt,Sheet1!S71_SA34aCode,$AC:$AC,Sheet1!S71_A5CapexCode,$AD:$AD)","v":0},{"$f":"SUMIFS(Sheet1!S71_ASBudgetAmount,Sheet1!S71_SA34aCode,$AC:$AC,Sheet1!S71_A5CapexCode,$AD:$AD)","v":0},{"$f":"SUMIFS(Sheet1!S71_OY1BudgetAmount,Sheet1!S71_SA34aCode,$AC:$AC,Sheet1!S71_A5CapexCode,$AD:$AD)","v":0},{"$f":"SUMIFS(Sheet1!S71_OY2BudgetAmount,Sheet1!S71_SA34aCode,$AC:$AC,Sheet1!S71_A5CapexCode,$AD:$AD)","v":0},null,null,null,null,null,null,null,null,null,null,null,null,null,null,null,null,null,"0270","CE"]
["LV Networks",null,{"$f":"SUMIFS(Sheet1!S71_PPPYearAmount,Sheet1!S71_SA34aCode,$AC:$AC,Sheet1!S71_A5CapexCode,$AD:$AD)","v":1},{"$f":"SUMIFS(Sheet1!S71_PPYearAmount,Sheet1!S71_SA34aCode,$AC:$AC,Sheet1!S71_A5CapexCode,$AD:$AD)","v":8547902},{"$f":"SUMIFS(Sheet1!S71_PYearAmount,Sheet1!S71_SA34aCode,$AC:$AC,Sheet1!S71_A5CapexCode,$AD:$AD)","v":2608696},{"$f":"SUMIFS(Sheet1!S71_OriginalBudAmnt,Sheet1!S71_SA34aCode,$AC:$AC,Sheet1!S71_A5CapexCode,$AD:$AD)","v":0},{"$f":"SUMIFS(Sheet1!S71_AdjustmentBudAmnt,Sheet1!S71_SA34aCode,$AC:$AC,Sheet1!S71_A5CapexCode,$AD:$AD)","v":0},{"$f":"SUMIFS(Sheet1!S71_AdjustmentBudAmnt,Sheet1!S71_SA34aCode,$AC:$AC,Sheet1!S71_A5CapexCode,$AD:$AD)","v":0},{"$f":"SUMIFS(Sheet1!S71_ASBudgetAmount,Sheet1!S71_SA34aCode,$AC:$AC,Sheet1!S71_A5CapexCode,$AD:$AD)","v":0},{"$f":"SUMIFS(Sheet1!S71_OY1BudgetAmount,Sheet1!S71_SA34aCode,$AC:$AC,Sheet1!S71_A5CapexCode,$AD:$AD)","v":0},{"$f":"SUMIFS(Sheet1!S71_OY2BudgetAmount,Sheet1!S71_SA34aCode,$AC:$AC,Sheet1!S71_A5CapexCode,$AD:$AD)","v":0},null,null,null,null,null,null,null,null,null,null,null,null,null,null,null,null,null,"0280","CE"]
["Capital Spares",null,{"$f":"SUMIFS(Sheet1!S71_PPPYearAmount,Sheet1!S71_SA34aCode,$AC:$AC,Sheet1!S71_A5CapexCode,$AD:$AD)","v":0},{"$f":"SUMIFS(Sheet1!S71_PPYearAmount,Sheet1!S71_SA34aCode,$AC:$AC,Sheet1!S71_A5CapexCode,$AD:$AD)","v":0},{"$f":"SUMIFS(Sheet1!S71_PYearAmount,Sheet1!S71_SA34aCode,$AC:$AC,Sheet1!S71_A5CapexCode,$AD:$AD)","v":0},{"$f":"SUMIFS(Sheet1!S71_OriginalBudAmnt,Sheet1!S71_SA34aCode,$AC:$AC,Sheet1!S71_A5CapexCode,$AD:$AD)","v":0},{"$f":"SUMIFS(Sheet1!S71_AdjustmentBudAmnt,Sheet1!S71_SA34aCode,$AC:$AC,Sheet1!S71_A5CapexCode,$AD:$AD)","v":0},{"$f":"SUMIFS(Sheet1!S71_AdjustmentBudAmnt,Sheet1!S71_SA34aCode,$AC:$AC,Sheet1!S71_A5CapexCode,$AD:$AD)","v":0},{"$f":"SUMIFS(Sheet1!S71_ASBudgetAmount,Sheet1!S71_SA34aCode,$AC:$AC,Sheet1!S71_A5CapexCode,$AD:$AD)","v":0},{"$f":"SUMIFS(Sheet1!S71_OY1BudgetAmount,Sheet1!S71_SA34aCode,$AC:$AC,Sheet1!S71_A5CapexCode,$AD:$AD)","v":0},{"$f":"SUMIFS(Sheet1!S71_OY2BudgetAmount,Sheet1!S71_SA34aCode,$AC:$AC,Sheet1!S71_A5CapexCode,$AD:$AD)","v":0},null,null,null,null,null,null,null,null,null,null,null,null,null,null,null,null,null,"0290","CE"]
["Water Supply Infrastructure",null,{"$f":"SUM(C27:C36)","v":0},{"$f":"SUM(D27:D36)","v":0},0,0,0,0,0,0,0,null,null,null,null,null,null,null,null,null,null,null,null,null,null,null,null,null,null,"CE"]
["Dams and Weirs",null,{"$f":"SUMIFS(Sheet1!S71_PPPYearAmount,Sheet1!S71_SA34aCode,$AC:$AC,Sheet1!S71_A5CapexCode,$AD:$AD)","v":0},{"$f":"SUMIFS(Sheet1!S71_PPYearAmount,Sheet1!S71_SA34aCode,$AC:$AC,Sheet1!S71_A5CapexCode,$AD:$AD)","v":0},{"$f":"SUMIFS(Sheet1!S71_PYearAmount,Sheet1!S71_SA34aCode,$AC:$AC,Sheet1!S71_A5CapexCode,$AD:$AD)","v":0},{"$f":"SUMIFS(Sheet1!S71_OriginalBudAmnt,Sheet1!S71_SA34aCode,$AC:$AC,Sheet1!S71_A5CapexCode,$AD:$AD)","v":0},{"$f":"SUMIFS(Sheet1!S71_AdjustmentBudAmnt,Sheet1!S71_SA34aCode,$AC:$AC,Sheet1!S71_A5CapexCode,$AD:$AD)","v":0},{"$f":"SUMIFS(Sheet1!S71_AdjustmentBudAmnt,Sheet1!S71_SA34aCode,$AC:$AC,Sheet1!S71_A5CapexCode,$AD:$AD)","v":0},{"$f":"SUMIFS(Sheet1!S71_ASBudgetAmount,Sheet1!S71_SA34aCode,$AC:$AC,Sheet1!S71_A5CapexCode,$AD:$AD)","v":0},{"$f":"SUMIFS(Sheet1!S71_OY1BudgetAmount,Sheet1!S71_SA34aCode,$AC:$AC,Sheet1!S71_A5CapexCode,$AD:$AD)","v":0},{"$f":"SUMIFS(Sheet1!S71_OY2BudgetAmount,Sheet1!S71_SA34aCode,$AC:$AC,Sheet1!S71_A5CapexCode,$AD:$AD)","v":0},null,null,null,null,null,null,null,null,null,null,null,null,null,null,null,null,null,"0310","CE"]
["Boreholes",null,{"$f":"SUMIFS(Sheet1!S71_PPPYearAmount,Sheet1!S71_SA34aCode,$AC:$AC,Sheet1!S71_A5CapexCode,$AD:$AD)","v":0},{"$f":"SUMIFS(Sheet1!S71_PPYearAmount,Sheet1!S71_SA34aCode,$AC:$AC,Sheet1!S71_A5CapexCode,$AD:$AD)","v":0},{"$f":"SUMIFS(Sheet1!S71_PYearAmount,Sheet1!S71_SA34aCode,$AC:$AC,Sheet1!S71_A5CapexCode,$AD:$AD)","v":0},{"$f":"SUMIFS(Sheet1!S71_OriginalBudAmnt,Sheet1!S71_SA34aCode,$AC:$AC,Sheet1!S71_A5CapexCode,$AD:$AD)","v":0},{"$f":"SUMIFS(Sheet1!S71_AdjustmentBudAmnt,Sheet1!S71_SA34aCode,$AC:$AC,Sheet1!S71_A5CapexCode,$AD:$AD)","v":0},{"$f":"SUMIFS(Sheet1!S71_AdjustmentBudAmnt,Sheet1!S71_SA34aCode,$AC:$AC,Sheet1!S71_A5CapexCode,$AD:$AD)","v":0},{"$f":"SUMIFS(Sheet1!S71_ASBudgetAmount,Sheet1!S71_SA34aCode,$AC:$AC,Sheet1!S71_A5CapexCode,$AD:$AD)","v":0},{"$f":"SUMIFS(Sheet1!S71_OY1BudgetAmount,Sheet1!S71_SA34aCode,$AC:$AC,Sheet1!S71_A5CapexCode,$AD:$AD)","v":0},{"$f":"SUMIFS(Sheet1!S71_OY2BudgetAmount,Sheet1!S71_SA34aCode,$AC:$AC,Sheet1!S71_A5CapexCode,$AD:$AD)","v":0},null,null,null,null,null,null,null,null,null,null,null,null,null,null,null,null,null,"0320","CE"]
["Reservoirs",null,{"$f":"SUMIFS(Sheet1!S71_PPPYearAmount,Sheet1!S71_SA34aCode,$AC:$AC,Sheet1!S71_A5CapexCode,$AD:$AD)","v":0},{"$f":"SUMIFS(Sheet1!S71_PPYearAmount,Sheet1!S71_SA34aCode,$AC:$AC,Sheet1!S71_A5CapexCode,$AD:$AD)","v":0},{"$f":"SUMIFS(Sheet1!S71_PYearAmount,Sheet1!S71_SA34aCode,$AC:$AC,Sheet1!S71_A5CapexCode,$AD:$AD)","v":0},{"$f":"SUMIFS(Sheet1!S71_OriginalBudAmnt,Sheet1!S71_SA34aCode,$AC:$AC,Sheet1!S71_A5CapexCode,$AD:$AD)","v":0},{"$f":"SUMIFS(Sheet1!S71_AdjustmentBudAmnt,Sheet1!S71_SA34aCode,$AC:$AC,Sheet1!S71_A5CapexCode,$AD:$AD)","v":0},{"$f":"SUMIFS(Sheet1!S71_AdjustmentBudAmnt,Sheet1!S71_SA34aCode,$AC:$AC,Sheet1!S71_A5CapexCode,$AD:$AD)","v":0},{"$f":"SUMIFS(Sheet1!S71_ASBudgetAmount,Sheet1!S71_SA34aCode,$AC:$AC,Sheet1!S71_A5CapexCode,$AD:$AD)","v":0},{"$f":"SUMIFS(Sheet1!S71_OY1BudgetAmount,Sheet1!S71_SA34aCode,$AC:$AC,Sheet1!S71_A5CapexCode,$AD:$AD)","v":0},{"$f":"SUMIFS(Sheet1!S71_OY2BudgetAmount,Sheet1!S71_SA34aCode,$AC:$AC,Sheet1!S71_A5CapexCode,$AD:$AD)","v":0},null,null,null,null,null,null,null,null,null,null,null,null,null,null,null,null,null,"0330","CE"]
["Pump Stations",null,{"$f":"SUMIFS(Sheet1!S71_PPPYearAmount,Sheet1!S71_SA34aCode,$AC:$AC,Sheet1!S71_A5CapexCode,$AD:$AD)","v":0},{"$f":"SUMIFS(Sheet1!S71_PPYearAmount,Sheet1!S71_SA34aCode,$AC:$AC,Sheet1!S71_A5CapexCode,$AD:$AD)","v":0},{"$f":"SUMIFS(Sheet1!S71_PYearAmount,Sheet1!S71_SA34aCode,$AC:$AC,Sheet1!S71_A5CapexCode,$AD:$AD)","v":0},{"$f":"SUMIFS(Sheet1!S71_OriginalBudAmnt,Sheet1!S71_SA34aCode,$AC:$AC,Sheet1!S71_A5CapexCode,$AD:$AD)","v":0},{"$f":"SUMIFS(Sheet1!S71_AdjustmentBudAmnt,Sheet1!S71_SA34aCode,$AC:$AC,Sheet1!S71_A5CapexCode,$AD:$AD)","v":0},{"$f":"SUMIFS(Sheet1!S71_AdjustmentBudAmnt,Sheet1!S71_SA34aCode,$AC:$AC,Sheet1!S71_A5CapexCode,$AD:$AD)","v":0},{"$f":"SUMIFS(Sheet1!S71_ASBudgetAmount,Sheet1!S71_SA34aCode,$AC:$AC,Sheet1!S71_A5CapexCode,$AD:$AD)","v":0},{"$f":"SUMIFS(Sheet1!S71_OY1BudgetAmount,Sheet1!S71_SA34aCode,$AC:$AC,Sheet1!S71_A5CapexCode,$AD:$AD)","v":0},{"$f":"SUMIFS(Sheet1!S71_OY2BudgetAmount,Sheet1!S71_SA34aCode,$AC:$AC,Sheet1!S71_A5CapexCode,$AD:$AD)","v":0},null,null,null,null,null,null,null,null,null,null,null,null,null,null,null,null,null,"0340","CE"]
["Water Treatment Works",null,{"$f":"SUMIFS(Sheet1!S71_PPPYearAmount,Sheet1!S71_SA34aCode,$AC:$AC,Sheet1!S71_A5CapexCode,$AD:$AD)","v":0},{"$f":"SUMIFS(Sheet1!S71_PPYearAmount,Sheet1!S71_SA34aCode,$AC:$AC,Sheet1!S71_A5CapexCode,$AD:$AD)","v":0},{"$f":"SUMIFS(Sheet1!S71_PYearAmount,Sheet1!S71_SA34aCode,$AC:$AC,Sheet1!S71_A5CapexCode,$AD:$AD)","v":0},{"$f":"SUMIFS(Sheet1!S71_OriginalBudAmnt,Sheet1!S71_SA34aCode,$AC:$AC,Sheet1!S71_A5CapexCode,$AD:$AD)","v":0},{"$f":"SUMIFS(Sheet1!S71_AdjustmentBudAmnt,Sheet1!S71_SA34aCode,$AC:$AC,Sheet1!S71_A5CapexCode,$AD:$AD)","v":0},{"$f":"SUMIFS(Sheet1!S71_AdjustmentBudAmnt,Sheet1!S71_SA34aCode,$AC:$AC,Sheet1!S71_A5CapexCode,$AD:$AD)","v":0},{"$f":"SUMIFS(Sheet1!S71_ASBudgetAmount,Sheet1!S71_SA34aCode,$AC:$AC,Sheet1!S71_A5CapexCode,$AD:$AD)","v":0},{"$f":"SUMIFS(Sheet1!S71_OY1BudgetAmount,Sheet1!S71_SA34aCode,$AC:$AC,Sheet1!S71_A5CapexCode,$AD:$AD)","v":0},{"$f":"SUMIFS(Sheet1!S71_OY2BudgetAmount,Sheet1!S71_SA34aCode,$AC:$AC,Sheet1!S71_A5CapexCode,$AD:$AD)","v":0},null,null,null,null,null,null,null,null,null,null,null,null,null,null,null,null,null,"0350","CE"]
["Bulk Mains",null,{"$f":"SUMIFS(Sheet1!S71_PPPYearAmount,Sheet1!S71_SA34aCode,$AC:$AC,Sheet1!S71_A5CapexCode,$AD:$AD)","v":0},{"$f":"SUMIFS(Sheet1!S71_PPYearAmount,Sheet1!S71_SA34aCode,$AC:$AC,Sheet1!S71_A5CapexCode,$AD:$AD)","v":0},{"$f":"SUMIFS(Sheet1!S71_PYearAmount,Sheet1!S71_SA34aCode,$AC:$AC,Sheet1!S71_A5CapexCode,$AD:$AD)","v":0},{"$f":"SUMIFS(Sheet1!S71_OriginalBudAmnt,Sheet1!S71_SA34aCode,$AC:$AC,Sheet1!S71_A5CapexCode,$AD:$AD)","v":0},{"$f":"SUMIFS(Sheet1!S71_AdjustmentBudAmnt,Sheet1!S71_SA34aCode,$AC:$AC,Sheet1!S71_A5CapexCode,$AD:$AD)","v":0},{"$f":"SUMIFS(Sheet1!S71_AdjustmentBudAmnt,Sheet1!S71_SA34aCode,$AC:$AC,Sheet1!S71_A5CapexCode,$AD:$AD)","v":0},{"$f":"SUMIFS(Sheet1!S71_ASBudgetAmount,Sheet1!S71_SA34aCode,$AC:$AC,Sheet1!S71_A5CapexCode,$AD:$AD)","v":0},{"$f":"SUMIFS(Sheet1!S71_OY1BudgetAmount,Sheet1!S71_SA34aCode,$AC:$AC,Sheet1!S71_A5CapexCode,$AD:$AD)","v":0},{"$f":"SUMIFS(Sheet1!S71_OY2BudgetAmount,Sheet1!S71_SA34aCode,$AC:$AC,Sheet1!S71_A5CapexCode,$AD:$AD)","v":0},null,null,null,null,null,null,null,null,null,null,null,null,null,null,null,null,null,"0360","CE"]
["Distribution",null,{"$f":"SUMIFS(Sheet1!S71_PPPYearAmount,Sheet1!S71_SA34aCode,$AC:$AC,Sheet1!S71_A5CapexCode,$AD:$AD)","v":0},{"$f":"SUMIFS(Sheet1!S71_PPYearAmount,Sheet1!S71_SA34aCode,$AC:$AC,Sheet1!S71_A5CapexCode,$AD:$AD)","v":0},{"$f":"SUMIFS(Sheet1!S71_PYearAmount,Sheet1!S71_SA34aCode,$AC:$AC,Sheet1!S71_A5CapexCode,$AD:$AD)","v":0},{"$f":"SUMIFS(Sheet1!S71_OriginalBudAmnt,Sheet1!S71_SA34aCode,$AC:$AC,Sheet1!S71_A5CapexCode,$AD:$AD)","v":0},{"$f":"SUMIFS(Sheet1!S71_AdjustmentBudAmnt,Sheet1!S71_SA34aCode,$AC:$AC,Sheet1!S71_A5CapexCode,$AD:$AD)","v":0},{"$f":"SUMIFS(Sheet1!S71_AdjustmentBudAmnt,Sheet1!S71_SA34aCode,$AC:$AC,Sheet1!S71_A5CapexCode,$AD:$AD)","v":0},{"$f":"SUMIFS(Sheet1!S71_ASBudgetAmount,Sheet1!S71_SA34aCode,$AC:$AC,Sheet1!S71_A5CapexCode,$AD:$AD)","v":0},{"$f":"SUMIFS(Sheet1!S71_OY1BudgetAmount,Sheet1!S71_SA34aCode,$AC:$AC,Sheet1!S71_A5CapexCode,$AD:$AD)","v":0},{"$f":"SUMIFS(Sheet1!S71_OY2BudgetAmount,Sheet1!S71_SA34aCode,$AC:$AC,Sheet1!S71_A5CapexCode,$AD:$AD)","v":0},null,null,null,null,null,null,null,null,null,null,null,null,null,null,null,null,null,"0370","CE"]
["Distribution Points",null,{"$f":"SUMIFS(Sheet1!S71_PPPYearAmount,Sheet1!S71_SA34aCode,$AC:$AC,Sheet1!S71_A5CapexCode,$AD:$AD)","v":0},{"$f":"SUMIFS(Sheet1!S71_PPYearAmount,Sheet1!S71_SA34aCode,$AC:$AC,Sheet1!S71_A5CapexCode,$AD:$AD)","v":0},{"$f":"SUMIFS(Sheet1!S71_PYearAmount,Sheet1!S71_SA34aCode,$AC:$AC,Sheet1!S71_A5CapexCode,$AD:$AD)","v":0},{"$f":"SUMIFS(Sheet1!S71_OriginalBudAmnt,Sheet1!S71_SA34aCode,$AC:$AC,Sheet1!S71_A5CapexCode,$AD:$AD)","v":0},{"$f":"SUMIFS(Sheet1!S71_AdjustmentBudAmnt,Sheet1!S71_SA34aCode,$AC:$AC,Sheet1!S71_A5CapexCode,$AD:$AD)","v":0},{"$f":"SUMIFS(Sheet1!S71_AdjustmentBudAmnt,Sheet1!S71_SA34aCode,$AC:$AC,Sheet1!S71_A5CapexCode,$AD:$AD)","v":0},{"$f":"SUMIFS(Sheet1!S71_ASBudgetAmount,Sheet1!S71_SA34aCode,$AC:$AC,Sheet1!S71_A5CapexCode,$AD:$AD)","v":0},{"$f":"SUMIFS(Sheet1!S71_OY1BudgetAmount,Sheet1!S71_SA34aCode,$AC:$AC,Sheet1!S71_A5CapexCode,$AD:$AD)","v":0},{"$f":"SUMIFS(Sheet1!S71_OY2BudgetAmount,Sheet1!S71_SA34aCode,$AC:$AC,Sheet1!S71_A5CapexCode,$AD:$AD)","v":0},null,null,null,null,null,null,null,null,null,null,null,null,null,null,null,null,null,"0380","CE"]
["PRV Stations",null,{"$f":"SUMIFS(Sheet1!S71_PPPYearAmount,Sheet1!S71_SA34aCode,$AC:$AC,Sheet1!S71_A5CapexCode,$AD:$AD)","v":0},{"$f":"SUMIFS(Sheet1!S71_PPYearAmount,Sheet1!S71_SA34aCode,$AC:$AC,Sheet1!S71_A5CapexCode,$AD:$AD)","v":0},{"$f":"SUMIFS(Sheet1!S71_PYearAmount,Sheet1!S71_SA34aCode,$AC:$AC,Sheet1!S71_A5CapexCode,$AD:$AD)","v":0},{"$f":"SUMIFS(Sheet1!S71_OriginalBudAmnt,Sheet1!S71_SA34aCode,$AC:$AC,Sheet1!S71_A5CapexCode,$AD:$AD)","v":0},{"$f":"SUMIFS(Sheet1!S71_AdjustmentBudAmnt,Sheet1!S71_SA34aCode,$AC:$AC,Sheet1!S71_A5CapexCode,$AD:$AD)","v":0},{"$f":"SUMIFS(Sheet1!S71_AdjustmentBudAmnt,Sheet1!S71_SA34aCode,$AC:$AC,Sheet1!S71_A5CapexCode,$AD:$AD)","v":0},{"$f":"SUMIFS(Sheet1!S71_ASBudgetAmount,Sheet1!S71_SA34aCode,$AC:$AC,Sheet1!S71_A5CapexCode,$AD:$AD)","v":0},{"$f":"SUMIFS(Sheet1!S71_OY1BudgetAmount,Sheet1!S71_SA34aCode,$AC:$AC,Sheet1!S71_A5CapexCode,$AD:$AD)","v":0},{"$f":"SUMIFS(Sheet1!S71_OY2BudgetAmount,Sheet1!S71_SA34aCode,$AC:$AC,Sheet1!S71_A5CapexCode,$AD:$AD)","v":0},null,null,null,null,null,null,null,null,null,null,null,null,null,null,null,null,null,"0390","CE"]
["Capital Spares",null,{"$f":"SUMIFS(Sheet1!S71_PPPYearAmount,Sheet1!S71_SA34aCode,$AC:$AC,Sheet1!S71_A5CapexCode,$AD:$AD)","v":0},{"$f":"SUMIFS(Sheet1!S71_PPYearAmount,Sheet1!S71_SA34aCode,$AC:$AC,Sheet1!S71_A5CapexCode,$AD:$AD)","v":0},{"$f":"SUMIFS(Sheet1!S71_PYearAmount,Sheet1!S71_SA34aCode,$AC:$AC,Sheet1!S71_A5CapexCode,$AD:$AD)","v":0},{"$f":"SUMIFS(Sheet1!S71_OriginalBudAmnt,Sheet1!S71_SA34aCode,$AC:$AC,Sheet1!S71_A5CapexCode,$AD:$AD)","v":0},{"$f":"SUMIFS(Sheet1!S71_AdjustmentBudAmnt,Sheet1!S71_SA34aCode,$AC:$AC,Sheet1!S71_A5CapexCode,$AD:$AD)","v":0},{"$f":"SUMIFS(Sheet1!S71_AdjustmentBudAmnt,Sheet1!S71_SA34aCode,$AC:$AC,Sheet1!S71_A5CapexCode,$AD:$AD)","v":0},{"$f":"SUMIFS(Sheet1!S71_ASBudgetAmount,Sheet1!S71_SA34aCode,$AC:$AC,Sheet1!S71_A5CapexCode,$AD:$AD)","v":0},{"$f":"SUMIFS(Sheet1!S71_OY1BudgetAmount,Sheet1!S71_SA34aCode,$AC:$AC,Sheet1!S71_A5CapexCode,$AD:$AD)","v":0},{"$f":"SUMIFS(Sheet1!S71_OY2BudgetAmount,Sheet1!S71_SA34aCode,$AC:$AC,Sheet1!S71_A5CapexCode,$AD:$AD)","v":0},null,null,null,null,null,null,null,null,null,null,null,null,null,null,null,null,null,"0400","CE"]
["Sanitation Infrastructure",null,{"$f":"SUM(C38:C43)","v":0},{"$f":"SUM(D38:D43)","v":0},0,0,0,0,0,0,0,null,null,null,null,null,null,null,null,null,null,null,null,null,null,null,null,null,null,"CE"]
["Pump Station",null,{"$f":"SUMIFS(Sheet1!S71_PPPYearAmount,Sheet1!S71_SA34aCode,$AC:$AC,Sheet1!S71_A5CapexCode,$AD:$AD)","v":0},{"$f":"SUMIFS(Sheet1!S71_PPYearAmount,Sheet1!S71_SA34aCode,$AC:$AC,Sheet1!S71_A5CapexCode,$AD:$AD)","v":0},{"$f":"SUMIFS(Sheet1!S71_PYearAmount,Sheet1!S71_SA34aCode,$AC:$AC,Sheet1!S71_A5CapexCode,$AD:$AD)","v":0},{"$f":"SUMIFS(Sheet1!S71_OriginalBudAmnt,Sheet1!S71_SA34aCode,$AC:$AC,Sheet1!S71_A5CapexCode,$AD:$AD)","v":0},{"$f":"SUMIFS(Sheet1!S71_AdjustmentBudAmnt,Sheet1!S71_SA34aCode,$AC:$AC,Sheet1!S71_A5CapexCode,$AD:$AD)","v":0},{"$f":"SUMIFS(Sheet1!S71_AdjustmentBudAmnt,Sheet1!S71_SA34aCode,$AC:$AC,Sheet1!S71_A5CapexCode,$AD:$AD)","v":0},{"$f":"SUMIFS(Sheet1!S71_ASBudgetAmount,Sheet1!S71_SA34aCode,$AC:$AC,Sheet1!S71_A5CapexCode,$AD:$AD)","v":0},{"$f":"SUMIFS(Sheet1!S71_OY1BudgetAmount,Sheet1!S71_SA34aCode,$AC:$AC,Sheet1!S71_A5CapexCode,$AD:$AD)","v":0},{"$f":"SUMIFS(Sheet1!S71_OY2BudgetAmount,Sheet1!S71_SA34aCode,$AC:$AC,Sheet1!S71_A5CapexCode,$AD:$AD)","v":0},null,null,null,null,null,null,null,null,null,null,null,null,null,null,null,null,null,"0420","CE"]
["Reticulation",null,{"$f":"SUMIFS(Sheet1!S71_PPPYearAmount,Sheet1!S71_SA34aCode,$AC:$AC,Sheet1!S71_A5CapexCode,$AD:$AD)","v":0},{"$f":"SUMIFS(Sheet1!S71_PPYearAmount,Sheet1!S71_SA34aCode,$AC:$AC,Sheet1!S71_A5CapexCode,$AD:$AD)","v":0},{"$f":"SUMIFS(Sheet1!S71_PYearAmount,Sheet1!S71_SA34aCode,$AC:$AC,Sheet1!S71_A5CapexCode,$AD:$AD)","v":0},{"$f":"SUMIFS(Sheet1!S71_OriginalBudAmnt,Sheet1!S71_SA34aCode,$AC:$AC,Sheet1!S71_A5CapexCode,$AD:$AD)","v":0},{"$f":"SUMIFS(Sheet1!S71_AdjustmentBudAmnt,Sheet1!S71_SA34aCode,$AC:$AC,Sheet1!S71_A5CapexCode,$AD:$AD)","v":0},{"$f":"SUMIFS(Sheet1!S71_AdjustmentBudAmnt,Sheet1!S71_SA34aCode,$AC:$AC,Sheet1!S71_A5CapexCode,$AD:$AD)","v":0},{"$f":"SUMIFS(Sheet1!S71_ASBudgetAmount,Sheet1!S71_SA34aCode,$AC:$AC,Sheet1!S71_A5CapexCode,$AD:$AD)","v":0},{"$f":"SUMIFS(Sheet1!S71_OY1BudgetAmount,Sheet1!S71_SA34aCode,$AC:$AC,Sheet1!S71_A5CapexCode,$AD:$AD)","v":0},{"$f":"SUMIFS(Sheet1!S71_OY2BudgetAmount,Sheet1!S71_SA34aCode,$AC:$AC,Sheet1!S71_A5CapexCode,$AD:$AD)","v":0},null,null,null,null,null,null,null,null,null,null,null,null,null,null,null,null,null,"0430","CE"]
["Waste Water Treatment Works",null,{"$f":"SUMIFS(Sheet1!S71_PPPYearAmount,Sheet1!S71_SA34aCode,$AC:$AC,Sheet1!S71_A5CapexCode,$AD:$AD)","v":0},{"$f":"SUMIFS(Sheet1!S71_PPYearAmount,Sheet1!S71_SA34aCode,$AC:$AC,Sheet1!S71_A5CapexCode,$AD:$AD)","v":0},{"$f":"SUMIFS(Sheet1!S71_PYearAmount,Sheet1!S71_SA34aCode,$AC:$AC,Sheet1!S71_A5CapexCode,$AD:$AD)","v":0},{"$f":"SUMIFS(Sheet1!S71_OriginalBudAmnt,Sheet1!S71_SA34aCode,$AC:$AC,Sheet1!S71_A5CapexCode,$AD:$AD)","v":0},{"$f":"SUMIFS(Sheet1!S71_AdjustmentBudAmnt,Sheet1!S71_SA34aCode,$AC:$AC,Sheet1!S71_A5CapexCode,$AD:$AD)","v":0},{"$f":"SUMIFS(Sheet1!S71_AdjustmentBudAmnt,Sheet1!S71_SA34aCode,$AC:$AC,Sheet1!S71_A5CapexCode,$AD:$AD)","v":0},{"$f":"SUMIFS(Sheet1!S71_ASBudgetAmount,Sheet1!S71_SA34aCode,$AC:$AC,Sheet1!S71_A5CapexCode,$AD:$AD)","v":0},{"$f":"SUMIFS(Sheet1!S71_OY1BudgetAmount,Sheet1!S71_SA34aCode,$AC:$AC,Sheet1!S71_A5CapexCode,$AD:$AD)","v":0},{"$f":"SUMIFS(Sheet1!S71_OY2BudgetAmount,Sheet1!S71_SA34aCode,$AC:$AC,Sheet1!S71_A5CapexCode,$AD:$AD)","v":0},null,null,null,null,null,null,null,null,null,null,null,null,null,null,null,null,null,"0440","CE"]
["Outfall Sewers",null,{"$f":"SUMIFS(Sheet1!S71_PPPYearAmount,Sheet1!S71_SA34aCode,$AC:$AC,Sheet1!S71_A5CapexCode,$AD:$AD)","v":0},{"$f":"SUMIFS(Sheet1!S71_PPYearAmount,Sheet1!S71_SA34aCode,$AC:$AC,Sheet1!S71_A5CapexCode,$AD:$AD)","v":0},{"$f":"SUMIFS(Sheet1!S71_PYearAmount,Sheet1!S71_SA34aCode,$AC:$AC,Sheet1!S71_A5CapexCode,$AD:$AD)","v":0},{"$f":"SUMIFS(Sheet1!S71_OriginalBudAmnt,Sheet1!S71_SA34aCode,$AC:$AC,Sheet1!S71_A5CapexCode,$AD:$AD)","v":0},{"$f":"SUMIFS(Sheet1!S71_AdjustmentBudAmnt,Sheet1!S71_SA34aCode,$AC:$AC,Sheet1!S71_A5CapexCode,$AD:$AD)","v":0},{"$f":"SUMIFS(Sheet1!S71_AdjustmentBudAmnt,Sheet1!S71_SA34aCode,$AC:$AC,Sheet1!S71_A5CapexCode,$AD:$AD)","v":0},{"$f":"SUMIFS(Sheet1!S71_ASBudgetAmount,Sheet1!S71_SA34aCode,$AC:$AC,Sheet1!S71_A5CapexCode,$AD:$AD)","v":0},{"$f":"SUMIFS(Sheet1!S71_OY1BudgetAmount,Sheet1!S71_SA34aCode,$AC:$AC,Sheet1!S71_A5CapexCode,$AD:$AD)","v":0},{"$f":"SUMIFS(Sheet1!S71_OY2BudgetAmount,Sheet1!S71_SA34aCode,$AC:$AC,Sheet1!S71_A5CapexCode,$AD:$AD)","v":0},null,null,null,null,null,null,null,null,null,null,null,null,null,null,null,null,null,"0450","CE"]
["Toilet Facilities",null,{"$f":"SUMIFS(Sheet1!S71_PPPYearAmount,Sheet1!S71_SA34aCode,$AC:$AC,Sheet1!S71_A5CapexCode,$AD:$AD)","v":0},{"$f":"SUMIFS(Sheet1!S71_PPYearAmount,Sheet1!S71_SA34aCode,$AC:$AC,Sheet1!S71_A5CapexCode,$AD:$AD)","v":0},{"$f":"SUMIFS(Sheet1!S71_PYearAmount,Sheet1!S71_SA34aCode,$AC:$AC,Sheet1!S71_A5CapexCode,$AD:$AD)","v":0},{"$f":"SUMIFS(Sheet1!S71_OriginalBudAmnt,Sheet1!S71_SA34aCode,$AC:$AC,Sheet1!S71_A5CapexCode,$AD:$AD)","v":0},{"$f":"SUMIFS(Sheet1!S71_AdjustmentBudAmnt,Sheet1!S71_SA34aCode,$AC:$AC,Sheet1!S71_A5CapexCode,$AD:$AD)","v":0},{"$f":"SUMIFS(Sheet1!S71_AdjustmentBudAmnt,Sheet1!S71_SA34aCode,$AC:$AC,Sheet1!S71_A5CapexCode,$AD:$AD)","v":0},{"$f":"SUMIFS(Sheet1!S71_ASBudgetAmount,Sheet1!S71_SA34aCode,$AC:$AC,Sheet1!S71_A5CapexCode,$AD:$AD)","v":0},{"$f":"SUMIFS(Sheet1!S71_OY1BudgetAmount,Sheet1!S71_SA34aCode,$AC:$AC,Sheet1!S71_A5CapexCode,$AD:$AD)","v":0},{"$f":"SUMIFS(Sheet1!S71_OY2BudgetAmount,Sheet1!S71_SA34aCode,$AC:$AC,Sheet1!S71_A5CapexCode,$AD:$AD)","v":0},null,null,null,null,null,null,null,null,null,null,null,null,null,null,null,null,null,"0460","CE"]
["Capital Spares",null,{"$f":"SUMIFS(Sheet1!S71_PPPYearAmount,Sheet1!S71_SA34aCode,$AC:$AC,Sheet1!S71_A5CapexCode,$AD:$AD)","v":0},{"$f":"SUMIFS(Sheet1!S71_PPYearAmount,Sheet1!S71_SA34aCode,$AC:$AC,Sheet1!S71_A5CapexCode,$AD:$AD)","v":0},{"$f":"SUMIFS(Sheet1!S71_PYearAmount,Sheet1!S71_SA34aCode,$AC:$AC,Sheet1!S71_A5CapexCode,$AD:$AD)","v":0},{"$f":"SUMIFS(Sheet1!S71_OriginalBudAmnt,Sheet1!S71_SA34aCode,$AC:$AC,Sheet1!S71_A5CapexCode,$AD:$AD)","v":0},{"$f":"SUMIFS(Sheet1!S71_AdjustmentBudAmnt,Sheet1!S71_SA34aCode,$AC:$AC,Sheet1!S71_A5CapexCode,$AD:$AD)","v":0},{"$f":"SUMIFS(Sheet1!S71_AdjustmentBudAmnt,Sheet1!S71_SA34aCode,$AC:$AC,Sheet1!S71_A5CapexCode,$AD:$AD)","v":0},{"$f":"SUMIFS(Sheet1!S71_ASBudgetAmount,Sheet1!S71_SA34aCode,$AC:$AC,Sheet1!S71_A5CapexCode,$AD:$AD)","v":0},{"$f":"SUMIFS(Sheet1!S71_OY1BudgetAmount,Sheet1!S71_SA34aCode,$AC:$AC,Sheet1!S71_A5CapexCode,$AD:$AD)","v":0},{"$f":"SUMIFS(Sheet1!S71_OY2BudgetAmount,Sheet1!S71_SA34aCode,$AC:$AC,Sheet1!S71_A5CapexCode,$AD:$AD)","v":0},null,null,null,null,null,null,null,null,null,null,null,null,null,null,null,null,null,"0470","CE"]
["Solid Waste Infrastructure",null,{"$f":"SUM(C45:C51)","v":8470229},{"$f":"SUM(D45:D51)","v":8470229},10146189,0,0,0,0,0,0,null,null,null,null,null,null,null,null,null,null,null,null,null,null,null,null,null,null,"CE"]
["Landfill Sites",null,{"$f":"SUMIFS(Sheet1!S71_PPPYearAmount,Sheet1!S71_SA34aCode,$AC:$AC,Sheet1!S71_A5CapexCode,$AD:$AD)","v":8470229},{"$f":"SUMIFS(Sheet1!S71_PPYearAmount,Sheet1!S71_SA34aCode,$AC:$AC,Sheet1!S71_A5CapexCode,$AD:$AD)","v":8470229},{"$f":"SUMIFS(Sheet1!S71_PYearAmount,Sheet1!S71_SA34aCode,$AC:$AC,Sheet1!S71_A5CapexCode,$AD:$AD)","v":10146189},{"$f":"SUMIFS(Sheet1!S71_OriginalBudAmnt,Sheet1!S71_SA34aCode,$AC:$AC,Sheet1!S71_A5CapexCode,$AD:$AD)","v":0},{"$f":"SUMIFS(Sheet1!S71_AdjustmentBudAmnt,Sheet1!S71_SA34aCode,$AC:$AC,Sheet1!S71_A5CapexCode,$AD:$AD)","v":0},{"$f":"SUMIFS(Sheet1!S71_AdjustmentBudAmnt,Sheet1!S71_SA34aCode,$AC:$AC,Sheet1!S71_A5CapexCode,$AD:$AD)","v":0},{"$f":"SUMIFS(Sheet1!S71_ASBudgetAmount,Sheet1!S71_SA34aCode,$AC:$AC,Sheet1!S71_A5CapexCode,$AD:$AD)","v":0},{"$f":"SUMIFS(Sheet1!S71_OY1BudgetAmount,Sheet1!S71_SA34aCode,$AC:$AC,Sheet1!S71_A5CapexCode,$AD:$AD)","v":0},{"$f":"SUMIFS(Sheet1!S71_OY2BudgetAmount,Sheet1!S71_SA34aCode,$AC:$AC,Sheet1!S71_A5CapexCode,$AD:$AD)","v":0},null,null,null,null,null,null,null,null,null,null,null,null,null,null,null,null,null,"0490","CE"]
["Waste Transfer Stations",null,{"$f":"SUMIFS(Sheet1!S71_PPPYearAmount,Sheet1!S71_SA34aCode,$AC:$AC,Sheet1!S71_A5CapexCode,$AD:$AD)","v":0},{"$f":"SUMIFS(Sheet1!S71_PPYearAmount,Sheet1!S71_SA34aCode,$AC:$AC,Sheet1!S71_A5CapexCode,$AD:$AD)","v":0},{"$f":"SUMIFS(Sheet1!S71_PYearAmount,Sheet1!S71_SA34aCode,$AC:$AC,Sheet1!S71_A5CapexCode,$AD:$AD)","v":0},{"$f":"SUMIFS(Sheet1!S71_OriginalBudAmnt,Sheet1!S71_SA34aCode,$AC:$AC,Sheet1!S71_A5CapexCode,$AD:$AD)","v":0},{"$f":"SUMIFS(Sheet1!S71_AdjustmentBudAmnt,Sheet1!S71_SA34aCode,$AC:$AC,Sheet1!S71_A5CapexCode,$AD:$AD)","v":0},{"$f":"SUMIFS(Sheet1!S71_AdjustmentBudAmnt,Sheet1!S71_SA34aCode,$AC:$AC,Sheet1!S71_A5CapexCode,$AD:$AD)","v":0},{"$f":"SUMIFS(Sheet1!S71_ASBudgetAmount,Sheet1!S71_SA34aCode,$AC:$AC,Sheet1!S71_A5CapexCode,$AD:$AD)","v":0},{"$f":"SUMIFS(Sheet1!S71_OY1BudgetAmount,Sheet1!S71_SA34aCode,$AC:$AC,Sheet1!S71_A5CapexCode,$AD:$AD)","v":0},{"$f":"SUMIFS(Sheet1!S71_OY2BudgetAmount,Sheet1!S71_SA34aCode,$AC:$AC,Sheet1!S71_A5CapexCode,$AD:$AD)","v":0},null,null,null,null,null,null,null,null,null,null,null,null,null,null,null,null,null,"0500","CE"]
["Waste Processing Facilities",null,{"$f":"SUMIFS(Sheet1!S71_PPPYearAmount,Sheet1!S71_SA34aCode,$AC:$AC,Sheet1!S71_A5CapexCode,$AD:$AD)","v":0},{"$f":"SUMIFS(Sheet1!S71_PPYearAmount,Sheet1!S71_SA34aCode,$AC:$AC,Sheet1!S71_A5CapexCode,$AD:$AD)","v":0},{"$f":"SUMIFS(Sheet1!S71_PYearAmount,Sheet1!S71_SA34aCode,$AC:$AC,Sheet1!S71_A5CapexCode,$AD:$AD)","v":0},{"$f":"SUMIFS(Sheet1!S71_OriginalBudAmnt,Sheet1!S71_SA34aCode,$AC:$AC,Sheet1!S71_A5CapexCode,$AD:$AD)","v":0},{"$f":"SUMIFS(Sheet1!S71_AdjustmentBudAmnt,Sheet1!S71_SA34aCode,$AC:$AC,Sheet1!S71_A5CapexCode,$AD:$AD)","v":0},{"$f":"SUMIFS(Sheet1!S71_AdjustmentBudAmnt,Sheet1!S71_SA34aCode,$AC:$AC,Sheet1!S71_A5CapexCode,$AD:$AD)","v":0},{"$f":"SUMIFS(Sheet1!S71_ASBudgetAmount,Sheet1!S71_SA34aCode,$AC:$AC,Sheet1!S71_A5CapexCode,$AD:$AD)","v":0},{"$f":"SUMIFS(Sheet1!S71_OY1BudgetAmount,Sheet1!S71_SA34aCode,$AC:$AC,Sheet1!S71_A5CapexCode,$AD:$AD)","v":0},{"$f":"SUMIFS(Sheet1!S71_OY2BudgetAmount,Sheet1!S71_SA34aCode,$AC:$AC,Sheet1!S71_A5CapexCode,$AD:$AD)","v":0},null,null,null,null,null,null,null,null,null,null,null,null,null,null,null,null,null,"0510","CE"]
["Waste Drop-off Points",null,{"$f":"SUMIFS(Sheet1!S71_PPPYearAmount,Sheet1!S71_SA34aCode,$AC:$AC,Sheet1!S71_A5CapexCode,$AD:$AD)","v":0},{"$f":"SUMIFS(Sheet1!S71_PPYearAmount,Sheet1!S71_SA34aCode,$AC:$AC,Sheet1!S71_A5CapexCode,$AD:$AD)","v":0},{"$f":"SUMIFS(Sheet1!S71_PYearAmount,Sheet1!S71_SA34aCode,$AC:$AC,Sheet1!S71_A5CapexCode,$AD:$AD)","v":0},{"$f":"SUMIFS(Sheet1!S71_OriginalBudAmnt,Sheet1!S71_SA34aCode,$AC:$AC,Sheet1!S71_A5CapexCode,$AD:$AD)","v":0},{"$f":"SUMIFS(Sheet1!S71_AdjustmentBudAmnt,Sheet1!S71_SA34aCode,$AC:$AC,Sheet1!S71_A5CapexCode,$AD:$AD)","v":0},{"$f":"SUMIFS(Sheet1!S71_AdjustmentBudAmnt,Sheet1!S71_SA34aCode,$AC:$AC,Sheet1!S71_A5CapexCode,$AD:$AD)","v":0},{"$f":"SUMIFS(Sheet1!S71_ASBudgetAmount,Sheet1!S71_SA34aCode,$AC:$AC,Sheet1!S71_A5CapexCode,$AD:$AD)","v":0},{"$f":"SUMIFS(Sheet1!S71_OY1BudgetAmount,Sheet1!S71_SA34aCode,$AC:$AC,Sheet1!S71_A5CapexCode,$AD:$AD)","v":0},{"$f":"SUMIFS(Sheet1!S71_OY2BudgetAmount,Sheet1!S71_SA34aCode,$AC:$AC,Sheet1!S71_A5CapexCode,$AD:$AD)","v":0},null,null,null,null,null,null,null,null,null,null,null,null,null,null,null,null,null,"0520","CE"]
["Waste Separation Facilities",null,{"$f":"SUMIFS(Sheet1!S71_PPPYearAmount,Sheet1!S71_SA34aCode,$AC:$AC,Sheet1!S71_A5CapexCode,$AD:$AD)","v":0},{"$f":"SUMIFS(Sheet1!S71_PPYearAmount,Sheet1!S71_SA34aCode,$AC:$AC,Sheet1!S71_A5CapexCode,$AD:$AD)","v":0},{"$f":"SUMIFS(Sheet1!S71_PYearAmount,Sheet1!S71_SA34aCode,$AC:$AC,Sheet1!S71_A5CapexCode,$AD:$AD)","v":0},{"$f":"SUMIFS(Sheet1!S71_OriginalBudAmnt,Sheet1!S71_SA34aCode,$AC:$AC,Sheet1!S71_A5CapexCode,$AD:$AD)","v":0},{"$f":"SUMIFS(Sheet1!S71_AdjustmentBudAmnt,Sheet1!S71_SA34aCode,$AC:$AC,Sheet1!S71_A5CapexCode,$AD:$AD)","v":0},{"$f":"SUMIFS(Sheet1!S71_AdjustmentBudAmnt,Sheet1!S71_SA34aCode,$AC:$AC,Sheet1!S71_A5CapexCode,$AD:$AD)","v":0},{"$f":"SUMIFS(Sheet1!S71_ASBudgetAmount,Sheet1!S71_SA34aCode,$AC:$AC,Sheet1!S71_A5CapexCode,$AD:$AD)","v":0},{"$f":"SUMIFS(Sheet1!S71_OY1BudgetAmount,Sheet1!S71_SA34aCode,$AC:$AC,Sheet1!S71_A5CapexCode,$AD:$AD)","v":0},{"$f":"SUMIFS(Sheet1!S71_OY2BudgetAmount,Sheet1!S71_SA34aCode,$AC:$AC,Sheet1!S71_A5CapexCode,$AD:$AD)","v":0},null,null,null,null,null,null,null,null,null,null,null,null,null,null,null,null,null,"0530","CE"]
["Electricity Generation Facilities",null,{"$f":"SUMIFS(Sheet1!S71_PPPYearAmount,Sheet1!S71_SA34aCode,$AC:$AC,Sheet1!S71_A5CapexCode,$AD:$AD)","v":0},{"$f":"SUMIFS(Sheet1!S71_PPYearAmount,Sheet1!S71_SA34aCode,$AC:$AC,Sheet1!S71_A5CapexCode,$AD:$AD)","v":0},{"$f":"SUMIFS(Sheet1!S71_PYearAmount,Sheet1!S71_SA34aCode,$AC:$AC,Sheet1!S71_A5CapexCode,$AD:$AD)","v":0},{"$f":"SUMIFS(Sheet1!S71_OriginalBudAmnt,Sheet1!S71_SA34aCode,$AC:$AC,Sheet1!S71_A5CapexCode,$AD:$AD)","v":0},{"$f":"SUMIFS(Sheet1!S71_AdjustmentBudAmnt,Sheet1!S71_SA34aCode,$AC:$AC,Sheet1!S71_A5CapexCode,$AD:$AD)","v":0},{"$f":"SUMIFS(Sheet1!S71_AdjustmentBudAmnt,Sheet1!S71_SA34aCode,$AC:$AC,Sheet1!S71_A5CapexCode,$AD:$AD)","v":0},{"$f":"SUMIFS(Sheet1!S71_ASBudgetAmount,Sheet1!S71_SA34aCode,$AC:$AC,Sheet1!S71_A5CapexCode,$AD:$AD)","v":0},{"$f":"SUMIFS(Sheet1!S71_OY1BudgetAmount,Sheet1!S71_SA34aCode,$AC:$AC,Sheet1!S71_A5CapexCode,$AD:$AD)","v":0},{"$f":"SUMIFS(Sheet1!S71_OY2BudgetAmount,Sheet1!S71_SA34aCode,$AC:$AC,Sheet1!S71_A5CapexCode,$AD:$AD)","v":0},null,null,null,null,null,null,null,null,null,null,null,null,null,null,null,null,null,"0540","CE"]
["Capital Spares",null,{"$f":"SUMIFS(Sheet1!S71_PPPYearAmount,Sheet1!S71_SA34aCode,$AC:$AC,Sheet1!S71_A5CapexCode,$AD:$AD)","v":0},{"$f":"SUMIFS(Sheet1!S71_PPYearAmount,Sheet1!S71_SA34aCode,$AC:$AC,Sheet1!S71_A5CapexCode,$AD:$AD)","v":0},{"$f":"SUMIFS(Sheet1!S71_PYearAmount,Sheet1!S71_SA34aCode,$AC:$AC,Sheet1!S71_A5CapexCode,$AD:$AD)","v":0},{"$f":"SUMIFS(Sheet1!S71_OriginalBudAmnt,Sheet1!S71_SA34aCode,$AC:$AC,Sheet1!S71_A5CapexCode,$AD:$AD)","v":0},{"$f":"SUMIFS(Sheet1!S71_AdjustmentBudAmnt,Sheet1!S71_SA34aCode,$AC:$AC,Sheet1!S71_A5CapexCode,$AD:$AD)","v":0},{"$f":"SUMIFS(Sheet1!S71_AdjustmentBudAmnt,Sheet1!S71_SA34aCode,$AC:$AC,Sheet1!S71_A5CapexCode,$AD:$AD)","v":0},{"$f":"SUMIFS(Sheet1!S71_ASBudgetAmount,Sheet1!S71_SA34aCode,$AC:$AC,Sheet1!S71_A5CapexCode,$AD:$AD)","v":0},{"$f":"SUMIFS(Sheet1!S71_OY1BudgetAmount,Sheet1!S71_SA34aCode,$AC:$AC,Sheet1!S71_A5CapexCode,$AD:$AD)","v":0},{"$f":"SUMIFS(Sheet1!S71_OY2BudgetAmount,Sheet1!S71_SA34aCode,$AC:$AC,Sheet1!S71_A5CapexCode,$AD:$AD)","v":0},null,null,null,null,null,null,null,null,null,null,null,null,null,null,null,null,null,"0550","CE"]
["Rail Infrastructure",null,{"$f":"SUM(C53:C61)","v":0},0,0,0,0,0,0,0,0,null,null,null,null,null,null,null,null,null,null,null,null,null,null,null,null,null,null,"CE"]
["Rail Lines",null,{"$f":"SUMIFS(Sheet1!S71_PPPYearAmount,Sheet1!S71_SA34aCode,$AC:$AC,Sheet1!S71_A5CapexCode,$AD:$AD)","v":0},{"$f":"SUMIFS(Sheet1!S71_PPYearAmount,Sheet1!S71_SA34aCode,$AC:$AC,Sheet1!S71_A5CapexCode,$AD:$AD)","v":0},{"$f":"SUMIFS(Sheet1!S71_PYearAmount,Sheet1!S71_SA34aCode,$AC:$AC,Sheet1!S71_A5CapexCode,$AD:$AD)","v":0},{"$f":"SUMIFS(Sheet1!S71_OriginalBudAmnt,Sheet1!S71_SA34aCode,$AC:$AC,Sheet1!S71_A5CapexCode,$AD:$AD)","v":0},{"$f":"SUMIFS(Sheet1!S71_AdjustmentBudAmnt,Sheet1!S71_SA34aCode,$AC:$AC,Sheet1!S71_A5CapexCode,$AD:$AD)","v":0},{"$f":"SUMIFS(Sheet1!S71_AdjustmentBudAmnt,Sheet1!S71_SA34aCode,$AC:$AC,Sheet1!S71_A5CapexCode,$AD:$AD)","v":0},{"$f":"SUMIFS(Sheet1!S71_ASBudgetAmount,Sheet1!S71_SA34aCode,$AC:$AC,Sheet1!S71_A5CapexCode,$AD:$AD)","v":0},{"$f":"SUMIFS(Sheet1!S71_OY1BudgetAmount,Sheet1!S71_SA34aCode,$AC:$AC,Sheet1!S71_A5CapexCode,$AD:$AD)","v":0},{"$f":"SUMIFS(Sheet1!S71_OY2BudgetAmount,Sheet1!S71_SA34aCode,$AC:$AC,Sheet1!S71_A5CapexCode,$AD:$AD)","v":0},null,null,null,null,null,null,null,null,null,null,null,null,null,null,null,null,null,"0570","CE"]
["Rail Structures",null,{"$f":"SUMIFS(Sheet1!S71_PPPYearAmount,Sheet1!S71_SA34aCode,$AC:$AC,Sheet1!S71_A5CapexCode,$AD:$AD)","v":0},{"$f":"SUMIFS(Sheet1!S71_PPYearAmount,Sheet1!S71_SA34aCode,$AC:$AC,Sheet1!S71_A5CapexCode,$AD:$AD)","v":0},{"$f":"SUMIFS(Sheet1!S71_PYearAmount,Sheet1!S71_SA34aCode,$AC:$AC,Sheet1!S71_A5CapexCode,$AD:$AD)","v":0},{"$f":"SUMIFS(Sheet1!S71_OriginalBudAmnt,Sheet1!S71_SA34aCode,$AC:$AC,Sheet1!S71_A5CapexCode,$AD:$AD)","v":0},{"$f":"SUMIFS(Sheet1!S71_AdjustmentBudAmnt,Sheet1!S71_SA34aCode,$AC:$AC,Sheet1!S71_A5CapexCode,$AD:$AD)","v":0},{"$f":"SUMIFS(Sheet1!S71_AdjustmentBudAmnt,Sheet1!S71_SA34aCode,$AC:$AC,Sheet1!S71_A5CapexCode,$AD:$AD)","v":0},{"$f":"SUMIFS(Sheet1!S71_ASBudgetAmount,Sheet1!S71_SA34aCode,$AC:$AC,Sheet1!S71_A5CapexCode,$AD:$AD)","v":0},{"$f":"SUMIFS(Sheet1!S71_OY1BudgetAmount,Sheet1!S71_SA34aCode,$AC:$AC,Sheet1!S71_A5CapexCode,$AD:$AD)","v":0},{"$f":"SUMIFS(Sheet1!S71_OY2BudgetAmount,Sheet1!S71_SA34aCode,$AC:$AC,Sheet1!S71_A5CapexCode,$AD:$AD)","v":0},null,null,null,null,null,null,null,null,null,null,null,null,null,null,null,null,null,"0580","CE"]
["Rail Furniture",null,{"$f":"SUMIFS(Sheet1!S71_PPPYearAmount,Sheet1!S71_SA34aCode,$AC:$AC,Sheet1!S71_A5CapexCode,$AD:$AD)","v":0},{"$f":"SUMIFS(Sheet1!S71_PPYearAmount,Sheet1!S71_SA34aCode,$AC:$AC,Sheet1!S71_A5CapexCode,$AD:$AD)","v":0},{"$f":"SUMIFS(Sheet1!S71_PYearAmount,Sheet1!S71_SA34aCode,$AC:$AC,Sheet1!S71_A5CapexCode,$AD:$AD)","v":0},{"$f":"SUMIFS(Sheet1!S71_OriginalBudAmnt,Sheet1!S71_SA34aCode,$AC:$AC,Sheet1!S71_A5CapexCode,$AD:$AD)","v":0},{"$f":"SUMIFS(Sheet1!S71_AdjustmentBudAmnt,Sheet1!S71_SA34aCode,$AC:$AC,Sheet1!S71_A5CapexCode,$AD:$AD)","v":0},{"$f":"SUMIFS(Sheet1!S71_AdjustmentBudAmnt,Sheet1!S71_SA34aCode,$AC:$AC,Sheet1!S71_A5CapexCode,$AD:$AD)","v":0},{"$f":"SUMIFS(Sheet1!S71_ASBudgetAmount,Sheet1!S71_SA34aCode,$AC:$AC,Sheet1!S71_A5CapexCode,$AD:$AD)","v":0},{"$f":"SUMIFS(Sheet1!S71_OY1BudgetAmount,Sheet1!S71_SA34aCode,$AC:$AC,Sheet1!S71_A5CapexCode,$AD:$AD)","v":0},{"$f":"SUMIFS(Sheet1!S71_OY2BudgetAmount,Sheet1!S71_SA34aCode,$AC:$AC,Sheet1!S71_A5CapexCode,$AD:$AD)","v":0},null,null,null,null,null,null,null,null,null,null,null,null,null,null,null,null,null,"0590","CE"]
["Drainage Collection",null,{"$f":"SUMIFS(Sheet1!S71_PPPYearAmount,Sheet1!S71_SA34aCode,$AC:$AC,Sheet1!S71_A5CapexCode,$AD:$AD)","v":0},{"$f":"SUMIFS(Sheet1!S71_PPYearAmount,Sheet1!S71_SA34aCode,$AC:$AC,Sheet1!S71_A5CapexCode,$AD:$AD)","v":0},{"$f":"SUMIFS(Sheet1!S71_PYearAmount,Sheet1!S71_SA34aCode,$AC:$AC,Sheet1!S71_A5CapexCode,$AD:$AD)","v":0},{"$f":"SUMIFS(Sheet1!S71_OriginalBudAmnt,Sheet1!S71_SA34aCode,$AC:$AC,Sheet1!S71_A5CapexCode,$AD:$AD)","v":0},{"$f":"SUMIFS(Sheet1!S71_AdjustmentBudAmnt,Sheet1!S71_SA34aCode,$AC:$AC,Sheet1!S71_A5CapexCode,$AD:$AD)","v":0},{"$f":"SUMIFS(Sheet1!S71_AdjustmentBudAmnt,Sheet1!S71_SA34aCode,$AC:$AC,Sheet1!S71_A5CapexCode,$AD:$AD)","v":0},{"$f":"SUMIFS(Sheet1!S71_ASBudgetAmount,Sheet1!S71_SA34aCode,$AC:$AC,Sheet1!S71_A5CapexCode,$AD:$AD)","v":0},{"$f":"SUMIFS(Sheet1!S71_OY1BudgetAmount,Sheet1!S71_SA34aCode,$AC:$AC,Sheet1!S71_A5CapexCode,$AD:$AD)","v":0},{"$f":"SUMIFS(Sheet1!S71_OY2BudgetAmount,Sheet1!S71_SA34aCode,$AC:$AC,Sheet1!S71_A5CapexCode,$AD:$AD)","v":0},null,null,null,null,null,null,null,null,null,null,null,null,null,null,null,null,null,"0600","CE"]
["Storm water Conveyance",null,{"$f":"SUMIFS(Sheet1!S71_PPPYearAmount,Sheet1!S71_SA34aCode,$AC:$AC,Sheet1!S71_A5CapexCode,$AD:$AD)","v":0},{"$f":"SUMIFS(Sheet1!S71_PPYearAmount,Sheet1!S71_SA34aCode,$AC:$AC,Sheet1!S71_A5CapexCode,$AD:$AD)","v":0},{"$f":"SUMIFS(Sheet1!S71_PYearAmount,Sheet1!S71_SA34aCode,$AC:$AC,Sheet1!S71_A5CapexCode,$AD:$AD)","v":0},{"$f":"SUMIFS(Sheet1!S71_OriginalBudAmnt,Sheet1!S71_SA34aCode,$AC:$AC,Sheet1!S71_A5CapexCode,$AD:$AD)","v":0},{"$f":"SUMIFS(Sheet1!S71_AdjustmentBudAmnt,Sheet1!S71_SA34aCode,$AC:$AC,Sheet1!S71_A5CapexCode,$AD:$AD)","v":0},{"$f":"SUMIFS(Sheet1!S71_AdjustmentBudAmnt,Sheet1!S71_SA34aCode,$AC:$AC,Sheet1!S71_A5CapexCode,$AD:$AD)","v":0},{"$f":"SUMIFS(Sheet1!S71_ASBudgetAmount,Sheet1!S71_SA34aCode,$AC:$AC,Sheet1!S71_A5CapexCode,$AD:$AD)","v":0},{"$f":"SUMIFS(Sheet1!S71_OY1BudgetAmount,Sheet1!S71_SA34aCode,$AC:$AC,Sheet1!S71_A5CapexCode,$AD:$AD)","v":0},{"$f":"SUMIFS(Sheet1!S71_OY2BudgetAmount,Sheet1!S71_SA34aCode,$AC:$AC,Sheet1!S71_A5CapexCode,$AD:$AD)","v":0},null,null,null,null,null,null,null,null,null,null,null,null,null,null,null,null,null,"0610","CE"]
["Attenuation",null,{"$f":"SUMIFS(Sheet1!S71_PPPYearAmount,Sheet1!S71_SA34aCode,$AC:$AC,Sheet1!S71_A5CapexCode,$AD:$AD)","v":0},{"$f":"SUMIFS(Sheet1!S71_PPYearAmount,Sheet1!S71_SA34aCode,$AC:$AC,Sheet1!S71_A5CapexCode,$AD:$AD)","v":0},{"$f":"SUMIFS(Sheet1!S71_PYearAmount,Sheet1!S71_SA34aCode,$AC:$AC,Sheet1!S71_A5CapexCode,$AD:$AD)","v":0},{"$f":"SUMIFS(Sheet1!S71_OriginalBudAmnt,Sheet1!S71_SA34aCode,$AC:$AC,Sheet1!S71_A5CapexCode,$AD:$AD)","v":0},{"$f":"SUMIFS(Sheet1!S71_AdjustmentBudAmnt,Sheet1!S71_SA34aCode,$AC:$AC,Sheet1!S71_A5CapexCode,$AD:$AD)","v":0},{"$f":"SUMIFS(Sheet1!S71_AdjustmentBudAmnt,Sheet1!S71_SA34aCode,$AC:$AC,Sheet1!S71_A5CapexCode,$AD:$AD)","v":0},{"$f":"SUMIFS(Sheet1!S71_ASBudgetAmount,Sheet1!S71_SA34aCode,$AC:$AC,Sheet1!S71_A5CapexCode,$AD:$AD)","v":0},{"$f":"SUMIFS(Sheet1!S71_OY1BudgetAmount,Sheet1!S71_SA34aCode,$AC:$AC,Sheet1!S71_A5CapexCode,$AD:$AD)","v":0},{"$f":"SUMIFS(Sheet1!S71_OY2BudgetAmount,Sheet1!S71_SA34aCode,$AC:$AC,Sheet1!S71_A5CapexCode,$AD:$AD)","v":0},null,null,null,null,null,null,null,null,null,null,null,null,null,null,null,null,null,"0620","CE"]
["MV Substations",null,{"$f":"SUMIFS(Sheet1!S71_PPPYearAmount,Sheet1!S71_SA34aCode,$AC:$AC,Sheet1!S71_A5CapexCode,$AD:$AD)","v":0},{"$f":"SUMIFS(Sheet1!S71_PPYearAmount,Sheet1!S71_SA34aCode,$AC:$AC,Sheet1!S71_A5CapexCode,$AD:$AD)","v":0},{"$f":"SUMIFS(Sheet1!S71_PYearAmount,Sheet1!S71_SA34aCode,$AC:$AC,Sheet1!S71_A5CapexCode,$AD:$AD)","v":0},{"$f":"SUMIFS(Sheet1!S71_OriginalBudAmnt,Sheet1!S71_SA34aCode,$AC:$AC,Sheet1!S71_A5CapexCode,$AD:$AD)","v":0},{"$f":"SUMIFS(Sheet1!S71_AdjustmentBudAmnt,Sheet1!S71_SA34aCode,$AC:$AC,Sheet1!S71_A5CapexCode,$AD:$AD)","v":0},{"$f":"SUMIFS(Sheet1!S71_AdjustmentBudAmnt,Sheet1!S71_SA34aCode,$AC:$AC,Sheet1!S71_A5CapexCode,$AD:$AD)","v":0},{"$f":"SUMIFS(Sheet1!S71_ASBudgetAmount,Sheet1!S71_SA34aCode,$AC:$AC,Sheet1!S71_A5CapexCode,$AD:$AD)","v":0},{"$f":"SUMIFS(Sheet1!S71_OY1BudgetAmount,Sheet1!S71_SA34aCode,$AC:$AC,Sheet1!S71_A5CapexCode,$AD:$AD)","v":0},{"$f":"SUMIFS(Sheet1!S71_OY2BudgetAmount,Sheet1!S71_SA34aCode,$AC:$AC,Sheet1!S71_A5CapexCode,$AD:$AD)","v":0},null,null,null,null,null,null,null,null,null,null,null,null,null,null,null,null,null,"0630","CE"]
["LV Networks",null,{"$f":"SUMIFS(Sheet1!S71_PPPYearAmount,Sheet1!S71_SA34aCode,$AC:$AC,Sheet1!S71_A5CapexCode,$AD:$AD)","v":0},{"$f":"SUMIFS(Sheet1!S71_PPYearAmount,Sheet1!S71_SA34aCode,$AC:$AC,Sheet1!S71_A5CapexCode,$AD:$AD)","v":0},{"$f":"SUMIFS(Sheet1!S71_PYearAmount,Sheet1!S71_SA34aCode,$AC:$AC,Sheet1!S71_A5CapexCode,$AD:$AD)","v":0},{"$f":"SUMIFS(Sheet1!S71_OriginalBudAmnt,Sheet1!S71_SA34aCode,$AC:$AC,Sheet1!S71_A5CapexCode,$AD:$AD)","v":0},{"$f":"SUMIFS(Sheet1!S71_AdjustmentBudAmnt,Sheet1!S71_SA34aCode,$AC:$AC,Sheet1!S71_A5CapexCode,$AD:$AD)","v":0},{"$f":"SUMIFS(Sheet1!S71_AdjustmentBudAmnt,Sheet1!S71_SA34aCode,$AC:$AC,Sheet1!S71_A5CapexCode,$AD:$AD)","v":0},{"$f":"SUMIFS(Sheet1!S71_ASBudgetAmount,Sheet1!S71_SA34aCode,$AC:$AC,Sheet1!S71_A5CapexCode,$AD:$AD)","v":0},{"$f":"SUMIFS(Sheet1!S71_OY1BudgetAmount,Sheet1!S71_SA34aCode,$AC:$AC,Sheet1!S71_A5CapexCode,$AD:$AD)","v":0},{"$f":"SUMIFS(Sheet1!S71_OY2BudgetAmount,Sheet1!S71_SA34aCode,$AC:$AC,Sheet1!S71_A5CapexCode,$AD:$AD)","v":0},null,null,null,null,null,null,null,null,null,null,null,null,null,null,null,null,null,"0640","CE"]
["Capital Spares",null,{"$f":"SUMIFS(Sheet1!S71_PPPYearAmount,Sheet1!S71_SA34aCode,$AC:$AC,Sheet1!S71_A5CapexCode,$AD:$AD)","v":0},{"$f":"SUMIFS(Sheet1!S71_PPYearAmount,Sheet1!S71_SA34aCode,$AC:$AC,Sheet1!S71_A5CapexCode,$AD:$AD)","v":0},{"$f":"SUMIFS(Sheet1!S71_PYearAmount,Sheet1!S71_SA34aCode,$AC:$AC,Sheet1!S71_A5CapexCode,$AD:$AD)","v":0},{"$f":"SUMIFS(Sheet1!S71_OriginalBudAmnt,Sheet1!S71_SA34aCode,$AC:$AC,Sheet1!S71_A5CapexCode,$AD:$AD)","v":0},{"$f":"SUMIFS(Sheet1!S71_AdjustmentBudAmnt,Sheet1!S71_SA34aCode,$AC:$AC,Sheet1!S71_A5CapexCode,$AD:$AD)","v":0},{"$f":"SUMIFS(Sheet1!S71_AdjustmentBudAmnt,Sheet1!S71_SA34aCode,$AC:$AC,Sheet1!S71_A5CapexCode,$AD:$AD)","v":0},{"$f":"SUMIFS(Sheet1!S71_ASBudgetAmount,Sheet1!S71_SA34aCode,$AC:$AC,Sheet1!S71_A5CapexCode,$AD:$AD)","v":0},{"$f":"SUMIFS(Sheet1!S71_OY1BudgetAmount,Sheet1!S71_SA34aCode,$AC:$AC,Sheet1!S71_A5CapexCode,$AD:$AD)","v":0},{"$f":"SUMIFS(Sheet1!S71_OY2BudgetAmount,Sheet1!S71_SA34aCode,$AC:$AC,Sheet1!S71_A5CapexCode,$AD:$AD)","v":0},null,null,null,null,null,null,null,null,null,null,null,null,null,null,null,null,null,"0650","CE"]
["Coastal Infrastructure",null,{"$f":"SUM(C63:C67)","v":0},{"$f":"SUM(D63:D67)","v":0},0,0,0,0,0,0,0,null,null,null,null,null,null,null,null,null,null,null,null,null,null,null,null,null,null,"CE"]
["Sand Pumps",null,{"$f":"SUMIFS(Sheet1!S71_PPPYearAmount,Sheet1!S71_SA34aCode,$AC:$AC,Sheet1!S71_A5CapexCode,$AD:$AD)","v":0},{"$f":"SUMIFS(Sheet1!S71_PPYearAmount,Sheet1!S71_SA34aCode,$AC:$AC,Sheet1!S71_A5CapexCode,$AD:$AD)","v":0},{"$f":"SUMIFS(Sheet1!S71_PYearAmount,Sheet1!S71_SA34aCode,$AC:$AC,Sheet1!S71_A5CapexCode,$AD:$AD)","v":0},{"$f":"SUMIFS(Sheet1!S71_OriginalBudAmnt,Sheet1!S71_SA34aCode,$AC:$AC,Sheet1!S71_A5CapexCode,$AD:$AD)","v":0},{"$f":"SUMIFS(Sheet1!S71_AdjustmentBudAmnt,Sheet1!S71_SA34aCode,$AC:$AC,Sheet1!S71_A5CapexCode,$AD:$AD)","v":0},{"$f":"SUMIFS(Sheet1!S71_AdjustmentBudAmnt,Sheet1!S71_SA34aCode,$AC:$AC,Sheet1!S71_A5CapexCode,$AD:$AD)","v":0},{"$f":"SUMIFS(Sheet1!S71_ASBudgetAmount,Sheet1!S71_SA34aCode,$AC:$AC,Sheet1!S71_A5CapexCode,$AD:$AD)","v":0},{"$f":"SUMIFS(Sheet1!S71_OY1BudgetAmount,Sheet1!S71_SA34aCode,$AC:$AC,Sheet1!S71_A5CapexCode,$AD:$AD)","v":0},{"$f":"SUMIFS(Sheet1!S71_OY2BudgetAmount,Sheet1!S71_SA34aCode,$AC:$AC,Sheet1!S71_A5CapexCode,$AD:$AD)","v":0},null,null,null,null,null,null,null,null,null,null,null,null,null,null,null,null,null,"0670","CE"]
["Piers",null,{"$f":"SUMIFS(Sheet1!S71_PPPYearAmount,Sheet1!S71_SA34aCode,$AC:$AC,Sheet1!S71_A5CapexCode,$AD:$AD)","v":0},{"$f":"SUMIFS(Sheet1!S71_PPYearAmount,Sheet1!S71_SA34aCode,$AC:$AC,Sheet1!S71_A5CapexCode,$AD:$AD)","v":0},{"$f":"SUMIFS(Sheet1!S71_PYearAmount,Sheet1!S71_SA34aCode,$AC:$AC,Sheet1!S71_A5CapexCode,$AD:$AD)","v":0},{"$f":"SUMIFS(Sheet1!S71_OriginalBudAmnt,Sheet1!S71_SA34aCode,$AC:$AC,Sheet1!S71_A5CapexCode,$AD:$AD)","v":0},{"$f":"SUMIFS(Sheet1!S71_AdjustmentBudAmnt,Sheet1!S71_SA34aCode,$AC:$AC,Sheet1!S71_A5CapexCode,$AD:$AD)","v":0},{"$f":"SUMIFS(Sheet1!S71_AdjustmentBudAmnt,Sheet1!S71_SA34aCode,$AC:$AC,Sheet1!S71_A5CapexCode,$AD:$AD)","v":0},{"$f":"SUMIFS(Sheet1!S71_ASBudgetAmount,Sheet1!S71_SA34aCode,$AC:$AC,Sheet1!S71_A5CapexCode,$AD:$AD)","v":0},{"$f":"SUMIFS(Sheet1!S71_OY1BudgetAmount,Sheet1!S71_SA34aCode,$AC:$AC,Sheet1!S71_A5CapexCode,$AD:$AD)","v":0},{"$f":"SUMIFS(Sheet1!S71_OY2BudgetAmount,Sheet1!S71_SA34aCode,$AC:$AC,Sheet1!S71_A5CapexCode,$AD:$AD)","v":0},null,null,null,null,null,null,null,null,null,null,null,null,null,null,null,null,null,"0680","CE"]
["Revetments",null,{"$f":"SUMIFS(Sheet1!S71_PPPYearAmount,Sheet1!S71_SA34aCode,$AC:$AC,Sheet1!S71_A5CapexCode,$AD:$AD)","v":0},{"$f":"SUMIFS(Sheet1!S71_PPYearAmount,Sheet1!S71_SA34aCode,$AC:$AC,Sheet1!S71_A5CapexCode,$AD:$AD)","v":0},{"$f":"SUMIFS(Sheet1!S71_PYearAmount,Sheet1!S71_SA34aCode,$AC:$AC,Sheet1!S71_A5CapexCode,$AD:$AD)","v":0},{"$f":"SUMIFS(Sheet1!S71_OriginalBudAmnt,Sheet1!S71_SA34aCode,$AC:$AC,Sheet1!S71_A5CapexCode,$AD:$AD)","v":0},{"$f":"SUMIFS(Sheet1!S71_AdjustmentBudAmnt,Sheet1!S71_SA34aCode,$AC:$AC,Sheet1!S71_A5CapexCode,$AD:$AD)","v":0},{"$f":"SUMIFS(Sheet1!S71_AdjustmentBudAmnt,Sheet1!S71_SA34aCode,$AC:$AC,Sheet1!S71_A5CapexCode,$AD:$AD)","v":0},{"$f":"SUMIFS(Sheet1!S71_ASBudgetAmount,Sheet1!S71_SA34aCode,$AC:$AC,Sheet1!S71_A5CapexCode,$AD:$AD)","v":0},{"$f":"SUMIFS(Sheet1!S71_OY1BudgetAmount,Sheet1!S71_SA34aCode,$AC:$AC,Sheet1!S71_A5CapexCode,$AD:$AD)","v":0},{"$f":"SUMIFS(Sheet1!S71_OY2BudgetAmount,Sheet1!S71_SA34aCode,$AC:$AC,Sheet1!S71_A5CapexCode,$AD:$AD)","v":0},null,null,null,null,null,null,null,null,null,null,null,null,null,null,null,null,null,"0690","CE"]
["Promenades",null,{"$f":"SUMIFS(Sheet1!S71_PPPYearAmount,Sheet1!S71_SA34aCode,$AC:$AC,Sheet1!S71_A5CapexCode,$AD:$AD)","v":0},{"$f":"SUMIFS(Sheet1!S71_PPYearAmount,Sheet1!S71_SA34aCode,$AC:$AC,Sheet1!S71_A5CapexCode,$AD:$AD)","v":0},{"$f":"SUMIFS(Sheet1!S71_PYearAmount,Sheet1!S71_SA34aCode,$AC:$AC,Sheet1!S71_A5CapexCode,$AD:$AD)","v":0},{"$f":"SUMIFS(Sheet1!S71_OriginalBudAmnt,Sheet1!S71_SA34aCode,$AC:$AC,Sheet1!S71_A5CapexCode,$AD:$AD)","v":0},{"$f":"SUMIFS(Sheet1!S71_AdjustmentBudAmnt,Sheet1!S71_SA34aCode,$AC:$AC,Sheet1!S71_A5CapexCode,$AD:$AD)","v":0},{"$f":"SUMIFS(Sheet1!S71_AdjustmentBudAmnt,Sheet1!S71_SA34aCode,$AC:$AC,Sheet1!S71_A5CapexCode,$AD:$AD)","v":0},{"$f":"SUMIFS(Sheet1!S71_ASBudgetAmount,Sheet1!S71_SA34aCode,$AC:$AC,Sheet1!S71_A5CapexCode,$AD:$AD)","v":0},{"$f":"SUMIFS(Sheet1!S71_OY1BudgetAmount,Sheet1!S71_SA34aCode,$AC:$AC,Sheet1!S71_A5CapexCode,$AD:$AD)","v":0},{"$f":"SUMIFS(Sheet1!S71_OY2BudgetAmount,Sheet1!S71_SA34aCode,$AC:$AC,Sheet1!S71_A5CapexCode,$AD:$AD)","v":0},null,null,null,null,null,null,null,null,null,null,null,null,null,null,null,null,null,"0700","CE"]
["Capital Spares",null,{"$f":"SUMIFS(Sheet1!S71_PPPYearAmount,Sheet1!S71_SA34aCode,$AC:$AC,Sheet1!S71_A5CapexCode,$AD:$AD)","v":0},{"$f":"SUMIFS(Sheet1!S71_PPYearAmount,Sheet1!S71_SA34aCode,$AC:$AC,Sheet1!S71_A5CapexCode,$AD:$AD)","v":0},{"$f":"SUMIFS(Sheet1!S71_PYearAmount,Sheet1!S71_SA34aCode,$AC:$AC,Sheet1!S71_A5CapexCode,$AD:$AD)","v":0},{"$f":"SUMIFS(Sheet1!S71_OriginalBudAmnt,Sheet1!S71_SA34aCode,$AC:$AC,Sheet1!S71_A5CapexCode,$AD:$AD)","v":0},{"$f":"SUMIFS(Sheet1!S71_AdjustmentBudAmnt,Sheet1!S71_SA34aCode,$AC:$AC,Sheet1!S71_A5CapexCode,$AD:$AD)","v":0},{"$f":"SUMIFS(Sheet1!S71_AdjustmentBudAmnt,Sheet1!S71_SA34aCode,$AC:$AC,Sheet1!S71_A5CapexCode,$AD:$AD)","v":0},{"$f":"SUMIFS(Sheet1!S71_ASBudgetAmount,Sheet1!S71_SA34aCode,$AC:$AC,Sheet1!S71_A5CapexCode,$AD:$AD)","v":0},{"$f":"SUMIFS(Sheet1!S71_OY1BudgetAmount,Sheet1!S71_SA34aCode,$AC:$AC,Sheet1!S71_A5CapexCode,$AD:$AD)","v":0},{"$f":"SUMIFS(Sheet1!S71_OY2BudgetAmount,Sheet1!S71_SA34aCode,$AC:$AC,Sheet1!S71_A5CapexCode,$AD:$AD)","v":0},null,null,null,null,null,null,null,null,null,null,null,null,null,null,null,null,null,"0710","CE"]
["Information and Communication Infrastructure",null,{"$f":"SUM(C69:C72)","v":0},{"$f":"SUM(D69:D72)","v":0},0,0,0,0,0,0,0,null,null,null,null,null,null,null,null,null,null,null,null,null,null,null,null,null,null,"CE"]
["Data Centres",null,{"$f":"SUMIFS(Sheet1!S71_PPPYearAmount,Sheet1!S71_SA34aCode,$AC:$AC,Sheet1!S71_A5CapexCode,$AD:$AD)","v":0},{"$f":"SUMIFS(Sheet1!S71_PPYearAmount,Sheet1!S71_SA34aCode,$AC:$AC,Sheet1!S71_A5CapexCode,$AD:$AD)","v":0},{"$f":"SUMIFS(Sheet1!S71_PYearAmount,Sheet1!S71_SA34aCode,$AC:$AC,Sheet1!S71_A5CapexCode,$AD:$AD)","v":0},{"$f":"SUMIFS(Sheet1!S71_OriginalBudAmnt,Sheet1!S71_SA34aCode,$AC:$AC,Sheet1!S71_A5CapexCode,$AD:$AD)","v":0},{"$f":"SUMIFS(Sheet1!S71_AdjustmentBudAmnt,Sheet1!S71_SA34aCode,$AC:$AC,Sheet1!S71_A5CapexCode,$AD:$AD)","v":0},{"$f":"SUMIFS(Sheet1!S71_AdjustmentBudAmnt,Sheet1!S71_SA34aCode,$AC:$AC,Sheet1!S71_A5CapexCode,$AD:$AD)","v":0},{"$f":"SUMIFS(Sheet1!S71_ASBudgetAmount,Sheet1!S71_SA34aCode,$AC:$AC,Sheet1!S71_A5CapexCode,$AD:$AD)","v":0},{"$f":"SUMIFS(Sheet1!S71_OY1BudgetAmount,Sheet1!S71_SA34aCode,$AC:$AC,Sheet1!S71_A5CapexCode,$AD:$AD)","v":0},{"$f":"SUMIFS(Sheet1!S71_OY2BudgetAmount,Sheet1!S71_SA34aCode,$AC:$AC,Sheet1!S71_A5CapexCode,$AD:$AD)","v":0},null,null,null,null,null,null,null,null,null,null,null,null,null,null,null,null,null,"0730","CE"]
["Core Layers",null,{"$f":"SUMIFS(Sheet1!S71_PPPYearAmount,Sheet1!S71_SA34aCode,$AC:$AC,Sheet1!S71_A5CapexCode,$AD:$AD)","v":0},{"$f":"SUMIFS(Sheet1!S71_PPYearAmount,Sheet1!S71_SA34aCode,$AC:$AC,Sheet1!S71_A5CapexCode,$AD:$AD)","v":0},{"$f":"SUMIFS(Sheet1!S71_PYearAmount,Sheet1!S71_SA34aCode,$AC:$AC,Sheet1!S71_A5CapexCode,$AD:$AD)","v":0},{"$f":"SUMIFS(Sheet1!S71_OriginalBudAmnt,Sheet1!S71_SA34aCode,$AC:$AC,Sheet1!S71_A5CapexCode,$AD:$AD)","v":0},{"$f":"SUMIFS(Sheet1!S71_AdjustmentBudAmnt,Sheet1!S71_SA34aCode,$AC:$AC,Sheet1!S71_A5CapexCode,$AD:$AD)","v":0},{"$f":"SUMIFS(Sheet1!S71_AdjustmentBudAmnt,Sheet1!S71_SA34aCode,$AC:$AC,Sheet1!S71_A5CapexCode,$AD:$AD)","v":0},{"$f":"SUMIFS(Sheet1!S71_ASBudgetAmount,Sheet1!S71_SA34aCode,$AC:$AC,Sheet1!S71_A5CapexCode,$AD:$AD)","v":0},{"$f":"SUMIFS(Sheet1!S71_OY1BudgetAmount,Sheet1!S71_SA34aCode,$AC:$AC,Sheet1!S71_A5CapexCode,$AD:$AD)","v":0},{"$f":"SUMIFS(Sheet1!S71_OY2BudgetAmount,Sheet1!S71_SA34aCode,$AC:$AC,Sheet1!S71_A5CapexCode,$AD:$AD)","v":0},null,null,null,null,null,null,null,null,null,null,null,null,null,null,null,null,null,"0740","CE"]
["Distribution Layers",null,{"$f":"SUMIFS(Sheet1!S71_PPPYearAmount,Sheet1!S71_SA34aCode,$AC:$AC,Sheet1!S71_A5CapexCode,$AD:$AD)","v":0},{"$f":"SUMIFS(Sheet1!S71_PPYearAmount,Sheet1!S71_SA34aCode,$AC:$AC,Sheet1!S71_A5CapexCode,$AD:$AD)","v":0},{"$f":"SUMIFS(Sheet1!S71_PYearAmount,Sheet1!S71_SA34aCode,$AC:$AC,Sheet1!S71_A5CapexCode,$AD:$AD)","v":0},{"$f":"SUMIFS(Sheet1!S71_OriginalBudAmnt,Sheet1!S71_SA34aCode,$AC:$AC,Sheet1!S71_A5CapexCode,$AD:$AD)","v":0},{"$f":"SUMIFS(Sheet1!S71_AdjustmentBudAmnt,Sheet1!S71_SA34aCode,$AC:$AC,Sheet1!S71_A5CapexCode,$AD:$AD)","v":0},{"$f":"SUMIFS(Sheet1!S71_AdjustmentBudAmnt,Sheet1!S71_SA34aCode,$AC:$AC,Sheet1!S71_A5CapexCode,$AD:$AD)","v":0},{"$f":"SUMIFS(Sheet1!S71_ASBudgetAmount,Sheet1!S71_SA34aCode,$AC:$AC,Sheet1!S71_A5CapexCode,$AD:$AD)","v":0},{"$f":"SUMIFS(Sheet1!S71_OY1BudgetAmount,Sheet1!S71_SA34aCode,$AC:$AC,Sheet1!S71_A5CapexCode,$AD:$AD)","v":0},{"$f":"SUMIFS(Sheet1!S71_OY2BudgetAmount,Sheet1!S71_SA34aCode,$AC:$AC,Sheet1!S71_A5CapexCode,$AD:$AD)","v":0},null,null,null,null,null,null,null,null,null,null,null,null,null,null,null,null,null,"0750","CE"]
["Capital Spares",null,{"$f":"SUMIFS(Sheet1!S71_PPPYearAmount,Sheet1!S71_SA34aCode,$AC:$AC,Sheet1!S71_A5CapexCode,$AD:$AD)","v":0},{"$f":"SUMIFS(Sheet1!S71_PPYearAmount,Sheet1!S71_SA34aCode,$AC:$AC,Sheet1!S71_A5CapexCode,$AD:$AD)","v":0},{"$f":"SUMIFS(Sheet1!S71_PYearAmount,Sheet1!S71_SA34aCode,$AC:$AC,Sheet1!S71_A5CapexCode,$AD:$AD)","v":0},{"$f":"SUMIFS(Sheet1!S71_OriginalBudAmnt,Sheet1!S71_SA34aCode,$AC:$AC,Sheet1!S71_A5CapexCode,$AD:$AD)","v":0},{"$f":"SUMIFS(Sheet1!S71_AdjustmentBudAmnt,Sheet1!S71_SA34aCode,$AC:$AC,Sheet1!S71_A5CapexCode,$AD:$AD)","v":0},{"$f":"SUMIFS(Sheet1!S71_AdjustmentBudAmnt,Sheet1!S71_SA34aCode,$AC:$AC,Sheet1!S71_A5CapexCode,$AD:$AD)","v":0},{"$f":"SUMIFS(Sheet1!S71_ASBudgetAmount,Sheet1!S71_SA34aCode,$AC:$AC,Sheet1!S71_A5CapexCode,$AD:$AD)","v":0},{"$f":"SUMIFS(Sheet1!S71_OY1BudgetAmount,Sheet1!S71_SA34aCode,$AC:$AC,Sheet1!S71_A5CapexCode,$AD:$AD)","v":0},{"$f":"SUMIFS(Sheet1!S71_OY2BudgetAmount,Sheet1!S71_SA34aCode,$AC:$AC,Sheet1!S71_A5CapexCode,$AD:$AD)","v":0},null,null,null,null,null,null,null,null,null,null,null,null,null,null,null,null,null,"0760","CE"]
[null,null,null,null,null,null,null,null,null,null,null,null,null,null,null,null,null,null,null,null,null,null,null,null,null,null,null,null,null,"CE"]
["Community Assets",null,{"$f":"C75+C98","v":36885366},{"$f":"D75+D98","v":1153224},20501738,72099066,50584777,50584777,19523089,20000000,0,null,null,null,null,null,null,null,null,null,null,null,null,null,null,null,null,null,null,"CE"]
["Community Facilities",null,{"$f":"SUM(C76:C97)","v":1153224},{"$f":"SUM(D76:D97)","v":1153224},15397250,44141416,31858273,31858273,7909410,20000000,0,null,null,null,null,null,null,null,null,null,null,null,null,null,null,null,null,null,null,"CE"]
["Halls",null,{"$f":"SUMIFS(Sheet1!S71_PPPYearAmount,Sheet1!S71_SA34aCode,$AC:$AC,Sheet1!S71_A5CapexCode,$AD:$AD)","v":0},{"$f":"SUMIFS(Sheet1!S71_PPYearAmount,Sheet1!S71_SA34aCode,$AC:$AC,Sheet1!S71_A5CapexCode,$AD:$AD)","v":0},{"$f":"SUMIFS(Sheet1!S71_PYearAmount,Sheet1!S71_SA34aCode,$AC:$AC,Sheet1!S71_A5CapexCode,$AD:$AD)","v":8798916},{"$f":"SUMIFS(Sheet1!S71_OriginalBudAmnt,Sheet1!S71_SA34aCode,$AC:$AC,Sheet1!S71_A5CapexCode,$AD:$AD)","v":40141416},{"$f":"SUMIFS(Sheet1!S71_AdjustmentBudAmnt,Sheet1!S71_SA34aCode,$AC:$AC,Sheet1!S71_A5CapexCode,$AD:$AD)","v":25613507},{"$f":"SUMIFS(Sheet1!S71_AdjustmentBudAmnt,Sheet1!S71_SA34aCode,$AC:$AC,Sheet1!S71_A5CapexCode,$AD:$AD)","v":25613507},{"$f":"SUMIFS(Sheet1!S71_ASBudgetAmount,Sheet1!S71_SA34aCode,$AC:$AC,Sheet1!S71_A5CapexCode,$AD:$AD)","v":7009410},{"$f":"SUMIFS(Sheet1!S71_OY1BudgetAmount,Sheet1!S71_SA34aCode,$AC:$AC,Sheet1!S71_A5CapexCode,$AD:$AD)","v":0},{"$f":"SUMIFS(Sheet1!S71_OY2BudgetAmount,Sheet1!S71_SA34aCode,$AC:$AC,Sheet1!S71_A5CapexCode,$AD:$AD)","v":0},null,null,null,null,null,null,null,null,null,null,null,null,null,null,null,null,null,"0790","CE"]
["Centres",null,{"$f":"SUMIFS(Sheet1!S71_PPPYearAmount,Sheet1!S71_SA34aCode,$AC:$AC,Sheet1!S71_A5CapexCode,$AD:$AD)","v":561384},{"$f":"SUMIFS(Sheet1!S71_PPYearAmount,Sheet1!S71_SA34aCode,$AC:$AC,Sheet1!S71_A5CapexCode,$AD:$AD)","v":561384},{"$f":"SUMIFS(Sheet1!S71_PYearAmount,Sheet1!S71_SA34aCode,$AC:$AC,Sheet1!S71_A5CapexCode,$AD:$AD)","v":561384},{"$f":"SUMIFS(Sheet1!S71_OriginalBudAmnt,Sheet1!S71_SA34aCode,$AC:$AC,Sheet1!S71_A5CapexCode,$AD:$AD)","v":0},{"$f":"SUMIFS(Sheet1!S71_AdjustmentBudAmnt,Sheet1!S71_SA34aCode,$AC:$AC,Sheet1!S71_A5CapexCode,$AD:$AD)","v":0},{"$f":"SUMIFS(Sheet1!S71_AdjustmentBudAmnt,Sheet1!S71_SA34aCode,$AC:$AC,Sheet1!S71_A5CapexCode,$AD:$AD)","v":0},{"$f":"SUMIFS(Sheet1!S71_ASBudgetAmount,Sheet1!S71_SA34aCode,$AC:$AC,Sheet1!S71_A5CapexCode,$AD:$AD)","v":0},{"$f":"SUMIFS(Sheet1!S71_OY1BudgetAmount,Sheet1!S71_SA34aCode,$AC:$AC,Sheet1!S71_A5CapexCode,$AD:$AD)","v":0},{"$f":"SUMIFS(Sheet1!S71_OY2BudgetAmount,Sheet1!S71_SA34aCode,$AC:$AC,Sheet1!S71_A5CapexCode,$AD:$AD)","v":0},null,null,null,null,null,null,null,null,null,null,null,null,null,null,null,null,null,"0800","CE"]
["Crèches",null,{"$f":"SUMIFS(Sheet1!S71_PPPYearAmount,Sheet1!S71_SA34aCode,$AC:$AC,Sheet1!S71_A5CapexCode,$AD:$AD)","v":0},{"$f":"SUMIFS(Sheet1!S71_PPYearAmount,Sheet1!S71_SA34aCode,$AC:$AC,Sheet1!S71_A5CapexCode,$AD:$AD)","v":0},{"$f":"SUMIFS(Sheet1!S71_PYearAmount,Sheet1!S71_SA34aCode,$AC:$AC,Sheet1!S71_A5CapexCode,$AD:$AD)","v":0},{"$f":"SUMIFS(Sheet1!S71_OriginalBudAmnt,Sheet1!S71_SA34aCode,$AC:$AC,Sheet1!S71_A5CapexCode,$AD:$AD)","v":0},{"$f":"SUMIFS(Sheet1!S71_AdjustmentBudAmnt,Sheet1!S71_SA34aCode,$AC:$AC,Sheet1!S71_A5CapexCode,$AD:$AD)","v":0},{"$f":"SUMIFS(Sheet1!S71_AdjustmentBudAmnt,Sheet1!S71_SA34aCode,$AC:$AC,Sheet1!S71_A5CapexCode,$AD:$AD)","v":0},{"$f":"SUMIFS(Sheet1!S71_ASBudgetAmount,Sheet1!S71_SA34aCode,$AC:$AC,Sheet1!S71_A5CapexCode,$AD:$AD)","v":0},{"$f":"SUMIFS(Sheet1!S71_OY1BudgetAmount,Sheet1!S71_SA34aCode,$AC:$AC,Sheet1!S71_A5CapexCode,$AD:$AD)","v":0},{"$f":"SUMIFS(Sheet1!S71_OY2BudgetAmount,Sheet1!S71_SA34aCode,$AC:$AC,Sheet1!S71_A5CapexCode,$AD:$AD)","v":0},null,null,null,null,null,null,null,null,null,null,null,null,null,null,null,null,null,"0810","CE"]
["Clinics/Care Centres",null,{"$f":"SUMIFS(Sheet1!S71_PPPYearAmount,Sheet1!S71_SA34aCode,$AC:$AC,Sheet1!S71_A5CapexCode,$AD:$AD)","v":0},{"$f":"SUMIFS(Sheet1!S71_PPYearAmount,Sheet1!S71_SA34aCode,$AC:$AC,Sheet1!S71_A5CapexCode,$AD:$AD)","v":0},{"$f":"SUMIFS(Sheet1!S71_PYearAmount,Sheet1!S71_SA34aCode,$AC:$AC,Sheet1!S71_A5CapexCode,$AD:$AD)","v":0},{"$f":"SUMIFS(Sheet1!S71_OriginalBudAmnt,Sheet1!S71_SA34aCode,$AC:$AC,Sheet1!S71_A5CapexCode,$AD:$AD)","v":0},{"$f":"SUMIFS(Sheet1!S71_AdjustmentBudAmnt,Sheet1!S71_SA34aCode,$AC:$AC,Sheet1!S71_A5CapexCode,$AD:$AD)","v":0},{"$f":"SUMIFS(Sheet1!S71_AdjustmentBudAmnt,Sheet1!S71_SA34aCode,$AC:$AC,Sheet1!S71_A5CapexCode,$AD:$AD)","v":0},{"$f":"SUMIFS(Sheet1!S71_ASBudgetAmount,Sheet1!S71_SA34aCode,$AC:$AC,Sheet1!S71_A5CapexCode,$AD:$AD)","v":0},{"$f":"SUMIFS(Sheet1!S71_OY1BudgetAmount,Sheet1!S71_SA34aCode,$AC:$AC,Sheet1!S71_A5CapexCode,$AD:$AD)","v":0},{"$f":"SUMIFS(Sheet1!S71_OY2BudgetAmount,Sheet1!S71_SA34aCode,$AC:$AC,Sheet1!S71_A5CapexCode,$AD:$AD)","v":0},null,null,null,null,null,null,null,null,null,null,null,null,null,null,null,null,null,"0820","CE"]
["Fire/Ambulance Stations",null,{"$f":"SUMIFS(Sheet1!S71_PPPYearAmount,Sheet1!S71_SA34aCode,$AC:$AC,Sheet1!S71_A5CapexCode,$AD:$AD)","v":0},{"$f":"SUMIFS(Sheet1!S71_PPYearAmount,Sheet1!S71_SA34aCode,$AC:$AC,Sheet1!S71_A5CapexCode,$AD:$AD)","v":0},{"$f":"SUMIFS(Sheet1!S71_PYearAmount,Sheet1!S71_SA34aCode,$AC:$AC,Sheet1!S71_A5CapexCode,$AD:$AD)","v":0},{"$f":"SUMIFS(Sheet1!S71_OriginalBudAmnt,Sheet1!S71_SA34aCode,$AC:$AC,Sheet1!S71_A5CapexCode,$AD:$AD)","v":0},{"$f":"SUMIFS(Sheet1!S71_AdjustmentBudAmnt,Sheet1!S71_SA34aCode,$AC:$AC,Sheet1!S71_A5CapexCode,$AD:$AD)","v":0},{"$f":"SUMIFS(Sheet1!S71_AdjustmentBudAmnt,Sheet1!S71_SA34aCode,$AC:$AC,Sheet1!S71_A5CapexCode,$AD:$AD)","v":0},{"$f":"SUMIFS(Sheet1!S71_ASBudgetAmount,Sheet1!S71_SA34aCode,$AC:$AC,Sheet1!S71_A5CapexCode,$AD:$AD)","v":0},{"$f":"SUMIFS(Sheet1!S71_OY1BudgetAmount,Sheet1!S71_SA34aCode,$AC:$AC,Sheet1!S71_A5CapexCode,$AD:$AD)","v":0},{"$f":"SUMIFS(Sheet1!S71_OY2BudgetAmount,Sheet1!S71_SA34aCode,$AC:$AC,Sheet1!S71_A5CapexCode,$AD:$AD)","v":0},null,null,null,null,null,null,null,null,null,null,null,null,null,null,null,null,null,"0830","CE"]
["Testing Stations",null,{"$f":"SUMIFS(Sheet1!S71_PPPYearAmount,Sheet1!S71_SA34aCode,$AC:$AC,Sheet1!S71_A5CapexCode,$AD:$AD)","v":0},{"$f":"SUMIFS(Sheet1!S71_PPYearAmount,Sheet1!S71_SA34aCode,$AC:$AC,Sheet1!S71_A5CapexCode,$AD:$AD)","v":0},{"$f":"SUMIFS(Sheet1!S71_PYearAmount,Sheet1!S71_SA34aCode,$AC:$AC,Sheet1!S71_A5CapexCode,$AD:$AD)","v":0},{"$f":"SUMIFS(Sheet1!S71_OriginalBudAmnt,Sheet1!S71_SA34aCode,$AC:$AC,Sheet1!S71_A5CapexCode,$AD:$AD)","v":0},{"$f":"SUMIFS(Sheet1!S71_AdjustmentBudAmnt,Sheet1!S71_SA34aCode,$AC:$AC,Sheet1!S71_A5CapexCode,$AD:$AD)","v":0},{"$f":"SUMIFS(Sheet1!S71_AdjustmentBudAmnt,Sheet1!S71_SA34aCode,$AC:$AC,Sheet1!S71_A5CapexCode,$AD:$AD)","v":0},{"$f":"SUMIFS(Sheet1!S71_ASBudgetAmount,Sheet1!S71_SA34aCode,$AC:$AC,Sheet1!S71_A5CapexCode,$AD:$AD)","v":0},{"$f":"SUMIFS(Sheet1!S71_OY1BudgetAmount,Sheet1!S71_SA34aCode,$AC:$AC,Sheet1!S71_A5CapexCode,$AD:$AD)","v":0},{"$f":"SUMIFS(Sheet1!S71_OY2BudgetAmount,Sheet1!S71_SA34aCode,$AC:$AC,Sheet1!S71_A5CapexCode,$AD:$AD)","v":0},null,null,null,null,null,null,null,null,null,null,null,null,null,null,null,null,null,"0840","CE"]
["Museums",null,{"$f":"SUMIFS(Sheet1!S71_PPPYearAmount,Sheet1!S71_SA34aCode,$AC:$AC,Sheet1!S71_A5CapexCode,$AD:$AD)","v":0},{"$f":"SUMIFS(Sheet1!S71_PPYearAmount,Sheet1!S71_SA34aCode,$AC:$AC,Sheet1!S71_A5CapexCode,$AD:$AD)","v":0},{"$f":"SUMIFS(Sheet1!S71_PYearAmount,Sheet1!S71_SA34aCode,$AC:$AC,Sheet1!S71_A5CapexCode,$AD:$AD)","v":0},{"$f":"SUMIFS(Sheet1!S71_OriginalBudAmnt,Sheet1!S71_SA34aCode,$AC:$AC,Sheet1!S71_A5CapexCode,$AD:$AD)","v":0},{"$f":"SUMIFS(Sheet1!S71_AdjustmentBudAmnt,Sheet1!S71_SA34aCode,$AC:$AC,Sheet1!S71_A5CapexCode,$AD:$AD)","v":0},{"$f":"SUMIFS(Sheet1!S71_AdjustmentBudAmnt,Sheet1!S71_SA34aCode,$AC:$AC,Sheet1!S71_A5CapexCode,$AD:$AD)","v":0},{"$f":"SUMIFS(Sheet1!S71_ASBudgetAmount,Sheet1!S71_SA34aCode,$AC:$AC,Sheet1!S71_A5CapexCode,$AD:$AD)","v":0},{"$f":"SUMIFS(Sheet1!S71_OY1BudgetAmount,Sheet1!S71_SA34aCode,$AC:$AC,Sheet1!S71_A5CapexCode,$AD:$AD)","v":0},{"$f":"SUMIFS(Sheet1!S71_OY2BudgetAmount,Sheet1!S71_SA34aCode,$AC:$AC,Sheet1!S71_A5CapexCode,$AD:$AD)","v":0},null,null,null,null,null,null,null,null,null,null,null,null,null,null,null,null,null,"0850","CE"]
["Galleries",null,{"$f":"SUMIFS(Sheet1!S71_PPPYearAmount,Sheet1!S71_SA34aCode,$AC:$AC,Sheet1!S71_A5CapexCode,$AD:$AD)","v":0},{"$f":"SUMIFS(Sheet1!S71_PPYearAmount,Sheet1!S71_SA34aCode,$AC:$AC,Sheet1!S71_A5CapexCode,$AD:$AD)","v":0},{"$f":"SUMIFS(Sheet1!S71_PYearAmount,Sheet1!S71_SA34aCode,$AC:$AC,Sheet1!S71_A5CapexCode,$AD:$AD)","v":0},{"$f":"SUMIFS(Sheet1!S71_OriginalBudAmnt,Sheet1!S71_SA34aCode,$AC:$AC,Sheet1!S71_A5CapexCode,$AD:$AD)","v":0},{"$f":"SUMIFS(Sheet1!S71_AdjustmentBudAmnt,Sheet1!S71_SA34aCode,$AC:$AC,Sheet1!S71_A5CapexCode,$AD:$AD)","v":0},{"$f":"SUMIFS(Sheet1!S71_AdjustmentBudAmnt,Sheet1!S71_SA34aCode,$AC:$AC,Sheet1!S71_A5CapexCode,$AD:$AD)","v":0},{"$f":"SUMIFS(Sheet1!S71_ASBudgetAmount,Sheet1!S71_SA34aCode,$AC:$AC,Sheet1!S71_A5CapexCode,$AD:$AD)","v":0},{"$f":"SUMIFS(Sheet1!S71_OY1BudgetAmount,Sheet1!S71_SA34aCode,$AC:$AC,Sheet1!S71_A5CapexCode,$AD:$AD)","v":0},{"$f":"SUMIFS(Sheet1!S71_OY2BudgetAmount,Sheet1!S71_SA34aCode,$AC:$AC,Sheet1!S71_A5CapexCode,$AD:$AD)","v":0},null,null,null,null,null,null,null,null,null,null,null,null,null,null,null,null,null,"0860","CE"]
["Theatres",null,{"$f":"SUMIFS(Sheet1!S71_PPPYearAmount,Sheet1!S71_SA34aCode,$AC:$AC,Sheet1!S71_A5CapexCode,$AD:$AD)","v":0},{"$f":"SUMIFS(Sheet1!S71_PPYearAmount,Sheet1!S71_SA34aCode,$AC:$AC,Sheet1!S71_A5CapexCode,$AD:$AD)","v":0},{"$f":"SUMIFS(Sheet1!S71_PYearAmount,Sheet1!S71_SA34aCode,$AC:$AC,Sheet1!S71_A5CapexCode,$AD:$AD)","v":0},{"$f":"SUMIFS(Sheet1!S71_OriginalBudAmnt,Sheet1!S71_SA34aCode,$AC:$AC,Sheet1!S71_A5CapexCode,$AD:$AD)","v":0},{"$f":"SUMIFS(Sheet1!S71_AdjustmentBudAmnt,Sheet1!S71_SA34aCode,$AC:$AC,Sheet1!S71_A5CapexCode,$AD:$AD)","v":0},{"$f":"SUMIFS(Sheet1!S71_AdjustmentBudAmnt,Sheet1!S71_SA34aCode,$AC:$AC,Sheet1!S71_A5CapexCode,$AD:$AD)","v":0},{"$f":"SUMIFS(Sheet1!S71_ASBudgetAmount,Sheet1!S71_SA34aCode,$AC:$AC,Sheet1!S71_A5CapexCode,$AD:$AD)","v":0},{"$f":"SUMIFS(Sheet1!S71_OY1BudgetAmount,Sheet1!S71_SA34aCode,$AC:$AC,Sheet1!S71_A5CapexCode,$AD:$AD)","v":0},{"$f":"SUMIFS(Sheet1!S71_OY2BudgetAmount,Sheet1!S71_SA34aCode,$AC:$AC,Sheet1!S71_A5CapexCode,$AD:$AD)","v":0},null,null,null,null,null,null,null,null,null,null,null,null,null,null,null,null,null,"0870","CE"]
["Libraries",null,{"$f":"SUMIFS(Sheet1!S71_PPPYearAmount,Sheet1!S71_SA34aCode,$AC:$AC,Sheet1!S71_A5CapexCode,$AD:$AD)","v":0},{"$f":"SUMIFS(Sheet1!S71_PPYearAmount,Sheet1!S71_SA34aCode,$AC:$AC,Sheet1!S71_A5CapexCode,$AD:$AD)","v":0},{"$f":"SUMIFS(Sheet1!S71_PYearAmount,Sheet1!S71_SA34aCode,$AC:$AC,Sheet1!S71_A5CapexCode,$AD:$AD)","v":0},{"$f":"SUMIFS(Sheet1!S71_OriginalBudAmnt,Sheet1!S71_SA34aCode,$AC:$AC,Sheet1!S71_A5CapexCode,$AD:$AD)","v":0},{"$f":"SUMIFS(Sheet1!S71_AdjustmentBudAmnt,Sheet1!S71_SA34aCode,$AC:$AC,Sheet1!S71_A5CapexCode,$AD:$AD)","v":0},{"$f":"SUMIFS(Sheet1!S71_AdjustmentBudAmnt,Sheet1!S71_SA34aCode,$AC:$AC,Sheet1!S71_A5CapexCode,$AD:$AD)","v":0},{"$f":"SUMIFS(Sheet1!S71_ASBudgetAmount,Sheet1!S71_SA34aCode,$AC:$AC,Sheet1!S71_A5CapexCode,$AD:$AD)","v":0},{"$f":"SUMIFS(Sheet1!S71_OY1BudgetAmount,Sheet1!S71_SA34aCode,$AC:$AC,Sheet1!S71_A5CapexCode,$AD:$AD)","v":0},{"$f":"SUMIFS(Sheet1!S71_OY2BudgetAmount,Sheet1!S71_SA34aCode,$AC:$AC,Sheet1!S71_A5CapexCode,$AD:$AD)","v":0},null,null,null,null,null,null,null,null,null,null,null,null,null,null,null,null,null,"0880","CE"]
["Cemeteries/Crematoria",null,{"$f":"SUMIFS(Sheet1!S71_PPPYearAmount,Sheet1!S71_SA34aCode,$AC:$AC,Sheet1!S71_A5CapexCode,$AD:$AD)","v":0},{"$f":"SUMIFS(Sheet1!S71_PPYearAmount,Sheet1!S71_SA34aCode,$AC:$AC,Sheet1!S71_A5CapexCode,$AD:$AD)","v":0},{"$f":"SUMIFS(Sheet1!S71_PYearAmount,Sheet1!S71_SA34aCode,$AC:$AC,Sheet1!S71_A5CapexCode,$AD:$AD)","v":0},{"$f":"SUMIFS(Sheet1!S71_OriginalBudAmnt,Sheet1!S71_SA34aCode,$AC:$AC,Sheet1!S71_A5CapexCode,$AD:$AD)","v":0},{"$f":"SUMIFS(Sheet1!S71_AdjustmentBudAmnt,Sheet1!S71_SA34aCode,$AC:$AC,Sheet1!S71_A5CapexCode,$AD:$AD)","v":0},{"$f":"SUMIFS(Sheet1!S71_AdjustmentBudAmnt,Sheet1!S71_SA34aCode,$AC:$AC,Sheet1!S71_A5CapexCode,$AD:$AD)","v":0},{"$f":"SUMIFS(Sheet1!S71_ASBudgetAmount,Sheet1!S71_SA34aCode,$AC:$AC,Sheet1!S71_A5CapexCode,$AD:$AD)","v":0},{"$f":"SUMIFS(Sheet1!S71_OY1BudgetAmount,Sheet1!S71_SA34aCode,$AC:$AC,Sheet1!S71_A5CapexCode,$AD:$AD)","v":0},{"$f":"SUMIFS(Sheet1!S71_OY2BudgetAmount,Sheet1!S71_SA34aCode,$AC:$AC,Sheet1!S71_A5CapexCode,$AD:$AD)","v":0},null,null,null,null,null,null,null,null,null,null,null,null,null,null,null,null,null,"0890","CE"]
["Police",null,{"$f":"SUMIFS(Sheet1!S71_PPPYearAmount,Sheet1!S71_SA34aCode,$AC:$AC,Sheet1!S71_A5CapexCode,$AD:$AD)","v":0},{"$f":"SUMIFS(Sheet1!S71_PPYearAmount,Sheet1!S71_SA34aCode,$AC:$AC,Sheet1!S71_A5CapexCode,$AD:$AD)","v":0},{"$f":"SUMIFS(Sheet1!S71_PYearAmount,Sheet1!S71_SA34aCode,$AC:$AC,Sheet1!S71_A5CapexCode,$AD:$AD)","v":0},{"$f":"SUMIFS(Sheet1!S71_OriginalBudAmnt,Sheet1!S71_SA34aCode,$AC:$AC,Sheet1!S71_A5CapexCode,$AD:$AD)","v":0},{"$f":"SUMIFS(Sheet1!S71_AdjustmentBudAmnt,Sheet1!S71_SA34aCode,$AC:$AC,Sheet1!S71_A5CapexCode,$AD:$AD)","v":0},{"$f":"SUMIFS(Sheet1!S71_AdjustmentBudAmnt,Sheet1!S71_SA34aCode,$AC:$AC,Sheet1!S71_A5CapexCode,$AD:$AD)","v":0},{"$f":"SUMIFS(Sheet1!S71_ASBudgetAmount,Sheet1!S71_SA34aCode,$AC:$AC,Sheet1!S71_A5CapexCode,$AD:$AD)","v":0},{"$f":"SUMIFS(Sheet1!S71_OY1BudgetAmount,Sheet1!S71_SA34aCode,$AC:$AC,Sheet1!S71_A5CapexCode,$AD:$AD)","v":0},{"$f":"SUMIFS(Sheet1!S71_OY2BudgetAmount,Sheet1!S71_SA34aCode,$AC:$AC,Sheet1!S71_A5CapexCode,$AD:$AD)","v":0},null,null,null,null,null,null,null,null,null,null,null,null,null,null,null,null,null,"0900","CE"]
["Parks",null,{"$f":"SUMIFS(Sheet1!S71_PPPYearAmount,Sheet1!S71_SA34aCode,$AC:$AC,Sheet1!S71_A5CapexCode,$AD:$AD)","v":0},{"$f":"SUMIFS(Sheet1!S71_PPYearAmount,Sheet1!S71_SA34aCode,$AC:$AC,Sheet1!S71_A5CapexCode,$AD:$AD)","v":0},{"$f":"SUMIFS(Sheet1!S71_PYearAmount,Sheet1!S71_SA34aCode,$AC:$AC,Sheet1!S71_A5CapexCode,$AD:$AD)","v":0},{"$f":"SUMIFS(Sheet1!S71_OriginalBudAmnt,Sheet1!S71_SA34aCode,$AC:$AC,Sheet1!S71_A5CapexCode,$AD:$AD)","v":0},{"$f":"SUMIFS(Sheet1!S71_AdjustmentBudAmnt,Sheet1!S71_SA34aCode,$AC:$AC,Sheet1!S71_A5CapexCode,$AD:$AD)","v":0},{"$f":"SUMIFS(Sheet1!S71_AdjustmentBudAmnt,Sheet1!S71_SA34aCode,$AC:$AC,Sheet1!S71_A5CapexCode,$AD:$AD)","v":0},{"$f":"SUMIFS(Sheet1!S71_ASBudgetAmount,Sheet1!S71_SA34aCode,$AC:$AC,Sheet1!S71_A5CapexCode,$AD:$AD)","v":0},{"$f":"SUMIFS(Sheet1!S71_OY1BudgetAmount,Sheet1!S71_SA34aCode,$AC:$AC,Sheet1!S71_A5CapexCode,$AD:$AD)","v":0},{"$f":"SUMIFS(Sheet1!S71_OY2BudgetAmount,Sheet1!S71_SA34aCode,$AC:$AC,Sheet1!S71_A5CapexCode,$AD:$AD)","v":0},null,null,null,null,null,null,null,null,null,null,null,null,null,null,null,null,null,"0910","CE"]
["Public Open Space",null,{"$f":"SUMIFS(Sheet1!S71_PPPYearAmount,Sheet1!S71_SA34aCode,$AC:$AC,Sheet1!S71_A5CapexCode,$AD:$AD)","v":0},{"$f":"SUMIFS(Sheet1!S71_PPYearAmount,Sheet1!S71_SA34aCode,$AC:$AC,Sheet1!S71_A5CapexCode,$AD:$AD)","v":0},{"$f":"SUMIFS(Sheet1!S71_PYearAmount,Sheet1!S71_SA34aCode,$AC:$AC,Sheet1!S71_A5CapexCode,$AD:$AD)","v":0},{"$f":"SUMIFS(Sheet1!S71_OriginalBudAmnt,Sheet1!S71_SA34aCode,$AC:$AC,Sheet1!S71_A5CapexCode,$AD:$AD)","v":0},{"$f":"SUMIFS(Sheet1!S71_AdjustmentBudAmnt,Sheet1!S71_SA34aCode,$AC:$AC,Sheet1!S71_A5CapexCode,$AD:$AD)","v":0},{"$f":"SUMIFS(Sheet1!S71_AdjustmentBudAmnt,Sheet1!S71_SA34aCode,$AC:$AC,Sheet1!S71_A5CapexCode,$AD:$AD)","v":0},{"$f":"SUMIFS(Sheet1!S71_ASBudgetAmount,Sheet1!S71_SA34aCode,$AC:$AC,Sheet1!S71_A5CapexCode,$AD:$AD)","v":0},{"$f":"SUMIFS(Sheet1!S71_OY1BudgetAmount,Sheet1!S71_SA34aCode,$AC:$AC,Sheet1!S71_A5CapexCode,$AD:$AD)","v":0},{"$f":"SUMIFS(Sheet1!S71_OY2BudgetAmount,Sheet1!S71_SA34aCode,$AC:$AC,Sheet1!S71_A5CapexCode,$AD:$AD)","v":0},null,null,null,null,null,null,null,null,null,null,null,null,null,null,null,null,null,"0920","CE"]
["Nature Reserves",null,{"$f":"SUMIFS(Sheet1!S71_PPPYearAmount,Sheet1!S71_SA34aCode,$AC:$AC,Sheet1!S71_A5CapexCode,$AD:$AD)","v":0},{"$f":"SUMIFS(Sheet1!S71_PPYearAmount,Sheet1!S71_SA34aCode,$AC:$AC,Sheet1!S71_A5CapexCode,$AD:$AD)","v":0},{"$f":"SUMIFS(Sheet1!S71_PYearAmount,Sheet1!S71_SA34aCode,$AC:$AC,Sheet1!S71_A5CapexCode,$AD:$AD)","v":0},{"$f":"SUMIFS(Sheet1!S71_OriginalBudAmnt,Sheet1!S71_SA34aCode,$AC:$AC,Sheet1!S71_A5CapexCode,$AD:$AD)","v":0},{"$f":"SUMIFS(Sheet1!S71_AdjustmentBudAmnt,Sheet1!S71_SA34aCode,$AC:$AC,Sheet1!S71_A5CapexCode,$AD:$AD)","v":0},{"$f":"SUMIFS(Sheet1!S71_AdjustmentBudAmnt,Sheet1!S71_SA34aCode,$AC:$AC,Sheet1!S71_A5CapexCode,$AD:$AD)","v":0},{"$f":"SUMIFS(Sheet1!S71_ASBudgetAmount,Sheet1!S71_SA34aCode,$AC:$AC,Sheet1!S71_A5CapexCode,$AD:$AD)","v":0},{"$f":"SUMIFS(Sheet1!S71_OY1BudgetAmount,Sheet1!S71_SA34aCode,$AC:$AC,Sheet1!S71_A5CapexCode,$AD:$AD)","v":0},{"$f":"SUMIFS(Sheet1!S71_OY2BudgetAmount,Sheet1!S71_SA34aCode,$AC:$AC,Sheet1!S71_A5CapexCode,$AD:$AD)","v":0},null,null,null,null,null,null,null,null,null,null,null,null,null,null,null,null,null,"0930","CE"]
["Public Ablution Facilities",null,{"$f":"SUMIFS(Sheet1!S71_PPPYearAmount,Sheet1!S71_SA34aCode,$AC:$AC,Sheet1!S71_A5CapexCode,$AD:$AD)","v":0},{"$f":"SUMIFS(Sheet1!S71_PPYearAmount,Sheet1!S71_SA34aCode,$AC:$AC,Sheet1!S71_A5CapexCode,$AD:$AD)","v":0},{"$f":"SUMIFS(Sheet1!S71_PYearAmount,Sheet1!S71_SA34aCode,$AC:$AC,Sheet1!S71_A5CapexCode,$AD:$AD)","v":0},{"$f":"SUMIFS(Sheet1!S71_OriginalBudAmnt,Sheet1!S71_SA34aCode,$AC:$AC,Sheet1!S71_A5CapexCode,$AD:$AD)","v":0},{"$f":"SUMIFS(Sheet1!S71_AdjustmentBudAmnt,Sheet1!S71_SA34aCode,$AC:$AC,Sheet1!S71_A5CapexCode,$AD:$AD)","v":0},{"$f":"SUMIFS(Sheet1!S71_AdjustmentBudAmnt,Sheet1!S71_SA34aCode,$AC:$AC,Sheet1!S71_A5CapexCode,$AD:$AD)","v":0},{"$f":"SUMIFS(Sheet1!S71_ASBudgetAmount,Sheet1!S71_SA34aCode,$AC:$AC,Sheet1!S71_A5CapexCode,$AD:$AD)","v":0},{"$f":"SUMIFS(Sheet1!S71_OY1BudgetAmount,Sheet1!S71_SA34aCode,$AC:$AC,Sheet1!S71_A5CapexCode,$AD:$AD)","v":0},{"$f":"SUMIFS(Sheet1!S71_OY2BudgetAmount,Sheet1!S71_SA34aCode,$AC:$AC,Sheet1!S71_A5CapexCode,$AD:$AD)","v":0},null,null,null,null,null,null,null,null,null,null,null,null,null,null,null,null,null,"0940","CE"]
["Markets",null,{"$f":"SUMIFS(Sheet1!S71_PPPYearAmount,Sheet1!S71_SA34aCode,$AC:$AC,Sheet1!S71_A5CapexCode,$AD:$AD)","v":0},{"$f":"SUMIFS(Sheet1!S71_PPYearAmount,Sheet1!S71_SA34aCode,$AC:$AC,Sheet1!S71_A5CapexCode,$AD:$AD)","v":0},{"$f":"SUMIFS(Sheet1!S71_PYearAmount,Sheet1!S71_SA34aCode,$AC:$AC,Sheet1!S71_A5CapexCode,$AD:$AD)","v":0},{"$f":"SUMIFS(Sheet1!S71_OriginalBudAmnt,Sheet1!S71_SA34aCode,$AC:$AC,Sheet1!S71_A5CapexCode,$AD:$AD)","v":0},{"$f":"SUMIFS(Sheet1!S71_AdjustmentBudAmnt,Sheet1!S71_SA34aCode,$AC:$AC,Sheet1!S71_A5CapexCode,$AD:$AD)","v":0},{"$f":"SUMIFS(Sheet1!S71_AdjustmentBudAmnt,Sheet1!S71_SA34aCode,$AC:$AC,Sheet1!S71_A5CapexCode,$AD:$AD)","v":0},{"$f":"SUMIFS(Sheet1!S71_ASBudgetAmount,Sheet1!S71_SA34aCode,$AC:$AC,Sheet1!S71_A5CapexCode,$AD:$AD)","v":0},{"$f":"SUMIFS(Sheet1!S71_OY1BudgetAmount,Sheet1!S71_SA34aCode,$AC:$AC,Sheet1!S71_A5CapexCode,$AD:$AD)","v":0},{"$f":"SUMIFS(Sheet1!S71_OY2BudgetAmount,Sheet1!S71_SA34aCode,$AC:$AC,Sheet1!S71_A5CapexCode,$AD:$AD)","v":0},null,null,null,null,null,null,null,null,null,null,null,null,null,null,null,null,null,"0950","CE"]
["Stalls",null,{"$f":"SUMIFS(Sheet1!S71_PPPYearAmount,Sheet1!S71_SA34aCode,$AC:$AC,Sheet1!S71_A5CapexCode,$AD:$AD)","v":0},{"$f":"SUMIFS(Sheet1!S71_PPYearAmount,Sheet1!S71_SA34aCode,$AC:$AC,Sheet1!S71_A5CapexCode,$AD:$AD)","v":0},{"$f":"SUMIFS(Sheet1!S71_PYearAmount,Sheet1!S71_SA34aCode,$AC:$AC,Sheet1!S71_A5CapexCode,$AD:$AD)","v":0},{"$f":"SUMIFS(Sheet1!S71_OriginalBudAmnt,Sheet1!S71_SA34aCode,$AC:$AC,Sheet1!S71_A5CapexCode,$AD:$AD)","v":4000000},{"$f":"SUMIFS(Sheet1!S71_AdjustmentBudAmnt,Sheet1!S71_SA34aCode,$AC:$AC,Sheet1!S71_A5CapexCode,$AD:$AD)","v":50000},{"$f":"SUMIFS(Sheet1!S71_AdjustmentBudAmnt,Sheet1!S71_SA34aCode,$AC:$AC,Sheet1!S71_A5CapexCode,$AD:$AD)","v":50000},{"$f":"SUMIFS(Sheet1!S71_ASBudgetAmount,Sheet1!S71_SA34aCode,$AC:$AC,Sheet1!S71_A5CapexCode,$AD:$AD)","v":900000},{"$f":"SUMIFS(Sheet1!S71_OY1BudgetAmount,Sheet1!S71_SA34aCode,$AC:$AC,Sheet1!S71_A5CapexCode,$AD:$AD)","v":20000000},{"$f":"SUMIFS(Sheet1!S71_OY2BudgetAmount,Sheet1!S71_SA34aCode,$AC:$AC,Sheet1!S71_A5CapexCode,$AD:$AD)","v":0},null,null,null,null,null,null,null,null,null,null,null,null,null,null,null,null,null,"0960","CE"]
["Abattoirs",null,{"$f":"SUMIFS(Sheet1!S71_PPPYearAmount,Sheet1!S71_SA34aCode,$AC:$AC,Sheet1!S71_A5CapexCode,$AD:$AD)","v":0},{"$f":"SUMIFS(Sheet1!S71_PPYearAmount,Sheet1!S71_SA34aCode,$AC:$AC,Sheet1!S71_A5CapexCode,$AD:$AD)","v":0},{"$f":"SUMIFS(Sheet1!S71_PYearAmount,Sheet1!S71_SA34aCode,$AC:$AC,Sheet1!S71_A5CapexCode,$AD:$AD)","v":0},{"$f":"SUMIFS(Sheet1!S71_OriginalBudAmnt,Sheet1!S71_SA34aCode,$AC:$AC,Sheet1!S71_A5CapexCode,$AD:$AD)","v":0},{"$f":"SUMIFS(Sheet1!S71_AdjustmentBudAmnt,Sheet1!S71_SA34aCode,$AC:$AC,Sheet1!S71_A5CapexCode,$AD:$AD)","v":0},{"$f":"SUMIFS(Sheet1!S71_AdjustmentBudAmnt,Sheet1!S71_SA34aCode,$AC:$AC,Sheet1!S71_A5CapexCode,$AD:$AD)","v":0},{"$f":"SUMIFS(Sheet1!S71_ASBudgetAmount,Sheet1!S71_SA34aCode,$AC:$AC,Sheet1!S71_A5CapexCode,$AD:$AD)","v":0},{"$f":"SUMIFS(Sheet1!S71_OY1BudgetAmount,Sheet1!S71_SA34aCode,$AC:$AC,Sheet1!S71_A5CapexCode,$AD:$AD)","v":0},{"$f":"SUMIFS(Sheet1!S71_OY2BudgetAmount,Sheet1!S71_SA34aCode,$AC:$AC,Sheet1!S71_A5CapexCode,$AD:$AD)","v":0},null,null,null,null,null,null,null,null,null,null,null,null,null,null,null,null,null,"0970","CE"]
["Airports",null,{"$f":"SUMIFS(Sheet1!S71_PPPYearAmount,Sheet1!S71_SA34aCode,$AC:$AC,Sheet1!S71_A5CapexCode,$AD:$AD)","v":0},{"$f":"SUMIFS(Sheet1!S71_PPYearAmount,Sheet1!S71_SA34aCode,$AC:$AC,Sheet1!S71_A5CapexCode,$AD:$AD)","v":0},{"$f":"SUMIFS(Sheet1!S71_PYearAmount,Sheet1!S71_SA34aCode,$AC:$AC,Sheet1!S71_A5CapexCode,$AD:$AD)","v":0},{"$f":"SUMIFS(Sheet1!S71_OriginalBudAmnt,Sheet1!S71_SA34aCode,$AC:$AC,Sheet1!S71_A5CapexCode,$AD:$AD)","v":0},{"$f":"SUMIFS(Sheet1!S71_AdjustmentBudAmnt,Sheet1!S71_SA34aCode,$AC:$AC,Sheet1!S71_A5CapexCode,$AD:$AD)","v":0},{"$f":"SUMIFS(Sheet1!S71_AdjustmentBudAmnt,Sheet1!S71_SA34aCode,$AC:$AC,Sheet1!S71_A5CapexCode,$AD:$AD)","v":0},{"$f":"SUMIFS(Sheet1!S71_ASBudgetAmount,Sheet1!S71_SA34aCode,$AC:$AC,Sheet1!S71_A5CapexCode,$AD:$AD)","v":0},{"$f":"SUMIFS(Sheet1!S71_OY1BudgetAmount,Sheet1!S71_SA34aCode,$AC:$AC,Sheet1!S71_A5CapexCode,$AD:$AD)","v":0},{"$f":"SUMIFS(Sheet1!S71_OY2BudgetAmount,Sheet1!S71_SA34aCode,$AC:$AC,Sheet1!S71_A5CapexCode,$AD:$AD)","v":0},null,null,null,null,null,null,null,null,null,null,null,null,null,null,null,null,null,"0980","CE"]
["Taxi Ranks/Bus Terminals",null,{"$f":"SUMIFS(Sheet1!S71_PPPYearAmount,Sheet1!S71_SA34aCode,$AC:$AC,Sheet1!S71_A5CapexCode,$AD:$AD)","v":591840},{"$f":"SUMIFS(Sheet1!S71_PPYearAmount,Sheet1!S71_SA34aCode,$AC:$AC,Sheet1!S71_A5CapexCode,$AD:$AD)","v":591840},{"$f":"SUMIFS(Sheet1!S71_PYearAmount,Sheet1!S71_SA34aCode,$AC:$AC,Sheet1!S71_A5CapexCode,$AD:$AD)","v":6036950},{"$f":"SUMIFS(Sheet1!S71_OriginalBudAmnt,Sheet1!S71_SA34aCode,$AC:$AC,Sheet1!S71_A5CapexCode,$AD:$AD)","v":0},{"$f":"SUMIFS(Sheet1!S71_AdjustmentBudAmnt,Sheet1!S71_SA34aCode,$AC:$AC,Sheet1!S71_A5CapexCode,$AD:$AD)","v":6194766},{"$f":"SUMIFS(Sheet1!S71_AdjustmentBudAmnt,Sheet1!S71_SA34aCode,$AC:$AC,Sheet1!S71_A5CapexCode,$AD:$AD)","v":6194766},{"$f":"SUMIFS(Sheet1!S71_ASBudgetAmount,Sheet1!S71_SA34aCode,$AC:$AC,Sheet1!S71_A5CapexCode,$AD:$AD)","v":0},{"$f":"SUMIFS(Sheet1!S71_OY1BudgetAmount,Sheet1!S71_SA34aCode,$AC:$AC,Sheet1!S71_A5CapexCode,$AD:$AD)","v":0},{"$f":"SUMIFS(Sheet1!S71_OY2BudgetAmount,Sheet1!S71_SA34aCode,$AC:$AC,Sheet1!S71_A5CapexCode,$AD:$AD)","v":0},null,null,null,null,null,null,null,null,null,null,null,null,null,null,null,null,null,"0990","CE"]
["Capital Spares",null,{"$f":"SUMIFS(Sheet1!S71_PPPYearAmount,Sheet1!S71_SA34aCode,$AC:$AC,Sheet1!S71_A5CapexCode,$AD:$AD)","v":0},{"$f":"SUMIFS(Sheet1!S71_PPYearAmount,Sheet1!S71_SA34aCode,$AC:$AC,Sheet1!S71_A5CapexCode,$AD:$AD)","v":0},{"$f":"SUMIFS(Sheet1!S71_PYearAmount,Sheet1!S71_SA34aCode,$AC:$AC,Sheet1!S71_A5CapexCode,$AD:$AD)","v":0},{"$f":"SUMIFS(Sheet1!S71_OriginalBudAmnt,Sheet1!S71_SA34aCode,$AC:$AC,Sheet1!S71_A5CapexCode,$AD:$AD)","v":0},{"$f":"SUMIFS(Sheet1!S71_AdjustmentBudAmnt,Sheet1!S71_SA34aCode,$AC:$AC,Sheet1!S71_A5CapexCode,$AD:$AD)","v":0},{"$f":"SUMIFS(Sheet1!S71_AdjustmentBudAmnt,Sheet1!S71_SA34aCode,$AC:$AC,Sheet1!S71_A5CapexCode,$AD:$AD)","v":0},{"$f":"SUMIFS(Sheet1!S71_ASBudgetAmount,Sheet1!S71_SA34aCode,$AC:$AC,Sheet1!S71_A5CapexCode,$AD:$AD)","v":0},{"$f":"SUMIFS(Sheet1!S71_OY1BudgetAmount,Sheet1!S71_SA34aCode,$AC:$AC,Sheet1!S71_A5CapexCode,$AD:$AD)","v":0},{"$f":"SUMIFS(Sheet1!S71_OY2BudgetAmount,Sheet1!S71_SA34aCode,$AC:$AC,Sheet1!S71_A5CapexCode,$AD:$AD)","v":0},null,null,null,null,null,null,null,null,null,null,null,null,null,null,null,null,null,"1000","CE"]
["Sport and Recreation Facilities",null,{"$f":"SUM(C99:C101)","v":35732142},{"$f":"SUM(D99:D101)","v":0},5104488,27957650,18726504,18726504,11613679,0,0,null,null,null,null,null,null,null,null,null,null,null,null,null,null,null,null,null,null,"CE"]
["Indoor Facilities",null,{"$f":"SUMIFS(Sheet1!S71_PPPYearAmount,Sheet1!S71_SA34aCode,$AC:$AC,Sheet1!S71_A5CapexCode,$AD:$AD)","v":0},{"$f":"SUMIFS(Sheet1!S71_PPYearAmount,Sheet1!S71_SA34aCode,$AC:$AC,Sheet1!S71_A5CapexCode,$AD:$AD)","v":0},{"$f":"SUMIFS(Sheet1!S71_PYearAmount,Sheet1!S71_SA34aCode,$AC:$AC,Sheet1!S71_A5CapexCode,$AD:$AD)","v":1712722},{"$f":"SUMIFS(Sheet1!S71_OriginalBudAmnt,Sheet1!S71_SA34aCode,$AC:$AC,Sheet1!S71_A5CapexCode,$AD:$AD)","v":21457650},{"$f":"SUMIFS(Sheet1!S71_AdjustmentBudAmnt,Sheet1!S71_SA34aCode,$AC:$AC,Sheet1!S71_A5CapexCode,$AD:$AD)","v":11726504},{"$f":"SUMIFS(Sheet1!S71_AdjustmentBudAmnt,Sheet1!S71_SA34aCode,$AC:$AC,Sheet1!S71_A5CapexCode,$AD:$AD)","v":11726504},{"$f":"SUMIFS(Sheet1!S71_ASBudgetAmount,Sheet1!S71_SA34aCode,$AC:$AC,Sheet1!S71_A5CapexCode,$AD:$AD)","v":9613679},{"$f":"SUMIFS(Sheet1!S71_OY1BudgetAmount,Sheet1!S71_SA34aCode,$AC:$AC,Sheet1!S71_A5CapexCode,$AD:$AD)","v":0},{"$f":"SUMIFS(Sheet1!S71_OY2BudgetAmount,Sheet1!S71_SA34aCode,$AC:$AC,Sheet1!S71_A5CapexCode,$AD:$AD)","v":0},null,null,null,null,null,null,null,null,null,null,null,null,null,null,null,null,null,"1020","CE"]
["Outdoor Facilities",null,{"$f":"SUMIFS(Sheet1!S71_PPPYearAmount,Sheet1!S71_SA34aCode,$AC:$AC,Sheet1!S71_A5CapexCode,$AD:$AD)","v":35732142},{"$f":"SUMIFS(Sheet1!S71_PPYearAmount,Sheet1!S71_SA34aCode,$AC:$AC,Sheet1!S71_A5CapexCode,$AD:$AD)","v":0},{"$f":"SUMIFS(Sheet1!S71_PYearAmount,Sheet1!S71_SA34aCode,$AC:$AC,Sheet1!S71_A5CapexCode,$AD:$AD)","v":3391766},{"$f":"SUMIFS(Sheet1!S71_OriginalBudAmnt,Sheet1!S71_SA34aCode,$AC:$AC,Sheet1!S71_A5CapexCode,$AD:$AD)","v":6500000},{"$f":"SUMIFS(Sheet1!S71_AdjustmentBudAmnt,Sheet1!S71_SA34aCode,$AC:$AC,Sheet1!S71_A5CapexCode,$AD:$AD)","v":7000000},{"$f":"SUMIFS(Sheet1!S71_AdjustmentBudAmnt,Sheet1!S71_SA34aCode,$AC:$AC,Sheet1!S71_A5CapexCode,$AD:$AD)","v":7000000},{"$f":"SUMIFS(Sheet1!S71_ASBudgetAmount,Sheet1!S71_SA34aCode,$AC:$AC,Sheet1!S71_A5CapexCode,$AD:$AD)","v":2000000},{"$f":"SUMIFS(Sheet1!S71_OY1BudgetAmount,Sheet1!S71_SA34aCode,$AC:$AC,Sheet1!S71_A5CapexCode,$AD:$AD)","v":0},{"$f":"SUMIFS(Sheet1!S71_OY2BudgetAmount,Sheet1!S71_SA34aCode,$AC:$AC,Sheet1!S71_A5CapexCode,$AD:$AD)","v":0},null,null,null,null,null,null,null,null,null,null,null,null,null,null,null,null,null,"1030","CE"]
["Capital Spares",null,{"$f":"SUMIFS(Sheet1!S71_PPPYearAmount,Sheet1!S71_SA34aCode,$AC:$AC,Sheet1!S71_A5CapexCode,$AD:$AD)","v":0},{"$f":"SUMIFS(Sheet1!S71_PPYearAmount,Sheet1!S71_SA34aCode,$AC:$AC,Sheet1!S71_A5CapexCode,$AD:$AD)","v":0},{"$f":"SUMIFS(Sheet1!S71_PYearAmount,Sheet1!S71_SA34aCode,$AC:$AC,Sheet1!S71_A5CapexCode,$AD:$AD)","v":0},{"$f":"SUMIFS(Sheet1!S71_OriginalBudAmnt,Sheet1!S71_SA34aCode,$AC:$AC,Sheet1!S71_A5CapexCode,$AD:$AD)","v":0},{"$f":"SUMIFS(Sheet1!S71_AdjustmentBudAmnt,Sheet1!S71_SA34aCode,$AC:$AC,Sheet1!S71_A5CapexCode,$AD:$AD)","v":0},{"$f":"SUMIFS(Sheet1!S71_AdjustmentBudAmnt,Sheet1!S71_SA34aCode,$AC:$AC,Sheet1!S71_A5CapexCode,$AD:$AD)","v":0},{"$f":"SUMIFS(Sheet1!S71_ASBudgetAmount,Sheet1!S71_SA34aCode,$AC:$AC,Sheet1!S71_A5CapexCode,$AD:$AD)","v":0},{"$f":"SUMIFS(Sheet1!S71_OY1BudgetAmount,Sheet1!S71_SA34aCode,$AC:$AC,Sheet1!S71_A5CapexCode,$AD:$AD)","v":0},{"$f":"SUMIFS(Sheet1!S71_OY2BudgetAmount,Sheet1!S71_SA34aCode,$AC:$AC,Sheet1!S71_A5CapexCode,$AD:$AD)","v":0},null,null,null,null,null,null,null,null,null,null,null,null,null,null,null,null,null,"1040","CE"]
[null,null,null,null,null,null,null,null,null,null,null,null,null,null,null,null,null,null,null,null,null,null,null,null,null,null,null,null,null,"CE"]
["Heritage assets",null,{"$f":"SUM(C104:C108)","v":206303},{"$f":"SUM(D104:D108)","v":0},0,0,0,0,0,0,0,null,null,null,null,null,null,null,null,null,null,null,null,null,null,null,null,null,null,"CE"]
["Monuments",null,{"$f":"SUMIFS(Sheet1!S71_PPPYearAmount,Sheet1!S71_SA34aCode,$AC:$AC,Sheet1!S71_A5CapexCode,$AD:$AD)","v":0},{"$f":"SUMIFS(Sheet1!S71_PPYearAmount,Sheet1!S71_SA34aCode,$AC:$AC,Sheet1!S71_A5CapexCode,$AD:$AD)","v":0},{"$f":"SUMIFS(Sheet1!S71_PYearAmount,Sheet1!S71_SA34aCode,$AC:$AC,Sheet1!S71_A5CapexCode,$AD:$AD)","v":0},{"$f":"SUMIFS(Sheet1!S71_OriginalBudAmnt,Sheet1!S71_SA34aCode,$AC:$AC,Sheet1!S71_A5CapexCode,$AD:$AD)","v":0},{"$f":"SUMIFS(Sheet1!S71_AdjustmentBudAmnt,Sheet1!S71_SA34aCode,$AC:$AC,Sheet1!S71_A5CapexCode,$AD:$AD)","v":0},{"$f":"SUMIFS(Sheet1!S71_AdjustmentBudAmnt,Sheet1!S71_SA34aCode,$AC:$AC,Sheet1!S71_A5CapexCode,$AD:$AD)","v":0},{"$f":"SUMIFS(Sheet1!S71_ASBudgetAmount,Sheet1!S71_SA34aCode,$AC:$AC,Sheet1!S71_A5CapexCode,$AD:$AD)","v":0},{"$f":"SUMIFS(Sheet1!S71_OY1BudgetAmount,Sheet1!S71_SA34aCode,$AC:$AC,Sheet1!S71_A5CapexCode,$AD:$AD)","v":0},{"$f":"SUMIFS(Sheet1!S71_OY2BudgetAmount,Sheet1!S71_SA34aCode,$AC:$AC,Sheet1!S71_A5CapexCode,$AD:$AD)","v":0},null,null,null,null,null,null,null,null,null,null,null,null,null,null,null,null,null,"1060","CE"]
["Historic Buildings",null,{"$f":"SUMIFS(Sheet1!S71_PPPYearAmount,Sheet1!S71_SA34aCode,$AC:$AC,Sheet1!S71_A5CapexCode,$AD:$AD)","v":0},{"$f":"SUMIFS(Sheet1!S71_PPYearAmount,Sheet1!S71_SA34aCode,$AC:$AC,Sheet1!S71_A5CapexCode,$AD:$AD)","v":0},{"$f":"SUMIFS(Sheet1!S71_PYearAmount,Sheet1!S71_SA34aCode,$AC:$AC,Sheet1!S71_A5CapexCode,$AD:$AD)","v":0},{"$f":"SUMIFS(Sheet1!S71_OriginalBudAmnt,Sheet1!S71_SA34aCode,$AC:$AC,Sheet1!S71_A5CapexCode,$AD:$AD)","v":0},{"$f":"SUMIFS(Sheet1!S71_AdjustmentBudAmnt,Sheet1!S71_SA34aCode,$AC:$AC,Sheet1!S71_A5CapexCode,$AD:$AD)","v":0},{"$f":"SUMIFS(Sheet1!S71_AdjustmentBudAmnt,Sheet1!S71_SA34aCode,$AC:$AC,Sheet1!S71_A5CapexCode,$AD:$AD)","v":0},{"$f":"SUMIFS(Sheet1!S71_ASBudgetAmount,Sheet1!S71_SA34aCode,$AC:$AC,Sheet1!S71_A5CapexCode,$AD:$AD)","v":0},{"$f":"SUMIFS(Sheet1!S71_OY1BudgetAmount,Sheet1!S71_SA34aCode,$AC:$AC,Sheet1!S71_A5CapexCode,$AD:$AD)","v":0},{"$f":"SUMIFS(Sheet1!S71_OY2BudgetAmount,Sheet1!S71_SA34aCode,$AC:$AC,Sheet1!S71_A5CapexCode,$AD:$AD)","v":0},null,null,null,null,null,null,null,null,null,null,null,null,null,null,null,null,null,"1070","CE"]
["Works of Art",null,{"$f":"SUMIFS(Sheet1!S71_PPPYearAmount,Sheet1!S71_SA34aCode,$AC:$AC,Sheet1!S71_A5CapexCode,$AD:$AD)","v":0},{"$f":"SUMIFS(Sheet1!S71_PPYearAmount,Sheet1!S71_SA34aCode,$AC:$AC,Sheet1!S71_A5CapexCode,$AD:$AD)","v":0},{"$f":"SUMIFS(Sheet1!S71_PYearAmount,Sheet1!S71_SA34aCode,$AC:$AC,Sheet1!S71_A5CapexCode,$AD:$AD)","v":0},{"$f":"SUMIFS(Sheet1!S71_OriginalBudAmnt,Sheet1!S71_SA34aCode,$AC:$AC,Sheet1!S71_A5CapexCode,$AD:$AD)","v":0},{"$f":"SUMIFS(Sheet1!S71_AdjustmentBudAmnt,Sheet1!S71_SA34aCode,$AC:$AC,Sheet1!S71_A5CapexCode,$AD:$AD)","v":0},{"$f":"SUMIFS(Sheet1!S71_AdjustmentBudAmnt,Sheet1!S71_SA34aCode,$AC:$AC,Sheet1!S71_A5CapexCode,$AD:$AD)","v":0},{"$f":"SUMIFS(Sheet1!S71_ASBudgetAmount,Sheet1!S71_SA34aCode,$AC:$AC,Sheet1!S71_A5CapexCode,$AD:$AD)","v":0},{"$f":"SUMIFS(Sheet1!S71_OY1BudgetAmount,Sheet1!S71_SA34aCode,$AC:$AC,Sheet1!S71_A5CapexCode,$AD:$AD)","v":0},{"$f":"SUMIFS(Sheet1!S71_OY2BudgetAmount,Sheet1!S71_SA34aCode,$AC:$AC,Sheet1!S71_A5CapexCode,$AD:$AD)","v":0},null,null,null,null,null,null,null,null,null,null,null,null,null,null,null,null,null,"1080","CE"]
["Conservation Areas",null,{"$f":"SUMIFS(Sheet1!S71_PPPYearAmount,Sheet1!S71_SA34aCode,$AC:$AC,Sheet1!S71_A5CapexCode,$AD:$AD)","v":0},{"$f":"SUMIFS(Sheet1!S71_PPYearAmount,Sheet1!S71_SA34aCode,$AC:$AC,Sheet1!S71_A5CapexCode,$AD:$AD)","v":0},{"$f":"SUMIFS(Sheet1!S71_PYearAmount,Sheet1!S71_SA34aCode,$AC:$AC,Sheet1!S71_A5CapexCode,$AD:$AD)","v":0},{"$f":"SUMIFS(Sheet1!S71_OriginalBudAmnt,Sheet1!S71_SA34aCode,$AC:$AC,Sheet1!S71_A5CapexCode,$AD:$AD)","v":0},{"$f":"SUMIFS(Sheet1!S71_AdjustmentBudAmnt,Sheet1!S71_SA34aCode,$AC:$AC,Sheet1!S71_A5CapexCode,$AD:$AD)","v":0},{"$f":"SUMIFS(Sheet1!S71_AdjustmentBudAmnt,Sheet1!S71_SA34aCode,$AC:$AC,Sheet1!S71_A5CapexCode,$AD:$AD)","v":0},{"$f":"SUMIFS(Sheet1!S71_ASBudgetAmount,Sheet1!S71_SA34aCode,$AC:$AC,Sheet1!S71_A5CapexCode,$AD:$AD)","v":0},{"$f":"SUMIFS(Sheet1!S71_OY1BudgetAmount,Sheet1!S71_SA34aCode,$AC:$AC,Sheet1!S71_A5CapexCode,$AD:$AD)","v":0},{"$f":"SUMIFS(Sheet1!S71_OY2BudgetAmount,Sheet1!S71_SA34aCode,$AC:$AC,Sheet1!S71_A5CapexCode,$AD:$AD)","v":0},null,null,null,null,null,null,null,null,null,null,null,null,null,null,null,null,null,"1090","CE"]
["Other Heritage",null,{"$f":"SUMIFS(Sheet1!S71_PPPYearAmount,Sheet1!S71_SA34aCode,$AC:$AC,Sheet1!S71_A5CapexCode,$AD:$AD)","v":206303},{"$f":"SUMIFS(Sheet1!S71_PPYearAmount,Sheet1!S71_SA34aCode,$AC:$AC,Sheet1!S71_A5CapexCode,$AD:$AD)","v":0},{"$f":"SUMIFS(Sheet1!S71_PYearAmount,Sheet1!S71_SA34aCode,$AC:$AC,Sheet1!S71_A5CapexCode,$AD:$AD)","v":0},{"$f":"SUMIFS(Sheet1!S71_OriginalBudAmnt,Sheet1!S71_SA34aCode,$AC:$AC,Sheet1!S71_A5CapexCode,$AD:$AD)","v":0},{"$f":"SUMIFS(Sheet1!S71_AdjustmentBudAmnt,Sheet1!S71_SA34aCode,$AC:$AC,Sheet1!S71_A5CapexCode,$AD:$AD)","v":0},{"$f":"SUMIFS(Sheet1!S71_AdjustmentBudAmnt,Sheet1!S71_SA34aCode,$AC:$AC,Sheet1!S71_A5CapexCode,$AD:$AD)","v":0},{"$f":"SUMIFS(Sheet1!S71_ASBudgetAmount,Sheet1!S71_SA34aCode,$AC:$AC,Sheet1!S71_A5CapexCode,$AD:$AD)","v":0},{"$f":"SUMIFS(Sheet1!S71_OY1BudgetAmount,Sheet1!S71_SA34aCode,$AC:$AC,Sheet1!S71_A5CapexCode,$AD:$AD)","v":0},{"$f":"SUMIFS(Sheet1!S71_OY2BudgetAmount,Sheet1!S71_SA34aCode,$AC:$AC,Sheet1!S71_A5CapexCode,$AD:$AD)","v":0},null,null,null,null,null,null,null,null,null,null,null,null,null,null,null,null,null,"1100","CE"]
[null,null,null,null,null,null,null,null,null,null,null,null,null,null,null,null,null,null,null,null,null,null,null,null,null,null,null,null,null,"CE"]
["Investment properties",null,{"$f":"+C111+C114","v":0},{"$f":"+D111+D114","v":0},0,0,0,0,0,0,0,null,null,null,null,null,null,null,null,null,null,null,null,null,null,null,null,null,null,"CE"]
["Revenue Generating",null,{"$f":"SUM(C112:C113)","v":0},0,0,0,0,0,0,0,0,null,null,null,null,null,null,null,null,null,null,null,null,null,null,null,null,null,null,"CE"]
["Improved Property",null,{"$f":"SUMIFS(Sheet1!S71_PPPYearAmount,Sheet1!S71_SA34aCode,$AC:$AC,Sheet1!S71_A5CapexCode,$AD:$AD)","v":0},{"$f":"SUMIFS(Sheet1!S71_PPYearAmount,Sheet1!S71_SA34aCode,$AC:$AC,Sheet1!S71_A5CapexCode,$AD:$AD)","v":0},{"$f":"SUMIFS(Sheet1!S71_PYearAmount,Sheet1!S71_SA34aCode,$AC:$AC,Sheet1!S71_A5CapexCode,$AD:$AD)","v":0},{"$f":"SUMIFS(Sheet1!S71_OriginalBudAmnt,Sheet1!S71_SA34aCode,$AC:$AC,Sheet1!S71_A5CapexCode,$AD:$AD)","v":0},{"$f":"SUMIFS(Sheet1!S71_AdjustmentBudAmnt,Sheet1!S71_SA34aCode,$AC:$AC,Sheet1!S71_A5CapexCode,$AD:$AD)","v":0},{"$f":"SUMIFS(Sheet1!S71_AdjustmentBudAmnt,Sheet1!S71_SA34aCode,$AC:$AC,Sheet1!S71_A5CapexCode,$AD:$AD)","v":0},{"$f":"SUMIFS(Sheet1!S71_ASBudgetAmount,Sheet1!S71_SA34aCode,$AC:$AC,Sheet1!S71_A5CapexCode,$AD:$AD)","v":0},{"$f":"SUMIFS(Sheet1!S71_OY1BudgetAmount,Sheet1!S71_SA34aCode,$AC:$AC,Sheet1!S71_A5CapexCode,$AD:$AD)","v":0},{"$f":"SUMIFS(Sheet1!S71_OY2BudgetAmount,Sheet1!S71_SA34aCode,$AC:$AC,Sheet1!S71_A5CapexCode,$AD:$AD)","v":0},null,null,null,null,null,null,null,null,null,null,null,null,null,null,null,null,null,"1130","CE"]
["Unimproved Property",null,{"$f":"SUMIFS(Sheet1!S71_PPPYearAmount,Sheet1!S71_SA34aCode,$AC:$AC,Sheet1!S71_A5CapexCode,$AD:$AD)","v":0},{"$f":"SUMIFS(Sheet1!S71_PPYearAmount,Sheet1!S71_SA34aCode,$AC:$AC,Sheet1!S71_A5CapexCode,$AD:$AD)","v":0},{"$f":"SUMIFS(Sheet1!S71_PYearAmount,Sheet1!S71_SA34aCode,$AC:$AC,Sheet1!S71_A5CapexCode,$AD:$AD)","v":0},{"$f":"SUMIFS(Sheet1!S71_OriginalBudAmnt,Sheet1!S71_SA34aCode,$AC:$AC,Sheet1!S71_A5CapexCode,$AD:$AD)","v":0},{"$f":"SUMIFS(Sheet1!S71_AdjustmentBudAmnt,Sheet1!S71_SA34aCode,$AC:$AC,Sheet1!S71_A5CapexCode,$AD:$AD)","v":0},{"$f":"SUMIFS(Sheet1!S71_AdjustmentBudAmnt,Sheet1!S71_SA34aCode,$AC:$AC,Sheet1!S71_A5CapexCode,$AD:$AD)","v":0},{"$f":"SUMIFS(Sheet1!S71_ASBudgetAmount,Sheet1!S71_SA34aCode,$AC:$AC,Sheet1!S71_A5CapexCode,$AD:$AD)","v":0},{"$f":"SUMIFS(Sheet1!S71_OY1BudgetAmount,Sheet1!S71_SA34aCode,$AC:$AC,Sheet1!S71_A5CapexCode,$AD:$AD)","v":0},{"$f":"SUMIFS(Sheet1!S71_OY2BudgetAmount,Sheet1!S71_SA34aCode,$AC:$AC,Sheet1!S71_A5CapexCode,$AD:$AD)","v":0},null,null,null,null,null,null,null,null,null,null,null,null,null,null,null,null,null,"1140","CE"]
["Non-revenue Generating",null,{"$f":"SUM(C115:C116)","v":0},{"$f":"SUM(D115:D116)","v":0},0,0,0,0,0,0,0,null,null,null,null,null,null,null,null,null,null,null,null,null,null,null,null,null,null,"CE"]
["Improved Property",null,{"$f":"SUMIFS(Sheet1!S71_PPPYearAmount,Sheet1!S71_SA34aCode,$AC:$AC,Sheet1!S71_A5CapexCode,$AD:$AD)","v":0},{"$f":"SUMIFS(Sheet1!S71_PPYearAmount,Sheet1!S71_SA34aCode,$AC:$AC,Sheet1!S71_A5CapexCode,$AD:$AD)","v":0},{"$f":"SUMIFS(Sheet1!S71_PYearAmount,Sheet1!S71_SA34aCode,$AC:$AC,Sheet1!S71_A5CapexCode,$AD:$AD)","v":0},{"$f":"SUMIFS(Sheet1!S71_OriginalBudAmnt,Sheet1!S71_SA34aCode,$AC:$AC,Sheet1!S71_A5CapexCode,$AD:$AD)","v":0},{"$f":"SUMIFS(Sheet1!S71_AdjustmentBudAmnt,Sheet1!S71_SA34aCode,$AC:$AC,Sheet1!S71_A5CapexCode,$AD:$AD)","v":0},{"$f":"SUMIFS(Sheet1!S71_AdjustmentBudAmnt,Sheet1!S71_SA34aCode,$AC:$AC,Sheet1!S71_A5CapexCode,$AD:$AD)","v":0},{"$f":"SUMIFS(Sheet1!S71_ASBudgetAmount,Sheet1!S71_SA34aCode,$AC:$AC,Sheet1!S71_A5CapexCode,$AD:$AD)","v":0},{"$f":"SUMIFS(Sheet1!S71_OY1BudgetAmount,Sheet1!S71_SA34aCode,$AC:$AC,Sheet1!S71_A5CapexCode,$AD:$AD)","v":0},{"$f":"SUMIFS(Sheet1!S71_OY2BudgetAmount,Sheet1!S71_SA34aCode,$AC:$AC,Sheet1!S71_A5CapexCode,$AD:$AD)","v":0},null,null,null,null,null,null,null,null,null,null,null,null,null,null,null,null,null,"1160","CE"]
["Unimproved Property",null,{"$f":"SUMIFS(Sheet1!S71_PPPYearAmount,Sheet1!S71_SA34aCode,$AC:$AC,Sheet1!S71_A5CapexCode,$AD:$AD)","v":0},{"$f":"SUMIFS(Sheet1!S71_PPYearAmount,Sheet1!S71_SA34aCode,$AC:$AC,Sheet1!S71_A5CapexCode,$AD:$AD)","v":0},{"$f":"SUMIFS(Sheet1!S71_PYearAmount,Sheet1!S71_SA34aCode,$AC:$AC,Sheet1!S71_A5CapexCode,$AD:$AD)","v":0},{"$f":"SUMIFS(Sheet1!S71_OriginalBudAmnt,Sheet1!S71_SA34aCode,$AC:$AC,Sheet1!S71_A5CapexCode,$AD:$AD)","v":0},{"$f":"SUMIFS(Sheet1!S71_AdjustmentBudAmnt,Sheet1!S71_SA34aCode,$AC:$AC,Sheet1!S71_A5CapexCode,$AD:$AD)","v":0},{"$f":"SUMIFS(Sheet1!S71_AdjustmentBudAmnt,Sheet1!S71_SA34aCode,$AC:$AC,Sheet1!S71_A5CapexCode,$AD:$AD)","v":0},{"$f":"SUMIFS(Sheet1!S71_ASBudgetAmount,Sheet1!S71_SA34aCode,$AC:$AC,Sheet1!S71_A5CapexCode,$AD:$AD)","v":0},{"$f":"SUMIFS(Sheet1!S71_OY1BudgetAmount,Sheet1!S71_SA34aCode,$AC:$AC,Sheet1!S71_A5CapexCode,$AD:$AD)","v":0},{"$f":"SUMIFS(Sheet1!S71_OY2BudgetAmount,Sheet1!S71_SA34aCode,$AC:$AC,Sheet1!S71_A5CapexCode,$AD:$AD)","v":0},null,null,null,null,null,null,null,null,null,null,null,null,null,null,null,null,null,"1170","CE"]
[null,null,null,null,null,null,null,null,null,null,null,null,null,null,null,null,null,null,null,null,null,null,null,null,null,null,null,null,null,"CE"]
["Other assets",null,{"$f":"+C119+C131","v":0},{"$f":"+D119+D131","v":0},0,500000,0,0,500000,0,0,null,null,null,null,null,null,null,null,null,null,null,null,null,null,null,null,null,null,"CE"]
["Operational Buildings",null,{"$f":"SUM(C120:C130)","v":0},{"$f":"SUM(D120:D130)","v":0},0,500000,0,0,500000,0,0,null,null,null,null,null,null,null,null,null,null,null,null,null,null,null,null,null,null,"CE"]
["Municipal Offices",null,{"$f":"SUMIFS(Sheet1!S71_PPPYearAmount,Sheet1!S71_SA34aCode,$AC:$AC,Sheet1!S71_A5CapexCode,$AD:$AD)","v":0},{"$f":"SUMIFS(Sheet1!S71_PPYearAmount,Sheet1!S71_SA34aCode,$AC:$AC,Sheet1!S71_A5CapexCode,$AD:$AD)","v":0},{"$f":"SUMIFS(Sheet1!S71_PYearAmount,Sheet1!S71_SA34aCode,$AC:$AC,Sheet1!S71_A5CapexCode,$AD:$AD)","v":0},{"$f":"SUMIFS(Sheet1!S71_OriginalBudAmnt,Sheet1!S71_SA34aCode,$AC:$AC,Sheet1!S71_A5CapexCode,$AD:$AD)","v":500000},{"$f":"SUMIFS(Sheet1!S71_AdjustmentBudAmnt,Sheet1!S71_SA34aCode,$AC:$AC,Sheet1!S71_A5CapexCode,$AD:$AD)","v":0},{"$f":"SUMIFS(Sheet1!S71_AdjustmentBudAmnt,Sheet1!S71_SA34aCode,$AC:$AC,Sheet1!S71_A5CapexCode,$AD:$AD)","v":0},{"$f":"SUMIFS(Sheet1!S71_ASBudgetAmount,Sheet1!S71_SA34aCode,$AC:$AC,Sheet1!S71_A5CapexCode,$AD:$AD)","v":500000},{"$f":"SUMIFS(Sheet1!S71_OY1BudgetAmount,Sheet1!S71_SA34aCode,$AC:$AC,Sheet1!S71_A5CapexCode,$AD:$AD)","v":0},{"$f":"SUMIFS(Sheet1!S71_OY2BudgetAmount,Sheet1!S71_SA34aCode,$AC:$AC,Sheet1!S71_A5CapexCode,$AD:$AD)","v":0},null,null,null,null,null,null,null,null,null,null,null,null,null,null,null,null,null,"1200","CE"]
["Pay/Enquiry Points",null,{"$f":"SUMIFS(Sheet1!S71_PPPYearAmount,Sheet1!S71_SA34aCode,$AC:$AC,Sheet1!S71_A5CapexCode,$AD:$AD)","v":0},{"$f":"SUMIFS(Sheet1!S71_PPYearAmount,Sheet1!S71_SA34aCode,$AC:$AC,Sheet1!S71_A5CapexCode,$AD:$AD)","v":0},{"$f":"SUMIFS(Sheet1!S71_PYearAmount,Sheet1!S71_SA34aCode,$AC:$AC,Sheet1!S71_A5CapexCode,$AD:$AD)","v":0},{"$f":"SUMIFS(Sheet1!S71_OriginalBudAmnt,Sheet1!S71_SA34aCode,$AC:$AC,Sheet1!S71_A5CapexCode,$AD:$AD)","v":0},{"$f":"SUMIFS(Sheet1!S71_AdjustmentBudAmnt,Sheet1!S71_SA34aCode,$AC:$AC,Sheet1!S71_A5CapexCode,$AD:$AD)","v":0},{"$f":"SUMIFS(Sheet1!S71_AdjustmentBudAmnt,Sheet1!S71_SA34aCode,$AC:$AC,Sheet1!S71_A5CapexCode,$AD:$AD)","v":0},{"$f":"SUMIFS(Sheet1!S71_ASBudgetAmount,Sheet1!S71_SA34aCode,$AC:$AC,Sheet1!S71_A5CapexCode,$AD:$AD)","v":0},{"$f":"SUMIFS(Sheet1!S71_OY1BudgetAmount,Sheet1!S71_SA34aCode,$AC:$AC,Sheet1!S71_A5CapexCode,$AD:$AD)","v":0},{"$f":"SUMIFS(Sheet1!S71_OY2BudgetAmount,Sheet1!S71_SA34aCode,$AC:$AC,Sheet1!S71_A5CapexCode,$AD:$AD)","v":0},null,null,null,null,null,null,null,null,null,null,null,null,null,null,null,null,null,"1210","CE"]
["Building Plan Offices",null,{"$f":"SUMIFS(Sheet1!S71_PPPYearAmount,Sheet1!S71_SA34aCode,$AC:$AC,Sheet1!S71_A5CapexCode,$AD:$AD)","v":0},{"$f":"SUMIFS(Sheet1!S71_PPYearAmount,Sheet1!S71_SA34aCode,$AC:$AC,Sheet1!S71_A5CapexCode,$AD:$AD)","v":0},{"$f":"SUMIFS(Sheet1!S71_PYearAmount,Sheet1!S71_SA34aCode,$AC:$AC,Sheet1!S71_A5CapexCode,$AD:$AD)","v":0},{"$f":"SUMIFS(Sheet1!S71_OriginalBudAmnt,Sheet1!S71_SA34aCode,$AC:$AC,Sheet1!S71_A5CapexCode,$AD:$AD)","v":0},{"$f":"SUMIFS(Sheet1!S71_AdjustmentBudAmnt,Sheet1!S71_SA34aCode,$AC:$AC,Sheet1!S71_A5CapexCode,$AD:$AD)","v":0},{"$f":"SUMIFS(Sheet1!S71_AdjustmentBudAmnt,Sheet1!S71_SA34aCode,$AC:$AC,Sheet1!S71_A5CapexCode,$AD:$AD)","v":0},{"$f":"SUMIFS(Sheet1!S71_ASBudgetAmount,Sheet1!S71_SA34aCode,$AC:$AC,Sheet1!S71_A5CapexCode,$AD:$AD)","v":0},{"$f":"SUMIFS(Sheet1!S71_OY1BudgetAmount,Sheet1!S71_SA34aCode,$AC:$AC,Sheet1!S71_A5CapexCode,$AD:$AD)","v":0},{"$f":"SUMIFS(Sheet1!S71_OY2BudgetAmount,Sheet1!S71_SA34aCode,$AC:$AC,Sheet1!S71_A5CapexCode,$AD:$AD)","v":0},null,null,null,null,null,null,null,null,null,null,null,null,null,null,null,null,null,"1220","CE"]
["Workshops",null,{"$f":"SUMIFS(Sheet1!S71_PPPYearAmount,Sheet1!S71_SA34aCode,$AC:$AC,Sheet1!S71_A5CapexCode,$AD:$AD)","v":0},{"$f":"SUMIFS(Sheet1!S71_PPYearAmount,Sheet1!S71_SA34aCode,$AC:$AC,Sheet1!S71_A5CapexCode,$AD:$AD)","v":0},{"$f":"SUMIFS(Sheet1!S71_PYearAmount,Sheet1!S71_SA34aCode,$AC:$AC,Sheet1!S71_A5CapexCode,$AD:$AD)","v":0},{"$f":"SUMIFS(Sheet1!S71_OriginalBudAmnt,Sheet1!S71_SA34aCode,$AC:$AC,Sheet1!S71_A5CapexCode,$AD:$AD)","v":0},{"$f":"SUMIFS(Sheet1!S71_AdjustmentBudAmnt,Sheet1!S71_SA34aCode,$AC:$AC,Sheet1!S71_A5CapexCode,$AD:$AD)","v":0},{"$f":"SUMIFS(Sheet1!S71_AdjustmentBudAmnt,Sheet1!S71_SA34aCode,$AC:$AC,Sheet1!S71_A5CapexCode,$AD:$AD)","v":0},{"$f":"SUMIFS(Sheet1!S71_ASBudgetAmount,Sheet1!S71_SA34aCode,$AC:$AC,Sheet1!S71_A5CapexCode,$AD:$AD)","v":0},{"$f":"SUMIFS(Sheet1!S71_OY1BudgetAmount,Sheet1!S71_SA34aCode,$AC:$AC,Sheet1!S71_A5CapexCode,$AD:$AD)","v":0},{"$f":"SUMIFS(Sheet1!S71_OY2BudgetAmount,Sheet1!S71_SA34aCode,$AC:$AC,Sheet1!S71_A5CapexCode,$AD:$AD)","v":0},null,null,null,null,null,null,null,null,null,null,null,null,null,null,null,null,null,"1230","CE"]
["Yards",null,{"$f":"SUMIFS(Sheet1!S71_PPPYearAmount,Sheet1!S71_SA34aCode,$AC:$AC,Sheet1!S71_A5CapexCode,$AD:$AD)","v":0},{"$f":"SUMIFS(Sheet1!S71_PPYearAmount,Sheet1!S71_SA34aCode,$AC:$AC,Sheet1!S71_A5CapexCode,$AD:$AD)","v":0},{"$f":"SUMIFS(Sheet1!S71_PYearAmount,Sheet1!S71_SA34aCode,$AC:$AC,Sheet1!S71_A5CapexCode,$AD:$AD)","v":0},{"$f":"SUMIFS(Sheet1!S71_OriginalBudAmnt,Sheet1!S71_SA34aCode,$AC:$AC,Sheet1!S71_A5CapexCode,$AD:$AD)","v":0},{"$f":"SUMIFS(Sheet1!S71_AdjustmentBudAmnt,Sheet1!S71_SA34aCode,$AC:$AC,Sheet1!S71_A5CapexCode,$AD:$AD)","v":0},{"$f":"SUMIFS(Sheet1!S71_AdjustmentBudAmnt,Sheet1!S71_SA34aCode,$AC:$AC,Sheet1!S71_A5CapexCode,$AD:$AD)","v":0},{"$f":"SUMIFS(Sheet1!S71_ASBudgetAmount,Sheet1!S71_SA34aCode,$AC:$AC,Sheet1!S71_A5CapexCode,$AD:$AD)","v":0},{"$f":"SUMIFS(Sheet1!S71_OY1BudgetAmount,Sheet1!S71_SA34aCode,$AC:$AC,Sheet1!S71_A5CapexCode,$AD:$AD)","v":0},{"$f":"SUMIFS(Sheet1!S71_OY2BudgetAmount,Sheet1!S71_SA34aCode,$AC:$AC,Sheet1!S71_A5CapexCode,$AD:$AD)","v":0},null,null,null,null,null,null,null,null,null,null,null,null,null,null,null,null,null,"1240","CE"]
["Stores",null,{"$f":"SUMIFS(Sheet1!S71_PPPYearAmount,Sheet1!S71_SA34aCode,$AC:$AC,Sheet1!S71_A5CapexCode,$AD:$AD)","v":0},{"$f":"SUMIFS(Sheet1!S71_PPYearAmount,Sheet1!S71_SA34aCode,$AC:$AC,Sheet1!S71_A5CapexCode,$AD:$AD)","v":0},{"$f":"SUMIFS(Sheet1!S71_PYearAmount,Sheet1!S71_SA34aCode,$AC:$AC,Sheet1!S71_A5CapexCode,$AD:$AD)","v":0},{"$f":"SUMIFS(Sheet1!S71_OriginalBudAmnt,Sheet1!S71_SA34aCode,$AC:$AC,Sheet1!S71_A5CapexCode,$AD:$AD)","v":0},{"$f":"SUMIFS(Sheet1!S71_AdjustmentBudAmnt,Sheet1!S71_SA34aCode,$AC:$AC,Sheet1!S71_A5CapexCode,$AD:$AD)","v":0},{"$f":"SUMIFS(Sheet1!S71_AdjustmentBudAmnt,Sheet1!S71_SA34aCode,$AC:$AC,Sheet1!S71_A5CapexCode,$AD:$AD)","v":0},{"$f":"SUMIFS(Sheet1!S71_ASBudgetAmount,Sheet1!S71_SA34aCode,$AC:$AC,Sheet1!S71_A5CapexCode,$AD:$AD)","v":0},{"$f":"SUMIFS(Sheet1!S71_OY1BudgetAmount,Sheet1!S71_SA34aCode,$AC:$AC,Sheet1!S71_A5CapexCode,$AD:$AD)","v":0},{"$f":"SUMIFS(Sheet1!S71_OY2BudgetAmount,Sheet1!S71_SA34aCode,$AC:$AC,Sheet1!S71_A5CapexCode,$AD:$AD)","v":0},null,null,null,null,null,null,null,null,null,null,null,null,null,null,null,null,null,"1250","CE"]
["Laboratories",null,{"$f":"SUMIFS(Sheet1!S71_PPPYearAmount,Sheet1!S71_SA34aCode,$AC:$AC,Sheet1!S71_A5CapexCode,$AD:$AD)","v":0},{"$f":"SUMIFS(Sheet1!S71_PPYearAmount,Sheet1!S71_SA34aCode,$AC:$AC,Sheet1!S71_A5CapexCode,$AD:$AD)","v":0},{"$f":"SUMIFS(Sheet1!S71_PYearAmount,Sheet1!S71_SA34aCode,$AC:$AC,Sheet1!S71_A5CapexCode,$AD:$AD)","v":0},{"$f":"SUMIFS(Sheet1!S71_OriginalBudAmnt,Sheet1!S71_SA34aCode,$AC:$AC,Sheet1!S71_A5CapexCode,$AD:$AD)","v":0},{"$f":"SUMIFS(Sheet1!S71_AdjustmentBudAmnt,Sheet1!S71_SA34aCode,$AC:$AC,Sheet1!S71_A5CapexCode,$AD:$AD)","v":0},{"$f":"SUMIFS(Sheet1!S71_AdjustmentBudAmnt,Sheet1!S71_SA34aCode,$AC:$AC,Sheet1!S71_A5CapexCode,$AD:$AD)","v":0},{"$f":"SUMIFS(Sheet1!S71_ASBudgetAmount,Sheet1!S71_SA34aCode,$AC:$AC,Sheet1!S71_A5CapexCode,$AD:$AD)","v":0},{"$f":"SUMIFS(Sheet1!S71_OY1BudgetAmount,Sheet1!S71_SA34aCode,$AC:$AC,Sheet1!S71_A5CapexCode,$AD:$AD)","v":0},{"$f":"SUMIFS(Sheet1!S71_OY2BudgetAmount,Sheet1!S71_SA34aCode,$AC:$AC,Sheet1!S71_A5CapexCode,$AD:$AD)","v":0},null,null,null,null,null,null,null,null,null,null,null,null,null,null,null,null,null,"1260","CE"]
["Training Centres",null,{"$f":"SUMIFS(Sheet1!S71_PPPYearAmount,Sheet1!S71_SA34aCode,$AC:$AC,Sheet1!S71_A5CapexCode,$AD:$AD)","v":0},{"$f":"SUMIFS(Sheet1!S71_PPYearAmount,Sheet1!S71_SA34aCode,$AC:$AC,Sheet1!S71_A5CapexCode,$AD:$AD)","v":0},{"$f":"SUMIFS(Sheet1!S71_PYearAmount,Sheet1!S71_SA34aCode,$AC:$AC,Sheet1!S71_A5CapexCode,$AD:$AD)","v":0},{"$f":"SUMIFS(Sheet1!S71_OriginalBudAmnt,Sheet1!S71_SA34aCode,$AC:$AC,Sheet1!S71_A5CapexCode,$AD:$AD)","v":0},{"$f":"SUMIFS(Sheet1!S71_AdjustmentBudAmnt,Sheet1!S71_SA34aCode,$AC:$AC,Sheet1!S71_A5CapexCode,$AD:$AD)","v":0},{"$f":"SUMIFS(Sheet1!S71_AdjustmentBudAmnt,Sheet1!S71_SA34aCode,$AC:$AC,Sheet1!S71_A5CapexCode,$AD:$AD)","v":0},{"$f":"SUMIFS(Sheet1!S71_ASBudgetAmount,Sheet1!S71_SA34aCode,$AC:$AC,Sheet1!S71_A5CapexCode,$AD:$AD)","v":0},{"$f":"SUMIFS(Sheet1!S71_OY1BudgetAmount,Sheet1!S71_SA34aCode,$AC:$AC,Sheet1!S71_A5CapexCode,$AD:$AD)","v":0},{"$f":"SUMIFS(Sheet1!S71_OY2BudgetAmount,Sheet1!S71_SA34aCode,$AC:$AC,Sheet1!S71_A5CapexCode,$AD:$AD)","v":0},null,null,null,null,null,null,null,null,null,null,null,null,null,null,null,null,null,"1270","CE"]
["Manufacturing Plant",null,{"$f":"SUMIFS(Sheet1!S71_PPPYearAmount,Sheet1!S71_SA34aCode,$AC:$AC,Sheet1!S71_A5CapexCode,$AD:$AD)","v":0},{"$f":"SUMIFS(Sheet1!S71_PPYearAmount,Sheet1!S71_SA34aCode,$AC:$AC,Sheet1!S71_A5CapexCode,$AD:$AD)","v":0},{"$f":"SUMIFS(Sheet1!S71_PYearAmount,Sheet1!S71_SA34aCode,$AC:$AC,Sheet1!S71_A5CapexCode,$AD:$AD)","v":0},{"$f":"SUMIFS(Sheet1!S71_OriginalBudAmnt,Sheet1!S71_SA34aCode,$AC:$AC,Sheet1!S71_A5CapexCode,$AD:$AD)","v":0},{"$f":"SUMIFS(Sheet1!S71_AdjustmentBudAmnt,Sheet1!S71_SA34aCode,$AC:$AC,Sheet1!S71_A5CapexCode,$AD:$AD)","v":0},{"$f":"SUMIFS(Sheet1!S71_AdjustmentBudAmnt,Sheet1!S71_SA34aCode,$AC:$AC,Sheet1!S71_A5CapexCode,$AD:$AD)","v":0},{"$f":"SUMIFS(Sheet1!S71_ASBudgetAmount,Sheet1!S71_SA34aCode,$AC:$AC,Sheet1!S71_A5CapexCode,$AD:$AD)","v":0},{"$f":"SUMIFS(Sheet1!S71_OY1BudgetAmount,Sheet1!S71_SA34aCode,$AC:$AC,Sheet1!S71_A5CapexCode,$AD:$AD)","v":0},{"$f":"SUMIFS(Sheet1!S71_OY2BudgetAmount,Sheet1!S71_SA34aCode,$AC:$AC,Sheet1!S71_A5CapexCode,$AD:$AD)","v":0},null,null,null,null,null,null,null,null,null,null,null,null,null,null,null,null,null,"1280","CE"]
["Depots",null,{"$f":"SUMIFS(Sheet1!S71_PPPYearAmount,Sheet1!S71_SA34aCode,$AC:$AC,Sheet1!S71_A5CapexCode,$AD:$AD)","v":0},{"$f":"SUMIFS(Sheet1!S71_PPYearAmount,Sheet1!S71_SA34aCode,$AC:$AC,Sheet1!S71_A5CapexCode,$AD:$AD)","v":0},{"$f":"SUMIFS(Sheet1!S71_PYearAmount,Sheet1!S71_SA34aCode,$AC:$AC,Sheet1!S71_A5CapexCode,$AD:$AD)","v":0},{"$f":"SUMIFS(Sheet1!S71_OriginalBudAmnt,Sheet1!S71_SA34aCode,$AC:$AC,Sheet1!S71_A5CapexCode,$AD:$AD)","v":0},{"$f":"SUMIFS(Sheet1!S71_AdjustmentBudAmnt,Sheet1!S71_SA34aCode,$AC:$AC,Sheet1!S71_A5CapexCode,$AD:$AD)","v":0},{"$f":"SUMIFS(Sheet1!S71_AdjustmentBudAmnt,Sheet1!S71_SA34aCode,$AC:$AC,Sheet1!S71_A5CapexCode,$AD:$AD)","v":0},{"$f":"SUMIFS(Sheet1!S71_ASBudgetAmount,Sheet1!S71_SA34aCode,$AC:$AC,Sheet1!S71_A5CapexCode,$AD:$AD)","v":0},{"$f":"SUMIFS(Sheet1!S71_OY1BudgetAmount,Sheet1!S71_SA34aCode,$AC:$AC,Sheet1!S71_A5CapexCode,$AD:$AD)","v":0},{"$f":"SUMIFS(Sheet1!S71_OY2BudgetAmount,Sheet1!S71_SA34aCode,$AC:$AC,Sheet1!S71_A5CapexCode,$AD:$AD)","v":0},null,null,null,null,null,null,null,null,null,null,null,null,null,null,null,null,null,"1290","CE"]
["Capital Spares",null,{"$f":"SUMIFS(Sheet1!S71_PPPYearAmount,Sheet1!S71_SA34aCode,$AC:$AC,Sheet1!S71_A5CapexCode,$AD:$AD)","v":0},{"$f":"SUMIFS(Sheet1!S71_PPYearAmount,Sheet1!S71_SA34aCode,$AC:$AC,Sheet1!S71_A5CapexCode,$AD:$AD)","v":0},{"$f":"SUMIFS(Sheet1!S71_PYearAmount,Sheet1!S71_SA34aCode,$AC:$AC,Sheet1!S71_A5CapexCode,$AD:$AD)","v":0},{"$f":"SUMIFS(Sheet1!S71_OriginalBudAmnt,Sheet1!S71_SA34aCode,$AC:$AC,Sheet1!S71_A5CapexCode,$AD:$AD)","v":0},{"$f":"SUMIFS(Sheet1!S71_AdjustmentBudAmnt,Sheet1!S71_SA34aCode,$AC:$AC,Sheet1!S71_A5CapexCode,$AD:$AD)","v":0},{"$f":"SUMIFS(Sheet1!S71_AdjustmentBudAmnt,Sheet1!S71_SA34aCode,$AC:$AC,Sheet1!S71_A5CapexCode,$AD:$AD)","v":0},{"$f":"SUMIFS(Sheet1!S71_ASBudgetAmount,Sheet1!S71_SA34aCode,$AC:$AC,Sheet1!S71_A5CapexCode,$AD:$AD)","v":0},{"$f":"SUMIFS(Sheet1!S71_OY1BudgetAmount,Sheet1!S71_SA34aCode,$AC:$AC,Sheet1!S71_A5CapexCode,$AD:$AD)","v":0},{"$f":"SUMIFS(Sheet1!S71_OY2BudgetAmount,Sheet1!S71_SA34aCode,$AC:$AC,Sheet1!S71_A5CapexCode,$AD:$AD)","v":0},null,null,null,null,null,null,null,null,null,null,null,null,null,null,null,null,null,"1300","CE"]
["Housing",null,{"$f":"SUM(C132:C134)","v":0},{"$f":"SUM(D132:D134)","v":0},0,0,0,0,0,0,0,null,null,null,null,null,null,null,null,null,null,null,null,null,null,null,null,null,null,"CE"]
["Staff Housing",null,{"$f":"SUMIFS(Sheet1!S71_PPPYearAmount,Sheet1!S71_SA34aCode,$AC:$AC,Sheet1!S71_A5CapexCode,$AD:$AD)","v":0},{"$f":"SUMIFS(Sheet1!S71_PPYearAmount,Sheet1!S71_SA34aCode,$AC:$AC,Sheet1!S71_A5CapexCode,$AD:$AD)","v":0},{"$f":"SUMIFS(Sheet1!S71_PYearAmount,Sheet1!S71_SA34aCode,$AC:$AC,Sheet1!S71_A5CapexCode,$AD:$AD)","v":0},{"$f":"SUMIFS(Sheet1!S71_OriginalBudAmnt,Sheet1!S71_SA34aCode,$AC:$AC,Sheet1!S71_A5CapexCode,$AD:$AD)","v":0},{"$f":"SUMIFS(Sheet1!S71_AdjustmentBudAmnt,Sheet1!S71_SA34aCode,$AC:$AC,Sheet1!S71_A5CapexCode,$AD:$AD)","v":0},{"$f":"SUMIFS(Sheet1!S71_AdjustmentBudAmnt,Sheet1!S71_SA34aCode,$AC:$AC,Sheet1!S71_A5CapexCode,$AD:$AD)","v":0},{"$f":"SUMIFS(Sheet1!S71_ASBudgetAmount,Sheet1!S71_SA34aCode,$AC:$AC,Sheet1!S71_A5CapexCode,$AD:$AD)","v":0},{"$f":"SUMIFS(Sheet1!S71_OY1BudgetAmount,Sheet1!S71_SA34aCode,$AC:$AC,Sheet1!S71_A5CapexCode,$AD:$AD)","v":0},{"$f":"SUMIFS(Sheet1!S71_OY2BudgetAmount,Sheet1!S71_SA34aCode,$AC:$AC,Sheet1!S71_A5CapexCode,$AD:$AD)","v":0},null,null,null,null,null,null,null,null,null,null,null,null,null,null,null,null,null,"1320","CE"]
["Social Housing",null,{"$f":"SUMIFS(Sheet1!S71_PPPYearAmount,Sheet1!S71_SA34aCode,$AC:$AC,Sheet1!S71_A5CapexCode,$AD:$AD)","v":0},{"$f":"SUMIFS(Sheet1!S71_PPYearAmount,Sheet1!S71_SA34aCode,$AC:$AC,Sheet1!S71_A5CapexCode,$AD:$AD)","v":0},{"$f":"SUMIFS(Sheet1!S71_PYearAmount,Sheet1!S71_SA34aCode,$AC:$AC,Sheet1!S71_A5CapexCode,$AD:$AD)","v":0},{"$f":"SUMIFS(Sheet1!S71_OriginalBudAmnt,Sheet1!S71_SA34aCode,$AC:$AC,Sheet1!S71_A5CapexCode,$AD:$AD)","v":0},{"$f":"SUMIFS(Sheet1!S71_AdjustmentBudAmnt,Sheet1!S71_SA34aCode,$AC:$AC,Sheet1!S71_A5CapexCode,$AD:$AD)","v":0},{"$f":"SUMIFS(Sheet1!S71_AdjustmentBudAmnt,Sheet1!S71_SA34aCode,$AC:$AC,Sheet1!S71_A5CapexCode,$AD:$AD)","v":0},{"$f":"SUMIFS(Sheet1!S71_ASBudgetAmount,Sheet1!S71_SA34aCode,$AC:$AC,Sheet1!S71_A5CapexCode,$AD:$AD)","v":0},{"$f":"SUMIFS(Sheet1!S71_OY1BudgetAmount,Sheet1!S71_SA34aCode,$AC:$AC,Sheet1!S71_A5CapexCode,$AD:$AD)","v":0},{"$f":"SUMIFS(Sheet1!S71_OY2BudgetAmount,Sheet1!S71_SA34aCode,$AC:$AC,Sheet1!S71_A5CapexCode,$AD:$AD)","v":0},null,null,null,null,null,null,null,null,null,null,null,null,null,null,null,null,null,"1330","CE"]
["Capital Spares",null,{"$f":"SUMIFS(Sheet1!S71_PPPYearAmount,Sheet1!S71_SA34aCode,$AC:$AC,Sheet1!S71_A5CapexCode,$AD:$AD)","v":0},{"$f":"SUMIFS(Sheet1!S71_PPYearAmount,Sheet1!S71_SA34aCode,$AC:$AC,Sheet1!S71_A5CapexCode,$AD:$AD)","v":0},{"$f":"SUMIFS(Sheet1!S71_PYearAmount,Sheet1!S71_SA34aCode,$AC:$AC,Sheet1!S71_A5CapexCode,$AD:$AD)","v":0},{"$f":"SUMIFS(Sheet1!S71_OriginalBudAmnt,Sheet1!S71_SA34aCode,$AC:$AC,Sheet1!S71_A5CapexCode,$AD:$AD)","v":0},{"$f":"SUMIFS(Sheet1!S71_AdjustmentBudAmnt,Sheet1!S71_SA34aCode,$AC:$AC,Sheet1!S71_A5CapexCode,$AD:$AD)","v":0},{"$f":"SUMIFS(Sheet1!S71_AdjustmentBudAmnt,Sheet1!S71_SA34aCode,$AC:$AC,Sheet1!S71_A5CapexCode,$AD:$AD)","v":0},{"$f":"SUMIFS(Sheet1!S71_ASBudgetAmount,Sheet1!S71_SA34aCode,$AC:$AC,Sheet1!S71_A5CapexCode,$AD:$AD)","v":0},{"$f":"SUMIFS(Sheet1!S71_OY1BudgetAmount,Sheet1!S71_SA34aCode,$AC:$AC,Sheet1!S71_A5CapexCode,$AD:$AD)","v":0},{"$f":"SUMIFS(Sheet1!S71_OY2BudgetAmount,Sheet1!S71_SA34aCode,$AC:$AC,Sheet1!S71_A5CapexCode,$AD:$AD)","v":0},null,null,null,null,null,null,null,null,null,null,null,null,null,null,null,null,null,"1340","CE"]
[null,null,null,null,null,null,null,null,null,null,null,null,null,null,null,null,null,null,null,null,null,null,null,null,null,null,null,null,null,"CE"]
["Biological or Cultivated Assets",null,{"$f":"SUM(C137:C137)","v":0},0,0,0,0,0,0,0,0,null,null,null,null,null,null,null,null,null,null,null,null,null,null,null,null,null,null,"CE"]
["Biological or Cultivated Assets",null,{"$f":"SUMIFS(Sheet1!S71_PPPYearAmount,Sheet1!S71_SA34aCode,$AC:$AC,Sheet1!S71_A5CapexCode,$AD:$AD)","v":0},{"$f":"SUMIFS(Sheet1!S71_PPYearAmount,Sheet1!S71_SA34aCode,$AC:$AC,Sheet1!S71_A5CapexCode,$AD:$AD)","v":0},{"$f":"SUMIFS(Sheet1!S71_PYearAmount,Sheet1!S71_SA34aCode,$AC:$AC,Sheet1!S71_A5CapexCode,$AD:$AD)","v":0},{"$f":"SUMIFS(Sheet1!S71_OriginalBudAmnt,Sheet1!S71_SA34aCode,$AC:$AC,Sheet1!S71_A5CapexCode,$AD:$AD)","v":0},{"$f":"SUMIFS(Sheet1!S71_AdjustmentBudAmnt,Sheet1!S71_SA34aCode,$AC:$AC,Sheet1!S71_A5CapexCode,$AD:$AD)","v":0},{"$f":"SUMIFS(Sheet1!S71_AdjustmentBudAmnt,Sheet1!S71_SA34aCode,$AC:$AC,Sheet1!S71_A5CapexCode,$AD:$AD)","v":0},{"$f":"SUMIFS(Sheet1!S71_ASBudgetAmount,Sheet1!S71_SA34aCode,$AC:$AC,Sheet1!S71_A5CapexCode,$AD:$AD)","v":0},{"$f":"SUMIFS(Sheet1!S71_OY1BudgetAmount,Sheet1!S71_SA34aCode,$AC:$AC,Sheet1!S71_A5CapexCode,$AD:$AD)","v":0},{"$f":"SUMIFS(Sheet1!S71_OY2BudgetAmount,Sheet1!S71_SA34aCode,$AC:$AC,Sheet1!S71_A5CapexCode,$AD:$AD)","v":0},null,null,null,null,null,null,null,null,null,null,null,null,null,null,null,null,null,"1360","CE"]
[null,null,null,null,null,null,null,null,null,null,null,null,null,null,null,null,null,null,null,null,null,null,null,null,null,null,null,null,null,"CE"]
["Intangible Assets",null,{"$f":"+C140+C141","v":0},{"$f":"+D140+D141","v":0},0,400000,400000,400000,1660000,1130000,1150000,null,null,null,null,null,null,null,null,null,null,null,null,null,null,null,null,null,null,"CE"]
["Servitudes",null,{"$f":"SUMIFS(Sheet1!S71_PPPYearAmount,Sheet1!S71_SA34aCode,$AC:$AC,Sheet1!S71_A5CapexCode,$AD:$AD)","v":0},{"$f":"SUMIFS(Sheet1!S71_PPYearAmount,Sheet1!S71_SA34aCode,$AC:$AC,Sheet1!S71_A5CapexCode,$AD:$AD)","v":0},{"$f":"SUMIFS(Sheet1!S71_PYearAmount,Sheet1!S71_SA34aCode,$AC:$AC,Sheet1!S71_A5CapexCode,$AD:$AD)","v":0},{"$f":"SUMIFS(Sheet1!S71_OriginalBudAmnt,Sheet1!S71_SA34aCode,$AC:$AC,Sheet1!S71_A5CapexCode,$AD:$AD)","v":0},{"$f":"SUMIFS(Sheet1!S71_AdjustmentBudAmnt,Sheet1!S71_SA34aCode,$AC:$AC,Sheet1!S71_A5CapexCode,$AD:$AD)","v":0},{"$f":"SUMIFS(Sheet1!S71_AdjustmentBudAmnt,Sheet1!S71_SA34aCode,$AC:$AC,Sheet1!S71_A5CapexCode,$AD:$AD)","v":0},{"$f":"SUMIFS(Sheet1!S71_ASBudgetAmount,Sheet1!S71_SA34aCode,$AC:$AC,Sheet1!S71_A5CapexCode,$AD:$AD)","v":0},{"$f":"SUMIFS(Sheet1!S71_OY1BudgetAmount,Sheet1!S71_SA34aCode,$AC:$AC,Sheet1!S71_A5CapexCode,$AD:$AD)","v":0},{"$f":"SUMIFS(Sheet1!S71_OY2BudgetAmount,Sheet1!S71_SA34aCode,$AC:$AC,Sheet1!S71_A5CapexCode,$AD:$AD)","v":0},null,null,null,null,null,null,null,null,null,null,null,null,null,null,null,null,null,"1380","CE"]
["Licences and Rights",null,{"$f":"SUM(C142:C147)","v":0},{"$f":"SUM(D142:D147)","v":0},0,400000,400000,400000,1660000,1130000,1150000,null,null,null,null,null,null,null,null,null,null,null,null,null,null,null,null,null,null,"CE"]
["Water Rights",null,{"$f":"SUMIFS(Sheet1!S71_PPPYearAmount,Sheet1!S71_SA34aCode,$AC:$AC,Sheet1!S71_A5CapexCode,$AD:$AD)","v":0},{"$f":"SUMIFS(Sheet1!S71_PPYearAmount,Sheet1!S71_SA34aCode,$AC:$AC,Sheet1!S71_A5CapexCode,$AD:$AD)","v":0},{"$f":"SUMIFS(Sheet1!S71_PYearAmount,Sheet1!S71_SA34aCode,$AC:$AC,Sheet1!S71_A5CapexCode,$AD:$AD)","v":0},{"$f":"SUMIFS(Sheet1!S71_OriginalBudAmnt,Sheet1!S71_SA34aCode,$AC:$AC,Sheet1!S71_A5CapexCode,$AD:$AD)","v":0},{"$f":"SUMIFS(Sheet1!S71_AdjustmentBudAmnt,Sheet1!S71_SA34aCode,$AC:$AC,Sheet1!S71_A5CapexCode,$AD:$AD)","v":0},{"$f":"SUMIFS(Sheet1!S71_AdjustmentBudAmnt,Sheet1!S71_SA34aCode,$AC:$AC,Sheet1!S71_A5CapexCode,$AD:$AD)","v":0},{"$f":"SUMIFS(Sheet1!S71_ASBudgetAmount,Sheet1!S71_SA34aCode,$AC:$AC,Sheet1!S71_A5CapexCode,$AD:$AD)","v":0},{"$f":"SUMIFS(Sheet1!S71_OY1BudgetAmount,Sheet1!S71_SA34aCode,$AC:$AC,Sheet1!S71_A5CapexCode,$AD:$AD)","v":0},{"$f":"SUMIFS(Sheet1!S71_OY2BudgetAmount,Sheet1!S71_SA34aCode,$AC:$AC,Sheet1!S71_A5CapexCode,$AD:$AD)","v":0},null,null,null,null,null,null,null,null,null,null,null,null,null,null,null,null,null,"1400","CE"]
["Effluent Licenses",null,{"$f":"SUMIFS(Sheet1!S71_PPPYearAmount,Sheet1!S71_SA34aCode,$AC:$AC,Sheet1!S71_A5CapexCode,$AD:$AD)","v":0},{"$f":"SUMIFS(Sheet1!S71_PPYearAmount,Sheet1!S71_SA34aCode,$AC:$AC,Sheet1!S71_A5CapexCode,$AD:$AD)","v":0},{"$f":"SUMIFS(Sheet1!S71_PYearAmount,Sheet1!S71_SA34aCode,$AC:$AC,Sheet1!S71_A5CapexCode,$AD:$AD)","v":0},{"$f":"SUMIFS(Sheet1!S71_OriginalBudAmnt,Sheet1!S71_SA34aCode,$AC:$AC,Sheet1!S71_A5CapexCode,$AD:$AD)","v":0},{"$f":"SUMIFS(Sheet1!S71_AdjustmentBudAmnt,Sheet1!S71_SA34aCode,$AC:$AC,Sheet1!S71_A5CapexCode,$AD:$AD)","v":0},{"$f":"SUMIFS(Sheet1!S71_AdjustmentBudAmnt,Sheet1!S71_SA34aCode,$AC:$AC,Sheet1!S71_A5CapexCode,$AD:$AD)","v":0},{"$f":"SUMIFS(Sheet1!S71_ASBudgetAmount,Sheet1!S71_SA34aCode,$AC:$AC,Sheet1!S71_A5CapexCode,$AD:$AD)","v":0},{"$f":"SUMIFS(Sheet1!S71_OY1BudgetAmount,Sheet1!S71_SA34aCode,$AC:$AC,Sheet1!S71_A5CapexCode,$AD:$AD)","v":0},{"$f":"SUMIFS(Sheet1!S71_OY2BudgetAmount,Sheet1!S71_SA34aCode,$AC:$AC,Sheet1!S71_A5CapexCode,$AD:$AD)","v":0},null,null,null,null,null,null,null,null,null,null,null,null,null,null,null,null,null,"1410","CE"]
["Solid Waste Licenses",null,{"$f":"SUMIFS(Sheet1!S71_PPPYearAmount,Sheet1!S71_SA34aCode,$AC:$AC,Sheet1!S71_A5CapexCode,$AD:$AD)","v":0},{"$f":"SUMIFS(Sheet1!S71_PPYearAmount,Sheet1!S71_SA34aCode,$AC:$AC,Sheet1!S71_A5CapexCode,$AD:$AD)","v":0},{"$f":"SUMIFS(Sheet1!S71_PYearAmount,Sheet1!S71_SA34aCode,$AC:$AC,Sheet1!S71_A5CapexCode,$AD:$AD)","v":0},{"$f":"SUMIFS(Sheet1!S71_OriginalBudAmnt,Sheet1!S71_SA34aCode,$AC:$AC,Sheet1!S71_A5CapexCode,$AD:$AD)","v":0},{"$f":"SUMIFS(Sheet1!S71_AdjustmentBudAmnt,Sheet1!S71_SA34aCode,$AC:$AC,Sheet1!S71_A5CapexCode,$AD:$AD)","v":0},{"$f":"SUMIFS(Sheet1!S71_AdjustmentBudAmnt,Sheet1!S71_SA34aCode,$AC:$AC,Sheet1!S71_A5CapexCode,$AD:$AD)","v":0},{"$f":"SUMIFS(Sheet1!S71_ASBudgetAmount,Sheet1!S71_SA34aCode,$AC:$AC,Sheet1!S71_A5CapexCode,$AD:$AD)","v":0},{"$f":"SUMIFS(Sheet1!S71_OY1BudgetAmount,Sheet1!S71_SA34aCode,$AC:$AC,Sheet1!S71_A5CapexCode,$AD:$AD)","v":0},{"$f":"SUMIFS(Sheet1!S71_OY2BudgetAmount,Sheet1!S71_SA34aCode,$AC:$AC,Sheet1!S71_A5CapexCode,$AD:$AD)","v":0},null,null,null,null,null,null,null,null,null,null,null,null,null,null,null,null,null,"1420","CE"]
["Computer Software and Applications",null,{"$f":"SUMIFS(Sheet1!S71_PPPYearAmount,Sheet1!S71_SA34aCode,$AC:$AC,Sheet1!S71_A5CapexCode,$AD:$AD)","v":0},{"$f":"SUMIFS(Sheet1!S71_PPYearAmount,Sheet1!S71_SA34aCode,$AC:$AC,Sheet1!S71_A5CapexCode,$AD:$AD)","v":0},{"$f":"SUMIFS(Sheet1!S71_PYearAmount,Sheet1!S71_SA34aCode,$AC:$AC,Sheet1!S71_A5CapexCode,$AD:$AD)","v":0},{"$f":"SUMIFS(Sheet1!S71_OriginalBudAmnt,Sheet1!S71_SA34aCode,$AC:$AC,Sheet1!S71_A5CapexCode,$AD:$AD)","v":300000},{"$f":"SUMIFS(Sheet1!S71_AdjustmentBudAmnt,Sheet1!S71_SA34aCode,$AC:$AC,Sheet1!S71_A5CapexCode,$AD:$AD)","v":300000},{"$f":"SUMIFS(Sheet1!S71_AdjustmentBudAmnt,Sheet1!S71_SA34aCode,$AC:$AC,Sheet1!S71_A5CapexCode,$AD:$AD)","v":300000},{"$f":"SUMIFS(Sheet1!S71_ASBudgetAmount,Sheet1!S71_SA34aCode,$AC:$AC,Sheet1!S71_A5CapexCode,$AD:$AD)","v":1550000},{"$f":"SUMIFS(Sheet1!S71_OY1BudgetAmount,Sheet1!S71_SA34aCode,$AC:$AC,Sheet1!S71_A5CapexCode,$AD:$AD)","v":1010000},{"$f":"SUMIFS(Sheet1!S71_OY2BudgetAmount,Sheet1!S71_SA34aCode,$AC:$AC,Sheet1!S71_A5CapexCode,$AD:$AD)","v":1020000},null,null,null,null,null,null,null,null,null,null,null,null,null,null,null,null,null,"1430","CE"]
["Load Settlement Software Applications",null,{"$f":"SUMIFS(Sheet1!S71_PPPYearAmount,Sheet1!S71_SA34aCode,$AC:$AC,Sheet1!S71_A5CapexCode,$AD:$AD)","v":0},{"$f":"SUMIFS(Sheet1!S71_PPYearAmount,Sheet1!S71_SA34aCode,$AC:$AC,Sheet1!S71_A5CapexCode,$AD:$AD)","v":0},{"$f":"SUMIFS(Sheet1!S71_PYearAmount,Sheet1!S71_SA34aCode,$AC:$AC,Sheet1!S71_A5CapexCode,$AD:$AD)","v":0},{"$f":"SUMIFS(Sheet1!S71_OriginalBudAmnt,Sheet1!S71_SA34aCode,$AC:$AC,Sheet1!S71_A5CapexCode,$AD:$AD)","v":0},{"$f":"SUMIFS(Sheet1!S71_AdjustmentBudAmnt,Sheet1!S71_SA34aCode,$AC:$AC,Sheet1!S71_A5CapexCode,$AD:$AD)","v":0},{"$f":"SUMIFS(Sheet1!S71_AdjustmentBudAmnt,Sheet1!S71_SA34aCode,$AC:$AC,Sheet1!S71_A5CapexCode,$AD:$AD)","v":0},{"$f":"SUMIFS(Sheet1!S71_ASBudgetAmount,Sheet1!S71_SA34aCode,$AC:$AC,Sheet1!S71_A5CapexCode,$AD:$AD)","v":0},{"$f":"SUMIFS(Sheet1!S71_OY1BudgetAmount,Sheet1!S71_SA34aCode,$AC:$AC,Sheet1!S71_A5CapexCode,$AD:$AD)","v":0},{"$f":"SUMIFS(Sheet1!S71_OY2BudgetAmount,Sheet1!S71_SA34aCode,$AC:$AC,Sheet1!S71_A5CapexCode,$AD:$AD)","v":0},null,null,null,null,null,null,null,null,null,null,null,null,null,null,null,null,null,"1440","CE"]
["Unspecified",null,{"$f":"SUMIFS(Sheet1!S71_PPPYearAmount,Sheet1!S71_SA34aCode,$AC:$AC,Sheet1!S71_A5CapexCode,$AD:$AD)","v":0},{"$f":"SUMIFS(Sheet1!S71_PPYearAmount,Sheet1!S71_SA34aCode,$AC:$AC,Sheet1!S71_A5CapexCode,$AD:$AD)","v":0},{"$f":"SUMIFS(Sheet1!S71_PYearAmount,Sheet1!S71_SA34aCode,$AC:$AC,Sheet1!S71_A5CapexCode,$AD:$AD)","v":0},{"$f":"SUMIFS(Sheet1!S71_OriginalBudAmnt,Sheet1!S71_SA34aCode,$AC:$AC,Sheet1!S71_A5CapexCode,$AD:$AD)","v":100000},{"$f":"SUMIFS(Sheet1!S71_AdjustmentBudAmnt,Sheet1!S71_SA34aCode,$AC:$AC,Sheet1!S71_A5CapexCode,$AD:$AD)","v":100000},{"$f":"SUMIFS(Sheet1!S71_AdjustmentBudAmnt,Sheet1!S71_SA34aCode,$AC:$AC,Sheet1!S71_A5CapexCode,$AD:$AD)","v":100000},{"$f":"SUMIFS(Sheet1!S71_ASBudgetAmount,Sheet1!S71_SA34aCode,$AC:$AC,Sheet1!S71_A5CapexCode,$AD:$AD)","v":110000},{"$f":"SUMIFS(Sheet1!S71_OY1BudgetAmount,Sheet1!S71_SA34aCode,$AC:$AC,Sheet1!S71_A5CapexCode,$AD:$AD)","v":120000},{"$f":"SUMIFS(Sheet1!S71_OY2BudgetAmount,Sheet1!S71_SA34aCode,$AC:$AC,Sheet1!S71_A5CapexCode,$AD:$AD)","v":130000},null,null,null,null,null,null,null,null,null,null,null,null,null,null,null,null,null,"1450","CE"]
[null,null,null,null,null,null,null,null,null,null,null,null,null,null,null,null,null,null,null,null,null,null,null,null,null,null,null,null,null,"CE"]
["Computer Equipment",null,{"$f":"SUM(C150:C150)","v":4373145},8769754,9666688,2000000,600000,600000,3265000,2710000,2820000,null,null,null,null,null,null,null,null,null,null,null,null,null,null,null,null,null,null,"CE"]
["Computer Equipment",null,{"$f":"SUMIFS(Sheet1!S71_PPPYearAmount,Sheet1!S71_SA34aCode,$AC:$AC,Sheet1!S71_A5CapexCode,$AD:$AD)","v":4373145},{"$f":"SUMIFS(Sheet1!S71_PPYearAmount,Sheet1!S71_SA34aCode,$AC:$AC,Sheet1!S71_A5CapexCode,$AD:$AD)","v":8769754},{"$f":"SUMIFS(Sheet1!S71_PYearAmount,Sheet1!S71_SA34aCode,$AC:$AC,Sheet1!S71_A5CapexCode,$AD:$AD)","v":9666688},{"$f":"SUMIFS(Sheet1!S71_OriginalBudAmnt,Sheet1!S71_SA34aCode,$AC:$AC,Sheet1!S71_A5CapexCode,$AD:$AD)","v":2000000},{"$f":"SUMIFS(Sheet1!S71_AdjustmentBudAmnt,Sheet1!S71_SA34aCode,$AC:$AC,Sheet1!S71_A5CapexCode,$AD:$AD)","v":600000},{"$f":"SUMIFS(Sheet1!S71_AdjustmentBudAmnt,Sheet1!S71_SA34aCode,$AC:$AC,Sheet1!S71_A5CapexCode,$AD:$AD)","v":600000},{"$f":"SUMIFS(Sheet1!S71_ASBudgetAmount,Sheet1!S71_SA34aCode,$AC:$AC,Sheet1!S71_A5CapexCode,$AD:$AD)","v":3265000},{"$f":"SUMIFS(Sheet1!S71_OY1BudgetAmount,Sheet1!S71_SA34aCode,$AC:$AC,Sheet1!S71_A5CapexCode,$AD:$AD)","v":2710000},{"$f":"SUMIFS(Sheet1!S71_OY2BudgetAmount,Sheet1!S71_SA34aCode,$AC:$AC,Sheet1!S71_A5CapexCode,$AD:$AD)","v":2820000},null,null,null,null,null,null,null,null,null,null,null,null,null,null,null,null,null,"1470","CE"]
[null,null,null,null,null,null,null,null,null,null,null,null,null,null,null,null,null,null,null,null,null,null,null,null,null,null,null,null,null,"CE"]
["Furniture and Office Equipment",null,{"$f":"SUM(C153:C153)","v":1792045},0,0,2000000,1400000,1400000,3200000,4300000,4300000,null,null,null,null,null,null,null,null,null,null,null,null,null,null,null,null,null,null,"CE"]
["Furniture and Office Equipment",null,{"$f":"SUMIFS(Sheet1!S71_PPPYearAmount,Sheet1!S71_SA34aCode,$AC:$AC,Sheet1!S71_A5CapexCode,$AD:$AD)","v":1792045},{"$f":"SUMIFS(Sheet1!S71_PPYearAmount,Sheet1!S71_SA34aCode,$AC:$AC,Sheet1!S71_A5CapexCode,$AD:$AD)","v":0},{"$f":"SUMIFS(Sheet1!S71_PYearAmount,Sheet1!S71_SA34aCode,$AC:$AC,Sheet1!S71_A5CapexCode,$AD:$AD)","v":0},{"$f":"SUMIFS(Sheet1!S71_OriginalBudAmnt,Sheet1!S71_SA34aCode,$AC:$AC,Sheet1!S71_A5CapexCode,$AD:$AD)","v":2000000},{"$f":"SUMIFS(Sheet1!S71_AdjustmentBudAmnt,Sheet1!S71_SA34aCode,$AC:$AC,Sheet1!S71_A5CapexCode,$AD:$AD)","v":1400000},{"$f":"SUMIFS(Sheet1!S71_AdjustmentBudAmnt,Sheet1!S71_SA34aCode,$AC:$AC,Sheet1!S71_A5CapexCode,$AD:$AD)","v":1400000},{"$f":"SUMIFS(Sheet1!S71_ASBudgetAmount,Sheet1!S71_SA34aCode,$AC:$AC,Sheet1!S71_A5CapexCode,$AD:$AD)","v":3200000},{"$f":"SUMIFS(Sheet1!S71_OY1BudgetAmount,Sheet1!S71_SA34aCode,$AC:$AC,Sheet1!S71_A5CapexCode,$AD:$AD)","v":4300000},{"$f":"SUMIFS(Sheet1!S71_OY2BudgetAmount,Sheet1!S71_SA34aCode,$AC:$AC,Sheet1!S71_A5CapexCode,$AD:$AD)","v":4300000},null,null,null,null,null,null,null,null,null,null,null,null,null,null,null,null,null,"1490","CE"]
[null,null,null,null,null,null,null,null,null,null,null,null,null,null,null,null,null,null,null,null,null,null,null,null,null,null,null,null,null,"CE"]
["Machinery and Equipment",null,{"$f":"SUM(C156:C156)","v":0},0,0,10650000,13905000,13905000,20700000,18520000,18890000,null,null,null,null,null,null,null,null,null,null,null,null,null,null,null,null,null,null,"CE"]
["Machinery and Equipment",null,{"$f":"SUMIFS(Sheet1!S71_PPPYearAmount,Sheet1!S71_SA34aCode,$AC:$AC,Sheet1!S71_A5CapexCode,$AD:$AD)","v":0},{"$f":"SUMIFS(Sheet1!S71_PPYearAmount,Sheet1!S71_SA34aCode,$AC:$AC,Sheet1!S71_A5CapexCode,$AD:$AD)","v":0},{"$f":"SUMIFS(Sheet1!S71_PYearAmount,Sheet1!S71_SA34aCode,$AC:$AC,Sheet1!S71_A5CapexCode,$AD:$AD)","v":0},{"$f":"SUMIFS(Sheet1!S71_OriginalBudAmnt,Sheet1!S71_SA34aCode,$AC:$AC,Sheet1!S71_A5CapexCode,$AD:$AD)","v":10650000},{"$f":"SUMIFS(Sheet1!S71_AdjustmentBudAmnt,Sheet1!S71_SA34aCode,$AC:$AC,Sheet1!S71_A5CapexCode,$AD:$AD)","v":13905000},{"$f":"SUMIFS(Sheet1!S71_AdjustmentBudAmnt,Sheet1!S71_SA34aCode,$AC:$AC,Sheet1!S71_A5CapexCode,$AD:$AD)","v":13905000},{"$f":"SUMIFS(Sheet1!S71_ASBudgetAmount,Sheet1!S71_SA34aCode,$AC:$AC,Sheet1!S71_A5CapexCode,$AD:$AD)","v":20700000},{"$f":"SUMIFS(Sheet1!S71_OY1BudgetAmount,Sheet1!S71_SA34aCode,$AC:$AC,Sheet1!S71_A5CapexCode,$AD:$AD)","v":18520000},{"$f":"SUMIFS(Sheet1!S71_OY2BudgetAmount,Sheet1!S71_SA34aCode,$AC:$AC,Sheet1!S71_A5CapexCode,$AD:$AD)","v":18890000},null,null,null,null,null,null,null,null,null,null,null,null,null,null,null,null,null,"1510","CE"]
[null,null,null,null,null,null,null,null,null,null,null,null,null,null,null,null,null,null,null,null,null,null,null,null,null,null,null,null,null,"CE"]
["Transport Assets",null,{"$f":"SUM(C159:C159)","v":0},0,0,2500000,2000000,2000000,2000000,2100000,2200000,null,null,null,null,null,null,null,null,null,null,null,null,null,null,null,null,null,null,"CE"]
["Transport Assets",null,{"$f":"SUMIFS(Sheet1!S71_PPPYearAmount,Sheet1!S71_SA34aCode,$AC:$AC,Sheet1!S71_A5CapexCode,$AD:$AD)","v":0},{"$f":"SUMIFS(Sheet1!S71_PPYearAmount,Sheet1!S71_SA34aCode,$AC:$AC,Sheet1!S71_A5CapexCode,$AD:$AD)","v":0},{"$f":"SUMIFS(Sheet1!S71_PYearAmount,Sheet1!S71_SA34aCode,$AC:$AC,Sheet1!S71_A5CapexCode,$AD:$AD)","v":0},{"$f":"SUMIFS(Sheet1!S71_OriginalBudAmnt,Sheet1!S71_SA34aCode,$AC:$AC,Sheet1!S71_A5CapexCode,$AD:$AD)","v":2500000},{"$f":"SUMIFS(Sheet1!S71_AdjustmentBudAmnt,Sheet1!S71_SA34aCode,$AC:$AC,Sheet1!S71_A5CapexCode,$AD:$AD)","v":2000000},{"$f":"SUMIFS(Sheet1!S71_AdjustmentBudAmnt,Sheet1!S71_SA34aCode,$AC:$AC,Sheet1!S71_A5CapexCode,$AD:$AD)","v":2000000},{"$f":"SUMIFS(Sheet1!S71_ASBudgetAmount,Sheet1!S71_SA34aCode,$AC:$AC,Sheet1!S71_A5CapexCode,$AD:$AD)","v":2000000},{"$f":"SUMIFS(Sheet1!S71_OY1BudgetAmount,Sheet1!S71_SA34aCode,$AC:$AC,Sheet1!S71_A5CapexCode,$AD:$AD)","v":2100000},{"$f":"SUMIFS(Sheet1!S71_OY2BudgetAmount,Sheet1!S71_SA34aCode,$AC:$AC,Sheet1!S71_A5CapexCode,$AD:$AD)","v":2200000},null,null,null,null,null,null,null,null,null,null,null,null,null,null,null,null,null,"1530","CE"]
[null,null,null,null,null,null,null,null,null,null,null,null,null,null,null,null,null,null,null,null,null,null,null,null,null,null,null,null,null,"CE"]
["Land",null,{"$f":"SUM(C162:C162)","v":0},0,0,0,0,0,0,0,0,null,null,null,null,null,null,null,null,null,null,null,null,null,null,null,null,null,null,"CE"]
["Land",null,{"$f":"SUMIFS(Sheet1!S71_PPPYearAmount,Sheet1!S71_SA34aCode,$AC:$AC,Sheet1!S71_A5CapexCode,$AD:$AD)","v":0},{"$f":"SUMIFS(Sheet1!S71_PPYearAmount,Sheet1!S71_SA34aCode,$AC:$AC,Sheet1!S71_A5CapexCode,$AD:$AD)","v":0},{"$f":"SUMIFS(Sheet1!S71_PYearAmount,Sheet1!S71_SA34aCode,$AC:$AC,Sheet1!S71_A5CapexCode,$AD:$AD)","v":0},{"$f":"SUMIFS(Sheet1!S71_OriginalBudAmnt,Sheet1!S71_SA34aCode,$AC:$AC,Sheet1!S71_A5CapexCode,$AD:$AD)","v":0},{"$f":"SUMIFS(Sheet1!S71_AdjustmentBudAmnt,Sheet1!S71_SA34aCode,$AC:$AC,Sheet1!S71_A5CapexCode,$AD:$AD)","v":0},{"$f":"SUMIFS(Sheet1!S71_AdjustmentBudAmnt,Sheet1!S71_SA34aCode,$AC:$AC,Sheet1!S71_A5CapexCode,$AD:$AD)","v":0},{"$f":"SUMIFS(Sheet1!S71_ASBudgetAmount,Sheet1!S71_SA34aCode,$AC:$AC,Sheet1!S71_A5CapexCode,$AD:$AD)","v":0},{"$f":"SUMIFS(Sheet1!S71_OY1BudgetAmount,Sheet1!S71_SA34aCode,$AC:$AC,Sheet1!S71_A5CapexCode,$AD:$AD)","v":0},{"$f":"SUMIFS(Sheet1!S71_OY2BudgetAmount,Sheet1!S71_SA34aCode,$AC:$AC,Sheet1!S71_A5CapexCode,$AD:$AD)","v":0},null,null,null,null,null,null,null,null,null,null,null,null,null,null,null,null,null,"1550","CE"]
[null,null,null,null,null,null,null,null,null,null,null,null,null,null,null,null,null,null,null,null,null,null,null,null,null,null,null,null,null,"CE"]
["Zoo's, Marine and Non-biological Animals",null,{"$f":"SUM(C165:C165)","v":0},0,0,0,0,0,0,0,0]
["Zoo's, Marine and Non-biological Animals",null,{"$f":"SUMIFS(Sheet1!S71_PPPYearAmount,Sheet1!S71_SA34aCode,$AC:$AC,Sheet1!S71_A5CapexCode,$AD:$AD)","v":0},{"$f":"SUMIFS(Sheet1!S71_PPYearAmount,Sheet1!S71_SA34aCode,$AC:$AC,Sheet1!S71_A5CapexCode,$AD:$AD)","v":0},{"$f":"SUMIFS(Sheet1!S71_PYearAmount,Sheet1!S71_SA34aCode,$AC:$AC,Sheet1!S71_A5CapexCode,$AD:$AD)","v":0},{"$f":"SUMIFS(Sheet1!S71_OriginalBudAmnt,Sheet1!S71_SA34aCode,$AC:$AC,Sheet1!S71_A5CapexCode,$AD:$AD)","v":0},{"$f":"SUMIFS(Sheet1!S71_AdjustmentBudAmnt,Sheet1!S71_SA34aCode,$AC:$AC,Sheet1!S71_A5CapexCode,$AD:$AD)","v":0},{"$f":"SUMIFS(Sheet1!S71_AdjustmentBudAmnt,Sheet1!S71_SA34aCode,$AC:$AC,Sheet1!S71_A5CapexCode,$AD:$AD)","v":0},{"$f":"SUMIFS(Sheet1!S71_ASBudgetAmount,Sheet1!S71_SA34aCode,$AC:$AC,Sheet1!S71_A5CapexCode,$AD:$AD)","v":0},{"$f":"SUMIFS(Sheet1!S71_OY1BudgetAmount,Sheet1!S71_SA34aCode,$AC:$AC,Sheet1!S71_A5CapexCode,$AD:$AD)","v":0},{"$f":"SUMIFS(Sheet1!S71_OY2BudgetAmount,Sheet1!S71_SA34aCode,$AC:$AC,Sheet1!S71_A5CapexCode,$AD:$AD)","v":0},null,null,null,null,null,null,null,null,null,null,null,null,null,null,null,null,null,"1570"]
[]
["Living resources"," ",{"$f":"+C168+C171","v":0},{"$f":"+D168+D171","v":0},0,0,0,0,0,0,0]
["Mature"," ",{"$f":"SUM(C169:C170)","v":0},0,0,0,0,0,0,0,0]
["Policing and Protection"," ",{"$f":"SUMIFS(Sheet1!S71_PPPYearAmount,Sheet1!S71_SA34aCode,$AC:$AC,Sheet1!S71_A5CapexCode,$AD:$AD)","v":0},{"$f":"SUMIFS(Sheet1!S71_PPYearAmount,Sheet1!S71_SA34aCode,$AC:$AC,Sheet1!S71_A5CapexCode,$AD:$AD)","v":0},{"$f":"SUMIFS(Sheet1!S71_PYearAmount,Sheet1!S71_SA34aCode,$AC:$AC,Sheet1!S71_A5CapexCode,$AD:$AD)","v":0},{"$f":"SUMIFS(Sheet1!S71_OriginalBudAmnt,Sheet1!S71_SA34aCode,$AC:$AC,Sheet1!S71_A5CapexCode,$AD:$AD)","v":0},{"$f":"SUMIFS(Sheet1!S71_AdjustmentBudAmnt,Sheet1!S71_SA34aCode,$AC:$AC,Sheet1!S71_A5CapexCode,$AD:$AD)","v":0},{"$f":"SUMIFS(Sheet1!S71_AdjustmentBudAmnt,Sheet1!S71_SA34aCode,$AC:$AC,Sheet1!S71_A5CapexCode,$AD:$AD)","v":0},{"$f":"SUMIFS(Sheet1!S71_ASBudgetAmount,Sheet1!S71_SA34aCode,$AC:$AC,Sheet1!S71_A5CapexCode,$AD:$AD)","v":0},{"$f":"SUMIFS(Sheet1!S71_OY1BudgetAmount,Sheet1!S71_SA34aCode,$AC:$AC,Sheet1!S71_A5CapexCode,$AD:$AD)","v":0},{"$f":"SUMIFS(Sheet1!S71_OY2BudgetAmount,Sheet1!S71_SA34aCode,$AC:$AC,Sheet1!S71_A5CapexCode,$AD:$AD)","v":0}]
["Zoological plants and animals"," ",{"$f":"SUMIFS(Sheet1!S71_PPPYearAmount,Sheet1!S71_SA34aCode,$AC:$AC,Sheet1!S71_A5CapexCode,$AD:$AD)","v":0},{"$f":"SUMIFS(Sheet1!S71_PPYearAmount,Sheet1!S71_SA34aCode,$AC:$AC,Sheet1!S71_A5CapexCode,$AD:$AD)","v":0},{"$f":"SUMIFS(Sheet1!S71_PYearAmount,Sheet1!S71_SA34aCode,$AC:$AC,Sheet1!S71_A5CapexCode,$AD:$AD)","v":0},{"$f":"SUMIFS(Sheet1!S71_OriginalBudAmnt,Sheet1!S71_SA34aCode,$AC:$AC,Sheet1!S71_A5CapexCode,$AD:$AD)","v":0},{"$f":"SUMIFS(Sheet1!S71_AdjustmentBudAmnt,Sheet1!S71_SA34aCode,$AC:$AC,Sheet1!S71_A5CapexCode,$AD:$AD)","v":0},{"$f":"SUMIFS(Sheet1!S71_AdjustmentBudAmnt,Sheet1!S71_SA34aCode,$AC:$AC,Sheet1!S71_A5CapexCode,$AD:$AD)","v":0},{"$f":"SUMIFS(Sheet1!S71_ASBudgetAmount,Sheet1!S71_SA34aCode,$AC:$AC,Sheet1!S71_A5CapexCode,$AD:$AD)","v":0},{"$f":"SUMIFS(Sheet1!S71_OY1BudgetAmount,Sheet1!S71_SA34aCode,$AC:$AC,Sheet1!S71_A5CapexCode,$AD:$AD)","v":0},{"$f":"SUMIFS(Sheet1!S71_OY2BudgetAmount,Sheet1!S71_SA34aCode,$AC:$AC,Sheet1!S71_A5CapexCode,$AD:$AD)","v":0}]
["Immature"," ",{"$f":"SUM(C172:C173)","v":0},{"$f":"SUM(D172:D173)","v":0},0,0,0,0,0,0,0]
["Policing and Protection"," ",{"$f":"SUMIFS(Sheet1!S71_PPPYearAmount,Sheet1!S71_SA34aCode,$AC:$AC,Sheet1!S71_A5CapexCode,$AD:$AD)","v":0},{"$f":"SUMIFS(Sheet1!S71_PPYearAmount,Sheet1!S71_SA34aCode,$AC:$AC,Sheet1!S71_A5CapexCode,$AD:$AD)","v":0},{"$f":"SUMIFS(Sheet1!S71_PYearAmount,Sheet1!S71_SA34aCode,$AC:$AC,Sheet1!S71_A5CapexCode,$AD:$AD)","v":0},{"$f":"SUMIFS(Sheet1!S71_OriginalBudAmnt,Sheet1!S71_SA34aCode,$AC:$AC,Sheet1!S71_A5CapexCode,$AD:$AD)","v":0},{"$f":"SUMIFS(Sheet1!S71_AdjustmentBudAmnt,Sheet1!S71_SA34aCode,$AC:$AC,Sheet1!S71_A5CapexCode,$AD:$AD)","v":0},{"$f":"SUMIFS(Sheet1!S71_AdjustmentBudAmnt,Sheet1!S71_SA34aCode,$AC:$AC,Sheet1!S71_A5CapexCode,$AD:$AD)","v":0},{"$f":"SUMIFS(Sheet1!S71_ASBudgetAmount,Sheet1!S71_SA34aCode,$AC:$AC,Sheet1!S71_A5CapexCode,$AD:$AD)","v":0},{"$f":"SUMIFS(Sheet1!S71_OY1BudgetAmount,Sheet1!S71_SA34aCode,$AC:$AC,Sheet1!S71_A5CapexCode,$AD:$AD)","v":0},{"$f":"SUMIFS(Sheet1!S71_OY2BudgetAmount,Sheet1!S71_SA34aCode,$AC:$AC,Sheet1!S71_A5CapexCode,$AD:$AD)","v":0}]
["Zoological plants and animals"," ",{"$f":"SUMIFS(Sheet1!S71_PPPYearAmount,Sheet1!S71_SA34aCode,$AC:$AC,Sheet1!S71_A5CapexCode,$AD:$AD)","v":0},{"$f":"SUMIFS(Sheet1!S71_PPYearAmount,Sheet1!S71_SA34aCode,$AC:$AC,Sheet1!S71_A5CapexCode,$AD:$AD)","v":0},{"$f":"SUMIFS(Sheet1!S71_PYearAmount,Sheet1!S71_SA34aCode,$AC:$AC,Sheet1!S71_A5CapexCode,$AD:$AD)","v":0},{"$f":"SUMIFS(Sheet1!S71_OriginalBudAmnt,Sheet1!S71_SA34aCode,$AC:$AC,Sheet1!S71_A5CapexCode,$AD:$AD)","v":0},{"$f":"SUMIFS(Sheet1!S71_AdjustmentBudAmnt,Sheet1!S71_SA34aCode,$AC:$AC,Sheet1!S71_A5CapexCode,$AD:$AD)","v":0},{"$f":"SUMIFS(Sheet1!S71_AdjustmentBudAmnt,Sheet1!S71_SA34aCode,$AC:$AC,Sheet1!S71_A5CapexCode,$AD:$AD)","v":0},{"$f":"SUMIFS(Sheet1!S71_ASBudgetAmount,Sheet1!S71_SA34aCode,$AC:$AC,Sheet1!S71_A5CapexCode,$AD:$AD)","v":0},{"$f":"SUMIFS(Sheet1!S71_OY1BudgetAmount,Sheet1!S71_SA34aCode,$AC:$AC,Sheet1!S71_A5CapexCode,$AD:$AD)","v":0},{"$f":"SUMIFS(Sheet1!S71_OY2BudgetAmount,Sheet1!S71_SA34aCode,$AC:$AC,Sheet1!S71_A5CapexCode,$AD:$AD)","v":0}]
[""]
["Total Capital Expenditure on new assets ",1,{"$f":"C6+C74+C103+C110+C118+C136+C139+C149+C152+C155+C158+C161+C164+C167","v":125033336},{"$f":"D6+D74+D103+D110+D118+D136+D139+D149+D152+D155+D158+D161+D164+D167","v":90886334},84353044,125028688,120014337,120014337,135721999,158726968,158435856]
[]
[{"$f":"head27a","v":"References"}]
["1. Total Capital Expenditure on new assets (SA34a) plus Total Capital Expenditure on renewal of existing assets (SA34b) plus Total Capital Expenditure  on upgrading of existing assets (SA34e) must reconcile to total capital expenditure in Budgeted Capital Expenditure"]
[]
[]
["check balance",null,{"$f":"SUM(C175+SA34b!C175+SA34e!C175)-'A5-Capex'!C40","v":0},{"$f":"SUM(D175+SA34b!D175+SA34e!D175)-'A5-Capex'!D40","v":0},{"$f":"SUM(E175+SA34b!E175+SA34e!E175)-'A5-Capex'!E40","v":0},{"$f":"SUM(F175+SA34b!F175+SA34e!F175)-'A5-Capex'!F40","v":0},{"$f":"SUM(G175+SA34b!G175+SA34e!G175)-'A5-Capex'!G40","v":0},{"$f":"SUM(H175+SA34b!H175+SA34e!H175)-'A5-Capex'!H40","v":0},{"$f":"SUM(I175+SA34b!I175+SA34e!I175)-'A5-Capex'!I40","v":20583321},{"$f":"SUM(J175+SA34b!J175+SA34e!J175)-'A5-Capex'!J40","v":14535780},{"$f":"SUM(K175+SA34b!K175+SA34e!K175)-'A5-Capex'!K40","v":-13691112}]

{"sheet":"SA34b","index":80,"n_rows":180,"n_cols":30,"rows_kept":180,"cut":false,"hidden":false,"merged":[[1,5,1,7],[1,8,1,10]]}
[{"$f":"muni&\" - \"&TableA34b","v":"LIM331 Greater Giyani - Supporting Table SA34b Capital expenditure on the renewal of existing assets by asset class"}]
[{"$f":"desc","v":"Description"},{"$f":"head27","v":"Ref"},{"$f":"head1b","v":"2019/20"},{"$f":"head1A","v":"2020/21"},{"$f":"Head1","v":"2021/22"},{"$f":"Head2","v":"Current Year 2022/23"},null,null,{"$f":"Head3","v":"2023/24 Medium Term Revenue & Expenditure Framework"}]
["R thousand",1,{"$f":"Head5","v":"Audited Outcome"},{"$f":"Head5","v":"Audited Outcome"},{"$f":"Head5","v":"Audited Outcome"},{"$f":"Head6","v":"Original Budget"},{"$f":"Head7","v":"Adjusted Budget"},{"$f":"Head8","v":"Full Year Forecast"},{"$f":"Head9","v":"Budget Year 2023/24"},{"$f":"Head10","v":"Budget Year +1 2024/25"},{"$f":"Head11","v":"Budget Year +2 2025/26"}]
["Capital expenditure on renewal of existing assets by Asset Class/Sub-class"]
[]
["Infrastructure",null,{"$f":"C7+C12+C16+C26+C37+C44+C52+C62+C68","v":696000},{"$f":"D7+D12+D16+D26+D37+D44+D52+D62+D68","v":696000},696000,0,0,0,0,0,0]
["Roads Infrastructure",null,{"$f":"SUM(C8:C11)","v":696000},696000,696000,0,0,0,0,0,0]
["Roads",null,{"$f":"SUMIFS(Sheet1!S71_PPPYearAmount,Sheet1!S71_SA34Code,$AC:$AC,Sheet1!S71_A5CapexCode,$AD:$AD)","v":696000},{"$f":"SUMIFS(Sheet1!S71_PPYearAmount,Sheet1!S71_SA34Code,$AC:$AC,Sheet1!S71_A5CapexCode,$AD:$AD)","v":696000},{"$f":"SUMIFS(Sheet1!S71_PYearAmount,Sheet1!S71_SA34Code,$AC:$AC,Sheet1!S71_A5CapexCode,$AD:$AD)","v":696000},{"$f":"SUMIFS(Sheet1!S71_OriginalBudAmnt,Sheet1!S71_SA34Code,$AC:$AC,Sheet1!S71_A5CapexCode,$AD:$AD)","v":0},{"$f":"SUMIFS(Sheet1!S71_AdjustmentBudAmnt,Sheet1!S71_SA34Code,$AC:$AC,Sheet1!S71_A5CapexCode,$AD:$AD)","v":0},{"$f":"SUMIFS(Sheet1!S71_AdjustmentBudAmnt,Sheet1!S71_SA34Code,$AC:$AC,Sheet1!S71_A5CapexCode,$AD:$AD)","v":0},{"$f":"SUMIFS(Sheet1!S71_ASBudgetAmount,Sheet1!S71_SA34Code,$AC:$AC,Sheet1!S71_A5CapexCode,$AD:$AD)","v":0},{"$f":"SUMIFS(Sheet1!S71_OY1BudgetAmount,Sheet1!S71_SA34Code,$AC:$AC,Sheet1!S71_A5CapexCode,$AD:$AD)","v":0},{"$f":"SUMIFS(Sheet1!S71_OY2BudgetAmount,Sheet1!S71_SA34Code,$AC:$AC,Sheet1!S71_A5CapexCode,$AD:$AD)","v":0},null,null,null,null,null,null,null,null,null,null,null,null,null,null,null,null,null,"0120","CE"]
["Road Structures",null,{"$f":"SUMIFS(Sheet1!S71_PPPYearAmount,Sheet1!S71_SA34Code,$AC:$AC,Sheet1!S71_A5CapexCode,$AD:$AD)","v":0},{"$f":"SUMIFS(Sheet1!S71_PPYearAmount,Sheet1!S71_SA34Code,$AC:$AC,Sheet1!S71_A5CapexCode,$AD:$AD)","v":0},{"$f":"SUMIFS(Sheet1!S71_PYearAmount,Sheet1!S71_SA34Code,$AC:$AC,Sheet1!S71_A5CapexCode,$AD:$AD)","v":0},{"$f":"SUMIFS(Sheet1!S71_OriginalBudAmnt,Sheet1!S71_SA34Code,$AC:$AC,Sheet1!S71_A5CapexCode,$AD:$AD)","v":0},{"$f":"SUMIFS(Sheet1!S71_AdjustmentBudAmnt,Sheet1!S71_SA34Code,$AC:$AC,Sheet1!S71_A5CapexCode,$AD:$AD)","v":0},{"$f":"SUMIFS(Sheet1!S71_AdjustmentBudAmnt,Sheet1!S71_SA34Code,$AC:$AC,Sheet1!S71_A5CapexCode,$AD:$AD)","v":0},{"$f":"SUMIFS(Sheet1!S71_ASBudgetAmount,Sheet1!S71_SA34Code,$AC:$AC,Sheet1!S71_A5CapexCode,$AD:$AD)","v":0},{"$f":"SUMIFS(Sheet1!S71_OY1BudgetAmount,Sheet1!S71_SA34Code,$AC:$AC,Sheet1!S71_A5CapexCode,$AD:$AD)","v":0},{"$f":"SUMIFS(Sheet1!S71_OY2BudgetAmount,Sheet1!S71_SA34Code,$AC:$AC,Sheet1!S71_A5CapexCode,$AD:$AD)","v":0},null,null,null,null,null,null,null,null,null,null,null,null,null,null,null,null,null,"0130","CE"]
["Road Furniture",null,{"$f":"SUMIFS(Sheet1!S71_PPPYearAmount,Sheet1!S71_SA34Code,$AC:$AC,Sheet1!S71_A5CapexCode,$AD:$AD)","v":0},{"$f":"SUMIFS(Sheet1!S71_PPYearAmount,Sheet1!S71_SA34Code,$AC:$AC,Sheet1!S71_A5CapexCode,$AD:$AD)","v":0},{"$f":"SUMIFS(Sheet1!S71_PYearAmount,Sheet1!S71_SA34Code,$AC:$AC,Sheet1!S71_A5CapexCode,$AD:$AD)","v":0},{"$f":"SUMIFS(Sheet1!S71_OriginalBudAmnt,Sheet1!S71_SA34Code,$AC:$AC,Sheet1!S71_A5CapexCode,$AD:$AD)","v":0},{"$f":"SUMIFS(Sheet1!S71_AdjustmentBudAmnt,Sheet1!S71_SA34Code,$AC:$AC,Sheet1!S71_A5CapexCode,$AD:$AD)","v":0},{"$f":"SUMIFS(Sheet1!S71_AdjustmentBudAmnt,Sheet1!S71_SA34Code,$AC:$AC,Sheet1!S71_A5CapexCode,$AD:$AD)","v":0},{"$f":"SUMIFS(Sheet1!S71_ASBudgetAmount,Sheet1!S71_SA34Code,$AC:$AC,Sheet1!S71_A5CapexCode,$AD:$AD)","v":0},{"$f":"SUMIFS(Sheet1!S71_OY1BudgetAmount,Sheet1!S71_SA34Code,$AC:$AC,Sheet1!S71_A5CapexCode,$AD:$AD)","v":0},{"$f":"SUMIFS(Sheet1!S71_OY2BudgetAmount,Sheet1!S71_SA34Code,$AC:$AC,Sheet1!S71_A5CapexCode,$AD:$AD)","v":0},null,null,null,null,null,null,null,null,null,null,null,null,null,null,null,null,null,"0140","CE"]
["Capital Spares",null,{"$f":"SUMIFS(Sheet1!S71_PPPYearAmount,Sheet1!S71_SA34Code,$AC:$AC,Sheet1!S71_A5CapexCode,$AD:$AD)","v":0},{"$f":"SUMIFS(Sheet1!S71_PPYearAmount,Sheet1!S71_SA34Code,$AC:$AC,Sheet1!S71_A5CapexCode,$AD:$AD)","v":0},{"$f":"SUMIFS(Sheet1!S71_PYearAmount,Sheet1!S71_SA34Code,$AC:$AC,Sheet1!S71_A5CapexCode,$AD:$AD)","v":0},{"$f":"SUMIFS(Sheet1!S71_OriginalBudAmnt,Sheet1!S71_SA34Code,$AC:$AC,Sheet1!S71_A5CapexCode,$AD:$AD)","v":0},{"$f":"SUMIFS(Sheet1!S71_AdjustmentBudAmnt,Sheet1!S71_SA34Code,$AC:$AC,Sheet1!S71_A5CapexCode,$AD:$AD)","v":0},{"$f":"SUMIFS(Sheet1!S71_AdjustmentBudAmnt,Sheet1!S71_SA34Code,$AC:$AC,Sheet1!S71_A5CapexCode,$AD:$AD)","v":0},{"$f":"SUMIFS(Sheet1!S71_ASBudgetAmount,Sheet1!S71_SA34Code,$AC:$AC,Sheet1!S71_A5CapexCode,$AD:$AD)","v":0},{"$f":"SUMIFS(Sheet1!S71_OY1BudgetAmount,Sheet1!S71_SA34Code,$AC:$AC,Sheet1!S71_A5CapexCode,$AD:$AD)","v":0},{"$f":"SUMIFS(Sheet1!S71_OY2BudgetAmount,Sheet1!S71_SA34Code,$AC:$AC,Sheet1!S71_A5CapexCode,$AD:$AD)","v":0},null,null,null,null,null,null,null,null,null,null,null,null,null,null,null,null,null,"0150","CE"]
["Storm water Infrastructure",null,{"$f":"SUM(C13:C15)","v":0},{"$f":"SUM(D13:D15)","v":0},0,0,0,0,0,0,0,null,null,null,null,null,null,null,null,null,null,null,null,null,null,null,null,null,null,"CE"]
["Drainage Collection",null,{"$f":"SUMIFS(Sheet1!S71_PPPYearAmount,Sheet1!S71_SA34Code,$AC:$AC,Sheet1!S71_A5CapexCode,$AD:$AD)","v":0},{"$f":"SUMIFS(Sheet1!S71_PPYearAmount,Sheet1!S71_SA34Code,$AC:$AC,Sheet1!S71_A5CapexCode,$AD:$AD)","v":0},{"$f":"SUMIFS(Sheet1!S71_PYearAmount,Sheet1!S71_SA34Code,$AC:$AC,Sheet1!S71_A5CapexCode,$AD:$AD)","v":0},{"$f":"SUMIFS(Sheet1!S71_OriginalBudAmnt,Sheet1!S71_SA34Code,$AC:$AC,Sheet1!S71_A5CapexCode,$AD:$AD)","v":0},{"$f":"SUMIFS(Sheet1!S71_AdjustmentBudAmnt,Sheet1!S71_SA34Code,$AC:$AC,Sheet1!S71_A5CapexCode,$AD:$AD)","v":0},{"$f":"SUMIFS(Sheet1!S71_AdjustmentBudAmnt,Sheet1!S71_SA34Code,$AC:$AC,Sheet1!S71_A5CapexCode,$AD:$AD)","v":0},{"$f":"SUMIFS(Sheet1!S71_ASBudgetAmount,Sheet1!S71_SA34Code,$AC:$AC,Sheet1!S71_A5CapexCode,$AD:$AD)","v":0},{"$f":"SUMIFS(Sheet1!S71_OY1BudgetAmount,Sheet1!S71_SA34Code,$AC:$AC,Sheet1!S71_A5CapexCode,$AD:$AD)","v":0},{"$f":"SUMIFS(Sheet1!S71_OY2BudgetAmount,Sheet1!S71_SA34Code,$AC:$AC,Sheet1!S71_A5CapexCode,$AD:$AD)","v":0},null,null,null,null,null,null,null,null,null,null,null,null,null,null,null,null,null,"0170","CE"]
["Storm water Conveyance",null,{"$f":"SUMIFS(Sheet1!S71_PPPYearAmount,Sheet1!S71_SA34Code,$AC:$AC,Sheet1!S71_A5CapexCode,$AD:$AD)","v":0},{"$f":"SUMIFS(Sheet1!S71_PPYearAmount,Sheet1!S71_SA34Code,$AC:$AC,Sheet1!S71_A5CapexCode,$AD:$AD)","v":0},{"$f":"SUMIFS(Sheet1!S71_PYearAmount,Sheet1!S71_SA34Code,$AC:$AC,Sheet1!S71_A5CapexCode,$AD:$AD)","v":0},{"$f":"SUMIFS(Sheet1!S71_OriginalBudAmnt,Sheet1!S71_SA34Code,$AC:$AC,Sheet1!S71_A5CapexCode,$AD:$AD)","v":0},{"$f":"SUMIFS(Sheet1!S71_AdjustmentBudAmnt,Sheet1!S71_SA34Code,$AC:$AC,Sheet1!S71_A5CapexCode,$AD:$AD)","v":0},{"$f":"SUMIFS(Sheet1!S71_AdjustmentBudAmnt,Sheet1!S71_SA34Code,$AC:$AC,Sheet1!S71_A5CapexCode,$AD:$AD)","v":0},{"$f":"SUMIFS(Sheet1!S71_ASBudgetAmount,Sheet1!S71_SA34Code,$AC:$AC,Sheet1!S71_A5CapexCode,$AD:$AD)","v":0},{"$f":"SUMIFS(Sheet1!S71_OY1BudgetAmount,Sheet1!S71_SA34Code,$AC:$AC,Sheet1!S71_A5CapexCode,$AD:$AD)","v":0},{"$f":"SUMIFS(Sheet1!S71_OY2BudgetAmount,Sheet1!S71_SA34Code,$AC:$AC,Sheet1!S71_A5CapexCode,$AD:$AD)","v":0},null,null,null,null,null,null,null,null,null,null,null,null,null,null,null,null,null,"0180","CE"]
["Attenuation",null,{"$f":"SUMIFS(Sheet1!S71_PPPYearAmount,Sheet1!S71_SA34Code,$AC:$AC,Sheet1!S71_A5CapexCode,$AD:$AD)","v":0},{"$f":"SUMIFS(Sheet1!S71_PPYearAmount,Sheet1!S71_SA34Code,$AC:$AC,Sheet1!S71_A5CapexCode,$AD:$AD)","v":0},{"$f":"SUMIFS(Sheet1!S71_PYearAmount,Sheet1!S71_SA34Code,$AC:$AC,Sheet1!S71_A5CapexCode,$AD:$AD)","v":0},{"$f":"SUMIFS(Sheet1!S71_OriginalBudAmnt,Sheet1!S71_SA34Code,$AC:$AC,Sheet1!S71_A5CapexCode,$AD:$AD)","v":0},{"$f":"SUMIFS(Sheet1!S71_AdjustmentBudAmnt,Sheet1!S71_SA34Code,$AC:$AC,Sheet1!S71_A5CapexCode,$AD:$AD)","v":0},{"$f":"SUMIFS(Sheet1!S71_AdjustmentBudAmnt,Sheet1!S71_SA34Code,$AC:$AC,Sheet1!S71_A5CapexCode,$AD:$AD)","v":0},{"$f":"SUMIFS(Sheet1!S71_ASBudgetAmount,Sheet1!S71_SA34Code,$AC:$AC,Sheet1!S71_A5CapexCode,$AD:$AD)","v":0},{"$f":"SUMIFS(Sheet1!S71_OY1BudgetAmount,Sheet1!S71_SA34Code,$AC:$AC,Sheet1!S71_A5CapexCode,$AD:$AD)","v":0},{"$f":"SUMIFS(Sheet1!S71_OY2BudgetAmount,Sheet1!S71_SA34Code,$AC:$AC,Sheet1!S71_A5CapexCode,$AD:$AD)","v":0},null,null,null,null,null,null,null,null,null,null,null,null,null,null,null,null,null,"0190","CE"]
["Electrical Infrastructure",null,{"$f":"SUM(C17:C25)","v":0},0,0,0,0,0,0,0,0,null,null,null,null,null,null,null,null,null,null,null,null,null,null,null,null,null,null,"CE"]
["Power Plants",null,{"$f":"SUMIFS(Sheet1!S71_PPPYearAmount,Sheet1!S71_SA34Code,$AC:$AC,Sheet1!S71_A5CapexCode,$AD:$AD)","v":0},{"$f":"SUMIFS(Sheet1!S71_PPYearAmount,Sheet1!S71_SA34Code,$AC:$AC,Sheet1!S71_A5CapexCode,$AD:$AD)","v":0},{"$f":"SUMIFS(Sheet1!S71_PYearAmount,Sheet1!S71_SA34Code,$AC:$AC,Sheet1!S71_A5CapexCode,$AD:$AD)","v":0},{"$f":"SUMIFS(Sheet1!S71_OriginalBudAmnt,Sheet1!S71_SA34Code,$AC:$AC,Sheet1!S71_A5CapexCode,$AD:$AD)","v":0},{"$f":"SUMIFS(Sheet1!S71_AdjustmentBudAmnt,Sheet1!S71_SA34Code,$AC:$AC,Sheet1!S71_A5CapexCode,$AD:$AD)","v":0},{"$f":"SUMIFS(Sheet1!S71_AdjustmentBudAmnt,Sheet1!S71_SA34Code,$AC:$AC,Sheet1!S71_A5CapexCode,$AD:$AD)","v":0},{"$f":"SUMIFS(Sheet1!S71_ASBudgetAmount,Sheet1!S71_SA34Code,$AC:$AC,Sheet1!S71_A5CapexCode,$AD:$AD)","v":0},{"$f":"SUMIFS(Sheet1!S71_OY1BudgetAmount,Sheet1!S71_SA34Code,$AC:$AC,Sheet1!S71_A5CapexCode,$AD:$AD)","v":0},{"$f":"SUMIFS(Sheet1!S71_OY2BudgetAmount,Sheet1!S71_SA34Code,$AC:$AC,Sheet1!S71_A5CapexCode,$AD:$AD)","v":0},null,null,null,null,null,null,null,null,null,null,null,null,null,null,null,null,null,"0210","CE"]
["HV Substations",null,{"$f":"SUMIFS(Sheet1!S71_PPPYearAmount,Sheet1!S71_SA34Code,$AC:$AC,Sheet1!S71_A5CapexCode,$AD:$AD)","v":0},{"$f":"SUMIFS(Sheet1!S71_PPYearAmount,Sheet1!S71_SA34Code,$AC:$AC,Sheet1!S71_A5CapexCode,$AD:$AD)","v":0},{"$f":"SUMIFS(Sheet1!S71_PYearAmount,Sheet1!S71_SA34Code,$AC:$AC,Sheet1!S71_A5CapexCode,$AD:$AD)","v":0},{"$f":"SUMIFS(Sheet1!S71_OriginalBudAmnt,Sheet1!S71_SA34Code,$AC:$AC,Sheet1!S71_A5CapexCode,$AD:$AD)","v":0},{"$f":"SUMIFS(Sheet1!S71_AdjustmentBudAmnt,Sheet1!S71_SA34Code,$AC:$AC,Sheet1!S71_A5CapexCode,$AD:$AD)","v":0},{"$f":"SUMIFS(Sheet1!S71_AdjustmentBudAmnt,Sheet1!S71_SA34Code,$AC:$AC,Sheet1!S71_A5CapexCode,$AD:$AD)","v":0},{"$f":"SUMIFS(Sheet1!S71_ASBudgetAmount,Sheet1!S71_SA34Code,$AC:$AC,Sheet1!S71_A5CapexCode,$AD:$AD)","v":0},{"$f":"SUMIFS(Sheet1!S71_OY1BudgetAmount,Sheet1!S71_SA34Code,$AC:$AC,Sheet1!S71_A5CapexCode,$AD:$AD)","v":0},{"$f":"SUMIFS(Sheet1!S71_OY2BudgetAmount,Sheet1!S71_SA34Code,$AC:$AC,Sheet1!S71_A5CapexCode,$AD:$AD)","v":0},null,null,null,null,null,null,null,null,null,null,null,null,null,null,null,null,null,"0220","CE"]
["HV Switching Station",null,{"$f":"SUMIFS(Sheet1!S71_PPPYearAmount,Sheet1!S71_SA34Code,$AC:$AC,Sheet1!S71_A5CapexCode,$AD:$AD)","v":0},{"$f":"SUMIFS(Sheet1!S71_PPYearAmount,Sheet1!S71_SA34Code,$AC:$AC,Sheet1!S71_A5CapexCode,$AD:$AD)","v":0},{"$f":"SUMIFS(Sheet1!S71_PYearAmount,Sheet1!S71_SA34Code,$AC:$AC,Sheet1!S71_A5CapexCode,$AD:$AD)","v":0},{"$f":"SUMIFS(Sheet1!S71_OriginalBudAmnt,Sheet1!S71_SA34Code,$AC:$AC,Sheet1!S71_A5CapexCode,$AD:$AD)","v":0},{"$f":"SUMIFS(Sheet1!S71_AdjustmentBudAmnt,Sheet1!S71_SA34Code,$AC:$AC,Sheet1!S71_A5CapexCode,$AD:$AD)","v":0},{"$f":"SUMIFS(Sheet1!S71_AdjustmentBudAmnt,Sheet1!S71_SA34Code,$AC:$AC,Sheet1!S71_A5CapexCode,$AD:$AD)","v":0},{"$f":"SUMIFS(Sheet1!S71_ASBudgetAmount,Sheet1!S71_SA34Code,$AC:$AC,Sheet1!S71_A5CapexCode,$AD:$AD)","v":0},{"$f":"SUMIFS(Sheet1!S71_OY1BudgetAmount,Sheet1!S71_SA34Code,$AC:$AC,Sheet1!S71_A5CapexCode,$AD:$AD)","v":0},{"$f":"SUMIFS(Sheet1!S71_OY2BudgetAmount,Sheet1!S71_SA34Code,$AC:$AC,Sheet1!S71_A5CapexCode,$AD:$AD)","v":0},null,null,null,null,null,null,null,null,null,null,null,null,null,null,null,null,null,"0230","CE"]
["HV Transmission Conductors",null,{"$f":"SUMIFS(Sheet1!S71_PPPYearAmount,Sheet1!S71_SA34Code,$AC:$AC,Sheet1!S71_A5CapexCode,$AD:$AD)","v":0},{"$f":"SUMIFS(Sheet1!S71_PPYearAmount,Sheet1!S71_SA34Code,$AC:$AC,Sheet1!S71_A5CapexCode,$AD:$AD)","v":0},{"$f":"SUMIFS(Sheet1!S71_PYearAmount,Sheet1!S71_SA34Code,$AC:$AC,Sheet1!S71_A5CapexCode,$AD:$AD)","v":0},{"$f":"SUMIFS(Sheet1!S71_OriginalBudAmnt,Sheet1!S71_SA34Code,$AC:$AC,Sheet1!S71_A5CapexCode,$AD:$AD)","v":0},{"$f":"SUMIFS(Sheet1!S71_AdjustmentBudAmnt,Sheet1!S71_SA34Code,$AC:$AC,Sheet1!S71_A5CapexCode,$AD:$AD)","v":0},{"$f":"SUMIFS(Sheet1!S71_AdjustmentBudAmnt,Sheet1!S71_SA34Code,$AC:$AC,Sheet1!S71_A5CapexCode,$AD:$AD)","v":0},{"$f":"SUMIFS(Sheet1!S71_ASBudgetAmount,Sheet1!S71_SA34Code,$AC:$AC,Sheet1!S71_A5CapexCode,$AD:$AD)","v":0},{"$f":"SUMIFS(Sheet1!S71_OY1BudgetAmount,Sheet1!S71_SA34Code,$AC:$AC,Sheet1!S71_A5CapexCode,$AD:$AD)","v":0},{"$f":"SUMIFS(Sheet1!S71_OY2BudgetAmount,Sheet1!S71_SA34Code,$AC:$AC,Sheet1!S71_A5CapexCode,$AD:$AD)","v":0},null,null,null,null,null,null,null,null,null,null,null,null,null,null,null,null,null,"0240","CE"]
["MV Substations",null,{"$f":"SUMIFS(Sheet1!S71_PPPYearAmount,Sheet1!S71_SA34Code,$AC:$AC,Sheet1!S71_A5CapexCode,$AD:$AD)","v":0},{"$f":"SUMIFS(Sheet1!S71_PPYearAmount,Sheet1!S71_SA34Code,$AC:$AC,Sheet1!S71_A5CapexCode,$AD:$AD)","v":0},{"$f":"SUMIFS(Sheet1!S71_PYearAmount,Sheet1!S71_SA34Code,$AC:$AC,Sheet1!S71_A5CapexCode,$AD:$AD)","v":0},{"$f":"SUMIFS(Sheet1!S71_OriginalBudAmnt,Sheet1!S71_SA34Code,$AC:$AC,Sheet1!S71_A5CapexCode,$AD:$AD)","v":0},{"$f":"SUMIFS(Sheet1!S71_AdjustmentBudAmnt,Sheet1!S71_SA34Code,$AC:$AC,Sheet1!S71_A5CapexCode,$AD:$AD)","v":0},{"$f":"SUMIFS(Sheet1!S71_AdjustmentBudAmnt,Sheet1!S71_SA34Code,$AC:$AC,Sheet1!S71_A5CapexCode,$AD:$AD)","v":0},{"$f":"SUMIFS(Sheet1!S71_ASBudgetAmount,Sheet1!S71_SA34Code,$AC:$AC,Sheet1!S71_A5CapexCode,$AD:$AD)","v":0},{"$f":"SUMIFS(Sheet1!S71_OY1BudgetAmount,Sheet1!S71_SA34Code,$AC:$AC,Sheet1!S71_A5CapexCode,$AD:$AD)","v":0},{"$f":"SUMIFS(Sheet1!S71_OY2BudgetAmount,Sheet1!S71_SA34Code,$AC:$AC,Sheet1!S71_A5CapexCode,$AD:$AD)","v":0},null,null,null,null,null,null,null,null,null,null,null,null,null,null,null,null,null,"0250","CE"]
["MV Switching Stations",null,{"$f":"SUMIFS(Sheet1!S71_PPPYearAmount,Sheet1!S71_SA34Code,$AC:$AC,Sheet1!S71_A5CapexCode,$AD:$AD)","v":0},{"$f":"SUMIFS(Sheet1!S71_PPYearAmount,Sheet1!S71_SA34Code,$AC:$AC,Sheet1!S71_A5CapexCode,$AD:$AD)","v":0},{"$f":"SUMIFS(Sheet1!S71_PYearAmount,Sheet1!S71_SA34Code,$AC:$AC,Sheet1!S71_A5CapexCode,$AD:$AD)","v":0},{"$f":"SUMIFS(Sheet1!S71_OriginalBudAmnt,Sheet1!S71_SA34Code,$AC:$AC,Sheet1!S71_A5CapexCode,$AD:$AD)","v":0},{"$f":"SUMIFS(Sheet1!S71_AdjustmentBudAmnt,Sheet1!S71_SA34Code,$AC:$AC,Sheet1!S71_A5CapexCode,$AD:$AD)","v":0},{"$f":"SUMIFS(Sheet1!S71_AdjustmentBudAmnt,Sheet1!S71_SA34Code,$AC:$AC,Sheet1!S71_A5CapexCode,$AD:$AD)","v":0},{"$f":"SUMIFS(Sheet1!S71_ASBudgetAmount,Sheet1!S71_SA34Code,$AC:$AC,Sheet1!S71_A5CapexCode,$AD:$AD)","v":0},{"$f":"SUMIFS(Sheet1!S71_OY1BudgetAmount,Sheet1!S71_SA34Code,$AC:$AC,Sheet1!S71_A5CapexCode,$AD:$AD)","v":0},{"$f":"SUMIFS(Sheet1!S71_OY2BudgetAmount,Sheet1!S71_SA34Code,$AC:$AC,Sheet1!S71_A5CapexCode,$AD:$AD)","v":0},null,null,null,null,null,null,null,null,null,null,null,null,null,null,null,null,null,"0260","CE"]
["MV Networks",null,{"$f":"SUMIFS(Sheet1!S71_PPPYearAmount,Sheet1!S71_SA34Code,$AC:$AC,Sheet1!S71_A5CapexCode,$AD:$AD)","v":0},{"$f":"SUMIFS(Sheet1!S71_PPYearAmount,Sheet1!S71_SA34Code,$AC:$AC,Sheet1!S71_A5CapexCode,$AD:$AD)","v":0},{"$f":"SUMIFS(Sheet1!S71_PYearAmount,Sheet1!S71_SA34Code,$AC:$AC,Sheet1!S71_A5CapexCode,$AD:$AD)","v":0},{"$f":"SUMIFS(Sheet1!S71_OriginalBudAmnt,Sheet1!S71_SA34Code,$AC:$AC,Sheet1!S71_A5CapexCode,$AD:$AD)","v":0},{"$f":"SUMIFS(Sheet1!S71_AdjustmentBudAmnt,Sheet1!S71_SA34Code,$AC:$AC,Sheet1!S71_A5CapexCode,$AD:$AD)","v":0},{"$f":"SUMIFS(Sheet1!S71_AdjustmentBudAmnt,Sheet1!S71_SA34Code,$AC:$AC,Sheet1!S71_A5CapexCode,$AD:$AD)","v":0},{"$f":"SUMIFS(Sheet1!S71_ASBudgetAmount,Sheet1!S71_SA34Code,$AC:$AC,Sheet1!S71_A5CapexCode,$AD:$AD)","v":0},{"$f":"SUMIFS(Sheet1!S71_OY1BudgetAmount,Sheet1!S71_SA34Code,$AC:$AC,Sheet1!S71_A5CapexCode,$AD:$AD)","v":0},{"$f":"SUMIFS(Sheet1!S71_OY2BudgetAmount,Sheet1!S71_SA34Code,$AC:$AC,Sheet1!S71_A5CapexCode,$AD:$AD)","v":0},null,null,null,null,null,null,null,null,null,null,null,null,null,null,null,null,null,"0270","CE"]
["LV Networks",null,{"$f":"SUMIFS(Sheet1!S71_PPPYearAmount,Sheet1!S71_SA34Code,$AC:$AC,Sheet1!S71_A5CapexCode,$AD:$AD)","v":0},{"$f":"SUMIFS(Sheet1!S71_PPYearAmount,Sheet1!S71_SA34Code,$AC:$AC,Sheet1!S71_A5CapexCode,$AD:$AD)","v":0},{"$f":"SUMIFS(Sheet1!S71_PYearAmount,Sheet1!S71_SA34Code,$AC:$AC,Sheet1!S71_A5CapexCode,$AD:$AD)","v":0},{"$f":"SUMIFS(Sheet1!S71_OriginalBudAmnt,Sheet1!S71_SA34Code,$AC:$AC,Sheet1!S71_A5CapexCode,$AD:$AD)","v":0},{"$f":"SUMIFS(Sheet1!S71_AdjustmentBudAmnt,Sheet1!S71_SA34Code,$AC:$AC,Sheet1!S71_A5CapexCode,$AD:$AD)","v":0},{"$f":"SUMIFS(Sheet1!S71_AdjustmentBudAmnt,Sheet1!S71_SA34Code,$AC:$AC,Sheet1!S71_A5CapexCode,$AD:$AD)","v":0},{"$f":"SUMIFS(Sheet1!S71_ASBudgetAmount,Sheet1!S71_SA34Code,$AC:$AC,Sheet1!S71_A5CapexCode,$AD:$AD)","v":0},{"$f":"SUMIFS(Sheet1!S71_OY1BudgetAmount,Sheet1!S71_SA34Code,$AC:$AC,Sheet1!S71_A5CapexCode,$AD:$AD)","v":0},{"$f":"SUMIFS(Sheet1!S71_OY2BudgetAmount,Sheet1!S71_SA34Code,$AC:$AC,Sheet1!S71_A5CapexCode,$AD:$AD)","v":0},null,null,null,null,null,null,null,null,null,null,null,null,null,null,null,null,null,"0280","CE"]
["Capital Spares",null,{"$f":"SUMIFS(Sheet1!S71_PPPYearAmount,Sheet1!S71_SA34Code,$AC:$AC,Sheet1!S71_A5CapexCode,$AD:$AD)","v":0},{"$f":"SUMIFS(Sheet1!S71_PPYearAmount,Sheet1!S71_SA34Code,$AC:$AC,Sheet1!S71_A5CapexCode,$AD:$AD)","v":0},{"$f":"SUMIFS(Sheet1!S71_PYearAmount,Sheet1!S71_SA34Code,$AC:$AC,Sheet1!S71_A5CapexCode,$AD:$AD)","v":0},{"$f":"SUMIFS(Sheet1!S71_OriginalBudAmnt,Sheet1!S71_SA34Code,$AC:$AC,Sheet1!S71_A5CapexCode,$AD:$AD)","v":0},{"$f":"SUMIFS(Sheet1!S71_AdjustmentBudAmnt,Sheet1!S71_SA34Code,$AC:$AC,Sheet1!S71_A5CapexCode,$AD:$AD)","v":0},{"$f":"SUMIFS(Sheet1!S71_AdjustmentBudAmnt,Sheet1!S71_SA34Code,$AC:$AC,Sheet1!S71_A5CapexCode,$AD:$AD)","v":0},{"$f":"SUMIFS(Sheet1!S71_ASBudgetAmount,Sheet1!S71_SA34Code,$AC:$AC,Sheet1!S71_A5CapexCode,$AD:$AD)","v":0},{"$f":"SUMIFS(Sheet1!S71_OY1BudgetAmount,Sheet1!S71_SA34Code,$AC:$AC,Sheet1!S71_A5CapexCode,$AD:$AD)","v":0},{"$f":"SUMIFS(Sheet1!S71_OY2BudgetAmount,Sheet1!S71_SA34Code,$AC:$AC,Sheet1!S71_A5CapexCode,$AD:$AD)","v":0},null,null,null,null,null,null,null,null,null,null,null,null,null,null,null,null,null,"0290","CE"]
["Water Supply Infrastructure",null,{"$f":"SUM(C27:C36)","v":0},{"$f":"SUM(D27:D36)","v":0},0,0,0,0,0,0,0,null,null,null,null,null,null,null,null,null,null,null,null,null,null,null,null,null,null,"CE"]
["Dams and Weirs",null,{"$f":"SUMIFS(Sheet1!S71_PPPYearAmount,Sheet1!S71_SA34Code,$AC:$AC,Sheet1!S71_A5CapexCode,$AD:$AD)","v":0},{"$f":"SUMIFS(Sheet1!S71_PPYearAmount,Sheet1!S71_SA34Code,$AC:$AC,Sheet1!S71_A5CapexCode,$AD:$AD)","v":0},{"$f":"SUMIFS(Sheet1!S71_PYearAmount,Sheet1!S71_SA34Code,$AC:$AC,Sheet1!S71_A5CapexCode,$AD:$AD)","v":0},{"$f":"SUMIFS(Sheet1!S71_OriginalBudAmnt,Sheet1!S71_SA34Code,$AC:$AC,Sheet1!S71_A5CapexCode,$AD:$AD)","v":0},{"$f":"SUMIFS(Sheet1!S71_AdjustmentBudAmnt,Sheet1!S71_SA34Code,$AC:$AC,Sheet1!S71_A5CapexCode,$AD:$AD)","v":0},{"$f":"SUMIFS(Sheet1!S71_AdjustmentBudAmnt,Sheet1!S71_SA34Code,$AC:$AC,Sheet1!S71_A5CapexCode,$AD:$AD)","v":0},{"$f":"SUMIFS(Sheet1!S71_ASBudgetAmount,Sheet1!S71_SA34Code,$AC:$AC,Sheet1!S71_A5CapexCode,$AD:$AD)","v":0},{"$f":"SUMIFS(Sheet1!S71_OY1BudgetAmount,Sheet1!S71_SA34Code,$AC:$AC,Sheet1!S71_A5CapexCode,$AD:$AD)","v":0},{"$f":"SUMIFS(Sheet1!S71_OY2BudgetAmount,Sheet1!S71_SA34Code,$AC:$AC,Sheet1!S71_A5CapexCode,$AD:$AD)","v":0},null,null,null,null,null,null,null,null,null,null,null,null,null,null,null,null,null,"0310","CE"]
["Boreholes",null,{"$f":"SUMIFS(Sheet1!S71_PPPYearAmount,Sheet1!S71_SA34Code,$AC:$AC,Sheet1!S71_A5CapexCode,$AD:$AD)","v":0},{"$f":"SUMIFS(Sheet1!S71_PPYearAmount,Sheet1!S71_SA34Code,$AC:$AC,Sheet1!S71_A5CapexCode,$AD:$AD)","v":0},{"$f":"SUMIFS(Sheet1!S71_PYearAmount,Sheet1!S71_SA34Code,$AC:$AC,Sheet1!S71_A5CapexCode,$AD:$AD)","v":0},{"$f":"SUMIFS(Sheet1!S71_OriginalBudAmnt,Sheet1!S71_SA34Code,$AC:$AC,Sheet1!S71_A5CapexCode,$AD:$AD)","v":0},{"$f":"SUMIFS(Sheet1!S71_AdjustmentBudAmnt,Sheet1!S71_SA34Code,$AC:$AC,Sheet1!S71_A5CapexCode,$AD:$AD)","v":0},{"$f":"SUMIFS(Sheet1!S71_AdjustmentBudAmnt,Sheet1!S71_SA34Code,$AC:$AC,Sheet1!S71_A5CapexCode,$AD:$AD)","v":0},{"$f":"SUMIFS(Sheet1!S71_ASBudgetAmount,Sheet1!S71_SA34Code,$AC:$AC,Sheet1!S71_A5CapexCode,$AD:$AD)","v":0},{"$f":"SUMIFS(Sheet1!S71_OY1BudgetAmount,Sheet1!S71_SA34Code,$AC:$AC,Sheet1!S71_A5CapexCode,$AD:$AD)","v":0},{"$f":"SUMIFS(Sheet1!S71_OY2BudgetAmount,Sheet1!S71_SA34Code,$AC:$AC,Sheet1!S71_A5CapexCode,$AD:$AD)","v":0},null,null,null,null,null,null,null,null,null,null,null,null,null,null,null,null,null,"0320","CE"]
["Reservoirs",null,{"$f":"SUMIFS(Sheet1!S71_PPPYearAmount,Sheet1!S71_SA34Code,$AC:$AC,Sheet1!S71_A5CapexCode,$AD:$AD)","v":0},{"$f":"SUMIFS(Sheet1!S71_PPYearAmount,Sheet1!S71_SA34Code,$AC:$AC,Sheet1!S71_A5CapexCode,$AD:$AD)","v":0},{"$f":"SUMIFS(Sheet1!S71_PYearAmount,Sheet1!S71_SA34Code,$AC:$AC,Sheet1!S71_A5CapexCode,$AD:$AD)","v":0},{"$f":"SUMIFS(Sheet1!S71_OriginalBudAmnt,Sheet1!S71_SA34Code,$AC:$AC,Sheet1!S71_A5CapexCode,$AD:$AD)","v":0},{"$f":"SUMIFS(Sheet1!S71_AdjustmentBudAmnt,Sheet1!S71_SA34Code,$AC:$AC,Sheet1!S71_A5CapexCode,$AD:$AD)","v":0},{"$f":"SUMIFS(Sheet1!S71_AdjustmentBudAmnt,Sheet1!S71_SA34Code,$AC:$AC,Sheet1!S71_A5CapexCode,$AD:$AD)","v":0},{"$f":"SUMIFS(Sheet1!S71_ASBudgetAmount,Sheet1!S71_SA34Code,$AC:$AC,Sheet1!S71_A5CapexCode,$AD:$AD)","v":0},{"$f":"SUMIFS(Sheet1!S71_OY1BudgetAmount,Sheet1!S71_SA34Code,$AC:$AC,Sheet1!S71_A5CapexCode,$AD:$AD)","v":0},{"$f":"SUMIFS(Sheet1!S71_OY2BudgetAmount,Sheet1!S71_SA34Code,$AC:$AC,Sheet1!S71_A5CapexCode,$AD:$AD)","v":0},null,null,null,null,null,null,null,null,null,null,null,null,null,null,null,null,null,"0330","CE"]
["Pump Stations",null,{"$f":"SUMIFS(Sheet1!S71_PPPYearAmount,Sheet1!S71_SA34Code,$AC:$AC,Sheet1!S71_A5CapexCode,$AD:$AD)","v":0},{"$f":"SUMIFS(Sheet1!S71_PPYearAmount,Sheet1!S71_SA34Code,$AC:$AC,Sheet1!S71_A5CapexCode,$AD:$AD)","v":0},{"$f":"SUMIFS(Sheet1!S71_PYearAmount,Sheet1!S71_SA34Code,$AC:$AC,Sheet1!S71_A5CapexCode,$AD:$AD)","v":0},{"$f":"SUMIFS(Sheet1!S71_OriginalBudAmnt,Sheet1!S71_SA34Code,$AC:$AC,Sheet1!S71_A5CapexCode,$AD:$AD)","v":0},{"$f":"SUMIFS(Sheet1!S71_AdjustmentBudAmnt,Sheet1!S71_SA34Code,$AC:$AC,Sheet1!S71_A5CapexCode,$AD:$AD)","v":0},{"$f":"SUMIFS(Sheet1!S71_AdjustmentBudAmnt,Sheet1!S71_SA34Code,$AC:$AC,Sheet1!S71_A5CapexCode,$AD:$AD)","v":0},{"$f":"SUMIFS(Sheet1!S71_ASBudgetAmount,Sheet1!S71_SA34Code,$AC:$AC,Sheet1!S71_A5CapexCode,$AD:$AD)","v":0},{"$f":"SUMIFS(Sheet1!S71_OY1BudgetAmount,Sheet1!S71_SA34Code,$AC:$AC,Sheet1!S71_A5CapexCode,$AD:$AD)","v":0},{"$f":"SUMIFS(Sheet1!S71_OY2BudgetAmount,Sheet1!S71_SA34Code,$AC:$AC,Sheet1!S71_A5CapexCode,$AD:$AD)","v":0},null,null,null,null,null,null,null,null,null,null,null,null,null,null,null,null,null,"0340","CE"]
["Water Treatment Works",null,{"$f":"SUMIFS(Sheet1!S71_PPPYearAmount,Sheet1!S71_SA34Code,$AC:$AC,Sheet1!S71_A5CapexCode,$AD:$AD)","v":0},{"$f":"SUMIFS(Sheet1!S71_PPYearAmount,Sheet1!S71_SA34Code,$AC:$AC,Sheet1!S71_A5CapexCode,$AD:$AD)","v":0},{"$f":"SUMIFS(Sheet1!S71_PYearAmount,Sheet1!S71_SA34Code,$AC:$AC,Sheet1!S71_A5CapexCode,$AD:$AD)","v":0},{"$f":"SUMIFS(Sheet1!S71_OriginalBudAmnt,Sheet1!S71_SA34Code,$AC:$AC,Sheet1!S71_A5CapexCode,$AD:$AD)","v":0},{"$f":"SUMIFS(Sheet1!S71_AdjustmentBudAmnt,Sheet1!S71_SA34Code,$AC:$AC,Sheet1!S71_A5CapexCode,$AD:$AD)","v":0},{"$f":"SUMIFS(Sheet1!S71_AdjustmentBudAmnt,Sheet1!S71_SA34Code,$AC:$AC,Sheet1!S71_A5CapexCode,$AD:$AD)","v":0},{"$f":"SUMIFS(Sheet1!S71_ASBudgetAmount,Sheet1!S71_SA34Code,$AC:$AC,Sheet1!S71_A5CapexCode,$AD:$AD)","v":0},{"$f":"SUMIFS(Sheet1!S71_OY1BudgetAmount,Sheet1!S71_SA34Code,$AC:$AC,Sheet1!S71_A5CapexCode,$AD:$AD)","v":0},{"$f":"SUMIFS(Sheet1!S71_OY2BudgetAmount,Sheet1!S71_SA34Code,$AC:$AC,Sheet1!S71_A5CapexCode,$AD:$AD)","v":0},null,null,null,null,null,null,null,null,null,null,null,null,null,null,null,null,null,"0350","CE"]
["Bulk Mains",null,{"$f":"SUMIFS(Sheet1!S71_PPPYearAmount,Sheet1!S71_SA34Code,$AC:$AC,Sheet1!S71_A5CapexCode,$AD:$AD)","v":0},{"$f":"SUMIFS(Sheet1!S71_PPYearAmount,Sheet1!S71_SA34Code,$AC:$AC,Sheet1!S71_A5CapexCode,$AD:$AD)","v":0},{"$f":"SUMIFS(Sheet1!S71_PYearAmount,Sheet1!S71_SA34Code,$AC:$AC,Sheet1!S71_A5CapexCode,$AD:$AD)","v":0},{"$f":"SUMIFS(Sheet1!S71_OriginalBudAmnt,Sheet1!S71_SA34Code,$AC:$AC,Sheet1!S71_A5CapexCode,$AD:$AD)","v":0},{"$f":"SUMIFS(Sheet1!S71_AdjustmentBudAmnt,Sheet1!S71_SA34Code,$AC:$AC,Sheet1!S71_A5CapexCode,$AD:$AD)","v":0},{"$f":"SUMIFS(Sheet1!S71_AdjustmentBudAmnt,Sheet1!S71_SA34Code,$AC:$AC,Sheet1!S71_A5CapexCode,$AD:$AD)","v":0},{"$f":"SUMIFS(Sheet1!S71_ASBudgetAmount,Sheet1!S71_SA34Code,$AC:$AC,Sheet1!S71_A5CapexCode,$AD:$AD)","v":0},{"$f":"SUMIFS(Sheet1!S71_OY1BudgetAmount,Sheet1!S71_SA34Code,$AC:$AC,Sheet1!S71_A5CapexCode,$AD:$AD)","v":0},{"$f":"SUMIFS(Sheet1!S71_OY2BudgetAmount,Sheet1!S71_SA34Code,$AC:$AC,Sheet1!S71_A5CapexCode,$AD:$AD)","v":0},null,null,null,null,null,null,null,null,null,null,null,null,null,null,null,null,null,"0360","CE"]
["Distribution",null,{"$f":"SUMIFS(Sheet1!S71_PPPYearAmount,Sheet1!S71_SA34Code,$AC:$AC,Sheet1!S71_A5CapexCode,$AD:$AD)","v":0},{"$f":"SUMIFS(Sheet1!S71_PPYearAmount,Sheet1!S71_SA34Code,$AC:$AC,Sheet1!S71_A5CapexCode,$AD:$AD)","v":0},{"$f":"SUMIFS(Sheet1!S71_PYearAmount,Sheet1!S71_SA34Code,$AC:$AC,Sheet1!S71_A5CapexCode,$AD:$AD)","v":0},{"$f":"SUMIFS(Sheet1!S71_OriginalBudAmnt,Sheet1!S71_SA34Code,$AC:$AC,Sheet1!S71_A5CapexCode,$AD:$AD)","v":0},{"$f":"SUMIFS(Sheet1!S71_AdjustmentBudAmnt,Sheet1!S71_SA34Code,$AC:$AC,Sheet1!S71_A5CapexCode,$AD:$AD)","v":0},{"$f":"SUMIFS(Sheet1!S71_AdjustmentBudAmnt,Sheet1!S71_SA34Code,$AC:$AC,Sheet1!S71_A5CapexCode,$AD:$AD)","v":0},{"$f":"SUMIFS(Sheet1!S71_ASBudgetAmount,Sheet1!S71_SA34Code,$AC:$AC,Sheet1!S71_A5CapexCode,$AD:$AD)","v":0},{"$f":"SUMIFS(Sheet1!S71_OY1BudgetAmount,Sheet1!S71_SA34Code,$AC:$AC,Sheet1!S71_A5CapexCode,$AD:$AD)","v":0},{"$f":"SUMIFS(Sheet1!S71_OY2BudgetAmount,Sheet1!S71_SA34Code,$AC:$AC,Sheet1!S71_A5CapexCode,$AD:$AD)","v":0},null,null,null,null,null,null,null,null,null,null,null,null,null,null,null,null,null,"0370","CE"]
["Distribution Points",null,{"$f":"SUMIFS(Sheet1!S71_PPPYearAmount,Sheet1!S71_SA34Code,$AC:$AC,Sheet1!S71_A5CapexCode,$AD:$AD)","v":0},{"$f":"SUMIFS(Sheet1!S71_PPYearAmount,Sheet1!S71_SA34Code,$AC:$AC,Sheet1!S71_A5CapexCode,$AD:$AD)","v":0},{"$f":"SUMIFS(Sheet1!S71_PYearAmount,Sheet1!S71_SA34Code,$AC:$AC,Sheet1!S71_A5CapexCode,$AD:$AD)","v":0},{"$f":"SUMIFS(Sheet1!S71_OriginalBudAmnt,Sheet1!S71_SA34Code,$AC:$AC,Sheet1!S71_A5CapexCode,$AD:$AD)","v":0},{"$f":"SUMIFS(Sheet1!S71_AdjustmentBudAmnt,Sheet1!S71_SA34Code,$AC:$AC,Sheet1!S71_A5CapexCode,$AD:$AD)","v":0},{"$f":"SUMIFS(Sheet1!S71_AdjustmentBudAmnt,Sheet1!S71_SA34Code,$AC:$AC,Sheet1!S71_A5CapexCode,$AD:$AD)","v":0},{"$f":"SUMIFS(Sheet1!S71_ASBudgetAmount,Sheet1!S71_SA34Code,$AC:$AC,Sheet1!S71_A5CapexCode,$AD:$AD)","v":0},{"$f":"SUMIFS(Sheet1!S71_OY1BudgetAmount,Sheet1!S71_SA34Code,$AC:$AC,Sheet1!S71_A5CapexCode,$AD:$AD)","v":0},{"$f":"SUMIFS(Sheet1!S71_OY2BudgetAmount,Sheet1!S71_SA34Code,$AC:$AC,Sheet1!S71_A5CapexCode,$AD:$AD)","v":0},null,null,null,null,null,null,null,null,null,null,null,null,null,null,null,null,null,"0380","CE"]
["PRV Stations",null,{"$f":"SUMIFS(Sheet1!S71_PPPYearAmount,Sheet1!S71_SA34Code,$AC:$AC,Sheet1!S71_A5CapexCode,$AD:$AD)","v":0},{"$f":"SUMIFS(Sheet1!S71_PPYearAmount,Sheet1!S71_SA34Code,$AC:$AC,Sheet1!S71_A5CapexCode,$AD:$AD)","v":0},{"$f":"SUMIFS(Sheet1!S71_PYearAmount,Sheet1!S71_SA34Code,$AC:$AC,Sheet1!S71_A5CapexCode,$AD:$AD)","v":0},{"$f":"SUMIFS(Sheet1!S71_OriginalBudAmnt,Sheet1!S71_SA34Code,$AC:$AC,Sheet1!S71_A5CapexCode,$AD:$AD)","v":0},{"$f":"SUMIFS(Sheet1!S71_AdjustmentBudAmnt,Sheet1!S71_SA34Code,$AC:$AC,Sheet1!S71_A5CapexCode,$AD:$AD)","v":0},{"$f":"SUMIFS(Sheet1!S71_AdjustmentBudAmnt,Sheet1!S71_SA34Code,$AC:$AC,Sheet1!S71_A5CapexCode,$AD:$AD)","v":0},{"$f":"SUMIFS(Sheet1!S71_ASBudgetAmount,Sheet1!S71_SA34Code,$AC:$AC,Sheet1!S71_A5CapexCode,$AD:$AD)","v":0},{"$f":"SUMIFS(Sheet1!S71_OY1BudgetAmount,Sheet1!S71_SA34Code,$AC:$AC,Sheet1!S71_A5CapexCode,$AD:$AD)","v":0},{"$f":"SUMIFS(Sheet1!S71_OY2BudgetAmount,Sheet1!S71_SA34Code,$AC:$AC,Sheet1!S71_A5CapexCode,$AD:$AD)","v":0},null,null,null,null,null,null,null,null,null,null,null,null,null,null,null,null,null,"0390","CE"]
["Capital Spares",null,{"$f":"SUMIFS(Sheet1!S71_PPPYearAmount,Sheet1!S71_SA34Code,$AC:$AC,Sheet1!S71_A5CapexCode,$AD:$AD)","v":0},{"$f":"SUMIFS(Sheet1!S71_PPYearAmount,Sheet1!S71_SA34Code,$AC:$AC,Sheet1!S71_A5CapexCode,$AD:$AD)","v":0},{"$f":"SUMIFS(Sheet1!S71_PYearAmount,Sheet1!S71_SA34Code,$AC:$AC,Sheet1!S71_A5CapexCode,$AD:$AD)","v":0},{"$f":"SUMIFS(Sheet1!S71_OriginalBudAmnt,Sheet1!S71_SA34Code,$AC:$AC,Sheet1!S71_A5CapexCode,$AD:$AD)","v":0},{"$f":"SUMIFS(Sheet1!S71_AdjustmentBudAmnt,Sheet1!S71_SA34Code,$AC:$AC,Sheet1!S71_A5CapexCode,$AD:$AD)","v":0},{"$f":"SUMIFS(Sheet1!S71_AdjustmentBudAmnt,Sheet1!S71_SA34Code,$AC:$AC,Sheet1!S71_A5CapexCode,$AD:$AD)","v":0},{"$f":"SUMIFS(Sheet1!S71_ASBudgetAmount,Sheet1!S71_SA34Code,$AC:$AC,Sheet1!S71_A5CapexCode,$AD:$AD)","v":0},{"$f":"SUMIFS(Sheet1!S71_OY1BudgetAmount,Sheet1!S71_SA34Code,$AC:$AC,Sheet1!S71_A5CapexCode,$AD:$AD)","v":0},{"$f":"SUMIFS(Sheet1!S71_OY2BudgetAmount,Sheet1!S71_SA34Code,$AC:$AC,Sheet1!S71_A5CapexCode,$AD:$AD)","v":0},null,null,null,null,null,null,null,null,null,null,null,null,null,null,null,null,null,"0400","CE"]
["Sanitation Infrastructure",null,{"$f":"SUM(C38:C43)","v":0},{"$f":"SUM(D38:D43)","v":0},0,0,0,0,0,0,0,null,null,null,null,null,null,null,null,null,null,null,null,null,null,null,null,null,null,"CE"]
["Pump Station",null,{"$f":"SUMIFS(Sheet1!S71_PPPYearAmount,Sheet1!S71_SA34Code,$AC:$AC,Sheet1!S71_A5CapexCode,$AD:$AD)","v":0},{"$f":"SUMIFS(Sheet1!S71_PPYearAmount,Sheet1!S71_SA34Code,$AC:$AC,Sheet1!S71_A5CapexCode,$AD:$AD)","v":0},{"$f":"SUMIFS(Sheet1!S71_PYearAmount,Sheet1!S71_SA34Code,$AC:$AC,Sheet1!S71_A5CapexCode,$AD:$AD)","v":0},{"$f":"SUMIFS(Sheet1!S71_OriginalBudAmnt,Sheet1!S71_SA34Code,$AC:$AC,Sheet1!S71_A5CapexCode,$AD:$AD)","v":0},{"$f":"SUMIFS(Sheet1!S71_AdjustmentBudAmnt,Sheet1!S71_SA34Code,$AC:$AC,Sheet1!S71_A5CapexCode,$AD:$AD)","v":0},{"$f":"SUMIFS(Sheet1!S71_AdjustmentBudAmnt,Sheet1!S71_SA34Code,$AC:$AC,Sheet1!S71_A5CapexCode,$AD:$AD)","v":0},{"$f":"SUMIFS(Sheet1!S71_ASBudgetAmount,Sheet1!S71_SA34Code,$AC:$AC,Sheet1!S71_A5CapexCode,$AD:$AD)","v":0},{"$f":"SUMIFS(Sheet1!S71_OY1BudgetAmount,Sheet1!S71_SA34Code,$AC:$AC,Sheet1!S71_A5CapexCode,$AD:$AD)","v":0},{"$f":"SUMIFS(Sheet1!S71_OY2BudgetAmount,Sheet1!S71_SA34Code,$AC:$AC,Sheet1!S71_A5CapexCode,$AD:$AD)","v":0},null,null,null,null,null,null,null,null,null,null,null,null,null,null,null,null,null,"0420","CE"]
["Reticulation",null,{"$f":"SUMIFS(Sheet1!S71_PPPYearAmount,Sheet1!S71_SA34Code,$AC:$AC,Sheet1!S71_A5CapexCode,$AD:$AD)","v":0},{"$f":"SUMIFS(Sheet1!S71_PPYearAmount,Sheet1!S71_SA34Code,$AC:$AC,Sheet1!S71_A5CapexCode,$AD:$AD)","v":0},{"$f":"SUMIFS(Sheet1!S71_PYearAmount,Sheet1!S71_SA34Code,$AC:$AC,Sheet1!S71_A5CapexCode,$AD:$AD)","v":0},{"$f":"SUMIFS(Sheet1!S71_OriginalBudAmnt,Sheet1!S71_SA34Code,$AC:$AC,Sheet1!S71_A5CapexCode,$AD:$AD)","v":0},{"$f":"SUMIFS(Sheet1!S71_AdjustmentBudAmnt,Sheet1!S71_SA34Code,$AC:$AC,Sheet1!S71_A5CapexCode,$AD:$AD)","v":0},{"$f":"SUMIFS(Sheet1!S71_AdjustmentBudAmnt,Sheet1!S71_SA34Code,$AC:$AC,Sheet1!S71_A5CapexCode,$AD:$AD)","v":0},{"$f":"SUMIFS(Sheet1!S71_ASBudgetAmount,Sheet1!S71_SA34Code,$AC:$AC,Sheet1!S71_A5CapexCode,$AD:$AD)","v":0},{"$f":"SUMIFS(Sheet1!S71_OY1BudgetAmount,Sheet1!S71_SA34Code,$AC:$AC,Sheet1!S71_A5CapexCode,$AD:$AD)","v":0},{"$f":"SUMIFS(Sheet1!S71_OY2BudgetAmount,Sheet1!S71_SA34Code,$AC:$AC,Sheet1!S71_A5CapexCode,$AD:$AD)","v":0},null,null,null,null,null,null,null,null,null,null,null,null,null,null,null,null,null,"0430","CE"]
["Waste Water Treatment Works",null,{"$f":"SUMIFS(Sheet1!S71_PPPYearAmount,Sheet1!S71_SA34Code,$AC:$AC,Sheet1!S71_A5CapexCode,$AD:$AD)","v":0},{"$f":"SUMIFS(Sheet1!S71_PPYearAmount,Sheet1!S71_SA34Code,$AC:$AC,Sheet1!S71_A5CapexCode,$AD:$AD)","v":0},{"$f":"SUMIFS(Sheet1!S71_PYearAmount,Sheet1!S71_SA34Code,$AC:$AC,Sheet1!S71_A5CapexCode,$AD:$AD)","v":0},{"$f":"SUMIFS(Sheet1!S71_OriginalBudAmnt,Sheet1!S71_SA34Code,$AC:$AC,Sheet1!S71_A5CapexCode,$AD:$AD)","v":0},{"$f":"SUMIFS(Sheet1!S71_AdjustmentBudAmnt,Sheet1!S71_SA34Code,$AC:$AC,Sheet1!S71_A5CapexCode,$AD:$AD)","v":0},{"$f":"SUMIFS(Sheet1!S71_AdjustmentBudAmnt,Sheet1!S71_SA34Code,$AC:$AC,Sheet1!S71_A5CapexCode,$AD:$AD)","v":0},{"$f":"SUMIFS(Sheet1!S71_ASBudgetAmount,Sheet1!S71_SA34Code,$AC:$AC,Sheet1!S71_A5CapexCode,$AD:$AD)","v":0},{"$f":"SUMIFS(Sheet1!S71_OY1BudgetAmount,Sheet1!S71_SA34Code,$AC:$AC,Sheet1!S71_A5CapexCode,$AD:$AD)","v":0},{"$f":"SUMIFS(Sheet1!S71_OY2BudgetAmount,Sheet1!S71_SA34Code,$AC:$AC,Sheet1!S71_A5CapexCode,$AD:$AD)","v":0},null,null,null,null,null,null,null,null,null,null,null,null,null,null,null,null,null,"0440","CE"]
["Outfall Sewers",null,{"$f":"SUMIFS(Sheet1!S71_PPPYearAmount,Sheet1!S71_SA34Code,$AC:$AC,Sheet1!S71_A5CapexCode,$AD:$AD)","v":0},{"$f":"SUMIFS(Sheet1!S71_PPYearAmount,Sheet1!S71_SA34Code,$AC:$AC,Sheet1!S71_A5CapexCode,$AD:$AD)","v":0},{"$f":"SUMIFS(Sheet1!S71_PYearAmount,Sheet1!S71_SA34Code,$AC:$AC,Sheet1!S71_A5CapexCode,$AD:$AD)","v":0},{"$f":"SUMIFS(Sheet1!S71_OriginalBudAmnt,Sheet1!S71_SA34Code,$AC:$AC,Sheet1!S71_A5CapexCode,$AD:$AD)","v":0},{"$f":"SUMIFS(Sheet1!S71_AdjustmentBudAmnt,Sheet1!S71_SA34Code,$AC:$AC,Sheet1!S71_A5CapexCode,$AD:$AD)","v":0},{"$f":"SUMIFS(Sheet1!S71_AdjustmentBudAmnt,Sheet1!S71_SA34Code,$AC:$AC,Sheet1!S71_A5CapexCode,$AD:$AD)","v":0},{"$f":"SUMIFS(Sheet1!S71_ASBudgetAmount,Sheet1!S71_SA34Code,$AC:$AC,Sheet1!S71_A5CapexCode,$AD:$AD)","v":0},{"$f":"SUMIFS(Sheet1!S71_OY1BudgetAmount,Sheet1!S71_SA34Code,$AC:$AC,Sheet1!S71_A5CapexCode,$AD:$AD)","v":0},{"$f":"SUMIFS(Sheet1!S71_OY2BudgetAmount,Sheet1!S71_SA34Code,$AC:$AC,Sheet1!S71_A5CapexCode,$AD:$AD)","v":0},null,null,null,null,null,null,null,null,null,null,null,null,null,null,null,null,null,"0450","CE"]
["Toilet Facilities",null,{"$f":"SUMIFS(Sheet1!S71_PPPYearAmount,Sheet1!S71_SA34Code,$AC:$AC,Sheet1!S71_A5CapexCode,$AD:$AD)","v":0},{"$f":"SUMIFS(Sheet1!S71_PPYearAmount,Sheet1!S71_SA34Code,$AC:$AC,Sheet1!S71_A5CapexCode,$AD:$AD)","v":0},{"$f":"SUMIFS(Sheet1!S71_PYearAmount,Sheet1!S71_SA34Code,$AC:$AC,Sheet1!S71_A5CapexCode,$AD:$AD)","v":0},{"$f":"SUMIFS(Sheet1!S71_OriginalBudAmnt,Sheet1!S71_SA34Code,$AC:$AC,Sheet1!S71_A5CapexCode,$AD:$AD)","v":0},{"$f":"SUMIFS(Sheet1!S71_AdjustmentBudAmnt,Sheet1!S71_SA34Code,$AC:$AC,Sheet1!S71_A5CapexCode,$AD:$AD)","v":0},{"$f":"SUMIFS(Sheet1!S71_AdjustmentBudAmnt,Sheet1!S71_SA34Code,$AC:$AC,Sheet1!S71_A5CapexCode,$AD:$AD)","v":0},{"$f":"SUMIFS(Sheet1!S71_ASBudgetAmount,Sheet1!S71_SA34Code,$AC:$AC,Sheet1!S71_A5CapexCode,$AD:$AD)","v":0},{"$f":"SUMIFS(Sheet1!S71_OY1BudgetAmount,Sheet1!S71_SA34Code,$AC:$AC,Sheet1!S71_A5CapexCode,$AD:$AD)","v":0},{"$f":"SUMIFS(Sheet1!S71_OY2BudgetAmount,Sheet1!S71_SA34Code,$AC:$AC,Sheet1!S71_A5CapexCode,$AD:$AD)","v":0},null,null,null,null,null,null,null,null,null,null,null,null,null,null,null,null,null,"0460","CE"]
["Capital Spares",null,{"$f":"SUMIFS(Sheet1!S71_PPPYearAmount,Sheet1!S71_SA34Code,$AC:$AC,Sheet1!S71_A5CapexCode,$AD:$AD)","v":0},{"$f":"SUMIFS(Sheet1!S71_PPYearAmount,Sheet1!S71_SA34Code,$AC:$AC,Sheet1!S71_A5CapexCode,$AD:$AD)","v":0},{"$f":"SUMIFS(Sheet1!S71_PYearAmount,Sheet1!S71_SA34Code,$AC:$AC,Sheet1!S71_A5CapexCode,$AD:$AD)","v":0},{"$f":"SUMIFS(Sheet1!S71_OriginalBudAmnt,Sheet1!S71_SA34Code,$AC:$AC,Sheet1!S71_A5CapexCode,$AD:$AD)","v":0},{"$f":"SUMIFS(Sheet1!S71_AdjustmentBudAmnt,Sheet1!S71_SA34Code,$AC:$AC,Sheet1!S71_A5CapexCode,$AD:$AD)","v":0},{"$f":"SUMIFS(Sheet1!S71_AdjustmentBudAmnt,Sheet1!S71_SA34Code,$AC:$AC,Sheet1!S71_A5CapexCode,$AD:$AD)","v":0},{"$f":"SUMIFS(Sheet1!S71_ASBudgetAmount,Sheet1!S71_SA34Code,$AC:$AC,Sheet1!S71_A5CapexCode,$AD:$AD)","v":0},{"$f":"SUMIFS(Sheet1!S71_OY1BudgetAmount,Sheet1!S71_SA34Code,$AC:$AC,Sheet1!S71_A5CapexCode,$AD:$AD)","v":0},{"$f":"SUMIFS(Sheet1!S71_OY2BudgetAmount,Sheet1!S71_SA34Code,$AC:$AC,Sheet1!S71_A5CapexCode,$AD:$AD)","v":0},null,null,null,null,null,null,null,null,null,null,null,null,null,null,null,null,null,"0470","CE"]
["Solid Waste Infrastructure",null,{"$f":"SUM(C45:C51)","v":0},{"$f":"SUM(D45:D51)","v":0},0,0,0,0,0,0,0,null,null,null,null,null,null,null,null,null,null,null,null,null,null,null,null,null,null,"CE"]
["Landfill Sites",null,{"$f":"SUMIFS(Sheet1!S71_PPPYearAmount,Sheet1!S71_SA34Code,$AC:$AC,Sheet1!S71_A5CapexCode,$AD:$AD)","v":0},{"$f":"SUMIFS(Sheet1!S71_PPYearAmount,Sheet1!S71_SA34Code,$AC:$AC,Sheet1!S71_A5CapexCode,$AD:$AD)","v":0},{"$f":"SUMIFS(Sheet1!S71_PYearAmount,Sheet1!S71_SA34Code,$AC:$AC,Sheet1!S71_A5CapexCode,$AD:$AD)","v":0},{"$f":"SUMIFS(Sheet1!S71_OriginalBudAmnt,Sheet1!S71_SA34Code,$AC:$AC,Sheet1!S71_A5CapexCode,$AD:$AD)","v":0},{"$f":"SUMIFS(Sheet1!S71_AdjustmentBudAmnt,Sheet1!S71_SA34Code,$AC:$AC,Sheet1!S71_A5CapexCode,$AD:$AD)","v":0},{"$f":"SUMIFS(Sheet1!S71_AdjustmentBudAmnt,Sheet1!S71_SA34Code,$AC:$AC,Sheet1!S71_A5CapexCode,$AD:$AD)","v":0},{"$f":"SUMIFS(Sheet1!S71_ASBudgetAmount,Sheet1!S71_SA34Code,$AC:$AC,Sheet1!S71_A5CapexCode,$AD:$AD)","v":0},{"$f":"SUMIFS(Sheet1!S71_OY1BudgetAmount,Sheet1!S71_SA34Code,$AC:$AC,Sheet1!S71_A5CapexCode,$AD:$AD)","v":0},{"$f":"SUMIFS(Sheet1!S71_OY2BudgetAmount,Sheet1!S71_SA34Code,$AC:$AC,Sheet1!S71_A5CapexCode,$AD:$AD)","v":0},null,null,null,null,null,null,null,null,null,null,null,null,null,null,null,null,null,"0490","CE"]
["Waste Transfer Stations",null,{"$f":"SUMIFS(Sheet1!S71_PPPYearAmount,Sheet1!S71_SA34Code,$AC:$AC,Sheet1!S71_A5CapexCode,$AD:$AD)","v":0},{"$f":"SUMIFS(Sheet1!S71_PPYearAmount,Sheet1!S71_SA34Code,$AC:$AC,Sheet1!S71_A5CapexCode,$AD:$AD)","v":0},{"$f":"SUMIFS(Sheet1!S71_PYearAmount,Sheet1!S71_SA34Code,$AC:$AC,Sheet1!S71_A5CapexCode,$AD:$AD)","v":0},{"$f":"SUMIFS(Sheet1!S71_OriginalBudAmnt,Sheet1!S71_SA34Code,$AC:$AC,Sheet1!S71_A5CapexCode,$AD:$AD)","v":0},{"$f":"SUMIFS(Sheet1!S71_AdjustmentBudAmnt,Sheet1!S71_SA34Code,$AC:$AC,Sheet1!S71_A5CapexCode,$AD:$AD)","v":0},{"$f":"SUMIFS(Sheet1!S71_AdjustmentBudAmnt,Sheet1!S71_SA34Code,$AC:$AC,Sheet1!S71_A5CapexCode,$AD:$AD)","v":0},{"$f":"SUMIFS(Sheet1!S71_ASBudgetAmount,Sheet1!S71_SA34Code,$AC:$AC,Sheet1!S71_A5CapexCode,$AD:$AD)","v":0},{"$f":"SUMIFS(Sheet1!S71_OY1BudgetAmount,Sheet1!S71_SA34Code,$AC:$AC,Sheet1!S71_A5CapexCode,$AD:$AD)","v":0},{"$f":"SUMIFS(Sheet1!S71_OY2BudgetAmount,Sheet1!S71_SA34Code,$AC:$AC,Sheet1!S71_A5CapexCode,$AD:$AD)","v":0},null,null,null,null,null,null,null,null,null,null,null,null,null,null,null,null,null,"0500","CE"]
["Waste Processing Facilities",null,{"$f":"SUMIFS(Sheet1!S71_PPPYearAmount,Sheet1!S71_SA34Code,$AC:$AC,Sheet1!S71_A5CapexCode,$AD:$AD)","v":0},{"$f":"SUMIFS(Sheet1!S71_PPYearAmount,Sheet1!S71_SA34Code,$AC:$AC,Sheet1!S71_A5CapexCode,$AD:$AD)","v":0},{"$f":"SUMIFS(Sheet1!S71_PYearAmount,Sheet1!S71_SA34Code,$AC:$AC,Sheet1!S71_A5CapexCode,$AD:$AD)","v":0},{"$f":"SUMIFS(Sheet1!S71_OriginalBudAmnt,Sheet1!S71_SA34Code,$AC:$AC,Sheet1!S71_A5CapexCode,$AD:$AD)","v":0},{"$f":"SUMIFS(Sheet1!S71_AdjustmentBudAmnt,Sheet1!S71_SA34Code,$AC:$AC,Sheet1!S71_A5CapexCode,$AD:$AD)","v":0},{"$f":"SUMIFS(Sheet1!S71_AdjustmentBudAmnt,Sheet1!S71_SA34Code,$AC:$AC,Sheet1!S71_A5CapexCode,$AD:$AD)","v":0},{"$f":"SUMIFS(Sheet1!S71_ASBudgetAmount,Sheet1!S71_SA34Code,$AC:$AC,Sheet1!S71_A5CapexCode,$AD:$AD)","v":0},{"$f":"SUMIFS(Sheet1!S71_OY1BudgetAmount,Sheet1!S71_SA34Code,$AC:$AC,Sheet1!S71_A5CapexCode,$AD:$AD)","v":0},{"$f":"SUMIFS(Sheet1!S71_OY2BudgetAmount,Sheet1!S71_SA34Code,$AC:$AC,Sheet1!S71_A5CapexCode,$AD:$AD)","v":0},null,null,null,null,null,null,null,null,null,null,null,null,null,null,null,null,null,"0510","CE"]
["Waste Drop-off Points",null,{"$f":"SUMIFS(Sheet1!S71_PPPYearAmount,Sheet1!S71_SA34Code,$AC:$AC,Sheet1!S71_A5CapexCode,$AD:$AD)","v":0},{"$f":"SUMIFS(Sheet1!S71_PPYearAmount,Sheet1!S71_SA34Code,$AC:$AC,Sheet1!S71_A5CapexCode,$AD:$AD)","v":0},{"$f":"SUMIFS(Sheet1!S71_PYearAmount,Sheet1!S71_SA34Code,$AC:$AC,Sheet1!S71_A5CapexCode,$AD:$AD)","v":0},{"$f":"SUMIFS(Sheet1!S71_OriginalBudAmnt,Sheet1!S71_SA34Code,$AC:$AC,Sheet1!S71_A5CapexCode,$AD:$AD)","v":0},{"$f":"SUMIFS(Sheet1!S71_AdjustmentBudAmnt,Sheet1!S71_SA34Code,$AC:$AC,Sheet1!S71_A5CapexCode,$AD:$AD)","v":0},{"$f":"SUMIFS(Sheet1!S71_AdjustmentBudAmnt,Sheet1!S71_SA34Code,$AC:$AC,Sheet1!S71_A5CapexCode,$AD:$AD)","v":0},{"$f":"SUMIFS(Sheet1!S71_ASBudgetAmount,Sheet1!S71_SA34Code,$AC:$AC,Sheet1!S71_A5CapexCode,$AD:$AD)","v":0},{"$f":"SUMIFS(Sheet1!S71_OY1BudgetAmount,Sheet1!S71_SA34Code,$AC:$AC,Sheet1!S71_A5CapexCode,$AD:$AD)","v":0},{"$f":"SUMIFS(Sheet1!S71_OY2BudgetAmount,Sheet1!S71_SA34Code,$AC:$AC,Sheet1!S71_A5CapexCode,$AD:$AD)","v":0},null,null,null,null,null,null,null,null,null,null,null,null,null,null,null,null,null,"0520","CE"]
["Waste Separation Facilities",null,{"$f":"SUMIFS(Sheet1!S71_PPPYearAmount,Sheet1!S71_SA34Code,$AC:$AC,Sheet1!S71_A5CapexCode,$AD:$AD)","v":0},{"$f":"SUMIFS(Sheet1!S71_PPYearAmount,Sheet1!S71_SA34Code,$AC:$AC,Sheet1!S71_A5CapexCode,$AD:$AD)","v":0},{"$f":"SUMIFS(Sheet1!S71_PYearAmount,Sheet1!S71_SA34Code,$AC:$AC,Sheet1!S71_A5CapexCode,$AD:$AD)","v":0},{"$f":"SUMIFS(Sheet1!S71_OriginalBudAmnt,Sheet1!S71_SA34Code,$AC:$AC,Sheet1!S71_A5CapexCode,$AD:$AD)","v":0},{"$f":"SUMIFS(Sheet1!S71_AdjustmentBudAmnt,Sheet1!S71_SA34Code,$AC:$AC,Sheet1!S71_A5CapexCode,$AD:$AD)","v":0},{"$f":"SUMIFS(Sheet1!S71_AdjustmentBudAmnt,Sheet1!S71_SA34Code,$AC:$AC,Sheet1!S71_A5CapexCode,$AD:$AD)","v":0},{"$f":"SUMIFS(Sheet1!S71_ASBudgetAmount,Sheet1!S71_SA34Code,$AC:$AC,Sheet1!S71_A5CapexCode,$AD:$AD)","v":0},{"$f":"SUMIFS(Sheet1!S71_OY1BudgetAmount,Sheet1!S71_SA34Code,$AC:$AC,Sheet1!S71_A5CapexCode,$AD:$AD)","v":0},{"$f":"SUMIFS(Sheet1!S71_OY2BudgetAmount,Sheet1!S71_SA34Code,$AC:$AC,Sheet1!S71_A5CapexCode,$AD:$AD)","v":0},null,null,null,null,null,null,null,null,null,null,null,null,null,null,null,null,null,"0530","CE"]
["Electricity Generation Facilities",null,{"$f":"SUMIFS(Sheet1!S71_PPPYearAmount,Sheet1!S71_SA34Code,$AC:$AC,Sheet1!S71_A5CapexCode,$AD:$AD)","v":0},{"$f":"SUMIFS(Sheet1!S71_PPYearAmount,Sheet1!S71_SA34Code,$AC:$AC,Sheet1!S71_A5CapexCode,$AD:$AD)","v":0},{"$f":"SUMIFS(Sheet1!S71_PYearAmount,Sheet1!S71_SA34Code,$AC:$AC,Sheet1!S71_A5CapexCode,$AD:$AD)","v":0},{"$f":"SUMIFS(Sheet1!S71_OriginalBudAmnt,Sheet1!S71_SA34Code,$AC:$AC,Sheet1!S71_A5CapexCode,$AD:$AD)","v":0},{"$f":"SUMIFS(Sheet1!S71_AdjustmentBudAmnt,Sheet1!S71_SA34Code,$AC:$AC,Sheet1!S71_A5CapexCode,$AD:$AD)","v":0},{"$f":"SUMIFS(Sheet1!S71_AdjustmentBudAmnt,Sheet1!S71_SA34Code,$AC:$AC,Sheet1!S71_A5CapexCode,$AD:$AD)","v":0},{"$f":"SUMIFS(Sheet1!S71_ASBudgetAmount,Sheet1!S71_SA34Code,$AC:$AC,Sheet1!S71_A5CapexCode,$AD:$AD)","v":0},{"$f":"SUMIFS(Sheet1!S71_OY1BudgetAmount,Sheet1!S71_SA34Code,$AC:$AC,Sheet1!S71_A5CapexCode,$AD:$AD)","v":0},{"$f":"SUMIFS(Sheet1!S71_OY2BudgetAmount,Sheet1!S71_SA34Code,$AC:$AC,Sheet1!S71_A5CapexCode,$AD:$AD)","v":0},null,null,null,null,null,null,null,null,null,null,null,null,null,null,null,null,null,"0540","CE"]
["Capital Spares",null,{"$f":"SUMIFS(Sheet1!S71_PPPYearAmount,Sheet1!S71_SA34Code,$AC:$AC,Sheet1!S71_A5CapexCode,$AD:$AD)","v":0},{"$f":"SUMIFS(Sheet1!S71_PPYearAmount,Sheet1!S71_SA34Code,$AC:$AC,Sheet1!S71_A5CapexCode,$AD:$AD)","v":0},{"$f":"SUMIFS(Sheet1!S71_PYearAmount,Sheet1!S71_SA34Code,$AC:$AC,Sheet1!S71_A5CapexCode,$AD:$AD)","v":0},{"$f":"SUMIFS(Sheet1!S71_OriginalBudAmnt,Sheet1!S71_SA34Code,$AC:$AC,Sheet1!S71_A5CapexCode,$AD:$AD)","v":0},{"$f":"SUMIFS(Sheet1!S71_AdjustmentBudAmnt,Sheet1!S71_SA34Code,$AC:$AC,Sheet1!S71_A5CapexCode,$AD:$AD)","v":0},{"$f":"SUMIFS(Sheet1!S71_AdjustmentBudAmnt,Sheet1!S71_SA34Code,$AC:$AC,Sheet1!S71_A5CapexCode,$AD:$AD)","v":0},{"$f":"SUMIFS(Sheet1!S71_ASBudgetAmount,Sheet1!S71_SA34Code,$AC:$AC,Sheet1!S71_A5CapexCode,$AD:$AD)","v":0},{"$f":"SUMIFS(Sheet1!S71_OY1BudgetAmount,Sheet1!S71_SA34Code,$AC:$AC,Sheet1!S71_A5CapexCode,$AD:$AD)","v":0},{"$f":"SUMIFS(Sheet1!S71_OY2BudgetAmount,Sheet1!S71_SA34Code,$AC:$AC,Sheet1!S71_A5CapexCode,$AD:$AD)","v":0},null,null,null,null,null,null,null,null,null,null,null,null,null,null,null,null,null,"0550","CE"]
["Rail Infrastructure",null,{"$f":"SUM(C53:C61)","v":0},0,0,0,0,0,0,0,0,null,null,null,null,null,null,null,null,null,null,null,null,null,null,null,null,null,null,"CE"]
["Rail Lines",null,{"$f":"SUMIFS(Sheet1!S71_PPPYearAmount,Sheet1!S71_SA34Code,$AC:$AC,Sheet1!S71_A5CapexCode,$AD:$AD)","v":0},{"$f":"SUMIFS(Sheet1!S71_PPYearAmount,Sheet1!S71_SA34Code,$AC:$AC,Sheet1!S71_A5CapexCode,$AD:$AD)","v":0},{"$f":"SUMIFS(Sheet1!S71_PYearAmount,Sheet1!S71_SA34Code,$AC:$AC,Sheet1!S71_A5CapexCode,$AD:$AD)","v":0},{"$f":"SUMIFS(Sheet1!S71_OriginalBudAmnt,Sheet1!S71_SA34Code,$AC:$AC,Sheet1!S71_A5CapexCode,$AD:$AD)","v":0},{"$f":"SUMIFS(Sheet1!S71_AdjustmentBudAmnt,Sheet1!S71_SA34Code,$AC:$AC,Sheet1!S71_A5CapexCode,$AD:$AD)","v":0},{"$f":"SUMIFS(Sheet1!S71_AdjustmentBudAmnt,Sheet1!S71_SA34Code,$AC:$AC,Sheet1!S71_A5CapexCode,$AD:$AD)","v":0},{"$f":"SUMIFS(Sheet1!S71_ASBudgetAmount,Sheet1!S71_SA34Code,$AC:$AC,Sheet1!S71_A5CapexCode,$AD:$AD)","v":0},{"$f":"SUMIFS(Sheet1!S71_OY1BudgetAmount,Sheet1!S71_SA34Code,$AC:$AC,Sheet1!S71_A5CapexCode,$AD:$AD)","v":0},{"$f":"SUMIFS(Sheet1!S71_OY2BudgetAmount,Sheet1!S71_SA34Code,$AC:$AC,Sheet1!S71_A5CapexCode,$AD:$AD)","v":0},null,null,null,null,null,null,null,null,null,null,null,null,null,null,null,null,null,"0570","CE"]
["Rail Structures",null,{"$f":"SUMIFS(Sheet1!S71_PPPYearAmount,Sheet1!S71_SA34Code,$AC:$AC,Sheet1!S71_A5CapexCode,$AD:$AD)","v":0},{"$f":"SUMIFS(Sheet1!S71_PPYearAmount,Sheet1!S71_SA34Code,$AC:$AC,Sheet1!S71_A5CapexCode,$AD:$AD)","v":0},{"$f":"SUMIFS(Sheet1!S71_PYearAmount,Sheet1!S71_SA34Code,$AC:$AC,Sheet1!S71_A5CapexCode,$AD:$AD)","v":0},{"$f":"SUMIFS(Sheet1!S71_OriginalBudAmnt,Sheet1!S71_SA34Code,$AC:$AC,Sheet1!S71_A5CapexCode,$AD:$AD)","v":0},{"$f":"SUMIFS(Sheet1!S71_AdjustmentBudAmnt,Sheet1!S71_SA34Code,$AC:$AC,Sheet1!S71_A5CapexCode,$AD:$AD)","v":0},{"$f":"SUMIFS(Sheet1!S71_AdjustmentBudAmnt,Sheet1!S71_SA34Code,$AC:$AC,Sheet1!S71_A5CapexCode,$AD:$AD)","v":0},{"$f":"SUMIFS(Sheet1!S71_ASBudgetAmount,Sheet1!S71_SA34Code,$AC:$AC,Sheet1!S71_A5CapexCode,$AD:$AD)","v":0},{"$f":"SUMIFS(Sheet1!S71_OY1BudgetAmount,Sheet1!S71_SA34Code,$AC:$AC,Sheet1!S71_A5CapexCode,$AD:$AD)","v":0},{"$f":"SUMIFS(Sheet1!S71_OY2BudgetAmount,Sheet1!S71_SA34Code,$AC:$AC,Sheet1!S71_A5CapexCode,$AD:$AD)","v":0},null,null,null,null,null,null,null,null,null,null,null,null,null,null,null,null,null,"0580","CE"]
["Rail Furniture",null,{"$f":"SUMIFS(Sheet1!S71_PPPYearAmount,Sheet1!S71_SA34Code,$AC:$AC,Sheet1!S71_A5CapexCode,$AD:$AD)","v":0},{"$f":"SUMIFS(Sheet1!S71_PPYearAmount,Sheet1!S71_SA34Code,$AC:$AC,Sheet1!S71_A5CapexCode,$AD:$AD)","v":0},{"$f":"SUMIFS(Sheet1!S71_PYearAmount,Sheet1!S71_SA34Code,$AC:$AC,Sheet1!S71_A5CapexCode,$AD:$AD)","v":0},{"$f":"SUMIFS(Sheet1!S71_OriginalBudAmnt,Sheet1!S71_SA34Code,$AC:$AC,Sheet1!S71_A5CapexCode,$AD:$AD)","v":0},{"$f":"SUMIFS(Sheet1!S71_AdjustmentBudAmnt,Sheet1!S71_SA34Code,$AC:$AC,Sheet1!S71_A5CapexCode,$AD:$AD)","v":0},{"$f":"SUMIFS(Sheet1!S71_AdjustmentBudAmnt,Sheet1!S71_SA34Code,$AC:$AC,Sheet1!S71_A5CapexCode,$AD:$AD)","v":0},{"$f":"SUMIFS(Sheet1!S71_ASBudgetAmount,Sheet1!S71_SA34Code,$AC:$AC,Sheet1!S71_A5CapexCode,$AD:$AD)","v":0},{"$f":"SUMIFS(Sheet1!S71_OY1BudgetAmount,Sheet1!S71_SA34Code,$AC:$AC,Sheet1!S71_A5CapexCode,$AD:$AD)","v":0},{"$f":"SUMIFS(Sheet1!S71_OY2BudgetAmount,Sheet1!S71_SA34Code,$AC:$AC,Sheet1!S71_A5CapexCode,$AD:$AD)","v":0},null,null,null,null,null,null,null,null,null,null,null,null,null,null,null,null,null,"0590","CE"]
["Drainage Collection",null,{"$f":"SUMIFS(Sheet1!S71_PPPYearAmount,Sheet1!S71_SA34Code,$AC:$AC,Sheet1!S71_A5CapexCode,$AD:$AD)","v":0},{"$f":"SUMIFS(Sheet1!S71_PPYearAmount,Sheet1!S71_SA34Code,$AC:$AC,Sheet1!S71_A5CapexCode,$AD:$AD)","v":0},{"$f":"SUMIFS(Sheet1!S71_PYearAmount,Sheet1!S71_SA34Code,$AC:$AC,Sheet1!S71_A5CapexCode,$AD:$AD)","v":0},{"$f":"SUMIFS(Sheet1!S71_OriginalBudAmnt,Sheet1!S71_SA34Code,$AC:$AC,Sheet1!S71_A5CapexCode,$AD:$AD)","v":0},{"$f":"SUMIFS(Sheet1!S71_AdjustmentBudAmnt,Sheet1!S71_SA34Code,$AC:$AC,Sheet1!S71_A5CapexCode,$AD:$AD)","v":0},{"$f":"SUMIFS(Sheet1!S71_AdjustmentBudAmnt,Sheet1!S71_SA34Code,$AC:$AC,Sheet1!S71_A5CapexCode,$AD:$AD)","v":0},{"$f":"SUMIFS(Sheet1!S71_ASBudgetAmount,Sheet1!S71_SA34Code,$AC:$AC,Sheet1!S71_A5CapexCode,$AD:$AD)","v":0},{"$f":"SUMIFS(Sheet1!S71_OY1BudgetAmount,Sheet1!S71_SA34Code,$AC:$AC,Sheet1!S71_A5CapexCode,$AD:$AD)","v":0},{"$f":"SUMIFS(Sheet1!S71_OY2BudgetAmount,Sheet1!S71_SA34Code,$AC:$AC,Sheet1!S71_A5CapexCode,$AD:$AD)","v":0},null,null,null,null,null,null,null,null,null,null,null,null,null,null,null,null,null,"0600","CE"]
["Storm water Conveyance",null,{"$f":"SUMIFS(Sheet1!S71_PPPYearAmount,Sheet1!S71_SA34Code,$AC:$AC,Sheet1!S71_A5CapexCode,$AD:$AD)","v":0},{"$f":"SUMIFS(Sheet1!S71_PPYearAmount,Sheet1!S71_SA34Code,$AC:$AC,Sheet1!S71_A5CapexCode,$AD:$AD)","v":0},{"$f":"SUMIFS(Sheet1!S71_PYearAmount,Sheet1!S71_SA34Code,$AC:$AC,Sheet1!S71_A5CapexCode,$AD:$AD)","v":0},{"$f":"SUMIFS(Sheet1!S71_OriginalBudAmnt,Sheet1!S71_SA34Code,$AC:$AC,Sheet1!S71_A5CapexCode,$AD:$AD)","v":0},{"$f":"SUMIFS(Sheet1!S71_AdjustmentBudAmnt,Sheet1!S71_SA34Code,$AC:$AC,Sheet1!S71_A5CapexCode,$AD:$AD)","v":0},{"$f":"SUMIFS(Sheet1!S71_AdjustmentBudAmnt,Sheet1!S71_SA34Code,$AC:$AC,Sheet1!S71_A5CapexCode,$AD:$AD)","v":0},{"$f":"SUMIFS(Sheet1!S71_ASBudgetAmount,Sheet1!S71_SA34Code,$AC:$AC,Sheet1!S71_A5CapexCode,$AD:$AD)","v":0},{"$f":"SUMIFS(Sheet1!S71_OY1BudgetAmount,Sheet1!S71_SA34Code,$AC:$AC,Sheet1!S71_A5CapexCode,$AD:$AD)","v":0},{"$f":"SUMIFS(Sheet1!S71_OY2BudgetAmount,Sheet1!S71_SA34Code,$AC:$AC,Sheet1!S71_A5CapexCode,$AD:$AD)","v":0},null,null,null,null,null,null,null,null,null,null,null,null,null,null,null,null,null,"0610","CE"]
["Attenuation",null,{"$f":"SUMIFS(Sheet1!S71_PPPYearAmount,Sheet1!S71_SA34Code,$AC:$AC,Sheet1!S71_A5CapexCode,$AD:$AD)","v":0},{"$f":"SUMIFS(Sheet1!S71_PPYearAmount,Sheet1!S71_SA34Code,$AC:$AC,Sheet1!S71_A5CapexCode,$AD:$AD)","v":0},{"$f":"SUMIFS(Sheet1!S71_PYearAmount,Sheet1!S71_SA34Code,$AC:$AC,Sheet1!S71_A5CapexCode,$AD:$AD)","v":0},{"$f":"SUMIFS(Sheet1!S71_OriginalBudAmnt,Sheet1!S71_SA34Code,$AC:$AC,Sheet1!S71_A5CapexCode,$AD:$AD)","v":0},{"$f":"SUMIFS(Sheet1!S71_AdjustmentBudAmnt,Sheet1!S71_SA34Code,$AC:$AC,Sheet1!S71_A5CapexCode,$AD:$AD)","v":0},{"$f":"SUMIFS(Sheet1!S71_AdjustmentBudAmnt,Sheet1!S71_SA34Code,$AC:$AC,Sheet1!S71_A5CapexCode,$AD:$AD)","v":0},{"$f":"SUMIFS(Sheet1!S71_ASBudgetAmount,Sheet1!S71_SA34Code,$AC:$AC,Sheet1!S71_A5CapexCode,$AD:$AD)","v":0},{"$f":"SUMIFS(Sheet1!S71_OY1BudgetAmount,Sheet1!S71_SA34Code,$AC:$AC,Sheet1!S71_A5CapexCode,$AD:$AD)","v":0},{"$f":"SUMIFS(Sheet1!S71_OY2BudgetAmount,Sheet1!S71_SA34Code,$AC:$AC,Sheet1!S71_A5CapexCode,$AD:$AD)","v":0},null,null,null,null,null,null,null,null,null,null,null,null,null,null,null,null,null,"0620","CE"]
["MV Substations",null,{"$f":"SUMIFS(Sheet1!S71_PPPYearAmount,Sheet1!S71_SA34Code,$AC:$AC,Sheet1!S71_A5CapexCode,$AD:$AD)","v":0},{"$f":"SUMIFS(Sheet1!S71_PPYearAmount,Sheet1!S71_SA34Code,$AC:$AC,Sheet1!S71_A5CapexCode,$AD:$AD)","v":0},{"$f":"SUMIFS(Sheet1!S71_PYearAmount,Sheet1!S71_SA34Code,$AC:$AC,Sheet1!S71_A5CapexCode,$AD:$AD)","v":0},{"$f":"SUMIFS(Sheet1!S71_OriginalBudAmnt,Sheet1!S71_SA34Code,$AC:$AC,Sheet1!S71_A5CapexCode,$AD:$AD)","v":0},{"$f":"SUMIFS(Sheet1!S71_AdjustmentBudAmnt,Sheet1!S71_SA34Code,$AC:$AC,Sheet1!S71_A5CapexCode,$AD:$AD)","v":0},{"$f":"SUMIFS(Sheet1!S71_AdjustmentBudAmnt,Sheet1!S71_SA34Code,$AC:$AC,Sheet1!S71_A5CapexCode,$AD:$AD)","v":0},{"$f":"SUMIFS(Sheet1!S71_ASBudgetAmount,Sheet1!S71_SA34Code,$AC:$AC,Sheet1!S71_A5CapexCode,$AD:$AD)","v":0},{"$f":"SUMIFS(Sheet1!S71_OY1BudgetAmount,Sheet1!S71_SA34Code,$AC:$AC,Sheet1!S71_A5CapexCode,$AD:$AD)","v":0},{"$f":"SUMIFS(Sheet1!S71_OY2BudgetAmount,Sheet1!S71_SA34Code,$AC:$AC,Sheet1!S71_A5CapexCode,$AD:$AD)","v":0},null,null,null,null,null,null,null,null,null,null,null,null,null,null,null,null,null,"0630","CE"]
["LV Networks",null,{"$f":"SUMIFS(Sheet1!S71_PPPYearAmount,Sheet1!S71_SA34Code,$AC:$AC,Sheet1!S71_A5CapexCode,$AD:$AD)","v":0},{"$f":"SUMIFS(Sheet1!S71_PPYearAmount,Sheet1!S71_SA34Code,$AC:$AC,Sheet1!S71_A5CapexCode,$AD:$AD)","v":0},{"$f":"SUMIFS(Sheet1!S71_PYearAmount,Sheet1!S71_SA34Code,$AC:$AC,Sheet1!S71_A5CapexCode,$AD:$AD)","v":0},{"$f":"SUMIFS(Sheet1!S71_OriginalBudAmnt,Sheet1!S71_SA34Code,$AC:$AC,Sheet1!S71_A5CapexCode,$AD:$AD)","v":0},{"$f":"SUMIFS(Sheet1!S71_AdjustmentBudAmnt,Sheet1!S71_SA34Code,$AC:$AC,Sheet1!S71_A5CapexCode,$AD:$AD)","v":0},{"$f":"SUMIFS(Sheet1!S71_AdjustmentBudAmnt,Sheet1!S71_SA34Code,$AC:$AC,Sheet1!S71_A5CapexCode,$AD:$AD)","v":0},{"$f":"SUMIFS(Sheet1!S71_ASBudgetAmount,Sheet1!S71_SA34Code,$AC:$AC,Sheet1!S71_A5CapexCode,$AD:$AD)","v":0},{"$f":"SUMIFS(Sheet1!S71_OY1BudgetAmount,Sheet1!S71_SA34Code,$AC:$AC,Sheet1!S71_A5CapexCode,$AD:$AD)","v":0},{"$f":"SUMIFS(Sheet1!S71_OY2BudgetAmount,Sheet1!S71_SA34Code,$AC:$AC,Sheet1!S71_A5CapexCode,$AD:$AD)","v":0},null,null,null,null,null,null,null,null,null,null,null,null,null,null,null,null,null,"0640","CE"]
["Capital Spares",null,{"$f":"SUMIFS(Sheet1!S71_PPPYearAmount,Sheet1!S71_SA34Code,$AC:$AC,Sheet1!S71_A5CapexCode,$AD:$AD)","v":0},{"$f":"SUMIFS(Sheet1!S71_PPYearAmount,Sheet1!S71_SA34Code,$AC:$AC,Sheet1!S71_A5CapexCode,$AD:$AD)","v":0},{"$f":"SUMIFS(Sheet1!S71_PYearAmount,Sheet1!S71_SA34Code,$AC:$AC,Sheet1!S71_A5CapexCode,$AD:$AD)","v":0},{"$f":"SUMIFS(Sheet1!S71_OriginalBudAmnt,Sheet1!S71_SA34Code,$AC:$AC,Sheet1!S71_A5CapexCode,$AD:$AD)","v":0},{"$f":"SUMIFS(Sheet1!S71_AdjustmentBudAmnt,Sheet1!S71_SA34Code,$AC:$AC,Sheet1!S71_A5CapexCode,$AD:$AD)","v":0},{"$f":"SUMIFS(Sheet1!S71_AdjustmentBudAmnt,Sheet1!S71_SA34Code,$AC:$AC,Sheet1!S71_A5CapexCode,$AD:$AD)","v":0},{"$f":"SUMIFS(Sheet1!S71_ASBudgetAmount,Sheet1!S71_SA34Code,$AC:$AC,Sheet1!S71_A5CapexCode,$AD:$AD)","v":0},{"$f":"SUMIFS(Sheet1!S71_OY1BudgetAmount,Sheet1!S71_SA34Code,$AC:$AC,Sheet1!S71_A5CapexCode,$AD:$AD)","v":0},{"$f":"SUMIFS(Sheet1!S71_OY2BudgetAmount,Sheet1!S71_SA34Code,$AC:$AC,Sheet1!S71_A5CapexCode,$AD:$AD)","v":0},null,null,null,null,null,null,null,null,null,null,null,null,null,null,null,null,null,"0650","CE"]
["Coastal Infrastructure",null,{"$f":"SUM(C63:C67)","v":0},{"$f":"SUM(D63:D67)","v":0},0,0,0,0,0,0,0,null,null,null,null,null,null,null,null,null,null,null,null,null,null,null,null,null,null,"CE"]
["Sand Pumps",null,{"$f":"SUMIFS(Sheet1!S71_PPPYearAmount,Sheet1!S71_SA34Code,$AC:$AC,Sheet1!S71_A5CapexCode,$AD:$AD)","v":0},{"$f":"SUMIFS(Sheet1!S71_PPYearAmount,Sheet1!S71_SA34Code,$AC:$AC,Sheet1!S71_A5CapexCode,$AD:$AD)","v":0},{"$f":"SUMIFS(Sheet1!S71_PYearAmount,Sheet1!S71_SA34Code,$AC:$AC,Sheet1!S71_A5CapexCode,$AD:$AD)","v":0},{"$f":"SUMIFS(Sheet1!S71_OriginalBudAmnt,Sheet1!S71_SA34Code,$AC:$AC,Sheet1!S71_A5CapexCode,$AD:$AD)","v":0},{"$f":"SUMIFS(Sheet1!S71_AdjustmentBudAmnt,Sheet1!S71_SA34Code,$AC:$AC,Sheet1!S71_A5CapexCode,$AD:$AD)","v":0},{"$f":"SUMIFS(Sheet1!S71_AdjustmentBudAmnt,Sheet1!S71_SA34Code,$AC:$AC,Sheet1!S71_A5CapexCode,$AD:$AD)","v":0},{"$f":"SUMIFS(Sheet1!S71_ASBudgetAmount,Sheet1!S71_SA34Code,$AC:$AC,Sheet1!S71_A5CapexCode,$AD:$AD)","v":0},{"$f":"SUMIFS(Sheet1!S71_OY1BudgetAmount,Sheet1!S71_SA34Code,$AC:$AC,Sheet1!S71_A5CapexCode,$AD:$AD)","v":0},{"$f":"SUMIFS(Sheet1!S71_OY2BudgetAmount,Sheet1!S71_SA34Code,$AC:$AC,Sheet1!S71_A5CapexCode,$AD:$AD)","v":0},null,null,null,null,null,null,null,null,null,null,null,null,null,null,null,null,null,"0670","CE"]
["Piers",null,{"$f":"SUMIFS(Sheet1!S71_PPPYearAmount,Sheet1!S71_SA34Code,$AC:$AC,Sheet1!S71_A5CapexCode,$AD:$AD)","v":0},{"$f":"SUMIFS(Sheet1!S71_PPYearAmount,Sheet1!S71_SA34Code,$AC:$AC,Sheet1!S71_A5CapexCode,$AD:$AD)","v":0},{"$f":"SUMIFS(Sheet1!S71_PYearAmount,Sheet1!S71_SA34Code,$AC:$AC,Sheet1!S71_A5CapexCode,$AD:$AD)","v":0},{"$f":"SUMIFS(Sheet1!S71_OriginalBudAmnt,Sheet1!S71_SA34Code,$AC:$AC,Sheet1!S71_A5CapexCode,$AD:$AD)","v":0},{"$f":"SUMIFS(Sheet1!S71_AdjustmentBudAmnt,Sheet1!S71_SA34Code,$AC:$AC,Sheet1!S71_A5CapexCode,$AD:$AD)","v":0},{"$f":"SUMIFS(Sheet1!S71_AdjustmentBudAmnt,Sheet1!S71_SA34Code,$AC:$AC,Sheet1!S71_A5CapexCode,$AD:$AD)","v":0},{"$f":"SUMIFS(Sheet1!S71_ASBudgetAmount,Sheet1!S71_SA34Code,$AC:$AC,Sheet1!S71_A5CapexCode,$AD:$AD)","v":0},{"$f":"SUMIFS(Sheet1!S71_OY1BudgetAmount,Sheet1!S71_SA34Code,$AC:$AC,Sheet1!S71_A5CapexCode,$AD:$AD)","v":0},{"$f":"SUMIFS(Sheet1!S71_OY2BudgetAmount,Sheet1!S71_SA34Code,$AC:$AC,Sheet1!S71_A5CapexCode,$AD:$AD)","v":0},null,null,null,null,null,null,null,null,null,null,null,null,null,null,null,null,null,"0680","CE"]
["Revetments",null,{"$f":"SUMIFS(Sheet1!S71_PPPYearAmount,Sheet1!S71_SA34Code,$AC:$AC,Sheet1!S71_A5CapexCode,$AD:$AD)","v":0},{"$f":"SUMIFS(Sheet1!S71_PPYearAmount,Sheet1!S71_SA34Code,$AC:$AC,Sheet1!S71_A5CapexCode,$AD:$AD)","v":0},{"$f":"SUMIFS(Sheet1!S71_PYearAmount,Sheet1!S71_SA34Code,$AC:$AC,Sheet1!S71_A5CapexCode,$AD:$AD)","v":0},{"$f":"SUMIFS(Sheet1!S71_OriginalBudAmnt,Sheet1!S71_SA34Code,$AC:$AC,Sheet1!S71_A5CapexCode,$AD:$AD)","v":0},{"$f":"SUMIFS(Sheet1!S71_AdjustmentBudAmnt,Sheet1!S71_SA34Code,$AC:$AC,Sheet1!S71_A5CapexCode,$AD:$AD)","v":0},{"$f":"SUMIFS(Sheet1!S71_AdjustmentBudAmnt,Sheet1!S71_SA34Code,$AC:$AC,Sheet1!S71_A5CapexCode,$AD:$AD)","v":0},{"$f":"SUMIFS(Sheet1!S71_ASBudgetAmount,Sheet1!S71_SA34Code,$AC:$AC,Sheet1!S71_A5CapexCode,$AD:$AD)","v":0},{"$f":"SUMIFS(Sheet1!S71_OY1BudgetAmount,Sheet1!S71_SA34Code,$AC:$AC,Sheet1!S71_A5CapexCode,$AD:$AD)","v":0},{"$f":"SUMIFS(Sheet1!S71_OY2BudgetAmount,Sheet1!S71_SA34Code,$AC:$AC,Sheet1!S71_A5CapexCode,$AD:$AD)","v":0},null,null,null,null,null,null,null,null,null,null,null,null,null,null,null,null,null,"0690","CE"]
["Promenades",null,{"$f":"SUMIFS(Sheet1!S71_PPPYearAmount,Sheet1!S71_SA34Code,$AC:$AC,Sheet1!S71_A5CapexCode,$AD:$AD)","v":0},{"$f":"SUMIFS(Sheet1!S71_PPYearAmount,Sheet1!S71_SA34Code,$AC:$AC,Sheet1!S71_A5CapexCode,$AD:$AD)","v":0},{"$f":"SUMIFS(Sheet1!S71_PYearAmount,Sheet1!S71_SA34Code,$AC:$AC,Sheet1!S71_A5CapexCode,$AD:$AD)","v":0},{"$f":"SUMIFS(Sheet1!S71_OriginalBudAmnt,Sheet1!S71_SA34Code,$AC:$AC,Sheet1!S71_A5CapexCode,$AD:$AD)","v":0},{"$f":"SUMIFS(Sheet1!S71_AdjustmentBudAmnt,Sheet1!S71_SA34Code,$AC:$AC,Sheet1!S71_A5CapexCode,$AD:$AD)","v":0},{"$f":"SUMIFS(Sheet1!S71_AdjustmentBudAmnt,Sheet1!S71_SA34Code,$AC:$AC,Sheet1!S71_A5CapexCode,$AD:$AD)","v":0},{"$f":"SUMIFS(Sheet1!S71_ASBudgetAmount,Sheet1!S71_SA34Code,$AC:$AC,Sheet1!S71_A5CapexCode,$AD:$AD)","v":0},{"$f":"SUMIFS(Sheet1!S71_OY1BudgetAmount,Sheet1!S71_SA34Code,$AC:$AC,Sheet1!S71_A5CapexCode,$AD:$AD)","v":0},{"$f":"SUMIFS(Sheet1!S71_OY2BudgetAmount,Sheet1!S71_SA34Code,$AC:$AC,Sheet1!S71_A5CapexCode,$AD:$AD)","v":0},null,null,null,null,null,null,null,null,null,null,null,null,null,null,null,null,null,"0700","CE"]
["Capital Spares",null,{"$f":"SUMIFS(Sheet1!S71_PPPYearAmount,Sheet1!S71_SA34Code,$AC:$AC,Sheet1!S71_A5CapexCode,$AD:$AD)","v":0},{"$f":"SUMIFS(Sheet1!S71_PPYearAmount,Sheet1!S71_SA34Code,$AC:$AC,Sheet1!S71_A5CapexCode,$AD:$AD)","v":0},{"$f":"SUMIFS(Sheet1!S71_PYearAmount,Sheet1!S71_SA34Code,$AC:$AC,Sheet1!S71_A5CapexCode,$AD:$AD)","v":0},{"$f":"SUMIFS(Sheet1!S71_OriginalBudAmnt,Sheet1!S71_SA34Code,$AC:$AC,Sheet1!S71_A5CapexCode,$AD:$AD)","v":0},{"$f":"SUMIFS(Sheet1!S71_AdjustmentBudAmnt,Sheet1!S71_SA34Code,$AC:$AC,Sheet1!S71_A5CapexCode,$AD:$AD)","v":0},{"$f":"SUMIFS(Sheet1!S71_AdjustmentBudAmnt,Sheet1!S71_SA34Code,$AC:$AC,Sheet1!S71_A5CapexCode,$AD:$AD)","v":0},{"$f":"SUMIFS(Sheet1!S71_ASBudgetAmount,Sheet1!S71_SA34Code,$AC:$AC,Sheet1!S71_A5CapexCode,$AD:$AD)","v":0},{"$f":"SUMIFS(Sheet1!S71_OY1BudgetAmount,Sheet1!S71_SA34Code,$AC:$AC,Sheet1!S71_A5CapexCode,$AD:$AD)","v":0},{"$f":"SUMIFS(Sheet1!S71_OY2BudgetAmount,Sheet1!S71_SA34Code,$AC:$AC,Sheet1!S71_A5CapexCode,$AD:$AD)","v":0},null,null,null,null,null,null,null,null,null,null,null,null,null,null,null,null,null,"0710","CE"]
["Information and Communication Infrastructure",null,{"$f":"SUM(C69:C72)","v":0},{"$f":"SUM(D69:D72)","v":0},0,0,0,0,0,0,0,null,null,null,null,null,null,null,null,null,null,null,null,null,null,null,null,null,null,"CE"]
["Data Centres",null,{"$f":"SUMIFS(Sheet1!S71_PPPYearAmount,Sheet1!S71_SA34Code,$AC:$AC,Sheet1!S71_A5CapexCode,$AD:$AD)","v":0},{"$f":"SUMIFS(Sheet1!S71_PPYearAmount,Sheet1!S71_SA34Code,$AC:$AC,Sheet1!S71_A5CapexCode,$AD:$AD)","v":0},{"$f":"SUMIFS(Sheet1!S71_PYearAmount,Sheet1!S71_SA34Code,$AC:$AC,Sheet1!S71_A5CapexCode,$AD:$AD)","v":0},{"$f":"SUMIFS(Sheet1!S71_OriginalBudAmnt,Sheet1!S71_SA34Code,$AC:$AC,Sheet1!S71_A5CapexCode,$AD:$AD)","v":0},{"$f":"SUMIFS(Sheet1!S71_AdjustmentBudAmnt,Sheet1!S71_SA34Code,$AC:$AC,Sheet1!S71_A5CapexCode,$AD:$AD)","v":0},{"$f":"SUMIFS(Sheet1!S71_AdjustmentBudAmnt,Sheet1!S71_SA34Code,$AC:$AC,Sheet1!S71_A5CapexCode,$AD:$AD)","v":0},{"$f":"SUMIFS(Sheet1!S71_ASBudgetAmount,Sheet1!S71_SA34Code,$AC:$AC,Sheet1!S71_A5CapexCode,$AD:$AD)","v":0},{"$f":"SUMIFS(Sheet1!S71_OY1BudgetAmount,Sheet1!S71_SA34Code,$AC:$AC,Sheet1!S71_A5CapexCode,$AD:$AD)","v":0},{"$f":"SUMIFS(Sheet1!S71_OY2BudgetAmount,Sheet1!S71_SA34Code,$AC:$AC,Sheet1!S71_A5CapexCode,$AD:$AD)","v":0},null,null,null,null,null,null,null,null,null,null,null,null,null,null,null,null,null,"0730","CE"]
["Core Layers",null,{"$f":"SUMIFS(Sheet1!S71_PPPYearAmount,Sheet1!S71_SA34Code,$AC:$AC,Sheet1!S71_A5CapexCode,$AD:$AD)","v":0},{"$f":"SUMIFS(Sheet1!S71_PPYearAmount,Sheet1!S71_SA34Code,$AC:$AC,Sheet1!S71_A5CapexCode,$AD:$AD)","v":0},{"$f":"SUMIFS(Sheet1!S71_PYearAmount,Sheet1!S71_SA34Code,$AC:$AC,Sheet1!S71_A5CapexCode,$AD:$AD)","v":0},{"$f":"SUMIFS(Sheet1!S71_OriginalBudAmnt,Sheet1!S71_SA34Code,$AC:$AC,Sheet1!S71_A5CapexCode,$AD:$AD)","v":0},{"$f":"SUMIFS(Sheet1!S71_AdjustmentBudAmnt,Sheet1!S71_SA34Code,$AC:$AC,Sheet1!S71_A5CapexCode,$AD:$AD)","v":0},{"$f":"SUMIFS(Sheet1!S71_AdjustmentBudAmnt,Sheet1!S71_SA34Code,$AC:$AC,Sheet1!S71_A5CapexCode,$AD:$AD)","v":0},{"$f":"SUMIFS(Sheet1!S71_ASBudgetAmount,Sheet1!S71_SA34Code,$AC:$AC,Sheet1!S71_A5CapexCode,$AD:$AD)","v":0},{"$f":"SUMIFS(Sheet1!S71_OY1BudgetAmount,Sheet1!S71_SA34Code,$AC:$AC,Sheet1!S71_A5CapexCode,$AD:$AD)","v":0},{"$f":"SUMIFS(Sheet1!S71_OY2BudgetAmount,Sheet1!S71_SA34Code,$AC:$AC,Sheet1!S71_A5CapexCode,$AD:$AD)","v":0},null,null,null,null,null,null,null,null,null,null,null,null,null,null,null,null,null,"0740","CE"]
["Distribution Layers",null,{"$f":"SUMIFS(Sheet1!S71_PPPYearAmount,Sheet1!S71_SA34Code,$AC:$AC,Sheet1!S71_A5CapexCode,$AD:$AD)","v":0},{"$f":"SUMIFS(Sheet1!S71_PPYearAmount,Sheet1!S71_SA34Code,$AC:$AC,Sheet1!S71_A5CapexCode,$AD:$AD)","v":0},{"$f":"SUMIFS(Sheet1!S71_PYearAmount,Sheet1!S71_SA34Code,$AC:$AC,Sheet1!S71_A5CapexCode,$AD:$AD)","v":0},{"$f":"SUMIFS(Sheet1!S71_OriginalBudAmnt,Sheet1!S71_SA34Code,$AC:$AC,Sheet1!S71_A5CapexCode,$AD:$AD)","v":0},{"$f":"SUMIFS(Sheet1!S71_AdjustmentBudAmnt,Sheet1!S71_SA34Code,$AC:$AC,Sheet1!S71_A5CapexCode,$AD:$AD)","v":0},{"$f":"SUMIFS(Sheet1!S71_AdjustmentBudAmnt,Sheet1!S71_SA34Code,$AC:$AC,Sheet1!S71_A5CapexCode,$AD:$AD)","v":0},{"$f":"SUMIFS(Sheet1!S71_ASBudgetAmount,Sheet1!S71_SA34Code,$AC:$AC,Sheet1!S71_A5CapexCode,$AD:$AD)","v":0},{"$f":"SUMIFS(Sheet1!S71_OY1BudgetAmount,Sheet1!S71_SA34Code,$AC:$AC,Sheet1!S71_A5CapexCode,$AD:$AD)","v":0},{"$f":"SUMIFS(Sheet1!S71_OY2BudgetAmount,Sheet1!S71_SA34Code,$AC:$AC,Sheet1!S71_A5CapexCode,$AD:$AD)","v":0},null,null,null,null,null,null,null,null,null,null,null,null,null,null,null,null,null,"0750","CE"]
["Capital Spares",null,{"$f":"SUMIFS(Sheet1!S71_PPPYearAmount,Sheet1!S71_SA34Code,$AC:$AC,Sheet1!S71_A5CapexCode,$AD:$AD)","v":0},{"$f":"SUMIFS(Sheet1!S71_PPYearAmount,Sheet1!S71_SA34Code,$AC:$AC,Sheet1!S71_A5CapexCode,$AD:$AD)","v":0},{"$f":"SUMIFS(Sheet1!S71_PYearAmount,Sheet1!S71_SA34Code,$AC:$AC,Sheet1!S71_A5CapexCode,$AD:$AD)","v":0},{"$f":"SUMIFS(Sheet1!S71_OriginalBudAmnt,Sheet1!S71_SA34Code,$AC:$AC,Sheet1!S71_A5CapexCode,$AD:$AD)","v":0},{"$f":"SUMIFS(Sheet1!S71_AdjustmentBudAmnt,Sheet1!S71_SA34Code,$AC:$AC,Sheet1!S71_A5CapexCode,$AD:$AD)","v":0},{"$f":"SUMIFS(Sheet1!S71_AdjustmentBudAmnt,Sheet1!S71_SA34Code,$AC:$AC,Sheet1!S71_A5CapexCode,$AD:$AD)","v":0},{"$f":"SUMIFS(Sheet1!S71_ASBudgetAmount,Sheet1!S71_SA34Code,$AC:$AC,Sheet1!S71_A5CapexCode,$AD:$AD)","v":0},{"$f":"SUMIFS(Sheet1!S71_OY1BudgetAmount,Sheet1!S71_SA34Code,$AC:$AC,Sheet1!S71_A5CapexCode,$AD:$AD)","v":0},{"$f":"SUMIFS(Sheet1!S71_OY2BudgetAmount,Sheet1!S71_SA34Code,$AC:$AC,Sheet1!S71_A5CapexCode,$AD:$AD)","v":0},null,null,null,null,null,null,null,null,null,null,null,null,null,null,null,null,null,"0760","CE"]
[null,null,null,null,null,null,null,null,null,null,null,null,null,null,null,null,null,null,null,null,null,null,null,null,null,null,null,null,null,"CE"]
["Community Assets",null,{"$f":"C75+C98","v":1066420},{"$f":"D75+D98","v":1066420},1066420,0,0,0,0,0,0,null,null,null,null,null,null,null,null,null,null,null,null,null,null,null,null,null,null,"CE"]
["Community Facilities",null,{"$f":"SUM(C76:C97)","v":1066420},{"$f":"SUM(D76:D97)","v":1066420},1066420,0,0,0,0,0,0,null,null,null,null,null,null,null,null,null,null,null,null,null,null,null,null,null,null,"CE"]
["Halls",null,{"$f":"SUMIFS(Sheet1!S71_PPPYearAmount,Sheet1!S71_SA34Code,$AC:$AC,Sheet1!S71_A5CapexCode,$AD:$AD)","v":0},{"$f":"SUMIFS(Sheet1!S71_PPYearAmount,Sheet1!S71_SA34Code,$AC:$AC,Sheet1!S71_A5CapexCode,$AD:$AD)","v":0},{"$f":"SUMIFS(Sheet1!S71_PYearAmount,Sheet1!S71_SA34Code,$AC:$AC,Sheet1!S71_A5CapexCode,$AD:$AD)","v":0},{"$f":"SUMIFS(Sheet1!S71_OriginalBudAmnt,Sheet1!S71_SA34Code,$AC:$AC,Sheet1!S71_A5CapexCode,$AD:$AD)","v":0},{"$f":"SUMIFS(Sheet1!S71_AdjustmentBudAmnt,Sheet1!S71_SA34Code,$AC:$AC,Sheet1!S71_A5CapexCode,$AD:$AD)","v":0},{"$f":"SUMIFS(Sheet1!S71_AdjustmentBudAmnt,Sheet1!S71_SA34Code,$AC:$AC,Sheet1!S71_A5CapexCode,$AD:$AD)","v":0},{"$f":"SUMIFS(Sheet1!S71_ASBudgetAmount,Sheet1!S71_SA34Code,$AC:$AC,Sheet1!S71_A5CapexCode,$AD:$AD)","v":0},{"$f":"SUMIFS(Sheet1!S71_OY1BudgetAmount,Sheet1!S71_SA34Code,$AC:$AC,Sheet1!S71_A5CapexCode,$AD:$AD)","v":0},{"$f":"SUMIFS(Sheet1!S71_OY2BudgetAmount,Sheet1!S71_SA34Code,$AC:$AC,Sheet1!S71_A5CapexCode,$AD:$AD)","v":0},null,null,null,null,null,null,null,null,null,null,null,null,null,null,null,null,null,"0790","CE"]
["Centres",null,{"$f":"SUMIFS(Sheet1!S71_PPPYearAmount,Sheet1!S71_SA34Code,$AC:$AC,Sheet1!S71_A5CapexCode,$AD:$AD)","v":1066420},{"$f":"SUMIFS(Sheet1!S71_PPYearAmount,Sheet1!S71_SA34Code,$AC:$AC,Sheet1!S71_A5CapexCode,$AD:$AD)","v":1066420},{"$f":"SUMIFS(Sheet1!S71_PYearAmount,Sheet1!S71_SA34Code,$AC:$AC,Sheet1!S71_A5CapexCode,$AD:$AD)","v":1066420},{"$f":"SUMIFS(Sheet1!S71_OriginalBudAmnt,Sheet1!S71_SA34Code,$AC:$AC,Sheet1!S71_A5CapexCode,$AD:$AD)","v":0},{"$f":"SUMIFS(Sheet1!S71_AdjustmentBudAmnt,Sheet1!S71_SA34Code,$AC:$AC,Sheet1!S71_A5CapexCode,$AD:$AD)","v":0},{"$f":"SUMIFS(Sheet1!S71_AdjustmentBudAmnt,Sheet1!S71_SA34Code,$AC:$AC,Sheet1!S71_A5CapexCode,$AD:$AD)","v":0},{"$f":"SUMIFS(Sheet1!S71_ASBudgetAmount,Sheet1!S71_SA34Code,$AC:$AC,Sheet1!S71_A5CapexCode,$AD:$AD)","v":0},{"$f":"SUMIFS(Sheet1!S71_OY1BudgetAmount,Sheet1!S71_SA34Code,$AC:$AC,Sheet1!S71_A5CapexCode,$AD:$AD)","v":0},{"$f":"SUMIFS(Sheet1!S71_OY2BudgetAmount,Sheet1!S71_SA34Code,$AC:$AC,Sheet1!S71_A5CapexCode,$AD:$AD)","v":0},null,null,null,null,null,null,null,null,null,null,null,null,null,null,null,null,null,"0800","CE"]
["Crèches",null,{"$f":"SUMIFS(Sheet1!S71_PPPYearAmount,Sheet1!S71_SA34Code,$AC:$AC,Sheet1!S71_A5CapexCode,$AD:$AD)","v":0},{"$f":"SUMIFS(Sheet1!S71_PPYearAmount,Sheet1!S71_SA34Code,$AC:$AC,Sheet1!S71_A5CapexCode,$AD:$AD)","v":0},{"$f":"SUMIFS(Sheet1!S71_PYearAmount,Sheet1!S71_SA34Code,$AC:$AC,Sheet1!S71_A5CapexCode,$AD:$AD)","v":0},{"$f":"SUMIFS(Sheet1!S71_OriginalBudAmnt,Sheet1!S71_SA34Code,$AC:$AC,Sheet1!S71_A5CapexCode,$AD:$AD)","v":0},{"$f":"SUMIFS(Sheet1!S71_AdjustmentBudAmnt,Sheet1!S71_SA34Code,$AC:$AC,Sheet1!S71_A5CapexCode,$AD:$AD)","v":0},{"$f":"SUMIFS(Sheet1!S71_AdjustmentBudAmnt,Sheet1!S71_SA34Code,$AC:$AC,Sheet1!S71_A5CapexCode,$AD:$AD)","v":0},{"$f":"SUMIFS(Sheet1!S71_ASBudgetAmount,Sheet1!S71_SA34Code,$AC:$AC,Sheet1!S71_A5CapexCode,$AD:$AD)","v":0},{"$f":"SUMIFS(Sheet1!S71_OY1BudgetAmount,Sheet1!S71_SA34Code,$AC:$AC,Sheet1!S71_A5CapexCode,$AD:$AD)","v":0},{"$f":"SUMIFS(Sheet1!S71_OY2BudgetAmount,Sheet1!S71_SA34Code,$AC:$AC,Sheet1!S71_A5CapexCode,$AD:$AD)","v":0},null,null,null,null,null,null,null,null,null,null,null,null,null,null,null,null,null,"0810","CE"]
["Clinics/Care Centres",null,{"$f":"SUMIFS(Sheet1!S71_PPPYearAmount,Sheet1!S71_SA34Code,$AC:$AC,Sheet1!S71_A5CapexCode,$AD:$AD)","v":0},{"$f":"SUMIFS(Sheet1!S71_PPYearAmount,Sheet1!S71_SA34Code,$AC:$AC,Sheet1!S71_A5CapexCode,$AD:$AD)","v":0},{"$f":"SUMIFS(Sheet1!S71_PYearAmount,Sheet1!S71_SA34Code,$AC:$AC,Sheet1!S71_A5CapexCode,$AD:$AD)","v":0},{"$f":"SUMIFS(Sheet1!S71_OriginalBudAmnt,Sheet1!S71_SA34Code,$AC:$AC,Sheet1!S71_A5CapexCode,$AD:$AD)","v":0},{"$f":"SUMIFS(Sheet1!S71_AdjustmentBudAmnt,Sheet1!S71_SA34Code,$AC:$AC,Sheet1!S71_A5CapexCode,$AD:$AD)","v":0},{"$f":"SUMIFS(Sheet1!S71_AdjustmentBudAmnt,Sheet1!S71_SA34Code,$AC:$AC,Sheet1!S71_A5CapexCode,$AD:$AD)","v":0},{"$f":"SUMIFS(Sheet1!S71_ASBudgetAmount,Sheet1!S71_SA34Code,$AC:$AC,Sheet1!S71_A5CapexCode,$AD:$AD)","v":0},{"$f":"SUMIFS(Sheet1!S71_OY1BudgetAmount,Sheet1!S71_SA34Code,$AC:$AC,Sheet1!S71_A5CapexCode,$AD:$AD)","v":0},{"$f":"SUMIFS(Sheet1!S71_OY2BudgetAmount,Sheet1!S71_SA34Code,$AC:$AC,Sheet1!S71_A5CapexCode,$AD:$AD)","v":0},null,null,null,null,null,null,null,null,null,null,null,null,null,null,null,null,null,"0820","CE"]
["Fire/Ambulance Stations",null,{"$f":"SUMIFS(Sheet1!S71_PPPYearAmount,Sheet1!S71_SA34Code,$AC:$AC,Sheet1!S71_A5CapexCode,$AD:$AD)","v":0},{"$f":"SUMIFS(Sheet1!S71_PPYearAmount,Sheet1!S71_SA34Code,$AC:$AC,Sheet1!S71_A5CapexCode,$AD:$AD)","v":0},{"$f":"SUMIFS(Sheet1!S71_PYearAmount,Sheet1!S71_SA34Code,$AC:$AC,Sheet1!S71_A5CapexCode,$AD:$AD)","v":0},{"$f":"SUMIFS(Sheet1!S71_OriginalBudAmnt,Sheet1!S71_SA34Code,$AC:$AC,Sheet1!S71_A5CapexCode,$AD:$AD)","v":0},{"$f":"SUMIFS(Sheet1!S71_AdjustmentBudAmnt,Sheet1!S71_SA34Code,$AC:$AC,Sheet1!S71_A5CapexCode,$AD:$AD)","v":0},{"$f":"SUMIFS(Sheet1!S71_AdjustmentBudAmnt,Sheet1!S71_SA34Code,$AC:$AC,Sheet1!S71_A5CapexCode,$AD:$AD)","v":0},{"$f":"SUMIFS(Sheet1!S71_ASBudgetAmount,Sheet1!S71_SA34Code,$AC:$AC,Sheet1!S71_A5CapexCode,$AD:$AD)","v":0},{"$f":"SUMIFS(Sheet1!S71_OY1BudgetAmount,Sheet1!S71_SA34Code,$AC:$AC,Sheet1!S71_A5CapexCode,$AD:$AD)","v":0},{"$f":"SUMIFS(Sheet1!S71_OY2BudgetAmount,Sheet1!S71_SA34Code,$AC:$AC,Sheet1!S71_A5CapexCode,$AD:$AD)","v":0},null,null,null,null,null,null,null,null,null,null,null,null,null,null,null,null,null,"0830","CE"]
["Testing Stations",null,{"$f":"SUMIFS(Sheet1!S71_PPPYearAmount,Sheet1!S71_SA34Code,$AC:$AC,Sheet1!S71_A5CapexCode,$AD:$AD)","v":0},{"$f":"SUMIFS(Sheet1!S71_PPYearAmount,Sheet1!S71_SA34Code,$AC:$AC,Sheet1!S71_A5CapexCode,$AD:$AD)","v":0},{"$f":"SUMIFS(Sheet1!S71_PYearAmount,Sheet1!S71_SA34Code,$AC:$AC,Sheet1!S71_A5CapexCode,$AD:$AD)","v":0},{"$f":"SUMIFS(Sheet1!S71_OriginalBudAmnt,Sheet1!S71_SA34Code,$AC:$AC,Sheet1!S71_A5CapexCode,$AD:$AD)","v":0},{"$f":"SUMIFS(Sheet1!S71_AdjustmentBudAmnt,Sheet1!S71_SA34Code,$AC:$AC,Sheet1!S71_A5CapexCode,$AD:$AD)","v":0},{"$f":"SUMIFS(Sheet1!S71_AdjustmentBudAmnt,Sheet1!S71_SA34Code,$AC:$AC,Sheet1!S71_A5CapexCode,$AD:$AD)","v":0},{"$f":"SUMIFS(Sheet1!S71_ASBudgetAmount,Sheet1!S71_SA34Code,$AC:$AC,Sheet1!S71_A5CapexCode,$AD:$AD)","v":0},{"$f":"SUMIFS(Sheet1!S71_OY1BudgetAmount,Sheet1!S71_SA34Code,$AC:$AC,Sheet1!S71_A5CapexCode,$AD:$AD)","v":0},{"$f":"SUMIFS(Sheet1!S71_OY2BudgetAmount,Sheet1!S71_SA34Code,$AC:$AC,Sheet1!S71_A5CapexCode,$AD:$AD)","v":0},null,null,null,null,null,null,null,null,null,null,null,null,null,null,null,null,null,"0840","CE"]
["Museums",null,{"$f":"SUMIFS(Sheet1!S71_PPPYearAmount,Sheet1!S71_SA34Code,$AC:$AC,Sheet1!S71_A5CapexCode,$AD:$AD)","v":0},{"$f":"SUMIFS(Sheet1!S71_PPYearAmount,Sheet1!S71_SA34Code,$AC:$AC,Sheet1!S71_A5CapexCode,$AD:$AD)","v":0},{"$f":"SUMIFS(Sheet1!S71_PYearAmount,Sheet1!S71_SA34Code,$AC:$AC,Sheet1!S71_A5CapexCode,$AD:$AD)","v":0},{"$f":"SUMIFS(Sheet1!S71_OriginalBudAmnt,Sheet1!S71_SA34Code,$AC:$AC,Sheet1!S71_A5CapexCode,$AD:$AD)","v":0},{"$f":"SUMIFS(Sheet1!S71_AdjustmentBudAmnt,Sheet1!S71_SA34Code,$AC:$AC,Sheet1!S71_A5CapexCode,$AD:$AD)","v":0},{"$f":"SUMIFS(Sheet1!S71_AdjustmentBudAmnt,Sheet1!S71_SA34Code,$AC:$AC,Sheet1!S71_A5CapexCode,$AD:$AD)","v":0},{"$f":"SUMIFS(Sheet1!S71_ASBudgetAmount,Sheet1!S71_SA34Code,$AC:$AC,Sheet1!S71_A5CapexCode,$AD:$AD)","v":0},{"$f":"SUMIFS(Sheet1!S71_OY1BudgetAmount,Sheet1!S71_SA34Code,$AC:$AC,Sheet1!S71_A5CapexCode,$AD:$AD)","v":0},{"$f":"SUMIFS(Sheet1!S71_OY2BudgetAmount,Sheet1!S71_SA34Code,$AC:$AC,Sheet1!S71_A5CapexCode,$AD:$AD)","v":0},null,null,null,null,null,null,null,null,null,null,null,null,null,null,null,null,null,"0850","CE"]
["Galleries",null,{"$f":"SUMIFS(Sheet1!S71_PPPYearAmount,Sheet1!S71_SA34Code,$AC:$AC,Sheet1!S71_A5CapexCode,$AD:$AD)","v":0},{"$f":"SUMIFS(Sheet1!S71_PPYearAmount,Sheet1!S71_SA34Code,$AC:$AC,Sheet1!S71_A5CapexCode,$AD:$AD)","v":0},{"$f":"SUMIFS(Sheet1!S71_PYearAmount,Sheet1!S71_SA34Code,$AC:$AC,Sheet1!S71_A5CapexCode,$AD:$AD)","v":0},{"$f":"SUMIFS(Sheet1!S71_OriginalBudAmnt,Sheet1!S71_SA34Code,$AC:$AC,Sheet1!S71_A5CapexCode,$AD:$AD)","v":0},{"$f":"SUMIFS(Sheet1!S71_AdjustmentBudAmnt,Sheet1!S71_SA34Code,$AC:$AC,Sheet1!S71_A5CapexCode,$AD:$AD)","v":0},{"$f":"SUMIFS(Sheet1!S71_AdjustmentBudAmnt,Sheet1!S71_SA34Code,$AC:$AC,Sheet1!S71_A5CapexCode,$AD:$AD)","v":0},{"$f":"SUMIFS(Sheet1!S71_ASBudgetAmount,Sheet1!S71_SA34Code,$AC:$AC,Sheet1!S71_A5CapexCode,$AD:$AD)","v":0},{"$f":"SUMIFS(Sheet1!S71_OY1BudgetAmount,Sheet1!S71_SA34Code,$AC:$AC,Sheet1!S71_A5CapexCode,$AD:$AD)","v":0},{"$f":"SUMIFS(Sheet1!S71_OY2BudgetAmount,Sheet1!S71_SA34Code,$AC:$AC,Sheet1!S71_A5CapexCode,$AD:$AD)","v":0},null,null,null,null,null,null,null,null,null,null,null,null,null,null,null,null,null,"0860","CE"]
["Theatres",null,{"$f":"SUMIFS(Sheet1!S71_PPPYearAmount,Sheet1!S71_SA34Code,$AC:$AC,Sheet1!S71_A5CapexCode,$AD:$AD)","v":0},{"$f":"SUMIFS(Sheet1!S71_PPYearAmount,Sheet1!S71_SA34Code,$AC:$AC,Sheet1!S71_A5CapexCode,$AD:$AD)","v":0},{"$f":"SUMIFS(Sheet1!S71_PYearAmount,Sheet1!S71_SA34Code,$AC:$AC,Sheet1!S71_A5CapexCode,$AD:$AD)","v":0},{"$f":"SUMIFS(Sheet1!S71_OriginalBudAmnt,Sheet1!S71_SA34Code,$AC:$AC,Sheet1!S71_A5CapexCode,$AD:$AD)","v":0},{"$f":"SUMIFS(Sheet1!S71_AdjustmentBudAmnt,Sheet1!S71_SA34Code,$AC:$AC,Sheet1!S71_A5CapexCode,$AD:$AD)","v":0},{"$f":"SUMIFS(Sheet1!S71_AdjustmentBudAmnt,Sheet1!S71_SA34Code,$AC:$AC,Sheet1!S71_A5CapexCode,$AD:$AD)","v":0},{"$f":"SUMIFS(Sheet1!S71_ASBudgetAmount,Sheet1!S71_SA34Code,$AC:$AC,Sheet1!S71_A5CapexCode,$AD:$AD)","v":0},{"$f":"SUMIFS(Sheet1!S71_OY1BudgetAmount,Sheet1!S71_SA34Code,$AC:$AC,Sheet1!S71_A5CapexCode,$AD:$AD)","v":0},{"$f":"SUMIFS(Sheet1!S71_OY2BudgetAmount,Sheet1!S71_SA34Code,$AC:$AC,Sheet1!S71_A5CapexCode,$AD:$AD)","v":0},null,null,null,null,null,null,null,null,null,null,null,null,null,null,null,null,null,"0870","CE"]
["Libraries",null,{"$f":"SUMIFS(Sheet1!S71_PPPYearAmount,Sheet1!S71_SA34Code,$AC:$AC,Sheet1!S71_A5CapexCode,$AD:$AD)","v":0},{"$f":"SUMIFS(Sheet1!S71_PPYearAmount,Sheet1!S71_SA34Code,$AC:$AC,Sheet1!S71_A5CapexCode,$AD:$AD)","v":0},{"$f":"SUMIFS(Sheet1!S71_PYearAmount,Sheet1!S71_SA34Code,$AC:$AC,Sheet1!S71_A5CapexCode,$AD:$AD)","v":0},{"$f":"SUMIFS(Sheet1!S71_OriginalBudAmnt,Sheet1!S71_SA34Code,$AC:$AC,Sheet1!S71_A5CapexCode,$AD:$AD)","v":0},{"$f":"SUMIFS(Sheet1!S71_AdjustmentBudAmnt,Sheet1!S71_SA34Code,$AC:$AC,Sheet1!S71_A5CapexCode,$AD:$AD)","v":0},{"$f":"SUMIFS(Sheet1!S71_AdjustmentBudAmnt,Sheet1!S71_SA34Code,$AC:$AC,Sheet1!S71_A5CapexCode,$AD:$AD)","v":0},{"$f":"SUMIFS(Sheet1!S71_ASBudgetAmount,Sheet1!S71_SA34Code,$AC:$AC,Sheet1!S71_A5CapexCode,$AD:$AD)","v":0},{"$f":"SUMIFS(Sheet1!S71_OY1BudgetAmount,Sheet1!S71_SA34Code,$AC:$AC,Sheet1!S71_A5CapexCode,$AD:$AD)","v":0},{"$f":"SUMIFS(Sheet1!S71_OY2BudgetAmount,Sheet1!S71_SA34Code,$AC:$AC,Sheet1!S71_A5CapexCode,$AD:$AD)","v":0},null,null,null,null,null,null,null,null,null,null,null,null,null,null,null,null,null,"0880","CE"]
["Cemeteries/Crematoria",null,{"$f":"SUMIFS(Sheet1!S71_PPPYearAmount,Sheet1!S71_SA34Code,$AC:$AC,Sheet1!S71_A5CapexCode,$AD:$AD)","v":0},{"$f":"SUMIFS(Sheet1!S71_PPYearAmount,Sheet1!S71_SA34Code,$AC:$AC,Sheet1!S71_A5CapexCode,$AD:$AD)","v":0},{"$f":"SUMIFS(Sheet1!S71_PYearAmount,Sheet1!S71_SA34Code,$AC:$AC,Sheet1!S71_A5CapexCode,$AD:$AD)","v":0},{"$f":"SUMIFS(Sheet1!S71_OriginalBudAmnt,Sheet1!S71_SA34Code,$AC:$AC,Sheet1!S71_A5CapexCode,$AD:$AD)","v":0},{"$f":"SUMIFS(Sheet1!S71_AdjustmentBudAmnt,Sheet1!S71_SA34Code,$AC:$AC,Sheet1!S71_A5CapexCode,$AD:$AD)","v":0},{"$f":"SUMIFS(Sheet1!S71_AdjustmentBudAmnt,Sheet1!S71_SA34Code,$AC:$AC,Sheet1!S71_A5CapexCode,$AD:$AD)","v":0},{"$f":"SUMIFS(Sheet1!S71_ASBudgetAmount,Sheet1!S71_SA34Code,$AC:$AC,Sheet1!S71_A5CapexCode,$AD:$AD)","v":0},{"$f":"SUMIFS(Sheet1!S71_OY1BudgetAmount,Sheet1!S71_SA34Code,$AC:$AC,Sheet1!S71_A5CapexCode,$AD:$AD)","v":0},{"$f":"SUMIFS(Sheet1!S71_OY2BudgetAmount,Sheet1!S71_SA34Code,$AC:$AC,Sheet1!S71_A5CapexCode,$AD:$AD)","v":0},null,null,null,null,null,null,null,null,null,null,null,null,null,null,null,null,null,"0890","CE"]
["Police",null,{"$f":"SUMIFS(Sheet1!S71_PPPYearAmount,Sheet1!S71_SA34Code,$AC:$AC,Sheet1!S71_A5CapexCode,$AD:$AD)","v":0},{"$f":"SUMIFS(Sheet1!S71_PPYearAmount,Sheet1!S71_SA34Code,$AC:$AC,Sheet1!S71_A5CapexCode,$AD:$AD)","v":0},{"$f":"SUMIFS(Sheet1!S71_PYearAmount,Sheet1!S71_SA34Code,$AC:$AC,Sheet1!S71_A5CapexCode,$AD:$AD)","v":0},{"$f":"SUMIFS(Sheet1!S71_OriginalBudAmnt,Sheet1!S71_SA34Code,$AC:$AC,Sheet1!S71_A5CapexCode,$AD:$AD)","v":0},{"$f":"SUMIFS(Sheet1!S71_AdjustmentBudAmnt,Sheet1!S71_SA34Code,$AC:$AC,Sheet1!S71_A5CapexCode,$AD:$AD)","v":0},{"$f":"SUMIFS(Sheet1!S71_AdjustmentBudAmnt,Sheet1!S71_SA34Code,$AC:$AC,Sheet1!S71_A5CapexCode,$AD:$AD)","v":0},{"$f":"SUMIFS(Sheet1!S71_ASBudgetAmount,Sheet1!S71_SA34Code,$AC:$AC,Sheet1!S71_A5CapexCode,$AD:$AD)","v":0},{"$f":"SUMIFS(Sheet1!S71_OY1BudgetAmount,Sheet1!S71_SA34Code,$AC:$AC,Sheet1!S71_A5CapexCode,$AD:$AD)","v":0},{"$f":"SUMIFS(Sheet1!S71_OY2BudgetAmount,Sheet1!S71_SA34Code,$AC:$AC,Sheet1!S71_A5CapexCode,$AD:$AD)","v":0},null,null,null,null,null,null,null,null,null,null,null,null,null,null,null,null,null,"0900","CE"]
["Parks",null,{"$f":"SUMIFS(Sheet1!S71_PPPYearAmount,Sheet1!S71_SA34Code,$AC:$AC,Sheet1!S71_A5CapexCode,$AD:$AD)","v":0},{"$f":"SUMIFS(Sheet1!S71_PPYearAmount,Sheet1!S71_SA34Code,$AC:$AC,Sheet1!S71_A5CapexCode,$AD:$AD)","v":0},{"$f":"SUMIFS(Sheet1!S71_PYearAmount,Sheet1!S71_SA34Code,$AC:$AC,Sheet1!S71_A5CapexCode,$AD:$AD)","v":0},{"$f":"SUMIFS(Sheet1!S71_OriginalBudAmnt,Sheet1!S71_SA34Code,$AC:$AC,Sheet1!S71_A5CapexCode,$AD:$AD)","v":0},{"$f":"SUMIFS(Sheet1!S71_AdjustmentBudAmnt,Sheet1!S71_SA34Code,$AC:$AC,Sheet1!S71_A5CapexCode,$AD:$AD)","v":0},{"$f":"SUMIFS(Sheet1!S71_AdjustmentBudAmnt,Sheet1!S71_SA34Code,$AC:$AC,Sheet1!S71_A5CapexCode,$AD:$AD)","v":0},{"$f":"SUMIFS(Sheet1!S71_ASBudgetAmount,Sheet1!S71_SA34Code,$AC:$AC,Sheet1!S71_A5CapexCode,$AD:$AD)","v":0},{"$f":"SUMIFS(Sheet1!S71_OY1BudgetAmount,Sheet1!S71_SA34Code,$AC:$AC,Sheet1!S71_A5CapexCode,$AD:$AD)","v":0},{"$f":"SUMIFS(Sheet1!S71_OY2BudgetAmount,Sheet1!S71_SA34Code,$AC:$AC,Sheet1!S71_A5CapexCode,$AD:$AD)","v":0},null,null,null,null,null,null,null,null,null,null,null,null,null,null,null,null,null,"0910","CE"]
["Public Open Space",null,{"$f":"SUMIFS(Sheet1!S71_PPPYearAmount,Sheet1!S71_SA34Code,$AC:$AC,Sheet1!S71_A5CapexCode,$AD:$AD)","v":0},{"$f":"SUMIFS(Sheet1!S71_PPYearAmount,Sheet1!S71_SA34Code,$AC:$AC,Sheet1!S71_A5CapexCode,$AD:$AD)","v":0},{"$f":"SUMIFS(Sheet1!S71_PYearAmount,Sheet1!S71_SA34Code,$AC:$AC,Sheet1!S71_A5CapexCode,$AD:$AD)","v":0},{"$f":"SUMIFS(Sheet1!S71_OriginalBudAmnt,Sheet1!S71_SA34Code,$AC:$AC,Sheet1!S71_A5CapexCode,$AD:$AD)","v":0},{"$f":"SUMIFS(Sheet1!S71_AdjustmentBudAmnt,Sheet1!S71_SA34Code,$AC:$AC,Sheet1!S71_A5CapexCode,$AD:$AD)","v":0},{"$f":"SUMIFS(Sheet1!S71_AdjustmentBudAmnt,Sheet1!S71_SA34Code,$AC:$AC,Sheet1!S71_A5CapexCode,$AD:$AD)","v":0},{"$f":"SUMIFS(Sheet1!S71_ASBudgetAmount,Sheet1!S71_SA34Code,$AC:$AC,Sheet1!S71_A5CapexCode,$AD:$AD)","v":0},{"$f":"SUMIFS(Sheet1!S71_OY1BudgetAmount,Sheet1!S71_SA34Code,$AC:$AC,Sheet1!S71_A5CapexCode,$AD:$AD)","v":0},{"$f":"SUMIFS(Sheet1!S71_OY2BudgetAmount,Sheet1!S71_SA34Code,$AC:$AC,Sheet1!S71_A5CapexCode,$AD:$AD)","v":0},null,null,null,null,null,null,null,null,null,null,null,null,null,null,null,null,null,"0920","CE"]
["Nature Reserves",null,{"$f":"SUMIFS(Sheet1!S71_PPPYearAmount,Sheet1!S71_SA34Code,$AC:$AC,Sheet1!S71_A5CapexCode,$AD:$AD)","v":0},{"$f":"SUMIFS(Sheet1!S71_PPYearAmount,Sheet1!S71_SA34Code,$AC:$AC,Sheet1!S71_A5CapexCode,$AD:$AD)","v":0},{"$f":"SUMIFS(Sheet1!S71_PYearAmount,Sheet1!S71_SA34Code,$AC:$AC,Sheet1!S71_A5CapexCode,$AD:$AD)","v":0},{"$f":"SUMIFS(Sheet1!S71_OriginalBudAmnt,Sheet1!S71_SA34Code,$AC:$AC,Sheet1!S71_A5CapexCode,$AD:$AD)","v":0},{"$f":"SUMIFS(Sheet1!S71_AdjustmentBudAmnt,Sheet1!S71_SA34Code,$AC:$AC,Sheet1!S71_A5CapexCode,$AD:$AD)","v":0},{"$f":"SUMIFS(Sheet1!S71_AdjustmentBudAmnt,Sheet1!S71_SA34Code,$AC:$AC,Sheet1!S71_A5CapexCode,$AD:$AD)","v":0},{"$f":"SUMIFS(Sheet1!S71_ASBudgetAmount,Sheet1!S71_SA34Code,$AC:$AC,Sheet1!S71_A5CapexCode,$AD:$AD)","v":0},{"$f":"SUMIFS(Sheet1!S71_OY1BudgetAmount,Sheet1!S71_SA34Code,$AC:$AC,Sheet1!S71_A5CapexCode,$AD:$AD)","v":0},{"$f":"SUMIFS(Sheet1!S71_OY2BudgetAmount,Sheet1!S71_SA34Code,$AC:$AC,Sheet1!S71_A5CapexCode,$AD:$AD)","v":0},null,null,null,null,null,null,null,null,null,null,null,null,null,null,null,null,null,"0930","CE"]
["Public Ablution Facilities",null,{"$f":"SUMIFS(Sheet1!S71_PPPYearAmount,Sheet1!S71_SA34Code,$AC:$AC,Sheet1!S71_A5CapexCode,$AD:$AD)","v":0},{"$f":"SUMIFS(Sheet1!S71_PPYearAmount,Sheet1!S71_SA34Code,$AC:$AC,Sheet1!S71_A5CapexCode,$AD:$AD)","v":0},{"$f":"SUMIFS(Sheet1!S71_PYearAmount,Sheet1!S71_SA34Code,$AC:$AC,Sheet1!S71_A5CapexCode,$AD:$AD)","v":0},{"$f":"SUMIFS(Sheet1!S71_OriginalBudAmnt,Sheet1!S71_SA34Code,$AC:$AC,Sheet1!S71_A5CapexCode,$AD:$AD)","v":0},{"$f":"SUMIFS(Sheet1!S71_AdjustmentBudAmnt,Sheet1!S71_SA34Code,$AC:$AC,Sheet1!S71_A5CapexCode,$AD:$AD)","v":0},{"$f":"SUMIFS(Sheet1!S71_AdjustmentBudAmnt,Sheet1!S71_SA34Code,$AC:$AC,Sheet1!S71_A5CapexCode,$AD:$AD)","v":0},{"$f":"SUMIFS(Sheet1!S71_ASBudgetAmount,Sheet1!S71_SA34Code,$AC:$AC,Sheet1!S71_A5CapexCode,$AD:$AD)","v":0},{"$f":"SUMIFS(Sheet1!S71_OY1BudgetAmount,Sheet1!S71_SA34Code,$AC:$AC,Sheet1!S71_A5CapexCode,$AD:$AD)","v":0},{"$f":"SUMIFS(Sheet1!S71_OY2BudgetAmount,Sheet1!S71_SA34Code,$AC:$AC,Sheet1!S71_A5CapexCode,$AD:$AD)","v":0},null,null,null,null,null,null,null,null,null,null,null,null,null,null,null,null,null,"0940","CE"]
["Markets",null,{"$f":"SUMIFS(Sheet1!S71_PPPYearAmount,Sheet1!S71_SA34Code,$AC:$AC,Sheet1!S71_A5CapexCode,$AD:$AD)","v":0},{"$f":"SUMIFS(Sheet1!S71_PPYearAmount,Sheet1!S71_SA34Code,$AC:$AC,Sheet1!S71_A5CapexCode,$AD:$AD)","v":0},{"$f":"SUMIFS(Sheet1!S71_PYearAmount,Sheet1!S71_SA34Code,$AC:$AC,Sheet1!S71_A5CapexCode,$AD:$AD)","v":0},{"$f":"SUMIFS(Sheet1!S71_OriginalBudAmnt,Sheet1!S71_SA34Code,$AC:$AC,Sheet1!S71_A5CapexCode,$AD:$AD)","v":0},{"$f":"SUMIFS(Sheet1!S71_AdjustmentBudAmnt,Sheet1!S71_SA34Code,$AC:$AC,Sheet1!S71_A5CapexCode,$AD:$AD)","v":0},{"$f":"SUMIFS(Sheet1!S71_AdjustmentBudAmnt,Sheet1!S71_SA34Code,$AC:$AC,Sheet1!S71_A5CapexCode,$AD:$AD)","v":0},{"$f":"SUMIFS(Sheet1!S71_ASBudgetAmount,Sheet1!S71_SA34Code,$AC:$AC,Sheet1!S71_A5CapexCode,$AD:$AD)","v":0},{"$f":"SUMIFS(Sheet1!S71_OY1BudgetAmount,Sheet1!S71_SA34Code,$AC:$AC,Sheet1!S71_A5CapexCode,$AD:$AD)","v":0},{"$f":"SUMIFS(Sheet1!S71_OY2BudgetAmount,Sheet1!S71_SA34Code,$AC:$AC,Sheet1!S71_A5CapexCode,$AD:$AD)","v":0},null,null,null,null,null,null,null,null,null,null,null,null,null,null,null,null,null,"0950","CE"]
["Stalls",null,{"$f":"SUMIFS(Sheet1!S71_PPPYearAmount,Sheet1!S71_SA34Code,$AC:$AC,Sheet1!S71_A5CapexCode,$AD:$AD)","v":0},{"$f":"SUMIFS(Sheet1!S71_PPYearAmount,Sheet1!S71_SA34Code,$AC:$AC,Sheet1!S71_A5CapexCode,$AD:$AD)","v":0},{"$f":"SUMIFS(Sheet1!S71_PYearAmount,Sheet1!S71_SA34Code,$AC:$AC,Sheet1!S71_A5CapexCode,$AD:$AD)","v":0},{"$f":"SUMIFS(Sheet1!S71_OriginalBudAmnt,Sheet1!S71_SA34Code,$AC:$AC,Sheet1!S71_A5CapexCode,$AD:$AD)","v":0},{"$f":"SUMIFS(Sheet1!S71_AdjustmentBudAmnt,Sheet1!S71_SA34Code,$AC:$AC,Sheet1!S71_A5CapexCode,$AD:$AD)","v":0},{"$f":"SUMIFS(Sheet1!S71_AdjustmentBudAmnt,Sheet1!S71_SA34Code,$AC:$AC,Sheet1!S71_A5CapexCode,$AD:$AD)","v":0},{"$f":"SUMIFS(Sheet1!S71_ASBudgetAmount,Sheet1!S71_SA34Code,$AC:$AC,Sheet1!S71_A5CapexCode,$AD:$AD)","v":0},{"$f":"SUMIFS(Sheet1!S71_OY1BudgetAmount,Sheet1!S71_SA34Code,$AC:$AC,Sheet1!S71_A5CapexCode,$AD:$AD)","v":0},{"$f":"SUMIFS(Sheet1!S71_OY2BudgetAmount,Sheet1!S71_SA34Code,$AC:$AC,Sheet1!S71_A5CapexCode,$AD:$AD)","v":0},null,null,null,null,null,null,null,null,null,null,null,null,null,null,null,null,null,"0960","CE"]
["Abattoirs",null,{"$f":"SUMIFS(Sheet1!S71_PPPYearAmount,Sheet1!S71_SA34Code,$AC:$AC,Sheet1!S71_A5CapexCode,$AD:$AD)","v":0},{"$f":"SUMIFS(Sheet1!S71_PPYearAmount,Sheet1!S71_SA34Code,$AC:$AC,Sheet1!S71_A5CapexCode,$AD:$AD)","v":0},{"$f":"SUMIFS(Sheet1!S71_PYearAmount,Sheet1!S71_SA34Code,$AC:$AC,Sheet1!S71_A5CapexCode,$AD:$AD)","v":0},{"$f":"SUMIFS(Sheet1!S71_OriginalBudAmnt,Sheet1!S71_SA34Code,$AC:$AC,Sheet1!S71_A5CapexCode,$AD:$AD)","v":0},{"$f":"SUMIFS(Sheet1!S71_AdjustmentBudAmnt,Sheet1!S71_SA34Code,$AC:$AC,Sheet1!S71_A5CapexCode,$AD:$AD)","v":0},{"$f":"SUMIFS(Sheet1!S71_AdjustmentBudAmnt,Sheet1!S71_SA34Code,$AC:$AC,Sheet1!S71_A5CapexCode,$AD:$AD)","v":0},{"$f":"SUMIFS(Sheet1!S71_ASBudgetAmount,Sheet1!S71_SA34Code,$AC:$AC,Sheet1!S71_A5CapexCode,$AD:$AD)","v":0},{"$f":"SUMIFS(Sheet1!S71_OY1BudgetAmount,Sheet1!S71_SA34Code,$AC:$AC,Sheet1!S71_A5CapexCode,$AD:$AD)","v":0},{"$f":"SUMIFS(Sheet1!S71_OY2BudgetAmount,Sheet1!S71_SA34Code,$AC:$AC,Sheet1!S71_A5CapexCode,$AD:$AD)","v":0},null,null,null,null,null,null,null,null,null,null,null,null,null,null,null,null,null,"0970","CE"]
["Airports",null,{"$f":"SUMIFS(Sheet1!S71_PPPYearAmount,Sheet1!S71_SA34Code,$AC:$AC,Sheet1!S71_A5CapexCode,$AD:$AD)","v":0},{"$f":"SUMIFS(Sheet1!S71_PPYearAmount,Sheet1!S71_SA34Code,$AC:$AC,Sheet1!S71_A5CapexCode,$AD:$AD)","v":0},{"$f":"SUMIFS(Sheet1!S71_PYearAmount,Sheet1!S71_SA34Code,$AC:$AC,Sheet1!S71_A5CapexCode,$AD:$AD)","v":0},{"$f":"SUMIFS(Sheet1!S71_OriginalBudAmnt,Sheet1!S71_SA34Code,$AC:$AC,Sheet1!S71_A5CapexCode,$AD:$AD)","v":0},{"$f":"SUMIFS(Sheet1!S71_AdjustmentBudAmnt,Sheet1!S71_SA34Code,$AC:$AC,Sheet1!S71_A5CapexCode,$AD:$AD)","v":0},{"$f":"SUMIFS(Sheet1!S71_AdjustmentBudAmnt,Sheet1!S71_SA34Code,$AC:$AC,Sheet1!S71_A5CapexCode,$AD:$AD)","v":0},{"$f":"SUMIFS(Sheet1!S71_ASBudgetAmount,Sheet1!S71_SA34Code,$AC:$AC,Sheet1!S71_A5CapexCode,$AD:$AD)","v":0},{"$f":"SUMIFS(Sheet1!S71_OY1BudgetAmount,Sheet1!S71_SA34Code,$AC:$AC,Sheet1!S71_A5CapexCode,$AD:$AD)","v":0},{"$f":"SUMIFS(Sheet1!S71_OY2BudgetAmount,Sheet1!S71_SA34Code,$AC:$AC,Sheet1!S71_A5CapexCode,$AD:$AD)","v":0},null,null,null,null,null,null,null,null,null,null,null,null,null,null,null,null,null,"0980","CE"]
["Taxi Ranks/Bus Terminals",null,{"$f":"SUMIFS(Sheet1!S71_PPPYearAmount,Sheet1!S71_SA34Code,$AC:$AC,Sheet1!S71_A5CapexCode,$AD:$AD)","v":0},{"$f":"SUMIFS(Sheet1!S71_PPYearAmount,Sheet1!S71_SA34Code,$AC:$AC,Sheet1!S71_A5CapexCode,$AD:$AD)","v":0},{"$f":"SUMIFS(Sheet1!S71_PYearAmount,Sheet1!S71_SA34Code,$AC:$AC,Sheet1!S71_A5CapexCode,$AD:$AD)","v":0},{"$f":"SUMIFS(Sheet1!S71_OriginalBudAmnt,Sheet1!S71_SA34Code,$AC:$AC,Sheet1!S71_A5CapexCode,$AD:$AD)","v":0},{"$f":"SUMIFS(Sheet1!S71_AdjustmentBudAmnt,Sheet1!S71_SA34Code,$AC:$AC,Sheet1!S71_A5CapexCode,$AD:$AD)","v":0},{"$f":"SUMIFS(Sheet1!S71_AdjustmentBudAmnt,Sheet1!S71_SA34Code,$AC:$AC,Sheet1!S71_A5CapexCode,$AD:$AD)","v":0},{"$f":"SUMIFS(Sheet1!S71_ASBudgetAmount,Sheet1!S71_SA34Code,$AC:$AC,Sheet1!S71_A5CapexCode,$AD:$AD)","v":0},{"$f":"SUMIFS(Sheet1!S71_OY1BudgetAmount,Sheet1!S71_SA34Code,$AC:$AC,Sheet1!S71_A5CapexCode,$AD:$AD)","v":0},{"$f":"SUMIFS(Sheet1!S71_OY2BudgetAmount,Sheet1!S71_SA34Code,$AC:$AC,Sheet1!S71_A5CapexCode,$AD:$AD)","v":0},null,null,null,null,null,null,null,null,null,null,null,null,null,null,null,null,null,"0990","CE"]
["Capital Spares",null,{"$f":"SUMIFS(Sheet1!S71_PPPYearAmount,Sheet1!S71_SA34Code,$AC:$AC,Sheet1!S71_A5CapexCode,$AD:$AD)","v":0},{"$f":"SUMIFS(Sheet1!S71_PPYearAmount,Sheet1!S71_SA34Code,$AC:$AC,Sheet1!S71_A5CapexCode,$AD:$AD)","v":0},{"$f":"SUMIFS(Sheet1!S71_PYearAmount,Sheet1!S71_SA34Code,$AC:$AC,Sheet1!S71_A5CapexCode,$AD:$AD)","v":0},{"$f":"SUMIFS(Sheet1!S71_OriginalBudAmnt,Sheet1!S71_SA34Code,$AC:$AC,Sheet1!S71_A5CapexCode,$AD:$AD)","v":0},{"$f":"SUMIFS(Sheet1!S71_AdjustmentBudAmnt,Sheet1!S71_SA34Code,$AC:$AC,Sheet1!S71_A5CapexCode,$AD:$AD)","v":0},{"$f":"SUMIFS(Sheet1!S71_AdjustmentBudAmnt,Sheet1!S71_SA34Code,$AC:$AC,Sheet1!S71_A5CapexCode,$AD:$AD)","v":0},{"$f":"SUMIFS(Sheet1!S71_ASBudgetAmount,Sheet1!S71_SA34Code,$AC:$AC,Sheet1!S71_A5CapexCode,$AD:$AD)","v":0},{"$f":"SUMIFS(Sheet1!S71_OY1BudgetAmount,Sheet1!S71_SA34Code,$AC:$AC,Sheet1!S71_A5CapexCode,$AD:$AD)","v":0},{"$f":"SUMIFS(Sheet1!S71_OY2BudgetAmount,Sheet1!S71_SA34Code,$AC:$AC,Sheet1!S71_A5CapexCode,$AD:$AD)","v":0},null,null,null,null,null,null,null,null,null,null,null,null,null,null,null,null,null,"1000","CE"]
["Sport and Recreation Facilities",null,{"$f":"SUM(C99:C101)","v":0},{"$f":"SUM(D99:D101)","v":0},0,0,0,0,0,0,0,null,null,null,null,null,null,null,null,null,null,null,null,null,null,null,null,null,null,"CE"]
["Indoor Facilities",null,{"$f":"SUMIFS(Sheet1!S71_PPPYearAmount,Sheet1!S71_SA34Code,$AC:$AC,Sheet1!S71_A5CapexCode,$AD:$AD)","v":0},{"$f":"SUMIFS(Sheet1!S71_PPYearAmount,Sheet1!S71_SA34Code,$AC:$AC,Sheet1!S71_A5CapexCode,$AD:$AD)","v":0},{"$f":"SUMIFS(Sheet1!S71_PYearAmount,Sheet1!S71_SA34Code,$AC:$AC,Sheet1!S71_A5CapexCode,$AD:$AD)","v":0},{"$f":"SUMIFS(Sheet1!S71_OriginalBudAmnt,Sheet1!S71_SA34Code,$AC:$AC,Sheet1!S71_A5CapexCode,$AD:$AD)","v":0},{"$f":"SUMIFS(Sheet1!S71_AdjustmentBudAmnt,Sheet1!S71_SA34Code,$AC:$AC,Sheet1!S71_A5CapexCode,$AD:$AD)","v":0},{"$f":"SUMIFS(Sheet1!S71_AdjustmentBudAmnt,Sheet1!S71_SA34Code,$AC:$AC,Sheet1!S71_A5CapexCode,$AD:$AD)","v":0},{"$f":"SUMIFS(Sheet1!S71_ASBudgetAmount,Sheet1!S71_SA34Code,$AC:$AC,Sheet1!S71_A5CapexCode,$AD:$AD)","v":0},{"$f":"SUMIFS(Sheet1!S71_OY1BudgetAmount,Sheet1!S71_SA34Code,$AC:$AC,Sheet1!S71_A5CapexCode,$AD:$AD)","v":0},{"$f":"SUMIFS(Sheet1!S71_OY2BudgetAmount,Sheet1!S71_SA34Code,$AC:$AC,Sheet1!S71_A5CapexCode,$AD:$AD)","v":0},null,null,null,null,null,null,null,null,null,null,null,null,null,null,null,null,null,"1020","CE"]
["Outdoor Facilities",null,{"$f":"SUMIFS(Sheet1!S71_PPPYearAmount,Sheet1!S71_SA34Code,$AC:$AC,Sheet1!S71_A5CapexCode,$AD:$AD)","v":0},{"$f":"SUMIFS(Sheet1!S71_PPYearAmount,Sheet1!S71_SA34Code,$AC:$AC,Sheet1!S71_A5CapexCode,$AD:$AD)","v":0},{"$f":"SUMIFS(Sheet1!S71_PYearAmount,Sheet1!S71_SA34Code,$AC:$AC,Sheet1!S71_A5CapexCode,$AD:$AD)","v":0},{"$f":"SUMIFS(Sheet1!S71_OriginalBudAmnt,Sheet1!S71_SA34Code,$AC:$AC,Sheet1!S71_A5CapexCode,$AD:$AD)","v":0},{"$f":"SUMIFS(Sheet1!S71_AdjustmentBudAmnt,Sheet1!S71_SA34Code,$AC:$AC,Sheet1!S71_A5CapexCode,$AD:$AD)","v":0},{"$f":"SUMIFS(Sheet1!S71_AdjustmentBudAmnt,Sheet1!S71_SA34Code,$AC:$AC,Sheet1!S71_A5CapexCode,$AD:$AD)","v":0},{"$f":"SUMIFS(Sheet1!S71_ASBudgetAmount,Sheet1!S71_SA34Code,$AC:$AC,Sheet1!S71_A5CapexCode,$AD:$AD)","v":0},{"$f":"SUMIFS(Sheet1!S71_OY1BudgetAmount,Sheet1!S71_SA34Code,$AC:$AC,Sheet1!S71_A5CapexCode,$AD:$AD)","v":0},{"$f":"SUMIFS(Sheet1!S71_OY2BudgetAmount,Sheet1!S71_SA34Code,$AC:$AC,Sheet1!S71_A5CapexCode,$AD:$AD)","v":0},null,null,null,null,null,null,null,null,null,null,null,null,null,null,null,null,null,"1030","CE"]
["Capital Spares",null,{"$f":"SUMIFS(Sheet1!S71_PPPYearAmount,Sheet1!S71_SA34Code,$AC:$AC,Sheet1!S71_A5CapexCode,$AD:$AD)","v":0},{"$f":"SUMIFS(Sheet1!S71_PPYearAmount,Sheet1!S71_SA34Code,$AC:$AC,Sheet1!S71_A5CapexCode,$AD:$AD)","v":0},{"$f":"SUMIFS(Sheet1!S71_PYearAmount,Sheet1!S71_SA34Code,$AC:$AC,Sheet1!S71_A5CapexCode,$AD:$AD)","v":0},{"$f":"SUMIFS(Sheet1!S71_OriginalBudAmnt,Sheet1!S71_SA34Code,$AC:$AC,Sheet1!S71_A5CapexCode,$AD:$AD)","v":0},{"$f":"SUMIFS(Sheet1!S71_AdjustmentBudAmnt,Sheet1!S71_SA34Code,$AC:$AC,Sheet1!S71_A5CapexCode,$AD:$AD)","v":0},{"$f":"SUMIFS(Sheet1!S71_AdjustmentBudAmnt,Sheet1!S71_SA34Code,$AC:$AC,Sheet1!S71_A5CapexCode,$AD:$AD)","v":0},{"$f":"SUMIFS(Sheet1!S71_ASBudgetAmount,Sheet1!S71_SA34Code,$AC:$AC,Sheet1!S71_A5CapexCode,$AD:$AD)","v":0},{"$f":"SUMIFS(Sheet1!S71_OY1BudgetAmount,Sheet1!S71_SA34Code,$AC:$AC,Sheet1!S71_A5CapexCode,$AD:$AD)","v":0},{"$f":"SUMIFS(Sheet1!S71_OY2BudgetAmount,Sheet1!S71_SA34Code,$AC:$AC,Sheet1!S71_A5CapexCode,$AD:$AD)","v":0},null,null,null,null,null,null,null,null,null,null,null,null,null,null,null,null,null,"1040","CE"]
[null,null,null,null,null,null,null,null,null,null,null,null,null,null,null,null,null,null,null,null,null,null,null,null,null,null,null,null,null,"CE"]
["Heritage assets",null,{"$f":"SUM(C104:C108)","v":0},{"$f":"SUM(D104:D108)","v":0},0,0,0,0,0,0,0,null,null,null,null,null,null,null,null,null,null,null,null,null,null,null,null,null,null,"CE"]
["Monuments",null,{"$f":"SUMIFS(Sheet1!S71_PPPYearAmount,Sheet1!S71_SA34Code,$AC:$AC,Sheet1!S71_A5CapexCode,$AD:$AD)","v":0},{"$f":"SUMIFS(Sheet1!S71_PPYearAmount,Sheet1!S71_SA34Code,$AC:$AC,Sheet1!S71_A5CapexCode,$AD:$AD)","v":0},{"$f":"SUMIFS(Sheet1!S71_PYearAmount,Sheet1!S71_SA34Code,$AC:$AC,Sheet1!S71_A5CapexCode,$AD:$AD)","v":0},{"$f":"SUMIFS(Sheet1!S71_OriginalBudAmnt,Sheet1!S71_SA34Code,$AC:$AC,Sheet1!S71_A5CapexCode,$AD:$AD)","v":0},{"$f":"SUMIFS(Sheet1!S71_AdjustmentBudAmnt,Sheet1!S71_SA34Code,$AC:$AC,Sheet1!S71_A5CapexCode,$AD:$AD)","v":0},{"$f":"SUMIFS(Sheet1!S71_AdjustmentBudAmnt,Sheet1!S71_SA34Code,$AC:$AC,Sheet1!S71_A5CapexCode,$AD:$AD)","v":0},{"$f":"SUMIFS(Sheet1!S71_ASBudgetAmount,Sheet1!S71_SA34Code,$AC:$AC,Sheet1!S71_A5CapexCode,$AD:$AD)","v":0},{"$f":"SUMIFS(Sheet1!S71_OY1BudgetAmount,Sheet1!S71_SA34Code,$AC:$AC,Sheet1!S71_A5CapexCode,$AD:$AD)","v":0},{"$f":"SUMIFS(Sheet1!S71_OY2BudgetAmount,Sheet1!S71_SA34Code,$AC:$AC,Sheet1!S71_A5CapexCode,$AD:$AD)","v":0},null,null,null,null,null,null,null,null,null,null,null,null,null,null,null,null,null,"1060","CE"]
["Historic Buildings",null,{"$f":"SUMIFS(Sheet1!S71_PPPYearAmount,Sheet1!S71_SA34Code,$AC:$AC,Sheet1!S71_A5CapexCode,$AD:$AD)","v":0},{"$f":"SUMIFS(Sheet1!S71_PPYearAmount,Sheet1!S71_SA34Code,$AC:$AC,Sheet1!S71_A5CapexCode,$AD:$AD)","v":0},{"$f":"SUMIFS(Sheet1!S71_PYearAmount,Sheet1!S71_SA34Code,$AC:$AC,Sheet1!S71_A5CapexCode,$AD:$AD)","v":0},{"$f":"SUMIFS(Sheet1!S71_OriginalBudAmnt,Sheet1!S71_SA34Code,$AC:$AC,Sheet1!S71_A5CapexCode,$AD:$AD)","v":0},{"$f":"SUMIFS(Sheet1!S71_AdjustmentBudAmnt,Sheet1!S71_SA34Code,$AC:$AC,Sheet1!S71_A5CapexCode,$AD:$AD)","v":0},{"$f":"SUMIFS(Sheet1!S71_AdjustmentBudAmnt,Sheet1!S71_SA34Code,$AC:$AC,Sheet1!S71_A5CapexCode,$AD:$AD)","v":0},{"$f":"SUMIFS(Sheet1!S71_ASBudgetAmount,Sheet1!S71_SA34Code,$AC:$AC,Sheet1!S71_A5CapexCode,$AD:$AD)","v":0},{"$f":"SUMIFS(Sheet1!S71_OY1BudgetAmount,Sheet1!S71_SA34Code,$AC:$AC,Sheet1!S71_A5CapexCode,$AD:$AD)","v":0},{"$f":"SUMIFS(Sheet1!S71_OY2BudgetAmount,Sheet1!S71_SA34Code,$AC:$AC,Sheet1!S71_A5CapexCode,$AD:$AD)","v":0},null,null,null,null,null,null,null,null,null,null,null,null,null,null,null,null,null,"1070","CE"]
["Works of Art",null,{"$f":"SUMIFS(Sheet1!S71_PPPYearAmount,Sheet1!S71_SA34Code,$AC:$AC,Sheet1!S71_A5CapexCode,$AD:$AD)","v":0},{"$f":"SUMIFS(Sheet1!S71_PPYearAmount,Sheet1!S71_SA34Code,$AC:$AC,Sheet1!S71_A5CapexCode,$AD:$AD)","v":0},{"$f":"SUMIFS(Sheet1!S71_PYearAmount,Sheet1!S71_SA34Code,$AC:$AC,Sheet1!S71_A5CapexCode,$AD:$AD)","v":0},{"$f":"SUMIFS(Sheet1!S71_OriginalBudAmnt,Sheet1!S71_SA34Code,$AC:$AC,Sheet1!S71_A5CapexCode,$AD:$AD)","v":0},{"$f":"SUMIFS(Sheet1!S71_AdjustmentBudAmnt,Sheet1!S71_SA34Code,$AC:$AC,Sheet1!S71_A5CapexCode,$AD:$AD)","v":0},{"$f":"SUMIFS(Sheet1!S71_AdjustmentBudAmnt,Sheet1!S71_SA34Code,$AC:$AC,Sheet1!S71_A5CapexCode,$AD:$AD)","v":0},{"$f":"SUMIFS(Sheet1!S71_ASBudgetAmount,Sheet1!S71_SA34Code,$AC:$AC,Sheet1!S71_A5CapexCode,$AD:$AD)","v":0},{"$f":"SUMIFS(Sheet1!S71_OY1BudgetAmount,Sheet1!S71_SA34Code,$AC:$AC,Sheet1!S71_A5CapexCode,$AD:$AD)","v":0},{"$f":"SUMIFS(Sheet1!S71_OY2BudgetAmount,Sheet1!S71_SA34Code,$AC:$AC,Sheet1!S71_A5CapexCode,$AD:$AD)","v":0},null,null,null,null,null,null,null,null,null,null,null,null,null,null,null,null,null,"1080","CE"]
["Conservation Areas",null,{"$f":"SUMIFS(Sheet1!S71_PPPYearAmount,Sheet1!S71_SA34Code,$AC:$AC,Sheet1!S71_A5CapexCode,$AD:$AD)","v":0},{"$f":"SUMIFS(Sheet1!S71_PPYearAmount,Sheet1!S71_SA34Code,$AC:$AC,Sheet1!S71_A5CapexCode,$AD:$AD)","v":0},{"$f":"SUMIFS(Sheet1!S71_PYearAmount,Sheet1!S71_SA34Code,$AC:$AC,Sheet1!S71_A5CapexCode,$AD:$AD)","v":0},{"$f":"SUMIFS(Sheet1!S71_OriginalBudAmnt,Sheet1!S71_SA34Code,$AC:$AC,Sheet1!S71_A5CapexCode,$AD:$AD)","v":0},{"$f":"SUMIFS(Sheet1!S71_AdjustmentBudAmnt,Sheet1!S71_SA34Code,$AC:$AC,Sheet1!S71_A5CapexCode,$AD:$AD)","v":0},{"$f":"SUMIFS(Sheet1!S71_AdjustmentBudAmnt,Sheet1!S71_SA34Code,$AC:$AC,Sheet1!S71_A5CapexCode,$AD:$AD)","v":0},{"$f":"SUMIFS(Sheet1!S71_ASBudgetAmount,Sheet1!S71_SA34Code,$AC:$AC,Sheet1!S71_A5CapexCode,$AD:$AD)","v":0},{"$f":"SUMIFS(Sheet1!S71_OY1BudgetAmount,Sheet1!S71_SA34Code,$AC:$AC,Sheet1!S71_A5CapexCode,$AD:$AD)","v":0},{"$f":"SUMIFS(Sheet1!S71_OY2BudgetAmount,Sheet1!S71_SA34Code,$AC:$AC,Sheet1!S71_A5CapexCode,$AD:$AD)","v":0},null,null,null,null,null,null,null,null,null,null,null,null,null,null,null,null,null,"1090","CE"]
["Other Heritage",null,{"$f":"SUMIFS(Sheet1!S71_PPPYearAmount,Sheet1!S71_SA34Code,$AC:$AC,Sheet1!S71_A5CapexCode,$AD:$AD)","v":0},{"$f":"SUMIFS(Sheet1!S71_PPYearAmount,Sheet1!S71_SA34Code,$AC:$AC,Sheet1!S71_A5CapexCode,$AD:$AD)","v":0},{"$f":"SUMIFS(Sheet1!S71_PYearAmount,Sheet1!S71_SA34Code,$AC:$AC,Sheet1!S71_A5CapexCode,$AD:$AD)","v":0},{"$f":"SUMIFS(Sheet1!S71_OriginalBudAmnt,Sheet1!S71_SA34Code,$AC:$AC,Sheet1!S71_A5CapexCode,$AD:$AD)","v":0},{"$f":"SUMIFS(Sheet1!S71_AdjustmentBudAmnt,Sheet1!S71_SA34Code,$AC:$AC,Sheet1!S71_A5CapexCode,$AD:$AD)","v":0},{"$f":"SUMIFS(Sheet1!S71_AdjustmentBudAmnt,Sheet1!S71_SA34Code,$AC:$AC,Sheet1!S71_A5CapexCode,$AD:$AD)","v":0},{"$f":"SUMIFS(Sheet1!S71_ASBudgetAmount,Sheet1!S71_SA34Code,$AC:$AC,Sheet1!S71_A5CapexCode,$AD:$AD)","v":0},{"$f":"SUMIFS(Sheet1!S71_OY1BudgetAmount,Sheet1!S71_SA34Code,$AC:$AC,Sheet1!S71_A5CapexCode,$AD:$AD)","v":0},{"$f":"SUMIFS(Sheet1!S71_OY2BudgetAmount,Sheet1!S71_SA34Code,$AC:$AC,Sheet1!S71_A5CapexCode,$AD:$AD)","v":0},null,null,null,null,null,null,null,null,null,null,null,null,null,null,null,null,null,"1100","CE"]
[null,null,null,null,null,null,null,null,null,null,null,null,null,null,null,null,null,null,null,null,null,null,null,null,null,null,null,null,null,"CE"]
["Investment properties",null,{"$f":"+C111+C114","v":0},{"$f":"+D111+D114","v":0},0,0,0,0,0,0,0,null,null,null,null,null,null,null,null,null,null,null,null,null,null,null,null,null,null,"CE"]
["Revenue Generating",null,{"$f":"SUM(C112:C113)","v":0},0,0,0,0,0,0,0,0,null,null,null,null,null,null,null,null,null,null,null,null,null,null,null,null,null,null,"CE"]
["Improved Property",null,{"$f":"SUMIFS(Sheet1!S71_PPPYearAmount,Sheet1!S71_SA34Code,$AC:$AC,Sheet1!S71_A5CapexCode,$AD:$AD)","v":0},{"$f":"SUMIFS(Sheet1!S71_PPYearAmount,Sheet1!S71_SA34Code,$AC:$AC,Sheet1!S71_A5CapexCode,$AD:$AD)","v":0},{"$f":"SUMIFS(Sheet1!S71_PYearAmount,Sheet1!S71_SA34Code,$AC:$AC,Sheet1!S71_A5CapexCode,$AD:$AD)","v":0},{"$f":"SUMIFS(Sheet1!S71_OriginalBudAmnt,Sheet1!S71_SA34Code,$AC:$AC,Sheet1!S71_A5CapexCode,$AD:$AD)","v":0},{"$f":"SUMIFS(Sheet1!S71_AdjustmentBudAmnt,Sheet1!S71_SA34Code,$AC:$AC,Sheet1!S71_A5CapexCode,$AD:$AD)","v":0},{"$f":"SUMIFS(Sheet1!S71_AdjustmentBudAmnt,Sheet1!S71_SA34Code,$AC:$AC,Sheet1!S71_A5CapexCode,$AD:$AD)","v":0},{"$f":"SUMIFS(Sheet1!S71_ASBudgetAmount,Sheet1!S71_SA34Code,$AC:$AC,Sheet1!S71_A5CapexCode,$AD:$AD)","v":0},{"$f":"SUMIFS(Sheet1!S71_OY1BudgetAmount,Sheet1!S71_SA34Code,$AC:$AC,Sheet1!S71_A5CapexCode,$AD:$AD)","v":0},{"$f":"SUMIFS(Sheet1!S71_OY2BudgetAmount,Sheet1!S71_SA34Code,$AC:$AC,Sheet1!S71_A5CapexCode,$AD:$AD)","v":0},null,null,null,null,null,null,null,null,null,null,null,null,null,null,null,null,null,"1130","CE"]
["Unimproved Property",null,{"$f":"SUMIFS(Sheet1!S71_PPPYearAmount,Sheet1!S71_SA34Code,$AC:$AC,Sheet1!S71_A5CapexCode,$AD:$AD)","v":0},{"$f":"SUMIFS(Sheet1!S71_PPYearAmount,Sheet1!S71_SA34Code,$AC:$AC,Sheet1!S71_A5CapexCode,$AD:$AD)","v":0},{"$f":"SUMIFS(Sheet1!S71_PYearAmount,Sheet1!S71_SA34Code,$AC:$AC,Sheet1!S71_A5CapexCode,$AD:$AD)","v":0},{"$f":"SUMIFS(Sheet1!S71_OriginalBudAmnt,Sheet1!S71_SA34Code,$AC:$AC,Sheet1!S71_A5CapexCode,$AD:$AD)","v":0},{"$f":"SUMIFS(Sheet1!S71_AdjustmentBudAmnt,Sheet1!S71_SA34Code,$AC:$AC,Sheet1!S71_A5CapexCode,$AD:$AD)","v":0},{"$f":"SUMIFS(Sheet1!S71_AdjustmentBudAmnt,Sheet1!S71_SA34Code,$AC:$AC,Sheet1!S71_A5CapexCode,$AD:$AD)","v":0},{"$f":"SUMIFS(Sheet1!S71_ASBudgetAmount,Sheet1!S71_SA34Code,$AC:$AC,Sheet1!S71_A5CapexCode,$AD:$AD)","v":0},{"$f":"SUMIFS(Sheet1!S71_OY1BudgetAmount,Sheet1!S71_SA34Code,$AC:$AC,Sheet1!S71_A5CapexCode,$AD:$AD)","v":0},{"$f":"SUMIFS(Sheet1!S71_OY2BudgetAmount,Sheet1!S71_SA34Code,$AC:$AC,Sheet1!S71_A5CapexCode,$AD:$AD)","v":0},null,null,null,null,null,null,null,null,null,null,null,null,null,null,null,null,null,"1140","CE"]
["Non-revenue Generating",null,{"$f":"SUM(C115:C116)","v":0},{"$f":"SUM(D115:D116)","v":0},0,0,0,0,0,0,0,null,null,null,null,null,null,null,null,null,null,null,null,null,null,null,null,null,null,"CE"]
["Improved Property",null,{"$f":"SUMIFS(Sheet1!S71_PPPYearAmount,Sheet1!S71_SA34Code,$AC:$AC,Sheet1!S71_A5CapexCode,$AD:$AD)","v":0},{"$f":"SUMIFS(Sheet1!S71_PPYearAmount,Sheet1!S71_SA34Code,$AC:$AC,Sheet1!S71_A5CapexCode,$AD:$AD)","v":0},{"$f":"SUMIFS(Sheet1!S71_PYearAmount,Sheet1!S71_SA34Code,$AC:$AC,Sheet1!S71_A5CapexCode,$AD:$AD)","v":0},{"$f":"SUMIFS(Sheet1!S71_OriginalBudAmnt,Sheet1!S71_SA34Code,$AC:$AC,Sheet1!S71_A5CapexCode,$AD:$AD)","v":0},{"$f":"SUMIFS(Sheet1!S71_AdjustmentBudAmnt,Sheet1!S71_SA34Code,$AC:$AC,Sheet1!S71_A5CapexCode,$AD:$AD)","v":0},{"$f":"SUMIFS(Sheet1!S71_AdjustmentBudAmnt,Sheet1!S71_SA34Code,$AC:$AC,Sheet1!S71_A5CapexCode,$AD:$AD)","v":0},{"$f":"SUMIFS(Sheet1!S71_ASBudgetAmount,Sheet1!S71_SA34Code,$AC:$AC,Sheet1!S71_A5CapexCode,$AD:$AD)","v":0},{"$f":"SUMIFS(Sheet1!S71_OY1BudgetAmount,Sheet1!S71_SA34Code,$AC:$AC,Sheet1!S71_A5CapexCode,$AD:$AD)","v":0},{"$f":"SUMIFS(Sheet1!S71_OY2BudgetAmount,Sheet1!S71_SA34Code,$AC:$AC,Sheet1!S71_A5CapexCode,$AD:$AD)","v":0},null,null,null,null,null,null,null,null,null,null,null,null,null,null,null,null,null,"1160","CE"]
["Unimproved Property",null,{"$f":"SUMIFS(Sheet1!S71_PPPYearAmount,Sheet1!S71_SA34Code,$AC:$AC,Sheet1!S71_A5CapexCode,$AD:$AD)","v":0},{"$f":"SUMIFS(Sheet1!S71_PPYearAmount,Sheet1!S71_SA34Code,$AC:$AC,Sheet1!S71_A5CapexCode,$AD:$AD)","v":0},{"$f":"SUMIFS(Sheet1!S71_PYearAmount,Sheet1!S71_SA34Code,$AC:$AC,Sheet1!S71_A5CapexCode,$AD:$AD)","v":0},{"$f":"SUMIFS(Sheet1!S71_OriginalBudAmnt,Sheet1!S71_SA34Code,$AC:$AC,Sheet1!S71_A5CapexCode,$AD:$AD)","v":0},{"$f":"SUMIFS(Sheet1!S71_AdjustmentBudAmnt,Sheet1!S71_SA34Code,$AC:$AC,Sheet1!S71_A5CapexCode,$AD:$AD)","v":0},{"$f":"SUMIFS(Sheet1!S71_AdjustmentBudAmnt,Sheet1!S71_SA34Code,$AC:$AC,Sheet1!S71_A5CapexCode,$AD:$AD)","v":0},{"$f":"SUMIFS(Sheet1!S71_ASBudgetAmount,Sheet1!S71_SA34Code,$AC:$AC,Sheet1!S71_A5CapexCode,$AD:$AD)","v":0},{"$f":"SUMIFS(Sheet1!S71_OY1BudgetAmount,Sheet1!S71_SA34Code,$AC:$AC,Sheet1!S71_A5CapexCode,$AD:$AD)","v":0},{"$f":"SUMIFS(Sheet1!S71_OY2BudgetAmount,Sheet1!S71_SA34Code,$AC:$AC,Sheet1!S71_A5CapexCode,$AD:$AD)","v":0},null,null,null,null,null,null,null,null,null,null,null,null,null,null,null,null,null,"1170","CE"]
[null,null,null,null,null,null,null,null,null,null,null,null,null,null,null,null,null,null,null,null,null,null,null,null,null,null,null,null,null,"CE"]
["Other assets",null,{"$f":"+C119+C131","v":0},{"$f":"+D119+D131","v":0},0,0,0,0,0,0,0,null,null,null,null,null,null,null,null,null,null,null,null,null,null,null,null,null,null,"CE"]
["Operational Buildings",null,{"$f":"SUM(C120:C130)","v":0},{"$f":"SUM(D120:D130)","v":0},0,0,0,0,0,0,0,null,null,null,null,null,null,null,null,null,null,null,null,null,null,null,null,null,null,"CE"]
["Municipal Offices",null,{"$f":"SUMIFS(Sheet1!S71_PPPYearAmount,Sheet1!S71_SA34Code,$AC:$AC,Sheet1!S71_A5CapexCode,$AD:$AD)","v":0},{"$f":"SUMIFS(Sheet1!S71_PPYearAmount,Sheet1!S71_SA34Code,$AC:$AC,Sheet1!S71_A5CapexCode,$AD:$AD)","v":0},{"$f":"SUMIFS(Sheet1!S71_PYearAmount,Sheet1!S71_SA34Code,$AC:$AC,Sheet1!S71_A5CapexCode,$AD:$AD)","v":0},{"$f":"SUMIFS(Sheet1!S71_OriginalBudAmnt,Sheet1!S71_SA34Code,$AC:$AC,Sheet1!S71_A5CapexCode,$AD:$AD)","v":0},{"$f":"SUMIFS(Sheet1!S71_AdjustmentBudAmnt,Sheet1!S71_SA34Code,$AC:$AC,Sheet1!S71_A5CapexCode,$AD:$AD)","v":0},{"$f":"SUMIFS(Sheet1!S71_AdjustmentBudAmnt,Sheet1!S71_SA34Code,$AC:$AC,Sheet1!S71_A5CapexCode,$AD:$AD)","v":0},{"$f":"SUMIFS(Sheet1!S71_ASBudgetAmount,Sheet1!S71_SA34Code,$AC:$AC,Sheet1!S71_A5CapexCode,$AD:$AD)","v":0},{"$f":"SUMIFS(Sheet1!S71_OY1BudgetAmount,Sheet1!S71_SA34Code,$AC:$AC,Sheet1!S71_A5CapexCode,$AD:$AD)","v":0},{"$f":"SUMIFS(Sheet1!S71_OY2BudgetAmount,Sheet1!S71_SA34Code,$AC:$AC,Sheet1!S71_A5CapexCode,$AD:$AD)","v":0},null,null,null,null,null,null,null,null,null,null,null,null,null,null,null,null,null,"1200","CE"]
["Pay/Enquiry Points",null,{"$f":"SUMIFS(Sheet1!S71_PPPYearAmount,Sheet1!S71_SA34Code,$AC:$AC,Sheet1!S71_A5CapexCode,$AD:$AD)","v":0},{"$f":"SUMIFS(Sheet1!S71_PPYearAmount,Sheet1!S71_SA34Code,$AC:$AC,Sheet1!S71_A5CapexCode,$AD:$AD)","v":0},{"$f":"SUMIFS(Sheet1!S71_PYearAmount,Sheet1!S71_SA34Code,$AC:$AC,Sheet1!S71_A5CapexCode,$AD:$AD)","v":0},{"$f":"SUMIFS(Sheet1!S71_OriginalBudAmnt,Sheet1!S71_SA34Code,$AC:$AC,Sheet1!S71_A5CapexCode,$AD:$AD)","v":0},{"$f":"SUMIFS(Sheet1!S71_AdjustmentBudAmnt,Sheet1!S71_SA34Code,$AC:$AC,Sheet1!S71_A5CapexCode,$AD:$AD)","v":0},{"$f":"SUMIFS(Sheet1!S71_AdjustmentBudAmnt,Sheet1!S71_SA34Code,$AC:$AC,Sheet1!S71_A5CapexCode,$AD:$AD)","v":0},{"$f":"SUMIFS(Sheet1!S71_ASBudgetAmount,Sheet1!S71_SA34Code,$AC:$AC,Sheet1!S71_A5CapexCode,$AD:$AD)","v":0},{"$f":"SUMIFS(Sheet1!S71_OY1BudgetAmount,Sheet1!S71_SA34Code,$AC:$AC,Sheet1!S71_A5CapexCode,$AD:$AD)","v":0},{"$f":"SUMIFS(Sheet1!S71_OY2BudgetAmount,Sheet1!S71_SA34Code,$AC:$AC,Sheet1!S71_A5CapexCode,$AD:$AD)","v":0},null,null,null,null,null,null,null,null,null,null,null,null,null,null,null,null,null,"1210","CE"]
["Building Plan Offices",null,{"$f":"SUMIFS(Sheet1!S71_PPPYearAmount,Sheet1!S71_SA34Code,$AC:$AC,Sheet1!S71_A5CapexCode,$AD:$AD)","v":0},{"$f":"SUMIFS(Sheet1!S71_PPYearAmount,Sheet1!S71_SA34Code,$AC:$AC,Sheet1!S71_A5CapexCode,$AD:$AD)","v":0},{"$f":"SUMIFS(Sheet1!S71_PYearAmount,Sheet1!S71_SA34Code,$AC:$AC,Sheet1!S71_A5CapexCode,$AD:$AD)","v":0},{"$f":"SUMIFS(Sheet1!S71_OriginalBudAmnt,Sheet1!S71_SA34Code,$AC:$AC,Sheet1!S71_A5CapexCode,$AD:$AD)","v":0},{"$f":"SUMIFS(Sheet1!S71_AdjustmentBudAmnt,Sheet1!S71_SA34Code,$AC:$AC,Sheet1!S71_A5CapexCode,$AD:$AD)","v":0},{"$f":"SUMIFS(Sheet1!S71_AdjustmentBudAmnt,Sheet1!S71_SA34Code,$AC:$AC,Sheet1!S71_A5CapexCode,$AD:$AD)","v":0},{"$f":"SUMIFS(Sheet1!S71_ASBudgetAmount,Sheet1!S71_SA34Code,$AC:$AC,Sheet1!S71_A5CapexCode,$AD:$AD)","v":0},{"$f":"SUMIFS(Sheet1!S71_OY1BudgetAmount,Sheet1!S71_SA34Code,$AC:$AC,Sheet1!S71_A5CapexCode,$AD:$AD)","v":0},{"$f":"SUMIFS(Sheet1!S71_OY2BudgetAmount,Sheet1!S71_SA34Code,$AC:$AC,Sheet1!S71_A5CapexCode,$AD:$AD)","v":0},null,null,null,null,null,null,null,null,null,null,null,null,null,null,null,null,null,"1220","CE"]
["Workshops",null,{"$f":"SUMIFS(Sheet1!S71_PPPYearAmount,Sheet1!S71_SA34Code,$AC:$AC,Sheet1!S71_A5CapexCode,$AD:$AD)","v":0},{"$f":"SUMIFS(Sheet1!S71_PPYearAmount,Sheet1!S71_SA34Code,$AC:$AC,Sheet1!S71_A5CapexCode,$AD:$AD)","v":0},{"$f":"SUMIFS(Sheet1!S71_PYearAmount,Sheet1!S71_SA34Code,$AC:$AC,Sheet1!S71_A5CapexCode,$AD:$AD)","v":0},{"$f":"SUMIFS(Sheet1!S71_OriginalBudAmnt,Sheet1!S71_SA34Code,$AC:$AC,Sheet1!S71_A5CapexCode,$AD:$AD)","v":0},{"$f":"SUMIFS(Sheet1!S71_AdjustmentBudAmnt,Sheet1!S71_SA34Code,$AC:$AC,Sheet1!S71_A5CapexCode,$AD:$AD)","v":0},{"$f":"SUMIFS(Sheet1!S71_AdjustmentBudAmnt,Sheet1!S71_SA34Code,$AC:$AC,Sheet1!S71_A5CapexCode,$AD:$AD)","v":0},{"$f":"SUMIFS(Sheet1!S71_ASBudgetAmount,Sheet1!S71_SA34Code,$AC:$AC,Sheet1!S71_A5CapexCode,$AD:$AD)","v":0},{"$f":"SUMIFS(Sheet1!S71_OY1BudgetAmount,Sheet1!S71_SA34Code,$AC:$AC,Sheet1!S71_A5CapexCode,$AD:$AD)","v":0},{"$f":"SUMIFS(Sheet1!S71_OY2BudgetAmount,Sheet1!S71_SA34Code,$AC:$AC,Sheet1!S71_A5CapexCode,$AD:$AD)","v":0},null,null,null,null,null,null,null,null,null,null,null,null,null,null,null,null,null,"1230","CE"]
["Yards",null,{"$f":"SUMIFS(Sheet1!S71_PPPYearAmount,Sheet1!S71_SA34Code,$AC:$AC,Sheet1!S71_A5CapexCode,$AD:$AD)","v":0},{"$f":"SUMIFS(Sheet1!S71_PPYearAmount,Sheet1!S71_SA34Code,$AC:$AC,Sheet1!S71_A5CapexCode,$AD:$AD)","v":0},{"$f":"SUMIFS(Sheet1!S71_PYearAmount,Sheet1!S71_SA34Code,$AC:$AC,Sheet1!S71_A5CapexCode,$AD:$AD)","v":0},{"$f":"SUMIFS(Sheet1!S71_OriginalBudAmnt,Sheet1!S71_SA34Code,$AC:$AC,Sheet1!S71_A5CapexCode,$AD:$AD)","v":0},{"$f":"SUMIFS(Sheet1!S71_AdjustmentBudAmnt,Sheet1!S71_SA34Code,$AC:$AC,Sheet1!S71_A5CapexCode,$AD:$AD)","v":0},{"$f":"SUMIFS(Sheet1!S71_AdjustmentBudAmnt,Sheet1!S71_SA34Code,$AC:$AC,Sheet1!S71_A5CapexCode,$AD:$AD)","v":0},{"$f":"SUMIFS(Sheet1!S71_ASBudgetAmount,Sheet1!S71_SA34Code,$AC:$AC,Sheet1!S71_A5CapexCode,$AD:$AD)","v":0},{"$f":"SUMIFS(Sheet1!S71_OY1BudgetAmount,Sheet1!S71_SA34Code,$AC:$AC,Sheet1!S71_A5CapexCode,$AD:$AD)","v":0},{"$f":"SUMIFS(Sheet1!S71_OY2BudgetAmount,Sheet1!S71_SA34Code,$AC:$AC,Sheet1!S71_A5CapexCode,$AD:$AD)","v":0},null,null,null,null,null,null,null,null,null,null,null,null,null,null,null,null,null,"1240","CE"]
["Stores",null,{"$f":"SUMIFS(Sheet1!S71_PPPYearAmount,Sheet1!S71_SA34Code,$AC:$AC,Sheet1!S71_A5CapexCode,$AD:$AD)","v":0},{"$f":"SUMIFS(Sheet1!S71_PPYearAmount,Sheet1!S71_SA34Code,$AC:$AC,Sheet1!S71_A5CapexCode,$AD:$AD)","v":0},{"$f":"SUMIFS(Sheet1!S71_PYearAmount,Sheet1!S71_SA34Code,$AC:$AC,Sheet1!S71_A5CapexCode,$AD:$AD)","v":0},{"$f":"SUMIFS(Sheet1!S71_OriginalBudAmnt,Sheet1!S71_SA34Code,$AC:$AC,Sheet1!S71_A5CapexCode,$AD:$AD)","v":0},{"$f":"SUMIFS(Sheet1!S71_AdjustmentBudAmnt,Sheet1!S71_SA34Code,$AC:$AC,Sheet1!S71_A5CapexCode,$AD:$AD)","v":0},{"$f":"SUMIFS(Sheet1!S71_AdjustmentBudAmnt,Sheet1!S71_SA34Code,$AC:$AC,Sheet1!S71_A5CapexCode,$AD:$AD)","v":0},{"$f":"SUMIFS(Sheet1!S71_ASBudgetAmount,Sheet1!S71_SA34Code,$AC:$AC,Sheet1!S71_A5CapexCode,$AD:$AD)","v":0},{"$f":"SUMIFS(Sheet1!S71_OY1BudgetAmount,Sheet1!S71_SA34Code,$AC:$AC,Sheet1!S71_A5CapexCode,$AD:$AD)","v":0},{"$f":"SUMIFS(Sheet1!S71_OY2BudgetAmount,Sheet1!S71_SA34Code,$AC:$AC,Sheet1!S71_A5CapexCode,$AD:$AD)","v":0},null,null,null,null,null,null,null,null,null,null,null,null,null,null,null,null,null,"1250","CE"]
["Laboratories",null,{"$f":"SUMIFS(Sheet1!S71_PPPYearAmount,Sheet1!S71_SA34Code,$AC:$AC,Sheet1!S71_A5CapexCode,$AD:$AD)","v":0},{"$f":"SUMIFS(Sheet1!S71_PPYearAmount,Sheet1!S71_SA34Code,$AC:$AC,Sheet1!S71_A5CapexCode,$AD:$AD)","v":0},{"$f":"SUMIFS(Sheet1!S71_PYearAmount,Sheet1!S71_SA34Code,$AC:$AC,Sheet1!S71_A5CapexCode,$AD:$AD)","v":0},{"$f":"SUMIFS(Sheet1!S71_OriginalBudAmnt,Sheet1!S71_SA34Code,$AC:$AC,Sheet1!S71_A5CapexCode,$AD:$AD)","v":0},{"$f":"SUMIFS(Sheet1!S71_AdjustmentBudAmnt,Sheet1!S71_SA34Code,$AC:$AC,Sheet1!S71_A5CapexCode,$AD:$AD)","v":0},{"$f":"SUMIFS(Sheet1!S71_AdjustmentBudAmnt,Sheet1!S71_SA34Code,$AC:$AC,Sheet1!S71_A5CapexCode,$AD:$AD)","v":0},{"$f":"SUMIFS(Sheet1!S71_ASBudgetAmount,Sheet1!S71_SA34Code,$AC:$AC,Sheet1!S71_A5CapexCode,$AD:$AD)","v":0},{"$f":"SUMIFS(Sheet1!S71_OY1BudgetAmount,Sheet1!S71_SA34Code,$AC:$AC,Sheet1!S71_A5CapexCode,$AD:$AD)","v":0},{"$f":"SUMIFS(Sheet1!S71_OY2BudgetAmount,Sheet1!S71_SA34Code,$AC:$AC,Sheet1!S71_A5CapexCode,$AD:$AD)","v":0},null,null,null,null,null,null,null,null,null,null,null,null,null,null,null,null,null,"1260","CE"]
["Training Centres",null,{"$f":"SUMIFS(Sheet1!S71_PPPYearAmount,Sheet1!S71_SA34Code,$AC:$AC,Sheet1!S71_A5CapexCode,$AD:$AD)","v":0},{"$f":"SUMIFS(Sheet1!S71_PPYearAmount,Sheet1!S71_SA34Code,$AC:$AC,Sheet1!S71_A5CapexCode,$AD:$AD)","v":0},{"$f":"SUMIFS(Sheet1!S71_PYearAmount,Sheet1!S71_SA34Code,$AC:$AC,Sheet1!S71_A5CapexCode,$AD:$AD)","v":0},{"$f":"SUMIFS(Sheet1!S71_OriginalBudAmnt,Sheet1!S71_SA34Code,$AC:$AC,Sheet1!S71_A5CapexCode,$AD:$AD)","v":0},{"$f":"SUMIFS(Sheet1!S71_AdjustmentBudAmnt,Sheet1!S71_SA34Code,$AC:$AC,Sheet1!S71_A5CapexCode,$AD:$AD)","v":0},{"$f":"SUMIFS(Sheet1!S71_AdjustmentBudAmnt,Sheet1!S71_SA34Code,$AC:$AC,Sheet1!S71_A5CapexCode,$AD:$AD)","v":0},{"$f":"SUMIFS(Sheet1!S71_ASBudgetAmount,Sheet1!S71_SA34Code,$AC:$AC,Sheet1!S71_A5CapexCode,$AD:$AD)","v":0},{"$f":"SUMIFS(Sheet1!S71_OY1BudgetAmount,Sheet1!S71_SA34Code,$AC:$AC,Sheet1!S71_A5CapexCode,$AD:$AD)","v":0},{"$f":"SUMIFS(Sheet1!S71_OY2BudgetAmount,Sheet1!S71_SA34Code,$AC:$AC,Sheet1!S71_A5CapexCode,$AD:$AD)","v":0},null,null,null,null,null,null,null,null,null,null,null,null,null,null,null,null,null,"1270","CE"]
["Manufacturing Plant",null,{"$f":"SUMIFS(Sheet1!S71_PPPYearAmount,Sheet1!S71_SA34Code,$AC:$AC,Sheet1!S71_A5CapexCode,$AD:$AD)","v":0},{"$f":"SUMIFS(Sheet1!S71_PPYearAmount,Sheet1!S71_SA34Code,$AC:$AC,Sheet1!S71_A5CapexCode,$AD:$AD)","v":0},{"$f":"SUMIFS(Sheet1!S71_PYearAmount,Sheet1!S71_SA34Code,$AC:$AC,Sheet1!S71_A5CapexCode,$AD:$AD)","v":0},{"$f":"SUMIFS(Sheet1!S71_OriginalBudAmnt,Sheet1!S71_SA34Code,$AC:$AC,Sheet1!S71_A5CapexCode,$AD:$AD)","v":0},{"$f":"SUMIFS(Sheet1!S71_AdjustmentBudAmnt,Sheet1!S71_SA34Code,$AC:$AC,Sheet1!S71_A5CapexCode,$AD:$AD)","v":0},{"$f":"SUMIFS(Sheet1!S71_AdjustmentBudAmnt,Sheet1!S71_SA34Code,$AC:$AC,Sheet1!S71_A5CapexCode,$AD:$AD)","v":0},{"$f":"SUMIFS(Sheet1!S71_ASBudgetAmount,Sheet1!S71_SA34Code,$AC:$AC,Sheet1!S71_A5CapexCode,$AD:$AD)","v":0},{"$f":"SUMIFS(Sheet1!S71_OY1BudgetAmount,Sheet1!S71_SA34Code,$AC:$AC,Sheet1!S71_A5CapexCode,$AD:$AD)","v":0},{"$f":"SUMIFS(Sheet1!S71_OY2BudgetAmount,Sheet1!S71_SA34Code,$AC:$AC,Sheet1!S71_A5CapexCode,$AD:$AD)","v":0},null,null,null,null,null,null,null,null,null,null,null,null,null,null,null,null,null,"1280","CE"]
["Depots",null,{"$f":"SUMIFS(Sheet1!S71_PPPYearAmount,Sheet1!S71_SA34Code,$AC:$AC,Sheet1!S71_A5CapexCode,$AD:$AD)","v":0},{"$f":"SUMIFS(Sheet1!S71_PPYearAmount,Sheet1!S71_SA34Code,$AC:$AC,Sheet1!S71_A5CapexCode,$AD:$AD)","v":0},{"$f":"SUMIFS(Sheet1!S71_PYearAmount,Sheet1!S71_SA34Code,$AC:$AC,Sheet1!S71_A5CapexCode,$AD:$AD)","v":0},{"$f":"SUMIFS(Sheet1!S71_OriginalBudAmnt,Sheet1!S71_SA34Code,$AC:$AC,Sheet1!S71_A5CapexCode,$AD:$AD)","v":0},{"$f":"SUMIFS(Sheet1!S71_AdjustmentBudAmnt,Sheet1!S71_SA34Code,$AC:$AC,Sheet1!S71_A5CapexCode,$AD:$AD)","v":0},{"$f":"SUMIFS(Sheet1!S71_AdjustmentBudAmnt,Sheet1!S71_SA34Code,$AC:$AC,Sheet1!S71_A5CapexCode,$AD:$AD)","v":0},{"$f":"SUMIFS(Sheet1!S71_ASBudgetAmount,Sheet1!S71_SA34Code,$AC:$AC,Sheet1!S71_A5CapexCode,$AD:$AD)","v":0},{"$f":"SUMIFS(Sheet1!S71_OY1BudgetAmount,Sheet1!S71_SA34Code,$AC:$AC,Sheet1!S71_A5CapexCode,$AD:$AD)","v":0},{"$f":"SUMIFS(Sheet1!S71_OY2BudgetAmount,Sheet1!S71_SA34Code,$AC:$AC,Sheet1!S71_A5CapexCode,$AD:$AD)","v":0},null,null,null,null,null,null,null,null,null,null,null,null,null,null,null,null,null,"1290","CE"]
["Capital Spares",null,{"$f":"SUMIFS(Sheet1!S71_PPPYearAmount,Sheet1!S71_SA34Code,$AC:$AC,Sheet1!S71_A5CapexCode,$AD:$AD)","v":0},{"$f":"SUMIFS(Sheet1!S71_PPYearAmount,Sheet1!S71_SA34Code,$AC:$AC,Sheet1!S71_A5CapexCode,$AD:$AD)","v":0},{"$f":"SUMIFS(Sheet1!S71_PYearAmount,Sheet1!S71_SA34Code,$AC:$AC,Sheet1!S71_A5CapexCode,$AD:$AD)","v":0},{"$f":"SUMIFS(Sheet1!S71_OriginalBudAmnt,Sheet1!S71_SA34Code,$AC:$AC,Sheet1!S71_A5CapexCode,$AD:$AD)","v":0},{"$f":"SUMIFS(Sheet1!S71_AdjustmentBudAmnt,Sheet1!S71_SA34Code,$AC:$AC,Sheet1!S71_A5CapexCode,$AD:$AD)","v":0},{"$f":"SUMIFS(Sheet1!S71_AdjustmentBudAmnt,Sheet1!S71_SA34Code,$AC:$AC,Sheet1!S71_A5CapexCode,$AD:$AD)","v":0},{"$f":"SUMIFS(Sheet1!S71_ASBudgetAmount,Sheet1!S71_SA34Code,$AC:$AC,Sheet1!S71_A5CapexCode,$AD:$AD)","v":0},{"$f":"SUMIFS(Sheet1!S71_OY1BudgetAmount,Sheet1!S71_SA34Code,$AC:$AC,Sheet1!S71_A5CapexCode,$AD:$AD)","v":0},{"$f":"SUMIFS(Sheet1!S71_OY2BudgetAmount,Sheet1!S71_SA34Code,$AC:$AC,Sheet1!S71_A5CapexCode,$AD:$AD)","v":0},null,null,null,null,null,null,null,null,null,null,null,null,null,null,null,null,null,"1300","CE"]
["Housing",null,{"$f":"SUM(C132:C134)","v":0},{"$f":"SUM(D132:D134)","v":0},0,0,0,0,0,0,0,null,null,null,null,null,null,null,null,null,null,null,null,null,null,null,null,null,null,"CE"]
["Staff Housing",null,{"$f":"SUMIFS(Sheet1!S71_PPPYearAmount,Sheet1!S71_SA34Code,$AC:$AC,Sheet1!S71_A5CapexCode,$AD:$AD)","v":0},{"$f":"SUMIFS(Sheet1!S71_PPYearAmount,Sheet1!S71_SA34Code,$AC:$AC,Sheet1!S71_A5CapexCode,$AD:$AD)","v":0},{"$f":"SUMIFS(Sheet1!S71_PYearAmount,Sheet1!S71_SA34Code,$AC:$AC,Sheet1!S71_A5CapexCode,$AD:$AD)","v":0},{"$f":"SUMIFS(Sheet1!S71_OriginalBudAmnt,Sheet1!S71_SA34Code,$AC:$AC,Sheet1!S71_A5CapexCode,$AD:$AD)","v":0},{"$f":"SUMIFS(Sheet1!S71_AdjustmentBudAmnt,Sheet1!S71_SA34Code,$AC:$AC,Sheet1!S71_A5CapexCode,$AD:$AD)","v":0},{"$f":"SUMIFS(Sheet1!S71_AdjustmentBudAmnt,Sheet1!S71_SA34Code,$AC:$AC,Sheet1!S71_A5CapexCode,$AD:$AD)","v":0},{"$f":"SUMIFS(Sheet1!S71_ASBudgetAmount,Sheet1!S71_SA34Code,$AC:$AC,Sheet1!S71_A5CapexCode,$AD:$AD)","v":0},{"$f":"SUMIFS(Sheet1!S71_OY1BudgetAmount,Sheet1!S71_SA34Code,$AC:$AC,Sheet1!S71_A5CapexCode,$AD:$AD)","v":0},{"$f":"SUMIFS(Sheet1!S71_OY2BudgetAmount,Sheet1!S71_SA34Code,$AC:$AC,Sheet1!S71_A5CapexCode,$AD:$AD)","v":0},null,null,null,null,null,null,null,null,null,null,null,null,null,null,null,null,null,"1320","CE"]
["Social Housing",null,{"$f":"SUMIFS(Sheet1!S71_PPPYearAmount,Sheet1!S71_SA34Code,$AC:$AC,Sheet1!S71_A5CapexCode,$AD:$AD)","v":0},{"$f":"SUMIFS(Sheet1!S71_PPYearAmount,Sheet1!S71_SA34Code,$AC:$AC,Sheet1!S71_A5CapexCode,$AD:$AD)","v":0},{"$f":"SUMIFS(Sheet1!S71_PYearAmount,Sheet1!S71_SA34Code,$AC:$AC,Sheet1!S71_A5CapexCode,$AD:$AD)","v":0},{"$f":"SUMIFS(Sheet1!S71_OriginalBudAmnt,Sheet1!S71_SA34Code,$AC:$AC,Sheet1!S71_A5CapexCode,$AD:$AD)","v":0},{"$f":"SUMIFS(Sheet1!S71_AdjustmentBudAmnt,Sheet1!S71_SA34Code,$AC:$AC,Sheet1!S71_A5CapexCode,$AD:$AD)","v":0},{"$f":"SUMIFS(Sheet1!S71_AdjustmentBudAmnt,Sheet1!S71_SA34Code,$AC:$AC,Sheet1!S71_A5CapexCode,$AD:$AD)","v":0},{"$f":"SUMIFS(Sheet1!S71_ASBudgetAmount,Sheet1!S71_SA34Code,$AC:$AC,Sheet1!S71_A5CapexCode,$AD:$AD)","v":0},{"$f":"SUMIFS(Sheet1!S71_OY1BudgetAmount,Sheet1!S71_SA34Code,$AC:$AC,Sheet1!S71_A5CapexCode,$AD:$AD)","v":0},{"$f":"SUMIFS(Sheet1!S71_OY2BudgetAmount,Sheet1!S71_SA34Code,$AC:$AC,Sheet1!S71_A5CapexCode,$AD:$AD)","v":0},null,null,null,null,null,null,null,null,null,null,null,null,null,null,null,null,null,"1330","CE"]
["Capital Spares",null,{"$f":"SUMIFS(Sheet1!S71_PPPYearAmount,Sheet1!S71_SA34Code,$AC:$AC,Sheet1!S71_A5CapexCode,$AD:$AD)","v":0},{"$f":"SUMIFS(Sheet1!S71_PPYearAmount,Sheet1!S71_SA34Code,$AC:$AC,Sheet1!S71_A5CapexCode,$AD:$AD)","v":0},{"$f":"SUMIFS(Sheet1!S71_PYearAmount,Sheet1!S71_SA34Code,$AC:$AC,Sheet1!S71_A5CapexCode,$AD:$AD)","v":0},{"$f":"SUMIFS(Sheet1!S71_OriginalBudAmnt,Sheet1!S71_SA34Code,$AC:$AC,Sheet1!S71_A5CapexCode,$AD:$AD)","v":0},{"$f":"SUMIFS(Sheet1!S71_AdjustmentBudAmnt,Sheet1!S71_SA34Code,$AC:$AC,Sheet1!S71_A5CapexCode,$AD:$AD)","v":0},{"$f":"SUMIFS(Sheet1!S71_AdjustmentBudAmnt,Sheet1!S71_SA34Code,$AC:$AC,Sheet1!S71_A5CapexCode,$AD:$AD)","v":0},{"$f":"SUMIFS(Sheet1!S71_ASBudgetAmount,Sheet1!S71_SA34Code,$AC:$AC,Sheet1!S71_A5CapexCode,$AD:$AD)","v":0},{"$f":"SUMIFS(Sheet1!S71_OY1BudgetAmount,Sheet1!S71_SA34Code,$AC:$AC,Sheet1!S71_A5CapexCode,$AD:$AD)","v":0},{"$f":"SUMIFS(Sheet1!S71_OY2BudgetAmount,Sheet1!S71_SA34Code,$AC:$AC,Sheet1!S71_A5CapexCode,$AD:$AD)","v":0},null,null,null,null,null,null,null,null,null,null,null,null,null,null,null,null,null,"1340","CE"]
[null,null,null,null,null,null,null,null,null,null,null,null,null,null,null,null,null,null,null,null,null,null,null,null,null,null,null,null,null,"CE"]
["Biological or Cultivated Assets",null,{"$f":"SUM(C137:C137)","v":0},0,0,0,0,0,0,0,0,null,null,null,null,null,null,null,null,null,null,null,null,null,null,null,null,null,null,"CE"]
["Biological or Cultivated Assets",null,{"$f":"SUMIFS(Sheet1!S71_PPPYearAmount,Sheet1!S71_SA34Code,$AC:$AC,Sheet1!S71_A5CapexCode,$AD:$AD)","v":0},{"$f":"SUMIFS(Sheet1!S71_PPYearAmount,Sheet1!S71_SA34Code,$AC:$AC,Sheet1!S71_A5CapexCode,$AD:$AD)","v":0},{"$f":"SUMIFS(Sheet1!S71_PYearAmount,Sheet1!S71_SA34Code,$AC:$AC,Sheet1!S71_A5CapexCode,$AD:$AD)","v":0},{"$f":"SUMIFS(Sheet1!S71_OriginalBudAmnt,Sheet1!S71_SA34Code,$AC:$AC,Sheet1!S71_A5CapexCode,$AD:$AD)","v":0},{"$f":"SUMIFS(Sheet1!S71_AdjustmentBudAmnt,Sheet1!S71_SA34Code,$AC:$AC,Sheet1!S71_A5CapexCode,$AD:$AD)","v":0},{"$f":"SUMIFS(Sheet1!S71_AdjustmentBudAmnt,Sheet1!S71_SA34Code,$AC:$AC,Sheet1!S71_A5CapexCode,$AD:$AD)","v":0},{"$f":"SUMIFS(Sheet1!S71_ASBudgetAmount,Sheet1!S71_SA34Code,$AC:$AC,Sheet1!S71_A5CapexCode,$AD:$AD)","v":0},{"$f":"SUMIFS(Sheet1!S71_OY1BudgetAmount,Sheet1!S71_SA34Code,$AC:$AC,Sheet1!S71_A5CapexCode,$AD:$AD)","v":0},{"$f":"SUMIFS(Sheet1!S71_OY2BudgetAmount,Sheet1!S71_SA34Code,$AC:$AC,Sheet1!S71_A5CapexCode,$AD:$AD)","v":0},null,null,null,null,null,null,null,null,null,null,null,null,null,null,null,null,null,"1360","CE"]
[null,null,null,null,null,null,null,null,null,null,null,null,null,null,null,null,null,null,null,null,null,null,null,null,null,null,null,null,null,"CE"]
["Intangible Assets",null,{"$f":"+C140+C141","v":0},{"$f":"+D140+D141","v":0},0,0,0,0,0,0,0,null,null,null,null,null,null,null,null,null,null,null,null,null,null,null,null,null,null,"CE"]
["Servitudes",null,{"$f":"SUMIFS(Sheet1!S71_PPPYearAmount,Sheet1!S71_SA34Code,$AC:$AC,Sheet1!S71_A5CapexCode,$AD:$AD)","v":0},{"$f":"SUMIFS(Sheet1!S71_PPYearAmount,Sheet1!S71_SA34Code,$AC:$AC,Sheet1!S71_A5CapexCode,$AD:$AD)","v":0},{"$f":"SUMIFS(Sheet1!S71_PYearAmount,Sheet1!S71_SA34Code,$AC:$AC,Sheet1!S71_A5CapexCode,$AD:$AD)","v":0},{"$f":"SUMIFS(Sheet1!S71_OriginalBudAmnt,Sheet1!S71_SA34Code,$AC:$AC,Sheet1!S71_A5CapexCode,$AD:$AD)","v":0},{"$f":"SUMIFS(Sheet1!S71_AdjustmentBudAmnt,Sheet1!S71_SA34Code,$AC:$AC,Sheet1!S71_A5CapexCode,$AD:$AD)","v":0},{"$f":"SUMIFS(Sheet1!S71_AdjustmentBudAmnt,Sheet1!S71_SA34Code,$AC:$AC,Sheet1!S71_A5CapexCode,$AD:$AD)","v":0},{"$f":"SUMIFS(Sheet1!S71_ASBudgetAmount,Sheet1!S71_SA34Code,$AC:$AC,Sheet1!S71_A5CapexCode,$AD:$AD)","v":0},{"$f":"SUMIFS(Sheet1!S71_OY1BudgetAmount,Sheet1!S71_SA34Code,$AC:$AC,Sheet1!S71_A5CapexCode,$AD:$AD)","v":0},{"$f":"SUMIFS(Sheet1!S71_OY2BudgetAmount,Sheet1!S71_SA34Code,$AC:$AC,Sheet1!S71_A5CapexCode,$AD:$AD)","v":0},null,null,null,null,null,null,null,null,null,null,null,null,null,null,null,null,null,"1380","CE"]
["Licences and Rights",null,{"$f":"SUM(C142:C147)","v":0},{"$f":"SUM(D142:D147)","v":0},0,0,0,0,0,0,0,null,null,null,null,null,null,null,null,null,null,null,null,null,null,null,null,null,null,"CE"]
["Water Rights",null,{"$f":"SUMIFS(Sheet1!S71_PPPYearAmount,Sheet1!S71_SA34Code,$AC:$AC,Sheet1!S71_A5CapexCode,$AD:$AD)","v":0},{"$f":"SUMIFS(Sheet1!S71_PPYearAmount,Sheet1!S71_SA34Code,$AC:$AC,Sheet1!S71_A5CapexCode,$AD:$AD)","v":0},{"$f":"SUMIFS(Sheet1!S71_PYearAmount,Sheet1!S71_SA34Code,$AC:$AC,Sheet1!S71_A5CapexCode,$AD:$AD)","v":0},{"$f":"SUMIFS(Sheet1!S71_OriginalBudAmnt,Sheet1!S71_SA34Code,$AC:$AC,Sheet1!S71_A5CapexCode,$AD:$AD)","v":0},{"$f":"SUMIFS(Sheet1!S71_AdjustmentBudAmnt,Sheet1!S71_SA34Code,$AC:$AC,Sheet1!S71_A5CapexCode,$AD:$AD)","v":0},{"$f":"SUMIFS(Sheet1!S71_AdjustmentBudAmnt,Sheet1!S71_SA34Code,$AC:$AC,Sheet1!S71_A5CapexCode,$AD:$AD)","v":0},{"$f":"SUMIFS(Sheet1!S71_ASBudgetAmount,Sheet1!S71_SA34Code,$AC:$AC,Sheet1!S71_A5CapexCode,$AD:$AD)","v":0},{"$f":"SUMIFS(Sheet1!S71_OY1BudgetAmount,Sheet1!S71_SA34Code,$AC:$AC,Sheet1!S71_A5CapexCode,$AD:$AD)","v":0},{"$f":"SUMIFS(Sheet1!S71_OY2BudgetAmount,Sheet1!S71_SA34Code,$AC:$AC,Sheet1!S71_A5CapexCode,$AD:$AD)","v":0},null,null,null,null,null,null,null,null,null,null,null,null,null,null,null,null,null,"1400","CE"]
["Effluent Licenses",null,{"$f":"SUMIFS(Sheet1!S71_PPPYearAmount,Sheet1!S71_SA34Code,$AC:$AC,Sheet1!S71_A5CapexCode,$AD:$AD)","v":0},{"$f":"SUMIFS(Sheet1!S71_PPYearAmount,Sheet1!S71_SA34Code,$AC:$AC,Sheet1!S71_A5CapexCode,$AD:$AD)","v":0},{"$f":"SUMIFS(Sheet1!S71_PYearAmount,Sheet1!S71_SA34Code,$AC:$AC,Sheet1!S71_A5CapexCode,$AD:$AD)","v":0},{"$f":"SUMIFS(Sheet1!S71_OriginalBudAmnt,Sheet1!S71_SA34Code,$AC:$AC,Sheet1!S71_A5CapexCode,$AD:$AD)","v":0},{"$f":"SUMIFS(Sheet1!S71_AdjustmentBudAmnt,Sheet1!S71_SA34Code,$AC:$AC,Sheet1!S71_A5CapexCode,$AD:$AD)","v":0},{"$f":"SUMIFS(Sheet1!S71_AdjustmentBudAmnt,Sheet1!S71_SA34Code,$AC:$AC,Sheet1!S71_A5CapexCode,$AD:$AD)","v":0},{"$f":"SUMIFS(Sheet1!S71_ASBudgetAmount,Sheet1!S71_SA34Code,$AC:$AC,Sheet1!S71_A5CapexCode,$AD:$AD)","v":0},{"$f":"SUMIFS(Sheet1!S71_OY1BudgetAmount,Sheet1!S71_SA34Code,$AC:$AC,Sheet1!S71_A5CapexCode,$AD:$AD)","v":0},{"$f":"SUMIFS(Sheet1!S71_OY2BudgetAmount,Sheet1!S71_SA34Code,$AC:$AC,Sheet1!S71_A5CapexCode,$AD:$AD)","v":0},null,null,null,null,null,null,null,null,null,null,null,null,null,null,null,null,null,"1410","CE"]
["Solid Waste Licenses",null,{"$f":"SUMIFS(Sheet1!S71_PPPYearAmount,Sheet1!S71_SA34Code,$AC:$AC,Sheet1!S71_A5CapexCode,$AD:$AD)","v":0},{"$f":"SUMIFS(Sheet1!S71_PPYearAmount,Sheet1!S71_SA34Code,$AC:$AC,Sheet1!S71_A5CapexCode,$AD:$AD)","v":0},{"$f":"SUMIFS(Sheet1!S71_PYearAmount,Sheet1!S71_SA34Code,$AC:$AC,Sheet1!S71_A5CapexCode,$AD:$AD)","v":0},{"$f":"SUMIFS(Sheet1!S71_OriginalBudAmnt,Sheet1!S71_SA34Code,$AC:$AC,Sheet1!S71_A5CapexCode,$AD:$AD)","v":0},{"$f":"SUMIFS(Sheet1!S71_AdjustmentBudAmnt,Sheet1!S71_SA34Code,$AC:$AC,Sheet1!S71_A5CapexCode,$AD:$AD)","v":0},{"$f":"SUMIFS(Sheet1!S71_AdjustmentBudAmnt,Sheet1!S71_SA34Code,$AC:$AC,Sheet1!S71_A5CapexCode,$AD:$AD)","v":0},{"$f":"SUMIFS(Sheet1!S71_ASBudgetAmount,Sheet1!S71_SA34Code,$AC:$AC,Sheet1!S71_A5CapexCode,$AD:$AD)","v":0},{"$f":"SUMIFS(Sheet1!S71_OY1BudgetAmount,Sheet1!S71_SA34Code,$AC:$AC,Sheet1!S71_A5CapexCode,$AD:$AD)","v":0},{"$f":"SUMIFS(Sheet1!S71_OY2BudgetAmount,Sheet1!S71_SA34Code,$AC:$AC,Sheet1!S71_A5CapexCode,$AD:$AD)","v":0},null,null,null,null,null,null,null,null,null,null,null,null,null,null,null,null,null,"1420","CE"]
["Computer Software and Applications",null,{"$f":"SUMIFS(Sheet1!S71_PPPYearAmount,Sheet1!S71_SA34Code,$AC:$AC,Sheet1!S71_A5CapexCode,$AD:$AD)","v":0},{"$f":"SUMIFS(Sheet1!S71_PPYearAmount,Sheet1!S71_SA34Code,$AC:$AC,Sheet1!S71_A5CapexCode,$AD:$AD)","v":0},{"$f":"SUMIFS(Sheet1!S71_PYearAmount,Sheet1!S71_SA34Code,$AC:$AC,Sheet1!S71_A5CapexCode,$AD:$AD)","v":0},{"$f":"SUMIFS(Sheet1!S71_OriginalBudAmnt,Sheet1!S71_SA34Code,$AC:$AC,Sheet1!S71_A5CapexCode,$AD:$AD)","v":0},{"$f":"SUMIFS(Sheet1!S71_AdjustmentBudAmnt,Sheet1!S71_SA34Code,$AC:$AC,Sheet1!S71_A5CapexCode,$AD:$AD)","v":0},{"$f":"SUMIFS(Sheet1!S71_AdjustmentBudAmnt,Sheet1!S71_SA34Code,$AC:$AC,Sheet1!S71_A5CapexCode,$AD:$AD)","v":0},{"$f":"SUMIFS(Sheet1!S71_ASBudgetAmount,Sheet1!S71_SA34Code,$AC:$AC,Sheet1!S71_A5CapexCode,$AD:$AD)","v":0},{"$f":"SUMIFS(Sheet1!S71_OY1BudgetAmount,Sheet1!S71_SA34Code,$AC:$AC,Sheet1!S71_A5CapexCode,$AD:$AD)","v":0},{"$f":"SUMIFS(Sheet1!S71_OY2BudgetAmount,Sheet1!S71_SA34Code,$AC:$AC,Sheet1!S71_A5CapexCode,$AD:$AD)","v":0},null,null,null,null,null,null,null,null,null,null,null,null,null,null,null,null,null,"1430","CE"]
["Load Settlement Software Applications",null,{"$f":"SUMIFS(Sheet1!S71_PPPYearAmount,Sheet1!S71_SA34Code,$AC:$AC,Sheet1!S71_A5CapexCode,$AD:$AD)","v":0},{"$f":"SUMIFS(Sheet1!S71_PPYearAmount,Sheet1!S71_SA34Code,$AC:$AC,Sheet1!S71_A5CapexCode,$AD:$AD)","v":0},{"$f":"SUMIFS(Sheet1!S71_PYearAmount,Sheet1!S71_SA34Code,$AC:$AC,Sheet1!S71_A5CapexCode,$AD:$AD)","v":0},{"$f":"SUMIFS(Sheet1!S71_OriginalBudAmnt,Sheet1!S71_SA34Code,$AC:$AC,Sheet1!S71_A5CapexCode,$AD:$AD)","v":0},{"$f":"SUMIFS(Sheet1!S71_AdjustmentBudAmnt,Sheet1!S71_SA34Code,$AC:$AC,Sheet1!S71_A5CapexCode,$AD:$AD)","v":0},{"$f":"SUMIFS(Sheet1!S71_AdjustmentBudAmnt,Sheet1!S71_SA34Code,$AC:$AC,Sheet1!S71_A5CapexCode,$AD:$AD)","v":0},{"$f":"SUMIFS(Sheet1!S71_ASBudgetAmount,Sheet1!S71_SA34Code,$AC:$AC,Sheet1!S71_A5CapexCode,$AD:$AD)","v":0},{"$f":"SUMIFS(Sheet1!S71_OY1BudgetAmount,Sheet1!S71_SA34Code,$AC:$AC,Sheet1!S71_A5CapexCode,$AD:$AD)","v":0},{"$f":"SUMIFS(Sheet1!S71_OY2BudgetAmount,Sheet1!S71_SA34Code,$AC:$AC,Sheet1!S71_A5CapexCode,$AD:$AD)","v":0},null,null,null,null,null,null,null,null,null,null,null,null,null,null,null,null,null,"1440","CE"]
["Unspecified",null,{"$f":"SUMIFS(Sheet1!S71_PPPYearAmount,Sheet1!S71_SA34Code,$AC:$AC,Sheet1!S71_A5CapexCode,$AD:$AD)","v":0},{"$f":"SUMIFS(Sheet1!S71_PPYearAmount,Sheet1!S71_SA34Code,$AC:$AC,Sheet1!S71_A5CapexCode,$AD:$AD)","v":0},{"$f":"SUMIFS(Sheet1!S71_PYearAmount,Sheet1!S71_SA34Code,$AC:$AC,Sheet1!S71_A5CapexCode,$AD:$AD)","v":0},{"$f":"SUMIFS(Sheet1!S71_OriginalBudAmnt,Sheet1!S71_SA34Code,$AC:$AC,Sheet1!S71_A5CapexCode,$AD:$AD)","v":0},{"$f":"SUMIFS(Sheet1!S71_AdjustmentBudAmnt,Sheet1!S71_SA34Code,$AC:$AC,Sheet1!S71_A5CapexCode,$AD:$AD)","v":0},{"$f":"SUMIFS(Sheet1!S71_AdjustmentBudAmnt,Sheet1!S71_SA34Code,$AC:$AC,Sheet1!S71_A5CapexCode,$AD:$AD)","v":0},{"$f":"SUMIFS(Sheet1!S71_ASBudgetAmount,Sheet1!S71_SA34Code,$AC:$AC,Sheet1!S71_A5CapexCode,$AD:$AD)","v":0},{"$f":"SUMIFS(Sheet1!S71_OY1BudgetAmount,Sheet1!S71_SA34Code,$AC:$AC,Sheet1!S71_A5CapexCode,$AD:$AD)","v":0},{"$f":"SUMIFS(Sheet1!S71_OY2BudgetAmount,Sheet1!S71_SA34Code,$AC:$AC,Sheet1!S71_A5CapexCode,$AD:$AD)","v":0},null,null,null,null,null,null,null,null,null,null,null,null,null,null,null,null,null,"1450","CE"]
[null,null,null,null,null,null,null,null,null,null,null,null,null,null,null,null,null,null,null,null,null,null,null,null,null,null,null,null,null,"CE"]
["Computer Equipment",null,{"$f":"SUM(C150:C150)","v":0},0,0,0,0,0,0,0,0,null,null,null,null,null,null,null,null,null,null,null,null,null,null,null,null,null,null,"CE"]
["Computer Equipment",null,{"$f":"SUMIFS(Sheet1!S71_PPPYearAmount,Sheet1!S71_SA34Code,$AC:$AC,Sheet1!S71_A5CapexCode,$AD:$AD)","v":0},{"$f":"SUMIFS(Sheet1!S71_PPYearAmount,Sheet1!S71_SA34Code,$AC:$AC,Sheet1!S71_A5CapexCode,$AD:$AD)","v":0},{"$f":"SUMIFS(Sheet1!S71_PYearAmount,Sheet1!S71_SA34Code,$AC:$AC,Sheet1!S71_A5CapexCode,$AD:$AD)","v":0},{"$f":"SUMIFS(Sheet1!S71_OriginalBudAmnt,Sheet1!S71_SA34Code,$AC:$AC,Sheet1!S71_A5CapexCode,$AD:$AD)","v":0},{"$f":"SUMIFS(Sheet1!S71_AdjustmentBudAmnt,Sheet1!S71_SA34Code,$AC:$AC,Sheet1!S71_A5CapexCode,$AD:$AD)","v":0},{"$f":"SUMIFS(Sheet1!S71_AdjustmentBudAmnt,Sheet1!S71_SA34Code,$AC:$AC,Sheet1!S71_A5CapexCode,$AD:$AD)","v":0},{"$f":"SUMIFS(Sheet1!S71_ASBudgetAmount,Sheet1!S71_SA34Code,$AC:$AC,Sheet1!S71_A5CapexCode,$AD:$AD)","v":0},{"$f":"SUMIFS(Sheet1!S71_OY1BudgetAmount,Sheet1!S71_SA34Code,$AC:$AC,Sheet1!S71_A5CapexCode,$AD:$AD)","v":0},{"$f":"SUMIFS(Sheet1!S71_OY2BudgetAmount,Sheet1!S71_SA34Code,$AC:$AC,Sheet1!S71_A5CapexCode,$AD:$AD)","v":0},null,null,null,null,null,null,null,null,null,null,null,null,null,null,null,null,null,"1470","CE"]
[null,null,null,null,null,null,null,null,null,null,null,null,null,null,null,null,null,null,null,null,null,null,null,null,null,null,null,null,null,"CE"]
["Furniture and Office Equipment",null,{"$f":"SUM(C153:C153)","v":1069613},0,0,0,0,0,0,0,0,null,null,null,null,null,null,null,null,null,null,null,null,null,null,null,null,null,null,"CE"]
["Furniture and Office Equipment",null,{"$f":"SUMIFS(Sheet1!S71_PPPYearAmount,Sheet1!S71_SA34Code,$AC:$AC,Sheet1!S71_A5CapexCode,$AD:$AD)","v":1069613},{"$f":"SUMIFS(Sheet1!S71_PPYearAmount,Sheet1!S71_SA34Code,$AC:$AC,Sheet1!S71_A5CapexCode,$AD:$AD)","v":0},{"$f":"SUMIFS(Sheet1!S71_PYearAmount,Sheet1!S71_SA34Code,$AC:$AC,Sheet1!S71_A5CapexCode,$AD:$AD)","v":0},{"$f":"SUMIFS(Sheet1!S71_OriginalBudAmnt,Sheet1!S71_SA34Code,$AC:$AC,Sheet1!S71_A5CapexCode,$AD:$AD)","v":0},{"$f":"SUMIFS(Sheet1!S71_AdjustmentBudAmnt,Sheet1!S71_SA34Code,$AC:$AC,Sheet1!S71_A5CapexCode,$AD:$AD)","v":0},{"$f":"SUMIFS(Sheet1!S71_AdjustmentBudAmnt,Sheet1!S71_SA34Code,$AC:$AC,Sheet1!S71_A5CapexCode,$AD:$AD)","v":0},{"$f":"SUMIFS(Sheet1!S71_ASBudgetAmount,Sheet1!S71_SA34Code,$AC:$AC,Sheet1!S71_A5CapexCode,$AD:$AD)","v":0},{"$f":"SUMIFS(Sheet1!S71_OY1BudgetAmount,Sheet1!S71_SA34Code,$AC:$AC,Sheet1!S71_A5CapexCode,$AD:$AD)","v":0},{"$f":"SUMIFS(Sheet1!S71_OY2BudgetAmount,Sheet1!S71_SA34Code,$AC:$AC,Sheet1!S71_A5CapexCode,$AD:$AD)","v":0},null,null,null,null,null,null,null,null,null,null,null,null,null,null,null,null,null,"1490","CE"]
[null,null,null,null,null,null,null,null,null,null,null,null,null,null,null,null,null,null,null,null,null,null,null,null,null,null,null,null,null,"CE"]
["Machinery and Equipment",null,{"$f":"SUM(C156:C156)","v":0},0,0,0,0,0,0,0,0,null,null,null,null,null,null,null,null,null,null,null,null,null,null,null,null,null,null,"CE"]
["Machinery and Equipment",null,{"$f":"SUMIFS(Sheet1!S71_PPPYearAmount,Sheet1!S71_SA34Code,$AC:$AC,Sheet1!S71_A5CapexCode,$AD:$AD)","v":0},{"$f":"SUMIFS(Sheet1!S71_PPYearAmount,Sheet1!S71_SA34Code,$AC:$AC,Sheet1!S71_A5CapexCode,$AD:$AD)","v":0},{"$f":"SUMIFS(Sheet1!S71_PYearAmount,Sheet1!S71_SA34Code,$AC:$AC,Sheet1!S71_A5CapexCode,$AD:$AD)","v":0},{"$f":"SUMIFS(Sheet1!S71_OriginalBudAmnt,Sheet1!S71_SA34Code,$AC:$AC,Sheet1!S71_A5CapexCode,$AD:$AD)","v":0},{"$f":"SUMIFS(Sheet1!S71_AdjustmentBudAmnt,Sheet1!S71_SA34Code,$AC:$AC,Sheet1!S71_A5CapexCode,$AD:$AD)","v":0},{"$f":"SUMIFS(Sheet1!S71_AdjustmentBudAmnt,Sheet1!S71_SA34Code,$AC:$AC,Sheet1!S71_A5CapexCode,$AD:$AD)","v":0},{"$f":"SUMIFS(Sheet1!S71_ASBudgetAmount,Sheet1!S71_SA34Code,$AC:$AC,Sheet1!S71_A5CapexCode,$AD:$AD)","v":0},{"$f":"SUMIFS(Sheet1!S71_OY1BudgetAmount,Sheet1!S71_SA34Code,$AC:$AC,Sheet1!S71_A5CapexCode,$AD:$AD)","v":0},{"$f":"SUMIFS(Sheet1!S71_OY2BudgetAmount,Sheet1!S71_SA34Code,$AC:$AC,Sheet1!S71_A5CapexCode,$AD:$AD)","v":0},null,null,null,null,null,null,null,null,null,null,null,null,null,null,null,null,null,"1510","CE"]
[null,null,null,null,null,null,null,null,null,null,null,null,null,null,null,null,null,null,null,null,null,null,null,null,null,null,null,null,null,"CE"]
["Transport Assets",null,{"$f":"SUM(C159:C159)","v":0},0,0,0,0,0,0,0,0,null,null,null,null,null,null,null,null,null,null,null,null,null,null,null,null,null,null,"CE"]
["Transport Assets",null,{"$f":"SUMIFS(Sheet1!S71_PPPYearAmount,Sheet1!S71_SA34Code,$AC:$AC,Sheet1!S71_A5CapexCode,$AD:$AD)","v":0},{"$f":"SUMIFS(Sheet1!S71_PPYearAmount,Sheet1!S71_SA34Code,$AC:$AC,Sheet1!S71_A5CapexCode,$AD:$AD)","v":0},{"$f":"SUMIFS(Sheet1!S71_PYearAmount,Sheet1!S71_SA34Code,$AC:$AC,Sheet1!S71_A5CapexCode,$AD:$AD)","v":0},{"$f":"SUMIFS(Sheet1!S71_OriginalBudAmnt,Sheet1!S71_SA34Code,$AC:$AC,Sheet1!S71_A5CapexCode,$AD:$AD)","v":0},{"$f":"SUMIFS(Sheet1!S71_AdjustmentBudAmnt,Sheet1!S71_SA34Code,$AC:$AC,Sheet1!S71_A5CapexCode,$AD:$AD)","v":0},{"$f":"SUMIFS(Sheet1!S71_AdjustmentBudAmnt,Sheet1!S71_SA34Code,$AC:$AC,Sheet1!S71_A5CapexCode,$AD:$AD)","v":0},{"$f":"SUMIFS(Sheet1!S71_ASBudgetAmount,Sheet1!S71_SA34Code,$AC:$AC,Sheet1!S71_A5CapexCode,$AD:$AD)","v":0},{"$f":"SUMIFS(Sheet1!S71_OY1BudgetAmount,Sheet1!S71_SA34Code,$AC:$AC,Sheet1!S71_A5CapexCode,$AD:$AD)","v":0},{"$f":"SUMIFS(Sheet1!S71_OY2BudgetAmount,Sheet1!S71_SA34Code,$AC:$AC,Sheet1!S71_A5CapexCode,$AD:$AD)","v":0},null,null,null,null,null,null,null,null,null,null,null,null,null,null,null,null,null,"1530","CE"]
[null,null,null,null,null,null,null,null,null,null,null,null,null,null,null,null,null,null,null,null,null,null,null,null,null,null,null,null,null,"CE"]
["Land",null,{"$f":"SUM(C162:C162)","v":0},0,0,0,0,0,0,0,0,null,null,null,null,null,null,null,null,null,null,null,null,null,null,null,null,null,null,"CE"]
["Land",null,{"$f":"SUMIFS(Sheet1!S71_PPPYearAmount,Sheet1!S71_SA34Code,$AC:$AC,Sheet1!S71_A5CapexCode,$AD:$AD)","v":0},{"$f":"SUMIFS(Sheet1!S71_PPYearAmount,Sheet1!S71_SA34Code,$AC:$AC,Sheet1!S71_A5CapexCode,$AD:$AD)","v":0},{"$f":"SUMIFS(Sheet1!S71_PYearAmount,Sheet1!S71_SA34Code,$AC:$AC,Sheet1!S71_A5CapexCode,$AD:$AD)","v":0},{"$f":"SUMIFS(Sheet1!S71_OriginalBudAmnt,Sheet1!S71_SA34Code,$AC:$AC,Sheet1!S71_A5CapexCode,$AD:$AD)","v":0},{"$f":"SUMIFS(Sheet1!S71_AdjustmentBudAmnt,Sheet1!S71_SA34Code,$AC:$AC,Sheet1!S71_A5CapexCode,$AD:$AD)","v":0},{"$f":"SUMIFS(Sheet1!S71_AdjustmentBudAmnt,Sheet1!S71_SA34Code,$AC:$AC,Sheet1!S71_A5CapexCode,$AD:$AD)","v":0},{"$f":"SUMIFS(Sheet1!S71_ASBudgetAmount,Sheet1!S71_SA34Code,$AC:$AC,Sheet1!S71_A5CapexCode,$AD:$AD)","v":0},{"$f":"SUMIFS(Sheet1!S71_OY1BudgetAmount,Sheet1!S71_SA34Code,$AC:$AC,Sheet1!S71_A5CapexCode,$AD:$AD)","v":0},{"$f":"SUMIFS(Sheet1!S71_OY2BudgetAmount,Sheet1!S71_SA34Code,$AC:$AC,Sheet1!S71_A5CapexCode,$AD:$AD)","v":0},null,null,null,null,null,null,null,null,null,null,null,null,null,null,null,null,null,"1550","CE"]
[null,null,null,null,null,null,null,null,null,null,null,null,null,null,null,null,null,null,null,null,null,null,null,null,null,null,null,null,null,"CE"]
["Zoo's, Marine and Non-biological Animals",null,{"$f":"SUM(C165:C165)","v":0},0,0,0,0,0,0,0,0,null,null,null,null,null,null,null,null,null,null,null,null,null,null,null,null,null,null,"CE"]
["Zoo's, Marine and Non-biological Animals",null,{"$f":"SUMIFS(Sheet1!S71_PPPYearAmount,Sheet1!S71_SA34Code,$AC:$AC,Sheet1!S71_A5CapexCode,$AD:$AD)","v":0},{"$f":"SUMIFS(Sheet1!S71_PPYearAmount,Sheet1!S71_SA34Code,$AC:$AC,Sheet1!S71_A5CapexCode,$AD:$AD)","v":0},{"$f":"SUMIFS(Sheet1!S71_PYearAmount,Sheet1!S71_SA34Code,$AC:$AC,Sheet1!S71_A5CapexCode,$AD:$AD)","v":0},{"$f":"SUMIFS(Sheet1!S71_OriginalBudAmnt,Sheet1!S71_SA34Code,$AC:$AC,Sheet1!S71_A5CapexCode,$AD:$AD)","v":0},{"$f":"SUMIFS(Sheet1!S71_AdjustmentBudAmnt,Sheet1!S71_SA34Code,$AC:$AC,Sheet1!S71_A5CapexCode,$AD:$AD)","v":0},{"$f":"SUMIFS(Sheet1!S71_AdjustmentBudAmnt,Sheet1!S71_SA34Code,$AC:$AC,Sheet1!S71_A5CapexCode,$AD:$AD)","v":0},{"$f":"SUMIFS(Sheet1!S71_ASBudgetAmount,Sheet1!S71_SA34Code,$AC:$AC,Sheet1!S71_A5CapexCode,$AD:$AD)","v":0},{"$f":"SUMIFS(Sheet1!S71_OY1BudgetAmount,Sheet1!S71_SA34Code,$AC:$AC,Sheet1!S71_A5CapexCode,$AD:$AD)","v":0},{"$f":"SUMIFS(Sheet1!S71_OY2BudgetAmount,Sheet1!S71_SA34Code,$AC:$AC,Sheet1!S71_A5CapexCode,$AD:$AD)","v":0},null,null,null,null,null,null,null,null,null,null,null,null,null,null,null,null,null,"1570","CE"]
[]
["Living resources"," ",{"$f":"+C168+C171","v":0},{"$f":"+D168+D171","v":0},0,0,0,0,0,0,0]
["Mature"," ",{"$f":"SUM(C169:C170)","v":0},0,0,0,0,0,0,0,0]
["Policing and Protection"," ",{"$f":"SUMIFS(Sheet1!S71_PPPYearAmount,Sheet1!S71_SA34Code,$AC:$AC,Sheet1!S71_A5CapexCode,$AD:$AD)","v":0},{"$f":"SUMIFS(Sheet1!S71_PPYearAmount,Sheet1!S71_SA34Code,$AC:$AC,Sheet1!S71_A5CapexCode,$AD:$AD)","v":0},{"$f":"SUMIFS(Sheet1!S71_PYearAmount,Sheet1!S71_SA34Code,$AC:$AC,Sheet1!S71_A5CapexCode,$AD:$AD)","v":0},{"$f":"SUMIFS(Sheet1!S71_OriginalBudAmnt,Sheet1!S71_SA34Code,$AC:$AC,Sheet1!S71_A5CapexCode,$AD:$AD)","v":0},{"$f":"SUMIFS(Sheet1!S71_AdjustmentBudAmnt,Sheet1!S71_SA34Code,$AC:$AC,Sheet1!S71_A5CapexCode,$AD:$AD)","v":0},{"$f":"SUMIFS(Sheet1!S71_AdjustmentBudAmnt,Sheet1!S71_SA34Code,$AC:$AC,Sheet1!S71_A5CapexCode,$AD:$AD)","v":0},{"$f":"SUMIFS(Sheet1!S71_ASBudgetAmount,Sheet1!S71_SA34Code,$AC:$AC,Sheet1!S71_A5CapexCode,$AD:$AD)","v":0},{"$f":"SUMIFS(Sheet1!S71_OY1BudgetAmount,Sheet1!S71_SA34Code,$AC:$AC,Sheet1!S71_A5CapexCode,$AD:$AD)","v":0},{"$f":"SUMIFS(Sheet1!S71_OY2BudgetAmount,Sheet1!S71_SA34Code,$AC:$AC,Sheet1!S71_A5CapexCode,$AD:$AD)","v":0}]
["Zoological plants and animals"," ",{"$f":"SUMIFS(Sheet1!S71_PPPYearAmount,Sheet1!S71_SA34Code,$AC:$AC,Sheet1!S71_A5CapexCode,$AD:$AD)","v":0},{"$f":"SUMIFS(Sheet1!S71_PPYearAmount,Sheet1!S71_SA34Code,$AC:$AC,Sheet1!S71_A5CapexCode,$AD:$AD)","v":0},{"$f":"SUMIFS(Sheet1!S71_PYearAmount,Sheet1!S71_SA34Code,$AC:$AC,Sheet1!S71_A5CapexCode,$AD:$AD)","v":0},{"$f":"SUMIFS(Sheet1!S71_OriginalBudAmnt,Sheet1!S71_SA34Code,$AC:$AC,Sheet1!S71_A5CapexCode,$AD:$AD)","v":0},{"$f":"SUMIFS(Sheet1!S71_AdjustmentBudAmnt,Sheet1!S71_SA34Code,$AC:$AC,Sheet1!S71_A5CapexCode,$AD:$AD)","v":0},{"$f":"SUMIFS(Sheet1!S71_AdjustmentBudAmnt,Sheet1!S71_SA34Code,$AC:$AC,Sheet1!S71_A5CapexCode,$AD:$AD)","v":0},{"$f":"SUMIFS(Sheet1!S71_ASBudgetAmount,Sheet1!S71_SA34Code,$AC:$AC,Sheet1!S71_A5CapexCode,$AD:$AD)","v":0},{"$f":"SUMIFS(Sheet1!S71_OY1BudgetAmount,Sheet1!S71_SA34Code,$AC:$AC,Sheet1!S71_A5CapexCode,$AD:$AD)","v":0},{"$f":"SUMIFS(Sheet1!S71_OY2BudgetAmount,Sheet1!S71_SA34Code,$AC:$AC,Sheet1!S71_A5CapexCode,$AD:$AD)","v":0}]
["Immature"," ",{"$f":"SUM(C172:C173)","v":0},{"$f":"SUM(D172:D173)","v":0},0,0,0,0,0,0,0]
["Policing and Protection"," ",{"$f":"SUMIFS(Sheet1!S71_PPPYearAmount,Sheet1!S71_SA34Code,$AC:$AC,Sheet1!S71_A5CapexCode,$AD:$AD)","v":0},{"$f":"SUMIFS(Sheet1!S71_PPYearAmount,Sheet1!S71_SA34Code,$AC:$AC,Sheet1!S71_A5CapexCode,$AD:$AD)","v":0},{"$f":"SUMIFS(Sheet1!S71_PYearAmount,Sheet1!S71_SA34Code,$AC:$AC,Sheet1!S71_A5CapexCode,$AD:$AD)","v":0},{"$f":"SUMIFS(Sheet1!S71_OriginalBudAmnt,Sheet1!S71_SA34Code,$AC:$AC,Sheet1!S71_A5CapexCode,$AD:$AD)","v":0},{"$f":"SUMIFS(Sheet1!S71_AdjustmentBudAmnt,Sheet1!S71_SA34Code,$AC:$AC,Sheet1!S71_A5CapexCode,$AD:$AD)","v":0},{"$f":"SUMIFS(Sheet1!S71_AdjustmentBudAmnt,Sheet1!S71_SA34Code,$AC:$AC,Sheet1!S71_A5CapexCode,$AD:$AD)","v":0},{"$f":"SUMIFS(Sheet1!S71_ASBudgetAmount,Sheet1!S71_SA34Code,$AC:$AC,Sheet1!S71_A5CapexCode,$AD:$AD)","v":0},{"$f":"SUMIFS(Sheet1!S71_OY1BudgetAmount,Sheet1!S71_SA34Code,$AC:$AC,Sheet1!S71_A5CapexCode,$AD:$AD)","v":0},{"$f":"SUMIFS(Sheet1!S71_OY2BudgetAmount,Sheet1!S71_SA34Code,$AC:$AC,Sheet1!S71_A5CapexCode,$AD:$AD)","v":0}]
["Zoological plants and animals"," ",{"$f":"SUMIFS(Sheet1!S71_PPPYearAmount,Sheet1!S71_SA34Code,$AC:$AC,Sheet1!S71_A5CapexCode,$AD:$AD)","v":0},{"$f":"SUMIFS(Sheet1!S71_PPYearAmount,Sheet1!S71_SA34Code,$AC:$AC,Sheet1!S71_A5CapexCode,$AD:$AD)","v":0},{"$f":"SUMIFS(Sheet1!S71_PYearAmount,Sheet1!S71_SA34Code,$AC:$AC,Sheet1!S71_A5CapexCode,$AD:$AD)","v":0},{"$f":"SUMIFS(Sheet1!S71_OriginalBudAmnt,Sheet1!S71_SA34Code,$AC:$AC,Sheet1!S71_A5CapexCode,$AD:$AD)","v":0},{"$f":"SUMIFS(Sheet1!S71_AdjustmentBudAmnt,Sheet1!S71_SA34Code,$AC:$AC,Sheet1!S71_A5CapexCode,$AD:$AD)","v":0},{"$f":"SUMIFS(Sheet1!S71_AdjustmentBudAmnt,Sheet1!S71_SA34Code,$AC:$AC,Sheet1!S71_A5CapexCode,$AD:$AD)","v":0},{"$f":"SUMIFS(Sheet1!S71_ASBudgetAmount,Sheet1!S71_SA34Code,$AC:$AC,Sheet1!S71_A5CapexCode,$AD:$AD)","v":0},{"$f":"SUMIFS(Sheet1!S71_OY1BudgetAmount,Sheet1!S71_SA34Code,$AC:$AC,Sheet1!S71_A5CapexCode,$AD:$AD)","v":0},{"$f":"SUMIFS(Sheet1!S71_OY2BudgetAmount,Sheet1!S71_SA34Code,$AC:$AC,Sheet1!S71_A5CapexCode,$AD:$AD)","v":0}]
[""]
["Total Capital Expenditure on renewal of existing assets ",1,{"$f":"C6+C74+C103+C110+C118+C136+C139+C149+C152+C155+C158+C161+C164+C167","v":2832033},{"$f":"D6+D74+D103+D110+D118+D136+D139+D149+D152+D155+D158+D161+D164+D167","v":1762420},1762420,0,0,0,0,0,0]
[]
["Renewal of Existing Assets as % of total capex",null,{"$f":"IF(ISERROR(C175/'A9-Asset'!C110),0,(C175/'A9-Asset'!C110))","v":1.9539563418795088E-2},{"$f":"IF(ISERROR(D175/'A9-Asset'!D110),0,(D175/'A9-Asset'!D110))","v":1.5763592303747739E-2},{"$f":"IF(ISERROR(E175/'A9-Asset'!E110),0,(E175/'A9-Asset'!E110))","v":1.5332917500235245E-2},{"$f":"IF(ISERROR(F175/'A9-Asset'!F110),0,(F175/'A9-Asset'!F110))","v":0},{"$f":"IF(ISERROR(G175/'A9-Asset'!G110),0,(G175/'A9-Asset'!G110))","v":0},{"$f":"IF(ISERROR(H175/'A9-Asset'!H110),0,(H175/'A9-Asset'!H110))","v":0},{"$f":"IF(ISERROR(I175/'A9-Asset'!I110),0,(I175/'A9-Asset'!I110))","v":0},{"$f":"IF(ISERROR(J175/'A9-Asset'!J110),0,(J175/'A9-Asset'!J110))","v":0},{"$f":"IF(ISERROR(K175/'A9-Asset'!K110),0,(K175/'A9-Asset'!K110))","v":0}]
["Renewal of Existing Assets as % of deprecn\"",null,{"$f":"IF(ISERROR(C175/'A9-Asset'!C183),0,(C175/'A9-Asset'!C183))","v":3.3234160483849001E-2},{"$f":"IF(ISERROR(D175/'A9-Asset'!D183),0,(D175/'A9-Asset'!D183))","v":1.9416403773151424E-2},{"$f":"IF(ISERROR(E175/'A9-Asset'!E183),0,(E175/'A9-Asset'!E183))","v":1.8305768044245944E-2},{"$f":"IF(ISERROR(F175/'A9-Asset'!F183),0,(F175/'A9-Asset'!F183))","v":0},{"$f":"IF(ISERROR(G175/'A9-Asset'!G183),0,(G175/'A9-Asset'!G183))","v":0},{"$f":"IF(ISERROR(H175/'A9-Asset'!H183),0,(H175/'A9-Asset'!H183))","v":0},{"$f":"IF(ISERROR(I175/'A9-Asset'!I183),0,(I175/'A9-Asset'!I183))","v":0},{"$f":"IF(ISERROR(J175/'A9-Asset'!J183),0,(J175/'A9-Asset'!J183))","v":0},{"$f":"IF(ISERROR(K175/'A9-Asset'!K183),0,(K175/'A9-Asset'!K183))","v":0}]
[{"$f":"head27a","v":"References"}]
["1. Total Capital Expenditure  on renewal of existing assets (SA34b) plus Total Capital Expenditure on new assets (SA34a) plus Total Capital Expenditure  on upgrading of existing assets (SA34e) must reconcile to total capital expenditure in Budgeted Capital Expenditure"]

{"sheet":"SA34c","index":81,"n_rows":180,"n_cols":30,"rows_kept":180,"cut":false,"hidden":false,"merged":[[1,5,1,7],[1,8,1,10]]}
[{"$f":"muni&\" - \"&TableA34c","v":"LIM331 Greater Giyani - Supporting Table SA34c Repairs and maintenance expenditure by asset class"}]
[{"$f":"desc","v":"Description"},{"$f":"head27","v":"Ref"},{"$f":"head1b","v":"2019/20"},{"$f":"head1A","v":"2020/21"},{"$f":"Head1","v":"2021/22"},{"$f":"Head2","v":"Current Year 2022/23"},null,null,{"$f":"Head3","v":"2023/24 Medium Term Revenue & Expenditure Framework"}]
["R thousand",1,{"$f":"Head5","v":"Audited Outcome"},{"$f":"Head5","v":"Audited Outcome"},{"$f":"Head5","v":"Audited Outcome"},{"$f":"Head6","v":"Original Budget"},{"$f":"Head7","v":"Adjusted Budget"},{"$f":"Head8","v":"Full Year Forecast"},{"$f":"Head9","v":"Budget Year 2023/24"},{"$f":"Head10","v":"Budget Year +1 2024/25"},{"$f":"Head11","v":"Budget Year +2 2025/26"}]
["Repairs and maintenance expenditure by Asset Class/Sub-class"]
[]
["Infrastructure",null,{"$f":"C7+C12+C16+C26+C37+C44+C52+C62+C68","v":488404},{"$f":"D7+D12+D16+D26+D37+D44+D52+D62+D68","v":1391178},13587172,38200000,54900000,54900000,47250000,50255000,51260000]
["Roads Infrastructure",null,{"$f":"SUM(C8:C11)","v":240558},1242967,13447131,38000000,54700000,54700000,47000000,50000000,51000000]
["Roads",null,{"$f":"SUMIFS(Sheet1!S71_PPPYearAmount,Sheet1!S71_SA34cCode,$AC:$AC,Sheet1!S71_RepMaintCode,$AD:$AD)","v":240558},{"$f":"SUMIFS(Sheet1!S71_PPYearAmount,Sheet1!S71_SA34cCode,$AC:$AC,Sheet1!S71_RepMaintCode,$AD:$AD)","v":545384},{"$f":"SUMIFS(Sheet1!S71_PYearAmount,Sheet1!S71_SA34cCode,$AC:$AC,Sheet1!S71_RepMaintCode,$AD:$AD)","v":10352670},{"$f":"SUMIFS(Sheet1!S71_OriginalBudAmnt,Sheet1!S71_SA34cCode,$AC:$AC,Sheet1!S71_RepMaintCode,$AD:$AD)","v":35000000},{"$f":"SUMIFS(Sheet1!S71_AdjustmentBudAmnt,Sheet1!S71_SA34cCode,$AC:$AC,Sheet1!S71_RepMaintCode,$AD:$AD)","v":51700000},{"$f":"SUMIFS(Sheet1!S71_AdjustmentBudAmnt,Sheet1!S71_SA34cCode,$AC:$AC,Sheet1!S71_RepMaintCode,$AD:$AD)","v":51700000},{"$f":"SUMIFS(Sheet1!S71_ASBudgetAmount,Sheet1!S71_SA34cCode,$AC:$AC,Sheet1!S71_RepMaintCode,$AD:$AD)","v":41000000},{"$f":"SUMIFS(Sheet1!S71_OY1BudgetAmount,Sheet1!S71_SA34cCode,$AC:$AC,Sheet1!S71_RepMaintCode,$AD:$AD)","v":44000000},{"$f":"SUMIFS(Sheet1!S71_OY2BudgetAmount,Sheet1!S71_SA34cCode,$AC:$AC,Sheet1!S71_RepMaintCode,$AD:$AD)","v":45000000},null,null,null,null,null,null,null,null,null,null,null,null,null,null,null,null,null,"0120","RM"]
["Road Structures",null,{"$f":"SUMIFS(Sheet1!S71_PPPYearAmount,Sheet1!S71_SA34cCode,$AC:$AC,Sheet1!S71_RepMaintCode,$AD:$AD)","v":0},{"$f":"SUMIFS(Sheet1!S71_PPYearAmount,Sheet1!S71_SA34cCode,$AC:$AC,Sheet1!S71_RepMaintCode,$AD:$AD)","v":0},{"$f":"SUMIFS(Sheet1!S71_PYearAmount,Sheet1!S71_SA34cCode,$AC:$AC,Sheet1!S71_RepMaintCode,$AD:$AD)","v":0},{"$f":"SUMIFS(Sheet1!S71_OriginalBudAmnt,Sheet1!S71_SA34cCode,$AC:$AC,Sheet1!S71_RepMaintCode,$AD:$AD)","v":0},{"$f":"SUMIFS(Sheet1!S71_AdjustmentBudAmnt,Sheet1!S71_SA34cCode,$AC:$AC,Sheet1!S71_RepMaintCode,$AD:$AD)","v":0},{"$f":"SUMIFS(Sheet1!S71_AdjustmentBudAmnt,Sheet1!S71_SA34cCode,$AC:$AC,Sheet1!S71_RepMaintCode,$AD:$AD)","v":0},{"$f":"SUMIFS(Sheet1!S71_ASBudgetAmount,Sheet1!S71_SA34cCode,$AC:$AC,Sheet1!S71_RepMaintCode,$AD:$AD)","v":0},{"$f":"SUMIFS(Sheet1!S71_OY1BudgetAmount,Sheet1!S71_SA34cCode,$AC:$AC,Sheet1!S71_RepMaintCode,$AD:$AD)","v":0},{"$f":"SUMIFS(Sheet1!S71_OY2BudgetAmount,Sheet1!S71_SA34cCode,$AC:$AC,Sheet1!S71_RepMaintCode,$AD:$AD)","v":0},null,null,null,null,null,null,null,null,null,null,null,null,null,null,null,null,null,"0130","RM"]
["Road Furniture",null,{"$f":"SUMIFS(Sheet1!S71_PPPYearAmount,Sheet1!S71_SA34cCode,$AC:$AC,Sheet1!S71_RepMaintCode,$AD:$AD)","v":0},{"$f":"SUMIFS(Sheet1!S71_PPYearAmount,Sheet1!S71_SA34cCode,$AC:$AC,Sheet1!S71_RepMaintCode,$AD:$AD)","v":697583},{"$f":"SUMIFS(Sheet1!S71_PYearAmount,Sheet1!S71_SA34cCode,$AC:$AC,Sheet1!S71_RepMaintCode,$AD:$AD)","v":3094461},{"$f":"SUMIFS(Sheet1!S71_OriginalBudAmnt,Sheet1!S71_SA34cCode,$AC:$AC,Sheet1!S71_RepMaintCode,$AD:$AD)","v":3000000},{"$f":"SUMIFS(Sheet1!S71_AdjustmentBudAmnt,Sheet1!S71_SA34cCode,$AC:$AC,Sheet1!S71_RepMaintCode,$AD:$AD)","v":3000000},{"$f":"SUMIFS(Sheet1!S71_AdjustmentBudAmnt,Sheet1!S71_SA34cCode,$AC:$AC,Sheet1!S71_RepMaintCode,$AD:$AD)","v":3000000},{"$f":"SUMIFS(Sheet1!S71_ASBudgetAmount,Sheet1!S71_SA34cCode,$AC:$AC,Sheet1!S71_RepMaintCode,$AD:$AD)","v":6000000},{"$f":"SUMIFS(Sheet1!S71_OY1BudgetAmount,Sheet1!S71_SA34cCode,$AC:$AC,Sheet1!S71_RepMaintCode,$AD:$AD)","v":6000000},{"$f":"SUMIFS(Sheet1!S71_OY2BudgetAmount,Sheet1!S71_SA34cCode,$AC:$AC,Sheet1!S71_RepMaintCode,$AD:$AD)","v":6000000},null,null,null,null,null,null,null,null,null,null,null,null,null,null,null,null,null,"0140","RM"]
["Capital Spares",null,{"$f":"SUMIFS(Sheet1!S71_PPPYearAmount,Sheet1!S71_SA34cCode,$AC:$AC,Sheet1!S71_RepMaintCode,$AD:$AD)","v":0},{"$f":"SUMIFS(Sheet1!S71_PPYearAmount,Sheet1!S71_SA34cCode,$AC:$AC,Sheet1!S71_RepMaintCode,$AD:$AD)","v":0},{"$f":"SUMIFS(Sheet1!S71_PYearAmount,Sheet1!S71_SA34cCode,$AC:$AC,Sheet1!S71_RepMaintCode,$AD:$AD)","v":0},{"$f":"SUMIFS(Sheet1!S71_OriginalBudAmnt,Sheet1!S71_SA34cCode,$AC:$AC,Sheet1!S71_RepMaintCode,$AD:$AD)","v":0},{"$f":"SUMIFS(Sheet1!S71_AdjustmentBudAmnt,Sheet1!S71_SA34cCode,$AC:$AC,Sheet1!S71_RepMaintCode,$AD:$AD)","v":0},{"$f":"SUMIFS(Sheet1!S71_AdjustmentBudAmnt,Sheet1!S71_SA34cCode,$AC:$AC,Sheet1!S71_RepMaintCode,$AD:$AD)","v":0},{"$f":"SUMIFS(Sheet1!S71_ASBudgetAmount,Sheet1!S71_SA34cCode,$AC:$AC,Sheet1!S71_RepMaintCode,$AD:$AD)","v":0},{"$f":"SUMIFS(Sheet1!S71_OY1BudgetAmount,Sheet1!S71_SA34cCode,$AC:$AC,Sheet1!S71_RepMaintCode,$AD:$AD)","v":0},{"$f":"SUMIFS(Sheet1!S71_OY2BudgetAmount,Sheet1!S71_SA34cCode,$AC:$AC,Sheet1!S71_RepMaintCode,$AD:$AD)","v":0},null,null,null,null,null,null,null,null,null,null,null,null,null,null,null,null,null,"0150","RM"]
["Storm water Infrastructure",null,{"$f":"SUM(C13:C15)","v":0},{"$f":"SUM(D13:D15)","v":0},0,0,0,0,0,0,0,null,null,null,null,null,null,null,null,null,null,null,null,null,null,null,null,null,null,"RM"]
["Drainage Collection",null,{"$f":"SUMIFS(Sheet1!S71_PPPYearAmount,Sheet1!S71_SA34cCode,$AC:$AC,Sheet1!S71_RepMaintCode,$AD:$AD)","v":0},{"$f":"SUMIFS(Sheet1!S71_PPYearAmount,Sheet1!S71_SA34cCode,$AC:$AC,Sheet1!S71_RepMaintCode,$AD:$AD)","v":0},{"$f":"SUMIFS(Sheet1!S71_PYearAmount,Sheet1!S71_SA34cCode,$AC:$AC,Sheet1!S71_RepMaintCode,$AD:$AD)","v":0},{"$f":"SUMIFS(Sheet1!S71_OriginalBudAmnt,Sheet1!S71_SA34cCode,$AC:$AC,Sheet1!S71_RepMaintCode,$AD:$AD)","v":0},{"$f":"SUMIFS(Sheet1!S71_AdjustmentBudAmnt,Sheet1!S71_SA34cCode,$AC:$AC,Sheet1!S71_RepMaintCode,$AD:$AD)","v":0},{"$f":"SUMIFS(Sheet1!S71_AdjustmentBudAmnt,Sheet1!S71_SA34cCode,$AC:$AC,Sheet1!S71_RepMaintCode,$AD:$AD)","v":0},{"$f":"SUMIFS(Sheet1!S71_ASBudgetAmount,Sheet1!S71_SA34cCode,$AC:$AC,Sheet1!S71_RepMaintCode,$AD:$AD)","v":0},{"$f":"SUMIFS(Sheet1!S71_OY1BudgetAmount,Sheet1!S71_SA34cCode,$AC:$AC,Sheet1!S71_RepMaintCode,$AD:$AD)","v":0},{"$f":"SUMIFS(Sheet1!S71_OY2BudgetAmount,Sheet1!S71_SA34cCode,$AC:$AC,Sheet1!S71_RepMaintCode,$AD:$AD)","v":0},null,null,null,null,null,null,null,null,null,null,null,null,null,null,null,null,null,"0170","RM"]
["Storm water Conveyance",null,{"$f":"SUMIFS(Sheet1!S71_PPPYearAmount,Sheet1!S71_SA34cCode,$AC:$AC,Sheet1!S71_RepMaintCode,$AD:$AD)","v":0},{"$f":"SUMIFS(Sheet1!S71_PPYearAmount,Sheet1!S71_SA34cCode,$AC:$AC,Sheet1!S71_RepMaintCode,$AD:$AD)","v":0},{"$f":"SUMIFS(Sheet1!S71_PYearAmount,Sheet1!S71_SA34cCode,$AC:$AC,Sheet1!S71_RepMaintCode,$AD:$AD)","v":0},{"$f":"SUMIFS(Sheet1!S71_OriginalBudAmnt,Sheet1!S71_SA34cCode,$AC:$AC,Sheet1!S71_RepMaintCode,$AD:$AD)","v":0},{"$f":"SUMIFS(Sheet1!S71_AdjustmentBudAmnt,Sheet1!S71_SA34cCode,$AC:$AC,Sheet1!S71_RepMaintCode,$AD:$AD)","v":0},{"$f":"SUMIFS(Sheet1!S71_AdjustmentBudAmnt,Sheet1!S71_SA34cCode,$AC:$AC,Sheet1!S71_RepMaintCode,$AD:$AD)","v":0},{"$f":"SUMIFS(Sheet1!S71_ASBudgetAmount,Sheet1!S71_SA34cCode,$AC:$AC,Sheet1!S71_RepMaintCode,$AD:$AD)","v":0},{"$f":"SUMIFS(Sheet1!S71_OY1BudgetAmount,Sheet1!S71_SA34cCode,$AC:$AC,Sheet1!S71_RepMaintCode,$AD:$AD)","v":0},{"$f":"SUMIFS(Sheet1!S71_OY2BudgetAmount,Sheet1!S71_SA34cCode,$AC:$AC,Sheet1!S71_RepMaintCode,$AD:$AD)","v":0},null,null,null,null,null,null,null,null,null,null,null,null,null,null,null,null,null,"0180","RM"]
["Attenuation",null,{"$f":"SUMIFS(Sheet1!S71_PPPYearAmount,Sheet1!S71_SA34cCode,$AC:$AC,Sheet1!S71_RepMaintCode,$AD:$AD)","v":0},{"$f":"SUMIFS(Sheet1!S71_PPYearAmount,Sheet1!S71_SA34cCode,$AC:$AC,Sheet1!S71_RepMaintCode,$AD:$AD)","v":0},{"$f":"SUMIFS(Sheet1!S71_PYearAmount,Sheet1!S71_SA34cCode,$AC:$AC,Sheet1!S71_RepMaintCode,$AD:$AD)","v":0},{"$f":"SUMIFS(Sheet1!S71_OriginalBudAmnt,Sheet1!S71_SA34cCode,$AC:$AC,Sheet1!S71_RepMaintCode,$AD:$AD)","v":0},{"$f":"SUMIFS(Sheet1!S71_AdjustmentBudAmnt,Sheet1!S71_SA34cCode,$AC:$AC,Sheet1!S71_RepMaintCode,$AD:$AD)","v":0},{"$f":"SUMIFS(Sheet1!S71_AdjustmentBudAmnt,Sheet1!S71_SA34cCode,$AC:$AC,Sheet1!S71_RepMaintCode,$AD:$AD)","v":0},{"$f":"SUMIFS(Sheet1!S71_ASBudgetAmount,Sheet1!S71_SA34cCode,$AC:$AC,Sheet1!S71_RepMaintCode,$AD:$AD)","v":0},{"$f":"SUMIFS(Sheet1!S71_OY1BudgetAmount,Sheet1!S71_SA34cCode,$AC:$AC,Sheet1!S71_RepMaintCode,$AD:$AD)","v":0},{"$f":"SUMIFS(Sheet1!S71_OY2BudgetAmount,Sheet1!S71_SA34cCode,$AC:$AC,Sheet1!S71_RepMaintCode,$AD:$AD)","v":0},null,null,null,null,null,null,null,null,null,null,null,null,null,null,null,null,null,"0190","RM"]
["Electrical Infrastructure",null,{"$f":"SUM(C17:C25)","v":0},0,0,0,0,0,0,0,0,null,null,null,null,null,null,null,null,null,null,null,null,null,null,null,null,null,null,"RM"]
["Power Plants",null,{"$f":"SUMIFS(Sheet1!S71_PPPYearAmount,Sheet1!S71_SA34cCode,$AC:$AC,Sheet1!S71_RepMaintCode,$AD:$AD)","v":0},{"$f":"SUMIFS(Sheet1!S71_PPYearAmount,Sheet1!S71_SA34cCode,$AC:$AC,Sheet1!S71_RepMaintCode,$AD:$AD)","v":0},{"$f":"SUMIFS(Sheet1!S71_PYearAmount,Sheet1!S71_SA34cCode,$AC:$AC,Sheet1!S71_RepMaintCode,$AD:$AD)","v":0},{"$f":"SUMIFS(Sheet1!S71_OriginalBudAmnt,Sheet1!S71_SA34cCode,$AC:$AC,Sheet1!S71_RepMaintCode,$AD:$AD)","v":0},{"$f":"SUMIFS(Sheet1!S71_AdjustmentBudAmnt,Sheet1!S71_SA34cCode,$AC:$AC,Sheet1!S71_RepMaintCode,$AD:$AD)","v":0},{"$f":"SUMIFS(Sheet1!S71_AdjustmentBudAmnt,Sheet1!S71_SA34cCode,$AC:$AC,Sheet1!S71_RepMaintCode,$AD:$AD)","v":0},{"$f":"SUMIFS(Sheet1!S71_ASBudgetAmount,Sheet1!S71_SA34cCode,$AC:$AC,Sheet1!S71_RepMaintCode,$AD:$AD)","v":0},{"$f":"SUMIFS(Sheet1!S71_OY1BudgetAmount,Sheet1!S71_SA34cCode,$AC:$AC,Sheet1!S71_RepMaintCode,$AD:$AD)","v":0},{"$f":"SUMIFS(Sheet1!S71_OY2BudgetAmount,Sheet1!S71_SA34cCode,$AC:$AC,Sheet1!S71_RepMaintCode,$AD:$AD)","v":0},null,null,null,null,null,null,null,null,null,null,null,null,null,null,null,null,null,"0210","RM"]
["HV Substations",null,{"$f":"SUMIFS(Sheet1!S71_PPPYearAmount,Sheet1!S71_SA34cCode,$AC:$AC,Sheet1!S71_RepMaintCode,$AD:$AD)","v":0},{"$f":"SUMIFS(Sheet1!S71_PPYearAmount,Sheet1!S71_SA34cCode,$AC:$AC,Sheet1!S71_RepMaintCode,$AD:$AD)","v":0},{"$f":"SUMIFS(Sheet1!S71_PYearAmount,Sheet1!S71_SA34cCode,$AC:$AC,Sheet1!S71_RepMaintCode,$AD:$AD)","v":0},{"$f":"SUMIFS(Sheet1!S71_OriginalBudAmnt,Sheet1!S71_SA34cCode,$AC:$AC,Sheet1!S71_RepMaintCode,$AD:$AD)","v":0},{"$f":"SUMIFS(Sheet1!S71_AdjustmentBudAmnt,Sheet1!S71_SA34cCode,$AC:$AC,Sheet1!S71_RepMaintCode,$AD:$AD)","v":0},{"$f":"SUMIFS(Sheet1!S71_AdjustmentBudAmnt,Sheet1!S71_SA34cCode,$AC:$AC,Sheet1!S71_RepMaintCode,$AD:$AD)","v":0},{"$f":"SUMIFS(Sheet1!S71_ASBudgetAmount,Sheet1!S71_SA34cCode,$AC:$AC,Sheet1!S71_RepMaintCode,$AD:$AD)","v":0},{"$f":"SUMIFS(Sheet1!S71_OY1BudgetAmount,Sheet1!S71_SA34cCode,$AC:$AC,Sheet1!S71_RepMaintCode,$AD:$AD)","v":0},{"$f":"SUMIFS(Sheet1!S71_OY2BudgetAmount,Sheet1!S71_SA34cCode,$AC:$AC,Sheet1!S71_RepMaintCode,$AD:$AD)","v":0},null,null,null,null,null,null,null,null,null,null,null,null,null,null,null,null,null,"0220","RM"]
["HV Switching Station",null,{"$f":"SUMIFS(Sheet1!S71_PPPYearAmount,Sheet1!S71_SA34cCode,$AC:$AC,Sheet1!S71_RepMaintCode,$AD:$AD)","v":0},{"$f":"SUMIFS(Sheet1!S71_PPYearAmount,Sheet1!S71_SA34cCode,$AC:$AC,Sheet1!S71_RepMaintCode,$AD:$AD)","v":0},{"$f":"SUMIFS(Sheet1!S71_PYearAmount,Sheet1!S71_SA34cCode,$AC:$AC,Sheet1!S71_RepMaintCode,$AD:$AD)","v":0},{"$f":"SUMIFS(Sheet1!S71_OriginalBudAmnt,Sheet1!S71_SA34cCode,$AC:$AC,Sheet1!S71_RepMaintCode,$AD:$AD)","v":0},{"$f":"SUMIFS(Sheet1!S71_AdjustmentBudAmnt,Sheet1!S71_SA34cCode,$AC:$AC,Sheet1!S71_RepMaintCode,$AD:$AD)","v":0},{"$f":"SUMIFS(Sheet1!S71_AdjustmentBudAmnt,Sheet1!S71_SA34cCode,$AC:$AC,Sheet1!S71_RepMaintCode,$AD:$AD)","v":0},{"$f":"SUMIFS(Sheet1!S71_ASBudgetAmount,Sheet1!S71_SA34cCode,$AC:$AC,Sheet1!S71_RepMaintCode,$AD:$AD)","v":0},{"$f":"SUMIFS(Sheet1!S71_OY1BudgetAmount,Sheet1!S71_SA34cCode,$AC:$AC,Sheet1!S71_RepMaintCode,$AD:$AD)","v":0},{"$f":"SUMIFS(Sheet1!S71_OY2BudgetAmount,Sheet1!S71_SA34cCode,$AC:$AC,Sheet1!S71_RepMaintCode,$AD:$AD)","v":0},null,null,null,null,null,null,null,null,null,null,null,null,null,null,null,null,null,"0230","RM"]
["HV Transmission Conductors",null,{"$f":"SUMIFS(Sheet1!S71_PPPYearAmount,Sheet1!S71_SA34cCode,$AC:$AC,Sheet1!S71_RepMaintCode,$AD:$AD)","v":0},{"$f":"SUMIFS(Sheet1!S71_PPYearAmount,Sheet1!S71_SA34cCode,$AC:$AC,Sheet1!S71_RepMaintCode,$AD:$AD)","v":0},{"$f":"SUMIFS(Sheet1!S71_PYearAmount,Sheet1!S71_SA34cCode,$AC:$AC,Sheet1!S71_RepMaintCode,$AD:$AD)","v":0},{"$f":"SUMIFS(Sheet1!S71_OriginalBudAmnt,Sheet1!S71_SA34cCode,$AC:$AC,Sheet1!S71_RepMaintCode,$AD:$AD)","v":0},{"$f":"SUMIFS(Sheet1!S71_AdjustmentBudAmnt,Sheet1!S71_SA34cCode,$AC:$AC,Sheet1!S71_RepMaintCode,$AD:$AD)","v":0},{"$f":"SUMIFS(Sheet1!S71_AdjustmentBudAmnt,Sheet1!S71_SA34cCode,$AC:$AC,Sheet1!S71_RepMaintCode,$AD:$AD)","v":0},{"$f":"SUMIFS(Sheet1!S71_ASBudgetAmount,Sheet1!S71_SA34cCode,$AC:$AC,Sheet1!S71_RepMaintCode,$AD:$AD)","v":0},{"$f":"SUMIFS(Sheet1!S71_OY1BudgetAmount,Sheet1!S71_SA34cCode,$AC:$AC,Sheet1!S71_RepMaintCode,$AD:$AD)","v":0},{"$f":"SUMIFS(Sheet1!S71_OY2BudgetAmount,Sheet1!S71_SA34cCode,$AC:$AC,Sheet1!S71_RepMaintCode,$AD:$AD)","v":0},null,null,null,null,null,null,null,null,null,null,null,null,null,null,null,null,null,"0240","RM"]
["MV Substations",null,{"$f":"SUMIFS(Sheet1!S71_PPPYearAmount,Sheet1!S71_SA34cCode,$AC:$AC,Sheet1!S71_RepMaintCode,$AD:$AD)","v":0},{"$f":"SUMIFS(Sheet1!S71_PPYearAmount,Sheet1!S71_SA34cCode,$AC:$AC,Sheet1!S71_RepMaintCode,$AD:$AD)","v":0},{"$f":"SUMIFS(Sheet1!S71_PYearAmount,Sheet1!S71_SA34cCode,$AC:$AC,Sheet1!S71_RepMaintCode,$AD:$AD)","v":0},{"$f":"SUMIFS(Sheet1!S71_OriginalBudAmnt,Sheet1!S71_SA34cCode,$AC:$AC,Sheet1!S71_RepMaintCode,$AD:$AD)","v":0},{"$f":"SUMIFS(Sheet1!S71_AdjustmentBudAmnt,Sheet1!S71_SA34cCode,$AC:$AC,Sheet1!S71_RepMaintCode,$AD:$AD)","v":0},{"$f":"SUMIFS(Sheet1!S71_AdjustmentBudAmnt,Sheet1!S71_SA34cCode,$AC:$AC,Sheet1!S71_RepMaintCode,$AD:$AD)","v":0},{"$f":"SUMIFS(Sheet1!S71_ASBudgetAmount,Sheet1!S71_SA34cCode,$AC:$AC,Sheet1!S71_RepMaintCode,$AD:$AD)","v":0},{"$f":"SUMIFS(Sheet1!S71_OY1BudgetAmount,Sheet1!S71_SA34cCode,$AC:$AC,Sheet1!S71_RepMaintCode,$AD:$AD)","v":0},{"$f":"SUMIFS(Sheet1!S71_OY2BudgetAmount,Sheet1!S71_SA34cCode,$AC:$AC,Sheet1!S71_RepMaintCode,$AD:$AD)","v":0},null,null,null,null,null,null,null,null,null,null,null,null,null,null,null,null,null,"0250","RM"]
["MV Switching Stations",null,{"$f":"SUMIFS(Sheet1!S71_PPPYearAmount,Sheet1!S71_SA34cCode,$AC:$AC,Sheet1!S71_RepMaintCode,$AD:$AD)","v":0},{"$f":"SUMIFS(Sheet1!S71_PPYearAmount,Sheet1!S71_SA34cCode,$AC:$AC,Sheet1!S71_RepMaintCode,$AD:$AD)","v":0},{"$f":"SUMIFS(Sheet1!S71_PYearAmount,Sheet1!S71_SA34cCode,$AC:$AC,Sheet1!S71_RepMaintCode,$AD:$AD)","v":0},{"$f":"SUMIFS(Sheet1!S71_OriginalBudAmnt,Sheet1!S71_SA34cCode,$AC:$AC,Sheet1!S71_RepMaintCode,$AD:$AD)","v":0},{"$f":"SUMIFS(Sheet1!S71_AdjustmentBudAmnt,Sheet1!S71_SA34cCode,$AC:$AC,Sheet1!S71_RepMaintCode,$AD:$AD)","v":0},{"$f":"SUMIFS(Sheet1!S71_AdjustmentBudAmnt,Sheet1!S71_SA34cCode,$AC:$AC,Sheet1!S71_RepMaintCode,$AD:$AD)","v":0},{"$f":"SUMIFS(Sheet1!S71_ASBudgetAmount,Sheet1!S71_SA34cCode,$AC:$AC,Sheet1!S71_RepMaintCode,$AD:$AD)","v":0},{"$f":"SUMIFS(Sheet1!S71_OY1BudgetAmount,Sheet1!S71_SA34cCode,$AC:$AC,Sheet1!S71_RepMaintCode,$AD:$AD)","v":0},{"$f":"SUMIFS(Sheet1!S71_OY2BudgetAmount,Sheet1!S71_SA34cCode,$AC:$AC,Sheet1!S71_RepMaintCode,$AD:$AD)","v":0},null,null,null,null,null,null,null,null,null,null,null,null,null,null,null,null,null,"0260","RM"]
["MV Networks",null,{"$f":"SUMIFS(Sheet1!S71_PPPYearAmount,Sheet1!S71_SA34cCode,$AC:$AC,Sheet1!S71_RepMaintCode,$AD:$AD)","v":0},{"$f":"SUMIFS(Sheet1!S71_PPYearAmount,Sheet1!S71_SA34cCode,$AC:$AC,Sheet1!S71_RepMaintCode,$AD:$AD)","v":0},{"$f":"SUMIFS(Sheet1!S71_PYearAmount,Sheet1!S71_SA34cCode,$AC:$AC,Sheet1!S71_RepMaintCode,$AD:$AD)","v":0},{"$f":"SUMIFS(Sheet1!S71_OriginalBudAmnt,Sheet1!S71_SA34cCode,$AC:$AC,Sheet1!S71_RepMaintCode,$AD:$AD)","v":0},{"$f":"SUMIFS(Sheet1!S71_AdjustmentBudAmnt,Sheet1!S71_SA34cCode,$AC:$AC,Sheet1!S71_RepMaintCode,$AD:$AD)","v":0},{"$f":"SUMIFS(Sheet1!S71_AdjustmentBudAmnt,Sheet1!S71_SA34cCode,$AC:$AC,Sheet1!S71_RepMaintCode,$AD:$AD)","v":0},{"$f":"SUMIFS(Sheet1!S71_ASBudgetAmount,Sheet1!S71_SA34cCode,$AC:$AC,Sheet1!S71_RepMaintCode,$AD:$AD)","v":0},{"$f":"SUMIFS(Sheet1!S71_OY1BudgetAmount,Sheet1!S71_SA34cCode,$AC:$AC,Sheet1!S71_RepMaintCode,$AD:$AD)","v":0},{"$f":"SUMIFS(Sheet1!S71_OY2BudgetAmount,Sheet1!S71_SA34cCode,$AC:$AC,Sheet1!S71_RepMaintCode,$AD:$AD)","v":0},null,null,null,null,null,null,null,null,null,null,null,null,null,null,null,null,null,"0270","RM"]
["LV Networks",null,{"$f":"SUMIFS(Sheet1!S71_PPPYearAmount,Sheet1!S71_SA34cCode,$AC:$AC,Sheet1!S71_RepMaintCode,$AD:$AD)","v":0},{"$f":"SUMIFS(Sheet1!S71_PPYearAmount,Sheet1!S71_SA34cCode,$AC:$AC,Sheet1!S71_RepMaintCode,$AD:$AD)","v":0},{"$f":"SUMIFS(Sheet1!S71_PYearAmount,Sheet1!S71_SA34cCode,$AC:$AC,Sheet1!S71_RepMaintCode,$AD:$AD)","v":0},{"$f":"SUMIFS(Sheet1!S71_OriginalBudAmnt,Sheet1!S71_SA34cCode,$AC:$AC,Sheet1!S71_RepMaintCode,$AD:$AD)","v":0},{"$f":"SUMIFS(Sheet1!S71_AdjustmentBudAmnt,Sheet1!S71_SA34cCode,$AC:$AC,Sheet1!S71_RepMaintCode,$AD:$AD)","v":0},{"$f":"SUMIFS(Sheet1!S71_AdjustmentBudAmnt,Sheet1!S71_SA34cCode,$AC:$AC,Sheet1!S71_RepMaintCode,$AD:$AD)","v":0},{"$f":"SUMIFS(Sheet1!S71_ASBudgetAmount,Sheet1!S71_SA34cCode,$AC:$AC,Sheet1!S71_RepMaintCode,$AD:$AD)","v":0},{"$f":"SUMIFS(Sheet1!S71_OY1BudgetAmount,Sheet1!S71_SA34cCode,$AC:$AC,Sheet1!S71_RepMaintCode,$AD:$AD)","v":0},{"$f":"SUMIFS(Sheet1!S71_OY2BudgetAmount,Sheet1!S71_SA34cCode,$AC:$AC,Sheet1!S71_RepMaintCode,$AD:$AD)","v":0},null,null,null,null,null,null,null,null,null,null,null,null,null,null,null,null,null,"0280","RM"]
["Capital Spares",null,{"$f":"SUMIFS(Sheet1!S71_PPPYearAmount,Sheet1!S71_SA34cCode,$AC:$AC,Sheet1!S71_RepMaintCode,$AD:$AD)","v":0},{"$f":"SUMIFS(Sheet1!S71_PPYearAmount,Sheet1!S71_SA34cCode,$AC:$AC,Sheet1!S71_RepMaintCode,$AD:$AD)","v":0},{"$f":"SUMIFS(Sheet1!S71_PYearAmount,Sheet1!S71_SA34cCode,$AC:$AC,Sheet1!S71_RepMaintCode,$AD:$AD)","v":0},{"$f":"SUMIFS(Sheet1!S71_OriginalBudAmnt,Sheet1!S71_SA34cCode,$AC:$AC,Sheet1!S71_RepMaintCode,$AD:$AD)","v":0},{"$f":"SUMIFS(Sheet1!S71_AdjustmentBudAmnt,Sheet1!S71_SA34cCode,$AC:$AC,Sheet1!S71_RepMaintCode,$AD:$AD)","v":0},{"$f":"SUMIFS(Sheet1!S71_AdjustmentBudAmnt,Sheet1!S71_SA34cCode,$AC:$AC,Sheet1!S71_RepMaintCode,$AD:$AD)","v":0},{"$f":"SUMIFS(Sheet1!S71_ASBudgetAmount,Sheet1!S71_SA34cCode,$AC:$AC,Sheet1!S71_RepMaintCode,$AD:$AD)","v":0},{"$f":"SUMIFS(Sheet1!S71_OY1BudgetAmount,Sheet1!S71_SA34cCode,$AC:$AC,Sheet1!S71_RepMaintCode,$AD:$AD)","v":0},{"$f":"SUMIFS(Sheet1!S71_OY2BudgetAmount,Sheet1!S71_SA34cCode,$AC:$AC,Sheet1!S71_RepMaintCode,$AD:$AD)","v":0},null,null,null,null,null,null,null,null,null,null,null,null,null,null,null,null,null,"0290","RM"]
["Water Supply Infrastructure",null,{"$f":"SUM(C27:C36)","v":0},{"$f":"SUM(D27:D36)","v":0},0,0,0,0,0,0,0,null,null,null,null,null,null,null,null,null,null,null,null,null,null,null,null,null,null,"RM"]
["Dams and Weirs",null,{"$f":"SUMIFS(Sheet1!S71_PPPYearAmount,Sheet1!S71_SA34cCode,$AC:$AC,Sheet1!S71_RepMaintCode,$AD:$AD)","v":0},{"$f":"SUMIFS(Sheet1!S71_PPYearAmount,Sheet1!S71_SA34cCode,$AC:$AC,Sheet1!S71_RepMaintCode,$AD:$AD)","v":0},{"$f":"SUMIFS(Sheet1!S71_PYearAmount,Sheet1!S71_SA34cCode,$AC:$AC,Sheet1!S71_RepMaintCode,$AD:$AD)","v":0},{"$f":"SUMIFS(Sheet1!S71_OriginalBudAmnt,Sheet1!S71_SA34cCode,$AC:$AC,Sheet1!S71_RepMaintCode,$AD:$AD)","v":0},{"$f":"SUMIFS(Sheet1!S71_AdjustmentBudAmnt,Sheet1!S71_SA34cCode,$AC:$AC,Sheet1!S71_RepMaintCode,$AD:$AD)","v":0},{"$f":"SUMIFS(Sheet1!S71_AdjustmentBudAmnt,Sheet1!S71_SA34cCode,$AC:$AC,Sheet1!S71_RepMaintCode,$AD:$AD)","v":0},{"$f":"SUMIFS(Sheet1!S71_ASBudgetAmount,Sheet1!S71_SA34cCode,$AC:$AC,Sheet1!S71_RepMaintCode,$AD:$AD)","v":0},{"$f":"SUMIFS(Sheet1!S71_OY1BudgetAmount,Sheet1!S71_SA34cCode,$AC:$AC,Sheet1!S71_RepMaintCode,$AD:$AD)","v":0},{"$f":"SUMIFS(Sheet1!S71_OY2BudgetAmount,Sheet1!S71_SA34cCode,$AC:$AC,Sheet1!S71_RepMaintCode,$AD:$AD)","v":0},null,null,null,null,null,null,null,null,null,null,null,null,null,null,null,null,null,"0310","RM"]
["Boreholes",null,{"$f":"SUMIFS(Sheet1!S71_PPPYearAmount,Sheet1!S71_SA34cCode,$AC:$AC,Sheet1!S71_RepMaintCode,$AD:$AD)","v":0},{"$f":"SUMIFS(Sheet1!S71_PPYearAmount,Sheet1!S71_SA34cCode,$AC:$AC,Sheet1!S71_RepMaintCode,$AD:$AD)","v":0},{"$f":"SUMIFS(Sheet1!S71_PYearAmount,Sheet1!S71_SA34cCode,$AC:$AC,Sheet1!S71_RepMaintCode,$AD:$AD)","v":0},{"$f":"SUMIFS(Sheet1!S71_OriginalBudAmnt,Sheet1!S71_SA34cCode,$AC:$AC,Sheet1!S71_RepMaintCode,$AD:$AD)","v":0},{"$f":"SUMIFS(Sheet1!S71_AdjustmentBudAmnt,Sheet1!S71_SA34cCode,$AC:$AC,Sheet1!S71_RepMaintCode,$AD:$AD)","v":0},{"$f":"SUMIFS(Sheet1!S71_AdjustmentBudAmnt,Sheet1!S71_SA34cCode,$AC:$AC,Sheet1!S71_RepMaintCode,$AD:$AD)","v":0},{"$f":"SUMIFS(Sheet1!S71_ASBudgetAmount,Sheet1!S71_SA34cCode,$AC:$AC,Sheet1!S71_RepMaintCode,$AD:$AD)","v":0},{"$f":"SUMIFS(Sheet1!S71_OY1BudgetAmount,Sheet1!S71_SA34cCode,$AC:$AC,Sheet1!S71_RepMaintCode,$AD:$AD)","v":0},{"$f":"SUMIFS(Sheet1!S71_OY2BudgetAmount,Sheet1!S71_SA34cCode,$AC:$AC,Sheet1!S71_RepMaintCode,$AD:$AD)","v":0},null,null,null,null,null,null,null,null,null,null,null,null,null,null,null,null,null,"0320","RM"]
["Reservoirs",null,{"$f":"SUMIFS(Sheet1!S71_PPPYearAmount,Sheet1!S71_SA34cCode,$AC:$AC,Sheet1!S71_RepMaintCode,$AD:$AD)","v":0},{"$f":"SUMIFS(Sheet1!S71_PPYearAmount,Sheet1!S71_SA34cCode,$AC:$AC,Sheet1!S71_RepMaintCode,$AD:$AD)","v":0},{"$f":"SUMIFS(Sheet1!S71_PYearAmount,Sheet1!S71_SA34cCode,$AC:$AC,Sheet1!S71_RepMaintCode,$AD:$AD)","v":0},{"$f":"SUMIFS(Sheet1!S71_OriginalBudAmnt,Sheet1!S71_SA34cCode,$AC:$AC,Sheet1!S71_RepMaintCode,$AD:$AD)","v":0},{"$f":"SUMIFS(Sheet1!S71_AdjustmentBudAmnt,Sheet1!S71_SA34cCode,$AC:$AC,Sheet1!S71_RepMaintCode,$AD:$AD)","v":0},{"$f":"SUMIFS(Sheet1!S71_AdjustmentBudAmnt,Sheet1!S71_SA34cCode,$AC:$AC,Sheet1!S71_RepMaintCode,$AD:$AD)","v":0},{"$f":"SUMIFS(Sheet1!S71_ASBudgetAmount,Sheet1!S71_SA34cCode,$AC:$AC,Sheet1!S71_RepMaintCode,$AD:$AD)","v":0},{"$f":"SUMIFS(Sheet1!S71_OY1BudgetAmount,Sheet1!S71_SA34cCode,$AC:$AC,Sheet1!S71_RepMaintCode,$AD:$AD)","v":0},{"$f":"SUMIFS(Sheet1!S71_OY2BudgetAmount,Sheet1!S71_SA34cCode,$AC:$AC,Sheet1!S71_RepMaintCode,$AD:$AD)","v":0},null,null,null,null,null,null,null,null,null,null,null,null,null,null,null,null,null,"0330","RM"]
["Pump Stations",null,{"$f":"SUMIFS(Sheet1!S71_PPPYearAmount,Sheet1!S71_SA34cCode,$AC:$AC,Sheet1!S71_RepMaintCode,$AD:$AD)","v":0},{"$f":"SUMIFS(Sheet1!S71_PPYearAmount,Sheet1!S71_SA34cCode,$AC:$AC,Sheet1!S71_RepMaintCode,$AD:$AD)","v":0},{"$f":"SUMIFS(Sheet1!S71_PYearAmount,Sheet1!S71_SA34cCode,$AC:$AC,Sheet1!S71_RepMaintCode,$AD:$AD)","v":0},{"$f":"SUMIFS(Sheet1!S71_OriginalBudAmnt,Sheet1!S71_SA34cCode,$AC:$AC,Sheet1!S71_RepMaintCode,$AD:$AD)","v":0},{"$f":"SUMIFS(Sheet1!S71_AdjustmentBudAmnt,Sheet1!S71_SA34cCode,$AC:$AC,Sheet1!S71_RepMaintCode,$AD:$AD)","v":0},{"$f":"SUMIFS(Sheet1!S71_AdjustmentBudAmnt,Sheet1!S71_SA34cCode,$AC:$AC,Sheet1!S71_RepMaintCode,$AD:$AD)","v":0},{"$f":"SUMIFS(Sheet1!S71_ASBudgetAmount,Sheet1!S71_SA34cCode,$AC:$AC,Sheet1!S71_RepMaintCode,$AD:$AD)","v":0},{"$f":"SUMIFS(Sheet1!S71_OY1BudgetAmount,Sheet1!S71_SA34cCode,$AC:$AC,Sheet1!S71_RepMaintCode,$AD:$AD)","v":0},{"$f":"SUMIFS(Sheet1!S71_OY2BudgetAmount,Sheet1!S71_SA34cCode,$AC:$AC,Sheet1!S71_RepMaintCode,$AD:$AD)","v":0},null,null,null,null,null,null,null,null,null,null,null,null,null,null,null,null,null,"0340","RM"]
["Water Treatment Works",null,{"$f":"SUMIFS(Sheet1!S71_PPPYearAmount,Sheet1!S71_SA34cCode,$AC:$AC,Sheet1!S71_RepMaintCode,$AD:$AD)","v":0},{"$f":"SUMIFS(Sheet1!S71_PPYearAmount,Sheet1!S71_SA34cCode,$AC:$AC,Sheet1!S71_RepMaintCode,$AD:$AD)","v":0},{"$f":"SUMIFS(Sheet1!S71_PYearAmount,Sheet1!S71_SA34cCode,$AC:$AC,Sheet1!S71_RepMaintCode,$AD:$AD)","v":0},{"$f":"SUMIFS(Sheet1!S71_OriginalBudAmnt,Sheet1!S71_SA34cCode,$AC:$AC,Sheet1!S71_RepMaintCode,$AD:$AD)","v":0},{"$f":"SUMIFS(Sheet1!S71_AdjustmentBudAmnt,Sheet1!S71_SA34cCode,$AC:$AC,Sheet1!S71_RepMaintCode,$AD:$AD)","v":0},{"$f":"SUMIFS(Sheet1!S71_AdjustmentBudAmnt,Sheet1!S71_SA34cCode,$AC:$AC,Sheet1!S71_RepMaintCode,$AD:$AD)","v":0},{"$f":"SUMIFS(Sheet1!S71_ASBudgetAmount,Sheet1!S71_SA34cCode,$AC:$AC,Sheet1!S71_RepMaintCode,$AD:$AD)","v":0},{"$f":"SUMIFS(Sheet1!S71_OY1BudgetAmount,Sheet1!S71_SA34cCode,$AC:$AC,Sheet1!S71_RepMaintCode,$AD:$AD)","v":0},{"$f":"SUMIFS(Sheet1!S71_OY2BudgetAmount,Sheet1!S71_SA34cCode,$AC:$AC,Sheet1!S71_RepMaintCode,$AD:$AD)","v":0},null,null,null,null,null,null,null,null,null,null,null,null,null,null,null,null,null,"0350","RM"]
["Bulk Mains",null,{"$f":"SUMIFS(Sheet1!S71_PPPYearAmount,Sheet1!S71_SA34cCode,$AC:$AC,Sheet1!S71_RepMaintCode,$AD:$AD)","v":0},{"$f":"SUMIFS(Sheet1!S71_PPYearAmount,Sheet1!S71_SA34cCode,$AC:$AC,Sheet1!S71_RepMaintCode,$AD:$AD)","v":0},{"$f":"SUMIFS(Sheet1!S71_PYearAmount,Sheet1!S71_SA34cCode,$AC:$AC,Sheet1!S71_RepMaintCode,$AD:$AD)","v":0},{"$f":"SUMIFS(Sheet1!S71_OriginalBudAmnt,Sheet1!S71_SA34cCode,$AC:$AC,Sheet1!S71_RepMaintCode,$AD:$AD)","v":0},{"$f":"SUMIFS(Sheet1!S71_AdjustmentBudAmnt,Sheet1!S71_SA34cCode,$AC:$AC,Sheet1!S71_RepMaintCode,$AD:$AD)","v":0},{"$f":"SUMIFS(Sheet1!S71_AdjustmentBudAmnt,Sheet1!S71_SA34cCode,$AC:$AC,Sheet1!S71_RepMaintCode,$AD:$AD)","v":0},{"$f":"SUMIFS(Sheet1!S71_ASBudgetAmount,Sheet1!S71_SA34cCode,$AC:$AC,Sheet1!S71_RepMaintCode,$AD:$AD)","v":0},{"$f":"SUMIFS(Sheet1!S71_OY1BudgetAmount,Sheet1!S71_SA34cCode,$AC:$AC,Sheet1!S71_RepMaintCode,$AD:$AD)","v":0},{"$f":"SUMIFS(Sheet1!S71_OY2BudgetAmount,Sheet1!S71_SA34cCode,$AC:$AC,Sheet1!S71_RepMaintCode,$AD:$AD)","v":0},null,null,null,null,null,null,null,null,null,null,null,null,null,null,null,null,null,"0360","RM"]
["Distribution",null,{"$f":"SUMIFS(Sheet1!S71_PPPYearAmount,Sheet1!S71_SA34cCode,$AC:$AC,Sheet1!S71_RepMaintCode,$AD:$AD)","v":0},{"$f":"SUMIFS(Sheet1!S71_PPYearAmount,Sheet1!S71_SA34cCode,$AC:$AC,Sheet1!S71_RepMaintCode,$AD:$AD)","v":0},{"$f":"SUMIFS(Sheet1!S71_PYearAmount,Sheet1!S71_SA34cCode,$AC:$AC,Sheet1!S71_RepMaintCode,$AD:$AD)","v":0},{"$f":"SUMIFS(Sheet1!S71_OriginalBudAmnt,Sheet1!S71_SA34cCode,$AC:$AC,Sheet1!S71_RepMaintCode,$AD:$AD)","v":0},{"$f":"SUMIFS(Sheet1!S71_AdjustmentBudAmnt,Sheet1!S71_SA34cCode,$AC:$AC,Sheet1!S71_RepMaintCode,$AD:$AD)","v":0},{"$f":"SUMIFS(Sheet1!S71_AdjustmentBudAmnt,Sheet1!S71_SA34cCode,$AC:$AC,Sheet1!S71_RepMaintCode,$AD:$AD)","v":0},{"$f":"SUMIFS(Sheet1!S71_ASBudgetAmount,Sheet1!S71_SA34cCode,$AC:$AC,Sheet1!S71_RepMaintCode,$AD:$AD)","v":0},{"$f":"SUMIFS(Sheet1!S71_OY1BudgetAmount,Sheet1!S71_SA34cCode,$AC:$AC,Sheet1!S71_RepMaintCode,$AD:$AD)","v":0},{"$f":"SUMIFS(Sheet1!S71_OY2BudgetAmount,Sheet1!S71_SA34cCode,$AC:$AC,Sheet1!S71_RepMaintCode,$AD:$AD)","v":0},null,null,null,null,null,null,null,null,null,null,null,null,null,null,null,null,null,"0370","RM"]
["Distribution Points",null,{"$f":"SUMIFS(Sheet1!S71_PPPYearAmount,Sheet1!S71_SA34cCode,$AC:$AC,Sheet1!S71_RepMaintCode,$AD:$AD)","v":0},{"$f":"SUMIFS(Sheet1!S71_PPYearAmount,Sheet1!S71_SA34cCode,$AC:$AC,Sheet1!S71_RepMaintCode,$AD:$AD)","v":0},{"$f":"SUMIFS(Sheet1!S71_PYearAmount,Sheet1!S71_SA34cCode,$AC:$AC,Sheet1!S71_RepMaintCode,$AD:$AD)","v":0},{"$f":"SUMIFS(Sheet1!S71_OriginalBudAmnt,Sheet1!S71_SA34cCode,$AC:$AC,Sheet1!S71_RepMaintCode,$AD:$AD)","v":0},{"$f":"SUMIFS(Sheet1!S71_AdjustmentBudAmnt,Sheet1!S71_SA34cCode,$AC:$AC,Sheet1!S71_RepMaintCode,$AD:$AD)","v":0},{"$f":"SUMIFS(Sheet1!S71_AdjustmentBudAmnt,Sheet1!S71_SA34cCode,$AC:$AC,Sheet1!S71_RepMaintCode,$AD:$AD)","v":0},{"$f":"SUMIFS(Sheet1!S71_ASBudgetAmount,Sheet1!S71_SA34cCode,$AC:$AC,Sheet1!S71_RepMaintCode,$AD:$AD)","v":0},{"$f":"SUMIFS(Sheet1!S71_OY1BudgetAmount,Sheet1!S71_SA34cCode,$AC:$AC,Sheet1!S71_RepMaintCode,$AD:$AD)","v":0},{"$f":"SUMIFS(Sheet1!S71_OY2BudgetAmount,Sheet1!S71_SA34cCode,$AC:$AC,Sheet1!S71_RepMaintCode,$AD:$AD)","v":0},null,null,null,null,null,null,null,null,null,null,null,null,null,null,null,null,null,"0380","RM"]
["PRV Stations",null,{"$f":"SUMIFS(Sheet1!S71_PPPYearAmount,Sheet1!S71_SA34cCode,$AC:$AC,Sheet1!S71_RepMaintCode,$AD:$AD)","v":0},{"$f":"SUMIFS(Sheet1!S71_PPYearAmount,Sheet1!S71_SA34cCode,$AC:$AC,Sheet1!S71_RepMaintCode,$AD:$AD)","v":0},{"$f":"SUMIFS(Sheet1!S71_PYearAmount,Sheet1!S71_SA34cCode,$AC:$AC,Sheet1!S71_RepMaintCode,$AD:$AD)","v":0},{"$f":"SUMIFS(Sheet1!S71_OriginalBudAmnt,Sheet1!S71_SA34cCode,$AC:$AC,Sheet1!S71_RepMaintCode,$AD:$AD)","v":0},{"$f":"SUMIFS(Sheet1!S71_AdjustmentBudAmnt,Sheet1!S71_SA34cCode,$AC:$AC,Sheet1!S71_RepMaintCode,$AD:$AD)","v":0},{"$f":"SUMIFS(Sheet1!S71_AdjustmentBudAmnt,Sheet1!S71_SA34cCode,$AC:$AC,Sheet1!S71_RepMaintCode,$AD:$AD)","v":0},{"$f":"SUMIFS(Sheet1!S71_ASBudgetAmount,Sheet1!S71_SA34cCode,$AC:$AC,Sheet1!S71_RepMaintCode,$AD:$AD)","v":0},{"$f":"SUMIFS(Sheet1!S71_OY1BudgetAmount,Sheet1!S71_SA34cCode,$AC:$AC,Sheet1!S71_RepMaintCode,$AD:$AD)","v":0},{"$f":"SUMIFS(Sheet1!S71_OY2BudgetAmount,Sheet1!S71_SA34cCode,$AC:$AC,Sheet1!S71_RepMaintCode,$AD:$AD)","v":0},null,null,null,null,null,null,null,null,null,null,null,null,null,null,null,null,null,"0390","RM"]
["Capital Spares",null,{"$f":"SUMIFS(Sheet1!S71_PPPYearAmount,Sheet1!S71_SA34cCode,$AC:$AC,Sheet1!S71_RepMaintCode,$AD:$AD)","v":0},{"$f":"SUMIFS(Sheet1!S71_PPYearAmount,Sheet1!S71_SA34cCode,$AC:$AC,Sheet1!S71_RepMaintCode,$AD:$AD)","v":0},{"$f":"SUMIFS(Sheet1!S71_PYearAmount,Sheet1!S71_SA34cCode,$AC:$AC,Sheet1!S71_RepMaintCode,$AD:$AD)","v":0},{"$f":"SUMIFS(Sheet1!S71_OriginalBudAmnt,Sheet1!S71_SA34cCode,$AC:$AC,Sheet1!S71_RepMaintCode,$AD:$AD)","v":0},{"$f":"SUMIFS(Sheet1!S71_AdjustmentBudAmnt,Sheet1!S71_SA34cCode,$AC:$AC,Sheet1!S71_RepMaintCode,$AD:$AD)","v":0},{"$f":"SUMIFS(Sheet1!S71_AdjustmentBudAmnt,Sheet1!S71_SA34cCode,$AC:$AC,Sheet1!S71_RepMaintCode,$AD:$AD)","v":0},{"$f":"SUMIFS(Sheet1!S71_ASBudgetAmount,Sheet1!S71_SA34cCode,$AC:$AC,Sheet1!S71_RepMaintCode,$AD:$AD)","v":0},{"$f":"SUMIFS(Sheet1!S71_OY1BudgetAmount,Sheet1!S71_SA34cCode,$AC:$AC,Sheet1!S71_RepMaintCode,$AD:$AD)","v":0},{"$f":"SUMIFS(Sheet1!S71_OY2BudgetAmount,Sheet1!S71_SA34cCode,$AC:$AC,Sheet1!S71_RepMaintCode,$AD:$AD)","v":0},null,null,null,null,null,null,null,null,null,null,null,null,null,null,null,null,null,"0400","RM"]
["Sanitation Infrastructure",null,{"$f":"SUM(C38:C43)","v":0},{"$f":"SUM(D38:D43)","v":0},0,0,0,0,0,0,0,null,null,null,null,null,null,null,null,null,null,null,null,null,null,null,null,null,null,"RM"]
["Pump Station",null,{"$f":"SUMIFS(Sheet1!S71_PPPYearAmount,Sheet1!S71_SA34cCode,$AC:$AC,Sheet1!S71_RepMaintCode,$AD:$AD)","v":0},{"$f":"SUMIFS(Sheet1!S71_PPYearAmount,Sheet1!S71_SA34cCode,$AC:$AC,Sheet1!S71_RepMaintCode,$AD:$AD)","v":0},{"$f":"SUMIFS(Sheet1!S71_PYearAmount,Sheet1!S71_SA34cCode,$AC:$AC,Sheet1!S71_RepMaintCode,$AD:$AD)","v":0},{"$f":"SUMIFS(Sheet1!S71_OriginalBudAmnt,Sheet1!S71_SA34cCode,$AC:$AC,Sheet1!S71_RepMaintCode,$AD:$AD)","v":0},{"$f":"SUMIFS(Sheet1!S71_AdjustmentBudAmnt,Sheet1!S71_SA34cCode,$AC:$AC,Sheet1!S71_RepMaintCode,$AD:$AD)","v":0},{"$f":"SUMIFS(Sheet1!S71_AdjustmentBudAmnt,Sheet1!S71_SA34cCode,$AC:$AC,Sheet1!S71_RepMaintCode,$AD:$AD)","v":0},{"$f":"SUMIFS(Sheet1!S71_ASBudgetAmount,Sheet1!S71_SA34cCode,$AC:$AC,Sheet1!S71_RepMaintCode,$AD:$AD)","v":0},{"$f":"SUMIFS(Sheet1!S71_OY1BudgetAmount,Sheet1!S71_SA34cCode,$AC:$AC,Sheet1!S71_RepMaintCode,$AD:$AD)","v":0},{"$f":"SUMIFS(Sheet1!S71_OY2BudgetAmount,Sheet1!S71_SA34cCode,$AC:$AC,Sheet1!S71_RepMaintCode,$AD:$AD)","v":0},null,null,null,null,null,null,null,null,null,null,null,null,null,null,null,null,null,"0420","RM"]
["Reticulation",null,{"$f":"SUMIFS(Sheet1!S71_PPPYearAmount,Sheet1!S71_SA34cCode,$AC:$AC,Sheet1!S71_RepMaintCode,$AD:$AD)","v":0},{"$f":"SUMIFS(Sheet1!S71_PPYearAmount,Sheet1!S71_SA34cCode,$AC:$AC,Sheet1!S71_RepMaintCode,$AD:$AD)","v":0},{"$f":"SUMIFS(Sheet1!S71_PYearAmount,Sheet1!S71_SA34cCode,$AC:$AC,Sheet1!S71_RepMaintCode,$AD:$AD)","v":0},{"$f":"SUMIFS(Sheet1!S71_OriginalBudAmnt,Sheet1!S71_SA34cCode,$AC:$AC,Sheet1!S71_RepMaintCode,$AD:$AD)","v":0},{"$f":"SUMIFS(Sheet1!S71_AdjustmentBudAmnt,Sheet1!S71_SA34cCode,$AC:$AC,Sheet1!S71_RepMaintCode,$AD:$AD)","v":0},{"$f":"SUMIFS(Sheet1!S71_AdjustmentBudAmnt,Sheet1!S71_SA34cCode,$AC:$AC,Sheet1!S71_RepMaintCode,$AD:$AD)","v":0},{"$f":"SUMIFS(Sheet1!S71_ASBudgetAmount,Sheet1!S71_SA34cCode,$AC:$AC,Sheet1!S71_RepMaintCode,$AD:$AD)","v":0},{"$f":"SUMIFS(Sheet1!S71_OY1BudgetAmount,Sheet1!S71_SA34cCode,$AC:$AC,Sheet1!S71_RepMaintCode,$AD:$AD)","v":0},{"$f":"SUMIFS(Sheet1!S71_OY2BudgetAmount,Sheet1!S71_SA34cCode,$AC:$AC,Sheet1!S71_RepMaintCode,$AD:$AD)","v":0},null,null,null,null,null,null,null,null,null,null,null,null,null,null,null,null,null,"0430","RM"]
["Waste Water Treatment Works",null,{"$f":"SUMIFS(Sheet1!S71_PPPYearAmount,Sheet1!S71_SA34cCode,$AC:$AC,Sheet1!S71_RepMaintCode,$AD:$AD)","v":0},{"$f":"SUMIFS(Sheet1!S71_PPYearAmount,Sheet1!S71_SA34cCode,$AC:$AC,Sheet1!S71_RepMaintCode,$AD:$AD)","v":0},{"$f":"SUMIFS(Sheet1!S71_PYearAmount,Sheet1!S71_SA34cCode,$AC:$AC,Sheet1!S71_RepMaintCode,$AD:$AD)","v":0},{"$f":"SUMIFS(Sheet1!S71_OriginalBudAmnt,Sheet1!S71_SA34cCode,$AC:$AC,Sheet1!S71_RepMaintCode,$AD:$AD)","v":0},{"$f":"SUMIFS(Sheet1!S71_AdjustmentBudAmnt,Sheet1!S71_SA34cCode,$AC:$AC,Sheet1!S71_RepMaintCode,$AD:$AD)","v":0},{"$f":"SUMIFS(Sheet1!S71_AdjustmentBudAmnt,Sheet1!S71_SA34cCode,$AC:$AC,Sheet1!S71_RepMaintCode,$AD:$AD)","v":0},{"$f":"SUMIFS(Sheet1!S71_ASBudgetAmount,Sheet1!S71_SA34cCode,$AC:$AC,Sheet1!S71_RepMaintCode,$AD:$AD)","v":0},{"$f":"SUMIFS(Sheet1!S71_OY1BudgetAmount,Sheet1!S71_SA34cCode,$AC:$AC,Sheet1!S71_RepMaintCode,$AD:$AD)","v":0},{"$f":"SUMIFS(Sheet1!S71_OY2BudgetAmount,Sheet1!S71_SA34cCode,$AC:$AC,Sheet1!S71_RepMaintCode,$AD:$AD)","v":0},null,null,null,null,null,null,null,null,null,null,null,null,null,null,null,null,null,"0440","RM"]
["Outfall Sewers",null,{"$f":"SUMIFS(Sheet1!S71_PPPYearAmount,Sheet1!S71_SA34cCode,$AC:$AC,Sheet1!S71_RepMaintCode,$AD:$AD)","v":0},{"$f":"SUMIFS(Sheet1!S71_PPYearAmount,Sheet1!S71_SA34cCode,$AC:$AC,Sheet1!S71_RepMaintCode,$AD:$AD)","v":0},{"$f":"SUMIFS(Sheet1!S71_PYearAmount,Sheet1!S71_SA34cCode,$AC:$AC,Sheet1!S71_RepMaintCode,$AD:$AD)","v":0},{"$f":"SUMIFS(Sheet1!S71_OriginalBudAmnt,Sheet1!S71_SA34cCode,$AC:$AC,Sheet1!S71_RepMaintCode,$AD:$AD)","v":0},{"$f":"SUMIFS(Sheet1!S71_AdjustmentBudAmnt,Sheet1!S71_SA34cCode,$AC:$AC,Sheet1!S71_RepMaintCode,$AD:$AD)","v":0},{"$f":"SUMIFS(Sheet1!S71_AdjustmentBudAmnt,Sheet1!S71_SA34cCode,$AC:$AC,Sheet1!S71_RepMaintCode,$AD:$AD)","v":0},{"$f":"SUMIFS(Sheet1!S71_ASBudgetAmount,Sheet1!S71_SA34cCode,$AC:$AC,Sheet1!S71_RepMaintCode,$AD:$AD)","v":0},{"$f":"SUMIFS(Sheet1!S71_OY1BudgetAmount,Sheet1!S71_SA34cCode,$AC:$AC,Sheet1!S71_RepMaintCode,$AD:$AD)","v":0},{"$f":"SUMIFS(Sheet1!S71_OY2BudgetAmount,Sheet1!S71_SA34cCode,$AC:$AC,Sheet1!S71_RepMaintCode,$AD:$AD)","v":0},null,null,null,null,null,null,null,null,null,null,null,null,null,null,null,null,null,"0450","RM"]
["Toilet Facilities",null,{"$f":"SUMIFS(Sheet1!S71_PPPYearAmount,Sheet1!S71_SA34cCode,$AC:$AC,Sheet1!S71_RepMaintCode,$AD:$AD)","v":0},{"$f":"SUMIFS(Sheet1!S71_PPYearAmount,Sheet1!S71_SA34cCode,$AC:$AC,Sheet1!S71_RepMaintCode,$AD:$AD)","v":0},{"$f":"SUMIFS(Sheet1!S71_PYearAmount,Sheet1!S71_SA34cCode,$AC:$AC,Sheet1!S71_RepMaintCode,$AD:$AD)","v":0},{"$f":"SUMIFS(Sheet1!S71_OriginalBudAmnt,Sheet1!S71_SA34cCode,$AC:$AC,Sheet1!S71_RepMaintCode,$AD:$AD)","v":0},{"$f":"SUMIFS(Sheet1!S71_AdjustmentBudAmnt,Sheet1!S71_SA34cCode,$AC:$AC,Sheet1!S71_RepMaintCode,$AD:$AD)","v":0},{"$f":"SUMIFS(Sheet1!S71_AdjustmentBudAmnt,Sheet1!S71_SA34cCode,$AC:$AC,Sheet1!S71_RepMaintCode,$AD:$AD)","v":0},{"$f":"SUMIFS(Sheet1!S71_ASBudgetAmount,Sheet1!S71_SA34cCode,$AC:$AC,Sheet1!S71_RepMaintCode,$AD:$AD)","v":0},{"$f":"SUMIFS(Sheet1!S71_OY1BudgetAmount,Sheet1!S71_SA34cCode,$AC:$AC,Sheet1!S71_RepMaintCode,$AD:$AD)","v":0},{"$f":"SUMIFS(Sheet1!S71_OY2BudgetAmount,Sheet1!S71_SA34cCode,$AC:$AC,Sheet1!S71_RepMaintCode,$AD:$AD)","v":0},null,null,null,null,null,null,null,null,null,null,null,null,null,null,null,null,null,"0460","RM"]
["Capital Spares",null,{"$f":"SUMIFS(Sheet1!S71_PPPYearAmount,Sheet1!S71_SA34cCode,$AC:$AC,Sheet1!S71_RepMaintCode,$AD:$AD)","v":0},{"$f":"SUMIFS(Sheet1!S71_PPYearAmount,Sheet1!S71_SA34cCode,$AC:$AC,Sheet1!S71_RepMaintCode,$AD:$AD)","v":0},{"$f":"SUMIFS(Sheet1!S71_PYearAmount,Sheet1!S71_SA34cCode,$AC:$AC,Sheet1!S71_RepMaintCode,$AD:$AD)","v":0},{"$f":"SUMIFS(Sheet1!S71_OriginalBudAmnt,Sheet1!S71_SA34cCode,$AC:$AC,Sheet1!S71_RepMaintCode,$AD:$AD)","v":0},{"$f":"SUMIFS(Sheet1!S71_AdjustmentBudAmnt,Sheet1!S71_SA34cCode,$AC:$AC,Sheet1!S71_RepMaintCode,$AD:$AD)","v":0},{"$f":"SUMIFS(Sheet1!S71_AdjustmentBudAmnt,Sheet1!S71_SA34cCode,$AC:$AC,Sheet1!S71_RepMaintCode,$AD:$AD)","v":0},{"$f":"SUMIFS(Sheet1!S71_ASBudgetAmount,Sheet1!S71_SA34cCode,$AC:$AC,Sheet1!S71_RepMaintCode,$AD:$AD)","v":0},{"$f":"SUMIFS(Sheet1!S71_OY1BudgetAmount,Sheet1!S71_SA34cCode,$AC:$AC,Sheet1!S71_RepMaintCode,$AD:$AD)","v":0},{"$f":"SUMIFS(Sheet1!S71_OY2BudgetAmount,Sheet1!S71_SA34cCode,$AC:$AC,Sheet1!S71_RepMaintCode,$AD:$AD)","v":0},null,null,null,null,null,null,null,null,null,null,null,null,null,null,null,null,null,"0470","RM"]
["Solid Waste Infrastructure",null,{"$f":"SUM(C45:C51)","v":247846},{"$f":"SUM(D45:D51)","v":148211},140041,200000,200000,200000,250000,255000,260000,null,null,null,null,null,null,null,null,null,null,null,null,null,null,null,null,null,null,"RM"]
["Landfill Sites",null,{"$f":"SUMIFS(Sheet1!S71_PPPYearAmount,Sheet1!S71_SA34cCode,$AC:$AC,Sheet1!S71_RepMaintCode,$AD:$AD)","v":247846},{"$f":"SUMIFS(Sheet1!S71_PPYearAmount,Sheet1!S71_SA34cCode,$AC:$AC,Sheet1!S71_RepMaintCode,$AD:$AD)","v":148211},{"$f":"SUMIFS(Sheet1!S71_PYearAmount,Sheet1!S71_SA34cCode,$AC:$AC,Sheet1!S71_RepMaintCode,$AD:$AD)","v":140041},{"$f":"SUMIFS(Sheet1!S71_OriginalBudAmnt,Sheet1!S71_SA34cCode,$AC:$AC,Sheet1!S71_RepMaintCode,$AD:$AD)","v":200000},{"$f":"SUMIFS(Sheet1!S71_AdjustmentBudAmnt,Sheet1!S71_SA34cCode,$AC:$AC,Sheet1!S71_RepMaintCode,$AD:$AD)","v":200000},{"$f":"SUMIFS(Sheet1!S71_AdjustmentBudAmnt,Sheet1!S71_SA34cCode,$AC:$AC,Sheet1!S71_RepMaintCode,$AD:$AD)","v":200000},{"$f":"SUMIFS(Sheet1!S71_ASBudgetAmount,Sheet1!S71_SA34cCode,$AC:$AC,Sheet1!S71_RepMaintCode,$AD:$AD)","v":250000},{"$f":"SUMIFS(Sheet1!S71_OY1BudgetAmount,Sheet1!S71_SA34cCode,$AC:$AC,Sheet1!S71_RepMaintCode,$AD:$AD)","v":255000},{"$f":"SUMIFS(Sheet1!S71_OY2BudgetAmount,Sheet1!S71_SA34cCode,$AC:$AC,Sheet1!S71_RepMaintCode,$AD:$AD)","v":260000},null,null,null,null,null,null,null,null,null,null,null,null,null,null,null,null,null,"0490","RM"]
["Waste Transfer Stations",null,{"$f":"SUMIFS(Sheet1!S71_PPPYearAmount,Sheet1!S71_SA34cCode,$AC:$AC,Sheet1!S71_RepMaintCode,$AD:$AD)","v":0},{"$f":"SUMIFS(Sheet1!S71_PPYearAmount,Sheet1!S71_SA34cCode,$AC:$AC,Sheet1!S71_RepMaintCode,$AD:$AD)","v":0},{"$f":"SUMIFS(Sheet1!S71_PYearAmount,Sheet1!S71_SA34cCode,$AC:$AC,Sheet1!S71_RepMaintCode,$AD:$AD)","v":0},{"$f":"SUMIFS(Sheet1!S71_OriginalBudAmnt,Sheet1!S71_SA34cCode,$AC:$AC,Sheet1!S71_RepMaintCode,$AD:$AD)","v":0},{"$f":"SUMIFS(Sheet1!S71_AdjustmentBudAmnt,Sheet1!S71_SA34cCode,$AC:$AC,Sheet1!S71_RepMaintCode,$AD:$AD)","v":0},{"$f":"SUMIFS(Sheet1!S71_AdjustmentBudAmnt,Sheet1!S71_SA34cCode,$AC:$AC,Sheet1!S71_RepMaintCode,$AD:$AD)","v":0},{"$f":"SUMIFS(Sheet1!S71_ASBudgetAmount,Sheet1!S71_SA34cCode,$AC:$AC,Sheet1!S71_RepMaintCode,$AD:$AD)","v":0},{"$f":"SUMIFS(Sheet1!S71_OY1BudgetAmount,Sheet1!S71_SA34cCode,$AC:$AC,Sheet1!S71_RepMaintCode,$AD:$AD)","v":0},{"$f":"SUMIFS(Sheet1!S71_OY2BudgetAmount,Sheet1!S71_SA34cCode,$AC:$AC,Sheet1!S71_RepMaintCode,$AD:$AD)","v":0},null,null,null,null,null,null,null,null,null,null,null,null,null,null,null,null,null,"0500","RM"]
["Waste Processing Facilities",null,{"$f":"SUMIFS(Sheet1!S71_PPPYearAmount,Sheet1!S71_SA34cCode,$AC:$AC,Sheet1!S71_RepMaintCode,$AD:$AD)","v":0},{"$f":"SUMIFS(Sheet1!S71_PPYearAmount,Sheet1!S71_SA34cCode,$AC:$AC,Sheet1!S71_RepMaintCode,$AD:$AD)","v":0},{"$f":"SUMIFS(Sheet1!S71_PYearAmount,Sheet1!S71_SA34cCode,$AC:$AC,Sheet1!S71_RepMaintCode,$AD:$AD)","v":0},{"$f":"SUMIFS(Sheet1!S71_OriginalBudAmnt,Sheet1!S71_SA34cCode,$AC:$AC,Sheet1!S71_RepMaintCode,$AD:$AD)","v":0},{"$f":"SUMIFS(Sheet1!S71_AdjustmentBudAmnt,Sheet1!S71_SA34cCode,$AC:$AC,Sheet1!S71_RepMaintCode,$AD:$AD)","v":0},{"$f":"SUMIFS(Sheet1!S71_AdjustmentBudAmnt,Sheet1!S71_SA34cCode,$AC:$AC,Sheet1!S71_RepMaintCode,$AD:$AD)","v":0},{"$f":"SUMIFS(Sheet1!S71_ASBudgetAmount,Sheet1!S71_SA34cCode,$AC:$AC,Sheet1!S71_RepMaintCode,$AD:$AD)","v":0},{"$f":"SUMIFS(Sheet1!S71_OY1BudgetAmount,Sheet1!S71_SA34cCode,$AC:$AC,Sheet1!S71_RepMaintCode,$AD:$AD)","v":0},{"$f":"SUMIFS(Sheet1!S71_OY2BudgetAmount,Sheet1!S71_SA34cCode,$AC:$AC,Sheet1!S71_RepMaintCode,$AD:$AD)","v":0},null,null,null,null,null,null,null,null,null,null,null,null,null,null,null,null,null,"0510","RM"]
["Waste Drop-off Points",null,{"$f":"SUMIFS(Sheet1!S71_PPPYearAmount,Sheet1!S71_SA34cCode,$AC:$AC,Sheet1!S71_RepMaintCode,$AD:$AD)","v":0},{"$f":"SUMIFS(Sheet1!S71_PPYearAmount,Sheet1!S71_SA34cCode,$AC:$AC,Sheet1!S71_RepMaintCode,$AD:$AD)","v":0},{"$f":"SUMIFS(Sheet1!S71_PYearAmount,Sheet1!S71_SA34cCode,$AC:$AC,Sheet1!S71_RepMaintCode,$AD:$AD)","v":0},{"$f":"SUMIFS(Sheet1!S71_OriginalBudAmnt,Sheet1!S71_SA34cCode,$AC:$AC,Sheet1!S71_RepMaintCode,$AD:$AD)","v":0},{"$f":"SUMIFS(Sheet1!S71_AdjustmentBudAmnt,Sheet1!S71_SA34cCode,$AC:$AC,Sheet1!S71_RepMaintCode,$AD:$AD)","v":0},{"$f":"SUMIFS(Sheet1!S71_AdjustmentBudAmnt,Sheet1!S71_SA34cCode,$AC:$AC,Sheet1!S71_RepMaintCode,$AD:$AD)","v":0},{"$f":"SUMIFS(Sheet1!S71_ASBudgetAmount,Sheet1!S71_SA34cCode,$AC:$AC,Sheet1!S71_RepMaintCode,$AD:$AD)","v":0},{"$f":"SUMIFS(Sheet1!S71_OY1BudgetAmount,Sheet1!S71_SA34cCode,$AC:$AC,Sheet1!S71_RepMaintCode,$AD:$AD)","v":0},{"$f":"SUMIFS(Sheet1!S71_OY2BudgetAmount,Sheet1!S71_SA34cCode,$AC:$AC,Sheet1!S71_RepMaintCode,$AD:$AD)","v":0},null,null,null,null,null,null,null,null,null,null,null,null,null,null,null,null,null,"0520","RM"]
["Waste Separation Facilities",null,{"$f":"SUMIFS(Sheet1!S71_PPPYearAmount,Sheet1!S71_SA34cCode,$AC:$AC,Sheet1!S71_RepMaintCode,$AD:$AD)","v":0},{"$f":"SUMIFS(Sheet1!S71_PPYearAmount,Sheet1!S71_SA34cCode,$AC:$AC,Sheet1!S71_RepMaintCode,$AD:$AD)","v":0},{"$f":"SUMIFS(Sheet1!S71_PYearAmount,Sheet1!S71_SA34cCode,$AC:$AC,Sheet1!S71_RepMaintCode,$AD:$AD)","v":0},{"$f":"SUMIFS(Sheet1!S71_OriginalBudAmnt,Sheet1!S71_SA34cCode,$AC:$AC,Sheet1!S71_RepMaintCode,$AD:$AD)","v":0},{"$f":"SUMIFS(Sheet1!S71_AdjustmentBudAmnt,Sheet1!S71_SA34cCode,$AC:$AC,Sheet1!S71_RepMaintCode,$AD:$AD)","v":0},{"$f":"SUMIFS(Sheet1!S71_AdjustmentBudAmnt,Sheet1!S71_SA34cCode,$AC:$AC,Sheet1!S71_RepMaintCode,$AD:$AD)","v":0},{"$f":"SUMIFS(Sheet1!S71_ASBudgetAmount,Sheet1!S71_SA34cCode,$AC:$AC,Sheet1!S71_RepMaintCode,$AD:$AD)","v":0},{"$f":"SUMIFS(Sheet1!S71_OY1BudgetAmount,Sheet1!S71_SA34cCode,$AC:$AC,Sheet1!S71_RepMaintCode,$AD:$AD)","v":0},{"$f":"SUMIFS(Sheet1!S71_OY2BudgetAmount,Sheet1!S71_SA34cCode,$AC:$AC,Sheet1!S71_RepMaintCode,$AD:$AD)","v":0},null,null,null,null,null,null,null,null,null,null,null,null,null,null,null,null,null,"0530","RM"]
["Electricity Generation Facilities",null,{"$f":"SUMIFS(Sheet1!S71_PPPYearAmount,Sheet1!S71_SA34cCode,$AC:$AC,Sheet1!S71_RepMaintCode,$AD:$AD)","v":0},{"$f":"SUMIFS(Sheet1!S71_PPYearAmount,Sheet1!S71_SA34cCode,$AC:$AC,Sheet1!S71_RepMaintCode,$AD:$AD)","v":0},{"$f":"SUMIFS(Sheet1!S71_PYearAmount,Sheet1!S71_SA34cCode,$AC:$AC,Sheet1!S71_RepMaintCode,$AD:$AD)","v":0},{"$f":"SUMIFS(Sheet1!S71_OriginalBudAmnt,Sheet1!S71_SA34cCode,$AC:$AC,Sheet1!S71_RepMaintCode,$AD:$AD)","v":0},{"$f":"SUMIFS(Sheet1!S71_AdjustmentBudAmnt,Sheet1!S71_SA34cCode,$AC:$AC,Sheet1!S71_RepMaintCode,$AD:$AD)","v":0},{"$f":"SUMIFS(Sheet1!S71_AdjustmentBudAmnt,Sheet1!S71_SA34cCode,$AC:$AC,Sheet1!S71_RepMaintCode,$AD:$AD)","v":0},{"$f":"SUMIFS(Sheet1!S71_ASBudgetAmount,Sheet1!S71_SA34cCode,$AC:$AC,Sheet1!S71_RepMaintCode,$AD:$AD)","v":0},{"$f":"SUMIFS(Sheet1!S71_OY1BudgetAmount,Sheet1!S71_SA34cCode,$AC:$AC,Sheet1!S71_RepMaintCode,$AD:$AD)","v":0},{"$f":"SUMIFS(Sheet1!S71_OY2BudgetAmount,Sheet1!S71_SA34cCode,$AC:$AC,Sheet1!S71_RepMaintCode,$AD:$AD)","v":0},null,null,null,null,null,null,null,null,null,null,null,null,null,null,null,null,null,"0540","RM"]
["Capital Spares",null,{"$f":"SUMIFS(Sheet1!S71_PPPYearAmount,Sheet1!S71_SA34cCode,$AC:$AC,Sheet1!S71_RepMaintCode,$AD:$AD)","v":0},{"$f":"SUMIFS(Sheet1!S71_PPYearAmount,Sheet1!S71_SA34cCode,$AC:$AC,Sheet1!S71_RepMaintCode,$AD:$AD)","v":0},{"$f":"SUMIFS(Sheet1!S71_PYearAmount,Sheet1!S71_SA34cCode,$AC:$AC,Sheet1!S71_RepMaintCode,$AD:$AD)","v":0},{"$f":"SUMIFS(Sheet1!S71_OriginalBudAmnt,Sheet1!S71_SA34cCode,$AC:$AC,Sheet1!S71_RepMaintCode,$AD:$AD)","v":0},{"$f":"SUMIFS(Sheet1!S71_AdjustmentBudAmnt,Sheet1!S71_SA34cCode,$AC:$AC,Sheet1!S71_RepMaintCode,$AD:$AD)","v":0},{"$f":"SUMIFS(Sheet1!S71_AdjustmentBudAmnt,Sheet1!S71_SA34cCode,$AC:$AC,Sheet1!S71_RepMaintCode,$AD:$AD)","v":0},{"$f":"SUMIFS(Sheet1!S71_ASBudgetAmount,Sheet1!S71_SA34cCode,$AC:$AC,Sheet1!S71_RepMaintCode,$AD:$AD)","v":0},{"$f":"SUMIFS(Sheet1!S71_OY1BudgetAmount,Sheet1!S71_SA34cCode,$AC:$AC,Sheet1!S71_RepMaintCode,$AD:$AD)","v":0},{"$f":"SUMIFS(Sheet1!S71_OY2BudgetAmount,Sheet1!S71_SA34cCode,$AC:$AC,Sheet1!S71_RepMaintCode,$AD:$AD)","v":0},null,null,null,null,null,null,null,null,null,null,null,null,null,null,null,null,null,"0550","RM"]
["Rail Infrastructure",null,{"$f":"SUM(C53:C61)","v":0},0,0,0,0,0,0,0,0,null,null,null,null,null,null,null,null,null,null,null,null,null,null,null,null,null,null,"RM"]
["Rail Lines",null,{"$f":"SUMIFS(Sheet1!S71_PPPYearAmount,Sheet1!S71_SA34cCode,$AC:$AC,Sheet1!S71_RepMaintCode,$AD:$AD)","v":0},{"$f":"SUMIFS(Sheet1!S71_PPYearAmount,Sheet1!S71_SA34cCode,$AC:$AC,Sheet1!S71_RepMaintCode,$AD:$AD)","v":0},{"$f":"SUMIFS(Sheet1!S71_PYearAmount,Sheet1!S71_SA34cCode,$AC:$AC,Sheet1!S71_RepMaintCode,$AD:$AD)","v":0},{"$f":"SUMIFS(Sheet1!S71_OriginalBudAmnt,Sheet1!S71_SA34cCode,$AC:$AC,Sheet1!S71_RepMaintCode,$AD:$AD)","v":0},{"$f":"SUMIFS(Sheet1!S71_AdjustmentBudAmnt,Sheet1!S71_SA34cCode,$AC:$AC,Sheet1!S71_RepMaintCode,$AD:$AD)","v":0},{"$f":"SUMIFS(Sheet1!S71_AdjustmentBudAmnt,Sheet1!S71_SA34cCode,$AC:$AC,Sheet1!S71_RepMaintCode,$AD:$AD)","v":0},{"$f":"SUMIFS(Sheet1!S71_ASBudgetAmount,Sheet1!S71_SA34cCode,$AC:$AC,Sheet1!S71_RepMaintCode,$AD:$AD)","v":0},{"$f":"SUMIFS(Sheet1!S71_OY1BudgetAmount,Sheet1!S71_SA34cCode,$AC:$AC,Sheet1!S71_RepMaintCode,$AD:$AD)","v":0},{"$f":"SUMIFS(Sheet1!S71_OY2BudgetAmount,Sheet1!S71_SA34cCode,$AC:$AC,Sheet1!S71_RepMaintCode,$AD:$AD)","v":0},null,null,null,null,null,null,null,null,null,null,null,null,null,null,null,null,null,"0570","RM"]
["Rail Structures",null,{"$f":"SUMIFS(Sheet1!S71_PPPYearAmount,Sheet1!S71_SA34cCode,$AC:$AC,Sheet1!S71_RepMaintCode,$AD:$AD)","v":0},{"$f":"SUMIFS(Sheet1!S71_PPYearAmount,Sheet1!S71_SA34cCode,$AC:$AC,Sheet1!S71_RepMaintCode,$AD:$AD)","v":0},{"$f":"SUMIFS(Sheet1!S71_PYearAmount,Sheet1!S71_SA34cCode,$AC:$AC,Sheet1!S71_RepMaintCode,$AD:$AD)","v":0},{"$f":"SUMIFS(Sheet1!S71_OriginalBudAmnt,Sheet1!S71_SA34cCode,$AC:$AC,Sheet1!S71_RepMaintCode,$AD:$AD)","v":0},{"$f":"SUMIFS(Sheet1!S71_AdjustmentBudAmnt,Sheet1!S71_SA34cCode,$AC:$AC,Sheet1!S71_RepMaintCode,$AD:$AD)","v":0},{"$f":"SUMIFS(Sheet1!S71_AdjustmentBudAmnt,Sheet1!S71_SA34cCode,$AC:$AC,Sheet1!S71_RepMaintCode,$AD:$AD)","v":0},{"$f":"SUMIFS(Sheet1!S71_ASBudgetAmount,Sheet1!S71_SA34cCode,$AC:$AC,Sheet1!S71_RepMaintCode,$AD:$AD)","v":0},{"$f":"SUMIFS(Sheet1!S71_OY1BudgetAmount,Sheet1!S71_SA34cCode,$AC:$AC,Sheet1!S71_RepMaintCode,$AD:$AD)","v":0},{"$f":"SUMIFS(Sheet1!S71_OY2BudgetAmount,Sheet1!S71_SA34cCode,$AC:$AC,Sheet1!S71_RepMaintCode,$AD:$AD)","v":0},null,null,null,null,null,null,null,null,null,null,null,null,null,null,null,null,null,"0580","RM"]
["Rail Furniture",null,{"$f":"SUMIFS(Sheet1!S71_PPPYearAmount,Sheet1!S71_SA34cCode,$AC:$AC,Sheet1!S71_RepMaintCode,$AD:$AD)","v":0},{"$f":"SUMIFS(Sheet1!S71_PPYearAmount,Sheet1!S71_SA34cCode,$AC:$AC,Sheet1!S71_RepMaintCode,$AD:$AD)","v":0},{"$f":"SUMIFS(Sheet1!S71_PYearAmount,Sheet1!S71_SA34cCode,$AC:$AC,Sheet1!S71_RepMaintCode,$AD:$AD)","v":0},{"$f":"SUMIFS(Sheet1!S71_OriginalBudAmnt,Sheet1!S71_SA34cCode,$AC:$AC,Sheet1!S71_RepMaintCode,$AD:$AD)","v":0},{"$f":"SUMIFS(Sheet1!S71_AdjustmentBudAmnt,Sheet1!S71_SA34cCode,$AC:$AC,Sheet1!S71_RepMaintCode,$AD:$AD)","v":0},{"$f":"SUMIFS(Sheet1!S71_AdjustmentBudAmnt,Sheet1!S71_SA34cCode,$AC:$AC,Sheet1!S71_RepMaintCode,$AD:$AD)","v":0},{"$f":"SUMIFS(Sheet1!S71_ASBudgetAmount,Sheet1!S71_SA34cCode,$AC:$AC,Sheet1!S71_RepMaintCode,$AD:$AD)","v":0},{"$f":"SUMIFS(Sheet1!S71_OY1BudgetAmount,Sheet1!S71_SA34cCode,$AC:$AC,Sheet1!S71_RepMaintCode,$AD:$AD)","v":0},{"$f":"SUMIFS(Sheet1!S71_OY2BudgetAmount,Sheet1!S71_SA34cCode,$AC:$AC,Sheet1!S71_RepMaintCode,$AD:$AD)","v":0},null,null,null,null,null,null,null,null,null,null,null,null,null,null,null,null,null,"0590","RM"]
["Drainage Collection",null,{"$f":"SUMIFS(Sheet1!S71_PPPYearAmount,Sheet1!S71_SA34cCode,$AC:$AC,Sheet1!S71_RepMaintCode,$AD:$AD)","v":0},{"$f":"SUMIFS(Sheet1!S71_PPYearAmount,Sheet1!S71_SA34cCode,$AC:$AC,Sheet1!S71_RepMaintCode,$AD:$AD)","v":0},{"$f":"SUMIFS(Sheet1!S71_PYearAmount,Sheet1!S71_SA34cCode,$AC:$AC,Sheet1!S71_RepMaintCode,$AD:$AD)","v":0},{"$f":"SUMIFS(Sheet1!S71_OriginalBudAmnt,Sheet1!S71_SA34cCode,$AC:$AC,Sheet1!S71_RepMaintCode,$AD:$AD)","v":0},{"$f":"SUMIFS(Sheet1!S71_AdjustmentBudAmnt,Sheet1!S71_SA34cCode,$AC:$AC,Sheet1!S71_RepMaintCode,$AD:$AD)","v":0},{"$f":"SUMIFS(Sheet1!S71_AdjustmentBudAmnt,Sheet1!S71_SA34cCode,$AC:$AC,Sheet1!S71_RepMaintCode,$AD:$AD)","v":0},{"$f":"SUMIFS(Sheet1!S71_ASBudgetAmount,Sheet1!S71_SA34cCode,$AC:$AC,Sheet1!S71_RepMaintCode,$AD:$AD)","v":0},{"$f":"SUMIFS(Sheet1!S71_OY1BudgetAmount,Sheet1!S71_SA34cCode,$AC:$AC,Sheet1!S71_RepMaintCode,$AD:$AD)","v":0},{"$f":"SUMIFS(Sheet1!S71_OY2BudgetAmount,Sheet1!S71_SA34cCode,$AC:$AC,Sheet1!S71_RepMaintCode,$AD:$AD)","v":0},null,null,null,null,null,null,null,null,null,null,null,null,null,null,null,null,null,"0600","RM"]
["Storm water Conveyance",null,{"$f":"SUMIFS(Sheet1!S71_PPPYearAmount,Sheet1!S71_SA34cCode,$AC:$AC,Sheet1!S71_RepMaintCode,$AD:$AD)","v":0},{"$f":"SUMIFS(Sheet1!S71_PPYearAmount,Sheet1!S71_SA34cCode,$AC:$AC,Sheet1!S71_RepMaintCode,$AD:$AD)","v":0},{"$f":"SUMIFS(Sheet1!S71_PYearAmount,Sheet1!S71_SA34cCode,$AC:$AC,Sheet1!S71_RepMaintCode,$AD:$AD)","v":0},{"$f":"SUMIFS(Sheet1!S71_OriginalBudAmnt,Sheet1!S71_SA34cCode,$AC:$AC,Sheet1!S71_RepMaintCode,$AD:$AD)","v":0},{"$f":"SUMIFS(Sheet1!S71_AdjustmentBudAmnt,Sheet1!S71_SA34cCode,$AC:$AC,Sheet1!S71_RepMaintCode,$AD:$AD)","v":0},{"$f":"SUMIFS(Sheet1!S71_AdjustmentBudAmnt,Sheet1!S71_SA34cCode,$AC:$AC,Sheet1!S71_RepMaintCode,$AD:$AD)","v":0},{"$f":"SUMIFS(Sheet1!S71_ASBudgetAmount,Sheet1!S71_SA34cCode,$AC:$AC,Sheet1!S71_RepMaintCode,$AD:$AD)","v":0},{"$f":"SUMIFS(Sheet1!S71_OY1BudgetAmount,Sheet1!S71_SA34cCode,$AC:$AC,Sheet1!S71_RepMaintCode,$AD:$AD)","v":0},{"$f":"SUMIFS(Sheet1!S71_OY2BudgetAmount,Sheet1!S71_SA34cCode,$AC:$AC,Sheet1!S71_RepMaintCode,$AD:$AD)","v":0},null,null,null,null,null,null,null,null,null,null,null,null,null,null,null,null,null,"0610","RM"]
["Attenuation",null,{"$f":"SUMIFS(Sheet1!S71_PPPYearAmount,Sheet1!S71_SA34cCode,$AC:$AC,Sheet1!S71_RepMaintCode,$AD:$AD)","v":0},{"$f":"SUMIFS(Sheet1!S71_PPYearAmount,Sheet1!S71_SA34cCode,$AC:$AC,Sheet1!S71_RepMaintCode,$AD:$AD)","v":0},{"$f":"SUMIFS(Sheet1!S71_PYearAmount,Sheet1!S71_SA34cCode,$AC:$AC,Sheet1!S71_RepMaintCode,$AD:$AD)","v":0},{"$f":"SUMIFS(Sheet1!S71_OriginalBudAmnt,Sheet1!S71_SA34cCode,$AC:$AC,Sheet1!S71_RepMaintCode,$AD:$AD)","v":0},{"$f":"SUMIFS(Sheet1!S71_AdjustmentBudAmnt,Sheet1!S71_SA34cCode,$AC:$AC,Sheet1!S71_RepMaintCode,$AD:$AD)","v":0},{"$f":"SUMIFS(Sheet1!S71_AdjustmentBudAmnt,Sheet1!S71_SA34cCode,$AC:$AC,Sheet1!S71_RepMaintCode,$AD:$AD)","v":0},{"$f":"SUMIFS(Sheet1!S71_ASBudgetAmount,Sheet1!S71_SA34cCode,$AC:$AC,Sheet1!S71_RepMaintCode,$AD:$AD)","v":0},{"$f":"SUMIFS(Sheet1!S71_OY1BudgetAmount,Sheet1!S71_SA34cCode,$AC:$AC,Sheet1!S71_RepMaintCode,$AD:$AD)","v":0},{"$f":"SUMIFS(Sheet1!S71_OY2BudgetAmount,Sheet1!S71_SA34cCode,$AC:$AC,Sheet1!S71_RepMaintCode,$AD:$AD)","v":0},null,null,null,null,null,null,null,null,null,null,null,null,null,null,null,null,null,"0620","RM"]
["MV Substations",null,{"$f":"SUMIFS(Sheet1!S71_PPPYearAmount,Sheet1!S71_SA34cCode,$AC:$AC,Sheet1!S71_RepMaintCode,$AD:$AD)","v":0},{"$f":"SUMIFS(Sheet1!S71_PPYearAmount,Sheet1!S71_SA34cCode,$AC:$AC,Sheet1!S71_RepMaintCode,$AD:$AD)","v":0},{"$f":"SUMIFS(Sheet1!S71_PYearAmount,Sheet1!S71_SA34cCode,$AC:$AC,Sheet1!S71_RepMaintCode,$AD:$AD)","v":0},{"$f":"SUMIFS(Sheet1!S71_OriginalBudAmnt,Sheet1!S71_SA34cCode,$AC:$AC,Sheet1!S71_RepMaintCode,$AD:$AD)","v":0},{"$f":"SUMIFS(Sheet1!S71_AdjustmentBudAmnt,Sheet1!S71_SA34cCode,$AC:$AC,Sheet1!S71_RepMaintCode,$AD:$AD)","v":0},{"$f":"SUMIFS(Sheet1!S71_AdjustmentBudAmnt,Sheet1!S71_SA34cCode,$AC:$AC,Sheet1!S71_RepMaintCode,$AD:$AD)","v":0},{"$f":"SUMIFS(Sheet1!S71_ASBudgetAmount,Sheet1!S71_SA34cCode,$AC:$AC,Sheet1!S71_RepMaintCode,$AD:$AD)","v":0},{"$f":"SUMIFS(Sheet1!S71_OY1BudgetAmount,Sheet1!S71_SA34cCode,$AC:$AC,Sheet1!S71_RepMaintCode,$AD:$AD)","v":0},{"$f":"SUMIFS(Sheet1!S71_OY2BudgetAmount,Sheet1!S71_SA34cCode,$AC:$AC,Sheet1!S71_RepMaintCode,$AD:$AD)","v":0},null,null,null,null,null,null,null,null,null,null,null,null,null,null,null,null,null,"0630","RM"]
["LV Networks",null,{"$f":"SUMIFS(Sheet1!S71_PPPYearAmount,Sheet1!S71_SA34cCode,$AC:$AC,Sheet1!S71_RepMaintCode,$AD:$AD)","v":0},{"$f":"SUMIFS(Sheet1!S71_PPYearAmount,Sheet1!S71_SA34cCode,$AC:$AC,Sheet1!S71_RepMaintCode,$AD:$AD)","v":0},{"$f":"SUMIFS(Sheet1!S71_PYearAmount,Sheet1!S71_SA34cCode,$AC:$AC,Sheet1!S71_RepMaintCode,$AD:$AD)","v":0},{"$f":"SUMIFS(Sheet1!S71_OriginalBudAmnt,Sheet1!S71_SA34cCode,$AC:$AC,Sheet1!S71_RepMaintCode,$AD:$AD)","v":0},{"$f":"SUMIFS(Sheet1!S71_AdjustmentBudAmnt,Sheet1!S71_SA34cCode,$AC:$AC,Sheet1!S71_RepMaintCode,$AD:$AD)","v":0},{"$f":"SUMIFS(Sheet1!S71_AdjustmentBudAmnt,Sheet1!S71_SA34cCode,$AC:$AC,Sheet1!S71_RepMaintCode,$AD:$AD)","v":0},{"$f":"SUMIFS(Sheet1!S71_ASBudgetAmount,Sheet1!S71_SA34cCode,$AC:$AC,Sheet1!S71_RepMaintCode,$AD:$AD)","v":0},{"$f":"SUMIFS(Sheet1!S71_OY1BudgetAmount,Sheet1!S71_SA34cCode,$AC:$AC,Sheet1!S71_RepMaintCode,$AD:$AD)","v":0},{"$f":"SUMIFS(Sheet1!S71_OY2BudgetAmount,Sheet1!S71_SA34cCode,$AC:$AC,Sheet1!S71_RepMaintCode,$AD:$AD)","v":0},null,null,null,null,null,null,null,null,null,null,null,null,null,null,null,null,null,"0640","RM"]
["Capital Spares",null,{"$f":"SUMIFS(Sheet1!S71_PPPYearAmount,Sheet1!S71_SA34cCode,$AC:$AC,Sheet1!S71_RepMaintCode,$AD:$AD)","v":0},{"$f":"SUMIFS(Sheet1!S71_PPYearAmount,Sheet1!S71_SA34cCode,$AC:$AC,Sheet1!S71_RepMaintCode,$AD:$AD)","v":0},{"$f":"SUMIFS(Sheet1!S71_PYearAmount,Sheet1!S71_SA34cCode,$AC:$AC,Sheet1!S71_RepMaintCode,$AD:$AD)","v":0},{"$f":"SUMIFS(Sheet1!S71_OriginalBudAmnt,Sheet1!S71_SA34cCode,$AC:$AC,Sheet1!S71_RepMaintCode,$AD:$AD)","v":0},{"$f":"SUMIFS(Sheet1!S71_AdjustmentBudAmnt,Sheet1!S71_SA34cCode,$AC:$AC,Sheet1!S71_RepMaintCode,$AD:$AD)","v":0},{"$f":"SUMIFS(Sheet1!S71_AdjustmentBudAmnt,Sheet1!S71_SA34cCode,$AC:$AC,Sheet1!S71_RepMaintCode,$AD:$AD)","v":0},{"$f":"SUMIFS(Sheet1!S71_ASBudgetAmount,Sheet1!S71_SA34cCode,$AC:$AC,Sheet1!S71_RepMaintCode,$AD:$AD)","v":0},{"$f":"SUMIFS(Sheet1!S71_OY1BudgetAmount,Sheet1!S71_SA34cCode,$AC:$AC,Sheet1!S71_RepMaintCode,$AD:$AD)","v":0},{"$f":"SUMIFS(Sheet1!S71_OY2BudgetAmount,Sheet1!S71_SA34cCode,$AC:$AC,Sheet1!S71_RepMaintCode,$AD:$AD)","v":0},null,null,null,null,null,null,null,null,null,null,null,null,null,null,null,null,null,"0650","RM"]
["Coastal Infrastructure",null,{"$f":"SUM(C63:C67)","v":0},{"$f":"SUM(D63:D67)","v":0},0,0,0,0,0,0,0,null,null,null,null,null,null,null,null,null,null,null,null,null,null,null,null,null,null,"RM"]
["Sand Pumps",null,{"$f":"SUMIFS(Sheet1!S71_PPPYearAmount,Sheet1!S71_SA34cCode,$AC:$AC,Sheet1!S71_RepMaintCode,$AD:$AD)","v":0},{"$f":"SUMIFS(Sheet1!S71_PPYearAmount,Sheet1!S71_SA34cCode,$AC:$AC,Sheet1!S71_RepMaintCode,$AD:$AD)","v":0},{"$f":"SUMIFS(Sheet1!S71_PYearAmount,Sheet1!S71_SA34cCode,$AC:$AC,Sheet1!S71_RepMaintCode,$AD:$AD)","v":0},{"$f":"SUMIFS(Sheet1!S71_OriginalBudAmnt,Sheet1!S71_SA34cCode,$AC:$AC,Sheet1!S71_RepMaintCode,$AD:$AD)","v":0},{"$f":"SUMIFS(Sheet1!S71_AdjustmentBudAmnt,Sheet1!S71_SA34cCode,$AC:$AC,Sheet1!S71_RepMaintCode,$AD:$AD)","v":0},{"$f":"SUMIFS(Sheet1!S71_AdjustmentBudAmnt,Sheet1!S71_SA34cCode,$AC:$AC,Sheet1!S71_RepMaintCode,$AD:$AD)","v":0},{"$f":"SUMIFS(Sheet1!S71_ASBudgetAmount,Sheet1!S71_SA34cCode,$AC:$AC,Sheet1!S71_RepMaintCode,$AD:$AD)","v":0},{"$f":"SUMIFS(Sheet1!S71_OY1BudgetAmount,Sheet1!S71_SA34cCode,$AC:$AC,Sheet1!S71_RepMaintCode,$AD:$AD)","v":0},{"$f":"SUMIFS(Sheet1!S71_OY2BudgetAmount,Sheet1!S71_SA34cCode,$AC:$AC,Sheet1!S71_RepMaintCode,$AD:$AD)","v":0},null,null,null,null,null,null,null,null,null,null,null,null,null,null,null,null,null,"0670","RM"]
["Piers",null,{"$f":"SUMIFS(Sheet1!S71_PPPYearAmount,Sheet1!S71_SA34cCode,$AC:$AC,Sheet1!S71_RepMaintCode,$AD:$AD)","v":0},{"$f":"SUMIFS(Sheet1!S71_PPYearAmount,Sheet1!S71_SA34cCode,$AC:$AC,Sheet1!S71_RepMaintCode,$AD:$AD)","v":0},{"$f":"SUMIFS(Sheet1!S71_PYearAmount,Sheet1!S71_SA34cCode,$AC:$AC,Sheet1!S71_RepMaintCode,$AD:$AD)","v":0},{"$f":"SUMIFS(Sheet1!S71_OriginalBudAmnt,Sheet1!S71_SA34cCode,$AC:$AC,Sheet1!S71_RepMaintCode,$AD:$AD)","v":0},{"$f":"SUMIFS(Sheet1!S71_AdjustmentBudAmnt,Sheet1!S71_SA34cCode,$AC:$AC,Sheet1!S71_RepMaintCode,$AD:$AD)","v":0},{"$f":"SUMIFS(Sheet1!S71_AdjustmentBudAmnt,Sheet1!S71_SA34cCode,$AC:$AC,Sheet1!S71_RepMaintCode,$AD:$AD)","v":0},{"$f":"SUMIFS(Sheet1!S71_ASBudgetAmount,Sheet1!S71_SA34cCode,$AC:$AC,Sheet1!S71_RepMaintCode,$AD:$AD)","v":0},{"$f":"SUMIFS(Sheet1!S71_OY1BudgetAmount,Sheet1!S71_SA34cCode,$AC:$AC,Sheet1!S71_RepMaintCode,$AD:$AD)","v":0},{"$f":"SUMIFS(Sheet1!S71_OY2BudgetAmount,Sheet1!S71_SA34cCode,$AC:$AC,Sheet1!S71_RepMaintCode,$AD:$AD)","v":0},null,null,null,null,null,null,null,null,null,null,null,null,null,null,null,null,null,"0680","RM"]
["Revetments",null,{"$f":"SUMIFS(Sheet1!S71_PPPYearAmount,Sheet1!S71_SA34cCode,$AC:$AC,Sheet1!S71_RepMaintCode,$AD:$AD)","v":0},{"$f":"SUMIFS(Sheet1!S71_PPYearAmount,Sheet1!S71_SA34cCode,$AC:$AC,Sheet1!S71_RepMaintCode,$AD:$AD)","v":0},{"$f":"SUMIFS(Sheet1!S71_PYearAmount,Sheet1!S71_SA34cCode,$AC:$AC,Sheet1!S71_RepMaintCode,$AD:$AD)","v":0},{"$f":"SUMIFS(Sheet1!S71_OriginalBudAmnt,Sheet1!S71_SA34cCode,$AC:$AC,Sheet1!S71_RepMaintCode,$AD:$AD)","v":0},{"$f":"SUMIFS(Sheet1!S71_AdjustmentBudAmnt,Sheet1!S71_SA34cCode,$AC:$AC,Sheet1!S71_RepMaintCode,$AD:$AD)","v":0},{"$f":"SUMIFS(Sheet1!S71_AdjustmentBudAmnt,Sheet1!S71_SA34cCode,$AC:$AC,Sheet1!S71_RepMaintCode,$AD:$AD)","v":0},{"$f":"SUMIFS(Sheet1!S71_ASBudgetAmount,Sheet1!S71_SA34cCode,$AC:$AC,Sheet1!S71_RepMaintCode,$AD:$AD)","v":0},{"$f":"SUMIFS(Sheet1!S71_OY1BudgetAmount,Sheet1!S71_SA34cCode,$AC:$AC,Sheet1!S71_RepMaintCode,$AD:$AD)","v":0},{"$f":"SUMIFS(Sheet1!S71_OY2BudgetAmount,Sheet1!S71_SA34cCode,$AC:$AC,Sheet1!S71_RepMaintCode,$AD:$AD)","v":0},null,null,null,null,null,null,null,null,null,null,null,null,null,null,null,null,null,"0690","RM"]
["Promenades",null,{"$f":"SUMIFS(Sheet1!S71_PPPYearAmount,Sheet1!S71_SA34cCode,$AC:$AC,Sheet1!S71_RepMaintCode,$AD:$AD)","v":0},{"$f":"SUMIFS(Sheet1!S71_PPYearAmount,Sheet1!S71_SA34cCode,$AC:$AC,Sheet1!S71_RepMaintCode,$AD:$AD)","v":0},{"$f":"SUMIFS(Sheet1!S71_PYearAmount,Sheet1!S71_SA34cCode,$AC:$AC,Sheet1!S71_RepMaintCode,$AD:$AD)","v":0},{"$f":"SUMIFS(Sheet1!S71_OriginalBudAmnt,Sheet1!S71_SA34cCode,$AC:$AC,Sheet1!S71_RepMaintCode,$AD:$AD)","v":0},{"$f":"SUMIFS(Sheet1!S71_AdjustmentBudAmnt,Sheet1!S71_SA34cCode,$AC:$AC,Sheet1!S71_RepMaintCode,$AD:$AD)","v":0},{"$f":"SUMIFS(Sheet1!S71_AdjustmentBudAmnt,Sheet1!S71_SA34cCode,$AC:$AC,Sheet1!S71_RepMaintCode,$AD:$AD)","v":0},{"$f":"SUMIFS(Sheet1!S71_ASBudgetAmount,Sheet1!S71_SA34cCode,$AC:$AC,Sheet1!S71_RepMaintCode,$AD:$AD)","v":0},{"$f":"SUMIFS(Sheet1!S71_OY1BudgetAmount,Sheet1!S71_SA34cCode,$AC:$AC,Sheet1!S71_RepMaintCode,$AD:$AD)","v":0},{"$f":"SUMIFS(Sheet1!S71_OY2BudgetAmount,Sheet1!S71_SA34cCode,$AC:$AC,Sheet1!S71_RepMaintCode,$AD:$AD)","v":0},null,null,null,null,null,null,null,null,null,null,null,null,null,null,null,null,null,"0700","RM"]
["Capital Spares",null,{"$f":"SUMIFS(Sheet1!S71_PPPYearAmount,Sheet1!S71_SA34cCode,$AC:$AC,Sheet1!S71_RepMaintCode,$AD:$AD)","v":0},{"$f":"SUMIFS(Sheet1!S71_PPYearAmount,Sheet1!S71_SA34cCode,$AC:$AC,Sheet1!S71_RepMaintCode,$AD:$AD)","v":0},{"$f":"SUMIFS(Sheet1!S71_PYearAmount,Sheet1!S71_SA34cCode,$AC:$AC,Sheet1!S71_RepMaintCode,$AD:$AD)","v":0},{"$f":"SUMIFS(Sheet1!S71_OriginalBudAmnt,Sheet1!S71_SA34cCode,$AC:$AC,Sheet1!S71_RepMaintCode,$AD:$AD)","v":0},{"$f":"SUMIFS(Sheet1!S71_AdjustmentBudAmnt,Sheet1!S71_SA34cCode,$AC:$AC,Sheet1!S71_RepMaintCode,$AD:$AD)","v":0},{"$f":"SUMIFS(Sheet1!S71_AdjustmentBudAmnt,Sheet1!S71_SA34cCode,$AC:$AC,Sheet1!S71_RepMaintCode,$AD:$AD)","v":0},{"$f":"SUMIFS(Sheet1!S71_ASBudgetAmount,Sheet1!S71_SA34cCode,$AC:$AC,Sheet1!S71_RepMaintCode,$AD:$AD)","v":0},{"$f":"SUMIFS(Sheet1!S71_OY1BudgetAmount,Sheet1!S71_SA34cCode,$AC:$AC,Sheet1!S71_RepMaintCode,$AD:$AD)","v":0},{"$f":"SUMIFS(Sheet1!S71_OY2BudgetAmount,Sheet1!S71_SA34cCode,$AC:$AC,Sheet1!S71_RepMaintCode,$AD:$AD)","v":0},null,null,null,null,null,null,null,null,null,null,null,null,null,null,null,null,null,"0710","RM"]
["Information and Communication Infrastructure",null,{"$f":"SUM(C69:C72)","v":0},{"$f":"SUM(D69:D72)","v":0},0,0,0,0,0,0,0,null,null,null,null,null,null,null,null,null,null,null,null,null,null,null,null,null,null,"RM"]
["Data Centres",null,{"$f":"SUMIFS(Sheet1!S71_PPPYearAmount,Sheet1!S71_SA34cCode,$AC:$AC,Sheet1!S71_RepMaintCode,$AD:$AD)","v":0},{"$f":"SUMIFS(Sheet1!S71_PPYearAmount,Sheet1!S71_SA34cCode,$AC:$AC,Sheet1!S71_RepMaintCode,$AD:$AD)","v":0},{"$f":"SUMIFS(Sheet1!S71_PYearAmount,Sheet1!S71_SA34cCode,$AC:$AC,Sheet1!S71_RepMaintCode,$AD:$AD)","v":0},{"$f":"SUMIFS(Sheet1!S71_OriginalBudAmnt,Sheet1!S71_SA34cCode,$AC:$AC,Sheet1!S71_RepMaintCode,$AD:$AD)","v":0},{"$f":"SUMIFS(Sheet1!S71_AdjustmentBudAmnt,Sheet1!S71_SA34cCode,$AC:$AC,Sheet1!S71_RepMaintCode,$AD:$AD)","v":0},{"$f":"SUMIFS(Sheet1!S71_AdjustmentBudAmnt,Sheet1!S71_SA34cCode,$AC:$AC,Sheet1!S71_RepMaintCode,$AD:$AD)","v":0},{"$f":"SUMIFS(Sheet1!S71_ASBudgetAmount,Sheet1!S71_SA34cCode,$AC:$AC,Sheet1!S71_RepMaintCode,$AD:$AD)","v":0},{"$f":"SUMIFS(Sheet1!S71_OY1BudgetAmount,Sheet1!S71_SA34cCode,$AC:$AC,Sheet1!S71_RepMaintCode,$AD:$AD)","v":0},{"$f":"SUMIFS(Sheet1!S71_OY2BudgetAmount,Sheet1!S71_SA34cCode,$AC:$AC,Sheet1!S71_RepMaintCode,$AD:$AD)","v":0},null,null,null,null,null,null,null,null,null,null,null,null,null,null,null,null,null,"0730","RM"]
["Core Layers",null,{"$f":"SUMIFS(Sheet1!S71_PPPYearAmount,Sheet1!S71_SA34cCode,$AC:$AC,Sheet1!S71_RepMaintCode,$AD:$AD)","v":0},{"$f":"SUMIFS(Sheet1!S71_PPYearAmount,Sheet1!S71_SA34cCode,$AC:$AC,Sheet1!S71_RepMaintCode,$AD:$AD)","v":0},{"$f":"SUMIFS(Sheet1!S71_PYearAmount,Sheet1!S71_SA34cCode,$AC:$AC,Sheet1!S71_RepMaintCode,$AD:$AD)","v":0},{"$f":"SUMIFS(Sheet1!S71_OriginalBudAmnt,Sheet1!S71_SA34cCode,$AC:$AC,Sheet1!S71_RepMaintCode,$AD:$AD)","v":0},{"$f":"SUMIFS(Sheet1!S71_AdjustmentBudAmnt,Sheet1!S71_SA34cCode,$AC:$AC,Sheet1!S71_RepMaintCode,$AD:$AD)","v":0},{"$f":"SUMIFS(Sheet1!S71_AdjustmentBudAmnt,Sheet1!S71_SA34cCode,$AC:$AC,Sheet1!S71_RepMaintCode,$AD:$AD)","v":0},{"$f":"SUMIFS(Sheet1!S71_ASBudgetAmount,Sheet1!S71_SA34cCode,$AC:$AC,Sheet1!S71_RepMaintCode,$AD:$AD)","v":0},{"$f":"SUMIFS(Sheet1!S71_OY1BudgetAmount,Sheet1!S71_SA34cCode,$AC:$AC,Sheet1!S71_RepMaintCode,$AD:$AD)","v":0},{"$f":"SUMIFS(Sheet1!S71_OY2BudgetAmount,Sheet1!S71_SA34cCode,$AC:$AC,Sheet1!S71_RepMaintCode,$AD:$AD)","v":0},null,null,null,null,null,null,null,null,null,null,null,null,null,null,null,null,null,"0740","RM"]
["Distribution Layers",null,{"$f":"SUMIFS(Sheet1!S71_PPPYearAmount,Sheet1!S71_SA34cCode,$AC:$AC,Sheet1!S71_RepMaintCode,$AD:$AD)","v":0},{"$f":"SUMIFS(Sheet1!S71_PPYearAmount,Sheet1!S71_SA34cCode,$AC:$AC,Sheet1!S71_RepMaintCode,$AD:$AD)","v":0},{"$f":"SUMIFS(Sheet1!S71_PYearAmount,Sheet1!S71_SA34cCode,$AC:$AC,Sheet1!S71_RepMaintCode,$AD:$AD)","v":0},{"$f":"SUMIFS(Sheet1!S71_OriginalBudAmnt,Sheet1!S71_SA34cCode,$AC:$AC,Sheet1!S71_RepMaintCode,$AD:$AD)","v":0},{"$f":"SUMIFS(Sheet1!S71_AdjustmentBudAmnt,Sheet1!S71_SA34cCode,$AC:$AC,Sheet1!S71_RepMaintCode,$AD:$AD)","v":0},{"$f":"SUMIFS(Sheet1!S71_AdjustmentBudAmnt,Sheet1!S71_SA34cCode,$AC:$AC,Sheet1!S71_RepMaintCode,$AD:$AD)","v":0},{"$f":"SUMIFS(Sheet1!S71_ASBudgetAmount,Sheet1!S71_SA34cCode,$AC:$AC,Sheet1!S71_RepMaintCode,$AD:$AD)","v":0},{"$f":"SUMIFS(Sheet1!S71_OY1BudgetAmount,Sheet1!S71_SA34cCode,$AC:$AC,Sheet1!S71_RepMaintCode,$AD:$AD)","v":0},{"$f":"SUMIFS(Sheet1!S71_OY2BudgetAmount,Sheet1!S71_SA34cCode,$AC:$AC,Sheet1!S71_RepMaintCode,$AD:$AD)","v":0},null,null,null,null,null,null,null,null,null,null,null,null,null,null,null,null,null,"0750","RM"]
["Capital Spares",null,{"$f":"SUMIFS(Sheet1!S71_PPPYearAmount,Sheet1!S71_SA34cCode,$AC:$AC,Sheet1!S71_RepMaintCode,$AD:$AD)","v":0},{"$f":"SUMIFS(Sheet1!S71_PPYearAmount,Sheet1!S71_SA34cCode,$AC:$AC,Sheet1!S71_RepMaintCode,$AD:$AD)","v":0},{"$f":"SUMIFS(Sheet1!S71_PYearAmount,Sheet1!S71_SA34cCode,$AC:$AC,Sheet1!S71_RepMaintCode,$AD:$AD)","v":0},{"$f":"SUMIFS(Sheet1!S71_OriginalBudAmnt,Sheet1!S71_SA34cCode,$AC:$AC,Sheet1!S71_RepMaintCode,$AD:$AD)","v":0},{"$f":"SUMIFS(Sheet1!S71_AdjustmentBudAmnt,Sheet1!S71_SA34cCode,$AC:$AC,Sheet1!S71_RepMaintCode,$AD:$AD)","v":0},{"$f":"SUMIFS(Sheet1!S71_AdjustmentBudAmnt,Sheet1!S71_SA34cCode,$AC:$AC,Sheet1!S71_RepMaintCode,$AD:$AD)","v":0},{"$f":"SUMIFS(Sheet1!S71_ASBudgetAmount,Sheet1!S71_SA34cCode,$AC:$AC,Sheet1!S71_RepMaintCode,$AD:$AD)","v":0},{"$f":"SUMIFS(Sheet1!S71_OY1BudgetAmount,Sheet1!S71_SA34cCode,$AC:$AC,Sheet1!S71_RepMaintCode,$AD:$AD)","v":0},{"$f":"SUMIFS(Sheet1!S71_OY2BudgetAmount,Sheet1!S71_SA34cCode,$AC:$AC,Sheet1!S71_RepMaintCode,$AD:$AD)","v":0},null,null,null,null,null,null,null,null,null,null,null,null,null,null,null,null,null,"0760","RM"]
[null,null,null,null,null,null,null,null,null,null,null,null,null,null,null,null,null,null,null,null,null,null,null,null,null,null,null,null,null,"RM"]
["Community Assets",null,{"$f":"C75+C98","v":48850},{"$f":"D75+D98","v":0},0,100000,400000,400000,800000,810000,820000,null,null,null,null,null,null,null,null,null,null,null,null,null,null,null,null,null,null,"RM"]
["Community Facilities",null,{"$f":"SUM(C76:C97)","v":48850},{"$f":"SUM(D76:D97)","v":0},0,100000,400000,400000,800000,810000,820000,null,null,null,null,null,null,null,null,null,null,null,null,null,null,null,null,null,null,"RM"]
["Halls",null,{"$f":"SUMIFS(Sheet1!S71_PPPYearAmount,Sheet1!S71_SA34cCode,$AC:$AC,Sheet1!S71_RepMaintCode,$AD:$AD)","v":0},{"$f":"SUMIFS(Sheet1!S71_PPYearAmount,Sheet1!S71_SA34cCode,$AC:$AC,Sheet1!S71_RepMaintCode,$AD:$AD)","v":0},{"$f":"SUMIFS(Sheet1!S71_PYearAmount,Sheet1!S71_SA34cCode,$AC:$AC,Sheet1!S71_RepMaintCode,$AD:$AD)","v":0},{"$f":"SUMIFS(Sheet1!S71_OriginalBudAmnt,Sheet1!S71_SA34cCode,$AC:$AC,Sheet1!S71_RepMaintCode,$AD:$AD)","v":0},{"$f":"SUMIFS(Sheet1!S71_AdjustmentBudAmnt,Sheet1!S71_SA34cCode,$AC:$AC,Sheet1!S71_RepMaintCode,$AD:$AD)","v":0},{"$f":"SUMIFS(Sheet1!S71_AdjustmentBudAmnt,Sheet1!S71_SA34cCode,$AC:$AC,Sheet1!S71_RepMaintCode,$AD:$AD)","v":0},{"$f":"SUMIFS(Sheet1!S71_ASBudgetAmount,Sheet1!S71_SA34cCode,$AC:$AC,Sheet1!S71_RepMaintCode,$AD:$AD)","v":0},{"$f":"SUMIFS(Sheet1!S71_OY1BudgetAmount,Sheet1!S71_SA34cCode,$AC:$AC,Sheet1!S71_RepMaintCode,$AD:$AD)","v":0},{"$f":"SUMIFS(Sheet1!S71_OY2BudgetAmount,Sheet1!S71_SA34cCode,$AC:$AC,Sheet1!S71_RepMaintCode,$AD:$AD)","v":0},null,null,null,null,null,null,null,null,null,null,null,null,null,null,null,null,null,"0790","RM"]
["Centres",null,{"$f":"SUMIFS(Sheet1!S71_PPPYearAmount,Sheet1!S71_SA34cCode,$AC:$AC,Sheet1!S71_RepMaintCode,$AD:$AD)","v":0},{"$f":"SUMIFS(Sheet1!S71_PPYearAmount,Sheet1!S71_SA34cCode,$AC:$AC,Sheet1!S71_RepMaintCode,$AD:$AD)","v":0},{"$f":"SUMIFS(Sheet1!S71_PYearAmount,Sheet1!S71_SA34cCode,$AC:$AC,Sheet1!S71_RepMaintCode,$AD:$AD)","v":0},{"$f":"SUMIFS(Sheet1!S71_OriginalBudAmnt,Sheet1!S71_SA34cCode,$AC:$AC,Sheet1!S71_RepMaintCode,$AD:$AD)","v":0},{"$f":"SUMIFS(Sheet1!S71_AdjustmentBudAmnt,Sheet1!S71_SA34cCode,$AC:$AC,Sheet1!S71_RepMaintCode,$AD:$AD)","v":0},{"$f":"SUMIFS(Sheet1!S71_AdjustmentBudAmnt,Sheet1!S71_SA34cCode,$AC:$AC,Sheet1!S71_RepMaintCode,$AD:$AD)","v":0},{"$f":"SUMIFS(Sheet1!S71_ASBudgetAmount,Sheet1!S71_SA34cCode,$AC:$AC,Sheet1!S71_RepMaintCode,$AD:$AD)","v":0},{"$f":"SUMIFS(Sheet1!S71_OY1BudgetAmount,Sheet1!S71_SA34cCode,$AC:$AC,Sheet1!S71_RepMaintCode,$AD:$AD)","v":0},{"$f":"SUMIFS(Sheet1!S71_OY2BudgetAmount,Sheet1!S71_SA34cCode,$AC:$AC,Sheet1!S71_RepMaintCode,$AD:$AD)","v":0},null,null,null,null,null,null,null,null,null,null,null,null,null,null,null,null,null,"0800","RM"]
["Crèches",null,{"$f":"SUMIFS(Sheet1!S71_PPPYearAmount,Sheet1!S71_SA34cCode,$AC:$AC,Sheet1!S71_RepMaintCode,$AD:$AD)","v":0},{"$f":"SUMIFS(Sheet1!S71_PPYearAmount,Sheet1!S71_SA34cCode,$AC:$AC,Sheet1!S71_RepMaintCode,$AD:$AD)","v":0},{"$f":"SUMIFS(Sheet1!S71_PYearAmount,Sheet1!S71_SA34cCode,$AC:$AC,Sheet1!S71_RepMaintCode,$AD:$AD)","v":0},{"$f":"SUMIFS(Sheet1!S71_OriginalBudAmnt,Sheet1!S71_SA34cCode,$AC:$AC,Sheet1!S71_RepMaintCode,$AD:$AD)","v":0},{"$f":"SUMIFS(Sheet1!S71_AdjustmentBudAmnt,Sheet1!S71_SA34cCode,$AC:$AC,Sheet1!S71_RepMaintCode,$AD:$AD)","v":0},{"$f":"SUMIFS(Sheet1!S71_AdjustmentBudAmnt,Sheet1!S71_SA34cCode,$AC:$AC,Sheet1!S71_RepMaintCode,$AD:$AD)","v":0},{"$f":"SUMIFS(Sheet1!S71_ASBudgetAmount,Sheet1!S71_SA34cCode,$AC:$AC,Sheet1!S71_RepMaintCode,$AD:$AD)","v":0},{"$f":"SUMIFS(Sheet1!S71_OY1BudgetAmount,Sheet1!S71_SA34cCode,$AC:$AC,Sheet1!S71_RepMaintCode,$AD:$AD)","v":0},{"$f":"SUMIFS(Sheet1!S71_OY2BudgetAmount,Sheet1!S71_SA34cCode,$AC:$AC,Sheet1!S71_RepMaintCode,$AD:$AD)","v":0},null,null,null,null,null,null,null,null,null,null,null,null,null,null,null,null,null,"0810","RM"]
["Clinics/Care Centres",null,{"$f":"SUMIFS(Sheet1!S71_PPPYearAmount,Sheet1!S71_SA34cCode,$AC:$AC,Sheet1!S71_RepMaintCode,$AD:$AD)","v":0},{"$f":"SUMIFS(Sheet1!S71_PPYearAmount,Sheet1!S71_SA34cCode,$AC:$AC,Sheet1!S71_RepMaintCode,$AD:$AD)","v":0},{"$f":"SUMIFS(Sheet1!S71_PYearAmount,Sheet1!S71_SA34cCode,$AC:$AC,Sheet1!S71_RepMaintCode,$AD:$AD)","v":0},{"$f":"SUMIFS(Sheet1!S71_OriginalBudAmnt,Sheet1!S71_SA34cCode,$AC:$AC,Sheet1!S71_RepMaintCode,$AD:$AD)","v":0},{"$f":"SUMIFS(Sheet1!S71_AdjustmentBudAmnt,Sheet1!S71_SA34cCode,$AC:$AC,Sheet1!S71_RepMaintCode,$AD:$AD)","v":0},{"$f":"SUMIFS(Sheet1!S71_AdjustmentBudAmnt,Sheet1!S71_SA34cCode,$AC:$AC,Sheet1!S71_RepMaintCode,$AD:$AD)","v":0},{"$f":"SUMIFS(Sheet1!S71_ASBudgetAmount,Sheet1!S71_SA34cCode,$AC:$AC,Sheet1!S71_RepMaintCode,$AD:$AD)","v":0},{"$f":"SUMIFS(Sheet1!S71_OY1BudgetAmount,Sheet1!S71_SA34cCode,$AC:$AC,Sheet1!S71_RepMaintCode,$AD:$AD)","v":0},{"$f":"SUMIFS(Sheet1!S71_OY2BudgetAmount,Sheet1!S71_SA34cCode,$AC:$AC,Sheet1!S71_RepMaintCode,$AD:$AD)","v":0},null,null,null,null,null,null,null,null,null,null,null,null,null,null,null,null,null,"0820","RM"]
["Fire/Ambulance Stations",null,{"$f":"SUMIFS(Sheet1!S71_PPPYearAmount,Sheet1!S71_SA34cCode,$AC:$AC,Sheet1!S71_RepMaintCode,$AD:$AD)","v":0},{"$f":"SUMIFS(Sheet1!S71_PPYearAmount,Sheet1!S71_SA34cCode,$AC:$AC,Sheet1!S71_RepMaintCode,$AD:$AD)","v":0},{"$f":"SUMIFS(Sheet1!S71_PYearAmount,Sheet1!S71_SA34cCode,$AC:$AC,Sheet1!S71_RepMaintCode,$AD:$AD)","v":0},{"$f":"SUMIFS(Sheet1!S71_OriginalBudAmnt,Sheet1!S71_SA34cCode,$AC:$AC,Sheet1!S71_RepMaintCode,$AD:$AD)","v":0},{"$f":"SUMIFS(Sheet1!S71_AdjustmentBudAmnt,Sheet1!S71_SA34cCode,$AC:$AC,Sheet1!S71_RepMaintCode,$AD:$AD)","v":0},{"$f":"SUMIFS(Sheet1!S71_AdjustmentBudAmnt,Sheet1!S71_SA34cCode,$AC:$AC,Sheet1!S71_RepMaintCode,$AD:$AD)","v":0},{"$f":"SUMIFS(Sheet1!S71_ASBudgetAmount,Sheet1!S71_SA34cCode,$AC:$AC,Sheet1!S71_RepMaintCode,$AD:$AD)","v":0},{"$f":"SUMIFS(Sheet1!S71_OY1BudgetAmount,Sheet1!S71_SA34cCode,$AC:$AC,Sheet1!S71_RepMaintCode,$AD:$AD)","v":0},{"$f":"SUMIFS(Sheet1!S71_OY2BudgetAmount,Sheet1!S71_SA34cCode,$AC:$AC,Sheet1!S71_RepMaintCode,$AD:$AD)","v":0},null,null,null,null,null,null,null,null,null,null,null,null,null,null,null,null,null,"0830","RM"]
["Testing Stations",null,{"$f":"SUMIFS(Sheet1!S71_PPPYearAmount,Sheet1!S71_SA34cCode,$AC:$AC,Sheet1!S71_RepMaintCode,$AD:$AD)","v":0},{"$f":"SUMIFS(Sheet1!S71_PPYearAmount,Sheet1!S71_SA34cCode,$AC:$AC,Sheet1!S71_RepMaintCode,$AD:$AD)","v":0},{"$f":"SUMIFS(Sheet1!S71_PYearAmount,Sheet1!S71_SA34cCode,$AC:$AC,Sheet1!S71_RepMaintCode,$AD:$AD)","v":0},{"$f":"SUMIFS(Sheet1!S71_OriginalBudAmnt,Sheet1!S71_SA34cCode,$AC:$AC,Sheet1!S71_RepMaintCode,$AD:$AD)","v":0},{"$f":"SUMIFS(Sheet1!S71_AdjustmentBudAmnt,Sheet1!S71_SA34cCode,$AC:$AC,Sheet1!S71_RepMaintCode,$AD:$AD)","v":0},{"$f":"SUMIFS(Sheet1!S71_AdjustmentBudAmnt,Sheet1!S71_SA34cCode,$AC:$AC,Sheet1!S71_RepMaintCode,$AD:$AD)","v":0},{"$f":"SUMIFS(Sheet1!S71_ASBudgetAmount,Sheet1!S71_SA34cCode,$AC:$AC,Sheet1!S71_RepMaintCode,$AD:$AD)","v":0},{"$f":"SUMIFS(Sheet1!S71_OY1BudgetAmount,Sheet1!S71_SA34cCode,$AC:$AC,Sheet1!S71_RepMaintCode,$AD:$AD)","v":0},{"$f":"SUMIFS(Sheet1!S71_OY2BudgetAmount,Sheet1!S71_SA34cCode,$AC:$AC,Sheet1!S71_RepMaintCode,$AD:$AD)","v":0},null,null,null,null,null,null,null,null,null,null,null,null,null,null,null,null,null,"0840","RM"]
["Museums",null,{"$f":"SUMIFS(Sheet1!S71_PPPYearAmount,Sheet1!S71_SA34cCode,$AC:$AC,Sheet1!S71_RepMaintCode,$AD:$AD)","v":0},{"$f":"SUMIFS(Sheet1!S71_PPYearAmount,Sheet1!S71_SA34cCode,$AC:$AC,Sheet1!S71_RepMaintCode,$AD:$AD)","v":0},{"$f":"SUMIFS(Sheet1!S71_PYearAmount,Sheet1!S71_SA34cCode,$AC:$AC,Sheet1!S71_RepMaintCode,$AD:$AD)","v":0},{"$f":"SUMIFS(Sheet1!S71_OriginalBudAmnt,Sheet1!S71_SA34cCode,$AC:$AC,Sheet1!S71_RepMaintCode,$AD:$AD)","v":0},{"$f":"SUMIFS(Sheet1!S71_AdjustmentBudAmnt,Sheet1!S71_SA34cCode,$AC:$AC,Sheet1!S71_RepMaintCode,$AD:$AD)","v":0},{"$f":"SUMIFS(Sheet1!S71_AdjustmentBudAmnt,Sheet1!S71_SA34cCode,$AC:$AC,Sheet1!S71_RepMaintCode,$AD:$AD)","v":0},{"$f":"SUMIFS(Sheet1!S71_ASBudgetAmount,Sheet1!S71_SA34cCode,$AC:$AC,Sheet1!S71_RepMaintCode,$AD:$AD)","v":0},{"$f":"SUMIFS(Sheet1!S71_OY1BudgetAmount,Sheet1!S71_SA34cCode,$AC:$AC,Sheet1!S71_RepMaintCode,$AD:$AD)","v":0},{"$f":"SUMIFS(Sheet1!S71_OY2BudgetAmount,Sheet1!S71_SA34cCode,$AC:$AC,Sheet1!S71_RepMaintCode,$AD:$AD)","v":0},null,null,null,null,null,null,null,null,null,null,null,null,null,null,null,null,null,"0850","RM"]
["Galleries",null,{"$f":"SUMIFS(Sheet1!S71_PPPYearAmount,Sheet1!S71_SA34cCode,$AC:$AC,Sheet1!S71_RepMaintCode,$AD:$AD)","v":0},{"$f":"SUMIFS(Sheet1!S71_PPYearAmount,Sheet1!S71_SA34cCode,$AC:$AC,Sheet1!S71_RepMaintCode,$AD:$AD)","v":0},{"$f":"SUMIFS(Sheet1!S71_PYearAmount,Sheet1!S71_SA34cCode,$AC:$AC,Sheet1!S71_RepMaintCode,$AD:$AD)","v":0},{"$f":"SUMIFS(Sheet1!S71_OriginalBudAmnt,Sheet1!S71_SA34cCode,$AC:$AC,Sheet1!S71_RepMaintCode,$AD:$AD)","v":0},{"$f":"SUMIFS(Sheet1!S71_AdjustmentBudAmnt,Sheet1!S71_SA34cCode,$AC:$AC,Sheet1!S71_RepMaintCode,$AD:$AD)","v":0},{"$f":"SUMIFS(Sheet1!S71_AdjustmentBudAmnt,Sheet1!S71_SA34cCode,$AC:$AC,Sheet1!S71_RepMaintCode,$AD:$AD)","v":0},{"$f":"SUMIFS(Sheet1!S71_ASBudgetAmount,Sheet1!S71_SA34cCode,$AC:$AC,Sheet1!S71_RepMaintCode,$AD:$AD)","v":0},{"$f":"SUMIFS(Sheet1!S71_OY1BudgetAmount,Sheet1!S71_SA34cCode,$AC:$AC,Sheet1!S71_RepMaintCode,$AD:$AD)","v":0},{"$f":"SUMIFS(Sheet1!S71_OY2BudgetAmount,Sheet1!S71_SA34cCode,$AC:$AC,Sheet1!S71_RepMaintCode,$AD:$AD)","v":0},null,null,null,null,null,null,null,null,null,null,null,null,null,null,null,null,null,"0860","RM"]
["Theatres",null,{"$f":"SUMIFS(Sheet1!S71_PPPYearAmount,Sheet1!S71_SA34cCode,$AC:$AC,Sheet1!S71_RepMaintCode,$AD:$AD)","v":0},{"$f":"SUMIFS(Sheet1!S71_PPYearAmount,Sheet1!S71_SA34cCode,$AC:$AC,Sheet1!S71_RepMaintCode,$AD:$AD)","v":0},{"$f":"SUMIFS(Sheet1!S71_PYearAmount,Sheet1!S71_SA34cCode,$AC:$AC,Sheet1!S71_RepMaintCode,$AD:$AD)","v":0},{"$f":"SUMIFS(Sheet1!S71_OriginalBudAmnt,Sheet1!S71_SA34cCode,$AC:$AC,Sheet1!S71_RepMaintCode,$AD:$AD)","v":0},{"$f":"SUMIFS(Sheet1!S71_AdjustmentBudAmnt,Sheet1!S71_SA34cCode,$AC:$AC,Sheet1!S71_RepMaintCode,$AD:$AD)","v":0},{"$f":"SUMIFS(Sheet1!S71_AdjustmentBudAmnt,Sheet1!S71_SA34cCode,$AC:$AC,Sheet1!S71_RepMaintCode,$AD:$AD)","v":0},{"$f":"SUMIFS(Sheet1!S71_ASBudgetAmount,Sheet1!S71_SA34cCode,$AC:$AC,Sheet1!S71_RepMaintCode,$AD:$AD)","v":0},{"$f":"SUMIFS(Sheet1!S71_OY1BudgetAmount,Sheet1!S71_SA34cCode,$AC:$AC,Sheet1!S71_RepMaintCode,$AD:$AD)","v":0},{"$f":"SUMIFS(Sheet1!S71_OY2BudgetAmount,Sheet1!S71_SA34cCode,$AC:$AC,Sheet1!S71_RepMaintCode,$AD:$AD)","v":0},null,null,null,null,null,null,null,null,null,null,null,null,null,null,null,null,null,"0870","RM"]
["Libraries",null,{"$f":"SUMIFS(Sheet1!S71_PPPYearAmount,Sheet1!S71_SA34cCode,$AC:$AC,Sheet1!S71_RepMaintCode,$AD:$AD)","v":0},{"$f":"SUMIFS(Sheet1!S71_PPYearAmount,Sheet1!S71_SA34cCode,$AC:$AC,Sheet1!S71_RepMaintCode,$AD:$AD)","v":0},{"$f":"SUMIFS(Sheet1!S71_PYearAmount,Sheet1!S71_SA34cCode,$AC:$AC,Sheet1!S71_RepMaintCode,$AD:$AD)","v":0},{"$f":"SUMIFS(Sheet1!S71_OriginalBudAmnt,Sheet1!S71_SA34cCode,$AC:$AC,Sheet1!S71_RepMaintCode,$AD:$AD)","v":0},{"$f":"SUMIFS(Sheet1!S71_AdjustmentBudAmnt,Sheet1!S71_SA34cCode,$AC:$AC,Sheet1!S71_RepMaintCode,$AD:$AD)","v":0},{"$f":"SUMIFS(Sheet1!S71_AdjustmentBudAmnt,Sheet1!S71_SA34cCode,$AC:$AC,Sheet1!S71_RepMaintCode,$AD:$AD)","v":0},{"$f":"SUMIFS(Sheet1!S71_ASBudgetAmount,Sheet1!S71_SA34cCode,$AC:$AC,Sheet1!S71_RepMaintCode,$AD:$AD)","v":0},{"$f":"SUMIFS(Sheet1!S71_OY1BudgetAmount,Sheet1!S71_SA34cCode,$AC:$AC,Sheet1!S71_RepMaintCode,$AD:$AD)","v":0},{"$f":"SUMIFS(Sheet1!S71_OY2BudgetAmount,Sheet1!S71_SA34cCode,$AC:$AC,Sheet1!S71_RepMaintCode,$AD:$AD)","v":0},null,null,null,null,null,null,null,null,null,null,null,null,null,null,null,null,null,"0880","RM"]
["Cemeteries/Crematoria",null,{"$f":"SUMIFS(Sheet1!S71_PPPYearAmount,Sheet1!S71_SA34cCode,$AC:$AC,Sheet1!S71_RepMaintCode,$AD:$AD)","v":48850},{"$f":"SUMIFS(Sheet1!S71_PPYearAmount,Sheet1!S71_SA34cCode,$AC:$AC,Sheet1!S71_RepMaintCode,$AD:$AD)","v":0},{"$f":"SUMIFS(Sheet1!S71_PYearAmount,Sheet1!S71_SA34cCode,$AC:$AC,Sheet1!S71_RepMaintCode,$AD:$AD)","v":0},{"$f":"SUMIFS(Sheet1!S71_OriginalBudAmnt,Sheet1!S71_SA34cCode,$AC:$AC,Sheet1!S71_RepMaintCode,$AD:$AD)","v":100000},{"$f":"SUMIFS(Sheet1!S71_AdjustmentBudAmnt,Sheet1!S71_SA34cCode,$AC:$AC,Sheet1!S71_RepMaintCode,$AD:$AD)","v":400000},{"$f":"SUMIFS(Sheet1!S71_AdjustmentBudAmnt,Sheet1!S71_SA34cCode,$AC:$AC,Sheet1!S71_RepMaintCode,$AD:$AD)","v":400000},{"$f":"SUMIFS(Sheet1!S71_ASBudgetAmount,Sheet1!S71_SA34cCode,$AC:$AC,Sheet1!S71_RepMaintCode,$AD:$AD)","v":800000},{"$f":"SUMIFS(Sheet1!S71_OY1BudgetAmount,Sheet1!S71_SA34cCode,$AC:$AC,Sheet1!S71_RepMaintCode,$AD:$AD)","v":810000},{"$f":"SUMIFS(Sheet1!S71_OY2BudgetAmount,Sheet1!S71_SA34cCode,$AC:$AC,Sheet1!S71_RepMaintCode,$AD:$AD)","v":820000},null,null,null,null,null,null,null,null,null,null,null,null,null,null,null,null,null,"0890","RM"]
["Police",null,{"$f":"SUMIFS(Sheet1!S71_PPPYearAmount,Sheet1!S71_SA34cCode,$AC:$AC,Sheet1!S71_RepMaintCode,$AD:$AD)","v":0},{"$f":"SUMIFS(Sheet1!S71_PPYearAmount,Sheet1!S71_SA34cCode,$AC:$AC,Sheet1!S71_RepMaintCode,$AD:$AD)","v":0},{"$f":"SUMIFS(Sheet1!S71_PYearAmount,Sheet1!S71_SA34cCode,$AC:$AC,Sheet1!S71_RepMaintCode,$AD:$AD)","v":0},{"$f":"SUMIFS(Sheet1!S71_OriginalBudAmnt,Sheet1!S71_SA34cCode,$AC:$AC,Sheet1!S71_RepMaintCode,$AD:$AD)","v":0},{"$f":"SUMIFS(Sheet1!S71_AdjustmentBudAmnt,Sheet1!S71_SA34cCode,$AC:$AC,Sheet1!S71_RepMaintCode,$AD:$AD)","v":0},{"$f":"SUMIFS(Sheet1!S71_AdjustmentBudAmnt,Sheet1!S71_SA34cCode,$AC:$AC,Sheet1!S71_RepMaintCode,$AD:$AD)","v":0},{"$f":"SUMIFS(Sheet1!S71_ASBudgetAmount,Sheet1!S71_SA34cCode,$AC:$AC,Sheet1!S71_RepMaintCode,$AD:$AD)","v":0},{"$f":"SUMIFS(Sheet1!S71_OY1BudgetAmount,Sheet1!S71_SA34cCode,$AC:$AC,Sheet1!S71_RepMaintCode,$AD:$AD)","v":0},{"$f":"SUMIFS(Sheet1!S71_OY2BudgetAmount,Sheet1!S71_SA34cCode,$AC:$AC,Sheet1!S71_RepMaintCode,$AD:$AD)","v":0},null,null,null,null,null,null,null,null,null,null,null,null,null,null,null,null,null,"0900","RM"]
["Parks",null,{"$f":"SUMIFS(Sheet1!S71_PPPYearAmount,Sheet1!S71_SA34cCode,$AC:$AC,Sheet1!S71_RepMaintCode,$AD:$AD)","v":0},{"$f":"SUMIFS(Sheet1!S71_PPYearAmount,Sheet1!S71_SA34cCode,$AC:$AC,Sheet1!S71_RepMaintCode,$AD:$AD)","v":0},{"$f":"SUMIFS(Sheet1!S71_PYearAmount,Sheet1!S71_SA34cCode,$AC:$AC,Sheet1!S71_RepMaintCode,$AD:$AD)","v":0},{"$f":"SUMIFS(Sheet1!S71_OriginalBudAmnt,Sheet1!S71_SA34cCode,$AC:$AC,Sheet1!S71_RepMaintCode,$AD:$AD)","v":0},{"$f":"SUMIFS(Sheet1!S71_AdjustmentBudAmnt,Sheet1!S71_SA34cCode,$AC:$AC,Sheet1!S71_RepMaintCode,$AD:$AD)","v":0},{"$f":"SUMIFS(Sheet1!S71_AdjustmentBudAmnt,Sheet1!S71_SA34cCode,$AC:$AC,Sheet1!S71_RepMaintCode,$AD:$AD)","v":0},{"$f":"SUMIFS(Sheet1!S71_ASBudgetAmount,Sheet1!S71_SA34cCode,$AC:$AC,Sheet1!S71_RepMaintCode,$AD:$AD)","v":0},{"$f":"SUMIFS(Sheet1!S71_OY1BudgetAmount,Sheet1!S71_SA34cCode,$AC:$AC,Sheet1!S71_RepMaintCode,$AD:$AD)","v":0},{"$f":"SUMIFS(Sheet1!S71_OY2BudgetAmount,Sheet1!S71_SA34cCode,$AC:$AC,Sheet1!S71_RepMaintCode,$AD:$AD)","v":0},null,null,null,null,null,null,null,null,null,null,null,null,null,null,null,null,null,"0910","RM"]
["Public Open Space",null,{"$f":"SUMIFS(Sheet1!S71_PPPYearAmount,Sheet1!S71_SA34cCode,$AC:$AC,Sheet1!S71_RepMaintCode,$AD:$AD)","v":0},{"$f":"SUMIFS(Sheet1!S71_PPYearAmount,Sheet1!S71_SA34cCode,$AC:$AC,Sheet1!S71_RepMaintCode,$AD:$AD)","v":0},{"$f":"SUMIFS(Sheet1!S71_PYearAmount,Sheet1!S71_SA34cCode,$AC:$AC,Sheet1!S71_RepMaintCode,$AD:$AD)","v":0},{"$f":"SUMIFS(Sheet1!S71_OriginalBudAmnt,Sheet1!S71_SA34cCode,$AC:$AC,Sheet1!S71_RepMaintCode,$AD:$AD)","v":0},{"$f":"SUMIFS(Sheet1!S71_AdjustmentBudAmnt,Sheet1!S71_SA34cCode,$AC:$AC,Sheet1!S71_RepMaintCode,$AD:$AD)","v":0},{"$f":"SUMIFS(Sheet1!S71_AdjustmentBudAmnt,Sheet1!S71_SA34cCode,$AC:$AC,Sheet1!S71_RepMaintCode,$AD:$AD)","v":0},{"$f":"SUMIFS(Sheet1!S71_ASBudgetAmount,Sheet1!S71_SA34cCode,$AC:$AC,Sheet1!S71_RepMaintCode,$AD:$AD)","v":0},{"$f":"SUMIFS(Sheet1!S71_OY1BudgetAmount,Sheet1!S71_SA34cCode,$AC:$AC,Sheet1!S71_RepMaintCode,$AD:$AD)","v":0},{"$f":"SUMIFS(Sheet1!S71_OY2BudgetAmount,Sheet1!S71_SA34cCode,$AC:$AC,Sheet1!S71_RepMaintCode,$AD:$AD)","v":0},null,null,null,null,null,null,null,null,null,null,null,null,null,null,null,null,null,"0920","RM"]
["Nature Reserves",null,{"$f":"SUMIFS(Sheet1!S71_PPPYearAmount,Sheet1!S71_SA34cCode,$AC:$AC,Sheet1!S71_RepMaintCode,$AD:$AD)","v":0},{"$f":"SUMIFS(Sheet1!S71_PPYearAmount,Sheet1!S71_SA34cCode,$AC:$AC,Sheet1!S71_RepMaintCode,$AD:$AD)","v":0},{"$f":"SUMIFS(Sheet1!S71_PYearAmount,Sheet1!S71_SA34cCode,$AC:$AC,Sheet1!S71_RepMaintCode,$AD:$AD)","v":0},{"$f":"SUMIFS(Sheet1!S71_OriginalBudAmnt,Sheet1!S71_SA34cCode,$AC:$AC,Sheet1!S71_RepMaintCode,$AD:$AD)","v":0},{"$f":"SUMIFS(Sheet1!S71_AdjustmentBudAmnt,Sheet1!S71_SA34cCode,$AC:$AC,Sheet1!S71_RepMaintCode,$AD:$AD)","v":0},{"$f":"SUMIFS(Sheet1!S71_AdjustmentBudAmnt,Sheet1!S71_SA34cCode,$AC:$AC,Sheet1!S71_RepMaintCode,$AD:$AD)","v":0},{"$f":"SUMIFS(Sheet1!S71_ASBudgetAmount,Sheet1!S71_SA34cCode,$AC:$AC,Sheet1!S71_RepMaintCode,$AD:$AD)","v":0},{"$f":"SUMIFS(Sheet1!S71_OY1BudgetAmount,Sheet1!S71_SA34cCode,$AC:$AC,Sheet1!S71_RepMaintCode,$AD:$AD)","v":0},{"$f":"SUMIFS(Sheet1!S71_OY2BudgetAmount,Sheet1!S71_SA34cCode,$AC:$AC,Sheet1!S71_RepMaintCode,$AD:$AD)","v":0},null,null,null,null,null,null,null,null,null,null,null,null,null,null,null,null,null,"0930","RM"]
["Public Ablution Facilities",null,{"$f":"SUMIFS(Sheet1!S71_PPPYearAmount,Sheet1!S71_SA34cCode,$AC:$AC,Sheet1!S71_RepMaintCode,$AD:$AD)","v":0},{"$f":"SUMIFS(Sheet1!S71_PPYearAmount,Sheet1!S71_SA34cCode,$AC:$AC,Sheet1!S71_RepMaintCode,$AD:$AD)","v":0},{"$f":"SUMIFS(Sheet1!S71_PYearAmount,Sheet1!S71_SA34cCode,$AC:$AC,Sheet1!S71_RepMaintCode,$AD:$AD)","v":0},{"$f":"SUMIFS(Sheet1!S71_OriginalBudAmnt,Sheet1!S71_SA34cCode,$AC:$AC,Sheet1!S71_RepMaintCode,$AD:$AD)","v":0},{"$f":"SUMIFS(Sheet1!S71_AdjustmentBudAmnt,Sheet1!S71_SA34cCode,$AC:$AC,Sheet1!S71_RepMaintCode,$AD:$AD)","v":0},{"$f":"SUMIFS(Sheet1!S71_AdjustmentBudAmnt,Sheet1!S71_SA34cCode,$AC:$AC,Sheet1!S71_RepMaintCode,$AD:$AD)","v":0},{"$f":"SUMIFS(Sheet1!S71_ASBudgetAmount,Sheet1!S71_SA34cCode,$AC:$AC,Sheet1!S71_RepMaintCode,$AD:$AD)","v":0},{"$f":"SUMIFS(Sheet1!S71_OY1BudgetAmount,Sheet1!S71_SA34cCode,$AC:$AC,Sheet1!S71_RepMaintCode,$AD:$AD)","v":0},{"$f":"SUMIFS(Sheet1!S71_OY2BudgetAmount,Sheet1!S71_SA34cCode,$AC:$AC,Sheet1!S71_RepMaintCode,$AD:$AD)","v":0},null,null,null,null,null,null,null,null,null,null,null,null,null,null,null,null,null,"0940","RM"]
["Markets",null,{"$f":"SUMIFS(Sheet1!S71_PPPYearAmount,Sheet1!S71_SA34cCode,$AC:$AC,Sheet1!S71_RepMaintCode,$AD:$AD)","v":0},{"$f":"SUMIFS(Sheet1!S71_PPYearAmount,Sheet1!S71_SA34cCode,$AC:$AC,Sheet1!S71_RepMaintCode,$AD:$AD)","v":0},{"$f":"SUMIFS(Sheet1!S71_PYearAmount,Sheet1!S71_SA34cCode,$AC:$AC,Sheet1!S71_RepMaintCode,$AD:$AD)","v":0},{"$f":"SUMIFS(Sheet1!S71_OriginalBudAmnt,Sheet1!S71_SA34cCode,$AC:$AC,Sheet1!S71_RepMaintCode,$AD:$AD)","v":0},{"$f":"SUMIFS(Sheet1!S71_AdjustmentBudAmnt,Sheet1!S71_SA34cCode,$AC:$AC,Sheet1!S71_RepMaintCode,$AD:$AD)","v":0},{"$f":"SUMIFS(Sheet1!S71_AdjustmentBudAmnt,Sheet1!S71_SA34cCode,$AC:$AC,Sheet1!S71_RepMaintCode,$AD:$AD)","v":0},{"$f":"SUMIFS(Sheet1!S71_ASBudgetAmount,Sheet1!S71_SA34cCode,$AC:$AC,Sheet1!S71_RepMaintCode,$AD:$AD)","v":0},{"$f":"SUMIFS(Sheet1!S71_OY1BudgetAmount,Sheet1!S71_SA34cCode,$AC:$AC,Sheet1!S71_RepMaintCode,$AD:$AD)","v":0},{"$f":"SUMIFS(Sheet1!S71_OY2BudgetAmount,Sheet1!S71_SA34cCode,$AC:$AC,Sheet1!S71_RepMaintCode,$AD:$AD)","v":0},null,null,null,null,null,null,null,null,null,null,null,null,null,null,null,null,null,"0950","RM"]
["Stalls",null,{"$f":"SUMIFS(Sheet1!S71_PPPYearAmount,Sheet1!S71_SA34cCode,$AC:$AC,Sheet1!S71_RepMaintCode,$AD:$AD)","v":0},{"$f":"SUMIFS(Sheet1!S71_PPYearAmount,Sheet1!S71_SA34cCode,$AC:$AC,Sheet1!S71_RepMaintCode,$AD:$AD)","v":0},{"$f":"SUMIFS(Sheet1!S71_PYearAmount,Sheet1!S71_SA34cCode,$AC:$AC,Sheet1!S71_RepMaintCode,$AD:$AD)","v":0},{"$f":"SUMIFS(Sheet1!S71_OriginalBudAmnt,Sheet1!S71_SA34cCode,$AC:$AC,Sheet1!S71_RepMaintCode,$AD:$AD)","v":0},{"$f":"SUMIFS(Sheet1!S71_AdjustmentBudAmnt,Sheet1!S71_SA34cCode,$AC:$AC,Sheet1!S71_RepMaintCode,$AD:$AD)","v":0},{"$f":"SUMIFS(Sheet1!S71_AdjustmentBudAmnt,Sheet1!S71_SA34cCode,$AC:$AC,Sheet1!S71_RepMaintCode,$AD:$AD)","v":0},{"$f":"SUMIFS(Sheet1!S71_ASBudgetAmount,Sheet1!S71_SA34cCode,$AC:$AC,Sheet1!S71_RepMaintCode,$AD:$AD)","v":0},{"$f":"SUMIFS(Sheet1!S71_OY1BudgetAmount,Sheet1!S71_SA34cCode,$AC:$AC,Sheet1!S71_RepMaintCode,$AD:$AD)","v":0},{"$f":"SUMIFS(Sheet1!S71_OY2BudgetAmount,Sheet1!S71_SA34cCode,$AC:$AC,Sheet1!S71_RepMaintCode,$AD:$AD)","v":0},null,null,null,null,null,null,null,null,null,null,null,null,null,null,null,null,null,"0960","RM"]
["Abattoirs",null,{"$f":"SUMIFS(Sheet1!S71_PPPYearAmount,Sheet1!S71_SA34cCode,$AC:$AC,Sheet1!S71_RepMaintCode,$AD:$AD)","v":0},{"$f":"SUMIFS(Sheet1!S71_PPYearAmount,Sheet1!S71_SA34cCode,$AC:$AC,Sheet1!S71_RepMaintCode,$AD:$AD)","v":0},{"$f":"SUMIFS(Sheet1!S71_PYearAmount,Sheet1!S71_SA34cCode,$AC:$AC,Sheet1!S71_RepMaintCode,$AD:$AD)","v":0},{"$f":"SUMIFS(Sheet1!S71_OriginalBudAmnt,Sheet1!S71_SA34cCode,$AC:$AC,Sheet1!S71_RepMaintCode,$AD:$AD)","v":0},{"$f":"SUMIFS(Sheet1!S71_AdjustmentBudAmnt,Sheet1!S71_SA34cCode,$AC:$AC,Sheet1!S71_RepMaintCode,$AD:$AD)","v":0},{"$f":"SUMIFS(Sheet1!S71_AdjustmentBudAmnt,Sheet1!S71_SA34cCode,$AC:$AC,Sheet1!S71_RepMaintCode,$AD:$AD)","v":0},{"$f":"SUMIFS(Sheet1!S71_ASBudgetAmount,Sheet1!S71_SA34cCode,$AC:$AC,Sheet1!S71_RepMaintCode,$AD:$AD)","v":0},{"$f":"SUMIFS(Sheet1!S71_OY1BudgetAmount,Sheet1!S71_SA34cCode,$AC:$AC,Sheet1!S71_RepMaintCode,$AD:$AD)","v":0},{"$f":"SUMIFS(Sheet1!S71_OY2BudgetAmount,Sheet1!S71_SA34cCode,$AC:$AC,Sheet1!S71_RepMaintCode,$AD:$AD)","v":0},null,null,null,null,null,null,null,null,null,null,null,null,null,null,null,null,null,"0970","RM"]
["Airports",null,{"$f":"SUMIFS(Sheet1!S71_PPPYearAmount,Sheet1!S71_SA34cCode,$AC:$AC,Sheet1!S71_RepMaintCode,$AD:$AD)","v":0},{"$f":"SUMIFS(Sheet1!S71_PPYearAmount,Sheet1!S71_SA34cCode,$AC:$AC,Sheet1!S71_RepMaintCode,$AD:$AD)","v":0},{"$f":"SUMIFS(Sheet1!S71_PYearAmount,Sheet1!S71_SA34cCode,$AC:$AC,Sheet1!S71_RepMaintCode,$AD:$AD)","v":0},{"$f":"SUMIFS(Sheet1!S71_OriginalBudAmnt,Sheet1!S71_SA34cCode,$AC:$AC,Sheet1!S71_RepMaintCode,$AD:$AD)","v":0},{"$f":"SUMIFS(Sheet1!S71_AdjustmentBudAmnt,Sheet1!S71_SA34cCode,$AC:$AC,Sheet1!S71_RepMaintCode,$AD:$AD)","v":0},{"$f":"SUMIFS(Sheet1!S71_AdjustmentBudAmnt,Sheet1!S71_SA34cCode,$AC:$AC,Sheet1!S71_RepMaintCode,$AD:$AD)","v":0},{"$f":"SUMIFS(Sheet1!S71_ASBudgetAmount,Sheet1!S71_SA34cCode,$AC:$AC,Sheet1!S71_RepMaintCode,$AD:$AD)","v":0},{"$f":"SUMIFS(Sheet1!S71_OY1BudgetAmount,Sheet1!S71_SA34cCode,$AC:$AC,Sheet1!S71_RepMaintCode,$AD:$AD)","v":0},{"$f":"SUMIFS(Sheet1!S71_OY2BudgetAmount,Sheet1!S71_SA34cCode,$AC:$AC,Sheet1!S71_RepMaintCode,$AD:$AD)","v":0},null,null,null,null,null,null,null,null,null,null,null,null,null,null,null,null,null,"0980","RM"]
["Taxi Ranks/Bus Terminals",null,{"$f":"SUMIFS(Sheet1!S71_PPPYearAmount,Sheet1!S71_SA34cCode,$AC:$AC,Sheet1!S71_RepMaintCode,$AD:$AD)","v":0},{"$f":"SUMIFS(Sheet1!S71_PPYearAmount,Sheet1!S71_SA34cCode,$AC:$AC,Sheet1!S71_RepMaintCode,$AD:$AD)","v":0},{"$f":"SUMIFS(Sheet1!S71_PYearAmount,Sheet1!S71_SA34cCode,$AC:$AC,Sheet1!S71_RepMaintCode,$AD:$AD)","v":0},{"$f":"SUMIFS(Sheet1!S71_OriginalBudAmnt,Sheet1!S71_SA34cCode,$AC:$AC,Sheet1!S71_RepMaintCode,$AD:$AD)","v":0},{"$f":"SUMIFS(Sheet1!S71_AdjustmentBudAmnt,Sheet1!S71_SA34cCode,$AC:$AC,Sheet1!S71_RepMaintCode,$AD:$AD)","v":0},{"$f":"SUMIFS(Sheet1!S71_AdjustmentBudAmnt,Sheet1!S71_SA34cCode,$AC:$AC,Sheet1!S71_RepMaintCode,$AD:$AD)","v":0},{"$f":"SUMIFS(Sheet1!S71_ASBudgetAmount,Sheet1!S71_SA34cCode,$AC:$AC,Sheet1!S71_RepMaintCode,$AD:$AD)","v":0},{"$f":"SUMIFS(Sheet1!S71_OY1BudgetAmount,Sheet1!S71_SA34cCode,$AC:$AC,Sheet1!S71_RepMaintCode,$AD:$AD)","v":0},{"$f":"SUMIFS(Sheet1!S71_OY2BudgetAmount,Sheet1!S71_SA34cCode,$AC:$AC,Sheet1!S71_RepMaintCode,$AD:$AD)","v":0},null,null,null,null,null,null,null,null,null,null,null,null,null,null,null,null,null,"0990","RM"]
["Capital Spares",null,{"$f":"SUMIFS(Sheet1!S71_PPPYearAmount,Sheet1!S71_SA34cCode,$AC:$AC,Sheet1!S71_RepMaintCode,$AD:$AD)","v":0},{"$f":"SUMIFS(Sheet1!S71_PPYearAmount,Sheet1!S71_SA34cCode,$AC:$AC,Sheet1!S71_RepMaintCode,$AD:$AD)","v":0},{"$f":"SUMIFS(Sheet1!S71_PYearAmount,Sheet1!S71_SA34cCode,$AC:$AC,Sheet1!S71_RepMaintCode,$AD:$AD)","v":0},{"$f":"SUMIFS(Sheet1!S71_OriginalBudAmnt,Sheet1!S71_SA34cCode,$AC:$AC,Sheet1!S71_RepMaintCode,$AD:$AD)","v":0},{"$f":"SUMIFS(Sheet1!S71_AdjustmentBudAmnt,Sheet1!S71_SA34cCode,$AC:$AC,Sheet1!S71_RepMaintCode,$AD:$AD)","v":0},{"$f":"SUMIFS(Sheet1!S71_AdjustmentBudAmnt,Sheet1!S71_SA34cCode,$AC:$AC,Sheet1!S71_RepMaintCode,$AD:$AD)","v":0},{"$f":"SUMIFS(Sheet1!S71_ASBudgetAmount,Sheet1!S71_SA34cCode,$AC:$AC,Sheet1!S71_RepMaintCode,$AD:$AD)","v":0},{"$f":"SUMIFS(Sheet1!S71_OY1BudgetAmount,Sheet1!S71_SA34cCode,$AC:$AC,Sheet1!S71_RepMaintCode,$AD:$AD)","v":0},{"$f":"SUMIFS(Sheet1!S71_OY2BudgetAmount,Sheet1!S71_SA34cCode,$AC:$AC,Sheet1!S71_RepMaintCode,$AD:$AD)","v":0},null,null,null,null,null,null,null,null,null,null,null,null,null,null,null,null,null,"1000","RM"]
["Sport and Recreation Facilities",null,{"$f":"SUM(C99:C101)","v":0},{"$f":"SUM(D99:D101)","v":0},0,0,0,0,0,0,0,null,null,null,null,null,null,null,null,null,null,null,null,null,null,null,null,null,null,"RM"]
["Indoor Facilities",null,{"$f":"SUMIFS(Sheet1!S71_PPPYearAmount,Sheet1!S71_SA34cCode,$AC:$AC,Sheet1!S71_RepMaintCode,$AD:$AD)","v":0},{"$f":"SUMIFS(Sheet1!S71_PPYearAmount,Sheet1!S71_SA34cCode,$AC:$AC,Sheet1!S71_RepMaintCode,$AD:$AD)","v":0},{"$f":"SUMIFS(Sheet1!S71_PYearAmount,Sheet1!S71_SA34cCode,$AC:$AC,Sheet1!S71_RepMaintCode,$AD:$AD)","v":0},{"$f":"SUMIFS(Sheet1!S71_OriginalBudAmnt,Sheet1!S71_SA34cCode,$AC:$AC,Sheet1!S71_RepMaintCode,$AD:$AD)","v":0},{"$f":"SUMIFS(Sheet1!S71_AdjustmentBudAmnt,Sheet1!S71_SA34cCode,$AC:$AC,Sheet1!S71_RepMaintCode,$AD:$AD)","v":0},{"$f":"SUMIFS(Sheet1!S71_AdjustmentBudAmnt,Sheet1!S71_SA34cCode,$AC:$AC,Sheet1!S71_RepMaintCode,$AD:$AD)","v":0},{"$f":"SUMIFS(Sheet1!S71_ASBudgetAmount,Sheet1!S71_SA34cCode,$AC:$AC,Sheet1!S71_RepMaintCode,$AD:$AD)","v":0},{"$f":"SUMIFS(Sheet1!S71_OY1BudgetAmount,Sheet1!S71_SA34cCode,$AC:$AC,Sheet1!S71_RepMaintCode,$AD:$AD)","v":0},{"$f":"SUMIFS(Sheet1!S71_OY2BudgetAmount,Sheet1!S71_SA34cCode,$AC:$AC,Sheet1!S71_RepMaintCode,$AD:$AD)","v":0},null,null,null,null,null,null,null,null,null,null,null,null,null,null,null,null,null,"1020","RM"]
["Outdoor Facilities",null,{"$f":"SUMIFS(Sheet1!S71_PPPYearAmount,Sheet1!S71_SA34cCode,$AC:$AC,Sheet1!S71_RepMaintCode,$AD:$AD)","v":0},{"$f":"SUMIFS(Sheet1!S71_PPYearAmount,Sheet1!S71_SA34cCode,$AC:$AC,Sheet1!S71_RepMaintCode,$AD:$AD)","v":0},{"$f":"SUMIFS(Sheet1!S71_PYearAmount,Sheet1!S71_SA34cCode,$AC:$AC,Sheet1!S71_RepMaintCode,$AD:$AD)","v":0},{"$f":"SUMIFS(Sheet1!S71_OriginalBudAmnt,Sheet1!S71_SA34cCode,$AC:$AC,Sheet1!S71_RepMaintCode,$AD:$AD)","v":0},{"$f":"SUMIFS(Sheet1!S71_AdjustmentBudAmnt,Sheet1!S71_SA34cCode,$AC:$AC,Sheet1!S71_RepMaintCode,$AD:$AD)","v":0},{"$f":"SUMIFS(Sheet1!S71_AdjustmentBudAmnt,Sheet1!S71_SA34cCode,$AC:$AC,Sheet1!S71_RepMaintCode,$AD:$AD)","v":0},{"$f":"SUMIFS(Sheet1!S71_ASBudgetAmount,Sheet1!S71_SA34cCode,$AC:$AC,Sheet1!S71_RepMaintCode,$AD:$AD)","v":0},{"$f":"SUMIFS(Sheet1!S71_OY1BudgetAmount,Sheet1!S71_SA34cCode,$AC:$AC,Sheet1!S71_RepMaintCode,$AD:$AD)","v":0},{"$f":"SUMIFS(Sheet1!S71_OY2BudgetAmount,Sheet1!S71_SA34cCode,$AC:$AC,Sheet1!S71_RepMaintCode,$AD:$AD)","v":0},null,null,null,null,null,null,null,null,null,null,null,null,null,null,null,null,null,"1030","RM"]
["Capital Spares",null,{"$f":"SUMIFS(Sheet1!S71_PPPYearAmount,Sheet1!S71_SA34cCode,$AC:$AC,Sheet1!S71_RepMaintCode,$AD:$AD)","v":0},{"$f":"SUMIFS(Sheet1!S71_PPYearAmount,Sheet1!S71_SA34cCode,$AC:$AC,Sheet1!S71_RepMaintCode,$AD:$AD)","v":0},{"$f":"SUMIFS(Sheet1!S71_PYearAmount,Sheet1!S71_SA34cCode,$AC:$AC,Sheet1!S71_RepMaintCode,$AD:$AD)","v":0},{"$f":"SUMIFS(Sheet1!S71_OriginalBudAmnt,Sheet1!S71_SA34cCode,$AC:$AC,Sheet1!S71_RepMaintCode,$AD:$AD)","v":0},{"$f":"SUMIFS(Sheet1!S71_AdjustmentBudAmnt,Sheet1!S71_SA34cCode,$AC:$AC,Sheet1!S71_RepMaintCode,$AD:$AD)","v":0},{"$f":"SUMIFS(Sheet1!S71_AdjustmentBudAmnt,Sheet1!S71_SA34cCode,$AC:$AC,Sheet1!S71_RepMaintCode,$AD:$AD)","v":0},{"$f":"SUMIFS(Sheet1!S71_ASBudgetAmount,Sheet1!S71_SA34cCode,$AC:$AC,Sheet1!S71_RepMaintCode,$AD:$AD)","v":0},{"$f":"SUMIFS(Sheet1!S71_OY1BudgetAmount,Sheet1!S71_SA34cCode,$AC:$AC,Sheet1!S71_RepMaintCode,$AD:$AD)","v":0},{"$f":"SUMIFS(Sheet1!S71_OY2BudgetAmount,Sheet1!S71_SA34cCode,$AC:$AC,Sheet1!S71_RepMaintCode,$AD:$AD)","v":0},null,null,null,null,null,null,null,null,null,null,null,null,null,null,null,null,null,"1040","RM"]
[null,null,{"$f":"SUMIFS(Sheet1!S71_PPPYearAmount,Sheet1!S71_SA34cCode,$AC:$AC,Sheet1!S71_RepMaintCode,$AD:$AD)","v":0},{"$f":"SUMIFS(Sheet1!S71_PPYearAmount,Sheet1!S71_SA34cCode,$AC:$AC,Sheet1!S71_RepMaintCode,$AD:$AD)","v":0},{"$f":"SUMIFS(Sheet1!S71_PYearAmount,Sheet1!S71_SA34cCode,$AC:$AC,Sheet1!S71_RepMaintCode,$AD:$AD)","v":0},{"$f":"SUMIFS(Sheet1!S71_OriginalBudAmnt,Sheet1!S71_SA34cCode,$AC:$AC,Sheet1!S71_RepMaintCode,$AD:$AD)","v":0},{"$f":"SUMIFS(Sheet1!S71_AdjustmentBudAmnt,Sheet1!S71_SA34cCode,$AC:$AC,Sheet1!S71_RepMaintCode,$AD:$AD)","v":0},{"$f":"SUMIFS(Sheet1!S71_AdjustmentBudAmnt,Sheet1!S71_SA34cCode,$AC:$AC,Sheet1!S71_RepMaintCode,$AD:$AD)","v":0},{"$f":"SUMIFS(Sheet1!S71_ASBudgetAmount,Sheet1!S71_SA34cCode,$AC:$AC,Sheet1!S71_RepMaintCode,$AD:$AD)","v":0},{"$f":"SUMIFS(Sheet1!S71_OY1BudgetAmount,Sheet1!S71_SA34cCode,$AC:$AC,Sheet1!S71_RepMaintCode,$AD:$AD)","v":0},{"$f":"SUMIFS(Sheet1!S71_OY2BudgetAmount,Sheet1!S71_SA34cCode,$AC:$AC,Sheet1!S71_RepMaintCode,$AD:$AD)","v":0},null,null,null,null,null,null,null,null,null,null,null,null,null,null,null,null,null,null,"RM"]
["Heritage assets",null,{"$f":"SUM(C104:C108)","v":0},{"$f":"SUM(D104:D108)","v":0},0,0,0,0,0,0,0,null,null,null,null,null,null,null,null,null,null,null,null,null,null,null,null,null,null,"RM"]
["Monuments",null,{"$f":"SUMIFS(Sheet1!S71_PPPYearAmount,Sheet1!S71_SA34cCode,$AC:$AC,Sheet1!S71_RepMaintCode,$AD:$AD)","v":0},{"$f":"SUMIFS(Sheet1!S71_PPYearAmount,Sheet1!S71_SA34cCode,$AC:$AC,Sheet1!S71_RepMaintCode,$AD:$AD)","v":0},{"$f":"SUMIFS(Sheet1!S71_PYearAmount,Sheet1!S71_SA34cCode,$AC:$AC,Sheet1!S71_RepMaintCode,$AD:$AD)","v":0},{"$f":"SUMIFS(Sheet1!S71_OriginalBudAmnt,Sheet1!S71_SA34cCode,$AC:$AC,Sheet1!S71_RepMaintCode,$AD:$AD)","v":0},{"$f":"SUMIFS(Sheet1!S71_AdjustmentBudAmnt,Sheet1!S71_SA34cCode,$AC:$AC,Sheet1!S71_RepMaintCode,$AD:$AD)","v":0},{"$f":"SUMIFS(Sheet1!S71_AdjustmentBudAmnt,Sheet1!S71_SA34cCode,$AC:$AC,Sheet1!S71_RepMaintCode,$AD:$AD)","v":0},{"$f":"SUMIFS(Sheet1!S71_ASBudgetAmount,Sheet1!S71_SA34cCode,$AC:$AC,Sheet1!S71_RepMaintCode,$AD:$AD)","v":0},{"$f":"SUMIFS(Sheet1!S71_OY1BudgetAmount,Sheet1!S71_SA34cCode,$AC:$AC,Sheet1!S71_RepMaintCode,$AD:$AD)","v":0},{"$f":"SUMIFS(Sheet1!S71_OY2BudgetAmount,Sheet1!S71_SA34cCode,$AC:$AC,Sheet1!S71_RepMaintCode,$AD:$AD)","v":0},null,null,null,null,null,null,null,null,null,null,null,null,null,null,null,null,null,"1060","RM"]
["Historic Buildings",null,{"$f":"SUMIFS(Sheet1!S71_PPPYearAmount,Sheet1!S71_SA34cCode,$AC:$AC,Sheet1!S71_RepMaintCode,$AD:$AD)","v":0},{"$f":"SUMIFS(Sheet1!S71_PPYearAmount,Sheet1!S71_SA34cCode,$AC:$AC,Sheet1!S71_RepMaintCode,$AD:$AD)","v":0},{"$f":"SUMIFS(Sheet1!S71_PYearAmount,Sheet1!S71_SA34cCode,$AC:$AC,Sheet1!S71_RepMaintCode,$AD:$AD)","v":0},{"$f":"SUMIFS(Sheet1!S71_OriginalBudAmnt,Sheet1!S71_SA34cCode,$AC:$AC,Sheet1!S71_RepMaintCode,$AD:$AD)","v":0},{"$f":"SUMIFS(Sheet1!S71_AdjustmentBudAmnt,Sheet1!S71_SA34cCode,$AC:$AC,Sheet1!S71_RepMaintCode,$AD:$AD)","v":0},{"$f":"SUMIFS(Sheet1!S71_AdjustmentBudAmnt,Sheet1!S71_SA34cCode,$AC:$AC,Sheet1!S71_RepMaintCode,$AD:$AD)","v":0},{"$f":"SUMIFS(Sheet1!S71_ASBudgetAmount,Sheet1!S71_SA34cCode,$AC:$AC,Sheet1!S71_RepMaintCode,$AD:$AD)","v":0},{"$f":"SUMIFS(Sheet1!S71_OY1BudgetAmount,Sheet1!S71_SA34cCode,$AC:$AC,Sheet1!S71_RepMaintCode,$AD:$AD)","v":0},{"$f":"SUMIFS(Sheet1!S71_OY2BudgetAmount,Sheet1!S71_SA34cCode,$AC:$AC,Sheet1!S71_RepMaintCode,$AD:$AD)","v":0},null,null,null,null,null,null,null,null,null,null,null,null,null,null,null,null,null,"1070","RM"]
["Works of Art",null,{"$f":"SUMIFS(Sheet1!S71_PPPYearAmount,Sheet1!S71_SA34cCode,$AC:$AC,Sheet1!S71_RepMaintCode,$AD:$AD)","v":0},{"$f":"SUMIFS(Sheet1!S71_PPYearAmount,Sheet1!S71_SA34cCode,$AC:$AC,Sheet1!S71_RepMaintCode,$AD:$AD)","v":0},{"$f":"SUMIFS(Sheet1!S71_PYearAmount,Sheet1!S71_SA34cCode,$AC:$AC,Sheet1!S71_RepMaintCode,$AD:$AD)","v":0},{"$f":"SUMIFS(Sheet1!S71_OriginalBudAmnt,Sheet1!S71_SA34cCode,$AC:$AC,Sheet1!S71_RepMaintCode,$AD:$AD)","v":0},{"$f":"SUMIFS(Sheet1!S71_AdjustmentBudAmnt,Sheet1!S71_SA34cCode,$AC:$AC,Sheet1!S71_RepMaintCode,$AD:$AD)","v":0},{"$f":"SUMIFS(Sheet1!S71_AdjustmentBudAmnt,Sheet1!S71_SA34cCode,$AC:$AC,Sheet1!S71_RepMaintCode,$AD:$AD)","v":0},{"$f":"SUMIFS(Sheet1!S71_ASBudgetAmount,Sheet1!S71_SA34cCode,$AC:$AC,Sheet1!S71_RepMaintCode,$AD:$AD)","v":0},{"$f":"SUMIFS(Sheet1!S71_OY1BudgetAmount,Sheet1!S71_SA34cCode,$AC:$AC,Sheet1!S71_RepMaintCode,$AD:$AD)","v":0},{"$f":"SUMIFS(Sheet1!S71_OY2BudgetAmount,Sheet1!S71_SA34cCode,$AC:$AC,Sheet1!S71_RepMaintCode,$AD:$AD)","v":0},null,null,null,null,null,null,null,null,null,null,null,null,null,null,null,null,null,"1080","RM"]
["Conservation Areas",null,{"$f":"SUMIFS(Sheet1!S71_PPPYearAmount,Sheet1!S71_SA34cCode,$AC:$AC,Sheet1!S71_RepMaintCode,$AD:$AD)","v":0},{"$f":"SUMIFS(Sheet1!S71_PPYearAmount,Sheet1!S71_SA34cCode,$AC:$AC,Sheet1!S71_RepMaintCode,$AD:$AD)","v":0},{"$f":"SUMIFS(Sheet1!S71_PYearAmount,Sheet1!S71_SA34cCode,$AC:$AC,Sheet1!S71_RepMaintCode,$AD:$AD)","v":0},{"$f":"SUMIFS(Sheet1!S71_OriginalBudAmnt,Sheet1!S71_SA34cCode,$AC:$AC,Sheet1!S71_RepMaintCode,$AD:$AD)","v":0},{"$f":"SUMIFS(Sheet1!S71_AdjustmentBudAmnt,Sheet1!S71_SA34cCode,$AC:$AC,Sheet1!S71_RepMaintCode,$AD:$AD)","v":0},{"$f":"SUMIFS(Sheet1!S71_AdjustmentBudAmnt,Sheet1!S71_SA34cCode,$AC:$AC,Sheet1!S71_RepMaintCode,$AD:$AD)","v":0},{"$f":"SUMIFS(Sheet1!S71_ASBudgetAmount,Sheet1!S71_SA34cCode,$AC:$AC,Sheet1!S71_RepMaintCode,$AD:$AD)","v":0},{"$f":"SUMIFS(Sheet1!S71_OY1BudgetAmount,Sheet1!S71_SA34cCode,$AC:$AC,Sheet1!S71_RepMaintCode,$AD:$AD)","v":0},{"$f":"SUMIFS(Sheet1!S71_OY2BudgetAmount,Sheet1!S71_SA34cCode,$AC:$AC,Sheet1!S71_RepMaintCode,$AD:$AD)","v":0},null,null,null,null,null,null,null,null,null,null,null,null,null,null,null,null,null,"1090","RM"]
["Other Heritage",null,{"$f":"SUMIFS(Sheet1!S71_PPPYearAmount,Sheet1!S71_SA34cCode,$AC:$AC,Sheet1!S71_RepMaintCode,$AD:$AD)","v":0},{"$f":"SUMIFS(Sheet1!S71_PPYearAmount,Sheet1!S71_SA34cCode,$AC:$AC,Sheet1!S71_RepMaintCode,$AD:$AD)","v":0},{"$f":"SUMIFS(Sheet1!S71_PYearAmount,Sheet1!S71_SA34cCode,$AC:$AC,Sheet1!S71_RepMaintCode,$AD:$AD)","v":0},{"$f":"SUMIFS(Sheet1!S71_OriginalBudAmnt,Sheet1!S71_SA34cCode,$AC:$AC,Sheet1!S71_RepMaintCode,$AD:$AD)","v":0},{"$f":"SUMIFS(Sheet1!S71_AdjustmentBudAmnt,Sheet1!S71_SA34cCode,$AC:$AC,Sheet1!S71_RepMaintCode,$AD:$AD)","v":0},{"$f":"SUMIFS(Sheet1!S71_AdjustmentBudAmnt,Sheet1!S71_SA34cCode,$AC:$AC,Sheet1!S71_RepMaintCode,$AD:$AD)","v":0},{"$f":"SUMIFS(Sheet1!S71_ASBudgetAmount,Sheet1!S71_SA34cCode,$AC:$AC,Sheet1!S71_RepMaintCode,$AD:$AD)","v":0},{"$f":"SUMIFS(Sheet1!S71_OY1BudgetAmount,Sheet1!S71_SA34cCode,$AC:$AC,Sheet1!S71_RepMaintCode,$AD:$AD)","v":0},{"$f":"SUMIFS(Sheet1!S71_OY2BudgetAmount,Sheet1!S71_SA34cCode,$AC:$AC,Sheet1!S71_RepMaintCode,$AD:$AD)","v":0},null,null,null,null,null,null,null,null,null,null,null,null,null,null,null,null,null,"1100","RM"]
[null,null,null,null,null,null,null,null,null,null,null,null,null,null,null,null,null,null,null,null,null,null,null,null,null,null,null,null,null,"RM"]
["Investment properties",null,{"$f":"+C111+C114","v":0},{"$f":"+D111+D114","v":0},0,0,0,0,0,0,0,null,null,null,null,null,null,null,null,null,null,null,null,null,null,null,null,null,null,"RM"]
["Revenue Generating",null,{"$f":"SUM(C112:C113)","v":0},0,0,0,0,0,0,0,0,null,null,null,null,null,null,null,null,null,null,null,null,null,null,null,null,null,null,"RM"]
["Improved Property",null,{"$f":"SUMIFS(Sheet1!S71_PPPYearAmount,Sheet1!S71_SA34cCode,$AC:$AC,Sheet1!S71_RepMaintCode,$AD:$AD)","v":0},{"$f":"SUMIFS(Sheet1!S71_PPYearAmount,Sheet1!S71_SA34cCode,$AC:$AC,Sheet1!S71_RepMaintCode,$AD:$AD)","v":0},{"$f":"SUMIFS(Sheet1!S71_PYearAmount,Sheet1!S71_SA34cCode,$AC:$AC,Sheet1!S71_RepMaintCode,$AD:$AD)","v":0},{"$f":"SUMIFS(Sheet1!S71_OriginalBudAmnt,Sheet1!S71_SA34cCode,$AC:$AC,Sheet1!S71_RepMaintCode,$AD:$AD)","v":0},{"$f":"SUMIFS(Sheet1!S71_AdjustmentBudAmnt,Sheet1!S71_SA34cCode,$AC:$AC,Sheet1!S71_RepMaintCode,$AD:$AD)","v":0},{"$f":"SUMIFS(Sheet1!S71_AdjustmentBudAmnt,Sheet1!S71_SA34cCode,$AC:$AC,Sheet1!S71_RepMaintCode,$AD:$AD)","v":0},{"$f":"SUMIFS(Sheet1!S71_ASBudgetAmount,Sheet1!S71_SA34cCode,$AC:$AC,Sheet1!S71_RepMaintCode,$AD:$AD)","v":0},{"$f":"SUMIFS(Sheet1!S71_OY1BudgetAmount,Sheet1!S71_SA34cCode,$AC:$AC,Sheet1!S71_RepMaintCode,$AD:$AD)","v":0},{"$f":"SUMIFS(Sheet1!S71_OY2BudgetAmount,Sheet1!S71_SA34cCode,$AC:$AC,Sheet1!S71_RepMaintCode,$AD:$AD)","v":0},null,null,null,null,null,null,null,null,null,null,null,null,null,null,null,null,null,"1130","RM"]
["Unimproved Property",null,{"$f":"SUMIFS(Sheet1!S71_PPPYearAmount,Sheet1!S71_SA34cCode,$AC:$AC,Sheet1!S71_RepMaintCode,$AD:$AD)","v":0},{"$f":"SUMIFS(Sheet1!S71_PPYearAmount,Sheet1!S71_SA34cCode,$AC:$AC,Sheet1!S71_RepMaintCode,$AD:$AD)","v":0},{"$f":"SUMIFS(Sheet1!S71_PYearAmount,Sheet1!S71_SA34cCode,$AC:$AC,Sheet1!S71_RepMaintCode,$AD:$AD)","v":0},{"$f":"SUMIFS(Sheet1!S71_OriginalBudAmnt,Sheet1!S71_SA34cCode,$AC:$AC,Sheet1!S71_RepMaintCode,$AD:$AD)","v":0},{"$f":"SUMIFS(Sheet1!S71_AdjustmentBudAmnt,Sheet1!S71_SA34cCode,$AC:$AC,Sheet1!S71_RepMaintCode,$AD:$AD)","v":0},{"$f":"SUMIFS(Sheet1!S71_AdjustmentBudAmnt,Sheet1!S71_SA34cCode,$AC:$AC,Sheet1!S71_RepMaintCode,$AD:$AD)","v":0},{"$f":"SUMIFS(Sheet1!S71_ASBudgetAmount,Sheet1!S71_SA34cCode,$AC:$AC,Sheet1!S71_RepMaintCode,$AD:$AD)","v":0},{"$f":"SUMIFS(Sheet1!S71_OY1BudgetAmount,Sheet1!S71_SA34cCode,$AC:$AC,Sheet1!S71_RepMaintCode,$AD:$AD)","v":0},{"$f":"SUMIFS(Sheet1!S71_OY2BudgetAmount,Sheet1!S71_SA34cCode,$AC:$AC,Sheet1!S71_RepMaintCode,$AD:$AD)","v":0},null,null,null,null,null,null,null,null,null,null,null,null,null,null,null,null,null,"1140","RM"]
["Non-revenue Generating",null,{"$f":"SUM(C115:C116)","v":0},{"$f":"SUM(D115:D116)","v":0},0,0,0,0,0,0,0,null,null,null,null,null,null,null,null,null,null,null,null,null,null,null,null,null,null,"RM"]
["Improved Property",null,{"$f":"SUMIFS(Sheet1!S71_PPPYearAmount,Sheet1!S71_SA34cCode,$AC:$AC,Sheet1!S71_RepMaintCode,$AD:$AD)","v":0},{"$f":"SUMIFS(Sheet1!S71_PPYearAmount,Sheet1!S71_SA34cCode,$AC:$AC,Sheet1!S71_RepMaintCode,$AD:$AD)","v":0},{"$f":"SUMIFS(Sheet1!S71_PYearAmount,Sheet1!S71_SA34cCode,$AC:$AC,Sheet1!S71_RepMaintCode,$AD:$AD)","v":0},{"$f":"SUMIFS(Sheet1!S71_OriginalBudAmnt,Sheet1!S71_SA34cCode,$AC:$AC,Sheet1!S71_RepMaintCode,$AD:$AD)","v":0},{"$f":"SUMIFS(Sheet1!S71_AdjustmentBudAmnt,Sheet1!S71_SA34cCode,$AC:$AC,Sheet1!S71_RepMaintCode,$AD:$AD)","v":0},{"$f":"SUMIFS(Sheet1!S71_AdjustmentBudAmnt,Sheet1!S71_SA34cCode,$AC:$AC,Sheet1!S71_RepMaintCode,$AD:$AD)","v":0},{"$f":"SUMIFS(Sheet1!S71_ASBudgetAmount,Sheet1!S71_SA34cCode,$AC:$AC,Sheet1!S71_RepMaintCode,$AD:$AD)","v":0},{"$f":"SUMIFS(Sheet1!S71_OY1BudgetAmount,Sheet1!S71_SA34cCode,$AC:$AC,Sheet1!S71_RepMaintCode,$AD:$AD)","v":0},{"$f":"SUMIFS(Sheet1!S71_OY2BudgetAmount,Sheet1!S71_SA34cCode,$AC:$AC,Sheet1!S71_RepMaintCode,$AD:$AD)","v":0},null,null,null,null,null,null,null,null,null,null,null,null,null,null,null,null,null,"1160","RM"]
["Unimproved Property",null,{"$f":"SUMIFS(Sheet1!S71_PPPYearAmount,Sheet1!S71_SA34cCode,$AC:$AC,Sheet1!S71_RepMaintCode,$AD:$AD)","v":0},{"$f":"SUMIFS(Sheet1!S71_PPYearAmount,Sheet1!S71_SA34cCode,$AC:$AC,Sheet1!S71_RepMaintCode,$AD:$AD)","v":0},{"$f":"SUMIFS(Sheet1!S71_PYearAmount,Sheet1!S71_SA34cCode,$AC:$AC,Sheet1!S71_RepMaintCode,$AD:$AD)","v":0},{"$f":"SUMIFS(Sheet1!S71_OriginalBudAmnt,Sheet1!S71_SA34cCode,$AC:$AC,Sheet1!S71_RepMaintCode,$AD:$AD)","v":0},{"$f":"SUMIFS(Sheet1!S71_AdjustmentBudAmnt,Sheet1!S71_SA34cCode,$AC:$AC,Sheet1!S71_RepMaintCode,$AD:$AD)","v":0},{"$f":"SUMIFS(Sheet1!S71_AdjustmentBudAmnt,Sheet1!S71_SA34cCode,$AC:$AC,Sheet1!S71_RepMaintCode,$AD:$AD)","v":0},{"$f":"SUMIFS(Sheet1!S71_ASBudgetAmount,Sheet1!S71_SA34cCode,$AC:$AC,Sheet1!S71_RepMaintCode,$AD:$AD)","v":0},{"$f":"SUMIFS(Sheet1!S71_OY1BudgetAmount,Sheet1!S71_SA34cCode,$AC:$AC,Sheet1!S71_RepMaintCode,$AD:$AD)","v":0},{"$f":"SUMIFS(Sheet1!S71_OY2BudgetAmount,Sheet1!S71_SA34cCode,$AC:$AC,Sheet1!S71_RepMaintCode,$AD:$AD)","v":0},null,null,null,null,null,null,null,null,null,null,null,null,null,null,null,null,null,"1170","RM"]
[null,null,null,null,null,null,null,null,null,null,null,null,null,null,null,null,null,null,null,null,null,null,null,null,null,null,null,null,null,"RM"]
["Other assets",null,{"$f":"+C119+C131","v":425858},{"$f":"+D119+D131","v":247284},1137471,2000000,2000000,2000000,5000000,5200000,5300000,null,null,null,null,null,null,null,null,null,null,null,null,null,null,null,null,null,null,"RM"]
["Operational Buildings",null,{"$f":"SUM(C120:C130)","v":425858},{"$f":"SUM(D120:D130)","v":247284},1137471,2000000,2000000,2000000,5000000,5200000,5300000,null,null,null,null,null,null,null,null,null,null,null,null,null,null,null,null,null,null,"RM"]
["Municipal Offices",null,{"$f":"SUMIFS(Sheet1!S71_PPPYearAmount,Sheet1!S71_SA34cCode,$AC:$AC,Sheet1!S71_RepMaintCode,$AD:$AD)","v":425858},{"$f":"SUMIFS(Sheet1!S71_PPYearAmount,Sheet1!S71_SA34cCode,$AC:$AC,Sheet1!S71_RepMaintCode,$AD:$AD)","v":247284},{"$f":"SUMIFS(Sheet1!S71_PYearAmount,Sheet1!S71_SA34cCode,$AC:$AC,Sheet1!S71_RepMaintCode,$AD:$AD)","v":1137471},{"$f":"SUMIFS(Sheet1!S71_OriginalBudAmnt,Sheet1!S71_SA34cCode,$AC:$AC,Sheet1!S71_RepMaintCode,$AD:$AD)","v":2000000},{"$f":"SUMIFS(Sheet1!S71_AdjustmentBudAmnt,Sheet1!S71_SA34cCode,$AC:$AC,Sheet1!S71_RepMaintCode,$AD:$AD)","v":2000000},{"$f":"SUMIFS(Sheet1!S71_AdjustmentBudAmnt,Sheet1!S71_SA34cCode,$AC:$AC,Sheet1!S71_RepMaintCode,$AD:$AD)","v":2000000},{"$f":"SUMIFS(Sheet1!S71_ASBudgetAmount,Sheet1!S71_SA34cCode,$AC:$AC,Sheet1!S71_RepMaintCode,$AD:$AD)","v":5000000},{"$f":"SUMIFS(Sheet1!S71_OY1BudgetAmount,Sheet1!S71_SA34cCode,$AC:$AC,Sheet1!S71_RepMaintCode,$AD:$AD)","v":5200000},{"$f":"SUMIFS(Sheet1!S71_OY2BudgetAmount,Sheet1!S71_SA34cCode,$AC:$AC,Sheet1!S71_RepMaintCode,$AD:$AD)","v":5300000},null,null,null,null,null,null,null,null,null,null,null,null,null,null,null,null,null,"1200","RM"]
["Pay/Enquiry Points",null,{"$f":"SUMIFS(Sheet1!S71_PPPYearAmount,Sheet1!S71_SA34cCode,$AC:$AC,Sheet1!S71_RepMaintCode,$AD:$AD)","v":0},{"$f":"SUMIFS(Sheet1!S71_PPYearAmount,Sheet1!S71_SA34cCode,$AC:$AC,Sheet1!S71_RepMaintCode,$AD:$AD)","v":0},{"$f":"SUMIFS(Sheet1!S71_PYearAmount,Sheet1!S71_SA34cCode,$AC:$AC,Sheet1!S71_RepMaintCode,$AD:$AD)","v":0},{"$f":"SUMIFS(Sheet1!S71_OriginalBudAmnt,Sheet1!S71_SA34cCode,$AC:$AC,Sheet1!S71_RepMaintCode,$AD:$AD)","v":0},{"$f":"SUMIFS(Sheet1!S71_AdjustmentBudAmnt,Sheet1!S71_SA34cCode,$AC:$AC,Sheet1!S71_RepMaintCode,$AD:$AD)","v":0},{"$f":"SUMIFS(Sheet1!S71_AdjustmentBudAmnt,Sheet1!S71_SA34cCode,$AC:$AC,Sheet1!S71_RepMaintCode,$AD:$AD)","v":0},{"$f":"SUMIFS(Sheet1!S71_ASBudgetAmount,Sheet1!S71_SA34cCode,$AC:$AC,Sheet1!S71_RepMaintCode,$AD:$AD)","v":0},{"$f":"SUMIFS(Sheet1!S71_OY1BudgetAmount,Sheet1!S71_SA34cCode,$AC:$AC,Sheet1!S71_RepMaintCode,$AD:$AD)","v":0},{"$f":"SUMIFS(Sheet1!S71_OY2BudgetAmount,Sheet1!S71_SA34cCode,$AC:$AC,Sheet1!S71_RepMaintCode,$AD:$AD)","v":0},null,null,null,null,null,null,null,null,null,null,null,null,null,null,null,null,null,"1210","RM"]
["Building Plan Offices",null,{"$f":"SUMIFS(Sheet1!S71_PPPYearAmount,Sheet1!S71_SA34cCode,$AC:$AC,Sheet1!S71_RepMaintCode,$AD:$AD)","v":0},{"$f":"SUMIFS(Sheet1!S71_PPYearAmount,Sheet1!S71_SA34cCode,$AC:$AC,Sheet1!S71_RepMaintCode,$AD:$AD)","v":0},{"$f":"SUMIFS(Sheet1!S71_PYearAmount,Sheet1!S71_SA34cCode,$AC:$AC,Sheet1!S71_RepMaintCode,$AD:$AD)","v":0},{"$f":"SUMIFS(Sheet1!S71_OriginalBudAmnt,Sheet1!S71_SA34cCode,$AC:$AC,Sheet1!S71_RepMaintCode,$AD:$AD)","v":0},{"$f":"SUMIFS(Sheet1!S71_AdjustmentBudAmnt,Sheet1!S71_SA34cCode,$AC:$AC,Sheet1!S71_RepMaintCode,$AD:$AD)","v":0},{"$f":"SUMIFS(Sheet1!S71_AdjustmentBudAmnt,Sheet1!S71_SA34cCode,$AC:$AC,Sheet1!S71_RepMaintCode,$AD:$AD)","v":0},{"$f":"SUMIFS(Sheet1!S71_ASBudgetAmount,Sheet1!S71_SA34cCode,$AC:$AC,Sheet1!S71_RepMaintCode,$AD:$AD)","v":0},{"$f":"SUMIFS(Sheet1!S71_OY1BudgetAmount,Sheet1!S71_SA34cCode,$AC:$AC,Sheet1!S71_RepMaintCode,$AD:$AD)","v":0},{"$f":"SUMIFS(Sheet1!S71_OY2BudgetAmount,Sheet1!S71_SA34cCode,$AC:$AC,Sheet1!S71_RepMaintCode,$AD:$AD)","v":0},null,null,null,null,null,null,null,null,null,null,null,null,null,null,null,null,null,"1220","RM"]
["Workshops",null,{"$f":"SUMIFS(Sheet1!S71_PPPYearAmount,Sheet1!S71_SA34cCode,$AC:$AC,Sheet1!S71_RepMaintCode,$AD:$AD)","v":0},{"$f":"SUMIFS(Sheet1!S71_PPYearAmount,Sheet1!S71_SA34cCode,$AC:$AC,Sheet1!S71_RepMaintCode,$AD:$AD)","v":0},{"$f":"SUMIFS(Sheet1!S71_PYearAmount,Sheet1!S71_SA34cCode,$AC:$AC,Sheet1!S71_RepMaintCode,$AD:$AD)","v":0},{"$f":"SUMIFS(Sheet1!S71_OriginalBudAmnt,Sheet1!S71_SA34cCode,$AC:$AC,Sheet1!S71_RepMaintCode,$AD:$AD)","v":0},{"$f":"SUMIFS(Sheet1!S71_AdjustmentBudAmnt,Sheet1!S71_SA34cCode,$AC:$AC,Sheet1!S71_RepMaintCode,$AD:$AD)","v":0},{"$f":"SUMIFS(Sheet1!S71_AdjustmentBudAmnt,Sheet1!S71_SA34cCode,$AC:$AC,Sheet1!S71_RepMaintCode,$AD:$AD)","v":0},{"$f":"SUMIFS(Sheet1!S71_ASBudgetAmount,Sheet1!S71_SA34cCode,$AC:$AC,Sheet1!S71_RepMaintCode,$AD:$AD)","v":0},{"$f":"SUMIFS(Sheet1!S71_OY1BudgetAmount,Sheet1!S71_SA34cCode,$AC:$AC,Sheet1!S71_RepMaintCode,$AD:$AD)","v":0},{"$f":"SUMIFS(Sheet1!S71_OY2BudgetAmount,Sheet1!S71_SA34cCode,$AC:$AC,Sheet1!S71_RepMaintCode,$AD:$AD)","v":0},null,null,null,null,null,null,null,null,null,null,null,null,null,null,null,null,null,"1230","RM"]
["Yards",null,{"$f":"SUMIFS(Sheet1!S71_PPPYearAmount,Sheet1!S71_SA34cCode,$AC:$AC,Sheet1!S71_RepMaintCode,$AD:$AD)","v":0},{"$f":"SUMIFS(Sheet1!S71_PPYearAmount,Sheet1!S71_SA34cCode,$AC:$AC,Sheet1!S71_RepMaintCode,$AD:$AD)","v":0},{"$f":"SUMIFS(Sheet1!S71_PYearAmount,Sheet1!S71_SA34cCode,$AC:$AC,Sheet1!S71_RepMaintCode,$AD:$AD)","v":0},{"$f":"SUMIFS(Sheet1!S71_OriginalBudAmnt,Sheet1!S71_SA34cCode,$AC:$AC,Sheet1!S71_RepMaintCode,$AD:$AD)","v":0},{"$f":"SUMIFS(Sheet1!S71_AdjustmentBudAmnt,Sheet1!S71_SA34cCode,$AC:$AC,Sheet1!S71_RepMaintCode,$AD:$AD)","v":0},{"$f":"SUMIFS(Sheet1!S71_AdjustmentBudAmnt,Sheet1!S71_SA34cCode,$AC:$AC,Sheet1!S71_RepMaintCode,$AD:$AD)","v":0},{"$f":"SUMIFS(Sheet1!S71_ASBudgetAmount,Sheet1!S71_SA34cCode,$AC:$AC,Sheet1!S71_RepMaintCode,$AD:$AD)","v":0},{"$f":"SUMIFS(Sheet1!S71_OY1BudgetAmount,Sheet1!S71_SA34cCode,$AC:$AC,Sheet1!S71_RepMaintCode,$AD:$AD)","v":0},{"$f":"SUMIFS(Sheet1!S71_OY2BudgetAmount,Sheet1!S71_SA34cCode,$AC:$AC,Sheet1!S71_RepMaintCode,$AD:$AD)","v":0},null,null,null,null,null,null,null,null,null,null,null,null,null,null,null,null,null,"1240","RM"]
["Stores",null,{"$f":"SUMIFS(Sheet1!S71_PPPYearAmount,Sheet1!S71_SA34cCode,$AC:$AC,Sheet1!S71_RepMaintCode,$AD:$AD)","v":0},{"$f":"SUMIFS(Sheet1!S71_PPYearAmount,Sheet1!S71_SA34cCode,$AC:$AC,Sheet1!S71_RepMaintCode,$AD:$AD)","v":0},{"$f":"SUMIFS(Sheet1!S71_PYearAmount,Sheet1!S71_SA34cCode,$AC:$AC,Sheet1!S71_RepMaintCode,$AD:$AD)","v":0},{"$f":"SUMIFS(Sheet1!S71_OriginalBudAmnt,Sheet1!S71_SA34cCode,$AC:$AC,Sheet1!S71_RepMaintCode,$AD:$AD)","v":0},{"$f":"SUMIFS(Sheet1!S71_AdjustmentBudAmnt,Sheet1!S71_SA34cCode,$AC:$AC,Sheet1!S71_RepMaintCode,$AD:$AD)","v":0},{"$f":"SUMIFS(Sheet1!S71_AdjustmentBudAmnt,Sheet1!S71_SA34cCode,$AC:$AC,Sheet1!S71_RepMaintCode,$AD:$AD)","v":0},{"$f":"SUMIFS(Sheet1!S71_ASBudgetAmount,Sheet1!S71_SA34cCode,$AC:$AC,Sheet1!S71_RepMaintCode,$AD:$AD)","v":0},{"$f":"SUMIFS(Sheet1!S71_OY1BudgetAmount,Sheet1!S71_SA34cCode,$AC:$AC,Sheet1!S71_RepMaintCode,$AD:$AD)","v":0},{"$f":"SUMIFS(Sheet1!S71_OY2BudgetAmount,Sheet1!S71_SA34cCode,$AC:$AC,Sheet1!S71_RepMaintCode,$AD:$AD)","v":0},null,null,null,null,null,null,null,null,null,null,null,null,null,null,null,null,null,"1250","RM"]
["Laboratories",null,{"$f":"SUMIFS(Sheet1!S71_PPPYearAmount,Sheet1!S71_SA34cCode,$AC:$AC,Sheet1!S71_RepMaintCode,$AD:$AD)","v":0},{"$f":"SUMIFS(Sheet1!S71_PPYearAmount,Sheet1!S71_SA34cCode,$AC:$AC,Sheet1!S71_RepMaintCode,$AD:$AD)","v":0},{"$f":"SUMIFS(Sheet1!S71_PYearAmount,Sheet1!S71_SA34cCode,$AC:$AC,Sheet1!S71_RepMaintCode,$AD:$AD)","v":0},{"$f":"SUMIFS(Sheet1!S71_OriginalBudAmnt,Sheet1!S71_SA34cCode,$AC:$AC,Sheet1!S71_RepMaintCode,$AD:$AD)","v":0},{"$f":"SUMIFS(Sheet1!S71_AdjustmentBudAmnt,Sheet1!S71_SA34cCode,$AC:$AC,Sheet1!S71_RepMaintCode,$AD:$AD)","v":0},{"$f":"SUMIFS(Sheet1!S71_AdjustmentBudAmnt,Sheet1!S71_SA34cCode,$AC:$AC,Sheet1!S71_RepMaintCode,$AD:$AD)","v":0},{"$f":"SUMIFS(Sheet1!S71_ASBudgetAmount,Sheet1!S71_SA34cCode,$AC:$AC,Sheet1!S71_RepMaintCode,$AD:$AD)","v":0},{"$f":"SUMIFS(Sheet1!S71_OY1BudgetAmount,Sheet1!S71_SA34cCode,$AC:$AC,Sheet1!S71_RepMaintCode,$AD:$AD)","v":0},{"$f":"SUMIFS(Sheet1!S71_OY2BudgetAmount,Sheet1!S71_SA34cCode,$AC:$AC,Sheet1!S71_RepMaintCode,$AD:$AD)","v":0},null,null,null,null,null,null,null,null,null,null,null,null,null,null,null,null,null,"1260","RM"]
["Training Centres",null,{"$f":"SUMIFS(Sheet1!S71_PPPYearAmount,Sheet1!S71_SA34cCode,$AC:$AC,Sheet1!S71_RepMaintCode,$AD:$AD)","v":0},{"$f":"SUMIFS(Sheet1!S71_PPYearAmount,Sheet1!S71_SA34cCode,$AC:$AC,Sheet1!S71_RepMaintCode,$AD:$AD)","v":0},{"$f":"SUMIFS(Sheet1!S71_PYearAmount,Sheet1!S71_SA34cCode,$AC:$AC,Sheet1!S71_RepMaintCode,$AD:$AD)","v":0},{"$f":"SUMIFS(Sheet1!S71_OriginalBudAmnt,Sheet1!S71_SA34cCode,$AC:$AC,Sheet1!S71_RepMaintCode,$AD:$AD)","v":0},{"$f":"SUMIFS(Sheet1!S71_AdjustmentBudAmnt,Sheet1!S71_SA34cCode,$AC:$AC,Sheet1!S71_RepMaintCode,$AD:$AD)","v":0},{"$f":"SUMIFS(Sheet1!S71_AdjustmentBudAmnt,Sheet1!S71_SA34cCode,$AC:$AC,Sheet1!S71_RepMaintCode,$AD:$AD)","v":0},{"$f":"SUMIFS(Sheet1!S71_ASBudgetAmount,Sheet1!S71_SA34cCode,$AC:$AC,Sheet1!S71_RepMaintCode,$AD:$AD)","v":0},{"$f":"SUMIFS(Sheet1!S71_OY1BudgetAmount,Sheet1!S71_SA34cCode,$AC:$AC,Sheet1!S71_RepMaintCode,$AD:$AD)","v":0},{"$f":"SUMIFS(Sheet1!S71_OY2BudgetAmount,Sheet1!S71_SA34cCode,$AC:$AC,Sheet1!S71_RepMaintCode,$AD:$AD)","v":0},null,null,null,null,null,null,null,null,null,null,null,null,null,null,null,null,null,"1270","RM"]
["Manufacturing Plant",null,{"$f":"SUMIFS(Sheet1!S71_PPPYearAmount,Sheet1!S71_SA34cCode,$AC:$AC,Sheet1!S71_RepMaintCode,$AD:$AD)","v":0},{"$f":"SUMIFS(Sheet1!S71_PPYearAmount,Sheet1!S71_SA34cCode,$AC:$AC,Sheet1!S71_RepMaintCode,$AD:$AD)","v":0},{"$f":"SUMIFS(Sheet1!S71_PYearAmount,Sheet1!S71_SA34cCode,$AC:$AC,Sheet1!S71_RepMaintCode,$AD:$AD)","v":0},{"$f":"SUMIFS(Sheet1!S71_OriginalBudAmnt,Sheet1!S71_SA34cCode,$AC:$AC,Sheet1!S71_RepMaintCode,$AD:$AD)","v":0},{"$f":"SUMIFS(Sheet1!S71_AdjustmentBudAmnt,Sheet1!S71_SA34cCode,$AC:$AC,Sheet1!S71_RepMaintCode,$AD:$AD)","v":0},{"$f":"SUMIFS(Sheet1!S71_AdjustmentBudAmnt,Sheet1!S71_SA34cCode,$AC:$AC,Sheet1!S71_RepMaintCode,$AD:$AD)","v":0},{"$f":"SUMIFS(Sheet1!S71_ASBudgetAmount,Sheet1!S71_SA34cCode,$AC:$AC,Sheet1!S71_RepMaintCode,$AD:$AD)","v":0},{"$f":"SUMIFS(Sheet1!S71_OY1BudgetAmount,Sheet1!S71_SA34cCode,$AC:$AC,Sheet1!S71_RepMaintCode,$AD:$AD)","v":0},{"$f":"SUMIFS(Sheet1!S71_OY2BudgetAmount,Sheet1!S71_SA34cCode,$AC:$AC,Sheet1!S71_RepMaintCode,$AD:$AD)","v":0},null,null,null,null,null,null,null,null,null,null,null,null,null,null,null,null,null,"1280","RM"]
["Depots",null,{"$f":"SUMIFS(Sheet1!S71_PPPYearAmount,Sheet1!S71_SA34cCode,$AC:$AC,Sheet1!S71_RepMaintCode,$AD:$AD)","v":0},{"$f":"SUMIFS(Sheet1!S71_PPYearAmount,Sheet1!S71_SA34cCode,$AC:$AC,Sheet1!S71_RepMaintCode,$AD:$AD)","v":0},{"$f":"SUMIFS(Sheet1!S71_PYearAmount,Sheet1!S71_SA34cCode,$AC:$AC,Sheet1!S71_RepMaintCode,$AD:$AD)","v":0},{"$f":"SUMIFS(Sheet1!S71_OriginalBudAmnt,Sheet1!S71_SA34cCode,$AC:$AC,Sheet1!S71_RepMaintCode,$AD:$AD)","v":0},{"$f":"SUMIFS(Sheet1!S71_AdjustmentBudAmnt,Sheet1!S71_SA34cCode,$AC:$AC,Sheet1!S71_RepMaintCode,$AD:$AD)","v":0},{"$f":"SUMIFS(Sheet1!S71_AdjustmentBudAmnt,Sheet1!S71_SA34cCode,$AC:$AC,Sheet1!S71_RepMaintCode,$AD:$AD)","v":0},{"$f":"SUMIFS(Sheet1!S71_ASBudgetAmount,Sheet1!S71_SA34cCode,$AC:$AC,Sheet1!S71_RepMaintCode,$AD:$AD)","v":0},{"$f":"SUMIFS(Sheet1!S71_OY1BudgetAmount,Sheet1!S71_SA34cCode,$AC:$AC,Sheet1!S71_RepMaintCode,$AD:$AD)","v":0},{"$f":"SUMIFS(Sheet1!S71_OY2BudgetAmount,Sheet1!S71_SA34cCode,$AC:$AC,Sheet1!S71_RepMaintCode,$AD:$AD)","v":0},null,null,null,null,null,null,null,null,null,null,null,null,null,null,null,null,null,"1290","RM"]
["Capital Spares",null,{"$f":"SUMIFS(Sheet1!S71_PPPYearAmount,Sheet1!S71_SA34cCode,$AC:$AC,Sheet1!S71_RepMaintCode,$AD:$AD)","v":0},{"$f":"SUMIFS(Sheet1!S71_PPYearAmount,Sheet1!S71_SA34cCode,$AC:$AC,Sheet1!S71_RepMaintCode,$AD:$AD)","v":0},{"$f":"SUMIFS(Sheet1!S71_PYearAmount,Sheet1!S71_SA34cCode,$AC:$AC,Sheet1!S71_RepMaintCode,$AD:$AD)","v":0},{"$f":"SUMIFS(Sheet1!S71_OriginalBudAmnt,Sheet1!S71_SA34cCode,$AC:$AC,Sheet1!S71_RepMaintCode,$AD:$AD)","v":0},{"$f":"SUMIFS(Sheet1!S71_AdjustmentBudAmnt,Sheet1!S71_SA34cCode,$AC:$AC,Sheet1!S71_RepMaintCode,$AD:$AD)","v":0},{"$f":"SUMIFS(Sheet1!S71_AdjustmentBudAmnt,Sheet1!S71_SA34cCode,$AC:$AC,Sheet1!S71_RepMaintCode,$AD:$AD)","v":0},{"$f":"SUMIFS(Sheet1!S71_ASBudgetAmount,Sheet1!S71_SA34cCode,$AC:$AC,Sheet1!S71_RepMaintCode,$AD:$AD)","v":0},{"$f":"SUMIFS(Sheet1!S71_OY1BudgetAmount,Sheet1!S71_SA34cCode,$AC:$AC,Sheet1!S71_RepMaintCode,$AD:$AD)","v":0},{"$f":"SUMIFS(Sheet1!S71_OY2BudgetAmount,Sheet1!S71_SA34cCode,$AC:$AC,Sheet1!S71_RepMaintCode,$AD:$AD)","v":0},null,null,null,null,null,null,null,null,null,null,null,null,null,null,null,null,null,"1300","RM"]
["Housing",null,{"$f":"SUM(C132:C134)","v":0},{"$f":"SUM(D132:D134)","v":0},0,0,0,0,0,0,0,null,null,null,null,null,null,null,null,null,null,null,null,null,null,null,null,null,null,"RM"]
["Staff Housing",null,{"$f":"SUMIFS(Sheet1!S71_PPPYearAmount,Sheet1!S71_SA34cCode,$AC:$AC,Sheet1!S71_RepMaintCode,$AD:$AD)","v":0},{"$f":"SUMIFS(Sheet1!S71_PPYearAmount,Sheet1!S71_SA34cCode,$AC:$AC,Sheet1!S71_RepMaintCode,$AD:$AD)","v":0},{"$f":"SUMIFS(Sheet1!S71_PYearAmount,Sheet1!S71_SA34cCode,$AC:$AC,Sheet1!S71_RepMaintCode,$AD:$AD)","v":0},{"$f":"SUMIFS(Sheet1!S71_OriginalBudAmnt,Sheet1!S71_SA34cCode,$AC:$AC,Sheet1!S71_RepMaintCode,$AD:$AD)","v":0},{"$f":"SUMIFS(Sheet1!S71_AdjustmentBudAmnt,Sheet1!S71_SA34cCode,$AC:$AC,Sheet1!S71_RepMaintCode,$AD:$AD)","v":0},{"$f":"SUMIFS(Sheet1!S71_AdjustmentBudAmnt,Sheet1!S71_SA34cCode,$AC:$AC,Sheet1!S71_RepMaintCode,$AD:$AD)","v":0},{"$f":"SUMIFS(Sheet1!S71_ASBudgetAmount,Sheet1!S71_SA34cCode,$AC:$AC,Sheet1!S71_RepMaintCode,$AD:$AD)","v":0},{"$f":"SUMIFS(Sheet1!S71_OY1BudgetAmount,Sheet1!S71_SA34cCode,$AC:$AC,Sheet1!S71_RepMaintCode,$AD:$AD)","v":0},{"$f":"SUMIFS(Sheet1!S71_OY2BudgetAmount,Sheet1!S71_SA34cCode,$AC:$AC,Sheet1!S71_RepMaintCode,$AD:$AD)","v":0},null,null,null,null,null,null,null,null,null,null,null,null,null,null,null,null,null,"1320","RM"]
["Social Housing",null,{"$f":"SUMIFS(Sheet1!S71_PPPYearAmount,Sheet1!S71_SA34cCode,$AC:$AC,Sheet1!S71_RepMaintCode,$AD:$AD)","v":0},{"$f":"SUMIFS(Sheet1!S71_PPYearAmount,Sheet1!S71_SA34cCode,$AC:$AC,Sheet1!S71_RepMaintCode,$AD:$AD)","v":0},{"$f":"SUMIFS(Sheet1!S71_PYearAmount,Sheet1!S71_SA34cCode,$AC:$AC,Sheet1!S71_RepMaintCode,$AD:$AD)","v":0},{"$f":"SUMIFS(Sheet1!S71_OriginalBudAmnt,Sheet1!S71_SA34cCode,$AC:$AC,Sheet1!S71_RepMaintCode,$AD:$AD)","v":0},{"$f":"SUMIFS(Sheet1!S71_AdjustmentBudAmnt,Sheet1!S71_SA34cCode,$AC:$AC,Sheet1!S71_RepMaintCode,$AD:$AD)","v":0},{"$f":"SUMIFS(Sheet1!S71_AdjustmentBudAmnt,Sheet1!S71_SA34cCode,$AC:$AC,Sheet1!S71_RepMaintCode,$AD:$AD)","v":0},{"$f":"SUMIFS(Sheet1!S71_ASBudgetAmount,Sheet1!S71_SA34cCode,$AC:$AC,Sheet1!S71_RepMaintCode,$AD:$AD)","v":0},{"$f":"SUMIFS(Sheet1!S71_OY1BudgetAmount,Sheet1!S71_SA34cCode,$AC:$AC,Sheet1!S71_RepMaintCode,$AD:$AD)","v":0},{"$f":"SUMIFS(Sheet1!S71_OY2BudgetAmount,Sheet1!S71_SA34cCode,$AC:$AC,Sheet1!S71_RepMaintCode,$AD:$AD)","v":0},null,null,null,null,null,null,null,null,null,null,null,null,null,null,null,null,null,"1330","RM"]
["Capital Spares",null,{"$f":"SUMIFS(Sheet1!S71_PPPYearAmount,Sheet1!S71_SA34cCode,$AC:$AC,Sheet1!S71_RepMaintCode,$AD:$AD)","v":0},{"$f":"SUMIFS(Sheet1!S71_PPYearAmount,Sheet1!S71_SA34cCode,$AC:$AC,Sheet1!S71_RepMaintCode,$AD:$AD)","v":0},{"$f":"SUMIFS(Sheet1!S71_PYearAmount,Sheet1!S71_SA34cCode,$AC:$AC,Sheet1!S71_RepMaintCode,$AD:$AD)","v":0},{"$f":"SUMIFS(Sheet1!S71_OriginalBudAmnt,Sheet1!S71_SA34cCode,$AC:$AC,Sheet1!S71_RepMaintCode,$AD:$AD)","v":0},{"$f":"SUMIFS(Sheet1!S71_AdjustmentBudAmnt,Sheet1!S71_SA34cCode,$AC:$AC,Sheet1!S71_RepMaintCode,$AD:$AD)","v":0},{"$f":"SUMIFS(Sheet1!S71_AdjustmentBudAmnt,Sheet1!S71_SA34cCode,$AC:$AC,Sheet1!S71_RepMaintCode,$AD:$AD)","v":0},{"$f":"SUMIFS(Sheet1!S71_ASBudgetAmount,Sheet1!S71_SA34cCode,$AC:$AC,Sheet1!S71_RepMaintCode,$AD:$AD)","v":0},{"$f":"SUMIFS(Sheet1!S71_OY1BudgetAmount,Sheet1!S71_SA34cCode,$AC:$AC,Sheet1!S71_RepMaintCode,$AD:$AD)","v":0},{"$f":"SUMIFS(Sheet1!S71_OY2BudgetAmount,Sheet1!S71_SA34cCode,$AC:$AC,Sheet1!S71_RepMaintCode,$AD:$AD)","v":0},null,null,null,null,null,null,null,null,null,null,null,null,null,null,null,null,null,"1340","RM"]
[null,null,null,null,null,null,null,null,null,null,null,null,null,null,null,null,null,null,null,null,null,null,null,null,null,null,null,null,null,"RM"]
["Biological or Cultivated Assets",null,{"$f":"SUM(C137:C137)","v":0},0,0,0,0,0,0,0,0,null,null,null,null,null,null,null,null,null,null,null,null,null,null,null,null,null,null,"RM"]
["Biological or Cultivated Assets",null,{"$f":"SUMIFS(Sheet1!S71_PPPYearAmount,Sheet1!S71_SA34cCode,$AC:$AC,Sheet1!S71_RepMaintCode,$AD:$AD)","v":0},{"$f":"SUMIFS(Sheet1!S71_PPYearAmount,Sheet1!S71_SA34cCode,$AC:$AC,Sheet1!S71_RepMaintCode,$AD:$AD)","v":0},{"$f":"SUMIFS(Sheet1!S71_PYearAmount,Sheet1!S71_SA34cCode,$AC:$AC,Sheet1!S71_RepMaintCode,$AD:$AD)","v":0},{"$f":"SUMIFS(Sheet1!S71_OriginalBudAmnt,Sheet1!S71_SA34cCode,$AC:$AC,Sheet1!S71_RepMaintCode,$AD:$AD)","v":0},{"$f":"SUMIFS(Sheet1!S71_AdjustmentBudAmnt,Sheet1!S71_SA34cCode,$AC:$AC,Sheet1!S71_RepMaintCode,$AD:$AD)","v":0},{"$f":"SUMIFS(Sheet1!S71_AdjustmentBudAmnt,Sheet1!S71_SA34cCode,$AC:$AC,Sheet1!S71_RepMaintCode,$AD:$AD)","v":0},{"$f":"SUMIFS(Sheet1!S71_ASBudgetAmount,Sheet1!S71_SA34cCode,$AC:$AC,Sheet1!S71_RepMaintCode,$AD:$AD)","v":0},{"$f":"SUMIFS(Sheet1!S71_OY1BudgetAmount,Sheet1!S71_SA34cCode,$AC:$AC,Sheet1!S71_RepMaintCode,$AD:$AD)","v":0},{"$f":"SUMIFS(Sheet1!S71_OY2BudgetAmount,Sheet1!S71_SA34cCode,$AC:$AC,Sheet1!S71_RepMaintCode,$AD:$AD)","v":0},null,null,null,null,null,null,null,null,null,null,null,null,null,null,null,null,null,"1360","RM"]
[null,null,null,null,null,null,null,null,null,null,null,null,null,null,null,null,null,null,null,null,null,null,null,null,null,null,null,null,null,"RM"]
["Intangible Assets",null,{"$f":"+C140+C141","v":0},{"$f":"+D140+D141","v":0},0,0,0,0,0,0,0,null,null,null,null,null,null,null,null,null,null,null,null,null,null,null,null,null,null,"RM"]
["Servitudes",null,{"$f":"SUMIFS(Sheet1!S71_PPPYearAmount,Sheet1!S71_SA34cCode,$AC:$AC,Sheet1!S71_RepMaintCode,$AD:$AD)","v":0},{"$f":"SUMIFS(Sheet1!S71_PPYearAmount,Sheet1!S71_SA34cCode,$AC:$AC,Sheet1!S71_RepMaintCode,$AD:$AD)","v":0},{"$f":"SUMIFS(Sheet1!S71_PYearAmount,Sheet1!S71_SA34cCode,$AC:$AC,Sheet1!S71_RepMaintCode,$AD:$AD)","v":0},{"$f":"SUMIFS(Sheet1!S71_OriginalBudAmnt,Sheet1!S71_SA34cCode,$AC:$AC,Sheet1!S71_RepMaintCode,$AD:$AD)","v":0},{"$f":"SUMIFS(Sheet1!S71_AdjustmentBudAmnt,Sheet1!S71_SA34cCode,$AC:$AC,Sheet1!S71_RepMaintCode,$AD:$AD)","v":0},{"$f":"SUMIFS(Sheet1!S71_AdjustmentBudAmnt,Sheet1!S71_SA34cCode,$AC:$AC,Sheet1!S71_RepMaintCode,$AD:$AD)","v":0},{"$f":"SUMIFS(Sheet1!S71_ASBudgetAmount,Sheet1!S71_SA34cCode,$AC:$AC,Sheet1!S71_RepMaintCode,$AD:$AD)","v":0},{"$f":"SUMIFS(Sheet1!S71_OY1BudgetAmount,Sheet1!S71_SA34cCode,$AC:$AC,Sheet1!S71_RepMaintCode,$AD:$AD)","v":0},{"$f":"SUMIFS(Sheet1!S71_OY2BudgetAmount,Sheet1!S71_SA34cCode,$AC:$AC,Sheet1!S71_RepMaintCode,$AD:$AD)","v":0},null,null,null,null,null,null,null,null,null,null,null,null,null,null,null,null,null,"1380","RM"]
["Licences and Rights",null,{"$f":"SUM(C142:C147)","v":0},{"$f":"SUM(D142:D147)","v":0},0,0,0,0,0,0,0,null,null,null,null,null,null,null,null,null,null,null,null,null,null,null,null,null,null,"RM"]
["Water Rights",null,{"$f":"SUMIFS(Sheet1!S71_PPPYearAmount,Sheet1!S71_SA34cCode,$AC:$AC,Sheet1!S71_RepMaintCode,$AD:$AD)","v":0},{"$f":"SUMIFS(Sheet1!S71_PPYearAmount,Sheet1!S71_SA34cCode,$AC:$AC,Sheet1!S71_RepMaintCode,$AD:$AD)","v":0},{"$f":"SUMIFS(Sheet1!S71_PYearAmount,Sheet1!S71_SA34cCode,$AC:$AC,Sheet1!S71_RepMaintCode,$AD:$AD)","v":0},{"$f":"SUMIFS(Sheet1!S71_OriginalBudAmnt,Sheet1!S71_SA34cCode,$AC:$AC,Sheet1!S71_RepMaintCode,$AD:$AD)","v":0},{"$f":"SUMIFS(Sheet1!S71_AdjustmentBudAmnt,Sheet1!S71_SA34cCode,$AC:$AC,Sheet1!S71_RepMaintCode,$AD:$AD)","v":0},{"$f":"SUMIFS(Sheet1!S71_AdjustmentBudAmnt,Sheet1!S71_SA34cCode,$AC:$AC,Sheet1!S71_RepMaintCode,$AD:$AD)","v":0},{"$f":"SUMIFS(Sheet1!S71_ASBudgetAmount,Sheet1!S71_SA34cCode,$AC:$AC,Sheet1!S71_RepMaintCode,$AD:$AD)","v":0},{"$f":"SUMIFS(Sheet1!S71_OY1BudgetAmount,Sheet1!S71_SA34cCode,$AC:$AC,Sheet1!S71_RepMaintCode,$AD:$AD)","v":0},{"$f":"SUMIFS(Sheet1!S71_OY2BudgetAmount,Sheet1!S71_SA34cCode,$AC:$AC,Sheet1!S71_RepMaintCode,$AD:$AD)","v":0},null,null,null,null,null,null,null,null,null,null,null,null,null,null,null,null,null,"1400","RM"]
["Effluent Licenses",null,{"$f":"SUMIFS(Sheet1!S71_PPPYearAmount,Sheet1!S71_SA34cCode,$AC:$AC,Sheet1!S71_RepMaintCode,$AD:$AD)","v":0},{"$f":"SUMIFS(Sheet1!S71_PPYearAmount,Sheet1!S71_SA34cCode,$AC:$AC,Sheet1!S71_RepMaintCode,$AD:$AD)","v":0},{"$f":"SUMIFS(Sheet1!S71_PYearAmount,Sheet1!S71_SA34cCode,$AC:$AC,Sheet1!S71_RepMaintCode,$AD:$AD)","v":0},{"$f":"SUMIFS(Sheet1!S71_OriginalBudAmnt,Sheet1!S71_SA34cCode,$AC:$AC,Sheet1!S71_RepMaintCode,$AD:$AD)","v":0},{"$f":"SUMIFS(Sheet1!S71_AdjustmentBudAmnt,Sheet1!S71_SA34cCode,$AC:$AC,Sheet1!S71_RepMaintCode,$AD:$AD)","v":0},{"$f":"SUMIFS(Sheet1!S71_AdjustmentBudAmnt,Sheet1!S71_SA34cCode,$AC:$AC,Sheet1!S71_RepMaintCode,$AD:$AD)","v":0},{"$f":"SUMIFS(Sheet1!S71_ASBudgetAmount,Sheet1!S71_SA34cCode,$AC:$AC,Sheet1!S71_RepMaintCode,$AD:$AD)","v":0},{"$f":"SUMIFS(Sheet1!S71_OY1BudgetAmount,Sheet1!S71_SA34cCode,$AC:$AC,Sheet1!S71_RepMaintCode,$AD:$AD)","v":0},{"$f":"SUMIFS(Sheet1!S71_OY2BudgetAmount,Sheet1!S71_SA34cCode,$AC:$AC,Sheet1!S71_RepMaintCode,$AD:$AD)","v":0},null,null,null,null,null,null,null,null,null,null,null,null,null,null,null,null,null,"1410","RM"]
["Solid Waste Licenses",null,{"$f":"SUMIFS(Sheet1!S71_PPPYearAmount,Sheet1!S71_SA34cCode,$AC:$AC,Sheet1!S71_RepMaintCode,$AD:$AD)","v":0},{"$f":"SUMIFS(Sheet1!S71_PPYearAmount,Sheet1!S71_SA34cCode,$AC:$AC,Sheet1!S71_RepMaintCode,$AD:$AD)","v":0},{"$f":"SUMIFS(Sheet1!S71_PYearAmount,Sheet1!S71_SA34cCode,$AC:$AC,Sheet1!S71_RepMaintCode,$AD:$AD)","v":0},{"$f":"SUMIFS(Sheet1!S71_OriginalBudAmnt,Sheet1!S71_SA34cCode,$AC:$AC,Sheet1!S71_RepMaintCode,$AD:$AD)","v":0},{"$f":"SUMIFS(Sheet1!S71_AdjustmentBudAmnt,Sheet1!S71_SA34cCode,$AC:$AC,Sheet1!S71_RepMaintCode,$AD:$AD)","v":0},{"$f":"SUMIFS(Sheet1!S71_AdjustmentBudAmnt,Sheet1!S71_SA34cCode,$AC:$AC,Sheet1!S71_RepMaintCode,$AD:$AD)","v":0},{"$f":"SUMIFS(Sheet1!S71_ASBudgetAmount,Sheet1!S71_SA34cCode,$AC:$AC,Sheet1!S71_RepMaintCode,$AD:$AD)","v":0},{"$f":"SUMIFS(Sheet1!S71_OY1BudgetAmount,Sheet1!S71_SA34cCode,$AC:$AC,Sheet1!S71_RepMaintCode,$AD:$AD)","v":0},{"$f":"SUMIFS(Sheet1!S71_OY2BudgetAmount,Sheet1!S71_SA34cCode,$AC:$AC,Sheet1!S71_RepMaintCode,$AD:$AD)","v":0},null,null,null,null,null,null,null,null,null,null,null,null,null,null,null,null,null,"1420","RM"]
["Computer Software and Applications",null,{"$f":"SUMIFS(Sheet1!S71_PPPYearAmount,Sheet1!S71_SA34cCode,$AC:$AC,Sheet1!S71_RepMaintCode,$AD:$AD)","v":0},{"$f":"SUMIFS(Sheet1!S71_PPYearAmount,Sheet1!S71_SA34cCode,$AC:$AC,Sheet1!S71_RepMaintCode,$AD:$AD)","v":0},{"$f":"SUMIFS(Sheet1!S71_PYearAmount,Sheet1!S71_SA34cCode,$AC:$AC,Sheet1!S71_RepMaintCode,$AD:$AD)","v":0},{"$f":"SUMIFS(Sheet1!S71_OriginalBudAmnt,Sheet1!S71_SA34cCode,$AC:$AC,Sheet1!S71_RepMaintCode,$AD:$AD)","v":0},{"$f":"SUMIFS(Sheet1!S71_AdjustmentBudAmnt,Sheet1!S71_SA34cCode,$AC:$AC,Sheet1!S71_RepMaintCode,$AD:$AD)","v":0},{"$f":"SUMIFS(Sheet1!S71_AdjustmentBudAmnt,Sheet1!S71_SA34cCode,$AC:$AC,Sheet1!S71_RepMaintCode,$AD:$AD)","v":0},{"$f":"SUMIFS(Sheet1!S71_ASBudgetAmount,Sheet1!S71_SA34cCode,$AC:$AC,Sheet1!S71_RepMaintCode,$AD:$AD)","v":0},{"$f":"SUMIFS(Sheet1!S71_OY1BudgetAmount,Sheet1!S71_SA34cCode,$AC:$AC,Sheet1!S71_RepMaintCode,$AD:$AD)","v":0},{"$f":"SUMIFS(Sheet1!S71_OY2BudgetAmount,Sheet1!S71_SA34cCode,$AC:$AC,Sheet1!S71_RepMaintCode,$AD:$AD)","v":0},null,null,null,null,null,null,null,null,null,null,null,null,null,null,null,null,null,"1430","RM"]
["Load Settlement Software Applications",null,{"$f":"SUMIFS(Sheet1!S71_PPPYearAmount,Sheet1!S71_SA34cCode,$AC:$AC,Sheet1!S71_RepMaintCode,$AD:$AD)","v":0},{"$f":"SUMIFS(Sheet1!S71_PPYearAmount,Sheet1!S71_SA34cCode,$AC:$AC,Sheet1!S71_RepMaintCode,$AD:$AD)","v":0},{"$f":"SUMIFS(Sheet1!S71_PYearAmount,Sheet1!S71_SA34cCode,$AC:$AC,Sheet1!S71_RepMaintCode,$AD:$AD)","v":0},{"$f":"SUMIFS(Sheet1!S71_OriginalBudAmnt,Sheet1!S71_SA34cCode,$AC:$AC,Sheet1!S71_RepMaintCode,$AD:$AD)","v":0},{"$f":"SUMIFS(Sheet1!S71_AdjustmentBudAmnt,Sheet1!S71_SA34cCode,$AC:$AC,Sheet1!S71_RepMaintCode,$AD:$AD)","v":0},{"$f":"SUMIFS(Sheet1!S71_AdjustmentBudAmnt,Sheet1!S71_SA34cCode,$AC:$AC,Sheet1!S71_RepMaintCode,$AD:$AD)","v":0},{"$f":"SUMIFS(Sheet1!S71_ASBudgetAmount,Sheet1!S71_SA34cCode,$AC:$AC,Sheet1!S71_RepMaintCode,$AD:$AD)","v":0},{"$f":"SUMIFS(Sheet1!S71_OY1BudgetAmount,Sheet1!S71_SA34cCode,$AC:$AC,Sheet1!S71_RepMaintCode,$AD:$AD)","v":0},{"$f":"SUMIFS(Sheet1!S71_OY2BudgetAmount,Sheet1!S71_SA34cCode,$AC:$AC,Sheet1!S71_RepMaintCode,$AD:$AD)","v":0},null,null,null,null,null,null,null,null,null,null,null,null,null,null,null,null,null,"1440","RM"]
["Unspecified",null,{"$f":"SUMIFS(Sheet1!S71_PPPYearAmount,Sheet1!S71_SA34cCode,$AC:$AC,Sheet1!S71_RepMaintCode,$AD:$AD)","v":0},{"$f":"SUMIFS(Sheet1!S71_PPYearAmount,Sheet1!S71_SA34cCode,$AC:$AC,Sheet1!S71_RepMaintCode,$AD:$AD)","v":0},{"$f":"SUMIFS(Sheet1!S71_PYearAmount,Sheet1!S71_SA34cCode,$AC:$AC,Sheet1!S71_RepMaintCode,$AD:$AD)","v":0},{"$f":"SUMIFS(Sheet1!S71_OriginalBudAmnt,Sheet1!S71_SA34cCode,$AC:$AC,Sheet1!S71_RepMaintCode,$AD:$AD)","v":0},{"$f":"SUMIFS(Sheet1!S71_AdjustmentBudAmnt,Sheet1!S71_SA34cCode,$AC:$AC,Sheet1!S71_RepMaintCode,$AD:$AD)","v":0},{"$f":"SUMIFS(Sheet1!S71_AdjustmentBudAmnt,Sheet1!S71_SA34cCode,$AC:$AC,Sheet1!S71_RepMaintCode,$AD:$AD)","v":0},{"$f":"SUMIFS(Sheet1!S71_ASBudgetAmount,Sheet1!S71_SA34cCode,$AC:$AC,Sheet1!S71_RepMaintCode,$AD:$AD)","v":0},{"$f":"SUMIFS(Sheet1!S71_OY1BudgetAmount,Sheet1!S71_SA34cCode,$AC:$AC,Sheet1!S71_RepMaintCode,$AD:$AD)","v":0},{"$f":"SUMIFS(Sheet1!S71_OY2BudgetAmount,Sheet1!S71_SA34cCode,$AC:$AC,Sheet1!S71_RepMaintCode,$AD:$AD)","v":0},null,null,null,null,null,null,null,null,null,null,null,null,null,null,null,null,null,"1450","RM"]
[null,null,null,null,null,null,null,null,null,null,null,null,null,null,null,null,null,null,null,null,null,null,null,null,null,null,null,null,null,"RM"]
["Computer Equipment",null,{"$f":"SUM(C150:C150)","v":16552},7901,26882,300000,150000,150000,300000,320000,330000,null,null,null,null,null,null,null,null,null,null,null,null,null,null,null,null,null,null,"RM"]
["Computer Equipment",null,{"$f":"SUMIFS(Sheet1!S71_PPPYearAmount,Sheet1!S71_SA34cCode,$AC:$AC,Sheet1!S71_RepMaintCode,$AD:$AD)","v":16552},{"$f":"SUMIFS(Sheet1!S71_PPYearAmount,Sheet1!S71_SA34cCode,$AC:$AC,Sheet1!S71_RepMaintCode,$AD:$AD)","v":7901},{"$f":"SUMIFS(Sheet1!S71_PYearAmount,Sheet1!S71_SA34cCode,$AC:$AC,Sheet1!S71_RepMaintCode,$AD:$AD)","v":26882},{"$f":"SUMIFS(Sheet1!S71_OriginalBudAmnt,Sheet1!S71_SA34cCode,$AC:$AC,Sheet1!S71_RepMaintCode,$AD:$AD)","v":300000},{"$f":"SUMIFS(Sheet1!S71_AdjustmentBudAmnt,Sheet1!S71_SA34cCode,$AC:$AC,Sheet1!S71_RepMaintCode,$AD:$AD)","v":150000},{"$f":"SUMIFS(Sheet1!S71_AdjustmentBudAmnt,Sheet1!S71_SA34cCode,$AC:$AC,Sheet1!S71_RepMaintCode,$AD:$AD)","v":150000},{"$f":"SUMIFS(Sheet1!S71_ASBudgetAmount,Sheet1!S71_SA34cCode,$AC:$AC,Sheet1!S71_RepMaintCode,$AD:$AD)","v":300000},{"$f":"SUMIFS(Sheet1!S71_OY1BudgetAmount,Sheet1!S71_SA34cCode,$AC:$AC,Sheet1!S71_RepMaintCode,$AD:$AD)","v":320000},{"$f":"SUMIFS(Sheet1!S71_OY2BudgetAmount,Sheet1!S71_SA34cCode,$AC:$AC,Sheet1!S71_RepMaintCode,$AD:$AD)","v":330000},null,null,null,null,null,null,null,null,null,null,null,null,null,null,null,null,null,"1470","RM"]
[null,null,null,null,null,null,null,null,null,null,null,null,null,null,null,null,null,null,null,null,null,null,null,null,null,null,null,null,null,"RM"]
["Furniture and Office Equipment",null,{"$f":"SUM(C153:C153)","v":0},0,0,50000,50000,50000,70000,70000,85000,null,null,null,null,null,null,null,null,null,null,null,null,null,null,null,null,null,null,"RM"]
["Furniture and Office Equipment",null,{"$f":"SUMIFS(Sheet1!S71_PPPYearAmount,Sheet1!S71_SA34cCode,$AC:$AC,Sheet1!S71_RepMaintCode,$AD:$AD)","v":0},{"$f":"SUMIFS(Sheet1!S71_PPYearAmount,Sheet1!S71_SA34cCode,$AC:$AC,Sheet1!S71_RepMaintCode,$AD:$AD)","v":0},{"$f":"SUMIFS(Sheet1!S71_PYearAmount,Sheet1!S71_SA34cCode,$AC:$AC,Sheet1!S71_RepMaintCode,$AD:$AD)","v":0},{"$f":"SUMIFS(Sheet1!S71_OriginalBudAmnt,Sheet1!S71_SA34cCode,$AC:$AC,Sheet1!S71_RepMaintCode,$AD:$AD)","v":50000},{"$f":"SUMIFS(Sheet1!S71_AdjustmentBudAmnt,Sheet1!S71_SA34cCode,$AC:$AC,Sheet1!S71_RepMaintCode,$AD:$AD)","v":50000},{"$f":"SUMIFS(Sheet1!S71_AdjustmentBudAmnt,Sheet1!S71_SA34cCode,$AC:$AC,Sheet1!S71_RepMaintCode,$AD:$AD)","v":50000},{"$f":"SUMIFS(Sheet1!S71_ASBudgetAmount,Sheet1!S71_SA34cCode,$AC:$AC,Sheet1!S71_RepMaintCode,$AD:$AD)","v":70000},{"$f":"SUMIFS(Sheet1!S71_OY1BudgetAmount,Sheet1!S71_SA34cCode,$AC:$AC,Sheet1!S71_RepMaintCode,$AD:$AD)","v":70000},{"$f":"SUMIFS(Sheet1!S71_OY2BudgetAmount,Sheet1!S71_SA34cCode,$AC:$AC,Sheet1!S71_RepMaintCode,$AD:$AD)","v":85000},null,null,null,null,null,null,null,null,null,null,null,null,null,null,null,null,null,"1490","RM"]
[null,null,null,null,null,null,null,null,null,null,null,null,null,null,null,null,null,null,null,null,null,null,null,null,null,null,null,null,null,"RM"]
["Machinery and Equipment",null,{"$f":"SUM(C156:C156)","v":279313},4609220,3179454,3850000,3600000,3600000,6200000,6310000,6470000,null,null,null,null,null,null,null,null,null,null,null,null,null,null,null,null,null,null,"RM"]
["Machinery and Equipment",null,{"$f":"SUMIFS(Sheet1!S71_PPPYearAmount,Sheet1!S71_SA34cCode,$AC:$AC,Sheet1!S71_RepMaintCode,$AD:$AD)","v":279313},{"$f":"SUMIFS(Sheet1!S71_PPYearAmount,Sheet1!S71_SA34cCode,$AC:$AC,Sheet1!S71_RepMaintCode,$AD:$AD)","v":4609220},{"$f":"SUMIFS(Sheet1!S71_PYearAmount,Sheet1!S71_SA34cCode,$AC:$AC,Sheet1!S71_RepMaintCode,$AD:$AD)","v":3179454},{"$f":"SUMIFS(Sheet1!S71_OriginalBudAmnt,Sheet1!S71_SA34cCode,$AC:$AC,Sheet1!S71_RepMaintCode,$AD:$AD)","v":3850000},{"$f":"SUMIFS(Sheet1!S71_AdjustmentBudAmnt,Sheet1!S71_SA34cCode,$AC:$AC,Sheet1!S71_RepMaintCode,$AD:$AD)","v":3600000},{"$f":"SUMIFS(Sheet1!S71_AdjustmentBudAmnt,Sheet1!S71_SA34cCode,$AC:$AC,Sheet1!S71_RepMaintCode,$AD:$AD)","v":3600000},{"$f":"SUMIFS(Sheet1!S71_ASBudgetAmount,Sheet1!S71_SA34cCode,$AC:$AC,Sheet1!S71_RepMaintCode,$AD:$AD)","v":6200000},{"$f":"SUMIFS(Sheet1!S71_OY1BudgetAmount,Sheet1!S71_SA34cCode,$AC:$AC,Sheet1!S71_RepMaintCode,$AD:$AD)","v":6310000},{"$f":"SUMIFS(Sheet1!S71_OY2BudgetAmount,Sheet1!S71_SA34cCode,$AC:$AC,Sheet1!S71_RepMaintCode,$AD:$AD)","v":6470000},null,null,null,null,null,null,null,null,null,null,null,null,null,null,null,null,null,"1510","RM"]
[null,null,null,null,null,null,null,null,null,null,null,null,null,null,null,null,null,null,null,null,null,null,null,null,null,null,null,null,null,"RM"]
["Transport Assets",null,{"$f":"SUM(C159:C159)","v":4439775},906888,2831954,1200000,5550000,5550000,3000000,3100000,3200000,null,null,null,null,null,null,null,null,null,null,null,null,null,null,null,null,null,null,"RM"]
["Transport Assets",null,{"$f":"SUMIFS(Sheet1!S71_PPPYearAmount,Sheet1!S71_SA34cCode,$AC:$AC,Sheet1!S71_RepMaintCode,$AD:$AD)","v":4439775},{"$f":"SUMIFS(Sheet1!S71_PPYearAmount,Sheet1!S71_SA34cCode,$AC:$AC,Sheet1!S71_RepMaintCode,$AD:$AD)","v":906888},{"$f":"SUMIFS(Sheet1!S71_PYearAmount,Sheet1!S71_SA34cCode,$AC:$AC,Sheet1!S71_RepMaintCode,$AD:$AD)","v":2831954},{"$f":"SUMIFS(Sheet1!S71_OriginalBudAmnt,Sheet1!S71_SA34cCode,$AC:$AC,Sheet1!S71_RepMaintCode,$AD:$AD)","v":1200000},{"$f":"SUMIFS(Sheet1!S71_AdjustmentBudAmnt,Sheet1!S71_SA34cCode,$AC:$AC,Sheet1!S71_RepMaintCode,$AD:$AD)","v":5550000},{"$f":"SUMIFS(Sheet1!S71_AdjustmentBudAmnt,Sheet1!S71_SA34cCode,$AC:$AC,Sheet1!S71_RepMaintCode,$AD:$AD)","v":5550000},{"$f":"SUMIFS(Sheet1!S71_ASBudgetAmount,Sheet1!S71_SA34cCode,$AC:$AC,Sheet1!S71_RepMaintCode,$AD:$AD)","v":3000000},{"$f":"SUMIFS(Sheet1!S71_OY1BudgetAmount,Sheet1!S71_SA34cCode,$AC:$AC,Sheet1!S71_RepMaintCode,$AD:$AD)","v":3100000},{"$f":"SUMIFS(Sheet1!S71_OY2BudgetAmount,Sheet1!S71_SA34cCode,$AC:$AC,Sheet1!S71_RepMaintCode,$AD:$AD)","v":3200000},null,null,null,null,null,null,null,null,null,null,null,null,null,null,null,null,null,"1530","RM"]
[null,null,null,null,null,null,null,null,null,null,null,null,null,null,null,null,null,null,null,null,null,null,null,null,null,null,null,null,null,"RM"]
["Land",null,{"$f":"SUM(C162:C162)","v":0},0,0,0,0,0,0,0,0,null,null,null,null,null,null,null,null,null,null,null,null,null,null,null,null,null,null,"RM"]
["Land",null,{"$f":"SUMIFS(Sheet1!S71_PPPYearAmount,Sheet1!S71_SA34cCode,$AC:$AC,Sheet1!S71_RepMaintCode,$AD:$AD)","v":0},{"$f":"SUMIFS(Sheet1!S71_PPYearAmount,Sheet1!S71_SA34cCode,$AC:$AC,Sheet1!S71_RepMaintCode,$AD:$AD)","v":0},{"$f":"SUMIFS(Sheet1!S71_PYearAmount,Sheet1!S71_SA34cCode,$AC:$AC,Sheet1!S71_RepMaintCode,$AD:$AD)","v":0},{"$f":"SUMIFS(Sheet1!S71_OriginalBudAmnt,Sheet1!S71_SA34cCode,$AC:$AC,Sheet1!S71_RepMaintCode,$AD:$AD)","v":0},{"$f":"SUMIFS(Sheet1!S71_AdjustmentBudAmnt,Sheet1!S71_SA34cCode,$AC:$AC,Sheet1!S71_RepMaintCode,$AD:$AD)","v":0},{"$f":"SUMIFS(Sheet1!S71_AdjustmentBudAmnt,Sheet1!S71_SA34cCode,$AC:$AC,Sheet1!S71_RepMaintCode,$AD:$AD)","v":0},{"$f":"SUMIFS(Sheet1!S71_ASBudgetAmount,Sheet1!S71_SA34cCode,$AC:$AC,Sheet1!S71_RepMaintCode,$AD:$AD)","v":0},{"$f":"SUMIFS(Sheet1!S71_OY1BudgetAmount,Sheet1!S71_SA34cCode,$AC:$AC,Sheet1!S71_RepMaintCode,$AD:$AD)","v":0},{"$f":"SUMIFS(Sheet1!S71_OY2BudgetAmount,Sheet1!S71_SA34cCode,$AC:$AC,Sheet1!S71_RepMaintCode,$AD:$AD)","v":0},null,null,null,null,null,null,null,null,null,null,null,null,null,null,null,null,null,"1550","RM"]
[null,null,null,null,null,null,null,null,null,null,null,null,null,null,null,null,null,null,null,null,null,null,null,null,null,null,null,null,null,"RM"]
["Zoo's, Marine and Non-biological Animals",null,{"$f":"SUM(C165:C165)","v":0},0,0,0,0,0,0,0,0,null,null,null,null,null,null,null,null,null,null,null,null,null,null,null,null,null,null,"RM"]
["Zoo's, Marine and Non-biological Animals",null,{"$f":"SUMIFS(Sheet1!S71_PPPYearAmount,Sheet1!S71_SA34cCode,$AC:$AC,Sheet1!S71_RepMaintCode,$AD:$AD)","v":0},{"$f":"SUMIFS(Sheet1!S71_PPYearAmount,Sheet1!S71_SA34cCode,$AC:$AC,Sheet1!S71_RepMaintCode,$AD:$AD)","v":0},{"$f":"SUMIFS(Sheet1!S71_PYearAmount,Sheet1!S71_SA34cCode,$AC:$AC,Sheet1!S71_RepMaintCode,$AD:$AD)","v":0},{"$f":"SUMIFS(Sheet1!S71_OriginalBudAmnt,Sheet1!S71_SA34cCode,$AC:$AC,Sheet1!S71_RepMaintCode,$AD:$AD)","v":0},{"$f":"SUMIFS(Sheet1!S71_AdjustmentBudAmnt,Sheet1!S71_SA34cCode,$AC:$AC,Sheet1!S71_RepMaintCode,$AD:$AD)","v":0},{"$f":"SUMIFS(Sheet1!S71_AdjustmentBudAmnt,Sheet1!S71_SA34cCode,$AC:$AC,Sheet1!S71_RepMaintCode,$AD:$AD)","v":0},{"$f":"SUMIFS(Sheet1!S71_ASBudgetAmount,Sheet1!S71_SA34cCode,$AC:$AC,Sheet1!S71_RepMaintCode,$AD:$AD)","v":0},{"$f":"SUMIFS(Sheet1!S71_OY1BudgetAmount,Sheet1!S71_SA34cCode,$AC:$AC,Sheet1!S71_RepMaintCode,$AD:$AD)","v":0},{"$f":"SUMIFS(Sheet1!S71_OY2BudgetAmount,Sheet1!S71_SA34cCode,$AC:$AC,Sheet1!S71_RepMaintCode,$AD:$AD)","v":0},null,null,null,null,null,null,null,null,null,null,null,null,null,null,null,null,null,"1570","RM"]
[]
["Living resources"," ",{"$f":"+C168+C171","v":0},{"$f":"+D168+D171","v":0},0,0,0,0,0,0,0]
["Mature"," ",{"$f":"SUM(C169:C170)","v":0},0,0,0,0,0,0,0,0]
["Policing and Protection"," ",{"$f":"SUMIFS(Sheet1!S71_PPPYearAmount,Sheet1!S71_SA34cCode,$AC:$AC,Sheet1!S71_RepMaintCode,$AD:$AD)","v":0},{"$f":"SUMIFS(Sheet1!S71_PPYearAmount,Sheet1!S71_SA34cCode,$AC:$AC,Sheet1!S71_RepMaintCode,$AD:$AD)","v":0},{"$f":"SUMIFS(Sheet1!S71_PYearAmount,Sheet1!S71_SA34cCode,$AC:$AC,Sheet1!S71_RepMaintCode,$AD:$AD)","v":0},{"$f":"SUMIFS(Sheet1!S71_OriginalBudAmnt,Sheet1!S71_SA34cCode,$AC:$AC,Sheet1!S71_RepMaintCode,$AD:$AD)","v":0},{"$f":"SUMIFS(Sheet1!S71_AdjustmentBudAmnt,Sheet1!S71_SA34cCode,$AC:$AC,Sheet1!S71_RepMaintCode,$AD:$AD)","v":0},{"$f":"SUMIFS(Sheet1!S71_AdjustmentBudAmnt,Sheet1!S71_SA34cCode,$AC:$AC,Sheet1!S71_RepMaintCode,$AD:$AD)","v":0},{"$f":"SUMIFS(Sheet1!S71_ASBudgetAmount,Sheet1!S71_SA34cCode,$AC:$AC,Sheet1!S71_RepMaintCode,$AD:$AD)","v":0},{"$f":"SUMIFS(Sheet1!S71_OY1BudgetAmount,Sheet1!S71_SA34cCode,$AC:$AC,Sheet1!S71_RepMaintCode,$AD:$AD)","v":0},{"$f":"SUMIFS(Sheet1!S71_OY2BudgetAmount,Sheet1!S71_SA34cCode,$AC:$AC,Sheet1!S71_RepMaintCode,$AD:$AD)","v":0}]
["Zoological plants and animals"," ",{"$f":"SUMIFS(Sheet1!S71_PPPYearAmount,Sheet1!S71_SA34cCode,$AC:$AC,Sheet1!S71_RepMaintCode,$AD:$AD)","v":0},{"$f":"SUMIFS(Sheet1!S71_PPYearAmount,Sheet1!S71_SA34cCode,$AC:$AC,Sheet1!S71_RepMaintCode,$AD:$AD)","v":0},{"$f":"SUMIFS(Sheet1!S71_PYearAmount,Sheet1!S71_SA34cCode,$AC:$AC,Sheet1!S71_RepMaintCode,$AD:$AD)","v":0},{"$f":"SUMIFS(Sheet1!S71_OriginalBudAmnt,Sheet1!S71_SA34cCode,$AC:$AC,Sheet1!S71_RepMaintCode,$AD:$AD)","v":0},{"$f":"SUMIFS(Sheet1!S71_AdjustmentBudAmnt,Sheet1!S71_SA34cCode,$AC:$AC,Sheet1!S71_RepMaintCode,$AD:$AD)","v":0},{"$f":"SUMIFS(Sheet1!S71_AdjustmentBudAmnt,Sheet1!S71_SA34cCode,$AC:$AC,Sheet1!S71_RepMaintCode,$AD:$AD)","v":0},{"$f":"SUMIFS(Sheet1!S71_ASBudgetAmount,Sheet1!S71_SA34cCode,$AC:$AC,Sheet1!S71_RepMaintCode,$AD:$AD)","v":0},{"$f":"SUMIFS(Sheet1!S71_OY1BudgetAmount,Sheet1!S71_SA34cCode,$AC:$AC,Sheet1!S71_RepMaintCode,$AD:$AD)","v":0},{"$f":"SUMIFS(Sheet1!S71_OY2BudgetAmount,Sheet1!S71_SA34cCode,$AC:$AC,Sheet1!S71_RepMaintCode,$AD:$AD)","v":0}]
["Immature"," ",{"$f":"SUM(C172:C173)","v":0},{"$f":"SUM(D172:D173)","v":0},0,0,0,0,0,0,0]
["Policing and Protection"," ",{"$f":"SUMIFS(Sheet1!S71_PPPYearAmount,Sheet1!S71_SA34cCode,$AC:$AC,Sheet1!S71_RepMaintCode,$AD:$AD)","v":0},{"$f":"SUMIFS(Sheet1!S71_PPYearAmount,Sheet1!S71_SA34cCode,$AC:$AC,Sheet1!S71_RepMaintCode,$AD:$AD)","v":0},{"$f":"SUMIFS(Sheet1!S71_PYearAmount,Sheet1!S71_SA34cCode,$AC:$AC,Sheet1!S71_RepMaintCode,$AD:$AD)","v":0},{"$f":"SUMIFS(Sheet1!S71_OriginalBudAmnt,Sheet1!S71_SA34cCode,$AC:$AC,Sheet1!S71_RepMaintCode,$AD:$AD)","v":0},{"$f":"SUMIFS(Sheet1!S71_AdjustmentBudAmnt,Sheet1!S71_SA34cCode,$AC:$AC,Sheet1!S71_RepMaintCode,$AD:$AD)","v":0},{"$f":"SUMIFS(Sheet1!S71_AdjustmentBudAmnt,Sheet1!S71_SA34cCode,$AC:$AC,Sheet1!S71_RepMaintCode,$AD:$AD)","v":0},{"$f":"SUMIFS(Sheet1!S71_ASBudgetAmount,Sheet1!S71_SA34cCode,$AC:$AC,Sheet1!S71_RepMaintCode,$AD:$AD)","v":0},{"$f":"SUMIFS(Sheet1!S71_OY1BudgetAmount,Sheet1!S71_SA34cCode,$AC:$AC,Sheet1!S71_RepMaintCode,$AD:$AD)","v":0},{"$f":"SUMIFS(Sheet1!S71_OY2BudgetAmount,Sheet1!S71_SA34cCode,$AC:$AC,Sheet1!S71_RepMaintCode,$AD:$AD)","v":0}]
["Zoological plants and animals"," ",{"$f":"SUMIFS(Sheet1!S71_PPPYearAmount,Sheet1!S71_SA34cCode,$AC:$AC,Sheet1!S71_RepMaintCode,$AD:$AD)","v":0},{"$f":"SUMIFS(Sheet1!S71_PPYearAmount,Sheet1!S71_SA34cCode,$AC:$AC,Sheet1!S71_RepMaintCode,$AD:$AD)","v":0},{"$f":"SUMIFS(Sheet1!S71_PYearAmount,Sheet1!S71_SA34cCode,$AC:$AC,Sheet1!S71_RepMaintCode,$AD:$AD)","v":0},{"$f":"SUMIFS(Sheet1!S71_OriginalBudAmnt,Sheet1!S71_SA34cCode,$AC:$AC,Sheet1!S71_RepMaintCode,$AD:$AD)","v":0},{"$f":"SUMIFS(Sheet1!S71_AdjustmentBudAmnt,Sheet1!S71_SA34cCode,$AC:$AC,Sheet1!S71_RepMaintCode,$AD:$AD)","v":0},{"$f":"SUMIFS(Sheet1!S71_AdjustmentBudAmnt,Sheet1!S71_SA34cCode,$AC:$AC,Sheet1!S71_RepMaintCode,$AD:$AD)","v":0},{"$f":"SUMIFS(Sheet1!S71_ASBudgetAmount,Sheet1!S71_SA34cCode,$AC:$AC,Sheet1!S71_RepMaintCode,$AD:$AD)","v":0},{"$f":"SUMIFS(Sheet1!S71_OY1BudgetAmount,Sheet1!S71_SA34cCode,$AC:$AC,Sheet1!S71_RepMaintCode,$AD:$AD)","v":0},{"$f":"SUMIFS(Sheet1!S71_OY2BudgetAmount,Sheet1!S71_SA34cCode,$AC:$AC,Sheet1!S71_RepMaintCode,$AD:$AD)","v":0}]
[""]
["Total Repairs and Maintenance Expenditure",1,{"$f":"C6+C74+C103+C110+C118+C136+C139+C149+C152+C155+C158+C161+C164+C167","v":5698752},{"$f":"D6+D74+D103+D110+D118+D136+D139+D149+D152+D155+D158+D161+D164+D167","v":7162471},20762933,45700000,66650000,66650000,62620000,66065000,67465000]
[]
["R&M as a % of PPE",null,{"$f":"IF(ISERROR(ROUND(C175/'A6-FinPos'!C17,3)),0,(ROUND(C175/'A6-FinPos'!C17,3)))","v":-2.1999999999999999E-2},{"$f":"IF(ISERROR(ROUND(D175/'A6-FinPos'!D20,3)),0,(ROUND(D175/'A6-FinPos'!D20,3)))","v":0},{"$f":"IF(ISERROR(ROUND(E175/'A6-FinPos'!E20,3)),0,(ROUND(E175/'A6-FinPos'!E20,3)))","v":0},{"$f":"IF(ISERROR(ROUND(F175/'A6-FinPos'!F20,3)),0,(ROUND(F175/'A6-FinPos'!F20,3)))","v":221.51900000000001},{"$f":"IF(ISERROR(ROUND(G175/'A6-FinPos'!G20,3)),0,(ROUND(G175/'A6-FinPos'!G20,3)))","v":323.06799999999998},{"$f":"IF(ISERROR(ROUND(H175/'A6-FinPos'!H20,3)),0,(ROUND(H175/'A6-FinPos'!H20,3)))","v":323.06799999999998},{"$f":"IF(ISERROR(ROUND(I175/'A6-FinPos'!I20,3)),0,(ROUND(I175/'A6-FinPos'!I20,3)))","v":303.53399999999999},{"$f":"IF(ISERROR(ROUND(J175/'A6-FinPos'!J20,3)),0,(ROUND(J175/'A6-FinPos'!J20,3)))","v":0},{"$f":"IF(ISERROR(ROUND(K175/'A6-FinPos'!K20,3)),0,(ROUND(K175/'A6-FinPos'!K20,3)))","v":0}]
["R&M as % Operating Expenditure",null,{"$f":"IF(ISERROR(ROUND(C175/'A1-Sum'!B18,3)),0,(ROUND(C175/'A1-Sum'!B18,3)))","v":3.9E-2},{"$f":"IF(ISERROR(ROUND(D175/'A1-Sum'!C18,3)),0,(ROUND(D175/'A1-Sum'!C18,3)))","v":1.7000000000000001E-2},{"$f":"IF(ISERROR(ROUND(E175/'A1-Sum'!D18,3)),0,(ROUND(E175/'A1-Sum'!D18,3)))","v":4.7E-2},{"$f":"IF(ISERROR(ROUND(F175/'A1-Sum'!E18,3)),0,(ROUND(F175/'A1-Sum'!E18,3)))","v":8.3000000000000004E-2},{"$f":"IF(ISERROR(ROUND(G175/'A1-Sum'!F18,3)),0,(ROUND(G175/'A1-Sum'!F18,3)))","v":0.12},{"$f":"IF(ISERROR(ROUND(H175/'A1-Sum'!G18,3)),0,(ROUND(H175/'A1-Sum'!G18,3)))","v":0.12},{"$f":"IF(ISERROR(ROUND(I175/'A1-Sum'!H18,3)),0,(ROUND(I175/'A1-Sum'!H18,3)))","v":0.113},{"$f":"IF(ISERROR(ROUND(J175/'A1-Sum'!I18,3)),0,(ROUND(J175/'A1-Sum'!I18,3)))","v":0.109},{"$f":"IF(ISERROR(ROUND(K175/'A1-Sum'!J18,3)),0,(ROUND(K175/'A1-Sum'!J18,3)))","v":0.109}]
[{"$f":"head27a","v":"References"}]
["1. Total Repairs and Maintenance Expenditure by Asset Category must reconcile to total repairs and maintenance expenditure on Table SA1"]

{"sheet":"SA34d","index":82,"n_rows":181,"n_cols":30,"rows_kept":181,"cut":false,"hidden":false,"merged":[[1,5,1,7],[1,8,1,10]]}
[{"$f":"muni&\" - \"&TableA34d","v":"LIM331 Greater Giyani - Supporting Table SA34d Depreciation by asset class"}]
[{"$f":"desc","v":"Description"},{"$f":"head27","v":"Ref"},{"$f":"head1b","v":"2019/20"},{"$f":"head1A","v":"2020/21"},{"$f":"Head1","v":"2021/22"},{"$f":"Head2","v":"Current Year 2022/23"},null,null,{"$f":"Head3","v":"2023/24 Medium Term Revenue & Expenditure Framework"}]
["R thousand",1,{"$f":"Head5","v":"Audited Outcome"},{"$f":"Head5","v":"Audited Outcome"},{"$f":"Head5","v":"Audited Outcome"},{"$f":"Head6","v":"Original Budget"},{"$f":"Head7","v":"Adjusted Budget"},{"$f":"Head8","v":"Full Year Forecast"},{"$f":"Head9","v":"Budget Year 2023/24"},{"$f":"Head10","v":"Budget Year +1 2024/25"},{"$f":"Head11","v":"Budget Year +2 2025/26"}]
["Depreciation by Asset Class/Sub-class"]
[]
["Infrastructure",null,{"$f":"C7+C12+C16+C26+C37+C44+C52+C62+C68","v":74972616},{"$f":"D7+D12+D16+D26+D37+D44+D52+D62+D68","v":76972153},79149196,71500000,71500000,71500000,4400000,4600000,4800000]
["Roads Infrastructure",null,{"$f":"SUM(C8:C11)","v":74972616},76972153,79149196,71500000,71500000,71500000,4400000,4600000,4800000]
["Roads",null,{"$f":"SUMIFS(Sheet1!S71_PPPYearAmount,Sheet1!S71_SA34dCode,$AC:$AC,Sheet1!S71_DepCode,$AD:$AD)","v":74972616},{"$f":"SUMIFS(Sheet1!S71_PPYearAmount,Sheet1!S71_SA34dCode,$AC:$AC,Sheet1!S71_DepCode,$AD:$AD)","v":76972153},{"$f":"SUMIFS(Sheet1!S71_PYearAmount,Sheet1!S71_SA34dCode,$AC:$AC,Sheet1!S71_DepCode,$AD:$AD)","v":79149196},{"$f":"SUMIFS(Sheet1!S71_OriginalBudAmnt,Sheet1!S71_SA34dCode,$AC:$AC,Sheet1!S71_DepCode,$AD:$AD)","v":71500000},{"$f":"SUMIFS(Sheet1!S71_AdjustmentBudAmnt,Sheet1!S71_SA34dCode,$AC:$AC,Sheet1!S71_DepCode,$AD:$AD)","v":71500000},{"$f":"SUMIFS(Sheet1!S71_AdjustmentBudAmnt,Sheet1!S71_SA34dCode,$AC:$AC,Sheet1!S71_DepCode,$AD:$AD)","v":71500000},{"$f":"SUMIFS(Sheet1!S71_ASBudgetAmount,Sheet1!S71_SA34dCode,$AC:$AC,Sheet1!S71_DepCode,$AD:$AD)","v":4400000},{"$f":"SUMIFS(Sheet1!S71_OY1BudgetAmount,Sheet1!S71_SA34dCode,$AC:$AC,Sheet1!S71_DepCode,$AD:$AD)","v":4600000},{"$f":"SUMIFS(Sheet1!S71_OY2BudgetAmount,Sheet1!S71_SA34dCode,$AC:$AC,Sheet1!S71_DepCode,$AD:$AD)","v":4800000},null,null,null,null,null,null,null,null,null,null,null,null,null,null,null,null,null,"0120","DP"]
["Road Structures",null,{"$f":"SUMIFS(Sheet1!S71_PPPYearAmount,Sheet1!S71_SA34dCode,$AC:$AC,Sheet1!S71_DepCode,$AD:$AD)","v":0},{"$f":"SUMIFS(Sheet1!S71_PPYearAmount,Sheet1!S71_SA34dCode,$AC:$AC,Sheet1!S71_DepCode,$AD:$AD)","v":0},{"$f":"SUMIFS(Sheet1!S71_PYearAmount,Sheet1!S71_SA34dCode,$AC:$AC,Sheet1!S71_DepCode,$AD:$AD)","v":0},{"$f":"SUMIFS(Sheet1!S71_OriginalBudAmnt,Sheet1!S71_SA34dCode,$AC:$AC,Sheet1!S71_DepCode,$AD:$AD)","v":0},{"$f":"SUMIFS(Sheet1!S71_AdjustmentBudAmnt,Sheet1!S71_SA34dCode,$AC:$AC,Sheet1!S71_DepCode,$AD:$AD)","v":0},{"$f":"SUMIFS(Sheet1!S71_AdjustmentBudAmnt,Sheet1!S71_SA34dCode,$AC:$AC,Sheet1!S71_DepCode,$AD:$AD)","v":0},{"$f":"SUMIFS(Sheet1!S71_ASBudgetAmount,Sheet1!S71_SA34dCode,$AC:$AC,Sheet1!S71_DepCode,$AD:$AD)","v":0},{"$f":"SUMIFS(Sheet1!S71_OY1BudgetAmount,Sheet1!S71_SA34dCode,$AC:$AC,Sheet1!S71_DepCode,$AD:$AD)","v":0},{"$f":"SUMIFS(Sheet1!S71_OY2BudgetAmount,Sheet1!S71_SA34dCode,$AC:$AC,Sheet1!S71_DepCode,$AD:$AD)","v":0},null,null,null,null,null,null,null,null,null,null,null,null,null,null,null,null,null,"0130","DP"]
["Road Furniture",null,{"$f":"SUMIFS(Sheet1!S71_PPPYearAmount,Sheet1!S71_SA34dCode,$AC:$AC,Sheet1!S71_DepCode,$AD:$AD)","v":0},{"$f":"SUMIFS(Sheet1!S71_PPYearAmount,Sheet1!S71_SA34dCode,$AC:$AC,Sheet1!S71_DepCode,$AD:$AD)","v":0},{"$f":"SUMIFS(Sheet1!S71_PYearAmount,Sheet1!S71_SA34dCode,$AC:$AC,Sheet1!S71_DepCode,$AD:$AD)","v":0},{"$f":"SUMIFS(Sheet1!S71_OriginalBudAmnt,Sheet1!S71_SA34dCode,$AC:$AC,Sheet1!S71_DepCode,$AD:$AD)","v":0},{"$f":"SUMIFS(Sheet1!S71_AdjustmentBudAmnt,Sheet1!S71_SA34dCode,$AC:$AC,Sheet1!S71_DepCode,$AD:$AD)","v":0},{"$f":"SUMIFS(Sheet1!S71_AdjustmentBudAmnt,Sheet1!S71_SA34dCode,$AC:$AC,Sheet1!S71_DepCode,$AD:$AD)","v":0},{"$f":"SUMIFS(Sheet1!S71_ASBudgetAmount,Sheet1!S71_SA34dCode,$AC:$AC,Sheet1!S71_DepCode,$AD:$AD)","v":0},{"$f":"SUMIFS(Sheet1!S71_OY1BudgetAmount,Sheet1!S71_SA34dCode,$AC:$AC,Sheet1!S71_DepCode,$AD:$AD)","v":0},{"$f":"SUMIFS(Sheet1!S71_OY2BudgetAmount,Sheet1!S71_SA34dCode,$AC:$AC,Sheet1!S71_DepCode,$AD:$AD)","v":0},null,null,null,null,null,null,null,null,null,null,null,null,null,null,null,null,null,"0140","DP"]
["Capital Spares",null,{"$f":"SUMIFS(Sheet1!S71_PPPYearAmount,Sheet1!S71_SA34dCode,$AC:$AC,Sheet1!S71_DepCode,$AD:$AD)","v":0},{"$f":"SUMIFS(Sheet1!S71_PPYearAmount,Sheet1!S71_SA34dCode,$AC:$AC,Sheet1!S71_DepCode,$AD:$AD)","v":0},{"$f":"SUMIFS(Sheet1!S71_PYearAmount,Sheet1!S71_SA34dCode,$AC:$AC,Sheet1!S71_DepCode,$AD:$AD)","v":0},{"$f":"SUMIFS(Sheet1!S71_OriginalBudAmnt,Sheet1!S71_SA34dCode,$AC:$AC,Sheet1!S71_DepCode,$AD:$AD)","v":0},{"$f":"SUMIFS(Sheet1!S71_AdjustmentBudAmnt,Sheet1!S71_SA34dCode,$AC:$AC,Sheet1!S71_DepCode,$AD:$AD)","v":0},{"$f":"SUMIFS(Sheet1!S71_AdjustmentBudAmnt,Sheet1!S71_SA34dCode,$AC:$AC,Sheet1!S71_DepCode,$AD:$AD)","v":0},{"$f":"SUMIFS(Sheet1!S71_ASBudgetAmount,Sheet1!S71_SA34dCode,$AC:$AC,Sheet1!S71_DepCode,$AD:$AD)","v":0},{"$f":"SUMIFS(Sheet1!S71_OY1BudgetAmount,Sheet1!S71_SA34dCode,$AC:$AC,Sheet1!S71_DepCode,$AD:$AD)","v":0},{"$f":"SUMIFS(Sheet1!S71_OY2BudgetAmount,Sheet1!S71_SA34dCode,$AC:$AC,Sheet1!S71_DepCode,$AD:$AD)","v":0},null,null,null,null,null,null,null,null,null,null,null,null,null,null,null,null,null,"0150","DP"]
["Storm water Infrastructure",null,{"$f":"SUM(C13:C15)","v":0},{"$f":"SUM(D13:D15)","v":0},0,0,0,0,0,0,0,null,null,null,null,null,null,null,null,null,null,null,null,null,null,null,null,null,null,"DP"]
["Drainage Collection",null,{"$f":"SUMIFS(Sheet1!S71_PPPYearAmount,Sheet1!S71_SA34dCode,$AC:$AC,Sheet1!S71_DepCode,$AD:$AD)","v":0},{"$f":"SUMIFS(Sheet1!S71_PPYearAmount,Sheet1!S71_SA34dCode,$AC:$AC,Sheet1!S71_DepCode,$AD:$AD)","v":0},{"$f":"SUMIFS(Sheet1!S71_PYearAmount,Sheet1!S71_SA34dCode,$AC:$AC,Sheet1!S71_DepCode,$AD:$AD)","v":0},{"$f":"SUMIFS(Sheet1!S71_OriginalBudAmnt,Sheet1!S71_SA34dCode,$AC:$AC,Sheet1!S71_DepCode,$AD:$AD)","v":0},{"$f":"SUMIFS(Sheet1!S71_AdjustmentBudAmnt,Sheet1!S71_SA34dCode,$AC:$AC,Sheet1!S71_DepCode,$AD:$AD)","v":0},{"$f":"SUMIFS(Sheet1!S71_AdjustmentBudAmnt,Sheet1!S71_SA34dCode,$AC:$AC,Sheet1!S71_DepCode,$AD:$AD)","v":0},{"$f":"SUMIFS(Sheet1!S71_ASBudgetAmount,Sheet1!S71_SA34dCode,$AC:$AC,Sheet1!S71_DepCode,$AD:$AD)","v":0},{"$f":"SUMIFS(Sheet1!S71_OY1BudgetAmount,Sheet1!S71_SA34dCode,$AC:$AC,Sheet1!S71_DepCode,$AD:$AD)","v":0},{"$f":"SUMIFS(Sheet1!S71_OY2BudgetAmount,Sheet1!S71_SA34dCode,$AC:$AC,Sheet1!S71_DepCode,$AD:$AD)","v":0},null,null,null,null,null,null,null,null,null,null,null,null,null,null,null,null,null,"0170","DP"]
["Storm water Conveyance",null,{"$f":"SUMIFS(Sheet1!S71_PPPYearAmount,Sheet1!S71_SA34dCode,$AC:$AC,Sheet1!S71_DepCode,$AD:$AD)","v":0},{"$f":"SUMIFS(Sheet1!S71_PPYearAmount,Sheet1!S71_SA34dCode,$AC:$AC,Sheet1!S71_DepCode,$AD:$AD)","v":0},{"$f":"SUMIFS(Sheet1!S71_PYearAmount,Sheet1!S71_SA34dCode,$AC:$AC,Sheet1!S71_DepCode,$AD:$AD)","v":0},{"$f":"SUMIFS(Sheet1!S71_OriginalBudAmnt,Sheet1!S71_SA34dCode,$AC:$AC,Sheet1!S71_DepCode,$AD:$AD)","v":0},{"$f":"SUMIFS(Sheet1!S71_AdjustmentBudAmnt,Sheet1!S71_SA34dCode,$AC:$AC,Sheet1!S71_DepCode,$AD:$AD)","v":0},{"$f":"SUMIFS(Sheet1!S71_AdjustmentBudAmnt,Sheet1!S71_SA34dCode,$AC:$AC,Sheet1!S71_DepCode,$AD:$AD)","v":0},{"$f":"SUMIFS(Sheet1!S71_ASBudgetAmount,Sheet1!S71_SA34dCode,$AC:$AC,Sheet1!S71_DepCode,$AD:$AD)","v":0},{"$f":"SUMIFS(Sheet1!S71_OY1BudgetAmount,Sheet1!S71_SA34dCode,$AC:$AC,Sheet1!S71_DepCode,$AD:$AD)","v":0},{"$f":"SUMIFS(Sheet1!S71_OY2BudgetAmount,Sheet1!S71_SA34dCode,$AC:$AC,Sheet1!S71_DepCode,$AD:$AD)","v":0},null,null,null,null,null,null,null,null,null,null,null,null,null,null,null,null,null,"0180","DP"]
["Attenuation",null,{"$f":"SUMIFS(Sheet1!S71_PPPYearAmount,Sheet1!S71_SA34dCode,$AC:$AC,Sheet1!S71_DepCode,$AD:$AD)","v":0},{"$f":"SUMIFS(Sheet1!S71_PPYearAmount,Sheet1!S71_SA34dCode,$AC:$AC,Sheet1!S71_DepCode,$AD:$AD)","v":0},{"$f":"SUMIFS(Sheet1!S71_PYearAmount,Sheet1!S71_SA34dCode,$AC:$AC,Sheet1!S71_DepCode,$AD:$AD)","v":0},{"$f":"SUMIFS(Sheet1!S71_OriginalBudAmnt,Sheet1!S71_SA34dCode,$AC:$AC,Sheet1!S71_DepCode,$AD:$AD)","v":0},{"$f":"SUMIFS(Sheet1!S71_AdjustmentBudAmnt,Sheet1!S71_SA34dCode,$AC:$AC,Sheet1!S71_DepCode,$AD:$AD)","v":0},{"$f":"SUMIFS(Sheet1!S71_AdjustmentBudAmnt,Sheet1!S71_SA34dCode,$AC:$AC,Sheet1!S71_DepCode,$AD:$AD)","v":0},{"$f":"SUMIFS(Sheet1!S71_ASBudgetAmount,Sheet1!S71_SA34dCode,$AC:$AC,Sheet1!S71_DepCode,$AD:$AD)","v":0},{"$f":"SUMIFS(Sheet1!S71_OY1BudgetAmount,Sheet1!S71_SA34dCode,$AC:$AC,Sheet1!S71_DepCode,$AD:$AD)","v":0},{"$f":"SUMIFS(Sheet1!S71_OY2BudgetAmount,Sheet1!S71_SA34dCode,$AC:$AC,Sheet1!S71_DepCode,$AD:$AD)","v":0},null,null,null,null,null,null,null,null,null,null,null,null,null,null,null,null,null,"0190","DP"]
["Electrical Infrastructure",null,{"$f":"SUM(C17:C25)","v":0},0,0,0,0,0,0,0,0,null,null,null,null,null,null,null,null,null,null,null,null,null,null,null,null,null,null,"DP"]
["Power Plants",null,{"$f":"SUMIFS(Sheet1!S71_PPPYearAmount,Sheet1!S71_SA34dCode,$AC:$AC,Sheet1!S71_DepCode,$AD:$AD)","v":0},{"$f":"SUMIFS(Sheet1!S71_PPYearAmount,Sheet1!S71_SA34dCode,$AC:$AC,Sheet1!S71_DepCode,$AD:$AD)","v":0},{"$f":"SUMIFS(Sheet1!S71_PYearAmount,Sheet1!S71_SA34dCode,$AC:$AC,Sheet1!S71_DepCode,$AD:$AD)","v":0},{"$f":"SUMIFS(Sheet1!S71_OriginalBudAmnt,Sheet1!S71_SA34dCode,$AC:$AC,Sheet1!S71_DepCode,$AD:$AD)","v":0},{"$f":"SUMIFS(Sheet1!S71_AdjustmentBudAmnt,Sheet1!S71_SA34dCode,$AC:$AC,Sheet1!S71_DepCode,$AD:$AD)","v":0},{"$f":"SUMIFS(Sheet1!S71_AdjustmentBudAmnt,Sheet1!S71_SA34dCode,$AC:$AC,Sheet1!S71_DepCode,$AD:$AD)","v":0},{"$f":"SUMIFS(Sheet1!S71_ASBudgetAmount,Sheet1!S71_SA34dCode,$AC:$AC,Sheet1!S71_DepCode,$AD:$AD)","v":0},{"$f":"SUMIFS(Sheet1!S71_OY1BudgetAmount,Sheet1!S71_SA34dCode,$AC:$AC,Sheet1!S71_DepCode,$AD:$AD)","v":0},{"$f":"SUMIFS(Sheet1!S71_OY2BudgetAmount,Sheet1!S71_SA34dCode,$AC:$AC,Sheet1!S71_DepCode,$AD:$AD)","v":0},null,null,null,null,null,null,null,null,null,null,null,null,null,null,null,null,null,"0210","DP"]
["HV Substations",null,{"$f":"SUMIFS(Sheet1!S71_PPPYearAmount,Sheet1!S71_SA34dCode,$AC:$AC,Sheet1!S71_DepCode,$AD:$AD)","v":0},{"$f":"SUMIFS(Sheet1!S71_PPYearAmount,Sheet1!S71_SA34dCode,$AC:$AC,Sheet1!S71_DepCode,$AD:$AD)","v":0},{"$f":"SUMIFS(Sheet1!S71_PYearAmount,Sheet1!S71_SA34dCode,$AC:$AC,Sheet1!S71_DepCode,$AD:$AD)","v":0},{"$f":"SUMIFS(Sheet1!S71_OriginalBudAmnt,Sheet1!S71_SA34dCode,$AC:$AC,Sheet1!S71_DepCode,$AD:$AD)","v":0},{"$f":"SUMIFS(Sheet1!S71_AdjustmentBudAmnt,Sheet1!S71_SA34dCode,$AC:$AC,Sheet1!S71_DepCode,$AD:$AD)","v":0},{"$f":"SUMIFS(Sheet1!S71_AdjustmentBudAmnt,Sheet1!S71_SA34dCode,$AC:$AC,Sheet1!S71_DepCode,$AD:$AD)","v":0},{"$f":"SUMIFS(Sheet1!S71_ASBudgetAmount,Sheet1!S71_SA34dCode,$AC:$AC,Sheet1!S71_DepCode,$AD:$AD)","v":0},{"$f":"SUMIFS(Sheet1!S71_OY1BudgetAmount,Sheet1!S71_SA34dCode,$AC:$AC,Sheet1!S71_DepCode,$AD:$AD)","v":0},{"$f":"SUMIFS(Sheet1!S71_OY2BudgetAmount,Sheet1!S71_SA34dCode,$AC:$AC,Sheet1!S71_DepCode,$AD:$AD)","v":0},null,null,null,null,null,null,null,null,null,null,null,null,null,null,null,null,null,"0220","DP"]
["HV Switching Station",null,{"$f":"SUMIFS(Sheet1!S71_PPPYearAmount,Sheet1!S71_SA34dCode,$AC:$AC,Sheet1!S71_DepCode,$AD:$AD)","v":0},{"$f":"SUMIFS(Sheet1!S71_PPYearAmount,Sheet1!S71_SA34dCode,$AC:$AC,Sheet1!S71_DepCode,$AD:$AD)","v":0},{"$f":"SUMIFS(Sheet1!S71_PYearAmount,Sheet1!S71_SA34dCode,$AC:$AC,Sheet1!S71_DepCode,$AD:$AD)","v":0},{"$f":"SUMIFS(Sheet1!S71_OriginalBudAmnt,Sheet1!S71_SA34dCode,$AC:$AC,Sheet1!S71_DepCode,$AD:$AD)","v":0},{"$f":"SUMIFS(Sheet1!S71_AdjustmentBudAmnt,Sheet1!S71_SA34dCode,$AC:$AC,Sheet1!S71_DepCode,$AD:$AD)","v":0},{"$f":"SUMIFS(Sheet1!S71_AdjustmentBudAmnt,Sheet1!S71_SA34dCode,$AC:$AC,Sheet1!S71_DepCode,$AD:$AD)","v":0},{"$f":"SUMIFS(Sheet1!S71_ASBudgetAmount,Sheet1!S71_SA34dCode,$AC:$AC,Sheet1!S71_DepCode,$AD:$AD)","v":0},{"$f":"SUMIFS(Sheet1!S71_OY1BudgetAmount,Sheet1!S71_SA34dCode,$AC:$AC,Sheet1!S71_DepCode,$AD:$AD)","v":0},{"$f":"SUMIFS(Sheet1!S71_OY2BudgetAmount,Sheet1!S71_SA34dCode,$AC:$AC,Sheet1!S71_DepCode,$AD:$AD)","v":0},null,null,null,null,null,null,null,null,null,null,null,null,null,null,null,null,null,"0230","DP"]
["HV Transmission Conductors",null,{"$f":"SUMIFS(Sheet1!S71_PPPYearAmount,Sheet1!S71_SA34dCode,$AC:$AC,Sheet1!S71_DepCode,$AD:$AD)","v":0},{"$f":"SUMIFS(Sheet1!S71_PPYearAmount,Sheet1!S71_SA34dCode,$AC:$AC,Sheet1!S71_DepCode,$AD:$AD)","v":0},{"$f":"SUMIFS(Sheet1!S71_PYearAmount,Sheet1!S71_SA34dCode,$AC:$AC,Sheet1!S71_DepCode,$AD:$AD)","v":0},{"$f":"SUMIFS(Sheet1!S71_OriginalBudAmnt,Sheet1!S71_SA34dCode,$AC:$AC,Sheet1!S71_DepCode,$AD:$AD)","v":0},{"$f":"SUMIFS(Sheet1!S71_AdjustmentBudAmnt,Sheet1!S71_SA34dCode,$AC:$AC,Sheet1!S71_DepCode,$AD:$AD)","v":0},{"$f":"SUMIFS(Sheet1!S71_AdjustmentBudAmnt,Sheet1!S71_SA34dCode,$AC:$AC,Sheet1!S71_DepCode,$AD:$AD)","v":0},{"$f":"SUMIFS(Sheet1!S71_ASBudgetAmount,Sheet1!S71_SA34dCode,$AC:$AC,Sheet1!S71_DepCode,$AD:$AD)","v":0},{"$f":"SUMIFS(Sheet1!S71_OY1BudgetAmount,Sheet1!S71_SA34dCode,$AC:$AC,Sheet1!S71_DepCode,$AD:$AD)","v":0},{"$f":"SUMIFS(Sheet1!S71_OY2BudgetAmount,Sheet1!S71_SA34dCode,$AC:$AC,Sheet1!S71_DepCode,$AD:$AD)","v":0},null,null,null,null,null,null,null,null,null,null,null,null,null,null,null,null,null,"0240","DP"]
["MV Substations",null,{"$f":"SUMIFS(Sheet1!S71_PPPYearAmount,Sheet1!S71_SA34dCode,$AC:$AC,Sheet1!S71_DepCode,$AD:$AD)","v":0},{"$f":"SUMIFS(Sheet1!S71_PPYearAmount,Sheet1!S71_SA34dCode,$AC:$AC,Sheet1!S71_DepCode,$AD:$AD)","v":0},{"$f":"SUMIFS(Sheet1!S71_PYearAmount,Sheet1!S71_SA34dCode,$AC:$AC,Sheet1!S71_DepCode,$AD:$AD)","v":0},{"$f":"SUMIFS(Sheet1!S71_OriginalBudAmnt,Sheet1!S71_SA34dCode,$AC:$AC,Sheet1!S71_DepCode,$AD:$AD)","v":0},{"$f":"SUMIFS(Sheet1!S71_AdjustmentBudAmnt,Sheet1!S71_SA34dCode,$AC:$AC,Sheet1!S71_DepCode,$AD:$AD)","v":0},{"$f":"SUMIFS(Sheet1!S71_AdjustmentBudAmnt,Sheet1!S71_SA34dCode,$AC:$AC,Sheet1!S71_DepCode,$AD:$AD)","v":0},{"$f":"SUMIFS(Sheet1!S71_ASBudgetAmount,Sheet1!S71_SA34dCode,$AC:$AC,Sheet1!S71_DepCode,$AD:$AD)","v":0},{"$f":"SUMIFS(Sheet1!S71_OY1BudgetAmount,Sheet1!S71_SA34dCode,$AC:$AC,Sheet1!S71_DepCode,$AD:$AD)","v":0},{"$f":"SUMIFS(Sheet1!S71_OY2BudgetAmount,Sheet1!S71_SA34dCode,$AC:$AC,Sheet1!S71_DepCode,$AD:$AD)","v":0},null,null,null,null,null,null,null,null,null,null,null,null,null,null,null,null,null,"0250","DP"]
["MV Switching Stations",null,{"$f":"SUMIFS(Sheet1!S71_PPPYearAmount,Sheet1!S71_SA34dCode,$AC:$AC,Sheet1!S71_DepCode,$AD:$AD)","v":0},{"$f":"SUMIFS(Sheet1!S71_PPYearAmount,Sheet1!S71_SA34dCode,$AC:$AC,Sheet1!S71_DepCode,$AD:$AD)","v":0},{"$f":"SUMIFS(Sheet1!S71_PYearAmount,Sheet1!S71_SA34dCode,$AC:$AC,Sheet1!S71_DepCode,$AD:$AD)","v":0},{"$f":"SUMIFS(Sheet1!S71_OriginalBudAmnt,Sheet1!S71_SA34dCode,$AC:$AC,Sheet1!S71_DepCode,$AD:$AD)","v":0},{"$f":"SUMIFS(Sheet1!S71_AdjustmentBudAmnt,Sheet1!S71_SA34dCode,$AC:$AC,Sheet1!S71_DepCode,$AD:$AD)","v":0},{"$f":"SUMIFS(Sheet1!S71_AdjustmentBudAmnt,Sheet1!S71_SA34dCode,$AC:$AC,Sheet1!S71_DepCode,$AD:$AD)","v":0},{"$f":"SUMIFS(Sheet1!S71_ASBudgetAmount,Sheet1!S71_SA34dCode,$AC:$AC,Sheet1!S71_DepCode,$AD:$AD)","v":0},{"$f":"SUMIFS(Sheet1!S71_OY1BudgetAmount,Sheet1!S71_SA34dCode,$AC:$AC,Sheet1!S71_DepCode,$AD:$AD)","v":0},{"$f":"SUMIFS(Sheet1!S71_OY2BudgetAmount,Sheet1!S71_SA34dCode,$AC:$AC,Sheet1!S71_DepCode,$AD:$AD)","v":0},null,null,null,null,null,null,null,null,null,null,null,null,null,null,null,null,null,"0260","DP"]
["MV Networks",null,{"$f":"SUMIFS(Sheet1!S71_PPPYearAmount,Sheet1!S71_SA34dCode,$AC:$AC,Sheet1!S71_DepCode,$AD:$AD)","v":0},{"$f":"SUMIFS(Sheet1!S71_PPYearAmount,Sheet1!S71_SA34dCode,$AC:$AC,Sheet1!S71_DepCode,$AD:$AD)","v":0},{"$f":"SUMIFS(Sheet1!S71_PYearAmount,Sheet1!S71_SA34dCode,$AC:$AC,Sheet1!S71_DepCode,$AD:$AD)","v":0},{"$f":"SUMIFS(Sheet1!S71_OriginalBudAmnt,Sheet1!S71_SA34dCode,$AC:$AC,Sheet1!S71_DepCode,$AD:$AD)","v":0},{"$f":"SUMIFS(Sheet1!S71_AdjustmentBudAmnt,Sheet1!S71_SA34dCode,$AC:$AC,Sheet1!S71_DepCode,$AD:$AD)","v":0},{"$f":"SUMIFS(Sheet1!S71_AdjustmentBudAmnt,Sheet1!S71_SA34dCode,$AC:$AC,Sheet1!S71_DepCode,$AD:$AD)","v":0},{"$f":"SUMIFS(Sheet1!S71_ASBudgetAmount,Sheet1!S71_SA34dCode,$AC:$AC,Sheet1!S71_DepCode,$AD:$AD)","v":0},{"$f":"SUMIFS(Sheet1!S71_OY1BudgetAmount,Sheet1!S71_SA34dCode,$AC:$AC,Sheet1!S71_DepCode,$AD:$AD)","v":0},{"$f":"SUMIFS(Sheet1!S71_OY2BudgetAmount,Sheet1!S71_SA34dCode,$AC:$AC,Sheet1!S71_DepCode,$AD:$AD)","v":0},null,null,null,null,null,null,null,null,null,null,null,null,null,null,null,null,null,"0270","DP"]
["LV Networks",null,{"$f":"SUMIFS(Sheet1!S71_PPPYearAmount,Sheet1!S71_SA34dCode,$AC:$AC,Sheet1!S71_DepCode,$AD:$AD)","v":0},{"$f":"SUMIFS(Sheet1!S71_PPYearAmount,Sheet1!S71_SA34dCode,$AC:$AC,Sheet1!S71_DepCode,$AD:$AD)","v":0},{"$f":"SUMIFS(Sheet1!S71_PYearAmount,Sheet1!S71_SA34dCode,$AC:$AC,Sheet1!S71_DepCode,$AD:$AD)","v":0},{"$f":"SUMIFS(Sheet1!S71_OriginalBudAmnt,Sheet1!S71_SA34dCode,$AC:$AC,Sheet1!S71_DepCode,$AD:$AD)","v":0},{"$f":"SUMIFS(Sheet1!S71_AdjustmentBudAmnt,Sheet1!S71_SA34dCode,$AC:$AC,Sheet1!S71_DepCode,$AD:$AD)","v":0},{"$f":"SUMIFS(Sheet1!S71_AdjustmentBudAmnt,Sheet1!S71_SA34dCode,$AC:$AC,Sheet1!S71_DepCode,$AD:$AD)","v":0},{"$f":"SUMIFS(Sheet1!S71_ASBudgetAmount,Sheet1!S71_SA34dCode,$AC:$AC,Sheet1!S71_DepCode,$AD:$AD)","v":0},{"$f":"SUMIFS(Sheet1!S71_OY1BudgetAmount,Sheet1!S71_SA34dCode,$AC:$AC,Sheet1!S71_DepCode,$AD:$AD)","v":0},{"$f":"SUMIFS(Sheet1!S71_OY2BudgetAmount,Sheet1!S71_SA34dCode,$AC:$AC,Sheet1!S71_DepCode,$AD:$AD)","v":0},null,null,null,null,null,null,null,null,null,null,null,null,null,null,null,null,null,"0280","DP"]
["Capital Spares",null,{"$f":"SUMIFS(Sheet1!S71_PPPYearAmount,Sheet1!S71_SA34dCode,$AC:$AC,Sheet1!S71_DepCode,$AD:$AD)","v":0},{"$f":"SUMIFS(Sheet1!S71_PPYearAmount,Sheet1!S71_SA34dCode,$AC:$AC,Sheet1!S71_DepCode,$AD:$AD)","v":0},{"$f":"SUMIFS(Sheet1!S71_PYearAmount,Sheet1!S71_SA34dCode,$AC:$AC,Sheet1!S71_DepCode,$AD:$AD)","v":0},{"$f":"SUMIFS(Sheet1!S71_OriginalBudAmnt,Sheet1!S71_SA34dCode,$AC:$AC,Sheet1!S71_DepCode,$AD:$AD)","v":0},{"$f":"SUMIFS(Sheet1!S71_AdjustmentBudAmnt,Sheet1!S71_SA34dCode,$AC:$AC,Sheet1!S71_DepCode,$AD:$AD)","v":0},{"$f":"SUMIFS(Sheet1!S71_AdjustmentBudAmnt,Sheet1!S71_SA34dCode,$AC:$AC,Sheet1!S71_DepCode,$AD:$AD)","v":0},{"$f":"SUMIFS(Sheet1!S71_ASBudgetAmount,Sheet1!S71_SA34dCode,$AC:$AC,Sheet1!S71_DepCode,$AD:$AD)","v":0},{"$f":"SUMIFS(Sheet1!S71_OY1BudgetAmount,Sheet1!S71_SA34dCode,$AC:$AC,Sheet1!S71_DepCode,$AD:$AD)","v":0},{"$f":"SUMIFS(Sheet1!S71_OY2BudgetAmount,Sheet1!S71_SA34dCode,$AC:$AC,Sheet1!S71_DepCode,$AD:$AD)","v":0},null,null,null,null,null,null,null,null,null,null,null,null,null,null,null,null,null,"0290","DP"]
["Water Supply Infrastructure",null,{"$f":"SUM(C27:C36)","v":0},{"$f":"SUM(D27:D36)","v":0},0,0,0,0,0,0,0,null,null,null,null,null,null,null,null,null,null,null,null,null,null,null,null,null,null,"DP"]
["Dams and Weirs",null,{"$f":"SUMIFS(Sheet1!S71_PPPYearAmount,Sheet1!S71_SA34dCode,$AC:$AC,Sheet1!S71_DepCode,$AD:$AD)","v":0},{"$f":"SUMIFS(Sheet1!S71_PPYearAmount,Sheet1!S71_SA34dCode,$AC:$AC,Sheet1!S71_DepCode,$AD:$AD)","v":0},{"$f":"SUMIFS(Sheet1!S71_PYearAmount,Sheet1!S71_SA34dCode,$AC:$AC,Sheet1!S71_DepCode,$AD:$AD)","v":0},{"$f":"SUMIFS(Sheet1!S71_OriginalBudAmnt,Sheet1!S71_SA34dCode,$AC:$AC,Sheet1!S71_DepCode,$AD:$AD)","v":0},{"$f":"SUMIFS(Sheet1!S71_AdjustmentBudAmnt,Sheet1!S71_SA34dCode,$AC:$AC,Sheet1!S71_DepCode,$AD:$AD)","v":0},{"$f":"SUMIFS(Sheet1!S71_AdjustmentBudAmnt,Sheet1!S71_SA34dCode,$AC:$AC,Sheet1!S71_DepCode,$AD:$AD)","v":0},{"$f":"SUMIFS(Sheet1!S71_ASBudgetAmount,Sheet1!S71_SA34dCode,$AC:$AC,Sheet1!S71_DepCode,$AD:$AD)","v":0},{"$f":"SUMIFS(Sheet1!S71_OY1BudgetAmount,Sheet1!S71_SA34dCode,$AC:$AC,Sheet1!S71_DepCode,$AD:$AD)","v":0},{"$f":"SUMIFS(Sheet1!S71_OY2BudgetAmount,Sheet1!S71_SA34dCode,$AC:$AC,Sheet1!S71_DepCode,$AD:$AD)","v":0},null,null,null,null,null,null,null,null,null,null,null,null,null,null,null,null,null,"0310","DP"]
["Boreholes",null,{"$f":"SUMIFS(Sheet1!S71_PPPYearAmount,Sheet1!S71_SA34dCode,$AC:$AC,Sheet1!S71_DepCode,$AD:$AD)","v":0},{"$f":"SUMIFS(Sheet1!S71_PPYearAmount,Sheet1!S71_SA34dCode,$AC:$AC,Sheet1!S71_DepCode,$AD:$AD)","v":0},{"$f":"SUMIFS(Sheet1!S71_PYearAmount,Sheet1!S71_SA34dCode,$AC:$AC,Sheet1!S71_DepCode,$AD:$AD)","v":0},{"$f":"SUMIFS(Sheet1!S71_OriginalBudAmnt,Sheet1!S71_SA34dCode,$AC:$AC,Sheet1!S71_DepCode,$AD:$AD)","v":0},{"$f":"SUMIFS(Sheet1!S71_AdjustmentBudAmnt,Sheet1!S71_SA34dCode,$AC:$AC,Sheet1!S71_DepCode,$AD:$AD)","v":0},{"$f":"SUMIFS(Sheet1!S71_AdjustmentBudAmnt,Sheet1!S71_SA34dCode,$AC:$AC,Sheet1!S71_DepCode,$AD:$AD)","v":0},{"$f":"SUMIFS(Sheet1!S71_ASBudgetAmount,Sheet1!S71_SA34dCode,$AC:$AC,Sheet1!S71_DepCode,$AD:$AD)","v":0},{"$f":"SUMIFS(Sheet1!S71_OY1BudgetAmount,Sheet1!S71_SA34dCode,$AC:$AC,Sheet1!S71_DepCode,$AD:$AD)","v":0},{"$f":"SUMIFS(Sheet1!S71_OY2BudgetAmount,Sheet1!S71_SA34dCode,$AC:$AC,Sheet1!S71_DepCode,$AD:$AD)","v":0},null,null,null,null,null,null,null,null,null,null,null,null,null,null,null,null,null,"0320","DP"]
["Reservoirs",null,{"$f":"SUMIFS(Sheet1!S71_PPPYearAmount,Sheet1!S71_SA34dCode,$AC:$AC,Sheet1!S71_DepCode,$AD:$AD)","v":0},{"$f":"SUMIFS(Sheet1!S71_PPYearAmount,Sheet1!S71_SA34dCode,$AC:$AC,Sheet1!S71_DepCode,$AD:$AD)","v":0},{"$f":"SUMIFS(Sheet1!S71_PYearAmount,Sheet1!S71_SA34dCode,$AC:$AC,Sheet1!S71_DepCode,$AD:$AD)","v":0},{"$f":"SUMIFS(Sheet1!S71_OriginalBudAmnt,Sheet1!S71_SA34dCode,$AC:$AC,Sheet1!S71_DepCode,$AD:$AD)","v":0},{"$f":"SUMIFS(Sheet1!S71_AdjustmentBudAmnt,Sheet1!S71_SA34dCode,$AC:$AC,Sheet1!S71_DepCode,$AD:$AD)","v":0},{"$f":"SUMIFS(Sheet1!S71_AdjustmentBudAmnt,Sheet1!S71_SA34dCode,$AC:$AC,Sheet1!S71_DepCode,$AD:$AD)","v":0},{"$f":"SUMIFS(Sheet1!S71_ASBudgetAmount,Sheet1!S71_SA34dCode,$AC:$AC,Sheet1!S71_DepCode,$AD:$AD)","v":0},{"$f":"SUMIFS(Sheet1!S71_OY1BudgetAmount,Sheet1!S71_SA34dCode,$AC:$AC,Sheet1!S71_DepCode,$AD:$AD)","v":0},{"$f":"SUMIFS(Sheet1!S71_OY2BudgetAmount,Sheet1!S71_SA34dCode,$AC:$AC,Sheet1!S71_DepCode,$AD:$AD)","v":0},null,null,null,null,null,null,null,null,null,null,null,null,null,null,null,null,null,"0330","DP"]
["Pump Stations",null,{"$f":"SUMIFS(Sheet1!S71_PPPYearAmount,Sheet1!S71_SA34dCode,$AC:$AC,Sheet1!S71_DepCode,$AD:$AD)","v":0},{"$f":"SUMIFS(Sheet1!S71_PPYearAmount,Sheet1!S71_SA34dCode,$AC:$AC,Sheet1!S71_DepCode,$AD:$AD)","v":0},{"$f":"SUMIFS(Sheet1!S71_PYearAmount,Sheet1!S71_SA34dCode,$AC:$AC,Sheet1!S71_DepCode,$AD:$AD)","v":0},{"$f":"SUMIFS(Sheet1!S71_OriginalBudAmnt,Sheet1!S71_SA34dCode,$AC:$AC,Sheet1!S71_DepCode,$AD:$AD)","v":0},{"$f":"SUMIFS(Sheet1!S71_AdjustmentBudAmnt,Sheet1!S71_SA34dCode,$AC:$AC,Sheet1!S71_DepCode,$AD:$AD)","v":0},{"$f":"SUMIFS(Sheet1!S71_AdjustmentBudAmnt,Sheet1!S71_SA34dCode,$AC:$AC,Sheet1!S71_DepCode,$AD:$AD)","v":0},{"$f":"SUMIFS(Sheet1!S71_ASBudgetAmount,Sheet1!S71_SA34dCode,$AC:$AC,Sheet1!S71_DepCode,$AD:$AD)","v":0},{"$f":"SUMIFS(Sheet1!S71_OY1BudgetAmount,Sheet1!S71_SA34dCode,$AC:$AC,Sheet1!S71_DepCode,$AD:$AD)","v":0},{"$f":"SUMIFS(Sheet1!S71_OY2BudgetAmount,Sheet1!S71_SA34dCode,$AC:$AC,Sheet1!S71_DepCode,$AD:$AD)","v":0},null,null,null,null,null,null,null,null,null,null,null,null,null,null,null,null,null,"0340","DP"]
["Water Treatment Works",null,{"$f":"SUMIFS(Sheet1!S71_PPPYearAmount,Sheet1!S71_SA34dCode,$AC:$AC,Sheet1!S71_DepCode,$AD:$AD)","v":0},{"$f":"SUMIFS(Sheet1!S71_PPYearAmount,Sheet1!S71_SA34dCode,$AC:$AC,Sheet1!S71_DepCode,$AD:$AD)","v":0},{"$f":"SUMIFS(Sheet1!S71_PYearAmount,Sheet1!S71_SA34dCode,$AC:$AC,Sheet1!S71_DepCode,$AD:$AD)","v":0},{"$f":"SUMIFS(Sheet1!S71_OriginalBudAmnt,Sheet1!S71_SA34dCode,$AC:$AC,Sheet1!S71_DepCode,$AD:$AD)","v":0},{"$f":"SUMIFS(Sheet1!S71_AdjustmentBudAmnt,Sheet1!S71_SA34dCode,$AC:$AC,Sheet1!S71_DepCode,$AD:$AD)","v":0},{"$f":"SUMIFS(Sheet1!S71_AdjustmentBudAmnt,Sheet1!S71_SA34dCode,$AC:$AC,Sheet1!S71_DepCode,$AD:$AD)","v":0},{"$f":"SUMIFS(Sheet1!S71_ASBudgetAmount,Sheet1!S71_SA34dCode,$AC:$AC,Sheet1!S71_DepCode,$AD:$AD)","v":0},{"$f":"SUMIFS(Sheet1!S71_OY1BudgetAmount,Sheet1!S71_SA34dCode,$AC:$AC,Sheet1!S71_DepCode,$AD:$AD)","v":0},{"$f":"SUMIFS(Sheet1!S71_OY2BudgetAmount,Sheet1!S71_SA34dCode,$AC:$AC,Sheet1!S71_DepCode,$AD:$AD)","v":0},null,null,null,null,null,null,null,null,null,null,null,null,null,null,null,null,null,"0350","DP"]
["Bulk Mains",null,{"$f":"SUMIFS(Sheet1!S71_PPPYearAmount,Sheet1!S71_SA34dCode,$AC:$AC,Sheet1!S71_DepCode,$AD:$AD)","v":0},{"$f":"SUMIFS(Sheet1!S71_PPYearAmount,Sheet1!S71_SA34dCode,$AC:$AC,Sheet1!S71_DepCode,$AD:$AD)","v":0},{"$f":"SUMIFS(Sheet1!S71_PYearAmount,Sheet1!S71_SA34dCode,$AC:$AC,Sheet1!S71_DepCode,$AD:$AD)","v":0},{"$f":"SUMIFS(Sheet1!S71_OriginalBudAmnt,Sheet1!S71_SA34dCode,$AC:$AC,Sheet1!S71_DepCode,$AD:$AD)","v":0},{"$f":"SUMIFS(Sheet1!S71_AdjustmentBudAmnt,Sheet1!S71_SA34dCode,$AC:$AC,Sheet1!S71_DepCode,$AD:$AD)","v":0},{"$f":"SUMIFS(Sheet1!S71_AdjustmentBudAmnt,Sheet1!S71_SA34dCode,$AC:$AC,Sheet1!S71_DepCode,$AD:$AD)","v":0},{"$f":"SUMIFS(Sheet1!S71_ASBudgetAmount,Sheet1!S71_SA34dCode,$AC:$AC,Sheet1!S71_DepCode,$AD:$AD)","v":0},{"$f":"SUMIFS(Sheet1!S71_OY1BudgetAmount,Sheet1!S71_SA34dCode,$AC:$AC,Sheet1!S71_DepCode,$AD:$AD)","v":0},{"$f":"SUMIFS(Sheet1!S71_OY2BudgetAmount,Sheet1!S71_SA34dCode,$AC:$AC,Sheet1!S71_DepCode,$AD:$AD)","v":0},null,null,null,null,null,null,null,null,null,null,null,null,null,null,null,null,null,"0360","DP"]
["Distribution",null,{"$f":"SUMIFS(Sheet1!S71_PPPYearAmount,Sheet1!S71_SA34dCode,$AC:$AC,Sheet1!S71_DepCode,$AD:$AD)","v":0},{"$f":"SUMIFS(Sheet1!S71_PPYearAmount,Sheet1!S71_SA34dCode,$AC:$AC,Sheet1!S71_DepCode,$AD:$AD)","v":0},{"$f":"SUMIFS(Sheet1!S71_PYearAmount,Sheet1!S71_SA34dCode,$AC:$AC,Sheet1!S71_DepCode,$AD:$AD)","v":0},{"$f":"SUMIFS(Sheet1!S71_OriginalBudAmnt,Sheet1!S71_SA34dCode,$AC:$AC,Sheet1!S71_DepCode,$AD:$AD)","v":0},{"$f":"SUMIFS(Sheet1!S71_AdjustmentBudAmnt,Sheet1!S71_SA34dCode,$AC:$AC,Sheet1!S71_DepCode,$AD:$AD)","v":0},{"$f":"SUMIFS(Sheet1!S71_AdjustmentBudAmnt,Sheet1!S71_SA34dCode,$AC:$AC,Sheet1!S71_DepCode,$AD:$AD)","v":0},{"$f":"SUMIFS(Sheet1!S71_ASBudgetAmount,Sheet1!S71_SA34dCode,$AC:$AC,Sheet1!S71_DepCode,$AD:$AD)","v":0},{"$f":"SUMIFS(Sheet1!S71_OY1BudgetAmount,Sheet1!S71_SA34dCode,$AC:$AC,Sheet1!S71_DepCode,$AD:$AD)","v":0},{"$f":"SUMIFS(Sheet1!S71_OY2BudgetAmount,Sheet1!S71_SA34dCode,$AC:$AC,Sheet1!S71_DepCode,$AD:$AD)","v":0},null,null,null,null,null,null,null,null,null,null,null,null,null,null,null,null,null,"0370","DP"]
["Distribution Points",null,{"$f":"SUMIFS(Sheet1!S71_PPPYearAmount,Sheet1!S71_SA34dCode,$AC:$AC,Sheet1!S71_DepCode,$AD:$AD)","v":0},{"$f":"SUMIFS(Sheet1!S71_PPYearAmount,Sheet1!S71_SA34dCode,$AC:$AC,Sheet1!S71_DepCode,$AD:$AD)","v":0},{"$f":"SUMIFS(Sheet1!S71_PYearAmount,Sheet1!S71_SA34dCode,$AC:$AC,Sheet1!S71_DepCode,$AD:$AD)","v":0},{"$f":"SUMIFS(Sheet1!S71_OriginalBudAmnt,Sheet1!S71_SA34dCode,$AC:$AC,Sheet1!S71_DepCode,$AD:$AD)","v":0},{"$f":"SUMIFS(Sheet1!S71_AdjustmentBudAmnt,Sheet1!S71_SA34dCode,$AC:$AC,Sheet1!S71_DepCode,$AD:$AD)","v":0},{"$f":"SUMIFS(Sheet1!S71_AdjustmentBudAmnt,Sheet1!S71_SA34dCode,$AC:$AC,Sheet1!S71_DepCode,$AD:$AD)","v":0},{"$f":"SUMIFS(Sheet1!S71_ASBudgetAmount,Sheet1!S71_SA34dCode,$AC:$AC,Sheet1!S71_DepCode,$AD:$AD)","v":0},{"$f":"SUMIFS(Sheet1!S71_OY1BudgetAmount,Sheet1!S71_SA34dCode,$AC:$AC,Sheet1!S71_DepCode,$AD:$AD)","v":0},{"$f":"SUMIFS(Sheet1!S71_OY2BudgetAmount,Sheet1!S71_SA34dCode,$AC:$AC,Sheet1!S71_DepCode,$AD:$AD)","v":0},null,null,null,null,null,null,null,null,null,null,null,null,null,null,null,null,null,"0380","DP"]
["PRV Stations",null,{"$f":"SUMIFS(Sheet1!S71_PPPYearAmount,Sheet1!S71_SA34dCode,$AC:$AC,Sheet1!S71_DepCode,$AD:$AD)","v":0},{"$f":"SUMIFS(Sheet1!S71_PPYearAmount,Sheet1!S71_SA34dCode,$AC:$AC,Sheet1!S71_DepCode,$AD:$AD)","v":0},{"$f":"SUMIFS(Sheet1!S71_PYearAmount,Sheet1!S71_SA34dCode,$AC:$AC,Sheet1!S71_DepCode,$AD:$AD)","v":0},{"$f":"SUMIFS(Sheet1!S71_OriginalBudAmnt,Sheet1!S71_SA34dCode,$AC:$AC,Sheet1!S71_DepCode,$AD:$AD)","v":0},{"$f":"SUMIFS(Sheet1!S71_AdjustmentBudAmnt,Sheet1!S71_SA34dCode,$AC:$AC,Sheet1!S71_DepCode,$AD:$AD)","v":0},{"$f":"SUMIFS(Sheet1!S71_AdjustmentBudAmnt,Sheet1!S71_SA34dCode,$AC:$AC,Sheet1!S71_DepCode,$AD:$AD)","v":0},{"$f":"SUMIFS(Sheet1!S71_ASBudgetAmount,Sheet1!S71_SA34dCode,$AC:$AC,Sheet1!S71_DepCode,$AD:$AD)","v":0},{"$f":"SUMIFS(Sheet1!S71_OY1BudgetAmount,Sheet1!S71_SA34dCode,$AC:$AC,Sheet1!S71_DepCode,$AD:$AD)","v":0},{"$f":"SUMIFS(Sheet1!S71_OY2BudgetAmount,Sheet1!S71_SA34dCode,$AC:$AC,Sheet1!S71_DepCode,$AD:$AD)","v":0},null,null,null,null,null,null,null,null,null,null,null,null,null,null,null,null,null,"0390","DP"]
["Capital Spares",null,{"$f":"SUMIFS(Sheet1!S71_PPPYearAmount,Sheet1!S71_SA34dCode,$AC:$AC,Sheet1!S71_DepCode,$AD:$AD)","v":0},{"$f":"SUMIFS(Sheet1!S71_PPYearAmount,Sheet1!S71_SA34dCode,$AC:$AC,Sheet1!S71_DepCode,$AD:$AD)","v":0},{"$f":"SUMIFS(Sheet1!S71_PYearAmount,Sheet1!S71_SA34dCode,$AC:$AC,Sheet1!S71_DepCode,$AD:$AD)","v":0},{"$f":"SUMIFS(Sheet1!S71_OriginalBudAmnt,Sheet1!S71_SA34dCode,$AC:$AC,Sheet1!S71_DepCode,$AD:$AD)","v":0},{"$f":"SUMIFS(Sheet1!S71_AdjustmentBudAmnt,Sheet1!S71_SA34dCode,$AC:$AC,Sheet1!S71_DepCode,$AD:$AD)","v":0},{"$f":"SUMIFS(Sheet1!S71_AdjustmentBudAmnt,Sheet1!S71_SA34dCode,$AC:$AC,Sheet1!S71_DepCode,$AD:$AD)","v":0},{"$f":"SUMIFS(Sheet1!S71_ASBudgetAmount,Sheet1!S71_SA34dCode,$AC:$AC,Sheet1!S71_DepCode,$AD:$AD)","v":0},{"$f":"SUMIFS(Sheet1!S71_OY1BudgetAmount,Sheet1!S71_SA34dCode,$AC:$AC,Sheet1!S71_DepCode,$AD:$AD)","v":0},{"$f":"SUMIFS(Sheet1!S71_OY2BudgetAmount,Sheet1!S71_SA34dCode,$AC:$AC,Sheet1!S71_DepCode,$AD:$AD)","v":0},null,null,null,null,null,null,null,null,null,null,null,null,null,null,null,null,null,"0400","DP"]
["Sanitation Infrastructure",null,{"$f":"SUM(C38:C43)","v":0},{"$f":"SUM(D38:D43)","v":0},0,0,0,0,0,0,0,null,null,null,null,null,null,null,null,null,null,null,null,null,null,null,null,null,null,"DP"]
["Pump Station",null,{"$f":"SUMIFS(Sheet1!S71_PPPYearAmount,Sheet1!S71_SA34dCode,$AC:$AC,Sheet1!S71_DepCode,$AD:$AD)","v":0},{"$f":"SUMIFS(Sheet1!S71_PPYearAmount,Sheet1!S71_SA34dCode,$AC:$AC,Sheet1!S71_DepCode,$AD:$AD)","v":0},{"$f":"SUMIFS(Sheet1!S71_PYearAmount,Sheet1!S71_SA34dCode,$AC:$AC,Sheet1!S71_DepCode,$AD:$AD)","v":0},{"$f":"SUMIFS(Sheet1!S71_OriginalBudAmnt,Sheet1!S71_SA34dCode,$AC:$AC,Sheet1!S71_DepCode,$AD:$AD)","v":0},{"$f":"SUMIFS(Sheet1!S71_AdjustmentBudAmnt,Sheet1!S71_SA34dCode,$AC:$AC,Sheet1!S71_DepCode,$AD:$AD)","v":0},{"$f":"SUMIFS(Sheet1!S71_AdjustmentBudAmnt,Sheet1!S71_SA34dCode,$AC:$AC,Sheet1!S71_DepCode,$AD:$AD)","v":0},{"$f":"SUMIFS(Sheet1!S71_ASBudgetAmount,Sheet1!S71_SA34dCode,$AC:$AC,Sheet1!S71_DepCode,$AD:$AD)","v":0},{"$f":"SUMIFS(Sheet1!S71_OY1BudgetAmount,Sheet1!S71_SA34dCode,$AC:$AC,Sheet1!S71_DepCode,$AD:$AD)","v":0},{"$f":"SUMIFS(Sheet1!S71_OY2BudgetAmount,Sheet1!S71_SA34dCode,$AC:$AC,Sheet1!S71_DepCode,$AD:$AD)","v":0},null,null,null,null,null,null,null,null,null,null,null,null,null,null,null,null,null,"0420","DP"]
["Reticulation",null,{"$f":"SUMIFS(Sheet1!S71_PPPYearAmount,Sheet1!S71_SA34dCode,$AC:$AC,Sheet1!S71_DepCode,$AD:$AD)","v":0},{"$f":"SUMIFS(Sheet1!S71_PPYearAmount,Sheet1!S71_SA34dCode,$AC:$AC,Sheet1!S71_DepCode,$AD:$AD)","v":0},{"$f":"SUMIFS(Sheet1!S71_PYearAmount,Sheet1!S71_SA34dCode,$AC:$AC,Sheet1!S71_DepCode,$AD:$AD)","v":0},{"$f":"SUMIFS(Sheet1!S71_OriginalBudAmnt,Sheet1!S71_SA34dCode,$AC:$AC,Sheet1!S71_DepCode,$AD:$AD)","v":0},{"$f":"SUMIFS(Sheet1!S71_AdjustmentBudAmnt,Sheet1!S71_SA34dCode,$AC:$AC,Sheet1!S71_DepCode,$AD:$AD)","v":0},{"$f":"SUMIFS(Sheet1!S71_AdjustmentBudAmnt,Sheet1!S71_SA34dCode,$AC:$AC,Sheet1!S71_DepCode,$AD:$AD)","v":0},{"$f":"SUMIFS(Sheet1!S71_ASBudgetAmount,Sheet1!S71_SA34dCode,$AC:$AC,Sheet1!S71_DepCode,$AD:$AD)","v":0},{"$f":"SUMIFS(Sheet1!S71_OY1BudgetAmount,Sheet1!S71_SA34dCode,$AC:$AC,Sheet1!S71_DepCode,$AD:$AD)","v":0},{"$f":"SUMIFS(Sheet1!S71_OY2BudgetAmount,Sheet1!S71_SA34dCode,$AC:$AC,Sheet1!S71_DepCode,$AD:$AD)","v":0},null,null,null,null,null,null,null,null,null,null,null,null,null,null,null,null,null,"0430","DP"]
["Waste Water Treatment Works",null,{"$f":"SUMIFS(Sheet1!S71_PPPYearAmount,Sheet1!S71_SA34dCode,$AC:$AC,Sheet1!S71_DepCode,$AD:$AD)","v":0},{"$f":"SUMIFS(Sheet1!S71_PPYearAmount,Sheet1!S71_SA34dCode,$AC:$AC,Sheet1!S71_DepCode,$AD:$AD)","v":0},{"$f":"SUMIFS(Sheet1!S71_PYearAmount,Sheet1!S71_SA34dCode,$AC:$AC,Sheet1!S71_DepCode,$AD:$AD)","v":0},{"$f":"SUMIFS(Sheet1!S71_OriginalBudAmnt,Sheet1!S71_SA34dCode,$AC:$AC,Sheet1!S71_DepCode,$AD:$AD)","v":0},{"$f":"SUMIFS(Sheet1!S71_AdjustmentBudAmnt,Sheet1!S71_SA34dCode,$AC:$AC,Sheet1!S71_DepCode,$AD:$AD)","v":0},{"$f":"SUMIFS(Sheet1!S71_AdjustmentBudAmnt,Sheet1!S71_SA34dCode,$AC:$AC,Sheet1!S71_DepCode,$AD:$AD)","v":0},{"$f":"SUMIFS(Sheet1!S71_ASBudgetAmount,Sheet1!S71_SA34dCode,$AC:$AC,Sheet1!S71_DepCode,$AD:$AD)","v":0},{"$f":"SUMIFS(Sheet1!S71_OY1BudgetAmount,Sheet1!S71_SA34dCode,$AC:$AC,Sheet1!S71_DepCode,$AD:$AD)","v":0},{"$f":"SUMIFS(Sheet1!S71_OY2BudgetAmount,Sheet1!S71_SA34dCode,$AC:$AC,Sheet1!S71_DepCode,$AD:$AD)","v":0},null,null,null,null,null,null,null,null,null,null,null,null,null,null,null,null,null,"0440","DP"]
["Outfall Sewers",null,{"$f":"SUMIFS(Sheet1!S71_PPPYearAmount,Sheet1!S71_SA34dCode,$AC:$AC,Sheet1!S71_DepCode,$AD:$AD)","v":0},{"$f":"SUMIFS(Sheet1!S71_PPYearAmount,Sheet1!S71_SA34dCode,$AC:$AC,Sheet1!S71_DepCode,$AD:$AD)","v":0},{"$f":"SUMIFS(Sheet1!S71_PYearAmount,Sheet1!S71_SA34dCode,$AC:$AC,Sheet1!S71_DepCode,$AD:$AD)","v":0},{"$f":"SUMIFS(Sheet1!S71_OriginalBudAmnt,Sheet1!S71_SA34dCode,$AC:$AC,Sheet1!S71_DepCode,$AD:$AD)","v":0},{"$f":"SUMIFS(Sheet1!S71_AdjustmentBudAmnt,Sheet1!S71_SA34dCode,$AC:$AC,Sheet1!S71_DepCode,$AD:$AD)","v":0},{"$f":"SUMIFS(Sheet1!S71_AdjustmentBudAmnt,Sheet1!S71_SA34dCode,$AC:$AC,Sheet1!S71_DepCode,$AD:$AD)","v":0},{"$f":"SUMIFS(Sheet1!S71_ASBudgetAmount,Sheet1!S71_SA34dCode,$AC:$AC,Sheet1!S71_DepCode,$AD:$AD)","v":0},{"$f":"SUMIFS(Sheet1!S71_OY1BudgetAmount,Sheet1!S71_SA34dCode,$AC:$AC,Sheet1!S71_DepCode,$AD:$AD)","v":0},{"$f":"SUMIFS(Sheet1!S71_OY2BudgetAmount,Sheet1!S71_SA34dCode,$AC:$AC,Sheet1!S71_DepCode,$AD:$AD)","v":0},null,null,null,null,null,null,null,null,null,null,null,null,null,null,null,null,null,"0450","DP"]
["Toilet Facilities",null,{"$f":"SUMIFS(Sheet1!S71_PPPYearAmount,Sheet1!S71_SA34dCode,$AC:$AC,Sheet1!S71_DepCode,$AD:$AD)","v":0},{"$f":"SUMIFS(Sheet1!S71_PPYearAmount,Sheet1!S71_SA34dCode,$AC:$AC,Sheet1!S71_DepCode,$AD:$AD)","v":0},{"$f":"SUMIFS(Sheet1!S71_PYearAmount,Sheet1!S71_SA34dCode,$AC:$AC,Sheet1!S71_DepCode,$AD:$AD)","v":0},{"$f":"SUMIFS(Sheet1!S71_OriginalBudAmnt,Sheet1!S71_SA34dCode,$AC:$AC,Sheet1!S71_DepCode,$AD:$AD)","v":0},{"$f":"SUMIFS(Sheet1!S71_AdjustmentBudAmnt,Sheet1!S71_SA34dCode,$AC:$AC,Sheet1!S71_DepCode,$AD:$AD)","v":0},{"$f":"SUMIFS(Sheet1!S71_AdjustmentBudAmnt,Sheet1!S71_SA34dCode,$AC:$AC,Sheet1!S71_DepCode,$AD:$AD)","v":0},{"$f":"SUMIFS(Sheet1!S71_ASBudgetAmount,Sheet1!S71_SA34dCode,$AC:$AC,Sheet1!S71_DepCode,$AD:$AD)","v":0},{"$f":"SUMIFS(Sheet1!S71_OY1BudgetAmount,Sheet1!S71_SA34dCode,$AC:$AC,Sheet1!S71_DepCode,$AD:$AD)","v":0},{"$f":"SUMIFS(Sheet1!S71_OY2BudgetAmount,Sheet1!S71_SA34dCode,$AC:$AC,Sheet1!S71_DepCode,$AD:$AD)","v":0},null,null,null,null,null,null,null,null,null,null,null,null,null,null,null,null,null,"0460","DP"]
["Capital Spares",null,{"$f":"SUMIFS(Sheet1!S71_PPPYearAmount,Sheet1!S71_SA34dCode,$AC:$AC,Sheet1!S71_DepCode,$AD:$AD)","v":0},{"$f":"SUMIFS(Sheet1!S71_PPYearAmount,Sheet1!S71_SA34dCode,$AC:$AC,Sheet1!S71_DepCode,$AD:$AD)","v":0},{"$f":"SUMIFS(Sheet1!S71_PYearAmount,Sheet1!S71_SA34dCode,$AC:$AC,Sheet1!S71_DepCode,$AD:$AD)","v":0},{"$f":"SUMIFS(Sheet1!S71_OriginalBudAmnt,Sheet1!S71_SA34dCode,$AC:$AC,Sheet1!S71_DepCode,$AD:$AD)","v":0},{"$f":"SUMIFS(Sheet1!S71_AdjustmentBudAmnt,Sheet1!S71_SA34dCode,$AC:$AC,Sheet1!S71_DepCode,$AD:$AD)","v":0},{"$f":"SUMIFS(Sheet1!S71_AdjustmentBudAmnt,Sheet1!S71_SA34dCode,$AC:$AC,Sheet1!S71_DepCode,$AD:$AD)","v":0},{"$f":"SUMIFS(Sheet1!S71_ASBudgetAmount,Sheet1!S71_SA34dCode,$AC:$AC,Sheet1!S71_DepCode,$AD:$AD)","v":0},{"$f":"SUMIFS(Sheet1!S71_OY1BudgetAmount,Sheet1!S71_SA34dCode,$AC:$AC,Sheet1!S71_DepCode,$AD:$AD)","v":0},{"$f":"SUMIFS(Sheet1!S71_OY2BudgetAmount,Sheet1!S71_SA34dCode,$AC:$AC,Sheet1!S71_DepCode,$AD:$AD)","v":0},null,null,null,null,null,null,null,null,null,null,null,null,null,null,null,null,null,"0470","DP"]
["Solid Waste Infrastructure",null,{"$f":"SUM(C45:C51)","v":0},{"$f":"SUM(D45:D51)","v":0},0,0,0,0,0,0,0,null,null,null,null,null,null,null,null,null,null,null,null,null,null,null,null,null,null,"DP"]
["Landfill Sites",null,{"$f":"SUMIFS(Sheet1!S71_PPPYearAmount,Sheet1!S71_SA34dCode,$AC:$AC,Sheet1!S71_DepCode,$AD:$AD)","v":0},{"$f":"SUMIFS(Sheet1!S71_PPYearAmount,Sheet1!S71_SA34dCode,$AC:$AC,Sheet1!S71_DepCode,$AD:$AD)","v":0},{"$f":"SUMIFS(Sheet1!S71_PYearAmount,Sheet1!S71_SA34dCode,$AC:$AC,Sheet1!S71_DepCode,$AD:$AD)","v":0},{"$f":"SUMIFS(Sheet1!S71_OriginalBudAmnt,Sheet1!S71_SA34dCode,$AC:$AC,Sheet1!S71_DepCode,$AD:$AD)","v":0},{"$f":"SUMIFS(Sheet1!S71_AdjustmentBudAmnt,Sheet1!S71_SA34dCode,$AC:$AC,Sheet1!S71_DepCode,$AD:$AD)","v":0},{"$f":"SUMIFS(Sheet1!S71_AdjustmentBudAmnt,Sheet1!S71_SA34dCode,$AC:$AC,Sheet1!S71_DepCode,$AD:$AD)","v":0},{"$f":"SUMIFS(Sheet1!S71_ASBudgetAmount,Sheet1!S71_SA34dCode,$AC:$AC,Sheet1!S71_DepCode,$AD:$AD)","v":0},{"$f":"SUMIFS(Sheet1!S71_OY1BudgetAmount,Sheet1!S71_SA34dCode,$AC:$AC,Sheet1!S71_DepCode,$AD:$AD)","v":0},{"$f":"SUMIFS(Sheet1!S71_OY2BudgetAmount,Sheet1!S71_SA34dCode,$AC:$AC,Sheet1!S71_DepCode,$AD:$AD)","v":0},null,null,null,null,null,null,null,null,null,null,null,null,null,null,null,null,null,"0490","DP"]
["Waste Transfer Stations",null,{"$f":"SUMIFS(Sheet1!S71_PPPYearAmount,Sheet1!S71_SA34dCode,$AC:$AC,Sheet1!S71_DepCode,$AD:$AD)","v":0},{"$f":"SUMIFS(Sheet1!S71_PPYearAmount,Sheet1!S71_SA34dCode,$AC:$AC,Sheet1!S71_DepCode,$AD:$AD)","v":0},{"$f":"SUMIFS(Sheet1!S71_PYearAmount,Sheet1!S71_SA34dCode,$AC:$AC,Sheet1!S71_DepCode,$AD:$AD)","v":0},{"$f":"SUMIFS(Sheet1!S71_OriginalBudAmnt,Sheet1!S71_SA34dCode,$AC:$AC,Sheet1!S71_DepCode,$AD:$AD)","v":0},{"$f":"SUMIFS(Sheet1!S71_AdjustmentBudAmnt,Sheet1!S71_SA34dCode,$AC:$AC,Sheet1!S71_DepCode,$AD:$AD)","v":0},{"$f":"SUMIFS(Sheet1!S71_AdjustmentBudAmnt,Sheet1!S71_SA34dCode,$AC:$AC,Sheet1!S71_DepCode,$AD:$AD)","v":0},{"$f":"SUMIFS(Sheet1!S71_ASBudgetAmount,Sheet1!S71_SA34dCode,$AC:$AC,Sheet1!S71_DepCode,$AD:$AD)","v":0},{"$f":"SUMIFS(Sheet1!S71_OY1BudgetAmount,Sheet1!S71_SA34dCode,$AC:$AC,Sheet1!S71_DepCode,$AD:$AD)","v":0},{"$f":"SUMIFS(Sheet1!S71_OY2BudgetAmount,Sheet1!S71_SA34dCode,$AC:$AC,Sheet1!S71_DepCode,$AD:$AD)","v":0},null,null,null,null,null,null,null,null,null,null,null,null,null,null,null,null,null,"0500","DP"]
["Waste Processing Facilities",null,{"$f":"SUMIFS(Sheet1!S71_PPPYearAmount,Sheet1!S71_SA34dCode,$AC:$AC,Sheet1!S71_DepCode,$AD:$AD)","v":0},{"$f":"SUMIFS(Sheet1!S71_PPYearAmount,Sheet1!S71_SA34dCode,$AC:$AC,Sheet1!S71_DepCode,$AD:$AD)","v":0},{"$f":"SUMIFS(Sheet1!S71_PYearAmount,Sheet1!S71_SA34dCode,$AC:$AC,Sheet1!S71_DepCode,$AD:$AD)","v":0},{"$f":"SUMIFS(Sheet1!S71_OriginalBudAmnt,Sheet1!S71_SA34dCode,$AC:$AC,Sheet1!S71_DepCode,$AD:$AD)","v":0},{"$f":"SUMIFS(Sheet1!S71_AdjustmentBudAmnt,Sheet1!S71_SA34dCode,$AC:$AC,Sheet1!S71_DepCode,$AD:$AD)","v":0},{"$f":"SUMIFS(Sheet1!S71_AdjustmentBudAmnt,Sheet1!S71_SA34dCode,$AC:$AC,Sheet1!S71_DepCode,$AD:$AD)","v":0},{"$f":"SUMIFS(Sheet1!S71_ASBudgetAmount,Sheet1!S71_SA34dCode,$AC:$AC,Sheet1!S71_DepCode,$AD:$AD)","v":0},{"$f":"SUMIFS(Sheet1!S71_OY1BudgetAmount,Sheet1!S71_SA34dCode,$AC:$AC,Sheet1!S71_DepCode,$AD:$AD)","v":0},{"$f":"SUMIFS(Sheet1!S71_OY2BudgetAmount,Sheet1!S71_SA34dCode,$AC:$AC,Sheet1!S71_DepCode,$AD:$AD)","v":0},null,null,null,null,null,null,null,null,null,null,null,null,null,null,null,null,null,"0510","DP"]
["Waste Drop-off Points",null,{"$f":"SUMIFS(Sheet1!S71_PPPYearAmount,Sheet1!S71_SA34dCode,$AC:$AC,Sheet1!S71_DepCode,$AD:$AD)","v":0},{"$f":"SUMIFS(Sheet1!S71_PPYearAmount,Sheet1!S71_SA34dCode,$AC:$AC,Sheet1!S71_DepCode,$AD:$AD)","v":0},{"$f":"SUMIFS(Sheet1!S71_PYearAmount,Sheet1!S71_SA34dCode,$AC:$AC,Sheet1!S71_DepCode,$AD:$AD)","v":0},{"$f":"SUMIFS(Sheet1!S71_OriginalBudAmnt,Sheet1!S71_SA34dCode,$AC:$AC,Sheet1!S71_DepCode,$AD:$AD)","v":0},{"$f":"SUMIFS(Sheet1!S71_AdjustmentBudAmnt,Sheet1!S71_SA34dCode,$AC:$AC,Sheet1!S71_DepCode,$AD:$AD)","v":0},{"$f":"SUMIFS(Sheet1!S71_AdjustmentBudAmnt,Sheet1!S71_SA34dCode,$AC:$AC,Sheet1!S71_DepCode,$AD:$AD)","v":0},{"$f":"SUMIFS(Sheet1!S71_ASBudgetAmount,Sheet1!S71_SA34dCode,$AC:$AC,Sheet1!S71_DepCode,$AD:$AD)","v":0},{"$f":"SUMIFS(Sheet1!S71_OY1BudgetAmount,Sheet1!S71_SA34dCode,$AC:$AC,Sheet1!S71_DepCode,$AD:$AD)","v":0},{"$f":"SUMIFS(Sheet1!S71_OY2BudgetAmount,Sheet1!S71_SA34dCode,$AC:$AC,Sheet1!S71_DepCode,$AD:$AD)","v":0},null,null,null,null,null,null,null,null,null,null,null,null,null,null,null,null,null,"0520","DP"]
["Waste Separation Facilities",null,{"$f":"SUMIFS(Sheet1!S71_PPPYearAmount,Sheet1!S71_SA34dCode,$AC:$AC,Sheet1!S71_DepCode,$AD:$AD)","v":0},{"$f":"SUMIFS(Sheet1!S71_PPYearAmount,Sheet1!S71_SA34dCode,$AC:$AC,Sheet1!S71_DepCode,$AD:$AD)","v":0},{"$f":"SUMIFS(Sheet1!S71_PYearAmount,Sheet1!S71_SA34dCode,$AC:$AC,Sheet1!S71_DepCode,$AD:$AD)","v":0},{"$f":"SUMIFS(Sheet1!S71_OriginalBudAmnt,Sheet1!S71_SA34dCode,$AC:$AC,Sheet1!S71_DepCode,$AD:$AD)","v":0},{"$f":"SUMIFS(Sheet1!S71_AdjustmentBudAmnt,Sheet1!S71_SA34dCode,$AC:$AC,Sheet1!S71_DepCode,$AD:$AD)","v":0},{"$f":"SUMIFS(Sheet1!S71_AdjustmentBudAmnt,Sheet1!S71_SA34dCode,$AC:$AC,Sheet1!S71_DepCode,$AD:$AD)","v":0},{"$f":"SUMIFS(Sheet1!S71_ASBudgetAmount,Sheet1!S71_SA34dCode,$AC:$AC,Sheet1!S71_DepCode,$AD:$AD)","v":0},{"$f":"SUMIFS(Sheet1!S71_OY1BudgetAmount,Sheet1!S71_SA34dCode,$AC:$AC,Sheet1!S71_DepCode,$AD:$AD)","v":0},{"$f":"SUMIFS(Sheet1!S71_OY2BudgetAmount,Sheet1!S71_SA34dCode,$AC:$AC,Sheet1!S71_DepCode,$AD:$AD)","v":0},null,null,null,null,null,null,null,null,null,null,null,null,null,null,null,null,null,"0530","DP"]
["Electricity Generation Facilities",null,{"$f":"SUMIFS(Sheet1!S71_PPPYearAmount,Sheet1!S71_SA34dCode,$AC:$AC,Sheet1!S71_DepCode,$AD:$AD)","v":0},{"$f":"SUMIFS(Sheet1!S71_PPYearAmount,Sheet1!S71_SA34dCode,$AC:$AC,Sheet1!S71_DepCode,$AD:$AD)","v":0},{"$f":"SUMIFS(Sheet1!S71_PYearAmount,Sheet1!S71_SA34dCode,$AC:$AC,Sheet1!S71_DepCode,$AD:$AD)","v":0},{"$f":"SUMIFS(Sheet1!S71_OriginalBudAmnt,Sheet1!S71_SA34dCode,$AC:$AC,Sheet1!S71_DepCode,$AD:$AD)","v":0},{"$f":"SUMIFS(Sheet1!S71_AdjustmentBudAmnt,Sheet1!S71_SA34dCode,$AC:$AC,Sheet1!S71_DepCode,$AD:$AD)","v":0},{"$f":"SUMIFS(Sheet1!S71_AdjustmentBudAmnt,Sheet1!S71_SA34dCode,$AC:$AC,Sheet1!S71_DepCode,$AD:$AD)","v":0},{"$f":"SUMIFS(Sheet1!S71_ASBudgetAmount,Sheet1!S71_SA34dCode,$AC:$AC,Sheet1!S71_DepCode,$AD:$AD)","v":0},{"$f":"SUMIFS(Sheet1!S71_OY1BudgetAmount,Sheet1!S71_SA34dCode,$AC:$AC,Sheet1!S71_DepCode,$AD:$AD)","v":0},{"$f":"SUMIFS(Sheet1!S71_OY2BudgetAmount,Sheet1!S71_SA34dCode,$AC:$AC,Sheet1!S71_DepCode,$AD:$AD)","v":0},null,null,null,null,null,null,null,null,null,null,null,null,null,null,null,null,null,"0540","DP"]
["Capital Spares",null,{"$f":"SUMIFS(Sheet1!S71_PPPYearAmount,Sheet1!S71_SA34dCode,$AC:$AC,Sheet1!S71_DepCode,$AD:$AD)","v":0},{"$f":"SUMIFS(Sheet1!S71_PPYearAmount,Sheet1!S71_SA34dCode,$AC:$AC,Sheet1!S71_DepCode,$AD:$AD)","v":0},{"$f":"SUMIFS(Sheet1!S71_PYearAmount,Sheet1!S71_SA34dCode,$AC:$AC,Sheet1!S71_DepCode,$AD:$AD)","v":0},{"$f":"SUMIFS(Sheet1!S71_OriginalBudAmnt,Sheet1!S71_SA34dCode,$AC:$AC,Sheet1!S71_DepCode,$AD:$AD)","v":0},{"$f":"SUMIFS(Sheet1!S71_AdjustmentBudAmnt,Sheet1!S71_SA34dCode,$AC:$AC,Sheet1!S71_DepCode,$AD:$AD)","v":0},{"$f":"SUMIFS(Sheet1!S71_AdjustmentBudAmnt,Sheet1!S71_SA34dCode,$AC:$AC,Sheet1!S71_DepCode,$AD:$AD)","v":0},{"$f":"SUMIFS(Sheet1!S71_ASBudgetAmount,Sheet1!S71_SA34dCode,$AC:$AC,Sheet1!S71_DepCode,$AD:$AD)","v":0},{"$f":"SUMIFS(Sheet1!S71_OY1BudgetAmount,Sheet1!S71_SA34dCode,$AC:$AC,Sheet1!S71_DepCode,$AD:$AD)","v":0},{"$f":"SUMIFS(Sheet1!S71_OY2BudgetAmount,Sheet1!S71_SA34dCode,$AC:$AC,Sheet1!S71_DepCode,$AD:$AD)","v":0},null,null,null,null,null,null,null,null,null,null,null,null,null,null,null,null,null,"0550","DP"]
["Rail Infrastructure",null,{"$f":"SUM(C53:C61)","v":0},0,0,0,0,0,0,0,0,null,null,null,null,null,null,null,null,null,null,null,null,null,null,null,null,null,null,"DP"]
["Rail Lines",null,{"$f":"SUMIFS(Sheet1!S71_PPPYearAmount,Sheet1!S71_SA34dCode,$AC:$AC,Sheet1!S71_DepCode,$AD:$AD)","v":0},{"$f":"SUMIFS(Sheet1!S71_PPYearAmount,Sheet1!S71_SA34dCode,$AC:$AC,Sheet1!S71_DepCode,$AD:$AD)","v":0},{"$f":"SUMIFS(Sheet1!S71_PYearAmount,Sheet1!S71_SA34dCode,$AC:$AC,Sheet1!S71_DepCode,$AD:$AD)","v":0},{"$f":"SUMIFS(Sheet1!S71_OriginalBudAmnt,Sheet1!S71_SA34dCode,$AC:$AC,Sheet1!S71_DepCode,$AD:$AD)","v":0},{"$f":"SUMIFS(Sheet1!S71_AdjustmentBudAmnt,Sheet1!S71_SA34dCode,$AC:$AC,Sheet1!S71_DepCode,$AD:$AD)","v":0},{"$f":"SUMIFS(Sheet1!S71_AdjustmentBudAmnt,Sheet1!S71_SA34dCode,$AC:$AC,Sheet1!S71_DepCode,$AD:$AD)","v":0},{"$f":"SUMIFS(Sheet1!S71_ASBudgetAmount,Sheet1!S71_SA34dCode,$AC:$AC,Sheet1!S71_DepCode,$AD:$AD)","v":0},{"$f":"SUMIFS(Sheet1!S71_OY1BudgetAmount,Sheet1!S71_SA34dCode,$AC:$AC,Sheet1!S71_DepCode,$AD:$AD)","v":0},{"$f":"SUMIFS(Sheet1!S71_OY2BudgetAmount,Sheet1!S71_SA34dCode,$AC:$AC,Sheet1!S71_DepCode,$AD:$AD)","v":0},null,null,null,null,null,null,null,null,null,null,null,null,null,null,null,null,null,"0570","DP"]
["Rail Structures",null,{"$f":"SUMIFS(Sheet1!S71_PPPYearAmount,Sheet1!S71_SA34dCode,$AC:$AC,Sheet1!S71_DepCode,$AD:$AD)","v":0},{"$f":"SUMIFS(Sheet1!S71_PPYearAmount,Sheet1!S71_SA34dCode,$AC:$AC,Sheet1!S71_DepCode,$AD:$AD)","v":0},{"$f":"SUMIFS(Sheet1!S71_PYearAmount,Sheet1!S71_SA34dCode,$AC:$AC,Sheet1!S71_DepCode,$AD:$AD)","v":0},{"$f":"SUMIFS(Sheet1!S71_OriginalBudAmnt,Sheet1!S71_SA34dCode,$AC:$AC,Sheet1!S71_DepCode,$AD:$AD)","v":0},{"$f":"SUMIFS(Sheet1!S71_AdjustmentBudAmnt,Sheet1!S71_SA34dCode,$AC:$AC,Sheet1!S71_DepCode,$AD:$AD)","v":0},{"$f":"SUMIFS(Sheet1!S71_AdjustmentBudAmnt,Sheet1!S71_SA34dCode,$AC:$AC,Sheet1!S71_DepCode,$AD:$AD)","v":0},{"$f":"SUMIFS(Sheet1!S71_ASBudgetAmount,Sheet1!S71_SA34dCode,$AC:$AC,Sheet1!S71_DepCode,$AD:$AD)","v":0},{"$f":"SUMIFS(Sheet1!S71_OY1BudgetAmount,Sheet1!S71_SA34dCode,$AC:$AC,Sheet1!S71_DepCode,$AD:$AD)","v":0},{"$f":"SUMIFS(Sheet1!S71_OY2BudgetAmount,Sheet1!S71_SA34dCode,$AC:$AC,Sheet1!S71_DepCode,$AD:$AD)","v":0},null,null,null,null,null,null,null,null,null,null,null,null,null,null,null,null,null,"0580","DP"]
["Rail Furniture",null,{"$f":"SUMIFS(Sheet1!S71_PPPYearAmount,Sheet1!S71_SA34dCode,$AC:$AC,Sheet1!S71_DepCode,$AD:$AD)","v":0},{"$f":"SUMIFS(Sheet1!S71_PPYearAmount,Sheet1!S71_SA34dCode,$AC:$AC,Sheet1!S71_DepCode,$AD:$AD)","v":0},{"$f":"SUMIFS(Sheet1!S71_PYearAmount,Sheet1!S71_SA34dCode,$AC:$AC,Sheet1!S71_DepCode,$AD:$AD)","v":0},{"$f":"SUMIFS(Sheet1!S71_OriginalBudAmnt,Sheet1!S71_SA34dCode,$AC:$AC,Sheet1!S71_DepCode,$AD:$AD)","v":0},{"$f":"SUMIFS(Sheet1!S71_AdjustmentBudAmnt,Sheet1!S71_SA34dCode,$AC:$AC,Sheet1!S71_DepCode,$AD:$AD)","v":0},{"$f":"SUMIFS(Sheet1!S71_AdjustmentBudAmnt,Sheet1!S71_SA34dCode,$AC:$AC,Sheet1!S71_DepCode,$AD:$AD)","v":0},{"$f":"SUMIFS(Sheet1!S71_ASBudgetAmount,Sheet1!S71_SA34dCode,$AC:$AC,Sheet1!S71_DepCode,$AD:$AD)","v":0},{"$f":"SUMIFS(Sheet1!S71_OY1BudgetAmount,Sheet1!S71_SA34dCode,$AC:$AC,Sheet1!S71_DepCode,$AD:$AD)","v":0},{"$f":"SUMIFS(Sheet1!S71_OY2BudgetAmount,Sheet1!S71_SA34dCode,$AC:$AC,Sheet1!S71_DepCode,$AD:$AD)","v":0},null,null,null,null,null,null,null,null,null,null,null,null,null,null,null,null,null,"0590","DP"]
["Drainage Collection",null,{"$f":"SUMIFS(Sheet1!S71_PPPYearAmount,Sheet1!S71_SA34dCode,$AC:$AC,Sheet1!S71_DepCode,$AD:$AD)","v":0},{"$f":"SUMIFS(Sheet1!S71_PPYearAmount,Sheet1!S71_SA34dCode,$AC:$AC,Sheet1!S71_DepCode,$AD:$AD)","v":0},{"$f":"SUMIFS(Sheet1!S71_PYearAmount,Sheet1!S71_SA34dCode,$AC:$AC,Sheet1!S71_DepCode,$AD:$AD)","v":0},{"$f":"SUMIFS(Sheet1!S71_OriginalBudAmnt,Sheet1!S71_SA34dCode,$AC:$AC,Sheet1!S71_DepCode,$AD:$AD)","v":0},{"$f":"SUMIFS(Sheet1!S71_AdjustmentBudAmnt,Sheet1!S71_SA34dCode,$AC:$AC,Sheet1!S71_DepCode,$AD:$AD)","v":0},{"$f":"SUMIFS(Sheet1!S71_AdjustmentBudAmnt,Sheet1!S71_SA34dCode,$AC:$AC,Sheet1!S71_DepCode,$AD:$AD)","v":0},{"$f":"SUMIFS(Sheet1!S71_ASBudgetAmount,Sheet1!S71_SA34dCode,$AC:$AC,Sheet1!S71_DepCode,$AD:$AD)","v":0},{"$f":"SUMIFS(Sheet1!S71_OY1BudgetAmount,Sheet1!S71_SA34dCode,$AC:$AC,Sheet1!S71_DepCode,$AD:$AD)","v":0},{"$f":"SUMIFS(Sheet1!S71_OY2BudgetAmount,Sheet1!S71_SA34dCode,$AC:$AC,Sheet1!S71_DepCode,$AD:$AD)","v":0},null,null,null,null,null,null,null,null,null,null,null,null,null,null,null,null,null,"0600","DP"]
["Storm water Conveyance",null,{"$f":"SUMIFS(Sheet1!S71_PPPYearAmount,Sheet1!S71_SA34dCode,$AC:$AC,Sheet1!S71_DepCode,$AD:$AD)","v":0},{"$f":"SUMIFS(Sheet1!S71_PPYearAmount,Sheet1!S71_SA34dCode,$AC:$AC,Sheet1!S71_DepCode,$AD:$AD)","v":0},{"$f":"SUMIFS(Sheet1!S71_PYearAmount,Sheet1!S71_SA34dCode,$AC:$AC,Sheet1!S71_DepCode,$AD:$AD)","v":0},{"$f":"SUMIFS(Sheet1!S71_OriginalBudAmnt,Sheet1!S71_SA34dCode,$AC:$AC,Sheet1!S71_DepCode,$AD:$AD)","v":0},{"$f":"SUMIFS(Sheet1!S71_AdjustmentBudAmnt,Sheet1!S71_SA34dCode,$AC:$AC,Sheet1!S71_DepCode,$AD:$AD)","v":0},{"$f":"SUMIFS(Sheet1!S71_AdjustmentBudAmnt,Sheet1!S71_SA34dCode,$AC:$AC,Sheet1!S71_DepCode,$AD:$AD)","v":0},{"$f":"SUMIFS(Sheet1!S71_ASBudgetAmount,Sheet1!S71_SA34dCode,$AC:$AC,Sheet1!S71_DepCode,$AD:$AD)","v":0},{"$f":"SUMIFS(Sheet1!S71_OY1BudgetAmount,Sheet1!S71_SA34dCode,$AC:$AC,Sheet1!S71_DepCode,$AD:$AD)","v":0},{"$f":"SUMIFS(Sheet1!S71_OY2BudgetAmount,Sheet1!S71_SA34dCode,$AC:$AC,Sheet1!S71_DepCode,$AD:$AD)","v":0},null,null,null,null,null,null,null,null,null,null,null,null,null,null,null,null,null,"0610","DP"]
["Attenuation",null,{"$f":"SUMIFS(Sheet1!S71_PPPYearAmount,Sheet1!S71_SA34dCode,$AC:$AC,Sheet1!S71_DepCode,$AD:$AD)","v":0},{"$f":"SUMIFS(Sheet1!S71_PPYearAmount,Sheet1!S71_SA34dCode,$AC:$AC,Sheet1!S71_DepCode,$AD:$AD)","v":0},{"$f":"SUMIFS(Sheet1!S71_PYearAmount,Sheet1!S71_SA34dCode,$AC:$AC,Sheet1!S71_DepCode,$AD:$AD)","v":0},{"$f":"SUMIFS(Sheet1!S71_OriginalBudAmnt,Sheet1!S71_SA34dCode,$AC:$AC,Sheet1!S71_DepCode,$AD:$AD)","v":0},{"$f":"SUMIFS(Sheet1!S71_AdjustmentBudAmnt,Sheet1!S71_SA34dCode,$AC:$AC,Sheet1!S71_DepCode,$AD:$AD)","v":0},{"$f":"SUMIFS(Sheet1!S71_AdjustmentBudAmnt,Sheet1!S71_SA34dCode,$AC:$AC,Sheet1!S71_DepCode,$AD:$AD)","v":0},{"$f":"SUMIFS(Sheet1!S71_ASBudgetAmount,Sheet1!S71_SA34dCode,$AC:$AC,Sheet1!S71_DepCode,$AD:$AD)","v":0},{"$f":"SUMIFS(Sheet1!S71_OY1BudgetAmount,Sheet1!S71_SA34dCode,$AC:$AC,Sheet1!S71_DepCode,$AD:$AD)","v":0},{"$f":"SUMIFS(Sheet1!S71_OY2BudgetAmount,Sheet1!S71_SA34dCode,$AC:$AC,Sheet1!S71_DepCode,$AD:$AD)","v":0},null,null,null,null,null,null,null,null,null,null,null,null,null,null,null,null,null,"0620","DP"]
["MV Substations",null,{"$f":"SUMIFS(Sheet1!S71_PPPYearAmount,Sheet1!S71_SA34dCode,$AC:$AC,Sheet1!S71_DepCode,$AD:$AD)","v":0},{"$f":"SUMIFS(Sheet1!S71_PPYearAmount,Sheet1!S71_SA34dCode,$AC:$AC,Sheet1!S71_DepCode,$AD:$AD)","v":0},{"$f":"SUMIFS(Sheet1!S71_PYearAmount,Sheet1!S71_SA34dCode,$AC:$AC,Sheet1!S71_DepCode,$AD:$AD)","v":0},{"$f":"SUMIFS(Sheet1!S71_OriginalBudAmnt,Sheet1!S71_SA34dCode,$AC:$AC,Sheet1!S71_DepCode,$AD:$AD)","v":0},{"$f":"SUMIFS(Sheet1!S71_AdjustmentBudAmnt,Sheet1!S71_SA34dCode,$AC:$AC,Sheet1!S71_DepCode,$AD:$AD)","v":0},{"$f":"SUMIFS(Sheet1!S71_AdjustmentBudAmnt,Sheet1!S71_SA34dCode,$AC:$AC,Sheet1!S71_DepCode,$AD:$AD)","v":0},{"$f":"SUMIFS(Sheet1!S71_ASBudgetAmount,Sheet1!S71_SA34dCode,$AC:$AC,Sheet1!S71_DepCode,$AD:$AD)","v":0},{"$f":"SUMIFS(Sheet1!S71_OY1BudgetAmount,Sheet1!S71_SA34dCode,$AC:$AC,Sheet1!S71_DepCode,$AD:$AD)","v":0},{"$f":"SUMIFS(Sheet1!S71_OY2BudgetAmount,Sheet1!S71_SA34dCode,$AC:$AC,Sheet1!S71_DepCode,$AD:$AD)","v":0},null,null,null,null,null,null,null,null,null,null,null,null,null,null,null,null,null,"0630","DP"]
["LV Networks",null,{"$f":"SUMIFS(Sheet1!S71_PPPYearAmount,Sheet1!S71_SA34dCode,$AC:$AC,Sheet1!S71_DepCode,$AD:$AD)","v":0},{"$f":"SUMIFS(Sheet1!S71_PPYearAmount,Sheet1!S71_SA34dCode,$AC:$AC,Sheet1!S71_DepCode,$AD:$AD)","v":0},{"$f":"SUMIFS(Sheet1!S71_PYearAmount,Sheet1!S71_SA34dCode,$AC:$AC,Sheet1!S71_DepCode,$AD:$AD)","v":0},{"$f":"SUMIFS(Sheet1!S71_OriginalBudAmnt,Sheet1!S71_SA34dCode,$AC:$AC,Sheet1!S71_DepCode,$AD:$AD)","v":0},{"$f":"SUMIFS(Sheet1!S71_AdjustmentBudAmnt,Sheet1!S71_SA34dCode,$AC:$AC,Sheet1!S71_DepCode,$AD:$AD)","v":0},{"$f":"SUMIFS(Sheet1!S71_AdjustmentBudAmnt,Sheet1!S71_SA34dCode,$AC:$AC,Sheet1!S71_DepCode,$AD:$AD)","v":0},{"$f":"SUMIFS(Sheet1!S71_ASBudgetAmount,Sheet1!S71_SA34dCode,$AC:$AC,Sheet1!S71_DepCode,$AD:$AD)","v":0},{"$f":"SUMIFS(Sheet1!S71_OY1BudgetAmount,Sheet1!S71_SA34dCode,$AC:$AC,Sheet1!S71_DepCode,$AD:$AD)","v":0},{"$f":"SUMIFS(Sheet1!S71_OY2BudgetAmount,Sheet1!S71_SA34dCode,$AC:$AC,Sheet1!S71_DepCode,$AD:$AD)","v":0},null,null,null,null,null,null,null,null,null,null,null,null,null,null,null,null,null,"0640","DP"]
["Capital Spares",null,{"$f":"SUMIFS(Sheet1!S71_PPPYearAmount,Sheet1!S71_SA34dCode,$AC:$AC,Sheet1!S71_DepCode,$AD:$AD)","v":0},{"$f":"SUMIFS(Sheet1!S71_PPYearAmount,Sheet1!S71_SA34dCode,$AC:$AC,Sheet1!S71_DepCode,$AD:$AD)","v":0},{"$f":"SUMIFS(Sheet1!S71_PYearAmount,Sheet1!S71_SA34dCode,$AC:$AC,Sheet1!S71_DepCode,$AD:$AD)","v":0},{"$f":"SUMIFS(Sheet1!S71_OriginalBudAmnt,Sheet1!S71_SA34dCode,$AC:$AC,Sheet1!S71_DepCode,$AD:$AD)","v":0},{"$f":"SUMIFS(Sheet1!S71_AdjustmentBudAmnt,Sheet1!S71_SA34dCode,$AC:$AC,Sheet1!S71_DepCode,$AD:$AD)","v":0},{"$f":"SUMIFS(Sheet1!S71_AdjustmentBudAmnt,Sheet1!S71_SA34dCode,$AC:$AC,Sheet1!S71_DepCode,$AD:$AD)","v":0},{"$f":"SUMIFS(Sheet1!S71_ASBudgetAmount,Sheet1!S71_SA34dCode,$AC:$AC,Sheet1!S71_DepCode,$AD:$AD)","v":0},{"$f":"SUMIFS(Sheet1!S71_OY1BudgetAmount,Sheet1!S71_SA34dCode,$AC:$AC,Sheet1!S71_DepCode,$AD:$AD)","v":0},{"$f":"SUMIFS(Sheet1!S71_OY2BudgetAmount,Sheet1!S71_SA34dCode,$AC:$AC,Sheet1!S71_DepCode,$AD:$AD)","v":0},null,null,null,null,null,null,null,null,null,null,null,null,null,null,null,null,null,"0650","DP"]
["Coastal Infrastructure",null,{"$f":"SUM(C63:C67)","v":0},{"$f":"SUM(D63:D67)","v":0},0,0,0,0,0,0,0,null,null,null,null,null,null,null,null,null,null,null,null,null,null,null,null,null,null,"DP"]
["Sand Pumps",null,{"$f":"SUMIFS(Sheet1!S71_PPPYearAmount,Sheet1!S71_SA34dCode,$AC:$AC,Sheet1!S71_DepCode,$AD:$AD)","v":0},{"$f":"SUMIFS(Sheet1!S71_PPYearAmount,Sheet1!S71_SA34dCode,$AC:$AC,Sheet1!S71_DepCode,$AD:$AD)","v":0},{"$f":"SUMIFS(Sheet1!S71_PYearAmount,Sheet1!S71_SA34dCode,$AC:$AC,Sheet1!S71_DepCode,$AD:$AD)","v":0},{"$f":"SUMIFS(Sheet1!S71_OriginalBudAmnt,Sheet1!S71_SA34dCode,$AC:$AC,Sheet1!S71_DepCode,$AD:$AD)","v":0},{"$f":"SUMIFS(Sheet1!S71_AdjustmentBudAmnt,Sheet1!S71_SA34dCode,$AC:$AC,Sheet1!S71_DepCode,$AD:$AD)","v":0},{"$f":"SUMIFS(Sheet1!S71_AdjustmentBudAmnt,Sheet1!S71_SA34dCode,$AC:$AC,Sheet1!S71_DepCode,$AD:$AD)","v":0},{"$f":"SUMIFS(Sheet1!S71_ASBudgetAmount,Sheet1!S71_SA34dCode,$AC:$AC,Sheet1!S71_DepCode,$AD:$AD)","v":0},{"$f":"SUMIFS(Sheet1!S71_OY1BudgetAmount,Sheet1!S71_SA34dCode,$AC:$AC,Sheet1!S71_DepCode,$AD:$AD)","v":0},{"$f":"SUMIFS(Sheet1!S71_OY2BudgetAmount,Sheet1!S71_SA34dCode,$AC:$AC,Sheet1!S71_DepCode,$AD:$AD)","v":0},null,null,null,null,null,null,null,null,null,null,null,null,null,null,null,null,null,"0670","DP"]
["Piers",null,{"$f":"SUMIFS(Sheet1!S71_PPPYearAmount,Sheet1!S71_SA34dCode,$AC:$AC,Sheet1!S71_DepCode,$AD:$AD)","v":0},{"$f":"SUMIFS(Sheet1!S71_PPYearAmount,Sheet1!S71_SA34dCode,$AC:$AC,Sheet1!S71_DepCode,$AD:$AD)","v":0},{"$f":"SUMIFS(Sheet1!S71_PYearAmount,Sheet1!S71_SA34dCode,$AC:$AC,Sheet1!S71_DepCode,$AD:$AD)","v":0},{"$f":"SUMIFS(Sheet1!S71_OriginalBudAmnt,Sheet1!S71_SA34dCode,$AC:$AC,Sheet1!S71_DepCode,$AD:$AD)","v":0},{"$f":"SUMIFS(Sheet1!S71_AdjustmentBudAmnt,Sheet1!S71_SA34dCode,$AC:$AC,Sheet1!S71_DepCode,$AD:$AD)","v":0},{"$f":"SUMIFS(Sheet1!S71_AdjustmentBudAmnt,Sheet1!S71_SA34dCode,$AC:$AC,Sheet1!S71_DepCode,$AD:$AD)","v":0},{"$f":"SUMIFS(Sheet1!S71_ASBudgetAmount,Sheet1!S71_SA34dCode,$AC:$AC,Sheet1!S71_DepCode,$AD:$AD)","v":0},{"$f":"SUMIFS(Sheet1!S71_OY1BudgetAmount,Sheet1!S71_SA34dCode,$AC:$AC,Sheet1!S71_DepCode,$AD:$AD)","v":0},{"$f":"SUMIFS(Sheet1!S71_OY2BudgetAmount,Sheet1!S71_SA34dCode,$AC:$AC,Sheet1!S71_DepCode,$AD:$AD)","v":0},null,null,null,null,null,null,null,null,null,null,null,null,null,null,null,null,null,"0680","DP"]
["Revetments",null,{"$f":"SUMIFS(Sheet1!S71_PPPYearAmount,Sheet1!S71_SA34dCode,$AC:$AC,Sheet1!S71_DepCode,$AD:$AD)","v":0},{"$f":"SUMIFS(Sheet1!S71_PPYearAmount,Sheet1!S71_SA34dCode,$AC:$AC,Sheet1!S71_DepCode,$AD:$AD)","v":0},{"$f":"SUMIFS(Sheet1!S71_PYearAmount,Sheet1!S71_SA34dCode,$AC:$AC,Sheet1!S71_DepCode,$AD:$AD)","v":0},{"$f":"SUMIFS(Sheet1!S71_OriginalBudAmnt,Sheet1!S71_SA34dCode,$AC:$AC,Sheet1!S71_DepCode,$AD:$AD)","v":0},{"$f":"SUMIFS(Sheet1!S71_AdjustmentBudAmnt,Sheet1!S71_SA34dCode,$AC:$AC,Sheet1!S71_DepCode,$AD:$AD)","v":0},{"$f":"SUMIFS(Sheet1!S71_AdjustmentBudAmnt,Sheet1!S71_SA34dCode,$AC:$AC,Sheet1!S71_DepCode,$AD:$AD)","v":0},{"$f":"SUMIFS(Sheet1!S71_ASBudgetAmount,Sheet1!S71_SA34dCode,$AC:$AC,Sheet1!S71_DepCode,$AD:$AD)","v":0},{"$f":"SUMIFS(Sheet1!S71_OY1BudgetAmount,Sheet1!S71_SA34dCode,$AC:$AC,Sheet1!S71_DepCode,$AD:$AD)","v":0},{"$f":"SUMIFS(Sheet1!S71_OY2BudgetAmount,Sheet1!S71_SA34dCode,$AC:$AC,Sheet1!S71_DepCode,$AD:$AD)","v":0},null,null,null,null,null,null,null,null,null,null,null,null,null,null,null,null,null,"0690","DP"]
["Promenades",null,{"$f":"SUMIFS(Sheet1!S71_PPPYearAmount,Sheet1!S71_SA34dCode,$AC:$AC,Sheet1!S71_DepCode,$AD:$AD)","v":0},{"$f":"SUMIFS(Sheet1!S71_PPYearAmount,Sheet1!S71_SA34dCode,$AC:$AC,Sheet1!S71_DepCode,$AD:$AD)","v":0},{"$f":"SUMIFS(Sheet1!S71_PYearAmount,Sheet1!S71_SA34dCode,$AC:$AC,Sheet1!S71_DepCode,$AD:$AD)","v":0},{"$f":"SUMIFS(Sheet1!S71_OriginalBudAmnt,Sheet1!S71_SA34dCode,$AC:$AC,Sheet1!S71_DepCode,$AD:$AD)","v":0},{"$f":"SUMIFS(Sheet1!S71_AdjustmentBudAmnt,Sheet1!S71_SA34dCode,$AC:$AC,Sheet1!S71_DepCode,$AD:$AD)","v":0},{"$f":"SUMIFS(Sheet1!S71_AdjustmentBudAmnt,Sheet1!S71_SA34dCode,$AC:$AC,Sheet1!S71_DepCode,$AD:$AD)","v":0},{"$f":"SUMIFS(Sheet1!S71_ASBudgetAmount,Sheet1!S71_SA34dCode,$AC:$AC,Sheet1!S71_DepCode,$AD:$AD)","v":0},{"$f":"SUMIFS(Sheet1!S71_OY1BudgetAmount,Sheet1!S71_SA34dCode,$AC:$AC,Sheet1!S71_DepCode,$AD:$AD)","v":0},{"$f":"SUMIFS(Sheet1!S71_OY2BudgetAmount,Sheet1!S71_SA34dCode,$AC:$AC,Sheet1!S71_DepCode,$AD:$AD)","v":0},null,null,null,null,null,null,null,null,null,null,null,null,null,null,null,null,null,"0700","DP"]
["Capital Spares",null,{"$f":"SUMIFS(Sheet1!S71_PPPYearAmount,Sheet1!S71_SA34dCode,$AC:$AC,Sheet1!S71_DepCode,$AD:$AD)","v":0},{"$f":"SUMIFS(Sheet1!S71_PPYearAmount,Sheet1!S71_SA34dCode,$AC:$AC,Sheet1!S71_DepCode,$AD:$AD)","v":0},{"$f":"SUMIFS(Sheet1!S71_PYearAmount,Sheet1!S71_SA34dCode,$AC:$AC,Sheet1!S71_DepCode,$AD:$AD)","v":0},{"$f":"SUMIFS(Sheet1!S71_OriginalBudAmnt,Sheet1!S71_SA34dCode,$AC:$AC,Sheet1!S71_DepCode,$AD:$AD)","v":0},{"$f":"SUMIFS(Sheet1!S71_AdjustmentBudAmnt,Sheet1!S71_SA34dCode,$AC:$AC,Sheet1!S71_DepCode,$AD:$AD)","v":0},{"$f":"SUMIFS(Sheet1!S71_AdjustmentBudAmnt,Sheet1!S71_SA34dCode,$AC:$AC,Sheet1!S71_DepCode,$AD:$AD)","v":0},{"$f":"SUMIFS(Sheet1!S71_ASBudgetAmount,Sheet1!S71_SA34dCode,$AC:$AC,Sheet1!S71_DepCode,$AD:$AD)","v":0},{"$f":"SUMIFS(Sheet1!S71_OY1BudgetAmount,Sheet1!S71_SA34dCode,$AC:$AC,Sheet1!S71_DepCode,$AD:$AD)","v":0},{"$f":"SUMIFS(Sheet1!S71_OY2BudgetAmount,Sheet1!S71_SA34dCode,$AC:$AC,Sheet1!S71_DepCode,$AD:$AD)","v":0},null,null,null,null,null,null,null,null,null,null,null,null,null,null,null,null,null,"0710","DP"]
["Information and Communication Infrastructure",null,{"$f":"SUM(C69:C72)","v":0},{"$f":"SUM(D69:D72)","v":0},0,0,0,0,0,0,0,null,null,null,null,null,null,null,null,null,null,null,null,null,null,null,null,null,null,"DP"]
["Data Centres",null,{"$f":"SUMIFS(Sheet1!S71_PPPYearAmount,Sheet1!S71_SA34dCode,$AC:$AC,Sheet1!S71_DepCode,$AD:$AD)","v":0},{"$f":"SUMIFS(Sheet1!S71_PPYearAmount,Sheet1!S71_SA34dCode,$AC:$AC,Sheet1!S71_DepCode,$AD:$AD)","v":0},{"$f":"SUMIFS(Sheet1!S71_PYearAmount,Sheet1!S71_SA34dCode,$AC:$AC,Sheet1!S71_DepCode,$AD:$AD)","v":0},{"$f":"SUMIFS(Sheet1!S71_OriginalBudAmnt,Sheet1!S71_SA34dCode,$AC:$AC,Sheet1!S71_DepCode,$AD:$AD)","v":0},{"$f":"SUMIFS(Sheet1!S71_AdjustmentBudAmnt,Sheet1!S71_SA34dCode,$AC:$AC,Sheet1!S71_DepCode,$AD:$AD)","v":0},{"$f":"SUMIFS(Sheet1!S71_AdjustmentBudAmnt,Sheet1!S71_SA34dCode,$AC:$AC,Sheet1!S71_DepCode,$AD:$AD)","v":0},{"$f":"SUMIFS(Sheet1!S71_ASBudgetAmount,Sheet1!S71_SA34dCode,$AC:$AC,Sheet1!S71_DepCode,$AD:$AD)","v":0},{"$f":"SUMIFS(Sheet1!S71_OY1BudgetAmount,Sheet1!S71_SA34dCode,$AC:$AC,Sheet1!S71_DepCode,$AD:$AD)","v":0},{"$f":"SUMIFS(Sheet1!S71_OY2BudgetAmount,Sheet1!S71_SA34dCode,$AC:$AC,Sheet1!S71_DepCode,$AD:$AD)","v":0},null,null,null,null,null,null,null,null,null,null,null,null,null,null,null,null,null,"0730","DP"]
["Core Layers",null,{"$f":"SUMIFS(Sheet1!S71_PPPYearAmount,Sheet1!S71_SA34dCode,$AC:$AC,Sheet1!S71_DepCode,$AD:$AD)","v":0},{"$f":"SUMIFS(Sheet1!S71_PPYearAmount,Sheet1!S71_SA34dCode,$AC:$AC,Sheet1!S71_DepCode,$AD:$AD)","v":0},{"$f":"SUMIFS(Sheet1!S71_PYearAmount,Sheet1!S71_SA34dCode,$AC:$AC,Sheet1!S71_DepCode,$AD:$AD)","v":0},{"$f":"SUMIFS(Sheet1!S71_OriginalBudAmnt,Sheet1!S71_SA34dCode,$AC:$AC,Sheet1!S71_DepCode,$AD:$AD)","v":0},{"$f":"SUMIFS(Sheet1!S71_AdjustmentBudAmnt,Sheet1!S71_SA34dCode,$AC:$AC,Sheet1!S71_DepCode,$AD:$AD)","v":0},{"$f":"SUMIFS(Sheet1!S71_AdjustmentBudAmnt,Sheet1!S71_SA34dCode,$AC:$AC,Sheet1!S71_DepCode,$AD:$AD)","v":0},{"$f":"SUMIFS(Sheet1!S71_ASBudgetAmount,Sheet1!S71_SA34dCode,$AC:$AC,Sheet1!S71_DepCode,$AD:$AD)","v":0},{"$f":"SUMIFS(Sheet1!S71_OY1BudgetAmount,Sheet1!S71_SA34dCode,$AC:$AC,Sheet1!S71_DepCode,$AD:$AD)","v":0},{"$f":"SUMIFS(Sheet1!S71_OY2BudgetAmount,Sheet1!S71_SA34dCode,$AC:$AC,Sheet1!S71_DepCode,$AD:$AD)","v":0},null,null,null,null,null,null,null,null,null,null,null,null,null,null,null,null,null,"0740","DP"]
["Distribution Layers",null,{"$f":"SUMIFS(Sheet1!S71_PPPYearAmount,Sheet1!S71_SA34dCode,$AC:$AC,Sheet1!S71_DepCode,$AD:$AD)","v":0},{"$f":"SUMIFS(Sheet1!S71_PPYearAmount,Sheet1!S71_SA34dCode,$AC:$AC,Sheet1!S71_DepCode,$AD:$AD)","v":0},{"$f":"SUMIFS(Sheet1!S71_PYearAmount,Sheet1!S71_SA34dCode,$AC:$AC,Sheet1!S71_DepCode,$AD:$AD)","v":0},{"$f":"SUMIFS(Sheet1!S71_OriginalBudAmnt,Sheet1!S71_SA34dCode,$AC:$AC,Sheet1!S71_DepCode,$AD:$AD)","v":0},{"$f":"SUMIFS(Sheet1!S71_AdjustmentBudAmnt,Sheet1!S71_SA34dCode,$AC:$AC,Sheet1!S71_DepCode,$AD:$AD)","v":0},{"$f":"SUMIFS(Sheet1!S71_AdjustmentBudAmnt,Sheet1!S71_SA34dCode,$AC:$AC,Sheet1!S71_DepCode,$AD:$AD)","v":0},{"$f":"SUMIFS(Sheet1!S71_ASBudgetAmount,Sheet1!S71_SA34dCode,$AC:$AC,Sheet1!S71_DepCode,$AD:$AD)","v":0},{"$f":"SUMIFS(Sheet1!S71_OY1BudgetAmount,Sheet1!S71_SA34dCode,$AC:$AC,Sheet1!S71_DepCode,$AD:$AD)","v":0},{"$f":"SUMIFS(Sheet1!S71_OY2BudgetAmount,Sheet1!S71_SA34dCode,$AC:$AC,Sheet1!S71_DepCode,$AD:$AD)","v":0},null,null,null,null,null,null,null,null,null,null,null,null,null,null,null,null,null,"0750","DP"]
["Capital Spares",null,{"$f":"SUMIFS(Sheet1!S71_PPPYearAmount,Sheet1!S71_SA34dCode,$AC:$AC,Sheet1!S71_DepCode,$AD:$AD)","v":0},{"$f":"SUMIFS(Sheet1!S71_PPYearAmount,Sheet1!S71_SA34dCode,$AC:$AC,Sheet1!S71_DepCode,$AD:$AD)","v":0},{"$f":"SUMIFS(Sheet1!S71_PYearAmount,Sheet1!S71_SA34dCode,$AC:$AC,Sheet1!S71_DepCode,$AD:$AD)","v":0},{"$f":"SUMIFS(Sheet1!S71_OriginalBudAmnt,Sheet1!S71_SA34dCode,$AC:$AC,Sheet1!S71_DepCode,$AD:$AD)","v":0},{"$f":"SUMIFS(Sheet1!S71_AdjustmentBudAmnt,Sheet1!S71_SA34dCode,$AC:$AC,Sheet1!S71_DepCode,$AD:$AD)","v":0},{"$f":"SUMIFS(Sheet1!S71_AdjustmentBudAmnt,Sheet1!S71_SA34dCode,$AC:$AC,Sheet1!S71_DepCode,$AD:$AD)","v":0},{"$f":"SUMIFS(Sheet1!S71_ASBudgetAmount,Sheet1!S71_SA34dCode,$AC:$AC,Sheet1!S71_DepCode,$AD:$AD)","v":0},{"$f":"SUMIFS(Sheet1!S71_OY1BudgetAmount,Sheet1!S71_SA34dCode,$AC:$AC,Sheet1!S71_DepCode,$AD:$AD)","v":0},{"$f":"SUMIFS(Sheet1!S71_OY2BudgetAmount,Sheet1!S71_SA34dCode,$AC:$AC,Sheet1!S71_DepCode,$AD:$AD)","v":0},null,null,null,null,null,null,null,null,null,null,null,null,null,null,null,null,null,"0760","DP"]
[null,null,null,null,null,null,null,null,null,null,null,null,null,null,null,null,null,null,null,null,null,null,null,null,null,null,null,null,null,"DP"]
["Community Assets",null,{"$f":"C75+C98","v":2303804},{"$f":"D75+D98","v":3087200},3402372,4000000,4000000,4000000,2200000,2300000,2400000,null,null,null,null,null,null,null,null,null,null,null,null,null,null,null,null,null,null,"DP"]
["Community Facilities",null,{"$f":"SUM(C76:C97)","v":2303804},{"$f":"SUM(D76:D97)","v":3087200},3402372,4000000,4000000,4000000,2200000,2300000,2400000,null,null,null,null,null,null,null,null,null,null,null,null,null,null,null,null,null,null,"DP"]
["Halls",null,{"$f":"SUMIFS(Sheet1!S71_PPPYearAmount,Sheet1!S71_SA34dCode,$AC:$AC,Sheet1!S71_DepCode,$AD:$AD)","v":2303804},{"$f":"SUMIFS(Sheet1!S71_PPYearAmount,Sheet1!S71_SA34dCode,$AC:$AC,Sheet1!S71_DepCode,$AD:$AD)","v":3087200},{"$f":"SUMIFS(Sheet1!S71_PYearAmount,Sheet1!S71_SA34dCode,$AC:$AC,Sheet1!S71_DepCode,$AD:$AD)","v":3402372},{"$f":"SUMIFS(Sheet1!S71_OriginalBudAmnt,Sheet1!S71_SA34dCode,$AC:$AC,Sheet1!S71_DepCode,$AD:$AD)","v":4000000},{"$f":"SUMIFS(Sheet1!S71_AdjustmentBudAmnt,Sheet1!S71_SA34dCode,$AC:$AC,Sheet1!S71_DepCode,$AD:$AD)","v":4000000},{"$f":"SUMIFS(Sheet1!S71_AdjustmentBudAmnt,Sheet1!S71_SA34dCode,$AC:$AC,Sheet1!S71_DepCode,$AD:$AD)","v":4000000},{"$f":"SUMIFS(Sheet1!S71_ASBudgetAmount,Sheet1!S71_SA34dCode,$AC:$AC,Sheet1!S71_DepCode,$AD:$AD)","v":2200000},{"$f":"SUMIFS(Sheet1!S71_OY1BudgetAmount,Sheet1!S71_SA34dCode,$AC:$AC,Sheet1!S71_DepCode,$AD:$AD)","v":2300000},{"$f":"SUMIFS(Sheet1!S71_OY2BudgetAmount,Sheet1!S71_SA34dCode,$AC:$AC,Sheet1!S71_DepCode,$AD:$AD)","v":2400000},null,null,null,null,null,null,null,null,null,null,null,null,null,null,null,null,null,"0790","DP"]
["Centres",null,{"$f":"SUMIFS(Sheet1!S71_PPPYearAmount,Sheet1!S71_SA34dCode,$AC:$AC,Sheet1!S71_DepCode,$AD:$AD)","v":0},{"$f":"SUMIFS(Sheet1!S71_PPYearAmount,Sheet1!S71_SA34dCode,$AC:$AC,Sheet1!S71_DepCode,$AD:$AD)","v":0},{"$f":"SUMIFS(Sheet1!S71_PYearAmount,Sheet1!S71_SA34dCode,$AC:$AC,Sheet1!S71_DepCode,$AD:$AD)","v":0},{"$f":"SUMIFS(Sheet1!S71_OriginalBudAmnt,Sheet1!S71_SA34dCode,$AC:$AC,Sheet1!S71_DepCode,$AD:$AD)","v":0},{"$f":"SUMIFS(Sheet1!S71_AdjustmentBudAmnt,Sheet1!S71_SA34dCode,$AC:$AC,Sheet1!S71_DepCode,$AD:$AD)","v":0},{"$f":"SUMIFS(Sheet1!S71_AdjustmentBudAmnt,Sheet1!S71_SA34dCode,$AC:$AC,Sheet1!S71_DepCode,$AD:$AD)","v":0},{"$f":"SUMIFS(Sheet1!S71_ASBudgetAmount,Sheet1!S71_SA34dCode,$AC:$AC,Sheet1!S71_DepCode,$AD:$AD)","v":0},{"$f":"SUMIFS(Sheet1!S71_OY1BudgetAmount,Sheet1!S71_SA34dCode,$AC:$AC,Sheet1!S71_DepCode,$AD:$AD)","v":0},{"$f":"SUMIFS(Sheet1!S71_OY2BudgetAmount,Sheet1!S71_SA34dCode,$AC:$AC,Sheet1!S71_DepCode,$AD:$AD)","v":0},null,null,null,null,null,null,null,null,null,null,null,null,null,null,null,null,null,"0800","DP"]
["Crèches",null,{"$f":"SUMIFS(Sheet1!S71_PPPYearAmount,Sheet1!S71_SA34dCode,$AC:$AC,Sheet1!S71_DepCode,$AD:$AD)","v":0},{"$f":"SUMIFS(Sheet1!S71_PPYearAmount,Sheet1!S71_SA34dCode,$AC:$AC,Sheet1!S71_DepCode,$AD:$AD)","v":0},{"$f":"SUMIFS(Sheet1!S71_PYearAmount,Sheet1!S71_SA34dCode,$AC:$AC,Sheet1!S71_DepCode,$AD:$AD)","v":0},{"$f":"SUMIFS(Sheet1!S71_OriginalBudAmnt,Sheet1!S71_SA34dCode,$AC:$AC,Sheet1!S71_DepCode,$AD:$AD)","v":0},{"$f":"SUMIFS(Sheet1!S71_AdjustmentBudAmnt,Sheet1!S71_SA34dCode,$AC:$AC,Sheet1!S71_DepCode,$AD:$AD)","v":0},{"$f":"SUMIFS(Sheet1!S71_AdjustmentBudAmnt,Sheet1!S71_SA34dCode,$AC:$AC,Sheet1!S71_DepCode,$AD:$AD)","v":0},{"$f":"SUMIFS(Sheet1!S71_ASBudgetAmount,Sheet1!S71_SA34dCode,$AC:$AC,Sheet1!S71_DepCode,$AD:$AD)","v":0},{"$f":"SUMIFS(Sheet1!S71_OY1BudgetAmount,Sheet1!S71_SA34dCode,$AC:$AC,Sheet1!S71_DepCode,$AD:$AD)","v":0},{"$f":"SUMIFS(Sheet1!S71_OY2BudgetAmount,Sheet1!S71_SA34dCode,$AC:$AC,Sheet1!S71_DepCode,$AD:$AD)","v":0},null,null,null,null,null,null,null,null,null,null,null,null,null,null,null,null,null,"0810","DP"]
["Clinics/Care Centres",null,{"$f":"SUMIFS(Sheet1!S71_PPPYearAmount,Sheet1!S71_SA34dCode,$AC:$AC,Sheet1!S71_DepCode,$AD:$AD)","v":0},{"$f":"SUMIFS(Sheet1!S71_PPYearAmount,Sheet1!S71_SA34dCode,$AC:$AC,Sheet1!S71_DepCode,$AD:$AD)","v":0},{"$f":"SUMIFS(Sheet1!S71_PYearAmount,Sheet1!S71_SA34dCode,$AC:$AC,Sheet1!S71_DepCode,$AD:$AD)","v":0},{"$f":"SUMIFS(Sheet1!S71_OriginalBudAmnt,Sheet1!S71_SA34dCode,$AC:$AC,Sheet1!S71_DepCode,$AD:$AD)","v":0},{"$f":"SUMIFS(Sheet1!S71_AdjustmentBudAmnt,Sheet1!S71_SA34dCode,$AC:$AC,Sheet1!S71_DepCode,$AD:$AD)","v":0},{"$f":"SUMIFS(Sheet1!S71_AdjustmentBudAmnt,Sheet1!S71_SA34dCode,$AC:$AC,Sheet1!S71_DepCode,$AD:$AD)","v":0},{"$f":"SUMIFS(Sheet1!S71_ASBudgetAmount,Sheet1!S71_SA34dCode,$AC:$AC,Sheet1!S71_DepCode,$AD:$AD)","v":0},{"$f":"SUMIFS(Sheet1!S71_OY1BudgetAmount,Sheet1!S71_SA34dCode,$AC:$AC,Sheet1!S71_DepCode,$AD:$AD)","v":0},{"$f":"SUMIFS(Sheet1!S71_OY2BudgetAmount,Sheet1!S71_SA34dCode,$AC:$AC,Sheet1!S71_DepCode,$AD:$AD)","v":0},null,null,null,null,null,null,null,null,null,null,null,null,null,null,null,null,null,"0820","DP"]
["Fire/Ambulance Stations",null,{"$f":"SUMIFS(Sheet1!S71_PPPYearAmount,Sheet1!S71_SA34dCode,$AC:$AC,Sheet1!S71_DepCode,$AD:$AD)","v":0},{"$f":"SUMIFS(Sheet1!S71_PPYearAmount,Sheet1!S71_SA34dCode,$AC:$AC,Sheet1!S71_DepCode,$AD:$AD)","v":0},{"$f":"SUMIFS(Sheet1!S71_PYearAmount,Sheet1!S71_SA34dCode,$AC:$AC,Sheet1!S71_DepCode,$AD:$AD)","v":0},{"$f":"SUMIFS(Sheet1!S71_OriginalBudAmnt,Sheet1!S71_SA34dCode,$AC:$AC,Sheet1!S71_DepCode,$AD:$AD)","v":0},{"$f":"SUMIFS(Sheet1!S71_AdjustmentBudAmnt,Sheet1!S71_SA34dCode,$AC:$AC,Sheet1!S71_DepCode,$AD:$AD)","v":0},{"$f":"SUMIFS(Sheet1!S71_AdjustmentBudAmnt,Sheet1!S71_SA34dCode,$AC:$AC,Sheet1!S71_DepCode,$AD:$AD)","v":0},{"$f":"SUMIFS(Sheet1!S71_ASBudgetAmount,Sheet1!S71_SA34dCode,$AC:$AC,Sheet1!S71_DepCode,$AD:$AD)","v":0},{"$f":"SUMIFS(Sheet1!S71_OY1BudgetAmount,Sheet1!S71_SA34dCode,$AC:$AC,Sheet1!S71_DepCode,$AD:$AD)","v":0},{"$f":"SUMIFS(Sheet1!S71_OY2BudgetAmount,Sheet1!S71_SA34dCode,$AC:$AC,Sheet1!S71_DepCode,$AD:$AD)","v":0},null,null,null,null,null,null,null,null,null,null,null,null,null,null,null,null,null,"0830","DP"]
["Testing Stations",null,{"$f":"SUMIFS(Sheet1!S71_PPPYearAmount,Sheet1!S71_SA34dCode,$AC:$AC,Sheet1!S71_DepCode,$AD:$AD)","v":0},{"$f":"SUMIFS(Sheet1!S71_PPYearAmount,Sheet1!S71_SA34dCode,$AC:$AC,Sheet1!S71_DepCode,$AD:$AD)","v":0},{"$f":"SUMIFS(Sheet1!S71_PYearAmount,Sheet1!S71_SA34dCode,$AC:$AC,Sheet1!S71_DepCode,$AD:$AD)","v":0},{"$f":"SUMIFS(Sheet1!S71_OriginalBudAmnt,Sheet1!S71_SA34dCode,$AC:$AC,Sheet1!S71_DepCode,$AD:$AD)","v":0},{"$f":"SUMIFS(Sheet1!S71_AdjustmentBudAmnt,Sheet1!S71_SA34dCode,$AC:$AC,Sheet1!S71_DepCode,$AD:$AD)","v":0},{"$f":"SUMIFS(Sheet1!S71_AdjustmentBudAmnt,Sheet1!S71_SA34dCode,$AC:$AC,Sheet1!S71_DepCode,$AD:$AD)","v":0},{"$f":"SUMIFS(Sheet1!S71_ASBudgetAmount,Sheet1!S71_SA34dCode,$AC:$AC,Sheet1!S71_DepCode,$AD:$AD)","v":0},{"$f":"SUMIFS(Sheet1!S71_OY1BudgetAmount,Sheet1!S71_SA34dCode,$AC:$AC,Sheet1!S71_DepCode,$AD:$AD)","v":0},{"$f":"SUMIFS(Sheet1!S71_OY2BudgetAmount,Sheet1!S71_SA34dCode,$AC:$AC,Sheet1!S71_DepCode,$AD:$AD)","v":0},null,null,null,null,null,null,null,null,null,null,null,null,null,null,null,null,null,"0840","DP"]
["Museums",null,{"$f":"SUMIFS(Sheet1!S71_PPPYearAmount,Sheet1!S71_SA34dCode,$AC:$AC,Sheet1!S71_DepCode,$AD:$AD)","v":0},{"$f":"SUMIFS(Sheet1!S71_PPYearAmount,Sheet1!S71_SA34dCode,$AC:$AC,Sheet1!S71_DepCode,$AD:$AD)","v":0},{"$f":"SUMIFS(Sheet1!S71_PYearAmount,Sheet1!S71_SA34dCode,$AC:$AC,Sheet1!S71_DepCode,$AD:$AD)","v":0},{"$f":"SUMIFS(Sheet1!S71_OriginalBudAmnt,Sheet1!S71_SA34dCode,$AC:$AC,Sheet1!S71_DepCode,$AD:$AD)","v":0},{"$f":"SUMIFS(Sheet1!S71_AdjustmentBudAmnt,Sheet1!S71_SA34dCode,$AC:$AC,Sheet1!S71_DepCode,$AD:$AD)","v":0},{"$f":"SUMIFS(Sheet1!S71_AdjustmentBudAmnt,Sheet1!S71_SA34dCode,$AC:$AC,Sheet1!S71_DepCode,$AD:$AD)","v":0},{"$f":"SUMIFS(Sheet1!S71_ASBudgetAmount,Sheet1!S71_SA34dCode,$AC:$AC,Sheet1!S71_DepCode,$AD:$AD)","v":0},{"$f":"SUMIFS(Sheet1!S71_OY1BudgetAmount,Sheet1!S71_SA34dCode,$AC:$AC,Sheet1!S71_DepCode,$AD:$AD)","v":0},{"$f":"SUMIFS(Sheet1!S71_OY2BudgetAmount,Sheet1!S71_SA34dCode,$AC:$AC,Sheet1!S71_DepCode,$AD:$AD)","v":0},null,null,null,null,null,null,null,null,null,null,null,null,null,null,null,null,null,"0850","DP"]
["Galleries",null,{"$f":"SUMIFS(Sheet1!S71_PPPYearAmount,Sheet1!S71_SA34dCode,$AC:$AC,Sheet1!S71_DepCode,$AD:$AD)","v":0},{"$f":"SUMIFS(Sheet1!S71_PPYearAmount,Sheet1!S71_SA34dCode,$AC:$AC,Sheet1!S71_DepCode,$AD:$AD)","v":0},{"$f":"SUMIFS(Sheet1!S71_PYearAmount,Sheet1!S71_SA34dCode,$AC:$AC,Sheet1!S71_DepCode,$AD:$AD)","v":0},{"$f":"SUMIFS(Sheet1!S71_OriginalBudAmnt,Sheet1!S71_SA34dCode,$AC:$AC,Sheet1!S71_DepCode,$AD:$AD)","v":0},{"$f":"SUMIFS(Sheet1!S71_AdjustmentBudAmnt,Sheet1!S71_SA34dCode,$AC:$AC,Sheet1!S71_DepCode,$AD:$AD)","v":0},{"$f":"SUMIFS(Sheet1!S71_AdjustmentBudAmnt,Sheet1!S71_SA34dCode,$AC:$AC,Sheet1!S71_DepCode,$AD:$AD)","v":0},{"$f":"SUMIFS(Sheet1!S71_ASBudgetAmount,Sheet1!S71_SA34dCode,$AC:$AC,Sheet1!S71_DepCode,$AD:$AD)","v":0},{"$f":"SUMIFS(Sheet1!S71_OY1BudgetAmount,Sheet1!S71_SA34dCode,$AC:$AC,Sheet1!S71_DepCode,$AD:$AD)","v":0},{"$f":"SUMIFS(Sheet1!S71_OY2BudgetAmount,Sheet1!S71_SA34dCode,$AC:$AC,Sheet1!S71_DepCode,$AD:$AD)","v":0},null,null,null,null,null,null,null,null,null,null,null,null,null,null,null,null,null,"0860","DP"]
["Theatres",null,{"$f":"SUMIFS(Sheet1!S71_PPPYearAmount,Sheet1!S71_SA34dCode,$AC:$AC,Sheet1!S71_DepCode,$AD:$AD)","v":0},{"$f":"SUMIFS(Sheet1!S71_PPYearAmount,Sheet1!S71_SA34dCode,$AC:$AC,Sheet1!S71_DepCode,$AD:$AD)","v":0},{"$f":"SUMIFS(Sheet1!S71_PYearAmount,Sheet1!S71_SA34dCode,$AC:$AC,Sheet1!S71_DepCode,$AD:$AD)","v":0},{"$f":"SUMIFS(Sheet1!S71_OriginalBudAmnt,Sheet1!S71_SA34dCode,$AC:$AC,Sheet1!S71_DepCode,$AD:$AD)","v":0},{"$f":"SUMIFS(Sheet1!S71_AdjustmentBudAmnt,Sheet1!S71_SA34dCode,$AC:$AC,Sheet1!S71_DepCode,$AD:$AD)","v":0},{"$f":"SUMIFS(Sheet1!S71_AdjustmentBudAmnt,Sheet1!S71_SA34dCode,$AC:$AC,Sheet1!S71_DepCode,$AD:$AD)","v":0},{"$f":"SUMIFS(Sheet1!S71_ASBudgetAmount,Sheet1!S71_SA34dCode,$AC:$AC,Sheet1!S71_DepCode,$AD:$AD)","v":0},{"$f":"SUMIFS(Sheet1!S71_OY1BudgetAmount,Sheet1!S71_SA34dCode,$AC:$AC,Sheet1!S71_DepCode,$AD:$AD)","v":0},{"$f":"SUMIFS(Sheet1!S71_OY2BudgetAmount,Sheet1!S71_SA34dCode,$AC:$AC,Sheet1!S71_DepCode,$AD:$AD)","v":0},null,null,null,null,null,null,null,null,null,null,null,null,null,null,null,null,null,"0870","DP"]
["Libraries",null,{"$f":"SUMIFS(Sheet1!S71_PPPYearAmount,Sheet1!S71_SA34dCode,$AC:$AC,Sheet1!S71_DepCode,$AD:$AD)","v":0},{"$f":"SUMIFS(Sheet1!S71_PPYearAmount,Sheet1!S71_SA34dCode,$AC:$AC,Sheet1!S71_DepCode,$AD:$AD)","v":0},{"$f":"SUMIFS(Sheet1!S71_PYearAmount,Sheet1!S71_SA34dCode,$AC:$AC,Sheet1!S71_DepCode,$AD:$AD)","v":0},{"$f":"SUMIFS(Sheet1!S71_OriginalBudAmnt,Sheet1!S71_SA34dCode,$AC:$AC,Sheet1!S71_DepCode,$AD:$AD)","v":0},{"$f":"SUMIFS(Sheet1!S71_AdjustmentBudAmnt,Sheet1!S71_SA34dCode,$AC:$AC,Sheet1!S71_DepCode,$AD:$AD)","v":0},{"$f":"SUMIFS(Sheet1!S71_AdjustmentBudAmnt,Sheet1!S71_SA34dCode,$AC:$AC,Sheet1!S71_DepCode,$AD:$AD)","v":0},{"$f":"SUMIFS(Sheet1!S71_ASBudgetAmount,Sheet1!S71_SA34dCode,$AC:$AC,Sheet1!S71_DepCode,$AD:$AD)","v":0},{"$f":"SUMIFS(Sheet1!S71_OY1BudgetAmount,Sheet1!S71_SA34dCode,$AC:$AC,Sheet1!S71_DepCode,$AD:$AD)","v":0},{"$f":"SUMIFS(Sheet1!S71_OY2BudgetAmount,Sheet1!S71_SA34dCode,$AC:$AC,Sheet1!S71_DepCode,$AD:$AD)","v":0},null,null,null,null,null,null,null,null,null,null,null,null,null,null,null,null,null,"0880","DP"]
["Cemeteries/Crematoria",null,{"$f":"SUMIFS(Sheet1!S71_PPPYearAmount,Sheet1!S71_SA34dCode,$AC:$AC,Sheet1!S71_DepCode,$AD:$AD)","v":0},{"$f":"SUMIFS(Sheet1!S71_PPYearAmount,Sheet1!S71_SA34dCode,$AC:$AC,Sheet1!S71_DepCode,$AD:$AD)","v":0},{"$f":"SUMIFS(Sheet1!S71_PYearAmount,Sheet1!S71_SA34dCode,$AC:$AC,Sheet1!S71_DepCode,$AD:$AD)","v":0},{"$f":"SUMIFS(Sheet1!S71_OriginalBudAmnt,Sheet1!S71_SA34dCode,$AC:$AC,Sheet1!S71_DepCode,$AD:$AD)","v":0},{"$f":"SUMIFS(Sheet1!S71_AdjustmentBudAmnt,Sheet1!S71_SA34dCode,$AC:$AC,Sheet1!S71_DepCode,$AD:$AD)","v":0},{"$f":"SUMIFS(Sheet1!S71_AdjustmentBudAmnt,Sheet1!S71_SA34dCode,$AC:$AC,Sheet1!S71_DepCode,$AD:$AD)","v":0},{"$f":"SUMIFS(Sheet1!S71_ASBudgetAmount,Sheet1!S71_SA34dCode,$AC:$AC,Sheet1!S71_DepCode,$AD:$AD)","v":0},{"$f":"SUMIFS(Sheet1!S71_OY1BudgetAmount,Sheet1!S71_SA34dCode,$AC:$AC,Sheet1!S71_DepCode,$AD:$AD)","v":0},{"$f":"SUMIFS(Sheet1!S71_OY2BudgetAmount,Sheet1!S71_SA34dCode,$AC:$AC,Sheet1!S71_DepCode,$AD:$AD)","v":0},null,null,null,null,null,null,null,null,null,null,null,null,null,null,null,null,null,"0890","DP"]
["Police",null,{"$f":"SUMIFS(Sheet1!S71_PPPYearAmount,Sheet1!S71_SA34dCode,$AC:$AC,Sheet1!S71_DepCode,$AD:$AD)","v":0},{"$f":"SUMIFS(Sheet1!S71_PPYearAmount,Sheet1!S71_SA34dCode,$AC:$AC,Sheet1!S71_DepCode,$AD:$AD)","v":0},{"$f":"SUMIFS(Sheet1!S71_PYearAmount,Sheet1!S71_SA34dCode,$AC:$AC,Sheet1!S71_DepCode,$AD:$AD)","v":0},{"$f":"SUMIFS(Sheet1!S71_OriginalBudAmnt,Sheet1!S71_SA34dCode,$AC:$AC,Sheet1!S71_DepCode,$AD:$AD)","v":0},{"$f":"SUMIFS(Sheet1!S71_AdjustmentBudAmnt,Sheet1!S71_SA34dCode,$AC:$AC,Sheet1!S71_DepCode,$AD:$AD)","v":0},{"$f":"SUMIFS(Sheet1!S71_AdjustmentBudAmnt,Sheet1!S71_SA34dCode,$AC:$AC,Sheet1!S71_DepCode,$AD:$AD)","v":0},{"$f":"SUMIFS(Sheet1!S71_ASBudgetAmount,Sheet1!S71_SA34dCode,$AC:$AC,Sheet1!S71_DepCode,$AD:$AD)","v":0},{"$f":"SUMIFS(Sheet1!S71_OY1BudgetAmount,Sheet1!S71_SA34dCode,$AC:$AC,Sheet1!S71_DepCode,$AD:$AD)","v":0},{"$f":"SUMIFS(Sheet1!S71_OY2BudgetAmount,Sheet1!S71_SA34dCode,$AC:$AC,Sheet1!S71_DepCode,$AD:$AD)","v":0},null,null,null,null,null,null,null,null,null,null,null,null,null,null,null,null,null,"0900","DP"]
["Parks",null,{"$f":"SUMIFS(Sheet1!S71_PPPYearAmount,Sheet1!S71_SA34dCode,$AC:$AC,Sheet1!S71_DepCode,$AD:$AD)","v":0},{"$f":"SUMIFS(Sheet1!S71_PPYearAmount,Sheet1!S71_SA34dCode,$AC:$AC,Sheet1!S71_DepCode,$AD:$AD)","v":0},{"$f":"SUMIFS(Sheet1!S71_PYearAmount,Sheet1!S71_SA34dCode,$AC:$AC,Sheet1!S71_DepCode,$AD:$AD)","v":0},{"$f":"SUMIFS(Sheet1!S71_OriginalBudAmnt,Sheet1!S71_SA34dCode,$AC:$AC,Sheet1!S71_DepCode,$AD:$AD)","v":0},{"$f":"SUMIFS(Sheet1!S71_AdjustmentBudAmnt,Sheet1!S71_SA34dCode,$AC:$AC,Sheet1!S71_DepCode,$AD:$AD)","v":0},{"$f":"SUMIFS(Sheet1!S71_AdjustmentBudAmnt,Sheet1!S71_SA34dCode,$AC:$AC,Sheet1!S71_DepCode,$AD:$AD)","v":0},{"$f":"SUMIFS(Sheet1!S71_ASBudgetAmount,Sheet1!S71_SA34dCode,$AC:$AC,Sheet1!S71_DepCode,$AD:$AD)","v":0},{"$f":"SUMIFS(Sheet1!S71_OY1BudgetAmount,Sheet1!S71_SA34dCode,$AC:$AC,Sheet1!S71_DepCode,$AD:$AD)","v":0},{"$f":"SUMIFS(Sheet1!S71_OY2BudgetAmount,Sheet1!S71_SA34dCode,$AC:$AC,Sheet1!S71_DepCode,$AD:$AD)","v":0},null,null,null,null,null,null,null,null,null,null,null,null,null,null,null,null,null,"0910","DP"]
["Public Open Space",null,{"$f":"SUMIFS(Sheet1!S71_PPPYearAmount,Sheet1!S71_SA34dCode,$AC:$AC,Sheet1!S71_DepCode,$AD:$AD)","v":0},{"$f":"SUMIFS(Sheet1!S71_PPYearAmount,Sheet1!S71_SA34dCode,$AC:$AC,Sheet1!S71_DepCode,$AD:$AD)","v":0},{"$f":"SUMIFS(Sheet1!S71_PYearAmount,Sheet1!S71_SA34dCode,$AC:$AC,Sheet1!S71_DepCode,$AD:$AD)","v":0},{"$f":"SUMIFS(Sheet1!S71_OriginalBudAmnt,Sheet1!S71_SA34dCode,$AC:$AC,Sheet1!S71_DepCode,$AD:$AD)","v":0},{"$f":"SUMIFS(Sheet1!S71_AdjustmentBudAmnt,Sheet1!S71_SA34dCode,$AC:$AC,Sheet1!S71_DepCode,$AD:$AD)","v":0},{"$f":"SUMIFS(Sheet1!S71_AdjustmentBudAmnt,Sheet1!S71_SA34dCode,$AC:$AC,Sheet1!S71_DepCode,$AD:$AD)","v":0},{"$f":"SUMIFS(Sheet1!S71_ASBudgetAmount,Sheet1!S71_SA34dCode,$AC:$AC,Sheet1!S71_DepCode,$AD:$AD)","v":0},{"$f":"SUMIFS(Sheet1!S71_OY1BudgetAmount,Sheet1!S71_SA34dCode,$AC:$AC,Sheet1!S71_DepCode,$AD:$AD)","v":0},{"$f":"SUMIFS(Sheet1!S71_OY2BudgetAmount,Sheet1!S71_SA34dCode,$AC:$AC,Sheet1!S71_DepCode,$AD:$AD)","v":0},null,null,null,null,null,null,null,null,null,null,null,null,null,null,null,null,null,"0920","DP"]
["Nature Reserves",null,{"$f":"SUMIFS(Sheet1!S71_PPPYearAmount,Sheet1!S71_SA34dCode,$AC:$AC,Sheet1!S71_DepCode,$AD:$AD)","v":0},{"$f":"SUMIFS(Sheet1!S71_PPYearAmount,Sheet1!S71_SA34dCode,$AC:$AC,Sheet1!S71_DepCode,$AD:$AD)","v":0},{"$f":"SUMIFS(Sheet1!S71_PYearAmount,Sheet1!S71_SA34dCode,$AC:$AC,Sheet1!S71_DepCode,$AD:$AD)","v":0},{"$f":"SUMIFS(Sheet1!S71_OriginalBudAmnt,Sheet1!S71_SA34dCode,$AC:$AC,Sheet1!S71_DepCode,$AD:$AD)","v":0},{"$f":"SUMIFS(Sheet1!S71_AdjustmentBudAmnt,Sheet1!S71_SA34dCode,$AC:$AC,Sheet1!S71_DepCode,$AD:$AD)","v":0},{"$f":"SUMIFS(Sheet1!S71_AdjustmentBudAmnt,Sheet1!S71_SA34dCode,$AC:$AC,Sheet1!S71_DepCode,$AD:$AD)","v":0},{"$f":"SUMIFS(Sheet1!S71_ASBudgetAmount,Sheet1!S71_SA34dCode,$AC:$AC,Sheet1!S71_DepCode,$AD:$AD)","v":0},{"$f":"SUMIFS(Sheet1!S71_OY1BudgetAmount,Sheet1!S71_SA34dCode,$AC:$AC,Sheet1!S71_DepCode,$AD:$AD)","v":0},{"$f":"SUMIFS(Sheet1!S71_OY2BudgetAmount,Sheet1!S71_SA34dCode,$AC:$AC,Sheet1!S71_DepCode,$AD:$AD)","v":0},null,null,null,null,null,null,null,null,null,null,null,null,null,null,null,null,null,"0930","DP"]
["Public Ablution Facilities",null,{"$f":"SUMIFS(Sheet1!S71_PPPYearAmount,Sheet1!S71_SA34dCode,$AC:$AC,Sheet1!S71_DepCode,$AD:$AD)","v":0},{"$f":"SUMIFS(Sheet1!S71_PPYearAmount,Sheet1!S71_SA34dCode,$AC:$AC,Sheet1!S71_DepCode,$AD:$AD)","v":0},{"$f":"SUMIFS(Sheet1!S71_PYearAmount,Sheet1!S71_SA34dCode,$AC:$AC,Sheet1!S71_DepCode,$AD:$AD)","v":0},{"$f":"SUMIFS(Sheet1!S71_OriginalBudAmnt,Sheet1!S71_SA34dCode,$AC:$AC,Sheet1!S71_DepCode,$AD:$AD)","v":0},{"$f":"SUMIFS(Sheet1!S71_AdjustmentBudAmnt,Sheet1!S71_SA34dCode,$AC:$AC,Sheet1!S71_DepCode,$AD:$AD)","v":0},{"$f":"SUMIFS(Sheet1!S71_AdjustmentBudAmnt,Sheet1!S71_SA34dCode,$AC:$AC,Sheet1!S71_DepCode,$AD:$AD)","v":0},{"$f":"SUMIFS(Sheet1!S71_ASBudgetAmount,Sheet1!S71_SA34dCode,$AC:$AC,Sheet1!S71_DepCode,$AD:$AD)","v":0},{"$f":"SUMIFS(Sheet1!S71_OY1BudgetAmount,Sheet1!S71_SA34dCode,$AC:$AC,Sheet1!S71_DepCode,$AD:$AD)","v":0},{"$f":"SUMIFS(Sheet1!S71_OY2BudgetAmount,Sheet1!S71_SA34dCode,$AC:$AC,Sheet1!S71_DepCode,$AD:$AD)","v":0},null,null,null,null,null,null,null,null,null,null,null,null,null,null,null,null,null,"0940","DP"]
["Markets",null,{"$f":"SUMIFS(Sheet1!S71_PPPYearAmount,Sheet1!S71_SA34dCode,$AC:$AC,Sheet1!S71_DepCode,$AD:$AD)","v":0},{"$f":"SUMIFS(Sheet1!S71_PPYearAmount,Sheet1!S71_SA34dCode,$AC:$AC,Sheet1!S71_DepCode,$AD:$AD)","v":0},{"$f":"SUMIFS(Sheet1!S71_PYearAmount,Sheet1!S71_SA34dCode,$AC:$AC,Sheet1!S71_DepCode,$AD:$AD)","v":0},{"$f":"SUMIFS(Sheet1!S71_OriginalBudAmnt,Sheet1!S71_SA34dCode,$AC:$AC,Sheet1!S71_DepCode,$AD:$AD)","v":0},{"$f":"SUMIFS(Sheet1!S71_AdjustmentBudAmnt,Sheet1!S71_SA34dCode,$AC:$AC,Sheet1!S71_DepCode,$AD:$AD)","v":0},{"$f":"SUMIFS(Sheet1!S71_AdjustmentBudAmnt,Sheet1!S71_SA34dCode,$AC:$AC,Sheet1!S71_DepCode,$AD:$AD)","v":0},{"$f":"SUMIFS(Sheet1!S71_ASBudgetAmount,Sheet1!S71_SA34dCode,$AC:$AC,Sheet1!S71_DepCode,$AD:$AD)","v":0},{"$f":"SUMIFS(Sheet1!S71_OY1BudgetAmount,Sheet1!S71_SA34dCode,$AC:$AC,Sheet1!S71_DepCode,$AD:$AD)","v":0},{"$f":"SUMIFS(Sheet1!S71_OY2BudgetAmount,Sheet1!S71_SA34dCode,$AC:$AC,Sheet1!S71_DepCode,$AD:$AD)","v":0},null,null,null,null,null,null,null,null,null,null,null,null,null,null,null,null,null,"0950","DP"]
["Stalls",null,{"$f":"SUMIFS(Sheet1!S71_PPPYearAmount,Sheet1!S71_SA34dCode,$AC:$AC,Sheet1!S71_DepCode,$AD:$AD)","v":0},{"$f":"SUMIFS(Sheet1!S71_PPYearAmount,Sheet1!S71_SA34dCode,$AC:$AC,Sheet1!S71_DepCode,$AD:$AD)","v":0},{"$f":"SUMIFS(Sheet1!S71_PYearAmount,Sheet1!S71_SA34dCode,$AC:$AC,Sheet1!S71_DepCode,$AD:$AD)","v":0},{"$f":"SUMIFS(Sheet1!S71_OriginalBudAmnt,Sheet1!S71_SA34dCode,$AC:$AC,Sheet1!S71_DepCode,$AD:$AD)","v":0},{"$f":"SUMIFS(Sheet1!S71_AdjustmentBudAmnt,Sheet1!S71_SA34dCode,$AC:$AC,Sheet1!S71_DepCode,$AD:$AD)","v":0},{"$f":"SUMIFS(Sheet1!S71_AdjustmentBudAmnt,Sheet1!S71_SA34dCode,$AC:$AC,Sheet1!S71_DepCode,$AD:$AD)","v":0},{"$f":"SUMIFS(Sheet1!S71_ASBudgetAmount,Sheet1!S71_SA34dCode,$AC:$AC,Sheet1!S71_DepCode,$AD:$AD)","v":0},{"$f":"SUMIFS(Sheet1!S71_OY1BudgetAmount,Sheet1!S71_SA34dCode,$AC:$AC,Sheet1!S71_DepCode,$AD:$AD)","v":0},{"$f":"SUMIFS(Sheet1!S71_OY2BudgetAmount,Sheet1!S71_SA34dCode,$AC:$AC,Sheet1!S71_DepCode,$AD:$AD)","v":0},null,null,null,null,null,null,null,null,null,null,null,null,null,null,null,null,null,"0960","DP"]
["Abattoirs",null,{"$f":"SUMIFS(Sheet1!S71_PPPYearAmount,Sheet1!S71_SA34dCode,$AC:$AC,Sheet1!S71_DepCode,$AD:$AD)","v":0},{"$f":"SUMIFS(Sheet1!S71_PPYearAmount,Sheet1!S71_SA34dCode,$AC:$AC,Sheet1!S71_DepCode,$AD:$AD)","v":0},{"$f":"SUMIFS(Sheet1!S71_PYearAmount,Sheet1!S71_SA34dCode,$AC:$AC,Sheet1!S71_DepCode,$AD:$AD)","v":0},{"$f":"SUMIFS(Sheet1!S71_OriginalBudAmnt,Sheet1!S71_SA34dCode,$AC:$AC,Sheet1!S71_DepCode,$AD:$AD)","v":0},{"$f":"SUMIFS(Sheet1!S71_AdjustmentBudAmnt,Sheet1!S71_SA34dCode,$AC:$AC,Sheet1!S71_DepCode,$AD:$AD)","v":0},{"$f":"SUMIFS(Sheet1!S71_AdjustmentBudAmnt,Sheet1!S71_SA34dCode,$AC:$AC,Sheet1!S71_DepCode,$AD:$AD)","v":0},{"$f":"SUMIFS(Sheet1!S71_ASBudgetAmount,Sheet1!S71_SA34dCode,$AC:$AC,Sheet1!S71_DepCode,$AD:$AD)","v":0},{"$f":"SUMIFS(Sheet1!S71_OY1BudgetAmount,Sheet1!S71_SA34dCode,$AC:$AC,Sheet1!S71_DepCode,$AD:$AD)","v":0},{"$f":"SUMIFS(Sheet1!S71_OY2BudgetAmount,Sheet1!S71_SA34dCode,$AC:$AC,Sheet1!S71_DepCode,$AD:$AD)","v":0},null,null,null,null,null,null,null,null,null,null,null,null,null,null,null,null,null,"0970","DP"]
["Airports",null,{"$f":"SUMIFS(Sheet1!S71_PPPYearAmount,Sheet1!S71_SA34dCode,$AC:$AC,Sheet1!S71_DepCode,$AD:$AD)","v":0},{"$f":"SUMIFS(Sheet1!S71_PPYearAmount,Sheet1!S71_SA34dCode,$AC:$AC,Sheet1!S71_DepCode,$AD:$AD)","v":0},{"$f":"SUMIFS(Sheet1!S71_PYearAmount,Sheet1!S71_SA34dCode,$AC:$AC,Sheet1!S71_DepCode,$AD:$AD)","v":0},{"$f":"SUMIFS(Sheet1!S71_OriginalBudAmnt,Sheet1!S71_SA34dCode,$AC:$AC,Sheet1!S71_DepCode,$AD:$AD)","v":0},{"$f":"SUMIFS(Sheet1!S71_AdjustmentBudAmnt,Sheet1!S71_SA34dCode,$AC:$AC,Sheet1!S71_DepCode,$AD:$AD)","v":0},{"$f":"SUMIFS(Sheet1!S71_AdjustmentBudAmnt,Sheet1!S71_SA34dCode,$AC:$AC,Sheet1!S71_DepCode,$AD:$AD)","v":0},{"$f":"SUMIFS(Sheet1!S71_ASBudgetAmount,Sheet1!S71_SA34dCode,$AC:$AC,Sheet1!S71_DepCode,$AD:$AD)","v":0},{"$f":"SUMIFS(Sheet1!S71_OY1BudgetAmount,Sheet1!S71_SA34dCode,$AC:$AC,Sheet1!S71_DepCode,$AD:$AD)","v":0},{"$f":"SUMIFS(Sheet1!S71_OY2BudgetAmount,Sheet1!S71_SA34dCode,$AC:$AC,Sheet1!S71_DepCode,$AD:$AD)","v":0},null,null,null,null,null,null,null,null,null,null,null,null,null,null,null,null,null,"0980","DP"]
["Taxi Ranks/Bus Terminals",null,{"$f":"SUMIFS(Sheet1!S71_PPPYearAmount,Sheet1!S71_SA34dCode,$AC:$AC,Sheet1!S71_DepCode,$AD:$AD)","v":0},{"$f":"SUMIFS(Sheet1!S71_PPYearAmount,Sheet1!S71_SA34dCode,$AC:$AC,Sheet1!S71_DepCode,$AD:$AD)","v":0},{"$f":"SUMIFS(Sheet1!S71_PYearAmount,Sheet1!S71_SA34dCode,$AC:$AC,Sheet1!S71_DepCode,$AD:$AD)","v":0},{"$f":"SUMIFS(Sheet1!S71_OriginalBudAmnt,Sheet1!S71_SA34dCode,$AC:$AC,Sheet1!S71_DepCode,$AD:$AD)","v":0},{"$f":"SUMIFS(Sheet1!S71_AdjustmentBudAmnt,Sheet1!S71_SA34dCode,$AC:$AC,Sheet1!S71_DepCode,$AD:$AD)","v":0},{"$f":"SUMIFS(Sheet1!S71_AdjustmentBudAmnt,Sheet1!S71_SA34dCode,$AC:$AC,Sheet1!S71_DepCode,$AD:$AD)","v":0},{"$f":"SUMIFS(Sheet1!S71_ASBudgetAmount,Sheet1!S71_SA34dCode,$AC:$AC,Sheet1!S71_DepCode,$AD:$AD)","v":0},{"$f":"SUMIFS(Sheet1!S71_OY1BudgetAmount,Sheet1!S71_SA34dCode,$AC:$AC,Sheet1!S71_DepCode,$AD:$AD)","v":0},{"$f":"SUMIFS(Sheet1!S71_OY2BudgetAmount,Sheet1!S71_SA34dCode,$AC:$AC,Sheet1!S71_DepCode,$AD:$AD)","v":0},null,null,null,null,null,null,null,null,null,null,null,null,null,null,null,null,null,"0990","DP"]
["Capital Spares",null,{"$f":"SUMIFS(Sheet1!S71_PPPYearAmount,Sheet1!S71_SA34dCode,$AC:$AC,Sheet1!S71_DepCode,$AD:$AD)","v":0},{"$f":"SUMIFS(Sheet1!S71_PPYearAmount,Sheet1!S71_SA34dCode,$AC:$AC,Sheet1!S71_DepCode,$AD:$AD)","v":0},{"$f":"SUMIFS(Sheet1!S71_PYearAmount,Sheet1!S71_SA34dCode,$AC:$AC,Sheet1!S71_DepCode,$AD:$AD)","v":0},{"$f":"SUMIFS(Sheet1!S71_OriginalBudAmnt,Sheet1!S71_SA34dCode,$AC:$AC,Sheet1!S71_DepCode,$AD:$AD)","v":0},{"$f":"SUMIFS(Sheet1!S71_AdjustmentBudAmnt,Sheet1!S71_SA34dCode,$AC:$AC,Sheet1!S71_DepCode,$AD:$AD)","v":0},{"$f":"SUMIFS(Sheet1!S71_AdjustmentBudAmnt,Sheet1!S71_SA34dCode,$AC:$AC,Sheet1!S71_DepCode,$AD:$AD)","v":0},{"$f":"SUMIFS(Sheet1!S71_ASBudgetAmount,Sheet1!S71_SA34dCode,$AC:$AC,Sheet1!S71_DepCode,$AD:$AD)","v":0},{"$f":"SUMIFS(Sheet1!S71_OY1BudgetAmount,Sheet1!S71_SA34dCode,$AC:$AC,Sheet1!S71_DepCode,$AD:$AD)","v":0},{"$f":"SUMIFS(Sheet1!S71_OY2BudgetAmount,Sheet1!S71_SA34dCode,$AC:$AC,Sheet1!S71_DepCode,$AD:$AD)","v":0},null,null,null,null,null,null,null,null,null,null,null,null,null,null,null,null,null,"1000","DP"]
["Sport and Recreation Facilities",null,{"$f":"SUM(C99:C101)","v":0},{"$f":"SUM(D99:D101)","v":0},0,0,0,0,0,0,0,null,null,null,null,null,null,null,null,null,null,null,null,null,null,null,null,null,null,"DP"]
["Indoor Facilities",null,{"$f":"SUMIFS(Sheet1!S71_PPPYearAmount,Sheet1!S71_SA34dCode,$AC:$AC,Sheet1!S71_DepCode,$AD:$AD)","v":0},{"$f":"SUMIFS(Sheet1!S71_PPYearAmount,Sheet1!S71_SA34dCode,$AC:$AC,Sheet1!S71_DepCode,$AD:$AD)","v":0},{"$f":"SUMIFS(Sheet1!S71_PYearAmount,Sheet1!S71_SA34dCode,$AC:$AC,Sheet1!S71_DepCode,$AD:$AD)","v":0},{"$f":"SUMIFS(Sheet1!S71_OriginalBudAmnt,Sheet1!S71_SA34dCode,$AC:$AC,Sheet1!S71_DepCode,$AD:$AD)","v":0},{"$f":"SUMIFS(Sheet1!S71_AdjustmentBudAmnt,Sheet1!S71_SA34dCode,$AC:$AC,Sheet1!S71_DepCode,$AD:$AD)","v":0},{"$f":"SUMIFS(Sheet1!S71_AdjustmentBudAmnt,Sheet1!S71_SA34dCode,$AC:$AC,Sheet1!S71_DepCode,$AD:$AD)","v":0},{"$f":"SUMIFS(Sheet1!S71_ASBudgetAmount,Sheet1!S71_SA34dCode,$AC:$AC,Sheet1!S71_DepCode,$AD:$AD)","v":0},{"$f":"SUMIFS(Sheet1!S71_OY1BudgetAmount,Sheet1!S71_SA34dCode,$AC:$AC,Sheet1!S71_DepCode,$AD:$AD)","v":0},{"$f":"SUMIFS(Sheet1!S71_OY2BudgetAmount,Sheet1!S71_SA34dCode,$AC:$AC,Sheet1!S71_DepCode,$AD:$AD)","v":0},null,null,null,null,null,null,null,null,null,null,null,null,null,null,null,null,null,"1020","DP"]
["Outdoor Facilities",null,{"$f":"SUMIFS(Sheet1!S71_PPPYearAmount,Sheet1!S71_SA34dCode,$AC:$AC,Sheet1!S71_DepCode,$AD:$AD)","v":0},{"$f":"SUMIFS(Sheet1!S71_PPYearAmount,Sheet1!S71_SA34dCode,$AC:$AC,Sheet1!S71_DepCode,$AD:$AD)","v":0},{"$f":"SUMIFS(Sheet1!S71_PYearAmount,Sheet1!S71_SA34dCode,$AC:$AC,Sheet1!S71_DepCode,$AD:$AD)","v":0},{"$f":"SUMIFS(Sheet1!S71_OriginalBudAmnt,Sheet1!S71_SA34dCode,$AC:$AC,Sheet1!S71_DepCode,$AD:$AD)","v":0},{"$f":"SUMIFS(Sheet1!S71_AdjustmentBudAmnt,Sheet1!S71_SA34dCode,$AC:$AC,Sheet1!S71_DepCode,$AD:$AD)","v":0},{"$f":"SUMIFS(Sheet1!S71_AdjustmentBudAmnt,Sheet1!S71_SA34dCode,$AC:$AC,Sheet1!S71_DepCode,$AD:$AD)","v":0},{"$f":"SUMIFS(Sheet1!S71_ASBudgetAmount,Sheet1!S71_SA34dCode,$AC:$AC,Sheet1!S71_DepCode,$AD:$AD)","v":0},{"$f":"SUMIFS(Sheet1!S71_OY1BudgetAmount,Sheet1!S71_SA34dCode,$AC:$AC,Sheet1!S71_DepCode,$AD:$AD)","v":0},{"$f":"SUMIFS(Sheet1!S71_OY2BudgetAmount,Sheet1!S71_SA34dCode,$AC:$AC,Sheet1!S71_DepCode,$AD:$AD)","v":0},null,null,null,null,null,null,null,null,null,null,null,null,null,null,null,null,null,"1030","DP"]
["Capital Spares",null,{"$f":"SUMIFS(Sheet1!S71_PPPYearAmount,Sheet1!S71_SA34dCode,$AC:$AC,Sheet1!S71_DepCode,$AD:$AD)","v":0},{"$f":"SUMIFS(Sheet1!S71_PPYearAmount,Sheet1!S71_SA34dCode,$AC:$AC,Sheet1!S71_DepCode,$AD:$AD)","v":0},{"$f":"SUMIFS(Sheet1!S71_PYearAmount,Sheet1!S71_SA34dCode,$AC:$AC,Sheet1!S71_DepCode,$AD:$AD)","v":0},{"$f":"SUMIFS(Sheet1!S71_OriginalBudAmnt,Sheet1!S71_SA34dCode,$AC:$AC,Sheet1!S71_DepCode,$AD:$AD)","v":0},{"$f":"SUMIFS(Sheet1!S71_AdjustmentBudAmnt,Sheet1!S71_SA34dCode,$AC:$AC,Sheet1!S71_DepCode,$AD:$AD)","v":0},{"$f":"SUMIFS(Sheet1!S71_AdjustmentBudAmnt,Sheet1!S71_SA34dCode,$AC:$AC,Sheet1!S71_DepCode,$AD:$AD)","v":0},{"$f":"SUMIFS(Sheet1!S71_ASBudgetAmount,Sheet1!S71_SA34dCode,$AC:$AC,Sheet1!S71_DepCode,$AD:$AD)","v":0},{"$f":"SUMIFS(Sheet1!S71_OY1BudgetAmount,Sheet1!S71_SA34dCode,$AC:$AC,Sheet1!S71_DepCode,$AD:$AD)","v":0},{"$f":"SUMIFS(Sheet1!S71_OY2BudgetAmount,Sheet1!S71_SA34dCode,$AC:$AC,Sheet1!S71_DepCode,$AD:$AD)","v":0},null,null,null,null,null,null,null,null,null,null,null,null,null,null,null,null,null,"1040","DP"]
[null,null,null,null,null,null,null,null,null,null,null,null,null,null,null,null,null,null,null,null,null,null,null,null,null,null,null,null,null,"DP"]
["Heritage assets",null,{"$f":"SUM(C104:C108)","v":0},{"$f":"SUM(D104:D108)","v":0},0,0,0,0,0,0,0,null,null,null,null,null,null,null,null,null,null,null,null,null,null,null,null,null,null,"DP"]
["Monuments",null,{"$f":"SUMIFS(Sheet1!S71_PPPYearAmount,Sheet1!S71_SA34dCode,$AC:$AC,Sheet1!S71_DepCode,$AD:$AD)","v":0},{"$f":"SUMIFS(Sheet1!S71_PPYearAmount,Sheet1!S71_SA34dCode,$AC:$AC,Sheet1!S71_DepCode,$AD:$AD)","v":0},{"$f":"SUMIFS(Sheet1!S71_PYearAmount,Sheet1!S71_SA34dCode,$AC:$AC,Sheet1!S71_DepCode,$AD:$AD)","v":0},{"$f":"SUMIFS(Sheet1!S71_OriginalBudAmnt,Sheet1!S71_SA34dCode,$AC:$AC,Sheet1!S71_DepCode,$AD:$AD)","v":0},{"$f":"SUMIFS(Sheet1!S71_AdjustmentBudAmnt,Sheet1!S71_SA34dCode,$AC:$AC,Sheet1!S71_DepCode,$AD:$AD)","v":0},{"$f":"SUMIFS(Sheet1!S71_AdjustmentBudAmnt,Sheet1!S71_SA34dCode,$AC:$AC,Sheet1!S71_DepCode,$AD:$AD)","v":0},{"$f":"SUMIFS(Sheet1!S71_ASBudgetAmount,Sheet1!S71_SA34dCode,$AC:$AC,Sheet1!S71_DepCode,$AD:$AD)","v":0},{"$f":"SUMIFS(Sheet1!S71_OY1BudgetAmount,Sheet1!S71_SA34dCode,$AC:$AC,Sheet1!S71_DepCode,$AD:$AD)","v":0},{"$f":"SUMIFS(Sheet1!S71_OY2BudgetAmount,Sheet1!S71_SA34dCode,$AC:$AC,Sheet1!S71_DepCode,$AD:$AD)","v":0},null,null,null,null,null,null,null,null,null,null,null,null,null,null,null,null,null,"1060","DP"]
["Historic Buildings",null,{"$f":"SUMIFS(Sheet1!S71_PPPYearAmount,Sheet1!S71_SA34dCode,$AC:$AC,Sheet1!S71_DepCode,$AD:$AD)","v":0},{"$f":"SUMIFS(Sheet1!S71_PPYearAmount,Sheet1!S71_SA34dCode,$AC:$AC,Sheet1!S71_DepCode,$AD:$AD)","v":0},{"$f":"SUMIFS(Sheet1!S71_PYearAmount,Sheet1!S71_SA34dCode,$AC:$AC,Sheet1!S71_DepCode,$AD:$AD)","v":0},{"$f":"SUMIFS(Sheet1!S71_OriginalBudAmnt,Sheet1!S71_SA34dCode,$AC:$AC,Sheet1!S71_DepCode,$AD:$AD)","v":0},{"$f":"SUMIFS(Sheet1!S71_AdjustmentBudAmnt,Sheet1!S71_SA34dCode,$AC:$AC,Sheet1!S71_DepCode,$AD:$AD)","v":0},{"$f":"SUMIFS(Sheet1!S71_AdjustmentBudAmnt,Sheet1!S71_SA34dCode,$AC:$AC,Sheet1!S71_DepCode,$AD:$AD)","v":0},{"$f":"SUMIFS(Sheet1!S71_ASBudgetAmount,Sheet1!S71_SA34dCode,$AC:$AC,Sheet1!S71_DepCode,$AD:$AD)","v":0},{"$f":"SUMIFS(Sheet1!S71_OY1BudgetAmount,Sheet1!S71_SA34dCode,$AC:$AC,Sheet1!S71_DepCode,$AD:$AD)","v":0},{"$f":"SUMIFS(Sheet1!S71_OY2BudgetAmount,Sheet1!S71_SA34dCode,$AC:$AC,Sheet1!S71_DepCode,$AD:$AD)","v":0},null,null,null,null,null,null,null,null,null,null,null,null,null,null,null,null,null,"1070","DP"]
["Works of Art",null,{"$f":"SUMIFS(Sheet1!S71_PPPYearAmount,Sheet1!S71_SA34dCode,$AC:$AC,Sheet1!S71_DepCode,$AD:$AD)","v":0},{"$f":"SUMIFS(Sheet1!S71_PPYearAmount,Sheet1!S71_SA34dCode,$AC:$AC,Sheet1!S71_DepCode,$AD:$AD)","v":0},{"$f":"SUMIFS(Sheet1!S71_PYearAmount,Sheet1!S71_SA34dCode,$AC:$AC,Sheet1!S71_DepCode,$AD:$AD)","v":0},{"$f":"SUMIFS(Sheet1!S71_OriginalBudAmnt,Sheet1!S71_SA34dCode,$AC:$AC,Sheet1!S71_DepCode,$AD:$AD)","v":0},{"$f":"SUMIFS(Sheet1!S71_AdjustmentBudAmnt,Sheet1!S71_SA34dCode,$AC:$AC,Sheet1!S71_DepCode,$AD:$AD)","v":0},{"$f":"SUMIFS(Sheet1!S71_AdjustmentBudAmnt,Sheet1!S71_SA34dCode,$AC:$AC,Sheet1!S71_DepCode,$AD:$AD)","v":0},{"$f":"SUMIFS(Sheet1!S71_ASBudgetAmount,Sheet1!S71_SA34dCode,$AC:$AC,Sheet1!S71_DepCode,$AD:$AD)","v":0},{"$f":"SUMIFS(Sheet1!S71_OY1BudgetAmount,Sheet1!S71_SA34dCode,$AC:$AC,Sheet1!S71_DepCode,$AD:$AD)","v":0},{"$f":"SUMIFS(Sheet1!S71_OY2BudgetAmount,Sheet1!S71_SA34dCode,$AC:$AC,Sheet1!S71_DepCode,$AD:$AD)","v":0},null,null,null,null,null,null,null,null,null,null,null,null,null,null,null,null,null,"1080","DP"]
["Conservation Areas",null,{"$f":"SUMIFS(Sheet1!S71_PPPYearAmount,Sheet1!S71_SA34dCode,$AC:$AC,Sheet1!S71_DepCode,$AD:$AD)","v":0},{"$f":"SUMIFS(Sheet1!S71_PPYearAmount,Sheet1!S71_SA34dCode,$AC:$AC,Sheet1!S71_DepCode,$AD:$AD)","v":0},{"$f":"SUMIFS(Sheet1!S71_PYearAmount,Sheet1!S71_SA34dCode,$AC:$AC,Sheet1!S71_DepCode,$AD:$AD)","v":0},{"$f":"SUMIFS(Sheet1!S71_OriginalBudAmnt,Sheet1!S71_SA34dCode,$AC:$AC,Sheet1!S71_DepCode,$AD:$AD)","v":0},{"$f":"SUMIFS(Sheet1!S71_AdjustmentBudAmnt,Sheet1!S71_SA34dCode,$AC:$AC,Sheet1!S71_DepCode,$AD:$AD)","v":0},{"$f":"SUMIFS(Sheet1!S71_AdjustmentBudAmnt,Sheet1!S71_SA34dCode,$AC:$AC,Sheet1!S71_DepCode,$AD:$AD)","v":0},{"$f":"SUMIFS(Sheet1!S71_ASBudgetAmount,Sheet1!S71_SA34dCode,$AC:$AC,Sheet1!S71_DepCode,$AD:$AD)","v":0},{"$f":"SUMIFS(Sheet1!S71_OY1BudgetAmount,Sheet1!S71_SA34dCode,$AC:$AC,Sheet1!S71_DepCode,$AD:$AD)","v":0},{"$f":"SUMIFS(Sheet1!S71_OY2BudgetAmount,Sheet1!S71_SA34dCode,$AC:$AC,Sheet1!S71_DepCode,$AD:$AD)","v":0},null,null,null,null,null,null,null,null,null,null,null,null,null,null,null,null,null,"1090","DP"]
["Other Heritage",null,{"$f":"SUMIFS(Sheet1!S71_PPPYearAmount,Sheet1!S71_SA34dCode,$AC:$AC,Sheet1!S71_DepCode,$AD:$AD)","v":0},{"$f":"SUMIFS(Sheet1!S71_PPYearAmount,Sheet1!S71_SA34dCode,$AC:$AC,Sheet1!S71_DepCode,$AD:$AD)","v":0},{"$f":"SUMIFS(Sheet1!S71_PYearAmount,Sheet1!S71_SA34dCode,$AC:$AC,Sheet1!S71_DepCode,$AD:$AD)","v":0},{"$f":"SUMIFS(Sheet1!S71_OriginalBudAmnt,Sheet1!S71_SA34dCode,$AC:$AC,Sheet1!S71_DepCode,$AD:$AD)","v":0},{"$f":"SUMIFS(Sheet1!S71_AdjustmentBudAmnt,Sheet1!S71_SA34dCode,$AC:$AC,Sheet1!S71_DepCode,$AD:$AD)","v":0},{"$f":"SUMIFS(Sheet1!S71_AdjustmentBudAmnt,Sheet1!S71_SA34dCode,$AC:$AC,Sheet1!S71_DepCode,$AD:$AD)","v":0},{"$f":"SUMIFS(Sheet1!S71_ASBudgetAmount,Sheet1!S71_SA34dCode,$AC:$AC,Sheet1!S71_DepCode,$AD:$AD)","v":0},{"$f":"SUMIFS(Sheet1!S71_OY1BudgetAmount,Sheet1!S71_SA34dCode,$AC:$AC,Sheet1!S71_DepCode,$AD:$AD)","v":0},{"$f":"SUMIFS(Sheet1!S71_OY2BudgetAmount,Sheet1!S71_SA34dCode,$AC:$AC,Sheet1!S71_DepCode,$AD:$AD)","v":0},null,null,null,null,null,null,null,null,null,null,null,null,null,null,null,null,null,"1100","DP"]
[null,null,null,null,null,null,null,null,null,null,null,null,null,null,null,null,null,null,null,null,null,null,null,null,null,null,null,null,null,"DP"]
["Investment properties",null,{"$f":"+C111+C114","v":67397},{"$f":"+D111+D114","v":90795},90750,0,0,0,0,0,0,null,null,null,null,null,null,null,null,null,null,null,null,null,null,null,null,null,null,"DP"]
["Revenue Generating",null,{"$f":"SUM(C112:C113)","v":67397},90795,90750,0,0,0,0,0,0,null,null,null,null,null,null,null,null,null,null,null,null,null,null,null,null,null,null,"DP"]
["Improved Property",null,{"$f":"SUMIFS(Sheet1!S71_PPPYearAmount,Sheet1!S71_SA34dCode,$AC:$AC,Sheet1!S71_DepCode,$AD:$AD)","v":0},{"$f":"SUMIFS(Sheet1!S71_PPYearAmount,Sheet1!S71_SA34dCode,$AC:$AC,Sheet1!S71_DepCode,$AD:$AD)","v":0},{"$f":"SUMIFS(Sheet1!S71_PYearAmount,Sheet1!S71_SA34dCode,$AC:$AC,Sheet1!S71_DepCode,$AD:$AD)","v":0},{"$f":"SUMIFS(Sheet1!S71_OriginalBudAmnt,Sheet1!S71_SA34dCode,$AC:$AC,Sheet1!S71_DepCode,$AD:$AD)","v":0},{"$f":"SUMIFS(Sheet1!S71_AdjustmentBudAmnt,Sheet1!S71_SA34dCode,$AC:$AC,Sheet1!S71_DepCode,$AD:$AD)","v":0},{"$f":"SUMIFS(Sheet1!S71_AdjustmentBudAmnt,Sheet1!S71_SA34dCode,$AC:$AC,Sheet1!S71_DepCode,$AD:$AD)","v":0},{"$f":"SUMIFS(Sheet1!S71_ASBudgetAmount,Sheet1!S71_SA34dCode,$AC:$AC,Sheet1!S71_DepCode,$AD:$AD)","v":0},{"$f":"SUMIFS(Sheet1!S71_OY1BudgetAmount,Sheet1!S71_SA34dCode,$AC:$AC,Sheet1!S71_DepCode,$AD:$AD)","v":0},{"$f":"SUMIFS(Sheet1!S71_OY2BudgetAmount,Sheet1!S71_SA34dCode,$AC:$AC,Sheet1!S71_DepCode,$AD:$AD)","v":0},null,null,null,null,null,null,null,null,null,null,null,null,null,null,null,null,null,"1130","DP"]
["Unimproved Property",null,{"$f":"SUMIFS(Sheet1!S71_PPPYearAmount,Sheet1!S71_SA34dCode,$AC:$AC,Sheet1!S71_DepCode,$AD:$AD)","v":67397},{"$f":"SUMIFS(Sheet1!S71_PPYearAmount,Sheet1!S71_SA34dCode,$AC:$AC,Sheet1!S71_DepCode,$AD:$AD)","v":90795},{"$f":"SUMIFS(Sheet1!S71_PYearAmount,Sheet1!S71_SA34dCode,$AC:$AC,Sheet1!S71_DepCode,$AD:$AD)","v":90750},{"$f":"SUMIFS(Sheet1!S71_OriginalBudAmnt,Sheet1!S71_SA34dCode,$AC:$AC,Sheet1!S71_DepCode,$AD:$AD)","v":0},{"$f":"SUMIFS(Sheet1!S71_AdjustmentBudAmnt,Sheet1!S71_SA34dCode,$AC:$AC,Sheet1!S71_DepCode,$AD:$AD)","v":0},{"$f":"SUMIFS(Sheet1!S71_AdjustmentBudAmnt,Sheet1!S71_SA34dCode,$AC:$AC,Sheet1!S71_DepCode,$AD:$AD)","v":0},{"$f":"SUMIFS(Sheet1!S71_ASBudgetAmount,Sheet1!S71_SA34dCode,$AC:$AC,Sheet1!S71_DepCode,$AD:$AD)","v":0},{"$f":"SUMIFS(Sheet1!S71_OY1BudgetAmount,Sheet1!S71_SA34dCode,$AC:$AC,Sheet1!S71_DepCode,$AD:$AD)","v":0},{"$f":"SUMIFS(Sheet1!S71_OY2BudgetAmount,Sheet1!S71_SA34dCode,$AC:$AC,Sheet1!S71_DepCode,$AD:$AD)","v":0},null,null,null,null,null,null,null,null,null,null,null,null,null,null,null,null,null,"1140","DP"]
["Non-revenue Generating",null,{"$f":"SUM(C115:C116)","v":0},{"$f":"SUM(D115:D116)","v":0},0,0,0,0,0,0,0,null,null,null,null,null,null,null,null,null,null,null,null,null,null,null,null,null,null,"DP"]
["Improved Property",null,{"$f":"SUMIFS(Sheet1!S71_PPPYearAmount,Sheet1!S71_SA34dCode,$AC:$AC,Sheet1!S71_DepCode,$AD:$AD)","v":0},{"$f":"SUMIFS(Sheet1!S71_PPYearAmount,Sheet1!S71_SA34dCode,$AC:$AC,Sheet1!S71_DepCode,$AD:$AD)","v":0},{"$f":"SUMIFS(Sheet1!S71_PYearAmount,Sheet1!S71_SA34dCode,$AC:$AC,Sheet1!S71_DepCode,$AD:$AD)","v":0},{"$f":"SUMIFS(Sheet1!S71_OriginalBudAmnt,Sheet1!S71_SA34dCode,$AC:$AC,Sheet1!S71_DepCode,$AD:$AD)","v":0},{"$f":"SUMIFS(Sheet1!S71_AdjustmentBudAmnt,Sheet1!S71_SA34dCode,$AC:$AC,Sheet1!S71_DepCode,$AD:$AD)","v":0},{"$f":"SUMIFS(Sheet1!S71_AdjustmentBudAmnt,Sheet1!S71_SA34dCode,$AC:$AC,Sheet1!S71_DepCode,$AD:$AD)","v":0},{"$f":"SUMIFS(Sheet1!S71_ASBudgetAmount,Sheet1!S71_SA34dCode,$AC:$AC,Sheet1!S71_DepCode,$AD:$AD)","v":0},{"$f":"SUMIFS(Sheet1!S71_OY1BudgetAmount,Sheet1!S71_SA34dCode,$AC:$AC,Sheet1!S71_DepCode,$AD:$AD)","v":0},{"$f":"SUMIFS(Sheet1!S71_OY2BudgetAmount,Sheet1!S71_SA34dCode,$AC:$AC,Sheet1!S71_DepCode,$AD:$AD)","v":0},null,null,null,null,null,null,null,null,null,null,null,null,null,null,null,null,null,"1160","DP"]
["Unimproved Property",null,{"$f":"SUMIFS(Sheet1!S71_PPPYearAmount,Sheet1!S71_SA34dCode,$AC:$AC,Sheet1!S71_DepCode,$AD:$AD)","v":0},{"$f":"SUMIFS(Sheet1!S71_PPYearAmount,Sheet1!S71_SA34dCode,$AC:$AC,Sheet1!S71_DepCode,$AD:$AD)","v":0},{"$f":"SUMIFS(Sheet1!S71_PYearAmount,Sheet1!S71_SA34dCode,$AC:$AC,Sheet1!S71_DepCode,$AD:$AD)","v":0},{"$f":"SUMIFS(Sheet1!S71_OriginalBudAmnt,Sheet1!S71_SA34dCode,$AC:$AC,Sheet1!S71_DepCode,$AD:$AD)","v":0},{"$f":"SUMIFS(Sheet1!S71_AdjustmentBudAmnt,Sheet1!S71_SA34dCode,$AC:$AC,Sheet1!S71_DepCode,$AD:$AD)","v":0},{"$f":"SUMIFS(Sheet1!S71_AdjustmentBudAmnt,Sheet1!S71_SA34dCode,$AC:$AC,Sheet1!S71_DepCode,$AD:$AD)","v":0},{"$f":"SUMIFS(Sheet1!S71_ASBudgetAmount,Sheet1!S71_SA34dCode,$AC:$AC,Sheet1!S71_DepCode,$AD:$AD)","v":0},{"$f":"SUMIFS(Sheet1!S71_OY1BudgetAmount,Sheet1!S71_SA34dCode,$AC:$AC,Sheet1!S71_DepCode,$AD:$AD)","v":0},{"$f":"SUMIFS(Sheet1!S71_OY2BudgetAmount,Sheet1!S71_SA34dCode,$AC:$AC,Sheet1!S71_DepCode,$AD:$AD)","v":0},null,null,null,null,null,null,null,null,null,null,null,null,null,null,null,null,null,"1170","DP"]
[null,null,null,null,null,null,null,null,null,null,null,null,null,null,null,null,null,null,null,null,null,null,null,null,null,null,null,null,null,"DP"]
["Other assets",null,{"$f":"+C119+C131","v":2070437},{"$f":"+D119+D131","v":3599840},4376831,4500000,1500000,1500000,3300000,3450000,3600000,null,null,null,null,null,null,null,null,null,null,null,null,null,null,null,null,null,null,"DP"]
["Operational Buildings",null,{"$f":"SUM(C120:C130)","v":2070437},{"$f":"SUM(D120:D130)","v":3599840},4376831,4500000,1500000,1500000,3300000,3450000,3600000,null,null,null,null,null,null,null,null,null,null,null,null,null,null,null,null,null,null,"DP"]
["Municipal Offices",null,{"$f":"SUMIFS(Sheet1!S71_PPPYearAmount,Sheet1!S71_SA34dCode,$AC:$AC,Sheet1!S71_DepCode,$AD:$AD)","v":2070437},{"$f":"SUMIFS(Sheet1!S71_PPYearAmount,Sheet1!S71_SA34dCode,$AC:$AC,Sheet1!S71_DepCode,$AD:$AD)","v":3599840},{"$f":"SUMIFS(Sheet1!S71_PYearAmount,Sheet1!S71_SA34dCode,$AC:$AC,Sheet1!S71_DepCode,$AD:$AD)","v":4376831},{"$f":"SUMIFS(Sheet1!S71_OriginalBudAmnt,Sheet1!S71_SA34dCode,$AC:$AC,Sheet1!S71_DepCode,$AD:$AD)","v":4500000},{"$f":"SUMIFS(Sheet1!S71_AdjustmentBudAmnt,Sheet1!S71_SA34dCode,$AC:$AC,Sheet1!S71_DepCode,$AD:$AD)","v":1500000},{"$f":"SUMIFS(Sheet1!S71_AdjustmentBudAmnt,Sheet1!S71_SA34dCode,$AC:$AC,Sheet1!S71_DepCode,$AD:$AD)","v":1500000},{"$f":"SUMIFS(Sheet1!S71_ASBudgetAmount,Sheet1!S71_SA34dCode,$AC:$AC,Sheet1!S71_DepCode,$AD:$AD)","v":3300000},{"$f":"SUMIFS(Sheet1!S71_OY1BudgetAmount,Sheet1!S71_SA34dCode,$AC:$AC,Sheet1!S71_DepCode,$AD:$AD)","v":3450000},{"$f":"SUMIFS(Sheet1!S71_OY2BudgetAmount,Sheet1!S71_SA34dCode,$AC:$AC,Sheet1!S71_DepCode,$AD:$AD)","v":3600000},null,null,null,null,null,null,null,null,null,null,null,null,null,null,null,null,null,"1200","DP"]
["Pay/Enquiry Points",null,{"$f":"SUMIFS(Sheet1!S71_PPPYearAmount,Sheet1!S71_SA34dCode,$AC:$AC,Sheet1!S71_DepCode,$AD:$AD)","v":0},{"$f":"SUMIFS(Sheet1!S71_PPYearAmount,Sheet1!S71_SA34dCode,$AC:$AC,Sheet1!S71_DepCode,$AD:$AD)","v":0},{"$f":"SUMIFS(Sheet1!S71_PYearAmount,Sheet1!S71_SA34dCode,$AC:$AC,Sheet1!S71_DepCode,$AD:$AD)","v":0},{"$f":"SUMIFS(Sheet1!S71_OriginalBudAmnt,Sheet1!S71_SA34dCode,$AC:$AC,Sheet1!S71_DepCode,$AD:$AD)","v":0},{"$f":"SUMIFS(Sheet1!S71_AdjustmentBudAmnt,Sheet1!S71_SA34dCode,$AC:$AC,Sheet1!S71_DepCode,$AD:$AD)","v":0},{"$f":"SUMIFS(Sheet1!S71_AdjustmentBudAmnt,Sheet1!S71_SA34dCode,$AC:$AC,Sheet1!S71_DepCode,$AD:$AD)","v":0},{"$f":"SUMIFS(Sheet1!S71_ASBudgetAmount,Sheet1!S71_SA34dCode,$AC:$AC,Sheet1!S71_DepCode,$AD:$AD)","v":0},{"$f":"SUMIFS(Sheet1!S71_OY1BudgetAmount,Sheet1!S71_SA34dCode,$AC:$AC,Sheet1!S71_DepCode,$AD:$AD)","v":0},{"$f":"SUMIFS(Sheet1!S71_OY2BudgetAmount,Sheet1!S71_SA34dCode,$AC:$AC,Sheet1!S71_DepCode,$AD:$AD)","v":0},null,null,null,null,null,null,null,null,null,null,null,null,null,null,null,null,null,"1210","DP"]
["Building Plan Offices",null,{"$f":"SUMIFS(Sheet1!S71_PPPYearAmount,Sheet1!S71_SA34dCode,$AC:$AC,Sheet1!S71_DepCode,$AD:$AD)","v":0},{"$f":"SUMIFS(Sheet1!S71_PPYearAmount,Sheet1!S71_SA34dCode,$AC:$AC,Sheet1!S71_DepCode,$AD:$AD)","v":0},{"$f":"SUMIFS(Sheet1!S71_PYearAmount,Sheet1!S71_SA34dCode,$AC:$AC,Sheet1!S71_DepCode,$AD:$AD)","v":0},{"$f":"SUMIFS(Sheet1!S71_OriginalBudAmnt,Sheet1!S71_SA34dCode,$AC:$AC,Sheet1!S71_DepCode,$AD:$AD)","v":0},{"$f":"SUMIFS(Sheet1!S71_AdjustmentBudAmnt,Sheet1!S71_SA34dCode,$AC:$AC,Sheet1!S71_DepCode,$AD:$AD)","v":0},{"$f":"SUMIFS(Sheet1!S71_AdjustmentBudAmnt,Sheet1!S71_SA34dCode,$AC:$AC,Sheet1!S71_DepCode,$AD:$AD)","v":0},{"$f":"SUMIFS(Sheet1!S71_ASBudgetAmount,Sheet1!S71_SA34dCode,$AC:$AC,Sheet1!S71_DepCode,$AD:$AD)","v":0},{"$f":"SUMIFS(Sheet1!S71_OY1BudgetAmount,Sheet1!S71_SA34dCode,$AC:$AC,Sheet1!S71_DepCode,$AD:$AD)","v":0},{"$f":"SUMIFS(Sheet1!S71_OY2BudgetAmount,Sheet1!S71_SA34dCode,$AC:$AC,Sheet1!S71_DepCode,$AD:$AD)","v":0},null,null,null,null,null,null,null,null,null,null,null,null,null,null,null,null,null,"1220","DP"]
["Workshops",null,{"$f":"SUMIFS(Sheet1!S71_PPPYearAmount,Sheet1!S71_SA34dCode,$AC:$AC,Sheet1!S71_DepCode,$AD:$AD)","v":0},{"$f":"SUMIFS(Sheet1!S71_PPYearAmount,Sheet1!S71_SA34dCode,$AC:$AC,Sheet1!S71_DepCode,$AD:$AD)","v":0},{"$f":"SUMIFS(Sheet1!S71_PYearAmount,Sheet1!S71_SA34dCode,$AC:$AC,Sheet1!S71_DepCode,$AD:$AD)","v":0},{"$f":"SUMIFS(Sheet1!S71_OriginalBudAmnt,Sheet1!S71_SA34dCode,$AC:$AC,Sheet1!S71_DepCode,$AD:$AD)","v":0},{"$f":"SUMIFS(Sheet1!S71_AdjustmentBudAmnt,Sheet1!S71_SA34dCode,$AC:$AC,Sheet1!S71_DepCode,$AD:$AD)","v":0},{"$f":"SUMIFS(Sheet1!S71_AdjustmentBudAmnt,Sheet1!S71_SA34dCode,$AC:$AC,Sheet1!S71_DepCode,$AD:$AD)","v":0},{"$f":"SUMIFS(Sheet1!S71_ASBudgetAmount,Sheet1!S71_SA34dCode,$AC:$AC,Sheet1!S71_DepCode,$AD:$AD)","v":0},{"$f":"SUMIFS(Sheet1!S71_OY1BudgetAmount,Sheet1!S71_SA34dCode,$AC:$AC,Sheet1!S71_DepCode,$AD:$AD)","v":0},{"$f":"SUMIFS(Sheet1!S71_OY2BudgetAmount,Sheet1!S71_SA34dCode,$AC:$AC,Sheet1!S71_DepCode,$AD:$AD)","v":0},null,null,null,null,null,null,null,null,null,null,null,null,null,null,null,null,null,"1230","DP"]
["Yards",null,{"$f":"SUMIFS(Sheet1!S71_PPPYearAmount,Sheet1!S71_SA34dCode,$AC:$AC,Sheet1!S71_DepCode,$AD:$AD)","v":0},{"$f":"SUMIFS(Sheet1!S71_PPYearAmount,Sheet1!S71_SA34dCode,$AC:$AC,Sheet1!S71_DepCode,$AD:$AD)","v":0},{"$f":"SUMIFS(Sheet1!S71_PYearAmount,Sheet1!S71_SA34dCode,$AC:$AC,Sheet1!S71_DepCode,$AD:$AD)","v":0},{"$f":"SUMIFS(Sheet1!S71_OriginalBudAmnt,Sheet1!S71_SA34dCode,$AC:$AC,Sheet1!S71_DepCode,$AD:$AD)","v":0},{"$f":"SUMIFS(Sheet1!S71_AdjustmentBudAmnt,Sheet1!S71_SA34dCode,$AC:$AC,Sheet1!S71_DepCode,$AD:$AD)","v":0},{"$f":"SUMIFS(Sheet1!S71_AdjustmentBudAmnt,Sheet1!S71_SA34dCode,$AC:$AC,Sheet1!S71_DepCode,$AD:$AD)","v":0},{"$f":"SUMIFS(Sheet1!S71_ASBudgetAmount,Sheet1!S71_SA34dCode,$AC:$AC,Sheet1!S71_DepCode,$AD:$AD)","v":0},{"$f":"SUMIFS(Sheet1!S71_OY1BudgetAmount,Sheet1!S71_SA34dCode,$AC:$AC,Sheet1!S71_DepCode,$AD:$AD)","v":0},{"$f":"SUMIFS(Sheet1!S71_OY2BudgetAmount,Sheet1!S71_SA34dCode,$AC:$AC,Sheet1!S71_DepCode,$AD:$AD)","v":0},null,null,null,null,null,null,null,null,null,null,null,null,null,null,null,null,null,"1240","DP"]
["Stores",null,{"$f":"SUMIFS(Sheet1!S71_PPPYearAmount,Sheet1!S71_SA34dCode,$AC:$AC,Sheet1!S71_DepCode,$AD:$AD)","v":0},{"$f":"SUMIFS(Sheet1!S71_PPYearAmount,Sheet1!S71_SA34dCode,$AC:$AC,Sheet1!S71_DepCode,$AD:$AD)","v":0},{"$f":"SUMIFS(Sheet1!S71_PYearAmount,Sheet1!S71_SA34dCode,$AC:$AC,Sheet1!S71_DepCode,$AD:$AD)","v":0},{"$f":"SUMIFS(Sheet1!S71_OriginalBudAmnt,Sheet1!S71_SA34dCode,$AC:$AC,Sheet1!S71_DepCode,$AD:$AD)","v":0},{"$f":"SUMIFS(Sheet1!S71_AdjustmentBudAmnt,Sheet1!S71_SA34dCode,$AC:$AC,Sheet1!S71_DepCode,$AD:$AD)","v":0},{"$f":"SUMIFS(Sheet1!S71_AdjustmentBudAmnt,Sheet1!S71_SA34dCode,$AC:$AC,Sheet1!S71_DepCode,$AD:$AD)","v":0},{"$f":"SUMIFS(Sheet1!S71_ASBudgetAmount,Sheet1!S71_SA34dCode,$AC:$AC,Sheet1!S71_DepCode,$AD:$AD)","v":0},{"$f":"SUMIFS(Sheet1!S71_OY1BudgetAmount,Sheet1!S71_SA34dCode,$AC:$AC,Sheet1!S71_DepCode,$AD:$AD)","v":0},{"$f":"SUMIFS(Sheet1!S71_OY2BudgetAmount,Sheet1!S71_SA34dCode,$AC:$AC,Sheet1!S71_DepCode,$AD:$AD)","v":0},null,null,null,null,null,null,null,null,null,null,null,null,null,null,null,null,null,"1250","DP"]
["Laboratories",null,{"$f":"SUMIFS(Sheet1!S71_PPPYearAmount,Sheet1!S71_SA34dCode,$AC:$AC,Sheet1!S71_DepCode,$AD:$AD)","v":0},{"$f":"SUMIFS(Sheet1!S71_PPYearAmount,Sheet1!S71_SA34dCode,$AC:$AC,Sheet1!S71_DepCode,$AD:$AD)","v":0},{"$f":"SUMIFS(Sheet1!S71_PYearAmount,Sheet1!S71_SA34dCode,$AC:$AC,Sheet1!S71_DepCode,$AD:$AD)","v":0},{"$f":"SUMIFS(Sheet1!S71_OriginalBudAmnt,Sheet1!S71_SA34dCode,$AC:$AC,Sheet1!S71_DepCode,$AD:$AD)","v":0},{"$f":"SUMIFS(Sheet1!S71_AdjustmentBudAmnt,Sheet1!S71_SA34dCode,$AC:$AC,Sheet1!S71_DepCode,$AD:$AD)","v":0},{"$f":"SUMIFS(Sheet1!S71_AdjustmentBudAmnt,Sheet1!S71_SA34dCode,$AC:$AC,Sheet1!S71_DepCode,$AD:$AD)","v":0},{"$f":"SUMIFS(Sheet1!S71_ASBudgetAmount,Sheet1!S71_SA34dCode,$AC:$AC,Sheet1!S71_DepCode,$AD:$AD)","v":0},{"$f":"SUMIFS(Sheet1!S71_OY1BudgetAmount,Sheet1!S71_SA34dCode,$AC:$AC,Sheet1!S71_DepCode,$AD:$AD)","v":0},{"$f":"SUMIFS(Sheet1!S71_OY2BudgetAmount,Sheet1!S71_SA34dCode,$AC:$AC,Sheet1!S71_DepCode,$AD:$AD)","v":0},null,null,null,null,null,null,null,null,null,null,null,null,null,null,null,null,null,"1260","DP"]
["Training Centres",null,{"$f":"SUMIFS(Sheet1!S71_PPPYearAmount,Sheet1!S71_SA34dCode,$AC:$AC,Sheet1!S71_DepCode,$AD:$AD)","v":0},{"$f":"SUMIFS(Sheet1!S71_PPYearAmount,Sheet1!S71_SA34dCode,$AC:$AC,Sheet1!S71_DepCode,$AD:$AD)","v":0},{"$f":"SUMIFS(Sheet1!S71_PYearAmount,Sheet1!S71_SA34dCode,$AC:$AC,Sheet1!S71_DepCode,$AD:$AD)","v":0},{"$f":"SUMIFS(Sheet1!S71_OriginalBudAmnt,Sheet1!S71_SA34dCode,$AC:$AC,Sheet1!S71_DepCode,$AD:$AD)","v":0},{"$f":"SUMIFS(Sheet1!S71_AdjustmentBudAmnt,Sheet1!S71_SA34dCode,$AC:$AC,Sheet1!S71_DepCode,$AD:$AD)","v":0},{"$f":"SUMIFS(Sheet1!S71_AdjustmentBudAmnt,Sheet1!S71_SA34dCode,$AC:$AC,Sheet1!S71_DepCode,$AD:$AD)","v":0},{"$f":"SUMIFS(Sheet1!S71_ASBudgetAmount,Sheet1!S71_SA34dCode,$AC:$AC,Sheet1!S71_DepCode,$AD:$AD)","v":0},{"$f":"SUMIFS(Sheet1!S71_OY1BudgetAmount,Sheet1!S71_SA34dCode,$AC:$AC,Sheet1!S71_DepCode,$AD:$AD)","v":0},{"$f":"SUMIFS(Sheet1!S71_OY2BudgetAmount,Sheet1!S71_SA34dCode,$AC:$AC,Sheet1!S71_DepCode,$AD:$AD)","v":0},null,null,null,null,null,null,null,null,null,null,null,null,null,null,null,null,null,"1270","DP"]
["Manufacturing Plant",null,{"$f":"SUMIFS(Sheet1!S71_PPPYearAmount,Sheet1!S71_SA34dCode,$AC:$AC,Sheet1!S71_DepCode,$AD:$AD)","v":0},{"$f":"SUMIFS(Sheet1!S71_PPYearAmount,Sheet1!S71_SA34dCode,$AC:$AC,Sheet1!S71_DepCode,$AD:$AD)","v":0},{"$f":"SUMIFS(Sheet1!S71_PYearAmount,Sheet1!S71_SA34dCode,$AC:$AC,Sheet1!S71_DepCode,$AD:$AD)","v":0},{"$f":"SUMIFS(Sheet1!S71_OriginalBudAmnt,Sheet1!S71_SA34dCode,$AC:$AC,Sheet1!S71_DepCode,$AD:$AD)","v":0},{"$f":"SUMIFS(Sheet1!S71_AdjustmentBudAmnt,Sheet1!S71_SA34dCode,$AC:$AC,Sheet1!S71_DepCode,$AD:$AD)","v":0},{"$f":"SUMIFS(Sheet1!S71_AdjustmentBudAmnt,Sheet1!S71_SA34dCode,$AC:$AC,Sheet1!S71_DepCode,$AD:$AD)","v":0},{"$f":"SUMIFS(Sheet1!S71_ASBudgetAmount,Sheet1!S71_SA34dCode,$AC:$AC,Sheet1!S71_DepCode,$AD:$AD)","v":0},{"$f":"SUMIFS(Sheet1!S71_OY1BudgetAmount,Sheet1!S71_SA34dCode,$AC:$AC,Sheet1!S71_DepCode,$AD:$AD)","v":0},{"$f":"SUMIFS(Sheet1!S71_OY2BudgetAmount,Sheet1!S71_SA34dCode,$AC:$AC,Sheet1!S71_DepCode,$AD:$AD)","v":0},null,null,null,null,null,null,null,null,null,null,null,null,null,null,null,null,null,"1280","DP"]
["Depots",null,{"$f":"SUMIFS(Sheet1!S71_PPPYearAmount,Sheet1!S71_SA34dCode,$AC:$AC,Sheet1!S71_DepCode,$AD:$AD)","v":0},{"$f":"SUMIFS(Sheet1!S71_PPYearAmount,Sheet1!S71_SA34dCode,$AC:$AC,Sheet1!S71_DepCode,$AD:$AD)","v":0},{"$f":"SUMIFS(Sheet1!S71_PYearAmount,Sheet1!S71_SA34dCode,$AC:$AC,Sheet1!S71_DepCode,$AD:$AD)","v":0},{"$f":"SUMIFS(Sheet1!S71_OriginalBudAmnt,Sheet1!S71_SA34dCode,$AC:$AC,Sheet1!S71_DepCode,$AD:$AD)","v":0},{"$f":"SUMIFS(Sheet1!S71_AdjustmentBudAmnt,Sheet1!S71_SA34dCode,$AC:$AC,Sheet1!S71_DepCode,$AD:$AD)","v":0},{"$f":"SUMIFS(Sheet1!S71_AdjustmentBudAmnt,Sheet1!S71_SA34dCode,$AC:$AC,Sheet1!S71_DepCode,$AD:$AD)","v":0},{"$f":"SUMIFS(Sheet1!S71_ASBudgetAmount,Sheet1!S71_SA34dCode,$AC:$AC,Sheet1!S71_DepCode,$AD:$AD)","v":0},{"$f":"SUMIFS(Sheet1!S71_OY1BudgetAmount,Sheet1!S71_SA34dCode,$AC:$AC,Sheet1!S71_DepCode,$AD:$AD)","v":0},{"$f":"SUMIFS(Sheet1!S71_OY2BudgetAmount,Sheet1!S71_SA34dCode,$AC:$AC,Sheet1!S71_DepCode,$AD:$AD)","v":0},null,null,null,null,null,null,null,null,null,null,null,null,null,null,null,null,null,"1290","DP"]
["Capital Spares",null,{"$f":"SUMIFS(Sheet1!S71_PPPYearAmount,Sheet1!S71_SA34dCode,$AC:$AC,Sheet1!S71_DepCode,$AD:$AD)","v":0},{"$f":"SUMIFS(Sheet1!S71_PPYearAmount,Sheet1!S71_SA34dCode,$AC:$AC,Sheet1!S71_DepCode,$AD:$AD)","v":0},{"$f":"SUMIFS(Sheet1!S71_PYearAmount,Sheet1!S71_SA34dCode,$AC:$AC,Sheet1!S71_DepCode,$AD:$AD)","v":0},{"$f":"SUMIFS(Sheet1!S71_OriginalBudAmnt,Sheet1!S71_SA34dCode,$AC:$AC,Sheet1!S71_DepCode,$AD:$AD)","v":0},{"$f":"SUMIFS(Sheet1!S71_AdjustmentBudAmnt,Sheet1!S71_SA34dCode,$AC:$AC,Sheet1!S71_DepCode,$AD:$AD)","v":0},{"$f":"SUMIFS(Sheet1!S71_AdjustmentBudAmnt,Sheet1!S71_SA34dCode,$AC:$AC,Sheet1!S71_DepCode,$AD:$AD)","v":0},{"$f":"SUMIFS(Sheet1!S71_ASBudgetAmount,Sheet1!S71_SA34dCode,$AC:$AC,Sheet1!S71_DepCode,$AD:$AD)","v":0},{"$f":"SUMIFS(Sheet1!S71_OY1BudgetAmount,Sheet1!S71_SA34dCode,$AC:$AC,Sheet1!S71_DepCode,$AD:$AD)","v":0},{"$f":"SUMIFS(Sheet1!S71_OY2BudgetAmount,Sheet1!S71_SA34dCode,$AC:$AC,Sheet1!S71_DepCode,$AD:$AD)","v":0},null,null,null,null,null,null,null,null,null,null,null,null,null,null,null,null,null,"1300","DP"]
["Housing",null,{"$f":"SUM(C132:C134)","v":0},{"$f":"SUM(D132:D134)","v":0},0,0,0,0,0,0,0,null,null,null,null,null,null,null,null,null,null,null,null,null,null,null,null,null,null,"DP"]
["Staff Housing",null,{"$f":"SUMIFS(Sheet1!S71_PPPYearAmount,Sheet1!S71_SA34dCode,$AC:$AC,Sheet1!S71_DepCode,$AD:$AD)","v":0},{"$f":"SUMIFS(Sheet1!S71_PPYearAmount,Sheet1!S71_SA34dCode,$AC:$AC,Sheet1!S71_DepCode,$AD:$AD)","v":0},{"$f":"SUMIFS(Sheet1!S71_PYearAmount,Sheet1!S71_SA34dCode,$AC:$AC,Sheet1!S71_DepCode,$AD:$AD)","v":0},{"$f":"SUMIFS(Sheet1!S71_OriginalBudAmnt,Sheet1!S71_SA34dCode,$AC:$AC,Sheet1!S71_DepCode,$AD:$AD)","v":0},{"$f":"SUMIFS(Sheet1!S71_AdjustmentBudAmnt,Sheet1!S71_SA34dCode,$AC:$AC,Sheet1!S71_DepCode,$AD:$AD)","v":0},{"$f":"SUMIFS(Sheet1!S71_AdjustmentBudAmnt,Sheet1!S71_SA34dCode,$AC:$AC,Sheet1!S71_DepCode,$AD:$AD)","v":0},{"$f":"SUMIFS(Sheet1!S71_ASBudgetAmount,Sheet1!S71_SA34dCode,$AC:$AC,Sheet1!S71_DepCode,$AD:$AD)","v":0},{"$f":"SUMIFS(Sheet1!S71_OY1BudgetAmount,Sheet1!S71_SA34dCode,$AC:$AC,Sheet1!S71_DepCode,$AD:$AD)","v":0},{"$f":"SUMIFS(Sheet1!S71_OY2BudgetAmount,Sheet1!S71_SA34dCode,$AC:$AC,Sheet1!S71_DepCode,$AD:$AD)","v":0},null,null,null,null,null,null,null,null,null,null,null,null,null,null,null,null,null,"1320","DP"]
["Social Housing",null,{"$f":"SUMIFS(Sheet1!S71_PPPYearAmount,Sheet1!S71_SA34dCode,$AC:$AC,Sheet1!S71_DepCode,$AD:$AD)","v":0},{"$f":"SUMIFS(Sheet1!S71_PPYearAmount,Sheet1!S71_SA34dCode,$AC:$AC,Sheet1!S71_DepCode,$AD:$AD)","v":0},{"$f":"SUMIFS(Sheet1!S71_PYearAmount,Sheet1!S71_SA34dCode,$AC:$AC,Sheet1!S71_DepCode,$AD:$AD)","v":0},{"$f":"SUMIFS(Sheet1!S71_OriginalBudAmnt,Sheet1!S71_SA34dCode,$AC:$AC,Sheet1!S71_DepCode,$AD:$AD)","v":0},{"$f":"SUMIFS(Sheet1!S71_AdjustmentBudAmnt,Sheet1!S71_SA34dCode,$AC:$AC,Sheet1!S71_DepCode,$AD:$AD)","v":0},{"$f":"SUMIFS(Sheet1!S71_AdjustmentBudAmnt,Sheet1!S71_SA34dCode,$AC:$AC,Sheet1!S71_DepCode,$AD:$AD)","v":0},{"$f":"SUMIFS(Sheet1!S71_ASBudgetAmount,Sheet1!S71_SA34dCode,$AC:$AC,Sheet1!S71_DepCode,$AD:$AD)","v":0},{"$f":"SUMIFS(Sheet1!S71_OY1BudgetAmount,Sheet1!S71_SA34dCode,$AC:$AC,Sheet1!S71_DepCode,$AD:$AD)","v":0},{"$f":"SUMIFS(Sheet1!S71_OY2BudgetAmount,Sheet1!S71_SA34dCode,$AC:$AC,Sheet1!S71_DepCode,$AD:$AD)","v":0},null,null,null,null,null,null,null,null,null,null,null,null,null,null,null,null,null,"1330","DP"]
["Capital Spares",null,{"$f":"SUMIFS(Sheet1!S71_PPPYearAmount,Sheet1!S71_SA34dCode,$AC:$AC,Sheet1!S71_DepCode,$AD:$AD)","v":0},{"$f":"SUMIFS(Sheet1!S71_PPYearAmount,Sheet1!S71_SA34dCode,$AC:$AC,Sheet1!S71_DepCode,$AD:$AD)","v":0},{"$f":"SUMIFS(Sheet1!S71_PYearAmount,Sheet1!S71_SA34dCode,$AC:$AC,Sheet1!S71_DepCode,$AD:$AD)","v":0},{"$f":"SUMIFS(Sheet1!S71_OriginalBudAmnt,Sheet1!S71_SA34dCode,$AC:$AC,Sheet1!S71_DepCode,$AD:$AD)","v":0},{"$f":"SUMIFS(Sheet1!S71_AdjustmentBudAmnt,Sheet1!S71_SA34dCode,$AC:$AC,Sheet1!S71_DepCode,$AD:$AD)","v":0},{"$f":"SUMIFS(Sheet1!S71_AdjustmentBudAmnt,Sheet1!S71_SA34dCode,$AC:$AC,Sheet1!S71_DepCode,$AD:$AD)","v":0},{"$f":"SUMIFS(Sheet1!S71_ASBudgetAmount,Sheet1!S71_SA34dCode,$AC:$AC,Sheet1!S71_DepCode,$AD:$AD)","v":0},{"$f":"SUMIFS(Sheet1!S71_OY1BudgetAmount,Sheet1!S71_SA34dCode,$AC:$AC,Sheet1!S71_DepCode,$AD:$AD)","v":0},{"$f":"SUMIFS(Sheet1!S71_OY2BudgetAmount,Sheet1!S71_SA34dCode,$AC:$AC,Sheet1!S71_DepCode,$AD:$AD)","v":0},null,null,null,null,null,null,null,null,null,null,null,null,null,null,null,null,null,"1340","DP"]
[null,null,null,null,null,null,null,null,null,null,null,null,null,null,null,null,null,null,null,null,null,null,null,null,null,null,null,null,null,"DP"]
["Biological or Cultivated Assets",null,{"$f":"SUM(C137:C137)","v":0},0,0,0,0,0,0,0,0,null,null,null,null,null,null,null,null,null,null,null,null,null,null,null,null,null,null,"DP"]
["Biological or Cultivated Assets",null,{"$f":"SUMIFS(Sheet1!S71_PPPYearAmount,Sheet1!S71_SA34dCode,$AC:$AC,Sheet1!S71_DepCode,$AD:$AD)","v":0},{"$f":"SUMIFS(Sheet1!S71_PPYearAmount,Sheet1!S71_SA34dCode,$AC:$AC,Sheet1!S71_DepCode,$AD:$AD)","v":0},{"$f":"SUMIFS(Sheet1!S71_PYearAmount,Sheet1!S71_SA34dCode,$AC:$AC,Sheet1!S71_DepCode,$AD:$AD)","v":0},{"$f":"SUMIFS(Sheet1!S71_OriginalBudAmnt,Sheet1!S71_SA34dCode,$AC:$AC,Sheet1!S71_DepCode,$AD:$AD)","v":0},{"$f":"SUMIFS(Sheet1!S71_AdjustmentBudAmnt,Sheet1!S71_SA34dCode,$AC:$AC,Sheet1!S71_DepCode,$AD:$AD)","v":0},{"$f":"SUMIFS(Sheet1!S71_AdjustmentBudAmnt,Sheet1!S71_SA34dCode,$AC:$AC,Sheet1!S71_DepCode,$AD:$AD)","v":0},{"$f":"SUMIFS(Sheet1!S71_ASBudgetAmount,Sheet1!S71_SA34dCode,$AC:$AC,Sheet1!S71_DepCode,$AD:$AD)","v":0},{"$f":"SUMIFS(Sheet1!S71_OY1BudgetAmount,Sheet1!S71_SA34dCode,$AC:$AC,Sheet1!S71_DepCode,$AD:$AD)","v":0},{"$f":"SUMIFS(Sheet1!S71_OY2BudgetAmount,Sheet1!S71_SA34dCode,$AC:$AC,Sheet1!S71_DepCode,$AD:$AD)","v":0},null,null,null,null,null,null,null,null,null,null,null,null,null,null,null,null,null,"1360","DP"]
[null,null,null,null,null,null,null,null,null,null,null,null,null,null,null,null,null,null,null,null,null,null,null,null,null,null,null,null,null,"DP"]
["Intangible Assets",null,{"$f":"+C140+C141","v":2146299},{"$f":"+D140+D141","v":1908022},3202416,0,0,0,0,0,0,null,null,null,null,null,null,null,null,null,null,null,null,null,null,null,null,null,null,"DP"]
["Servitudes",null,{"$f":"SUMIFS(Sheet1!S71_PPPYearAmount,Sheet1!S71_SA34dCode,$AC:$AC,Sheet1!S71_DepCode,$AD:$AD)","v":0},{"$f":"SUMIFS(Sheet1!S71_PPYearAmount,Sheet1!S71_SA34dCode,$AC:$AC,Sheet1!S71_DepCode,$AD:$AD)","v":0},{"$f":"SUMIFS(Sheet1!S71_PYearAmount,Sheet1!S71_SA34dCode,$AC:$AC,Sheet1!S71_DepCode,$AD:$AD)","v":0},{"$f":"SUMIFS(Sheet1!S71_OriginalBudAmnt,Sheet1!S71_SA34dCode,$AC:$AC,Sheet1!S71_DepCode,$AD:$AD)","v":0},{"$f":"SUMIFS(Sheet1!S71_AdjustmentBudAmnt,Sheet1!S71_SA34dCode,$AC:$AC,Sheet1!S71_DepCode,$AD:$AD)","v":0},{"$f":"SUMIFS(Sheet1!S71_AdjustmentBudAmnt,Sheet1!S71_SA34dCode,$AC:$AC,Sheet1!S71_DepCode,$AD:$AD)","v":0},{"$f":"SUMIFS(Sheet1!S71_ASBudgetAmount,Sheet1!S71_SA34dCode,$AC:$AC,Sheet1!S71_DepCode,$AD:$AD)","v":0},{"$f":"SUMIFS(Sheet1!S71_OY1BudgetAmount,Sheet1!S71_SA34dCode,$AC:$AC,Sheet1!S71_DepCode,$AD:$AD)","v":0},{"$f":"SUMIFS(Sheet1!S71_OY2BudgetAmount,Sheet1!S71_SA34dCode,$AC:$AC,Sheet1!S71_DepCode,$AD:$AD)","v":0},null,null,null,null,null,null,null,null,null,null,null,null,null,null,null,null,null,"1380","DP"]
["Licences and Rights",null,{"$f":"SUM(C142:C147)","v":2146299},{"$f":"SUM(D142:D147)","v":1908022},3202416,0,0,0,0,0,0,null,null,null,null,null,null,null,null,null,null,null,null,null,null,null,null,null,null,"DP"]
["Water Rights",null,{"$f":"SUMIFS(Sheet1!S71_PPPYearAmount,Sheet1!S71_SA34dCode,$AC:$AC,Sheet1!S71_DepCode,$AD:$AD)","v":0},{"$f":"SUMIFS(Sheet1!S71_PPYearAmount,Sheet1!S71_SA34dCode,$AC:$AC,Sheet1!S71_DepCode,$AD:$AD)","v":0},{"$f":"SUMIFS(Sheet1!S71_PYearAmount,Sheet1!S71_SA34dCode,$AC:$AC,Sheet1!S71_DepCode,$AD:$AD)","v":0},{"$f":"SUMIFS(Sheet1!S71_OriginalBudAmnt,Sheet1!S71_SA34dCode,$AC:$AC,Sheet1!S71_DepCode,$AD:$AD)","v":0},{"$f":"SUMIFS(Sheet1!S71_AdjustmentBudAmnt,Sheet1!S71_SA34dCode,$AC:$AC,Sheet1!S71_DepCode,$AD:$AD)","v":0},{"$f":"SUMIFS(Sheet1!S71_AdjustmentBudAmnt,Sheet1!S71_SA34dCode,$AC:$AC,Sheet1!S71_DepCode,$AD:$AD)","v":0},{"$f":"SUMIFS(Sheet1!S71_ASBudgetAmount,Sheet1!S71_SA34dCode,$AC:$AC,Sheet1!S71_DepCode,$AD:$AD)","v":0},{"$f":"SUMIFS(Sheet1!S71_OY1BudgetAmount,Sheet1!S71_SA34dCode,$AC:$AC,Sheet1!S71_DepCode,$AD:$AD)","v":0},{"$f":"SUMIFS(Sheet1!S71_OY2BudgetAmount,Sheet1!S71_SA34dCode,$AC:$AC,Sheet1!S71_DepCode,$AD:$AD)","v":0},null,null,null,null,null,null,null,null,null,null,null,null,null,null,null,null,null,"1400","DP"]
["Effluent Licenses",null,{"$f":"SUMIFS(Sheet1!S71_PPPYearAmount,Sheet1!S71_SA34dCode,$AC:$AC,Sheet1!S71_DepCode,$AD:$AD)","v":0},{"$f":"SUMIFS(Sheet1!S71_PPYearAmount,Sheet1!S71_SA34dCode,$AC:$AC,Sheet1!S71_DepCode,$AD:$AD)","v":0},{"$f":"SUMIFS(Sheet1!S71_PYearAmount,Sheet1!S71_SA34dCode,$AC:$AC,Sheet1!S71_DepCode,$AD:$AD)","v":0},{"$f":"SUMIFS(Sheet1!S71_OriginalBudAmnt,Sheet1!S71_SA34dCode,$AC:$AC,Sheet1!S71_DepCode,$AD:$AD)","v":0},{"$f":"SUMIFS(Sheet1!S71_AdjustmentBudAmnt,Sheet1!S71_SA34dCode,$AC:$AC,Sheet1!S71_DepCode,$AD:$AD)","v":0},{"$f":"SUMIFS(Sheet1!S71_AdjustmentBudAmnt,Sheet1!S71_SA34dCode,$AC:$AC,Sheet1!S71_DepCode,$AD:$AD)","v":0},{"$f":"SUMIFS(Sheet1!S71_ASBudgetAmount,Sheet1!S71_SA34dCode,$AC:$AC,Sheet1!S71_DepCode,$AD:$AD)","v":0},{"$f":"SUMIFS(Sheet1!S71_OY1BudgetAmount,Sheet1!S71_SA34dCode,$AC:$AC,Sheet1!S71_DepCode,$AD:$AD)","v":0},{"$f":"SUMIFS(Sheet1!S71_OY2BudgetAmount,Sheet1!S71_SA34dCode,$AC:$AC,Sheet1!S71_DepCode,$AD:$AD)","v":0},null,null,null,null,null,null,null,null,null,null,null,null,null,null,null,null,null,"1410","DP"]
["Solid Waste Licenses",null,{"$f":"SUMIFS(Sheet1!S71_PPPYearAmount,Sheet1!S71_SA34dCode,$AC:$AC,Sheet1!S71_DepCode,$AD:$AD)","v":0},{"$f":"SUMIFS(Sheet1!S71_PPYearAmount,Sheet1!S71_SA34dCode,$AC:$AC,Sheet1!S71_DepCode,$AD:$AD)","v":0},{"$f":"SUMIFS(Sheet1!S71_PYearAmount,Sheet1!S71_SA34dCode,$AC:$AC,Sheet1!S71_DepCode,$AD:$AD)","v":0},{"$f":"SUMIFS(Sheet1!S71_OriginalBudAmnt,Sheet1!S71_SA34dCode,$AC:$AC,Sheet1!S71_DepCode,$AD:$AD)","v":0},{"$f":"SUMIFS(Sheet1!S71_AdjustmentBudAmnt,Sheet1!S71_SA34dCode,$AC:$AC,Sheet1!S71_DepCode,$AD:$AD)","v":0},{"$f":"SUMIFS(Sheet1!S71_AdjustmentBudAmnt,Sheet1!S71_SA34dCode,$AC:$AC,Sheet1!S71_DepCode,$AD:$AD)","v":0},{"$f":"SUMIFS(Sheet1!S71_ASBudgetAmount,Sheet1!S71_SA34dCode,$AC:$AC,Sheet1!S71_DepCode,$AD:$AD)","v":0},{"$f":"SUMIFS(Sheet1!S71_OY1BudgetAmount,Sheet1!S71_SA34dCode,$AC:$AC,Sheet1!S71_DepCode,$AD:$AD)","v":0},{"$f":"SUMIFS(Sheet1!S71_OY2BudgetAmount,Sheet1!S71_SA34dCode,$AC:$AC,Sheet1!S71_DepCode,$AD:$AD)","v":0},null,null,null,null,null,null,null,null,null,null,null,null,null,null,null,null,null,"1420","DP"]
["Computer Software and Applications",null,{"$f":"SUMIFS(Sheet1!S71_PPPYearAmount,Sheet1!S71_SA34dCode,$AC:$AC,Sheet1!S71_DepCode,$AD:$AD)","v":2146299},{"$f":"SUMIFS(Sheet1!S71_PPYearAmount,Sheet1!S71_SA34dCode,$AC:$AC,Sheet1!S71_DepCode,$AD:$AD)","v":1908022},{"$f":"SUMIFS(Sheet1!S71_PYearAmount,Sheet1!S71_SA34dCode,$AC:$AC,Sheet1!S71_DepCode,$AD:$AD)","v":3202416},{"$f":"SUMIFS(Sheet1!S71_OriginalBudAmnt,Sheet1!S71_SA34dCode,$AC:$AC,Sheet1!S71_DepCode,$AD:$AD)","v":0},{"$f":"SUMIFS(Sheet1!S71_AdjustmentBudAmnt,Sheet1!S71_SA34dCode,$AC:$AC,Sheet1!S71_DepCode,$AD:$AD)","v":0},{"$f":"SUMIFS(Sheet1!S71_AdjustmentBudAmnt,Sheet1!S71_SA34dCode,$AC:$AC,Sheet1!S71_DepCode,$AD:$AD)","v":0},{"$f":"SUMIFS(Sheet1!S71_ASBudgetAmount,Sheet1!S71_SA34dCode,$AC:$AC,Sheet1!S71_DepCode,$AD:$AD)","v":0},{"$f":"SUMIFS(Sheet1!S71_OY1BudgetAmount,Sheet1!S71_SA34dCode,$AC:$AC,Sheet1!S71_DepCode,$AD:$AD)","v":0},{"$f":"SUMIFS(Sheet1!S71_OY2BudgetAmount,Sheet1!S71_SA34dCode,$AC:$AC,Sheet1!S71_DepCode,$AD:$AD)","v":0},null,null,null,null,null,null,null,null,null,null,null,null,null,null,null,null,null,"1430","DP"]
["Load Settlement Software Applications",null,{"$f":"SUMIFS(Sheet1!S71_PPPYearAmount,Sheet1!S71_SA34dCode,$AC:$AC,Sheet1!S71_DepCode,$AD:$AD)","v":0},{"$f":"SUMIFS(Sheet1!S71_PPYearAmount,Sheet1!S71_SA34dCode,$AC:$AC,Sheet1!S71_DepCode,$AD:$AD)","v":0},{"$f":"SUMIFS(Sheet1!S71_PYearAmount,Sheet1!S71_SA34dCode,$AC:$AC,Sheet1!S71_DepCode,$AD:$AD)","v":0},{"$f":"SUMIFS(Sheet1!S71_OriginalBudAmnt,Sheet1!S71_SA34dCode,$AC:$AC,Sheet1!S71_DepCode,$AD:$AD)","v":0},{"$f":"SUMIFS(Sheet1!S71_AdjustmentBudAmnt,Sheet1!S71_SA34dCode,$AC:$AC,Sheet1!S71_DepCode,$AD:$AD)","v":0},{"$f":"SUMIFS(Sheet1!S71_AdjustmentBudAmnt,Sheet1!S71_SA34dCode,$AC:$AC,Sheet1!S71_DepCode,$AD:$AD)","v":0},{"$f":"SUMIFS(Sheet1!S71_ASBudgetAmount,Sheet1!S71_SA34dCode,$AC:$AC,Sheet1!S71_DepCode,$AD:$AD)","v":0},{"$f":"SUMIFS(Sheet1!S71_OY1BudgetAmount,Sheet1!S71_SA34dCode,$AC:$AC,Sheet1!S71_DepCode,$AD:$AD)","v":0},{"$f":"SUMIFS(Sheet1!S71_OY2BudgetAmount,Sheet1!S71_SA34dCode,$AC:$AC,Sheet1!S71_DepCode,$AD:$AD)","v":0},null,null,null,null,null,null,null,null,null,null,null,null,null,null,null,null,null,"1440","DP"]
["Unspecified",null,{"$f":"SUMIFS(Sheet1!S71_PPPYearAmount,Sheet1!S71_SA34dCode,$AC:$AC,Sheet1!S71_DepCode,$AD:$AD)","v":0},{"$f":"SUMIFS(Sheet1!S71_PPYearAmount,Sheet1!S71_SA34dCode,$AC:$AC,Sheet1!S71_DepCode,$AD:$AD)","v":0},{"$f":"SUMIFS(Sheet1!S71_PYearAmount,Sheet1!S71_SA34dCode,$AC:$AC,Sheet1!S71_DepCode,$AD:$AD)","v":0},{"$f":"SUMIFS(Sheet1!S71_OriginalBudAmnt,Sheet1!S71_SA34dCode,$AC:$AC,Sheet1!S71_DepCode,$AD:$AD)","v":0},{"$f":"SUMIFS(Sheet1!S71_AdjustmentBudAmnt,Sheet1!S71_SA34dCode,$AC:$AC,Sheet1!S71_DepCode,$AD:$AD)","v":0},{"$f":"SUMIFS(Sheet1!S71_AdjustmentBudAmnt,Sheet1!S71_SA34dCode,$AC:$AC,Sheet1!S71_DepCode,$AD:$AD)","v":0},{"$f":"SUMIFS(Sheet1!S71_ASBudgetAmount,Sheet1!S71_SA34dCode,$AC:$AC,Sheet1!S71_DepCode,$AD:$AD)","v":0},{"$f":"SUMIFS(Sheet1!S71_OY1BudgetAmount,Sheet1!S71_SA34dCode,$AC:$AC,Sheet1!S71_DepCode,$AD:$AD)","v":0},{"$f":"SUMIFS(Sheet1!S71_OY2BudgetAmount,Sheet1!S71_SA34dCode,$AC:$AC,Sheet1!S71_DepCode,$AD:$AD)","v":0},null,null,null,null,null,null,null,null,null,null,null,null,null,null,null,null,null,"1450","DP"]
[null,null,null,null,null,null,null,null,null,null,null,null,null,null,null,null,null,null,null,null,null,null,null,null,null,null,null,null,null,"DP"]
["Computer Equipment",null,{"$f":"SUM(C150:C150)","v":1026028},1234087,1253248,1500000,5000000,5000000,2200000,2300000,2400000,null,null,null,null,null,null,null,null,null,null,null,null,null,null,null,null,null,null,"DP"]
["Computer Equipment",null,{"$f":"SUMIFS(Sheet1!S71_PPPYearAmount,Sheet1!S71_SA34dCode,$AC:$AC,Sheet1!S71_DepCode,$AD:$AD)","v":1026028},{"$f":"SUMIFS(Sheet1!S71_PPYearAmount,Sheet1!S71_SA34dCode,$AC:$AC,Sheet1!S71_DepCode,$AD:$AD)","v":1234087},{"$f":"SUMIFS(Sheet1!S71_PYearAmount,Sheet1!S71_SA34dCode,$AC:$AC,Sheet1!S71_DepCode,$AD:$AD)","v":1253248},{"$f":"SUMIFS(Sheet1!S71_OriginalBudAmnt,Sheet1!S71_SA34dCode,$AC:$AC,Sheet1!S71_DepCode,$AD:$AD)","v":1500000},{"$f":"SUMIFS(Sheet1!S71_AdjustmentBudAmnt,Sheet1!S71_SA34dCode,$AC:$AC,Sheet1!S71_DepCode,$AD:$AD)","v":5000000},{"$f":"SUMIFS(Sheet1!S71_AdjustmentBudAmnt,Sheet1!S71_SA34dCode,$AC:$AC,Sheet1!S71_DepCode,$AD:$AD)","v":5000000},{"$f":"SUMIFS(Sheet1!S71_ASBudgetAmount,Sheet1!S71_SA34dCode,$AC:$AC,Sheet1!S71_DepCode,$AD:$AD)","v":2200000},{"$f":"SUMIFS(Sheet1!S71_OY1BudgetAmount,Sheet1!S71_SA34dCode,$AC:$AC,Sheet1!S71_DepCode,$AD:$AD)","v":2300000},{"$f":"SUMIFS(Sheet1!S71_OY2BudgetAmount,Sheet1!S71_SA34dCode,$AC:$AC,Sheet1!S71_DepCode,$AD:$AD)","v":2400000},null,null,null,null,null,null,null,null,null,null,null,null,null,null,null,null,null,"1470","DP"]
[null,null,null,null,null,null,null,null,null,null,null,null,null,null,null,null,null,null,null,null,null,null,null,null,null,null,null,null,null,"DP"]
["Furniture and Office Equipment",null,{"$f":"SUM(C153:C153)","v":274345},811131,1074912,1500000,1500000,1500000,5500000,5750000,6000000,null,null,null,null,null,null,null,null,null,null,null,null,null,null,null,null,null,null,"DP"]
["Furniture and Office Equipment",null,{"$f":"SUMIFS(Sheet1!S71_PPPYearAmount,Sheet1!S71_SA34dCode,$AC:$AC,Sheet1!S71_DepCode,$AD:$AD)","v":274345},{"$f":"SUMIFS(Sheet1!S71_PPYearAmount,Sheet1!S71_SA34dCode,$AC:$AC,Sheet1!S71_DepCode,$AD:$AD)","v":811131},{"$f":"SUMIFS(Sheet1!S71_PYearAmount,Sheet1!S71_SA34dCode,$AC:$AC,Sheet1!S71_DepCode,$AD:$AD)","v":1074912},{"$f":"SUMIFS(Sheet1!S71_OriginalBudAmnt,Sheet1!S71_SA34dCode,$AC:$AC,Sheet1!S71_DepCode,$AD:$AD)","v":1500000},{"$f":"SUMIFS(Sheet1!S71_AdjustmentBudAmnt,Sheet1!S71_SA34dCode,$AC:$AC,Sheet1!S71_DepCode,$AD:$AD)","v":1500000},{"$f":"SUMIFS(Sheet1!S71_AdjustmentBudAmnt,Sheet1!S71_SA34dCode,$AC:$AC,Sheet1!S71_DepCode,$AD:$AD)","v":1500000},{"$f":"SUMIFS(Sheet1!S71_ASBudgetAmount,Sheet1!S71_SA34dCode,$AC:$AC,Sheet1!S71_DepCode,$AD:$AD)","v":5500000},{"$f":"SUMIFS(Sheet1!S71_OY1BudgetAmount,Sheet1!S71_SA34dCode,$AC:$AC,Sheet1!S71_DepCode,$AD:$AD)","v":5750000},{"$f":"SUMIFS(Sheet1!S71_OY2BudgetAmount,Sheet1!S71_SA34dCode,$AC:$AC,Sheet1!S71_DepCode,$AD:$AD)","v":6000000},null,null,null,null,null,null,null,null,null,null,null,null,null,null,null,null,null,"1490","DP"]
[null,null,null,null,null,null,null,null,null,null,null,null,null,null,null,null,null,null,null,null,null,null,null,null,null,null,null,null,null,"DP"]
["Machinery and Equipment",null,{"$f":"SUM(C156:C156)","v":969114},1686467,2296372,5000000,3000000,3000000,5500000,5750000,6000000,null,null,null,null,null,null,null,null,null,null,null,null,null,null,null,null,null,null,"DP"]
["Machinery and Equipment",null,{"$f":"SUMIFS(Sheet1!S71_PPPYearAmount,Sheet1!S71_SA34dCode,$AC:$AC,Sheet1!S71_DepCode,$AD:$AD)","v":969114},{"$f":"SUMIFS(Sheet1!S71_PPYearAmount,Sheet1!S71_SA34dCode,$AC:$AC,Sheet1!S71_DepCode,$AD:$AD)","v":1686467},{"$f":"SUMIFS(Sheet1!S71_PYearAmount,Sheet1!S71_SA34dCode,$AC:$AC,Sheet1!S71_DepCode,$AD:$AD)","v":2296372},{"$f":"SUMIFS(Sheet1!S71_OriginalBudAmnt,Sheet1!S71_SA34dCode,$AC:$AC,Sheet1!S71_DepCode,$AD:$AD)","v":5000000},{"$f":"SUMIFS(Sheet1!S71_AdjustmentBudAmnt,Sheet1!S71_SA34dCode,$AC:$AC,Sheet1!S71_DepCode,$AD:$AD)","v":3000000},{"$f":"SUMIFS(Sheet1!S71_AdjustmentBudAmnt,Sheet1!S71_SA34dCode,$AC:$AC,Sheet1!S71_DepCode,$AD:$AD)","v":3000000},{"$f":"SUMIFS(Sheet1!S71_ASBudgetAmount,Sheet1!S71_SA34dCode,$AC:$AC,Sheet1!S71_DepCode,$AD:$AD)","v":5500000},{"$f":"SUMIFS(Sheet1!S71_OY1BudgetAmount,Sheet1!S71_SA34dCode,$AC:$AC,Sheet1!S71_DepCode,$AD:$AD)","v":5750000},{"$f":"SUMIFS(Sheet1!S71_OY2BudgetAmount,Sheet1!S71_SA34dCode,$AC:$AC,Sheet1!S71_DepCode,$AD:$AD)","v":6000000},null,null,null,null,null,null,null,null,null,null,null,null,null,null,null,null,null,"1510","DP"]
[null,null,null,null,null,null,null,null,null,null,null,null,null,null,null,null,null,null,null,null,null,null,null,null,null,null,null,null,null,"DP"]
["Transport Assets",null,{"$f":"SUM(C159:C159)","v":1384479},1379946,1430661,3000000,4500000,4500000,71900000,71850000,71800000,null,null,null,null,null,null,null,null,null,null,null,null,null,null,null,null,null,null,"DP"]
["Transport Assets",null,{"$f":"SUMIFS(Sheet1!S71_PPPYearAmount,Sheet1!S71_SA34dCode,$AC:$AC,Sheet1!S71_DepCode,$AD:$AD)","v":1384479},{"$f":"SUMIFS(Sheet1!S71_PPYearAmount,Sheet1!S71_SA34dCode,$AC:$AC,Sheet1!S71_DepCode,$AD:$AD)","v":1379946},{"$f":"SUMIFS(Sheet1!S71_PYearAmount,Sheet1!S71_SA34dCode,$AC:$AC,Sheet1!S71_DepCode,$AD:$AD)","v":1430661},{"$f":"SUMIFS(Sheet1!S71_OriginalBudAmnt,Sheet1!S71_SA34dCode,$AC:$AC,Sheet1!S71_DepCode,$AD:$AD)","v":3000000},{"$f":"SUMIFS(Sheet1!S71_AdjustmentBudAmnt,Sheet1!S71_SA34dCode,$AC:$AC,Sheet1!S71_DepCode,$AD:$AD)","v":4500000},{"$f":"SUMIFS(Sheet1!S71_AdjustmentBudAmnt,Sheet1!S71_SA34dCode,$AC:$AC,Sheet1!S71_DepCode,$AD:$AD)","v":4500000},{"$f":"SUMIFS(Sheet1!S71_ASBudgetAmount,Sheet1!S71_SA34dCode,$AC:$AC,Sheet1!S71_DepCode,$AD:$AD)","v":71900000},{"$f":"SUMIFS(Sheet1!S71_OY1BudgetAmount,Sheet1!S71_SA34dCode,$AC:$AC,Sheet1!S71_DepCode,$AD:$AD)","v":71850000},{"$f":"SUMIFS(Sheet1!S71_OY2BudgetAmount,Sheet1!S71_SA34dCode,$AC:$AC,Sheet1!S71_DepCode,$AD:$AD)","v":71800000},null,null,null,null,null,null,null,null,null,null,null,null,null,null,null,null,null,"1530","DP"]
[null,null,null,null,null,null,null,null,null,null,null,null,null,null,null,null,null,null,null,null,null,null,null,null,null,null,null,null,null,"DP"]
["Land",null,{"$f":"SUM(C162:C162)","v":0},0,0,0,0,0,0,0,0,null,null,null,null,null,null,null,null,null,null,null,null,null,null,null,null,null,null,"DP"]
["Land",null,{"$f":"SUMIFS(Sheet1!S71_PPPYearAmount,Sheet1!S71_SA34dCode,$AC:$AC,Sheet1!S71_DepCode,$AD:$AD)","v":0},{"$f":"SUMIFS(Sheet1!S71_PPYearAmount,Sheet1!S71_SA34dCode,$AC:$AC,Sheet1!S71_DepCode,$AD:$AD)","v":0},{"$f":"SUMIFS(Sheet1!S71_PYearAmount,Sheet1!S71_SA34dCode,$AC:$AC,Sheet1!S71_DepCode,$AD:$AD)","v":0},{"$f":"SUMIFS(Sheet1!S71_OriginalBudAmnt,Sheet1!S71_SA34dCode,$AC:$AC,Sheet1!S71_DepCode,$AD:$AD)","v":0},{"$f":"SUMIFS(Sheet1!S71_AdjustmentBudAmnt,Sheet1!S71_SA34dCode,$AC:$AC,Sheet1!S71_DepCode,$AD:$AD)","v":0},{"$f":"SUMIFS(Sheet1!S71_AdjustmentBudAmnt,Sheet1!S71_SA34dCode,$AC:$AC,Sheet1!S71_DepCode,$AD:$AD)","v":0},{"$f":"SUMIFS(Sheet1!S71_ASBudgetAmount,Sheet1!S71_SA34dCode,$AC:$AC,Sheet1!S71_DepCode,$AD:$AD)","v":0},{"$f":"SUMIFS(Sheet1!S71_OY1BudgetAmount,Sheet1!S71_SA34dCode,$AC:$AC,Sheet1!S71_DepCode,$AD:$AD)","v":0},{"$f":"SUMIFS(Sheet1!S71_OY2BudgetAmount,Sheet1!S71_SA34dCode,$AC:$AC,Sheet1!S71_DepCode,$AD:$AD)","v":0},null,null,null,null,null,null,null,null,null,null,null,null,null,null,null,null,null,"1550","DP"]
[null,null,null,null,null,null,null,null,null,null,null,null,null,null,null,null,null,null,null,null,null,null,null,null,null,null,null,null,null,"DP"]
["Zoo's, Marine and Non-biological Animals",null,{"$f":"SUM(C165:C165)","v":0},0,0,0,0,0,0,0,0,null,null,null,null,null,null,null,null,null,null,null,null,null,null,null,null,null,null,"DP"]
["Zoo's, Marine and Non-biological Animals",null,{"$f":"SUMIFS(Sheet1!S71_PPPYearAmount,Sheet1!S71_SA34dCode,$AC:$AC,Sheet1!S71_DepCode,$AD:$AD)","v":0},{"$f":"SUMIFS(Sheet1!S71_PPYearAmount,Sheet1!S71_SA34dCode,$AC:$AC,Sheet1!S71_DepCode,$AD:$AD)","v":0},{"$f":"SUMIFS(Sheet1!S71_PYearAmount,Sheet1!S71_SA34dCode,$AC:$AC,Sheet1!S71_DepCode,$AD:$AD)","v":0},{"$f":"SUMIFS(Sheet1!S71_OriginalBudAmnt,Sheet1!S71_SA34dCode,$AC:$AC,Sheet1!S71_DepCode,$AD:$AD)","v":0},{"$f":"SUMIFS(Sheet1!S71_AdjustmentBudAmnt,Sheet1!S71_SA34dCode,$AC:$AC,Sheet1!S71_DepCode,$AD:$AD)","v":0},{"$f":"SUMIFS(Sheet1!S71_AdjustmentBudAmnt,Sheet1!S71_SA34dCode,$AC:$AC,Sheet1!S71_DepCode,$AD:$AD)","v":0},{"$f":"SUMIFS(Sheet1!S71_ASBudgetAmount,Sheet1!S71_SA34dCode,$AC:$AC,Sheet1!S71_DepCode,$AD:$AD)","v":0},{"$f":"SUMIFS(Sheet1!S71_OY1BudgetAmount,Sheet1!S71_SA34dCode,$AC:$AC,Sheet1!S71_DepCode,$AD:$AD)","v":0},{"$f":"SUMIFS(Sheet1!S71_OY2BudgetAmount,Sheet1!S71_SA34dCode,$AC:$AC,Sheet1!S71_DepCode,$AD:$AD)","v":0},null,null,null,null,null,null,null,null,null,null,null,null,null,null,null,null,null,"1570","DP"]
[null,null,null,null,null,null,null,null,null,null,null,null,null,null,null,null,null,null,null,null,null,null,null,null,null,null,null,null,null,"DP"]
["Living resources"," ",{"$f":"+C168+C171","v":0},{"$f":"+D168+D171","v":0},0,0,0,0,0,0,0]
["Mature"," ",{"$f":"SUM(C169:C170)","v":0},0,0,0,0,0,0,0,0]
["Policing and Protection"," ",{"$f":"SUMIFS(Sheet1!S71_PPPYearAmount,Sheet1!S71_SA34dCode,$AC:$AC,Sheet1!S71_DepCode,$AD:$AD)","v":0},{"$f":"SUMIFS(Sheet1!S71_PPYearAmount,Sheet1!S71_SA34dCode,$AC:$AC,Sheet1!S71_DepCode,$AD:$AD)","v":0},{"$f":"SUMIFS(Sheet1!S71_PYearAmount,Sheet1!S71_SA34dCode,$AC:$AC,Sheet1!S71_DepCode,$AD:$AD)","v":0},{"$f":"SUMIFS(Sheet1!S71_OriginalBudAmnt,Sheet1!S71_SA34dCode,$AC:$AC,Sheet1!S71_DepCode,$AD:$AD)","v":0},{"$f":"SUMIFS(Sheet1!S71_AdjustmentBudAmnt,Sheet1!S71_SA34dCode,$AC:$AC,Sheet1!S71_DepCode,$AD:$AD)","v":0},{"$f":"SUMIFS(Sheet1!S71_AdjustmentBudAmnt,Sheet1!S71_SA34dCode,$AC:$AC,Sheet1!S71_DepCode,$AD:$AD)","v":0},{"$f":"SUMIFS(Sheet1!S71_ASBudgetAmount,Sheet1!S71_SA34dCode,$AC:$AC,Sheet1!S71_DepCode,$AD:$AD)","v":0},{"$f":"SUMIFS(Sheet1!S71_OY1BudgetAmount,Sheet1!S71_SA34dCode,$AC:$AC,Sheet1!S71_DepCode,$AD:$AD)","v":0},{"$f":"SUMIFS(Sheet1!S71_OY2BudgetAmount,Sheet1!S71_SA34dCode,$AC:$AC,Sheet1!S71_DepCode,$AD:$AD)","v":0}]
["Zoological plants and animals"," ",{"$f":"SUMIFS(Sheet1!S71_PPPYearAmount,Sheet1!S71_SA34dCode,$AC:$AC,Sheet1!S71_DepCode,$AD:$AD)","v":0},{"$f":"SUMIFS(Sheet1!S71_PPYearAmount,Sheet1!S71_SA34dCode,$AC:$AC,Sheet1!S71_DepCode,$AD:$AD)","v":0},{"$f":"SUMIFS(Sheet1!S71_PYearAmount,Sheet1!S71_SA34dCode,$AC:$AC,Sheet1!S71_DepCode,$AD:$AD)","v":0},{"$f":"SUMIFS(Sheet1!S71_OriginalBudAmnt,Sheet1!S71_SA34dCode,$AC:$AC,Sheet1!S71_DepCode,$AD:$AD)","v":0},{"$f":"SUMIFS(Sheet1!S71_AdjustmentBudAmnt,Sheet1!S71_SA34dCode,$AC:$AC,Sheet1!S71_DepCode,$AD:$AD)","v":0},{"$f":"SUMIFS(Sheet1!S71_AdjustmentBudAmnt,Sheet1!S71_SA34dCode,$AC:$AC,Sheet1!S71_DepCode,$AD:$AD)","v":0},{"$f":"SUMIFS(Sheet1!S71_ASBudgetAmount,Sheet1!S71_SA34dCode,$AC:$AC,Sheet1!S71_DepCode,$AD:$AD)","v":0},{"$f":"SUMIFS(Sheet1!S71_OY1BudgetAmount,Sheet1!S71_SA34dCode,$AC:$AC,Sheet1!S71_DepCode,$AD:$AD)","v":0},{"$f":"SUMIFS(Sheet1!S71_OY2BudgetAmount,Sheet1!S71_SA34dCode,$AC:$AC,Sheet1!S71_DepCode,$AD:$AD)","v":0}]
["Immature"," ",{"$f":"SUM(C172:C173)","v":0},{"$f":"SUM(D172:D173)","v":0},0,0,0,0,0,0,0]
["Policing and Protection"," ",{"$f":"SUMIFS(Sheet1!S71_PPPYearAmount,Sheet1!S71_SA34dCode,$AC:$AC,Sheet1!S71_DepCode,$AD:$AD)","v":0},{"$f":"SUMIFS(Sheet1!S71_PPYearAmount,Sheet1!S71_SA34dCode,$AC:$AC,Sheet1!S71_DepCode,$AD:$AD)","v":0},{"$f":"SUMIFS(Sheet1!S71_PYearAmount,Sheet1!S71_SA34dCode,$AC:$AC,Sheet1!S71_DepCode,$AD:$AD)","v":0},{"$f":"SUMIFS(Sheet1!S71_OriginalBudAmnt,Sheet1!S71_SA34dCode,$AC:$AC,Sheet1!S71_DepCode,$AD:$AD)","v":0},{"$f":"SUMIFS(Sheet1!S71_AdjustmentBudAmnt,Sheet1!S71_SA34dCode,$AC:$AC,Sheet1!S71_DepCode,$AD:$AD)","v":0},{"$f":"SUMIFS(Sheet1!S71_AdjustmentBudAmnt,Sheet1!S71_SA34dCode,$AC:$AC,Sheet1!S71_DepCode,$AD:$AD)","v":0},{"$f":"SUMIFS(Sheet1!S71_ASBudgetAmount,Sheet1!S71_SA34dCode,$AC:$AC,Sheet1!S71_DepCode,$AD:$AD)","v":0},{"$f":"SUMIFS(Sheet1!S71_OY1BudgetAmount,Sheet1!S71_SA34dCode,$AC:$AC,Sheet1!S71_DepCode,$AD:$AD)","v":0},{"$f":"SUMIFS(Sheet1!S71_OY2BudgetAmount,Sheet1!S71_SA34dCode,$AC:$AC,Sheet1!S71_DepCode,$AD:$AD)","v":0}]
["Zoological plants and animals"," ",{"$f":"SUMIFS(Sheet1!S71_PPPYearAmount,Sheet1!S71_SA34dCode,$AC:$AC,Sheet1!S71_DepCode,$AD:$AD)","v":0},{"$f":"SUMIFS(Sheet1!S71_PPYearAmount,Sheet1!S71_SA34dCode,$AC:$AC,Sheet1!S71_DepCode,$AD:$AD)","v":0},{"$f":"SUMIFS(Sheet1!S71_PYearAmount,Sheet1!S71_SA34dCode,$AC:$AC,Sheet1!S71_DepCode,$AD:$AD)","v":0},{"$f":"SUMIFS(Sheet1!S71_OriginalBudAmnt,Sheet1!S71_SA34dCode,$AC:$AC,Sheet1!S71_DepCode,$AD:$AD)","v":0},{"$f":"SUMIFS(Sheet1!S71_AdjustmentBudAmnt,Sheet1!S71_SA34dCode,$AC:$AC,Sheet1!S71_DepCode,$AD:$AD)","v":0},{"$f":"SUMIFS(Sheet1!S71_AdjustmentBudAmnt,Sheet1!S71_SA34dCode,$AC:$AC,Sheet1!S71_DepCode,$AD:$AD)","v":0},{"$f":"SUMIFS(Sheet1!S71_ASBudgetAmount,Sheet1!S71_SA34dCode,$AC:$AC,Sheet1!S71_DepCode,$AD:$AD)","v":0},{"$f":"SUMIFS(Sheet1!S71_OY1BudgetAmount,Sheet1!S71_SA34dCode,$AC:$AC,Sheet1!S71_DepCode,$AD:$AD)","v":0},{"$f":"SUMIFS(Sheet1!S71_OY2BudgetAmount,Sheet1!S71_SA34dCode,$AC:$AC,Sheet1!S71_DepCode,$AD:$AD)","v":0}]
[""]
["Total Depreciation",1,{"$f":"C6+C74+C103+C110+C118+C136+C139+C149+C152+C155+C158+C161+C164+C167","v":85214519},{"$f":"D6+D74+D103+D110+D118+D136+D139+D149+D152+D155+D158+D161+D164+D167","v":90769641},96276758,91000000,91000000,91000000,95000000,96000000,97000000]
[]
[{"$f":"head27a","v":"References"}]
["1. Depreciation based on write down values. Not including Depreciation resulting from revaluation."]
[]
[]
["Check",null,{"$f":"C$175-'A4-FinPerf RE'!C$39","v":85214519},{"$f":"D$175-'A4-FinPerf RE'!D$39","v":-6314771},{"$f":"E$175-'A4-FinPerf RE'!E$39","v":-5686773},{"$f":"F$175-'A4-FinPerf RE'!F$39","v":0},{"$f":"G$175-'A4-FinPerf RE'!G$39","v":0},{"$f":"H$175-'A4-FinPerf RE'!H$39","v":0},{"$f":"I$175-'A4-FinPerf RE'!J$39","v":0},{"$f":"J$175-'A4-FinPerf RE'!K$39","v":0},{"$f":"K$175-'A4-FinPerf RE'!L$39","v":0}]

{"sheet":"SA34e","index":83,"n_rows":180,"n_cols":30,"rows_kept":180,"cut":false,"hidden":false,"merged":[[1,5,1,7],[1,8,1,10]]}
[{"$f":"muni&\" - \"&TableA34e","v":"LIM331 Greater Giyani - Supporting Table SA34e Capital expenditure on the upgrading of existing assets by asset class"}]
[{"$f":"desc","v":"Description"},{"$f":"head27","v":"Ref"},{"$f":"head1b","v":"2019/20"},{"$f":"head1A","v":"2020/21"},{"$f":"Head1","v":"2021/22"},{"$f":"Head2","v":"Current Year 2022/23"},null,null,{"$f":"Head3","v":"2023/24 Medium Term Revenue & Expenditure Framework"}]
["R thousand",1,{"$f":"Head5","v":"Audited Outcome"},{"$f":"Head5","v":"Audited Outcome"},{"$f":"Head5","v":"Audited Outcome"},{"$f":"Head6","v":"Original Budget"},{"$f":"Head7","v":"Adjusted Budget"},{"$f":"Head8","v":"Full Year Forecast"},{"$f":"Head9","v":"Budget Year 2023/24"},{"$f":"Head10","v":"Budget Year +1 2024/25"},{"$f":"Head11","v":"Budget Year +2 2025/26"}]
["Capital expenditure on upgrading of existing assets by Asset Class/Sub-class"]
[]
["Infrastructure",null,{"$f":"C7+C12+C16+C26+C37+C44+C52+C62+C68","v":3813666},{"$f":"D7+D12+D16+D26+D37+D44+D52+D62+D68","v":4181588},4181588,0,0,0,0,0,0]
["Roads Infrastructure",null,{"$f":"SUM(C8:C11)","v":3813666},4181588,4181588,0,0,0,0,0,0]
["Roads",null,{"$f":"SUMIFS(Sheet1!S71_PPPYearAmount,Sheet1!S71_SA34eCode,$AC:$AC,Sheet1!S71_A5CapexCode,$AD:$AD)","v":2608696},{"$f":"SUMIFS(Sheet1!S71_PPYearAmount,Sheet1!S71_SA34eCode,$AC:$AC,Sheet1!S71_A5CapexCode,$AD:$AD)","v":2976618},{"$f":"SUMIFS(Sheet1!S71_PYearAmount,Sheet1!S71_SA34eCode,$AC:$AC,Sheet1!S71_A5CapexCode,$AD:$AD)","v":2976618},{"$f":"SUMIFS(Sheet1!S71_OriginalBudAmnt,Sheet1!S71_SA34eCode,$AC:$AC,Sheet1!S71_A5CapexCode,$AD:$AD)","v":0},{"$f":"SUMIFS(Sheet1!S71_AdjustmentBudAmnt,Sheet1!S71_SA34eCode,$AC:$AC,Sheet1!S71_A5CapexCode,$AD:$AD)","v":0},{"$f":"SUMIFS(Sheet1!S71_AdjustmentBudAmnt,Sheet1!S71_SA34eCode,$AC:$AC,Sheet1!S71_A5CapexCode,$AD:$AD)","v":0},{"$f":"SUMIFS(Sheet1!S71_ASBudgetAmount,Sheet1!S71_SA34eCode,$AC:$AC,Sheet1!S71_A5CapexCode,$AD:$AD)","v":0},{"$f":"SUMIFS(Sheet1!S71_OY1BudgetAmount,Sheet1!S71_SA34eCode,$AC:$AC,Sheet1!S71_A5CapexCode,$AD:$AD)","v":0},{"$f":"SUMIFS(Sheet1!S71_OY2BudgetAmount,Sheet1!S71_SA34eCode,$AC:$AC,Sheet1!S71_A5CapexCode,$AD:$AD)","v":0},null,null,null,null,null,null,null,null,null,null,null,null,null,null,null,null,null,"0120","CE"]
["Road Structures",null,{"$f":"SUMIFS(Sheet1!S71_PPPYearAmount,Sheet1!S71_SA34eCode,$AC:$AC,Sheet1!S71_A5CapexCode,$AD:$AD)","v":0},{"$f":"SUMIFS(Sheet1!S71_PPYearAmount,Sheet1!S71_SA34eCode,$AC:$AC,Sheet1!S71_A5CapexCode,$AD:$AD)","v":0},{"$f":"SUMIFS(Sheet1!S71_PYearAmount,Sheet1!S71_SA34eCode,$AC:$AC,Sheet1!S71_A5CapexCode,$AD:$AD)","v":0},{"$f":"SUMIFS(Sheet1!S71_OriginalBudAmnt,Sheet1!S71_SA34eCode,$AC:$AC,Sheet1!S71_A5CapexCode,$AD:$AD)","v":0},{"$f":"SUMIFS(Sheet1!S71_AdjustmentBudAmnt,Sheet1!S71_SA34eCode,$AC:$AC,Sheet1!S71_A5CapexCode,$AD:$AD)","v":0},{"$f":"SUMIFS(Sheet1!S71_AdjustmentBudAmnt,Sheet1!S71_SA34eCode,$AC:$AC,Sheet1!S71_A5CapexCode,$AD:$AD)","v":0},{"$f":"SUMIFS(Sheet1!S71_ASBudgetAmount,Sheet1!S71_SA34eCode,$AC:$AC,Sheet1!S71_A5CapexCode,$AD:$AD)","v":0},{"$f":"SUMIFS(Sheet1!S71_OY1BudgetAmount,Sheet1!S71_SA34eCode,$AC:$AC,Sheet1!S71_A5CapexCode,$AD:$AD)","v":0},{"$f":"SUMIFS(Sheet1!S71_OY2BudgetAmount,Sheet1!S71_SA34eCode,$AC:$AC,Sheet1!S71_A5CapexCode,$AD:$AD)","v":0},null,null,null,null,null,null,null,null,null,null,null,null,null,null,null,null,null,"0130","CE"]
["Road Furniture",null,{"$f":"SUMIFS(Sheet1!S71_PPPYearAmount,Sheet1!S71_SA34eCode,$AC:$AC,Sheet1!S71_A5CapexCode,$AD:$AD)","v":1204970},{"$f":"SUMIFS(Sheet1!S71_PPYearAmount,Sheet1!S71_SA34eCode,$AC:$AC,Sheet1!S71_A5CapexCode,$AD:$AD)","v":1204970},{"$f":"SUMIFS(Sheet1!S71_PYearAmount,Sheet1!S71_SA34eCode,$AC:$AC,Sheet1!S71_A5CapexCode,$AD:$AD)","v":1204970},{"$f":"SUMIFS(Sheet1!S71_OriginalBudAmnt,Sheet1!S71_SA34eCode,$AC:$AC,Sheet1!S71_A5CapexCode,$AD:$AD)","v":0},{"$f":"SUMIFS(Sheet1!S71_AdjustmentBudAmnt,Sheet1!S71_SA34eCode,$AC:$AC,Sheet1!S71_A5CapexCode,$AD:$AD)","v":0},{"$f":"SUMIFS(Sheet1!S71_AdjustmentBudAmnt,Sheet1!S71_SA34eCode,$AC:$AC,Sheet1!S71_A5CapexCode,$AD:$AD)","v":0},{"$f":"SUMIFS(Sheet1!S71_ASBudgetAmount,Sheet1!S71_SA34eCode,$AC:$AC,Sheet1!S71_A5CapexCode,$AD:$AD)","v":0},{"$f":"SUMIFS(Sheet1!S71_OY1BudgetAmount,Sheet1!S71_SA34eCode,$AC:$AC,Sheet1!S71_A5CapexCode,$AD:$AD)","v":0},{"$f":"SUMIFS(Sheet1!S71_OY2BudgetAmount,Sheet1!S71_SA34eCode,$AC:$AC,Sheet1!S71_A5CapexCode,$AD:$AD)","v":0},null,null,null,null,null,null,null,null,null,null,null,null,null,null,null,null,null,"0140","CE"]
["Capital Spares",null,{"$f":"SUMIFS(Sheet1!S71_PPPYearAmount,Sheet1!S71_SA34eCode,$AC:$AC,Sheet1!S71_A5CapexCode,$AD:$AD)","v":0},{"$f":"SUMIFS(Sheet1!S71_PPYearAmount,Sheet1!S71_SA34eCode,$AC:$AC,Sheet1!S71_A5CapexCode,$AD:$AD)","v":0},{"$f":"SUMIFS(Sheet1!S71_PYearAmount,Sheet1!S71_SA34eCode,$AC:$AC,Sheet1!S71_A5CapexCode,$AD:$AD)","v":0},{"$f":"SUMIFS(Sheet1!S71_OriginalBudAmnt,Sheet1!S71_SA34eCode,$AC:$AC,Sheet1!S71_A5CapexCode,$AD:$AD)","v":0},{"$f":"SUMIFS(Sheet1!S71_AdjustmentBudAmnt,Sheet1!S71_SA34eCode,$AC:$AC,Sheet1!S71_A5CapexCode,$AD:$AD)","v":0},{"$f":"SUMIFS(Sheet1!S71_AdjustmentBudAmnt,Sheet1!S71_SA34eCode,$AC:$AC,Sheet1!S71_A5CapexCode,$AD:$AD)","v":0},{"$f":"SUMIFS(Sheet1!S71_ASBudgetAmount,Sheet1!S71_SA34eCode,$AC:$AC,Sheet1!S71_A5CapexCode,$AD:$AD)","v":0},{"$f":"SUMIFS(Sheet1!S71_OY1BudgetAmount,Sheet1!S71_SA34eCode,$AC:$AC,Sheet1!S71_A5CapexCode,$AD:$AD)","v":0},{"$f":"SUMIFS(Sheet1!S71_OY2BudgetAmount,Sheet1!S71_SA34eCode,$AC:$AC,Sheet1!S71_A5CapexCode,$AD:$AD)","v":0},null,null,null,null,null,null,null,null,null,null,null,null,null,null,null,null,null,"0150","CE"]
["Storm water Infrastructure",null,{"$f":"SUM(C13:C15)","v":0},{"$f":"SUM(D13:D15)","v":0},0,0,0,0,0,0,0,null,null,null,null,null,null,null,null,null,null,null,null,null,null,null,null,null,null,"CE"]
["Drainage Collection",null,{"$f":"SUMIFS(Sheet1!S71_PPPYearAmount,Sheet1!S71_SA34eCode,$AC:$AC,Sheet1!S71_A5CapexCode,$AD:$AD)","v":0},{"$f":"SUMIFS(Sheet1!S71_PPYearAmount,Sheet1!S71_SA34eCode,$AC:$AC,Sheet1!S71_A5CapexCode,$AD:$AD)","v":0},{"$f":"SUMIFS(Sheet1!S71_PYearAmount,Sheet1!S71_SA34eCode,$AC:$AC,Sheet1!S71_A5CapexCode,$AD:$AD)","v":0},{"$f":"SUMIFS(Sheet1!S71_OriginalBudAmnt,Sheet1!S71_SA34eCode,$AC:$AC,Sheet1!S71_A5CapexCode,$AD:$AD)","v":0},{"$f":"SUMIFS(Sheet1!S71_AdjustmentBudAmnt,Sheet1!S71_SA34eCode,$AC:$AC,Sheet1!S71_A5CapexCode,$AD:$AD)","v":0},{"$f":"SUMIFS(Sheet1!S71_AdjustmentBudAmnt,Sheet1!S71_SA34eCode,$AC:$AC,Sheet1!S71_A5CapexCode,$AD:$AD)","v":0},{"$f":"SUMIFS(Sheet1!S71_ASBudgetAmount,Sheet1!S71_SA34eCode,$AC:$AC,Sheet1!S71_A5CapexCode,$AD:$AD)","v":0},{"$f":"SUMIFS(Sheet1!S71_OY1BudgetAmount,Sheet1!S71_SA34eCode,$AC:$AC,Sheet1!S71_A5CapexCode,$AD:$AD)","v":0},{"$f":"SUMIFS(Sheet1!S71_OY2BudgetAmount,Sheet1!S71_SA34eCode,$AC:$AC,Sheet1!S71_A5CapexCode,$AD:$AD)","v":0},null,null,null,null,null,null,null,null,null,null,null,null,null,null,null,null,null,"0170","CE"]
["Storm water Conveyance",null,{"$f":"SUMIFS(Sheet1!S71_PPPYearAmount,Sheet1!S71_SA34eCode,$AC:$AC,Sheet1!S71_A5CapexCode,$AD:$AD)","v":0},{"$f":"SUMIFS(Sheet1!S71_PPYearAmount,Sheet1!S71_SA34eCode,$AC:$AC,Sheet1!S71_A5CapexCode,$AD:$AD)","v":0},{"$f":"SUMIFS(Sheet1!S71_PYearAmount,Sheet1!S71_SA34eCode,$AC:$AC,Sheet1!S71_A5CapexCode,$AD:$AD)","v":0},{"$f":"SUMIFS(Sheet1!S71_OriginalBudAmnt,Sheet1!S71_SA34eCode,$AC:$AC,Sheet1!S71_A5CapexCode,$AD:$AD)","v":0},{"$f":"SUMIFS(Sheet1!S71_AdjustmentBudAmnt,Sheet1!S71_SA34eCode,$AC:$AC,Sheet1!S71_A5CapexCode,$AD:$AD)","v":0},{"$f":"SUMIFS(Sheet1!S71_AdjustmentBudAmnt,Sheet1!S71_SA34eCode,$AC:$AC,Sheet1!S71_A5CapexCode,$AD:$AD)","v":0},{"$f":"SUMIFS(Sheet1!S71_ASBudgetAmount,Sheet1!S71_SA34eCode,$AC:$AC,Sheet1!S71_A5CapexCode,$AD:$AD)","v":0},{"$f":"SUMIFS(Sheet1!S71_OY1BudgetAmount,Sheet1!S71_SA34eCode,$AC:$AC,Sheet1!S71_A5CapexCode,$AD:$AD)","v":0},{"$f":"SUMIFS(Sheet1!S71_OY2BudgetAmount,Sheet1!S71_SA34eCode,$AC:$AC,Sheet1!S71_A5CapexCode,$AD:$AD)","v":0},null,null,null,null,null,null,null,null,null,null,null,null,null,null,null,null,null,"0180","CE"]
["Attenuation",null,{"$f":"SUMIFS(Sheet1!S71_PPPYearAmount,Sheet1!S71_SA34eCode,$AC:$AC,Sheet1!S71_A5CapexCode,$AD:$AD)","v":0},{"$f":"SUMIFS(Sheet1!S71_PPYearAmount,Sheet1!S71_SA34eCode,$AC:$AC,Sheet1!S71_A5CapexCode,$AD:$AD)","v":0},{"$f":"SUMIFS(Sheet1!S71_PYearAmount,Sheet1!S71_SA34eCode,$AC:$AC,Sheet1!S71_A5CapexCode,$AD:$AD)","v":0},{"$f":"SUMIFS(Sheet1!S71_OriginalBudAmnt,Sheet1!S71_SA34eCode,$AC:$AC,Sheet1!S71_A5CapexCode,$AD:$AD)","v":0},{"$f":"SUMIFS(Sheet1!S71_AdjustmentBudAmnt,Sheet1!S71_SA34eCode,$AC:$AC,Sheet1!S71_A5CapexCode,$AD:$AD)","v":0},{"$f":"SUMIFS(Sheet1!S71_AdjustmentBudAmnt,Sheet1!S71_SA34eCode,$AC:$AC,Sheet1!S71_A5CapexCode,$AD:$AD)","v":0},{"$f":"SUMIFS(Sheet1!S71_ASBudgetAmount,Sheet1!S71_SA34eCode,$AC:$AC,Sheet1!S71_A5CapexCode,$AD:$AD)","v":0},{"$f":"SUMIFS(Sheet1!S71_OY1BudgetAmount,Sheet1!S71_SA34eCode,$AC:$AC,Sheet1!S71_A5CapexCode,$AD:$AD)","v":0},{"$f":"SUMIFS(Sheet1!S71_OY2BudgetAmount,Sheet1!S71_SA34eCode,$AC:$AC,Sheet1!S71_A5CapexCode,$AD:$AD)","v":0},null,null,null,null,null,null,null,null,null,null,null,null,null,null,null,null,null,"0190","CE"]
["Electrical Infrastructure",null,{"$f":"SUM(C17:C25)","v":0},0,0,0,0,0,0,0,0,null,null,null,null,null,null,null,null,null,null,null,null,null,null,null,null,null,null,"CE"]
["Power Plants",null,{"$f":"SUMIFS(Sheet1!S71_PPPYearAmount,Sheet1!S71_SA34eCode,$AC:$AC,Sheet1!S71_A5CapexCode,$AD:$AD)","v":0},{"$f":"SUMIFS(Sheet1!S71_PPYearAmount,Sheet1!S71_SA34eCode,$AC:$AC,Sheet1!S71_A5CapexCode,$AD:$AD)","v":0},{"$f":"SUMIFS(Sheet1!S71_PYearAmount,Sheet1!S71_SA34eCode,$AC:$AC,Sheet1!S71_A5CapexCode,$AD:$AD)","v":0},{"$f":"SUMIFS(Sheet1!S71_OriginalBudAmnt,Sheet1!S71_SA34eCode,$AC:$AC,Sheet1!S71_A5CapexCode,$AD:$AD)","v":0},{"$f":"SUMIFS(Sheet1!S71_AdjustmentBudAmnt,Sheet1!S71_SA34eCode,$AC:$AC,Sheet1!S71_A5CapexCode,$AD:$AD)","v":0},{"$f":"SUMIFS(Sheet1!S71_AdjustmentBudAmnt,Sheet1!S71_SA34eCode,$AC:$AC,Sheet1!S71_A5CapexCode,$AD:$AD)","v":0},{"$f":"SUMIFS(Sheet1!S71_ASBudgetAmount,Sheet1!S71_SA34eCode,$AC:$AC,Sheet1!S71_A5CapexCode,$AD:$AD)","v":0},{"$f":"SUMIFS(Sheet1!S71_OY1BudgetAmount,Sheet1!S71_SA34eCode,$AC:$AC,Sheet1!S71_A5CapexCode,$AD:$AD)","v":0},{"$f":"SUMIFS(Sheet1!S71_OY2BudgetAmount,Sheet1!S71_SA34eCode,$AC:$AC,Sheet1!S71_A5CapexCode,$AD:$AD)","v":0},null,null,null,null,null,null,null,null,null,null,null,null,null,null,null,null,null,"0210","CE"]
["HV Substations",null,{"$f":"SUMIFS(Sheet1!S71_PPPYearAmount,Sheet1!S71_SA34eCode,$AC:$AC,Sheet1!S71_A5CapexCode,$AD:$AD)","v":0},{"$f":"SUMIFS(Sheet1!S71_PPYearAmount,Sheet1!S71_SA34eCode,$AC:$AC,Sheet1!S71_A5CapexCode,$AD:$AD)","v":0},{"$f":"SUMIFS(Sheet1!S71_PYearAmount,Sheet1!S71_SA34eCode,$AC:$AC,Sheet1!S71_A5CapexCode,$AD:$AD)","v":0},{"$f":"SUMIFS(Sheet1!S71_OriginalBudAmnt,Sheet1!S71_SA34eCode,$AC:$AC,Sheet1!S71_A5CapexCode,$AD:$AD)","v":0},{"$f":"SUMIFS(Sheet1!S71_AdjustmentBudAmnt,Sheet1!S71_SA34eCode,$AC:$AC,Sheet1!S71_A5CapexCode,$AD:$AD)","v":0},{"$f":"SUMIFS(Sheet1!S71_AdjustmentBudAmnt,Sheet1!S71_SA34eCode,$AC:$AC,Sheet1!S71_A5CapexCode,$AD:$AD)","v":0},{"$f":"SUMIFS(Sheet1!S71_ASBudgetAmount,Sheet1!S71_SA34eCode,$AC:$AC,Sheet1!S71_A5CapexCode,$AD:$AD)","v":0},{"$f":"SUMIFS(Sheet1!S71_OY1BudgetAmount,Sheet1!S71_SA34eCode,$AC:$AC,Sheet1!S71_A5CapexCode,$AD:$AD)","v":0},{"$f":"SUMIFS(Sheet1!S71_OY2BudgetAmount,Sheet1!S71_SA34eCode,$AC:$AC,Sheet1!S71_A5CapexCode,$AD:$AD)","v":0},null,null,null,null,null,null,null,null,null,null,null,null,null,null,null,null,null,"0220","CE"]
["HV Switching Station",null,{"$f":"SUMIFS(Sheet1!S71_PPPYearAmount,Sheet1!S71_SA34eCode,$AC:$AC,Sheet1!S71_A5CapexCode,$AD:$AD)","v":0},{"$f":"SUMIFS(Sheet1!S71_PPYearAmount,Sheet1!S71_SA34eCode,$AC:$AC,Sheet1!S71_A5CapexCode,$AD:$AD)","v":0},{"$f":"SUMIFS(Sheet1!S71_PYearAmount,Sheet1!S71_SA34eCode,$AC:$AC,Sheet1!S71_A5CapexCode,$AD:$AD)","v":0},{"$f":"SUMIFS(Sheet1!S71_OriginalBudAmnt,Sheet1!S71_SA34eCode,$AC:$AC,Sheet1!S71_A5CapexCode,$AD:$AD)","v":0},{"$f":"SUMIFS(Sheet1!S71_AdjustmentBudAmnt,Sheet1!S71_SA34eCode,$AC:$AC,Sheet1!S71_A5CapexCode,$AD:$AD)","v":0},{"$f":"SUMIFS(Sheet1!S71_AdjustmentBudAmnt,Sheet1!S71_SA34eCode,$AC:$AC,Sheet1!S71_A5CapexCode,$AD:$AD)","v":0},{"$f":"SUMIFS(Sheet1!S71_ASBudgetAmount,Sheet1!S71_SA34eCode,$AC:$AC,Sheet1!S71_A5CapexCode,$AD:$AD)","v":0},{"$f":"SUMIFS(Sheet1!S71_OY1BudgetAmount,Sheet1!S71_SA34eCode,$AC:$AC,Sheet1!S71_A5CapexCode,$AD:$AD)","v":0},{"$f":"SUMIFS(Sheet1!S71_OY2BudgetAmount,Sheet1!S71_SA34eCode,$AC:$AC,Sheet1!S71_A5CapexCode,$AD:$AD)","v":0},null,null,null,null,null,null,null,null,null,null,null,null,null,null,null,null,null,"0230","CE"]
["HV Transmission Conductors",null,{"$f":"SUMIFS(Sheet1!S71_PPPYearAmount,Sheet1!S71_SA34eCode,$AC:$AC,Sheet1!S71_A5CapexCode,$AD:$AD)","v":0},{"$f":"SUMIFS(Sheet1!S71_PPYearAmount,Sheet1!S71_SA34eCode,$AC:$AC,Sheet1!S71_A5CapexCode,$AD:$AD)","v":0},{"$f":"SUMIFS(Sheet1!S71_PYearAmount,Sheet1!S71_SA34eCode,$AC:$AC,Sheet1!S71_A5CapexCode,$AD:$AD)","v":0},{"$f":"SUMIFS(Sheet1!S71_OriginalBudAmnt,Sheet1!S71_SA34eCode,$AC:$AC,Sheet1!S71_A5CapexCode,$AD:$AD)","v":0},{"$f":"SUMIFS(Sheet1!S71_AdjustmentBudAmnt,Sheet1!S71_SA34eCode,$AC:$AC,Sheet1!S71_A5CapexCode,$AD:$AD)","v":0},{"$f":"SUMIFS(Sheet1!S71_AdjustmentBudAmnt,Sheet1!S71_SA34eCode,$AC:$AC,Sheet1!S71_A5CapexCode,$AD:$AD)","v":0},{"$f":"SUMIFS(Sheet1!S71_ASBudgetAmount,Sheet1!S71_SA34eCode,$AC:$AC,Sheet1!S71_A5CapexCode,$AD:$AD)","v":0},{"$f":"SUMIFS(Sheet1!S71_OY1BudgetAmount,Sheet1!S71_SA34eCode,$AC:$AC,Sheet1!S71_A5CapexCode,$AD:$AD)","v":0},{"$f":"SUMIFS(Sheet1!S71_OY2BudgetAmount,Sheet1!S71_SA34eCode,$AC:$AC,Sheet1!S71_A5CapexCode,$AD:$AD)","v":0},null,null,null,null,null,null,null,null,null,null,null,null,null,null,null,null,null,"0240","CE"]
["MV Substations",null,{"$f":"SUMIFS(Sheet1!S71_PPPYearAmount,Sheet1!S71_SA34eCode,$AC:$AC,Sheet1!S71_A5CapexCode,$AD:$AD)","v":0},{"$f":"SUMIFS(Sheet1!S71_PPYearAmount,Sheet1!S71_SA34eCode,$AC:$AC,Sheet1!S71_A5CapexCode,$AD:$AD)","v":0},{"$f":"SUMIFS(Sheet1!S71_PYearAmount,Sheet1!S71_SA34eCode,$AC:$AC,Sheet1!S71_A5CapexCode,$AD:$AD)","v":0},{"$f":"SUMIFS(Sheet1!S71_OriginalBudAmnt,Sheet1!S71_SA34eCode,$AC:$AC,Sheet1!S71_A5CapexCode,$AD:$AD)","v":0},{"$f":"SUMIFS(Sheet1!S71_AdjustmentBudAmnt,Sheet1!S71_SA34eCode,$AC:$AC,Sheet1!S71_A5CapexCode,$AD:$AD)","v":0},{"$f":"SUMIFS(Sheet1!S71_AdjustmentBudAmnt,Sheet1!S71_SA34eCode,$AC:$AC,Sheet1!S71_A5CapexCode,$AD:$AD)","v":0},{"$f":"SUMIFS(Sheet1!S71_ASBudgetAmount,Sheet1!S71_SA34eCode,$AC:$AC,Sheet1!S71_A5CapexCode,$AD:$AD)","v":0},{"$f":"SUMIFS(Sheet1!S71_OY1BudgetAmount,Sheet1!S71_SA34eCode,$AC:$AC,Sheet1!S71_A5CapexCode,$AD:$AD)","v":0},{"$f":"SUMIFS(Sheet1!S71_OY2BudgetAmount,Sheet1!S71_SA34eCode,$AC:$AC,Sheet1!S71_A5CapexCode,$AD:$AD)","v":0},null,null,null,null,null,null,null,null,null,null,null,null,null,null,null,null,null,"0250","CE"]
["MV Switching Stations",null,{"$f":"SUMIFS(Sheet1!S71_PPPYearAmount,Sheet1!S71_SA34eCode,$AC:$AC,Sheet1!S71_A5CapexCode,$AD:$AD)","v":0},{"$f":"SUMIFS(Sheet1!S71_PPYearAmount,Sheet1!S71_SA34eCode,$AC:$AC,Sheet1!S71_A5CapexCode,$AD:$AD)","v":0},{"$f":"SUMIFS(Sheet1!S71_PYearAmount,Sheet1!S71_SA34eCode,$AC:$AC,Sheet1!S71_A5CapexCode,$AD:$AD)","v":0},{"$f":"SUMIFS(Sheet1!S71_OriginalBudAmnt,Sheet1!S71_SA34eCode,$AC:$AC,Sheet1!S71_A5CapexCode,$AD:$AD)","v":0},{"$f":"SUMIFS(Sheet1!S71_AdjustmentBudAmnt,Sheet1!S71_SA34eCode,$AC:$AC,Sheet1!S71_A5CapexCode,$AD:$AD)","v":0},{"$f":"SUMIFS(Sheet1!S71_AdjustmentBudAmnt,Sheet1!S71_SA34eCode,$AC:$AC,Sheet1!S71_A5CapexCode,$AD:$AD)","v":0},{"$f":"SUMIFS(Sheet1!S71_ASBudgetAmount,Sheet1!S71_SA34eCode,$AC:$AC,Sheet1!S71_A5CapexCode,$AD:$AD)","v":0},{"$f":"SUMIFS(Sheet1!S71_OY1BudgetAmount,Sheet1!S71_SA34eCode,$AC:$AC,Sheet1!S71_A5CapexCode,$AD:$AD)","v":0},{"$f":"SUMIFS(Sheet1!S71_OY2BudgetAmount,Sheet1!S71_SA34eCode,$AC:$AC,Sheet1!S71_A5CapexCode,$AD:$AD)","v":0},null,null,null,null,null,null,null,null,null,null,null,null,null,null,null,null,null,"0260","CE"]
["MV Networks",null,{"$f":"SUMIFS(Sheet1!S71_PPPYearAmount,Sheet1!S71_SA34eCode,$AC:$AC,Sheet1!S71_A5CapexCode,$AD:$AD)","v":0},{"$f":"SUMIFS(Sheet1!S71_PPYearAmount,Sheet1!S71_SA34eCode,$AC:$AC,Sheet1!S71_A5CapexCode,$AD:$AD)","v":0},{"$f":"SUMIFS(Sheet1!S71_PYearAmount,Sheet1!S71_SA34eCode,$AC:$AC,Sheet1!S71_A5CapexCode,$AD:$AD)","v":0},{"$f":"SUMIFS(Sheet1!S71_OriginalBudAmnt,Sheet1!S71_SA34eCode,$AC:$AC,Sheet1!S71_A5CapexCode,$AD:$AD)","v":0},{"$f":"SUMIFS(Sheet1!S71_AdjustmentBudAmnt,Sheet1!S71_SA34eCode,$AC:$AC,Sheet1!S71_A5CapexCode,$AD:$AD)","v":0},{"$f":"SUMIFS(Sheet1!S71_AdjustmentBudAmnt,Sheet1!S71_SA34eCode,$AC:$AC,Sheet1!S71_A5CapexCode,$AD:$AD)","v":0},{"$f":"SUMIFS(Sheet1!S71_ASBudgetAmount,Sheet1!S71_SA34eCode,$AC:$AC,Sheet1!S71_A5CapexCode,$AD:$AD)","v":0},{"$f":"SUMIFS(Sheet1!S71_OY1BudgetAmount,Sheet1!S71_SA34eCode,$AC:$AC,Sheet1!S71_A5CapexCode,$AD:$AD)","v":0},{"$f":"SUMIFS(Sheet1!S71_OY2BudgetAmount,Sheet1!S71_SA34eCode,$AC:$AC,Sheet1!S71_A5CapexCode,$AD:$AD)","v":0},null,null,null,null,null,null,null,null,null,null,null,null,null,null,null,null,null,"0270","CE"]
["LV Networks",null,{"$f":"SUMIFS(Sheet1!S71_PPPYearAmount,Sheet1!S71_SA34eCode,$AC:$AC,Sheet1!S71_A5CapexCode,$AD:$AD)","v":0},{"$f":"SUMIFS(Sheet1!S71_PPYearAmount,Sheet1!S71_SA34eCode,$AC:$AC,Sheet1!S71_A5CapexCode,$AD:$AD)","v":0},{"$f":"SUMIFS(Sheet1!S71_PYearAmount,Sheet1!S71_SA34eCode,$AC:$AC,Sheet1!S71_A5CapexCode,$AD:$AD)","v":0},{"$f":"SUMIFS(Sheet1!S71_OriginalBudAmnt,Sheet1!S71_SA34eCode,$AC:$AC,Sheet1!S71_A5CapexCode,$AD:$AD)","v":0},{"$f":"SUMIFS(Sheet1!S71_AdjustmentBudAmnt,Sheet1!S71_SA34eCode,$AC:$AC,Sheet1!S71_A5CapexCode,$AD:$AD)","v":0},{"$f":"SUMIFS(Sheet1!S71_AdjustmentBudAmnt,Sheet1!S71_SA34eCode,$AC:$AC,Sheet1!S71_A5CapexCode,$AD:$AD)","v":0},{"$f":"SUMIFS(Sheet1!S71_ASBudgetAmount,Sheet1!S71_SA34eCode,$AC:$AC,Sheet1!S71_A5CapexCode,$AD:$AD)","v":0},{"$f":"SUMIFS(Sheet1!S71_OY1BudgetAmount,Sheet1!S71_SA34eCode,$AC:$AC,Sheet1!S71_A5CapexCode,$AD:$AD)","v":0},{"$f":"SUMIFS(Sheet1!S71_OY2BudgetAmount,Sheet1!S71_SA34eCode,$AC:$AC,Sheet1!S71_A5CapexCode,$AD:$AD)","v":0},null,null,null,null,null,null,null,null,null,null,null,null,null,null,null,null,null,"0280","CE"]
["Capital Spares",null,{"$f":"SUMIFS(Sheet1!S71_PPPYearAmount,Sheet1!S71_SA34eCode,$AC:$AC,Sheet1!S71_A5CapexCode,$AD:$AD)","v":0},{"$f":"SUMIFS(Sheet1!S71_PPYearAmount,Sheet1!S71_SA34eCode,$AC:$AC,Sheet1!S71_A5CapexCode,$AD:$AD)","v":0},{"$f":"SUMIFS(Sheet1!S71_PYearAmount,Sheet1!S71_SA34eCode,$AC:$AC,Sheet1!S71_A5CapexCode,$AD:$AD)","v":0},{"$f":"SUMIFS(Sheet1!S71_OriginalBudAmnt,Sheet1!S71_SA34eCode,$AC:$AC,Sheet1!S71_A5CapexCode,$AD:$AD)","v":0},{"$f":"SUMIFS(Sheet1!S71_AdjustmentBudAmnt,Sheet1!S71_SA34eCode,$AC:$AC,Sheet1!S71_A5CapexCode,$AD:$AD)","v":0},{"$f":"SUMIFS(Sheet1!S71_AdjustmentBudAmnt,Sheet1!S71_SA34eCode,$AC:$AC,Sheet1!S71_A5CapexCode,$AD:$AD)","v":0},{"$f":"SUMIFS(Sheet1!S71_ASBudgetAmount,Sheet1!S71_SA34eCode,$AC:$AC,Sheet1!S71_A5CapexCode,$AD:$AD)","v":0},{"$f":"SUMIFS(Sheet1!S71_OY1BudgetAmount,Sheet1!S71_SA34eCode,$AC:$AC,Sheet1!S71_A5CapexCode,$AD:$AD)","v":0},{"$f":"SUMIFS(Sheet1!S71_OY2BudgetAmount,Sheet1!S71_SA34eCode,$AC:$AC,Sheet1!S71_A5CapexCode,$AD:$AD)","v":0},null,null,null,null,null,null,null,null,null,null,null,null,null,null,null,null,null,"0290","CE"]
["Water Supply Infrastructure",null,{"$f":"SUM(C27:C36)","v":0},{"$f":"SUM(D27:D36)","v":0},0,0,0,0,0,0,0,null,null,null,null,null,null,null,null,null,null,null,null,null,null,null,null,null,null,"CE"]
["Dams and Weirs",null,{"$f":"SUMIFS(Sheet1!S71_PPPYearAmount,Sheet1!S71_SA34eCode,$AC:$AC,Sheet1!S71_A5CapexCode,$AD:$AD)","v":0},{"$f":"SUMIFS(Sheet1!S71_PPYearAmount,Sheet1!S71_SA34eCode,$AC:$AC,Sheet1!S71_A5CapexCode,$AD:$AD)","v":0},{"$f":"SUMIFS(Sheet1!S71_PYearAmount,Sheet1!S71_SA34eCode,$AC:$AC,Sheet1!S71_A5CapexCode,$AD:$AD)","v":0},{"$f":"SUMIFS(Sheet1!S71_OriginalBudAmnt,Sheet1!S71_SA34eCode,$AC:$AC,Sheet1!S71_A5CapexCode,$AD:$AD)","v":0},{"$f":"SUMIFS(Sheet1!S71_AdjustmentBudAmnt,Sheet1!S71_SA34eCode,$AC:$AC,Sheet1!S71_A5CapexCode,$AD:$AD)","v":0},{"$f":"SUMIFS(Sheet1!S71_AdjustmentBudAmnt,Sheet1!S71_SA34eCode,$AC:$AC,Sheet1!S71_A5CapexCode,$AD:$AD)","v":0},{"$f":"SUMIFS(Sheet1!S71_ASBudgetAmount,Sheet1!S71_SA34eCode,$AC:$AC,Sheet1!S71_A5CapexCode,$AD:$AD)","v":0},{"$f":"SUMIFS(Sheet1!S71_OY1BudgetAmount,Sheet1!S71_SA34eCode,$AC:$AC,Sheet1!S71_A5CapexCode,$AD:$AD)","v":0},{"$f":"SUMIFS(Sheet1!S71_OY2BudgetAmount,Sheet1!S71_SA34eCode,$AC:$AC,Sheet1!S71_A5CapexCode,$AD:$AD)","v":0},null,null,null,null,null,null,null,null,null,null,null,null,null,null,null,null,null,"0310","CE"]
["Boreholes",null,{"$f":"SUMIFS(Sheet1!S71_PPPYearAmount,Sheet1!S71_SA34eCode,$AC:$AC,Sheet1!S71_A5CapexCode,$AD:$AD)","v":0},{"$f":"SUMIFS(Sheet1!S71_PPYearAmount,Sheet1!S71_SA34eCode,$AC:$AC,Sheet1!S71_A5CapexCode,$AD:$AD)","v":0},{"$f":"SUMIFS(Sheet1!S71_PYearAmount,Sheet1!S71_SA34eCode,$AC:$AC,Sheet1!S71_A5CapexCode,$AD:$AD)","v":0},{"$f":"SUMIFS(Sheet1!S71_OriginalBudAmnt,Sheet1!S71_SA34eCode,$AC:$AC,Sheet1!S71_A5CapexCode,$AD:$AD)","v":0},{"$f":"SUMIFS(Sheet1!S71_AdjustmentBudAmnt,Sheet1!S71_SA34eCode,$AC:$AC,Sheet1!S71_A5CapexCode,$AD:$AD)","v":0},{"$f":"SUMIFS(Sheet1!S71_AdjustmentBudAmnt,Sheet1!S71_SA34eCode,$AC:$AC,Sheet1!S71_A5CapexCode,$AD:$AD)","v":0},{"$f":"SUMIFS(Sheet1!S71_ASBudgetAmount,Sheet1!S71_SA34eCode,$AC:$AC,Sheet1!S71_A5CapexCode,$AD:$AD)","v":0},{"$f":"SUMIFS(Sheet1!S71_OY1BudgetAmount,Sheet1!S71_SA34eCode,$AC:$AC,Sheet1!S71_A5CapexCode,$AD:$AD)","v":0},{"$f":"SUMIFS(Sheet1!S71_OY2BudgetAmount,Sheet1!S71_SA34eCode,$AC:$AC,Sheet1!S71_A5CapexCode,$AD:$AD)","v":0},null,null,null,null,null,null,null,null,null,null,null,null,null,null,null,null,null,"0320","CE"]
["Reservoirs",null,{"$f":"SUMIFS(Sheet1!S71_PPPYearAmount,Sheet1!S71_SA34eCode,$AC:$AC,Sheet1!S71_A5CapexCode,$AD:$AD)","v":0},{"$f":"SUMIFS(Sheet1!S71_PPYearAmount,Sheet1!S71_SA34eCode,$AC:$AC,Sheet1!S71_A5CapexCode,$AD:$AD)","v":0},{"$f":"SUMIFS(Sheet1!S71_PYearAmount,Sheet1!S71_SA34eCode,$AC:$AC,Sheet1!S71_A5CapexCode,$AD:$AD)","v":0},{"$f":"SUMIFS(Sheet1!S71_OriginalBudAmnt,Sheet1!S71_SA34eCode,$AC:$AC,Sheet1!S71_A5CapexCode,$AD:$AD)","v":0},{"$f":"SUMIFS(Sheet1!S71_AdjustmentBudAmnt,Sheet1!S71_SA34eCode,$AC:$AC,Sheet1!S71_A5CapexCode,$AD:$AD)","v":0},{"$f":"SUMIFS(Sheet1!S71_AdjustmentBudAmnt,Sheet1!S71_SA34eCode,$AC:$AC,Sheet1!S71_A5CapexCode,$AD:$AD)","v":0},{"$f":"SUMIFS(Sheet1!S71_ASBudgetAmount,Sheet1!S71_SA34eCode,$AC:$AC,Sheet1!S71_A5CapexCode,$AD:$AD)","v":0},{"$f":"SUMIFS(Sheet1!S71_OY1BudgetAmount,Sheet1!S71_SA34eCode,$AC:$AC,Sheet1!S71_A5CapexCode,$AD:$AD)","v":0},{"$f":"SUMIFS(Sheet1!S71_OY2BudgetAmount,Sheet1!S71_SA34eCode,$AC:$AC,Sheet1!S71_A5CapexCode,$AD:$AD)","v":0},null,null,null,null,null,null,null,null,null,null,null,null,null,null,null,null,null,"0330","CE"]
["Pump Stations",null,{"$f":"SUMIFS(Sheet1!S71_PPPYearAmount,Sheet1!S71_SA34eCode,$AC:$AC,Sheet1!S71_A5CapexCode,$AD:$AD)","v":0},{"$f":"SUMIFS(Sheet1!S71_PPYearAmount,Sheet1!S71_SA34eCode,$AC:$AC,Sheet1!S71_A5CapexCode,$AD:$AD)","v":0},{"$f":"SUMIFS(Sheet1!S71_PYearAmount,Sheet1!S71_SA34eCode,$AC:$AC,Sheet1!S71_A5CapexCode,$AD:$AD)","v":0},{"$f":"SUMIFS(Sheet1!S71_OriginalBudAmnt,Sheet1!S71_SA34eCode,$AC:$AC,Sheet1!S71_A5CapexCode,$AD:$AD)","v":0},{"$f":"SUMIFS(Sheet1!S71_AdjustmentBudAmnt,Sheet1!S71_SA34eCode,$AC:$AC,Sheet1!S71_A5CapexCode,$AD:$AD)","v":0},{"$f":"SUMIFS(Sheet1!S71_AdjustmentBudAmnt,Sheet1!S71_SA34eCode,$AC:$AC,Sheet1!S71_A5CapexCode,$AD:$AD)","v":0},{"$f":"SUMIFS(Sheet1!S71_ASBudgetAmount,Sheet1!S71_SA34eCode,$AC:$AC,Sheet1!S71_A5CapexCode,$AD:$AD)","v":0},{"$f":"SUMIFS(Sheet1!S71_OY1BudgetAmount,Sheet1!S71_SA34eCode,$AC:$AC,Sheet1!S71_A5CapexCode,$AD:$AD)","v":0},{"$f":"SUMIFS(Sheet1!S71_OY2BudgetAmount,Sheet1!S71_SA34eCode,$AC:$AC,Sheet1!S71_A5CapexCode,$AD:$AD)","v":0},null,null,null,null,null,null,null,null,null,null,null,null,null,null,null,null,null,"0340","CE"]
["Water Treatment Works",null,{"$f":"SUMIFS(Sheet1!S71_PPPYearAmount,Sheet1!S71_SA34eCode,$AC:$AC,Sheet1!S71_A5CapexCode,$AD:$AD)","v":0},{"$f":"SUMIFS(Sheet1!S71_PPYearAmount,Sheet1!S71_SA34eCode,$AC:$AC,Sheet1!S71_A5CapexCode,$AD:$AD)","v":0},{"$f":"SUMIFS(Sheet1!S71_PYearAmount,Sheet1!S71_SA34eCode,$AC:$AC,Sheet1!S71_A5CapexCode,$AD:$AD)","v":0},{"$f":"SUMIFS(Sheet1!S71_OriginalBudAmnt,Sheet1!S71_SA34eCode,$AC:$AC,Sheet1!S71_A5CapexCode,$AD:$AD)","v":0},{"$f":"SUMIFS(Sheet1!S71_AdjustmentBudAmnt,Sheet1!S71_SA34eCode,$AC:$AC,Sheet1!S71_A5CapexCode,$AD:$AD)","v":0},{"$f":"SUMIFS(Sheet1!S71_AdjustmentBudAmnt,Sheet1!S71_SA34eCode,$AC:$AC,Sheet1!S71_A5CapexCode,$AD:$AD)","v":0},{"$f":"SUMIFS(Sheet1!S71_ASBudgetAmount,Sheet1!S71_SA34eCode,$AC:$AC,Sheet1!S71_A5CapexCode,$AD:$AD)","v":0},{"$f":"SUMIFS(Sheet1!S71_OY1BudgetAmount,Sheet1!S71_SA34eCode,$AC:$AC,Sheet1!S71_A5CapexCode,$AD:$AD)","v":0},{"$f":"SUMIFS(Sheet1!S71_OY2BudgetAmount,Sheet1!S71_SA34eCode,$AC:$AC,Sheet1!S71_A5CapexCode,$AD:$AD)","v":0},null,null,null,null,null,null,null,null,null,null,null,null,null,null,null,null,null,"0350","CE"]
["Bulk Mains",null,{"$f":"SUMIFS(Sheet1!S71_PPPYearAmount,Sheet1!S71_SA34eCode,$AC:$AC,Sheet1!S71_A5CapexCode,$AD:$AD)","v":0},{"$f":"SUMIFS(Sheet1!S71_PPYearAmount,Sheet1!S71_SA34eCode,$AC:$AC,Sheet1!S71_A5CapexCode,$AD:$AD)","v":0},{"$f":"SUMIFS(Sheet1!S71_PYearAmount,Sheet1!S71_SA34eCode,$AC:$AC,Sheet1!S71_A5CapexCode,$AD:$AD)","v":0},{"$f":"SUMIFS(Sheet1!S71_OriginalBudAmnt,Sheet1!S71_SA34eCode,$AC:$AC,Sheet1!S71_A5CapexCode,$AD:$AD)","v":0},{"$f":"SUMIFS(Sheet1!S71_AdjustmentBudAmnt,Sheet1!S71_SA34eCode,$AC:$AC,Sheet1!S71_A5CapexCode,$AD:$AD)","v":0},{"$f":"SUMIFS(Sheet1!S71_AdjustmentBudAmnt,Sheet1!S71_SA34eCode,$AC:$AC,Sheet1!S71_A5CapexCode,$AD:$AD)","v":0},{"$f":"SUMIFS(Sheet1!S71_ASBudgetAmount,Sheet1!S71_SA34eCode,$AC:$AC,Sheet1!S71_A5CapexCode,$AD:$AD)","v":0},{"$f":"SUMIFS(Sheet1!S71_OY1BudgetAmount,Sheet1!S71_SA34eCode,$AC:$AC,Sheet1!S71_A5CapexCode,$AD:$AD)","v":0},{"$f":"SUMIFS(Sheet1!S71_OY2BudgetAmount,Sheet1!S71_SA34eCode,$AC:$AC,Sheet1!S71_A5CapexCode,$AD:$AD)","v":0},null,null,null,null,null,null,null,null,null,null,null,null,null,null,null,null,null,"0360","CE"]
["Distribution",null,{"$f":"SUMIFS(Sheet1!S71_PPPYearAmount,Sheet1!S71_SA34eCode,$AC:$AC,Sheet1!S71_A5CapexCode,$AD:$AD)","v":0},{"$f":"SUMIFS(Sheet1!S71_PPYearAmount,Sheet1!S71_SA34eCode,$AC:$AC,Sheet1!S71_A5CapexCode,$AD:$AD)","v":0},{"$f":"SUMIFS(Sheet1!S71_PYearAmount,Sheet1!S71_SA34eCode,$AC:$AC,Sheet1!S71_A5CapexCode,$AD:$AD)","v":0},{"$f":"SUMIFS(Sheet1!S71_OriginalBudAmnt,Sheet1!S71_SA34eCode,$AC:$AC,Sheet1!S71_A5CapexCode,$AD:$AD)","v":0},{"$f":"SUMIFS(Sheet1!S71_AdjustmentBudAmnt,Sheet1!S71_SA34eCode,$AC:$AC,Sheet1!S71_A5CapexCode,$AD:$AD)","v":0},{"$f":"SUMIFS(Sheet1!S71_AdjustmentBudAmnt,Sheet1!S71_SA34eCode,$AC:$AC,Sheet1!S71_A5CapexCode,$AD:$AD)","v":0},{"$f":"SUMIFS(Sheet1!S71_ASBudgetAmount,Sheet1!S71_SA34eCode,$AC:$AC,Sheet1!S71_A5CapexCode,$AD:$AD)","v":0},{"$f":"SUMIFS(Sheet1!S71_OY1BudgetAmount,Sheet1!S71_SA34eCode,$AC:$AC,Sheet1!S71_A5CapexCode,$AD:$AD)","v":0},{"$f":"SUMIFS(Sheet1!S71_OY2BudgetAmount,Sheet1!S71_SA34eCode,$AC:$AC,Sheet1!S71_A5CapexCode,$AD:$AD)","v":0},null,null,null,null,null,null,null,null,null,null,null,null,null,null,null,null,null,"0370","CE"]
["Distribution Points",null,{"$f":"SUMIFS(Sheet1!S71_PPPYearAmount,Sheet1!S71_SA34eCode,$AC:$AC,Sheet1!S71_A5CapexCode,$AD:$AD)","v":0},{"$f":"SUMIFS(Sheet1!S71_PPYearAmount,Sheet1!S71_SA34eCode,$AC:$AC,Sheet1!S71_A5CapexCode,$AD:$AD)","v":0},{"$f":"SUMIFS(Sheet1!S71_PYearAmount,Sheet1!S71_SA34eCode,$AC:$AC,Sheet1!S71_A5CapexCode,$AD:$AD)","v":0},{"$f":"SUMIFS(Sheet1!S71_OriginalBudAmnt,Sheet1!S71_SA34eCode,$AC:$AC,Sheet1!S71_A5CapexCode,$AD:$AD)","v":0},{"$f":"SUMIFS(Sheet1!S71_AdjustmentBudAmnt,Sheet1!S71_SA34eCode,$AC:$AC,Sheet1!S71_A5CapexCode,$AD:$AD)","v":0},{"$f":"SUMIFS(Sheet1!S71_AdjustmentBudAmnt,Sheet1!S71_SA34eCode,$AC:$AC,Sheet1!S71_A5CapexCode,$AD:$AD)","v":0},{"$f":"SUMIFS(Sheet1!S71_ASBudgetAmount,Sheet1!S71_SA34eCode,$AC:$AC,Sheet1!S71_A5CapexCode,$AD:$AD)","v":0},{"$f":"SUMIFS(Sheet1!S71_OY1BudgetAmount,Sheet1!S71_SA34eCode,$AC:$AC,Sheet1!S71_A5CapexCode,$AD:$AD)","v":0},{"$f":"SUMIFS(Sheet1!S71_OY2BudgetAmount,Sheet1!S71_SA34eCode,$AC:$AC,Sheet1!S71_A5CapexCode,$AD:$AD)","v":0},null,null,null,null,null,null,null,null,null,null,null,null,null,null,null,null,null,"0380","CE"]
["PRV Stations",null,{"$f":"SUMIFS(Sheet1!S71_PPPYearAmount,Sheet1!S71_SA34eCode,$AC:$AC,Sheet1!S71_A5CapexCode,$AD:$AD)","v":0},{"$f":"SUMIFS(Sheet1!S71_PPYearAmount,Sheet1!S71_SA34eCode,$AC:$AC,Sheet1!S71_A5CapexCode,$AD:$AD)","v":0},{"$f":"SUMIFS(Sheet1!S71_PYearAmount,Sheet1!S71_SA34eCode,$AC:$AC,Sheet1!S71_A5CapexCode,$AD:$AD)","v":0},{"$f":"SUMIFS(Sheet1!S71_OriginalBudAmnt,Sheet1!S71_SA34eCode,$AC:$AC,Sheet1!S71_A5CapexCode,$AD:$AD)","v":0},{"$f":"SUMIFS(Sheet1!S71_AdjustmentBudAmnt,Sheet1!S71_SA34eCode,$AC:$AC,Sheet1!S71_A5CapexCode,$AD:$AD)","v":0},{"$f":"SUMIFS(Sheet1!S71_AdjustmentBudAmnt,Sheet1!S71_SA34eCode,$AC:$AC,Sheet1!S71_A5CapexCode,$AD:$AD)","v":0},{"$f":"SUMIFS(Sheet1!S71_ASBudgetAmount,Sheet1!S71_SA34eCode,$AC:$AC,Sheet1!S71_A5CapexCode,$AD:$AD)","v":0},{"$f":"SUMIFS(Sheet1!S71_OY1BudgetAmount,Sheet1!S71_SA34eCode,$AC:$AC,Sheet1!S71_A5CapexCode,$AD:$AD)","v":0},{"$f":"SUMIFS(Sheet1!S71_OY2BudgetAmount,Sheet1!S71_SA34eCode,$AC:$AC,Sheet1!S71_A5CapexCode,$AD:$AD)","v":0},null,null,null,null,null,null,null,null,null,null,null,null,null,null,null,null,null,"0390","CE"]
["Capital Spares",null,{"$f":"SUMIFS(Sheet1!S71_PPPYearAmount,Sheet1!S71_SA34eCode,$AC:$AC,Sheet1!S71_A5CapexCode,$AD:$AD)","v":0},{"$f":"SUMIFS(Sheet1!S71_PPYearAmount,Sheet1!S71_SA34eCode,$AC:$AC,Sheet1!S71_A5CapexCode,$AD:$AD)","v":0},{"$f":"SUMIFS(Sheet1!S71_PYearAmount,Sheet1!S71_SA34eCode,$AC:$AC,Sheet1!S71_A5CapexCode,$AD:$AD)","v":0},{"$f":"SUMIFS(Sheet1!S71_OriginalBudAmnt,Sheet1!S71_SA34eCode,$AC:$AC,Sheet1!S71_A5CapexCode,$AD:$AD)","v":0},{"$f":"SUMIFS(Sheet1!S71_AdjustmentBudAmnt,Sheet1!S71_SA34eCode,$AC:$AC,Sheet1!S71_A5CapexCode,$AD:$AD)","v":0},{"$f":"SUMIFS(Sheet1!S71_AdjustmentBudAmnt,Sheet1!S71_SA34eCode,$AC:$AC,Sheet1!S71_A5CapexCode,$AD:$AD)","v":0},{"$f":"SUMIFS(Sheet1!S71_ASBudgetAmount,Sheet1!S71_SA34eCode,$AC:$AC,Sheet1!S71_A5CapexCode,$AD:$AD)","v":0},{"$f":"SUMIFS(Sheet1!S71_OY1BudgetAmount,Sheet1!S71_SA34eCode,$AC:$AC,Sheet1!S71_A5CapexCode,$AD:$AD)","v":0},{"$f":"SUMIFS(Sheet1!S71_OY2BudgetAmount,Sheet1!S71_SA34eCode,$AC:$AC,Sheet1!S71_A5CapexCode,$AD:$AD)","v":0},null,null,null,null,null,null,null,null,null,null,null,null,null,null,null,null,null,"0400","CE"]
["Sanitation Infrastructure",null,{"$f":"SUM(C38:C43)","v":0},{"$f":"SUM(D38:D43)","v":0},0,0,0,0,0,0,0,null,null,null,null,null,null,null,null,null,null,null,null,null,null,null,null,null,null,"CE"]
["Pump Station",null,{"$f":"SUMIFS(Sheet1!S71_PPPYearAmount,Sheet1!S71_SA34eCode,$AC:$AC,Sheet1!S71_A5CapexCode,$AD:$AD)","v":0},{"$f":"SUMIFS(Sheet1!S71_PPYearAmount,Sheet1!S71_SA34eCode,$AC:$AC,Sheet1!S71_A5CapexCode,$AD:$AD)","v":0},{"$f":"SUMIFS(Sheet1!S71_PYearAmount,Sheet1!S71_SA34eCode,$AC:$AC,Sheet1!S71_A5CapexCode,$AD:$AD)","v":0},{"$f":"SUMIFS(Sheet1!S71_OriginalBudAmnt,Sheet1!S71_SA34eCode,$AC:$AC,Sheet1!S71_A5CapexCode,$AD:$AD)","v":0},{"$f":"SUMIFS(Sheet1!S71_AdjustmentBudAmnt,Sheet1!S71_SA34eCode,$AC:$AC,Sheet1!S71_A5CapexCode,$AD:$AD)","v":0},{"$f":"SUMIFS(Sheet1!S71_AdjustmentBudAmnt,Sheet1!S71_SA34eCode,$AC:$AC,Sheet1!S71_A5CapexCode,$AD:$AD)","v":0},{"$f":"SUMIFS(Sheet1!S71_ASBudgetAmount,Sheet1!S71_SA34eCode,$AC:$AC,Sheet1!S71_A5CapexCode,$AD:$AD)","v":0},{"$f":"SUMIFS(Sheet1!S71_OY1BudgetAmount,Sheet1!S71_SA34eCode,$AC:$AC,Sheet1!S71_A5CapexCode,$AD:$AD)","v":0},{"$f":"SUMIFS(Sheet1!S71_OY2BudgetAmount,Sheet1!S71_SA34eCode,$AC:$AC,Sheet1!S71_A5CapexCode,$AD:$AD)","v":0},null,null,null,null,null,null,null,null,null,null,null,null,null,null,null,null,null,"0420","CE"]
["Reticulation",null,{"$f":"SUMIFS(Sheet1!S71_PPPYearAmount,Sheet1!S71_SA34eCode,$AC:$AC,Sheet1!S71_A5CapexCode,$AD:$AD)","v":0},{"$f":"SUMIFS(Sheet1!S71_PPYearAmount,Sheet1!S71_SA34eCode,$AC:$AC,Sheet1!S71_A5CapexCode,$AD:$AD)","v":0},{"$f":"SUMIFS(Sheet1!S71_PYearAmount,Sheet1!S71_SA34eCode,$AC:$AC,Sheet1!S71_A5CapexCode,$AD:$AD)","v":0},{"$f":"SUMIFS(Sheet1!S71_OriginalBudAmnt,Sheet1!S71_SA34eCode,$AC:$AC,Sheet1!S71_A5CapexCode,$AD:$AD)","v":0},{"$f":"SUMIFS(Sheet1!S71_AdjustmentBudAmnt,Sheet1!S71_SA34eCode,$AC:$AC,Sheet1!S71_A5CapexCode,$AD:$AD)","v":0},{"$f":"SUMIFS(Sheet1!S71_AdjustmentBudAmnt,Sheet1!S71_SA34eCode,$AC:$AC,Sheet1!S71_A5CapexCode,$AD:$AD)","v":0},{"$f":"SUMIFS(Sheet1!S71_ASBudgetAmount,Sheet1!S71_SA34eCode,$AC:$AC,Sheet1!S71_A5CapexCode,$AD:$AD)","v":0},{"$f":"SUMIFS(Sheet1!S71_OY1BudgetAmount,Sheet1!S71_SA34eCode,$AC:$AC,Sheet1!S71_A5CapexCode,$AD:$AD)","v":0},{"$f":"SUMIFS(Sheet1!S71_OY2BudgetAmount,Sheet1!S71_SA34eCode,$AC:$AC,Sheet1!S71_A5CapexCode,$AD:$AD)","v":0},null,null,null,null,null,null,null,null,null,null,null,null,null,null,null,null,null,"0430","CE"]
["Waste Water Treatment Works",null,{"$f":"SUMIFS(Sheet1!S71_PPPYearAmount,Sheet1!S71_SA34eCode,$AC:$AC,Sheet1!S71_A5CapexCode,$AD:$AD)","v":0},{"$f":"SUMIFS(Sheet1!S71_PPYearAmount,Sheet1!S71_SA34eCode,$AC:$AC,Sheet1!S71_A5CapexCode,$AD:$AD)","v":0},{"$f":"SUMIFS(Sheet1!S71_PYearAmount,Sheet1!S71_SA34eCode,$AC:$AC,Sheet1!S71_A5CapexCode,$AD:$AD)","v":0},{"$f":"SUMIFS(Sheet1!S71_OriginalBudAmnt,Sheet1!S71_SA34eCode,$AC:$AC,Sheet1!S71_A5CapexCode,$AD:$AD)","v":0},{"$f":"SUMIFS(Sheet1!S71_AdjustmentBudAmnt,Sheet1!S71_SA34eCode,$AC:$AC,Sheet1!S71_A5CapexCode,$AD:$AD)","v":0},{"$f":"SUMIFS(Sheet1!S71_AdjustmentBudAmnt,Sheet1!S71_SA34eCode,$AC:$AC,Sheet1!S71_A5CapexCode,$AD:$AD)","v":0},{"$f":"SUMIFS(Sheet1!S71_ASBudgetAmount,Sheet1!S71_SA34eCode,$AC:$AC,Sheet1!S71_A5CapexCode,$AD:$AD)","v":0},{"$f":"SUMIFS(Sheet1!S71_OY1BudgetAmount,Sheet1!S71_SA34eCode,$AC:$AC,Sheet1!S71_A5CapexCode,$AD:$AD)","v":0},{"$f":"SUMIFS(Sheet1!S71_OY2BudgetAmount,Sheet1!S71_SA34eCode,$AC:$AC,Sheet1!S71_A5CapexCode,$AD:$AD)","v":0},null,null,null,null,null,null,null,null,null,null,null,null,null,null,null,null,null,"0440","CE"]
["Outfall Sewers",null,{"$f":"SUMIFS(Sheet1!S71_PPPYearAmount,Sheet1!S71_SA34eCode,$AC:$AC,Sheet1!S71_A5CapexCode,$AD:$AD)","v":0},{"$f":"SUMIFS(Sheet1!S71_PPYearAmount,Sheet1!S71_SA34eCode,$AC:$AC,Sheet1!S71_A5CapexCode,$AD:$AD)","v":0},{"$f":"SUMIFS(Sheet1!S71_PYearAmount,Sheet1!S71_SA34eCode,$AC:$AC,Sheet1!S71_A5CapexCode,$AD:$AD)","v":0},{"$f":"SUMIFS(Sheet1!S71_OriginalBudAmnt,Sheet1!S71_SA34eCode,$AC:$AC,Sheet1!S71_A5CapexCode,$AD:$AD)","v":0},{"$f":"SUMIFS(Sheet1!S71_AdjustmentBudAmnt,Sheet1!S71_SA34eCode,$AC:$AC,Sheet1!S71_A5CapexCode,$AD:$AD)","v":0},{"$f":"SUMIFS(Sheet1!S71_AdjustmentBudAmnt,Sheet1!S71_SA34eCode,$AC:$AC,Sheet1!S71_A5CapexCode,$AD:$AD)","v":0},{"$f":"SUMIFS(Sheet1!S71_ASBudgetAmount,Sheet1!S71_SA34eCode,$AC:$AC,Sheet1!S71_A5CapexCode,$AD:$AD)","v":0},{"$f":"SUMIFS(Sheet1!S71_OY1BudgetAmount,Sheet1!S71_SA34eCode,$AC:$AC,Sheet1!S71_A5CapexCode,$AD:$AD)","v":0},{"$f":"SUMIFS(Sheet1!S71_OY2BudgetAmount,Sheet1!S71_SA34eCode,$AC:$AC,Sheet1!S71_A5CapexCode,$AD:$AD)","v":0},null,null,null,null,null,null,null,null,null,null,null,null,null,null,null,null,null,"0450","CE"]
["Toilet Facilities",null,{"$f":"SUMIFS(Sheet1!S71_PPPYearAmount,Sheet1!S71_SA34eCode,$AC:$AC,Sheet1!S71_A5CapexCode,$AD:$AD)","v":0},{"$f":"SUMIFS(Sheet1!S71_PPYearAmount,Sheet1!S71_SA34eCode,$AC:$AC,Sheet1!S71_A5CapexCode,$AD:$AD)","v":0},{"$f":"SUMIFS(Sheet1!S71_PYearAmount,Sheet1!S71_SA34eCode,$AC:$AC,Sheet1!S71_A5CapexCode,$AD:$AD)","v":0},{"$f":"SUMIFS(Sheet1!S71_OriginalBudAmnt,Sheet1!S71_SA34eCode,$AC:$AC,Sheet1!S71_A5CapexCode,$AD:$AD)","v":0},{"$f":"SUMIFS(Sheet1!S71_AdjustmentBudAmnt,Sheet1!S71_SA34eCode,$AC:$AC,Sheet1!S71_A5CapexCode,$AD:$AD)","v":0},{"$f":"SUMIFS(Sheet1!S71_AdjustmentBudAmnt,Sheet1!S71_SA34eCode,$AC:$AC,Sheet1!S71_A5CapexCode,$AD:$AD)","v":0},{"$f":"SUMIFS(Sheet1!S71_ASBudgetAmount,Sheet1!S71_SA34eCode,$AC:$AC,Sheet1!S71_A5CapexCode,$AD:$AD)","v":0},{"$f":"SUMIFS(Sheet1!S71_OY1BudgetAmount,Sheet1!S71_SA34eCode,$AC:$AC,Sheet1!S71_A5CapexCode,$AD:$AD)","v":0},{"$f":"SUMIFS(Sheet1!S71_OY2BudgetAmount,Sheet1!S71_SA34eCode,$AC:$AC,Sheet1!S71_A5CapexCode,$AD:$AD)","v":0},null,null,null,null,null,null,null,null,null,null,null,null,null,null,null,null,null,"0460","CE"]
["Capital Spares",null,{"$f":"SUMIFS(Sheet1!S71_PPPYearAmount,Sheet1!S71_SA34eCode,$AC:$AC,Sheet1!S71_A5CapexCode,$AD:$AD)","v":0},{"$f":"SUMIFS(Sheet1!S71_PPYearAmount,Sheet1!S71_SA34eCode,$AC:$AC,Sheet1!S71_A5CapexCode,$AD:$AD)","v":0},{"$f":"SUMIFS(Sheet1!S71_PYearAmount,Sheet1!S71_SA34eCode,$AC:$AC,Sheet1!S71_A5CapexCode,$AD:$AD)","v":0},{"$f":"SUMIFS(Sheet1!S71_OriginalBudAmnt,Sheet1!S71_SA34eCode,$AC:$AC,Sheet1!S71_A5CapexCode,$AD:$AD)","v":0},{"$f":"SUMIFS(Sheet1!S71_AdjustmentBudAmnt,Sheet1!S71_SA34eCode,$AC:$AC,Sheet1!S71_A5CapexCode,$AD:$AD)","v":0},{"$f":"SUMIFS(Sheet1!S71_AdjustmentBudAmnt,Sheet1!S71_SA34eCode,$AC:$AC,Sheet1!S71_A5CapexCode,$AD:$AD)","v":0},{"$f":"SUMIFS(Sheet1!S71_ASBudgetAmount,Sheet1!S71_SA34eCode,$AC:$AC,Sheet1!S71_A5CapexCode,$AD:$AD)","v":0},{"$f":"SUMIFS(Sheet1!S71_OY1BudgetAmount,Sheet1!S71_SA34eCode,$AC:$AC,Sheet1!S71_A5CapexCode,$AD:$AD)","v":0},{"$f":"SUMIFS(Sheet1!S71_OY2BudgetAmount,Sheet1!S71_SA34eCode,$AC:$AC,Sheet1!S71_A5CapexCode,$AD:$AD)","v":0},null,null,null,null,null,null,null,null,null,null,null,null,null,null,null,null,null,"0470","CE"]
["Solid Waste Infrastructure",null,{"$f":"SUM(C45:C51)","v":0},{"$f":"SUM(D45:D51)","v":0},0,0,0,0,0,0,0,null,null,null,null,null,null,null,null,null,null,null,null,null,null,null,null,null,null,"CE"]
["Landfill Sites",null,{"$f":"SUMIFS(Sheet1!S71_PPPYearAmount,Sheet1!S71_SA34eCode,$AC:$AC,Sheet1!S71_A5CapexCode,$AD:$AD)","v":0},{"$f":"SUMIFS(Sheet1!S71_PPYearAmount,Sheet1!S71_SA34eCode,$AC:$AC,Sheet1!S71_A5CapexCode,$AD:$AD)","v":0},{"$f":"SUMIFS(Sheet1!S71_PYearAmount,Sheet1!S71_SA34eCode,$AC:$AC,Sheet1!S71_A5CapexCode,$AD:$AD)","v":0},{"$f":"SUMIFS(Sheet1!S71_OriginalBudAmnt,Sheet1!S71_SA34eCode,$AC:$AC,Sheet1!S71_A5CapexCode,$AD:$AD)","v":0},{"$f":"SUMIFS(Sheet1!S71_AdjustmentBudAmnt,Sheet1!S71_SA34eCode,$AC:$AC,Sheet1!S71_A5CapexCode,$AD:$AD)","v":0},{"$f":"SUMIFS(Sheet1!S71_AdjustmentBudAmnt,Sheet1!S71_SA34eCode,$AC:$AC,Sheet1!S71_A5CapexCode,$AD:$AD)","v":0},{"$f":"SUMIFS(Sheet1!S71_ASBudgetAmount,Sheet1!S71_SA34eCode,$AC:$AC,Sheet1!S71_A5CapexCode,$AD:$AD)","v":0},{"$f":"SUMIFS(Sheet1!S71_OY1BudgetAmount,Sheet1!S71_SA34eCode,$AC:$AC,Sheet1!S71_A5CapexCode,$AD:$AD)","v":0},{"$f":"SUMIFS(Sheet1!S71_OY2BudgetAmount,Sheet1!S71_SA34eCode,$AC:$AC,Sheet1!S71_A5CapexCode,$AD:$AD)","v":0},null,null,null,null,null,null,null,null,null,null,null,null,null,null,null,null,null,"0490","CE"]
["Waste Transfer Stations",null,{"$f":"SUMIFS(Sheet1!S71_PPPYearAmount,Sheet1!S71_SA34eCode,$AC:$AC,Sheet1!S71_A5CapexCode,$AD:$AD)","v":0},{"$f":"SUMIFS(Sheet1!S71_PPYearAmount,Sheet1!S71_SA34eCode,$AC:$AC,Sheet1!S71_A5CapexCode,$AD:$AD)","v":0},{"$f":"SUMIFS(Sheet1!S71_PYearAmount,Sheet1!S71_SA34eCode,$AC:$AC,Sheet1!S71_A5CapexCode,$AD:$AD)","v":0},{"$f":"SUMIFS(Sheet1!S71_OriginalBudAmnt,Sheet1!S71_SA34eCode,$AC:$AC,Sheet1!S71_A5CapexCode,$AD:$AD)","v":0},{"$f":"SUMIFS(Sheet1!S71_AdjustmentBudAmnt,Sheet1!S71_SA34eCode,$AC:$AC,Sheet1!S71_A5CapexCode,$AD:$AD)","v":0},{"$f":"SUMIFS(Sheet1!S71_AdjustmentBudAmnt,Sheet1!S71_SA34eCode,$AC:$AC,Sheet1!S71_A5CapexCode,$AD:$AD)","v":0},{"$f":"SUMIFS(Sheet1!S71_ASBudgetAmount,Sheet1!S71_SA34eCode,$AC:$AC,Sheet1!S71_A5CapexCode,$AD:$AD)","v":0},{"$f":"SUMIFS(Sheet1!S71_OY1BudgetAmount,Sheet1!S71_SA34eCode,$AC:$AC,Sheet1!S71_A5CapexCode,$AD:$AD)","v":0},{"$f":"SUMIFS(Sheet1!S71_OY2BudgetAmount,Sheet1!S71_SA34eCode,$AC:$AC,Sheet1!S71_A5CapexCode,$AD:$AD)","v":0},null,null,null,null,null,null,null,null,null,null,null,null,null,null,null,null,null,"0500","CE"]
["Waste Processing Facilities",null,{"$f":"SUMIFS(Sheet1!S71_PPPYearAmount,Sheet1!S71_SA34eCode,$AC:$AC,Sheet1!S71_A5CapexCode,$AD:$AD)","v":0},{"$f":"SUMIFS(Sheet1!S71_PPYearAmount,Sheet1!S71_SA34eCode,$AC:$AC,Sheet1!S71_A5CapexCode,$AD:$AD)","v":0},{"$f":"SUMIFS(Sheet1!S71_PYearAmount,Sheet1!S71_SA34eCode,$AC:$AC,Sheet1!S71_A5CapexCode,$AD:$AD)","v":0},{"$f":"SUMIFS(Sheet1!S71_OriginalBudAmnt,Sheet1!S71_SA34eCode,$AC:$AC,Sheet1!S71_A5CapexCode,$AD:$AD)","v":0},{"$f":"SUMIFS(Sheet1!S71_AdjustmentBudAmnt,Sheet1!S71_SA34eCode,$AC:$AC,Sheet1!S71_A5CapexCode,$AD:$AD)","v":0},{"$f":"SUMIFS(Sheet1!S71_AdjustmentBudAmnt,Sheet1!S71_SA34eCode,$AC:$AC,Sheet1!S71_A5CapexCode,$AD:$AD)","v":0},{"$f":"SUMIFS(Sheet1!S71_ASBudgetAmount,Sheet1!S71_SA34eCode,$AC:$AC,Sheet1!S71_A5CapexCode,$AD:$AD)","v":0},{"$f":"SUMIFS(Sheet1!S71_OY1BudgetAmount,Sheet1!S71_SA34eCode,$AC:$AC,Sheet1!S71_A5CapexCode,$AD:$AD)","v":0},{"$f":"SUMIFS(Sheet1!S71_OY2BudgetAmount,Sheet1!S71_SA34eCode,$AC:$AC,Sheet1!S71_A5CapexCode,$AD:$AD)","v":0},null,null,null,null,null,null,null,null,null,null,null,null,null,null,null,null,null,"0510","CE"]
["Waste Drop-off Points",null,{"$f":"SUMIFS(Sheet1!S71_PPPYearAmount,Sheet1!S71_SA34eCode,$AC:$AC,Sheet1!S71_A5CapexCode,$AD:$AD)","v":0},{"$f":"SUMIFS(Sheet1!S71_PPYearAmount,Sheet1!S71_SA34eCode,$AC:$AC,Sheet1!S71_A5CapexCode,$AD:$AD)","v":0},{"$f":"SUMIFS(Sheet1!S71_PYearAmount,Sheet1!S71_SA34eCode,$AC:$AC,Sheet1!S71_A5CapexCode,$AD:$AD)","v":0},{"$f":"SUMIFS(Sheet1!S71_OriginalBudAmnt,Sheet1!S71_SA34eCode,$AC:$AC,Sheet1!S71_A5CapexCode,$AD:$AD)","v":0},{"$f":"SUMIFS(Sheet1!S71_AdjustmentBudAmnt,Sheet1!S71_SA34eCode,$AC:$AC,Sheet1!S71_A5CapexCode,$AD:$AD)","v":0},{"$f":"SUMIFS(Sheet1!S71_AdjustmentBudAmnt,Sheet1!S71_SA34eCode,$AC:$AC,Sheet1!S71_A5CapexCode,$AD:$AD)","v":0},{"$f":"SUMIFS(Sheet1!S71_ASBudgetAmount,Sheet1!S71_SA34eCode,$AC:$AC,Sheet1!S71_A5CapexCode,$AD:$AD)","v":0},{"$f":"SUMIFS(Sheet1!S71_OY1BudgetAmount,Sheet1!S71_SA34eCode,$AC:$AC,Sheet1!S71_A5CapexCode,$AD:$AD)","v":0},{"$f":"SUMIFS(Sheet1!S71_OY2BudgetAmount,Sheet1!S71_SA34eCode,$AC:$AC,Sheet1!S71_A5CapexCode,$AD:$AD)","v":0},null,null,null,null,null,null,null,null,null,null,null,null,null,null,null,null,null,"0520","CE"]
["Waste Separation Facilities",null,{"$f":"SUMIFS(Sheet1!S71_PPPYearAmount,Sheet1!S71_SA34eCode,$AC:$AC,Sheet1!S71_A5CapexCode,$AD:$AD)","v":0},{"$f":"SUMIFS(Sheet1!S71_PPYearAmount,Sheet1!S71_SA34eCode,$AC:$AC,Sheet1!S71_A5CapexCode,$AD:$AD)","v":0},{"$f":"SUMIFS(Sheet1!S71_PYearAmount,Sheet1!S71_SA34eCode,$AC:$AC,Sheet1!S71_A5CapexCode,$AD:$AD)","v":0},{"$f":"SUMIFS(Sheet1!S71_OriginalBudAmnt,Sheet1!S71_SA34eCode,$AC:$AC,Sheet1!S71_A5CapexCode,$AD:$AD)","v":0},{"$f":"SUMIFS(Sheet1!S71_AdjustmentBudAmnt,Sheet1!S71_SA34eCode,$AC:$AC,Sheet1!S71_A5CapexCode,$AD:$AD)","v":0},{"$f":"SUMIFS(Sheet1!S71_AdjustmentBudAmnt,Sheet1!S71_SA34eCode,$AC:$AC,Sheet1!S71_A5CapexCode,$AD:$AD)","v":0},{"$f":"SUMIFS(Sheet1!S71_ASBudgetAmount,Sheet1!S71_SA34eCode,$AC:$AC,Sheet1!S71_A5CapexCode,$AD:$AD)","v":0},{"$f":"SUMIFS(Sheet1!S71_OY1BudgetAmount,Sheet1!S71_SA34eCode,$AC:$AC,Sheet1!S71_A5CapexCode,$AD:$AD)","v":0},{"$f":"SUMIFS(Sheet1!S71_OY2BudgetAmount,Sheet1!S71_SA34eCode,$AC:$AC,Sheet1!S71_A5CapexCode,$AD:$AD)","v":0},null,null,null,null,null,null,null,null,null,null,null,null,null,null,null,null,null,"0530","CE"]
["Electricity Generation Facilities",null,{"$f":"SUMIFS(Sheet1!S71_PPPYearAmount,Sheet1!S71_SA34eCode,$AC:$AC,Sheet1!S71_A5CapexCode,$AD:$AD)","v":0},{"$f":"SUMIFS(Sheet1!S71_PPYearAmount,Sheet1!S71_SA34eCode,$AC:$AC,Sheet1!S71_A5CapexCode,$AD:$AD)","v":0},{"$f":"SUMIFS(Sheet1!S71_PYearAmount,Sheet1!S71_SA34eCode,$AC:$AC,Sheet1!S71_A5CapexCode,$AD:$AD)","v":0},{"$f":"SUMIFS(Sheet1!S71_OriginalBudAmnt,Sheet1!S71_SA34eCode,$AC:$AC,Sheet1!S71_A5CapexCode,$AD:$AD)","v":0},{"$f":"SUMIFS(Sheet1!S71_AdjustmentBudAmnt,Sheet1!S71_SA34eCode,$AC:$AC,Sheet1!S71_A5CapexCode,$AD:$AD)","v":0},{"$f":"SUMIFS(Sheet1!S71_AdjustmentBudAmnt,Sheet1!S71_SA34eCode,$AC:$AC,Sheet1!S71_A5CapexCode,$AD:$AD)","v":0},{"$f":"SUMIFS(Sheet1!S71_ASBudgetAmount,Sheet1!S71_SA34eCode,$AC:$AC,Sheet1!S71_A5CapexCode,$AD:$AD)","v":0},{"$f":"SUMIFS(Sheet1!S71_OY1BudgetAmount,Sheet1!S71_SA34eCode,$AC:$AC,Sheet1!S71_A5CapexCode,$AD:$AD)","v":0},{"$f":"SUMIFS(Sheet1!S71_OY2BudgetAmount,Sheet1!S71_SA34eCode,$AC:$AC,Sheet1!S71_A5CapexCode,$AD:$AD)","v":0},null,null,null,null,null,null,null,null,null,null,null,null,null,null,null,null,null,"0540","CE"]
["Capital Spares",null,{"$f":"SUMIFS(Sheet1!S71_PPPYearAmount,Sheet1!S71_SA34eCode,$AC:$AC,Sheet1!S71_A5CapexCode,$AD:$AD)","v":0},{"$f":"SUMIFS(Sheet1!S71_PPYearAmount,Sheet1!S71_SA34eCode,$AC:$AC,Sheet1!S71_A5CapexCode,$AD:$AD)","v":0},{"$f":"SUMIFS(Sheet1!S71_PYearAmount,Sheet1!S71_SA34eCode,$AC:$AC,Sheet1!S71_A5CapexCode,$AD:$AD)","v":0},{"$f":"SUMIFS(Sheet1!S71_OriginalBudAmnt,Sheet1!S71_SA34eCode,$AC:$AC,Sheet1!S71_A5CapexCode,$AD:$AD)","v":0},{"$f":"SUMIFS(Sheet1!S71_AdjustmentBudAmnt,Sheet1!S71_SA34eCode,$AC:$AC,Sheet1!S71_A5CapexCode,$AD:$AD)","v":0},{"$f":"SUMIFS(Sheet1!S71_AdjustmentBudAmnt,Sheet1!S71_SA34eCode,$AC:$AC,Sheet1!S71_A5CapexCode,$AD:$AD)","v":0},{"$f":"SUMIFS(Sheet1!S71_ASBudgetAmount,Sheet1!S71_SA34eCode,$AC:$AC,Sheet1!S71_A5CapexCode,$AD:$AD)","v":0},{"$f":"SUMIFS(Sheet1!S71_OY1BudgetAmount,Sheet1!S71_SA34eCode,$AC:$AC,Sheet1!S71_A5CapexCode,$AD:$AD)","v":0},{"$f":"SUMIFS(Sheet1!S71_OY2BudgetAmount,Sheet1!S71_SA34eCode,$AC:$AC,Sheet1!S71_A5CapexCode,$AD:$AD)","v":0},null,null,null,null,null,null,null,null,null,null,null,null,null,null,null,null,null,"0550","CE"]
["Rail Infrastructure",null,{"$f":"SUM(C53:C61)","v":0},0,0,0,0,0,0,0,0,null,null,null,null,null,null,null,null,null,null,null,null,null,null,null,null,null,null,"CE"]
["Rail Lines",null,{"$f":"SUMIFS(Sheet1!S71_PPPYearAmount,Sheet1!S71_SA34eCode,$AC:$AC,Sheet1!S71_A5CapexCode,$AD:$AD)","v":0},{"$f":"SUMIFS(Sheet1!S71_PPYearAmount,Sheet1!S71_SA34eCode,$AC:$AC,Sheet1!S71_A5CapexCode,$AD:$AD)","v":0},{"$f":"SUMIFS(Sheet1!S71_PYearAmount,Sheet1!S71_SA34eCode,$AC:$AC,Sheet1!S71_A5CapexCode,$AD:$AD)","v":0},{"$f":"SUMIFS(Sheet1!S71_OriginalBudAmnt,Sheet1!S71_SA34eCode,$AC:$AC,Sheet1!S71_A5CapexCode,$AD:$AD)","v":0},{"$f":"SUMIFS(Sheet1!S71_AdjustmentBudAmnt,Sheet1!S71_SA34eCode,$AC:$AC,Sheet1!S71_A5CapexCode,$AD:$AD)","v":0},{"$f":"SUMIFS(Sheet1!S71_AdjustmentBudAmnt,Sheet1!S71_SA34eCode,$AC:$AC,Sheet1!S71_A5CapexCode,$AD:$AD)","v":0},{"$f":"SUMIFS(Sheet1!S71_ASBudgetAmount,Sheet1!S71_SA34eCode,$AC:$AC,Sheet1!S71_A5CapexCode,$AD:$AD)","v":0},{"$f":"SUMIFS(Sheet1!S71_OY1BudgetAmount,Sheet1!S71_SA34eCode,$AC:$AC,Sheet1!S71_A5CapexCode,$AD:$AD)","v":0},{"$f":"SUMIFS(Sheet1!S71_OY2BudgetAmount,Sheet1!S71_SA34eCode,$AC:$AC,Sheet1!S71_A5CapexCode,$AD:$AD)","v":0},null,null,null,null,null,null,null,null,null,null,null,null,null,null,null,null,null,"0570","CE"]
["Rail Structures",null,{"$f":"SUMIFS(Sheet1!S71_PPPYearAmount,Sheet1!S71_SA34eCode,$AC:$AC,Sheet1!S71_A5CapexCode,$AD:$AD)","v":0},{"$f":"SUMIFS(Sheet1!S71_PPYearAmount,Sheet1!S71_SA34eCode,$AC:$AC,Sheet1!S71_A5CapexCode,$AD:$AD)","v":0},{"$f":"SUMIFS(Sheet1!S71_PYearAmount,Sheet1!S71_SA34eCode,$AC:$AC,Sheet1!S71_A5CapexCode,$AD:$AD)","v":0},{"$f":"SUMIFS(Sheet1!S71_OriginalBudAmnt,Sheet1!S71_SA34eCode,$AC:$AC,Sheet1!S71_A5CapexCode,$AD:$AD)","v":0},{"$f":"SUMIFS(Sheet1!S71_AdjustmentBudAmnt,Sheet1!S71_SA34eCode,$AC:$AC,Sheet1!S71_A5CapexCode,$AD:$AD)","v":0},{"$f":"SUMIFS(Sheet1!S71_AdjustmentBudAmnt,Sheet1!S71_SA34eCode,$AC:$AC,Sheet1!S71_A5CapexCode,$AD:$AD)","v":0},{"$f":"SUMIFS(Sheet1!S71_ASBudgetAmount,Sheet1!S71_SA34eCode,$AC:$AC,Sheet1!S71_A5CapexCode,$AD:$AD)","v":0},{"$f":"SUMIFS(Sheet1!S71_OY1BudgetAmount,Sheet1!S71_SA34eCode,$AC:$AC,Sheet1!S71_A5CapexCode,$AD:$AD)","v":0},{"$f":"SUMIFS(Sheet1!S71_OY2BudgetAmount,Sheet1!S71_SA34eCode,$AC:$AC,Sheet1!S71_A5CapexCode,$AD:$AD)","v":0},null,null,null,null,null,null,null,null,null,null,null,null,null,null,null,null,null,"0580","CE"]
["Rail Furniture",null,{"$f":"SUMIFS(Sheet1!S71_PPPYearAmount,Sheet1!S71_SA34eCode,$AC:$AC,Sheet1!S71_A5CapexCode,$AD:$AD)","v":0},{"$f":"SUMIFS(Sheet1!S71_PPYearAmount,Sheet1!S71_SA34eCode,$AC:$AC,Sheet1!S71_A5CapexCode,$AD:$AD)","v":0},{"$f":"SUMIFS(Sheet1!S71_PYearAmount,Sheet1!S71_SA34eCode,$AC:$AC,Sheet1!S71_A5CapexCode,$AD:$AD)","v":0},{"$f":"SUMIFS(Sheet1!S71_OriginalBudAmnt,Sheet1!S71_SA34eCode,$AC:$AC,Sheet1!S71_A5CapexCode,$AD:$AD)","v":0},{"$f":"SUMIFS(Sheet1!S71_AdjustmentBudAmnt,Sheet1!S71_SA34eCode,$AC:$AC,Sheet1!S71_A5CapexCode,$AD:$AD)","v":0},{"$f":"SUMIFS(Sheet1!S71_AdjustmentBudAmnt,Sheet1!S71_SA34eCode,$AC:$AC,Sheet1!S71_A5CapexCode,$AD:$AD)","v":0},{"$f":"SUMIFS(Sheet1!S71_ASBudgetAmount,Sheet1!S71_SA34eCode,$AC:$AC,Sheet1!S71_A5CapexCode,$AD:$AD)","v":0},{"$f":"SUMIFS(Sheet1!S71_OY1BudgetAmount,Sheet1!S71_SA34eCode,$AC:$AC,Sheet1!S71_A5CapexCode,$AD:$AD)","v":0},{"$f":"SUMIFS(Sheet1!S71_OY2BudgetAmount,Sheet1!S71_SA34eCode,$AC:$AC,Sheet1!S71_A5CapexCode,$AD:$AD)","v":0},null,null,null,null,null,null,null,null,null,null,null,null,null,null,null,null,null,"0590","CE"]
["Drainage Collection",null,{"$f":"SUMIFS(Sheet1!S71_PPPYearAmount,Sheet1!S71_SA34eCode,$AC:$AC,Sheet1!S71_A5CapexCode,$AD:$AD)","v":0},{"$f":"SUMIFS(Sheet1!S71_PPYearAmount,Sheet1!S71_SA34eCode,$AC:$AC,Sheet1!S71_A5CapexCode,$AD:$AD)","v":0},{"$f":"SUMIFS(Sheet1!S71_PYearAmount,Sheet1!S71_SA34eCode,$AC:$AC,Sheet1!S71_A5CapexCode,$AD:$AD)","v":0},{"$f":"SUMIFS(Sheet1!S71_OriginalBudAmnt,Sheet1!S71_SA34eCode,$AC:$AC,Sheet1!S71_A5CapexCode,$AD:$AD)","v":0},{"$f":"SUMIFS(Sheet1!S71_AdjustmentBudAmnt,Sheet1!S71_SA34eCode,$AC:$AC,Sheet1!S71_A5CapexCode,$AD:$AD)","v":0},{"$f":"SUMIFS(Sheet1!S71_AdjustmentBudAmnt,Sheet1!S71_SA34eCode,$AC:$AC,Sheet1!S71_A5CapexCode,$AD:$AD)","v":0},{"$f":"SUMIFS(Sheet1!S71_ASBudgetAmount,Sheet1!S71_SA34eCode,$AC:$AC,Sheet1!S71_A5CapexCode,$AD:$AD)","v":0},{"$f":"SUMIFS(Sheet1!S71_OY1BudgetAmount,Sheet1!S71_SA34eCode,$AC:$AC,Sheet1!S71_A5CapexCode,$AD:$AD)","v":0},{"$f":"SUMIFS(Sheet1!S71_OY2BudgetAmount,Sheet1!S71_SA34eCode,$AC:$AC,Sheet1!S71_A5CapexCode,$AD:$AD)","v":0},null,null,null,null,null,null,null,null,null,null,null,null,null,null,null,null,null,"0600","CE"]
["Storm water Conveyance",null,{"$f":"SUMIFS(Sheet1!S71_PPPYearAmount,Sheet1!S71_SA34eCode,$AC:$AC,Sheet1!S71_A5CapexCode,$AD:$AD)","v":0},{"$f":"SUMIFS(Sheet1!S71_PPYearAmount,Sheet1!S71_SA34eCode,$AC:$AC,Sheet1!S71_A5CapexCode,$AD:$AD)","v":0},{"$f":"SUMIFS(Sheet1!S71_PYearAmount,Sheet1!S71_SA34eCode,$AC:$AC,Sheet1!S71_A5CapexCode,$AD:$AD)","v":0},{"$f":"SUMIFS(Sheet1!S71_OriginalBudAmnt,Sheet1!S71_SA34eCode,$AC:$AC,Sheet1!S71_A5CapexCode,$AD:$AD)","v":0},{"$f":"SUMIFS(Sheet1!S71_AdjustmentBudAmnt,Sheet1!S71_SA34eCode,$AC:$AC,Sheet1!S71_A5CapexCode,$AD:$AD)","v":0},{"$f":"SUMIFS(Sheet1!S71_AdjustmentBudAmnt,Sheet1!S71_SA34eCode,$AC:$AC,Sheet1!S71_A5CapexCode,$AD:$AD)","v":0},{"$f":"SUMIFS(Sheet1!S71_ASBudgetAmount,Sheet1!S71_SA34eCode,$AC:$AC,Sheet1!S71_A5CapexCode,$AD:$AD)","v":0},{"$f":"SUMIFS(Sheet1!S71_OY1BudgetAmount,Sheet1!S71_SA34eCode,$AC:$AC,Sheet1!S71_A5CapexCode,$AD:$AD)","v":0},{"$f":"SUMIFS(Sheet1!S71_OY2BudgetAmount,Sheet1!S71_SA34eCode,$AC:$AC,Sheet1!S71_A5CapexCode,$AD:$AD)","v":0},null,null,null,null,null,null,null,null,null,null,null,null,null,null,null,null,null,"0610","CE"]
["Attenuation",null,{"$f":"SUMIFS(Sheet1!S71_PPPYearAmount,Sheet1!S71_SA34eCode,$AC:$AC,Sheet1!S71_A5CapexCode,$AD:$AD)","v":0},{"$f":"SUMIFS(Sheet1!S71_PPYearAmount,Sheet1!S71_SA34eCode,$AC:$AC,Sheet1!S71_A5CapexCode,$AD:$AD)","v":0},{"$f":"SUMIFS(Sheet1!S71_PYearAmount,Sheet1!S71_SA34eCode,$AC:$AC,Sheet1!S71_A5CapexCode,$AD:$AD)","v":0},{"$f":"SUMIFS(Sheet1!S71_OriginalBudAmnt,Sheet1!S71_SA34eCode,$AC:$AC,Sheet1!S71_A5CapexCode,$AD:$AD)","v":0},{"$f":"SUMIFS(Sheet1!S71_AdjustmentBudAmnt,Sheet1!S71_SA34eCode,$AC:$AC,Sheet1!S71_A5CapexCode,$AD:$AD)","v":0},{"$f":"SUMIFS(Sheet1!S71_AdjustmentBudAmnt,Sheet1!S71_SA34eCode,$AC:$AC,Sheet1!S71_A5CapexCode,$AD:$AD)","v":0},{"$f":"SUMIFS(Sheet1!S71_ASBudgetAmount,Sheet1!S71_SA34eCode,$AC:$AC,Sheet1!S71_A5CapexCode,$AD:$AD)","v":0},{"$f":"SUMIFS(Sheet1!S71_OY1BudgetAmount,Sheet1!S71_SA34eCode,$AC:$AC,Sheet1!S71_A5CapexCode,$AD:$AD)","v":0},{"$f":"SUMIFS(Sheet1!S71_OY2BudgetAmount,Sheet1!S71_SA34eCode,$AC:$AC,Sheet1!S71_A5CapexCode,$AD:$AD)","v":0},null,null,null,null,null,null,null,null,null,null,null,null,null,null,null,null,null,"0620","CE"]
["MV Substations",null,{"$f":"SUMIFS(Sheet1!S71_PPPYearAmount,Sheet1!S71_SA34eCode,$AC:$AC,Sheet1!S71_A5CapexCode,$AD:$AD)","v":0},{"$f":"SUMIFS(Sheet1!S71_PPYearAmount,Sheet1!S71_SA34eCode,$AC:$AC,Sheet1!S71_A5CapexCode,$AD:$AD)","v":0},{"$f":"SUMIFS(Sheet1!S71_PYearAmount,Sheet1!S71_SA34eCode,$AC:$AC,Sheet1!S71_A5CapexCode,$AD:$AD)","v":0},{"$f":"SUMIFS(Sheet1!S71_OriginalBudAmnt,Sheet1!S71_SA34eCode,$AC:$AC,Sheet1!S71_A5CapexCode,$AD:$AD)","v":0},{"$f":"SUMIFS(Sheet1!S71_AdjustmentBudAmnt,Sheet1!S71_SA34eCode,$AC:$AC,Sheet1!S71_A5CapexCode,$AD:$AD)","v":0},{"$f":"SUMIFS(Sheet1!S71_AdjustmentBudAmnt,Sheet1!S71_SA34eCode,$AC:$AC,Sheet1!S71_A5CapexCode,$AD:$AD)","v":0},{"$f":"SUMIFS(Sheet1!S71_ASBudgetAmount,Sheet1!S71_SA34eCode,$AC:$AC,Sheet1!S71_A5CapexCode,$AD:$AD)","v":0},{"$f":"SUMIFS(Sheet1!S71_OY1BudgetAmount,Sheet1!S71_SA34eCode,$AC:$AC,Sheet1!S71_A5CapexCode,$AD:$AD)","v":0},{"$f":"SUMIFS(Sheet1!S71_OY2BudgetAmount,Sheet1!S71_SA34eCode,$AC:$AC,Sheet1!S71_A5CapexCode,$AD:$AD)","v":0},null,null,null,null,null,null,null,null,null,null,null,null,null,null,null,null,null,"0630","CE"]
["LV Networks",null,{"$f":"SUMIFS(Sheet1!S71_PPPYearAmount,Sheet1!S71_SA34eCode,$AC:$AC,Sheet1!S71_A5CapexCode,$AD:$AD)","v":0},{"$f":"SUMIFS(Sheet1!S71_PPYearAmount,Sheet1!S71_SA34eCode,$AC:$AC,Sheet1!S71_A5CapexCode,$AD:$AD)","v":0},{"$f":"SUMIFS(Sheet1!S71_PYearAmount,Sheet1!S71_SA34eCode,$AC:$AC,Sheet1!S71_A5CapexCode,$AD:$AD)","v":0},{"$f":"SUMIFS(Sheet1!S71_OriginalBudAmnt,Sheet1!S71_SA34eCode,$AC:$AC,Sheet1!S71_A5CapexCode,$AD:$AD)","v":0},{"$f":"SUMIFS(Sheet1!S71_AdjustmentBudAmnt,Sheet1!S71_SA34eCode,$AC:$AC,Sheet1!S71_A5CapexCode,$AD:$AD)","v":0},{"$f":"SUMIFS(Sheet1!S71_AdjustmentBudAmnt,Sheet1!S71_SA34eCode,$AC:$AC,Sheet1!S71_A5CapexCode,$AD:$AD)","v":0},{"$f":"SUMIFS(Sheet1!S71_ASBudgetAmount,Sheet1!S71_SA34eCode,$AC:$AC,Sheet1!S71_A5CapexCode,$AD:$AD)","v":0},{"$f":"SUMIFS(Sheet1!S71_OY1BudgetAmount,Sheet1!S71_SA34eCode,$AC:$AC,Sheet1!S71_A5CapexCode,$AD:$AD)","v":0},{"$f":"SUMIFS(Sheet1!S71_OY2BudgetAmount,Sheet1!S71_SA34eCode,$AC:$AC,Sheet1!S71_A5CapexCode,$AD:$AD)","v":0},null,null,null,null,null,null,null,null,null,null,null,null,null,null,null,null,null,"0640","CE"]
["Capital Spares",null,{"$f":"SUMIFS(Sheet1!S71_PPPYearAmount,Sheet1!S71_SA34eCode,$AC:$AC,Sheet1!S71_A5CapexCode,$AD:$AD)","v":0},{"$f":"SUMIFS(Sheet1!S71_PPYearAmount,Sheet1!S71_SA34eCode,$AC:$AC,Sheet1!S71_A5CapexCode,$AD:$AD)","v":0},{"$f":"SUMIFS(Sheet1!S71_PYearAmount,Sheet1!S71_SA34eCode,$AC:$AC,Sheet1!S71_A5CapexCode,$AD:$AD)","v":0},{"$f":"SUMIFS(Sheet1!S71_OriginalBudAmnt,Sheet1!S71_SA34eCode,$AC:$AC,Sheet1!S71_A5CapexCode,$AD:$AD)","v":0},{"$f":"SUMIFS(Sheet1!S71_AdjustmentBudAmnt,Sheet1!S71_SA34eCode,$AC:$AC,Sheet1!S71_A5CapexCode,$AD:$AD)","v":0},{"$f":"SUMIFS(Sheet1!S71_AdjustmentBudAmnt,Sheet1!S71_SA34eCode,$AC:$AC,Sheet1!S71_A5CapexCode,$AD:$AD)","v":0},{"$f":"SUMIFS(Sheet1!S71_ASBudgetAmount,Sheet1!S71_SA34eCode,$AC:$AC,Sheet1!S71_A5CapexCode,$AD:$AD)","v":0},{"$f":"SUMIFS(Sheet1!S71_OY1BudgetAmount,Sheet1!S71_SA34eCode,$AC:$AC,Sheet1!S71_A5CapexCode,$AD:$AD)","v":0},{"$f":"SUMIFS(Sheet1!S71_OY2BudgetAmount,Sheet1!S71_SA34eCode,$AC:$AC,Sheet1!S71_A5CapexCode,$AD:$AD)","v":0},null,null,null,null,null,null,null,null,null,null,null,null,null,null,null,null,null,"0650","CE"]
["Coastal Infrastructure",null,{"$f":"SUM(C63:C67)","v":0},{"$f":"SUM(D63:D67)","v":0},0,0,0,0,0,0,0,null,null,null,null,null,null,null,null,null,null,null,null,null,null,null,null,null,null,"CE"]
["Sand Pumps",null,{"$f":"SUMIFS(Sheet1!S71_PPPYearAmount,Sheet1!S71_SA34eCode,$AC:$AC,Sheet1!S71_A5CapexCode,$AD:$AD)","v":0},{"$f":"SUMIFS(Sheet1!S71_PPYearAmount,Sheet1!S71_SA34eCode,$AC:$AC,Sheet1!S71_A5CapexCode,$AD:$AD)","v":0},{"$f":"SUMIFS(Sheet1!S71_PYearAmount,Sheet1!S71_SA34eCode,$AC:$AC,Sheet1!S71_A5CapexCode,$AD:$AD)","v":0},{"$f":"SUMIFS(Sheet1!S71_OriginalBudAmnt,Sheet1!S71_SA34eCode,$AC:$AC,Sheet1!S71_A5CapexCode,$AD:$AD)","v":0},{"$f":"SUMIFS(Sheet1!S71_AdjustmentBudAmnt,Sheet1!S71_SA34eCode,$AC:$AC,Sheet1!S71_A5CapexCode,$AD:$AD)","v":0},{"$f":"SUMIFS(Sheet1!S71_AdjustmentBudAmnt,Sheet1!S71_SA34eCode,$AC:$AC,Sheet1!S71_A5CapexCode,$AD:$AD)","v":0},{"$f":"SUMIFS(Sheet1!S71_ASBudgetAmount,Sheet1!S71_SA34eCode,$AC:$AC,Sheet1!S71_A5CapexCode,$AD:$AD)","v":0},{"$f":"SUMIFS(Sheet1!S71_OY1BudgetAmount,Sheet1!S71_SA34eCode,$AC:$AC,Sheet1!S71_A5CapexCode,$AD:$AD)","v":0},{"$f":"SUMIFS(Sheet1!S71_OY2BudgetAmount,Sheet1!S71_SA34eCode,$AC:$AC,Sheet1!S71_A5CapexCode,$AD:$AD)","v":0},null,null,null,null,null,null,null,null,null,null,null,null,null,null,null,null,null,"0670","CE"]
["Piers",null,{"$f":"SUMIFS(Sheet1!S71_PPPYearAmount,Sheet1!S71_SA34eCode,$AC:$AC,Sheet1!S71_A5CapexCode,$AD:$AD)","v":0},{"$f":"SUMIFS(Sheet1!S71_PPYearAmount,Sheet1!S71_SA34eCode,$AC:$AC,Sheet1!S71_A5CapexCode,$AD:$AD)","v":0},{"$f":"SUMIFS(Sheet1!S71_PYearAmount,Sheet1!S71_SA34eCode,$AC:$AC,Sheet1!S71_A5CapexCode,$AD:$AD)","v":0},{"$f":"SUMIFS(Sheet1!S71_OriginalBudAmnt,Sheet1!S71_SA34eCode,$AC:$AC,Sheet1!S71_A5CapexCode,$AD:$AD)","v":0},{"$f":"SUMIFS(Sheet1!S71_AdjustmentBudAmnt,Sheet1!S71_SA34eCode,$AC:$AC,Sheet1!S71_A5CapexCode,$AD:$AD)","v":0},{"$f":"SUMIFS(Sheet1!S71_AdjustmentBudAmnt,Sheet1!S71_SA34eCode,$AC:$AC,Sheet1!S71_A5CapexCode,$AD:$AD)","v":0},{"$f":"SUMIFS(Sheet1!S71_ASBudgetAmount,Sheet1!S71_SA34eCode,$AC:$AC,Sheet1!S71_A5CapexCode,$AD:$AD)","v":0},{"$f":"SUMIFS(Sheet1!S71_OY1BudgetAmount,Sheet1!S71_SA34eCode,$AC:$AC,Sheet1!S71_A5CapexCode,$AD:$AD)","v":0},{"$f":"SUMIFS(Sheet1!S71_OY2BudgetAmount,Sheet1!S71_SA34eCode,$AC:$AC,Sheet1!S71_A5CapexCode,$AD:$AD)","v":0},null,null,null,null,null,null,null,null,null,null,null,null,null,null,null,null,null,"0680","CE"]
["Revetments",null,{"$f":"SUMIFS(Sheet1!S71_PPPYearAmount,Sheet1!S71_SA34eCode,$AC:$AC,Sheet1!S71_A5CapexCode,$AD:$AD)","v":0},{"$f":"SUMIFS(Sheet1!S71_PPYearAmount,Sheet1!S71_SA34eCode,$AC:$AC,Sheet1!S71_A5CapexCode,$AD:$AD)","v":0},{"$f":"SUMIFS(Sheet1!S71_PYearAmount,Sheet1!S71_SA34eCode,$AC:$AC,Sheet1!S71_A5CapexCode,$AD:$AD)","v":0},{"$f":"SUMIFS(Sheet1!S71_OriginalBudAmnt,Sheet1!S71_SA34eCode,$AC:$AC,Sheet1!S71_A5CapexCode,$AD:$AD)","v":0},{"$f":"SUMIFS(Sheet1!S71_AdjustmentBudAmnt,Sheet1!S71_SA34eCode,$AC:$AC,Sheet1!S71_A5CapexCode,$AD:$AD)","v":0},{"$f":"SUMIFS(Sheet1!S71_AdjustmentBudAmnt,Sheet1!S71_SA34eCode,$AC:$AC,Sheet1!S71_A5CapexCode,$AD:$AD)","v":0},{"$f":"SUMIFS(Sheet1!S71_ASBudgetAmount,Sheet1!S71_SA34eCode,$AC:$AC,Sheet1!S71_A5CapexCode,$AD:$AD)","v":0},{"$f":"SUMIFS(Sheet1!S71_OY1BudgetAmount,Sheet1!S71_SA34eCode,$AC:$AC,Sheet1!S71_A5CapexCode,$AD:$AD)","v":0},{"$f":"SUMIFS(Sheet1!S71_OY2BudgetAmount,Sheet1!S71_SA34eCode,$AC:$AC,Sheet1!S71_A5CapexCode,$AD:$AD)","v":0},null,null,null,null,null,null,null,null,null,null,null,null,null,null,null,null,null,"0690","CE"]
["Promenades",null,{"$f":"SUMIFS(Sheet1!S71_PPPYearAmount,Sheet1!S71_SA34eCode,$AC:$AC,Sheet1!S71_A5CapexCode,$AD:$AD)","v":0},{"$f":"SUMIFS(Sheet1!S71_PPYearAmount,Sheet1!S71_SA34eCode,$AC:$AC,Sheet1!S71_A5CapexCode,$AD:$AD)","v":0},{"$f":"SUMIFS(Sheet1!S71_PYearAmount,Sheet1!S71_SA34eCode,$AC:$AC,Sheet1!S71_A5CapexCode,$AD:$AD)","v":0},{"$f":"SUMIFS(Sheet1!S71_OriginalBudAmnt,Sheet1!S71_SA34eCode,$AC:$AC,Sheet1!S71_A5CapexCode,$AD:$AD)","v":0},{"$f":"SUMIFS(Sheet1!S71_AdjustmentBudAmnt,Sheet1!S71_SA34eCode,$AC:$AC,Sheet1!S71_A5CapexCode,$AD:$AD)","v":0},{"$f":"SUMIFS(Sheet1!S71_AdjustmentBudAmnt,Sheet1!S71_SA34eCode,$AC:$AC,Sheet1!S71_A5CapexCode,$AD:$AD)","v":0},{"$f":"SUMIFS(Sheet1!S71_ASBudgetAmount,Sheet1!S71_SA34eCode,$AC:$AC,Sheet1!S71_A5CapexCode,$AD:$AD)","v":0},{"$f":"SUMIFS(Sheet1!S71_OY1BudgetAmount,Sheet1!S71_SA34eCode,$AC:$AC,Sheet1!S71_A5CapexCode,$AD:$AD)","v":0},{"$f":"SUMIFS(Sheet1!S71_OY2BudgetAmount,Sheet1!S71_SA34eCode,$AC:$AC,Sheet1!S71_A5CapexCode,$AD:$AD)","v":0},null,null,null,null,null,null,null,null,null,null,null,null,null,null,null,null,null,"0700","CE"]
["Capital Spares",null,{"$f":"SUMIFS(Sheet1!S71_PPPYearAmount,Sheet1!S71_SA34eCode,$AC:$AC,Sheet1!S71_A5CapexCode,$AD:$AD)","v":0},{"$f":"SUMIFS(Sheet1!S71_PPYearAmount,Sheet1!S71_SA34eCode,$AC:$AC,Sheet1!S71_A5CapexCode,$AD:$AD)","v":0},{"$f":"SUMIFS(Sheet1!S71_PYearAmount,Sheet1!S71_SA34eCode,$AC:$AC,Sheet1!S71_A5CapexCode,$AD:$AD)","v":0},{"$f":"SUMIFS(Sheet1!S71_OriginalBudAmnt,Sheet1!S71_SA34eCode,$AC:$AC,Sheet1!S71_A5CapexCode,$AD:$AD)","v":0},{"$f":"SUMIFS(Sheet1!S71_AdjustmentBudAmnt,Sheet1!S71_SA34eCode,$AC:$AC,Sheet1!S71_A5CapexCode,$AD:$AD)","v":0},{"$f":"SUMIFS(Sheet1!S71_AdjustmentBudAmnt,Sheet1!S71_SA34eCode,$AC:$AC,Sheet1!S71_A5CapexCode,$AD:$AD)","v":0},{"$f":"SUMIFS(Sheet1!S71_ASBudgetAmount,Sheet1!S71_SA34eCode,$AC:$AC,Sheet1!S71_A5CapexCode,$AD:$AD)","v":0},{"$f":"SUMIFS(Sheet1!S71_OY1BudgetAmount,Sheet1!S71_SA34eCode,$AC:$AC,Sheet1!S71_A5CapexCode,$AD:$AD)","v":0},{"$f":"SUMIFS(Sheet1!S71_OY2BudgetAmount,Sheet1!S71_SA34eCode,$AC:$AC,Sheet1!S71_A5CapexCode,$AD:$AD)","v":0},null,null,null,null,null,null,null,null,null,null,null,null,null,null,null,null,null,"0710","CE"]
["Information and Communication Infrastructure",null,{"$f":"SUM(C69:C72)","v":0},{"$f":"SUM(D69:D72)","v":0},0,0,0,0,0,0,0,null,null,null,null,null,null,null,null,null,null,null,null,null,null,null,null,null,null,"CE"]
["Data Centres",null,{"$f":"SUMIFS(Sheet1!S71_PPPYearAmount,Sheet1!S71_SA34eCode,$AC:$AC,Sheet1!S71_A5CapexCode,$AD:$AD)","v":0},{"$f":"SUMIFS(Sheet1!S71_PPYearAmount,Sheet1!S71_SA34eCode,$AC:$AC,Sheet1!S71_A5CapexCode,$AD:$AD)","v":0},{"$f":"SUMIFS(Sheet1!S71_PYearAmount,Sheet1!S71_SA34eCode,$AC:$AC,Sheet1!S71_A5CapexCode,$AD:$AD)","v":0},{"$f":"SUMIFS(Sheet1!S71_OriginalBudAmnt,Sheet1!S71_SA34eCode,$AC:$AC,Sheet1!S71_A5CapexCode,$AD:$AD)","v":0},{"$f":"SUMIFS(Sheet1!S71_AdjustmentBudAmnt,Sheet1!S71_SA34eCode,$AC:$AC,Sheet1!S71_A5CapexCode,$AD:$AD)","v":0},{"$f":"SUMIFS(Sheet1!S71_AdjustmentBudAmnt,Sheet1!S71_SA34eCode,$AC:$AC,Sheet1!S71_A5CapexCode,$AD:$AD)","v":0},{"$f":"SUMIFS(Sheet1!S71_ASBudgetAmount,Sheet1!S71_SA34eCode,$AC:$AC,Sheet1!S71_A5CapexCode,$AD:$AD)","v":0},{"$f":"SUMIFS(Sheet1!S71_OY1BudgetAmount,Sheet1!S71_SA34eCode,$AC:$AC,Sheet1!S71_A5CapexCode,$AD:$AD)","v":0},{"$f":"SUMIFS(Sheet1!S71_OY2BudgetAmount,Sheet1!S71_SA34eCode,$AC:$AC,Sheet1!S71_A5CapexCode,$AD:$AD)","v":0},null,null,null,null,null,null,null,null,null,null,null,null,null,null,null,null,null,"0730","CE"]
["Core Layers",null,{"$f":"SUMIFS(Sheet1!S71_PPPYearAmount,Sheet1!S71_SA34eCode,$AC:$AC,Sheet1!S71_A5CapexCode,$AD:$AD)","v":0},{"$f":"SUMIFS(Sheet1!S71_PPYearAmount,Sheet1!S71_SA34eCode,$AC:$AC,Sheet1!S71_A5CapexCode,$AD:$AD)","v":0},{"$f":"SUMIFS(Sheet1!S71_PYearAmount,Sheet1!S71_SA34eCode,$AC:$AC,Sheet1!S71_A5CapexCode,$AD:$AD)","v":0},{"$f":"SUMIFS(Sheet1!S71_OriginalBudAmnt,Sheet1!S71_SA34eCode,$AC:$AC,Sheet1!S71_A5CapexCode,$AD:$AD)","v":0},{"$f":"SUMIFS(Sheet1!S71_AdjustmentBudAmnt,Sheet1!S71_SA34eCode,$AC:$AC,Sheet1!S71_A5CapexCode,$AD:$AD)","v":0},{"$f":"SUMIFS(Sheet1!S71_AdjustmentBudAmnt,Sheet1!S71_SA34eCode,$AC:$AC,Sheet1!S71_A5CapexCode,$AD:$AD)","v":0},{"$f":"SUMIFS(Sheet1!S71_ASBudgetAmount,Sheet1!S71_SA34eCode,$AC:$AC,Sheet1!S71_A5CapexCode,$AD:$AD)","v":0},{"$f":"SUMIFS(Sheet1!S71_OY1BudgetAmount,Sheet1!S71_SA34eCode,$AC:$AC,Sheet1!S71_A5CapexCode,$AD:$AD)","v":0},{"$f":"SUMIFS(Sheet1!S71_OY2BudgetAmount,Sheet1!S71_SA34eCode,$AC:$AC,Sheet1!S71_A5CapexCode,$AD:$AD)","v":0},null,null,null,null,null,null,null,null,null,null,null,null,null,null,null,null,null,"0740","CE"]
["Distribution Layers",null,{"$f":"SUMIFS(Sheet1!S71_PPPYearAmount,Sheet1!S71_SA34eCode,$AC:$AC,Sheet1!S71_A5CapexCode,$AD:$AD)","v":0},{"$f":"SUMIFS(Sheet1!S71_PPYearAmount,Sheet1!S71_SA34eCode,$AC:$AC,Sheet1!S71_A5CapexCode,$AD:$AD)","v":0},{"$f":"SUMIFS(Sheet1!S71_PYearAmount,Sheet1!S71_SA34eCode,$AC:$AC,Sheet1!S71_A5CapexCode,$AD:$AD)","v":0},{"$f":"SUMIFS(Sheet1!S71_OriginalBudAmnt,Sheet1!S71_SA34eCode,$AC:$AC,Sheet1!S71_A5CapexCode,$AD:$AD)","v":0},{"$f":"SUMIFS(Sheet1!S71_AdjustmentBudAmnt,Sheet1!S71_SA34eCode,$AC:$AC,Sheet1!S71_A5CapexCode,$AD:$AD)","v":0},{"$f":"SUMIFS(Sheet1!S71_AdjustmentBudAmnt,Sheet1!S71_SA34eCode,$AC:$AC,Sheet1!S71_A5CapexCode,$AD:$AD)","v":0},{"$f":"SUMIFS(Sheet1!S71_ASBudgetAmount,Sheet1!S71_SA34eCode,$AC:$AC,Sheet1!S71_A5CapexCode,$AD:$AD)","v":0},{"$f":"SUMIFS(Sheet1!S71_OY1BudgetAmount,Sheet1!S71_SA34eCode,$AC:$AC,Sheet1!S71_A5CapexCode,$AD:$AD)","v":0},{"$f":"SUMIFS(Sheet1!S71_OY2BudgetAmount,Sheet1!S71_SA34eCode,$AC:$AC,Sheet1!S71_A5CapexCode,$AD:$AD)","v":0},null,null,null,null,null,null,null,null,null,null,null,null,null,null,null,null,null,"0750","CE"]
["Capital Spares",null,{"$f":"SUMIFS(Sheet1!S71_PPPYearAmount,Sheet1!S71_SA34eCode,$AC:$AC,Sheet1!S71_A5CapexCode,$AD:$AD)","v":0},{"$f":"SUMIFS(Sheet1!S71_PPYearAmount,Sheet1!S71_SA34eCode,$AC:$AC,Sheet1!S71_A5CapexCode,$AD:$AD)","v":0},{"$f":"SUMIFS(Sheet1!S71_PYearAmount,Sheet1!S71_SA34eCode,$AC:$AC,Sheet1!S71_A5CapexCode,$AD:$AD)","v":0},{"$f":"SUMIFS(Sheet1!S71_OriginalBudAmnt,Sheet1!S71_SA34eCode,$AC:$AC,Sheet1!S71_A5CapexCode,$AD:$AD)","v":0},{"$f":"SUMIFS(Sheet1!S71_AdjustmentBudAmnt,Sheet1!S71_SA34eCode,$AC:$AC,Sheet1!S71_A5CapexCode,$AD:$AD)","v":0},{"$f":"SUMIFS(Sheet1!S71_AdjustmentBudAmnt,Sheet1!S71_SA34eCode,$AC:$AC,Sheet1!S71_A5CapexCode,$AD:$AD)","v":0},{"$f":"SUMIFS(Sheet1!S71_ASBudgetAmount,Sheet1!S71_SA34eCode,$AC:$AC,Sheet1!S71_A5CapexCode,$AD:$AD)","v":0},{"$f":"SUMIFS(Sheet1!S71_OY1BudgetAmount,Sheet1!S71_SA34eCode,$AC:$AC,Sheet1!S71_A5CapexCode,$AD:$AD)","v":0},{"$f":"SUMIFS(Sheet1!S71_OY2BudgetAmount,Sheet1!S71_SA34eCode,$AC:$AC,Sheet1!S71_A5CapexCode,$AD:$AD)","v":0},null,null,null,null,null,null,null,null,null,null,null,null,null,null,null,null,null,"0760","CE"]
[null,null,null,null,null,null,null,null,null,null,null,null,null,null,null,null,null,null,null,null,null,null,null,null,null,null,null,null,null,"CE"]
["Community Assets",null,{"$f":"C75+C98","v":13259362},{"$f":"D75+D98","v":13259362},13889775,4600000,3854255,3854255,8500000,14600000,1200000,null,null,null,null,null,null,null,null,null,null,null,null,null,null,null,null,null,null,"CE"]
["Community Facilities",null,{"$f":"SUM(C76:C97)","v":0},{"$f":"SUM(D76:D97)","v":0},0,600000,300000,300000,1000000,1100000,1200000,null,null,null,null,null,null,null,null,null,null,null,null,null,null,null,null,null,null,"CE"]
["Halls",null,{"$f":"SUMIFS(Sheet1!S71_PPPYearAmount,Sheet1!S71_SA34eCode,$AC:$AC,Sheet1!S71_A5CapexCode,$AD:$AD)","v":0},{"$f":"SUMIFS(Sheet1!S71_PPYearAmount,Sheet1!S71_SA34eCode,$AC:$AC,Sheet1!S71_A5CapexCode,$AD:$AD)","v":0},{"$f":"SUMIFS(Sheet1!S71_PYearAmount,Sheet1!S71_SA34eCode,$AC:$AC,Sheet1!S71_A5CapexCode,$AD:$AD)","v":0},{"$f":"SUMIFS(Sheet1!S71_OriginalBudAmnt,Sheet1!S71_SA34eCode,$AC:$AC,Sheet1!S71_A5CapexCode,$AD:$AD)","v":0},{"$f":"SUMIFS(Sheet1!S71_AdjustmentBudAmnt,Sheet1!S71_SA34eCode,$AC:$AC,Sheet1!S71_A5CapexCode,$AD:$AD)","v":0},{"$f":"SUMIFS(Sheet1!S71_AdjustmentBudAmnt,Sheet1!S71_SA34eCode,$AC:$AC,Sheet1!S71_A5CapexCode,$AD:$AD)","v":0},{"$f":"SUMIFS(Sheet1!S71_ASBudgetAmount,Sheet1!S71_SA34eCode,$AC:$AC,Sheet1!S71_A5CapexCode,$AD:$AD)","v":0},{"$f":"SUMIFS(Sheet1!S71_OY1BudgetAmount,Sheet1!S71_SA34eCode,$AC:$AC,Sheet1!S71_A5CapexCode,$AD:$AD)","v":0},{"$f":"SUMIFS(Sheet1!S71_OY2BudgetAmount,Sheet1!S71_SA34eCode,$AC:$AC,Sheet1!S71_A5CapexCode,$AD:$AD)","v":0},null,null,null,null,null,null,null,null,null,null,null,null,null,null,null,null,null,"0790","CE"]
["Centres",null,{"$f":"SUMIFS(Sheet1!S71_PPPYearAmount,Sheet1!S71_SA34eCode,$AC:$AC,Sheet1!S71_A5CapexCode,$AD:$AD)","v":0},{"$f":"SUMIFS(Sheet1!S71_PPYearAmount,Sheet1!S71_SA34eCode,$AC:$AC,Sheet1!S71_A5CapexCode,$AD:$AD)","v":0},{"$f":"SUMIFS(Sheet1!S71_PYearAmount,Sheet1!S71_SA34eCode,$AC:$AC,Sheet1!S71_A5CapexCode,$AD:$AD)","v":0},{"$f":"SUMIFS(Sheet1!S71_OriginalBudAmnt,Sheet1!S71_SA34eCode,$AC:$AC,Sheet1!S71_A5CapexCode,$AD:$AD)","v":600000},{"$f":"SUMIFS(Sheet1!S71_AdjustmentBudAmnt,Sheet1!S71_SA34eCode,$AC:$AC,Sheet1!S71_A5CapexCode,$AD:$AD)","v":300000},{"$f":"SUMIFS(Sheet1!S71_AdjustmentBudAmnt,Sheet1!S71_SA34eCode,$AC:$AC,Sheet1!S71_A5CapexCode,$AD:$AD)","v":300000},{"$f":"SUMIFS(Sheet1!S71_ASBudgetAmount,Sheet1!S71_SA34eCode,$AC:$AC,Sheet1!S71_A5CapexCode,$AD:$AD)","v":1000000},{"$f":"SUMIFS(Sheet1!S71_OY1BudgetAmount,Sheet1!S71_SA34eCode,$AC:$AC,Sheet1!S71_A5CapexCode,$AD:$AD)","v":1100000},{"$f":"SUMIFS(Sheet1!S71_OY2BudgetAmount,Sheet1!S71_SA34eCode,$AC:$AC,Sheet1!S71_A5CapexCode,$AD:$AD)","v":1200000},null,null,null,null,null,null,null,null,null,null,null,null,null,null,null,null,null,"0800","CE"]
["Crèches",null,{"$f":"SUMIFS(Sheet1!S71_PPPYearAmount,Sheet1!S71_SA34eCode,$AC:$AC,Sheet1!S71_A5CapexCode,$AD:$AD)","v":0},{"$f":"SUMIFS(Sheet1!S71_PPYearAmount,Sheet1!S71_SA34eCode,$AC:$AC,Sheet1!S71_A5CapexCode,$AD:$AD)","v":0},{"$f":"SUMIFS(Sheet1!S71_PYearAmount,Sheet1!S71_SA34eCode,$AC:$AC,Sheet1!S71_A5CapexCode,$AD:$AD)","v":0},{"$f":"SUMIFS(Sheet1!S71_OriginalBudAmnt,Sheet1!S71_SA34eCode,$AC:$AC,Sheet1!S71_A5CapexCode,$AD:$AD)","v":0},{"$f":"SUMIFS(Sheet1!S71_AdjustmentBudAmnt,Sheet1!S71_SA34eCode,$AC:$AC,Sheet1!S71_A5CapexCode,$AD:$AD)","v":0},{"$f":"SUMIFS(Sheet1!S71_AdjustmentBudAmnt,Sheet1!S71_SA34eCode,$AC:$AC,Sheet1!S71_A5CapexCode,$AD:$AD)","v":0},{"$f":"SUMIFS(Sheet1!S71_ASBudgetAmount,Sheet1!S71_SA34eCode,$AC:$AC,Sheet1!S71_A5CapexCode,$AD:$AD)","v":0},{"$f":"SUMIFS(Sheet1!S71_OY1BudgetAmount,Sheet1!S71_SA34eCode,$AC:$AC,Sheet1!S71_A5CapexCode,$AD:$AD)","v":0},{"$f":"SUMIFS(Sheet1!S71_OY2BudgetAmount,Sheet1!S71_SA34eCode,$AC:$AC,Sheet1!S71_A5CapexCode,$AD:$AD)","v":0},null,null,null,null,null,null,null,null,null,null,null,null,null,null,null,null,null,"0810","CE"]
["Clinics/Care Centres",null,{"$f":"SUMIFS(Sheet1!S71_PPPYearAmount,Sheet1!S71_SA34eCode,$AC:$AC,Sheet1!S71_A5CapexCode,$AD:$AD)","v":0},{"$f":"SUMIFS(Sheet1!S71_PPYearAmount,Sheet1!S71_SA34eCode,$AC:$AC,Sheet1!S71_A5CapexCode,$AD:$AD)","v":0},{"$f":"SUMIFS(Sheet1!S71_PYearAmount,Sheet1!S71_SA34eCode,$AC:$AC,Sheet1!S71_A5CapexCode,$AD:$AD)","v":0},{"$f":"SUMIFS(Sheet1!S71_OriginalBudAmnt,Sheet1!S71_SA34eCode,$AC:$AC,Sheet1!S71_A5CapexCode,$AD:$AD)","v":0},{"$f":"SUMIFS(Sheet1!S71_AdjustmentBudAmnt,Sheet1!S71_SA34eCode,$AC:$AC,Sheet1!S71_A5CapexCode,$AD:$AD)","v":0},{"$f":"SUMIFS(Sheet1!S71_AdjustmentBudAmnt,Sheet1!S71_SA34eCode,$AC:$AC,Sheet1!S71_A5CapexCode,$AD:$AD)","v":0},{"$f":"SUMIFS(Sheet1!S71_ASBudgetAmount,Sheet1!S71_SA34eCode,$AC:$AC,Sheet1!S71_A5CapexCode,$AD:$AD)","v":0},{"$f":"SUMIFS(Sheet1!S71_OY1BudgetAmount,Sheet1!S71_SA34eCode,$AC:$AC,Sheet1!S71_A5CapexCode,$AD:$AD)","v":0},{"$f":"SUMIFS(Sheet1!S71_OY2BudgetAmount,Sheet1!S71_SA34eCode,$AC:$AC,Sheet1!S71_A5CapexCode,$AD:$AD)","v":0},null,null,null,null,null,null,null,null,null,null,null,null,null,null,null,null,null,"0820","CE"]
["Fire/Ambulance Stations",null,{"$f":"SUMIFS(Sheet1!S71_PPPYearAmount,Sheet1!S71_SA34eCode,$AC:$AC,Sheet1!S71_A5CapexCode,$AD:$AD)","v":0},{"$f":"SUMIFS(Sheet1!S71_PPYearAmount,Sheet1!S71_SA34eCode,$AC:$AC,Sheet1!S71_A5CapexCode,$AD:$AD)","v":0},{"$f":"SUMIFS(Sheet1!S71_PYearAmount,Sheet1!S71_SA34eCode,$AC:$AC,Sheet1!S71_A5CapexCode,$AD:$AD)","v":0},{"$f":"SUMIFS(Sheet1!S71_OriginalBudAmnt,Sheet1!S71_SA34eCode,$AC:$AC,Sheet1!S71_A5CapexCode,$AD:$AD)","v":0},{"$f":"SUMIFS(Sheet1!S71_AdjustmentBudAmnt,Sheet1!S71_SA34eCode,$AC:$AC,Sheet1!S71_A5CapexCode,$AD:$AD)","v":0},{"$f":"SUMIFS(Sheet1!S71_AdjustmentBudAmnt,Sheet1!S71_SA34eCode,$AC:$AC,Sheet1!S71_A5CapexCode,$AD:$AD)","v":0},{"$f":"SUMIFS(Sheet1!S71_ASBudgetAmount,Sheet1!S71_SA34eCode,$AC:$AC,Sheet1!S71_A5CapexCode,$AD:$AD)","v":0},{"$f":"SUMIFS(Sheet1!S71_OY1BudgetAmount,Sheet1!S71_SA34eCode,$AC:$AC,Sheet1!S71_A5CapexCode,$AD:$AD)","v":0},{"$f":"SUMIFS(Sheet1!S71_OY2BudgetAmount,Sheet1!S71_SA34eCode,$AC:$AC,Sheet1!S71_A5CapexCode,$AD:$AD)","v":0},null,null,null,null,null,null,null,null,null,null,null,null,null,null,null,null,null,"0830","CE"]
["Testing Stations",null,{"$f":"SUMIFS(Sheet1!S71_PPPYearAmount,Sheet1!S71_SA34eCode,$AC:$AC,Sheet1!S71_A5CapexCode,$AD:$AD)","v":0},{"$f":"SUMIFS(Sheet1!S71_PPYearAmount,Sheet1!S71_SA34eCode,$AC:$AC,Sheet1!S71_A5CapexCode,$AD:$AD)","v":0},{"$f":"SUMIFS(Sheet1!S71_PYearAmount,Sheet1!S71_SA34eCode,$AC:$AC,Sheet1!S71_A5CapexCode,$AD:$AD)","v":0},{"$f":"SUMIFS(Sheet1!S71_OriginalBudAmnt,Sheet1!S71_SA34eCode,$AC:$AC,Sheet1!S71_A5CapexCode,$AD:$AD)","v":0},{"$f":"SUMIFS(Sheet1!S71_AdjustmentBudAmnt,Sheet1!S71_SA34eCode,$AC:$AC,Sheet1!S71_A5CapexCode,$AD:$AD)","v":0},{"$f":"SUMIFS(Sheet1!S71_AdjustmentBudAmnt,Sheet1!S71_SA34eCode,$AC:$AC,Sheet1!S71_A5CapexCode,$AD:$AD)","v":0},{"$f":"SUMIFS(Sheet1!S71_ASBudgetAmount,Sheet1!S71_SA34eCode,$AC:$AC,Sheet1!S71_A5CapexCode,$AD:$AD)","v":0},{"$f":"SUMIFS(Sheet1!S71_OY1BudgetAmount,Sheet1!S71_SA34eCode,$AC:$AC,Sheet1!S71_A5CapexCode,$AD:$AD)","v":0},{"$f":"SUMIFS(Sheet1!S71_OY2BudgetAmount,Sheet1!S71_SA34eCode,$AC:$AC,Sheet1!S71_A5CapexCode,$AD:$AD)","v":0},null,null,null,null,null,null,null,null,null,null,null,null,null,null,null,null,null,"0840","CE"]
["Museums",null,{"$f":"SUMIFS(Sheet1!S71_PPPYearAmount,Sheet1!S71_SA34eCode,$AC:$AC,Sheet1!S71_A5CapexCode,$AD:$AD)","v":0},{"$f":"SUMIFS(Sheet1!S71_PPYearAmount,Sheet1!S71_SA34eCode,$AC:$AC,Sheet1!S71_A5CapexCode,$AD:$AD)","v":0},{"$f":"SUMIFS(Sheet1!S71_PYearAmount,Sheet1!S71_SA34eCode,$AC:$AC,Sheet1!S71_A5CapexCode,$AD:$AD)","v":0},{"$f":"SUMIFS(Sheet1!S71_OriginalBudAmnt,Sheet1!S71_SA34eCode,$AC:$AC,Sheet1!S71_A5CapexCode,$AD:$AD)","v":0},{"$f":"SUMIFS(Sheet1!S71_AdjustmentBudAmnt,Sheet1!S71_SA34eCode,$AC:$AC,Sheet1!S71_A5CapexCode,$AD:$AD)","v":0},{"$f":"SUMIFS(Sheet1!S71_AdjustmentBudAmnt,Sheet1!S71_SA34eCode,$AC:$AC,Sheet1!S71_A5CapexCode,$AD:$AD)","v":0},{"$f":"SUMIFS(Sheet1!S71_ASBudgetAmount,Sheet1!S71_SA34eCode,$AC:$AC,Sheet1!S71_A5CapexCode,$AD:$AD)","v":0},{"$f":"SUMIFS(Sheet1!S71_OY1BudgetAmount,Sheet1!S71_SA34eCode,$AC:$AC,Sheet1!S71_A5CapexCode,$AD:$AD)","v":0},{"$f":"SUMIFS(Sheet1!S71_OY2BudgetAmount,Sheet1!S71_SA34eCode,$AC:$AC,Sheet1!S71_A5CapexCode,$AD:$AD)","v":0},null,null,null,null,null,null,null,null,null,null,null,null,null,null,null,null,null,"0850","CE"]
["Galleries",null,{"$f":"SUMIFS(Sheet1!S71_PPPYearAmount,Sheet1!S71_SA34eCode,$AC:$AC,Sheet1!S71_A5CapexCode,$AD:$AD)","v":0},{"$f":"SUMIFS(Sheet1!S71_PPYearAmount,Sheet1!S71_SA34eCode,$AC:$AC,Sheet1!S71_A5CapexCode,$AD:$AD)","v":0},{"$f":"SUMIFS(Sheet1!S71_PYearAmount,Sheet1!S71_SA34eCode,$AC:$AC,Sheet1!S71_A5CapexCode,$AD:$AD)","v":0},{"$f":"SUMIFS(Sheet1!S71_OriginalBudAmnt,Sheet1!S71_SA34eCode,$AC:$AC,Sheet1!S71_A5CapexCode,$AD:$AD)","v":0},{"$f":"SUMIFS(Sheet1!S71_AdjustmentBudAmnt,Sheet1!S71_SA34eCode,$AC:$AC,Sheet1!S71_A5CapexCode,$AD:$AD)","v":0},{"$f":"SUMIFS(Sheet1!S71_AdjustmentBudAmnt,Sheet1!S71_SA34eCode,$AC:$AC,Sheet1!S71_A5CapexCode,$AD:$AD)","v":0},{"$f":"SUMIFS(Sheet1!S71_ASBudgetAmount,Sheet1!S71_SA34eCode,$AC:$AC,Sheet1!S71_A5CapexCode,$AD:$AD)","v":0},{"$f":"SUMIFS(Sheet1!S71_OY1BudgetAmount,Sheet1!S71_SA34eCode,$AC:$AC,Sheet1!S71_A5CapexCode,$AD:$AD)","v":0},{"$f":"SUMIFS(Sheet1!S71_OY2BudgetAmount,Sheet1!S71_SA34eCode,$AC:$AC,Sheet1!S71_A5CapexCode,$AD:$AD)","v":0},null,null,null,null,null,null,null,null,null,null,null,null,null,null,null,null,null,"0860","CE"]
["Theatres",null,{"$f":"SUMIFS(Sheet1!S71_PPPYearAmount,Sheet1!S71_SA34eCode,$AC:$AC,Sheet1!S71_A5CapexCode,$AD:$AD)","v":0},{"$f":"SUMIFS(Sheet1!S71_PPYearAmount,Sheet1!S71_SA34eCode,$AC:$AC,Sheet1!S71_A5CapexCode,$AD:$AD)","v":0},{"$f":"SUMIFS(Sheet1!S71_PYearAmount,Sheet1!S71_SA34eCode,$AC:$AC,Sheet1!S71_A5CapexCode,$AD:$AD)","v":0},{"$f":"SUMIFS(Sheet1!S71_OriginalBudAmnt,Sheet1!S71_SA34eCode,$AC:$AC,Sheet1!S71_A5CapexCode,$AD:$AD)","v":0},{"$f":"SUMIFS(Sheet1!S71_AdjustmentBudAmnt,Sheet1!S71_SA34eCode,$AC:$AC,Sheet1!S71_A5CapexCode,$AD:$AD)","v":0},{"$f":"SUMIFS(Sheet1!S71_AdjustmentBudAmnt,Sheet1!S71_SA34eCode,$AC:$AC,Sheet1!S71_A5CapexCode,$AD:$AD)","v":0},{"$f":"SUMIFS(Sheet1!S71_ASBudgetAmount,Sheet1!S71_SA34eCode,$AC:$AC,Sheet1!S71_A5CapexCode,$AD:$AD)","v":0},{"$f":"SUMIFS(Sheet1!S71_OY1BudgetAmount,Sheet1!S71_SA34eCode,$AC:$AC,Sheet1!S71_A5CapexCode,$AD:$AD)","v":0},{"$f":"SUMIFS(Sheet1!S71_OY2BudgetAmount,Sheet1!S71_SA34eCode,$AC:$AC,Sheet1!S71_A5CapexCode,$AD:$AD)","v":0},null,null,null,null,null,null,null,null,null,null,null,null,null,null,null,null,null,"0870","CE"]
["Libraries",null,{"$f":"SUMIFS(Sheet1!S71_PPPYearAmount,Sheet1!S71_SA34eCode,$AC:$AC,Sheet1!S71_A5CapexCode,$AD:$AD)","v":0},{"$f":"SUMIFS(Sheet1!S71_PPYearAmount,Sheet1!S71_SA34eCode,$AC:$AC,Sheet1!S71_A5CapexCode,$AD:$AD)","v":0},{"$f":"SUMIFS(Sheet1!S71_PYearAmount,Sheet1!S71_SA34eCode,$AC:$AC,Sheet1!S71_A5CapexCode,$AD:$AD)","v":0},{"$f":"SUMIFS(Sheet1!S71_OriginalBudAmnt,Sheet1!S71_SA34eCode,$AC:$AC,Sheet1!S71_A5CapexCode,$AD:$AD)","v":0},{"$f":"SUMIFS(Sheet1!S71_AdjustmentBudAmnt,Sheet1!S71_SA34eCode,$AC:$AC,Sheet1!S71_A5CapexCode,$AD:$AD)","v":0},{"$f":"SUMIFS(Sheet1!S71_AdjustmentBudAmnt,Sheet1!S71_SA34eCode,$AC:$AC,Sheet1!S71_A5CapexCode,$AD:$AD)","v":0},{"$f":"SUMIFS(Sheet1!S71_ASBudgetAmount,Sheet1!S71_SA34eCode,$AC:$AC,Sheet1!S71_A5CapexCode,$AD:$AD)","v":0},{"$f":"SUMIFS(Sheet1!S71_OY1BudgetAmount,Sheet1!S71_SA34eCode,$AC:$AC,Sheet1!S71_A5CapexCode,$AD:$AD)","v":0},{"$f":"SUMIFS(Sheet1!S71_OY2BudgetAmount,Sheet1!S71_SA34eCode,$AC:$AC,Sheet1!S71_A5CapexCode,$AD:$AD)","v":0},null,null,null,null,null,null,null,null,null,null,null,null,null,null,null,null,null,"0880","CE"]
["Cemeteries/Crematoria",null,{"$f":"SUMIFS(Sheet1!S71_PPPYearAmount,Sheet1!S71_SA34eCode,$AC:$AC,Sheet1!S71_A5CapexCode,$AD:$AD)","v":0},{"$f":"SUMIFS(Sheet1!S71_PPYearAmount,Sheet1!S71_SA34eCode,$AC:$AC,Sheet1!S71_A5CapexCode,$AD:$AD)","v":0},{"$f":"SUMIFS(Sheet1!S71_PYearAmount,Sheet1!S71_SA34eCode,$AC:$AC,Sheet1!S71_A5CapexCode,$AD:$AD)","v":0},{"$f":"SUMIFS(Sheet1!S71_OriginalBudAmnt,Sheet1!S71_SA34eCode,$AC:$AC,Sheet1!S71_A5CapexCode,$AD:$AD)","v":0},{"$f":"SUMIFS(Sheet1!S71_AdjustmentBudAmnt,Sheet1!S71_SA34eCode,$AC:$AC,Sheet1!S71_A5CapexCode,$AD:$AD)","v":0},{"$f":"SUMIFS(Sheet1!S71_AdjustmentBudAmnt,Sheet1!S71_SA34eCode,$AC:$AC,Sheet1!S71_A5CapexCode,$AD:$AD)","v":0},{"$f":"SUMIFS(Sheet1!S71_ASBudgetAmount,Sheet1!S71_SA34eCode,$AC:$AC,Sheet1!S71_A5CapexCode,$AD:$AD)","v":0},{"$f":"SUMIFS(Sheet1!S71_OY1BudgetAmount,Sheet1!S71_SA34eCode,$AC:$AC,Sheet1!S71_A5CapexCode,$AD:$AD)","v":0},{"$f":"SUMIFS(Sheet1!S71_OY2BudgetAmount,Sheet1!S71_SA34eCode,$AC:$AC,Sheet1!S71_A5CapexCode,$AD:$AD)","v":0},null,null,null,null,null,null,null,null,null,null,null,null,null,null,null,null,null,"0890","CE"]
["Police",null,{"$f":"SUMIFS(Sheet1!S71_PPPYearAmount,Sheet1!S71_SA34eCode,$AC:$AC,Sheet1!S71_A5CapexCode,$AD:$AD)","v":0},{"$f":"SUMIFS(Sheet1!S71_PPYearAmount,Sheet1!S71_SA34eCode,$AC:$AC,Sheet1!S71_A5CapexCode,$AD:$AD)","v":0},{"$f":"SUMIFS(Sheet1!S71_PYearAmount,Sheet1!S71_SA34eCode,$AC:$AC,Sheet1!S71_A5CapexCode,$AD:$AD)","v":0},{"$f":"SUMIFS(Sheet1!S71_OriginalBudAmnt,Sheet1!S71_SA34eCode,$AC:$AC,Sheet1!S71_A5CapexCode,$AD:$AD)","v":0},{"$f":"SUMIFS(Sheet1!S71_AdjustmentBudAmnt,Sheet1!S71_SA34eCode,$AC:$AC,Sheet1!S71_A5CapexCode,$AD:$AD)","v":0},{"$f":"SUMIFS(Sheet1!S71_AdjustmentBudAmnt,Sheet1!S71_SA34eCode,$AC:$AC,Sheet1!S71_A5CapexCode,$AD:$AD)","v":0},{"$f":"SUMIFS(Sheet1!S71_ASBudgetAmount,Sheet1!S71_SA34eCode,$AC:$AC,Sheet1!S71_A5CapexCode,$AD:$AD)","v":0},{"$f":"SUMIFS(Sheet1!S71_OY1BudgetAmount,Sheet1!S71_SA34eCode,$AC:$AC,Sheet1!S71_A5CapexCode,$AD:$AD)","v":0},{"$f":"SUMIFS(Sheet1!S71_OY2BudgetAmount,Sheet1!S71_SA34eCode,$AC:$AC,Sheet1!S71_A5CapexCode,$AD:$AD)","v":0},null,null,null,null,null,null,null,null,null,null,null,null,null,null,null,null,null,"0900","CE"]
["Parks",null,{"$f":"SUMIFS(Sheet1!S71_PPPYearAmount,Sheet1!S71_SA34eCode,$AC:$AC,Sheet1!S71_A5CapexCode,$AD:$AD)","v":0},{"$f":"SUMIFS(Sheet1!S71_PPYearAmount,Sheet1!S71_SA34eCode,$AC:$AC,Sheet1!S71_A5CapexCode,$AD:$AD)","v":0},{"$f":"SUMIFS(Sheet1!S71_PYearAmount,Sheet1!S71_SA34eCode,$AC:$AC,Sheet1!S71_A5CapexCode,$AD:$AD)","v":0},{"$f":"SUMIFS(Sheet1!S71_OriginalBudAmnt,Sheet1!S71_SA34eCode,$AC:$AC,Sheet1!S71_A5CapexCode,$AD:$AD)","v":0},{"$f":"SUMIFS(Sheet1!S71_AdjustmentBudAmnt,Sheet1!S71_SA34eCode,$AC:$AC,Sheet1!S71_A5CapexCode,$AD:$AD)","v":0},{"$f":"SUMIFS(Sheet1!S71_AdjustmentBudAmnt,Sheet1!S71_SA34eCode,$AC:$AC,Sheet1!S71_A5CapexCode,$AD:$AD)","v":0},{"$f":"SUMIFS(Sheet1!S71_ASBudgetAmount,Sheet1!S71_SA34eCode,$AC:$AC,Sheet1!S71_A5CapexCode,$AD:$AD)","v":0},{"$f":"SUMIFS(Sheet1!S71_OY1BudgetAmount,Sheet1!S71_SA34eCode,$AC:$AC,Sheet1!S71_A5CapexCode,$AD:$AD)","v":0},{"$f":"SUMIFS(Sheet1!S71_OY2BudgetAmount,Sheet1!S71_SA34eCode,$AC:$AC,Sheet1!S71_A5CapexCode,$AD:$AD)","v":0},null,null,null,null,null,null,null,null,null,null,null,null,null,null,null,null,null,"0910","CE"]
["Public Open Space",null,{"$f":"SUMIFS(Sheet1!S71_PPPYearAmount,Sheet1!S71_SA34eCode,$AC:$AC,Sheet1!S71_A5CapexCode,$AD:$AD)","v":0},{"$f":"SUMIFS(Sheet1!S71_PPYearAmount,Sheet1!S71_SA34eCode,$AC:$AC,Sheet1!S71_A5CapexCode,$AD:$AD)","v":0},{"$f":"SUMIFS(Sheet1!S71_PYearAmount,Sheet1!S71_SA34eCode,$AC:$AC,Sheet1!S71_A5CapexCode,$AD:$AD)","v":0},{"$f":"SUMIFS(Sheet1!S71_OriginalBudAmnt,Sheet1!S71_SA34eCode,$AC:$AC,Sheet1!S71_A5CapexCode,$AD:$AD)","v":0},{"$f":"SUMIFS(Sheet1!S71_AdjustmentBudAmnt,Sheet1!S71_SA34eCode,$AC:$AC,Sheet1!S71_A5CapexCode,$AD:$AD)","v":0},{"$f":"SUMIFS(Sheet1!S71_AdjustmentBudAmnt,Sheet1!S71_SA34eCode,$AC:$AC,Sheet1!S71_A5CapexCode,$AD:$AD)","v":0},{"$f":"SUMIFS(Sheet1!S71_ASBudgetAmount,Sheet1!S71_SA34eCode,$AC:$AC,Sheet1!S71_A5CapexCode,$AD:$AD)","v":0},{"$f":"SUMIFS(Sheet1!S71_OY1BudgetAmount,Sheet1!S71_SA34eCode,$AC:$AC,Sheet1!S71_A5CapexCode,$AD:$AD)","v":0},{"$f":"SUMIFS(Sheet1!S71_OY2BudgetAmount,Sheet1!S71_SA34eCode,$AC:$AC,Sheet1!S71_A5CapexCode,$AD:$AD)","v":0},null,null,null,null,null,null,null,null,null,null,null,null,null,null,null,null,null,"0920","CE"]
["Nature Reserves",null,{"$f":"SUMIFS(Sheet1!S71_PPPYearAmount,Sheet1!S71_SA34eCode,$AC:$AC,Sheet1!S71_A5CapexCode,$AD:$AD)","v":0},{"$f":"SUMIFS(Sheet1!S71_PPYearAmount,Sheet1!S71_SA34eCode,$AC:$AC,Sheet1!S71_A5CapexCode,$AD:$AD)","v":0},{"$f":"SUMIFS(Sheet1!S71_PYearAmount,Sheet1!S71_SA34eCode,$AC:$AC,Sheet1!S71_A5CapexCode,$AD:$AD)","v":0},{"$f":"SUMIFS(Sheet1!S71_OriginalBudAmnt,Sheet1!S71_SA34eCode,$AC:$AC,Sheet1!S71_A5CapexCode,$AD:$AD)","v":0},{"$f":"SUMIFS(Sheet1!S71_AdjustmentBudAmnt,Sheet1!S71_SA34eCode,$AC:$AC,Sheet1!S71_A5CapexCode,$AD:$AD)","v":0},{"$f":"SUMIFS(Sheet1!S71_AdjustmentBudAmnt,Sheet1!S71_SA34eCode,$AC:$AC,Sheet1!S71_A5CapexCode,$AD:$AD)","v":0},{"$f":"SUMIFS(Sheet1!S71_ASBudgetAmount,Sheet1!S71_SA34eCode,$AC:$AC,Sheet1!S71_A5CapexCode,$AD:$AD)","v":0},{"$f":"SUMIFS(Sheet1!S71_OY1BudgetAmount,Sheet1!S71_SA34eCode,$AC:$AC,Sheet1!S71_A5CapexCode,$AD:$AD)","v":0},{"$f":"SUMIFS(Sheet1!S71_OY2BudgetAmount,Sheet1!S71_SA34eCode,$AC:$AC,Sheet1!S71_A5CapexCode,$AD:$AD)","v":0},null,null,null,null,null,null,null,null,null,null,null,null,null,null,null,null,null,"0930","CE"]
["Public Ablution Facilities",null,{"$f":"SUMIFS(Sheet1!S71_PPPYearAmount,Sheet1!S71_SA34eCode,$AC:$AC,Sheet1!S71_A5CapexCode,$AD:$AD)","v":0},{"$f":"SUMIFS(Sheet1!S71_PPYearAmount,Sheet1!S71_SA34eCode,$AC:$AC,Sheet1!S71_A5CapexCode,$AD:$AD)","v":0},{"$f":"SUMIFS(Sheet1!S71_PYearAmount,Sheet1!S71_SA34eCode,$AC:$AC,Sheet1!S71_A5CapexCode,$AD:$AD)","v":0},{"$f":"SUMIFS(Sheet1!S71_OriginalBudAmnt,Sheet1!S71_SA34eCode,$AC:$AC,Sheet1!S71_A5CapexCode,$AD:$AD)","v":0},{"$f":"SUMIFS(Sheet1!S71_AdjustmentBudAmnt,Sheet1!S71_SA34eCode,$AC:$AC,Sheet1!S71_A5CapexCode,$AD:$AD)","v":0},{"$f":"SUMIFS(Sheet1!S71_AdjustmentBudAmnt,Sheet1!S71_SA34eCode,$AC:$AC,Sheet1!S71_A5CapexCode,$AD:$AD)","v":0},{"$f":"SUMIFS(Sheet1!S71_ASBudgetAmount,Sheet1!S71_SA34eCode,$AC:$AC,Sheet1!S71_A5CapexCode,$AD:$AD)","v":0},{"$f":"SUMIFS(Sheet1!S71_OY1BudgetAmount,Sheet1!S71_SA34eCode,$AC:$AC,Sheet1!S71_A5CapexCode,$AD:$AD)","v":0},{"$f":"SUMIFS(Sheet1!S71_OY2BudgetAmount,Sheet1!S71_SA34eCode,$AC:$AC,Sheet1!S71_A5CapexCode,$AD:$AD)","v":0},null,null,null,null,null,null,null,null,null,null,null,null,null,null,null,null,null,"0940","CE"]
["Markets",null,{"$f":"SUMIFS(Sheet1!S71_PPPYearAmount,Sheet1!S71_SA34eCode,$AC:$AC,Sheet1!S71_A5CapexCode,$AD:$AD)","v":0},{"$f":"SUMIFS(Sheet1!S71_PPYearAmount,Sheet1!S71_SA34eCode,$AC:$AC,Sheet1!S71_A5CapexCode,$AD:$AD)","v":0},{"$f":"SUMIFS(Sheet1!S71_PYearAmount,Sheet1!S71_SA34eCode,$AC:$AC,Sheet1!S71_A5CapexCode,$AD:$AD)","v":0},{"$f":"SUMIFS(Sheet1!S71_OriginalBudAmnt,Sheet1!S71_SA34eCode,$AC:$AC,Sheet1!S71_A5CapexCode,$AD:$AD)","v":0},{"$f":"SUMIFS(Sheet1!S71_AdjustmentBudAmnt,Sheet1!S71_SA34eCode,$AC:$AC,Sheet1!S71_A5CapexCode,$AD:$AD)","v":0},{"$f":"SUMIFS(Sheet1!S71_AdjustmentBudAmnt,Sheet1!S71_SA34eCode,$AC:$AC,Sheet1!S71_A5CapexCode,$AD:$AD)","v":0},{"$f":"SUMIFS(Sheet1!S71_ASBudgetAmount,Sheet1!S71_SA34eCode,$AC:$AC,Sheet1!S71_A5CapexCode,$AD:$AD)","v":0},{"$f":"SUMIFS(Sheet1!S71_OY1BudgetAmount,Sheet1!S71_SA34eCode,$AC:$AC,Sheet1!S71_A5CapexCode,$AD:$AD)","v":0},{"$f":"SUMIFS(Sheet1!S71_OY2BudgetAmount,Sheet1!S71_SA34eCode,$AC:$AC,Sheet1!S71_A5CapexCode,$AD:$AD)","v":0},null,null,null,null,null,null,null,null,null,null,null,null,null,null,null,null,null,"0950","CE"]
["Stalls",null,{"$f":"SUMIFS(Sheet1!S71_PPPYearAmount,Sheet1!S71_SA34eCode,$AC:$AC,Sheet1!S71_A5CapexCode,$AD:$AD)","v":0},{"$f":"SUMIFS(Sheet1!S71_PPYearAmount,Sheet1!S71_SA34eCode,$AC:$AC,Sheet1!S71_A5CapexCode,$AD:$AD)","v":0},{"$f":"SUMIFS(Sheet1!S71_PYearAmount,Sheet1!S71_SA34eCode,$AC:$AC,Sheet1!S71_A5CapexCode,$AD:$AD)","v":0},{"$f":"SUMIFS(Sheet1!S71_OriginalBudAmnt,Sheet1!S71_SA34eCode,$AC:$AC,Sheet1!S71_A5CapexCode,$AD:$AD)","v":0},{"$f":"SUMIFS(Sheet1!S71_AdjustmentBudAmnt,Sheet1!S71_SA34eCode,$AC:$AC,Sheet1!S71_A5CapexCode,$AD:$AD)","v":0},{"$f":"SUMIFS(Sheet1!S71_AdjustmentBudAmnt,Sheet1!S71_SA34eCode,$AC:$AC,Sheet1!S71_A5CapexCode,$AD:$AD)","v":0},{"$f":"SUMIFS(Sheet1!S71_ASBudgetAmount,Sheet1!S71_SA34eCode,$AC:$AC,Sheet1!S71_A5CapexCode,$AD:$AD)","v":0},{"$f":"SUMIFS(Sheet1!S71_OY1BudgetAmount,Sheet1!S71_SA34eCode,$AC:$AC,Sheet1!S71_A5CapexCode,$AD:$AD)","v":0},{"$f":"SUMIFS(Sheet1!S71_OY2BudgetAmount,Sheet1!S71_SA34eCode,$AC:$AC,Sheet1!S71_A5CapexCode,$AD:$AD)","v":0},null,null,null,null,null,null,null,null,null,null,null,null,null,null,null,null,null,"0960","CE"]
["Abattoirs",null,{"$f":"SUMIFS(Sheet1!S71_PPPYearAmount,Sheet1!S71_SA34eCode,$AC:$AC,Sheet1!S71_A5CapexCode,$AD:$AD)","v":0},{"$f":"SUMIFS(Sheet1!S71_PPYearAmount,Sheet1!S71_SA34eCode,$AC:$AC,Sheet1!S71_A5CapexCode,$AD:$AD)","v":0},{"$f":"SUMIFS(Sheet1!S71_PYearAmount,Sheet1!S71_SA34eCode,$AC:$AC,Sheet1!S71_A5CapexCode,$AD:$AD)","v":0},{"$f":"SUMIFS(Sheet1!S71_OriginalBudAmnt,Sheet1!S71_SA34eCode,$AC:$AC,Sheet1!S71_A5CapexCode,$AD:$AD)","v":0},{"$f":"SUMIFS(Sheet1!S71_AdjustmentBudAmnt,Sheet1!S71_SA34eCode,$AC:$AC,Sheet1!S71_A5CapexCode,$AD:$AD)","v":0},{"$f":"SUMIFS(Sheet1!S71_AdjustmentBudAmnt,Sheet1!S71_SA34eCode,$AC:$AC,Sheet1!S71_A5CapexCode,$AD:$AD)","v":0},{"$f":"SUMIFS(Sheet1!S71_ASBudgetAmount,Sheet1!S71_SA34eCode,$AC:$AC,Sheet1!S71_A5CapexCode,$AD:$AD)","v":0},{"$f":"SUMIFS(Sheet1!S71_OY1BudgetAmount,Sheet1!S71_SA34eCode,$AC:$AC,Sheet1!S71_A5CapexCode,$AD:$AD)","v":0},{"$f":"SUMIFS(Sheet1!S71_OY2BudgetAmount,Sheet1!S71_SA34eCode,$AC:$AC,Sheet1!S71_A5CapexCode,$AD:$AD)","v":0},null,null,null,null,null,null,null,null,null,null,null,null,null,null,null,null,null,"0970","CE"]
["Airports",null,{"$f":"SUMIFS(Sheet1!S71_PPPYearAmount,Sheet1!S71_SA34eCode,$AC:$AC,Sheet1!S71_A5CapexCode,$AD:$AD)","v":0},{"$f":"SUMIFS(Sheet1!S71_PPYearAmount,Sheet1!S71_SA34eCode,$AC:$AC,Sheet1!S71_A5CapexCode,$AD:$AD)","v":0},{"$f":"SUMIFS(Sheet1!S71_PYearAmount,Sheet1!S71_SA34eCode,$AC:$AC,Sheet1!S71_A5CapexCode,$AD:$AD)","v":0},{"$f":"SUMIFS(Sheet1!S71_OriginalBudAmnt,Sheet1!S71_SA34eCode,$AC:$AC,Sheet1!S71_A5CapexCode,$AD:$AD)","v":0},{"$f":"SUMIFS(Sheet1!S71_AdjustmentBudAmnt,Sheet1!S71_SA34eCode,$AC:$AC,Sheet1!S71_A5CapexCode,$AD:$AD)","v":0},{"$f":"SUMIFS(Sheet1!S71_AdjustmentBudAmnt,Sheet1!S71_SA34eCode,$AC:$AC,Sheet1!S71_A5CapexCode,$AD:$AD)","v":0},{"$f":"SUMIFS(Sheet1!S71_ASBudgetAmount,Sheet1!S71_SA34eCode,$AC:$AC,Sheet1!S71_A5CapexCode,$AD:$AD)","v":0},{"$f":"SUMIFS(Sheet1!S71_OY1BudgetAmount,Sheet1!S71_SA34eCode,$AC:$AC,Sheet1!S71_A5CapexCode,$AD:$AD)","v":0},{"$f":"SUMIFS(Sheet1!S71_OY2BudgetAmount,Sheet1!S71_SA34eCode,$AC:$AC,Sheet1!S71_A5CapexCode,$AD:$AD)","v":0},null,null,null,null,null,null,null,null,null,null,null,null,null,null,null,null,null,"0980","CE"]
["Taxi Ranks/Bus Terminals",null,{"$f":"SUMIFS(Sheet1!S71_PPPYearAmount,Sheet1!S71_SA34eCode,$AC:$AC,Sheet1!S71_A5CapexCode,$AD:$AD)","v":0},{"$f":"SUMIFS(Sheet1!S71_PPYearAmount,Sheet1!S71_SA34eCode,$AC:$AC,Sheet1!S71_A5CapexCode,$AD:$AD)","v":0},{"$f":"SUMIFS(Sheet1!S71_PYearAmount,Sheet1!S71_SA34eCode,$AC:$AC,Sheet1!S71_A5CapexCode,$AD:$AD)","v":0},{"$f":"SUMIFS(Sheet1!S71_OriginalBudAmnt,Sheet1!S71_SA34eCode,$AC:$AC,Sheet1!S71_A5CapexCode,$AD:$AD)","v":0},{"$f":"SUMIFS(Sheet1!S71_AdjustmentBudAmnt,Sheet1!S71_SA34eCode,$AC:$AC,Sheet1!S71_A5CapexCode,$AD:$AD)","v":0},{"$f":"SUMIFS(Sheet1!S71_AdjustmentBudAmnt,Sheet1!S71_SA34eCode,$AC:$AC,Sheet1!S71_A5CapexCode,$AD:$AD)","v":0},{"$f":"SUMIFS(Sheet1!S71_ASBudgetAmount,Sheet1!S71_SA34eCode,$AC:$AC,Sheet1!S71_A5CapexCode,$AD:$AD)","v":0},{"$f":"SUMIFS(Sheet1!S71_OY1BudgetAmount,Sheet1!S71_SA34eCode,$AC:$AC,Sheet1!S71_A5CapexCode,$AD:$AD)","v":0},{"$f":"SUMIFS(Sheet1!S71_OY2BudgetAmount,Sheet1!S71_SA34eCode,$AC:$AC,Sheet1!S71_A5CapexCode,$AD:$AD)","v":0},null,null,null,null,null,null,null,null,null,null,null,null,null,null,null,null,null,"0990","CE"]
["Capital Spares",null,{"$f":"SUMIFS(Sheet1!S71_PPPYearAmount,Sheet1!S71_SA34eCode,$AC:$AC,Sheet1!S71_A5CapexCode,$AD:$AD)","v":0},{"$f":"SUMIFS(Sheet1!S71_PPYearAmount,Sheet1!S71_SA34eCode,$AC:$AC,Sheet1!S71_A5CapexCode,$AD:$AD)","v":0},{"$f":"SUMIFS(Sheet1!S71_PYearAmount,Sheet1!S71_SA34eCode,$AC:$AC,Sheet1!S71_A5CapexCode,$AD:$AD)","v":0},{"$f":"SUMIFS(Sheet1!S71_OriginalBudAmnt,Sheet1!S71_SA34eCode,$AC:$AC,Sheet1!S71_A5CapexCode,$AD:$AD)","v":0},{"$f":"SUMIFS(Sheet1!S71_AdjustmentBudAmnt,Sheet1!S71_SA34eCode,$AC:$AC,Sheet1!S71_A5CapexCode,$AD:$AD)","v":0},{"$f":"SUMIFS(Sheet1!S71_AdjustmentBudAmnt,Sheet1!S71_SA34eCode,$AC:$AC,Sheet1!S71_A5CapexCode,$AD:$AD)","v":0},{"$f":"SUMIFS(Sheet1!S71_ASBudgetAmount,Sheet1!S71_SA34eCode,$AC:$AC,Sheet1!S71_A5CapexCode,$AD:$AD)","v":0},{"$f":"SUMIFS(Sheet1!S71_OY1BudgetAmount,Sheet1!S71_SA34eCode,$AC:$AC,Sheet1!S71_A5CapexCode,$AD:$AD)","v":0},{"$f":"SUMIFS(Sheet1!S71_OY2BudgetAmount,Sheet1!S71_SA34eCode,$AC:$AC,Sheet1!S71_A5CapexCode,$AD:$AD)","v":0},null,null,null,null,null,null,null,null,null,null,null,null,null,null,null,null,null,"1000","CE"]
["Sport and Recreation Facilities",null,{"$f":"SUM(C99:C101)","v":13259362},{"$f":"SUM(D99:D101)","v":13259362},13889775,4000000,3554255,3554255,7500000,13500000,0,null,null,null,null,null,null,null,null,null,null,null,null,null,null,null,null,null,null,"CE"]
["Indoor Facilities",null,{"$f":"SUMIFS(Sheet1!S71_PPPYearAmount,Sheet1!S71_SA34eCode,$AC:$AC,Sheet1!S71_A5CapexCode,$AD:$AD)","v":0},{"$f":"SUMIFS(Sheet1!S71_PPYearAmount,Sheet1!S71_SA34eCode,$AC:$AC,Sheet1!S71_A5CapexCode,$AD:$AD)","v":0},{"$f":"SUMIFS(Sheet1!S71_PYearAmount,Sheet1!S71_SA34eCode,$AC:$AC,Sheet1!S71_A5CapexCode,$AD:$AD)","v":0},{"$f":"SUMIFS(Sheet1!S71_OriginalBudAmnt,Sheet1!S71_SA34eCode,$AC:$AC,Sheet1!S71_A5CapexCode,$AD:$AD)","v":0},{"$f":"SUMIFS(Sheet1!S71_AdjustmentBudAmnt,Sheet1!S71_SA34eCode,$AC:$AC,Sheet1!S71_A5CapexCode,$AD:$AD)","v":0},{"$f":"SUMIFS(Sheet1!S71_AdjustmentBudAmnt,Sheet1!S71_SA34eCode,$AC:$AC,Sheet1!S71_A5CapexCode,$AD:$AD)","v":0},{"$f":"SUMIFS(Sheet1!S71_ASBudgetAmount,Sheet1!S71_SA34eCode,$AC:$AC,Sheet1!S71_A5CapexCode,$AD:$AD)","v":0},{"$f":"SUMIFS(Sheet1!S71_OY1BudgetAmount,Sheet1!S71_SA34eCode,$AC:$AC,Sheet1!S71_A5CapexCode,$AD:$AD)","v":0},{"$f":"SUMIFS(Sheet1!S71_OY2BudgetAmount,Sheet1!S71_SA34eCode,$AC:$AC,Sheet1!S71_A5CapexCode,$AD:$AD)","v":0},null,null,null,null,null,null,null,null,null,null,null,null,null,null,null,null,null,"1020","CE"]
["Outdoor Facilities",null,{"$f":"SUMIFS(Sheet1!S71_PPPYearAmount,Sheet1!S71_SA34eCode,$AC:$AC,Sheet1!S71_A5CapexCode,$AD:$AD)","v":13259362},{"$f":"SUMIFS(Sheet1!S71_PPYearAmount,Sheet1!S71_SA34eCode,$AC:$AC,Sheet1!S71_A5CapexCode,$AD:$AD)","v":13259362},{"$f":"SUMIFS(Sheet1!S71_PYearAmount,Sheet1!S71_SA34eCode,$AC:$AC,Sheet1!S71_A5CapexCode,$AD:$AD)","v":13889775},{"$f":"SUMIFS(Sheet1!S71_OriginalBudAmnt,Sheet1!S71_SA34eCode,$AC:$AC,Sheet1!S71_A5CapexCode,$AD:$AD)","v":4000000},{"$f":"SUMIFS(Sheet1!S71_AdjustmentBudAmnt,Sheet1!S71_SA34eCode,$AC:$AC,Sheet1!S71_A5CapexCode,$AD:$AD)","v":3554255},{"$f":"SUMIFS(Sheet1!S71_AdjustmentBudAmnt,Sheet1!S71_SA34eCode,$AC:$AC,Sheet1!S71_A5CapexCode,$AD:$AD)","v":3554255},{"$f":"SUMIFS(Sheet1!S71_ASBudgetAmount,Sheet1!S71_SA34eCode,$AC:$AC,Sheet1!S71_A5CapexCode,$AD:$AD)","v":7500000},{"$f":"SUMIFS(Sheet1!S71_OY1BudgetAmount,Sheet1!S71_SA34eCode,$AC:$AC,Sheet1!S71_A5CapexCode,$AD:$AD)","v":13500000},{"$f":"SUMIFS(Sheet1!S71_OY2BudgetAmount,Sheet1!S71_SA34eCode,$AC:$AC,Sheet1!S71_A5CapexCode,$AD:$AD)","v":0},null,null,null,null,null,null,null,null,null,null,null,null,null,null,null,null,null,"1030","CE"]
["Capital Spares",null,{"$f":"SUMIFS(Sheet1!S71_PPPYearAmount,Sheet1!S71_SA34eCode,$AC:$AC,Sheet1!S71_A5CapexCode,$AD:$AD)","v":0},{"$f":"SUMIFS(Sheet1!S71_PPYearAmount,Sheet1!S71_SA34eCode,$AC:$AC,Sheet1!S71_A5CapexCode,$AD:$AD)","v":0},{"$f":"SUMIFS(Sheet1!S71_PYearAmount,Sheet1!S71_SA34eCode,$AC:$AC,Sheet1!S71_A5CapexCode,$AD:$AD)","v":0},{"$f":"SUMIFS(Sheet1!S71_OriginalBudAmnt,Sheet1!S71_SA34eCode,$AC:$AC,Sheet1!S71_A5CapexCode,$AD:$AD)","v":0},{"$f":"SUMIFS(Sheet1!S71_AdjustmentBudAmnt,Sheet1!S71_SA34eCode,$AC:$AC,Sheet1!S71_A5CapexCode,$AD:$AD)","v":0},{"$f":"SUMIFS(Sheet1!S71_AdjustmentBudAmnt,Sheet1!S71_SA34eCode,$AC:$AC,Sheet1!S71_A5CapexCode,$AD:$AD)","v":0},{"$f":"SUMIFS(Sheet1!S71_ASBudgetAmount,Sheet1!S71_SA34eCode,$AC:$AC,Sheet1!S71_A5CapexCode,$AD:$AD)","v":0},{"$f":"SUMIFS(Sheet1!S71_OY1BudgetAmount,Sheet1!S71_SA34eCode,$AC:$AC,Sheet1!S71_A5CapexCode,$AD:$AD)","v":0},{"$f":"SUMIFS(Sheet1!S71_OY2BudgetAmount,Sheet1!S71_SA34eCode,$AC:$AC,Sheet1!S71_A5CapexCode,$AD:$AD)","v":0},null,null,null,null,null,null,null,null,null,null,null,null,null,null,null,null,null,"1040","CE"]
[null,null,null,null,null,null,null,null,null,null,null,null,null,null,null,null,null,null,null,null,null,null,null,null,null,null,null,null,null,"CE"]
["Heritage assets",null,{"$f":"SUM(C104:C108)","v":0},{"$f":"SUM(D104:D108)","v":0},0,0,0,0,0,0,0,null,null,null,null,null,null,null,null,null,null,null,null,null,null,null,null,null,null,"CE"]
["Monuments",null,{"$f":"SUMIFS(Sheet1!S71_PPPYearAmount,Sheet1!S71_SA34eCode,$AC:$AC,Sheet1!S71_A5CapexCode,$AD:$AD)","v":0},{"$f":"SUMIFS(Sheet1!S71_PPYearAmount,Sheet1!S71_SA34eCode,$AC:$AC,Sheet1!S71_A5CapexCode,$AD:$AD)","v":0},{"$f":"SUMIFS(Sheet1!S71_PYearAmount,Sheet1!S71_SA34eCode,$AC:$AC,Sheet1!S71_A5CapexCode,$AD:$AD)","v":0},{"$f":"SUMIFS(Sheet1!S71_OriginalBudAmnt,Sheet1!S71_SA34eCode,$AC:$AC,Sheet1!S71_A5CapexCode,$AD:$AD)","v":0},{"$f":"SUMIFS(Sheet1!S71_AdjustmentBudAmnt,Sheet1!S71_SA34eCode,$AC:$AC,Sheet1!S71_A5CapexCode,$AD:$AD)","v":0},{"$f":"SUMIFS(Sheet1!S71_AdjustmentBudAmnt,Sheet1!S71_SA34eCode,$AC:$AC,Sheet1!S71_A5CapexCode,$AD:$AD)","v":0},{"$f":"SUMIFS(Sheet1!S71_ASBudgetAmount,Sheet1!S71_SA34eCode,$AC:$AC,Sheet1!S71_A5CapexCode,$AD:$AD)","v":0},{"$f":"SUMIFS(Sheet1!S71_OY1BudgetAmount,Sheet1!S71_SA34eCode,$AC:$AC,Sheet1!S71_A5CapexCode,$AD:$AD)","v":0},{"$f":"SUMIFS(Sheet1!S71_OY2BudgetAmount,Sheet1!S71_SA34eCode,$AC:$AC,Sheet1!S71_A5CapexCode,$AD:$AD)","v":0},null,null,null,null,null,null,null,null,null,null,null,null,null,null,null,null,null,"1060","CE"]
["Historic Buildings",null,{"$f":"SUMIFS(Sheet1!S71_PPPYearAmount,Sheet1!S71_SA34eCode,$AC:$AC,Sheet1!S71_A5CapexCode,$AD:$AD)","v":0},{"$f":"SUMIFS(Sheet1!S71_PPYearAmount,Sheet1!S71_SA34eCode,$AC:$AC,Sheet1!S71_A5CapexCode,$AD:$AD)","v":0},{"$f":"SUMIFS(Sheet1!S71_PYearAmount,Sheet1!S71_SA34eCode,$AC:$AC,Sheet1!S71_A5CapexCode,$AD:$AD)","v":0},{"$f":"SUMIFS(Sheet1!S71_OriginalBudAmnt,Sheet1!S71_SA34eCode,$AC:$AC,Sheet1!S71_A5CapexCode,$AD:$AD)","v":0},{"$f":"SUMIFS(Sheet1!S71_AdjustmentBudAmnt,Sheet1!S71_SA34eCode,$AC:$AC,Sheet1!S71_A5CapexCode,$AD:$AD)","v":0},{"$f":"SUMIFS(Sheet1!S71_AdjustmentBudAmnt,Sheet1!S71_SA34eCode,$AC:$AC,Sheet1!S71_A5CapexCode,$AD:$AD)","v":0},{"$f":"SUMIFS(Sheet1!S71_ASBudgetAmount,Sheet1!S71_SA34eCode,$AC:$AC,Sheet1!S71_A5CapexCode,$AD:$AD)","v":0},{"$f":"SUMIFS(Sheet1!S71_OY1BudgetAmount,Sheet1!S71_SA34eCode,$AC:$AC,Sheet1!S71_A5CapexCode,$AD:$AD)","v":0},{"$f":"SUMIFS(Sheet1!S71_OY2BudgetAmount,Sheet1!S71_SA34eCode,$AC:$AC,Sheet1!S71_A5CapexCode,$AD:$AD)","v":0},null,null,null,null,null,null,null,null,null,null,null,null,null,null,null,null,null,"1070","CE"]
["Works of Art",null,{"$f":"SUMIFS(Sheet1!S71_PPPYearAmount,Sheet1!S71_SA34eCode,$AC:$AC,Sheet1!S71_A5CapexCode,$AD:$AD)","v":0},{"$f":"SUMIFS(Sheet1!S71_PPYearAmount,Sheet1!S71_SA34eCode,$AC:$AC,Sheet1!S71_A5CapexCode,$AD:$AD)","v":0},{"$f":"SUMIFS(Sheet1!S71_PYearAmount,Sheet1!S71_SA34eCode,$AC:$AC,Sheet1!S71_A5CapexCode,$AD:$AD)","v":0},{"$f":"SUMIFS(Sheet1!S71_OriginalBudAmnt,Sheet1!S71_SA34eCode,$AC:$AC,Sheet1!S71_A5CapexCode,$AD:$AD)","v":0},{"$f":"SUMIFS(Sheet1!S71_AdjustmentBudAmnt,Sheet1!S71_SA34eCode,$AC:$AC,Sheet1!S71_A5CapexCode,$AD:$AD)","v":0},{"$f":"SUMIFS(Sheet1!S71_AdjustmentBudAmnt,Sheet1!S71_SA34eCode,$AC:$AC,Sheet1!S71_A5CapexCode,$AD:$AD)","v":0},{"$f":"SUMIFS(Sheet1!S71_ASBudgetAmount,Sheet1!S71_SA34eCode,$AC:$AC,Sheet1!S71_A5CapexCode,$AD:$AD)","v":0},{"$f":"SUMIFS(Sheet1!S71_OY1BudgetAmount,Sheet1!S71_SA34eCode,$AC:$AC,Sheet1!S71_A5CapexCode,$AD:$AD)","v":0},{"$f":"SUMIFS(Sheet1!S71_OY2BudgetAmount,Sheet1!S71_SA34eCode,$AC:$AC,Sheet1!S71_A5CapexCode,$AD:$AD)","v":0},null,null,null,null,null,null,null,null,null,null,null,null,null,null,null,null,null,"1080","CE"]
["Conservation Areas",null,{"$f":"SUMIFS(Sheet1!S71_PPPYearAmount,Sheet1!S71_SA34eCode,$AC:$AC,Sheet1!S71_A5CapexCode,$AD:$AD)","v":0},{"$f":"SUMIFS(Sheet1!S71_PPYearAmount,Sheet1!S71_SA34eCode,$AC:$AC,Sheet1!S71_A5CapexCode,$AD:$AD)","v":0},{"$f":"SUMIFS(Sheet1!S71_PYearAmount,Sheet1!S71_SA34eCode,$AC:$AC,Sheet1!S71_A5CapexCode,$AD:$AD)","v":0},{"$f":"SUMIFS(Sheet1!S71_OriginalBudAmnt,Sheet1!S71_SA34eCode,$AC:$AC,Sheet1!S71_A5CapexCode,$AD:$AD)","v":0},{"$f":"SUMIFS(Sheet1!S71_AdjustmentBudAmnt,Sheet1!S71_SA34eCode,$AC:$AC,Sheet1!S71_A5CapexCode,$AD:$AD)","v":0},{"$f":"SUMIFS(Sheet1!S71_AdjustmentBudAmnt,Sheet1!S71_SA34eCode,$AC:$AC,Sheet1!S71_A5CapexCode,$AD:$AD)","v":0},{"$f":"SUMIFS(Sheet1!S71_ASBudgetAmount,Sheet1!S71_SA34eCode,$AC:$AC,Sheet1!S71_A5CapexCode,$AD:$AD)","v":0},{"$f":"SUMIFS(Sheet1!S71_OY1BudgetAmount,Sheet1!S71_SA34eCode,$AC:$AC,Sheet1!S71_A5CapexCode,$AD:$AD)","v":0},{"$f":"SUMIFS(Sheet1!S71_OY2BudgetAmount,Sheet1!S71_SA34eCode,$AC:$AC,Sheet1!S71_A5CapexCode,$AD:$AD)","v":0},null,null,null,null,null,null,null,null,null,null,null,null,null,null,null,null,null,"1090","CE"]
["Other Heritage",null,{"$f":"SUMIFS(Sheet1!S71_PPPYearAmount,Sheet1!S71_SA34eCode,$AC:$AC,Sheet1!S71_A5CapexCode,$AD:$AD)","v":0},{"$f":"SUMIFS(Sheet1!S71_PPYearAmount,Sheet1!S71_SA34eCode,$AC:$AC,Sheet1!S71_A5CapexCode,$AD:$AD)","v":0},{"$f":"SUMIFS(Sheet1!S71_PYearAmount,Sheet1!S71_SA34eCode,$AC:$AC,Sheet1!S71_A5CapexCode,$AD:$AD)","v":0},{"$f":"SUMIFS(Sheet1!S71_OriginalBudAmnt,Sheet1!S71_SA34eCode,$AC:$AC,Sheet1!S71_A5CapexCode,$AD:$AD)","v":0},{"$f":"SUMIFS(Sheet1!S71_AdjustmentBudAmnt,Sheet1!S71_SA34eCode,$AC:$AC,Sheet1!S71_A5CapexCode,$AD:$AD)","v":0},{"$f":"SUMIFS(Sheet1!S71_AdjustmentBudAmnt,Sheet1!S71_SA34eCode,$AC:$AC,Sheet1!S71_A5CapexCode,$AD:$AD)","v":0},{"$f":"SUMIFS(Sheet1!S71_ASBudgetAmount,Sheet1!S71_SA34eCode,$AC:$AC,Sheet1!S71_A5CapexCode,$AD:$AD)","v":0},{"$f":"SUMIFS(Sheet1!S71_OY1BudgetAmount,Sheet1!S71_SA34eCode,$AC:$AC,Sheet1!S71_A5CapexCode,$AD:$AD)","v":0},{"$f":"SUMIFS(Sheet1!S71_OY2BudgetAmount,Sheet1!S71_SA34eCode,$AC:$AC,Sheet1!S71_A5CapexCode,$AD:$AD)","v":0},null,null,null,null,null,null,null,null,null,null,null,null,null,null,null,null,null,"1100","CE"]
[null,null,null,null,null,null,null,null,null,null,null,null,null,null,null,null,null,null,null,null,null,null,null,null,null,null,null,null,null,"CE"]
["Investment properties",null,{"$f":"+C111+C114","v":0},{"$f":"+D111+D114","v":0},0,0,0,0,0,0,0,null,null,null,null,null,null,null,null,null,null,null,null,null,null,null,null,null,null,"CE"]
["Revenue Generating",null,{"$f":"SUM(C112:C113)","v":0},0,0,0,0,0,0,0,0,null,null,null,null,null,null,null,null,null,null,null,null,null,null,null,null,null,null,"CE"]
["Improved Property",null,{"$f":"SUMIFS(Sheet1!S71_PPPYearAmount,Sheet1!S71_SA34eCode,$AC:$AC,Sheet1!S71_A5CapexCode,$AD:$AD)","v":0},{"$f":"SUMIFS(Sheet1!S71_PPYearAmount,Sheet1!S71_SA34eCode,$AC:$AC,Sheet1!S71_A5CapexCode,$AD:$AD)","v":0},{"$f":"SUMIFS(Sheet1!S71_PYearAmount,Sheet1!S71_SA34eCode,$AC:$AC,Sheet1!S71_A5CapexCode,$AD:$AD)","v":0},{"$f":"SUMIFS(Sheet1!S71_OriginalBudAmnt,Sheet1!S71_SA34eCode,$AC:$AC,Sheet1!S71_A5CapexCode,$AD:$AD)","v":0},{"$f":"SUMIFS(Sheet1!S71_AdjustmentBudAmnt,Sheet1!S71_SA34eCode,$AC:$AC,Sheet1!S71_A5CapexCode,$AD:$AD)","v":0},{"$f":"SUMIFS(Sheet1!S71_AdjustmentBudAmnt,Sheet1!S71_SA34eCode,$AC:$AC,Sheet1!S71_A5CapexCode,$AD:$AD)","v":0},{"$f":"SUMIFS(Sheet1!S71_ASBudgetAmount,Sheet1!S71_SA34eCode,$AC:$AC,Sheet1!S71_A5CapexCode,$AD:$AD)","v":0},{"$f":"SUMIFS(Sheet1!S71_OY1BudgetAmount,Sheet1!S71_SA34eCode,$AC:$AC,Sheet1!S71_A5CapexCode,$AD:$AD)","v":0},{"$f":"SUMIFS(Sheet1!S71_OY2BudgetAmount,Sheet1!S71_SA34eCode,$AC:$AC,Sheet1!S71_A5CapexCode,$AD:$AD)","v":0},null,null,null,null,null,null,null,null,null,null,null,null,null,null,null,null,null,"1130","CE"]
["Unimproved Property",null,{"$f":"SUMIFS(Sheet1!S71_PPPYearAmount,Sheet1!S71_SA34eCode,$AC:$AC,Sheet1!S71_A5CapexCode,$AD:$AD)","v":0},{"$f":"SUMIFS(Sheet1!S71_PPYearAmount,Sheet1!S71_SA34eCode,$AC:$AC,Sheet1!S71_A5CapexCode,$AD:$AD)","v":0},{"$f":"SUMIFS(Sheet1!S71_PYearAmount,Sheet1!S71_SA34eCode,$AC:$AC,Sheet1!S71_A5CapexCode,$AD:$AD)","v":0},{"$f":"SUMIFS(Sheet1!S71_OriginalBudAmnt,Sheet1!S71_SA34eCode,$AC:$AC,Sheet1!S71_A5CapexCode,$AD:$AD)","v":0},{"$f":"SUMIFS(Sheet1!S71_AdjustmentBudAmnt,Sheet1!S71_SA34eCode,$AC:$AC,Sheet1!S71_A5CapexCode,$AD:$AD)","v":0},{"$f":"SUMIFS(Sheet1!S71_AdjustmentBudAmnt,Sheet1!S71_SA34eCode,$AC:$AC,Sheet1!S71_A5CapexCode,$AD:$AD)","v":0},{"$f":"SUMIFS(Sheet1!S71_ASBudgetAmount,Sheet1!S71_SA34eCode,$AC:$AC,Sheet1!S71_A5CapexCode,$AD:$AD)","v":0},{"$f":"SUMIFS(Sheet1!S71_OY1BudgetAmount,Sheet1!S71_SA34eCode,$AC:$AC,Sheet1!S71_A5CapexCode,$AD:$AD)","v":0},{"$f":"SUMIFS(Sheet1!S71_OY2BudgetAmount,Sheet1!S71_SA34eCode,$AC:$AC,Sheet1!S71_A5CapexCode,$AD:$AD)","v":0},null,null,null,null,null,null,null,null,null,null,null,null,null,null,null,null,null,"1140","CE"]
["Non-revenue Generating",null,{"$f":"SUM(C115:C116)","v":0},{"$f":"SUM(D115:D116)","v":0},0,0,0,0,0,0,0,null,null,null,null,null,null,null,null,null,null,null,null,null,null,null,null,null,null,"CE"]
["Improved Property",null,{"$f":"SUMIFS(Sheet1!S71_PPPYearAmount,Sheet1!S71_SA34eCode,$AC:$AC,Sheet1!S71_A5CapexCode,$AD:$AD)","v":0},{"$f":"SUMIFS(Sheet1!S71_PPYearAmount,Sheet1!S71_SA34eCode,$AC:$AC,Sheet1!S71_A5CapexCode,$AD:$AD)","v":0},{"$f":"SUMIFS(Sheet1!S71_PYearAmount,Sheet1!S71_SA34eCode,$AC:$AC,Sheet1!S71_A5CapexCode,$AD:$AD)","v":0},{"$f":"SUMIFS(Sheet1!S71_OriginalBudAmnt,Sheet1!S71_SA34eCode,$AC:$AC,Sheet1!S71_A5CapexCode,$AD:$AD)","v":0},{"$f":"SUMIFS(Sheet1!S71_AdjustmentBudAmnt,Sheet1!S71_SA34eCode,$AC:$AC,Sheet1!S71_A5CapexCode,$AD:$AD)","v":0},{"$f":"SUMIFS(Sheet1!S71_AdjustmentBudAmnt,Sheet1!S71_SA34eCode,$AC:$AC,Sheet1!S71_A5CapexCode,$AD:$AD)","v":0},{"$f":"SUMIFS(Sheet1!S71_ASBudgetAmount,Sheet1!S71_SA34eCode,$AC:$AC,Sheet1!S71_A5CapexCode,$AD:$AD)","v":0},{"$f":"SUMIFS(Sheet1!S71_OY1BudgetAmount,Sheet1!S71_SA34eCode,$AC:$AC,Sheet1!S71_A5CapexCode,$AD:$AD)","v":0},{"$f":"SUMIFS(Sheet1!S71_OY2BudgetAmount,Sheet1!S71_SA34eCode,$AC:$AC,Sheet1!S71_A5CapexCode,$AD:$AD)","v":0},null,null,null,null,null,null,null,null,null,null,null,null,null,null,null,null,null,"1160","CE"]
["Unimproved Property",null,{"$f":"SUMIFS(Sheet1!S71_PPPYearAmount,Sheet1!S71_SA34eCode,$AC:$AC,Sheet1!S71_A5CapexCode,$AD:$AD)","v":0},{"$f":"SUMIFS(Sheet1!S71_PPYearAmount,Sheet1!S71_SA34eCode,$AC:$AC,Sheet1!S71_A5CapexCode,$AD:$AD)","v":0},{"$f":"SUMIFS(Sheet1!S71_PYearAmount,Sheet1!S71_SA34eCode,$AC:$AC,Sheet1!S71_A5CapexCode,$AD:$AD)","v":0},{"$f":"SUMIFS(Sheet1!S71_OriginalBudAmnt,Sheet1!S71_SA34eCode,$AC:$AC,Sheet1!S71_A5CapexCode,$AD:$AD)","v":0},{"$f":"SUMIFS(Sheet1!S71_AdjustmentBudAmnt,Sheet1!S71_SA34eCode,$AC:$AC,Sheet1!S71_A5CapexCode,$AD:$AD)","v":0},{"$f":"SUMIFS(Sheet1!S71_AdjustmentBudAmnt,Sheet1!S71_SA34eCode,$AC:$AC,Sheet1!S71_A5CapexCode,$AD:$AD)","v":0},{"$f":"SUMIFS(Sheet1!S71_ASBudgetAmount,Sheet1!S71_SA34eCode,$AC:$AC,Sheet1!S71_A5CapexCode,$AD:$AD)","v":0},{"$f":"SUMIFS(Sheet1!S71_OY1BudgetAmount,Sheet1!S71_SA34eCode,$AC:$AC,Sheet1!S71_A5CapexCode,$AD:$AD)","v":0},{"$f":"SUMIFS(Sheet1!S71_OY2BudgetAmount,Sheet1!S71_SA34eCode,$AC:$AC,Sheet1!S71_A5CapexCode,$AD:$AD)","v":0},null,null,null,null,null,null,null,null,null,null,null,null,null,null,null,null,null,"1170","CE"]
[null,null,null,null,null,null,null,null,null,null,null,null,null,null,null,null,null,null,null,null,null,null,null,null,null,null,null,null,null,"CE"]
["Other assets",null,{"$f":"+C119+C131","v":0},{"$f":"+D119+D131","v":1713492},10756725,18543541,14339275,14339275,14569189,0,0,null,null,null,null,null,null,null,null,null,null,null,null,null,null,null,null,null,null,"CE"]
["Operational Buildings",null,{"$f":"SUM(C120:C130)","v":0},{"$f":"SUM(D120:D130)","v":1713492},10756725,18543541,14339275,14339275,14569189,0,0,null,null,null,null,null,null,null,null,null,null,null,null,null,null,null,null,null,null,"CE"]
["Municipal Offices",null,{"$f":"SUMIFS(Sheet1!S71_PPPYearAmount,Sheet1!S71_SA34eCode,$AC:$AC,Sheet1!S71_A5CapexCode,$AD:$AD)","v":0},{"$f":"SUMIFS(Sheet1!S71_PPYearAmount,Sheet1!S71_SA34eCode,$AC:$AC,Sheet1!S71_A5CapexCode,$AD:$AD)","v":1713492},{"$f":"SUMIFS(Sheet1!S71_PYearAmount,Sheet1!S71_SA34eCode,$AC:$AC,Sheet1!S71_A5CapexCode,$AD:$AD)","v":8321600},{"$f":"SUMIFS(Sheet1!S71_OriginalBudAmnt,Sheet1!S71_SA34eCode,$AC:$AC,Sheet1!S71_A5CapexCode,$AD:$AD)","v":18543541},{"$f":"SUMIFS(Sheet1!S71_AdjustmentBudAmnt,Sheet1!S71_SA34eCode,$AC:$AC,Sheet1!S71_A5CapexCode,$AD:$AD)","v":14339275},{"$f":"SUMIFS(Sheet1!S71_AdjustmentBudAmnt,Sheet1!S71_SA34eCode,$AC:$AC,Sheet1!S71_A5CapexCode,$AD:$AD)","v":14339275},{"$f":"SUMIFS(Sheet1!S71_ASBudgetAmount,Sheet1!S71_SA34eCode,$AC:$AC,Sheet1!S71_A5CapexCode,$AD:$AD)","v":13269189},{"$f":"SUMIFS(Sheet1!S71_OY1BudgetAmount,Sheet1!S71_SA34eCode,$AC:$AC,Sheet1!S71_A5CapexCode,$AD:$AD)","v":0},{"$f":"SUMIFS(Sheet1!S71_OY2BudgetAmount,Sheet1!S71_SA34eCode,$AC:$AC,Sheet1!S71_A5CapexCode,$AD:$AD)","v":0},null,null,null,null,null,null,null,null,null,null,null,null,null,null,null,null,null,"1200","CE"]
["Pay/Enquiry Points",null,{"$f":"SUMIFS(Sheet1!S71_PPPYearAmount,Sheet1!S71_SA34eCode,$AC:$AC,Sheet1!S71_A5CapexCode,$AD:$AD)","v":0},{"$f":"SUMIFS(Sheet1!S71_PPYearAmount,Sheet1!S71_SA34eCode,$AC:$AC,Sheet1!S71_A5CapexCode,$AD:$AD)","v":0},{"$f":"SUMIFS(Sheet1!S71_PYearAmount,Sheet1!S71_SA34eCode,$AC:$AC,Sheet1!S71_A5CapexCode,$AD:$AD)","v":0},{"$f":"SUMIFS(Sheet1!S71_OriginalBudAmnt,Sheet1!S71_SA34eCode,$AC:$AC,Sheet1!S71_A5CapexCode,$AD:$AD)","v":0},{"$f":"SUMIFS(Sheet1!S71_AdjustmentBudAmnt,Sheet1!S71_SA34eCode,$AC:$AC,Sheet1!S71_A5CapexCode,$AD:$AD)","v":0},{"$f":"SUMIFS(Sheet1!S71_AdjustmentBudAmnt,Sheet1!S71_SA34eCode,$AC:$AC,Sheet1!S71_A5CapexCode,$AD:$AD)","v":0},{"$f":"SUMIFS(Sheet1!S71_ASBudgetAmount,Sheet1!S71_SA34eCode,$AC:$AC,Sheet1!S71_A5CapexCode,$AD:$AD)","v":0},{"$f":"SUMIFS(Sheet1!S71_OY1BudgetAmount,Sheet1!S71_SA34eCode,$AC:$AC,Sheet1!S71_A5CapexCode,$AD:$AD)","v":0},{"$f":"SUMIFS(Sheet1!S71_OY2BudgetAmount,Sheet1!S71_SA34eCode,$AC:$AC,Sheet1!S71_A5CapexCode,$AD:$AD)","v":0},null,null,null,null,null,null,null,null,null,null,null,null,null,null,null,null,null,"1210","CE"]
["Building Plan Offices",null,{"$f":"SUMIFS(Sheet1!S71_PPPYearAmount,Sheet1!S71_SA34eCode,$AC:$AC,Sheet1!S71_A5CapexCode,$AD:$AD)","v":0},{"$f":"SUMIFS(Sheet1!S71_PPYearAmount,Sheet1!S71_SA34eCode,$AC:$AC,Sheet1!S71_A5CapexCode,$AD:$AD)","v":0},{"$f":"SUMIFS(Sheet1!S71_PYearAmount,Sheet1!S71_SA34eCode,$AC:$AC,Sheet1!S71_A5CapexCode,$AD:$AD)","v":0},{"$f":"SUMIFS(Sheet1!S71_OriginalBudAmnt,Sheet1!S71_SA34eCode,$AC:$AC,Sheet1!S71_A5CapexCode,$AD:$AD)","v":0},{"$f":"SUMIFS(Sheet1!S71_AdjustmentBudAmnt,Sheet1!S71_SA34eCode,$AC:$AC,Sheet1!S71_A5CapexCode,$AD:$AD)","v":0},{"$f":"SUMIFS(Sheet1!S71_AdjustmentBudAmnt,Sheet1!S71_SA34eCode,$AC:$AC,Sheet1!S71_A5CapexCode,$AD:$AD)","v":0},{"$f":"SUMIFS(Sheet1!S71_ASBudgetAmount,Sheet1!S71_SA34eCode,$AC:$AC,Sheet1!S71_A5CapexCode,$AD:$AD)","v":0},{"$f":"SUMIFS(Sheet1!S71_OY1BudgetAmount,Sheet1!S71_SA34eCode,$AC:$AC,Sheet1!S71_A5CapexCode,$AD:$AD)","v":0},{"$f":"SUMIFS(Sheet1!S71_OY2BudgetAmount,Sheet1!S71_SA34eCode,$AC:$AC,Sheet1!S71_A5CapexCode,$AD:$AD)","v":0},null,null,null,null,null,null,null,null,null,null,null,null,null,null,null,null,null,"1220","CE"]
["Workshops",null,{"$f":"SUMIFS(Sheet1!S71_PPPYearAmount,Sheet1!S71_SA34eCode,$AC:$AC,Sheet1!S71_A5CapexCode,$AD:$AD)","v":0},{"$f":"SUMIFS(Sheet1!S71_PPYearAmount,Sheet1!S71_SA34eCode,$AC:$AC,Sheet1!S71_A5CapexCode,$AD:$AD)","v":0},{"$f":"SUMIFS(Sheet1!S71_PYearAmount,Sheet1!S71_SA34eCode,$AC:$AC,Sheet1!S71_A5CapexCode,$AD:$AD)","v":0},{"$f":"SUMIFS(Sheet1!S71_OriginalBudAmnt,Sheet1!S71_SA34eCode,$AC:$AC,Sheet1!S71_A5CapexCode,$AD:$AD)","v":0},{"$f":"SUMIFS(Sheet1!S71_AdjustmentBudAmnt,Sheet1!S71_SA34eCode,$AC:$AC,Sheet1!S71_A5CapexCode,$AD:$AD)","v":0},{"$f":"SUMIFS(Sheet1!S71_AdjustmentBudAmnt,Sheet1!S71_SA34eCode,$AC:$AC,Sheet1!S71_A5CapexCode,$AD:$AD)","v":0},{"$f":"SUMIFS(Sheet1!S71_ASBudgetAmount,Sheet1!S71_SA34eCode,$AC:$AC,Sheet1!S71_A5CapexCode,$AD:$AD)","v":0},{"$f":"SUMIFS(Sheet1!S71_OY1BudgetAmount,Sheet1!S71_SA34eCode,$AC:$AC,Sheet1!S71_A5CapexCode,$AD:$AD)","v":0},{"$f":"SUMIFS(Sheet1!S71_OY2BudgetAmount,Sheet1!S71_SA34eCode,$AC:$AC,Sheet1!S71_A5CapexCode,$AD:$AD)","v":0},null,null,null,null,null,null,null,null,null,null,null,null,null,null,null,null,null,"1230","CE"]
["Yards",null,{"$f":"SUMIFS(Sheet1!S71_PPPYearAmount,Sheet1!S71_SA34eCode,$AC:$AC,Sheet1!S71_A5CapexCode,$AD:$AD)","v":0},{"$f":"SUMIFS(Sheet1!S71_PPYearAmount,Sheet1!S71_SA34eCode,$AC:$AC,Sheet1!S71_A5CapexCode,$AD:$AD)","v":0},{"$f":"SUMIFS(Sheet1!S71_PYearAmount,Sheet1!S71_SA34eCode,$AC:$AC,Sheet1!S71_A5CapexCode,$AD:$AD)","v":2435125},{"$f":"SUMIFS(Sheet1!S71_OriginalBudAmnt,Sheet1!S71_SA34eCode,$AC:$AC,Sheet1!S71_A5CapexCode,$AD:$AD)","v":0},{"$f":"SUMIFS(Sheet1!S71_AdjustmentBudAmnt,Sheet1!S71_SA34eCode,$AC:$AC,Sheet1!S71_A5CapexCode,$AD:$AD)","v":0},{"$f":"SUMIFS(Sheet1!S71_AdjustmentBudAmnt,Sheet1!S71_SA34eCode,$AC:$AC,Sheet1!S71_A5CapexCode,$AD:$AD)","v":0},{"$f":"SUMIFS(Sheet1!S71_ASBudgetAmount,Sheet1!S71_SA34eCode,$AC:$AC,Sheet1!S71_A5CapexCode,$AD:$AD)","v":1300000},{"$f":"SUMIFS(Sheet1!S71_OY1BudgetAmount,Sheet1!S71_SA34eCode,$AC:$AC,Sheet1!S71_A5CapexCode,$AD:$AD)","v":0},{"$f":"SUMIFS(Sheet1!S71_OY2BudgetAmount,Sheet1!S71_SA34eCode,$AC:$AC,Sheet1!S71_A5CapexCode,$AD:$AD)","v":0},null,null,null,null,null,null,null,null,null,null,null,null,null,null,null,null,null,"1240","CE"]
["Stores",null,{"$f":"SUMIFS(Sheet1!S71_PPPYearAmount,Sheet1!S71_SA34eCode,$AC:$AC,Sheet1!S71_A5CapexCode,$AD:$AD)","v":0},{"$f":"SUMIFS(Sheet1!S71_PPYearAmount,Sheet1!S71_SA34eCode,$AC:$AC,Sheet1!S71_A5CapexCode,$AD:$AD)","v":0},{"$f":"SUMIFS(Sheet1!S71_PYearAmount,Sheet1!S71_SA34eCode,$AC:$AC,Sheet1!S71_A5CapexCode,$AD:$AD)","v":0},{"$f":"SUMIFS(Sheet1!S71_OriginalBudAmnt,Sheet1!S71_SA34eCode,$AC:$AC,Sheet1!S71_A5CapexCode,$AD:$AD)","v":0},{"$f":"SUMIFS(Sheet1!S71_AdjustmentBudAmnt,Sheet1!S71_SA34eCode,$AC:$AC,Sheet1!S71_A5CapexCode,$AD:$AD)","v":0},{"$f":"SUMIFS(Sheet1!S71_AdjustmentBudAmnt,Sheet1!S71_SA34eCode,$AC:$AC,Sheet1!S71_A5CapexCode,$AD:$AD)","v":0},{"$f":"SUMIFS(Sheet1!S71_ASBudgetAmount,Sheet1!S71_SA34eCode,$AC:$AC,Sheet1!S71_A5CapexCode,$AD:$AD)","v":0},{"$f":"SUMIFS(Sheet1!S71_OY1BudgetAmount,Sheet1!S71_SA34eCode,$AC:$AC,Sheet1!S71_A5CapexCode,$AD:$AD)","v":0},{"$f":"SUMIFS(Sheet1!S71_OY2BudgetAmount,Sheet1!S71_SA34eCode,$AC:$AC,Sheet1!S71_A5CapexCode,$AD:$AD)","v":0},null,null,null,null,null,null,null,null,null,null,null,null,null,null,null,null,null,"1250","CE"]
["Laboratories",null,{"$f":"SUMIFS(Sheet1!S71_PPPYearAmount,Sheet1!S71_SA34eCode,$AC:$AC,Sheet1!S71_A5CapexCode,$AD:$AD)","v":0},{"$f":"SUMIFS(Sheet1!S71_PPYearAmount,Sheet1!S71_SA34eCode,$AC:$AC,Sheet1!S71_A5CapexCode,$AD:$AD)","v":0},{"$f":"SUMIFS(Sheet1!S71_PYearAmount,Sheet1!S71_SA34eCode,$AC:$AC,Sheet1!S71_A5CapexCode,$AD:$AD)","v":0},{"$f":"SUMIFS(Sheet1!S71_OriginalBudAmnt,Sheet1!S71_SA34eCode,$AC:$AC,Sheet1!S71_A5CapexCode,$AD:$AD)","v":0},{"$f":"SUMIFS(Sheet1!S71_AdjustmentBudAmnt,Sheet1!S71_SA34eCode,$AC:$AC,Sheet1!S71_A5CapexCode,$AD:$AD)","v":0},{"$f":"SUMIFS(Sheet1!S71_AdjustmentBudAmnt,Sheet1!S71_SA34eCode,$AC:$AC,Sheet1!S71_A5CapexCode,$AD:$AD)","v":0},{"$f":"SUMIFS(Sheet1!S71_ASBudgetAmount,Sheet1!S71_SA34eCode,$AC:$AC,Sheet1!S71_A5CapexCode,$AD:$AD)","v":0},{"$f":"SUMIFS(Sheet1!S71_OY1BudgetAmount,Sheet1!S71_SA34eCode,$AC:$AC,Sheet1!S71_A5CapexCode,$AD:$AD)","v":0},{"$f":"SUMIFS(Sheet1!S71_OY2BudgetAmount,Sheet1!S71_SA34eCode,$AC:$AC,Sheet1!S71_A5CapexCode,$AD:$AD)","v":0},null,null,null,null,null,null,null,null,null,null,null,null,null,null,null,null,null,"1260","CE"]
["Training Centres",null,{"$f":"SUMIFS(Sheet1!S71_PPPYearAmount,Sheet1!S71_SA34eCode,$AC:$AC,Sheet1!S71_A5CapexCode,$AD:$AD)","v":0},{"$f":"SUMIFS(Sheet1!S71_PPYearAmount,Sheet1!S71_SA34eCode,$AC:$AC,Sheet1!S71_A5CapexCode,$AD:$AD)","v":0},{"$f":"SUMIFS(Sheet1!S71_PYearAmount,Sheet1!S71_SA34eCode,$AC:$AC,Sheet1!S71_A5CapexCode,$AD:$AD)","v":0},{"$f":"SUMIFS(Sheet1!S71_OriginalBudAmnt,Sheet1!S71_SA34eCode,$AC:$AC,Sheet1!S71_A5CapexCode,$AD:$AD)","v":0},{"$f":"SUMIFS(Sheet1!S71_AdjustmentBudAmnt,Sheet1!S71_SA34eCode,$AC:$AC,Sheet1!S71_A5CapexCode,$AD:$AD)","v":0},{"$f":"SUMIFS(Sheet1!S71_AdjustmentBudAmnt,Sheet1!S71_SA34eCode,$AC:$AC,Sheet1!S71_A5CapexCode,$AD:$AD)","v":0},{"$f":"SUMIFS(Sheet1!S71_ASBudgetAmount,Sheet1!S71_SA34eCode,$AC:$AC,Sheet1!S71_A5CapexCode,$AD:$AD)","v":0},{"$f":"SUMIFS(Sheet1!S71_OY1BudgetAmount,Sheet1!S71_SA34eCode,$AC:$AC,Sheet1!S71_A5CapexCode,$AD:$AD)","v":0},{"$f":"SUMIFS(Sheet1!S71_OY2BudgetAmount,Sheet1!S71_SA34eCode,$AC:$AC,Sheet1!S71_A5CapexCode,$AD:$AD)","v":0},null,null,null,null,null,null,null,null,null,null,null,null,null,null,null,null,null,"1270","CE"]
["Manufacturing Plant",null,{"$f":"SUMIFS(Sheet1!S71_PPPYearAmount,Sheet1!S71_SA34eCode,$AC:$AC,Sheet1!S71_A5CapexCode,$AD:$AD)","v":0},{"$f":"SUMIFS(Sheet1!S71_PPYearAmount,Sheet1!S71_SA34eCode,$AC:$AC,Sheet1!S71_A5CapexCode,$AD:$AD)","v":0},{"$f":"SUMIFS(Sheet1!S71_PYearAmount,Sheet1!S71_SA34eCode,$AC:$AC,Sheet1!S71_A5CapexCode,$AD:$AD)","v":0},{"$f":"SUMIFS(Sheet1!S71_OriginalBudAmnt,Sheet1!S71_SA34eCode,$AC:$AC,Sheet1!S71_A5CapexCode,$AD:$AD)","v":0},{"$f":"SUMIFS(Sheet1!S71_AdjustmentBudAmnt,Sheet1!S71_SA34eCode,$AC:$AC,Sheet1!S71_A5CapexCode,$AD:$AD)","v":0},{"$f":"SUMIFS(Sheet1!S71_AdjustmentBudAmnt,Sheet1!S71_SA34eCode,$AC:$AC,Sheet1!S71_A5CapexCode,$AD:$AD)","v":0},{"$f":"SUMIFS(Sheet1!S71_ASBudgetAmount,Sheet1!S71_SA34eCode,$AC:$AC,Sheet1!S71_A5CapexCode,$AD:$AD)","v":0},{"$f":"SUMIFS(Sheet1!S71_OY1BudgetAmount,Sheet1!S71_SA34eCode,$AC:$AC,Sheet1!S71_A5CapexCode,$AD:$AD)","v":0},{"$f":"SUMIFS(Sheet1!S71_OY2BudgetAmount,Sheet1!S71_SA34eCode,$AC:$AC,Sheet1!S71_A5CapexCode,$AD:$AD)","v":0},null,null,null,null,null,null,null,null,null,null,null,null,null,null,null,null,null,"1280","CE"]
["Depots",null,{"$f":"SUMIFS(Sheet1!S71_PPPYearAmount,Sheet1!S71_SA34eCode,$AC:$AC,Sheet1!S71_A5CapexCode,$AD:$AD)","v":0},{"$f":"SUMIFS(Sheet1!S71_PPYearAmount,Sheet1!S71_SA34eCode,$AC:$AC,Sheet1!S71_A5CapexCode,$AD:$AD)","v":0},{"$f":"SUMIFS(Sheet1!S71_PYearAmount,Sheet1!S71_SA34eCode,$AC:$AC,Sheet1!S71_A5CapexCode,$AD:$AD)","v":0},{"$f":"SUMIFS(Sheet1!S71_OriginalBudAmnt,Sheet1!S71_SA34eCode,$AC:$AC,Sheet1!S71_A5CapexCode,$AD:$AD)","v":0},{"$f":"SUMIFS(Sheet1!S71_AdjustmentBudAmnt,Sheet1!S71_SA34eCode,$AC:$AC,Sheet1!S71_A5CapexCode,$AD:$AD)","v":0},{"$f":"SUMIFS(Sheet1!S71_AdjustmentBudAmnt,Sheet1!S71_SA34eCode,$AC:$AC,Sheet1!S71_A5CapexCode,$AD:$AD)","v":0},{"$f":"SUMIFS(Sheet1!S71_ASBudgetAmount,Sheet1!S71_SA34eCode,$AC:$AC,Sheet1!S71_A5CapexCode,$AD:$AD)","v":0},{"$f":"SUMIFS(Sheet1!S71_OY1BudgetAmount,Sheet1!S71_SA34eCode,$AC:$AC,Sheet1!S71_A5CapexCode,$AD:$AD)","v":0},{"$f":"SUMIFS(Sheet1!S71_OY2BudgetAmount,Sheet1!S71_SA34eCode,$AC:$AC,Sheet1!S71_A5CapexCode,$AD:$AD)","v":0},null,null,null,null,null,null,null,null,null,null,null,null,null,null,null,null,null,"1290","CE"]
["Capital Spares",null,{"$f":"SUMIFS(Sheet1!S71_PPPYearAmount,Sheet1!S71_SA34eCode,$AC:$AC,Sheet1!S71_A5CapexCode,$AD:$AD)","v":0},{"$f":"SUMIFS(Sheet1!S71_PPYearAmount,Sheet1!S71_SA34eCode,$AC:$AC,Sheet1!S71_A5CapexCode,$AD:$AD)","v":0},{"$f":"SUMIFS(Sheet1!S71_PYearAmount,Sheet1!S71_SA34eCode,$AC:$AC,Sheet1!S71_A5CapexCode,$AD:$AD)","v":0},{"$f":"SUMIFS(Sheet1!S71_OriginalBudAmnt,Sheet1!S71_SA34eCode,$AC:$AC,Sheet1!S71_A5CapexCode,$AD:$AD)","v":0},{"$f":"SUMIFS(Sheet1!S71_AdjustmentBudAmnt,Sheet1!S71_SA34eCode,$AC:$AC,Sheet1!S71_A5CapexCode,$AD:$AD)","v":0},{"$f":"SUMIFS(Sheet1!S71_AdjustmentBudAmnt,Sheet1!S71_SA34eCode,$AC:$AC,Sheet1!S71_A5CapexCode,$AD:$AD)","v":0},{"$f":"SUMIFS(Sheet1!S71_ASBudgetAmount,Sheet1!S71_SA34eCode,$AC:$AC,Sheet1!S71_A5CapexCode,$AD:$AD)","v":0},{"$f":"SUMIFS(Sheet1!S71_OY1BudgetAmount,Sheet1!S71_SA34eCode,$AC:$AC,Sheet1!S71_A5CapexCode,$AD:$AD)","v":0},{"$f":"SUMIFS(Sheet1!S71_OY2BudgetAmount,Sheet1!S71_SA34eCode,$AC:$AC,Sheet1!S71_A5CapexCode,$AD:$AD)","v":0},null,null,null,null,null,null,null,null,null,null,null,null,null,null,null,null,null,"1300","CE"]
["Housing",null,{"$f":"SUM(C132:C134)","v":0},{"$f":"SUM(D132:D134)","v":0},0,0,0,0,0,0,0,null,null,null,null,null,null,null,null,null,null,null,null,null,null,null,null,null,null,"CE"]
["Staff Housing",null,{"$f":"SUMIFS(Sheet1!S71_PPPYearAmount,Sheet1!S71_SA34eCode,$AC:$AC,Sheet1!S71_A5CapexCode,$AD:$AD)","v":0},{"$f":"SUMIFS(Sheet1!S71_PPYearAmount,Sheet1!S71_SA34eCode,$AC:$AC,Sheet1!S71_A5CapexCode,$AD:$AD)","v":0},{"$f":"SUMIFS(Sheet1!S71_PYearAmount,Sheet1!S71_SA34eCode,$AC:$AC,Sheet1!S71_A5CapexCode,$AD:$AD)","v":0},{"$f":"SUMIFS(Sheet1!S71_OriginalBudAmnt,Sheet1!S71_SA34eCode,$AC:$AC,Sheet1!S71_A5CapexCode,$AD:$AD)","v":0},{"$f":"SUMIFS(Sheet1!S71_AdjustmentBudAmnt,Sheet1!S71_SA34eCode,$AC:$AC,Sheet1!S71_A5CapexCode,$AD:$AD)","v":0},{"$f":"SUMIFS(Sheet1!S71_AdjustmentBudAmnt,Sheet1!S71_SA34eCode,$AC:$AC,Sheet1!S71_A5CapexCode,$AD:$AD)","v":0},{"$f":"SUMIFS(Sheet1!S71_ASBudgetAmount,Sheet1!S71_SA34eCode,$AC:$AC,Sheet1!S71_A5CapexCode,$AD:$AD)","v":0},{"$f":"SUMIFS(Sheet1!S71_OY1BudgetAmount,Sheet1!S71_SA34eCode,$AC:$AC,Sheet1!S71_A5CapexCode,$AD:$AD)","v":0},{"$f":"SUMIFS(Sheet1!S71_OY2BudgetAmount,Sheet1!S71_SA34eCode,$AC:$AC,Sheet1!S71_A5CapexCode,$AD:$AD)","v":0},null,null,null,null,null,null,null,null,null,null,null,null,null,null,null,null,null,"1320","CE"]
["Social Housing",null,{"$f":"SUMIFS(Sheet1!S71_PPPYearAmount,Sheet1!S71_SA34eCode,$AC:$AC,Sheet1!S71_A5CapexCode,$AD:$AD)","v":0},{"$f":"SUMIFS(Sheet1!S71_PPYearAmount,Sheet1!S71_SA34eCode,$AC:$AC,Sheet1!S71_A5CapexCode,$AD:$AD)","v":0},{"$f":"SUMIFS(Sheet1!S71_PYearAmount,Sheet1!S71_SA34eCode,$AC:$AC,Sheet1!S71_A5CapexCode,$AD:$AD)","v":0},{"$f":"SUMIFS(Sheet1!S71_OriginalBudAmnt,Sheet1!S71_SA34eCode,$AC:$AC,Sheet1!S71_A5CapexCode,$AD:$AD)","v":0},{"$f":"SUMIFS(Sheet1!S71_AdjustmentBudAmnt,Sheet1!S71_SA34eCode,$AC:$AC,Sheet1!S71_A5CapexCode,$AD:$AD)","v":0},{"$f":"SUMIFS(Sheet1!S71_AdjustmentBudAmnt,Sheet1!S71_SA34eCode,$AC:$AC,Sheet1!S71_A5CapexCode,$AD:$AD)","v":0},{"$f":"SUMIFS(Sheet1!S71_ASBudgetAmount,Sheet1!S71_SA34eCode,$AC:$AC,Sheet1!S71_A5CapexCode,$AD:$AD)","v":0},{"$f":"SUMIFS(Sheet1!S71_OY1BudgetAmount,Sheet1!S71_SA34eCode,$AC:$AC,Sheet1!S71_A5CapexCode,$AD:$AD)","v":0},{"$f":"SUMIFS(Sheet1!S71_OY2BudgetAmount,Sheet1!S71_SA34eCode,$AC:$AC,Sheet1!S71_A5CapexCode,$AD:$AD)","v":0},null,null,null,null,null,null,null,null,null,null,null,null,null,null,null,null,null,"1330","CE"]
["Capital Spares",null,{"$f":"SUMIFS(Sheet1!S71_PPPYearAmount,Sheet1!S71_SA34eCode,$AC:$AC,Sheet1!S71_A5CapexCode,$AD:$AD)","v":0},{"$f":"SUMIFS(Sheet1!S71_PPYearAmount,Sheet1!S71_SA34eCode,$AC:$AC,Sheet1!S71_A5CapexCode,$AD:$AD)","v":0},{"$f":"SUMIFS(Sheet1!S71_PYearAmount,Sheet1!S71_SA34eCode,$AC:$AC,Sheet1!S71_A5CapexCode,$AD:$AD)","v":0},{"$f":"SUMIFS(Sheet1!S71_OriginalBudAmnt,Sheet1!S71_SA34eCode,$AC:$AC,Sheet1!S71_A5CapexCode,$AD:$AD)","v":0},{"$f":"SUMIFS(Sheet1!S71_AdjustmentBudAmnt,Sheet1!S71_SA34eCode,$AC:$AC,Sheet1!S71_A5CapexCode,$AD:$AD)","v":0},{"$f":"SUMIFS(Sheet1!S71_AdjustmentBudAmnt,Sheet1!S71_SA34eCode,$AC:$AC,Sheet1!S71_A5CapexCode,$AD:$AD)","v":0},{"$f":"SUMIFS(Sheet1!S71_ASBudgetAmount,Sheet1!S71_SA34eCode,$AC:$AC,Sheet1!S71_A5CapexCode,$AD:$AD)","v":0},{"$f":"SUMIFS(Sheet1!S71_OY1BudgetAmount,Sheet1!S71_SA34eCode,$AC:$AC,Sheet1!S71_A5CapexCode,$AD:$AD)","v":0},{"$f":"SUMIFS(Sheet1!S71_OY2BudgetAmount,Sheet1!S71_SA34eCode,$AC:$AC,Sheet1!S71_A5CapexCode,$AD:$AD)","v":0},null,null,null,null,null,null,null,null,null,null,null,null,null,null,null,null,null,"1340","CE"]
[null,null,null,null,null,null,null,null,null,null,null,null,null,null,null,null,null,null,null,null,null,null,null,null,null,null,null,null,null,"CE"]
["Biological or Cultivated Assets",null,{"$f":"SUM(C137:C137)","v":0},0,0,0,0,0,0,0,0,null,null,null,null,null,null,null,null,null,null,null,null,null,null,null,null,null,null,"CE"]
["Biological or Cultivated Assets",null,{"$f":"SUMIFS(Sheet1!S71_PPPYearAmount,Sheet1!S71_SA34eCode,$AC:$AC,Sheet1!S71_A5CapexCode,$AD:$AD)","v":0},{"$f":"SUMIFS(Sheet1!S71_PPYearAmount,Sheet1!S71_SA34eCode,$AC:$AC,Sheet1!S71_A5CapexCode,$AD:$AD)","v":0},{"$f":"SUMIFS(Sheet1!S71_PYearAmount,Sheet1!S71_SA34eCode,$AC:$AC,Sheet1!S71_A5CapexCode,$AD:$AD)","v":0},{"$f":"SUMIFS(Sheet1!S71_OriginalBudAmnt,Sheet1!S71_SA34eCode,$AC:$AC,Sheet1!S71_A5CapexCode,$AD:$AD)","v":0},{"$f":"SUMIFS(Sheet1!S71_AdjustmentBudAmnt,Sheet1!S71_SA34eCode,$AC:$AC,Sheet1!S71_A5CapexCode,$AD:$AD)","v":0},{"$f":"SUMIFS(Sheet1!S71_AdjustmentBudAmnt,Sheet1!S71_SA34eCode,$AC:$AC,Sheet1!S71_A5CapexCode,$AD:$AD)","v":0},{"$f":"SUMIFS(Sheet1!S71_ASBudgetAmount,Sheet1!S71_SA34eCode,$AC:$AC,Sheet1!S71_A5CapexCode,$AD:$AD)","v":0},{"$f":"SUMIFS(Sheet1!S71_OY1BudgetAmount,Sheet1!S71_SA34eCode,$AC:$AC,Sheet1!S71_A5CapexCode,$AD:$AD)","v":0},{"$f":"SUMIFS(Sheet1!S71_OY2BudgetAmount,Sheet1!S71_SA34eCode,$AC:$AC,Sheet1!S71_A5CapexCode,$AD:$AD)","v":0},null,null,null,null,null,null,null,null,null,null,null,null,null,null,null,null,null,"1360","CE"]
[null,null,null,null,null,null,null,null,null,null,null,null,null,null,null,null,null,null,null,null,null,null,null,null,null,null,null,null,null,"CE"]
["Intangible Assets",null,{"$f":"+C140+C141","v":0},{"$f":"+D140+D141","v":0},0,0,0,0,0,0,0,null,null,null,null,null,null,null,null,null,null,null,null,null,null,null,null,null,null,"CE"]
["Servitudes",null,{"$f":"SUMIFS(Sheet1!S71_PPPYearAmount,Sheet1!S71_SA34eCode,$AC:$AC,Sheet1!S71_A5CapexCode,$AD:$AD)","v":0},{"$f":"SUMIFS(Sheet1!S71_PPYearAmount,Sheet1!S71_SA34eCode,$AC:$AC,Sheet1!S71_A5CapexCode,$AD:$AD)","v":0},{"$f":"SUMIFS(Sheet1!S71_PYearAmount,Sheet1!S71_SA34eCode,$AC:$AC,Sheet1!S71_A5CapexCode,$AD:$AD)","v":0},{"$f":"SUMIFS(Sheet1!S71_OriginalBudAmnt,Sheet1!S71_SA34eCode,$AC:$AC,Sheet1!S71_A5CapexCode,$AD:$AD)","v":0},{"$f":"SUMIFS(Sheet1!S71_AdjustmentBudAmnt,Sheet1!S71_SA34eCode,$AC:$AC,Sheet1!S71_A5CapexCode,$AD:$AD)","v":0},{"$f":"SUMIFS(Sheet1!S71_AdjustmentBudAmnt,Sheet1!S71_SA34eCode,$AC:$AC,Sheet1!S71_A5CapexCode,$AD:$AD)","v":0},{"$f":"SUMIFS(Sheet1!S71_ASBudgetAmount,Sheet1!S71_SA34eCode,$AC:$AC,Sheet1!S71_A5CapexCode,$AD:$AD)","v":0},{"$f":"SUMIFS(Sheet1!S71_OY1BudgetAmount,Sheet1!S71_SA34eCode,$AC:$AC,Sheet1!S71_A5CapexCode,$AD:$AD)","v":0},{"$f":"SUMIFS(Sheet1!S71_OY2BudgetAmount,Sheet1!S71_SA34eCode,$AC:$AC,Sheet1!S71_A5CapexCode,$AD:$AD)","v":0},null,null,null,null,null,null,null,null,null,null,null,null,null,null,null,null,null,"1380","CE"]
["Licences and Rights",null,{"$f":"SUM(C142:C147)","v":0},{"$f":"SUM(D142:D147)","v":0},0,0,0,0,0,0,0,null,null,null,null,null,null,null,null,null,null,null,null,null,null,null,null,null,null,"CE"]
["Water Rights",null,{"$f":"SUMIFS(Sheet1!S71_PPPYearAmount,Sheet1!S71_SA34eCode,$AC:$AC,Sheet1!S71_A5CapexCode,$AD:$AD)","v":0},{"$f":"SUMIFS(Sheet1!S71_PPYearAmount,Sheet1!S71_SA34eCode,$AC:$AC,Sheet1!S71_A5CapexCode,$AD:$AD)","v":0},{"$f":"SUMIFS(Sheet1!S71_PYearAmount,Sheet1!S71_SA34eCode,$AC:$AC,Sheet1!S71_A5CapexCode,$AD:$AD)","v":0},{"$f":"SUMIFS(Sheet1!S71_OriginalBudAmnt,Sheet1!S71_SA34eCode,$AC:$AC,Sheet1!S71_A5CapexCode,$AD:$AD)","v":0},{"$f":"SUMIFS(Sheet1!S71_AdjustmentBudAmnt,Sheet1!S71_SA34eCode,$AC:$AC,Sheet1!S71_A5CapexCode,$AD:$AD)","v":0},{"$f":"SUMIFS(Sheet1!S71_AdjustmentBudAmnt,Sheet1!S71_SA34eCode,$AC:$AC,Sheet1!S71_A5CapexCode,$AD:$AD)","v":0},{"$f":"SUMIFS(Sheet1!S71_ASBudgetAmount,Sheet1!S71_SA34eCode,$AC:$AC,Sheet1!S71_A5CapexCode,$AD:$AD)","v":0},{"$f":"SUMIFS(Sheet1!S71_OY1BudgetAmount,Sheet1!S71_SA34eCode,$AC:$AC,Sheet1!S71_A5CapexCode,$AD:$AD)","v":0},{"$f":"SUMIFS(Sheet1!S71_OY2BudgetAmount,Sheet1!S71_SA34eCode,$AC:$AC,Sheet1!S71_A5CapexCode,$AD:$AD)","v":0},null,null,null,null,null,null,null,null,null,null,null,null,null,null,null,null,null,"1400","CE"]
["Effluent Licenses",null,{"$f":"SUMIFS(Sheet1!S71_PPPYearAmount,Sheet1!S71_SA34eCode,$AC:$AC,Sheet1!S71_A5CapexCode,$AD:$AD)","v":0},{"$f":"SUMIFS(Sheet1!S71_PPYearAmount,Sheet1!S71_SA34eCode,$AC:$AC,Sheet1!S71_A5CapexCode,$AD:$AD)","v":0},{"$f":"SUMIFS(Sheet1!S71_PYearAmount,Sheet1!S71_SA34eCode,$AC:$AC,Sheet1!S71_A5CapexCode,$AD:$AD)","v":0},{"$f":"SUMIFS(Sheet1!S71_OriginalBudAmnt,Sheet1!S71_SA34eCode,$AC:$AC,Sheet1!S71_A5CapexCode,$AD:$AD)","v":0},{"$f":"SUMIFS(Sheet1!S71_AdjustmentBudAmnt,Sheet1!S71_SA34eCode,$AC:$AC,Sheet1!S71_A5CapexCode,$AD:$AD)","v":0},{"$f":"SUMIFS(Sheet1!S71_AdjustmentBudAmnt,Sheet1!S71_SA34eCode,$AC:$AC,Sheet1!S71_A5CapexCode,$AD:$AD)","v":0},{"$f":"SUMIFS(Sheet1!S71_ASBudgetAmount,Sheet1!S71_SA34eCode,$AC:$AC,Sheet1!S71_A5CapexCode,$AD:$AD)","v":0},{"$f":"SUMIFS(Sheet1!S71_OY1BudgetAmount,Sheet1!S71_SA34eCode,$AC:$AC,Sheet1!S71_A5CapexCode,$AD:$AD)","v":0},{"$f":"SUMIFS(Sheet1!S71_OY2BudgetAmount,Sheet1!S71_SA34eCode,$AC:$AC,Sheet1!S71_A5CapexCode,$AD:$AD)","v":0},null,null,null,null,null,null,null,null,null,null,null,null,null,null,null,null,null,"1410","CE"]
["Solid Waste Licenses",null,{"$f":"SUMIFS(Sheet1!S71_PPPYearAmount,Sheet1!S71_SA34eCode,$AC:$AC,Sheet1!S71_A5CapexCode,$AD:$AD)","v":0},{"$f":"SUMIFS(Sheet1!S71_PPYearAmount,Sheet1!S71_SA34eCode,$AC:$AC,Sheet1!S71_A5CapexCode,$AD:$AD)","v":0},{"$f":"SUMIFS(Sheet1!S71_PYearAmount,Sheet1!S71_SA34eCode,$AC:$AC,Sheet1!S71_A5CapexCode,$AD:$AD)","v":0},{"$f":"SUMIFS(Sheet1!S71_OriginalBudAmnt,Sheet1!S71_SA34eCode,$AC:$AC,Sheet1!S71_A5CapexCode,$AD:$AD)","v":0},{"$f":"SUMIFS(Sheet1!S71_AdjustmentBudAmnt,Sheet1!S71_SA34eCode,$AC:$AC,Sheet1!S71_A5CapexCode,$AD:$AD)","v":0},{"$f":"SUMIFS(Sheet1!S71_AdjustmentBudAmnt,Sheet1!S71_SA34eCode,$AC:$AC,Sheet1!S71_A5CapexCode,$AD:$AD)","v":0},{"$f":"SUMIFS(Sheet1!S71_ASBudgetAmount,Sheet1!S71_SA34eCode,$AC:$AC,Sheet1!S71_A5CapexCode,$AD:$AD)","v":0},{"$f":"SUMIFS(Sheet1!S71_OY1BudgetAmount,Sheet1!S71_SA34eCode,$AC:$AC,Sheet1!S71_A5CapexCode,$AD:$AD)","v":0},{"$f":"SUMIFS(Sheet1!S71_OY2BudgetAmount,Sheet1!S71_SA34eCode,$AC:$AC,Sheet1!S71_A5CapexCode,$AD:$AD)","v":0},null,null,null,null,null,null,null,null,null,null,null,null,null,null,null,null,null,"1420","CE"]
["Computer Software and Applications",null,{"$f":"SUMIFS(Sheet1!S71_PPPYearAmount,Sheet1!S71_SA34eCode,$AC:$AC,Sheet1!S71_A5CapexCode,$AD:$AD)","v":0},{"$f":"SUMIFS(Sheet1!S71_PPYearAmount,Sheet1!S71_SA34eCode,$AC:$AC,Sheet1!S71_A5CapexCode,$AD:$AD)","v":0},{"$f":"SUMIFS(Sheet1!S71_PYearAmount,Sheet1!S71_SA34eCode,$AC:$AC,Sheet1!S71_A5CapexCode,$AD:$AD)","v":0},{"$f":"SUMIFS(Sheet1!S71_OriginalBudAmnt,Sheet1!S71_SA34eCode,$AC:$AC,Sheet1!S71_A5CapexCode,$AD:$AD)","v":0},{"$f":"SUMIFS(Sheet1!S71_AdjustmentBudAmnt,Sheet1!S71_SA34eCode,$AC:$AC,Sheet1!S71_A5CapexCode,$AD:$AD)","v":0},{"$f":"SUMIFS(Sheet1!S71_AdjustmentBudAmnt,Sheet1!S71_SA34eCode,$AC:$AC,Sheet1!S71_A5CapexCode,$AD:$AD)","v":0},{"$f":"SUMIFS(Sheet1!S71_ASBudgetAmount,Sheet1!S71_SA34eCode,$AC:$AC,Sheet1!S71_A5CapexCode,$AD:$AD)","v":0},{"$f":"SUMIFS(Sheet1!S71_OY1BudgetAmount,Sheet1!S71_SA34eCode,$AC:$AC,Sheet1!S71_A5CapexCode,$AD:$AD)","v":0},{"$f":"SUMIFS(Sheet1!S71_OY2BudgetAmount,Sheet1!S71_SA34eCode,$AC:$AC,Sheet1!S71_A5CapexCode,$AD:$AD)","v":0},null,null,null,null,null,null,null,null,null,null,null,null,null,null,null,null,null,"1430","CE"]
["Load Settlement Software Applications",null,{"$f":"SUMIFS(Sheet1!S71_PPPYearAmount,Sheet1!S71_SA34eCode,$AC:$AC,Sheet1!S71_A5CapexCode,$AD:$AD)","v":0},{"$f":"SUMIFS(Sheet1!S71_PPYearAmount,Sheet1!S71_SA34eCode,$AC:$AC,Sheet1!S71_A5CapexCode,$AD:$AD)","v":0},{"$f":"SUMIFS(Sheet1!S71_PYearAmount,Sheet1!S71_SA34eCode,$AC:$AC,Sheet1!S71_A5CapexCode,$AD:$AD)","v":0},{"$f":"SUMIFS(Sheet1!S71_OriginalBudAmnt,Sheet1!S71_SA34eCode,$AC:$AC,Sheet1!S71_A5CapexCode,$AD:$AD)","v":0},{"$f":"SUMIFS(Sheet1!S71_AdjustmentBudAmnt,Sheet1!S71_SA34eCode,$AC:$AC,Sheet1!S71_A5CapexCode,$AD:$AD)","v":0},{"$f":"SUMIFS(Sheet1!S71_AdjustmentBudAmnt,Sheet1!S71_SA34eCode,$AC:$AC,Sheet1!S71_A5CapexCode,$AD:$AD)","v":0},{"$f":"SUMIFS(Sheet1!S71_ASBudgetAmount,Sheet1!S71_SA34eCode,$AC:$AC,Sheet1!S71_A5CapexCode,$AD:$AD)","v":0},{"$f":"SUMIFS(Sheet1!S71_OY1BudgetAmount,Sheet1!S71_SA34eCode,$AC:$AC,Sheet1!S71_A5CapexCode,$AD:$AD)","v":0},{"$f":"SUMIFS(Sheet1!S71_OY2BudgetAmount,Sheet1!S71_SA34eCode,$AC:$AC,Sheet1!S71_A5CapexCode,$AD:$AD)","v":0},null,null,null,null,null,null,null,null,null,null,null,null,null,null,null,null,null,"1440","CE"]
["Unspecified",null,{"$f":"SUMIFS(Sheet1!S71_PPPYearAmount,Sheet1!S71_SA34eCode,$AC:$AC,Sheet1!S71_A5CapexCode,$AD:$AD)","v":0},{"$f":"SUMIFS(Sheet1!S71_PPYearAmount,Sheet1!S71_SA34eCode,$AC:$AC,Sheet1!S71_A5CapexCode,$AD:$AD)","v":0},{"$f":"SUMIFS(Sheet1!S71_PYearAmount,Sheet1!S71_SA34eCode,$AC:$AC,Sheet1!S71_A5CapexCode,$AD:$AD)","v":0},{"$f":"SUMIFS(Sheet1!S71_OriginalBudAmnt,Sheet1!S71_SA34eCode,$AC:$AC,Sheet1!S71_A5CapexCode,$AD:$AD)","v":0},{"$f":"SUMIFS(Sheet1!S71_AdjustmentBudAmnt,Sheet1!S71_SA34eCode,$AC:$AC,Sheet1!S71_A5CapexCode,$AD:$AD)","v":0},{"$f":"SUMIFS(Sheet1!S71_AdjustmentBudAmnt,Sheet1!S71_SA34eCode,$AC:$AC,Sheet1!S71_A5CapexCode,$AD:$AD)","v":0},{"$f":"SUMIFS(Sheet1!S71_ASBudgetAmount,Sheet1!S71_SA34eCode,$AC:$AC,Sheet1!S71_A5CapexCode,$AD:$AD)","v":0},{"$f":"SUMIFS(Sheet1!S71_OY1BudgetAmount,Sheet1!S71_SA34eCode,$AC:$AC,Sheet1!S71_A5CapexCode,$AD:$AD)","v":0},{"$f":"SUMIFS(Sheet1!S71_OY2BudgetAmount,Sheet1!S71_SA34eCode,$AC:$AC,Sheet1!S71_A5CapexCode,$AD:$AD)","v":0},null,null,null,null,null,null,null,null,null,null,null,null,null,null,null,null,null,"1450","CE"]
[null,null,null,null,null,null,null,null,null,null,null,null,null,null,null,null,null,null,null,null,null,null,null,null,null,null,null,null,null,"CE"]
["Computer Equipment",null,{"$f":"SUM(C150:C150)","v":0},0,0,0,0,0,0,0,0,null,null,null,null,null,null,null,null,null,null,null,null,null,null,null,null,null,null,"CE"]
["Computer Equipment",null,{"$f":"SUMIFS(Sheet1!S71_PPPYearAmount,Sheet1!S71_SA34eCode,$AC:$AC,Sheet1!S71_A5CapexCode,$AD:$AD)","v":0},{"$f":"SUMIFS(Sheet1!S71_PPYearAmount,Sheet1!S71_SA34eCode,$AC:$AC,Sheet1!S71_A5CapexCode,$AD:$AD)","v":0},{"$f":"SUMIFS(Sheet1!S71_PYearAmount,Sheet1!S71_SA34eCode,$AC:$AC,Sheet1!S71_A5CapexCode,$AD:$AD)","v":0},{"$f":"SUMIFS(Sheet1!S71_OriginalBudAmnt,Sheet1!S71_SA34eCode,$AC:$AC,Sheet1!S71_A5CapexCode,$AD:$AD)","v":0},{"$f":"SUMIFS(Sheet1!S71_AdjustmentBudAmnt,Sheet1!S71_SA34eCode,$AC:$AC,Sheet1!S71_A5CapexCode,$AD:$AD)","v":0},{"$f":"SUMIFS(Sheet1!S71_AdjustmentBudAmnt,Sheet1!S71_SA34eCode,$AC:$AC,Sheet1!S71_A5CapexCode,$AD:$AD)","v":0},{"$f":"SUMIFS(Sheet1!S71_ASBudgetAmount,Sheet1!S71_SA34eCode,$AC:$AC,Sheet1!S71_A5CapexCode,$AD:$AD)","v":0},{"$f":"SUMIFS(Sheet1!S71_OY1BudgetAmount,Sheet1!S71_SA34eCode,$AC:$AC,Sheet1!S71_A5CapexCode,$AD:$AD)","v":0},{"$f":"SUMIFS(Sheet1!S71_OY2BudgetAmount,Sheet1!S71_SA34eCode,$AC:$AC,Sheet1!S71_A5CapexCode,$AD:$AD)","v":0},null,null,null,null,null,null,null,null,null,null,null,null,null,null,null,null,null,"1470","CE"]
[null,null,null,null,null,null,null,null,null,null,null,null,null,null,null,null,null,null,null,null,null,null,null,null,null,null,null,null,null,"CE"]
["Furniture and Office Equipment",null,{"$f":"SUM(C153:C153)","v":0},0,0,0,0,0,0,0,0,null,null,null,null,null,null,null,null,null,null,null,null,null,null,null,null,null,null,"CE"]
["Furniture and Office Equipment",null,{"$f":"SUMIFS(Sheet1!S71_PPPYearAmount,Sheet1!S71_SA34eCode,$AC:$AC,Sheet1!S71_A5CapexCode,$AD:$AD)","v":0},{"$f":"SUMIFS(Sheet1!S71_PPYearAmount,Sheet1!S71_SA34eCode,$AC:$AC,Sheet1!S71_A5CapexCode,$AD:$AD)","v":0},{"$f":"SUMIFS(Sheet1!S71_PYearAmount,Sheet1!S71_SA34eCode,$AC:$AC,Sheet1!S71_A5CapexCode,$AD:$AD)","v":0},{"$f":"SUMIFS(Sheet1!S71_OriginalBudAmnt,Sheet1!S71_SA34eCode,$AC:$AC,Sheet1!S71_A5CapexCode,$AD:$AD)","v":0},{"$f":"SUMIFS(Sheet1!S71_AdjustmentBudAmnt,Sheet1!S71_SA34eCode,$AC:$AC,Sheet1!S71_A5CapexCode,$AD:$AD)","v":0},{"$f":"SUMIFS(Sheet1!S71_AdjustmentBudAmnt,Sheet1!S71_SA34eCode,$AC:$AC,Sheet1!S71_A5CapexCode,$AD:$AD)","v":0},{"$f":"SUMIFS(Sheet1!S71_ASBudgetAmount,Sheet1!S71_SA34eCode,$AC:$AC,Sheet1!S71_A5CapexCode,$AD:$AD)","v":0},{"$f":"SUMIFS(Sheet1!S71_OY1BudgetAmount,Sheet1!S71_SA34eCode,$AC:$AC,Sheet1!S71_A5CapexCode,$AD:$AD)","v":0},{"$f":"SUMIFS(Sheet1!S71_OY2BudgetAmount,Sheet1!S71_SA34eCode,$AC:$AC,Sheet1!S71_A5CapexCode,$AD:$AD)","v":0},null,null,null,null,null,null,null,null,null,null,null,null,null,null,null,null,null,"1490","CE"]
[null,null,null,null,null,null,null,null,null,null,null,null,null,null,null,null,null,null,null,null,null,null,null,null,null,null,null,null,null,"CE"]
["Machinery and Equipment",null,{"$f":"SUM(C156:C156)","v":0},0,0,0,0,0,0,0,0,null,null,null,null,null,null,null,null,null,null,null,null,null,null,null,null,null,null,"CE"]
["Machinery and Equipment",null,{"$f":"SUMIFS(Sheet1!S71_PPPYearAmount,Sheet1!S71_SA34eCode,$AC:$AC,Sheet1!S71_A5CapexCode,$AD:$AD)","v":0},{"$f":"SUMIFS(Sheet1!S71_PPYearAmount,Sheet1!S71_SA34eCode,$AC:$AC,Sheet1!S71_A5CapexCode,$AD:$AD)","v":0},{"$f":"SUMIFS(Sheet1!S71_PYearAmount,Sheet1!S71_SA34eCode,$AC:$AC,Sheet1!S71_A5CapexCode,$AD:$AD)","v":0},{"$f":"SUMIFS(Sheet1!S71_OriginalBudAmnt,Sheet1!S71_SA34eCode,$AC:$AC,Sheet1!S71_A5CapexCode,$AD:$AD)","v":0},{"$f":"SUMIFS(Sheet1!S71_AdjustmentBudAmnt,Sheet1!S71_SA34eCode,$AC:$AC,Sheet1!S71_A5CapexCode,$AD:$AD)","v":0},{"$f":"SUMIFS(Sheet1!S71_AdjustmentBudAmnt,Sheet1!S71_SA34eCode,$AC:$AC,Sheet1!S71_A5CapexCode,$AD:$AD)","v":0},{"$f":"SUMIFS(Sheet1!S71_ASBudgetAmount,Sheet1!S71_SA34eCode,$AC:$AC,Sheet1!S71_A5CapexCode,$AD:$AD)","v":0},{"$f":"SUMIFS(Sheet1!S71_OY1BudgetAmount,Sheet1!S71_SA34eCode,$AC:$AC,Sheet1!S71_A5CapexCode,$AD:$AD)","v":0},{"$f":"SUMIFS(Sheet1!S71_OY2BudgetAmount,Sheet1!S71_SA34eCode,$AC:$AC,Sheet1!S71_A5CapexCode,$AD:$AD)","v":0},null,null,null,null,null,null,null,null,null,null,null,null,null,null,null,null,null,"1510","CE"]
[null,null,null,null,null,null,null,null,null,null,null,null,null,null,null,null,null,null,null,null,null,null,null,null,null,null,null,null,null,"CE"]
["Transport Assets",null,{"$f":"SUM(C159:C159)","v":0},0,0,0,0,0,0,0,0,null,null,null,null,null,null,null,null,null,null,null,null,null,null,null,null,null,null,"CE"]
["Transport Assets",null,{"$f":"SUMIFS(Sheet1!S71_PPPYearAmount,Sheet1!S71_SA34eCode,$AC:$AC,Sheet1!S71_A5CapexCode,$AD:$AD)","v":0},{"$f":"SUMIFS(Sheet1!S71_PPYearAmount,Sheet1!S71_SA34eCode,$AC:$AC,Sheet1!S71_A5CapexCode,$AD:$AD)","v":0},{"$f":"SUMIFS(Sheet1!S71_PYearAmount,Sheet1!S71_SA34eCode,$AC:$AC,Sheet1!S71_A5CapexCode,$AD:$AD)","v":0},{"$f":"SUMIFS(Sheet1!S71_OriginalBudAmnt,Sheet1!S71_SA34eCode,$AC:$AC,Sheet1!S71_A5CapexCode,$AD:$AD)","v":0},{"$f":"SUMIFS(Sheet1!S71_AdjustmentBudAmnt,Sheet1!S71_SA34eCode,$AC:$AC,Sheet1!S71_A5CapexCode,$AD:$AD)","v":0},{"$f":"SUMIFS(Sheet1!S71_AdjustmentBudAmnt,Sheet1!S71_SA34eCode,$AC:$AC,Sheet1!S71_A5CapexCode,$AD:$AD)","v":0},{"$f":"SUMIFS(Sheet1!S71_ASBudgetAmount,Sheet1!S71_SA34eCode,$AC:$AC,Sheet1!S71_A5CapexCode,$AD:$AD)","v":0},{"$f":"SUMIFS(Sheet1!S71_OY1BudgetAmount,Sheet1!S71_SA34eCode,$AC:$AC,Sheet1!S71_A5CapexCode,$AD:$AD)","v":0},{"$f":"SUMIFS(Sheet1!S71_OY2BudgetAmount,Sheet1!S71_SA34eCode,$AC:$AC,Sheet1!S71_A5CapexCode,$AD:$AD)","v":0},null,null,null,null,null,null,null,null,null,null,null,null,null,null,null,null,null,"1530","CE"]
[null,null,null,null,null,null,null,null,null,null,null,null,null,null,null,null,null,null,null,null,null,null,null,null,null,null,null,null,null,"CE"]
["Land",null,{"$f":"SUM(C162:C162)","v":0},0,0,0,0,0,0,0,0,null,null,null,null,null,null,null,null,null,null,null,null,null,null,null,null,null,null,"CE"]
["Land",null,{"$f":"SUMIFS(Sheet1!S71_PPPYearAmount,Sheet1!S71_SA34eCode,$AC:$AC,Sheet1!S71_A5CapexCode,$AD:$AD)","v":0},{"$f":"SUMIFS(Sheet1!S71_PPYearAmount,Sheet1!S71_SA34eCode,$AC:$AC,Sheet1!S71_A5CapexCode,$AD:$AD)","v":0},{"$f":"SUMIFS(Sheet1!S71_PYearAmount,Sheet1!S71_SA34eCode,$AC:$AC,Sheet1!S71_A5CapexCode,$AD:$AD)","v":0},{"$f":"SUMIFS(Sheet1!S71_OriginalBudAmnt,Sheet1!S71_SA34eCode,$AC:$AC,Sheet1!S71_A5CapexCode,$AD:$AD)","v":0},{"$f":"SUMIFS(Sheet1!S71_AdjustmentBudAmnt,Sheet1!S71_SA34eCode,$AC:$AC,Sheet1!S71_A5CapexCode,$AD:$AD)","v":0},{"$f":"SUMIFS(Sheet1!S71_AdjustmentBudAmnt,Sheet1!S71_SA34eCode,$AC:$AC,Sheet1!S71_A5CapexCode,$AD:$AD)","v":0},{"$f":"SUMIFS(Sheet1!S71_ASBudgetAmount,Sheet1!S71_SA34eCode,$AC:$AC,Sheet1!S71_A5CapexCode,$AD:$AD)","v":0},{"$f":"SUMIFS(Sheet1!S71_OY1BudgetAmount,Sheet1!S71_SA34eCode,$AC:$AC,Sheet1!S71_A5CapexCode,$AD:$AD)","v":0},{"$f":"SUMIFS(Sheet1!S71_OY2BudgetAmount,Sheet1!S71_SA34eCode,$AC:$AC,Sheet1!S71_A5CapexCode,$AD:$AD)","v":0},null,null,null,null,null,null,null,null,null,null,null,null,null,null,null,null,null,"1550","CE"]
[null,null,null,null,null,null,null,null,null,null,null,null,null,null,null,null,null,null,null,null,null,null,null,null,null,null,null,null,null,"CE"]
["Zoo's, Marine and Non-biological Animals",null,{"$f":"SUM(C165:C165)","v":0},0,0,0,0,0,0,0,0,null,null,null,null,null,null,null,null,null,null,null,null,null,null,null,null,null,null,"CE"]
["Zoo's, Marine and Non-biological Animals",null,{"$f":"SUMIFS(Sheet1!S71_PPPYearAmount,Sheet1!S71_SA34eCode,$AC:$AC,Sheet1!S71_A5CapexCode,$AD:$AD)","v":0},{"$f":"SUMIFS(Sheet1!S71_PPYearAmount,Sheet1!S71_SA34eCode,$AC:$AC,Sheet1!S71_A5CapexCode,$AD:$AD)","v":0},{"$f":"SUMIFS(Sheet1!S71_PYearAmount,Sheet1!S71_SA34eCode,$AC:$AC,Sheet1!S71_A5CapexCode,$AD:$AD)","v":0},{"$f":"SUMIFS(Sheet1!S71_OriginalBudAmnt,Sheet1!S71_SA34eCode,$AC:$AC,Sheet1!S71_A5CapexCode,$AD:$AD)","v":0},{"$f":"SUMIFS(Sheet1!S71_AdjustmentBudAmnt,Sheet1!S71_SA34eCode,$AC:$AC,Sheet1!S71_A5CapexCode,$AD:$AD)","v":0},{"$f":"SUMIFS(Sheet1!S71_AdjustmentBudAmnt,Sheet1!S71_SA34eCode,$AC:$AC,Sheet1!S71_A5CapexCode,$AD:$AD)","v":0},{"$f":"SUMIFS(Sheet1!S71_ASBudgetAmount,Sheet1!S71_SA34eCode,$AC:$AC,Sheet1!S71_A5CapexCode,$AD:$AD)","v":0},{"$f":"SUMIFS(Sheet1!S71_OY1BudgetAmount,Sheet1!S71_SA34eCode,$AC:$AC,Sheet1!S71_A5CapexCode,$AD:$AD)","v":0},{"$f":"SUMIFS(Sheet1!S71_OY2BudgetAmount,Sheet1!S71_SA34eCode,$AC:$AC,Sheet1!S71_A5CapexCode,$AD:$AD)","v":0},null,null,null,null,null,null,null,null,null,null,null,null,null,null,null,null,null,"1570","CE"]
[]
["Living resources"," ",{"$f":"+C168+C171","v":0},{"$f":"+D168+D171","v":0},0,0,0,0,0,0,0]
["Mature"," ",{"$f":"SUM(C169:C170)","v":0},0,0,0,0,0,0,0,0]
["Policing and Protection"," ",{"$f":"SUMIFS(Sheet1!S71_PPPYearAmount,Sheet1!S71_SA34eCode,$AC:$AC,Sheet1!S71_A5CapexCode,$AD:$AD)","v":0},{"$f":"SUMIFS(Sheet1!S71_PPYearAmount,Sheet1!S71_SA34eCode,$AC:$AC,Sheet1!S71_A5CapexCode,$AD:$AD)","v":0},{"$f":"SUMIFS(Sheet1!S71_PYearAmount,Sheet1!S71_SA34eCode,$AC:$AC,Sheet1!S71_A5CapexCode,$AD:$AD)","v":0},{"$f":"SUMIFS(Sheet1!S71_OriginalBudAmnt,Sheet1!S71_SA34eCode,$AC:$AC,Sheet1!S71_A5CapexCode,$AD:$AD)","v":0},{"$f":"SUMIFS(Sheet1!S71_AdjustmentBudAmnt,Sheet1!S71_SA34eCode,$AC:$AC,Sheet1!S71_A5CapexCode,$AD:$AD)","v":0},{"$f":"SUMIFS(Sheet1!S71_AdjustmentBudAmnt,Sheet1!S71_SA34eCode,$AC:$AC,Sheet1!S71_A5CapexCode,$AD:$AD)","v":0},{"$f":"SUMIFS(Sheet1!S71_ASBudgetAmount,Sheet1!S71_SA34eCode,$AC:$AC,Sheet1!S71_A5CapexCode,$AD:$AD)","v":0},{"$f":"SUMIFS(Sheet1!S71_OY1BudgetAmount,Sheet1!S71_SA34eCode,$AC:$AC,Sheet1!S71_A5CapexCode,$AD:$AD)","v":0},{"$f":"SUMIFS(Sheet1!S71_OY2BudgetAmount,Sheet1!S71_SA34eCode,$AC:$AC,Sheet1!S71_A5CapexCode,$AD:$AD)","v":0}]
["Zoological plants and animals"," ",{"$f":"SUMIFS(Sheet1!S71_PPPYearAmount,Sheet1!S71_SA34eCode,$AC:$AC,Sheet1!S71_A5CapexCode,$AD:$AD)","v":0},{"$f":"SUMIFS(Sheet1!S71_PPYearAmount,Sheet1!S71_SA34eCode,$AC:$AC,Sheet1!S71_A5CapexCode,$AD:$AD)","v":0},{"$f":"SUMIFS(Sheet1!S71_PYearAmount,Sheet1!S71_SA34eCode,$AC:$AC,Sheet1!S71_A5CapexCode,$AD:$AD)","v":0},{"$f":"SUMIFS(Sheet1!S71_OriginalBudAmnt,Sheet1!S71_SA34eCode,$AC:$AC,Sheet1!S71_A5CapexCode,$AD:$AD)","v":0},{"$f":"SUMIFS(Sheet1!S71_AdjustmentBudAmnt,Sheet1!S71_SA34eCode,$AC:$AC,Sheet1!S71_A5CapexCode,$AD:$AD)","v":0},{"$f":"SUMIFS(Sheet1!S71_AdjustmentBudAmnt,Sheet1!S71_SA34eCode,$AC:$AC,Sheet1!S71_A5CapexCode,$AD:$AD)","v":0},{"$f":"SUMIFS(Sheet1!S71_ASBudgetAmount,Sheet1!S71_SA34eCode,$AC:$AC,Sheet1!S71_A5CapexCode,$AD:$AD)","v":0},{"$f":"SUMIFS(Sheet1!S71_OY1BudgetAmount,Sheet1!S71_SA34eCode,$AC:$AC,Sheet1!S71_A5CapexCode,$AD:$AD)","v":0},{"$f":"SUMIFS(Sheet1!S71_OY2BudgetAmount,Sheet1!S71_SA34eCode,$AC:$AC,Sheet1!S71_A5CapexCode,$AD:$AD)","v":0}]
["Immature"," ",{"$f":"SUM(C172:C173)","v":0},{"$f":"SUM(D172:D173)","v":0},0,0,0,0,0,0,0]
["Policing and Protection"," ",{"$f":"SUMIFS(Sheet1!S71_PPPYearAmount,Sheet1!S71_SA34eCode,$AC:$AC,Sheet1!S71_A5CapexCode,$AD:$AD)","v":0},{"$f":"SUMIFS(Sheet1!S71_PPYearAmount,Sheet1!S71_SA34eCode,$AC:$AC,Sheet1!S71_A5CapexCode,$AD:$AD)","v":0},{"$f":"SUMIFS(Sheet1!S71_PYearAmount,Sheet1!S71_SA34eCode,$AC:$AC,Sheet1!S71_A5CapexCode,$AD:$AD)","v":0},{"$f":"SUMIFS(Sheet1!S71_OriginalBudAmnt,Sheet1!S71_SA34eCode,$AC:$AC,Sheet1!S71_A5CapexCode,$AD:$AD)","v":0},{"$f":"SUMIFS(Sheet1!S71_AdjustmentBudAmnt,Sheet1!S71_SA34eCode,$AC:$AC,Sheet1!S71_A5CapexCode,$AD:$AD)","v":0},{"$f":"SUMIFS(Sheet1!S71_AdjustmentBudAmnt,Sheet1!S71_SA34eCode,$AC:$AC,Sheet1!S71_A5CapexCode,$AD:$AD)","v":0},{"$f":"SUMIFS(Sheet1!S71_ASBudgetAmount,Sheet1!S71_SA34eCode,$AC:$AC,Sheet1!S71_A5CapexCode,$AD:$AD)","v":0},{"$f":"SUMIFS(Sheet1!S71_OY1BudgetAmount,Sheet1!S71_SA34eCode,$AC:$AC,Sheet1!S71_A5CapexCode,$AD:$AD)","v":0},{"$f":"SUMIFS(Sheet1!S71_OY2BudgetAmount,Sheet1!S71_SA34eCode,$AC:$AC,Sheet1!S71_A5CapexCode,$AD:$AD)","v":0}]
["Zoological plants and animals"," ",{"$f":"SUMIFS(Sheet1!S71_PPPYearAmount,Sheet1!S71_SA34eCode,$AC:$AC,Sheet1!S71_A5CapexCode,$AD:$AD)","v":0},{"$f":"SUMIFS(Sheet1!S71_PPYearAmount,Sheet1!S71_SA34eCode,$AC:$AC,Sheet1!S71_A5CapexCode,$AD:$AD)","v":0},{"$f":"SUMIFS(Sheet1!S71_PYearAmount,Sheet1!S71_SA34eCode,$AC:$AC,Sheet1!S71_A5CapexCode,$AD:$AD)","v":0},{"$f":"SUMIFS(Sheet1!S71_OriginalBudAmnt,Sheet1!S71_SA34eCode,$AC:$AC,Sheet1!S71_A5CapexCode,$AD:$AD)","v":0},{"$f":"SUMIFS(Sheet1!S71_AdjustmentBudAmnt,Sheet1!S71_SA34eCode,$AC:$AC,Sheet1!S71_A5CapexCode,$AD:$AD)","v":0},{"$f":"SUMIFS(Sheet1!S71_AdjustmentBudAmnt,Sheet1!S71_SA34eCode,$AC:$AC,Sheet1!S71_A5CapexCode,$AD:$AD)","v":0},{"$f":"SUMIFS(Sheet1!S71_ASBudgetAmount,Sheet1!S71_SA34eCode,$AC:$AC,Sheet1!S71_A5CapexCode,$AD:$AD)","v":0},{"$f":"SUMIFS(Sheet1!S71_OY1BudgetAmount,Sheet1!S71_SA34eCode,$AC:$AC,Sheet1!S71_A5CapexCode,$AD:$AD)","v":0},{"$f":"SUMIFS(Sheet1!S71_OY2BudgetAmount,Sheet1!S71_SA34eCode,$AC:$AC,Sheet1!S71_A5CapexCode,$AD:$AD)","v":0}]
[""]
["Total Capital Expenditure on upgrading of existing assets ",1,{"$f":"C6+C74+C103+C110+C118+C136+C139+C149+C152+C155+C158+C161+C164+C167","v":17073028},{"$f":"D6+D74+D103+D110+D118+D136+D139+D149+D152+D155+D158+D161+D164+D167","v":19154442},28828088,23143541,18193530,18193530,23069189,14600000,1200000]
[]
["Upgrading of Existing Assets as % of total capex",null,{"$f":"IF(ISERROR(C175/'A9-Asset'!C110),0,(C175/'A9-Asset'!C110))","v":0.11779506572023148},{"$f":"IF(ISERROR(D175/'A9-Asset'!D110),0,(D175/'A9-Asset'!D110))","v":0.17132284840944975},{"$f":"IF(ISERROR(E175/'A9-Asset'!E110),0,(E175/'A9-Asset'!E110))","v":0.25080213285909242},{"$f":"IF(ISERROR(F175/'A9-Asset'!F110),0,(F175/'A9-Asset'!F110))","v":0.15619351315825855},{"$f":"IF(ISERROR(G175/'A9-Asset'!G110),0,(G175/'A9-Asset'!G110))","v":0.13163888854460071},{"$f":"IF(ISERROR(H175/'A9-Asset'!H110),0,(H175/'A9-Asset'!H110))","v":0.13163888854460071},{"$f":"IF(ISERROR(I175/'A9-Asset'!I110),0,(I175/'A9-Asset'!I110))","v":0.14528003279375931},{"$f":"IF(ISERROR(J175/'A9-Asset'!J110),0,(J175/'A9-Asset'!J110))","v":8.4233862557383452E-2},{"$f":"IF(ISERROR(K175/'A9-Asset'!K110),0,(K175/'A9-Asset'!K110))","v":7.517108186521705E-3}]
["Upgrading of Existing Assets as % of deprecn\"",null,{"$f":"IF(ISERROR(C175/'A9-Asset'!C183),0,(C175/'A9-Asset'!C183))","v":0.2003535101805832},{"$f":"IF(ISERROR(D175/'A9-Asset'!D183),0,(D175/'A9-Asset'!D183))","v":0.21102255984465115},{"$f":"IF(ISERROR(E175/'A9-Asset'!E183),0,(E175/'A9-Asset'!E183))","v":0.29942935967993439},{"$f":"IF(ISERROR(F175/'A9-Asset'!F183),0,(F175/'A9-Asset'!F183))","v":0.25432462637362635},{"$f":"IF(ISERROR(G175/'A9-Asset'!G183),0,(G175/'A9-Asset'!G183))","v":0.1999289010989011},{"$f":"IF(ISERROR(H175/'A9-Asset'!H183),0,(H175/'A9-Asset'!H183))","v":0.1999289010989011},{"$f":"IF(ISERROR(I175/'A9-Asset'!I183),0,(I175/'A9-Asset'!I183))","v":0.24283356842105264},{"$f":"IF(ISERROR(J175/'A9-Asset'!J183),0,(J175/'A9-Asset'!J183))","v":0.15208333333333332},{"$f":"IF(ISERROR(K175/'A9-Asset'!K183),0,(K175/'A9-Asset'!K183))","v":1.2371134020618556E-2}]
[{"$f":"head27a","v":"References"}]
["1.  Total Capital Expenditure  on upgrading of existing assets (SA34e) plus Total Capital Expenditure on new assets (SA34a)  plus Total Capital Expenditure  on renewal of existing assets (SA34b) must reconcile to total capital expenditure in Budgeted Capital Expenditure"]

{"sheet":"SA35","index":84,"n_rows":59,"n_cols":9,"rows_kept":59,"cut":false,"hidden":false,"merged":[[1,5,1,8],[1,2,1,4]]}
[{"$f":"muni&\" - \"&TableA35","v":"LIM331 Greater Giyani - Supporting Table SA35 Future financial implications of the capital budget"}]
[{"$f":"Vdesc","v":"Vote Description"},{"$f":"head27","v":"Ref"},{"$f":"Head3","v":"2023/24 Medium Term Revenue & Expenditure Framework"},null,null,"Forecasts"]
["R thousand",null,{"$f":"Head9","v":"Budget Year 2023/24"},{"$f":"Head10","v":"Budget Year +1 2024/25"},{"$f":"Head11","v":"Budget Year +2 2025/26"},{"$f":"Head12","v":"Forecast 2026/27"},{"$f":"Head13","v":"Forecast 2027/28"},{"$f":"Head14","v":"Forecast 2028/29"},{"$f":"Head48","v":"Present value"}]
["Capital expenditure",1]
[{"$f":"'A5-Capex'!A6","v":"Vote 1 -  Energy Sources"},null,{"$f":"'A5-Capex'!J6+'A5-Capex'!J24","v":6000000},{"$f":"'A5-Capex'!K6+'A5-Capex'!K24","v":5000000},{"$f":"'A5-Capex'!L6+'A5-Capex'!L24","v":5000000}]
[{"$f":"'A5-Capex'!A7","v":"Vote 2 - Community and Social Services"},null,{"$f":"'A5-Capex'!J7+'A5-Capex'!J25","v":8009410},{"$f":"'A5-Capex'!K7+'A5-Capex'!K25","v":1100000},{"$f":"'A5-Capex'!L7+'A5-Capex'!L25","v":1200000}]
[{"$f":"'A5-Capex'!A8","v":"Vote 3 - Finance & Administration"},null,{"$f":"'A5-Capex'!J8+'A5-Capex'!J26","v":15275000},{"$f":"'A5-Capex'!K8+'A5-Capex'!K26","v":14820000},{"$f":"'A5-Capex'!L8+'A5-Capex'!L26","v":15030000}]
[{"$f":"'A5-Capex'!A9","v":"Vote 4 - Planning and Development"},null,{"$f":"'A5-Capex'!J9+'A5-Capex'!J27","v":1000000},{"$f":"'A5-Capex'!K9+'A5-Capex'!K27","v":0},{"$f":"'A5-Capex'!L9+'A5-Capex'!L27","v":0}]
[{"$f":"'A5-Capex'!A10","v":"Vote 5 - Executive & Council"},null,{"$f":"'A5-Capex'!J10+'A5-Capex'!J28","v":0},{"$f":"'A5-Capex'!K10+'A5-Capex'!K28","v":0},{"$f":"'A5-Capex'!L10+'A5-Capex'!L28","v":0}]
[{"$f":"'A5-Capex'!A11","v":"Vote 6 - Internal Audit"},null,{"$f":"'A5-Capex'!J11+'A5-Capex'!J29","v":550000},{"$f":"'A5-Capex'!K11+'A5-Capex'!K29","v":0},{"$f":"'A5-Capex'!L11+'A5-Capex'!L29","v":0}]
[{"$f":"'A5-Capex'!A12","v":"Vote 7 - Road Transport"},null,{"$f":"'A5-Capex'!J12+'A5-Capex'!J30","v":85873910},{"$f":"'A5-Capex'!K12+'A5-Capex'!K30","v":130686968},{"$f":"'A5-Capex'!L12+'A5-Capex'!L30","v":129815856}]
[{"$f":"'A5-Capex'!A13","v":"Vote 8 - Public Safety"},null,{"$f":"'A5-Capex'!J13+'A5-Capex'!J31","v":1300000},{"$f":"'A5-Capex'!K13+'A5-Capex'!K31","v":0},{"$f":"'A5-Capex'!L13+'A5-Capex'!L31","v":0}]
[{"$f":"'A5-Capex'!A14","v":"Vote 9 - Waste Management"},null,{"$f":"'A5-Capex'!J14+'A5-Capex'!J32","v":2000000},{"$f":"'A5-Capex'!K14+'A5-Capex'!K32","v":2100000},{"$f":"'A5-Capex'!L14+'A5-Capex'!L32","v":2200000}]
[{"$f":"'A5-Capex'!A15","v":"Vote 10 - Sports & Recreation"},null,{"$f":"'A5-Capex'!J15+'A5-Capex'!J33","v":19113679},{"$f":"'A5-Capex'!K15+'A5-Capex'!K33","v":13500000},{"$f":"'A5-Capex'!L15+'A5-Capex'!L33","v":0}]
[{"$f":"'A5-Capex'!A16","v":"Vote 11 - Water Management"},null,{"$f":"'A5-Capex'!J16+'A5-Capex'!J34","v":0},{"$f":"'A5-Capex'!K16+'A5-Capex'!K34","v":0},{"$f":"'A5-Capex'!L16+'A5-Capex'!L34","v":0}]
[{"$f":"'A5-Capex'!A17","v":"Vote 12 - Waste Water Management"},null,{"$f":"'A5-Capex'!J17+'A5-Capex'!J35","v":0},{"$f":"'A5-Capex'!K17+'A5-Capex'!K35","v":0},{"$f":"'A5-Capex'!L17+'A5-Capex'!L35","v":0}]
[{"$f":"'A5-Capex'!A18","v":"Vote 13 - Housing"},null,{"$f":"'A5-Capex'!J18+'A5-Capex'!J36","v":13269189},{"$f":"'A5-Capex'!K18+'A5-Capex'!K36","v":0},{"$f":"'A5-Capex'!L18+'A5-Capex'!L36","v":0}]
[{"$f":"'A5-Capex'!A19","v":"Vote 14 - Finance & Administration 2"},null,{"$f":"'A5-Capex'!J19+'A5-Capex'!J37","v":6400000},{"$f":"'A5-Capex'!K19+'A5-Capex'!K37","v":6120000},{"$f":"'A5-Capex'!L19+'A5-Capex'!L37","v":6390000}]
[{"$f":"'A5-Capex'!A20","v":"Vote 15 - [NAME OF VOTE 15]"},null,{"$f":"'A5-Capex'!J20+'A5-Capex'!J38","v":0},{"$f":"'A5-Capex'!K20+'A5-Capex'!K38","v":0},{"$f":"'A5-Capex'!L20+'A5-Capex'!L38","v":0}]
["List entity summary if applicable"]
["Total Capital Expenditure ",null,{"$f":"SUM(C5:C20)","v":158791188},{"$f":"SUM(D5:D20)","v":173326968},159635856,0,0,0,0]
[]
["Future operational costs by vote",2]
[{"$f":"A5","v":"Vote 1 -  Energy Sources"}]
[{"$f":"A6","v":"Vote 2 - Community and Social Services"}]
["Vote 3 - Finance & Administration"]
["Vote 4 - Planning and Development"]
["Vote 5 - Executive & Council"]
["Vote 6 - Internal Audit"]
["Vote 7 - Road Transport"]
["Vote 8 - Public Safety"]
["Vote 9 - Waste Management"]
["Vote 10 - Sports & Recreation"]
["Vote 11 - Water Management"]
["Vote 12 - Waste Water Management"]
["Vote 13 - Housing"]
["Vote 14 - Finance & Administration 2"]
["Vote 15 - [NAME OF VOTE 15]"]
["List entity summary if applicable"]
["Total future operational costs",null,{"$f":"SUM(C24:C39)","v":0},{"$f":"SUM(D24:D39)","v":0},0,0,0,0,0]
[]
["Future revenue by source",3]
[{"$f":"'A4-FinPerf RE'!A5","v":"Exchange Revenue"}]
[{"$f":"'A4-FinPerf RE'!A6","v":"Service charges - Electricity"}]
[{"$f":"'A4-FinPerf RE'!A7","v":"Service charges - Water"}]
[{"$f":"'A4-FinPerf RE'!A8","v":"Service charges - Waste Water Management"}]
[{"$f":"'A4-FinPerf RE'!A9","v":"Service charges - Waste Management"}]
[]
[{"$f":"'A4-FinPerf RE'!A11","v":"Agency services"}]
["List other revenues sources if applicable"]
["List entity summary if applicable"]
["Total future revenue",null,{"$f":"SUM(C43:C47)+SUM(C49:C51)","v":0},{"$f":"SUM(D43:D47)+SUM(D49:D51)","v":0},0,0,0,0,0]
["Net Financial Implications",null,{"$f":"C21+C40-C52","v":158791188},173326968,159635856,0,0,0,0]
[{"$f":"head27a","v":"References"}]
["1. Summarise the total capital cost until capital project is operational (MFMA s19(2)(a))"]
["2. Summary of future operational costs from when projects operational (present value until the end of each asset's useful life) (MFMA s19(2)(b))"]
["3. Summarise the future revenue from when projects are operational, including municipal tax and tariff implications, (present value until the end of asset's useful life)"]
[]
["check",null,{"$f":"C21-('A5-Capex'!J21+'A5-Capex'!J39)","v":0},{"$f":"D21-('A5-Capex'!K21+'A5-Capex'!K39)","v":0},{"$f":"E21-('A5-Capex'!L21+'A5-Capex'!L39)","v":0}]

{"sheet":"SA36","index":85,"n_rows":101,"n_cols":17,"rows_kept":101,"cut":false,"hidden":false,"merged":[[1,12,1,13],[1,14,1,16]]}
[{"$f":"muni&\" - \"&TableA36","v":"LIM331 Greater Giyani - Supporting Table SA36 Detailed capital budget"}]
["R thousand",null,null,null,null,null,null,null,null,null,null,null,null,null,{"$f":"Head3","v":"2023/24 Medium Term Revenue & Expenditure Framework"}]
["Function","Project Description","Project Number","Type","MTSF Service Outcome","IUDF","Own Strategic Objectives","Asset Class","Asset Sub-Class","Ward Location","GPS Longitude","GPS Lattitude",{"$f":"Head5&\"    \"&Head1","v":"Audited Outcome    2021/22"},{"$f":"Head2 & \"        \"&Head8","v":"Current Year 2022/23        Full Year Forecast"},{"$f":"Head9","v":"Budget Year 2023/24"},{"$f":"Head10","v":"Budget Year +1 2024/25"},{"$f":"Head11","v":"Budget Year +2 2025/26"}]
["Parent municipality:"]
["List all capital projects grouped by Function"]
[]
["Core Function:Solid Waste Disposal (Landfill Sites)","Waste Disposal Site Development","LIM331_0006",null,null,null,null,"Solid Waste Infrastructure","Landfill Sites","Whole of Municipality",-23.211053,30.392440000000001]
["Core Function:Roads","Homu 14B to 14A Upgrading from Gravel to Tar","LIM331_0008",null,null,null,null,"Roads Infrastructure","Roads","Ward 9",-23.245989999999999,30.445989999999998]
["Core Function:Roads","Makosha Upgrading from Gravel to Paving","LIM331_0009",null,null,null,null,"Roads Infrastructure","Roads","Ward 14",-23.245989999999999,30.445989999999998]
["Core Function:Roads","Giyani Section F Streets Phase 3","LIM331_0010",null,null,null,null,"Roads Infrastructure","Roads","Ward 13",-23.172902000000001,30.422449]
["Core Function:Property Services","Civic Centre Building Phase 3","LIM331_0013",null,null,null,null,"Operational Buildings","Municipal Offices","Head Office",-23.245989999999999,30.445989999999998]
["Core Function:Property Services","Civic Centre Building Phase 3 and 4","LIM331_0013",null,null,null,null,"Operational Buildings","Municipal Offices","Head Office",-23.245989999999999,30.445989999999998,18543540.59,14339275.23,13269189]
["Core Function:Community Halls and Facilities","Refurbishment of Giyani Arts & Culture Centre","LIM331_0015",null,null,null,null,"Community Facilities","Halls","Whole of Municipality",23.183700000000002,30.405940000000001]
["Core Function:Community Halls and Facilities","Ndhambi Taxi Rank","LIM331_0016",null,null,null,null,"Community Facilities","Taxi Ranks/Bus Terminals","Ward 25",-23.344000000000001,30.4236,null,6194766]
["Core Function:Roads","Upgrading of Nkhensani Access","LIM331_0017",null,null,null,null,"Roads Infrastructure","Roads","Ward 12",-23.190594999999998,30.423929999999999,4000000,50000]
["Core Function:Roads","Vehicle Lisencing & Reg_Law Enforcement Eqipment","LIM331_0018",null,null,null,null,"Roads Infrastructure","Roads","Ward 11",-23.245989999999999,30.445989999999998,null,null,900000,20000000,0]
["Core Function:Sports Grounds and Stadiums","Mavalani Indoor Sports Centre","LIM331_0020",null,null,null,null,"Sport and Recreation Facilities","Outdoor Facilities","Ward 20",23.123525000000001,30.422606999999999,21457650,11726503.619999999,9613679,0,0]
["Core Function:Community Halls and Facilities","Jim-Nghalalume Community Hall","LIM331_0021",null,null,null,null,"Community Facilities","Halls","Ward 5",23.14106,30.363880000000002,28243481.809999999,13715573.279999999,7009410,0,0]
["Core Function:Community Halls and Facilities","N'wadzekudzeku Community Hall","LIM331_0022",null,null,null,null,"Community Facilities","Halls","Ward 15",23.065429999999999,30.433935000000002,11897934,11897934]
["Core Function:Community Halls and Facilities","Extension of Palisade Fence at Pound Station","LIM331_0024",null,null,null,null,"Community Facilities","Public Open Space","Whole of Municipality",-23.245989999999999,30.445989999999998]
["Core Function:Roads","Giyani Section E Upgrading from Gravel to Tar Phase 2","LIM331_0032",null,null,null,null,"Roads Infrastructure","Roads","Ward 11",-23.245989999999999,30.445989999999998]
["Core Function:Sports Grounds and Stadiums","Mageva Sports Centre","LIM331_0033",null,null,null,null,"Sport and Recreation Facilities","Outdoor Facilities","Ward 24",-23.245989999999999,30.445989999999998,1000000,0,2000000,0,0]
["Core Function:Sports Grounds and Stadiums","Refurbishment of Sporting Facilities (Gawula)","LIM331_0035",null,null,null,null,"Sport and Recreation Facilities","Outdoor Facilities","Ward 18",-23.245989999999999,30.445989999999998,2500000,0,4000000,0,0]
["Core Function:Sports Grounds and Stadiums","Refurbishment of Shivulani Sports Centre","LIM331_0036",null,null,null,null,"Sport and Recreation Facilities","Outdoor Facilities","Ward 15",-23.245989999999999,30.445989999999998,500000,3454255]
["Core Function:Property Services","Upgrading of Parking Lot","LIM331_0037",null,null,null,null,"Operational Buildings","Public Open Space","Head Office",-23.245989999999999,30.445989999999998,null,null,1300000,0,0]
["Function:Energy Sources:Core Function:Street Lighting and Signal Systems","Upgrading of Traffic Lights & R81 Lighting","LIM331_0040",null,null,null,null,"Roads Infrastructure","Road Furniture","Whole of Municipality",-23.245989999999999,30.445989999999998]
["Core Function:Sports Grounds and Stadiums","Section E Sports Centre","LIM331_0041",null,null,null,null,"Sport and Recreation Facilities","Outdoor Facilities","Ward 11",23.181238,30.414650000000002,1000000,50000,3500000,13500000,0]
["Core Function:Sports Grounds and Stadiums","Homu14B Sports centre","LIM331_0110",null,null,null,null,"Sport and Recreation Facilities","Outdoor Facilities","Ward 11",23.181238,30.414650000000002,4500000,7000000]
["Core Function:Roads","Xikukwane Gravel To TARR(RAL)(D3804 & D3805)","LIM331_0055",null,null,null,null,"Roads Infrastructure","Roads","Ward 14",-23.135786,30.42304]
["     Golf Course Development","Golf Course Development","LIM331_0056",null,null,null,null,"Community Facilities","Unspecified","Whole of Municipality",-23.245989999999999,30.445989999999998,600000,300000,1000000,1100000,1200000]
["Core Function:Roads","Nkomo B to A (D3837) Upgrading from Gravel to Tar","LIM331_0060",null,null,null,null,"Roads Infrastructure","Roads",null,-23.245989999999999,30.445989999999998]
["Core Function:Information Technology","ICT Network Infrastructure","LIM331_0061",null,null,null,null,"Information and Communication Infrastructure","Unspecified","Head Office",-23.245989999999999,30.445989999999998]
["Core Function:Corporate Wide Strategic Planning (IDPs, LEDs)","Automated PMS System","LIM331_0067",null,null,null,null,"Information and Communication Infrastructure","Computer Software and Applications","Head Office",-23.245989999999999,30.445989999999998]
["Core Function:Sports Grounds and Stadiums","Refurbishment of Giyani Stadium & Section A Tennis Court","LIM331_0069",null,null,null,null,"Sport and Recreation Facilities","Outdoor Facilities",null,-23.245989999999999,30.445989999999998,1000000,50000]
["Core Function:Roads","Giyani Section E Upgrading from Gravel to TARR","LIM331_0082",null,null,null,null,"Roads Infrastructure","Roads","Whole of Municipality",-23.245989999999999,30.445989999999998]
["Core Function:Roads","Giyani Section E Upgrading from Gravel to Paving  (Voningani)","LIM331_0101",null,null,null,null,"Roads Infrastructure","Roads","Whole of Municipality",-23.245989999999999,30.445989999999998,20141714,16500000]
["Core Function:Roads","Blinkwater upgrading of internal streets","LIM331_0102",null,null,null,null,"Roads Infrastructure","Roads","Whole of Municipality",-23.245989999999999,30.445989999999998]
["Core Function:Roads","Thomo upgrading of internal streets","LIM331_0103",null,null,null,null,"Roads Infrastructure","Roads","Whole of Municipality",-23.245989999999999,30.445989999999998]
["Core Function:Roads","Nkuri Zamani upgrading of internal streets","LIM331_0104",null,null,null,null,"Roads Infrastructure","Roads","Whole of Municipality",-23.245989999999999,30.445989999999998]
["Core Function:Internal Audit","Automated Audit System","LIM331_0106",null,null,null,null,"Information and Communication Infrastructure","Computer Software and Applications","Head Office",-23.245989999999999,30.445989999999998]
["Core Function:Roads","Alternative Road to Giyani from R81","LIM331_0044",null,null,null,null,"Roads Infrastructure","Roads","Ward 21 & 12",-23.245989999999999,30.445989999999998,1800000,1800000,50000,50000,0]
["Core Function:Roads","Shimange Upgrading from gravel to paving","LIM331_0111",null,null,null,null,"Roads Infrastructure","Roads","Whole of Municipality",-23.245989999999999,30.445989999999998,null,2755838]
["Core Function:Roads","Servicing of 539 sites","LIM331_0112",null,null,null,null,"Roads Infrastructure","Roads","Whole of Municipality",-23.245989999999999,30.445989999999998,1500000,0,1000000,0,0]
["Function:Energy Sources:Core Function:Electricity","Purchase of Generator","LIM331_6707",null,null,null,null,"Furniture and Office Equipment","Unspecified","Head Office",-23.245989999999999,30.445989999999998,1500000,5000,4000000,2000000,2000000]
["Core Function:Information Technology","Cost Model:Computer Equipment","LIM331_6105",null,null,null,null,"Computer Equipment","Unspecified","Head Office",-23.245989999999999,30.445989999999998,1500000,300000,2000000,2100000,2200000]
["Core Function:Information Technology","Computer Equipment(Tablets and printers","LIM331_6105",null,null,null,null,"Computer Equipment","Unspecified","Head Office",-23.245989999999999,30.445989999999998,500000,300000,600000,610000,620000]
["Core Function:Information Technology","Help Desk Software","LIM331_6105",null,null,null,null,"Information and Communication Infrastructure","Computer Software and Applications","Head Office",-23.245989999999999,30.445989999999998,300000,300000,500000,510000,520000]
["Core Function:Legal Services","Development of Bylaws","LIM331_6108",null,null,null,null,"Licences and Rights","Unspecified","Head Office",-23.245989999999999,30.445989999999998,100000,100000,110000,120000,130000]
["Core Function:Administrative and Corporate Support","Purchase of Furniture and Office Equipment","LIM331_6109",null,null,null,null,"Furniture and Office Equipment","Unspecified","Head Office",-23.245999999999999,30.445989999999998,1000000,1000000,1200000,1300000,1300000]
["Core Function:Fleet Management","Purchase of Machinery and Equipment","LIM331_6111",null,null,null,null,"Machinery and Equipment","Unspecified","Head Office",-23.245989999999999,30.445989999999998,7500000,12000000,12000000,12100000,12200000]
["Core Function:Fleet Management","Purchase of Motor Vehicles","LIM331_6111",null,null,null,null,"Transport Assets","Unspecified","Head Office",-23.245989999999999,30.445989999999998,2500000,2000000,2000000,2100000,2200000]
["Function:Public Safety:Core Function:Fencing and Fences","Purchase of Camera & Monitor","LIM331_6351",null,null,null,null,"Machinery and Equipment","Unspecified","Whole of Municipality",-23.245989999999999,30.445989999999998,500000,500000,500000,500000,550000]
["Function:Public Safety:Core Function:Fencing and Fences","Purchase of Walk Through metal detector","LIM331_6351",null,null,null,null,"Machinery and Equipment","Unspecified","Whole of Municipality",-23.245989999999999,30.445989999999998,300000,300000,1000000,1100000,1200000]
["Core Function:Solid Waste Removal","Purchase of Skip and Street Bins","LIM331_6501",null,null,null,null,"Machinery and Equipment","Unspecified","Whole of Municipality",-23.245989999999999,30.445989999999998,250000,350000,2000000,2100000,2200000]
["Non-core Function:Road and Traffic Regulation","Fire Arms","LIM331_6607",null,null,null,null,"Machinery and Equipment","Unspecified","Whole of Municipality",-23.245989999999999,30.445989999999998,300000,450000,100000,120000,140000]
["Non-core Function:Road and Traffic Regulation","Law Enforcement","LIM331_6607",null,null,null,null,"Machinery and Equipment","Unspecified","Whole of Municipality",-23.245989999999999,30.445989999999998,300000,300000,500000,600000,600000]
["Function:Energy Sources:Core Function:Electricity","Purchase of Air Conditioners","LIM331_6707",null,null,null,null,"Furniture and Office Equipment","Unspecified","Head Office",-23.245989999999999,30.445989999999998,1000000,400000,2000000,3000000,3000000]
["Core Function:Disaster","Purchase & installation of 31 water tanks","LIM331_P024",null,null,null,null,"Water Supply Infrastructure",null,"Whole of Municipality",-23.245989999999999,30.445989999999998]
["Core Function:Disaster","Hire of 2 water tankers ","LIM331_P024",null,null,null,null,"Water Supply Infrastructure",null,"Whole of Municipality",-23.245989999999999,30.445989999999998]
["Core Function:Roads","Siyandhani Ring Road","LIM331_0115",null,null,null,null,"Roads Infrastructure","Roads","Ward 14",-23.245989999999999,30.445989999999998,1000000,6520236,31529101.800000001]
["Core Function:Roads","Makosha phase 2 upgrading from gravel to paving","LIM331_0116",null,null,null,null,"Roads Infrastructure","Roads","Ward 14",-23.245989999999999,30.445989999999998,1000000,500000,1000000,24585567.25,5000000]
["Core Function:Roads","Rehabilitation of Streets in All Sections","LIM331_0039",null,null,null,null,"Roads Infrastructure","Roads","Ward 11",-23.245989999999999,30.445989999999998]
["Core Function:Roads","Aternative route from Elim Road R578 to Giyani via Siyandhani","LIM331_0119",null,null,null,null,"Roads Infrastructure","Roads","Ward 12",-23.245989999999999,30.445989999999998,1500000,0,50000,0,0]
["Core Function:Roads","Selawa upgrading of roads from gravel to paving","LIM331_0114",null,null,null,null,"Roads Infrastructure","Roads",null,-23.245989999999999,30.445989999999998,3937908,15300000,100000,0,0]
["Core Function:Roads","Hlomela upgrading from Gravel to Paving","LIM331_0120",null,null,null,null,"Roads Infrastructure","Roads",null,-23.245989999999999,30.445989999999998,1500000,500000,3027159,18272841,0]
["Core Function:Roads","Shikhumba Upgrading from gravel to paving","LIM331_0121",null,null,null,null,"Roads Infrastructure","Roads",null,-23.245989999999999,30.445989999999998,1000000,6698486.0800000001,23091088]
["Core Function:Roads","Shawela Upgrading from gravel to paving","LIM331_0122",null,null,null,null,"Roads Infrastructure","Roads",null,-23.245989999999999,30.445989999999998,1000000,500000,1000000,23000000,5000000]
["Core Function:Roads","Section E upgrading of 13km from gravel to paving","LIM331_0127",null,null,null,null,"Roads Infrastructure","Roads",null,-23.245989999999999,30.445989999999998,500000,50000,500000,20000000,20000000]
["Core Function:Property Services","Construction of car pots (Civic centre ,Unigaz ,Testing Station and brick yard)","LIM331_0128",null,null,null,null,"Operational Buildings","Municipal Offices","Head Office",-23.245989999999999,30.445989999999998,500000,0,500000]
["Core Function:Property Services","Upgrading of Giyani Section F - Section View Internal Streets to Paving","LIM331_0170",null,null,null,null,"Roads Infrastructure",null,null,null,null,null,null,500000,5058560,23741441]
["Core Function:Property Services","Babangu Internal Streets Upgrading from gravel to paving","LIM331_0171",null,null,null,null,"Roads Infrastructure",null,null,null,null,null,null,500000,null,23135146.760000002]
["Core Function:Property Services","Upgrading from gravel to paving Ngobe to Sikhunyani Road","LIM331_0172",null,null,null,null,"Roads Infrastructure",null,null,null,null,null,null,500000,null,17163560]
["Core Function:Property Services","Upgrading from gravel to paving Nwamankena","LIM331_0173",null,null,null,null,"Roads Infrastructure",null,null,null,null,null,null,500000,0,0]
["Core Function:Property Services","4.9km Section F Upgrading of stormwater Phase 1","LIM331_0174",null,null,null,null,"Roads Infrastructure",null,null,null,null,null,null,11830811,10000000,14543325]
["Core Function:Roads","Section A Upgrading of Stormwater Phase 1","LIM331_0175",null,null,null,null,"Storm water Infrastructure",null,null,null,null,null,null,9695750,9000000,20492383]
["Core Function:Internal Audit","Internal Audit System","LIM331_0178",null,null,null,null,"Information and Communication Infrastructure",null,null,null,null,null,null,550000,0,0]
["Core Function:Risk Management","Risk Management System","LIM331_0179",null,null,null,null,"Information and Communication Infrastructure",null,null,null,null,null,null,500000,500000,500000]
["Core Function:Budget & Treasury","Computer Equipment(Tablets and printers","LIM331_6119",null,null,null,null,"Computer Equipment",null,null,null,null,null,null,665000.4]
["Core Function:Administrative and Corporate Support","(Patrol management system (Clocking System)","LIM331_6351",null,null,null,null,null,null,null,null,null,null,null,600000,0,0]
["Parent Capital expenditure",null,null,null,null,null,null,null,null,null,null,null,{"$f":"SUM(M7:M79)","v":148172228.40000001},{"$f":"SUM(N7:N79)","v":138207867.21000001},{"$f":"SUM(O7:O79)","v":158791188.20000002},{"$f":"SUM(P7:P79)","v":173326968.25},{"$f":"SUM(Q7:Q79)","v":159635855.75999999}]
[]
["Entities:"]
["List all capital projects grouped by Entity"]
[]
["Entity A"]
["Water project A"]
[]
["Entity B"]
["Electricity project B"]
[]
[]
[]
["Entity Capital expenditure",null,null,null,null,null,null,null,null,null,null,null,{"$f":"SUM(M85:M92)","v":0},{"$f":"SUM(N85:N92)","v":0},{"$f":"SUM(O85:O92)","v":0},{"$f":"SUM(P85:P92)","v":0},{"$f":"SUM(Q85:Q92)","v":0}]
["Total Capital expenditure",null,null,null,null,null,null,null,null,null,null,null,{"$f":"SUM(M7:M79)+SUM(M85:M92)","v":148172228.40000001},{"$f":"SUM(N7:N79)+SUM(N85:N92)","v":138207867.21000001},{"$f":"SUM(O7:O79)+SUM(O85:O92)","v":158791188.20000002},{"$f":"SUM(P7:P79)+SUM(P85:P92)","v":173326968.25},{"$f":"SUM(Q7:Q79)+SUM(Q85:Q92)","v":159635855.75999999}]
[{"$f":"head27a","v":"References"}]
["Must reconcile with Budgeted Capital Expenditure"]
["Projects that fall above the threshold values applicable to the municipality as identified in regulation 13 of the Municipal Budget and Reporting Regulations must be listed individually. Other projects by Function"]
["Asset class as per table A9 and asset sub-class as per table SA34"]
["GPS coordinates correct to seconds. Provide a logical starting point on networked infrastructure."]
["Distinguish projects approved in terms of MFMA section 19(1)(b) and MRRR Regulation 13",null,null,null,null,null,null,null,null,null,null,"check",{"$f":"SUM(SA34a!E175+SA34b!E175+SA34e!E175)-'SA36'!M94","v":-33228676.400000006},{"$f":"SUM(SA34a!H175+SA34b!H175+SA34e!H175)-'SA36'!N94","v":-0.21000000834465027},{"$f":"SUM(SA34a!I175+SA34b!I175+SA34e!I175)-'SA36'!O94","v":-0.20000001788139343},{"$f":"SUM(SA34a!J175+SA34b!J175+SA34e!J175)-'SA36'!P94","v":-0.25},{"$f":"SUM(SA34a!K175+SA34b!K175+SA34e!K175)-'SA36'!Q94","v":0.24000000953674316}]
["Project Number consists of MSCOA Project Longcode and seq No (sample PC001002006002_00002)"]

{"sheet":"SA37","index":86,"n_rows":469,"n_cols":18,"rows_kept":469,"cut":false,"hidden":false,"merged":[[1,12,2,12],[1,13,1,14],[1,15,1,17]]}
[{"$f":"muni&\" - \"&TableA37","v":"LIM331 Greater Giyani - Supporting Table SA37 Projects delayed from previous financial year/s"}]
["R thousand",null,null,null,null,null,null,null,null,null,null,null,{"$f":"Head47","v":"Previous target year to complete"},{"$f":"Head2","v":"Current Year 2022/23"},null,{"$f":"Head3","v":"2023/24 Medium Term Revenue & Expenditure Framework"}]
["Function","Project name","Project number","Type","MTSF Service Outcome","IUDF","Own Strategic Objectives","Asset Class","Asset Sub-Class","Ward Location","GPS Longitude","GPS Lattitude",null,{"$f":"Head6","v":"Original Budget"},{"$f":"Head8","v":"Full Year Forecast"},{"$f":"Head9","v":"Budget Year 2023/24"},{"$f":"Head10","v":"Budget Year +1 2024/25"},{"$f":"Head11","v":"Budget Year +2 2025/26"}]
["Parent municipality:"]
["List all capital projects grouped by Function"]
[]
["028ec562-fa32-4462-9c8f-90ca38ed33ae","SOLID WASTE","PC002003009000000000000000000000000000_00003","_","An efficient, effective and development-oriented public service","Growth","Infrastructure Development and Basic Service Delivery","Machinery and Equipment","Machinery and Equipment",30.445989608764648,-23.245990753173828,"0d0b8def-631d-4fda-b03e-71f01db572fa",0,30000000,31500000,33000000,7350000]
["044f82e1-bbb4-4190-b772-2ff5020adecc","Upgrading of Parking Lot","PC002002002003001005000000000000000000_00002","_","An efficient, effective and development-oriented public service","Governance","Infrastructure Development and Basic Service Delivery",null,null,30.413181304931641,23.183664321899414,"9f3b39a1-4676-432f-a8b5-6c951f798106",17045875.140000001,6500000,0,0,0]
["044f82e1-bbb4-4190-b772-2ff5020adecc","Upgrading of Parking Lot","PC002002002003001005000000000000000000_00002","_","An efficient, effective and development-oriented public service","Governance","Infrastructure Development and Basic Service Delivery","Operational Buildings","Yards",30.413181304931641,23.183664321899414,"9f3b39a1-4676-432f-a8b5-6c951f798106",51137625.420000024,19500000,0,0,0]
["0e51e5d3-5805-402b-a5dc-3b94852c29c0","Assets Management","PC001002006001000000000000000000000000_00009","_","An efficient, competitive and responsive economic infrastructure network","Growth","Financial Viability","Roads Infrastructure","Roads",30.445989608764648,-23.245990753173828,"0d0b8def-631d-4fda-b03e-71f01db572fa",-157876427.09999993,0,0,0,0]
["0e51e5d3-5805-402b-a5dc-3b94852c29c0","Assets Management","PC002003003001001000000000000000000000_00001","_","An efficient, effective and development-oriented public service","Growth","Financial Viability","Operational Buildings","Municipal Offices",30.445989608764648,-23.245990753173828,"0d0b8def-631d-4fda-b03e-71f01db572fa",-670622.40000000026,0,0,0,0]
["0e51e5d3-5805-402b-a5dc-3b94852c29c0","Assets Management","PC002003004000000000000000000000000000_00004","_","An efficient, effective and development-oriented public service","Growth","Financial Viability","Computer Equipment","Computer Equipment",30.445989608764648,-23.245990753173828,"0d0b8def-631d-4fda-b03e-71f01db572fa",-265248.48000000004,0,0,0,0]
["0e51e5d3-5805-402b-a5dc-3b94852c29c0","Assets Management","PC002003005000000000000000000000000000_00002","_","An efficient, effective and development-oriented public service","Growth","Financial Viability","Furniture and Office Equipment","Furniture and Office Equipment",30.445989608764648,-23.245990753173828,"0d0b8def-631d-4fda-b03e-71f01db572fa",-64439.550000000025,0,0,0,0]
["0e51e5d3-5805-402b-a5dc-3b94852c29c0","Balance Sheet Budget Accounts","PC001002001008000000000000000000000000_00001","_","An efficient, competitive and responsive economic infrastructure network","Growth","Financial Viability","Electrical Infrastructure","LV Networks",30.445989608764648,-23.245990753173828,"0d0b8def-631d-4fda-b03e-71f01db572fa",229706554.97999996,0,0,0,0]
["0e51e5d3-5805-402b-a5dc-3b94852c29c0","PPE Take On Accounts",null,"_",null,null,"Financial Viability",null,null,30.445989608764648,-23.245990753173828,"0d0b8def-631d-4fda-b03e-71f01db572fa",2805774.06,234149266,0,0,295744266]
["0e51e5d3-5805-402b-a5dc-3b94852c29c0","PPE Take On Accounts",null,"_","A comprehensive, responsive and sustainable social protection system","Growth","Financial Viability",null,null,30.445989608764648,-23.245990753173828,"0d0b8def-631d-4fda-b03e-71f01db572fa",0,-157804744,0,0,201678942]
["0e51e5d3-5805-402b-a5dc-3b94852c29c0","PPE Take On Accounts",null,"_","An efficient, effective and development-oriented public service","Growth","Financial Viability",null,null,30.445989608764648,-23.245990753173828,"0d0b8def-631d-4fda-b03e-71f01db572fa",0,626103276,0,0,389809590]
["0e51e5d3-5805-402b-a5dc-3b94852c29c0","PPE Take On Accounts","PC001002006001000000000000000000000000_00009","_","An efficient, competitive and responsive economic infrastructure network","Growth","Financial Viability","Roads Infrastructure","Roads",30.445989608764648,-23.245990753173828,"0d0b8def-631d-4fda-b03e-71f01db572fa",11485132701.209995,4711100976,0,0,4711100976]
["0e51e5d3-5805-402b-a5dc-3b94852c29c0","PPE Take On Accounts","PC002001000000000000000000000000000000_00001","_","An efficient, effective and development-oriented public service","Spatial integration","Financial Viability","Land","Land",30.445989608764648,-23.245990753173828,"0d0b8def-631d-4fda-b03e-71f01db572fa",635670741.09000003,0,0,0,0]
["0e51e5d3-5805-402b-a5dc-3b94852c29c0","PPE Take On Accounts","PC002002001004000000000000000000000000_00001","_","An efficient, effective and development-oriented public service","Governance","Financial Viability",null,null,30.445989608764648,-23.245990753173828,"0d0b8def-631d-4fda-b03e-71f01db572fa",-23040.15,0,0,0,0]
["0e51e5d3-5805-402b-a5dc-3b94852c29c0","PPE Take On Accounts","PC002002001004000000000000000000000000_00001","_","An efficient, effective and development-oriented public service","Governance","Financial Viability","Computer Equipment","Computer Equipment",30.445989608764648,-23.245990753173828,"0d0b8def-631d-4fda-b03e-71f01db572fa",-69120.449999999968,0,0,0,0]
["0e51e5d3-5805-402b-a5dc-3b94852c29c0","PPE Take On Accounts","PC002002001005000000000000000000000000_00001","_","An efficient, effective and development-oriented public service","Governance","Financial Viability",null,null,30.445989608764648,-23.245990753173828,"0d0b8def-631d-4fda-b03e-71f01db572fa",16834644.360000007,0,0,0,0]
["0e51e5d3-5805-402b-a5dc-3b94852c29c0","PPE Take On Accounts","PC002002001005000000000000000000000000_00001","_","An efficient, effective and development-oriented public service","Governance","Financial Viability","Furniture and Office Equipment","Furniture and Office Equipment",30.445989608764648,-23.245990753173828,"0d0b8def-631d-4fda-b03e-71f01db572fa",50503933.079999968,0,0,0,0]
["0e51e5d3-5805-402b-a5dc-3b94852c29c0","PPE Take On Accounts","PC002003002002002000000000000000000000_00003","_","A long and healthy life for all South Africans","Growth","Financial Viability","Sport and Recreation Facilities","Outdoor Facilities",30.445989608764648,-23.245990753173828,"0d0b8def-631d-4fda-b03e-71f01db572fa",1670861158.8899984,0,0,0,0]
["0e51e5d3-5805-402b-a5dc-3b94852c29c0","PPE Take On Accounts","PC002003003001001000000000000000000000_00001","_","An efficient, effective and development-oriented public service","Growth","Financial Viability","Operational Buildings","Municipal Offices",30.445989608764648,-23.245990753173828,"0d0b8def-631d-4fda-b03e-71f01db572fa",2086361290.4399981,1124445078,0,0,1218945078]
["0e51e5d3-5805-402b-a5dc-3b94852c29c0","PPE Take On Accounts","PC002003004000000000000000000000000000_00003","_","An efficient, effective and development-oriented public service","Growth","Financial Viability","Computer Equipment","Computer Equipment",30.445989608764648,-23.245990753173828,"0d0b8def-631d-4fda-b03e-71f01db572fa",8.6100000000000012,0,0,0,0]
["0e51e5d3-5805-402b-a5dc-3b94852c29c0","PPE Take On Accounts","PC002003004000000000000000000000000000_00004","_","An efficient, effective and development-oriented public service","Growth","Financial Viability","Computer Equipment","Computer Equipment",30.445989608764648,-23.245990753173828,"0d0b8def-631d-4fda-b03e-71f01db572fa",109740586.41,0,0,0,0]
["0e51e5d3-5805-402b-a5dc-3b94852c29c0","PPE Take On Accounts","PC002003005000000000000000000000000000_00002","_","An efficient, effective and development-oriented public service","Growth","Financial Viability","Furniture and Office Equipment","Furniture and Office Equipment",30.445989608764648,-23.245990753173828,"0d0b8def-631d-4fda-b03e-71f01db572fa",95323196.010000005,75279636,0,0,62679636]
["0e51e5d3-5805-402b-a5dc-3b94852c29c0","PPE Take On Accounts","PC002003006005000000000000000000000000_00001","_","Create a better South Africa and contribute to a better Africa and a better world","Growth","Financial Viability","Heritage Assets","Other Heritage",30.445989608764648,-23.245990753173828,"0d0b8def-631d-4fda-b03e-71f01db572fa",4332355.2299999986,0,0,0,1856727]
["0e51e5d3-5805-402b-a5dc-3b94852c29c0","PPE Take On Accounts","PC002003007002004000000000000000000000_00002","_","An efficient, effective and development-oriented public service","Growth","Financial Viability","Licences and Rights","Computer Software and Applications",30.445989608764648,-23.245990753173828,"0d0b8def-631d-4fda-b03e-71f01db572fa",18926733.629999973,78957378,0,0,78957378]
["0e51e5d3-5805-402b-a5dc-3b94852c29c0","PPE Take On Accounts","PC002003008001001000000000000000000000_00001","_","An efficient, effective and development-oriented public service","Growth","Financial Viability",null,"Improved Property",30.445989608764648,-23.245990753173828,"0d0b8def-631d-4fda-b03e-71f01db572fa",550191170.34000015,0,0,0,0]
["0e51e5d3-5805-402b-a5dc-3b94852c29c0","PPE Take On Accounts","PC002003009000000000000000000000000000_00005","_","An efficient, effective and development-oriented public service","Growth","Financial Viability","Machinery and Equipment","Machinery and Equipment",30.445989608764648,-23.245990753173828,"0d0b8def-631d-4fda-b03e-71f01db572fa",488434146.47999984,0,0,0,0]
["0e51e5d3-5805-402b-a5dc-3b94852c29c0","PPE Take On Accounts","PC002003010000000000000000000000000000_00002","_","An efficient, effective and development-oriented public service","Growth","Financial Viability","Transport Assets","Transport Assets",30.445989608764648,-23.245990753173828,"0d0b8def-631d-4fda-b03e-71f01db572fa",177003072.32999989,87638283,0,0,69638283]
["0f52d9e5-907f-4d9f-934f-57dc012524d6","Administration","PC002003005000000000000000000000000000_00001","_","An efficient, effective and development-oriented public service","Growth","Good Governance and Public Participation","Furniture and Office Equipment","Furniture and Office Equipment",30.445989608764648,-23.245990753173828,"42510af3-3838-4a32-862e-379660192785",0,18000000,19500000,19500000,21000000]
["1ba26e54-d30e-49dd-8bce-2657f8290afb","Ndhambi Taxi Rank","PC002003002001021000000000000000000000_00001","_","An efficient, effective and development-oriented public service","Growth","Infrastructure Development and Basic Service Delivery","Community Facilities","Taxi Ranks/Bus Terminals",30.423599243164063,-23.343994140625,"a6f1a052-aca9-4a66-8430-6e5757c5867f",126775949.36999999,0,0,0,130090086]
["35f914ed-b099-4a36-890d-69e60fc0e57c","Giyani Section E Sports Precinct","PC002002002002002002000000000000000000_00001","_","A long and healthy life for all South Africans","Inclusion and access","Infrastructure Development and Basic Service Delivery",null,null,30.414649963378906,23.181238174438477,"0d0b8def-631d-4fda-b03e-71f01db572fa",16629370.24,0,0,0,0]
["35f914ed-b099-4a36-890d-69e60fc0e57c","Giyani Section E Sports Precinct","PC002002002002002002000000000000000000_00001","_","A long and healthy life for all South Africans","Inclusion and access","Infrastructure Development and Basic Service Delivery","Sport and Recreation Facilities","Outdoor Facilities",30.414649963378906,23.181238174438477,"0d0b8def-631d-4fda-b03e-71f01db572fa",49888110.719999999,0,0,0,0]
["35f914ed-b099-4a36-890d-69e60fc0e57c","Homu14B Sports centre",null,"_",null,null,"Infrastructure Development and Basic Service Delivery",null,null,222233,11111111,"78a4cf9a-667c-43cd-a0b8-6d9569d88d8c",3391765.84,0,0,0,7000000]
["35f914ed-b099-4a36-890d-69e60fc0e57c","Homu14B Sports centre","PC002003002002002000000000000000000000_00005","_","A long and healthy life for all South Africans","Growth","Infrastructure Development and Basic Service Delivery","Sport and Recreation Facilities","Outdoor Facilities",222233,11111111,"78a4cf9a-667c-43cd-a0b8-6d9569d88d8c",50876487.600000009,0,0,0,105000000]
["35f914ed-b099-4a36-890d-69e60fc0e57c","Mageva Sports Centre","PC002003002002002000000000000000000000_00001","_","A long and healthy life for all South Africans","Growth","Infrastructure Development and Basic Service Delivery","Sport and Recreation Facilities","Outdoor Facilities",30.433280944824219,-23.32512092590332,"04bc482d-a10f-4148-ad06-3315145fe8ea",0,30000000,0,0,0]
["35f914ed-b099-4a36-890d-69e60fc0e57c","Mavalani Indoor Sports Centre","PC002003002002001000000000000000000000_00001","_","A long and healthy life for all South Africans","Growth","Infrastructure Development and Basic Service Delivery","Sport and Recreation Facilities","Indoor Facilities",30.422607421875,23.123525619506836,"72b09a64-68be-427f-9cbf-273e930b11b3",0,144205185,0,0,246256584]
["35f914ed-b099-4a36-890d-69e60fc0e57c","Mavalani Indoor Sports Centre","PC002003002002001000000000000000000000_00001","_","A long and healthy life for all South Africans","Growth","Infrastructure Development and Basic Service Delivery","Sport and Recreation Facilities","Indoor Facilities",30.422607421875,23.123525619506836,"f7c962df-61b9-4b59-aab9-0cc9d246df9a",35967169.140000008,0,0,0,0]
["35f914ed-b099-4a36-890d-69e60fc0e57c","Refurbishment of Giyani Stadium & Section A Tennis Court","PC002002002002002002000000000000000000_00002","_","A long and healthy life for all South Africans","Inclusion and access","Infrastructure Development and Basic Service Delivery",null,null,30.420839309692383,-23.192020416259766,"9f3b39a1-4676-432f-a8b5-6c951f798106",12605758.060000001,0,0,0,0]
["35f914ed-b099-4a36-890d-69e60fc0e57c","Refurbishment of Giyani Stadium & Section A Tennis Court","PC002002002002002002000000000000000000_00002","_","A long and healthy life for all South Africans","Inclusion and access","Infrastructure Development and Basic Service Delivery","Sport and Recreation Facilities","Outdoor Facilities",30.420839309692383,-23.192020416259766,"9f3b39a1-4676-432f-a8b5-6c951f798106",37817274.179999985,0,0,0,0]
["35f914ed-b099-4a36-890d-69e60fc0e57c","Refurbishment of Giyani Stadium & Section A Tennis Court","PC002002002002002002000000000000000000_00005","_","A long and healthy life for all South Africans","Inclusion and access","Infrastructure Development and Basic Service Delivery",null,null,30.445989608764648,-23.245990753173828,"0d0b8def-631d-4fda-b03e-71f01db572fa",0,14000000,54000000,0,600000]
["35f914ed-b099-4a36-890d-69e60fc0e57c","Refurbishment of Giyani Stadium & Section A Tennis Court","PC002002002002002002000000000000000000_00005","_","A long and healthy life for all South Africans","Inclusion and access","Infrastructure Development and Basic Service Delivery","Sport and Recreation Facilities","Outdoor Facilities",30.445989608764648,-23.245990753173828,"0d0b8def-631d-4fda-b03e-71f01db572fa",0,42000000,162000000,0,1800000]
["35f914ed-b099-4a36-890d-69e60fc0e57c","Refurbishment of Shivulani Sports Centre","PC002002002002002002000000000000000000_00004","_","A long and healthy life for all South Africans","Inclusion and access","Infrastructure Development and Basic Service Delivery",null,null,30.424520492553711,23.075927734375,"7dbf5cb6-c47a-4c39-ae12-ca7e2aab8f77",4844748.0599999996,0,0,0,0]
["35f914ed-b099-4a36-890d-69e60fc0e57c","Refurbishment of Shivulani Sports Centre","PC002002002002002002000000000000000000_00004","_","A long and healthy life for all South Africans","Inclusion and access","Infrastructure Development and Basic Service Delivery","Sport and Recreation Facilities","Outdoor Facilities",30.424520492553711,23.075927734375,"7dbf5cb6-c47a-4c39-ae12-ca7e2aab8f77",14534244.18,0,0,0,0]
["35f914ed-b099-4a36-890d-69e60fc0e57c","Refurbishment of Sporting Facilities (Gawula)","PC002002002002002002000000000000000000_00003","_","A long and healthy life for all South Africans","Inclusion and access","Infrastructure Development and Basic Service Delivery",null,null,30.532768249511719,23.184122085571289,"87d619e1-38cf-4dee-b6ec-8419521faca7",4238166.99,0,0,0,0]
["35f914ed-b099-4a36-890d-69e60fc0e57c","Refurbishment of Sporting Facilities (Gawula)","PC002002002002002002000000000000000000_00003","_","A long and healthy life for all South Africans","Inclusion and access","Infrastructure Development and Basic Service Delivery","Sport and Recreation Facilities","Outdoor Facilities",30.532768249511719,23.184122085571289,"87d619e1-38cf-4dee-b6ec-8419521faca7",12714500.970000001,0,0,0,0]
["35f914ed-b099-4a36-890d-69e60fc0e57c","Section E Sports Centre","PC002003002002002000000000000000000000_00002","_","A long and healthy life for all South Africans","Growth","Infrastructure Development and Basic Service Delivery","Sport and Recreation Facilities","Outdoor Facilities",30.414649963378906,23.181238174438477,"8127b5b5-a3d3-4509-bade-f900f57d222b",484836553.94999981,0,0,0,0]
["57eb57f7-9f9a-43e8-a53f-0e222f65a66d","Security  Services","PC002003009000000000000000000000000000_00004","_","An efficient, effective and development-oriented public service","Growth","Institutional Development and Transformation","Machinery and Equipment","Machinery and Equipment",30.445989608764648,-23.245990753173828,"42510af3-3838-4a32-862e-379660192785",0,7500000,7500000,8250000,10500000]
["57eb57f7-9f9a-43e8-a53f-0e222f65a66d","Security  Services","PC002003009000000000000000000000000000_00007","_","An efficient, effective and development-oriented public service","Growth","Institutional Development and Transformation","Machinery and Equipment","Machinery and Equipment",30.445989608764648,-23.245990753173828,"42510af3-3838-4a32-862e-379660192785",0,12000000,13200000,14400000,5400000]
["5efb28bb-c786-49af-8a50-44a8b229bf7f","51 High Mast Lights in Crime Prone Areas","PC001002006002000000000000000000000000_00002","_","An efficient, competitive and responsive economic infrastructure network","Growth","Infrastructure Development and Basic Service Delivery","Roads Infrastructure","Road Structures",30.431600570678711,-23.181659698486328,"0d0b8def-631d-4fda-b03e-71f01db572fa",133662344.96999994,0,0,0,0]
["5efb28bb-c786-49af-8a50-44a8b229bf7f","Upgrading of Traffic Lights & R81 Lighting","PC001001002006003000000000000000000000_00002","_","An efficient, competitive and responsive economic infrastructure network","Inclusion and access","Infrastructure Development and Basic Service Delivery",null,null,30.413053512573242,23.183811187744141,"0d0b8def-631d-4fda-b03e-71f01db572fa",5377193.2199999997,0,0,0,0]
["5efb28bb-c786-49af-8a50-44a8b229bf7f","Upgrading of Traffic Lights & R81 Lighting","PC001001002006003000000000000000000000_00002","_","An efficient, competitive and responsive economic infrastructure network","Inclusion and access","Infrastructure Development and Basic Service Delivery","Roads Infrastructure","Road Furniture",30.413053512573242,23.183811187744141,"0d0b8def-631d-4fda-b03e-71f01db572fa",16131579.660000008,0,0,0,0]
["600af0bf-7b13-4030-8d6a-6496e24eb507","Civic Centre Building Phase 3 and 4","PC002002002003001001000000000000000000_00001","_","An efficient, effective and development-oriented public service","Governance","Infrastructure Development and Basic Service Delivery",null,null,30.41328239440918,23.18376350402832,"42510af3-3838-4a32-862e-379660192785",16643199.140000001,26538378,0,0,28678550]
["600af0bf-7b13-4030-8d6a-6496e24eb507","Civic Centre Building Phase 3 and 4","PC002002002003001001000000000000000000_00001","_","An efficient, effective and development-oriented public service","Governance","Infrastructure Development and Basic Service Delivery","Operational Buildings","Municipal Offices",30.41328239440918,23.18376350402832,"42510af3-3838-4a32-862e-379660192785",49929597.420000002,79615134,0,0,86035650]
["600af0bf-7b13-4030-8d6a-6496e24eb507","Civic Centre Building Phase 3 and 4","PC002002002003001001000000000000000000_00004","_","An efficient, effective and development-oriented public service","Governance","Infrastructure Development and Basic Service Delivery",null,null,30.41328239440918,23.18376350402832,"42510af3-3838-4a32-862e-379660192785",41607997.850000001,39807567,0,0,71696375]
["600af0bf-7b13-4030-8d6a-6496e24eb507","Civic Centre Building Phase 3 and 4","PC002002002003001001000000000000000000_00004","_","An efficient, effective and development-oriented public service","Governance","Infrastructure Development and Basic Service Delivery","Operational Buildings","Municipal Offices",30.41328239440918,23.18376350402832,"42510af3-3838-4a32-862e-379660192785",124823993.54999995,119422701,0,0,215089125]
["67347610-1db2-421f-a89a-f87e772911eb","Balance Sheet Budget Accounts",null,"_",null,null,"Financial Viability",null,null,30.445989608764648,-23.245990753173828,"0d0b8def-631d-4fda-b03e-71f01db572fa",0,0,0,0,-138207867]
["67347610-1db2-421f-a89a-f87e772911eb","Balance Sheet Budget Accounts","PC001002006001000000000000000000000000_00019","_","An efficient, competitive and responsive economic infrastructure network","Growth","Financial Viability","Roads Infrastructure","Roads",30.445989608764648,-23.245990753173828,"0d0b8def-631d-4fda-b03e-71f01db572fa",0,0,0,0,-2073118005]
["67347610-1db2-421f-a89a-f87e772911eb","PPE Take On Accounts","PC001002006001000000000000000000000000_00009","_","An efficient, competitive and responsive economic infrastructure network","Growth","Financial Viability","Roads Infrastructure","Roads",30.445989608764648,-23.245990753173828,"0d0b8def-631d-4fda-b03e-71f01db572fa",0,0,0,0,1104953310]
["67347610-1db2-421f-a89a-f87e772911eb","PPE Take On Accounts","PC002003002002001000000000000000000000_00002","_","A long and healthy life for all South Africans","Growth","Financial Viability","Sport and Recreation Facilities","Indoor Facilities",30.445989608764648,-23.245990753173828,"0d0b8def-631d-4fda-b03e-71f01db572fa",87124542.75,0,0,0,0]
["67347610-1db2-421f-a89a-f87e772911eb","Section E FROM GRAVEL TO TARR","PC001002006001000000000000000000000000_00014","_","An efficient, competitive and responsive economic infrastructure network","Growth","Infrastructure Development and Basic Service Delivery","Roads Infrastructure","Roads",0.2354000061750412,-0.2354000061750412,"8127b5b5-a3d3-4509-bade-f900f57d222b",70977353.340000004,0,0,0,49500000]
["67347610-1db2-421f-a89a-f87e772911eb","Shimange Upgrading from gravel to paving",null,"_",null,null,"Infrastructure Development and Basic Service Delivery",null,null,75412,5897,"c08bed4f-8360-4232-ba26-d81bcbaf81c3",0,0,0,0,2755838]
["6fa14a15-a164-42cb-a263-a0b007852bc5","GOLF COURSE DEVELOPMENT","PC002002002002001002000000000000000000_00001","_","An efficient, effective and development-oriented public service","Inclusion and access","To develop an effective spatial framework that promotes integrated and sustainable development",null,null,30.445989608764648,-23.245990753173828,"0d0b8def-631d-4fda-b03e-71f01db572fa",0,4000000,4400000,4800000,1800000]
["6fa14a15-a164-42cb-a263-a0b007852bc5","GOLF COURSE DEVELOPMENT","PC002002002002001002000000000000000000_00001","_","An efficient, effective and development-oriented public service","Inclusion and access","To develop an effective spatial framework that promotes integrated and sustainable development","Community Facilities","Centres",30.445989608764648,-23.245990753173828,"0d0b8def-631d-4fda-b03e-71f01db572fa",0,12000000,13200000,14400000,5400000]
["6fa14a15-a164-42cb-a263-a0b007852bc5","Jim-Nghalalume Community Hall","PC002003002001001000000000000000000000_00001","_","An efficient, effective and development-oriented public service","Growth","Infrastructure Development and Basic Service Delivery","Community Facilities","Halls",30.36387825012207,23.141061782836914,"0d0b8def-631d-4fda-b03e-71f01db572fa",33366055.800000012,105141150,0,0,288027033]
["6fa14a15-a164-42cb-a263-a0b007852bc5","N'wadzekudzeku Community Hall","PC002003002001001000000000000000000000_00002","_","An efficient, effective and development-oriented public service","Growth","Infrastructure Development and Basic Service Delivery","Community Facilities","Halls",30.433935165405273,23.0654296875,"0d0b8def-631d-4fda-b03e-71f01db572fa",151411180.40999997,0,0,0,249856614]
["6fa14a15-a164-42cb-a263-a0b007852bc5","PPE Take On Accounts","PC002002001002001011000000000000000000_00001","_","A comprehensive, responsive and sustainable social protection system","Inclusion and access","Financial Viability",null,null,30.445989608764648,-23.245990753173828,"0d0b8def-631d-4fda-b03e-71f01db572fa",-24067144.850000001,0,0,0,0]
["6fa14a15-a164-42cb-a263-a0b007852bc5","PPE Take On Accounts","PC002002001002001011000000000000000000_00001","_","A comprehensive, responsive and sustainable social protection system","Inclusion and access","Financial Viability","Community Facilities","Cemeteries/Crematoria",30.445989608764648,-23.245990753173828,"0d0b8def-631d-4fda-b03e-71f01db572fa",-72201434.549999967,0,0,0,0]
["6fa14a15-a164-42cb-a263-a0b007852bc5","Refurbishment of Giyani Arts & Culture Centre","PC002002001002001002000000000000000000_00001","_","An efficient, effective and development-oriented public service","Inclusion and access","Infrastructure Development and Basic Service Delivery",null,null,30.405937194824219,23.183698654174805,"0d0b8def-631d-4fda-b03e-71f01db572fa",7464940.0699999994,0,0,0,0]
["6fa14a15-a164-42cb-a263-a0b007852bc5","Refurbishment of Giyani Arts & Culture Centre","PC002002001002001002000000000000000000_00001","_","An efficient, effective and development-oriented public service","Inclusion and access","Infrastructure Development and Basic Service Delivery","Community Facilities","Centres",30.405937194824219,23.183698654174805,"0d0b8def-631d-4fda-b03e-71f01db572fa",22394820.210000008,0,0,0,0]
["6fa14a15-a164-42cb-a263-a0b007852bc5","SIYANDHANI-JIM NGHALALUME (ACCESS TO TOMU) REGRAVELLING & CULVERT BRIDGE","PC002003002001002000000000000000000000_00001","_","An efficient, effective and development-oriented public service","Growth","Infrastructure Development and Basic Service Delivery","Community Facilities","Centres",30.445989608764648,-23.245990753173828,"0d0b8def-631d-4fda-b03e-71f01db572fa",11789073.660000004,0,0,0,0]
["7bfc7c06-9b62-4cad-816b-78ab18ec23e3","Civic Centre Building Phase 3 and 4","PC002002002003001001000000000000000000_00001","_","An efficient, effective and development-oriented public service","Governance","Infrastructure Development and Basic Service Delivery",null,null,30.41328239440918,23.18376350402832,"42510af3-3838-4a32-862e-379660192785",28770336.629999999,0,0,0,0]
["7bfc7c06-9b62-4cad-816b-78ab18ec23e3","Civic Centre Building Phase 3 and 4","PC002002002003001001000000000000000000_00001","_","An efficient, effective and development-oriented public service","Governance","Infrastructure Development and Basic Service Delivery","Operational Buildings","Municipal Offices",30.41328239440918,23.18376350402832,"42510af3-3838-4a32-862e-379660192785",86311009.890000045,0,0,0,0]
["7bfc7c06-9b62-4cad-816b-78ab18ec23e3","PPE Take On Accounts","PC002003008001001000000000000000000000_00001","_","An efficient, effective and development-oriented public service","Growth","Financial Viability",null,"Improved Property",30.445989608764648,-23.245990753173828,"0d0b8def-631d-4fda-b03e-71f01db572fa",0,230398380,0,0,235796220]
["7bfc7c06-9b62-4cad-816b-78ab18ec23e3","SIYANDHANI-JIM NGHALALUME (ACCESS TO TOMU) REGRAVELLING & CULVERT BRIDGE","PC002002002003001001000000000000000000_00002","_","An efficient, effective and development-oriented public service","Governance","Infrastructure Development and Basic Service Delivery",null,null,30.445989608764648,-23.245990753173828,"0d0b8def-631d-4fda-b03e-71f01db572fa",23121627.899999999,0,0,0,0]
["7bfc7c06-9b62-4cad-816b-78ab18ec23e3","SIYANDHANI-JIM NGHALALUME (ACCESS TO TOMU) REGRAVELLING & CULVERT BRIDGE","PC002002002003001001000000000000000000_00002","_","An efficient, effective and development-oriented public service","Governance","Infrastructure Development and Basic Service Delivery","Operational Buildings","Municipal Offices",30.445989608764648,-23.245990753173828,"0d0b8def-631d-4fda-b03e-71f01db572fa",69364883.700000018,0,0,0,0]
["81e26025-8a7e-485a-b96d-814b817bc7e2","Vehicle Lisencing & Reg","PC002003009000000000000000000000000000_00005","_","An efficient, effective and development-oriented public service","Growth","Infrastructure Development and Basic Service Delivery","Machinery and Equipment","Machinery and Equipment",30.445989608764648,-23.245990753173828,"0d0b8def-631d-4fda-b03e-71f01db572fa",0.21000000000000005,1500000,1800000,2100000,9450000]
["81e26025-8a7e-485a-b96d-814b817bc7e2","Vehicle Lisencing & Reg","PC002003009000000000000000000000000000_00006","_","An efficient, effective and development-oriented public service","Growth","Infrastructure Development and Basic Service Delivery","Machinery and Equipment","Machinery and Equipment",30.445989608764648,-23.245990753173828,"0d0b8def-631d-4fda-b03e-71f01db572fa",0,7500000,9000000,9000000,6300000]
["84c380c3-3b7f-4f6e-b3e1-ca680365dc85","Waste Disposal Site Development","PC001002002001000000000000000000000000_00001","_","An efficient, competitive and responsive economic infrastructure network","Growth","Infrastructure Development and Basic Service Delivery","Solid Waste Infrastructure","Landfill Sites",30.392440795898438,-23.211053848266602,"0d0b8def-631d-4fda-b03e-71f01db572fa",1283486616.0900002,0,0,0,0]
["be26bea6-58e3-4497-b52c-0bf597208207","Access Roads to Tribal Offices","PC001002006001000000000000000000000000_00007","_","An efficient, competitive and responsive economic infrastructure network","Growth","Infrastructure Development and Basic Service Delivery","Roads Infrastructure","Roads",30.471889495849609,23.145221710205078,"3e530dd7-b913-492b-b632-d971cd9e4fa5",14489069.07,0,0,0,0]
["be26bea6-58e3-4497-b52c-0bf597208207","Access Roads to Tribal Offices","PC001002006001000000000000000000000000_00007","_","An efficient, competitive and responsive economic infrastructure network","Growth","Infrastructure Development and Basic Service Delivery","Roads Infrastructure","Roads",30.471889495849609,23.145221710205078,"3f1af2a7-52e6-431e-9b29-97b1fa96fb03",20961688.860000003,0,0,0,0]
["be26bea6-58e3-4497-b52c-0bf597208207","Access Roads to Tribal Offices","PC001002006001000000000000000000000000_00007","_","An efficient, competitive and responsive economic infrastructure network","Growth","Infrastructure Development and Basic Service Delivery","Roads Infrastructure","Roads",30.471889495849609,23.145221710205078,"87d619e1-38cf-4dee-b6ec-8419521faca7",11751666.360000001,0,0,0,0]
["be26bea6-58e3-4497-b52c-0bf597208207","Access Roads to Tribal Offices","PC001002006001000000000000000000000000_00007","_","An efficient, competitive and responsive economic infrastructure network","Growth","Infrastructure Development and Basic Service Delivery","Roads Infrastructure","Roads",30.471889495849609,23.145221710205078,"96b769bf-5ccc-47cb-a4a2-472e5a88f53e",5951344.9799999986,0,0,0,0]
["be26bea6-58e3-4497-b52c-0bf597208207","Access Roads to Tribal Offices","PC001002006001000000000000000000000000_00007","_","An efficient, competitive and responsive economic infrastructure network","Growth","Infrastructure Development and Basic Service Delivery","Roads Infrastructure","Roads",30.471889495849609,23.145221710205078,"c92bf118-48c8-4d9a-88e5-02ee82bc8c35",9470310.3600000013,0,0,0,0]
["be26bea6-58e3-4497-b52c-0bf597208207","ALTERNATIVE ROAD TO GIYANI FROM R81","PC001002006001000000000000000000000000_00010","_","An efficient, competitive and responsive economic infrastructure network","Growth","Infrastructure Development and Basic Service Delivery","Roads Infrastructure","Roads",30.445989608764648,-23.245990753173828,"0d0b8def-631d-4fda-b03e-71f01db572fa",75775254.86999999,750000,750000,0,37800000]
["be26bea6-58e3-4497-b52c-0bf597208207","Alternative route from Elim Road R578 to Giyani via Siyandhani","PC001002006001000000000000000000000000_00029","_","An efficient, competitive and responsive economic infrastructure network","Growth","Infrastructure Development and Basic Service Delivery","Roads Infrastructure","Roads",1257333,1112548,"0d0b8def-631d-4fda-b03e-71f01db572fa",0,600000,0,0,0]
["be26bea6-58e3-4497-b52c-0bf597208207","Bode Paving of Internal Streets","PC001002006001000000000000000000000000_00005","_","An efficient, competitive and responsive economic infrastructure network","Growth","Infrastructure Development and Basic Service Delivery","Roads Infrastructure","Roads",30.37445068359375,-23.20277214050293,"61e4bf4d-bea3-45e9-8728-0c9c929a5e19",0.21000000000000005,0,0,0,0]
["be26bea6-58e3-4497-b52c-0bf597208207","Construction of Car Pots (Civic centre ,Unigaz ,Testing Station and brick yard)","PC002003003001001000000000000000000000_00003","_","An efficient, effective and development-oriented public service","Growth","Infrastructure Development and Basic Service Delivery","Operational Buildings","Municipal Offices",2,1,"42510af3-3838-4a32-862e-379660192785",0,6000000,0,0,0]
["be26bea6-58e3-4497-b52c-0bf597208207","Giyani Section F Streets Phase 3","PC001002006001000000000000000000000000_00004","_","An efficient, competitive and responsive economic infrastructure network","Growth","Infrastructure Development and Basic Service Delivery","Roads Infrastructure","Roads",30.422449111938477,-23.172901153564453,"470cadee-ff6c-46d4-a0d2-f0017ec375fc",-1.0500000000000003,0,0,0,0]
["be26bea6-58e3-4497-b52c-0bf597208207","Hlomela upgrading from Gravel to Paving","PC001002006001000000000000000000000000_00033","_","An efficient, competitive and responsive economic infrastructure network","Growth","Infrastructure Development and Basic Service Delivery","Roads Infrastructure","Roads",123,12,"0d0b8def-631d-4fda-b03e-71f01db572fa",0,30325908,219274092,0,0]
["be26bea6-58e3-4497-b52c-0bf597208207","Hlomela upgrading from Gravel to Paving","PC001002006001000000000000000000000000_00033","_","An efficient, competitive and responsive economic infrastructure network","Growth","Infrastructure Development and Basic Service Delivery","Roads Infrastructure","Roads",123,12,"69a68dda-1a43-48a9-ba87-da9a2ee10f58",0,6000000,0,0,9000000]
["be26bea6-58e3-4497-b52c-0bf597208207","Homu 14B to 14A Upgrading from Gravel to Tar","PC001002006001000000000000000000000000_00002","_","An efficient, competitive and responsive economic infrastructure network","Growth","Infrastructure Development and Basic Service Delivery","Roads Infrastructure","Roads",30.474020004272461,-23.191303253173828,"78a4cf9a-667c-43cd-a0b8-6d9569d88d8c",0.21000000000000005,0,0,0,0]
["be26bea6-58e3-4497-b52c-0bf597208207","Makosha phase 2 upgrading from gravel to paving","PC001002006001000000000000000000000000_00029","_","An efficient, competitive and responsive economic infrastructure network","Growth","Infrastructure Development and Basic Service Delivery","Roads Infrastructure","Roads",-0.230712890625,5.9051502496004105E-2,"0c756f5f-d7c4-4594-b90e-49be9e655e85",0,12000000,295026804,60000000,9000000]
["be26bea6-58e3-4497-b52c-0bf597208207","Makosha Upgrading from Gravel to Paving","PC001002006001000000000000000000000000_00003","_","An efficient, competitive and responsive economic infrastructure network","Growth","Infrastructure Development and Basic Service Delivery","Roads Infrastructure","Roads",30.444568634033203,-23.150848388671875,"0c756f5f-d7c4-4594-b90e-49be9e655e85",-0.63000000000000034,0,0,0,0]
["be26bea6-58e3-4497-b52c-0bf597208207","Rehabilitation of Streets in All Sections","PC001001001006001000000000000000000000_00001","_","An efficient, competitive and responsive economic infrastructure network","Inclusion and access","Infrastructure Development and Basic Service Delivery",null,null,30.413181304931641,23.183664321899414,"0d0b8def-631d-4fda-b03e-71f01db572fa",4872000,0,0,0,0]
["be26bea6-58e3-4497-b52c-0bf597208207","Rehabilitation of Streets in All Sections","PC001001001006001000000000000000000000_00001","_","An efficient, competitive and responsive economic infrastructure network","Inclusion and access","Infrastructure Development and Basic Service Delivery","Roads Infrastructure","Roads",30.413181304931641,23.183664321899414,"0d0b8def-631d-4fda-b03e-71f01db572fa",14616000,0,0,0,0]
["be26bea6-58e3-4497-b52c-0bf597208207","Section E FROM GRAVEL TO TARR","PC001002006001000000000000000000000000_00014","_","An efficient, competitive and responsive economic infrastructure network","Growth","Infrastructure Development and Basic Service Delivery","Roads Infrastructure","Roads",0.2354000061750412,-0.2354000061750412,"8127b5b5-a3d3-4509-bade-f900f57d222b",354886766.69999993,0,0,0,247500000]
["be26bea6-58e3-4497-b52c-0bf597208207","Section E upgrading of 13km from gravel to paving","PC001002006001000000000000000000000000_00037","_","An efficient, competitive and responsive economic infrastructure network","Growth","Infrastructure Development and Basic Service Delivery","Roads Infrastructure","Roads",3,2,"8127b5b5-a3d3-4509-bade-f900f57d222b",0,12000000,480000000,480000000,1800000]
["be26bea6-58e3-4497-b52c-0bf597208207","Selawa upgrading of roads from gravel to paving","PC001002006001000000000000000000000000_00027","_","An efficient, competitive and responsive economic infrastructure network","Growth","Infrastructure Development and Basic Service Delivery","Roads Infrastructure","Roads",5568,2223,"c08bed4f-8360-4232-ba26-d81bcbaf81c3",13201805.159999995,1200000,0,0,275400000]
["be26bea6-58e3-4497-b52c-0bf597208207","Shawela Upgrading from gravel to paving","PC001002006001000000000000000000000000_00035","_","An efficient, competitive and responsive economic infrastructure network","Growth","Infrastructure Development and Basic Service Delivery","Roads Infrastructure","Roads",1,1,"ec418d3a-6552-40f1-b432-7714d64b556c",0,24000000,552000000,120000000,18000000]
["be26bea6-58e3-4497-b52c-0bf597208207","Shikhumba Upgrading from gravel to paving","PC001002006001000000000000000000000000_00033","_","An efficient, competitive and responsive economic infrastructure network","Growth","Infrastructure Development and Basic Service Delivery","Roads Infrastructure","Roads",-0.230712890625,5.9051502496004105E-2,"ec418d3a-6552-40f1-b432-7714d64b556c",0,554186112,0,0,241145496]
["be26bea6-58e3-4497-b52c-0bf597208207","Shimange Upgrading from gravel to paving","PC001002006001000000000000000000000000_00020","_","An efficient, competitive and responsive economic infrastructure network","Growth","Infrastructure Development and Basic Service Delivery","Roads Infrastructure","Roads",75412,5897,"c08bed4f-8360-4232-ba26-d81bcbaf81c3",0,0,0,0,41337570]
["be26bea6-58e3-4497-b52c-0bf597208207","Siyandhani Ring Road","PC001002006001000000000000000000000000_00028","_","An efficient, competitive and responsive economic infrastructure network","Growth","Infrastructure Development and Basic Service Delivery","Roads Infrastructure","Roads",-0.230712890625,5.9051502496004105E-2,"61e4bf4d-bea3-45e9-8728-0c9c929a5e19",0,378349224,0,0,117364248]
["be26bea6-58e3-4497-b52c-0bf597208207","SIYANDHANI-JIM NGHALALUME (ACCESS TO TOMU) REGRAVELLING & CULVERT BRIDGE","PC001002006001000000000000000000000000_00011","_","An efficient, competitive and responsive economic infrastructure network","Growth","Infrastructure Development and Basic Service Delivery","Roads Infrastructure","Roads",30.445989608764648,-23.245990753173828,"63828785-97c9-4eb6-90c2-107c84431b07",-0.21000000000000005,0,0,0,0]
["be26bea6-58e3-4497-b52c-0bf597208207","Upgrading of Nkhensani Access","PC001001002006003000000000000000000000_00001","_","An efficient, competitive and responsive economic infrastructure network","Inclusion and access","Infrastructure Development and Basic Service Delivery",null,null,30.423929214477539,-23.190595626831055,"0d0b8def-631d-4fda-b03e-71f01db572fa",3057600,0,0,0,0]
["be26bea6-58e3-4497-b52c-0bf597208207","Upgrading of Nkhensani Access","PC001001002006003000000000000000000000_00001","_","An efficient, competitive and responsive economic infrastructure network","Inclusion and access","Infrastructure Development and Basic Service Delivery","Roads Infrastructure","Road Furniture",30.423929214477539,-23.190595626831055,"0d0b8def-631d-4fda-b03e-71f01db572fa",9172800,0,0,0,0]
["be26bea6-58e3-4497-b52c-0bf597208207","Upgrading of Nkhensani Access","PC002003002001018000000000000000000000_00001","_","An efficient, effective and development-oriented public service","Growth","Infrastructure Development and Basic Service Delivery","Community Facilities","Stalls",30.423929214477539,-23.190595626831055,"0d0b8def-631d-4fda-b03e-71f01db572fa",0,13500000,300000000,0,1050000]
["be26bea6-58e3-4497-b52c-0bf597208207","WIP ACCOUNTS","PC001002001008000000000000000000000000_00016","_","An efficient, effective and development-oriented public service","Growth","Infrastructure Development and Basic Service Delivery","Electrical Infrastructure","LV Networks",12435,55552,"0d0b8def-631d-4fda-b03e-71f01db572fa",46956521.699999988,0,0,0,0]
["be26bea6-58e3-4497-b52c-0bf597208207","WIP ACCOUNTS","PC001002006001000000000000000000000000_00031","_","An efficient, competitive and responsive economic infrastructure network","Growth","Infrastructure Development and Basic Service Delivery","Roads Infrastructure","Roads",12435,55552,"0d0b8def-631d-4fda-b03e-71f01db572fa",-0.18000000000000002,0,0,0,0]
["be26bea6-58e3-4497-b52c-0bf597208207","WIP ACCOUNTS","PC001002006002000000000000000000000000_00032","_","An efficient, effective and development-oriented public service","Growth","Infrastructure Development and Basic Service Delivery","Roads Infrastructure","Road Structures",12435,55552,"0d0b8def-631d-4fda-b03e-71f01db572fa",15125315.939999999,0,0,0,0]
["be26bea6-58e3-4497-b52c-0bf597208207","WIP ACCOUNTS","PC001002006002000000000000000000000000_00033","_","An efficient, effective and development-oriented public service","Growth","Infrastructure Development and Basic Service Delivery","Roads Infrastructure","Road Structures",12435,55552,"0d0b8def-631d-4fda-b03e-71f01db572fa",16241152.140000006,0,0,0,0]
["be26bea6-58e3-4497-b52c-0bf597208207","WIP ACCOUNTS","PC001002006002000000000000000000000000_00034","_","An efficient, effective and development-oriented public service","Growth","Infrastructure Development and Basic Service Delivery","Roads Infrastructure","Road Structures",12435,55552,"0d0b8def-631d-4fda-b03e-71f01db572fa",2401782.12,0,0,0,0]
["be26bea6-58e3-4497-b52c-0bf597208207","WIP ACCOUNTS","PC001002006002000000000000000000000000_00036","_","An efficient, effective and development-oriented public service","Growth","Infrastructure Development and Basic Service Delivery","Roads Infrastructure","Road Structures",12435,55552,"0d0b8def-631d-4fda-b03e-71f01db572fa",8070214.5,0,0,0,0]
["be26bea6-58e3-4497-b52c-0bf597208207","Xikukwane Gravel To TARR(RAL)(D3804 & D3805)","PC001001002006001000000000000000000000_00003","_","An efficient, competitive and responsive economic infrastructure network","Inclusion and access","To develop an effective spatial framework that promotes integrated and sustainable development",null,null,30.423040390014648,-23.135786056518555,"0c756f5f-d7c4-4594-b90e-49be9e655e85",20836328.100000001,0,0,0,0]
["be26bea6-58e3-4497-b52c-0bf597208207","Xikukwane Gravel To TARR(RAL)(D3804 & D3805)","PC001001002006001000000000000000000000_00003","_","An efficient, competitive and responsive economic infrastructure network","Inclusion and access","To develop an effective spatial framework that promotes integrated and sustainable development","Roads Infrastructure","Roads",30.423040390014648,-23.135786056518555,"0c756f5f-d7c4-4594-b90e-49be9e655e85",62508984.299999975,0,0,0,0]
["c57d4368-34c4-4b96-8470-2264a2fa849c","Fleet and Machinery","PC002003009000000000000000000000000000_00001","_","An efficient, effective and development-oriented public service","Growth","Financial Viability","Machinery and Equipment","Machinery and Equipment",30.445989608764648,-23.245990753173828,"42510af3-3838-4a32-862e-379660192785",0,180000000,181500000,183000000,252000000]
["c57d4368-34c4-4b96-8470-2264a2fa849c","Fleet and Machinery","PC002003010000000000000000000000000000_00001","_","An efficient, effective and development-oriented public service","Growth","Financial Viability","Transport Assets","Transport Assets",30.445989608764648,-23.245990753173828,"42510af3-3838-4a32-862e-379660192785",0,30000000,31500000,33000000,42000000]
["c80f9188-81ce-4ffe-8a38-098a987032df","Shimange Upgrading from gravel to paving",null,"_",null,null,"Infrastructure Development and Basic Service Delivery",null,null,75412,5897,"c08bed4f-8360-4232-ba26-d81bcbaf81c3",0,0,0,0,2755838]
["c91683cc-ca5a-4118-b55f-132ec0c3bf1e","Refurbishment of Shivulani Sports Centre","PC002002002002002002000000000000000000_00004","_","A long and healthy life for all South Africans","Inclusion and access","Infrastructure Development and Basic Service Delivery",null,null,30.424520492553711,23.075927734375,"7dbf5cb6-c47a-4c39-ae12-ca7e2aab8f77",33481375.859999996,0,0,0,24179785]
["c91683cc-ca5a-4118-b55f-132ec0c3bf1e","Refurbishment of Shivulani Sports Centre","PC002002002002002002000000000000000000_00004","_","A long and healthy life for all South Africans","Inclusion and access","Infrastructure Development and Basic Service Delivery","Sport and Recreation Facilities","Outdoor Facilities",30.424520492553711,23.075927734375,"7dbf5cb6-c47a-4c39-ae12-ca7e2aab8f77",100444127.58000003,0,0,0,72539355]
["c91683cc-ca5a-4118-b55f-132ec0c3bf1e","Refurbishment of Sporting Facilities (Gawula)","PC002002002002002002000000000000000000_00003","_","A long and healthy life for all South Africans","Inclusion and access","Infrastructure Development and Basic Service Delivery",null,null,30.532768249511719,23.184122085571289,"87d619e1-38cf-4dee-b6ec-8419521faca7",25429001.940000005,20000000,0,0,0]
["c91683cc-ca5a-4118-b55f-132ec0c3bf1e","Refurbishment of Sporting Facilities (Gawula)","PC002002002002002002000000000000000000_00003","_","A long and healthy life for all South Africans","Inclusion and access","Infrastructure Development and Basic Service Delivery","Sport and Recreation Facilities","Outdoor Facilities",30.532768249511719,23.184122085571289,"87d619e1-38cf-4dee-b6ec-8419521faca7",76287005.820000008,60000000,0,0,0]
["d001b930-0f88-4eb0-bcde-e8736dbf200e","Legal ","PC002003007002006000000000000000000000_00001","_","An efficient, effective and development-oriented public service","Growth","Institutional Development and Transformation","Licences and Rights","Unspecified",30.445989608764648,-23.245990753173828,"0d0b8def-631d-4fda-b03e-71f01db572fa",0,1650000,1800000,1950000,2100000]
["d0a8c200-23d4-4309-8ea5-97922584a36d","Budget & Reporting","PC002003005000000000000000000000000000_00002","_","An efficient, effective and development-oriented public service","Growth","Financial Viability","Furniture and Office Equipment","Furniture and Office Equipment",30.445989608764648,-23.245990753173828,"0d0b8def-631d-4fda-b03e-71f01db572fa",1.8900000000000006,0,0,0,0]
["d0a8c200-23d4-4309-8ea5-97922584a36d","Electricity Operations ","PC002003005000000000000000000000000000_00003","_","An efficient, effective and development-oriented public service","Growth","Institutional Development and Transformation","Furniture and Office Equipment","Furniture and Office Equipment",30.445989608764648,-23.245990753173828,"42510af3-3838-4a32-862e-379660192785",0,30000000,45000000,45000000,8400000]
["d0a8c200-23d4-4309-8ea5-97922584a36d","Generator","PC002003009000000000000000000000000000_00013","_","An efficient, effective and development-oriented public service","Growth","Infrastructure Development and Basic Service Delivery","Machinery and Equipment","Machinery and Equipment",55555,12365,"42510af3-3838-4a32-862e-379660192785",0,48000000,24000000,24000000,90000]
["d0a8c200-23d4-4309-8ea5-97922584a36d","SIYANDHANI-JIM NGHALALUME (ACCESS TO TOMU) REGRAVELLING & CULVERT BRIDGE","PC001002001007000000000000000000000000_00001","_","An efficient, competitive and responsive economic infrastructure network","Growth","Infrastructure Development and Basic Service Delivery","Electrical Infrastructure","MV Networks",30.445989608764648,-23.245990753173828,"0d0b8def-631d-4fda-b03e-71f01db572fa",-0.21000000000000005,0,0,0,0]
["d0a8c200-23d4-4309-8ea5-97922584a36d","WIP ACCOUNTS","PC001002001008000000000000000000000000_00005","_","An efficient, competitive and responsive economic infrastructure network","Growth","Infrastructure Development and Basic Service Delivery","Electrical Infrastructure","LV Networks",12435,55552,"0d0b8def-631d-4fda-b03e-71f01db572fa",0.15,0,0,0,0]
["d0a8c200-23d4-4309-8ea5-97922584a36d","WIP ACCOUNTS","PC001002001008000000000000000000000000_00009","_","An efficient, competitive and responsive economic infrastructure network","Growth","Infrastructure Development and Basic Service Delivery","Electrical Infrastructure","LV Networks",12435,55552,"0d0b8def-631d-4fda-b03e-71f01db572fa",-1.0500000000000005,0,0,0,0]
["d0a8c200-23d4-4309-8ea5-97922584a36d","WIP ACCOUNTS","PC001002001008000000000000000000000000_00011","_","An efficient, competitive and responsive economic infrastructure network","Growth","Infrastructure Development and Basic Service Delivery","Electrical Infrastructure","LV Networks",12435,55552,"0d0b8def-631d-4fda-b03e-71f01db572fa",0.03,0,0,0,0]
["d0a8c200-23d4-4309-8ea5-97922584a36d","WIP ACCOUNTS","PC001002001008000000000000000000000000_00014","_","An efficient, competitive and responsive economic infrastructure network","Growth","Infrastructure Development and Basic Service Delivery","Electrical Infrastructure","LV Networks",12435,55552,"0d0b8def-631d-4fda-b03e-71f01db572fa",-0.21000000000000002,0,0,0,0]
["e65f548d-c3fb-4eb6-b042-e507e9eec386","Servicing of 539 sites",null,"_",null,null,"Infrastructure Development and Basic Service Delivery",null,null,7899445,222222336,"0d0b8def-631d-4fda-b03e-71f01db572fa",1757505.09,1000000,0,0,0]
["e65f548d-c3fb-4eb6-b042-e507e9eec386","Servicing of 539 sites","PC001002006001000000000000000000000000_00021","_","An efficient, competitive and responsive economic infrastructure network","Growth","Infrastructure Development and Basic Service Delivery","Roads Infrastructure","Roads",7899445,222222336,"0d0b8def-631d-4fda-b03e-71f01db572fa",26362576.350000001,9000000,0,0,0]
["f3a9aaa9-529a-40d1-b981-722b2f743267","Information Technology","PC001002009002000000000000000000000000_00001","_","An efficient, competitive and responsive economic infrastructure network","Growth","Institutional Development and Transformation","Information and Communication Infrastructure","Core Layers",30.445989608764648,-23.245990753173828,"42510af3-3838-4a32-862e-379660192785",2.1000000000000005,0,0,0,0]
["f3a9aaa9-529a-40d1-b981-722b2f743267","Information Technology","PC002003004000000000000000000000000000_00001","_","An efficient, effective and development-oriented public service","Growth","Institutional Development and Transformation","Computer Equipment","Computer Equipment",30.445989608764648,-23.245990753173828,"42510af3-3838-4a32-862e-379660192785",0,9000000,9150000,9300000,6300000]
["f3a9aaa9-529a-40d1-b981-722b2f743267","Information Technology","PC002003004000000000000000000000000000_00005","_","An efficient, effective and development-oriented public service","Growth","Institutional Development and Transformation","Computer Equipment","Computer Equipment",30.445989608764648,-23.245990753173828,"0d0b8def-631d-4fda-b03e-71f01db572fa",0,24000000,25200000,26400000,5400000]
["f3a9aaa9-529a-40d1-b981-722b2f743267","Information Technology","PC002003007002004000000000000000000000_00001","_","An efficient, effective and development-oriented public service","Growth","Institutional Development and Transformation","Licences and Rights","Computer Software and Applications",30.445989608764648,-23.245990753173828,"0d0b8def-631d-4fda-b03e-71f01db572fa",0,6000000,6120000,6240000,5400000]
["f3a9aaa9-529a-40d1-b981-722b2f743267","PPE Take On Accounts","PC002003004000000000000000000000000000_00004","_","An efficient, effective and development-oriented public service","Growth","Financial Viability","Computer Equipment","Computer Equipment",30.445989608764648,-23.245990753173828,"0d0b8def-631d-4fda-b03e-71f01db572fa",0,-6139287,0,0,33460713]
["f3a9aaa9-529a-40d1-b981-722b2f743267","PPE Take On Accounts","PC002003007002004000000000000000000000_00002","_","An efficient, effective and development-oriented public service","Growth","Financial Viability","Licences and Rights","Computer Software and Applications",30.445989608764648,-23.245990753173828,"0d0b8def-631d-4fda-b03e-71f01db572fa",0,11711457,0,0,8111457]
["0f52d9e5-907f-4d9f-934f-57dc012524d6","210 - Capital Project - Internally Funded"]
["0f52d9e5-907f-4d9f-934f-57dc012524d6","210 - Capital Project - Internally Funded"]
["0f52d9e5-907f-4d9f-934f-57dc012524d6","210 - Capital Project - Internally Funded"]
["0f52d9e5-907f-4d9f-934f-57dc012524d6","210 - Capital Project - Internally Funded"]
["0f52d9e5-907f-4d9f-934f-57dc012524d6","210 - Capital Project - Internally Funded"]
["0f52d9e5-907f-4d9f-934f-57dc012524d6","210 - Capital Project - Internally Funded"]
["0f52d9e5-907f-4d9f-934f-57dc012524d6","210 - Capital Project - Internally Funded"]
["0f52d9e5-907f-4d9f-934f-57dc012524d6","210 - Capital Project - Internally Funded"]
["0f52d9e5-907f-4d9f-934f-57dc012524d6","210 - Capital Project - Internally Funded"]
["0f52d9e5-907f-4d9f-934f-57dc012524d6","210 - Capital Project - Internally Funded"]
["0f52d9e5-907f-4d9f-934f-57dc012524d6","210 - Capital Project - Internally Funded"]
["0f52d9e5-907f-4d9f-934f-57dc012524d6","210 - Capital Project - Internally Funded"]
["0f52d9e5-907f-4d9f-934f-57dc012524d6","210 - Capital Project - Internally Funded"]
["0f52d9e5-907f-4d9f-934f-57dc012524d6","210 - Capital Project - Internally Funded"]
["0f52d9e5-907f-4d9f-934f-57dc012524d6","210 - Capital Project - Internally Funded"]
["0f52d9e5-907f-4d9f-934f-57dc012524d6","210 - Capital Project - Internally Funded"]
["0f52d9e5-907f-4d9f-934f-57dc012524d6","210 - Capital Project - Internally Funded"]
["0f52d9e5-907f-4d9f-934f-57dc012524d6","210 - Capital Project - Internally Funded"]
["0f52d9e5-907f-4d9f-934f-57dc012524d6","210 - Capital Project - Internally Funded"]
["0f52d9e5-907f-4d9f-934f-57dc012524d6","210 - Capital Project - Internally Funded"]
["0f52d9e5-907f-4d9f-934f-57dc012524d6","210 - Capital Project - Internally Funded"]
["0f52d9e5-907f-4d9f-934f-57dc012524d6","210 - Capital Project - Internally Funded"]
["0f52d9e5-907f-4d9f-934f-57dc012524d6","210 - Capital Project - Internally Funded"]
["0f52d9e5-907f-4d9f-934f-57dc012524d6","210 - Capital Project - Internally Funded"]
["0f52d9e5-907f-4d9f-934f-57dc012524d6","210 - Capital Project - Internally Funded"]
["0f52d9e5-907f-4d9f-934f-57dc012524d6","210 - Capital Project - Internally Funded"]
["15e7fc9a-7613-41bd-b0e9-57024945d7d9","225 - Capital - Internally Funded"]
["15e7fc9a-7613-41bd-b0e9-57024945d7d9","225 - Capital - Internally Funded"]
["35f914ed-b099-4a36-890d-69e60fc0e57c","410 - Capital Project - Internally Funded"]
["35f914ed-b099-4a36-890d-69e60fc0e57c","MIG projects"]
["35f914ed-b099-4a36-890d-69e60fc0e57c","MIG projects"]
["39043a95-c08d-4bfc-bce2-b4e1763b0d24","400 - Capital Project - Internally Funded"]
["39043a95-c08d-4bfc-bce2-b4e1763b0d24","610 - Capital Project - Internally Funded"]
["39043a95-c08d-4bfc-bce2-b4e1763b0d24","610 - Capital Project - Internally Funded"]
["39043a95-c08d-4bfc-bce2-b4e1763b0d24","610 - Capital Project - Internally Funded"]
["39043a95-c08d-4bfc-bce2-b4e1763b0d24","610 - Capital Project - Internally Funded"]
["39043a95-c08d-4bfc-bce2-b4e1763b0d24","610 - Capital Project - Internally Funded"]
["5efb28bb-c786-49af-8a50-44a8b229bf7f","MIG projects"]
["5efb28bb-c786-49af-8a50-44a8b229bf7f","MIG projects"]
["600af0bf-7b13-4030-8d6a-6496e24eb507","225 - Capital - Internally Funded"]
["600af0bf-7b13-4030-8d6a-6496e24eb507","225 - Capital - Internally Funded"]
["600af0bf-7b13-4030-8d6a-6496e24eb507","225 - Capital - Internally Funded"]
["600af0bf-7b13-4030-8d6a-6496e24eb507","225 - Capital - Internally Funded"]
["600af0bf-7b13-4030-8d6a-6496e24eb507","225 - Capital - Internally Funded"]
["67347610-1db2-421f-a89a-f87e772911eb","201 - Capital Project - Internally Funded"]
["67347610-1db2-421f-a89a-f87e772911eb","201 - Capital Project - Internally Funded"]
["67347610-1db2-421f-a89a-f87e772911eb","201 - Capital Project - Internally Funded"]
["67347610-1db2-421f-a89a-f87e772911eb","201 - Capital Project - Internally Funded"]
["67347610-1db2-421f-a89a-f87e772911eb","201 - Capital Project - Internally Funded"]
["67347610-1db2-421f-a89a-f87e772911eb","201 - Capital Project - Internally Funded"]
["67347610-1db2-421f-a89a-f87e772911eb","PPE - Opening balances "]
["67347610-1db2-421f-a89a-f87e772911eb","PPE - Opening balances "]
["67347610-1db2-421f-a89a-f87e772911eb","PPE - Opening balances "]
["67347610-1db2-421f-a89a-f87e772911eb","PPE - Opening balances "]
["67347610-1db2-421f-a89a-f87e772911eb","PPE - Opening balances "]
["67347610-1db2-421f-a89a-f87e772911eb","PPE - Opening balances "]
["67347610-1db2-421f-a89a-f87e772911eb","PPE - Opening balances "]
["67347610-1db2-421f-a89a-f87e772911eb","PPE - Opening balances "]
["67347610-1db2-421f-a89a-f87e772911eb","PPE - Opening balances "]
["67347610-1db2-421f-a89a-f87e772911eb","PPE - Opening balances "]
["67347610-1db2-421f-a89a-f87e772911eb","PPE - Opening balances "]
["67347610-1db2-421f-a89a-f87e772911eb","PPE - Opening balances "]
["67347610-1db2-421f-a89a-f87e772911eb","PPE - Opening balances "]
["67347610-1db2-421f-a89a-f87e772911eb","PPE - Opening balances "]
["67347610-1db2-421f-a89a-f87e772911eb","Take on "]
["67347610-1db2-421f-a89a-f87e772911eb","Take on "]
["67347610-1db2-421f-a89a-f87e772911eb","Take on "]
["67347610-1db2-421f-a89a-f87e772911eb","Take on "]
["67347610-1db2-421f-a89a-f87e772911eb","Take on "]
["67347610-1db2-421f-a89a-f87e772911eb","Take on "]
["67347610-1db2-421f-a89a-f87e772911eb","Take on "]
["67347610-1db2-421f-a89a-f87e772911eb","Take on "]
["67347610-1db2-421f-a89a-f87e772911eb","Take on "]
["67347610-1db2-421f-a89a-f87e772911eb","Take on "]
["67347610-1db2-421f-a89a-f87e772911eb","Take on "]
["67347610-1db2-421f-a89a-f87e772911eb","Take on "]
["6fa14a15-a164-42cb-a263-a0b007852bc5","225 - Capital - Internally Funded"]
["6fa14a15-a164-42cb-a263-a0b007852bc5","400 - Capital Project - Internally Funded"]
["6fa14a15-a164-42cb-a263-a0b007852bc5","400 - Capital Project - Internally Funded"]
["6fa14a15-a164-42cb-a263-a0b007852bc5","400 - Capital Project - Internally Funded"]
["6fa14a15-a164-42cb-a263-a0b007852bc5","400 - Capital Project - Internally Funded"]
["6fa14a15-a164-42cb-a263-a0b007852bc5","410 - Rental Received"]
["6fa14a15-a164-42cb-a263-a0b007852bc5","710 - Capital Projects- Internally funded"]
["6fa14a15-a164-42cb-a263-a0b007852bc5","MIG projects"]
["6fa14a15-a164-42cb-a263-a0b007852bc5","MIG projects"]
["6fa14a15-a164-42cb-a263-a0b007852bc5","MIG projects"]
["6fa14a15-a164-42cb-a263-a0b007852bc5","MIG projects"]
["6fa14a15-a164-42cb-a263-a0b007852bc5","MIG projects"]
["6fa14a15-a164-42cb-a263-a0b007852bc5","MIG projects"]
["6fa14a15-a164-42cb-a263-a0b007852bc5","MIG projects"]
["6fa14a15-a164-42cb-a263-a0b007852bc5","MIG projects"]
["6fa14a15-a164-42cb-a263-a0b007852bc5","MIG projects"]
["6fa14a15-a164-42cb-a263-a0b007852bc5","MIG projects"]
["6fa14a15-a164-42cb-a263-a0b007852bc5","MIG projects"]
["6fa14a15-a164-42cb-a263-a0b007852bc5","MIG projects"]
["6fa14a15-a164-42cb-a263-a0b007852bc5","MIG projects"]
["73e301d2-83cd-4a9c-a2e5-540f32ffda98","210 - Capital Project - Internally Funded"]
["92aebb43-91da-45ab-a98d-95be1511fb78","405- Capital Project - Internally Funded"]
["92aebb43-91da-45ab-a98d-95be1511fb78","405- Capital Project - Internally Funded"]
["a547e78a-9504-4d9a-bcea-6dc723b7bf4a","600 - Capital Project - Internally Funded"]
["a547e78a-9504-4d9a-bcea-6dc723b7bf4a","600 - Capital Project - Internally Funded"]
["a547e78a-9504-4d9a-bcea-6dc723b7bf4a","600 - Capital Project - Internally Funded"]
["a547e78a-9504-4d9a-bcea-6dc723b7bf4a","600 - Capital Project - Internally Funded"]
["a547e78a-9504-4d9a-bcea-6dc723b7bf4a","600 - Capital Project - Internally Funded"]
["a547e78a-9504-4d9a-bcea-6dc723b7bf4a","600 - Capital Project - Internally Funded"]
["a547e78a-9504-4d9a-bcea-6dc723b7bf4a","600 - Capital Project - Internally Funded"]
["b2673700-28fd-4a89-ba14-65993216e3f7","225 - Capital - Internally Funded"]
["ba7a3e30-8c47-498d-a65a-3b5b9b1a77d7","400 - Capital Project - Internally Funded"]
["be26bea6-58e3-4497-b52c-0bf597208207","225 - Capital - Internally Funded"]
["be26bea6-58e3-4497-b52c-0bf597208207","225 - Capital - Internally Funded"]
["be26bea6-58e3-4497-b52c-0bf597208207","225 - Capital - Internally Funded"]
["be26bea6-58e3-4497-b52c-0bf597208207","225 - Capital - Internally Funded"]
["be26bea6-58e3-4497-b52c-0bf597208207","225 - Capital - Internally Funded"]
["be26bea6-58e3-4497-b52c-0bf597208207","225 - Capital - Internally Funded"]
["be26bea6-58e3-4497-b52c-0bf597208207","225 - Capital - Internally Funded"]
["be26bea6-58e3-4497-b52c-0bf597208207","225 - Capital - Internally Funded"]
["be26bea6-58e3-4497-b52c-0bf597208207","225 - Capital - Internally Funded"]
["be26bea6-58e3-4497-b52c-0bf597208207","225 - Capital - Internally Funded"]
["be26bea6-58e3-4497-b52c-0bf597208207","225 - Capital - Internally Funded"]
["be26bea6-58e3-4497-b52c-0bf597208207","225 - Capital - Internally Funded"]
["be26bea6-58e3-4497-b52c-0bf597208207","225 - Capital - Internally Funded"]
["be26bea6-58e3-4497-b52c-0bf597208207","225 - Capital - Internally Funded"]
["be26bea6-58e3-4497-b52c-0bf597208207","225 - Capital - Internally Funded"]
["be26bea6-58e3-4497-b52c-0bf597208207","225 - Capital - Internally Funded"]
["be26bea6-58e3-4497-b52c-0bf597208207","225 - Capital - Internally Funded"]
["be26bea6-58e3-4497-b52c-0bf597208207","225 - Capital - Internally Funded"]
["be26bea6-58e3-4497-b52c-0bf597208207","225 - Capital - Internally Funded"]
["be26bea6-58e3-4497-b52c-0bf597208207","225 - Capital - Internally Funded"]
["be26bea6-58e3-4497-b52c-0bf597208207","225 - Capital - Internally Funded"]
["be26bea6-58e3-4497-b52c-0bf597208207","225 - Capital - Internally Funded"]
["be26bea6-58e3-4497-b52c-0bf597208207","225 - Capital - Internally Funded"]
["be26bea6-58e3-4497-b52c-0bf597208207","225 - Capital - Internally Funded"]
["be26bea6-58e3-4497-b52c-0bf597208207","225 - Capital - Internally Funded"]
["be26bea6-58e3-4497-b52c-0bf597208207","225 - Capital - Internally Funded"]
["be26bea6-58e3-4497-b52c-0bf597208207","225 - Capital - Internally Funded"]
["be26bea6-58e3-4497-b52c-0bf597208207","225 - Capital - Internally Funded"]
["be26bea6-58e3-4497-b52c-0bf597208207","225 - Capital - Internally Funded"]
["be26bea6-58e3-4497-b52c-0bf597208207","225 - Capital - Internally Funded"]
["be26bea6-58e3-4497-b52c-0bf597208207","225 - Capital - Internally Funded"]
["be26bea6-58e3-4497-b52c-0bf597208207","225 - Capital - Internally Funded"]
["be26bea6-58e3-4497-b52c-0bf597208207","225 - Capital - Internally Funded"]
["be26bea6-58e3-4497-b52c-0bf597208207","225 - Capital - Internally Funded"]
["be26bea6-58e3-4497-b52c-0bf597208207","225 - Capital - Internally Funded"]
["be26bea6-58e3-4497-b52c-0bf597208207","225 - Capital - Internally Funded"]
["be26bea6-58e3-4497-b52c-0bf597208207","225 - Capital - Internally Funded"]
["be26bea6-58e3-4497-b52c-0bf597208207","225 - Capital - Internally Funded"]
["be26bea6-58e3-4497-b52c-0bf597208207","225 - Capital - Internally Funded"]
["be26bea6-58e3-4497-b52c-0bf597208207","225 - Capital - Internally Funded"]
["be26bea6-58e3-4497-b52c-0bf597208207","225 - Capital - Internally Funded"]
["be26bea6-58e3-4497-b52c-0bf597208207","900 - Capital - Internally Funded"]
["be26bea6-58e3-4497-b52c-0bf597208207","900 - Capital - Internally Funded"]
["be26bea6-58e3-4497-b52c-0bf597208207","900 - Capital - Internally Funded"]
["be26bea6-58e3-4497-b52c-0bf597208207","900 - Capital - Internally Funded"]
["be26bea6-58e3-4497-b52c-0bf597208207","900 - Capital - Internally Funded"]
["be26bea6-58e3-4497-b52c-0bf597208207","900 - Capital - Internally Funded"]
["be26bea6-58e3-4497-b52c-0bf597208207","900 - Capital - Internally Funded"]
["be26bea6-58e3-4497-b52c-0bf597208207","900 - Capital - Internally Funded"]
["be26bea6-58e3-4497-b52c-0bf597208207","900 - Capital - Internally Funded"]
["be26bea6-58e3-4497-b52c-0bf597208207","900 - Capital - Internally Funded"]
["be26bea6-58e3-4497-b52c-0bf597208207","MIG projects"]
["be26bea6-58e3-4497-b52c-0bf597208207","MIG projects"]
["be26bea6-58e3-4497-b52c-0bf597208207","MIG projects"]
["be26bea6-58e3-4497-b52c-0bf597208207","MIG projects"]
["be26bea6-58e3-4497-b52c-0bf597208207","MIG projects"]
["be26bea6-58e3-4497-b52c-0bf597208207","MIG projects"]
["be26bea6-58e3-4497-b52c-0bf597208207","MIG projects"]
["be26bea6-58e3-4497-b52c-0bf597208207","MIG projects"]
["be26bea6-58e3-4497-b52c-0bf597208207","MIG projects"]
["be26bea6-58e3-4497-b52c-0bf597208207","MIG projects"]
["be26bea6-58e3-4497-b52c-0bf597208207","MIG projects"]
["be26bea6-58e3-4497-b52c-0bf597208207","MIG projects"]
["be26bea6-58e3-4497-b52c-0bf597208207","MIG projects"]
["be26bea6-58e3-4497-b52c-0bf597208207","MIG projects"]
["be26bea6-58e3-4497-b52c-0bf597208207","MIG projects"]
["be26bea6-58e3-4497-b52c-0bf597208207","MIG projects"]
["be26bea6-58e3-4497-b52c-0bf597208207","MIG projects"]
["be26bea6-58e3-4497-b52c-0bf597208207","MIG projects"]
["be26bea6-58e3-4497-b52c-0bf597208207","MIG projects"]
["be26bea6-58e3-4497-b52c-0bf597208207","MIG projects"]
["be26bea6-58e3-4497-b52c-0bf597208207","MIG projects"]
["be26bea6-58e3-4497-b52c-0bf597208207","MIG projects"]
["be26bea6-58e3-4497-b52c-0bf597208207","MIG projects"]
["be26bea6-58e3-4497-b52c-0bf597208207","MIG projects"]
["be26bea6-58e3-4497-b52c-0bf597208207","MIG projects"]
["be26bea6-58e3-4497-b52c-0bf597208207","MIG projects"]
["be26bea6-58e3-4497-b52c-0bf597208207","MIG projects"]
["be26bea6-58e3-4497-b52c-0bf597208207","MIG projects"]
["be26bea6-58e3-4497-b52c-0bf597208207","MIG projects"]
["be26bea6-58e3-4497-b52c-0bf597208207","MIG projects"]
["be26bea6-58e3-4497-b52c-0bf597208207","MIG projects"]
["be26bea6-58e3-4497-b52c-0bf597208207","PPE - Opening balances "]
["c57d4368-34c4-4b96-8470-2264a2fa849c","210 - Capital Project - Internally Funded"]
["c57d4368-34c4-4b96-8470-2264a2fa849c","210 - Capital Project - Internally Funded"]
["d322a6d8-8a77-4f3e-b409-e49df0b85989","100 - Capital - Internally Funded"]
["d322a6d8-8a77-4f3e-b409-e49df0b85989","100 - Capital - Internally Funded"]
["d89462ad-3491-44f4-8960-a2b5f7475e9c","225 - Capital - Internally Funded"]
["d89462ad-3491-44f4-8960-a2b5f7475e9c","425- Capital Project - Internally Funded"]
["e38be026-aa91-4710-9bdc-3b0f3755cc1a","225 - Capital - Internally Funded"]
["e38be026-aa91-4710-9bdc-3b0f3755cc1a","225 - Capital - Internally Funded"]
["e38be026-aa91-4710-9bdc-3b0f3755cc1a","225 - Capital - Internally Funded"]
["e38be026-aa91-4710-9bdc-3b0f3755cc1a","225 - Capital - Internally Funded"]
["e38be026-aa91-4710-9bdc-3b0f3755cc1a","225 - Capital - Internally Funded"]
["e38be026-aa91-4710-9bdc-3b0f3755cc1a","225 - Capital - Internally Funded"]
["e38be026-aa91-4710-9bdc-3b0f3755cc1a","430 - Capital Project - Internally Funded"]
["e38be026-aa91-4710-9bdc-3b0f3755cc1a","430 - Capital Project - Internally Funded"]
["e38be026-aa91-4710-9bdc-3b0f3755cc1a","430 - Capital Project - Internally Funded"]
["e38be026-aa91-4710-9bdc-3b0f3755cc1a","430 - Capital Project - Internally Funded"]
["e38be026-aa91-4710-9bdc-3b0f3755cc1a","900 - Capital - Internally Funded"]
["e63908e9-4e7e-4455-ad95-2721683b34a9","MIG projects"]
["e63908e9-4e7e-4455-ad95-2721683b34a9","MIG projects"]
["e65f548d-c3fb-4eb6-b042-e507e9eec386","215 - Internally funded"]
["e786cb3f-4469-4006-b4de-43a60322eeaf","225 - Capital - Internally Funded"]
["e786cb3f-4469-4006-b4de-43a60322eeaf","225 - Capital - Internally Funded"]
["e786cb3f-4469-4006-b4de-43a60322eeaf","610 - Capital Project - Internally Funded"]
["e786cb3f-4469-4006-b4de-43a60322eeaf","610 - Capital Project - Internally Funded","PC001001002006001000000000000000000000_00002","_","An efficient, competitive and responsive economic infrastructure network","Inclusion and access","Provision of sustainable integrated infrastructure and services","Roads Infrastructure","Roads",0,0,"59a668dc-fecd-4836-8d9c-4ed1e52fa5b6",0,-97128000,-113481567,-139194000,-105321114]
["e786cb3f-4469-4006-b4de-43a60322eeaf","610 - Capital Project - Internally Funded","PC001001002006001000000000000000000000_00003","_","An efficient, competitive and responsive economic infrastructure network","Inclusion and access","Provision of sustainable integrated infrastructure and services","Roads Infrastructure","Roads",31,23,"6192fb10-56b3-4aac-a4a3-bf37925fff52",0,64752000,45766800,0,24593466]
["e786cb3f-4469-4006-b4de-43a60322eeaf","610 - Capital Project - Internally Funded","PC001002007002000000000000000000000000_00001","_","An efficient, competitive and responsive economic infrastructure network","Growth","Provision of sustainable integrated infrastructure and services","Storm Water Infrastructure","Storm water Conveyance",31.14069938659668,23.942300796508789,"59a668dc-fecd-4836-8d9c-4ed1e52fa5b6",0,0,0,124200000,0]
["e786cb3f-4469-4006-b4de-43a60322eeaf","610 - Capital Project - Internally Funded",null,"_","An efficient, competitive and responsive economic infrastructure network","Inclusion and access","Provision of sustainable integrated infrastructure and services",null,null,0,0,"59a668dc-fecd-4836-8d9c-4ed1e52fa5b6",0,0,0,0,11400000]
["e8aba1cd-7bec-4426-97e0-6a04f2677ea8","Take on ","PC001002007002000000000000000000000000_00002","_","An efficient, competitive and responsive economic infrastructure network","Growth","Provision of sustainable integrated infrastructure and services","Storm Water Infrastructure","Storm water Conveyance",-1.0237892866134644,0.1242072656750679,"35c416e4-f4d9-4fb2-98c3-b6676daa3010",0,30000000,0,0,0]
["f3333fef-376f-4d03-b158-f7050b66056d","100 - Capital - Internally Funded","PC001002001007000000000000000000000000_00009","_","An efficient, competitive and responsive economic infrastructure network","Growth","Provision of sustainable integrated infrastructure and services","Electrical Infrastructure","MV Networks",1.0000000474974513E-3,1.0000000474974513E-3,"972b2cb4-ece9-4945-b1cb-97457a15df88",0,9000000,0,0,0]
["f3333fef-376f-4d03-b158-f7050b66056d","100 - Capital - Internally Funded",null,"_","A long and healthy life for all South Africans","Growth","Provision of sustainable integrated infrastructure and services",null,null,31,23,"59a668dc-fecd-4836-8d9c-4ed1e52fa5b6",0,0,0,0,-27538479]
["f3a9aaa9-529a-40d1-b981-722b2f743267","210 - Capital Project - Internally Funded",null,"_",null,null,"Improve financial viability",null,null,0,0,"59a668dc-fecd-4836-8d9c-4ed1e52fa5b6",0,-124764000,-72000000,-75228000,0]
["f3a9aaa9-529a-40d1-b981-722b2f743267","210 - Capital Project - Internally Funded","PC001002001007000000000000000000000000_00005","_","An efficient, competitive and responsive economic infrastructure network","Growth","Provision of sustainable integrated infrastructure and services","Electrical Infrastructure","MV Networks",1.0000000474974513E-3,1.0000000474974513E-3,"80735704-fb2c-44fb-ac82-83821374da85",0,48000000,72000000,75228000,0]
["f3a9aaa9-529a-40d1-b981-722b2f743267","210 - Capital Project - Internally Funded","PC001001002006001000000000000000000000_00003","_","An efficient, competitive and responsive economic infrastructure network","Inclusion and access","Provision of sustainable integrated infrastructure and services","Roads Infrastructure","Roads",31,23,"59a668dc-fecd-4836-8d9c-4ed1e52fa5b6",0,0,0,0,-36890199]
["f3a9aaa9-529a-40d1-b981-722b2f743267","210 - Capital Project - Internally Funded",null,"_","An efficient, competitive and responsive economic infrastructure network","Inclusion and access","Provision of sustainable integrated infrastructure and services",null,null,0,0,"59a668dc-fecd-4836-8d9c-4ed1e52fa5b6",0,0,0,0,-11400000]
["f3a9aaa9-529a-40d1-b981-722b2f743267","210 - Capital Project - Internally Funded","PC001001002006002000000000000000000000_00001","_","An efficient, competitive and responsive economic infrastructure network","Inclusion and access","Provision of sustainable integrated infrastructure and services",null,null,31.14069938659668,23.942300796508789,"5a957034-016b-49bf-933c-c35778be7e02",0,0,0,0,9418326]
["67347610-1db2-421f-a89a-f87e772911eb","CAPEX Electrification of Sebera - Technical services","PC001002001008000000000000000000000000_00001","_","An efficient, competitive and responsive economic infrastructure network","Growth","Provision of sustainable integrated infrastructure and services","Electrical Infrastructure","LV Networks",31.14069938659668,23.942300796508789,"59a668dc-fecd-4836-8d9c-4ed1e52fa5b6",0,0,0,0,-162000000]
["67347610-1db2-421f-a89a-f87e772911eb","CAPEX 6006 Construction of Mashishimale Roads Culverts - TECH","PC001002006001000000000000000000000000_00002","_","An efficient, competitive and responsive economic infrastructure network","Growth","Provision of sustainable integrated infrastructure and services","Roads Infrastructure","Roads",0,0,"b312c7b3-2b88-4c79-bd9e-5e8ce7795850",0,0,-124200000,-172800000,0]
["be26bea6-58e3-4497-b52c-0bf597208207","CAPEX Upgrading of B1 EXTENTION Road Lulekani - Technical services","PC001001002006001000000000000000000000_00001","_","An efficient, competitive and responsive economic infrastructure network","Inclusion and access","Provision of sustainable integrated infrastructure and services","Roads Infrastructure","Roads",0,0,"962ec222-03c3-4e02-a093-d8fd465cb063",0,0,0,0,126360000]
["67347610-1db2-421f-a89a-f87e772911eb","CAPEX Tambo phase 2 Street paving - Technical Services","PC001001002006001000000000000000000000_00002","_","An efficient, competitive and responsive economic infrastructure network","Inclusion and access","Provision of sustainable integrated infrastructure and services",null,null,0,0,"59a668dc-fecd-4836-8d9c-4ed1e52fa5b6",0,-32376000,-37827189,-46398000,-35107038]
["67347610-1db2-421f-a89a-f87e772911eb","CAPEX Refurbishment of Namakgale Stadium - Technical Services","PC002002002002002002000000000000000000_00001","_","A long and healthy life for all South Africans","Inclusion and access","Provision of sustainable integrated infrastructure and services",null,null,31,23,"59a668dc-fecd-4836-8d9c-4ed1e52fa5b6",0,0,0,0,-27538479]
["67347610-1db2-421f-a89a-f87e772911eb","UPGRADING OF ROADS FROM GRAVEL TO TAR IN BENFARM AREA",null,"_","An efficient, competitive and responsive economic infrastructure network","Inclusion and access","Provision of sustainable integrated infrastructure and services",null,null,31,23,"59a668dc-fecd-4836-8d9c-4ed1e52fa5b6",0,0,0,0,-12296733]
["67347610-1db2-421f-a89a-f87e772911eb","CAPEX Upgrading of B1 EXTENTION Road Lulekani - Technical services","PC001001002006001000000000000000000000_00001","_","An efficient, competitive and responsive economic infrastructure network","Inclusion and access","Provision of sustainable integrated infrastructure and services",null,null,0,0,"59a668dc-fecd-4836-8d9c-4ed1e52fa5b6",0,0,0,0,-42120000]
["0f52d9e5-907f-4d9f-934f-57dc012524d6","CAPEX Office Furniture and Equipment - Admin","PC002003005000000000000000000000000000_00001","_","An efficient, effective and development-oriented public service","Growth","Attract, develop and retain best human capital","Furniture and Office Equipment","Furniture and Office Equipment",0,0,"64a3779c-48ee-4b20-a05b-eb1cac7656e0",0,27000000,0,0,0]
["be26bea6-58e3-4497-b52c-0bf597208207","CAPEX Tambo phase 2 Street paving - Technical Services","PC001001002006001000000000000000000000_00002","_","An efficient, competitive and responsive economic infrastructure network","Inclusion and access","Provision of sustainable integrated infrastructure and services",null,null,0,0,"5a957034-016b-49bf-933c-c35778be7e02",0,0,0,25500000,35107038]
["be26bea6-58e3-4497-b52c-0bf597208207","UPGRADING OF ROADS FROM GRAVEL TO TAR IN BENFARM AREA","PC001001002006001000000000000000000000_00003","_","An efficient, competitive and responsive economic infrastructure network","Inclusion and access","Provision of sustainable integrated infrastructure and services",null,null,31,23,"6192fb10-56b3-4aac-a4a3-bf37925fff52",0,21584000,15255600,0,8197822]
["67347610-1db2-421f-a89a-f87e772911eb","TAMBO UPGRADING OF STREET FROM GRAVEL TO TAR","PC001001002006002000000000000000000000_00001","_","An efficient, competitive and responsive economic infrastructure network","Inclusion and access","Provision of sustainable integrated infrastructure and services",null,null,31.14069938659668,23.942300796508789,"59a668dc-fecd-4836-8d9c-4ed1e52fa5b6",0,0,0,0,-9418326]
["35f914ed-b099-4a36-890d-69e60fc0e57c","CAPEX Selwane Sports Complex  Own Fund and MIG - Technical Services","PC002002002002002001000000000000000000_00001","_","A long and healthy life for all South Africans","Inclusion and access","Provision of sustainable integrated infrastructure and services","Sport and Recreation Facilities","Indoor Facilities",31.14069938659668,23.942300796508789,"6192fb10-56b3-4aac-a4a3-bf37925fff52",0,0,0,0,9504306]
["4e384fd0-e30f-4d2d-9c70-281473554248","INSTALLATION OF STORM WATER AND CULVETS","PC001002007002000000000000000000000000_00001","_","An efficient, competitive and responsive economic infrastructure network","Growth","Provision of sustainable integrated infrastructure and services","Storm Water Infrastructure","Storm water Conveyance",31.14069938659668,23.942300796508789,"59a668dc-fecd-4836-8d9c-4ed1e52fa5b6",0,0,62100000,62100000,0]
["d0a8c200-23d4-4309-8ea5-97922584a36d","ELECTRIFICATION OF MAKHUSHWANE CAMP (180 UNITS)","PC001002001007000000000000000000000000_00006","_","An efficient, competitive and responsive economic infrastructure network","Growth","Provision of sustainable integrated infrastructure and services","Electrical Infrastructure","MV Networks",1.0000000474974513E-3,1.0000000474974513E-3,"80735704-fb2c-44fb-ac82-83821374da85",0,21600000,0,0,0]
["67347610-1db2-421f-a89a-f87e772911eb","CAPEX Upgrading of B1 EXTENTION Road Lulekani - Technical services","PC001001002006001000000000000000000000_00001","_","An efficient, competitive and responsive economic infrastructure network","Inclusion and access","Provision of sustainable integrated infrastructure and services","Roads Infrastructure","Roads",0,0,"59a668dc-fecd-4836-8d9c-4ed1e52fa5b6",0,0,0,0,-126360000]
["35f914ed-b099-4a36-890d-69e60fc0e57c","Cash and Cash Equivalents",null,"_",null,null,"Improve financial viability",null,null,0,0,"e5bb1f41-f139-4c96-bd98-bef38dd0ca2c",0,-90000000,-65327622,0,0]
["67347610-1db2-421f-a89a-f87e772911eb","SUPPLY AND INSTALLATION OF 1841 NEW LED STREETLIGHT","PC001002001007000000000000000000000000_00001","_","An efficient, competitive and responsive economic infrastructure network","Growth","Provision of sustainable integrated infrastructure and services","Electrical Infrastructure","MV Networks",0,0,"59a668dc-fecd-4836-8d9c-4ed1e52fa5b6",0,0,0,0,-34200000]
["d0a8c200-23d4-4309-8ea5-97922584a36d","CAPEX Electrification of Majeje B (Rockview) - Technical Services","PC001002001008000000000000000000000000_00005","_","An efficient, competitive and responsive economic infrastructure network","Growth","Provision of sustainable integrated infrastructure and services","Electrical Infrastructure","LV Networks",0,0,"80735704-fb2c-44fb-ac82-83821374da85",0,0,0,0,32400000]
["d0a8c200-23d4-4309-8ea5-97922584a36d","ELECTRIFICATION OF MOSEMANENG (250)","PC001002001007000000000000000000000000_00007","_","An efficient, competitive and responsive economic infrastructure network","Growth","Provision of sustainable integrated infrastructure and services","Electrical Infrastructure","MV Networks",9.9999997473787516E-5,9.9999997473787516E-5,"0fc5fa06-76c8-43a0-96e8-ad34eb4836cc",0,30000000,0,0,0]
["be26bea6-58e3-4497-b52c-0bf597208207","INSTALLATION OF STORM WATER AND CULVETS","PC001002007002000000000000000000000000_00001","_","An efficient, competitive and responsive economic infrastructure network","Growth","Provision of sustainable integrated infrastructure and services","Storm Water Infrastructure","Storm water Conveyance",31.14069938659668,23.942300796508789,"59a668dc-fecd-4836-8d9c-4ed1e52fa5b6",0,0,62100000,62100000,0]
["5efb28bb-c786-49af-8a50-44a8b229bf7f","BENFARM UPGRADING OF STREETS FROM GRAVEL TO TAR 2.3","PC001002006001000000000000000000000000_00003","_","An efficient, competitive and responsive economic infrastructure network","Growth","Provision of sustainable integrated infrastructure and services","Roads Infrastructure","Roads",232111.203125,233.23300170898438,"8f0c97ca-8d1f-4da3-80dd-6aad510d3788",0,0,14943789,14961960,0]
["67347610-1db2-421f-a89a-f87e772911eb","CAPEX Electrification of Garden view - Technical Services","PC001002001008000000000000000000000000_00006","_","An efficient, competitive and responsive economic infrastructure network","Growth","Provision of sustainable integrated infrastructure and services","Electrical Infrastructure","LV Networks",31.14069938659668,23.942300796508789,"59a668dc-fecd-4836-8d9c-4ed1e52fa5b6",0,0,0,0,-97200000]
["d0a8c200-23d4-4309-8ea5-97922584a36d","ELECTRIFICATION OF NONDOWENI PRE-ENG  (120 UNITS)","PC001002001007000000000000000000000000","_","An efficient, competitive and responsive economic infrastructure network","Growth",null,"Electrical Infrastructure","MV Networks",1.0000000474974513E-3,1.0000000474974513E-3,"3cae901f-0b75-4001-ac88-184036c3edba",0,684000,0,0,0]
["35f914ed-b099-4a36-890d-69e60fc0e57c","CAPEX Refurbishment of Namakgale Stadium - Technical Services",null,"_","A long and healthy life for all South Africans","Growth","Provision of sustainable integrated infrastructure and services",null,null,31,23,"e5bb1f41-f139-4c96-bd98-bef38dd0ca2c",0,45000000,32663811,0,27538479]
["d0a8c200-23d4-4309-8ea5-97922584a36d","CAPEX Electrification of Garden view - Technical Services","PC001002001008000000000000000000000000_00006","_","An efficient, competitive and responsive economic infrastructure network","Growth","Provision of sustainable integrated infrastructure and services","Electrical Infrastructure","LV Networks",31.14069938659668,23.942300796508789,"b0d960fa-fbcf-4ae1-9fea-1d8017d021af",0,0,0,0,97200000]
["35f914ed-b099-4a36-890d-69e60fc0e57c","CAPEX Selwane Sports Complex  Own Fund and MIG - Technical Services","PC002003002002001000000000000000000000_00001","_","A long and healthy life for all South Africans","Growth","Provision of sustainable integrated infrastructure and services","Sport and Recreation Facilities","Indoor Facilities",31.14069938659668,23.942300796508789,"6192fb10-56b3-4aac-a4a3-bf37925fff52",0,0,0,0,9504306]
["67347610-1db2-421f-a89a-f87e772911eb","CAPEX Selwane Sports Complex  Own Fund and MIG - Technical Services","PC002003002002001000000000000000000000_00001","_","A long and healthy life for all South Africans","Growth","Provision of sustainable integrated infrastructure and services","Sport and Recreation Facilities","Indoor Facilities",31.14069938659668,23.942300796508789,"59a668dc-fecd-4836-8d9c-4ed1e52fa5b6",0,0,0,0,-19008612]
["67347610-1db2-421f-a89a-f87e772911eb","INSTALLATION OF STORM WATER AND CULVETS","PC001002007002000000000000000000000000_00001","_","An efficient, competitive and responsive economic infrastructure network","Growth","Provision of sustainable integrated infrastructure and services","Storm Water Infrastructure","Storm water Conveyance",31.14069938659668,23.942300796508789,"59a668dc-fecd-4836-8d9c-4ed1e52fa5b6",0,-180000000,-124200000,-248400000,0]
["d0a8c200-23d4-4309-8ea5-97922584a36d","ELECTRIFICATION OF PRIESKA PRE-ENG(150)","PC001002001007000000000000000000000000_00010","_","An efficient, competitive and responsive economic infrastructure network","Growth","Provision of sustainable integrated infrastructure and services","Electrical Infrastructure","MV Networks",9.9999997473787516E-5,1.0000000474974513E-3,"3cae901f-0b75-4001-ac88-184036c3edba",0,1080000,0,0,0]
["67347610-1db2-421f-a89a-f87e772911eb","UPGRADING OF ROADS FROM GRAVEL TO TAR IN BENFARM AREA","PC001001002006001000000000000000000000_00003","_","An efficient, competitive and responsive economic infrastructure network","Inclusion and access","Provision of sustainable integrated infrastructure and services",null,null,31,23,"59a668dc-fecd-4836-8d9c-4ed1e52fa5b6",0,0,0,0,-12296733]
["35f914ed-b099-4a36-890d-69e60fc0e57c","CAPEX Selwane Sports Complex  Own Fund and MIG - Technical Services","PC002002002002002001000000000000000000_00001","_","A long and healthy life for all South Africans","Inclusion and access","Provision of sustainable integrated infrastructure and services",null,null,31.14069938659668,23.942300796508789,"6192fb10-56b3-4aac-a4a3-bf37925fff52",0,0,0,0,3168102]
["67347610-1db2-421f-a89a-f87e772911eb","CAPEX Refurbishment of Namakgale Stadium - Technical Services","PC002002002002002002000000000000000000_00001","_","A long and healthy life for all South Africans","Inclusion and access","Provision of sustainable integrated infrastructure and services","Sport and Recreation Facilities","Outdoor Facilities",31,23,"59a668dc-fecd-4836-8d9c-4ed1e52fa5b6",0,0,0,0,-82615437]
["d0a8c200-23d4-4309-8ea5-97922584a36d","CAPEX Electrification of Sebera - Technical services","PC001002001008000000000000000000000000_00001","_","An efficient, competitive and responsive economic infrastructure network","Growth","Provision of sustainable integrated infrastructure and services","Electrical Infrastructure","LV Networks",31.14069938659668,23.942300796508789,"b0d960fa-fbcf-4ae1-9fea-1d8017d021af",0,0,0,0,162000000]
["be26bea6-58e3-4497-b52c-0bf597208207","CAPEX 6006 Construction of Mashishimale Roads Culverts - TECH","PC001002006001000000000000000000000000_00002","_","An efficient, competitive and responsive economic infrastructure network","Growth","Provision of sustainable integrated infrastructure and services","Roads Infrastructure","Roads",0,0,"b312c7b3-2b88-4c79-bd9e-5e8ce7795850",0,0,124200000,172800000,0]
["be26bea6-58e3-4497-b52c-0bf597208207","TAMBO UPGRADING OF STREET FROM GRAVEL TO TAR","PC001001002006002000000000000000000000_00001","_","An efficient, competitive and responsive economic infrastructure network","Inclusion and access","Provision of sustainable integrated infrastructure and services","Roads Infrastructure","Road Structures",31.14069938659668,23.942300796508789,"5a957034-016b-49bf-933c-c35778be7e02",0,0,0,0,28254978]
["be26bea6-58e3-4497-b52c-0bf597208207","CAPEX Tambo phase 2 Street paving - Technical Services",null,"_","An efficient, competitive and responsive economic infrastructure network","Inclusion and access","Provision of sustainable integrated infrastructure and services",null,null,0,0,"5a957034-016b-49bf-933c-c35778be7e02",0,0,0,25500000,35107038]
["be26bea6-58e3-4497-b52c-0bf597208207","CAPEX Tambo phase 2 Street paving - Technical Services","PC001001002006001000000000000000000000_00002","_","An efficient, competitive and responsive economic infrastructure network","Inclusion and access","Provision of sustainable integrated infrastructure and services","Roads Infrastructure","Roads",0,0,"5a957034-016b-49bf-933c-c35778be7e02",0,0,0,76500000,105321114]
["d0a8c200-23d4-4309-8ea5-97922584a36d","ELECTRIFICATION OF NYAKELLANG PHASE 2 (120)","PC001002001007000000000000000000000000_00008","_","An efficient, competitive and responsive economic infrastructure network","Growth","Provision of sustainable integrated infrastructure and services","Electrical Infrastructure","MV Networks",9.9999997473787516E-5,1.0000000474974513E-3,"0fc5fa06-76c8-43a0-96e8-ad34eb4836cc",0,14400000,0,0,0]
["35f914ed-b099-4a36-890d-69e60fc0e57c","CAPEX Refurbishment of Namakgale Stadium - Technical Services","PC002002002002002002000000000000000000_00001","_","A long and healthy life for all South Africans","Inclusion and access","Provision of sustainable integrated infrastructure and services",null,null,31,23,"e5bb1f41-f139-4c96-bd98-bef38dd0ca2c",0,45000000,32663811,0,27538479]
["be26bea6-58e3-4497-b52c-0bf597208207","CAPEX Upgrading of B1 EXTENTION Road Lulekani - Technical services","PC001001002006001000000000000000000000_00001","_","An efficient, competitive and responsive economic infrastructure network","Inclusion and access","Provision of sustainable integrated infrastructure and services",null,null,0,0,"962ec222-03c3-4e02-a093-d8fd465cb063",0,0,0,0,42120000]
["be26bea6-58e3-4497-b52c-0bf597208207","BENFARM UPGRADING OF STREETS FROM GRAVEL TO TAR 2.3","PC001002006001000000000000000000000000_00003","_","An efficient, competitive and responsive economic infrastructure network","Growth","Provision of sustainable integrated infrastructure and services","Roads Infrastructure","Roads",232111.203125,233.23300170898438,"8f0c97ca-8d1f-4da3-80dd-6aad510d3788",0,0,74718945,110426040,0]
["67347610-1db2-421f-a89a-f87e772911eb","CAPEX Tambo phase 2 Street paving - Technical Services",null,"_","An efficient, competitive and responsive economic infrastructure network","Inclusion and access","Provision of sustainable integrated infrastructure and services",null,null,0,0,"59a668dc-fecd-4836-8d9c-4ed1e52fa5b6",0,-32376000,-37827189,-46398000,-35107038]
["67347610-1db2-421f-a89a-f87e772911eb","CAPEX Electrification of Majeje B (Rockview) - Technical Services","PC001002001008000000000000000000000000_00005","_","An efficient, competitive and responsive economic infrastructure network","Growth","Provision of sustainable integrated infrastructure and services","Electrical Infrastructure","LV Networks",0,0,"59a668dc-fecd-4836-8d9c-4ed1e52fa5b6",0,0,0,0,-32400000]
["67347610-1db2-421f-a89a-f87e772911eb","CAPEX Establishment of new cemetery in Gravelotte - Technical Services","PC002003002001011000000000000000000000_00001","_","A comprehensive, responsive and sustainable social protection system","Growth","Provision of sustainable integrated infrastructure and services","Community Facilities","Cemeteries/Crematoria",0,0,"59a668dc-fecd-4836-8d9c-4ed1e52fa5b6",0,0,0,0,-27000000]
["35f914ed-b099-4a36-890d-69e60fc0e57c","CAPEX Refurbishment of Namakgale Stadium - Technical Services","PC002002002002002002000000000000000000_00001","_","A long and healthy life for all South Africans","Inclusion and access","Provision of sustainable integrated infrastructure and services","Sport and Recreation Facilities","Outdoor Facilities",31,23,"e5bb1f41-f139-4c96-bd98-bef38dd0ca2c",0,135000000,97991433,0,82615437]
["ba7a3e30-8c47-498d-a65a-3b5b9b1a77d7","CAPEX Establishment of new cemetery in Gravelotte - Technical Services","PC002003002001011000000000000000000000_00001","_","A comprehensive, responsive and sustainable social protection system","Growth","Provision of sustainable integrated infrastructure and services","Community Facilities","Cemeteries/Crematoria",0,0,"3cae901f-0b75-4001-ac88-184036c3edba",0,0,0,0,27000000]
["be26bea6-58e3-4497-b52c-0bf597208207","UPGRADING OF ROADS FROM GRAVEL TO TAR IN BENFARM AREA",null,"_","An efficient, competitive and responsive economic infrastructure network","Inclusion and access","Provision of sustainable integrated infrastructure and services",null,null,31,23,"6192fb10-56b3-4aac-a4a3-bf37925fff52",0,43168000,30511200,0,16395644]
["5efb28bb-c786-49af-8a50-44a8b229bf7f","SUPPLY AND INSTALLATION OF 1841 NEW LED STREETLIGHT","PC001002001007000000000000000000000000_00001","_","An efficient, competitive and responsive economic infrastructure network","Growth","Provision of sustainable integrated infrastructure and services","Electrical Infrastructure","MV Networks",0,0,"59a668dc-fecd-4836-8d9c-4ed1e52fa5b6",0,0,0,0,34200000]
["35f914ed-b099-4a36-890d-69e60fc0e57c","CAPEX Refurbishment of Namakgale Stadium - Technical Services"]
["35f914ed-b099-4a36-890d-69e60fc0e57c","CAPEX Selwane Sports Complex  Own Fund and MIG - Technical Services"]
["35f914ed-b099-4a36-890d-69e60fc0e57c","Cash and Cash Equivalents"]
["4e384fd0-e30f-4d2d-9c70-281473554248","INSTALLATION OF STORM WATER AND CULVETS"]
["5efb28bb-c786-49af-8a50-44a8b229bf7f","BENFARM UPGRADING OF STREETS FROM GRAVEL TO TAR 2.3"]
["5efb28bb-c786-49af-8a50-44a8b229bf7f","SUPPLY AND INSTALLATION OF 1841 NEW LED STREETLIGHT"]
["5efb28bb-c786-49af-8a50-44a8b229bf7f","SUPPLY AND INSTALLATION OF 1841 NEW LED STREETLIGHT"]
["67347610-1db2-421f-a89a-f87e772911eb","CAPEX 6006 Construction of Mashishimale Roads Culverts - TECH"]
["67347610-1db2-421f-a89a-f87e772911eb","CAPEX Refurbishment of Namakgale Stadium - Technical Services"]
["67347610-1db2-421f-a89a-f87e772911eb","CAPEX Refurbishment of Namakgale Stadium - Technical Services"]
["67347610-1db2-421f-a89a-f87e772911eb","CAPEX Refurbishment of Namakgale Stadium - Technical Services"]
["67347610-1db2-421f-a89a-f87e772911eb","CAPEX Tambo phase 2 Street paving - Technical Services"]
["67347610-1db2-421f-a89a-f87e772911eb","CAPEX Tambo phase 2 Street paving - Technical Services"]
["67347610-1db2-421f-a89a-f87e772911eb","CAPEX Tambo phase 2 Street paving - Technical Services"]
["67347610-1db2-421f-a89a-f87e772911eb","INSTALLATION OF STORM WATER AND CULVETS"]
["67347610-1db2-421f-a89a-f87e772911eb","UPGRADING OF ROADS FROM GRAVEL TO TAR IN BENFARM AREA"]
["67347610-1db2-421f-a89a-f87e772911eb","UPGRADING OF ROADS FROM GRAVEL TO TAR IN BENFARM AREA"]
["67347610-1db2-421f-a89a-f87e772911eb","UPGRADING OF ROADS FROM GRAVEL TO TAR IN BENFARM AREA"]
["6fa14a15-a164-42cb-a263-a0b007852bc5","CAPEX Construction of new Landfill Site (Phalaborwa)"]
["ba7a3e30-8c47-498d-a65a-3b5b9b1a77d7","CAPEX Establishment of new cemetery in Gravelotte - Technical Services"]
["be26bea6-58e3-4497-b52c-0bf597208207","BENFARM UPGRADING OF STREETS FROM GRAVEL TO TAR 2.3"]
["be26bea6-58e3-4497-b52c-0bf597208207","CAPEX 6006 Construction of Mashishimale Roads Culverts - TECH"]
["be26bea6-58e3-4497-b52c-0bf597208207","CAPEX Tambo phase 2 Street paving - Technical Services"]
["be26bea6-58e3-4497-b52c-0bf597208207","CAPEX Tambo phase 2 Street paving - Technical Services"]
["be26bea6-58e3-4497-b52c-0bf597208207","CAPEX Tambo phase 2 Street paving - Technical Services"]
["be26bea6-58e3-4497-b52c-0bf597208207","CAPEX Upgrading of B1 EXTENTION Road Lulekani - Technical services"]
["be26bea6-58e3-4497-b52c-0bf597208207","CAPEX Upgrading of B1 EXTENTION Road Lulekani - Technical services"]
["be26bea6-58e3-4497-b52c-0bf597208207","CONSTRUCTION OF STORM WATER CULVERTS IN LULEKANI"]
["be26bea6-58e3-4497-b52c-0bf597208207","INSTALLATION OF STORM WATER AND CULVETS"]
["be26bea6-58e3-4497-b52c-0bf597208207","TAMBO UPGRADING OF STREET FROM GRAVEL TO TAR"]
["be26bea6-58e3-4497-b52c-0bf597208207","TAMBO UPGRADING OF STREET FROM GRAVEL TO TAR"]
["be26bea6-58e3-4497-b52c-0bf597208207","UPGRADING OF ROADS FROM GRAVEL TO TAR IN BENFARM AREA"]
["be26bea6-58e3-4497-b52c-0bf597208207","UPGRADING OF ROADS FROM GRAVEL TO TAR IN BENFARM AREA"]
["be26bea6-58e3-4497-b52c-0bf597208207","UPGRADING OF ROADS FROM GRAVEL TO TAR IN BENFARM AREA"]
["d0a8c200-23d4-4309-8ea5-97922584a36d","CAPEX Electrification of Sebera - Technical services"]
["d0a8c200-23d4-4309-8ea5-97922584a36d","CAPEX -ELECTRIFICATION OF VILLAGES"]
["d0a8c200-23d4-4309-8ea5-97922584a36d","Cash and Cash Equivalents"]
["d0a8c200-23d4-4309-8ea5-97922584a36d","ELECTRIFICATION OF  MAJEJE EXT B PHASE 2 (400 UNITS)"]
["d0a8c200-23d4-4309-8ea5-97922584a36d","ELECTRIFICATION OF MAKHUSHWANE CAMP (180 UNITS)"]
["d0a8c200-23d4-4309-8ea5-97922584a36d","ELECTRIFICATION OF MASHISHIMALE (75 UNITS)"]
["d0a8c200-23d4-4309-8ea5-97922584a36d","ELECTRIFICATION OF MOSEMANENG (250)"]
["d0a8c200-23d4-4309-8ea5-97922584a36d","ELECTRIFICATION OF NONDOWENI PRE-ENG  (120 UNITS)"]
["d0a8c200-23d4-4309-8ea5-97922584a36d","ELECTRIFICATION OF NYAKELLANG PHASE 2 (120)"]
["d0a8c200-23d4-4309-8ea5-97922584a36d","ELECTRIFICATION OF PRIESKA PRE-ENG(150)"]
[]
[]
[]
[{"$f":"head27a","v":"References"}]
["List all projects with planned completion dates in current year that have been re-budgeted in the MTREF"]
["Asset class as per table A9 and asset sub-class as per table SA34"]
["GPS coordinates correct to seconds. Provide a logical starting point on networked infrastructure."]
["Project Number consists of MSCOA Project Longcode and seq No (sample PC001002006002_00002)"]

{"sheet":"SA38","index":87,"n_rows":1058,"n_cols":17,"rows_kept":1058,"cut":false,"hidden":false,"merged":[[1,12,1,13],[1,14,1,16]]}
[{"$f":"muni&\" - \"&TableA38","v":"LIM331 Greater Giyani - Supporting Table SA38 Consolidated detailed operational projects"}]
["R thousand",null,null,null,null,null,null,null,null,null,null,null,"Prior year outcomes",null,{"$f":"Head3","v":"2023/24 Medium Term Revenue & Expenditure Framework"}]
["Function","Project Description","Project Number","Type","MTSF Service Outcome","IUDF","Own Strategic Objectives","Asset Class","Asset Sub-Class","Ward Location","GPS Longitude","GPS Lattitude",{"$f":"Head5&\"    \"&Head1","v":"Audited Outcome    2021/22"},{"$f":"Head2 & \"        \"&Head8","v":"Current Year 2022/23        Full Year Forecast"},{"$f":"Head9","v":"Budget Year 2023/24"},{"$f":"Head10","v":"Budget Year +1 2024/25"},{"$f":"Head11","v":"Budget Year +2 2025/26"}]
["Parent municipality:"]
["List all operational projects grouped by Function"]
[]
["028ec562-fa32-4462-9c8f-90ca38ed33ae","Beautification of Gateway (Welcome to Giyani)","PO004001001002003000000000000000000000_00001","_","An efficient, competitive and responsive economic infrastructure network","Inclusion and access","Local Economic Development"]
["028ec562-fa32-4462-9c8f-90ca38ed33ae","Environmental Education Association of Southern Africa","PO003015002000000000000000000000000000_00001","_","Protect and enhance our environmental assets and natural resources","Spatial integration","Local Economic Development"]
["028ec562-fa32-4462-9c8f-90ca38ed33ae","EPWP ENVIRONMENT & CULTURE","PO003016001000000000000000000000000000_00001","_","An efficient, effective and development-oriented public service","Inclusion and access","Infrastructure Development and Basic Service Delivery"]
["028ec562-fa32-4462-9c8f-90ca38ed33ae","EPWP ENVIRONMENT & CULTURE","PO003016001000000000000000000000000000_00001","_","An efficient, effective and development-oriented public service","Inclusion and access","Infrastructure Development and Basic Service Delivery"]
["028ec562-fa32-4462-9c8f-90ca38ed33ae","SOLID WASTE","PO001001001001004001005000000000000000_00001","_","An efficient, competitive and responsive economic infrastructure network","Inclusion and access","Infrastructure Development and Basic Service Delivery"]
["028ec562-fa32-4462-9c8f-90ca38ed33ae","SOLID WASTE","PO001001001001004001005000000000000000_00001","_","An efficient, competitive and responsive economic infrastructure network","Inclusion and access","Infrastructure Development and Basic Service Delivery"]
["028ec562-fa32-4462-9c8f-90ca38ed33ae","SOLID WASTE","PO002000000000000000000000000000000000","_","Sustainable human settlements and improved quality of household life","Governance","Infrastructure Development and Basic Service Delivery"]
["028ec562-fa32-4462-9c8f-90ca38ed33ae","SOLID WASTE","PO002000000000000000000000000000000000","_","Sustainable human settlements and improved quality of household life","Governance","Infrastructure Development and Basic Service Delivery"]
["028ec562-fa32-4462-9c8f-90ca38ed33ae","SOLID WASTE","PO004002004003000000000000000000000000_00001","_","An efficient, competitive and responsive economic infrastructure network","Growth","Infrastructure Development and Basic Service Delivery"]
["044f82e1-bbb4-4190-b772-2ff5020adecc","Community other","PO003038000000000000000000000000000000_00001","_","All people in South Africa are and feel safe","Inclusion and access","Infrastructure Development and Basic Service Delivery"]
["0e51e5d3-5805-402b-a5dc-3b94852c29c0","Assets Management","PO002000000000000000000000000000000000","_","Sustainable human settlements and improved quality of household life","Governance","Financial Viability"]
["0e51e5d3-5805-402b-a5dc-3b94852c29c0","Assets Management","PO002000000000000000000000000000000000","_","Sustainable human settlements and improved quality of household life","Governance","Financial Viability"]
["0e51e5d3-5805-402b-a5dc-3b94852c29c0","Balance Sheet Budget Accounts","PO002000000000000000000000000000000000","_","Sustainable human settlements and improved quality of household life","Governance","Financial Viability"]
["0e51e5d3-5805-402b-a5dc-3b94852c29c0","PPE Take On Accounts","PO002000000000000000000000000000000000","_","Sustainable human settlements and improved quality of household life","Governance","Financial Viability"]
["0e51e5d3-5805-402b-a5dc-3b94852c29c0","Supply Chain Management","PO002000000000000000000000000000000000","_","Sustainable human settlements and improved quality of household life","Governance","Financial Viability"]
["0f52d9e5-907f-4d9f-934f-57dc012524d6","Administration","PO001002002001005000000000000000000000_00001","_","An efficient, effective and development-oriented public service","Governance","Good Governance and Public Participation"]
["0f52d9e5-907f-4d9f-934f-57dc012524d6","Administration","PO001002002001005000000000000000000000_00001","_","An efficient, effective and development-oriented public service","Governance","Good Governance and Public Participation"]
["0f52d9e5-907f-4d9f-934f-57dc012524d6","Administration","PO002000000000000000000000000000000000","_","Sustainable human settlements and improved quality of household life","Governance","Good Governance and Public Participation"]
["0f52d9e5-907f-4d9f-934f-57dc012524d6","Assets Management","PO002000000000000000000000000000000000","_","Sustainable human settlements and improved quality of household life","Governance","Financial Viability"]
["0f52d9e5-907f-4d9f-934f-57dc012524d6","Senior Management","PO002000000000000000000000000000000000","_","Sustainable human settlements and improved quality of household life","Governance","Good Governance and Public Participation"]
["0f52d9e5-907f-4d9f-934f-57dc012524d6","Wellness Administration","PO003007016000000000000000000000000000_00001","_","A comprehensive, responsive and sustainable social protection system","Inclusion and access","Good Governance and Public Participation"]
["15e72a49-cac8-46a3-a850-5352163e5772","Internal Audit","PO002000000000000000000000000000000000","_","Sustainable human settlements and improved quality of household life","Governance","Good Governance and Public Participation"]
["15e7fc9a-7613-41bd-b0e9-57024945d7d9","Project Management Unit","PO002000000000000000000000000000000000","_","Sustainable human settlements and improved quality of household life","Governance","Infrastructure Development and Basic Service Delivery"]
["15e7fc9a-7613-41bd-b0e9-57024945d7d9","Project Management Unit","PO003042000000000000000000000000000000_00015","_","An efficient, effective and development-oriented public service","Spatial integration","Infrastructure Development and Basic Service Delivery"]
["35f914ed-b099-4a36-890d-69e60fc0e57c","SPORT & RECREATION","PO002000000000000000000000000000000000","_","Sustainable human settlements and improved quality of household life","Governance","Infrastructure Development and Basic Service Delivery"]
["379cbd5c-2c82-42fa-a8c1-3adcf97210b5","Budget & Reporting","PO003015011000000000000000000000000000_00001","_","Protect and enhance our environmental assets and natural resources","Spatial integration","Financial Viability"]
["379cbd5c-2c82-42fa-a8c1-3adcf97210b5","Community other","PO002000000000000000000000000000000000","_","Sustainable human settlements and improved quality of household life","Governance","Infrastructure Development and Basic Service Delivery"]
["379cbd5c-2c82-42fa-a8c1-3adcf97210b5","ENVIRONMENT AWARENESS (WED)","PO003015011000000000000000000000000000_00001","_","Protect and enhance our environmental assets and natural resources","Spatial integration","Infrastructure Development and Basic Service Delivery"]
["379cbd5c-2c82-42fa-a8c1-3adcf97210b5","INDIGENT SUPPORT","PO003021000000000000000000000000000000_00001","_","Responsive, accountable, effective and efficient local government","Inclusion and access","Good Governance and Public Participation"]
["39043a95-c08d-4bfc-bce2-b4e1763b0d24","DISASTER EDUCATION & AWARENESS","PO003014003000000000000000000000000000_00002","_","A comprehensive, responsive and sustainable social protection system","Governance","Good Governance and Public Participation"]
["39043a95-c08d-4bfc-bce2-b4e1763b0d24","DISASTER MANAGEMENT","PO002000000000000000000000000000000000","_","Sustainable human settlements and improved quality of household life","Governance","Infrastructure Development and Basic Service Delivery"]
["39043a95-c08d-4bfc-bce2-b4e1763b0d24","DISASTER RESPONSE & RECOVERY","PO003014002000000000000000000000000000_00008","_","A comprehensive, responsive and sustainable social protection system","Governance","Infrastructure Development and Basic Service Delivery"]
["39043a95-c08d-4bfc-bce2-b4e1763b0d24","DISASTER RESPONSE & RECOVERY","PO003014002000000000000000000000000000_00008","_","A comprehensive, responsive and sustainable social protection system","Governance","Infrastructure Development and Basic Service Delivery"]
["57eb57f7-9f9a-43e8-a53f-0e222f65a66d","Security  Services","PO001002002001009000000000000000000000_00003","_","An efficient, effective and development-oriented public service","Governance","Institutional Development and Transformation"]
["57eb57f7-9f9a-43e8-a53f-0e222f65a66d","Security  Services","PO001002002001009000000000000000000000_00003","_","An efficient, effective and development-oriented public service","Governance","Institutional Development and Transformation"]
["57eb57f7-9f9a-43e8-a53f-0e222f65a66d","Security  Services","PO002000000000000000000000000000000000","_","Sustainable human settlements and improved quality of household life","Governance","Institutional Development and Transformation"]
["5efb28bb-c786-49af-8a50-44a8b229bf7f","Installation of energy saving street lights","PO004002001008000000000000000000000000_00037","_","An efficient, competitive and responsive economic infrastructure network","Growth","Infrastructure Development and Basic Service Delivery"]
["5efb28bb-c786-49af-8a50-44a8b229bf7f","Installation of Traffic lights in Giyani township ","PO004002001008000000000000000000000000_00036","_","An efficient, competitive and responsive economic infrastructure network","Growth","Infrastructure Development and Basic Service Delivery"]
["67347610-1db2-421f-a89a-f87e772911eb","Assets Management","PO002000000000000000000000000000000000","_","Sustainable human settlements and improved quality of household life","Governance","Financial Viability"]
["67347610-1db2-421f-a89a-f87e772911eb","Budget & Reporting","PO002000000000000000000000000000000000","_","Sustainable human settlements and improved quality of household life","Governance","Financial Viability"]
["67347610-1db2-421f-a89a-f87e772911eb","Expenditure ","PO002000000000000000000000000000000000","_","Sustainable human settlements and improved quality of household life","Governance","Financial Viability"]
["67347610-1db2-421f-a89a-f87e772911eb","Revenue Management","PO002000000000000000000000000000000000","_","Sustainable human settlements and improved quality of household life","Governance","Financial Viability"]
["67347610-1db2-421f-a89a-f87e772911eb","Senior Management","PO002000000000000000000000000000000000","_","Sustainable human settlements and improved quality of household life","Governance","Good Governance and Public Participation"]
["6dc327fd-c352-440b-9366-63fce6a71335","Human Resource Management","PO002000000000000000000000000000000000","_","Sustainable human settlements and improved quality of household life","Governance","Institutional Development and Transformation"]
["6dc327fd-c352-440b-9366-63fce6a71335","Human Resources Development","PO001002001002009000000000000000000000_00001","_","An efficient, effective and development-oriented public service","Governance","Institutional Development and Transformation"]
["6dc327fd-c352-440b-9366-63fce6a71335","Human Resources Development","PO001002001002009000000000000000000000_00001","_","An efficient, effective and development-oriented public service","Governance","Institutional Development and Transformation"]
["6dc327fd-c352-440b-9366-63fce6a71335","Human Resources Development","PO002000000000000000000000000000000000","_","Sustainable human settlements and improved quality of household life","Governance","Institutional Development and Transformation"]
["6dc327fd-c352-440b-9366-63fce6a71335","Human Resources Development","PO002000000000000000000000000000000000","_","Sustainable human settlements and improved quality of household life","Governance","Institutional Development and Transformation"]
["6dc327fd-c352-440b-9366-63fce6a71335","Human Resources Development","PO003020002000000000000000000000000000_00001","_","Responsive, accountable, effective and efficient local government","Governance","Institutional Development and Transformation"]
["6dc327fd-c352-440b-9366-63fce6a71335","Payroll Administration","PO002000000000000000000000000000000000","_","Sustainable human settlements and improved quality of household life","Governance","Institutional Development and Transformation"]
["6fa14a15-a164-42cb-a263-a0b007852bc5","Assets Management","PO002000000000000000000000000000000000","_","Sustainable human settlements and improved quality of household life","Governance","Financial Viability"]
["6fa14a15-a164-42cb-a263-a0b007852bc5","COMMUNITY FACILITIES","PO002000000000000000000000000000000000","_","Sustainable human settlements and improved quality of household life","Governance","Infrastructure Development and Basic Service Delivery"]
["6fa14a15-a164-42cb-a263-a0b007852bc5","Landscaping (Maintenance of Parks)","PO003033000000000000000000000000000000_00001","_","Protect and enhance our environmental assets and natural resources","Inclusion and access","Good Governance and Public Participation"]
["6fa14a15-a164-42cb-a263-a0b007852bc5","Municipal internal Sinage","PO002000000000000000000000000000000000","_","Sustainable human settlements and improved quality of household life","Governance","Infrastructure Development and Basic Service Delivery"]
["6fa14a15-a164-42cb-a263-a0b007852bc5","Senior Management","PO002000000000000000000000000000000000","_","Sustainable human settlements and improved quality of household life","Governance","Good Governance and Public Participation"]
["7bfc7c06-9b62-4cad-816b-78ab18ec23e3","Property Services","PO001002002001003001001002000000000000_00001","_","An efficient, effective and development-oriented public service","Governance","Institutional Development and Transformation"]
["7bfc7c06-9b62-4cad-816b-78ab18ec23e3","Property Services","PO001002002001003001001002000000000000_00001","_","An efficient, effective and development-oriented public service","Governance","Institutional Development and Transformation"]
["7bfc7c06-9b62-4cad-816b-78ab18ec23e3","Property Services","PO002000000000000000000000000000000000","_","Sustainable human settlements and improved quality of household life","Governance","Institutional Development and Transformation"]
["7bfc7c06-9b62-4cad-816b-78ab18ec23e3","Subdivision & Rezoning of remainder 1946 Giyani F","PO003042000000000000000000000000000000_00015","_","An efficient, effective and development-oriented public service","Spatial integration","Good Governance and Public Participation"]
["81e26025-8a7e-485a-b96d-814b817bc7e2","Payroll Administration","PO002000000000000000000000000000000000","_","Sustainable human settlements and improved quality of household life","Governance","Institutional Development and Transformation"]
["81e26025-8a7e-485a-b96d-814b817bc7e2","Vehicle Lisencing & Reg","PO001002002001009000000000000000000000_00002","_","An efficient, effective and development-oriented public service","Governance","Infrastructure Development and Basic Service Delivery"]
["81e26025-8a7e-485a-b96d-814b817bc7e2","Vehicle Lisencing & Reg","PO001002002001009000000000000000000000_00002","_","An efficient, effective and development-oriented public service","Governance","Infrastructure Development and Basic Service Delivery"]
["81e26025-8a7e-485a-b96d-814b817bc7e2","Vehicle Lisencing & Reg","PO002000000000000000000000000000000000","_","Sustainable human settlements and improved quality of household life","Governance","Infrastructure Development and Basic Service Delivery"]
["84c380c3-3b7f-4f6e-b3e1-ca680365dc85","SOLID WASTE","PO002000000000000000000000000000000000","_","Sustainable human settlements and improved quality of household life","Governance","Infrastructure Development and Basic Service Delivery"]
["84c380c3-3b7f-4f6e-b3e1-ca680365dc85","SOLID WASTE","PO002000000000000000000000000000000000","_","Sustainable human settlements and improved quality of household life","Governance","Infrastructure Development and Basic Service Delivery"]
["883643f9-8ff9-482c-9c37-1e3cfdbb22ec","IDP Programme","PO003044001000000000000000000000000000_00001","_","Responsive, accountable, effective and efficient local government","Spatial integration","Institutional Development and Transformation"]
["883643f9-8ff9-482c-9c37-1e3cfdbb22ec","LED Supports","PO003023003000000000000000000000000000_00001","_","An efficient, effective and development-oriented public service","Spatial integration","Local Economic Development"]
["883643f9-8ff9-482c-9c37-1e3cfdbb22ec","Local Economic Develeopment","PO002000000000000000000000000000000000","_","Sustainable human settlements and improved quality of household life","Governance","Local Economic Development"]
["883643f9-8ff9-482c-9c37-1e3cfdbb22ec","Review Of LED Strategy","PO002000000000000000000000000000000000","_","Sustainable human settlements and improved quality of household life","Governance","Good Governance and Public Participation"]
["883643f9-8ff9-482c-9c37-1e3cfdbb22ec","Senior Management","PO002000000000000000000000000000000000","_","Sustainable human settlements and improved quality of household life","Governance","Good Governance and Public Participation"]
["883643f9-8ff9-482c-9c37-1e3cfdbb22ec","Strategic Planning","PO002000000000000000000000000000000000","_","Sustainable human settlements and improved quality of household life","Governance","To develop an effective spatial framework that promotes integrated and sustainable development"]
["883643f9-8ff9-482c-9c37-1e3cfdbb22ec","Tourism banquet Night","PO003017005000000000000000000000000000_00003","_","An efficient, effective and development-oriented public service","Inclusion and access","Institutional Development and Transformation"]
["89aa6d98-8ca6-4416-8143-f6f22ef86160","Supply Chain Management","PO002000000000000000000000000000000000","_","Sustainable human settlements and improved quality of household life","Governance","Financial Viability"]
["92aebb43-91da-45ab-a98d-95be1511fb78","LIBRARY OUTREACH'","PO003007014000000000000000000000000000_00001","_","A comprehensive, responsive and sustainable social protection system","Inclusion and access","Good Governance and Public Participation"]
["92aebb43-91da-45ab-a98d-95be1511fb78","Library Services","PO002000000000000000000000000000000000","_","Sustainable human settlements and improved quality of household life","Governance","Local Economic Development"]
["a0417e64-ef9b-4d7d-8721-6fd6b304450d","Municipal Public Account","PO002000000000000000000000000000000000","_","Sustainable human settlements and improved quality of household life","Governance","Infrastructure Development and Basic Service Delivery"]
["a0417e64-ef9b-4d7d-8721-6fd6b304450d","Municipal Public Account","PO002000000000000000000000000000000000","_","Sustainable human settlements and improved quality of household life","Governance","Infrastructure Development and Basic Service Delivery"]
["a0417e64-ef9b-4d7d-8721-6fd6b304450d","PMS Programme","PO003044015000000000000000000000000000_00001","_","Responsive, accountable, effective and efficient local government","Inclusion and access","Good Governance and Public Participation"]
["a0417e64-ef9b-4d7d-8721-6fd6b304450d","Risk Management","PO002000000000000000000000000000000000","_","Sustainable human settlements and improved quality of household life","Governance","Good Governance and Public Participation"]
["a3247f45-2fa8-40df-bdd1-70640148bada","Human Resources Development","PO002000000000000000000000000000000000","_","Sustainable human settlements and improved quality of household life","Governance","Institutional Development and Transformation"]
["ba7a3e30-8c47-498d-a65a-3b5b9b1a77d7","CEMETERIES","PO001002002001002001011005000000000000_00001","_","A comprehensive, responsive and sustainable social protection system","Inclusion and access","Infrastructure Development and Basic Service Delivery"]
["ba7a3e30-8c47-498d-a65a-3b5b9b1a77d7","CEMETERIES","PO001002002001002001011005000000000000_00001","_","A comprehensive, responsive and sustainable social protection system","Inclusion and access","Infrastructure Development and Basic Service Delivery"]
["ba7a3e30-8c47-498d-a65a-3b5b9b1a77d7","CEMETERIES","PO002000000000000000000000000000000000","_","Sustainable human settlements and improved quality of household life","Governance","Infrastructure Development and Basic Service Delivery"]
["ba7a3e30-8c47-498d-a65a-3b5b9b1a77d7","CEMETERIES","PO003007013000000000000000000000000000_00001","_","A comprehensive, responsive and sustainable social protection system","Inclusion and access","Infrastructure Development and Basic Service Delivery"]
["be26bea6-58e3-4497-b52c-0bf597208207","Assets Management","PO002000000000000000000000000000000000","_","Sustainable human settlements and improved quality of household life","Governance","Financial Viability"]
["be26bea6-58e3-4497-b52c-0bf597208207","EPWP ENVIRONMENT & CULTURE","PO003016001000000000000000000000000000_00001","_","An efficient, effective and development-oriented public service","Inclusion and access","Infrastructure Development and Basic Service Delivery"]
["be26bea6-58e3-4497-b52c-0bf597208207","EPWP SOCIAL","PO003016001000000000000000000000000000_00001","_","An efficient, effective and development-oriented public service","Inclusion and access","Infrastructure Development and Basic Service Delivery"]
["be26bea6-58e3-4497-b52c-0bf597208207","EPWP SOCIAL","PO003016001000000000000000000000000000_00001","_","An efficient, effective and development-oriented public service","Inclusion and access","Infrastructure Development and Basic Service Delivery"]
["be26bea6-58e3-4497-b52c-0bf597208207","Roads Operations","PO001001002001002001002000000000000000_00001","_","An efficient, competitive and responsive economic infrastructure network","Inclusion and access","Infrastructure Development and Basic Service Delivery"]
["be26bea6-58e3-4497-b52c-0bf597208207","Roads Operations","PO001001002001002001002000000000000000_00001","_","An efficient, competitive and responsive economic infrastructure network","Inclusion and access","Infrastructure Development and Basic Service Delivery"]
["be26bea6-58e3-4497-b52c-0bf597208207","Roads Operations","PO002000000000000000000000000000000000","_","Sustainable human settlements and improved quality of household life","Governance","Infrastructure Development and Basic Service Delivery"]
["be26bea6-58e3-4497-b52c-0bf597208207","Senior Management","PO002000000000000000000000000000000000","_","Sustainable human settlements and improved quality of household life","Governance","Good Governance and Public Participation"]
["be26bea6-58e3-4497-b52c-0bf597208207","Vehicle Lisencing & Reg","PO002000000000000000000000000000000000","_","Sustainable human settlements and improved quality of household life","Governance","Infrastructure Development and Basic Service Delivery"]
["c57d4368-34c4-4b96-8470-2264a2fa849c","Assets Management","PO002000000000000000000000000000000000","_","Sustainable human settlements and improved quality of household life","Governance","Financial Viability"]
["c57d4368-34c4-4b96-8470-2264a2fa849c","Fleet and Machinery","PO001002002001009000000000000000000000_00001","_","An efficient, effective and development-oriented public service","Governance","Financial Viability"]
["c57d4368-34c4-4b96-8470-2264a2fa849c","Fleet and Machinery","PO001002002001009000000000000000000000_00001","_","An efficient, effective and development-oriented public service","Governance","Financial Viability"]
["c57d4368-34c4-4b96-8470-2264a2fa849c","Fleet and Machinery","PO001002002001010000000000000000000000_00001","_","An efficient, effective and development-oriented public service","Governance","Financial Viability"]
["c57d4368-34c4-4b96-8470-2264a2fa849c","Fleet and Machinery","PO001002002001010000000000000000000000_00001","_","An efficient, effective and development-oriented public service","Governance","Financial Viability"]
["c57d4368-34c4-4b96-8470-2264a2fa849c","Fleet and Machinery","PO002000000000000000000000000000000000","_","Sustainable human settlements and improved quality of household life","Governance","Financial Viability"]
["c793f283-651d-4e97-b55c-9ded321b521e","Public Transport","PO002000000000000000000000000000000000","_","Sustainable human settlements and improved quality of household life","Governance","Infrastructure Development and Basic Service Delivery"]
["c91683cc-ca5a-4118-b55f-132ec0c3bf1e","HERITAGE DAY CELEBRATION","PO003017005000000000000000000000000000_00001","_","An efficient, effective and development-oriented public service","Inclusion and access","Institutional Development and Transformation"]
["c91683cc-ca5a-4118-b55f-132ec0c3bf1e","INDIGENOUS GAMES","PO003017004000000000000000000000000000_00001","_","An efficient, effective and development-oriented public service","Inclusion and access","Institutional Development and Transformation"]
["c91683cc-ca5a-4118-b55f-132ec0c3bf1e","SPORT, ARTS & CULTURE SUPPORT'","PO003017001000000000000000000000000000_00001","_","An efficient, effective and development-oriented public service","Inclusion and access","Good Governance and Public Participation"]
["c91683cc-ca5a-4118-b55f-132ec0c3bf1e","SPORTS DEVELOPMENT","PO003043003000000000000000000000000000_00001","_","An efficient, effective and development-oriented public service","Inclusion and access","Institutional Development and Transformation"]
["d001b930-0f88-4eb0-bcde-e8736dbf200e","Legal ","PO002000000000000000000000000000000000","_","Sustainable human settlements and improved quality of household life","Governance","Institutional Development and Transformation"]
["d0a8c200-23d4-4309-8ea5-97922584a36d","Electrfication of Gawula Village (150 units /stands)","PO004002001008000000000000000000000000_00057","_","An efficient, competitive and responsive economic infrastructure network","Growth","Infrastructure Development and Basic Service Delivery"]
["d0a8c200-23d4-4309-8ea5-97922584a36d","Electrfication of Homu 14B extension (150 units /stands)","PO004002001008000000000000000000000000_00056","_","An efficient, competitive and responsive economic infrastructure network","Growth","Infrastructure Development and Basic Service Delivery"]
["d0a8c200-23d4-4309-8ea5-97922584a36d","Electrfication of Khakhala Village (150 units /stands)","PO004002001008000000000000000000000000_00058","_","An efficient, competitive and responsive economic infrastructure network","Growth","Infrastructure Development and Basic Service Delivery"]
["d0a8c200-23d4-4309-8ea5-97922584a36d","Electrfication of loloka Village (150 units /stands)","PO004002001008000000000000000000000000_00059","_","An efficient, competitive and responsive economic infrastructure network","Growth","Infrastructure Development and Basic Service Delivery"]
["d0a8c200-23d4-4309-8ea5-97922584a36d","Electrfication of Mageva Village (150 units /stands)","PO004002001008000000000000000000000000_00060","_","An efficient, competitive and responsive economic infrastructure network","Growth","Infrastructure Development and Basic Service Delivery"]
["d0a8c200-23d4-4309-8ea5-97922584a36d","Electrfication of Mahlathi Village (150 units /stands)","PO004002001008000000000000000000000000_00061","_","An efficient, competitive and responsive economic infrastructure network","Growth","Infrastructure Development and Basic Service Delivery"]
["d0a8c200-23d4-4309-8ea5-97922584a36d","Electrfication of Maswanganyi Village (250 units /stands)","PO004002001008000000000000000000000000_00067","_","An efficient, competitive and responsive economic infrastructure network","Growth","Infrastructure Development and Basic Service Delivery"]
["d0a8c200-23d4-4309-8ea5-97922584a36d","Electrfication of Matsotsosela Village (150 units /stands)","PO004002001008000000000000000000000000_00062","_","An efficient, competitive and responsive economic infrastructure network","Growth","Infrastructure Development and Basic Service Delivery"]
["d0a8c200-23d4-4309-8ea5-97922584a36d","Electrfication of Mbhedhe Village (150 units /stands)","PO004002001008000000000000000000000000_00063","_","An efficient, competitive and responsive economic infrastructure network","Growth","Infrastructure Development and Basic Service Delivery"]
["d0a8c200-23d4-4309-8ea5-97922584a36d","Electrfication of Mnghonghoma Village (200 units /stands)","PO004002001008000000000000000000000000_00064","_","An efficient, competitive and responsive economic infrastructure network","Growth","Infrastructure Development and Basic Service Delivery"]
["d0a8c200-23d4-4309-8ea5-97922584a36d","Electrfication of Ntshuxi Village (100 units /stands)","PO004002001008000000000000000000000000_00065","_","An efficient, competitive and responsive economic infrastructure network","Growth","Infrastructure Development and Basic Service Delivery"]
["d0a8c200-23d4-4309-8ea5-97922584a36d","Electrfication of Nwamankena Village (200 units /stands)","PO004002001008000000000000000000000000_00068","_","An efficient, competitive and responsive economic infrastructure network","Growth","Infrastructure Development and Basic Service Delivery"]
["d0a8c200-23d4-4309-8ea5-97922584a36d","Electrfication of Phikela Village (100 units /stands)","PO004002001008000000000000000000000000_00066","_","An efficient, competitive and responsive economic infrastructure network","Growth","Infrastructure Development and Basic Service Delivery"]
["d0a8c200-23d4-4309-8ea5-97922584a36d","Electricity Operations ","PO001001002001002003001000000000000000_00001","_","An efficient, competitive and responsive economic infrastructure network","Inclusion and access","Institutional Development and Transformation"]
["d0a8c200-23d4-4309-8ea5-97922584a36d","Electricity Operations ","PO001001002001002003001000000000000000_00001","_","An efficient, competitive and responsive economic infrastructure network","Inclusion and access","Institutional Development and Transformation"]
["d0a8c200-23d4-4309-8ea5-97922584a36d","Electricity Operations ","PO001001002001002003001000000000000000_00002","_","An efficient, competitive and responsive economic infrastructure network","Inclusion and access","Institutional Development and Transformation"]
["d0a8c200-23d4-4309-8ea5-97922584a36d","Electricity Operations ","PO001001002001002003001000000000000000_00002","_","An efficient, competitive and responsive economic infrastructure network","Inclusion and access","Institutional Development and Transformation"]
["d0a8c200-23d4-4309-8ea5-97922584a36d","Electricity Operations ","PO001002002001003001001002000000000000_00002","_","An efficient, effective and development-oriented public service","Governance","Institutional Development and Transformation"]
["d0a8c200-23d4-4309-8ea5-97922584a36d","Electricity Operations ","PO001002002001003001001002000000000000_00002","_","An efficient, effective and development-oriented public service","Governance","Institutional Development and Transformation"]
["d0a8c200-23d4-4309-8ea5-97922584a36d","Electricity Operations ","PO002000000000000000000000000000000000","_","Sustainable human settlements and improved quality of household life","Governance","Institutional Development and Transformation"]
["d0a8c200-23d4-4309-8ea5-97922584a36d","Electricity Operations ","PO002000000000000000000000000000000000","_","Sustainable human settlements and improved quality of household life","Governance","Institutional Development and Transformation"]
["d0a8c200-23d4-4309-8ea5-97922584a36d","Electrification Mninginisi block 3 (200 units /stands)","PO004002001008000000000000000000000000_00049","_","An efficient, competitive and responsive economic infrastructure network","Growth","Infrastructure Development and Basic Service Delivery"]
["d0a8c200-23d4-4309-8ea5-97922584a36d","Electrification of Babangu village","PO004002001008000000000000000000000000_00026","_","An efficient, competitive and responsive economic infrastructure network","Growth","Infrastructure Development and Basic Service Delivery"]
["d0a8c200-23d4-4309-8ea5-97922584a36d","Electrification of Blinkwater village","PO004002001008000000000000000000000000_00022","_","An efficient, competitive and responsive economic infrastructure network","Growth","Institutional Development and Transformation"]
["d0a8c200-23d4-4309-8ea5-97922584a36d","Electrification of Bode extension (200 units / stands)","PO004002001008000000000000000000000000_00052","_","An efficient, competitive and responsive economic infrastructure network","Growth","Infrastructure Development and Basic Service Delivery"]
["d0a8c200-23d4-4309-8ea5-97922584a36d","Electrification of Botshabelo village (150 units /stands)","PO004002001008000000000000000000000000_00070","_","An efficient, competitive and responsive economic infrastructure network","Growth","Infrastructure Development and Basic Service Delivery"]
["d0a8c200-23d4-4309-8ea5-97922584a36d","Electrification of Church View village (200 units /stands)","PO004002001008000000000000000000000000_00045","_","An efficient, competitive and responsive economic infrastructure network","Growth","Infrastructure Development and Basic Service Delivery"]
["d0a8c200-23d4-4309-8ea5-97922584a36d","Electrification of Daniel Rabalela village (120 units / stands)","PO004002001008000000000000000000000000_00055","_","An efficient, competitive and responsive economic infrastructure network","Growth","Infrastructure Development and Basic Service Delivery"]
["d0a8c200-23d4-4309-8ea5-97922584a36d","Electrification of Gon'on'o village ","PO004002001008000000000000000000000000_00027","_","An efficient, competitive and responsive economic infrastructure network","Growth","Institutional Development and Transformation"]
["d0a8c200-23d4-4309-8ea5-97922584a36d","Electrification of Hlaneki village (150 units / stands)","PO004002001007000000000000000000000000_00008","_","An efficient, competitive and responsive economic infrastructure network","Growth","Infrastructure Development and Basic Service Delivery"]
["d0a8c200-23d4-4309-8ea5-97922584a36d","Electrification of Hlomela, Siyandhani, Babangu & Ntshuxi Villages","PO004002001008000000000000000000000000_00006","_","An efficient, competitive and responsive economic infrastructure network","Growth","Infrastructure Development and Basic Service Delivery"]
["d0a8c200-23d4-4309-8ea5-97922584a36d","Electrification of Homu 14A extension (200 units /stands)","PO004002001008000000000000000000000000_00051","_","An efficient, competitive and responsive economic infrastructure network","Growth","Infrastructure Development and Basic Service Delivery"]
["d0a8c200-23d4-4309-8ea5-97922584a36d","Electrification of Makhuva village (200 units /stands)","PO004002001008000000000000000000000000_00040","_","An efficient, competitive and responsive economic infrastructure network","Growth","Infrastructure Development and Basic Service Delivery"]
["d0a8c200-23d4-4309-8ea5-97922584a36d","Electrification of Makoxa village (100 units /stands)","PO004002001008000000000000000000000000_00074","_","An efficient, competitive and responsive economic infrastructure network","Growth","Infrastructure Development and Basic Service Delivery"]
["d0a8c200-23d4-4309-8ea5-97922584a36d","Electrification of Manómbe village (100 units /stands)","PO004002001008000000000000000000000000_00073","_","An efficient, competitive and responsive economic infrastructure network","Growth","Infrastructure Development and Basic Service Delivery"]
["d0a8c200-23d4-4309-8ea5-97922584a36d","Electrification of Mapeyeni village (190 units / stands)","PO004002001008000000000000000000000000_00054","_","An efficient, competitive and responsive economic infrastructure network","Growth","Infrastructure Development and Basic Service Delivery"]
["d0a8c200-23d4-4309-8ea5-97922584a36d","Electrification of Maphata village (200 units / stands)","PO004002001008000000000000000000000000_00042","_","An efficient, competitive and responsive economic infrastructure network","Growth","Infrastructure Development and Basic Service Delivery"]
["d0a8c200-23d4-4309-8ea5-97922584a36d","Electrification of Mashavela village","PO004002001008000000000000000000000000_00024","_","An efficient, competitive and responsive economic infrastructure network","Growth","Infrastructure Development and Basic Service Delivery"]
["d0a8c200-23d4-4309-8ea5-97922584a36d","Electrification of Mavalani village ","PO004002001008000000000000000000000000_00025","_","An efficient, competitive and responsive economic infrastructure network","Growth","Infrastructure Development and Basic Service Delivery"]
["d0a8c200-23d4-4309-8ea5-97922584a36d","Electrification of Mavhusa village","PO004002001008000000000000000000000000_00010","_","An efficient, competitive and responsive economic infrastructure network","Growth","Infrastructure Development and Basic Service Delivery"]
["d0a8c200-23d4-4309-8ea5-97922584a36d","Electrification of Mninginisi B2 village (150 units /stands)","PO004002001008000000000000000000000000_00072","_","An efficient, competitive and responsive economic infrastructure network","Growth","Infrastructure Development and Basic Service Delivery"]
["d0a8c200-23d4-4309-8ea5-97922584a36d","Electrification of Ndengeza village","PO004002001008000000000000000000000000_00019","_","An efficient, competitive and responsive economic infrastructure network","Growth","Infrastructure Development and Basic Service Delivery"]
["d0a8c200-23d4-4309-8ea5-97922584a36d","Electrification of Ndhambi village (100 units /stands)","PO004002001008000000000000000000000000_00077","_","An efficient, competitive and responsive economic infrastructure network","Growth","Infrastructure Development and Basic Service Delivery"]
["d0a8c200-23d4-4309-8ea5-97922584a36d","Electrification of Ndindani village (100 units /stands)","PO004002001008000000000000000000000000_00076","_","An efficient, competitive and responsive economic infrastructure network","Growth","Infrastructure Development and Basic Service Delivery"]
["d0a8c200-23d4-4309-8ea5-97922584a36d","Electrification of Ngove village (100 units /stands)","PO004002001008000000000000000000000000_00071","_","An efficient, competitive and responsive economic infrastructure network","Growth","Infrastructure Development and Basic Service Delivery"]
["d0a8c200-23d4-4309-8ea5-97922584a36d","Electrification of Noblehook village ","PO004002001008000000000000000000000000_00023","_","An efficient, competitive and responsive economic infrastructure network","Growth","Institutional Development and Transformation"]
["d0a8c200-23d4-4309-8ea5-97922584a36d","Electrification of Nsavulani village (200 units /stands)","PO004002001008000000000000000000000000_00044","_","An efficient, competitive and responsive economic infrastructure network","Growth","Infrastructure Development and Basic Service Delivery"]
["d0a8c200-23d4-4309-8ea5-97922584a36d","Electrification of Nwadzekudzeku village (200 units /stands)","PO004002001008000000000000000000000000_00041","_","An efficient, competitive and responsive economic infrastructure network","Growth","Infrastructure Development and Basic Service Delivery"]
["d0a8c200-23d4-4309-8ea5-97922584a36d","Electrification of Section F (539 units /stands)","PO004002001008000000000000000000000000_00047","_","An efficient, competitive and responsive economic infrastructure network","Growth","Infrastructure Development and Basic Service Delivery"]
["d0a8c200-23d4-4309-8ea5-97922584a36d","Electrification of Shimange village","PO004002001008000000000000000000000000_00012","_","An efficient, competitive and responsive economic infrastructure network","Growth","Good Governance and Public Participation"]
["d0a8c200-23d4-4309-8ea5-97922584a36d","Electrification of Shivulani village (200 units /stands)","PO004002001008000000000000000000000000_00048","_","An efficient, competitive and responsive economic infrastructure network","Growth","Infrastructure Development and Basic Service Delivery"]
["d0a8c200-23d4-4309-8ea5-97922584a36d","Electrification of Sifasonke village","PO004002001008000000000000000000000000_00015","_","An efficient, competitive and responsive economic infrastructure network","Growth","Infrastructure Development and Basic Service Delivery"]
["d0a8c200-23d4-4309-8ea5-97922584a36d","Electrification of Sikhunyani village (200 units / stands)","PO004002001008000000000000000000000000_00053","_","An efficient, competitive and responsive economic infrastructure network","Growth","Infrastructure Development and Basic Service Delivery"]
["d0a8c200-23d4-4309-8ea5-97922584a36d","Electrification of Siyandhani village (450 units /stands)","PO004002001008000000000000000000000000_00069","_","An efficient, competitive and responsive economic infrastructure network","Growth","Infrastructure Development and Basic Service Delivery"]
["d0a8c200-23d4-4309-8ea5-97922584a36d","Electrification of Thomo village (250 units /stands)","PO004002001008000000000000000000000000_00075","_","An efficient, competitive and responsive economic infrastructure network","Growth","Infrastructure Development and Basic Service Delivery"]
["d0a8c200-23d4-4309-8ea5-97922584a36d","Electrification of Tomu village","PO004002001008000000000000000000000000_00013","_","An efficient, competitive and responsive economic infrastructure network","Growth","Infrastructure Development and Basic Service Delivery"]
["d0a8c200-23d4-4309-8ea5-97922584a36d","Free Basic Electricity","PO003021000000000000000000000000000000_00001","_","Responsive, accountable, effective and efficient local government","Inclusion and access","Infrastructure Development and Basic Service Delivery"]
["d0a8c200-23d4-4309-8ea5-97922584a36d","Installation of High mast in 93 villages (CBD)","PO004002001008000000000000000000000000_00035","_","An efficient, competitive and responsive economic infrastructure network","Growth","Infrastructure Development and Basic Service Delivery"]
["d322a6d8-8a77-4f3e-b409-e49df0b85989","Bursaries","PO003007005000000000000000000000000000_00002","_","A comprehensive, responsive and sustainable social protection system","Inclusion and access","Good Governance and Public Participation"]
["d322a6d8-8a77-4f3e-b409-e49df0b85989","Child & Oldage Support","PO003007001000000000000000000000000000_00002","_","A comprehensive, responsive and sustainable social protection system","Inclusion and access","Good Governance and Public Participation"]
["d322a6d8-8a77-4f3e-b409-e49df0b85989","Child & Oldage Support","PO003007007000000000000000000000000000_00001","_","A comprehensive, responsive and sustainable social protection system","Inclusion and access","Good Governance and Public Participation"]
["d322a6d8-8a77-4f3e-b409-e49df0b85989","Communications Related","PO003006001000000000000000000000000000_00001","_","Sustainable human settlements and improved quality of household life","Inclusion and access","Good Governance and Public Participation"]
["d322a6d8-8a77-4f3e-b409-e49df0b85989","Council Services","PO002000000000000000000000000000000000","_","Sustainable human settlements and improved quality of household life","Governance","Good Governance and Public Participation"]
["d322a6d8-8a77-4f3e-b409-e49df0b85989","Council Services","PO002000000000000000000000000000000000","_","Sustainable human settlements and improved quality of household life","Governance","Good Governance and Public Participation"]
["d322a6d8-8a77-4f3e-b409-e49df0b85989","Disability Support","PO003007004000000000000000000000000000_00001","_","A comprehensive, responsive and sustainable social protection system","Inclusion and access","Good Governance and Public Participation"]
["d322a6d8-8a77-4f3e-b409-e49df0b85989","Event Management","PO003017003000000000000000000000000000_00001","_","An efficient, effective and development-oriented public service","Inclusion and access","Good Governance and Public Participation"]
["d322a6d8-8a77-4f3e-b409-e49df0b85989","Excellent Awards","PO003007002000000000000000000000000000_00002","_","A comprehensive, responsive and sustainable social protection system","Inclusion and access","Good Governance and Public Participation"]
["d322a6d8-8a77-4f3e-b409-e49df0b85989","Gender Support","PO003007011000000000000000000000000000_00001","_","A comprehensive, responsive and sustainable social protection system","Inclusion and access","Good Governance and Public Participation"]
["d322a6d8-8a77-4f3e-b409-e49df0b85989","HIV/Candle Lighting","PO003002002001000000000000000000000000_00001","_","A long and healthy life for all South Africans","Inclusion and access","Good Governance and Public Participation"]
["d322a6d8-8a77-4f3e-b409-e49df0b85989","Mayor's Tournament","PO003043004000000000000000000000000000_00001","_","An efficient, effective and development-oriented public service","Inclusion and access","Good Governance and Public Participation"]
["d322a6d8-8a77-4f3e-b409-e49df0b85989","Public Meetings and Campaings","PO003006006000000000000000000000000000_00001","_","Sustainable human settlements and improved quality of household life","Inclusion and access","Good Governance and Public Participation"]
["d322a6d8-8a77-4f3e-b409-e49df0b85989","Traditional Authority Support","PO003017005000000000000000000000000000_00001","_","An efficient, effective and development-oriented public service","Inclusion and access","Good Governance and Public Participation"]
["d322a6d8-8a77-4f3e-b409-e49df0b85989","Youth Support","PO003007017002000000000000000000000000_00001","_","A comprehensive, responsive and sustainable social protection system","Inclusion and access","Good Governance and Public Participation"]
["db25977d-5db7-4f77-9525-1e345d214a0a","Housing Administration","PO002000000000000000000000000000000000","_","Sustainable human settlements and improved quality of household life","Governance","Infrastructure Development and Basic Service Delivery"]
["e38be026-aa91-4710-9bdc-3b0f3755cc1a","African Travel Indaba","PO003017005000000000000000000000000000_00002","_","An efficient, effective and development-oriented public service","Inclusion and access","Local Economic Development"]
["e38be026-aa91-4710-9bdc-3b0f3755cc1a","AMARULA SHOW","PO003023003000000000000000000000000000_00002","_","An efficient, effective and development-oriented public service","Spatial integration","Infrastructure Development and Basic Service Delivery"]
["e38be026-aa91-4710-9bdc-3b0f3755cc1a","Female Enterpreneur","PO003007008000000000000000000000000000_00001","_","A comprehensive, responsive and sustainable social protection system","Inclusion and access","Good Governance and Public Participation"]
["e38be026-aa91-4710-9bdc-3b0f3755cc1a","LED Supports","PO003023002000000000000000000000000000_00001","_","An efficient, effective and development-oriented public service","Spatial integration","Local Economic Development"]
["e38be026-aa91-4710-9bdc-3b0f3755cc1a","RAND EASTER SHOW","PO003023003000000000000000000000000000_00003","_","An efficient, effective and development-oriented public service","Spatial integration","Infrastructure Development and Basic Service Delivery"]
["e65f548d-c3fb-4eb6-b042-e507e9eec386","Deeds Registration Of Sites","PO003042000000000000000000000000000000_00007","_","An efficient, effective and development-oriented public service","Spatial integration","Infrastructure Development and Basic Service Delivery"]
["e65f548d-c3fb-4eb6-b042-e507e9eec386","Formalisation of Church View","PO003042000000000000000000000000000000_00005","_","An efficient, effective and development-oriented public service","Spatial integration","To develop an effective spatial framework that promotes integrated and sustainable development"]
["e65f548d-c3fb-4eb6-b042-e507e9eec386","Formalisation of Makosha Risinga Externsion","PO003023001000000000000000000000000000_00002","_","An efficient, effective and development-oriented public service","Spatial integration","Infrastructure Development and Basic Service Delivery"]
["e65f548d-c3fb-4eb6-b042-e507e9eec386","GIS Upgrade","PO003042000000000000000000000000000000_00008","_","An efficient, effective and development-oriented public service","Spatial integration","To develop an effective spatial framework that promotes integrated and sustainable development"]
["e65f548d-c3fb-4eb6-b042-e507e9eec386","Mahumani Presinct Plan","PO003042000000000000000000000000000000_00022","_","An efficient, effective and development-oriented public service","Spatial integration","Infrastructure Development and Basic Service Delivery"]
["e65f548d-c3fb-4eb6-b042-e507e9eec386","Proclamation Programme","PO003042000000000000000000000000000000_00006","_","An efficient, effective and development-oriented public service","Spatial integration","To develop an effective spatial framework that promotes integrated and sustainable development"]
["e65f548d-c3fb-4eb6-b042-e507e9eec386","Rezoning and Subdivision of Parks","PO003042000000000000000000000000000000_00009","_","An efficient, effective and development-oriented public service","Spatial integration","To develop an effective spatial framework that promotes integrated and sustainable development"]
["e65f548d-c3fb-4eb6-b042-e507e9eec386","Site Demarcation in Villages","PO003042000000000000000000000000000000_00004","_","An efficient, effective and development-oriented public service","Spatial integration","To develop an effective spatial framework that promotes integrated and sustainable development"]
["e65f548d-c3fb-4eb6-b042-e507e9eec386","Street Naming (Including Registration)","PO003042000000000000000000000000000000_00003","_","An efficient, effective and development-oriented public service","Spatial integration","To develop an effective spatial framework that promotes integrated and sustainable development"]
["e65f548d-c3fb-4eb6-b042-e507e9eec386","Street naming Giyani BA & Giyani C","PO003042000000000000000000000000000000_00011","_","An efficient, effective and development-oriented public service","Spatial integration","Infrastructure Development and Basic Service Delivery"]
["e65f548d-c3fb-4eb6-b042-e507e9eec386","Street Naming Giyani E","PO003042000000000000000000000000000000_00020","_","An efficient, effective and development-oriented public service","Spatial integration","Infrastructure Development and Basic Service Delivery"]
["e65f548d-c3fb-4eb6-b042-e507e9eec386","Street naming Giyani section A","PO003042000000000000000000000000000000_00010","_","An efficient, effective and development-oriented public service","Spatial integration","Infrastructure Development and Basic Service Delivery"]
["e65f548d-c3fb-4eb6-b042-e507e9eec386","Street Naming Kremetart","PO003042000000000000000000000000000000_00022","_","An efficient, effective and development-oriented public service","Spatial integration","Infrastructure Development and Basic Service Delivery"]
["e65f548d-c3fb-4eb6-b042-e507e9eec386","Subdivision, Rezoning & Registration of municipal properties in villages","PO003042000000000000000000000000000000_00012","_","An efficient, effective and development-oriented public service","Spatial integration","Good Governance and Public Participation"]
["e65f548d-c3fb-4eb6-b042-e507e9eec386","Town Expanstion (Ngove Village)","PO003023001000000000000000000000000000_00004","_","An efficient, effective and development-oriented public service","Spatial integration","To develop an effective spatial framework that promotes integrated and sustainable development"]
["e65f548d-c3fb-4eb6-b042-e507e9eec386","Town Planning Administration ","PO002000000000000000000000000000000000","_","Sustainable human settlements and improved quality of household life","Governance","Infrastructure Development and Basic Service Delivery"]
["e65f548d-c3fb-4eb6-b042-e507e9eec386","Town Planning Administration ","PO002000000000000000000000000000000000","_","Sustainable human settlements and improved quality of household life","Governance","Infrastructure Development and Basic Service Delivery"]
["e65f548d-c3fb-4eb6-b042-e507e9eec386","Township Establishhment Dzingidzingi","PO003042000000000000000000000000000000_00016","_","An efficient, effective and development-oriented public service","Spatial integration","Infrastructure Development and Basic Service Delivery"]
["e65f548d-c3fb-4eb6-b042-e507e9eec386","Township establishment Ndengeza 500 sites","PO003042000000000000000000000000000000_00019","_","An efficient, effective and development-oriented public service","Spatial integration","Infrastructure Development and Basic Service Delivery"]
["e65f548d-c3fb-4eb6-b042-e507e9eec386","Township establishment Ndengeza 500 sites","PO003042000000000000000000000000000000_00020","_","An efficient, effective and development-oriented public service","Spatial integration","Local Economic Development"]
["e65f548d-c3fb-4eb6-b042-e507e9eec386","Township Establishment Ngove Village","PO003042000000000000000000000000000000_00021","_","An efficient, effective and development-oriented public service","Spatial integration","Local Economic Development"]
["e65f548d-c3fb-4eb6-b042-e507e9eec386","Township Establishment Siyandhani","PO003042000000000000000000000000000000_00002","_","An efficient, effective and development-oriented public service","Spatial integration","To develop an effective spatial framework that promotes integrated and sustainable development"]
["e65f548d-c3fb-4eb6-b042-e507e9eec386","Township Establishment Skhunyani","PO003042000000000000000000000000000000_00018","_","An efficient, effective and development-oriented public service","Spatial integration","Infrastructure Development and Basic Service Delivery"]
["f3333fef-376f-4d03-b158-f7050b66056d","Senior Management","PO002000000000000000000000000000000000","_","Sustainable human settlements and improved quality of household life","Governance","Good Governance and Public Participation"]
["f3a9aaa9-529a-40d1-b981-722b2f743267","Assets Management","PO002000000000000000000000000000000000","_","Sustainable human settlements and improved quality of household life","Governance","Financial Viability"]
["f3a9aaa9-529a-40d1-b981-722b2f743267","Information Technology","PO001002002002004000000000000000000000_00001","_","An efficient, effective and development-oriented public service","Governance","Institutional Development and Transformation"]
["f3a9aaa9-529a-40d1-b981-722b2f743267","Information Technology","PO001002002002004000000000000000000000_00001","_","An efficient, effective and development-oriented public service","Governance","Institutional Development and Transformation"]
["f3a9aaa9-529a-40d1-b981-722b2f743267","Information Technology","PO002000000000000000000000000000000000","_","Sustainable human settlements and improved quality of household life","Governance","Institutional Development and Transformation"]
["0f52d9e5-907f-4d9f-934f-57dc012524d6","210 - Contracted Services","PO003014002000000000000000000000000000_00007","_","A comprehensive, responsive and sustainable social protection system","Governance"," To improve performance and functioning of the municipality"]
["0f52d9e5-907f-4d9f-934f-57dc012524d6","210 - Director Corporate","PO002000000000000000000000000000000000","_","Sustainable human settlements and improved quality of household life","Governance","To improve performance and functioning of the municipality\t"]
["0f52d9e5-907f-4d9f-934f-57dc012524d6","210 - Employee related Costs - Salaries","PO002000000000000000000000000000000000","_","Sustainable human settlements and improved quality of household life","Governance","To improve performance and functioning of the municipality\t"]
["0f52d9e5-907f-4d9f-934f-57dc012524d6","210 - Employee related Costs - Social Contributions","PO002000000000000000000000000000000000","_","Sustainable human settlements and improved quality of household life","Governance"," To improve the performance and functioning of the municipality\t"]
["0f52d9e5-907f-4d9f-934f-57dc012524d6","210 - General Expenses","PO001002002001009000000000000000000000_00010","_","An efficient, effective and development-oriented public service","Governance","To improve performance and functioning of the municipality\t"]
["0f52d9e5-907f-4d9f-934f-57dc012524d6","210 - General Expenses","PO001002002001009000000000000000000000_00010","_","An efficient, effective and development-oriented public service","Governance","To improve performance and functioning of the municipality\t"]
["0f52d9e5-907f-4d9f-934f-57dc012524d6","210 - General Expenses","PO001002002001010000000000000000000000_00002","_","An efficient, effective and development-oriented public service","Governance","To improve performance and functioning of the municipality\t"]
["0f52d9e5-907f-4d9f-934f-57dc012524d6","210 - General Expenses","PO001002002001010000000000000000000000_00002","_","An efficient, effective and development-oriented public service","Governance","To improve performance and functioning of the municipality\t"]
["0f52d9e5-907f-4d9f-934f-57dc012524d6","210 - General Expenses","PO002000000000000000000000000000000000","_","Sustainable human settlements and improved quality of household life","Governance","To improve performance and functioning of the municipality\t"]
["0f52d9e5-907f-4d9f-934f-57dc012524d6","210 - General Expenses","PO002000000000000000000000000000000000","_","Sustainable human settlements and improved quality of household life","Governance","To improve performance and functioning of the municipality\t"]
["0f52d9e5-907f-4d9f-934f-57dc012524d6","210 - General Expenses","PO003006003000000000000000000000000000_00001","_","Sustainable human settlements and improved quality of household life","Inclusion and access","To improve performance and functioning of the municipality\t"]
["0f52d9e5-907f-4d9f-934f-57dc012524d6","210 - General Expenses","PO003019004000000000000000000000000000_00001","_","A long and healthy life for all South Africans","Inclusion and access","To improve performance and functioning of the municipality\t"]
["0f52d9e5-907f-4d9f-934f-57dc012524d6","210 - General Expenses","PO003020002000000000000000000000000000_00002","_","Responsive, accountable, effective and efficient local government","Governance","To improve performance and functioning of the municipality\t"]
["0f52d9e5-907f-4d9f-934f-57dc012524d6","210 - General Expenses","PO003020002000000000000000000000000000_00002","_","Responsive, accountable, effective and efficient local government","Governance","To improve performance and functioning of the municipality\t"]
["0f52d9e5-907f-4d9f-934f-57dc012524d6","210 - General Expenses","PO003020002000000000000000000000000000_00003","_","Responsive, accountable, effective and efficient local government","Governance","To improve performance and functioning of the municipality\t"]
["0f52d9e5-907f-4d9f-934f-57dc012524d6","210 - General Expenses","PO003020003000000000000000000000000000_00001","_","Responsive, accountable, effective and efficient local government","Governance","To improve performance and functioning of the municipality\t"]
["0f52d9e5-907f-4d9f-934f-57dc012524d6","210 - General Expenses","PO003020003000000000000000000000000000_00001","_","Responsive, accountable, effective and efficient local government","Governance","To improve performance and functioning of the municipality\t"]
["0f52d9e5-907f-4d9f-934f-57dc012524d6","210 - General Expenses","PO003044001000000000000000000000000000_00002","_","Responsive, accountable, effective and efficient local government","Spatial integration","To improve performance and functioning of the municipality\t"]
["0f52d9e5-907f-4d9f-934f-57dc012524d6","210 - General Expenses","PO003044001000000000000000000000000000_00003","_","Responsive, accountable, effective and efficient local government","Spatial integration","To improve performance and functioning of the municipality\t"]
["0f6032ee-c792-4735-aef9-9bdf01ab5d0c","405 - Employee related Costs - Social Contributions","PO002000000000000000000000000000000000","_","Sustainable human settlements and improved quality of household life","Governance","To improve performance and functioning of the municipality\t"]
["0f6032ee-c792-4735-aef9-9bdf01ab5d0c","405 - General Expenses","PO002000000000000000000000000000000000","_","Sustainable human settlements and improved quality of household life","Governance","To improve performance and functioning of the municipality\t"]
["15e72a49-cac8-46a3-a850-5352163e5772","300 - General Expenses ","PO002000000000000000000000000000000000","_","Sustainable human settlements and improved quality of household life","Governance","To improve performance and functioning of the municipality"]
["15e72a49-cac8-46a3-a850-5352163e5772","300 - General Expenses ","PO003004010000000000000000000000000000_00001","_","A skilled and capable workforce to support an inclusive growth path","Governance","To improve performance and functioning of the municipality"]
["15e72a49-cac8-46a3-a850-5352163e5772","Take on ","PO002000000000000000000000000000000000","_","Sustainable human settlements and improved quality of household life","Governance","Take-On"]
["2ead20d8-748d-4085-90c1-f5d27835d3df","610 - Contracted services","PO002000000000000000000000000000000000","_","Sustainable human settlements and improved quality of household life","Governance","To improve performance and functioning of the municipality\t"]
["2ead20d8-748d-4085-90c1-f5d27835d3df","610 - Repairs and Maintenance","PO001002002001009000000000000000000000_00004","_","An efficient, effective and development-oriented public service","Governance","To improve performance and functioning of the municipality"]
["2ead20d8-748d-4085-90c1-f5d27835d3df","610 - Repairs and Maintenance","PO001002002001009000000000000000000000_00004","_","An efficient, effective and development-oriented public service","Governance","To improve performance and functioning of the municipality"]
["315a0f4d-28ad-4cd2-a4a5-afb34a6a8e1f","425 - Employee related Cost - Salaries","PO002000000000000000000000000000000000","_","Sustainable human settlements and improved quality of household life","Governance","To improve performance and functioning of the municipality\t"]
["35f914ed-b099-4a36-890d-69e60fc0e57c","710 - General Expenses","PO002000000000000000000000000000000000","_","Sustainable human settlements and improved quality of household life","Governance","To improve performance and functioning of the municipality\t"]
["35f914ed-b099-4a36-890d-69e60fc0e57c","710 - General Expenses","PO003017004000000000000000000000000000_00001","_","An efficient, effective and development-oriented public service","Inclusion and access","To improve performance and functioning of the municipality\t"]
["39043a95-c08d-4bfc-bce2-b4e1763b0d24","400 - Transfers and other subsidies","PO003014002000000000000000000000000000_00002","_","A comprehensive, responsive and sustainable social protection system","Governance","To improve performance and functioning of the municipality"]
["39043a95-c08d-4bfc-bce2-b4e1763b0d24","400 - Transfers and other subsidies","PO003014002000000000000000000000000000_00003","_","A comprehensive, responsive and sustainable social protection system","Governance","To improve performance and functioning of the municipality"]
["39043a95-c08d-4bfc-bce2-b4e1763b0d24","400 - Transfers and other subsidies","PO003014002000000000000000000000000000_00003","_","A comprehensive, responsive and sustainable social protection system","Governance","To improve performance and functioning of the municipality"]
["39043a95-c08d-4bfc-bce2-b4e1763b0d24","610 - General Expenses","PO003014002000000000000000000000000000_00007","_","A comprehensive, responsive and sustainable social protection system","Governance","To improve performance and functioning of the municipality\t"]
["39043a95-c08d-4bfc-bce2-b4e1763b0d24","Take on ","PO003014002000000000000000000000000000_00001","_","A comprehensive, responsive and sustainable social protection system","Governance","Take-On"]
["43cba9e1-4f12-4828-89b8-792810a32596","800 - Repairs and Maintenance","PO001002002001004000000000000000000000_00001","_","An efficient, effective and development-oriented public service","Governance"," To improve performance and functioning of the municipality\t"]
["43cba9e1-4f12-4828-89b8-792810a32596","800 - Repairs and Maintenance","PO001002002001004000000000000000000000_00001","_","An efficient, effective and development-oriented public service","Governance"," To improve performance and functioning of the municipality\t"]
["600af0bf-7b13-4030-8d6a-6496e24eb507","500 - Employee related Costs - Salaries","PO002000000000000000000000000000000000","_","Sustainable human settlements and improved quality of household life","Governance"," To improve the performance and functioning of the municipality\t"]
["600af0bf-7b13-4030-8d6a-6496e24eb507","500 - Employee related Costs - Salaries","PO002000000000000000000000000000000000","_","Sustainable human settlements and improved quality of household life","Governance"," To improve the performance and functioning of the municipality\t"]
["61185155-d3a1-4f71-9cac-f2abb742ff7d","400 - Transfers and other subsidies","PO002000000000000000000000000000000000","_","Sustainable human settlements and improved quality of household life","Governance","To improve performance and functioning of the municipality"]
["637432c6-db61-405f-890e-55b3f99587d8","430 - General Expenses","PO003046004000000000000000000000000000_00001","_","An efficient, effective and development-oriented public service","Growth","To improve performance and functioning of the municipality\t"]
["67347610-1db2-421f-a89a-f87e772911eb","201 - Chief Finance Officer ","PO002000000000000000000000000000000000","_","Sustainable human settlements and improved quality of household life","Governance","To practice sound financial management principles"]
["67347610-1db2-421f-a89a-f87e772911eb","201 - Contracted Services","PO002000000000000000000000000000000000","_","Sustainable human settlements and improved quality of household life","Governance","To improve performance and functioning of the municipality"]
["67347610-1db2-421f-a89a-f87e772911eb","201 - Depreciation","PO002000000000000000000000000000000000","_","Sustainable human settlements and improved quality of household life","Governance","To practice sound financial management principles"]
["67347610-1db2-421f-a89a-f87e772911eb","201 - Employee related costs: Salaries","PO002000000000000000000000000000000000","_","Sustainable human settlements and improved quality of household life","Governance"," To improve performance and functioning of the municipality"]
["67347610-1db2-421f-a89a-f87e772911eb","201 - Employee related costs: Social Contributions","PO002000000000000000000000000000000000","_","Sustainable human settlements and improved quality of household life","Governance","To improve performance and functioning of the municipality"]
["67347610-1db2-421f-a89a-f87e772911eb","201 - Employee related costs: Social Contributions","PO002000000000000000000000000000000000","_","Sustainable human settlements and improved quality of household life","Governance","To improve performance and functioning of the municipality"]
["67347610-1db2-421f-a89a-f87e772911eb","201 - Finance Interns","PO002000000000000000000000000000000000","_","Sustainable human settlements and improved quality of household life","Governance","To practice sound financial management principles"]
["67347610-1db2-421f-a89a-f87e772911eb","201 - Finance Interns","PO002000000000000000000000000000000000","_","Sustainable human settlements and improved quality of household life","Governance","To practice sound financial management principles"]
["67347610-1db2-421f-a89a-f87e772911eb","201 - General Expenses","PO002000000000000000000000000000000000","_","Sustainable human settlements and improved quality of household life","Governance","To improve performance and functioning of the municipality\t"]
["67347610-1db2-421f-a89a-f87e772911eb","201 - General Expenses","PO002000000000000000000000000000000000","_","Sustainable human settlements and improved quality of household life","Governance","To improve performance and functioning of the municipality\t"]
["67347610-1db2-421f-a89a-f87e772911eb","201 - General Expenses","PO003036003000000000000000000000000000_00001","_","Sustainable human settlements and improved quality of household life","Spatial integration","To improve performance and functioning of the municipality\t"]
["67347610-1db2-421f-a89a-f87e772911eb","201 - General Expenses","PO003050002000000000000000000000000000_00001","_","Responsive, accountable, effective and efficient local government","Governance","To improve performance and functioning of the municipality\t"]
["67347610-1db2-421f-a89a-f87e772911eb","201 - General Expenses","PO003050002000000000000000000000000000_00001","_","Responsive, accountable, effective and efficient local government","Governance","To improve performance and functioning of the municipality\t"]
["67347610-1db2-421f-a89a-f87e772911eb","201 - General Expenses","PO003050002000000000000000000000000000_00002","_","Responsive, accountable, effective and efficient local government","Governance","To improve performance and functioning of the municipality\t"]
["67347610-1db2-421f-a89a-f87e772911eb","201 - General Expenses","PO003050002000000000000000000000000000_00002","_","Responsive, accountable, effective and efficient local government","Governance","To improve performance and functioning of the municipality\t"]
["67347610-1db2-421f-a89a-f87e772911eb","201 - Grants paid (Expenditure Transfer & Subsidies)","PO002000000000000000000000000000000000","_","Sustainable human settlements and improved quality of household life","Governance","To practice sound financial management principles"]
["67347610-1db2-421f-a89a-f87e772911eb","201 - Provision for bad debts","PO002000000000000000000000000000000000","_","Sustainable human settlements and improved quality of household life","Governance"," To improve the performance and functioning of the municipality\t"]
["67347610-1db2-421f-a89a-f87e772911eb","210 - General Expenses","PO003004003000000000000000000000000000_00001","_","A skilled and capable workforce to support an inclusive growth path","Governance","To improve performance and functioning of the municipality\t"]
["67347610-1db2-421f-a89a-f87e772911eb","Take on ","PO002000000000000000000000000000000000","_","Sustainable human settlements and improved quality of household life","Governance","Take-On"]
["67347610-1db2-421f-a89a-f87e772911eb","Take on ","PO002000000000000000000000000000000000","_","Sustainable human settlements and improved quality of household life","Governance","Take-On"]
["67347610-1db2-421f-a89a-f87e772911eb","VAT Account","PO002000000000000000000000000000000000","_","Sustainable human settlements and improved quality of household life","Governance","To improve performance and functioning of the municipality\t"]
["6fa14a15-a164-42cb-a263-a0b007852bc5","425 - Employee related Cost - Salaries","PO002000000000000000000000000000000000","_","Sustainable human settlements and improved quality of household life","Governance","To improve performance and functioning of the municipality\t"]
["6fa14a15-a164-42cb-a263-a0b007852bc5","425 - Employee related Cost - Social Contribution","PO002000000000000000000000000000000000","_","Sustainable human settlements and improved quality of household life","Governance","To improve performance and functioning of the municipality"]
["6fa14a15-a164-42cb-a263-a0b007852bc5","425 - General Expenses","PO002000000000000000000000000000000000","_","Sustainable human settlements and improved quality of household life","Governance"," To improve the performance and functioning of the municipality\t"]
["73e301d2-83cd-4a9c-a2e5-540f32ffda98","600 - General Expenses","PO002000000000000000000000000000000000","_","Sustainable human settlements and improved quality of household life","Governance","To improve performance and functioning of the municipality\t"]
["7bfc7c06-9b62-4cad-816b-78ab18ec23e3","220 - Repairs and Maintenance","PO001002002001003001001002000000000000_00001","_","An efficient, effective and development-oriented public service","Governance","Take-On"]
["7bfc7c06-9b62-4cad-816b-78ab18ec23e3","220 - Repairs and Maintenance","PO001002002001003001001002000000000000_00001","_","An efficient, effective and development-oriented public service","Governance","Take-On"]
["92aebb43-91da-45ab-a98d-95be1511fb78","405 - Employee related Costs - Salaries","PO002000000000000000000000000000000000","_","Sustainable human settlements and improved quality of household life","Governance"," To improve performance and functioning of the municipality"]
["92aebb43-91da-45ab-a98d-95be1511fb78","405 - General Expenses","PO001002002001009000000000000000000000_00001","_","An efficient, effective and development-oriented public service","Governance","To improve performance and functioning of the municipality\t"]
["92aebb43-91da-45ab-a98d-95be1511fb78","405 - General Expenses","PO001002002001009000000000000000000000_00001","_","An efficient, effective and development-oriented public service","Governance","To improve performance and functioning of the municipality\t"]
["92aebb43-91da-45ab-a98d-95be1511fb78","405 - General Expenses","PO002000000000000000000000000000000000","_","Sustainable human settlements and improved quality of household life","Governance","To improve performance and functioning of the municipality\t"]
["92aebb43-91da-45ab-a98d-95be1511fb78","405 - Grants Received","PO002000000000000000000000000000000000","_","Sustainable human settlements and improved quality of household life","Governance"," To improve performance and functioning of the municipality"]
["92aebb43-91da-45ab-a98d-95be1511fb78","425 - General Expenses","PO002000000000000000000000000000000000","_","Sustainable human settlements and improved quality of household life","Governance"," To improve the performance and functioning of the municipality\t"]
["a547e78a-9504-4d9a-bcea-6dc723b7bf4a","600 - Contracted Services","PO001002001002005000000000000000000000_00001","_","An efficient, effective and development-oriented public service","Governance"," To improve performance and functioning of the municipality\t"]
["a547e78a-9504-4d9a-bcea-6dc723b7bf4a","600 - Contracted Services","PO001002001002005000000000000000000000_00001","_","An efficient, effective and development-oriented public service","Governance"," To improve performance and functioning of the municipality\t"]
["a547e78a-9504-4d9a-bcea-6dc723b7bf4a","600 - Contracted Services","PO001002001002009000000000000000000000_00002","_","An efficient, effective and development-oriented public service","Governance"," To improve performance and functioning of the municipality\t"]
["a547e78a-9504-4d9a-bcea-6dc723b7bf4a","600 - Contracted Services","PO001002001002009000000000000000000000_00002","_","An efficient, effective and development-oriented public service","Governance"," To improve performance and functioning of the municipality\t"]
["a547e78a-9504-4d9a-bcea-6dc723b7bf4a","600 - Employee Related Cost - Salaries","PO002000000000000000000000000000000000","_","Sustainable human settlements and improved quality of household life","Governance","To improve performance and functioning of the municipality"]
["a547e78a-9504-4d9a-bcea-6dc723b7bf4a","600 - Employee Related Cost - Salaries","PO002000000000000000000000000000000000","_","Sustainable human settlements and improved quality of household life","Governance","To improve performance and functioning of the municipality"]
["a547e78a-9504-4d9a-bcea-6dc723b7bf4a","600 - Employee Related Cost - Social Contributions","PO002000000000000000000000000000000000","_","Sustainable human settlements and improved quality of household life","Governance","Take-On"]
["a547e78a-9504-4d9a-bcea-6dc723b7bf4a","600 - General Expenses","PO002000000000000000000000000000000000","_","Sustainable human settlements and improved quality of household life","Governance","To improve performance and functioning of the municipality\t"]
["a547e78a-9504-4d9a-bcea-6dc723b7bf4a","650 - General Expenses","PO001002002001009000000000000000000000_00011","_","An efficient, effective and development-oriented public service","Governance","To improve performance and functioning of the municipalitY"]
["a547e78a-9504-4d9a-bcea-6dc723b7bf4a","650 - General Expenses","PO001002002001009000000000000000000000_00011","_","An efficient, effective and development-oriented public service","Governance","To improve performance and functioning of the municipalitY"]
["be26bea6-58e3-4497-b52c-0bf597208207","225 - Director Infrastructure,Planning and Development","PO002000000000000000000000000000000000","_","Sustainable human settlements and improved quality of household life","Governance","To improve performance and functioning of the municipality\t"]
["be26bea6-58e3-4497-b52c-0bf597208207","225 - Employee related Costs - Salaries","PO002000000000000000000000000000000000","_","Sustainable human settlements and improved quality of household life","Governance","Take-On"]
["be26bea6-58e3-4497-b52c-0bf597208207","225 - Employee related Costs - Social Contributions","PO002000000000000000000000000000000000","_","Sustainable human settlements and improved quality of household life","Governance","To improve performance and functioning of the municipality\t"]
["be26bea6-58e3-4497-b52c-0bf597208207","225 - General Expenses","PO002000000000000000000000000000000000","_","Sustainable human settlements and improved quality of household life","Governance"," To improve the performance and functioning of the municipality\t"]
["be26bea6-58e3-4497-b52c-0bf597208207","900 - Employee related Costs - Salaries","PO002000000000000000000000000000000000","_","Sustainable human settlements and improved quality of household life","Governance","To improve performance and functioning of the municipality\t"]
["be26bea6-58e3-4497-b52c-0bf597208207","900 - Employee related Costs - Social Contributions","PO002000000000000000000000000000000000","_","Sustainable human settlements and improved quality of household life","Governance","To improve performance and functioning of the municipality\t"]
["be26bea6-58e3-4497-b52c-0bf597208207","900 - General Expenses","PO002000000000000000000000000000000000","_","Sustainable human settlements and improved quality of household life","Governance","To improve performance and functioning of the municipality\t"]
["be26bea6-58e3-4497-b52c-0bf597208207","900 - General Expenses","PO003025000000000000000000000000000000_00001","_","An efficient, effective and development-oriented public service","Inclusion and access","To improve performance and functioning of the municipality\t"]
["be26bea6-58e3-4497-b52c-0bf597208207","900 - Grants and Subsidies - Grant Paid","PO003016001000000000000000000000000000_00002","_","An efficient, effective and development-oriented public service","Inclusion and access","To improve performance and functioning of the municipality\t"]
["be26bea6-58e3-4497-b52c-0bf597208207","900 - Repairs and Maintenance","PO001001002001001008002000000000000000_00001","_","An efficient, competitive and responsive economic infrastructure network","Inclusion and access","To improve performance and functioning of the municipality\t"]
["be26bea6-58e3-4497-b52c-0bf597208207","900 - Repairs and Maintenance","PO001001002001001008002000000000000000_00001","_","An efficient, competitive and responsive economic infrastructure network","Inclusion and access","To improve performance and functioning of the municipality\t"]
["be26bea6-58e3-4497-b52c-0bf597208207","900 - Repairs and Maintenance","PO001001002001002003001000000000000000_00001","_","An efficient, competitive and responsive economic infrastructure network","Inclusion and access","To improve performance and functioning of the municipality\t"]
["be26bea6-58e3-4497-b52c-0bf597208207","900 - Repairs and Maintenance","PO001001002001002003001000000000000000_00001","_","An efficient, competitive and responsive economic infrastructure network","Inclusion and access","To improve performance and functioning of the municipality\t"]
["be26bea6-58e3-4497-b52c-0bf597208207","900 - Repairs and Maintenance","PO001002002001009000000000000000000000_00005","_","An efficient, effective and development-oriented public service","Governance","To improve performance and functioning of the municipality\t"]
["be26bea6-58e3-4497-b52c-0bf597208207","900 - Repairs and Maintenance","PO001002002001009000000000000000000000_00005","_","An efficient, effective and development-oriented public service","Governance","To improve performance and functioning of the municipality\t"]
["c746317f-626c-4092-b71c-e7194f3d8b8a","710 - General Expenses","PO002000000000000000000000000000000000","_","Sustainable human settlements and improved quality of household life","Governance","To improve performance and functioning of the municipality\t"]
["d317de10-fc16-4529-ac77-fef08672af07","400 - Transfers and other subsidies","PO003046003000000000000000000000000000_00001","_","An efficient, effective and development-oriented public service","Growth","To improve performance and functioning of the municipality"]
["d317de10-fc16-4529-ac77-fef08672af07","430 - General Expenses","PO003046004000000000000000000000000000_00001","_","An efficient, effective and development-oriented public service","Growth","To improve performance and functioning of the municipality\t"]
["d322a6d8-8a77-4f3e-b409-e49df0b85989","100 - All Other Councillors","PO002000000000000000000000000000000000","_","Sustainable human settlements and improved quality of household life","Governance","Take-On"]
["d322a6d8-8a77-4f3e-b409-e49df0b85989","100 - Community development - Womens Upliftment","PO003007003000000000000000000000000000_00011","_","A comprehensive, responsive and sustainable social protection system","Inclusion and access","Take-On"]
["d322a6d8-8a77-4f3e-b409-e49df0b85989","100 - Deputy Mayor","PO002000000000000000000000000000000000","_","Sustainable human settlements and improved quality of household life","Governance","Take-On"]
["d322a6d8-8a77-4f3e-b409-e49df0b85989","100 - Deputy Mayor","PO002000000000000000000000000000000000","_","Sustainable human settlements and improved quality of household life","Governance","Take-On"]
["d322a6d8-8a77-4f3e-b409-e49df0b85989","100 - Employee related costs: Salaries","PO002000000000000000000000000000000000","_","Sustainable human settlements and improved quality of household life","Governance","Take-On"]
["d322a6d8-8a77-4f3e-b409-e49df0b85989","100 - Employee related costs: Salaries","PO002000000000000000000000000000000000","_","Sustainable human settlements and improved quality of household life","Governance","Take-On"]
["d322a6d8-8a77-4f3e-b409-e49df0b85989","100 - Employee related costs: Social Contributions","PO002000000000000000000000000000000000","_","Sustainable human settlements and improved quality of household life","Governance","Take-On"]
["d322a6d8-8a77-4f3e-b409-e49df0b85989","100 - Executive Committee","PO002000000000000000000000000000000000","_","Sustainable human settlements and improved quality of household life","Governance","Take-On"]
["d322a6d8-8a77-4f3e-b409-e49df0b85989","100 - Executive Committee","PO002000000000000000000000000000000000","_","Sustainable human settlements and improved quality of household life","Governance","Take-On"]
["d322a6d8-8a77-4f3e-b409-e49df0b85989","100 - Executive Mayor","PO002000000000000000000000000000000000","_","Sustainable human settlements and improved quality of household life","Governance","Take-On"]
["d322a6d8-8a77-4f3e-b409-e49df0b85989","100 - Executive Mayor","PO002000000000000000000000000000000000","_","Sustainable human settlements and improved quality of household life","Governance","Take-On"]
["d322a6d8-8a77-4f3e-b409-e49df0b85989","100 - General Expenses","PO002000000000000000000000000000000000","_","Sustainable human settlements and improved quality of household life","Governance","Take-On"]
["d322a6d8-8a77-4f3e-b409-e49df0b85989","100 - General Expenses","PO003004002000000000000000000000000000_00001","_","A skilled and capable workforce to support an inclusive growth path","Governance","Take-On"]
["d322a6d8-8a77-4f3e-b409-e49df0b85989","100 - General Expenses","PO003007002000000000000000000000000000_00001","_","A comprehensive, responsive and sustainable social protection system","Inclusion and access","Take-On"]
["d322a6d8-8a77-4f3e-b409-e49df0b85989","100 - General Expenses","PO003039000000000000000000000000000000_00002","_","An efficient, effective and development-oriented public service","Inclusion and access","Take-On"]
["d322a6d8-8a77-4f3e-b409-e49df0b85989","100 - MPAC Chairperson","PO002000000000000000000000000000000000","_","Sustainable human settlements and improved quality of household life","Governance","Take-On"]
["d322a6d8-8a77-4f3e-b409-e49df0b85989","100 - MPAC Chairperson","PO002000000000000000000000000000000000","_","Sustainable human settlements and improved quality of household life","Governance","Take-On"]
["d322a6d8-8a77-4f3e-b409-e49df0b85989","100 - Speaker","PO002000000000000000000000000000000000","_","Sustainable human settlements and improved quality of household life","Governance","Take-On"]
["d322a6d8-8a77-4f3e-b409-e49df0b85989","100 - Speaker","PO002000000000000000000000000000000000","_","Sustainable human settlements and improved quality of household life","Governance","Take-On"]
["d322a6d8-8a77-4f3e-b409-e49df0b85989","201 - Contracted Services","PO005003010000000000000000000000000000_00001","_","An efficient, effective and development-oriented public service","Growth","To improve performance and functioning of the municipality"]
["d322a6d8-8a77-4f3e-b409-e49df0b85989","400 - Community development - Salga Games Selection","PO003007003000000000000000000000000000_00008","_","A comprehensive, responsive and sustainable social protection system","Inclusion and access"," To improve performance and functioning of the municipality"]
["d811b4a0-bb38-42b0-a782-dfb688cac70f","430 - General Expenses","PO003023002000000000000000000000000000_00001","_","An efficient, effective and development-oriented public service","Spatial integration","To improve performance and functioning of the municipality\t"]
["d89462ad-3491-44f4-8960-a2b5f7475e9c","100 - General Expenses","PO003007017002000000000000000000000000_00002","_","A comprehensive, responsive and sustainable social protection system","Inclusion and access","Take-On"]
["d89462ad-3491-44f4-8960-a2b5f7475e9c","300 - General Expenses ","PO003002003000000000000000000000000000_00001","_","A long and healthy life for all South Africans","Inclusion and access","To improve performance and functioning of the municipality"]
["d89462ad-3491-44f4-8960-a2b5f7475e9c","300 - General Expenses ","PO003002003000000000000000000000000000_00001","_","A long and healthy life for all South Africans","Inclusion and access","To improve performance and functioning of the municipality"]
["d89462ad-3491-44f4-8960-a2b5f7475e9c","300 - General Expenses ","PO003002003000000000000000000000000000_00002","_","A long and healthy life for all South Africans","Inclusion and access","To improve performance and functioning of the municipality"]
["d89462ad-3491-44f4-8960-a2b5f7475e9c","400 - Community development - Back to School ","PO003007003000000000000000000000000000_00005","_","A comprehensive, responsive and sustainable social protection system","Inclusion and access","To improve performance and functioning of the municipality\t"]
["d89462ad-3491-44f4-8960-a2b5f7475e9c","400 - Community development - Career Exhibition and Career Guidance","PO003007003000000000000000000000000000_00006","_","A comprehensive, responsive and sustainable social protection system","Inclusion and access"," To improve the performance and functioning of the municipality\t"]
["d89462ad-3491-44f4-8960-a2b5f7475e9c","400 - Community development - Marathon  ","PO003007003000000000000000000000000000_00003","_","A comprehensive, responsive and sustainable social protection system","Inclusion and access","To improve performance and functioning of the municipality"]
["d89462ad-3491-44f4-8960-a2b5f7475e9c","400 - Community development - Mayoral Cup","PO003007003000000000000000000000000000_00009","_","A comprehensive, responsive and sustainable social protection system","Inclusion and access","To improve performance and functioning of the municipalitY"]
["d89462ad-3491-44f4-8960-a2b5f7475e9c","400 - Community development - Mayoral Excellence Awards","PO003017005000000000000000000000000000_00001","_","An efficient, effective and development-oriented public service","Inclusion and access"," To improve the performance and functioning of the municipality\t"]
["d89462ad-3491-44f4-8960-a2b5f7475e9c","400 - Community development - Mayoral Excellence Awards","PO003017005000000000000000000000000000_00001","_","An efficient, effective and development-oriented public service","Inclusion and access"," To improve the performance and functioning of the municipality\t"]
["d89462ad-3491-44f4-8960-a2b5f7475e9c","400 - Community development - Mens Day","PO003007003000000000000000000000000000_00014","_","A comprehensive, responsive and sustainable social protection system","Inclusion and access"," To improve performance and functioning of the municipality\t"]
["d89462ad-3491-44f4-8960-a2b5f7475e9c","400 - Community development - Mens Day","PO003007003000000000000000000000000000_00014","_","A comprehensive, responsive and sustainable social protection system","Inclusion and access"," To improve performance and functioning of the municipality\t"]
["d89462ad-3491-44f4-8960-a2b5f7475e9c","400 - Community development - Salga Games","PO003007016000000000000000000000000000_00001","_","A comprehensive, responsive and sustainable social protection system","Inclusion and access"]
["d89462ad-3491-44f4-8960-a2b5f7475e9c","400 - Community development - Salga Games Selection","PO003007002000000000000000000000000000_00002","_","A comprehensive, responsive and sustainable social protection system","Inclusion and access"," To improve performance and functioning of the municipality"]
["d89462ad-3491-44f4-8960-a2b5f7475e9c","400 - Community development - Salga Games Selection","PO003007003000000000000000000000000000_00008","_","A comprehensive, responsive and sustainable social protection system","Inclusion and access"," To improve performance and functioning of the municipality"]
["d89462ad-3491-44f4-8960-a2b5f7475e9c","400 - Community development - School Intervention  ","PO003007005000000000000000000000000000_00001","_","A comprehensive, responsive and sustainable social protection system","Inclusion and access"]
["d89462ad-3491-44f4-8960-a2b5f7475e9c","400 - Community development - Sexual Assault Campaign","PO003007003000000000000000000000000000_00016","_","A comprehensive, responsive and sustainable social protection system","Inclusion and access","To improve performance and functioning of the municipality\t"]
["d89462ad-3491-44f4-8960-a2b5f7475e9c","400 - Community development - Skills Development Programmes ","PO003007003000000000000000000000000000_00004","_","A comprehensive, responsive and sustainable social protection system","Inclusion and access"," To improve performance and functioning of the municipality\t"]
["d89462ad-3491-44f4-8960-a2b5f7475e9c","400 - Community development - Youth Day Commemoration","PO003007003000000000000000000000000000_00007","_","A comprehensive, responsive and sustainable social protection system","Inclusion and access","To improve performance and functioning of the municipality\t"]
["d89462ad-3491-44f4-8960-a2b5f7475e9c","400 - Community development - Youth Day Commemoration","PO003007003000000000000000000000000000_00007","_","A comprehensive, responsive and sustainable social protection system","Inclusion and access","To improve performance and functioning of the municipality\t"]
["d89462ad-3491-44f4-8960-a2b5f7475e9c","400 - Community development -Womens Day","PO003007002000000000000000000000000000_00003","_","A comprehensive, responsive and sustainable social protection system","Inclusion and access"," To improve performance and functioning of the municipality\t"]
["d89462ad-3491-44f4-8960-a2b5f7475e9c","400 - Community development -Womens Day","PO003007003000000000000000000000000000_00015","_","A comprehensive, responsive and sustainable social protection system","Inclusion and access"," To improve performance and functioning of the municipality\t"]
["d89462ad-3491-44f4-8960-a2b5f7475e9c","400 - Director Social Development","PO002000000000000000000000000000000000","_","Sustainable human settlements and improved quality of household life","Governance","To improve performance and functioning of the municipality\t"]
["d89462ad-3491-44f4-8960-a2b5f7475e9c","400 - Director Social Development","PO002000000000000000000000000000000000","_","Sustainable human settlements and improved quality of household life","Governance","To improve performance and functioning of the municipality\t"]
["d89462ad-3491-44f4-8960-a2b5f7475e9c","400 - Employee related Costs - Salaries","PO002000000000000000000000000000000000","_","Sustainable human settlements and improved quality of household life","Governance","To improve performance and functioning of the municipality\t"]
["d89462ad-3491-44f4-8960-a2b5f7475e9c","400 - Employee related Costs - Salaries","PO002000000000000000000000000000000000","_","Sustainable human settlements and improved quality of household life","Governance","To improve performance and functioning of the municipality\t"]
["d89462ad-3491-44f4-8960-a2b5f7475e9c","400 - Employee related Costs - Social Contributions","PO002000000000000000000000000000000000","_","Sustainable human settlements and improved quality of household life","Governance","To improve performance and functioning of the municipality\t"]
["d89462ad-3491-44f4-8960-a2b5f7475e9c","400 - Employee related Costs - Social Contributions","PO002000000000000000000000000000000000","_","Sustainable human settlements and improved quality of household life","Governance","To improve performance and functioning of the municipality\t"]
["d89462ad-3491-44f4-8960-a2b5f7475e9c","400 - Transfers and other subsidies","PO002000000000000000000000000000000000","_","Sustainable human settlements and improved quality of household life","Governance","To improve performance and functioning of the municipality"]
["d89462ad-3491-44f4-8960-a2b5f7475e9c","400 - Transfers and other subsidies","PO003007001000000000000000000000000000_00001","_","A comprehensive, responsive and sustainable social protection system","Inclusion and access","To improve performance and functioning of the municipality"]
["d89462ad-3491-44f4-8960-a2b5f7475e9c","400 - Transfers and other subsidies","PO003007001000000000000000000000000000_00002","_","A comprehensive, responsive and sustainable social protection system","Inclusion and access","To improve performance and functioning of the municipality"]
["d89462ad-3491-44f4-8960-a2b5f7475e9c","400 - Transfers and other subsidies","PO003007003000000000000000000000000000_00002","_","A comprehensive, responsive and sustainable social protection system","Inclusion and access","To improve performance and functioning of the municipality"]
["d89462ad-3491-44f4-8960-a2b5f7475e9c","400 - Transfers and other subsidies","PO003007003000000000000000000000000000_00002","_","A comprehensive, responsive and sustainable social protection system","Inclusion and access","To improve performance and functioning of the municipality"]
["d89462ad-3491-44f4-8960-a2b5f7475e9c","400 - Transfers and other subsidies","PO003007003000000000000000000000000000_00006","_","A comprehensive, responsive and sustainable social protection system","Inclusion and access","To improve performance and functioning of the municipality"]
["d89462ad-3491-44f4-8960-a2b5f7475e9c","400 - Transfers and other subsidies","PO003007003000000000000000000000000000_00018","_","A comprehensive, responsive and sustainable social protection system","Inclusion and access","To improve performance and functioning of the municipality"]
["d89462ad-3491-44f4-8960-a2b5f7475e9c","400 - Transfers and other subsidies","PO003007004000000000000000000000000000_00001","_","A comprehensive, responsive and sustainable social protection system","Inclusion and access","To improve performance and functioning of the municipality"]
["d89462ad-3491-44f4-8960-a2b5f7475e9c","400 - Transfers and other subsidies","PO003007004000000000000000000000000000_00001","_","A comprehensive, responsive and sustainable social protection system","Inclusion and access","To improve performance and functioning of the municipality"]
["d89462ad-3491-44f4-8960-a2b5f7475e9c","400 - Transfers and other subsidies","PO003007007000000000000000000000000000_00001","_","A comprehensive, responsive and sustainable social protection system","Inclusion and access","To improve performance and functioning of the municipality"]
["d89462ad-3491-44f4-8960-a2b5f7475e9c","400 - Transfers and other subsidies","PO003007011000000000000000000000000000_00001","_","A comprehensive, responsive and sustainable social protection system","Inclusion and access","To improve performance and functioning of the municipality"]
["d89462ad-3491-44f4-8960-a2b5f7475e9c","400 - Transfers and other subsidies","PO003007017002000000000000000000000000_00001","_","A comprehensive, responsive and sustainable social protection system","Inclusion and access","To improve performance and functioning of the municipality"]
["d89462ad-3491-44f4-8960-a2b5f7475e9c","400 - Transfers and other subsidies","PO003017003000000000000000000000000000_00001","_","An efficient, effective and development-oriented public service","Inclusion and access","To improve performance and functioning of the municipality"]
["d89462ad-3491-44f4-8960-a2b5f7475e9c","400 - Transfers and other subsidies","PO003046003000000000000000000000000000_00001","_","An efficient, effective and development-oriented public service","Growth","To improve performance and functioning of the municipality"]
["d89462ad-3491-44f4-8960-a2b5f7475e9c","430 - General Expenses","PO003048001000000000000000000000000000_00001","_","Responsive, accountable, effective and efficient local government","Inclusion and access","To improve performance and functioning of the municipality\t"]
["d89462ad-3491-44f4-8960-a2b5f7475e9c","430 - General Expenses","PO003048001000000000000000000000000000_00001","_","Responsive, accountable, effective and efficient local government","Inclusion and access","To improve performance and functioning of the municipality\t"]
["da286b7e-a1b0-420e-a2b4-219a874580f3","225 - General Expenses","PO002000000000000000000000000000000000","_","Sustainable human settlements and improved quality of household life","Governance"," To improve the performance and functioning of the municipality\t"]
["e38be026-aa91-4710-9bdc-3b0f3755cc1a","400 - Repairs and Maintenance","PO001002002001009000000000000000000000_00006","_","An efficient, effective and development-oriented public service","Governance","To improve performance and functioning of the municipality"]
["e38be026-aa91-4710-9bdc-3b0f3755cc1a","400 - Repairs and Maintenance","PO001002002001009000000000000000000000_00006","_","An efficient, effective and development-oriented public service","Governance","To improve performance and functioning of the municipality"]
["e38be026-aa91-4710-9bdc-3b0f3755cc1a","410 - Repairs and Maintenance","PO001002002001003001001003000000000000_00001","_","An efficient, effective and development-oriented public service","Governance","To improve performance and functioning of the municipality"]
["e38be026-aa91-4710-9bdc-3b0f3755cc1a","410 - Repairs and Maintenance","PO001002002001003001001003000000000000_00001","_","An efficient, effective and development-oriented public service","Governance","To improve performance and functioning of the municipality"]
["e38be026-aa91-4710-9bdc-3b0f3755cc1a","430 - Employee related Cost - Salaries","PO002000000000000000000000000000000000","_","Sustainable human settlements and improved quality of household life","Governance","To improve performance and functioning of the municipality"]
["e38be026-aa91-4710-9bdc-3b0f3755cc1a","430 - Employee related Cost - Salaries","PO002000000000000000000000000000000000","_","Sustainable human settlements and improved quality of household life","Governance","To improve performance and functioning of the municipality"]
["e38be026-aa91-4710-9bdc-3b0f3755cc1a","430 - Employee related Cost - Social Contribution","PO002000000000000000000000000000000000","_","Sustainable human settlements and improved quality of household life","Governance"," To improve the performance and functioning of the municipality\t"]
["e38be026-aa91-4710-9bdc-3b0f3755cc1a","430 - General Expenses","PO002000000000000000000000000000000000","_","Sustainable human settlements and improved quality of household life","Governance","To improve performance and functioning of the municipality\t"]
["e38be026-aa91-4710-9bdc-3b0f3755cc1a","430 - General Expenses","PO003006001000000000000000000000000000_00001","_","Sustainable human settlements and improved quality of household life","Inclusion and access","To improve performance and functioning of the municipality\t"]
["e38be026-aa91-4710-9bdc-3b0f3755cc1a","430 - General Expenses","PO003022000000000000000000000000000000_00001","_","Responsive, accountable, effective and efficient local government","Governance","To improve performance and functioning of the municipality\t"]
["e38be026-aa91-4710-9bdc-3b0f3755cc1a","430 - General Expenses","PO003023002000000000000000000000000000_00001","_","An efficient, effective and development-oriented public service","Spatial integration","To improve performance and functioning of the municipality\t"]
["e38be026-aa91-4710-9bdc-3b0f3755cc1a","430 - General Expenses","PO003023003000000000000000000000000000_00001","_","An efficient, effective and development-oriented public service","Spatial integration","To improve performance and functioning of the municipality\t"]
["e38be026-aa91-4710-9bdc-3b0f3755cc1a","430 - General Expenses","PO003046004000000000000000000000000000_00001","_","An efficient, effective and development-oriented public service","Growth","To improve performance and functioning of the municipality\t"]
["e38be026-aa91-4710-9bdc-3b0f3755cc1a","430 - General Expenses","PO003046004000000000000000000000000000_00001","_","An efficient, effective and development-oriented public service","Growth","To improve performance and functioning of the municipality\t"]
["e38be026-aa91-4710-9bdc-3b0f3755cc1a","430 - General Expenses","PO003048001000000000000000000000000000_00001","_","Responsive, accountable, effective and efficient local government","Inclusion and access","To improve performance and functioning of the municipality\t"]
["e38be026-aa91-4710-9bdc-3b0f3755cc1a","430 - General Expenses","PO005003002001018000000000000000000000_00001","_","An efficient, effective and development-oriented public service","Growth","To improve performance and functioning of the municipality\t"]
["e38be026-aa91-4710-9bdc-3b0f3755cc1a","650 - Employee Related Costs - Salaries","PO002000000000000000000000000000000000","_","Sustainable human settlements and improved quality of household life","Governance","To improve performance and functioning of the municipality\t"]
["e38be026-aa91-4710-9bdc-3b0f3755cc1a","Take on ","PO003023003000000000000000000000000000_00001","_","An efficient, effective and development-oriented public service","Spatial integration","Take-On"]
["e63908e9-4e7e-4455-ad95-2721683b34a9","710 - General Expenses","PO002000000000000000000000000000000000","_","Sustainable human settlements and improved quality of household life","Governance","To improve performance and functioning of the municipality\t"]
["e65f548d-c3fb-4eb6-b042-e507e9eec386","215 - Employee related Costs - Salaries","PO002000000000000000000000000000000000","_","Sustainable human settlements and improved quality of household life","Governance","To improve performance and functioning of the municipality\t"]
["e65f548d-c3fb-4eb6-b042-e507e9eec386","215 - Employee related Costs - Social Contributions","PO002000000000000000000000000000000000","_","Sustainable human settlements and improved quality of household life","Governance","Take-On"]
["e65f548d-c3fb-4eb6-b042-e507e9eec386","215 - General Expenditure","PO002000000000000000000000000000000000","_","Sustainable human settlements and improved quality of household life","Governance","To improve performance and functioning of the municipality\t"]
["e65f548d-c3fb-4eb6-b042-e507e9eec386","215 - General Expenditure","PO002000000000000000000000000000000000","_","Sustainable human settlements and improved quality of household life","Governance","To improve performance and functioning of the municipality\t"]
["e65f548d-c3fb-4eb6-b042-e507e9eec386","215 - General Expenditure","PO004002002001000000000000000000000000_00001","_","An efficient, competitive and responsive economic infrastructure network","Growth","To improve performance and functioning of the municipality\t"]
["e65f548d-c3fb-4eb6-b042-e507e9eec386","215 - General Expenditure","PO005001000000000000000000000000000000_00001","_","An efficient, effective and development-oriented public service","Growth","To improve performance and functioning of the municipality\t"]
["e65f548d-c3fb-4eb6-b042-e507e9eec386","215 - General Expenditure","PO005001000000000000000000000000000000_00002","_","An efficient, effective and development-oriented public service","Growth","To improve performance and functioning of the municipality\t"]
["e65f548d-c3fb-4eb6-b042-e507e9eec386","215 - General Expenditure","PO005001000000000000000000000000000000_00003","_","An efficient, effective and development-oriented public service","Growth","To improve performance and functioning of the municipality\t"]
["e65f548d-c3fb-4eb6-b042-e507e9eec386","215 - General Expenditure","PO005001000000000000000000000000000000_00005","_","An efficient, effective and development-oriented public service","Growth","To improve performance and functioning of the municipality\t"]
["e65f548d-c3fb-4eb6-b042-e507e9eec386","215 - General Expenditure","PO005001000000000000000000000000000000_00006","_","An efficient, effective and development-oriented public service","Growth","To improve performance and functioning of the municipality\t"]
["e65f548d-c3fb-4eb6-b042-e507e9eec386","215 - General Expenditure","PO005001000000000000000000000000000000_00011","_","An efficient, effective and development-oriented public service","Growth","To improve performance and functioning of the municipality\t"]
["e65f548d-c3fb-4eb6-b042-e507e9eec386","215 - Other Revenue","PO001002002001009000000000000000000000_00002","_","An efficient, effective and development-oriented public service","Governance"," To improve the performance and functioning of the municipality\t"]
["e65f548d-c3fb-4eb6-b042-e507e9eec386","215 - Other Revenue","PO001002002001009000000000000000000000_00002","_","An efficient, effective and development-oriented public service","Governance"," To improve the performance and functioning of the municipality\t"]
["e65f548d-c3fb-4eb6-b042-e507e9eec386","225 - General Expenses","PO001002002001002001022000000000000000_00001","_","An efficient, effective and development-oriented public service","Growth"," To improve the performance and functioning of the municipality\t"]
["e65f548d-c3fb-4eb6-b042-e507e9eec386","225 - General Expenses","PO001002002001002001022000000000000000_00001","_","An efficient, effective and development-oriented public service","Growth"," To improve the performance and functioning of the municipality\t"]
["e65f548d-c3fb-4eb6-b042-e507e9eec386","225 - General Expenses","PO003056000000000000000000000000000000_00001","_","An efficient, effective and development-oriented public service","Inclusion and access"," To improve the performance and functioning of the municipality\t"]
["e65f548d-c3fb-4eb6-b042-e507e9eec386","900 - General Expenses","PO002000000000000000000000000000000000","_","Sustainable human settlements and improved quality of household life","Governance","To improve performance and functioning of the municipality\t"]
["e786cb3f-4469-4006-b4de-43a60322eeaf","610 - Employee related Costs - Salaries","PO002000000000000000000000000000000000","_","Sustainable human settlements and improved quality of household life","Governance","To improve safety and security within the municipal environment "]
["e786cb3f-4469-4006-b4de-43a60322eeaf","610 - Employee related Costs - Social Contributions","PO002000000000000000000000000000000000","_","Sustainable human settlements and improved quality of household life","Governance","To improve safety and security within the municipal environment "]
["e786cb3f-4469-4006-b4de-43a60322eeaf","610 - General Expenses","PO002000000000000000000000000000000000","_","Sustainable human settlements and improved quality of household life","Governance","To improve performance and functioning of the municipality\t"]
["e8aba1cd-7bec-4426-97e0-6a04f2677ea8","650 - Employee Related Costs - Social Contributions","PO002000000000000000000000000000000000","_","Sustainable human settlements and improved quality of household life","Governance","To improve performance and functioning of the municipality\t"]
["f3333fef-376f-4d03-b158-f7050b66056d","300 - Community development - Candle Light ceremony ","PO003007003000000000000000000000000000_00012","_","A comprehensive, responsive and sustainable social protection system","Inclusion and access","To improve performance and functioning of the municipality\t"]
["f3333fef-376f-4d03-b158-f7050b66056d","300 - Community development - Prayer Day","PO003007003000000000000000000000000000_00013","_","A comprehensive, responsive and sustainable social protection system","Inclusion and access","To improve performance and functioning of the municipalitY"]
["f3333fef-376f-4d03-b158-f7050b66056d","300 - Employee related Costs - Salaries","PO002000000000000000000000000000000000","_","Sustainable human settlements and improved quality of household life","Governance","To improve performance and functioning of the municipality\t"]
["f3333fef-376f-4d03-b158-f7050b66056d","300 - Employee related Costs - Social Contributions","PO002000000000000000000000000000000000","_","Sustainable human settlements and improved quality of household life","Governance","To improve performance and functioning of the municipality"]
["f3333fef-376f-4d03-b158-f7050b66056d","300 - General Expenses ","PO002000000000000000000000000000000000","_","Sustainable human settlements and improved quality of household life","Governance","To improve performance and functioning of the municipality"]
["f3333fef-376f-4d03-b158-f7050b66056d","300 - General Expenses ","PO002000000000000000000000000000000000","_","Sustainable human settlements and improved quality of household life","Governance","To improve performance and functioning of the municipality"]
["f3333fef-376f-4d03-b158-f7050b66056d","300 - General Expenses ","PO003004010000000000000000000000000000_00001","_","A skilled and capable workforce to support an inclusive growth path","Governance","To improve performance and functioning of the municipality"]
["f3333fef-376f-4d03-b158-f7050b66056d","300 - General Expenses ","PO003044001000000000000000000000000000_00001","_","Responsive, accountable, effective and efficient local government","Spatial integration","To improve performance and functioning of the municipality"]
["f3333fef-376f-4d03-b158-f7050b66056d","300 - General Expenses ","PO003044009000000000000000000000000000_00001","_","Responsive, accountable, effective and efficient local government","Spatial integration","To improve performance and functioning of the municipality"]
["f3333fef-376f-4d03-b158-f7050b66056d","300 - General Expenses ","PO003044016002000000000000000000000000_00001","_","Responsive, accountable, effective and efficient local government","Spatial integration","To improve performance and functioning of the municipality"]
["f3333fef-376f-4d03-b158-f7050b66056d","300 - Municipal Manager","PO002000000000000000000000000000000000","_","Sustainable human settlements and improved quality of household life","Governance"," To improve the performance and functioning of the municipality\t"]
["f3333fef-376f-4d03-b158-f7050b66056d","405 - General Expenses","PO002000000000000000000000000000000000","_","Sustainable human settlements and improved quality of household life","Governance","To improve performance and functioning of the municipality\t"]
["f3333fef-376f-4d03-b158-f7050b66056d","405 - General Expenses","PO002000000000000000000000000000000000","_","Sustainable human settlements and improved quality of household life","Governance","To improve performance and functioning of the municipality\t"]
["f3a9aaa9-529a-40d1-b981-722b2f743267","210 - General Expenses","PO002000000000000000000000000000000000","_","Sustainable human settlements and improved quality of household life","Governance","To improve performance and functioning of the municipality\t"]
["fa4eb94d-09d7-4731-954e-7fd20b09c314","400 - Transfers and other subsidies","PO002000000000000000000000000000000000","_","Sustainable human settlements and improved quality of household life","Governance","To improve performance and functioning of the municipality"]
["0e51e5d3-5805-402b-a5dc-3b94852c29c0","2006 Employee Related Cost - Asset Management Unit: BTO","PO002000000000000000000000000000000000","_","Sustainable human settlements and improved quality of household life","Governance","Improve financial viability"]
["0e51e5d3-5805-402b-a5dc-3b94852c29c0","2006 General Expense - Asset Management Unit:Budget and Treasury","PO002000000000000000000000000000000000","_","Sustainable human settlements and improved quality of household life","Governance","Improve financial viability"]
["0e51e5d3-5805-402b-a5dc-3b94852c29c0","2006 General Expense - Asset Management Unit:Budget and Treasury","PO002000000000000000000000000000000000","_","Sustainable human settlements and improved quality of household life","Governance","Improve financial viability"]
["0e51e5d3-5805-402b-a5dc-3b94852c29c0","3003 General Expense - Information Technology:Corporate Services","PO002000000000000000000000000000000000","_","Sustainable human settlements and improved quality of household life","Governance","Improve financial viability"]
["0e51e5d3-5805-402b-a5dc-3b94852c29c0","Trial Balance Takeon","PO002000000000000000000000000000000000","_","Sustainable human settlements and improved quality of household life","Governance","Improve financial viability"]
["0f52d9e5-907f-4d9f-934f-57dc012524d6","3001 Employee Related Cost - Director Corporate Service: CORP","PO002000000000000000000000000000000000","_","Sustainable human settlements and improved quality of household life","Governance","Improve financial viability"]
["0f52d9e5-907f-4d9f-934f-57dc012524d6","3001 General Expense - Director Corporate Service:Corporate Services","PO002000000000000000000000000000000000","_","Sustainable human settlements and improved quality of household life","Governance","Good corporate governance and public participation"]
["0f52d9e5-907f-4d9f-934f-57dc012524d6","3001 General Expense - Director Corporate Service:Corporate Services","PO002000000000000000000000000000000000","_","Sustainable human settlements and improved quality of household life","Governance","Good corporate governance and public participation"]
["0f52d9e5-907f-4d9f-934f-57dc012524d6","3002 General Expense - Human Resources:Corporate Services","PO002000000000000000000000000000000000","_","Sustainable human settlements and improved quality of household life","Governance","Attract, develop and retain best human capital"]
["0f52d9e5-907f-4d9f-934f-57dc012524d6","3003 General Expense - Information Technology:Corporate Services","PO002000000000000000000000000000000000","_","Sustainable human settlements and improved quality of household life","Governance","Improve financial viability"]
["0f52d9e5-907f-4d9f-934f-57dc012524d6","3004 Employee Related Cost - Administration: CORP","PO002000000000000000000000000000000000","_","Sustainable human settlements and improved quality of household life","Governance","Improve financial viability"]
["0f52d9e5-907f-4d9f-934f-57dc012524d6","3004 Employee Related Cost - Administration: CORP","PO002000000000000000000000000000000000","_","Sustainable human settlements and improved quality of household life","Governance","Improve financial viability"]
["0f52d9e5-907f-4d9f-934f-57dc012524d6","3004 General Expense - Administration:Corporate Services","PO002000000000000000000000000000000000","_","Sustainable human settlements and improved quality of household life","Governance","Improve financial viability"]
["0f52d9e5-907f-4d9f-934f-57dc012524d6","3004 General Expense - Administration:Corporate Services","PO002000000000000000000000000000000000","_","Sustainable human settlements and improved quality of household life","Governance","Improve financial viability"]
["0f52d9e5-907f-4d9f-934f-57dc012524d6","6003 General Expense - Building Section:Technical Services","PO002000000000000000000000000000000000","_","Sustainable human settlements and improved quality of household life","Governance","Improve financial viability"]
["0f52d9e5-907f-4d9f-934f-57dc012524d6","Trial Balance Takeon","PO002000000000000000000000000000000000","_","Sustainable human settlements and improved quality of household life","Governance","Improve financial viability"]
["0f6032ee-c792-4735-aef9-9bdf01ab5d0c","Repairs and maintenance : Libraries,Community Services","PO001002001002010000000000000000000000_00001","_","An efficient, effective and development-oriented public service","Governance","Provision of sustainable integrated infrastructure and services"]
["0f6032ee-c792-4735-aef9-9bdf01ab5d0c","Repairs and maintenance : Libraries,Community Services","PO001002001002010000000000000000000000_00001","_","An efficient, effective and development-oriented public service","Governance","Provision of sustainable integrated infrastructure and services"]
["15e72a49-cac8-46a3-a850-5352163e5772","1004 AUDIT COMMITTEE ALLOWANCE - Internal Audit and Risk Management","PO002000000000000000000000000000000000","_","Sustainable human settlements and improved quality of household life","Governance","Improve financial viability"]
["15e72a49-cac8-46a3-a850-5352163e5772","1004 AUDIT COMMITTEE ALLOWANCE - Internal Audit and Risk Management","PO003044015000000000000000000000000000_00002","_","Responsive, accountable, effective and efficient local government","Inclusion and access","Improve financial viability"]
["15e72a49-cac8-46a3-a850-5352163e5772","1004 AUDIT COMMITTEE ALLOWANCE - Internal Audit and Risk Management","PO003050001000000000000000000000000000_00001","_","Responsive, accountable, effective and efficient local government","Governance","Improve financial viability"]
["15e72a49-cac8-46a3-a850-5352163e5772","1004 General Expenses - Internal Audit and Risk Management:Executive and Council","PO002000000000000000000000000000000000","_","Sustainable human settlements and improved quality of household life","Governance","Good corporate governance and public participation"]
["15e72a49-cac8-46a3-a850-5352163e5772","1004 General Expenses - Internal Audit and Risk Management:Executive and Council","PO002000000000000000000000000000000000","_","Sustainable human settlements and improved quality of household life","Governance","Good corporate governance and public participation"]
["15e72a49-cac8-46a3-a850-5352163e5772","1004 RISK MANAGEMENT COMMITTEE - Internal Audit and Risk Management","PO003044015000000000000000000000000000_00003","_","Responsive, accountable, effective and efficient local government","Inclusion and access","Improve financial viability"]
["15e72a49-cac8-46a3-a850-5352163e5772","Employee Related Cost - Internal Audit and Risk Mngmnt: Executive and Councillors","PO002000000000000000000000000000000000","_","Sustainable human settlements and improved quality of household life","Governance","Improve financial viability"]
["15e7fc9a-7613-41bd-b0e9-57024945d7d9","6007 Employee Related Cost - Project Management Unit: TECH","PO002000000000000000000000000000000000","_","Sustainable human settlements and improved quality of household life","Governance","Improve financial viability"]
["15e7fc9a-7613-41bd-b0e9-57024945d7d9","6007 General Expense - Project Management Unit:Technical Services","PO002000000000000000000000000000000000","_","Sustainable human settlements and improved quality of household life","Governance","Improve financial viability"]
["15e7fc9a-7613-41bd-b0e9-57024945d7d9","6007 General Expense - Project Management Unit:Technical Services","PO002000000000000000000000000000000000","_","Sustainable human settlements and improved quality of household life","Governance","Improve financial viability"]
["15e7fc9a-7613-41bd-b0e9-57024945d7d9","6007 General Expense - Project Management Unit:Technical Services","PO003003001000000000000000000000000000_00031","_","Sustainable human settlements and improved quality of household life","Governance","Improve financial viability"]
["20d7a098-87d4-4ade-a800-fe572974622a","4007 Employee Related Cost - Enviromental Health: COMM","PO002000000000000000000000000000000000","_","Sustainable human settlements and improved quality of household life","Governance","Improve financial viability"]
["20d7a098-87d4-4ade-a800-fe572974622a","4007 General Expense - Enviromental Health:Community Services","PO002000000000000000000000000000000000","_","Sustainable human settlements and improved quality of household life","Governance","Improve financial viability"]
["20d7a098-87d4-4ade-a800-fe572974622a","4007 General Expense - Enviromental Health:Community Services","PO002000000000000000000000000000000000","_","Sustainable human settlements and improved quality of household life","Governance","Improve financial viability"]
["20d7a098-87d4-4ade-a800-fe572974622a","4007 General Expense - Enviromental Health:Community Services","PO003003001000000000000000000000000000_00007","_","Sustainable human settlements and improved quality of household life","Governance","Improve financial viability"]
["20d7a098-87d4-4ade-a800-fe572974622a","4007 Repairs and Maintenance - Enviromental Health:Community Services","PO001002002001010000000000000000000000_00009","_","An efficient, effective and development-oriented public service","Governance","Improve financial viability"]
["20d7a098-87d4-4ade-a800-fe572974622a","4007 Repairs and Maintenance - Enviromental Health:Community Services","PO001002002001010000000000000000000000_00009","_","An efficient, effective and development-oriented public service","Governance","Improve financial viability"]
["20d7a098-87d4-4ade-a800-fe572974622a","Trial Balance Takeon","PO002000000000000000000000000000000000","_","Sustainable human settlements and improved quality of household life","Governance","Improve financial viability"]
["39043a95-c08d-4bfc-bce2-b4e1763b0d24","1004 Repairs and Maintenance - Internal Audit and Risk Management:Executive and Council","PO001002002001010000000000000000000000_00003","_","An efficient, effective and development-oriented public service","Governance","Improve financial viability"]
["39043a95-c08d-4bfc-bce2-b4e1763b0d24","1004 Repairs and Maintenance - Internal Audit and Risk Management:Executive and Council","PO001002002001010000000000000000000000_00003","_","An efficient, effective and development-oriented public service","Governance","Improve financial viability"]
["39043a95-c08d-4bfc-bce2-b4e1763b0d24","1005 1010/35_Disaster Management/ Disaster Relief/ Covid-19 - Disaster Management","PO003014002000000000000000000000000000_00001","_","A comprehensive, responsive and sustainable social protection system","Governance","Improve financial viability"]
["39043a95-c08d-4bfc-bce2-b4e1763b0d24","1005 General Expenditure - Disaster Management:Executive and Council","PO002000000000000000000000000000000000","_","Sustainable human settlements and improved quality of household life","Governance","Good corporate governance and public participation"]
["39043a95-c08d-4bfc-bce2-b4e1763b0d24","1005 General Expenditure - Disaster Management:Executive and Council","PO002000000000000000000000000000000000","_","Sustainable human settlements and improved quality of household life","Governance","Good corporate governance and public participation"]
["39043a95-c08d-4bfc-bce2-b4e1763b0d24","1005 General Expenditure - Disaster Management:Executive and Council","PO003003001000000000000000000000000000_00010","_","Sustainable human settlements and improved quality of household life","Governance","Good corporate governance and public participation"]
["39043a95-c08d-4bfc-bce2-b4e1763b0d24","1005 General Expenditure - Disaster Management:Executive and Council","PO003003001000000000000000000000000000_00019","_","Sustainable human settlements and improved quality of household life","Governance","Good corporate governance and public participation"]
["39043a95-c08d-4bfc-bce2-b4e1763b0d24","Employee Related Cost - Disaster Management: Executive and Councillors","PO002000000000000000000000000000000000","_","Sustainable human settlements and improved quality of household life","Governance","Improve financial viability"]
["39043a95-c08d-4bfc-bce2-b4e1763b0d24","Trial Balance Takeon","PO002000000000000000000000000000000000","_","Sustainable human settlements and improved quality of household life","Governance","Improve financial viability"]
["47697da2-b67b-4f55-aabb-b4b704dd23c1","3005 General Expense - Legal:Corporate Services","PO002000000000000000000000000000000000","_","Sustainable human settlements and improved quality of household life","Governance","Improve financial viability"]
["67347610-1db2-421f-a89a-f87e772911eb","2001 Employee Related Cost - Chief Financial Officer: BTO","PO002000000000000000000000000000000000","_","Sustainable human settlements and improved quality of household life","Governance"]
["67347610-1db2-421f-a89a-f87e772911eb","2001 General Expense - Chief Financial Officer:Budget and Treasury","PO002000000000000000000000000000000000","_","Sustainable human settlements and improved quality of household life","Governance","Improve financial viability"]
["67347610-1db2-421f-a89a-f87e772911eb","2001 General Expense - Chief Financial Officer:Budget and Treasury","PO002000000000000000000000000000000000","_","Sustainable human settlements and improved quality of household life","Governance","Improve financial viability"]
["67347610-1db2-421f-a89a-f87e772911eb","2001 Repairs and Maintenance - Chief Financial Officer:Budget and Treasury","PO001002002001010000000000000000000000_00007","_","An efficient, effective and development-oriented public service","Governance","Good corporate governance and public participation"]
["67347610-1db2-421f-a89a-f87e772911eb","2001 Repairs and Maintenance - Chief Financial Officer:Budget and Treasury","PO001002002001010000000000000000000000_00007","_","An efficient, effective and development-oriented public service","Governance","Good corporate governance and public participation"]
["67347610-1db2-421f-a89a-f87e772911eb","2002 General Expense - Financial Planning and Reporting:Budget and Treasury","PO002000000000000000000000000000000000","_","Sustainable human settlements and improved quality of household life","Governance","Improve financial viability"]
["67347610-1db2-421f-a89a-f87e772911eb","2002 General Expense - Financial Planning and Reporting:Budget and Treasury","PO002000000000000000000000000000000000","_","Sustainable human settlements and improved quality of household life","Governance","Improve financial viability"]
["67347610-1db2-421f-a89a-f87e772911eb","2003 Employee Related Cost -  Financial Control and Expend Mngmnt: BTO","PO002000000000000000000000000000000000","_","Sustainable human settlements and improved quality of household life","Governance","Improve financial viability"]
["67347610-1db2-421f-a89a-f87e772911eb","2003 General Expense - Financial Control and Expenditure Management:Budget and Treasury","PO002000000000000000000000000000000000","_","Sustainable human settlements and improved quality of household life","Governance","Improve financial viability"]
["67347610-1db2-421f-a89a-f87e772911eb","2003 General Expense - Financial Control and Expenditure Management:Budget and Treasury","PO002000000000000000000000000000000000","_","Sustainable human settlements and improved quality of household life","Governance","Improve financial viability"]
["67347610-1db2-421f-a89a-f87e772911eb","2004 General Expense - Revenue and Debt Management:Budget and Treasury","PO002000000000000000000000000000000000","_","Sustainable human settlements and improved quality of household life","Governance","Improve financial viability"]
["67347610-1db2-421f-a89a-f87e772911eb","2004 General Expense - Revenue and Debt Management:Budget and Treasury","PO002000000000000000000000000000000000","_","Sustainable human settlements and improved quality of household life","Governance","Improve financial viability"]
["67347610-1db2-421f-a89a-f87e772911eb","2004 General Expense - Revenue and Debt Management:Budget and Treasury","PO003003001000000000000000000000000000_00013","_","Sustainable human settlements and improved quality of household life","Governance","Improve financial viability"]
["67347610-1db2-421f-a89a-f87e772911eb","2004 General Expense - Revenue and Debt Management:Budget and Treasury","PO003003001000000000000000000000000000_00016","_","Sustainable human settlements and improved quality of household life","Governance","Improve financial viability"]
["67347610-1db2-421f-a89a-f87e772911eb","2004 General Expense - Revenue and Debt Management:Budget and Treasury","PO003021000000000000000000000000000000_00003","_","Responsive, accountable, effective and efficient local government","Inclusion and access","Improve financial viability"]
["67347610-1db2-421f-a89a-f87e772911eb","4007 General Expense - Enviromental Health:Community Services","PO002000000000000000000000000000000000","_","Sustainable human settlements and improved quality of household life","Governance","Improve financial viability"]
["67347610-1db2-421f-a89a-f87e772911eb","Employee Related Cost - Internal Audit and Risk Mngmnt: Executive and Councillors","PO002000000000000000000000000000000000","_","Sustainable human settlements and improved quality of household life","Governance","Improve financial viability"]
["67347610-1db2-421f-a89a-f87e772911eb","Trial Balance Takeon","PO002000000000000000000000000000000000","_","Sustainable human settlements and improved quality of household life","Governance","Improve financial viability"]
["67347610-1db2-421f-a89a-f87e772911eb","Trial Balance Takeon","PO002000000000000000000000000000000000","_","Sustainable human settlements and improved quality of household life","Governance","Improve financial viability"]
["6dc327fd-c352-440b-9366-63fce6a71335","3002 Employee Related Cost - Human Resources: CORP","PO002000000000000000000000000000000000","_","Sustainable human settlements and improved quality of household life","Governance","Improve financial viability"]
["6dc327fd-c352-440b-9366-63fce6a71335","3002 Employee Related Cost - Human Resources: CORP","PO002000000000000000000000000000000000","_","Sustainable human settlements and improved quality of household life","Governance","Improve financial viability"]
["6dc327fd-c352-440b-9366-63fce6a71335","3002 General Expense - Human Resources:Corporate Services","PO002000000000000000000000000000000000","_","Sustainable human settlements and improved quality of household life","Governance","Attract, develop and retain best human capital"]
["6dc327fd-c352-440b-9366-63fce6a71335","3002 General Expense - Human Resources:Corporate Services","PO002000000000000000000000000000000000","_","Sustainable human settlements and improved quality of household life","Governance","Attract, develop and retain best human capital"]
["6dc327fd-c352-440b-9366-63fce6a71335","3002 General Expense - Human Resources:Corporate Services","PO003020004000000000000000000000000000_00001","_","Responsive, accountable, effective and efficient local government","Governance","Attract, develop and retain best human capital"]
["6dc327fd-c352-440b-9366-63fce6a71335","3002 General Expense - Human Resources:Corporate Services","PO003032000000000000000000000000000000_00001","_","Responsive, accountable, effective and efficient local government","Inclusion and access","Attract, develop and retain best human capital"]
["6dc327fd-c352-440b-9366-63fce6a71335","3002 STAFF TRAINING -  Human Resources","PO002000000000000000000000000000000000","_","Sustainable human settlements and improved quality of household life","Governance","Attract, develop and retain best human capital"]
["6dc327fd-c352-440b-9366-63fce6a71335","3002 STAFF TRAINING -  Human Resources","PO003023004000000000000000000000000000_00001","_","An efficient, effective and development-oriented public service","Spatial integration","Attract, develop and retain best human capital"]
["6dc327fd-c352-440b-9366-63fce6a71335","3003 General Expense - Information Technology:Corporate Services","PO003020002000000000000000000000000000_00002","_","Responsive, accountable, effective and efficient local government","Governance","Improve financial viability"]
["6fa14a15-a164-42cb-a263-a0b007852bc5","4001 Employee Related Cost - COMM","PO002000000000000000000000000000000000","_","Sustainable human settlements and improved quality of household life","Governance","Improve financial viability"]
["6fa14a15-a164-42cb-a263-a0b007852bc5","4003 General Expense - Parks:Community Services","PO002000000000000000000000000000000000","_","Sustainable human settlements and improved quality of household life","Governance","Improve financial viability"]
["6fa14a15-a164-42cb-a263-a0b007852bc5","4005 General Expense - Traffic:Community Services","PO002000000000000000000000000000000000","_","Sustainable human settlements and improved quality of household life","Governance","Improve financial viability"]
["7a72b54f-5d07-49be-9fce-a165060a7b01","5003 General Expense - Town Planning:Planning and Development","PO002000000000000000000000000000000000","_","Sustainable human settlements and improved quality of household life","Governance","Sustain the environment"]
["81e26025-8a7e-485a-b96d-814b817bc7e2","4001 General Expense - Director Community Services:Community Services","PO002000000000000000000000000000000000","_","Sustainable human settlements and improved quality of household life","Governance","Improve financial viability"]
["81e26025-8a7e-485a-b96d-814b817bc7e2","4005 Employee Related Cost - Traffic: COMM","PO002000000000000000000000000000000000","_","Sustainable human settlements and improved quality of household life","Governance","Improve financial viability"]
["81e26025-8a7e-485a-b96d-814b817bc7e2","4005 General Expense - Traffic:Community Services","PO002000000000000000000000000000000000","_","Sustainable human settlements and improved quality of household life","Governance","Improve financial viability"]
["81e26025-8a7e-485a-b96d-814b817bc7e2","4005 General Expense - Traffic:Community Services","PO002000000000000000000000000000000000","_","Sustainable human settlements and improved quality of household life","Governance","Improve financial viability"]
["81e26025-8a7e-485a-b96d-814b817bc7e2","4005 General Expense - Traffic:Community Services","PO003003001000000000000000000000000000_00004","_","Sustainable human settlements and improved quality of household life","Governance","Improve financial viability"]
["81e26025-8a7e-485a-b96d-814b817bc7e2","4005 General Expense - Traffic:Community Services","PO003003001000000000000000000000000000_00024","_","Sustainable human settlements and improved quality of household life","Governance","Improve financial viability"]
["81e26025-8a7e-485a-b96d-814b817bc7e2","4005 Repairs and Maintenance - Traffic:Community Services","PO001002002001002001001002000000000000_00003","_","An efficient, effective and development-oriented public service","Inclusion and access","Improve financial viability"]
["81e26025-8a7e-485a-b96d-814b817bc7e2","4005 Repairs and Maintenance - Traffic:Community Services","PO001002002001002001001002000000000000_00003","_","An efficient, effective and development-oriented public service","Inclusion and access","Improve financial viability"]
["81e26025-8a7e-485a-b96d-814b817bc7e2","4005 Repairs and Maintenance - Traffic:Community Services","PO001002002001010000000000000000000000_00011","_","An efficient, effective and development-oriented public service","Governance","Improve financial viability"]
["81e26025-8a7e-485a-b96d-814b817bc7e2","4005 Repairs and Maintenance - Traffic:Community Services","PO001002002001010000000000000000000000_00011","_","An efficient, effective and development-oriented public service","Governance","Improve financial viability"]
["81e26025-8a7e-485a-b96d-814b817bc7e2","4006 Employee Related Cost - Licensing: COMM","PO002000000000000000000000000000000000","_","Sustainable human settlements and improved quality of household life","Governance","Improve financial viability"]
["81e26025-8a7e-485a-b96d-814b817bc7e2","4006 General Expense - Licensing:Community Services","PO002000000000000000000000000000000000","_","Sustainable human settlements and improved quality of household life","Governance","Improve financial viability"]
["81e26025-8a7e-485a-b96d-814b817bc7e2","Trial Balance Takeon","PO002000000000000000000000000000000000","_","Sustainable human settlements and improved quality of household life","Governance","Improve financial viability"]
["84c380c3-3b7f-4f6e-b3e1-ca680365dc85","Trial Balance Takeon","PO002000000000000000000000000000000000","_","Sustainable human settlements and improved quality of household life","Governance","Improve financial viability"]
["883643f9-8ff9-482c-9c37-1e3cfdbb22ec","5001 General Expense - Director planning and Development:Planning and Development","PO002000000000000000000000000000000000","_","Sustainable human settlements and improved quality of household life","Governance","Improve financial viability"]
["883643f9-8ff9-482c-9c37-1e3cfdbb22ec","5001 General Expense - Director planning and Development:Planning and Development","PO002000000000000000000000000000000000","_","Sustainable human settlements and improved quality of household life","Governance","Improve financial viability"]
["883643f9-8ff9-482c-9c37-1e3cfdbb22ec","5002 Employee Related Cost - Economic Development: P&D","PO002000000000000000000000000000000000","_","Sustainable human settlements and improved quality of household life","Governance","Improve financial viability"]
["883643f9-8ff9-482c-9c37-1e3cfdbb22ec","5002 General Expense - Economic Development:Planning and Development","PO002000000000000000000000000000000000","_","Sustainable human settlements and improved quality of household life","Governance","Promotion of Local economy"]
["883643f9-8ff9-482c-9c37-1e3cfdbb22ec","5002 General Expense - Economic Development:Planning and Development","PO002000000000000000000000000000000000","_","Sustainable human settlements and improved quality of household life","Governance","Promotion of Local economy"]
["883643f9-8ff9-482c-9c37-1e3cfdbb22ec","5004 Employee Related Cost - Strategic planning and performance Mngmnt: P&D","PO002000000000000000000000000000000000","_","Sustainable human settlements and improved quality of household life","Governance","Improve financial viability"]
["883643f9-8ff9-482c-9c37-1e3cfdbb22ec","5004 General Expense - Strategic planning and performance management:Planning and Development","PO002000000000000000000000000000000000","_","Sustainable human settlements and improved quality of household life","Governance","Good corporate governance and public participation"]
["883643f9-8ff9-482c-9c37-1e3cfdbb22ec","5004 Plan Development - Strategic planning and performance management","PO003044016002000000000000000000000000_00001","_","Responsive, accountable, effective and efficient local government","Spatial integration","Attract, develop and retain best human capital"]
["883643f9-8ff9-482c-9c37-1e3cfdbb22ec","Trial Balance Takeon","PO002000000000000000000000000000000000","_","Sustainable human settlements and improved quality of household life","Governance","Improve financial viability"]
["89aa6d98-8ca6-4416-8143-f6f22ef86160","2005 Employee Related Cost - Supply Chain Mngmnt and Stores: BTO","PO002000000000000000000000000000000000","_","Sustainable human settlements and improved quality of household life","Governance","Improve financial viability"]
["89aa6d98-8ca6-4416-8143-f6f22ef86160","2005 General Expense - Supply Chain Management and Stores:Budget and Treasury","PO002000000000000000000000000000000000","_","Sustainable human settlements and improved quality of household life","Governance","Improve financial viability"]
["89aa6d98-8ca6-4416-8143-f6f22ef86160","2005 General Expense - Supply Chain Management and Stores:Budget and Treasury","PO002000000000000000000000000000000000","_","Sustainable human settlements and improved quality of household life","Governance","Improve financial viability"]
["89aa6d98-8ca6-4416-8143-f6f22ef86160","2005 General Expense - Supply Chain Management and Stores:Budget and Treasury","PO003003001000000000000000000000000000_00014","_","Sustainable human settlements and improved quality of household life","Governance","Improve financial viability"]
["89aa6d98-8ca6-4416-8143-f6f22ef86160","2005 General Expense - Supply Chain Management and Stores:Budget and Treasury","PO003003001000000000000000000000000000_00036","_","Sustainable human settlements and improved quality of household life","Governance","Improve financial viability"]
["89aa6d98-8ca6-4416-8143-f6f22ef86160","Trial Balance Takeon","PO002000000000000000000000000000000000","_","Sustainable human settlements and improved quality of household life","Governance","Improve financial viability"]
["92aebb43-91da-45ab-a98d-95be1511fb78","4002 Employee Related Cost - Libraries: COMM","PO002000000000000000000000000000000000","_","Sustainable human settlements and improved quality of household life","Governance","Improve financial viability"]
["92aebb43-91da-45ab-a98d-95be1511fb78","4002 General Expense - Libraries:Community Services","PO002000000000000000000000000000000000","_","Sustainable human settlements and improved quality of household life","Governance","Improve financial viability"]
["92aebb43-91da-45ab-a98d-95be1511fb78","4002 General Expense - Libraries:Community Services","PO002000000000000000000000000000000000","_","Sustainable human settlements and improved quality of household life","Governance","Improve financial viability"]
["92aebb43-91da-45ab-a98d-95be1511fb78","4002 General Expense - Libraries:Community Services","PO003003001000000000000000000000000000_00009","_","Sustainable human settlements and improved quality of household life","Governance","Improve financial viability"]
["92aebb43-91da-45ab-a98d-95be1511fb78","4002 General Expense - Libraries:Community Services","PO003003001000000000000000000000000000_00021","_","Sustainable human settlements and improved quality of household life","Governance","Improve financial viability"]
["92aebb43-91da-45ab-a98d-95be1511fb78","4002 LIBRARY OUTREACH - Libraries:Community Services","PO003007014000000000000000000000000000_00001","_","A comprehensive, responsive and sustainable social protection system","Inclusion and access","Good corporate governance and public participation"]
["92aebb43-91da-45ab-a98d-95be1511fb78","4002 Repairs and Maintenance - Community Facilities","PO001002002001010000000000000000000000_00002","_","An efficient, effective and development-oriented public service","Governance","Improve financial viability"]
["92aebb43-91da-45ab-a98d-95be1511fb78","4002 Repairs and Maintenance - Community Facilities","PO001002002001010000000000000000000000_00002","_","An efficient, effective and development-oriented public service","Governance","Improve financial viability"]
["92aebb43-91da-45ab-a98d-95be1511fb78","Trial Balance Takeon","PO002000000000000000000000000000000000","_","Sustainable human settlements and improved quality of household life","Governance","Improve financial viability"]
["a0417e64-ef9b-4d7d-8721-6fd6b304450d","1004 General Expenses - Internal Audit and Risk Management:Executive and Council","PO002000000000000000000000000000000000","_","Sustainable human settlements and improved quality of household life","Governance","Good corporate governance and public participation"]
["ba7a3e30-8c47-498d-a65a-3b5b9b1a77d7","4001 Director Community Services: COMM","PO002000000000000000000000000000000000","_","Sustainable human settlements and improved quality of household life","Governance","Improve financial viability"]
["ba7a3e30-8c47-498d-a65a-3b5b9b1a77d7","4001 Employee Related Cost - COMM","PO002000000000000000000000000000000000","_","Sustainable human settlements and improved quality of household life","Governance","Improve financial viability"]
["ba7a3e30-8c47-498d-a65a-3b5b9b1a77d7","4001 General Expense - Director Community Services:Community Services","PO002000000000000000000000000000000000","_","Sustainable human settlements and improved quality of household life","Governance","Improve financial viability"]
["ba7a3e30-8c47-498d-a65a-3b5b9b1a77d7","4001 General Expense - Director Community Services:Community Services","PO002000000000000000000000000000000000","_","Sustainable human settlements and improved quality of household life","Governance","Improve financial viability"]
["ba7a3e30-8c47-498d-a65a-3b5b9b1a77d7","4001 Repairs and Maintenance - Director Community Services:Community Services","PO001002002001005000000000000000000000_00016","_","An efficient, effective and development-oriented public service","Governance","Improve financial viability"]
["ba7a3e30-8c47-498d-a65a-3b5b9b1a77d7","4001 Repairs and Maintenance - Director Community Services:Community Services","PO001002002001005000000000000000000000_00016","_","An efficient, effective and development-oriented public service","Governance","Improve financial viability"]
["ba7a3e30-8c47-498d-a65a-3b5b9b1a77d7","4004 General Expense - Cemetries:Community Services","PO001002002001002001011001000000000000_00004","_","A comprehensive, responsive and sustainable social protection system","Inclusion and access","Improve financial viability"]
["ba7a3e30-8c47-498d-a65a-3b5b9b1a77d7","4004 General Expense - Cemetries:Community Services","PO001002002001002001011001000000000000_00004","_","A comprehensive, responsive and sustainable social protection system","Inclusion and access","Improve financial viability"]
["ba7a3e30-8c47-498d-a65a-3b5b9b1a77d7","4004 General Expense - Cemetries:Community Services","PO002000000000000000000000000000000000","_","Sustainable human settlements and improved quality of household life","Governance","Improve financial viability"]
["ba7a3e30-8c47-498d-a65a-3b5b9b1a77d7","4004 General Expense - Cemetries:Community Services","PO002000000000000000000000000000000000","_","Sustainable human settlements and improved quality of household life","Governance","Improve financial viability"]
["ba7a3e30-8c47-498d-a65a-3b5b9b1a77d7","4004 General Expense - Cemetries:Community Services","PO003003001000000000000000000000000000_00008","_","Sustainable human settlements and improved quality of household life","Governance","Improve financial viability"]
["ba7a3e30-8c47-498d-a65a-3b5b9b1a77d7","4004 General Expense - Cemetries:Community Services","PO003003001000000000000000000000000000_00023","_","Sustainable human settlements and improved quality of household life","Governance","Improve financial viability"]
["ba7a3e30-8c47-498d-a65a-3b5b9b1a77d7","4004 Repairs and Maintenance - Cemetries:Community Services","PO001002002001002001011001000000000000_00002","_","A comprehensive, responsive and sustainable social protection system","Inclusion and access","Provision of sustainable integrated infrastructure and services"]
["ba7a3e30-8c47-498d-a65a-3b5b9b1a77d7","4004 Repairs and Maintenance - Cemetries:Community Services","PO001002002001002001011001000000000000_00002","_","A comprehensive, responsive and sustainable social protection system","Inclusion and access","Provision of sustainable integrated infrastructure and services"]
["ba7a3e30-8c47-498d-a65a-3b5b9b1a77d7","Trial Balance Takeon","PO002000000000000000000000000000000000","_","Sustainable human settlements and improved quality of household life","Governance","Improve financial viability"]
["be26bea6-58e3-4497-b52c-0bf597208207","6001 Employee Related Cost - Director Technical Service: TECH","PO002000000000000000000000000000000000","_","Sustainable human settlements and improved quality of household life","Governance","Improve financial viability"]
["be26bea6-58e3-4497-b52c-0bf597208207","6001 EPWP EXPENSES - Director Technical Service","PO003016001000000000000000000000000000_00001","_","An efficient, effective and development-oriented public service","Inclusion and access","Promotion of Local economy"]
["be26bea6-58e3-4497-b52c-0bf597208207","6001 General Expense - Director Technical Service:Technical Services","PO002000000000000000000000000000000000","_","Sustainable human settlements and improved quality of household life","Governance","Improve financial viability"]
["be26bea6-58e3-4497-b52c-0bf597208207","6001 General Expense - Director Technical Service:Technical Services","PO002000000000000000000000000000000000","_","Sustainable human settlements and improved quality of household life","Governance","Improve financial viability"]
["be26bea6-58e3-4497-b52c-0bf597208207","6003 Employee Related Cost - Building Section: TECH","PO002000000000000000000000000000000000","_","Sustainable human settlements and improved quality of household life","Governance","Improve financial viability"]
["be26bea6-58e3-4497-b52c-0bf597208207","6003 General Expense - Building Section:Technical Services","PO002000000000000000000000000000000000","_","Sustainable human settlements and improved quality of household life","Governance","Improve financial viability"]
["be26bea6-58e3-4497-b52c-0bf597208207","6003 General Expense - Building Section:Technical Services","PO002000000000000000000000000000000000","_","Sustainable human settlements and improved quality of household life","Governance","Improve financial viability"]
["be26bea6-58e3-4497-b52c-0bf597208207","6003 General Expense - Building Section:Technical Services","PO003003001000000000000000000000000000_00003","_","Sustainable human settlements and improved quality of household life","Governance","Improve financial viability"]
["be26bea6-58e3-4497-b52c-0bf597208207","6003 General Expense - Building Section:Technical Services","PO003003001000000000000000000000000000_00029","_","Sustainable human settlements and improved quality of household life","Governance","Improve financial viability"]
["be26bea6-58e3-4497-b52c-0bf597208207","6003 Repairs and Maintenance - Building Section:Technical Services","PO001002002001002001001002000000000000_00001","_","An efficient, effective and development-oriented public service","Inclusion and access","Improve financial viability"]
["be26bea6-58e3-4497-b52c-0bf597208207","6003 Repairs and Maintenance - Building Section:Technical Services","PO001002002001002001001002000000000000_00001","_","An efficient, effective and development-oriented public service","Inclusion and access","Improve financial viability"]
["be26bea6-58e3-4497-b52c-0bf597208207","6003 Repairs and Maintenance - Building Section:Technical Services","PO001002002001005000000000000000000000_00012","_","An efficient, effective and development-oriented public service","Governance","Improve financial viability"]
["be26bea6-58e3-4497-b52c-0bf597208207","6003 Repairs and Maintenance - Building Section:Technical Services","PO001002002001005000000000000000000000_00012","_","An efficient, effective and development-oriented public service","Governance","Improve financial viability"]
["be26bea6-58e3-4497-b52c-0bf597208207","6003 Repairs and Maintenance - Building Section:Technical Services","PO001002002001010000000000000000000000_00016","_","An efficient, effective and development-oriented public service","Governance","Improve financial viability"]
["be26bea6-58e3-4497-b52c-0bf597208207","6003 Repairs and Maintenance - Building Section:Technical Services","PO001002002001010000000000000000000000_00016","_","An efficient, effective and development-oriented public service","Governance","Improve financial viability"]
["be26bea6-58e3-4497-b52c-0bf597208207","6003 Repairs and Maintenance - Building Section:Technical Services","PO005002001003001001000000000000000000_00001","_","An efficient, effective and development-oriented public service","Inclusion and access","Improve financial viability"]
["be26bea6-58e3-4497-b52c-0bf597208207","6006 Employee Related Cost - Roads and storm water services: TECH","PO002000000000000000000000000000000000","_","Sustainable human settlements and improved quality of household life","Governance","Improve financial viability"]
["be26bea6-58e3-4497-b52c-0bf597208207","6006 General Expense - Roads and storm water services:Technical Services","PO002000000000000000000000000000000000","_","Sustainable human settlements and improved quality of household life","Governance","Improve financial viability"]
["be26bea6-58e3-4497-b52c-0bf597208207","6006 General Expense - Roads and storm water services:Technical Services","PO003003001000000000000000000000000000_00002","_","Sustainable human settlements and improved quality of household life","Governance","Improve financial viability"]
["be26bea6-58e3-4497-b52c-0bf597208207","6006 General Expense - Roads and storm water services:Technical Services","PO003003001000000000000000000000000000_00030","_","Sustainable human settlements and improved quality of household life","Governance","Improve financial viability"]
["be26bea6-58e3-4497-b52c-0bf597208207","6006 Repairs and Maintenance - Roads and storm water services:Technical Services","PO001001002001002001001000000000000000_00002","_","An efficient, competitive and responsive economic infrastructure network","Inclusion and access","Improve financial viability"]
["be26bea6-58e3-4497-b52c-0bf597208207","6006 Repairs and Maintenance - Roads and storm water services:Technical Services","PO001001002001002001001000000000000000_00002","_","An efficient, competitive and responsive economic infrastructure network","Inclusion and access","Improve financial viability"]
["be26bea6-58e3-4497-b52c-0bf597208207","6006 Repairs and Maintenance - Roads and storm water services:Technical Services","PO001002002001005000000000000000000000_00013","_","An efficient, effective and development-oriented public service","Governance","Improve financial viability"]
["be26bea6-58e3-4497-b52c-0bf597208207","6006 Repairs and Maintenance - Roads and storm water services:Technical Services","PO001002002001005000000000000000000000_00013","_","An efficient, effective and development-oriented public service","Governance","Improve financial viability"]
["be26bea6-58e3-4497-b52c-0bf597208207","6006 Repairs and Maintenance - Roads and storm water services:Technical Services","PO001002002001010000000000000000000000_00015","_","An efficient, effective and development-oriented public service","Governance","Improve financial viability"]
["be26bea6-58e3-4497-b52c-0bf597208207","6006 Repairs and Maintenance - Roads and storm water services:Technical Services","PO001002002001010000000000000000000000_00015","_","An efficient, effective and development-oriented public service","Governance","Improve financial viability"]
["be26bea6-58e3-4497-b52c-0bf597208207","6007 General Expense - Project Management Unit:Technical Services","PO002000000000000000000000000000000000","_","Sustainable human settlements and improved quality of household life","Governance","Improve financial viability"]
["be26bea6-58e3-4497-b52c-0bf597208207","6008 Employee Related Cost - Mechanical Workshop: TECH","PO002000000000000000000000000000000000","_","Sustainable human settlements and improved quality of household life","Governance","Improve financial viability"]
["be26bea6-58e3-4497-b52c-0bf597208207","6008 General Expense - Mechanical Workshop:Technical Services","PO002000000000000000000000000000000000","_","Sustainable human settlements and improved quality of household life","Governance","Improve financial viability"]
["be26bea6-58e3-4497-b52c-0bf597208207","6008 General Expense - Mechanical Workshop:Technical Services","PO002000000000000000000000000000000000","_","Sustainable human settlements and improved quality of household life","Governance","Improve financial viability"]
["be26bea6-58e3-4497-b52c-0bf597208207","6008 General Expense - Mechanical Workshop:Technical Services","PO003003001000000000000000000000000000_00001","_","Sustainable human settlements and improved quality of household life","Governance","Improve financial viability"]
["be26bea6-58e3-4497-b52c-0bf597208207","6008 General Expense - Mechanical Workshop:Technical Services","PO003003001000000000000000000000000000_00032","_","Sustainable human settlements and improved quality of household life","Governance","Improve financial viability"]
["be26bea6-58e3-4497-b52c-0bf597208207","6008 Repairs and Maintenance - Mechanical Workshop:Technical Services","PO001002002001003001001002000000000000_00001","_","An efficient, effective and development-oriented public service","Governance","Improve financial viability"]
["be26bea6-58e3-4497-b52c-0bf597208207","6008 Repairs and Maintenance - Mechanical Workshop:Technical Services","PO001002002001003001001002000000000000_00001","_","An efficient, effective and development-oriented public service","Governance","Improve financial viability"]
["be26bea6-58e3-4497-b52c-0bf597208207","6008 Repairs and Maintenance - Mechanical Workshop:Technical Services","PO001002002001010000000000000000000000_00014","_","An efficient, effective and development-oriented public service","Governance","Improve financial viability"]
["be26bea6-58e3-4497-b52c-0bf597208207","6008 Repairs and Maintenance - Mechanical Workshop:Technical Services","PO001002002001010000000000000000000000_00014","_","An efficient, effective and development-oriented public service","Governance","Improve financial viability"]
["be26bea6-58e3-4497-b52c-0bf597208207","Trial Balance Takeon","PO002000000000000000000000000000000000","_","Sustainable human settlements and improved quality of household life","Governance","Improve financial viability"]
["c57d4368-34c4-4b96-8470-2264a2fa849c","2005 General Expense - Supply Chain Management and Stores:Budget and Treasury","PO001002002001010000000000000000000000_00017","_","An efficient, effective and development-oriented public service","Governance","Improve financial viability"]
["c57d4368-34c4-4b96-8470-2264a2fa849c","2005 General Expense - Supply Chain Management and Stores:Budget and Treasury","PO001002002001010000000000000000000000_00017","_","An efficient, effective and development-oriented public service","Governance","Improve financial viability"]
["c57d4368-34c4-4b96-8470-2264a2fa849c","2005 General Expense - Supply Chain Management and Stores:Budget and Treasury","PO002000000000000000000000000000000000","_","Sustainable human settlements and improved quality of household life","Governance","Improve financial viability"]
["c57d4368-34c4-4b96-8470-2264a2fa849c","3004 General Expense - Administration:Corporate Services","PO002000000000000000000000000000000000","_","Sustainable human settlements and improved quality of household life","Governance","Improve financial viability"]
["c57d4368-34c4-4b96-8470-2264a2fa849c","6003 General Expense - Building Section:Technical Services","PO002000000000000000000000000000000000","_","Sustainable human settlements and improved quality of household life","Governance","Improve financial viability"]
["c746317f-626c-4092-b71c-e7194f3d8b8a","4003 Employee Related Cost - Parks: COMM","PO002000000000000000000000000000000000","_","Sustainable human settlements and improved quality of household life","Governance","Improve financial viability"]
["c746317f-626c-4092-b71c-e7194f3d8b8a","4003 General Expense - Parks:Community Services","PO002000000000000000000000000000000000","_","Sustainable human settlements and improved quality of household life","Governance","Improve financial viability"]
["c746317f-626c-4092-b71c-e7194f3d8b8a","4003 General Expense - Parks:Community Services","PO002000000000000000000000000000000000","_","Sustainable human settlements and improved quality of household life","Governance","Improve financial viability"]
["c746317f-626c-4092-b71c-e7194f3d8b8a","4003 General Expense - Parks:Community Services","PO003003001000000000000000000000000000_00005","_","Sustainable human settlements and improved quality of household life","Governance","Improve financial viability"]
["c746317f-626c-4092-b71c-e7194f3d8b8a","4003 General Expense - Parks:Community Services","PO003003001000000000000000000000000000_00022","_","Sustainable human settlements and improved quality of household life","Governance","Improve financial viability"]
["c746317f-626c-4092-b71c-e7194f3d8b8a","4003 Repairs and Maintenance - Parks:Community Services","PO001001002001010000000000000000000000_00001","_","An efficient, competitive and responsive economic infrastructure network","Inclusion and access","Provision of sustainable integrated infrastructure and services"]
["c746317f-626c-4092-b71c-e7194f3d8b8a","4003 Repairs and Maintenance - Parks:Community Services","PO001001002001010000000000000000000000_00001","_","An efficient, competitive and responsive economic infrastructure network","Inclusion and access","Provision of sustainable integrated infrastructure and services"]
["c746317f-626c-4092-b71c-e7194f3d8b8a","4003 Repairs and Maintenance - Parks:Community Services","PO001002002001010000000000000000000000_00012","_","An efficient, effective and development-oriented public service","Governance","Provision of sustainable integrated infrastructure and services"]
["c746317f-626c-4092-b71c-e7194f3d8b8a","4003 Repairs and Maintenance - Parks:Community Services","PO001002002001010000000000000000000000_00012","_","An efficient, effective and development-oriented public service","Governance","Provision of sustainable integrated infrastructure and services"]
["c746317f-626c-4092-b71c-e7194f3d8b8a","4003 Repairs and Maintenance - Parks:Community Services","PO003015011000000000000000000000000000_00001","_","Protect and enhance our environmental assets and natural resources","Spatial integration","Provision of sustainable integrated infrastructure and services"]
["d001b930-0f88-4eb0-bcde-e8736dbf200e","3005 Employee Related Cost - Legal: CORP","PO002000000000000000000000000000000000","_","Sustainable human settlements and improved quality of household life","Governance","Improve financial viability"]
["d001b930-0f88-4eb0-bcde-e8736dbf200e","3005 General Expense - Legal:Corporate Services","PO002000000000000000000000000000000000","_","Sustainable human settlements and improved quality of household life","Governance","Improve financial viability"]
["d001b930-0f88-4eb0-bcde-e8736dbf200e","3005 General Expense - Legal:Corporate Services","PO002000000000000000000000000000000000","_","Sustainable human settlements and improved quality of household life","Governance","Improve financial viability"]
["d001b930-0f88-4eb0-bcde-e8736dbf200e","Trial Balance Takeon","PO002000000000000000000000000000000000","_","Sustainable human settlements and improved quality of household life","Governance","Improve financial viability"]
["d0a8c200-23d4-4309-8ea5-97922584a36d","6002 Employee Related Cost - Electrical Services: TECH","PO002000000000000000000000000000000000","_","Sustainable human settlements and improved quality of household life","Governance","Improve financial viability"]
["d0a8c200-23d4-4309-8ea5-97922584a36d","6002 General Expense - Electrical Services:Technical Services","PO002000000000000000000000000000000000","_","Sustainable human settlements and improved quality of household life","Governance","Provision of sustainable integrated infrastructure and services"]
["d0a8c200-23d4-4309-8ea5-97922584a36d","6002 General Expense - Electrical Services:Technical Services","PO002000000000000000000000000000000000","_","Sustainable human settlements and improved quality of household life","Governance","Provision of sustainable integrated infrastructure and services"]
["d0a8c200-23d4-4309-8ea5-97922584a36d","6002 General Expense - Electrical Services:Technical Services","PO003003001000000000000000000000000000_00011","_","Sustainable human settlements and improved quality of household life","Governance","Provision of sustainable integrated infrastructure and services"]
["d0a8c200-23d4-4309-8ea5-97922584a36d","6002 General Expense - Electrical Services:Technical Services","PO003003001000000000000000000000000000_00028","_","Sustainable human settlements and improved quality of household life","Governance","Provision of sustainable integrated infrastructure and services"]
["d0a8c200-23d4-4309-8ea5-97922584a36d","6002 Repairs and Maintenance - Electrical Services:Technical Services","PO001001002001001005004000000000000000_00004","_","An efficient, competitive and responsive economic infrastructure network","Inclusion and access","Provision of sustainable integrated infrastructure and services"]
["d0a8c200-23d4-4309-8ea5-97922584a36d","6002 Repairs and Maintenance - Electrical Services:Technical Services","PO001001002001001005004000000000000000_00004","_","An efficient, competitive and responsive economic infrastructure network","Inclusion and access","Provision of sustainable integrated infrastructure and services"]
["d0a8c200-23d4-4309-8ea5-97922584a36d","6002 Repairs and Maintenance - Electrical Services:Technical Services","PO001002002001005000000000000000000000_00011","_","An efficient, effective and development-oriented public service","Governance","Provision of sustainable integrated infrastructure and services"]
["d0a8c200-23d4-4309-8ea5-97922584a36d","6002 Repairs and Maintenance - Electrical Services:Technical Services","PO001002002001005000000000000000000000_00011","_","An efficient, effective and development-oriented public service","Governance","Provision of sustainable integrated infrastructure and services"]
["d0a8c200-23d4-4309-8ea5-97922584a36d","6002 Repairs and Maintenance - Electrical Services:Technical Services","PO001002002001010000000000000000000000_00004","_","An efficient, effective and development-oriented public service","Governance","Provision of sustainable integrated infrastructure and services"]
["d0a8c200-23d4-4309-8ea5-97922584a36d","6002 Repairs and Maintenance - Electrical Services:Technical Services","PO001002002001010000000000000000000000_00004","_","An efficient, effective and development-oriented public service","Governance","Provision of sustainable integrated infrastructure and services"]
["d0a8c200-23d4-4309-8ea5-97922584a36d","Trial Balance Takeon","PO002000000000000000000000000000000000","_","Sustainable human settlements and improved quality of household life","Governance","Improve financial viability"]
["d322a6d8-8a77-4f3e-b409-e49df0b85989","1001 Employee Related cost - Municipal Council: Executive and Council","PO002000000000000000000000000000000000","_","Sustainable human settlements and improved quality of household life","Governance","Improve financial viability"]
["d322a6d8-8a77-4f3e-b409-e49df0b85989","1001 General Expense - Municipal Council:Executive and Council","PO002000000000000000000000000000000000","_","Sustainable human settlements and improved quality of household life","Governance","Good corporate governance and public participation"]
["d322a6d8-8a77-4f3e-b409-e49df0b85989","1001 General Expense - Municipal Council:Executive and Council","PO002000000000000000000000000000000000","_","Sustainable human settlements and improved quality of household life","Governance","Good corporate governance and public participation"]
["d322a6d8-8a77-4f3e-b409-e49df0b85989","1001 MPAC STRATEGIC SESSION PLANNING","PO003044016002000000000000000000000000_00005","_","Responsive, accountable, effective and efficient local government","Spatial integration","Good corporate governance and public participation"]
["d322a6d8-8a77-4f3e-b409-e49df0b85989","1001 Repairs and Maintenance - Municipal Council:Executive and Council","PO001002002001005000000000000000000000_00005","_","An efficient, effective and development-oriented public service","Governance","Improve financial viability"]
["d322a6d8-8a77-4f3e-b409-e49df0b85989","1001 Repairs and Maintenance - Municipal Council:Executive and Council","PO001002002001005000000000000000000000_00005","_","An efficient, effective and development-oriented public service","Governance","Improve financial viability"]
["d322a6d8-8a77-4f3e-b409-e49df0b85989","1001 Repairs and Maintenance - Municipal Council:Executive and Council","PO001002002001010000000000000000000000_00005","_","An efficient, effective and development-oriented public service","Governance","Improve financial viability"]
["d322a6d8-8a77-4f3e-b409-e49df0b85989","1001 Repairs and Maintenance - Municipal Council:Executive and Council","PO001002002001010000000000000000000000_00005","_","An efficient, effective and development-oriented public service","Governance","Improve financial viability"]
["d322a6d8-8a77-4f3e-b409-e49df0b85989","1002 16 DAYS ACTIVISM EXPENSES-MAYORS OFFICE","PO003007016000000000000000000000000000_00001","_","A comprehensive, responsive and sustainable social protection system","Inclusion and access","Improve financial viability"]
["d322a6d8-8a77-4f3e-b409-e49df0b85989","1002 ARBOR DAY EVENTS EXPENSES - MAYORS OFFICE:EXECUTIVE and COUNCIL","PO003005001000000000000000000000000000_00001","_","Protect and enhance our environmental assets and natural resources","Inclusion and access","Good corporate governance and public participation"]
["d322a6d8-8a77-4f3e-b409-e49df0b85989","1002 BPM CHILDRENS DAY-MAYORS OFFICE","PO003007001000000000000000000000000000_00001","_","A comprehensive, responsive and sustainable social protection system","Inclusion and access","Improve financial viability"]
["d322a6d8-8a77-4f3e-b409-e49df0b85989","1002 Employee Related Cost - Mayors office: Executive and Councillors","PO002000000000000000000000000000000000","_","Sustainable human settlements and improved quality of household life","Governance","Improve financial viability"]
["d322a6d8-8a77-4f3e-b409-e49df0b85989","1002 General Expense - Mayors office:Executive and Council","PO002000000000000000000000000000000000","_","Sustainable human settlements and improved quality of household life","Governance","Good corporate governance and public participation"]
["d322a6d8-8a77-4f3e-b409-e49df0b85989","1002 General Expense - Mayors office:Executive and Council","PO002000000000000000000000000000000000","_","Sustainable human settlements and improved quality of household life","Governance","Good corporate governance and public participation"]
["d322a6d8-8a77-4f3e-b409-e49df0b85989","1002 General Expense - Mayors office:Executive and Council","PO003003001000000000000000000000000000_00018","_","Sustainable human settlements and improved quality of household life","Governance","Good corporate governance and public participation"]
["d322a6d8-8a77-4f3e-b409-e49df0b85989","1002 General Expense - Mayors office:Executive and Council","PO003003001000000000000000000000000000_00033","_","Sustainable human settlements and improved quality of household life","Governance","Good corporate governance and public participation"]
["d322a6d8-8a77-4f3e-b409-e49df0b85989","1002 General Expense - Mayors office:Executive and Council","PO003007002000000000000000000000000000_00001","_","A comprehensive, responsive and sustainable social protection system","Inclusion and access","Good corporate governance and public participation"]
["d322a6d8-8a77-4f3e-b409-e49df0b85989","1002 General Expense - Mayors office:Executive and Council","PO003007002000000000000000000000000000_00002","_","A comprehensive, responsive and sustainable social protection system","Inclusion and access","Good corporate governance and public participation"]
["d322a6d8-8a77-4f3e-b409-e49df0b85989","1002 HIV AND AIDS EVENTS EXPENSES - MAJOR'S OFFICE","PO003002002001000000000000000000000000_00001","_","A long and healthy life for all South Africans","Inclusion and access","Good corporate governance and public participation"]
["d322a6d8-8a77-4f3e-b409-e49df0b85989","1002 MAYORAL FUNCTIONS-MAYORS OFFICE","PO003006004000000000000000000000000000_00001","_","Sustainable human settlements and improved quality of household life","Inclusion and access","Improve financial viability"]
["d322a6d8-8a77-4f3e-b409-e49df0b85989","1002 Remuneration of Councillors - Mayors office:Executive and Council","PO002000000000000000000000000000000000","_","Sustainable human settlements and improved quality of household life","Governance","Improve financial viability"]
["d322a6d8-8a77-4f3e-b409-e49df0b85989","1002 SPORTS EVENTS EXPENDITURE-MAYORS OFFICE","PO003043002000000000000000000000000000_00001","_","An efficient, effective and development-oriented public service","Inclusion and access","Improve financial viability"]
["d322a6d8-8a77-4f3e-b409-e49df0b85989","1002 WARD COMMITTEE CONFERENCE - Mayors office","PO003048001000000000000000000000000000_00001","_","Responsive, accountable, effective and efficient local government","Inclusion and access","Improve financial viability"]
["d322a6d8-8a77-4f3e-b409-e49df0b85989","1002 WOMENS MONTH EVENT EXPENSES-MAYORS OFFICE","PO003007011000000000000000000000000000_00002","_","A comprehensive, responsive and sustainable social protection system","Inclusion and access","Improve financial viability"]
["d322a6d8-8a77-4f3e-b409-e49df0b85989","1002 YOUTH EVENTS EXPENSES-MAYORS OFFICE","PO003007017002000000000000000000000000_00001","_","A comprehensive, responsive and sustainable social protection system","Inclusion and access","Improve financial viability"]
["d322a6d8-8a77-4f3e-b409-e49df0b85989","1002:  YOUTH ,GENDER,DISABILITY DAY & ACTIVITIES","PO003007004000000000000000000000000000_00001","_","A comprehensive, responsive and sustainable social protection system","Inclusion and access","Good corporate governance and public participation"]
["d322a6d8-8a77-4f3e-b409-e49df0b85989","1002:  YOUTH ,GENDER,DISABILITY DAY & ACTIVITIES","PO003007007000000000000000000000000000_00001","_","A comprehensive, responsive and sustainable social protection system","Inclusion and access","Good corporate governance and public participation"]
["d322a6d8-8a77-4f3e-b409-e49df0b85989","Ward Committee Remuneration of Councillors","PO003048002000000000000000000000000000_00002","_","Responsive, accountable, effective and efficient local government","Inclusion and access","Good corporate governance and public participation"]
["e38be026-aa91-4710-9bdc-3b0f3755cc1a","1002 TOURISM MONTH EXPENSES-MAYORS OFFICE","PO003046005000000000000000000000000000_00001","_","An efficient, effective and development-oriented public service","Growth","Improve financial viability"]
["e38be026-aa91-4710-9bdc-3b0f3755cc1a","1002 TOURISM MONTH EXPENSES-MAYORS OFFICE","PO003046005000000000000000000000000000_00002","_","An efficient, effective and development-oriented public service","Growth","Improve financial viability"]
["e38be026-aa91-4710-9bdc-3b0f3755cc1a","1002 TOURISM MONTH EXPENSES-MAYORS OFFICE","PO003046005000000000000000000000000000_00002","_","An efficient, effective and development-oriented public service","Growth","Improve financial viability"]
["e38be026-aa91-4710-9bdc-3b0f3755cc1a","5001 Employee Related Cost - Director planning and Development: P&D","PO002000000000000000000000000000000000","_","Sustainable human settlements and improved quality of household life","Governance","Improve financial viability"]
["e38be026-aa91-4710-9bdc-3b0f3755cc1a","5001 General Expense - Director planning and Development:Planning and Development","PO002000000000000000000000000000000000","_","Sustainable human settlements and improved quality of household life","Governance","Improve financial viability"]
["e38be026-aa91-4710-9bdc-3b0f3755cc1a","5001 General Expense - Director planning and Development:Planning and Development","PO002000000000000000000000000000000000","_","Sustainable human settlements and improved quality of household life","Governance","Improve financial viability"]
["e38be026-aa91-4710-9bdc-3b0f3755cc1a","5002 CULTURAL DAY EVENTS EXPENSES","PO003026001000000000000000000000000000_00003","_","An efficient, effective and development-oriented public service","Inclusion and access","Improve financial viability"]
["e38be026-aa91-4710-9bdc-3b0f3755cc1a","5002 CULTURAL DAY EVENTS EXPENSES","PO003026001000000000000000000000000000_00005","_","An efficient, effective and development-oriented public service","Inclusion and access","Improve financial viability"]
["e38be026-aa91-4710-9bdc-3b0f3755cc1a","5002 General Expense - Economic Development:Planning and Development",null,"_",null,null,"Promotion of Local economy"]
["e38be026-aa91-4710-9bdc-3b0f3755cc1a","Trial Balance Takeon","PO002000000000000000000000000000000000","_","Sustainable human settlements and improved quality of household life","Governance","Improve financial viability"]
["e65f548d-c3fb-4eb6-b042-e507e9eec386","5002 General Expense - Economic Development:Planning and Development","PO002000000000000000000000000000000000","_","Sustainable human settlements and improved quality of household life","Governance","Promotion of Local economy"]
["e65f548d-c3fb-4eb6-b042-e507e9eec386","5003 Employee Related Cost - Town Planning: P&D","PO002000000000000000000000000000000000","_","Sustainable human settlements and improved quality of household life","Governance","Improve financial viability"]
["e65f548d-c3fb-4eb6-b042-e507e9eec386","5003 Employee Related Cost - Town Planning: P&D","PO002000000000000000000000000000000000","_","Sustainable human settlements and improved quality of household life","Governance","Improve financial viability"]
["e65f548d-c3fb-4eb6-b042-e507e9eec386","5003 General Expense - Town Planning:Planning and Development","PO002000000000000000000000000000000000","_","Sustainable human settlements and improved quality of household life","Governance","Sustain the environment"]
["e65f548d-c3fb-4eb6-b042-e507e9eec386","5003 General Expense - Town Planning:Planning and Development","PO002000000000000000000000000000000000","_","Sustainable human settlements and improved quality of household life","Governance","Sustain the environment"]
["e65f548d-c3fb-4eb6-b042-e507e9eec386","5003 General Expense - Town Planning:Planning and Development","PO003003001000000000000000000000000000_00027","_","Sustainable human settlements and improved quality of household life","Governance","Sustain the environment"]
["e65f548d-c3fb-4eb6-b042-e507e9eec386","5003 General Expense - Town Planning:Planning and Development","PO003003001000000000000000000000000000_00034","_","Sustainable human settlements and improved quality of household life","Governance","Sustain the environment"]
["e65f548d-c3fb-4eb6-b042-e507e9eec386","5003 General Expense - Town Planning:Planning and Development","PO003042000000000000000000000000000000_00004","_","An efficient, effective and development-oriented public service","Spatial integration","Sustain the environment"]
["e65f548d-c3fb-4eb6-b042-e507e9eec386","5003 General Expense - Town Planning:Planning and Development","PO003042000000000000000000000000000000_00005","_","An efficient, effective and development-oriented public service","Spatial integration","Sustain the environment"]
["e65f548d-c3fb-4eb6-b042-e507e9eec386","5003 General Expense - Town Planning:Planning and Development","PO003042000000000000000000000000000000_00006","_","An efficient, effective and development-oriented public service","Spatial integration","Sustain the environment"]
["e65f548d-c3fb-4eb6-b042-e507e9eec386","5003 General Expense - Town Planning:Planning and Development","PO003042000000000000000000000000000000_00007","_","An efficient, effective and development-oriented public service","Spatial integration","Sustain the environment"]
["e65f548d-c3fb-4eb6-b042-e507e9eec386","5003 Repairs and Maintenance - Town Planning:Planning and Development","PO001002002001010000000000000000000000_00010","_","An efficient, effective and development-oriented public service","Governance","Improve financial viability"]
["e65f548d-c3fb-4eb6-b042-e507e9eec386","5003 Repairs and Maintenance - Town Planning:Planning and Development","PO001002002001010000000000000000000000_00010","_","An efficient, effective and development-oriented public service","Governance","Improve financial viability"]
["e65f548d-c3fb-4eb6-b042-e507e9eec386","Trial Balance Takeon","PO002000000000000000000000000000000000","_","Sustainable human settlements and improved quality of household life","Governance","Improve financial viability"]
["e8aba1cd-7bec-4426-97e0-6a04f2677ea8","5004 Plan Development - Strategic planning and performance management","PO003044016002000000000000000000000000_00001","_","Responsive, accountable, effective and efficient local government","Spatial integration","Attract, develop and retain best human capital"]
["f3333fef-376f-4d03-b158-f7050b66056d","1003 Employee Related cost - Municipal Manager: Executive and Councillors","PO002000000000000000000000000000000000","_","Sustainable human settlements and improved quality of household life","Governance","Improve financial viability"]
["f3333fef-376f-4d03-b158-f7050b66056d","1003 General Expense - Municipal Manager:Executive and Council","PO002000000000000000000000000000000000","_","Sustainable human settlements and improved quality of household life","Governance","Good corporate governance and public participation"]
["f3333fef-376f-4d03-b158-f7050b66056d","1003 General Expense - Municipal Manager:Executive and Council","PO002000000000000000000000000000000000","_","Sustainable human settlements and improved quality of household life","Governance","Good corporate governance and public participation"]
["f3333fef-376f-4d03-b158-f7050b66056d","1003 Repairs and Maintenance - Municipal Manager:Executive and Council","PO001002002001005000000000000000000000_00006","_","An efficient, effective and development-oriented public service","Governance","Improve financial viability"]
["f3333fef-376f-4d03-b158-f7050b66056d","1003 Repairs and Maintenance - Municipal Manager:Executive and Council","PO001002002001005000000000000000000000_00006","_","An efficient, effective and development-oriented public service","Governance","Improve financial viability"]
["f3333fef-376f-4d03-b158-f7050b66056d","1003 Repairs and Maintenance - Municipal Manager:Executive and Council","PO003003001000000000000000000000000000_00040","_","Sustainable human settlements and improved quality of household life","Governance","Improve financial viability"]
["f3333fef-376f-4d03-b158-f7050b66056d","Trial Balance Takeon","PO002000000000000000000000000000000000","_","Sustainable human settlements and improved quality of household life","Governance","Improve financial viability"]
["f3a9aaa9-529a-40d1-b981-722b2f743267","3003 Employee Related Cost - Information Technology: CORP","PO002000000000000000000000000000000000","_","Sustainable human settlements and improved quality of household life","Governance","Improve financial viability"]
["f3a9aaa9-529a-40d1-b981-722b2f743267","3003 Employee Related Cost - Information Technology: CORP","PO002000000000000000000000000000000000","_","Sustainable human settlements and improved quality of household life","Governance","Improve financial viability"]
["f3a9aaa9-529a-40d1-b981-722b2f743267","3003 General Expense - Information Technology:Corporate Services","PO002000000000000000000000000000000000","_","Sustainable human settlements and improved quality of household life","Governance","Improve financial viability"]
["f3a9aaa9-529a-40d1-b981-722b2f743267","3003 General Expense - Information Technology:Corporate Services","PO002000000000000000000000000000000000","_","Sustainable human settlements and improved quality of household life","Governance","Improve financial viability"]
["f3a9aaa9-529a-40d1-b981-722b2f743267","3003 Repairs and Maintenance - Information Technology:Corporate Services","PO001001001002006002004000000000000000_00001","_","An efficient, competitive and responsive economic infrastructure network","Governance","Improve financial viability"]
["f3a9aaa9-529a-40d1-b981-722b2f743267","3003 Repairs and Maintenance - Information Technology:Corporate Services","PO001001001002006002004000000000000000_00001","_","An efficient, competitive and responsive economic infrastructure network","Governance","Improve financial viability"]
["f3a9aaa9-529a-40d1-b981-722b2f743267","3003 Repairs and Maintenance - Information Technology:Corporate Services","PO001002002001005000000000000000000000_00010","_","An efficient, effective and development-oriented public service","Governance","Improve financial viability"]
["f3a9aaa9-529a-40d1-b981-722b2f743267","3003 Repairs and Maintenance - Information Technology:Corporate Services","PO001002002001005000000000000000000000_00010","_","An efficient, effective and development-oriented public service","Governance","Improve financial viability"]
["f3a9aaa9-529a-40d1-b981-722b2f743267","6003 General Expense - Building Section:Technical Services","PO002000000000000000000000000000000000","_","Sustainable human settlements and improved quality of household life","Governance","Improve financial viability"]
["f3a9aaa9-529a-40d1-b981-722b2f743267","Trial Balance Takeon","PO002000000000000000000000000000000000","_","Sustainable human settlements and improved quality of household life","Governance","Improve financial viability"]
["0e51e5d3-5805-402b-a5dc-3b94852c29c0","2005 General Expense - Supply Chain Management and Stores:Budget and Treasury","PO001002002001010000000000000000000000_00017","_","An efficient, effective and development-oriented public service","Governance","Improve financial viability"]
["0e51e5d3-5805-402b-a5dc-3b94852c29c0","2006 Employee Related Cost - Asset Management Unit: BTO","PO002000000000000000000000000000000000","_","Sustainable human settlements and improved quality of household life","Governance","Improve financial viability"]
["0e51e5d3-5805-402b-a5dc-3b94852c29c0","2006 General Expense - Asset Management Unit:Budget and Treasury","PO002000000000000000000000000000000000","_","Sustainable human settlements and improved quality of household life","Governance","Improve financial viability"]
["0e51e5d3-5805-402b-a5dc-3b94852c29c0","2006 General Expense - Asset Management Unit:Budget and Treasury","PO002000000000000000000000000000000000","_","Sustainable human settlements and improved quality of household life","Governance","Improve financial viability"]
["0e51e5d3-5805-402b-a5dc-3b94852c29c0","3003 General Expense - Information Technology:Corporate Services","PO002000000000000000000000000000000000","_","Sustainable human settlements and improved quality of household life","Governance","Improve financial viability"]
["0e51e5d3-5805-402b-a5dc-3b94852c29c0","6003 General Expense - Building Section:Technical Services","PO002000000000000000000000000000000000","_","Sustainable human settlements and improved quality of household life","Governance","Improve financial viability"]
["0e51e5d3-5805-402b-a5dc-3b94852c29c0","Trial Balance Takeon","PO002000000000000000000000000000000000","_","Sustainable human settlements and improved quality of household life","Governance","Improve financial viability"]
["0e51e5d3-5805-402b-a5dc-3b94852c29c0","Trial Balance Takeon","PO002000000000000000000000000000000000","_","Sustainable human settlements and improved quality of household life","Governance","Improve financial viability"]
["0f52d9e5-907f-4d9f-934f-57dc012524d6","1002 General Expense - Mayors office:Executive and Council","PO002000000000000000000000000000000000","_","Sustainable human settlements and improved quality of household life","Governance","Good corporate governance and public participation"]
["0f52d9e5-907f-4d9f-934f-57dc012524d6","3001 Employee Related Cost - Director Corporate Service: CORP","PO002000000000000000000000000000000000","_","Sustainable human settlements and improved quality of household life","Governance","Improve financial viability"]
["0f52d9e5-907f-4d9f-934f-57dc012524d6","3001 General Expense - Director Corporate Service:Corporate Services","PO002000000000000000000000000000000000","_","Sustainable human settlements and improved quality of household life","Governance","Good corporate governance and public participation"]
["0f52d9e5-907f-4d9f-934f-57dc012524d6","3001 General Expense - Director Corporate Service:Corporate Services","PO002000000000000000000000000000000000","_","Sustainable human settlements and improved quality of household life","Governance","Good corporate governance and public participation"]
["0f52d9e5-907f-4d9f-934f-57dc012524d6","3002 General Expense - Human Resources:Corporate Services","PO002000000000000000000000000000000000","_","Sustainable human settlements and improved quality of household life","Governance","Attract, develop and retain best human capital"]
["0f52d9e5-907f-4d9f-934f-57dc012524d6","3003 General Expense - Information Technology:Corporate Services","PO002000000000000000000000000000000000","_","Sustainable human settlements and improved quality of household life","Governance","Improve financial viability"]
["0f52d9e5-907f-4d9f-934f-57dc012524d6","3004 Employee Related Cost - Administration: CORP","PO002000000000000000000000000000000000","_","Sustainable human settlements and improved quality of household life","Governance","Improve financial viability"]
["0f52d9e5-907f-4d9f-934f-57dc012524d6","3004 Employee Related Cost - Administration: CORP","PO002000000000000000000000000000000000","_","Sustainable human settlements and improved quality of household life","Governance","Improve financial viability"]
["0f52d9e5-907f-4d9f-934f-57dc012524d6","3004 General Expense - Administration:Corporate Services","PO002000000000000000000000000000000000","_","Sustainable human settlements and improved quality of household life","Governance","Improve financial viability"]
["0f52d9e5-907f-4d9f-934f-57dc012524d6","3004 General Expense - Administration:Corporate Services","PO002000000000000000000000000000000000","_","Sustainable human settlements and improved quality of household life","Governance","Improve financial viability"]
["0f52d9e5-907f-4d9f-934f-57dc012524d6","6003 General Expense - Building Section:Technical Services","PO002000000000000000000000000000000000","_","Sustainable human settlements and improved quality of household life","Governance","Improve financial viability"]
["0f52d9e5-907f-4d9f-934f-57dc012524d6","Trial Balance Takeon","PO002000000000000000000000000000000000","_","Sustainable human settlements and improved quality of household life","Governance","Improve financial viability"]
["0f6032ee-c792-4735-aef9-9bdf01ab5d0c","Repairs and maintenance : Libraries,Community Services","PO001002001002010000000000000000000000_00001","_","An efficient, effective and development-oriented public service","Governance","Provision of sustainable integrated infrastructure and services"]
["0f6032ee-c792-4735-aef9-9bdf01ab5d0c","Repairs and maintenance : Libraries,Community Services","PO001002001002010000000000000000000000_00001","_","An efficient, effective and development-oriented public service","Governance","Provision of sustainable integrated infrastructure and services"]
["15e72a49-cac8-46a3-a850-5352163e5772","1004 AUDIT COMMITTEE ALLOWANCE - Internal Audit and Risk Management","PO003044015000000000000000000000000000_00002","_","Responsive, accountable, effective and efficient local government","Inclusion and access","Improve financial viability"]
["15e72a49-cac8-46a3-a850-5352163e5772","1004 AUDIT COMMITTEE ALLOWANCE - Internal Audit and Risk Management","PO003044016002000000000000000000000000_00003","_","Responsive, accountable, effective and efficient local government","Spatial integration","Improve financial viability"]
["15e72a49-cac8-46a3-a850-5352163e5772","1004 AUDIT COMMITTEE ALLOWANCE - Internal Audit and Risk Management","PO003050001000000000000000000000000000_00001","_","Responsive, accountable, effective and efficient local government","Governance","Improve financial viability"]
["15e72a49-cac8-46a3-a850-5352163e5772","1004 General Expenses - Internal Audit and Risk Management:Executive and Council","PO002000000000000000000000000000000000","_","Sustainable human settlements and improved quality of household life","Governance","Good corporate governance and public participation"]
["15e72a49-cac8-46a3-a850-5352163e5772","1004 General Expenses - Internal Audit and Risk Management:Executive and Council","PO002000000000000000000000000000000000","_","Sustainable human settlements and improved quality of household life","Governance","Good corporate governance and public participation"]
["15e72a49-cac8-46a3-a850-5352163e5772","1004 RISK MANAGEMENT COMMITTEE - Internal Audit and Risk Management","PO003044015000000000000000000000000000_00003","_","Responsive, accountable, effective and efficient local government","Inclusion and access","Improve financial viability"]
["15e72a49-cac8-46a3-a850-5352163e5772","Employee Related Cost - Internal Audit and Risk Mngmnt: Executive and Councillors","PO002000000000000000000000000000000000","_","Sustainable human settlements and improved quality of household life","Governance","Improve financial viability"]
["15e7fc9a-7613-41bd-b0e9-57024945d7d9","6007 Employee Related Cost - Project Management Unit: TECH","PO002000000000000000000000000000000000","_","Sustainable human settlements and improved quality of household life","Governance","Improve financial viability"]
["15e7fc9a-7613-41bd-b0e9-57024945d7d9","6007 General Expense - Project Management Unit:Technical Services","PO002000000000000000000000000000000000","_","Sustainable human settlements and improved quality of household life","Governance","Improve financial viability"]
["15e7fc9a-7613-41bd-b0e9-57024945d7d9","6007 General Expense - Project Management Unit:Technical Services","PO002000000000000000000000000000000000","_","Sustainable human settlements and improved quality of household life","Governance","Improve financial viability"]
["20d7a098-87d4-4ade-a800-fe572974622a","4007 Employee Related Cost - Enviromental Health: COMM","PO002000000000000000000000000000000000","_","Sustainable human settlements and improved quality of household life","Governance","Improve financial viability"]
["20d7a098-87d4-4ade-a800-fe572974622a","4007 General Expense - Enviromental Health:Community Services","PO002000000000000000000000000000000000","_","Sustainable human settlements and improved quality of household life","Governance","Improve financial viability"]
["20d7a098-87d4-4ade-a800-fe572974622a","4007 General Expense - Enviromental Health:Community Services","PO002000000000000000000000000000000000","_","Sustainable human settlements and improved quality of household life","Governance","Improve financial viability"]
["20d7a098-87d4-4ade-a800-fe572974622a","4007 General Expense - Enviromental Health:Community Services","PO003003001000000000000000000000000000_00007","_","Sustainable human settlements and improved quality of household life","Governance","Improve financial viability"]
["20d7a098-87d4-4ade-a800-fe572974622a","4007 Repairs and Maintenance - Enviromental Health:Community Services","PO001002002001010000000000000000000000_00009","_","An efficient, effective and development-oriented public service","Governance","Improve financial viability"]
["20d7a098-87d4-4ade-a800-fe572974622a","4007 Repairs and Maintenance - Enviromental Health:Community Services","PO001002002001010000000000000000000000_00009","_","An efficient, effective and development-oriented public service","Governance","Improve financial viability"]
["20d7a098-87d4-4ade-a800-fe572974622a","Trial Balance Takeon","PO002000000000000000000000000000000000","_","Sustainable human settlements and improved quality of household life","Governance","Improve financial viability"]
["39043a95-c08d-4bfc-bce2-b4e1763b0d24","1005 1010/35_Disaster Management/ Disaster Relief/ Covid-19 - Disaster Management","PO003014002000000000000000000000000000_00001","_","A comprehensive, responsive and sustainable social protection system","Governance","Improve financial viability"]
["39043a95-c08d-4bfc-bce2-b4e1763b0d24","1005 General Expenditure - Disaster Management:Executive and Council","PO002000000000000000000000000000000000","_","Sustainable human settlements and improved quality of household life","Governance","Good corporate governance and public participation"]
["39043a95-c08d-4bfc-bce2-b4e1763b0d24","1005 General Expenditure - Disaster Management:Executive and Council","PO002000000000000000000000000000000000","_","Sustainable human settlements and improved quality of household life","Governance","Good corporate governance and public participation"]
["39043a95-c08d-4bfc-bce2-b4e1763b0d24","1005 General Expenditure - Disaster Management:Executive and Council","PO003003001000000000000000000000000000_00019","_","Sustainable human settlements and improved quality of household life","Governance","Good corporate governance and public participation"]
["39043a95-c08d-4bfc-bce2-b4e1763b0d24","Employee Related Cost - Disaster Management: Executive and Councillors","PO002000000000000000000000000000000000","_","Sustainable human settlements and improved quality of household life","Governance","Improve financial viability"]
["39043a95-c08d-4bfc-bce2-b4e1763b0d24","Trial Balance Takeon","PO002000000000000000000000000000000000","_","Sustainable human settlements and improved quality of household life","Governance","Improve financial viability"]
["47697da2-b67b-4f55-aabb-b4b704dd23c1","3005 General Expense - Legal:Corporate Services","PO002000000000000000000000000000000000","_","Sustainable human settlements and improved quality of household life","Governance","Improve financial viability"]
["67347610-1db2-421f-a89a-f87e772911eb","2001 Employee Related Cost - Chief Financial Officer: BTO","PO002000000000000000000000000000000000","_","Sustainable human settlements and improved quality of household life","Governance"]
["67347610-1db2-421f-a89a-f87e772911eb","2001 General Expense - Chief Financial Officer:Budget and Treasury","PO002000000000000000000000000000000000","_","Sustainable human settlements and improved quality of household life","Governance","Improve financial viability"]
["67347610-1db2-421f-a89a-f87e772911eb","2001 General Expense - Chief Financial Officer:Budget and Treasury","PO002000000000000000000000000000000000","_","Sustainable human settlements and improved quality of household life","Governance","Improve financial viability"]
["67347610-1db2-421f-a89a-f87e772911eb","2001 Repairs and Maintenance - Chief Financial Officer:Budget and Treasury","PO001002002001010000000000000000000000_00007","_","An efficient, effective and development-oriented public service","Governance","Good corporate governance and public participation"]
["67347610-1db2-421f-a89a-f87e772911eb","2001 Repairs and Maintenance - Chief Financial Officer:Budget and Treasury","PO001002002001010000000000000000000000_00007","_","An efficient, effective and development-oriented public service","Governance","Good corporate governance and public participation"]
["67347610-1db2-421f-a89a-f87e772911eb","2002 Employee Related Cost -  Financial Planning and Reporting: BTO","PO002000000000000000000000000000000000","_","Sustainable human settlements and improved quality of household life","Governance","Improve financial viability"]
["67347610-1db2-421f-a89a-f87e772911eb","2002 General Expense - Financial Planning and Reporting:Budget and Treasury","PO002000000000000000000000000000000000","_","Sustainable human settlements and improved quality of household life","Governance","Improve financial viability"]
["67347610-1db2-421f-a89a-f87e772911eb","2002 General Expense - Financial Planning and Reporting:Budget and Treasury","PO002000000000000000000000000000000000","_","Sustainable human settlements and improved quality of household life","Governance","Improve financial viability"]
["67347610-1db2-421f-a89a-f87e772911eb","2003 Employee Related Cost -  Financial Control and Expend Mngmnt: BTO","PO002000000000000000000000000000000000","_","Sustainable human settlements and improved quality of household life","Governance","Improve financial viability"]
["67347610-1db2-421f-a89a-f87e772911eb","2003 General Expense - Financial Control and Expenditure Management:Budget and Treasury","PO002000000000000000000000000000000000","_","Sustainable human settlements and improved quality of household life","Governance","Improve financial viability"]
["67347610-1db2-421f-a89a-f87e772911eb","2003 General Expense - Financial Control and Expenditure Management:Budget and Treasury","PO002000000000000000000000000000000000","_","Sustainable human settlements and improved quality of household life","Governance","Improve financial viability"]
["67347610-1db2-421f-a89a-f87e772911eb","2004 Employee Related Cost -  Revenue and Debt Mngmnt: BTO","PO002000000000000000000000000000000000","_","Sustainable human settlements and improved quality of household life","Governance","Improve financial viability"]
["67347610-1db2-421f-a89a-f87e772911eb","2004 General Expense - Revenue and Debt Management:Budget and Treasury","PO002000000000000000000000000000000000","_","Sustainable human settlements and improved quality of household life","Governance","Improve financial viability"]
["67347610-1db2-421f-a89a-f87e772911eb","2004 General Expense - Revenue and Debt Management:Budget and Treasury","PO002000000000000000000000000000000000","_","Sustainable human settlements and improved quality of household life","Governance","Improve financial viability"]
["67347610-1db2-421f-a89a-f87e772911eb","2004 General Expense - Revenue and Debt Management:Budget and Treasury","PO003003001000000000000000000000000000_00016","_","Sustainable human settlements and improved quality of household life","Governance","Improve financial viability"]
["67347610-1db2-421f-a89a-f87e772911eb","2004 General Expense - Revenue and Debt Management:Budget and Treasury","PO003021000000000000000000000000000000_00003","_","Responsive, accountable, effective and efficient local government","Inclusion and access","Improve financial viability"]
["67347610-1db2-421f-a89a-f87e772911eb","4007 General Expense - Enviromental Health:Community Services","PO002000000000000000000000000000000000","_","Sustainable human settlements and improved quality of household life","Governance","Improve financial viability"]
["67347610-1db2-421f-a89a-f87e772911eb","Employee Related Cost - Internal Audit and Risk Mngmnt: Executive and Councillors","PO002000000000000000000000000000000000","_","Sustainable human settlements and improved quality of household life","Governance","Improve financial viability"]
["67347610-1db2-421f-a89a-f87e772911eb","Trial Balance Takeon","PO002000000000000000000000000000000000","_","Sustainable human settlements and improved quality of household life","Governance","Improve financial viability"]
["67347610-1db2-421f-a89a-f87e772911eb","Trial Balance Takeon","PO002000000000000000000000000000000000","_","Sustainable human settlements and improved quality of household life","Governance","Improve financial viability"]
["6dc327fd-c352-440b-9366-63fce6a71335","3002 Employee Related Cost - Human Resources: CORP","PO002000000000000000000000000000000000","_","Sustainable human settlements and improved quality of household life","Governance","Improve financial viability"]
["6dc327fd-c352-440b-9366-63fce6a71335","3002 Employee Related Cost - Human Resources: CORP","PO002000000000000000000000000000000000","_","Sustainable human settlements and improved quality of household life","Governance","Improve financial viability"]
["6dc327fd-c352-440b-9366-63fce6a71335","3002 General Expense - Human Resources:Corporate Services","PO002000000000000000000000000000000000","_","Sustainable human settlements and improved quality of household life","Governance","Attract, develop and retain best human capital"]
["6dc327fd-c352-440b-9366-63fce6a71335","3002 General Expense - Human Resources:Corporate Services","PO002000000000000000000000000000000000","_","Sustainable human settlements and improved quality of household life","Governance","Attract, develop and retain best human capital"]
["6dc327fd-c352-440b-9366-63fce6a71335","3002 General Expense - Human Resources:Corporate Services","PO003020004000000000000000000000000000_00001","_","Responsive, accountable, effective and efficient local government","Governance","Attract, develop and retain best human capital"]
["6dc327fd-c352-440b-9366-63fce6a71335","3002 General Expense - Human Resources:Corporate Services","PO003032000000000000000000000000000000_00001","_","Responsive, accountable, effective and efficient local government","Inclusion and access","Attract, develop and retain best human capital"]
["6dc327fd-c352-440b-9366-63fce6a71335","3002 STAFF TRAINING -  Human Resources","PO003023004000000000000000000000000000_00001","_","An efficient, effective and development-oriented public service","Spatial integration","Attract, develop and retain best human capital"]
["6dc327fd-c352-440b-9366-63fce6a71335","3003 General Expense - Information Technology:Corporate Services","PO003020002000000000000000000000000000_00002","_","Responsive, accountable, effective and efficient local government","Governance","Improve financial viability"]
["6fa14a15-a164-42cb-a263-a0b007852bc5","3001 Employee Related Cost - Director Corporate Service: CORP","PO002000000000000000000000000000000000","_","Sustainable human settlements and improved quality of household life","Governance","Improve financial viability"]
["6fa14a15-a164-42cb-a263-a0b007852bc5","4001 Employee Related Cost - COMM","PO002000000000000000000000000000000000","_","Sustainable human settlements and improved quality of household life","Governance","Improve financial viability"]
["6fa14a15-a164-42cb-a263-a0b007852bc5","4003 General Expense - Parks:Community Services","PO002000000000000000000000000000000000","_","Sustainable human settlements and improved quality of household life","Governance","Improve financial viability"]
["6fa14a15-a164-42cb-a263-a0b007852bc5","4003 Repairs and Maintenance - Parks:Community Services","PO005002001002001013000000000000000000_00001","_","An efficient, effective and development-oriented public service","Inclusion and access","Provision of sustainable integrated infrastructure and services"]
["6fa14a15-a164-42cb-a263-a0b007852bc5","4003 Repairs and Maintenance - Parks:Community Services","PO005002001009000000000000000000000000_00001","_","An efficient, effective and development-oriented public service","Governance","Provision of sustainable integrated infrastructure and services"]
["6fa14a15-a164-42cb-a263-a0b007852bc5","4005 General Expense - Traffic:Community Services","PO002000000000000000000000000000000000","_","Sustainable human settlements and improved quality of household life","Governance","Improve financial viability"]
["6fa14a15-a164-42cb-a263-a0b007852bc5","Trial Balance Takeon","PO002000000000000000000000000000000000","_","Sustainable human settlements and improved quality of household life","Governance","Improve financial viability"]
["81e26025-8a7e-485a-b96d-814b817bc7e2","4001 General Expense - Director Community Services:Community Services","PO002000000000000000000000000000000000","_","Sustainable human settlements and improved quality of household life","Governance","Improve financial viability"]
["81e26025-8a7e-485a-b96d-814b817bc7e2","4005 Employee Related Cost - Traffic: COMM","PO002000000000000000000000000000000000","_","Sustainable human settlements and improved quality of household life","Governance","Improve financial viability"]
["81e26025-8a7e-485a-b96d-814b817bc7e2","4005 General Expense - Traffic:Community Services","PO002000000000000000000000000000000000","_","Sustainable human settlements and improved quality of household life","Governance","Improve financial viability"]
["81e26025-8a7e-485a-b96d-814b817bc7e2","4005 General Expense - Traffic:Community Services","PO002000000000000000000000000000000000","_","Sustainable human settlements and improved quality of household life","Governance","Improve financial viability"]
["81e26025-8a7e-485a-b96d-814b817bc7e2","4005 General Expense - Traffic:Community Services","PO003003001000000000000000000000000000_00024","_","Sustainable human settlements and improved quality of household life","Governance","Improve financial viability"]
["81e26025-8a7e-485a-b96d-814b817bc7e2","4005 Repairs and Maintenance - Traffic:Community Services","PO001002002001002001001002000000000000_00003","_","An efficient, effective and development-oriented public service","Inclusion and access","Improve financial viability"]
["81e26025-8a7e-485a-b96d-814b817bc7e2","4005 Repairs and Maintenance - Traffic:Community Services","PO001002002001002001001002000000000000_00003","_","An efficient, effective and development-oriented public service","Inclusion and access","Improve financial viability"]
["81e26025-8a7e-485a-b96d-814b817bc7e2","4005 Repairs and Maintenance - Traffic:Community Services","PO001002002001010000000000000000000000_00011","_","An efficient, effective and development-oriented public service","Governance","Improve financial viability"]
["81e26025-8a7e-485a-b96d-814b817bc7e2","4005 Repairs and Maintenance - Traffic:Community Services","PO001002002001010000000000000000000000_00011","_","An efficient, effective and development-oriented public service","Governance","Improve financial viability"]
["81e26025-8a7e-485a-b96d-814b817bc7e2","4006 Employee Related Cost - Licensing: COMM","PO002000000000000000000000000000000000","_","Sustainable human settlements and improved quality of household life","Governance","Improve financial viability"]
["81e26025-8a7e-485a-b96d-814b817bc7e2","4006 General Expense - Licensing:Community Services","PO002000000000000000000000000000000000","_","Sustainable human settlements and improved quality of household life","Governance","Improve financial viability"]
["81e26025-8a7e-485a-b96d-814b817bc7e2","Trial Balance Takeon","PO002000000000000000000000000000000000","_","Sustainable human settlements and improved quality of household life","Governance","Improve financial viability"]
["84c380c3-3b7f-4f6e-b3e1-ca680365dc85","4008 General Expense - Waste Management:Community Services","PO001001001001004001001000000000000000_00001","_","An efficient, competitive and responsive economic infrastructure network","Inclusion and access","Provision of sustainable integrated infrastructure and services"]
["84c380c3-3b7f-4f6e-b3e1-ca680365dc85","4008 General Expense - Waste Management:Community Services","PO001001001001004001001000000000000000_00001","_","An efficient, competitive and responsive economic infrastructure network","Inclusion and access","Provision of sustainable integrated infrastructure and services"]
["84c380c3-3b7f-4f6e-b3e1-ca680365dc85","4008 General Expense - Waste Management:Community Services","PO004002004003000000000000000000000000_00001","_","An efficient, competitive and responsive economic infrastructure network","Growth","Provision of sustainable integrated infrastructure and services"]
["84c380c3-3b7f-4f6e-b3e1-ca680365dc85","6005 General Expense - Waste Water Management: TECH","PO004002004003000000000000000000000000_00002","_","An efficient, competitive and responsive economic infrastructure network","Growth","Improve financial viability"]
["84c380c3-3b7f-4f6e-b3e1-ca680365dc85","Trial Balance Takeon","PO002000000000000000000000000000000000","_","Sustainable human settlements and improved quality of household life","Governance","Improve financial viability"]
["883643f9-8ff9-482c-9c37-1e3cfdbb22ec","5001 General Expense - Director planning and Development:Planning and Development","PO002000000000000000000000000000000000","_","Sustainable human settlements and improved quality of household life","Governance","Improve financial viability"]
["883643f9-8ff9-482c-9c37-1e3cfdbb22ec","5001 General Expense - Director planning and Development:Planning and Development","PO002000000000000000000000000000000000","_","Sustainable human settlements and improved quality of household life","Governance","Improve financial viability"]
["883643f9-8ff9-482c-9c37-1e3cfdbb22ec","5002 Employee Related Cost - Economic Development: P&D","PO002000000000000000000000000000000000","_","Sustainable human settlements and improved quality of household life","Governance","Improve financial viability"]
["883643f9-8ff9-482c-9c37-1e3cfdbb22ec","5002 General Expense - Economic Development:Planning and Development","PO002000000000000000000000000000000000","_","Sustainable human settlements and improved quality of household life","Governance","Promotion of Local economy"]
["883643f9-8ff9-482c-9c37-1e3cfdbb22ec","5002 General Expense - Economic Development:Planning and Development","PO002000000000000000000000000000000000","_","Sustainable human settlements and improved quality of household life","Governance","Promotion of Local economy"]
["883643f9-8ff9-482c-9c37-1e3cfdbb22ec","5003 General Expense - Town Planning:Planning and Development","PO002000000000000000000000000000000000","_","Sustainable human settlements and improved quality of household life","Governance","Sustain the environment"]
["883643f9-8ff9-482c-9c37-1e3cfdbb22ec","5004 Employee Related Cost - Strategic planning and performance Mngmnt: P&D","PO002000000000000000000000000000000000","_","Sustainable human settlements and improved quality of household life","Governance","Improve financial viability"]
["883643f9-8ff9-482c-9c37-1e3cfdbb22ec","5004 General Expense - Strategic planning and performance management:Planning and Development","PO002000000000000000000000000000000000","_","Sustainable human settlements and improved quality of household life","Governance","Good corporate governance and public participation"]
["883643f9-8ff9-482c-9c37-1e3cfdbb22ec","5004 General Expense - Strategic planning and performance management:Planning and Development","PO003044016002000000000000000000000000_00004","_","Responsive, accountable, effective and efficient local government","Spatial integration","Good corporate governance and public participation"]
["883643f9-8ff9-482c-9c37-1e3cfdbb22ec","5004 Plan Development - Strategic planning and performance management","PO003044016002000000000000000000000000_00001","_","Responsive, accountable, effective and efficient local government","Spatial integration","Attract, develop and retain best human capital"]
["883643f9-8ff9-482c-9c37-1e3cfdbb22ec","5004 Plan Development - Strategic planning and performance management","PO003044016002000000000000000000000000_00002","_","Responsive, accountable, effective and efficient local government","Spatial integration","Attract, develop and retain best human capital"]
["883643f9-8ff9-482c-9c37-1e3cfdbb22ec","Trial Balance Takeon","PO002000000000000000000000000000000000","_","Sustainable human settlements and improved quality of household life","Governance","Improve financial viability"]
["89aa6d98-8ca6-4416-8143-f6f22ef86160","2001 Repairs and Maintenance - Chief Financial Officer:Budget and Treasury","PO001002002001010000000000000000000000_00008","_","An efficient, effective and development-oriented public service","Governance","Good corporate governance and public participation"]
["89aa6d98-8ca6-4416-8143-f6f22ef86160","2001 Repairs and Maintenance - Chief Financial Officer:Budget and Treasury","PO001002002001010000000000000000000000_00008","_","An efficient, effective and development-oriented public service","Governance","Good corporate governance and public participation"]
["89aa6d98-8ca6-4416-8143-f6f22ef86160","2003 General Expense - Financial Control and Expenditure Management:Budget and Treasury","PO002000000000000000000000000000000000","_","Sustainable human settlements and improved quality of household life","Governance","Improve financial viability"]
["89aa6d98-8ca6-4416-8143-f6f22ef86160","2005 Employee Related Cost - Supply Chain Mngmnt and Stores: BTO","PO002000000000000000000000000000000000","_","Sustainable human settlements and improved quality of household life","Governance","Improve financial viability"]
["89aa6d98-8ca6-4416-8143-f6f22ef86160","2005 General Expense - Supply Chain Management and Stores:Budget and Treasury","PO001002002001010000000000000000000000_00017","_","An efficient, effective and development-oriented public service","Governance","Improve financial viability"]
["89aa6d98-8ca6-4416-8143-f6f22ef86160","2005 General Expense - Supply Chain Management and Stores:Budget and Treasury","PO001002002001010000000000000000000000_00017","_","An efficient, effective and development-oriented public service","Governance","Improve financial viability"]
["89aa6d98-8ca6-4416-8143-f6f22ef86160","2005 General Expense - Supply Chain Management and Stores:Budget and Treasury","PO002000000000000000000000000000000000","_","Sustainable human settlements and improved quality of household life","Governance","Improve financial viability"]
["89aa6d98-8ca6-4416-8143-f6f22ef86160","2005 General Expense - Supply Chain Management and Stores:Budget and Treasury","PO002000000000000000000000000000000000","_","Sustainable human settlements and improved quality of household life","Governance","Improve financial viability"]
["89aa6d98-8ca6-4416-8143-f6f22ef86160","2005 General Expense - Supply Chain Management and Stores:Budget and Treasury","PO003003001000000000000000000000000000_00014","_","Sustainable human settlements and improved quality of household life","Governance","Improve financial viability"]
["89aa6d98-8ca6-4416-8143-f6f22ef86160","2005 General Expense - Supply Chain Management and Stores:Budget and Treasury","PO003003001000000000000000000000000000_00015","_","Sustainable human settlements and improved quality of household life","Governance","Improve financial viability"]
["89aa6d98-8ca6-4416-8143-f6f22ef86160","2005 General Expense - Supply Chain Management and Stores:Budget and Treasury","PO003003001000000000000000000000000000_00036","_","Sustainable human settlements and improved quality of household life","Governance","Improve financial viability"]
["89aa6d98-8ca6-4416-8143-f6f22ef86160","Trial Balance Takeon","PO002000000000000000000000000000000000","_","Sustainable human settlements and improved quality of household life","Governance","Improve financial viability"]
["92aebb43-91da-45ab-a98d-95be1511fb78","4002 Employee Related Cost - Libraries: COMM","PO002000000000000000000000000000000000","_","Sustainable human settlements and improved quality of household life","Governance","Improve financial viability"]
["92aebb43-91da-45ab-a98d-95be1511fb78","4002 General Expense - Libraries:Community Services","PO002000000000000000000000000000000000","_","Sustainable human settlements and improved quality of household life","Governance","Improve financial viability"]
["92aebb43-91da-45ab-a98d-95be1511fb78","4002 General Expense - Libraries:Community Services","PO002000000000000000000000000000000000","_","Sustainable human settlements and improved quality of household life","Governance","Improve financial viability"]
["92aebb43-91da-45ab-a98d-95be1511fb78","4002 General Expense - Libraries:Community Services","PO003003001000000000000000000000000000_00021","_","Sustainable human settlements and improved quality of household life","Governance","Improve financial viability"]
["92aebb43-91da-45ab-a98d-95be1511fb78","4002 LIBRARY OUTREACH - Libraries:Community Services","PO003007014000000000000000000000000000_00001","_","A comprehensive, responsive and sustainable social protection system","Inclusion and access","Good corporate governance and public participation"]
["92aebb43-91da-45ab-a98d-95be1511fb78","4002 Repairs and Maintenance - Community Facilities","PO001002002001010000000000000000000000_00002","_","An efficient, effective and development-oriented public service","Governance","Improve financial viability"]
["92aebb43-91da-45ab-a98d-95be1511fb78","4002 Repairs and Maintenance - Community Facilities","PO001002002001010000000000000000000000_00002","_","An efficient, effective and development-oriented public service","Governance","Improve financial viability"]
["92aebb43-91da-45ab-a98d-95be1511fb78","Trial Balance Takeon","PO002000000000000000000000000000000000","_","Sustainable human settlements and improved quality of household life","Governance","Improve financial viability"]
["92aebb43-91da-45ab-a98d-95be1511fb78","Trial Balance Takeon","PO002000000000000000000000000000000000","_","Sustainable human settlements and improved quality of household life","Governance","Improve financial viability"]
["a0417e64-ef9b-4d7d-8721-6fd6b304450d","1004 General Expenses - Internal Audit and Risk Management:Executive and Council","PO002000000000000000000000000000000000","_","Sustainable human settlements and improved quality of household life","Governance","Good corporate governance and public participation"]
["a3247f45-2fa8-40df-bdd1-70640148bada","3002 General Expense - Human Resources:Corporate Services","PO002000000000000000000000000000000000","_","Sustainable human settlements and improved quality of household life","Governance","Attract, develop and retain best human capital"]
["ba7a3e30-8c47-498d-a65a-3b5b9b1a77d7","4001 Director Community Services: COMM","PO002000000000000000000000000000000000","_","Sustainable human settlements and improved quality of household life","Governance","Improve financial viability"]
["ba7a3e30-8c47-498d-a65a-3b5b9b1a77d7","4001 Employee Related Cost - COMM","PO002000000000000000000000000000000000","_","Sustainable human settlements and improved quality of household life","Governance","Improve financial viability"]
["ba7a3e30-8c47-498d-a65a-3b5b9b1a77d7","4001 General Expense - Director Community Services:Community Services","PO002000000000000000000000000000000000","_","Sustainable human settlements and improved quality of household life","Governance","Improve financial viability"]
["ba7a3e30-8c47-498d-a65a-3b5b9b1a77d7","4001 General Expense - Director Community Services:Community Services","PO002000000000000000000000000000000000","_","Sustainable human settlements and improved quality of household life","Governance","Improve financial viability"]
["ba7a3e30-8c47-498d-a65a-3b5b9b1a77d7","4001 Repairs and Maintenance - Director Community Services:Community Services","PO001002002001005000000000000000000000_00016","_","An efficient, effective and development-oriented public service","Governance","Improve financial viability"]
["ba7a3e30-8c47-498d-a65a-3b5b9b1a77d7","4001 Repairs and Maintenance - Director Community Services:Community Services","PO001002002001005000000000000000000000_00016","_","An efficient, effective and development-oriented public service","Governance","Improve financial viability"]
["ba7a3e30-8c47-498d-a65a-3b5b9b1a77d7","4004 General Expense - Cemetries:Community Services","PO002000000000000000000000000000000000","_","Sustainable human settlements and improved quality of household life","Governance","Improve financial viability"]
["ba7a3e30-8c47-498d-a65a-3b5b9b1a77d7","4004 General Expense - Cemetries:Community Services","PO002000000000000000000000000000000000","_","Sustainable human settlements and improved quality of household life","Governance","Improve financial viability"]
["ba7a3e30-8c47-498d-a65a-3b5b9b1a77d7","4004 General Expense - Cemetries:Community Services","PO003003001000000000000000000000000000_00008","_","Sustainable human settlements and improved quality of household life","Governance","Improve financial viability"]
["ba7a3e30-8c47-498d-a65a-3b5b9b1a77d7","4004 General Expense - Cemetries:Community Services","PO003003001000000000000000000000000000_00023","_","Sustainable human settlements and improved quality of household life","Governance","Improve financial viability"]
["ba7a3e30-8c47-498d-a65a-3b5b9b1a77d7","4004 General Expense - Cemetries:Community Services","PO003007013000000000000000000000000000_00001","_","A comprehensive, responsive and sustainable social protection system","Inclusion and access","Improve financial viability"]
["ba7a3e30-8c47-498d-a65a-3b5b9b1a77d7","4004 General Expense - Cemetries:Community Services","PO003007013000000000000000000000000000_00002","_","A comprehensive, responsive and sustainable social protection system","Inclusion and access","Improve financial viability"]
["ba7a3e30-8c47-498d-a65a-3b5b9b1a77d7","4004 Repairs and Maintenance - Cemetries:Community Services","PO001002002001002001011001000000000000_00002","_","A comprehensive, responsive and sustainable social protection system","Inclusion and access","Provision of sustainable integrated infrastructure and services"]
["ba7a3e30-8c47-498d-a65a-3b5b9b1a77d7","4004 Repairs and Maintenance - Cemetries:Community Services","PO001002002001002001011001000000000000_00002","_","A comprehensive, responsive and sustainable social protection system","Inclusion and access","Provision of sustainable integrated infrastructure and services"]
["ba7a3e30-8c47-498d-a65a-3b5b9b1a77d7","4004 Repairs and Maintenance - Cemetries:Community Services","PO003003001000000000000000000000000000_00039","_","Sustainable human settlements and improved quality of household life","Governance","Provision of sustainable integrated infrastructure and services"]
["ba7a3e30-8c47-498d-a65a-3b5b9b1a77d7","Trial Balance Takeon","PO002000000000000000000000000000000000","_","Sustainable human settlements and improved quality of household life","Governance","Improve financial viability"]
["be26bea6-58e3-4497-b52c-0bf597208207","6001 Employee Related Cost - Director Technical Service: TECH","PO002000000000000000000000000000000000","_","Sustainable human settlements and improved quality of household life","Governance","Improve financial viability"]
["be26bea6-58e3-4497-b52c-0bf597208207","6001 EPWP EXPENSES - Director Technical Service","PO003016001000000000000000000000000000_00001","_","An efficient, effective and development-oriented public service","Inclusion and access","Promotion of Local economy"]
["be26bea6-58e3-4497-b52c-0bf597208207","6001 General Expense - Director Technical Service:Technical Services","PO002000000000000000000000000000000000","_","Sustainable human settlements and improved quality of household life","Governance","Improve financial viability"]
["be26bea6-58e3-4497-b52c-0bf597208207","6001 General Expense - Director Technical Service:Technical Services","PO002000000000000000000000000000000000","_","Sustainable human settlements and improved quality of household life","Governance","Improve financial viability"]
["be26bea6-58e3-4497-b52c-0bf597208207","6003 Employee Related Cost - Building Section: TECH","PO002000000000000000000000000000000000","_","Sustainable human settlements and improved quality of household life","Governance","Improve financial viability"]
["be26bea6-58e3-4497-b52c-0bf597208207","6003 General Expense - Building Section:Technical Services","PO002000000000000000000000000000000000","_","Sustainable human settlements and improved quality of household life","Governance","Improve financial viability"]
["be26bea6-58e3-4497-b52c-0bf597208207","6003 General Expense - Building Section:Technical Services","PO002000000000000000000000000000000000","_","Sustainable human settlements and improved quality of household life","Governance","Improve financial viability"]
["be26bea6-58e3-4497-b52c-0bf597208207","6003 General Expense - Building Section:Technical Services","PO003003001000000000000000000000000000_00003","_","Sustainable human settlements and improved quality of household life","Governance","Improve financial viability"]
["be26bea6-58e3-4497-b52c-0bf597208207","6003 Repairs and Maintenance - Building Section:Technical Services","PO001001002001002001002000000000000000_00001","_","An efficient, competitive and responsive economic infrastructure network","Inclusion and access","Improve financial viability"]
["be26bea6-58e3-4497-b52c-0bf597208207","6003 Repairs and Maintenance - Building Section:Technical Services","PO001001002001002001002000000000000000_00001","_","An efficient, competitive and responsive economic infrastructure network","Inclusion and access","Improve financial viability"]
["be26bea6-58e3-4497-b52c-0bf597208207","6003 Repairs and Maintenance - Building Section:Technical Services","PO001002002001002001001002000000000000_00001","_","An efficient, effective and development-oriented public service","Inclusion and access","Improve financial viability"]
["be26bea6-58e3-4497-b52c-0bf597208207","6003 Repairs and Maintenance - Building Section:Technical Services","PO001002002001002001001002000000000000_00001","_","An efficient, effective and development-oriented public service","Inclusion and access","Improve financial viability"]
["be26bea6-58e3-4497-b52c-0bf597208207","6003 Repairs and Maintenance - Building Section:Technical Services","PO001002002001005000000000000000000000_00012","_","An efficient, effective and development-oriented public service","Governance","Improve financial viability"]
["be26bea6-58e3-4497-b52c-0bf597208207","6003 Repairs and Maintenance - Building Section:Technical Services","PO001002002001005000000000000000000000_00012","_","An efficient, effective and development-oriented public service","Governance","Improve financial viability"]
["be26bea6-58e3-4497-b52c-0bf597208207","6003 Repairs and Maintenance - Building Section:Technical Services","PO001002002001010000000000000000000000_00016","_","An efficient, effective and development-oriented public service","Governance","Improve financial viability"]
["be26bea6-58e3-4497-b52c-0bf597208207","6003 Repairs and Maintenance - Building Section:Technical Services","PO001002002001010000000000000000000000_00016","_","An efficient, effective and development-oriented public service","Governance","Improve financial viability"]
["be26bea6-58e3-4497-b52c-0bf597208207","6003 Repairs and Maintenance - Building Section:Technical Services","PO005002001003001001000000000000000000_00001","_","An efficient, effective and development-oriented public service","Inclusion and access","Improve financial viability"]
["be26bea6-58e3-4497-b52c-0bf597208207","6006 General Expense - Roads and storm water services:Technical Services","PO002000000000000000000000000000000000","_","Sustainable human settlements and improved quality of household life","Governance","Improve financial viability"]
["be26bea6-58e3-4497-b52c-0bf597208207","6006 General Expense - Roads and storm water services:Technical Services","PO002000000000000000000000000000000000","_","Sustainable human settlements and improved quality of household life","Governance","Improve financial viability"]
["be26bea6-58e3-4497-b52c-0bf597208207","6006 General Expense - Roads and storm water services:Technical Services","PO003003001000000000000000000000000000_00002","_","Sustainable human settlements and improved quality of household life","Governance","Improve financial viability"]
["be26bea6-58e3-4497-b52c-0bf597208207","6006 General Expense - Roads and storm water services:Technical Services","PO003003001000000000000000000000000000_00030","_","Sustainable human settlements and improved quality of household life","Governance","Improve financial viability"]
["be26bea6-58e3-4497-b52c-0bf597208207","6006 Repairs and Maintenance - Roads and storm water services:Technical Services","PO001001002001002001001000000000000000_00002","_","An efficient, competitive and responsive economic infrastructure network","Inclusion and access","Improve financial viability"]
["be26bea6-58e3-4497-b52c-0bf597208207","6006 Repairs and Maintenance - Roads and storm water services:Technical Services","PO001001002001002001001000000000000000_00002","_","An efficient, competitive and responsive economic infrastructure network","Inclusion and access","Improve financial viability"]
["be26bea6-58e3-4497-b52c-0bf597208207","6006 Repairs and Maintenance - Roads and storm water services:Technical Services","PO001002002001005000000000000000000000_00013","_","An efficient, effective and development-oriented public service","Governance","Improve financial viability"]
["be26bea6-58e3-4497-b52c-0bf597208207","6006 Repairs and Maintenance - Roads and storm water services:Technical Services","PO001002002001005000000000000000000000_00013","_","An efficient, effective and development-oriented public service","Governance","Improve financial viability"]
["be26bea6-58e3-4497-b52c-0bf597208207","6006 Repairs and Maintenance - Roads and storm water services:Technical Services","PO001002002001010000000000000000000000_00015","_","An efficient, effective and development-oriented public service","Governance","Improve financial viability"]
["be26bea6-58e3-4497-b52c-0bf597208207","6006 Repairs and Maintenance - Roads and storm water services:Technical Services","PO001002002001010000000000000000000000_00015","_","An efficient, effective and development-oriented public service","Governance","Improve financial viability"]
["be26bea6-58e3-4497-b52c-0bf597208207","6007 General Expense - Project Management Unit:Technical Services","PO002000000000000000000000000000000000","_","Sustainable human settlements and improved quality of household life","Governance","Improve financial viability"]
["be26bea6-58e3-4497-b52c-0bf597208207","6008 Employee Related Cost - Mechanical Workshop: TECH","PO002000000000000000000000000000000000","_","Sustainable human settlements and improved quality of household life","Governance","Improve financial viability"]
["be26bea6-58e3-4497-b52c-0bf597208207","6008 General Expense - Mechanical Workshop:Technical Services","PO002000000000000000000000000000000000","_","Sustainable human settlements and improved quality of household life","Governance","Improve financial viability"]
["be26bea6-58e3-4497-b52c-0bf597208207","6008 General Expense - Mechanical Workshop:Technical Services","PO002000000000000000000000000000000000","_","Sustainable human settlements and improved quality of household life","Governance","Improve financial viability"]
["be26bea6-58e3-4497-b52c-0bf597208207","6008 General Expense - Mechanical Workshop:Technical Services","PO003003001000000000000000000000000000_00001","_","Sustainable human settlements and improved quality of household life","Governance","Improve financial viability"]
["be26bea6-58e3-4497-b52c-0bf597208207","6008 General Expense - Mechanical Workshop:Technical Services","PO003003001000000000000000000000000000_00032","_","Sustainable human settlements and improved quality of household life","Governance","Improve financial viability"]
["be26bea6-58e3-4497-b52c-0bf597208207","6008 Repairs and Maintenance - Mechanical Workshop:Technical Services","PO001002002001003001001002000000000000_00001","_","An efficient, effective and development-oriented public service","Governance","Improve financial viability"]
["be26bea6-58e3-4497-b52c-0bf597208207","6008 Repairs and Maintenance - Mechanical Workshop:Technical Services","PO001002002001003001001002000000000000_00001","_","An efficient, effective and development-oriented public service","Governance","Improve financial viability"]
["be26bea6-58e3-4497-b52c-0bf597208207","6008 Repairs and Maintenance - Mechanical Workshop:Technical Services","PO001002002001005000000000000000000000_00014","_","An efficient, effective and development-oriented public service","Governance","Improve financial viability"]
["be26bea6-58e3-4497-b52c-0bf597208207","6008 Repairs and Maintenance - Mechanical Workshop:Technical Services","PO001002002001005000000000000000000000_00014","_","An efficient, effective and development-oriented public service","Governance","Improve financial viability"]
["be26bea6-58e3-4497-b52c-0bf597208207","6008 Repairs and Maintenance - Mechanical Workshop:Technical Services","PO001002002001010000000000000000000000_00014","_","An efficient, effective and development-oriented public service","Governance","Improve financial viability"]
["be26bea6-58e3-4497-b52c-0bf597208207","6008 Repairs and Maintenance - Mechanical Workshop:Technical Services","PO001002002001010000000000000000000000_00014","_","An efficient, effective and development-oriented public service","Governance","Improve financial viability"]
["be26bea6-58e3-4497-b52c-0bf597208207","Trial Balance Takeon","PO002000000000000000000000000000000000","_","Sustainable human settlements and improved quality of household life","Governance","Improve financial viability"]
["be26bea6-58e3-4497-b52c-0bf597208207","Trial Balance Takeon","PO002000000000000000000000000000000000","_","Sustainable human settlements and improved quality of household life","Governance","Improve financial viability"]
["c57d4368-34c4-4b96-8470-2264a2fa849c","6003 General Expense - Building Section:Technical Services","PO002000000000000000000000000000000000","_","Sustainable human settlements and improved quality of household life","Governance","Improve financial viability"]
["c746317f-626c-4092-b71c-e7194f3d8b8a","3003 General Expense - Information Technology:Corporate Services","PO002000000000000000000000000000000000","_","Sustainable human settlements and improved quality of household life","Governance","Improve financial viability"]
["c746317f-626c-4092-b71c-e7194f3d8b8a","4003 Employee Related Cost - Parks: COMM","PO002000000000000000000000000000000000","_","Sustainable human settlements and improved quality of household life","Governance","Improve financial viability"]
["c746317f-626c-4092-b71c-e7194f3d8b8a","4003 General Expense - Parks:Community Services","PO002000000000000000000000000000000000","_","Sustainable human settlements and improved quality of household life","Governance","Improve financial viability"]
["c746317f-626c-4092-b71c-e7194f3d8b8a","4003 General Expense - Parks:Community Services","PO002000000000000000000000000000000000","_","Sustainable human settlements and improved quality of household life","Governance","Improve financial viability"]
["c746317f-626c-4092-b71c-e7194f3d8b8a","4003 General Expense - Parks:Community Services","PO003003001000000000000000000000000000_00005","_","Sustainable human settlements and improved quality of household life","Governance","Improve financial viability"]
["c746317f-626c-4092-b71c-e7194f3d8b8a","4003 General Expense - Parks:Community Services","PO003003001000000000000000000000000000_00022","_","Sustainable human settlements and improved quality of household life","Governance","Improve financial viability"]
["c746317f-626c-4092-b71c-e7194f3d8b8a","4003 Repairs and Maintenance - Parks:Community Services","PO001002002001002001001002000000000000_00002","_","An efficient, effective and development-oriented public service","Inclusion and access","Provision of sustainable integrated infrastructure and services"]
["c746317f-626c-4092-b71c-e7194f3d8b8a","4003 Repairs and Maintenance - Parks:Community Services","PO001002002001002001001002000000000000_00002","_","An efficient, effective and development-oriented public service","Inclusion and access","Provision of sustainable integrated infrastructure and services"]
["c746317f-626c-4092-b71c-e7194f3d8b8a","4003 Repairs and Maintenance - Parks:Community Services","PO001002002001002001011001000000000000_00001","_","A comprehensive, responsive and sustainable social protection system","Inclusion and access","Provision of sustainable integrated infrastructure and services"]
["c746317f-626c-4092-b71c-e7194f3d8b8a","4003 Repairs and Maintenance - Parks:Community Services","PO001002002001002001011001000000000000_00001","_","A comprehensive, responsive and sustainable social protection system","Inclusion and access","Provision of sustainable integrated infrastructure and services"]
["c746317f-626c-4092-b71c-e7194f3d8b8a","4003 Repairs and Maintenance - Parks:Community Services","PO001002002001010000000000000000000000_00012","_","An efficient, effective and development-oriented public service","Governance","Provision of sustainable integrated infrastructure and services"]
["c746317f-626c-4092-b71c-e7194f3d8b8a","4003 Repairs and Maintenance - Parks:Community Services","PO001002002001010000000000000000000000_00012","_","An efficient, effective and development-oriented public service","Governance","Provision of sustainable integrated infrastructure and services"]
["c746317f-626c-4092-b71c-e7194f3d8b8a","4003 Repairs and Maintenance - Parks:Community Services","PO003015011000000000000000000000000000_00001","_","Protect and enhance our environmental assets and natural resources","Spatial integration","Provision of sustainable integrated infrastructure and services"]
["d001b930-0f88-4eb0-bcde-e8736dbf200e","3003 General Expense - Information Technology:Corporate Services","PO002000000000000000000000000000000000","_","Sustainable human settlements and improved quality of household life","Governance","Improve financial viability"]
["d001b930-0f88-4eb0-bcde-e8736dbf200e","3005 Employee Related Cost - Legal: CORP","PO002000000000000000000000000000000000","_","Sustainable human settlements and improved quality of household life","Governance","Improve financial viability"]
["d001b930-0f88-4eb0-bcde-e8736dbf200e","3005 General Expense - Legal:Corporate Services","PO002000000000000000000000000000000000","_","Sustainable human settlements and improved quality of household life","Governance","Improve financial viability"]
["d001b930-0f88-4eb0-bcde-e8736dbf200e","3005 General Expense - Legal:Corporate Services","PO002000000000000000000000000000000000","_","Sustainable human settlements and improved quality of household life","Governance","Improve financial viability"]
["d001b930-0f88-4eb0-bcde-e8736dbf200e","Trial Balance Takeon","PO002000000000000000000000000000000000","_","Sustainable human settlements and improved quality of household life","Governance","Improve financial viability"]
["d0a8c200-23d4-4309-8ea5-97922584a36d","6002 Employee Related Cost - Electrical Services: TECH","PO002000000000000000000000000000000000","_","Sustainable human settlements and improved quality of household life","Governance","Improve financial viability"]
["d0a8c200-23d4-4309-8ea5-97922584a36d","6002 General Expense - Electrical Services:Technical Services","PO002000000000000000000000000000000000","_","Sustainable human settlements and improved quality of household life","Governance","Provision of sustainable integrated infrastructure and services"]
["d0a8c200-23d4-4309-8ea5-97922584a36d","6002 General Expense - Electrical Services:Technical Services","PO002000000000000000000000000000000000","_","Sustainable human settlements and improved quality of household life","Governance","Provision of sustainable integrated infrastructure and services"]
["d0a8c200-23d4-4309-8ea5-97922584a36d","6002 General Expense - Electrical Services:Technical Services","PO003003001000000000000000000000000000_00011","_","Sustainable human settlements and improved quality of household life","Governance","Provision of sustainable integrated infrastructure and services"]
["d0a8c200-23d4-4309-8ea5-97922584a36d","6002 General Expense - Electrical Services:Technical Services","PO003003001000000000000000000000000000_00028","_","Sustainable human settlements and improved quality of household life","Governance","Provision of sustainable integrated infrastructure and services"]
["d0a8c200-23d4-4309-8ea5-97922584a36d","6002 Repairs and Maintenance - Electrical Services:Technical Services","PO001001002001001005004000000000000000_00004","_","An efficient, competitive and responsive economic infrastructure network","Inclusion and access","Provision of sustainable integrated infrastructure and services"]
["d0a8c200-23d4-4309-8ea5-97922584a36d","6002 Repairs and Maintenance - Electrical Services:Technical Services","PO001001002001001005004000000000000000_00004","_","An efficient, competitive and responsive economic infrastructure network","Inclusion and access","Provision of sustainable integrated infrastructure and services"]
["d0a8c200-23d4-4309-8ea5-97922584a36d","6002 Repairs and Maintenance - Electrical Services:Technical Services","PO001002002001005000000000000000000000_00011","_","An efficient, effective and development-oriented public service","Governance","Provision of sustainable integrated infrastructure and services"]
["d0a8c200-23d4-4309-8ea5-97922584a36d","6002 Repairs and Maintenance - Electrical Services:Technical Services","PO001002002001005000000000000000000000_00011","_","An efficient, effective and development-oriented public service","Governance","Provision of sustainable integrated infrastructure and services"]
["d0a8c200-23d4-4309-8ea5-97922584a36d","6002 Repairs and Maintenance - Electrical Services:Technical Services","PO001002002001010000000000000000000000_00004","_","An efficient, effective and development-oriented public service","Governance","Provision of sustainable integrated infrastructure and services"]
["d0a8c200-23d4-4309-8ea5-97922584a36d","6002 Repairs and Maintenance - Electrical Services:Technical Services","PO001002002001010000000000000000000000_00004","_","An efficient, effective and development-oriented public service","Governance","Provision of sustainable integrated infrastructure and services"]
["d0a8c200-23d4-4309-8ea5-97922584a36d","ELECTRIFICATION: UPGRADING OF 8B SUBSTATION (WARD 11 &12)","PO001001002001001005002000000000000000_00001","_","An efficient, competitive and responsive economic infrastructure network","Inclusion and access","Provision of sustainable integrated infrastructure and services"]
["d0a8c200-23d4-4309-8ea5-97922584a36d","ELECTRIFICATION: UPGRADING OF 8B SUBSTATION (WARD 11 &12)","PO001001002001001005002000000000000000_00001","_","An efficient, competitive and responsive economic infrastructure network","Inclusion and access","Provision of sustainable integrated infrastructure and services"]
["d0a8c200-23d4-4309-8ea5-97922584a36d","ELECTRIFICATION: UPGRADING OF 8B SUBSTATION (WARD 11 &12)","PO001001002001001005002000000000000000_00001","_","An efficient, competitive and responsive economic infrastructure network","Inclusion and access","Provision of sustainable integrated infrastructure and services"]
["d0a8c200-23d4-4309-8ea5-97922584a36d","ELECTRIFICATION: UPGRADING OF 8B SUBSTATION (WARD 11 &12)","PO001001002001001005002000000000000000_00001","_","An efficient, competitive and responsive economic infrastructure network","Inclusion and access","Provision of sustainable integrated infrastructure and services"]
["d0a8c200-23d4-4309-8ea5-97922584a36d","EXTENSION 1: UPGRADING OF SINGLE PHASE NETWORK PHASE 4 (WARD 11  & 12)","PO001001002001001007002000000000000000_00001","_","An efficient, competitive and responsive economic infrastructure network","Inclusion and access"]
["d0a8c200-23d4-4309-8ea5-97922584a36d","EXTENSION 1: UPGRADING OF SINGLE PHASE NETWORK PHASE 4 (WARD 11  & 12)","PO001001002001001007002000000000000000_00001","_","An efficient, competitive and responsive economic infrastructure network","Inclusion and access"]
["d0a8c200-23d4-4309-8ea5-97922584a36d","EXTENSION 1: UPGRADING OF SINGLE PHASE NETWORK PHASE 4 (WARD 11  & 12)","PO001001002001001007002000000000000000_00001","_","An efficient, competitive and responsive economic infrastructure network","Inclusion and access"]
["d0a8c200-23d4-4309-8ea5-97922584a36d","EXTENSION 1: UPGRADING OF SINGLE PHASE NETWORK PHASE 4 (WARD 11  & 12)","PO001001002001001007002000000000000000_00001","_","An efficient, competitive and responsive economic infrastructure network","Inclusion and access"]
["d0a8c200-23d4-4309-8ea5-97922584a36d","Trial Balance Takeon","PO002000000000000000000000000000000000","_","Sustainable human settlements and improved quality of household life","Governance","Improve financial viability"]
["d0a8c200-23d4-4309-8ea5-97922584a36d","Trial Balance Takeon","PO002000000000000000000000000000000000","_","Sustainable human settlements and improved quality of household life","Governance","Improve financial viability"]
["d0a8c200-23d4-4309-8ea5-97922584a36d","UPGRADING OF OVERHEAD LINE FROM EXT 7 (8B SUBSTATION) WARD 11 & 12","PO004001002001007000000000000000000000_00001","_","An efficient, competitive and responsive economic infrastructure network","Inclusion and access"]
["d0a8c200-23d4-4309-8ea5-97922584a36d","UPGRADING OF OVERHEAD LINE FROM EXT 7 (8B SUBSTATION) WARD 11 & 12","PO004001002001007000000000000000000000_00001","_","An efficient, competitive and responsive economic infrastructure network","Inclusion and access"]
["d0a8c200-23d4-4309-8ea5-97922584a36d","UPGRADING OF WILDEVEY SUB (WARD 11 & 12)","PO001002002002003001007006000000000000_00001","_","An efficient, effective and development-oriented public service","Governance","Provision of sustainable integrated infrastructure and services"]
["d0a8c200-23d4-4309-8ea5-97922584a36d","UPGRADING OF WILDEVEY SUB (WARD 11 & 12)","PO001002002002003001007006000000000000_00001","_","An efficient, effective and development-oriented public service","Governance","Provision of sustainable integrated infrastructure and services"]
["d0a8c200-23d4-4309-8ea5-97922584a36d","UPGRADING OF WILDEVEY SUB (WARD 11 & 12)","PO001002002002003001007006000000000000_00001","_","An efficient, effective and development-oriented public service","Governance","Provision of sustainable integrated infrastructure and services"]
["d0a8c200-23d4-4309-8ea5-97922584a36d","UPGRADING OF WILDEVEY SUB (WARD 11 & 12)","PO001002002002003001007006000000000000_00001","_","An efficient, effective and development-oriented public service","Governance","Provision of sustainable integrated infrastructure and services"]
["d322a6d8-8a77-4f3e-b409-e49df0b85989","1001 Employee Related cost - Municipal Council: Executive and Council","PO002000000000000000000000000000000000","_","Sustainable human settlements and improved quality of household life","Governance","Improve financial viability"]
["d322a6d8-8a77-4f3e-b409-e49df0b85989","1001 General Expense - Municipal Council:Executive and Council","PO002000000000000000000000000000000000","_","Sustainable human settlements and improved quality of household life","Governance","Good corporate governance and public participation"]
["d322a6d8-8a77-4f3e-b409-e49df0b85989","1001 General Expense - Municipal Council:Executive and Council","PO002000000000000000000000000000000000","_","Sustainable human settlements and improved quality of household life","Governance","Good corporate governance and public participation"]
["d322a6d8-8a77-4f3e-b409-e49df0b85989","1001 MPAC STRATEGIC SESSION PLANNING","PO003044016002000000000000000000000000_00005","_","Responsive, accountable, effective and efficient local government","Spatial integration","Good corporate governance and public participation"]
["d322a6d8-8a77-4f3e-b409-e49df0b85989","1001 MPAC STRATEGIC SESSION PLANNING","PO003044016002000000000000000000000000_00006","_","Responsive, accountable, effective and efficient local government","Spatial integration","Good corporate governance and public participation"]
["d322a6d8-8a77-4f3e-b409-e49df0b85989","1001 MPAC STRATEGIC SESSION PLANNING","PO003044016002000000000000000000000000_00007","_","Responsive, accountable, effective and efficient local government","Spatial integration","Good corporate governance and public participation"]
["d322a6d8-8a77-4f3e-b409-e49df0b85989","1001 MPAC STRATEGIC SESSION PLANNING","PO003044016002000000000000000000000000_00008","_","Responsive, accountable, effective and efficient local government","Spatial integration","Good corporate governance and public participation"]
["d322a6d8-8a77-4f3e-b409-e49df0b85989","1001 Repairs and Maintenance - Municipal Council:Executive and Council","PO001002002001005000000000000000000000_00005","_","An efficient, effective and development-oriented public service","Governance","Improve financial viability"]
["d322a6d8-8a77-4f3e-b409-e49df0b85989","1001 Repairs and Maintenance - Municipal Council:Executive and Council","PO001002002001005000000000000000000000_00005","_","An efficient, effective and development-oriented public service","Governance","Improve financial viability"]
["d322a6d8-8a77-4f3e-b409-e49df0b85989","1001 Repairs and Maintenance - Municipal Council:Executive and Council","PO001002002001010000000000000000000000_00005","_","An efficient, effective and development-oriented public service","Governance","Improve financial viability"]
["d322a6d8-8a77-4f3e-b409-e49df0b85989","1001 Repairs and Maintenance - Municipal Council:Executive and Council","PO001002002001010000000000000000000000_00005","_","An efficient, effective and development-oriented public service","Governance","Improve financial viability"]
["d322a6d8-8a77-4f3e-b409-e49df0b85989","1002 16 DAYS ACTIVISM EXPENSES-MAYORS OFFICE","PO003007016000000000000000000000000000_00001","_","A comprehensive, responsive and sustainable social protection system","Inclusion and access","Improve financial viability"]
["d322a6d8-8a77-4f3e-b409-e49df0b85989","1002 ARBOR DAY EVENTS EXPENSES - MAYORS OFFICE:EXECUTIVE and COUNCIL","PO003005001000000000000000000000000000_00001","_","Protect and enhance our environmental assets and natural resources","Inclusion and access","Good corporate governance and public participation"]
["d322a6d8-8a77-4f3e-b409-e49df0b85989","1002 BPM CHILDRENS DAY-MAYORS OFFICE","PO003007001000000000000000000000000000_00001","_","A comprehensive, responsive and sustainable social protection system","Inclusion and access","Improve financial viability"]
["d322a6d8-8a77-4f3e-b409-e49df0b85989","1002 Employee Related Cost - Mayors office: Executive and Councillors","PO002000000000000000000000000000000000","_","Sustainable human settlements and improved quality of household life","Governance","Improve financial viability"]
["d322a6d8-8a77-4f3e-b409-e49df0b85989","1002 General Expense - Mayors office:Executive and Council","PO002000000000000000000000000000000000","_","Sustainable human settlements and improved quality of household life","Governance","Good corporate governance and public participation"]
["d322a6d8-8a77-4f3e-b409-e49df0b85989","1002 General Expense - Mayors office:Executive and Council","PO002000000000000000000000000000000000","_","Sustainable human settlements and improved quality of household life","Governance","Good corporate governance and public participation"]
["d322a6d8-8a77-4f3e-b409-e49df0b85989","1002 General Expense - Mayors office:Executive and Council","PO003007002000000000000000000000000000_00001","_","A comprehensive, responsive and sustainable social protection system","Inclusion and access","Good corporate governance and public participation"]
["d322a6d8-8a77-4f3e-b409-e49df0b85989","1002 General Expense - Mayors office:Executive and Council","PO003007002000000000000000000000000000_00002","_","A comprehensive, responsive and sustainable social protection system","Inclusion and access","Good corporate governance and public participation"]
["d322a6d8-8a77-4f3e-b409-e49df0b85989","1002 HIV AND AIDS EVENTS EXPENSES - MAJOR'S OFFICE","PO003002002001000000000000000000000000_00001","_","A long and healthy life for all South Africans","Inclusion and access","Good corporate governance and public participation"]
["d322a6d8-8a77-4f3e-b409-e49df0b85989","1002 HIV AND AIDS EVENTS EXPENSES - MAJOR'S OFFICE","PO003002002001000000000000000000000000_00002","_","A long and healthy life for all South Africans","Inclusion and access","Good corporate governance and public participation"]
["d322a6d8-8a77-4f3e-b409-e49df0b85989","1002 HIV AND AIDS EVENTS EXPENSES - MAJOR'S OFFICE","PO003002002001000000000000000000000000_00003","_","A long and healthy life for all South Africans","Inclusion and access","Good corporate governance and public participation"]
["d322a6d8-8a77-4f3e-b409-e49df0b85989","1002 HIV AND AIDS EVENTS EXPENSES - MAJOR'S OFFICE","PO003002002001000000000000000000000000_00005","_","A long and healthy life for all South Africans","Inclusion and access","Good corporate governance and public participation"]
["d322a6d8-8a77-4f3e-b409-e49df0b85989","1002 HIV AND AIDS EVENTS EXPENSES - MAJOR'S OFFICE","PO003002002001000000000000000000000000_00006","_","A long and healthy life for all South Africans","Inclusion and access","Good corporate governance and public participation"]
["d322a6d8-8a77-4f3e-b409-e49df0b85989","1002 HIV AND AIDS EVENTS EXPENSES - MAJOR'S OFFICE","PO003002002001000000000000000000000000_00007","_","A long and healthy life for all South Africans","Inclusion and access","Good corporate governance and public participation"]
["d322a6d8-8a77-4f3e-b409-e49df0b85989","1002 HIV AND AIDS EVENTS EXPENSES - MAJOR'S OFFICE","PO003002002001000000000000000000000000_00008","_","A long and healthy life for all South Africans","Inclusion and access","Good corporate governance and public participation"]
["d322a6d8-8a77-4f3e-b409-e49df0b85989","1002 MAYORAL FUNCTIONS-MAYORS OFFICE","PO003006004000000000000000000000000000_00001","_","Sustainable human settlements and improved quality of household life","Inclusion and access","Improve financial viability"]
["d322a6d8-8a77-4f3e-b409-e49df0b85989","1002 Remuneration of Councillors - Mayors office:Executive and Council","PO002000000000000000000000000000000000","_","Sustainable human settlements and improved quality of household life","Governance","Improve financial viability"]
["d322a6d8-8a77-4f3e-b409-e49df0b85989","1002 SPORTS EVENTS EXPENDITURE-MAYORS OFFICE","PO003043002000000000000000000000000000_00001","_","An efficient, effective and development-oriented public service","Inclusion and access","Improve financial viability"]
["d322a6d8-8a77-4f3e-b409-e49df0b85989","1002 SPORTS EVENTS EXPENDITURE-MAYORS OFFICE","PO003043002000000000000000000000000000_00003","_","An efficient, effective and development-oriented public service","Inclusion and access","Improve financial viability"]
["d322a6d8-8a77-4f3e-b409-e49df0b85989","1002 SPORTS EVENTS EXPENDITURE-MAYORS OFFICE","PO003043002000000000000000000000000000_00004","_","An efficient, effective and development-oriented public service","Inclusion and access","Improve financial viability"]
["d322a6d8-8a77-4f3e-b409-e49df0b85989","1002 SPORTS EVENTS EXPENDITURE-MAYORS OFFICE","PO003043002000000000000000000000000000_00005","_","An efficient, effective and development-oriented public service","Inclusion and access","Improve financial viability"]
["d322a6d8-8a77-4f3e-b409-e49df0b85989","1002 SPORTS EVENTS EXPENDITURE-MAYORS OFFICE","PO003043002000000000000000000000000000_00006","_","An efficient, effective and development-oriented public service","Inclusion and access","Improve financial viability"]
["d322a6d8-8a77-4f3e-b409-e49df0b85989","1002 SPORTS EVENTS EXPENDITURE-MAYORS OFFICE","PO003043002000000000000000000000000000_00007","_","An efficient, effective and development-oriented public service","Inclusion and access","Improve financial viability"]
["d322a6d8-8a77-4f3e-b409-e49df0b85989","1002 SPORTS EVENTS EXPENDITURE-MAYORS OFFICE","PO003043002000000000000000000000000000_00008","_","An efficient, effective and development-oriented public service","Inclusion and access","Improve financial viability"]
["d322a6d8-8a77-4f3e-b409-e49df0b85989","1002 SPORTS EVENTS EXPENDITURE-MAYORS OFFICE","PO003043002000000000000000000000000000_00009","_","An efficient, effective and development-oriented public service","Inclusion and access","Improve financial viability"]
["d322a6d8-8a77-4f3e-b409-e49df0b85989","1002 WARD COMMITTEE CONFERENCE - Mayors office","PO003048001000000000000000000000000000_00001","_","Responsive, accountable, effective and efficient local government","Inclusion and access","Improve financial viability"]
["d322a6d8-8a77-4f3e-b409-e49df0b85989","1002 WARD COMMITTEE CONFERENCE - Mayors office","PO003048001000000000000000000000000000_00004","_","Responsive, accountable, effective and efficient local government","Inclusion and access","Improve financial viability"]
["d322a6d8-8a77-4f3e-b409-e49df0b85989","1002 WARD COMMITTEE CONFERENCE - Mayors office","PO003048001000000000000000000000000000_00005","_","Responsive, accountable, effective and efficient local government","Inclusion and access","Improve financial viability"]
["d322a6d8-8a77-4f3e-b409-e49df0b85989","1002 WOMENS MONTH EVENT EXPENSES-MAYORS OFFICE","PO003007011000000000000000000000000000_00002","_","A comprehensive, responsive and sustainable social protection system","Inclusion and access","Improve financial viability"]
["d322a6d8-8a77-4f3e-b409-e49df0b85989","1002 YOUTH EVENTS EXPENSES-MAYORS OFFICE","PO003007017002000000000000000000000000_00001","_","A comprehensive, responsive and sustainable social protection system","Inclusion and access","Improve financial viability"]
["d322a6d8-8a77-4f3e-b409-e49df0b85989","1002:  YOUTH ,GENDER,DISABILITY DAY & ACTIVITIES","PO003007004000000000000000000000000000_00001","_","A comprehensive, responsive and sustainable social protection system","Inclusion and access","Good corporate governance and public participation"]
["d322a6d8-8a77-4f3e-b409-e49df0b85989","1002:  YOUTH ,GENDER,DISABILITY DAY & ACTIVITIES","PO003007007000000000000000000000000000_00001","_","A comprehensive, responsive and sustainable social protection system","Inclusion and access","Good corporate governance and public participation"]
["d322a6d8-8a77-4f3e-b409-e49df0b85989","Trial Balance Takeon","PO002000000000000000000000000000000000","_","Sustainable human settlements and improved quality of household life","Governance","Improve financial viability"]
["d322a6d8-8a77-4f3e-b409-e49df0b85989","Ward Committee Remuneration of Councillors","PO003048002000000000000000000000000000_00002","_","Responsive, accountable, effective and efficient local government","Inclusion and access","Good corporate governance and public participation"]
["db604ef6-5789-48aa-9471-0416d939e152","Trial Balance Takeon","PO002000000000000000000000000000000000","_","Sustainable human settlements and improved quality of household life","Governance","Improve financial viability"]
["e38be026-aa91-4710-9bdc-3b0f3755cc1a","1002 TOURISM MONTH EXPENSES-MAYORS OFFICE","PO003046005000000000000000000000000000_00001","_","An efficient, effective and development-oriented public service","Growth","Improve financial viability"]
["e38be026-aa91-4710-9bdc-3b0f3755cc1a","1002 TOURISM MONTH EXPENSES-MAYORS OFFICE","PO003046005000000000000000000000000000_00002","_","An efficient, effective and development-oriented public service","Growth","Improve financial viability"]
["e38be026-aa91-4710-9bdc-3b0f3755cc1a","1002 TOURISM MONTH EXPENSES-MAYORS OFFICE","PO003046005000000000000000000000000000_00002","_","An efficient, effective and development-oriented public service","Growth","Improve financial viability"]
["e38be026-aa91-4710-9bdc-3b0f3755cc1a","5001 Employee Related Cost - Director planning and Development: P&D","PO002000000000000000000000000000000000","_","Sustainable human settlements and improved quality of household life","Governance","Improve financial viability"]
["e38be026-aa91-4710-9bdc-3b0f3755cc1a","5001 General Expense - Director planning and Development:Planning and Development","PO002000000000000000000000000000000000","_","Sustainable human settlements and improved quality of household life","Governance","Improve financial viability"]
["e38be026-aa91-4710-9bdc-3b0f3755cc1a","5001 General Expense - Director planning and Development:Planning and Development","PO002000000000000000000000000000000000","_","Sustainable human settlements and improved quality of household life","Governance","Improve financial viability"]
["e38be026-aa91-4710-9bdc-3b0f3755cc1a","5002 CULTURAL DAY EVENTS EXPENSES","PO003026001000000000000000000000000000_00003","_","An efficient, effective and development-oriented public service","Inclusion and access","Improve financial viability"]
["e38be026-aa91-4710-9bdc-3b0f3755cc1a","5002 CULTURAL DAY EVENTS EXPENSES","PO003026001000000000000000000000000000_00005","_","An efficient, effective and development-oriented public service","Inclusion and access","Improve financial viability"]
["e38be026-aa91-4710-9bdc-3b0f3755cc1a","5002 General Expense - Economic Development:Planning and Development",null,"_",null,null,"Promotion of Local economy"]
["e38be026-aa91-4710-9bdc-3b0f3755cc1a","Trial Balance Takeon","PO002000000000000000000000000000000000","_","Sustainable human settlements and improved quality of household life","Governance","Improve financial viability"]
["e65f548d-c3fb-4eb6-b042-e507e9eec386","5002 General Expense - Economic Development:Planning and Development","PO002000000000000000000000000000000000","_","Sustainable human settlements and improved quality of household life","Governance","Promotion of Local economy"]
["e65f548d-c3fb-4eb6-b042-e507e9eec386","5003 Employee Related Cost - Town Planning: P&D","PO002000000000000000000000000000000000","_","Sustainable human settlements and improved quality of household life","Governance","Improve financial viability"]
["e65f548d-c3fb-4eb6-b042-e507e9eec386","5003 Employee Related Cost - Town Planning: P&D","PO002000000000000000000000000000000000","_","Sustainable human settlements and improved quality of household life","Governance","Improve financial viability"]
["e65f548d-c3fb-4eb6-b042-e507e9eec386","5003 General Expense - Town Planning:Planning and Development","PO002000000000000000000000000000000000","_","Sustainable human settlements and improved quality of household life","Governance","Sustain the environment"]
["e65f548d-c3fb-4eb6-b042-e507e9eec386","5003 General Expense - Town Planning:Planning and Development","PO002000000000000000000000000000000000","_","Sustainable human settlements and improved quality of household life","Governance","Sustain the environment"]
["e65f548d-c3fb-4eb6-b042-e507e9eec386","5003 General Expense - Town Planning:Planning and Development","PO003042000000000000000000000000000000_00004","_","An efficient, effective and development-oriented public service","Spatial integration","Sustain the environment"]
["e65f548d-c3fb-4eb6-b042-e507e9eec386","5003 General Expense - Town Planning:Planning and Development","PO003042000000000000000000000000000000_00005","_","An efficient, effective and development-oriented public service","Spatial integration","Sustain the environment"]
["e65f548d-c3fb-4eb6-b042-e507e9eec386","5003 General Expense - Town Planning:Planning and Development","PO003042000000000000000000000000000000_00006","_","An efficient, effective and development-oriented public service","Spatial integration","Sustain the environment"]
["e65f548d-c3fb-4eb6-b042-e507e9eec386","5003 General Expense - Town Planning:Planning and Development","PO003042000000000000000000000000000000_00007","_","An efficient, effective and development-oriented public service","Spatial integration","Sustain the environment"]
["e65f548d-c3fb-4eb6-b042-e507e9eec386","5003 MODALITIES AGREEMENT OF MOPANI MUNICIPAL PLANNING TRIBUNAL (APPEAL AUTHORITY)","PO003042000000000000000000000000000000_00005","_","An efficient, effective and development-oriented public service","Spatial integration","Sustain the environment"]
["e65f548d-c3fb-4eb6-b042-e507e9eec386","5003 Repairs and Maintenance - Town Planning:Planning and Development","PO001002002001010000000000000000000000_00010","_","An efficient, effective and development-oriented public service","Governance","Improve financial viability"]
["e65f548d-c3fb-4eb6-b042-e507e9eec386","5003 Repairs and Maintenance - Town Planning:Planning and Development","PO001002002001010000000000000000000000_00010","_","An efficient, effective and development-oriented public service","Governance","Improve financial viability"]
["e65f548d-c3fb-4eb6-b042-e507e9eec386","Trial Balance Takeon","PO002000000000000000000000000000000000","_","Sustainable human settlements and improved quality of household life","Governance","Improve financial viability"]
["e8aba1cd-7bec-4426-97e0-6a04f2677ea8","5004 Plan Development - Strategic planning and performance management","PO003044016002000000000000000000000000_00001","_","Responsive, accountable, effective and efficient local government","Spatial integration","Attract, develop and retain best human capital"]
["f3333fef-376f-4d03-b158-f7050b66056d","1003 Employee Related cost - Municipal Manager: Executive and Councillors","PO002000000000000000000000000000000000","_","Sustainable human settlements and improved quality of household life","Governance","Improve financial viability"]
["f3333fef-376f-4d03-b158-f7050b66056d","1003 General Expense - Municipal Manager:Executive and Council","PO002000000000000000000000000000000000","_","Sustainable human settlements and improved quality of household life","Governance","Good corporate governance and public participation"]
["f3333fef-376f-4d03-b158-f7050b66056d","1003 General Expense - Municipal Manager:Executive and Council","PO002000000000000000000000000000000000","_","Sustainable human settlements and improved quality of household life","Governance","Good corporate governance and public participation"]
["f3333fef-376f-4d03-b158-f7050b66056d","1003 Repairs and Maintenance - Municipal Manager:Executive and Council","PO001002002001005000000000000000000000_00006","_","An efficient, effective and development-oriented public service","Governance","Improve financial viability"]
["f3333fef-376f-4d03-b158-f7050b66056d","1003 Repairs and Maintenance - Municipal Manager:Executive and Council","PO001002002001005000000000000000000000_00006","_","An efficient, effective and development-oriented public service","Governance","Improve financial viability"]
["f3333fef-376f-4d03-b158-f7050b66056d","1003 Repairs and Maintenance - Municipal Manager:Executive and Council","PO003003001000000000000000000000000000_00040","_","Sustainable human settlements and improved quality of household life","Governance","Improve financial viability"]
["f3333fef-376f-4d03-b158-f7050b66056d","Trial Balance Takeon","PO002000000000000000000000000000000000","_","Sustainable human settlements and improved quality of household life","Governance","Improve financial viability"]
["f3a9aaa9-529a-40d1-b981-722b2f743267","3003 Employee Related Cost - Information Technology: CORP","PO002000000000000000000000000000000000","_","Sustainable human settlements and improved quality of household life","Governance","Improve financial viability"]
["f3a9aaa9-529a-40d1-b981-722b2f743267","3003 Employee Related Cost - Information Technology: CORP","PO002000000000000000000000000000000000","_","Sustainable human settlements and improved quality of household life","Governance","Improve financial viability"]
["f3a9aaa9-529a-40d1-b981-722b2f743267","3003 General Expense - Information Technology:Corporate Services","PO002000000000000000000000000000000000","_","Sustainable human settlements and improved quality of household life","Governance","Improve financial viability"]
["f3a9aaa9-529a-40d1-b981-722b2f743267","3003 General Expense - Information Technology:Corporate Services","PO002000000000000000000000000000000000","_","Sustainable human settlements and improved quality of household life","Governance","Improve financial viability"]
["f3a9aaa9-529a-40d1-b981-722b2f743267","3003 Repairs and Maintenance - Information Technology:Corporate Services","PO001001001002006002004000000000000000_00001","_","An efficient, competitive and responsive economic infrastructure network","Governance","Improve financial viability"]
["f3a9aaa9-529a-40d1-b981-722b2f743267","3003 Repairs and Maintenance - Information Technology:Corporate Services","PO001001001002006002004000000000000000_00001","_","An efficient, competitive and responsive economic infrastructure network","Governance","Improve financial viability"]
["f3a9aaa9-529a-40d1-b981-722b2f743267","3003 Repairs and Maintenance - Information Technology:Corporate Services","PO001002002001005000000000000000000000_00010","_","An efficient, effective and development-oriented public service","Governance","Improve financial viability"]
["f3a9aaa9-529a-40d1-b981-722b2f743267","3003 Repairs and Maintenance - Information Technology:Corporate Services","PO001002002001005000000000000000000000_00010","_","An efficient, effective and development-oriented public service","Governance","Improve financial viability"]
["f3a9aaa9-529a-40d1-b981-722b2f743267","6003 General Expense - Building Section:Technical Services","PO002000000000000000000000000000000000","_","Sustainable human settlements and improved quality of household life","Governance","Improve financial viability"]
["f3a9aaa9-529a-40d1-b981-722b2f743267","Trial Balance Takeon","PO002000000000000000000000000000000000","_","Sustainable human settlements and improved quality of household life","Governance","Improve financial viability"]
[]
[]
[]
["Parent Operational expenditure",null,null,null,null,null,null,null,null,null,null,null,{"$f":"SUM(M7:M1038)","v":0},{"$f":"SUM(N7:N1038)","v":0},{"$f":"SUM(O7:O1038)","v":0},{"$f":"SUM(P7:P1038)","v":0},{"$f":"SUM(Q7:Q1038)","v":0}]
[]
["Entities:"]
["List all Operational projects grouped by Entity"]
[]
["Entity A"]
["Water project A"]
[]
["Entity B"]
["Electricity project B"]
[]
[]
[]
["Entity Operational expenditure",null,null,null,null,null,null,null,null,null,null,null,{"$f":"SUM(M1044:M1051)","v":0},{"$f":"SUM(N1044:N1051)","v":0},{"$f":"SUM(O1044:O1051)","v":0},{"$f":"SUM(P1044:P1051)","v":0},{"$f":"SUM(Q1044:Q1051)","v":0}]
["Total Operational expenditure",null,null,null,null,null,null,null,null,null,null,null,{"$f":"SUM(M7:M1038)+SUM(M1044:M1051)","v":0},{"$f":"SUM(N7:N1038)+SUM(N1044:N1051)","v":0},{"$f":"SUM(O7:O1038)+SUM(O1044:O1051)","v":0},{"$f":"SUM(P7:P1038)+SUM(P1044:P1051)","v":0},{"$f":"SUM(Q7:Q1038)+SUM(Q1044:Q1051)","v":0}]
[{"$f":"head27a","v":"References"}]
["Must reconcile with Budgeted Operating Expenditure"]
["Asset class as per table A9 and asset sub-class as per table SA34"]
["GPS coordinates correct to seconds. Provide a logical starting point on networked infrastructure."]
["Project Number consists of MSCOA Project Longcode and seq No (sample PO001001002001002001002_00066)",null,null,null,null,null,null,null,null,null,null,"check",{"$f":"+'A4-FinPerf RE'!E47-'SA38'!M1053","v":443417198},{"$f":"+'A4-FinPerf RE'!H47-'SA38'!N1053","v":554667725},{"$f":"+'A4-FinPerf RE'!J47-'SA38'!O1053","v":606021416},{"$f":"+'A4-FinPerf RE'!K47-'SA38'!P1053","v":618682251},{"$f":"+'A4-FinPerf RE'!L47-'SA38'!Q1053","v":638086808}]

{"sheet":"LGDB_EXPORT","index":88,"n_rows":2876,"n_cols":23,"rows_kept":2876,"cut":false,"hidden":false,"merged":[]}
["FORM","YEAR END","MUNCDE","ITEMCODE","SEQ","DESCRIPTION",null,null,null,null,null,null,null,null,null,null,null,null,null,null,null,null,"~"]
["BSD",{"$f":"+MTREF","v":2023},{"$f":"LEFT(muni,(FIND(\" \",muni,1)-1))","v":"LIM331"},"1000",1,"Household service targets (000)",null,null,null,null,null,null,null,null,null,null,null,null,null,null,null,null,"~"]
["BSD",2023,"LIM331","1100",2,"Water:",null,null,null,null,null,null,null,null,null,null,null,null,null,null,null,null,"~"]
["BSD",2023,"LIM331","1101",3,"Piped water inside dwelling",null,null,null,null,null,null,null,null,null,null,null,null,null,null,null,null,"~"]
["BSD",2023,"LIM331","1102",4,"Piped water inside yard (but not in dwelling)",null,null,null,null,null,null,null,null,null,null,null,null,null,null,null,null,"~"]
["BSD",2023,"LIM331","1103",5,"Using public tap (at least min.service level)",null,null,null,null,null,null,null,null,null,null,null,null,null,null,null,null,"~"]
["BSD",2023,"LIM331","1104",6,"Other water supply (at least min.service level)",null,null,null,null,null,null,null,null,null,null,null,null,null,null,null,null,"~"]
["BSD",2023,"LIM331","1105",7,"Minimum Service Level and Above sub-total",null,null,null,null,null,null,null,null,null,null,null,null,null,null,null,null,"~"]
["BSD",2023,"LIM331","1106",8,"Using public tap (< min.service level)",null,null,null,null,null,null,null,null,null,null,null,null,null,null,null,null,"~"]
["BSD",2023,"LIM331","1107",9,"Other water supply (< min.service level)",null,null,null,null,null,null,null,null,null,null,null,null,null,null,null,null,"~"]
["BSD",2023,"LIM331","1108",10,"No water supply",null,null,null,null,null,null,null,null,null,null,null,null,null,null,null,null,"~"]
["BSD",2023,"LIM331","1109",11,"Below Minimum Service Level sub-total",null,null,null,null,null,null,null,null,null,null,null,null,null,null,null,null,"~"]
["BSD",2023,"LIM331","1110",12,"Total number of households",null,null,null,null,null,null,null,null,null,null,null,null,null,null,null,null,"~"]
["BSD",2023,"LIM331","1200",13,"Sanitation/sewerage:",null,null,null,null,null,null,null,null,null,null,null,null,null,null,null,null,"~"]
["BSD",2023,"LIM331","1201",14,"Flush toilet (connected to sewerage)",null,null,null,null,null,null,null,null,null,null,null,null,null,null,null,null,"~"]
["BSD",2023,"LIM331","1202",15,"Flush toilet (with septic tank)",null,null,null,null,null,null,null,null,null,null,null,null,null,null,null,null,"~"]
["BSD",2023,"LIM331","1203",16,"Chemical toilet",null,null,null,null,null,null,null,null,null,null,null,null,null,null,null,null,"~"]
["BSD",2023,"LIM331","1204",17,"Pit toilet (ventilated)",null,null,null,null,null,null,null,null,null,null,null,null,null,null,null,null,"~"]
["BSD",2023,"LIM331","1205",18,"Other toilet provisions (> min.service level)",null,null,null,null,null,null,null,null,null,null,null,null,null,null,null,null,"~"]
["BSD",2023,"LIM331","1206",19,"Minimum Service Level and Above sub-total",null,null,null,null,null,null,null,null,null,null,null,null,null,null,null,null,"~"]
["BSD",2023,"LIM331","1207",20,"Bucket toilet",null,null,null,null,null,null,null,null,null,null,null,null,null,null,null,null,"~"]
["BSD",2023,"LIM331","1208",21,"Other toilet provisions (< min.service level)",null,null,null,null,null,null,null,null,null,null,null,null,null,null,null,null,"~"]
["BSD",2023,"LIM331","1209",22,"No toilet provisions",null,null,null,null,null,null,null,null,null,null,null,null,null,null,null,null,"~"]
["BSD",2023,"LIM331","1210",23,"Below Minimum Service Level sub-total",null,null,null,null,null,null,null,null,null,null,null,null,null,null,null,null,"~"]
["BSD",2023,"LIM331","1211",24,"Total number of households",null,null,null,null,null,null,null,null,null,null,null,null,null,null,null,null,"~"]
["BSD",2023,"LIM331","1300",25,"Energy:",null,null,null,null,null,null,null,null,null,null,null,null,null,null,null,null,"~"]
["BSD",2023,"LIM331","1301",26,"Electricity (at least min.service level)",null,null,null,null,null,null,null,null,null,null,null,null,null,null,null,null,"~"]
["BSD",2023,"LIM331","1302",27,"Electricity - prepaid (min.service level)",null,null,null,null,null,null,null,null,null,null,null,null,null,null,null,null,"~"]
["BSD",2023,"LIM331","1303",28,"Minimum Service Level and Above sub-total",null,null,null,null,null,null,null,null,null,null,null,null,null,null,null,null,"~"]
["BSD",2023,"LIM331","1304",29,"Electricity (< min.service level)",null,null,null,null,null,null,null,null,null,null,null,null,null,null,null,null,"~"]
["BSD",2023,"LIM331","1305",30,"Electricity - prepaid (< min. service level)",null,null,null,null,null,null,null,null,null,null,null,null,null,null,null,null,"~"]
["BSD",2023,"LIM331","1306",31,"Other energy sources",null,null,null,null,null,null,null,null,null,null,null,null,null,null,null,null,"~"]
["BSD",2023,"LIM331","1307",32,"Below Minimum Service Level sub-total",null,null,null,null,null,null,null,null,null,null,null,null,null,null,null,null,"~"]
["BSD",2023,"LIM331","1308",33,"Total number of households",null,null,null,null,null,null,null,null,null,null,null,null,null,null,null,null,"~"]
["BSD",2023,"LIM331","1400",34,"Refuse:",null,null,null,null,null,null,null,null,null,null,null,null,null,null,null,null,"~"]
["BSD",2023,"LIM331","1401",35,"Removed at least once a week",null,null,null,null,null,null,null,null,null,null,null,null,null,null,null,null,"~"]
["BSD",2023,"LIM331","1402",36,"Minimum Service Level and Above sub-total",null,null,null,null,null,null,null,null,null,null,null,null,null,null,null,null,"~"]
["BSD",2023,"LIM331","1403",37,"Removed less frequently than once a week",null,null,null,null,null,null,null,null,null,null,null,null,null,null,null,null,"~"]
["BSD",2023,"LIM331","1404",38,"Using communal refuse dump",null,null,null,null,null,null,null,null,null,null,null,null,null,null,null,null,"~"]
["BSD",2023,"LIM331","1405",39,"Using own refuse dump",null,null,null,null,null,null,null,null,null,null,null,null,null,null,null,null,"~"]
["BSD",2023,"LIM331","1406",40,"Other rubbish disposal",null,null,null,null,null,null,null,null,null,null,null,null,null,null,null,null,"~"]
["BSD",2023,"LIM331","1407",41,"No rubbish disposal",null,null,null,null,null,null,null,null,null,null,null,null,null,null,null,null,"~"]
["BSD",2023,"LIM331","1408",42,"Below Minimum Service Level sub-total",null,null,null,null,null,null,null,null,null,null,null,null,null,null,null,null,"~"]
["BSD",2023,"LIM331","1409",43,"Total number of households",null,null,null,null,null,null,null,null,null,null,null,null,null,null,null,null,"~"]
["BSD",2023,"LIM331",null,null,null,null,null,null,null,null,null,null,null,null,null,null,null,null,null,null,null,"~"]
["BSD",2023,"LIM331","1500",45,"Households receiving Free Basic Service",null,null,null,null,null,null,null,null,null,null,null,null,null,null,null,null,"~"]
["BSD",2023,"LIM331","1501",46,"Water (6 kilolitres per household per month)",null,null,null,null,null,null,null,null,null,null,null,null,null,null,null,null,"~"]
["BSD",2023,"LIM331","1502",47,"Sanitation (free minimum level service)",null,null,null,null,null,null,null,null,null,null,null,null,null,null,null,null,"~"]
["BSD",2023,"LIM331","1503",48,"Electricity/other energy (50kwh per household per month)",null,null,null,null,null,null,null,null,null,null,null,null,null,null,null,null,"~"]
["BSD",2023,"LIM331","1504",49,"Refuse (removed at least once a week)",null,null,null,null,null,null,null,null,null,null,null,null,null,null,null,null,"~"]
["BSD",2023,"LIM331",null,null,null,null,null,null,null,null,null,null,null,null,null,null,null,null,null,null,null,"~"]
["BSD",2023,"LIM331","1600",51,"Cost of Free Basic Services provided - Formal Settlements (R'000)",null,null,null,null,null,null,null,null,null,null,null,null,null,null,null,null,"~"]
["BSD",2023,"LIM331","1601",52,"Water (6 kilolitres per indigent household per month)",null,null,null,null,null,null,null,null,null,null,null,null,null,null,null,null,"~"]
["BSD",2023,"LIM331","1602",53,"Sanitation (free sanitation service to indigent households)",null,null,null,null,null,null,null,null,null,null,null,null,null,null,null,null,"~"]
["BSD",2023,"LIM331","1603",54,"Electricity/other energy (50kwh per indigent household per month)",null,null,null,null,null,null,null,null,null,null,null,null,null,null,null,null,"~"]
["BSD",2023,"LIM331","1604",55,"Refuse (removed once a week for indigent households)",null,null,null,null,null,null,null,null,null,null,null,null,null,null,null,null,"~"]
["BSD",2023,"LIM331",1606,56,"Cost of Free Basic Services provided - Informal Formal Settlements (R'000)",null,null,null,null,null,null,null,null,null,null,null,null,null,null,null,null,"~"]
["BSD",2023,"LIM331",1607,57,"Total cost of FBS provided  ",null,null,null,null,null,null,null,null,null,null,null,null,null,null,null,null,"~"]
["BSD",2023,"LIM331",null,null,null,null,null,null,null,null,null,null,null,null,null,null,null,null,null,null,null,"~"]
["BSD",2023,"LIM331","1700",58,"Highest level of free service provided per household",null,null,null,null,null,null,null,null,null,null,null,null,null,null,null,null,"~"]
["BSD",2023,"LIM331","1701",59,"Property rates (R value threshold)",null,null,null,null,null,null,null,null,null,null,null,null,null,null,null,null,"~"]
["BSD",2023,"LIM331","1702",60,"Water (kilolitres per household per month)",null,null,null,null,null,null,null,null,null,null,null,null,null,null,null,null,"~"]
["BSD",2023,"LIM331","1703",61,"Sanitation (kilolitres per household per month)",null,null,null,null,null,null,null,null,null,null,null,null,null,null,null,null,"~"]
["BSD",2023,"LIM331","1704",62,"Sanitation (Rand per household per month)",null,null,null,null,null,null,null,null,null,null,null,null,null,null,null,null,"~"]
["BSD",2023,"LIM331","1705",63,"Electricity (kwh per household per month)",null,null,null,null,null,null,null,null,null,null,null,null,null,null,null,null,"~"]
["BSD",{"$f":"+MTREF","v":2023},{"$f":"LEFT(muni,(FIND(\" \",muni,1)-1))","v":"LIM331"},"1706",64,"Refuse (average litres per week)",null,null,null,null,null,null,null,null,null,null,null,null,null,null,null,null,"~"]
["BSD",2023,"LIM331","1707",65,"Revenue  cost of subsidised services provided (R'000)",null,null,null,null,null,null,null,null,null,null,null,null,null,null,null,null,"~"]
["BSD",2023,"LIM331","1708",66,"Property rates (tariff adjustment) ( impermissable values per section 17 of MPRA)",null,null,null,null,null,null,null,null,null,null,null,null,null,null,null,null,"~"]
["BSD",2023,"LIM331","1709",67,"Property rates  exemptions, reductions and rebates and impermissable values in excess of section 17 of MPRA)",null,null,null,null,null,null,null,null,null,null,null,null,null,null,null,null,"~"]
["BSD",2023,"LIM331","1710",68,"Water (in excess of 6 kilolitres per indigent household per month)",null,null,null,null,null,null,null,null,null,null,null,null,null,null,null,null,"~"]
["BSD",2023,"LIM331","1711",69,"Sanitation (in excess of free sanitation service to indigent households)",null,null,null,null,null,null,null,null,null,null,null,null,null,null,null,null,"~"]
["BSD",2023,"LIM331","1712",70,"Electricity/other energy (in excess of 50 kwh per indigent household per month)",null,null,null,null,null,null,null,null,null,null,null,null,null,null,null,null,"~"]
["BSD",2023,"LIM331","1713",71,"Refuse (in excess of one removal a week for indigent households)",null,null,null,null,null,null,null,null,null,null,null,null,null,null,null,null,"~"]
["BSD",2023,"LIM331","1714",72,"Municipal Housing - rental rebates",null,null,null,null,null,null,null,null,null,null,null,null,null,null,null,null,"~"]
["BSD",2023,"LIM331","1715",73,"Housing - top structure subsidies",null,null,null,null,null,null,null,null,null,null,null,null,null,null,null,null,"~"]
["BSD",2023,"LIM331","1716",74,"Other",null,null,null,null,null,null,null,null,null,null,null,null,null,null,null,null,"~"]
["BSD",2023,"LIM331","1717",75,"Total revenue cost of subsidised services provided ",null,null,null,null,null,null,null,null,null,null,null,null,null,null,null,null,"~"]
["SA11",2023,"LIM331",1000,"T","Valuation:",null,null,null,null,null,null,null,null,null,null,null,null,null,null,null,null,"~"]
["SA11",2023,"LIM331",1001,"T","Date of valuation:",null,null,null,null,null,null,null,null,null,null,null,null,null,null,null,null,"~"]
["SA11",2023,"LIM331",1002,"T","Financial year valuation used",null,null,null,null,null,null,null,null,null,null,null,null,null,null,null,null,"~"]
["SA11",2023,"LIM331",1003,"T","Municipal by-laws s6 in place? (Y/N)",null,null,null,null,null,null,null,null,null,null,null,null,null,null,null,null,"~"]
["SA11",2023,"LIM331",1004,"T","Municipal/assistant valuer appointed? (Y/N)",null,null,null,null,null,null,null,null,null,null,null,null,null,null,null,null,"~"]
["SA11",2023,"LIM331",1005,"T","Municipal partnership s38 used? (Y/N)",null,null,null,null,null,null,null,null,null,null,null,null,null,null,null,null,"~"]
["SA11",2023,"LIM331",1006,"V","No. of assistant valuers (FTE)",null,null,null,null,null,null,null,null,null,null,null,null,null,null,null,null,"~"]
["SA11",2023,"LIM331",1007,"V","No. of data collectors (FTE)",null,null,null,null,null,null,null,null,null,null,null,null,null,null,null,null,"~"]
["SA11",2023,"LIM331",1008,"V","No. of internal valuers (FTE)",null,null,null,null,null,null,null,null,null,null,null,null,null,null,null,null,"~"]
["SA11",2023,"LIM331",1009,"V","No. of external valuers (FTE)",null,null,null,null,null,null,null,null,null,null,null,null,null,null,null,null,"~"]
["SA11",2023,"LIM331",1010,"V","No. of additional valuers (FTE)",null,null,null,null,null,null,null,null,null,null,null,null,null,null,null,null,"~"]
["SA11",2023,"LIM331",1011,"T","Valuation appeal board established? (Y/N)",null,null,null,null,null,null,null,null,null,null,null,null,null,null,null,null,"~"]
["SA11",2023,"LIM331",1012,"V","Implementation time of new valuation roll (mths)",null,null,null,null,null,null,null,null,null,null,null,null,null,null,null,null,"~"]
["SA11",2023,"LIM331",1020,"V","No. of properties",null,null,null,null,null,null,null,null,null,null,null,null,null,null,null,null,"~"]
["SA11",2023,"LIM331",1021,"V","No. of sectional title values",null,null,null,null,null,null,null,null,null,null,null,null,null,null,null,null,"~"]
["SA11",2023,"LIM331",1022,"V","No. of unreasonably difficult properties s7(2)",null,null,null,null,null,null,null,null,null,null,null,null,null,null,null,null,"~"]
["SA11",2023,"LIM331",1023,"V","No. of supplementary valuations",null,null,null,null,null,null,null,null,null,null,null,null,null,null,null,null,"~"]
["SA11",2023,"LIM331",1024,"V","No. of valuation roll amendments",null,null,null,null,null,null,null,null,null,null,null,null,null,null,null,null,"~"]
["SA11",2023,"LIM331",1025,"V","No. of objections by rate payers",null,null,null,null,null,null,null,null,null,null,null,null,null,null,null,null,"~"]
["SA11",2023,"LIM331",1026,"V","No. of appeals by rate payers",null,null,null,null,null,null,null,null,null,null,null,null,null,null,null,null,"~"]
["SA11",2023,"LIM331",1028,"V","No. of successful objections",null,null,null,null,null,null,null,null,null,null,null,null,null,null,null,null,"~"]
["SA11",2023,"LIM331",1029,"V","No. of successful objections > 10%",null,null,null,null,null,null,null,null,null,null,null,null,null,null,null,null,"~"]
["SA11",2023,"LIM331",1030,"V","Supplementary valuation",null,null,null,null,null,null,null,null,null,null,null,null,null,null,null,null,"~"]
["SA11",2023,"LIM331",1031,"V","Public service infrastructure value ",null,null,null,null,null,null,null,null,null,null,null,null,null,null,null,null,"~"]
["SA11",2023,"LIM331",1032,"V","Municipality owned property value ",null,null,null,null,null,null,null,null,null,null,null,null,null,null,null,null,"~"]
["SA11",2023,"LIM331",1100,"T","Valuation reductions:",null,null,null,null,null,null,null,null,null,null,null,null,null,null,null,null,"~"]
["SA11",2023,"LIM331",1101,"V","Valuation reductions-public infrastructure",null,null,null,null,null,null,null,null,null,null,null,null,null,null,null,null,"~"]
["SA11",2023,"LIM331",1102,"V","Valuation reductions-nature reserves/park",null,null,null,null,null,null,null,null,null,null,null,null,null,null,null,null,"~"]
["SA11",2023,"LIM331",1103,"V","Valuation reductions-mineral rights",null,null,null,null,null,null,null,null,null,null,null,null,null,null,null,null,"~"]
["SA11",2023,"LIM331",1104,"V","Valuation reductions-R15,000 threshold",null,null,null,null,null,null,null,null,null,null,null,null,null,null,null,null,"~"]
["SA11",2023,"LIM331",1105,"V","Valuation reductions-public worship ",null,null,null,null,null,null,null,null,null,null,null,null,null,null,null,null,"~"]
["SA11",2023,"LIM331",1106,"V","Valuation reductions-other",null,null,null,null,null,null,null,null,null,null,null,null,null,null,null,null,"~"]
["SA11",2023,"LIM331",1107,"V","Total valuation reductions:",null,null,null,null,null,null,null,null,null,null,null,null,null,null,null,null,"~"]
["SA11",2023,"LIM331",1108,"V","Total value used for rating",null,null,null,null,null,null,null,null,null,null,null,null,null,null,null,null,"~"]
["SA11",2023,"LIM331",1109,"V","Total land value ",null,null,null,null,null,null,null,null,null,null,null,null,null,null,null,null,"~"]
["SA11",2023,"LIM331",1110,"V","Total value of improvements",null,null,null,null,null,null,null,null,null,null,null,null,null,null,null,null,"~"]
["SA11",2023,"LIM331",1111,"V","Total market value",null,null,null,null,null,null,null,null,null,null,null,null,null,null,null,null,"~"]
["SA11",2023,"LIM331",null,null,null,null,null,null,null,null,null,null,null,null,null,null,null,null,null,null,null,"~"]
["SA11",2023,"LIM331",1200,"T","Rating:",null,null,null,null,null,null,null,null,null,null,null,null,null,null,null,null,"~"]
["SA11",2023,"LIM331",1202,"T","Residential rate used to determine rate for other categories? (Y/N)",null,null,null,null,null,null,null,null,null,null,null,null,null,null,null,null,"~"]
["SA11",2023,"LIM331",1203,"T","Differential rates used? (Y/N)",null,null,null,null,null,null,null,null,null,null,null,null,null,null,null,null,"~"]
["SA11",2023,"LIM331",1204,"T","Limit on annual rate increase (s20)? (Y/N)",null,null,null,null,null,null,null,null,null,null,null,null,null,null,null,null,"~"]
["SA11",2023,"LIM331",1205,"T","Special rating area used? (Y/N)",null,null,null,null,null,null,null,null,null,null,null,null,null,null,null,null,"~"]
["SA11",2023,"LIM331",1206,"V","Phasing-in properties s21 (number)",null,null,null,null,null,null,null,null,null,null,null,null,null,null,null,null,"~"]
["SA11",2023,"LIM331",1207,"T","Rates policy accompanying budget? (Y/N)",null,null,null,null,null,null,null,null,null,null,null,null,null,null,null,null,"~"]
["SA11",2023,"LIM331",1208,"V","Fixed amount minimum value",null,null,null,null,null,null,null,null,null,null,null,null,null,null,null,null,"~"]
["SA11",2023,"LIM331",1209,"P","Non-residential prescribed ratio s19? (%)",null,null,null,null,null,null,null,null,null,null,null,null,null,null,null,null,"~"]
["SA11",2023,"LIM331",null,null,null,null,null,null,null,null,null,null,null,null,null,null,null,null,null,null,null,"~"]
["SA11",2023,"LIM331",1300,"T","Rate revenue:",null,null,null,null,null,null,null,null,null,null,null,null,null,null,null,null,"~"]
["SA11",2023,"LIM331",1301,"V","Rate revenue budget ",null,null,null,null,null,null,null,null,null,null,null,null,null,null,null,null,"~"]
["SA11",2023,"LIM331",1302,"V","Rate revenue expected to collect",null,null,null,null,null,null,null,null,null,null,null,null,null,null,null,null,"~"]
["SA11",2023,"LIM331",1303,"P","Expected cash collection rate (%)",null,null,null,null,null,null,null,null,null,null,null,null,null,null,null,null,"~"]
["SA11",{"$f":"+MTREF","v":2023},{"$f":"LEFT(muni,(FIND(\" \",muni,1)-1))","v":"LIM331"},1304,"V","Special rating areas",null,null,null,null,null,null,null,null,null,null,null,null,null,null,null,null,"~"]
["SA11",2023,"LIM331",1305,"V","Rebates, exemptions - indigent",null,null,null,null,null,null,null,null,null,null,null,null,null,null,null,null,"~"]
["SA11",2023,"LIM331",1306,"V","Rebates, exemptions - pensioners",null,null,null,null,null,null,null,null,null,null,null,null,null,null,null,null,"~"]
["SA11",2023,"LIM331",1307,"V","Rebates, exemptions - bona fide farm",null,null,null,null,null,null,null,null,null,null,null,null,null,null,null,null,"~"]
["SA11",2023,"LIM331",1308,"V","Rebates, exemptions - other",null,null,null,null,null,null,null,null,null,null,null,null,null,null,null,null,"~"]
["SA11",2023,"LIM331",1309,"V","Phase-in reductions/discounts",null,null,null,null,null,null,null,null,null,null,null,null,null,null,null,null,"~"]
["SA11",2023,"LIM331",1310,"V","Total rebates,exemptns,reductns,discs",null,null,null,null,null,null,null,null,null,null,null,null,null,null,null,null,"~"]
["SA12",2023,"LIM331",1000,"T","Valuation:",null,null,null,null,null,null,null,null,null,null,null,null,null,null,null,null,"~"]
["SA12",2023,"LIM331",1020,"V","No. of properties",null,null,null,null,null,null,null,null,null,null,null,null,null,null,null,null,"~"]
["SA12",2023,"LIM331",1021,"V","No. of sectional title property values",null,null,null,null,null,null,null,null,null,null,null,null,null,null,null,null,"~"]
["SA12",2023,"LIM331",1022,"V","No. of unreasonably difficult properties s7(2)",null,null,null,null,null,null,null,null,null,null,null,null,null,null,null,null,"~"]
["SA12",2023,"LIM331",1023,"V","No. of supplementary valuations",null,null,null,null,null,null,null,null,null,null,null,null,null,null,null,null,"~"]
["SA12",2023,"LIM331",1030,"V","Supplementary valuation ",null,null,null,null,null,null,null,null,null,null,null,null,null,null,null,null,"~"]
["SA12",2023,"LIM331",1024,"V","No. of valuation roll amendments",null,null,null,null,null,null,null,null,null,null,null,null,null,null,null,null,"~"]
["SA12",2023,"LIM331",1025,"V","No. of objections by rate-payers",null,null,null,null,null,null,null,null,null,null,null,null,null,null,null,null,"~"]
["SA12",2023,"LIM331",1026,"V","No. of appeals by rate-payers",null,null,null,null,null,null,null,null,null,null,null,null,null,null,null,null,"~"]
["SA12",2023,"LIM331",1027,"V","No. of appeals by rate-payers finalised",null,null,null,null,null,null,null,null,null,null,null,null,null,null,null,null,"~"]
["SA12",2023,"LIM331",1028,"V","No. of successful objections",null,null,null,null,null,null,null,null,null,null,null,null,null,null,null,null,"~"]
["SA12",2023,"LIM331",1029,"V","No. of successful objections > 10%",null,null,null,null,null,null,null,null,null,null,null,null,null,null,null,null,"~"]
["SA12",2023,"LIM331",1040,"V","Estimated no. of properties not valued",null,null,null,null,null,null,null,null,null,null,null,null,null,null,null,null,"~"]
["SA12",2023,"LIM331",1041,"T","Years since last valuation",null,null,null,null,null,null,null,null,null,null,null,null,null,null,null,null,"~"]
["SA12",2023,"LIM331",1042,"T","Frequency of valuation ",null,null,null,null,null,null,null,null,null,null,null,null,null,null,null,null,"~"]
["SA12",2023,"LIM331",1043,"T","Method of valuation used",null,null,null,null,null,null,null,null,null,null,null,null,null,null,null,null,"~"]
["SA12",2023,"LIM331",1044,"T","Base of valuation",null,null,null,null,null,null,null,null,null,null,null,null,null,null,null,null,"~"]
["SA12",2023,"LIM331",1206,"V","Phasing-in properties s21 (number)",null,null,null,null,null,null,null,null,null,null,null,null,null,null,null,null,"~"]
["SA12",2023,"LIM331",1046,"T","Combination of rating types used? (Y/N)",null,null,null,null,null,null,null,null,null,null,null,null,null,null,null,null,"~"]
["SA12",2023,"LIM331",1047,"T","Flat rate used? (Y/N)",null,null,null,null,null,null,null,null,null,null,null,null,null,null,null,null,"~"]
["SA12",2023,"LIM331",1048,"T","Is balance rated by uniform rate/variable rate?",null,null,null,null,null,null,null,null,null,null,null,null,null,null,null,null,"~"]
["SA12",2023,"LIM331",1100,"T","Valuation reductions:",null,null,null,null,null,null,null,null,null,null,null,null,null,null,null,null,"~"]
["SA12",2023,"LIM331",1101,"V","Valuation reductions-public infrastructure",null,null,null,null,null,null,null,null,null,null,null,null,null,null,null,null,"~"]
["SA12",2023,"LIM331",1102,"V","Valuation reductions-nature reserves/park",null,null,null,null,null,null,null,null,null,null,null,null,null,null,null,null,"~"]
["SA12",2023,"LIM331",1103,"V","Valuation reductions-mineral rights",null,null,null,null,null,null,null,null,null,null,null,null,null,null,null,null,"~"]
["SA12",2023,"LIM331",1104,"V","Valuation reductions-R15,000 threshold ",null,null,null,null,null,null,null,null,null,null,null,null,null,null,null,null,"~"]
["SA12",2023,"LIM331",1105,"V","Valuation reductions-public worship",null,null,null,null,null,null,null,null,null,null,null,null,null,null,null,null,"~"]
["SA12",2023,"LIM331",1106,"V","Valuation reductions-other",null,null,null,null,null,null,null,null,null,null,null,null,null,null,null,null,"~"]
["SA12",2023,"LIM331",1107,"V","Total valuation reductions:",null,null,null,null,null,null,null,null,null,null,null,null,null,null,null,null,"~"]
["SA12",2023,"LIM331",1108,"V","Total value used for rating",null,null,null,null,null,null,null,null,null,null,null,null,null,null,null,null,"~"]
["SA12",2023,"LIM331",1109,"V","Total land value ",null,null,null,null,null,null,null,null,null,null,null,null,null,null,null,null,"~"]
["SA12",2023,"LIM331",1110,"V","Total value of improvements",null,null,null,null,null,null,null,null,null,null,null,null,null,null,null,null,"~"]
["SA12",2023,"LIM331",1111,"V","Total market value ",null,null,null,null,null,null,null,null,null,null,null,null,null,null,null,null,"~"]
["SA12",2023,"LIM331",1200,"T","Rating:",null,null,null,null,null,null,null,null,null,null,null,null,null,null,null,null,"~"]
["SA12",2023,"LIM331",1201,"V","Average rate",null,null,null,null,null,null,null,null,null,null,null,null,null,null,null,null,"~"]
["SA12",2023,"LIM331",1301,"V","Rate revenue budget ",null,null,null,null,null,null,null,null,null,null,null,null,null,null,null,null,"~"]
["SA12",2023,"LIM331",1302,"V","Rate revenue expected to collect",null,null,null,null,null,null,null,null,null,null,null,null,null,null,null,null,"~"]
["SA12",2023,"LIM331",1303,"P","Expected cash collection rate (%)",null,null,null,null,null,null,null,null,null,null,null,null,null,null,null,null,"~"]
["SA12",2023,"LIM331",1304,"V","Special rating areas",null,null,null,null,null,null,null,null,null,null,null,null,null,null,null,null,"~"]
["SA12",2023,"LIM331",1305,"V","Rebates, exemptions - indigent",null,null,null,null,null,null,null,null,null,null,null,null,null,null,null,null,"~"]
["SA12",2023,"LIM331",1306,"V","Rebates, exemptions - pensioners",null,null,null,null,null,null,null,null,null,null,null,null,null,null,null,null,"~"]
["SA12",2023,"LIM331",1307,"V","Rebates, exemptions - bona fide farm. ",null,null,null,null,null,null,null,null,null,null,null,null,null,null,null,null,"~"]
["SA12",2023,"LIM331",1308,"V","Rebates, exemptions - other ",null,null,null,null,null,null,null,null,null,null,null,null,null,null,null,null,"~"]
["SA12",2023,"LIM331",1309,"V","Phase-in reductions/discounts ",null,null,null,null,null,null,null,null,null,null,null,null,null,null,null,null,"~"]
["SA12",2023,"LIM331",1310,"V","Total rebates,exemptns,reductns,discs",null,null,null,null,null,null,null,null,null,null,null,null,null,null,null,null,"~"]
["SA12",2023,"LIM331",null,null,null,null,null,null,null,null,null,null,null,null,null,null,null,null,null,null,null,"~"]
["SA12",2023,"LIM331",null,null,null,null,null,null,null,null,null,null,null,null,null,null,null,null,null,null,null,"~"]
["SA12",2023,"LIM331",null,null,null,null,null,null,null,null,null,null,null,null,null,null,null,null,null,null,null,"~"]
["SA12",2023,"LIM331",null,null,null,null,null,null,null,null,null,null,null,null,null,null,null,null,null,null,null,"~"]
["SA12",2023,"LIM331",1000,"T","Valuation:",null,null,null,null,null,null,null,null,null,null,null,null,null,null,null,null,"~"]
["SA12",2023,"LIM331",1020,"V","No. of properties",null,null,null,null,null,null,null,null,null,null,null,null,null,null,null,null,"~"]
["SA12",2023,"LIM331",1021,"V","No. of sectional title property values",null,null,null,null,null,null,null,null,null,null,null,null,null,null,null,null,"~"]
["SA12",2023,"LIM331",1022,"V","No. of unreasonably difficult properties s7(2)",null,null,null,null,null,null,null,null,null,null,null,null,null,null,null,null,"~"]
["SA12",2023,"LIM331",1023,"V","No. of supplementary valuations",null,null,null,null,null,null,null,null,null,null,null,null,null,null,null,null,"~"]
["SA12",2023,"LIM331",1030,"V","Supplementary valuation ",null,null,null,null,null,null,null,null,null,null,null,null,null,null,null,null,"~"]
["SA12",2023,"LIM331",1024,"V","No. of valuation roll amendments",null,null,null,null,null,null,null,null,null,null,null,null,null,null,null,null,"~"]
["SA12",2023,"LIM331",1025,"V","No. of objections by rate-payers",null,null,null,null,null,null,null,null,null,null,null,null,null,null,null,null,"~"]
["SA12",{"$f":"+MTREF","v":2023},{"$f":"LEFT(muni,(FIND(\" \",muni,1)-1))","v":"LIM331"},1026,"V","No. of appeals by rate-payers",null,null,null,null,null,null,null,null,null,null,null,null,null,null,null,null,"~"]
["SA12",2023,"LIM331",1027,"V","No. of appeals by rate-payers finalised",null,null,null,null,null,null,null,null,null,null,null,null,null,null,null,null,"~"]
["SA12",2023,"LIM331",1028,"V","No. of successful objections",null,null,null,null,null,null,null,null,null,null,null,null,null,null,null,null,"~"]
["SA12",2023,"LIM331",1029,"V","No. of successful objections > 10%",null,null,null,null,null,null,null,null,null,null,null,null,null,null,null,null,"~"]
["SA12",2023,"LIM331",1040,"V","Estimated no. of properties not valued",null,null,null,null,null,null,null,null,null,null,null,null,null,null,null,null,"~"]
["SA12",2023,"LIM331",1041,"T","Years since last valuation",null,null,null,null,null,null,null,null,null,null,null,null,null,null,null,null,"~"]
["SA12",2023,"LIM331",1042,"T","Frequency of valuation ",null,null,null,null,null,null,null,null,null,null,null,null,null,null,null,null,"~"]
["SA12",2023,"LIM331",1043,"T","Method of valuation used",null,null,null,null,null,null,null,null,null,null,null,null,null,null,null,null,"~"]
["SA12",2023,"LIM331",1044,"T","Base of valuation",null,null,null,null,null,null,null,null,null,null,null,null,null,null,null,null,"~"]
["SA12",2023,"LIM331",1206,"V","Phasing-in properties s21 (number)",null,null,null,null,null,null,null,null,null,null,null,null,null,null,null,null,"~"]
["SA12",2023,"LIM331",1046,"T","Combination of rating types used? (Y/N)",null,null,null,null,null,null,null,null,null,null,null,null,null,null,null,null,"~"]
["SA12",2023,"LIM331",1047,"T","Flat rate used? (Y/N)",null,null,null,null,null,null,null,null,null,null,null,null,null,null,null,null,"~"]
["SA12",2023,"LIM331",1048,"T","Is balance rated by uniform rate/variable rate?",null,null,null,null,null,null,null,null,null,null,null,null,null,null,null,null,"~"]
["SA12",2023,"LIM331",1100,"T","Valuation reductions:",null,null,null,null,null,null,null,null,null,null,null,null,null,null,null,null,"~"]
["SA12",2023,"LIM331",1101,"V","Valuation reductions-public infrastructure",null,null,null,null,null,null,null,null,null,null,null,null,null,null,null,null,"~"]
["SA12",2023,"LIM331",1102,"V","Valuation reductions-nature reserves/park",null,null,null,null,null,null,null,null,null,null,null,null,null,null,null,null,"~"]
["SA12",2023,"LIM331",1103,"V","Valuation reductions-mineral rights",null,null,null,null,null,null,null,null,null,null,null,null,null,null,null,null,"~"]
["SA12",2023,"LIM331",1104,"V","Valuation reductions-R15,000 threshold ",null,null,null,null,null,null,null,null,null,null,null,null,null,null,null,null,"~"]
["SA12",2023,"LIM331",1105,"V","Valuation reductions-public worship",null,null,null,null,null,null,null,null,null,null,null,null,null,null,null,null,"~"]
["SA12",2023,"LIM331",1106,"V","Valuation reductions-other",null,null,null,null,null,null,null,null,null,null,null,null,null,null,null,null,"~"]
["SA12",2023,"LIM331",1107,"V","Total valuation reductions:",null,null,null,null,null,null,null,null,null,null,null,null,null,null,null,null,"~"]
["SA12",2023,"LIM331",1108,"V","Total value used for rating",null,null,null,null,null,null,null,null,null,null,null,null,null,null,null,null,"~"]
["SA12",2023,"LIM331",1109,"V","Total land value ",null,null,null,null,null,null,null,null,null,null,null,null,null,null,null,null,"~"]
["SA12",2023,"LIM331",1110,"V","Total value of improvements",null,null,null,null,null,null,null,null,null,null,null,null,null,null,null,null,"~"]
["SA12",2023,"LIM331",1111,"V","Total market value ",null,null,null,null,null,null,null,null,null,null,null,null,null,null,null,null,"~"]
["SA12",2023,"LIM331",1200,"T","Rating:",null,null,null,null,null,null,null,null,null,null,null,null,null,null,null,null,"~"]
["SA12",2023,"LIM331",1201,"V","Average rate",null,null,null,null,null,null,null,null,null,null,null,null,null,null,null,null,"~"]
["SA12",2023,"LIM331",1301,"V","Rate revenue budget ",null,null,null,null,null,null,null,null,null,null,null,null,null,null,null,null,"~"]
["SA12",2023,"LIM331",1302,"V","Rate revenue expected to collect",null,null,null,null,null,null,null,null,null,null,null,null,null,null,null,null,"~"]
["SA12",2023,"LIM331",1303,"P","Expected cash collection rate (%)",null,null,null,null,null,null,null,null,null,null,null,null,null,null,null,null,"~"]
["SA12",2023,"LIM331",1304,"V","Special rating areas",null,null,null,null,null,null,null,null,null,null,null,null,null,null,null,null,"~"]
["SA12",2023,"LIM331",1305,"V","Rebates, exemptions - indigent",null,null,null,null,null,null,null,null,null,null,null,null,null,null,null,null,"~"]
["SA12",2023,"LIM331",1306,"V","Rebates, exemptions - pensioners",null,null,null,null,null,null,null,null,null,null,null,null,null,null,null,null,"~"]
["SA12",2023,"LIM331",1307,"V","Rebates, exemptions - bona fide farm. ",null,null,null,null,null,null,null,null,null,null,null,null,null,null,null,null,"~"]
["SA12",2023,"LIM331",1308,"V","Rebates, exemptions - other ",null,null,null,null,null,null,null,null,null,null,null,null,null,null,null,null,"~"]
["SA12",2023,"LIM331",1309,"V","Phase-in reductions/discounts ",null,null,null,null,null,null,null,null,null,null,null,null,null,null,null,null,"~"]
["SA12",2023,"LIM331",1310,"V","Total rebates,exemptns,reductns,discs",null,null,null,null,null,null,null,null,null,null,null,null,null,null,null,null,"~"]
["SA13",2023,"LIM331",1000,1,"Property rates (rate in the Rand)",null,null,null,null,null,null,null,null,null,null,null,null,null,null,null,null,"~"]
["SA13",2023,"LIM331",1001,2,"Residential properties",null,null,null,null,null,null,null,null,null,null,null,null,null,null,null,null,"~"]
["SA13",2023,"LIM331",1002,3,"Residential properties - vacant land",null,null,null,null,null,null,null,null,null,null,null,null,null,null,null,null,"~"]
["SA13",2023,"LIM331",1003,4,"Formal/informal settlements",null,null,null,null,null,null,null,null,null,null,null,null,null,null,null,null,"~"]
["SA13",2023,"LIM331",1004,5,"Small holdings",null,null,null,null,null,null,null,null,null,null,null,null,null,null,null,null,"~"]
["SA13",2023,"LIM331",1005,6,"Farm properties - used",null,null,null,null,null,null,null,null,null,null,null,null,null,null,null,null,"~"]
["SA13",2023,"LIM331",1006,7,"Farm properties - not used",null,null,null,null,null,null,null,null,null,null,null,null,null,null,null,null,"~"]
["SA13",2023,"LIM331",1007,8,"Industrial properties",null,null,null,null,null,null,null,null,null,null,null,null,null,null,null,null,"~"]
["SA13",2023,"LIM331",1008,9,"Business and commercial properties",null,null,null,null,null,null,null,null,null,null,null,null,null,null,null,null,"~"]
["SA13",2023,"LIM331",1009,10,"Communal land - residential",null,null,null,null,null,null,null,null,null,null,null,null,null,null,null,null,"~"]
["SA13",2023,"LIM331",1010,11,"Communal land - small holdings",null,null,null,null,null,null,null,null,null,null,null,null,null,null,null,null,"~"]
["SA13",2023,"LIM331",1011,12,"Communal land - farm property",null,null,null,null,null,null,null,null,null,null,null,null,null,null,null,null,"~"]
["SA13",2023,"LIM331",1012,13,"Communal land - business and commercial",null,null,null,null,null,null,null,null,null,null,null,null,null,null,null,null,"~"]
["SA13",2023,"LIM331",1013,14,"Communal land - other",null,null,null,null,null,null,null,null,null,null,null,null,null,null,null,null,"~"]
["SA13",2023,"LIM331",1014,15,"State-owned properties",null,null,null,null,null,null,null,null,null,null,null,null,null,null,null,null,"~"]
["SA13",2023,"LIM331",1015,16,"Municipal properties",null,null,null,null,null,null,null,null,null,null,null,null,null,null,null,null,"~"]
["SA13",2023,"LIM331",1016,17,"Public service infrastructure",null,null,null,null,null,null,null,null,null,null,null,null,null,null,null,null,"~"]
["SA13",2023,"LIM331",1017,18,"Privately owned towns serviced by the owner",null,null,null,null,null,null,null,null,null,null,null,null,null,null,null,null,"~"]
["SA13",2023,"LIM331",1018,19,"State trust land",null,null,null,null,null,null,null,null,null,null,null,null,null,null,null,null,"~"]
["SA13",2023,"LIM331",1019,20,"Restitution and redistribution properties",null,null,null,null,null,null,null,null,null,null,null,null,null,null,null,null,"~"]
["SA13",2023,"LIM331",1020,21,"Protected areas",null,null,null,null,null,null,null,null,null,null,null,null,null,null,null,null,"~"]
["SA13",2023,"LIM331",1021,22,"National monuments properties",null,null,null,null,null,null,null,null,null,null,null,null,null,null,null,null,"~"]
["SA13",2023,"LIM331",null,null,null,null,null,null,null,null,null,null,null,null,null,null,null,null,null,null,null,"~"]
["SA13",2023,"LIM331",1030,23,"Exemptions, reductions and rebates (Rands)",null,null,null,null,null,null,null,null,null,null,null,null,null,null,null,null,"~"]
["SA13",2023,"LIM331",1031,24,"Residential properties",null,null,null,null,null,null,null,null,null,null,null,null,null,null,null,null,"~"]
["SA13",2023,"LIM331",1032,25,"R15 000 threshhold rebate",null,null,null,null,null,null,null,null,null,null,null,null,null,null,null,null,"~"]
["SA13",2023,"LIM331",1033,26,"General residential rebate",null,null,null,null,null,null,null,null,null,null,null,null,null,null,null,null,"~"]
["SA13",{"$f":"+MTREF","v":2023},{"$f":"LEFT(muni,(FIND(\" \",muni,1)-1))","v":"LIM331"},1034,27,"Indigent rebate or exemption",null,null,null,null,null,null,null,null,null,null,null,null,null,null,null,null,"~"]
["SA13",2023,"LIM331",1035,28,"Pensioners/social grants rebate or exemption ",null,null,null,null,null,null,null,null,null,null,null,null,null,null,null,null,"~"]
["SA13",2023,"LIM331",1036,29,"Temporary relief rebate or exemption",null,null,null,null,null,null,null,null,null,null,null,null,null,null,null,null,"~"]
["SA13",2023,"LIM331",1037,30," Bona fide farmers rebate or exemption",null,null,null,null,null,null,null,null,null,null,null,null,null,null,null,null,"~"]
["SA13",2023,"LIM331",1038,31,"Other rebates or exemptions",null,null,null,null,null,null,null,null,null,null,null,null,null,null,null,null,"~"]
["SA13",2023,"LIM331",null,null,null,null,null,null,null,null,null,null,null,null,null,null,null,null,null,null,null,"~"]
["SA13",2023,"LIM331",1100,32,"Water tariffs",null,null,null,null,null,null,null,null,null,null,null,null,null,null,null,null,"~"]
["SA13",2023,"LIM331",1101,33,"Domestic",null,null,null,null,null,null,null,null,null,null,null,null,null,null,null,null,"~"]
["SA13",2023,"LIM331",1102,34,"Basic charge/fixed fee (Rands/month)",null,null,null,null,null,null,null,null,null,null,null,null,null,null,null,null,"~"]
["SA13",2023,"LIM331",1103,35,"Service point - vacant land (Rands/month)",null,null,null,null,null,null,null,null,null,null,null,null,null,null,null,null,"~"]
["SA13",2023,"LIM331",1104,36,"Water usage - flat rate tariff (c/kl)",null,null,null,null,null,null,null,null,null,null,null,null,null,null,null,null,"~"]
["SA13",2023,"LIM331",1105,37,"Water usage - life line tariff",null,null,null,null,null,null,null,null,null,null,null,null,null,null,null,null,"~"]
["SA13",2023,"LIM331",1106,38,"Water usage - Block 1 (c/kl)",null,null,null,null,null,null,null,null,null,null,null,null,null,null,null,null,"~"]
["SA13",2023,"LIM331",1107,39,"Water usage - Block 2 (c/kl)",null,null,null,null,null,null,null,null,null,null,null,null,null,null,null,null,"~"]
["SA13",2023,"LIM331",1108,40,"Water usage - Block 3 (c/kl)",null,null,null,null,null,null,null,null,null,null,null,null,null,null,null,null,"~"]
["SA13",2023,"LIM331",1109,41,"Water usage - Block 4 (c/kl)",null,null,null,null,null,null,null,null,null,null,null,null,null,null,null,null,"~"]
["SA13",2023,"LIM331",1110,42,"Other",null,null,null,null,null,null,null,null,null,null,null,null,null,null,null,null,"~"]
["SA13",2023,"LIM331",null,null,null,null,null,null,null,null,null,null,null,null,null,null,null,null,null,null,null,"~"]
["SA13",2023,"LIM331",1200,43,"Waste water tariffs",null,null,null,null,null,null,null,null,null,null,null,null,null,null,null,null,"~"]
["SA13",2023,"LIM331",1201,44,"Domestic",null,null,null,null,null,null,null,null,null,null,null,null,null,null,null,null,"~"]
["SA13",2023,"LIM331",1202,45,"Basic charge/fixed fee (Rands/month)",null,null,null,null,null,null,null,null,null,null,null,null,null,null,null,null,"~"]
["SA13",2023,"LIM331",1203,46,"Service point - vacant land (Rands/month)",null,null,null,null,null,null,null,null,null,null,null,null,null,null,null,null,"~"]
["SA13",2023,"LIM331",1204,47,"Waste water - flat rate tariff (c/kl)",null,null,null,null,null,null,null,null,null,null,null,null,null,null,null,null,"~"]
["SA13",2023,"LIM331",1205,48,"Volumetric charge - Block 1 (c/kl)",null,null,null,null,null,null,null,null,null,null,null,null,null,null,null,null,"~"]
["SA13",2023,"LIM331",1206,49,"Volumetric charge - Block 2 (c/kl)",null,null,null,null,null,null,null,null,null,null,null,null,null,null,null,null,"~"]
["SA13",2023,"LIM331",1207,50,"Volumetric charge - Block 3 (c/kl)",null,null,null,null,null,null,null,null,null,null,null,null,null,null,null,null,"~"]
["SA13",2023,"LIM331",1208,51,"Volumetric charge - Block 4 (c/kl)",null,null,null,null,null,null,null,null,null,null,null,null,null,null,null,null,"~"]
["SA13",2023,"LIM331",1209,52,"Other",null,null,null,null,null,null,null,null,null,null,null,null,null,null,null,null,"~"]
["SA13",2023,"LIM331",null,null,null,null,null,null,null,null,null,null,null,null,null,null,null,null,null,null,null,"~"]
["SA13",2023,"LIM331",1300,53,"Electricity tariffs",null,null,null,null,null,null,null,null,null,null,null,null,null,null,null,null,"~"]
["SA13",2023,"LIM331",1301,54,"Domestic",null,null,null,null,null,null,null,null,null,null,null,null,null,null,null,null,"~"]
["SA13",2023,"LIM331",1302,55,"Basic charge/fixed fee (Rands/month)",null,null,null,null,null,null,null,null,null,null,null,null,null,null,null,null,"~"]
["SA13",2023,"LIM331",1303,56,"Service point - vacant land (Rands/month)",null,null,null,null,null,null,null,null,null,null,null,null,null,null,null,null,"~"]
["SA13",2023,"LIM331",1304,57,"FBE",null,null,null,null,null,null,null,null,null,null,null,null,null,null,null,null,"~"]
["SA13",2023,"LIM331",1305,58,"Life-line tariff - meter",null,null,null,null,null,null,null,null,null,null,null,null,null,null,null,null,"~"]
["SA13",2023,"LIM331",1306,59,"Life-line tariff - prepaid",null,null,null,null,null,null,null,null,null,null,null,null,null,null,null,null,"~"]
["SA13",2023,"LIM331",1307,60,"Flat rate tariff - meter (c/kwh)",null,null,null,null,null,null,null,null,null,null,null,null,null,null,null,null,"~"]
["SA13",2023,"LIM331",1308,61,"Flat rate tariff - prepaid(c/kwh)",null,null,null,null,null,null,null,null,null,null,null,null,null,null,null,null,"~"]
["SA13",2023,"LIM331",1309,62,"Meter - IBT Block 1 (c/kwh)",null,null,null,null,null,null,null,null,null,null,null,null,null,null,null,null,"~"]
["SA13",2023,"LIM331",1310,63,"Meter - IBT Block 2 (c/kwh)",null,null,null,null,null,null,null,null,null,null,null,null,null,null,null,null,"~"]
["SA13",2023,"LIM331",1311,64,"Meter - IBT Block 3 (c/kwh)",null,null,null,null,null,null,null,null,null,null,null,null,null,null,null,null,"~"]
["SA13",2023,"LIM331",1312,65,"Meter - IBT Block 4 (c/kwh)",null,null,null,null,null,null,null,null,null,null,null,null,null,null,null,null,"~"]
["SA13",2023,"LIM331",1313,66,"Meter - IBT Block 5 (c/kwh)",null,null,null,null,null,null,null,null,null,null,null,null,null,null,null,null,"~"]
["SA13",2023,"LIM331",1314,67,"Prepaid - IBT Block 1 (c/kwh)",null,null,null,null,null,null,null,null,null,null,null,null,null,null,null,null,"~"]
["SA13",2023,"LIM331",1315,68,"Prepaid - IBT Block 2 (c/kwh)",null,null,null,null,null,null,null,null,null,null,null,null,null,null,null,null,"~"]
["SA13",2023,"LIM331",1316,69,"Prepaid - IBT Block 3 (c/kwh)",null,null,null,null,null,null,null,null,null,null,null,null,null,null,null,null,"~"]
["SA13",2023,"LIM331",1317,70,"Prepaid - IBT Block 4 (c/kwh)",null,null,null,null,null,null,null,null,null,null,null,null,null,null,null,null,"~"]
["SA13",2023,"LIM331",1318,71,"Prepaid - IBT Block 5 (c/kwh)",null,null,null,null,null,null,null,null,null,null,null,null,null,null,null,null,"~"]
["SA13",2023,"LIM331",1319,72,"Other",null,null,null,null,null,null,null,null,null,null,null,null,null,null,null,null,"~"]
["SA13",2023,"LIM331",null,null,null,null,null,null,null,null,null,null,null,null,null,null,null,null,null,null,null,"~"]
["SA13",2023,"LIM331",1400,73,"Waste management tariffs",null,null,null,null,null,null,null,null,null,null,null,null,null,null,null,null,"~"]
["SA13",2023,"LIM331",1401,74,"Domestic",null,null,null,null,null,null,null,null,null,null,null,null,null,null,null,null,"~"]
["SA13",2023,"LIM331",1402,75,"Street cleaning charge",null,null,null,null,null,null,null,null,null,null,null,null,null,null,null,null,"~"]
["SA13",2023,"LIM331",1403,76,"Basic charge/fixed fee",null,null,null,null,null,null,null,null,null,null,null,null,null,null,null,null,"~"]
["SA13",2023,"LIM331",1404,77,"80l bin - once a week",null,null,null,null,null,null,null,null,null,null,null,null,null,null,null,null,"~"]
["SA13",2023,"LIM331",1405,78,"250l bin - once a week",null,null,null,null,null,null,null,null,null,null,null,null,null,null,null,null,"~"]
["SA14",2023,"LIM331",1000,1,"Monthly Account for Household - 'Middle Income Range'",null,null,null,null,null,null,null,null,null,null,null,null,null,null,null,null,"~"]
["SA14",2023,"LIM331",1001,2,"Rates and services charges:",null,null,null,null,null,null,null,null,null,null,null,null,null,null,null,null,"~"]
["SA14",2023,"LIM331",1002,3,"Property rates",null,null,null,null,null,null,null,null,null,null,null,null,null,null,null,null,"~"]
["SA14",2023,"LIM331",1003,4,"Electricity: Basic levy",null,null,null,null,null,null,null,null,null,null,null,null,null,null,null,null,"~"]
["SA14",2023,"LIM331",1004,5,"Electricity: Consumption",null,null,null,null,null,null,null,null,null,null,null,null,null,null,null,null,"~"]
["SA14",2023,"LIM331",1005,6,"Water: Basic levy",null,null,null,null,null,null,null,null,null,null,null,null,null,null,null,null,"~"]
["SA14",2023,"LIM331",1006,7,"Water: Consumption",null,null,null,null,null,null,null,null,null,null,null,null,null,null,null,null,"~"]
["SA14",2023,"LIM331",1007,8,"Sanitation",null,null,null,null,null,null,null,null,null,null,null,null,null,null,null,null,"~"]
["SA14",{"$f":"+MTREF","v":2023},{"$f":"LEFT(muni,(FIND(\" \",muni,1)-1))","v":"LIM331"},1008,9,"Refuse removal",null,null,null,null,null,null,null,null,null,null,null,null,null,null,null,null,"~"]
["SA14",2023,"LIM331",1009,10,"Other",null,null,null,null,null,null,null,null,null,null,null,null,null,null,null,null,"~"]
["SA14",2023,"LIM331",1090,11,"sub-total",null,null,null,null,null,null,null,null,null,null,null,null,null,null,null,null,"~"]
["SA14",2023,"LIM331",1091,12,"VAT on Services",null,null,null,null,null,null,null,null,null,null,null,null,null,null,null,null,"~"]
["SA14",2023,"LIM331",1095,13,"Total large household bill:",null,null,null,null,null,null,null,null,null,null,null,null,null,null,null,null,"~"]
["SA14",2023,"LIM331",1096,14,"% increase/-decrease",null,null,null,null,null,null,null,null,null,null,null,null,null,null,null,null,"~"]
["SA14",2023,"LIM331",null,null,null,null,null,null,null,null,null,null,null,null,null,null,null,null,null,null,null,"~"]
["SA14",2023,"LIM331",1100,15,"Monthly Account for Household - 'Affordable Range' ",null,null,null,null,null,null,null,null,null,null,null,null,null,null,null,null,"~"]
["SA14",2023,"LIM331",1101,16,"Rates and services charges:",null,null,null,null,null,null,null,null,null,null,null,null,null,null,null,null,"~"]
["SA14",2023,"LIM331",1102,17,"Property rates",null,null,null,null,null,null,null,null,null,null,null,null,null,null,null,null,"~"]
["SA14",2023,"LIM331",1103,18,"Electricity: Basic levy",null,null,null,null,null,null,null,null,null,null,null,null,null,null,null,null,"~"]
["SA14",2023,"LIM331",1110,19,"Electricity: Consumption",null,null,null,null,null,null,null,null,null,null,null,null,null,null,null,null,"~"]
["SA14",2023,"LIM331",1107,20,"Water: Basic levy",null,null,null,null,null,null,null,null,null,null,null,null,null,null,null,null,"~"]
["SA14",2023,"LIM331",1104,21,"Water: Consumption",null,null,null,null,null,null,null,null,null,null,null,null,null,null,null,null,"~"]
["SA14",2023,"LIM331",1105,22,"Sanitation",null,null,null,null,null,null,null,null,null,null,null,null,null,null,null,null,"~"]
["SA14",2023,"LIM331",1106,23,"Refuse removal",null,null,null,null,null,null,null,null,null,null,null,null,null,null,null,null,"~"]
["SA14",2023,"LIM331",1108,24,"Other",null,null,null,null,null,null,null,null,null,null,null,null,null,null,null,null,"~"]
["SA14",2023,"LIM331",1190,25,"sub-total",null,null,null,null,null,null,null,null,null,null,null,null,null,null,null,null,"~"]
["SA14",2023,"LIM331",1191,26,"VAT on Services",null,null,null,null,null,null,null,null,null,null,null,null,null,null,null,null,"~"]
["SA14",2023,"LIM331",1195,27,"Total small household bill:",null,null,null,null,null,null,null,null,null,null,null,null,null,null,null,null,"~"]
["SA14",2023,"LIM331",1196,28,"% increase/-decrease",null,null,null,null,null,null,null,null,null,null,null,null,null,null,null,null,"~"]
["SA14",2023,"LIM331",null,null,null,null,null,null,null,null,null,null,null,null,null,null,null,null,null,null,null,"~"]
["SA14",2023,"LIM331",1200,29,"Monthly Account for Household - 'Indigent' HH receiving FBS",null,null,null,null,null,null,null,null,null,null,null,null,null,null,null,null,"~"]
["SA14",2023,"LIM331",1201,30,"Rates and services charges:",null,null,null,null,null,null,null,null,null,null,null,null,null,null,null,null,"~"]
["SA14",2023,"LIM331",1202,31,"Property rates",null,null,null,null,null,null,null,null,null,null,null,null,null,null,null,null,"~"]
["SA14",2023,"LIM331",1203,32,"Electricity: Basic levy",null,null,null,null,null,null,null,null,null,null,null,null,null,null,null,null,"~"]
["SA14",2023,"LIM331",1207,33,"Electricity: Consumption",null,null,null,null,null,null,null,null,null,null,null,null,null,null,null,null,"~"]
["SA14",2023,"LIM331",1208,34,"Water: Basic levy",null,null,null,null,null,null,null,null,null,null,null,null,null,null,null,null,"~"]
["SA14",2023,"LIM331",1204,35,"Water: Consumption",null,null,null,null,null,null,null,null,null,null,null,null,null,null,null,null,"~"]
["SA14",2023,"LIM331",1205,36,"Sanitation",null,null,null,null,null,null,null,null,null,null,null,null,null,null,null,null,"~"]
["SA14",2023,"LIM331",1206,37,"Refuse removal",null,null,null,null,null,null,null,null,null,null,null,null,null,null,null,null,"~"]
["SA14",2023,"LIM331",1209,38,"Other",null,null,null,null,null,null,null,null,null,null,null,null,null,null,null,null,"~"]
["SA14",2023,"LIM331",1290,39,"sub-total",null,null,null,null,null,null,null,null,null,null,null,null,null,null,null,null,"~"]
["SA14",2023,"LIM331",1291,40,"VAT on Services",null,null,null,null,null,null,null,null,null,null,null,null,null,null,null,null,"~"]
["SA14",2023,"LIM331",1295,41,"Total small household bill:",null,null,null,null,null,null,null,null,null,null,null,null,null,null,null,null,"~"]
["SA14",2023,"LIM331",1296,42,"% increase/-decrease",null,null,null,null,null,null,null,null,null,null,null,null,null,null,null,null,"~"]
["SA22",2023,"LIM331",1000,1,"Councillors (Political Office Bearers plus Other)",null,null,null,null,null,null,null,null,null,null,null,null,null,null,null,null,"~"]
["SA22",2023,"LIM331",1001,2,"Basic Salaries and Wages",null,null,null,null,null,null,null,null,null,null,null,null,null,null,null,null,"~"]
["SA22",2023,"LIM331",1002,3,"Pension and UIF Contributions",null,null,null,null,null,null,null,null,null,null,null,null,null,null,null,null,"~"]
["SA22",2023,"LIM331",1003,4,"Medical Aid Contributions",null,null,null,null,null,null,null,null,null,null,null,null,null,null,null,null,"~"]
["SA22",2023,"LIM331",1004,5,"Motor Vehicle Allowance",null,null,null,null,null,null,null,null,null,null,null,null,null,null,null,null,"~"]
["SA22",2023,"LIM331",1005,6,"Cellphone Allowance",null,null,null,null,null,null,null,null,null,null,null,null,null,null,null,null,"~"]
["SA22",2023,"LIM331",1006,7,"Housing Allowances",null,null,null,null,null,null,null,null,null,null,null,null,null,null,null,null,"~"]
["SA22",2023,"LIM331",1007,8,"Other benefits and allowances",null,null,null,null,null,null,null,null,null,null,null,null,null,null,null,null,"~"]
["SA22",2023,"LIM331",1090,9,"Sub Total - Councillors",null,null,null,null,null,null,null,null,null,null,null,null,null,null,null,null,"~"]
["SA22",2023,"LIM331",1091,10,"% increase",null,null,null,null,null,null,null,null,null,null,null,null,null,null,null,null,"~"]
["SA22",2023,"LIM331",null,null,null,null,null,null,null,null,null,null,null,null,null,null,null,null,null,null,null,"~"]
["SA22",2023,"LIM331",1100,11,"Senior Managers of the Municipality",null,null,null,null,null,null,null,null,null,null,null,null,null,null,null,null,"~"]
["SA22",2023,"LIM331",1101,12,"Basic Salaries and Wages",null,null,null,null,null,null,null,null,null,null,null,null,null,null,null,null,"~"]
["SA22",2023,"LIM331",1102,13,"Pension and UIF Contributions",null,null,null,null,null,null,null,null,null,null,null,null,null,null,null,null,"~"]
["SA22",2023,"LIM331",1103,14,"Medical Aid Contributions",null,null,null,null,null,null,null,null,null,null,null,null,null,null,null,null,"~"]
["SA22",2023,"LIM331",1110,15,"Overtime",null,null,null,null,null,null,null,null,null,null,null,null,null,null,null,null,"~"]
["SA22",2023,"LIM331",1107,16,"Performance Bonus",null,null,null,null,null,null,null,null,null,null,null,null,null,null,null,null,"~"]
["SA22",2023,"LIM331",1104,17,"Motor Vehicle Allowance",null,null,null,null,null,null,null,null,null,null,null,null,null,null,null,null,"~"]
["SA22",2023,"LIM331",1105,18,"Cellphone Allowance",null,null,null,null,null,null,null,null,null,null,null,null,null,null,null,null,"~"]
["SA22",2023,"LIM331",1106,19,"Housing Allowances",null,null,null,null,null,null,null,null,null,null,null,null,null,null,null,null,"~"]
["SA22",2023,"LIM331",1108,20,"Other benefits and allowances",null,null,null,null,null,null,null,null,null,null,null,null,null,null,null,null,"~"]
["SA22",2023,"LIM331",1111,21,"Payments in lieu of leave",null,null,null,null,null,null,null,null,null,null,null,null,null,null,null,null,"~"]
["SA22",2023,"LIM331",1112,22,"Long service awards",null,null,null,null,null,null,null,null,null,null,null,null,null,null,null,null,"~"]
["SA22",2023,"LIM331",1113,23,"Post-retirement benefit obligations",null,null,null,null,null,null,null,null,null,null,null,null,null,null,null,null,"~"]
["SA22",2023,"LIM331",1190,24,"Sub Total - Senior Managers of Municipality",null,null,null,null,null,null,null,null,null,null,null,null,null,null,null,null,"~"]
["SA22",2023,"LIM331",1191,25,"% increase",null,null,null,null,null,null,null,null,null,null,null,null,null,null,null,null,"~"]
["SA22",2023,"LIM331",null,null,null,null,null,null,null,null,null,null,null,null,null,null,null,null,null,null,null,"~"]
["SA22",2023,"LIM331",1200,26,"Other Municipal Staff",null,null,null,null,null,null,null,null,null,null,null,null,null,null,null,null,"~"]
["SA22",{"$f":"+MTREF","v":2023},{"$f":"LEFT(muni,(FIND(\" \",muni,1)-1))","v":"LIM331"},1201,27,"Basic Salaries and Wages",null,null,null,null,null,null,null,null,null,null,null,null,null,null,null,null,"~"]
["SA22",2023,"LIM331",1202,28,"Pension and UIF Contributions",null,null,null,null,null,null,null,null,null,null,null,null,null,null,null,null,"~"]
["SA22",2023,"LIM331",1203,29,"Medical Aid Contributions",null,null,null,null,null,null,null,null,null,null,null,null,null,null,null,null,"~"]
["SA22",2023,"LIM331",1207,30,"Overtime",null,null,null,null,null,null,null,null,null,null,null,null,null,null,null,null,"~"]
["SA22",2023,"LIM331",1208,31,"Performance Bonus",null,null,null,null,null,null,null,null,null,null,null,null,null,null,null,null,"~"]
["SA22",2023,"LIM331",1204,32,"Motor Vehicle Allowance",null,null,null,null,null,null,null,null,null,null,null,null,null,null,null,null,"~"]
["SA22",2023,"LIM331",1205,33,"Cellphone Allowance",null,null,null,null,null,null,null,null,null,null,null,null,null,null,null,null,"~"]
["SA22",2023,"LIM331",1206,34,"Housing Allowances",null,null,null,null,null,null,null,null,null,null,null,null,null,null,null,null,"~"]
["SA22",2023,"LIM331",1209,35,"Other benefits and allowances",null,null,null,null,null,null,null,null,null,null,null,null,null,null,null,null,"~"]
["SA22",2023,"LIM331",1211,36,"Payments in lieu of leave",null,null,null,null,null,null,null,null,null,null,null,null,null,null,null,null,"~"]
["SA22",2023,"LIM331",1212,37,"Long service awards",null,null,null,null,null,null,null,null,null,null,null,null,null,null,null,null,"~"]
["SA22",2023,"LIM331",1213,38,"Post-retirement benefit obligations",null,null,null,null,null,null,null,null,null,null,null,null,null,null,null,null,"~"]
["SA22",2023,"LIM331",1290,39,"Sub Total - Other Municipal Staff",null,null,null,null,null,null,null,null,null,null,null,null,null,null,null,null,"~"]
["SA22",2023,"LIM331",1291,40,"% increase",null,null,null,null,null,null,null,null,null,null,null,null,null,null,null,null,"~"]
["SA22",2023,"LIM331",null,null,null,null,null,null,null,null,null,null,null,null,null,null,null,null,null,null,null,"~"]
["SA22",2023,"LIM331",1295,41,"Total Parent Municipality",null,null,null,null,null,null,null,null,null,null,null,null,null,null,null,null,"~"]
["SA22",2023,"LIM331",1297,42,"% increase",null,null,null,null,null,null,null,null,null,null,null,null,null,null,null,null,"~"]
["SA22",2023,"LIM331",null,null,null,null,null,null,null,null,null,null,null,null,null,null,null,null,null,null,null,"~"]
["SA22",2023,"LIM331",2000,43,"Board Members of Entities",null,null,null,null,null,null,null,null,null,null,null,null,null,null,null,null,"~"]
["SA22",2023,"LIM331",2001,44,"Basic Salaries and Wages",null,null,null,null,null,null,null,null,null,null,null,null,null,null,null,null,"~"]
["SA22",2023,"LIM331",2002,45,"Pension and UIF Contributions",null,null,null,null,null,null,null,null,null,null,null,null,null,null,null,null,"~"]
["SA22",2023,"LIM331",2003,46,"Medical Aid Contributions",null,null,null,null,null,null,null,null,null,null,null,null,null,null,null,null,"~"]
["SA22",2023,"LIM331",2010,47,"Overtime",null,null,null,null,null,null,null,null,null,null,null,null,null,null,null,null,"~"]
["SA22",2023,"LIM331",2011,48,"Performance Bonus",null,null,null,null,null,null,null,null,null,null,null,null,null,null,null,null,"~"]
["SA22",2023,"LIM331",2004,49,"Motor Vehicle Allowance",null,null,null,null,null,null,null,null,null,null,null,null,null,null,null,null,"~"]
["SA22",2023,"LIM331",2005,50,"Cellphone Allowance",null,null,null,null,null,null,null,null,null,null,null,null,null,null,null,null,"~"]
["SA22",2023,"LIM331",2006,51,"Housing Allowances",null,null,null,null,null,null,null,null,null,null,null,null,null,null,null,null,"~"]
["SA22",2023,"LIM331",2008,52,"Other benefits and allowances",null,null,null,null,null,null,null,null,null,null,null,null,null,null,null,null,"~"]
["SA22",2023,"LIM331",2007,53,"Board Fees",null,null,null,null,null,null,null,null,null,null,null,null,null,null,null,null,"~"]
["SA22",2023,"LIM331",2012,54,"Payments in lieu of leave",null,null,null,null,null,null,null,null,null,null,null,null,null,null,null,null,"~"]
["SA22",2023,"LIM331",2013,55,"Long service awards",null,null,null,null,null,null,null,null,null,null,null,null,null,null,null,null,"~"]
["SA22",2023,"LIM331",2014,56,"Post-retirement benefit obligations",null,null,null,null,null,null,null,null,null,null,null,null,null,null,null,null,"~"]
["SA22",2023,"LIM331",2090,57,"Sub Total - Board Members of Entities",null,null,null,null,null,null,null,null,null,null,null,null,null,null,null,null,"~"]
["SA22",2023,"LIM331",2091,58,"% increase",null,null,null,null,null,null,null,null,null,null,null,null,null,null,null,null,"~"]
["SA22",2023,"LIM331",null,null,null,null,null,null,null,null,null,null,null,null,null,null,null,null,null,null,null,"~"]
["SA22",2023,"LIM331",2100,59,"Senior Managers of Entities",null,null,null,null,null,null,null,null,null,null,null,null,null,null,null,null,"~"]
["SA22",2023,"LIM331",2101,60,"Basic Salaries and Wages",null,null,null,null,null,null,null,null,null,null,null,null,null,null,null,null,"~"]
["SA22",2023,"LIM331",2102,61,"Pension and UIF Contributions",null,null,null,null,null,null,null,null,null,null,null,null,null,null,null,null,"~"]
["SA22",2023,"LIM331",2103,62,"Medical Aid Contributions",null,null,null,null,null,null,null,null,null,null,null,null,null,null,null,null,"~"]
["SA22",2023,"LIM331",2110,63,"Overtime",null,null,null,null,null,null,null,null,null,null,null,null,null,null,null,null,"~"]
["SA22",2023,"LIM331",2107,64,"Performance Bonus",null,null,null,null,null,null,null,null,null,null,null,null,null,null,null,null,"~"]
["SA22",2023,"LIM331",2104,65,"Motor Vehicle Allowance",null,null,null,null,null,null,null,null,null,null,null,null,null,null,null,null,"~"]
["SA22",2023,"LIM331",2105,66,"Cellphone Allowance",null,null,null,null,null,null,null,null,null,null,null,null,null,null,null,null,"~"]
["SA22",2023,"LIM331",2106,67,"Housing Allowances",null,null,null,null,null,null,null,null,null,null,null,null,null,null,null,null,"~"]
["SA22",2023,"LIM331",2108,68,"Other benefits and allowances",null,null,null,null,null,null,null,null,null,null,null,null,null,null,null,null,"~"]
["SA22",2023,"LIM331",2111,69,"Payments in lieu of leave",null,null,null,null,null,null,null,null,null,null,null,null,null,null,null,null,"~"]
["SA22",2023,"LIM331",2112,70,"Long service awards",null,null,null,null,null,null,null,null,null,null,null,null,null,null,null,null,"~"]
["SA22",2023,"LIM331",2113,71,"Post-retirement benefit obligations",null,null,null,null,null,null,null,null,null,null,null,null,null,null,null,null,"~"]
["SA22",2023,"LIM331",2190,72,"Sub Total - Senior Managers of Entities",null,null,null,null,null,null,null,null,null,null,null,null,null,null,null,null,"~"]
["SA22",2023,"LIM331",2191,73,"% increase",null,null,null,null,null,null,null,null,null,null,null,null,null,null,null,null,"~"]
["SA22",2023,"LIM331",null,null,null,null,null,null,null,null,null,null,null,null,null,null,null,null,null,null,null,"~"]
["SA22",2023,"LIM331",2200,74,"Other Staff of Entities",null,null,null,null,null,null,null,null,null,null,null,null,null,null,null,null,"~"]
["SA22",2023,"LIM331",2201,75,"Basic Salaries and Wages",null,null,null,null,null,null,null,null,null,null,null,null,null,null,null,null,"~"]
["SA22",2023,"LIM331",2202,76,"Pension and UIF Contributions",null,null,null,null,null,null,null,null,null,null,null,null,null,null,null,null,"~"]
["SA22",2023,"LIM331",2203,77,"Medical Aid Contributions",null,null,null,null,null,null,null,null,null,null,null,null,null,null,null,null,"~"]
["SA22",2023,"LIM331",2207,78,"Overtime",null,null,null,null,null,null,null,null,null,null,null,null,null,null,null,null,"~"]
["SA22",2023,"LIM331",2208,79,"Performance Bonus",null,null,null,null,null,null,null,null,null,null,null,null,null,null,null,null,"~"]
["SA22",2023,"LIM331",2204,80,"Motor Vehicle Allowance",null,null,null,null,null,null,null,null,null,null,null,null,null,null,null,null,"~"]
["SA22",2023,"LIM331",2205,81,"Cellphone Allowance",null,null,null,null,null,null,null,null,null,null,null,null,null,null,null,null,"~"]
["SA22",2023,"LIM331",2206,82,"Housing Allowances",null,null,null,null,null,null,null,null,null,null,null,null,null,null,null,null,"~"]
["SA22",2023,"LIM331",2209,83,"Other benefits and allowances",null,null,null,null,null,null,null,null,null,null,null,null,null,null,null,null,"~"]
["SA22",2023,"LIM331",2211,84,"Payments in lieu of leave",null,null,null,null,null,null,null,null,null,null,null,null,null,null,null,null,"~"]
["SA22",2023,"LIM331",2212,85,"Long service awards",null,null,null,null,null,null,null,null,null,null,null,null,null,null,null,null,"~"]
["SA22",2023,"LIM331",2213,86,"Post-retirement benefit obligations",null,null,null,null,null,null,null,null,null,null,null,null,null,null,null,null,"~"]
["SA22",{"$f":"+MTREF","v":2023},{"$f":"LEFT(muni,(FIND(\" \",muni,1)-1))","v":"LIM331"},2290,87,"Sub Total - Other Staff of Entities",null,null,null,null,null,null,null,null,null,null,null,null,null,null,null,null,"~"]
["SA22",2023,"LIM331",2291,89,"% increase",null,null,null,null,null,null,null,null,null,null,null,null,null,null,null,null,"~"]
["SA22",2023,"LIM331",null,null,null,null,null,null,null,null,null,null,null,null,null,null,null,null,null,null,null,"~"]
["SA22",2023,"LIM331",2295,90,"Total Municipal Entities",null,null,null,null,null,null,null,null,null,null,null,null,null,null,null,null,"~"]
["SA22",2023,"LIM331",null,null,null,null,null,null,null,null,null,null,null,null,null,null,null,null,null,null,null,"~"]
["SA22",2023,"LIM331",2296,91,"TOTAL SALARY, ALLOWANCES & BENEFITS",null,null,null,null,null,null,null,null,null,null,null,null,null,null,null,null,"~"]
["SA22",2023,"LIM331",2297,92,"% increase",null,null,null,null,null,null,null,null,null,null,null,null,null,null,null,null,"~"]
["SA22",2023,"LIM331",2298,93,"TOTAL MANAGERS AND STAFF",null,null,null,null,null,null,null,null,null,null,null,null,null,null,null,null,"~"]
["SA23",2023,"LIM331",1000,1,null,null,null,null,null,null,null,null,null,null,null,null,null,null,null,null,null,"~"]
["SA23",2023,"LIM331",1001,2,null,null,null,null,null,null,null,null,null,null,null,null,null,null,null,null,null,"~"]
["SA23",2023,"LIM331",1002,3,null,null,null,null,null,null,null,null,null,null,null,null,null,null,null,null,null,"~"]
["SA23",2023,"LIM331",1003,4,null,null,null,null,null,null,null,null,null,null,null,null,null,null,null,null,null,"~"]
["SA23",2023,"LIM331",1004,5,null,null,null,null,null,null,null,null,null,null,null,null,null,null,null,null,null,"~"]
["SA23",2023,"LIM331",1005,6,null,null,null,null,null,null,null,null,null,null,null,null,null,null,null,null,null,"~"]
["SA23",2023,"LIM331",1006,7,null,null,null,null,null,null,null,null,null,null,null,null,null,null,null,null,null,"~"]
["SA23",2023,"LIM331",1090,8,null,null,null,null,null,null,null,null,null,null,null,null,null,null,null,null,null,"~"]
["SA23",2023,"LIM331",null,null,null,null,null,null,null,null,null,null,null,null,null,null,null,null,null,null,null,"~"]
["SA23",2023,"LIM331",null,null,null,null,null,null,null,null,null,null,null,null,null,null,null,null,null,null,null,"~"]
["SA23",2023,"LIM331",null,null,null,null,null,null,null,null,null,null,null,null,null,null,null,null,null,null,null,"~"]
["SA23",2023,"LIM331",null,null,null,null,null,null,null,null,null,null,null,null,null,null,null,null,null,null,null,"~"]
["SA23",2023,"LIM331",null,null,null,null,null,null,null,null,null,null,null,null,null,null,null,null,null,null,null,"~"]
["SA23",2023,"LIM331",null,null,null,null,null,null,null,null,null,null,null,null,null,null,null,null,null,null,null,"~"]
["SA23",2023,"LIM331",null,null,null,null,null,null,null,null,null,null,null,null,null,null,null,null,null,null,null,"~"]
["SA23",2023,"LIM331",null,null,null,null,null,null,null,null,null,null,null,null,null,null,null,null,null,null,null,"~"]
["SA23",2023,"LIM331",null,null,null,null,null,null,null,null,null,null,null,null,null,null,null,null,null,null,null,"~"]
["SA23",2023,"LIM331",null,null,null,null,null,null,null,null,null,null,null,null,null,null,null,null,null,null,null,"~"]
["SA23",2023,"LIM331",null,null,null,null,null,null,null,null,null,null,null,null,null,null,null,null,null,null,null,"~"]
["SA23",2023,"LIM331",null,null,null,null,null,null,null,null,null,null,null,null,null,null,null,null,null,null,null,"~"]
["SA23",2023,"LIM331",null,null,null,null,null,null,null,null,null,null,null,null,null,null,null,null,null,null,null,"~"]
["SA23",2023,"LIM331",null,null,null,null,null,null,null,null,null,null,null,null,null,null,null,null,null,null,null,"~"]
["SA23",2023,"LIM331",null,null,null,null,null,null,null,null,null,null,null,null,null,null,null,null,null,null,null,"~"]
["SA23",2023,"LIM331",null,null,null,null,null,null,null,null,null,null,null,null,null,null,null,null,null,null,null,"~"]
["SA23",2023,"LIM331",null,null,null,null,null,null,null,null,null,null,null,null,null,null,null,null,null,null,null,"~"]
["SA23",2023,"LIM331",null,null,null,null,null,null,null,null,null,null,null,null,null,null,null,null,null,null,null,"~"]
["SA23",2023,"LIM331",null,null,null,null,null,null,null,null,null,null,null,null,null,null,null,null,null,null,null,"~"]
["SA23",2023,"LIM331",null,null,null,null,null,null,null,null,null,null,null,null,null,null,null,null,null,null,null,"~"]
["SA23",2023,"LIM331",null,null,null,null,null,null,null,null,null,null,null,null,null,null,null,null,null,null,null,"~"]
["SA23",2023,"LIM331",null,null,null,null,null,null,null,null,null,null,null,null,null,null,null,null,null,null,null,"~"]
["SA23",2023,"LIM331",null,null,null,null,null,null,null,null,null,null,null,null,null,null,null,null,null,null,null,"~"]
["SA23",2023,"LIM331",null,null,null,null,null,null,null,null,null,null,null,null,null,null,null,null,null,null,null,"~"]
["SA23",2023,"LIM331",null,null,null,null,null,null,null,null,null,null,null,null,null,null,null,null,null,null,null,"~"]
["SA23",2023,"LIM331",null,null,null,null,null,null,null,null,null,null,null,null,null,null,null,null,null,null,null,"~"]
["SA23",2023,"LIM331",null,null,null,null,null,null,null,null,null,null,null,null,null,null,null,null,null,null,null,"~"]
["SA23",2023,"LIM331",null,null,null,null,null,null,null,null,null,null,null,null,null,null,null,null,null,null,null,"~"]
["SA23",2023,"LIM331",null,null,null,null,null,null,null,null,null,null,null,null,null,null,null,null,null,null,null,"~"]
["SA23",2023,"LIM331",null,null,null,null,null,null,null,null,null,null,null,null,null,null,null,null,null,null,null,"~"]
["SA23",2023,"LIM331",null,null,null,null,null,null,null,null,null,null,null,null,null,null,null,null,null,null,null,"~"]
["SA23",2023,"LIM331",null,null,null,null,null,null,null,null,null,null,null,null,null,null,null,null,null,null,null,"~"]
["SA23",2023,"LIM331",null,null,null,null,null,null,null,null,null,null,null,null,null,null,null,null,null,null,null,"~"]
["SA23",2023,"LIM331",null,null,null,null,null,null,null,null,null,null,null,null,null,null,null,null,null,null,null,"~"]
["SA23",2023,"LIM331",null,null,null,null,null,null,null,null,null,null,null,null,null,null,null,null,null,null,null,"~"]
["SA23",2023,"LIM331",null,null,null,null,null,null,null,null,null,null,null,null,null,null,null,null,null,null,null,"~"]
["SA23",2023,"LIM331",null,null,null,null,null,null,null,null,null,null,null,null,null,null,null,null,null,null,null,"~"]
["SA23",2023,"LIM331",null,null,null,null,null,null,null,null,null,null,null,null,null,null,null,null,null,null,null,"~"]
["SA23",2023,"LIM331",null,null,null,null,null,null,null,null,null,null,null,null,null,null,null,null,null,null,null,"~"]
["SA23",2023,"LIM331",null,null,null,null,null,null,null,null,null,null,null,null,null,null,null,null,null,null,null,"~"]
["SA23",2023,"LIM331",null,null,null,null,null,null,null,null,null,null,null,null,null,null,null,null,null,null,null,"~"]
["SA23",2023,"LIM331",null,null,null,null,null,null,null,null,null,null,null,null,null,null,null,null,null,null,null,"~"]
["SA23",2023,"LIM331",null,null,null,null,null,null,null,null,null,null,null,null,null,null,null,null,null,null,null,"~"]
["SA23",2023,"LIM331",null,null,null,null,null,null,null,null,null,null,null,null,null,null,null,null,null,null,null,"~"]
["SA23",2023,"LIM331",null,null,null,null,null,null,null,null,null,null,null,null,null,null,null,null,null,null,null,"~"]
["SA23",2023,"LIM331",null,null,null,null,null,null,null,null,null,null,null,null,null,null,null,null,null,null,null,"~"]
["SA23",2023,"LIM331",null,null,null,null,null,null,null,null,null,null,null,null,null,null,null,null,null,null,null,"~"]
["SA23",2023,"LIM331",null,null,null,null,null,null,null,null,null,null,null,null,null,null,null,null,null,null,null,"~"]
["SA23",{"$f":"+MTREF","v":2023},{"$f":"LEFT(muni,(FIND(\" \",muni,1)-1))","v":"LIM331"},null,null,null,null,null,null,null,null,null,null,null,null,null,null,null,null,null,null,null,"~"]
["SA23",2023,"LIM331",null,null,null,null,null,null,null,null,null,null,null,null,null,null,null,null,null,null,null,"~"]
["SA23",2023,"LIM331",null,null,null,null,null,null,null,null,null,null,null,null,null,null,null,null,null,null,null,"~"]
["SA23",2023,"LIM331",null,null,null,null,null,null,null,null,null,null,null,null,null,null,null,null,null,null,null,"~"]
["SA23",2023,"LIM331",null,null,null,null,null,null,null,null,null,null,null,null,null,null,null,null,null,null,null,"~"]
["SA23",2023,"LIM331",null,null,null,null,null,null,null,null,null,null,null,null,null,null,null,null,null,null,null,"~"]
["SA23",2023,"LIM331",null,null,null,null,null,null,null,null,null,null,null,null,null,null,null,null,null,null,null,"~"]
["SA23",2023,"LIM331",null,null,null,null,null,null,null,null,null,null,null,null,null,null,null,null,null,null,null,"~"]
["SA23",2023,"LIM331",null,null,null,null,null,null,null,null,null,null,null,null,null,null,null,null,null,null,null,"~"]
["SA23",2023,"LIM331",null,null,null,null,null,null,null,null,null,null,null,null,null,null,null,null,null,null,null,"~"]
["SA23",2023,"LIM331",null,null,null,null,null,null,null,null,null,null,null,null,null,null,null,null,null,null,null,"~"]
["SA23",2023,"LIM331",null,null,null,null,null,null,null,null,null,null,null,null,null,null,null,null,null,null,null,"~"]
["SA23",2023,"LIM331",null,null,null,null,null,null,null,null,null,null,null,null,null,null,null,null,null,null,null,"~"]
["SA23",2023,"LIM331",null,null,null,null,null,null,null,null,null,null,null,null,null,null,null,null,null,null,null,"~"]
["SA23",2023,"LIM331",null,null,null,null,null,null,null,null,null,null,null,null,null,null,null,null,null,null,null,"~"]
["SA23",2023,"LIM331",null,null,null,null,null,null,null,null,null,null,null,null,null,null,null,null,null,null,null,"~"]
["SA23",2023,"LIM331",null,null,null,null,null,null,null,null,null,null,null,null,null,null,null,null,null,null,null,"~"]
["SA23",2023,"LIM331",null,null,null,null,null,null,null,null,null,null,null,null,null,null,null,null,null,null,null,"~"]
["SA23",2023,"LIM331",null,null,null,null,null,null,null,null,null,null,null,null,null,null,null,null,null,null,null,"~"]
["SA23",2023,"LIM331",null,null,null,null,null,null,null,null,null,null,null,null,null,null,null,null,null,null,null,"~"]
["SA23",2023,"LIM331",null,null,null,null,null,null,null,null,null,null,null,null,null,null,null,null,null,null,null,"~"]
["SA23",2023,"LIM331",null,null,null,null,null,null,null,null,null,null,null,null,null,null,null,null,null,null,null,"~"]
["SA23",2023,"LIM331",null,null,null,null,null,null,null,null,null,null,null,null,null,null,null,null,null,null,null,"~"]
["SA23",2023,"LIM331",null,null,null,null,null,null,null,null,null,null,null,null,null,null,null,null,null,null,null,"~"]
["SA23",2023,"LIM331",null,null,null,null,null,null,null,null,null,null,null,null,null,null,null,null,null,null,null,"~"]
["SA23",2023,"LIM331",null,null,null,null,null,null,null,null,null,null,null,null,null,null,null,null,null,null,null,"~"]
["SA23",2023,"LIM331",null,null,null,null,null,null,null,null,null,null,null,null,null,null,null,null,null,null,null,"~"]
["SA23",2023,"LIM331",null,null,null,null,null,null,null,null,null,null,null,null,null,null,null,null,null,null,null,"~"]
["SA23",2023,"LIM331",null,null,null,null,null,null,null,null,null,null,null,null,null,null,null,null,null,null,null,"~"]
["SA23",2023,"LIM331",null,null,null,null,null,null,null,null,null,null,null,null,null,null,null,null,null,null,null,"~"]
["SA23",2023,"LIM331",null,null,null,null,null,null,null,null,null,null,null,null,null,null,null,null,null,null,null,"~"]
["SA23",2023,"LIM331",null,null,null,null,null,null,null,null,null,null,null,null,null,null,null,null,null,null,null,"~"]
["SA23",2023,"LIM331",null,null,null,null,null,null,null,null,null,null,null,null,null,null,null,null,null,null,null,"~"]
["SA23",2023,"LIM331",null,null,null,null,null,null,null,null,null,null,null,null,null,null,null,null,null,null,null,"~"]
["SA23",2023,"LIM331",null,null,null,null,null,null,null,null,null,null,null,null,null,null,null,null,null,null,null,"~"]
["SA23",2023,"LIM331",null,null,null,null,null,null,null,null,null,null,null,null,null,null,null,null,null,null,null,"~"]
["SA23",2023,"LIM331",null,null,null,null,null,null,null,null,null,null,null,null,null,null,null,null,null,null,null,"~"]
["SA23",2023,"LIM331",null,null,null,null,null,null,null,null,null,null,null,null,null,null,null,null,null,null,null,"~"]
["SA23",2023,"LIM331",null,null,null,null,null,null,null,null,null,null,null,null,null,null,null,null,null,null,null,"~"]
["SA23",2023,"LIM331",null,null,null,null,null,null,null,null,null,null,null,null,null,null,null,null,null,null,null,"~"]
["SA23",2023,"LIM331",null,null,null,null,null,null,null,null,null,null,null,null,null,null,null,null,null,null,null,"~"]
["SA23",2023,"LIM331",null,null,null,null,null,null,null,null,null,null,null,null,null,null,null,null,null,null,null,"~"]
["SA23",2023,"LIM331",null,null,null,null,null,null,null,null,null,null,null,null,null,null,null,null,null,null,null,"~"]
["SA24",2023,"LIM331",1000,1,"Municipal Council and Boards of Municipal Entities",null,null,null,null,null,null,null,null,null,null,null,null,null,null,null,null,"~"]
["SA24",2023,"LIM331",1001,2,"Councillors (Political Office Bearers and Other Councillors)",null,null,null,null,null,null,null,null,null,null,null,null,null,null,null,null,"~"]
["SA24",2023,"LIM331",1002,3,"Board Members of municipal entities",null,null,null,null,null,null,null,null,null,null,null,null,null,null,null,null,"~"]
["SA24",2023,"LIM331",1100,4,"Municipal employees",null,null,null,null,null,null,null,null,null,null,null,null,null,null,null,null,"~"]
["SA24",2023,"LIM331",1101,5,"Municipal Manager and Senior Managers",null,null,null,null,null,null,null,null,null,null,null,null,null,null,null,null,"~"]
["SA24",2023,"LIM331",1102,6,"Other Managers",null,null,null,null,null,null,null,null,null,null,null,null,null,null,null,null,"~"]
["SA24",2023,"LIM331",1103,7,"Professionals",null,null,null,null,null,null,null,null,null,null,null,null,null,null,null,null,"~"]
["SA24",2023,"LIM331",1104,8,"Finance",null,null,null,null,null,null,null,null,null,null,null,null,null,null,null,null,"~"]
["SA24",2023,"LIM331",1105,9,"Spatial/town planning",null,null,null,null,null,null,null,null,null,null,null,null,null,null,null,null,"~"]
["SA24",2023,"LIM331",1106,10,"Information Technology",null,null,null,null,null,null,null,null,null,null,null,null,null,null,null,null,"~"]
["SA24",2023,"LIM331",1107,11,"Roads",null,null,null,null,null,null,null,null,null,null,null,null,null,null,null,null,"~"]
["SA24",2023,"LIM331",1108,12,"Electricity",null,null,null,null,null,null,null,null,null,null,null,null,null,null,null,null,"~"]
["SA24",2023,"LIM331",1109,13,"Water",null,null,null,null,null,null,null,null,null,null,null,null,null,null,null,null,"~"]
["SA24",2023,"LIM331",1110,14,"Sanitation",null,null,null,null,null,null,null,null,null,null,null,null,null,null,null,null,"~"]
["SA24",2023,"LIM331",1111,15,"Refuse",null,null,null,null,null,null,null,null,null,null,null,null,null,null,null,null,"~"]
["SA24",2023,"LIM331",1112,16,"Other",null,null,null,null,null,null,null,null,null,null,null,null,null,null,null,null,"~"]
["SA24",2023,"LIM331",1113,17,"Technicians",null,null,null,null,null,null,null,null,null,null,null,null,null,null,null,null,"~"]
["SA24",2023,"LIM331",1114,18,"Finance",null,null,null,null,null,null,null,null,null,null,null,null,null,null,null,null,"~"]
["SA24",2023,"LIM331",1115,19,"Spatial/town planning",null,null,null,null,null,null,null,null,null,null,null,null,null,null,null,null,"~"]
["SA24",2023,"LIM331",1116,20,"Information Technology",null,null,null,null,null,null,null,null,null,null,null,null,null,null,null,null,"~"]
["SA24",2023,"LIM331",1117,21,"Roads",null,null,null,null,null,null,null,null,null,null,null,null,null,null,null,null,"~"]
["SA24",{"$f":"+MTREF","v":2023},{"$f":"LEFT(muni,(FIND(\" \",muni,1)-1))","v":"LIM331"},1118,22,"Electricity",null,null,null,null,null,null,null,null,null,null,null,null,null,null,null,null,"~"]
["SA24",2023,"LIM331",1119,23,"Water",null,null,null,null,null,null,null,null,null,null,null,null,null,null,null,null,"~"]
["SA24",2023,"LIM331",1120,24,"Sanitation",null,null,null,null,null,null,null,null,null,null,null,null,null,null,null,null,"~"]
["SA24",2023,"LIM331",1121,25,"Refuse",null,null,null,null,null,null,null,null,null,null,null,null,null,null,null,null,"~"]
["SA24",2023,"LIM331",1122,26,"Other",null,null,null,null,null,null,null,null,null,null,null,null,null,null,null,null,"~"]
["SA24",2023,"LIM331",1123,27,"Clerks (Clerical and administrative)",null,null,null,null,null,null,null,null,null,null,null,null,null,null,null,null,"~"]
["SA24",2023,"LIM331",1124,28,"Service and sales workers",null,null,null,null,null,null,null,null,null,null,null,null,null,null,null,null,"~"]
["SA24",2023,"LIM331",1125,29,"Skilled agricultural and fishery workers",null,null,null,null,null,null,null,null,null,null,null,null,null,null,null,null,"~"]
["SA24",2023,"LIM331",1126,30,"Craft and related trades",null,null,null,null,null,null,null,null,null,null,null,null,null,null,null,null,"~"]
["SA24",2023,"LIM331",1127,31,"Plant and Machine Operators",null,null,null,null,null,null,null,null,null,null,null,null,null,null,null,null,"~"]
["SA24",2023,"LIM331",1128,32,"Elementary Occupations",null,null,null,null,null,null,null,null,null,null,null,null,null,null,null,null,"~"]
["SA24",2023,"LIM331",1190,33,"TOTAL PERSONNEL NUMBERS",null,null,null,null,null,null,null,null,null,null,null,null,null,null,null,null,"~"]
["SA24",2023,"LIM331",1191,34,"% increase",null,null,null,null,null,null,null,null,null,null,null,null,null,null,null,null,"~"]
["SA24",2023,"LIM331",null,null,null,null,null,null,null,null,null,null,null,null,null,null,null,null,null,null,null,"~"]
["SA24",2023,"LIM331",1200,35,"Total municipal employees headcount",null,null,null,null,null,null,null,null,null,null,null,null,null,null,null,null,"~"]
["SA24",2023,"LIM331",1201,36,"Finance personnel headcount",null,null,null,null,null,null,null,null,null,null,null,null,null,null,null,null,"~"]
["SA24",2023,"LIM331",1202,37,"Human Resources personnel headcount",null,null,null,null,null,null,null,null,null,null,null,null,null,null,null,null,"~"]
["OTHER",2023,"LIM331","1001",1,"Unspent conditional transfers",null,null,null,null,null,null,null,null,null,null,null,null,null,null,null,null,"~"]
["OTHER",2023,"LIM331","1002",2,"Unspent borrowing",null,null,null,null,null,null,null,null,null,null,null,null,null,null,null,null,"~"]
["OTHER",2023,"LIM331","1003",3,"Statutory requirements",null,null,null,null,null,null,null,null,null,null,null,null,null,null,null,null,"~"]
["OTHER",2023,"LIM331","1005",5,"Other provisions",null,null,null,null,null,null,null,null,null,null,null,null,null,null,null,null,"~"]
["OTHER",2023,"LIM331","1006",6,"Long term investments committed",null,null,null,null,null,null,null,null,null,null,null,null,null,null,null,null,"~"]
["OTHER",2023,"LIM331","1007",7,"Reserves to be backed by cash/investments",null,null,null,null,null,null,null,null,null,null,null,null,null,null,null,null,"~"]
["OTHER",2023,"LIM331","1008",8,"Estimate of other debtors > 90 days",null,null,null,null,null,null,null,null,null,null,null,null,null,null,null,null,"~"]
["OTHER",2023,"LIM331",2001,9,"Contributions recognised - capital",null,null,null,null,null,null,null,null,null,null,null,null,null,null,null,null,"~"]
["OTHER",2023,"LIM331","3001",10,"Depreciation offsets",null,null,null,null,null,null,null,null,null,null,null,null,null,null,null,null,"~"]
["OTHER",2023,"LIM331","4001",11,"Fixed operational expenditure % assumption",null,null,null,null,null,null,null,null,null,null,null,null,null,null,null,null,"~"]
["OTHER",2023,"LIM331",5000,50,"Repairs and Maintenance by Expenditure Item",null,null,null,null,null,null,null,null,null,null,null,null,null,null,null,null,"~"]
["OTHER",2023,"LIM331",5001,51,"Employee related costs",null,null,null,null,null,null,null,null,null,null,null,null,null,null,null,null,"~"]
["OTHER",2023,"LIM331",5002,52,"Other materials",null,null,null,null,null,null,null,null,null,null,null,null,null,null,null,null,"~"]
["OTHER",2023,"LIM331",5003,53,"Contracted Services",null,null,null,null,null,null,null,null,null,null,null,null,null,null,null,null,"~"]
["OTHER",2023,"LIM331",5004,54,"Other Expenditure",null,null,null,null,null,null,null,null,null,null,null,null,null,null,null,null,"~"]
["OTHER",2023,"LIM331",5005,55,"Total Repairs and Maintenance Expenditure",null,null,null,null,null,null,null,null,null,null,null,null,null,null,null,null,"~"]
["OTHER",2023,"LIM331",6001,61,"Volume Electricity Distribution Losses",null,null,null,null,null,null,null,null,null,null,null,null,null,null,null,null,"~"]
["OTHER",2023,"LIM331",6002,62,"Cost Electiricty Distribution Losses",null,null,null,null,null,null,null,null,null,null,null,null,null,null,null,null,"~"]
["OTHER",2023,"LIM331",null,null,null,null,null,null,null,null,null,null,null,null,null,null,null,null,null,null,null,"~"]
["OTHER",2023,"LIM331",6003,63,"Volume Water Distribution Losses",null,null,null,null,null,null,null,null,null,null,null,null,null,null,null,null,"~"]
["OTHER",2023,"LIM331",6004,64,"Cost Water Distribution Losses",null,null,null,null,null,null,null,null,null,null,null,null,null,null,null,null,"~"]
["OTHER",2023,"LIM331",null,null,null,null,null,null,null,null,null,null,null,null,null,null,null,null,null,null,null,"~"]
["OTHER",2023,"LIM331",7001,71,"Consultant Fees",null,null,null,null,null,null,null,null,null,null,null,null,null,null,null,null,"~"]
["OTHER",2023,"LIM331",7002,72,"Audit Fees",null,null,null,null,null,null,null,null,null,null,null,null,null,null,null,null,"~"]
["SA36",2023,"LIM331",1,null,null,null,null,null,null,null,null,null,null,null,null,null,null,null,null,null,null,"~"]
["SA36",2023,"LIM331",2,null,null,null,null,null,null,null,null,null,null,null,null,null,null,null,null,null,null,"~"]
["SA36",2023,"LIM331",3,null,null,null,null,null,null,null,null,null,null,null,null,null,null,null,null,null,null,"~"]
["SA36",2023,"LIM331",4,null,null,null,null,null,null,null,null,null,null,null,null,null,null,null,null,null,null,"~"]
["SA36",2023,"LIM331",5,null,null,null,null,null,null,null,null,null,null,null,null,null,null,null,null,null,null,"~"]
["SA36",2023,"LIM331",6,null,null,null,null,null,null,null,null,null,null,null,null,null,null,null,null,null,null,"~"]
["SA36",2023,"LIM331",7,null,null,null,null,null,null,null,null,null,null,null,null,null,null,null,null,null,null,"~"]
["SA36",2023,"LIM331",8,null,null,null,null,null,null,null,null,null,null,null,null,null,null,null,null,null,null,"~"]
["SA36",2023,"LIM331",9,null,null,null,null,null,null,null,null,null,null,null,null,null,null,null,null,null,null,"~"]
["SA36",2023,"LIM331",10,null,null,null,null,null,null,null,null,null,null,null,null,null,null,null,null,null,null,"~"]
["SA36",2023,"LIM331",11,null,null,null,null,null,null,null,null,null,null,null,null,null,null,null,null,null,null,"~"]
["SA36",2023,"LIM331",12,null,null,null,null,null,null,null,null,null,null,null,null,null,null,null,null,null,null,"~"]
["SA36",2023,"LIM331",13,null,null,null,null,null,null,null,null,null,null,null,null,null,null,null,null,null,null,"~"]
["SA36",2023,"LIM331",14,null,null,null,null,null,null,null,null,null,null,null,null,null,null,null,null,null,null,"~"]
["SA36",2023,"LIM331",15,null,null,null,null,null,null,null,null,null,null,null,null,null,null,null,null,null,null,"~"]
["SA36",2023,"LIM331",16,null,null,null,null,null,null,null,null,null,null,null,null,null,null,null,null,null,null,"~"]
["SA36",2023,"LIM331",17,null,null,null,null,null,null,null,null,null,null,null,0,0,null,null,0,null,null,"~"]
["SA36",2023,"LIM331",18,null,null,null,null,null,null,null,null,null,null,null,null,null,null,null,null,null,null,"~"]
["SA36",2023,"LIM331",19,null,null,null,null,null,null,null,null,null,null,null,null,null,null,null,null,null,null,"~"]
["SA36",2023,"LIM331",20,null,null,null,null,null,null,null,null,null,null,null,null,null,null,null,null,null,null,"~"]
["SA36",2023,"LIM331",21,null,null,null,null,null,null,null,null,null,null,null,null,null,null,null,null,null,null,"~"]
["SA36",2023,"LIM331",22,null,null,null,null,null,null,null,null,null,null,null,null,null,null,null,null,null,null,"~"]
["SA36",2023,"LIM331",23,null,null,null,null,null,null,null,null,null,null,null,null,null,null,null,null,null,null,"~"]
["SA36",{"$f":"+MTREF","v":2023},{"$f":"LEFT(muni,(FIND(\" \",muni,1)-1))","v":"LIM331"},24,null,null,null,null,null,null,null,null,null,null,null,null,null,null,null,null,null,null,"~"]
["SA36",2023,"LIM331",25,null,null,null,null,null,null,null,null,null,null,null,null,null,null,null,null,null,null,"~"]
["SA36",2023,"LIM331",26,null,null,null,null,null,null,null,null,null,null,null,null,null,null,null,null,null,null,"~"]
["SA36",2023,"LIM331",27,null,null,null,null,null,null,null,null,null,null,null,null,null,null,null,null,null,null,"~"]
["SA36",2023,"LIM331",28,null,null,null,null,null,null,null,null,null,null,null,null,null,null,null,null,null,null,"~"]
["SA36",2023,"LIM331",29,null,null,null,null,null,null,null,null,null,null,null,null,null,null,null,null,null,null,"~"]
["SA36",2023,"LIM331",30,null,null,null,null,null,null,null,null,null,0,0,0,0,null,null,null,null,null,"~"]
["SA36",2023,"LIM331",31,null,null,null,null,null,null,null,null,null,0,0,0,0,null,null,null,null,null,"~"]
["SA36",2023,"LIM331",32,null,null,null,null,null,null,null,null,null,null,null,null,null,null,null,null,null,null,"~"]
["SA36",2023,"LIM331",33,null,null,null,null,null,null,null,null,null,null,null,null,null,null,null,null,null,null,"~"]
["SA36",2023,"LIM331",34,null,null,null,null,null,null,null,null,null,null,null,null,null,null,null,null,null,null,"~"]
["SA36",2023,"LIM331",35,null,null,null,null,null,null,null,null,null,null,null,null,null,null,null,null,null,null,"~"]
["SA36",2023,"LIM331",36,null,null,null,null,null,null,null,null,null,null,null,null,null,null,null,null,null,null,"~"]
["SA36",2023,"LIM331",37,null,null,null,null,null,null,null,null,null,null,null,null,null,null,null,null,null,null,"~"]
["SA36",2023,"LIM331",38,null,null,null,null,null,null,null,null,"Check",0,null,null,null,null,null,null,null,null,"~"]
["SA36",2023,"LIM331",39,null,null,null,null,null,null,null,null,null,null,null,null,null,null,null,null,null,null,"~"]
["SA36",2023,"LIM331",40,null,null,null,null,null,null,null,null,null,null,null,null,null,null,null,null,null,null,"~"]
["SA36",2023,"LIM331",41,null,null,null,null,null,null,null,null,null,null,null,null,null,null,null,null,null,null,"~"]
["SA36",2023,"LIM331",42,null,null,null,null,null,null,null,null,null,null,null,null,null,null,null,null,null,null,"~"]
["SA36",2023,"LIM331",43,null,null,null,null,null,null,null,null,null,null,null,null,null,null,null,null,null,null,"~"]
["SA36",2023,"LIM331",44,null,null,null,null,null,null,null,null,null,null,null,null,null,null,null,null,null,null,"~"]
["SA36",2023,"LIM331",45,null,null,null,null,null,null,null,null,null,null,null,null,null,null,null,null,null,null,"~"]
["SA36",2023,"LIM331",46,null,null,null,null,null,null,null,null,null,null,null,null,null,null,null,null,null,null,"~"]
["SA36",2023,"LIM331",47,null,null,null,null,null,null,null,null,null,null,null,null,null,null,null,null,null,null,"~"]
["SA36",2023,"LIM331",48,null,null,null,null,null,null,null,null,null,null,null,null,null,null,null,null,null,null,"~"]
["SA36",2023,"LIM331",49,null,null,null,null,null,null,null,null,null,null,null,null,null,null,null,null,null,null,"~"]
["SA36",2023,"LIM331",50,null,null,null,null,null,null,null,null,null,null,null,null,null,null,null,null,null,null,"~"]
["SA36",2023,"LIM331",51,null,null,null,null,null,null,null,null,null,null,null,null,null,null,null,null,null,null,"~"]
["SA36",2023,"LIM331",52,null,null,null,null,null,null,null,null,null,null,null,null,null,null,null,null,null,null,"~"]
["SA36",2023,"LIM331",53,null,null,null,null,null,null,null,null,null,null,null,null,null,null,null,null,null,null,"~"]
["SA36",2023,"LIM331",54,null,null,null,null,null,null,null,null,null,null,null,null,null,null,null,null,null,null,"~"]
["SA36",2023,"LIM331",55,null,null,null,null,null,null,null,null,null,null,null,null,null,null,null,null,null,null,"~"]
["SA36",2023,"LIM331",56,null,null,null,null,null,null,null,null,null,null,null,null,null,null,null,null,null,null,"~"]
["SA36",2023,"LIM331",57,null,null,null,null,null,null,null,null,null,null,null,null,null,null,null,null,null,null,"~"]
["SA36",2023,"LIM331",58,null,null,null,null,null,null,null,null,null,null,null,null,null,null,null,null,null,null,"~"]
["SA36",2023,"LIM331",59,null,null,null,null,null,null,null,null,null,null,null,null,null,null,null,null,null,null,"~"]
["SA36",2023,"LIM331",60,null,null,null,null,null,null,null,null,null,null,null,null,null,null,null,null,null,null,"~"]
["SA36",2023,"LIM331",61,null,null,null,null,null,null,null,null,null,null,null,null,null,null,null,null,null,null,"~"]
["SA36",2023,"LIM331",62,null,null,null,null,null,null,null,null,null,null,null,null,null,null,null,null,null,null,"~"]
["SA36",2023,"LIM331",63,null,null,null,null,null,null,null,null,null,null,null,null,null,null,null,null,null,null,"~"]
["SA36",2023,"LIM331",64,null,null,null,null,null,null,null,null,null,null,null,null,null,null,null,null,null,null,"~"]
["SA36",2023,"LIM331",65,null,null,null,null,null,null,null,null,null,null,null,null,null,null,null,null,null,null,"~"]
["SA36",2023,"LIM331",66,null,null,null,null,null,null,null,null,null,null,null,null,null,null,null,null,null,null,"~"]
["SA36",2023,"LIM331",67,null,null,null,null,null,null,null,null,null,null,null,null,null,null,null,null,null,null,"~"]
["SA36",2023,"LIM331",68,null,null,null,null,null,null,null,null,null,null,null,null,null,null,null,null,null,null,"~"]
["SA36",2023,"LIM331",69,null,null,null,null,null,null,null,null,null,null,null,null,null,null,null,null,null,null,"~"]
["SA36",2023,"LIM331",70,null,null,null,null,null,null,null,null,null,null,null,null,null,null,null,null,null,null,"~"]
["SA36",2023,"LIM331",71,null,null,null,null,null,null,null,null,null,null,null,null,null,null,null,null,null,null,"~"]
["SA36",2023,"LIM331",72,null,null,null,null,null,null,null,null,null,null,null,null,null,null,null,null,null,null,"~"]
["SA36",2023,"LIM331",73,null,null,null,null,null,null,null,null,null,null,null,null,null,null,null,null,null,null,"~"]
["SA36",2023,"LIM331",74,null,null,null,null,null,null,null,null,null,null,null,null,null,null,null,null,null,null,"~"]
["SA36",2023,"LIM331",75,null,null,null,null,null,null,null,null,null,null,null,null,null,null,null,null,null,null,"~"]
["SA36",2023,"LIM331",76,null,null,null,null,null,null,null,null,null,null,null,null,null,null,null,null,null,null,"~"]
["SA36",2023,"LIM331",77,null,null,null,null,null,null,null,null,null,null,null,null,null,null,null,null,null,null,"~"]
["SA36",2023,"LIM331",78,null,null,null,null,null,null,null,null,null,null,null,null,null,null,null,null,null,null,"~"]
["SA36",2023,"LIM331",79,null,null,null,null,null,null,null,null,null,null,null,null,null,null,null,null,null,null,"~"]
["SA36",2023,"LIM331",80,null,null,null,null,null,null,null,null,null,null,null,null,null,null,null,null,null,null,"~"]
["SA36",2023,"LIM331",81,null,null,null,null,null,null,null,null,null,null,null,null,null,null,null,null,null,null,"~"]
["SA36",2023,"LIM331",82,null,null,null,null,null,null,null,null,null,null,null,null,null,null,null,null,null,null,"~"]
["SA36",2023,"LIM331",83,null,null,null,null,null,null,null,null,null,null,null,null,null,null,null,null,null,null,"~"]
["SA36",2023,"LIM331",84,null,null,null,null,null,null,null,null,null,null,null,null,null,null,null,null,null,null,"~"]
["SA36",2023,"LIM331",85,null,null,null,null,null,null,null,null,null,null,null,null,null,null,null,null,null,null,"~"]
["SA36",2023,"LIM331",86,null,null,null,null,null,null,null,null,null,null,null,null,null,null,null,null,null,null,"~"]
["SA36",2023,"LIM331",87,null,null,null,null,null,null,null,null,null,null,null,null,null,null,null,null,null,null,"~"]
["SA36",{"$f":"+MTREF","v":2023},{"$f":"LEFT(muni,(FIND(\" \",muni,1)-1))","v":"LIM331"},88,null,null,null,null,null,null,null,null,null,null,null,null,null,null,null,null,null,null,"~"]
["SA36",2023,"LIM331",89,null,null,null,null,null,null,null,null,null,null,null,null,null,null,null,null,null,null,"~"]
["SA36",2023,"LIM331",90,null,null,null,null,null,null,null,null,null,null,null,null,null,null,null,null,null,null,"~"]
["SA36",2023,"LIM331",91,null,null,null,null,null,null,null,null,null,null,null,null,null,null,null,null,null,null,"~"]
["SA36",2023,"LIM331",92,null,null,null,null,null,null,null,null,null,null,null,null,null,null,null,null,null,null,"~"]
["SA36",2023,"LIM331",93,null,null,null,null,null,null,null,null,null,null,null,null,null,null,null,null,null,null,"~"]
["SA36",2023,"LIM331",94,null,null,null,null,null,null,null,null,null,null,null,null,null,null,null,null,null,null,"~"]
["SA36",2023,"LIM331",95,null,null,null,null,null,null,null,null,null,null,null,null,null,null,null,null,null,null,"~"]
["SA36",2023,"LIM331",96,null,null,null,null,null,null,null,null,null,null,null,null,null,null,null,null,null,null,"~"]
["SA36",2023,"LIM331",97,null,null,null,null,null,null,null,null,null,null,null,null,null,null,null,null,null,null,"~"]
["SA36",2023,"LIM331",98,null,null,null,null,null,null,null,null,null,null,null,null,null,null,null,null,null,null,"~"]
["SA36",2023,"LIM331",99,null,null,null,null,null,null,null,null,null,null,null,null,null,null,null,null,null,null,"~"]
["SA36",2023,"LIM331",100,null,null,null,null,null,null,null,null,null,null,null,null,null,null,null,null,null,null,"~"]
["SA36",2023,"LIM331",101,null,null,null,null,null,null,null,null,null,null,null,null,null,null,null,null,null,null,"~"]
["SA36",2023,"LIM331",102,null,null,null,null,null,null,null,null,null,null,null,null,null,null,null,null,null,null,"~"]
["SA36",2023,"LIM331",103,null,null,null,null,null,null,null,null,null,null,null,null,null,null,null,null,null,null,"~"]
["SA36",2023,"LIM331",104,null,null,null,null,null,null,null,null,null,null,null,null,null,null,null,null,null,null,"~"]
["SA36",2023,"LIM331",105,null,null,null,null,null,null,null,null,null,null,null,null,null,null,null,null,null,null,"~"]
["SA36",2023,"LIM331",106,null,null,null,null,null,null,null,null,null,null,null,null,null,null,null,null,null,null,"~"]
["SA36",2023,"LIM331",107,null,null,null,null,null,null,null,null,null,null,null,null,null,null,null,null,null,null,"~"]
["SA36",2023,"LIM331",108,null,null,null,null,null,null,null,null,null,null,null,null,null,null,null,null,null,null,"~"]
["SA36",2023,"LIM331",109,null,null,null,null,null,null,null,null,null,null,null,null,null,null,null,null,null,null,"~"]
["SA36",2023,"LIM331",110,null,null,null,null,null,null,null,null,null,null,null,null,null,null,null,null,null,null,"~"]
["SA36",2023,"LIM331",111,null,null,null,null,null,null,null,null,null,null,null,null,null,null,null,null,null,null,"~"]
["SA36",2023,"LIM331",112,null,null,null,null,null,null,null,null,null,null,null,null,null,null,null,null,null,null,"~"]
["SA36",2023,"LIM331",113,null,null,null,null,null,null,null,null,null,null,null,null,null,null,null,null,null,null,"~"]
["SA36",2023,"LIM331",114,null,null,null,null,null,null,null,null,null,null,null,null,null,null,null,null,null,null,"~"]
["SA36",2023,"LIM331",115,null,null,null,null,null,null,null,null,null,null,null,null,null,null,null,null,null,null,"~"]
["SA36",2023,"LIM331",116,null,null,null,null,null,null,null,null,null,null,null,null,null,null,null,null,null,null,"~"]
["SA36",2023,"LIM331",117,null,null,null,null,null,null,null,null,null,null,null,null,null,null,null,null,null,null,"~"]
["SA36",2023,"LIM331",118,null,null,null,null,null,null,null,null,null,null,null,null,null,null,null,null,null,null,"~"]
["SA36",2023,"LIM331",119,null,null,null,null,null,null,null,null,null,null,null,null,null,null,null,null,null,null,"~"]
["SA36",2023,"LIM331",120,null,null,null,null,null,null,null,null,null,null,null,null,null,null,null,null,null,null,"~"]
["SA36",2023,"LIM331",121,null,null,null,null,null,null,null,null,null,null,null,null,null,null,null,null,null,null,"~"]
["SA36",2023,"LIM331",122,null,null,null,null,null,null,null,null,null,null,null,null,null,null,null,null,null,null,"~"]
["SA36",2023,"LIM331",123,null,null,null,null,null,null,null,null,null,null,null,null,null,null,null,null,null,null,"~"]
["SA36",2023,"LIM331",124,null,null,null,null,null,null,null,null,null,null,null,null,null,null,null,null,null,null,"~"]
["SA36",2023,"LIM331",125,null,null,null,null,null,null,null,null,null,null,null,null,null,null,null,null,null,null,"~"]
["SA36",2023,"LIM331",126,null,null,null,null,null,null,null,null,null,null,null,null,null,null,null,null,null,null,"~"]
["SA36",2023,"LIM331",127,null,null,null,null,null,null,null,null,null,null,null,null,null,null,null,null,null,null,"~"]
["SA36",2023,"LIM331",128,null,null,null,null,null,null,null,null,null,null,null,null,null,null,null,null,null,null,"~"]
["SA36",2023,"LIM331",129,null,null,null,null,null,null,null,null,null,null,null,null,null,null,null,null,null,null,"~"]
["SA36",2023,"LIM331",130,null,null,null,null,null,null,null,null,null,null,null,null,null,null,null,null,null,null,"~"]
["SA36",2023,"LIM331",131,null,null,null,null,null,null,null,null,null,null,null,null,null,null,null,null,null,null,"~"]
["SA36",2023,"LIM331",132,null,null,null,null,null,null,null,null,null,null,null,null,null,null,null,null,null,null,"~"]
["SA36",2023,"LIM331",133,null,null,null,null,null,null,null,null,null,null,null,null,null,null,null,null,null,null,"~"]
["SA36",2023,"LIM331",134,null,null,null,null,null,null,null,null,null,null,null,null,null,null,null,null,null,null,"~"]
["SA36",2023,"LIM331",135,null,null,null,null,null,null,null,null,null,null,null,null,null,null,null,null,null,null,"~"]
["SA36",2023,"LIM331",136,null,null,null,null,null,null,null,null,null,null,null,null,null,null,null,null,null,null,"~"]
["SA36",2023,"LIM331",137,null,null,null,null,null,null,null,null,null,null,null,null,null,null,null,null,null,null,"~"]
["SA36",2023,"LIM331",138,null,null,null,null,null,null,null,null,null,null,null,null,null,null,null,null,null,null,"~"]
["SA36",2023,"LIM331",139,null,null,null,null,null,null,null,null,null,null,null,null,null,null,null,null,null,null,"~"]
["SA36",2023,"LIM331",140,null,null,null,null,null,null,null,null,null,null,null,null,null,null,null,null,null,null,"~"]
["SA36",2023,"LIM331",141,null,null,null,null,null,null,null,null,null,null,null,null,null,null,null,null,null,null,"~"]
["SA36",2023,"LIM331",142,null,null,null,null,null,null,null,null,null,null,null,null,null,null,null,null,null,null,"~"]
["SA36",2023,"LIM331",143,null,null,null,null,null,null,null,null,null,null,null,null,null,null,null,null,null,null,"~"]
["SA36",2023,"LIM331",144,null,null,null,null,null,null,null,null,null,null,null,null,null,null,null,null,null,null,"~"]
["SA36",2023,"LIM331",145,null,null,null,null,null,null,null,null,null,null,null,null,null,null,null,null,null,null,"~"]
["SA36",2023,"LIM331",146,null,null,null,null,null,null,null,null,null,null,null,null,null,null,null,null,null,null,"~"]
["SA36",2023,"LIM331",147,null,null,null,null,null,null,null,null,null,null,null,null,null,null,null,null,null,null,"~"]
["SA36",2023,"LIM331",148,null,null,null,null,null,null,null,null,null,null,null,null,null,null,null,null,null,null,"~"]
["SA36",2023,"LIM331",149,null,null,null,null,null,null,null,null,null,null,null,null,null,null,null,null,null,null,"~"]
["SA36",2023,"LIM331",150,null,null,null,null,null,null,null,null,null,null,null,null,null,null,null,null,null,null,"~"]
["SA36",2023,"LIM331",151,null,null,null,null,null,null,null,null,null,null,null,null,null,null,null,null,null,null,"~"]
["SA36",{"$f":"+MTREF","v":2023},{"$f":"LEFT(muni,(FIND(\" \",muni,1)-1))","v":"LIM331"},152,null,null,null,null,null,null,null,null,null,null,null,null,null,null,null,null,null,null,"~"]
["SA36",2023,"LIM331",153,null,null,null,null,null,null,null,null,null,null,null,null,null,null,null,null,null,null,"~"]
["SA36",2023,"LIM331",154,null,null,null,null,null,null,null,null,null,null,null,null,null,null,null,null,null,null,"~"]
["SA36",2023,"LIM331",155,null,null,null,null,null,null,null,null,null,null,null,null,null,null,null,null,null,null,"~"]
["SA36",2023,"LIM331",156,null,null,null,null,null,null,null,null,null,null,null,null,null,null,null,null,null,null,"~"]
["SA36",2023,"LIM331",157,null,null,null,null,null,null,null,null,null,null,null,null,null,null,null,null,null,null,"~"]
["SA36",2023,"LIM331",158,null,null,null,null,null,null,null,null,null,null,null,null,null,null,null,null,null,null,"~"]
["SA36",2023,"LIM331",159,null,null,null,null,null,null,null,null,null,null,null,null,null,null,null,null,null,null,"~"]
["SA36",2023,"LIM331",160,null,null,null,null,null,null,null,null,null,null,null,null,null,null,null,null,null,null,"~"]
["SA36",2023,"LIM331",161,null,null,null,null,null,null,null,null,null,null,null,null,null,null,null,null,null,null,"~"]
["SA36",2023,"LIM331",162,null,null,null,null,null,null,null,null,null,null,null,null,null,null,null,null,null,null,"~"]
["SA36",2023,"LIM331",163,null,null,null,null,null,null,null,null,null,null,null,null,null,null,null,null,null,null,"~"]
["SA36",2023,"LIM331",164,null,null,null,null,null,null,null,null,null,null,null,null,null,null,null,null,null,null,"~"]
["SA36",2023,"LIM331",165,null,null,null,null,null,null,null,null,null,null,null,null,null,null,null,null,null,null,"~"]
["SA36",2023,"LIM331",166,null,null,null,null,null,null,null,null,null,null,null,null,null,null,null,null,null,null,"~"]
["SA36",2023,"LIM331",167,null,null,null,null,null,null,null,null,null,null,null,null,null,null,null,null,null,null,"~"]
["SA36",2023,"LIM331",168,null,null,null,null,null,null,null,null,null,null,null,null,null,null,null,null,null,null,"~"]
["SA36",2023,"LIM331",169,null,null,null,null,null,null,null,null,null,null,null,null,null,null,null,null,null,null,"~"]
["SA36",2023,"LIM331",170,null,null,null,null,null,null,null,null,null,null,null,null,null,null,null,null,null,null,"~"]
["SA36",2023,"LIM331",171,null,null,null,null,null,null,null,null,null,null,null,null,null,null,null,null,null,null,"~"]
["SA36",2023,"LIM331",172,null,null,null,null,null,null,null,null,null,null,null,null,null,null,null,null,null,null,"~"]
["SA36",2023,"LIM331",173,null,null,null,null,null,null,null,null,null,null,null,null,null,null,null,null,null,null,"~"]
["SA36",2023,"LIM331",174,null,null,null,null,null,null,null,null,null,null,null,null,null,null,null,null,null,null,"~"]
["SA36",2023,"LIM331",175,null,null,null,null,null,null,null,null,null,null,null,null,null,null,null,null,null,null,"~"]
["SA36",2023,"LIM331",176,null,null,null,null,null,null,null,null,null,null,null,null,null,null,null,null,null,null,"~"]
["SA36",2023,"LIM331",177,null,null,null,null,null,null,null,null,null,null,null,null,null,null,null,null,null,null,"~"]
["SA36",2023,"LIM331",178,null,null,null,null,null,null,null,null,null,null,null,null,null,null,null,null,null,null,"~"]
["SA36",2023,"LIM331",179,null,null,null,null,null,null,null,null,null,null,null,null,null,null,null,null,null,null,"~"]
["SA36",2023,"LIM331",180,null,null,null,null,null,null,null,null,null,null,null,null,null,null,null,null,null,null,"~"]
["SA36",2023,"LIM331",181,null,null,null,null,null,null,null,null,null,null,null,null,null,null,null,null,null,null,"~"]
["SA36",2023,"LIM331",182,null,null,null,null,null,null,null,null,null,null,null,null,null,null,null,null,null,null,"~"]
["SA36",2023,"LIM331",183,null,null,null,null,null,null,null,null,null,null,null,null,null,null,null,null,null,null,"~"]
["SA36",2023,"LIM331",184,null,null,null,null,null,null,null,null,null,null,null,null,null,null,null,null,null,null,"~"]
["SA36",2023,"LIM331",185,null,null,null,null,null,null,null,null,null,null,null,null,null,null,null,null,null,null,"~"]
["SA36",2023,"LIM331",186,null,null,null,null,null,null,null,null,null,null,null,null,null,null,null,null,null,null,"~"]
["SA36",2023,"LIM331",187,null,null,null,null,null,null,null,null,null,null,null,null,null,null,null,null,null,null,"~"]
["SA36",2023,"LIM331",188,null,null,null,null,null,null,null,null,null,null,null,null,null,null,null,null,null,null,"~"]
["SA36",2023,"LIM331",189,null,null,null,null,null,null,null,null,null,null,null,null,null,null,null,null,null,null,"~"]
["SA36",2023,"LIM331",190,null,null,null,null,null,null,null,null,null,null,null,null,null,null,null,null,null,null,"~"]
["SA36",2023,"LIM331",191,null,null,null,null,null,null,null,null,null,null,null,null,null,null,null,null,null,null,"~"]
["SA36",2023,"LIM331",192,null,null,null,null,null,null,null,null,null,null,null,null,null,null,null,null,null,null,"~"]
["SA36",2023,"LIM331",193,null,null,null,null,null,null,null,null,null,null,null,null,null,null,null,null,null,null,"~"]
["SA36",2023,"LIM331",194,null,null,null,null,null,null,null,null,null,null,null,null,null,null,null,null,null,null,"~"]
["SA36",2023,"LIM331",195,null,null,null,null,null,null,null,null,null,null,null,null,null,null,null,null,null,null,"~"]
["SA36",2023,"LIM331",196,null,null,null,null,null,null,null,null,null,null,null,null,null,null,null,null,null,null,"~"]
["SA36",2023,"LIM331",197,null,null,null,null,null,null,null,null,null,null,null,null,null,null,null,null,null,null,"~"]
["SA36",2023,"LIM331",198,null,null,null,null,null,null,null,null,null,null,null,null,null,null,null,null,null,null,"~"]
["SA36",2023,"LIM331",199,null,null,null,null,null,null,null,null,null,null,null,null,null,null,null,null,null,null,"~"]
["SA36",2023,"LIM331",200,null,null,null,null,null,null,null,null,null,null,null,null,null,null,null,null,null,null,"~"]
["SA36",2023,"LIM331",201,null,null,null,null,null,null,null,null,null,null,null,null,null,null,null,null,null,null,"~"]
["SA36",2023,"LIM331",202,null,null,null,null,null,null,null,null,null,null,null,null,null,null,null,null,null,null,"~"]
["SA36",2023,"LIM331",203,null,null,null,null,null,null,null,null,null,null,null,null,null,null,null,null,null,null,"~"]
["SA36",2023,"LIM331",204,null,null,null,null,null,null,null,null,null,null,null,null,null,null,null,null,null,null,"~"]
["SA36",2023,"LIM331",205,null,null,null,null,null,null,null,null,null,null,null,null,null,null,null,null,null,null,"~"]
["SA36",2023,"LIM331",206,null,null,null,null,null,null,null,null,null,null,null,null,null,null,null,null,null,null,"~"]
["SA36",2023,"LIM331",207,null,null,null,null,null,null,null,null,null,null,null,null,null,null,null,null,null,null,"~"]
["SA36",2023,"LIM331",208,null,null,null,null,null,null,null,null,null,null,null,null,null,null,null,null,null,null,"~"]
["SA36",2023,"LIM331",209,null,null,null,null,null,null,null,null,null,null,null,null,null,null,null,null,null,null,"~"]
["SA36",2023,"LIM331",210,null,null,null,null,null,null,null,null,null,null,null,null,null,null,null,null,null,null,"~"]
["SA36",2023,"LIM331",211,null,null,null,null,null,null,null,null,null,null,null,null,null,null,null,null,null,null,"~"]
["SA36",2023,"LIM331",212,null,null,null,null,null,null,null,null,null,null,null,null,null,null,null,null,null,null,"~"]
["SA36",2023,"LIM331",213,null,null,null,null,null,null,null,null,null,null,null,null,null,null,null,null,null,null,"~"]
["SA36",2023,"LIM331",214,null,null,null,null,null,null,null,null,null,null,null,null,null,null,null,null,null,null,"~"]
["SA36",2023,"LIM331",215,null,null,null,null,null,null,null,null,null,null,null,null,null,null,null,null,null,null,"~"]
["SA36",{"$f":"+MTREF","v":2023},{"$f":"LEFT(muni,(FIND(\" \",muni,1)-1))","v":"LIM331"},216,null,null,null,null,null,null,null,null,null,null,null,null,null,null,null,null,null,null,"~"]
["SA36",2023,"LIM331",217,null,null,null,null,null,null,null,null,null,null,null,null,null,null,null,null,null,null,"~"]
["SA36",2023,"LIM331",218,null,null,null,null,null,null,null,null,null,null,null,null,null,null,null,null,null,null,"~"]
["SA36",2023,"LIM331",219,null,null,null,null,null,null,null,null,null,null,null,null,null,null,null,null,null,null,"~"]
["SA36",2023,"LIM331",220,null,null,null,null,null,null,null,null,null,null,null,null,null,null,null,null,null,null,"~"]
["SA36",2023,"LIM331",221,null,null,null,null,null,null,null,null,null,null,null,null,null,null,null,null,null,null,"~"]
["SA36",2023,"LIM331",222,null,null,null,null,null,null,null,null,null,null,null,null,null,null,null,null,null,null,"~"]
["SA36",2023,"LIM331",223,null,null,null,null,null,null,null,null,null,null,null,null,null,null,null,null,null,null,"~"]
["SA36",2023,"LIM331",224,null,null,null,null,null,null,null,null,null,null,null,null,null,null,null,null,null,null,"~"]
["SA36",2023,"LIM331",225,null,null,null,null,null,null,null,null,null,null,null,null,null,null,null,null,null,null,"~"]
["SA36",2023,"LIM331",226,null,null,null,null,null,null,null,null,null,null,null,null,null,null,null,null,null,null,"~"]
["SA36",2023,"LIM331",227,null,null,null,null,null,null,null,null,null,null,null,null,null,null,null,null,null,null,"~"]
["SA36",2023,"LIM331",228,null,null,null,null,null,null,null,null,null,null,null,null,null,null,null,null,null,null,"~"]
["SA36",2023,"LIM331",229,null,null,null,null,null,null,null,null,null,null,null,null,null,null,null,null,null,null,"~"]
["SA36",2023,"LIM331",230,null,null,null,null,null,null,null,null,null,null,null,null,null,null,null,null,null,null,"~"]
["SA36",2023,"LIM331",231,null,null,null,null,null,null,null,null,null,null,null,null,null,null,null,null,null,null,"~"]
["SA36",2023,"LIM331",232,null,null,null,null,null,null,null,null,null,null,null,null,null,null,null,null,null,null,"~"]
["SA36",2023,"LIM331",233,null,null,null,null,null,null,null,null,null,null,null,null,null,null,null,null,null,null,"~"]
["SA36",2023,"LIM331",234,null,null,null,null,null,null,null,null,null,null,null,null,null,null,null,null,null,null,"~"]
["SA36",2023,"LIM331",235,null,null,null,null,null,null,null,null,null,null,null,null,null,null,null,null,null,null,"~"]
["SA36",2023,"LIM331",236,null,null,null,null,null,null,null,null,null,null,null,null,null,null,null,null,null,null,"~"]
["SA36",2023,"LIM331",237,null,null,null,null,null,null,null,null,null,null,null,null,null,null,null,null,null,null,"~"]
["SA36",2023,"LIM331",238,null,null,null,null,null,null,null,null,null,null,null,null,null,null,null,null,null,null,"~"]
["SA36",2023,"LIM331",239,null,null,null,null,null,null,null,null,null,null,null,null,null,null,null,null,null,null,"~"]
["SA36",2023,"LIM331",240,null,null,null,null,null,null,null,null,null,null,null,null,null,null,null,null,null,null,"~"]
["SA36",2023,"LIM331",241,null,null,null,null,null,null,null,null,null,null,null,null,null,null,null,null,null,null,"~"]
["SA36",2023,"LIM331",242,null,null,null,null,null,null,null,null,null,null,null,null,null,null,null,null,null,null,"~"]
["SA36",2023,"LIM331",243,null,null,null,null,null,null,null,null,null,null,null,null,null,null,null,null,null,null,"~"]
["SA36",2023,"LIM331",244,null,null,null,null,null,null,null,null,null,null,null,null,null,null,null,null,null,null,"~"]
["SA36",2023,"LIM331",245,null,null,null,null,null,null,null,null,null,null,null,null,null,null,null,null,null,null,"~"]
["SA36",2023,"LIM331",246,null,null,null,null,null,null,null,null,null,null,null,null,null,null,null,null,null,null,"~"]
["SA36",2023,"LIM331",247,null,null,null,null,null,null,null,null,null,null,null,null,null,null,null,null,null,null,"~"]
["SA36",2023,"LIM331",248,null,null,null,null,null,null,null,null,null,null,null,null,null,null,null,null,null,null,"~"]
["SA36",2023,"LIM331",249,null,null,null,null,null,null,null,null,null,null,null,null,null,null,null,null,null,null,"~"]
["SA36",2023,"LIM331",250,null,null,null,null,null,null,null,null,null,null,null,null,null,null,null,null,null,null,"~"]
["SA36",2023,"LIM331",251,null,null,null,null,null,null,null,null,null,null,null,null,null,null,null,null,null,null,"~"]
["SA36",2023,"LIM331",252,null,null,null,null,null,null,null,null,null,null,null,null,null,null,null,null,null,null,"~"]
["SA36",2023,"LIM331",253,null,null,null,null,null,null,null,null,null,null,null,null,null,null,null,null,null,null,"~"]
["SA36",2023,"LIM331",254,null,null,null,null,null,null,null,null,null,null,null,null,null,null,null,null,null,null,"~"]
["SA36",2023,"LIM331",255,null,null,null,null,null,null,null,null,null,null,null,null,null,null,null,null,null,null,"~"]
["SA36",2023,"LIM331",256,null,null,null,null,null,null,null,null,null,null,null,null,null,null,null,null,null,null,"~"]
["SA36",2023,"LIM331",257,null,null,null,null,null,null,null,null,null,null,null,null,null,null,null,null,null,null,"~"]
["SA36",2023,"LIM331",258,null,null,null,null,null,null,null,null,null,null,null,null,null,null,null,null,null,null,"~"]
["SA36",2023,"LIM331",259,null,null,null,null,null,null,null,null,null,null,null,null,null,null,null,null,null,null,"~"]
["SA36",2023,"LIM331",260,null,null,null,null,null,null,null,null,null,null,null,null,null,null,null,null,null,null,"~"]
["SA36",2023,"LIM331",261,null,null,null,null,null,null,null,null,null,null,null,null,null,null,null,null,null,null,"~"]
["SA36",2023,"LIM331",262,null,null,null,null,null,null,null,null,null,null,null,null,null,null,null,null,null,null,"~"]
["SA36",2023,"LIM331",263,null,null,null,null,null,null,null,null,null,null,null,null,null,null,null,null,null,null,"~"]
["SA36",2023,"LIM331",264,null,null,null,null,null,null,null,null,null,null,null,null,null,null,null,null,null,null,"~"]
["SA36",2023,"LIM331",265,null,null,null,null,null,null,null,null,null,null,null,null,null,null,null,null,null,null,"~"]
["SA36",2023,"LIM331",266,null,null,null,null,null,null,null,null,null,null,null,null,null,null,null,null,null,null,"~"]
["SA36",2023,"LIM331",267,null,null,null,null,null,null,null,null,null,null,null,null,null,null,null,null,null,null,"~"]
["SA36",2023,"LIM331",268,null,null,null,null,null,null,null,null,null,null,null,null,null,null,null,null,null,null,"~"]
["SA36",2023,"LIM331",269,null,null,null,null,null,null,null,null,null,null,null,null,null,null,null,null,null,null,"~"]
["SA36",2023,"LIM331",270,null,null,null,null,null,null,null,null,null,null,null,null,null,null,null,null,null,null,"~"]
["SA36",2023,"LIM331",271,null,null,null,null,null,null,null,null,null,null,null,null,null,null,null,null,null,null,"~"]
["SA36",2023,"LIM331",272,null,null,null,null,null,null,null,null,null,null,null,null,null,null,null,null,null,null,"~"]
["SA36",2023,"LIM331",273,null,null,null,null,null,null,null,null,null,null,null,null,null,null,null,null,null,null,"~"]
["SA36",2023,"LIM331",274,null,null,null,null,null,null,null,null,null,null,null,null,null,null,null,null,null,null,"~"]
["SA36",2023,"LIM331",275,null,null,null,null,null,null,null,null,null,null,null,null,null,null,null,null,null,null,"~"]
["SA36",2023,"LIM331",276,null,null,null,null,null,null,null,null,null,null,null,null,null,null,null,null,null,null,"~"]
["SA36",2023,"LIM331",277,null,null,null,null,null,null,null,null,null,null,null,null,null,null,null,null,null,null,"~"]
["SA36",2023,"LIM331",278,null,null,null,null,null,null,null,null,null,null,null,null,null,null,null,null,null,null,"~"]
["SA36",2023,"LIM331",279,null,null,null,null,null,null,null,null,null,null,null,null,null,null,null,null,null,null,"~"]
["SA36",{"$f":"+MTREF","v":2023},{"$f":"LEFT(muni,(FIND(\" \",muni,1)-1))","v":"LIM331"},280,null,null,null,null,null,null,null,null,null,null,null,null,null,null,null,null,null,null,"~"]
["SA36",2023,"LIM331",281,null,null,null,null,null,null,null,null,null,null,null,null,null,null,null,null,null,null,"~"]
["SA36",2023,"LIM331",282,null,null,null,null,null,null,null,null,null,null,null,null,null,null,null,null,null,null,"~"]
["SA36",2023,"LIM331",283,null,null,null,null,null,null,null,null,null,null,null,null,null,null,null,null,null,null,"~"]
["SA36",2023,"LIM331",284,null,null,null,null,null,null,null,null,null,null,null,null,null,null,null,null,null,null,"~"]
["SA36",2023,"LIM331",285,null,null,null,null,null,null,null,null,null,null,null,null,null,null,null,null,null,null,"~"]
["SA36",2023,"LIM331",286,null,null,null,null,null,null,null,null,null,null,null,null,null,null,null,null,null,null,"~"]
["SA36",2023,"LIM331",287,null,null,null,null,null,null,null,null,null,null,null,null,null,null,null,null,null,null,"~"]
["SA36",2023,"LIM331",288,null,null,null,null,null,null,null,null,null,null,null,null,null,null,null,null,null,null,"~"]
["SA36",2023,"LIM331",289,null,null,null,null,null,null,null,null,null,null,null,null,null,null,null,null,null,null,"~"]
["SA36",2023,"LIM331",290,null,null,null,null,null,null,null,null,null,null,null,null,null,null,null,null,null,null,"~"]
["SA36",2023,"LIM331",291,null,null,null,null,null,null,null,null,null,null,null,null,null,null,null,null,null,null,"~"]
["SA36",2023,"LIM331",292,null,null,null,null,null,null,null,null,null,null,null,null,null,null,null,null,null,null,"~"]
["SA36",2023,"LIM331",293,null,null,null,null,null,null,null,null,null,null,null,null,null,null,null,null,null,null,"~"]
["SA36",2023,"LIM331",294,null,null,null,null,null,null,null,null,null,null,null,null,null,null,null,null,null,null,"~"]
["SA36",2023,"LIM331",295,null,null,null,null,null,null,null,null,null,null,null,null,null,null,null,null,null,null,"~"]
["SA36",2023,"LIM331",296,null,null,null,null,null,null,null,null,null,null,null,null,null,null,null,null,null,null,"~"]
["SA36",2023,"LIM331",297,null,null,null,null,null,null,null,null,null,null,null,null,null,null,null,null,null,null,"~"]
["SA36",2023,"LIM331",298,null,null,null,null,null,null,null,null,null,null,null,null,null,null,null,null,null,null,"~"]
["SA36",2023,"LIM331",299,null,null,null,null,null,null,null,null,null,null,null,null,null,null,null,null,null,null,"~"]
["SA36",2023,"LIM331",300,null,null,null,null,null,null,null,null,null,null,null,null,null,null,null,null,null,null,"~"]
["SA36",2023,"LIM331",301,null,null,null,null,null,null,null,null,null,null,null,null,null,null,null,null,null,null,"~"]
["SA36",2023,"LIM331",302,null,null,null,null,null,null,null,null,null,null,null,null,null,null,null,null,null,null,"~"]
["SA36",2023,"LIM331",303,null,null,null,null,null,null,null,null,null,null,null,null,null,null,null,null,null,null,"~"]
["SA36",2023,"LIM331",304,null,null,null,null,null,null,null,null,null,null,null,null,null,null,null,null,null,null,"~"]
["SA36",2023,"LIM331",305,null,null,null,null,null,null,null,null,null,null,null,null,null,null,null,null,null,null,"~"]
["SA36",2023,"LIM331",306,null,null,null,null,null,null,null,null,null,null,null,null,null,null,null,null,null,null,"~"]
["SA36",2023,"LIM331",307,null,null,null,null,null,null,null,null,null,null,null,null,null,null,null,null,null,null,"~"]
["SA36",2023,"LIM331",308,null,null,null,null,null,null,null,null,null,null,null,null,null,null,null,null,null,null,"~"]
["SA36",2023,"LIM331",309,null,null,null,null,null,null,null,null,null,null,null,null,null,null,null,null,null,null,"~"]
["SA36",2023,"LIM331",310,null,null,null,null,null,null,null,null,null,null,null,null,null,null,null,null,null,null,"~"]
["SA36",2023,"LIM331",311,null,null,null,null,null,null,null,null,null,null,null,null,null,null,null,null,null,null,"~"]
["SA36",2023,"LIM331",312,null,null,null,null,null,null,null,null,null,null,null,null,null,null,null,null,null,null,"~"]
["SA36",2023,"LIM331",313,null,null,null,null,null,null,null,null,null,null,null,null,null,null,null,null,null,null,"~"]
["SA36",2023,"LIM331",314,null,null,null,null,null,null,null,null,null,null,null,null,null,null,null,null,null,null,"~"]
["SA36",2023,"LIM331",315,null,null,null,null,null,null,null,null,null,null,null,null,null,null,null,null,null,null,"~"]
["SA36",2023,"LIM331",316,null,null,null,null,null,null,null,null,null,null,null,null,null,null,null,null,null,null,"~"]
["SA36",2023,"LIM331",317,null,null,null,null,null,null,null,null,null,null,null,null,null,null,null,null,null,null,"~"]
["SA36",2023,"LIM331",318,null,null,null,null,null,null,null,null,null,null,null,null,null,null,null,null,null,null,"~"]
["SA36",2023,"LIM331",319,null,null,null,null,null,null,null,null,null,null,null,null,null,null,null,null,null,null,"~"]
["SA36",2023,"LIM331",320,null,null,null,null,null,null,null,null,null,null,null,null,null,null,null,null,null,null,"~"]
["SA36",2023,"LIM331",321,null,null,null,null,null,null,null,null,null,null,null,null,null,null,null,null,null,null,"~"]
["SA36",2023,"LIM331",322,null,null,null,null,null,null,null,null,null,null,null,null,null,null,null,null,null,null,"~"]
["SA36",2023,"LIM331",323,null,null,null,null,null,null,null,null,null,null,null,null,null,null,null,null,null,null,"~"]
["SA36",2023,"LIM331",324,null,null,null,null,null,null,null,null,null,null,null,null,null,null,null,null,null,null,"~"]
["SA36",2023,"LIM331",325,null,null,null,null,null,null,null,null,null,null,null,null,null,null,null,null,null,null,"~"]
["SA36",2023,"LIM331",326,null,null,null,null,null,null,null,null,null,null,null,null,null,null,null,null,null,null,"~"]
["SA36",2023,"LIM331",327,null,null,null,null,null,null,null,null,null,null,null,null,null,null,null,null,null,null,"~"]
["SA36",2023,"LIM331",328,null,null,null,null,null,null,null,null,null,null,null,null,null,null,null,null,null,null,"~"]
["SA36",2023,"LIM331",329,null,null,null,null,null,null,null,null,null,null,null,null,null,null,null,null,null,null,"~"]
["SA36",2023,"LIM331",330,null,null,null,null,null,null,null,null,null,null,null,null,null,null,null,null,null,null,"~"]
["SA36",2023,"LIM331",331,null,null,null,null,null,null,null,null,null,null,null,null,null,null,null,null,null,null,"~"]
["SA36",2023,"LIM331",332,null,null,null,null,null,null,null,null,null,null,null,null,null,null,null,null,null,null,"~"]
["SA36",2023,"LIM331",333,null,null,null,null,null,null,null,null,null,null,null,null,null,null,null,null,null,null,"~"]
["SA36",2023,"LIM331",334,null,null,null,null,null,null,null,null,null,null,null,null,null,null,null,null,null,null,"~"]
["SA36",2023,"LIM331",335,null,null,null,null,null,null,null,null,null,null,null,null,null,null,null,null,null,null,"~"]
["SA36",2023,"LIM331",336,null,null,null,null,null,null,null,null,null,null,null,null,null,null,null,null,null,null,"~"]
["SA36",2023,"LIM331",337,null,null,null,null,null,null,null,null,null,null,null,null,null,null,null,null,null,null,"~"]
["SA36",2023,"LIM331",338,null,null,null,null,null,null,null,null,null,null,null,null,null,null,null,null,null,null,"~"]
["SA36",2023,"LIM331",339,null,null,null,null,null,null,null,null,null,null,null,null,null,null,null,null,null,null,"~"]
["SA36",2023,"LIM331",340,null,null,null,null,null,null,null,null,null,null,null,null,null,null,null,null,null,null,"~"]
["SA36",2023,"LIM331",341,null,null,null,null,null,null,null,null,null,null,null,null,null,null,null,null,null,null,"~"]
["SA36",2023,"LIM331",342,null,null,null,null,null,null,null,null,null,null,null,null,null,null,null,null,null,null,"~"]
["SA36",2023,"LIM331",343,null,null,null,null,null,null,null,null,null,null,null,null,null,null,null,null,null,null,"~"]
["SA36",{"$f":"+MTREF","v":2023},{"$f":"LEFT(muni,(FIND(\" \",muni,1)-1))","v":"LIM331"},344,null,null,null,null,null,null,null,null,null,null,null,null,null,null,null,null,null,null,"~"]
["SA36",2023,"LIM331",345,null,null,null,null,null,null,null,null,null,null,null,null,null,null,null,null,null,null,"~"]
["SA36",2023,"LIM331",346,null,null,null,null,null,null,null,null,null,null,null,null,null,null,null,null,null,null,"~"]
["SA36",2023,"LIM331",347,null,null,null,null,null,null,null,null,null,null,null,null,null,null,null,null,null,null,"~"]
["SA36",2023,"LIM331",348,null,null,null,null,null,null,null,null,null,null,null,null,null,null,null,null,null,null,"~"]
["SA36",2023,"LIM331",349,null,null,null,null,null,null,null,null,null,null,null,null,null,null,null,null,null,null,"~"]
["SA36",2023,"LIM331",350,null,null,null,null,null,null,null,null,null,null,null,null,null,null,null,null,null,null,"~"]
["SA36",2023,"LIM331",351,null,null,null,null,null,null,null,null,null,null,null,null,null,null,null,null,null,null,"~"]
["SA36",2023,"LIM331",352,null,null,null,null,null,null,null,null,null,null,null,null,null,null,null,null,null,null,"~"]
["SA36",2023,"LIM331",353,null,null,null,null,null,null,null,null,null,null,null,null,null,null,null,null,null,null,"~"]
["SA36",2023,"LIM331",354,null,null,null,null,null,null,null,null,null,null,null,null,null,null,null,null,null,null,"~"]
["SA36",2023,"LIM331",355,null,null,null,null,null,null,null,null,null,null,null,null,null,null,null,null,null,null,"~"]
["SA36",2023,"LIM331",356,null,null,null,null,null,null,null,null,null,null,null,null,null,null,null,null,null,null,"~"]
["SA36",2023,"LIM331",357,null,null,null,null,null,null,null,null,null,null,null,null,null,null,null,null,null,null,"~"]
["SA36",2023,"LIM331",358,null,null,null,null,null,null,null,null,null,null,null,null,null,null,null,null,null,null,"~"]
["SA36",2023,"LIM331",359,null,null,null,null,null,null,null,null,null,null,null,null,null,null,null,null,null,null,"~"]
["SA36",2023,"LIM331",360,null,null,null,null,null,null,null,null,null,null,null,null,null,null,null,null,null,null,"~"]
["SA36",2023,"LIM331",361,null,null,null,null,null,null,null,null,null,null,null,null,null,null,null,null,null,null,"~"]
["SA36",2023,"LIM331",362,null,null,null,null,null,null,null,null,null,null,null,null,null,null,null,null,null,null,"~"]
["SA36",2023,"LIM331",363,null,null,null,null,null,null,null,null,null,null,null,null,null,null,null,null,null,null,"~"]
["SA36",2023,"LIM331",364,null,null,null,null,null,null,null,null,null,null,null,null,null,null,null,null,null,null,"~"]
["SA36",2023,"LIM331",365,null,null,null,null,null,null,null,null,null,null,null,null,null,null,null,null,null,null,"~"]
["SA36",2023,"LIM331",366,null,null,null,null,null,null,null,null,null,null,null,null,null,null,null,null,null,null,"~"]
["SA36",2023,"LIM331",367,null,null,null,null,null,null,null,null,null,null,null,null,null,null,null,null,null,null,"~"]
["SA36",2023,"LIM331",368,null,null,null,null,null,null,null,null,null,null,null,null,null,null,null,null,null,null,"~"]
["SA36",2023,"LIM331",369,null,null,null,null,null,null,null,null,null,null,null,null,null,null,null,null,null,null,"~"]
["SA36",2023,"LIM331",370,null,null,null,null,null,null,null,null,null,null,null,null,null,null,null,null,null,null,"~"]
["SA36",2023,"LIM331",371,null,null,null,null,null,null,null,null,null,null,null,null,null,null,null,null,null,null,"~"]
["SA36",2023,"LIM331",372,null,null,null,null,null,null,null,null,null,null,null,null,null,null,null,null,null,null,"~"]
["SA36",2023,"LIM331",373,null,null,null,null,null,null,null,null,null,null,null,null,null,null,null,null,null,null,"~"]
["SA36",2023,"LIM331",374,null,null,null,null,null,null,null,null,null,null,null,null,null,null,null,null,null,null,"~"]
["SA36",2023,"LIM331",375,null,null,null,null,null,null,null,null,null,null,null,null,null,null,null,null,null,null,"~"]
["SA36",2023,"LIM331",376,null,null,null,null,null,null,null,null,null,null,null,null,null,null,null,null,null,null,"~"]
["SA36",2023,"LIM331",377,null,null,null,null,null,null,null,null,null,null,null,null,null,null,null,null,null,null,"~"]
["SA36",2023,"LIM331",378,null,null,null,null,null,null,null,null,null,null,null,null,null,null,null,null,null,null,"~"]
["SA36",2023,"LIM331",379,null,null,null,null,null,null,null,null,null,null,null,null,null,null,null,null,null,null,"~"]
["SA36",2023,"LIM331",380,null,null,null,null,null,null,null,null,null,null,null,null,null,null,null,null,null,null,"~"]
["SA36",2023,"LIM331",381,null,null,null,null,null,null,null,null,null,null,null,null,null,null,null,null,null,null,"~"]
["SA36",2023,"LIM331",382,null,null,null,null,null,null,null,null,null,null,null,null,null,null,null,null,null,null,"~"]
["SA36",2023,"LIM331",383,null,null,null,null,null,null,null,null,null,null,null,null,null,null,null,null,null,null,"~"]
["SA36",2023,"LIM331",384,null,null,null,null,null,null,null,null,null,null,null,null,null,null,null,null,null,null,"~"]
["SA36",2023,"LIM331",385,null,null,null,null,null,null,null,null,null,null,null,null,null,null,null,null,null,null,"~"]
["SA36",2023,"LIM331",386,null,null,null,null,null,null,null,null,null,null,null,null,null,null,null,null,null,null,"~"]
["SA36",2023,"LIM331",387,null,null,null,null,null,null,null,null,null,null,null,null,null,null,null,null,null,null,"~"]
["SA36",2023,"LIM331",388,null,null,null,null,null,null,null,null,null,null,null,null,null,null,null,null,null,null,"~"]
["SA36",2023,"LIM331",389,null,null,null,null,null,null,null,null,null,null,null,null,null,null,null,null,null,null,"~"]
["SA36",2023,"LIM331",390,null,null,null,null,null,null,null,null,null,null,null,null,null,null,null,null,null,null,"~"]
["SA36",2023,"LIM331",391,null,null,null,null,null,null,null,null,null,null,null,null,null,null,null,null,null,null,"~"]
["SA36",2023,"LIM331",392,null,null,null,null,null,null,null,null,null,null,null,null,null,null,null,null,null,null,"~"]
["SA36",2023,"LIM331",393,null,null,null,null,null,null,null,null,null,null,null,null,null,null,null,null,null,null,"~"]
["SA36",2023,"LIM331",394,null,null,null,null,null,null,null,null,null,null,null,null,null,null,null,null,null,null,"~"]
["SA36",2023,"LIM331",395,null,null,null,null,null,null,null,null,null,null,null,null,null,null,null,null,null,null,"~"]
["SA36",2023,"LIM331",396,null,null,null,null,null,null,null,null,null,null,null,null,null,null,null,null,null,null,"~"]
["SA36",2023,"LIM331",397,null,null,null,null,null,null,null,null,null,null,null,null,null,null,null,null,null,null,"~"]
["SA36",2023,"LIM331",398,null,null,null,null,null,null,null,null,null,null,null,null,null,null,null,null,null,null,"~"]
["SA36",2023,"LIM331",399,null,null,null,null,null,null,null,null,null,null,null,null,null,null,null,null,null,null,"~"]
["SA36",2023,"LIM331",400,null,null,null,null,null,null,null,null,null,null,null,null,null,null,null,null,null,null,"~"]
["SA36",2023,"LIM331",401,null,null,null,null,null,null,null,null,null,null,null,null,null,null,null,null,null,null,"~"]
["SA36",2023,"LIM331",402,null,null,null,null,null,null,null,null,null,null,null,null,null,null,null,null,null,null,"~"]
["SA36",2023,"LIM331",403,null,null,null,null,null,null,null,null,null,null,null,null,null,null,null,null,null,null,"~"]
["SA36",2023,"LIM331",404,null,null,null,null,null,null,null,null,null,null,null,null,null,null,null,null,null,null,"~"]
["SA36",2023,"LIM331",405,null,null,null,null,null,null,null,null,null,null,null,null,null,null,null,null,null,null,"~"]
["SA36",2023,"LIM331",406,null,null,null,null,null,null,null,null,null,null,null,null,null,null,null,null,null,null,"~"]
["SA36",2023,"LIM331",407,null,null,null,null,null,null,null,null,null,null,null,null,null,null,null,null,null,null,"~"]
["SA36",{"$f":"+MTREF","v":2023},{"$f":"LEFT(muni,(FIND(\" \",muni,1)-1))","v":"LIM331"},408,null,null,null,null,null,null,null,null,null,null,null,null,null,null,null,null,null,null,"~"]
["SA36",2023,"LIM331",409,null,null,null,null,null,null,null,null,null,null,null,null,null,null,null,null,null,null,"~"]
["SA36",2023,"LIM331",410,null,null,null,null,null,null,null,null,null,null,null,null,null,null,null,null,null,null,"~"]
["SA36",2023,"LIM331",411,null,null,null,null,null,null,null,null,null,null,null,null,null,null,null,null,null,null,"~"]
["SA36",2023,"LIM331",412,null,null,null,null,null,null,null,null,null,null,null,null,null,null,null,null,null,null,"~"]
["SA36",2023,"LIM331",413,null,null,null,null,null,null,null,null,null,null,null,null,null,null,null,null,null,null,"~"]
["SA36",2023,"LIM331",414,null,null,null,null,null,null,null,null,null,null,null,null,null,null,null,null,null,null,"~"]
["SA36",2023,"LIM331",415,null,null,null,null,null,null,null,null,null,null,null,null,null,null,null,null,null,null,"~"]
["SA36",2023,"LIM331",416,null,null,null,null,null,null,null,null,null,null,null,null,null,null,null,null,null,null,"~"]
["SA36",2023,"LIM331",417,null,null,null,null,null,null,null,null,null,null,null,null,null,null,null,null,null,null,"~"]
["SA36",2023,"LIM331",418,null,null,null,null,null,null,null,null,null,null,null,null,null,null,null,null,null,null,"~"]
["SA36",2023,"LIM331",419,null,null,null,null,null,null,null,null,null,null,null,null,null,null,null,null,null,null,"~"]
["SA36",2023,"LIM331",420,null,null,null,null,null,null,null,null,null,null,null,null,null,null,null,null,null,null,"~"]
["SA36",2023,"LIM331",421,null,null,null,null,null,null,null,null,null,null,null,null,null,null,null,null,null,null,"~"]
["SA36",2023,"LIM331",422,null,null,null,null,null,null,null,null,null,null,null,null,null,null,null,null,null,null,"~"]
["SA36",2023,"LIM331",423,null,null,null,null,null,null,null,null,null,null,null,null,null,null,null,null,null,null,"~"]
["SA36",2023,"LIM331",424,null,null,null,null,null,null,null,null,null,null,null,null,null,null,null,null,null,null,"~"]
["SA36",2023,"LIM331",425,null,null,null,null,null,null,null,null,null,null,null,null,null,null,null,null,null,null,"~"]
["SA36",2023,"LIM331",426,null,null,null,null,null,null,null,null,null,null,null,null,null,null,null,null,null,null,"~"]
["SA36",2023,"LIM331",427,null,null,null,null,null,null,null,null,null,null,null,null,null,null,null,null,null,null,"~"]
["SA36",2023,"LIM331",428,null,null,null,null,null,null,null,null,null,null,null,null,null,null,null,null,null,null,"~"]
["SA36",2023,"LIM331",429,null,null,null,null,null,null,null,null,null,null,null,null,null,null,null,null,null,null,"~"]
["SA36",2023,"LIM331",430,null,null,null,null,null,null,null,null,null,null,null,null,null,null,null,null,null,null,"~"]
["SA36",2023,"LIM331",431,null,null,null,null,null,null,null,null,null,null,null,null,null,null,null,null,null,null,"~"]
["SA36",2023,"LIM331",432,null,null,null,null,null,null,null,null,null,null,null,null,null,null,null,null,null,null,"~"]
["SA36",2023,"LIM331",433,null,null,null,null,null,null,null,null,null,null,null,null,null,null,null,null,null,null,"~"]
["SA36",2023,"LIM331",434,null,null,null,null,null,null,null,null,null,null,null,null,null,null,null,null,null,null,"~"]
["SA36",2023,"LIM331",435,null,null,null,null,null,null,null,null,null,null,null,null,null,null,null,null,null,null,"~"]
["SA36",2023,"LIM331",436,null,null,null,null,null,null,null,null,null,null,null,null,null,null,null,null,null,null,"~"]
["SA36",2023,"LIM331",437,null,null,null,null,null,null,null,null,null,null,null,null,null,null,null,null,null,null,"~"]
["SA36",2023,"LIM331",438,null,null,null,null,null,null,null,null,null,null,null,null,null,null,null,null,null,null,"~"]
["SA36",2023,"LIM331",439,null,null,null,null,null,null,null,null,null,null,null,null,null,null,null,null,null,null,"~"]
["SA36",2023,"LIM331",440,null,null,null,null,null,null,null,null,null,null,null,null,null,null,null,null,null,null,"~"]
["SA36",2023,"LIM331",441,null,null,null,null,null,null,null,null,null,null,null,null,null,null,null,null,null,null,"~"]
["SA36",2023,"LIM331",442,null,null,null,null,null,null,null,null,null,null,null,null,null,null,null,null,null,null,"~"]
["SA36",2023,"LIM331",443,null,null,null,null,null,null,null,null,null,null,null,null,null,null,null,null,null,null,"~"]
["SA36",2023,"LIM331",444,null,null,null,null,null,null,null,null,null,null,null,null,null,null,null,null,null,null,"~"]
["SA36",2023,"LIM331",445,null,null,null,null,null,null,null,null,null,null,null,null,null,null,null,null,null,null,"~"]
["SA36",2023,"LIM331",446,null,null,null,null,null,null,null,null,null,null,null,null,null,null,null,null,null,null,"~"]
["SA36",2023,"LIM331",447,null,null,null,null,null,null,null,null,null,null,null,null,null,null,null,null,null,null,"~"]
["SA36",2023,"LIM331",448,null,null,null,null,null,null,null,null,null,null,null,null,null,null,null,null,null,null,"~"]
["SA36",2023,"LIM331",449,null,null,null,null,null,null,null,null,null,null,null,null,null,null,null,null,null,null,"~"]
["SA36",2023,"LIM331",450,null,null,null,null,null,null,null,null,null,null,null,null,null,null,null,null,null,null,"~"]
["SA36",2023,"LIM331",451,null,null,null,null,null,null,null,null,null,null,null,null,null,null,null,null,null,null,"~"]
["SA36",2023,"LIM331",452,null,null,null,null,null,null,null,null,null,null,null,null,null,null,null,null,null,null,"~"]
["SA36",2023,"LIM331",453,null,null,null,null,null,null,null,null,null,null,null,null,null,null,null,null,null,null,"~"]
["SA36",2023,"LIM331",454,null,null,null,null,null,null,null,null,null,null,null,null,null,null,null,null,null,null,"~"]
["SA36",2023,"LIM331",455,null,null,null,null,null,null,null,null,null,null,null,null,null,null,null,null,null,null,"~"]
["SA36",2023,"LIM331",456,null,null,null,null,null,null,null,null,null,null,null,null,null,null,null,null,null,null,"~"]
["SA36",2023,"LIM331",457,null,null,null,null,null,null,null,null,null,null,null,null,null,null,null,null,null,null,"~"]
["SA36",2023,"LIM331",458,null,null,null,null,null,null,null,null,null,null,null,null,null,null,null,null,null,null,"~"]
["SA36",2023,"LIM331",459,null,null,null,null,null,null,null,null,null,null,null,null,null,null,null,null,null,null,"~"]
["SA36",2023,"LIM331",460,null,null,null,null,null,null,null,null,null,null,null,null,null,null,null,null,null,null,"~"]
["SA36",2023,"LIM331",461,null,null,null,null,null,null,null,null,null,null,null,null,null,null,null,null,null,null,"~"]
["SA36",2023,"LIM331",462,null,null,null,null,null,null,null,null,null,null,null,null,null,null,null,null,null,null,"~"]
["SA36",2023,"LIM331",463,null,null,null,null,null,null,null,null,null,null,null,null,null,null,null,null,null,null,"~"]
["SA36",2023,"LIM331",464,null,null,null,null,null,null,null,null,null,null,null,null,null,null,null,null,null,null,"~"]
["SA36",2023,"LIM331",465,null,null,null,null,null,null,null,null,null,null,null,null,null,null,null,null,null,null,"~"]
["SA36",2023,"LIM331",466,null,null,null,null,null,null,null,null,null,null,null,null,null,null,null,null,null,null,"~"]
["SA36",2023,"LIM331",467,null,null,null,null,null,null,null,null,null,null,null,null,null,null,null,null,null,null,"~"]
["SA36",2023,"LIM331",468,null,null,null,null,null,null,null,null,null,null,null,null,null,null,null,null,null,null,"~"]
["SA36",2023,"LIM331",469,null,null,null,null,null,null,null,null,null,null,null,null,null,null,null,null,null,null,"~"]
["SA36",2023,"LIM331",470,null,null,null,null,null,null,null,null,null,null,null,null,null,null,null,null,null,null,"~"]
["SA36",2023,"LIM331",471,null,null,null,null,null,null,null,null,null,null,null,null,null,null,null,null,null,null,"~"]
["SA36",{"$f":"+MTREF","v":2023},{"$f":"LEFT(muni,(FIND(\" \",muni,1)-1))","v":"LIM331"},472,null,null,null,null,null,null,null,null,null,null,null,null,null,null,null,null,null,null,"~"]
["SA36",2023,"LIM331",473,null,null,null,null,null,null,null,null,null,null,null,null,null,null,null,null,null,null,"~"]
["SA36",2023,"LIM331",474,null,null,null,null,null,null,null,null,null,null,null,null,null,null,null,null,null,null,"~"]
["SA36",2023,"LIM331",475,null,null,null,null,null,null,null,null,null,null,null,null,null,null,null,null,null,null,"~"]
["SA36",2023,"LIM331",476,null,null,null,null,null,null,null,null,null,null,null,null,null,null,null,null,null,null,"~"]
["SA36",2023,"LIM331",477,null,null,null,null,null,null,null,null,null,null,null,null,null,null,null,null,null,null,"~"]
["SA36",2023,"LIM331",478,null,null,null,null,null,null,null,null,null,null,null,null,null,null,null,null,null,null,"~"]
["SA36",2023,"LIM331",479,null,null,null,null,null,null,null,null,null,null,null,null,null,null,null,null,null,null,"~"]
["SA36",2023,"LIM331",480,null,null,null,null,null,null,null,null,null,null,null,null,null,null,null,null,null,null,"~"]
["SA36",2023,"LIM331",481,null,null,null,null,null,null,null,null,null,null,null,null,null,null,null,null,null,null,"~"]
["SA36",2023,"LIM331",482,null,null,null,null,null,null,null,null,null,null,null,null,null,null,null,null,null,null,"~"]
["SA36",2023,"LIM331",483,null,null,null,null,null,null,null,null,null,null,null,null,null,null,null,null,null,null,"~"]
["SA36",2023,"LIM331",484,null,null,null,null,null,null,null,null,null,null,null,null,null,null,null,null,null,null,"~"]
["SA36",2023,"LIM331",485,null,null,null,null,null,null,null,null,null,null,null,null,null,null,null,null,null,null,"~"]
["SA36",2023,"LIM331",486,null,null,null,null,null,null,null,null,null,null,null,null,null,null,null,null,null,null,"~"]
["SA36",2023,"LIM331",487,null,null,null,null,null,null,null,null,null,null,null,null,null,null,null,null,null,null,"~"]
["SA36",2023,"LIM331",488,null,null,null,null,null,null,null,null,null,null,null,null,null,null,null,null,null,null,"~"]
["SA36",2023,"LIM331",489,null,null,null,null,null,null,null,null,null,null,null,null,null,null,null,null,null,null,"~"]
["SA36",2023,"LIM331",490,null,null,null,null,null,null,null,null,null,null,null,null,null,null,null,null,null,null,"~"]
["SA36",2023,"LIM331",491,null,null,null,null,null,null,null,null,null,null,null,null,null,null,null,null,null,null,"~"]
["SA36",2023,"LIM331",492,null,null,null,null,null,null,null,null,null,null,null,null,null,null,null,null,null,null,"~"]
["SA36",2023,"LIM331",493,null,null,null,null,null,null,null,null,null,null,null,null,null,null,null,null,null,null,"~"]
["SA36",2023,"LIM331",494,null,null,null,null,null,null,null,null,null,null,null,null,null,null,null,null,null,null,"~"]
["SA36",2023,"LIM331",495,null,null,null,null,null,null,null,null,null,null,null,null,null,null,null,null,null,null,"~"]
["SA36",2023,"LIM331",496,null,null,null,null,null,null,null,null,null,null,null,null,null,null,null,null,null,null,"~"]
["SA36",2023,"LIM331",497,null,null,null,null,null,null,null,null,null,null,null,null,null,null,null,null,null,null,"~"]
["SA36",2023,"LIM331",498,null,null,null,null,null,null,null,null,null,null,null,null,null,null,null,null,null,null,"~"]
["SA36",2023,"LIM331",499,null,null,null,null,null,null,null,null,null,null,null,null,null,null,null,null,null,null,"~"]
["SA36",2023,"LIM331",500,null,null,null,null,null,null,null,null,null,null,null,null,null,null,null,null,null,null,"~"]
["SA36",2023,"LIM331",501,null,null,null,null,null,null,null,null,null,null,null,null,null,null,null,null,null,null,"~"]
["SA36",2023,"LIM331",502,null,null,null,null,null,null,null,null,null,null,null,null,null,null,null,null,null,null,"~"]
["SA36",2023,"LIM331",503,null,null,null,null,null,null,null,null,null,null,null,null,null,null,null,null,null,null,"~"]
["SA36",2023,"LIM331",504,null,null,null,null,null,null,null,null,null,null,null,null,null,null,null,null,null,null,"~"]
["SA36",2023,"LIM331",505,null,null,null,null,null,null,null,null,null,null,null,null,null,null,null,null,null,null,"~"]
["SA36",2023,"LIM331",506,null,null,null,null,null,null,null,null,null,null,null,null,null,null,null,null,null,null,"~"]
["SA36",2023,"LIM331",507,null,null,null,null,null,null,null,null,null,null,null,null,null,null,null,null,null,null,"~"]
["SA36",2023,"LIM331",508,null,null,null,null,null,null,null,null,null,null,null,null,null,null,null,null,null,null,"~"]
["SA36",2023,"LIM331",509,null,null,null,null,null,null,null,null,null,null,null,null,null,null,null,null,null,null,"~"]
["SA36",2023,"LIM331",510,null,null,null,null,null,null,null,null,null,null,null,null,null,null,null,null,null,null,"~"]
["SA36",2023,"LIM331",511,null,null,null,null,null,null,null,null,null,null,null,null,null,null,null,null,null,null,"~"]
["SA36",2023,"LIM331",512,null,null,null,null,null,null,null,null,null,null,null,null,null,null,null,null,null,null,"~"]
["SA36",2023,"LIM331",513,null,null,null,null,null,null,null,null,null,null,null,null,null,null,null,null,null,null,"~"]
["SA36",2023,"LIM331",514,null,null,null,null,null,null,null,null,null,null,null,null,null,null,null,null,null,null,"~"]
["SA36",2023,"LIM331",515,null,null,null,null,null,null,null,null,null,null,null,null,null,null,null,null,null,null,"~"]
["SA36",2023,"LIM331",516,null,null,null,null,null,null,null,null,null,null,null,null,null,null,null,null,null,null,"~"]
["SA36",2023,"LIM331",517,null,null,null,null,null,null,null,null,null,null,null,null,null,null,null,null,null,null,"~"]
["SA36",2023,"LIM331",518,null,null,null,null,null,null,null,null,null,null,null,null,null,null,null,null,null,null,"~"]
["SA36",2023,"LIM331",519,null,null,null,null,null,null,null,null,null,null,null,null,null,null,null,null,null,null,"~"]
["SA36",2023,"LIM331",520,null,null,null,null,null,null,null,null,null,null,null,null,null,null,null,null,null,null,"~"]
["SA36",2023,"LIM331",521,null,null,null,null,null,null,null,null,null,null,null,null,null,null,null,null,null,null,"~"]
["SA36",2023,"LIM331",522,null,null,null,null,null,null,null,null,null,null,null,null,null,null,null,null,null,null,"~"]
["SA36",2023,"LIM331",523,null,null,null,null,null,null,null,null,null,null,null,null,null,null,null,null,null,null,"~"]
["SA36",2023,"LIM331",524,null,null,null,null,null,null,null,null,null,null,null,null,null,null,null,null,null,null,"~"]
["SA36",2023,"LIM331",525,null,null,null,null,null,null,null,null,null,null,null,null,null,null,null,null,null,null,"~"]
["SA36",2023,"LIM331",526,null,null,null,null,null,null,null,null,null,null,null,null,null,null,null,null,null,null,"~"]
["SA36",2023,"LIM331",527,null,null,null,null,null,null,null,null,null,null,null,null,null,null,null,null,null,null,"~"]
["SA36",2023,"LIM331",528,null,null,null,null,null,null,null,null,null,null,null,null,null,null,null,null,null,null,"~"]
["SA36",2023,"LIM331",529,null,null,null,null,null,null,null,null,null,null,null,null,null,null,null,null,null,null,"~"]
["SA36",2023,"LIM331",530,null,null,null,null,null,null,null,null,null,null,null,null,null,null,null,null,null,null,"~"]
["SA36",2023,"LIM331",531,null,null,null,null,null,null,null,null,null,null,null,null,null,null,null,null,null,null,"~"]
["SA36",2023,"LIM331",532,null,null,null,null,null,null,null,null,null,null,null,null,null,null,null,null,null,null,"~"]
["SA36",2023,"LIM331",533,null,null,null,null,null,null,null,null,null,null,null,null,null,null,null,null,null,null,"~"]
["SA36",2023,"LIM331",534,null,null,null,null,null,null,null,null,null,null,null,null,null,null,null,null,null,null,"~"]
["SA36",2023,"LIM331",535,null,null,null,null,null,null,null,null,null,null,null,null,null,null,null,null,null,null,"~"]
["SA36",{"$f":"+MTREF","v":2023},{"$f":"LEFT(muni,(FIND(\" \",muni,1)-1))","v":"LIM331"},536,null,null,null,null,null,null,null,null,null,null,null,null,null,null,null,null,null,null,"~"]
["SA36",2023,"LIM331",537,null,null,null,null,null,null,null,null,null,null,null,null,null,null,null,null,null,null,"~"]
["SA36",2023,"LIM331",538,null,null,null,null,null,null,null,null,null,null,null,null,null,null,null,null,null,null,"~"]
["SA36",2023,"LIM331",539,null,null,null,null,null,null,null,null,null,null,null,null,null,null,null,null,null,null,"~"]
["SA36",2023,"LIM331",540,null,null,null,null,null,null,null,null,null,null,null,null,null,null,null,null,null,null,"~"]
["SA36",2023,"LIM331",541,null,null,null,null,null,null,null,null,null,null,null,null,null,null,null,null,null,null,"~"]
["SA36",2023,"LIM331",542,null,null,null,null,null,null,null,null,null,null,null,null,null,null,null,null,null,null,"~"]
["SA36",2023,"LIM331",543,null,null,null,null,null,null,null,null,null,null,null,null,null,null,null,null,null,null,"~"]
["SA36",2023,"LIM331",544,null,null,null,null,null,null,null,null,null,null,null,null,null,null,null,null,null,null,"~"]
["SA36",2023,"LIM331",545,null,null,null,null,null,null,null,null,null,null,null,null,null,null,null,null,null,null,"~"]
["SA36",2023,"LIM331",546,null,null,null,null,null,null,null,null,null,null,null,null,null,null,null,null,null,null,"~"]
["SA36",2023,"LIM331",547,null,null,null,null,null,null,null,null,null,null,null,null,null,null,null,null,null,null,"~"]
["SA36",2023,"LIM331",548,null,null,null,null,null,null,null,null,null,null,null,null,null,null,null,null,null,null,"~"]
["SA36",2023,"LIM331",549,null,null,null,null,null,null,null,null,null,null,null,null,null,null,null,null,null,null,"~"]
["SA36",2023,"LIM331",550,null,null,null,null,null,null,null,null,null,null,null,null,null,null,null,null,null,null,"~"]
["SA36",2023,"LIM331",551,null,null,null,null,null,null,null,null,null,null,null,null,null,null,null,null,null,null,"~"]
["SA36",2023,"LIM331",552,null,null,null,null,null,null,null,null,null,null,null,null,null,null,null,null,null,null,"~"]
["SA36",2023,"LIM331",553,null,null,null,null,null,null,null,null,null,null,null,null,null,null,null,null,null,null,"~"]
["SA36",2023,"LIM331",554,null,null,null,null,null,null,null,null,null,null,null,null,null,null,null,null,null,null,"~"]
["SA36",2023,"LIM331",555,null,null,null,null,null,null,null,null,null,null,null,null,null,null,null,null,null,null,"~"]
["SA36",2023,"LIM331",556,null,null,null,null,null,null,null,null,null,null,null,null,null,null,null,null,null,null,"~"]
["SA36",2023,"LIM331",557,null,null,null,null,null,null,null,null,null,null,null,null,null,null,null,null,null,null,"~"]
["SA36",2023,"LIM331",558,null,null,null,null,null,null,null,null,null,null,null,null,null,null,null,null,null,null,"~"]
["SA36",2023,"LIM331",559,null,null,null,null,null,null,null,null,null,null,null,null,null,null,null,null,null,null,"~"]
["SA36",2023,"LIM331",560,null,null,null,null,null,null,null,null,null,null,null,null,null,null,null,null,null,null,"~"]
["SA36",2023,"LIM331",561,null,null,null,null,null,null,null,null,null,null,null,null,null,null,null,null,null,null,"~"]
["SA36",2023,"LIM331",562,null,null,null,null,null,null,null,null,null,null,null,null,null,null,null,null,null,null,"~"]
["SA36",2023,"LIM331",563,null,null,null,null,null,null,null,null,null,null,null,null,null,null,null,null,null,null,"~"]
["SA36",2023,"LIM331",564,null,null,null,null,null,null,null,null,null,null,null,null,null,null,null,null,null,null,"~"]
["SA36",2023,"LIM331",565,null,null,null,null,null,null,null,null,null,null,null,null,null,null,null,null,null,null,"~"]
["SA36",2023,"LIM331",566,null,null,null,null,null,null,null,null,null,null,null,null,null,null,null,null,null,null,"~"]
["SA36",2023,"LIM331",567,null,null,null,null,null,null,null,null,null,null,null,null,null,null,null,null,null,null,"~"]
["SA36",2023,"LIM331",568,null,null,null,null,null,null,null,null,null,null,null,null,null,null,null,null,null,null,"~"]
["SA36",2023,"LIM331",569,null,null,null,null,null,null,null,null,null,null,null,null,null,null,null,null,null,null,"~"]
["SA36",2023,"LIM331",570,null,null,null,null,null,null,null,null,null,null,null,null,null,null,null,null,null,null,"~"]
["SA36",2023,"LIM331",571,null,null,null,null,null,null,null,null,null,null,null,null,null,null,null,null,null,null,"~"]
["SA36",2023,"LIM331",572,null,null,null,null,null,null,null,null,null,null,null,null,null,null,null,null,null,null,"~"]
["SA36",2023,"LIM331",573,null,null,null,null,null,null,null,null,null,null,null,null,null,null,null,null,null,null,"~"]
["SA36",2023,"LIM331",574,null,null,null,null,null,null,null,null,null,null,null,null,null,null,null,null,null,null,"~"]
["SA36",2023,"LIM331",575,null,null,null,null,null,null,null,null,null,null,null,null,null,null,null,null,null,null,"~"]
["SA36",2023,"LIM331",576,null,null,null,null,null,null,null,null,null,null,null,null,null,null,null,null,null,null,"~"]
["SA36",2023,"LIM331",577,null,null,null,null,null,null,null,null,null,null,null,null,null,null,null,null,null,null,"~"]
["SA36",2023,"LIM331",578,null,null,null,null,null,null,null,null,null,null,null,null,null,null,null,null,null,null,"~"]
["SA36",2023,"LIM331",579,null,null,null,null,null,null,null,null,null,null,null,null,null,null,null,null,null,null,"~"]
["SA36",2023,"LIM331",580,null,null,null,null,null,null,null,null,null,null,null,null,null,null,null,null,null,null,"~"]
["SA36",2023,"LIM331",581,null,null,null,null,null,null,null,null,null,null,null,null,null,null,null,null,null,null,"~"]
["SA36",2023,"LIM331",582,null,null,null,null,null,null,null,null,null,null,null,null,null,null,null,null,null,null,"~"]
["SA36",2023,"LIM331",583,null,null,null,null,null,null,null,null,null,null,null,null,null,null,null,null,null,null,"~"]
["SA36",2023,"LIM331",584,null,null,null,null,null,null,null,null,null,null,null,null,null,null,null,null,null,null,"~"]
["SA36",2023,"LIM331",585,null,null,null,null,null,null,null,null,null,null,null,null,null,null,null,null,null,null,"~"]
["SA36",2023,"LIM331",586,null,null,null,null,null,null,null,null,null,null,null,null,null,null,null,null,null,null,"~"]
["SA36",2023,"LIM331",587,null,null,null,null,null,null,null,null,null,null,null,null,null,null,null,null,null,null,"~"]
["SA36",2023,"LIM331",588,null,null,null,null,null,null,null,null,null,null,null,null,null,null,null,null,null,null,"~"]
["SA36",2023,"LIM331",589,null,null,null,null,null,null,null,null,null,null,null,null,null,null,null,null,null,null,"~"]
["SA36",2023,"LIM331",590,null,null,null,null,null,null,null,null,null,null,null,null,null,null,null,null,null,null,"~"]
["SA36",2023,"LIM331",591,null,null,null,null,null,null,null,null,null,null,null,null,null,null,null,null,null,null,"~"]
["SA36",2023,"LIM331",592,null,null,null,null,null,null,null,null,null,null,null,null,null,null,null,null,null,null,"~"]
["SA36",2023,"LIM331",593,null,null,null,null,null,null,null,null,null,null,null,null,null,null,null,null,null,null,"~"]
["SA36",2023,"LIM331",594,null,null,null,null,null,null,null,null,null,null,null,null,null,null,null,null,null,null,"~"]
["SA36",2023,"LIM331",595,null,null,null,null,null,null,null,null,null,null,null,null,null,null,null,null,null,null,"~"]
["SA36",2023,"LIM331",596,null,null,null,null,null,null,null,null,null,null,null,null,null,null,null,null,null,null,"~"]
["SA36",2023,"LIM331",597,null,null,null,null,null,null,null,null,null,null,null,null,null,null,null,null,null,null,"~"]
["SA36",2023,"LIM331",598,null,null,null,null,null,null,null,null,null,null,null,null,null,null,null,null,null,null,"~"]
["SA36",2023,"LIM331",599,null,null,null,null,null,null,null,null,null,null,null,null,null,null,null,null,null,null,"~"]
["SA36",{"$f":"+MTREF","v":2023},{"$f":"LEFT(muni,(FIND(\" \",muni,1)-1))","v":"LIM331"},600,null,null,null,null,null,null,null,null,null,null,null,null,null,null,null,null,null,null,"~"]
["SA36",2023,"LIM331",601,null,null,null,null,null,null,null,null,null,null,null,null,null,null,null,null,null,null,"~"]
["SA36",2023,"LIM331",602,null,null,null,null,null,null,null,null,null,null,null,null,null,null,null,null,null,null,"~"]
["SA36",2023,"LIM331",603,null,null,null,null,null,null,null,null,null,null,null,null,null,null,null,null,null,null,"~"]
["SA36",2023,"LIM331",604,null,null,null,null,null,null,null,null,null,null,null,null,null,null,null,null,null,null,"~"]
["SA36",2023,"LIM331",605,null,null,null,null,null,null,null,null,null,null,null,null,null,null,null,null,null,null,"~"]
["SA36",2023,"LIM331",606,null,null,null,null,null,null,null,null,null,null,null,null,null,null,null,null,null,null,"~"]
["SA36",2023,"LIM331",607,null,null,null,null,null,null,null,null,null,null,null,null,null,null,null,null,null,null,"~"]
["SA36",2023,"LIM331",608,null,null,null,null,null,null,null,null,null,null,null,null,null,null,null,null,null,null,"~"]
["SA36",2023,"LIM331",609,null,null,null,null,null,null,null,null,null,null,null,null,null,null,null,null,null,null,"~"]
["SA36",2023,"LIM331",610,null,null,null,null,null,null,null,null,null,null,null,null,null,null,null,null,null,null,"~"]
["SA36",2023,"LIM331",611,null,null,null,null,null,null,null,null,null,null,null,null,null,null,null,null,null,null,"~"]
["SA36",2023,"LIM331",612,null,null,null,null,null,null,null,null,null,null,null,null,null,null,null,null,null,null,"~"]
["SA36",2023,"LIM331",613,null,null,null,null,null,null,null,null,null,null,null,null,null,null,null,null,null,null,"~"]
["SA36",2023,"LIM331",614,null,null,null,null,null,null,null,null,null,null,null,null,null,null,null,null,null,null,"~"]
["SA36",2023,"LIM331",615,null,null,null,null,null,null,null,null,null,null,null,null,null,null,null,null,null,null,"~"]
["SA36",2023,"LIM331",616,null,null,null,null,null,null,null,null,null,null,null,null,null,null,null,null,null,null,"~"]
["SA36",2023,"LIM331",617,null,null,null,null,null,null,null,null,null,null,null,null,null,null,null,null,null,null,"~"]
["SA36",2023,"LIM331",618,null,null,null,null,null,null,null,null,null,null,null,null,null,null,null,null,null,null,"~"]
["SA36",2023,"LIM331",619,null,null,null,null,null,null,null,null,null,null,null,null,null,null,null,null,null,null,"~"]
["SA36",2023,"LIM331",620,null,null,null,null,null,null,null,null,null,null,null,null,null,null,null,null,null,null,"~"]
["SA36",2023,"LIM331",621,null,null,null,null,null,null,null,null,null,null,null,null,null,null,null,null,null,null,"~"]
["SA36",2023,"LIM331",622,null,null,null,null,null,null,null,null,null,null,null,null,null,null,null,null,null,null,"~"]
["SA36",2023,"LIM331",623,null,null,null,null,null,null,null,null,null,null,null,null,null,null,null,null,null,null,"~"]
["SA36",2023,"LIM331",624,null,null,null,null,null,null,null,null,null,null,null,null,null,null,null,null,null,null,"~"]
["SA36",2023,"LIM331",625,null,null,null,null,null,null,null,null,null,null,null,null,null,null,null,null,null,null,"~"]
["SA36",2023,"LIM331",626,null,null,null,null,null,null,null,null,null,null,null,null,null,null,null,null,null,null,"~"]
["SA36",2023,"LIM331",627,null,null,null,null,null,null,null,null,null,null,null,null,null,null,null,null,null,null,"~"]
["SA36",2023,"LIM331",628,null,null,null,null,null,null,null,null,null,null,null,null,null,null,null,null,null,null,"~"]
["SA36",2023,"LIM331",629,null,null,null,null,null,null,null,null,null,null,null,null,null,null,null,null,null,null,"~"]
["SA36",2023,"LIM331",630,null,null,null,null,null,null,null,null,null,null,null,null,null,null,null,null,null,null,"~"]
["SA36",2023,"LIM331",631,null,null,null,null,null,null,null,null,null,null,null,null,null,null,null,null,null,null,"~"]
["SA36",2023,"LIM331",632,null,null,null,null,null,null,null,null,null,null,null,null,null,null,null,null,null,null,"~"]
["SA36",2023,"LIM331",633,null,null,null,null,null,null,null,null,null,null,null,null,null,null,null,null,null,null,"~"]
["SA36",2023,"LIM331",634,null,null,null,null,null,null,null,null,null,null,null,null,null,null,null,null,null,null,"~"]
["SA36",2023,"LIM331",635,null,null,null,null,null,null,null,null,null,null,null,null,null,null,null,null,null,null,"~"]
["SA36",2023,"LIM331",636,null,null,null,null,null,null,null,null,null,null,null,null,null,null,null,null,null,null,"~"]
["SA36",2023,"LIM331",637,null,null,null,null,null,null,null,null,null,null,null,null,null,null,null,null,null,null,"~"]
["SA36",2023,"LIM331",638,null,null,null,null,null,null,null,null,null,null,null,null,null,null,null,null,null,null,"~"]
["SA36",2023,"LIM331",639,null,null,null,null,null,null,null,null,null,null,null,null,null,null,null,null,null,null,"~"]
["SA36",2023,"LIM331",640,null,null,null,null,null,null,null,null,null,null,null,null,null,null,null,null,null,null,"~"]
["SA36",2023,"LIM331",641,null,null,null,null,null,null,null,null,null,null,null,null,null,null,null,null,null,null,"~"]
["SA36",2023,"LIM331",642,null,null,null,null,null,null,null,null,null,null,null,null,null,null,null,null,null,null,"~"]
["SA36",2023,"LIM331",643,null,null,null,null,null,null,null,null,null,null,null,null,null,null,null,null,null,null,"~"]
["SA36",2023,"LIM331",644,null,null,null,null,null,null,null,null,null,null,null,null,null,null,null,null,null,null,"~"]
["SA36",2023,"LIM331",645,null,null,null,null,null,null,null,null,null,null,null,null,null,null,null,null,null,null,"~"]
["SA36",2023,"LIM331",646,null,null,null,null,null,null,null,null,null,null,null,null,null,null,null,null,null,null,"~"]
["SA36",2023,"LIM331",647,null,null,null,null,null,null,null,null,null,null,null,null,null,null,null,null,null,null,"~"]
["SA36",2023,"LIM331",648,null,null,null,null,null,null,null,null,null,null,null,null,null,null,null,null,null,null,"~"]
["SA36",2023,"LIM331",649,null,null,null,null,null,null,null,null,null,null,null,null,null,null,null,null,null,null,"~"]
["SA36",2023,"LIM331",650,null,null,null,null,null,null,null,null,null,null,null,null,null,null,null,null,null,null,"~"]
["SA36",2023,"LIM331",651,null,null,null,null,null,null,null,null,null,null,null,null,null,null,null,null,null,null,"~"]
["SA36",2023,"LIM331",652,null,null,null,null,null,null,null,null,null,null,null,null,null,null,null,null,null,null,"~"]
["SA36",2023,"LIM331",653,null,null,null,null,null,null,null,null,null,null,null,null,null,null,null,null,null,null,"~"]
["SA36",2023,"LIM331",654,null,null,null,null,null,null,null,null,null,null,null,null,null,null,null,null,null,null,"~"]
["SA36",2023,"LIM331",655,null,null,null,null,null,null,null,null,null,null,null,null,null,null,null,null,null,null,"~"]
["SA36",2023,"LIM331",656,null,null,null,null,null,null,null,null,null,null,null,null,null,null,null,null,null,null,"~"]
["SA36",2023,"LIM331",657,null,null,null,null,null,null,null,null,null,null,null,null,null,null,null,null,null,null,"~"]
["SA36",2023,"LIM331",658,null,null,null,null,null,null,null,null,null,null,null,null,null,null,null,null,null,null,"~"]
["SA36",2023,"LIM331",659,null,null,null,null,null,null,null,null,null,null,null,null,null,null,null,null,null,null,"~"]
["SA36",2023,"LIM331",660,null,null,null,null,null,null,null,null,null,null,null,null,null,null,null,null,null,null,"~"]
["SA36",2023,"LIM331",661,null,null,null,null,null,null,null,null,null,null,null,null,null,null,null,null,null,null,"~"]
["SA36",2023,"LIM331",662,null,null,null,null,null,null,null,null,null,null,null,null,null,null,null,null,null,null,"~"]
["SA36",2023,"LIM331",663,null,null,null,null,null,null,null,null,null,null,null,null,null,null,null,null,null,null,"~"]
["SA36",{"$f":"+MTREF","v":2023},{"$f":"LEFT(muni,(FIND(\" \",muni,1)-1))","v":"LIM331"},664,null,null,null,null,null,null,null,null,null,null,null,null,null,null,null,null,null,null,"~"]
["SA36",2023,"LIM331",665,null,null,null,null,null,null,null,null,null,null,null,null,null,null,null,null,null,null,"~"]
["SA36",2023,"LIM331",666,null,null,null,null,null,null,null,null,null,null,null,null,null,null,null,null,null,null,"~"]
["SA36",2023,"LIM331",667,null,null,null,null,null,null,null,null,null,null,null,null,null,null,null,null,null,null,"~"]
["SA36",2023,"LIM331",668,null,null,null,null,null,null,null,null,null,null,null,null,null,null,null,null,null,null,"~"]
["SA36",2023,"LIM331",669,null,null,null,null,null,null,null,null,null,null,null,null,null,null,null,null,null,null,"~"]
["SA36",2023,"LIM331",670,null,null,null,null,null,null,null,null,null,null,null,null,null,null,null,null,null,null,"~"]
["SA36",2023,"LIM331",671,null,null,null,null,null,null,null,null,null,null,null,null,null,null,null,null,null,null,"~"]
["SA36",2023,"LIM331",672,null,null,null,null,null,null,null,null,null,null,null,null,null,null,null,null,null,null,"~"]
["SA36",2023,"LIM331",673,null,null,null,null,null,null,null,null,null,null,null,null,null,null,null,null,null,null,"~"]
["SA36",2023,"LIM331",674,null,null,null,null,null,null,null,null,null,null,null,null,null,null,null,null,null,null,"~"]
["SA36",2023,"LIM331",675,null,null,null,null,null,null,null,null,null,null,null,null,null,null,null,null,null,null,"~"]
["SA36",2023,"LIM331",676,null,null,null,null,null,null,null,null,null,null,null,null,null,null,null,null,null,null,"~"]
["SA36",2023,"LIM331",677,null,null,null,null,null,null,null,null,null,null,null,null,null,null,null,null,null,null,"~"]
["SA36",2023,"LIM331",678,null,null,null,null,null,null,null,null,null,null,null,null,null,null,null,null,null,null,"~"]
["SA36",2023,"LIM331",679,null,null,null,null,null,null,null,null,null,null,null,null,null,null,null,null,null,null,"~"]
["SA36",2023,"LIM331",680,null,null,null,null,null,null,null,null,null,null,null,null,null,null,null,null,null,null,"~"]
["SA36",2023,"LIM331",681,null,null,null,null,null,null,null,null,null,null,null,null,null,null,null,null,null,null,"~"]
["SA36",2023,"LIM331",682,null,null,null,null,null,null,null,null,null,null,null,null,null,null,null,null,null,null,"~"]
["SA36",2023,"LIM331",683,null,null,null,null,null,null,null,null,null,null,null,null,null,null,null,null,null,null,"~"]
["SA36",2023,"LIM331",684,null,null,null,null,null,null,null,null,null,null,null,null,null,null,null,null,null,null,"~"]
["SA36",2023,"LIM331",685,null,null,null,null,null,null,null,null,null,null,null,null,null,null,null,null,null,null,"~"]
["SA36",2023,"LIM331",686,null,null,null,null,null,null,null,null,null,null,null,null,null,null,null,null,null,null,"~"]
["SA36",2023,"LIM331",687,null,null,null,null,null,null,null,null,null,null,null,null,null,null,null,null,null,null,"~"]
["SA36",2023,"LIM331",688,null,null,null,null,null,null,null,null,null,null,null,null,null,null,null,null,null,null,"~"]
["SA36",2023,"LIM331",689,null,null,null,null,null,null,null,null,null,null,null,null,null,null,null,null,null,null,"~"]
["SA36",2023,"LIM331",690,null,null,null,null,null,null,null,null,null,null,null,null,null,null,null,null,null,null,"~"]
["SA36",2023,"LIM331",691,null,null,null,null,null,null,null,null,null,null,null,null,null,null,null,null,null,null,"~"]
["SA36",2023,"LIM331",692,null,null,null,null,null,null,null,null,null,null,null,null,null,null,null,null,null,null,"~"]
["SA36",2023,"LIM331",693,null,null,null,null,null,null,null,null,null,null,null,null,null,null,null,null,null,null,"~"]
["SA36",2023,"LIM331",694,null,null,null,null,null,null,null,null,null,null,null,null,null,null,null,null,null,null,"~"]
["SA36",2023,"LIM331",695,null,null,null,null,null,null,null,null,null,null,null,null,null,null,null,null,null,null,"~"]
["SA36",2023,"LIM331",696,null,null,null,null,null,null,null,null,null,null,null,null,null,null,null,null,null,null,"~"]
["SA36",2023,"LIM331",697,null,null,null,null,null,null,null,null,null,null,null,null,null,null,null,null,null,null,"~"]
["SA36",2023,"LIM331",698,null,null,null,null,null,null,null,null,null,null,null,null,null,null,null,null,null,null,"~"]
["SA36",2023,"LIM331",699,null,null,null,null,null,null,null,null,null,null,null,null,null,null,null,null,null,null,"~"]
["SA36",2023,"LIM331",700,null,null,null,null,null,null,null,null,null,null,null,null,null,null,null,null,null,null,"~"]
["SA36",2023,"LIM331",701,null,null,null,null,null,null,null,null,null,null,null,null,null,null,null,null,null,null,"~"]
["SA36",2023,"LIM331",702,null,null,null,null,null,null,null,null,null,null,null,null,null,null,null,null,null,null,"~"]
["SA36",2023,"LIM331",703,null,null,null,null,null,null,null,null,null,null,null,null,null,null,null,null,null,null,"~"]
["SA36",2023,"LIM331",704,null,null,null,null,null,null,null,null,null,null,null,null,null,null,null,null,null,null,"~"]
["SA36",2023,"LIM331",705,null,null,null,null,null,null,null,null,null,null,null,null,null,null,null,null,null,null,"~"]
["SA36",2023,"LIM331",706,null,null,null,null,null,null,null,null,null,null,null,null,null,null,null,null,null,null,"~"]
["SA36",2023,"LIM331",707,null,null,null,null,null,null,null,null,null,null,null,null,null,null,null,null,null,null,"~"]
["SA36",2023,"LIM331",708,null,null,null,null,null,null,null,null,null,null,null,null,null,null,null,null,null,null,"~"]
["SA36",2023,"LIM331",709,null,null,null,null,null,null,null,null,null,null,null,null,null,null,null,null,null,null,"~"]
["SA36",2023,"LIM331",710,null,null,null,null,null,null,null,null,null,null,null,null,null,null,null,null,null,null,"~"]
["SA36",2023,"LIM331",711,null,null,null,null,null,null,null,null,null,null,null,null,null,null,null,null,null,null,"~"]
["SA36",2023,"LIM331",712,null,null,null,null,null,null,null,null,null,null,null,null,null,null,null,null,null,null,"~"]
["SA36",2023,"LIM331",713,null,null,null,null,null,null,null,null,null,null,null,null,null,null,null,null,null,null,"~"]
["SA36",2023,"LIM331",714,null,null,null,null,null,null,null,null,null,null,null,null,null,null,null,null,null,null,"~"]
["SA36",2023,"LIM331",715,null,null,null,null,null,null,null,null,null,null,null,null,null,null,null,null,null,null,"~"]
["SA36",2023,"LIM331",716,null,null,null,null,null,null,null,null,null,null,null,null,null,null,null,null,null,null,"~"]
["SA36",2023,"LIM331",717,null,null,null,null,null,null,null,null,null,null,null,null,null,null,null,null,null,null,"~"]
["SA36",2023,"LIM331",718,null,null,null,null,null,null,null,null,null,null,null,null,null,null,null,null,null,null,"~"]
["SA36",2023,"LIM331",719,null,null,null,null,null,null,null,null,null,null,null,null,null,null,null,null,null,null,"~"]
["SA36",2023,"LIM331",720,null,null,null,null,null,null,null,null,null,null,null,null,null,null,null,null,null,null,"~"]
["SA36",2023,"LIM331",721,null,null,null,null,null,null,null,null,null,null,null,null,null,null,null,null,null,null,"~"]
["SA36",2023,"LIM331",722,null,null,null,null,null,null,null,null,null,null,null,null,null,null,null,null,null,null,"~"]
["SA36",2023,"LIM331",723,null,null,null,null,null,null,null,null,null,null,null,null,null,null,null,null,null,null,"~"]
["SA36",2023,"LIM331",724,null,null,null,null,null,null,null,null,null,null,null,null,null,null,null,null,null,null,"~"]
["SA36",2023,"LIM331",725,null,null,null,null,null,null,null,null,null,null,null,null,null,null,null,null,null,null,"~"]
["SA36",2023,"LIM331",726,null,null,null,null,null,null,null,null,null,null,null,null,null,null,null,null,null,null,"~"]
["SA36",2023,"LIM331",727,null,null,null,null,null,null,null,null,null,null,null,null,null,null,null,null,null,null,"~"]
["SA36",{"$f":"+MTREF","v":2023},{"$f":"LEFT(muni,(FIND(\" \",muni,1)-1))","v":"LIM331"},728,null,null,null,null,null,null,null,null,null,null,null,null,null,null,null,null,null,null,"~"]
["SA36",2023,"LIM331",729,null,null,null,null,null,null,null,null,null,null,null,null,null,null,null,null,null,null,"~"]
["SA36",2023,"LIM331",730,null,null,null,null,null,null,null,null,null,null,null,null,null,null,null,null,null,null,"~"]
["SA36",2023,"LIM331",731,null,null,null,null,null,null,null,null,null,null,null,null,null,null,null,null,null,null,"~"]
["SA36",2023,"LIM331",732,null,null,null,null,null,null,null,null,null,null,null,null,null,null,null,null,null,null,"~"]
["SA36",2023,"LIM331",733,null,null,null,null,null,null,null,null,null,null,null,null,null,null,null,null,null,null,"~"]
["SA36",2023,"LIM331",734,null,null,null,null,null,null,null,null,null,null,null,null,null,null,null,null,null,null,"~"]
["SA36",2023,"LIM331",735,null,null,null,null,null,null,null,null,null,null,null,null,null,null,null,null,null,null,"~"]
["SA36",2023,"LIM331",736,null,null,null,null,null,null,null,null,null,null,null,null,null,null,null,null,null,null,"~"]
["SA36",2023,"LIM331",737,null,null,null,null,null,null,null,null,null,null,null,null,null,null,null,null,null,null,"~"]
["SA36",2023,"LIM331",738,null,null,null,null,null,null,null,null,null,null,null,null,null,null,null,null,null,null,"~"]
["SA36",2023,"LIM331",739,null,null,null,null,null,null,null,null,null,null,null,null,null,null,null,null,null,null,"~"]
["SA36",2023,"LIM331",740,null,null,null,null,null,null,null,null,null,null,null,null,null,null,null,null,null,null,"~"]
["SA36",2023,"LIM331",741,null,null,null,null,null,null,null,null,null,null,null,null,null,null,null,null,null,null,"~"]
["SA36",2023,"LIM331",742,null,null,null,null,null,null,null,null,null,null,null,null,null,null,null,null,null,null,"~"]
["SA36",2023,"LIM331",743,null,null,null,null,null,null,null,null,null,null,null,null,null,null,null,null,null,null,"~"]
["SA36",2023,"LIM331",744,null,null,null,null,null,null,null,null,null,null,null,null,null,null,null,null,null,null,"~"]
["SA36",2023,"LIM331",745,null,null,null,null,null,null,null,null,null,null,null,null,null,null,null,null,null,null,"~"]
["SA36",2023,"LIM331",746,null,null,null,null,null,null,null,null,null,null,null,null,null,null,null,null,null,null,"~"]
["SA36",2023,"LIM331",747,null,null,null,null,null,null,null,null,null,null,null,null,null,null,null,null,null,null,"~"]
["SA36",2023,"LIM331",748,null,null,null,null,null,null,null,null,null,null,null,null,null,null,null,null,null,null,"~"]
["SA36",2023,"LIM331",749,null,null,null,null,null,null,null,null,null,null,null,null,null,null,null,null,null,null,"~"]
["SA36",2023,"LIM331",750,null,null,null,null,null,null,null,null,null,null,null,null,null,null,null,null,null,null,"~"]
["SA36",2023,"LIM331",751,null,null,null,null,null,null,null,null,null,null,null,null,null,null,null,null,null,null,"~"]
["SA36",2023,"LIM331",752,null,null,null,null,null,null,null,null,null,null,null,null,null,null,null,null,null,null,"~"]
["SA36",2023,"LIM331",753,null,null,null,null,null,null,null,null,null,null,null,null,null,null,null,null,null,null,"~"]
["SA36",2023,"LIM331",754,null,null,null,null,null,null,null,null,null,null,null,null,null,null,null,null,null,null,"~"]
["SA36",2023,"LIM331",755,null,null,null,null,null,null,null,null,null,null,null,null,null,null,null,null,null,null,"~"]
["SA36",2023,"LIM331",756,null,null,null,null,null,null,null,null,null,null,null,null,null,null,null,null,null,null,"~"]
["SA36",2023,"LIM331",757,null,null,null,null,null,null,null,null,null,null,null,null,null,null,null,null,null,null,"~"]
["SA36",2023,"LIM331",758,null,null,null,null,null,null,null,null,null,null,null,null,null,null,null,null,null,null,"~"]
["SA36",2023,"LIM331",759,null,null,null,null,null,null,null,null,null,null,null,null,null,null,null,null,null,null,"~"]
["SA36",2023,"LIM331",760,null,null,null,null,null,null,null,null,null,null,null,null,null,null,null,null,null,null,"~"]
["SA36",2023,"LIM331",761,null,null,null,null,null,null,null,null,null,null,null,null,null,null,null,null,null,null,"~"]
["SA36",2023,"LIM331",762,null,null,null,null,null,null,null,null,null,null,null,null,null,null,null,null,null,null,"~"]
["SA36",2023,"LIM331",763,null,null,null,null,null,null,null,null,null,null,null,null,null,null,null,null,null,null,"~"]
["SA36",2023,"LIM331",764,null,null,null,null,null,null,null,null,null,null,null,null,null,null,null,null,null,null,"~"]
["SA36",2023,"LIM331",765,null,null,null,null,null,null,null,null,null,null,null,null,null,null,null,null,null,null,"~"]
["SA36",2023,"LIM331",766,null,null,null,null,null,null,null,null,null,null,null,null,null,null,null,null,null,null,"~"]
["SA36",2023,"LIM331",767,null,null,null,null,null,null,null,null,null,null,null,null,null,null,null,null,null,null,"~"]
["SA36",2023,"LIM331",768,null,null,null,null,null,null,null,null,null,null,null,null,null,null,null,null,null,null,"~"]
["SA36",2023,"LIM331",769,null,null,null,null,null,null,null,null,null,null,null,null,null,null,null,null,null,null,"~"]
["SA36",2023,"LIM331",770,null,null,null,null,null,null,null,null,null,null,null,null,null,null,null,null,null,null,"~"]
["SA36",2023,"LIM331",771,null,null,null,null,null,null,null,null,null,null,null,null,null,null,null,null,null,null,"~"]
["SA36",2023,"LIM331",772,null,null,null,null,null,null,null,null,null,null,null,null,null,null,null,null,null,null,"~"]
["SA36",2023,"LIM331",773,null,null,null,null,null,null,null,null,null,null,null,null,null,null,null,null,null,null,"~"]
["SA36",2023,"LIM331",774,null,null,null,null,null,null,null,null,null,null,null,null,null,null,null,null,null,null,"~"]
["SA36",2023,"LIM331",775,null,null,null,null,null,null,null,null,null,null,null,null,null,null,null,null,null,null,"~"]
["SA36",2023,"LIM331",776,null,null,null,null,null,null,null,null,null,null,null,null,null,null,null,null,null,null,"~"]
["SA36",2023,"LIM331",777,null,null,null,null,null,null,null,null,null,null,null,null,null,null,null,null,null,null,"~"]
["SA36",2023,"LIM331",778,null,null,null,null,null,null,null,null,null,null,null,null,null,null,null,null,null,null,"~"]
["SA36",2023,"LIM331",779,null,null,null,null,null,null,null,null,null,null,null,null,null,null,null,null,null,null,"~"]
["SA36",2023,"LIM331",780,null,null,null,null,null,null,null,null,null,null,null,null,null,null,null,null,null,null,"~"]
["SA36",2023,"LIM331",781,null,null,null,null,null,null,null,null,null,null,null,null,null,null,null,null,null,null,"~"]
["SA36",2023,"LIM331",782,null,null,null,null,null,null,null,null,null,null,null,null,null,null,null,null,null,null,"~"]
["SA36",2023,"LIM331",783,null,null,null,null,null,null,null,null,null,null,null,null,null,null,null,null,null,null,"~"]
["SA36",2023,"LIM331",784,null,null,null,null,null,null,null,null,null,null,null,null,null,null,null,null,null,null,"~"]
["SA36",2023,"LIM331",785,null,null,null,null,null,null,null,null,null,null,null,null,null,null,null,null,null,null,"~"]
["SA36",2023,"LIM331",786,null,null,null,null,null,null,null,null,null,null,null,null,null,null,null,null,null,null,"~"]
["SA36",2023,"LIM331",787,null,null,null,null,null,null,null,null,null,null,null,null,null,null,null,null,null,null,"~"]
["SA36",2023,"LIM331",788,null,null,null,null,null,null,null,null,null,null,null,null,null,null,null,null,null,null,"~"]
["SA36",2023,"LIM331",789,null,null,null,null,null,null,null,null,null,null,null,null,null,null,null,null,null,null,"~"]
["SA36",2023,"LIM331",790,null,null,null,null,null,null,null,null,null,null,null,null,null,null,null,null,null,null,"~"]
["SA36",2023,"LIM331",791,null,null,null,null,null,null,null,null,null,null,null,null,null,null,null,null,null,null,"~"]
["SA36",{"$f":"+MTREF","v":2023},{"$f":"LEFT(muni,(FIND(\" \",muni,1)-1))","v":"LIM331"},792,null,null,null,null,null,null,null,null,null,null,null,null,null,null,null,null,null,null,"~"]
["SA36",2023,"LIM331",793,null,null,null,null,null,null,null,null,null,null,null,null,null,null,null,null,null,null,"~"]
["SA36",2023,"LIM331",794,null,null,null,null,null,null,null,null,null,null,null,null,null,null,null,null,null,null,"~"]
["SA36",2023,"LIM331",795,null,null,null,null,null,null,null,null,null,null,null,null,null,null,null,null,null,null,"~"]
["SA36",2023,"LIM331",796,null,null,null,null,null,null,null,null,null,null,null,null,null,null,null,null,null,null,"~"]
["SA36",2023,"LIM331",797,null,null,null,null,null,null,null,null,null,null,null,null,null,null,null,null,null,null,"~"]
["SA36",2023,"LIM331",798,null,null,null,null,null,null,null,null,null,null,null,null,null,null,null,null,null,null,"~"]
["SA36",2023,"LIM331",799,null,null,null,null,null,null,null,null,null,null,null,null,null,null,null,null,null,null,"~"]
["SA36",2023,"LIM331",800,null,null,null,null,null,null,null,null,null,null,null,null,null,null,null,null,null,null,"~"]
["SA36",2023,"LIM331",801,null,null,null,null,null,null,null,null,null,null,null,null,null,null,null,null,null,null,"~"]
["SA36",2023,"LIM331",802,null,null,null,null,null,null,null,null,null,null,null,null,null,null,null,null,null,null,"~"]
["SA36",2023,"LIM331",803,null,null,null,null,null,null,null,null,null,null,null,null,null,null,null,null,null,null,"~"]
["SA36",2023,"LIM331",804,null,null,null,null,null,null,null,null,null,null,null,null,null,null,null,null,null,null,"~"]
["SA36",2023,"LIM331",805,null,null,null,null,null,null,null,null,null,null,null,null,null,null,null,null,null,null,"~"]
["SA36",2023,"LIM331",806,null,null,null,null,null,null,null,null,null,null,null,null,null,null,null,null,null,null,"~"]
["SA36",2023,"LIM331",807,null,null,null,null,null,null,null,null,null,null,null,null,null,null,null,null,null,null,"~"]
["SA36",2023,"LIM331",808,null,null,null,null,null,null,null,null,null,null,null,null,null,null,null,null,null,null,"~"]
["SA36",2023,"LIM331",809,null,null,null,null,null,null,null,null,null,null,null,null,null,null,null,null,null,null,"~"]
["SA36",2023,"LIM331",810,null,null,null,null,null,null,null,null,null,null,null,null,null,null,null,null,null,null,"~"]
["SA36",2023,"LIM331",811,null,null,null,null,null,null,null,null,null,null,null,null,null,null,null,null,null,null,"~"]
["SA36",2023,"LIM331",812,null,null,null,null,null,null,null,null,null,null,null,null,null,null,null,null,null,null,"~"]
["SA36",2023,"LIM331",813,null,null,null,null,null,null,null,null,null,null,null,null,null,null,null,null,null,null,"~"]
["SA36",2023,"LIM331",814,null,null,null,null,null,null,null,null,null,null,null,null,null,null,null,null,null,null,"~"]
["SA36",2023,"LIM331",815,null,null,null,null,null,null,null,null,null,null,null,null,null,null,null,null,null,null,"~"]
["SA36",2023,"LIM331",816,null,null,null,null,null,null,null,null,null,null,null,null,null,null,null,null,null,null,"~"]
["SA36",2023,"LIM331",817,null,null,null,null,null,null,null,null,null,null,null,null,null,null,null,null,null,null,"~"]
["SA36",2023,"LIM331",818,null,null,null,null,null,null,null,null,null,null,null,null,null,null,null,null,null,null,"~"]
["SA36",2023,"LIM331",819,null,null,null,null,null,null,null,null,null,null,null,null,null,null,null,null,null,null,"~"]
["SA36",2023,"LIM331",820,null,null,null,null,null,null,null,null,null,null,null,null,null,null,null,null,null,null,"~"]
["SA36",2023,"LIM331",821,null,null,null,null,null,null,null,null,null,null,null,null,null,null,null,null,null,null,"~"]
["SA36",2023,"LIM331",822,null,null,null,null,null,null,null,null,null,null,null,null,null,null,null,null,null,null,"~"]
["SA36",2023,"LIM331",823,null,null,null,null,null,null,null,null,null,null,null,null,null,null,null,null,null,null,"~"]
["SA36",2023,"LIM331",824,null,null,null,null,null,null,null,null,null,null,null,null,null,null,null,null,null,null,"~"]
["SA36",2023,"LIM331",825,null,null,null,null,null,null,null,null,null,null,null,null,null,null,null,null,null,null,"~"]
["SA36",2023,"LIM331",826,null,null,null,null,null,null,null,null,null,null,null,null,null,null,null,null,null,null,"~"]
["SA36",2023,"LIM331",827,null,null,null,null,null,null,null,null,null,null,null,null,null,null,null,null,null,null,"~"]
["SA36",2023,"LIM331",828,null,null,null,null,null,null,null,null,null,null,null,null,null,null,null,null,null,null,"~"]
["SA36",2023,"LIM331",829,null,null,null,null,null,null,null,null,null,null,null,null,null,null,null,null,null,null,"~"]
["SA36",2023,"LIM331",830,null,null,null,null,null,null,null,null,null,null,null,null,null,null,null,null,null,null,"~"]
["SA36",2023,"LIM331",831,null,null,null,null,null,null,null,null,null,null,null,null,null,null,null,null,null,null,"~"]
["SA36",2023,"LIM331",832,null,null,null,null,null,null,null,null,null,null,null,null,null,null,null,null,null,null,"~"]
["SA36",2023,"LIM331",833,null,null,null,null,null,null,null,null,null,null,null,null,null,null,null,null,null,null,"~"]
["SA36",2023,"LIM331",834,null,null,null,null,null,null,null,null,null,null,null,null,null,null,null,null,null,null,"~"]
["SA36",2023,"LIM331",835,null,null,null,null,null,null,null,null,null,null,null,null,null,null,null,null,null,null,"~"]
["SA36",2023,"LIM331",836,null,null,null,null,null,null,null,null,null,null,null,null,null,null,null,null,null,null,"~"]
["SA36",2023,"LIM331",837,null,null,null,null,null,null,null,null,null,null,null,null,null,null,null,null,null,null,"~"]
["SA36",2023,"LIM331",838,null,null,null,null,null,null,null,null,null,null,null,null,null,null,null,null,null,null,"~"]
["SA36",2023,"LIM331",839,null,null,null,null,null,null,null,null,null,null,null,null,null,null,null,null,null,null,"~"]
["SA36",2023,"LIM331",840,null,null,null,null,null,null,null,null,null,null,null,null,null,null,null,null,null,null,"~"]
["SA36",2023,"LIM331",841,null,null,null,null,null,null,null,null,null,null,null,null,null,null,null,null,null,null,"~"]
["SA36",2023,"LIM331",842,null,null,null,null,null,null,null,null,null,null,null,null,null,null,null,null,null,null,"~"]
["SA36",2023,"LIM331",843,null,null,null,null,null,null,null,null,null,null,null,null,null,null,null,null,null,null,"~"]
["SA36",2023,"LIM331",844,null,null,null,null,null,null,null,null,null,null,null,null,null,null,null,null,null,null,"~"]
["SA36",2023,"LIM331",845,null,null,null,null,null,null,null,null,null,null,null,null,null,null,null,null,null,null,"~"]
["SA36",2023,"LIM331",846,null,null,null,null,null,null,null,null,null,null,null,null,null,null,null,null,null,null,"~"]
["SA36",2023,"LIM331",847,null,null,null,null,null,null,null,null,null,null,null,null,null,null,null,null,null,null,"~"]
["SA36",2023,"LIM331",848,null,null,null,null,null,null,null,null,null,null,null,null,null,null,null,null,null,null,"~"]
["SA36",2023,"LIM331",849,null,null,null,null,null,null,null,null,null,null,null,null,null,null,null,null,null,null,"~"]
["SA36",2023,"LIM331",850,null,null,null,null,null,null,null,null,null,null,null,null,null,null,null,null,null,null,"~"]
["SA36",2023,"LIM331",851,null,null,null,null,null,null,null,null,null,null,null,null,null,null,null,null,null,null,"~"]
["SA36",2023,"LIM331",852,null,null,null,null,null,null,null,null,null,null,null,null,null,null,null,null,null,null,"~"]
["SA36",2023,"LIM331",853,null,null,null,null,null,null,null,null,null,null,null,null,null,null,null,null,null,null,"~"]
["SA36",2023,"LIM331",854,null,null,null,null,null,null,null,null,null,null,null,null,null,null,null,null,null,null,"~"]
["SA36",2023,"LIM331",855,null,null,null,null,null,null,null,null,null,null,null,null,null,null,null,null,null,null,"~"]
["SA36",{"$f":"+MTREF","v":2023},{"$f":"LEFT(muni,(FIND(\" \",muni,1)-1))","v":"LIM331"},856,null,null,null,null,null,null,null,null,null,null,null,null,null,null,null,null,null,null,"~"]
["SA36",2023,"LIM331",857,null,null,null,null,null,null,null,null,null,null,null,null,null,null,null,null,null,null,"~"]
["SA36",2023,"LIM331",858,null,null,null,null,null,null,null,null,null,null,null,null,null,null,null,null,null,null,"~"]
["SA36",2023,"LIM331",859,null,null,null,null,null,null,null,null,null,null,null,null,null,null,null,null,null,null,"~"]
["SA36",2023,"LIM331",860,null,null,null,null,null,null,null,null,null,null,null,null,null,null,null,null,null,null,"~"]
["SA36",2023,"LIM331",861,null,null,null,null,null,null,null,null,null,null,null,null,null,null,null,null,null,null,"~"]
["SA36",2023,"LIM331",862,null,null,null,null,null,null,null,null,null,null,null,null,null,null,null,null,null,null,"~"]
["SA36",2023,"LIM331",863,null,null,null,null,null,null,null,null,null,null,null,null,null,null,null,null,null,null,"~"]
["SA36",2023,"LIM331",864,null,null,null,null,null,null,null,null,null,null,null,null,null,null,null,null,null,null,"~"]
["SA36",2023,"LIM331",865,null,null,null,null,null,null,null,null,null,null,null,null,null,null,null,null,null,null,"~"]
["SA36",2023,"LIM331",866,null,null,null,null,null,null,null,null,null,null,null,null,null,null,null,null,null,null,"~"]
["SA36",2023,"LIM331",867,null,null,null,null,null,null,null,null,null,null,null,null,null,null,null,null,null,null,"~"]
["SA36",2023,"LIM331",868,null,null,null,null,null,null,null,null,null,null,null,null,null,null,null,null,null,null,"~"]
["SA36",2023,"LIM331",869,null,null,null,null,null,null,null,null,null,null,null,null,null,null,null,null,null,null,"~"]
["SA36",2023,"LIM331",870,null,null,null,null,null,null,null,null,null,null,null,null,null,null,null,null,null,null,"~"]
["SA36",2023,"LIM331",871,null,null,null,null,null,null,null,null,null,null,null,null,null,null,null,null,null,null,"~"]
["SA36",2023,"LIM331",872,null,null,null,null,null,null,null,null,null,null,null,null,null,null,null,null,null,null,"~"]
["SA36",2023,"LIM331",873,null,null,null,null,null,null,null,null,null,null,null,null,null,null,null,null,null,null,"~"]
["SA36",2023,"LIM331",874,null,null,null,null,null,null,null,null,null,null,null,null,null,null,null,null,null,null,"~"]
["SA36",2023,"LIM331",875,null,null,null,null,null,null,null,null,null,null,null,null,null,null,null,null,null,null,"~"]
["SA36",2023,"LIM331",876,null,null,null,null,null,null,null,null,null,null,null,null,null,null,null,null,null,null,"~"]
["SA36",2023,"LIM331",877,null,null,null,null,null,null,null,null,null,null,null,null,null,null,null,null,null,null,"~"]
["SA36",2023,"LIM331",878,null,null,null,null,null,null,null,null,null,null,null,null,null,null,null,null,null,null,"~"]
["SA36",2023,"LIM331",879,null,null,null,null,null,null,null,null,null,null,null,null,null,null,null,null,null,null,"~"]
["SA36",2023,"LIM331",880,null,null,null,null,null,null,null,null,null,null,null,null,null,null,null,null,null,null,"~"]
["SA36",2023,"LIM331",881,null,null,null,null,null,null,null,null,null,null,null,null,null,null,null,null,null,null,"~"]
["SA36",2023,"LIM331",882,null,null,null,null,null,null,null,null,null,null,null,null,null,null,null,null,null,null,"~"]
["SA36",2023,"LIM331",883,null,null,null,null,null,null,null,null,null,null,null,null,null,null,null,null,null,null,"~"]
["SA36",2023,"LIM331",884,null,null,null,null,null,null,null,null,null,null,null,null,null,null,null,null,null,null,"~"]
["SA36",2023,"LIM331",885,null,null,null,null,null,null,null,null,null,null,null,null,null,null,null,null,null,null,"~"]
["SA36",2023,"LIM331",886,null,null,null,null,null,null,null,null,null,null,null,null,null,null,null,null,null,null,"~"]
["SA36",2023,"LIM331",887,null,null,null,null,null,null,null,null,null,null,null,null,null,null,null,null,null,null,"~"]
["SA36",2023,"LIM331",888,null,null,null,null,null,null,null,null,null,null,null,null,null,null,null,null,null,null,"~"]
["SA36",2023,"LIM331",889,null,null,null,null,null,null,null,null,null,null,null,null,null,null,null,null,null,null,"~"]
["SA36",2023,"LIM331",890,null,null,null,null,null,null,null,null,null,null,null,null,null,null,null,null,null,null,"~"]
["SA36",2023,"LIM331",891,null,null,null,null,null,null,null,null,null,null,null,null,null,null,null,null,null,null,"~"]
["SA36",2023,"LIM331",892,null,null,null,null,null,null,null,null,null,null,null,null,null,null,null,null,null,null,"~"]
["SA36",2023,"LIM331",893,null,null,null,null,null,null,null,null,null,null,null,null,null,null,null,null,null,null,"~"]
["SA36",2023,"LIM331",894,null,null,null,null,null,null,null,null,null,null,null,null,null,null,null,null,null,null,"~"]
["SA36",2023,"LIM331",895,null,null,null,null,null,null,null,null,null,null,null,null,null,null,null,null,null,null,"~"]
["SA36",2023,"LIM331",896,null,null,null,null,null,null,null,null,null,null,null,null,null,null,null,null,null,null,"~"]
["SA36",2023,"LIM331",897,null,null,null,null,null,null,null,null,null,null,null,null,null,null,null,null,null,null,"~"]
["SA36",2023,"LIM331",898,null,null,null,null,null,null,null,null,null,null,null,null,null,null,null,null,null,null,"~"]
["SA36",2023,"LIM331",899,null,null,null,null,null,null,null,null,null,null,null,null,null,null,null,null,null,null,"~"]
["SA36",2023,"LIM331",900,null,null,null,null,null,null,null,null,null,null,null,null,null,null,null,null,null,null,"~"]
["SA36",2023,"LIM331",901,null,null,null,null,null,null,null,null,null,null,null,null,null,null,null,null,null,null,"~"]
["SA36",2023,"LIM331",902,null,null,null,null,null,null,null,null,null,null,null,null,null,null,null,null,null,null,"~"]
["SA36",2023,"LIM331",903,null,null,null,null,null,null,null,null,null,null,null,null,null,null,null,null,null,null,"~"]
["SA36",2023,"LIM331",904,null,null,null,null,null,null,null,null,null,null,null,null,null,null,null,null,null,null,"~"]
["SA36",2023,"LIM331",905,null,null,null,null,null,null,null,null,null,null,null,null,null,null,null,null,null,null,"~"]
["SA36",2023,"LIM331",906,null,null,null,null,null,null,null,null,null,null,null,null,null,null,null,null,null,null,"~"]
["SA36",2023,"LIM331",907,null,null,null,null,null,null,null,null,null,null,null,null,null,null,null,null,null,null,"~"]
["SA36",2023,"LIM331",908,null,null,null,null,null,null,null,null,null,null,null,null,null,null,null,null,null,null,"~"]
["SA36",2023,"LIM331",909,null,null,null,null,null,null,null,null,null,null,null,null,null,null,null,null,null,null,"~"]
["SA36",2023,"LIM331",910,null,null,null,null,null,null,null,null,null,null,null,null,null,null,null,null,null,null,"~"]
["SA36",2023,"LIM331",911,null,null,null,null,null,null,null,null,null,null,null,null,null,null,null,null,null,null,"~"]
["SA36",2023,"LIM331",912,null,null,null,null,null,null,null,null,null,null,null,null,null,null,null,null,null,null,"~"]
["SA36",2023,"LIM331",913,null,null,null,null,null,null,null,null,null,null,null,null,null,null,null,null,null,null,"~"]
["SA36",2023,"LIM331",914,null,null,null,null,null,null,null,null,null,null,null,null,null,null,null,null,null,null,"~"]
["SA36",2023,"LIM331",915,null,null,null,null,null,null,null,null,null,null,null,null,null,null,null,null,null,null,"~"]
["SA36",2023,"LIM331",916,null,null,null,null,null,null,null,null,null,null,null,null,null,null,null,null,null,null,"~"]
["SA36",2023,"LIM331",917,null,null,null,null,null,null,null,null,null,null,null,null,null,null,null,null,null,null,"~"]
["SA36",2023,"LIM331",918,null,null,null,null,null,null,null,null,null,null,null,null,null,null,null,null,null,null,"~"]
["SA36",2023,"LIM331",919,null,null,null,null,null,null,null,null,null,null,null,null,null,null,null,null,null,null,"~"]
["SA36",{"$f":"+MTREF","v":2023},{"$f":"LEFT(muni,(FIND(\" \",muni,1)-1))","v":"LIM331"},920,null,null,null,null,null,null,null,null,null,null,null,null,null,null,null,null,null,null,"~"]
["SA36",2023,"LIM331",921,null,null,null,null,null,null,null,null,null,null,null,null,null,null,null,null,null,null,"~"]
["SA36",2023,"LIM331",922,null,null,null,null,null,null,null,null,null,null,null,null,null,null,null,null,null,null,"~"]
["SA36",2023,"LIM331",923,null,null,null,null,null,null,null,null,null,null,null,null,null,null,null,null,null,null,"~"]
["SA36",2023,"LIM331",924,null,null,null,null,null,null,null,null,null,null,null,null,null,null,null,null,null,null,"~"]
["SA36",2023,"LIM331",925,null,null,null,null,null,null,null,null,null,null,null,null,null,null,null,null,null,null,"~"]
["SA36",2023,"LIM331",926,null,null,null,null,null,null,null,null,null,null,null,null,null,null,null,null,null,null,"~"]
["SA36",2023,"LIM331",927,null,null,null,null,null,null,null,null,null,null,null,null,null,null,null,null,null,null,"~"]
["SA36",2023,"LIM331",928,null,null,null,null,null,null,null,null,null,null,null,null,null,null,null,null,null,null,"~"]
["SA36",2023,"LIM331",929,null,null,null,null,null,null,null,null,null,null,null,null,null,null,null,null,null,null,"~"]
["SA36",2023,"LIM331",930,null,null,null,null,null,null,null,null,null,null,null,null,null,null,null,null,null,null,"~"]
["SA36",2023,"LIM331",931,null,null,null,null,null,null,null,null,null,null,null,null,null,null,null,null,null,null,"~"]
["SA36",2023,"LIM331",932,null,null,null,null,null,null,null,null,null,null,null,null,null,null,null,null,null,null,"~"]
["SA36",2023,"LIM331",933,null,null,null,null,null,null,null,null,null,null,null,null,null,null,null,null,null,null,"~"]
["SA36",2023,"LIM331",934,null,null,null,null,null,null,null,null,null,null,null,null,null,null,null,null,null,null,"~"]
["SA36",2023,"LIM331",935,null,null,null,null,null,null,null,null,null,null,null,null,null,null,null,null,null,null,"~"]
["SA36",2023,"LIM331",936,null,null,null,null,null,null,null,null,null,null,null,null,null,null,null,null,null,null,"~"]
["SA36",2023,"LIM331",937,null,null,null,null,null,null,null,null,null,null,null,null,null,null,null,null,null,null,"~"]
["SA36",2023,"LIM331",938,null,null,null,null,null,null,null,null,null,null,null,null,null,null,null,null,null,null,"~"]
["SA36",2023,"LIM331",939,null,null,null,null,null,null,null,null,null,null,null,null,null,null,null,null,null,null,"~"]
["SA36",2023,"LIM331",940,null,null,null,null,null,null,null,null,null,null,null,null,null,null,null,null,null,null,"~"]
["SA36",2023,"LIM331",941,null,null,null,null,null,null,null,null,null,null,null,null,null,null,null,null,null,null,"~"]
["SA36",2023,"LIM331",942,null,null,null,null,null,null,null,null,null,null,null,null,null,null,null,null,null,null,"~"]
["SA36",2023,"LIM331",943,null,null,null,null,null,null,null,null,null,null,null,null,null,null,null,null,null,null,"~"]
["SA36",2023,"LIM331",944,null,null,null,null,null,null,null,null,null,null,null,null,null,null,null,null,null,null,"~"]
["SA36",2023,"LIM331",945,null,null,null,null,null,null,null,null,null,null,null,null,null,null,null,null,null,null,"~"]
["SA36",2023,"LIM331",946,null,null,null,null,null,null,null,null,null,null,null,null,null,null,null,null,null,null,"~"]
["SA36",2023,"LIM331",947,null,null,null,null,null,null,null,null,null,null,null,null,null,null,null,null,null,null,"~"]
["SA36",2023,"LIM331",948,null,null,null,null,null,null,null,null,null,null,null,null,null,null,null,null,null,null,"~"]
["SA36",2023,"LIM331",949,null,null,null,null,null,null,null,null,null,null,null,null,null,null,null,null,null,null,"~"]
["SA36",2023,"LIM331",950,null,null,null,null,null,null,null,null,null,null,null,null,null,null,null,null,null,null,"~"]
["SA36",2023,"LIM331",951,null,null,null,null,null,null,null,null,null,null,null,null,null,null,null,null,null,null,"~"]
["SA36",2023,"LIM331",952,null,null,null,null,null,null,null,null,null,null,null,null,null,null,null,null,null,null,"~"]
["SA36",2023,"LIM331",953,null,null,null,null,null,null,null,null,null,null,null,null,null,null,null,null,null,null,"~"]
["SA36",2023,"LIM331",954,null,null,null,null,null,null,null,null,null,null,null,null,null,null,null,null,null,null,"~"]
["SA36",2023,"LIM331",955,null,null,null,null,null,null,null,null,null,null,null,null,null,null,null,null,null,null,"~"]
["SA36",2023,"LIM331",956,null,null,null,null,null,null,null,null,null,null,null,null,null,null,null,null,null,null,"~"]
["SA36",2023,"LIM331",957,null,null,null,null,null,null,null,null,null,null,null,null,null,null,null,null,null,null,"~"]
["SA36",2023,"LIM331",958,null,null,null,null,null,null,null,null,null,null,null,null,null,null,null,null,null,null,"~"]
["SA36",2023,"LIM331",959,null,null,null,null,null,null,null,null,null,null,null,null,null,null,null,null,null,null,"~"]
["SA36",2023,"LIM331",960,null,null,null,null,null,null,null,null,null,null,null,null,null,null,null,null,null,null,"~"]
["SA36",2023,"LIM331",961,null,null,null,null,null,null,null,null,null,null,null,null,null,null,null,null,null,null,"~"]
["SA36",2023,"LIM331",962,null,null,null,null,null,null,null,null,null,null,null,null,null,null,null,null,null,null,"~"]
["SA36",2023,"LIM331",963,null,null,null,null,null,null,null,null,null,null,null,null,null,null,null,null,null,null,"~"]
["SA36",2023,"LIM331",964,null,null,null,null,null,null,null,null,null,null,null,null,null,null,null,null,null,null,"~"]
["SA36",2023,"LIM331",965,null,null,null,null,null,null,null,null,null,null,null,null,null,null,null,null,null,null,"~"]
["SA36",2023,"LIM331",966,null,null,null,null,null,null,null,null,null,null,null,null,null,null,null,null,null,null,"~"]
["SA36",2023,"LIM331",967,null,null,null,null,null,null,null,null,null,null,null,null,null,null,null,null,null,null,"~"]
["SA36",2023,"LIM331",968,null,null,null,null,null,null,null,null,null,null,null,null,null,null,null,null,null,null,"~"]
["SA36",2023,"LIM331",969,null,null,null,null,null,null,null,null,null,null,null,null,null,null,null,null,null,null,"~"]
["SA36",2023,"LIM331",970,null,null,null,null,null,null,null,null,null,null,null,null,null,null,null,null,null,null,"~"]
["SA36",2023,"LIM331",971,null,null,null,null,null,null,null,null,null,null,null,null,null,null,null,null,null,null,"~"]
["SA36",2023,"LIM331",972,null,null,null,null,null,null,null,null,null,null,null,null,null,null,null,null,null,null,"~"]
["SA36",2023,"LIM331",973,null,null,null,null,null,null,null,null,null,null,null,null,null,null,null,null,null,null,"~"]
["SA36",2023,"LIM331",974,null,null,null,null,null,null,null,null,null,null,null,null,null,null,null,null,null,null,"~"]
["SA36",2023,"LIM331",975,null,null,null,null,null,null,null,null,null,null,null,null,null,null,null,null,null,null,"~"]
["SA36",2023,"LIM331",976,null,null,null,null,null,null,null,null,null,null,null,null,null,null,null,null,null,null,"~"]
["SA36",2023,"LIM331",977,null,null,null,null,null,null,null,null,null,null,null,null,null,null,null,null,null,null,"~"]
["SA36",2023,"LIM331",978,null,null,null,null,null,null,null,null,null,null,null,null,null,null,null,null,null,null,"~"]
["SA36",2023,"LIM331",979,null,null,null,null,null,null,null,null,null,null,null,null,null,null,null,null,null,null,"~"]
["SA36",2023,"LIM331",980,null,null,null,null,null,null,null,null,null,null,null,null,null,null,null,null,null,null,"~"]
["SA36",2023,"LIM331",981,null,null,null,null,null,null,null,null,null,null,null,null,null,null,null,null,null,null,"~"]
["SA36",2023,"LIM331",982,null,null,null,null,null,null,null,null,null,null,null,null,null,null,null,null,null,null,"~"]
["SA36",2023,"LIM331",983,null,null,null,null,null,null,null,null,null,null,null,null,null,null,null,null,null,null,"~"]
["SA36",{"$f":"+MTREF","v":2023},{"$f":"LEFT(muni,(FIND(\" \",muni,1)-1))","v":"LIM331"},984,null,null,null,null,null,null,null,null,null,null,null,null,null,null,null,null,null,null,"~"]
["SA36",2023,"LIM331",985,null,null,null,null,null,null,null,null,null,null,null,null,null,null,null,null,null,null,"~"]
["SA36",2023,"LIM331",986,null,null,null,null,null,null,null,null,null,null,null,null,null,null,null,null,null,null,"~"]
["SA36",2023,"LIM331",987,null,null,null,null,null,null,null,null,null,null,null,null,null,null,null,null,null,null,"~"]
["SA36",2023,"LIM331",988,null,null,null,null,null,null,null,null,null,null,null,null,null,null,null,null,null,null,"~"]
["SA36",2023,"LIM331",989,null,null,null,null,null,null,null,null,null,null,null,null,null,null,null,null,null,null,"~"]
["SA36",2023,"LIM331",990,null,null,null,null,null,null,null,null,null,null,null,null,null,null,null,null,null,null,"~"]
["SA36",2023,"LIM331",991,null,null,null,null,null,null,null,null,null,null,null,null,null,null,null,null,null,null,"~"]
["SA36",2023,"LIM331",992,null,null,null,null,null,null,null,null,null,null,null,null,null,null,null,null,null,null,"~"]
["SA36",2023,"LIM331",993,null,null,null,null,null,null,null,null,null,null,null,null,null,null,null,null,null,null,"~"]
["SA36",2023,"LIM331",994,null,null,null,null,null,null,null,null,null,null,null,null,null,null,null,null,null,null,"~"]
["SA36",2023,"LIM331",995,null,null,null,null,null,null,null,null,null,null,null,null,null,null,null,null,null,null,"~"]
["SA36",2023,"LIM331",996,null,null,null,null,null,null,null,null,null,null,null,null,null,null,null,null,null,null,"~"]
["SA36",2023,"LIM331",997,null,null,null,null,null,null,null,null,null,null,null,null,null,null,null,null,null,null,"~"]
["SA36",2023,"LIM331",998,null,null,null,null,null,null,null,null,null,null,null,null,null,null,null,null,null,null,"~"]
["SA36",2023,"LIM331",999,null,null,null,null,null,null,null,null,null,null,null,null,null,null,null,null,null,null,"~"]
["SA36",2023,"LIM331",1000,null,null,null,null,null,null,null,null,null,null,null,null,null,null,null,null,null,null,"~"]
["SA37",2023,"LIM331",1,null,null,null,null,null,null,null,null,null,null,null,null,null,null,null,null,null,null,"~"]
["SA37",2023,"LIM331",2,null,null,null,null,null,null,null,null,null,null,null,null,null,null,null,null,null,null,"~"]
["SA37",2023,"LIM331",3,null,null,null,null,null,null,null,null,null,null,null,null,null,null,null,null,null,null,"~"]
["SA37",2023,"LIM331",4,null,null,null,null,null,null,null,null,null,null,null,null,null,null,null,null,null,null,"~"]
["SA37",2023,"LIM331",5,null,null,null,null,null,null,null,null,null,null,null,null,null,null,null,null,null,null,"~"]
["SA37",2023,"LIM331",6,null,null,null,null,null,null,null,null,null,null,null,null,null,null,null,null,null,null,"~"]
["SA37",2023,"LIM331",7,null,null,null,null,null,null,null,null,null,null,null,null,null,null,null,null,null,null,"~"]
["SA37",2023,"LIM331",8,null,null,null,null,null,null,null,null,null,null,null,null,null,null,null,null,null,null,"~"]
["SA37",2023,"LIM331",9,null,null,null,null,null,null,null,null,null,null,null,null,null,null,null,null,null,null,"~"]
["SA37",2023,"LIM331",10,null,null,null,null,null,null,null,null,null,null,null,null,null,null,null,null,null,null,"~"]
["SA37",2023,"LIM331",11,null,null,null,null,null,null,null,null,null,null,null,null,null,null,null,null,null,null,"~"]
["SA37",2023,"LIM331",12,null,null,null,null,null,null,null,null,null,null,null,null,null,null,null,null,null,null,"~"]
["SA37",2023,"LIM331",13,null,null,null,null,null,null,null,null,null,null,null,null,null,null,null,null,null,null,"~"]
["SA37",2023,"LIM331",14,null,null,null,null,null,null,null,null,null,null,null,null,null,null,null,null,null,null,"~"]
["SA37",2023,"LIM331",15,null,null,null,null,null,null,null,null,null,null,null,null,null,null,null,null,null,null,"~"]
["SA37",2023,"LIM331",16,null,null,null,null,null,null,null,null,null,null,null,null,null,null,null,null,null,null,"~"]
["SA37",2023,"LIM331",17,null,null,null,null,null,null,null,null,null,null,null,null,null,null,null,null,null,null,"~"]
["SA37",2023,"LIM331",18,null,null,null,null,null,null,null,null,null,null,null,null,null,null,null,null,null,null,"~"]
["SA37",2023,"LIM331",19,null,null,null,null,null,null,null,null,null,null,null,null,null,null,null,null,null,null,"~"]
["SA37",2023,"LIM331",20,null,null,null,null,null,null,null,null,null,null,null,null,null,null,null,null,null,null,"~"]
["SA37",2023,"LIM331",21,null,null,null,null,null,null,null,null,null,null,null,null,null,null,null,null,null,null,"~"]
["SA37",2023,"LIM331",22,null,null,null,null,null,null,null,null,null,null,null,null,null,null,null,null,null,null,"~"]
["SA37",2023,"LIM331",23,null,null,null,null,null,null,null,null,null,null,null,null,null,null,null,null,null,null,"~"]
["SA37",2023,"LIM331",24,null,null,null,null,null,null,null,null,null,null,null,null,null,null,null,null,null,null,"~"]
["SA37",2023,"LIM331",25,null,null,null,null,null,null,null,null,null,null,null,null,null,null,null,null,null,null,"~"]
["SA37",2023,"LIM331",26,null,null,null,null,null,null,null,null,null,null,null,null,null,null,null,null,null,null,"~"]
["SA37",2023,"LIM331",27,null,null,null,null,null,null,null,null,null,null,null,null,null,null,null,null,null,null,"~"]
["SA37",2023,"LIM331",28,null,null,null,null,null,null,null,null,null,null,null,null,null,null,null,null,null,null,"~"]
["SA37",2023,"LIM331",29,null,null,null,null,null,null,null,null,null,null,null,null,null,null,null,null,null,null,"~"]
["SA37",2023,"LIM331",30,null,null,null,null,null,null,null,null,null,null,null,null,null,null,null,null,null,null,"~"]
["SA37",2023,"LIM331",31,null,null,null,null,null,null,null,null,null,null,null,null,null,null,null,null,null,null,"~"]
["SA37",2023,"LIM331",32,null,null,null,null,null,null,null,null,null,null,null,null,null,null,null,null,null,null,"~"]
["SA37",2023,"LIM331",33,null,null,null,null,null,null,null,null,null,null,null,null,null,null,null,null,null,null,"~"]
["SA37",2023,"LIM331",34,null,null,null,null,null,null,null,null,null,null,null,null,null,null,null,null,null,null,"~"]
["SA37",2023,"LIM331",35,null,null,null,null,null,null,null,null,null,null,null,null,null,null,null,null,null,null,"~"]
["SA37",2023,"LIM331",36,null,null,null,null,null,null,null,null,null,null,null,null,null,null,null,null,null,null,"~"]
["SA37",2023,"LIM331",37,null,null,null,null,null,null,null,null,null,null,null,null,null,null,null,null,null,null,"~"]
["SA37",2023,"LIM331",38,null,null,null,null,null,null,null,null,null,null,null,null,null,null,null,null,null,null,"~"]
["SA37",2023,"LIM331",39,null,null,null,null,null,null,null,null,null,null,null,null,null,null,null,null,null,null,"~"]
["SA37",2023,"LIM331",40,null,null,null,null,null,null,null,null,null,null,null,null,null,null,null,null,null,null,"~"]
["SA37",2023,"LIM331",41,null,null,null,null,null,null,null,null,null,null,null,null,null,null,null,null,null,null,"~"]
["SA37",2023,"LIM331",42,null,null,null,null,null,null,null,null,null,null,null,null,null,null,null,null,null,null,"~"]
["SA37",2023,"LIM331",43,null,null,null,null,null,null,null,null,null,null,null,null,null,null,null,null,null,null,"~"]
["SA37",2023,"LIM331",44,null,null,null,null,null,null,null,null,null,null,null,null,null,null,null,null,null,null,"~"]
["SA37",2023,"LIM331",45,null,null,null,null,null,null,null,null,null,null,null,null,null,null,null,null,null,null,"~"]
["SA37",2023,"LIM331",46,null,null,null,null,null,null,null,null,null,null,null,null,null,null,null,null,null,null,"~"]
["SA37",2023,"LIM331",47,null,null,null,null,null,null,null,null,null,null,null,null,null,null,null,null,null,null,"~"]
["SA37",{"$f":"+MTREF","v":2023},{"$f":"LEFT(muni,(FIND(\" \",muni,1)-1))","v":"LIM331"},48,null,null,null,null,null,null,null,null,null,null,null,null,null,null,null,null,null,null,"~"]
["SA37",2023,"LIM331",49,null,null,null,null,null,null,null,null,null,null,null,null,null,null,null,null,null,null,"~"]
["SA37",2023,"LIM331",50,null,null,null,null,null,null,null,null,null,null,null,null,null,null,null,null,null,null,"~"]
["SA37",2023,"LIM331",51,null,null,null,null,null,null,null,null,null,null,null,null,null,null,null,null,null,null,"~"]
["SA37",2023,"LIM331",52,null,null,null,null,null,null,null,null,null,null,null,null,null,null,null,null,null,null,"~"]
["SA37",2023,"LIM331",53,null,null,null,null,null,null,null,null,null,null,null,null,null,null,null,null,null,null,"~"]
["SA37",2023,"LIM331",54,null,null,null,null,null,null,null,null,null,null,null,null,null,null,null,null,null,null,"~"]
["SA37",2023,"LIM331",55,null,null,null,null,null,null,null,null,null,null,null,null,null,null,null,null,null,null,"~"]
["SA37",2023,"LIM331",56,null,null,null,null,null,null,null,null,null,null,null,null,null,null,null,null,null,null,"~"]
["SA37",2023,"LIM331",57,null,null,null,null,null,null,null,null,null,null,null,null,null,null,null,null,null,null,"~"]
["SA37",2023,"LIM331",58,null,null,null,null,null,null,null,null,null,null,null,null,null,null,null,null,null,null,"~"]
["SA37",2023,"LIM331",59,null,null,null,null,null,null,null,null,null,null,null,null,null,null,null,null,null,null,"~"]
["SA37",2023,"LIM331",60,null,null,null,null,null,null,null,null,null,null,null,null,null,null,null,null,null,null,"~"]
["SA37",2023,"LIM331",61,null,null,null,null,null,null,null,null,null,null,null,null,null,null,null,null,null,null,"~"]
["SA37",2023,"LIM331",62,null,null,null,null,null,null,null,null,null,null,null,null,null,null,null,null,null,null,"~"]
["SA37",2023,"LIM331",63,null,null,null,null,null,null,null,null,null,null,null,null,null,null,null,null,null,null,"~"]
["SA37",2023,"LIM331",64,null,null,null,null,null,null,null,null,null,null,null,null,null,null,null,null,null,null,"~"]
["SA37",2023,"LIM331",65,null,null,null,null,null,null,null,null,null,null,null,null,null,null,null,null,null,null,"~"]
["SA37",2023,"LIM331",66,null,null,null,null,null,null,null,null,null,null,null,null,null,null,null,null,null,null,"~"]
["SA37",2023,"LIM331",67,null,null,null,null,null,null,null,null,null,null,null,null,null,null,null,null,null,null,"~"]
["SA37",2023,"LIM331",68,null,null,null,null,null,null,null,null,null,null,null,null,null,null,null,null,null,null,"~"]
["SA37",2023,"LIM331",69,null,null,null,null,null,null,null,null,null,null,null,null,null,null,null,null,null,null,"~"]
["SA37",2023,"LIM331",70,null,null,null,null,null,null,null,null,null,null,null,null,null,null,null,null,null,null,"~"]
["SA37",2023,"LIM331",71,null,null,null,null,null,null,null,null,null,null,null,null,null,null,null,null,null,null,"~"]
["SA37",2023,"LIM331",72,null,null,null,null,null,null,null,null,null,null,null,null,null,null,null,null,null,null,"~"]
["SA37",2023,"LIM331",73,null,null,null,null,null,null,null,null,null,null,null,null,null,null,null,null,null,null,"~"]
["SA37",2023,"LIM331",74,null,null,null,null,null,null,null,null,null,null,null,null,null,null,null,null,null,null,"~"]
["SA37",2023,"LIM331",75,null,null,null,null,null,null,null,null,null,null,null,null,null,null,null,null,null,null,"~"]
["SA37",2023,"LIM331",76,null,null,null,null,null,null,null,null,null,null,null,null,null,null,null,null,null,null,"~"]
["SA37",2023,"LIM331",77,null,null,null,null,null,null,null,null,null,null,null,null,null,null,null,null,null,null,"~"]
["SA37",2023,"LIM331",78,null,null,null,null,null,null,null,null,null,null,null,null,null,null,null,null,null,null,"~"]
["SA37",2023,"LIM331",79,null,null,null,null,null,null,null,null,null,null,null,null,null,null,null,null,null,null,"~"]
["SA37",2023,"LIM331",80,null,null,null,null,null,null,null,null,null,null,null,null,null,null,null,null,null,null,"~"]
["SA37",2023,"LIM331",81,null,null,null,null,null,null,null,null,null,null,null,null,null,null,null,null,null,null,"~"]
["SA37",2023,"LIM331",82,null,null,null,null,null,null,null,null,null,null,null,null,null,null,null,null,null,null,"~"]
["SA37",2023,"LIM331",83,null,null,null,null,null,null,null,null,null,null,null,null,null,null,null,null,null,null,"~"]
["SA37",2023,"LIM331",84,null,null,null,null,null,null,null,null,null,null,null,null,null,null,null,null,null,null,"~"]
["SA37",2023,"LIM331",85,null,null,null,null,null,null,null,null,null,null,null,null,null,null,null,null,null,null,"~"]
["SA37",2023,"LIM331",86,null,null,null,null,null,null,null,null,null,null,null,null,null,null,null,null,null,null,"~"]
["SA37",2023,"LIM331",87,null,null,null,null,null,null,null,null,null,null,null,null,null,null,null,null,null,null,"~"]
["SA37",2023,"LIM331",88,null,null,null,null,null,null,null,null,null,null,null,null,null,null,null,null,null,null,"~"]
["SA37",2023,"LIM331",89,null,null,null,null,null,null,null,null,null,null,null,null,null,null,null,null,null,null,"~"]
["SA37",2023,"LIM331",90,null,null,null,null,null,null,null,null,null,null,null,null,null,null,null,null,null,null,"~"]
["SA37",2023,"LIM331",91,null,null,null,null,null,null,null,null,null,null,null,null,null,null,null,null,null,null,"~"]
["SA37",2023,"LIM331",92,null,null,null,null,null,null,null,null,null,null,null,null,null,null,null,null,null,null,"~"]
["SA37",2023,"LIM331",93,null,null,null,null,null,null,null,null,null,null,null,null,null,null,null,null,null,null,"~"]
["SA37",2023,"LIM331",94,null,null,null,null,null,null,null,null,null,null,null,null,null,null,null,null,null,null,"~"]
["SA37",2023,"LIM331",95,null,null,null,null,null,null,null,null,null,null,null,null,null,null,null,null,null,null,"~"]
["SA37",2023,"LIM331",96,null,null,null,null,null,null,null,null,null,null,null,null,null,null,null,null,null,null,"~"]
["SA37",2023,"LIM331",97,null,null,null,null,null,null,null,null,null,null,null,null,null,null,null,null,null,null,"~"]
["SA37",2023,"LIM331",98,null,null,null,null,null,null,null,null,null,null,null,null,null,null,null,null,null,null,"~"]
["SA37",2023,"LIM331",99,null,null,null,null,null,null,null,null,null,null,null,null,null,null,null,null,null,null,"~"]
["SA37",2023,"LIM331",100,null,null,null,null,null,null,null,null,null,null,null,null,null,null,null,null,null,null,"~"]
["SA37",2023,"LIM331",101,null,null,null,null,null,null,null,null,null,null,null,null,null,null,null,null,null,null,"~"]
["SA37",2023,"LIM331",102,null,null,null,null,null,null,null,null,null,null,null,null,null,null,null,null,null,null,"~"]
["SA37",2023,"LIM331",103,null,null,null,null,null,null,null,null,null,null,null,null,null,null,null,null,null,null,"~"]
["SA37",2023,"LIM331",104,null,null,null,null,null,null,null,null,null,null,null,null,null,null,null,null,null,null,"~"]
["SA37",2023,"LIM331",105,null,null,null,null,null,null,null,null,null,null,null,null,null,null,null,null,null,null,"~"]
["SA37",2023,"LIM331",106,null,null,null,null,null,null,null,null,null,null,null,null,null,null,null,null,null,null,"~"]
["SA37",2023,"LIM331",107,null,null,null,null,null,null,null,null,null,null,null,null,null,null,null,null,null,null,"~"]
["SA37",2023,"LIM331",108,null,null,null,null,null,null,null,null,null,null,null,null,null,null,null,null,null,null,"~"]
["SA37",2023,"LIM331",109,null,null,null,null,null,null,null,null,null,null,null,null,null,null,null,null,null,null,"~"]
["SA37",2023,"LIM331",110,null,null,null,null,null,null,null,null,null,null,null,null,null,null,null,null,null,null,"~"]
["SA37",2023,"LIM331",111,null,null,null,null,null,null,null,null,null,null,null,null,null,null,null,null,null,null,"~"]
["SA37",{"$f":"+MTREF","v":2023},{"$f":"LEFT(muni,(FIND(\" \",muni,1)-1))","v":"LIM331"},112,null,null,null,null,null,null,null,null,null,null,null,null,null,null,null,null,null,null,"~"]
["SA37",2023,"LIM331",113,null,null,null,null,null,null,null,null,null,null,null,null,null,null,null,null,null,null,"~"]
["SA37",2023,"LIM331",114,null,null,null,null,null,null,null,null,null,null,null,null,null,null,null,null,null,null,"~"]
["SA37",2023,"LIM331",115,null,null,null,null,null,null,null,null,null,null,null,null,null,null,null,null,null,null,"~"]
["SA37",2023,"LIM331",116,null,null,null,null,null,null,null,null,null,null,null,null,null,null,null,null,null,null,"~"]
["SA37",2023,"LIM331",117,null,null,null,null,null,null,null,null,null,null,null,null,null,null,null,null,null,null,"~"]
["SA37",2023,"LIM331",118,null,null,null,null,null,null,null,null,null,null,null,null,null,null,null,null,null,null,"~"]
["SA37",2023,"LIM331",119,null,null,null,null,null,null,null,null,null,null,null,null,null,null,null,null,null,null,"~"]
["SA37",2023,"LIM331",120,null,null,null,null,null,null,null,null,null,null,null,null,null,null,null,null,null,null,"~"]
["SA37",2023,"LIM331",121,null,null,null,null,null,null,null,null,null,null,null,null,null,null,null,null,null,null,"~"]
["SA37",2023,"LIM331",122,null,null,null,null,null,null,null,null,null,null,null,null,null,null,null,null,null,null,"~"]
["SA37",2023,"LIM331",123,null,null,null,null,null,null,null,null,null,null,null,null,null,null,null,null,null,null,"~"]
["SA37",2023,"LIM331",124,null,null,null,null,null,null,null,null,null,null,null,null,null,null,null,null,null,null,"~"]
["SA37",2023,"LIM331",125,null,null,null,null,null,null,null,null,null,null,null,null,null,null,null,null,null,null,"~"]
["SA37",2023,"LIM331",126,null,null,null,null,null,null,null,null,null,null,null,null,null,null,null,null,null,null,"~"]
["SA37",2023,"LIM331",127,null,null,null,null,null,null,null,null,null,null,null,null,null,null,null,null,null,null,"~"]
["SA37",2023,"LIM331",128,null,null,null,null,null,null,null,null,null,null,null,null,null,null,null,null,null,null,"~"]
["SA37",2023,"LIM331",129,null,null,null,null,null,null,null,null,null,null,null,null,null,null,null,null,null,null,"~"]
["SA37",2023,"LIM331",130,null,null,null,null,null,null,null,null,null,null,null,null,null,null,null,null,null,null,"~"]
["SA37",2023,"LIM331",131,null,null,null,null,null,null,null,null,null,null,null,null,null,null,null,null,null,null,"~"]
["SA37",2023,"LIM331",132,null,null,null,null,null,null,null,null,null,null,null,null,null,null,null,null,null,null,"~"]
["SA37",2023,"LIM331",133,null,null,null,null,null,null,null,null,null,null,null,null,null,null,null,null,null,null,"~"]
["SA37",2023,"LIM331",134,null,null,null,null,null,null,null,null,null,null,null,null,null,null,null,null,null,null,"~"]
["SA37",2023,"LIM331",135,null,null,null,null,null,null,null,null,null,null,null,null,null,null,null,null,null,null,"~"]
["SA37",2023,"LIM331",136,null,null,null,null,null,null,null,null,null,null,null,null,null,null,null,null,null,null,"~"]
["SA37",2023,"LIM331",137,null,null,null,null,null,null,null,null,null,null,null,null,null,null,null,null,null,null,"~"]
["SA37",2023,"LIM331",138,null,null,null,null,null,null,null,null,null,null,null,null,null,null,null,null,null,null,"~"]
["SA37",2023,"LIM331",139,null,null,null,null,null,null,null,null,null,null,null,null,null,null,null,null,null,null,"~"]
["SA37",2023,"LIM331",140,null,null,null,null,null,null,null,null,null,null,null,null,null,null,null,null,null,null,"~"]
["SA37",2023,"LIM331",141,null,null,null,null,null,null,null,null,null,null,null,null,null,null,null,null,null,null,"~"]
["SA37",2023,"LIM331",142,null,null,null,null,null,null,null,null,null,null,null,null,null,null,null,null,null,null,"~"]
["SA37",2023,"LIM331",143,null,null,null,null,null,null,null,null,null,null,null,null,null,null,null,null,null,null,"~"]
["SA37",2023,"LIM331",144,null,null,null,null,null,null,null,null,null,null,null,null,null,null,null,null,null,null,"~"]
["SA37",2023,"LIM331",145,null,null,null,null,null,null,null,null,null,null,null,null,null,null,null,null,null,null,"~"]
["SA37",2023,"LIM331",146,null,null,null,null,null,null,null,null,null,null,null,null,null,null,null,null,null,null,"~"]
["SA37",2023,"LIM331",147,null,null,null,null,null,null,null,null,null,null,null,null,null,null,null,null,null,null,"~"]
["SA37",2023,"LIM331",148,null,null,null,null,null,null,null,null,null,null,null,null,null,null,null,null,null,null,"~"]
["SA37",2023,"LIM331",149,null,null,null,null,null,null,null,null,null,null,null,null,null,null,null,null,null,null,"~"]
["SA37",2023,"LIM331",150,null,null,null,null,null,null,null,null,null,null,null,null,null,null,null,null,null,null,"~"]
["SA37",2023,"LIM331",151,null,null,null,null,null,null,null,null,null,null,null,null,null,null,null,null,null,null,"~"]
["SA37",2023,"LIM331",152,null,null,null,null,null,null,null,null,null,null,null,null,null,null,null,null,null,null,"~"]
["SA37",2023,"LIM331",153,null,null,null,null,null,null,null,null,null,null,null,null,null,null,null,null,null,null,"~"]
["SA37",2023,"LIM331",154,null,null,null,null,null,null,null,null,null,null,null,null,null,null,null,null,null,null,"~"]
["SA37",2023,"LIM331",155,null,null,null,null,null,null,null,null,null,null,null,null,null,null,null,null,null,null,"~"]
["SA37",2023,"LIM331",156,null,null,null,null,null,null,null,null,null,null,null,null,null,null,null,null,null,null,"~"]
["SA37",2023,"LIM331",157,null,null,null,null,null,null,null,null,null,null,null,null,null,null,null,null,null,null,"~"]
["SA37",2023,"LIM331",158,null,null,null,null,null,null,null,null,null,null,null,null,null,null,null,null,null,null,"~"]
["SA37",2023,"LIM331",159,null,null,null,null,null,null,null,null,null,null,null,null,null,null,null,null,null,null,"~"]
["SA37",2023,"LIM331",160,null,null,null,null,null,null,null,null,null,null,null,null,null,null,null,null,null,null,"~"]
["SA37",2023,"LIM331",161,null,null,null,null,null,null,null,null,null,null,null,null,null,null,null,null,null,null,"~"]
["SA37",2023,"LIM331",162,null,null,null,null,null,null,null,null,null,null,null,null,null,null,null,null,null,null,"~"]
["SA37",2023,"LIM331",163,null,null,null,null,null,null,null,null,null,null,null,null,null,null,null,null,null,null,"~"]
["SA37",2023,"LIM331",164,null,null,null,null,null,null,null,null,null,null,null,null,null,null,null,null,null,null,"~"]
["SA37",2023,"LIM331",165,null,null,null,null,null,null,null,null,null,null,null,null,null,null,null,null,null,null,"~"]
["SA37",2023,"LIM331",166,null,null,null,null,null,null,null,null,null,null,null,null,null,null,null,null,null,null,"~"]
["SA37",2023,"LIM331",167,null,null,null,null,null,null,null,null,null,null,null,null,null,null,null,null,null,null,"~"]
["SA37",2023,"LIM331",168,null,null,null,null,null,null,null,null,null,null,null,null,null,null,null,null,null,null,"~"]
["SA37",2023,"LIM331",169,null,null,null,null,null,null,null,null,null,null,null,null,null,null,null,null,null,null,"~"]
["SA37",2023,"LIM331",170,null,null,null,null,null,null,null,null,null,null,null,null,null,null,null,null,null,null,"~"]
["SA37",2023,"LIM331",171,null,null,null,null,null,null,null,null,null,null,null,null,null,null,null,null,null,null,"~"]
["SA37",2023,"LIM331",172,null,null,null,null,null,null,null,null,null,null,null,null,null,null,null,null,null,null,"~"]
["SA37",2023,"LIM331",173,null,null,null,null,null,null,null,null,null,null,null,null,null,null,null,null,null,null,"~"]
["SA37",2023,"LIM331",174,null,null,null,null,null,null,null,null,null,null,null,null,null,null,null,null,null,null,"~"]
["SA37",2023,"LIM331",175,null,null,null,null,null,null,null,null,null,null,null,null,null,null,null,null,null,null,"~"]
["SA37",{"$f":"+MTREF","v":2023},{"$f":"LEFT(muni,(FIND(\" \",muni,1)-1))","v":"LIM331"},176,null,null,null,null,null,null,null,null,null,null,null,null,null,null,null,null,null,null,"~"]
["SA37",2023,"LIM331",177,null,null,null,null,null,null,null,null,null,null,null,null,null,null,null,null,null,null,"~"]
["SA37",2023,"LIM331",178,null,null,null,null,null,null,null,null,null,null,null,null,null,null,null,null,null,null,"~"]
["SA37",2023,"LIM331",179,null,null,null,null,null,null,null,null,null,null,null,null,null,null,null,null,null,null,"~"]
["SA37",2023,"LIM331",180,null,null,null,null,null,null,null,null,null,null,null,null,null,null,null,null,null,null,"~"]
["SA37",2023,"LIM331",181,null,null,null,null,null,null,null,null,null,null,null,null,null,null,null,null,null,null,"~"]
["SA37",2023,"LIM331",182,null,null,null,null,null,null,null,null,null,null,null,null,null,null,null,null,null,null,"~"]
["SA37",2023,"LIM331",183,null,null,null,null,null,null,null,null,null,null,null,null,null,null,null,null,null,null,"~"]
["SA37",2023,"LIM331",184,null,null,null,null,null,null,null,null,null,null,null,null,null,null,null,null,null,null,"~"]
["SA37",2023,"LIM331",185,null,null,null,null,null,null,null,null,null,null,null,null,null,null,null,null,null,null,"~"]
["SA37",2023,"LIM331",186,null,null,null,null,null,null,null,null,null,null,null,null,null,null,null,null,null,null,"~"]
["SA37",2023,"LIM331",187,null,null,null,null,null,null,null,null,null,null,null,null,null,null,null,null,null,null,"~"]
["SA37",2023,"LIM331",188,null,null,null,null,null,null,null,null,null,null,null,null,null,null,null,null,null,null,"~"]
["SA37",2023,"LIM331",189,null,null,null,null,null,null,null,null,null,null,null,null,null,null,null,null,null,null,"~"]
["SA37",2023,"LIM331",190,null,null,null,null,null,null,null,null,null,null,null,null,null,null,null,null,null,null,"~"]
["SA37",2023,"LIM331",191,null,null,null,null,null,null,null,null,null,null,null,null,null,null,null,null,null,null,"~"]
["SA37",2023,"LIM331",192,null,null,null,null,null,null,null,null,null,null,null,null,null,null,null,null,null,null,"~"]
["SA37",2023,"LIM331",193,null,null,null,null,null,null,null,null,null,null,null,null,null,null,null,null,null,null,"~"]
["SA37",2023,"LIM331",194,null,null,null,null,null,null,null,null,null,null,null,null,null,null,null,null,null,null,"~"]
["SA37",2023,"LIM331",195,null,null,null,null,null,null,null,null,null,null,null,null,null,null,null,null,null,null,"~"]
["SA37",2023,"LIM331",196,null,null,null,null,null,null,null,null,null,null,null,null,null,null,null,null,null,null,"~"]
["SA37",2023,"LIM331",197,null,null,null,null,null,null,null,null,null,null,null,null,null,null,null,null,null,null,"~"]
["SA37",2023,"LIM331",198,null,null,null,null,null,null,null,null,null,null,null,null,null,null,null,null,null,null,"~"]
["SA37",2023,"LIM331",199,null,null,null,null,null,null,null,null,null,null,null,null,null,null,null,null,null,null,"~"]
["SA37",2023,"LIM331",200,null,null,null,null,null,null,null,null,null,null,null,null,null,null,null,null,null,null,"~"]
["SA37",2023,"LIM331",201,null,null,null,null,null,null,null,null,null,null,null,null,null,null,null,null,null,null,"~"]
["SA37",2023,"LIM331",202,null,null,null,null,null,null,null,null,null,null,null,null,null,null,null,null,null,null,"~"]
["SA37",2023,"LIM331",203,null,null,null,null,null,null,null,null,null,null,null,null,null,null,null,null,null,null,"~"]
["SA37",2023,"LIM331",204,null,null,null,null,null,null,null,null,null,null,null,null,null,null,null,null,null,null,"~"]
["SA37",2023,"LIM331",205,null,null,null,null,null,null,null,null,null,null,null,null,null,null,null,null,null,null,"~"]
["SA37",2023,"LIM331",206,null,null,null,null,null,null,null,null,null,null,null,null,null,null,null,null,null,null,"~"]
["SA37",2023,"LIM331",207,null,null,null,null,null,null,null,null,null,null,null,null,null,null,null,null,null,null,"~"]
["SA37",2023,"LIM331",208,null,null,null,null,null,null,null,null,null,null,null,null,null,null,null,null,null,null,"~"]
["SA37",2023,"LIM331",209,null,null,null,null,null,null,null,null,null,null,null,null,null,null,null,null,null,null,"~"]
["SA37",2023,"LIM331",210,null,null,null,null,null,null,null,null,null,null,null,null,null,null,null,null,null,null,"~"]
["SA37",2023,"LIM331",211,null,null,null,null,null,null,null,null,null,null,null,null,null,null,null,null,null,null,"~"]
["SA37",2023,"LIM331",212,null,null,null,null,null,null,null,null,null,null,null,null,null,null,null,null,null,null,"~"]
["SA37",2023,"LIM331",213,null,null,null,null,null,null,null,null,null,null,null,null,null,null,null,null,null,null,"~"]
["SA37",2023,"LIM331",214,null,null,null,null,null,null,null,null,null,null,null,null,null,null,null,null,null,null,"~"]
["SA37",2023,"LIM331",215,null,null,null,null,null,null,null,null,null,null,null,null,null,null,null,null,null,null,"~"]
["SA37",2023,"LIM331",216,null,null,null,null,null,null,null,null,null,null,null,null,null,null,null,null,null,null,"~"]
["SA37",2023,"LIM331",217,null,null,null,null,null,null,null,null,null,null,null,null,null,null,null,null,null,null,"~"]
["SA37",2023,"LIM331",218,null,null,null,null,null,null,null,null,null,null,null,null,null,null,null,null,null,null,"~"]
["SA37",2023,"LIM331",219,null,null,null,null,null,null,null,null,null,null,null,null,null,null,null,null,null,null,"~"]
["SA37",2023,"LIM331",220,null,null,null,null,null,null,null,null,null,null,null,null,null,null,null,null,null,null,"~"]
["SA37",2023,"LIM331",221,null,null,null,null,null,null,null,null,null,null,null,null,null,null,null,null,null,null,"~"]
["SA37",2023,"LIM331",222,null,null,null,null,null,null,null,null,null,null,null,null,null,null,null,null,null,null,"~"]
["SA37",2023,"LIM331",223,null,null,null,null,null,null,null,null,null,null,null,null,null,null,null,null,null,null,"~"]
["SA37",2023,"LIM331",224,null,null,null,null,null,null,null,null,null,null,null,null,null,null,null,null,null,null,"~"]
["SA37",2023,"LIM331",225,null,null,null,null,null,null,null,null,null,null,null,null,null,null,null,null,null,null,"~"]
["SA37",2023,"LIM331",226,null,null,null,null,null,null,null,null,null,null,null,null,null,null,null,null,null,null,"~"]
["SA37",2023,"LIM331",227,null,null,null,null,null,null,null,null,null,null,null,null,null,null,null,null,null,null,"~"]
["SA37",2023,"LIM331",228,null,null,null,null,null,null,null,null,null,null,null,null,null,null,null,null,null,null,"~"]
["SA37",2023,"LIM331",229,null,null,null,null,null,null,null,null,null,null,null,null,null,null,null,null,null,null,"~"]
["SA37",2023,"LIM331",230,null,null,null,null,null,null,null,null,null,null,null,null,null,null,null,null,null,null,"~"]
["SA37",2023,"LIM331",231,null,null,null,null,null,null,null,null,null,null,null,null,null,null,null,null,null,null,"~"]
["SA37",2023,"LIM331",232,null,null,null,null,null,null,null,null,null,null,null,null,null,null,null,null,null,null,"~"]
["SA37",2023,"LIM331",233,null,null,null,null,null,null,null,null,null,null,null,null,null,null,null,null,null,null,"~"]
["SA37",2023,"LIM331",234,null,null,null,null,null,null,null,null,null,null,null,null,null,null,null,null,null,null,"~"]
["SA37",2023,"LIM331",235,null,null,null,null,null,null,null,null,null,null,null,null,null,null,null,null,null,null,"~"]
["SA37",2023,"LIM331",236,null,null,null,null,null,null,null,null,null,null,null,null,null,null,null,null,null,null,"~"]
["SA37",2023,"LIM331",237,null,null,null,null,null,null,null,null,null,null,null,null,null,null,null,null,null,null,"~"]
["SA37",2023,"LIM331",238,null,null,null,null,null,null,null,null,null,null,null,null,null,null,null,null,null,null,"~"]
["SA37",2023,"LIM331",239,null,null,null,null,null,null,null,null,null,null,null,null,null,null,null,null,null,null,"~"]
["SA37",{"$f":"+MTREF","v":2023},{"$f":"LEFT(muni,(FIND(\" \",muni,1)-1))","v":"LIM331"},240,null,null,null,null,null,null,null,null,null,null,null,null,null,null,null,null,null,null,"~"]
["SA37",2023,"LIM331",241,null,null,null,null,null,null,null,null,null,null,null,null,null,null,null,null,null,null,"~"]
["SA37",2023,"LIM331",242,null,null,null,null,null,null,null,null,null,null,null,null,null,null,null,null,null,null,"~"]
["SA37",2023,"LIM331",243,null,null,null,null,null,null,null,null,null,null,null,null,null,null,null,null,null,null,"~"]
["SA37",2023,"LIM331",244,null,null,null,null,null,null,null,null,null,null,null,null,null,null,null,null,null,null,"~"]
["SA37",2023,"LIM331",245,null,null,null,null,null,null,null,null,null,null,null,null,null,null,null,null,null,null,"~"]
["SA37",2023,"LIM331",246,null,null,null,null,null,null,null,null,null,null,null,null,null,null,null,null,null,null,"~"]
["SA37",2023,"LIM331",247,null,null,null,null,null,null,null,null,null,null,null,null,null,null,null,null,null,null,"~"]
["SA37",2023,"LIM331",248,null,null,null,null,null,null,null,null,null,null,null,null,null,null,null,null,null,null,"~"]
["SA37",2023,"LIM331",249,null,null,null,null,null,null,null,null,null,null,null,null,null,null,null,null,null,null,"~"]
["SA37",2023,"LIM331",250,null,null,null,null,null,null,null,null,null,null,null,null,null,null,null,null,null,null,"~"]
["SA37",2023,"LIM331",251,null,null,null,null,null,null,null,null,null,null,null,null,null,null,null,null,null,null,"~"]
["SA37",2023,"LIM331",252,null,null,null,null,null,null,null,null,null,null,null,null,null,null,null,null,null,null,"~"]
["SA37",2023,"LIM331",253,null,null,null,null,null,null,null,null,null,null,null,null,null,null,null,null,null,null,"~"]
["SA37",2023,"LIM331",254,null,null,null,null,null,null,null,null,null,null,null,null,null,null,null,null,null,null,"~"]
["SA37",2023,"LIM331",255,null,null,null,null,null,null,null,null,null,null,null,null,null,null,null,null,null,null,"~"]
["SA37",2023,"LIM331",256,null,null,null,null,null,null,null,null,null,null,null,null,null,null,null,null,null,null,"~"]
["SA37",2023,"LIM331",257,null,null,null,null,null,null,null,null,null,null,null,null,null,null,null,null,null,null,"~"]
["SA37",2023,"LIM331",258,null,null,null,null,null,null,null,null,null,null,null,null,null,null,null,null,null,null,"~"]
["SA37",2023,"LIM331",259,null,null,null,null,null,null,null,null,null,null,null,null,null,null,null,null,null,null,"~"]
["SA37",2023,"LIM331",260,null,null,null,null,null,null,null,null,null,null,null,null,null,null,null,null,null,null,"~"]
["SA37",2023,"LIM331",261,null,null,null,null,null,null,null,null,null,null,null,null,null,null,null,null,null,null,"~"]
["SA37",2023,"LIM331",262,null,null,null,null,null,null,null,null,null,null,null,null,null,null,null,null,null,null,"~"]
["SA37",2023,"LIM331",263,null,null,null,null,null,null,null,null,null,null,null,null,null,null,null,null,null,null,"~"]
["SA37",2023,"LIM331",264,null,null,null,null,null,null,null,null,null,null,null,null,null,null,null,null,null,null,"~"]
["SA37",2023,"LIM331",265,null,null,null,null,null,null,null,null,null,null,null,null,null,null,null,null,null,null,"~"]
["SA37",2023,"LIM331",266,null,null,null,null,null,null,null,null,null,null,null,null,null,null,null,null,null,null,"~"]
["SA37",2023,"LIM331",267,null,null,null,null,null,null,null,null,null,null,null,null,null,null,null,null,null,null,"~"]
["SA37",2023,"LIM331",268,null,null,null,null,null,null,null,null,null,null,null,null,null,null,null,null,null,null,"~"]
["SA37",2023,"LIM331",269,null,null,null,null,null,null,null,null,null,null,null,null,null,null,null,null,null,null,"~"]
["SA37",2023,"LIM331",270,null,null,null,null,null,null,null,null,null,null,null,null,null,null,null,null,null,null,"~"]
["SA37",2023,"LIM331",271,null,null,null,null,null,null,null,null,null,null,null,null,null,null,null,null,null,null,"~"]
["SA37",2023,"LIM331",272,null,null,null,null,null,null,null,null,null,null,null,null,null,null,null,null,null,null,"~"]
["SA37",2023,"LIM331",273,null,null,null,null,null,null,null,null,null,null,null,null,null,null,null,null,null,null,"~"]
["SA37",2023,"LIM331",274,null,null,null,null,null,null,null,null,null,null,null,null,null,null,null,null,null,null,"~"]
["SA37",2023,"LIM331",275,null,null,null,null,null,null,null,null,null,null,null,null,null,null,null,null,null,null,"~"]
["SA37",2023,"LIM331",276,null,null,null,null,null,null,null,null,null,null,null,null,null,null,null,null,null,null,"~"]
["SA37",2023,"LIM331",277,null,null,null,null,null,null,null,null,null,null,null,null,null,null,null,null,null,null,"~"]
["SA37",2023,"LIM331",278,null,null,null,null,null,null,null,null,null,null,null,null,null,null,null,null,null,null,"~"]
["SA37",2023,"LIM331",279,null,null,null,null,null,null,null,null,null,null,null,null,null,null,null,null,null,null,"~"]
["SA37",2023,"LIM331",280,null,null,null,null,null,null,null,null,null,null,null,null,null,null,null,null,null,null,"~"]
["SA37",2023,"LIM331",281,null,null,null,null,null,null,null,null,null,null,null,null,null,null,null,null,null,null,"~"]
["SA37",2023,"LIM331",282,null,null,null,null,null,null,null,null,null,null,null,null,null,null,null,null,null,null,"~"]
["SA37",2023,"LIM331",283,null,null,null,null,null,null,null,null,null,null,null,null,null,null,null,null,null,null,"~"]
["SA37",2023,"LIM331",284,null,null,null,null,null,null,null,null,null,null,null,null,null,null,null,null,null,null,"~"]
["SA37",2023,"LIM331",285,null,null,null,null,null,null,null,null,null,null,null,null,null,null,null,null,null,null,"~"]
["SA37",2023,"LIM331",286,null,null,null,null,null,null,null,null,null,null,null,null,null,null,null,null,null,null,"~"]
["SA37",2023,"LIM331",287,null,null,null,null,null,null,null,null,null,null,null,null,null,null,null,null,null,null,"~"]
["SA37",2023,"LIM331",288,null,null,null,null,null,null,null,null,null,null,null,null,null,null,null,null,null,null,"~"]
["SA37",2023,"LIM331",289,null,null,null,null,null,null,null,null,null,null,null,null,null,null,null,null,null,null,"~"]
["SA37",2023,"LIM331",290,null,null,null,null,null,null,null,null,null,null,null,null,null,null,null,null,null,null,"~"]
["SA37",2023,"LIM331",291,null,null,null,null,null,null,null,null,null,null,null,null,null,null,null,null,null,null,"~"]
["SA37",2023,"LIM331",292,null,null,null,null,null,null,null,null,null,null,null,null,null,null,null,null,null,null,"~"]
["SA37",2023,"LIM331",293,null,null,null,null,null,null,null,null,null,null,null,null,null,null,null,null,null,null,"~"]
["SA37",2023,"LIM331",294,null,null,null,null,null,null,null,null,null,null,null,null,null,null,null,null,null,null,"~"]
["SA37",2023,"LIM331",295,null,null,null,null,null,null,null,null,null,null,null,null,null,null,null,null,null,null,"~"]
["SA37",2023,"LIM331",296,null,null,null,null,null,null,null,null,null,null,null,null,null,null,null,null,null,null,"~"]
["SA37",2023,"LIM331",297,null,null,null,null,null,null,null,null,null,null,null,null,null,null,null,null,null,null,"~"]
["SA37",2023,"LIM331",298,null,null,null,null,null,null,null,null,null,null,null,null,null,null,null,null,null,null,"~"]
["SA37",2023,"LIM331",299,null,null,null,null,null,null,null,null,null,null,null,null,null,null,null,null,null,null,"~"]
["SA37",2023,"LIM331",300,null,null,null,null,null,null,null,null,null,null,null,null,null,null,null,null,null,null,"~"]
["SA37",2023,"LIM331",301,null,null,null,null,null,null,null,null,null,null,null,null,null,null,null,null,null,null,"~"]
["SA37",2023,"LIM331",302,null,null,null,null,null,null,null,null,null,null,null,null,null,null,null,null,null,null,"~"]
["SA37",2023,"LIM331",303,null,null,null,null,null,null,null,null,null,null,null,null,null,null,null,null,null,null,"~"]
["SA37",{"$f":"+MTREF","v":2023},{"$f":"LEFT(muni,(FIND(\" \",muni,1)-1))","v":"LIM331"},304,null,null,null,null,null,null,null,null,null,null,null,null,null,null,null,null,null,null,"~"]
["SA37",2023,"LIM331",305,null,null,null,null,null,null,null,null,null,null,null,null,null,null,null,null,null,null,"~"]
["SA37",2023,"LIM331",306,null,null,null,null,null,null,null,null,null,null,null,null,null,null,null,null,null,null,"~"]
["SA37",2023,"LIM331",307,null,null,null,null,null,null,null,null,null,null,null,null,null,null,null,null,null,null,"~"]
["SA37",2023,"LIM331",308,null,null,null,null,null,null,null,null,null,null,null,null,null,null,null,null,null,null,"~"]
["SA37",2023,"LIM331",309,null,null,null,null,null,null,null,null,null,null,null,null,null,null,null,null,null,null,"~"]
["SA37",2023,"LIM331",310,null,null,null,null,null,null,null,null,null,null,null,null,null,null,null,null,null,null,"~"]
["SA37",2023,"LIM331",311,null,null,null,null,null,null,null,null,null,null,null,null,null,null,null,null,null,null,"~"]
["SA37",2023,"LIM331",312,null,null,null,null,null,null,null,null,null,null,null,null,null,null,null,null,null,null,"~"]
["SA37",2023,"LIM331",313,null,null,null,null,null,null,null,null,null,null,null,null,null,null,null,null,null,null,"~"]
["SA37",2023,"LIM331",314,null,null,null,null,null,null,null,null,null,null,null,null,null,null,null,null,null,null,"~"]
["SA37",2023,"LIM331",315,null,null,null,null,null,null,null,null,null,null,null,null,null,null,null,null,null,null,"~"]
["SA37",2023,"LIM331",316,null,null,null,null,null,null,null,null,null,null,null,null,null,null,null,null,null,null,"~"]
["SA37",2023,"LIM331",317,null,null,null,null,null,null,null,null,null,null,null,null,null,null,null,null,null,null,"~"]
["SA37",2023,"LIM331",318,null,null,null,null,null,null,null,null,null,null,null,null,null,null,null,null,null,null,"~"]
["SA37",2023,"LIM331",319,null,null,null,null,null,null,null,null,null,null,null,null,null,null,null,null,null,null,"~"]
["SA37",2023,"LIM331",320,null,null,null,null,null,null,null,null,null,null,null,null,null,null,null,null,null,null,"~"]
["SA37",2023,"LIM331",321,null,null,null,null,null,null,null,null,null,null,null,null,null,null,null,null,null,null,"~"]
["SA37",2023,"LIM331",322,null,null,null,null,null,null,null,null,null,null,null,null,null,null,null,null,null,null,"~"]
["SA37",2023,"LIM331",323,null,null,null,null,null,null,null,null,null,null,null,null,null,null,null,null,null,null,"~"]
["SA37",2023,"LIM331",324,null,null,null,null,null,null,null,null,null,null,null,null,null,null,null,null,null,null,"~"]
["SA37",2023,"LIM331",325,null,null,null,null,null,null,null,null,null,null,null,null,null,null,null,null,null,null,"~"]
["SA37",2023,"LIM331",326,null,null,null,null,null,null,null,null,null,null,null,null,null,null,null,null,null,null,"~"]
["SA37",2023,"LIM331",327,null,null,null,null,null,null,null,null,null,null,null,null,null,null,null,null,null,null,"~"]
["SA37",2023,"LIM331",328,null,null,null,null,null,null,null,null,null,null,null,null,null,null,null,null,null,null,"~"]
["SA37",2023,"LIM331",329,null,null,null,null,null,null,null,null,null,null,null,null,null,null,null,null,null,null,"~"]
["SA37",2023,"LIM331",330,null,null,null,null,null,null,null,null,null,null,null,null,null,null,null,null,null,null,"~"]
["SA37",2023,"LIM331",331,null,null,null,null,null,null,null,null,null,null,null,null,null,null,null,null,null,null,"~"]
["SA37",2023,"LIM331",332,null,null,null,null,null,null,null,null,null,null,null,null,null,null,null,null,null,null,"~"]
["SA37",2023,"LIM331",333,null,null,null,null,null,null,null,null,null,null,null,null,null,null,null,null,null,null,"~"]
["SA37",2023,"LIM331",334,null,null,null,null,null,null,null,null,null,null,null,null,null,null,null,null,null,null,"~"]
["SA37",2023,"LIM331",335,null,null,null,null,null,null,null,null,null,null,null,null,null,null,null,null,null,null,"~"]
["SA37",2023,"LIM331",336,null,null,null,null,null,null,null,null,null,null,null,null,null,null,null,null,null,null,"~"]
["SA37",2023,"LIM331",337,null,null,null,null,null,null,null,null,null,null,null,null,null,null,null,null,null,null,"~"]
["SA37",2023,"LIM331",338,null,null,null,null,null,null,null,null,null,null,null,null,null,null,null,null,null,null,"~"]
["SA37",2023,"LIM331",339,null,null,null,null,null,null,null,null,null,null,null,null,null,null,null,null,null,null,"~"]
["SA37",2023,"LIM331",340,null,null,null,null,null,null,null,null,null,null,null,null,null,null,null,null,null,null,"~"]
["SA37",2023,"LIM331",341,null,null,null,null,null,null,null,null,null,null,null,null,null,null,null,null,null,null,"~"]
["SA37",2023,"LIM331",342,null,null,null,null,null,null,null,null,null,null,null,null,null,null,null,null,null,null,"~"]
["SA37",2023,"LIM331",343,null,null,null,null,null,null,null,null,null,null,null,null,null,null,null,null,null,null,"~"]
["SA37",2023,"LIM331",344,null,null,null,null,null,null,null,null,null,null,null,null,null,null,null,null,null,null,"~"]
["SA37",2023,"LIM331",345,null,null,null,null,null,null,null,null,null,null,null,null,null,null,null,null,null,null,"~"]
["SA37",2023,"LIM331",346,null,null,null,null,null,null,null,null,null,null,null,null,null,null,null,null,null,null,"~"]
["SA37",2023,"LIM331",347,null,null,null,null,null,null,null,null,null,null,null,null,null,null,null,null,null,null,"~"]
["SA37",2023,"LIM331",348,null,null,null,null,null,null,null,null,null,null,null,null,null,null,null,null,null,null,"~"]
["SA37",2023,"LIM331",349,null,null,null,null,null,null,null,null,null,null,null,null,null,null,null,null,null,null,"~"]
["SA37",2023,"LIM331",350,null,null,null,null,null,null,null,null,null,null,null,null,null,null,null,null,null,null,"~"]
["SA37",2023,"LIM331",351,null,null,null,null,null,null,null,null,null,null,null,null,null,null,null,null,null,null,"~"]
["SA37",2023,"LIM331",352,null,null,null,null,null,null,null,null,null,null,null,null,null,null,null,null,null,null,"~"]
["SA37",2023,"LIM331",353,null,null,null,null,null,null,null,null,null,null,null,null,null,null,null,null,null,null,"~"]
["SA37",2023,"LIM331",354,null,null,null,null,null,null,null,null,null,null,null,null,null,null,null,null,null,null,"~"]
["SA37",2023,"LIM331",355,null,null,null,null,null,null,null,null,null,null,null,null,null,null,null,null,null,null,"~"]
["SA37",2023,"LIM331",356,null,null,null,null,null,null,null,null,null,null,null,null,null,null,null,null,null,null,"~"]
["SA37",2023,"LIM331",357,null,null,null,null,null,null,null,null,null,null,null,null,null,null,null,null,null,null,"~"]
["SA37",2023,"LIM331",358,null,null,null,null,null,null,null,null,null,null,null,null,null,null,null,null,null,null,"~"]
["SA37",2023,"LIM331",359,null,null,null,null,null,null,null,null,null,null,null,null,null,null,null,null,null,null,"~"]
["SA37",2023,"LIM331",360,null,null,null,null,null,null,null,null,null,null,null,null,null,null,null,null,null,null,"~"]
["SA37",2023,"LIM331",361,null,null,null,null,null,null,null,null,null,null,null,null,null,null,null,null,null,null,"~"]
["SA37",2023,"LIM331",362,null,null,null,null,null,null,null,null,null,null,null,null,null,null,null,null,null,null,"~"]
["SA37",2023,"LIM331",363,null,null,null,null,null,null,null,null,null,null,null,null,null,null,null,null,null,null,"~"]
["SA37",2023,"LIM331",364,null,null,null,null,null,null,null,null,null,null,null,null,null,null,null,null,null,null,"~"]
["SA37",2023,"LIM331",365,null,null,null,null,null,null,null,null,null,null,null,null,null,null,null,null,null,null,"~"]
["SA37",2023,"LIM331",366,null,null,null,null,null,null,null,null,null,null,null,null,null,null,null,null,null,null,"~"]
["SA37",2023,"LIM331",367,null,null,null,null,null,null,null,null,null,null,null,null,null,null,null,null,null,null,"~"]
["SA37",{"$f":"+MTREF","v":2023},{"$f":"LEFT(muni,(FIND(\" \",muni,1)-1))","v":"LIM331"},368,null,null,null,null,null,null,null,null,null,null,null,null,null,null,null,null,null,null,"~"]
["SA37",2023,"LIM331",369,null,null,null,null,null,null,null,null,null,null,null,null,null,null,null,null,null,null,"~"]
["SA37",2023,"LIM331",370,null,null,null,null,null,null,null,null,null,null,null,null,null,null,null,null,null,null,"~"]
["SA37",2023,"LIM331",371,null,null,null,null,null,null,null,null,null,null,null,null,null,null,null,null,null,null,"~"]
["SA37",2023,"LIM331",372,null,null,null,null,null,null,null,null,null,null,null,null,null,null,null,null,null,null,"~"]
["SA37",2023,"LIM331",373,null,null,null,null,null,null,null,null,null,null,null,null,null,null,null,null,null,null,"~"]
["SA37",2023,"LIM331",374,null,null,null,null,null,null,null,null,null,null,null,null,null,null,null,null,null,null,"~"]
["SA37",2023,"LIM331",375,null,null,null,null,null,null,null,null,null,null,null,null,null,null,null,null,null,null,"~"]
["SA37",2023,"LIM331",376,null,null,null,null,null,null,null,null,null,null,null,null,null,null,null,null,null,null,"~"]
["SA37",2023,"LIM331",377,null,null,null,null,null,null,null,null,null,null,null,null,null,null,null,null,null,null,"~"]
["SA37",2023,"LIM331",378,null,null,null,null,null,null,null,null,null,null,null,null,null,null,null,null,null,null,"~"]
["SA37",2023,"LIM331",379,null,null,null,null,null,null,null,null,null,null,null,null,null,null,null,null,null,null,"~"]
["SA37",2023,"LIM331",380,null,null,null,null,null,null,null,null,null,null,null,null,null,null,null,null,null,null,"~"]
["SA37",2023,"LIM331",381,null,null,null,null,null,null,null,null,null,null,null,null,null,null,null,null,null,null,"~"]
["SA37",2023,"LIM331",382,null,null,null,null,null,null,null,null,null,null,null,null,null,null,null,null,null,null,"~"]
["SA37",2023,"LIM331",383,null,null,null,null,null,null,null,null,null,null,null,null,null,null,null,null,null,null,"~"]
["SA37",2023,"LIM331",384,null,null,null,null,null,null,null,null,null,null,null,null,null,null,null,null,null,null,"~"]
["SA37",2023,"LIM331",385,null,null,null,null,null,null,null,null,null,null,null,null,null,null,null,null,null,null,"~"]
["SA37",2023,"LIM331",386,null,null,null,null,null,null,null,null,null,null,null,null,null,null,null,null,null,null,"~"]
["SA37",2023,"LIM331",387,null,null,null,null,null,null,null,null,null,null,null,null,null,null,null,null,null,null,"~"]
["SA37",2023,"LIM331",388,null,null,null,null,null,null,null,null,null,null,null,null,null,null,null,null,null,null,"~"]
["SA37",2023,"LIM331",389,null,null,null,null,null,null,null,null,null,null,null,null,null,null,null,null,null,null,"~"]
["SA37",2023,"LIM331",390,null,null,null,null,null,null,null,null,null,null,null,null,null,null,null,null,null,null,"~"]
["SA37",2023,"LIM331",391,null,null,null,null,null,null,null,null,null,null,null,null,null,null,null,null,null,null,"~"]
["SA37",2023,"LIM331",392,null,null,null,null,null,null,null,null,null,null,null,null,null,null,null,null,null,null,"~"]
["SA37",2023,"LIM331",393,null,null,null,null,null,null,null,null,null,null,null,null,null,null,null,null,null,null,"~"]
["SA37",2023,"LIM331",394,null,null,null,null,null,null,null,null,null,null,null,null,null,null,null,null,null,null,"~"]
["SA37",2023,"LIM331",395,null,null,null,null,null,null,null,null,null,null,null,null,null,null,null,null,null,null,"~"]
["SA37",2023,"LIM331",396,null,null,null,null,null,null,null,null,null,null,null,null,null,null,null,null,null,null,"~"]
["SA37",2023,"LIM331",397,null,null,null,null,null,null,null,null,null,null,null,null,null,null,null,null,null,null,"~"]
["SA37",2023,"LIM331",398,null,null,null,null,null,null,null,null,null,null,null,null,null,null,null,null,null,null,"~"]
["SA37",2023,"LIM331",399,null,null,null,null,null,null,null,null,null,null,null,null,null,null,null,null,null,null,"~"]
["SA37",2023,"LIM331",400,null,null,null,null,null,null,null,null,null,null,null,null,null,null,null,null,null,null,"~"]
["SA37",2023,"LIM331",401,null,null,null,null,null,null,null,null,null,null,null,null,null,null,null,null,null,null,"~"]
["SA37",2023,"LIM331",402,null,null,null,null,null,null,null,null,null,null,null,null,null,null,null,null,null,null,"~"]
["SA37",2023,"LIM331",403,null,null,null,null,null,null,null,null,null,null,null,null,null,null,null,null,null,null,"~"]
["SA37",2023,"LIM331",404,null,null,null,null,null,null,null,null,null,null,null,null,null,null,null,null,null,null,"~"]
["SA37",2023,"LIM331",405,null,null,null,null,null,null,null,null,null,null,null,null,null,null,null,null,null,null,"~"]
["SA37",2023,"LIM331",406,null,null,null,null,null,null,null,null,null,null,null,null,null,null,null,null,null,null,"~"]
["SA37",2023,"LIM331",407,null,null,null,null,null,null,null,null,null,null,null,null,null,null,null,null,null,null,"~"]
["SA37",2023,"LIM331",408,null,null,null,null,null,null,null,null,null,null,null,null,null,null,null,null,null,null,"~"]
["SA37",2023,"LIM331",409,null,null,null,null,null,null,null,null,null,null,null,null,null,null,null,null,null,null,"~"]
["SA37",2023,"LIM331",410,null,null,null,null,null,null,null,null,null,null,null,null,null,null,null,null,null,null,"~"]
["SA37",2023,"LIM331",411,null,null,null,null,null,null,null,null,null,null,null,null,null,null,null,null,null,null,"~"]
["SA37",2023,"LIM331",412,null,null,null,null,null,null,null,null,null,null,null,null,null,null,null,null,null,null,"~"]
["SA37",2023,"LIM331",413,null,null,null,null,null,null,null,null,null,null,null,null,null,null,null,null,null,null,"~"]
["SA37",2023,"LIM331",414,null,null,null,null,null,null,null,null,null,null,null,null,null,null,null,null,null,null,"~"]
["SA37",2023,"LIM331",415,null,null,null,null,null,null,null,null,null,null,null,null,null,null,null,null,null,null,"~"]
["SA37",2023,"LIM331",416,null,null,null,null,null,null,null,null,null,null,null,null,null,null,null,null,null,null,"~"]
["SA37",2023,"LIM331",417,null,null,null,null,null,null,null,null,null,null,null,null,null,null,null,null,null,null,"~"]
["SA37",2023,"LIM331",418,null,null,null,null,null,null,null,null,null,null,null,null,null,null,null,null,null,null,"~"]
["SA37",2023,"LIM331",419,null,null,null,null,null,null,null,null,null,null,null,null,null,null,null,null,null,null,"~"]
["SA37",2023,"LIM331",420,null,null,null,null,null,null,null,null,null,null,null,null,null,null,null,null,null,null,"~"]
["SA37",2023,"LIM331",421,null,null,null,null,null,null,null,null,null,null,null,null,null,null,null,null,null,null,"~"]
["SA37",2023,"LIM331",422,null,null,null,null,null,null,null,null,null,null,null,null,null,null,null,null,null,null,"~"]
["SA37",2023,"LIM331",423,null,null,null,null,null,null,null,null,null,null,null,null,null,null,null,null,null,null,"~"]
["SA37",2023,"LIM331",424,null,null,null,null,null,null,null,null,null,null,null,null,null,null,null,null,null,null,"~"]
["SA37",2023,"LIM331",425,null,null,null,null,null,null,null,null,null,null,null,null,null,null,null,null,null,null,"~"]
["SA37",2023,"LIM331",426,null,null,null,null,null,null,null,null,null,null,null,null,null,null,null,null,null,null,"~"]
["SA37",2023,"LIM331",427,null,null,null,null,null,null,null,null,null,null,null,null,null,null,null,null,null,null,"~"]
["SA37",2023,"LIM331",428,null,null,null,null,null,null,null,null,null,null,null,null,null,null,null,null,null,null,"~"]
["SA37",2023,"LIM331",429,null,null,null,null,null,null,null,null,null,null,null,null,null,null,null,null,null,null,"~"]
["SA37",2023,"LIM331",430,null,null,null,null,null,null,null,null,null,null,null,null,null,null,null,null,null,null,"~"]
["SA37",2023,"LIM331",431,null,null,null,null,null,null,null,null,null,null,null,null,null,null,null,null,null,null,"~"]
["SA37",{"$f":"+MTREF","v":2023},{"$f":"LEFT(muni,(FIND(\" \",muni,1)-1))","v":"LIM331"},432,null,null,null,null,null,null,null,null,null,null,null,null,null,null,null,null,null,null,"~"]
["SA37",2023,"LIM331",433,null,null,null,null,null,null,null,null,null,null,null,null,null,null,null,null,null,null,"~"]
["SA37",2023,"LIM331",434,null,null,null,null,null,null,null,null,null,null,null,null,null,null,null,null,null,null,"~"]
["SA37",2023,"LIM331",435,null,null,null,null,null,null,null,null,null,null,null,null,null,null,null,null,null,null,"~"]
["SA37",2023,"LIM331",436,null,null,null,null,null,null,null,null,null,null,null,null,null,null,null,null,null,null,"~"]
["SA37",2023,"LIM331",437,null,null,null,null,null,null,null,null,null,null,null,null,null,null,null,null,null,null,"~"]
["SA37",2023,"LIM331",438,null,null,null,null,null,null,null,null,null,null,null,null,null,null,null,null,null,null,"~"]
["SA37",2023,"LIM331",439,null,null,null,null,null,null,null,null,null,null,null,null,null,null,null,null,null,null,"~"]
["SA37",2023,"LIM331",440,null,null,null,null,null,null,null,null,null,null,null,null,null,null,null,null,null,null,"~"]
["SA37",2023,"LIM331",441,null,null,null,null,null,null,null,null,null,null,null,null,null,null,null,null,null,null,"~"]
["SA37",2023,"LIM331",442,null,null,null,null,null,null,null,null,null,null,null,null,null,null,null,null,null,null,"~"]
["SA37",2023,"LIM331",443,null,null,null,null,null,null,null,null,null,null,null,null,null,null,null,null,null,null,"~"]
["SA37",2023,"LIM331",444,null,null,null,null,null,null,null,null,null,null,null,null,null,null,null,null,null,null,"~"]
["SA37",2023,"LIM331",445,null,null,null,null,null,null,null,null,null,null,null,null,null,null,null,null,null,null,"~"]
["SA37",2023,"LIM331",446,null,null,null,null,null,null,null,null,null,null,null,null,null,null,null,null,null,null,"~"]
["SA37",2023,"LIM331",447,null,null,null,null,null,null,null,null,null,null,null,null,null,null,null,null,null,null,"~"]
["SA37",2023,"LIM331",448,null,null,null,null,null,null,null,null,null,null,null,null,null,null,null,null,null,null,"~"]
["SA37",2023,"LIM331",449,null,null,null,null,null,null,null,null,null,null,null,null,null,null,null,null,null,null,"~"]
["SA37",2023,"LIM331",450,null,null,null,null,null,null,null,null,null,null,null,null,null,null,null,null,null,null,"~"]
["SA37",2023,"LIM331",451,null,null,null,null,null,null,null,null,null,null,null,null,null,null,null,null,null,null,"~"]
["SA37",2023,"LIM331",452,null,null,null,null,null,null,null,null,null,null,null,null,null,null,null,null,null,null,"~"]
["SA37",2023,"LIM331",453,null,null,null,null,null,null,null,null,null,null,null,null,null,null,null,null,null,null,"~"]
["SA37",2023,"LIM331",454,null,null,null,null,null,null,null,null,null,null,null,null,null,null,null,null,null,null,"~"]
["SA37",2023,"LIM331",455,null,null,null,null,null,null,null,null,null,null,null,null,null,null,null,null,null,null,"~"]
["SA37",2023,"LIM331",456,null,null,null,null,null,null,null,null,null,null,null,null,null,null,null,null,null,null,"~"]
["SA37",2023,"LIM331",457,null,null,null,null,null,null,null,null,null,null,null,null,null,null,null,null,null,null,"~"]
["SA37",2023,"LIM331",458,null,null,null,null,null,null,null,null,null,null,null,null,null,null,null,null,null,null,"~"]
["SA37",2023,"LIM331",459,null,null,null,null,null,null,null,null,null,null,null,null,null,null,null,null,null,null,"~"]
["SA37",2023,"LIM331",460,null,null,null,null,null,null,null,null,null,null,null,null,null,null,null,null,null,null,"~"]
["SA37",2023,"LIM331",461,null,null,null,null,null,null,null,null,null,null,null,null,null,null,null,null,null,null,"~"]
["SA37",2023,"LIM331",462,null,null,null,null,null,null,null,null,null,null,null,null,null,null,null,null,null,null,"~"]
["SA37",2023,"LIM331",463,null,null,null,null,null,null,null,null,null,null,null,null,null,null,null,null,null,null,"~"]
["SA37",2023,"LIM331",464,null,null,null,null,null,null,null,null,null,null,null,null,null,null,null,null,null,null,"~"]
["SA37",2023,"LIM331",465,null,null,null,null,null,null,null,null,null,null,null,null,null,null,null,null,null,null,"~"]
["SA37",2023,"LIM331",466,null,null,null,null,null,null,null,null,null,null,null,null,null,null,null,null,null,null,"~"]
["SA37",2023,"LIM331",467,null,null,null,null,null,null,null,null,null,null,null,null,null,null,null,null,null,null,"~"]
["SA37",2023,"LIM331",468,null,null,null,null,null,null,null,null,null,null,null,null,null,null,null,null,null,null,"~"]
["SA37",2023,"LIM331",469,null,null,null,null,null,null,null,null,null,null,null,null,null,null,null,null,null,null,"~"]
["SA37",2023,"LIM331",470,null,null,null,null,null,null,null,null,null,null,null,null,null,null,null,null,null,null,"~"]
["SA37",2023,"LIM331",471,null,null,null,null,null,null,null,null,null,null,null,null,null,null,null,null,null,null,"~"]
["SA37",2023,"LIM331",472,null,null,null,null,null,null,null,null,null,null,null,null,null,null,null,null,null,null,"~"]
["SA37",2023,"LIM331",473,null,null,null,null,null,null,null,null,null,null,null,null,null,null,null,null,null,null,"~"]
["SA37",2023,"LIM331",474,null,null,null,null,null,null,null,null,null,null,null,null,null,null,null,null,null,null,"~"]
["SA37",2023,"LIM331",475,null,null,null,null,null,null,null,null,null,null,null,null,null,null,null,null,null,null,"~"]
["SA37",2023,"LIM331",476,null,null,null,null,null,null,null,null,null,null,null,null,null,null,null,null,null,null,"~"]
["SA37",2023,"LIM331",477,null,null,null,null,null,null,null,null,null,null,null,null,null,null,null,null,null,null,"~"]
["SA37",2023,"LIM331",478,null,null,null,null,null,null,null,null,null,null,null,null,null,null,null,null,null,null,"~"]
["SA37",2023,"LIM331",479,null,null,null,null,null,null,null,null,null,null,null,null,null,null,null,null,null,null,"~"]
["SA37",2023,"LIM331",480,null,null,null,null,null,null,null,null,null,null,null,null,null,null,null,null,null,null,"~"]
["SA37",2023,"LIM331",481,null,null,null,null,null,null,null,null,null,null,null,null,null,null,null,null,null,null,"~"]
["SA37",2023,"LIM331",482,null,null,null,null,null,null,null,null,null,null,null,null,null,null,null,null,null,null,"~"]
["SA37",2023,"LIM331",483,null,null,null,null,null,null,null,null,null,null,null,null,null,null,null,null,null,null,"~"]
["SA37",2023,"LIM331",484,null,null,null,null,null,null,null,null,null,null,null,null,null,null,null,null,null,null,"~"]
["SA37",2023,"LIM331",485,null,null,null,null,null,null,null,null,null,null,null,null,null,null,null,null,null,null,"~"]
["SA37",2023,"LIM331",486,null,null,null,null,null,null,null,null,null,null,null,null,null,null,null,null,null,null,"~"]
["SA37",2023,"LIM331",487,null,null,null,null,null,null,null,null,null,null,null,null,null,null,null,null,null,null,"~"]
["SA37",2023,"LIM331",488,null,null,null,null,null,null,null,null,null,null,null,null,null,null,null,null,null,null,"~"]
["SA37",2023,"LIM331",489,null,null,null,null,null,null,null,null,null,null,null,null,null,null,null,null,null,null,"~"]
["SA37",2023,"LIM331",490,null,null,null,null,null,null,null,null,null,null,null,null,null,null,null,null,null,null,"~"]
["SA37",2023,"LIM331",491,null,null,null,null,null,null,null,null,null,null,null,null,null,null,null,null,null,null,"~"]
["SA37",2023,"LIM331",492,null,null,null,null,null,null,null,null,null,null,null,null,null,null,null,null,null,null,"~"]
["SA37",2023,"LIM331",493,null,null,null,null,null,null,null,null,null,null,null,null,null,null,null,null,null,null,"~"]
["SA37",2023,"LIM331",494,null,null,null,null,null,null,null,null,null,null,null,null,null,null,null,null,null,null,"~"]
["SA37",2023,"LIM331",495,null,null,null,null,null,null,null,null,null,null,null,null,null,null,null,null,null,null,"~"]
["SA37",{"$f":"+MTREF","v":2023},{"$f":"LEFT(muni,(FIND(\" \",muni,1)-1))","v":"LIM331"},496,null,null,null,null,null,null,null,null,null,null,null,null,null,null,null,null,null,null,"~"]
["SA37",2023,"LIM331",497,null,null,null,null,null,null,null,null,null,null,null,null,null,null,null,null,null,null,"~"]
["SA37",2023,"LIM331",498,null,null,null,null,null,null,null,null,null,null,null,null,null,null,null,null,null,null,"~"]
["SA37",2023,"LIM331",499,null,null,null,null,null,null,null,null,null,null,null,null,null,null,null,null,null,null,"~"]
["SA37",2023,"LIM331",500,null,null,null,null,null,null,null,null,null,null,null,null,null,null,null,null,null,null,"~"]
["SA37",2023,"LIM331",501,null,null,null,null,null,null,null,null,null,null,null,null,null,null,null,null,null,null,"~"]
["SA37",2023,"LIM331",502,null,null,null,null,null,null,null,null,null,null,null,null,null,null,null,null,null,null,"~"]
["SA37",2023,"LIM331",503,null,null,null,null,null,null,null,null,null,null,null,null,null,null,null,null,null,null,"~"]
["SA37",2023,"LIM331",504,null,null,null,null,null,null,null,null,null,null,null,null,null,null,null,null,null,null,"~"]
["SA37",2023,"LIM331",505,null,null,null,null,null,null,null,null,null,null,null,null,null,null,null,null,null,null,"~"]
["SA37",2023,"LIM331",506,null,null,null,null,null,null,null,null,null,null,null,null,null,null,null,null,null,null,"~"]
["SA37",2023,"LIM331",507,null,null,null,null,null,null,null,null,null,null,null,null,null,null,null,null,null,null,"~"]
["SA37",2023,"LIM331",508,null,null,null,null,null,null,null,null,null,null,null,null,null,null,null,null,null,null,"~"]
["SA37",2023,"LIM331",509,null,null,null,null,null,null,null,null,null,null,null,null,null,null,null,null,null,null,"~"]
["SA37",2023,"LIM331",510,null,null,null,null,null,null,null,null,null,null,null,null,null,null,null,null,null,null,"~"]
["SA37",2023,"LIM331",511,null,null,null,null,null,null,null,null,null,null,null,null,null,null,null,null,null,null,"~"]
["SA37",2023,"LIM331",512,null,null,null,null,null,null,null,null,null,null,null,null,null,null,null,null,null,null,"~"]
["SA37",2023,"LIM331",513,null,null,null,null,null,null,null,null,null,null,null,null,null,null,null,null,null,null,"~"]
["SA37",2023,"LIM331",514,null,null,null,null,null,null,null,null,null,null,null,null,null,null,null,null,null,null,"~"]
["SA37",2023,"LIM331",515,null,null,null,null,null,null,null,null,null,null,null,null,null,null,null,null,null,null,"~"]
["SA37",2023,"LIM331",516,null,null,null,null,null,null,null,null,null,null,null,null,null,null,null,null,null,null,"~"]
["SA37",2023,"LIM331",517,null,null,null,null,null,null,null,null,null,null,null,null,null,null,null,null,null,null,"~"]
["SA37",2023,"LIM331",518,null,null,null,null,null,null,null,null,null,null,null,null,null,null,null,null,null,null,"~"]
["SA37",2023,"LIM331",519,null,null,null,null,null,null,null,null,null,null,null,null,null,null,null,null,null,null,"~"]
["SA37",2023,"LIM331",520,null,null,null,null,null,null,null,null,null,null,null,null,null,null,null,null,null,null,"~"]
["SA37",2023,"LIM331",521,null,null,null,null,null,null,null,null,null,null,null,null,null,null,null,null,null,null,"~"]
["SA37",2023,"LIM331",522,null,null,null,null,null,null,null,null,null,null,null,null,null,null,null,null,null,null,"~"]
["SA37",2023,"LIM331",523,null,null,null,null,null,null,null,null,null,null,null,null,null,null,null,null,null,null,"~"]
["SA37",2023,"LIM331",524,null,null,null,null,null,null,null,null,null,null,null,null,null,null,null,null,null,null,"~"]
["SA37",2023,"LIM331",525,null,null,null,null,null,null,null,null,null,null,null,null,null,null,null,null,null,null,"~"]
["SA37",2023,"LIM331",526,null,null,null,null,null,null,null,null,null,null,null,null,null,null,null,null,null,null,"~"]
["SA37",2023,"LIM331",527,null,null,null,null,null,null,null,null,null,null,null,null,null,null,null,null,null,null,"~"]
["SA37",2023,"LIM331",528,null,null,null,null,null,null,null,null,null,null,null,null,null,null,null,null,null,null,"~"]
["SA37",2023,"LIM331",529,null,null,null,null,null,null,null,null,null,null,null,null,null,null,null,null,null,null,"~"]
["SA37",2023,"LIM331",530,null,null,null,null,null,null,null,null,null,null,null,null,null,null,null,null,null,null,"~"]
["SA37",2023,"LIM331",531,null,null,null,null,null,null,null,null,null,null,null,null,null,null,null,null,null,null,"~"]
["SA37",2023,"LIM331",532,null,null,null,null,null,null,null,null,null,null,null,null,null,null,null,null,null,null,"~"]
["SA37",2023,"LIM331",533,null,null,null,null,null,null,null,null,null,null,null,null,null,null,null,null,null,null,"~"]
["SA37",2023,"LIM331",534,null,null,null,null,null,null,null,null,null,null,null,null,null,null,null,null,null,null,"~"]
["SA37",2023,"LIM331",535,null,null,null,null,null,null,null,null,null,null,null,null,null,null,null,null,null,null,"~"]
["SA37",2023,"LIM331",536,null,null,null,null,null,null,null,null,null,null,null,null,null,null,null,null,null,null,"~"]
["SA37",2023,"LIM331",537,null,null,null,null,null,null,null,null,null,null,null,null,null,null,null,null,null,null,"~"]
["SA37",2023,"LIM331",538,null,null,null,null,null,null,null,null,null,null,null,null,null,null,null,null,null,null,"~"]
["SA37",2023,"LIM331",539,null,null,null,null,null,null,null,null,null,null,null,null,null,null,null,null,null,null,"~"]
["SA37",2023,"LIM331",540,null,null,null,null,null,null,null,null,null,null,null,null,null,null,null,null,null,null,"~"]
["SA37",2023,"LIM331",541,null,null,null,null,null,null,null,null,null,null,null,null,null,null,null,null,null,null,"~"]
["SA37",2023,"LIM331",542,null,null,null,null,null,null,null,null,null,null,null,null,null,null,null,null,null,null,"~"]
["SA37",2023,"LIM331",543,null,null,null,null,null,null,null,null,null,null,null,null,null,null,null,null,null,null,"~"]
["SA37",2023,"LIM331",544,null,null,null,null,null,null,null,null,null,null,null,null,null,null,null,null,null,null,"~"]
["SA37",2023,"LIM331",545,null,null,null,null,null,null,null,null,null,null,null,null,null,null,null,null,null,null,"~"]
["SA37",2023,"LIM331",546,null,null,null,null,null,null,null,null,null,null,null,null,null,null,null,null,null,null,"~"]
["SA37",2023,"LIM331",547,null,null,null,null,null,null,null,null,null,null,null,null,null,null,null,null,null,null,"~"]
["SA37",2023,"LIM331",548,null,null,null,null,null,null,null,null,null,null,null,null,null,null,null,null,null,null,"~"]
["SA37",2023,"LIM331",549,null,null,null,null,null,null,null,null,null,null,null,null,null,null,null,null,null,null,"~"]
["SA37",2023,"LIM331",550,null,null,null,null,null,null,null,null,null,null,null,null,null,null,null,null,null,null,"~"]
["SA37",2023,"LIM331",551,null,null,null,null,null,null,null,null,null,null,null,null,null,null,null,null,null,null,"~"]
["SA37",2023,"LIM331",552,null,null,null,null,null,null,null,null,null,null,null,null,null,null,null,null,null,null,"~"]
["SA37",2023,"LIM331",553,null,null,null,null,null,null,null,null,null,null,null,null,null,null,null,null,null,null,"~"]
["SA37",2023,"LIM331",554,null,null,null,null,null,null,null,null,null,null,null,null,null,null,null,null,null,null,"~"]
["SA37",2023,"LIM331",555,null,null,null,null,null,null,null,null,null,null,null,null,null,null,null,null,null,null,"~"]
["SA37",2023,"LIM331",556,null,null,null,null,null,null,null,null,null,null,null,null,null,null,null,null,null,null,"~"]
["SA37",2023,"LIM331",557,null,null,null,null,null,null,null,null,null,null,null,null,null,null,null,null,null,null,"~"]
["SA37",2023,"LIM331",558,null,null,null,null,null,null,null,null,null,null,null,null,null,null,null,null,null,null,"~"]
["SA37",2023,"LIM331",559,null,null,null,null,null,null,null,null,null,null,null,null,null,null,null,null,null,null,"~"]
["SA37",{"$f":"+MTREF","v":2023},{"$f":"LEFT(muni,(FIND(\" \",muni,1)-1))","v":"LIM331"},560,null,null,null,null,null,null,null,null,null,null,null,null,null,null,null,null,null,null,"~"]
["SA37",2023,"LIM331",561,null,null,null,null,null,null,null,null,null,null,null,null,null,null,null,null,null,null,"~"]
["SA37",2023,"LIM331",562,null,null,null,null,null,null,null,null,null,null,null,null,null,null,null,null,null,null,"~"]
["SA37",2023,"LIM331",563,null,null,null,null,null,null,null,null,null,null,null,null,null,null,null,null,null,null,"~"]
["SA37",2023,"LIM331",564,null,null,null,null,null,null,null,null,null,null,null,null,null,null,null,null,null,null,"~"]
["SA37",2023,"LIM331",565,null,null,null,null,null,null,null,null,null,null,null,null,null,null,null,null,null,null,"~"]
["SA37",2023,"LIM331",566,null,null,null,null,null,null,null,null,null,null,null,null,null,null,null,null,null,null,"~"]
["SA37",2023,"LIM331",567,null,null,null,null,null,null,null,null,null,null,null,null,null,null,null,null,null,null,"~"]
["SA37",2023,"LIM331",568,null,null,null,null,null,null,null,null,null,null,null,null,null,null,null,null,null,null,"~"]
["SA37",2023,"LIM331",569,null,null,null,null,null,null,null,null,null,null,null,null,null,null,null,null,null,null,"~"]
["SA37",2023,"LIM331",570,null,null,null,null,null,null,null,null,null,null,null,null,null,null,null,null,null,null,"~"]
["SA37",2023,"LIM331",571,null,null,null,null,null,null,null,null,null,null,null,null,null,null,null,null,null,null,"~"]
["SA37",2023,"LIM331",572,null,null,null,null,null,null,null,null,null,null,null,null,null,null,null,null,null,null,"~"]
["SA37",2023,"LIM331",573,null,null,null,null,null,null,null,null,null,null,null,null,null,null,null,null,null,null,"~"]
["SA37",2023,"LIM331",574,null,null,null,null,null,null,null,null,null,null,null,null,null,null,null,null,null,null,"~"]
["SA37",2023,"LIM331",575,null,null,null,null,null,null,null,null,null,null,null,null,null,null,null,null,null,null,"~"]
["SA37",2023,"LIM331",576,null,null,null,null,null,null,null,null,null,null,null,null,null,null,null,null,null,null,"~"]
["SA37",2023,"LIM331",577,null,null,null,null,null,null,null,null,null,null,null,null,null,null,null,null,null,null,"~"]
["SA37",2023,"LIM331",578,null,null,null,null,null,null,null,null,null,null,null,null,null,null,null,null,null,null,"~"]
["SA37",2023,"LIM331",579,null,null,null,null,null,null,null,null,null,null,null,null,null,null,null,null,null,null,"~"]
["SA37",2023,"LIM331",580,null,null,null,null,null,null,null,null,null,null,null,null,null,null,null,null,null,null,"~"]
["SA37",2023,"LIM331",581,null,null,null,null,null,null,null,null,null,null,null,null,null,null,null,null,null,null,"~"]
["SA37",2023,"LIM331",582,null,null,null,null,null,null,null,null,null,null,null,null,null,null,null,null,null,null,"~"]
["SA37",2023,"LIM331",583,null,null,null,null,null,null,null,null,null,null,null,null,null,null,null,null,null,null,"~"]
["SA37",2023,"LIM331",584,null,null,null,null,null,null,null,null,null,null,null,null,null,null,null,null,null,null,"~"]
["SA37",2023,"LIM331",585,null,null,null,null,null,null,null,null,null,null,null,null,null,null,null,null,null,null,"~"]
["SA37",2023,"LIM331",586,null,null,null,null,null,null,null,null,null,null,null,null,null,null,null,null,null,null,"~"]
["SA37",2023,"LIM331",587,null,null,null,null,null,null,null,null,null,null,null,null,null,null,null,null,null,null,"~"]
["SA37",2023,"LIM331",588,null,null,null,null,null,null,null,null,null,null,null,null,null,null,null,null,null,null,"~"]
["SA37",2023,"LIM331",589,null,null,null,null,null,null,null,null,null,null,null,null,null,null,null,null,null,null,"~"]
["SA37",2023,"LIM331",590,null,null,null,null,null,null,null,null,null,null,null,null,null,null,null,null,null,null,"~"]
["SA37",2023,"LIM331",591,null,null,null,null,null,null,null,null,null,null,null,null,null,null,null,null,null,null,"~"]
["SA37",2023,"LIM331",592,null,null,null,null,null,null,null,null,null,null,null,null,null,null,null,null,null,null,"~"]
["SA37",2023,"LIM331",593,null,null,null,null,null,null,null,null,null,null,null,null,null,null,null,null,null,null,"~"]
["SA37",2023,"LIM331",594,null,null,null,null,null,null,null,null,null,null,null,null,null,null,null,null,null,null,"~"]
["SA37",2023,"LIM331",595,null,null,null,null,null,null,null,null,null,null,null,null,null,null,null,null,null,null,"~"]
["SA37",2023,"LIM331",596,null,null,null,null,null,null,null,null,null,null,null,null,null,null,null,null,null,null,"~"]
["SA37",2023,"LIM331",597,null,null,null,null,null,null,null,null,null,null,null,null,null,null,null,null,null,null,"~"]
["SA37",2023,"LIM331",598,null,null,null,null,null,null,null,null,null,null,null,null,null,null,null,null,null,null,"~"]
["SA37",2023,"LIM331",599,null,null,null,null,null,null,null,null,null,null,null,null,null,null,null,null,null,null,"~"]
["SA37",2023,"LIM331",600,null,null,null,null,null,null,null,null,null,null,null,null,null,null,null,null,null,null,"~"]
["SA37",2023,"LIM331",601,null,null,null,null,null,null,null,null,null,null,null,null,null,null,null,null,null,null,"~"]
["SA37",2023,"LIM331",602,null,null,null,null,null,null,null,null,null,null,null,null,null,null,null,null,null,null,"~"]
["SA37",2023,"LIM331",603,null,null,null,null,null,null,null,null,null,null,null,null,null,null,null,null,null,null,"~"]
["SA37",2023,"LIM331",604,null,null,null,null,null,null,null,null,null,null,null,null,null,null,null,null,null,null,"~"]
["SA37",2023,"LIM331",605,null,null,null,null,null,null,null,null,null,null,null,null,null,null,null,null,null,null,"~"]
["SA37",2023,"LIM331",606,null,null,null,null,null,null,null,null,null,null,null,null,null,null,null,null,null,null,"~"]
["SA37",2023,"LIM331",607,null,null,null,null,null,null,null,null,null,null,null,null,null,null,null,null,null,null,"~"]
["SA37",2023,"LIM331",608,null,null,null,null,null,null,null,null,null,null,null,null,null,null,null,null,null,null,"~"]
["SA37",2023,"LIM331",609,null,null,null,null,null,null,null,null,null,null,null,null,null,null,null,null,null,null,"~"]
["SA37",2023,"LIM331",610,null,null,null,null,null,null,null,null,null,null,null,null,null,null,null,null,null,null,"~"]
["SA37",2023,"LIM331",611,null,null,null,null,null,null,null,null,null,null,null,null,null,null,null,null,null,null,"~"]
["SA37",2023,"LIM331",612,null,null,null,null,null,null,null,null,null,null,null,null,null,null,null,null,null,null,"~"]
["SA37",2023,"LIM331",613,null,null,null,null,null,null,null,null,null,null,null,null,null,null,null,null,null,null,"~"]
["SA37",2023,"LIM331",614,null,null,null,null,null,null,null,null,null,null,null,null,null,null,null,null,null,null,"~"]
["SA37",2023,"LIM331",615,null,null,null,null,null,null,null,null,null,null,null,null,null,null,null,null,null,null,"~"]
["SA37",2023,"LIM331",616,null,null,null,null,null,null,null,null,null,null,null,null,null,null,null,null,null,null,"~"]
["SA37",2023,"LIM331",617,null,null,null,null,null,null,null,null,null,null,null,null,null,null,null,null,null,null,"~"]
["SA37",2023,"LIM331",618,null,null,null,null,null,null,null,null,null,null,null,null,null,null,null,null,null,null,"~"]
["SA37",2023,"LIM331",619,null,null,null,null,null,null,null,null,null,null,null,null,null,null,null,null,null,null,"~"]
["SA37",2023,"LIM331",620,null,null,null,null,null,null,null,null,null,null,null,null,null,null,null,null,null,null,"~"]
["SA37",2023,"LIM331",621,null,null,null,null,null,null,null,null,null,null,null,null,null,null,null,null,null,null,"~"]
["SA37",2023,"LIM331",622,null,null,null,null,null,null,null,null,null,null,null,null,null,null,null,null,null,null,"~"]
["SA37",2023,"LIM331",623,null,null,null,null,null,null,null,null,null,null,null,null,null,null,null,null,null,null,"~"]
["SA37",{"$f":"+MTREF","v":2023},{"$f":"LEFT(muni,(FIND(\" \",muni,1)-1))","v":"LIM331"},624,null,null,null,null,null,null,null,null,null,null,null,null,null,null,null,null,null,null,"~"]
["SA37",2023,"LIM331",625,null,null,null,null,null,null,null,null,null,null,null,null,null,null,null,null,null,null,"~"]
["SA37",2023,"LIM331",626,null,null,null,null,null,null,null,null,null,null,null,null,null,null,null,null,null,null,"~"]
["SA37",2023,"LIM331",627,null,null,null,null,null,null,null,null,null,null,null,null,null,null,null,null,null,null,"~"]
["SA37",2023,"LIM331",628,null,null,null,null,null,null,null,null,null,null,null,null,null,null,null,null,null,null,"~"]
["SA37",2023,"LIM331",629,null,null,null,null,null,null,null,null,null,null,null,null,null,null,null,null,null,null,"~"]
["SA37",2023,"LIM331",630,null,null,null,null,null,null,null,null,null,null,null,null,null,null,null,null,null,null,"~"]
["SA37",2023,"LIM331",631,null,null,null,null,null,null,null,null,null,null,null,null,null,null,null,null,null,null,"~"]
["SA37",2023,"LIM331",632,null,null,null,null,null,null,null,null,null,null,null,null,null,null,null,null,null,null,"~"]
["SA37",2023,"LIM331",633,null,null,null,null,null,null,null,null,null,null,null,null,null,null,null,null,null,null,"~"]
["SA37",2023,"LIM331",634,null,null,null,null,null,null,null,null,null,null,null,null,null,null,null,null,null,null,"~"]
["SA37",2023,"LIM331",635,null,null,null,null,null,null,null,null,null,null,null,null,null,null,null,null,null,null,"~"]
["SA37",2023,"LIM331",636,null,null,null,null,null,null,null,null,null,null,null,null,null,null,null,null,null,null,"~"]
["SA37",2023,"LIM331",637,null,null,null,null,null,null,null,null,null,null,null,null,null,null,null,null,null,null,"~"]
["SA37",2023,"LIM331",638,null,null,null,null,null,null,null,null,null,null,null,null,null,null,null,null,null,null,"~"]
["SA37",2023,"LIM331",639,null,null,null,null,null,null,null,null,null,null,null,null,null,null,null,null,null,null,"~"]
["SA37",2023,"LIM331",640,null,null,null,null,null,null,null,null,null,null,null,null,null,null,null,null,null,null,"~"]
["SA37",2023,"LIM331",641,null,null,null,null,null,null,null,null,null,null,null,null,null,null,null,null,null,null,"~"]
["SA37",2023,"LIM331",642,null,null,null,null,null,null,null,null,null,null,null,null,null,null,null,null,null,null,"~"]
["SA37",2023,"LIM331",643,null,null,null,null,null,null,null,null,null,null,null,null,null,null,null,null,null,null,"~"]
["SA37",2023,"LIM331",644,null,null,null,null,null,null,null,null,null,null,null,null,null,null,null,null,null,null,"~"]
["SA37",2023,"LIM331",645,null,null,null,null,null,null,null,null,null,null,null,null,null,null,null,null,null,null,"~"]
["SA37",2023,"LIM331",646,null,null,null,null,null,null,null,null,null,null,null,null,null,null,null,null,null,null,"~"]
["SA37",2023,"LIM331",647,null,null,null,null,null,null,null,null,null,null,null,null,null,null,null,null,null,null,"~"]
["SA37",2023,"LIM331",648,null,null,null,null,null,null,null,null,null,null,null,null,null,null,null,null,null,null,"~"]
["SA37",2023,"LIM331",649,null,null,null,null,null,null,null,null,null,null,null,null,null,null,null,null,null,null,"~"]
["SA37",2023,"LIM331",650,null,null,null,null,null,null,null,null,null,null,null,null,null,null,null,null,null,null,"~"]
["SA37",2023,"LIM331",651,null,null,null,null,null,null,null,null,null,null,null,null,null,null,null,null,null,null,"~"]
["SA37",2023,"LIM331",652,null,null,null,null,null,null,null,null,null,null,null,null,null,null,null,null,null,null,"~"]
["SA37",2023,"LIM331",653,null,null,null,null,null,null,null,null,null,null,null,null,null,null,null,null,null,null,"~"]
["SA37",2023,"LIM331",654,null,null,null,null,null,null,null,null,null,null,null,null,null,null,null,null,null,null,"~"]
["SA37",2023,"LIM331",655,null,null,null,null,null,null,null,null,null,null,null,null,null,null,null,null,null,null,"~"]
["SA37",2023,"LIM331",656,null,null,null,null,null,null,null,null,null,null,null,null,null,null,null,null,null,null,"~"]
["SA37",2023,"LIM331",657,null,null,null,null,null,null,null,null,null,null,null,null,null,null,null,null,null,null,"~"]
["SA37",2023,"LIM331",658,null,null,null,null,null,null,null,null,null,null,null,null,null,null,null,null,null,null,"~"]
["SA37",2023,"LIM331",659,null,null,null,null,null,null,null,null,null,null,null,null,null,null,null,null,null,null,"~"]
["SA37",2023,"LIM331",660,null,null,null,null,null,null,null,null,null,null,null,null,null,null,null,null,null,null,"~"]
["SA37",2023,"LIM331",661,null,null,null,null,null,null,null,null,null,null,null,null,null,null,null,null,null,null,"~"]
["SA37",2023,"LIM331",662,null,null,null,null,null,null,null,null,null,null,null,null,null,null,null,null,null,null,"~"]
["SA37",2023,"LIM331",663,null,null,null,null,null,null,null,null,null,null,null,null,null,null,null,null,null,null,"~"]
["SA37",2023,"LIM331",664,null,null,null,null,null,null,null,null,null,null,null,null,null,null,null,null,null,null,"~"]
["SA37",2023,"LIM331",665,null,null,null,null,null,null,null,null,null,null,null,null,null,null,null,null,null,null,"~"]
["SA37",2023,"LIM331",666,null,null,null,null,null,null,null,null,null,null,null,null,null,null,null,null,null,null,"~"]
["SA37",2023,"LIM331",667,null,null,null,null,null,null,null,null,null,null,null,null,null,null,null,null,null,null,"~"]
["SA37",2023,"LIM331",668,null,null,null,null,null,null,null,null,null,null,null,null,null,null,null,null,null,null,"~"]
["SA37",2023,"LIM331",669,null,null,null,null,null,null,null,null,null,null,null,null,null,null,null,null,null,null,"~"]
["SA37",2023,"LIM331",670,null,null,null,null,null,null,null,null,null,null,null,null,null,null,null,null,null,null,"~"]
["SA37",2023,"LIM331",671,null,null,null,null,null,null,null,null,null,null,null,null,null,null,null,null,null,null,"~"]
["SA37",2023,"LIM331",672,null,null,null,null,null,null,null,null,null,null,null,null,null,null,null,null,null,null,"~"]
["SA37",2023,"LIM331",673,null,null,null,null,null,null,null,null,null,null,null,null,null,null,null,null,null,null,"~"]
["SA37",2023,"LIM331",674,null,null,null,null,null,null,null,null,null,null,null,null,null,null,null,null,null,null,"~"]
["SA37",2023,"LIM331",675,null,null,null,null,null,null,null,null,null,null,null,null,null,null,null,null,null,null,"~"]
["SA37",2023,"LIM331",676,null,null,null,null,null,null,null,null,null,null,null,null,null,null,null,null,null,null,"~"]
["SA37",2023,"LIM331",677,null,null,null,null,null,null,null,null,null,null,null,null,null,null,null,null,null,null,"~"]
["SA37",2023,"LIM331",678,null,null,null,null,null,null,null,null,null,null,null,null,null,null,null,null,null,null,"~"]
["SA37",2023,"LIM331",679,null,null,null,null,null,null,null,null,null,null,null,null,null,null,null,null,null,null,"~"]
["SA37",2023,"LIM331",680,null,null,null,null,null,null,null,null,null,null,null,null,null,null,null,null,null,null,"~"]
["SA37",2023,"LIM331",681,null,null,null,null,null,null,null,null,null,null,null,null,null,null,null,null,null,null,"~"]
["SA37",2023,"LIM331",682,null,null,null,null,null,null,null,null,null,null,null,null,null,null,null,null,null,null,"~"]
["SA37",2023,"LIM331",683,null,null,null,null,null,null,null,null,null,null,null,null,null,null,null,null,null,null,"~"]
["SA37",2023,"LIM331",684,null,null,null,null,null,null,null,null,null,null,null,null,null,null,null,null,null,null,"~"]
["SA37",2023,"LIM331",685,null,null,null,null,null,null,null,null,null,null,null,null,null,null,null,null,null,null,"~"]
["SA37",2023,"LIM331",686,null,null,null,null,null,null,null,null,null,null,null,null,null,null,null,null,null,null,"~"]
["SA37",2023,"LIM331",687,null,null,null,null,null,null,null,null,null,null,null,null,null,null,null,null,null,null,"~"]
["SA37",{"$f":"+MTREF","v":2023},{"$f":"LEFT(muni,(FIND(\" \",muni,1)-1))","v":"LIM331"},688,null,null,null,null,null,null,null,null,null,null,null,null,null,null,null,null,null,null,"~"]
["SA37",2023,"LIM331",689,null,null,null,null,null,null,null,null,null,null,null,null,null,null,null,null,null,null,"~"]
["SA37",2023,"LIM331",690,null,null,null,null,null,null,null,null,null,null,null,null,null,null,null,null,null,null,"~"]
["SA37",2023,"LIM331",691,null,null,null,null,null,null,null,null,null,null,null,null,null,null,null,null,null,null,"~"]
["SA37",2023,"LIM331",692,null,null,null,null,null,null,null,null,null,null,null,null,null,null,null,null,null,null,"~"]
["SA37",2023,"LIM331",693,null,null,null,null,null,null,null,null,null,null,null,null,null,null,null,null,null,null,"~"]
["SA37",2023,"LIM331",694,null,null,null,null,null,null,null,null,null,null,null,null,null,null,null,null,null,null,"~"]
["SA37",2023,"LIM331",695,null,null,null,null,null,null,null,null,null,null,null,null,null,null,null,null,null,null,"~"]
["SA37",2023,"LIM331",696,null,null,null,null,null,null,null,null,null,null,null,null,null,null,null,null,null,null,"~"]
["SA37",2023,"LIM331",697,null,null,null,null,null,null,null,null,null,null,null,null,null,null,null,null,null,null,"~"]
["SA37",2023,"LIM331",698,null,null,null,null,null,null,null,null,null,null,null,null,null,null,null,null,null,null,"~"]
["SA37",2023,"LIM331",699,null,null,null,null,null,null,null,null,null,null,null,null,null,null,null,null,null,null,"~"]
["SA37",2023,"LIM331",700,null,null,null,null,null,null,null,null,null,null,null,null,null,null,null,null,null,null,"~"]
["SA37",2023,"LIM331",701,null,null,null,null,null,null,null,null,null,null,null,null,null,null,null,null,null,null,"~"]
["SA37",2023,"LIM331",702,null,null,null,null,null,null,null,null,null,null,null,null,null,null,null,null,null,null,"~"]
["SA37",2023,"LIM331",703,null,null,null,null,null,null,null,null,null,null,null,null,null,null,null,null,null,null,"~"]
["SA37",2023,"LIM331",704,null,null,null,null,null,null,null,null,null,null,null,null,null,null,null,null,null,null,"~"]
["SA37",2023,"LIM331",705,null,null,null,null,null,null,null,null,null,null,null,null,null,null,null,null,null,null,"~"]
["SA37",2023,"LIM331",706,null,null,null,null,null,null,null,null,null,null,null,null,null,null,null,null,null,null,"~"]
["SA37",2023,"LIM331",707,null,null,null,null,null,null,null,null,null,null,null,null,null,null,null,null,null,null,"~"]
["SA37",2023,"LIM331",708,null,null,null,null,null,null,null,null,null,null,null,null,null,null,null,null,null,null,"~"]
["SA37",2023,"LIM331",709,null,null,null,null,null,null,null,null,null,null,null,null,null,null,null,null,null,null,"~"]
["SA37",2023,"LIM331",710,null,null,null,null,null,null,null,null,null,null,null,null,null,null,null,null,null,null,"~"]
["SA37",2023,"LIM331",711,null,null,null,null,null,null,null,null,null,null,null,null,null,null,null,null,null,null,"~"]
["SA37",2023,"LIM331",712,null,null,null,null,null,null,null,null,null,null,null,null,null,null,null,null,null,null,"~"]
["SA37",2023,"LIM331",713,null,null,null,null,null,null,null,null,null,null,null,null,null,null,null,null,null,null,"~"]
["SA37",2023,"LIM331",714,null,null,null,null,null,null,null,null,null,null,null,null,null,null,null,null,null,null,"~"]
["SA37",2023,"LIM331",715,null,null,null,null,null,null,null,null,null,null,null,null,null,null,null,null,null,null,"~"]
["SA37",2023,"LIM331",716,null,null,null,null,null,null,null,null,null,null,null,null,null,null,null,null,null,null,"~"]
["SA37",2023,"LIM331",717,null,null,null,null,null,null,null,null,null,null,null,null,null,null,null,null,null,null,"~"]
["SA37",2023,"LIM331",718,null,null,null,null,null,null,null,null,null,null,null,null,null,null,null,null,null,null,"~"]
["SA37",2023,"LIM331",719,null,null,null,null,null,null,null,null,null,null,null,null,null,null,null,null,null,null,"~"]
["SA37",2023,"LIM331",720,null,null,null,null,null,null,null,null,null,null,null,null,null,null,null,null,null,null,"~"]
["SA37",2023,"LIM331",721,null,null,null,null,null,null,null,null,null,null,null,null,null,null,null,null,null,null,"~"]
["SA37",2023,"LIM331",722,null,null,null,null,null,null,null,null,null,null,null,null,null,null,null,null,null,null,"~"]
["SA37",2023,"LIM331",723,null,null,null,null,null,null,null,null,null,null,null,null,null,null,null,null,null,null,"~"]
["SA37",2023,"LIM331",724,null,null,null,null,null,null,null,null,null,null,null,null,null,null,null,null,null,null,"~"]
["SA37",2023,"LIM331",725,null,null,null,null,null,null,null,null,null,null,null,null,null,null,null,null,null,null,"~"]
["SA37",2023,"LIM331",726,null,null,null,null,null,null,null,null,null,null,null,null,null,null,null,null,null,null,"~"]
["SA37",2023,"LIM331",727,null,null,null,null,null,null,null,null,null,null,null,null,null,null,null,null,null,null,"~"]
["SA37",2023,"LIM331",728,null,null,null,null,null,null,null,null,null,null,null,null,null,null,null,null,null,null,"~"]
["SA37",2023,"LIM331",729,null,null,null,null,null,null,null,null,null,null,null,null,null,null,null,null,null,null,"~"]
["SA37",2023,"LIM331",730,null,null,null,null,null,null,null,null,null,null,null,null,null,null,null,null,null,null,"~"]
["SA37",2023,"LIM331",731,null,null,null,null,null,null,null,null,null,null,null,null,null,null,null,null,null,null,"~"]
["SA37",2023,"LIM331",732,null,null,null,null,null,null,null,null,null,null,null,null,null,null,null,null,null,null,"~"]
["SA37",2023,"LIM331",733,null,null,null,null,null,null,null,null,null,null,null,null,null,null,null,null,null,null,"~"]
["SA37",2023,"LIM331",734,null,null,null,null,null,null,null,null,null,null,null,null,null,null,null,null,null,null,"~"]
["SA37",2023,"LIM331",735,null,null,null,null,null,null,null,null,null,null,null,null,null,null,null,null,null,null,"~"]
["SA37",2023,"LIM331",736,null,null,null,null,null,null,null,null,null,null,null,null,null,null,null,null,null,null,"~"]
["SA37",2023,"LIM331",737,null,null,null,null,null,null,null,null,null,null,null,null,null,null,null,null,null,null,"~"]
["SA37",2023,"LIM331",738,null,null,null,null,null,null,null,null,null,null,null,null,null,null,null,null,null,null,"~"]
["SA37",2023,"LIM331",739,null,null,null,null,null,null,null,null,null,null,null,null,null,null,null,null,null,null,"~"]
["SA37",2023,"LIM331",740,null,null,null,null,null,null,null,null,null,null,null,null,null,null,null,null,null,null,"~"]
["SA37",2023,"LIM331",741,null,null,null,null,null,null,null,null,null,null,null,null,null,null,null,null,null,null,"~"]
["SA37",2023,"LIM331",742,null,null,null,null,null,null,null,null,null,null,null,null,null,null,null,null,null,null,"~"]
["SA37",2023,"LIM331",743,null,null,null,null,null,null,null,null,null,null,null,null,null,null,null,null,null,null,"~"]
["SA37",2023,"LIM331",744,null,null,null,null,null,null,null,null,null,null,null,null,null,null,null,null,null,null,"~"]
["SA37",2023,"LIM331",745,null,null,null,null,null,null,null,null,null,null,null,null,null,null,null,null,null,null,"~"]
["SA37",2023,"LIM331",746,null,null,null,null,null,null,null,null,null,null,null,null,null,null,null,null,null,null,"~"]
["SA37",2023,"LIM331",747,null,null,null,null,null,null,null,null,null,null,null,null,null,null,null,null,null,null,"~"]
["SA37",2023,"LIM331",748,null,null,null,null,null,null,null,null,null,null,null,null,null,null,null,null,null,null,"~"]
["SA37",2023,"LIM331",749,null,null,null,null,null,null,null,null,null,null,null,null,null,null,null,null,null,null,"~"]
["SA37",2023,"LIM331",750,null,null,null,null,null,null,null,null,null,null,null,null,null,null,null,null,null,null,"~"]
["SA37",2023,"LIM331",751,null,null,null,null,null,null,null,null,null,null,null,null,null,null,null,null,null,null,"~"]
["SA37",{"$f":"+MTREF","v":2023},{"$f":"LEFT(muni,(FIND(\" \",muni,1)-1))","v":"LIM331"},752,null,null,null,null,null,null,null,null,null,null,null,null,null,null,null,null,null,null,"~"]
["SA37",2023,"LIM331",753,null,null,null,null,null,null,null,null,null,null,null,null,null,null,null,null,null,null,"~"]
["SA37",2023,"LIM331",754,null,null,null,null,null,null,null,null,null,null,null,null,null,null,null,null,null,null,"~"]
["SA37",2023,"LIM331",755,null,null,null,null,null,null,null,null,null,null,null,null,null,null,null,null,null,null,"~"]
["SA37",2023,"LIM331",756,null,null,null,null,null,null,null,null,null,null,null,null,null,null,null,null,null,null,"~"]
["SA37",2023,"LIM331",757,null,null,null,null,null,null,null,null,null,null,null,null,null,null,null,null,null,null,"~"]
["SA37",2023,"LIM331",758,null,null,null,null,null,null,null,null,null,null,null,null,null,null,null,null,null,null,"~"]
["SA37",2023,"LIM331",759,null,null,null,null,null,null,null,null,null,null,null,null,null,null,null,null,null,null,"~"]
["SA37",2023,"LIM331",760,null,null,null,null,null,null,null,null,null,null,null,null,null,null,null,null,null,null,"~"]
["SA37",2023,"LIM331",761,null,null,null,null,null,null,null,null,null,null,null,null,null,null,null,null,null,null,"~"]
["SA37",2023,"LIM331",762,null,null,null,null,null,null,null,null,null,null,null,null,null,null,null,null,null,null,"~"]
["SA37",2023,"LIM331",763,null,null,null,null,null,null,null,null,null,null,null,null,null,null,null,null,null,null,"~"]
["SA37",2023,"LIM331",764,null,null,null,null,null,null,null,null,null,null,null,null,null,null,null,null,null,null,"~"]
["SA37",2023,"LIM331",765,null,null,null,null,null,null,null,null,null,null,null,null,null,null,null,null,null,null,"~"]
["SA37",2023,"LIM331",766,null,null,null,null,null,null,null,null,null,null,null,null,null,null,null,null,null,null,"~"]
["SA37",2023,"LIM331",767,null,null,null,null,null,null,null,null,null,null,null,null,null,null,null,null,null,null,"~"]
["SA37",2023,"LIM331",768,null,null,null,null,null,null,null,null,null,null,null,null,null,null,null,null,null,null,"~"]
["SA37",2023,"LIM331",769,null,null,null,null,null,null,null,null,null,null,null,null,null,null,null,null,null,null,"~"]
["SA37",2023,"LIM331",770,null,null,null,null,null,null,null,null,null,null,null,null,null,null,null,null,null,null,"~"]
["SA37",2023,"LIM331",771,null,null,null,null,null,null,null,null,null,null,null,null,null,null,null,null,null,null,"~"]
["SA37",2023,"LIM331",772,null,null,null,null,null,null,null,null,null,null,null,null,null,null,null,null,null,null,"~"]
["SA37",2023,"LIM331",773,null,null,null,null,null,null,null,null,null,null,null,null,null,null,null,null,null,null,"~"]
["SA37",2023,"LIM331",774,null,null,null,null,null,null,null,null,null,null,null,null,null,null,null,null,null,null,"~"]
["SA37",2023,"LIM331",775,null,null,null,null,null,null,null,null,null,null,null,null,null,null,null,null,null,null,"~"]
["SA37",2023,"LIM331",776,null,null,null,null,null,null,null,null,null,null,null,null,null,null,null,null,null,null,"~"]
["SA37",2023,"LIM331",777,null,null,null,null,null,null,null,null,null,null,null,null,null,null,null,null,null,null,"~"]
["SA37",2023,"LIM331",778,null,null,null,null,null,null,null,null,null,null,null,null,null,null,null,null,null,null,"~"]
["SA37",2023,"LIM331",779,null,null,null,null,null,null,null,null,null,null,null,null,null,null,null,null,null,null,"~"]
["SA37",2023,"LIM331",780,null,null,null,null,null,null,null,null,null,null,null,null,null,null,null,null,null,null,"~"]
["SA37",2023,"LIM331",781,null,null,null,null,null,null,null,null,null,null,null,null,null,null,null,null,null,null,"~"]
["SA37",2023,"LIM331",782,null,null,null,null,null,null,null,null,null,null,null,null,null,null,null,null,null,null,"~"]
["SA37",2023,"LIM331",783,null,null,null,null,null,null,null,null,null,null,null,null,null,null,null,null,null,null,"~"]
["SA37",2023,"LIM331",784,null,null,null,null,null,null,null,null,null,null,null,null,null,null,null,null,null,null,"~"]
["SA37",2023,"LIM331",785,null,null,null,null,null,null,null,null,null,null,null,null,null,null,null,null,null,null,"~"]
["SA37",2023,"LIM331",786,null,null,null,null,null,null,null,null,null,null,null,null,null,null,null,null,null,null,"~"]
["SA37",2023,"LIM331",787,null,null,null,null,null,null,null,null,null,null,null,null,null,null,null,null,null,null,"~"]
["SA37",2023,"LIM331",788,null,null,null,null,null,null,null,null,null,null,null,null,null,null,null,null,null,null,"~"]
["SA37",2023,"LIM331",789,null,null,null,null,null,null,null,null,null,null,null,null,null,null,null,null,null,null,"~"]
["SA37",2023,"LIM331",790,null,null,null,null,null,null,null,null,null,null,null,null,null,null,null,null,null,null,"~"]
["SA37",2023,"LIM331",791,null,null,null,null,null,null,null,null,null,null,null,null,null,null,null,null,null,null,"~"]
["SA37",2023,"LIM331",792,null,null,null,null,null,null,null,null,null,null,null,null,null,null,null,null,null,null,"~"]
["SA37",2023,"LIM331",793,null,null,null,null,null,null,null,null,null,null,null,null,null,null,null,null,null,null,"~"]
["SA37",2023,"LIM331",794,null,null,null,null,null,null,null,null,null,null,null,null,null,null,null,null,null,null,"~"]
["SA37",2023,"LIM331",795,null,null,null,null,null,null,null,null,null,null,null,null,null,null,null,null,null,null,"~"]
["SA37",2023,"LIM331",796,null,null,null,null,null,null,null,null,null,null,null,null,null,null,null,null,null,null,"~"]
["SA37",2023,"LIM331",797,null,null,null,null,null,null,null,null,null,null,null,null,null,null,null,null,null,null,"~"]
["SA37",2023,"LIM331",798,null,null,null,null,null,null,null,null,null,null,null,null,null,null,null,null,null,null,"~"]
["SA37",2023,"LIM331",799,null,null,null,null,null,null,null,null,null,null,null,null,null,null,null,null,null,null,"~"]
["SA37",2023,"LIM331",800,null,null,null,null,null,null,null,null,null,null,null,null,null,null,null,null,null,null,"~"]
["SA37",2023,"LIM331",801,null,null,null,null,null,null,null,null,null,null,null,null,null,null,null,null,null,null,"~"]
["SA37",2023,"LIM331",802,null,null,null,null,null,null,null,null,null,null,null,null,null,null,null,null,null,null,"~"]
["SA37",2023,"LIM331",803,null,null,null,null,null,null,null,null,null,null,null,null,null,null,null,null,null,null,"~"]
["SA37",2023,"LIM331",804,null,null,null,null,null,null,null,null,null,null,null,null,null,null,null,null,null,null,"~"]
["SA37",2023,"LIM331",805,null,null,null,null,null,null,null,null,null,null,null,null,null,null,null,null,null,null,"~"]
["SA37",2023,"LIM331",806,null,null,null,null,null,null,null,null,null,null,null,null,null,null,null,null,null,null,"~"]
["SA37",2023,"LIM331",807,null,null,null,null,null,null,null,null,null,null,null,null,null,null,null,null,null,null,"~"]
["SA37",2023,"LIM331",808,null,null,null,null,null,null,null,null,null,null,null,null,null,null,null,null,null,null,"~"]
["SA37",2023,"LIM331",809,null,null,null,null,null,null,null,null,null,null,null,null,null,null,null,null,null,null,"~"]
["SA37",2023,"LIM331",810,null,null,null,null,null,null,null,null,null,null,null,null,null,null,null,null,null,null,"~"]
["SA37",2023,"LIM331",811,null,null,null,null,null,null,null,null,null,null,null,null,null,null,null,null,null,null,"~"]
["SA37",2023,"LIM331",812,null,null,null,null,null,null,null,null,null,null,null,null,null,null,null,null,null,null,"~"]
["SA37",2023,"LIM331",813,null,null,null,null,null,null,null,null,null,null,null,null,null,null,null,null,null,null,"~"]
["SA37",2023,"LIM331",814,null,null,null,null,null,null,null,null,null,null,null,null,null,null,null,null,null,null,"~"]
["SA37",2023,"LIM331",815,null,null,null,null,null,null,null,null,null,null,null,null,null,null,null,null,null,null,"~"]
["SA37",{"$f":"+MTREF","v":2023},{"$f":"LEFT(muni,(FIND(\" \",muni,1)-1))","v":"LIM331"},816,null,null,null,null,null,null,null,null,null,null,null,null,null,null,null,null,null,null,"~"]
["SA37",2023,"LIM331",817,null,null,null,null,null,null,null,null,null,null,null,null,null,null,null,null,null,null,"~"]
["SA37",2023,"LIM331",818,null,null,null,null,null,null,null,null,null,null,null,null,null,null,null,null,null,null,"~"]
["SA37",2023,"LIM331",819,null,null,null,null,null,null,null,null,null,null,null,null,null,null,null,null,null,null,"~"]
["SA37",2023,"LIM331",820,null,null,null,null,null,null,null,null,null,null,null,null,null,null,null,null,null,null,"~"]
["SA37",2023,"LIM331",821,null,null,null,null,null,null,null,null,null,null,null,null,null,null,null,null,null,null,"~"]
["SA37",2023,"LIM331",822,null,null,null,null,null,null,null,null,null,null,null,null,null,null,null,null,null,null,"~"]
["SA37",2023,"LIM331",823,null,null,null,null,null,null,null,null,null,null,null,null,null,null,null,null,null,null,"~"]
["SA37",2023,"LIM331",824,null,null,null,null,null,null,null,null,null,null,null,null,null,null,null,null,null,null,"~"]
["SA37",2023,"LIM331",825,null,null,null,null,null,null,null,null,null,null,null,null,null,null,null,null,null,null,"~"]
["SA37",2023,"LIM331",826,null,null,null,null,null,null,null,null,null,null,null,null,null,null,null,null,null,null,"~"]
["SA37",2023,"LIM331",827,null,null,null,null,null,null,null,null,null,null,null,null,null,null,null,null,null,null,"~"]
["SA37",2023,"LIM331",828,null,null,null,null,null,null,null,null,null,null,null,null,null,null,null,null,null,null,"~"]
["SA37",2023,"LIM331",829,null,null,null,null,null,null,null,null,null,null,null,null,null,null,null,null,null,null,"~"]
["SA37",2023,"LIM331",830,null,null,null,null,null,null,null,null,null,null,null,null,null,null,null,null,null,null,"~"]
["SA37",2023,"LIM331",831,null,null,null,null,null,null,null,null,null,null,null,null,null,null,null,null,null,null,"~"]
["SA37",2023,"LIM331",832,null,null,null,null,null,null,null,null,null,null,null,null,null,null,null,null,null,null,"~"]
["SA37",2023,"LIM331",833,null,null,null,null,null,null,null,null,null,null,null,null,null,null,null,null,null,null,"~"]
["SA37",2023,"LIM331",834,null,null,null,null,null,null,null,null,null,null,null,null,null,null,null,null,null,null,"~"]
["SA37",2023,"LIM331",835,null,null,null,null,null,null,null,null,null,null,null,null,null,null,null,null,null,null,"~"]
["SA37",2023,"LIM331",836,null,null,null,null,null,null,null,null,null,null,null,null,null,null,null,null,null,null,"~"]
["SA37",2023,"LIM331",837,null,null,null,null,null,null,null,null,null,null,null,null,null,null,null,null,null,null,"~"]
["SA37",2023,"LIM331",838,null,null,null,null,null,null,null,null,null,null,null,null,null,null,null,null,null,null,"~"]
["SA37",2023,"LIM331",839,null,null,null,null,null,null,null,null,null,null,null,null,null,null,null,null,null,null,"~"]
["SA37",2023,"LIM331",840,null,null,null,null,null,null,null,null,null,null,null,null,null,null,null,null,null,null,"~"]
["SA37",2023,"LIM331",841,null,null,null,null,null,null,null,null,null,null,null,null,null,null,null,null,null,null,"~"]
["SA37",2023,"LIM331",842,null,null,null,null,null,null,null,null,null,null,null,null,null,null,null,null,null,null,"~"]
["SA37",2023,"LIM331",843,null,null,null,null,null,null,null,null,null,null,null,null,null,null,null,null,null,null,"~"]
["SA37",2023,"LIM331",844,null,null,null,null,null,null,null,null,null,null,null,null,null,null,null,null,null,null,"~"]
["SA37",2023,"LIM331",845,null,null,null,null,null,null,null,null,null,null,null,null,null,null,null,null,null,null,"~"]
["SA37",2023,"LIM331",846,null,null,null,null,null,null,null,null,null,null,null,null,null,null,null,null,null,null,"~"]
["SA37",2023,"LIM331",847,null,null,null,null,null,null,null,null,null,null,null,null,null,null,null,null,null,null,"~"]
["SA37",2023,"LIM331",848,null,null,null,null,null,null,null,null,null,null,null,null,null,null,null,null,null,null,"~"]
["SA37",2023,"LIM331",849,null,null,null,null,null,null,null,null,null,null,null,null,null,null,null,null,null,null,"~"]
["SA37",2023,"LIM331",850,null,null,null,null,null,null,null,null,null,null,null,null,null,null,null,null,null,null,"~"]
["SA37",2023,"LIM331",851,null,null,null,null,null,null,null,null,null,null,null,null,null,null,null,null,null,null,"~"]
["SA37",2023,"LIM331",852,null,null,null,null,null,null,null,null,null,null,null,null,null,null,null,null,null,null,"~"]
["SA37",2023,"LIM331",853,null,null,null,null,null,null,null,null,null,null,null,null,null,null,null,null,null,null,"~"]
["SA37",2023,"LIM331",854,null,null,null,null,null,null,null,null,null,null,null,null,null,null,null,null,null,null,"~"]
["SA37",2023,"LIM331",855,null,null,null,null,null,null,null,null,null,null,null,null,null,null,null,null,null,null,"~"]
["SA37",2023,"LIM331",856,null,null,null,null,null,null,null,null,null,null,null,null,null,null,null,null,null,null,"~"]
["SA37",2023,"LIM331",857,null,null,null,null,null,null,null,null,null,null,null,null,null,null,null,null,null,null,"~"]
["SA37",2023,"LIM331",858,null,null,null,null,null,null,null,null,null,null,null,null,null,null,null,null,null,null,"~"]
["SA37",2023,"LIM331",859,null,null,null,null,null,null,null,null,null,null,null,null,null,null,null,null,null,null,"~"]
["SA37",2023,"LIM331",860,null,null,null,null,null,null,null,null,null,null,null,null,null,null,null,null,null,null,"~"]
["SA37",2023,"LIM331",861,null,null,null,null,null,null,null,null,null,null,null,null,null,null,null,null,null,null,"~"]
["SA37",2023,"LIM331",862,null,null,null,null,null,null,null,null,null,null,null,null,null,null,null,null,null,null,"~"]
["SA37",2023,"LIM331",863,null,null,null,null,null,null,null,null,null,null,null,null,null,null,null,null,null,null,"~"]
["SA37",2023,"LIM331",864,null,null,null,null,null,null,null,null,null,null,null,null,null,null,null,null,null,null,"~"]
["SA37",2023,"LIM331",865,null,null,null,null,null,null,null,null,null,null,null,null,null,null,null,null,null,null,"~"]
["SA37",2023,"LIM331",866,null,null,null,null,null,null,null,null,null,null,null,null,null,null,null,null,null,null,"~"]
["SA37",2023,"LIM331",867,null,null,null,null,null,null,null,null,null,null,null,null,null,null,null,null,null,null,"~"]
["SA37",2023,"LIM331",868,null,null,null,null,null,null,null,null,null,null,null,null,null,null,null,null,null,null,"~"]
["SA37",2023,"LIM331",869,null,null,null,null,null,null,null,null,null,null,null,null,null,null,null,null,null,null,"~"]
["SA37",2023,"LIM331",870,null,null,null,null,null,null,null,null,null,null,null,null,null,null,null,null,null,null,"~"]
["SA37",2023,"LIM331",871,null,null,null,null,null,null,null,null,null,null,null,null,null,null,null,null,null,null,"~"]
["SA37",2023,"LIM331",872,null,null,null,null,null,null,null,null,null,null,null,null,null,null,null,null,null,null,"~"]
["SA37",2023,"LIM331",873,null,null,null,null,null,null,null,null,null,null,null,null,null,null,null,null,null,null,"~"]
["SA37",2023,"LIM331",874,null,null,null,null,null,null,null,null,null,null,null,null,null,null,null,null,null,null,"~"]
["SA37",2023,"LIM331",875,null,null,null,null,null,null,null,null,null,null,null,null,null,null,null,null,null,null,"~"]
["SA37",2023,"LIM331",876,null,null,null,null,null,null,null,null,null,null,null,null,null,null,null,null,null,null,"~"]
["SA37",2023,"LIM331",877,null,null,null,null,null,null,null,null,null,null,null,null,null,null,null,null,null,null,"~"]
["SA37",2023,"LIM331",878,null,null,null,null,null,null,null,null,null,null,null,null,null,null,null,null,null,null,"~"]
["SA37",2023,"LIM331",879,null,null,null,null,null,null,null,null,null,null,null,null,null,null,null,null,null,null,"~"]
["SA37",{"$f":"+MTREF","v":2023},{"$f":"LEFT(muni,(FIND(\" \",muni,1)-1))","v":"LIM331"},880,null,null,null,null,null,null,null,null,null,null,null,null,null,null,null,null,null,null,"~"]
["SA37",2023,"LIM331",881,null,null,null,null,null,null,null,null,null,null,null,null,null,null,null,null,null,null,"~"]
["SA37",2023,"LIM331",882,null,null,null,null,null,null,null,null,null,null,null,null,null,null,null,null,null,null,"~"]
["SA37",2023,"LIM331",883,null,null,null,null,null,null,null,null,null,null,null,null,null,null,null,null,null,null,"~"]
["SA37",2023,"LIM331",884,null,null,null,null,null,null,null,null,null,null,null,null,null,null,null,null,null,null,"~"]
["SA37",2023,"LIM331",885,null,null,null,null,null,null,null,null,null,null,null,null,null,null,null,null,null,null,"~"]
["SA37",2023,"LIM331",886,null,null,null,null,null,null,null,null,null,null,null,null,null,null,null,null,null,null,"~"]
["SA37",2023,"LIM331",887,null,null,null,null,null,null,null,null,null,null,null,null,null,null,null,null,null,null,"~"]
["SA37",2023,"LIM331",888,null,null,null,null,null,null,null,null,null,null,null,null,null,null,null,null,null,null,"~"]
["SA37",2023,"LIM331",889,null,null,null,null,null,null,null,null,null,null,null,null,null,null,null,null,null,null,"~"]
["SA37",2023,"LIM331",890,null,null,null,null,null,null,null,null,null,null,null,null,null,null,null,null,null,null,"~"]
["SA37",2023,"LIM331",891,null,null,null,null,null,null,null,null,null,null,null,null,null,null,null,null,null,null,"~"]
["SA37",2023,"LIM331",892,null,null,null,null,null,null,null,null,null,null,null,null,null,null,null,null,null,null,"~"]
["SA37",2023,"LIM331",893,null,null,null,null,null,null,null,null,null,null,null,null,null,null,null,null,null,null,"~"]
["SA37",2023,"LIM331",894,null,null,null,null,null,null,null,null,null,null,null,null,null,null,null,null,null,null,"~"]
["SA37",2023,"LIM331",895,null,null,null,null,null,null,null,null,null,null,null,null,null,null,null,null,null,null,"~"]
["SA37",2023,"LIM331",896,null,null,null,null,null,null,null,null,null,null,null,null,null,null,null,null,null,null,"~"]
["SA37",2023,"LIM331",897,null,null,null,null,null,null,null,null,null,null,null,null,null,null,null,null,null,null,"~"]
["SA37",2023,"LIM331",898,null,null,null,null,null,null,null,null,null,null,null,null,null,null,null,null,null,null,"~"]
["SA37",2023,"LIM331",899,null,null,null,null,null,null,null,null,null,null,null,null,null,null,null,null,null,null,"~"]
["SA37",2023,"LIM331",900,null,null,null,null,null,null,null,null,null,null,null,null,null,null,null,null,null,null,"~"]
["SA37",2023,"LIM331",901,null,null,null,null,null,null,null,null,null,null,null,null,null,null,null,null,null,null,"~"]
["SA37",2023,"LIM331",902,null,null,null,null,null,null,null,null,null,null,null,null,null,null,null,null,null,null,"~"]
["SA37",2023,"LIM331",903,null,null,null,null,null,null,null,null,null,null,null,null,null,null,null,null,null,null,"~"]
["SA37",2023,"LIM331",904,null,null,null,null,null,null,null,null,null,null,null,null,null,null,null,null,null,null,"~"]
["SA37",2023,"LIM331",905,null,null,null,null,null,null,null,null,null,null,null,null,null,null,null,null,null,null,"~"]
["SA37",2023,"LIM331",906,null,null,null,null,null,null,null,null,null,null,null,null,null,null,null,null,null,null,"~"]
["SA37",2023,"LIM331",907,null,null,null,null,null,null,null,null,null,null,null,null,null,null,null,null,null,null,"~"]
["SA37",2023,"LIM331",908,null,null,null,null,null,null,null,null,null,null,null,null,null,null,null,null,null,null,"~"]
["SA37",2023,"LIM331",909,null,null,null,null,null,null,null,null,null,null,null,null,null,null,null,null,null,null,"~"]
["SA37",2023,"LIM331",910,null,null,null,null,null,null,null,null,null,null,null,null,null,null,null,null,null,null,"~"]
["SA37",2023,"LIM331",911,null,null,null,null,null,null,null,null,null,null,null,null,null,null,null,null,null,null,"~"]
["SA37",2023,"LIM331",912,null,null,null,null,null,null,null,null,null,null,null,null,null,null,null,null,null,null,"~"]
["SA37",2023,"LIM331",913,null,null,null,null,null,null,null,null,null,null,null,null,null,null,null,null,null,null,"~"]
["SA37",2023,"LIM331",914,null,null,null,null,null,null,null,null,null,null,null,null,null,null,null,null,null,null,"~"]
["SA37",2023,"LIM331",915,null,null,null,null,null,null,null,null,null,null,null,null,null,null,null,null,null,null,"~"]
["SA37",2023,"LIM331",916,null,null,null,null,null,null,null,null,null,null,null,null,null,null,null,null,null,null,"~"]
["SA37",2023,"LIM331",917,null,null,null,null,null,null,null,null,null,null,null,null,null,null,null,null,null,null,"~"]
["SA37",2023,"LIM331",918,null,null,null,null,null,null,null,null,null,null,null,null,null,null,null,null,null,null,"~"]
["SA37",2023,"LIM331",919,null,null,null,null,null,null,null,null,null,null,null,null,null,null,null,null,null,null,"~"]
["SA37",2023,"LIM331",920,null,null,null,null,null,null,null,null,null,null,null,null,null,null,null,null,null,null,"~"]
["SA37",2023,"LIM331",921,null,null,null,null,null,null,null,null,null,null,null,null,null,null,null,null,null,null,"~"]
["SA37",2023,"LIM331",922,null,null,null,null,null,null,null,null,null,null,null,null,null,null,null,null,null,null,"~"]
["SA37",2023,"LIM331",923,null,null,null,null,null,null,null,null,null,null,null,null,null,null,null,null,null,null,"~"]
["SA37",2023,"LIM331",924,null,null,null,null,null,null,null,null,null,null,null,null,null,null,null,null,null,null,"~"]
["SA37",2023,"LIM331",925,null,null,null,null,null,null,null,null,null,null,null,null,null,null,null,null,null,null,"~"]
["SA37",2023,"LIM331",926,null,null,null,null,null,null,null,null,null,null,null,null,null,null,null,null,null,null,"~"]
["SA37",2023,"LIM331",927,null,null,null,null,null,null,null,null,null,null,null,null,null,null,null,null,null,null,"~"]
["SA37",2023,"LIM331",928,null,null,null,null,null,null,null,null,null,null,null,null,null,null,null,null,null,null,"~"]
["SA37",2023,"LIM331",929,null,null,null,null,null,null,null,null,null,null,null,null,null,null,null,null,null,null,"~"]
["SA37",2023,"LIM331",930,null,null,null,null,null,null,null,null,null,null,null,null,null,null,null,null,null,null,"~"]
["SA37",2023,"LIM331",931,null,null,null,null,null,null,null,null,null,null,null,null,null,null,null,null,null,null,"~"]
["SA37",2023,"LIM331",932,null,null,null,null,null,null,null,null,null,null,null,null,null,null,null,null,null,null,"~"]
["SA37",2023,"LIM331",933,null,null,null,null,null,null,null,null,null,null,null,null,null,null,null,null,null,null,"~"]
["SA37",2023,"LIM331",934,null,null,null,null,null,null,null,null,null,null,null,null,null,null,null,null,null,null,"~"]
["SA37",2023,"LIM331",935,null,null,null,null,null,null,null,null,null,null,null,null,null,null,null,null,null,null,"~"]
["SA37",2023,"LIM331",936,null,null,null,null,null,null,null,null,null,null,null,null,null,null,null,null,null,null,"~"]
["SA37",2023,"LIM331",937,null,null,null,null,null,null,null,null,null,null,null,null,null,null,null,null,null,null,"~"]
["SA37",2023,"LIM331",938,null,null,null,null,null,null,null,null,null,null,null,null,null,null,null,null,null,null,"~"]
["SA37",2023,"LIM331",939,null,null,null,null,null,null,null,null,null,null,null,null,null,null,null,null,null,null,"~"]
["SA37",2023,"LIM331",940,null,null,null,null,null,null,null,null,null,null,null,null,null,null,null,null,null,null,"~"]
["SA37",2023,"LIM331",941,null,null,null,null,null,null,null,null,null,null,null,null,null,null,null,null,null,null,"~"]
["SA37",2023,"LIM331",942,null,null,null,null,null,null,null,null,null,null,null,null,null,null,null,null,null,null,"~"]
["SA37",2023,"LIM331",943,null,null,null,null,null,null,null,null,null,null,null,null,null,null,null,null,null,null,"~"]
["SA37",{"$f":"+MTREF","v":2023},{"$f":"LEFT(muni,(FIND(\" \",muni,1)-1))","v":"LIM331"},944,null,null,null,null,null,null,null,null,null,null,null,null,null,null,null,null,null,null,"~"]
["SA37",2023,"LIM331",945,null,null,null,null,null,null,null,null,null,null,null,null,null,null,null,null,null,null,"~"]
["SA37",2023,"LIM331",946,null,null,null,null,null,null,null,null,null,null,null,null,null,null,null,null,null,null,"~"]
["SA37",2023,"LIM331",947,null,null,null,null,null,null,null,null,null,null,null,null,null,null,null,null,null,null,"~"]
["SA37",2023,"LIM331",948,null,null,null,null,null,null,null,null,null,null,null,null,null,null,null,null,null,null,"~"]
["SA37",2023,"LIM331",949,null,null,null,null,null,null,null,null,null,null,null,null,null,null,null,null,null,null,"~"]
["SA37",2023,"LIM331",950,null,null,null,null,null,null,null,null,null,null,null,null,null,null,null,null,null,null,"~"]
["SA37",2023,"LIM331",951,null,null,null,null,null,null,null,null,null,null,null,null,null,null,null,null,null,null,"~"]
["SA37",2023,"LIM331",952,null,null,null,null,null,null,null,null,null,null,null,null,null,null,null,null,null,null,"~"]
["SA37",2023,"LIM331",953,null,null,null,null,null,null,null,null,null,null,null,null,null,null,null,null,null,null,"~"]
["SA37",2023,"LIM331",954,null,null,null,null,null,null,null,null,null,null,null,null,null,null,null,null,null,null,"~"]
["SA37",2023,"LIM331",955,null,null,null,null,null,null,null,null,null,null,null,null,null,null,null,null,null,null,"~"]
["SA37",2023,"LIM331",956,null,null,null,null,null,null,null,null,null,null,null,null,null,null,null,null,null,null,"~"]
["SA37",2023,"LIM331",957,null,null,null,null,null,null,null,null,null,null,null,null,null,null,null,null,null,null,"~"]
["SA37",2023,"LIM331",958,null,null,null,null,null,null,null,null,null,null,null,null,null,null,null,null,null,null,"~"]
["SA37",2023,"LIM331",959,null,null,null,null,null,null,null,null,null,null,null,null,null,null,null,null,null,null,"~"]
["SA37",2023,"LIM331",960,null,null,null,null,null,null,null,null,null,null,null,null,null,null,null,null,null,null,"~"]
["SA37",2023,"LIM331",961,null,null,null,null,null,null,null,null,null,null,null,null,null,null,null,null,null,null,"~"]
["SA37",2023,"LIM331",962,null,null,null,null,null,null,null,null,null,null,null,null,null,null,null,null,null,null,"~"]
["SA37",2023,"LIM331",963,null,null,null,null,null,null,null,null,null,null,null,null,null,null,null,null,null,null,"~"]
["SA37",2023,"LIM331",964,null,null,null,null,null,null,null,null,null,null,null,null,null,null,null,null,null,null,"~"]
["SA37",2023,"LIM331",965,null,null,null,null,null,null,null,null,null,null,null,null,null,null,null,null,null,null,"~"]
["SA37",2023,"LIM331",966,null,null,null,null,null,null,null,null,null,null,null,null,null,null,null,null,null,null,"~"]
["SA37",2023,"LIM331",967,null,null,null,null,null,null,null,null,null,null,null,null,null,null,null,null,null,null,"~"]
["SA37",2023,"LIM331",968,null,null,null,null,null,null,null,null,null,null,null,null,null,null,null,null,null,null,"~"]
["SA37",2023,"LIM331",969,null,null,null,null,null,null,null,null,null,null,null,null,null,null,null,null,null,null,"~"]
["SA37",2023,"LIM331",970,null,null,null,null,null,null,null,null,null,null,null,null,null,null,null,null,null,null,"~"]
["SA37",2023,"LIM331",971,null,null,null,null,null,null,null,null,null,null,null,null,null,null,null,null,null,null,"~"]
["SA37",2023,"LIM331",972,null,null,null,null,null,null,null,null,null,null,null,null,null,null,null,null,null,null,"~"]
["SA37",2023,"LIM331",973,null,null,null,null,null,null,null,null,null,null,null,null,null,null,null,null,null,null,"~"]
["SA37",2023,"LIM331",974,null,null,null,null,null,null,null,null,null,null,null,null,null,null,null,null,null,null,"~"]
["SA37",2023,"LIM331",975,null,null,null,null,null,null,null,null,null,null,null,null,null,null,null,null,null,null,"~"]
["SA37",2023,"LIM331",976,null,null,null,null,null,null,null,null,null,null,null,null,null,null,null,null,null,null,"~"]
["SA37",2023,"LIM331",977,null,null,null,null,null,null,null,null,null,null,null,null,null,null,null,null,null,null,"~"]
["SA37",2023,"LIM331",978,null,null,null,null,null,null,null,null,null,null,null,null,null,null,null,null,null,null,"~"]
["SA37",2023,"LIM331",979,null,null,null,null,null,null,null,null,null,null,null,null,null,null,null,null,null,null,"~"]
["SA37",2023,"LIM331",980,null,null,null,null,null,null,null,null,null,null,null,null,null,null,null,null,null,null,"~"]
["SA37",2023,"LIM331",981,null,null,null,null,null,null,null,null,null,null,null,null,null,null,null,null,null,null,"~"]
["SA37",2023,"LIM331",982,null,null,null,null,null,null,null,null,null,null,null,null,null,null,null,null,null,null,"~"]
["SA37",2023,"LIM331",983,null,null,null,null,null,null,null,null,null,null,null,null,null,null,null,null,null,null,"~"]
["SA37",2023,"LIM331",984,null,null,null,null,null,null,null,null,null,null,null,null,null,null,null,null,null,null,"~"]
["SA37",2023,"LIM331",985,null,null,null,null,null,null,null,null,null,null,null,null,null,null,null,null,null,null,"~"]
["SA37",2023,"LIM331",986,null,null,null,null,null,null,null,null,null,null,null,null,null,null,null,null,null,null,"~"]
["SA37",2023,"LIM331",987,null,null,null,null,null,null,null,null,null,null,null,null,null,null,null,null,null,null,"~"]
["SA37",2023,"LIM331",988,null,null,null,null,null,null,null,null,null,null,null,null,null,null,null,null,null,null,"~"]
["SA37",2023,"LIM331",989,null,null,null,null,null,null,null,null,null,null,null,null,null,null,null,null,null,null,"~"]
["SA37",2023,"LIM331",990,null,null,null,null,null,null,null,null,null,null,null,null,null,null,null,null,null,null,"~"]
["SA37",2023,"LIM331",991,null,null,null,null,null,null,null,null,null,null,null,null,null,null,null,null,null,null,"~"]
["SA37",2023,"LIM331",992,null,null,null,null,null,null,null,null,null,null,null,null,null,null,null,null,null,null,"~"]
["SA37",2023,"LIM331",993,null,null,null,null,null,null,null,null,null,null,null,null,null,null,null,null,null,null,"~"]
["SA37",2023,"LIM331",994,null,null,null,null,null,null,null,null,null,null,null,null,null,null,null,null,null,null,"~"]
["SA37",2023,"LIM331",995,null,null,null,null,null,null,null,null,null,null,null,null,null,null,null,null,null,null,"~"]
["SA37",2023,"LIM331",996,null,null,null,null,null,null,null,null,null,null,null,null,null,null,null,null,null,null,"~"]
["SA37",2023,"LIM331",997,null,null,null,null,null,null,null,null,null,null,null,null,null,null,null,null,null,null,"~"]
["SA37",2023,"LIM331",998,null,null,null,null,null,null,null,null,null,null,null,null,null,null,null,null,null,null,"~"]
["SA37",2023,"LIM331",999,null,null,null,null,null,null,null,null,null,null,null,null,null,null,null,null,null,null,"~"]
["SA37",2023,"LIM331",1000,null,null,null,null,null,null,null,null,null,null,null,null,null,null,null,null,null,null,"~"]
["CONTACT",2023,"LIM331",1,null,null,null,null,null,null,null,null,null,null,null,null,null,null,null,null,null,null,"~"]
["CONTACT",2023,"LIM331",2,null,null,null,null,null,null,null,null,null,null,null,null,null,null,null,null,null,null,"~"]
["CONTACT",2023,"LIM331",3,null,null,null,null,null,null,null,null,null,null,null,null,null,null,null,null,null,null,"~"]
["CONTACT",2023,"LIM331",4,null,null,null,null,null,null,null,null,null,null,null,null,null,null,null,null,null,null,"~"]
["CONTACT",2023,"LIM331",5,null,null,null,null,null,null,null,null,null,null,null,null,null,null,null,null,null,null,"~"]
["CONTACT",2023,"LIM331",6,null,null,null,null,null,null,null,null,null,null,null,null,null,null,null,null,null,null,"~"]
["CONTACT",2023,"LIM331",7,null,null,null,null,null,null,null,null,null,null,null,null,null,null,null,null,null,null,"~"]
["CONTACT",{"$f":"+MTREF","v":2023},{"$f":"LEFT(muni,(FIND(\" \",muni,1)-1))","v":"LIM331"},8,null,null,null,null,null,null,null,null,null,null,null,null,null,null,null,null,null,null,"~"]
["CONTACT",2023,"LIM331",9,null,null,null,null,null,null,null,null,null,null,null,null,null,null,null,null,null,null,"~"]
["CONTACT",2023,"LIM331",10,null,null,null,null,null,null,null,null,null,null,null,null,null,null,null,null,null,null,"~"]
["CONTACT",2023,"LIM331",11,null,null,null,null,null,null,null,null,null,null,null,null,null,null,null,null,null,null,"~"]
["CONTACT",2023,"LIM331",12,null,null,null,null,null,null,null,null,null,null,null,null,null,null,null,null,null,null,"~"]
["CONTACT",2023,"LIM331",13,null,null,null,null,null,null,null,null,null,null,null,null,null,null,null,null,null,null,"~"]
["CONTACT",2023,"LIM331",14,null,null,null,null,null,null,null,null,null,null,null,null,null,null,null,null,null,null,"~"]
["CONTACT",2023,"LIM331",15,null,null,null,null,null,null,null,null,null,null,null,null,null,null,null,null,null,null,"~"]
["CONTACT",2023,"LIM331",16,null,null,null,null,null,null,null,null,null,null,null,null,null,null,null,null,null,null,"~"]
["CONTACT",2023,"LIM331",17,null,null,null,null,null,null,null,null,null,null,null,null,null,null,null,null,null,null,"~"]
["CONTACT",2023,"LIM331",18,null,null,null,null,null,null,null,null,null,null,null,null,null,null,null,null,null,null,"~"]
["CONTACT",2023,"LIM331",19,null,null,null,null,null,null,null,null,null,null,null,null,null,null,null,null,null,null,"~"]
["CONTACT",2023,"LIM331",20,null,null,null,null,null,null,null,null,null,null,null,null,null,null,null,null,null,null,"~"]
["CONTACT",2023,"LIM331",21,null,null,null,null,null,null,null,null,null,null,null,null,null,null,null,null,null,null,"~"]
["CONTACT",2023,"LIM331",22,null,null,null,null,null,null,null,null,null,null,null,null,null,null,null,null,null,null,"~"]
["CONTACT",2023,"LIM331",23,null,null,null,null,null,null,null,null,null,null,null,null,null,null,null,null,null,null,"~"]
["CONTACT",2023,"LIM331",24,null,null,null,null,null,null,null,null,null,null,null,null,null,null,null,null,null,null,"~"]
["CONTACT",2023,"LIM331",25,null,null,null,null,null,null,null,null,null,null,null,null,null,null,null,null,null,null,"~"]
["CONTACT",2023,"LIM331",26,null,null,null,null,null,null,null,null,null,null,null,null,null,null,null,null,null,null,"~"]
["CONTACT",2023,"LIM331",27,null,null,null,null,null,null,null,null,null,null,null,null,null,null,null,null,null,null,"~"]
["CONTACT",2023,"LIM331",28,null,null,null,null,null,null,null,null,null,null,null,null,null,null,null,null,null,null,"~"]
["CONTACT",2023,"LIM331",29,null,null,null,null,null,null,null,null,null,null,null,null,null,null,null,null,null,null,"~"]
["CONTACT",2023,"LIM331",30,null,null,null,null,null,null,null,null,null,null,null,null,null,null,null,null,null,null,"~"]
["CONTACT",2023,"LIM331",31,null,null,null,null,null,null,null,null,null,null,null,null,null,null,null,null,null,null,"~"]
["CONTACT",2023,"LIM331",32,null,null,null,null,null,null,null,null,null,null,null,null,null,null,null,null,null,null,"~"]
["CONTACT",2023,"LIM331",33,null,null,null,null,null,null,null,null,null,null,null,null,null,null,null,null,null,null,"~"]
["CONTACT",2023,"LIM331",34,null,null,null,null,null,null,null,null,null,null,null,null,null,null,null,null,null,null,"~"]
["CONTACT",2023,"LIM331",35,null,null,null,null,null,null,null,null,null,null,null,null,null,null,null,null,null,null,"~"]
["CONTACT",2023,"LIM331",36,null,null,null,null,null,null,null,null,null,null,null,null,null,null,null,null,null,null,"~"]
["CONTACT",2023,"LIM331",37,null,null,null,null,null,null,null,null,null,null,null,null,null,null,null,null,null,null,"~"]
["CONTACT",2023,"LIM331",38,null,null,null,null,null,null,null,null,null,null,null,null,null,null,null,null,null,null,"~"]
["CONTACT",2023,"LIM331",39,null,null,null,null,null,null,null,null,null,null,null,null,null,null,null,null,null,null,"~"]
["CONTACT",2023,"LIM331",40,null,null,null,null,null,null,null,null,null,null,null,null,null,null,null,null,null,null,"~"]
["CONTACT",2023,"LIM331",41,null,null,null,null,null,null,null,null,null,null,null,null,null,null,null,null,null,null,"~"]
["CONTACT",2023,"LIM331",42,null,null,null,null,null,null,null,null,null,null,null,null,null,null,null,null,null,null,"~"]
["CONTACT",2023,"LIM331",43,null,null,null,null,null,null,null,null,null,null,null,null,null,null,null,null,null,null,"~"]
["CONTACT",2023,"LIM331",44,null,null,null,null,null,null,null,null,null,null,null,null,null,null,null,null,null,null,"~"]
["CONTACT",2023,"LIM331",45,null,null,null,null,null,null,null,null,null,null,null,null,null,null,null,null,null,null,"~"]
["CONTACT",2023,"LIM331",46,null,null,null,null,null,null,null,null,null,null,null,null,null,null,null,null,null,null,"~"]
["CONTACT",2023,"LIM331",47,null,null,null,null,null,null,null,null,null,null,null,null,null,null,null,null,null,null,"~"]
["CONTACT",2023,"LIM331",48,null,null,null,null,null,null,null,null,null,null,null,null,null,null,null,null,null,null,"~"]
["CONTACT",2023,"LIM331",49,null,null,null,null,null,null,null,null,null,null,null,null,null,null,null,null,null,null,"~"]
["CONTACT",2023,"LIM331",50,null,null,null,null,null,null,null,null,null,null,null,null,null,null,null,null,null,null,"~"]
["CONTACT",2023,"LIM331",51,null,null,null,null,null,null,null,null,null,null,null,null,null,null,null,null,null,null,"~"]
["CONTACT",2023,"LIM331",52,null,null,null,null,null,null,null,null,null,null,null,null,null,null,null,null,null,null,"~"]
["CONTACT",2023,"LIM331",53,null,null,null,null,null,null,null,null,null,null,null,null,null,null,null,null,null,null,"~"]
["CONTACT",2023,"LIM331",54,null,null,null,null,null,null,null,null,null,null,null,null,null,null,null,null,null,null,"~"]
["CONTACT",2023,"LIM331",55,null,null,null,null,null,null,null,null,null,null,null,null,null,null,null,null,null,null,"~"]
["CONTACT",2023,"LIM331",56,null,null,null,null,null,null,null,null,null,null,null,null,null,null,null,null,null,null,"~"]
["CONTACT",2023,"LIM331",57,null,null,null,null,null,null,null,null,null,null,null,null,null,null,null,null,null,null,"~"]
["CONTACT",2023,"LIM331",58,null,null,null,null,null,null,null,null,null,null,null,null,null,null,null,null,null,null,"~"]
["CONTACT",2023,"LIM331",59,null,null,null,null,null,null,null,null,null,null,null,null,null,null,null,null,null,null,"~"]
["CONTACT",2023,"LIM331",60,null,null,null,null,null,null,null,null,null,null,null,null,null,null,null,null,null,null,"~"]
["CONTACT",2023,"LIM331",61,null,null,null,null,null,null,null,null,null,null,null,null,null,null,null,null,null,null,"~"]
["CONTACT",2023,"LIM331",62,null,null,null,null,null,null,null,null,null,null,null,null,null,null,null,null,null,null,"~"]
["CONTACT",2023,"LIM331",63,null,null,null,null,null,null,null,null,null,null,null,null,null,null,null,null,null,null,"~"]
["CONTACT",2023,"LIM331",64,null,null,null,null,null,null,null,null,null,null,null,null,null,null,null,null,null,null,"~"]
["CONTACT",2023,"LIM331",65,null,null,null,null,null,null,null,null,null,null,null,null,null,null,null,null,null,null,"~"]
["CONTACT",2023,"LIM331",66,null,null,null,null,null,null,null,null,null,null,null,null,null,null,null,null,null,null,"~"]
["CONTACT",2023,"LIM331",67,null,null,null,null,null,null,null,null,null,null,null,null,null,null,null,null,null,null,"~"]
["CONTACT",2023,"LIM331",68,null,null,null,null,null,null,null,null,null,null,null,null,null,null,null,null,null,null,"~"]
["CONTACT",2023,"LIM331",69,null,null,null,null,null,null,null,null,null,null,null,null,null,null,null,null,null,null,"~"]
["CONTACT",2023,"LIM331",70,null,null,null,null,null,null,null,null,null,null,null,null,null,null,null,null,null,null,"~"]
["CONTACT",2023,"LIM331",71,null,null,null,null,null,null,null,null,null,null,null,null,null,null,null,null,null,null,"~"]
["CONTACT",{"$f":"+MTREF","v":2023},{"$f":"LEFT(muni,(FIND(\" \",muni,1)-1))","v":"LIM331"},72,null,null,null,null,null,null,null,null,null,null,null,null,null,null,null,null,null,null,"~"]
["CONTACT",2023,"LIM331",73,null,null,null,null,null,null,null,null,null,null,null,null,null,null,null,null,null,null,"~"]
["CONTACT",2023,"LIM331",74,null,null,null,null,null,null,null,null,null,null,null,null,null,null,null,null,null,null,"~"]
["CONTACT",2023,"LIM331",75,null,null,null,null,null,null,null,null,null,null,null,null,null,null,null,null,null,null,"~"]
["CONTACT",2023,"LIM331",76,null,null,null,null,null,null,null,null,null,null,null,null,null,null,null,null,null,null,"~"]
["CONTACT",2023,"LIM331",77,null,null,null,null,null,null,null,null,null,null,null,null,null,null,null,null,null,null,"~"]
["CONTACT",2023,"LIM331",78,null,null,null,null,null,null,null,null,null,null,null,null,null,null,null,null,null,null,"~"]
["CONTACT",2023,"LIM331",79,null,null,null,null,null,null,null,null,null,null,null,null,null,null,null,null,null,null,"~"]
["CONTACT",2023,"LIM331",80,null,null,null,null,null,null,null,null,null,null,null,null,null,null,null,null,null,null,"~"]
["CONTACT",2023,"LIM331",81,null,null,null,null,null,null,null,null,null,null,null,null,null,null,null,null,null,null,"~"]
["CONTACT",2023,"LIM331",82,null,null,null,null,null,null,null,null,null,null,null,null,null,null,null,null,null,null,"~"]
["CONTACT",2023,"LIM331",83,null,null,null,null,null,null,null,null,null,null,null,null,null,null,null,null,null,null,"~"]
["CONTACT",2023,"LIM331",84,null,null,null,null,null,null,null,null,null,null,null,null,null,null,null,null,null,null,"~"]
["CONTACT",2023,"LIM331",85,null,null,null,null,null,null,null,null,null,null,null,null,null,null,null,null,null,null,"~"]
["CONTACT",2023,"LIM331",86,null,null,null,null,null,null,null,null,null,null,null,null,null,null,null,null,null,null,"~"]
["CONTACT",2023,"LIM331",87,null,null,null,null,null,null,null,null,null,null,null,null,null,null,null,null,null,null,"~"]
["CONTACT",2023,"LIM331",88,null,null,null,null,null,null,null,null,null,null,null,null,null,null,null,null,null,null,"~"]
["CONTACT",2023,"LIM331",89,null,null,null,null,null,null,null,null,null,null,null,null,null,null,null,null,null,null,"~"]
["CONTACT",2023,"LIM331",90,null,null,null,null,null,null,null,null,null,null,null,null,null,null,null,null,null,null,"~"]
["CONTACT",2023,"LIM331",91,null,null,null,null,null,null,null,null,null,null,null,null,null,null,null,null,null,null,"~"]
["CONTACT",2023,"LIM331",92,null,null,null,null,null,null,null,null,null,null,null,null,null,null,null,null,null,null,"~"]
["CONTACT",2023,"LIM331",93,null,null,null,null,null,null,null,null,null,null,null,null,null,null,null,null,null,null,"~"]
["CONTACT",2023,"LIM331",94,null,null,null,null,null,null,null,null,null,null,null,null,null,null,null,null,null,null,"~"]
["CONTACT",2023,"LIM331",95,null,null,null,null,null,null,null,null,null,null,null,null,null,null,null,null,null,null,"~"]
["CONTACT",2023,"LIM331",96,null,null,null,null,null,null,null,null,null,null,null,null,null,null,null,null,null,null,"~"]
["CONTACT",2023,"LIM331",97,null,null,null,null,null,null,null,null,null,null,null,null,null,null,null,null,null,null,"~"]
["CONTACT",2023,"LIM331",98,null,null,null,null,null,null,null,null,null,null,null,null,null,null,null,null,null,null,"~"]
["CONTACT",2023,"LIM331",99,null,null,null,null,null,null,null,null,null,null,null,null,null,null,null,null,null,null,"~"]
["CONTACT",2023,"LIM331",100,null,null,null,null,null,null,null,null,null,null,null,null,null,null,null,null,null,null,"~"]
["CONTACT",2023,"LIM331",101,null,null,null,null,null,null,null,null,null,null,null,null,null,null,null,null,null,null,"~"]
["CONTACT",2023,"LIM331",102,null,null,null,null,null,null,null,null,null,null,null,null,null,null,null,null,null,null,"~"]
["CONTACT",2023,"LIM331",103,null,null,null,null,null,null,null,null,null,null,null,null,null,null,null,null,null,null,"~"]
["CONTACT",2023,"LIM331",104,null,null,null,null,null,null,null,null,null,null,null,null,null,null,null,null,null,null,"~"]
["CONTACT",2023,"LIM331",105,null,null,null,null,null,null,null,null,null,null,null,null,null,null,null,null,null,null,"~"]
["CONTACT",2023,"LIM331",106,null,null,null,null,null,null,null,null,null,null,null,null,null,null,null,null,null,null,"~"]
["CONTACT",2023,"LIM331",107,null,null,null,null,null,null,null,null,null,null,null,null,null,null,null,null,null,null,"~"]
["CONTACT",2023,"LIM331",108,null,null,null,null,null,null,null,null,null,null,null,null,null,null,null,null,null,null,"~"]
["CONTACT",2023,"LIM331",109,null,null,null,null,null,null,null,null,null,null,null,null,null,null,null,null,null,null,"~"]
["CONTACT",2023,"LIM331",110,null,null,null,null,null,null,null,null,null,null,null,null,null,null,null,null,null,null,"~"]
["CONTACT",2023,"LIM331",111,null,null,null,null,null,null,null,null,null,null,null,null,null,null,null,null,null,null,"~"]
["CONTACT",2023,"LIM331",112,null,null,null,null,null,null,null,null,null,null,null,null,null,null,null,null,null,null,"~"]
["CONTACT",2023,"LIM331",113,null,null,null,null,null,null,null,null,null,null,null,null,null,null,null,null,null,null,"~"]
["CONTACT",2023,"LIM331",114,null,null,null,null,null,null,null,null,null,null,null,null,null,null,null,null,null,null,"~"]
["CONTACT",2023,"LIM331",115,null,null,null,null,null,null,null,null,null,null,null,null,null,null,null,null,null,null,"~"]
["CONTACT",2023,"LIM331",116,null,null,null,null,null,null,null,null,null,null,null,null,null,null,null,null,null,null,"~"]
["CONTACT",2023,"LIM331",117,null,null,null,null,null,null,null,null,null,null,null,null,null,null,null,null,null,null,"~"]
["CONTACT",2023,"LIM331",118,null,null,null,null,null,null,null,null,null,null,null,null,null,null,null,null,null,null,"~"]
["CONTACT",2023,"LIM331",119,null,null,null,null,null,null,null,null,null,null,null,null,null,null,null,null,null,null,"~"]
["CONTACT",2023,"LIM331",120,null,null,null,null,null,null,null,null,null,null,null,null,null,null,null,null,null,null,"~"]
["CONTACT",2023,"LIM331",121,null,null,null,null,null,null,null,null,null,null,null,null,null,null,null,null,null,null,"~"]
["CONTACT",2023,"LIM331",122,null,null,null,null,null,null,null,null,null,null,null,null,null,null,null,null,null,null,"~"]
["CONTACT",2023,"LIM331",123,null,null,null,null,null,null,null,null,null,null,null,null,null,null,null,null,null,null,"~"]
["CONTACT",2023,"LIM331",124,null,null,null,null,null,null,null,null,null,null,null,null,null,null,null,null,null,null,"~"]
["CONTACT",2023,"LIM331",125,null,null,null,null,null,null,null,null,null,null,null,null,null,null,null,null,null,null,"~"]
["CONTACT",2023,"LIM331",126,null,null,null,null,null,null,null,null,null,null,null,null,null,null,null,null,null,null,"~"]
["CONTACT",2023,"LIM331",127,null,null,null,null,null,null,null,null,null,null,null,null,null,null,null,null,null,null,"~"]
["CONTACT",2023,"LIM331",128,null,null,null,null,null,null,null,null,null,null,null,null,null,null,null,null,null,null,"~"]
["CONTACT",2023,"LIM331",129,null,null,null,null,null,null,null,null,null,null,null,null,null,null,null,null,null,null,"~"]
["CONTACT",2023,"LIM331",130,null,null,null,null,null,null,null,null,null,null,null,null,null,null,null,null,null,null,"~"]
["CONTACT",2023,"LIM331",131,null,null,null,null,null,null,null,null,null,null,null,null,null,null,null,null,null,null,"~"]
["CONTACT",2023,"LIM331",132,null,null,null,null,null,null,null,null,null,null,null,null,null,null,null,null,null,null,"~"]
["CONTACT",2023,"LIM331",133,null,null,null,null,null,null,null,null,null,null,null,null,null,null,null,null,null,null,"~"]
["CONTACT",2023,"LIM331",134,null,null,null,null,null,null,null,null,null,null,null,null,null,null,null,null,null,null,"~"]
["CONTACT",2023,"LIM331",135,null,null,null,null,null,null,null,null,null,null,null,null,null,null,null,null,null,null,"~"]
["CONTACT",2023,"LIM331",136,null,null,null,null,null,null,null,null,null,null,null,null,null,null,null,null,null,null,"~"]
["CONTACT",2023,"LIM331",137,null,null,null,null,null,null,null,null,null,null,null,null,null,null,null,null,null,null,"~"]
["CONTACT",2023,"LIM331",138,null,null,null,null,null,null,null,null,null,null,null,null,null,null,null,null,null,null,"~"]
["SA25",2023,"LIM331",0,1,"Revenue By Source",null,null,null,null,null,null,null,null,null,null,null,null,null,null,null,null,"~"]
["SA25",2023,"LIM331",0,2,"Property rates",null,null,null,null,null,null,null,null,null,null,null,null,null,null,null,null,"~"]
["SA25",2023,"LIM331",0,3,"Property rates - penalties & collection charges",null,null,null,null,null,null,null,null,null,null,null,null,null,null,null,null,"~"]
["SA25",2023,"LIM331",0,4,"Service charges - electricity revenue",null,null,null,null,null,null,null,null,null,null,null,null,null,null,null,null,"~"]
["SA25",2023,"LIM331",0,5,"Service charges - water revenue",null,null,null,null,null,null,null,null,null,null,null,null,null,null,null,null,"~"]
["SA25",2023,"LIM331",0,6,"Service charges - sanitation revenue",null,null,null,null,null,null,null,null,null,null,null,null,null,null,null,null,"~"]
["SA25",2023,"LIM331",0,7,"Service charges - refuse revenue",null,null,null,null,null,null,null,null,null,null,null,null,null,null,null,null,"~"]
["SA25",2023,"LIM331",0,8,"Service charges - other",null,null,null,null,null,null,null,null,null,null,null,null,null,null,null,null,"~"]
["SA25",2023,"LIM331",0,9,"Rental of facilities and equipment",null,null,null,null,null,null,null,null,null,null,null,null,null,null,null,null,"~"]
["SA25",2023,"LIM331",0,10,"Interest earned - external investments",null,null,null,null,null,null,null,null,null,null,null,null,null,null,null,null,"~"]
["SA25",2023,"LIM331",0,11,"Interest earned - outstanding debtors",null,null,null,null,null,null,null,null,null,null,null,null,null,null,null,null,"~"]
["SA25",2023,"LIM331",0,12,"Dividends received",null,null,null,null,null,null,null,null,null,null,null,null,null,null,null,null,"~"]
["SA25",2023,"LIM331",0,13,"Fines",null,null,null,null,null,null,null,null,null,null,null,null,null,null,null,null,"~"]
["SA25",2023,"LIM331",0,14,"Licences and permits",null,null,null,null,null,null,null,null,null,null,null,null,null,null,null,null,"~"]
["SA25",2023,"LIM331",0,15,"Agency services",null,null,null,null,null,null,null,null,null,null,null,null,null,null,null,null,"~"]
["SA25",2023,"LIM331",0,16,"Transfers recognised - operational",null,null,null,null,null,null,null,null,null,null,null,null,null,null,null,null,"~"]
["SA25",2023,"LIM331",0,17,"Other revenue",null,null,null,null,null,null,null,null,null,null,null,null,null,null,null,null,"~"]
["SA25",2023,"LIM331",0,18,"Gains on disposal of PPE",null,null,null,null,null,null,null,null,null,null,null,null,null,null,null,null,"~"]
["SA25",2023,"LIM331",0,19,"Total Revenue (excluding capital transfers and contributions)",null,null,null,null,null,null,null,null,null,null,null,null,null,null,null,null,"~"]
["SA25",2023,"LIM331",0,20,null,null,null,null,null,null,null,null,null,null,null,null,null,null,null,null,null,"~"]
["SA25",2023,"LIM331",0,21,"Expenditure By Type",null,null,null,null,null,null,null,null,null,null,null,null,null,null,null,null,"~"]
["SA25",2023,"LIM331",0,22,"Employee related costs",null,null,null,null,null,null,null,null,null,null,null,null,null,null,null,null,"~"]
["SA25",2023,"LIM331",0,23,"Remuneration of councillors",null,null,null,null,null,null,null,null,null,null,null,null,null,null,null,null,"~"]
["SA25",2023,"LIM331",0,24,"Debt impairment",null,null,null,null,null,null,null,null,null,null,null,null,null,null,null,null,"~"]
["SA25",2023,"LIM331",0,25,"Depreciation & asset impairment",null,null,null,null,null,null,null,null,null,null,null,null,null,null,null,null,"~"]
["SA25",2023,"LIM331",0,26,"Finance charges",null,null,null,null,null,null,null,null,null,null,null,null,null,null,null,null,"~"]
["SA25",2023,"LIM331",0,27,"Bulk purchases",null,null,null,null,null,null,null,null,null,null,null,null,null,null,null,null,"~"]
["SA25",2023,"LIM331",0,28,"Other materials",null,null,null,null,null,null,null,null,null,null,null,null,null,null,null,null,"~"]
["SA25",2023,"LIM331",0,29,"Contracted services",null,null,null,null,null,null,null,null,null,null,null,null,null,null,null,null,"~"]
["SA25",2023,"LIM331",0,30,"Transfers and grants",null,null,null,null,null,null,null,null,null,null,null,null,null,null,null,null,"~"]
["SA25",2023,"LIM331",0,31,"Other expenditure",null,null,null,null,null,null,null,null,null,null,null,null,null,null,null,null,"~"]
["SA25",2023,"LIM331",0,32,"Loss on disposal of PPE",null,null,null,null,null,null,null,null,null,null,null,null,null,null,null,null,"~"]
["SA25",2023,"LIM331",0,33,"Total Expenditure",null,null,null,null,null,null,null,null,null,null,null,null,null,null,null,null,"~"]
["SA25",2023,"LIM331",0,34,null,null,null,null,null,null,null,null,null,null,null,null,null,null,null,null,null,"~"]
["SA25",2023,"LIM331",0,35,"Surplus/(Deficit)",null,null,null,null,null,null,null,null,null,null,null,null,null,null,null,null,"~"]
["SA25",{"$f":"+MTREF","v":2023},{"$f":"LEFT(muni,(FIND(\" \",muni,1)-1))","v":"LIM331"},0,36,"Transfers recognised - capital",null,null,null,null,null,null,null,null,null,null,null,null,null,null,null,null,"~"]
["SA25",2023,"LIM331",0,37,"Contributions recognised - capital",null,null,null,null,null,null,null,null,null,null,null,null,null,null,null,null,"~"]
["SA25",2023,"LIM331",0,38,"Contributed assets",null,null,null,null,null,null,null,null,null,null,null,null,null,null,null,null,"~"]
["SA25",2023,"LIM331",0,39,"Surplus/(Deficit) after capital transfers & contributions",null,null,null,null,null,null,null,null,null,null,null,null,null,null,null,null,"~"]
["SA25",2023,"LIM331",0,40,"Taxation",null,null,null,null,null,null,null,null,null,null,null,null,null,null,null,null,"~"]
["SA25",2023,"LIM331",0,41,"Attributable to minorities",null,null,null,null,null,null,null,null,null,null,null,null,null,null,null,null,"~"]
["SA25",2023,"LIM331",0,44,"Share of surplus/ (deficit) of associate",null,null,null,null,null,null,null,null,null,null,null,null,null,null,null,null,"~"]
["SA27",2023,"LIM331",null,null,"Revenue - Standard",null,null,null,null,null,null,null,null,null,null,null,null,null,null,null,null,"~"]
["SA27",2023,"LIM331",null,null,"Governance and administration",null,null,null,null,null,null,null,null,null,null,null,null,null,null,null,null,"~"]
["SA27",2023,"LIM331",1,11,"Executive and council",null,null,null,null,null,null,null,null,null,null,null,null,null,null,null,null,"~"]
["SA27",2023,"LIM331",1,12,"Budget and treasury office",null,null,null,null,null,null,null,null,null,null,null,null,null,null,null,null,"~"]
["SA27",2023,"LIM331",1,13,"Corporate services",null,null,null,null,null,null,null,null,null,null,null,null,null,null,null,null,"~"]
["SA27",2023,"LIM331",null,null,"Community and public safety",null,null,null,null,null,null,null,null,null,null,null,null,null,null,null,null,"~"]
["SA27",2023,"LIM331",1,21,"Community and social services",null,null,null,null,null,null,null,null,null,null,null,null,null,null,null,null,"~"]
["SA27",2023,"LIM331",1,22,"Sport and recreation",null,null,null,null,null,null,null,null,null,null,null,null,null,null,null,null,"~"]
["SA27",2023,"LIM331",1,23,"Public safety",null,null,null,null,null,null,null,null,null,null,null,null,null,null,null,null,"~"]
["SA27",2023,"LIM331",1,24,"Housing",null,null,null,null,null,null,null,null,null,null,null,null,null,null,null,null,"~"]
["SA27",2023,"LIM331",1,25,"Health",null,null,null,null,null,null,null,null,null,null,null,null,null,null,null,null,"~"]
["SA27",2023,"LIM331",null,null,"Economic and environmental services",null,null,null,null,null,null,null,null,null,null,null,null,null,null,null,null,"~"]
["SA27",2023,"LIM331",1,31,"Planning and development",null,null,null,null,null,null,null,null,null,null,null,null,null,null,null,null,"~"]
["SA27",2023,"LIM331",1,32,"Road transport",null,null,null,null,null,null,null,null,null,null,null,null,null,null,null,null,"~"]
["SA27",2023,"LIM331",1,33,"Environmental protection",null,null,null,null,null,null,null,null,null,null,null,null,null,null,null,null,"~"]
["SA27",2023,"LIM331",null,null,"Trading services",null,null,null,null,null,null,null,null,null,null,null,null,null,null,null,null,"~"]
["SA27",2023,"LIM331",1,41,"Electricity",null,null,null,null,null,null,null,null,null,null,null,null,null,null,null,null,"~"]
["SA27",2023,"LIM331",1,42,"Water",null,null,null,null,null,null,null,null,null,null,null,null,null,null,null,null,"~"]
["SA27",2023,"LIM331",1,43,"Waste water management",null,null,null,null,null,null,null,null,null,null,null,null,null,null,null,null,"~"]
["SA27",2023,"LIM331",1,44,"Waste management",null,null,null,null,null,null,null,null,null,null,null,null,null,null,null,null,"~"]
["SA27",2023,"LIM331",1,45,"Other",null,null,null,null,null,null,null,null,null,null,null,null,null,null,null,null,"~"]
["SA27",2023,"LIM331",null,null,"Total Revenue - Standard",null,null,null,null,null,null,null,null,null,null,null,null,null,null,null,null,"~"]
["SA27",2023,"LIM331",null,null,null,null,null,null,null,null,null,null,null,null,null,null,null,null,null,null,null,"~"]
["SA27",2023,"LIM331",null,null,"Expenditure - Standard",null,null,null,null,null,null,null,null,null,null,null,null,null,null,null,null,"~"]
["SA27",2023,"LIM331",null,null,"Governance and administration",null,null,null,null,null,null,null,null,null,null,null,null,null,null,null,null,"~"]
["SA27",2023,"LIM331",2,11,"Executive and council",null,null,null,null,null,null,null,null,null,null,null,null,null,null,null,null,"~"]
["SA27",2023,"LIM331",2,12,"Budget and treasury office",null,null,null,null,null,null,null,null,null,null,null,null,null,null,null,null,"~"]
["SA27",2023,"LIM331",2,13,"Corporate services",null,null,null,null,null,null,null,null,null,null,null,null,null,null,null,null,"~"]
["SA27",2023,"LIM331",null,null,"Community and public safety",null,null,null,null,null,null,null,null,null,null,null,null,null,null,null,null,"~"]
["SA27",2023,"LIM331",2,21,"Community and social services",null,null,null,null,null,null,null,null,null,null,null,null,null,null,null,null,"~"]
["SA27",2023,"LIM331",2,22,"Sport and recreation",null,null,null,null,null,null,null,null,null,null,null,null,null,null,null,null,"~"]
["SA27",2023,"LIM331",2,23,"Public safety",null,null,null,null,null,null,null,null,null,null,null,null,null,null,null,null,"~"]
["SA27",2023,"LIM331",2,24,"Housing",null,null,null,null,null,null,null,null,null,null,null,null,null,null,null,null,"~"]
["SA27",2023,"LIM331",2,25,"Health",null,null,null,null,null,null,null,null,null,null,null,null,null,null,null,null,"~"]
["SA27",2023,"LIM331",null,null,"Economic and environmental services",null,null,null,null,null,null,null,null,null,null,null,null,null,null,null,null,"~"]
["SA27",2023,"LIM331",2,31,"Planning and development",null,null,null,null,null,null,null,null,null,null,null,null,null,null,null,null,"~"]
["SA27",2023,"LIM331",2,32,"Road transport",null,null,null,null,null,null,null,null,null,null,null,null,null,null,null,null,"~"]
["SA27",2023,"LIM331",2,33,"Environmental protection",null,null,null,null,null,null,null,null,null,null,null,null,null,null,null,null,"~"]
["SA27",2023,"LIM331",null,null,"Trading services",null,null,null,null,null,null,null,null,null,null,null,null,null,null,null,null,"~"]
["SA27",2023,"LIM331",2,41,"Electricity",null,null,null,null,null,null,null,null,null,null,null,null,null,null,null,null,"~"]
["SA27",2023,"LIM331",2,42,"Water",null,null,null,null,null,null,null,null,null,null,null,null,null,null,null,null,"~"]
["SA27",2023,"LIM331",2,43,"Waste water management",null,null,null,null,null,null,null,null,null,null,null,null,null,null,null,null,"~"]
["SA27",2023,"LIM331",2,44,"Waste management",null,null,null,null,null,null,null,null,null,null,null,null,null,null,null,null,"~"]
["SA27",2023,"LIM331",2,45,"Other",null,null,null,null,null,null,null,null,null,null,null,null,null,null,null,null,"~"]
["SA27",2023,"LIM331",null,null,"Total Expenditure - Standard",null,null,null,null,null,null,null,null,null,null,null,null,null,null,null,null,"~"]
["SA29",2023,"LIM331",null,null,"Capital Expenditure - Standard",null,null,null,null,null,null,null,null,null,null,null,null,null,null,null,null,"~"]
["SA29",2023,"LIM331",null,null,"Governance and administration",null,null,null,null,null,null,null,null,null,null,null,null,null,null,null,null,"~"]
["SA29",2023,"LIM331",1,11,"Executive and council",null,null,null,null,null,null,null,null,null,null,null,null,null,null,null,null,"~"]
["SA29",2023,"LIM331",1,12,"Budget and treasury office",null,null,null,null,null,null,null,null,null,null,null,null,null,null,null,null,"~"]
["SA29",2023,"LIM331",1,13,"Corporate services",null,null,null,null,null,null,null,null,null,null,null,null,null,null,null,null,"~"]
["SA29",2023,"LIM331",null,null,"Community and public safety",null,null,null,null,null,null,null,null,null,null,null,null,null,null,null,null,"~"]
["SA29",2023,"LIM331",1,21,"Community and social services",null,null,null,null,null,null,null,null,null,null,null,null,null,null,null,null,"~"]
["SA29",2023,"LIM331",1,22,"Sport and recreation",null,null,null,null,null,null,null,null,null,null,null,null,null,null,null,null,"~"]
["SA29",2023,"LIM331",1,23,"Public safety",null,null,null,null,null,null,null,null,null,null,null,null,null,null,null,null,"~"]
["SA29",2023,"LIM331",1,24,"Housing",null,null,null,null,null,null,null,null,null,null,null,null,null,null,null,null,"~"]
["SA29",2023,"LIM331",1,25,"Health",null,null,null,null,null,null,null,null,null,null,null,null,null,null,null,null,"~"]
["SA29",2023,"LIM331",null,null,"Economic and environmental services",null,null,null,null,null,null,null,null,null,null,null,null,null,null,null,null,"~"]
["SA29",{"$f":"+MTREF","v":2023},{"$f":"LEFT(muni,(FIND(\" \",muni,1)-1))","v":"LIM331"},1,31,"Planning and development",null,null,null,null,null,null,null,null,null,null,null,null,null,null,null,null,"~"]
["SA29",2023,"LIM331",1,32,"Road transport",null,null,null,null,null,null,null,null,null,null,null,null,null,null,null,null,"~"]
["SA29",2023,"LIM331",1,33,"Environmental protection",null,null,null,null,null,null,null,null,null,null,null,null,null,null,null,null,"~"]
["SA29",2023,"LIM331",null,null,"Trading services",null,null,null,null,null,null,null,null,null,null,null,null,null,null,null,null,"~"]
["SA29",2023,"LIM331",1,41,"Electricity",null,null,null,null,null,null,null,null,null,null,null,null,null,null,null,null,"~"]
["SA29",2023,"LIM331",1,42,"Water",null,null,null,null,null,null,null,null,null,null,null,null,null,null,null,null,"~"]
["SA29",2023,"LIM331",1,43,"Waste water management",null,null,null,null,null,null,null,null,null,null,null,null,null,null,null,null,"~"]
["SA29",2023,"LIM331",1,44,"Waste management",null,null,null,null,null,null,null,null,null,null,null,null,null,null,null,null,"~"]
["SA29",2023,"LIM331",1,45,"Other",null,null,null,null,null,null,null,null,null,null,null,null,null,null,null,null,"~"]
["SA29",2023,"LIM331",null,null,"Total Capital Expenditure - Standard",null,null,null,null,null,null,null,null,null,null,null,null,null,null,null,null,"~"]
["SA29",2023,"LIM331",null,null,null,null,null,null,null,null,null,null,null,null,null,null,null,null,null,null,null,"~"]
["SA29",2023,"LIM331",2,50,"Funded by:",null,null,null,null,null,null,null,null,null,null,null,null,null,null,null,null,"~"]
["SA29",2023,"LIM331",2,51,"National Government",null,null,null,null,null,null,null,null,null,null,null,null,null,null,null,null,"~"]
["SA29",2023,"LIM331",2,52,"Provincial Government",null,null,null,null,null,null,null,null,null,null,null,null,null,null,null,null,"~"]
["SA29",2023,"LIM331",2,53,"District Municipality",null,null,null,null,null,null,null,null,null,null,null,null,null,null,null,null,"~"]
["SA29",2023,"LIM331",2,54,"Other transfers and grants",null,null,null,null,null,null,null,null,null,null,null,null,null,null,null,null,"~"]
["SA29",2023,"LIM331",2,55,"Transfers recognised - capital",null,null,null,null,null,null,null,null,null,null,null,null,null,null,null,null,"~"]
["SA29",2023,"LIM331",2,56,"Public contributions & donations",null,null,null,null,null,null,null,null,null,null,null,null,null,null,null,null,"~"]
["SA29",2023,"LIM331",2,57,"Borrowing",null,null,null,null,null,null,null,null,null,null,null,null,null,null,null,null,"~"]
["SA29",2023,"LIM331",2,58,"Internally generated funds",null,null,null,null,null,null,null,null,null,null,null,null,null,null,null,null,"~"]
["SA29",2023,"LIM331",2,59,"Total Capital Funding",null,null,null,null,null,null,null,null,null,null,null,null,null,null,null,null,"~"]